{"text_format":"1","workbook":"xlsx","n_sheets":115,"sheets":["ACS_Notes","StartInstruction","Updates","ACS_Table_B08303","PopulationCharacteristics","SchoolEnrolEduAttain","HousingCharacteristics","CntyDataLink","CntyQuery","BuildingPermitsSince2000","EmploymentAndWages","EmpVsHUxCounty","HHIncome-10YearComparison","HHIncomeByAge","HHIncomeByTenure","ACS_Source_Table_List","CntyDataLinkPrior5YearEstimates","CntyDataLinkPrior10YearEstimate","StatisticallySignificantCalcs","SData_B01001Populuation","SData_B01002MedianAgePop","SData_B03002HispanLationRace","SData_B05002_PlaceofBirthCitzSt","SData_B07003_ResidenceMobility","SData_B08303Commuting","SData_B11001HouseholdByFamType","SData_B11002PopByHHType","SData_B14001_and_B15002School","SData_B17001PopPovtyStat","SDataB17010FamilyPovertyStatus","SData_B17017_HH PovStat","ACS_Table_B01001","ACS_Table_B01002","ACS_Tbl_B11001_B11002_B25010","ACS_Table_B19001","ACS_Table_B19037","DisabilityByAge","DisabilityByAgePrior5YearEst","SData_B18101_DisabilityAge","DisabilityByAgePrior10YearEst","ACS_Table_B18101","SData_B18102_HearingDisability","ACS_Table_B18102","SData_B18103_VisualDisability","ACS_Table_B18103","SData_B18104_CognitiveDisabil","ACS_Table_B18104","SData_B18105_AmbulatoryDisabil","ACS_Table_B18105","SData_B18106_SelfCareDisability","ACS_Table_B18106","SData_B18107_IndependantLivDis","ACS_Table_B18107","SData_B18108_MultipleDisability","ACS_Table_C18108","SData_B19001HseHldInc","SData_B19037IncomeByAgeofHH","SData_B19049MedianIncomeByAge","SData_Tables_B19101_B19113","SData_Tables_B19201_B19202","ACS_Table_B19049","ACS_Table_B25118","ACS_TableB19101_ACS_Tbl_B19113","ACS_TableB19201_ACS_Tbl_B19202","ACS_Table_B25119","ACS_Table_B25001","ACS_Table_B25003","ACS_Table_B25004","ACS_Table_B25008","ACS_Table_B25024","ACS_Table_B25032","ACS_Table_B25034","ACS_Table_B25041","PovertyCharacteristics","ACS_Table_ B17001","ACS_Table_B17010","ACS_Table_B17017","ACS_Table_B03002","RentalHousingCost","RentalHousingCost-Prior5Yr","RentalHousingCost-Prior10Yr","ACS_Table_B25063_&_B25064","ACS_Table_B25070","ACS_Table_B25074","SData_B25001_B25003_B25004","SData_B25008","SData_B25010AvgHHSizeByTenure","SData_B25024","SData_B25032","SData_B25034_B25041_HuAgeTyp","SData_B25063_B25064_OccRentGR","SData_B25070_&_B25074GRAsPerInc","OwnerHousingCost","OwnerHousingCostPrior5Year","OwnerHousingCostPrior10Year","ACS_Table_B25075_&_B25077","ACS_Table_B25088","ACS_Table_B25091","ACS_Table_B25106","SData_B25075&_B25077_OOccHsgVal","PlaceOfBirthAndPriorRes","ACS_Table_B05002","ACS_Table_B07003","ACS_Table_B14001","ACS_Table_B15002","SData_B25088MednMthlyOwnerCost","SData_B25091OwnOccHsgCostPerInc","SData_B25106HsingCostAsPctOfInc","SData_B25118_B25119HHIncByTen","PopComparison","HousingComparison","Housing_EmploymentComparison","DropDownList","CntyQryCensus","SmallTownEmploymentandWages"],"not_rendered":{"charts":357,"images":206,"macros":1,"external_links":2,"defined_names":105,"comments":0,"pivot_tables":0},"unopened":[],"bounds":{"document_bytes":16777216,"sheet_cells":100000,"rows_first":2000,"rows_last":500,"rows_between":2000,"halvings":0,"cell_chars":16384,"cell_head_chars":4096},"cells_cut":0,"cells_raw":0,"read":"whole","date_system":"1900"}

{"sheet":"ACS_Notes","index":0,"n_rows":28,"n_cols":1,"rows_kept":28,"cut":false,"hidden":true,"merged":[[31,150,31,164],[31,165,31,179],[31,240,31,254],[31,180,31,194],[31,195,31,209],[31,210,31,224],[31,225,31,239],[31,135,31,149],[31,15,31,29],[31,30,31,44],[31,45,31,59],[25,0,25,14],[31,60,31,74],[31,75,31,89],[31,90,31,104],[31,105,31,119],[31,120,31,134],[3,0,5,14],[7,0,8,14],[29,0,29,14],[20,0,21,14],[22,0,22,14],[23,0,23,14],[24,0,24,14],[10,0,12,14],[14,0,14,14],[18,0,19,14]]}
["NOTES:"]
[]
[]
["Data are based on a sample and are subject to sampling variability. The degree of uncertainty for an estimate arising from sampling variability is represented through the use of a margin of error. The value shown here is the 90 percent margin of error. The margin of error can be interpreted roughly as providing a 90 percent probability that the interval defined by the estimate minus the margin of error and the estimate plus the margin of error (the lower and upper confidence bounds) contains the true value. In addition to sampling variability, the ACS estimates are subject to non-sampling error (for a discussion of non-sampling variability, see Accuracy of the Data). The effect of non-sampling error is not represented in these tables."]
[]
[]
[]
["In addition to sampling variability, the ACS estimates are subject to non-sampling error (for a discussion of non-sampling variability, see Accuracy of the Data. The link is located at the end of this worksheet.).  The effect of non-sampling error is not represented in these tables."]
[]
[]
["While the 2005-2009 American Community Survey (ACS) data generally reflect the November 2008 Office of Management and Budget (OMB) definitions of metropolitan and micropolitan statistical areas; in certain instances the names, codes, and boundaries of the principal cities shown in ACS tables may differ from the OMB definitions due to differences in the effective dates of the geographic entities."]
[]
[]
[]
["Estimates of urban and rural population, housing units, and characteristics reflect boundaries of urban areas defined based on Census 2000 data.  Boundaries for urban areas have not been updated since Census 2000.  As a result, data for urban and rural areas from the ACS do not necessarily reflect the results of ongoing urbanization."]
[]
["Explanation of Symbols:"]
[]
["1. An '**' entry in the margin of error column indicates that either no sample observations or too few sample observations were available to compute a standard error and thus the margin of error. A statistical test is not appropriate."]
[]
["2. An '-' entry in the estimate column indicates that either no sample observations or too few sample observations were available to compute an estimate, or a ratio of medians cannot be calculated because one or both of the median estimates falls in the lowest interval or upper interval of an open-ended distribution."]
[]
["3. An '-' following a median estimate means the median falls in the lowest interval of an open-ended distribution."]
["4. An '+' following a median estimate means the median falls in the upper interval of an open-ended distribution."]
["5. An '***' entry in the margin of error column indicates that the median falls in the lowest interval or upper interval of an open-ended distribution. A statistical test is not appropriate."]
["6. An '*****' entry in the margin of error column indicates that the estimate is controlled. A statistical test for sampling variability is not appropriate."]
[]
["Accuracy of Data "]

{"sheet":"StartInstruction","index":1,"n_rows":31,"n_cols":16,"rows_kept":31,"cut":false,"hidden":false,"merged":[[26,1,30,3],[30,15,32,18]]}
["Demographic Profiles for Municipalities in Cheshire County"]
[]
["To view or print a Demographic Profile follow the steps below"]
[]
[]
["Step 1. ",null,"Select the municipality you wish to"]
[null,null,"Profile from the drop down box below. "]
[]
[]
[]
[]
["Step 2. ",null,"Click one of the profile topic buttons below to review or print"]
[null,null,"the information for the selected geography."]
[null,null,"Don't forget to adjust the axis on charts as necessary. "]
[]
[]
[]
[]
[]
[]
[]
[]
[]
[]
[]
[]
[]
[]
[null,null,null,null,null,null,null,null,null,null,null,null,null,"Updated:",null,"2023-12-11"]
[]
[null,null,null,null,null,null,null,null,null,null,null,null,null,"Next Update:",null,"Spring 2024 Annual Employment Date"]

{"sheet":"Updates","index":2,"n_rows":58,"n_cols":3,"rows_kept":58,"cut":false,"hidden":false,"merged":[[55,2,55,12],[56,2,56,12],[28,2,28,11],[25,2,25,11],[51,2,51,12],[52,2,52,12],[30,2,30,11],[45,2,45,12],[46,2,46,12],[50,2,50,12],[38,2,38,11],[34,2,34,11],[31,2,31,11],[32,2,32,11],[33,2,33,11],[29,2,29,11],[58,2,58,12],[35,2,35,11],[36,2,36,12],[37,2,37,10],[40,2,40,11],[47,2,47,12],[42,2,42,10],[44,2,44,12],[41,2,41,10],[43,2,43,10],[39,2,39,11],[48,2,48,12],[57,2,57,12],[49,2,49,12],[53,2,53,12],[54,2,54,12],[0,2,0,11],[1,2,1,11],[26,2,26,11],[2,2,2,11],[16,2,16,11],[17,2,17,11],[11,2,11,11],[9,2,9,11],[4,2,4,11],[6,2,6,11],[3,2,3,11],[27,2,27,11],[20,2,20,11],[21,2,21,11],[22,2,22,11],[18,2,18,11],[19,2,19,11],[23,2,23,11],[24,2,24,11]]}
["Important Notes"]
[]
["Date",null,"Task"]
["2023-12-11",null,"Updated 2018-2022 Amreican Community Survey Data. Updated CPI Adjustement Factor  factor 1.19 for 2013-2017 and 1.27 for 2008-2012"]
["2023-10-23",null,"Updated Employment and Wage Information for 2022"]
["2023-10-12",null,"Updated an error in the Poverty worksheet."]
["2023-09-14",null,"Updated 2008-2012 and 2013-2017 ACS Data; Added 10 Year Disability Comparison Worksheet"]
["2023-01-25",null,"Updated Permit Data and all appropriate charts."]
["2022-12-14",null,"Updated 2017-2021 ACS Data"]
["2022-11-01",null,"Updated NH Population Estimates through 2030"]
["2022-09-14",null,"Updated Employment and Wage Information for 2021. Updated CPI Adjustment factor 1.08 for 2012-2016 and 1.15 for 2007-2011"]
["2022-08-16",null,"Updated 2007-2011 and 2012-2016 Amreican Community Survey Data."]
["2022-03-21",null,"Updated historical data 2016-2020 ACS Data"]
["2022-03-14",null,"Updated CPI Adjustement factor to adjust 2010 (1.19) and 2015 (1.09) dollars to 2020 dollars. "]
["2022-03-03",null,"Updated Permit Data and all appropriate charts."]
["2021-10-27",null,"Updated 2020 Annual Wage and Employment count"]
["2021-09-08",null,"Updated with 2020 Decennial Population data"]
["2020-12-18",null,"Updated 2015-2019 Amreican Community Survey Data and added 2019 NH Permit data."]
["2020-10-01",null,"Updated 2019 Employment and Wage data by industry sector"]
["2019-12-31",null,"Updated Visual Basic Code changing the footer font from Gotham Medium to Verdana."]
["2019-12-26",null,"Updated with 2014-2018 ACS Data. Updated 2018 Permit data. Updated CPI Adjustment Factor (1.02437673) to the 2009-2013 and 2014-2018 Income Comparison Table. This factor was provided by Census"]
["2019-11-26",null,"Updated the 2009-2013 ACS data for comparison purposes."]
["2019-09-17",null,"Updated 2018 Annual Employment and Wage data; updated Housing and Employment worksheet."]
["2018-12-19",null,"Updated 2017 Annual Employment and Wage data; updated Housing and Employment worksheet. Updated 2017 Permit data"]
["2018-12-11",null,"Updated the 2008-2012 ACS data for comparison purposes. Updated CPI Adjustment Factor (1.0676) to the 2008-2012 and 2014-2018  Income Comparison Table. This factor was provided by Census."]
["2018-12-06",null,"Updated 2014-2018 ACS Data"]
["2018-12-05",null,"Updated labels in workbook to reflect 2013-2017 data set and 2008-2012 comparison data set. Updated footer text. "]
["2018-08-13",null,"Updated Graph formats."]
["2018-05-09",null,"Reviewed that unemployment rate data does not need to updated. There are no cities or towns that needed this update. Only a select number of locations are updated with this data."]
["2017-12-18",null,"Updated 2016 NH Permit Data"]
["2017-12-08",null,"Updated Charts with 2012-2016 data; updated code to reflect additional data points in various tables. Updated CPI Adjustment Factor (1.04386838) to the 2007-2011 and 2012-2016 Income Comparison Table. This factor was provided by Census."]
["2017-10-12",null,"Updated 2016 Annual Employment and Wage data; updated Housing and Employment worksheet"]
["2017-05-15",null,"Reviewed that unemployment rate data does not need to updated. There are no cities or towns that needed this update. Only a select number of locations are updated with this data."]
["2017-01-04",null,"Verified Charts; Added 2015 Permit Data; Updated Housing and Permit data; Updated Owner Cost worksheet to fix code issue."]
["2016-12-28",null,"Updated the 2006-2010 ACS data for comparison purposes."]
["2016-12-23",null,"Updated Town Comparisons: Employment and Housing with 2015 data"]
["2016-12-15",null,"Updated 2017-2021 ACS Data"]
["2016-10-31",null,"Updated 2015 Annual Employment and Wage data"]
["2016-01-14",null,"Fixed error in School Attainment worksheet - Graduate or Professional Degree data."]
["2016-01-07",null,"Fixed formula in Poverty worksheet; fixed Non-Family Persons per Household data; fixed legend of Rental Cost Charts."]
["2015-12-23",null,"Updated Code to correct an error on the RentalHousingCost worksheet; updated column names on CntyDataLink; updated Code to correct an error on the RentalHousingCost worksheet; updated column names on CntyDataLink; Fixed Table ACS_B25074"]
["2015-12-09",null,"Updated 2010-2014 ACS Data"]
["2015-12-07",null,"Updated Permit Data and all appropriate charts."]
["2015-12-03",null,"Updated the CPI Adjustment Factor (1.1034264) to the 2005-2009 and 2017-2021 Income Comparison Table. This factor was provided by Census. Updated RentalHousingCost and OwnerCost worksheet to eliminate a printed page. Charts were moved and reduced in size."]
["2015-11-24",null,"Updated Color scheme on charts and added correct logo to the charts"]
["2015-10-05",null,"Added Town Employment and Housing Comparison data. Added Visual basic code to automatically update footer. Visual basic code will run when Ctrl-j is selected. "]
["2015-09-29",null,"Updated Employment and Employment vs. Housing data."]
["2015-09-16",null,"Updated RentalHousingCost worksheet to accommodate changes to Table B25074; Updated Charts and code to allow for prior 5 year estimates to be update."]
["2015-09-01",null,"Updated Code to include Prior 5 year estimate. Added Statistically Significant worksheet."]
["2015-08-20",null,"Updated 2005-2009 ACS Estimate data."]
["2015-08-11",null,"Updated Owner Cost Chart and data. Added Table B25106. Housing Cost burden by Income."]
["2015-08-06",null,"Corrected the Employment vs. Housing worksheet."]
["2015-03-17",null,"Added Labor Force Data"]
["2014-12-30",null,"Corrected Rental Cost formula."]
["2014-12-17",null,"Corrected and verified household pie charts. All Permit data and employment data has been updated through 2013."]
["2011-10-14",null,"Reformatted the code in the worksheet and corrected an error in the Income Comparison Sheet"]
["2010-12-21",null,"Added Margin of Error information on all applicable ACS Sheets"]
["2010-12-07",null,"Created a calculated Table B19001 in anticipation for the 5 year data.  Table C19001 will not be provided"]

{"sheet":"ACS_Table_B08303","index":3,"n_rows":40,"n_cols":48,"rows_kept":40,"cut":false,"hidden":true,"merged":[]}
[null,"B08303: TRAVEL TIME TO WORK"]
[null,"Universe: Workers 16 years and over who did not work at home"]
[null,"Data Set: 2006-2010 American Community Survey 3-Year Estimates"]
[]
[null,null,"New Hampshire",null,"Belknap County",null,"Carroll County",null,"Cheshire County",null,"Coos County",null,"Grafton County",null,"Hillsborough County",null,"Merrimack County",null,"Rockingham County",null,"Strafford County",null,"Sullivan County"]
[null,null,"Estimates","Margin Of Error","Estimates","Margin Of Error","Estimates","Margin Of Error","Estimates","Margin Of Error","Estimates","Margin Of Error","Estimates","Margin Of Error","Estimates","Margin Of Error","Estimates","Margin Of Error","Estimates","Margin Of Error","Estimates","Margin Of Error","Estimates","Margin Of Error"]
[null,"Population Older than 16 not working at hom",635,107,1600,230,632,118,1023,232,431,88,404,115,1913,275,2529,322,10027,496,990,208,347,96,234,65,449,129,2516,271,139,50,551,100,374,80,400,86,3752,360,898,184,1553,202,879,184,1802,272]
[null,"Less than 5 minutes",6,8,46,48,20,15,19,23,16,14,14,15,347,237,144,88,799,205,51,33,0,12,12,12,6,5,180,91,2,3,6,7,17,12,13,10,98,91,6,8,36,36,32,28,39,26]
[null,"5 to 9 minutes",14,12,75,74,80,43,27,15,15,10,5,7,106,85,572,295,2988,430,86,43,18,21,10,7,10,13,473,150,26,16,15,13,0,12,28,24,318,271,27,20,146,80,93,70,103,71]
[null,"10 to 14 minutes",96,37,184,120,84,30,27,19,17,9,63,39,251,123,430,202,2478,417,211,104,12,9,8,6,46,30,220,102,43,26,7,6,34,19,37,25,854,270,33,21,204,97,102,46,135,78]
[null,"15 to 19 minutes",38,20,479,199,93,44,84,61,97,42,70,50,608,200,160,90,1021,244,215,108,11,13,42,18,42,37,240,99,17,11,45,27,98,31,157,66,754,265,175,83,120,61,248,116,70,56]
[null,"20 to 24 minutes",143,58,314,212,114,75,154,60,114,42,66,29,165,107,175,87,751,202,198,82,61,34,102,45,35,26,202,87,19,21,112,65,82,34,57,28,798,229,326,92,171,78,189,80,485,143]
[null,"25 to 29 minutes",40,28,125,91,69,33,31,20,35,23,47,22,37,34,62,61,293,144,57,38,32,18,27,17,50,41,129,100,11,17,71,28,29,21,13,8,275,132,75,32,263,195,29,17,216,116]
[null,"30 to 34 minutes",95,36,106,75,59,33,160,56,45,18,61,37,60,53,302,197,571,216,81,46,72,39,6,6,92,46,173,87,6,5,83,31,57,26,35,30,154,85,78,39,406,154,103,61,528,169]
[null,"35 to 39 minutes",17,14,18,27,8,11,180,162,7,11,13,11,101,62,9,19,344,119,10,10,42,33,3,6,18,15,185,104,1,2,60,36,1,2,2,3,107,71,10,12,85,56,8,9,57,42]
[null,"40 to 44 minutes",49,31,53,68,2,4,9,10,12,12,0,12,71,57,233,170,139,75,14,13,8,7,2,3,41,37,107,78,3,3,10,9,5,7,8,8,0,17,13,11,0,12,8,15,41,42]
[null,"45 to 59 minutes",60,31,79,62,28,17,149,80,32,17,30,21,69,51,130,111,235,103,24,23,31,24,2,3,72,40,185,86,4,5,76,49,22,13,17,10,175,112,41,35,54,30,40,27,57,50]
[null,"60 to 89 minutes",42,29,71,72,14,10,91,57,25,16,21,20,48,63,195,109,220,108,34,28,43,31,12,12,13,10,195,95,0,12,37,21,3,4,29,15,127,95,68,57,53,46,13,10,55,44]
[null,"90 or more minutes",35,26,50,57,61,31,92,56,16,9,14,11,50,56,117,119,188,125,9,9,17,14,8,6,24,12,227,106,7,11,29,17,26,18,4,4,92,73,46,51,15,17,14,11,16,21]
[]
[]
[]
[]
[]
[]
[]
[]
[]
[]
[]
[]
[]
[]
[]
[]
[]
[]
[]
[null,null,642668,3466,28483,1018,21150,846,36744,934,14089,645,42727,1151,197866,2634,70876,1467,148355,1823,61589,1595,20789,620]
[null,null,"Estimate"]

{"sheet":"PopulationCharacteristics","index":4,"n_rows":64,"n_cols":23,"rows_kept":64,"cut":false,"hidden":true,"merged":[[3,1,3,3],[2,8,2,12],[18,15,18,21],[62,1,62,8],[33,11,33,12],[18,2,18,8],[63,1,63,3],[19,11,19,13],[19,18,19,20],[45,1,45,8],[48,3,48,4],[48,6,48,7],[48,9,48,10],[19,15,19,17],[33,2,33,3],[33,5,33,6],[33,8,33,9]]}
[]
[null,{"$f":"CntyDataLink!A35","v":"Dublin"}]
[null,null,null,null,null,null,null,"Land Area:",{"$f":"((CntyDataLink!F35*10.764)/43560)/640","v":27.981388352272727},null,"Water Area:",{"$f":"((CntyDataLink!G35*10.764)/43560)/640","v":1.1034200400309917}]
[null,"POPULATION CHARACTERISTICS"]
[]
[]
[]
[]
[]
[]
[]
[]
[]
[]
[]
[]
[]
[]
[null,"Population ",{"$f":"\"Source:  US Census; Office of Planning and Development, NH BEA; \"& L20&\", \"&P20&\", and \"&S20&\" American Community Survey Table B01001\"","v":"Source:  US Census; Office of Planning and Development, NH BEA; 2008-2012, 2013-2017, and 2018-2022 American Community Survey Table B01001"},null,null,null,null,null,null,null,null,null,null,"Population by Age ",null,{"$f":"\"Source: \"& L20&\", \"&P20&\", and \"&S20&\"  American Community Survey Tables B01001 and B01002\"","v":"Source: 2008-2012, 2013-2017, and 2018-2022  American Community Survey Tables B01001 and B01002"}]
[null,null,null,null,null,null,null,null,null,null,null,"2008-2012",null,null,null,"2013-2017",null,null,"2018-2022"]
[null,null,1990,2000,2010,2020,"2018-2022",2025,2030,null,null,"Estimate",null,"Margin of Error","Percent Change","Estimate","Margin of Error","Percent Change","Estimate","Margin of Error",null,"Percent Change","Statistically Significant Change"]
[null,null,{"$f":"CntyDataLink!$F$20","v":1474},{"$f":"CntyDataLink!$G$20","v":1476},{"$f":"CntyDataLink!$H$20","v":1597},{"$f":"CntyDataLink!$I$20","v":1532},{"$f":"CntyDataLink!$B$132","v":4171},{"$f":"CntyDataLink!$J$20","v":1557},{"$f":"CntyDataLink!$K$20","v":1570},null,"Under 15 yrs.",{"$f":"CntyDataLinkPrior10YearEstimate!$D$132","v":826},null,{"$f":"CntyDataLinkPrior10YearEstimate!$E$132","v":195.86730201848394},{"$f":"L22/SUM($L$22:$L$29)","v":0.19067405355493999},{"$f":"CntyDataLinkPrior5YearEstimates!$D$132","v":766},{"$f":"CntyDataLinkPrior5YearEstimates!$E$132","v":181.46073955542008},{"$f":"P22/SUM($P$22:$P$29)","v":0.18147358445865908},{"$f":"CntyDataLink!$D$132","v":847},{"$f":"CntyDataLink!$E$132","v":201.78206064960284},{"$f":"S22/SUM($S$22:$S$29)","v":0.2030688084392232},{"$f":"(S22-P22)/P22","v":0.10574412532637076},{"$f":"StatisticallySignificantCalcs!$A3","v":"Y"}]
[null,null,null,null,null,null,null,null,null,null,"15 to 24 yrs.",{"$f":"CntyDataLinkPrior10YearEstimate!$F$132","v":404},null,{"$f":"CntyDataLinkPrior10YearEstimate!$G$132","v":132.52546925025393},{"$f":"L23/SUM($L$22:$L$29)","v":9.3259464450600182E-2},{"$f":"CntyDataLinkPrior5YearEstimates!$F$132","v":545},{"$f":"CntyDataLinkPrior5YearEstimates!$G$132","v":177.20045146669349},0.12911632314617388,{"$f":"CntyDataLink!$F$132","v":561},{"$f":"CntyDataLink!$G$132","v":195.87240744933933},0.13450011987532964,2.9357798165137616E-2,{"$f":"StatisticallySignificantCalcs!$A4","v":"Y"}]
[null,"Percent Change",null,null,null,null,null,null,null,null,"25 to 34 yrs.",{"$f":"CntyDataLinkPrior10YearEstimate!$H$132","v":412},null,{"$f":"CntyDataLinkPrior10YearEstimate!$I$132","v":136.91603266235842},{"$f":"L24/SUM($L$22:$L$29)","v":9.5106186518928895E-2},{"$f":"CntyDataLinkPrior5YearEstimates!$H$132","v":516},{"$f":"CntyDataLinkPrior5YearEstimates!$I$132","v":153.24816475246939},0.12224591329068941,{"$f":"CntyDataLink!$H$132","v":528},{"$f":"CntyDataLink!$I$132","v":156.35216659835578},0.12658834811795733,2.3255813953488372E-2,{"$f":"StatisticallySignificantCalcs!$A5","v":"Y"}]
[null,null,null,{"$f":"C21&\"-2020\"","v":"1990-2020"},{"$f":"D21&\"-2020\"","v":"2000-2020"},{"$f":"E21&\"-2020\"","v":"2010-2020"},{"$f":"F21&\"-2030\"","v":"2020-2030"},{"$f":"G21&\"-\"&H21","v":"2018-2022-2025"},{"$f":"H21&\"-\"&I21","v":"2025-2030"},null,"35 to 44 yrs.",{"$f":"CntyDataLinkPrior10YearEstimate!$J$132","v":679},null,{"$f":"CntyDataLinkPrior10YearEstimate!$K$132","v":160.77313208369114},0.15674053554939982,{"$f":"CntyDataLinkPrior5YearEstimates!$J$132","v":398},{"$f":"CntyDataLinkPrior5YearEstimates!$K$132","v":130.24208229293635},9.429045249940772E-2,{"$f":"CntyDataLink!$J$132","v":533},{"$f":"CntyDataLink!$K$132","v":140.93260800822497},0.1277871014145289,0.33919597989949751,{"$f":"StatisticallySignificantCalcs!$A6","v":"Y"}]
[null,null,null,{"$f":"(D22-C22)/C22","v":1.3568521031207597E-3},8.1978319783197834E-2,-4.0701314965560426E-2,1.7225848563968669,-0.62670822344761445,8.3493898522800265E-3,null,"45 to 54 yrs.",{"$f":"CntyDataLinkPrior10YearEstimate!$L$132","v":816},null,{"$f":"CntyDataLinkPrior10YearEstimate!$M$132","v":152.33515680892575},0.18836565096952909,{"$f":"CntyDataLinkPrior5YearEstimates!$L$132","v":613},{"$f":"CntyDataLinkPrior5YearEstimates!$M$132","v":173.45028106059672},0.14522624970386164,{"$f":"CntyDataLink!$L$132","v":328},{"$f":"CntyDataLink!$M$132","v":111.24297730643494},7.8638216255094706E-2,-0.46492659053833607,{"$f":"StatisticallySignificantCalcs!$A7","v":"Y"}]
[null,null,null,null,null,null,null,null,null,null,"55 to 64 yrs.",{"$f":"CntyDataLinkPrior10YearEstimate!$N$132","v":611},null,{"$f":"CntyDataLinkPrior10YearEstimate!$O$132","v":139.21925154230647},0.14104339796860574,{"$f":"CntyDataLinkPrior5YearEstimates!$N$132","v":633},{"$f":"CntyDataLinkPrior5YearEstimates!$O$132","v":153.08494374039532},0.14996446339729921,{"$f":"CntyDataLink!$N$132","v":769},{"$f":"CntyDataLink!$O$132","v":179.0809872655386},0.18436825701270679,0.21484992101105846,{"$f":"StatisticallySignificantCalcs!$A8","v":"Y"}]
[null,null,null,null,null,null,null,null,null,null,"65 to 74 yrs.",{"$f":"CntyDataLinkPrior10YearEstimate!$P$132","v":374},null,{"$f":"CntyDataLinkPrior10YearEstimate!$Q$132","v":90.631120482977593},8.6334256694367492E-2,{"$f":"CntyDataLinkPrior5YearEstimates!$P$132","v":468},{"$f":"CntyDataLinkPrior5YearEstimates!$Q$132","v":111.99553562530964},0.11087420042643924,{"$f":"CntyDataLink!$P$132","v":370},{"$f":"CntyDataLink!$Q$132","v":97.452552557642122},8.8707743946295853E-2,-0.20940170940170941,{"$f":"StatisticallySignificantCalcs!$A9","v":"Y"}]
[null,null,null,null,null,null,null,null,null,null,"Over 74 yrs. ",{"$f":"CntyDataLinkPrior10YearEstimate!$R$132","v":210},null,{"$f":"CntyDataLinkPrior10YearEstimate!$S$132","v":68.308125431752259},4.8476454293628811E-2,{"$f":"CntyDataLinkPrior5YearEstimates!$R$132","v":282},{"$f":"CntyDataLinkPrior5YearEstimates!$S$132","v":91.214034007931033},6.6808813077469789E-2,{"$f":"CntyDataLink!$R$132","v":235},{"$f":"CntyDataLink!$S$132","v":73.409808608931812},5.6341404938863582E-2,-0.16666666666666666,{"$f":"StatisticallySignificantCalcs!$A10","v":"Y"}]
[null,null,null,null,null,null,null,null,null,null,"Median Age (years)",{"$f":"CntyDataLinkPrior10YearEstimate!$AX132","v":43.1},null,{"$f":"CntyDataLinkPrior10YearEstimate!$AY$132","v":2.6},null,{"$f":"CntyDataLinkPrior5YearEstimates!$AX132","v":40.700000000000003},{"$f":"CntyDataLinkPrior5YearEstimates!$AY$132","v":6.1},null,{"$f":"CntyDataLink!$AX$132","v":38},{"$f":"CntyDataLink!$AY$132","v":4.4000000000000004}]
[]
[null,"Population By Race",null,null,null,null,null,null,null,null,null,null,"Statistically Significant Change"]
[null,null,null,null,null,null,null,null,null,null,null,null,{"$f":"IF(L36=\"\",\"-\",StatisticallySignificantCalcs!A20)","v":"N"}]
[null,null,{"$f":"$L$20","v":"2008-2012"},null,null,{"$f":"$P$20","v":"2013-2017"},null,null,{"$f":"$S$20","v":"2018-2022"},null,null,"Statistically Significant Change"]
[null,null,"Estimate","Margin of Error",null,"Estimate","Margin of Error",null,"Estimate","Margin of Error",null,"2012-2022","2017-2022"]
[null,"White",{"$f":"CntyDataLinkPrior10YearEstimate!$AL$132","v":4141},{"$f":"CntyDataLinkPrior10YearEstimate!$AM$132","v":105},{"$f":"IF(C$36=\"-\",\"-\",VALUE(C36/$C$41))","v":0.95590951061865193},{"$f":"CntyDataLinkPrior5YearEstimates!$AL$132","v":4093},{"$f":"CntyDataLinkPrior5YearEstimates!$AM$132","v":84},{"$f":"IF(F$36=\"-\",\"-\",VALUE(F36/$F$41))","v":0.96967543236199949},{"$f":"CntyDataLink!$AL$132","v":4101},{"$f":"CntyDataLink!$AM$132","v":53},{"$f":"IF(I$36=\"-\",\"-\",VALUE(I36/$I$41))","v":0.98321745384799808},{"$f":"StatisticallySignificantCalcs!A20","v":"N"},{"$f":"StatisticallySignificantCalcs!J20","v":"N"}]
[null,"Black",{"$f":"CntyDataLinkPrior10YearEstimate!$AN132","v":6},{"$f":"CntyDataLinkPrior10YearEstimate!$AO$132","v":12},{"$f":"IF(C$37=\"-\",\"-\",VALUE(C37/$C$41))","v":1.3850415512465374E-3},{"$f":"CntyDataLinkPrior5YearEstimates!$AN132","v":17},{"$f":"CntyDataLinkPrior5YearEstimates!$AO$132","v":28},{"$f":"IF(F$37=\"-\",\"-\",VALUE(F37/$F$41))","v":4.0274816394219376E-3},{"$f":"CntyDataLink!$AN$132","v":20},{"$f":"CntyDataLink!$AO$132","v":28},{"$f":"IF(I$37=\"-\",\"-\",VALUE(I37/$I$41))","v":4.7950131862862623E-3},{"$f":"StatisticallySignificantCalcs!A21","v":"N"},{"$f":"StatisticallySignificantCalcs!J21","v":"N"}]
[null,"American Indian",{"$f":"CntyDataLinkPrior10YearEstimate!$AP$132","v":60},{"$f":"CntyDataLinkPrior10YearEstimate!$AQ$132","v":43},{"$f":"IF(C$38=\"-\",\"-\",VALUE(C38/$C$41))","v":1.3850415512465374E-2},{"$f":"CntyDataLinkPrior5YearEstimates!$AP$132","v":18},{"$f":"CntyDataLinkPrior5YearEstimates!$AQ$132","v":26},{"$f":"IF(F$38=\"-\",\"-\",VALUE(F38/$F$41))","v":4.2643923240938165E-3},{"$f":"CntyDataLink!$AP$132","v":8},{"$f":"CntyDataLink!$AQ$132","v":11},{"$f":"IF(I$38=\"-\",\"-\",VALUE(I38/$I$41))","v":1.9180052745145048E-3},{"$f":"StatisticallySignificantCalcs!A22","v":"Y"},{"$f":"StatisticallySignificantCalcs!J22","v":"N"}]
[null,"Asian &Pacific Is.",{"$f":"CntyDataLinkPrior10YearEstimate!$AR$132","v":50},{"$f":"CntyDataLinkPrior10YearEstimate!$AS$132","v":60.016664352494629},{"$f":"IF(C$39=\"-\",\"-\",VALUE(C39/$C$41))","v":1.1542012927054479E-2},{"$f":"CntyDataLinkPrior5YearEstimates!$AR$132","v":23},{"$f":"CntyDataLinkPrior5YearEstimates!$AS$132","v":34.785054261852174},{"$f":"IF(F$39=\"-\",\"-\",VALUE(F39/$F$41))","v":5.4489457474532097E-3},{"$f":"CntyDataLink!$AR$132","v":9},{"$f":"CntyDataLink!$AS$132","v":18.439088914585774},{"$f":"IF(I$39=\"-\",\"-\",VALUE(I39/$I$41))","v":2.157755933828818E-3},{"$f":"StatisticallySignificantCalcs!A23","v":"N"},{"$f":"StatisticallySignificantCalcs!J23","v":"N"}]
[null,"Other*",{"$f":"CntyDataLinkPrior10YearEstimate!$AT$132","v":75},{"$f":"CntyDataLinkPrior10YearEstimate!$AU$132","v":65.924198895398035},{"$f":"IF(C$40=\"-\",\"-\",VALUE(C40/$C$41))","v":1.7313019390581719E-2},{"$f":"CntyDataLinkPrior5YearEstimates!$AT$132","v":26},{"$f":"CntyDataLinkPrior5YearEstimates!$AU$132","v":26.40075756488817},{"$f":"IF(F$40=\"-\",\"-\",VALUE(F40/$F$41))","v":6.1596778014688458E-3},{"$f":"CntyDataLink!$AT$132","v":33},{"$f":"CntyDataLink!$AU$132","v":37},{"$f":"IF(I$40=\"-\",\"-\",VALUE(I40/$I$41))","v":7.911771757372333E-3},{"$f":"StatisticallySignificantCalcs!A24","v":"N"},{"$f":"StatisticallySignificantCalcs!J24","v":"N"}]
[null,"Total Population",{"$f":"CntyDataLinkPrior10YearEstimate!$B$132","v":4332},{"$f":"CntyDataLinkPrior10YearEstimate!$C$132","v":18},null,{"$f":"CntyDataLinkPrior5YearEstimates!$B$132","v":4221},{"$f":"CntyDataLinkPrior5YearEstimates!$C$132","v":15},null,{"$f":"CntyDataLink!$B$132","v":4171},{"$f":"CntyDataLink!$C$132","v":17}]
[null,"Hispanic",{"$f":"CntyDataLinkPrior10YearEstimate!$AV$132","v":0},{"$f":"CntyDataLinkPrior10YearEstimate!$AW$132","v":11},{"$f":"IF(C$42=\"-\",\"-\",VALUE(C42/$C$41))","v":0},{"$f":"CntyDataLinkPrior5YearEstimates!$AV132","v":44},{"$f":"CntyDataLinkPrior5YearEstimates!$AW$132","v":62},{"$f":"IF(F$42=\"-\",\"-\",VALUE(F42/$F$41))","v":1.0424070125562663E-2},{"$f":"CntyDataLink!$AV$132","v":0},{"$f":"CntyDataLink!$AW$132","v":12},{"$f":"IF(I$42=\"-\",\"-\",VALUE(I42/$I$41))","v":0},{"$f":"StatisticallySignificantCalcs!A26","v":"Y"},{"$f":"StatisticallySignificantCalcs!J26","v":"N"}]
[]
[null,"*","Other includes population of 2 or more races"]
[]
[null,{"$f":"\"Source: \"& L20&\", \"&P20&\", and \"&S20&\" American Community Survey Table B03002\"","v":"Source: 2008-2012, 2013-2017, and 2018-2022 American Community Survey Table B03002"}]
[]
[null,null,"Households and Families"]
[null,null,null,{"$f":"$C$34","v":"2008-2012"},null,null,{"$f":"$F$34","v":"2013-2017"},null,null,{"$f":"$I$34","v":"2018-2022"},null,null,null,{"$f":"\"Percent Change \" &L35","v":"Percent Change 2012-2022"},null,{"$f":"\"Percent Change \" &M35","v":"Percent Change 2017-2022"}]
[null,null,null,"Estimate","Margin of Error",null,"Estimate","Margin of Error",null,"Estimate","Margin of Error"]
[null,null,"Total Households",{"$f":"CntyDataLinkPrior10YearEstimate!$T$132","v":4261},{"$f":"CntyDataLinkPrior10YearEstimate!$U$132","v":36},null,{"$f":"CntyDataLinkPrior5YearEstimates!$T$132","v":1702},{"$f":"CntyDataLinkPrior5YearEstimates!$U$132","v":154},null,{"$f":"CntyDataLink!$T$132","v":1579},{"$f":"CntyDataLink!$U$132","v":132},null,null,{"$f":"(J51-D51)/D51","v":-0.62942971133536729},null,{"$f":"(J51-G51)/G51","v":-7.2267920094007052E-2}]
[null,null,"Persons per Household",{"$f":"CntyDataLinkPrior10YearEstimate!$BD$132","v":2.38},{"$f":"CntyDataLinkPrior10YearEstimate!$BE$132","v":0.2},null,{"$f":"CntyDataLinkPrior5YearEstimates!$BD$132","v":2.41},{"$f":"CntyDataLinkPrior5YearEstimates!$BE$132","v":0.23},null,{"$f":"CntyDataLink!$BD$132","v":2.5915136162127927},{"$f":"CntyDataLink!$BE$132","v":0.22680588781066999},null,null,{"$f":"(J52-D52)/D52","v":8.8871267316299518E-2},null,{"$f":"(J52-G52)/G52","v":7.5316853200328882E-2}]
[null,null,"Family Households",{"$f":"CntyDataLinkPrior10YearEstimate!$V$132","v":3407},{"$f":"CntyDataLinkPrior10YearEstimate!$U$132","v":36},null,{"$f":"CntyDataLinkPrior5YearEstimates!$V$132","v":1104},{"$f":"CntyDataLinkPrior5YearEstimates!$U$132","v":154},null,{"$f":"CntyDataLink!$V$132","v":881},{"$f":"CntyDataLink!$U$132","v":132},null,null,{"$f":"(J53-D53)/D53","v":-0.74141473437041383},null,-0.20199275362318841]
[null,null,"Persons per Family Household",{"$f":"CntyDataLinkPrior10YearEstimate!$BF$132","v":2.29},{"$f":"CntyDataLinkPrior10YearEstimate!$BG$132","v":0.21},null,{"$f":"CntyDataLinkPrior5YearEstimates!$BF$132","v":2.34},{"$f":"CntyDataLinkPrior5YearEstimates!$BG$132","v":0.21},null,{"$f":"CntyDataLink!$BF$132","v":3.4381384790011351},{"$f":"CntyDataLink!$BG$132","v":0.47309778015967213},null,null,0.50137051484765727,null,0.46928994829108345]
[null,null,"Married-Couple Family Hh",{"$f":"CntyDataLinkPrior10YearEstimate!$X$132","v":2289},{"$f":"CntyDataLinkPrior10YearEstimate!$Y$132","v":363},null,{"$f":"CntyDataLinkPrior5YearEstimates!$X$132","v":667},{"$f":"CntyDataLinkPrior5YearEstimates!$Y$132","v":120},null,{"$f":"CntyDataLink!$X$132","v":678},{"$f":"CntyDataLink!$Y$132","v":112},null,null,-0.70380078636959376,null,1.6491754122938532E-2]
[null,null,"Single-Parent Family Hh",{"$f":"CntyDataLinkPrior10YearEstimate!$Z$132","v":2273},{"$f":"CntyDataLinkPrior10YearEstimate!$AA$132","v":362},null,{"$f":"CntyDataLinkPrior5YearEstimates!$Z$132","v":437},{"$f":"CntyDataLinkPrior5YearEstimates!$AA$132","v":125},null,{"$f":"CntyDataLink!$Z$132","v":203},{"$f":"CntyDataLink!$AA$132","v":72},null,null,-0.91069071711394634,null,-0.53546910755148747]
[null,null,"Non-Family Households",{"$f":"CntyDataLinkPrior10YearEstimate!$AF$132","v":333},{"$f":"CntyDataLinkPrior10YearEstimate!$AG$132","v":221},null,{"$f":"CntyDataLinkPrior5YearEstimates!$AF$132","v":598},{"$f":"CntyDataLinkPrior5YearEstimates!$AG$132","v":144},null,{"$f":"CntyDataLink!$AF$132","v":698},{"$f":"CntyDataLink!$AG$132","v":142},null,null,1.0960960960960962,null,0.16722408026755853]
[null,null,"Persons per Non-Family Hh",{"$f":"CntyDataLinkPrior10YearEstimate!$BH$132","v":2.58},{"$f":"CntyDataLinkPrior10YearEstimate!$BI$132","v":0.53},null,{"$f":"CntyDataLinkPrior5YearEstimates!$BH$132","v":2.6},{"$f":"CntyDataLinkPrior5YearEstimates!$BI$132","v":0.62},null,{"$f":"CntyDataLink!$BH$132","v":1.5229226361031518},{"$f":"CntyDataLink!$BI$132","v":0.52634635219617021},null,null,-0.40971990848715045,null,-0.41426052457571089]
[]
[]
[null,"As a result of changes in the American Community Survey, direct comparisons between the data should be made with caution."]
[]
[null,{"$f":"\"Source: \"&L20&\", \"&P20&\", and \"&S20&\" American Community Survey Table B11001\"","v":"Source: 2008-2012, 2013-2017, and 2018-2022 American Community Survey Table B11001"}]
[null,"POPULATION CHARACTERISTICS"]

{"sheet":"SchoolEnrolEduAttain","index":5,"n_rows":67,"n_cols":17,"rows_kept":67,"cut":false,"hidden":true,"merged":[[20,15,20,16],[49,15,49,16],[49,5,49,7],[20,5,20,7],[20,8,20,10],[20,11,20,13],[49,8,49,10]]}
[]
[null,null,{"$f":"CntyDataLink!A50","v":"Dublin"}]
[null,null,"SOCIAL CHARACTERISTICS"]
[]
[]
[]
[]
[]
[]
[]
[]
[]
[]
[]
[]
[]
[]
[]
[]
[]
[null,null,"School Enrollment",null,null,"2008-2012",null,null,"2013-2017",null,null,"2018-2022",null,null,null,"Statistically Significant Change"]
[null,null,null,null,null,"Estimate"," Margin of Error","Percent of Population","Estimate"," Margin of Error","Percent of Population","Estimate"," Margin of Error","Percent of Population",null,"2012-2022","2017-2022"]
[null,null,"Population 3 years and over",null,null,{"$f":"CntyDataLinkPrior10YearEstimate!$B$140","v":4070},{"$f":"CntyDataLinkPrior10YearEstimate!$C$140","v":132},null,{"$f":"CntyDataLinkPrior5YearEstimates!$B$140","v":4071},{"$f":"CntyDataLinkPrior5YearEstimates!$C$140","v":102},null,{"$f":"CntyDataLink!$B$140","v":0},{"$f":"CntyDataLink!$C$140","v":0},null,null,{"$f":"StatisticallySignificantCalcs!$A$45","v":"Y"},{"$f":"StatisticallySignificantCalcs!$J$45","v":"Y"}]
[null,null,"Population 3 years & over enrolled in school",null,null,{"$f":"CntyDataLinkPrior10YearEstimate!$D$140","v":716},{"$f":"CntyDataLinkPrior10YearEstimate!$E$140","v":137},{"$f":"F24/$F$23","v":0.17592137592137591},{"$f":"CntyDataLinkPrior5YearEstimates!$D$140","v":888},{"$f":"CntyDataLinkPrior5YearEstimates!$E$140","v":176},{"$f":"I24/$I$23","v":0.21812822402358142},{"$f":"CntyDataLink!$D$140","v":0},{"$f":"CntyDataLink!$E$140","v":0},{"$f":"L24/$L$23","v":{"$error":"#DIV/0!"}},null,{"$f":"StatisticallySignificantCalcs!$A$46","v":"Y"},{"$f":"StatisticallySignificantCalcs!$J$46","v":"Y"}]
[null,null,"Preprimary (Nursery, Preschool, Kindergarten)",null,null,{"$f":"CntyDataLinkPrior10YearEstimate!$F$140","v":67},{"$f":"CntyDataLinkPrior10YearEstimate!$G$140","v":65},1.6461916461916463E-2,{"$f":"CntyDataLinkPrior5YearEstimates!$F$140","v":137},{"$f":"CntyDataLinkPrior5YearEstimates!$G$140","v":103.07764064044152},{"$f":"I25/$I$23","v":3.3652665192827315E-2},{"$f":"CntyDataLink!$F$140","v":0},{"$f":"CntyDataLink!$G$140","v":0},{"$f":"L25/$L$23","v":{"$error":"#DIV/0!"}},null,{"$f":"StatisticallySignificantCalcs!$A$47","v":"Y"},{"$f":"StatisticallySignificantCalcs!$J$47","v":"Y"}]
[null,null,"        Nursery school and Preschool",null,null,{"$f":"CntyDataLinkPrior10YearEstimate!$H$140","v":44},{"$f":"CntyDataLinkPrior10YearEstimate!$I$140","v":51},1.0810810810810811E-2,{"$f":"CntyDataLinkPrior5YearEstimates!$H$140","v":88},{"$f":"CntyDataLinkPrior5YearEstimates!$I$140","v":89},2.1616310488823384E-2,{"$f":"CntyDataLink!$H$140","v":0},{"$f":"CntyDataLink!$I$140","v":0},{"$error":"#DIV/0!"},null,{"$f":"StatisticallySignificantCalcs!$A$48","v":"N"},{"$f":"StatisticallySignificantCalcs!$J$48","v":"N"}]
[null,null,"        Kindergarten",null,null,{"$f":"CntyDataLinkPrior10YearEstimate!$J$140","v":283},{"$f":"CntyDataLinkPrior10YearEstimate!$K$140","v":115},6.9533169533169528E-2,{"$f":"CntyDataLinkPrior5YearEstimates!$J$140","v":49},{"$f":"CntyDataLinkPrior5YearEstimates!$K$140","v":52},1.2036354704003931E-2,{"$f":"CntyDataLink!$J$140","v":0},{"$f":"CntyDataLink!$K$140","v":0},{"$error":"#DIV/0!"},null,{"$f":"StatisticallySignificantCalcs!$A$49","v":"Y"},{"$f":"StatisticallySignificantCalcs!$J$49","v":"N"}]
[null,null,"Elementary through High school",null,null,{"$f":"CntyDataLinkPrior10YearEstimate!$P$140","v":61},{"$f":"CntyDataLinkPrior10YearEstimate!$Q$140","v":51},1.4987714987714987E-2,{"$f":"CntyDataLinkPrior5YearEstimates!$P$140","v":605},{"$f":"CntyDataLinkPrior5YearEstimates!$Q$140","v":152.24979474534604},0.14861213461066078,{"$f":"CntyDataLink!$P$140","v":0},{"$f":"CntyDataLink!$Q$140","v":0},{"$error":"#DIV/0!"},null,{"$f":"StatisticallySignificantCalcs!$A$50","v":"Y"},{"$f":"StatisticallySignificantCalcs!$J$50","v":"Y"}]
[null,null,"        Elementary school (grades 1-8)",null,null,{"$f":"CntyDataLinkPrior10YearEstimate!$L$140","v":130},{"$f":"CntyDataLinkPrior10YearEstimate!$M$140","v":95},3.1941031941031942E-2,{"$f":"CntyDataLinkPrior5YearEstimates!$L$140","v":415},{"$f":"CntyDataLinkPrior5YearEstimates!$M$140","v":122.80065146407001},0.10194055514615574,{"$f":"CntyDataLink!$L$140","v":0},{"$f":"CntyDataLink!$M$140","v":0},{"$error":"#DIV/0!"},null,{"$f":"StatisticallySignificantCalcs!$A$51","v":"Y"},{"$f":"StatisticallySignificantCalcs!$J$51","v":"Y"}]
[null,null,"        High school (grades 9-12)",null,null,{"$f":"CntyDataLinkPrior10YearEstimate!$N$140","v":131},{"$f":"CntyDataLinkPrior10YearEstimate!$O$140","v":69},3.2186732186732188E-2,{"$f":"CntyDataLinkPrior5YearEstimates!$N$140","v":190},{"$f":"CntyDataLinkPrior5YearEstimates!$O$140","v":90},4.6671579464505036E-2,{"$f":"CntyDataLink!$N$140","v":0},{"$f":"CntyDataLink!$O$140","v":0},{"$error":"#DIV/0!"},null,{"$f":"StatisticallySignificantCalcs!$A$52","v":"Y"},{"$f":"StatisticallySignificantCalcs!$J$52","v":"Y"}]
[null,null,"College or Graduate School",null,null,{"$f":"CntyDataLinkPrior10YearEstimate!$R$140","v":0},{"$f":"CntyDataLinkPrior10YearEstimate!$S$140","v":11},0,{"$f":"CntyDataLinkPrior5YearEstimates!$R$140","v":146},{"$f":"CntyDataLinkPrior5YearEstimates!$S$140","v":83.198557679805958},3.5863424220093344E-2,{"$f":"CntyDataLink!$R$140","v":0},{"$f":"CntyDataLink!$S$140","v":0},{"$error":"#DIV/0!"},null,{"$f":"StatisticallySignificantCalcs!$A$53","v":"N"},{"$f":"StatisticallySignificantCalcs!$J$53","v":"Y"}]
[]
[null,null,{"$f":"\"Source: \"&F21&\", \"& I21&\" and \"&L21&\" American Community Survey Table B14001\"","v":"Source: 2008-2012, 2013-2017 and 2018-2022 American Community Survey Table B14001"}]
[]
[]
[]
[]
[]
[]
[]
[]
[]
[]
[]
[]
[]
[]
[]
[]
[null,null,"Educational Attainment",null,null,{"$f":"$F$21","v":"2008-2012"},null,null,{"$f":"$I$21","v":"2013-2017"},null,null,{"$f":"$L$21","v":"2018-2022"},null,null,null,"Statistically Significant Change"]
[null,null,null,null,null,"Estimate"," Margin of Error","Percent of Population","Estimate"," Margin of Error","Percent of Population","Estimate"," Margin of Error","Percent of Population",null,{"$f":"P22","v":"2012-2022"},"2017-2022"]
[null,null,"Population 25 years and over",null,null,{"$f":"CntyDataLinkPrior10YearEstimate!$V$140","v":3102},{"$f":"CntyDataLinkPrior10YearEstimate!$W$140","v":193},null,{"$f":"CntyDataLinkPrior5YearEstimates!$V$140","v":3011},{"$f":"CntyDataLinkPrior5YearEstimates!$W$140","v":192},null,{"$f":"CntyDataLink!$V$140","v":2763},{"$f":"CntyDataLink!$W$140","v":181},null,null,{"$f":"StatisticallySignificantCalcs!A54","v":"N"},{"$f":"StatisticallySignificantCalcs!$J$54","v":"N"}]
[null,null,"Less than 9th Grade",null,null,{"$f":"CntyDataLinkPrior10YearEstimate!$X$140","v":40},{"$f":"CntyDataLinkPrior10YearEstimate!$Y$140","v":36.728735344413913},{"$f":"F53/$F$52","v":1.2894906511927788E-2},{"$f":"CntyDataLinkPrior5YearEstimates!$X$140","v":78},{"$f":"CntyDataLinkPrior5YearEstimates!$Y$140","v":157.98417642283039},{"$f":"I53/$I$52","v":2.5905014945200928E-2},{"$f":"CntyDataLink!$X$140","v":41},{"$f":"CntyDataLink!$Y$140","v":43.312815655415427},{"$f":"L53/$L$52","v":1.4838943177705392E-2},null,{"$f":"StatisticallySignificantCalcs!A55","v":"N"},{"$f":"StatisticallySignificantCalcs!$J$55","v":"N"}]
[null,null,"9th to 12th Grade, no Diploma",null,null,{"$f":"CntyDataLinkPrior10YearEstimate!$Z$140","v":486},{"$f":"CntyDataLinkPrior10YearEstimate!$AA$140","v":159.80300372646317},{"$f":"F54/$F$52","v":0.15667311411992263},{"$f":"CntyDataLinkPrior5YearEstimates!$Z$140","v":428},{"$f":"CntyDataLinkPrior5YearEstimates!$AA$140","v":141.54857823376398},{"$f":"I54/$I$52","v":0.14214546662238459},{"$f":"CntyDataLink!$Z$140","v":297},{"$f":"CntyDataLink!$AA$140","v":109.65400129498239},{"$f":"L54/$L$52","v":0.10749185667752444},null,{"$f":"StatisticallySignificantCalcs!A56","v":"N"},{"$f":"StatisticallySignificantCalcs!$J$56","v":"N"}]
[null,null,"High School Graduate ",null,null,{"$f":"CntyDataLinkPrior10YearEstimate!$AB$140","v":1614},{"$f":"CntyDataLinkPrior10YearEstimate!$AC$140","v":198.01010075246163},0.52030947775628622,{"$f":"CntyDataLinkPrior5YearEstimates!$AB$140","v":1690},{"$f":"CntyDataLinkPrior5YearEstimates!$AC$140","v":182.87974190707948},0.56127532381268685,{"$f":"CntyDataLink!$AB$140","v":1320},{"$f":"CntyDataLink!$AC$140","v":228.97379762758882},0.4777415852334419,null,{"$f":"StatisticallySignificantCalcs!A57","v":"Y"},{"$f":"StatisticallySignificantCalcs!$J$57","v":"Y"}]
[null,null,"Some College, No Degree",null,null,{"$f":"CntyDataLinkPrior10YearEstimate!$AD$140","v":424},{"$f":"CntyDataLinkPrior10YearEstimate!$AE$140","v":142.42892964563063},0.13668600902643455,{"$f":"CntyDataLinkPrior5YearEstimates!$AD$140","v":316},{"$f":"CntyDataLinkPrior5YearEstimates!$AE$140","v":104.45573225055675},0.10494852208568582,{"$f":"CntyDataLink!$AD$140","v":451},{"$f":"CntyDataLink!$AE$140","v":132.40090634130871},0.16322837495475931,null,{"$f":"StatisticallySignificantCalcs!A58","v":"N"},{"$f":"StatisticallySignificantCalcs!$J$58","v":"N"}]
[null,null,"Associate Degree",null,null,{"$f":"CntyDataLinkPrior10YearEstimate!$AF$140","v":163},{"$f":"CntyDataLinkPrior10YearEstimate!$AG$140","v":84.077345343439575},5.2546744036105736E-2,{"$f":"CntyDataLinkPrior5YearEstimates!$AF$140","v":148},{"$f":"CntyDataLinkPrior5YearEstimates!$AG$140","v":79.158069708653201},4.9153105280637661E-2,{"$f":"CntyDataLink!$AF$140","v":217},{"$f":"CntyDataLink!$AG$140","v":104.44615837837216},7.8537821208830974E-2,null,{"$f":"StatisticallySignificantCalcs!A59","v":"N"},{"$f":"StatisticallySignificantCalcs!$J$59","v":"N"}]
[null,null,"Bachelor's Degree",null,null,{"$f":"CntyDataLinkPrior10YearEstimate!$AH$140","v":223},{"$f":"CntyDataLinkPrior10YearEstimate!$AI$140","v":81.21576201698781},7.188910380399742E-2,{"$f":"CntyDataLinkPrior5YearEstimates!$AH$140","v":190},{"$f":"CntyDataLinkPrior5YearEstimates!$AI$140","v":82.462112512353215},6.31019594818997E-2,{"$f":"CntyDataLink!$AH$140","v":282},{"$f":"CntyDataLink!$AI$140","v":87.418533504057365},0.10206297502714441,null,{"$f":"StatisticallySignificantCalcs!A60","v":"N"},{"$f":"StatisticallySignificantCalcs!$J$60","v":"N"}]
[null,null,"Graduate or Professional Degree",null,null,{"$f":"CntyDataLinkPrior10YearEstimate!$AJ$140","v":54},{"$f":"CntyDataLinkPrior10YearEstimate!$AK$140","v":41.42463035441596},1.7408123791102514E-2,{"$f":"CntyDataLinkPrior5YearEstimates!$AJ$140","v":91},{"$f":"CntyDataLinkPrior5YearEstimates!$AK$140","v":102.32790430767162},3.0222517436067752E-2,{"$f":"CntyDataLink!$AJ$140","v":100},{"$f":"CntyDataLink!$AK$140","v":60.959002616512684},3.6192544335866814E-2,null,{"$f":"StatisticallySignificantCalcs!A61","v":"N"},{"$f":"StatisticallySignificantCalcs!$J$61","v":"N"}]
[]
[null,null,"Percent of High School Graduate or Higher",null,null,null,null,{"$f":"SUM(F55:F59)/F52","v":0.79883945841392645},null,null,{"$f":"SUM(I55:I59)/I52","v":0.80870142809697776},null,null,{"$f":"SUM(L55:L59)/L52","v":0.85776330076004348}]
[null,null,"Percent of Bachelor's Degree or Higher",null,null,null,null,{"$f":"SUM(F58:F59)/F52","v":8.9297227595099934E-2},null,null,{"$f":"SUM(I58:I59)/I52","v":9.3324476917967455E-2},null,null,{"$f":"SUM(L58:L59)/L52","v":0.13825551936301123}]
[]
[null,null,{"$f":"\"Source: \"&F21&\", \"&I21&\" and \"&L21&\" American Community Survey Table B15002\"","v":"Source: 2008-2012, 2013-2017 and 2018-2022 American Community Survey Table B15002"},null,null,null,null,"Data from the American Community Survey are estimates"]
[]
[null,null,"As a result of changes in the American Community Survey, direct comparisons between the data should be made with caution."]
[null,null,"be made with caution."]

{"sheet":"HousingCharacteristics","index":6,"n_rows":112,"n_cols":16,"rows_kept":112,"cut":false,"hidden":true,"merged":[[29,14,29,15],[68,9,68,11],[68,12,68,13],[68,14,68,15],[85,14,85,15],[85,2,85,4],[85,6,85,8],[85,10,85,12],[29,2,29,4],[29,5,29,7],[29,8,29,10],[68,3,68,5],[68,6,68,8],[29,11,29,12]]}
[]
[null,{"$f":"CntyDataLink!$A35","v":"Dublin"}]
[]
[null,"HOUSING CHARACTERISTICS"]
[]
[]
[]
[]
[]
[]
[]
[]
[]
[]
[]
[]
[]
[]
[]
[]
[]
[]
[]
[]
[]
[]
[null,null,null,{"$f":"\"Source:  \"& \" \"&D69&\", \"&G69&\" and \"&J69& \" American Community Survey Table B25004; B25004; B25024; B25032\"","v":"Source:   2008-2012, 2013-2017 and 2018-2022 American Community Survey Table B25004; B25004; B25024; B25032"}]
[null,"Units by Tenure & Vacancy"]
[]
[null,null,"2008-2012",null,null,"2013-2017",null,null,"2018-2022",null,null,"Percent Change",null,null,"Statistically Significant Change"]
[null,null,"Estimate","Margin of Error","%","Estimate","Margin of Error","%","Estimate","Margin of Error","%","2012-2022","2017-2022",null,{"$f":"L31","v":"2012-2022"},"2017-2022"]
[null,"Total Units",{"$f":"CntyDataLinkPrior10YearEstimate!$B$108","v":1984},{"$f":"CntyDataLinkPrior5YearEstimates!$C$108","v":182},null,{"$f":"CntyDataLinkPrior5YearEstimates!$B$108","v":2002},{"$f":"CntyDataLinkPrior5YearEstimates!$C$108","v":182},null,{"$f":"CntyDataLink!$B$108","v":1832},{"$f":"CntyDataLink!$C$108","v":161},null,{"$f":"IF(I32=\"-\",\"-\",(I32-C32)/C32)","v":-7.6612903225806453E-2},{"$f":"IF(I32=\"-\",\"-\",(I32-F32)/F32)","v":-8.4915084915084912E-2},null,{"$f":"StatisticallySignificantCalcs!$A62","v":"N"},{"$f":"StatisticallySignificantCalcs!$J62","v":"N"}]
[null,"Occupied Units",{"$f":"CntyDataLinkPrior10YearEstimate!$D$108","v":1789},{"$f":"CntyDataLinkPrior5YearEstimates!$E$108","v":160},{"$f":"ROUND(C33/C32,2)*100&\"% of Total\"","v":"90% of Total"},{"$f":"CntyDataLinkPrior5YearEstimates!$D$108","v":1718},{"$f":"CntyDataLinkPrior5YearEstimates!$E$108","v":160},{"$f":"ROUND(F33/F32,2)*100&\"% of Total\"","v":"86% of Total"},{"$f":"CntyDataLink!$D$108","v":1579},{"$f":"CntyDataLink!$E$108","v":132},{"$f":"ROUND(I33/I32,2)*100&\"% of Total\"","v":"86% of Total"},{"$f":"IF(I33=\"-\",\"-\",(I33-C33)/C33)","v":-0.11738401341531582},{"$f":"IF(I33=\"-\",\"-\",(I33-F33)/F33)","v":-8.0908032596041915E-2},null,{"$f":"StatisticallySignificantCalcs!$A63","v":"Y"},{"$f":"StatisticallySignificantCalcs!$J63","v":"N"}]
[null,"Owner Occupied",{"$f":"CntyDataLinkPrior10YearEstimate!$F$108","v":1218},{"$f":"CntyDataLinkPrior5YearEstimates!$G$108","v":174},{"$f":"ROUND(C34/C33,2)*100&\"% of Occ.\"","v":"68% of Occ."},{"$f":"CntyDataLinkPrior5YearEstimates!$F$108","v":1225},{"$f":"CntyDataLinkPrior5YearEstimates!$G$108","v":174},{"$f":"ROUND(F34/F33,2)*100&\"% of Occ.\"","v":"71% of Occ."},{"$f":"CntyDataLink!$F$108","v":1011},{"$f":"CntyDataLink!$G$108","v":128},{"$f":"ROUND(I34/I33,2)*100&\"% of Occ.\"","v":"64% of Occ."},{"$f":"IF(I34=\"-\",\"-\",(I34-C34)/C34)","v":-0.16995073891625614},-0.17469387755102042,null,{"$f":"StatisticallySignificantCalcs!$A64","v":"N"},{"$f":"StatisticallySignificantCalcs!$J64","v":"N"}]
[null,"Renter Occupied",{"$f":"CntyDataLinkPrior10YearEstimate!$H$108","v":571},{"$f":"CntyDataLinkPrior5YearEstimates!$I$108","v":124},{"$f":"ROUND(C35/C33,2)*100&\"% of Occ.\"","v":"32% of Occ."},{"$f":"CntyDataLinkPrior5YearEstimates!$H$108","v":493},{"$f":"CntyDataLinkPrior5YearEstimates!$I$108","v":124},{"$f":"ROUND(F35/F33,2)*100&\"% of Occ.\"","v":"29% of Occ."},{"$f":"CntyDataLink!$H$108","v":568},{"$f":"CntyDataLink!$I$108","v":122},{"$f":"ROUND(I35/I33,2)*100&\"% of Occ.\"","v":"36% of Occ."},{"$f":"IF(I35=\"-\",\"-\",(I35-C35)/C35)","v":-5.2539404553415062E-3},0.15212981744421908,null,{"$f":"StatisticallySignificantCalcs!$A65","v":"N"},{"$f":"StatisticallySignificantCalcs!$J65","v":"N"}]
[null,"Vacant Units",{"$f":"CntyDataLinkPrior10YearEstimate!$J$108","v":195},{"$f":"CntyDataLinkPrior5YearEstimates!$K$108","v":124},{"$f":"ROUND(C36/C32,2)*100&\"% of Total\"","v":"10% of Total"},{"$f":"CntyDataLinkPrior5YearEstimates!$J$108","v":284},{"$f":"CntyDataLinkPrior5YearEstimates!$K$108","v":124},{"$f":"ROUND(F36/F32,2)*100&\"% of Total\"","v":"14% of Total"},{"$f":"CntyDataLink!$J$108","v":253},{"$f":"CntyDataLink!$K$108","v":105},{"$f":"ROUND(I36/I32,2)*100&\"% of Total\"","v":"14% of Total"},{"$f":"IF(I36=\"-\",I36,VALUE((I36-C36)/C36))","v":0.29743589743589743},-0.10915492957746478,null,{"$f":"StatisticallySignificantCalcs!$A66","v":"N"},{"$f":"StatisticallySignificantCalcs!$J66","v":"N"}]
[null,"Vacant For Sale",{"$f":"CntyDataLinkPrior10YearEstimate!$P$108","v":38},{"$f":"CntyDataLinkPrior5YearEstimates!$Q$108","v":68},{"$f":"ROUND(C37/(C$36),3)*100&\"% Vac.\"","v":"19.5% Vac."},{"$f":"CntyDataLinkPrior5YearEstimates!$P$108","v":54},{"$f":"CntyDataLinkPrior5YearEstimates!$Q$108","v":68},{"$f":"ROUND(F37/(F$36),3)*100&\"% Vac.\"","v":"19% Vac."},{"$f":"CntyDataLink!$P$108","v":9},{"$f":"CntyDataLink!$Q$108","v":17},{"$f":"ROUND(I37/(I$36),3)*100&\"% Vac.\"","v":"3.6% Vac."},{"$f":"IF(I37=\"-\",I37,VALUE((I37-C37)/C37))","v":-0.76315789473684215},-0.83333333333333337,null,{"$f":"StatisticallySignificantCalcs!$A67","v":"N"},{"$f":"StatisticallySignificantCalcs!$J67","v":"N"}]
[null,"Vacant For Rent",{"$f":"CntyDataLinkPrior10YearEstimate!$L$108","v":10},{"$f":"CntyDataLinkPrior5YearEstimates!$M$108","v":11},{"$f":"ROUND(C38/(C$36),3)*100&\"% Vac.\"","v":"5.1% Vac."},{"$f":"CntyDataLinkPrior5YearEstimates!$L$108","v":0},{"$f":"CntyDataLinkPrior5YearEstimates!$M$108","v":11},{"$f":"ROUND(F38/(F$36),3)*100&\"% Vac.\"","v":"0% Vac."},{"$f":"CntyDataLink!$L$108","v":0},{"$f":"CntyDataLink!$M$108","v":12},{"$f":"ROUND(I38/(I$36),3)*100&\"% Vac.\"","v":"0% Vac."},{"$f":"IF(I38=\"-\",I38,VALUE((I38-C38)/C38))","v":-1},{"$error":"#DIV/0!"},null,{"$f":"StatisticallySignificantCalcs!$A68","v":"N"},{"$f":"StatisticallySignificantCalcs!$J68","v":"N"}]
[null,"Vacant Seasonal",{"$f":"CntyDataLinkPrior10YearEstimate!$T$108","v":76},{"$f":"CntyDataLinkPrior5YearEstimates!$U$108","v":68},{"$f":"ROUND(C39/(C$36),3)*100&\"% Vac.\"","v":"39% Vac."},{"$f":"CntyDataLinkPrior5YearEstimates!$T$108","v":85},{"$f":"CntyDataLinkPrior5YearEstimates!$U$108","v":68},{"$f":"ROUND(F39/(F$36),3)*100&\"% Vac.\"","v":"29.9% Vac."},{"$f":"CntyDataLink!$T$108","v":169},{"$f":"CntyDataLink!$U$108","v":98},{"$f":"ROUND(I39/(I$36),3)*100&\"% Vac.\"","v":"66.8% Vac."},{"$f":"IF(I39=\"-\",I39,VALUE((I39-C39)/C39))","v":1.2236842105263157},0.9882352941176471,null,{"$f":"StatisticallySignificantCalcs!$A69","v":"N"},{"$f":"StatisticallySignificantCalcs!$J69","v":"N"}]
[]
[null,"Data from the American Community Survey are estimates"]
[]
[]
[null,"HOUSING CHARACTERISTICS"]
[]
[]
[]
[]
[]
[]
[]
[]
[]
[]
[]
[]
[]
[]
[]
[]
[]
[]
[]
[]
[null,null,null,{"$f":"\"Source: \"& \" \"&D69&\", \"&G69&\" and \"&J69& \"  American Community Survey Table B25024; B25032\"","v":"Source:  2008-2012, 2013-2017 and 2018-2022  American Community Survey Table B25024; B25032"}]
[]
[null,null,"Units by Type"]
[]
[null,null,null,{"$f":"C30","v":"2008-2012"},null,null,{"$f":"$F$30","v":"2013-2017"},null,null,{"$f":"$I$30","v":"2018-2022"},null,null,"Percent Change",null,"Statistically Significant Change"]
[null,null,null,"Estimate","Margin of Error","% of Total","Estimate","Margin of Error","% of Total","Estimate","Margin of Error","% of Total",{"$f":"L31","v":"2012-2022"},"2017-2022",{"$f":"L31","v":"2012-2022"},"2017-2022"]
[null,null,"Total Units",{"$f":"CntyDataLinkPrior10YearEstimate!$B$108","v":1984},{"$f":"CntyDataLinkPrior10YearEstimate!$C$108","v":155},null,{"$f":"CntyDataLinkPrior5YearEstimates!$B$108","v":2002},{"$f":"CntyDataLinkPrior5YearEstimates!$C$108","v":182},null,{"$f":"CntyDataLink!$B$108","v":1832},{"$f":"CntyDataLink!$C$108","v":161},null,null,null,{"$f":"StatisticallySignificantCalcs!$A70","v":"N"},{"$f":"StatisticallySignificantCalcs!$J70","v":"N"}]
[null,null,"Single Family Units",{"$f":"CntyDataLinkPrior10YearEstimate!$AT$108","v":1098},{"$f":"CntyDataLinkPrior10YearEstimate!$AU$108","v":170},{"$f":"IF(D72=\"-\",\"-\",($D$72/$D$71))","v":0.55342741935483875},{"$f":"CntyDataLinkPrior5YearEstimates!$AT$108","v":1161},{"$f":"CntyDataLinkPrior5YearEstimates!$AU$108","v":170},{"$f":"IF(G72=\"-\",\"-\",($G$72/$G$71))","v":0.57992007992007988},{"$f":"CntyDataLink!$AT$108","v":1132},{"$f":"CntyDataLink!$AU$108","v":129},{"$f":"IF(J72=\"-\",\"-\",($J$72/$J$71))","v":0.61790393013100442},{"$f":"IF(J72=\"-\",\"-\",($J72-$D72)/$D72)","v":3.0965391621129327E-2},{"$f":"IF(J72=\"-\",\"-\",($J72-$G72)/$G72)","v":-2.4978466838931956E-2},{"$f":"StatisticallySignificantCalcs!$A71","v":"N"},{"$f":"StatisticallySignificantCalcs!$J71","v":"N"}]
[null,null,"SF Owner Occ.",{"$f":"CntyDataLinkPrior10YearEstimate!$AF$108","v":795},{"$f":"CntyDataLinkPrior10YearEstimate!$AG$108","v":168},null,{"$f":"CntyDataLinkPrior5YearEstimates!$AF$108","v":832},{"$f":"CntyDataLinkPrior5YearEstimates!$AG$108","v":141},null,{"$f":"CntyDataLink!$AF$108","v":825},{"$f":"CntyDataLink!$AG$108","v":118},null,null,null,{"$f":"StatisticallySignificantCalcs!$A72","v":"N"},{"$f":"StatisticallySignificantCalcs!$J72","v":"N"}]
[null,null,"SF Renter Occ.",{"$f":"CntyDataLinkPrior10YearEstimate!$AN$108","v":139},{"$f":"CntyDataLinkPrior10YearEstimate!$AO$108","v":87},null,{"$f":"CntyDataLinkPrior5YearEstimates!$AN$108","v":128},{"$f":"CntyDataLinkPrior5YearEstimates!$AO$108","v":64},null,{"$f":"CntyDataLink!$AN$108","v":136},{"$f":"CntyDataLink!$AO$108","v":75},null,null,null,{"$f":"StatisticallySignificantCalcs!$A73","v":"N"},{"$f":"StatisticallySignificantCalcs!$J73","v":"N"}]
[null,null,"Multi-family Units",{"$f":"CntyDataLinkPrior10YearEstimate!$AV$108","v":457},{"$f":"CntyDataLinkPrior10YearEstimate!$AW$108","v":148.39811319555247},{"$f":"IF(D75=\"-\",\"-\",$D$75/$D$71)","v":0.23034274193548387},{"$f":"CntyDataLinkPrior5YearEstimates!$AV$108","v":364},{"$f":"CntyDataLinkPrior5YearEstimates!$AW$108","v":122.37646832622684},{"$f":"IF(G75=\"-\",\"-\",$G$75/$G$71)","v":0.18181818181818182},{"$f":"CntyDataLink!$AV$108","v":480},{"$f":"CntyDataLink!$AW$108","v":135.07035203922436},{"$f":"IF(J75=\"-\",\"-\",$J$75/$J$71)","v":0.26200873362445415},{"$f":"IF(J75=\"-\",\"-\",($J75-$D75)/$D75)","v":5.0328227571115977E-2},{"$f":"IF(J75=\"-\",\"-\",($J75-$G75)/$G75)","v":0.31868131868131866},{"$f":"StatisticallySignificantCalcs!$A74","v":"N"},{"$f":"StatisticallySignificantCalcs!$J74","v":"N"}]
[null,null,"MF Owner Occ.",{"$f":"CntyDataLinkPrior10YearEstimate!$AH$108","v":65},{"$f":"CntyDataLinkPrior10YearEstimate!$AI$108","v":47.592016137163178},null,{"$f":"CntyDataLinkPrior5YearEstimates!$AH$108","v":8},{"$f":"CntyDataLinkPrior5YearEstimates!$AI$108","v":29.916550603303182},null,{"$f":"CntyDataLink!$AH$108","v":16},{"$f":"CntyDataLink!$AI$108","v":35},null,null,null,{"$f":"StatisticallySignificantCalcs!$A75","v":"N"},{"$f":"StatisticallySignificantCalcs!$J75","v":"N"}]
[null,null,"MF Renter Occ.",{"$f":"CntyDataLinkPrior10YearEstimate!$AP$108","v":361},{"$f":"CntyDataLinkPrior10YearEstimate!$AQ$108","v":131.93559034619886},null,{"$f":"CntyDataLinkPrior5YearEstimates!$AP$108","v":292},{"$f":"CntyDataLinkPrior5YearEstimates!$AQ$108","v":109.06878563548784},null,{"$f":"CntyDataLink!$AP$108","v":404},{"$f":"CntyDataLink!$AQ$108","v":125.50298801223818},null,null,null,{"$f":"StatisticallySignificantCalcs!$A76","v":"N"},{"$f":"StatisticallySignificantCalcs!$J76","v":"N"}]
[null,null,"Mobile Home & Other",{"$f":"CntyDataLinkPrior10YearEstimate!$AX$108","v":429},{"$f":"CntyDataLinkPrior10YearEstimate!$AY$108","v":127.47548783981962},{"$f":"IF(D78=\"-\",\"-\",($D$78/$D$71))","v":0.21622983870967741},{"$f":"CntyDataLinkPrior5YearEstimates!$AX$108","v":477},{"$f":"CntyDataLinkPrior5YearEstimates!$AY$108","v":135.44740676735012},{"$f":"IF(G78=\"-\",\"-\",($G$78/$G$71))","v":0.23826173826173827},{"$f":"CntyDataLink!$AX$108","v":220},{"$f":"CntyDataLink!$AY$108","v":91.787798753429101},{"$f":"IF(J78=\"-\",\"-\",($J$78/$J$71))","v":0.12008733624454149},{"$f":"IF(J78=\"-\",\"-\",($J78-$D78)/$D78)","v":-0.48717948717948717},{"$f":"IF(J78=\"-\",\"-\",($J78-$G78)/$G78)","v":-0.53878406708595383},{"$f":"StatisticallySignificantCalcs!$A77","v":"Y"},{"$f":"StatisticallySignificantCalcs!$J77","v":"Y"}]
[]
[null,"Data from the American Community Survey are estimates"]
[]
[]
[null,"Units by Number of Bedrooms "]
[null,null,null,{"$f":"\"Source: \"& \" \"&D69&\", \"&G69&\" and \"&J69& \" American Community Survey Table B25041\"","v":"Source:  2008-2012, 2013-2017 and 2018-2022 American Community Survey Table B25041"}]
[]
[null,null,"2008-2012",null,null,null,"2013-2017",null,null,null,"2018-2022",null,null,null,"Statistically Significant Change"]
[null,"Bedrooms","Estimate","Margin of Error","% of Total",null,"Estimate","Margin of Error","% of Total",null,"Estimate","Margin of Error","% of Total",null,{"$f":"O70","v":"2012-2022"},"2017-2022"]
[null,"No Bedrooms",{"$f":"CntyDataLinkPrior10YearEstimate!$BR$108","v":0},{"$f":"CntyDataLinkPrior10YearEstimate!$BS$108","v":0},{"$f":"C88/SUM($C$88:$C$92)","v":{"$error":"#DIV/0!"}},null,{"$f":"CntyDataLinkPrior5YearEstimates!$BR$108","v":13},{"$f":"CntyDataLinkPrior5YearEstimates!$BS$108","v":20},{"$f":"G88/SUM($G$88:$G$92)","v":6.8169900367068695E-3},null,{"$f":"CntyDataLink!$BT$108","v":22},{"$f":"CntyDataLink!$BU$108","v":36},{"$f":"K88/SUM($K$88:$K$92)","v":1.2008733624454149E-2},null,{"$f":"StatisticallySignificantCalcs!$A78","v":"N"},{"$f":"StatisticallySignificantCalcs!$J78","v":"N"}]
[null,"1 Bedroom",{"$f":"CntyDataLinkPrior10YearEstimate!$BT$108","v":0},{"$f":"CntyDataLinkPrior10YearEstimate!$BU$108","v":0},{"$f":"C89/SUM($C$88:$C$92)","v":{"$error":"#DIV/0!"}},null,{"$f":"CntyDataLinkPrior5YearEstimates!$BT$108","v":289},{"$f":"CntyDataLinkPrior5YearEstimates!$BU$108","v":106},{"$f":"G89/SUM($G$88:$G$92)","v":0.15154693235448349},null,{"$f":"CntyDataLink!$BV$108","v":324},{"$f":"CntyDataLink!$BW$108","v":105},{"$f":"K89/SUM($K$88:$K$92)","v":0.17685589519650655},null,{"$f":"StatisticallySignificantCalcs!$A79","v":"Y"},{"$f":"StatisticallySignificantCalcs!$J79","v":"N"}]
[null,"2 Bedrooms",{"$f":"CntyDataLinkPrior10YearEstimate!$BV$108","v":0},{"$f":"CntyDataLinkPrior10YearEstimate!$BW$108","v":0},{"$f":"C90/SUM($C$88:$C$92)","v":{"$error":"#DIV/0!"}},null,{"$f":"CntyDataLinkPrior5YearEstimates!$BV$108","v":625},{"$f":"CntyDataLinkPrior5YearEstimates!$BW$108","v":180},{"$f":"G90/SUM($G$88:$G$92)","v":0.32773990561090721},null,{"$f":"CntyDataLink!$BX$108","v":650},{"$f":"CntyDataLink!$BY$108","v":142},{"$f":"K90/SUM($K$88:$K$92)","v":0.35480349344978168},null,{"$f":"StatisticallySignificantCalcs!$A80","v":"Y"},{"$f":"StatisticallySignificantCalcs!$J80","v":"N"}]
[null,"3 Bedrooms",{"$f":"CntyDataLinkPrior10YearEstimate!$BX$108","v":0},{"$f":"CntyDataLinkPrior10YearEstimate!$BY$108","v":0},{"$f":"C91/SUM($C$88:$C$92)","v":{"$error":"#DIV/0!"}},null,{"$f":"CntyDataLinkPrior5YearEstimates!$BX$108","v":767},{"$f":"CntyDataLinkPrior5YearEstimates!$BY$108","v":155},{"$f":"G91/SUM($G$88:$G$92)","v":0.40220241216570529},null,{"$f":"CntyDataLink!$BZ$108","v":661},{"$f":"CntyDataLink!$CA$108","v":130},{"$f":"K91/SUM($K$88:$K$92)","v":0.36080786026200873},null,{"$f":"StatisticallySignificantCalcs!$A81","v":"Y"},{"$f":"StatisticallySignificantCalcs!$J81","v":"N"}]
[null,"4+ Bedrooms",{"$f":"CntyDataLinkPrior10YearEstimate!$BZ$108","v":0},{"$f":"CntyDataLinkPrior10YearEstimate!$CA$108","v":0},{"$f":"C92/SUM($C$88:$C$92)","v":{"$error":"#DIV/0!"}},null,{"$f":"CntyDataLinkPrior5YearEstimates!$BZ$108","v":213},{"$f":"CntyDataLinkPrior5YearEstimates!$CA$108","v":94},{"$f":"G92/SUM($G$88:$G$92)","v":0.11169375983219716},null,{"$f":"CntyDataLink!$CB$108","v":175},{"$f":"CntyDataLink!$CC$108","v":79.906195003891909},{"$f":"K92/SUM($K$88:$K$92)","v":9.5524017467248909E-2},null,{"$f":"StatisticallySignificantCalcs!$A82","v":"Y"},{"$f":"StatisticallySignificantCalcs!$J82","v":"N"}]
[]
[]
[null,"Data from the American Community Survey are estimates"]
[]
[null,"Units by Year Built   "]
[null,{"$f":"\"Source: \"&K86& \" American Community Survey Table B25034\"","v":"Source: 2018-2022 American Community Survey Table B25034"}]
[]
[null,null,null,"Year Built",null,null,"Units  ",null,"% of Total",null,"Margin of Error"]
[null,null,null,null,null,"2014 or later",{"$f":"CntyDataLink!$AZ$108","v":0},null,{"$f":"G101/SUM($G$101:$G$110)","v":0},null,{"$f":"CntyDataLink!$BA$108","v":12}]
[null,null,null,null,null,"2010 through 2013",{"$f":"CntyDataLink!$BB$108","v":26},null,{"$f":"G102/SUM($G$101:$G$110)","v":1.4192139737991267E-2},null,{"$f":"CntyDataLink!$BC$108","v":34}]
[null,null,null,null,null,"2000 through 2009",{"$f":"CntyDataLink!$BD$108","v":199},null,0.10862445414847162,null,{"$f":"CntyDataLink!$BE$108","v":82}]
[null,null,null,null,null,"1990 through 1999",{"$f":"CntyDataLink!$BF$108","v":282},null,0.15393013100436681,null,{"$f":"CntyDataLink!$BG$108","v":98}]
[null,null,null,null,null,"1980 through 1989",{"$f":"CntyDataLink!$BH$108","v":328},null,0.17903930131004367,null,{"$f":"CntyDataLink!$BI$108","v":109}]
[null,null,null,null,null,"1970 through 1979",{"$f":"CntyDataLink!$BJ$108","v":398},null,0.21724890829694324,null,{"$f":"CntyDataLink!$BK$108","v":135}]
[null,null,null,null,null,"1960 through 1969",{"$f":"CntyDataLink!$BL$108","v":43},null,2.3471615720524017E-2,null,{"$f":"CntyDataLink!$BM$108","v":31}]
[null,null,null,null,null,"1950 through 1959",{"$f":"CntyDataLink!$BN$108","v":131},null,7.1506550218340612E-2,null,{"$f":"CntyDataLink!$BO$108","v":72}]
[null,null,null,null,null,"1940 through 1949",{"$f":"CntyDataLink!$BP$108","v":6},null,3.2751091703056767E-3,null,{"$f":"CntyDataLink!$BQ$108","v":11}]
[null,null,null,null,null,"1939 and earlier",{"$f":"CntyDataLink!$BR$108","v":419},null,0.22871179039301309,null,{"$f":"CntyDataLink!$BS$108","v":116}]
[]
[null,"Data from the American Community Survey are estimates"]

{"sheet":"CntyDataLink","index":7,"n_rows":167,"n_cols":16384,"rows_kept":167,"cut":false,"hidden":true,"merged":[]}
[1,{"$f":"A1+1","v":2},{"$f":"B1+1","v":3},4,5,6,7,8,9,10,11,12,13,14,15,{"$f":"O1+1","v":16},17,18,19,20,21,22,23,24,25,26,27,28,29,30,31,32,33,34,35,36,37,38,39,40,41,42,43,44,45,46,47,48,49,50,51,52,53,54,55,56,57,58,59,60,61,62,63,64,65,66,{"$f":"BN1+1","v":67},68,69,70,71,72,73,74,75,76,77,78,79,80,81,82,83,84,85,86,87,88,89,90,91,92,93,94,95,96,97,98,99,100,101,102,103,104,105,106,107,108,109,110,111,112,113,114,115,116,117,118,119,120,121,122,123,124,125,126,127,128,129,130,{"$f":"DZ1+1","v":131},132,133,134,135,136,137,138,139,140,141,142,143,144,145,146,147,148,149,150,151,152,153,154,155,156,157,158,159,160,161,162,163,164,165,166,167,168,169,170,171,172,173,174,175,176,177,178,179,180,181,182,183,184,185,186,187,188,189,190,191,192,193,194,{"$f":"GL1+1","v":195},196,197,198,199,200,201,202,203,204,205,206,207,208,209,210,211,212,213,214,215,216,217,218,219,220,221,222,223,224,225,226,227,228,229,230,231,232,233,234,235,236,237,238,239,240,241,242,243,244,245,246,247,248,249,250,251,252,253,254,255]
[]
["Census 1990 Data -           Query Name:  DPCnty90Census"]
["TownName","Cnty_Code","Census_Cnty_Code","LandAcres","WaterAcres","HousingUnits90Cen","Persons90Cen","Families90Cen","Households90cen","MalePop90cen","FemalePop90cen","WhitePop","BlackPop","AmerIndianPop","AsianPIPop","OtherRacePop","HispanicOrPop","AgeUnder15_90cen","Age15to24_90cen","Age25to34_90cen","Age35to44_90cen","Age45to54_90cen","Age55to64_90cen","Age65to74_90cen","Age75andOver_90cen","PersonsInHH90cen","PersonsInFamHH90cen","PersonsInGC","PersonsPerHH90cen","PersonsPerFam90Cen","SinglePersonHH90cen","MarriedCoupleHH90cen","SingleParentHH90cen","NonFamilyHH90cen","TotalHousingUnits","OccupiedHousingUnits","VacantHousingUnits","OwnerOccHU","RenterOccHU","VacantForRent90","VacantForSale90","VacantSeasonalRec","SingFamHU90cen","MultiFamHU90cen","MobileHom90cen","SingFamOwnHU90cen","MultiFamOwnHU90cen","MobileHomOwnHU90cen","SingFamRntrHU90cen","MultiFamRntrHU90cen","MobileHomRntrHU90cen","HU<5yrs90cen","HU5to20yrs90cen","HU20to50yrs90cen","HU>50yrs90cen","Units0Bedroom90cen","Units1Bedroom90cen","Units2Bedroom90cen","Units3Bedroom90cen","Units4+Bedroom90cen","HI<5K","HI5Kto10K","HI10Kto15K","HI15Kto25K","HI25Kto35K","HI35Kto50K","HI50Kto75K","HI75Kto100K","HI>100K","MedHI","HH<25HI<5K","HH<25HI5Kto10K","HH<25HI10Kto15K","HH<25HI15Kto25K","HH<25HI25Kto35K","HH<25HI35Kto50K","HH<25HI50Kto75K","HH<25HI75Kto100K","HH<25HI>100K","HH25to34HI<5K","HH25to34HI5Kto10K","HH25to34HI10Kto15K","HH25to34HI15Kto25K","HH25to34HI25Kto35K","HH25to34HI35Kto50K","HH25to34HI50Kto75K","HH25to34HI75Kto100K","HH25to34HI>100K","HH35to44HI<5K","HH35to44HI5Kto10K","HH35to44HI10Kto15K","HH35to44HI15Kto25K","HH35to44HI25Kto35K","HH35to44HI35Kto50K","HH35to44HI50Kto75K","HH35to44HI75Kto100K","HH35to44HI>100K","HH45to54HI<5K","HH45to54HI5Kto10K","HH45to54HI10Kto15K","HH45to54HI15Kto25K","HH45to54HI25Kto35K","HH45to54HI35Kto50K","HH45to54HI50Kto75K","HH45to54HI75Kto100K","HH45to54HI>100K","HH55to64HI<5K","HH55to64HI5Kto10K","HH55to64HI10Kto15K","HH55to64HI15Kto25K","HH55to64HI25Kto35K","HH55to64HI35Kto50K","HH55to64HI50Kto75K","HH55to64HI75Kto100K","HH55to64HI>100K","HH65to74HI<5K","HH65to74HI5Kto10K","HH65to74HI10Kto15K","HH65to74HI15Kto25K","HH65to74HI25Kto35K","HH65to74HI35Kto50K","HH65to74HI50Kto75K","HH65to74HI75Kto100K","HH65to74HI>100K","HH>75HI<5K","HH>75HI5Kto10K","HH>75HI10Kto15K","HH>75HI15Kto25K","HH>75HI25Kto35K","HH>75HI35Kto50K","HH>75HI50Kto75K","HH>75HI75Kto100K","HH>75HI>100K","SchoolEnrollment1thru12","Pop25andOver","HSGradorHigher","CollGradorHigher","NativePop","ForeignBornPop","BornStateOfRes","NativePop2","ForeignBornPop2","DroveAlone","CarPooled","PublicTranspt","Walked","OtherMeans","WorkedAtHome","HHInc<10K","HHInc10to15K","HHInc15to25K","HHInc25to35K","HHInc35to50K","HHInc50to75K","HHInc75to100K","HHInc100to150K","HHInc>150K"]
[{"$f":"VLOOKUP(DropDownList!$A$27,CntyQuery!$A$4:$FI$26,A1)","v":"Dublin"},{"$f":"VLOOKUP(DropDownList!$A$27,CntyQuery!$A$4:$FI$26,B1)","v":5015},{"$f":"VLOOKUP(DropDownList!$A$27,CntyQuery!$A$4:$FI$26,C1)","v":"19140"},{"$f":"VLOOKUP(DropDownList!$A$27,CntyQuery!$A$4:$FI$26,D1)","v":17852.14},{"$f":"VLOOKUP(DropDownList!$A$27,CntyQuery!$A$4:$FI$26,E1)","v":700.89},{"$f":"VLOOKUP(DropDownList!$A$27,CntyQuery!$A$4:$FI$26,F1)","v":651},{"$f":"VLOOKUP(DropDownList!$A$27,CntyQuery!$A$4:$FI$26,G1)","v":1474},{"$f":"VLOOKUP(DropDownList!$A$27,CntyQuery!$A$4:$FI$26,H1)","v":408},{"$f":"VLOOKUP(DropDownList!$A$27,CntyQuery!$A$4:$FI$26,I1)","v":521},{"$f":"VLOOKUP(DropDownList!$A$27,CntyQuery!$A$4:$FI$26,J1)","v":749},{"$f":"VLOOKUP(DropDownList!$A$27,CntyQuery!$A$4:$FI$26,K1)","v":725},{"$f":"VLOOKUP(DropDownList!$A$27,CntyQuery!$A$4:$FI$26,L1)","v":1451},{"$f":"VLOOKUP(DropDownList!$A$27,CntyQuery!$A$4:$FI$26,M1)","v":4},{"$f":"VLOOKUP(DropDownList!$A$27,CntyQuery!$A$4:$FI$26,N1)","v":6},{"$f":"VLOOKUP(DropDownList!$A$27,CntyQuery!$A$4:$FI$26,O1)","v":10},{"$f":"VLOOKUP(DropDownList!$A$27,CntyQuery!$A$4:$FI$26,P1)","v":3},{"$f":"VLOOKUP(DropDownList!$A$27,CntyQuery!$A$4:$FI$26,Q1)","v":10},{"$f":"VLOOKUP(DropDownList!$A$27,CntyQuery!$A$4:$FI$26,R1)","v":339},{"$f":"VLOOKUP(DropDownList!$A$27,CntyQuery!$A$4:$FI$26,S1)","v":151},{"$f":"VLOOKUP(DropDownList!$A$27,CntyQuery!$A$4:$FI$26,T1)","v":215},{"$f":"VLOOKUP(DropDownList!$A$27,CntyQuery!$A$4:$FI$26,U1)","v":266},{"$f":"VLOOKUP(DropDownList!$A$27,CntyQuery!$A$4:$FI$26,V1)","v":178},{"$f":"VLOOKUP(DropDownList!$A$27,CntyQuery!$A$4:$FI$26,W1)","v":160},{"$f":"VLOOKUP(DropDownList!$A$27,CntyQuery!$A$4:$FI$26,X1)","v":99},{"$f":"VLOOKUP(DropDownList!$A$27,CntyQuery!$A$4:$FI$26,Y1)","v":66},{"$f":"VLOOKUP(DropDownList!$A$27,CntyQuery!$A$4:$FI$26,Z1)","v":1385},{"$f":"VLOOKUP(DropDownList!$A$27,CntyQuery!$A$4:$FI$26,AA1)","v":1250},{"$f":"VLOOKUP(DropDownList!$A$27,CntyQuery!$A$4:$FI$26,AB1)","v":89},{"$f":"VLOOKUP(DropDownList!$A$27,CntyQuery!$A$4:$FI$26,AC1)","v":2.6583493282149711},{"$f":"VLOOKUP(DropDownList!$A$27,CntyQuery!$A$4:$FI$26,AD1)","v":3.0637254901960786},{"$f":"VLOOKUP(DropDownList!$A$27,CntyQuery!$A$4:$FI$26,AE1)","v":96},{"$f":"VLOOKUP(DropDownList!$A$27,CntyQuery!$A$4:$FI$26,AF1)","v":368},{"$f":"VLOOKUP(DropDownList!$A$27,CntyQuery!$A$4:$FI$26,AG1)","v":40},{"$f":"VLOOKUP(DropDownList!$A$27,CntyQuery!$A$4:$FI$26,AH1)","v":17},{"$f":"VLOOKUP(DropDownList!$A$27,CntyQuery!$A$4:$FI$26,AI1)","v":651},{"$f":"VLOOKUP(DropDownList!$A$27,CntyQuery!$A$4:$FI$26,AJ1)","v":521},{"$f":"VLOOKUP(DropDownList!$A$27,CntyQuery!$A$4:$FI$26,AK1)","v":130},{"$f":"VLOOKUP(DropDownList!$A$27,CntyQuery!$A$4:$FI$26,AL1)","v":401},{"$f":"VLOOKUP(DropDownList!$A$27,CntyQuery!$A$4:$FI$26,AM1)","v":120},{"$f":"VLOOKUP(DropDownList!$A$27,CntyQuery!$A$4:$FI$26,AN1)","v":5},{"$f":"VLOOKUP(DropDownList!$A$27,CntyQuery!$A$4:$FI$26,AO1)","v":10},{"$f":"VLOOKUP(DropDownList!$A$27,CntyQuery!$A$4:$FI$26,AP1)","v":94},{"$f":"VLOOKUP(DropDownList!$A$27,CntyQuery!$A$4:$FI$26,AQ1)","v":549},{"$f":"VLOOKUP(DropDownList!$A$27,CntyQuery!$A$4:$FI$26,AR1)","v":68},{"$f":"VLOOKUP(DropDownList!$A$27,CntyQuery!$A$4:$FI$26,AS1)","v":34},{"$f":"VLOOKUP(DropDownList!$A$27,CntyQuery!$A$4:$FI$26,AT1)","v":368},{"$f":"VLOOKUP(DropDownList!$A$27,CntyQuery!$A$4:$FI$26,AU1)","v":23},{"$f":"VLOOKUP(DropDownList!$A$27,CntyQuery!$A$4:$FI$26,AV1)","v":34},{"$f":"VLOOKUP(DropDownList!$A$27,CntyQuery!$A$4:$FI$26,AW1)","v":66},{"$f":"VLOOKUP(DropDownList!$A$27,CntyQuery!$A$4:$FI$26,AX1)","v":36},{"$f":"VLOOKUP(DropDownList!$A$27,CntyQuery!$A$4:$FI$26,AY1)","v":18},{"$f":"VLOOKUP(DropDownList!$A$27,CntyQuery!$A$4:$FI$26,AZ1)","v":86},{"$f":"VLOOKUP(DropDownList!$A$27,CntyQuery!$A$4:$FI$26,BA1)","v":197},{"$f":"VLOOKUP(DropDownList!$A$27,CntyQuery!$A$4:$FI$26,BB1)","v":139},{"$f":"VLOOKUP(DropDownList!$A$27,CntyQuery!$A$4:$FI$26,BC1)","v":229},{"$f":"VLOOKUP(DropDownList!$A$27,CntyQuery!$A$4:$FI$26,BD1)","v":8},{"$f":"VLOOKUP(DropDownList!$A$27,CntyQuery!$A$4:$FI$26,BE1)","v":54},{"$f":"VLOOKUP(DropDownList!$A$27,CntyQuery!$A$4:$FI$26,BF1)","v":147},{"$f":"VLOOKUP(DropDownList!$A$27,CntyQuery!$A$4:$FI$26,BG1)","v":234},{"$f":"VLOOKUP(DropDownList!$A$27,CntyQuery!$A$4:$FI$26,BH1)","v":208},{"$f":"VLOOKUP(DropDownList!$A$27,CntyQuery!$A$4:$FI$26,BI1)","v":15},{"$f":"VLOOKUP(DropDownList!$A$27,CntyQuery!$A$4:$FI$26,BJ1)","v":14},{"$f":"VLOOKUP(DropDownList!$A$27,CntyQuery!$A$4:$FI$26,BK1)","v":39},{"$f":"VLOOKUP(DropDownList!$A$27,CntyQuery!$A$4:$FI$26,BL1)","v":82},{"$f":"VLOOKUP(DropDownList!$A$27,CntyQuery!$A$4:$FI$26,BM1)","v":54},{"$f":"VLOOKUP(DropDownList!$A$27,CntyQuery!$A$4:$FI$26,BN1)","v":90},{"$f":"VLOOKUP(DropDownList!$A$27,CntyQuery!$A$4:$FI$26,BO1)","v":123},{"$f":"VLOOKUP(DropDownList!$A$27,CntyQuery!$A$4:$FI$26,BP1)","v":45},{"$f":"VLOOKUP(DropDownList!$A$27,CntyQuery!$A$4:$FI$26,BQ1)","v":51},{"$f":"VLOOKUP(DropDownList!$A$27,CntyQuery!$A$4:$FI$26,BR1)","v":41917},{"$f":"VLOOKUP(DropDownList!$A$27,CntyQuery!$A$4:$FI$26,BS1)","v":0},{"$f":"VLOOKUP(DropDownList!$A$27,CntyQuery!$A$4:$FI$26,BT1)","v":0},{"$f":"VLOOKUP(DropDownList!$A$27,CntyQuery!$A$4:$FI$26,BU1)","v":0},{"$f":"VLOOKUP(DropDownList!$A$27,CntyQuery!$A$4:$FI$26,BV1)","v":0},{"$f":"VLOOKUP(DropDownList!$A$27,CntyQuery!$A$4:$FI$26,BW1)","v":0},{"$f":"VLOOKUP(DropDownList!$A$27,CntyQuery!$A$4:$FI$26,BX1)","v":6},{"$f":"VLOOKUP(DropDownList!$A$27,CntyQuery!$A$4:$FI$26,BY1)","v":3},{"$f":"VLOOKUP(DropDownList!$A$27,CntyQuery!$A$4:$FI$26,BZ1)","v":0},{"$f":"VLOOKUP(DropDownList!$A$27,CntyQuery!$A$4:$FI$26,CA1)","v":0},{"$f":"VLOOKUP(DropDownList!$A$27,CntyQuery!$A$4:$FI$26,CB1)","v":3},{"$f":"VLOOKUP(DropDownList!$A$27,CntyQuery!$A$4:$FI$26,CC1)","v":0},{"$f":"VLOOKUP(DropDownList!$A$27,CntyQuery!$A$4:$FI$26,CD1)","v":12},{"$f":"VLOOKUP(DropDownList!$A$27,CntyQuery!$A$4:$FI$26,CE1)","v":16},{"$f":"VLOOKUP(DropDownList!$A$27,CntyQuery!$A$4:$FI$26,CF1)","v":8},{"$f":"VLOOKUP(DropDownList!$A$27,CntyQuery!$A$4:$FI$26,CG1)","v":19},{"$f":"VLOOKUP(DropDownList!$A$27,CntyQuery!$A$4:$FI$26,CH1)","v":12},{"$f":"VLOOKUP(DropDownList!$A$27,CntyQuery!$A$4:$FI$26,CI1)","v":0},{"$f":"VLOOKUP(DropDownList!$A$27,CntyQuery!$A$4:$FI$26,CJ1)","v":0},{"$f":"VLOOKUP(DropDownList!$A$27,CntyQuery!$A$4:$FI$26,CK1)","v":7},{"$f":"VLOOKUP(DropDownList!$A$27,CntyQuery!$A$4:$FI$26,CL1)","v":2},{"$f":"VLOOKUP(DropDownList!$A$27,CntyQuery!$A$4:$FI$26,CM1)","v":4},{"$f":"VLOOKUP(DropDownList!$A$27,CntyQuery!$A$4:$FI$26,CN1)","v":13},{"$f":"VLOOKUP(DropDownList!$A$27,CntyQuery!$A$4:$FI$26,CO1)","v":11},{"$f":"VLOOKUP(DropDownList!$A$27,CntyQuery!$A$4:$FI$26,CP1)","v":25},{"$f":"VLOOKUP(DropDownList!$A$27,CntyQuery!$A$4:$FI$26,CQ1)","v":44},{"$f":"VLOOKUP(DropDownList!$A$27,CntyQuery!$A$4:$FI$26,CR1)","v":20},{"$f":"VLOOKUP(DropDownList!$A$27,CntyQuery!$A$4:$FI$26,CS1)","v":10},{"$f":"VLOOKUP(DropDownList!$A$27,CntyQuery!$A$4:$FI$26,CT1)","v":0},{"$f":"VLOOKUP(DropDownList!$A$27,CntyQuery!$A$4:$FI$26,CU1)","v":0},{"$f":"VLOOKUP(DropDownList!$A$27,CntyQuery!$A$4:$FI$26,CV1)","v":4},{"$f":"VLOOKUP(DropDownList!$A$27,CntyQuery!$A$4:$FI$26,CW1)","v":11},{"$f":"VLOOKUP(DropDownList!$A$27,CntyQuery!$A$4:$FI$26,CX1)","v":8},{"$f":"VLOOKUP(DropDownList!$A$27,CntyQuery!$A$4:$FI$26,CY1)","v":20},{"$f":"VLOOKUP(DropDownList!$A$27,CntyQuery!$A$4:$FI$26,CZ1)","v":27},{"$f":"VLOOKUP(DropDownList!$A$27,CntyQuery!$A$4:$FI$26,DA1)","v":8},{"$f":"VLOOKUP(DropDownList!$A$27,CntyQuery!$A$4:$FI$26,DB1)","v":15},{"$f":"VLOOKUP(DropDownList!$A$27,CntyQuery!$A$4:$FI$26,DC1)","v":0},{"$f":"VLOOKUP(DropDownList!$A$27,CntyQuery!$A$4:$FI$26,DD1)","v":4},{"$f":"VLOOKUP(DropDownList!$A$27,CntyQuery!$A$4:$FI$26,DE1)","v":4},{"$f":"VLOOKUP(DropDownList!$A$27,CntyQuery!$A$4:$FI$26,DF1)","v":22},{"$f":"VLOOKUP(DropDownList!$A$27,CntyQuery!$A$4:$FI$26,DG1)","v":16},{"$f":"VLOOKUP(DropDownList!$A$27,CntyQuery!$A$4:$FI$26,DH1)","v":16},{"$f":"VLOOKUP(DropDownList!$A$27,CntyQuery!$A$4:$FI$26,DI1)","v":19},{"$f":"VLOOKUP(DropDownList!$A$27,CntyQuery!$A$4:$FI$26,DJ1)","v":11},{"$f":"VLOOKUP(DropDownList!$A$27,CntyQuery!$A$4:$FI$26,DK1)","v":13},{"$f":"VLOOKUP(DropDownList!$A$27,CntyQuery!$A$4:$FI$26,DL1)","v":0},{"$f":"VLOOKUP(DropDownList!$A$27,CntyQuery!$A$4:$FI$26,DM1)","v":2},{"$f":"VLOOKUP(DropDownList!$A$27,CntyQuery!$A$4:$FI$26,DN1)","v":9},{"$f":"VLOOKUP(DropDownList!$A$27,CntyQuery!$A$4:$FI$26,DO1)","v":6},{"$f":"VLOOKUP(DropDownList!$A$27,CntyQuery!$A$4:$FI$26,DP1)","v":5},{"$f":"VLOOKUP(DropDownList!$A$27,CntyQuery!$A$4:$FI$26,DQ1)","v":4},{"$f":"VLOOKUP(DropDownList!$A$27,CntyQuery!$A$4:$FI$26,DR1)","v":9},{"$f":"VLOOKUP(DropDownList!$A$27,CntyQuery!$A$4:$FI$26,DS1)","v":4},{"$f":"VLOOKUP(DropDownList!$A$27,CntyQuery!$A$4:$FI$26,DT1)","v":13},{"$f":"VLOOKUP(DropDownList!$A$27,CntyQuery!$A$4:$FI$26,DU1)","v":5},{"$f":"VLOOKUP(DropDownList!$A$27,CntyQuery!$A$4:$FI$26,DV1)","v":6},{"$f":"VLOOKUP(DropDownList!$A$27,CntyQuery!$A$4:$FI$26,DW1)","v":6},{"$f":"VLOOKUP(DropDownList!$A$27,CntyQuery!$A$4:$FI$26,DX1)","v":14},{"$f":"VLOOKUP(DropDownList!$A$27,CntyQuery!$A$4:$FI$26,DY1)","v":6},{"$f":"VLOOKUP(DropDownList!$A$27,CntyQuery!$A$4:$FI$26,DZ1)","v":0},{"$f":"VLOOKUP(DropDownList!$A$27,CntyQuery!$A$4:$FI$26,EA1)","v":9},{"$f":"VLOOKUP(DropDownList!$A$27,CntyQuery!$A$4:$FI$26,EB1)","v":2},{"$f":"VLOOKUP(DropDownList!$A$27,CntyQuery!$A$4:$FI$26,EC1)","v":0},{"$f":"VLOOKUP(DropDownList!$A$27,CntyQuery!$A$4:$FI$26,ED1)","v":268},{"$f":"VLOOKUP(DropDownList!$A$27,CntyQuery!$A$4:$FI$26,EE1)","v":975},{"$f":"VLOOKUP(DropDownList!$A$27,CntyQuery!$A$4:$FI$26,EF1)","v":891},{"$f":"VLOOKUP(DropDownList!$A$27,CntyQuery!$A$4:$FI$26,EG1)","v":416},{"$f":"VLOOKUP(DropDownList!$A$27,CntyQuery!$A$4:$FI$26,EH1)","v":1440},{"$f":"VLOOKUP(DropDownList!$A$27,CntyQuery!$A$4:$FI$26,EI1)","v":34},{"$f":"VLOOKUP(DropDownList!$A$27,CntyQuery!$A$4:$FI$26,EJ1)","v":589},{"$f":"VLOOKUP(DropDownList!$A$27,CntyQuery!$A$4:$FI$26,EK1)","v":1440},{"$f":"VLOOKUP(DropDownList!$A$27,CntyQuery!$A$4:$FI$26,EL1)","v":34},{"$f":"VLOOKUP(DropDownList!$A$27,CntyQuery!$A$4:$FI$26,EM1)","v":535},{"$f":"VLOOKUP(DropDownList!$A$27,CntyQuery!$A$4:$FI$26,EN1)","v":76},{"$f":"VLOOKUP(DropDownList!$A$27,CntyQuery!$A$4:$FI$26,EO1)","v":5},{"$f":"VLOOKUP(DropDownList!$A$27,CntyQuery!$A$4:$FI$26,EP1)","v":54},{"$f":"VLOOKUP(DropDownList!$A$27,CntyQuery!$A$4:$FI$26,EQ1)","v":8},{"$f":"VLOOKUP(DropDownList!$A$27,CntyQuery!$A$4:$FI$26,ER1)","v":87},{"$f":"VLOOKUP(DropDownList!$A$27,CntyQuery!$A$4:$FI$26,ES1)","v":29},{"$f":"VLOOKUP(DropDownList!$A$27,CntyQuery!$A$4:$FI$26,ET1)","v":39},{"$f":"VLOOKUP(DropDownList!$A$27,CntyQuery!$A$4:$FI$26,EU1)","v":82},{"$f":"VLOOKUP(DropDownList!$A$27,CntyQuery!$A$4:$FI$26,EV1)","v":54},{"$f":"VLOOKUP(DropDownList!$A$27,CntyQuery!$A$4:$FI$26,EW1)","v":90},{"$f":"VLOOKUP(DropDownList!$A$27,CntyQuery!$A$4:$FI$26,EX1)","v":123},{"$f":"VLOOKUP(DropDownList!$A$27,CntyQuery!$A$4:$FI$26,EY1)","v":45},{"$f":"VLOOKUP(DropDownList!$A$27,CntyQuery!$A$4:$FI$26,EZ1)","v":32},{"$f":"VLOOKUP(DropDownList!$A$27,CntyQuery!$A$4:$FI$26,FA1)","v":19}]
[]
[]
["Census 1990 Data -    Query Name:  TownSTF1Qry1"]
["NAME","COUSUBFP","Census_Cnty_Code","FIPS","LandAcres","WaterAcres","HousingUnits90Cen","P01Persons90Cen","P02Families90Cen","P03Households90cen","P05MalePop90cen","P05FemalePop90cen","P06WhitePop","P06BlackPop","P06AmerIndianPop","P06AsianPIPop","P06OtherRacePop","P08HispanicOrPop","P11AgeUnder15_90cen","P11Age15to24_90cen","P11Age25to34_90cen","P11Age35to44_90cen","P11Age45to54_90cen","P11Age55to64_90cen","P11Age65to74_90cen","P11Age75andOver_90cen","P15PersonsInHH90cen","P15PersonsInFamHH90cen","P15PersonsInGC","PersonsPerHH90cen","PersonsPerFam90Cen","P16SinglePersonHH90cen","P16MarriedCoupleHH90cen","P16SingleParentHH90cen","P16NonFamilyHH90cen","H01TotalHousingUnits","H02OccupiedHousingUnits","H02VacantHousingUnits","H03OwnerOccHU","H03RenterOccHU","H05VacantForRent90","H05VacantForSale90","H05VacantSeasonalRec","H23OOHUVal<15k","H23OOHUVal15to19k","H23OOHUVal20to24k","H23OOHUVal25to29k","H23OOHUVal30to34k","H23OOHUVal35to39k","H23OOHUVal40to44k","H23OOHUVal45to49k","H23OOHUVal50to59k","H23OOHUVal60to74k","H23OOHUVal75to99k","H23OOHUVal100to124k","H23OOHUVal125to149k","H23OOHUVal150to174k","H23OOHUVal175to199k","H23OOHUVal200to249k","H23OOHUVal250to299k","H23OOHUVal300to399k","H23OOHUVal400to499k","H23OOHUVal500kOrMore","H23BOOHUMedVal","H41SingFamHU90cen","H41MultiFamHU90cen","H41MobileHom90cen","H43SingFamOwnHU90cen","H43MultiFamOwnHU90cen","H43MobileHomOwnHU90cen","H43SingFamRntrHU90cen","H43MultiFamRntrHU90cen","H43MobileHomRntrHU90cen","H41HU1UnitDet","H41HU1UnitAtt","H41HU2Unit","H41HU3to4Unit","H41HU5to9Unit","H41HU10to19Unit","H41HU20to49Unit","H41HU50PlusUnit","H41HUMobilH","H41HUOther"]
[{"$f":"VLOOKUP(DropDownList!$B$27,CntyQuery!$A$31:$CE$53,A$1)","v":"Dublin"},{"$f":"VLOOKUP(DropDownList!$B$27,CntyQuery!$A$31:$CE$53,B$1)","v":303},{"$f":"VLOOKUP(DropDownList!$B$27,CntyQuery!$A$31:$CE$53,C$1)","v":5015},{"$f":"VLOOKUP(DropDownList!$B$27,CntyQuery!$A$31:$CE$53,D$1)","v":"19140"},{"$f":"VLOOKUP(DropDownList!$B$27,CntyQuery!$A$31:$CE$53,E$1)","v":17852.14},{"$f":"VLOOKUP(DropDownList!$B$27,CntyQuery!$A$31:$CE$53,F$1)","v":700.89},{"$f":"VLOOKUP(DropDownList!$B$27,CntyQuery!$A$31:$CE$53,G$1)","v":651},{"$f":"VLOOKUP(DropDownList!$B$27,CntyQuery!$A$31:$CE$53,H$1)","v":1474},{"$f":"VLOOKUP(DropDownList!$B$27,CntyQuery!$A$31:$CE$53,I$1)","v":408},{"$f":"VLOOKUP(DropDownList!$B$27,CntyQuery!$A$31:$CE$53,J$1)","v":521},{"$f":"VLOOKUP(DropDownList!$B$27,CntyQuery!$A$31:$CE$53,K$1)","v":749},{"$f":"VLOOKUP(DropDownList!$B$27,CntyQuery!$A$31:$CE$53,L$1)","v":725},{"$f":"VLOOKUP(DropDownList!$B$27,CntyQuery!$A$31:$CE$53,M$1)","v":1451},{"$f":"VLOOKUP(DropDownList!$B$27,CntyQuery!$A$31:$CE$53,N$1)","v":4},{"$f":"VLOOKUP(DropDownList!$B$27,CntyQuery!$A$31:$CE$53,O$1)","v":6},{"$f":"VLOOKUP(DropDownList!$B$27,CntyQuery!$A$31:$CE$53,P$1)","v":10},{"$f":"VLOOKUP(DropDownList!$B$27,CntyQuery!$A$31:$CE$53,Q$1)","v":3},{"$f":"VLOOKUP(DropDownList!$B$27,CntyQuery!$A$31:$CE$53,R$1)","v":10},{"$f":"VLOOKUP(DropDownList!$B$27,CntyQuery!$A$31:$CE$53,S$1)","v":339},{"$f":"VLOOKUP(DropDownList!$B$27,CntyQuery!$A$31:$CE$53,T$1)","v":151},{"$f":"VLOOKUP(DropDownList!$B$27,CntyQuery!$A$31:$CE$53,U$1)","v":215},{"$f":"VLOOKUP(DropDownList!$B$27,CntyQuery!$A$31:$CE$53,V$1)","v":266},{"$f":"VLOOKUP(DropDownList!$B$27,CntyQuery!$A$31:$CE$53,W$1)","v":178},{"$f":"VLOOKUP(DropDownList!$B$27,CntyQuery!$A$31:$CE$53,X$1)","v":160},{"$f":"VLOOKUP(DropDownList!$B$27,CntyQuery!$A$31:$CE$53,Y$1)","v":99},{"$f":"VLOOKUP(DropDownList!$B$27,CntyQuery!$A$31:$CE$53,Z$1)","v":66},{"$f":"VLOOKUP(DropDownList!$B$27,CntyQuery!$A$31:$CE$53,AA$1)","v":1385},{"$f":"VLOOKUP(DropDownList!$B$27,CntyQuery!$A$31:$CE$53,AB$1)","v":1250},{"$f":"VLOOKUP(DropDownList!$B$27,CntyQuery!$A$31:$CE$53,AC$1)","v":89},{"$f":"VLOOKUP(DropDownList!$B$27,CntyQuery!$A$31:$CE$53,AD$1)","v":2.6583493282149711},{"$f":"VLOOKUP(DropDownList!$B$27,CntyQuery!$A$31:$CE$53,AE$1)","v":3.0637254901960786},{"$f":"VLOOKUP(DropDownList!$B$27,CntyQuery!$A$31:$CE$53,AF$1)","v":96},{"$f":"VLOOKUP(DropDownList!$B$27,CntyQuery!$A$31:$CE$53,AG$1)","v":368},{"$f":"VLOOKUP(DropDownList!$B$27,CntyQuery!$A$31:$CE$53,AH$1)","v":40},{"$f":"VLOOKUP(DropDownList!$B$27,CntyQuery!$A$31:$CE$53,AI$1)","v":17},{"$f":"VLOOKUP(DropDownList!$B$27,CntyQuery!$A$31:$CE$53,AJ$1)","v":651},{"$f":"VLOOKUP(DropDownList!$B$27,CntyQuery!$A$31:$CE$53,AK$1)","v":521},{"$f":"VLOOKUP(DropDownList!$B$27,CntyQuery!$A$31:$CE$53,AL$1)","v":130},{"$f":"VLOOKUP(DropDownList!$B$27,CntyQuery!$A$31:$CE$53,AM$1)","v":401},{"$f":"VLOOKUP(DropDownList!$B$27,CntyQuery!$A$31:$CE$53,AN$1)","v":120},{"$f":"VLOOKUP(DropDownList!$B$27,CntyQuery!$A$31:$CE$53,AO$1)","v":5},{"$f":"VLOOKUP(DropDownList!$B$27,CntyQuery!$A$31:$CE$53,AP$1)","v":10},{"$f":"VLOOKUP(DropDownList!$B$27,CntyQuery!$A$31:$CE$53,AQ$1)","v":94},{"$f":"VLOOKUP(DropDownList!$B$27,CntyQuery!$A$31:$CE$53,AR$1)","v":0},{"$f":"VLOOKUP(DropDownList!$B$27,CntyQuery!$A$31:$CE$53,AS$1)","v":0},{"$f":"VLOOKUP(DropDownList!$B$27,CntyQuery!$A$31:$CE$53,AT$1)","v":0},{"$f":"VLOOKUP(DropDownList!$B$27,CntyQuery!$A$31:$CE$53,AU$1)","v":1},{"$f":"VLOOKUP(DropDownList!$B$27,CntyQuery!$A$31:$CE$53,AV$1)","v":1},{"$f":"VLOOKUP(DropDownList!$B$27,CntyQuery!$A$31:$CE$53,AW$1)","v":0},{"$f":"VLOOKUP(DropDownList!$B$27,CntyQuery!$A$31:$CE$53,AX$1)","v":1},{"$f":"VLOOKUP(DropDownList!$B$27,CntyQuery!$A$31:$CE$53,AY$1)","v":2},{"$f":"VLOOKUP(DropDownList!$B$27,CntyQuery!$A$31:$CE$53,AZ$1)","v":8},{"$f":"VLOOKUP(DropDownList!$B$27,CntyQuery!$A$31:$CE$53,BA$1)","v":12},{"$f":"VLOOKUP(DropDownList!$B$27,CntyQuery!$A$31:$CE$53,BB$1)","v":29},{"$f":"VLOOKUP(DropDownList!$B$27,CntyQuery!$A$31:$CE$53,BC$1)","v":36},{"$f":"VLOOKUP(DropDownList!$B$27,CntyQuery!$A$31:$CE$53,BD$1)","v":34},{"$f":"VLOOKUP(DropDownList!$B$27,CntyQuery!$A$31:$CE$53,BE$1)","v":41},{"$f":"VLOOKUP(DropDownList!$B$27,CntyQuery!$A$31:$CE$53,BF$1)","v":29},{"$f":"VLOOKUP(DropDownList!$B$27,CntyQuery!$A$31:$CE$53,BG$1)","v":28},{"$f":"VLOOKUP(DropDownList!$B$27,CntyQuery!$A$31:$CE$53,BH$1)","v":11},{"$f":"VLOOKUP(DropDownList!$B$27,CntyQuery!$A$31:$CE$53,BI$1)","v":11},{"$f":"VLOOKUP(DropDownList!$B$27,CntyQuery!$A$31:$CE$53,BJ$1)","v":6},{"$f":"VLOOKUP(DropDownList!$B$27,CntyQuery!$A$31:$CE$53,BK$1)","v":4},{"$f":"VLOOKUP(DropDownList!$B$27,CntyQuery!$A$31:$CE$53,BL$1)","v":151800},{"$f":"VLOOKUP(DropDownList!$B$27,CntyQuery!$A$31:$CE$53,BM$1)","v":549},{"$f":"VLOOKUP(DropDownList!$B$27,CntyQuery!$A$31:$CE$53,BN$1)","v":68},{"$f":"VLOOKUP(DropDownList!$B$27,CntyQuery!$A$31:$CE$53,BO$1)","v":34},{"$f":"VLOOKUP(DropDownList!$B$27,CntyQuery!$A$31:$CE$53,BP$1)","v":368},{"$f":"VLOOKUP(DropDownList!$B$27,CntyQuery!$A$31:$CE$53,BQ$1)","v":23},{"$f":"VLOOKUP(DropDownList!$B$27,CntyQuery!$A$31:$CE$53,BR$1)","v":10},{"$f":"VLOOKUP(DropDownList!$B$27,CntyQuery!$A$31:$CE$53,BS$1)","v":66},{"$f":"VLOOKUP(DropDownList!$B$27,CntyQuery!$A$31:$CE$53,BT$1)","v":36},{"$f":"VLOOKUP(DropDownList!$B$27,CntyQuery!$A$31:$CE$53,BU$1)","v":18},{"$f":"VLOOKUP(DropDownList!$B$27,CntyQuery!$A$31:$CE$53,BV$1)","v":549},{"$f":"VLOOKUP(DropDownList!$B$27,CntyQuery!$A$31:$CE$53,BW$1)","v":17},{"$f":"VLOOKUP(DropDownList!$B$27,CntyQuery!$A$31:$CE$53,BX$1)","v":41},{"$f":"VLOOKUP(DropDownList!$B$27,CntyQuery!$A$31:$CE$53,BY$1)","v":10},{"$f":"VLOOKUP(DropDownList!$B$27,CntyQuery!$A$31:$CE$53,BZ$1)","v":0},{"$f":"VLOOKUP(DropDownList!$B$27,CntyQuery!$A$31:$CE$53,CA$1)","v":0},{"$f":"VLOOKUP(DropDownList!$B$27,CntyQuery!$A$31:$CE$53,CB$1)","v":0},{"$f":"VLOOKUP(DropDownList!$B$27,CntyQuery!$A$31:$CE$53,CC$1)","v":0},{"$f":"VLOOKUP(DropDownList!$B$27,CntyQuery!$A$31:$CE$53,CD$1)","v":16},{"$f":"VLOOKUP(DropDownList!$B$27,CntyQuery!$A$31:$CE$53,CE$1)","v":18}]
[]
[]
["Census 1990 Data -          Query Name: TownSTF3Qry1"]
["NAME","FIPS","COUSUBFP","LandAcres","WaterAcres","HousingUnits90Cen","P01Persons90Cen","P02Families90Cen","P03Households90cen","H25HU<5yrs90cen","H25HU5to20yrs90cen","H25HU20to50yrs90cen","H25HU>50yrs90cen","H31Units0Bedroom90cen","H31Units1Bedroom90cen","H31Units2Bedroom90cen","H31Units3Bedroom90cen","H31Units4Bedroom90cen","H31Units5+Bedroom90cen","P80HI<5K","P80HI5Kto10K","P80HI10Kto15K","P80HI15Kto25K","P80HI25Kto35K","P80HI35Kto50K","P80HI50Kto75K","P80HI75Kto100K","P80HI>100K","P80AMedHI","P86HH<25HI<5K","P86HH<25HI5Kto10K","P86HH<25HI10Kto15K","P86HH<25HI15Kto25K","P86HH<25HI25Kto35K","P86HH<25HI35Kto50K","P86HH<25HI50Kto75K","P86HH<25HI75Kto100K","P86HH<25HI>100K","P86HH25to34HI<5K","P86HH25to34HI5Kto10K","P86HH25to34HI10Kto15K","P86HH25to34HI15Kto25K","P86HH25to34HI25Kto35K","P86HH25to34HI35Kto50K","P86HH25to34HI50Kto75K","P86HH25to34HI75Kto100K","P86HH25to34HI>100K","P86HH35to44HI<5K","P86HH35to44HI5Kto10K","P86HH35to44HI10Kto15K","P86HH35to44HI15Kto25K","P86HH35to44HI25Kto35K","P86HH35to44HI35Kto50K","P86HH35to44HI50Kto75K","P86HH35to44HI75Kto100K","P86HH35to44HI>100K","P86HH45to54HI<5K","P86HH45to54HI5Kto10K","P86HH45to54HI10Kto15K","P86HH45to54HI15Kto25K","P86HH45to54HI25Kto35K","P86HH45to54HI35Kto50K","P86HH45to54HI50Kto75K","P86HH45to54HI75Kto100K","P86HH45to54HI>100K","P86HH55to64HI<5K","P86HH55to64HI5Kto10K","P86HH55to64HI10Kto15K","P86HH55to64HI15Kto25K","P86HH55to64HI25Kto35K","P86HH55to64HI35Kto50K","P86HH55to64HI50Kto75K","P86HH55to64HI75Kto100K","P86HH55to64HI>100K","P86HH65to74HI<5K","P86HH65to74HI5Kto10K","P86HH65to74HI10Kto15K","P86HH65to74HI15Kto25K","P86HH65to74HI25Kto35K","P86HH65to74HI35Kto50K","P86HH65to74HI50Kto75K","P86HH65to74HI75Kto100K","P86HH65to74HI>100K","P86HH>75HI<5K","P86HH>75HI5Kto10K","P86HH>75HI10Kto15K","P86HH>75HI15Kto25K","P86HH>75HI25Kto35K","P86HH>75HI35Kto50K","P86HH>75HI50Kto75K","P86HH>75HI75Kto100K","P86HH>75HI>100K","P54SchlEnrlPrePrim","P54SchlEnrlElemThrHS","P54SchlEnrlCollege","P54NotEnrlInSch","P57Pop25andOver","P57LessThan9thGrade","P579thto12thNoDip","P57HSGrad","P57SomeCollege","P57AssocDeg","P57BachelDeg","P57GradorProfDeg","P57HSGradorHigher","P57CollGradorHigher","P42NativePop","P42ForeignBornPop","P42BornStateOfRes","P37NativePop2","P37ForeignBornPop2","P49DroveAlone","P49CarPooled","P49PublicTranspt","P49Walked","P49OtherMeans","P49WorkedAtHome","P80HHInc<10K","P80HHInc10to15K","P80HHInc15to25K","P80HHInc25to35K","P80HHInc35to50K","P80HHInc50to75K","P80HHInc75to100K","P80HHInc100to150K","P80HHInc>150K","H25YearStBlt89to90","H25YearStBlt85to88","H25YearStBlt80to84","H25YearStBlt70to79","H25YearStBlt60to69","H25YearStBlt50to59","H25YearStBlt40to49","H25YearStBlt39earlier","P107FamInc<10K","P107FamInc10to15K","P107FamInc15to25K","P107FamInc25to35K","P107FamInc35to50K","P107FamInc50to75K","P107FamInc75to100K","P107FamInc100to150K","P107FamInc>150K","P107AMedFamInc","P110NonFamInc<10K","P110NonFamInc10to15K","P110NonFamInc15to25K","P110NonFamInc25to35K","P110NonFamInc35to50K","P110NonFamInc50to75K","P110NonFamInc75to100K","P110NonFamInc100to150K","P110NonFamInc>150K","P110AMedNonFamInc","H16HU1Room","H16HU2Room","H16HU3Room","H16HU4Room","H16HU5Room","H16HU6Room","H16HU7Room","H16HU8Room","H16HU9+Room","H43GrossRnt<100","H43GrossRnt100to149","H43GrossRnt150to199","H43GrossRnt200to249","H43GrossRnt250to299","H43GrossRnt300to349","H43GrossRnt350to399","H43GrossRnt400to449","H43GrossRnt450to499","H43GrossRnt500to549","H43GrossRnt550to599","H43GrossRnt600to649","H43GrossRnt650to699","H43GrossRnt700to749","H43GrossRnt750to999","H43GrossRnt1000Plus","H43NoCashRent","H43MedGrossRent","H51GrossRnt<20PctHHInc","H51GrossRnt20to24PctHHInc","H51GrossRnt25to29PctHHInc","H51GrossRnt30to34PctHHInc","H51GrossRnt35PctOrMoreHHInc","H51GrossRntAsPctHHIncNotComp","H52HUwMtgMoOwnCst<200","H52HUwMtgMoOwnCst200to299","H52HUwMtgMoOwnCst300to399","H52HUwMtgMoOwnCst400to499","H52HUwMtgMoOwnCst500to599","H52HUwMtgMoOwnCst600to699","H52HUwMtgMoOwnCst700to799","H52HUwMtgMoOwnCst800to899","H52HUwMtgMoOwnCst900to999","H52HUwMtgMoOwnCst1000to1249","H52HUwMtgMoOwnCst1250to1499","H52HUwMtgMoOwnCst1500to1999","H52HUwMtgMoOwnCst2000More","H52HUwNoMtgMoOwnCst<100","H52HUwNoMtgMoOwnCst100to149","H52HUwNoMtgMoOwnCst150to199","H52HUwNoMtgMoOwnCst200to249","H52HUwNoMtgMoOwnCst250to299","H52HUwNoMtgMoOwnCst300to349","H52HUwNoMtgMoOwnCst350to399","H52HUwNoMtgMoOwnCst400More","H52AMedMoOwnCstWMortg","H52AMedMoOwnCstWNoMortg","H58HUwMtgMOC<20pHHInc","H58HUwMtgMOC20to24pHHInc","H58HUwMtgMOC25to29pHHInc","H58HUwMtgMOC30to34pHHInc","H58wMtgMOC>35pHHInc","H58HUwMtgMOCNotComp","H58HUwNoMtgMOC<20pHHInc","H58HUwNoMtgMOC20to24pHHInc","H58HUwNoMtgMOC25to29pHHInc","H58HUwNoMtgMOC30to34pHHInc","H58wNoMtgMOC>35pHHInc","H58HUwNoMtgMOCNotComp","H61OOHUVal<15k","H61OOHUVal15to19k","H61OOHUVal20to24k","H61OOHUVal25to29k","H61OOHUVal30to34k","H61OOHUVal35to39k","H61OOHUVal40to44k","H61OOHUVal45to49k","H61OOHUVal50to59k","H61OOHUVal60to74k","H61OOHUVal75to99k","H61OOHUVal100to124k","H61OOHUVal125to149k","H61OOHUVal150to174k","H61OOHUVal175to199k","H61OOHUVal200to249k","H61OOHUVal250to299k","H61OOHUVal300to399k","H61OOHUVal400to499k","H61OOHUVal500kOrMore","H61aOOHUMedVal"]
[]
[]
[]
[]
["TOWN_NAME","FIPS","TOWNCNTY","COUSUB","POP80","POP90CDCEN","POP2000CEN","POP2010CEN","POP2020CEN","POP2025-Proj","POP2030-Proj","POP2035-Proj","SF80","MF80","MH80","SF81","MF81","MH81","SF82","MF82","MH82","SF83","MF83","MH83","SF84_OSP","MF84_OSP","MH84_OSP","SF85_OSP","MF85_OSP","MH85_OSP","SF86_OSP","MF86_OSP","MH86_OSP","SF87_OSP","MF87_OSP","MH87_OSP","SF88_OSP","MF88_OSP","MH88_OSP","SF89_OSP","MF89_OSP","MH89_OSP","SF90_OSP","MF90_OSP","MH90_OSP","SF91_OSP","MF91_OSP","MH91_OSP","SF92_OSP","MF92_OSP","MH92_OSP","SF93_OSP","MF93_OSP","MH93_OSP","SF94_OSP","MF94_OSP","MH94_OSP","SF95_OSP","MF95_OSP","MH95_OSP","SF96_OSP","MF96_OSP","MH96_OSP","SF97_OSP","MF97_OSP","MH97_OSP","SF98_OSP","MF98_OSP","MH98_OSP","SF99_OSP","MF99_OSP","MH99_OSP","SF00_OSP","MF00_OSP","MH00_OSP","SF01_OSP","MF01_OSP","MH01_OSP","SF02_OSP","MF02_OSP","MH02_OSP","SF03_OSP","MF03_OSP","MH03_OSP","SF04_OSP","MF04_OSP","MH04_OSP","SF05_OSP","MF05_OSP","MH05_OSP","SF06_OSP","MF06_OSP","MH06_OSP","SF07_OSP","MF07_OSP","MH07_OSP","SF08_OSP","MF08_OSP","MH08_OSP","SF09_OSP","MF09_OSP","MH09_OSP","SF10_OSP","MF10_OSP","MH10_OSP","SF11_OSP","MF11_OSP","MH11_OSP","SF12_OSP","MF12_OSP","MH12_OSP","SF13_OSP","MF13_OSP","MH13_OSP","SF14_OSP","MF14_OSP","MH14_OSP","SF15_OSP","MF15_OSP","MH15_OSP","SF16_OSP","MF16_OSP","MH16_OSP","SF17_OSP","MF17_OSP","MH17_OSP","SF18_OSP","MF18_OSP","MH18_OSP","SF19_OSP","MF19_OSP","MH19_OSP","SF20_OSP","MF20_OSP","MH20_OSP","SF20 Census_OSP","MF20 Census OSP","MH20 Census_OSP","SF21_OSP","MF21_OSP","MH21_OSP","COMMENTS","CNTY_CODE"]
[{"$f":"VLOOKUP(DropDownList!$B$27,CntyQuery!$A$77:$FZ$99,A$1)","v":"Dublin"},{"$f":"VLOOKUP(DropDownList!$B$27,CntyQuery!$A$77:$FZ$99,B$1)","v":5015},{"$f":"VLOOKUP(DropDownList!$B$27,CntyQuery!$A$77:$FZ$99,C$1)","v":303},{"$f":"VLOOKUP(DropDownList!$B$27,CntyQuery!$A$77:$FZ$99,D$1)","v":"19140"},{"$f":"VLOOKUP(DropDownList!$B$27,CntyQuery!$A$77:$FZ$99,E$1)","v":1303},{"$f":"VLOOKUP(DropDownList!$B$27,CntyQuery!$A$77:$FZ$99,F$1)","v":1474},{"$f":"VLOOKUP(DropDownList!$B$27,CntyQuery!$A$77:$FZ$99,G$1)","v":1476},{"$f":"VLOOKUP(DropDownList!$B$27,CntyQuery!$A$77:$FZ$99,H$1)","v":1597},{"$f":"VLOOKUP(DropDownList!$B$27,CntyQuery!$A$77:$FZ$99,I$1)","v":1532},{"$f":"VLOOKUP(DropDownList!$B$27,CntyQuery!$A$77:$FZ$99,J$1)","v":1557},{"$f":"VLOOKUP(DropDownList!$B$27,CntyQuery!$A$77:$FZ$99,K$1)","v":1570},{"$f":"VLOOKUP(DropDownList!$B$27,CntyQuery!$A$77:$FZ$99,L$1)","v":1565},{"$f":"VLOOKUP(DropDownList!$B$27,CntyQuery!$A$77:$FZ$99,M$1)","v":6},{"$f":"VLOOKUP(DropDownList!$B$27,CntyQuery!$A$77:$FZ$99,N$1)","v":0},{"$f":"VLOOKUP(DropDownList!$B$27,CntyQuery!$A$77:$FZ$99,O$1)","v":0},{"$f":"VLOOKUP(DropDownList!$B$27,CntyQuery!$A$77:$FZ$99,P$1)","v":3},{"$f":"VLOOKUP(DropDownList!$B$27,CntyQuery!$A$77:$FZ$99,Q$1)","v":0},{"$f":"VLOOKUP(DropDownList!$B$27,CntyQuery!$A$77:$FZ$99,R$1)","v":1},{"$f":"VLOOKUP(DropDownList!$B$27,CntyQuery!$A$77:$FZ$99,S$1)","v":5},{"$f":"VLOOKUP(DropDownList!$B$27,CntyQuery!$A$77:$FZ$99,T$1)","v":0},{"$f":"VLOOKUP(DropDownList!$B$27,CntyQuery!$A$77:$FZ$99,U$1)","v":1},{"$f":"VLOOKUP(DropDownList!$B$27,CntyQuery!$A$77:$FZ$99,V$1)","v":13},{"$f":"VLOOKUP(DropDownList!$B$27,CntyQuery!$A$77:$FZ$99,W$1)","v":0},{"$f":"VLOOKUP(DropDownList!$B$27,CntyQuery!$A$77:$FZ$99,X$1)","v":0},{"$f":"VLOOKUP(DropDownList!$B$27,CntyQuery!$A$77:$FZ$99,Y$1)","v":4},{"$f":"VLOOKUP(DropDownList!$B$27,CntyQuery!$A$77:$FZ$99,Z$1)","v":0},{"$f":"VLOOKUP(DropDownList!$B$27,CntyQuery!$A$77:$FZ$99,AA$1)","v":0},{"$f":"VLOOKUP(DropDownList!$B$27,CntyQuery!$A$77:$FZ$99,AB$1)","v":22},{"$f":"VLOOKUP(DropDownList!$B$27,CntyQuery!$A$77:$FZ$99,AC$1)","v":0},{"$f":"VLOOKUP(DropDownList!$B$27,CntyQuery!$A$77:$FZ$99,AD$1)","v":0},{"$f":"VLOOKUP(DropDownList!$B$27,CntyQuery!$A$77:$FZ$99,AE$1)","v":17},{"$f":"VLOOKUP(DropDownList!$B$27,CntyQuery!$A$77:$FZ$99,AF$1)","v":0},{"$f":"VLOOKUP(DropDownList!$B$27,CntyQuery!$A$77:$FZ$99,AG$1)","v":0},{"$f":"VLOOKUP(DropDownList!$B$27,CntyQuery!$A$77:$FZ$99,AH$1)","v":13},{"$f":"VLOOKUP(DropDownList!$B$27,CntyQuery!$A$77:$FZ$99,AI$1)","v":0},{"$f":"VLOOKUP(DropDownList!$B$27,CntyQuery!$A$77:$FZ$99,AJ$1)","v":0},{"$f":"VLOOKUP(DropDownList!$B$27,CntyQuery!$A$77:$FZ$99,AK$1)","v":15},{"$f":"VLOOKUP(DropDownList!$B$27,CntyQuery!$A$77:$FZ$99,AL$1)","v":0},{"$f":"VLOOKUP(DropDownList!$B$27,CntyQuery!$A$77:$FZ$99,AM$1)","v":0},{"$f":"VLOOKUP(DropDownList!$B$27,CntyQuery!$A$77:$FZ$99,AN$1)","v":12},{"$f":"VLOOKUP(DropDownList!$B$27,CntyQuery!$A$77:$FZ$99,AO$1)","v":0},{"$f":"VLOOKUP(DropDownList!$B$27,CntyQuery!$A$77:$FZ$99,AP$1)","v":0},{"$f":"VLOOKUP(DropDownList!$B$27,CntyQuery!$A$77:$FZ$99,AQ$1)","v":6},{"$f":"VLOOKUP(DropDownList!$B$27,CntyQuery!$A$77:$FZ$99,AR$1)","v":0},{"$f":"VLOOKUP(DropDownList!$B$27,CntyQuery!$A$77:$FZ$99,AS$1)","v":6},{"$f":"VLOOKUP(DropDownList!$B$27,CntyQuery!$A$77:$FZ$99,AT$1)","v":3},{"$f":"VLOOKUP(DropDownList!$B$27,CntyQuery!$A$77:$FZ$99,AU$1)","v":0},{"$f":"VLOOKUP(DropDownList!$B$27,CntyQuery!$A$77:$FZ$99,AV$1)","v":0},{"$f":"VLOOKUP(DropDownList!$B$27,CntyQuery!$A$77:$FZ$99,AW$1)","v":6},{"$f":"VLOOKUP(DropDownList!$B$27,CntyQuery!$A$77:$FZ$99,AX$1)","v":0},{"$f":"VLOOKUP(DropDownList!$B$27,CntyQuery!$A$77:$FZ$99,AY$1)","v":0},{"$f":"VLOOKUP(DropDownList!$B$27,CntyQuery!$A$77:$FZ$99,AZ$1)","v":3},{"$f":"VLOOKUP(DropDownList!$B$27,CntyQuery!$A$77:$FZ$99,BA$1)","v":0},{"$f":"VLOOKUP(DropDownList!$B$27,CntyQuery!$A$77:$FZ$99,BB$1)","v":0},{"$f":"VLOOKUP(DropDownList!$B$27,CntyQuery!$A$77:$FZ$99,BC$1)","v":6},{"$f":"VLOOKUP(DropDownList!$B$27,CntyQuery!$A$77:$FZ$99,BD$1)","v":0},{"$f":"VLOOKUP(DropDownList!$B$27,CntyQuery!$A$77:$FZ$99,BE$1)","v":0},{"$f":"VLOOKUP(DropDownList!$B$27,CntyQuery!$A$77:$FZ$99,BF$1)","v":4},{"$f":"VLOOKUP(DropDownList!$B$27,CntyQuery!$A$77:$FZ$99,BG$1)","v":0},{"$f":"VLOOKUP(DropDownList!$B$27,CntyQuery!$A$77:$FZ$99,BH$1)","v":0},{"$f":"VLOOKUP(DropDownList!$B$27,CntyQuery!$A$77:$FZ$99,BI$1)","v":5},{"$f":"VLOOKUP(DropDownList!$B$27,CntyQuery!$A$77:$FZ$99,BJ$1)","v":0},{"$f":"VLOOKUP(DropDownList!$B$27,CntyQuery!$A$77:$FZ$99,BK$1)","v":0},{"$f":"VLOOKUP(DropDownList!$B$27,CntyQuery!$A$77:$FZ$99,BL$1)","v":5},{"$f":"VLOOKUP(DropDownList!$B$27,CntyQuery!$A$77:$FZ$99,BM$1)","v":0},{"$f":"VLOOKUP(DropDownList!$B$27,CntyQuery!$A$77:$FZ$99,BN$1)","v":0},{"$f":"VLOOKUP(DropDownList!$B$27,CntyQuery!$A$77:$FZ$99,BO$1)","v":13},{"$f":"VLOOKUP(DropDownList!$B$27,CntyQuery!$A$77:$FZ$99,BP$1)","v":0},{"$f":"VLOOKUP(DropDownList!$B$27,CntyQuery!$A$77:$FZ$99,BQ$1)","v":0},{"$f":"VLOOKUP(DropDownList!$B$27,CntyQuery!$A$77:$FZ$99,BR$1)","v":3},{"$f":"VLOOKUP(DropDownList!$B$27,CntyQuery!$A$77:$FZ$99,BS$1)","v":0},{"$f":"VLOOKUP(DropDownList!$B$27,CntyQuery!$A$77:$FZ$99,BT$1)","v":1},{"$f":"VLOOKUP(DropDownList!$B$27,CntyQuery!$A$77:$FZ$99,BU$1)","v":3},{"$f":"VLOOKUP(DropDownList!$B$27,CntyQuery!$A$77:$FZ$99,BV$1)","v":0},{"$f":"VLOOKUP(DropDownList!$B$27,CntyQuery!$A$77:$FZ$99,BW$1)","v":0},{"$f":"VLOOKUP(DropDownList!$B$27,CntyQuery!$A$77:$FZ$99,BX$1)","v":9},{"$f":"VLOOKUP(DropDownList!$B$27,CntyQuery!$A$77:$FZ$99,BY$1)","v":0},{"$f":"VLOOKUP(DropDownList!$B$27,CntyQuery!$A$77:$FZ$99,BZ$1)","v":2},{"$f":"VLOOKUP(DropDownList!$B$27,CntyQuery!$A$77:$FZ$99,CA$1)","v":8},{"$f":"VLOOKUP(DropDownList!$B$27,CntyQuery!$A$77:$FZ$99,CB$1)","v":1},{"$f":"VLOOKUP(DropDownList!$B$27,CntyQuery!$A$77:$FZ$99,CC$1)","v":0},{"$f":"VLOOKUP(DropDownList!$B$27,CntyQuery!$A$77:$FZ$99,CD$1)","v":15},{"$f":"VLOOKUP(DropDownList!$B$27,CntyQuery!$A$77:$FZ$99,CE$1)","v":0},{"$f":"VLOOKUP(DropDownList!$B$27,CntyQuery!$A$77:$FZ$99,CF$1)","v":0},{"$f":"VLOOKUP(DropDownList!$B$27,CntyQuery!$A$77:$FZ$99,CG$1)","v":5},{"$f":"VLOOKUP(DropDownList!$B$27,CntyQuery!$A$77:$FZ$99,CH$1)","v":0},{"$f":"VLOOKUP(DropDownList!$B$27,CntyQuery!$A$77:$FZ$99,CI$1)","v":0},{"$f":"VLOOKUP(DropDownList!$B$27,CntyQuery!$A$77:$FZ$99,CJ$1)","v":4},{"$f":"VLOOKUP(DropDownList!$B$27,CntyQuery!$A$77:$FZ$99,CK$1)","v":0},{"$f":"VLOOKUP(DropDownList!$B$27,CntyQuery!$A$77:$FZ$99,CL$1)","v":0},{"$f":"VLOOKUP(DropDownList!$B$27,CntyQuery!$A$77:$FZ$99,CM$1)","v":15},{"$f":"VLOOKUP(DropDownList!$B$27,CntyQuery!$A$77:$FZ$99,CN$1)","v":0},{"$f":"VLOOKUP(DropDownList!$B$27,CntyQuery!$A$77:$FZ$99,CO$1)","v":0},{"$f":"VLOOKUP(DropDownList!$B$27,CntyQuery!$A$77:$FZ$99,CP$1)","v":8},{"$f":"VLOOKUP(DropDownList!$B$27,CntyQuery!$A$77:$FZ$99,CQ$1)","v":0},{"$f":"VLOOKUP(DropDownList!$B$27,CntyQuery!$A$77:$FZ$99,CR$1)","v":0},{"$f":"VLOOKUP(DropDownList!$B$27,CntyQuery!$A$77:$FZ$99,CS$1)","v":5},{"$f":"VLOOKUP(DropDownList!$B$27,CntyQuery!$A$77:$FZ$99,CT$1)","v":0},{"$f":"VLOOKUP(DropDownList!$B$27,CntyQuery!$A$77:$FZ$99,CU$1)","v":0},{"$f":"VLOOKUP(DropDownList!$B$27,CntyQuery!$A$77:$FZ$99,CV$1)","v":1},{"$f":"VLOOKUP(DropDownList!$B$27,CntyQuery!$A$77:$FZ$99,CW$1)","v":0},{"$f":"VLOOKUP(DropDownList!$B$27,CntyQuery!$A$77:$FZ$99,CX$1)","v":0},{"$f":"VLOOKUP(DropDownList!$B$27,CntyQuery!$A$77:$FZ$99,CY$1)","v":0},{"$f":"VLOOKUP(DropDownList!$B$27,CntyQuery!$A$77:$FZ$99,CZ$1)","v":0},{"$f":"VLOOKUP(DropDownList!$B$27,CntyQuery!$A$77:$FZ$99,DA$1)","v":0},{"$f":"VLOOKUP(DropDownList!$B$27,CntyQuery!$A$77:$FZ$99,DB$1)","v":0},{"$f":"VLOOKUP(DropDownList!$B$27,CntyQuery!$A$77:$FZ$99,DC$1)","v":0},{"$f":"VLOOKUP(DropDownList!$B$27,CntyQuery!$A$77:$FZ$99,DD$1)","v":0},{"$f":"VLOOKUP(DropDownList!$B$27,CntyQuery!$A$77:$FZ$99,DE$1)","v":0},{"$f":"VLOOKUP(DropDownList!$B$27,CntyQuery!$A$77:$FZ$99,DF$1)","v":0},{"$f":"VLOOKUP(DropDownList!$B$27,CntyQuery!$A$77:$FZ$99,DG$1)","v":0},{"$f":"VLOOKUP(DropDownList!$B$27,CntyQuery!$A$77:$FZ$99,DH$1)","v":0},{"$f":"VLOOKUP(DropDownList!$B$27,CntyQuery!$A$77:$FZ$99,DI$1)","v":0},{"$f":"VLOOKUP(DropDownList!$B$27,CntyQuery!$A$77:$FZ$99,DJ$1)","v":0},{"$f":"VLOOKUP(DropDownList!$B$27,CntyQuery!$A$77:$FZ$99,DK$1)","v":-1},{"$f":"VLOOKUP(DropDownList!$B$27,CntyQuery!$A$77:$FZ$99,DL$1)","v":0},{"$f":"VLOOKUP(DropDownList!$B$27,CntyQuery!$A$77:$FZ$99,DM$1)","v":0},{"$f":"VLOOKUP(DropDownList!$B$27,CntyQuery!$A$77:$FZ$99,DN$1)","v":2},{"$f":"VLOOKUP(DropDownList!$B$27,CntyQuery!$A$77:$FZ$99,DO$1)","v":0},{"$f":"VLOOKUP(DropDownList!$B$27,CntyQuery!$A$77:$FZ$99,DP$1)","v":0},{"$f":"VLOOKUP(DropDownList!$B$27,CntyQuery!$A$77:$FZ$99,DQ$1)","v":1},{"$f":"VLOOKUP(DropDownList!$B$27,CntyQuery!$A$77:$FZ$99,DR$1)","v":0},{"$f":"VLOOKUP(DropDownList!$B$27,CntyQuery!$A$77:$FZ$99,DS$1)","v":0},{"$f":"VLOOKUP(DropDownList!$B$27,CntyQuery!$A$77:$FZ$99,DT$1)","v":3},{"$f":"VLOOKUP(DropDownList!$B$27,CntyQuery!$A$77:$FZ$99,DU$1)","v":0},{"$f":"VLOOKUP(DropDownList!$B$27,CntyQuery!$A$77:$FZ$99,DV$1)","v":0},{"$f":"VLOOKUP(DropDownList!$B$27,CntyQuery!$A$77:$FZ$99,DW$1)","v":3},{"$f":"VLOOKUP(DropDownList!$B$27,CntyQuery!$A$77:$FZ$99,DX$1)","v":0},{"$f":"VLOOKUP(DropDownList!$B$27,CntyQuery!$A$77:$FZ$99,DY$1)","v":0},{"$f":"VLOOKUP(DropDownList!$B$27,CntyQuery!$A$77:$FZ$99,DZ$1)","v":5},{"$f":"VLOOKUP(DropDownList!$B$27,CntyQuery!$A$77:$FZ$99,EA$1)","v":0},{"$f":"VLOOKUP(DropDownList!$B$27,CntyQuery!$A$77:$FZ$99,EB$1)","v":0},{"$f":"VLOOKUP(DropDownList!$B$27,CntyQuery!$A$77:$FZ$99,EC$1)","v":8},{"$f":"VLOOKUP(DropDownList!$B$27,CntyQuery!$A$77:$FZ$99,ED$1)","v":0},{"$f":"VLOOKUP(DropDownList!$B$27,CntyQuery!$A$77:$FZ$99,EE$1)","v":0},{"$f":"VLOOKUP(DropDownList!$B$27,CntyQuery!$A$77:$FZ$99,EF$1)","v":0},{"$f":"VLOOKUP(DropDownList!$B$27,CntyQuery!$A$77:$FZ$99,EG$1)","v":0},{"$f":"VLOOKUP(DropDownList!$B$27,CntyQuery!$A$77:$FZ$99,EH$1)","v":0},{"$f":"VLOOKUP(DropDownList!$B$27,CntyQuery!$A$77:$FZ$99,EI$1)","v":7},{"$f":"VLOOKUP(DropDownList!$B$27,CntyQuery!$A$77:$FZ$99,EJ$1)","v":0},{"$f":"VLOOKUP(DropDownList!$B$27,CntyQuery!$A$77:$FZ$99,EK$1)","v":0},{"$f":"VLOOKUP(DropDownList!$B$27,CntyQuery!$A$77:$FZ$99,EL$1)","v":""},{"$f":"VLOOKUP(DropDownList!$B$27,CntyQuery!$A$77:$FZ$99,EM$1)","v":3}]
[]
[]
["NH Employment Data","Query Name: DPQryEmploymentByCnty"]
["AreaName","COUNTYCODE","TOTP & G2001","TOT2001","GOODPRO2001","SERVICEPROMAN2001","WAGEP & G2001","WAGETOT2001","WAGEGOODPRO2001","WAGESERVICEPRO2001","TOTP & G2002","TOT2002","GOODPRO2002","SERVICEPROMAN2002","WAGEP & G2002","WAGETOT2002","WAGEGOODPRO2002","WAGESERVICEPRO2002","TOTP & G2003","TOT2003","GOODPRO2003","SERVICEPROMAN2003","WAGEP & G2003","WAGETOT2003","WAGEGOODPRO2003","WAGESERVICEPRO2003","TOTP & G2004","TOT2004","GOODPRO2004","SERVICEPROMAN2004","WAGEP & G2004","WAGETOT2004","WAGEGOODPRO2004","WAGESERVICEPRO2004","TOTP & G2005","TOT2005","GOODPRO2005","SERVICEPROMAN2005","WAGEP & G2005","WAGETOT2005","WAGEGOODPRO2005","WAGESERVICEPRO2005","TOTP & G2006","TOT2006","GOODPRO2006","SERVICEPROMAN2006","WAGEP & G2006","WAGETOT2006","WAGEGOODPRO2006","WAGESERVICEPRO2006","TOTP & G2007","TOT2007","GOODPRO2007","SERVICEPROMAN2007","WAGEP & G2007","WAGETOT2007","WAGEGOODPRO2007","WAGESERVICEPRO2007","TOTP & G2008","TOT2008","GOODPRO2008","SERVICEPROMAN2008","WAGEP & G2008","WAGETOT2008","WAGEGOODPRO2008","WAGESERVICEPRO2008","TOTP & G2009","TOT2009","GOODPRO2009","SERVICEPROMAN2009","WAGEP & G2009","WAGETOT2009","WAGEGOODPRO2009","WAGESERVICEPRO2009","TOTP & G2010","TOT2010","GOODPRO2010","SERVICEPROMAN2010","WAGEP & G2010","WAGETOT2010","WAGEGOODPRO2010","WAGESERVICEPRO2010","TOTP & G2011","TOT2011","GOODPRO2011","SERVICEPROMAN2011","WAGEP & G2011","WAGETOT2011","WAGEGOODPRO2011","WAGESERVICEPRO2011","TOTP & G2012","TOT2012","GOODPRO2012","SERVICEPROMAN2012","WAGEP & G2012","WAGETOT2012","WAGEGOODPRO2012","WAGESERVICEPRO2012","TOTP & G2013","TOT2013","GOODPRO2013","SERVICEPROMAN2013","WAGEP & G2013","WAGETOT2013","WAGEGOODPRO2013","WAGESERVICEPRO2013","TOTP & G2014","TOT2014","GOODPRO2014","SERVICEPROMAN2014","WAGEP & G2014","WAGETOT2014","WAGEGOODPRO2014","WAGESERVICEPRO2014","TOTP & G2015","TOT2015","GOODPRO2015","SERVICEPROMAN2015","WAGEP & G2015","WAGETOT2015","WAGEGOODPRO2015","WAGESERVICEPRO2015","TOTP & G2016","TOT2016","GOODPRO2016","SERVICEPROMAN2016","WAGEP & G2016","WAGETOT2016","WAGEGOODPRO2016","WAGESERVICEPRO2016","TOTP & G2017","TOT2017","GOODPRO2017","SERVICEPROMAN2017","WAGEP & G2017","WAGETOT2017","WAGEGOODPRO2017","WAGESERVICEPRO2017","TOTP & G2018","TOT2018","GOODPRO2018","SERVICEPROMAN2018","WAGEP & G2018","WAGETOT2018","WAGEGOODPRO2018","WAGESERVICEPRO2018","TOTP & G2019","TOT2019","TOTGov2019","GOODPRO2019","SERVICEPROMAN2019","WAGEP & G2019","WAGETOT2019","WAGEGov2019","WAGEGOODPRO2019","WAGESERVICEPRO2019","TOTP & G2020","TOT2020","TOTGov2020","GOODPRO2020","SERVICEPROMAN2020","WAGEP & G2020","WAGETOT2020","WAGEGov2020","WAGEGOODPRO2020","WAGESERVICEPRO2020","TOTP & G2021","TOT2021","TOTGov2021","GOODPRO2021","SERVICEPROMAN2021","WAGEP & G2021","WAGETOT2021","WAGEGov2021","WAGEGOODPRO2021","WAGESERVICEPRO2021","TOTP & G2022","TOT2022","TOTGov2022","GOODPRO2022","SERVICEPROMAN2022","WAGEP & G2022","WAGETOT2022","WAGEGov2022","WAGEGOODPRO2022","WAGESERVICEPRO2022","SummaryLevel"]
[{"$f":"VLOOKUP(DropDownList!$B$27,CntyQuery!$A$106:$GZ$128,A$1)","v":"Dublin"},{"$f":"VLOOKUP(DropDownList!$B$27,CntyQuery!$A$106:$GZ$128,B$1)","v":3},{"$f":"VLOOKUP(DropDownList!$B$27,CntyQuery!$A$106:$GZ$128,C$1)","v":416},{"$f":"VLOOKUP(DropDownList!$B$27,CntyQuery!$A$106:$GZ$128,D$1)","v":392},{"$f":"VLOOKUP(DropDownList!$B$27,CntyQuery!$A$106:$GZ$128,E$1)","v":59},{"$f":"VLOOKUP(DropDownList!$B$27,CntyQuery!$A$106:$GZ$128,F$1)","v":333},{"$f":"VLOOKUP(DropDownList!$B$27,CntyQuery!$A$106:$GZ$128,G$1)","v":561.74},{"$f":"VLOOKUP(DropDownList!$B$27,CntyQuery!$A$106:$GZ$128,H$1)","v":569.17999999999995},{"$f":"VLOOKUP(DropDownList!$B$27,CntyQuery!$A$106:$GZ$128,I$1)","v":535.78},{"$f":"VLOOKUP(DropDownList!$B$27,CntyQuery!$A$106:$GZ$128,J$1)","v":575.05999999999995},{"$f":"VLOOKUP(DropDownList!$B$27,CntyQuery!$A$106:$GZ$128,K$1)","v":373},{"$f":"VLOOKUP(DropDownList!$B$27,CntyQuery!$A$106:$GZ$128,L$1)","v":334},{"$f":"VLOOKUP(DropDownList!$B$27,CntyQuery!$A$106:$GZ$128,M$1)","v":56},{"$f":"VLOOKUP(DropDownList!$B$27,CntyQuery!$A$106:$GZ$128,N$1)","v":278},{"$f":"VLOOKUP(DropDownList!$B$27,CntyQuery!$A$106:$GZ$128,O$1)","v":543.19000000000005},{"$f":"VLOOKUP(DropDownList!$B$27,CntyQuery!$A$106:$GZ$128,P$1)","v":575.37},{"$f":"VLOOKUP(DropDownList!$B$27,CntyQuery!$A$106:$GZ$128,Q$1)","v":533.98},{"$f":"VLOOKUP(DropDownList!$B$27,CntyQuery!$A$106:$GZ$128,R$1)","v":583.64},{"$f":"VLOOKUP(DropDownList!$B$27,CntyQuery!$A$106:$GZ$128,S$1)","v":357},{"$f":"VLOOKUP(DropDownList!$B$27,CntyQuery!$A$106:$GZ$128,T$1)","v":318},{"$f":"VLOOKUP(DropDownList!$B$27,CntyQuery!$A$106:$GZ$128,U$1)","v":59},{"$f":"VLOOKUP(DropDownList!$B$27,CntyQuery!$A$106:$GZ$128,V$1)","v":260},{"$f":"VLOOKUP(DropDownList!$B$27,CntyQuery!$A$106:$GZ$128,W$1)","v":556.86},{"$f":"VLOOKUP(DropDownList!$B$27,CntyQuery!$A$106:$GZ$128,X$1)","v":589.36},{"$f":"VLOOKUP(DropDownList!$B$27,CntyQuery!$A$106:$GZ$128,Y$1)","v":606.33000000000004},{"$f":"VLOOKUP(DropDownList!$B$27,CntyQuery!$A$106:$GZ$128,Z$1)","v":585.52},{"$f":"VLOOKUP(DropDownList!$B$27,CntyQuery!$A$106:$GZ$128,AA$1)","v":371},{"$f":"VLOOKUP(DropDownList!$B$27,CntyQuery!$A$106:$GZ$128,AB$1)","v":327},{"$f":"VLOOKUP(DropDownList!$B$27,CntyQuery!$A$106:$GZ$128,AC$1)","v":65},{"$f":"VLOOKUP(DropDownList!$B$27,CntyQuery!$A$106:$GZ$128,AD$1)","v":262},{"$f":"VLOOKUP(DropDownList!$B$27,CntyQuery!$A$106:$GZ$128,AE$1)","v":563.99},{"$f":"VLOOKUP(DropDownList!$B$27,CntyQuery!$A$106:$GZ$128,AF$1)","v":603.51},{"$f":"VLOOKUP(DropDownList!$B$27,CntyQuery!$A$106:$GZ$128,AG$1)","v":631.48},{"$f":"VLOOKUP(DropDownList!$B$27,CntyQuery!$A$106:$GZ$128,AH$1)","v":596.63},{"$f":"VLOOKUP(DropDownList!$B$27,CntyQuery!$A$106:$GZ$128,AI$1)","v":371},{"$f":"VLOOKUP(DropDownList!$B$27,CntyQuery!$A$106:$GZ$128,AJ$1)","v":323},{"$f":"VLOOKUP(DropDownList!$B$27,CntyQuery!$A$106:$GZ$128,AK$1)","v":49},{"$f":"VLOOKUP(DropDownList!$B$27,CntyQuery!$A$106:$GZ$128,AL$1)","v":274},{"$f":"VLOOKUP(DropDownList!$B$27,CntyQuery!$A$106:$GZ$128,AM$1)","v":551.91},{"$f":"VLOOKUP(DropDownList!$B$27,CntyQuery!$A$106:$GZ$128,AN$1)","v":591.79999999999995},{"$f":"VLOOKUP(DropDownList!$B$27,CntyQuery!$A$106:$GZ$128,AO$1)","v":691.15},{"$f":"VLOOKUP(DropDownList!$B$27,CntyQuery!$A$106:$GZ$128,AP$1)","v":574.17999999999995},{"$f":"VLOOKUP(DropDownList!$B$27,CntyQuery!$A$106:$GZ$128,AQ$1)","v":363},{"$f":"VLOOKUP(DropDownList!$B$27,CntyQuery!$A$106:$GZ$128,AR$1)","v":315},{"$f":"VLOOKUP(DropDownList!$B$27,CntyQuery!$A$106:$GZ$128,AS$1)","v":51},{"$f":"VLOOKUP(DropDownList!$B$27,CntyQuery!$A$106:$GZ$128,AT$1)","v":265},{"$f":"VLOOKUP(DropDownList!$B$27,CntyQuery!$A$106:$GZ$128,AU$1)","v":578.09},{"$f":"VLOOKUP(DropDownList!$B$27,CntyQuery!$A$106:$GZ$128,AV$1)","v":619.83000000000004},{"$f":"VLOOKUP(DropDownList!$B$27,CntyQuery!$A$106:$GZ$128,AW$1)","v":691.59},{"$f":"VLOOKUP(DropDownList!$B$27,CntyQuery!$A$106:$GZ$128,AX$1)","v":606.02},{"$f":"VLOOKUP(DropDownList!$B$27,CntyQuery!$A$106:$GZ$128,AY$1)","v":338},{"$f":"VLOOKUP(DropDownList!$B$27,CntyQuery!$A$106:$GZ$128,AZ$1)","v":307},{"$f":"VLOOKUP(DropDownList!$B$27,CntyQuery!$A$106:$GZ$128,BA$1)","v":39},{"$f":"VLOOKUP(DropDownList!$B$27,CntyQuery!$A$106:$GZ$128,BB$1)","v":267},{"$f":"VLOOKUP(DropDownList!$B$27,CntyQuery!$A$106:$GZ$128,BC$1)","v":626.61},{"$f":"VLOOKUP(DropDownList!$B$27,CntyQuery!$A$106:$GZ$128,BD$1)","v":635.36},{"$f":"VLOOKUP(DropDownList!$B$27,CntyQuery!$A$106:$GZ$128,BE$1)","v":788.52},{"$f":"VLOOKUP(DropDownList!$B$27,CntyQuery!$A$106:$GZ$128,BF$1)","v":612.77},{"$f":"VLOOKUP(DropDownList!$B$27,CntyQuery!$A$106:$GZ$128,BG$1)","v":337},{"$f":"VLOOKUP(DropDownList!$B$27,CntyQuery!$A$106:$GZ$128,BH$1)","v":307},{"$f":"VLOOKUP(DropDownList!$B$27,CntyQuery!$A$106:$GZ$128,BI$1)","v":39},{"$f":"VLOOKUP(DropDownList!$B$27,CntyQuery!$A$106:$GZ$128,BJ$1)","v":268},{"$f":"VLOOKUP(DropDownList!$B$27,CntyQuery!$A$106:$GZ$128,BK$1)","v":632.85},{"$f":"VLOOKUP(DropDownList!$B$27,CntyQuery!$A$106:$GZ$128,BL$1)","v":642.08000000000004},{"$f":"VLOOKUP(DropDownList!$B$27,CntyQuery!$A$106:$GZ$128,BM$1)","v":763.77},{"$f":"VLOOKUP(DropDownList!$B$27,CntyQuery!$A$106:$GZ$128,BN$1)","v":624.34},{"$f":"VLOOKUP(DropDownList!$B$27,CntyQuery!$A$106:$GZ$128,BO$1)","v":333},{"$f":"VLOOKUP(DropDownList!$B$27,CntyQuery!$A$106:$GZ$128,BP$1)","v":304},{"$f":"VLOOKUP(DropDownList!$B$27,CntyQuery!$A$106:$GZ$128,BQ$1)","v":34},{"$f":"VLOOKUP(DropDownList!$B$27,CntyQuery!$A$106:$GZ$128,BR$1)","v":269},{"$f":"VLOOKUP(DropDownList!$B$27,CntyQuery!$A$106:$GZ$128,BS$1)","v":643.21},{"$f":"VLOOKUP(DropDownList!$B$27,CntyQuery!$A$106:$GZ$128,BT$1)","v":656.46},{"$f":"VLOOKUP(DropDownList!$B$27,CntyQuery!$A$106:$GZ$128,BU$1)","v":793.75},{"$f":"VLOOKUP(DropDownList!$B$27,CntyQuery!$A$106:$GZ$128,BV$1)","v":638.91},{"$f":"VLOOKUP(DropDownList!$B$27,CntyQuery!$A$106:$GZ$128,BW$1)","v":347},{"$f":"VLOOKUP(DropDownList!$B$27,CntyQuery!$A$106:$GZ$128,BX$1)","v":320},{"$f":"VLOOKUP(DropDownList!$B$27,CntyQuery!$A$106:$GZ$128,BY$1)","v":38},{"$f":"VLOOKUP(DropDownList!$B$27,CntyQuery!$A$106:$GZ$128,BZ$1)","v":282},{"$f":"VLOOKUP(DropDownList!$B$27,CntyQuery!$A$106:$GZ$128,CA$1)","v":675.17},{"$f":"VLOOKUP(DropDownList!$B$27,CntyQuery!$A$106:$GZ$128,CB$1)","v":687.91},{"$f":"VLOOKUP(DropDownList!$B$27,CntyQuery!$A$106:$GZ$128,CC$1)","v":829.94},{"$f":"VLOOKUP(DropDownList!$B$27,CntyQuery!$A$106:$GZ$128,CD$1)","v":668.92},{"$f":"VLOOKUP(DropDownList!$B$27,CntyQuery!$A$106:$GZ$128,CE$1)","v":349},{"$f":"VLOOKUP(DropDownList!$B$27,CntyQuery!$A$106:$GZ$128,CF$1)","v":314},{"$f":"VLOOKUP(DropDownList!$B$27,CntyQuery!$A$106:$GZ$128,CG$1)","v":41},{"$f":"VLOOKUP(DropDownList!$B$27,CntyQuery!$A$106:$GZ$128,CH$1)","v":273},{"$f":"VLOOKUP(DropDownList!$B$27,CntyQuery!$A$106:$GZ$128,CI$1)","v":735.29},{"$f":"VLOOKUP(DropDownList!$B$27,CntyQuery!$A$106:$GZ$128,CJ$1)","v":768.1},{"$f":"VLOOKUP(DropDownList!$B$27,CntyQuery!$A$106:$GZ$128,CK$1)","v":834.66},{"$f":"VLOOKUP(DropDownList!$B$27,CntyQuery!$A$106:$GZ$128,CL$1)","v":758.2},{"$f":"VLOOKUP(DropDownList!$B$27,CntyQuery!$A$106:$GZ$128,CM$1)","v":371},{"$f":"VLOOKUP(DropDownList!$B$27,CntyQuery!$A$106:$GZ$128,CN$1)","v":331},{"$f":"VLOOKUP(DropDownList!$B$27,CntyQuery!$A$106:$GZ$128,CO$1)","v":45},{"$f":"VLOOKUP(DropDownList!$B$27,CntyQuery!$A$106:$GZ$128,CP$1)","v":287},{"$f":"VLOOKUP(DropDownList!$B$27,CntyQuery!$A$106:$GZ$128,CQ$1)","v":1095.57},{"$f":"VLOOKUP(DropDownList!$B$27,CntyQuery!$A$106:$GZ$128,CR$1)","v":1176.58},{"$f":"VLOOKUP(DropDownList!$B$27,CntyQuery!$A$106:$GZ$128,CS$1)","v":860.91},{"$f":"VLOOKUP(DropDownList!$B$27,CntyQuery!$A$106:$GZ$128,CT$1)","v":1225.6400000000001},{"$f":"VLOOKUP(DropDownList!$B$27,CntyQuery!$A$106:$GZ$128,CU$1)","v":377},{"$f":"VLOOKUP(DropDownList!$B$27,CntyQuery!$A$106:$GZ$128,CV$1)","v":340},{"$f":"VLOOKUP(DropDownList!$B$27,CntyQuery!$A$106:$GZ$128,CW$1)","v":48},{"$f":"VLOOKUP(DropDownList!$B$27,CntyQuery!$A$106:$GZ$128,CX$1)","v":292},{"$f":"VLOOKUP(DropDownList!$B$27,CntyQuery!$A$106:$GZ$128,CY$1)","v":736.18},{"$f":"VLOOKUP(DropDownList!$B$27,CntyQuery!$A$106:$GZ$128,CZ$1)","v":772.34},{"$f":"VLOOKUP(DropDownList!$B$27,CntyQuery!$A$106:$GZ$128,DA$1)","v":830.02},{"$f":"VLOOKUP(DropDownList!$B$27,CntyQuery!$A$106:$GZ$128,DB$1)","v":762.9},{"$f":"VLOOKUP(DropDownList!$B$27,CntyQuery!$A$106:$GZ$128,DC$1)","v":397},{"$f":"VLOOKUP(DropDownList!$B$27,CntyQuery!$A$106:$GZ$128,DD$1)","v":363},{"$f":"VLOOKUP(DropDownList!$B$27,CntyQuery!$A$106:$GZ$128,DE$1)","v":48},{"$f":"VLOOKUP(DropDownList!$B$27,CntyQuery!$A$106:$GZ$128,DF$1)","v":315},{"$f":"VLOOKUP(DropDownList!$B$27,CntyQuery!$A$106:$GZ$128,DG$1)","v":757.17},{"$f":"VLOOKUP(DropDownList!$B$27,CntyQuery!$A$106:$GZ$128,DH$1)","v":786.75},{"$f":"VLOOKUP(DropDownList!$B$27,CntyQuery!$A$106:$GZ$128,DI$1)","v":890.61},{"$f":"VLOOKUP(DropDownList!$B$27,CntyQuery!$A$106:$GZ$128,DJ$1)","v":770.97},{"$f":"VLOOKUP(DropDownList!$B$27,CntyQuery!$A$106:$GZ$128,DK$1)","v":411},{"$f":"VLOOKUP(DropDownList!$B$27,CntyQuery!$A$106:$GZ$128,DL$1)","v":375},{"$f":"VLOOKUP(DropDownList!$B$27,CntyQuery!$A$106:$GZ$128,DM$1)","v":57},{"$f":"VLOOKUP(DropDownList!$B$27,CntyQuery!$A$106:$GZ$128,DN$1)","v":318},{"$f":"VLOOKUP(DropDownList!$B$27,CntyQuery!$A$106:$GZ$128,DO$1)","v":729.2},{"$f":"VLOOKUP(DropDownList!$B$27,CntyQuery!$A$106:$GZ$128,DP$1)","v":757.74},{"$f":"VLOOKUP(DropDownList!$B$27,CntyQuery!$A$106:$GZ$128,DQ$1)","v":873.61},{"$f":"VLOOKUP(DropDownList!$B$27,CntyQuery!$A$106:$GZ$128,DR$1)","v":737.13},{"$f":"VLOOKUP(DropDownList!$B$27,CntyQuery!$A$106:$GZ$128,DS$1)","v":418},{"$f":"VLOOKUP(DropDownList!$B$27,CntyQuery!$A$106:$GZ$128,DT$1)","v":382},{"$f":"VLOOKUP(DropDownList!$B$27,CntyQuery!$A$106:$GZ$128,DU$1)","v":60},{"$f":"VLOOKUP(DropDownList!$B$27,CntyQuery!$A$106:$GZ$128,DV$1)","v":322},{"$f":"VLOOKUP(DropDownList!$B$27,CntyQuery!$A$106:$GZ$128,DW$1)","v":749.91},{"$f":"VLOOKUP(DropDownList!$B$27,CntyQuery!$A$106:$GZ$128,DX$1)","v":778.08},{"$f":"VLOOKUP(DropDownList!$B$27,CntyQuery!$A$106:$GZ$128,DY$1)","v":912.07},{"$f":"VLOOKUP(DropDownList!$B$27,CntyQuery!$A$106:$GZ$128,DZ$1)","v":752.95},{"$f":"VLOOKUP(DropDownList!$B$27,CntyQuery!$A$106:$GZ$128,EA$1)","v":427},{"$f":"VLOOKUP(DropDownList!$B$27,CntyQuery!$A$106:$GZ$128,EB$1)","v":385},{"$f":"VLOOKUP(DropDownList!$B$27,CntyQuery!$A$106:$GZ$128,EC$1)","v":63},{"$f":"VLOOKUP(DropDownList!$B$27,CntyQuery!$A$106:$GZ$128,ED$1)","v":322},{"$f":"VLOOKUP(DropDownList!$B$27,CntyQuery!$A$106:$GZ$128,EE$1)","v":747.43},{"$f":"VLOOKUP(DropDownList!$B$27,CntyQuery!$A$106:$GZ$128,EF$1)","v":780.34},{"$f":"VLOOKUP(DropDownList!$B$27,CntyQuery!$A$106:$GZ$128,EG$1)","v":935.03},{"$f":"VLOOKUP(DropDownList!$B$27,CntyQuery!$A$106:$GZ$128,EH$1)","v":749.85},{"$f":"VLOOKUP(DropDownList!$B$27,CntyQuery!$A$106:$GZ$128,EI$1)","v":408},{"$f":"VLOOKUP(DropDownList!$B$27,CntyQuery!$A$106:$GZ$128,EJ$1)","v":368},{"$f":"VLOOKUP(DropDownList!$B$27,CntyQuery!$A$106:$GZ$128,EK$1)","v":69},{"$f":"VLOOKUP(DropDownList!$B$27,CntyQuery!$A$106:$GZ$128,EL$1)","v":299},{"$f":"VLOOKUP(DropDownList!$B$27,CntyQuery!$A$106:$GZ$128,EM$1)","v":787.61},{"$f":"VLOOKUP(DropDownList!$B$27,CntyQuery!$A$106:$GZ$128,EN$1)","v":818.82},{"$f":"VLOOKUP(DropDownList!$B$27,CntyQuery!$A$106:$GZ$128,EO$1)","v":952.09},{"$f":"VLOOKUP(DropDownList!$B$27,CntyQuery!$A$106:$GZ$128,EP$1)","v":788.04},{"$f":"VLOOKUP(DropDownList!$B$27,CntyQuery!$A$106:$GZ$128,EQ$1)","v":394},{"$f":"VLOOKUP(DropDownList!$B$27,CntyQuery!$A$106:$GZ$128,ER$1)","v":358},{"$f":"VLOOKUP(DropDownList!$B$27,CntyQuery!$A$106:$GZ$128,ES$1)","v":36},{"$f":"VLOOKUP(DropDownList!$B$27,CntyQuery!$A$106:$GZ$128,ET$1)","v":62},{"$f":"VLOOKUP(DropDownList!$B$27,CntyQuery!$A$106:$GZ$128,EU$1)","v":296},{"$f":"VLOOKUP(DropDownList!$B$27,CntyQuery!$A$106:$GZ$128,EV$1)","v":793.17},{"$f":"VLOOKUP(DropDownList!$B$27,CntyQuery!$A$106:$GZ$128,EW$1)","v":820.84},{"$f":"VLOOKUP(DropDownList!$B$27,CntyQuery!$A$106:$GZ$128,EX$1)","v":517.30999999999995},{"$f":"VLOOKUP(DropDownList!$B$27,CntyQuery!$A$106:$GZ$128,EY$1)","v":907.73},{"$f":"VLOOKUP(DropDownList!$B$27,CntyQuery!$A$106:$GZ$128,EZ$1)","v":802.7},{"$f":"VLOOKUP(DropDownList!$B$27,CntyQuery!$A$106:$GZ$128,FA$1)","v":358},{"$f":"VLOOKUP(DropDownList!$B$27,CntyQuery!$A$106:$GZ$128,FB$1)","v":325},{"$f":"VLOOKUP(DropDownList!$B$27,CntyQuery!$A$106:$GZ$128,FC$1)","v":33},{"$f":"VLOOKUP(DropDownList!$B$27,CntyQuery!$A$106:$GZ$128,FD$1)","v":61},{"$f":"VLOOKUP(DropDownList!$B$27,CntyQuery!$A$106:$GZ$128,FE$1)","v":264},{"$f":"VLOOKUP(DropDownList!$B$27,CntyQuery!$A$106:$GZ$128,FF$1)","v":872.18},{"$f":"VLOOKUP(DropDownList!$B$27,CntyQuery!$A$106:$GZ$128,FG$1)","v":894.59},{"$f":"VLOOKUP(DropDownList!$B$27,CntyQuery!$A$106:$GZ$128,FH$1)","v":649.29},{"$f":"VLOOKUP(DropDownList!$B$27,CntyQuery!$A$106:$GZ$128,FI$1)","v":892.58},{"$f":"VLOOKUP(DropDownList!$B$27,CntyQuery!$A$106:$GZ$128,FJ$1)","v":895.05},{"$f":"VLOOKUP(DropDownList!$B$27,CntyQuery!$A$106:$GZ$128,FK$1)","v":386},{"$f":"VLOOKUP(DropDownList!$B$27,CntyQuery!$A$106:$GZ$128,FL$1)","v":347},{"$f":"VLOOKUP(DropDownList!$B$27,CntyQuery!$A$106:$GZ$128,FM$1)","v":39},{"$f":"VLOOKUP(DropDownList!$B$27,CntyQuery!$A$106:$GZ$128,FN$1)","v":60},{"$f":"VLOOKUP(DropDownList!$B$27,CntyQuery!$A$106:$GZ$128,FO$1)","v":286},{"$f":"VLOOKUP(DropDownList!$B$27,CntyQuery!$A$106:$GZ$128,FP$1)","v":927.31},{"$f":"VLOOKUP(DropDownList!$B$27,CntyQuery!$A$106:$GZ$128,FQ$1)","v":969.12},{"$f":"VLOOKUP(DropDownList!$B$27,CntyQuery!$A$106:$GZ$128,FR$1)","v":559.6},{"$f":"VLOOKUP(DropDownList!$B$27,CntyQuery!$A$106:$GZ$128,FS$1)","v":963.52},{"$f":"VLOOKUP(DropDownList!$B$27,CntyQuery!$A$106:$GZ$128,FT$1)","v":970.31},{"$f":"VLOOKUP(DropDownList!$B$27,CntyQuery!$A$106:$GZ$128,FU$1)","v":408},{"$f":"VLOOKUP(DropDownList!$B$27,CntyQuery!$A$106:$GZ$128,FV$1)","v":368},{"$f":"VLOOKUP(DropDownList!$B$27,CntyQuery!$A$106:$GZ$128,FW$1)","v":4},{"$f":"VLOOKUP(DropDownList!$B$27,CntyQuery!$A$106:$GZ$128,FX$1)","v":57},{"$f":"VLOOKUP(DropDownList!$B$27,CntyQuery!$A$106:$GZ$128,FY$1)","v":40},{"$f":"VLOOKUP(DropDownList!$B$27,CntyQuery!$A$106:$GZ$128,FZ$1)","v":1004},{"$f":"VLOOKUP(DropDownList!$B$27,CntyQuery!$A$106:$GZ$128,GA$1)","v":1050},{"$f":"VLOOKUP(DropDownList!$B$27,CntyQuery!$A$106:$GZ$128,GB$1)","v":1335},{"$f":"VLOOKUP(DropDownList!$B$27,CntyQuery!$A$106:$GZ$128,GC$1)","v":1047},{"$f":"VLOOKUP(DropDownList!$B$27,CntyQuery!$A$106:$GZ$128,GD$1)","v":577},{"$f":"VLOOKUP(DropDownList!$B$27,CntyQuery!$A$106:$GZ$128,GE$1)","v":0}]
[]
[]
[]
[]
[]
[]
[null,null,null,null,null,null,null,null,null,null,null,null,{"$f":"IF((CntyDataLink!$BL$25)=\"n\",NA(),IF(VALUE(CntyDataLink!$BL$25)=\"\",NA(),VALUE(CntyDataLink!$BL$25)))","v":642.08000000000004}]
["Census 2000   -           Query Name:  TownAllQuery3",2,{"$f":"B33+1","v":3},{"$f":"C33+1","v":4},5,6,7,8,9,10,11,12,13,14,15,16,17,18,19,20,21,22,23,24,25,26,27,28,29,30,31,32,33,34,35,36,37,38,39,40,41,42,43,44,45,46,47,48,49,50,51,52,53,54,55,56,57,58,59,60,61,62,63,64,65,66,67,{"$f":"BO33+1","v":68},69,70,71,72,73,74,75,76,77,78,79,80,81,82,83,84,85,86,87,88,89,90,91,92,93,94,95,96,97,98,99,100,101,102]
["NAME","COUNTY","LOGRECNO","COUSUB","TRACT","AREALAND","AREAWATR","POP100","HU100","2000Population","PopOfOneRace","PopWhite","PopBlack","PopAmIndian","PopAsian","PopHawaiian","PopOtherRace","Pop2orMoreRaces","PopHispanicLatino","PopNotHispanicLatino","PopMale","PopMale<15","PopMale15to24","PopMale25to34","PopMale35to44","PopMale45to54","PopMale55to64","PopMale65to74","PopMale75to84","PopMale85andOver","PopFemale","PopFemale<15","PopFemale15to24","PopFemale25to34","PopFemale35t44","PopFemale45to54","PopFemale55to64","PopFemale65to74","PopFemale75to84","PopFemale85andOver","Households2000","PopInHH","AvgHHSize","HHs1Person","HHs2orMorePerson","HHsFamily","HHMarriedCoupleFam","HHSingleParentFam","HHsNonFamily","Families","PopInFam","AvgFamSize","TotHsUnits","OccHsUnits","OwnerOccHU","RenterOccHU","VctHsUnits","VctHUForRent","VctHUForSale","VctHUSeasonal","PopInOccHU","PopInOwnOccHU","PopInRntOccHU","AvgHHSize2","AvgHHSizOwnOcc","AvgHHSizRntOcc","OwnOccWhtHsHldr","OwnOccBlkHsHldr","OwnOccAmIHsHldr","OwnOccAsnHsHldr","OwnOccPIsHsHldr","OwnOccORHsHldr","OwnOcc2RcHsHldr","RntOccWhtHsHldr","RntOccBlkHsHldr","RntOccAmIHsHldr","RntOccAsnHsHldr","RntOccPIsHsHldr","RntOccORHsHldr","RntOcc2RcHsHldr","OwnOccHH15to24","OwnOccHH25to34","OwnOccHH35to44","OwnOccHH45to54","OwnOccHH55to64","OwnOccHH65to74","OwnOccHH75to84","OwnOccHH85Over","RntOccHH15to24","RntOccHH25to34","RntOccHH35to44","RntOccHH45to54","RntOccHH55to64","RntOccHH65to74","RntOccHH75to84","RntOccHH85Over","P27TotalPop","P27PopInHseHlds","P27PopInGrpQtrs","Median Age Total","Median Age (Male)","Median Age (Female)"]
[{"$f":"VLOOKUP(DropDownList!$B$27,CntyQryCensus!$A$4:$CX$26,A$1)","v":"Dublin"},{"$f":"VLOOKUP(DropDownList!$B$27,CntyQryCensus!$A$4:$CX$26,B$1)","v":"005"},{"$f":"VLOOKUP(DropDownList!$B$27,CntyQryCensus!$A$4:$CX$26,C$1)","v":"0005130"},{"$f":"VLOOKUP(DropDownList!$B$27,CntyQryCensus!$A$4:$CX$26,D$1)","v":"19140"},{"$f":"VLOOKUP(DropDownList!$B$27,CntyQryCensus!$A$4:$CX$26,E$1)","v":""},{"$f":"VLOOKUP(DropDownList!$B$27,CntyQryCensus!$A$4:$CX$26,F$1)","v":"      72470860"},{"$f":"VLOOKUP(DropDownList!$B$27,CntyQryCensus!$A$4:$CX$26,G$1)","v":"       2857821"},{"$f":"VLOOKUP(DropDownList!$B$27,CntyQryCensus!$A$4:$CX$26,H$1)","v":"     1476"},{"$f":"VLOOKUP(DropDownList!$B$27,CntyQryCensus!$A$4:$CX$26,I$1)","v":"      686"},{"$f":"VLOOKUP(DropDownList!$B$27,CntyQryCensus!$A$4:$CX$26,J$1)","v":1476},{"$f":"VLOOKUP(DropDownList!$B$27,CntyQryCensus!$A$4:$CX$26,K$1)","v":1469},{"$f":"VLOOKUP(DropDownList!$B$27,CntyQryCensus!$A$4:$CX$26,L$1)","v":1436},{"$f":"VLOOKUP(DropDownList!$B$27,CntyQryCensus!$A$4:$CX$26,M$1)","v":5},{"$f":"VLOOKUP(DropDownList!$B$27,CntyQryCensus!$A$4:$CX$26,N$1)","v":8},{"$f":"VLOOKUP(DropDownList!$B$27,CntyQryCensus!$A$4:$CX$26,O$1)","v":14},{"$f":"VLOOKUP(DropDownList!$B$27,CntyQryCensus!$A$4:$CX$26,P$1)","v":0},{"$f":"VLOOKUP(DropDownList!$B$27,CntyQryCensus!$A$4:$CX$26,Q$1)","v":6},{"$f":"VLOOKUP(DropDownList!$B$27,CntyQryCensus!$A$4:$CX$26,R$1)","v":7},{"$f":"VLOOKUP(DropDownList!$B$27,CntyQryCensus!$A$4:$CX$26,S$1)","v":17},{"$f":"VLOOKUP(DropDownList!$B$27,CntyQryCensus!$A$4:$CX$26,T$1)","v":1459},{"$f":"VLOOKUP(DropDownList!$B$27,CntyQryCensus!$A$4:$CX$26,U$1)","v":742},{"$f":"VLOOKUP(DropDownList!$B$27,CntyQryCensus!$A$4:$CX$26,V$1)","v":135},{"$f":"VLOOKUP(DropDownList!$B$27,CntyQryCensus!$A$4:$CX$26,W$1)","v":92},{"$f":"VLOOKUP(DropDownList!$B$27,CntyQryCensus!$A$4:$CX$26,X$1)","v":61},{"$f":"VLOOKUP(DropDownList!$B$27,CntyQryCensus!$A$4:$CX$26,Y$1)","v":124},{"$f":"VLOOKUP(DropDownList!$B$27,CntyQryCensus!$A$4:$CX$26,Z$1)","v":149},{"$f":"VLOOKUP(DropDownList!$B$27,CntyQryCensus!$A$4:$CX$26,AA$1)","v":85},{"$f":"VLOOKUP(DropDownList!$B$27,CntyQryCensus!$A$4:$CX$26,AB$1)","v":56},{"$f":"VLOOKUP(DropDownList!$B$27,CntyQryCensus!$A$4:$CX$26,AC$1)","v":34},{"$f":"VLOOKUP(DropDownList!$B$27,CntyQryCensus!$A$4:$CX$26,AD$1)","v":6},{"$f":"VLOOKUP(DropDownList!$B$27,CntyQryCensus!$A$4:$CX$26,AE$1)","v":734},{"$f":"VLOOKUP(DropDownList!$B$27,CntyQryCensus!$A$4:$CX$26,AF$1)","v":138},{"$f":"VLOOKUP(DropDownList!$B$27,CntyQryCensus!$A$4:$CX$26,AG$1)","v":67},{"$f":"VLOOKUP(DropDownList!$B$27,CntyQryCensus!$A$4:$CX$26,AH$1)","v":66},{"$f":"VLOOKUP(DropDownList!$B$27,CntyQryCensus!$A$4:$CX$26,AI$1)","v":118},{"$f":"VLOOKUP(DropDownList!$B$27,CntyQryCensus!$A$4:$CX$26,AJ$1)","v":145},{"$f":"VLOOKUP(DropDownList!$B$27,CntyQryCensus!$A$4:$CX$26,AK$1)","v":101},{"$f":"VLOOKUP(DropDownList!$B$27,CntyQryCensus!$A$4:$CX$26,AL$1)","v":63},{"$f":"VLOOKUP(DropDownList!$B$27,CntyQryCensus!$A$4:$CX$26,AM$1)","v":26},{"$f":"VLOOKUP(DropDownList!$B$27,CntyQryCensus!$A$4:$CX$26,AN$1)","v":10},{"$f":"VLOOKUP(DropDownList!$B$27,CntyQryCensus!$A$4:$CX$26,AO$1)","v":560},{"$f":"VLOOKUP(DropDownList!$B$27,CntyQryCensus!$A$4:$CX$26,AP$1)","v":1404},{"$f":"VLOOKUP(DropDownList!$B$27,CntyQryCensus!$A$4:$CX$26,AQ$1)","v":2.5099999999999998},{"$f":"VLOOKUP(DropDownList!$B$27,CntyQryCensus!$A$4:$CX$26,AR$1)","v":118},{"$f":"VLOOKUP(DropDownList!$B$27,CntyQryCensus!$A$4:$CX$26,AS$1)","v":442},{"$f":"VLOOKUP(DropDownList!$B$27,CntyQryCensus!$A$4:$CX$26,AT$1)","v":418},{"$f":"VLOOKUP(DropDownList!$B$27,CntyQryCensus!$A$4:$CX$26,AU$1)","v":366},{"$f":"VLOOKUP(DropDownList!$B$27,CntyQryCensus!$A$4:$CX$26,AV$1)","v":52},{"$f":"VLOOKUP(DropDownList!$B$27,CntyQryCensus!$A$4:$CX$26,AW$1)","v":24},{"$f":"VLOOKUP(DropDownList!$B$27,CntyQryCensus!$A$4:$CX$26,AX$1)","v":418},{"$f":"VLOOKUP(DropDownList!$B$27,CntyQryCensus!$A$4:$CX$26,AY$1)","v":1206},{"$f":"VLOOKUP(DropDownList!$B$27,CntyQryCensus!$A$4:$CX$26,AZ$1)","v":2.89},{"$f":"VLOOKUP(DropDownList!$B$27,CntyQryCensus!$A$4:$CX$26,BA$1)","v":686},{"$f":"VLOOKUP(DropDownList!$B$27,CntyQryCensus!$A$4:$CX$26,BB$1)","v":560},{"$f":"VLOOKUP(DropDownList!$B$27,CntyQryCensus!$A$4:$CX$26,BC$1)","v":454},{"$f":"VLOOKUP(DropDownList!$B$27,CntyQryCensus!$A$4:$CX$26,BD$1)","v":106},{"$f":"VLOOKUP(DropDownList!$B$27,CntyQryCensus!$A$4:$CX$26,BE$1)","v":126},{"$f":"VLOOKUP(DropDownList!$B$27,CntyQryCensus!$A$4:$CX$26,BF$1)","v":0},{"$f":"VLOOKUP(DropDownList!$B$27,CntyQryCensus!$A$4:$CX$26,BG$1)","v":8},{"$f":"VLOOKUP(DropDownList!$B$27,CntyQryCensus!$A$4:$CX$26,BH$1)","v":94},{"$f":"VLOOKUP(DropDownList!$B$27,CntyQryCensus!$A$4:$CX$26,BI$1)","v":1404},{"$f":"VLOOKUP(DropDownList!$B$27,CntyQryCensus!$A$4:$CX$26,BJ$1)","v":1134},{"$f":"VLOOKUP(DropDownList!$B$27,CntyQryCensus!$A$4:$CX$26,BK$1)","v":270},{"$f":"VLOOKUP(DropDownList!$B$27,CntyQryCensus!$A$4:$CX$26,BL$1)","v":2.5099999999999998},{"$f":"VLOOKUP(DropDownList!$B$27,CntyQryCensus!$A$4:$CX$26,BM$1)","v":2.5},{"$f":"VLOOKUP(DropDownList!$B$27,CntyQryCensus!$A$4:$CX$26,BN$1)","v":2.5499999999999998},{"$f":"VLOOKUP(DropDownList!$B$27,CntyQryCensus!$A$4:$CX$26,BO$1)","v":446},{"$f":"VLOOKUP(DropDownList!$B$27,CntyQryCensus!$A$4:$CX$26,BP$1)","v":2},{"$f":"VLOOKUP(DropDownList!$B$27,CntyQryCensus!$A$4:$CX$26,BQ$1)","v":2},{"$f":"VLOOKUP(DropDownList!$B$27,CntyQryCensus!$A$4:$CX$26,BR$1)","v":4},{"$f":"VLOOKUP(DropDownList!$B$27,CntyQryCensus!$A$4:$CX$26,BS$1)","v":0},{"$f":"VLOOKUP(DropDownList!$B$27,CntyQryCensus!$A$4:$CX$26,BT$1)","v":0},{"$f":"VLOOKUP(DropDownList!$B$27,CntyQryCensus!$A$4:$CX$26,BU$1)","v":0},{"$f":"VLOOKUP(DropDownList!$B$27,CntyQryCensus!$A$4:$CX$26,BV$1)","v":105},{"$f":"VLOOKUP(DropDownList!$B$27,CntyQryCensus!$A$4:$CX$26,BW$1)","v":0},{"$f":"VLOOKUP(DropDownList!$B$27,CntyQryCensus!$A$4:$CX$26,BX$1)","v":0},{"$f":"VLOOKUP(DropDownList!$B$27,CntyQryCensus!$A$4:$CX$26,BY$1)","v":0},{"$f":"VLOOKUP(DropDownList!$B$27,CntyQryCensus!$A$4:$CX$26,BZ$1)","v":0},{"$f":"VLOOKUP(DropDownList!$B$27,CntyQryCensus!$A$4:$CX$26,CA$1)","v":1},{"$f":"VLOOKUP(DropDownList!$B$27,CntyQryCensus!$A$4:$CX$26,CB$1)","v":0},{"$f":"VLOOKUP(DropDownList!$B$27,CntyQryCensus!$A$4:$CX$26,CC$1)","v":1},{"$f":"VLOOKUP(DropDownList!$B$27,CntyQryCensus!$A$4:$CX$26,CD$1)","v":30},{"$f":"VLOOKUP(DropDownList!$B$27,CntyQryCensus!$A$4:$CX$26,CE$1)","v":89},{"$f":"VLOOKUP(DropDownList!$B$27,CntyQryCensus!$A$4:$CX$26,CF$1)","v":125},{"$f":"VLOOKUP(DropDownList!$B$27,CntyQryCensus!$A$4:$CX$26,CG$1)","v":95},{"$f":"VLOOKUP(DropDownList!$B$27,CntyQryCensus!$A$4:$CX$26,CH$1)","v":67},{"$f":"VLOOKUP(DropDownList!$B$27,CntyQryCensus!$A$4:$CX$26,CI$1)","v":38},{"$f":"VLOOKUP(DropDownList!$B$27,CntyQryCensus!$A$4:$CX$26,CJ$1)","v":9},{"$f":"VLOOKUP(DropDownList!$B$27,CntyQryCensus!$A$4:$CX$26,CK$1)","v":4},{"$f":"VLOOKUP(DropDownList!$B$27,CntyQryCensus!$A$4:$CX$26,CL$1)","v":15},{"$f":"VLOOKUP(DropDownList!$B$27,CntyQryCensus!$A$4:$CX$26,CM$1)","v":36},{"$f":"VLOOKUP(DropDownList!$B$27,CntyQryCensus!$A$4:$CX$26,CN$1)","v":28},{"$f":"VLOOKUP(DropDownList!$B$27,CntyQryCensus!$A$4:$CX$26,CO$1)","v":14},{"$f":"VLOOKUP(DropDownList!$B$27,CntyQryCensus!$A$4:$CX$26,CP$1)","v":5},{"$f":"VLOOKUP(DropDownList!$B$27,CntyQryCensus!$A$4:$CX$26,CQ$1)","v":2},{"$f":"VLOOKUP(DropDownList!$B$27,CntyQryCensus!$A$4:$CX$26,CR$1)","v":2},{"$f":"VLOOKUP(DropDownList!$B$27,CntyQryCensus!$A$4:$CX$26,CS$1)","v":1476},{"$f":"VLOOKUP(DropDownList!$B$27,CntyQryCensus!$A$4:$CX$26,CT$1)","v":1404},{"$f":"VLOOKUP(DropDownList!$B$27,CntyQryCensus!$A$4:$CX$26,CU$1)","v":72},{"$f":"VLOOKUP(DropDownList!$B$27,CntyQryCensus!$A$4:$CX$26,CV$1)","v":42.8},{"$f":"VLOOKUP(DropDownList!$B$27,CntyQryCensus!$A$4:$CX$26,CW$1)","v":42.4},{"$f":"VLOOKUP(DropDownList!$B$27,CntyQryCensus!$A$4:$CX$26,CX$1)","v":43.2}]
[]
[]
["Census 2000 DemoProfile Sample Data Tables 2&3   -  DPTab23TownQry"]
["NAME","COUSUB","AREANAME","PopInSchool","Preschool","Kindergarten","Elementary","HighSchool","College","Pop25andOver","HighSchoolGrad","SomeCollege","AssocDegree","BachelDegree","GradDegree","HSGradorHigher","CollegeGradorHigher","Pop5to20yrs","Pop5to20wDis","Pop21to64","Pop21to64wDis","Pop65over","Pop65overwDis","Pop5yrsOver","SameHUin95","DiffHUinUSin95","HUinSameCountyin95","HUinSameStatein95","TotalPop","NativePop","NatPopBornUS","NatPopBornInStatRes","NatPopBornDiffState","NatPopBornOutUS","FornBornPop","FornPopEnt90to00","FornPopNatCit","FornPopNotCit","Households","HHIncLessThn10k","HHInc10to15K","HHInc15to25K","HHInc25to35K","HHInc35to50K","HHInc50to75K","HHInc75to100K","HHInc100to150K","HHInc150to200K","HHIncOver200K","MedianHHInc","HHwithPubAssistInc","MeanPubAssist","FamilyHH","FHHIncLessThn10k","FHHInc10to15K","FHHInc15to25K","FHHInc25to35K","FHHInc35to50K","FHHInc50to75K","FHHInc75to100K","FHHInc100to150K","FHHInc150to200K","FHHIncOver200K","MedianFHHInc","PerCapitaInc","PovStatFamilies","PovStatFHHwChilUnd18","PovStatFHHwChilUnd5","PovStFmalHH","DP3088","DP3089","PovStatIndiv","PovStatIndiv18yrOver","PovStatIndiv65yrOver","DP3093","DP3094","DP3095"]
[{"$f":"VLOOKUP(DropDownList!$B$27,CntyQryCensus!$A$33:$BZ$55,A$1)","v":"Dublin"},{"$f":"VLOOKUP(DropDownList!$B$27,CntyQryCensus!$A$33:$BZ$55,B$1)","v":"19140"},{"$f":"VLOOKUP(DropDownList!$B$27,CntyQryCensus!$A$33:$BZ$55,C$1)","v":"Dublin town, Cheshire County, New Hampshire"},{"$f":"VLOOKUP(DropDownList!$B$27,CntyQryCensus!$A$33:$BZ$55,D$1)","v":363},{"$f":"VLOOKUP(DropDownList!$B$27,CntyQryCensus!$A$33:$BZ$55,E$1)","v":22},{"$f":"VLOOKUP(DropDownList!$B$27,CntyQryCensus!$A$33:$BZ$55,F$1)","v":18},{"$f":"VLOOKUP(DropDownList!$B$27,CntyQryCensus!$A$33:$BZ$55,G$1)","v":185},{"$f":"VLOOKUP(DropDownList!$B$27,CntyQryCensus!$A$33:$BZ$55,H$1)","v":97},{"$f":"VLOOKUP(DropDownList!$B$27,CntyQryCensus!$A$33:$BZ$55,I$1)","v":41},{"$f":"VLOOKUP(DropDownList!$B$27,CntyQryCensus!$A$33:$BZ$55,J$1)","v":1037},{"$f":"VLOOKUP(DropDownList!$B$27,CntyQryCensus!$A$33:$BZ$55,K$1)","v":226},{"$f":"VLOOKUP(DropDownList!$B$27,CntyQryCensus!$A$33:$BZ$55,L$1)","v":186},{"$f":"VLOOKUP(DropDownList!$B$27,CntyQryCensus!$A$33:$BZ$55,M$1)","v":70},{"$f":"VLOOKUP(DropDownList!$B$27,CntyQryCensus!$A$33:$BZ$55,N$1)","v":277},{"$f":"VLOOKUP(DropDownList!$B$27,CntyQryCensus!$A$33:$BZ$55,O$1)","v":186},{"$f":"VLOOKUP(DropDownList!$B$27,CntyQryCensus!$A$33:$BZ$55,P$1)","v":945},{"$f":"VLOOKUP(DropDownList!$B$27,CntyQryCensus!$A$33:$BZ$55,Q$1)","v":463},{"$f":"VLOOKUP(DropDownList!$B$27,CntyQryCensus!$A$33:$BZ$55,R$1)","v":319},{"$f":"VLOOKUP(DropDownList!$B$27,CntyQryCensus!$A$33:$BZ$55,S$1)","v":13},{"$f":"VLOOKUP(DropDownList!$B$27,CntyQryCensus!$A$33:$BZ$55,T$1)","v":869},{"$f":"VLOOKUP(DropDownList!$B$27,CntyQryCensus!$A$33:$BZ$55,U$1)","v":150},{"$f":"VLOOKUP(DropDownList!$B$27,CntyQryCensus!$A$33:$BZ$55,V$1)","v":200},{"$f":"VLOOKUP(DropDownList!$B$27,CntyQryCensus!$A$33:$BZ$55,W$1)","v":57},{"$f":"VLOOKUP(DropDownList!$B$27,CntyQryCensus!$A$33:$BZ$55,X$1)","v":1406},{"$f":"VLOOKUP(DropDownList!$B$27,CntyQryCensus!$A$33:$BZ$55,Y$1)","v":828},{"$f":"VLOOKUP(DropDownList!$B$27,CntyQryCensus!$A$33:$BZ$55,Z$1)","v":557},{"$f":"VLOOKUP(DropDownList!$B$27,CntyQryCensus!$A$33:$BZ$55,AA$1)","v":316},{"$f":"VLOOKUP(DropDownList!$B$27,CntyQryCensus!$A$33:$BZ$55,AB$1)","v":241},{"$f":"VLOOKUP(DropDownList!$B$27,CntyQryCensus!$A$33:$BZ$55,AC$1)","v":1476},{"$f":"VLOOKUP(DropDownList!$B$27,CntyQryCensus!$A$33:$BZ$55,AD$1)","v":1428},{"$f":"VLOOKUP(DropDownList!$B$27,CntyQryCensus!$A$33:$BZ$55,AE$1)","v":1405},{"$f":"VLOOKUP(DropDownList!$B$27,CntyQryCensus!$A$33:$BZ$55,AF$1)","v":641},{"$f":"VLOOKUP(DropDownList!$B$27,CntyQryCensus!$A$33:$BZ$55,AG$1)","v":764},{"$f":"VLOOKUP(DropDownList!$B$27,CntyQryCensus!$A$33:$BZ$55,AH$1)","v":23},{"$f":"VLOOKUP(DropDownList!$B$27,CntyQryCensus!$A$33:$BZ$55,AI$1)","v":48},{"$f":"VLOOKUP(DropDownList!$B$27,CntyQryCensus!$A$33:$BZ$55,AJ$1)","v":11},{"$f":"VLOOKUP(DropDownList!$B$27,CntyQryCensus!$A$33:$BZ$55,AK$1)","v":41},{"$f":"VLOOKUP(DropDownList!$B$27,CntyQryCensus!$A$33:$BZ$55,AL$1)","v":7},{"$f":"VLOOKUP(DropDownList!$B$27,CntyQryCensus!$A$33:$BZ$55,AM$1)","v":559},{"$f":"VLOOKUP(DropDownList!$B$27,CntyQryCensus!$A$33:$BZ$55,AN$1)","v":30},{"$f":"VLOOKUP(DropDownList!$B$27,CntyQryCensus!$A$33:$BZ$55,AO$1)","v":19},{"$f":"VLOOKUP(DropDownList!$B$27,CntyQryCensus!$A$33:$BZ$55,AP$1)","v":68},{"$f":"VLOOKUP(DropDownList!$B$27,CntyQryCensus!$A$33:$BZ$55,AQ$1)","v":62},{"$f":"VLOOKUP(DropDownList!$B$27,CntyQryCensus!$A$33:$BZ$55,AR$1)","v":79},{"$f":"VLOOKUP(DropDownList!$B$27,CntyQryCensus!$A$33:$BZ$55,AS$1)","v":141},{"$f":"VLOOKUP(DropDownList!$B$27,CntyQryCensus!$A$33:$BZ$55,AT$1)","v":76},{"$f":"VLOOKUP(DropDownList!$B$27,CntyQryCensus!$A$33:$BZ$55,AU$1)","v":42},{"$f":"VLOOKUP(DropDownList!$B$27,CntyQryCensus!$A$33:$BZ$55,AV$1)","v":13},{"$f":"VLOOKUP(DropDownList!$B$27,CntyQryCensus!$A$33:$BZ$55,AW$1)","v":29},{"$f":"VLOOKUP(DropDownList!$B$27,CntyQryCensus!$A$33:$BZ$55,AX$1)","v":52150},{"$f":"VLOOKUP(DropDownList!$B$27,CntyQryCensus!$A$33:$BZ$55,AY$1)","v":7},{"$f":"VLOOKUP(DropDownList!$B$27,CntyQryCensus!$A$33:$BZ$55,AZ$1)","v":5086},{"$f":"VLOOKUP(DropDownList!$B$27,CntyQryCensus!$A$33:$BZ$55,BA$1)","v":419},{"$f":"VLOOKUP(DropDownList!$B$27,CntyQryCensus!$A$33:$BZ$55,BB$1)","v":14},{"$f":"VLOOKUP(DropDownList!$B$27,CntyQryCensus!$A$33:$BZ$55,BC$1)","v":10},{"$f":"VLOOKUP(DropDownList!$B$27,CntyQryCensus!$A$33:$BZ$55,BD$1)","v":43},{"$f":"VLOOKUP(DropDownList!$B$27,CntyQryCensus!$A$33:$BZ$55,BE$1)","v":36},{"$f":"VLOOKUP(DropDownList!$B$27,CntyQryCensus!$A$33:$BZ$55,BF$1)","v":68},{"$f":"VLOOKUP(DropDownList!$B$27,CntyQryCensus!$A$33:$BZ$55,BG$1)","v":110},{"$f":"VLOOKUP(DropDownList!$B$27,CntyQryCensus!$A$33:$BZ$55,BH$1)","v":67},{"$f":"VLOOKUP(DropDownList!$B$27,CntyQryCensus!$A$33:$BZ$55,BI$1)","v":32},{"$f":"VLOOKUP(DropDownList!$B$27,CntyQryCensus!$A$33:$BZ$55,BJ$1)","v":10},{"$f":"VLOOKUP(DropDownList!$B$27,CntyQryCensus!$A$33:$BZ$55,BK$1)","v":29},{"$f":"VLOOKUP(DropDownList!$B$27,CntyQryCensus!$A$33:$BZ$55,BL$1)","v":57578},{"$f":"VLOOKUP(DropDownList!$B$27,CntyQryCensus!$A$33:$BZ$55,BM$1)","v":27028},{"$f":"VLOOKUP(DropDownList!$B$27,CntyQryCensus!$A$33:$BZ$55,BN$1)","v":25},{"$f":"VLOOKUP(DropDownList!$B$27,CntyQryCensus!$A$33:$BZ$55,BO$1)","v":23},{"$f":"VLOOKUP(DropDownList!$B$27,CntyQryCensus!$A$33:$BZ$55,BP$1)","v":7},{"$f":"VLOOKUP(DropDownList!$B$27,CntyQryCensus!$A$33:$BZ$55,BQ$1)","v":7},{"$f":"VLOOKUP(DropDownList!$B$27,CntyQryCensus!$A$33:$BZ$55,BR$1)","v":7},{"$f":"VLOOKUP(DropDownList!$B$27,CntyQryCensus!$A$33:$BZ$55,BS$1)","v":2},{"$f":"VLOOKUP(DropDownList!$B$27,CntyQryCensus!$A$33:$BZ$55,BT$1)","v":153},{"$f":"VLOOKUP(DropDownList!$B$27,CntyQryCensus!$A$33:$BZ$55,BU$1)","v":95},{"$f":"VLOOKUP(DropDownList!$B$27,CntyQryCensus!$A$33:$BZ$55,BV$1)","v":10},{"$f":"VLOOKUP(DropDownList!$B$27,CntyQryCensus!$A$33:$BZ$55,BW$1)","v":58},{"$f":"VLOOKUP(DropDownList!$B$27,CntyQryCensus!$A$33:$BZ$55,BX$1)","v":43},{"$f":"VLOOKUP(DropDownList!$B$27,CntyQryCensus!$A$33:$BZ$55,BY$1)","v":49}]
[]
[]
["Census 2000 DemoProfile Sample Data Table 4   -  DPTab4TownQry"]
["NAME","COUSUB","TotHousingUnits","1UnitDet","1UnitAtt","2Units","3to4Units","5to9Units","10to19Units","20orMoreUnits","MobileHomes","BoatRvVan","SingleFamilyUnits","MultiFamUnits","MobileHomeUnits","YearBuilt99to00","YearBuilt95to98","YearBUilt90to94","YearBuilt80to89","YearBuilt70to79","YearBuilt60to69","YearBuilt40to59","YearBuilt39orEarlier","Rooms1","Rooms2","Rooms3","Rooms4","Rooms5","Rooms6","Rooms7","Rooms8","Rooms9orMore","MedianRooms","OccHU1","YrHHMvdIn99to00","YrHHMvdIn95to98","YrHHMvdIn90to94","YrHHMvdIn80to89","YrHHMvdIn70to79","YrHHMvdIn69orBefore","HeatFuelNatGas","HeatFuelBotGas","HeatFuelElectric","HeatFuelOil","HeatFuelCoal","HeatFuelWood","HeatFuelSolar","HeatFuelOther","HeatFuelNone","LackCompPlumb","LackCompKit","NoTelephone","OccHU","OccPerRm1orLess","OccPerRm1to1_5","OccPerRm1_5orMore","SpecOwnOccUnits","Value<50K","Value50to100K","Value100to150K","Value150to200K","Value200to300K","Value300to500K","Value500Kto1mil","Value1MilorMore","MedianValue","WithMortg","MnthOwnCst<300","MnthOwnCst300to500","MnthOwnCst500to700","MnthOwnCst700to1000","MnthOwnCst1000to1500","MnthOwnCst1500to2000","MnthOwnCst2000orMore","MediMnthOwnCst","NotMrtg","NotMrtgMediMnthOwnCst","OwnCst%HHInc<15","OwnCst%HHInc15to20","OwnCst%HHInc20to25","OwnCst%HHInc25to30","OwnCst%HHInc30to35","OwnCst%HHInc35orMor","NotComputed","SpecRntOccUnits","Rnt<200","Rnt200to300","Rnt300to500","Rnt500to750","Rnt750to1000","Rnt1000to1500","Rnt1500orMore","NoRent","MedianRent","Rnt%HHInc<15","Rnt%HHInc15to20","Rnt%HHInc20to25","Rnt%HHInc25to30","Rnt%HHInc30to35","Rnt%HHInc35orMore","Rnt%NotCompute"]
[{"$f":"VLOOKUP(DropDownList!$B$27,CntyQryCensus!$A$63:$CX$85,A$1)","v":"Dublin"},{"$f":"VLOOKUP(DropDownList!$B$27,CntyQryCensus!$A$63:$CX$85,B$1)","v":"19140"},{"$f":"VLOOKUP(DropDownList!$B$27,CntyQryCensus!$A$63:$CX$85,C$1)","v":686},{"$f":"VLOOKUP(DropDownList!$B$27,CntyQryCensus!$A$63:$CX$85,D$1)","v":619},{"$f":"VLOOKUP(DropDownList!$B$27,CntyQryCensus!$A$63:$CX$85,E$1)","v":17},{"$f":"VLOOKUP(DropDownList!$B$27,CntyQryCensus!$A$63:$CX$85,F$1)","v":20},{"$f":"VLOOKUP(DropDownList!$B$27,CntyQryCensus!$A$63:$CX$85,G$1)","v":6},{"$f":"VLOOKUP(DropDownList!$B$27,CntyQryCensus!$A$63:$CX$85,H$1)","v":0},{"$f":"VLOOKUP(DropDownList!$B$27,CntyQryCensus!$A$63:$CX$85,I$1)","v":0},{"$f":"VLOOKUP(DropDownList!$B$27,CntyQryCensus!$A$63:$CX$85,J$1)","v":2},{"$f":"VLOOKUP(DropDownList!$B$27,CntyQryCensus!$A$63:$CX$85,K$1)","v":22},{"$f":"VLOOKUP(DropDownList!$B$27,CntyQryCensus!$A$63:$CX$85,L$1)","v":0},{"$f":"VLOOKUP(DropDownList!$B$27,CntyQryCensus!$A$63:$CX$85,M$1)","v":619},{"$f":"VLOOKUP(DropDownList!$B$27,CntyQryCensus!$A$63:$CX$85,N$1)","v":45},{"$f":"VLOOKUP(DropDownList!$B$27,CntyQryCensus!$A$63:$CX$85,O$1)","v":22},{"$f":"VLOOKUP(DropDownList!$B$27,CntyQryCensus!$A$63:$CX$85,P$1)","v":17},{"$f":"VLOOKUP(DropDownList!$B$27,CntyQryCensus!$A$63:$CX$85,Q$1)","v":22},{"$f":"VLOOKUP(DropDownList!$B$27,CntyQryCensus!$A$63:$CX$85,R$1)","v":29},{"$f":"VLOOKUP(DropDownList!$B$27,CntyQryCensus!$A$63:$CX$85,S$1)","v":161},{"$f":"VLOOKUP(DropDownList!$B$27,CntyQryCensus!$A$63:$CX$85,T$1)","v":106},{"$f":"VLOOKUP(DropDownList!$B$27,CntyQryCensus!$A$63:$CX$85,U$1)","v":64},{"$f":"VLOOKUP(DropDownList!$B$27,CntyQryCensus!$A$63:$CX$85,V$1)","v":75},{"$f":"VLOOKUP(DropDownList!$B$27,CntyQryCensus!$A$63:$CX$85,W$1)","v":212},{"$f":"VLOOKUP(DropDownList!$B$27,CntyQryCensus!$A$63:$CX$85,X$1)","v":8},{"$f":"VLOOKUP(DropDownList!$B$27,CntyQryCensus!$A$63:$CX$85,Y$1)","v":2},{"$f":"VLOOKUP(DropDownList!$B$27,CntyQryCensus!$A$63:$CX$85,Z$1)","v":51},{"$f":"VLOOKUP(DropDownList!$B$27,CntyQryCensus!$A$63:$CX$85,AA$1)","v":60},{"$f":"VLOOKUP(DropDownList!$B$27,CntyQryCensus!$A$63:$CX$85,AB$1)","v":103},{"$f":"VLOOKUP(DropDownList!$B$27,CntyQryCensus!$A$63:$CX$85,AC$1)","v":125},{"$f":"VLOOKUP(DropDownList!$B$27,CntyQryCensus!$A$63:$CX$85,AD$1)","v":116},{"$f":"VLOOKUP(DropDownList!$B$27,CntyQryCensus!$A$63:$CX$85,AE$1)","v":81},{"$f":"VLOOKUP(DropDownList!$B$27,CntyQryCensus!$A$63:$CX$85,AF$1)","v":140},{"$f":"VLOOKUP(DropDownList!$B$27,CntyQryCensus!$A$63:$CX$85,AG$1)","v":6.5},{"$f":"VLOOKUP(DropDownList!$B$27,CntyQryCensus!$A$63:$CX$85,AH$1)","v":560},{"$f":"VLOOKUP(DropDownList!$B$27,CntyQryCensus!$A$63:$CX$85,AI$1)","v":72},{"$f":"VLOOKUP(DropDownList!$B$27,CntyQryCensus!$A$63:$CX$85,AJ$1)","v":133},{"$f":"VLOOKUP(DropDownList!$B$27,CntyQryCensus!$A$63:$CX$85,AK$1)","v":111},{"$f":"VLOOKUP(DropDownList!$B$27,CntyQryCensus!$A$63:$CX$85,AL$1)","v":120},{"$f":"VLOOKUP(DropDownList!$B$27,CntyQryCensus!$A$63:$CX$85,AM$1)","v":67},{"$f":"VLOOKUP(DropDownList!$B$27,CntyQryCensus!$A$63:$CX$85,AN$1)","v":57},{"$f":"VLOOKUP(DropDownList!$B$27,CntyQryCensus!$A$63:$CX$85,AO$1)","v":0},{"$f":"VLOOKUP(DropDownList!$B$27,CntyQryCensus!$A$63:$CX$85,AP$1)","v":37},{"$f":"VLOOKUP(DropDownList!$B$27,CntyQryCensus!$A$63:$CX$85,AQ$1)","v":13},{"$f":"VLOOKUP(DropDownList!$B$27,CntyQryCensus!$A$63:$CX$85,AR$1)","v":448},{"$f":"VLOOKUP(DropDownList!$B$27,CntyQryCensus!$A$63:$CX$85,AS$1)","v":0},{"$f":"VLOOKUP(DropDownList!$B$27,CntyQryCensus!$A$63:$CX$85,AT$1)","v":62},{"$f":"VLOOKUP(DropDownList!$B$27,CntyQryCensus!$A$63:$CX$85,AU$1)","v":0},{"$f":"VLOOKUP(DropDownList!$B$27,CntyQryCensus!$A$63:$CX$85,AV$1)","v":0},{"$f":"VLOOKUP(DropDownList!$B$27,CntyQryCensus!$A$63:$CX$85,AW$1)","v":0},{"$f":"VLOOKUP(DropDownList!$B$27,CntyQryCensus!$A$63:$CX$85,AX$1)","v":4},{"$f":"VLOOKUP(DropDownList!$B$27,CntyQryCensus!$A$63:$CX$85,AY$1)","v":2},{"$f":"VLOOKUP(DropDownList!$B$27,CntyQryCensus!$A$63:$CX$85,AZ$1)","v":0},{"$f":"VLOOKUP(DropDownList!$B$27,CntyQryCensus!$A$63:$CX$85,BA$1)","v":560},{"$f":"VLOOKUP(DropDownList!$B$27,CntyQryCensus!$A$63:$CX$85,BB$1)","v":556},{"$f":"VLOOKUP(DropDownList!$B$27,CntyQryCensus!$A$63:$CX$85,BC$1)","v":4},{"$f":"VLOOKUP(DropDownList!$B$27,CntyQryCensus!$A$63:$CX$85,BD$1)","v":0},{"$f":"VLOOKUP(DropDownList!$B$27,CntyQryCensus!$A$63:$CX$85,BE$1)","v":272},{"$f":"VLOOKUP(DropDownList!$B$27,CntyQryCensus!$A$63:$CX$85,BF$1)","v":2},{"$f":"VLOOKUP(DropDownList!$B$27,CntyQryCensus!$A$63:$CX$85,BG$1)","v":49},{"$f":"VLOOKUP(DropDownList!$B$27,CntyQryCensus!$A$63:$CX$85,BH$1)","v":81},{"$f":"VLOOKUP(DropDownList!$B$27,CntyQryCensus!$A$63:$CX$85,BI$1)","v":79},{"$f":"VLOOKUP(DropDownList!$B$27,CntyQryCensus!$A$63:$CX$85,BJ$1)","v":40},{"$f":"VLOOKUP(DropDownList!$B$27,CntyQryCensus!$A$63:$CX$85,BK$1)","v":17},{"$f":"VLOOKUP(DropDownList!$B$27,CntyQryCensus!$A$63:$CX$85,BL$1)","v":4},{"$f":"VLOOKUP(DropDownList!$B$27,CntyQryCensus!$A$63:$CX$85,BM$1)","v":0},{"$f":"VLOOKUP(DropDownList!$B$27,CntyQryCensus!$A$63:$CX$85,BN$1)","v":151900},{"$f":"VLOOKUP(DropDownList!$B$27,CntyQryCensus!$A$63:$CX$85,BO$1)","v":179},{"$f":"VLOOKUP(DropDownList!$B$27,CntyQryCensus!$A$63:$CX$85,BP$1)","v":0},{"$f":"VLOOKUP(DropDownList!$B$27,CntyQryCensus!$A$63:$CX$85,BQ$1)","v":4},{"$f":"VLOOKUP(DropDownList!$B$27,CntyQryCensus!$A$63:$CX$85,BR$1)","v":8},{"$f":"VLOOKUP(DropDownList!$B$27,CntyQryCensus!$A$63:$CX$85,BS$1)","v":41},{"$f":"VLOOKUP(DropDownList!$B$27,CntyQryCensus!$A$63:$CX$85,BT$1)","v":85},{"$f":"VLOOKUP(DropDownList!$B$27,CntyQryCensus!$A$63:$CX$85,BU$1)","v":23},{"$f":"VLOOKUP(DropDownList!$B$27,CntyQryCensus!$A$63:$CX$85,BV$1)","v":18},{"$f":"VLOOKUP(DropDownList!$B$27,CntyQryCensus!$A$63:$CX$85,BW$1)","v":1212},{"$f":"VLOOKUP(DropDownList!$B$27,CntyQryCensus!$A$63:$CX$85,BX$1)","v":93},{"$f":"VLOOKUP(DropDownList!$B$27,CntyQryCensus!$A$63:$CX$85,BY$1)","v":515},{"$f":"VLOOKUP(DropDownList!$B$27,CntyQryCensus!$A$63:$CX$85,BZ$1)","v":69},{"$f":"VLOOKUP(DropDownList!$B$27,CntyQryCensus!$A$63:$CX$85,CA$1)","v":55},{"$f":"VLOOKUP(DropDownList!$B$27,CntyQryCensus!$A$63:$CX$85,CB$1)","v":31},{"$f":"VLOOKUP(DropDownList!$B$27,CntyQryCensus!$A$63:$CX$85,CC$1)","v":30},{"$f":"VLOOKUP(DropDownList!$B$27,CntyQryCensus!$A$63:$CX$85,CD$1)","v":28},{"$f":"VLOOKUP(DropDownList!$B$27,CntyQryCensus!$A$63:$CX$85,CE$1)","v":57},{"$f":"VLOOKUP(DropDownList!$B$27,CntyQryCensus!$A$63:$CX$85,CF$1)","v":2},{"$f":"VLOOKUP(DropDownList!$B$27,CntyQryCensus!$A$63:$CX$85,CG$1)","v":66},{"$f":"VLOOKUP(DropDownList!$B$27,CntyQryCensus!$A$63:$CX$85,CH$1)","v":3},{"$f":"VLOOKUP(DropDownList!$B$27,CntyQryCensus!$A$63:$CX$85,CI$1)","v":2},{"$f":"VLOOKUP(DropDownList!$B$27,CntyQryCensus!$A$63:$CX$85,CJ$1)","v":4},{"$f":"VLOOKUP(DropDownList!$B$27,CntyQryCensus!$A$63:$CX$85,CK$1)","v":28},{"$f":"VLOOKUP(DropDownList!$B$27,CntyQryCensus!$A$63:$CX$85,CL$1)","v":4},{"$f":"VLOOKUP(DropDownList!$B$27,CntyQryCensus!$A$63:$CX$85,CM$1)","v":9},{"$f":"VLOOKUP(DropDownList!$B$27,CntyQryCensus!$A$63:$CX$85,CN$1)","v":0},{"$f":"VLOOKUP(DropDownList!$B$27,CntyQryCensus!$A$63:$CX$85,CO$1)","v":16},{"$f":"VLOOKUP(DropDownList!$B$27,CntyQryCensus!$A$63:$CX$85,CP$1)","v":675},{"$f":"VLOOKUP(DropDownList!$B$27,CntyQryCensus!$A$63:$CX$85,CQ$1)","v":15},{"$f":"VLOOKUP(DropDownList!$B$27,CntyQryCensus!$A$63:$CX$85,CR$1)","v":12},{"$f":"VLOOKUP(DropDownList!$B$27,CntyQryCensus!$A$63:$CX$85,CS$1)","v":8},{"$f":"VLOOKUP(DropDownList!$B$27,CntyQryCensus!$A$63:$CX$85,CT$1)","v":6},{"$f":"VLOOKUP(DropDownList!$B$27,CntyQryCensus!$A$63:$CX$85,CU$1)","v":2},{"$f":"VLOOKUP(DropDownList!$B$27,CntyQryCensus!$A$63:$CX$85,CV$1)","v":7},{"$f":"VLOOKUP(DropDownList!$B$27,CntyQryCensus!$A$63:$CX$85,CW$1)","v":16}]
[]
[]
["Census 2000 SummaryFile3 Sample Data  -  SF3TownQry1SocialChar"]
["NAME","LOGRECNO","COUNTY","P01TotalPopulation","P02SampleCountOfPop","P03Pop100pctCount","P05UrbanPopulation","P05RuralPopulation","P06WhiteAlone","P06BlackOrAfAm","P06AmIndAlone","P06AsianAlone","P06HawaiianOrPI","P06OtherRace","P06TwoPlusRaces","P07NotHispanicOrLatino","P07HispanicOrLatino","P08MalePop","P08FemalePop","P09PopInHouseholds","P09PopInFamHH","P09PopInNonFamHH","P09PopInGroupQtr","P13TotalHH","P13FamilyHH","P13FamHHolder15to24yrs","P13FamHHolder25to34yrs","P13FamHHolder35to44yrs","P13FamHHolder45to54yrs","P13FamHHolder55to64yrs","P13FamHHolder65to74yrs","P13FamHHolder75to84yrs","P13FamHHolder85yrsOver","P13NonFamilyHH","P13NonFamHHolder15to24yrs","P13NonFamHHolder25to34yrs","P13NonFamHHolder35to44yrs","P13NonFamHHolder45to54yrs","P13NonFamHHolder55to64yrs","P13NonFamHHolder65to74yrs","P13NonFamHHolder75to84yrs","P13NonFamHHolder85yrsOver","P18Pop15yrsOver","P18MaritalStatNeverMarried","P18MaritalStatNowMarried","P18MaritalStatSeparated","P18MaritalStatWidowed","P18MaritalStatWidowFemale","P18MaritalStatDivorced","P18MaritalStatDivorcedFemale","P21NativeBornPop","P21NatPopBornInState","P21NatPopBornOtherState","P021005","P021006","P021007","P021008","P21NatPopBornOutUS","P21ForeignBornPop","P021014","P021015","P24Pop5YrsPlus","P24ResSameHouseIn95","P24ResDiffHouseIn95","P24ResDiffHouseInUSIn95","P24ResDiffHouseSameCountyIn95","P24ResDiffHouseDiffCountyIn95","P24ResDiffHouseDiffCntySamStIn95","P24ResDiffHouseDiffCntyDifStIn95","P24ResDiffHouseDiffCntyNEStIn95","P24ResDiffHouseDiffCntyMWStIn95","P24ResDiffHouseDiffCntySoStIn95","P24ResDiffHouseDiffCntyWstStIn95","P24ResDiffInPR","P24ResDiffElsewhereIn95","P26Workers16yrsOver","P26WorkedInState","P26WorkedInCnty","P26WorkedOutsideCnty","P26WorkedOutsideState","P30Workers16Over","P30TranspToWrkCar","P30TranspToWrkPublic","P30TranspToWrkOther","P30WrkdAtHome","P31WrkrsNotWrkAtHom","P31TravTim<5min","P31TravTim5to9Min","P31TravTim10to14Min","P31TravTim15to19Min","P31TravTim20to24Min","P31TravTim25to29Min","P31TravTim30to34Min","P31TravTim35to39Min","P31TravTim40to44Min","P31TravTim45to59Min","P31TravTim60to89Min","P31TravTim90MinMore","P31WorkAtHome","P36SchEnrlPop3yrOver","P36NurserSchEnrl","P36KinderSchEnrl","P36ElemSchEnrl","P36HighSchEnrl","P36CollGradSchEnrl","P37Pop25yrsOver","P37EduAtain<9grd","P37EduAtainHSnoDip","P37EduAtainHSgrad","P37EduAtainCollNoDeg","P37EduAtainAssocDeg","P37EduAtainBachDeg","P37EduAtainGradProfDeg","P42NIPop5to15","P42NIPop5to15wDisabl","P42NIPop16to20","P42NIPop16to20wDisab","P42NIPop16to20wDisEmp","P42NIPop16to21NoDis","P42NIPop16to21NoDisEmpl","P42NIPop21to64","P42NIPop21to64wDis","P42NIPop21to64wDisEmp","P42NIPop21to64NoDis","P42NIPop21to64NoDisEmp","P42NIPop65to74","P42NIPop65to74wDis","P42NIPop75Over","P42NIPop75OverwDis","P43Pop16YrsOver","P43Pop16OvrInLaborForce","P43Pop16OvrCivlLabFrc","P43Pop16OvrCivlLbrFrcEmp","P48Families","P48MarriedFam","P48MarrFamNoWorkers","P48MarrFam1Worker","P48MarrFam2Worker","P48MarrFamHusbWifeWorked","P48MarrFamOther","P48MarrFam3PlusWorker","P48MarrFam3WorkHsbWif","P48MarrFam3PlsWrkOther","P48OtherFam","P48MaleHHNoWif","P48MaleHHNoWifNoWorker","P48MaleHHNoWif1Worker","P48MaleHHNoWif2Worker","P48MaleHHNoWif3PlusWorker","P48FemaleHHNoHsb","P48FemaleHHNoHsbNoWorker","P48FemaleHHNoHsb1Worker","P48FemaleHHNoHsb2Worker","P48FemaleHHNoHsb3Worker","P49EmpCivPop16YrOver","P49IndustAgricult","P49IndustConst","P49IndustMnftg","P49IndustWhlslTrd","P49IndustRtlTrd","P49IndustTrspWrhsUtlt","P49IndustInfrm","P49IndustFinInsRE","P49IndustPrfsScntfMngmt","P49IndustEduHlthSocSrv","P49IndustArtsEntRec","P49IndustOthrSrvc","P49IndustPubAdm","P50OccupMngmtProfs","P50OccupService","P50OccupSalesOff","P50OccupFarmFishForest","P50OccupConstExtrctMaint","P50OccupPrdctTrnspMatMv"]
[{"$f":"VLOOKUP(DropDownList!$B$27,CntyQryCensus!$A$95:$FR$117,A$1)","v":"Dublin"},{"$f":"VLOOKUP(DropDownList!$B$27,CntyQryCensus!$A$95:$FR$117,B$1)","v":"0000525"},{"$f":"VLOOKUP(DropDownList!$B$27,CntyQryCensus!$A$95:$FR$117,C$1)","v":"19140"},{"$f":"VLOOKUP(DropDownList!$B$27,CntyQryCensus!$A$95:$FR$117,D$1)","v":1476},{"$f":"VLOOKUP(DropDownList!$B$27,CntyQryCensus!$A$95:$FR$117,E$1)","v":653},{"$f":"VLOOKUP(DropDownList!$B$27,CntyQryCensus!$A$95:$FR$117,F$1)","v":1476},{"$f":"VLOOKUP(DropDownList!$B$27,CntyQryCensus!$A$95:$FR$117,G$1)","v":0},{"$f":"VLOOKUP(DropDownList!$B$27,CntyQryCensus!$A$95:$FR$117,H$1)","v":1476},{"$f":"VLOOKUP(DropDownList!$B$27,CntyQryCensus!$A$95:$FR$117,I$1)","v":1444},{"$f":"VLOOKUP(DropDownList!$B$27,CntyQryCensus!$A$95:$FR$117,J$1)","v":6},{"$f":"VLOOKUP(DropDownList!$B$27,CntyQryCensus!$A$95:$FR$117,K$1)","v":0},{"$f":"VLOOKUP(DropDownList!$B$27,CntyQryCensus!$A$95:$FR$117,L$1)","v":10},{"$f":"VLOOKUP(DropDownList!$B$27,CntyQryCensus!$A$95:$FR$117,M$1)","v":0},{"$f":"VLOOKUP(DropDownList!$B$27,CntyQryCensus!$A$95:$FR$117,N$1)","v":2},{"$f":"VLOOKUP(DropDownList!$B$27,CntyQryCensus!$A$95:$FR$117,O$1)","v":14},{"$f":"VLOOKUP(DropDownList!$B$27,CntyQryCensus!$A$95:$FR$117,P$1)","v":1470},{"$f":"VLOOKUP(DropDownList!$B$27,CntyQryCensus!$A$95:$FR$117,Q$1)","v":6},{"$f":"VLOOKUP(DropDownList!$B$27,CntyQryCensus!$A$95:$FR$117,R$1)","v":744},{"$f":"VLOOKUP(DropDownList!$B$27,CntyQryCensus!$A$95:$FR$117,S$1)","v":732},{"$f":"VLOOKUP(DropDownList!$B$27,CntyQryCensus!$A$95:$FR$117,T$1)","v":1404},{"$f":"VLOOKUP(DropDownList!$B$27,CntyQryCensus!$A$95:$FR$117,U$1)","v":1245},{"$f":"VLOOKUP(DropDownList!$B$27,CntyQryCensus!$A$95:$FR$117,V$1)","v":159},{"$f":"VLOOKUP(DropDownList!$B$27,CntyQryCensus!$A$95:$FR$117,W$1)","v":72},{"$f":"VLOOKUP(DropDownList!$B$27,CntyQryCensus!$A$95:$FR$117,X$1)","v":559},{"$f":"VLOOKUP(DropDownList!$B$27,CntyQryCensus!$A$95:$FR$117,Y$1)","v":419},{"$f":"VLOOKUP(DropDownList!$B$27,CntyQryCensus!$A$95:$FR$117,Z$1)","v":3},{"$f":"VLOOKUP(DropDownList!$B$27,CntyQryCensus!$A$95:$FR$117,AA$1)","v":36},{"$f":"VLOOKUP(DropDownList!$B$27,CntyQryCensus!$A$95:$FR$117,AB$1)","v":92},{"$f":"VLOOKUP(DropDownList!$B$27,CntyQryCensus!$A$95:$FR$117,AC$1)","v":124},{"$f":"VLOOKUP(DropDownList!$B$27,CntyQryCensus!$A$95:$FR$117,AD$1)","v":75},{"$f":"VLOOKUP(DropDownList!$B$27,CntyQryCensus!$A$95:$FR$117,AE$1)","v":55},{"$f":"VLOOKUP(DropDownList!$B$27,CntyQryCensus!$A$95:$FR$117,AF$1)","v":29},{"$f":"VLOOKUP(DropDownList!$B$27,CntyQryCensus!$A$95:$FR$117,AG$1)","v":5},{"$f":"VLOOKUP(DropDownList!$B$27,CntyQryCensus!$A$95:$FR$117,AH$1)","v":140},{"$f":"VLOOKUP(DropDownList!$B$27,CntyQryCensus!$A$95:$FR$117,AI$1)","v":0},{"$f":"VLOOKUP(DropDownList!$B$27,CntyQryCensus!$A$95:$FR$117,AJ$1)","v":18},{"$f":"VLOOKUP(DropDownList!$B$27,CntyQryCensus!$A$95:$FR$117,AK$1)","v":25},{"$f":"VLOOKUP(DropDownList!$B$27,CntyQryCensus!$A$95:$FR$117,AL$1)","v":27},{"$f":"VLOOKUP(DropDownList!$B$27,CntyQryCensus!$A$95:$FR$117,AM$1)","v":25},{"$f":"VLOOKUP(DropDownList!$B$27,CntyQryCensus!$A$95:$FR$117,AN$1)","v":24},{"$f":"VLOOKUP(DropDownList!$B$27,CntyQryCensus!$A$95:$FR$117,AO$1)","v":14},{"$f":"VLOOKUP(DropDownList!$B$27,CntyQryCensus!$A$95:$FR$117,AP$1)","v":7},{"$f":"VLOOKUP(DropDownList!$B$27,CntyQryCensus!$A$95:$FR$117,AQ$1)","v":1192},{"$f":"VLOOKUP(DropDownList!$B$27,CntyQryCensus!$A$95:$FR$117,AR$1)","v":257},{"$f":"VLOOKUP(DropDownList!$B$27,CntyQryCensus!$A$95:$FR$117,AS$1)","v":781},{"$f":"VLOOKUP(DropDownList!$B$27,CntyQryCensus!$A$95:$FR$117,AT$1)","v":26},{"$f":"VLOOKUP(DropDownList!$B$27,CntyQryCensus!$A$95:$FR$117,AU$1)","v":42},{"$f":"VLOOKUP(DropDownList!$B$27,CntyQryCensus!$A$95:$FR$117,AV$1)","v":40},{"$f":"VLOOKUP(DropDownList!$B$27,CntyQryCensus!$A$95:$FR$117,AW$1)","v":86},{"$f":"VLOOKUP(DropDownList!$B$27,CntyQryCensus!$A$95:$FR$117,AX$1)","v":45},{"$f":"VLOOKUP(DropDownList!$B$27,CntyQryCensus!$A$95:$FR$117,AY$1)","v":1428},{"$f":"VLOOKUP(DropDownList!$B$27,CntyQryCensus!$A$95:$FR$117,AZ$1)","v":641},{"$f":"VLOOKUP(DropDownList!$B$27,CntyQryCensus!$A$95:$FR$117,BA$1)","v":764},{"$f":"VLOOKUP(DropDownList!$B$27,CntyQryCensus!$A$95:$FR$117,BB$1)","v":615},{"$f":"VLOOKUP(DropDownList!$B$27,CntyQryCensus!$A$95:$FR$117,BC$1)","v":74},{"$f":"VLOOKUP(DropDownList!$B$27,CntyQryCensus!$A$95:$FR$117,BD$1)","v":42},{"$f":"VLOOKUP(DropDownList!$B$27,CntyQryCensus!$A$95:$FR$117,BE$1)","v":33},{"$f":"VLOOKUP(DropDownList!$B$27,CntyQryCensus!$A$95:$FR$117,BF$1)","v":23},{"$f":"VLOOKUP(DropDownList!$B$27,CntyQryCensus!$A$95:$FR$117,BG$1)","v":48},{"$f":"VLOOKUP(DropDownList!$B$27,CntyQryCensus!$A$95:$FR$117,BH$1)","v":41},{"$f":"VLOOKUP(DropDownList!$B$27,CntyQryCensus!$A$95:$FR$117,BI$1)","v":7},{"$f":"VLOOKUP(DropDownList!$B$27,CntyQryCensus!$A$95:$FR$117,BJ$1)","v":1406},{"$f":"VLOOKUP(DropDownList!$B$27,CntyQryCensus!$A$95:$FR$117,BK$1)","v":828},{"$f":"VLOOKUP(DropDownList!$B$27,CntyQryCensus!$A$95:$FR$117,BL$1)","v":578},{"$f":"VLOOKUP(DropDownList!$B$27,CntyQryCensus!$A$95:$FR$117,BM$1)","v":557},{"$f":"VLOOKUP(DropDownList!$B$27,CntyQryCensus!$A$95:$FR$117,BN$1)","v":316},{"$f":"VLOOKUP(DropDownList!$B$27,CntyQryCensus!$A$95:$FR$117,BO$1)","v":241},{"$f":"VLOOKUP(DropDownList!$B$27,CntyQryCensus!$A$95:$FR$117,BP$1)","v":103},{"$f":"VLOOKUP(DropDownList!$B$27,CntyQryCensus!$A$95:$FR$117,BQ$1)","v":138},{"$f":"VLOOKUP(DropDownList!$B$27,CntyQryCensus!$A$95:$FR$117,BR$1)","v":112},{"$f":"VLOOKUP(DropDownList!$B$27,CntyQryCensus!$A$95:$FR$117,BS$1)","v":11},{"$f":"VLOOKUP(DropDownList!$B$27,CntyQryCensus!$A$95:$FR$117,BT$1)","v":7},{"$f":"VLOOKUP(DropDownList!$B$27,CntyQryCensus!$A$95:$FR$117,BU$1)","v":8},{"$f":"VLOOKUP(DropDownList!$B$27,CntyQryCensus!$A$95:$FR$117,BV$1)","v":0},{"$f":"VLOOKUP(DropDownList!$B$27,CntyQryCensus!$A$95:$FR$117,BW$1)","v":21},{"$f":"VLOOKUP(DropDownList!$B$27,CntyQryCensus!$A$95:$FR$117,BX$1)","v":730},{"$f":"VLOOKUP(DropDownList!$B$27,CntyQryCensus!$A$95:$FR$117,BY$1)","v":684},{"$f":"VLOOKUP(DropDownList!$B$27,CntyQryCensus!$A$95:$FR$117,BZ$1)","v":453},{"$f":"VLOOKUP(DropDownList!$B$27,CntyQryCensus!$A$95:$FR$117,CA$1)","v":231},{"$f":"VLOOKUP(DropDownList!$B$27,CntyQryCensus!$A$95:$FR$117,CB$1)","v":46},{"$f":"VLOOKUP(DropDownList!$B$27,CntyQryCensus!$A$95:$FR$117,CC$1)","v":730},{"$f":"VLOOKUP(DropDownList!$B$27,CntyQryCensus!$A$95:$FR$117,CD$1)","v":614},{"$f":"VLOOKUP(DropDownList!$B$27,CntyQryCensus!$A$95:$FR$117,CE$1)","v":0},{"$f":"VLOOKUP(DropDownList!$B$27,CntyQryCensus!$A$95:$FR$117,CF$1)","v":9},{"$f":"VLOOKUP(DropDownList!$B$27,CntyQryCensus!$A$95:$FR$117,CG$1)","v":72},{"$f":"VLOOKUP(DropDownList!$B$27,CntyQryCensus!$A$95:$FR$117,CH$1)","v":658},{"$f":"VLOOKUP(DropDownList!$B$27,CntyQryCensus!$A$95:$FR$117,CI$1)","v":42},{"$f":"VLOOKUP(DropDownList!$B$27,CntyQryCensus!$A$95:$FR$117,CJ$1)","v":81},{"$f":"VLOOKUP(DropDownList!$B$27,CntyQryCensus!$A$95:$FR$117,CK$1)","v":86},{"$f":"VLOOKUP(DropDownList!$B$27,CntyQryCensus!$A$95:$FR$117,CL$1)","v":133},{"$f":"VLOOKUP(DropDownList!$B$27,CntyQryCensus!$A$95:$FR$117,CM$1)","v":83},{"$f":"VLOOKUP(DropDownList!$B$27,CntyQryCensus!$A$95:$FR$117,CN$1)","v":58},{"$f":"VLOOKUP(DropDownList!$B$27,CntyQryCensus!$A$95:$FR$117,CO$1)","v":55},{"$f":"VLOOKUP(DropDownList!$B$27,CntyQryCensus!$A$95:$FR$117,CP$1)","v":22},{"$f":"VLOOKUP(DropDownList!$B$27,CntyQryCensus!$A$95:$FR$117,CQ$1)","v":10},{"$f":"VLOOKUP(DropDownList!$B$27,CntyQryCensus!$A$95:$FR$117,CR$1)","v":18},{"$f":"VLOOKUP(DropDownList!$B$27,CntyQryCensus!$A$95:$FR$117,CS$1)","v":21},{"$f":"VLOOKUP(DropDownList!$B$27,CntyQryCensus!$A$95:$FR$117,CT$1)","v":49},{"$f":"VLOOKUP(DropDownList!$B$27,CntyQryCensus!$A$95:$FR$117,CU$1)","v":72},{"$f":"VLOOKUP(DropDownList!$B$27,CntyQryCensus!$A$95:$FR$117,CV$1)","v":1441},{"$f":"VLOOKUP(DropDownList!$B$27,CntyQryCensus!$A$95:$FR$117,CW$1)","v":22},{"$f":"VLOOKUP(DropDownList!$B$27,CntyQryCensus!$A$95:$FR$117,CX$1)","v":18},{"$f":"VLOOKUP(DropDownList!$B$27,CntyQryCensus!$A$95:$FR$117,CY$1)","v":185},{"$f":"VLOOKUP(DropDownList!$B$27,CntyQryCensus!$A$95:$FR$117,CZ$1)","v":97},{"$f":"VLOOKUP(DropDownList!$B$27,CntyQryCensus!$A$95:$FR$117,DA$1)","v":41},{"$f":"VLOOKUP(DropDownList!$B$27,CntyQryCensus!$A$95:$FR$117,DB$1)","v":1037},{"$f":"VLOOKUP(DropDownList!$B$27,CntyQryCensus!$A$95:$FR$117,DC$1)","v":14},{"$f":"VLOOKUP(DropDownList!$B$27,CntyQryCensus!$A$95:$FR$117,DD$1)","v":78},{"$f":"VLOOKUP(DropDownList!$B$27,CntyQryCensus!$A$95:$FR$117,DE$1)","v":226},{"$f":"VLOOKUP(DropDownList!$B$27,CntyQryCensus!$A$95:$FR$117,DF$1)","v":186},{"$f":"VLOOKUP(DropDownList!$B$27,CntyQryCensus!$A$95:$FR$117,DG$1)","v":70},{"$f":"VLOOKUP(DropDownList!$B$27,CntyQryCensus!$A$95:$FR$117,DH$1)","v":277},{"$f":"VLOOKUP(DropDownList!$B$27,CntyQryCensus!$A$95:$FR$117,DI$1)","v":186},{"$f":"VLOOKUP(DropDownList!$B$27,CntyQryCensus!$A$95:$FR$117,DJ$1)","v":238},{"$f":"VLOOKUP(DropDownList!$B$27,CntyQryCensus!$A$95:$FR$117,DK$1)","v":7},{"$f":"VLOOKUP(DropDownList!$B$27,CntyQryCensus!$A$95:$FR$117,DL$1)","v":81},{"$f":"VLOOKUP(DropDownList!$B$27,CntyQryCensus!$A$95:$FR$117,DM$1)","v":6},{"$f":"VLOOKUP(DropDownList!$B$27,CntyQryCensus!$A$95:$FR$117,DN$1)","v":4},{"$f":"VLOOKUP(DropDownList!$B$27,CntyQryCensus!$A$95:$FR$117,DO$1)","v":75},{"$f":"VLOOKUP(DropDownList!$B$27,CntyQryCensus!$A$95:$FR$117,DP$1)","v":22},{"$f":"VLOOKUP(DropDownList!$B$27,CntyQryCensus!$A$95:$FR$117,DQ$1)","v":869},{"$f":"VLOOKUP(DropDownList!$B$27,CntyQryCensus!$A$95:$FR$117,DR$1)","v":150},{"$f":"VLOOKUP(DropDownList!$B$27,CntyQryCensus!$A$95:$FR$117,DS$1)","v":119},{"$f":"VLOOKUP(DropDownList!$B$27,CntyQryCensus!$A$95:$FR$117,DT$1)","v":719},{"$f":"VLOOKUP(DropDownList!$B$27,CntyQryCensus!$A$95:$FR$117,DU$1)","v":560},{"$f":"VLOOKUP(DropDownList!$B$27,CntyQryCensus!$A$95:$FR$117,DV$1)","v":120},{"$f":"VLOOKUP(DropDownList!$B$27,CntyQryCensus!$A$95:$FR$117,DW$1)","v":23},{"$f":"VLOOKUP(DropDownList!$B$27,CntyQryCensus!$A$95:$FR$117,DX$1)","v":80},{"$f":"VLOOKUP(DropDownList!$B$27,CntyQryCensus!$A$95:$FR$117,DY$1)","v":34},{"$f":"VLOOKUP(DropDownList!$B$27,CntyQryCensus!$A$95:$FR$117,DZ$1)","v":1168},{"$f":"VLOOKUP(DropDownList!$B$27,CntyQryCensus!$A$95:$FR$117,EA$1)","v":778},{"$f":"VLOOKUP(DropDownList!$B$27,CntyQryCensus!$A$95:$FR$117,EB$1)","v":778},{"$f":"VLOOKUP(DropDownList!$B$27,CntyQryCensus!$A$95:$FR$117,EC$1)","v":747},{"$f":"VLOOKUP(DropDownList!$B$27,CntyQryCensus!$A$95:$FR$117,ED$1)","v":419},{"$f":"VLOOKUP(DropDownList!$B$27,CntyQryCensus!$A$95:$FR$117,EE$1)","v":374},{"$f":"VLOOKUP(DropDownList!$B$27,CntyQryCensus!$A$95:$FR$117,EF$1)","v":49},{"$f":"VLOOKUP(DropDownList!$B$27,CntyQryCensus!$A$95:$FR$117,EG$1)","v":81},{"$f":"VLOOKUP(DropDownList!$B$27,CntyQryCensus!$A$95:$FR$117,EH$1)","v":204},{"$f":"VLOOKUP(DropDownList!$B$27,CntyQryCensus!$A$95:$FR$117,EI$1)","v":197},{"$f":"VLOOKUP(DropDownList!$B$27,CntyQryCensus!$A$95:$FR$117,EJ$1)","v":7},{"$f":"VLOOKUP(DropDownList!$B$27,CntyQryCensus!$A$95:$FR$117,EK$1)","v":40},{"$f":"VLOOKUP(DropDownList!$B$27,CntyQryCensus!$A$95:$FR$117,EL$1)","v":38},{"$f":"VLOOKUP(DropDownList!$B$27,CntyQryCensus!$A$95:$FR$117,EM$1)","v":2},{"$f":"VLOOKUP(DropDownList!$B$27,CntyQryCensus!$A$95:$FR$117,EN$1)","v":45},{"$f":"VLOOKUP(DropDownList!$B$27,CntyQryCensus!$A$95:$FR$117,EO$1)","v":14},{"$f":"VLOOKUP(DropDownList!$B$27,CntyQryCensus!$A$95:$FR$117,EP$1)","v":2},{"$f":"VLOOKUP(DropDownList!$B$27,CntyQryCensus!$A$95:$FR$117,EQ$1)","v":10},{"$f":"VLOOKUP(DropDownList!$B$27,CntyQryCensus!$A$95:$FR$117,ER$1)","v":2},{"$f":"VLOOKUP(DropDownList!$B$27,CntyQryCensus!$A$95:$FR$117,ES$1)","v":0},{"$f":"VLOOKUP(DropDownList!$B$27,CntyQryCensus!$A$95:$FR$117,ET$1)","v":31},{"$f":"VLOOKUP(DropDownList!$B$27,CntyQryCensus!$A$95:$FR$117,EU$1)","v":2},{"$f":"VLOOKUP(DropDownList!$B$27,CntyQryCensus!$A$95:$FR$117,EV$1)","v":14},{"$f":"VLOOKUP(DropDownList!$B$27,CntyQryCensus!$A$95:$FR$117,EW$1)","v":8},{"$f":"VLOOKUP(DropDownList!$B$27,CntyQryCensus!$A$95:$FR$117,EX$1)","v":7},{"$f":"VLOOKUP(DropDownList!$B$27,CntyQryCensus!$A$95:$FR$117,EY$1)","v":747},{"$f":"VLOOKUP(DropDownList!$B$27,CntyQryCensus!$A$95:$FR$117,EZ$1)","v":23},{"$f":"VLOOKUP(DropDownList!$B$27,CntyQryCensus!$A$95:$FR$117,FA$1)","v":53},{"$f":"VLOOKUP(DropDownList!$B$27,CntyQryCensus!$A$95:$FR$117,FB$1)","v":115},{"$f":"VLOOKUP(DropDownList!$B$27,CntyQryCensus!$A$95:$FR$117,FC$1)","v":15},{"$f":"VLOOKUP(DropDownList!$B$27,CntyQryCensus!$A$95:$FR$117,FD$1)","v":76},{"$f":"VLOOKUP(DropDownList!$B$27,CntyQryCensus!$A$95:$FR$117,FE$1)","v":29},{"$f":"VLOOKUP(DropDownList!$B$27,CntyQryCensus!$A$95:$FR$117,FF$1)","v":23},{"$f":"VLOOKUP(DropDownList!$B$27,CntyQryCensus!$A$95:$FR$117,FG$1)","v":35},{"$f":"VLOOKUP(DropDownList!$B$27,CntyQryCensus!$A$95:$FR$117,FH$1)","v":72},{"$f":"VLOOKUP(DropDownList!$B$27,CntyQryCensus!$A$95:$FR$117,FI$1)","v":199},{"$f":"VLOOKUP(DropDownList!$B$27,CntyQryCensus!$A$95:$FR$117,FJ$1)","v":31},{"$f":"VLOOKUP(DropDownList!$B$27,CntyQryCensus!$A$95:$FR$117,FK$1)","v":62},{"$f":"VLOOKUP(DropDownList!$B$27,CntyQryCensus!$A$95:$FR$117,FL$1)","v":14},{"$f":"VLOOKUP(DropDownList!$B$27,CntyQryCensus!$A$95:$FR$117,FM$1)","v":318},{"$f":"VLOOKUP(DropDownList!$B$27,CntyQryCensus!$A$95:$FR$117,FN$1)","v":118},{"$f":"VLOOKUP(DropDownList!$B$27,CntyQryCensus!$A$95:$FR$117,FO$1)","v":147},{"$f":"VLOOKUP(DropDownList!$B$27,CntyQryCensus!$A$95:$FR$117,FP$1)","v":11},{"$f":"VLOOKUP(DropDownList!$B$27,CntyQryCensus!$A$95:$FR$117,FQ$1)","v":71},{"$f":"VLOOKUP(DropDownList!$B$27,CntyQryCensus!$A$95:$FR$117,FR$1)","v":82}]
[]
[]
["Census 2000 SummaryFile3 Sample Data  -  SF3TownQry2aIncomeChar"]
["NAME","LOGRECNO","COUNTY","TotalPop","P52Households1","P52HHInc<10K","P52HHInc10to15K","P52HHInc15to20K","P52HHInc20to25K","P52HHInc25to30K","P52HHInc30to35K","P52HHInc35to40K","P52HHInc40to45K","P52HHInc45to50K","P52HHInc50to60K","P52HHInc60to75K","P52HHInc75to100K","P52HHInc100to125K","P52HHInc125to150K","P52HHInc150to200K","P52HHInc>200K","P53MedianHHInc","P54AggregHHInc","P55Households2","P55HHUnder25yrs","P55HH<25HHInc<10K","P55HH<25HHInc10to15K","P55HH<25HHInc15to20K","P55HH<25HHInc20to25K","P55HH<25HHInc25to30K","P55HH<25HHInc30to35K","P55HH<25HHInc35to40K","P55HH<25HHInc40to45K","P55HH<25HHInc45to50K","P55HH<25HHInc50to60K","P55HH<25HHInc60to75K","P55HH<25HHInc75to100K","P55HH<25HHInc100to125K","P55HH<25HHInc125to150K","P55HH<25HHInc150to200K","P55HH<25HHInc>200K","P55HH25to34yrs","P55HH25to34HHInc<10K","P55HH25to34HHInc10to15K","P55HH25to34HHInc15to20K","P55HH25to34HHInc20to25K","P55HH25to34HHInc25to30K","P55HH25to34HHInc30to35K","P55HH25to34HHInc35to40K","P55HH25to34HHInc40to45K","P55HH25to34HHInc45to50K","P55HH25to34HHInc50to60K","P55HH25to34HHInc60to75K","P55HH25to34HHInc75to100K","P55HH25to34HHInc100to125K","P55HH25to34HHInc125to150K","P55HH25to34HHInc150to200K","P55HH25to34HHInc>200K","P55HH35to44yrs","P55HH35to44HHInc<10K","P55HH35to44HHInc10to15K","P55HH35to44HHInc15to20K","P55HH35to44HHInc20to25K","P55HH35to44HHInc25to30K","P55HH35to44HHInc30to35K","P55HH35to44HHInc35to40K","P55HH35to44HHInc40to45K","P55HH35to44HHInc45to50K","P55HH35to44HHInc50to60K","P55HH35to44HHInc60to75K","P55HH35to44HHInc75to100K","P55HH35to44HHInc100to125K","P55HH35to44HHInc125to150K","P55HH35to44HHInc150to200K","P55HH35to44HHInc>200K","P55HH45to54yrs","P55HH45to55HHInc<10K","P55HH45to55HHInc10to15K","P55HH45to55HHInc15to20K","P55HH45to55HHInc20to25K","P55HH45to55HHInc25to30K","P55HH45to55HHInc30to35K","P55HH45to55HHInc35to40K","P55HH45to55HHInc40to45K","P55HH45to55HHInc45to50K","P55HH45to55HHInc50to60K","P55HH45to55HHInc60to75K","P55HH45to55HHInc75to100K","P55HH45to55HHInc100to125K","P55HH45to55HHInc125to150K","P55HH45to55HHInc150to200K","P55HH45to55HHInc>200K","P55HH55to64yrs","P55HH55to64HHInc<10K","P55HH55to64HHInc10to15K","P55HH55to64HHInc15to20K","P55HH55to64HHInc20to25K","P55HH55to64HHInc25to30K","P55HH55to64HHInc30to35K","P55HH55to64HHInc35to40K","P55HH55to64HHInc40to45K","P55HH55to64HHInc45to50K","P55HH55to64HHInc50to60K","P55HH55to64HHInc60to75K","P55HH55to64HHInc75to100K","P55HH55to64HHInc100to125K","P55HH55to64HHInc125to150K","P55HH55to64HHInc150to200K","P55HH55to64HHInc>200K","P55HH65to74yrs","P55HH65to74HHInc<10K","P55HH65to74HHInc10to15K","P55HH65to74HHInc15to20K","P55HH65to74HHInc20to25K","P55HH65to74HHInc25to30K","P55HH65to74HHInc30to35K","P55HH65to74HHInc35to40K","P55HH65to74HHInc40to45K","P55HH65to74HHInc45to50K","P55HH65to74HHInc50to60K","P55HH65to74HHInc60to75K","P55HH65to74HHInc75to100K","P55HH65to74HHInc100to125K","P55HH65to74HHInc125to150K","P55HH65to74HHInc150to200K","P55HH65to74HHInc>200K","P55HH>75yrs","P55HH>75HHInc<10K","P55HH>75HHInc10to15K","P55HH>75HHInc15to20K","P55HH>75HHInc20to25K","P55HH>75HHInc25to30K","P55HH>75HHInc30to35K","P55HH>75HHInc35to40K","P55HH>75HHInc40to45K","P55HH>75HHInc45to50K","P55HH>75HHInc50to60K","P55HH>75HHInc60to75K","P55HH>75HHInc75to100K","P55HH>75HHInc100to125K","P55HH>75HHInc125to150K","P55HH>75HHInc150to200K","P55HH>75HHInc>200K","P56MedHHInc","P56MedHHIncHH<25y","P56MedHHIncHH25to34y","P56MedHHIncHH35to44y","P56MedHHIncHH45to54y","P56MedHHIncHH55to64y","P56MedHHIncHH65to74y","P56MedHHIncHH>75y","P58Households3","P58HHwithEarnings","P58HHNoEarnings","P59HHwWageSalInc","P59HHNoWageSalInc","P60HHwSelfEmpInc","P60HHNoSelfEmpInc","P61HHwIndDivInc","P61HHNoIndDivInc","P62HHwSocSecInc","P62HHNoSocSecInc","P63HHwSSI","P63HHNoSSI","P64HHwPubAssInc","P64HHNoPubAssInc","P65HHwRetInc","P65HHNoRetInc","P66HHwOtherTypInc","P66HHNoOtherTypInc","P67AggregEarnings","P68AggregWageSalInc","P69AggregSelfEmpInc","P70AggregIntDivInc","P71AggregSocSecInc","P72AggregSSIInc","P73AggregPublicAssInc","P74AggregRetireInc","P76Families1","P76FamInc<10K","P76FamInc10to15K","P76FamInc15to20K","P76FamInc20to25K","P76FamInc25to30K","P76FamInc30to35K","P76FamInc35to40K","P76FamInc40to45K","P76FamInc45to50K","P76FamInc50to60K","P76FamInc60to75K","P76FamInc75to100K","P76FamInc100to125K","P76FamInc125to150K","P76FamInc150to200K","P76FamInc>200K","P77MedFamInc","P78AggregFamInc","P79NonFamHH","P79NonFamHHwInc<10K","P79NonFamHHwInc10to15K","P79NonFamHHwInc15to20K","P79NonFamHHwInc20to25K","P79NonFamHHwInc25to30K","P79NonFamHHwInc30to35K","P79NonFamHHwInc35to40K","P79NonFamHHwInc40to45K","P79NonFamHHwInc45to50K","P79NonFamHHwInc50to60K","P79NonFamHHwInc60to75K","P79NonFamHHwInc75to100K","P79NonFamHHwInc100to125K","P79NonFamHHwInc125to150K","P79NonFamHHwInc150to200K","P79NonFamHHwInc200KorMore","P80MedNonFamInc","P82PerCapitaInc"]
[{"$f":"VLOOKUP(DropDownList!$B$27,CntyQryCensus!$A$125:$HH$147,A$1)","v":"Dublin"},{"$f":"VLOOKUP(DropDownList!$B$27,CntyQryCensus!$A$125:$HH$147,B$1)","v":"0000525"},{"$f":"VLOOKUP(DropDownList!$B$27,CntyQryCensus!$A$125:$HH$147,C$1)","v":"19140"},{"$f":"VLOOKUP(DropDownList!$B$27,CntyQryCensus!$A$125:$HH$147,D$1)","v":1476},{"$f":"VLOOKUP(DropDownList!$B$27,CntyQryCensus!$A$125:$HH$147,E$1)","v":559},{"$f":"VLOOKUP(DropDownList!$B$27,CntyQryCensus!$A$125:$HH$147,F$1)","v":30},{"$f":"VLOOKUP(DropDownList!$B$27,CntyQryCensus!$A$125:$HH$147,G$1)","v":19},{"$f":"VLOOKUP(DropDownList!$B$27,CntyQryCensus!$A$125:$HH$147,H$1)","v":29},{"$f":"VLOOKUP(DropDownList!$B$27,CntyQryCensus!$A$125:$HH$147,I$1)","v":39},{"$f":"VLOOKUP(DropDownList!$B$27,CntyQryCensus!$A$125:$HH$147,J$1)","v":27},{"$f":"VLOOKUP(DropDownList!$B$27,CntyQryCensus!$A$125:$HH$147,K$1)","v":35},{"$f":"VLOOKUP(DropDownList!$B$27,CntyQryCensus!$A$125:$HH$147,L$1)","v":27},{"$f":"VLOOKUP(DropDownList!$B$27,CntyQryCensus!$A$125:$HH$147,M$1)","v":30},{"$f":"VLOOKUP(DropDownList!$B$27,CntyQryCensus!$A$125:$HH$147,N$1)","v":22},{"$f":"VLOOKUP(DropDownList!$B$27,CntyQryCensus!$A$125:$HH$147,O$1)","v":70},{"$f":"VLOOKUP(DropDownList!$B$27,CntyQryCensus!$A$125:$HH$147,P$1)","v":71},{"$f":"VLOOKUP(DropDownList!$B$27,CntyQryCensus!$A$125:$HH$147,Q$1)","v":76},{"$f":"VLOOKUP(DropDownList!$B$27,CntyQryCensus!$A$125:$HH$147,R$1)","v":29},{"$f":"VLOOKUP(DropDownList!$B$27,CntyQryCensus!$A$125:$HH$147,S$1)","v":13},{"$f":"VLOOKUP(DropDownList!$B$27,CntyQryCensus!$A$125:$HH$147,T$1)","v":13},{"$f":"VLOOKUP(DropDownList!$B$27,CntyQryCensus!$A$125:$HH$147,U$1)","v":29},{"$f":"VLOOKUP(DropDownList!$B$27,CntyQryCensus!$A$125:$HH$147,V$1)","v":52150},{"$f":"VLOOKUP(DropDownList!$B$27,CntyQryCensus!$A$125:$HH$147,W$1)","v":39756200},{"$f":"VLOOKUP(DropDownList!$B$27,CntyQryCensus!$A$125:$HH$147,X$1)","v":559},{"$f":"VLOOKUP(DropDownList!$B$27,CntyQryCensus!$A$125:$HH$147,Y$1)","v":3},{"$f":"VLOOKUP(DropDownList!$B$27,CntyQryCensus!$A$125:$HH$147,Z$1)","v":0},{"$f":"VLOOKUP(DropDownList!$B$27,CntyQryCensus!$A$125:$HH$147,AA$1)","v":2},{"$f":"VLOOKUP(DropDownList!$B$27,CntyQryCensus!$A$125:$HH$147,AB$1)","v":0},{"$f":"VLOOKUP(DropDownList!$B$27,CntyQryCensus!$A$125:$HH$147,AC$1)","v":0},{"$f":"VLOOKUP(DropDownList!$B$27,CntyQryCensus!$A$125:$HH$147,AD$1)","v":0},{"$f":"VLOOKUP(DropDownList!$B$27,CntyQryCensus!$A$125:$HH$147,AE$1)","v":1},{"$f":"VLOOKUP(DropDownList!$B$27,CntyQryCensus!$A$125:$HH$147,AF$1)","v":0},{"$f":"VLOOKUP(DropDownList!$B$27,CntyQryCensus!$A$125:$HH$147,AG$1)","v":0},{"$f":"VLOOKUP(DropDownList!$B$27,CntyQryCensus!$A$125:$HH$147,AH$1)","v":0},{"$f":"VLOOKUP(DropDownList!$B$27,CntyQryCensus!$A$125:$HH$147,AI$1)","v":0},{"$f":"VLOOKUP(DropDownList!$B$27,CntyQryCensus!$A$125:$HH$147,AJ$1)","v":0},{"$f":"VLOOKUP(DropDownList!$B$27,CntyQryCensus!$A$125:$HH$147,AK$1)","v":0},{"$f":"VLOOKUP(DropDownList!$B$27,CntyQryCensus!$A$125:$HH$147,AL$1)","v":0},{"$f":"VLOOKUP(DropDownList!$B$27,CntyQryCensus!$A$125:$HH$147,AM$1)","v":0},{"$f":"VLOOKUP(DropDownList!$B$27,CntyQryCensus!$A$125:$HH$147,AN$1)","v":0},{"$f":"VLOOKUP(DropDownList!$B$27,CntyQryCensus!$A$125:$HH$147,AO$1)","v":0},{"$f":"VLOOKUP(DropDownList!$B$27,CntyQryCensus!$A$125:$HH$147,AP$1)","v":54},{"$f":"VLOOKUP(DropDownList!$B$27,CntyQryCensus!$A$125:$HH$147,AQ$1)","v":0},{"$f":"VLOOKUP(DropDownList!$B$27,CntyQryCensus!$A$125:$HH$147,AR$1)","v":0},{"$f":"VLOOKUP(DropDownList!$B$27,CntyQryCensus!$A$125:$HH$147,AS$1)","v":1},{"$f":"VLOOKUP(DropDownList!$B$27,CntyQryCensus!$A$125:$HH$147,AT$1)","v":3},{"$f":"VLOOKUP(DropDownList!$B$27,CntyQryCensus!$A$125:$HH$147,AU$1)","v":4},{"$f":"VLOOKUP(DropDownList!$B$27,CntyQryCensus!$A$125:$HH$147,AV$1)","v":4},{"$f":"VLOOKUP(DropDownList!$B$27,CntyQryCensus!$A$125:$HH$147,AW$1)","v":8},{"$f":"VLOOKUP(DropDownList!$B$27,CntyQryCensus!$A$125:$HH$147,AX$1)","v":4},{"$f":"VLOOKUP(DropDownList!$B$27,CntyQryCensus!$A$125:$HH$147,AY$1)","v":7},{"$f":"VLOOKUP(DropDownList!$B$27,CntyQryCensus!$A$125:$HH$147,AZ$1)","v":9},{"$f":"VLOOKUP(DropDownList!$B$27,CntyQryCensus!$A$125:$HH$147,BA$1)","v":6},{"$f":"VLOOKUP(DropDownList!$B$27,CntyQryCensus!$A$125:$HH$147,BB$1)","v":4},{"$f":"VLOOKUP(DropDownList!$B$27,CntyQryCensus!$A$125:$HH$147,BC$1)","v":2},{"$f":"VLOOKUP(DropDownList!$B$27,CntyQryCensus!$A$125:$HH$147,BD$1)","v":2},{"$f":"VLOOKUP(DropDownList!$B$27,CntyQryCensus!$A$125:$HH$147,BE$1)","v":0},{"$f":"VLOOKUP(DropDownList!$B$27,CntyQryCensus!$A$125:$HH$147,BF$1)","v":0},{"$f":"VLOOKUP(DropDownList!$B$27,CntyQryCensus!$A$125:$HH$147,BG$1)","v":117},{"$f":"VLOOKUP(DropDownList!$B$27,CntyQryCensus!$A$125:$HH$147,BH$1)","v":4},{"$f":"VLOOKUP(DropDownList!$B$27,CntyQryCensus!$A$125:$HH$147,BI$1)","v":7},{"$f":"VLOOKUP(DropDownList!$B$27,CntyQryCensus!$A$125:$HH$147,BJ$1)","v":13},{"$f":"VLOOKUP(DropDownList!$B$27,CntyQryCensus!$A$125:$HH$147,BK$1)","v":4},{"$f":"VLOOKUP(DropDownList!$B$27,CntyQryCensus!$A$125:$HH$147,BL$1)","v":2},{"$f":"VLOOKUP(DropDownList!$B$27,CntyQryCensus!$A$125:$HH$147,BM$1)","v":10},{"$f":"VLOOKUP(DropDownList!$B$27,CntyQryCensus!$A$125:$HH$147,BN$1)","v":8},{"$f":"VLOOKUP(DropDownList!$B$27,CntyQryCensus!$A$125:$HH$147,BO$1)","v":8},{"$f":"VLOOKUP(DropDownList!$B$27,CntyQryCensus!$A$125:$HH$147,BP$1)","v":2},{"$f":"VLOOKUP(DropDownList!$B$27,CntyQryCensus!$A$125:$HH$147,BQ$1)","v":16},{"$f":"VLOOKUP(DropDownList!$B$27,CntyQryCensus!$A$125:$HH$147,BR$1)","v":11},{"$f":"VLOOKUP(DropDownList!$B$27,CntyQryCensus!$A$125:$HH$147,BS$1)","v":16},{"$f":"VLOOKUP(DropDownList!$B$27,CntyQryCensus!$A$125:$HH$147,BT$1)","v":6},{"$f":"VLOOKUP(DropDownList!$B$27,CntyQryCensus!$A$125:$HH$147,BU$1)","v":2},{"$f":"VLOOKUP(DropDownList!$B$27,CntyQryCensus!$A$125:$HH$147,BV$1)","v":3},{"$f":"VLOOKUP(DropDownList!$B$27,CntyQryCensus!$A$125:$HH$147,BW$1)","v":5},{"$f":"VLOOKUP(DropDownList!$B$27,CntyQryCensus!$A$125:$HH$147,BX$1)","v":151},{"$f":"VLOOKUP(DropDownList!$B$27,CntyQryCensus!$A$125:$HH$147,BY$1)","v":13},{"$f":"VLOOKUP(DropDownList!$B$27,CntyQryCensus!$A$125:$HH$147,BZ$1)","v":2},{"$f":"VLOOKUP(DropDownList!$B$27,CntyQryCensus!$A$125:$HH$147,CA$1)","v":2},{"$f":"VLOOKUP(DropDownList!$B$27,CntyQryCensus!$A$125:$HH$147,CB$1)","v":13},{"$f":"VLOOKUP(DropDownList!$B$27,CntyQryCensus!$A$125:$HH$147,CC$1)","v":2},{"$f":"VLOOKUP(DropDownList!$B$27,CntyQryCensus!$A$125:$HH$147,CD$1)","v":5},{"$f":"VLOOKUP(DropDownList!$B$27,CntyQryCensus!$A$125:$HH$147,CE$1)","v":1},{"$f":"VLOOKUP(DropDownList!$B$27,CntyQryCensus!$A$125:$HH$147,CF$1)","v":6},{"$f":"VLOOKUP(DropDownList!$B$27,CntyQryCensus!$A$125:$HH$147,CG$1)","v":5},{"$f":"VLOOKUP(DropDownList!$B$27,CntyQryCensus!$A$125:$HH$147,CH$1)","v":15},{"$f":"VLOOKUP(DropDownList!$B$27,CntyQryCensus!$A$125:$HH$147,CI$1)","v":35},{"$f":"VLOOKUP(DropDownList!$B$27,CntyQryCensus!$A$125:$HH$147,CJ$1)","v":18},{"$f":"VLOOKUP(DropDownList!$B$27,CntyQryCensus!$A$125:$HH$147,CK$1)","v":10},{"$f":"VLOOKUP(DropDownList!$B$27,CntyQryCensus!$A$125:$HH$147,CL$1)","v":4},{"$f":"VLOOKUP(DropDownList!$B$27,CntyQryCensus!$A$125:$HH$147,CM$1)","v":8},{"$f":"VLOOKUP(DropDownList!$B$27,CntyQryCensus!$A$125:$HH$147,CN$1)","v":12},{"$f":"VLOOKUP(DropDownList!$B$27,CntyQryCensus!$A$125:$HH$147,CO$1)","v":100},{"$f":"VLOOKUP(DropDownList!$B$27,CntyQryCensus!$A$125:$HH$147,CP$1)","v":1},{"$f":"VLOOKUP(DropDownList!$B$27,CntyQryCensus!$A$125:$HH$147,CQ$1)","v":2},{"$f":"VLOOKUP(DropDownList!$B$27,CntyQryCensus!$A$125:$HH$147,CR$1)","v":4},{"$f":"VLOOKUP(DropDownList!$B$27,CntyQryCensus!$A$125:$HH$147,CS$1)","v":2},{"$f":"VLOOKUP(DropDownList!$B$27,CntyQryCensus!$A$125:$HH$147,CT$1)","v":8},{"$f":"VLOOKUP(DropDownList!$B$27,CntyQryCensus!$A$125:$HH$147,CU$1)","v":5},{"$f":"VLOOKUP(DropDownList!$B$27,CntyQryCensus!$A$125:$HH$147,CV$1)","v":4},{"$f":"VLOOKUP(DropDownList!$B$27,CntyQryCensus!$A$125:$HH$147,CW$1)","v":8},{"$f":"VLOOKUP(DropDownList!$B$27,CntyQryCensus!$A$125:$HH$147,CX$1)","v":6},{"$f":"VLOOKUP(DropDownList!$B$27,CntyQryCensus!$A$125:$HH$147,CY$1)","v":14},{"$f":"VLOOKUP(DropDownList!$B$27,CntyQryCensus!$A$125:$HH$147,CZ$1)","v":7},{"$f":"VLOOKUP(DropDownList!$B$27,CntyQryCensus!$A$125:$HH$147,DA$1)","v":24},{"$f":"VLOOKUP(DropDownList!$B$27,CntyQryCensus!$A$125:$HH$147,DB$1)","v":7},{"$f":"VLOOKUP(DropDownList!$B$27,CntyQryCensus!$A$125:$HH$147,DC$1)","v":3},{"$f":"VLOOKUP(DropDownList!$B$27,CntyQryCensus!$A$125:$HH$147,DD$1)","v":0},{"$f":"VLOOKUP(DropDownList!$B$27,CntyQryCensus!$A$125:$HH$147,DE$1)","v":5},{"$f":"VLOOKUP(DropDownList!$B$27,CntyQryCensus!$A$125:$HH$147,DF$1)","v":79},{"$f":"VLOOKUP(DropDownList!$B$27,CntyQryCensus!$A$125:$HH$147,DG$1)","v":8},{"$f":"VLOOKUP(DropDownList!$B$27,CntyQryCensus!$A$125:$HH$147,DH$1)","v":0},{"$f":"VLOOKUP(DropDownList!$B$27,CntyQryCensus!$A$125:$HH$147,DI$1)","v":5},{"$f":"VLOOKUP(DropDownList!$B$27,CntyQryCensus!$A$125:$HH$147,DJ$1)","v":13},{"$f":"VLOOKUP(DropDownList!$B$27,CntyQryCensus!$A$125:$HH$147,DK$1)","v":6},{"$f":"VLOOKUP(DropDownList!$B$27,CntyQryCensus!$A$125:$HH$147,DL$1)","v":10},{"$f":"VLOOKUP(DropDownList!$B$27,CntyQryCensus!$A$125:$HH$147,DM$1)","v":2},{"$f":"VLOOKUP(DropDownList!$B$27,CntyQryCensus!$A$125:$HH$147,DN$1)","v":4},{"$f":"VLOOKUP(DropDownList!$B$27,CntyQryCensus!$A$125:$HH$147,DO$1)","v":2},{"$f":"VLOOKUP(DropDownList!$B$27,CntyQryCensus!$A$125:$HH$147,DP$1)","v":6},{"$f":"VLOOKUP(DropDownList!$B$27,CntyQryCensus!$A$125:$HH$147,DQ$1)","v":6},{"$f":"VLOOKUP(DropDownList!$B$27,CntyQryCensus!$A$125:$HH$147,DR$1)","v":9},{"$f":"VLOOKUP(DropDownList!$B$27,CntyQryCensus!$A$125:$HH$147,DS$1)","v":2},{"$f":"VLOOKUP(DropDownList!$B$27,CntyQryCensus!$A$125:$HH$147,DT$1)","v":2},{"$f":"VLOOKUP(DropDownList!$B$27,CntyQryCensus!$A$125:$HH$147,DU$1)","v":2},{"$f":"VLOOKUP(DropDownList!$B$27,CntyQryCensus!$A$125:$HH$147,DV$1)","v":2},{"$f":"VLOOKUP(DropDownList!$B$27,CntyQryCensus!$A$125:$HH$147,DW$1)","v":55},{"$f":"VLOOKUP(DropDownList!$B$27,CntyQryCensus!$A$125:$HH$147,DX$1)","v":4},{"$f":"VLOOKUP(DropDownList!$B$27,CntyQryCensus!$A$125:$HH$147,DY$1)","v":6},{"$f":"VLOOKUP(DropDownList!$B$27,CntyQryCensus!$A$125:$HH$147,DZ$1)","v":4},{"$f":"VLOOKUP(DropDownList!$B$27,CntyQryCensus!$A$125:$HH$147,EA$1)","v":4},{"$f":"VLOOKUP(DropDownList!$B$27,CntyQryCensus!$A$125:$HH$147,EB$1)","v":5},{"$f":"VLOOKUP(DropDownList!$B$27,CntyQryCensus!$A$125:$HH$147,EC$1)","v":0},{"$f":"VLOOKUP(DropDownList!$B$27,CntyQryCensus!$A$125:$HH$147,ED$1)","v":4},{"$f":"VLOOKUP(DropDownList!$B$27,CntyQryCensus!$A$125:$HH$147,EE$1)","v":0},{"$f":"VLOOKUP(DropDownList!$B$27,CntyQryCensus!$A$125:$HH$147,EF$1)","v":0},{"$f":"VLOOKUP(DropDownList!$B$27,CntyQryCensus!$A$125:$HH$147,EG$1)","v":10},{"$f":"VLOOKUP(DropDownList!$B$27,CntyQryCensus!$A$125:$HH$147,EH$1)","v":6},{"$f":"VLOOKUP(DropDownList!$B$27,CntyQryCensus!$A$125:$HH$147,EI$1)","v":5},{"$f":"VLOOKUP(DropDownList!$B$27,CntyQryCensus!$A$125:$HH$147,EJ$1)","v":2},{"$f":"VLOOKUP(DropDownList!$B$27,CntyQryCensus!$A$125:$HH$147,EK$1)","v":0},{"$f":"VLOOKUP(DropDownList!$B$27,CntyQryCensus!$A$125:$HH$147,EL$1)","v":0},{"$f":"VLOOKUP(DropDownList!$B$27,CntyQryCensus!$A$125:$HH$147,EM$1)","v":5},{"$f":"VLOOKUP(DropDownList!$B$27,CntyQryCensus!$A$125:$HH$147,EN$1)","v":52150},{"$f":"VLOOKUP(DropDownList!$B$27,CntyQryCensus!$A$125:$HH$147,EO$1)","v":14375},{"$f":"VLOOKUP(DropDownList!$B$27,CntyQryCensus!$A$125:$HH$147,EP$1)","v":48571},{"$f":"VLOOKUP(DropDownList!$B$27,CntyQryCensus!$A$125:$HH$147,EQ$1)","v":50313},{"$f":"VLOOKUP(DropDownList!$B$27,CntyQryCensus!$A$125:$HH$147,ER$1)","v":66528},{"$f":"VLOOKUP(DropDownList!$B$27,CntyQryCensus!$A$125:$HH$147,ES$1)","v":58000},{"$f":"VLOOKUP(DropDownList!$B$27,CntyQryCensus!$A$125:$HH$147,ET$1)","v":31875},{"$f":"VLOOKUP(DropDownList!$B$27,CntyQryCensus!$A$125:$HH$147,EU$1)","v":50417},{"$f":"VLOOKUP(DropDownList!$B$27,CntyQryCensus!$A$125:$HH$147,EV$1)","v":559},{"$f":"VLOOKUP(DropDownList!$B$27,CntyQryCensus!$A$125:$HH$147,EW$1)","v":475},{"$f":"VLOOKUP(DropDownList!$B$27,CntyQryCensus!$A$125:$HH$147,EX$1)","v":84},{"$f":"VLOOKUP(DropDownList!$B$27,CntyQryCensus!$A$125:$HH$147,EY$1)","v":423},{"$f":"VLOOKUP(DropDownList!$B$27,CntyQryCensus!$A$125:$HH$147,EZ$1)","v":136},{"$f":"VLOOKUP(DropDownList!$B$27,CntyQryCensus!$A$125:$HH$147,FA$1)","v":176},{"$f":"VLOOKUP(DropDownList!$B$27,CntyQryCensus!$A$125:$HH$147,FB$1)","v":383},{"$f":"VLOOKUP(DropDownList!$B$27,CntyQryCensus!$A$125:$HH$147,FC$1)","v":331},{"$f":"VLOOKUP(DropDownList!$B$27,CntyQryCensus!$A$125:$HH$147,FD$1)","v":228},{"$f":"VLOOKUP(DropDownList!$B$27,CntyQryCensus!$A$125:$HH$147,FE$1)","v":146},{"$f":"VLOOKUP(DropDownList!$B$27,CntyQryCensus!$A$125:$HH$147,FF$1)","v":413},{"$f":"VLOOKUP(DropDownList!$B$27,CntyQryCensus!$A$125:$HH$147,FG$1)","v":5},{"$f":"VLOOKUP(DropDownList!$B$27,CntyQryCensus!$A$125:$HH$147,FH$1)","v":554},{"$f":"VLOOKUP(DropDownList!$B$27,CntyQryCensus!$A$125:$HH$147,FI$1)","v":7},{"$f":"VLOOKUP(DropDownList!$B$27,CntyQryCensus!$A$125:$HH$147,FJ$1)","v":552},{"$f":"VLOOKUP(DropDownList!$B$27,CntyQryCensus!$A$125:$HH$147,FK$1)","v":79},{"$f":"VLOOKUP(DropDownList!$B$27,CntyQryCensus!$A$125:$HH$147,FL$1)","v":480},{"$f":"VLOOKUP(DropDownList!$B$27,CntyQryCensus!$A$125:$HH$147,FM$1)","v":48},{"$f":"VLOOKUP(DropDownList!$B$27,CntyQryCensus!$A$125:$HH$147,FN$1)","v":511},{"$f":"VLOOKUP(DropDownList!$B$27,CntyQryCensus!$A$125:$HH$147,FO$1)","v":28564900},{"$f":"VLOOKUP(DropDownList!$B$27,CntyQryCensus!$A$125:$HH$147,FP$1)","v":23313600},{"$f":"VLOOKUP(DropDownList!$B$27,CntyQryCensus!$A$125:$HH$147,FQ$1)","v":5251400},{"$f":"VLOOKUP(DropDownList!$B$27,CntyQryCensus!$A$125:$HH$147,FR$1)","v":7528200},{"$f":"VLOOKUP(DropDownList!$B$27,CntyQryCensus!$A$125:$HH$147,FS$1)","v":1877100},{"$f":"VLOOKUP(DropDownList!$B$27,CntyQryCensus!$A$125:$HH$147,FT$1)","v":24400},{"$f":"VLOOKUP(DropDownList!$B$27,CntyQryCensus!$A$125:$HH$147,FU$1)","v":35600},{"$f":"VLOOKUP(DropDownList!$B$27,CntyQryCensus!$A$125:$HH$147,FV$1)","v":1425700},{"$f":"VLOOKUP(DropDownList!$B$27,CntyQryCensus!$A$125:$HH$147,FW$1)","v":419},{"$f":"VLOOKUP(DropDownList!$B$27,CntyQryCensus!$A$125:$HH$147,FX$1)","v":14},{"$f":"VLOOKUP(DropDownList!$B$27,CntyQryCensus!$A$125:$HH$147,FY$1)","v":10},{"$f":"VLOOKUP(DropDownList!$B$27,CntyQryCensus!$A$125:$HH$147,FZ$1)","v":22},{"$f":"VLOOKUP(DropDownList!$B$27,CntyQryCensus!$A$125:$HH$147,GA$1)","v":21},{"$f":"VLOOKUP(DropDownList!$B$27,CntyQryCensus!$A$125:$HH$147,GB$1)","v":15},{"$f":"VLOOKUP(DropDownList!$B$27,CntyQryCensus!$A$125:$HH$147,GC$1)","v":21},{"$f":"VLOOKUP(DropDownList!$B$27,CntyQryCensus!$A$125:$HH$147,GD$1)","v":25},{"$f":"VLOOKUP(DropDownList!$B$27,CntyQryCensus!$A$125:$HH$147,GE$1)","v":29},{"$f":"VLOOKUP(DropDownList!$B$27,CntyQryCensus!$A$125:$HH$147,GF$1)","v":14},{"$f":"VLOOKUP(DropDownList!$B$27,CntyQryCensus!$A$125:$HH$147,GG$1)","v":54},{"$f":"VLOOKUP(DropDownList!$B$27,CntyQryCensus!$A$125:$HH$147,GH$1)","v":56},{"$f":"VLOOKUP(DropDownList!$B$27,CntyQryCensus!$A$125:$HH$147,GI$1)","v":67},{"$f":"VLOOKUP(DropDownList!$B$27,CntyQryCensus!$A$125:$HH$147,GJ$1)","v":21},{"$f":"VLOOKUP(DropDownList!$B$27,CntyQryCensus!$A$125:$HH$147,GK$1)","v":11},{"$f":"VLOOKUP(DropDownList!$B$27,CntyQryCensus!$A$125:$HH$147,GL$1)","v":10},{"$f":"VLOOKUP(DropDownList!$B$27,CntyQryCensus!$A$125:$HH$147,GM$1)","v":29},{"$f":"VLOOKUP(DropDownList!$B$27,CntyQryCensus!$A$125:$HH$147,GN$1)","v":57578},{"$f":"VLOOKUP(DropDownList!$B$27,CntyQryCensus!$A$125:$HH$147,GO$1)","v":33412900},{"$f":"VLOOKUP(DropDownList!$B$27,CntyQryCensus!$A$125:$HH$147,GP$1)","v":140},{"$f":"VLOOKUP(DropDownList!$B$27,CntyQryCensus!$A$125:$HH$147,GQ$1)","v":16},{"$f":"VLOOKUP(DropDownList!$B$27,CntyQryCensus!$A$125:$HH$147,GR$1)","v":9},{"$f":"VLOOKUP(DropDownList!$B$27,CntyQryCensus!$A$125:$HH$147,GS$1)","v":11},{"$f":"VLOOKUP(DropDownList!$B$27,CntyQryCensus!$A$125:$HH$147,GT$1)","v":18},{"$f":"VLOOKUP(DropDownList!$B$27,CntyQryCensus!$A$125:$HH$147,GU$1)","v":12},{"$f":"VLOOKUP(DropDownList!$B$27,CntyQryCensus!$A$125:$HH$147,GV$1)","v":13},{"$f":"VLOOKUP(DropDownList!$B$27,CntyQryCensus!$A$125:$HH$147,GW$1)","v":4},{"$f":"VLOOKUP(DropDownList!$B$27,CntyQryCensus!$A$125:$HH$147,GX$1)","v":4},{"$f":"VLOOKUP(DropDownList!$B$27,CntyQryCensus!$A$125:$HH$147,GY$1)","v":12},{"$f":"VLOOKUP(DropDownList!$B$27,CntyQryCensus!$A$125:$HH$147,GZ$1)","v":16},{"$f":"VLOOKUP(DropDownList!$B$27,CntyQryCensus!$A$125:$HH$147,HA$1)","v":7},{"$f":"VLOOKUP(DropDownList!$B$27,CntyQryCensus!$A$125:$HH$147,HB$1)","v":11},{"$f":"VLOOKUP(DropDownList!$B$27,CntyQryCensus!$A$125:$HH$147,HC$1)","v":4},{"$f":"VLOOKUP(DropDownList!$B$27,CntyQryCensus!$A$125:$HH$147,HD$1)","v":0},{"$f":"VLOOKUP(DropDownList!$B$27,CntyQryCensus!$A$125:$HH$147,HE$1)","v":3},{"$f":"VLOOKUP(DropDownList!$B$27,CntyQryCensus!$A$125:$HH$147,HF$1)","v":0},{"$f":"VLOOKUP(DropDownList!$B$27,CntyQryCensus!$A$125:$HH$147,HG$1)","v":31667},{"$f":"VLOOKUP(DropDownList!$B$27,CntyQryCensus!$A$125:$HH$147,HH$1)","v":27028}]
[]
[]
["Census 2000 SummaryFile3 Sample Data  -  SF3TownQry2bPovertyChar"]
["NAME","LOGRECNO","COUNTY","TotalPop","P52Households1","P82PerCapitaInc","P87PopForPovStatus","P87PopWIncBelowPovStatus","P87PopUnder5yrBelowPoverty","P87Pop5yrBelowPoverty","P87Pop5to11yrBelowPoverty","P87Pop12to17yrBelowPoverty","P87Pop18to64yrBelowPoverty","P87Pop65to74yrBelowPoverty","P87PopOver75yrBelowPoverty","P87PopWIncAbovePovStatus","P87PopUnder5yrAbovePoverty","P87Pop5yrAbovePoverty","P87Pop5to11yrAbovePoverty","P87Pop12to17yrAbovePoverty","P87Pop18to64yrAbovePoverty","P87Pop65to74yrAbovePoverty","P87PopOver75yrAbovePoverty","P90Families","P90FamWIncBelowPov","P90MarCupFamWIncBelowPov","P90MCFamWRltdChld<18WIncBelowPov","P90MCFamWRltdChld<5WIncBelowPov","P90MaleHhlrWIncBelowPov","P90MaleHhlrWRltdChld<18yrWIncBelowPov","P90MaleHhlrWRltdChld<5yrWIncBelowPov","P90FemaleHhlrWIncBelowPov","P90FemaleHhlrWRltdChld<18yWIncBelowPov","P90FemaleHhlrWRltdChld<5yWIncBelowPov","P90FamWIncAbovePov","P90MarCupFamWIncAbovePov","P90MCFamWRltdChld<18WIncAbovePov","P90MCFamWRltdChld<5WIncAbovePov","P90MaleHhlrWIncAbovePov","P90MaleHhlrWRltdChld<18yrWIncAbovePov","P90MaleHhlrWRltdChld<5yrWIncAbovePov","P90FemaleHhlrWIncAbovePov","P90FemaleHhlrWRltdChld<18yWIncAbovePov","P90FemaleHhlrWRltdChld<5yWIncAbovePov","P92Households","P92HHwIncBelowPov","P92FamHHwIncBelowPov","P92MCFamHHwIncBelowPov","P92MaleFamHHwIncBelowPov","P92FemaleFamHHwIncBelowPov","P92NonFamHHwIncBelowPov","P92NonFamMaleHHwIncBelowPov","P92NonFamFemaleHHwIncBelowPov","P92HHwIncAbovePov","P92FamHHwIncAbovePov","P92MCFamHHwIncAbovePov","P92MaleFamHHwIncAbovePov","P92FemaleFamHHwIncAbovePov","P92NonFamHHwIncAbovePov","P92NonFamMaleHHwIncAbovePov","P92NonFamFemaleHHwIncAbovePov"]
[{"$f":"VLOOKUP(DropDownList!$B$27,CntyQryCensus!$A$155:$BI$177,A$1)","v":"Dublin"},{"$f":"VLOOKUP(DropDownList!$B$27,CntyQryCensus!$A$155:$BI$177,B$1)","v":"0000525"},{"$f":"VLOOKUP(DropDownList!$B$27,CntyQryCensus!$A$155:$BI$177,C$1)","v":"19140"},{"$f":"VLOOKUP(DropDownList!$B$27,CntyQryCensus!$A$155:$BI$177,D$1)","v":1476},{"$f":"VLOOKUP(DropDownList!$B$27,CntyQryCensus!$A$155:$BI$177,E$1)","v":559},{"$f":"VLOOKUP(DropDownList!$B$27,CntyQryCensus!$A$155:$BI$177,F$1)","v":27028},{"$f":"VLOOKUP(DropDownList!$B$27,CntyQryCensus!$A$155:$BI$177,G$1)","v":1440},{"$f":"VLOOKUP(DropDownList!$B$27,CntyQryCensus!$A$155:$BI$177,H$1)","v":153},{"$f":"VLOOKUP(DropDownList!$B$27,CntyQryCensus!$A$155:$BI$177,I$1)","v":15},{"$f":"VLOOKUP(DropDownList!$B$27,CntyQryCensus!$A$155:$BI$177,J$1)","v":0},{"$f":"VLOOKUP(DropDownList!$B$27,CntyQryCensus!$A$155:$BI$177,K$1)","v":22},{"$f":"VLOOKUP(DropDownList!$B$27,CntyQryCensus!$A$155:$BI$177,L$1)","v":21},{"$f":"VLOOKUP(DropDownList!$B$27,CntyQryCensus!$A$155:$BI$177,M$1)","v":85},{"$f":"VLOOKUP(DropDownList!$B$27,CntyQryCensus!$A$155:$BI$177,N$1)","v":8},{"$f":"VLOOKUP(DropDownList!$B$27,CntyQryCensus!$A$155:$BI$177,O$1)","v":2},{"$f":"VLOOKUP(DropDownList!$B$27,CntyQryCensus!$A$155:$BI$177,P$1)","v":1287},{"$f":"VLOOKUP(DropDownList!$B$27,CntyQryCensus!$A$155:$BI$177,Q$1)","v":55},{"$f":"VLOOKUP(DropDownList!$B$27,CntyQryCensus!$A$155:$BI$177,R$1)","v":9},{"$f":"VLOOKUP(DropDownList!$B$27,CntyQryCensus!$A$155:$BI$177,S$1)","v":107},{"$f":"VLOOKUP(DropDownList!$B$27,CntyQryCensus!$A$155:$BI$177,T$1)","v":116},{"$f":"VLOOKUP(DropDownList!$B$27,CntyQryCensus!$A$155:$BI$177,U$1)","v":810},{"$f":"VLOOKUP(DropDownList!$B$27,CntyQryCensus!$A$155:$BI$177,V$1)","v":112},{"$f":"VLOOKUP(DropDownList!$B$27,CntyQryCensus!$A$155:$BI$177,W$1)","v":78},{"$f":"VLOOKUP(DropDownList!$B$27,CntyQryCensus!$A$155:$BI$177,X$1)","v":419},{"$f":"VLOOKUP(DropDownList!$B$27,CntyQryCensus!$A$155:$BI$177,Y$1)","v":25},{"$f":"VLOOKUP(DropDownList!$B$27,CntyQryCensus!$A$155:$BI$177,Z$1)","v":16},{"$f":"VLOOKUP(DropDownList!$B$27,CntyQryCensus!$A$155:$BI$177,AA$1)","v":14},{"$f":"VLOOKUP(DropDownList!$B$27,CntyQryCensus!$A$155:$BI$177,AB$1)","v":2},{"$f":"VLOOKUP(DropDownList!$B$27,CntyQryCensus!$A$155:$BI$177,AC$1)","v":2},{"$f":"VLOOKUP(DropDownList!$B$27,CntyQryCensus!$A$155:$BI$177,AD$1)","v":2},{"$f":"VLOOKUP(DropDownList!$B$27,CntyQryCensus!$A$155:$BI$177,AE$1)","v":0},{"$f":"VLOOKUP(DropDownList!$B$27,CntyQryCensus!$A$155:$BI$177,AF$1)","v":7},{"$f":"VLOOKUP(DropDownList!$B$27,CntyQryCensus!$A$155:$BI$177,AG$1)","v":7},{"$f":"VLOOKUP(DropDownList!$B$27,CntyQryCensus!$A$155:$BI$177,AH$1)","v":0},{"$f":"VLOOKUP(DropDownList!$B$27,CntyQryCensus!$A$155:$BI$177,AI$1)","v":394},{"$f":"VLOOKUP(DropDownList!$B$27,CntyQryCensus!$A$155:$BI$177,AJ$1)","v":358},{"$f":"VLOOKUP(DropDownList!$B$27,CntyQryCensus!$A$155:$BI$177,AK$1)","v":138},{"$f":"VLOOKUP(DropDownList!$B$27,CntyQryCensus!$A$155:$BI$177,AL$1)","v":18},{"$f":"VLOOKUP(DropDownList!$B$27,CntyQryCensus!$A$155:$BI$177,AM$1)","v":12},{"$f":"VLOOKUP(DropDownList!$B$27,CntyQryCensus!$A$155:$BI$177,AN$1)","v":10},{"$f":"VLOOKUP(DropDownList!$B$27,CntyQryCensus!$A$155:$BI$177,AO$1)","v":5},{"$f":"VLOOKUP(DropDownList!$B$27,CntyQryCensus!$A$155:$BI$177,AP$1)","v":24},{"$f":"VLOOKUP(DropDownList!$B$27,CntyQryCensus!$A$155:$BI$177,AQ$1)","v":11},{"$f":"VLOOKUP(DropDownList!$B$27,CntyQryCensus!$A$155:$BI$177,AR$1)","v":1},{"$f":"VLOOKUP(DropDownList!$B$27,CntyQryCensus!$A$155:$BI$177,AS$1)","v":559},{"$f":"VLOOKUP(DropDownList!$B$27,CntyQryCensus!$A$155:$BI$177,AT$1)","v":39},{"$f":"VLOOKUP(DropDownList!$B$27,CntyQryCensus!$A$155:$BI$177,AU$1)","v":25},{"$f":"VLOOKUP(DropDownList!$B$27,CntyQryCensus!$A$155:$BI$177,AV$1)","v":16},{"$f":"VLOOKUP(DropDownList!$B$27,CntyQryCensus!$A$155:$BI$177,AW$1)","v":2},{"$f":"VLOOKUP(DropDownList!$B$27,CntyQryCensus!$A$155:$BI$177,AX$1)","v":7},{"$f":"VLOOKUP(DropDownList!$B$27,CntyQryCensus!$A$155:$BI$177,AY$1)","v":14},{"$f":"VLOOKUP(DropDownList!$B$27,CntyQryCensus!$A$155:$BI$177,AZ$1)","v":7},{"$f":"VLOOKUP(DropDownList!$B$27,CntyQryCensus!$A$155:$BI$177,BA$1)","v":7},{"$f":"VLOOKUP(DropDownList!$B$27,CntyQryCensus!$A$155:$BI$177,BB$1)","v":520},{"$f":"VLOOKUP(DropDownList!$B$27,CntyQryCensus!$A$155:$BI$177,BC$1)","v":394},{"$f":"VLOOKUP(DropDownList!$B$27,CntyQryCensus!$A$155:$BI$177,BD$1)","v":358},{"$f":"VLOOKUP(DropDownList!$B$27,CntyQryCensus!$A$155:$BI$177,BE$1)","v":12},{"$f":"VLOOKUP(DropDownList!$B$27,CntyQryCensus!$A$155:$BI$177,BF$1)","v":24},{"$f":"VLOOKUP(DropDownList!$B$27,CntyQryCensus!$A$155:$BI$177,BG$1)","v":126},{"$f":"VLOOKUP(DropDownList!$B$27,CntyQryCensus!$A$155:$BI$177,BH$1)","v":59},{"$f":"VLOOKUP(DropDownList!$B$27,CntyQryCensus!$A$155:$BI$177,BI$1)","v":67}]
[null,null,null,null,null,null,null,null,null,null,null,null,null,null,null,null,null,null,{"$f":"SUM(R60:T60)","v":232}]
[]
["Census 2000 SummaryFile3 Sample Data  -  SF3TownQry7HousingA"]
["NAME","LOGRECNO","COUNTY","TotalPop","H1HousingUnitsTotal","H2SampleHU","H2SampleOccHU","H2SampleVacHU","H3HU100pctCount","H5HUTotal","H5HUUrban","H5HUUrbanInUrbanAreas","H5HUUrbanInUrbanClusters","H5HURural","H5HURuralFarm","H5HURuralNonFarm","H7HUOcc","H7HUOwnrOcc","H7HURentrOcc","H8HUVacant","H8HUVacantForRent","H8HUVacantForSale","H8HUVacRentedorSold","H8HUVacSeasonal","H8HUVacForMigrantWrkrs","H8HUOtherVacant","H14OccHUa","H14OwnerOccHU","H14OwnOccHuHh15to24","H14OwnOccHuHh25to34","H14OwnOccHuHh35to44","H14OwnOccHuHh45to54","H14OwnOccHuHh55to59","H14OwnOccHuHh60to64","H14OwnOccHuHh65to74","H14OwnOccHuHh75to84","H14OwnOccHuHh85Over","H14RenterOccHU1","H14RntrOccHuHh15to24","H14RntrOccHuHh25to34","H14RntrOccHuHh35to44","H14RntrOccHuHh45to54","H14RntrOccHuHh55to59","H14RntrOccHuHh60to64","H14RntrOccHuHh65to74","H14RntrOccHuHh75to84","H14RntrOccHuHh85Over","H15PopInOccHU","H15PopInOwnOccHU1","H15PopInRentOccHU1","H17OccupHUb","H17OwnOccHU2","H17OwnOccHU1PersonHH","H17OwnOccHU2PersonHH","H17OwnOccHU3PersonHH","H17OwnOccHU4PersonHH","H17OwnOccHU5PersonHH","H17OwnOccHU6PersonHH","H17OwnOccHU7PlusPersonHH","H17RentOccHU2","H17RntOccHU1PersonHH","H17RntOccHU2PersonHH","H17RntOccHU3PersonHH","H17RntOccHU4PersonHH","H17RntOccHU5PersonHH","H17RntOccHU6PersonHH","H17RntOccHU7PlusPersonHH","H18AvgHHSize","H18AvgHHSizeOwnOcc","H18AvgHHSizeRentOcc","H23TotHU","H23HU1Room","H23HU2Room","H23HU3Room","H23HU4Room","H23HU5Room","H23HU6Room","H23HU7Room","H23HU8Room","H23HU9orMoreRoom","H24MedianNumRooms","H25AggregNumRooms","H30TotalHU","H30Det1HU","H30Att1HU","H30Units2","H30Units3or4","H30Units5to9","H30Units10to19","H30Units20to49","H30Units50orMore","H30UnitsMobileHome","H30UnitsBoatRv","H32OccHUcTotal","H32OwnerOccHU3","H32OwnOccHU1Det","H32OwnOccHU1Att","H32OwnOccHU2Unit","H32OwnOccHU3to4Unit","H32OwnOccHU5to9Unit","H32OwnOccHU10to19Unit","H32OwnOccHU20to49Unit","H32OwnOccHU50plusUnit","H32OwnOccHUMobHom","H32OwnOccHUBoatRVOth","H32RentrOccHU3","H32RntrOccHU1Det","H32RntrOccHU1Att","H32RntrOccHU2Unit","H32RntrOccHU3to4Unit","H32RntrOccHU5to9Unit","H32RntrOccHU10to19Unit","H32RntrOccHU20to49Unit","H32RntrOccHU50PlusUnit","H32RntrOccHUMobHom","H32RntrOccHUBoatRVOth","H33TotPopInOccHU","H33PopInOwnOccHU2","H33PopInOOHU1Det","H33PopInOOHU1Att","H33PopInOOHU2unit","H33PopInOOHU3to4Unit","H33PopInOOHU5to9Unit","H33PopInOOHU10to19Unit","H33PopInOOHU20to49Unit","H33PopInOOHU50PlusUnit","H33PopInOOHUMobilHome","H33PopInOOHUOtherUnit","H33PopInRentOccHU2","H33PopInROHU1Det","H33PopInROHU1Att","H33PopInROHU2Unit","H33PopInROHU3to4Unit","H33PopInROHU5to9Unit","H33PopInROHU10to19Unit","H33PopInROHU20to49Unit","H33PopInROHU50PlusUnit","H33PopInROHUMobilHome","H33PopInROHUOtherUnit","H36OccHousingUnitsdTotal","H36OwnerOccHU4","H36OOHUBuilt99to0300","H36OOHUBuilt95to98","H36OOHUBuilt90to94","H36OOHUBuilt80to89","H36OOHUBuilt70to79","H36OOHUBuilt60to69","H36OOHUBuilt50to59","H36OOHUBuilt40to49","H36OOHUBuilt39Earlier","H36RentOccHU4","H36ROHUBuilt99to0300","H36ROHUBuilt95to98","H36ROHUBuilt90to94","H36ROHUBuilt80to89","H36ROHUBuilt70to79","H36ROHUBuilt60to69","H36ROHUBuilt50to59","H36ROHUBuilt40to49","H36ROHUBuilt39Earlier","H40OccupHousUnitse","H40HeatFuelUtilGas","H40HeatFuelBotGas","H40HeatFuelElect","H40HeatFuelOilKero","H40HeatFuelCoal","H40HeatFuelWood","H40HeatFuelSolar","H40HeatFuelOther","H40HeatFuelNone","H41TotalHU","H41HUNoBdrm","H41HU1Bdrm","H41HU2Bdrm","H41HU3Bdrm","H41HU4Bdrm","H41HU5MoreBdrm","H42OccuHousUnitf","H42OwnerOccHU5","H42OOHUNoBdrm","H42OOHU1Bdrm","H42OOHU2Bdrm","H42OOHU3Bdrm","H42OOHU4Bdrm","H42OOHU5PlusBdrm","H42RentOccHU5","H42ROHUNoBdrm","H42ROHU1Bdrm","H42ROHU2Bdrm","H42ROHU3Bdrm","H42ROHU4Bdrm","H42ROHU5PlusBdrm","H48OccupHousUnitsg","H48OwnerOccHU6","H48OOHUwCompltPlumFacil","H48OOHULackCompltPlumFacil","H48RentOccHU6","H48ROHUwCompltPlumFacil","H48ROHULackCompltPlumFacil","H51OccupHousUnitf","H51OwnerOccHU7","H51OOHUwCompleteKitFacil","H51OOHULackCompleteKitFacil","H51RenterOccHU7","H51ROHUwCompleteKitFacil","H51ROHULackCompleteKitFacil"]
[{"$f":"VLOOKUP(DropDownList!$B$27,CntyQryCensus!$A$185:$GX$207,A$1)","v":"Dublin"},{"$f":"VLOOKUP(DropDownList!$B$27,CntyQryCensus!$A$185:$GX$207,B$1)","v":"0000525"},{"$f":"VLOOKUP(DropDownList!$B$27,CntyQryCensus!$A$185:$GX$207,C$1)","v":"19140"},{"$f":"VLOOKUP(DropDownList!$B$27,CntyQryCensus!$A$185:$GX$207,D$1)","v":1476},{"$f":"VLOOKUP(DropDownList!$B$27,CntyQryCensus!$A$185:$GX$207,E$1)","v":686},{"$f":"VLOOKUP(DropDownList!$B$27,CntyQryCensus!$A$185:$GX$207,F$1)","v":305},{"$f":"VLOOKUP(DropDownList!$B$27,CntyQryCensus!$A$185:$GX$207,G$1)","v":261},{"$f":"VLOOKUP(DropDownList!$B$27,CntyQryCensus!$A$185:$GX$207,H$1)","v":44},{"$f":"VLOOKUP(DropDownList!$B$27,CntyQryCensus!$A$185:$GX$207,I$1)","v":686},{"$f":"VLOOKUP(DropDownList!$B$27,CntyQryCensus!$A$185:$GX$207,J$1)","v":686},{"$f":"VLOOKUP(DropDownList!$B$27,CntyQryCensus!$A$185:$GX$207,K$1)","v":0},{"$f":"VLOOKUP(DropDownList!$B$27,CntyQryCensus!$A$185:$GX$207,L$1)","v":0},{"$f":"VLOOKUP(DropDownList!$B$27,CntyQryCensus!$A$185:$GX$207,M$1)","v":0},{"$f":"VLOOKUP(DropDownList!$B$27,CntyQryCensus!$A$185:$GX$207,N$1)","v":686},{"$f":"VLOOKUP(DropDownList!$B$27,CntyQryCensus!$A$185:$GX$207,O$1)","v":0},{"$f":"VLOOKUP(DropDownList!$B$27,CntyQryCensus!$A$185:$GX$207,P$1)","v":686},{"$f":"VLOOKUP(DropDownList!$B$27,CntyQryCensus!$A$185:$GX$207,Q$1)","v":560},{"$f":"VLOOKUP(DropDownList!$B$27,CntyQryCensus!$A$185:$GX$207,R$1)","v":454},{"$f":"VLOOKUP(DropDownList!$B$27,CntyQryCensus!$A$185:$GX$207,S$1)","v":106},{"$f":"VLOOKUP(DropDownList!$B$27,CntyQryCensus!$A$185:$GX$207,T$1)","v":126},{"$f":"VLOOKUP(DropDownList!$B$27,CntyQryCensus!$A$185:$GX$207,U$1)","v":0},{"$f":"VLOOKUP(DropDownList!$B$27,CntyQryCensus!$A$185:$GX$207,V$1)","v":11},{"$f":"VLOOKUP(DropDownList!$B$27,CntyQryCensus!$A$185:$GX$207,W$1)","v":3},{"$f":"VLOOKUP(DropDownList!$B$27,CntyQryCensus!$A$185:$GX$207,X$1)","v":92},{"$f":"VLOOKUP(DropDownList!$B$27,CntyQryCensus!$A$185:$GX$207,Y$1)","v":0},{"$f":"VLOOKUP(DropDownList!$B$27,CntyQryCensus!$A$185:$GX$207,Z$1)","v":20},{"$f":"VLOOKUP(DropDownList!$B$27,CntyQryCensus!$A$185:$GX$207,AA$1)","v":560},{"$f":"VLOOKUP(DropDownList!$B$27,CntyQryCensus!$A$185:$GX$207,AB$1)","v":454},{"$f":"VLOOKUP(DropDownList!$B$27,CntyQryCensus!$A$185:$GX$207,AC$1)","v":2},{"$f":"VLOOKUP(DropDownList!$B$27,CntyQryCensus!$A$185:$GX$207,AD$1)","v":31},{"$f":"VLOOKUP(DropDownList!$B$27,CntyQryCensus!$A$185:$GX$207,AE$1)","v":83},{"$f":"VLOOKUP(DropDownList!$B$27,CntyQryCensus!$A$185:$GX$207,AF$1)","v":127},{"$f":"VLOOKUP(DropDownList!$B$27,CntyQryCensus!$A$185:$GX$207,AG$1)","v":58},{"$f":"VLOOKUP(DropDownList!$B$27,CntyQryCensus!$A$185:$GX$207,AH$1)","v":44},{"$f":"VLOOKUP(DropDownList!$B$27,CntyQryCensus!$A$185:$GX$207,AI$1)","v":66},{"$f":"VLOOKUP(DropDownList!$B$27,CntyQryCensus!$A$185:$GX$207,AJ$1)","v":32},{"$f":"VLOOKUP(DropDownList!$B$27,CntyQryCensus!$A$185:$GX$207,AK$1)","v":11},{"$f":"VLOOKUP(DropDownList!$B$27,CntyQryCensus!$A$185:$GX$207,AL$1)","v":106},{"$f":"VLOOKUP(DropDownList!$B$27,CntyQryCensus!$A$185:$GX$207,AM$1)","v":2},{"$f":"VLOOKUP(DropDownList!$B$27,CntyQryCensus!$A$185:$GX$207,AN$1)","v":28},{"$f":"VLOOKUP(DropDownList!$B$27,CntyQryCensus!$A$185:$GX$207,AO$1)","v":41},{"$f":"VLOOKUP(DropDownList!$B$27,CntyQryCensus!$A$185:$GX$207,AP$1)","v":10},{"$f":"VLOOKUP(DropDownList!$B$27,CntyQryCensus!$A$185:$GX$207,AQ$1)","v":13},{"$f":"VLOOKUP(DropDownList!$B$27,CntyQryCensus!$A$185:$GX$207,AR$1)","v":4},{"$f":"VLOOKUP(DropDownList!$B$27,CntyQryCensus!$A$185:$GX$207,AS$1)","v":6},{"$f":"VLOOKUP(DropDownList!$B$27,CntyQryCensus!$A$185:$GX$207,AT$1)","v":2},{"$f":"VLOOKUP(DropDownList!$B$27,CntyQryCensus!$A$185:$GX$207,AU$1)","v":0},{"$f":"VLOOKUP(DropDownList!$B$27,CntyQryCensus!$A$185:$GX$207,AV$1)","v":1404},{"$f":"VLOOKUP(DropDownList!$B$27,CntyQryCensus!$A$185:$GX$207,AW$1)","v":1158},{"$f":"VLOOKUP(DropDownList!$B$27,CntyQryCensus!$A$185:$GX$207,AX$1)","v":246},{"$f":"VLOOKUP(DropDownList!$B$27,CntyQryCensus!$A$185:$GX$207,AY$1)","v":560},{"$f":"VLOOKUP(DropDownList!$B$27,CntyQryCensus!$A$185:$GX$207,AZ$1)","v":454},{"$f":"VLOOKUP(DropDownList!$B$27,CntyQryCensus!$A$185:$GX$207,BA$1)","v":82},{"$f":"VLOOKUP(DropDownList!$B$27,CntyQryCensus!$A$185:$GX$207,BB$1)","v":201},{"$f":"VLOOKUP(DropDownList!$B$27,CntyQryCensus!$A$185:$GX$207,BC$1)","v":69},{"$f":"VLOOKUP(DropDownList!$B$27,CntyQryCensus!$A$185:$GX$207,BD$1)","v":73},{"$f":"VLOOKUP(DropDownList!$B$27,CntyQryCensus!$A$185:$GX$207,BE$1)","v":21},{"$f":"VLOOKUP(DropDownList!$B$27,CntyQryCensus!$A$185:$GX$207,BF$1)","v":6},{"$f":"VLOOKUP(DropDownList!$B$27,CntyQryCensus!$A$185:$GX$207,BG$1)","v":2},{"$f":"VLOOKUP(DropDownList!$B$27,CntyQryCensus!$A$185:$GX$207,BH$1)","v":106},{"$f":"VLOOKUP(DropDownList!$B$27,CntyQryCensus!$A$185:$GX$207,BI$1)","v":35},{"$f":"VLOOKUP(DropDownList!$B$27,CntyQryCensus!$A$185:$GX$207,BJ$1)","v":29},{"$f":"VLOOKUP(DropDownList!$B$27,CntyQryCensus!$A$185:$GX$207,BK$1)","v":16},{"$f":"VLOOKUP(DropDownList!$B$27,CntyQryCensus!$A$185:$GX$207,BL$1)","v":17},{"$f":"VLOOKUP(DropDownList!$B$27,CntyQryCensus!$A$185:$GX$207,BM$1)","v":4},{"$f":"VLOOKUP(DropDownList!$B$27,CntyQryCensus!$A$185:$GX$207,BN$1)","v":5},{"$f":"VLOOKUP(DropDownList!$B$27,CntyQryCensus!$A$185:$GX$207,BO$1)","v":0},{"$f":"VLOOKUP(DropDownList!$B$27,CntyQryCensus!$A$185:$GX$207,BP$1)","v":3},{"$f":"VLOOKUP(DropDownList!$B$27,CntyQryCensus!$A$185:$GX$207,BQ$1)","v":3},{"$f":"VLOOKUP(DropDownList!$B$27,CntyQryCensus!$A$185:$GX$207,BR$1)","v":2},{"$f":"VLOOKUP(DropDownList!$B$27,CntyQryCensus!$A$185:$GX$207,BS$1)","v":686},{"$f":"VLOOKUP(DropDownList!$B$27,CntyQryCensus!$A$185:$GX$207,BT$1)","v":8},{"$f":"VLOOKUP(DropDownList!$B$27,CntyQryCensus!$A$185:$GX$207,BU$1)","v":2},{"$f":"VLOOKUP(DropDownList!$B$27,CntyQryCensus!$A$185:$GX$207,BV$1)","v":51},{"$f":"VLOOKUP(DropDownList!$B$27,CntyQryCensus!$A$185:$GX$207,BW$1)","v":60},{"$f":"VLOOKUP(DropDownList!$B$27,CntyQryCensus!$A$185:$GX$207,BX$1)","v":103},{"$f":"VLOOKUP(DropDownList!$B$27,CntyQryCensus!$A$185:$GX$207,BY$1)","v":125},{"$f":"VLOOKUP(DropDownList!$B$27,CntyQryCensus!$A$185:$GX$207,BZ$1)","v":116},{"$f":"VLOOKUP(DropDownList!$B$27,CntyQryCensus!$A$185:$GX$207,CA$1)","v":81},{"$f":"VLOOKUP(DropDownList!$B$27,CntyQryCensus!$A$185:$GX$207,CB$1)","v":140},{"$f":"VLOOKUP(DropDownList!$B$27,CntyQryCensus!$A$185:$GX$207,CC$1)","v":6},{"$f":"VLOOKUP(DropDownList!$B$27,CntyQryCensus!$A$185:$GX$207,CD$1)","v":4530},{"$f":"VLOOKUP(DropDownList!$B$27,CntyQryCensus!$A$185:$GX$207,CE$1)","v":686},{"$f":"VLOOKUP(DropDownList!$B$27,CntyQryCensus!$A$185:$GX$207,CF$1)","v":619},{"$f":"VLOOKUP(DropDownList!$B$27,CntyQryCensus!$A$185:$GX$207,CG$1)","v":17},{"$f":"VLOOKUP(DropDownList!$B$27,CntyQryCensus!$A$185:$GX$207,CH$1)","v":20},{"$f":"VLOOKUP(DropDownList!$B$27,CntyQryCensus!$A$185:$GX$207,CI$1)","v":6},{"$f":"VLOOKUP(DropDownList!$B$27,CntyQryCensus!$A$185:$GX$207,CJ$1)","v":0},{"$f":"VLOOKUP(DropDownList!$B$27,CntyQryCensus!$A$185:$GX$207,CK$1)","v":0},{"$f":"VLOOKUP(DropDownList!$B$27,CntyQryCensus!$A$185:$GX$207,CL$1)","v":2},{"$f":"VLOOKUP(DropDownList!$B$27,CntyQryCensus!$A$185:$GX$207,CM$1)","v":0},{"$f":"VLOOKUP(DropDownList!$B$27,CntyQryCensus!$A$185:$GX$207,CN$1)","v":22},{"$f":"VLOOKUP(DropDownList!$B$27,CntyQryCensus!$A$185:$GX$207,CO$1)","v":0},{"$f":"VLOOKUP(DropDownList!$B$27,CntyQryCensus!$A$185:$GX$207,CP$1)","v":560},{"$f":"VLOOKUP(DropDownList!$B$27,CntyQryCensus!$A$185:$GX$207,CQ$1)","v":454},{"$f":"VLOOKUP(DropDownList!$B$27,CntyQryCensus!$A$185:$GX$207,CR$1)","v":426},{"$f":"VLOOKUP(DropDownList!$B$27,CntyQryCensus!$A$185:$GX$207,CS$1)","v":4},{"$f":"VLOOKUP(DropDownList!$B$27,CntyQryCensus!$A$185:$GX$207,CT$1)","v":12},{"$f":"VLOOKUP(DropDownList!$B$27,CntyQryCensus!$A$185:$GX$207,CU$1)","v":0},{"$f":"VLOOKUP(DropDownList!$B$27,CntyQryCensus!$A$185:$GX$207,CV$1)","v":0},{"$f":"VLOOKUP(DropDownList!$B$27,CntyQryCensus!$A$185:$GX$207,CW$1)","v":0},{"$f":"VLOOKUP(DropDownList!$B$27,CntyQryCensus!$A$185:$GX$207,CX$1)","v":0},{"$f":"VLOOKUP(DropDownList!$B$27,CntyQryCensus!$A$185:$GX$207,CY$1)","v":0},{"$f":"VLOOKUP(DropDownList!$B$27,CntyQryCensus!$A$185:$GX$207,CZ$1)","v":12},{"$f":"VLOOKUP(DropDownList!$B$27,CntyQryCensus!$A$185:$GX$207,DA$1)","v":0},{"$f":"VLOOKUP(DropDownList!$B$27,CntyQryCensus!$A$185:$GX$207,DB$1)","v":106},{"$f":"VLOOKUP(DropDownList!$B$27,CntyQryCensus!$A$185:$GX$207,DC$1)","v":76},{"$f":"VLOOKUP(DropDownList!$B$27,CntyQryCensus!$A$185:$GX$207,DD$1)","v":10},{"$f":"VLOOKUP(DropDownList!$B$27,CntyQryCensus!$A$185:$GX$207,DE$1)","v":8},{"$f":"VLOOKUP(DropDownList!$B$27,CntyQryCensus!$A$185:$GX$207,DF$1)","v":6},{"$f":"VLOOKUP(DropDownList!$B$27,CntyQryCensus!$A$185:$GX$207,DG$1)","v":0},{"$f":"VLOOKUP(DropDownList!$B$27,CntyQryCensus!$A$185:$GX$207,DH$1)","v":0},{"$f":"VLOOKUP(DropDownList!$B$27,CntyQryCensus!$A$185:$GX$207,DI$1)","v":2},{"$f":"VLOOKUP(DropDownList!$B$27,CntyQryCensus!$A$185:$GX$207,DJ$1)","v":0},{"$f":"VLOOKUP(DropDownList!$B$27,CntyQryCensus!$A$185:$GX$207,DK$1)","v":4},{"$f":"VLOOKUP(DropDownList!$B$27,CntyQryCensus!$A$185:$GX$207,DL$1)","v":0},{"$f":"VLOOKUP(DropDownList!$B$27,CntyQryCensus!$A$185:$GX$207,DM$1)","v":1404},{"$f":"VLOOKUP(DropDownList!$B$27,CntyQryCensus!$A$185:$GX$207,DN$1)","v":1158},{"$f":"VLOOKUP(DropDownList!$B$27,CntyQryCensus!$A$185:$GX$207,DO$1)","v":1063},{"$f":"VLOOKUP(DropDownList!$B$27,CntyQryCensus!$A$185:$GX$207,DP$1)","v":11},{"$f":"VLOOKUP(DropDownList!$B$27,CntyQryCensus!$A$185:$GX$207,DQ$1)","v":44},{"$f":"VLOOKUP(DropDownList!$B$27,CntyQryCensus!$A$185:$GX$207,DR$1)","v":0},{"$f":"VLOOKUP(DropDownList!$B$27,CntyQryCensus!$A$185:$GX$207,DS$1)","v":0},{"$f":"VLOOKUP(DropDownList!$B$27,CntyQryCensus!$A$185:$GX$207,DT$1)","v":0},{"$f":"VLOOKUP(DropDownList!$B$27,CntyQryCensus!$A$185:$GX$207,DU$1)","v":0},{"$f":"VLOOKUP(DropDownList!$B$27,CntyQryCensus!$A$185:$GX$207,DV$1)","v":0},{"$f":"VLOOKUP(DropDownList!$B$27,CntyQryCensus!$A$185:$GX$207,DW$1)","v":40},{"$f":"VLOOKUP(DropDownList!$B$27,CntyQryCensus!$A$185:$GX$207,DX$1)","v":0},{"$f":"VLOOKUP(DropDownList!$B$27,CntyQryCensus!$A$185:$GX$207,DY$1)","v":246},{"$f":"VLOOKUP(DropDownList!$B$27,CntyQryCensus!$A$185:$GX$207,DZ$1)","v":193},{"$f":"VLOOKUP(DropDownList!$B$27,CntyQryCensus!$A$185:$GX$207,EA$1)","v":23},{"$f":"VLOOKUP(DropDownList!$B$27,CntyQryCensus!$A$185:$GX$207,EB$1)","v":11},{"$f":"VLOOKUP(DropDownList!$B$27,CntyQryCensus!$A$185:$GX$207,EC$1)","v":12},{"$f":"VLOOKUP(DropDownList!$B$27,CntyQryCensus!$A$185:$GX$207,ED$1)","v":0},{"$f":"VLOOKUP(DropDownList!$B$27,CntyQryCensus!$A$185:$GX$207,EE$1)","v":0},{"$f":"VLOOKUP(DropDownList!$B$27,CntyQryCensus!$A$185:$GX$207,EF$1)","v":3},{"$f":"VLOOKUP(DropDownList!$B$27,CntyQryCensus!$A$185:$GX$207,EG$1)","v":0},{"$f":"VLOOKUP(DropDownList!$B$27,CntyQryCensus!$A$185:$GX$207,EH$1)","v":4},{"$f":"VLOOKUP(DropDownList!$B$27,CntyQryCensus!$A$185:$GX$207,EI$1)","v":0},{"$f":"VLOOKUP(DropDownList!$B$27,CntyQryCensus!$A$185:$GX$207,EJ$1)","v":560},{"$f":"VLOOKUP(DropDownList!$B$27,CntyQryCensus!$A$185:$GX$207,EK$1)","v":454},{"$f":"VLOOKUP(DropDownList!$B$27,CntyQryCensus!$A$185:$GX$207,EL$1)","v":17},{"$f":"VLOOKUP(DropDownList!$B$27,CntyQryCensus!$A$185:$GX$207,EM$1)","v":22},{"$f":"VLOOKUP(DropDownList!$B$27,CntyQryCensus!$A$185:$GX$207,EN$1)","v":27},{"$f":"VLOOKUP(DropDownList!$B$27,CntyQryCensus!$A$185:$GX$207,EO$1)","v":109},{"$f":"VLOOKUP(DropDownList!$B$27,CntyQryCensus!$A$185:$GX$207,EP$1)","v":89},{"$f":"VLOOKUP(DropDownList!$B$27,CntyQryCensus!$A$185:$GX$207,EQ$1)","v":30},{"$f":"VLOOKUP(DropDownList!$B$27,CntyQryCensus!$A$185:$GX$207,ER$1)","v":26},{"$f":"VLOOKUP(DropDownList!$B$27,CntyQryCensus!$A$185:$GX$207,ES$1)","v":20},{"$f":"VLOOKUP(DropDownList!$B$27,CntyQryCensus!$A$185:$GX$207,ET$1)","v":114},{"$f":"VLOOKUP(DropDownList!$B$27,CntyQryCensus!$A$185:$GX$207,EU$1)","v":106},{"$f":"VLOOKUP(DropDownList!$B$27,CntyQryCensus!$A$185:$GX$207,EV$1)","v":0},{"$f":"VLOOKUP(DropDownList!$B$27,CntyQryCensus!$A$185:$GX$207,EW$1)","v":0},{"$f":"VLOOKUP(DropDownList!$B$27,CntyQryCensus!$A$185:$GX$207,EX$1)","v":2},{"$f":"VLOOKUP(DropDownList!$B$27,CntyQryCensus!$A$185:$GX$207,EY$1)","v":15},{"$f":"VLOOKUP(DropDownList!$B$27,CntyQryCensus!$A$185:$GX$207,EZ$1)","v":9},{"$f":"VLOOKUP(DropDownList!$B$27,CntyQryCensus!$A$185:$GX$207,FA$1)","v":10},{"$f":"VLOOKUP(DropDownList!$B$27,CntyQryCensus!$A$185:$GX$207,FB$1)","v":7},{"$f":"VLOOKUP(DropDownList!$B$27,CntyQryCensus!$A$185:$GX$207,FC$1)","v":5},{"$f":"VLOOKUP(DropDownList!$B$27,CntyQryCensus!$A$185:$GX$207,FD$1)","v":58},{"$f":"VLOOKUP(DropDownList!$B$27,CntyQryCensus!$A$185:$GX$207,FE$1)","v":560},{"$f":"VLOOKUP(DropDownList!$B$27,CntyQryCensus!$A$185:$GX$207,FF$1)","v":0},{"$f":"VLOOKUP(DropDownList!$B$27,CntyQryCensus!$A$185:$GX$207,FG$1)","v":37},{"$f":"VLOOKUP(DropDownList!$B$27,CntyQryCensus!$A$185:$GX$207,FH$1)","v":13},{"$f":"VLOOKUP(DropDownList!$B$27,CntyQryCensus!$A$185:$GX$207,FI$1)","v":448},{"$f":"VLOOKUP(DropDownList!$B$27,CntyQryCensus!$A$185:$GX$207,FJ$1)","v":0},{"$f":"VLOOKUP(DropDownList!$B$27,CntyQryCensus!$A$185:$GX$207,FK$1)","v":62},{"$f":"VLOOKUP(DropDownList!$B$27,CntyQryCensus!$A$185:$GX$207,FL$1)","v":0},{"$f":"VLOOKUP(DropDownList!$B$27,CntyQryCensus!$A$185:$GX$207,FM$1)","v":0},{"$f":"VLOOKUP(DropDownList!$B$27,CntyQryCensus!$A$185:$GX$207,FN$1)","v":0},{"$f":"VLOOKUP(DropDownList!$B$27,CntyQryCensus!$A$185:$GX$207,FO$1)","v":686},{"$f":"VLOOKUP(DropDownList!$B$27,CntyQryCensus!$A$185:$GX$207,FP$1)","v":8},{"$f":"VLOOKUP(DropDownList!$B$27,CntyQryCensus!$A$185:$GX$207,FQ$1)","v":49},{"$f":"VLOOKUP(DropDownList!$B$27,CntyQryCensus!$A$185:$GX$207,FR$1)","v":156},{"$f":"VLOOKUP(DropDownList!$B$27,CntyQryCensus!$A$185:$GX$207,FS$1)","v":255},{"$f":"VLOOKUP(DropDownList!$B$27,CntyQryCensus!$A$185:$GX$207,FT$1)","v":140},{"$f":"VLOOKUP(DropDownList!$B$27,CntyQryCensus!$A$185:$GX$207,FU$1)","v":78},{"$f":"VLOOKUP(DropDownList!$B$27,CntyQryCensus!$A$185:$GX$207,FV$1)","v":560},{"$f":"VLOOKUP(DropDownList!$B$27,CntyQryCensus!$A$185:$GX$207,FW$1)","v":454},{"$f":"VLOOKUP(DropDownList!$B$27,CntyQryCensus!$A$185:$GX$207,FX$1)","v":2},{"$f":"VLOOKUP(DropDownList!$B$27,CntyQryCensus!$A$185:$GX$207,FY$1)","v":17},{"$f":"VLOOKUP(DropDownList!$B$27,CntyQryCensus!$A$185:$GX$207,FZ$1)","v":87},{"$f":"VLOOKUP(DropDownList!$B$27,CntyQryCensus!$A$185:$GX$207,GA$1)","v":191},{"$f":"VLOOKUP(DropDownList!$B$27,CntyQryCensus!$A$185:$GX$207,GB$1)","v":114},{"$f":"VLOOKUP(DropDownList!$B$27,CntyQryCensus!$A$185:$GX$207,GC$1)","v":43},{"$f":"VLOOKUP(DropDownList!$B$27,CntyQryCensus!$A$185:$GX$207,GD$1)","v":106},{"$f":"VLOOKUP(DropDownList!$B$27,CntyQryCensus!$A$185:$GX$207,GE$1)","v":0},{"$f":"VLOOKUP(DropDownList!$B$27,CntyQryCensus!$A$185:$GX$207,GF$1)","v":21},{"$f":"VLOOKUP(DropDownList!$B$27,CntyQryCensus!$A$185:$GX$207,GG$1)","v":33},{"$f":"VLOOKUP(DropDownList!$B$27,CntyQryCensus!$A$185:$GX$207,GH$1)","v":29},{"$f":"VLOOKUP(DropDownList!$B$27,CntyQryCensus!$A$185:$GX$207,GI$1)","v":14},{"$f":"VLOOKUP(DropDownList!$B$27,CntyQryCensus!$A$185:$GX$207,GJ$1)","v":9},{"$f":"VLOOKUP(DropDownList!$B$27,CntyQryCensus!$A$185:$GX$207,GK$1)","v":560},{"$f":"VLOOKUP(DropDownList!$B$27,CntyQryCensus!$A$185:$GX$207,GL$1)","v":454},{"$f":"VLOOKUP(DropDownList!$B$27,CntyQryCensus!$A$185:$GX$207,GM$1)","v":452},{"$f":"VLOOKUP(DropDownList!$B$27,CntyQryCensus!$A$185:$GX$207,GN$1)","v":2},{"$f":"VLOOKUP(DropDownList!$B$27,CntyQryCensus!$A$185:$GX$207,GO$1)","v":106},{"$f":"VLOOKUP(DropDownList!$B$27,CntyQryCensus!$A$185:$GX$207,GP$1)","v":104},{"$f":"VLOOKUP(DropDownList!$B$27,CntyQryCensus!$A$185:$GX$207,GQ$1)","v":2},{"$f":"VLOOKUP(DropDownList!$B$27,CntyQryCensus!$A$185:$GX$207,GR$1)","v":560},{"$f":"VLOOKUP(DropDownList!$B$27,CntyQryCensus!$A$185:$GX$207,GS$1)","v":454},{"$f":"VLOOKUP(DropDownList!$B$27,CntyQryCensus!$A$185:$GX$207,GT$1)","v":452},{"$f":"VLOOKUP(DropDownList!$B$27,CntyQryCensus!$A$185:$GX$207,GU$1)","v":2},{"$f":"VLOOKUP(DropDownList!$B$27,CntyQryCensus!$A$185:$GX$207,GV$1)","v":106},{"$f":"VLOOKUP(DropDownList!$B$27,CntyQryCensus!$A$185:$GX$207,GW$1)","v":106},{"$f":"VLOOKUP(DropDownList!$B$27,CntyQryCensus!$A$185:$GX$207,GX$1)","v":0}]
[]
[]
["Census 2000 SummaryFile3 Sample Data  -  SF3TownQry8HousingCostA"]
["NAME","LOGRECNO","COUNTY","TotalPop","H62RntrOccHU","H62RntrOccHUwRent","H62ROHUGRent<100","H62ROHUGRent100to149","H62ROHUGRent150to199","H62ROHUGRent200to249","H62ROHUGRent250to299","H62ROHUGRent300to349","H62ROHUGRent350to399","H62ROHUGRent400to449","H62ROHUGRent450to499","H62ROHUGRent500to549","H62ROHUGRent550to599","H62ROHUGRent600to649","H62ROHUGRent650to699","H62ROHUGRent700to749","H62ROHUGRent750to799","H62ROHUGRent800to899","H62ROHUGRent900to999","H62ROHUGRent1000to1249","H62ROHUGRent1250to1499","H62ROHUGRent1500to1999","H62ROHUGRent2000>","H62ROHUNoGRent","H63MedianGrossRnt","H69RenterOccHsU","H69GRnt<10PctHHInc","H69GRnt10to15PctHHInc","H69GRnt15to20PctHHInc","H69GRnt20to25PctHHInc","H69GRnt25to30PctHHInc","H69GRnt30to35PctHHInc","H69GRnt35to40PctHHInc","H69GRnt40to50PctHHInc","H69GRnt>50PctHHInc","H69GRntPctNotcomputed","H73RenterOccHU","H73ROHUHhInc<10k","H73ROHUHhInc<10kRnt<20pct","H73ROHUHhInc<10kRnt20to25pct","H73ROHUHhInc<10kRnt25to30pct","H73ROHUHhInc<10kRnt30to35pct","H73ROHUHhInc<10kRnt>35pct","H73ROHUHhInc<10kPctNotComput","H73ROHUHhInc10to20k","H73ROHUHhInc10to20kRnt<20pct","H73ROHUHhInc10to20kRnt20to25pct","H73ROHUHhInc10to20kRnt25to30pct","H73ROHUHhInc10to20kRnt30to35pct","H73ROHUHhInc10to20kRnt>35pct","H73ROHUHhInc10to20kRntPctNC","H73ROHUHhInc20to35k","H73ROHUHhInc20to35kRnt<20pct","H73ROHUHhInc20to35kRnt20to25pct","H73ROHUHhInc20to35kRnt25to30pct","H73ROHUHhInc20to35kRnt30to35pct","H73ROHUHhInc20to35kRnt>35pct","H73ROHUHhInc20to35kRntPctNC","H73ROHUHhInc35to40k","H73ROHUHhInc35to40kRnt<20pct","H73ROHUHhInc35to40kRnt20to25pct","H73ROHUHhInc35to40kRnt25to30pct","H73ROHUHhInc35to40kRnt30to35pct","H73ROHUHhInc35to40kRnt>35pct","H73ROHUHhInc35to40kRntPctNC","H73ROHUHhInc50to75k","H73ROHUHhInc50to75kRnt<20pct","H73ROHUHhInc50to75kRnt20to25pct","H73ROHUHhInc50to75kRnt25to30pct","H73ROHUHhInc50to75kRnt30to35pct","H73ROHUHhInc50to75kRnt>35pct","H73ROHUHhInc50to75kRntPctNC","H73ROHUHhInc75to100k","H73ROHUHhInc75to100kRnt<20pct","H73ROHUHhInc75to100kRnt20to25pct","H73ROHUHhInc75to100kRnt25to30pct","H73ROHUHhInc75to100kRnt30to35pct","H73ROHUHhInc75to100kRnt>35pct","H73ROHUHhInc75to100kRntPctNC","H73ROHUHhInc>100k","H73ROHUHhInc>100kRnt<20pct","H73ROHUHhInc>100kRnt20to25pct","H73ROHUHhInc>100kRnt25to30pct","H73ROHUHhInc>100kRnt30to35pct","H73ROHUHhInc>100kRnt>35pct","H73ROHUHhInc>100kRntPctNC"]
[{"$f":"VLOOKUP(DropDownList!$B$27,CntyQryCensus!$A$207:$CL$2237,A$1)","v":"Dublin"},{"$f":"VLOOKUP(DropDownList!$B$27,CntyQryCensus!$A$207:$CL$2237,B$1)","v":"0000043"},{"$f":"VLOOKUP(DropDownList!$B$27,CntyQryCensus!$A$207:$CL$2237,C$1)","v":"005"},{"$f":"VLOOKUP(DropDownList!$B$27,CntyQryCensus!$A$207:$CL$2237,D$1)","v":1597},{"$f":"VLOOKUP(DropDownList!$B$27,CntyQryCensus!$A$207:$CL$2237,E$1)","v":1577},{"$f":"VLOOKUP(DropDownList!$B$27,CntyQryCensus!$A$207:$CL$2237,F$1)","v":1549},{"$f":"VLOOKUP(DropDownList!$B$27,CntyQryCensus!$A$207:$CL$2237,G$1)","v":4},{"$f":"VLOOKUP(DropDownList!$B$27,CntyQryCensus!$A$207:$CL$2237,H$1)","v":4},{"$f":"VLOOKUP(DropDownList!$B$27,CntyQryCensus!$A$207:$CL$2237,I$1)","v":12},{"$f":"VLOOKUP(DropDownList!$B$27,CntyQryCensus!$A$207:$CL$2237,J$1)","v":1},{"$f":"VLOOKUP(DropDownList!$B$27,CntyQryCensus!$A$207:$CL$2237,K$1)","v":7},{"$f":"VLOOKUP(DropDownList!$B$27,CntyQryCensus!$A$207:$CL$2237,L$1)","v":20},{"$f":"VLOOKUP(DropDownList!$B$27,CntyQryCensus!$A$207:$CL$2237,M$1)","v":28},{"$f":"VLOOKUP(DropDownList!$B$27,CntyQryCensus!$A$207:$CL$2237,N$1)","v":1569},{"$f":"VLOOKUP(DropDownList!$B$27,CntyQryCensus!$A$207:$CL$2237,O$1)","v":259},{"$f":"VLOOKUP(DropDownList!$B$27,CntyQryCensus!$A$207:$CL$2237,P$1)","v":173},{"$f":"VLOOKUP(DropDownList!$B$27,CntyQryCensus!$A$207:$CL$2237,Q$1)","v":142},{"$f":"VLOOKUP(DropDownList!$B$27,CntyQryCensus!$A$207:$CL$2237,R$1)","v":189},{"$f":"VLOOKUP(DropDownList!$B$27,CntyQryCensus!$A$207:$CL$2237,S$1)","v":288},{"$f":"VLOOKUP(DropDownList!$B$27,CntyQryCensus!$A$207:$CL$2237,T$1)","v":295},{"$f":"VLOOKUP(DropDownList!$B$27,CntyQryCensus!$A$207:$CL$2237,U$1)","v":158},{"$f":"VLOOKUP(DropDownList!$B$27,CntyQryCensus!$A$207:$CL$2237,V$1)","v":93},{"$f":"VLOOKUP(DropDownList!$B$27,CntyQryCensus!$A$207:$CL$2237,W$1)","v":46.5},{"$f":"VLOOKUP(DropDownList!$B$27,CntyQryCensus!$A$207:$CL$2237,X$1)","v":46.5},{"$f":"VLOOKUP(DropDownList!$B$27,CntyQryCensus!$A$207:$CL$2237,Y$1)","v":46.5},{"$f":"VLOOKUP(DropDownList!$B$27,CntyQryCensus!$A$207:$CL$2237,Z$1)","v":620},{"$f":"VLOOKUP(DropDownList!$B$27,CntyQryCensus!$A$207:$CL$2237,AA$1)","v":1525},{"$f":"VLOOKUP(DropDownList!$B$27,CntyQryCensus!$A$207:$CL$2237,AB$1)","v":834},{"$f":"VLOOKUP(DropDownList!$B$27,CntyQryCensus!$A$207:$CL$2237,AC$1)","v":691},{"$f":"VLOOKUP(DropDownList!$B$27,CntyQryCensus!$A$207:$CL$2237,AD$1)","v":2.46},{"$f":"VLOOKUP(DropDownList!$B$27,CntyQryCensus!$A$207:$CL$2237,AE$1)","v":458},{"$f":"VLOOKUP(DropDownList!$B$27,CntyQryCensus!$A$207:$CL$2237,AF$1)","v":395},{"$f":"VLOOKUP(DropDownList!$B$27,CntyQryCensus!$A$207:$CL$2237,AG$1)","v":63},{"$f":"VLOOKUP(DropDownList!$B$27,CntyQryCensus!$A$207:$CL$2237,AH$1)","v":162},{"$f":"VLOOKUP(DropDownList!$B$27,CntyQryCensus!$A$207:$CL$2237,AI$1)","v":2.82},{"$f":"VLOOKUP(DropDownList!$B$27,CntyQryCensus!$A$207:$CL$2237,AJ$1)","v":4.2654320987654319},{"$f":"VLOOKUP(DropDownList!$B$27,CntyQryCensus!$A$207:$CL$2237,AK$1)","v":2.4500000000000002},{"$f":"VLOOKUP(DropDownList!$B$27,CntyQryCensus!$A$207:$CL$2237,AL$1)","v":2.4900000000000002},{"$f":"VLOOKUP(DropDownList!$B$27,CntyQryCensus!$A$207:$CL$2237,AM$1)","v":785},{"$f":"VLOOKUP(DropDownList!$B$27,CntyQryCensus!$A$207:$CL$2237,AN$1)","v":620},{"$f":"VLOOKUP(DropDownList!$B$27,CntyQryCensus!$A$207:$CL$2237,AO$1)","v":501},{"$f":"VLOOKUP(DropDownList!$B$27,CntyQryCensus!$A$207:$CL$2237,AP$1)","v":119},{"$f":"VLOOKUP(DropDownList!$B$27,CntyQryCensus!$A$207:$CL$2237,AQ$1)","v":165},{"$f":"VLOOKUP(DropDownList!$B$27,CntyQryCensus!$A$207:$CL$2237,AR$1)","v":11},{"$f":"VLOOKUP(DropDownList!$B$27,CntyQryCensus!$A$207:$CL$2237,AS$1)","v":1},{"$f":"VLOOKUP(DropDownList!$B$27,CntyQryCensus!$A$207:$CL$2237,AT$1)","v":7},{"$f":"VLOOKUP(DropDownList!$B$27,CntyQryCensus!$A$207:$CL$2237,AU$1)","v":1},{"$f":"VLOOKUP(DropDownList!$B$27,CntyQryCensus!$A$207:$CL$2237,AV$1)","v":128},{"$f":"VLOOKUP(DropDownList!$B$27,CntyQryCensus!$A$207:$CL$2237,AW$1)","v":17},{"$f":"VLOOKUP(DropDownList!$B$27,CntyQryCensus!$A$207:$CL$2237,AX$1)","v":1.4},{"$f":"VLOOKUP(DropDownList!$B$27,CntyQryCensus!$A$207:$CL$2237,AY$1)","v":8.4},{"$f":"VLOOKUP(DropDownList!$B$27,CntyQryCensus!$A$207:$CL$2237,AZ$1)","v":785},{"$f":"VLOOKUP(DropDownList!$B$27,CntyQryCensus!$A$207:$CL$2237,BA$1)","v":714},{"$f":"VLOOKUP(DropDownList!$B$27,CntyQryCensus!$A$207:$CL$2237,BB$1)","v":60},{"$f":"VLOOKUP(DropDownList!$B$27,CntyQryCensus!$A$207:$CL$2237,BC$1)","v":11},{"$f":"VLOOKUP(DropDownList!$B$27,CntyQryCensus!$A$207:$CL$2237,BD$1)","v":0},{"$f":"VLOOKUP(DropDownList!$B$27,CntyQryCensus!$A$207:$CL$2237,BE$1)","v":0},{"$f":"VLOOKUP(DropDownList!$B$27,CntyQryCensus!$A$207:$CL$2237,BF$1)","v":0},{"$f":"VLOOKUP(DropDownList!$B$27,CntyQryCensus!$A$207:$CL$2237,BG$1)","v":0},{"$f":"VLOOKUP(DropDownList!$B$27,CntyQryCensus!$A$207:$CL$2237,BH$1)","v":0},{"$f":"VLOOKUP(DropDownList!$B$27,CntyQryCensus!$A$207:$CL$2237,BI$1)","v":0},{"$f":"VLOOKUP(DropDownList!$B$27,CntyQryCensus!$A$207:$CL$2237,BJ$1)","v":0},{"$f":"VLOOKUP(DropDownList!$B$27,CntyQryCensus!$A$207:$CL$2237,BK$1)","v":0},{"$f":"VLOOKUP(DropDownList!$B$27,CntyQryCensus!$A$207:$CL$2237,BL$1)","v":0},{"$f":"VLOOKUP(DropDownList!$B$27,CntyQryCensus!$A$207:$CL$2237,BM$1)","v":0},{"$f":"VLOOKUP(DropDownList!$B$27,CntyQryCensus!$A$207:$CL$2237,BN$1)","v":0},{"$f":"VLOOKUP(DropDownList!$B$27,CntyQryCensus!$A$207:$CL$2237,BO$1)","v":0},{"$f":"VLOOKUP(DropDownList!$B$27,CntyQryCensus!$A$207:$CL$2237,BP$1)","v":0},{"$f":"VLOOKUP(DropDownList!$B$27,CntyQryCensus!$A$207:$CL$2237,BQ$1)","v":0},{"$f":"VLOOKUP(DropDownList!$B$27,CntyQryCensus!$A$207:$CL$2237,BR$1)","v":0},{"$f":"VLOOKUP(DropDownList!$B$27,CntyQryCensus!$A$207:$CL$2237,BS$1)","v":0},{"$f":"VLOOKUP(DropDownList!$B$27,CntyQryCensus!$A$207:$CL$2237,BT$1)","v":0},{"$f":"VLOOKUP(DropDownList!$B$27,CntyQryCensus!$A$207:$CL$2237,BU$1)","v":0},{"$f":"VLOOKUP(DropDownList!$B$27,CntyQryCensus!$A$207:$CL$2237,BV$1)","v":0},{"$f":"VLOOKUP(DropDownList!$B$27,CntyQryCensus!$A$207:$CL$2237,BW$1)","v":0},{"$f":"VLOOKUP(DropDownList!$B$27,CntyQryCensus!$A$207:$CL$2237,BX$1)","v":0},{"$f":"VLOOKUP(DropDownList!$B$27,CntyQryCensus!$A$207:$CL$2237,BY$1)","v":0},{"$f":"VLOOKUP(DropDownList!$B$27,CntyQryCensus!$A$207:$CL$2237,BZ$1)","v":0},{"$f":"VLOOKUP(DropDownList!$B$27,CntyQryCensus!$A$207:$CL$2237,CA$1)","v":0},{"$f":"VLOOKUP(DropDownList!$B$27,CntyQryCensus!$A$207:$CL$2237,CB$1)","v":0},{"$f":"VLOOKUP(DropDownList!$B$27,CntyQryCensus!$A$207:$CL$2237,CC$1)","v":0},{"$f":"VLOOKUP(DropDownList!$B$27,CntyQryCensus!$A$207:$CL$2237,CD$1)","v":0},{"$f":"VLOOKUP(DropDownList!$B$27,CntyQryCensus!$A$207:$CL$2237,CE$1)","v":0},{"$f":"VLOOKUP(DropDownList!$B$27,CntyQryCensus!$A$207:$CL$2237,CF$1)","v":0},{"$f":"VLOOKUP(DropDownList!$B$27,CntyQryCensus!$A$207:$CL$2237,CG$1)","v":0},{"$f":"VLOOKUP(DropDownList!$B$27,CntyQryCensus!$A$207:$CL$2237,CH$1)","v":0},{"$f":"VLOOKUP(DropDownList!$B$27,CntyQryCensus!$A$207:$CL$2237,CI$1)","v":0},{"$f":"VLOOKUP(DropDownList!$B$27,CntyQryCensus!$A$207:$CL$2237,CJ$1)","v":0},{"$f":"VLOOKUP(DropDownList!$B$27,CntyQryCensus!$A$207:$CL$2237,CK$1)","v":0},{"$f":"VLOOKUP(DropDownList!$B$27,CntyQryCensus!$A$207:$CL$2237,CL$1)","v":0}]
[]
[]
["Census 2000 SummaryFile3 Sample Data  -  SF3TownQry8HousingCostB"]
["NAME","LOGRECNO","COUNTY","TotalPop","H74SpecOwnerOccHU","H74OOHU<10k","H74OOHU10to15k","H74OOHU15to20k","H74OOHU20to25k","H74OOHU25to30k","H74OOHU30to35k","H74OOHU35to40k","H74OOHU40to50k","H74OOHU50to60k","H74OOHU60to70k","H74OOHU70to80k","H74OOHU80to90k","H74OOHU90to100k","H74OOHU100to125k","H74OOHU125to150k","H74OOHU150to175k","H74OOHU175to200k","H74OOHU200to250k","H74OOHU250to300k","H74OOHU300to400k","H74OOHU400to500k","H74OOHU500to750k","H74OOHU750to1000k","H74OOHU1000kmore","H76OOHUMedianVal","H84OwnerOccHU","H84AllOOHU<10k","H84AllOOHU10to15k","H84AllOOHU15to20k","H84AllOOHU20to25k","H84AllOOHU25to30k","H84AllOOHU30to35k","H84AllOOHU35to40k","H84AllOOHU40to50k","H84AllOOHU50to60k","H84AllOOHU60to70k","H84AllOOHU70to80k","H84AllOOHU80to90k","H84AllOOHU90to100k","H84AllOOHU100to125k","H84AllOOHU125to150k","H84AllOOHU150to175k","H84AllOOHU175to200k","H84AllOOHU200to250k","H84AllOOHU250to300k","H84AllOOHU300to400k","H84AllOOHU400to500k","H84AllOOHU500to750k","H84AllOOHU750to1000k","H84AllOOHU1000kmore","H85OOHUMedVal","H90SOOHU","H90HUwMorgt","H90HUwMtgHC<200","H90HUwMtgHC200to300","H90HUwMtgHC300to400","H90HUwMtgHC400to500","H90HUwMtgHC500to600","H90HUwMtgHC600to700","H90HUwMtgHC700to800","H90HUwMtgHC800to900","H90HUwMtgHC900to1000","H90HUwMtgHC1000to1250","H90HUwMtgHC1250to1500","H90HUwMtgHC1500to2000","H90HUwMtgHC2000to2500","H90HUwMtgHC2500to3000","H90HUwMtgHC3000orMore","H90HUwOutMorgt","H90HUwOutMtgHC<100","H90HUwOutMtgHC100to150","H90HUwOutMtgHC150to200","H90HUwOutMtgHC200to250","H90HUwOutMtgHC250to300","H90HUwOutMtgHC300to350","H90HUwOutMtgHC350to400","H90HUwOutMtgHC400to500","H90HUwOutMtgHC500to600","H90HUwOutMtgHC600to700","H90HUwOutMtgHC700to800","H90HUwOutMtgHC800to900","H90HUwOutMtgHC900to1000","H90HUwOutMtgHC1000orMore","H91MedianOCHUwMtg","H91MedianOCHUwOutMtg","H94SpecOOHU","H94HUwMortg","H94HUwMtgHC<10pct","H94HUwMtgHC10to15pct","H94HUwMtgHC15to20pct","H94HUwMtgHC20to25pct","H94HUwMtgHC25to30pct","H94HUwMtgHC30to35pct","H94HUwMtgHC35to40pct","H94HUwMtgHC40to50pct","H94HUwMtgHC50pctOrMore","H94HUwMtgHCpctNotComp","H94HUWOutMortg","H94HUWOutMortgHC<10pct","H94HUWOutMortgHC10to15pct","H94HUWOutMortgHC15to20pct","H94HUWOutMortgHC20to25pct","H94HUWOutMortgHC25to30pct","H94HUWOutMortgHC30to35pct","H94HUWOutMortgHC35to40pct","H94HUWOutMortgHC40to50pct","H94HUWOutMortgHC50pctOrMore","H94HUWOutMortgHCpctNotComp","H97SpecifOwnOccHU","H97SOOHUInc<10k","H97SOOHUInc<10kHC<20pct","H97SOOHUInc<10kHC20to25pct","H97SOOHUInc<10kHC25to30pct","H97SOOHUInc<10kHC30to35pct","H97SOOHUInc<10kHC>35pct","H97SOOHUInc<10kHCpctNotComput","H97SOOHUInc10to20k","H97SOOHUInc10to20kHC<20pct","H97SOOHUInc10to20kHC20to25pct","H97SOOHUInc10to20kHC25to30pct","H97SOOHUInc10to20kHC30to35pct","H97SOOHUInc10to20kHC>35pct","H97SOOHUInc10to20kHCpctNotComput","H97SOOHUInc20to35k","H97SOOHUInc20to35kRC<20pct","H97SOOHUInc20to35kRC20to25pct","H97SOOHUInc20to35kRC25to30pct","H97SOOHUInc20to35kRC30to35pct","H97SOOHUInc20to35kRC>35pct","H97SOOHUInc20to35kRCpctNotComput","H97SOOHUInc35to50k","H97SOOHUInc35to50kRC<20pct","H97SOOHUInc35to50kRC20to25pct","H97SOOHUInc35to50kRC25to30pct","H97SOOHUInc35to50kRC30to35pct","H97SOOHUInc35to50kRC>35pct","H97SOOHUInc35to50kRCpctNotCompute","H97SOOHUInc50to75k","H97SOOHUInc50to75kRC<20pct","H97SOOHUInc50to75kRC20to25pct","H97SOOHUInc50to75kRC25to30pct","H97SOOHUInc50to75kRC30to35pct","H97SOOHUInc50to75kRC>35pct","H97SOOHUInc50to75kRCpctNotComput","H97SOOHUInc75to100k","H97SOOHUInc75to100kRC<20pct","H97SOOHUInc75to100kRC20to25pct","H97SOOHUInc75to100kRC25to30pct","H97SOOHUInc75to100kRC30to35pct","H97SOOHUInc75to100kRC>35pct","H97SOOHUInc75to100kRCpctNotCompute","H97SOOHUInc100to150k","H97SOOHUInc100to150kRC<20pct","H97SOOHUInc100to150kRC20to25pct","H97SOOHUInc100to150kRC25to30pct","H97SOOHUInc100to150kRC30to35pct","H97SOOHUInc100to150kRC>35pct","H97SOOHUInc100to150kRCpctNotCompute","H97SOOHUInc>150k","H97SOOHUInc>150kRC<20pct","H97SOOHUInc>150kRC20to25pct","H97SOOHUInc>150kRC25to30pct","H97SOOHUInc>150kRC30to35pct","H97SOOHUInc>150kRC>35pct","H97SOOHUInc>150kRCpctNotCompute"]
[{"$f":"VLOOKUP(DropDownList!$B$27,CntyQryCensus!$A$245:$FN$267,A$1)","v":"Dublin"},{"$f":"VLOOKUP(DropDownList!$B$27,CntyQryCensus!$A$245:$FN$267,B$1)","v":"0000525"},{"$f":"VLOOKUP(DropDownList!$B$27,CntyQryCensus!$A$245:$FN$267,C$1)","v":"19140"},{"$f":"VLOOKUP(DropDownList!$B$27,CntyQryCensus!$A$245:$FN$267,D$1)","v":1476},{"$f":"VLOOKUP(DropDownList!$B$27,CntyQryCensus!$A$245:$FN$267,E$1)","v":272},{"$f":"VLOOKUP(DropDownList!$B$27,CntyQryCensus!$A$245:$FN$267,F$1)","v":0},{"$f":"VLOOKUP(DropDownList!$B$27,CntyQryCensus!$A$245:$FN$267,G$1)","v":0},{"$f":"VLOOKUP(DropDownList!$B$27,CntyQryCensus!$A$245:$FN$267,H$1)","v":0},{"$f":"VLOOKUP(DropDownList!$B$27,CntyQryCensus!$A$245:$FN$267,I$1)","v":0},{"$f":"VLOOKUP(DropDownList!$B$27,CntyQryCensus!$A$245:$FN$267,J$1)","v":0},{"$f":"VLOOKUP(DropDownList!$B$27,CntyQryCensus!$A$245:$FN$267,K$1)","v":0},{"$f":"VLOOKUP(DropDownList!$B$27,CntyQryCensus!$A$245:$FN$267,L$1)","v":0},{"$f":"VLOOKUP(DropDownList!$B$27,CntyQryCensus!$A$245:$FN$267,M$1)","v":2},{"$f":"VLOOKUP(DropDownList!$B$27,CntyQryCensus!$A$245:$FN$267,N$1)","v":4},{"$f":"VLOOKUP(DropDownList!$B$27,CntyQryCensus!$A$245:$FN$267,O$1)","v":0},{"$f":"VLOOKUP(DropDownList!$B$27,CntyQryCensus!$A$245:$FN$267,P$1)","v":6},{"$f":"VLOOKUP(DropDownList!$B$27,CntyQryCensus!$A$245:$FN$267,Q$1)","v":15},{"$f":"VLOOKUP(DropDownList!$B$27,CntyQryCensus!$A$245:$FN$267,R$1)","v":24},{"$f":"VLOOKUP(DropDownList!$B$27,CntyQryCensus!$A$245:$FN$267,S$1)","v":46},{"$f":"VLOOKUP(DropDownList!$B$27,CntyQryCensus!$A$245:$FN$267,T$1)","v":35},{"$f":"VLOOKUP(DropDownList!$B$27,CntyQryCensus!$A$245:$FN$267,U$1)","v":53},{"$f":"VLOOKUP(DropDownList!$B$27,CntyQryCensus!$A$245:$FN$267,V$1)","v":26},{"$f":"VLOOKUP(DropDownList!$B$27,CntyQryCensus!$A$245:$FN$267,W$1)","v":23},{"$f":"VLOOKUP(DropDownList!$B$27,CntyQryCensus!$A$245:$FN$267,X$1)","v":17},{"$f":"VLOOKUP(DropDownList!$B$27,CntyQryCensus!$A$245:$FN$267,Y$1)","v":15},{"$f":"VLOOKUP(DropDownList!$B$27,CntyQryCensus!$A$245:$FN$267,Z$1)","v":2},{"$f":"VLOOKUP(DropDownList!$B$27,CntyQryCensus!$A$245:$FN$267,AA$1)","v":2},{"$f":"VLOOKUP(DropDownList!$B$27,CntyQryCensus!$A$245:$FN$267,AB$1)","v":2},{"$f":"VLOOKUP(DropDownList!$B$27,CntyQryCensus!$A$245:$FN$267,AC$1)","v":0},{"$f":"VLOOKUP(DropDownList!$B$27,CntyQryCensus!$A$245:$FN$267,AD$1)","v":151900},{"$f":"VLOOKUP(DropDownList!$B$27,CntyQryCensus!$A$245:$FN$267,AE$1)","v":454},{"$f":"VLOOKUP(DropDownList!$B$27,CntyQryCensus!$A$245:$FN$267,AF$1)","v":0},{"$f":"VLOOKUP(DropDownList!$B$27,CntyQryCensus!$A$245:$FN$267,AG$1)","v":2},{"$f":"VLOOKUP(DropDownList!$B$27,CntyQryCensus!$A$245:$FN$267,AH$1)","v":0},{"$f":"VLOOKUP(DropDownList!$B$27,CntyQryCensus!$A$245:$FN$267,AI$1)","v":0},{"$f":"VLOOKUP(DropDownList!$B$27,CntyQryCensus!$A$245:$FN$267,AJ$1)","v":0},{"$f":"VLOOKUP(DropDownList!$B$27,CntyQryCensus!$A$245:$FN$267,AK$1)","v":0},{"$f":"VLOOKUP(DropDownList!$B$27,CntyQryCensus!$A$245:$FN$267,AL$1)","v":0},{"$f":"VLOOKUP(DropDownList!$B$27,CntyQryCensus!$A$245:$FN$267,AM$1)","v":2},{"$f":"VLOOKUP(DropDownList!$B$27,CntyQryCensus!$A$245:$FN$267,AN$1)","v":4},{"$f":"VLOOKUP(DropDownList!$B$27,CntyQryCensus!$A$245:$FN$267,AO$1)","v":2},{"$f":"VLOOKUP(DropDownList!$B$27,CntyQryCensus!$A$245:$FN$267,AP$1)","v":10},{"$f":"VLOOKUP(DropDownList!$B$27,CntyQryCensus!$A$245:$FN$267,AQ$1)","v":17},{"$f":"VLOOKUP(DropDownList!$B$27,CntyQryCensus!$A$245:$FN$267,AR$1)","v":30},{"$f":"VLOOKUP(DropDownList!$B$27,CntyQryCensus!$A$245:$FN$267,AS$1)","v":58},{"$f":"VLOOKUP(DropDownList!$B$27,CntyQryCensus!$A$245:$FN$267,AT$1)","v":52},{"$f":"VLOOKUP(DropDownList!$B$27,CntyQryCensus!$A$245:$FN$267,AU$1)","v":66},{"$f":"VLOOKUP(DropDownList!$B$27,CntyQryCensus!$A$245:$FN$267,AV$1)","v":44},{"$f":"VLOOKUP(DropDownList!$B$27,CntyQryCensus!$A$245:$FN$267,AW$1)","v":55},{"$f":"VLOOKUP(DropDownList!$B$27,CntyQryCensus!$A$245:$FN$267,AX$1)","v":34},{"$f":"VLOOKUP(DropDownList!$B$27,CntyQryCensus!$A$245:$FN$267,AY$1)","v":32},{"$f":"VLOOKUP(DropDownList!$B$27,CntyQryCensus!$A$245:$FN$267,AZ$1)","v":10},{"$f":"VLOOKUP(DropDownList!$B$27,CntyQryCensus!$A$245:$FN$267,BA$1)","v":18},{"$f":"VLOOKUP(DropDownList!$B$27,CntyQryCensus!$A$245:$FN$267,BB$1)","v":7},{"$f":"VLOOKUP(DropDownList!$B$27,CntyQryCensus!$A$245:$FN$267,BC$1)","v":11},{"$f":"VLOOKUP(DropDownList!$B$27,CntyQryCensus!$A$245:$FN$267,BD$1)","v":168900},{"$f":"VLOOKUP(DropDownList!$B$27,CntyQryCensus!$A$245:$FN$267,BE$1)","v":272},{"$f":"VLOOKUP(DropDownList!$B$27,CntyQryCensus!$A$245:$FN$267,BF$1)","v":179},{"$f":"VLOOKUP(DropDownList!$B$27,CntyQryCensus!$A$245:$FN$267,BG$1)","v":0},{"$f":"VLOOKUP(DropDownList!$B$27,CntyQryCensus!$A$245:$FN$267,BH$1)","v":0},{"$f":"VLOOKUP(DropDownList!$B$27,CntyQryCensus!$A$245:$FN$267,BI$1)","v":0},{"$f":"VLOOKUP(DropDownList!$B$27,CntyQryCensus!$A$245:$FN$267,BJ$1)","v":4},{"$f":"VLOOKUP(DropDownList!$B$27,CntyQryCensus!$A$245:$FN$267,BK$1)","v":4},{"$f":"VLOOKUP(DropDownList!$B$27,CntyQryCensus!$A$245:$FN$267,BL$1)","v":4},{"$f":"VLOOKUP(DropDownList!$B$27,CntyQryCensus!$A$245:$FN$267,BM$1)","v":10},{"$f":"VLOOKUP(DropDownList!$B$27,CntyQryCensus!$A$245:$FN$267,BN$1)","v":10},{"$f":"VLOOKUP(DropDownList!$B$27,CntyQryCensus!$A$245:$FN$267,BO$1)","v":21},{"$f":"VLOOKUP(DropDownList!$B$27,CntyQryCensus!$A$245:$FN$267,BP$1)","v":43},{"$f":"VLOOKUP(DropDownList!$B$27,CntyQryCensus!$A$245:$FN$267,BQ$1)","v":42},{"$f":"VLOOKUP(DropDownList!$B$27,CntyQryCensus!$A$245:$FN$267,BR$1)","v":23},{"$f":"VLOOKUP(DropDownList!$B$27,CntyQryCensus!$A$245:$FN$267,BS$1)","v":18},{"$f":"VLOOKUP(DropDownList!$B$27,CntyQryCensus!$A$245:$FN$267,BT$1)","v":0},{"$f":"VLOOKUP(DropDownList!$B$27,CntyQryCensus!$A$245:$FN$267,BU$1)","v":0},{"$f":"VLOOKUP(DropDownList!$B$27,CntyQryCensus!$A$245:$FN$267,BV$1)","v":93},{"$f":"VLOOKUP(DropDownList!$B$27,CntyQryCensus!$A$245:$FN$267,BW$1)","v":0},{"$f":"VLOOKUP(DropDownList!$B$27,CntyQryCensus!$A$245:$FN$267,BX$1)","v":2},{"$f":"VLOOKUP(DropDownList!$B$27,CntyQryCensus!$A$245:$FN$267,BY$1)","v":0},{"$f":"VLOOKUP(DropDownList!$B$27,CntyQryCensus!$A$245:$FN$267,BZ$1)","v":0},{"$f":"VLOOKUP(DropDownList!$B$27,CntyQryCensus!$A$245:$FN$267,CA$1)","v":4},{"$f":"VLOOKUP(DropDownList!$B$27,CntyQryCensus!$A$245:$FN$267,CB$1)","v":2},{"$f":"VLOOKUP(DropDownList!$B$27,CntyQryCensus!$A$245:$FN$267,CC$1)","v":12},{"$f":"VLOOKUP(DropDownList!$B$27,CntyQryCensus!$A$245:$FN$267,CD$1)","v":21},{"$f":"VLOOKUP(DropDownList!$B$27,CntyQryCensus!$A$245:$FN$267,CE$1)","v":20},{"$f":"VLOOKUP(DropDownList!$B$27,CntyQryCensus!$A$245:$FN$267,CF$1)","v":15},{"$f":"VLOOKUP(DropDownList!$B$27,CntyQryCensus!$A$245:$FN$267,CG$1)","v":3},{"$f":"VLOOKUP(DropDownList!$B$27,CntyQryCensus!$A$245:$FN$267,CH$1)","v":10},{"$f":"VLOOKUP(DropDownList!$B$27,CntyQryCensus!$A$245:$FN$267,CI$1)","v":0},{"$f":"VLOOKUP(DropDownList!$B$27,CntyQryCensus!$A$245:$FN$267,CJ$1)","v":4},{"$f":"VLOOKUP(DropDownList!$B$27,CntyQryCensus!$A$245:$FN$267,CK$1)","v":1212},{"$f":"VLOOKUP(DropDownList!$B$27,CntyQryCensus!$A$245:$FN$267,CL$1)","v":528},{"$f":"VLOOKUP(DropDownList!$B$27,CntyQryCensus!$A$245:$FN$267,CM$1)","v":272},{"$f":"VLOOKUP(DropDownList!$B$27,CntyQryCensus!$A$245:$FN$267,CN$1)","v":179},{"$f":"VLOOKUP(DropDownList!$B$27,CntyQryCensus!$A$245:$FN$267,CO$1)","v":8},{"$f":"VLOOKUP(DropDownList!$B$27,CntyQryCensus!$A$245:$FN$267,CP$1)","v":21},{"$f":"VLOOKUP(DropDownList!$B$27,CntyQryCensus!$A$245:$FN$267,CQ$1)","v":40},{"$f":"VLOOKUP(DropDownList!$B$27,CntyQryCensus!$A$245:$FN$267,CR$1)","v":25},{"$f":"VLOOKUP(DropDownList!$B$27,CntyQryCensus!$A$245:$FN$267,CS$1)","v":26},{"$f":"VLOOKUP(DropDownList!$B$27,CntyQryCensus!$A$245:$FN$267,CT$1)","v":24},{"$f":"VLOOKUP(DropDownList!$B$27,CntyQryCensus!$A$245:$FN$267,CU$1)","v":6},{"$f":"VLOOKUP(DropDownList!$B$27,CntyQryCensus!$A$245:$FN$267,CV$1)","v":11},{"$f":"VLOOKUP(DropDownList!$B$27,CntyQryCensus!$A$245:$FN$267,CW$1)","v":18},{"$f":"VLOOKUP(DropDownList!$B$27,CntyQryCensus!$A$245:$FN$267,CX$1)","v":0},{"$f":"VLOOKUP(DropDownList!$B$27,CntyQryCensus!$A$245:$FN$267,CY$1)","v":93},{"$f":"VLOOKUP(DropDownList!$B$27,CntyQryCensus!$A$245:$FN$267,CZ$1)","v":23},{"$f":"VLOOKUP(DropDownList!$B$27,CntyQryCensus!$A$245:$FN$267,DA$1)","v":17},{"$f":"VLOOKUP(DropDownList!$B$27,CntyQryCensus!$A$245:$FN$267,DB$1)","v":15},{"$f":"VLOOKUP(DropDownList!$B$27,CntyQryCensus!$A$245:$FN$267,DC$1)","v":6},{"$f":"VLOOKUP(DropDownList!$B$27,CntyQryCensus!$A$245:$FN$267,DD$1)","v":4},{"$f":"VLOOKUP(DropDownList!$B$27,CntyQryCensus!$A$245:$FN$267,DE$1)","v":4},{"$f":"VLOOKUP(DropDownList!$B$27,CntyQryCensus!$A$245:$FN$267,DF$1)","v":2},{"$f":"VLOOKUP(DropDownList!$B$27,CntyQryCensus!$A$245:$FN$267,DG$1)","v":11},{"$f":"VLOOKUP(DropDownList!$B$27,CntyQryCensus!$A$245:$FN$267,DH$1)","v":9},{"$f":"VLOOKUP(DropDownList!$B$27,CntyQryCensus!$A$245:$FN$267,DI$1)","v":2},{"$f":"VLOOKUP(DropDownList!$B$27,CntyQryCensus!$A$245:$FN$267,DJ$1)","v":272},{"$f":"VLOOKUP(DropDownList!$B$27,CntyQryCensus!$A$245:$FN$267,DK$1)","v":18},{"$f":"VLOOKUP(DropDownList!$B$27,CntyQryCensus!$A$245:$FN$267,DL$1)","v":0},{"$f":"VLOOKUP(DropDownList!$B$27,CntyQryCensus!$A$245:$FN$267,DM$1)","v":0},{"$f":"VLOOKUP(DropDownList!$B$27,CntyQryCensus!$A$245:$FN$267,DN$1)","v":0},{"$f":"VLOOKUP(DropDownList!$B$27,CntyQryCensus!$A$245:$FN$267,DO$1)","v":0},{"$f":"VLOOKUP(DropDownList!$B$27,CntyQryCensus!$A$245:$FN$267,DP$1)","v":16},{"$f":"VLOOKUP(DropDownList!$B$27,CntyQryCensus!$A$245:$FN$267,DQ$1)","v":2},{"$f":"VLOOKUP(DropDownList!$B$27,CntyQryCensus!$A$245:$FN$267,DR$1)","v":24},{"$f":"VLOOKUP(DropDownList!$B$27,CntyQryCensus!$A$245:$FN$267,DS$1)","v":2},{"$f":"VLOOKUP(DropDownList!$B$27,CntyQryCensus!$A$245:$FN$267,DT$1)","v":2},{"$f":"VLOOKUP(DropDownList!$B$27,CntyQryCensus!$A$245:$FN$267,DU$1)","v":2},{"$f":"VLOOKUP(DropDownList!$B$27,CntyQryCensus!$A$245:$FN$267,DV$1)","v":4},{"$f":"VLOOKUP(DropDownList!$B$27,CntyQryCensus!$A$245:$FN$267,DW$1)","v":14},{"$f":"VLOOKUP(DropDownList!$B$27,CntyQryCensus!$A$245:$FN$267,DX$1)","v":0},{"$f":"VLOOKUP(DropDownList!$B$27,CntyQryCensus!$A$245:$FN$267,DY$1)","v":38},{"$f":"VLOOKUP(DropDownList!$B$27,CntyQryCensus!$A$245:$FN$267,DZ$1)","v":12},{"$f":"VLOOKUP(DropDownList!$B$27,CntyQryCensus!$A$245:$FN$267,EA$1)","v":4},{"$f":"VLOOKUP(DropDownList!$B$27,CntyQryCensus!$A$245:$FN$267,EB$1)","v":4},{"$f":"VLOOKUP(DropDownList!$B$27,CntyQryCensus!$A$245:$FN$267,EC$1)","v":4},{"$f":"VLOOKUP(DropDownList!$B$27,CntyQryCensus!$A$245:$FN$267,ED$1)","v":14},{"$f":"VLOOKUP(DropDownList!$B$27,CntyQryCensus!$A$245:$FN$267,EE$1)","v":0},{"$f":"VLOOKUP(DropDownList!$B$27,CntyQryCensus!$A$245:$FN$267,EF$1)","v":44},{"$f":"VLOOKUP(DropDownList!$B$27,CntyQryCensus!$A$245:$FN$267,EG$1)","v":10},{"$f":"VLOOKUP(DropDownList!$B$27,CntyQryCensus!$A$245:$FN$267,EH$1)","v":14},{"$f":"VLOOKUP(DropDownList!$B$27,CntyQryCensus!$A$245:$FN$267,EI$1)","v":8},{"$f":"VLOOKUP(DropDownList!$B$27,CntyQryCensus!$A$245:$FN$267,EJ$1)","v":4},{"$f":"VLOOKUP(DropDownList!$B$27,CntyQryCensus!$A$245:$FN$267,EK$1)","v":8},{"$f":"VLOOKUP(DropDownList!$B$27,CntyQryCensus!$A$245:$FN$267,EL$1)","v":0},{"$f":"VLOOKUP(DropDownList!$B$27,CntyQryCensus!$A$245:$FN$267,EM$1)","v":70},{"$f":"VLOOKUP(DropDownList!$B$27,CntyQryCensus!$A$245:$FN$267,EN$1)","v":31},{"$f":"VLOOKUP(DropDownList!$B$27,CntyQryCensus!$A$245:$FN$267,EO$1)","v":4},{"$f":"VLOOKUP(DropDownList!$B$27,CntyQryCensus!$A$245:$FN$267,EP$1)","v":14},{"$f":"VLOOKUP(DropDownList!$B$27,CntyQryCensus!$A$245:$FN$267,EQ$1)","v":16},{"$f":"VLOOKUP(DropDownList!$B$27,CntyQryCensus!$A$245:$FN$267,ER$1)","v":5},{"$f":"VLOOKUP(DropDownList!$B$27,CntyQryCensus!$A$245:$FN$267,ES$1)","v":0},{"$f":"VLOOKUP(DropDownList!$B$27,CntyQryCensus!$A$245:$FN$267,ET$1)","v":40},{"$f":"VLOOKUP(DropDownList!$B$27,CntyQryCensus!$A$245:$FN$267,EU$1)","v":33},{"$f":"VLOOKUP(DropDownList!$B$27,CntyQryCensus!$A$245:$FN$267,EV$1)","v":5},{"$f":"VLOOKUP(DropDownList!$B$27,CntyQryCensus!$A$245:$FN$267,EW$1)","v":2},{"$f":"VLOOKUP(DropDownList!$B$27,CntyQryCensus!$A$245:$FN$267,EX$1)","v":0},{"$f":"VLOOKUP(DropDownList!$B$27,CntyQryCensus!$A$245:$FN$267,EY$1)","v":0},{"$f":"VLOOKUP(DropDownList!$B$27,CntyQryCensus!$A$245:$FN$267,EZ$1)","v":0},{"$f":"VLOOKUP(DropDownList!$B$27,CntyQryCensus!$A$245:$FN$267,FA$1)","v":22},{"$f":"VLOOKUP(DropDownList!$B$27,CntyQryCensus!$A$245:$FN$267,FB$1)","v":20},{"$f":"VLOOKUP(DropDownList!$B$27,CntyQryCensus!$A$245:$FN$267,FC$1)","v":2},{"$f":"VLOOKUP(DropDownList!$B$27,CntyQryCensus!$A$245:$FN$267,FD$1)","v":0},{"$f":"VLOOKUP(DropDownList!$B$27,CntyQryCensus!$A$245:$FN$267,FE$1)","v":0},{"$f":"VLOOKUP(DropDownList!$B$27,CntyQryCensus!$A$245:$FN$267,FF$1)","v":0},{"$f":"VLOOKUP(DropDownList!$B$27,CntyQryCensus!$A$245:$FN$267,FG$1)","v":0},{"$f":"VLOOKUP(DropDownList!$B$27,CntyQryCensus!$A$245:$FN$267,FH$1)","v":16},{"$f":"VLOOKUP(DropDownList!$B$27,CntyQryCensus!$A$245:$FN$267,FI$1)","v":16},{"$f":"VLOOKUP(DropDownList!$B$27,CntyQryCensus!$A$245:$FN$267,FJ$1)","v":0},{"$f":"VLOOKUP(DropDownList!$B$27,CntyQryCensus!$A$245:$FN$267,FK$1)","v":0},{"$f":"VLOOKUP(DropDownList!$B$27,CntyQryCensus!$A$245:$FN$267,FL$1)","v":0},{"$f":"VLOOKUP(DropDownList!$B$27,CntyQryCensus!$A$245:$FN$267,FM$1)","v":0},{"$f":"VLOOKUP(DropDownList!$B$27,CntyQryCensus!$A$245:$FN$267,FN$1)","v":0}]
[]
[]
["Census 2000 SummaryFile3 Sample Data  -  SF3TownQry9HHIncomeByTenure"]
["NAME","LOGRECNO","COUNTY","TotalPop","HCT11OccHU","HCT11OwnOccHU","HCT11OOHUInc<5K","HCT11OOHUInc5to10K","HCT11OOHUInc10to15K","HCT11OOHUInc15to20K","HCT11OOHUInc20to25K","HCT11OOHUInc25to35K","HCT11OOHUInc35to50K","HCT11OOHUInc50to75K","HCT11OOHUInc75to100K","HCT11OOHUInc100to150K","HCT11OOHUInc>150K","HCT11RentOccHU","HCT11ROHUInc<5K","HCT11ROHUInc5to10K","HCT11ROHUInc10to15K","HCT11ROHUInc15to20K","HCT11ROHUInc20to25K","HCT11ROHUInc25to35K","HCT11ROHUInc35to50K","HCT11ROHUInc50to75K","HCT11ROHUInc75to100K","HCT11ROHUInc100to150K","HCT11ROHUInc>150K","HCT12MedHHInc","HCT12MedOwnOccHHInc","HCT12MedRentOccHHInc","SummaryLevel"]
[{"$f":"VLOOKUP(DropDownList!$B$27,CntyQryCensus!$A$275:$AG$297,A$1)","v":"Dublin"},{"$f":"VLOOKUP(DropDownList!$B$27,CntyQryCensus!$A$275:$AG$297,B$1)","v":"0000525"},{"$f":"VLOOKUP(DropDownList!$B$27,CntyQryCensus!$A$275:$AG$297,C$1)","v":"19140"},{"$f":"VLOOKUP(DropDownList!$B$27,CntyQryCensus!$A$275:$AG$297,D$1)","v":1476},{"$f":"VLOOKUP(DropDownList!$B$27,CntyQryCensus!$A$275:$AG$297,E$1)","v":560},{"$f":"VLOOKUP(DropDownList!$B$27,CntyQryCensus!$A$275:$AG$297,F$1)","v":454},{"$f":"VLOOKUP(DropDownList!$B$27,CntyQryCensus!$A$275:$AG$297,G$1)","v":12},{"$f":"VLOOKUP(DropDownList!$B$27,CntyQryCensus!$A$275:$AG$297,H$1)","v":12},{"$f":"VLOOKUP(DropDownList!$B$27,CntyQryCensus!$A$275:$AG$297,I$1)","v":12},{"$f":"VLOOKUP(DropDownList!$B$27,CntyQryCensus!$A$275:$AG$297,J$1)","v":16},{"$f":"VLOOKUP(DropDownList!$B$27,CntyQryCensus!$A$275:$AG$297,K$1)","v":29},{"$f":"VLOOKUP(DropDownList!$B$27,CntyQryCensus!$A$275:$AG$297,L$1)","v":39},{"$f":"VLOOKUP(DropDownList!$B$27,CntyQryCensus!$A$275:$AG$297,M$1)","v":68},{"$f":"VLOOKUP(DropDownList!$B$27,CntyQryCensus!$A$275:$AG$297,N$1)","v":122},{"$f":"VLOOKUP(DropDownList!$B$27,CntyQryCensus!$A$275:$AG$297,O$1)","v":70},{"$f":"VLOOKUP(DropDownList!$B$27,CntyQryCensus!$A$275:$AG$297,P$1)","v":34},{"$f":"VLOOKUP(DropDownList!$B$27,CntyQryCensus!$A$275:$AG$297,Q$1)","v":40},{"$f":"VLOOKUP(DropDownList!$B$27,CntyQryCensus!$A$275:$AG$297,R$1)","v":106},{"$f":"VLOOKUP(DropDownList!$B$27,CntyQryCensus!$A$275:$AG$297,S$1)","v":3},{"$f":"VLOOKUP(DropDownList!$B$27,CntyQryCensus!$A$275:$AG$297,T$1)","v":4},{"$f":"VLOOKUP(DropDownList!$B$27,CntyQryCensus!$A$275:$AG$297,U$1)","v":6},{"$f":"VLOOKUP(DropDownList!$B$27,CntyQryCensus!$A$275:$AG$297,V$1)","v":13},{"$f":"VLOOKUP(DropDownList!$B$27,CntyQryCensus!$A$275:$AG$297,W$1)","v":8},{"$f":"VLOOKUP(DropDownList!$B$27,CntyQryCensus!$A$275:$AG$297,X$1)","v":21},{"$f":"VLOOKUP(DropDownList!$B$27,CntyQryCensus!$A$275:$AG$297,Y$1)","v":14},{"$f":"VLOOKUP(DropDownList!$B$27,CntyQryCensus!$A$275:$AG$297,Z$1)","v":21},{"$f":"VLOOKUP(DropDownList!$B$27,CntyQryCensus!$A$275:$AG$297,AA$1)","v":8},{"$f":"VLOOKUP(DropDownList!$B$27,CntyQryCensus!$A$275:$AG$297,AB$1)","v":8},{"$f":"VLOOKUP(DropDownList!$B$27,CntyQryCensus!$A$275:$AG$297,AC$1)","v":0},{"$f":"VLOOKUP(DropDownList!$B$27,CntyQryCensus!$A$275:$AG$297,AD$1)","v":51983},{"$f":"VLOOKUP(DropDownList!$B$27,CntyQryCensus!$A$275:$AG$297,AE$1)","v":55938},{"$f":"VLOOKUP(DropDownList!$B$27,CntyQryCensus!$A$275:$AG$297,AF$1)","v":34545},{"$f":"VLOOKUP(DropDownList!$B$27,CntyQryCensus!$A$275:$AG$297,AG$1)","v":"060"}]
[]
[]
[]
[]
[]
[]
[]
[]
[]
[]
[]
[]
[]
["Census 2000 SummaryFile3 Sample Data - SF3TownQry10Disabil"]
["NAME","LOGRECNO","COUNTY","TotalPop","PCT026001-NonInstPop5yrs+","PCT026002-MaleNonInstPop5yrs+","PCT026003","PCT026004","PCT026005","PCT026006","PCT026007","PCT026008","PCT026009","PCT026010","PCT026011","PCT026012","PCT026013","PCT026014","PCT026015","PCT026016","PCT026017","PCT026018","PCT026019","PCT026020","PCT026021","PCT026022","PCT026023","PCT026024","PCT026025","PCT026026","PCT026027","PCT026028","PCT026029","PCT026030","PCT026031","PCT026032","PCT026033","PCT026034","PCT026035","PCT026036","PCT026037","PCT026038","PCT026039","PCT026040","PCT026041","PCT026042","PCT026043","PCT026044","PCT026045","PCT026046","PCT026047","PCT026048","PCT026049","PCT026050","PCT026051","PCT026052","PCT026053","PCT026054","PCT026055","PCT026056","PCT026057","PCT026058","PCT026059","PCT026060","PCT026061","PCT026062","PCT026063","PCT026064","PCT026065","PCT026066","PCT026067","PCT026068","PCT026069","PCT026070","PCT026071","PCT026072","PCT026073","PCT026074","PCT026075","PCT026076","PCT026077","PCT026078","PCT026079","PCT026080","PCT026081","PCT026082","PCT026083","PCT026084","PCT026085","PCT026086","PCT026087","PCT026088","PCT026089","PCT026090","PCT026091","PCT026092","PCT026093","PCT026094","PCT026095","PCT026096","PCT026097","PCT026098","PCT026099","PCT026100","PCT026101"]
[]
[]
[]
[]
[]
[]
[]
[]
[]
["ACS",2,{"$f":"B105+1","v":3},{"$f":"C105+1","v":4},5,6,7,8,9,10,11,{"$f":"K105+1","v":12},13,14,15,{"$f":"O105+1","v":16},17,18,19,20,21,22,23,24,25,26,27,28,29,30,31,32,33,34,35,36,37,38,39,40,41,42,43,44,45,46,47,48,49,50,51,52,53,54,55,56,57,58,59,60,61,62,63,64,65,66,67,{"$f":"BO105+1","v":68},69,70,71,72,73,74,75,76,77,78,79,80,81,82,83,84,85,86,87,88,89,90,91,92,93,94,95,96,97,98,99,100,101,102,103,104,105,106,107,108,109,110,111,112,113,114,115,116,117,118,119,120,121,122,123,124,125]
["Househould Data (Housing Unit Type)"]
["NAME","TotalHU",{"$f":"\"MOE \"&B107","v":"MOE TotalHU"},"TotalOccHU",{"$f":"\"MOE \"&D107","v":"MOE TotalOccHU"},"TotalOwnerOccUn",{"$f":"\"MOE \"&F107","v":"MOE TotalOwnerOccUn"},"TotalRenterOccn",{"$f":"\"MOE \"&H107","v":"MOE TotalRenterOccn"},"TotalVacantUntis",{"$f":"\"MOE \"&J107","v":"MOE TotalVacantUntis"},"VacantUnitsForRent",{"$f":"\"MOE \"&L107","v":"MOE VacantUnitsForRent"},"VacantUnitRentedNotOcc",{"$f":"\"MOE \"&N107","v":"MOE VacantUnitRentedNotOcc"},"VacantUnitForSale",{"$f":"\"MOE \"&P107","v":"MOE VacantUnitForSale"},"VacantUnitSoldNotOcc",{"$f":"\"MOE \"&R107","v":"MOE VacantUnitSoldNotOcc"},"VacantUnitSeasonalRec",{"$f":"\"MOE \"&T107","v":"MOE VacantUnitSeasonalRec"},"TotalPopInHousingUnits",{"$f":"\"MOE \"&V107","v":"MOE TotalPopInHousingUnits"},"OwnerOccPopHousingUnits",{"$f":"\"MOE \"&X107","v":"MOE OwnerOccPopHousingUnits"},"RenterOccPopHousingUnits",{"$f":"\"MOE \"&Z107","v":"MOE RenterOccPopHousingUnits"},"TotalUntis",{"$f":"\"MOE \"&AB107","v":"MOE TotalUntis"},"TotalOwnerOccUnits",{"$f":"\"MOE \"&AD107","v":"MOE TotalOwnerOccUnits"},"SigFamOwnerOcc",{"$f":"\"MOE \"&AF107","v":"MOE SigFamOwnerOcc"},"MultiFamOwnerOcc",{"$f":"\"MOE \"&AH107","v":"MOE MultiFamOwnerOcc"},"MobileOwnerOcc",{"$f":"\"MOE \"&AJ107","v":"MOE MobileOwnerOcc"},"TotalRenterOccUnits",{"$f":"\"MOE \"&AL107","v":"MOE TotalRenterOccUnits"},"SigFamRenterOcc",{"$f":"\"MOE \"&AN107","v":"MOE SigFamRenterOcc"},"MultiFamRenterOcc",{"$f":"\"MOE \"&AP107","v":"MOE MultiFamRenterOcc"},"MobileRenterOcc",{"$f":"\"MOE \"&AR107","v":"MOE MobileRenterOcc"},"TotalSigFamilyUnits",{"$f":"\"MOE \"&AT107","v":"MOE TotalSigFamilyUnits"},"TotalMultiFamilyUnits",{"$f":"\"MOE \"&AV107","v":"MOE TotalMultiFamilyUnits"},"TotalMobileUnits",{"$f":"\"MOE \"&AX107","v":"MOE TotalMobileUnits"},"YrHouseBuilt2014Later",{"$f":"\"MOE \"&AZ107","v":"MOE YrHouseBuilt2014Later"},"YrHouseBuilt2010-2013",{"$f":"\"MOE \"&BB107","v":"MOE YrHouseBuilt2010-2013"},"YrHouseBuilt2000-2009",{"$f":"\"MOE \"&BD107","v":"MOE YrHouseBuilt2000-2009"},"YrHouseBuilt1990-1999",{"$f":"\"MOE \"&BF107","v":"MOE YrHouseBuilt1990-1999"},"YrHouseBuilt1980-1989",{"$f":"\"MOE \"&BH107","v":"MOE YrHouseBuilt1980-1989"},"YrHouseBuilt1970-1979",{"$f":"\"MOE \"&BJ107","v":"MOE YrHouseBuilt1970-1979"},"YrHouseBuilt1960-1969",{"$f":"\"MOE \"&BL107","v":"MOE YrHouseBuilt1960-1969"},"YrHouseBuilt1950-1959",{"$f":"\"MOE \"&BN107","v":"MOE YrHouseBuilt1950-1959"},"YrHouseBuilt1940-1949",{"$f":"\"MOE \"&BP107","v":"MOE YrHouseBuilt1940-1949"},"YrHouseBuilt1939orEarlier",{"$f":"\"MOE \"&BR107","v":"MOE YrHouseBuilt1939orEarlier"},"NoBedrooms",{"$f":"\"MOE \"&BT107","v":"MOE NoBedrooms"},"1Bedroom",{"$f":"\"MOE \"&BV107","v":"MOE 1Bedroom"},"2Bedroom",{"$f":"\"MOE \"&BX107","v":"MOE 2Bedroom"},"3Bedroom",{"$f":"\"MOE \"&BZ107","v":"MOE 3Bedroom"},"4+Bedroom",{"$f":"\"MOE \"&CB107","v":"MOE 4+Bedroom"}]
[{"$f":"VLOOKUP(DropDownList!$B$27,CntyQryCensus!$A$275:$AG$297,A$1)","v":"Dublin"},1832,161,1579,132,1011,128,568,122,253,105,0,12,53,45,9,17,0,12,169,98,4092,106,2629,393,1463,409,1579,132,1011,128,825,118,16,35,170,77.929455278476055,568,122,136,75,404,125.50298801223818,28,30.463092423455635,1132,129,480,135.07035203922436,220,91.787798753429101,0,12,26,34,199,82,282,98,328,109,398,135,43,31,131,72,6,11,419,116,22,36,324,105,650,142,661,130,175,79.906195003891909]
[]
["Disability Data"]
["NAME","TotalPop",{"$f":"\"MOE \"&B111","v":"MOE TotalPop"},"PopUnder 5 years:",{"$f":"\"MOE \"&D111","v":"MOE PopUnder 5 years:"},{"$f":"D$111&\"-WithDisability\"","v":"PopUnder 5 years:-WithDisability"},{"$f":"\"MOE \"&F111","v":"MOE PopUnder 5 years:-WithDisability"},{"$f":"D111&\"-NoDisability\"","v":"PopUnder 5 years:-NoDisability"},{"$f":"\"MOE \"&H111","v":"MOE PopUnder 5 years:-NoDisability"},"PopUnder 5 to 17years:",{"$f":"\"MOE \"&J111","v":"MOE PopUnder 5 to 17years:"},{"$f":"J$111&\"-WithDisability\"","v":"PopUnder 5 to 17years:-WithDisability"},{"$f":"\"MOE \"&L111","v":"MOE PopUnder 5 to 17years:-WithDisability"},{"$f":"J111&\"-NoDisability\"","v":"PopUnder 5 to 17years:-NoDisability"},{"$f":"\"MOE \"&N111","v":"MOE PopUnder 5 to 17years:-NoDisability"},"PopUnder 18 to 34 years:",{"$f":"\"MOE \"&P111","v":"MOE PopUnder 18 to 34 years:"},{"$f":"P$111&\"-WithDisability\"","v":"PopUnder 18 to 34 years:-WithDisability"},{"$f":"\"MOE \"&R111","v":"MOE PopUnder 18 to 34 years:-WithDisability"},{"$f":"P111&\"-NoDisability\"","v":"PopUnder 18 to 34 years:-NoDisability"},{"$f":"\"MOE \"&T111","v":"MOE PopUnder 18 to 34 years:-NoDisability"},"Pop 35 years to 64:",{"$f":"\"MOE \"&V111","v":"MOE Pop 35 years to 64:"},{"$f":"$V$111&\"-WithDisability\"","v":"Pop 35 years to 64:-WithDisability"},{"$f":"\"MOE \"&X111","v":"MOE Pop 35 years to 64:-WithDisability"},{"$f":"$V$111&\"-NoDisability\"","v":"Pop 35 years to 64:-NoDisability"},{"$f":"\"MOE \"&Z111","v":"MOE Pop 35 years to 64:-NoDisability"},"Pop 65 years to 74:",{"$f":"\"MOE \"&AB111","v":"MOE Pop 65 years to 74:"},{"$f":"$AB$111&\"-WithDisability\"","v":"Pop 65 years to 74:-WithDisability"},{"$f":"\"MOE \"&AD111","v":"MOE Pop 65 years to 74:-WithDisability"},{"$f":"$AB$111&\"-NoDisability\"","v":"Pop 65 years to 74:-NoDisability"},{"$f":"\"MOE \"&AF111","v":"MOE Pop 65 years to 74:-NoDisability"},"Pop 75 and older:",{"$f":"\"MOE \"&AH111","v":"MOE Pop 75 and older:"},{"$f":"$AH$111&\"-WithDisability\"","v":"Pop 75 and older:-WithDisability"},{"$f":"\"MOE \"&AJ111","v":"MOE Pop 75 and older:-WithDisability"},{"$f":"$AH$111&\"-NoDisability\"","v":"Pop 75 and older:-NoDisability"},{"$f":"\"MOE \"&AL111","v":"MOE Pop 75 and older:-NoDisability"},"TotalPopUnder5_HearingDisability",{"$f":"\"MOE \"&AN111","v":"MOE TotalPopUnder5_HearingDisability"},"TotalPopUnder5_HearingDisability",{"$f":"\"MOE \"&AP111","v":"MOE TotalPopUnder5_HearingDisability"},"TotalPop18To34_HearingDisability",{"$f":"\"MOE \"&AR111","v":"MOE TotalPop18To34_HearingDisability"},"TotalPop35To64_HearingDisability",{"$f":"\"MOE \"&AT111","v":"MOE TotalPop35To64_HearingDisability"},"TotalPop65To74_HearingDisability",{"$f":"\"MOE \"&AV111","v":"MOE TotalPop65To74_HearingDisability"},"TotalPop75andOlder_HearingDisability",{"$f":"\"MOE \"&AX111","v":"MOE TotalPop75andOlder_HearingDisability"},"TotalPopUnder5_VisionDisability",{"$f":"\"MOE \"&AZ111","v":"MOE TotalPopUnder5_VisionDisability"},"TotalPop5To17_VisionDisability",{"$f":"\"MOE \"&BB111","v":"MOE TotalPop5To17_VisionDisability"},"TotalPop18To34_VisionDisability",{"$f":"\"MOE \"&BD111","v":"MOE TotalPop18To34_VisionDisability"},"TotalPop35To64_VisionDisability",{"$f":"\"MOE \"&BF111","v":"MOE TotalPop35To64_VisionDisability"},"TotalPop65To74_VisionDisability",{"$f":"\"MOE \"&BH111","v":"MOE TotalPop65To74_VisionDisability"},"TotalPop75andOlder_VisionDisability",{"$f":"\"MOE \"&BJ111","v":"MOE TotalPop75andOlder_VisionDisability"},"TotalPop5To17_CongnitiveDisability",{"$f":"\"MOE \"&BL111","v":"MOE TotalPop5To17_CongnitiveDisability"},"TotalPop18To34_CongnitiveDisability",{"$f":"\"MOE \"&BN111","v":"MOE TotalPop18To34_CongnitiveDisability"},"TotalPop35To64_CongnitiveDisability",{"$f":"\"MOE \"&BP111","v":"MOE TotalPop35To64_CongnitiveDisability"},"TotalPop65To74_CongnitiveDisability",{"$f":"\"MOE \"&BR111","v":"MOE TotalPop65To74_CongnitiveDisability"},"TotalPop75andOlder_CongnitiveDisability",{"$f":"\"MOE \"&BT111","v":"MOE TotalPop75andOlder_CongnitiveDisability"},"TotalPop5To17_AmbulatoryDisability",{"$f":"\"MOE \"&BV111","v":"MOE TotalPop5To17_AmbulatoryDisability"},"TotalPop18To34_AmbulatoryDisability",{"$f":"\"MOE \"&BX111","v":"MOE TotalPop18To34_AmbulatoryDisability"},"TotalPop35To64_AmbulatoryDisability",{"$f":"\"MOE \"&BZ111","v":"MOE TotalPop35To64_AmbulatoryDisability"},"TotalPop65To74_AmbulatoryDisability",{"$f":"\"MOE \"&CB111","v":"MOE TotalPop65To74_AmbulatoryDisability"},"TotalPop75andOlder_AmbulatoryDisability",{"$f":"\"MOE \"&CD111","v":"MOE TotalPop75andOlder_AmbulatoryDisability"},"TotalPop5To17_SelfCareDisability",{"$f":"\"MOE \"&CF111","v":"MOE TotalPop5To17_SelfCareDisability"},"TotalPop18To34_SelfCareDisability",{"$f":"\"MOE \"&CH111","v":"MOE TotalPop18To34_SelfCareDisability"},"TotalPop35To64_SelfCareDisability",{"$f":"\"MOE \"&CJ111","v":"MOE TotalPop35To64_SelfCareDisability"},"TotalPop65To74_SelfCareDisability",{"$f":"\"MOE \"&CL111","v":"MOE TotalPop65To74_SelfCareDisability"},"TotalPop75andOlder_SelfCareDisability",{"$f":"\"MOE \"&CN111","v":"MOE TotalPop75andOlder_SelfCareDisability"},"TotalPop18To34_IndependantLivingDisability",{"$f":"\"MOE \"&CP111","v":"MOE TotalPop18To34_IndependantLivingDisability"},"TotalPop35To64_IndependantLivingDisability",{"$f":"\"MOE \"&CR111","v":"MOE TotalPop35To64_IndependantLivingDisability"},"TotalPop65To74_IndependantLivingDisability",{"$f":"\"MOE \"&CT111","v":"MOE TotalPop65To74_IndependantLivingDisability"},"TotalPop75andOlder_IndependantLivingDisability",{"$f":"\"MOE \"&CV111","v":"MOE TotalPop75andOlder_IndependantLivingDisability"},"TotalUnder5_HearingorVisionDisability",{"$f":"\"MOE \"&CX111","v":"MOE TotalUnder5_HearingorVisionDisability"},"TotalUnder5_HearingandVisionDisability",{"$f":"\"MOE \"&CZ111","v":"MOE TotalUnder5_HearingandVisionDisability"},"5to17YearWIthOneDisability",{"$f":"\"MOE \"&DB111","v":"MOE 5to17YearWIthOneDisability"},"5to17YearWIthTwoOrMoreDisability",{"$f":"\"MOE \"&DD111","v":"MOE 5to17YearWIthTwoOrMoreDisability"},"18to34YearWIthOneDisability",{"$f":"\"MOE \"&DF111","v":"MOE 18to34YearWIthOneDisability"},"18to34YearWIthTwoOrMoreDisability",{"$f":"\"MOE \"&DH111","v":"MOE 18to34YearWIthTwoOrMoreDisability"},"35to64YearWIthOneDisability",{"$f":"\"MOE \"&DJ111","v":"MOE 35to64YearWIthOneDisability"},"35to64YearWIthTwoOrMoreDisability",{"$f":"\"MOE \"&DL111","v":"MOE 35to64YearWIthTwoOrMoreDisability"},"65to74YearWIthOneDisability",{"$f":"\"MOE \"&DN111","v":"MOE 65to74YearWIthOneDisability"},"65to74YearWIthTwoOrMoreDisability",{"$f":"\"MOE \"&DP111","v":"MOE 65to74YearWIthTwoOrMoreDisability"},"75AndOlderWIthOneDisability",{"$f":"\"MOE \"&DR111","v":"MOE 75AndOlderWIthOneDisability"},"75AndOlderWIthTwoOrMoreDisability",{"$f":"\"MOE \"&DT111","v":"MOE 75AndOlderWIthTwoOrMoreDisability"}]
[{"$f":"VLOOKUP(DropDownList!$B$27,CntyQryCensus!$A$275:$AG$297,A$1)","v":"Dublin"},1711,216,81,37.215588131856791,0,16.970562748477139,81,37.215588131856791,246,59.464274989274024,0,16.970562748477139,246,59.464274989274024,199,60.835844697020519,33,40.80441152620633,166,51.97114584074513,742,127.66362050325849,38,21.470910553583888,704,121.03718436910205,315,83.737685661833282,29,23.345235059857504,286,82.97590011563598,128,57.245087125446844,26,44.407206622349037,102,36.76955262170047,0,16.970562748477139,0,16.970562748477139,0,16.970562748477139,8,13.892443989449804,19,17.464249196572979,6,13.416407864998739,0,16.970562748477139,0,16.970562748477139,0,16.970562748477139,10,17.691806012954132,0,16.970562748477139,2,12.369316876852981,0,16.970562748477139,13,24.186773244895647,2,12.369316876852981,0,16.970562748477139,3,12.649110640673518,0,16.970562748477139,0,16.970562748477139,0,16.970562748477139,0,16.970562748477139,7,5.8309518948453007,0,16.970562748477139,0,16.970562748477139,0,16.970562748477139,0,16.970562748477139,7,5.8309518948453007,13,24.186773244895647,7,7.6157731058639087,0,16.970562748477139,22,43.289721643826724,0,12,0,12,56,36,15,21,32,31,23,43]
[]
["Househould Income By Age"]
["NAME","TotalHouseholds",{"$f":"\"MOE \"&B115","v":"MOE TotalHouseholds"},"HHInc<10K",{"$f":"\"MOE \"&D115","v":"MOE HHInc<10K"},"HHInc10to15K",{"$f":"\"MOE \"&F115","v":"MOE HHInc10to15K"},"HHInc15to20K",{"$f":"\"MOE \"&H115","v":"MOE HHInc15to20K"},"HHInc20to25K",{"$f":"\"MOE \"&J115","v":"MOE HHInc20to25K"},"HHInc25to30K",{"$f":"\"MOE \"&L115","v":"MOE HHInc25to30K"},"HHInc30to35K",{"$f":"\"MOE \"&N115","v":"MOE HHInc30to35K"},"HHInc35to40K",{"$f":"\"MOE \"&P115","v":"MOE HHInc35to40K"},"HHInc40to45K",{"$f":"\"MOE \"&R115","v":"MOE HHInc40to45K"},"HHInc45to50K",{"$f":"\"MOE \"&T115","v":"MOE HHInc45to50K"},"HHInc50to60K",{"$f":"\"MOE \"&V115","v":"MOE HHInc50to60K"},"HHInc60to75K",{"$f":"\"MOE \"&X115","v":"MOE HHInc60to75K"},"HHInc75to100K",{"$f":"\"MOE \"&Z115","v":"MOE HHInc75to100K"},"HHInc100to125K",{"$f":"\"MOE \"&AB115","v":"MOE HHInc100to125K"},"HHInc125to150K",{"$f":"\"MOE \"&AD115","v":"MOE HHInc125to150K"},"HHInc150to200K",{"$f":"\"MOE \"&AF115","v":"MOE HHInc150to200K"},"HHInc>200K",{"$f":"\"MOE \"&AH115","v":"MOE HHInc>200K"},"TotalHH",{"$f":"\"MOE \"&AJ115","v":"MOE TotalHH"},"HHAgeHHUnder25yrs",{"$f":"\"MOE \"&AL115","v":"MOE HHAgeHHUnder25yrs"},"HHAgeHH<25HHInc<10K",{"$f":"\"MOE \"&AN115","v":"MOE HHAgeHH<25HHInc<10K"},"HHAgeHH<25HHInc10to15K",{"$f":"\"MOE \"&AP115","v":"MOE HHAgeHH<25HHInc10to15K"},"HHAgeHH<25HHInc15to20K",{"$f":"\"MOE \"&AR115","v":"MOE HHAgeHH<25HHInc15to20K"},"HHAgeHH<25HHInc20to25K",{"$f":"\"MOE \"&AT115","v":"MOE HHAgeHH<25HHInc20to25K"},"HHAgeHH<25HHInc25to30K",{"$f":"\"MOE \"&AV115","v":"MOE HHAgeHH<25HHInc25to30K"},"HHAgeHH<25HHInc30to35K",{"$f":"\"MOE \"&AX115","v":"MOE HHAgeHH<25HHInc30to35K"},"HHAgeHH<25HHInc35to40K",{"$f":"\"MOE \"&AZ115","v":"MOE HHAgeHH<25HHInc35to40K"},"HHAgeHH<25HHInc40to45K",{"$f":"\"MOE \"&BB115","v":"MOE HHAgeHH<25HHInc40to45K"},"HHAgeHH<25HHInc45to50K",{"$f":"\"MOE \"&BD115","v":"MOE HHAgeHH<25HHInc45to50K"},"HHAgeHH<25HHInc50to60K",{"$f":"\"MOE \"&BF115","v":"MOE HHAgeHH<25HHInc50to60K"},"HHAgeHH<25HHInc60to75K",{"$f":"\"MOE \"&BH115","v":"MOE HHAgeHH<25HHInc60to75K"},"HHAgeHH<25HHInc75to100K",{"$f":"\"MOE \"&BJ115","v":"MOE HHAgeHH<25HHInc75to100K"},"HHAgeHH<25HHInc100to125K",{"$f":"\"MOE \"&BL115","v":"MOE HHAgeHH<25HHInc100to125K"},"HHAgeHH<25HHInc125to150K",{"$f":"\"MOE \"&BN115","v":"MOE HHAgeHH<25HHInc125to150K"},"HHAgeHH<25HHInc150to200K",{"$f":"\"MOE \"&BP115","v":"MOE HHAgeHH<25HHInc150to200K"},"HHAge<25HHInc>200K",{"$f":"\"MOE \"&BR115","v":"MOE HHAge<25HHInc>200K"},"HHAgeHH25to44yrs",{"$f":"\"MOE \"&BT115","v":"MOE HHAgeHH25to44yrs"},"HHAgeHH25To44yrsHHInc<10K",{"$f":"\"MOE \"&BV115","v":"MOE HHAgeHH25To44yrsHHInc<10K"},"HHAgeHH25To44yrsHHInc10to15K",{"$f":"\"MOE \"&BX115","v":"MOE HHAgeHH25To44yrsHHInc10to15K"},"HHAgeHH25To44yrsHHInc15to20K",{"$f":"\"MOE \"&BZ115","v":"MOE HHAgeHH25To44yrsHHInc15to20K"},"HHAgeHH25To44yrsHHInc20to25K",{"$f":"\"MOE \"&CB115","v":"MOE HHAgeHH25To44yrsHHInc20to25K"},"HHAgeHH25To44yrsHHInc25to30K",{"$f":"\"MOE \"&CD115","v":"MOE HHAgeHH25To44yrsHHInc25to30K"},"HHAgeHH25To44yrsHHInc30to35K",{"$f":"\"MOE \"&CF115","v":"MOE HHAgeHH25To44yrsHHInc30to35K"},"HHAgeHH25To44yrsHHInc35to40K",{"$f":"\"MOE \"&CH115","v":"MOE HHAgeHH25To44yrsHHInc35to40K"},"HHAgeHH25To44yrsHHInc40to45K",{"$f":"\"MOE \"&CJ115","v":"MOE HHAgeHH25To44yrsHHInc40to45K"},"HHAgeHH25To44yrsHHInc45to50K",{"$f":"\"MOE \"&CL115","v":"MOE HHAgeHH25To44yrsHHInc45to50K"},"HHAgeHH25To44yrsHHInc50to60K",{"$f":"\"MOE \"&CN115","v":"MOE HHAgeHH25To44yrsHHInc50to60K"},"HHAgeHH25To44yrsHHInc60to75K",{"$f":"\"MOE \"&CP115","v":"MOE HHAgeHH25To44yrsHHInc60to75K"},"HHAgeHH25To44yrsHHInc75to100K",{"$f":"\"MOE \"&CR115","v":"MOE HHAgeHH25To44yrsHHInc75to100K"},"HHAgeHH25To44yrsHHInc100to125K",{"$f":"\"MOE \"&CT115","v":"MOE HHAgeHH25To44yrsHHInc100to125K"},"HHAgeHH25To44yrsHHInc125to150K",{"$f":"\"MOE \"&CV115","v":"MOE HHAgeHH25To44yrsHHInc125to150K"},"HHAgeHH25To44yrsHHInc150to200K",{"$f":"\"MOE \"&CX115","v":"MOE HHAgeHH25To44yrsHHInc150to200K"},"HHAge25To44yrsHHInc>200K",{"$f":"\"MOE \"&CZ115","v":"MOE HHAge25To44yrsHHInc>200K"},"HHAgeHH45To64yrs",{"$f":"\"MOE \"&DB115","v":"MOE HHAgeHH45To64yrs"},"HHAgeHH45To64yrsHHInc<10K",{"$f":"\"MOE \"&DD115","v":"MOE HHAgeHH45To64yrsHHInc<10K"},"HHAgeHH45To64yrsHHInc10to15K",{"$f":"\"MOE \"&DF115","v":"MOE HHAgeHH45To64yrsHHInc10to15K"},"HHAgeHH45To64yrsHHInc15to20K",{"$f":"\"MOE \"&DH115","v":"MOE HHAgeHH45To64yrsHHInc15to20K"},"HHAgeHH45To64yrsHHInc20to25K",{"$f":"\"MOE \"&DJ115","v":"MOE HHAgeHH45To64yrsHHInc20to25K"},"HHAgeHH45To64yrsHHInc25to30K",{"$f":"\"MOE \"&DL115","v":"MOE HHAgeHH45To64yrsHHInc25to30K"},"HHAgeHH45To64yrsHHInc30to35K",{"$f":"\"MOE \"&DN115","v":"MOE HHAgeHH45To64yrsHHInc30to35K"},"HHAgeHH45To64yrsHHInc35to40K",{"$f":"\"MOE \"&DP115","v":"MOE HHAgeHH45To64yrsHHInc35to40K"},"HHAgeHH45To64yrsHHInc40to45K",{"$f":"\"MOE \"&DR115","v":"MOE HHAgeHH45To64yrsHHInc40to45K"},"HHAgeHH45To64yrsHHInc45to50K",{"$f":"\"MOE \"&DT115","v":"MOE HHAgeHH45To64yrsHHInc45to50K"},"HHAgeHH45To64yrsHHInc50to60K",{"$f":"\"MOE \"&DV115","v":"MOE HHAgeHH45To64yrsHHInc50to60K"},"HHAgeHH45To64yrsHHInc60to75K",{"$f":"\"MOE \"&DX115","v":"MOE HHAgeHH45To64yrsHHInc60to75K"},"HHAgeHH45To64yrsHHInc75to100K",{"$f":"\"MOE \"&DZ115","v":"MOE HHAgeHH45To64yrsHHInc75to100K"},"HHAgeHH45To64yrsHHInc100to125K",{"$f":"\"MOE \"&EB115","v":"MOE HHAgeHH45To64yrsHHInc100to125K"},"HHAgeHH45To64yrsHHInc125to150K",{"$f":"\"MOE \"&ED115","v":"MOE HHAgeHH45To64yrsHHInc125to150K"},"HHAgeHH45To64yrsHHInc150to200K",{"$f":"\"MOE \"&EF115","v":"MOE HHAgeHH45To64yrsHHInc150to200K"},"HHAge45To64yrsHHInc>200K",{"$f":"\"MOE \"&EH115","v":"MOE HHAge45To64yrsHHInc>200K"},"HHAgeHH65yrsorOlder",{"$f":"\"MOE \"&EJ115","v":"MOE HHAgeHH65yrsorOlder"},"HHAgeHH65yrsorOlderHHInc<10K",{"$f":"\"MOE \"&EL115","v":"MOE HHAgeHH65yrsorOlderHHInc<10K"},"HHAgeHH65yrsorOlderHHInc10to15K",{"$f":"\"MOE \"&EN115","v":"MOE HHAgeHH65yrsorOlderHHInc10to15K"},"HHAgeHH65yrsorOlderHHInc15to20K",{"$f":"\"MOE \"&EP115","v":"MOE HHAgeHH65yrsorOlderHHInc15to20K"},"HHAgeHH65yrsorOlderHHInc20to25K",{"$f":"\"MOE \"&ER115","v":"MOE HHAgeHH65yrsorOlderHHInc20to25K"},"HHAgeHH65yrsorOlderHHInc25to30K",{"$f":"\"MOE \"&ET115","v":"MOE HHAgeHH65yrsorOlderHHInc25to30K"},"HHAgeHH65yrsorOlderHHInc30to35K",{"$f":"\"MOE \"&EV115","v":"MOE HHAgeHH65yrsorOlderHHInc30to35K"},"HHAgeHH65yrsorOlderHHInc35to40K",{"$f":"\"MOE \"&EX115","v":"MOE HHAgeHH65yrsorOlderHHInc35to40K"},"HHAgeHH65yrsorOlderHHInc40to45K",{"$f":"\"MOE \"&EZ115","v":"MOE HHAgeHH65yrsorOlderHHInc40to45K"},"HHAgeHH65yrsorOlderHHInc45to50K",{"$f":"\"MOE \"&FB115","v":"MOE HHAgeHH65yrsorOlderHHInc45to50K"},"HHAgeHH65yrsorOlderHHInc50to60K",{"$f":"\"MOE \"&FD115","v":"MOE HHAgeHH65yrsorOlderHHInc50to60K"},"HHAgeHH65yrsorOlderHHInc60to75K",{"$f":"\"MOE \"&FF115","v":"MOE HHAgeHH65yrsorOlderHHInc60to75K"},"HHAgeHH65yrsorOlderHHInc75to100K",{"$f":"\"MOE \"&FH115","v":"MOE HHAgeHH65yrsorOlderHHInc75to100K"},"HHAgeHH65yrsorOlderHHInc100to125K",{"$f":"\"MOE \"&FJ115","v":"MOE HHAgeHH65yrsorOlderHHInc100to125K"},"HHAgeHH65yrsorOlderHHInc125to150K",{"$f":"\"MOE \"&FL115","v":"MOE HHAgeHH65yrsorOlderHHInc125to150K"},"HHAgeHH65yrsorOlderHHInc150to200K",{"$f":"\"MOE \"&FN115","v":"MOE HHAgeHH65yrsorOlderHHInc150to200K"},"HHAge65yrsorOlderHHInc>200K",{"$f":"\"MOE \"&FP115","v":"MOE HHAge65yrsorOlderHHInc>200K"},"MedianHHInc",{"$f":"\"MOE \"&FR115","v":"MOE MedianHHInc"},"HH under 25 years",{"$f":"\"MOE \"&FT115","v":"MOE HH under 25 years"},"Householder 25 to 44 years",{"$f":"\"MOE \"&FV115","v":"MOE Householder 25 to 44 years"},"Householder 45 to 64 years",{"$f":"\"MOE \"&FX115","v":"MOE Householder 45 to 64 years"},"Householder 65 years and over",{"$f":"\"MOE \"&FZ115","v":"MOE Householder 65 years and over"}]
[{"$f":"VLOOKUP(DropDownList!$B$27,CntyQryCensus!$A$275:$AG$297,A$1)","v":"Dublin"},635,101,24,17,41,53,3,3,9,8,18,14,7,7,16,19,3,4,19,16,58,27,33,27,109,65,72,29,43,20,72,31,108,40,635,101,3,4,0,12,0,12,0,12,0,12,0,12,0,12,3,4,0,12,0,12,0,12,0,12,0,12,0,12,0,12,0,12,0,12,101,37,3,4,4,5,0,12,3,4,0,12,0,12,0,12,0,12,0,12,18,16,16,23,9,9,25,19,10,8,13,14,0,12,301,79,18,15,0,12,0,12,6,6,15,12,5,6,13,19,0,12,3,4,12,10,6,8,76,66,24,19,12,9,34,22,77,33,230,62,3,4,37,53,3,3,0,12,3,4,2,3,0,12,3,4,16,15,28,20,11,11,24,11,23,14,21,17,25,18,31,21,96463,5718,"-","**",92917,28767,97473,21349,81071,36511,null,null,"Alstead",null,"Estimate","Margin of Error",786,78,null,null,65,50,26,17,41,24,47,29,34,18,38,25,50,28,10,9,52,26,87,33,120,31,78,28,79,33,11,10,25,16,23,20,null,null,null,null,null,null,null,null,null,null,null,null,null,null,"Alstead",null,"Estimate","Margin of Error",786,78,null,null,65,50,26,17,88,37.643060449437421,72,30.805843601498726,112,39.255572852781043,207,45.276925690687087,78,28,90,34.481879299133332,25,16,23,20]
[]
["Number of Households by Income"]
["NAME","HHIncLessThn10k",{"$f":"\"MOE \"&B119","v":"MOE HHIncLessThn10k"},"HHInc10to15K",{"$f":"\"MOE \"&D119","v":"MOE HHInc10to15K"},"HHInc15to25K",{"$f":"\"MOE \"&F119","v":"MOE HHInc15to25K"},"HHInc25to35K",{"$f":"\"MOE \"&H119","v":"MOE HHInc25to35K"},"HHInc35to50K",{"$f":"\"MOE \"&J119","v":"MOE HHInc35to50K"},"HHInc50to75K",{"$f":"\"MOE \"&L119","v":"MOE HHInc50to75K"},"HHInc75to100K",{"$f":"\"MOE \"&N119","v":"MOE HHInc75to100K"},"HHInc100to150K",{"$f":"\"MOE \"&P119","v":"MOE HHInc100to150K"},"HHInc150to200K",{"$f":"\"MOE \"&R119","v":"MOE HHInc150to200K"},"HHIncOver200K",{"$f":"\"MOE \"&T119","v":"MOE HHIncOver200K"}]
[{"$f":"VLOOKUP(DropDownList!$B$27,CntyQryCensus!$A$275:$AG$297,A$1)","v":"Dublin"},24,17,41,53,12,8.5440037453175304,25,15.652475842498529,38,25.159491250818249,91,38.183766184073569,109,65,115,35.227829907617071,72,31,108,40,120,31,78,28,79,33,11,10,25,16,23,20,null,null,null,null,null,null,null,null,null,null,null,null,null,null,null,null,null,null,null,null,null,null,null,null,null,null,null,null,null,null,null,null,null,null,null,null,null,null,null,null,null,null,null,null,null,null,null,null,null,null,null,null,"Alstead",null,"Estimate","Margin of Error",786,78,null,null,65,50,26,17,41,24,47,29,34,18,38,25,50,28,10,9,52,26,87,33,120,31,78,28,79,33,11,10,25,16,23,20,null,null,null,null,null,null,null,null,null,null,null,null,null,null,"Alstead",null,"Estimate","Margin of Error",786,78,null,null,65,50,26,17,88,37.643060449437421,72,30.805843601498726,112,39.255572852781043,207,45.276925690687087,78,28,90,34.481879299133332,25,16,23,20]
[]
[]
["NAME","TotalPop",{"$f":"\"MOE \"&B123","v":"MOE TotalPop"},"Total Individuals living in Poverty",{"$f":"\"MOE \"&D123","v":"MOE Total Individuals living in Poverty"},"Under 5 yrs.",{"$f":"\"MOE \"&F123","v":"MOE Under 5 yrs."},"5 to 17 yrs.",{"$f":"\"MOE \"&H123","v":"MOE 5 to 17 yrs."},"18 to 64 yrs.",{"$f":"\"MOE \"&J123","v":"MOE 18 to 64 yrs."},"65 to 74 yrs.",{"$f":"\"MOE \"&L123","v":"MOE 65 to 74 yrs."},"75 yrs. & Over",{"$f":"\"MOE \"&N123","v":"MOE 75 yrs. & Over"},"Total Individuals  Not living Poverty",{"$f":"\"MOE \"&P123","v":"MOE Total Individuals  Not living Poverty"},"Under 5 yrs.",{"$f":"\"MOE \"&R123","v":"MOE Under 5 yrs."},"5 to 17 yrs.",{"$f":"\"MOE \"&T123","v":"MOE 5 to 17 yrs."},"18 to 64 yrs.",{"$f":"\"MOE \"&V123","v":"MOE 18 to 64 yrs."},"65 to 74 yrs.",{"$f":"\"MOE \"&X123","v":"MOE 65 to 74 yrs."},"75 yrs. & Over",{"$f":"\"MOE \"&Z123","v":"MOE 75 yrs. & Over"},"Total HH",{"$f":"\"MOE \"&AB123","v":"MOE Total HH"},"Total Households Below Poverty",{"$f":"\"MOE \"&AD123","v":"MOE Total Households Below Poverty"},"Family Households in Poverty",{"$f":"\"MOE \"&AF123","v":"MOE Family Households in Poverty"},"Married Couple Fam HH",{"$f":"\"MOE \"&AH123","v":"MOE Married Couple Fam HH"},"Other Family",{"$f":"\"MOE \"&AJ123","v":"MOE Other Family"},"Male Head of Family HH no wife",{"$f":"\"MOE \"&AL123","v":"MOE Male Head of Family HH no wife"},"Female Head of Family HH no husband",{"$f":"\"MOE \"&AN123","v":"MOE Female Head of Family HH no husband"},"Non-Family HH",{"$f":"\"MOE \"&AP123","v":"MOE Non-Family HH"},"Non-Family Male HH",{"$f":"\"MOE \"&AR123","v":"MOE Non-Family Male HH"},"Non-Family Female HH",{"$f":"\"MOE \"&AT123","v":"MOE Non-Family Female HH"},"Total Households at or Above Poverty",{"$f":"\"MOE \"&AV123","v":"MOE Total Households at or Above Poverty"},"Family Households above Poverty",{"$f":"\"MOE \"&AX123","v":"MOE Family Households above Poverty"},"Married Couple Fam HH",{"$f":"\"MOE \"&AZ123","v":"MOE Married Couple Fam HH"},"Other Family",{"$f":"\"MOE \"&BB123","v":"MOE Other Family"},"Male Head of Family HH no wife",{"$f":"\"MOE \"&BD123","v":"MOE Male Head of Family HH no wife"},"Female Head of Family HH no husband",{"$f":"\"MOE \"&BF123","v":"MOE Female Head of Family HH no husband"},"Non-Family HH",{"$f":"\"MOE \"&BH123","v":"MOE Non-Family HH"},"Non-Family Male HH",{"$f":"\"MOE \"&BJ123","v":"MOE Non-Family Male HH"},"Non-Family Female HH",{"$f":"\"MOE \"&BL123","v":"MOE Non-Family Female HH"},"Married Couple with Children Below Poverty",{"$f":"\"MOE \"&BN123","v":"MOE Married Couple with Children Below Poverty"},"Male HH with children below poverty",{"$f":"\"MOE \"&BP123","v":"MOE Male HH with children below poverty"},"Female HH with children below poverty",{"$f":"\"MOE \"&BR123","v":"MOE Female HH with children below poverty"},"Married Couple with Children At or Above Poverty",{"$f":"\"MOE \"&BT123","v":"MOE Married Couple with Children At or Above Poverty"},"Male HH with children at or above poverty",{"$f":"\"MOE \"&BV123","v":"MOE Male HH with children at or above poverty"},"Female HH with children at or above poverty",{"$f":"\"MOE \"&BX123","v":"MOE Female HH with children at or above poverty"}]
[{"$f":"VLOOKUP(DropDownList!$B$27,CntyQryCensus!$A$275:$AG$297,A$1)","v":"Dublin"},19941,379,2320,438,148,108.00462953040486,261,106.52229813517918,1650,324.2637815112875,205,98.600202839547947,56,37.20215047547655,17621,522,519,163.35544068074378,2144,311.22178586981983,11289,740.45256431455482,1865,244.49335369289693,1804,260.44961124946991,9130,425,974,228,264,106,57,53,207,92,26,30,181,92,710,201,406,151,304,125,8156,433,4273,282,3229,335,1044,210,375,149,669,185,3883,471,1773,295,2110,354,28,38,26,30,152,84,910,159,275,145,300,125]
[]
["Household Income By Tenure"]
["NAME","TotalOccHU",{"$f":"\"MOE \"&B127","v":"MOE TotalOccHU"},"OwnOccHU",{"$f":"\"MOE \"&D127","v":"MOE OwnOccHU"},"OOHUInc<5K",{"$f":"\"MOE \"&F127","v":"MOE OOHUInc<5K"},"OOHUInc5to10K",{"$f":"\"MOE \"&H127","v":"MOE OOHUInc5to10K"},"OOHUInc10to15K",{"$f":"\"MOE \"&J127","v":"MOE OOHUInc10to15K"},"OOHUInc15to20K",{"$f":"\"MOE \"&L127","v":"MOE OOHUInc15to20K"},"OOHUInc20to25K",{"$f":"\"MOE \"&N127","v":"MOE OOHUInc20to25K"},"OOHUInc25to35K",{"$f":"\"MOE \"&P127","v":"MOE OOHUInc25to35K"},"OOHUInc35to50K",{"$f":"\"MOE \"&R127","v":"MOE OOHUInc35to50K"},"OOHUInc50to75K",{"$f":"\"MOE \"&T127","v":"MOE OOHUInc50to75K"},"OOHUInc75to100K",{"$f":"\"MOE \"&V127","v":"MOE OOHUInc75to100K"},"OOHUInc100to150K",{"$f":"\"MOE \"&X127","v":"MOE OOHUInc100to150K"},"OOHUInc>150K",{"$f":"\"MOE \"&Z127","v":"MOE OOHUInc>150K"},"RentOccHU",{"$f":"\"MOE \"&AB127","v":"MOE RentOccHU"},"ROHUInc<5K",{"$f":"\"MOE \"&AD127","v":"MOE ROHUInc<5K"},"ROHUInc5to10K",{"$f":"\"MOE \"&AF127","v":"MOE ROHUInc5to10K"},"ROHUInc10to15K",{"$f":"\"MOE \"&AH127","v":"MOE ROHUInc10to15K"},"ROHUInc15to20K",{"$f":"\"MOE \"&AJ127","v":"MOE ROHUInc15to20K"},"ROHUInc20to25K",{"$f":"\"MOE \"&AL127","v":"MOE ROHUInc20to25K"},"ROHUInc25to35K",{"$f":"\"MOE \"&AN127","v":"MOE ROHUInc25to35K"},"ROHUInc35to50K",{"$f":"\"MOE \"&AP127","v":"MOE ROHUInc35to50K"},"ROHUInc50to75K",{"$f":"\"MOE \"&AR127","v":"MOE ROHUInc50to75K"},"ROHUInc75to100K",{"$f":"\"MOE \"&AT127","v":"MOE ROHUInc75to100K"},"ROHUInc100to150K",{"$f":"\"MOE \"&AV127","v":"MOE ROHUInc100to150K"},"ROHUInc>150K",{"$f":"\"MOE \"&AX127","v":"MOE ROHUInc>150K"},"Total OCC HUInc<5K",{"$f":"\"MOE \"&AZ127","v":"MOE Total OCC HUInc<5K"},"Total OCC HUInc5to10K",{"$f":"\"MOE \"&BB127","v":"MOE Total OCC HUInc5to10K"},"Total OCC HUInc10to15K",{"$f":"\"MOE \"&BD127","v":"MOE Total OCC HUInc10to15K"},"Total OCC HUInc15to20K",{"$f":"\"MOE \"&BF127","v":"MOE Total OCC HUInc15to20K"},"Total OCC HUInc20to25K",{"$f":"\"MOE \"&BH127","v":"MOE Total OCC HUInc20to25K"},"Total OCC HUInc25to35K",{"$f":"\"MOE \"&BJ127","v":"MOE Total OCC HUInc25to35K"},"Total OCC HUInc35to50K",{"$f":"\"MOE \"&BL127","v":"MOE Total OCC HUInc35to50K"},"Total OCC HUInc50to75K",{"$f":"\"MOE \"&BN127","v":"MOE Total OCC HUInc50to75K"},"Total OCC HUInc75to100K",{"$f":"\"MOE \"&BP127","v":"MOE Total OCC HUInc75to100K"},"Total OCC HUInc100to150K",{"$f":"\"MOE \"&BR127","v":"MOE Total OCC HUInc100to150K"},"Total OCC HUInc>150K",{"$f":"\"MOE \"&BT127","v":"MOE Total OCC HUInc>150K"},"MedHHInc",{"$f":"\"MOE \"&BV127","v":"MOE MedHHInc"},"MedOwnOccHHInc",{"$f":"\"MOE \"&BX127","v":"MOE MedOwnOccHHInc"},"MedRentOccHHInc",{"$f":"\"MOE \"&BZ127","v":"MOE MedRentOccHHInc"}]
[{"$f":"VLOOKUP(DropDownList!$B$27,CntyQryCensus!$A$275:$AG$297,A$1)","v":"Dublin"},635,101,530,99,12,10,0,12,34,53,3,3,0,12,8,8,26,23,69,28,106,65,92,29,180,47,105,41,12,13,0,12,7,7,0,12,9,8,17,13,12,13,22,24,3,4,23,21,0,12,24,16.401219466856727,0,16.970562748477139,41,53.460265618494638,3,12.369316876852981,9,14.422205101855956,25,15.264337522473747,38,26.419689627245813,91,36.878177829171548,109,65.12296062065974,115,35.805027579936315,180,48.507731342539614,96463,5718,101250,15206,48750,34676,214,60.745370193949761,69,31.016124838541646,100,37.643060449437421,62,33.837848631377263,null,null,null,null,null,null,null,null,null,null,null,null,null,null,null,null,null,null,null,null,null,null,null,null,null,null,null,null,null,null,null,null,null,null,null,null,null,null,null,null,"Alstead",null,"Estimate","Margin of Error",786,78,21,20.615528128088304,44,45.177427992306072,26,17.720045146669349,41,24.758836806279895,47,27.586228448267445,72,30.413812651491099,112,37.589892258425003,207,42.059481689626182,78,28.861739379323623,90,34.985711369071801,48,25.495097567963924,47,30,130,48,14,20,0,11,36,22,11,13,5,8,53,34,0,11,11,10,0,11,0,11,0,11,null,null,null,null,null,null,null,null,null,null,null,null,null,null,null,null,"Alstead",null,"Estimate","Margin of Error",786,78,58,49.406477308142499,26,20.85665361461421,77,33.120990323358392,58,30.495901363953813,77,31.448370387032774,165,50.685303589896748,207,43.474130238568314,89,30.545048698602528,90,36.674241641784491,48,27.766886753829642,47,31.953090617340916]
[]
["Population Data"]
["NAME","Total Population","MOE Total Population","Under 15 Years","MOE Under 15 yrs.","15 to 24 yrs.","MOE 15 to 24 yrs.","25 to 34 yrs.","MOE 25 to 34 yrs.","35 to 44 yrs.","MOE 35 to 44 yrs.","45 to 54 yrs.","MOE 45 to 54 yrs.","55 to 64 yrs.","MOE 55 to 64 yrs.","65 to 74 yrs.","MOE 65 to 74 yrs.","Over 74 yrs. ","MOE Over 74 yrs. ","TotalHH","MOE TotalHH","FamilyHH","MOE FamilyHH","MarriedFamilyHH","MOE MarriedFamilyHH","SingleFamilyHH","MOE SingleFamilyHH","Sfamily-MaleHH","MOE Sfamily-MaleHH","Sfamily-FemaleHH","MOE Sfamily-FemaleHH","NonFamilyHH","MOE NonFamilyHH","NonFamilyHH-LivingAlone","MOE NonFamilyHH-LivingAlone","NonFamilyHH-NotLivingAlone","MOE NonFamilyHH-NotLivingAlone","PopRaceWhite","MOE PopRaceWhite","PopRaceBlack","MOE PopRaceBlack","PopRaceAmerican Indian","MOE PopRaceAmerican Indian","PopRaceAsian &Pacific Is.","MOE PopRaceAsian &Pacific Is.","PopRaceOther*","MOE PopRaceOther*","PopRaceHispanic or Latino:","MOE PopRaceHispanic or Latino:","MedianAgeTotalPop","MOE MedianAgeTotalPop","MedianAgeMale","MOE MedianAgeMale","MedianAgeFemale","MOE MedianAgeFemale","AvgHHSizeTotal","MOE AvgHHSizeTotal","AvgHHSizeFamilyHH","MOE AvgHHSizeFamilyHH","AvgHHSizeNonFamilyHH","MOE AvgHHSizeNonFamilyHH"]
[{"$f":"VLOOKUP(DropDownList!$B$27,CntyQryCensus!$A$275:$AG$297,A$1)","v":"Dublin"},4171,17,847,201.78206064960284,561,195.87240744933933,528,156.35216659835578,533,140.93260800822497,328,111.24297730643494,769,179.0809872655386,370,97.452552557642122,235,73.409808608931812,1579,132,881,89,678,112,203,72,11,19,192,72,698,142,495,128,203,83,4101,53,20,28,8,11,9,18.439088914585774,33,37,0,12,38,4.4000000000000004,42.1,4.5999999999999996,34.200000000000003,5.4,2.5915136162127927,0.22680588781066999,3.4381384790011351,0.47309778015967213,1.5229226361031518,0.52634635219617021,null,null,null,null,null,null,null,null,null,null,null,null,null,31,51,37,93,36,23,16,38,28,17,20,5,7,0,11,39,19,47,22,40,28,76,37,108,41,78,30,49,29,38,21,53,26,39,23,27,18,51,22,20,13,12,10,5,7,null,null,null,null,null,null,null,null,null,null,null,null,null,null,null,null,null,null,null,null,null,null,null,null,null,null,null,null,null,null,null,null,null,null,null,null,null,null,null,null,null,null,null,null,null,null,null,null,null,null,null,null,null,null,null,null,null,null,null,null,null,null,null,null,null,null,null,null,null,null,null,null,null,null,"Dublin",null,"Estimate","Margin of Error",1478,208,337,86.481211832397449,177,49.628620774710235,55,24.06241883103193,209,54.644304369257,285,65.528619701623498,224,52.94336596779619,137,44.317039612320677,54,117.37972567696688]
[]
["Nativity and Prior Place of Residence"]
["NAME","TotalPop",{"$f":"\"MOE \"&B135","v":"MOE TotalPop"},"Native:",{"$f":"\"MOE \"&D135","v":"MOE Native:"},"NatBornInStateOfResidence",{"$f":"\"MOE \"&F135","v":"MOE NatBornInStateOfResidence"},"Born in other state in the United States:",{"$f":"\"MOE \"&H135","v":"MOE Born in other state in the United States:"},"Northeast",{"$f":"\"MOE \"&J135","v":"MOE Northeast"},"Midwest",{"$f":"\"MOE \"&L135","v":"MOE Midwest"},"South",{"$f":"\"MOE \"&N135","v":"MOE South"},"West",{"$f":"\"MOE \"&P135","v":"MOE West"},"Born outside the United States:",{"$f":"\"MOE \"&R135","v":"MOE Born outside the United States:"},"Puerto Rico",{"$f":"\"MOE \"&T135","v":"MOE Puerto Rico"},"U.S. Island Areas",{"$f":"\"MOE \"&V135","v":"MOE U.S. Island Areas"},"Born abroad of American parent(s)",{"$f":"\"MOE \"&X135","v":"MOE Born abroad of American parent(s)"},"Foreign born:",{"$f":"\"MOE \"&Z135","v":"MOE Foreign born:"},"Naturalized U.S. citizen",{"$f":"\"MOE \"&AB135","v":"MOE Naturalized U.S. citizen"},"Not a U.S. citizen",{"$f":"\"MOE \"&AD135","v":"MOE Not a U.S. citizen"},"CurrentResidenceTotal:",{"$f":"\"MOE \"&AF135","v":"MOE CurrentResidenceTotal:"},"SameHouse:",{"$f":"\"MOE \"&AH135","v":"MOE SameHouse:"},"DifferentHouse:",{"$f":"\"MOE \"&AJ135","v":"MOE DifferentHouse:"},"DiffHouseInNH",{"$f":"\"MOE \"&AL135","v":"MOE DiffHouseInNH"},"DiffHouseInNHSameCnty",{"$f":"\"MOE \"&AN135","v":"MOE DiffHouseInNHSameCnty"},"DiffHouseInNHDiffCnty",{"$f":"\"MOE \"&AP135","v":"MOE DiffHouseInNHDiffCnty"},"DiffHouseInDiffState",{"$f":"\"MOE \"&AR135","v":"MOE DiffHouseInDiffState"},"DiffHouseInElsewhere",{"$f":"\"MOE \"&AT135","v":"MOE DiffHouseInElsewhere"}]
[{"$f":"VLOOKUP(DropDownList!$B$27,CntyQryCensus!$A$275:$AG$297,A$1)","v":"Dublin"},4171,17,4116,44,2065,291,2051,291,1822,274,150,99,71,88,8,12,0,12,0,12,0,12,0,12,55,42,55,42,0,12,4122,51,3303,392,819,389.8640788787805,628,354.8647629731642,575,352,53,45,191,161,0,12,76,68,92,120,51,43,0,11]
[]
["School Enrollment - Education"]
["NAME","Total Pop 3 Years and Older","MOE Total Pop 3 Years and Older","SchEnrlPop3yrOver",{"$f":"\"MOE \"&D139","v":"MOE SchEnrlPop3yrOver"},"TotalEnrollNursy&Kinder",{"$f":"\"MOE \"&F139","v":"MOE TotalEnrollNursy&Kinder"},"NurserSchEnrl",{"$f":"\"MOE \"&H139","v":"MOE NurserSchEnrl"},"KinderSchEnrl",{"$f":"\"MOE \"&J139","v":"MOE KinderSchEnrl"},"ElemSchEnrl (1-8)",{"$f":"\"MOE \"&L139","v":"MOE ElemSchEnrl (1-8)"},"HighSchEnrl(9-12)",{"$f":"\"MOE \"&N139","v":"MOE HighSchEnrl(9-12)"},"TotalElementry&HSEnroll",{"$f":"\"MOE \"&P139","v":"MOE TotalElementry&HSEnroll"},"CollGradSchEnrl",{"$f":"\"MOE \"&R139","v":"MOE CollGradSchEnrl"},"PopNotEnrolled","MOE PopNotEnrolled","Pop25yrsOver",{"$f":"\"MOE \"&V139","v":"MOE Pop25yrsOver"},"EduAtain<9grd",{"$f":"\"MOE \"&X139","v":"MOE EduAtain<9grd"},"EduAtainHSnoDip",{"$f":"\"MOE \"&Z139","v":"MOE EduAtainHSnoDip"},"EduAtainHSgrad",{"$f":"\"MOE \"&AB139","v":"MOE EduAtainHSgrad"},"EduAtainCollNoDeg",{"$f":"\"MOE \"&AD139","v":"MOE EduAtainCollNoDeg"},"EduAtainAssocDeg",{"$f":"\"MOE \"&AF139","v":"MOE EduAtainAssocDeg"},"EduAtainBachDeg",{"$f":"\"MOE \"&AH139","v":"MOE EduAtainBachDeg"},"EduAtainGradProfDeg",{"$f":"\"MOE \"&AJ139","v":"MOE EduAtainGradProfDeg"}]
[{"$f":"VLOOKUP(DropDownList!$B$27,CntyQryCensus!$A$275:$AG$297,A$1)","v":"Dublin"},null,null,null,null,null,null,null,null,null,null,null,null,null,null,null,null,null,null,null,null,2763,181,41,43.312815655415427,297,109.65400129498239,1320,228.97379762758882,451,132.40090634130871,217,104.44615837837216,282,87.418533504057365,100,60.959002616512684]
[]
["Occupied Owner Housing Value"]
["NAME","Estimate; Total:","Margin of Error; Total:","Estimate; Total: - Less than $10,000","Margin of Error; Total: - Less than $10,000","Estimate; Total: - $10,000 to $14,999","Margin of Error; Total: - $10,000 to $14,999","Estimate; Total: - $15,000 to $19,999","Margin of Error; Total: - $15,000 to $19,999","Estimate; Total: - $20,000 to $24,999","Margin of Error; Total: - $20,000 to $24,999","Estimate; Total: - $25,000 to $29,999","Margin of Error; Total: - $25,000 to $29,999","Estimate; Total: - $30,000 to $34,999","Margin of Error; Total: - $30,000 to $34,999","Estimate; Total: - $35,000 to $39,999","Margin of Error; Total: - $35,000 to $39,999","Estimate; Total: - $40,000 to $49,999","Margin of Error; Total: - $40,000 to $49,999","Estimate; Total: - $50,000 to $59,999","Margin of Error; Total: - $50,000 to $59,999","Estimate; Total: - $60,000 to $69,999","Margin of Error; Total: - $60,000 to $69,999","Estimate; Total: - $70,000 to $79,999","Margin of Error; Total: - $70,000 to $79,999","Estimate; Total: - $80,000 to $89,999","Margin of Error; Total: - $80,000 to $89,999","Estimate; Total: - $90,000 to $99,999","Margin of Error; Total: - $90,000 to $99,999","Estimate; Total: - $100,000 to $124,999","Margin of Error; Total: - $100,000 to $124,999","Estimate; Total: - $125,000 to $149,999","Margin of Error; Total: - $125,000 to $149,999","Estimate; Total: - $150,000 to $174,999","Margin of Error; Total: - $150,000 to $174,999","Estimate; Total: - $175,000 to $199,999","Margin of Error; Total: - $175,000 to $199,999","Estimate; Total: - $200,000 to $249,999","Margin of Error; Total: - $200,000 to $249,999","Estimate; Total: - $250,000 to $299,999","Margin of Error; Total: - $250,000 to $299,999","Estimate; Total: - $300,000 to $399,999","Margin of Error; Total: - $300,000 to $399,999","Estimate; Total: - $400,000 to $499,999","Margin of Error; Total: - $400,000 to $499,999","Estimate; Total: - $500,000 to $749,999","Margin of Error; Total: - $500,000 to $749,999","Estimate; Total: - $750,000 to $999,999","Margin of Error; Total: - $750,000 to $999,999","Estimate; Total: - $1,000,000 to $1,499,999","Margin of Error; Total: - $1,000,000 to $1,499,999","Estimate; Total: - $1,500,000 to $1,999,999","Margin of Error; Total: - $1,500,000 to $1,999,999","Estimate; Total: - $2,000,000 or more","Margin of Error; Total: - $2,000,000 or more","MedianOwnOCCHomeValue","MOE MedianOwnOCCHomeValue","OnwerOccHsU","MOE OnwerOccHsU","OwnerCosts>20PctHHInc","MOE OwnerCosts>20PctHHInc","OwnerCosts20to29.9PctHHInc","MOE OwnerCosts20to29.9PctHHInc","OwnerCosts<30PctHHInc","MOE OwnerCosts<30PctHHInc","OwnerCosts>30PctHHInc","MOE OwnerCosts>30PctHHInc","OwnerCosts30to34.9PctHHInc","MOE OwnerCosts30to34.9PctHHInc","OwnerCosts<35PctHHInc","MOE OwnerCosts<35PctHHInc","OwnerCosts>35PctHHInc","MOE OwnerCosts>35PctHHInc","OwnerCosts>50PctHHInc","MOE OwnerCosts>50PctHHInc","OwnerCostsPctNotcomputed","MOE OwnerCostsPctNotcomputed","OwnerOHUHhInc<20k","MOE OwnerOHUHhInc<20k","OwnerOHUHhInc<20kHCosts<20pct","MOE OwnerOHUHhInc<20kHCosts<20pct","OwnerOHUHhInc<20kHCosts20to29pct","MOE OwnerOHUHhInc<20kHCosts20to29pct","OwnerOHUHhInc>20kHCosts30pct","MOE OwnerOHUHhInc>20kHCosts30pct","OwnerOHUHhInc20kTo34999","MOE OwnerOHUHhInc20kTo34999","OwnerOHUHhInc20kTo34999HCosts<20pct","MOE OwnerOHUHhInc20kTo34999HCosts<20pct","OwnerOHUHhInc20kTo34999HCosts20to29pct","MOE OwnerOHUHhInc20kTo34999HCosts20to29pct","OwnerOHUHhInc20kTo34999HCosts30pct","MOE OwnerOHUHhInc20kTo34999HCosts30pct","OwnerOHUHhInc35kTo49999","MOE OwnerOHUHhInc35kTo49999","OwnerOHUHhInc35kTo49999HCosts<20pct","MOE OwnerOHUHhInc35kTo49999HCosts<20pct","OwnerOHUHhInc35kTo49999HCosts20to29pct","MOE OwnerOHUHhInc35kTo49999HCosts20to29pct","OwnerOHUHhInc35kTo49999HCosts30pct","MOE OwnerOHUHhInc35kTo49999HCosts30pct","OwnerOHUHhInc50kTo74999","MOE OwnerOHUHhInc50kTo74999","OwnerOHUHhInc50kTo74999HCosts<20pct","MOE OwnerOHUHhInc50kTo74999HCosts<20pct","OwnerOHUHhInc50kTo74999HCosts20to29pct","MOE OwnerOHUHhInc50kTo74999HCosts20to29pct","OwnerOHUHhInc50kTo74999HCosts30pct","MOE OwnerOHUHhInc50kTo74999HCosts30pct","OwnerOHUHhInc>75000","MOE OwnerOHUHhInc>75000","OwnerOHUHhInc>75000HCosts<20pct","MOE OwnerOHUHhInc>75000HCosts<20pct","OwnerOHUHhInc>75000HCosts20to29pct","MOE OwnerOHUHhInc>75000HCosts20to29pct","OwnerOHUHhInc>75000HCosts30pct","MOE OwnerOHUHhInc>75000HCosts30pct","ZeroOrNegativeIncome","MOE ZeroOrNegativeIncome"]
[{"$f":"VLOOKUP(DropDownList!$B$27,CntyQryCensus!$A$275:$AG$297,A$1)","v":"Dublin"},1011,128,8,13,35,35,21,26,11,14,32,34,44,39,0,12,12,17,0,12,0,12,28,24,37,34,35,29,55,44,168,94,85,58,91,52,240,107,58,45,28,24,23,26,0,12,0,12,0,12,0,12,0,12,155700,26376,1218,181,427,121.7251001231874,284,86.948260477136628,711,149.58943812983588,507,130.36103712382777,134,65.069193939989759,845,163.12878348102765,373,112.96016997154351,213,78.924014089502563,0,15.556349186104045,128,65,9,16,0,11,119,61,248,78,8,13,20,24,220,79,194,81,45,32,62,43,87,56,276,91,115,67,106,48,55,39,372,111,250,91,96,53,26,28,0,11,1334,138,1334,138,1334,138,1334,138,1334,138,1334,138,1334,138,1334,138,1334,138,1334,138,1334,138,1334,138,1334,138,1334,138,1334,138,1334,138,1334,138,1334,138,1334,138,1334,138,1334,138,1334,138,1334,138,1334,138,1334,138,1334,138,1334,138,1334,138,1334,138,1334,138,1334,138,1334,138,1334,138,1334,138,1334,138,1334,138,1334,138,1334,138,1334,138,1334,138,1334,138,1334,138,1334,138,1334,138,1334,138,1334,138,1334,138,1334,138,1334,138,1334,138,1334,138,1334,138,1334,138,1334,138,1334,138,1334,138,1334,138,1334,138,1334,138,1334,138,1334,138,1334,138,1334,138,1334,138,1334,138,1334,138,1334,138,1334,138,1334,138,1334,138,1334,138,1334,138,1334,138,1334,138,1334,138,1334,138,1334,138,1334,138,1334,138,1334,138,1334,138,1334,138,1334,138,1334,138,1334,138,1334,138,1334,138,1334,138,1334,138,1334,138,1334,138,1334,138,1334,138,1334,138,1334,138,1334,138,1334,138,1334,138,1334,138,1334,138,1334,138,1334,138,1334,138,1334,138,1334,138,1334,138,1334,138,1334,138,1334,138,1334,138,1334,138,1334,138,1334,138,1334,138,1334,138,1334,138,1334,138,1334,138,1334,138,1334,138,1334,138,1334,138,1334,138,1334,138,1334,138,1334,138,1334,138,1334,138,1334,138,1334,138,1334,138,1334,138,1334,138,1334,138,1334,138,1334,138,1334,138,1334,138,1334,138,1334,138,1334,138,1334,138,1334,138,1334,138,1334,138,1334,138,1334,138,1334,138,1334,138,1334,138,1334,138,1334,138,1334,138,1334,138,1334,138,1334,138,1334,138,1334,138,1334,138,1334,138,1334,138,1334,138,1334,138,1334,138,1334,138,1334,138,1334,138,1334,138,1334,138,1334,138,1334,138,1334,138,1334,138,1334,138,1334,138,1334,138,1334,138,1334,138,1334,138,1334,138,1334,138,1334,138,1334,138,1334,138,1334,138,1334,138,1334,138,1334,138,1334,138,1334,138,1334,138,1334,138,1334,138,1334,138,1334,138,1334,138,1334,138,1334,138,1334,138,1334,138,1334,138,1334,138,1334,138,1334,138,1334,138,1334,138,1334,138,1334,138,1334,138,1334,138,1334,138,1334,138,1334,138,1334,138,1334,138,1334,138,1334,138,1334,138,1334,138,1334,138,1334,138,1334,138,1334,138,1334,138,1334,138,1334,138,1334,138,1334,138,1334,138,1334,138,1334,138,1334,138,1334,138,1334,138,1334,138,1334,138,1334,138,1334,138,1334,138,1334,138,1334,138,1334,138,1334,138,1334,138,1334,138,1334,138,1334,138,1334,138,1334,138,1334,138,1334,138,1334,138,1334,138,1334,138,1334,138,1334,138,1334,138,1334,138,1334,138,1334,138,1334,138,1334,138,1334,138,1334,138,1334,138,1334,138,1334,138,1334,138,1334,138,1334,138,1334,138,1334,138,1334,138,1334,138,1334,138,1334,138,1334,138,1334,138,1334,138,1334,138,1334,138,1334,138,1334,138,1334,138,1334,138,1334,138,1334,138,1334,138,1334,138,1334,138,1334,138,1334,138,1334,138,1334,138,1334,138,1334,138,1334,138,1334,138,1334,138,1334,138,1334,138,1334,138,1334,138,1334,138,1334,138,1334,138,1334,138,1334,138,1334,138,1334,138,1334,138,1334,138,1334,138,1334,138,1334,138,1334,138,1334,138,1334,138,1334,138,1334,138,1334,138,1334,138,1334,138,1334,138,1334,138,1334,138,1334,138,1334,138,1334,138,1334,138,1334,138,1334,138,1334,138,1334,138,1334,138,1334,138,1334,138,1334,138,1334,138,1334,138,1334,138,1334,138,1334,138,1334,138,1334,138,1334,138,1334,138,1334,138,1334,138,1334,138,1334,138,1334,138,1334,138,1334,138,1334,138,1334,138,1334,138,1334,138,1334,138,1334,138,1334,138,1334,138,1334,138,1334,138,1334,138,1334,138,1334,138,1334,138,1334,138,1334,138,1334,138,1334,138,1334,138,1334,138,1334,138,1334,138,1334,138,1334,138,1334,138,1334,138,1334,138,1334,138,1334,138,1334,138,1334,138,1334,138,1334,138,1334,138,1334,138,1334,138,1334,138,1334,138,1334,138,1334,138,1334,138,1334,138,1334,138,1334,138,1334,138,1334,138,1334,138,1334,138,1334,138,1334,138,1334,138,1334,138,1334,138,1334,138,1334,138,1334,138,1334,138,1334,138,1334,138,1334,138,1334,138,1334,138,1334,138,1334,138,1334,138,1334,138,1334,138,1334,138,1334,138,1334,138,1334,138,1334,138,1334,138,1334,138,1334,138,1334,138,1334,138,1334,138,1334,138,1334,138,1334,138,1334,138,1334,138,1334,138,1334,138,1334,138,1334,138,1334,138,1334,138,1334,138,1334,138,1334,138,1334,138,1334,138,1334,138,1334,138,1334,138,1334,138,1334,138,1334,138,1334,138,1334,138,1334,138,1334,138,1334,138,1334,138,1334,138,1334,138,1334,138,1334,138,1334,138,1334,138,1334,138,1334,138,1334,138,1334,138,1334,138,1334,138,1334,138,1334,138,1334,138,1334,138,1334,138,1334,138,1334,138,1334,138,1334,138,1334,138,1334,138,1334,138,1334,138,1334,138,1334,138,1334,138,1334,138,1334,138,1334,138,1334,138,1334,138,1334,138,1334,138,1334,138,1334,138,1334,138,1334,138,1334,138,1334,138,1334,138,1334,138,1334,138,1334,138,1334,138,1334,138,1334,138,1334,138,1334,138,1334,138,1334,138,1334,138,1334,138,1334,138,1334,138,1334,138,1334,138,1334,138,1334,138,1334,138,1334,138,1334,138,1334,138,1334,138,1334,138,1334,138,1334,138,1334,138,1334,138,1334,138,1334,138,1334,138,1334,138,1334,138,1334,138,1334,138,1334,138,1334,138,1334,138,1334,138,1334,138,1334,138,1334,138,1334,138,1334,138,1334,138,1334,138,1334,138,1334,138,1334,138,1334,138,1334,138,1334,138,1334,138,1334,138,1334,138,1334,138,1334,138,1334,138,1334,138,1334,138,1334,138,1334,138,1334,138,1334,138,1334,138,1334,138,1334,138,1334,138,1334,138,1334,138,1334,138,1334,138,1334,138,1334,138,1334,138,1334,138,1334,138,1334,138,1334,138,1334,138,1334,138,1334,138,1334,138,1334,138,1334,138,1334,138,1334,138,1334,138,1334,138,1334,138,1334,138,1334,138,1334,138,1334,138,1334,138,1334,138,1334,138,1334,138,1334,138,1334,138,1334,138,1334,138,1334,138,1334,138,1334,138,1334,138,1334,138,1334,138,1334,138,1334,138,1334,138,1334,138,1334,138,1334,138,1334,138,1334,138,1334,138,1334,138,1334,138,1334,138,1334,138,1334,138,1334,138,1334,138,1334,138,1334,138,1334,138,1334,138,1334,138,1334,138,1334,138,1334,138,1334,138,1334,138,1334,138,1334,138,1334,138,1334,138,1334,138,1334,138,1334,138,1334,138,1334,138,1334,138,1334,138,1334,138,1334,138,1334,138,1334,138,1334,138,1334,138,1334,138,1334,138,1334,138,1334,138,1334,138,1334,138,1334,138,1334,138,1334,138,1334,138,1334,138,1334,138,1334,138,1334,138,1334,138,1334,138,1334,138,1334,138,1334,138,1334,138,1334,138,1334,138,1334,138,1334,138,1334,138,1334,138,1334,138,1334,138,1334,138,1334,138,1334,138,1334,138,1334,138,1334,138,1334,138,1334,138,1334,138,1334,138,1334,138,1334,138,1334,138,1334,138,1334,138,1334,138,1334,138,1334,138,1334,138,1334,138,1334,138,1334,138,1334,138,1334,138,1334,138,1334,138,1334,138,1334,138,1334,138,1334,138,1334,138,1334,138,1334,138,1334,138,1334,138,1334,138,1334,138,1334,138,1334,138,1334,138,1334,138,1334,138,1334,138,1334,138,1334,138,1334,138,1334,138,1334,138,1334,138,1334,138,1334,138,1334,138,1334,138,1334,138,1334,138,1334,138,1334,138,1334,138,1334,138,1334,138,1334,138,1334,138,1334,138,1334,138,1334,138,1334,138,1334,138,1334,138,1334,138,1334,138,1334,138,1334,138,1334,138,1334,138,1334,138,1334,138,1334,138,1334,138,1334,138,1334,138,1334,138,1334,138,1334,138,1334,138,1334,138,1334,138,1334,138,1334,138,1334,138,1334,138,1334,138,1334,138,1334,138,1334,138,1334,138,1334,138,1334,138,1334,138,1334,138,1334,138,1334,138,1334,138,1334,138,1334,138,1334,138,1334,138,1334,138,1334,138,1334,138,1334,138,1334,138,1334,138,1334,138,1334,138,1334,138,1334,138,1334,138,1334,138,1334,138,1334,138,1334,138,1334,138,1334,138,1334,138,1334,138,1334,138,1334,138,1334,138,1334,138,1334,138,1334,138,1334,138,1334,138,1334,138,1334,138,1334,138,1334,138,1334,138,1334,138,1334,138,1334,138,1334,138,1334,138,1334,138,1334,138,1334,138,1334,138,1334,138,1334,138,1334,138,1334,138,1334,138,1334,138,1334,138,1334,138,1334,138,1334,138,1334,138,1334,138,1334,138,1334,138,1334,138,1334,138,1334,138,1334,138,1334,138,1334,138,1334,138,1334,138,1334,138,1334,138,1334,138,1334,138,1334,138,1334,138,1334,138,1334,138,1334,138,1334,138,1334,138,1334,138,1334,138,1334,138,1334,138,1334,138,1334,138,1334,138,1334,138,1334,138,1334,138,1334,138,1334,138,1334,138,1334,138,1334,138,1334,138,1334,138,1334,138,1334,138,1334,138,1334,138,1334,138,1334,138,1334,138,1334,138,1334,138,1334,138,1334,138,1334,138,1334,138,1334,138,1334,138,1334,138,1334,138,1334,138,1334,138,1334,138,1334,138,1334,138,1334,138,1334,138,1334,138,1334,138,1334,138,1334,138,1334,138,1334,138,1334,138,1334,138,1334,138,1334,138,1334,138,1334,138,1334,138,1334,138,1334,138,1334,138,1334,138,1334,138,1334,138,1334,138,1334,138,1334,138,1334,138,1334,138,1334,138,1334,138,1334,138,1334,138,1334,138,1334,138,1334,138,1334,138,1334,138,1334,138,1334,138,1334,138,1334,138,1334,138,1334,138,1334,138,1334,138,1334,138,1334,138,1334,138,1334,138,1334,138,1334,138,1334,138,1334,138,1334,138,1334,138,1334,138,1334,138,1334,138,1334,138,1334,138,1334,138,1334,138,1334,138,1334,138,1334,138,1334,138,1334,138,1334,138,1334,138,1334,138,1334,138,1334,138,1334,138,1334,138,1334,138,1334,138,1334,138,1334,138,1334,138,1334,138,1334,138,1334,138,1334,138,1334,138,1334,138,1334,138,1334,138,1334,138,1334,138,1334,138,1334,138,1334,138,1334,138,1334,138,1334,138,1334,138,1334,138,1334,138,1334,138,1334,138,1334,138,1334,138,1334,138,1334,138,1334,138,1334,138,1334,138,1334,138,1334,138,1334,138,1334,138,1334,138,1334,138,1334,138,1334,138,1334,138,1334,138,1334,138,1334,138,1334,138,1334,138,1334,138,1334,138,1334,138,1334,138,1334,138,1334,138,1334,138,1334,138,1334,138,1334,138,1334,138,1334,138,1334,138,1334,138,1334,138,1334,138,1334,138,1334,138,1334,138,1334,138,1334,138,1334,138,1334,138,1334,138,1334,138,1334,138,1334,138,1334,138,1334,138,1334,138,1334,138,1334,138,1334,138,1334,138,1334,138,1334,138,1334,138,1334,138,1334,138,1334,138,1334,138,1334,138,1334,138,1334,138,1334,138,1334,138,1334,138,1334,138,1334,138,1334,138,1334,138,1334,138,1334,138,1334,138,1334,138,1334,138,1334,138,1334,138,1334,138,1334,138,1334,138,1334,138,1334,138,1334,138,1334,138,1334,138,1334,138,1334,138,1334,138,1334,138,1334,138,1334,138,1334,138,1334,138,1334,138,1334,138,1334,138,1334,138,1334,138,1334,138,1334,138,1334,138,1334,138,1334,138,1334,138,1334,138,1334,138,1334,138,1334,138,1334,138,1334,138,1334,138,1334,138,1334,138,1334,138,1334,138,1334,138,1334,138,1334,138,1334,138,1334,138,1334,138,1334,138,1334,138,1334,138,1334,138,1334,138,1334,138,1334,138,1334,138,1334,138,1334,138,1334,138,1334,138,1334,138,1334,138,1334,138,1334,138,1334,138,1334,138,1334,138,1334,138,1334,138,1334,138,1334,138,1334,138,1334,138,1334,138,1334,138,1334,138,1334,138,1334,138,1334,138,1334,138,1334,138,1334,138,1334,138,1334,138,1334,138,1334,138,1334,138,1334,138,1334,138,1334,138,1334,138,1334,138,1334,138,1334,138,1334,138,1334,138,1334,138,1334,138,1334,138,1334,138,1334,138,1334,138,1334,138,1334,138,1334,138,1334,138,1334,138,1334,138,1334,138,1334,138,1334,138,1334,138,1334,138,1334,138,1334,138,1334,138,1334,138,1334,138,1334,138,1334,138,1334,138,1334,138,1334,138,1334,138,1334,138,1334,138,1334,138,1334,138,1334,138,1334,138,1334,138,1334,138,1334,138,1334,138,1334,138,1334,138,1334,138,1334,138,1334,138,1334,138,1334,138,1334,138,1334,138,1334,138,1334,138,1334,138,1334,138,1334,138,1334,138,1334,138,1334,138,1334,138,1334,138,1334,138,1334,138,1334,138,1334,138,1334,138,1334,138,1334,138,1334,138,1334,138,1334,138,1334,138,1334,138,1334,138,1334,138,1334,138,1334,138,1334,138,1334,138,1334,138,1334,138,1334,138,1334,138,1334,138,1334,138,1334,138,1334,138,1334,138,1334,138,1334,138,1334,138,1334,138,1334,138,1334,138,1334,138,1334,138,1334,138,1334,138,1334,138,1334,138,1334,138,1334,138,1334,138,1334,138,1334,138,1334,138,1334,138,1334,138,1334,138,1334,138,1334,138,1334,138,1334,138,1334,138,1334,138,1334,138,1334,138,1334,138,1334,138,1334,138,1334,138,1334,138,1334,138,1334,138,1334,138,1334,138,1334,138,1334,138,1334,138,1334,138,1334,138,1334,138,1334,138,1334,138,1334,138,1334,138,1334,138,1334,138,1334,138,1334,138,1334,138,1334,138,1334,138,1334,138,1334,138,1334,138,1334,138,1334,138,1334,138,1334,138,1334,138,1334,138,1334,138,1334,138,1334,138,1334,138,1334,138,1334,138,1334,138,1334,138,1334,138,1334,138,1334,138,1334,138,1334,138,1334,138,1334,138,1334,138,1334,138,1334,138,1334,138,1334,138,1334,138,1334,138,1334,138,1334,138,1334,138,1334,138,1334,138,1334,138,1334,138,1334,138,1334,138,1334,138,1334,138,1334,138,1334,138,1334,138,1334,138,1334,138,1334,138,1334,138,1334,138,1334,138,1334,138,1334,138,1334,138,1334,138,1334,138,1334,138,1334,138,1334,138,1334,138,1334,138,1334,138,1334,138,1334,138,1334,138,1334,138,1334,138,1334,138,1334,138,1334,138,1334,138,1334,138,1334,138,1334,138,1334,138,1334,138,1334,138,1334,138,1334,138,1334,138,1334,138,1334,138,1334,138,1334,138,1334,138,1334,138,1334,138,1334,138,1334,138,1334,138,1334,138,1334,138,1334,138,1334,138,1334,138,1334,138,1334,138,1334,138,1334,138,1334,138,1334,138,1334,138,1334,138,1334,138,1334,138,1334,138,1334,138,1334,138,1334,138,1334,138,1334,138,1334,138,1334,138,1334,138,1334,138,1334,138,1334,138,1334,138,1334,138,1334,138,1334,138,1334,138,1334,138,1334,138,1334,138,1334,138,1334,138,1334,138,1334,138,1334,138,1334,138,1334,138,1334,138,1334,138,1334,138,1334,138,1334,138,1334,138,1334,138,1334,138,1334,138,1334,138,1334,138,1334,138,1334,138,1334,138,1334,138,1334,138,1334,138,1334,138,1334,138,1334,138,1334,138,1334,138,1334,138,1334,138,1334,138,1334,138,1334,138,1334,138,1334,138,1334,138,1334,138,1334,138,1334,138,1334,138,1334,138,1334,138,1334,138,1334,138,1334,138,1334,138,1334,138,1334,138,1334,138,1334,138,1334,138,1334,138,1334,138,1334,138,1334,138,1334,138,1334,138,1334,138,1334,138,1334,138,1334,138,1334,138,1334,138,1334,138,1334,138,1334,138,1334,138,1334,138,1334,138,1334,138,1334,138,1334,138,1334,138,1334,138,1334,138,1334,138,1334,138,1334,138,1334,138,1334,138,1334,138,1334,138,1334,138,1334,138,1334,138,1334,138,1334,138,1334,138,1334,138,1334,138,1334,138,1334,138,1334,138,1334,138,1334,138,1334,138,1334,138,1334,138,1334,138,1334,138,1334,138,1334,138,1334,138,1334,138,1334,138,1334,138,1334,138,1334,138,1334,138,1334,138,1334,138,1334,138,1334,138,1334,138,1334,138,1334,138,1334,138,1334,138,1334,138,1334,138,1334,138,1334,138,1334,138,1334,138,1334,138,1334,138,1334,138,1334,138,1334,138,1334,138,1334,138,1334,138,1334,138,1334,138,1334,138,1334,138,1334,138,1334,138,1334,138,1334,138,1334,138,1334,138,1334,138,1334,138,1334,138,1334,138,1334,138,1334,138,1334,138,1334,138,1334,138,1334,138,1334,138,1334,138,1334,138,1334,138,1334,138,1334,138,1334,138,1334,138,1334,138,1334,138,1334,138,1334,138,1334,138,1334,138,1334,138,1334,138,1334,138,1334,138,1334,138,1334,138,1334,138,1334,138,1334,138,1334,138,1334,138,1334,138,1334,138,1334,138,1334,138,1334,138,1334,138,1334,138,1334,138,1334,138,1334,138,1334,138,1334,138,1334,138,1334,138,1334,138,1334,138,1334,138,1334,138,1334,138,1334,138,1334,138,1334,138,1334,138,1334,138,1334,138,1334,138,1334,138,1334,138,1334,138,1334,138,1334,138,1334,138,1334,138,1334,138,1334,138,1334,138,1334,138,1334,138,1334,138,1334,138,1334,138,1334,138,1334,138,1334,138,1334,138,1334,138,1334,138,1334,138,1334,138,1334,138,1334,138,1334,138,1334,138,1334,138,1334,138,1334,138,1334,138,1334,138,1334,138,1334,138,1334,138,1334,138,1334,138,1334,138,1334,138,1334,138,1334,138,1334,138,1334,138,1334,138,1334,138,1334,138,1334,138,1334,138,1334,138,1334,138,1334,138,1334,138,1334,138,1334,138,1334,138,1334,138,1334,138,1334,138,1334,138,1334,138,1334,138,1334,138,1334,138,1334,138,1334,138,1334,138,1334,138,1334,138,1334,138,1334,138,1334,138,1334,138,1334,138,1334,138,1334,138,1334,138,1334,138,1334,138,1334,138,1334,138,1334,138,1334,138,1334,138,1334,138,1334,138,1334,138,1334,138,1334,138,1334,138,1334,138,1334,138,1334,138,1334,138,1334,138,1334,138,1334,138,1334,138,1334,138,1334,138,1334,138,1334,138,1334,138,1334,138,1334,138,1334,138,1334,138,1334,138,1334,138,1334,138,1334,138,1334,138,1334,138,1334,138,1334,138,1334,138,1334,138,1334,138,1334,138,1334,138,1334,138,1334,138,1334,138,1334,138,1334,138,1334,138,1334,138,1334,138,1334,138,1334,138,1334,138,1334,138,1334,138,1334,138,1334,138,1334,138,1334,138,1334,138,1334,138,1334,138,1334,138,1334,138,1334,138,1334,138,1334,138,1334,138,1334,138,1334,138,1334,138,1334,138,1334,138,1334,138,1334,138,1334,138,1334,138,1334,138,1334,138,1334,138,1334,138,1334,138,1334,138,1334,138,1334,138,1334,138,1334,138,1334,138,1334,138,1334,138,1334,138,1334,138,1334,138,1334,138,1334,138,1334,138,1334,138,1334,138,1334,138,1334,138,1334,138,1334,138,1334,138,1334,138,1334,138,1334,138,1334,138,1334,138,1334,138,1334,138,1334,138,1334,138,1334,138,1334,138,1334,138,1334,138,1334,138,1334,138,1334,138,1334,138,1334,138,1334,138,1334,138,1334,138,1334,138,1334,138,1334,138,1334,138,1334,138,1334,138,1334,138,1334,138,1334,138,1334,138,1334,138,1334,138,1334,138,1334,138,1334,138,1334,138,1334,138,1334,138,1334,138,1334,138,1334,138,1334,138,1334,138,1334,138,1334,138,1334,138,1334,138,1334,138,1334,138,1334,138,1334,138,1334,138,1334,138,1334,138,1334,138,1334,138,1334,138,1334,138,1334,138,1334,138,1334,138,1334,138,1334,138,1334,138,1334,138,1334,138,1334,138,1334,138,1334,138,1334,138,1334,138,1334,138,1334,138,1334,138,1334,138,1334,138,1334,138,1334,138,1334,138,1334,138,1334,138,1334,138,1334,138,1334,138,1334,138,1334,138,1334,138,1334,138,1334,138,1334,138,1334,138,1334,138,1334,138,1334,138,1334,138,1334,138,1334,138,1334,138,1334,138,1334,138,1334,138,1334,138,1334,138,1334,138,1334,138,1334,138,1334,138,1334,138,1334,138,1334,138,1334,138,1334,138,1334,138,1334,138,1334,138,1334,138,1334,138,1334,138,1334,138,1334,138,1334,138,1334,138,1334,138,1334,138,1334,138,1334,138,1334,138,1334,138,1334,138,1334,138,1334,138,1334,138,1334,138,1334,138,1334,138,1334,138,1334,138,1334,138,1334,138,1334,138,1334,138,1334,138,1334,138,1334,138,1334,138,1334,138,1334,138,1334,138,1334,138,1334,138,1334,138,1334,138,1334,138,1334,138,1334,138,1334,138,1334,138,1334,138,1334,138,1334,138,1334,138,1334,138,1334,138,1334,138,1334,138,1334,138,1334,138,1334,138,1334,138,1334,138,1334,138,1334,138,1334,138,1334,138,1334,138,1334,138,1334,138,1334,138,1334,138,1334,138,1334,138,1334,138,1334,138,1334,138,1334,138,1334,138,1334,138,1334,138,1334,138,1334,138,1334,138,1334,138,1334,138,1334,138,1334,138,1334,138,1334,138,1334,138,1334,138,1334,138,1334,138,1334,138,1334,138,1334,138,1334,138,1334,138,1334,138,1334,138,1334,138,1334,138,1334,138,1334,138,1334,138,1334,138,1334,138,1334,138,1334,138,1334,138,1334,138,1334,138,1334,138,1334,138,1334,138,1334,138,1334,138,1334,138,1334,138,1334,138,1334,138,1334,138,1334,138,1334,138,1334,138,1334,138,1334,138,1334,138,1334,138,1334,138,1334,138,1334,138,1334,138,1334,138,1334,138,1334,138,1334,138,1334,138,1334,138,1334,138,1334,138,1334,138,1334,138,1334,138,1334,138,1334,138,1334,138,1334,138,1334,138,1334,138,1334,138,1334,138,1334,138,1334,138,1334,138,1334,138,1334,138,1334,138,1334,138,1334,138,1334,138,1334,138,1334,138,1334,138,1334,138,1334,138,1334,138,1334,138,1334,138,1334,138,1334,138,1334,138,1334,138,1334,138,1334,138,1334,138,1334,138,1334,138,1334,138,1334,138,1334,138,1334,138,1334,138,1334,138,1334,138,1334,138,1334,138,1334,138,1334,138,1334,138,1334,138,1334,138,1334,138,1334,138,1334,138,1334,138,1334,138,1334,138,1334,138,1334,138,1334,138,1334,138,1334,138,1334,138,1334,138,1334,138,1334,138,1334,138,1334,138,1334,138,1334,138,1334,138,1334,138,1334,138,1334,138,1334,138,1334,138,1334,138,1334,138,1334,138,1334,138,1334,138,1334,138,1334,138,1334,138,1334,138,1334,138,1334,138,1334,138,1334,138,1334,138,1334,138,1334,138,1334,138,1334,138,1334,138,1334,138,1334,138,1334,138,1334,138,1334,138,1334,138,1334,138,1334,138,1334,138,1334,138,1334,138,1334,138,1334,138,1334,138,1334,138,1334,138,1334,138,1334,138,1334,138,1334,138,1334,138,1334,138,1334,138,1334,138,1334,138,1334,138,1334,138,1334,138,1334,138,1334,138,1334,138,1334,138,1334,138,1334,138,1334,138,1334,138,1334,138,1334,138,1334,138,1334,138,1334,138,1334,138,1334,138,1334,138,1334,138,1334,138,1334,138,1334,138,1334,138,1334,138,1334,138,1334,138,1334,138,1334,138,1334,138,1334,138,1334,138,1334,138,1334,138,1334,138,1334,138,1334,138,1334,138,1334,138,1334,138,1334,138,1334,138,1334,138,1334,138,1334,138,1334,138,1334,138,1334,138,1334,138,1334,138,1334,138,1334,138,1334,138,1334,138,1334,138,1334,138,1334,138,1334,138,1334,138,1334,138,1334,138,1334,138,1334,138,1334,138,1334,138,1334,138,1334,138,1334,138,1334,138,1334,138,1334,138,1334,138,1334,138,1334,138,1334,138,1334,138,1334,138,1334,138,1334,138,1334,138,1334,138,1334,138,1334,138,1334,138,1334,138,1334,138,1334,138,1334,138,1334,138,1334,138,1334,138,1334,138,1334,138,1334,138,1334,138,1334,138,1334,138,1334,138,1334,138,1334,138,1334,138,1334,138,1334,138,1334,138,1334,138,1334,138,1334,138,1334,138,1334,138,1334,138,1334,138,1334,138,1334,138,1334,138,1334,138,1334,138,1334,138,1334,138,1334,138,1334,138,1334,138,1334,138,1334,138,1334,138,1334,138,1334,138,1334,138,1334,138,1334,138,1334,138,1334,138,1334,138,1334,138,1334,138,1334,138,1334,138,1334,138,1334,138,1334,138,1334,138,1334,138,1334,138,1334,138,1334,138,1334,138,1334,138,1334,138,1334,138,1334,138,1334,138,1334,138,1334,138,1334,138,1334,138,1334,138,1334,138,1334,138,1334,138,1334,138,1334,138,1334,138,1334,138,1334,138,1334,138,1334,138,1334,138,1334,138,1334,138,1334,138,1334,138,1334,138,1334,138,1334,138,1334,138,1334,138,1334,138,1334,138,1334,138,1334,138,1334,138,1334,138,1334,138,1334,138,1334,138,1334,138,1334,138,1334,138,1334,138,1334,138,1334,138,1334,138,1334,138,1334,138,1334,138,1334,138,1334,138,1334,138,1334,138,1334,138,1334,138,1334,138,1334,138,1334,138,1334,138,1334,138,1334,138,1334,138,1334,138,1334,138,1334,138,1334,138,1334,138,1334,138,1334,138,1334,138,1334,138,1334,138,1334,138,1334,138,1334,138,1334,138,1334,138,1334,138,1334,138,1334,138,1334,138,1334,138,1334,138,1334,138,1334,138,1334,138,1334,138,1334,138,1334,138,1334,138,1334,138,1334,138,1334,138,1334,138,1334,138,1334,138,1334,138,1334,138,1334,138,1334,138,1334,138,1334,138,1334,138,1334,138,1334,138,1334,138,1334,138,1334,138,1334,138,1334,138,1334,138,1334,138,1334,138,1334,138,1334,138,1334,138,1334,138,1334,138,1334,138,1334,138,1334,138,1334,138,1334,138,1334,138,1334,138,1334,138,1334,138,1334,138,1334,138,1334,138,1334,138,1334,138,1334,138,1334,138,1334,138,1334,138,1334,138,1334,138,1334,138,1334,138,1334,138,1334,138,1334,138,1334,138,1334,138,1334,138,1334,138,1334,138,1334,138,1334,138,1334,138,1334,138,1334,138,1334,138,1334,138,1334,138,1334,138,1334,138,1334,138,1334,138,1334,138,1334,138,1334,138,1334,138,1334,138,1334,138,1334,138,1334,138,1334,138,1334,138,1334,138,1334,138,1334,138,1334,138,1334,138,1334,138,1334,138,1334,138,1334,138,1334,138,1334,138,1334,138,1334,138,1334,138,1334,138,1334,138,1334,138,1334,138,1334,138,1334,138,1334,138,1334,138,1334,138,1334,138,1334,138,1334,138,1334,138,1334,138,1334,138,1334,138,1334,138,1334,138,1334,138,1334,138,1334,138,1334,138,1334,138,1334,138,1334,138,1334,138,1334,138,1334,138,1334,138,1334,138,1334,138,1334,138,1334,138,1334,138,1334,138,1334,138,1334,138,1334,138,1334,138,1334,138,1334,138,1334,138,1334,138,1334,138,1334,138,1334,138,1334,138,1334,138,1334,138,1334,138,1334,138,1334,138,1334,138,1334,138,1334,138,1334,138,1334,138,1334,138,1334,138,1334,138,1334,138,1334,138,1334,138,1334,138,1334,138,1334,138,1334,138,1334,138,1334,138,1334,138,1334,138,1334,138,1334,138,1334,138,1334,138,1334,138,1334,138,1334,138,1334,138,1334,138,1334,138,1334,138,1334,138,1334,138,1334,138,1334,138,1334,138,1334,138,1334,138,1334,138,1334,138,1334,138,1334,138,1334,138,1334,138,1334,138,1334,138,1334,138,1334,138,1334,138,1334,138,1334,138,1334,138,1334,138,1334,138,1334,138,1334,138,1334,138,1334,138,1334,138,1334,138,1334,138,1334,138,1334,138,1334,138,1334,138,1334,138,1334,138,1334,138,1334,138,1334,138,1334,138,1334,138,1334,138,1334,138,1334,138,1334,138,1334,138,1334,138,1334,138,1334,138,1334,138,1334,138,1334,138,1334,138,1334,138,1334,138,1334,138,1334,138,1334,138,1334,138,1334,138,1334,138,1334,138,1334,138,1334,138,1334,138,1334,138,1334,138,1334,138,1334,138,1334,138,1334,138,1334,138,1334,138,1334,138,1334,138,1334,138,1334,138,1334,138,1334,138,1334,138,1334,138,1334,138,1334,138,1334,138,1334,138,1334,138,1334,138,1334,138,1334,138,1334,138,1334,138,1334,138,1334,138,1334,138,1334,138,1334,138,1334,138,1334,138,1334,138,1334,138,1334,138,1334,138,1334,138,1334,138,1334,138,1334,138,1334,138,1334,138,1334,138,1334,138,1334,138,1334,138,1334,138,1334,138,1334,138,1334,138,1334,138,1334,138,1334,138,1334,138,1334,138,1334,138,1334,138,1334,138,1334,138,1334,138,1334,138,1334,138,1334,138,1334,138,1334,138,1334,138,1334,138,1334,138,1334,138,1334,138,1334,138,1334,138,1334,138,1334,138,1334,138,1334,138,1334,138,1334,138,1334,138,1334,138,1334,138,1334,138,1334,138,1334,138,1334,138,1334,138,1334,138,1334,138,1334,138,1334,138,1334,138,1334,138,1334,138,1334,138,1334,138,1334,138,1334,138,1334,138,1334,138,1334,138,1334,138,1334,138,1334,138,1334,138,1334,138,1334,138,1334,138,1334,138,1334,138,1334,138,1334,138,1334,138,1334,138,1334,138,1334,138,1334,138,1334,138,1334,138,1334,138,1334,138,1334,138,1334,138,1334,138,1334,138,1334,138,1334,138,1334,138,1334,138,1334,138,1334,138,1334,138,1334,138,1334,138,1334,138,1334,138,1334,138,1334,138,1334,138,1334,138,1334,138,1334,138,1334,138,1334,138,1334,138,1334,138,1334,138,1334,138,1334,138,1334,138,1334,138,1334,138,1334,138,1334,138,1334,138,1334,138,1334,138,1334,138,1334,138,1334,138,1334,138,1334,138,1334,138,1334,138,1334,138,1334,138,1334,138,1334,138,1334,138,1334,138,1334,138,1334,138,1334,138,1334,138,1334,138,1334,138,1334,138,1334,138,1334,138,1334,138,1334,138,1334,138,1334,138,1334,138,1334,138,1334,138,1334,138,1334,138,1334,138,1334,138,1334,138,1334,138,1334,138,1334,138,1334,138,1334,138,1334,138,1334,138,1334,138,1334,138,1334,138,1334,138,1334,138,1334,138,1334,138,1334,138,1334,138,1334,138,1334,138,1334,138,1334,138,1334,138,1334,138,1334,138,1334,138,1334,138,1334,138,1334,138,1334,138,1334,138,1334,138,1334,138,1334,138,1334,138,1334,138,1334,138,1334,138,1334,138,1334,138,1334,138,1334,138,1334,138,1334,138,1334,138,1334,138,1334,138,1334,138,1334,138,1334,138,1334,138,1334,138,1334,138,1334,138,1334,138,1334,138,1334,138,1334,138,1334,138,1334,138,1334,138,1334,138,1334,138,1334,138,1334,138,1334,138,1334,138,1334,138,1334,138,1334,138,1334,138,1334,138,1334,138,1334,138,1334,138,1334,138,1334,138,1334,138,1334,138,1334,138,1334,138,1334,138,1334,138,1334,138,1334,138,1334,138,1334,138,1334,138,1334,138,1334,138,1334,138,1334,138,1334,138,1334,138,1334,138,1334,138,1334,138,1334,138,1334,138,1334,138,1334,138,1334,138,1334,138,1334,138,1334,138,1334,138,1334,138,1334,138,1334,138,1334,138,1334,138,1334,138,1334,138,1334,138,1334,138,1334,138,1334,138,1334,138,1334,138,1334,138,1334,138,1334,138,1334,138,1334,138,1334,138,1334,138,1334,138,1334,138,1334,138,1334,138,1334,138,1334,138,1334,138,1334,138,1334,138,1334,138,1334,138,1334,138,1334,138,1334,138,1334,138,1334,138,1334,138,1334,138,1334,138,1334,138,1334,138,1334,138,1334,138,1334,138,1334,138,1334,138,1334,138,1334,138,1334,138,1334,138,1334,138,1334,138,1334,138,1334,138,1334,138,1334,138,1334,138,1334,138,1334,138,1334,138,1334,138,1334,138,1334,138,1334,138,1334,138,1334,138,1334,138,1334,138,1334,138,1334,138,1334,138,1334,138,1334,138,1334,138,1334,138,1334,138,1334,138,1334,138,1334,138,1334,138,1334,138,1334,138,1334,138,1334,138,1334,138,1334,138,1334,138,1334,138,1334,138,1334,138,1334,138,1334,138,1334,138,1334,138,1334,138,1334,138,1334,138,1334,138,1334,138,1334,138,1334,138,1334,138,1334,138,1334,138,1334,138,1334,138,1334,138,1334,138,1334,138,1334,138,1334,138,1334,138,1334,138,1334,138,1334,138,1334,138,1334,138,1334,138,1334,138,1334,138,1334,138,1334,138,1334,138,1334,138,1334,138,1334,138,1334,138,1334,138,1334,138,1334,138,1334,138,1334,138,1334,138,1334,138,1334,138,1334,138,1334,138,1334,138,1334,138,1334,138,1334,138,1334,138,1334,138,1334,138,1334,138,1334,138,1334,138,1334,138,1334,138,1334,138,1334,138,1334,138,1334,138,1334,138,1334,138,1334,138,1334,138,1334,138,1334,138,1334,138,1334,138,1334,138,1334,138,1334,138,1334,138,1334,138,1334,138,1334,138,1334,138,1334,138,1334,138,1334,138,1334,138,1334,138,1334,138,1334,138,1334,138,1334,138,1334,138,1334,138,1334,138,1334,138,1334,138,1334,138,1334,138,1334,138,1334,138,1334,138,1334,138,1334,138,1334,138,1334,138,1334,138,1334,138,1334,138,1334,138,1334,138,1334,138,1334,138,1334,138,1334,138,1334,138,1334,138,1334,138,1334,138,1334,138,1334,138,1334,138,1334,138,1334,138,1334,138,1334,138,1334,138,1334,138,1334,138,1334,138,1334,138,1334,138,1334,138,1334,138,1334,138,1334,138,1334,138,1334,138,1334,138,1334,138,1334,138,1334,138,1334,138,1334,138,1334,138,1334,138,1334,138,1334,138,1334,138,1334,138,1334,138,1334,138,1334,138,1334,138,1334,138,1334,138,1334,138,1334,138,1334,138,1334,138,1334,138,1334,138,1334,138,1334,138,1334,138,1334,138,1334,138,1334,138,1334,138,1334,138,1334,138,1334,138,1334,138,1334,138,1334,138,1334,138,1334,138,1334,138,1334,138,1334,138,1334,138,1334,138,1334,138,1334,138,1334,138,1334,138,1334,138,1334,138,1334,138,1334,138,1334,138,1334,138,1334,138,1334,138,1334,138,1334,138,1334,138,1334,138,1334,138,1334,138,1334,138,1334,138,1334,138,1334,138,1334,138,1334,138,1334,138,1334,138,1334,138,1334,138,1334,138,1334,138,1334,138,1334,138,1334,138,1334,138,1334,138,1334,138,1334,138,1334,138,1334,138,1334,138,1334,138,1334,138,1334,138,1334,138,1334,138,1334,138,1334,138,1334,138,1334,138,1334,138,1334,138,1334,138,1334,138,1334,138,1334,138,1334,138,1334,138,1334,138,1334,138,1334,138,1334,138,1334,138,1334,138,1334,138,1334,138,1334,138,1334,138,1334,138,1334,138,1334,138,1334,138,1334,138,1334,138,1334,138,1334,138,1334,138,1334,138,1334,138,1334,138,1334,138,1334,138,1334,138,1334,138,1334,138,1334,138,1334,138,1334,138,1334,138,1334,138,1334,138,1334,138,1334,138,1334,138,1334,138,1334,138,1334,138,1334,138,1334,138,1334,138,1334,138,1334,138,1334,138,1334,138,1334,138,1334,138,1334,138,1334,138,1334,138,1334,138,1334,138,1334,138,1334,138,1334,138,1334,138,1334,138,1334,138,1334,138,1334,138,1334,138,1334,138,1334,138,1334,138,1334,138,1334,138,1334,138,1334,138,1334,138,1334,138,1334,138,1334,138,1334,138,1334,138,1334,138,1334,138,1334,138,1334,138,1334,138,1334,138,1334,138,1334,138,1334,138,1334,138,1334,138,1334,138,1334,138,1334,138,1334,138,1334,138,1334,138,1334,138,1334,138,1334,138,1334,138,1334,138,1334,138,1334,138,1334,138,1334,138,1334,138,1334,138,1334,138,1334,138,1334,138,1334,138,1334,138,1334,138,1334,138,1334,138,1334,138,1334,138,1334,138,1334,138,1334,138,1334,138,1334,138,1334,138,1334,138,1334,138,1334,138,1334,138,1334,138,1334,138,1334,138,1334,138,1334,138,1334,138,1334,138,1334,138,1334,138,1334,138,1334,138,1334,138,1334,138,1334,138,1334,138,1334,138,1334,138,1334,138,1334,138,1334,138,1334,138,1334,138,1334,138,1334,138,1334,138,1334,138,1334,138,1334,138,1334,138,1334,138,1334,138,1334,138,1334,138,1334,138,1334,138,1334,138,1334,138,1334,138,1334,138,1334,138,1334,138,1334,138,1334,138,1334,138,1334,138,1334,138,1334,138,1334,138,1334,138,1334,138,1334,138,1334,138,1334,138,1334,138,1334,138,1334,138,1334,138,1334,138,1334,138,1334,138,1334,138,1334,138,1334,138,1334,138,1334,138,1334,138,1334,138,1334,138,1334,138,1334,138,1334,138,1334,138,1334,138,1334,138,1334,138,1334,138,1334,138,1334,138,1334,138,1334,138,1334,138,1334,138,1334,138,1334,138,1334,138,1334,138,1334,138,1334,138,1334,138,1334,138,1334,138,1334,138,1334,138,1334,138,1334,138,1334,138,1334,138,1334,138,1334,138,1334,138,1334,138,1334,138,1334,138,1334,138,1334,138,1334,138,1334,138,1334,138,1334,138,1334,138,1334,138,1334,138,1334,138,1334,138,1334,138,1334,138,1334,138,1334,138,1334,138,1334,138,1334,138,1334,138,1334,138,1334,138,1334,138,1334,138,1334,138,1334,138,1334,138,1334,138,1334,138,1334,138,1334,138,1334,138,1334,138,1334,138,1334,138,1334,138,1334,138,1334,138,1334,138,1334,138,1334,138,1334,138,1334,138,1334,138,1334,138,1334,138,1334,138,1334,138,1334,138,1334,138,1334,138,1334,138,1334,138,1334,138,1334,138,1334,138,1334,138,1334,138,1334,138,1334,138,1334,138,1334,138,1334,138,1334,138,1334,138,1334,138,1334,138,1334,138,1334,138,1334,138,1334,138,1334,138,1334,138,1334,138,1334,138,1334,138,1334,138,1334,138,1334,138,1334,138,1334,138,1334,138,1334,138,1334,138,1334,138,1334,138,1334,138,1334,138,1334,138,1334,138,1334,138,1334,138,1334,138,1334,138,1334,138,1334,138,1334,138,1334,138,1334,138,1334,138,1334,138,1334,138,1334,138,1334,138,1334,138,1334,138,1334,138,1334,138,1334,138,1334,138,1334,138,1334,138,1334,138,1334,138,1334,138,1334,138,1334,138,1334,138,1334,138,1334,138,1334,138,1334,138,1334,138,1334,138,1334,138,1334,138,1334,138,1334,138,1334,138,1334,138,1334,138,1334,138,1334,138,1334,138,1334,138,1334,138,1334,138,1334,138,1334,138,1334,138,1334,138,1334,138,1334,138,1334,138,1334,138,1334,138,1334,138,1334,138,1334,138,1334,138,1334,138,1334,138,1334,138,1334,138,1334,138,1334,138,1334,138,1334,138,1334,138,1334,138,1334,138,1334,138,1334,138,1334,138,1334,138,1334,138,1334,138,1334,138,1334,138,1334,138,1334,138,1334,138,1334,138,1334,138,1334,138,1334,138,1334,138,1334,138,1334,138,1334,138,1334,138,1334,138,1334,138,1334,138,1334,138,1334,138,1334,138,1334,138,1334,138,1334,138,1334,138,1334,138,1334,138,1334,138,1334,138,1334,138,1334,138,1334,138,1334,138,1334,138,1334,138,1334,138,1334,138,1334,138,1334,138,1334,138,1334,138,1334,138,1334,138,1334,138,1334,138,1334,138,1334,138,1334,138,1334,138,1334,138,1334,138,1334,138,1334,138,1334,138,1334,138,1334,138,1334,138,1334,138,1334,138,1334,138,1334,138,1334,138,1334,138,1334,138,1334,138,1334,138,1334,138,1334,138,1334,138,1334,138,1334,138,1334,138,1334,138,1334,138,1334,138,1334,138,1334,138,1334,138,1334,138,1334,138,1334,138,1334,138,1334,138,1334,138,1334,138,1334,138,1334,138,1334,138,1334,138,1334,138,1334,138,1334,138,1334,138,1334,138,1334,138,1334,138,1334,138,1334,138,1334,138,1334,138,1334,138,1334,138,1334,138,1334,138,1334,138,1334,138,1334,138,1334,138,1334,138,1334,138,1334,138,1334,138,1334,138,1334,138,1334,138,1334,138,1334,138,1334,138,1334,138,1334,138,1334,138,1334,138,1334,138,1334,138,1334,138,1334,138,1334,138,1334,138,1334,138,1334,138,1334,138,1334,138,1334,138,1334,138,1334,138,1334,138,1334,138,1334,138,1334,138,1334,138,1334,138,1334,138,1334,138,1334,138,1334,138,1334,138,1334,138,1334,138,1334,138,1334,138,1334,138,1334,138,1334,138,1334,138,1334,138,1334,138,1334,138,1334,138,1334,138,1334,138,1334,138,1334,138,1334,138,1334,138,1334,138,1334,138,1334,138,1334,138,1334,138,1334,138,1334,138,1334,138,1334,138,1334,138,1334,138,1334,138,1334,138,1334,138,1334,138,1334,138,1334,138,1334,138,1334,138,1334,138,1334,138,1334,138,1334,138,1334,138,1334,138,1334,138,1334,138,1334,138,1334,138,1334,138,1334,138,1334,138,1334,138,1334,138,1334,138,1334,138,1334,138,1334,138,1334,138,1334,138,1334,138,1334,138,1334,138,1334,138,1334,138,1334,138,1334,138,1334,138,1334,138,1334,138,1334,138,1334,138,1334,138,1334,138,1334,138,1334,138,1334,138,1334,138,1334,138,1334,138,1334,138,1334,138,1334,138,1334,138,1334,138,1334,138,1334,138,1334,138,1334,138,1334,138,1334,138,1334,138,1334,138,1334,138,1334,138,1334,138,1334,138,1334,138,1334,138,1334,138,1334,138,1334,138,1334,138,1334,138,1334,138,1334,138,1334,138,1334,138,1334,138,1334,138,1334,138,1334,138,1334,138,1334,138,1334,138,1334,138,1334,138,1334,138,1334,138,1334,138,1334,138,1334,138,1334,138,1334,138,1334,138,1334,138,1334,138,1334,138,1334,138,1334,138,1334,138,1334,138,1334,138,1334,138,1334,138,1334,138,1334,138,1334,138,1334,138,1334,138,1334,138,1334,138,1334,138,1334,138,1334,138,1334,138,1334,138,1334,138,1334,138,1334,138,1334,138,1334,138,1334,138,1334,138,1334,138,1334,138,1334,138,1334,138,1334,138,1334,138,1334,138,1334,138,1334,138,1334,138,1334,138,1334,138,1334,138,1334,138,1334,138,1334,138,1334,138,1334,138,1334,138,1334,138,1334,138,1334,138,1334,138,1334,138,1334,138,1334,138,1334,138,1334,138,1334,138,1334,138,1334,138,1334,138,1334,138,1334,138,1334,138,1334,138,1334,138,1334,138,1334,138,1334,138,1334,138,1334,138,1334,138,1334,138,1334,138,1334,138,1334,138,1334,138,1334,138,1334,138,1334,138,1334,138,1334,138,1334,138,1334,138,1334,138,1334,138,1334,138,1334,138,1334,138,1334,138,1334,138,1334,138,1334,138,1334,138,1334,138,1334,138,1334,138,1334,138,1334,138,1334,138,1334,138,1334,138,1334,138,1334,138,1334,138,1334,138,1334,138,1334,138,1334,138,1334,138,1334,138,1334,138,1334,138,1334,138,1334,138,1334,138,1334,138,1334,138,1334,138,1334,138,1334,138,1334,138,1334,138,1334,138,1334,138,1334,138,1334,138,1334,138,1334,138,1334,138,1334,138,1334,138,1334,138,1334,138,1334,138,1334,138,1334,138,1334,138,1334,138,1334,138,1334,138,1334,138,1334,138,1334,138,1334,138,1334,138,1334,138,1334,138,1334,138,1334,138,1334,138,1334,138,1334,138,1334,138,1334,138,1334,138,1334,138,1334,138,1334,138,1334,138,1334,138,1334,138,1334,138,1334,138,1334,138,1334,138,1334,138,1334,138,1334,138,1334,138,1334,138,1334,138,1334,138,1334,138,1334,138,1334,138,1334,138,1334,138,1334,138,1334,138,1334,138,1334,138,1334,138,1334,138,1334,138,1334,138,1334,138,1334,138,1334,138,1334,138,1334,138,1334,138,1334,138,1334,138,1334,138,1334,138,1334,138,1334,138,1334,138,1334,138,1334,138,1334,138,1334,138,1334,138,1334,138,1334,138,1334,138,1334,138,1334,138,1334,138,1334,138,1334,138,1334,138,1334,138,1334,138,1334,138,1334,138,1334,138,1334,138,1334,138,1334,138,1334,138,1334,138,1334,138,1334,138,1334,138,1334,138,1334,138,1334,138,1334,138,1334,138,1334,138,1334,138,1334,138,1334,138,1334,138,1334,138,1334,138,1334,138,1334,138,1334,138,1334,138,1334,138,1334,138,1334,138,1334,138,1334,138,1334,138,1334,138,1334,138,1334,138,1334,138,1334,138,1334,138,1334,138,1334,138,1334,138,1334,138,1334,138,1334,138,1334,138,1334,138,1334,138,1334,138,1334,138,1334,138,1334,138,1334,138,1334,138,1334,138,1334,138,1334,138,1334,138,1334,138,1334,138,1334,138,1334,138,1334,138,1334,138,1334,138,1334,138,1334,138,1334,138,1334,138,1334,138,1334,138,1334,138,1334,138,1334,138,1334,138,1334,138,1334,138,1334,138,1334,138,1334,138,1334,138,1334,138,1334,138,1334,138,1334,138,1334,138,1334,138,1334,138,1334,138,1334,138,1334,138,1334,138,1334,138,1334,138,1334,138,1334,138,1334,138,1334,138,1334,138,1334,138,1334,138,1334,138,1334,138,1334,138,1334,138,1334,138,1334,138,1334,138,1334,138,1334,138,1334,138,1334,138,1334,138,1334,138,1334,138,1334,138,1334,138,1334,138,1334,138,1334,138,1334,138,1334,138,1334,138,1334,138,1334,138,1334,138,1334,138,1334,138,1334,138,1334,138,1334,138,1334,138,1334,138,1334,138,1334,138,1334,138,1334,138,1334,138,1334,138,1334,138,1334,138,1334,138,1334,138,1334,138,1334,138,1334,138,1334,138,1334,138,1334,138,1334,138,1334,138,1334,138,1334,138,1334,138,1334,138,1334,138,1334,138,1334,138,1334,138,1334,138,1334,138,1334,138,1334,138,1334,138,1334,138,1334,138,1334,138,1334,138,1334,138,1334,138,1334,138,1334,138,1334,138,1334,138,1334,138,1334,138,1334,138,1334,138,1334,138,1334,138,1334,138,1334,138,1334,138,1334,138,1334,138,1334,138,1334,138,1334,138,1334,138,1334,138,1334,138,1334,138,1334,138,1334,138,1334,138,1334,138,1334,138,1334,138,1334,138,1334,138,1334,138,1334,138,1334,138,1334,138,1334,138,1334,138,1334,138,1334,138,1334,138,1334,138,1334,138,1334,138,1334,138,1334,138,1334,138,1334,138,1334,138,1334,138,1334,138,1334,138,1334,138,1334,138,1334,138,1334,138,1334,138,1334,138,1334,138,1334,138,1334,138,1334,138,1334,138,1334,138,1334,138,1334,138,1334,138,1334,138,1334,138,1334,138,1334,138,1334,138,1334,138,1334,138,1334,138,1334,138,1334,138,1334,138,1334,138,1334,138,1334,138,1334,138,1334,138,1334,138,1334,138,1334,138,1334,138,1334,138,1334,138,1334,138,1334,138,1334,138,1334,138,1334,138,1334,138,1334,138,1334,138,1334,138,1334,138,1334,138,1334,138,1334,138,1334,138,1334,138,1334,138,1334,138,1334,138,1334,138,1334,138,1334,138,1334,138,1334,138,1334,138,1334,138,1334,138,1334,138,1334,138,1334,138,1334,138,1334,138,1334,138,1334,138,1334,138,1334,138,1334,138,1334,138,1334,138,1334,138,1334,138,1334,138,1334,138,1334,138,1334,138,1334,138,1334,138,1334,138,1334,138,1334,138,1334,138,1334,138,1334,138,1334,138,1334,138,1334,138,1334,138,1334,138,1334,138,1334,138,1334,138,1334,138,1334,138,1334,138,1334,138,1334,138,1334,138,1334,138,1334,138,1334,138,1334,138,1334,138,1334,138,1334,138,1334,138,1334,138,1334,138,1334,138,1334,138,1334,138,1334,138,1334,138,1334,138,1334,138,1334,138,1334,138,1334,138,1334,138,1334,138,1334,138,1334,138,1334,138,1334,138,1334,138,1334,138,1334,138,1334,138,1334,138,1334,138,1334,138,1334,138,1334,138,1334,138,1334,138,1334,138,1334,138,1334,138,1334,138,1334,138,1334,138,1334,138,1334,138,1334,138,1334,138,1334,138,1334,138,1334,138,1334,138,1334,138,1334,138,1334,138,1334,138,1334,138,1334,138,1334,138,1334,138,1334,138,1334,138,1334,138,1334,138,1334,138,1334,138,1334,138,1334,138,1334,138,1334,138,1334,138,1334,138,1334,138,1334,138,1334,138,1334,138,1334,138,1334,138,1334,138,1334,138,1334,138,1334,138,1334,138,1334,138,1334,138,1334,138,1334,138,1334,138,1334,138,1334,138,1334,138,1334,138,1334,138,1334,138,1334,138,1334,138,1334,138,1334,138,1334,138,1334,138,1334,138,1334,138,1334,138,1334,138,1334,138,1334,138,1334,138,1334,138,1334,138,1334,138,1334,138,1334,138,1334,138,1334,138,1334,138,1334,138,1334,138,1334,138,1334,138,1334,138,1334,138,1334,138,1334,138,1334,138,1334,138,1334,138,1334,138,1334,138,1334,138,1334,138,1334,138,1334,138,1334,138,1334,138,1334,138,1334,138,1334,138,1334,138,1334,138,1334,138,1334,138,1334,138,1334,138,1334,138,1334,138,1334,138,1334,138,1334,138,1334,138,1334,138,1334,138,1334,138,1334,138,1334,138,1334,138,1334,138,1334,138,1334,138,1334,138,1334,138,1334,138,1334,138,1334,138,1334,138,1334,138,1334,138,1334,138,1334,138,1334,138,1334,138,1334,138,1334,138,1334,138,1334,138,1334,138,1334,138,1334,138,1334,138,1334,138,1334,138,1334,138,1334,138,1334,138,1334,138,1334,138,1334,138,1334,138,1334,138,1334,138,1334,138,1334,138,1334,138,1334,138,1334,138,1334,138,1334,138,1334,138,1334,138,1334,138,1334,138,1334,138,1334,138,1334,138,1334,138,1334,138,1334,138,1334,138,1334,138,1334,138,1334,138,1334,138,1334,138,1334,138,1334,138,1334,138,1334,138,1334,138,1334,138,1334,138,1334,138,1334,138,1334,138,1334,138,1334,138,1334,138,1334,138,1334,138,1334,138,1334,138,1334,138,1334,138,1334,138,1334,138,1334,138,1334,138,1334,138,1334,138,1334,138,1334,138,1334,138,1334,138,1334,138,1334,138,1334,138,1334,138,1334,138,1334,138,1334,138,1334,138,1334,138,1334,138,1334,138,1334,138,1334,138,1334,138,1334,138,1334,138,1334,138,1334,138,1334,138,1334,138,1334,138,1334,138,1334,138,1334,138,1334,138,1334,138,1334,138,1334,138,1334,138,1334,138,1334,138,1334,138,1334,138,1334,138,1334,138,1334,138,1334,138,1334,138,1334,138,1334,138,1334,138,1334,138,1334,138,1334,138,1334,138,1334,138,1334,138,1334,138,1334,138,1334,138,1334,138,1334,138,1334,138,1334,138,1334,138,1334,138,1334,138,1334,138,1334,138,1334,138,1334,138,1334,138,1334,138,1334,138,1334,138,1334,138,1334,138,1334,138,1334,138,1334,138,1334,138,1334,138,1334,138,1334,138,1334,138,1334,138,1334,138,1334,138,1334,138,1334,138,1334,138,1334,138,1334,138,1334,138,1334,138,1334,138,1334,138,1334,138,1334,138,1334,138,1334,138,1334,138,1334,138,1334,138,1334,138,1334,138,1334,138,1334,138,1334,138,1334,138,1334,138,1334,138,1334,138,1334,138,1334,138,1334,138,1334,138,1334,138,1334,138,1334,138,1334,138,1334,138,1334,138,1334,138,1334,138,1334,138,1334,138,1334,138,1334,138,1334,138,1334,138,1334,138,1334,138,1334,138,1334,138,1334,138,1334,138,1334,138,1334,138,1334,138,1334,138,1334,138,1334,138,1334,138,1334,138,1334,138,1334,138,1334,138,1334,138,1334,138,1334,138,1334,138,1334,138,1334,138,1334,138,1334,138,1334,138,1334,138,1334,138,1334,138,1334,138,1334,138,1334,138,1334,138,1334,138,1334,138,1334,138,1334,138,1334,138,1334,138,1334,138,1334,138,1334,138,1334,138,1334,138,1334,138,1334,138,1334,138,1334,138,1334,138,1334,138,1334,138,1334,138,1334,138,1334,138,1334,138,1334,138,1334,138,1334,138,1334,138,1334,138,1334,138,1334,138,1334,138,1334,138,1334,138,1334,138,1334,138,1334,138,1334,138,1334,138,1334,138,1334,138,1334,138,1334,138,1334,138,1334,138,1334,138,1334,138,1334,138,1334,138,1334,138,1334,138,1334,138,1334,138,1334,138,1334,138,1334,138,1334,138,1334,138,1334,138,1334,138,1334,138,1334,138,1334,138,1334,138,1334,138,1334,138,1334,138,1334,138,1334,138,1334,138,1334,138,1334,138,1334,138,1334,138,1334,138,1334,138,1334,138,1334,138,1334,138,1334,138,1334,138,1334,138,1334,138,1334,138,1334,138,1334,138,1334,138,1334,138,1334,138,1334,138,1334,138,1334,138,1334,138,1334,138,1334,138,1334,138,1334,138,1334,138,1334,138,1334,138,1334,138,1334,138,1334,138,1334,138,1334,138,1334,138,1334,138,1334,138,1334,138,1334,138,1334,138,1334,138,1334,138,1334,138,1334,138,1334,138,1334,138,1334,138,1334,138,1334,138,1334,138,1334,138,1334,138,1334,138,1334,138,1334,138,1334,138,1334,138,1334,138,1334,138,1334,138,1334,138,1334,138,1334,138,1334,138,1334,138,1334,138,1334,138,1334,138,1334,138,1334,138,1334,138,1334,138,1334,138,1334,138,1334,138,1334,138,1334,138,1334,138,1334,138,1334,138,1334,138,1334,138,1334,138,1334,138,1334,138,1334,138,1334,138,1334,138,1334,138,1334,138,1334,138,1334,138,1334,138,1334,138,1334,138,1334,138,1334,138,1334,138,1334,138,1334,138,1334,138,1334,138,1334,138,1334,138,1334,138,1334,138,1334,138,1334,138,1334,138,1334,138,1334,138,1334,138,1334,138,1334,138,1334,138,1334,138,1334,138,1334,138,1334,138,1334,138,1334,138,1334,138,1334,138,1334,138,1334,138,1334,138,1334,138,1334,138,1334,138,1334,138,1334,138,1334,138,1334,138,1334,138,1334,138,1334,138,1334,138,1334,138,1334,138,1334,138,1334,138,1334,138,1334,138,1334,138,1334,138,1334,138,1334,138,1334,138,1334,138,1334,138,1334,138,1334,138,1334,138,1334,138,1334,138,1334,138,1334,138,1334,138,1334,138,1334,138,1334,138,1334,138,1334,138,1334,138,1334,138,1334,138,1334,138,1334,138,1334,138,1334,138,1334,138,1334,138,1334,138,1334,138,1334,138,1334,138,1334,138,1334,138,1334,138,1334,138,1334,138,1334,138,1334,138,1334,138,1334,138,1334,138,1334,138,1334,138,1334,138,1334,138,1334,138,1334,138,1334,138,1334,138,1334,138,1334,138,1334,138,1334,138,1334,138,1334,138,1334,138,1334,138,1334,138,1334,138,1334,138,1334,138,1334,138,1334,138,1334,138,1334,138,1334,138,1334,138,1334,138,1334,138,1334,138,1334,138,1334,138,1334,138,1334,138,1334,138,1334,138,1334,138,1334,138,1334,138,1334,138,1334,138,1334,138,1334,138,1334,138,1334,138,1334,138,1334,138,1334,138,1334,138,1334,138,1334,138,1334,138,1334,138,1334,138,1334,138,1334,138,1334,138,1334,138,1334,138,1334,138,1334,138,1334,138,1334,138,1334,138,1334,138,1334,138,1334,138,1334,138,1334,138,1334,138,1334,138,1334,138,1334,138,1334,138,1334,138,1334,138,1334,138,1334,138,1334,138,1334,138,1334,138,1334,138,1334,138,1334,138,1334,138,1334,138,1334,138,1334,138,1334,138,1334,138,1334,138,1334,138,1334,138,1334,138,1334,138,1334,138,1334,138,1334,138,1334,138,1334,138,1334,138,1334,138,1334,138,1334,138,1334,138,1334,138,1334,138,1334,138,1334,138,1334,138,1334,138,1334,138,1334,138,1334,138,1334,138,1334,138,1334,138,1334,138,1334,138,1334,138,1334,138,1334,138,1334,138,1334,138,1334,138,1334,138,1334,138,1334,138,1334,138,1334,138,1334,138,1334,138,1334,138,1334,138,1334,138,1334,138,1334,138,1334,138,1334,138,1334,138,1334,138,1334,138,1334,138,1334,138,1334,138,1334,138,1334,138,1334,138,1334,138,1334,138,1334,138,1334,138,1334,138,1334,138,1334,138,1334,138,1334,138,1334,138,1334,138,1334,138,1334,138,1334,138,1334,138,1334,138,1334,138,1334,138,1334,138,1334,138,1334,138,1334,138,1334,138,1334,138,1334,138,1334,138,1334,138,1334,138,1334,138,1334,138,1334,138,1334,138,1334,138,1334,138,1334,138,1334,138,1334,138,1334,138,1334,138,1334,138,1334,138,1334,138,1334,138,1334,138,1334,138,1334,138,1334,138,1334,138,1334,138,1334,138,1334,138,1334,138,1334,138,1334,138,1334,138,1334,138,1334,138,1334,138,1334,138,1334,138,1334,138,1334,138,1334,138,1334,138,1334,138,1334,138,1334,138,1334,138,1334,138,1334,138,1334,138,1334,138,1334,138,1334,138,1334,138,1334,138,1334,138,1334,138,1334,138,1334,138,1334,138,1334,138,1334,138,1334,138,1334,138,1334,138,1334,138,1334,138,1334,138,1334,138,1334,138,1334,138,1334,138,1334,138,1334,138,1334,138,1334,138,1334,138,1334,138,1334,138,1334,138,1334,138,1334,138,1334,138,1334,138,1334,138,1334,138,1334,138,1334,138,1334,138,1334,138,1334,138,1334,138,1334,138,1334,138,1334,138,1334,138,1334,138,1334,138,1334,138,1334,138,1334,138,1334,138,1334,138,1334,138,1334,138,1334,138,1334,138,1334,138,1334,138,1334,138,1334,138,1334,138,1334,138,1334,138,1334,138,1334,138,1334,138,1334,138,1334,138,1334,138,1334,138,1334,138,1334,138,1334,138,1334,138,1334,138,1334,138,1334,138,1334,138,1334,138,1334,138,1334,138,1334,138,1334,138,1334,138,1334,138,1334,138,1334,138,1334,138,1334,138,1334,138,1334,138,1334,138,1334,138,1334,138,1334,138,1334,138,1334,138,1334,138,1334,138,1334,138,1334,138,1334,138,1334,138,1334,138,1334,138,1334,138,1334,138,1334,138,1334,138,1334,138,1334,138,1334,138,1334,138,1334,138,1334,138,1334,138,1334,138,1334,138,1334,138,1334,138,1334,138,1334,138,1334,138,1334,138,1334,138,1334,138,1334,138,1334,138,1334,138,1334,138,1334,138,1334,138,1334,138,1334,138,1334,138,1334,138,1334,138,1334,138,1334,138,1334,138,1334,138,1334,138,1334,138,1334,138,1334,138,1334,138,1334,138,1334,138,1334,138,1334,138,1334,138,1334,138,1334,138,1334,138,1334,138,1334,138,1334,138,1334,138,1334,138,1334,138,1334,138,1334,138,1334,138,1334,138,1334,138,1334,138,1334,138,1334,138,1334,138,1334,138,1334,138,1334,138,1334,138,1334,138,1334,138,1334,138,1334,138,1334,138,1334,138,1334,138,1334,138,1334,138,1334,138,1334,138,1334,138,1334,138,1334,138,1334,138,1334,138,1334,138,1334,138,1334,138,1334,138,1334,138,1334,138,1334,138,1334,138,1334,138,1334,138,1334,138,1334,138,1334,138,1334,138,1334,138,1334,138,1334,138,1334,138,1334,138,1334,138,1334,138,1334,138,1334,138,1334,138,1334,138,1334,138,1334,138,1334,138,1334,138,1334,138,1334,138,1334,138,1334,138,1334,138,1334,138,1334,138,1334,138,1334,138,1334,138,1334,138,1334,138,1334,138,1334,138,1334,138,1334,138,1334,138,1334,138,1334,138,1334,138,1334,138,1334,138,1334,138,1334,138,1334,138,1334,138,1334,138,1334,138,1334,138,1334,138,1334,138,1334,138,1334,138,1334,138,1334,138,1334,138,1334,138,1334,138,1334,138,1334,138,1334,138,1334,138,1334,138,1334,138,1334,138,1334,138,1334,138,1334,138,1334,138,1334,138,1334,138,1334,138,1334,138,1334,138,1334,138,1334,138,1334,138,1334,138,1334,138,1334,138,1334,138,1334,138,1334,138,1334,138,1334,138,1334,138,1334,138,1334,138,1334,138,1334,138,1334,138,1334,138,1334,138,1334,138,1334,138,1334,138,1334,138,1334,138,1334,138,1334,138,1334,138,1334,138,1334,138,1334,138,1334,138,1334,138,1334,138,1334,138,1334,138,1334,138,1334,138,1334,138,1334,138,1334,138,1334,138,1334,138,1334,138,1334,138,1334,138,1334,138,1334,138,1334,138,1334,138,1334,138,1334,138,1334,138,1334,138,1334,138,1334,138,1334,138,1334,138,1334,138,1334,138,1334,138,1334,138,1334,138,1334,138,1334,138,1334,138,1334,138,1334,138,1334,138,1334,138,1334,138,1334,138,1334,138,1334,138,1334,138,1334,138,1334,138,1334,138,1334,138,1334,138,1334,138,1334,138,1334,138,1334,138,1334,138,1334,138,1334,138,1334,138,1334,138,1334,138,1334,138,1334,138,1334,138,1334,138,1334,138,1334,138,1334,138,1334,138,1334,138,1334,138,1334,138,1334,138,1334,138,1334,138,1334,138,1334,138,1334,138,1334,138,1334,138,1334,138,1334,138,1334,138,1334,138,1334,138,1334,138,1334,138,1334,138,1334,138,1334,138,1334,138,1334,138,1334,138,1334,138,1334,138,1334,138,1334,138,1334,138,1334,138,1334,138,1334,138,1334,138,1334,138,1334,138,1334,138,1334,138,1334,138,1334,138,1334,138,1334,138,1334,138,1334,138,1334,138,1334,138,1334,138,1334,138,1334,138,1334,138,1334,138,1334,138,1334,138,1334,138,1334,138,1334,138,1334,138,1334,138,1334,138,1334,138,1334,138,1334,138,1334,138,1334,138,1334,138,1334,138,1334,138,1334,138,1334,138,1334,138,1334,138,1334,138,1334,138,1334,138,1334,138,1334,138,1334,138,1334,138,1334,138,1334,138,1334,138,1334,138,1334,138,1334,138,1334,138,1334,138,1334,138,1334,138,1334,138,1334,138,1334,138,1334,138,1334,138,1334,138,1334,138,1334,138,1334,138,1334,138,1334,138,1334,138,1334,138,1334,138,1334,138,1334,138,1334,138,1334,138,1334,138,1334,138,1334,138,1334,138,1334,138,1334,138,1334,138,1334,138,1334,138,1334,138,1334,138,1334,138,1334,138,1334,138,1334,138,1334,138,1334,138,1334,138,1334,138,1334,138,1334,138,1334,138,1334,138,1334,138,1334,138,1334,138,1334,138,1334,138,1334,138,1334,138,1334,138,1334,138,1334,138,1334,138,1334,138,1334,138,1334,138,1334,138,1334,138,1334,138,1334,138,1334,138,1334,138,1334,138,1334,138,1334,138,1334,138,1334,138,1334,138,1334,138,1334,138,1334,138,1334,138,1334,138,1334,138,1334,138,1334,138,1334,138,1334,138,1334,138,1334,138,1334,138,1334,138,1334,138,1334,138,1334,138,1334,138,1334,138,1334,138,1334,138,1334,138,1334,138,1334,138,1334,138,1334,138,1334,138,1334,138,1334,138,1334,138,1334,138,1334,138,1334,138,1334,138,1334,138,1334,138,1334,138,1334,138,1334,138,1334,138,1334,138,1334,138,1334,138,1334,138,1334,138,1334,138,1334,138,1334,138,1334,138,1334,138,1334,138,1334,138,1334,138,1334,138,1334,138,1334,138,1334,138,1334,138,1334,138,1334,138,1334,138,1334,138,1334,138,1334,138,1334,138,1334,138,1334,138,1334,138,1334,138,1334,138,1334,138,1334,138,1334,138,1334,138,1334,138,1334,138,1334,138,1334,138,1334,138,1334,138,1334,138,1334,138,1334,138,1334,138,1334,138,1334,138,1334,138,1334,138,1334,138,1334,138,1334,138,1334,138,1334,138,1334,138,1334,138,1334,138,1334,138,1334,138,1334,138,1334,138,1334,138,1334,138,1334,138,1334,138,1334,138,1334,138,1334,138,1334,138,1334,138,1334,138,1334,138,1334,138,1334,138,1334,138,1334,138,1334,138,1334,138,1334,138,1334,138,1334,138,1334,138,1334,138,1334,138,1334,138,1334,138,1334,138,1334,138,1334,138,1334,138,1334,138,1334,138,1334,138,1334,138,1334,138,1334,138,1334,138,1334,138,1334,138,1334,138,1334,138,1334,138,1334,138,1334,138,1334,138,1334,138,1334,138,1334,138,1334,138,1334,138,1334,138,1334,138,1334,138,1334,138,1334,138,1334,138,1334,138,1334,138,1334,138,1334,138,1334,138,1334,138,1334,138,1334,138,1334,138,1334,138,1334,138,1334,138,1334,138,1334,138,1334,138,1334,138,1334,138,1334,138,1334,138,1334,138,1334,138,1334,138,1334,138,1334,138,1334,138,1334,138,1334,138,1334,138,1334,138,1334,138,1334,138,1334,138,1334,138,1334,138,1334,138,1334,138,1334,138,1334,138,1334,138,1334,138,1334,138,1334,138,1334,138,1334,138,1334,138,1334,138,1334,138,1334,138,1334,138,1334,138,1334,138,1334,138,1334,138,1334,138,1334,138,1334,138,1334,138,1334,138,1334,138,1334,138,1334,138,1334,138,1334,138,1334,138,1334,138,1334,138,1334,138,1334,138,1334,138,1334,138,1334,138,1334,138,1334,138,1334,138,1334,138,1334,138,1334,138,1334,138,1334,138,1334,138,1334,138,1334,138,1334,138,1334,138,1334,138,1334,138,1334,138,1334,138,1334,138,1334,138,1334,138,1334,138,1334,138,1334,138,1334,138,1334,138,1334,138,1334,138,1334,138,1334,138,1334,138,1334,138,1334,138,1334,138,1334,138,1334,138,1334,138,1334,138,1334,138,1334,138,1334,138,1334,138,1334,138,1334,138,1334,138,1334,138,1334,138,1334,138,1334,138,1334,138,1334,138,1334,138,1334,138,1334,138,1334,138,1334,138,1334,138,1334,138,1334,138,1334,138,1334,138,1334,138,1334,138,1334,138,1334,138,1334,138,1334,138,1334,138,1334,138,1334,138,1334,138,1334,138,1334,138,1334,138,1334,138,1334,138,1334,138,1334,138,1334,138,1334,138,1334,138,1334,138,1334,138,1334,138,1334,138,1334,138,1334,138,1334,138,1334,138,1334,138,1334,138,1334,138,1334,138,1334,138,1334,138,1334,138,1334,138,1334,138,1334,138,1334,138,1334,138,1334,138,1334,138,1334,138,1334,138,1334,138,1334,138,1334,138,1334,138,1334,138,1334,138,1334,138,1334,138,1334,138,1334,138,1334,138,1334,138,1334,138,1334,138,1334,138,1334,138,1334,138,1334,138,1334,138,1334,138,1334,138,1334,138,1334,138,1334,138,1334,138,1334,138,1334,138,1334,138,1334,138,1334,138,1334,138,1334,138,1334,138,1334,138,1334,138,1334,138,1334,138,1334,138,1334,138,1334,138,1334,138,1334,138,1334,138,1334,138,1334,138,1334,138,1334,138,1334,138,1334,138,1334,138,1334,138,1334,138,1334,138,1334,138,1334,138,1334,138,1334,138,1334,138,1334,138,1334,138,1334,138,1334,138,1334,138,1334,138,1334,138,1334,138,1334,138,1334,138,1334,138,1334,138,1334,138,1334,138,1334,138,1334,138,1334,138,1334,138,1334,138,1334,138,1334,138,1334,138,1334,138,1334,138,1334,138,1334,138,1334,138,1334,138,1334,138,1334,138,1334,138,1334,138,1334,138,1334,138,1334,138,1334,138,1334,138,1334,138,1334,138,1334,138,1334,138,1334,138,1334,138,1334,138,1334,138,1334,138,1334,138,1334,138,1334,138,1334,138,1334,138,1334,138,1334,138,1334,138,1334,138,1334,138,1334,138,1334,138,1334,138,1334,138,1334,138,1334,138,1334,138,1334,138,1334,138,1334,138,1334,138,1334,138,1334,138,1334,138,1334,138,1334,138,1334,138,1334,138,1334,138,1334,138,1334,138,1334,138,1334,138,1334,138,1334,138,1334,138,1334,138,1334,138,1334,138,1334,138,1334,138,1334,138,1334,138,1334,138,1334,138,1334,138,1334,138,1334,138,1334,138,1334,138,1334,138,1334,138,1334,138,1334,138,1334,138,1334,138,1334,138,1334,138,1334,138,1334,138,1334,138,1334,138,1334,138,1334,138,1334,138,1334,138,1334,138,1334,138,1334,138,1334,138,1334,138,1334,138,1334,138,1334,138,1334,138,1334,138,1334,138,1334,138,1334,138,1334,138,1334,138,1334,138,1334,138,1334,138,1334,138,1334,138,1334,138,1334,138,1334,138,1334,138,1334,138,1334,138,1334,138,1334,138,1334,138,1334,138,1334,138,1334,138,1334,138,1334,138,1334,138,1334,138,1334,138,1334,138,1334,138,1334,138,1334,138,1334,138,1334,138,1334,138,1334,138,1334,138,1334,138,1334,138,1334,138,1334,138,1334,138,1334,138,1334,138,1334,138,1334,138,1334,138,1334,138,1334,138,1334,138,1334,138,1334,138,1334,138,1334,138,1334,138,1334,138,1334,138,1334,138,1334,138,1334,138,1334,138,1334,138,1334,138,1334,138,1334,138,1334,138,1334,138,1334,138,1334,138,1334,138,1334,138,1334,138,1334,138,1334,138,1334,138,1334,138,1334,138,1334,138,1334,138,1334,138,1334,138,1334,138,1334,138,1334,138,1334,138,1334,138,1334,138,1334,138,1334,138,1334,138,1334,138,1334,138,1334,138,1334,138,1334,138,1334,138,1334,138,1334,138,1334,138,1334,138,1334,138,1334,138,1334,138,1334,138,1334,138,1334,138,1334,138,1334,138,1334,138,1334,138,1334,138,1334,138,1334,138,1334,138,1334,138,1334,138,1334,138,1334,138,1334,138,1334,138,1334,138,1334,138,1334,138,1334,138,1334,138,1334,138,1334,138,1334,138,1334,138,1334,138,1334,138,1334,138,1334,138,1334,138,1334,138,1334,138,1334,138,1334,138,1334,138,1334,138,1334,138,1334,138,1334,138,1334,138,1334,138,1334,138,1334,138,1334,138,1334,138,1334,138,1334,138,1334,138,1334,138,1334,138,1334,138,1334,138,1334,138,1334,138,1334,138,1334,138,1334,138,1334,138,1334,138,1334,138,1334,138,1334,138,1334,138,1334,138,1334,138,1334,138,1334,138,1334,138,1334,138,1334,138,1334,138,1334,138,1334,138,1334,138,1334,138,1334,138,1334,138,1334,138,1334,138,1334,138,1334,138,1334,138,1334,138,1334,138,1334,138,1334,138,1334,138,1334,138,1334,138,1334,138,1334,138,1334,138,1334,138,1334,138,1334,138,1334,138,1334,138,1334,138,1334,138,1334,138,1334,138,1334,138,1334,138,1334,138,1334,138,1334,138,1334,138,1334,138,1334,138,1334,138,1334,138,1334,138,1334,138,1334,138,1334,138,1334,138,1334,138,1334,138,1334,138,1334,138,1334,138,1334,138,1334,138,1334,138,1334,138,1334,138,1334,138,1334,138,1334,138,1334,138,1334,138,1334,138,1334,138,1334,138,1334,138,1334,138,1334,138,1334,138,1334,138,1334,138,1334,138,1334,138,1334,138,1334,138,1334,138,1334,138,1334,138,1334,138,1334,138,1334,138,1334,138,1334,138,1334,138,1334,138,1334,138,1334,138,1334,138,1334,138,1334,138,1334,138,1334,138,1334,138,1334,138,1334,138,1334,138,1334,138,1334,138,1334,138,1334,138,1334,138,1334,138,1334,138,1334,138,1334,138,1334,138,1334,138,1334,138,1334,138,1334,138,1334,138,1334,138,1334,138,1334,138,1334,138,1334,138,1334,138,1334,138,1334,138,1334,138,1334,138,1334,138,1334,138,1334,138,1334,138,1334,138,1334,138,1334,138,1334,138,1334,138,1334,138,1334,138,1334,138,1334,138,1334,138,1334,138,1334,138,1334,138,1334,138,1334,138,1334,138,1334,138,1334,138,1334,138,1334,138,1334,138,1334,138,1334,138,1334,138,1334,138,1334,138,1334,138,1334,138,1334,138,1334,138,1334,138,1334,138,1334,138,1334,138,1334,138,1334,138,1334,138,1334,138,1334,138,1334,138,1334,138,1334,138,1334,138,1334,138,1334,138,1334,138,1334,138,1334,138,1334,138,1334,138,1334,138,1334,138,1334,138,1334,138,1334,138,1334,138,1334,138,1334,138,1334,138,1334,138,1334,138,1334,138,1334,138,1334,138,1334,138,1334,138,1334,138,1334,138,1334,138,1334,138,1334,138,1334,138,1334,138,1334,138,1334,138,1334,138,1334,138,1334,138,1334,138,1334,138,1334,138,1334,138,1334,138,1334,138,1334,138,1334,138,1334,138,1334,138,1334,138,1334,138,1334,138,1334,138,1334,138,1334,138,1334,138,1334,138,1334,138,1334,138,1334,138,1334,138,1334,138,1334,138,1334,138,1334,138,1334,138,1334,138,1334,138,1334,138,1334,138,1334,138,1334,138,1334,138,1334,138,1334,138,1334,138,1334,138,1334,138,1334,138,1334,138,1334,138,1334,138,1334,138,1334,138,1334,138,1334,138,1334,138,1334,138,1334,138,1334,138,1334,138,1334,138,1334,138,1334,138,1334,138,1334,138,1334,138,1334,138,1334,138,1334,138,1334,138,1334,138,1334,138,1334,138,1334,138,1334,138,1334,138,1334,138,1334,138,1334,138,1334,138,1334,138,1334,138,1334,138,1334,138,1334,138,1334,138,1334,138,1334,138,1334,138,1334,138,1334,138,1334,138,1334,138,1334,138,1334,138,1334,138,1334,138,1334,138,1334,138,1334,138,1334,138,1334,138,1334,138,1334,138,1334,138,1334,138,1334,138,1334,138,1334,138,1334,138,1334,138,1334,138,1334,138,1334,138,1334,138,1334,138,1334,138,1334,138,1334,138,1334,138,1334,138,1334,138,1334,138,1334,138,1334,138,1334,138,1334,138,1334,138,1334,138,1334,138,1334,138,1334,138,1334,138,1334,138,1334,138,1334,138,1334,138,1334,138,1334,138,1334,138,1334,138,1334,138,1334,138,1334,138,1334,138,1334,138,1334,138,1334,138,1334,138,1334,138,1334,138,1334,138,1334,138,1334,138,1334,138,1334,138,1334,138,1334,138,1334,138,1334,138,1334,138,1334,138,1334,138,1334,138,1334,138,1334,138,1334,138,1334,138,1334,138,1334,138,1334,138,1334,138,1334,138,1334,138,1334,138,1334,138,1334,138,1334,138,1334,138,1334,138,1334,138,1334,138,1334,138,1334,138,1334,138,1334,138,1334,138,1334,138,1334,138,1334,138,1334,138,1334,138,1334,138,1334,138,1334,138,1334,138,1334,138,1334,138,1334,138,1334,138,1334,138,1334,138,1334,138,1334,138,1334,138,1334,138,1334,138,1334,138,1334,138,1334,138,1334,138,1334,138,1334,138,1334,138,1334,138,1334,138,1334,138,1334,138,1334,138,1334,138,1334,138,1334,138,1334,138,1334,138,1334,138,1334,138,1334,138,1334,138,1334,138,1334,138,1334,138,1334,138,1334,138,1334,138,1334,138,1334,138,1334,138,1334,138,1334,138,1334,138,1334,138,1334,138,1334,138,1334,138,1334,138,1334,138,1334,138,1334,138,1334,138,1334,138,1334,138,1334,138,1334,138,1334,138,1334,138,1334,138,1334,138,1334,138,1334,138,1334,138,1334,138,1334,138,1334,138,1334,138,1334,138,1334,138,1334,138,1334,138,1334,138,1334,138,1334,138,1334,138,1334,138,1334,138,1334,138,1334,138,1334,138,1334,138,1334,138,1334,138,1334,138,1334,138,1334,138,1334,138,1334,138,1334,138,1334,138,1334,138,1334,138,1334,138,1334,138,1334,138,1334,138,1334,138,1334,138,1334,138,1334,138,1334,138,1334,138,1334,138,1334,138,1334,138,1334,138,1334,138,1334,138,1334,138,1334,138,1334,138,1334,138,1334,138,1334,138,1334,138,1334,138,1334,138,1334,138,1334,138,1334,138,1334,138,1334,138,1334,138,1334,138,1334,138,1334,138,1334,138,1334,138,1334,138,1334,138,1334,138,1334,138,1334,138,1334,138,1334,138,1334,138,1334,138,1334,138,1334,138,1334,138,1334,138,1334,138,1334,138,1334,138,1334,138,1334,138,1334,138,1334,138,1334,138,1334,138,1334,138,1334,138,1334,138,1334,138,1334,138,1334,138,1334,138,1334,138,1334,138,1334,138,1334,138,1334,138,1334,138,1334,138,1334,138,1334,138,1334,138,1334,138,1334,138,1334,138,1334,138,1334,138,1334,138,1334,138,1334,138,1334,138,1334,138,1334,138,1334,138,1334,138,1334,138,1334,138,1334,138,1334,138,1334,138,1334,138,1334,138,1334,138,1334,138,1334,138,1334,138,1334,138,1334,138,1334,138,1334,138,1334,138,1334,138,1334,138,1334,138,1334,138,1334,138,1334,138,1334,138,1334,138,1334,138,1334,138,1334,138,1334,138,1334,138,1334,138,1334,138,1334,138,1334,138,1334,138,1334,138,1334,138,1334,138,1334,138,1334,138,1334,138,1334,138,1334,138,1334,138,1334,138,1334,138,1334,138,1334,138,1334,138,1334,138,1334,138,1334,138,1334,138,1334,138,1334,138,1334,138,1334,138,1334,138,1334,138,1334,138,1334,138,1334,138,1334,138,1334,138,1334,138,1334,138,1334,138,1334,138,1334,138,1334,138,1334,138,1334,138,1334,138,1334,138,1334,138,1334,138,1334,138,1334,138,1334,138,1334,138,1334,138,1334,138,1334,138,1334,138,1334,138,1334,138,1334,138,1334,138,1334,138,1334,138,1334,138,1334,138,1334,138,1334,138,1334,138,1334,138,1334,138,1334,138,1334,138,1334,138,1334,138,1334,138,1334,138,1334,138,1334,138,1334,138,1334,138,1334,138,1334,138,1334,138,1334,138,1334,138,1334,138,1334,138,1334,138,1334,138,1334,138,1334,138,1334,138,1334,138,1334,138,1334,138,1334,138,1334,138,1334,138,1334,138,1334,138,1334,138,1334,138,1334,138,1334,138,1334,138,1334,138,1334,138,1334,138,1334,138,1334,138,1334,138,1334,138,1334,138,1334,138,1334,138,1334,138,1334,138,1334,138,1334,138,1334,138,1334,138,1334,138,1334,138,1334,138,1334,138,1334,138,1334,138,1334,138,1334,138,1334,138,1334,138,1334,138,1334,138,1334,138,1334,138,1334,138,1334,138,1334,138,1334,138,1334,138,1334,138,1334,138,1334,138,1334,138,1334,138,1334,138,1334,138,1334,138,1334,138,1334,138,1334,138,1334,138,1334,138,1334,138,1334,138,1334,138,1334,138,1334,138,1334,138,1334,138,1334,138,1334,138,1334,138,1334,138,1334,138,1334,138,1334,138,1334,138,1334,138,1334,138,1334,138,1334,138,1334,138,1334,138,1334,138,1334,138,1334,138,1334,138,1334,138,1334,138,1334,138,1334,138,1334,138,1334,138,1334,138,1334,138,1334,138,1334,138,1334,138,1334,138,1334,138,1334,138,1334,138,1334,138,1334,138,1334,138,1334,138,1334,138,1334,138,1334,138,1334,138,1334,138,1334,138,1334,138,1334,138,1334,138,1334,138,1334,138,1334,138,1334,138,1334,138,1334,138,1334,138,1334,138,1334,138,1334,138,1334,138,1334,138,1334,138,1334,138,1334,138,1334,138,1334,138,1334,138,1334,138,1334,138,1334,138,1334,138,1334,138,1334,138,1334,138,1334,138,1334,138,1334,138,1334,138,1334,138,1334,138,1334,138,1334,138,1334,138,1334,138,1334,138,1334,138,1334,138,1334,138,1334,138,1334,138,1334,138,1334,138,1334,138,1334,138,1334,138,1334,138,1334,138,1334,138,1334,138,1334,138,1334,138,1334,138,1334,138,1334,138,1334,138,1334,138,1334,138,1334,138,1334,138,1334,138,1334,138,1334,138,1334,138,1334,138,1334,138,1334,138,1334,138,1334,138,1334,138,1334,138,1334,138,1334,138,1334,138,1334,138,1334,138,1334,138,1334,138,1334,138,1334,138,1334,138,1334,138,1334,138,1334,138,1334,138,1334,138,1334,138,1334,138,1334,138,1334,138,1334,138,1334,138,1334,138,1334,138,1334,138,1334,138,1334,138,1334,138,1334,138,1334,138,1334,138,1334,138,1334,138,1334,138,1334,138,1334,138,1334,138,1334,138,1334,138,1334,138,1334,138,1334,138,1334,138,1334,138,1334,138,1334,138,1334,138,1334,138,1334,138,1334,138,1334,138,1334,138,1334,138,1334,138,1334,138,1334,138,1334,138,1334,138,1334,138,1334,138,1334,138,1334,138,1334,138,1334,138,1334,138,1334,138,1334,138,1334,138,1334,138,1334,138,1334,138,1334,138,1334,138,1334,138,1334,138,1334,138,1334,138,1334,138,1334,138,1334,138,1334,138,1334,138,1334,138,1334,138,1334,138,1334,138,1334,138,1334,138,1334,138,1334,138,1334,138,1334,138,1334,138,1334,138,1334,138,1334,138,1334,138,1334,138,1334,138,1334,138,1334,138,1334,138,1334,138,1334,138,1334,138,1334,138,1334,138,1334,138,1334,138,1334,138,1334,138,1334,138,1334,138,1334,138,1334,138,1334,138,1334,138,1334,138,1334,138,1334,138,1334,138,1334,138,1334,138,1334,138,1334,138,1334,138,1334,138,1334,138,1334,138,1334,138,1334,138,1334,138,1334,138,1334,138,1334,138,1334,138,1334,138,1334,138,1334,138,1334,138,1334,138,1334,138,1334,138,1334,138,1334,138,1334,138,1334,138,1334,138,1334,138,1334,138,1334,138,1334,138,1334,138,1334,138,1334,138,1334,138,1334,138,1334,138,1334,138,1334,138,1334,138,1334,138,1334,138,1334,138,1334,138,1334,138,1334,138,1334,138,1334,138,1334,138,1334,138,1334,138,1334,138,1334,138,1334,138,1334,138,1334,138,1334,138,1334,138,1334,138,1334,138,1334,138,1334,138,1334,138,1334,138,1334,138,1334,138,1334,138,1334,138,1334,138,1334,138,1334,138,1334,138,1334,138,1334,138,1334,138,1334,138,1334,138,1334,138,1334,138,1334,138,1334,138,1334,138,1334,138,1334,138,1334,138,1334,138,1334,138,1334,138,1334,138,1334,138,1334,138,1334,138,1334,138,1334,138,1334,138,1334,138,1334,138,1334,138,1334,138,1334,138,1334,138,1334,138,1334,138,1334,138,1334,138,1334,138,1334,138,1334,138,1334,138,1334,138,1334,138,1334,138,1334,138,1334,138,1334,138,1334,138,1334,138,1334,138,1334,138,1334,138,1334,138,1334,138,1334,138,1334,138,1334,138,1334,138,1334,138,1334,138,1334,138,1334,138,1334,138,1334,138,1334,138,1334,138,1334,138,1334,138,1334,138,1334,138,1334,138,1334,138,1334,138,1334,138,1334,138,1334,138,1334,138,1334,138,1334,138,1334,138,1334,138,1334,138,1334,138,1334,138,1334,138,1334,138,1334,138,1334,138,1334,138,1334,138,1334,138,1334,138,1334,138,1334,138,1334,138,1334,138,1334,138,1334,138,1334,138,1334,138,1334,138,1334,138,1334,138,1334,138,1334,138,1334,138,1334,138,1334,138,1334,138,1334,138,1334,138,1334,138,1334,138,1334,138,1334,138,1334,138,1334,138,1334,138,1334,138,1334,138,1334,138,1334,138,1334,138,1334,138,1334,138,1334,138,1334,138,1334,138,1334,138,1334,138,1334,138,1334,138,1334,138,1334,138,1334,138,1334,138,1334,138,1334,138,1334,138,1334,138,1334,138,1334,138,1334,138,1334,138,1334,138,1334,138,1334,138,1334,138,1334,138,1334,138,1334,138,1334,138,1334,138,1334,138,1334,138,1334,138,1334,138,1334,138,1334,138,1334,138,1334,138,1334,138,1334,138,1334,138,1334,138,1334,138,1334,138,1334,138,1334,138,1334,138,1334,138,1334,138,1334,138,1334,138,1334,138,1334,138,1334,138,1334,138,1334,138,1334,138,1334,138,1334,138,1334,138,1334,138,1334,138,1334,138,1334,138,1334,138,1334,138,1334,138,1334,138,1334,138,1334,138,1334,138,1334,138,1334,138,1334,138,1334,138,1334,138,1334,138,1334,138,1334,138,1334,138,1334,138,1334,138,1334,138,1334,138,1334,138,1334,138,1334,138,1334,138,1334,138,1334,138,1334,138,1334,138,1334,138,1334,138,1334,138,1334,138,1334,138,1334,138,1334,138,1334,138,1334,138,1334,138,1334,138,1334,138,1334,138,1334,138,1334,138,1334,138,1334,138,1334,138,1334,138,1334,138,1334,138,1334,138,1334,138,1334,138,1334,138,1334,138,1334,138,1334,138,1334,138,1334,138,1334,138,1334,138,1334,138,1334,138,1334,138,1334,138,1334,138,1334,138,1334,138,1334,138,1334,138,1334,138,1334,138,1334,138,1334,138,1334,138,1334,138,1334,138,1334,138,1334,138,1334,138,1334,138,1334,138,1334,138,1334,138,1334,138,1334,138,1334,138,1334,138,1334,138,1334,138,1334,138,1334,138,1334,138,1334,138,1334,138,1334,138,1334,138,1334,138,1334,138,1334,138,1334,138,1334,138,1334,138,1334,138,1334,138,1334,138,1334,138,1334,138,1334,138,1334,138,1334,138,1334,138,1334,138,1334,138,1334,138,1334,138,1334,138,1334,138,1334,138,1334,138,1334,138,1334,138,1334,138,1334,138,1334,138,1334,138,1334,138,1334,138,1334,138,1334,138,1334,138,1334,138,1334,138,1334,138,1334,138,1334,138,1334,138,1334,138,1334,138,1334,138,1334,138,1334,138,1334,138,1334,138,1334,138,1334,138,1334,138,1334,138,1334,138,1334,138,1334,138,1334,138,1334,138,1334,138,1334,138,1334,138,1334,138,1334,138,1334,138,1334,138,1334,138,1334,138,1334,138,1334,138,1334,138,1334,138,1334,138,1334,138,1334,138,1334,138,1334,138,1334,138,1334,138,1334,138,1334,138,1334,138,1334,138,1334,138,1334,138,1334,138,1334,138,1334,138,1334,138,1334,138,1334,138,1334,138,1334,138,1334,138,1334,138,1334,138,1334,138,1334,138,1334,138,1334,138,1334,138,1334,138,1334,138,1334,138,1334,138,1334,138,1334,138,1334,138,1334,138,1334,138,1334,138,1334,138,1334,138,1334,138,1334,138,1334,138,1334,138,1334,138,1334,138,1334,138,1334,138,1334,138,1334,138,1334,138,1334,138,1334,138,1334,138,1334,138,1334,138,1334,138,1334,138,1334,138,1334,138,1334,138,1334,138,1334,138,1334,138,1334,138,1334,138,1334,138,1334,138,1334,138,1334,138,1334,138,1334,138,1334,138,1334,138,1334,138,1334,138,1334,138,1334,138,1334,138,1334,138,1334,138,1334,138,1334,138,1334,138,1334,138,1334,138,1334,138,1334,138,1334,138,1334,138,1334,138,1334,138,1334,138,1334,138,1334,138,1334,138,1334,138,1334,138,1334,138,1334,138,1334,138,1334,138,1334,138,1334,138,1334,138,1334,138,1334,138,1334,138,1334,138,1334,138,1334,138,1334,138,1334,138,1334,138,1334,138,1334,138,1334,138,1334,138,1334,138,1334,138,1334,138,1334,138,1334,138,1334,138,1334,138,1334,138,1334,138,1334,138,1334,138,1334,138,1334,138,1334,138,1334,138,1334,138,1334,138,1334,138,1334,138,1334,138,1334,138,1334,138,1334,138,1334,138,1334,138,1334,138,1334,138,1334,138,1334,138,1334,138,1334,138,1334,138,1334,138,1334,138,1334,138,1334,138,1334,138,1334,138,1334,138,1334,138,1334,138,1334,138,1334,138,1334,138,1334]
[]
["Occupied Rental Housing Value"]
["NAME","RntrOccHU","MOE RntrOccHU","RntrOccHUwRent","MOE RntrOccHUwRent","ROHUGRent<100","MOE ROHUGRent<100","ROHUGRent100to149","MOE ROHUGRent100to149","ROHUGRent150to199","MOE ROHUGRent150to199","ROHUGRent200to249","MOE ROHUGRent200to249","ROHUGRent250to299","MOE ROHUGRent250to299","ROHUGRent300to349","MOE ROHUGRent300to349","ROHUGRent350to399","MOE ROHUGRent350to399","ROHUGRent400to449","MOE ROHUGRent400to449","ROHUGRent450to499","MOE ROHUGRent450to499","ROHUGRent500to549","MOE ROHUGRent500to549","ROHUGRent550to599","MOE ROHUGRent550to599","ROHUGRent600to649","MOE ROHUGRent600to649","ROHUGRent650to699","MOE ROHUGRent650to699","ROHUGRent700to749","MOE ROHUGRent700to749","ROHUGRent750to799","MOE ROHUGRent750to799","ROHUGRent800to899","MOE ROHUGRent800to899","ROHUGRent900to999","MOE ROHUGRent900to999","ROHUGRent1000to1249","MOE ROHUGRent1000to1249","ROHUGRent1250to1499","MOE ROHUGRent1250to1499","ROHUGRent1500to1999","MOE ROHUGRent1500to1999","ROHUGRent2000-2499","MOE ROHUGRent2000-2499","ROHUGRent2500-2999","MOE ROHUGRent2500-2999","ROHUGRent3000-3499","MOE ROHUGRent3000-3499","ROHUGRent3500<","MOE ROHUGRent3500<","ROHUNoGRent","MOE ROHUNoGRent","MedianGrossRnt","MOE MedianGrossRnt","H73RenterOccHU","MOE H73RenterOccHU","H73ROHUHhInc<10k","MOE H73ROHUHhInc<10k","H73ROHUHhInc<10kRnt<20pct","MOE H73ROHUHhInc<10kRnt<20pct","H73ROHUHhInc<10kRnt20to25pct","MOE H73ROHUHhInc<10kRnt20to25pct","H73ROHUHhInc<10kRnt25to30pct","MOE H73ROHUHhInc<10kRnt25to30pct","H73ROHUHhInc<10kRnt30to35pct","MOE H73ROHUHhInc<10kRnt30to35pct","H73ROHUHhInc<10kRnt35to39.9","MOE H73ROHUHhInc<10kRnt35to39.9","H73ROHUHhInc<10kRnt40to49.9","MOE H73ROHUHhInc<10kRnt40to49.9","H73ROHUHhInc<10kRnt>50pct","MOE H73ROHUHhInc<10kRnt>50pct","H73ROHUHhInc<10kPctNotComput","MOE H73ROHUHhInc<10kPctNotComput","H73ROHUHhInc10to20k","MOE H73ROHUHhInc10to20k","H73ROHUHhInc10to20kRnt<20pct","MOE H73ROHUHhInc10to20kRnt<20pct","H73ROHUHhInc10to20kRnt20to25pct","MOE H73ROHUHhInc10to20kRnt20to25pct","H73ROHUHhInc10to20kRnt25to30pct","MOE H73ROHUHhInc10to20kRnt25to30pct","H73ROHUHhInc10to20kRnt30to35pct","MOE H73ROHUHhInc10to20kRnt30to35pct","H73ROHUHhInc10to20kRnt35to39.9","MOE H73ROHUHhInc10to20kRnt35to39.9","H73ROHUHhInc10to20kRnt40to49.9","MOE H73ROHUHhInc10to20kRnt40to49.9","H73ROHUHhInc10to20kRnt>50pct","MOE H73ROHUHhInc10to20kRnt>50pct","H73ROHUHhInc10to20kRntPctNC","MOE H73ROHUHhInc10to20kRntPctNC","H73ROHUHhInc20to34.9k","MOE H73ROHUHhInc20to34.9k","H73ROHUHhInc20to34.9kRnt<20pct","MOE H73ROHUHhInc20to34.9kRnt<20pct","H73ROHUHhInc20to34.9kRnt20to25pct","MOE H73ROHUHhInc20to34.9kRnt20to25pct","H73ROHUHhInc20to34.9kRnt25to30pct","MOE H73ROHUHhInc20to34.9kRnt25to30pct","H73ROHUHhInc20to34.9kRnt30to35pct","MOE H73ROHUHhInc20to34.9kRnt30to35pct","H73ROHUHhInc20to34.9kRnt35to39.9","MOE H73ROHUHhInc20to34.9kRnt35to39.9","H73ROHUHhInc20to34.9kRnt40to49.9","MOE H73ROHUHhInc20to34.9kRnt40to49.9","H73ROHUHhInc20to34.9kRnt>50pct","MOE H73ROHUHhInc20to34.9kRnt>50pct","H73ROHUHhInc20to34.9kRntPctNC","MOE H73ROHUHhInc20to34.9kRntPctNC","H73ROHUHhInc35to49.9k","MOE H73ROHUHhInc35to49.9k","H73ROHUHhInc35to49.9kRnt<20pct","MOE H73ROHUHhInc35to49.9kRnt<20pct","H73ROHUHhInc35to49.9kRnt20to25pct","MOE H73ROHUHhInc35to49.9kRnt20to25pct","H73ROHUHhInc35to49.9kRnt25to30pct","MOE H73ROHUHhInc35to49.9kRnt25to30pct","H73ROHUHhInc35to49.9kRnt30to35pct","MOE H73ROHUHhInc35to49.9kRnt30to35pct","H73ROHUHhInc35to49.9kRnt35to39.9","MOE H73ROHUHhInc35to49.9kRnt35to39.9","H73ROHUHhInc35to49.9kRnt40to49.9","MOE H73ROHUHhInc35to49.9kRnt40to49.9","H73ROHUHhInc35to49.9kRnt>50pct","MOE H73ROHUHhInc35to49.9kRnt>50pct","H73ROHUHhInc35to49.9kRntPctNC","MOE H73ROHUHhInc35to49.9kRntPctNC","H73ROHUHhInc50to74.9k","MOE H73ROHUHhInc50to74.9k","H73ROHUHhInc50to74.9kRnt<20pct","MOE H73ROHUHhInc50to74.9kRnt<20pct","H73ROHUHhInc50to74.9kRnt20to25pct","MOE H73ROHUHhInc50to74.9kRnt20to25pct","H73ROHUHhInc50to74.9kRnt25to30pct","MOE H73ROHUHhInc50to74.9kRnt25to30pct","H73ROHUHhInc50to74.9kRnt30to35pct","MOE H73ROHUHhInc50to74.9kRnt30to35pct","H73ROHUHhInc50to74.9kRnt35to39.9","MOE H73ROHUHhInc50to74.9kRnt35to39.9","H73ROHUHhInc50to74.9kRnt40to49.9","MOE H73ROHUHhInc50to74.9kRnt40to49.9","H73ROHUHhInc50to74.9kRnt>50pct","MOE H73ROHUHhInc50to74.9kRnt>50pct","H73ROHUHhInc50to74.9kRntPctNC","MOE H73ROHUHhInc50to74.9kRntPctNC","H73ROHUHhInc75to99.9k","MOE H73ROHUHhInc75to99.9k","H73ROHUHhInc75to99.9kRnt<20pct","MOE H73ROHUHhInc75to99.9kRnt<20pct","H73ROHUHhInc75to99.9kRnt20to25pct","MOE H73ROHUHhInc75to99.9kRnt20to25pct","H73ROHUHhInc75to99.9kRnt25to30pct","MOE H73ROHUHhInc75to99.9kRnt25to30pct","H73ROHUHhInc75to99.9kRnt30to35pct","MOE H73ROHUHhInc75to99.9kRnt30to35pct","H73ROHUHhInc75to99.9kRnt35to39.9","MOE H73ROHUHhInc75to99.9kRnt35to39.9","H73ROHUHhInc75to99.9kRnt40to49.9","MOE H73ROHUHhInc75to99.9kRnt40to49.9","H73ROHUHhInc75to99.9kRnt>50pct","MOE H73ROHUHhInc75to99.9kRnt>50pct","H73ROHUHhInc75to99.9kRntPctNC","MOE H73ROHUHhInc75to99.9kRntPctNC","H73ROHUHhInc>100k","MOE H73ROHUHhInc>100k","H73ROHUHhInc>100kRnt<20pct","MOE H73ROHUHhInc>100kRnt<20pct","H73ROHUHhInc>100kRnt20to25pct","MOE H73ROHUHhInc>100kRnt20to25pct","H73ROHUHhInc>100kRnt25to30pct","MOE H73ROHUHhInc>100kRnt25to30pct","H73ROHUHhInc>100kRnt30to35pct","MOE H73ROHUHhInc>100kRnt30to35pct","H73ROHUHhInc>100kRnt35to39.9","MOE H73ROHUHhInc>100kRnt35to39.9","H73ROHUHhInc>100kRnt40to49.9","MOE H73ROHUHhInc>100kRnt40to49.9","H73ROHUHhInc>100kRnt>50pct","MOE H73ROHUHhInc>100kRnt>50pct","H73ROHUHhInc>100kRntPctNC","MOE H73ROHUHhInc>100kRntPctNC"]
[{"$f":"VLOOKUP(DropDownList!$B$27,CntyQryCensus!$A$275:$AG$297,A$1)","v":"Dublin"},568,122,544,121,0,12,0,12,0,12,0,12,0,12,0,12,22,36,0,12,17,23,8,14,0,12,9,14,0,12,26,34,29,35,112,70,81,53,85,68,79,56,45,45,31,36,0,12,0,12,0,12,24,29,960,123,568,122,46,40,0,12,0,12,0,12,0,12,0,12,0,12,14,15,32,37,98,62,0,12,0,12,22,36,0,12,11,17,9,14,45,36,11,19,117,61,0,12,0,12,0,12,27,33,43,35,8,11,39,45,0,12,150,67,0,12,0,12,77,53,61,57,12,18,0,12,0,12,0,12,106,61,53,46,0,12,35,40,0,12,18,28,0,12,0,12,0,12,7,12,0,12,7,12,0,12,0,12,0,12,0,12,0,12,0,12,44,47,44,47,0,12,0,12,0,12,0,12,0,12,0,12,0,12,null,null,"Jaffrey",null,"Estimate","Margin of Error",720,101]
[]
[]
[]
[]
[]
["Occupied Rental Housing Cost Burdern All Incomes"]
["NAME","RenterOccHsU",{"$f":"\"MOE \"&B155","v":"MOE RenterOccHsU"},"GRnt<20PctHHInc",{"$f":"\"MOE \"&D155","v":"MOE GRnt<20PctHHInc"},"GRnt20to249PctHHInc",{"$f":"\"MOE \"&F155","v":"MOE GRnt20to249PctHHInc"},"GRnt25to29.9PctHHInc",{"$f":"\"MOE \"&H155","v":"MOE GRnt25to29.9PctHHInc"},"GRnt<30PctHHInc",{"$f":"\"MOE \"&J155","v":"MOE GRnt<30PctHHInc"},"GRnt>30PctHHInc",{"$f":"\"MOE \"&L155","v":"MOE GRnt>30PctHHInc"},"GRnt30to349PctHHInc",{"$f":"\"MOE \"&N155","v":"MOE GRnt30to349PctHHInc"},"GRnt<35PctHHInc",{"$f":"\"MOE \"&P155","v":"MOE GRnt<35PctHHInc"},"GRnt>35PctHHInc",{"$f":"\"MOE \"&R155","v":"MOE GRnt>35PctHHInc"},"GRnt>50PctHHInc",{"$f":"\"MOE \"&T155","v":"MOE GRnt>50PctHHInc"},"HCB Not Calculated",{"$f":"\"MOE \"&V155","v":"MOE HCB Not Calculated"}]
[{"$f":"VLOOKUP(DropDownList!$B$27,CntyQryCensus!$A$275:$AG$297,A$1)","v":"Dublin"},568,122,97,66.340033162487941,7,12,134,66,238,94.34511116109833,287,105.32331175955302,88,64,326,114.00438588054409,199,83.648072302952684,98,63,43,36]
[]
["Income By Household Type and Tenure"]
["NAME","TotalFamilyHouseholds",{"$f":"\"MOE \"&B159","v":"MOE TotalFamilyHouseholds"},"FamInc<10K",{"$f":"\"MOE \"&D159","v":"MOE FamInc<10K"},"FamInc10to15K",{"$f":"\"MOE \"&F159","v":"MOE FamInc10to15K"},"FamInc15to20K",{"$f":"\"MOE \"&H159","v":"MOE FamInc15to20K"},"FamInc20to25K",{"$f":"\"MOE \"&J159","v":"MOE FamInc20to25K"},"FamInc25to30K",{"$f":"\"MOE \"&L159","v":"MOE FamInc25to30K"},"FamInc30to35K",{"$f":"\"MOE \"&N159","v":"MOE FamInc30to35K"},"FamInc35to40K",{"$f":"\"MOE \"&P159","v":"MOE FamInc35to40K"},"FamInc40to45K",{"$f":"\"MOE \"&R159","v":"MOE FamInc40to45K"},"FamInc45to50K",{"$f":"\"MOE \"&T159","v":"MOE FamInc45to50K"},"FamInc50to60K",{"$f":"\"MOE \"&V159","v":"MOE FamInc50to60K"},"FamInc60to75K",{"$f":"\"MOE \"&X159","v":"MOE FamInc60to75K"},"FamInc75to100K",{"$f":"\"MOE \"&Z159","v":"MOE FamInc75to100K"},"FamInc100to125K",{"$f":"\"MOE \"&AB159","v":"MOE FamInc100to125K"},"FamInc125to150K",{"$f":"\"MOE \"&AD159","v":"MOE FamInc125to150K"},"FamInc150to200K",{"$f":"\"MOE \"&AF159","v":"MOE FamInc150to200K"},"FamInc>200K",{"$f":"\"MOE \"&AH159","v":"MOE FamInc>200K"},"MedFamInc",{"$f":"\"MOE \"&AJ159","v":"MOE MedFamInc"},"TotalNonNonFamilyHouseholds",{"$f":"\"MOE \"&AL159","v":"MOE TotalNonNonFamilyHouseholds"},"NonFamInc<10K",{"$f":"\"MOE \"&AN159","v":"MOE NonFamInc<10K"},"NonFamInc10to15K",{"$f":"\"MOE \"&AP159","v":"MOE NonFamInc10to15K"},"NonFamInc15to20K",{"$f":"\"MOE \"&AR159","v":"MOE NonFamInc15to20K"},"NonFamInc20to25K",{"$f":"\"MOE \"&AT159","v":"MOE NonFamInc20to25K"},"NonFamInc25to30K",{"$f":"\"MOE \"&AV159","v":"MOE NonFamInc25to30K"},"NonFamInc30to35K",{"$f":"\"MOE \"&AX159","v":"MOE NonFamInc30to35K"},"NonFamInc35to40K",{"$f":"\"MOE \"&AZ159","v":"MOE NonFamInc35to40K"},"NonFamInc40to45K",{"$f":"\"MOE \"&BB159","v":"MOE NonFamInc40to45K"},"NonFamInc45to50K",{"$f":"\"MOE \"&BD159","v":"MOE NonFamInc45to50K"},"NonFamInc50to60K",{"$f":"\"MOE \"&BF159","v":"MOE NonFamInc50to60K"},"NonFamInc60to75K",{"$f":"\"MOE \"&BH159","v":"MOE NonFamInc60to75K"},"NonFamInc75to100K",{"$f":"\"MOE \"&BJ159","v":"MOE NonFamInc75to100K"},"NonFamInc100to125K",{"$f":"\"MOE \"&BL159","v":"MOE NonFamInc100to125K"},"NonFamInc125to150K",{"$f":"\"MOE \"&BN159","v":"MOE NonFamInc125to150K"},"NonFamInc150to200K",{"$f":"\"MOE \"&BP159","v":"MOE NonFamInc150to200K"},"NonFamInc>200K",{"$f":"\"MOE \"&BR159","v":"MOE NonFamInc>200K"},"MedNonFamInc",{"$f":"\"MOE \"&BT159","v":"MOE MedNonFamInc"},"PerCapitaIncome","MOE PerCapitaIncome"]
[{"$f":"VLOOKUP(DropDownList!$B$27,CntyQryCensus!$A$275:$AG$297,A$1)","v":"Dublin"},527,93,12,13,38,53,0,12,4,5,14,12,2,3,20,20,3,4,7,11,54,27,28,26,101,67,56,27,37,20,62,30,89,36,96763,6705,108,32,12,10,3,4,3,3,5,5,4,6,5,6,0,12,0,12,12,13,0,12,5,6,17,10,16,13,6,5,6,6,14,18,81071,22886,29507,6184]
[]
[]
[]
["2010 Census"]
[]
["TownName","LOGRECNO","COUNTY","TotalPop","TotalPop1Race","TotalPopWhite","TotalPopAfricanAmerican","TotalPopAmericanIndAlaska","TotalPopAsian","TotalPopNativeHawaiianPIsland","TotalPopSomeOtherRace","TotalPopTwoOrMoreRaces","TotalPopHispanicLatino","TotalNonHispanicLatino","TotPopUnder15yrs","TotPop15to24yrs","TotPop25to34yrs","TotPop35to44yrs","TotPop45to54yrs","TotPop55to64yrs","TotPop65to74yrs","TotPopOver74yrs","MedianAge","MedianAgeMale","MedianAgeFemale","TotalHH","TotalPopInHouseholds","TotalPopInFamilyHH","TotalPopInNonFamilyHH","AvgHHSize","TotalFamilyHH","TotalFamilyHHSpouse","TotalSingleParentHH","TotalNonFamilyHH","AvgFamilyHHSize","AvgNonFamilyHHSize","AverageHHSizeOwnerOccupied","AverageHHSizeRentalOccupied","TotalHousingUnits","TotalOccupiedHU","TotalOwnerOccupiedHUs","TotalRentalOccupiedHU","TotalVacantHU","VacantHUForRent","VacantHURentNotOccupied","VacantHUForSale","VacantHUsSoldNotOccupied","VacantHUSeasonalRecreational","VacantHUsAllOtherVacants","HomeOwnerVacancyRate","HomeRentalVacancyRate","Total HH","Total Single Family HU","Total Multi-Family HU","Total Manufacture HU"]
[{"$f":"VLOOKUP(DropDownList!$B$27,CntyQryCensus!$A$275:$AG$297,A$1)","v":"Dublin"},{"$f":"VLOOKUP(DropDownList!$A$27,CntyQryCensus!$A$333:$BC$355,B$1)","v":"0000043"},{"$f":"VLOOKUP(DropDownList!$A$27,CntyQryCensus!$A$333:$BC$355,C$1)","v":"005"},{"$f":"VLOOKUP(DropDownList!$A$27,CntyQryCensus!$A$333:$BC$355,D$1)","v":1597},{"$f":"VLOOKUP(DropDownList!$A$27,CntyQryCensus!$A$333:$BC$355,E$1)","v":1577},{"$f":"VLOOKUP(DropDownList!$A$27,CntyQryCensus!$A$333:$BC$355,F$1)","v":1549},{"$f":"VLOOKUP(DropDownList!$A$27,CntyQryCensus!$A$333:$BC$355,G$1)","v":4},{"$f":"VLOOKUP(DropDownList!$A$27,CntyQryCensus!$A$333:$BC$355,H$1)","v":4},{"$f":"VLOOKUP(DropDownList!$A$27,CntyQryCensus!$A$333:$BC$355,I$1)","v":12},{"$f":"VLOOKUP(DropDownList!$A$27,CntyQryCensus!$A$333:$BC$355,J$1)","v":1},{"$f":"VLOOKUP(DropDownList!$A$27,CntyQryCensus!$A$333:$BC$355,K$1)","v":7},{"$f":"VLOOKUP(DropDownList!$A$27,CntyQryCensus!$A$333:$BC$355,L$1)","v":20},{"$f":"VLOOKUP(DropDownList!$A$27,CntyQryCensus!$A$333:$BC$355,M$1)","v":28},{"$f":"VLOOKUP(DropDownList!$A$27,CntyQryCensus!$A$333:$BC$355,N$1)","v":1569},{"$f":"VLOOKUP(DropDownList!$A$27,CntyQryCensus!$A$333:$BC$355,O$1)","v":259},{"$f":"VLOOKUP(DropDownList!$A$27,CntyQryCensus!$A$333:$BC$355,P$1)","v":173},{"$f":"VLOOKUP(DropDownList!$A$27,CntyQryCensus!$A$333:$BC$355,Q$1)","v":142},{"$f":"VLOOKUP(DropDownList!$A$27,CntyQryCensus!$A$333:$BC$355,R$1)","v":189},{"$f":"VLOOKUP(DropDownList!$A$27,CntyQryCensus!$A$333:$BC$355,S$1)","v":288},{"$f":"VLOOKUP(DropDownList!$A$27,CntyQryCensus!$A$333:$BC$355,T$1)","v":295},{"$f":"VLOOKUP(DropDownList!$A$27,CntyQryCensus!$A$333:$BC$355,U$1)","v":158},{"$f":"VLOOKUP(DropDownList!$A$27,CntyQryCensus!$A$333:$BC$355,V$1)","v":93},{"$f":"VLOOKUP(DropDownList!$A$27,CntyQryCensus!$A$333:$BC$355,W$1)","v":46.5},{"$f":"VLOOKUP(DropDownList!$A$27,CntyQryCensus!$A$333:$BC$355,X$1)","v":46.5},{"$f":"VLOOKUP(DropDownList!$A$27,CntyQryCensus!$A$333:$BC$355,Y$1)","v":46.5},{"$f":"VLOOKUP(DropDownList!$A$27,CntyQryCensus!$A$333:$BC$355,Z$1)","v":620},{"$f":"VLOOKUP(DropDownList!$A$27,CntyQryCensus!$A$333:$BC$355,AA$1)","v":1525},{"$f":"VLOOKUP(DropDownList!$A$27,CntyQryCensus!$A$333:$BC$355,AB$1)","v":834},{"$f":"VLOOKUP(DropDownList!$A$27,CntyQryCensus!$A$333:$BC$355,AC$1)","v":691},{"$f":"VLOOKUP(DropDownList!$A$27,CntyQryCensus!$A$333:$BC$355,AD$1)","v":2.46},{"$f":"VLOOKUP(DropDownList!$A$27,CntyQryCensus!$A$333:$BC$355,AE$1)","v":458},{"$f":"VLOOKUP(DropDownList!$A$27,CntyQryCensus!$A$333:$BC$355,AF$1)","v":395},{"$f":"VLOOKUP(DropDownList!$A$27,CntyQryCensus!$A$333:$BC$355,AG$1)","v":63},{"$f":"VLOOKUP(DropDownList!$A$27,CntyQryCensus!$A$333:$BC$355,AH$1)","v":162},{"$f":"VLOOKUP(DropDownList!$A$27,CntyQryCensus!$A$333:$BC$355,AI$1)","v":2.82},{"$f":"VLOOKUP(DropDownList!$A$27,CntyQryCensus!$A$333:$BC$355,AJ$1)","v":4.2654320987654319},{"$f":"VLOOKUP(DropDownList!$A$27,CntyQryCensus!$A$333:$BC$355,AK$1)","v":2.4500000000000002},{"$f":"VLOOKUP(DropDownList!$A$27,CntyQryCensus!$A$333:$BC$355,AL$1)","v":2.4900000000000002},{"$f":"VLOOKUP(DropDownList!$A$27,CntyQryCensus!$A$333:$BC$355,AM$1)","v":785},{"$f":"VLOOKUP(DropDownList!$A$27,CntyQryCensus!$A$333:$BC$355,AN$1)","v":620},{"$f":"VLOOKUP(DropDownList!$A$27,CntyQryCensus!$A$333:$BC$355,AO$1)","v":501},{"$f":"VLOOKUP(DropDownList!$A$27,CntyQryCensus!$A$333:$BC$355,AP$1)","v":119},{"$f":"VLOOKUP(DropDownList!$A$27,CntyQryCensus!$A$333:$BC$355,AQ$1)","v":165},{"$f":"VLOOKUP(DropDownList!$A$27,CntyQryCensus!$A$333:$BC$355,AR$1)","v":11},{"$f":"VLOOKUP(DropDownList!$A$27,CntyQryCensus!$A$333:$BC$355,AS$1)","v":1},{"$f":"VLOOKUP(DropDownList!$A$27,CntyQryCensus!$A$333:$BC$355,AT$1)","v":7},{"$f":"VLOOKUP(DropDownList!$A$27,CntyQryCensus!$A$333:$BC$355,AU$1)","v":1},{"$f":"VLOOKUP(DropDownList!$A$27,CntyQryCensus!$A$333:$BC$355,AV$1)","v":128},{"$f":"VLOOKUP(DropDownList!$A$27,CntyQryCensus!$A$333:$BC$355,AW$1)","v":17},{"$f":"VLOOKUP(DropDownList!$A$27,CntyQryCensus!$A$333:$BC$355,AX$1)","v":1.4},{"$f":"VLOOKUP(DropDownList!$A$27,CntyQryCensus!$A$333:$BC$355,AY$1)","v":8.4},{"$f":"VLOOKUP(DropDownList!$A$27,CntyQryCensus!$A$333:$BC$355,AZ$1)","v":785},{"$f":"VLOOKUP(DropDownList!$A$27,CntyQryCensus!$A$333:$BC$355,BA$1)","v":714},{"$f":"VLOOKUP(DropDownList!$A$27,CntyQryCensus!$A$333:$BC$355,BB$1)","v":60},{"$f":"VLOOKUP(DropDownList!$A$27,CntyQryCensus!$A$333:$BC$355,BC$1)","v":11}]

{"sheet":"CntyQuery","index":8,"n_rows":145,"n_cols":243,"rows_kept":145,"cut":false,"hidden":true,"merged":[]}
[]
["Census 1990 Data -           Query Name:  DPCnty90Census"]
["NAME","FIPS","COUSUBFP","LandAcres","WaterAcres","HousingUnits90Cen","Persons90Cen","Families90Cen","Households90cen","MalePop90cen","FemalePop90cen","WhitePop","BlackPop","AmerIndianPop","AsianPIPop","OtherRacePop","HispanicOrPop","AgeUnder15_90cen","Age15to24_90cen","Age25to34_90cen","Age35to44_90cen","Age45to54_90cen","Age55to64_90cen","Age65to74_90cen","Age75andOver_90cen","PersonsInHH90cen","PersonsInFamHH90cen","PersonsInGC","PersonsPerHH90cen","PersonsPerFam90Cen","SinglePersonHH90cen","MarriedCoupleHH90cen","SingleParentHH90cen","NonFamilyHH90cen","TotalHousingUnits","OccupiedHousingUnits","VacantHousingUnits","OwnerOccHU","RenterOccHU","VacantForRent90","VacantForSale90","VacantSeasonalRec","SingFamHU90cen","MultiFamHU90cen","MobileHom90cen","SingFamOwnHU90cen","MultiFamOwnHU90cen","MobileHomOwnHU90cen","SingFamRntrHU90cen","MultiFamRntrHU90cen","MobileHomRntrHU90cen","HU<5yrs90cen","HU5to20yrs90cen","HU20to50yrs90cen","HU>50yrs90cen","Units0Bedroom90cen","Units1Bedroom90cen","Units2Bedroom90cen","Units3Bedroom90cen","Units4+Bedroom90cen","HI<5K","HI5Kto10K","HI10Kto15K","HI15Kto25K","HI25Kto35K","HI35Kto50K","HI50Kto75K","HI75Kto100K","HI>100K","MedHI","HH<25HI<5K","HH<25HI5Kto10K","HH<25HI10Kto15K","HH<25HI15Kto25K","HH<25HI25Kto35K","HH<25HI35Kto50K","HH<25HI50Kto75K","HH<25HI75Kto100K","HH<25HI>100K","HH25to34HI<5K","HH25to34HI5Kto10K","HH25to34HI10Kto15K","HH25to34HI15Kto25K","HH25to34HI25Kto35K","HH25to34HI35Kto50K","HH25to34HI50Kto75K","HH25to34HI75Kto100K","HH25to34HI>100K","HH35to44HI<5K","HH35to44HI5Kto10K","HH35to44HI10Kto15K","HH35to44HI15Kto25K","HH35to44HI25Kto35K","HH35to44HI35Kto50K","HH35to44HI50Kto75K","HH35to44HI75Kto100K","HH35to44HI>100K","HH45to54HI<5K","HH45to54HI5Kto10K","HH45to54HI10Kto15K","HH45to54HI15Kto25K","HH45to54HI25Kto35K","HH45to54HI35Kto50K","HH45to54HI50Kto75K","HH45to54HI75Kto100K","HH45to54HI>100K","HH55to64HI<5K","HH55to64HI5Kto10K","HH55to64HI10Kto15K","HH55to64HI15Kto25K","HH55to64HI25Kto35K","HH55to64HI35Kto50K","HH55to64HI50Kto75K","HH55to64HI75Kto100K","HH55to64HI>100K","HH65to74HI<5K","HH65to74HI5Kto10K","HH65to74HI10Kto15K","HH65to74HI15Kto25K","HH65to74HI25Kto35K","HH65to74HI35Kto50K","HH65to74HI50Kto75K","HH65to74HI75Kto100K","HH65to74HI>100K","HH>75HI<5K","HH>75HI5Kto10K","HH>75HI10Kto15K","HH>75HI15Kto25K","HH>75HI25Kto35K","HH>75HI35Kto50K","HH>75HI50Kto75K","HH>75HI75Kto100K","HH>75HI>100K","SchoolEnrollment1thru12","Pop25andOver","HSGradorHigher","CollGradorHigher","NativePop","ForeignBornPop","BornStateOfRes","NativePop2","ForeignBornPop2","DroveAlone","CarPooled","PublicTranspt","Walked","OtherMeans","WorkedAtHome","HHInc<10K","HHInc10to15K","HHInc15to25K","HHInc25to35K","HHInc35to50K","HHInc50to75K","HHInc75to100K","HHInc100to150K","HHInc>150K","YearStBlt89to90","YearStBlt85to88","YearStBlt80to84","YearStBlt70to79","YearStBlt60to69","YearStBlt50to59","YearStBlt40to49","YearStBlt39earlier"]
["Alstead",5005,"00820",24943.55,267.3,843,1721,478,654,850,871,1713,1,4,3,0,8,397,185,293,312,188,152,122,72,1721,1486,0,2.6314984709480123,3.1087866108786613,128,407,71,48,843,654,189,526,128,8,8,135,644,73,126,430,14,126,58,49,21,108,189,192,354,22,122,287,266,146,9,30,82,128,148,106,117,24,8,30956,2,4,4,9,11,2,4,4,0,0,0,10,27,56,28,29,0,0,0,3,17,15,40,50,34,4,0,2,0,4,17,15,11,34,11,4,0,4,12,26,11,12,12,2,2,2,2,16,31,13,0,4,3,2,3,17,19,3,2,3,0,0,0,275,1139,916,274,1686,35,671,1686,35,681,89,1,12,15,50,39,82,128,148,106,117,24,4,4,19,89,59,130,71,66,55,354]
["Chesterfield",5010,"12260",29178,1249.74,1527,3112,887,1186,1573,1539,3093,1,4,11,3,21,639,316,487,607,432,318,190,123,3099,2717,13,2.6129848229342327,3.0631341600901916,227,796,91,72,1527,1186,341,972,214,14,17,262,1269,184,74,882,45,74,102,102,10,212,493,414,426,22,132,379,671,341,16,95,49,155,214,285,262,88,22,38000,0,0,6,7,8,0,0,0,0,0,11,0,48,60,43,55,0,0,0,13,17,20,54,110,72,18,8,0,10,7,25,46,42,68,24,6,0,16,8,33,33,73,36,24,8,5,16,11,6,6,17,14,13,0,11,29,0,16,7,0,17,9,0,481,2154,1769,704,2982,121,1018,2982,121,1431,217,4,51,23,60,111,49,155,214,285,262,88,14,8,54,158,195,298,234,118,62,426]
["Dublin",5015,"19140",17852.14,700.89,651,1474,408,521,749,725,1451,4,6,10,3,10,339,151,215,266,178,160,99,66,1385,1250,89,2.6583493282149711,3.0637254901960786,96,368,40,17,651,521,130,401,120,5,10,94,549,68,34,368,23,34,66,36,18,86,197,139,229,8,54,147,234,208,15,14,39,82,54,90,123,45,51,41917,0,0,0,0,0,6,3,0,0,3,0,12,16,8,19,12,0,0,7,2,4,13,11,25,44,20,10,0,0,4,11,8,20,27,8,15,0,4,4,22,16,16,19,11,13,0,2,9,6,5,4,9,4,13,5,6,6,14,6,0,9,2,0,268,975,891,416,1440,34,589,1440,34,535,76,5,54,8,87,29,39,82,54,90,123,45,32,19,22,64,51,146,80,32,27,229]
["Fitzwilliam",5020,"26500",22158.29,901.46,1031,2011,574,751,1011,1000,1998,9,3,1,0,6,466,182,354,348,261,155,137,108,2011,1775,0,2.6777629826897469,3.0923344947735192,132,495,79,45,1031,751,280,639,112,16,10,222,833,79,119,552,23,119,59,33,20,172,278,198,385,4,103,352,391,183,25,43,56,109,134,195,174,21,11,35988,0,0,3,12,3,9,3,0,0,0,4,5,24,37,50,36,2,0,5,0,7,22,41,58,41,16,1,0,0,6,2,12,34,54,0,3,6,0,11,19,17,15,32,0,2,6,13,14,13,9,18,8,3,2,8,26,10,17,15,11,0,0,3,330,1340,1067,291,1955,40,659,1955,40,810,102,10,27,7,51,68,56,109,134,195,174,21,11,0,38,134,60,218,101,55,42,385]
["Gilsum",5025,"29220",10668.06,13.8,320,745,207,276,388,357,743,0,2,0,0,0,158,82,135,139,75,76,51,29,745,638,0,2.6992753623188408,3.0821256038647342,46,172,35,23,320,276,44,243,33,3,2,25,274,15,31,217,5,31,17,10,6,60,62,45,159,0,35,110,112,69,6,21,28,44,41,67,53,13,5,34821,0,0,0,3,3,1,2,0,0,0,3,0,12,5,25,8,0,5,0,0,8,7,18,17,25,2,0,0,0,0,5,4,9,10,5,0,0,4,4,6,4,9,3,2,0,2,7,10,9,6,6,3,2,0,4,7,6,2,1,0,2,2,0,125,515,362,96,722,13,455,722,13,276,68,2,2,17,11,27,28,44,41,67,53,13,5,0,2,58,30,32,24,10,11,159]
["Harrisville",5030,"34420",11976.77,968.7,588,981,260,345,485,496,974,1,3,3,0,5,235,96,164,191,107,79,74,35,933,822,48,2.7043478260869565,3.1615384615384614,62,229,31,23,588,345,243,258,87,1,4,207,517,32,39,236,4,39,55,25,7,94,153,77,255,12,56,182,204,125,2,11,21,60,76,75,65,9,21,35000,0,2,1,3,3,0,0,0,0,0,0,3,26,29,25,6,0,0,2,2,2,14,19,21,27,3,7,0,0,4,2,7,6,19,3,11,0,0,3,5,3,12,2,3,0,0,5,5,8,14,7,11,0,3,0,2,3,2,1,4,0,0,0,150,642,551,241,968,18,456,968,18,388,24,2,37,5,45,13,21,60,76,75,65,9,14,7,29,65,64,89,15,42,20,255]
["Hinsdale",5035,"36660",13255.45,1241.76,1655,3936,1091,1560,1914,2022,3888,16,9,20,3,12,876,473,691,581,444,338,322,211,3936,3376,0,2.523076923076923,3.094408799266728,395,867,224,74,1655,1560,95,1148,412,20,28,19,880,371,404,770,51,404,62,300,50,295,465,513,410,15,260,527,668,213,62,237,132,300,282,348,173,11,18,26753,0,15,34,6,13,15,7,0,0,0,5,27,85,53,84,61,6,0,7,7,0,56,63,92,27,0,3,15,22,0,21,69,82,44,5,5,0,5,6,42,57,45,34,0,10,20,71,44,58,27,18,0,0,0,20,112,21,32,0,12,0,0,0,541,2565,1876,233,3841,78,982,3841,78,1745,278,0,10,24,49,299,132,300,282,348,173,11,13,5,119,176,96,369,361,98,54,410]
["Jaffrey",5040,"38500",24580.12,1128.4100000000001,2426,5361,1463,2094,2584,2777,5296,14,15,36,0,23,1204,662,851,828,511,464,460,381,5308,4544,53,2.5348615090735436,3.1059466848940533,521,1208,255,110,2426,2094,332,1363,731,70,39,173,1539,721,166,1161,88,166,155,553,23,306,670,450,1013,12,374,775,902,376,49,158,171,347,342,421,415,69,62,32549,0,12,18,5,18,21,0,0,0,17,11,0,39,50,155,71,0,9,12,0,27,80,94,98,162,14,28,8,0,5,40,58,46,113,29,9,0,0,33,98,63,37,40,5,9,7,65,40,46,37,44,5,21,7,5,70,48,39,22,20,24,0,0,905,3396,2742,665,5007,87,2446,5007,87,1985,351,10,156,27,123,207,171,347,342,421,415,69,55,7,92,214,203,467,164,109,177,1013]
["Keene",5045,"39300",23714.32,153.1,8841,22430,5327,8391,10327,12103,22167,62,42,133,26,132,3956,4993,3221,3109,2071,1823,1720,1537,20298,16164,2132,2.4190203789774758,3.0343532945372629,2296,4249,1078,768,8841,8391,450,4874,3517,203,101,29,4327,3998,516,3887,580,516,318,3131,68,753,2026,2290,3772,163,1288,2824,3214,1352,343,747,781,1335,1496,1552,1512,306,281,31235,73,48,112,122,165,135,41,0,0,36,133,142,270,353,356,296,12,8,23,44,56,224,267,471,566,85,100,48,23,47,113,137,235,301,119,61,36,66,89,153,228,158,183,67,83,59,164,162,253,178,132,93,17,29,68,269,173,200,168,65,32,6,0,3462,13526,11316,3920,21836,594,10836,21836,594,8282,1303,40,1117,219,361,1090,781,1335,1496,1552,1512,306,176,105,173,580,650,1376,1080,870,340,3772]
["Marlborough",5050,"45460",13061.48,150.56,856,1927,535,745,925,1002,1918,3,1,4,1,3,412,227,339,319,180,178,151,121,1911,1652,16,2.5651006711409394,3.0878504672897198,167,451,84,43,856,745,111,555,190,22,23,43,538,260,58,447,62,58,36,145,9,121,152,129,451,10,114,265,330,134,22,80,47,125,131,140,144,44,9,31383,0,2,4,12,10,10,5,0,0,0,3,9,35,34,37,30,4,0,7,2,0,24,33,40,39,6,0,4,3,2,8,12,21,44,13,2,0,11,5,8,25,16,24,19,4,8,22,11,16,13,12,2,2,2,3,37,16,22,4,4,0,0,1,354,1284,1079,331,1906,27,1137,1906,27,803,105,0,30,20,60,102,47,125,131,140,144,44,7,2,46,75,60,92,63,42,24,451]
["Marlow",5055,"45700",16656.900000000001,264.66000000000003,364,650,188,243,329,321,650,0,0,0,0,5,143,67,116,120,77,65,36,26,650,578,0,2.6748971193415638,3.0744680851063828,40,170,18,15,364,243,121,219,24,9,6,84,306,10,48,190,1,48,18,2,4,60,97,96,115,16,47,116,120,69,11,21,33,33,32,63,36,3,5,32212,2,3,0,3,0,0,3,0,0,0,0,3,5,6,16,4,0,0,3,2,7,6,6,27,20,0,0,0,2,7,8,6,12,4,0,3,2,4,4,6,11,5,3,3,2,2,4,7,2,2,2,2,0,0,2,6,5,3,1,1,0,0,0,137,433,339,90,636,15,270,636,15,237,56,0,7,0,27,32,33,33,32,63,36,3,5,0,32,28,25,72,45,18,33,115]
["Nelson",5060,"50580",14019.13,879.02,379,535,136,200,258,277,535,0,0,0,0,2,129,59,92,103,62,39,28,23,535,456,0,2.6749999999999998,3.3529411764705883,51,116,20,13,379,200,179,164,36,4,1,154,327,29,23,149,8,23,20,7,9,64,76,86,157,8,53,75,157,90,2,7,21,35,28,31,26,17,17,34750,0,0,0,0,3,0,0,2,0,0,3,7,8,8,9,4,0,2,0,0,6,8,2,13,14,5,4,0,0,6,3,5,7,4,3,7,0,4,2,9,3,0,4,0,2,0,0,0,4,2,2,0,5,0,2,0,0,3,5,0,0,2,2,99,322,277,111,531,4,299,531,4,227,29,3,10,2,9,9,21,35,28,31,26,17,12,5,14,50,22,54,57,25,4,157]
["Richmond",5065,"64420",24027.85,124.42,398,877,247,307,441,436,873,0,1,1,2,6,204,98,136,174,114,62,60,29,877,787,0,2.8566775244299674,3.1862348178137654,40,207,40,20,398,307,91,289,18,1,10,57,371,10,17,272,8,17,15,1,2,109,145,40,102,6,16,104,193,77,8,15,19,49,55,77,48,21,17,36328,0,0,0,0,0,0,0,0,0,0,0,0,11,14,15,7,7,3,0,0,11,10,26,28,26,0,8,0,3,3,10,8,17,12,10,5,3,0,0,7,0,11,3,0,0,5,6,5,11,3,6,0,4,1,0,6,0,0,4,0,0,0,0,176,598,552,161,887,6,305,887,6,374,51,3,10,6,37,23,19,49,55,77,48,21,14,3,23,86,56,89,14,2,24,102]
["Rindge",5070,"64580",23724.9,1743.96,1781,4941,1015,1298,2512,2429,4837,60,9,25,10,33,1136,1527,718,645,326,256,220,113,3900,3526,1041,3.00462249614792,3.4738916256157637,215,902,113,68,1781,1298,483,1059,239,18,36,389,1493,160,128,939,34,128,117,111,11,391,582,375,429,12,172,496,777,320,26,59,86,231,350,287,282,80,27,33538,0,0,6,42,31,17,6,0,0,0,13,7,39,128,111,51,10,0,0,0,0,33,72,83,110,6,27,6,0,8,42,23,27,62,50,0,0,10,6,27,44,42,33,14,0,11,8,19,29,32,7,20,0,0,9,28,40,19,20,0,0,0,0,886,2385,1912,554,5080,123,1408,5080,123,1664,206,6,299,33,91,85,86,231,350,287,282,80,27,0,89,302,213,369,206,90,79,429]
["Roxbury",5075,"65700",7656.67,188.17,95,248,67,87,124,124,248,0,0,0,0,0,52,29,37,54,31,20,16,9,248,221,0,2.8505747126436782,3.2985074626865671,13,59,8,7,95,87,8,76,11,0,0,4,80,6,9,66,3,9,7,3,1,8,38,39,19,3,4,36,41,20,0,5,2,12,19,28,26,0,2,40500,0,0,0,0,0,0,0,0,0,0,0,0,2,3,7,5,0,0,0,3,0,3,8,8,15,0,0,0,0,0,0,4,4,4,0,2,0,2,2,0,2,5,2,0,0,0,0,0,2,2,4,0,0,0,0,0,0,5,0,0,0,0,0,54,192,154,34,275,5,208,275,5,126,20,3,0,0,18,5,2,12,19,28,26,0,2,0,2,6,14,24,7,16,16,19]
["Stoddard",5080,"73700",32588.15,1361.73,890,622,163,251,319,303,614,1,5,2,0,2,124,75,121,100,68,64,47,23,622,493,0,2.4780876494023905,3.0245398773006134,58,138,25,30,890,251,639,215,36,1,1,626,836,12,42,203,3,42,28,5,3,111,359,254,171,6,110,356,273,150,8,15,11,35,61,50,33,9,0,31705,1,2,0,0,2,1,0,2,0,1,0,0,6,16,20,6,0,0,5,4,1,6,18,18,6,3,0,1,0,3,10,7,4,8,2,0,0,1,1,4,7,5,10,2,0,0,4,6,9,3,2,3,0,0,0,4,0,0,8,0,0,0,0,80,399,308,70,589,26,237,589,26,253,54,0,4,1,22,23,11,35,61,50,33,9,0,0,9,102,115,244,153,75,26,171]
["Sullivan",5085,"74900",11867.99,116.89,283,706,184,245,340,366,704,2,0,0,0,1,170,84,122,134,74,53,46,23,706,620,0,2.8816326530612244,3.3695652173913042,43,163,21,18,283,245,38,210,35,5,3,11,216,19,48,175,9,48,15,8,12,60,85,55,70,5,15,97,119,34,3,26,10,52,49,66,38,5,6,31083,0,0,0,2,0,2,0,0,0,0,5,5,11,16,18,5,0,0,0,0,3,16,15,20,17,0,0,0,2,2,2,4,16,6,3,2,0,0,0,8,4,10,4,2,4,0,14,0,2,10,0,3,0,0,3,5,0,11,0,0,3,0,0,133,452,322,78,658,16,352,658,16,315,22,5,5,5,14,29,10,52,49,66,38,5,6,0,20,40,20,65,25,22,8,70]
["Surry",5090,"75300",10042.26,198.65,262,667,202,246,337,330,665,0,2,0,0,0,137,61,95,128,96,73,54,23,667,609,0,2.7113821138211383,3.0148514851485149,32,186,16,12,262,246,16,227,19,0,3,7,233,19,10,210,10,10,10,6,3,21,91,77,63,0,16,64,117,55,5,13,9,34,34,64,60,8,13,41364,0,0,0,0,0,2,0,0,0,0,0,2,9,8,20,12,0,3,2,2,0,7,10,14,17,4,2,0,0,0,2,9,14,11,2,5,0,2,2,6,3,8,14,2,2,2,6,5,8,2,4,3,0,1,1,3,0,2,2,2,3,0,0,113,466,414,119,665,11,371,665,11,266,34,3,8,2,18,18,9,34,34,64,60,8,10,3,11,10,22,69,31,27,19,63]
["Swanzey",5095,"75700",28761.360000000001,250.34,2582,6236,1764,2384,3044,3192,6212,8,1,13,2,16,1327,770,996,1078,680,603,455,327,6227,5406,9,2.611996644295302,3.064625850340136,473,1497,267,147,2582,2384,198,1803,581,36,42,86,1783,534,265,1510,85,265,137,408,36,465,611,841,665,43,288,799,1033,419,105,218,201,428,397,500,340,98,72,29747,13,0,15,38,18,0,10,0,0,9,28,0,62,124,165,38,30,15,11,18,15,73,104,206,119,20,25,6,15,8,83,50,66,111,21,8,23,16,46,77,43,56,39,27,8,8,44,72,76,26,7,23,0,16,35,97,45,19,32,0,0,0,0,1058,4139,3264,757,6151,85,3578,6151,85,2613,349,0,50,22,99,323,201,428,397,500,340,98,49,23,96,369,255,356,409,285,147,665]
["Troy",5100,"77380",11172.56,101.68,867,2097,565,793,1028,1069,2073,2,11,4,7,16,530,271,393,327,225,117,142,92,2097,1804,0,2.6443883984867593,3.1929203539823008,182,453,112,46,867,793,74,538,255,22,6,16,497,244,126,416,32,126,45,182,28,125,171,143,431,13,116,270,351,120,25,57,96,166,143,196,95,10,5,29511,0,4,6,21,14,7,0,0,0,3,6,16,40,26,72,25,0,0,2,3,3,41,55,56,25,2,0,0,2,5,18,38,42,23,6,3,5,2,5,13,6,9,15,0,0,4,21,34,22,4,10,5,2,2,11,19,27,11,0,0,2,0,0,370,1300,946,192,2043,48,1129,2043,48,773,108,5,68,7,45,82,96,166,143,196,95,10,5,0,52,73,34,137,75,36,32,431]
["Walpole",5105,"78420",22833.91,635.54999999999995,1465,3210,937,1323,1550,1660,3187,3,5,9,6,10,615,350,500,473,345,370,318,239,3210,2755,0,2.4263038548752833,2.9402347918890075,321,792,145,65,1465,1323,142,946,377,17,15,45,1021,364,80,839,65,80,103,246,28,98,299,390,673,27,139,386,559,349,37,99,133,343,204,263,176,55,54,27679,0,0,6,28,14,8,0,0,0,9,7,7,84,53,43,37,9,0,5,11,27,38,62,75,41,7,6,4,0,0,41,18,63,54,8,6,9,0,0,57,34,15,28,14,34,0,38,59,43,15,16,16,17,8,10,43,34,52,8,43,0,0,0,438,2269,1988,677,3143,74,982,3143,74,1306,104,5,53,9,69,136,133,343,204,263,176,55,48,6,21,77,57,242,162,119,109,673]
["Westmoreland",5110,"82660",22986.86,590.59,573,1596,399,502,797,799,1578,7,6,5,0,7,292,166,231,290,170,169,115,163,1379,1245,217,2.7470119521912348,3.1203007518796992,76,358,41,27,573,502,71,441,61,3,16,37,529,22,22,426,8,22,45,12,4,53,208,112,200,4,48,131,271,119,11,22,43,75,79,85,120,57,13,38583,0,0,0,2,3,0,0,0,0,4,3,2,20,22,12,21,8,0,2,0,3,10,18,29,50,23,5,3,0,3,8,11,24,20,16,7,0,3,12,24,11,12,22,7,1,2,11,11,8,14,5,6,3,0,0,5,12,3,0,3,1,0,0,243,1138,907,283,1566,30,671,1566,30,601,73,0,52,6,11,33,43,75,79,85,120,57,13,0,12,41,57,151,41,36,35,200]
["Winchester",5115,"85540",35183.980000000003,371.67,1673,4038,1058,1454,1989,2049,3987,13,18,20,0,16,958,541,652,573,412,350,303,249,3970,3436,68,2.7303988995873452,3.2476370510396975,294,821,237,102,1673,1454,219,1049,405,18,28,107,1007,305,361,742,48,361,109,226,70,282,548,315,482,8,237,425,708,249,85,144,131,263,383,226,175,32,21,28196,0,7,0,24,40,0,0,0,0,14,19,23,26,123,54,15,0,7,21,14,29,56,72,53,65,0,7,17,24,0,49,66,69,54,26,0,13,10,13,37,30,20,41,6,7,20,42,27,46,43,13,0,0,0,0,28,39,25,9,17,0,0,0,719,2564,1747,260,3934,130,1943,3934,130,1453,285,0,30,22,44,229,131,263,383,226,175,32,21,0,31,251,242,306,151,72,92,482]
[]
[]
["Census 1990 Data -    Query Name:  CountySTF1Qry1"]
["NAME","COUSUBFP","Census_Cnty_Code","FIPS","LandAcres","WaterAcres","HousingUnits90Cen","P01Persons90Cen","P02Families90Cen","P03Households90cen","P05MalePop90cen","P05FemalePop90cen","P06WhitePop","P06BlackPop","P06AmerIndianPop","P06AsianPIPop","P06OtherRacePop","P08HispanicOrPop","P11AgeUnder15_90cen","P11Age15to24_90cen","P11Age25to34_90cen","P11Age35to44_90cen","P11Age45to54_90cen","P11Age55to64_90cen","P11Age65to74_90cen","P11Age75andOver_90cen","P15PersonsInHH90cen","P15PersonsInFamHH90cen","P15PersonsInGC","PersonsPerHH90cen","PersonsPerFam90Cen","P16SinglePersonHH90cen","P16MarriedCoupleHH90cen","P16SingleParentHH90cen","P16NonFamilyHH90cen","H01TotalHousingUnits","H02OccupiedHousingUnits","H02VacantHousingUnits","H03OwnerOccHU","H03RenterOccHU","H05VacantForRent90","H05VacantForSale90","H05VacantSeasonalRec","H23OOHUVal<15k","H23OOHUVal15to19k","H23OOHUVal20to24k","H23OOHUVal25to29k","H23OOHUVal30to34k","H23OOHUVal35to39k","H23OOHUVal40to44k","H23OOHUVal45to49k","H23OOHUVal50to59k","H23OOHUVal60to74k","H23OOHUVal75to99k","H23OOHUVal100to124k","H23OOHUVal125to149k","H23OOHUVal150to174k","H23OOHUVal175to199k","H23OOHUVal200to249k","H23OOHUVal250to299k","H23OOHUVal300to399k","H23OOHUVal400to499k","H23OOHUVal500kOrMore","H23BOOHUMedVal","H41SingFamHU90cen","H41MultiFamHU90cen","H41MobileHom90cen","H43SingFamOwnHU90cen","H43MultiFamOwnHU90cen","H43MobileHomOwnHU90cen","H43SingFamRntrHU90cen","H43MultiFamRntrHU90cen","H43MobileHomRntrHU90cen","H41HU1UnitDet","H41HU1UnitAtt","H41HU2Unit","H41HU3to4Unit","H41HU5to9Unit","H41HU10to19Unit","H41HU20to49Unit","H41HU50PlusUnit","H41HUMobilH","H41HUOther"]
["Alstead",301,5005,"00820",24943.55,267.3,843,1721,478,654,850,871,1713,1,4,3,0,8,397,185,293,312,188,152,122,72,1721,1486,0,2.6314984709480123,3.1087866108786613,128,407,71,48,843,654,189,526,128,8,8,135,2,0,6,3,4,5,6,10,22,31,58,44,28,22,12,6,1,2,0,1,93300,644,73,126,430,14,82,58,49,21,644,7,24,26,16,0,0,0,117,9]
["Chesterfield",302,5010,"12260",29178,1249.74,1527,3112,887,1186,1573,1539,3093,1,4,11,3,21,639,316,487,607,432,318,190,123,3099,2717,13,2.6129848229342327,3.0631341600901916,227,796,91,72,1527,1186,341,972,214,14,17,262,1,0,0,1,1,1,1,2,11,34,111,141,110,97,42,55,33,18,11,18,134100,1269,184,74,882,45,45,102,102,10,1269,47,77,39,13,8,0,0,57,17]
["Dublin",303,5015,"19140",17852.14,700.89,651,1474,408,521,749,725,1451,4,6,10,3,10,339,151,215,266,178,160,99,66,1385,1250,89,2.6583493282149711,3.0637254901960786,96,368,40,17,651,521,130,401,120,5,10,94,0,0,0,1,1,0,1,2,8,12,29,36,34,41,29,28,11,11,6,4,151800,549,68,34,368,23,10,66,36,18,549,17,41,10,0,0,0,0,16,18]
["Fitzwilliam",304,5020,"26500",22158.29,901.46,1031,2011,574,751,1011,1000,1998,9,3,1,0,6,466,182,354,348,261,155,137,108,2011,1775,0,2.6777629826897469,3.0923344947735192,132,495,79,45,1031,751,280,639,112,16,10,222,1,0,2,1,4,2,3,3,14,28,87,122,51,36,22,19,6,2,0,0,111600,833,79,119,552,23,64,59,33,20,833,15,35,17,12,0,0,0,109,10]
["Gilsum",305,5025,"29220",10668.06,13.8,320,745,207,276,388,357,743,0,2,0,0,0,158,82,135,139,75,76,51,29,745,638,0,2.6992753623188408,3.0821256038647342,46,172,35,23,320,276,44,243,33,3,2,25,1,2,1,3,3,2,4,5,8,21,41,26,13,11,2,2,0,0,0,0,88700,274,15,31,217,5,21,17,10,6,274,1,14,0,0,0,0,0,31,0]
["Harrisville",306,5030,"34420",11976.77,968.7,588,981,260,345,485,496,974,1,3,3,0,5,235,96,164,191,107,79,74,35,933,822,48,2.7043478260869565,3.1615384615384614,62,229,31,23,588,345,243,258,87,1,4,207,0,0,0,0,1,1,0,3,1,10,25,36,31,23,11,16,7,4,0,1,131500,517,32,39,236,4,18,55,25,7,517,3,18,6,5,0,0,0,32,7]
["Hinsdale",307,5035,"36660",13255.45,1241.76,1655,3936,1091,1560,1914,2022,3888,16,9,20,3,12,876,473,691,581,444,338,322,211,3936,3376,0,2.523076923076923,3.094408799266728,395,867,224,74,1655,1560,95,1148,412,20,28,19,2,0,1,6,3,5,8,9,22,91,317,125,53,19,10,5,1,0,1,0,90100,880,371,404,770,51,327,62,300,50,880,6,92,80,170,23,0,0,395,9]
["Jaffrey",308,5040,"38500",24580.12,1128.4100000000001,2426,5361,1463,2094,2584,2777,5296,14,15,36,0,23,1204,662,851,828,511,464,460,381,5308,4544,53,2.5348615090735436,3.1059466848940533,521,1208,255,110,2426,2094,332,1363,731,70,39,173,2,0,2,2,5,4,5,4,20,57,215,277,160,88,39,58,18,12,2,1,115300,1539,721,166,1161,88,114,155,553,23,1539,40,147,142,231,86,75,0,145,21]
["Keene",309,5045,"39300",23714.32,153.1,8841,22430,5327,8391,10327,12103,22167,62,42,133,26,132,3956,4993,3221,3109,2071,1823,1720,1537,20298,16164,2132,2.4190203789774758,3.0343532945372629,2296,4249,1078,768,8841,8391,450,4874,3517,203,101,29,5,2,3,0,3,7,9,9,63,170,1022,1054,592,306,146,168,73,33,8,7,113000,4327,3998,516,3887,580,407,318,3131,68,4327,213,1060,889,641,662,378,155,415,101]
["Marlborough",310,5050,"45460",13061.48,150.56,856,1927,535,745,925,1002,1918,3,1,4,1,3,412,227,339,319,180,178,151,121,1911,1652,16,2.5651006711409394,3.0878504672897198,167,451,84,43,856,745,111,555,190,22,23,43,2,1,0,0,0,1,3,3,14,40,120,95,41,27,7,12,4,0,0,1,100400,538,260,58,447,62,46,36,145,9,538,42,93,51,29,9,36,0,41,17]
["Marlow",311,5055,"45700",16656.900000000001,264.66000000000003,364,650,188,243,329,321,650,0,0,0,0,5,143,67,116,120,77,65,36,26,650,578,0,2.6748971193415638,3.0744680851063828,40,170,18,15,364,243,121,219,24,9,6,84,2,2,2,0,5,1,4,4,11,10,34,18,7,6,1,3,0,0,0,0,85300,306,10,48,190,1,28,18,2,4,306,4,6,0,0,0,0,0,44,4]
["Nelson",312,5060,"50580",14019.13,879.02,379,535,136,200,258,277,535,0,0,0,0,2,129,59,92,103,62,39,28,23,535,456,0,2.6749999999999998,3.3529411764705883,51,116,20,13,379,200,179,164,36,4,1,154,1,0,0,1,5,1,3,6,3,5,17,8,10,5,6,5,1,3,0,0,97100,327,29,23,149,8,7,20,7,9,327,3,19,7,0,0,0,0,12,11]
["Richmond",313,5065,"64420",24027.85,124.42,398,877,247,307,441,436,873,0,1,1,2,6,204,98,136,174,114,62,60,29,877,787,0,2.8566775244299674,3.1862348178137654,40,207,40,20,398,307,91,289,18,1,10,57,0,0,0,5,0,2,1,2,11,13,40,27,22,21,14,11,1,0,0,0,110200,371,10,17,272,8,9,15,1,2,371,4,5,1,0,0,0,0,15,2]
["Rindge",314,5070,"64580",23724.9,1743.96,1781,4941,1015,1298,2512,2429,4837,60,9,25,10,33,1136,1527,718,645,326,256,220,113,3900,3526,1041,3.00462249614792,3.4738916256157637,215,902,113,68,1781,1298,483,1059,239,18,36,389,1,0,1,0,0,4,2,2,5,31,71,209,202,103,50,37,22,12,4,0,131400,1493,160,128,939,34,86,117,111,11,1493,14,75,17,30,0,24,0,103,25]
["Roxbury",315,5075,"65700",7656.67,188.17,95,248,67,87,124,124,248,0,0,0,0,0,52,29,37,54,31,20,16,9,248,221,0,2.8505747126436782,3.2985074626865671,13,59,8,7,95,87,8,76,11,0,0,4,0,0,0,0,0,0,0,3,0,4,18,7,7,1,1,3,1,0,0,0,96500,80,6,9,66,3,7,7,3,1,80,4,2,0,0,0,0,0,9,0]
["Stoddard",316,5080,"73700",32588.15,1361.73,890,622,163,251,319,303,614,1,5,2,0,2,124,75,121,100,68,64,47,23,622,493,0,2.4780876494023905,3.0245398773006134,58,138,25,30,890,251,639,215,36,1,1,626,4,2,2,0,1,3,0,1,4,18,36,17,21,13,6,8,6,3,2,0,103700,836,12,42,203,3,9,28,5,3,836,5,7,0,0,0,0,0,39,3]
["Sullivan",317,5085,"74900",11867.99,116.89,283,706,184,245,340,366,704,2,0,0,0,1,170,84,122,134,74,53,46,23,706,620,0,2.8816326530612244,3.3695652173913042,43,163,21,18,283,245,38,210,35,5,3,11,1,1,0,0,3,4,2,0,7,10,30,14,17,4,2,2,0,0,0,0,92100,216,19,48,175,9,26,15,8,12,216,1,8,10,0,0,0,0,48,0]
["Surry",318,5090,"75300",10042.26,198.65,262,667,202,246,337,330,665,0,2,0,0,0,137,61,95,128,96,73,54,23,667,609,0,2.7113821138211383,3.0148514851485149,32,186,16,12,262,246,16,227,19,0,3,7,0,0,1,0,1,1,0,0,6,3,28,43,28,26,11,8,3,0,0,0,123000,233,19,10,210,10,7,10,6,3,233,5,14,0,0,0,0,0,10,0]
["Swanzey",319,5095,"75700",28761.360000000001,250.34,2582,6236,1764,2384,3044,3192,6212,8,1,13,2,16,1327,770,996,1078,680,603,455,327,6227,5406,9,2.611996644295302,3.064625850340136,473,1497,267,147,2582,2384,198,1803,581,36,42,86,2,5,5,4,3,4,10,18,53,121,329,324,196,106,64,45,13,10,2,0,107900,1783,534,265,1510,85,208,137,408,36,1783,85,128,80,130,111,0,0,245,20]
["Troy",320,5100,"77380",11172.56,101.68,867,2097,565,793,1028,1069,2073,2,11,4,7,16,530,271,393,327,225,117,142,92,2097,1804,0,2.6443883984867593,3.1929203539823008,182,453,112,46,867,793,74,538,255,22,6,16,3,1,2,5,3,6,6,4,16,28,135,76,27,13,6,4,0,0,0,2,92500,497,244,126,416,32,90,45,182,28,497,6,79,97,62,0,0,0,117,9]
["Walpole",321,5105,"78420",22833.91,635.54999999999995,1465,3210,937,1323,1550,1660,3187,3,5,9,6,10,615,350,500,473,345,370,318,239,3210,2755,0,2.4263038548752833,2.9402347918890075,321,792,145,65,1465,1323,142,946,377,17,15,45,2,2,4,2,11,4,21,10,26,65,130,114,88,62,38,39,24,14,5,1,111800,1021,364,80,839,65,42,103,246,28,1021,16,157,100,56,35,0,0,49,31]
["Westmoreland",322,5110,"82660",22986.86,590.59,573,1596,399,502,797,799,1578,7,6,5,0,7,292,166,231,290,170,169,115,163,1379,1245,217,2.7470119521912348,3.1203007518796992,76,358,41,27,573,502,71,441,61,3,16,37,0,0,0,0,1,1,0,1,2,14,44,69,51,28,18,25,9,3,0,0,125500,529,22,22,426,8,7,45,12,4,529,7,15,0,0,0,0,0,7,15]
["Winchester",323,5115,"85540",35183.980000000003,371.67,1673,4038,1058,1454,1989,2049,3987,13,18,20,0,16,958,541,652,573,412,350,303,249,3970,3436,68,2.7303988995873452,3.2476370510396975,294,821,237,102,1673,1454,219,1049,405,18,28,107,5,5,5,10,8,14,14,10,32,74,234,97,38,23,4,5,2,1,0,0,87100,1007,305,361,742,48,259,109,226,70,1007,11,128,103,60,3,0,0,352,9]
[]
[]
[]
["Census 1990 Data -          Query Name: CountySTF3Qry1"]
[]
["NAME","FIPS","COUSUBFP","LandAcres","WaterAcres","HousingUnits90Cen","P01Persons90Cen","P02Families90Cen","P03Households90cen","H25HU<5yrs90cen","H25HU5to20yrs90cen","H25HU20to50yrs90cen","H25HU>50yrs90cen","H31Units0Bedroom90cen","H31Units1Bedroom90cen","H31Units2Bedroom90cen","H31Units3Bedroom90cen","H31Units4Bedroom90cen","H31Units5+Bedroom90cen","P80HI<5K","P80HI5Kto10K","P80HI10Kto15K","P80HI15Kto25K","P80HI25Kto35K","P80HI35Kto50K","P80HI50Kto75K","P80HI75Kto100K","P80HI>100K","P80AMedHI","P86HH<25HI<5K","P86HH<25HI5Kto10K","P86HH<25HI10Kto15K","P86HH<25HI15Kto25K","P86HH<25HI25Kto35K","P86HH<25HI35Kto50K","P86HH<25HI50Kto75K","P86HH<25HI75Kto100K","P86HH<25HI>100K","P86HH25to34HI<5K","P86HH25to34HI5Kto10K","P86HH25to34HI10Kto15K","P86HH25to34HI15Kto25K","P86HH25to34HI25Kto35K","P86HH25to34HI35Kto50K","P86HH25to34HI50Kto75K","P86HH25to34HI75Kto100K","P86HH25to34HI>100K","P86HH35to44HI<5K","P86HH35to44HI5Kto10K","P86HH35to44HI10Kto15K","P86HH35to44HI15Kto25K","P86HH35to44HI25Kto35K","P86HH35to44HI35Kto50K","P86HH35to44HI50Kto75K","P86HH35to44HI75Kto100K","P86HH35to44HI>100K","P86HH45to54HI<5K","P86HH45to54HI5Kto10K","P86HH45to54HI10Kto15K","P86HH45to54HI15Kto25K","P86HH45to54HI25Kto35K","P86HH45to54HI35Kto50K","P86HH45to54HI50Kto75K","P86HH45to54HI75Kto100K","P86HH45to54HI>100K","P86HH55to64HI<5K","P86HH55to64HI5Kto10K","P86HH55to64HI10Kto15K","P86HH55to64HI15Kto25K","P86HH55to64HI25Kto35K","P86HH55to64HI35Kto50K","P86HH55to64HI50Kto75K","P86HH55to64HI75Kto100K","P86HH55to64HI>100K","P86HH65to74HI<5K","P86HH65to74HI5Kto10K","P86HH65to74HI10Kto15K","P86HH65to74HI15Kto25K","P86HH65to74HI25Kto35K","P86HH65to74HI35Kto50K","P86HH65to74HI50Kto75K","P86HH65to74HI75Kto100K","P86HH65to74HI>100K","P86HH>75HI<5K","P86HH>75HI5Kto10K","P86HH>75HI10Kto15K","P86HH>75HI15Kto25K","P86HH>75HI25Kto35K","P86HH>75HI35Kto50K","P86HH>75HI50Kto75K","P86HH>75HI75Kto100K","P86HH>75HI>100K","P54SchlEnrlPrePrim","P54SchlEnrlElemThrHS","P54SchlEnrlCollege","P54NotEnrlInSch","P57Pop25andOver","P57LessThan9thGrade","P579thto12thNoDip","P57HSGrad","P57SomeCollege","P57AssocDeg","P57BachelDeg","P57GradorProfDeg","P57HSGradorHigher","P57CollGradorHigher","P42NativePop","P42ForeignBornPop","P42BornStateOfRes","P37NativePop2","P37ForeignBornPop2","P49DroveAlone","P49CarPooled","P49PublicTranspt","P49Walked","P49OtherMeans","P49WorkedAtHome","P80HHInc<10K","P80HHInc10to15K","P80HHInc15to25K","P80HHInc25to35K","P80HHInc35to50K","P80HHInc50to75K","P80HHInc75to100K","P80HHInc100to150K","P80HHInc>150K","H25YearStBlt89to90","H25YearStBlt85to88","H25YearStBlt80to84","H25YearStBlt70to79","H25YearStBlt60to69","H25YearStBlt50to59","H25YearStBlt40to49","H25YearStBlt39earlier","P107FamInc<10K","P107FamInc10to15K","P107FamInc15to25K","P107FamInc25to35K","P107FamInc35to50K","P107FamInc50to75K","P107FamInc75to100K","P107FamInc100to150K","P107FamInc>150K","P107AMedFamInc","P110NonFamInc<10K","P110NonFamInc10to15K","P110NonFamInc15to25K","P110NonFamInc25to35K","P110NonFamInc35to50K","P110NonFamInc50to75K","P110NonFamInc75to100K","P110NonFamInc100to150K","P110NonFamInc>150K","P110AMedNonFamInc","H16HU1Room","H16HU2Room","H16HU3Room","H16HU4Room","H16HU5Room","H16HU6Room","H16HU7Room","H16HU8Room","H16HU9+Room","H43GrossRnt<100","H43GrossRnt100to149","H43GrossRnt150to199","H43GrossRnt200to249","H43GrossRnt250to299","H43GrossRnt300to349","H43GrossRnt350to399","H43GrossRnt400to449","H43GrossRnt450to499","H43GrossRnt500to549","H43GrossRnt550to599","H43GrossRnt600to649","H43GrossRnt650to699","H43GrossRnt700to749","H43GrossRnt750to999","H43GrossRnt1000Plus","H43NoCashRent","H43MedGrossRent","H51GrossRnt<20PctHHInc","H51GrossRnt20to24PctHHInc","H51GrossRnt25to29PctHHInc","H51GrossRnt30to34PctHHInc","H51GrossRnt35PctOrMoreHHInc","H51GrossRntAsPctHHIncNotComp","H52HUwMtgMoOwnCst<200","H52HUwMtgMoOwnCst200to299","H52HUwMtgMoOwnCst300to399","H52HUwMtgMoOwnCst400to499","H52HUwMtgMoOwnCst500to599","H52HUwMtgMoOwnCst600to699","H52HUwMtgMoOwnCst700to799","H52HUwMtgMoOwnCst800to899","H52HUwMtgMoOwnCst900to999","H52HUwMtgMoOwnCst1000to1249","H52HUwMtgMoOwnCst1250to1499","H52HUwMtgMoOwnCst1500to1999","H52HUwMtgMoOwnCst2000More","H52HUwNoMtgMoOwnCst<100","H52HUwNoMtgMoOwnCst100to149","H52HUwNoMtgMoOwnCst150to199","H52HUwNoMtgMoOwnCst200to249","H52HUwNoMtgMoOwnCst250to299","H52HUwNoMtgMoOwnCst300to349","H52HUwNoMtgMoOwnCst350to399","H52HUwNoMtgMoOwnCst400More","H52AMedMoOwnCstWMortg","H52AMedMoOwnCstWNoMortg","H58HUwMtgMOC<20pHHInc","H58HUwMtgMOC20to24pHHInc","H58HUwMtgMOC25to29pHHInc","H58HUwMtgMOC30to34pHHInc","H58wMtgMOC>35pHHInc","H58HUwMtgMOCNotComp","H58HUwNoMtgMOC<20pHHInc","H58HUwNoMtgMOC20to24pHHInc","H58HUwNoMtgMOC25to29pHHInc","H58HUwNoMtgMOC30to34pHHInc","H58wNoMtgMOC>35pHHInc","H58HUwNoMtgMOCNotComp","H61OOHUVal<15k","H61OOHUVal15to19k","H61OOHUVal20to24k","H61OOHUVal25to29k","H61OOHUVal30to34k","H61OOHUVal35to39k","H61OOHUVal40to44k","H61OOHUVal45to49k","H61OOHUVal50to59k","H61OOHUVal60to74k","H61OOHUVal75to99k","H61OOHUVal100to124k","H61OOHUVal125to149k","H61OOHUVal150to174k","H61OOHUVal175to199k","H61OOHUVal200to249k","H61OOHUVal250to299k","H61OOHUVal300to399k","H61OOHUVal400to499k","H61OOHUVal500kOrMore","H61aOOHUMedVal"]
[]
[]
[]
[]
[]
[]
[]
[]
[]
[]
[]
[]
[]
[]
[]
["Other Demo Data -             Query Name: QryAllTowns-ACSDemographicSheet",null,null,"2023-01-25"]
["TOWN_NAME","FIPS","TOWNCNTY","COUSUB","POP80","POP90CDCEN","POP2000CEN","POP2010CEN","POP2020CEN","POP2025-Proj","POP2030-Proj","POP2035-Proj","SF80","MF80","MH80","SF81","MF81","MH81","SF82","MF82","MH82","SF83","MF83","MH83","SF84_OSP","MF84_OSP","MH84_OSP","SF85_OSP","MF85_OSP","MH85_OSP","SF86_OSP","MF86_OSP","MH86_OSP","SF87_OSP","MF87_OSP","MH87_OSP","SF88_OSP","MF88_OSP","MH88_OSP","SF89_OSP","MF89_OSP","MH89_OSP","SF90_OSP","MF90_OSP","MH90_OSP","SF91_OSP","MF91_OSP","MH91_OSP","SF92_OSP","MF92_OSP","MH92_OSP","SF93_OSP","MF93_OSP","MH93_OSP","SF94_OSP","MF94_OSP","MH94_OSP","SF95_OSP","MF95_OSP","MH95_OSP","SF96_OSP","MF96_OSP","MH96_OSP","SF97_OSP","MF97_OSP","MH97_OSP","SF98_OSP","MF98_OSP","MH98_OSP","SF99_OSP","MF99_OSP","MH99_OSP","SF00_OSP","MF00_OSP","MH00_OSP","SF01_OSP","MF01_OSP","MH01_OSP","SF02_OSP","MF02_OSP","MH02_OSP","SF03_OSP","MF03_OSP","MH03_OSP","SF04_OSP","MF04_OSP","MH04_OSP","SF05_OSP","MF05_OSP","MH05_OSP","SF06_OSP","MF06_OSP","MH06_OSP","SF07_OSP","MF07_OSP","MH07_OSP","SF08_OSP","MF08_OSP","MH08_OSP","SF09_OSP","MF09_OSP","MH09_OSP","SF10_OSP","MF10_OSP","MH10_OSP","SF11_OSP","MF11_OSP","MH11_OSP","SF12_OSP","MF12_OSP","MH12_OSP","SF13_OSP","MF13_OSP","MH13_OSP","SF14_OSP","MF14_OSP","MH14_OSP","SF15_OSP","MF15_OSP","MH15_OSP","SF16_OSP","MF16_OSP","MH16_OSP","SF17_OSP","MF17_OSP","MH17_OSP","SF18_OSP","MF18_OSP","MH18_OSP","SF19_OSP","MF19_OSP","MH19_OSP","SF20_OSP","MF20_OSP","MH20_OSP","SF20 Census_OSP","MF20 Census OSP","MH20 Census_OSP","SF21_OSP","MF21_OSP","MH21_OSP","COMMENTS","CNTY_CODE"]
["Alstead",5005,301,"00820",1461,1721,1944,1937,1864,1892,1905,1899,4,0,2,5,0,1,0,0,0,6,0,2,8,0,5,6,0,7,6,0,3,0,0,0,21,0,-3,8,0,6,6,3,0,9,0,0,7,0,1,3,1,1,5,0,1,4,0,-3,5,0,2,4,0,0,10,0,2,2,0,0,7,0,0,5,1,0,12,0,0,4,0,0,8,0,0,-5,0,0,16,20,0,9,0,0,5,0,0,2,0,0,6,0,1,1,0,0,2,0,0,3,0,0,7,0,0,2,0,0,0,0,0,4,0,1,2,0,-2,6,0,0,-1,0,0,null,null,null,-1,3,0,"",3]
["Chesterfield",5010,302,"12260",2561,3112,3542,3604,3552,3609,3638,3626,19,0,0,15,0,2,8,0,3,12,0,4,22,0,4,25,0,3,40,0,4,43,0,0,44,36,-1,46,0,-1,18,0,1,19,0,1,14,0,3,16,0,0,19,0,2,16,0,1,12,0,1,9,0,0,18,0,0,21,0,0,19,1,0,13,0,0,28,13,0,36,0,0,16,0,4,29,0,0,12,0,0,4,0,0,1,0,0,3,0,0,4,0,0,5,0,0,4,0,0,3,0,0,6,0,0,1,0,0,10,9,0,9,13,0,4,6,0,8,0,0,4,0,0,null,null,null,13,0,0,"2003 Did not submit data to OEP. Used Census Data",3]
["Dublin",5015,303,"19140",1303,1474,1476,1597,1532,1557,1570,1565,6,0,0,3,0,1,5,0,1,13,0,0,4,0,0,22,0,0,17,0,0,13,0,0,15,0,0,12,0,0,6,0,6,3,0,0,6,0,0,3,0,0,6,0,0,4,0,0,5,0,0,5,0,0,13,0,0,3,0,1,3,0,0,9,0,2,8,1,0,15,0,0,5,0,0,4,0,0,15,0,0,8,0,0,5,0,0,1,0,0,0,0,0,0,0,0,0,0,0,0,0,0,-1,0,0,2,0,0,1,0,0,3,0,0,3,0,0,5,0,0,8,0,0,null,null,null,7,0,0,"",3]
["Fitzwilliam",5020,304,"26500",1795,2011,2141,2396,2351,2390,2409,2401,8,0,4,7,2,4,7,0,0,14,0,0,9,1,1,24,0,3,28,2,3,45,2,3,17,2,2,8,0,1,7,3,1,4,1,0,2,0,0,6,0,0,6,0,0,6,0,0,3,0,3,6,0,7,1,1,0,14,0,1,12,0,1,20,1,0,16,0,2,14,0,1,14,0,2,10,0,0,11,0,0,12,0,0,11,0,0,5,0,0,5,0,0,1,0,0,2,0,0,2,0,0,3,0,0,2,0,1,3,0,0,7,0,-1,4,0,0,1,1,0,8,0,0,null,null,null,11,0,0,"",3]
["Gilsum",5025,305,"29220",652,745,777,813,752,764,771,768,2,0,0,2,0,1,1,0,0,1,0,0,0,0,0,4,0,1,9,0,0,2,0,1,6,0,1,1,0,1,3,0,0,0,0,0,2,0,0,0,0,0,1,0,0,2,0,0,4,0,0,1,0,0,1,0,0,3,0,0,4,0,0,4,0,0,2,0,0,1,0,0,1,0,1,2,0,0,5,0,0,3,0,0,1,0,0,2,0,0,2,0,0,0,0,0,1,0,-1,1,0,0,2,0,0,2,0,0,2,0,0,2,0,0,0,0,0,2,2,0,0,0,0,null,null,null,0,0,0,"2000, 2001 Did not submit data to OEP. Used Census Data",3]
["Harrisville",5030,306,"34420",860,981,1075,961,984,999,1006,1003,4,0,0,12,0,0,4,0,1,0,0,0,4,0,0,10,0,0,8,0,0,10,0,1,6,0,0,4,0,0,6,0,0,0,0,0,9,0,0,3,0,0,4,2,0,3,0,0,5,0,0,7,0,0,3,0,0,10,0,0,5,0,0,7,2,-1,5,0,0,8,0,0,7,0,-1,5,0,0,3,0,0,5,0,0,4,0,0,0,0,1,5,0,-1,2,0,-1,0,0,0,0,0,0,-2,0,0,0,0,0,1,2,0,4,0,0,2,1,0,4,3,0,0,0,0,null,null,null,2,1,0,"2005 Did not submit data to OEP. Used Census Data",3]
["Hinsdale",5035,307,"36660",3631,3936,4082,4046,3948,4009,4039,4026,0,0,0,1,0,0,6,0,22,9,0,18,6,2,10,9,22,15,19,3,4,26,5,15,26,10,8,9,7,6,9,4,2,3,0,0,7,2,2,6,3,2,8,2,0,4,4,5,17,0,8,13,12,2,9,0,8,9,0,3,17,0,7,25,-6,1,8,0,2,6,5,16,2,0,14,10,0,22,6,-1,9,5,0,0,8,4,5,0,0,2,-1,0,0,-6,4,10,0,3,-2,0,-5,1,0,0,0,2,0,10,2,0,2,6,-1,-2,-1,0,4,-1,0,0,2,0,0,null,null,null,2,-9,4,"",3]
["Jaffrey",5040,308,"38500",4349,5361,5476,5457,5320,5404,5444,5427,26,0,10,19,0,5,10,0,0,32,0,0,40,2,1,70,15,2,38,28,0,23,11,16,51,3,7,14,0,4,9,-2,0,10,0,0,4,0,3,4,0,0,10,0,0,2,-12,0,7,0,2,1,0,1,12,0,0,19,0,0,19,0,0,16,0,1,37,0,2,45,0,1,23,0,0,19,0,0,19,0,0,13,0,0,4,0,0,4,0,0,1,0,0,2,0,0,3,-1,0,2,-6,0,4,0,-2,3,0,-1,8,0,0,7,2,0,2,2,0,6,0,-5,13,0,0,null,null,null,14,2,0,"",3]
["Keene",5045,309,"39300",21449,22430,22563,23409,23047,23424,23608,23530,65,18,5,39,0,5,13,56,5,37,157,5,30,157,5,36,84,12,97,30,10,92,45,3,122,28,3,34,13,0,12,99,0,5,-5,0,13,28,0,5,0,0,13,0,0,9,8,0,20,3,0,11,48,0,28,24,0,15,80,0,21,24,0,21,0,0,25,0,3,24,3,5,31,43,8,14,0,13,26,0,0,12,-2,13,8,8,4,6,22,1,-1,33,8,10,61,1,1,18,6,6,4,0,1,0,-1,3,4,7,1,51,4,-1,141,10,1,122,0,2,-1,0,6,1,3,null,null,null,3,3,5,"",3]
["Marlborough",5050,310,"45460",1846,1927,2009,2063,2096,2131,2148,2140,5,-6,3,6,0,0,2,0,1,3,2,1,10,0,1,12,30,1,7,0,0,15,0,-1,34,-2,1,20,0,0,5,0,0,15,0,0,6,0,0,7,8,0,4,4,0,2,6,0,2,0,0,6,0,0,1,1,0,4,0,4,7,0,0,8,0,2,11,0,0,4,1,0,8,6,1,6,1,2,4,1,1,0,0,0,0,0,0,0,2,0,2,0,0,2,0,0,1,0,0,1,24,0,1,0,2,0,0,11,2,0,0,2,0,1,0,0,0,1,0,0,1,0,-1,null,null,null,4,0,0,"",3]
["Marlow",5055,311,"45700",542,650,747,742,749,761,767,765,3,2,1,4,0,0,3,0,1,4,0,1,4,0,3,3,0,2,4,0,3,7,0,2,11,0,11,6,0,2,3,0,1,1,0,0,1,0,0,2,0,1,4,0,0,2,0,0,3,0,0,1,0,0,5,0,0,2,0,2,5,0,1,3,0,4,2,0,0,4,0,0,6,0,0,3,0,0,-1,0,0,2,0,0,0,0,0,3,0,0,3,0,0,1,0,0,0,0,0,1,0,0,0,0,0,0,0,0,0,0,0,1,0,0,2,0,0,1,0,0,1,0,0,null,null,null,1,0,0,"",3]
["Nelson",5060,312,"50580",442,535,634,729,629,639,644,642,0,0,0,4,0,0,3,0,0,3,0,0,3,0,0,4,0,1,5,0,0,3,0,0,9,0,0,2,0,-1,4,0,0,4,0,2,3,0,1,6,0,-1,4,0,0,3,0,0,2,0,0,7,0,0,5,0,0,5,0,0,3,1,2,4,0,2,3,0,0,2,0,1,7,0,0,8,0,0,4,0,1,2,0,1,2,0,0,0,0,0,0,0,0,0,0,0,0,0,1,1,0,0,0,0,1,0,0,0,-2,1,1,5,0,0,1,1,0,0,0,0,3,0,0,null,null,null,-1,1,0,"2005 Did not submit data to OEP. Used Census Data",3]
["Richmond",5065,313,"64420",518,877,1077,1155,1197,1217,1226,1222,6,0,2,4,0,0,0,0,2,14,0,0,8,0,1,15,0,2,23,0,1,17,1,0,12,0,3,17,0,3,9,0,1,4,2,0,9,0,0,6,0,0,2,0,1,5,0,0,3,2,0,5,0,0,12,0,0,11,2,0,7,0,0,4,0,0,8,0,1,4,2,1,7,0,0,5,0,1,3,0,0,4,0,0,5,0,-2,5,2,1,4,0,0,0,0,0,1,0,0,2,0,0,0,0,0,0,0,0,3,0,0,1,0,1,4,0,0,7,0,0,6,0,0,null,null,null,5,0,0,"",3]
["Rindge",5070,314,"64580",3375,4941,5451,6014,6476,6589,6645,6621,25,2,6,15,0,0,20,0,0,41,2,0,63,2,0,57,1,0,89,2,0,62,5,0,47,10,0,45,2,0,23,1,0,18,0,0,20,0,0,13,0,0,16,0,0,9,0,0,17,0,0,13,0,0,20,0,0,38,0,0,38,0,0,38,0,0,57,0,0,5,26,0,78,16,2,31,0,25,42,0,0,11,0,0,18,0,0,11,0,0,8,24,0,2,0,0,0,0,0,1,0,0,4,6,0,6,11,0,10,10,1,18,1,1,24,1,0,21,3,1,22,12,0,null,null,null,14,19,0,"2001 Did not submit data to OEP. Used Census Data",3]
["Roxbury",5075,315,"65700",190,248,237,229,220,224,225,225,0,0,0,2,0,0,3,0,0,0,0,0,0,0,0,2,0,0,2,0,0,3,0,0,5,0,0,0,0,0,3,0,0,2,0,0,1,0,0,1,0,0,0,0,0,0,0,0,0,0,0,0,0,0,0,0,0,0,0,0,1,0,0,0,0,0,0,0,0,1,0,0,3,1,0,1,0,0,2,0,1,0,0,0,0,0,0,1,0,0,0,0,0,0,0,0,0,0,0,0,0,0,0,0,0,0,0,0,0,0,0,0,0,0,-1,0,0,0,0,0,0,2,0,null,null,null,0,1,0,"",3]
["Stoddard",5080,316,"73700",482,622,928,1232,1374,1397,1408,1403,0,0,0,2,0,0,2,0,0,0,0,0,10,0,1,7,0,0,6,0,0,10,0,2,20,0,-1,12,0,-1,9,0,0,8,0,2,6,0,0,5,0,1,7,0,0,2,0,3,16,0,0,5,0,2,5,0,0,15,0,2,7,0,5,9,0,1,12,0,0,17,0,3,24,0,0,21,0,1,28,3,0,18,0,0,11,0,0,7,0,0,10,0,0,7,0,0,10,0,1,3,0,0,4,0,0,6,0,0,5,0,0,3,0,0,5,0,0,10,0,4,5,0,0,null,null,null,8,0,0,"",3]
["Sullivan",5085,317,"74900",585,706,746,677,658,668,672,670,3,0,1,0,0,0,0,0,0,0,0,0,3,0,2,5,0,1,6,0,2,5,0,0,14,0,0,3,0,2,3,0,2,0,0,1,2,0,1,1,0,0,0,0,0,0,0,0,1,0,1,2,2,0,4,2,0,1,0,0,4,0,0,0,0,0,2,0,0,-1,0,-1,1,0,1,4,0,0,3,1,0,3,0,0,1,0,1,0,0,0,1,0,0,1,0,0,1,0,0,3,0,0,3,0,0,2,0,0,0,0,0,1,0,0,1,1,0,1,0,0,3,0,0,null,null,null,3,0,0,"",3]
["Surry",5090,318,"75300",656,667,673,732,820,834,840,837,5,0,1,3,0,0,3,0,0,3,0,0,7,0,0,4,0,0,10,0,0,4,1,1,4,0,0,2,0,0,6,0,0,1,0,0,1,0,0,7,0,0,1,0,2,0,0,0,0,0,0,1,0,0,-1,0,0,3,0,1,4,0,0,9,0,0,12,0,0,5,0,0,7,0,0,2,0,1,5,0,0,0,0,0,2,1,0,2,0,0,3,0,0,1,0,0,2,0,0,1,0,0,1,0,0,0,0,0,1,1,0,3,0,0,4,0,0,3,0,0,1,0,0,null,null,null,1,0,0,"",3]
["Swanzey",5095,319,"75700",5183,6236,6800,7230,7270,7409,7477,7449,23,24,2,18,0,2,51,0,0,33,0,2,28,5,1,43,46,3,120,4,1,71,3,3,49,13,3,48,1,2,30,3,10,17,0,0,20,1,20,13,16,26,11,0,26,13,0,10,9,0,9,14,23,5,11,2,4,20,-7,4,18,0,6,21,0,4,20,16,2,23,30,-1,18,98,1,29,1,-2,14,10,-3,9,18,-2,5,-3,-3,9,41,-4,5,8,-4,7,6,0,4,6,-1,6,26,0,2,9,0,6,0,0,6,0,2,3,0,2,8,4,4,19,0,8,13,0,5,null,null,null,7,0,0,"",3]
["Troy",5100,320,"77380",2131,2097,1962,2145,2130,2165,2182,2175,3,0,5,4,0,1,3,0,5,5,0,2,0,0,0,10,2,4,16,7,5,14,0,5,10,22,0,8,0,0,3,1,-4,10,0,1,3,0,0,4,0,0,4,0,-2,3,0,0,2,0,0,1,0,-1,3,0,0,3,2,1,5,2,-3,2,2,0,8,0,2,9,4,1,5,0,1,15,3,0,4,0,0,1,2,0,2,0,0,2,0,2,5,0,0,3,0,0,0,0,0,1,0,0,0,1,-2,1,0,0,1,-3,2,0,1,-1,2,0,0,3,0,-3,1,0,1,null,null,null,5,0,0,"",3]
["Walpole",5105,321,"78420",3188,3210,3594,3734,3633,3692,3721,3708,11,6,0,10,0,0,12,0,0,14,0,0,12,2,1,10,0,0,19,0,1,17,0,2,17,0,0,13,0,3,10,0,0,6,0,1,11,0,2,8,0,2,4,0,1,12,0,1,11,1,3,13,0,0,10,0,0,18,0,3,7,0,0,11,0,2,11,1,2,13,0,2,7,3,10,12,1,1,12,0,0,3,0,1,4,0,0,1,1,0,8,1,0,3,0,0,3,0,0,2,0,0,-1,67,0,2,0,0,3,-10,0,4,1,-1,1,0,0,5,0,0,5,2,0,null,null,null,3,1,0,"",3]
["Westmoreland",5110,322,"82660",1452,1596,1747,1874,1706,1732,1745,1740,5,0,0,11,0,0,5,0,0,7,0,0,9,0,0,6,0,1,10,0,1,5,2,2,9,1,0,11,0,0,8,0,0,9,0,0,4,0,0,7,0,0,11,0,0,5,0,0,3,0,0,6,0,0,3,0,0,6,0,0,10,0,0,6,0,0,13,0,0,5,0,0,8,0,0,10,0,0,4,0,0,11,0,0,1,0,0,3,0,0,0,0,0,0,0,0,1,0,0,3,0,0,3,0,0,0,0,0,3,0,0,3,0,0,1,0,0,2,0,0,0,0,0,null,null,null,5,0,0,"",3]
["Winchester",5115,323,"85540",3465,4038,4144,4341,4150,4217,4249,4236,10,0,-3,12,0,0,5,0,0,12,1,2,15,4,3,12,0,15,23,0,6,27,0,5,26,2,8,56,1,13,19,2,4,7,1,3,4,8,3,7,4,2,0,0,0,7,0,18,4,0,15,7,0,14,7,3,4,3,4,5,5,3,12,13,2,-5,11,0,0,6,20,7,17,0,5,31,0,5,15,0,4,9,0,0,5,0,1,3,0,0,1,3,0,1,2,2,0,0,0,-1,0,0,3,2,2,0,2,1,1,0,-1,3,-1,1,4,0,0,5,1,0,5,0,0,null,null,null,5,8,0,"2002 Did not submit data to OEP. Used Census Data",3]
[]
[]
[]
["NH Employment Data","Query Name: DPQryEmploymentByCnty-Good-Serv-Total","Updated:","2023-10-24"]
[]
["AreaName","COUNTYCODE","TOTP & G2001","TOT2001","GOODPRO2001","SERVICEPROMAN2001","WAGEP & G2001","WAGETOT2001","WAGEGOODPRO2001","WAGESERVICEPRO2001","TOTP & G2002","TOT2002","GOODPRO2002","SERVICEPROMAN2002","WAGEP & G2002","WAGETOT2002","WAGEGOODPRO2002","WAGESERVICEPRO2002","TOTP & G2003","TOT2003","GOODPRO2003","SERVICEPROMAN2003","WAGEP & G2003","WAGETOT2003","WAGEGOODPRO2003","WAGESERVICEPRO2003","TOTP & G2004","TOT2004","GOODPRO2004","SERVICEPROMAN2004","WAGEP & G2004","WAGETOT2004","WAGEGOODPRO2004","WAGESERVICEPRO2004","TOTP & G2005","TOT2005","GOODPRO2005","SERVICEPROMAN2005","WAGEP & G2005","WAGETOT2005","WAGEGOODPRO2005","WAGESERVICEPRO2005","TOTP & G2006","TOT2006","GOODPRO2006","SERVICEPROMAN2006","WAGEP & G2006","WAGETOT2006","WAGEGOODPRO2006","WAGESERVICEPRO2006","TOTP & G2007","TOT2007","GOODPRO2007","SERVICEPROMAN2007","WAGEP & G2007","WAGETOT2007","WAGEGOODPRO2007","WAGESERVICEPRO2007","TOTP & G2008","TOT2008","GOODPRO2008","SERVICEPROMAN2008","WAGEP & G2008","WAGETOT2008","WAGEGOODPRO2008","WAGESERVICEPRO2008","TOTP & G2009","TOT2009","GOODPRO2009","SERVICEPROMAN2009","WAGEP & G2009","WAGETOT2009","WAGEGOODPRO2009","WAGESERVICEPRO2009","TOTP & G2010","TOT2010","GOODPRO2010","SERVICEPROMAN2010","WAGEP & G2010","WAGETOT2010","WAGEGOODPRO2010","WAGESERVICEPRO2010","TOTP & G2011","TOT2011","GOODPRO2011","SERVICEPROMAN2011","WAGEP & G2011","WAGETOT2011","WAGEGOODPRO2011","WAGESERVICEPRO2011","TOTP & G2012","TOT2012","GOODPRO2012","SERVICEPROMAN2012","WAGEP & G2012","WAGETOT2012","WAGEGOODPRO2012","WAGESERVICEPRO2012","TOTP & G2013","TOT2013","GOODPRO2013","SERVICEPROMAN2013","WAGEP & G2013","WAGETOT2013","WAGEGOODPRO2013","WAGESERVICEPRO2013","TOTP & G2014","TOT2014","GOODPRO2014","SERVICEPROMAN2014","WAGEP & G2014","WAGETOT2014","WAGEGOODPRO2014","WAGESERVICEPRO2014","TOTP & G2015","TOT2015","GOODPRO2015","SERVICEPROMAN2015","WAGEP & G2015","WAGETOT2015","WAGEGOODPRO2015","WAGESERVICEPRO2015","TOTP & G2016","TOT2016","GOODPRO2016","SERVICEPROMAN2016","WAGEP & G2016","WAGETOT2016","WAGEGOODPRO2016","WAGESERVICEPRO2016","TOTP & G2017","TOT2017","GOODPRO2017","SERVICEPROMAN2017","WAGEP & G2017","WAGETOT2017","WAGEGOODPRO2017","WAGESERVICEPRO2017","TOTP & G2018","TOT2018","GOODPRO2018","SERVICEPROMAN2018","WAGEP & G2018","WAGETOT2018","WAGEGOODPRO2018","WAGESERVICEPRO2018","TOTP & G2019","TOT2019","TOTGov2019","GOODPRO2019","SERVICEPROMAN2019","WAGEP & G2019","WAGETOT2019","WAGEGov2019","WAGEGOODPRO2019","WAGESERVICEPRO2019","TOTP & G2020","TOT2020","TOTGov2020","GOODPRO2020","SERVICEPROMAN2020","WAGEP & G2020","WAGETOT2020","WAGEGov2020","WAGEGOODPRO2020","WAGESERVICEPRO2020","TOTP & G2021","TOT2021","TOTGov2021","GOODPRO2021","SERVICEPROMAN2021","WAGEP & G2021","WAGETOT2021","WAGEGov2021","WAGEGOODPRO2021","WAGESERVICEPRO2021","TOTP & G2022","TOT2022","TOTGov2022","GOODPRO2022","SERVICEPROMAN2022","WAGEP & G2022","WAGETOT2022","WAGEGov2022","WAGEGOODPRO2022","WAGESERVICEPRO2022"]
["Alstead",3,196,168,86,82,450.27,484.67,557.22,408.81,202,174,81,93,433.76,464.76,518.78,417.57,198,169,79,89,446.95,475.84,537.52,421.11,192,166,81,85,497.05,525.14,554.94000000000005,496.66,182,161,76,85,479.74,480.41,581.28,390.31,161,143,73,71,499.45,498.15,584.21,409.65,159,137,72,65,499.57,496.32,575.30999999999995,408.49,148,127,72,55,558.54,551.75,591.22,500.31,137,118,63,55,561.03,549.63,572.91,522.77,151,128,65,64,555.14,557.32000000000005,547.5,567.27,155,131,70,61,596.09,609.20000000000005,578.78,643.9,178,152,66,86,645.69000000000005,670.6,620.41999999999996,708.91,220,146,74,72,659.7,610.19000000000005,602.26,618.41,236,155,72,83,673.07,648.12,644.08000000000004,651.64,231,151,71,81,696.35,684.87,639.46,724.79,226,145,74,71,747.36,759.75,697.47,825.18,212,133,72,62,722.79,719.34,661.51,786.3,234,139,69,70,690.28,743.86,674.42,812.32,245,149,96,72,77,690.73,733.35,625,662.73,799.83,259,163,96,74,90,718.5,753.86,658.12,698.67,799.05,261,161,100,76,84,788.18,895.86,615.22,695.5,1077.04,278,179,99,84,95,826,914,666,754,1056]
["Chesterfield",3,849,702,106,596,633.5,666.39,911.28,622.98,905,738,124,614,637.73,682.83,805.55,658.07,1106,949,235,714,688.46,722.32,826.93,687.87,1126,971,184,786,726.64,760.54,915.01,724.35,1377,1193,380,813,741.32,787.12,865.62,750.43,1347,1164,326,838,765.08,813.92,923.98,771.08,1207,1026,187,839,753.88,805.69,1010.14,760.26,1202,1049,207,841,764.15,795.83,873.06,776.79,1156,1001,161,839,766.33,805.12,893.97,788.04,1280,968,127,841,793.49,848.61,912.49,838.94,1369,1056,149,908,817.2,868.14,1036.0899999999999,840.67,1313,1175,166,1008,873.47,908.06,1090.52,877.94,1313,1169,130,1039,894.83,933.23,1108.52,911.23,1312,1171,115,1055,892.53,927.7,1153.97,902.95,1265,1123,92,1031,883.21,917.1,1226.1300000000001,889.44,1278,1143,97,1046,914.81,949.79,1310.53,916.21,1257,1132,95,1037,967.03,996.87,1285.93,970.26,1297,1145,85,1060,947.94,993.18,1338.23,965.65,1316,1174,142,94,1080,976.6,1013.13,674.91,1517.94,969.02,1338,1205,132,100,1104,1092.1099999999999,1131.3800000000001,735,1651.97,1084.01,1436,1307,128,99,1208,1097.03,1129.53,766.18,1539,1095.92,1459,1330,129,114,1216,1135,1170,767,1423,1147]
["Dublin",3,416,392,59,333,561.74,569.17999999999995,535.78,575.05999999999995,373,334,56,278,543.19000000000005,575.37,533.98,583.64,357,318,59,260,556.86,589.36,606.33000000000004,585.52,371,327,65,262,563.99,603.51,631.48,596.63,371,323,49,274,551.91,591.79999999999995,691.15,574.17999999999995,363,315,51,265,578.09,619.83000000000004,691.59,606.02,338,307,39,267,626.61,635.36,788.52,612.77,337,307,39,268,632.85,642.08000000000004,763.77,624.34,333,304,34,269,643.21,656.46,793.75,638.91,347,320,38,282,675.17,687.91,829.94,668.92,349,314,41,273,735.29,768.1,834.66,758.2,371,331,45,287,1095.57,1176.58,860.91,1225.6400000000001,377,340,48,292,736.18,772.34,830.02,762.9,397,363,48,315,757.17,786.75,890.61,770.97,411,375,57,318,729.2,757.74,873.61,737.13,418,382,60,322,749.91,778.08,912.07,752.95,427,385,63,322,747.43,780.34,935.03,749.85,408,368,69,299,787.61,818.82,952.09,788.04,394,358,36,62,296,793.17,820.84,517.30999999999995,907.73,802.7,358,325,33,61,264,872.18,894.59,649.29,892.58,895.05,386,347,39,60,286,927.31,969.12,559.6,963.52,970.31,408,368,4,57,40,1004,1050,1335,1047,577]
["Fitzwilliam",3,441,375,172,202,700.03,734.19,883.64,607.03,441,363,191,172,692.96,740.41,841.08,629.04,411,329,174,155,653.61,699.25,910.15,461.63,423,338,185,154,714.38,766.42,971.36,520.1,427,344,188,156,719.01,767.54,957.05,538.86,460,375,182,194,845.48,919.02,1212.69,643.54,436,347,165,182,994.57,1118.17,1518.79,755.52,393,310,144,166,1079.5899999999999,1216.71,1676.95,818.35,352,270,126,144,941.83,1044.0999999999999,1353.41,771.95,311,237,115,123,915.83,1002.02,1113.1600000000001,898.21,242,176,53,123,1037.71,1152.0999999999999,2008.67,784.67,246,175,47,129,738.45,757.98,894.43,708.28,258,190,58,131,746.91,758.54,934.31,680.37,281,214,72,142,769.12,802.83,917.68,745,259,203,68,135,778.92,799.03,921.29,737.63,276,211,71,140,781.39,818.16,993.59,729.82,289,217,75,142,793.98,844.66,1063.02,730.11,281,215,80,135,1256.96,1425.7,2411.19,845.81,285,219,66,83,136,1119.21,1233.21,741.59,1733.22,927.86,268,202,66,86,116,1341.75,1521.45,793.13,2209.14,1012.48,305,232,73,94,139,1304.76,1453.18,831.33,2247.67,916.51,306,228,78,90,138,1378,1577,795,2572,927]
["Gilsum",3,116,88,40,49,454.75,453.73,545.19000000000005,378.78,129,101,41,60,464.26,454.07,611.38,347.67,133,106,46,60,544.63,532.19000000000005,560.61,510.23,127,100,50,50,619.25,620.12,633.49,606.79,136,109,56,53,594.52,584.89,564.79,606.37,128,98,60,39,589.54,569.20000000000005,585.09,544.6,132,103,65,38,594.92999999999995,567.4,581.09,543.59,134,110,64,46,617.33000000000004,589.41999999999996,661.62,488.8,119,96,50,46,647.05999999999995,624.33000000000004,702.69,539.46,124,101,51,50,678.84,670.79,778.65,560.04,123,100,56,45,664.98,655.04,658.2,651.1,125,99,"n","n",760.14,742.8,"n","n",128,103,"n","n",789.09,719.98,"n","n",137,114,"n","n",764.35,720.21,"n","n",159,138,105,33,666.97,678.26,713.31,568.66,176,154,"n","n",674.62,687.88,"n","n",184,161,118,42,709.19,727.41,749,666.79,179,155,"n","n",686.08,704.16,"n","n",163,140,"",114,26,714.82,734.33,"n",792.94,479.35,146,124,22,109,15,753.97,768.85,670.15,801.26,539.66,147,126,20,"n","n",799.73,809.57,738.01,"n","n",151,130,21,104,26,840,869,656,910,709]
["Harrisville",3,105,81,"n","n",346.3,383.07,"n","n",108,85,"n","n",407.52,457.49,"n","n",124,99,37,63,382.91,429.74,501.35,388.05,125,100,"n","n",401.77,457.11,"n","n",113,88,"n","n",405.28,458.11,"n","n",123,95,"n","n",387.1,434.19,"n","n",123,100,"n","n",401.61,427.34,"n","n",119,96,"n","n",485.18,525.54999999999995,"n","n",127,105,33,72,489.89,524.11,567.16,504.23,130,105,35,69,476.54,509.02,577.58000000000004,474,125,103,"n","n",527.11,547.79,"n","n",120,102,"n","n",564.41,566.79,"n","n",129,112,"n","n",537.22,526.74,"n","n",131,113,"n","n",561.11,558.22,"n","n",142,124,"n","n",526.12,503.97,"n","n",139,120,"n","n",549.71,525,"n","n",132,115,"n","n",597.45000000000005,569.39,"n","n",141,124,41,83,565.08000000000004,527.1,621.71,480.74,153,136,17,47,89,548.87,520.6,778.92,617.36,469.7,139,120,19,48,73,601.52,596.72,632.30999999999995,680.07,542.16999999999996,159,140,19,51,88,622.73,627.03,591.57000000000005,771.54,542.97,155,135,20,46,89,657,665,603,906,540]
["Hinsdale",3,907,849,349,500,420.59,415.34,511.16,348.46,930,868,366,503,425.9,420.18,512.72,352.83,881,823,344,479,432.87,422.49,496.43,369.4,755,697,234,463,445.37,435.32,550.98,376.78,799,745,294,450,479.77,472.55,588.01,397.04,751,696,251,444,508.74,505.04,667.6,413.06,739,685,247,438,511.95,497.79,611.33000000000004,433.72,775,712,283,430,523.22,517.53,634.22,440.78,746,693,307,387,541.64,526.48,634.15,441.12,676,622,237,385,522.74,505.43,639.83000000000004,422.73,743,690,213,477,492.96,473.38,620.5,407.79,692,635,197,439,510.15,494.25,633.48,431.72,692,633,203,430,539.88,531.78,648.83000000000004,476.39,689,620,208,413,550.41,545.87,680.41,478.11,720,626,214,412,533.4,545.92999999999995,699.2,466.42,745,648,220,428,536.38,549.17999999999995,672.97,485.54,721,635,"n",0,563.54,563.98,"n",0,737,661,"n",0,603.91999999999996,599.57000000000005,"n",0,801,713,7,"n",0,607.08000000000004,614.75,1003.11,"n",0,713,636,76,226,410,637.09,640.41,609.41999999999996,782.78,562.04999999999995,800,713,87,250,463,662.26,677.83,534.32000000000005,864.58,576.9,808,724,0,0,0,711,729,0,0,0]
["Jaffrey",3,2446,2113,1143,970,633.46,631.54999999999995,788.33,446.69,2427,2054,1071,983,653.4,659.29,847.1,454.79,2453,2031,1041,990,649.07000000000005,659.03,844.23,464.35,2425,2016,1012,1004,654.92999999999995,667.6,862.05,471.64,2616,2214,1148,1066,657.09,662.15,813.24,499.49,2595,2253,1163,1090,707.88,699.71,870.18,517.74,2524,2158,1137,1021,731.21,726.36,887.9,546.36,2540,2169,1110,1059,723.75,712.24,868.68,548.20000000000005,2516,2149,1107,1042,742.74,728.05,909,535.89,2445,2075,1082,994,789.01,781.63,985.96,559.25,2565,2186,1203,982,783.6,774.68,936.96,575.82000000000005,2701,2318,1300,1019,800.21,795.41,955.47,591.16999999999996,2774,2394,1312,1082,825.19,824.32,1008.72,600.84,2685,2306,1327,979,857.26,857.06,1048.48,597.61,2755,2384,1394,990,881.39,883.89,1072.71,618.12,2767,2417,1440,977,920.93,919.29,1103.52,647.79,2827,2465,1470,995,947.22,953.14,1126.01,697.91,2947,2573,1572,1002,981.06,998.11,1183.24,707.7,3056,2674,382,1673,1001,1005.61,1026.78,857.67,1171.8800000000001,784.4,2902,2550,352,1660,890,1111.47,1133.29,953.22,1249.1600000000001,917.29,3062,2723,340,1783,939,1189.8499999999999,1215.56,983.71,1318.12,1020.82,3434,3100,334,2097,1004,1336,1370,1017,1436,1232]
["Keene",3,18960,16707,3807,12900,586.05999999999995,585.36,771.95,530.29,18878,16517,3650,12868,604.1,604.58000000000004,794.25,550.79,19081,16594,3666,12928,619.61,618.03,815.96,561.9,19584,17077,3746,13332,659.86,657.11,856.78,601.02,20120,17493,3883,13610,694.01,699.74,899.14,642.85,20338,17743,3750,13992,786.54,802.54,1178.44,701.79,19939,17436,3491,13945,751.68,755.97,937.35,710.56,19565,17213,3368,13845,806.83,805.12,1008.62,755.61,18912,16468,3037,13431,805.9,802.98,957.55,768.02,18507,16098,2867,13231,815.15,809.16,974.88,773.26,18661,16272,2777,13496,826.1,818.36,1028.01,775.23,18824,16258,2693,13565,849.65,844.51,1032.29,807.22,18442,15920,2402,13518,856.06,846.28,1065.42,807.34,18467,15886,2344,13542,867.77,862.55,1090.51,823.09,18470,15888,2281,13607,892.46,884.67,1093.73,849.63,18262,15749,2273,13476,897.1,889.23,1099.07,853.84,17953,15492,2244,13248,937.73,934.44,1150.3599999999999,897.87,17618,15198,2271,12928,964.92,963.37,1159.8800000000001,928.86,17470,15063,2407,2237,12826,984.24,987.23,965.54,1208.27,948.68,16229,13910,2320,2124,11786,1076.27,1076.3599999999999,1075.77,1208.4000000000001,1052.56,15803,14152,1651,2152,12000,1074.5,1067.8900000000001,1131.1600000000001,1230.83,1038.6600000000001,16371,14148,2223,2167,11981,1138,1143,1108,1288,1116]
["Marlborough",3,603,504,267,237,550.26,568.48,618.26,512.46,593,491,282,209,561.54999999999995,581.49,603.62,551.64,539,439,210,229,610.11,636.12,737.58,542.67999999999995,550,449,199,250,630.24,657.54,790.12,552.22,516,402,166,235,565.61,595.46,619.34,578.58000000000004,529,410,162,248,591.37,630.77,651.04999999999995,617.49,532,415,166,249,585.05999999999995,615.04,660.18,584.97,507,409,171,238,631.65,642.64,656.57,632.62,453,352,152,200,603.64,605.02,601.26,607.89,463,363,150,213,608.12,607.41999999999996,568.86,634.63,434,358,165,193,630.28,632.16,633.91,630.66999999999996,410,332,164,168,654.46,660.35,626.34,693.47,423,346,173,173,670.65,672.63,643.37,701.81,418,341,172,169,685.33,690.47,664.49,716.81,422,342,170,172,697.33,699.42,694.99,703.8,429,343,160,183,891.63,963.36,1294.94,674.11,381,291,121,170,715.32,745.57,766.5,730.64,366,267,115,153,785.88,860.09,791.73,911.34,365,274,92,114,159,795.29,847.88,638.20000000000005,832.14,859.19,330,253,77,114,138,950.39,1010.71,752.93,933.1,1074.9000000000001,401,320,82,141,179,930.36,979.72,736.87,915.33,1030.3800000000001,398,316,3,152,165,847,881,1006,985,0]
["Marlow",3,96,60,"n","n",509.84,650.85,"n","n",98,59,"n","n",491.91,620.52,"n","n",93,55,"n","n",560.08000000000004,717.26,"n","n","n","n","n","n","n","n","n","n","n","n","n","n","n","n","n","n",99,53,"n","n",574.07000000000005,796.33,"n","n",94,48,"n","n",573.01,761.48,"n","n",97,54,"n","n",529.15,605.89,"n","n",90,47,"n","n",539.11,659.42,"n","n",84,44,"n","n",560.44000000000005,702.1,"n","n",86,46,"n","n",595.53,744.71,"n","n",95,48,"n","n",522.69000000000005,677.7,"n","n",95,49,"n","n",482.7,616.69000000000005,"n","n",95,49,"n","n",510.1,627.49,"n","n",86,44,"n","n",549.27,642.87,"n","","n","n","n","n","n","n","n","n",95,51,"n","n",562.47,644.91999999999996,"n","n",100,53,"","",553.41999999999996,641.65,"n","n",90,50,40,"n","n",572.74,630.97,500.44,"n","n",88,48,40,15,33,560.70000000000005,593.19000000000005,522.07000000000005,809.68,493.78,92,53,40,"n","n",621.64,657.77,573.49,"n","n",96,53,42,"n","n",630,702,540,"n","n"]
["Nelson",3,"n","n","n","n","n","n","n","n",43,11,11,0,283.37,376.49,376.49,0,"n","n","n",0,"n","n","n",0,39,7,"n","n",261.42,237.51,"n","n",43,7,"n","n",258.32,344.7,"n","n","n","n","n","n","n","n","n","n","n","n","n","n","n","n","n","n",47,14,"n","n",471.03,684.27,"n","n","n","n","n","n","n","n","n","n","n","n","n","n","n","n","n","n","n","n","n","n","n","n","n","n","n","n","n","n","n","n","n","n","n","n","n","n","n","n","n","n","n","n","n","n","n","n","n","n","","","n","n","n","n","n","n",39,20,5,15,660.73,807.1,640.28,864.85,"n","n","n","n","n","n","n","n",45,25,8,17,671.52,786.43,686.68,837.31,43,25,18,8,17,790.6,926.42,601.48,709.69,1032.6199999999999,41,23,18,8,15,737.69,833.5,614.05999999999995,744.51,882.18,"","n",16,"n","n","n","n",659.18,"n","n",61,43,18,15,28,801,876,625,842,894]
["Richmond",3,57,41,5,36,243.62,293.3,297.87,292.68,67,50,4,46,223.72,256.22000000000003,354.79,247.03,81,63,7,56,270.79000000000002,310.45,424.68,296.93,80,64,8,56,327.22000000000003,374.94,435.2,366.67,74,59,13,47,373.31,421.05,432.97,417.76,77,66,12,54,352.67,365.61,494.17,336.77,86,70,12,58,343.06,380.57,550.20000000000005,346.06,84,65,13,52,295.89999999999998,335.22,442.99,309.18,91,68,8,61,322.14999999999998,371.88,494.11,355.89,72,54,9,45,358.2,408.16,463.67,397.43,59,40,4,37,320.42,379.52,369.01,380.57,74,50,5,45,345.95,416.99,515.14,405.9,70,48,"n","n",327.64999999999998,398.09,"n","n",57,39,6,33,397.09,498.84,622.83000000000004,478.02,63,44,6,38,406.5,497.56,668.7,471.12,60,42,7,35,390.38,474.9,627.21,446.17,67,49,"","n",335.02,373.14,"","",73,53,"","",293.77999999999997,330.7,"n","n",73,53,20,"n","n",306.24,357.03,171.21,"","n","n","n",20,"n","n","n","n",163.82,"n","n",80,60,21,"n","n",482.04,594.39,160.71,"n","n",74,52,21,"n","n",423,523,175,"n","n"]
["Rindge",3,1705,1651,269,1382,446.78,444.34,734.67,387.86,1747,1693,270,1423,444.15,441.09,719.69,388.21,1757,1716,265,1451,471.06,464.16,747.98,412.31,1803,1759,274,1485,498.28,493.39,826.83,431.99,1777,1713,254,1458,507.93,507.35,858.35,446.13,1743,1679,256,1424,518.73,516.83000000000004,842.58,458.37,1782,1714,256,1457,537.74,534.92999999999995,873.83,475.35,1756,1680,239,1441,549.79,547.45000000000005,852.95,496.78,1732,1653,212,1441,536.70000000000005,535.49,778.34,499.71,1697,1618,231,1387,561.48,561.35,855.16,512.4,1690,1609,222,1387,564.53,566.79,866.87,518.73,1666,1592,207,1385,556.08000000000004,556.27,821.04,516.77,1663,1586,211,1375,578.79,579.91999999999996,916.49,528.28,1634,1559,186,1374,588.72,590.55999999999995,1032.03,530.95000000000005,1675,1606,206,1400,601.69000000000005,600.32000000000005,1088.48,528.38,1681,1614,219,1395,623.16,620.95000000000005,1078.18,549.04999999999995,1761,1686,243,1443,632.80999999999995,633.47,1105.53,553.80999999999995,1704,1629,257,1372,680.49,682.16,1198.4100000000001,585.47,1696,1617,79,261,1357,717.86,723.29,606.15,1229.27,626.08000000000004,1672,1607,66,291,1316,776.02,775.32,793.04,1189.51,683.7,1760,1687,73,314,1373,808.21,808.51,801.12,1291.52,698.25,1767,1682,85,325,1358,884,896,651,1389,778]
["Roxbury",3,"n","n","n","n","n","n","n","n",38,33,"n","n",254.05,278.37,"n","n","n","n","n","n","n","n","n","n","n","n","n","n","n","n","n","n","n","n","n","n","n","n","n","n","n","n","n","n","n","n","n","n",48,44,"n","n",307.23,328.39,"n","n",48,44,"n","n",330.89,352.2,"n","n","n","n","n","n","n","n","n","n","n","n","n","n","n","n","n","n","n","n","n","n","n","n","n","n","n","n","n","n","n","n","n","n","n","n","n","n","n","n","n","n","n","n",0,"n","n","n",0,"n","n","n",0,"n","n","n",0,"","n","n",0,"n","n","n",0,"n","n","n",0,"n","n","n",0,"n","n","n",0,"n","n","n",0,"n","n","n",5,0,"","n","n",197.56,0,"n","n","n",4,"n","n","n","n",277.82,"n","n","","",4,"n","n","n","n",495.27,"","n","n","n",4,"n",0,"n","n",545,"n",0]
["Stoddard",3,107,78,"n","n",1213.05,1555.05,"n","n",126,98,"n","n",1187.8800000000001,1436.35,"n","n",145,114,"n","n",1149.3599999999999,1368.76,"n","n",156,120,"n","n",1203.8599999999999,1476.2,"n","n",167,128,"n","n",1265.95,1565.59,"n","n",177,140,"n","n",1321.43,1587.19,"n","n",168,134,"n","n",843.26,968.41,"n","n",165,132,"n","n",857.13,987.8,"n","n",132,99,"n","n",832.24,1020.4,"n","n",119,82,"n","n",629.70000000000005,793.84,"n","n",77,65,6,59,801.43,905.25,579.34,940.23,76,65,"n","n",789.87,888.22,"n","n",79,66,"n","n",774.92,889,"n","n",68,56,"n","n",869.2,1001.1,"n","n","n","n","n","n","n","n","n","","n","n","","n","n","n","n","n",88,67,"n","n",740.48,923.43,"n","n","n","n","n","n","n","n","n","n","n","n",0,"n","n","n","n",0,"n","n","n","n",25,"n","n","n","n",212.57,"n","n",82,56,26,6,50,779.44,1065.19,173.69,805.76,1094.8699999999999,91,61,30,6,55,811,1130,153,543,1194]
["Sullivan",3,42,27,"n","n",430.11,420.77,"n","n",44,29,"n","n",468.9,460.23,"n","n","n","n","n","n","n","n","n","n",77,64,"n","n",413.15,375.8,"n","n",81,67,"n","n",461.26,417.46,"n","n",83,67,12,55,492.34,435.02,520.54999999999995,416.82,"n","n","n","n","n","n","n","n",47,28,10,18,690.71,678.66,697.85,667.42,43,24,8,17,623.9,512.20000000000005,731.83,407.93,42,21,8,14,605.86,486.29,606.42999999999995,417.74,45,24,8,16,606.35,493.54,660.1,413.67,43,28,8,20,591.97,496.84,702.97,411.96,40,30,"n","n",518.71,531.13,"n","n",44,33,"n","n",523.6,561.57000000000005,"n","n",40,30,"n","n",583.28,589.83000000000004,"n","",58,48,25,23,628.45000000000005,657.16,750.56,556.66999999999996,55,45,"n","n",684.92,705.25,"n","n","n","n","n","n","n","n","n","n","n","n",11,"n","n","n","n",561.49,"n","n",50,39,11,"n","n",1100.3399999999999,1260.44,551.28,"n","n",53,42,11,"n","n",1607.34,1892,522.6,"n","n","n","n",12,"n","n","n","n",556,"n","n"]
["Surry",3,54,39,25,15,646.54999999999995,702.84,965.88,257.93,64,49,30,20,693.14,737.53,985.5,362.42,68,53,29,24,687.12,723.68,971.49,429.04,65,50,27,24,686.8,715.09,1001.64,392.21,60,49,30,18,696.77,737.76,1025.8900000000001,263.67,49,42,30,12,693.61,758.3,983.34,217.59,55,48,30,18,648.80999999999995,707.3,948.19,309.51,54,46,26,21,846.84,939.05,1302.52,479.54,56,48,26,22,718.41,782.29,1118.48,392.37,58,52,25,27,653.71,684.87,1077.97,331.33,66,60,24,36,543.41,558.79999999999995,938.06,305.36,73,67,23,44,571.41,591.27,1112.93,316.02999999999997,78,71,25,47,520.36,538.85,954.75,317.88,79,73,25,48,497.93,511.24,898.61,312.52999999999997,75,71,25,46,531.73,539.04999999999995,929.83,324.74,84,78,29,0,608.03,630.5,1116.33,0,75,68,28,0,702.18,745.74,1250.07,0,77,70,33,0,729.9,772.81,1157.3599999999999,0,81,74,7,34,0,736.94,778.12,285.98,1157.1300000000001,0,74,68,6,34,34,887.91,936.46,359.01,1325.87,549.9,88,81,7,36,45,913.66,969.9,260.83999999999997,1347.2,665.97,92,84,8,42,42,1039,1109,258,1628,587]
["Swanzey",3,1733,1077,385,692,534.14,540.04999999999995,544.12,537.78,1784,1083,363,720,551.05999999999995,559.23,590.11,543.66999999999996,1877,1172,314,858,574.85,574.67999999999995,601.84,564.73,1973,1260,318,942,575.83000000000004,553.33000000000004,624.17999999999995,529.4,1983,1282,323,959,585.02,581.21,674.39,549.79999999999995,2024,1318,325,993,624.1,618.86,732.24,581.79999999999995,2116,1382,367,1014,620.46,613.23,703.31,580.6,2107,1355,356,998,627.34,621.91,743.7,578.42999999999995,2043,1280,334,946,644.38,632.73,690.09,612.44000000000005,2114,1348,248,1100,630.92999999999995,604.17999999999995,881.68,541.67999999999995,2093,1348,258,1090,654.75,638.65,877.3,582.16,2168,1450,270,1180,671.27,662.09,904.36,606.71,2235,1512,338,1174,709.41,723.93,1104.32,614.55999999999995,2242,1527,357,1170,729.66,755.51,1082.03,655.95,2269,1551,358,1193,732.29,741.75,1035.9000000000001,653.42999999999995,2226,1531,351,1180,732.13,740.39,1089.75,636.54,2200,1554,369,1185,755.99,752.59,1087.4000000000001,648.51,2278,1628,416,1212,765.56,764.05,1097.49,649.74,2327,1673,654,437,1235,780.08,777.48,786.72,1103.99,661.95,2142,1543,599,424,1119,840.97,834.43,857.83,1140.1099999999999,718.51,2241,1643,598,443,1200,901.15,904.67,891.46,1206.33,793.24,2265,1656,609,444,1212,934,961,863,1258,852]
["Troy",3,405,332,138,194,422.59,415.16,621.99,267.79000000000002,326,246,78,168,405.99,395.35,575.02,311.94,325,246,74,172,432.05,414.55,610.02,330.3,297,223,65,157,453.45,422.95,591.89,352.98,281,209,45,164,410.47,377.3,492.5,345.62,288,216,56,160,480.64,449.42,663.69,374.72,267,192,56,137,533.74,508.43,743.99,412.88,261,186,48,138,534.61,502.21,759.4,412.4,245,172,38,134,537.41999999999996,494.31,698.9,437.2,225,153,17,137,530.38,470.97,643.05999999999995,449.76,225,149,20,129,532.32000000000005,496.66,728.01,461.58,229,144,19,125,547.47,552.92999999999995,838.56,508.91,228,150,22,127,547.33000000000004,538.29,750.25,501.23,235,159,26,133,567.16999999999996,573.63,824.69,524.99,232,164,31,133,590.22,579.61,807.36,526.41999999999996,258,169,30,139,583.07000000000005,595.21,787.38,553.03,253,182,37,145,635.71,603.58000000000004,726.73,571.96,263,187,34,153,640.88,624.34,841.68,575.44000000000005,266,180,86,36,143,648.28,659.17,625.65,771.38,630.63,263,174,89,40,134,677.54,711.67,610.65,740.16,703.13,276,201,75,42,159,735.17,726.54,758.24,740.33,722.89,264,191,73,42,149,758,765,739,726,775]
["Walpole",3,1367,1308,533,775,622.35,634.14,639.52,630.44000000000005,1337,1277,504,773,611.1,621.35,666.21,592.12,1335,1276,512,764,642.46,656.56,639.85,667.75,1291,1230,515,715,657.83,670.51,691.38,655.48,1290,1226,501,725,664.91,679.62,714.95,655.17999999999995,1338,1265,516,749,650.76,669.51,691.48,654.37,1399,1302,556,746,698.62,727.42,696.64,750.38,1377,1283,552,732,755.62,787.51,742.75,821.24,1351,1256,505,751,688.05,714.42,752.53,688.78,1334,1238,495,744,718.84,748.78,761.74,740.16,1318,1221,494,727,752.32,784.35,867.96,727.6,1344,1233,504,729,760.22,800.2,857.17,760.84,1408,1233,507,727,766.9,802.67,861.59,761.59,1425,1250,528,722,787.08,825.34,905.9,766.43,1438,1252,549,703,865.3,921.94,1000.78,860.39,1443,1259,569,691,809.35,849.61,870.69,832.26,1429,1254,551,702,786.55,817.88,872.13,775.32,1458,1279,567,712,832.37,870.22,908.83,839.52,1527,1344,183,609,735,827.32,860.14,585.70000000000005,930.33,801.92,1498,1322,176,599,723,870.66,903.19,625.72,1011.63,813.42,1487,1324,163,586,737,895.65,922.92,674.35,1048.17,823.24,1568,1403,165,632,772,965,1000,671,1125,897]
["Westmoreland",3,906,486,121,365,629.20000000000005,790.08,618.67999999999995,846.84,949,537,127,410,622.62,735.58,633.77,767.06,687,273,126,147,502.08,514.74,617.24,427.14,690,278,126,152,552.25,583.55999999999995,704.66,483.36,673,257,128,129,583.66999999999996,681.1,773.54,589.61,695,269,123,146,624.19000000000005,746.93,867.17,645.71,698,264,124,140,624.4,694.32,715.35,675.82,689,253,120,133,652.37,727.06,746.51,709.57,729,255,119,136,635.74,681.59,701.83,663.98,552,249,115,134,655.92,736.24,810.76,672.1,502,211,105,106,663.88,738.01,864.53,612.69000000000005,509,215,112,102,661.1,717.6,785.49,643.29999999999995,493,202,112,91,673.05,726.96,742.91,707.36,501,208,111,97,692.08,763.35,787.08,736.09,487,194,96,98,731.03,825.35,874.22,777.61,210,210,88,122,811.42,811.42,859.79,776.72,209,209,88,121,875.89,875.89,863.25,885.08,200,200,89,110,920.21,920.21,920.98,919.59,180,180,284,102,77,999.58,999.58,728.47,1012.89,981.86,435,160,275,95,65,930.05,1070.5999999999999,848.61,1064.77,1079.0899999999999,448,189,259,110,79,924.28,1050.44,832.43,998.65,1122.1199999999999,468,231,238,146,84,965,1082,851,1053,1132]
["Winchester",3,767,707,378,329,427.62,428.61,508.56,336.76,761,704,377,327,420.29,419,493.28,333.18,777,725,392,334,451.45,447.46,494.43,392.37,789,739,382,357,462.91,460.74,495.09,423.98,766,719,390,328,490.26,485.19,539.03,421.17,733,691,355,336,495.23,487.69,540.6,431.74,711,658,321,337,519.91999999999996,510.82,568.63,455.71,766,710,362,348,556.24,551.37,651.86,446.73,770,715,337,377,545.6,537.1,637.6,447.27,728,678,315,363,554.86,543.67999999999995,629.27,469.29,718,667,314,353,593.66,586.6,697.06,488.17,706,654,296,358,596.82000000000005,589.52,703.62,495.13,699,651,281,370,602.15,595.01,701.03,514.69000000000005,710,662,277,386,606.65,599.32000000000005,726.5,508.08,742,697,281,416,610.63,601.97,743.58,506.1,745,701,282,420,617.20000000000005,608.20000000000005,723.17,531.03,778,732,290,442,647.13,641.32000000000005,757.97,564.83000000000004,791,746,295,451,656.93,650.82000000000005,811.89,545.48,777,730,48,280,450,690.11,686.44,746.38,826.88,598.91999999999996,732,679,53,273,406,779.86,778.17,801.6,1005.96,624.83000000000004,765,712,52,281,431,728.4,724.62,779.65,860.06,636.30999999999995,771,724,48,290,433,785,783,814,921,692]
[]
[]
[]
["NH Employment Data","Query Name: DPQryEmploymentByCnty-Good-Serv-Total","Updated:","2023-10-24"]
[]
["AreaName","COUNTYCODE","TOTP & G2001","TOT2001","GOODPRO2001","SERVICEPROMAN2001","WAGEP & G2001","WAGETOT2001","WAGEGOODPRO2001","WAGESERVICEPRO2001","TOTP & G2002","TOT2002","GOODPRO2002","SERVICEPROMAN2002","WAGEP & G2002","WAGETOT2002","WAGEGOODPRO2002","WAGESERVICEPRO2002","TOTP & G2003","TOT2003","GOODPRO2003","SERVICEPROMAN2003","WAGEP & G2003","WAGETOT2003","WAGEGOODPRO2003","WAGESERVICEPRO2003","TOTP & G2004","TOT2004","GOODPRO2004","SERVICEPROMAN2004","WAGEP & G2004","WAGETOT2004","WAGEGOODPRO2004","WAGESERVICEPRO2004","TOTP & G2005","TOT2005","GOODPRO2005","SERVICEPROMAN2005","WAGEP & G2005","WAGETOT2005","WAGEGOODPRO2005","WAGESERVICEPRO2005","TOTP & G2006","TOT2006","GOODPRO2006","SERVICEPROMAN2006","WAGEP & G2006","WAGETOT2006","WAGEGOODPRO2006","WAGESERVICEPRO2006","TOTP & G2007","TOT2007","GOODPRO2007","SERVICEPROMAN2007","WAGEP & G2007","WAGETOT2007","WAGEGOODPRO2007","WAGESERVICEPRO2007","TOTP & G2008","TOT2008","GOODPRO2008","SERVICEPROMAN2008","WAGEP & G2008","WAGETOT2008","WAGEGOODPRO2008","WAGESERVICEPRO2008","TOTP & G2009","TOT2009","GOODPRO2009","SERVICEPROMAN2009","WAGEP & G2009","WAGETOT2009","WAGEGOODPRO2009","WAGESERVICEPRO2009","TOTP & G2010","TOT2010","GOODPRO2010","SERVICEPROMAN2010","WAGEP & G2010","WAGETOT2010","WAGEGOODPRO2010","WAGESERVICEPRO2010","TOTP & G2011","TOT2011","GOODPRO2011","SERVICEPROMAN2011","WAGEP & G2011","WAGETOT2011","WAGEGOODPRO2011","WAGESERVICEPRO2011","TOTP & G2012","TOT2012","GOODPRO2012","SERVICEPROMAN2012","WAGEP & G2012","WAGETOT2012","WAGEGOODPRO2012","WAGESERVICEPRO2012","TOTP & G2013","TOT2013","GOODPRO2013","SERVICEPROMAN2013","WAGEP & G2013","WAGETOT2013","WAGEGOODPRO2013","WAGESERVICEPRO2013","TOTP & G2014","TOT2014","GOODPRO2014","SERVICEPROMAN2014","WAGEP & G2014","WAGETOT2014","WAGEGOODPRO2014","WAGESERVICEPRO2014","TOTP & G2015","TOT2015","GOODPRO2015","SERVICEPROMAN2015","WAGEP & G2015","WAGETOT2015","WAGEGOODPRO2015","WAGESERVICEPRO2015","TOTP & G2016","TOT2016","GOODPRO2016","SERVICEPROMAN2016","WAGEP & G2016","WAGETOT2016","WAGEGOODPRO2016","WAGESERVICEPRO2016","TOTP & G2017","TOT2017","GOODPRO2017","SERVICEPROMAN2017","WAGEP & G2017","WAGETOT2017","WAGEGOODPRO2017","WAGESERVICEPRO2017","TOTP & G2018","TOT2018","GOODPRO2018","SERVICEPROMAN2018","WAGEP & G2018","WAGETOT2018","WAGEGOODPRO2018","WAGESERVICEPRO2018","TOTP & G2019","TOT2019","TOTGov2019","GOODPRO2019","SERVICEPROMAN2019","WAGEP & G2019","WAGETOT2019","WAGEGov2019","WAGEGOODPRO2019","WAGESERVICEPRO2019","TOTP & G2021","TOT2021","TOTGov2021","GOODPRO2021","SERVICEPROMAN2021","WAGEP & G2021","WAGETOT2021","WAGEGov2021","WAGEGOODPRO2021","WAGESERVICEPRO2021","TOTP & G2021","TOT2021","TOTGov2021","GOODPRO2021","SERVICEPROMAN2021","WAGEP & G2021","WAGETOT2021","WAGEGov2021","WAGEGOODPRO2021","WAGESERVICEPRO2021","TOTP & G2022","TOT2022","GOODPRO2022","SERVICEPROMAN2022","WAGEP & G2022","WAGETOT2022","WAGEGOODPRO2022","WAGESERVICEPRO2022","PlaceTownIDNumber","COUNTYCODE"]
["Belknap County",1,26173,22708,6138,16570,541.07000000000005,538.34,689.88,482.21,26052,22334,5408,16926,561.11,555.84,731.15,499.83,26286,22376,5281,17095,579.91,573.04,754.28,517.04999999999995,26931,23030,5431,17599,610.04,602.01,777.41,547.89,26940,22891,5467,17424,636.41999999999996,634.14,819.42,576,27237,23042,5133,17909,657.93,655.07000000000005,862.32,595.66999999999996,27266,23032,4820,18212,674.29,668.31,921.91,601.17999999999995,26793,22507,4572,17935,689.74,680.53,938.61,614.74,25570,21280,3944,17337,692.98,680.87,934.72,623.12,24943,20713,3480,17234,698.61,690.71,945.91,639.19000000000005,24953,20748,3411,17337,706.01,697.17,959.24,645.61,25196,20972,3400,17572,708.66,703.81,960.55,654.13,25517,21311,3517,17794,718.36,714.81,997.67,658.89,25490,21315,3554,17761,748.41,745.98,1036.05,687.93,25584,21457,3597,17859,776.57,774.35,1066.24,715.55,25708,21577,3626,17951,797.95,796.89,1088.81,737.93,25829,21725,3676,18049,823.13,823.31,1139.79,758.85,25898,21803,3774,18029,851.06,851.82,1167.98,785.64,26080,22008,4072,3799,18209,854.12,849.87,877.08,1177.3,781.56,23895,20018,3878,3578,16439,949.48,948,957.09,1212.92,890.34,24938,21021,3917,3619,17402,965.32,969.25,944.22,1287.7,903.02,25226,21338,3632,17706,1005,1007,1332,941,1016,1]
["Carroll County",2,19495,16938,2563,14374,467.52,460.32,627.98,430.42,19756,17153,2497,14656,481.01,472.65,645.74,443.16,20167,17534,2567,14967,492.28,481.72,647.55999999999995,453.27,20405,17701,2526,15175,519.72,511.1,687.06,481.81,20215,17448,2541,14906,533.86,524.08000000000004,703.81,493.43,20294,17504,2588,14916,575.59,568.1,737.84,538.66,20402,17510,2544,14966,573.29999999999995,562.55999999999995,760.1,528.99,20584,17636,2552,15084,584.17999999999995,570.32000000000005,770.38,536.47,19942,16904,2265,14639,587.36,570.99,765.31,540.91999999999996,19810,16754,2124,14630,600.19000000000005,586.5,775.97,558.99,19997,17005,2189,14816,617.28,603.41999999999996,798.39,574.61,20082,17083,2162,14921,627.16999999999996,615.41,800.29,588.62,19971,16958,2084,14874,645.66999999999996,633.79,805.62,609.71,20015,16952,2024,14928,640.24,627.02,843.7,597.64,19806,16828,1996,14832,667.3,653.87,884.26,622.86,19997,17053,2030,15023,686.74,674.21,909.04,642.48,20005,17047,2057,14991,692.33,677.15,941.62,640.87,20015,17037,2078,14959,710.33,694.81,905.58,665.54,20228,17268,2960,2128,15140,735.27,721.26,816.99,942.12,690.22,17882,15000,2883,2074,12926,841.07,832.06,888,1019.76,801.94,18856,16033,2823,2145,13888,872.88,865.29,916,1033.17,839.36,19410,16536,2187,14349,918,915,1060,893,1017,2]
["Cheshire County",3,32349,27819,"n","n",571.92999999999995,577.30999999999995,"n","n",32369,27595,7795,19800,584.33000000000004,590.97,743.2,531.04,32548,27626,7754,19873,598.89,603.04,763.11,540.59,33075,28132,7648,20484,631.09,634.67999999999995,807.42,570.17999999999995,33995,28886,8110,20776,656.03,666.98,828.9,603.78,34194,29151,7889,21262,723.95,741.43,987.42,650.15,33638,28601,7473,21128,707.44,717.07,867.3,663.94,33220,28351,7351,21000,746.75,752.8,902.94,700.24,32207,27212,6761,20451,742.41,745.7,870.79,704.34,31527,26585,6300,20286,754.45,756.21,900.6,711.38,31690,26854,6240,20614,768.13,768.69,935.64,718.15,32021,27158,6245,20914,790.24,793.9,933.87,752.11,31923,27008,6032,20975,796.52,797.61,965.3,749.39,31904,26935,6025,20910,810.83,815.88,993.69,764.64,32067,27097,6073,21024,830.63,834.25,1010.79,783.25,32005,27109,6177,20932,838.96,843.47,1028.03,789.01,31743,26953,6194,20759,867.06,873.07,1043.75,822.14,31642,26825,6445,20380,895.81,907.01,1090.07,849.12,31737,26923,4814,6652,20272,913.17,927.09,835.36,1100.44,870.2,29801,25226,4575,6410,18816,1000.19,1013.03,929.37,1159.32,963.2,30189,26304,3884,6689,19615,1014.16,1025.44,937.75,1193.71,968.06,31326,26866,7145,0,1081,1104,1278,0,1018,3]
["Coos County",4,13872,11234,"n","n",489.02,487.7,"n","n",13737,11021,2332,8689,490.8,484.33,650.88,439.63,13946,11225,2578,8647,525.08000000000004,519.66,703.37,464.89,14103,11341,2590,8751,542.98,540.59,726.42,485.6,14026,11222,2533,8689,556.04,552.64,754.89,493.68,13898,10991,2334,8657,572.86,571.41999999999996,766.73,518.76,13876,11050,2184,8866,583.63,572.30999999999995,758.88,526.34,13566,10747,1988,8759,602.53,587.51,755.51,549.38,13002,10134,1720,8414,609.67999999999995,592.77,751.35,560.36,12832,9977,1593,8384,608.57000000000005,589.54,744.88,560.02,12555,9785,1473,8312,620.23,600.46,757.95,572.54,12371,9564,1568,7995,640.94000000000005,622.74,825.56,582.97,12515,9564,1649,7915,667.37,647.75,855.89,604.39,12064,9083,1293,7789,675.59,651.58000000000004,777.89,630.61,11974,9046,1222,7824,694.46,666.94,788.97,647.89,11990,9038,1167,7870,706.62,682.98,853.55,657.68,11999,9070,1223,7846,729.45,705.37,867.99,680.02,11970,9060,1296,7764,749.69,723.06,852.68,701.43,12083,9226,2857,1304,7921,766.79,735.31,868.44,914.39,705.82,10860,8144,2716,1260,6884,857.08,825.46,951.91,905.94,810.72,11341,8617,2724,1357,7260,875.17,849.5,956.35,872.32,845.23,11633,8928,1393,7535,954,944,1180,900,1019,4]
["Grafton County",5,49352,43256,8085,35171,617.73,624.04999999999995,672.45,612.92999999999995,49690,43362,7763,35599,658.93,668.77,701.81,661.56,50615,44009,7790,36220,704.15,717.01,753.77,709.11,51355,44704,7636,37069,728.96,740.6,770.78,734.38,51541,44954,7698,37256,768.82,783.94,809.26,778.7,52267,45531,7761,37770,803.4,820.96,855.22,813.92,52729,45992,7672,38320,843.04,860.73,901.98,852.47,52901,46166,7347,38819,867.61,884.82,928.14,876.62,51401,44646,6446,38200,879.4,895.26,899.95,894.47,51256,44376,6289,38086,905.77,925.54,949.83,921.53,51663,44867,6681,38186,926.58,946.3,981.6,940.12,52026,45246,6818,38428,950.95,973.52,996.15,969.5,52153,45454,6717,38736,965.05,986.68,1028.75,979.39,52226,45565,6778,38787,1004.06,1029.1500000000001,1069.54,1022.09,52654,46056,6882,39174,1037.55,1061.83,1078.8900000000001,1058.83,53361,46686,6801,39885,1058.5999999999999,1086.92,1082.4000000000001,1087.69,53790,47161,6781,40380,1079.6300000000001,1108.6099999999999,1125.3,1105.81,54119,47417,6926,40491,1105.33,1135.81,1167.74,1130.3399999999999,54388,47685,6703,6855,40830,1142.8,1174.8,915.17,1156.02,1177.95,50622,44208,6414,6338,37870,1251.72,1287.53,1004.85,1194.47,1303.1099999999999,52299,45834,6465,6526,39308,1284.3900000000001,1324,1003.57,1309.54,1326.4,53193,47047,6756,40292,1320,1356,1348,1358,1020,5]
["Hillsborough County",6,192842,173003,47169,125834,756.14,762.49,941.37,695.43,188573,168164,42086,126078,768.52,773.3,968.23,708.23,190864,169969,41006,128962,801.91,806.79,1014.82,740.64,193543,172567,40910,131656,839.56,844.4,1064.01,776.16,196190,174854,40181,134673,866.71,873.18,1101.58,805.03,196502,175094,39123,135971,897.24,904,1171.1600000000001,827.13,197183,175821,38588,137233,946.54,951.14,1248.82,867.44,195976,174253,36628,137625,973.54,979.17,1267.17,902.52,187240,165260,33003,132257,959.3,962.96,1236.24,894.76,184628,162829,32117,130712,980.99,986.25,1287.9100000000001,912.12,186437,165030,32694,132336,1013.7,1018.86,1329.81,942.03,188425,167133,31642,135492,1029.82,1035.95,1325.69,968.28,190568,169383,30861,138522,1038.74,1045.24,1365.43,973.9,193565,172574,31422,141152,1092.9000000000001,1101.22,1393.55,1036.1500000000001,196842,175848,31842,144005,1099.51,1106.52,1401.46,1041.3,199729,178867,32654,146213,1118.6300000000001,1126.21,1436.51,1056.9100000000001,201740,180839,33513,147327,1147.78,1156.08,1490.14,1080.0899999999999,203961,182874,34296,148577,1182,1189.98,1525.57,1112.51,205989,184819,21170,35047,149772,1219.73,1229.8399999999999,1131.48,1558.29,1152.98,192746,172283,20463,33774,138510,1350.41,1366.74,1212.8699999999999,1698.45,1285.8599999999999,196932,176563,20368,33764,142800,1406.98,1425.94,1242.6500000000001,1745.36,1350.42,200919,180392,34516,145876,1452,1472,1832,1386,1021,6]
["Merrimack County",7,71543,56168,12137,44031,631.86,633.92999999999995,772.48,595.74,71850,56025,11403,44622,653.27,655.12,799.93,618.12,72840,56631,11036,45595,667.06,666.91,826.68,628.24,72381,56515,10742,45773,690.51,689.4,845.49,652.77,72963,56979,11012,45967,710.07,710.67,861.87,674.44,74077,57818,10760,47058,739.28,739.89,906.79,701.73,74070,57629,10051,47579,774.05,772.96,972.47,730.82,73959,57295,9822,47472,795.3,789.49,978.78,750.33,72134,55582,8724,46857,810.16,788.36,966.04,755.28,71882,55306,8662,46645,821.15,806.64,998.67,770.98,72140,55913,9059,46854,835.3,821.63,1012.78,784.67,72901,56946,9282,47664,850.4,842.26,1036.72,804.39,73510,57805,9457,48348,866.04,857.51,1050.8699999999999,819.69,74884,58800,9698,49103,892.44,882.46,1086.78,842.11,75670,59563,9801,49762,929.04,918.53,1114.06,880.02,76413,60219,9936,50283,946.35,937.29,1126.3800000000001,899.92,76803,60570,10042,50528,980.03,971.23,1164.72,932.78,77469,61326,10142,51184,1012.33,1004.39,1186.1199999999999,968.39,77816,61536,16281,10313,51222,1038.6300000000001,1030.98,1067.56,1209.32,995.07,73101,57299,15802,9711,47587,1132,1126.1500000000001,1153.22,1268.4000000000001,1097.1199999999999,73335,57980,15355,9834,48146,1169.23,1172.8,1155.74,1298.8699999999999,1147.05,75215,59610,10148,49462,1250,1269,1360,1250,1022,7]
["New Hampshire",1026,610446,531225,127190,404035,682.38,691.51,842.11,644.1,603100,521320,115244,406076,695.8,703.84,868.13,657.22,604198,520362,111472,408890,717.94,724.91,888.81,680.22,613327,529515,111893,417622,753.7,760.58,928.63,715.56,620909,536173,112033,424140,779.84,788.93,958.48,744.15,627301,541435,110189,431246,816.3,827.48,1013.11,780.04,630171,543800,107673,436127,843.46,852.45,1054.1600000000001,802.65,628819,541768,104441,437326,863.66,870.64,1074.5999999999999,821.93,604915,517658,92952,424706,864.05,867.37,1066.42,823.81,600540,513386,89428,423957,883.88,890.13,1119.47,841.75,605864,520338,90996,429342,909.31,916.27,1140.95,868.65,612432,527263,90404,436858,928.33,938.02,1152.07,893.72,618756,534106,90890,443216,941.75,950.79,1173.1099999999999,905.2,626567,541441,92176,449265,983.96,996.35,1200.71,954.42,636798,552276,93968,458308,1010.64,1021.89,1224.55,980.34,647375,562836,96138,466699,1030.04,1042.6300000000001,1251.03,999.7,653496,569023,97995,471029,1060.3399999999999,1073.99,1294.46,1028.1199999999999,658816,574044,100089,473955,1091.97,1106.44,1317.59,1061.8499999999999,665374,580394,84980,101907,478487,1128.27,1145.04,1013.77,1346.98,1102.03,624442,542824,81618,97843,444981,1247.45,1269.51,1100.73,1431.08,1233.99,647978,567574,80404,99578,467996,1386.82,1425,1117.32,1483.75,1412.5,670634,589201,102750,486451,1389,1423,1549,1396,1026]
["Rockingham County",8,130960,117604,24384,93220,704.6,714.62,913.02,662.73,130242,116589,22286,94302,712.56,720.57,945.47,667.42,130329,116466,21075,95392,725.68,731.51,920.38,689.79,133803,119786,21944,97841,774.11,781.14,964.22,740.08,136154,122028,22051,99976,796.86,803.2,996.54,760.55,138063,123549,22274,101275,842.13,851.8,1013.05,816.33,138382,123679,22407,101273,849.04,856.27,1052.77,812.8,137191,122378,22407,99970,839.01,841.86,1081.82,788.07,131375,116492,19644,96848,839.06,840.45,1104.3599999999999,786.93,131892,117079,18689,98391,862.17,865.32,1199.72,801.8,133444,119079,18941,100138,880.6,883.65,1146.49,833.93,135396,121125,18942,102183,907.06,912.95,1200.98,859.56,137505,123255,19558,103698,919.22,924.42,1204.8699999999999,871.53,139972,125705,20107,105598,967.99,976.63,1214.5999999999999,931.32,143650,129571,20954,108617,999.45,1007.52,1260.8800000000001,958.65,146926,132843,21711,111132,1008.63,1016.49,1289.1199999999999,963.24,149059,134948,22384,112564,1040.5999999999999,1049.82,1335.62,992.99,149817,135525,22957,112568,1068.69,1079.1600000000001,1345.67,1024.8,151694,137342,14352,23611,113731,1110.28,1122.81,990.42,1388.53,1067.6400000000001,141876,128387,13488,23301,105086,1204.1600000000001,1216.3900000000001,1087.78,1435.04,1167.9100000000001,147153,133559,13593,23930,109629,1266.5,1282.33,1110.97,1480.19,1239.1400000000001,151310,137387,24619,112767,1327,1345,1543,1301,1023,8]
["Strafford County",9,43645,34821,9068,25753,655.37,655.92,770.85,615.45000000000005,42874,33684,7630,26054,655.35,652.99,800.21,609.88,43046,33530,7366,26164,668.52,656.47,806.84,614.13,43436,33873,7230,26643,693.72,673.65,820.17,633.9,43773,34267,7211,27056,709.03,692.76,828.02,656.71,44557,35064,7140,27925,723.22,705.71,858.22,666.71,45570,35960,6960,29000,746.96,729.16,880.17,692.91,46580,36991,6754,30237,803.35,784.14,900.05,758.25,44375,35115,5981,29133,822.2,798.7,916.04,774.61,44144,34793,5960,28833,843.68,824.98,964.85,796.07,44154,34870,6008,28863,879.87,868.02,1098.93,819.95,45017,35667,6036,29631,875.8,864.35,1039.17,828.73,45379,36187,6365,29822,896.63,880.93,1050.44,844.76,46249,36899,6431,30469,915.86,906.58,1082.2,869.52,46826,37517,6657,30860,954.37,941.53,1121.8,902.65,47632,38313,6879,31434,967.61,953.88,1119.03,917.74,48165,38780,6935,31845,990.95,980.7,1148.01,944.26,48371,39036,6997,32039,1004.47,991.1,1131.83,960.36,48714,39366,9348,7127,32239,1034.79,1028.5999999999999,1060.8599999999999,1146.21,1002.6,45799,36761,9038,6439,30321,1109.92,1099.0999999999999,1153.96,1214.9000000000001,1074.5,46804,37871,8933,6556,31316,1140.3699999999999,1132.99,1171.6600000000001,1259.19,1106.57,47470,38529,6974,31554,1186,1184,1296,1159,1024,9]
["Sullivan County",10,14086,11544,"n","n",536.78,549.33000000000004,"n","n",13793,11231,4452,6779,561.15,569.74,685.65,493.64,13370,10809,4059,6750,577.41,588.45000000000005,688.92,528.03,13551,11127,4066,7061,602.70000000000005,607.34,721.67,541.5,13862,11386,4086,7300,615.79,621.85,741.34,554.98,13826,11306,3928,7377,642.61,650.96,800.27,571.45000000000005,13873,11351,3958,7393,676.8,687.32,843.22,603.85,13799,11227,3909,7318,687.34,698.53,866.24,608.95000000000005,13185,10586,3466,7121,698.02,705.82,887.35,617.47,13076,10479,3303,7176,714.38,723.66,917.55,634.42999999999995,13190,10617,3204,7413,723.57,732.12,955.94,635.39,13597,11070,3448,7622,757.15,771.77,1038.8399999999999,650.94000000000005,13793,11373,3704,7670,768.35,784.88,1012.65,674.88,13873,11439,3932,7507,795.94,816.28,1039.17,699.53,14090,11709,3948,7761,803.2,815.31,1021.57,710.37,14204,11783,4061,7722,810.76,830.28,1066.2,706.22,13997,11636,4031,7605,821.95,836.22,1048.48,723.72,13966,11628,3919,7708,836.09,849.04,1063.6199999999999,739.94,13735,11390,2344,3818,7573,854.16,864.16,805.53,1081.23,754.74,13162,10897,2266,3666,7231,933.76,950.68,852.41,1145.6400000000001,851.82,13487,11250,2237,3748,7502,996.61,1021.24,872.79,1258.53,902.68,13460,11234,3901,7333,1031,1058,1256,952,1025,10]

{"sheet":"BuildingPermitsSince2000","index":9,"n_rows":41,"n_cols":25,"rows_kept":41,"cut":false,"hidden":true,"merged":[[3,1,3,3]]}
[]
[null,{"$f":"CntyDataLink!A35","v":"Dublin"}]
[]
[null,"HOUSING CHARACTERISTICS"]
[]
[]
[]
[]
[]
[]
[]
[]
[]
[]
[]
[]
[]
[]
[]
[]
[]
[]
[]
[]
[]
[]
[]
[]
[]
[]
[]
[]
[]
[]
[null,"Housing Units Authorized by Permit",null,null,null,"Source:  Office of Planning and Development, NH BEA"]
[]
[null,"Year",2000,{"$f":"C37+1","v":2001},{"$f":"D37+1","v":2002},2003,2004,2005,2006,2007,2008,2009,2010,2011,2012,2013,2014,2015,2016,2017,2018,2019,2020,2021,"Total"]
[null,"Single Family",{"$f":"CntyDataLink!$BU$20","v":3},{"$f":"CntyDataLink!$BX$20","v":9},{"$f":"CntyDataLink!$CA$20","v":8},{"$f":"CntyDataLink!$CD$20","v":15},{"$f":"CntyDataLink!$CG$20","v":5},{"$f":"CntyDataLink!$CJ$20","v":4},{"$f":"CntyDataLink!$CM$20","v":15},{"$f":"CntyDataLink!$CO$20","v":0},{"$f":"CntyDataLink!$CS$20","v":5},{"$f":"CntyDataLink!$CV$20","v":1},{"$f":"CntyDataLink!$CY$20","v":0},{"$f":"CntyDataLink!$DB$20","v":0},{"$f":"CntyDataLink!$DE$20","v":0},{"$f":"CntyDataLink!$DH$20","v":0},{"$f":"CntyDataLink!$DK$20","v":-1},{"$f":"CntyDataLink!$DN$20","v":2},{"$f":"CntyDataLink!$DQ$20","v":1},{"$f":"CntyDataLink!$DT$20","v":3},{"$f":"CntyDataLink!$DW$20","v":3},{"$f":"CntyDataLink!$DZ$20","v":5},{"$f":"CntyDataLink!$EC$20","v":8},{"$f":"CntyDataLink!$EI$20","v":7},{"$f":"SUM(C38:X38)","v":93}]
[null,"Multi-family",{"$f":"CntyDataLink!$BV$20","v":0},{"$f":"CntyDataLink!$BY$20","v":0},{"$f":"CntyDataLink!$CB$20","v":1},{"$f":"CntyDataLink!$CE$20","v":0},{"$f":"CntyDataLink!$CH$20","v":0},{"$f":"CntyDataLink!$CK$20","v":0},{"$f":"CntyDataLink!$CN$20","v":0},{"$f":"CntyDataLink!$CP$20","v":8},{"$f":"CntyDataLink!$CT$20","v":0},{"$f":"CntyDataLink!$CW$20","v":0},{"$f":"CntyDataLink!$CZ$20","v":0},{"$f":"CntyDataLink!$DC$20","v":0},{"$f":"CntyDataLink!$DF$20","v":0},{"$f":"CntyDataLink!$DI$20","v":0},{"$f":"CntyDataLink!$DL$20","v":0},{"$f":"CntyDataLink!$DO$20","v":0},{"$f":"CntyDataLink!$DR$20","v":0},{"$f":"CntyDataLink!$DU$20","v":0},{"$f":"CntyDataLink!$DX$20","v":0},{"$f":"CntyDataLink!$EA$20","v":0},{"$f":"CntyDataLink!$ED$20","v":0},{"$f":"CntyDataLink!$EJ$20","v":0},{"$f":"SUM(C39:X39)","v":9}]
[null,"Manufactured",{"$f":"CntyDataLink!$BW$20","v":0},{"$f":"CntyDataLink!$BZ$20","v":2},{"$f":"CntyDataLink!$CC$20","v":0},{"$f":"CntyDataLink!$CF$20","v":0},{"$f":"CntyDataLink!$CI$20","v":0},{"$f":"CntyDataLink!$CL$20","v":0},{"$f":"CntyDataLink!$CO$20","v":0},{"$f":"CntyDataLink!$CR$20","v":0},{"$f":"CntyDataLink!$CU$20","v":0},{"$f":"CntyDataLink!$CX$20","v":0},{"$f":"CntyDataLink!$DA$20","v":0},{"$f":"CntyDataLink!$DD$20","v":0},{"$f":"CntyDataLink!$DG$20","v":0},{"$f":"CntyDataLink!$DJ$20","v":0},{"$f":"CntyDataLink!$DM$20","v":0},{"$f":"CntyDataLink!$DP$20","v":0},{"$f":"CntyDataLink!$DR$20","v":0},{"$f":"CntyDataLink!$DV$20","v":0},{"$f":"CntyDataLink!$DY$20","v":0},{"$f":"CntyDataLink!$EB$20","v":0},{"$f":"CntyDataLink!$EE$20","v":0},{"$f":"CntyDataLink!$EK$20","v":0},2]
[null,"Total",{"$f":"SUM(C38:C40)","v":3},{"$f":"SUM(D38:D40)","v":11},9,15,5,4,15,8,5,1,0,0,0,0,-1,2,1,3,{"$f":"SUM(U38:U40)","v":3},{"$f":"SUM(V38:V40)","v":5},{"$f":"SUM(W38:W40)","v":8},{"$f":"SUM(X38:X40)","v":7},{"$f":"SUM(C41:W41)","v":97}]

{"sheet":"EmploymentAndWages","index":10,"n_rows":2,"n_cols":2,"rows_kept":2,"cut":false,"hidden":true,"merged":[]}
[]
[null,{"$f":"CntyDataLink!A35","v":"Dublin"}]

{"sheet":"EmpVsHUxCounty","index":11,"n_rows":124,"n_cols":14,"rows_kept":124,"cut":false,"hidden":true,"merged":[[64,0,64,11],[79,0,80,9]]}
[]
[{"$f":"A45","v":"Dublin"}]
[]
[]
[]
[]
[]
[]
[]
[]
[]
[]
[]
[]
[]
[]
[]
[]
[]
[]
[]
[]
[]
[]
[]
[]
[]
[]
[]
[]
[]
[]
[]
[]
[]
[]
[]
[]
[]
[]
[]
[]
[]
["Housing Units "]
[{"$f":"CntyDataLink!A20","v":"Dublin"}]
[null,null,null,"Source:  Office of Planning and Development, NH BEA"]
["Units Authorized By Permit",2010,{"$f":"B47+1","v":2011},{"$f":"C47+1","v":2012},2013,2014,2015,2016,2017,2018,2019,2020,2021]
["Single Family",{"$f":"CntyDataLink!$CY$20","v":0},{"$f":"CntyDataLink!$DB$20","v":0},{"$f":"CntyDataLink!$DE$20","v":0},{"$f":"CntyDataLink!$DH$20","v":0},{"$f":"CntyDataLink!$DK$20","v":-1},{"$f":"CntyDataLink!$DN$20","v":2},{"$f":"CntyDataLink!$DQ$20","v":1},{"$f":"CntyDataLink!$DT$20","v":3},{"$f":"CntyDataLink!$DW$20","v":3},{"$f":"CntyDataLink!$DZ$20","v":5},{"$f":"CntyDataLink!$EC$20","v":8},{"$f":"CntyDataLink!$EI$20","v":7}]
["Multi-family",{"$f":"CntyDataLink!$CZ$20","v":0},{"$f":"CntyDataLink!$DC$20","v":0},{"$f":"CntyDataLink!$DF$20","v":0},{"$f":"CntyDataLink!$DI$20","v":0},{"$f":"CntyDataLink!$DL$20","v":0},{"$f":"CntyDataLink!$DO$20","v":0},{"$f":"CntyDataLink!$DR$20","v":0},{"$f":"CntyDataLink!$DU$20","v":0},{"$f":"CntyDataLink!$DX$20","v":0},{"$f":"CntyDataLink!$EA$20","v":0},{"$f":"CntyDataLink!$ED$20","v":0},{"$f":"CntyDataLink!$EJ$20","v":0}]
["Mobile Home",{"$f":"CntyDataLink!$DA$20","v":0},{"$f":"CntyDataLink!$DD$20","v":0},{"$f":"CntyDataLink!$DG$20","v":0},{"$f":"CntyDataLink!$DJ$20","v":0},{"$f":"CntyDataLink!$DM$20","v":0},{"$f":"CntyDataLink!$DP$20","v":0},{"$f":"CntyDataLink!$DR$20","v":0},{"$f":"CntyDataLink!$DV$20","v":0},{"$f":"CntyDataLink!$DY$20","v":0},{"$f":"CntyDataLink!$EB$20","v":0},{"$f":"CntyDataLink!$EE$20","v":0},{"$f":"CntyDataLink!$EEK20","v":0}]
["Total",{"$f":"SUM(B48:B50)","v":0},0,0,0,-1,2,1,3,{"$f":"SUM(J48:J50)","v":3},{"$f":"SUM(K48:K50)","v":5},{"$f":"SUM(L48:L50)","v":8},{"$f":"SUM(M48:M50)","v":7}]
[]
["Total Housing Units","2010 Census",2011,{"$f":"C53+1","v":2012},2013,2014,2015,2016,2017,2018,2019,2020,2021,{"$f":"M53+1","v":2022}]
["Single Family",{"$f":"CntyDataLink!$BA$167","v":714},{"$f":"B48+B54","v":714},714,714,714,713,715,716,719,722,{"$f":"K54+K48","v":727},735,742]
["Multi Family",{"$f":"CntyDataLink!$BB$167","v":60},60,60,60,60,60,60,60,60,60,60,60,60]
["Mobile Home",{"$f":"CntyDataLink!$BC$167","v":11},11,11,11,11,11,11,11,11,11,11,11,11]
["Total",{"$f":"SUM(B54:B56)","v":785},785,785,785,785,784,786,787,790,793,798,806,{"$f":"SUM(N54:N56)","v":813}]
[]
["Percent Change","2000-2010 Census"," 10-11"," 11-12","12-13","13-14","14-15","15-16","16-17","17-18","18-19","19-20","20-21","21-22"]
["Single Family",{"$f":"(B54-CntyDataLink!CF$65)/CntyDataLink!CF$65","v":0.15347334410339256},{"$f":"(C54-B54)/B54","v":0},0,0,0,-1.4005602240896359E-3,2.8050490883590462E-3,1.3986013986013986E-3,4.1899441340782122E-3,4.172461752433936E-3,6.9252077562326868E-3,1.1004126547455296E-2,9.5238095238095247E-3]
["Multi Family",{"$f":"(B55-SUM(CntyDataLink!CG65:CM65))/SUM(CntyDataLink!CG65:CM65)","v":0.33333333333333331},0,0,0,0,0,0,0,0,0,0,0,0]
["Mobile Home",{"$f":"(B56-SUM(CntyDataLink!CN65))/(CntyDataLink!CN65)","v":-0.5},0,0,0,0,0,0,0,0,0,0,0,0]
["Total",{"$f":"(B57-CntyDataLink!$CE65)/CntyDataLink!$CE65","v":0.14431486880466474},0,0,0,0,-1.2738853503184713E-3,2.5510204081632651E-3,1.2722646310432571E-3,3.8119440914866584E-3,3.7974683544303796E-3,6.3051702395964691E-3,1.0025062656641603E-2,8.6848635235732014E-3]
[]
[]
[]
[]
["Private Employment"]
[{"$f":"CntyDataLink!A25","v":"Dublin"}]
[null,null,2011,{"$f":"C70+1","v":2012},{"$f":"D70+1","v":2013},{"$f":"E70+1","v":2014},{"$f":"F70+1","v":2015},{"$f":"G70+1","v":2016},{"$f":"H70+1","v":2017},{"$f":"I70+1","v":2018},{"$f":"J70+1","v":2019},{"$f":"K70+1","v":2020},{"$f":"L70+1","v":2021},{"$f":"M70+1","v":2022}]
["Goods Producing",null,{"$f":"IF((CntyDataLink!$CG$25)=\"n\",NA(),IF(VALUE(CntyDataLink!$CG$25)=\"\",NA(),VALUE(CntyDataLink!$CG$25)))","v":41},{"$f":"IF((CntyDataLink!$CO$25)=\"n\",NA(),IF(VALUE(CntyDataLink!$CO$25)=\"\",NA(),VALUE(CntyDataLink!$CO$25)))","v":45},{"$f":"IF((CntyDataLink!$CW$25)=\"n\",NA(),IF(VALUE(CntyDataLink!$CW$25)=\"\",NA(),VALUE(CntyDataLink!$CW$25)))","v":48},{"$f":"IF((CntyDataLink!$DE$25)=\"n\",NA(),IF(VALUE(CntyDataLink!$DE$25)=\"\",NA(),VALUE(CntyDataLink!$DE$25)))","v":48},{"$f":"IF((CntyDataLink!$DM$25)=\"n\",NA(),IF(VALUE(CntyDataLink!$DM$25)=\"\",NA(),VALUE(CntyDataLink!$DM$25)))","v":57},{"$f":"IF((CntyDataLink!$DU$25)=\"n\",NA(),IF(VALUE(CntyDataLink!$DU$25)=\"\",NA(),VALUE(CntyDataLink!$DU$25)))","v":60},{"$f":"IF((CntyDataLink!$EC$25)=\"n\",NA(),IF(VALUE(CntyDataLink!$EC$25)=\"\",NA(),VALUE(CntyDataLink!$EC$25)))","v":63},{"$f":"IF((CntyDataLink!$EK$25)=\"n\",NA(),IF(VALUE(CntyDataLink!$EK$25)=\"\",NA(),VALUE(CntyDataLink!$EK$25)))","v":69},{"$f":"IF((CntyDataLink!$ET$25)=\"n\",NA(),IF(VALUE(CntyDataLink!$ET$25)=\"\",NA(),VALUE(CntyDataLink!$ET$25)))","v":62},{"$f":"IF((CntyDataLink!$FD$25)=\"n\",NA(),IF(VALUE(CntyDataLink!$FD$25)=\"\",NA(),VALUE(CntyDataLink!$FD$25)))","v":61},{"$f":"IF((CntyDataLink!$FN$25)=\"n\",NA(),IF(VALUE(CntyDataLink!$FN$25)=\"\",NA(),VALUE(CntyDataLink!$FN$25)))","v":60},{"$f":"IF((CntyDataLink!$FX$25)=\"n\",NA(),IF(VALUE(CntyDataLink!$FX$25)=\"\",NA(),VALUE(CntyDataLink!$FX$25)))","v":57}]
["Service Providing",null,{"$f":"IF((CntyDataLink!$CH$25)=\"n\",NA(),IF(VALUE(CntyDataLink!$CH$25)=\"\",NA(),VALUE(CntyDataLink!$CH$25)))","v":273},{"$f":"IF((CntyDataLink!$CP$25)=\"n\",NA(),IF(VALUE(CntyDataLink!$CP$25)=\"\",NA(),VALUE(CntyDataLink!$CP$25)))","v":287},{"$f":"IF((CntyDataLink!$CX$25)=\"n\",NA(),IF(VALUE(CntyDataLink!$CX$25)=\"\",NA(),VALUE(CntyDataLink!$CX$25)))","v":292},{"$f":"IF((CntyDataLink!$DF$25)=\"n\",NA(),IF(VALUE(CntyDataLink!$DF$25)=\"\",NA(),VALUE(CntyDataLink!$DF$25)))","v":315},{"$f":"IF((CntyDataLink!$DN$25)=\"n\",NA(),IF(VALUE(CntyDataLink!$DN$25)=\"\",NA(),VALUE(CntyDataLink!$DN$25)))","v":318},{"$f":"IF((CntyDataLink!$DV$25)=\"n\",NA(),IF(VALUE(CntyDataLink!$DV$25)=\"\",NA(),VALUE(CntyDataLink!$DV$25)))","v":322},{"$f":"IF((CntyDataLink!$ED$25)=\"n\",NA(),IF(VALUE(CntyDataLink!$ED$25)=\"\",NA(),VALUE(CntyDataLink!$ED$25)))","v":322},{"$f":"IF((CntyDataLink!$EL$25)=\"n\",NA(),IF(VALUE(CntyDataLink!$EL$25)=\"\",NA(),VALUE(CntyDataLink!$EL$25)))","v":299},{"$f":"IF((CntyDataLink!$EU$25)=\"n\",NA(),IF(VALUE(CntyDataLink!$EU$25)=\"\",NA(),VALUE(CntyDataLink!$EU$25)))","v":296},{"$f":"IF((CntyDataLink!$FE$25)=\"n\",NA(),IF(VALUE(CntyDataLink!$FE$25)=\"\",NA(),VALUE(CntyDataLink!$FE$25)))","v":264},{"$f":"IF((CntyDataLink!$FO$25)=\"n\",NA(),IF(VALUE(CntyDataLink!$FO$25)=\"\",NA(),VALUE(CntyDataLink!$FO$25)))","v":286},{"$f":"IF((CntyDataLink!$FY$25)=\"n\",NA(),IF(VALUE(CntyDataLink!$FY$25)=\"\",NA(),VALUE(CntyDataLink!$FY$25)))","v":40}]
["Total Private Emp",null,{"$f":"IF((CntyDataLink!$CF$25)=\"n\",NA(),IF(VALUE(CntyDataLink!$CF$25)=\"\",NA(),VALUE(CntyDataLink!$CF$25)))","v":314},{"$f":"IF((CntyDataLink!$CN$25)=\"n\",NA(),IF(VALUE(CntyDataLink!$CN$25)=\"\",NA(),VALUE(CntyDataLink!$CN$25)))","v":331},{"$f":"IF((CntyDataLink!$CV$25)=\"n\",NA(),IF(VALUE(CntyDataLink!$CV$25)=\"\",NA(),VALUE(CntyDataLink!$CV$25)))","v":340},{"$f":"IF((CntyDataLink!$DD$25)=\"n\",NA(),IF(VALUE(CntyDataLink!$DD$25)=\"\",NA(),VALUE(CntyDataLink!$DD$25)))","v":363},{"$f":"IF((CntyDataLink!$DL$25)=\"n\",NA(),IF(VALUE(CntyDataLink!$DL$25)=\"\",NA(),VALUE(CntyDataLink!$DL$25)))","v":375},{"$f":"IF((CntyDataLink!$DT$25)=\"n\",NA(),IF(VALUE(CntyDataLink!$DT$25)=\"\",NA(),VALUE(CntyDataLink!$DT$25)))","v":382},{"$f":"IF((CntyDataLink!$EB$25)=\"n\",NA(),IF(VALUE(CntyDataLink!$EB$25)=\"\",NA(),VALUE(CntyDataLink!$EB$25)))","v":385},{"$f":"IF((CntyDataLink!$EJ$25)=\"n\",NA(),IF(VALUE(CntyDataLink!$EJ$25)=\"\",NA(),VALUE(CntyDataLink!$EJ$25)))","v":368},{"$f":"IF((CntyDataLink!$ER$25)=\"n\",NA(),IF(VALUE(CntyDataLink!$ER$25)=\"\",NA(),VALUE(CntyDataLink!$ER$25)))","v":358},{"$f":"IF((CntyDataLink!$FB$25)=\"n\",NA(),IF(VALUE(CntyDataLink!$FB$25)=\"\",NA(),VALUE(CntyDataLink!$FB$25)))","v":325},{"$f":"IF((CntyDataLink!$FL$25)=\"n\",NA(),IF(VALUE(CntyDataLink!$FL$25)=\"\",NA(),VALUE(CntyDataLink!$FL$25)))","v":347},{"$f":"IF((CntyDataLink!$FV$25)=\"n\",NA(),IF(VALUE(CntyDataLink!$FV$25)=\"\",NA(),VALUE(CntyDataLink!$FV$25)))","v":368}]
[]
["Percent Change",null,null,"11-12","12-13","13-14","14-15","15-16","16-17","17-18","18-19","19-20","20-21","21-22"]
["Goods Producing",null,null,{"$f":"(D71-C71)/C71","v":9.7560975609756101E-2},{"$f":"(E71-D71)/D71","v":6.6666666666666666E-2},0,0.1875,5.2631578947368418E-2,0.05,9.5238095238095233E-2,-0.10144927536231885,-1.6129032258064516E-2,-1.6393442622950821E-2,{"$f":"(N71-M71)/M71","v":-0.05}]
["Service Providing",null,null,5.128205128205128E-2,1.7421602787456445E-2,7.8767123287671229E-2,9.5238095238095247E-3,1.2578616352201259E-2,0,-7.1428571428571425E-2,-1.0033444816053512E-2,-0.10810810810810811,8.3333333333333329E-2,-0.8601398601398601]
["Total Private Emp",null,null,5.4140127388535034E-2,{"$f":"(E73-D73)/D73","v":2.7190332326283987E-2},6.7647058823529407E-2,3.3057851239669422E-2,1.8666666666666668E-2,7.8534031413612562E-3,-4.4155844155844157E-2,-2.717391304347826E-2,-9.217877094972067E-2,6.7692307692307691E-2,{"$f":"(N73-M73)/M73","v":6.0518731988472622E-2}]
[]
[]
[]
["Source: New Hampshire Department of Employment Security"]
[]
[{"$f":"A2","v":"Dublin"}]
[]
[]
[]
[]
[]
[]
[]
[]
[]
[]
[]
[]
[]
[]
[]
[]
[]
[]
[]
[]
[]
[]
[]
[]
[]
[]
[]
[]
[]
[]
[]
[]
[]
[]
[]
[null,null,2012,{"$f":"C120+1","v":2013},{"$f":"D120+1","v":2014},{"$f":"E120+1","v":2015},{"$f":"F120+1","v":2016},{"$f":"G120+1","v":2017},{"$f":"H120+1","v":2018},{"$f":"I120+1","v":2019},{"$f":"J120+1","v":2020},{"$f":"K120+1","v":2021},{"$f":"L120+1","v":2022}]
["Total Housing Units",null,{"$f":"C$57","v":785},785,785,785,784,786,787,790,793,798,806]
["Private & Government Emp.",null,{"$f":"VALUE(CntyDataLink!$CM$25)","v":371},{"$f":"VALUE(CntyDataLink!$CU$25)","v":377},{"$f":"VALUE(CntyDataLink!$DC$25)","v":397},{"$f":"VALUE(CntyDataLink!$DK$25)","v":411},{"$f":"VALUE(CntyDataLink!$DS$25)","v":418},{"$f":"VALUE(CntyDataLink!$EA$25)","v":427},{"$f":"VALUE(CntyDataLink!$EI$25)","v":408},{"$f":"VALUE(CntyDataLink!$EQ$25)","v":394},{"$f":"VALUE(CntyDataLink!$FA$25)","v":358},{"$f":"VALUE(CntyDataLink!$FK$25)","v":386},{"$f":"VALUE(CntyDataLink!$FU$25)","v":408}]
[]
["Source: New Hampshire Department of Employment Security and New Hampshire Office of Planning and Development"]

{"sheet":"HHIncome-10YearComparison","index":12,"n_rows":50,"n_cols":17,"rows_kept":50,"cut":false,"hidden":true,"merged":[[27,15,27,16],[27,11,27,13],[28,1,28,2],[3,1,3,3],[26,1,26,4],[27,4,27,7],[27,8,27,10]]}
[]
[null,{"$f":"CntyDataLink!A35","v":"Dublin"}]
[]
[null,"INCOME CHARACTERISTICS"]
[]
[]
[]
[]
[]
[]
[]
[]
[]
[]
[]
[]
[]
[]
[]
[]
[]
[]
[]
[]
[]
[]
[null,"Households By Household Income"]
[null,null,null,null,"2008-2012",null,null,null,"2013-2017",null,null,"2018-2022",null,null,null,"Statistically Significant Change"]
[null,"Household Income",null,null,"Estimate","Margin of Error",null,null,"Estimate"," Margin of Error",null,"Estimate"," Margin of Error",null,null,"2012-2022","2017-2022"]
[null,"Less than $10,000",null,null,{"$f":"CntyDataLinkPrior10YearEstimate!$B$120","v":21},{"$f":"CntyDataLinkPrior10YearEstimate!$C$120","v":15},{"$f":"E30/SUM($E$30:$E$39)","v":3.3870967741935487E-2},null,{"$f":"CntyDataLinkPrior5YearEstimates!$B$120","v":14},{"$f":"CntyDataLinkPrior5YearEstimates!$C$120","v":9},{"$f":"I30/SUM($I$30:$I$39)","v":2.3972602739726026E-2},{"$f":"CntyDataLink!$B$120","v":24},{"$f":"CntyDataLink!$C$120","v":17},{"$f":"L30/SUM($L$30:$L$39)","v":3.7795275590551181E-2},null,{"$f":"StatisticallySignificantCalcs!$A$83","v":"N"},{"$f":"StatisticallySignificantCalcs!$J$83","v":"N"}]
[null,"$10,000 to $14,999",null,null,{"$f":"CntyDataLinkPrior10YearEstimate!$D$120","v":4},{"$f":"CntyDataLinkPrior10YearEstimate!$E$120","v":5},{"$f":"E31/SUM($E$30:$E$39)","v":6.4516129032258064E-3},null,{"$f":"CntyDataLinkPrior5YearEstimates!$D$120","v":9},{"$f":"CntyDataLinkPrior5YearEstimates!$E$120","v":7},{"$f":"I31/SUM($I$30:$I$39)","v":1.5410958904109588E-2},{"$f":"CntyDataLink!$D$120","v":41},{"$f":"CntyDataLink!$E$120","v":53},{"$f":"L31/SUM($L$30:$L$39)","v":6.4566929133858267E-2},null,{"$f":"StatisticallySignificantCalcs!$A$84","v":"N"},{"$f":"StatisticallySignificantCalcs!$J$84","v":"N"}]
[null,"$15,000 to $24,999",null,null,{"$f":"CntyDataLinkPrior10YearEstimate!$F$120","v":57},{"$f":"CntyDataLinkPrior10YearEstimate!$G$120","v":31.76476034853718},9.1935483870967741E-2,null,{"$f":"CntyDataLinkPrior5YearEstimates!$F$120","v":68},{"$f":"CntyDataLinkPrior5YearEstimates!$G$120","v":35.383612025908263},0.11643835616438356,{"$f":"CntyDataLink!$F$120","v":12},{"$f":"CntyDataLink!$G$120","v":8.5440037453175304},1.889763779527559E-2,null,{"$f":"StatisticallySignificantCalcs!$A$85","v":"Y"},{"$f":"StatisticallySignificantCalcs!$J$85","v":"N"}]
[null,"$25,000 to $34,999",null,null,{"$f":"CntyDataLinkPrior10YearEstimate!$H$120","v":76},{"$f":"CntyDataLinkPrior10YearEstimate!$I$120","v":37.802116342871599},0.12258064516129032,null,{"$f":"CntyDataLinkPrior5YearEstimates!$H$120","v":76},{"$f":"CntyDataLinkPrior5YearEstimates!$I$120","v":36.400549446402593},0.13013698630136986,{"$f":"CntyDataLink!$H$120","v":25},{"$f":"CntyDataLink!$I$120","v":15.652475842498529},3.937007874015748E-2,null,{"$f":"StatisticallySignificantCalcs!$A$86","v":"Y"},{"$f":"StatisticallySignificantCalcs!$J$86","v":"N"}]
[null,"$35,000 to $49,999",null,null,{"$f":"CntyDataLinkPrior10YearEstimate!$J$120","v":83},{"$f":"CntyDataLinkPrior10YearEstimate!$K$120","v":35.227829907617071},0.13387096774193549,null,{"$f":"CntyDataLinkPrior5YearEstimates!$J$120","v":52},{"$f":"CntyDataLinkPrior5YearEstimates!$K$120","v":29.8496231131986},8.9041095890410954E-2,{"$f":"CntyDataLink!$J$120","v":38},{"$f":"CntyDataLink!$K$120","v":25.159491250818249},5.9842519685039369E-2,null,{"$f":"StatisticallySignificantCalcs!$A$87","v":"Y"},{"$f":"StatisticallySignificantCalcs!$J$87","v":"N"}]
[null,"$50,000 to $74,999",null,null,{"$f":"CntyDataLinkPrior10YearEstimate!$L$120","v":147},{"$f":"CntyDataLinkPrior10YearEstimate!$M$120","v":43.278170016764804},0.23709677419354838,null,{"$f":"CntyDataLinkPrior5YearEstimates!$L$120","v":95},{"$f":"CntyDataLinkPrior5YearEstimates!$M$120","v":35.846896657869841},0.16267123287671234,{"$f":"CntyDataLink!$L$120","v":91},{"$f":"CntyDataLink!$M$120","v":38.183766184073569},0.14330708661417324,null,{"$f":"StatisticallySignificantCalcs!$A$88","v":"N"},{"$f":"StatisticallySignificantCalcs!$J$88","v":"N"}]
[null,"$75,000 to $99,999",null,null,{"$f":"CntyDataLinkPrior10YearEstimate!$N$120","v":65},{"$f":"CntyDataLinkPrior10YearEstimate!$O$120","v":28},0.10483870967741936,null,{"$f":"CntyDataLinkPrior5YearEstimates!$N$120","v":69},{"$f":"CntyDataLinkPrior5YearEstimates!$O$120","v":29},0.11815068493150685,{"$f":"CntyDataLink!$N$120","v":109},{"$f":"CntyDataLink!$O$120","v":65},0.17165354330708663,null,{"$f":"StatisticallySignificantCalcs!$A$89","v":"N"},{"$f":"StatisticallySignificantCalcs!$J$89","v":"N"}]
[null,"$100,000 to $149,999",null,null,{"$f":"CntyDataLinkPrior10YearEstimate!$P$120","v":101},{"$f":"CntyDataLinkPrior10YearEstimate!$Q$120","v":32.649655434629018},0.16290322580645161,null,{"$f":"CntyDataLinkPrior5YearEstimates!$P$120","v":127},{"$f":"CntyDataLinkPrior5YearEstimates!$Q$120","v":39.623225512317902},0.21746575342465754,{"$f":"CntyDataLink!$P$120","v":115},{"$f":"CntyDataLink!$Q$120","v":35.227829907617071},0.18110236220472442,null,{"$f":"StatisticallySignificantCalcs!$A$90","v":"N"},{"$f":"StatisticallySignificantCalcs!$J$90","v":"N"}]
[null,"$150,000 to $199,999",null,null,{"$f":"CntyDataLinkPrior10YearEstimate!$R$120","v":39},{"$f":"CntyDataLinkPrior10YearEstimate!$S$120","v":23},6.2903225806451607E-2,null,{"$f":"CntyDataLinkPrior5YearEstimates!$R$120","v":36},{"$f":"CntyDataLinkPrior5YearEstimates!$S$120","v":14},6.1643835616438353E-2,{"$f":"CntyDataLink!$R$120","v":72},{"$f":"CntyDataLink!$S$120","v":31},0.11338582677165354,null,{"$f":"StatisticallySignificantCalcs!$A$91","v":"N"},{"$f":"StatisticallySignificantCalcs!$J$91","v":"N"}]
[null,"Greater than $200,000",null,null,{"$f":"CntyDataLinkPrior10YearEstimate!$T$120","v":27},{"$f":"CntyDataLinkPrior10YearEstimate!$U$120","v":19},4.3548387096774194E-2,null,{"$f":"CntyDataLinkPrior5YearEstimates!$T$120","v":38},{"$f":"CntyDataLinkPrior5YearEstimates!$U$120","v":18},6.5068493150684928E-2,{"$f":"CntyDataLink!$T$120","v":108},{"$f":"CntyDataLink!$U$120","v":40},0.17007874015748031,null,{"$f":"StatisticallySignificantCalcs!$A$92","v":"Y"},{"$f":"StatisticallySignificantCalcs!$J$92","v":"N"}]
[null,null,null,null,491895,null,null,null,491895]
[null,null,"Median HH Income",null,{"$f":"CntyDataLinkPrior10YearEstimate!$BV$128","v":58125},{"$f":"CntyDataLinkPrior10YearEstimate!$BW$128","v":11278},null,null,{"$f":"CntyDataLinkPrior5YearEstimates!$BV$128","v":69375},{"$f":"CntyDataLinkPrior5YearEstimates!$BW$128","v":13698},null,{"$f":"CntyDataLink!$BV$128","v":96463},{"$f":"CntyDataLink!$BW$128","v":5718}]
[null,null,"HH Income in 2021 Dollars",null,{"$f":"($E$50)*E41","v":66877.639604515003},{"$f":"($E$50)*F41","v":12976.275603608088},null,null,{"$f":"($E$49)*I41","v":74810.372718295723},{"$f":"($E$49)*J41","v":14771.206998129222}]
[]
[null,{"$f":"\"Source:  \"& \" \"&E28&\", \"&I28&\" and \"&L28& \"  American Community Survey; Tables B25119; B19001\"","v":"Source:   2008-2012, 2013-2017 and 2018-2022  American Community Survey; Tables B25119; B19001"}]
[]
[null,"Data from the American Community Survey are estimates."]
[]
[null,"CPI Adjustment Factor"]
[null,"2013-2017",null,null,1.0783477148583167]
[null,"2008-2012",null,null,1.1505830469593978]

{"sheet":"HHIncomeByAge","index":13,"n_rows":80,"n_cols":22,"rows_kept":80,"cut":false,"hidden":true,"merged":[[21,6,21,15]]}
[]
[null,null,{"$f":"CntyDataLink!A55","v":"Dublin"}]
[null,null,"INCOME CHARACTERISTICS"]
[]
[]
[]
[]
[]
[]
[]
[]
[]
[]
[]
[]
[]
[]
[]
[]
[]
[null,null,{"$f":"HHIncomeByAge!C2","v":"Dublin"},"Household Income in 2022"]
[null,null,null,null,null,null,"Households by Age of Householder "]
[null,null,null,"Households","MOE Households",null,"Under 25","MOE Under 25",null,"25 to 44","MOE 25 to 44",null,"45 to 64","MOE 45 to 64",null,"65 & Over","MOE 65 & Over",null,"Family Households","MOE Family HH","Non-Family HH","MOE Non-Family HH"]
[null,null,"Less Than $10,000",{"$f":"CntyDataLink!$D$116","v":24},{"$f":"CntyDataLink!$E$116","v":17},null,{"$f":"CntyDataLink!$AN$116","v":0},{"$f":"CntyDataLink!$AO$116","v":12},null,{"$f":"CntyDataLink!$BV$116","v":3},{"$f":"CntyDataLink!$BW$116","v":4},null,{"$f":"CntyDataLink!$DD$116","v":18},{"$f":"CntyDataLink!$DE$116","v":15},null,{"$f":"CntyDataLink!$EL$116","v":3},{"$f":"CntyDataLink!$EM$116","v":4},null,{"$f":"CntyDataLink!$D$160","v":12},{"$f":"CntyDataLink!$E$160","v":13},{"$f":"CntyDataLink!$AN$160","v":12},{"$f":"CntyDataLink!$AO$160","v":10}]
[null,null,"$10,000 to $14,999",{"$f":"CntyDataLink!$F$116","v":41},{"$f":"CntyDataLink!$G$116","v":53},null,{"$f":"CntyDataLink!$AP$116","v":0},{"$f":"CntyDataLink!$AQ$116","v":12},null,{"$f":"CntyDataLink!$BX$116","v":4},{"$f":"CntyDataLink!$BY$116","v":5},null,{"$f":"CntyDataLink!$DF$116","v":0},{"$f":"CntyDataLink!$DG$116","v":12},null,{"$f":"CntyDataLink!$EN$116","v":37},{"$f":"CntyDataLink!$EO$116","v":53},null,{"$f":"CntyDataLink!$F$160","v":38},{"$f":"CntyDataLink!$G$160","v":53},{"$f":"CntyDataLink!$AP$160","v":3},{"$f":"CntyDataLink!$AQ$160","v":4}]
[null,null,"$15,000 to $19,999",{"$f":"CntyDataLink!$H$116","v":3},{"$f":"CntyDataLink!$I$116","v":3},null,{"$f":"CntyDataLink!$AR$116","v":0},{"$f":"CntyDataLink!$AS$116","v":12},null,{"$f":"CntyDataLink!$BZ$116","v":0},{"$f":"CntyDataLink!$CA$116","v":12},null,{"$f":"CntyDataLink!$DH$116","v":0},{"$f":"CntyDataLink!$DI$116","v":12},null,{"$f":"CntyDataLink!$EP$116","v":3},{"$f":"CntyDataLink!$EQ$116","v":3},null,{"$f":"CntyDataLink!$H$160","v":0},{"$f":"CntyDataLink!$I$160","v":12},{"$f":"CntyDataLink!$AR$160","v":3},{"$f":"CntyDataLink!$AS$160","v":3}]
[null,null,"$20,000 to $24,999",{"$f":"CntyDataLink!$J$116","v":9},{"$f":"CntyDataLink!$K$116","v":8},null,{"$f":"CntyDataLink!$AT$116","v":0},{"$f":"CntyDataLink!$AU$116","v":12},null,{"$f":"CntyDataLink!$CB$116","v":3},{"$f":"CntyDataLink!$CC$116","v":4},null,{"$f":"CntyDataLink!$DJ$116","v":6},{"$f":"CntyDataLink!$DK$116","v":6},null,{"$f":"CntyDataLink!$ER$116","v":0},{"$f":"CntyDataLink!$ES$116","v":12},null,{"$f":"CntyDataLink!$J$160","v":4},{"$f":"CntyDataLink!$K$160","v":5},{"$f":"CntyDataLink!$AT$160","v":5},{"$f":"CntyDataLink!$AU$160","v":5}]
[null,null,"$25,000 to $29,999",{"$f":"CntyDataLink!$L$116","v":18},{"$f":"CntyDataLink!$M$116","v":14},null,{"$f":"CntyDataLink!$AV$116","v":0},{"$f":"CntyDataLink!$AW$116","v":12},null,{"$f":"CntyDataLink!$CD$116","v":0},{"$f":"CntyDataLink!$CE$116","v":12},null,{"$f":"CntyDataLink!$DL$116","v":15},{"$f":"CntyDataLink!$DM$116","v":12},null,{"$f":"CntyDataLink!$ET$116","v":3},{"$f":"CntyDataLink!$EU$116","v":4},null,{"$f":"CntyDataLink!$L$160","v":14},{"$f":"CntyDataLink!$M$160","v":12},{"$f":"CntyDataLink!$AV$160","v":4},{"$f":"CntyDataLink!$AW$160","v":6}]
[null,null,"$30,000 to $34,999",{"$f":"CntyDataLink!$N$116","v":7},{"$f":"CntyDataLink!$O$116","v":7},null,{"$f":"CntyDataLink!$AX$116","v":0},{"$f":"CntyDataLink!$AY$116","v":12},null,{"$f":"CntyDataLink!$CF$116","v":0},{"$f":"CntyDataLink!$CG$116","v":12},null,{"$f":"CntyDataLink!$DN$116","v":5},{"$f":"CntyDataLink!$DO$116","v":6},null,{"$f":"CntyDataLink!$EV$116","v":2},{"$f":"CntyDataLink!$EW$116","v":3},null,{"$f":"CntyDataLink!$N$160","v":2},{"$f":"CntyDataLink!$O$160","v":3},{"$f":"CntyDataLink!$AX$160","v":5},{"$f":"CntyDataLink!$AY$160","v":6}]
[null,null,"$35,000 to $39,999",{"$f":"CntyDataLink!$P$116","v":16},{"$f":"CntyDataLink!$Q$116","v":19},null,{"$f":"CntyDataLink!$AZ$116","v":3},{"$f":"CntyDataLink!$BA$116","v":4},null,{"$f":"CntyDataLink!$CH$116","v":0},{"$f":"CntyDataLink!$CI$116","v":12},null,{"$f":"CntyDataLink!$DP$116","v":13},{"$f":"CntyDataLink!$DQ$116","v":19},null,{"$f":"CntyDataLink!$EX$116","v":0},{"$f":"CntyDataLink!$EY$116","v":12},null,{"$f":"CntyDataLink!$P$160","v":20},{"$f":"CntyDataLink!$Q$160","v":20},{"$f":"CntyDataLink!$AZ$160","v":0},{"$f":"CntyDataLink!$BA$160","v":12}]
[null,null,"$40,000 to $44,999",{"$f":"CntyDataLink!$R$116","v":3},{"$f":"CntyDataLink!$S$116","v":4},null,{"$f":"CntyDataLink!$BB$116","v":0},{"$f":"CntyDataLink!$BC$116","v":12},null,{"$f":"CntyDataLink!$CJ$116","v":0},{"$f":"CntyDataLink!$CK$116","v":12},null,{"$f":"CntyDataLink!$DR$116","v":0},{"$f":"CntyDataLink!$DS$116","v":12},null,{"$f":"CntyDataLink!$EZ$116","v":3},{"$f":"CntyDataLink!$FA$116","v":4},null,{"$f":"CntyDataLink!$R$160","v":3},{"$f":"CntyDataLink!$S$160","v":4},{"$f":"CntyDataLink!$BB$160","v":0},{"$f":"CntyDataLink!$BC$160","v":12}]
[null,null,"$45,000 to $49,999",{"$f":"CntyDataLink!$T$116","v":19},{"$f":"CntyDataLink!$U$116","v":16},null,{"$f":"CntyDataLink!$BD$116","v":0},{"$f":"CntyDataLink!$BE$116","v":12},null,{"$f":"CntyDataLink!$CL$116","v":0},{"$f":"CntyDataLink!$CM$116","v":12},null,{"$f":"CntyDataLink!$DT$116","v":3},{"$f":"CntyDataLink!$DU$116","v":4},null,{"$f":"CntyDataLink!$FB$116","v":16},{"$f":"CntyDataLink!$FC$116","v":15},null,{"$f":"CntyDataLink!$T$160","v":7},{"$f":"CntyDataLink!$U$160","v":11},{"$f":"CntyDataLink!$BD$160","v":12},{"$f":"CntyDataLink!$BE$160","v":13}]
[null,null,"$50,000 to $59,999",{"$f":"CntyDataLink!$V$116","v":58},{"$f":"CntyDataLink!$W$116","v":27},null,{"$f":"CntyDataLink!$BF$116","v":0},{"$f":"CntyDataLink!$BG$116","v":12},null,{"$f":"CntyDataLink!$CN$116","v":18},{"$f":"CntyDataLink!$CO$116","v":16},null,{"$f":"CntyDataLink!$DV$116","v":12},{"$f":"CntyDataLink!$DW$116","v":10},null,{"$f":"CntyDataLink!$FD$116","v":28},{"$f":"CntyDataLink!$FE$116","v":20},null,{"$f":"CntyDataLink!$V$160","v":54},{"$f":"CntyDataLink!$W$160","v":27},{"$f":"CntyDataLink!$BF$160","v":0},{"$f":"CntyDataLink!$BG$160","v":12}]
[null,null,"$60,000 to $74,999",{"$f":"CntyDataLink!$X$116","v":33},{"$f":"CntyDataLink!$Y$116","v":27},null,{"$f":"CntyDataLink!$BH$116","v":0},{"$f":"CntyDataLink!$BI$116","v":12},null,{"$f":"CntyDataLink!$CP$116","v":16},{"$f":"CntyDataLink!$CQ$116","v":23},null,{"$f":"CntyDataLink!$DX$116","v":6},{"$f":"CntyDataLink!$DY$116","v":8},null,{"$f":"CntyDataLink!$FF$116","v":11},{"$f":"CntyDataLink!$FG$116","v":11},null,{"$f":"CntyDataLink!$X$160","v":28},{"$f":"CntyDataLink!$Y$160","v":26},{"$f":"CntyDataLink!$BH$160","v":5},{"$f":"CntyDataLink!$BI$160","v":6}]
[null,null,"$75,000 to $99,999",{"$f":"CntyDataLink!$Z$116","v":109},{"$f":"CntyDataLink!$AA$116","v":65},null,{"$f":"CntyDataLink!$BJ$116","v":0},{"$f":"CntyDataLink!$BK$116","v":12},null,{"$f":"CntyDataLink!$CR$116","v":9},{"$f":"CntyDataLink!$CS$116","v":9},null,{"$f":"CntyDataLink!$DZ$116","v":76},{"$f":"CntyDataLink!$EA$116","v":66},null,{"$f":"CntyDataLink!$FH$116","v":24},{"$f":"CntyDataLink!$FI$116","v":11},null,{"$f":"CntyDataLink!$Z$160","v":101},{"$f":"CntyDataLink!$AA$160","v":67},{"$f":"CntyDataLink!$BJ$160","v":17},{"$f":"CntyDataLink!$BK$160","v":10}]
[null,null,"$100,000 to $124,999",{"$f":"CntyDataLink!$AB$116","v":72},{"$f":"CntyDataLink!$AC$116","v":29},null,{"$f":"CntyDataLink!$BL$116","v":0},{"$f":"CntyDataLink!$BM$116","v":12},null,{"$f":"CntyDataLink!$CT$116","v":25},{"$f":"CntyDataLink!$CU$116","v":19},null,{"$f":"CntyDataLink!$EB$116","v":24},{"$f":"CntyDataLink!$EC$116","v":19},null,{"$f":"CntyDataLink!$FJ$116","v":23},{"$f":"CntyDataLink!$FK$116","v":14},null,{"$f":"CntyDataLink!$AB$160","v":56},{"$f":"CntyDataLink!$AC$160","v":27},{"$f":"CntyDataLink!$BL$160","v":16},{"$f":"CntyDataLink!$BM$160","v":13}]
[null,null,"$125,000 to $149,999",{"$f":"CntyDataLink!$AD$116","v":43},{"$f":"CntyDataLink!$AE$116","v":20},null,{"$f":"CntyDataLink!$BN$116","v":0},{"$f":"CntyDataLink!$BO$116","v":12},null,{"$f":"CntyDataLink!$CV$116","v":10},{"$f":"CntyDataLink!$CW$116","v":8},null,{"$f":"CntyDataLink!$ED$116","v":12},{"$f":"CntyDataLink!$EE$116","v":9},null,{"$f":"CntyDataLink!$FL$116","v":21},{"$f":"CntyDataLink!$FM$116","v":17},null,{"$f":"CntyDataLink!$AD$160","v":37},{"$f":"CntyDataLink!$AE$160","v":20},{"$f":"CntyDataLink!$BN$160","v":6},{"$f":"CntyDataLink!$BO$160","v":5}]
[null,null,"$150,000 to $199,999",{"$f":"CntyDataLink!$AF$116","v":72},{"$f":"CntyDataLink!$AG$116","v":31},null,{"$f":"CntyDataLink!$BP$116","v":0},{"$f":"CntyDataLink!$BQ$116","v":12},null,{"$f":"CntyDataLink!$CX$116","v":13},{"$f":"CntyDataLink!$CY$116","v":14},null,{"$f":"CntyDataLink!$EF$116","v":34},{"$f":"CntyDataLink!$EG$116","v":22},null,{"$f":"CntyDataLink!$FN$116","v":25},{"$f":"CntyDataLink!$FO$116","v":18},null,{"$f":"CntyDataLink!$AF$160","v":62},{"$f":"CntyDataLink!$AG$160","v":30},{"$f":"CntyDataLink!$BP$160","v":6},{"$f":"CntyDataLink!$BQ$160","v":6}]
[null,null,"$200,000 or More",{"$f":"CntyDataLink!$AH$116","v":108},{"$f":"CntyDataLink!$AI$116","v":40},null,{"$f":"CntyDataLink!$BR$116","v":0},{"$f":"CntyDataLink!$BS$116","v":12},null,{"$f":"CntyDataLink!$CZ$116","v":0},{"$f":"CntyDataLink!$DA$116","v":12},null,{"$f":"CntyDataLink!$EH$116","v":77},{"$f":"CntyDataLink!$EI$116","v":33},null,{"$f":"CntyDataLink!$FP$116","v":31},{"$f":"CntyDataLink!$FQ$116","v":21},null,{"$f":"CntyDataLink!$AH$160","v":89},{"$f":"CntyDataLink!$AI$160","v":36},{"$f":"CntyDataLink!$BR$160","v":14},{"$f":"CntyDataLink!$BS$160","v":18}]
[]
[null,null,"Total Households",{"$f":"CntyDataLink!$B$116","v":635},{"$f":"CntyDataLink!$C$116","v":101},null,{"$f":"CntyDataLink!$AL$116","v":3},{"$f":"CntyDataLink!$AM$116","v":4},null,{"$f":"CntyDataLink!$BT$116","v":101},{"$f":"CntyDataLink!$BU$116","v":37},null,{"$f":"CntyDataLink!$DB$116","v":301},{"$f":"CntyDataLink!$DC$116","v":79},null,{"$f":"CntyDataLink!$EJ$116","v":230},{"$f":"CntyDataLink!$EK$116","v":62},null,{"$f":"CntyDataLink!$B$160","v":527},{"$f":"CntyDataLink!$C$160","v":93},{"$f":"CntyDataLink!$AL$160","v":108},{"$f":"CntyDataLink!$AM$160","v":32}]
[null,null,"Median Household Inc ",{"$f":"CntyDataLink!$FR$116","v":96463},{"$f":"CntyDataLink!$FS$116","v":5718},null,{"$f":"CntyDataLink!$FT$116","v":"-"},{"$f":"CntyDataLink!$FU$116","v":"**"},null,{"$f":"CntyDataLink!$FV$116","v":92917},{"$f":"CntyDataLink!$FW$116","v":28767},null,{"$f":"CntyDataLink!$FX$116","v":97473},{"$f":"CntyDataLink!$FY$116","v":21349},null,{"$f":"CntyDataLink!$FZ$116","v":81071},{"$f":"CntyDataLink!$GA$116","v":36511},null,{"$f":"CntyDataLink!$AJ$160","v":96763},{"$f":"CntyDataLink!$AK$160","v":6705},{"$f":"CntyDataLink!BT$160","v":81071},{"$f":"CntyDataLink!$BU$160","v":22886}]
[]
[null,null,"Source: 2018-2022 American Community Survey Table B19001; B19037; B19101; B19102; B19112; B19113; B19049"]
[null,null,"Data from the American Community Survey are estimates"]
[]
[null,null,{"$f":"C2","v":"Dublin"}]
[null,null,"INCOME CHARACTERISTICS"]
[]
[]
[]
[]
[]
[]
[]
[]
[]
[]
[]
[]
[]
[]
[]
[]
[]
[]
[]
[]
[]
[]
[]
[]
[]
[]
[]
[]
[]
[]
[]
[null,null,"Source: 2018-2022 American Community Survey Table B19001; B19102",null,null,null,null,null,null,null,null,null,null,null,null,"Data from the American Community Survey are estimates"]

{"sheet":"HHIncomeByTenure","index":14,"n_rows":64,"n_cols":17,"rows_kept":64,"cut":false,"hidden":true,"merged":[[2,3,2,5],[58,3,58,6],[58,8,58,11],[58,13,58,16],[59,3,59,6],[59,8,59,11],[59,13,59,16],[63,3,63,4],[63,8,63,9],[63,13,63,14],[61,3,61,4],[61,8,61,9],[61,13,61,14],[62,3,62,4],[62,8,62,9],[62,13,62,14]]}
[]
[null,null,null,{"$f":"CntyDataLink!A80","v":"Dublin"}]
[null,null,null,"INCOME CHARACTERISTICS"]
[]
[]
[]
[]
[]
[]
[]
[]
[]
[]
[]
[]
[]
[]
[]
[]
[]
[]
[]
[]
[]
[]
[]
[]
[null,null,null,{"$f":"D2","v":"Dublin"}]
[null,null,null,"Household Income By Tenure"]
[null,null,null,null,null,"2022 Household Income 1",null,"Occupied Housing Units","Margin of Error Occupied Housing Units","Owner Occupied Housing Units","Margin of Error Owner Occupied Housing Units","Renter Occupied Housing Units","Margin of Error Renter Occupied Housing Units"]
[]
[null,null,null,null,null,"Total",null,{"$f":"CntyDataLink!$B$128","v":635},{"$f":"CntyDataLink!$C$128","v":101},{"$f":"CntyDataLink!$D$128","v":530},{"$f":"CntyDataLink!$E$128","v":99},{"$f":"CntyDataLink!$AB$128","v":105},{"$f":"CntyDataLink!$AC$128","v":41}]
[null,null,null,4999,{"$f":"VALUE(RIGHT(F33,7))","v":5000},"Less Than $5,000",null,{"$f":"CntyDataLink!$AZ$128","v":24},{"$f":"CntyDataLink!$BA$128","v":16.401219466856727},{"$f":"CntyDataLink!$F$128","v":12},{"$f":"CntyDataLink!$G$128","v":10},{"$f":"CntyDataLink!$AD$128","v":12},{"$f":"CntyDataLink!$AE$128","v":13}]
[null,null,{"$f":"VALUE(RIGHT($F33,7))","v":5000},4999,10000,"$5,000 to $10,000",null,{"$f":"CntyDataLink!$BB$128","v":0},{"$f":"CntyDataLink!$BC$128","v":16.970562748477139},{"$f":"CntyDataLink!$H$128","v":0},{"$f":"CntyDataLink!$I$128","v":12},{"$f":"CntyDataLink!$AF$128","v":0},{"$f":"CntyDataLink!$AG$128","v":12}]
[null,null,10000,4999,15000,"$10,000 to $15,000",null,{"$f":"CntyDataLink!$BD$128","v":41},{"$f":"CntyDataLink!$BE$128","v":53.460265618494638},{"$f":"CntyDataLink!$J$128","v":34},{"$f":"CntyDataLink!$K$128","v":53},{"$f":"CntyDataLink!$AH$128","v":7},{"$f":"CntyDataLink!$AI$128","v":7}]
[null,null,15000,4999,20000,"$15,000 to $20,000",null,{"$f":"CntyDataLink!$BF$128","v":3},{"$f":"CntyDataLink!$BG$128","v":12.369316876852981},{"$f":"CntyDataLink!$L$128","v":3},{"$f":"CntyDataLink!$M$128","v":3},{"$f":"CntyDataLink!$AJ$128","v":0},{"$f":"CntyDataLink!$AK$128","v":12}]
[null,null,20000,4999,25000,"$20,000 to $25,000",null,{"$f":"CntyDataLink!$BH$128","v":9},{"$f":"CntyDataLink!$BI$128","v":14.422205101855956},{"$f":"CntyDataLink!$N$128","v":0},{"$f":"CntyDataLink!$O$128","v":12},{"$f":"CntyDataLink!$AL$128","v":9},{"$f":"CntyDataLink!$AM$128","v":8}]
[null,null,25000,9999,35000,"$25,000 to $35,000",null,{"$f":"CntyDataLink!$BJ$128","v":25},{"$f":"CntyDataLink!$BK$128","v":15.264337522473747},{"$f":"CntyDataLink!$P$128","v":8},{"$f":"CntyDataLink!$Q$128","v":8},{"$f":"CntyDataLink!$AN$128","v":17},{"$f":"CntyDataLink!$AO$128","v":13}]
[null,null,35000,14999,50000,"$35,000 to $50,000",null,{"$f":"CntyDataLink!$BL$128","v":38},{"$f":"CntyDataLink!$BM$128","v":26.419689627245813},{"$f":"CntyDataLink!$R$128","v":26},{"$f":"CntyDataLink!$S$128","v":23},{"$f":"CntyDataLink!$AP$128","v":12},{"$f":"CntyDataLink!$AQ$128","v":13}]
[null,null,50000,24999,75000,"$50,000 to $75,000",null,{"$f":"CntyDataLink!$BN$128","v":91},{"$f":"CntyDataLink!$BO$128","v":36.878177829171548},{"$f":"CntyDataLink!$T$128","v":69},{"$f":"CntyDataLink!$U$128","v":28},{"$f":"CntyDataLink!$AR$128","v":22},{"$f":"CntyDataLink!$AS$128","v":24}]
[null,null,75000,24999,100000,"$75,000 to $100,000",null,{"$f":"CntyDataLink!$BP$128","v":109},{"$f":"CntyDataLink!$BQ$128","v":65.12296062065974},{"$f":"CntyDataLink!$V$128","v":106},{"$f":"CntyDataLink!$W$128","v":65},{"$f":"CntyDataLink!$AT$128","v":3},{"$f":"CntyDataLink!$AU$128","v":4}]
[null,null,100000,49999,150000,"$100,000 to $150,000",null,{"$f":"CntyDataLink!$BR$128","v":115},{"$f":"CntyDataLink!$BS$128","v":35.805027579936315},{"$f":"CntyDataLink!$X$128","v":92},{"$f":"CntyDataLink!$Y$128","v":29},{"$f":"CntyDataLink!$AV$128","v":23},{"$f":"CntyDataLink!$AW$128","v":21}]
[null,null,150000,null,null,"$150,000 and More",null,{"$f":"CntyDataLink!$BT$128","v":180},{"$f":"CntyDataLink!$BU$128","v":48.507731342539614},{"$f":"CntyDataLink!$Z$128","v":180},{"$f":"CntyDataLink!$AA$128","v":47},{"$f":"CntyDataLink!$AX$128","v":0},{"$f":"CntyDataLink!$AY$128","v":12}]
[]
[]
[null,null,null,null,null,"Median Household Income 2",null,{"$f":"CntyDataLink!$BV$128","v":96463},{"$f":"CntyDataLink!$BW$128","v":5718},{"$f":"CntyDataLink!$BX$128","v":101250},{"$f":"CntyDataLink!$BY$128","v":15206},{"$f":"CntyDataLink!$BZ$128","v":48750},{"$f":"CntyDataLink!$CA$128","v":34676}]
[]
[]
[null,null,null,null,null,"Data from the American Community Survey are estimates"]
[]
[null,null,null,"Source:",1,"2017-2021 American Community Survey Table B25118;  2022 Inflation Adjusted dollars"]
[null,null,null,null,2,"2017-2021 American Community Survey Table B25119;  2022 Inflation Adjusted dollars"]
[]
[]
[]
[null,null,null,"HOUSEHOLD INCOME IN THE PAST 12 MONTHS BY PERCENT OF MEDIAN THRESHOLD"]
[]
[]
[null,null,null,"All Occupied Housing Units",null,null,null,null,"Owner Occupied Households",null,null,null,null,"Renter Occupied Households"]
[]
[null,null,null,"HOUSEHOLD INCOME",null,"Estimate","Margin Of Error",null,"HOUSEHOLD INCOME",null,"Estimate","Margin Of Error",null,"HOUSEHOLD INCOME",null,"Estimate","Margin Of Error"]
[null,null,{"$f":"$H$46*0.3","v":28938.899999999998},"30% of Median Household Income",null,{"$f":"IF($C$62<$C$36,((($C$62-$C$35)/$D$35)*$H$35)+SUM($H$33:$H$34),IF($C$62<$C$37,((($C$62-$C$36)/$D$36)*$H$36)+SUM($H$33:$H$35),IF($C$62<$C$38,((($C$62-$C$37)/$D$37)*$H$37)+SUM($H$33:$H$36),IF($C$62<$C$39,((($C$62-$C$38)/$D$38)*$H$38)+SUM($H$33:$H$37),IF($C$62<$C$40,((($C$62-$C$39)/$D$39)*$H$39)+SUM($H$33:$H$38),IF($C$62<$C$41,((($C$62-$C$40)/$D$40)*$H$40)+SUM($H$33:$H$39),IF($C$62<$C$42,((($C$62-$C$41)/$D$41)*$H$41)+SUM($H$33:$H$40),\"False\")))))))","v":86.848234823482343},{"$f":"IF($C$62<$C$36,((($C$62-$C$35)/$D$35)*$I$35)+SQRT(SUM(($I$33^2),($I$34^2))),IF($C$62<$C$37,((($C$62-$C$36)/$D$36)*$I$36)+SQRT(SUM(($I$33^2),($I$34^2),($I$35^2))),IF($C$62<$C$38,((($C$62-$C$37)/$D$37)*$I$37)+SQRT(SUM(($I$33^2),($I$34^2),($I$35^2),($I$36^2))),IF($C$62<$C$39,((($C$62-$C$38)/$D$38)*$I$38)+SQRT(SUM(($I$33^2),($I$34^2),($I$35^2),($I$36^2),($I$37^2))),IF($C$62<$C$40,((($C$62-$C$39)/$D$39)*$I$39)+SQRT(SUM(($I$33^2),($I$34^2),($I$35^2),($I$36^2),($I$37^2),($I$38^2))),IF($C$62<$C$41,((($C$62-$C$40)/$D$40)*$I$40)+SQRT(SUM(($I$33^2),($I$34^2),($I$35^2),($I$36^2),($I$37^2),($I$38^2),($I$39^2))),IF($C$62<$C$42,((($C$62-$C$41)/$D$41)*$I$41)+SQRT((($I$33^2)+($I$34^2)+($I$35^2)+($I$36^2)+($I$37^2)+($I$38^2)+($I$39^2)+($I$40^2))),\"False\")))))))","v":67.462237196797432},{"$f":"$J$46*0.3","v":30375},"30% of Median Household Income",null,{"$f":"IF($H$62<$C$36,((($H$62-$C$35)/$D$35)*$J$35)+SUM($J$33:$J$34),IF($H$62<$C$37,((($H$62-$C$36)/$D$36)*$J$36)+SUM($J$33:$J$35),IF($H$62<$C$38,((($H$62-$C$37)/$D$37)*$J$37)+SUM($J$33:$J$36),IF($H$62<$C$39,((($H$62-$C$38)/$D$38)*$J$38)+SUM($J$33:$J$37),IF($H$62<$C$40,((($H$62-$C$39)/$D$39)*$J$39)+SUM($J$33:$J$38),IF($H$62<$C$41,((($H$62-$C$40)/$D$40)*$J$40)+SUM($J$33:$J$39),IF($H$62<$C$42,((($H$62-$C$41)/$D$41)*$J$41)+SUM($J$33:$J$40),\"False\")))))))","v":53.300430043004297},{"$f":"IF($H$62<$C$36,((($H$62-$C$35)/$D$35)*$K$35)+SQRT(SUM(($K$33^2),($K$34^2))),IF($H$62<$C$37,((($H$62-$C$36)/$D$36)*$K$36)+SQRT(SUM(($K$33^2),($K$34^2),($K$35^2))),IF($H$62<$C$38,((($H$62-$C$37)/$D$37)*$K$37)+SQRT(SUM(($K$33^2),($K$34^2),($K$35^2),($K$36^2))),IF($H$62<$C$39,((($H$62-$C$38)/$D$38)*$K$38)+SQRT(SUM(($K$33^2),($K$34^2),($K$35^2),($K$36^2),($K$37^2))),IF($H$62<$C$40,((($H$62-$C$39)/$D$39)*$K$39)+SQRT(SUM(($K$33^2),($K$34^2),($K$35^2),($K$36^2),($K$37^2),($K$38^2))),IF($H$62<$C$41,((($H$62-$C$40)/$D$40)*$K$40)+SQRT(SUM(($K$33^2),($K$34^2),($K$35^2),($K$36^2),($K$37^2),($K$38^2),($K$39^2))),IF($H$62<$C$42,((($H$62-$C$41)/$D$41)*$K$41)+SQRT((($K$33^2)+($K$34^2)+($K$35^2)+($K$36^2)+($K$37^2)+($K$38^2)+($K$39^2)+($K$40^2))),\"False\")))))))","v":60.921980710572562},{"$f":"$L$46*0.3","v":14625},"30% of Median Household Income",null,{"$f":"IF($M$62<$C$36,((($M$62-$C$35)/$D$35)*$L$35)+SUM($L$33:$L$34),IF($M$62<$C$37,((($M$62-$C$36)/$D$36)*$L$36)+SUM($L$33:$L$35),IF($M$62<$C$38,((($M$62-$C$37)/$D$37)*$L$37)+SUM($L$33:$L$36),IF($M$62<$C$39,((($M$62-$C$38)/$D$38)*$L$38)+SUM($L$33:$L$37),IF($M$62<$C$40,((($M$62-$C$39)/$D$39)*$L$39)+SUM($L$33:$L$38),IF($M$62<$C$41,((($M$62-$C$40)/$D$40)*$L$40)+SUM($L$33:$L$39),IF($M$62<$C$42,((($M$62-$C$41)/$D$41)*$L$41)+SUM($L$33:$L$40),\"False\")))))))","v":18.47629525905181},{"$f":"IF($M$62<$C$36,((($M$62-$C$35)/$D$35)*$M$35)+SQRT(SUM(($M$33^2),($M$34^2))),IF($M$62<$C$37,((($M$62-$C$36)/$D$36)*$M$36)+SQRT(SUM(($M$33^2),($M$34^2),($M$35^2))),IF($M$62<$C$38,((($M$62-$C$37)/$D$37)*$M$37)+SQRT(SUM(($M$33^2),($M$34^2),($M$35^2),($M$36^2))),IF($M$62<$C$39,((($M$62-$C$38)/$D$38)*$M$38)+SQRT(SUM(($M$33^2),($M$34^2),($M$35^2),($M$36^2),($M$37^2))),IF($M$62<$C$40,((($M$62-$C$39)/$D$39)*$M$39)+SQRT(SUM(($M$33^2),($M$34^2),($M$35^2),($M$36^2),($M$37^2),($M$38^2))),IF($M$62<$C$41,((($M$62-$C$40)/$D$40)*$M$40)+SQRT(SUM(($M$33^2),($M$34^2),($M$35^2),($M$36^2),($M$37^2),($M$38^2),($M$39^2))),IF($M$62<$C$42,((($M$62-$C$41)/$D$41)*$M$41)+SQRT((($M$33^2)+($M$34^2)+($M$35^2)+($M$36^2)+($M$37^2)+($M$38^2)+($M$39^2)+($M$40^2))),\"False\")))))))","v":24.168101272005941}]
[490,null,{"$f":"$H$46*0.5","v":48231.5},"50% of Median Household Income",null,{"$f":"IF($C$63<$C$36,((($C$63-$C$35)/$D$35)*$H$35)+SUM($H$33:$H$34),IF($C$63<$C$37,((($C$63-$C$36)/$D$36)*$H$36)+SUM($H$33:$H$35),IF($C$63<$C$38,((($C$63-$C$37)/$D$37)*$H$37)+SUM($H$33:$H$36),IF($C$63<$C$39,((($C$63-$C$38)/$D$38)*$H$38)+SUM($H$33:$H$37),IF($C$63<$C$40,((($C$63-$C$39)/$D$39)*$H$39)+SUM($H$33:$H$38),IF($C$63<$C$41,((($C$63-$C$40)/$D$40)*$H$40)+SUM($H$33:$H$39),IF($C$63<$C$42,((($C$63-$C$41)/$D$41)*$H$41)+SUM($H$33:$H$40),\"False\")))))))","v":135.52203480232015},{"$f":"IF($C$63<$C$36,((($C$63-$C$35)/$D$35)*$I$35)+SQRT(SUM(($I$33^2),($I$34^2))),IF($C$63<$C$37,((($C$63-$C$36)/$D$36)*$I$36)+SQRT(SUM(($I$33^2),($I$34^2),($I$35^2))),IF($C$63<$C$38,((($C$63-$C$37)/$D$37)*$I$37)+SQRT(SUM(($I$33^2),($I$34^2),($I$35^2),($I$36^2))),IF($C$63<$C$39,((($C$63-$C$38)/$D$38)*$I$38)+SQRT(SUM(($I$33^2),($I$34^2),($I$35^2),($I$36^2),($I$37^2))),IF($C$63<$C$40,((($C$63-$C$39)/$D$39)*$I$39)+SQRT(SUM(($I$33^2),($I$34^2),($I$35^2),($I$36^2),($I$37^2),($I$38^2))),IF($C$63<$C$41,((($C$63-$C$40)/$D$40)*$I$40)+SQRT(SUM(($I$33^2),($I$34^2),($I$35^2),($I$36^2),($I$37^2),($I$38^2),($I$39^2))),IF($C$63<$C$42,((($C$63-$C$41)/$D$41)*$I$41)+SQRT((($I$33^2)+($I$34^2)+($I$35^2)+($I$36^2)+($I$37^2)+($I$38^2)+($I$39^2)+($I$40^2))),\"False\")))))))","v":86.623026450765622},{"$f":"$J$46*0.5","v":50625},"50% of Median Household Income",null,{"$f":"IF($H$63<$C$36,((($H$63-$C$35)/$D$35)*$J$35)+SUM($J$33:$J$34),IF($H$63<$C$37,((($H$63-$C$36)/$D$36)*$J$36)+SUM($J$33:$J$35),IF($H$63<$C$38,((($H$63-$C$37)/$D$37)*$J$37)+SUM($J$33:$J$36),IF($H$63<$C$39,((($H$63-$C$38)/$D$38)*$J$38)+SUM($J$33:$J$37),IF($H$63<$C$40,((($H$63-$C$39)/$D$39)*$J$39)+SUM($J$33:$J$38),IF($H$63<$C$41,((($H$63-$C$40)/$D$40)*$J$40)+SUM($J$33:$J$39),IF($H$63<$C$42,((($H$63-$C$41)/$D$41)*$J$41)+SUM($J$33:$J$40),\"False\")))))))","v":84.725069002760108},{"$f":"IF($H$63<$C$36,((($H$63-$C$35)/$D$35)*$K$35)+SQRT(SUM(($K$33^2),($K$34^2))),IF($H$63<$C$37,((($H$63-$C$36)/$D$36)*$K$36)+SQRT(SUM(($K$33^2),($K$34^2),($K$35^2))),IF($H$63<$C$38,((($H$63-$C$37)/$D$37)*$K$37)+SQRT(SUM(($K$33^2),($K$34^2),($K$35^2),($K$36^2))),IF($H$63<$C$39,((($H$63-$C$38)/$D$38)*$K$38)+SQRT(SUM(($K$33^2),($K$34^2),($K$35^2),($K$36^2),($K$37^2))),IF($H$63<$C$40,((($H$63-$C$39)/$D$39)*$K$39)+SQRT(SUM(($K$33^2),($K$34^2),($K$35^2),($K$36^2),($K$37^2),($K$38^2))),IF($H$63<$C$41,((($H$63-$C$40)/$D$40)*$K$40)+SQRT(SUM(($K$33^2),($K$34^2),($K$35^2),($K$36^2),($K$37^2),($K$38^2),($K$39^2))),IF($H$63<$C$42,((($H$63-$C$41)/$D$41)*$K$41)+SQRT((($K$33^2)+($K$34^2)+($K$35^2)+($K$36^2)+($K$37^2)+($K$38^2)+($K$39^2)+($K$40^2))),\"False\")))))))","v":62.336056426059955},{"$f":"$L$46*0.5","v":24375},"50% of Median Household Income",null,{"$f":"IF($M$63<$C$36,((($M$63-$C$35)/$D$35)*$L$35)+SUM($L$33:$L$34),IF($M$63<$C$37,((($M$63-$C$36)/$D$36)*$L$36)+SUM($L$33:$L$35),IF($M$63<$C$38,((($M$63-$C$37)/$D$37)*$L$37)+SUM($L$33:$L$36),IF($M$63<$C$39,((($M$63-$C$38)/$D$38)*$L$38)+SUM($L$33:$L$37),IF($M$63<$C$40,((($M$63-$C$39)/$D$39)*$L$39)+SUM($L$33:$L$38),IF($M$63<$C$41,((($M$63-$C$40)/$D$40)*$L$40)+SUM($L$33:$L$39),IF($M$63<$C$42,((($M$63-$C$41)/$D$41)*$L$41)+SUM($L$33:$L$40),\"False\")))))))","v":26.876575315063015},{"$f":"IF($M$63<$C$36,((($M$63-$C$35)/$D$35)*$M$35)+SQRT(SUM(($M$33^2),($M$34^2))),IF($M$63<$C$37,((($M$63-$C$36)/$D$36)*$M$36)+SQRT(SUM(($M$33^2),($M$34^2),($M$35^2))),IF($M$63<$C$38,((($M$63-$C$37)/$D$37)*$M$37)+SQRT(SUM(($M$33^2),($M$34^2),($M$35^2),($M$36^2))),IF($M$63<$C$39,((($M$63-$C$38)/$D$38)*$M$38)+SQRT(SUM(($M$33^2),($M$34^2),($M$35^2),($M$36^2),($M$37^2))),IF($M$63<$C$40,((($M$63-$C$39)/$D$39)*$M$39)+SQRT(SUM(($M$33^2),($M$34^2),($M$35^2),($M$36^2),($M$37^2),($M$38^2))),IF($M$63<$C$41,((($M$63-$C$40)/$D$40)*$M$40)+SQRT(SUM(($M$33^2),($M$34^2),($M$35^2),($M$36^2),($M$37^2),($M$38^2),($M$39^2))),IF($M$63<$C$42,((($M$63-$C$41)/$D$41)*$M$41)+SQRT((($M$33^2)+($M$34^2)+($M$35^2)+($M$36^2)+($M$37^2)+($M$38^2)+($M$39^2)+($M$40^2))),\"False\")))))))","v":29.495844038459996}]
[null,null,{"$f":"$H$46*0.8","v":77170.400000000009},"80% of Median Household Income",null,{"$f":"IF($C$64<$C$36,((($C$64-$C$35)/$D$35)*$H$35)+SUM($H$33:$H$34),IF($C$64<$C$37,((($C$64-$C$36)/$D$36)*$H$36)+SUM($H$33:$H$35),IF($C$64<$C$38,((($C$64-$C$37)/$D$37)*$H$37)+SUM($H$33:$H$36),IF($C$64<$C$39,((($C$64-$C$38)/$D$38)*$H$38)+SUM($H$33:$H$37),IF($C$64<$C$40,((($C$64-$C$39)/$D$39)*$H$39)+SUM($H$33:$H$38),IF($C$64<$C$41,((($C$64-$C$40)/$D$40)*$H$40)+SUM($H$33:$H$39),IF($C$64<$C$42,((($C$64-$C$41)/$D$41)*$H$41)+SUM($H$33:$H$40),\"False\")))))))","v":240.46332253290134},{"$f":"IF($C$64<$C$36,((($C$64-$C$35)/$D$35)*$I$35)+SQRT(SUM(($I$33^2),($I$34^2))),IF($C$64<$C$37,((($C$64-$C$36)/$D$36)*$I$36)+SQRT(SUM(($I$33^2),($I$34^2),($I$35^2))),IF($C$64<$C$38,((($C$64-$C$37)/$D$37)*$I$37)+SQRT(SUM(($I$33^2),($I$34^2),($I$35^2),($I$36^2))),IF($C$64<$C$39,((($C$64-$C$38)/$D$38)*$I$38)+SQRT(SUM(($I$33^2),($I$34^2),($I$35^2),($I$36^2),($I$37^2))),IF($C$64<$C$40,((($C$64-$C$39)/$D$39)*$I$39)+SQRT(SUM(($I$33^2),($I$34^2),($I$35^2),($I$36^2),($I$37^2),($I$38^2))),IF($C$64<$C$41,((($C$64-$C$40)/$D$40)*$I$40)+SQRT(SUM(($I$33^2),($I$34^2),($I$35^2),($I$36^2),($I$37^2),($I$38^2),($I$39^2))),IF($C$64<$C$42,((($C$64-$C$41)/$D$41)*$I$41)+SQRT((($I$33^2)+($I$34^2)+($I$35^2)+($I$36^2)+($I$37^2)+($I$38^2)+($I$39^2)+($I$40^2))),\"False\")))))))","v":83.544890516944122},{"$f":"$J$46*0.8","v":81000},"80% of Median Household Income",null,{"$f":"IF($H$64<$C$36,((($H$64-$C$35)/$D$35)*$J$35)+SUM($J$33:$J$34),IF($H$64<$C$37,((($H$64-$C$36)/$D$36)*$J$36)+SUM($J$33:$J$35),IF($H$64<$C$38,((($H$64-$C$37)/$D$37)*$J$37)+SUM($J$33:$J$36),IF($H$64<$C$39,((($H$64-$C$38)/$D$38)*$J$38)+SUM($J$33:$J$37),IF($H$64<$C$40,((($H$64-$C$39)/$D$39)*$J$39)+SUM($J$33:$J$38),IF($H$64<$C$41,((($H$64-$C$40)/$D$40)*$J$40)+SUM($J$33:$J$39),IF($H$64<$C$42,((($H$64-$C$41)/$D$41)*$J$41)+SUM($J$33:$J$40),\"False\")))))))","v":177.44101764070564},{"$f":"IF($H$64<$C$36,((($H$64-$C$35)/$D$35)*$K$35)+SQRT(SUM(($K$33^2),($K$34^2))),IF($H$64<$C$37,((($H$64-$C$36)/$D$36)*$K$36)+SQRT(SUM(($K$33^2),($K$34^2),($K$35^2))),IF($H$64<$C$38,((($H$64-$C$37)/$D$37)*$K$37)+SQRT(SUM(($K$33^2),($K$34^2),($K$35^2),($K$36^2))),IF($H$64<$C$39,((($H$64-$C$38)/$D$38)*$K$38)+SQRT(SUM(($K$33^2),($K$34^2),($K$35^2),($K$36^2),($K$37^2))),IF($H$64<$C$40,((($H$64-$C$39)/$D$39)*$K$39)+SQRT(SUM(($K$33^2),($K$34^2),($K$35^2),($K$36^2),($K$37^2),($K$38^2))),IF($H$64<$C$41,((($H$64-$C$40)/$D$40)*$K$40)+SQRT(SUM(($K$33^2),($K$34^2),($K$35^2),($K$36^2),($K$37^2),($K$38^2),($K$39^2))),IF($H$64<$C$42,((($H$64-$C$41)/$D$41)*$K$41)+SQRT((($K$33^2)+($K$34^2)+($K$35^2)+($K$36^2)+($K$37^2)+($K$38^2)+($K$39^2)+($K$40^2))),\"False\")))))))","v":83.298482189012233},{"$f":"$L$46*0.8","v":39000},"80% of Median Household Income",null,{"$f":"IF($M$64<$C$36,((($M$64-$C$35)/$D$35)*$L$35)+SUM($L$33:$L$34),IF($M$64<$C$37,((($M$64-$C$36)/$D$36)*$L$36)+SUM($L$33:$L$35),IF($M$64<$C$38,((($M$64-$C$37)/$D$37)*$L$37)+SUM($L$33:$L$36),IF($M$64<$C$39,((($M$64-$C$38)/$D$38)*$L$38)+SUM($L$33:$L$37),IF($M$64<$C$40,((($M$64-$C$39)/$D$39)*$L$39)+SUM($L$33:$L$38),IF($M$64<$C$41,((($M$64-$C$40)/$D$40)*$L$40)+SUM($L$33:$L$39),IF($M$64<$C$42,((($M$64-$C$41)/$D$41)*$L$41)+SUM($L$33:$L$40),\"False\")))))))","v":48.200213347556506},{"$f":"IF($M$64<$C$36,((($M$64-$C$35)/$D$35)*$M$35)+SQRT(SUM(($M$33^2),($M$34^2))),IF($M$64<$C$37,((($M$64-$C$36)/$D$36)*$M$36)+SQRT(SUM(($M$33^2),($M$34^2),($M$35^2))),IF($M$64<$C$38,((($M$64-$C$37)/$D$37)*$M$37)+SQRT(SUM(($M$33^2),($M$34^2),($M$35^2),($M$36^2))),IF($M$64<$C$39,((($M$64-$C$38)/$D$38)*$M$38)+SQRT(SUM(($M$33^2),($M$34^2),($M$35^2),($M$36^2),($M$37^2))),IF($M$64<$C$40,((($M$64-$C$39)/$D$39)*$M$39)+SQRT(SUM(($M$33^2),($M$34^2),($M$35^2),($M$36^2),($M$37^2),($M$38^2))),IF($M$64<$C$41,((($M$64-$C$40)/$D$40)*$M$40)+SQRT(SUM(($M$33^2),($M$34^2),($M$35^2),($M$36^2),($M$37^2),($M$38^2),($M$39^2))),IF($M$64<$C$42,((($M$64-$C$41)/$D$41)*$M$41)+SQRT((($M$33^2)+($M$34^2)+($M$35^2)+($M$36^2)+($M$37^2)+($M$38^2)+($M$39^2)+($M$40^2))),\"False\")))))))","v":30.651452231322587}]

{"sheet":"ACS_Source_Table_List","index":15,"n_rows":49,"n_cols":4,"rows_kept":49,"cut":false,"hidden":true,"merged":[]}
[]
["ACS Table B01001","x"]
["ACS Table B01002","x"]
["ACS Table B03002","x"]
["ACS Table B05002 ","x"]
["ACS Table B07003","x","Replaces C07001"]
["ACS Table B11001","x"]
["ACS Table B11002","x"]
["ACS Table B14001 & B15002","x","Replaces C15002"]
["ACS Table B17001 ","x"]
["ACS Table B17010 ","x","Replaces C17010","Poverty Status by family type"]
["ACS Table B17017","x","Replaces C17017","Poverty Status by HH type"]
["ACS Table B18001 ",null,"Removed Disability Tables"]
["ACS Table C18001 ",null,"Removed Disability Tables"]
["ACS Table B18003",null,"Removed Disability Tables"]
["ACS Table B18004",null,"Removed Disability Tables"]
["ACS Table B18005",null,"Removed Disability Tables"]
["ACS Table B18006",null,"Removed Disability Tables"]
["ACS Table B18007",null,"Removed Disability Tables"]
["ACS Table B18008",null,"Removed Disability Tables"]
["ACS Table B19001","x"]
["ACS Table B19037 ","x"]
["ACS Table B19049 ","x"]
["ACS Table B19101& B19113 ","s"]
["ACS Table B19201 & B19202","s"]
["ACS Table B25001, B25003 & B25004 ","x"]
["ACS Table B25008","x"]
["ACS Table B25010","x"]
["ACS Table B25024","x"]
["ACS Table B25032","x"]
["ACS Table B25034 & B25041 ","x"]
["ACS Table B25063 & B25064","x"]
["ACS Table B25070 & B25074","x"]
["ACS Table B25075 & B25077","x"]
["ACS Table B25088","x"]
["ACS Table B25091","x"]
["ACS Table B25118 & B25119","x"]
[]
[]
[]
[]
[]
[]
["Tables Removed from 5 Year Estimates"]
["ACS Table C19001 ","x","May have to consolidate this table from Table B19001. This has already been done. For 5 year estimates remove worksheet."]
["ACS Table B25094","x","No Comparison Table for B25094 Removed"]
["ACS Table B25101",null,"No Comparison Table for B25101 Removed"]
["ACS Table B25104 & B25105",null,"No Comparison Table for B25104 & B25105 Removed"]
["ACS Table B25106","x","No Comparison Table for  B25106 Removed"]

{"sheet":"CntyDataLinkPrior5YearEstimates","index":16,"n_rows":160,"n_cols":185,"rows_kept":160,"cut":false,"hidden":true,"merged":[]}
[1,{"$f":"A1+1","v":2},3,4,5,6,7,8,9,10,11,12,13,14,15,16,17,18,19,20,21,22,23,24,25,26,27,28,29,30,31,32,33,34,35,36,37,38,39,40,41,42,43,44,45,46,47,48,49,50,51,52,53,54,55,56,57,58,59,60,61,62,63,64,65,{"$f":"BM1+1","v":66},67,68,69,70,71,72,73,74,75,76,77,78,79,80,81,82,83,84,85,86,87,88,89,90,91,92,93,94,95,96,97,98,99,100,101,102,103,104,105,106,107,108,109,110,111,112,113,114,115,116,117,118,119,120,121,122,123,124,125,126,127,128,129,{"$f":"DY1+1","v":130},131,132,133,134,135,136,137,138,139,140,141,142,143,144,145,146,147,148,149,150,151,152,153,154,155,156,157,158,159,160,161,162,163,164,165,166,167,168,169,170,171,172,173,174,175,176,177,178,179,180,181,182,183]
[]
[]
[]
[]
[]
[]
[]
[]
[]
[]
[]
[]
[]
[]
[]
[]
[]
[]
[]
[]
[]
[]
[]
[]
[]
[]
[]
[]
[]
[]
[]
[]
[]
[]
[]
[]
[]
[]
[]
[]
[]
[]
[]
[]
[]
[]
[]
[]
[]
[]
[]
[]
[]
[]
[]
[]
[]
[]
[]
[]
[]
[]
[]
[]
[]
[]
[]
[]
[]
[]
[]
[]
[]
[]
[]
[]
[]
[]
[]
[]
[]
[]
[]
[]
[]
[]
[]
[]
[]
[]
[]
[]
[]
[]
[]
[]
[]
[]
[]
[]
[]
[]
[]
["ACS",2,{"$f":"B105+1","v":3},{"$f":"C105+1","v":4},5,6,7,8,9,10,11,{"$f":"K105+1","v":12},13,14,15,{"$f":"O105+1","v":16},17,18,19,20,21,22,23,24,25,26,27,28,29,30,31,32,33,34,35,36,37,38,39,40,41,42,43,44,45,46,47,48,49,50,51,52,53,54,55,56,57,58,59,60,61,62,63,64,65,66,67,{"$f":"BO105+1","v":68},69,70,71,72,73,74,75,76,77,78,79,80,81,82,83,84,85,86,87,88,89,90,91,92,93,94,95,96,97,98,99,100,101,102,103,104,105,106,107,108,109,110,111,112,113,114,115,116,117,118,119,120,121,122,123,124,125]
["Househould Data (Housing Unit Type)"]
["NAME","TotalHU",{"$f":"\"MOE \"&B107","v":"MOE TotalHU"},"TotalOccHU",{"$f":"\"MOE \"&D107","v":"MOE TotalOccHU"},"TotalOwnerOccUn",{"$f":"\"MOE \"&F107","v":"MOE TotalOwnerOccUn"},"TotalRenterOccn",{"$f":"\"MOE \"&H107","v":"MOE TotalRenterOccn"},"TotalVacantUntis",{"$f":"\"MOE \"&J107","v":"MOE TotalVacantUntis"},"VacantUnitsForRent",{"$f":"\"MOE \"&L107","v":"MOE VacantUnitsForRent"},"VacantUnitRentedNotOcc",{"$f":"\"MOE \"&N107","v":"MOE VacantUnitRentedNotOcc"},"VacantUnitForSale",{"$f":"\"MOE \"&P107","v":"MOE VacantUnitForSale"},"VacantUnitSoldNotOcc",{"$f":"\"MOE \"&R107","v":"MOE VacantUnitSoldNotOcc"},"VacantUnitSeasonalRec",{"$f":"\"MOE \"&T107","v":"MOE VacantUnitSeasonalRec"},"TotalPopInHousingUnits",{"$f":"\"MOE \"&V107","v":"MOE TotalPopInHousingUnits"},"OwnerOccPopHousingUnits",{"$f":"\"MOE \"&X107","v":"MOE OwnerOccPopHousingUnits"},"RenterOccPopHousingUnits",{"$f":"\"MOE \"&Z107","v":"MOE RenterOccPopHousingUnits"},"TotalUntis",{"$f":"\"MOE \"&AB107","v":"MOE TotalUntis"},"TotalOwnerOccUnits",{"$f":"\"MOE \"&AD107","v":"MOE TotalOwnerOccUnits"},"SigFamOwnerOcc",{"$f":"\"MOE \"&AF107","v":"MOE SigFamOwnerOcc"},"MultiFamOwnerOcc",{"$f":"\"MOE \"&AH107","v":"MOE MultiFamOwnerOcc"},"MobileOwnerOcc",{"$f":"\"MOE \"&AJ107","v":"MOE MobileOwnerOcc"},"TotalRenterOccUnits",{"$f":"\"MOE \"&AL107","v":"MOE TotalRenterOccUnits"},"SigFamRenterOcc",{"$f":"\"MOE \"&AN107","v":"MOE SigFamRenterOcc"},"MultiFamRenterOcc",{"$f":"\"MOE \"&AP107","v":"MOE MultiFamRenterOcc"},"MobileRenterOcc",{"$f":"\"MOE \"&AR107","v":"MOE MobileRenterOcc"},"TotalSigFamilyUnits",{"$f":"\"MOE \"&AT107","v":"MOE TotalSigFamilyUnits"},"TotalMultiFamilyUnits",{"$f":"\"MOE \"&AV107","v":"MOE TotalMultiFamilyUnits"},"TotalMobileUnits",{"$f":"\"MOE \"&AX107","v":"MOE TotalMobileUnits"},"YrHouseBuilt2005Later",{"$f":"\"MOE \"&AZ107","v":"MOE YrHouseBuilt2005Later"},"YrHouseBuilt2000-2004",{"$f":"\"MOE \"&BB107","v":"MOE YrHouseBuilt2000-2004"},"YrHouseBuilt1990-1999",{"$f":"\"MOE \"&BD107","v":"MOE YrHouseBuilt1990-1999"},"YrHouseBuilt1980-1989",{"$f":"\"MOE \"&BF107","v":"MOE YrHouseBuilt1980-1989"},"YrHouseBuilt1970-1979",{"$f":"\"MOE \"&BH107","v":"MOE YrHouseBuilt1970-1979"},"YrHouseBuilt1960-1969",{"$f":"\"MOE \"&BJ107","v":"MOE YrHouseBuilt1960-1969"},"YrHouseBuilt1950-1959",{"$f":"\"MOE \"&BL107","v":"MOE YrHouseBuilt1950-1959"},"YrHouseBuilt1940-1949",{"$f":"\"MOE \"&BN107","v":"MOE YrHouseBuilt1940-1949"},"YrHouseBuilt1939orEarlier",{"$f":"\"MOE \"&BP107","v":"MOE YrHouseBuilt1939orEarlier"},"NoBedrooms",{"$f":"\"MOE \"&BR107","v":"MOE NoBedrooms"},"1Bedroom",{"$f":"\"MOE \"&BT107","v":"MOE 1Bedroom"},"2Bedroom",{"$f":"\"MOE \"&BV107","v":"MOE 2Bedroom"},"3Bedroom",{"$f":"\"MOE \"&BX107","v":"MOE 3Bedroom"},"4+Bedroom",{"$f":"\"MOE \"&BZ107","v":"MOE 4+Bedroom"}]
[{"$f":"VLOOKUP(DropDownList!$B$27,CntyQryCensus!$A$275:$AG$297,A$1)","v":"Dublin"},2002,182,1718,160,1225,174,493,124,284,124,0,11,0,11,54,68,0,11,85,68,4146,122,2862,378,1284,365,1718,160,1225,174,832,141,8,29.916550603303182,385,126.4792473095883,493,124,128,64,292,109.06878563548784,73,79.762146410437069,1161,170,364,122.37646832622684,477,135.44740676735012,38,51,0,11,155,78,316,113,364,133,290,110,177,91,115,66,46,37,13,20,289,106,625,180,767,155,213,94]
[]
["Disability Data"]
["NAME","TotalPop",{"$f":"\"MOE \"&B111","v":"MOE TotalPop"},"PopUnder 5 years:",{"$f":"\"MOE \"&D111","v":"MOE PopUnder 5 years:"},{"$f":"D$111&\"-WithDisability\"","v":"PopUnder 5 years:-WithDisability"},{"$f":"\"MOE \"&F111","v":"MOE PopUnder 5 years:-WithDisability"},{"$f":"D111&\"-NoDisability\"","v":"PopUnder 5 years:-NoDisability"},{"$f":"\"MOE \"&H111","v":"MOE PopUnder 5 years:-NoDisability"},"PopUnder 5 to 17years:",{"$f":"\"MOE \"&J111","v":"MOE PopUnder 5 to 17years:"},{"$f":"J$111&\"-WithDisability\"","v":"PopUnder 5 to 17years:-WithDisability"},{"$f":"\"MOE \"&L111","v":"MOE PopUnder 5 to 17years:-WithDisability"},{"$f":"J111&\"-NoDisability\"","v":"PopUnder 5 to 17years:-NoDisability"},{"$f":"\"MOE \"&N111","v":"MOE PopUnder 5 to 17years:-NoDisability"},"PopUnder 18 to 34 years:",{"$f":"\"MOE \"&P111","v":"MOE PopUnder 18 to 34 years:"},{"$f":"P$111&\"-WithDisability\"","v":"PopUnder 18 to 34 years:-WithDisability"},{"$f":"\"MOE \"&R111","v":"MOE PopUnder 18 to 34 years:-WithDisability"},{"$f":"P111&\"-NoDisability\"","v":"PopUnder 18 to 34 years:-NoDisability"},{"$f":"\"MOE \"&T111","v":"MOE PopUnder 18 to 34 years:-NoDisability"},"Pop 35 years to 64:",{"$f":"\"MOE \"&V111","v":"MOE Pop 35 years to 64:"},{"$f":"$V$111&\"-WithDisability\"","v":"Pop 35 years to 64:-WithDisability"},{"$f":"\"MOE \"&X111","v":"MOE Pop 35 years to 64:-WithDisability"},{"$f":"$V$111&\"-NoDisability\"","v":"Pop 35 years to 64:-NoDisability"},{"$f":"\"MOE \"&Z111","v":"MOE Pop 35 years to 64:-NoDisability"},"Pop 65 years to 74:",{"$f":"\"MOE \"&AB111","v":"MOE Pop 65 years to 74:"},{"$f":"$AB$111&\"-WithDisability\"","v":"Pop 65 years to 74:-WithDisability"},{"$f":"\"MOE \"&AD111","v":"MOE Pop 65 years to 74:-WithDisability"},{"$f":"$AB$111&\"-NoDisability\"","v":"Pop 65 years to 74:-NoDisability"},{"$f":"\"MOE \"&AF111","v":"MOE Pop 65 years to 74:-NoDisability"},"Pop 75 and older:",{"$f":"\"MOE \"&AH111","v":"MOE Pop 75 and older:"},{"$f":"$AH$111&\"-WithDisability\"","v":"Pop 75 and older:-WithDisability"},{"$f":"\"MOE \"&AJ111","v":"MOE Pop 75 and older:-WithDisability"},{"$f":"$AH$111&\"-NoDisability\"","v":"Pop 75 and older:-NoDisability"},{"$f":"\"MOE \"&AL111","v":"MOE Pop 75 and older:-NoDisability"},"TotalPopUnder5_HearingDisability",{"$f":"\"MOE \"&AN111","v":"MOE TotalPopUnder5_HearingDisability"},"TotalPopUnder5_HearingDisability",{"$f":"\"MOE \"&AP111","v":"MOE TotalPopUnder5_HearingDisability"},"TotalPop18To34_HearingDisability",{"$f":"\"MOE \"&AR111","v":"MOE TotalPop18To34_HearingDisability"},"TotalPop35To64_HearingDisability",{"$f":"\"MOE \"&AT111","v":"MOE TotalPop35To64_HearingDisability"},"TotalPop65To74_HearingDisability",{"$f":"\"MOE \"&AV111","v":"MOE TotalPop65To74_HearingDisability"},"TotalPop75andOlder_HearingDisability",{"$f":"\"MOE \"&AX111","v":"MOE TotalPop75andOlder_HearingDisability"},"TotalPopUnder5_VisionDisability",{"$f":"\"MOE \"&AZ111","v":"MOE TotalPopUnder5_VisionDisability"},"TotalPop5To17_VisionDisability",{"$f":"\"MOE \"&BB111","v":"MOE TotalPop5To17_VisionDisability"},"TotalPop18To34_VisionDisability",{"$f":"\"MOE \"&BD111","v":"MOE TotalPop18To34_VisionDisability"},"TotalPop35To64_VisionDisability",{"$f":"\"MOE \"&BF111","v":"MOE TotalPop35To64_VisionDisability"},"TotalPop65To74_VisionDisability",{"$f":"\"MOE \"&BH111","v":"MOE TotalPop65To74_VisionDisability"},"TotalPop75andOlder_VisionDisability",{"$f":"\"MOE \"&BJ111","v":"MOE TotalPop75andOlder_VisionDisability"},"TotalPop5To17_CongnitiveDisability",{"$f":"\"MOE \"&BL111","v":"MOE TotalPop5To17_CongnitiveDisability"},"TotalPop18To34_CongnitiveDisability",{"$f":"\"MOE \"&BN111","v":"MOE TotalPop18To34_CongnitiveDisability"},"TotalPop35To64_CongnitiveDisability",{"$f":"\"MOE \"&BP111","v":"MOE TotalPop35To64_CongnitiveDisability"},"TotalPop65To74_CongnitiveDisability",{"$f":"\"MOE \"&BR111","v":"MOE TotalPop65To74_CongnitiveDisability"},"TotalPop75andOlder_CongnitiveDisability",{"$f":"\"MOE \"&BT111","v":"MOE TotalPop75andOlder_CongnitiveDisability"},"TotalPop5To17_AmbulatoryDisability",{"$f":"\"MOE \"&BV111","v":"MOE TotalPop5To17_AmbulatoryDisability"},"TotalPop18To34_AmbulatoryDisability",{"$f":"\"MOE \"&BX111","v":"MOE TotalPop18To34_AmbulatoryDisability"},"TotalPop35To64_AmbulatoryDisability",{"$f":"\"MOE \"&BZ111","v":"MOE TotalPop35To64_AmbulatoryDisability"},"TotalPop65To74_AmbulatoryDisability",{"$f":"\"MOE \"&CB111","v":"MOE TotalPop65To74_AmbulatoryDisability"},"TotalPop75andOlder_AmbulatoryDisability",{"$f":"\"MOE \"&CD111","v":"MOE TotalPop75andOlder_AmbulatoryDisability"},"TotalPop5To17_SelfCareDisability",{"$f":"\"MOE \"&CF111","v":"MOE TotalPop5To17_SelfCareDisability"},"TotalPop18To34_SelfCareDisability",{"$f":"\"MOE \"&CH111","v":"MOE TotalPop18To34_SelfCareDisability"},"TotalPop35To64_SelfCareDisability",{"$f":"\"MOE \"&CJ111","v":"MOE TotalPop35To64_SelfCareDisability"},"TotalPop65To74_SelfCareDisability",{"$f":"\"MOE \"&CL111","v":"MOE TotalPop65To74_SelfCareDisability"},"TotalPop75andOlder_SelfCareDisability",{"$f":"\"MOE \"&CN111","v":"MOE TotalPop75andOlder_SelfCareDisability"},"TotalPop18To34_IndependantLivingDisability",{"$f":"\"MOE \"&CP111","v":"MOE TotalPop18To34_IndependantLivingDisability"},"TotalPop35To64_IndependantLivingDisability",{"$f":"\"MOE \"&CR111","v":"MOE TotalPop35To64_IndependantLivingDisability"},"TotalPop65To74_IndependantLivingDisability",{"$f":"\"MOE \"&CT111","v":"MOE TotalPop65To74_IndependantLivingDisability"},"TotalPop75andOlder_IndependantLivingDisability",{"$f":"\"MOE \"&CV111","v":"MOE TotalPop75andOlder_IndependantLivingDisability"},"TotalUnder5_HearingorVisionDisability",{"$f":"\"MOE \"&CX111","v":"MOE TotalUnder5_HearingorVisionDisability"},"TotalUnder5_HearingandVisionDisability",{"$f":"\"MOE \"&CZ111","v":"MOE TotalUnder5_HearingandVisionDisability"},"5to17YearWIthOneDisability",{"$f":"\"MOE \"&DB111","v":"MOE 5to17YearWIthOneDisability"},"5to17YearWIthTwoOrMoreDisability",{"$f":"\"MOE \"&DD111","v":"MOE 5to17YearWIthTwoOrMoreDisability"},"18to34YearWIthOneDisability",{"$f":"\"MOE \"&DF111","v":"MOE 18to34YearWIthOneDisability"},"18to34YearWIthTwoOrMoreDisability",{"$f":"\"MOE \"&DH111","v":"MOE 18to34YearWIthTwoOrMoreDisability"},"35to64YearWIthOneDisability",{"$f":"\"MOE \"&DJ111","v":"MOE 35to64YearWIthOneDisability"},"35to64YearWIthTwoOrMoreDisability",{"$f":"\"MOE \"&DL111","v":"MOE 35to64YearWIthTwoOrMoreDisability"},"65to74YearWIthOneDisability",{"$f":"\"MOE \"&DN111","v":"MOE 65to74YearWIthOneDisability"},"65to74YearWIthTwoOrMoreDisability",{"$f":"\"MOE \"&DP111","v":"MOE 65to74YearWIthTwoOrMoreDisability"},"75AndOlderWIthOneDisability",{"$f":"\"MOE \"&DR111","v":"MOE 75AndOlderWIthOneDisability"},"75AndOlderWIthTwoOrMoreDisability",{"$f":"\"MOE \"&DT111","v":"MOE 75AndOlderWIthTwoOrMoreDisability"}]
[{"$f":"VLOOKUP(DropDownList!$B$27,CntyQryCensus!$A$275:$AG$297,A$1)","v":"Dublin"},1487,174,42,26.92582403567252,0,15.556349186104045,42,26.92582403567252,234,62.433965115151864,17,21.95449840010015,217,59.941638282582836,256,67.007462271003817,16,22.825424421026653,240,65.215028942721474,678,81.394102980498531,29,21.587033144922902,649,77.336925203941234,180,38.600518131237564,35,17.029386365926403,145,36.235341863986875,97,31.11269837220809,23,15.811388300841896,74,29.732137494637012,0,15.556349186104045,11,21.095023109728988,0,15.556349186104045,7,7.0710678118654755,12,14.212670403551895,12,13.601470508735444,0,15.556349186104045,3,12.083045973594572,0,15.556349186104045,3,11.704699910719626,6,5.6568542494923806,6,5.6568542494923806,6,13.038404810405298,5,15.556349186104045,3,12.083045973594572,0,15.556349186104045,9,13.601470508735444,3,12.083045973594572,11,20.248456731316587,11,19.416487838947599,20,13.892443989449804,14,14.866068747318506,3,12.083045973594572,0,15.556349186104045,3,12.083045973594572,6,5.6568542494923806,9,13.601470508735444,0,15.556349186104045,8,14.866068747318506,6,12.529964086141668,9,13.601470508735444,14,18,3,5,42,29,3,5,37,19,21,16,206,61,null,null,null,null,null,null,null,null,19295,901]
[]
["Househould Income By Age"]
["NAME","TotalHouseholds",{"$f":"\"MOE \"&B115","v":"MOE TotalHouseholds"},"HHInc<10K",{"$f":"\"MOE \"&D115","v":"MOE HHInc<10K"},"HHInc10to15K",{"$f":"\"MOE \"&F115","v":"MOE HHInc10to15K"},"HHInc15to20K",{"$f":"\"MOE \"&H115","v":"MOE HHInc15to20K"},"HHInc20to25K",{"$f":"\"MOE \"&J115","v":"MOE HHInc20to25K"},"HHInc25to30K",{"$f":"\"MOE \"&L115","v":"MOE HHInc25to30K"},"HHInc30to35K",{"$f":"\"MOE \"&N115","v":"MOE HHInc30to35K"},"HHInc35to40K",{"$f":"\"MOE \"&P115","v":"MOE HHInc35to40K"},"HHInc40to45K",{"$f":"\"MOE \"&R115","v":"MOE HHInc40to45K"},"HHInc45to50K",{"$f":"\"MOE \"&T115","v":"MOE HHInc45to50K"},"HHInc50to60K",{"$f":"\"MOE \"&V115","v":"MOE HHInc50to60K"},"HHInc60to75K",{"$f":"\"MOE \"&X115","v":"MOE HHInc60to75K"},"HHInc75to100K",{"$f":"\"MOE \"&Z115","v":"MOE HHInc75to100K"},"HHInc100to125K",{"$f":"\"MOE \"&AB115","v":"MOE HHInc100to125K"},"HHInc125to150K",{"$f":"\"MOE \"&AD115","v":"MOE HHInc125to150K"},"HHInc150to200K",{"$f":"\"MOE \"&AF115","v":"MOE HHInc150to200K"},"HHInc>200K",{"$f":"\"MOE \"&AH115","v":"MOE HHInc>200K"},"TotalHH",{"$f":"\"MOE \"&AJ115","v":"MOE TotalHH"},"HHAgeHHUnder25yrs",{"$f":"\"MOE \"&AL115","v":"MOE HHAgeHHUnder25yrs"},"HHAgeHH<25HHInc<10K",{"$f":"\"MOE \"&AN115","v":"MOE HHAgeHH<25HHInc<10K"},"HHAgeHH<25HHInc10to15K",{"$f":"\"MOE \"&AP115","v":"MOE HHAgeHH<25HHInc10to15K"},"HHAgeHH<25HHInc15to20K",{"$f":"\"MOE \"&AR115","v":"MOE HHAgeHH<25HHInc15to20K"},"HHAgeHH<25HHInc20to25K",{"$f":"\"MOE \"&AT115","v":"MOE HHAgeHH<25HHInc20to25K"},"HHAgeHH<25HHInc25to30K",{"$f":"\"MOE \"&AV115","v":"MOE HHAgeHH<25HHInc25to30K"},"HHAgeHH<25HHInc30to35K",{"$f":"\"MOE \"&AX115","v":"MOE HHAgeHH<25HHInc30to35K"},"HHAgeHH<25HHInc35to40K",{"$f":"\"MOE \"&AZ115","v":"MOE HHAgeHH<25HHInc35to40K"},"HHAgeHH<25HHInc40to45K",{"$f":"\"MOE \"&BB115","v":"MOE HHAgeHH<25HHInc40to45K"},"HHAgeHH<25HHInc45to50K",{"$f":"\"MOE \"&BD115","v":"MOE HHAgeHH<25HHInc45to50K"},"HHAgeHH<25HHInc50to60K",{"$f":"\"MOE \"&BF115","v":"MOE HHAgeHH<25HHInc50to60K"},"HHAgeHH<25HHInc60to75K",{"$f":"\"MOE \"&BH115","v":"MOE HHAgeHH<25HHInc60to75K"},"HHAgeHH<25HHInc75to100K",{"$f":"\"MOE \"&BJ115","v":"MOE HHAgeHH<25HHInc75to100K"},"HHAgeHH<25HHInc100to125K",{"$f":"\"MOE \"&BL115","v":"MOE HHAgeHH<25HHInc100to125K"},"HHAgeHH<25HHInc125to150K",{"$f":"\"MOE \"&BN115","v":"MOE HHAgeHH<25HHInc125to150K"},"HHAgeHH<25HHInc150to200K",{"$f":"\"MOE \"&BP115","v":"MOE HHAgeHH<25HHInc150to200K"},"HHAge<25HHInc>200K",{"$f":"\"MOE \"&BR115","v":"MOE HHAge<25HHInc>200K"},"HHAgeHH25to44yrs",{"$f":"\"MOE \"&BT115","v":"MOE HHAgeHH25to44yrs"},"HHAgeHH25To44yrsHHInc<10K",{"$f":"\"MOE \"&BV115","v":"MOE HHAgeHH25To44yrsHHInc<10K"},"HHAgeHH25To44yrsHHInc10to15K",{"$f":"\"MOE \"&BX115","v":"MOE HHAgeHH25To44yrsHHInc10to15K"},"HHAgeHH25To44yrsHHInc15to20K",{"$f":"\"MOE \"&BZ115","v":"MOE HHAgeHH25To44yrsHHInc15to20K"},"HHAgeHH25To44yrsHHInc20to25K",{"$f":"\"MOE \"&CB115","v":"MOE HHAgeHH25To44yrsHHInc20to25K"},"HHAgeHH25To44yrsHHInc25to30K",{"$f":"\"MOE \"&CD115","v":"MOE HHAgeHH25To44yrsHHInc25to30K"},"HHAgeHH25To44yrsHHInc30to35K",{"$f":"\"MOE \"&CF115","v":"MOE HHAgeHH25To44yrsHHInc30to35K"},"HHAgeHH25To44yrsHHInc35to40K",{"$f":"\"MOE \"&CH115","v":"MOE HHAgeHH25To44yrsHHInc35to40K"},"HHAgeHH25To44yrsHHInc40to45K",{"$f":"\"MOE \"&CJ115","v":"MOE HHAgeHH25To44yrsHHInc40to45K"},"HHAgeHH25To44yrsHHInc45to50K",{"$f":"\"MOE \"&CL115","v":"MOE HHAgeHH25To44yrsHHInc45to50K"},"HHAgeHH25To44yrsHHInc50to60K",{"$f":"\"MOE \"&CN115","v":"MOE HHAgeHH25To44yrsHHInc50to60K"},"HHAgeHH25To44yrsHHInc60to75K",{"$f":"\"MOE \"&CP115","v":"MOE HHAgeHH25To44yrsHHInc60to75K"},"HHAgeHH25To44yrsHHInc75to100K",{"$f":"\"MOE \"&CR115","v":"MOE HHAgeHH25To44yrsHHInc75to100K"},"HHAgeHH25To44yrsHHInc100to125K",{"$f":"\"MOE \"&CT115","v":"MOE HHAgeHH25To44yrsHHInc100to125K"},"HHAgeHH25To44yrsHHInc125to150K",{"$f":"\"MOE \"&CV115","v":"MOE HHAgeHH25To44yrsHHInc125to150K"},"HHAgeHH25To44yrsHHInc150to200K",{"$f":"\"MOE \"&CX115","v":"MOE HHAgeHH25To44yrsHHInc150to200K"},"HHAge25To44yrsHHInc>200K",{"$f":"\"MOE \"&CZ115","v":"MOE HHAge25To44yrsHHInc>200K"},"HHAgeHH45To64yrs",{"$f":"\"MOE \"&DB115","v":"MOE HHAgeHH45To64yrs"},"HHAgeHH45To64yrsHHInc<10K",{"$f":"\"MOE \"&DD115","v":"MOE HHAgeHH45To64yrsHHInc<10K"},"HHAgeHH45To64yrsHHInc10to15K",{"$f":"\"MOE \"&DF115","v":"MOE HHAgeHH45To64yrsHHInc10to15K"},"HHAgeHH45To64yrsHHInc15to20K",{"$f":"\"MOE \"&DH115","v":"MOE HHAgeHH45To64yrsHHInc15to20K"},"HHAgeHH45To64yrsHHInc20to25K",{"$f":"\"MOE \"&DJ115","v":"MOE HHAgeHH45To64yrsHHInc20to25K"},"HHAgeHH45To64yrsHHInc25to30K",{"$f":"\"MOE \"&DL115","v":"MOE HHAgeHH45To64yrsHHInc25to30K"},"HHAgeHH45To64yrsHHInc30to35K",{"$f":"\"MOE \"&DN115","v":"MOE HHAgeHH45To64yrsHHInc30to35K"},"HHAgeHH45To64yrsHHInc35to40K",{"$f":"\"MOE \"&DP115","v":"MOE HHAgeHH45To64yrsHHInc35to40K"},"HHAgeHH45To64yrsHHInc40to45K",{"$f":"\"MOE \"&DR115","v":"MOE HHAgeHH45To64yrsHHInc40to45K"},"HHAgeHH45To64yrsHHInc45to50K",{"$f":"\"MOE \"&DT115","v":"MOE HHAgeHH45To64yrsHHInc45to50K"},"HHAgeHH45To64yrsHHInc50to60K",{"$f":"\"MOE \"&DV115","v":"MOE HHAgeHH45To64yrsHHInc50to60K"},"HHAgeHH45To64yrsHHInc60to75K",{"$f":"\"MOE \"&DX115","v":"MOE HHAgeHH45To64yrsHHInc60to75K"},"HHAgeHH45To64yrsHHInc75to100K",{"$f":"\"MOE \"&DZ115","v":"MOE HHAgeHH45To64yrsHHInc75to100K"},"HHAgeHH45To64yrsHHInc100to125K",{"$f":"\"MOE \"&EB115","v":"MOE HHAgeHH45To64yrsHHInc100to125K"},"HHAgeHH45To64yrsHHInc125to150K",{"$f":"\"MOE \"&ED115","v":"MOE HHAgeHH45To64yrsHHInc125to150K"},"HHAgeHH45To64yrsHHInc150to200K",{"$f":"\"MOE \"&EF115","v":"MOE HHAgeHH45To64yrsHHInc150to200K"},"HHAge45To64yrsHHInc>200K",{"$f":"\"MOE \"&EH115","v":"MOE HHAge45To64yrsHHInc>200K"},"HHAgeHH65yrsorOlder",{"$f":"\"MOE \"&EJ115","v":"MOE HHAgeHH65yrsorOlder"},"HHAgeHH65yrsorOlderHHInc<10K",{"$f":"\"MOE \"&EL115","v":"MOE HHAgeHH65yrsorOlderHHInc<10K"},"HHAgeHH65yrsorOlderHHInc10to15K",{"$f":"\"MOE \"&EN115","v":"MOE HHAgeHH65yrsorOlderHHInc10to15K"},"HHAgeHH65yrsorOlderHHInc15to20K",{"$f":"\"MOE \"&EP115","v":"MOE HHAgeHH65yrsorOlderHHInc15to20K"},"HHAgeHH65yrsorOlderHHInc20to25K",{"$f":"\"MOE \"&ER115","v":"MOE HHAgeHH65yrsorOlderHHInc20to25K"},"HHAgeHH65yrsorOlderHHInc25to30K",{"$f":"\"MOE \"&ET115","v":"MOE HHAgeHH65yrsorOlderHHInc25to30K"},"HHAgeHH65yrsorOlderHHInc30to35K",{"$f":"\"MOE \"&EV115","v":"MOE HHAgeHH65yrsorOlderHHInc30to35K"},"HHAgeHH65yrsorOlderHHInc35to40K",{"$f":"\"MOE \"&EX115","v":"MOE HHAgeHH65yrsorOlderHHInc35to40K"},"HHAgeHH65yrsorOlderHHInc40to45K",{"$f":"\"MOE \"&EZ115","v":"MOE HHAgeHH65yrsorOlderHHInc40to45K"},"HHAgeHH65yrsorOlderHHInc45to50K",{"$f":"\"MOE \"&FB115","v":"MOE HHAgeHH65yrsorOlderHHInc45to50K"},"HHAgeHH65yrsorOlderHHInc50to60K",{"$f":"\"MOE \"&FD115","v":"MOE HHAgeHH65yrsorOlderHHInc50to60K"},"HHAgeHH65yrsorOlderHHInc60to75K",{"$f":"\"MOE \"&FF115","v":"MOE HHAgeHH65yrsorOlderHHInc60to75K"},"HHAgeHH65yrsorOlderHHInc75to100K",{"$f":"\"MOE \"&FH115","v":"MOE HHAgeHH65yrsorOlderHHInc75to100K"},"HHAgeHH65yrsorOlderHHInc100to125K",{"$f":"\"MOE \"&FJ115","v":"MOE HHAgeHH65yrsorOlderHHInc100to125K"},"HHAgeHH65yrsorOlderHHInc125to150K",{"$f":"\"MOE \"&FL115","v":"MOE HHAgeHH65yrsorOlderHHInc125to150K"},"HHAgeHH65yrsorOlderHHInc150to200K",{"$f":"\"MOE \"&FN115","v":"MOE HHAgeHH65yrsorOlderHHInc150to200K"},"HHAge65yrsorOlderHHInc>200K",{"$f":"\"MOE \"&FP115","v":"MOE HHAge65yrsorOlderHHInc>200K"},"MedianHHInc",{"$f":"\"MOE \"&FR115","v":"MOE MedianHHInc"},"HH under 25 years",{"$f":"\"MOE \"&FT115","v":"MOE HH under 25 years"},"Householder 25 to 44 years",{"$f":"\"MOE \"&FV115","v":"MOE Householder 25 to 44 years"},"Householder 45 to 64 years",{"$f":"\"MOE \"&FX115","v":"MOE Householder 45 to 64 years"},"Householder 65 years and over",{"$f":"\"MOE \"&FZ115","v":"MOE Householder 65 years and over"}]
[{"$f":"VLOOKUP(DropDownList!$B$27,CntyQryCensus!$A$275:$AG$297,A$1)","v":"Dublin"},584,63,14,9,9,7,34,26,34,24,29,22,47,29,17,21,20,15,15,15,17,14,78,33,69,29,68,29,59,27,36,14,38,18,584,63,5,6,0,11,0,11,0,11,3,4,2,4,0,11,0,11,0,11,0,11,0,11,0,11,0,11,0,11,0,11,0,11,0,11,100,36,0,11,0,11,7,9,8,13,0,11,8,12,2,4,3,5,0,11,9,7,28,21,6,6,4,6,19,18,6,6,0,11,317,55,9,7,0,11,20,22,20,19,16,18,20,21,11,17,7,7,7,8,0,11,42,24,37,24,54,28,26,18,20,10,28,16,162,34,5,5,9,7,7,8,3,4,11,13,19,17,4,8,10,12,8,13,8,13,8,7,26,17,10,8,14,10,10,8,10,8,69375,13698,"-","**",62708,6041,81354,17673,59063,27184]
[]
["Number of Households by Income"]
["NAME","HHIncLessThn10k",{"$f":"\"MOE \"&B119","v":"MOE HHIncLessThn10k"},"HHInc10to15K",{"$f":"\"MOE \"&D119","v":"MOE HHInc10to15K"},"HHInc15to25K",{"$f":"\"MOE \"&F119","v":"MOE HHInc15to25K"},"HHInc25to35K",{"$f":"\"MOE \"&H119","v":"MOE HHInc25to35K"},"HHInc35to50K",{"$f":"\"MOE \"&J119","v":"MOE HHInc35to50K"},"HHInc50to75K",{"$f":"\"MOE \"&L119","v":"MOE HHInc50to75K"},"HHInc75to100K",{"$f":"\"MOE \"&N119","v":"MOE HHInc75to100K"},"HHInc100to150K",{"$f":"\"MOE \"&P119","v":"MOE HHInc100to150K"},"HHInc150to200K",{"$f":"\"MOE \"&R119","v":"MOE HHInc150to200K"},"HHIncOver200K",{"$f":"\"MOE \"&T119","v":"MOE HHIncOver200K"}]
[{"$f":"VLOOKUP(DropDownList!$B$27,CntyQryCensus!$A$275:$AG$297,A$1)","v":"Dublin"},14,9,9,7,68,35.383612025908263,76,36.400549446402593,52,29.8496231131986,95,35.846896657869841,69,29,127,39.623225512317902,36,14,38,18]
[]
["POVERTY DATA"]
["NAME","TotalPop",{"$f":"\"MOE \"&B123","v":"MOE TotalPop"},"Total Individuals living in Poverty",{"$f":"\"MOE \"&D123","v":"MOE Total Individuals living in Poverty"},"Under 5 yrs.",{"$f":"\"MOE \"&F123","v":"MOE Under 5 yrs."},"5 to 17 yrs.",{"$f":"\"MOE \"&H123","v":"MOE 5 to 17 yrs."},"18 to 64 yrs.",{"$f":"\"MOE \"&J123","v":"MOE 18 to 64 yrs."},"65 to 74 yrs.",{"$f":"\"MOE \"&L123","v":"MOE 65 to 74 yrs."},"75 yrs. & Over",{"$f":"\"MOE \"&N123","v":"MOE 75 yrs. & Over"},"Total Individuals  Not living Poverty",{"$f":"\"MOE \"&P123","v":"MOE Total Individuals  Not living Poverty"},"Under 5 yrs.",{"$f":"\"MOE \"&R123","v":"MOE Under 5 yrs."},"5 to 17 yrs.",{"$f":"\"MOE \"&T123","v":"MOE 5 to 17 yrs."},"18 to 64 yrs.",{"$f":"\"MOE \"&V123","v":"MOE 18 to 64 yrs."},"65 to 74 yrs.",{"$f":"\"MOE \"&X123","v":"MOE 65 to 74 yrs."},"75 yrs. & Over",{"$f":"\"MOE \"&Z123","v":"MOE 75 yrs. & Over"},"Total HH",{"$f":"\"MOE \"&AB123","v":"MOE Total HH"},"Total Households Below Poverty",{"$f":"\"MOE \"&AD123","v":"MOE Total Households Below Poverty"},"Family Households in Poverty",{"$f":"\"MOE \"&AF123","v":"MOE Family Households in Poverty"},"Married Couple Fam HH",{"$f":"\"MOE \"&AH123","v":"MOE Married Couple Fam HH"},"Other Family",{"$f":"\"MOE \"&AJ123","v":"MOE Other Family"},"Male Head of Family HH no wife",{"$f":"\"MOE \"&AL123","v":"MOE Male Head of Family HH no wife"},"Female Head of Family HH no husband",{"$f":"\"MOE \"&AN123","v":"MOE Female Head of Family HH no husband"},"Non-Family HH",{"$f":"\"MOE \"&AP123","v":"MOE Non-Family HH"},"Non-Family Male HH",{"$f":"\"MOE \"&AR123","v":"MOE Non-Family Male HH"},"Non-Family Female HH",{"$f":"\"MOE \"&AT123","v":"MOE Non-Family Female HH"},"Total Households at or Above Poverty",{"$f":"\"MOE \"&AV123","v":"MOE Total Households at or Above Poverty"},"Family Households above Poverty",{"$f":"\"MOE \"&AX123","v":"MOE Family Households above Poverty"},"Married Couple Fam HH",{"$f":"\"MOE \"&AZ123","v":"MOE Married Couple Fam HH"},"Other Family",{"$f":"\"MOE \"&BB123","v":"MOE Other Family"},"Male Head of Family HH no wife",{"$f":"\"MOE \"&BD123","v":"MOE Male Head of Family HH no wife"},"Female Head of Family HH no husband",{"$f":"\"MOE \"&BF123","v":"MOE Female Head of Family HH no husband"},"Non-Family HH",{"$f":"\"MOE \"&BH123","v":"MOE Non-Family HH"},"Non-Family Male HH",{"$f":"\"MOE \"&BJ123","v":"MOE Non-Family Male HH"},"Non-Family Female HH",{"$f":"\"MOE \"&BL123","v":"MOE Non-Family Female HH"},"Married Couple with Children Below Poverty",{"$f":"\"MOE \"&BN123","v":"MOE Married Couple with Children Below Poverty"},"Male HH with children below poverty",{"$f":"\"MOE \"&BP123","v":"MOE Male HH with children below poverty"},"Female HH with children below poverty",{"$f":"\"MOE \"&BR123","v":"MOE Female HH with children below poverty"},"Married Couple with Children At or Above Poverty",{"$f":"\"MOE \"&BT123","v":"MOE Married Couple with Children At or Above Poverty"},"Male HH with children at or above poverty",{"$f":"\"MOE \"&BV123","v":"MOE Male HH with children at or above poverty"},"Female HH with children at or above poverty",{"$f":"\"MOE \"&BX123","v":"MOE Female HH with children at or above poverty"}]
[{"$f":"VLOOKUP(DropDownList!$B$27,CntyQryCensus!$A$275:$AG$297,A$1)","v":"Dublin"},20331,375,3167,626,202,110.42191811411355,459,214.0023364358436,2108,399.82621224727126,141,74.242844773082339,257,123.43419299367578,17164,692,695,170.23806859806652,2210,319.29453487336735,11106,589.59562413572917,1846,191.80198122021577,1307,183.60010893242955,9449,367,1460,291,307,95,104,70,203,83,59,63,144,72,1153,266,429,178,724,190,7989,421,4809,312,3440,257,1369,250,366,155,1003,197,3180,328,3180,328,1699,214,48,54,46,59,144,72,1112,186,272,151,591,172]
[]
["Household Income By Tenure"]
["NAME","TotalOccHU",{"$f":"\"MOE \"&B127","v":"MOE TotalOccHU"},"OwnOccHU",{"$f":"\"MOE \"&D127","v":"MOE OwnOccHU"},"OOHUInc<5K",{"$f":"\"MOE \"&F127","v":"MOE OOHUInc<5K"},"OOHUInc5to10K",{"$f":"\"MOE \"&H127","v":"MOE OOHUInc5to10K"},"OOHUInc10to15K",{"$f":"\"MOE \"&J127","v":"MOE OOHUInc10to15K"},"OOHUInc15to20K",{"$f":"\"MOE \"&L127","v":"MOE OOHUInc15to20K"},"OOHUInc20to25K",{"$f":"\"MOE \"&N127","v":"MOE OOHUInc20to25K"},"OOHUInc25to35K",{"$f":"\"MOE \"&P127","v":"MOE OOHUInc25to35K"},"OOHUInc35to50K",{"$f":"\"MOE \"&R127","v":"MOE OOHUInc35to50K"},"OOHUInc50to75K",{"$f":"\"MOE \"&T127","v":"MOE OOHUInc50to75K"},"OOHUInc75to100K",{"$f":"\"MOE \"&V127","v":"MOE OOHUInc75to100K"},"OOHUInc100to150K",{"$f":"\"MOE \"&X127","v":"MOE OOHUInc100to150K"},"OOHUInc>150K",{"$f":"\"MOE \"&Z127","v":"MOE OOHUInc>150K"},"RentOccHU",{"$f":"\"MOE \"&AB127","v":"MOE RentOccHU"},"ROHUInc<5K",{"$f":"\"MOE \"&AD127","v":"MOE ROHUInc<5K"},"ROHUInc5to10K",{"$f":"\"MOE \"&AF127","v":"MOE ROHUInc5to10K"},"ROHUInc10to15K",{"$f":"\"MOE \"&AH127","v":"MOE ROHUInc10to15K"},"ROHUInc15to20K",{"$f":"\"MOE \"&AJ127","v":"MOE ROHUInc15to20K"},"ROHUInc20to25K",{"$f":"\"MOE \"&AL127","v":"MOE ROHUInc20to25K"},"ROHUInc25to35K",{"$f":"\"MOE \"&AN127","v":"MOE ROHUInc25to35K"},"ROHUInc35to50K",{"$f":"\"MOE \"&AP127","v":"MOE ROHUInc35to50K"},"ROHUInc50to75K",{"$f":"\"MOE \"&AR127","v":"MOE ROHUInc50to75K"},"ROHUInc75to100K",{"$f":"\"MOE \"&AT127","v":"MOE ROHUInc75to100K"},"ROHUInc100to150K",{"$f":"\"MOE \"&AV127","v":"MOE ROHUInc100to150K"},"ROHUInc>150K",{"$f":"\"MOE \"&AX127","v":"MOE ROHUInc>150K"},"Total OCC HUInc<5K",{"$f":"\"MOE \"&AZ127","v":"MOE Total OCC HUInc<5K"},"Total OCC HUInc5to10K",{"$f":"\"MOE \"&BB127","v":"MOE Total OCC HUInc5to10K"},"Total OCC HUInc10to15K",{"$f":"\"MOE \"&BD127","v":"MOE Total OCC HUInc10to15K"},"Total OCC HUInc15to20K",{"$f":"\"MOE \"&BF127","v":"MOE Total OCC HUInc15to20K"},"Total OCC HUInc20to25K",{"$f":"\"MOE \"&BH127","v":"MOE Total OCC HUInc20to25K"},"Total OCC HUInc25to35K",{"$f":"\"MOE \"&BJ127","v":"MOE Total OCC HUInc25to35K"},"Total OCC HUInc35to50K",{"$f":"\"MOE \"&BL127","v":"MOE Total OCC HUInc35to50K"},"Total OCC HUInc50to75K",{"$f":"\"MOE \"&BN127","v":"MOE Total OCC HUInc50to75K"},"Total OCC HUInc75to100K",{"$f":"\"MOE \"&BP127","v":"MOE Total OCC HUInc75to100K"},"Total OCC HUInc100to150K",{"$f":"\"MOE \"&BR127","v":"MOE Total OCC HUInc100to150K"},"Total OCC HUInc>150K",{"$f":"\"MOE \"&BT127","v":"MOE Total OCC HUInc>150K"},"MedHHInc",{"$f":"\"MOE \"&BV127","v":"MOE MedHHInc"},"MedOwnOccHHInc",{"$f":"\"MOE \"&BX127","v":"MOE MedOwnOccHHInc"},"MedRentOccHHInc",{"$f":"\"MOE \"&BZ127","v":"MOE MedRentOccHHInc"}]
[{"$f":"VLOOKUP(DropDownList!$B$27,CntyQryCensus!$A$275:$AG$297,A$1)","v":"Dublin"},584,63,462,54,6,6,2,3,9,7,11,10,28,23,53,31,44,29,48,25,60,29,127,36,74,22,122,41,0,11,6,6,0,11,23,23,6,6,23,19,8,8,47,27,9,8,0,11,0,11,6,12.529964086141668,8,6.7082039324993694,9,13.038404810405298,34,25.079872407968907,34,23.769728648009426,76,36.359317925395686,52,30.083217912982647,95,36.796738985948195,69,30.083217912982647,127,37.643060449437421,74,24.596747752497688,69375,13698,87917,11902,40833,31569]
[]
["Population Data"]
["NAME","Total Population","MOE Total Population","Under 15 Years","MOE Under 15 yrs.","15 to 24 yrs.","MOE 15 to 24 yrs.","25 to 34 yrs.","MOE 25 to 34 yrs.","35 to 44 yrs.","MOE 35 to 44 yrs.","45 to 54 yrs.","MOE 45 to 54 yrs.","55 to 64 yrs.","MOE 55 to 64 yrs.","65 to 74 yrs.","MOE 65 to 74 yrs.","Over 74 yrs. ","MOE Over 74 yrs. ","TotalHH","MOE TotalHH","FamilyHH","MOE FamilyHH","MarriedFamilyHH","MOE MarriedFamilyHH","SingleFamilyHH","MOE SingleFamilyHH","Sfamily-MaleHH","MOE Sfamily-MaleHH","Sfamily-FemaleHH","MOE Sfamily-FemaleHH","NonFamilyHH","MOE NonFamilyHH","NonFamilyHH-LivingAlone","MOE NonFamilyHH-LivingAlone","NonFamilyHH-NotLivingAlone","MOE NonFamilyHH-NotLivingAlone","PopRaceWhite","MOE PopRaceWhite","PopRaceBlack","MOE PopRaceBlack","PopRaceAmerican Indian","MOE PopRaceAmerican Indian","PopRaceAsian &Pacific Is.","MOE PopRaceAsian &Pacific Is.","PopRaceOther*","MOE PopRaceOther*","PopRaceHispanic or Latino:","MOE PopRaceHispanic or Latino:","AvgAgeTotalPop","MOE AvgAgeTotalPop","AvgAgeMale","MOE AvgAgeMale","AvgAgeFemale","MOE AvgAgeFemale","AvgHHSizeTotal","MOE AvgHHSizeTotal","AvgHHSizeFamilyHH","MOE AvgHHSizeFamilyHH","AvgHHSizeNonFamilyHH","MOE AvgHHSizeNonFamilyHH"]
[{"$f":"VLOOKUP(DropDownList!$B$27,CntyQryCensus!$A$275:$AG$297,A$1)","v":"Dublin"},4221,15,766,181.46073955542008,545,177.20045146669349,516,153.24816475246939,398,130.24208229293635,613,173.45028106059672,633,153.08494374039532,468,111.99553562530964,282,91.214034007931033,1702,154,1104,120,667,120,437,125,217,105,220,102,598,144,481,135,117,59,4093,84,17,28,18,26,23,34.785054261852174,26,26.40075756488817,44,62,40.700000000000003,6.1,43.9,9.1,40.4,4.2,2.41,0.23,2.34,0.21,2.6,0.62]
[]
["Nativity and Prior Place of Residence"]
["NAME","TotalPop",{"$f":"\"MOE \"&B135","v":"MOE TotalPop"},"Native:",{"$f":"\"MOE \"&D135","v":"MOE Native:"},"NatBornInStateOfResidence",{"$f":"\"MOE \"&F135","v":"MOE NatBornInStateOfResidence"},"Born in other state in the United States:",{"$f":"\"MOE \"&H135","v":"MOE Born in other state in the United States:"},"Northeast",{"$f":"\"MOE \"&J135","v":"MOE Northeast"},"Midwest",{"$f":"\"MOE \"&L135","v":"MOE Midwest"},"South",{"$f":"\"MOE \"&N135","v":"MOE South"},"West",{"$f":"\"MOE \"&P135","v":"MOE West"},"Born outside the United States:",{"$f":"\"MOE \"&R135","v":"MOE Born outside the United States:"},"Puerto Rico",{"$f":"\"MOE \"&T135","v":"MOE Puerto Rico"},"U.S. Island Areas",{"$f":"\"MOE \"&V135","v":"MOE U.S. Island Areas"},"Born abroad of American parent(s)",{"$f":"\"MOE \"&X135","v":"MOE Born abroad of American parent(s)"},"Foreign born:",{"$f":"\"MOE \"&Z135","v":"MOE Foreign born:"},"Naturalized U.S. citizen",{"$f":"\"MOE \"&AB135","v":"MOE Naturalized U.S. citizen"},"Not a U.S. citizen",{"$f":"\"MOE \"&AD135","v":"MOE Not a U.S. citizen"},"CurrentResideneTotal:",{"$f":"\"MOE \"&AF135","v":"MOE CurrentResideneTotal:"},"SameHouse:",{"$f":"\"MOE \"&AH135","v":"MOE SameHouse:"},"DifferentHouse:",{"$f":"\"MOE \"&AJ135","v":"MOE DifferentHouse:"},"DiffHouseInNH",{"$f":"\"MOE \"&AL135","v":"MOE DiffHouseInNH"},"DiffHouseInNHSameCnty",{"$f":"\"MOE \"&AN135","v":"MOE DiffHouseInNHSameCnty"},"DiffHouseInNHDiffCnty",{"$f":"\"MOE \"&AP135","v":"MOE DiffHouseInNHDiffCnty"},"DiffHouseInDiffState",{"$f":"\"MOE \"&AR135","v":"MOE DiffHouseInDiffState"},"DiffHouseInElsewhere",{"$f":"\"MOE \"&AT135","v":"MOE DiffHouseInElsewhere"}]
[{"$f":"VLOOKUP(DropDownList!$B$27,CntyQryCensus!$A$275:$AG$297,A$1)","v":"Dublin"},4221,15,4160,72,2189,213,1948,196,1729,206,55,40,99,88,65,81,23,24,0,11,0,11,23,24,61,71,42,45,19,32,4179,40,3590,329,589,311.56219282833405,582,311.20732639190874,535,307,47,51,7,10,0,11]
[]
["School Attainment & Enrollment"]
["NAME","Total Pop 3 Years and Older","MOE Total Pop 3 Years and Older","SchEnrlPop3yrOver",{"$f":"\"MOE \"&D139","v":"MOE SchEnrlPop3yrOver"},"TotalEnrollNursy&Kinder",{"$f":"\"MOE \"&F139","v":"MOE TotalEnrollNursy&Kinder"},"NurserSchEnrl",{"$f":"\"MOE \"&H139","v":"MOE NurserSchEnrl"},"KinderSchEnrl",{"$f":"\"MOE \"&J139","v":"MOE KinderSchEnrl"},"ElemSchEnrl (1-8)",{"$f":"\"MOE \"&L139","v":"MOE ElemSchEnrl (1-8)"},"HighSchEnrl(9-12)",{"$f":"\"MOE \"&N139","v":"MOE HighSchEnrl(9-12)"},"TotalElementry&HSEnroll",{"$f":"\"MOE \"&P139","v":"MOE TotalElementry&HSEnroll"},"CollGradSchEnrl",{"$f":"\"MOE \"&R139","v":"MOE CollGradSchEnrl"},"PopNotEnrolled","MOE PopNotEnrolled","Pop25yrsOver",{"$f":"\"MOE \"&V139","v":"MOE Pop25yrsOver"},"EduAtain<9grd",{"$f":"\"MOE \"&X139","v":"MOE EduAtain<9grd"},"EduAtainHSnoDip",{"$f":"\"MOE \"&Z139","v":"MOE EduAtainHSnoDip"},"EduAtainHSgrad",{"$f":"\"MOE \"&AB139","v":"MOE EduAtainHSgrad"},"EduAtainCollNoDeg",{"$f":"\"MOE \"&AD139","v":"MOE EduAtainCollNoDeg"},"EduAtainAssocDeg",{"$f":"\"MOE \"&AF139","v":"MOE EduAtainAssocDeg"},"EduAtainBachDeg",{"$f":"\"MOE \"&AH139","v":"MOE EduAtainBachDeg"},"EduAtainGradProfDeg",{"$f":"\"MOE \"&AJ139","v":"MOE EduAtainGradProfDeg"}]
[{"$f":"VLOOKUP(DropDownList!$B$27,CntyQryCensus!$A$275:$AG$297,A$1)","v":"Dublin"},4071,102,888,176,137,103.07764064044152,88,89,49,52,415,122.80065146407001,190,90,605,152.24979474534604,146,83.198557679805958,3183,203,3011,192,78,157.98417642283039,428,141.54857823376398,1690,182.87974190707948,316,104.45573225055675,148,79.158069708653201,190,82.462112512353215,91,102.32790430767162]
[]
["Occupied Owner Housing Value"]
["NAME","Estimate; Total:","Margin of Error; Total:","Estimate; Total: - Less than $10,000","Margin of Error; Total: - Less than $10,000","Estimate; Total: - $10,000 to $14,999","Margin of Error; Total: - $10,000 to $14,999","Estimate; Total: - $15,000 to $19,999","Margin of Error; Total: - $15,000 to $19,999","Estimate; Total: - $20,000 to $24,999","Margin of Error; Total: - $20,000 to $24,999","Estimate; Total: - $25,000 to $29,999","Margin of Error; Total: - $25,000 to $29,999","Estimate; Total: - $30,000 to $34,999","Margin of Error; Total: - $30,000 to $34,999","Estimate; Total: - $35,000 to $39,999","Margin of Error; Total: - $35,000 to $39,999","Estimate; Total: - $40,000 to $49,999","Margin of Error; Total: - $40,000 to $49,999","Estimate; Total: - $50,000 to $59,999","Margin of Error; Total: - $50,000 to $59,999","Estimate; Total: - $60,000 to $69,999","Margin of Error; Total: - $60,000 to $69,999","Estimate; Total: - $70,000 to $79,999","Margin of Error; Total: - $70,000 to $79,999","Estimate; Total: - $80,000 to $89,999","Margin of Error; Total: - $80,000 to $89,999","Estimate; Total: - $90,000 to $99,999","Margin of Error; Total: - $90,000 to $99,999","Estimate; Total: - $100,000 to $124,999","Margin of Error; Total: - $100,000 to $124,999","Estimate; Total: - $125,000 to $149,999","Margin of Error; Total: - $125,000 to $149,999","Estimate; Total: - $150,000 to $174,999","Margin of Error; Total: - $150,000 to $174,999","Estimate; Total: - $175,000 to $199,999","Margin of Error; Total: - $175,000 to $199,999","Estimate; Total: - $200,000 to $249,999","Margin of Error; Total: - $200,000 to $249,999","Estimate; Total: - $250,000 to $299,999","Margin of Error; Total: - $250,000 to $299,999","Estimate; Total: - $300,000 to $399,999","Margin of Error; Total: - $300,000 to $399,999","Estimate; Total: - $400,000 to $499,999","Margin of Error; Total: - $400,000 to $499,999","Estimate; Total: - $500,000 to $749,999","Margin of Error; Total: - $500,000 to $749,999","Estimate; Total: - $750,000 to $999,999","Margin of Error; Total: - $750,000 to $999,999","Estimate; Total: - $1,000,000 to $1,499,999","Margin of Error; Total: - $1,000,000 to $1,499,999","Estimate; Total: - $1,500,000 to $1,999,999","Margin of Error; Total: - $1,500,000 to $1,999,999","Estimate; Total: - $2,000,000 or more","Margin of Error; Total: - $2,000,000 or more","MedianOwnOCCHomeValue","MOE MedianOwnOCCHomeValue","OnwerOccHsU","MOE OnwerOccHsU","OwnerCosts>20PctHHInc","MOE OwnerCosts>20PctHHInc","OwnerCosts20to29.9PctHHInc","MOE OwnerCosts20to29.9PctHHInc","OwnerCosts<30PctHHInc","MOE OwnerCosts<30PctHHInc","OwnerCosts>30PctHHInc","MOE OwnerCosts>30PctHHInc","OwnerCosts30to34.9PctHHInc","MOE OwnerCosts30to34.9PctHHInc","OwnerCosts<35PctHHInc","MOE OwnerCosts<35PctHHInc","OwnerCosts>35PctHHInc","MOE OwnerCosts>35PctHHInc","OwnerCosts>50PctHHInc","MOE OwnerCosts>50PctHHInc","OwnerCostsPctNotcomputed","MOE OwnerCostsPctNotcomputed","OwnerOHUHhInc<20k","MOE OwnerOHUHhInc<20k","OwnerOHUHhInc<20kHCosts<20pct","MOE OwnerOHUHhInc<20kHCosts<20pct","OwnerOHUHhInc<20kHCosts20to29pct","MOE OwnerOHUHhInc<20kHCosts20to29pct","OwnerOHUHhInc>20kHCosts30pct","MOE OwnerOHUHhInc>20kHCosts30pct","OwnerOHUHhInc20kTo34999","MOE OwnerOHUHhInc20kTo34999","OwnerOHUHhInc20kTo34999HCosts<20pct","MOE OwnerOHUHhInc20kTo34999HCosts<20pct","OwnerOHUHhInc20kTo34999HCosts20to29pct","MOE OwnerOHUHhInc20kTo34999HCosts20to29pct","OwnerOHUHhInc20kTo34999HCosts30pct","MOE OwnerOHUHhInc20kTo34999HCosts30pct","OwnerOHUHhInc35kTo49999","MOE OwnerOHUHhInc35kTo49999","OwnerOHUHhInc35kTo49999HCosts<20pct","MOE OwnerOHUHhInc35kTo49999HCosts<20pct","OwnerOHUHhInc35kTo49999HCosts20to29pct","MOE OwnerOHUHhInc35kTo49999HCosts20to29pct","OwnerOHUHhInc35kTo49999HCosts30pct","MOE OwnerOHUHhInc35kTo49999HCosts30pct","OwnerOHUHhInc50kTo74999","MOE OwnerOHUHhInc50kTo74999","OwnerOHUHhInc50kTo74999HCosts<20pct","MOE OwnerOHUHhInc50kTo74999HCosts<20pct","OwnerOHUHhInc50kTo74999HCosts20to29pct","MOE OwnerOHUHhInc50kTo74999HCosts20to29pct","OwnerOHUHhInc50kTo74999HCosts30pct","MOE OwnerOHUHhInc50kTo74999HCosts30pct","OwnerOHUHhInc>75000","MOE OwnerOHUHhInc>75000","OwnerOHUHhInc>75000HCosts<20pct","MOE OwnerOHUHhInc>75000HCosts<20pct","OwnerOHUHhInc>75000HCosts20to29pct","MOE OwnerOHUHhInc>75000HCosts20to29pct","OwnerOHUHhInc>75000HCosts30pct","MOE OwnerOHUHhInc>75000HCosts30pct","ZeroOrNegativeIncome","MOE ZeroOrNegativeIncome"]
[{"$f":"VLOOKUP(DropDownList!$B$27,CntyQryCensus!$A$275:$AG$297,A$1)","v":"Dublin"},1225,174,16,18,39,32,64,62,14,22,53,73,62,59,11,18,36,32,36,42,9,14,18,19,37,37,43,31,170,77,125,66,162,64,66,61,155,77,57,41,52,52,0,11,0,11,0,11,0,11,0,11,0,11,125900,18248,1225,174,442,133.01127771734244,272,89.504189846062502,714,160.32155188869649,502,148.60349928585129,121,77.103826104804938,835,177.8988476634967,381,127.03542812932147,170,84.308955633431964,9,17.804493814764857,135,77,0,11,0,11,135,77,235,100,15,17,30,29,190,92,208,88,41,34,67,45,100,66,212,98,107,77,91,58,14,23,426,112,279,101,84,49,63,49,9,14]
[]
["Occupied Rental Housing Value"]
["NAME","RntrOccHU","MOE RntrOccHU","RntrOccHUwRent","MOE RntrOccHUwRent","ROHUGRent<100","MOE ROHUGRent<100","ROHUGRent100to149","MOE ROHUGRent100to149","ROHUGRent150to199","MOE ROHUGRent150to199","ROHUGRent200to249","MOE ROHUGRent200to249","ROHUGRent250to299","MOE ROHUGRent250to299","ROHUGRent300to349","MOE ROHUGRent300to349","ROHUGRent350to399","MOE ROHUGRent350to399","ROHUGRent400to449","MOE ROHUGRent400to449","ROHUGRent450to499","MOE ROHUGRent450to499","ROHUGRent500to549","MOE ROHUGRent500to549","ROHUGRent550to599","MOE ROHUGRent550to599","ROHUGRent600to649","MOE ROHUGRent600to649","ROHUGRent650to699","MOE ROHUGRent650to699","ROHUGRent700to749","MOE ROHUGRent700to749","ROHUGRent750to799","MOE ROHUGRent750to799","ROHUGRent800to899","MOE ROHUGRent800to899","ROHUGRent900to999","MOE ROHUGRent900to999","ROHUGRent1000to1249","MOE ROHUGRent1000to1249","ROHUGRent1250to1499","MOE ROHUGRent1250to1499","ROHUGRent1500to1999","MOE ROHUGRent1500to1999","ROHUGRent2000>","MOE ROHUGRent2000>","ROHUNoGRent","MOE ROHUNoGRent","MedianGrossRnt","MOE MedianGrossRnt","H73RenterOccHU","MOE H73RenterOccHU","H73ROHUHhInc<10k","MOE H73ROHUHhInc<10k","H73ROHUHhInc<10kRnt<20pct","MOE H73ROHUHhInc<10kRnt<20pct","H73ROHUHhInc<10kRnt20to25pct","MOE H73ROHUHhInc<10kRnt20to25pct","H73ROHUHhInc<10kRnt25to30pct","MOE H73ROHUHhInc<10kRnt25to30pct","H73ROHUHhInc<10kRnt30to35pct","MOE H73ROHUHhInc<10kRnt30to35pct","H73ROHUHhInc<10kRnt35to39.9","MOE H73ROHUHhInc<10kRnt35to39.9","H73ROHUHhInc<10kRnt40to49.9","MOE H73ROHUHhInc<10kRnt40to49.9","H73ROHUHhInc<10kRnt>50pct","MOE H73ROHUHhInc<10kRnt>50pct","H73ROHUHhInc<10kPctNotComput","MOE H73ROHUHhInc<10kPctNotComput","H73ROHUHhInc10to20k","MOE H73ROHUHhInc10to20k","H73ROHUHhInc10to20kRnt<20pct","MOE H73ROHUHhInc10to20kRnt<20pct","H73ROHUHhInc10to20kRnt20to25pct","MOE H73ROHUHhInc10to20kRnt20to25pct","H73ROHUHhInc10to20kRnt25to30pct","MOE H73ROHUHhInc10to20kRnt25to30pct","H73ROHUHhInc10to20kRnt30to35pct","MOE H73ROHUHhInc10to20kRnt30to35pct","H73ROHUHhInc10to20kRnt35to39.9","MOE H73ROHUHhInc10to20kRnt35to39.9","H73ROHUHhInc10to20kRnt40to49.9","MOE H73ROHUHhInc10to20kRnt40to49.9","H73ROHUHhInc10to20kRnt>50pct","MOE H73ROHUHhInc10to20kRnt>50pct","H73ROHUHhInc10to20kRntPctNC","MOE H73ROHUHhInc10to20kRntPctNC","H73ROHUHhInc20to34.9k","MOE H73ROHUHhInc20to34.9k","H73ROHUHhInc20to34.9kRnt<20pct","MOE H73ROHUHhInc20to34.9kRnt<20pct","H73ROHUHhInc20to34.9kRnt20to25pct","MOE H73ROHUHhInc20to34.9kRnt20to25pct","H73ROHUHhInc20to34.9kRnt25to30pct","MOE H73ROHUHhInc20to34.9kRnt25to30pct","H73ROHUHhInc20to34.9kRnt30to35pct","MOE H73ROHUHhInc20to34.9kRnt30to35pct","H73ROHUHhInc20to34.9kRnt35to39.9","MOE H73ROHUHhInc20to34.9kRnt35to39.9","H73ROHUHhInc20to34.9kRnt40to49.9","MOE H73ROHUHhInc20to34.9kRnt40to49.9","H73ROHUHhInc20to34.9kRnt>50pct","MOE H73ROHUHhInc20to34.9kRnt>50pct","H73ROHUHhInc20to34.9kRntPctNC","MOE H73ROHUHhInc20to34.9kRntPctNC","H73ROHUHhInc35to49.9k","MOE H73ROHUHhInc35to49.9k","H73ROHUHhInc35to49.9kRnt<20pct","MOE H73ROHUHhInc35to49.9kRnt<20pct","H73ROHUHhInc35to49.9kRnt20to25pct","MOE H73ROHUHhInc35to49.9kRnt20to25pct","H73ROHUHhInc35to49.9kRnt25to30pct","MOE H73ROHUHhInc35to49.9kRnt25to30pct","H73ROHUHhInc35to49.9kRnt30to35pct","MOE H73ROHUHhInc35to49.9kRnt30to35pct","H73ROHUHhInc35to49.9kRnt35to39.9","MOE H73ROHUHhInc35to49.9kRnt35to39.9","H73ROHUHhInc35to49.9kRnt40to49.9","MOE H73ROHUHhInc35to49.9kRnt40to49.9","H73ROHUHhInc35to49.9kRnt>50pct","MOE H73ROHUHhInc35to49.9kRnt>50pct","H73ROHUHhInc35to49.9kRntPctNC","MOE H73ROHUHhInc35to49.9kRntPctNC","H73ROHUHhInc50to74.9k","MOE H73ROHUHhInc50to74.9k","H73ROHUHhInc50to74.9kRnt<20pct","MOE H73ROHUHhInc50to74.9kRnt<20pct","H73ROHUHhInc50to74.9kRnt20to25pct","MOE H73ROHUHhInc50to74.9kRnt20to25pct","H73ROHUHhInc50to74.9kRnt25to30pct","MOE H73ROHUHhInc50to74.9kRnt25to30pct","H73ROHUHhInc50to74.9kRnt30to35pct","MOE H73ROHUHhInc50to74.9kRnt30to35pct","H73ROHUHhInc50to74.9kRnt35to39.9","MOE H73ROHUHhInc50to74.9kRnt35to39.9","H73ROHUHhInc50to74.9kRnt40to49.9","MOE H73ROHUHhInc50to74.9kRnt40to49.9","H73ROHUHhInc50to74.9kRnt>50pct","MOE H73ROHUHhInc50to74.9kRnt>50pct","H73ROHUHhInc50to74.9kRntPctNC","MOE H73ROHUHhInc50to74.9kRntPctNC","H73ROHUHhInc75to99.9k","MOE H73ROHUHhInc75to99.9k","H73ROHUHhInc75to99.9kRnt<20pct","MOE H73ROHUHhInc75to99.9kRnt<20pct","H73ROHUHhInc75to99.9kRnt20to25pct","MOE H73ROHUHhInc75to99.9kRnt20to25pct","H73ROHUHhInc75to99.9kRnt25to30pct","MOE H73ROHUHhInc75to99.9kRnt25to30pct","H73ROHUHhInc75to99.9kRnt30to35pct","MOE H73ROHUHhInc75to99.9kRnt30to35pct","H73ROHUHhInc75to99.9kRnt35to39.9","MOE H73ROHUHhInc75to99.9kRnt35to39.9","H73ROHUHhInc75to99.9kRnt40to49.9","MOE H73ROHUHhInc75to99.9kRnt40to49.9","H73ROHUHhInc75to99.9kRnt>50pct","MOE H73ROHUHhInc75to99.9kRnt>50pct","H73ROHUHhInc75to99.9kRntPctNC","MOE H73ROHUHhInc75to99.9kRntPctNC","H73ROHUHhInc>100k","MOE H73ROHUHhInc>100k","H73ROHUHhInc>100kRnt<20pct","MOE H73ROHUHhInc>100kRnt<20pct","H73ROHUHhInc>100kRnt20to25pct","MOE H73ROHUHhInc>100kRnt20to25pct","H73ROHUHhInc>100kRnt25to30pct","MOE H73ROHUHhInc>100kRnt25to30pct","H73ROHUHhInc>100kRnt30to35pct","MOE H73ROHUHhInc>100kRnt30to35pct","H73ROHUHhInc>100kRnt35to39.9","MOE H73ROHUHhInc>100kRnt35to39.9","H73ROHUHhInc>100kRnt40to49.9","MOE H73ROHUHhInc>100kRnt40to49.9","H73ROHUHhInc>100kRnt>50pct","MOE H73ROHUHhInc>100kRnt>50pct","H73ROHUHhInc>100kRntPctNC","MOE H73ROHUHhInc>100kRntPctNC"]
[{"$f":"VLOOKUP(DropDownList!$B$27,CntyQryCensus!$A$275:$AG$297,A$1)","v":"Dublin"},493,124,458,130,0,11,0,11,0,11,0,11,0,11,8,14,10,17,34,50,4,8,0,11,0,11,0,11,88,63,0,11,11,15,43,35,17,27,78,64,124,91,41,42,0,11,0,11,0,11,0,11,35,28,1045,260,493,124,48,55,0,11,0,11,0,11,0,11,0,11,0,11,48,55,0,11,71,64,0,11,0,11,0,11,4,8,0,11,0,11,60,62,7,12,144,81,18,17,34,50,0,11,27,28,48,54,17,28,0,11,0,11,22,26,0,11,10,16,0,11,0,11,0,11,0,11,0,11,12,20,145,73,23,25,65,58,22,34,19,30,0,11,0,11,0,11,16,17,23,25,12,19,11,17,0,11,0,11,0,11,0,11,0,11,0,11,40,64,40,64,0,11,0,11,0,11,0,11,0,11,0,11,0,11]
[]
[]
[]
[]
[]
["Occupied Rental Housing Cost Burdern All Incomes"]
["NAME","RenterOccHsU",{"$f":"\"MOE \"&B155","v":"MOE RenterOccHsU"},"GRnt<20PctHHInc",{"$f":"\"MOE \"&D155","v":"MOE GRnt<20PctHHInc"},"GRnt20to249PctHHInc",{"$f":"\"MOE \"&F155","v":"MOE GRnt20to249PctHHInc"},"GRnt25to29.9PctHHInc",{"$f":"\"MOE \"&H155","v":"MOE GRnt25to29.9PctHHInc"},"GRnt<30PctHHInc",{"$f":"\"MOE \"&J155","v":"MOE GRnt<30PctHHInc"},"GRnt>30PctHHInc",{"$f":"\"MOE \"&L155","v":"MOE GRnt>30PctHHInc"},"GRnt30to349PctHHInc",{"$f":"\"MOE \"&N155","v":"MOE GRnt30to349PctHHInc"},"GRnt<35PctHHInc",{"$f":"\"MOE \"&P155","v":"MOE GRnt<35PctHHInc"},"GRnt>35PctHHInc",{"$f":"\"MOE \"&R155","v":"MOE GRnt>35PctHHInc"},"GRnt>50PctHHInc",{"$f":"\"MOE \"&T155","v":"MOE GRnt>50PctHHInc"},"HCB Not Calculated",{"$f":"\"MOE \"&V155","v":"MOE HCB Not Calculated"}]
[{"$f":"VLOOKUP(DropDownList!$B$27,CntyQryCensus!$A$275:$AG$297,A$1)","v":"Dublin"},493,124,93,78.057670987546118,120,85,22,34,235,120.30793822520607,223,109.35264057168442,50,37,285,125.86897949852458,173,102.90286682109493,108,83,35,28]
[]
["Income By Household Type and Tenure"]
["NAME","TotalFamilyHouseholds",{"$f":"\"MOE \"&B159","v":"MOE TotalFamilyHouseholds"},"FamInc<10K",{"$f":"\"MOE \"&D159","v":"MOE FamInc<10K"},"FamInc10to15K",{"$f":"\"MOE \"&F159","v":"MOE FamInc10to15K"},"FamInc15to20K",{"$f":"\"MOE \"&H159","v":"MOE FamInc15to20K"},"FamInc20to25K",{"$f":"\"MOE \"&J159","v":"MOE FamInc20to25K"},"FamInc25to30K",{"$f":"\"MOE \"&L159","v":"MOE FamInc25to30K"},"FamInc30to35K",{"$f":"\"MOE \"&N159","v":"MOE FamInc30to35K"},"FamInc35to40K",{"$f":"\"MOE \"&P159","v":"MOE FamInc35to40K"},"FamInc40to45K",{"$f":"\"MOE \"&R159","v":"MOE FamInc40to45K"},"FamInc45to50K",{"$f":"\"MOE \"&T159","v":"MOE FamInc45to50K"},"FamInc50to60K",{"$f":"\"MOE \"&V159","v":"MOE FamInc50to60K"},"FamInc60to75K",{"$f":"\"MOE \"&X159","v":"MOE FamInc60to75K"},"FamInc75to100K",{"$f":"\"MOE \"&Z159","v":"MOE FamInc75to100K"},"FamInc100to125K",{"$f":"\"MOE \"&AB159","v":"MOE FamInc100to125K"},"FamInc125to150K",{"$f":"\"MOE \"&AD159","v":"MOE FamInc125to150K"},"FamInc150to200K",{"$f":"\"MOE \"&AF159","v":"MOE FamInc150to200K"},"FamInc>200K",{"$f":"\"MOE \"&AH159","v":"MOE FamInc>200K"},"MedFamInc",{"$f":"\"MOE \"&AJ159","v":"MOE MedFamInc"},"TotalNonNonFamilyHouseholds",{"$f":"\"MOE \"&AL159","v":"MOE TotalNonNonFamilyHouseholds"},"NonFamInc<10K",{"$f":"\"MOE \"&AN159","v":"MOE NonFamInc<10K"},"NonFamInc10to15K",{"$f":"\"MOE \"&AP159","v":"MOE NonFamInc10to15K"},"NonFamInc15to20K",{"$f":"\"MOE \"&AR159","v":"MOE NonFamInc15to20K"},"NonFamInc20to25K",{"$f":"\"MOE \"&AT159","v":"MOE NonFamInc20to25K"},"NonFamInc25to30K",{"$f":"\"MOE \"&AV159","v":"MOE NonFamInc25to30K"},"NonFamInc30to35K",{"$f":"\"MOE \"&AX159","v":"MOE NonFamInc30to35K"},"NonFamInc35to40K",{"$f":"\"MOE \"&AZ159","v":"MOE NonFamInc35to40K"},"NonFamInc40to45K",{"$f":"\"MOE \"&BB159","v":"MOE NonFamInc40to45K"},"NonFamInc45to50K",{"$f":"\"MOE \"&BD159","v":"MOE NonFamInc45to50K"},"NonFamInc50to60K",{"$f":"\"MOE \"&BF159","v":"MOE NonFamInc50to60K"},"NonFamInc60to75K",{"$f":"\"MOE \"&BH159","v":"MOE NonFamInc60to75K"},"NonFamInc75to100K",{"$f":"\"MOE \"&BJ159","v":"MOE NonFamInc75to100K"},"NonFamInc100to125K",{"$f":"\"MOE \"&BL159","v":"MOE NonFamInc100to125K"},"NonFamInc125to150K",{"$f":"\"MOE \"&BN159","v":"MOE NonFamInc125to150K"},"NonFamInc150to200K",{"$f":"\"MOE \"&BP159","v":"MOE NonFamInc150to200K"},"NonFamInc>200K",{"$f":"\"MOE \"&BR159","v":"MOE NonFamInc>200K"},"MedNonFamInc",{"$f":"\"MOE \"&BT159","v":"MOE MedNonFamInc"}]
[{"$f":"VLOOKUP(DropDownList!$B$27,CntyQryCensus!$A$275:$AG$297,A$1)","v":"Dublin"},416,56,3,4,3,4,6,6,8,14,17,16,30,22,17,21,12,10,15,15,11,13,58,29,57,27,65,29,50,26,29,12,35,17,88333,13101,168,50,11,8,6,5,28,25,26,19,16,16,17,18,0,11,8,12,0,11,6,6,16,16,12,9,3,5,9,8,7,8,3,4,null,null,29318,6010]

{"sheet":"CntyDataLinkPrior10YearEstimate","index":17,"n_rows":160,"n_cols":185,"rows_kept":160,"cut":false,"hidden":true,"merged":[]}
[1,{"$f":"A1+1","v":2},3,4,5,6,7,8,9,10,11,12,13,14,15,16,17,18,19,20,21,22,23,24,25,26,27,28,29,30,31,32,33,34,35,36,37,38,39,40,41,42,43,44,45,46,47,48,49,50,51,52,53,54,55,56,57,58,59,60,61,62,63,64,65,{"$f":"BM1+1","v":66},67,68,69,70,71,72,73,74,75,76,77,78,79,80,81,82,83,84,85,86,87,88,89,90,91,92,93,94,95,96,97,98,99,100,101,102,103,104,105,106,107,108,109,110,111,112,113,114,115,116,117,118,119,120,121,122,123,124,125,126,127,128,129,{"$f":"DY1+1","v":130},131,132,133,134,135,136,137,138,139,140,141,142,143,144,145,146,147,148,149,150,151,152,153,154,155,156,157,158,159,160,161,162,163,164,165,166,167,168,169,170,171,172,173,174,175,176,177,178,179,180,181,182,183]
[]
[]
[]
[]
[]
[]
[]
[]
[]
[]
[]
[]
[]
[]
[]
[]
[]
[]
[]
[]
[]
[]
[]
[]
[]
[]
[]
[]
[]
[]
[]
[]
[]
[]
[]
[]
[]
[]
[]
[]
[]
[]
[]
[]
[]
[]
[]
[]
[]
[]
[]
[]
[]
[]
[]
[]
[]
[]
[]
[]
[]
[]
[]
[]
[]
[]
[]
[]
[]
[]
[]
[]
[]
[]
[]
[]
[]
[]
[]
[]
[]
[]
[]
[]
[]
[]
[]
[]
[]
[]
[]
[]
[]
[]
[]
[]
[]
[]
[]
[]
[]
[]
[]
["ACS",2,{"$f":"B105+1","v":3},{"$f":"C105+1","v":4},5,6,7,8,9,10,11,{"$f":"K105+1","v":12},13,14,15,{"$f":"O105+1","v":16},17,18,19,20,21,22,23,24,25,26,27,28,29,30,31,32,33,34,35,36,37,38,39,40,41,42,43,44,45,46,47,48,49,50,51,52,53,54,55,56,57,58,59,60,61,62,63,64,65,66,67,{"$f":"BO105+1","v":68},69,70,71,72,73,74,75,76,77,78,79,80,81,82,83,84,85,86,87,88,89,90,91,92,93,94,95,96,97,98,99,100,101,102,103,104,105,106,107,108,109,110,111,112,113,114,115,116,117,118,119,120,121,122,123,124,125]
["Househould Data (Housing Unit Type)"]
["NAME","TotalHU",{"$f":"\"MOE \"&B107","v":"MOE TotalHU"},"TotalOccHU",{"$f":"\"MOE \"&D107","v":"MOE TotalOccHU"},"TotalOwnerOccUn",{"$f":"\"MOE \"&F107","v":"MOE TotalOwnerOccUn"},"TotalRenterOccn",{"$f":"\"MOE \"&H107","v":"MOE TotalRenterOccn"},"TotalVacantUntis",{"$f":"\"MOE \"&J107","v":"MOE TotalVacantUntis"},"VacantUnitsForRent",{"$f":"\"MOE \"&L107","v":"MOE VacantUnitsForRent"},"VacantUnitRentedNotOcc",{"$f":"\"MOE \"&N107","v":"MOE VacantUnitRentedNotOcc"},"VacantUnitForSale",{"$f":"\"MOE \"&P107","v":"MOE VacantUnitForSale"},"VacantUnitSoldNotOcc",{"$f":"\"MOE \"&R107","v":"MOE VacantUnitSoldNotOcc"},"VacantUnitSeasonalRec",{"$f":"\"MOE \"&T107","v":"MOE VacantUnitSeasonalRec"},"TotalPopInHousingUnits",{"$f":"\"MOE \"&V107","v":"MOE TotalPopInHousingUnits"},"OwnerOccPopHousingUnits",{"$f":"\"MOE \"&X107","v":"MOE OwnerOccPopHousingUnits"},"RenterOccPopHousingUnits",{"$f":"\"MOE \"&Z107","v":"MOE RenterOccPopHousingUnits"},"TotalUntis",{"$f":"\"MOE \"&AB107","v":"MOE TotalUntis"},"TotalOwnerOccUnits",{"$f":"\"MOE \"&AD107","v":"MOE TotalOwnerOccUnits"},"SigFamOwnerOcc",{"$f":"\"MOE \"&AF107","v":"MOE SigFamOwnerOcc"},"MultiFamOwnerOcc",{"$f":"\"MOE \"&AH107","v":"MOE MultiFamOwnerOcc"},"MobileOwnerOcc",{"$f":"\"MOE \"&AJ107","v":"MOE MobileOwnerOcc"},"TotalRenterOccUnits",{"$f":"\"MOE \"&AL107","v":"MOE TotalRenterOccUnits"},"SigFamRenterOcc",{"$f":"\"MOE \"&AN107","v":"MOE SigFamRenterOcc"},"MultiFamRenterOcc",{"$f":"\"MOE \"&AP107","v":"MOE MultiFamRenterOcc"},"MobileRenterOcc",{"$f":"\"MOE \"&AR107","v":"MOE MobileRenterOcc"},"TotalSigFamilyUnits",{"$f":"\"MOE \"&AT107","v":"MOE TotalSigFamilyUnits"},"TotalMultiFamilyUnits",{"$f":"\"MOE \"&AV107","v":"MOE TotalMultiFamilyUnits"},"TotalMobileUnits",{"$f":"\"MOE \"&AX107","v":"MOE TotalMobileUnits"},"YrHouseBuilt2005Later",{"$f":"\"MOE \"&AZ107","v":"MOE YrHouseBuilt2005Later"},"YrHouseBuilt2000-2004",{"$f":"\"MOE \"&BB107","v":"MOE YrHouseBuilt2000-2004"},"YrHouseBuilt1990-1999",{"$f":"\"MOE \"&BD107","v":"MOE YrHouseBuilt1990-1999"},"YrHouseBuilt1980-1989",{"$f":"\"MOE \"&BF107","v":"MOE YrHouseBuilt1980-1989"},"YrHouseBuilt1970-1979",{"$f":"\"MOE \"&BH107","v":"MOE YrHouseBuilt1970-1979"},"YrHouseBuilt1960-1969",{"$f":"\"MOE \"&BJ107","v":"MOE YrHouseBuilt1960-1969"},"YrHouseBuilt1950-1959",{"$f":"\"MOE \"&BL107","v":"MOE YrHouseBuilt1950-1959"},"YrHouseBuilt1940-1949",{"$f":"\"MOE \"&BN107","v":"MOE YrHouseBuilt1940-1949"},"YrHouseBuilt1939orEarlier",{"$f":"\"MOE \"&BP107","v":"MOE YrHouseBuilt1939orEarlier"},"NoBedrooms",{"$f":"\"MOE \"&BR107","v":"MOE NoBedrooms"},"1Bedroom",{"$f":"\"MOE \"&BT107","v":"MOE 1Bedroom"},"2Bedroom",{"$f":"\"MOE \"&BV107","v":"MOE 2Bedroom"},"3Bedroom",{"$f":"\"MOE \"&BX107","v":"MOE 3Bedroom"},"4+Bedroom",{"$f":"\"MOE \"&BZ107","v":"MOE 4+Bedroom"}]
[{"$f":"VLOOKUP(DropDownList!$B$27,CntyQryCensus!$A$275:$AG$297,A$1)","v":"Dublin"},1984,155,1789,148,1218,181,571,128,195,80,10,16,0,11,38,47,0,11,76,51,4261,36,2787,441,1474,443,1789,148,1218,181,795,168,65,47.592016137163178,358,108.55873986004075,571,128,139,87,361,131.93559034619886,71,64.938432380216881,1098,170,457,148.39811319555247,429,127.47548783981962,0,11,239,104,191,88,335,108,231,85,135,79,66,51,38,32,749,138]
[]
["Disability Data"]
["NAME","TotalPop",{"$f":"\"MOE \"&B111","v":"MOE TotalPop"},"PopUnder 5 years:",{"$f":"\"MOE \"&D111","v":"MOE PopUnder 5 years:"},{"$f":"D$111&\"-WithDisability\"","v":"PopUnder 5 years:-WithDisability"},{"$f":"\"MOE \"&F111","v":"MOE PopUnder 5 years:-WithDisability"},{"$f":"D111&\"-NoDisability\"","v":"PopUnder 5 years:-NoDisability"},{"$f":"\"MOE \"&H111","v":"MOE PopUnder 5 years:-NoDisability"},"PopUnder 5 to 17years:",{"$f":"\"MOE \"&J111","v":"MOE PopUnder 5 to 17years:"},{"$f":"J$111&\"-WithDisability\"","v":"PopUnder 5 to 17years:-WithDisability"},{"$f":"\"MOE \"&L111","v":"MOE PopUnder 5 to 17years:-WithDisability"},{"$f":"J111&\"-NoDisability\"","v":"PopUnder 5 to 17years:-NoDisability"},{"$f":"\"MOE \"&N111","v":"MOE PopUnder 5 to 17years:-NoDisability"},"PopUnder 18 to 34 years:",{"$f":"\"MOE \"&P111","v":"MOE PopUnder 18 to 34 years:"},{"$f":"P$111&\"-WithDisability\"","v":"PopUnder 18 to 34 years:-WithDisability"},{"$f":"\"MOE \"&R111","v":"MOE PopUnder 18 to 34 years:-WithDisability"},{"$f":"P111&\"-NoDisability\"","v":"PopUnder 18 to 34 years:-NoDisability"},{"$f":"\"MOE \"&T111","v":"MOE PopUnder 18 to 34 years:-NoDisability"},"Pop 35 years to 64:",{"$f":"\"MOE \"&V111","v":"MOE Pop 35 years to 64:"},{"$f":"$V$111&\"-WithDisability\"","v":"Pop 35 years to 64:-WithDisability"},{"$f":"\"MOE \"&X111","v":"MOE Pop 35 years to 64:-WithDisability"},{"$f":"$V$111&\"-NoDisability\"","v":"Pop 35 years to 64:-NoDisability"},{"$f":"\"MOE \"&Z111","v":"MOE Pop 35 years to 64:-NoDisability"},"Pop 65 years to 74:",{"$f":"\"MOE \"&AB111","v":"MOE Pop 65 years to 74:"},{"$f":"$AB$111&\"-WithDisability\"","v":"Pop 65 years to 74:-WithDisability"},{"$f":"\"MOE \"&AD111","v":"MOE Pop 65 years to 74:-WithDisability"},{"$f":"$AB$111&\"-NoDisability\"","v":"Pop 65 years to 74:-NoDisability"},{"$f":"\"MOE \"&AF111","v":"MOE Pop 65 years to 74:-NoDisability"},"Pop 75 and older:",{"$f":"\"MOE \"&AH111","v":"MOE Pop 75 and older:"},{"$f":"$AH$111&\"-WithDisability\"","v":"Pop 75 and older:-WithDisability"},{"$f":"\"MOE \"&AJ111","v":"MOE Pop 75 and older:-WithDisability"},{"$f":"$AH$111&\"-NoDisability\"","v":"Pop 75 and older:-NoDisability"},{"$f":"\"MOE \"&AL111","v":"MOE Pop 75 and older:-NoDisability"},"TotalPopUnder5_HearingDisability",{"$f":"\"MOE \"&AN111","v":"MOE TotalPopUnder5_HearingDisability"},"TotalPopUnder5_HearingDisability",{"$f":"\"MOE \"&AP111","v":"MOE TotalPopUnder5_HearingDisability"},"TotalPop18To34_HearingDisability",{"$f":"\"MOE \"&AR111","v":"MOE TotalPop18To34_HearingDisability"},"TotalPop35To64_HearingDisability",{"$f":"\"MOE \"&AT111","v":"MOE TotalPop35To64_HearingDisability"},"TotalPop65To74_HearingDisability",{"$f":"\"MOE \"&AV111","v":"MOE TotalPop65To74_HearingDisability"},"TotalPop75andOlder_HearingDisability",{"$f":"\"MOE \"&AX111","v":"MOE TotalPop75andOlder_HearingDisability"},"TotalPopUnder5_VisionDisability",{"$f":"\"MOE \"&AZ111","v":"MOE TotalPopUnder5_VisionDisability"},"TotalPop5To17_VisionDisability",{"$f":"\"MOE \"&BB111","v":"MOE TotalPop5To17_VisionDisability"},"TotalPop18To34_VisionDisability",{"$f":"\"MOE \"&BD111","v":"MOE TotalPop18To34_VisionDisability"},"TotalPop35To64_VisionDisability",{"$f":"\"MOE \"&BF111","v":"MOE TotalPop35To64_VisionDisability"},"TotalPop65To74_VisionDisability",{"$f":"\"MOE \"&BH111","v":"MOE TotalPop65To74_VisionDisability"},"TotalPop75andOlder_VisionDisability",{"$f":"\"MOE \"&BJ111","v":"MOE TotalPop75andOlder_VisionDisability"},"TotalPop5To17_CongnitiveDisability",{"$f":"\"MOE \"&BL111","v":"MOE TotalPop5To17_CongnitiveDisability"},"TotalPop18To34_CongnitiveDisability",{"$f":"\"MOE \"&BN111","v":"MOE TotalPop18To34_CongnitiveDisability"},"TotalPop35To64_CongnitiveDisability",{"$f":"\"MOE \"&BP111","v":"MOE TotalPop35To64_CongnitiveDisability"},"TotalPop65To74_CongnitiveDisability",{"$f":"\"MOE \"&BR111","v":"MOE TotalPop65To74_CongnitiveDisability"},"TotalPop75andOlder_CongnitiveDisability",{"$f":"\"MOE \"&BT111","v":"MOE TotalPop75andOlder_CongnitiveDisability"},"TotalPop5To17_AmbulatoryDisability",{"$f":"\"MOE \"&BV111","v":"MOE TotalPop5To17_AmbulatoryDisability"},"TotalPop18To34_AmbulatoryDisability",{"$f":"\"MOE \"&BX111","v":"MOE TotalPop18To34_AmbulatoryDisability"},"TotalPop35To64_AmbulatoryDisability",{"$f":"\"MOE \"&BZ111","v":"MOE TotalPop35To64_AmbulatoryDisability"},"TotalPop65To74_AmbulatoryDisability",{"$f":"\"MOE \"&CB111","v":"MOE TotalPop65To74_AmbulatoryDisability"},"TotalPop75andOlder_AmbulatoryDisability",{"$f":"\"MOE \"&CD111","v":"MOE TotalPop75andOlder_AmbulatoryDisability"},"TotalPop5To17_SelfCareDisability",{"$f":"\"MOE \"&CF111","v":"MOE TotalPop5To17_SelfCareDisability"},"TotalPop18To34_SelfCareDisability",{"$f":"\"MOE \"&CH111","v":"MOE TotalPop18To34_SelfCareDisability"},"TotalPop35To64_SelfCareDisability",{"$f":"\"MOE \"&CJ111","v":"MOE TotalPop35To64_SelfCareDisability"},"TotalPop65To74_SelfCareDisability",{"$f":"\"MOE \"&CL111","v":"MOE TotalPop65To74_SelfCareDisability"},"TotalPop75andOlder_SelfCareDisability",{"$f":"\"MOE \"&CN111","v":"MOE TotalPop75andOlder_SelfCareDisability"},"TotalPop18To34_IndependantLivingDisability",{"$f":"\"MOE \"&CP111","v":"MOE TotalPop18To34_IndependantLivingDisability"},"TotalPop35To64_IndependantLivingDisability",{"$f":"\"MOE \"&CR111","v":"MOE TotalPop35To64_IndependantLivingDisability"},"TotalPop65To74_IndependantLivingDisability",{"$f":"\"MOE \"&CT111","v":"MOE TotalPop65To74_IndependantLivingDisability"},"TotalPop75andOlder_IndependantLivingDisability",{"$f":"\"MOE \"&CV111","v":"MOE TotalPop75andOlder_IndependantLivingDisability"},"TotalUnder5_HearingorVisionDisability",{"$f":"\"MOE \"&CX111","v":"MOE TotalUnder5_HearingorVisionDisability"},"TotalUnder5_HearingandVisionDisability",{"$f":"\"MOE \"&CZ111","v":"MOE TotalUnder5_HearingandVisionDisability"},"5to17YearWIthOneDisability",{"$f":"\"MOE \"&DB111","v":"MOE 5to17YearWIthOneDisability"},"5to17YearWIthTwoOrMoreDisability",{"$f":"\"MOE \"&DD111","v":"MOE 5to17YearWIthTwoOrMoreDisability"},"18to34YearWIthOneDisability",{"$f":"\"MOE \"&DF111","v":"MOE 18to34YearWIthOneDisability"},"18to34YearWIthTwoOrMoreDisability",{"$f":"\"MOE \"&DH111","v":"MOE 18to34YearWIthTwoOrMoreDisability"},"35to64YearWIthOneDisability",{"$f":"\"MOE \"&DJ111","v":"MOE 35to64YearWIthOneDisability"},"35to64YearWIthTwoOrMoreDisability",{"$f":"\"MOE \"&DL111","v":"MOE 35to64YearWIthTwoOrMoreDisability"},"65to74YearWIthOneDisability",{"$f":"\"MOE \"&DN111","v":"MOE 65to74YearWIthOneDisability"},"65to74YearWIthTwoOrMoreDisability",{"$f":"\"MOE \"&DP111","v":"MOE 65to74YearWIthTwoOrMoreDisability"},"75AndOlderWIthOneDisability",{"$f":"\"MOE \"&DR111","v":"MOE 75AndOlderWIthOneDisability"},"75AndOlderWIthTwoOrMoreDisability",{"$f":"\"MOE \"&DT111","v":"MOE 75AndOlderWIthTwoOrMoreDisability"}]
[{"$f":"VLOOKUP(DropDownList!$B$27,CntyQryCensus!$A$275:$AG$297,A$1)","v":"Dublin"},1709,209,37,15,0,15.556349186104045,37,15,361,98.716766559688324,24,21.377558326431949,337,93.60021367496978,212,73.348483283568996,3,11.704699910719626,209,72.917761896536561,806,107.41508273980894,97,64.621977685614041,709,84.899941107164494,194,66.211781428987393,57,59.841457201508724,137,38.183766184073569,99,35.510561809129406,30,16.970562748477139,69,31.76476034853718,0,15.556349186104045,0,15.556349186104045,0,15.556349186104045,33,17.888543819998318,14,9.4339811320566032,14,12.727922061357855,0,15.556349186104045,0,15.556349186104045,0,15.556349186104045,0,15.556349186104045,0,15.556349186104045,6,7.0710678118654755,24,21.377558326431949,0,15.556349186104045,41,59.665735560705194,27,59.033888572581766,13,12.041594578792296,0,15.556349186104045,0,15.556349186104045,63,62.297672508690084,47,59.304300012730948,8,9.4339811320566032,0,15.556349186104045,3,11.704699910719626,33,58.54912467321779,27,59.033888572581766,8,9.4339811320566032,0,15.556349186104045,52,61.1310068623117,36,60.016664352494629,16,13,14,18,3,5,259,82,934,139,42,29,3,5,889,133,277,57,37,19,21,16,219,55,null,null,null,null,null,null,null,null,null,null,null,null,null,null,null,null,null,null,null,null,null,null,null,null,null,null,null,null,null,null,null,null,"Dublin",null,"Estimate","Margin of Error",1709,209,398,118,24,22,0,11,45,22,55,64,31,17,56,60]
[]
["Househould Income By Age"]
["NAME","TotalHouseholds",{"$f":"\"MOE \"&B115","v":"MOE TotalHouseholds"},"HHInc<10K",{"$f":"\"MOE \"&D115","v":"MOE HHInc<10K"},"HHInc10to15K",{"$f":"\"MOE \"&F115","v":"MOE HHInc10to15K"},"HHInc15to20K",{"$f":"\"MOE \"&H115","v":"MOE HHInc15to20K"},"HHInc20to25K",{"$f":"\"MOE \"&J115","v":"MOE HHInc20to25K"},"HHInc25to30K",{"$f":"\"MOE \"&L115","v":"MOE HHInc25to30K"},"HHInc30to35K",{"$f":"\"MOE \"&N115","v":"MOE HHInc30to35K"},"HHInc35to40K",{"$f":"\"MOE \"&P115","v":"MOE HHInc35to40K"},"HHInc40to45K",{"$f":"\"MOE \"&R115","v":"MOE HHInc40to45K"},"HHInc45to50K",{"$f":"\"MOE \"&T115","v":"MOE HHInc45to50K"},"HHInc50to60K",{"$f":"\"MOE \"&V115","v":"MOE HHInc50to60K"},"HHInc60to75K",{"$f":"\"MOE \"&X115","v":"MOE HHInc60to75K"},"HHInc75to100K",{"$f":"\"MOE \"&Z115","v":"MOE HHInc75to100K"},"HHInc100to125K",{"$f":"\"MOE \"&AB115","v":"MOE HHInc100to125K"},"HHInc125to150K",{"$f":"\"MOE \"&AD115","v":"MOE HHInc125to150K"},"HHInc150to200K",{"$f":"\"MOE \"&AF115","v":"MOE HHInc150to200K"},"HHInc>200K",{"$f":"\"MOE \"&AH115","v":"MOE HHInc>200K"},"TotalHH",{"$f":"\"MOE \"&AJ115","v":"MOE TotalHH"},"HHAgeHHUnder25yrs",{"$f":"\"MOE \"&AL115","v":"MOE HHAgeHHUnder25yrs"},"HHAgeHH<25HHInc<10K",{"$f":"\"MOE \"&AN115","v":"MOE HHAgeHH<25HHInc<10K"},"HHAgeHH<25HHInc10to15K",{"$f":"\"MOE \"&AP115","v":"MOE HHAgeHH<25HHInc10to15K"},"HHAgeHH<25HHInc15to20K",{"$f":"\"MOE \"&AR115","v":"MOE HHAgeHH<25HHInc15to20K"},"HHAgeHH<25HHInc20to25K",{"$f":"\"MOE \"&AT115","v":"MOE HHAgeHH<25HHInc20to25K"},"HHAgeHH<25HHInc25to30K",{"$f":"\"MOE \"&AV115","v":"MOE HHAgeHH<25HHInc25to30K"},"HHAgeHH<25HHInc30to35K",{"$f":"\"MOE \"&AX115","v":"MOE HHAgeHH<25HHInc30to35K"},"HHAgeHH<25HHInc35to40K",{"$f":"\"MOE \"&AZ115","v":"MOE HHAgeHH<25HHInc35to40K"},"HHAgeHH<25HHInc40to45K",{"$f":"\"MOE \"&BB115","v":"MOE HHAgeHH<25HHInc40to45K"},"HHAgeHH<25HHInc45to50K",{"$f":"\"MOE \"&BD115","v":"MOE HHAgeHH<25HHInc45to50K"},"HHAgeHH<25HHInc50to60K",{"$f":"\"MOE \"&BF115","v":"MOE HHAgeHH<25HHInc50to60K"},"HHAgeHH<25HHInc60to75K",{"$f":"\"MOE \"&BH115","v":"MOE HHAgeHH<25HHInc60to75K"},"HHAgeHH<25HHInc75to100K",{"$f":"\"MOE \"&BJ115","v":"MOE HHAgeHH<25HHInc75to100K"},"HHAgeHH<25HHInc100to125K",{"$f":"\"MOE \"&BL115","v":"MOE HHAgeHH<25HHInc100to125K"},"HHAgeHH<25HHInc125to150K",{"$f":"\"MOE \"&BN115","v":"MOE HHAgeHH<25HHInc125to150K"},"HHAgeHH<25HHInc150to200K",{"$f":"\"MOE \"&BP115","v":"MOE HHAgeHH<25HHInc150to200K"},"HHAge<25HHInc>200K",{"$f":"\"MOE \"&BR115","v":"MOE HHAge<25HHInc>200K"},"HHAgeHH25to44yrs",{"$f":"\"MOE \"&BT115","v":"MOE HHAgeHH25to44yrs"},"HHAgeHH25To44yrsHHInc<10K",{"$f":"\"MOE \"&BV115","v":"MOE HHAgeHH25To44yrsHHInc<10K"},"HHAgeHH25To44yrsHHInc10to15K",{"$f":"\"MOE \"&BX115","v":"MOE HHAgeHH25To44yrsHHInc10to15K"},"HHAgeHH25To44yrsHHInc15to20K",{"$f":"\"MOE \"&BZ115","v":"MOE HHAgeHH25To44yrsHHInc15to20K"},"HHAgeHH25To44yrsHHInc20to25K",{"$f":"\"MOE \"&CB115","v":"MOE HHAgeHH25To44yrsHHInc20to25K"},"HHAgeHH25To44yrsHHInc25to30K",{"$f":"\"MOE \"&CD115","v":"MOE HHAgeHH25To44yrsHHInc25to30K"},"HHAgeHH25To44yrsHHInc30to35K",{"$f":"\"MOE \"&CF115","v":"MOE HHAgeHH25To44yrsHHInc30to35K"},"HHAgeHH25To44yrsHHInc35to40K",{"$f":"\"MOE \"&CH115","v":"MOE HHAgeHH25To44yrsHHInc35to40K"},"HHAgeHH25To44yrsHHInc40to45K",{"$f":"\"MOE \"&CJ115","v":"MOE HHAgeHH25To44yrsHHInc40to45K"},"HHAgeHH25To44yrsHHInc45to50K",{"$f":"\"MOE \"&CL115","v":"MOE HHAgeHH25To44yrsHHInc45to50K"},"HHAgeHH25To44yrsHHInc50to60K",{"$f":"\"MOE \"&CN115","v":"MOE HHAgeHH25To44yrsHHInc50to60K"},"HHAgeHH25To44yrsHHInc60to75K",{"$f":"\"MOE \"&CP115","v":"MOE HHAgeHH25To44yrsHHInc60to75K"},"HHAgeHH25To44yrsHHInc75to100K",{"$f":"\"MOE \"&CR115","v":"MOE HHAgeHH25To44yrsHHInc75to100K"},"HHAgeHH25To44yrsHHInc100to125K",{"$f":"\"MOE \"&CT115","v":"MOE HHAgeHH25To44yrsHHInc100to125K"},"HHAgeHH25To44yrsHHInc125to150K",{"$f":"\"MOE \"&CV115","v":"MOE HHAgeHH25To44yrsHHInc125to150K"},"HHAgeHH25To44yrsHHInc150to200K",{"$f":"\"MOE \"&CX115","v":"MOE HHAgeHH25To44yrsHHInc150to200K"},"HHAge25To44yrsHHInc>200K",{"$f":"\"MOE \"&CZ115","v":"MOE HHAge25To44yrsHHInc>200K"},"HHAgeHH45To64yrs",{"$f":"\"MOE \"&DB115","v":"MOE HHAgeHH45To64yrs"},"HHAgeHH45To64yrsHHInc<10K",{"$f":"\"MOE \"&DD115","v":"MOE HHAgeHH45To64yrsHHInc<10K"},"HHAgeHH45To64yrsHHInc10to15K",{"$f":"\"MOE \"&DF115","v":"MOE HHAgeHH45To64yrsHHInc10to15K"},"HHAgeHH45To64yrsHHInc15to20K",{"$f":"\"MOE \"&DH115","v":"MOE HHAgeHH45To64yrsHHInc15to20K"},"HHAgeHH45To64yrsHHInc20to25K",{"$f":"\"MOE \"&DJ115","v":"MOE HHAgeHH45To64yrsHHInc20to25K"},"HHAgeHH45To64yrsHHInc25to30K",{"$f":"\"MOE \"&DL115","v":"MOE HHAgeHH45To64yrsHHInc25to30K"},"HHAgeHH45To64yrsHHInc30to35K",{"$f":"\"MOE \"&DN115","v":"MOE HHAgeHH45To64yrsHHInc30to35K"},"HHAgeHH45To64yrsHHInc35to40K",{"$f":"\"MOE \"&DP115","v":"MOE HHAgeHH45To64yrsHHInc35to40K"},"HHAgeHH45To64yrsHHInc40to45K",{"$f":"\"MOE \"&DR115","v":"MOE HHAgeHH45To64yrsHHInc40to45K"},"HHAgeHH45To64yrsHHInc45to50K",{"$f":"\"MOE \"&DT115","v":"MOE HHAgeHH45To64yrsHHInc45to50K"},"HHAgeHH45To64yrsHHInc50to60K",{"$f":"\"MOE \"&DV115","v":"MOE HHAgeHH45To64yrsHHInc50to60K"},"HHAgeHH45To64yrsHHInc60to75K",{"$f":"\"MOE \"&DX115","v":"MOE HHAgeHH45To64yrsHHInc60to75K"},"HHAgeHH45To64yrsHHInc75to100K",{"$f":"\"MOE \"&DZ115","v":"MOE HHAgeHH45To64yrsHHInc75to100K"},"HHAgeHH45To64yrsHHInc100to125K",{"$f":"\"MOE \"&EB115","v":"MOE HHAgeHH45To64yrsHHInc100to125K"},"HHAgeHH45To64yrsHHInc125to150K",{"$f":"\"MOE \"&ED115","v":"MOE HHAgeHH45To64yrsHHInc125to150K"},"HHAgeHH45To64yrsHHInc150to200K",{"$f":"\"MOE \"&EF115","v":"MOE HHAgeHH45To64yrsHHInc150to200K"},"HHAge45To64yrsHHInc>200K",{"$f":"\"MOE \"&EH115","v":"MOE HHAge45To64yrsHHInc>200K"},"HHAgeHH65yrsorOlder",{"$f":"\"MOE \"&EJ115","v":"MOE HHAgeHH65yrsorOlder"},"HHAgeHH65yrsorOlderHHInc<10K",{"$f":"\"MOE \"&EL115","v":"MOE HHAgeHH65yrsorOlderHHInc<10K"},"HHAgeHH65yrsorOlderHHInc10to15K",{"$f":"\"MOE \"&EN115","v":"MOE HHAgeHH65yrsorOlderHHInc10to15K"},"HHAgeHH65yrsorOlderHHInc15to20K",{"$f":"\"MOE \"&EP115","v":"MOE HHAgeHH65yrsorOlderHHInc15to20K"},"HHAgeHH65yrsorOlderHHInc20to25K",{"$f":"\"MOE \"&ER115","v":"MOE HHAgeHH65yrsorOlderHHInc20to25K"},"HHAgeHH65yrsorOlderHHInc25to30K",{"$f":"\"MOE \"&ET115","v":"MOE HHAgeHH65yrsorOlderHHInc25to30K"},"HHAgeHH65yrsorOlderHHInc30to35K",{"$f":"\"MOE \"&EV115","v":"MOE HHAgeHH65yrsorOlderHHInc30to35K"},"HHAgeHH65yrsorOlderHHInc35to40K",{"$f":"\"MOE \"&EX115","v":"MOE HHAgeHH65yrsorOlderHHInc35to40K"},"HHAgeHH65yrsorOlderHHInc40to45K",{"$f":"\"MOE \"&EZ115","v":"MOE HHAgeHH65yrsorOlderHHInc40to45K"},"HHAgeHH65yrsorOlderHHInc45to50K",{"$f":"\"MOE \"&FB115","v":"MOE HHAgeHH65yrsorOlderHHInc45to50K"},"HHAgeHH65yrsorOlderHHInc50to60K",{"$f":"\"MOE \"&FD115","v":"MOE HHAgeHH65yrsorOlderHHInc50to60K"},"HHAgeHH65yrsorOlderHHInc60to75K",{"$f":"\"MOE \"&FF115","v":"MOE HHAgeHH65yrsorOlderHHInc60to75K"},"HHAgeHH65yrsorOlderHHInc75to100K",{"$f":"\"MOE \"&FH115","v":"MOE HHAgeHH65yrsorOlderHHInc75to100K"},"HHAgeHH65yrsorOlderHHInc100to125K",{"$f":"\"MOE \"&FJ115","v":"MOE HHAgeHH65yrsorOlderHHInc100to125K"},"HHAgeHH65yrsorOlderHHInc125to150K",{"$f":"\"MOE \"&FL115","v":"MOE HHAgeHH65yrsorOlderHHInc125to150K"},"HHAgeHH65yrsorOlderHHInc150to200K",{"$f":"\"MOE \"&FN115","v":"MOE HHAgeHH65yrsorOlderHHInc150to200K"},"HHAge65yrsorOlderHHInc>200K",{"$f":"\"MOE \"&FP115","v":"MOE HHAge65yrsorOlderHHInc>200K"},"MedianHHInc",{"$f":"\"MOE \"&FR115","v":"MOE MedianHHInc"},"HH under 25 years",{"$f":"\"MOE \"&FT115","v":"MOE HH under 25 years"},"Householder 25 to 44 years",{"$f":"\"MOE \"&FV115","v":"MOE Householder 25 to 44 years"},"Householder 45 to 64 years",{"$f":"\"MOE \"&FX115","v":"MOE Householder 45 to 64 years"},"Householder 65 years and over",{"$f":"\"MOE \"&FZ115","v":"MOE Householder 65 years and over"}]
[{"$f":"VLOOKUP(DropDownList!$B$27,CntyQryCensus!$A$275:$AG$297,A$1)","v":"Dublin"},620,67,21,15,4,5,16,15,41,28,30,23,46,30,6,6,35,23,42,26,72,33,75,28,65,28,81,29,20,15,39,23,27,19,620,67,3,4,0,11,0,11,0,11,0,11,0,11,0,11,0,11,0,11,0,11,0,11,0,11,3,4,0,11,0,11,0,11,0,11,143,48,3,5,0,11,5,7,13,19,22,20,13,15,0,11,0,11,7,9,0,11,24,15,21,18,16,15,9,13,10,10,0,11,321,63,18,14,0,11,3,4,23,20,3,5,9,11,0,11,28,21,18,17,53,30,34,18,31,18,50,24,3,5,29,23,19,18,153,33,0,11,4,5,8,12,5,7,5,9,24,22,6,6,7,7,17,17,19,12,17,17,10,11,15,10,8,7,0,11,8,8,58125,11278,"-","**",64583,22370,63646,12542,50114,5611]
[]
["Number of Households by Income"]
["NAME","HHIncLessThn10k",{"$f":"\"MOE \"&B119","v":"MOE HHIncLessThn10k"},"HHInc10to15K",{"$f":"\"MOE \"&D119","v":"MOE HHInc10to15K"},"HHInc15to25K",{"$f":"\"MOE \"&F119","v":"MOE HHInc15to25K"},"HHInc25to35K",{"$f":"\"MOE \"&H119","v":"MOE HHInc25to35K"},"HHInc35to50K",{"$f":"\"MOE \"&J119","v":"MOE HHInc35to50K"},"HHInc50to75K",{"$f":"\"MOE \"&L119","v":"MOE HHInc50to75K"},"HHInc75to100K",{"$f":"\"MOE \"&N119","v":"MOE HHInc75to100K"},"HHInc100to150K",{"$f":"\"MOE \"&P119","v":"MOE HHInc100to150K"},"HHInc150to200K",{"$f":"\"MOE \"&R119","v":"MOE HHInc150to200K"},"HHIncOver200K",{"$f":"\"MOE \"&T119","v":"MOE HHIncOver200K"}]
[{"$f":"VLOOKUP(DropDownList!$B$27,CntyQryCensus!$A$275:$AG$297,A$1)","v":"Dublin"},21,15,4,5,57,31.76476034853718,76,37.802116342871599,83,35.227829907617071,147,43.278170016764804,65,28,101,32.649655434629018,39,23,27,19,120,31,78,28,79,33,11,10,25,16,23,20]
[]
["POVERTY DATA"]
["NAME","TotalPop",{"$f":"\"MOE \"&B123","v":"MOE TotalPop"},"Total Individuals living in Poverty",{"$f":"\"MOE \"&D123","v":"MOE Total Individuals living in Poverty"},"Under 5 yrs.",{"$f":"\"MOE \"&F123","v":"MOE Under 5 yrs."},"5 to 17 yrs.",{"$f":"\"MOE \"&H123","v":"MOE 5 to 17 yrs."},"18 to 64 yrs.",{"$f":"\"MOE \"&J123","v":"MOE 18 to 64 yrs."},"65 to 74 yrs.",{"$f":"\"MOE \"&L123","v":"MOE 65 to 74 yrs."},"75 yrs. & Over",{"$f":"\"MOE \"&N123","v":"MOE 75 yrs. & Over"},"Total Individuals  Not living Poverty",{"$f":"\"MOE \"&P123","v":"MOE Total Individuals  Not living Poverty"},"Under 5 yrs.",{"$f":"\"MOE \"&R123","v":"MOE Under 5 yrs."},"5 to 17 yrs.",{"$f":"\"MOE \"&T123","v":"MOE 5 to 17 yrs."},"18 to 64 yrs.",{"$f":"\"MOE \"&V123","v":"MOE 18 to 64 yrs."},"65 to 74 yrs.",{"$f":"\"MOE \"&X123","v":"MOE 65 to 74 yrs."},"75 yrs. & Over",{"$f":"\"MOE \"&Z123","v":"MOE 75 yrs. & Over"},"Total HH",{"$f":"\"MOE \"&AB123","v":"MOE Total HH"},"Total Households Below Poverty",{"$f":"\"MOE \"&AD123","v":"MOE Total Households Below Poverty"},"Family Households in Poverty",{"$f":"\"MOE \"&AF123","v":"MOE Family Households in Poverty"},"Married Couple Fam HH",{"$f":"\"MOE \"&AH123","v":"MOE Married Couple Fam HH"},"Other Family",{"$f":"\"MOE \"&AJ123","v":"MOE Other Family"},"Male Head of Family HH no wife",{"$f":"\"MOE \"&AL123","v":"MOE Male Head of Family HH no wife"},"Female Head of Family HH no husband",{"$f":"\"MOE \"&AN123","v":"MOE Female Head of Family HH no husband"},"Non-Family HH",{"$f":"\"MOE \"&AP123","v":"MOE Non-Family HH"},"Non-Family Male HH",{"$f":"\"MOE \"&AR123","v":"MOE Non-Family Male HH"},"Non-Family Female HH",{"$f":"\"MOE \"&AT123","v":"MOE Non-Family Female HH"},"Total Households at or Above Poverty",{"$f":"\"MOE \"&AV123","v":"MOE Total Households at or Above Poverty"},"Family Households above Poverty",{"$f":"\"MOE \"&AX123","v":"MOE Family Households above Poverty"},"Married Couple Fam HH",{"$f":"\"MOE \"&AZ123","v":"MOE Married Couple Fam HH"},"Other Family",{"$f":"\"MOE \"&BB123","v":"MOE Other Family"},"Male Head of Family HH no wife",{"$f":"\"MOE \"&BD123","v":"MOE Male Head of Family HH no wife"},"Female Head of Family HH no husband",{"$f":"\"MOE \"&BF123","v":"MOE Female Head of Family HH no husband"},"Non-Family HH",{"$f":"\"MOE \"&BH123","v":"MOE Non-Family HH"},"Non-Family Male HH",{"$f":"\"MOE \"&BJ123","v":"MOE Non-Family Male HH"},"Non-Family Female HH",{"$f":"\"MOE \"&BL123","v":"MOE Non-Family Female HH"},"Married Couple with Children Below Poverty",{"$f":"\"MOE \"&BN123","v":"MOE Married Couple with Children Below Poverty"},"Male HH with children below poverty",{"$f":"\"MOE \"&BP123","v":"MOE Male HH with children below poverty"},"Female HH with children below poverty",{"$f":"\"MOE \"&BR123","v":"MOE Female HH with children below poverty"},"Married Couple with Children At or Above Poverty",{"$f":"\"MOE \"&BT123","v":"MOE Married Couple with Children At or Above Poverty"},"Male HH with children at or above poverty",{"$f":"\"MOE \"&BV123","v":"MOE Male HH with children at or above poverty"},"Female HH with children at or above poverty",{"$f":"\"MOE \"&BX123","v":"MOE Female HH with children at or above poverty"}]
[{"$f":"VLOOKUP(DropDownList!$B$27,CntyQryCensus!$A$275:$AG$297,A$1)","v":"Dublin"},20177,405,3511,663,142,91.4166286842826,521,219.69751933055593,2486,471.01804636340631,140,71.196910045310247,222,93.085981758801893,16666,709,638,179.87773625437919,2330,310.48671469162736,10717,542.94106494167488,1342,159.90622251807463,1639,187.00267377767625,9028,446,1390,297,339,134,165,86,174,90,13,21,161,87,1051,245,520,183,531,175,7638,440,4373,249,3432,237,3265,367,403,134,538,125,3265,367,1321,257,1944,278,97,80,0,21,147,88,1265,163,265,145,222,120]
[]
["Household Income By Tenure"]
["NAME","TotalOccHU",{"$f":"\"MOE \"&B127","v":"MOE TotalOccHU"},"OwnOccHU",{"$f":"\"MOE \"&D127","v":"MOE OwnOccHU"},"OOHUInc<5K",{"$f":"\"MOE \"&F127","v":"MOE OOHUInc<5K"},"OOHUInc5to10K",{"$f":"\"MOE \"&H127","v":"MOE OOHUInc5to10K"},"OOHUInc10to15K",{"$f":"\"MOE \"&J127","v":"MOE OOHUInc10to15K"},"OOHUInc15to20K",{"$f":"\"MOE \"&L127","v":"MOE OOHUInc15to20K"},"OOHUInc20to25K",{"$f":"\"MOE \"&N127","v":"MOE OOHUInc20to25K"},"OOHUInc25to35K",{"$f":"\"MOE \"&P127","v":"MOE OOHUInc25to35K"},"OOHUInc35to50K",{"$f":"\"MOE \"&R127","v":"MOE OOHUInc35to50K"},"OOHUInc50to75K",{"$f":"\"MOE \"&T127","v":"MOE OOHUInc50to75K"},"OOHUInc75to100K",{"$f":"\"MOE \"&V127","v":"MOE OOHUInc75to100K"},"OOHUInc100to150K",{"$f":"\"MOE \"&X127","v":"MOE OOHUInc100to150K"},"OOHUInc>150K",{"$f":"\"MOE \"&Z127","v":"MOE OOHUInc>150K"},"RentOccHU",{"$f":"\"MOE \"&AB127","v":"MOE RentOccHU"},"ROHUInc<5K",{"$f":"\"MOE \"&AD127","v":"MOE ROHUInc<5K"},"ROHUInc5to10K",{"$f":"\"MOE \"&AF127","v":"MOE ROHUInc5to10K"},"ROHUInc10to15K",{"$f":"\"MOE \"&AH127","v":"MOE ROHUInc10to15K"},"ROHUInc15to20K",{"$f":"\"MOE \"&AJ127","v":"MOE ROHUInc15to20K"},"ROHUInc20to25K",{"$f":"\"MOE \"&AL127","v":"MOE ROHUInc20to25K"},"ROHUInc25to35K",{"$f":"\"MOE \"&AN127","v":"MOE ROHUInc25to35K"},"ROHUInc35to50K",{"$f":"\"MOE \"&AP127","v":"MOE ROHUInc35to50K"},"ROHUInc50to75K",{"$f":"\"MOE \"&AR127","v":"MOE ROHUInc50to75K"},"ROHUInc75to100K",{"$f":"\"MOE \"&AT127","v":"MOE ROHUInc75to100K"},"ROHUInc100to150K",{"$f":"\"MOE \"&AV127","v":"MOE ROHUInc100to150K"},"ROHUInc>150K",{"$f":"\"MOE \"&AX127","v":"MOE ROHUInc>150K"},"Total OCC HUInc<5K",{"$f":"\"MOE \"&AZ127","v":"MOE Total OCC HUInc<5K"},"Total OCC HUInc5to10K",{"$f":"\"MOE \"&BB127","v":"MOE Total OCC HUInc5to10K"},"Total OCC HUInc10to15K",{"$f":"\"MOE \"&BD127","v":"MOE Total OCC HUInc10to15K"},"Total OCC HUInc15to20K",{"$f":"\"MOE \"&BF127","v":"MOE Total OCC HUInc15to20K"},"Total OCC HUInc20to25K",{"$f":"\"MOE \"&BH127","v":"MOE Total OCC HUInc20to25K"},"Total OCC HUInc25to35K",{"$f":"\"MOE \"&BJ127","v":"MOE Total OCC HUInc25to35K"},"Total OCC HUInc35to50K",{"$f":"\"MOE \"&BL127","v":"MOE Total OCC HUInc35to50K"},"Total OCC HUInc50to75K",{"$f":"\"MOE \"&BN127","v":"MOE Total OCC HUInc50to75K"},"Total OCC HUInc75to100K",{"$f":"\"MOE \"&BP127","v":"MOE Total OCC HUInc75to100K"},"Total OCC HUInc100to150K",{"$f":"\"MOE \"&BR127","v":"MOE Total OCC HUInc100to150K"},"Total OCC HUInc>150K",{"$f":"\"MOE \"&BT127","v":"MOE Total OCC HUInc>150K"},"MedHHInc",{"$f":"\"MOE \"&BV127","v":"MOE MedHHInc"},"MedOwnOccHHInc",{"$f":"\"MOE \"&BX127","v":"MOE MedOwnOccHHInc"},"MedRentOccHHInc",{"$f":"\"MOE \"&BZ127","v":"MOE MedRentOccHHInc"}]
[{"$f":"VLOOKUP(DropDownList!$B$27,CntyQryCensus!$A$275:$AG$297,A$1)","v":"Dublin"},585,68,477,65,11,13,0,85,4,6,9,13,13,12,56,32,55,25,135,41,43,26,95,30,56,29,108,38,5,7,10,7,5,7,0,85,13,17,12,14,25,20,17,17,12,11,9,14,0,85,16,14.7648230602334,10,85.287748240881584,9,9.2195444572928871,9,85.988371306822643,26,20.808652046684813,68,34.928498393145958,80,32.015621187164243,152,44.384682042344295,55,28.231188426986208,104,33.105890714493697,56,89.810912477270818,58125,11278,67391,5757,31346,12917]
[]
["Population Data"]
["NAME","Total Population","MOE Total Population","Under 15 Years","MOE Under 15 yrs.","15 to 24 yrs.","MOE 15 to 24 yrs.","25 to 34 yrs.","MOE 25 to 34 yrs.","35 to 44 yrs.","MOE 35 to 44 yrs.","45 to 54 yrs.","MOE 45 to 54 yrs.","55 to 64 yrs.","MOE 55 to 64 yrs.","65 to 74 yrs.","MOE 65 to 74 yrs.","Over 74 yrs. ","MOE Over 74 yrs. ","TotalHH","MOE TotalHH","FamilyHH","MOE FamilyHH","MarriedFamilyHH","MOE MarriedFamilyHH","SingleFamilyHH","MOE SingleFamilyHH","Sfamily-MaleHH","MOE Sfamily-MaleHH","Sfamily-FemaleHH","MOE Sfamily-FemaleHH","NonFamilyHH","MOE NonFamilyHH","NonFamilyHH-LivingAlone","MOE NonFamilyHH-LivingAlone","NonFamilyHH-NotLivingAlone","MOE NonFamilyHH-NotLivingAlone","PopRaceWhite","MOE PopRaceWhite","PopRaceBlack","MOE PopRaceBlack","PopRaceAmerican Indian","MOE PopRaceAmerican Indian","PopRaceAsian &Pacific Is.","MOE PopRaceAsian &Pacific Is.","PopRaceOther*","MOE PopRaceOther*","PopRaceHispanic or Latino:","MOE PopRaceHispanic or Latino:","AvgAgeTotalPop","MOE AvgAgeTotalPop","AvgAgeMale","MOE AvgAgeMale","AvgAgeFemale","MOE AvgAgeFemale","AvgHHSizeTotal","MOE AvgHHSizeTotal","AvgHHSizeFamilyHH","MOE AvgHHSizeFamilyHH","AvgHHSizeNonFamilyHH","MOE AvgHHSizeNonFamilyHH"]
[{"$f":"VLOOKUP(DropDownList!$B$27,CntyQryCensus!$A$275:$AG$297,A$1)","v":"Dublin"},4332,18,826,195.86730201848394,404,132.52546925025393,412,136.91603266235842,679,160.77313208369114,816,152.33515680892575,611,139.21925154230647,374,90.631120482977593,210,68.308125431752259,4261,36,3407,198,2289,363,2273,362,16,24,358,240,333,221,25,30,760,289,4141,105,6,12,60,43,50,60.016664352494629,75,65.924198895398035,0,11,43.1,2.6,43.8,5,42.7,1.8,2.38,0.2,2.29,0.21,2.58,0.53]
[]
["Nativity and Prior Place of Residence"]
["NAME","TotalPop",{"$f":"\"MOE \"&B135","v":"MOE TotalPop"},"Native:",{"$f":"\"MOE \"&D135","v":"MOE Native:"},"NatBornInStateOfResidence",{"$f":"\"MOE \"&F135","v":"MOE NatBornInStateOfResidence"},"Born in other state in the United States:",{"$f":"\"MOE \"&H135","v":"MOE Born in other state in the United States:"},"Northeast",{"$f":"\"MOE \"&J135","v":"MOE Northeast"},"Midwest",{"$f":"\"MOE \"&L135","v":"MOE Midwest"},"South",{"$f":"\"MOE \"&N135","v":"MOE South"},"West",{"$f":"\"MOE \"&P135","v":"MOE West"},"Born outside the United States:",{"$f":"\"MOE \"&R135","v":"MOE Born outside the United States:"},"Puerto Rico",{"$f":"\"MOE \"&T135","v":"MOE Puerto Rico"},"U.S. Island Areas",{"$f":"\"MOE \"&V135","v":"MOE U.S. Island Areas"},"Born abroad of American parent(s)",{"$f":"\"MOE \"&X135","v":"MOE Born abroad of American parent(s)"},"Foreign born:",{"$f":"\"MOE \"&Z135","v":"MOE Foreign born:"},"Naturalized U.S. citizen",{"$f":"\"MOE \"&AB135","v":"MOE Naturalized U.S. citizen"},"Not a U.S. citizen",{"$f":"\"MOE \"&AD135","v":"MOE Not a U.S. citizen"},"CurrentResideneTotal:",{"$f":"\"MOE \"&AF135","v":"MOE CurrentResideneTotal:"},"SameHouse:",{"$f":"\"MOE \"&AH135","v":"MOE SameHouse:"},"DifferentHouse:",{"$f":"\"MOE \"&AJ135","v":"MOE DifferentHouse:"},"DiffHouseInNH",{"$f":"\"MOE \"&AL135","v":"MOE DiffHouseInNH"},"DiffHouseInNHSameCnty",{"$f":"\"MOE \"&AN135","v":"MOE DiffHouseInNHSameCnty"},"DiffHouseInNHDiffCnty",{"$f":"\"MOE \"&AP135","v":"MOE DiffHouseInNHDiffCnty"},"DiffHouseInDiffState",{"$f":"\"MOE \"&AR135","v":"MOE DiffHouseInDiffState"},"DiffHouseInElsewhere",{"$f":"\"MOE \"&AT135","v":"MOE DiffHouseInElsewhere"}]
[{"$f":"VLOOKUP(DropDownList!$B$27,CntyQryCensus!$A$275:$AG$297,A$1)","v":"Dublin"},4332,18,4255,72,1991,227,2203,237,1860,213,154,78,110,75,79,44,61,55,9,15,0,11,52,55,77,68,27,30,50,48,4238,77,3620,310,618,315.52337472840264,497,307.19700519373555,497,307,0,11,113,71,8,12]
[]
["School Attainment & Enrollment"]
["NAME","Total Pop 3 Years and Older","MOE Total Pop 3 Years and Older","SchEnrlPop3yrOver",{"$f":"\"MOE \"&D139","v":"MOE SchEnrlPop3yrOver"},"TotalEnrollNursy&Kinder",{"$f":"\"MOE \"&F139","v":"MOE TotalEnrollNursy&Kinder"},"NurserSchEnrl",{"$f":"\"MOE \"&H139","v":"MOE NurserSchEnrl"},"KinderSchEnrl",{"$f":"\"MOE \"&J139","v":"MOE KinderSchEnrl"},"ElemSchEnrl (1-8)",{"$f":"\"MOE \"&L139","v":"MOE ElemSchEnrl (1-8)"},"HighSchEnrl(9-12)",{"$f":"\"MOE \"&N139","v":"MOE HighSchEnrl(9-12)"},"TotalElementry&HSEnroll",{"$f":"\"MOE \"&P139","v":"MOE TotalElementry&HSEnroll"},"CollGradSchEnrl",{"$f":"\"MOE \"&R139","v":"MOE CollGradSchEnrl"},"PopNotEnrolled","MOE PopNotEnrolled","Pop25yrsOver",{"$f":"\"MOE \"&V139","v":"MOE Pop25yrsOver"},"EduAtain<9grd",{"$f":"\"MOE \"&X139","v":"MOE EduAtain<9grd"},"EduAtainHSnoDip",{"$f":"\"MOE \"&Z139","v":"MOE EduAtainHSnoDip"},"EduAtainHSgrad",{"$f":"\"MOE \"&AB139","v":"MOE EduAtainHSgrad"},"EduAtainCollNoDeg",{"$f":"\"MOE \"&AD139","v":"MOE EduAtainCollNoDeg"},"EduAtainAssocDeg",{"$f":"\"MOE \"&AF139","v":"MOE EduAtainAssocDeg"},"EduAtainBachDeg",{"$f":"\"MOE \"&AH139","v":"MOE EduAtainBachDeg"},"EduAtainGradProfDeg",{"$f":"\"MOE \"&AJ139","v":"MOE EduAtainGradProfDeg"}]
[{"$f":"VLOOKUP(DropDownList!$B$27,CntyQryCensus!$A$275:$AG$297,A$1)","v":"Dublin"},4070,132,716,137,67,65,44,51,283,115,130,95,131,69,61,51,0,11,3354,137,3102,193,40,36.728735344413913,486,159.80300372646317,1614,198.01010075246163,424,142.42892964563063,163,84.077345343439575,223,81.21576201698781,54,41.42463035441596]
[]
["Occupied Owner Housing Value"]
["NAME","Estimate; Total:","Margin of Error; Total:","Estimate; Total: - Less than $10,000","Margin of Error; Total: - Less than $10,000","Estimate; Total: - $10,000 to $14,999","Margin of Error; Total: - $10,000 to $14,999","Estimate; Total: - $15,000 to $19,999","Margin of Error; Total: - $15,000 to $19,999","Estimate; Total: - $20,000 to $24,999","Margin of Error; Total: - $20,000 to $24,999","Estimate; Total: - $25,000 to $29,999","Margin of Error; Total: - $25,000 to $29,999","Estimate; Total: - $30,000 to $34,999","Margin of Error; Total: - $30,000 to $34,999","Estimate; Total: - $35,000 to $39,999","Margin of Error; Total: - $35,000 to $39,999","Estimate; Total: - $40,000 to $49,999","Margin of Error; Total: - $40,000 to $49,999","Estimate; Total: - $50,000 to $59,999","Margin of Error; Total: - $50,000 to $59,999","Estimate; Total: - $60,000 to $69,999","Margin of Error; Total: - $60,000 to $69,999","Estimate; Total: - $70,000 to $79,999","Margin of Error; Total: - $70,000 to $79,999","Estimate; Total: - $80,000 to $89,999","Margin of Error; Total: - $80,000 to $89,999","Estimate; Total: - $90,000 to $99,999","Margin of Error; Total: - $90,000 to $99,999","Estimate; Total: - $100,000 to $124,999","Margin of Error; Total: - $100,000 to $124,999","Estimate; Total: - $125,000 to $149,999","Margin of Error; Total: - $125,000 to $149,999","Estimate; Total: - $150,000 to $174,999","Margin of Error; Total: - $150,000 to $174,999","Estimate; Total: - $175,000 to $199,999","Margin of Error; Total: - $175,000 to $199,999","Estimate; Total: - $200,000 to $249,999","Margin of Error; Total: - $200,000 to $249,999","Estimate; Total: - $250,000 to $299,999","Margin of Error; Total: - $250,000 to $299,999","Estimate; Total: - $300,000 to $399,999","Margin of Error; Total: - $300,000 to $399,999","Estimate; Total: - $400,000 to $499,999","Margin of Error; Total: - $400,000 to $499,999","Estimate; Total: - $500,000 to $749,999","Margin of Error; Total: - $500,000 to $749,999","Estimate; Total: - $750,000 to $999,999","Margin of Error; Total: - $750,000 to $999,999","Estimate; Total: - $1,000,000 to $1,499,999","Margin of Error; Total: - $1,000,000 to $1,499,999","Estimate; Total: - $1,500,000 to $1,999,999","Margin of Error; Total: - $1,500,000 to $1,999,999","Estimate; Total: - $2,000,000 or more","Margin of Error; Total: - $2,000,000 or more","MedianOwnOCCHomeValue","MOE MedianOwnOCCHomeValue","OnwerOccHsU","MOE OnwerOccHsU","OwnerCosts>20PctHHInc","MOE OwnerCosts>20PctHHInc","OwnerCosts20to29.9PctHHInc","MOE OwnerCosts20to29.9PctHHInc","OwnerCosts<30PctHHInc","MOE OwnerCosts<30PctHHInc","OwnerCosts>30PctHHInc","MOE OwnerCosts>30PctHHInc","OwnerCosts30to34.9PctHHInc","MOE OwnerCosts30to34.9PctHHInc","OwnerCosts<35PctHHInc","MOE OwnerCosts<35PctHHInc","OwnerCosts>35PctHHInc","MOE OwnerCosts>35PctHHInc","OwnerCosts>50PctHHInc","MOE OwnerCosts>50PctHHInc","OwnerCostsPctNotcomputed","MOE OwnerCostsPctNotcomputed","OwnerOHUHhInc<20k","MOE OwnerOHUHhInc<20k","OwnerOHUHhInc<20kHCosts<20pct","MOE OwnerOHUHhInc<20kHCosts<20pct","OwnerOHUHhInc<20kHCosts20to29pct","MOE OwnerOHUHhInc<20kHCosts20to29pct","OwnerOHUHhInc>20kHCosts30pct","MOE OwnerOHUHhInc>20kHCosts30pct","OwnerOHUHhInc20kTo34999","MOE OwnerOHUHhInc20kTo34999","OwnerOHUHhInc20kTo34999HCosts<20pct","MOE OwnerOHUHhInc20kTo34999HCosts<20pct","OwnerOHUHhInc20kTo34999HCosts20to29pct","MOE OwnerOHUHhInc20kTo34999HCosts20to29pct","OwnerOHUHhInc20kTo34999HCosts30pct","MOE OwnerOHUHhInc20kTo34999HCosts30pct","OwnerOHUHhInc35kTo49999","MOE OwnerOHUHhInc35kTo49999","OwnerOHUHhInc35kTo49999HCosts<20pct","MOE OwnerOHUHhInc35kTo49999HCosts<20pct","OwnerOHUHhInc35kTo49999HCosts20to29pct","MOE OwnerOHUHhInc35kTo49999HCosts20to29pct","OwnerOHUHhInc35kTo49999HCosts30pct","MOE OwnerOHUHhInc35kTo49999HCosts30pct","OwnerOHUHhInc50kTo74999","MOE OwnerOHUHhInc50kTo74999","OwnerOHUHhInc50kTo74999HCosts<20pct","MOE OwnerOHUHhInc50kTo74999HCosts<20pct","OwnerOHUHhInc50kTo74999HCosts20to29pct","MOE OwnerOHUHhInc50kTo74999HCosts20to29pct","OwnerOHUHhInc50kTo74999HCosts30pct","MOE OwnerOHUHhInc50kTo74999HCosts30pct","OwnerOHUHhInc>75000","MOE OwnerOHUHhInc>75000","OwnerOHUHhInc>75000HCosts<20pct","MOE OwnerOHUHhInc>75000HCosts<20pct","OwnerOHUHhInc>75000HCosts20to29pct","MOE OwnerOHUHhInc>75000HCosts20to29pct","OwnerOHUHhInc>75000HCosts30pct","MOE OwnerOHUHhInc>75000HCosts30pct","ZeroOrNegativeIncome","MOE ZeroOrNegativeIncome"]
[{"$f":"VLOOKUP(DropDownList!$B$27,CntyQryCensus!$A$275:$AG$297,A$1)","v":"Dublin"},1085,144,9,15,38,31,9,14,58,44,11,17,0,85,0,85,16,19,0,85,26,28,24,27,36,34,50,32,104,60,217,87,134,52,76,46,156,65,42,39,29,28,40,31,0,85,10,15,0,85,null,null,null,null,143600,9050,1218,181,427,121.7251001231874,284,86.948260477136628,711,149.58943812983588,507,130.36103712382777,134,65.069193939989759,845,163.12878348102765,373,112.96016997154351,213,78.924014089502563,0,15.556349186104045,128,65,9,16,0,11,119,61,248,78,8,13,20,24,220,79,194,81,45,32,62,43,87,56,276,91,115,67,106,48,55,39,372,111,250,91,96,53,26,28,0,11,571,128]
[]
["Occupied Rental Housing Value"]
["NAME","RntrOccHU","MOE RntrOccHU","RntrOccHUwRent","MOE RntrOccHUwRent","ROHUGRent<100","MOE ROHUGRent<100","ROHUGRent100to149","MOE ROHUGRent100to149","ROHUGRent150to199","MOE ROHUGRent150to199","ROHUGRent200to249","MOE ROHUGRent200to249","ROHUGRent250to299","MOE ROHUGRent250to299","ROHUGRent300to349","MOE ROHUGRent300to349","ROHUGRent350to399","MOE ROHUGRent350to399","ROHUGRent400to449","MOE ROHUGRent400to449","ROHUGRent450to499","MOE ROHUGRent450to499","ROHUGRent500to549","MOE ROHUGRent500to549","ROHUGRent550to599","MOE ROHUGRent550to599","ROHUGRent600to649","MOE ROHUGRent600to649","ROHUGRent650to699","MOE ROHUGRent650to699","ROHUGRent700to749","MOE ROHUGRent700to749","ROHUGRent750to799","MOE ROHUGRent750to799","ROHUGRent800to899","MOE ROHUGRent800to899","ROHUGRent900to999","MOE ROHUGRent900to999","ROHUGRent1000to1249","MOE ROHUGRent1000to1249","ROHUGRent1250to1499","MOE ROHUGRent1250to1499","ROHUGRent1500to1999","MOE ROHUGRent1500to1999","ROHUGRent$2,000 to $2,499","MOE ROHUGRent$2,000 to $2,499","ROHUGRent$2,500 to $2,999","MOE ROHUGRent$2,500 to $2,999","ROHUGRent$3,000 to $3,499","MOE ROHUGRent$3,000 to $3,499","ROHUGRent$3,500 or more","MOE ROHUGRent$3,500 or more","ROHUNoGRent","MOE ROHUNoGRent","MedianGrossRnt","MOE MedianGrossRnt","H73RenterOccHU","MOE H73RenterOccHU","H73ROHUHhInc<10k","MOE H73ROHUHhInc<10k","H73ROHUHhInc<10kRnt<20pct","MOE H73ROHUHhInc<10kRnt<20pct","H73ROHUHhInc<10kRnt20to25pct","MOE H73ROHUHhInc<10kRnt20to25pct","H73ROHUHhInc<10kRnt25to30pct","MOE H73ROHUHhInc<10kRnt25to30pct","H73ROHUHhInc<10kRnt30to35pct","MOE H73ROHUHhInc<10kRnt30to35pct","H73ROHUHhInc<10kRnt35to39.9","MOE H73ROHUHhInc<10kRnt35to39.9","H73ROHUHhInc<10kRnt40to49.9","MOE H73ROHUHhInc<10kRnt40to49.9","H73ROHUHhInc<10kRnt>50pct","MOE H73ROHUHhInc<10kRnt>50pct","H73ROHUHhInc<10kPctNotComput","MOE H73ROHUHhInc<10kPctNotComput","H73ROHUHhInc10to20k","MOE H73ROHUHhInc10to20k","H73ROHUHhInc10to20kRnt<20pct","MOE H73ROHUHhInc10to20kRnt<20pct","H73ROHUHhInc10to20kRnt20to25pct","MOE H73ROHUHhInc10to20kRnt20to25pct","H73ROHUHhInc10to20kRnt25to30pct","MOE H73ROHUHhInc10to20kRnt25to30pct","H73ROHUHhInc10to20kRnt30to35pct","MOE H73ROHUHhInc10to20kRnt30to35pct","H73ROHUHhInc10to20kRnt35to39.9","MOE H73ROHUHhInc10to20kRnt35to39.9","H73ROHUHhInc10to20kRnt40to49.9","MOE H73ROHUHhInc10to20kRnt40to49.9","H73ROHUHhInc10to20kRnt>50pct","MOE H73ROHUHhInc10to20kRnt>50pct","H73ROHUHhInc10to20kRntPctNC","MOE H73ROHUHhInc10to20kRntPctNC","H73ROHUHhInc20to34.9k","MOE H73ROHUHhInc20to34.9k","H73ROHUHhInc20to34.9kRnt<20pct","MOE H73ROHUHhInc20to34.9kRnt<20pct","H73ROHUHhInc20to34.9kRnt20to25pct","MOE H73ROHUHhInc20to34.9kRnt20to25pct","H73ROHUHhInc20to34.9kRnt25to30pct","MOE H73ROHUHhInc20to34.9kRnt25to30pct","H73ROHUHhInc20to34.9kRnt30to35pct","MOE H73ROHUHhInc20to34.9kRnt30to35pct","H73ROHUHhInc20to34.9kRnt35to39.9","MOE H73ROHUHhInc20to34.9kRnt35to39.9","H73ROHUHhInc20to34.9kRnt40to49.9","MOE H73ROHUHhInc20to34.9kRnt40to49.9","H73ROHUHhInc20to34.9kRnt>50pct","MOE H73ROHUHhInc20to34.9kRnt>50pct","H73ROHUHhInc20to34.9kRntPctNC","MOE H73ROHUHhInc20to34.9kRntPctNC","H73ROHUHhInc35to49.9k","MOE H73ROHUHhInc35to49.9k","H73ROHUHhInc35to49.9kRnt<20pct","MOE H73ROHUHhInc35to49.9kRnt<20pct","H73ROHUHhInc35to49.9kRnt20to25pct","MOE H73ROHUHhInc35to49.9kRnt20to25pct","H73ROHUHhInc35to49.9kRnt25to30pct","MOE H73ROHUHhInc35to49.9kRnt25to30pct","H73ROHUHhInc35to49.9kRnt30to35pct","MOE H73ROHUHhInc35to49.9kRnt30to35pct","H73ROHUHhInc35to49.9kRnt35to39.9","MOE H73ROHUHhInc35to49.9kRnt35to39.9","H73ROHUHhInc35to49.9kRnt40to49.9","MOE H73ROHUHhInc35to49.9kRnt40to49.9","H73ROHUHhInc35to49.9kRnt>50pct","MOE H73ROHUHhInc35to49.9kRnt>50pct","H73ROHUHhInc35to49.9kRntPctNC","MOE H73ROHUHhInc35to49.9kRntPctNC","H73ROHUHhInc50to74.9k","MOE H73ROHUHhInc50to74.9k","H73ROHUHhInc50to74.9kRnt<20pct","MOE H73ROHUHhInc50to74.9kRnt<20pct","H73ROHUHhInc50to74.9kRnt20to25pct","MOE H73ROHUHhInc50to74.9kRnt20to25pct","H73ROHUHhInc50to74.9kRnt25to30pct","MOE H73ROHUHhInc50to74.9kRnt25to30pct","H73ROHUHhInc50to74.9kRnt30to35pct","MOE H73ROHUHhInc50to74.9kRnt30to35pct","H73ROHUHhInc50to74.9kRnt35to39.9","MOE H73ROHUHhInc50to74.9kRnt35to39.9","H73ROHUHhInc50to74.9kRnt40to49.9","MOE H73ROHUHhInc50to74.9kRnt40to49.9","H73ROHUHhInc50to74.9kRnt>50pct","MOE H73ROHUHhInc50to74.9kRnt>50pct","H73ROHUHhInc50to74.9kRntPctNC","MOE H73ROHUHhInc50to74.9kRntPctNC","H73ROHUHhInc75to99.9k","MOE H73ROHUHhInc75to99.9k","H73ROHUHhInc75to99.9kRnt<20pct","MOE H73ROHUHhInc75to99.9kRnt<20pct","H73ROHUHhInc75to99.9kRnt20to25pct","MOE H73ROHUHhInc75to99.9kRnt20to25pct","H73ROHUHhInc75to99.9kRnt25to30pct","MOE H73ROHUHhInc75to99.9kRnt25to30pct","H73ROHUHhInc75to99.9kRnt30to35pct","MOE H73ROHUHhInc75to99.9kRnt30to35pct","H73ROHUHhInc75to99.9kRnt35to39.9","MOE H73ROHUHhInc75to99.9kRnt35to39.9","H73ROHUHhInc75to99.9kRnt40to49.9","MOE H73ROHUHhInc75to99.9kRnt40to49.9","H73ROHUHhInc75to99.9kRnt>50pct","MOE H73ROHUHhInc75to99.9kRnt>50pct","H73ROHUHhInc75to99.9kRntPctNC","MOE H73ROHUHhInc75to99.9kRntPctNC","H73ROHUHhInc>100k","MOE H73ROHUHhInc>100k","H73ROHUHhInc>100kRnt<20pct","MOE H73ROHUHhInc>100kRnt<20pct","H73ROHUHhInc>100kRnt20to25pct","MOE H73ROHUHhInc>100kRnt20to25pct","H73ROHUHhInc>100kRnt25to30pct","MOE H73ROHUHhInc>100kRnt25to30pct","H73ROHUHhInc>100kRnt30to35pct","MOE H73ROHUHhInc>100kRnt30to35pct","H73ROHUHhInc>100kRnt35to39.9","MOE H73ROHUHhInc>100kRnt35to39.9","H73ROHUHhInc>100kRnt40to49.9","MOE H73ROHUHhInc>100kRnt40to49.9","H73ROHUHhInc>100kRnt>50pct","MOE H73ROHUHhInc>100kRnt>50pct","H73ROHUHhInc>100kRntPctNC","MOE H73ROHUHhInc>100kRntPctNC"]
[{"$f":"VLOOKUP(DropDownList!$B$27,CntyQryCensus!$A$275:$AG$297,A$1)","v":"Dublin"},571,128,566,128,0,11,0,11,0,11,0,11,0,11,0,11,16,13,8,13,18,20,9,14,0,11,8,13,13,20,33,43,33,36,113,85,98,83,145,79,37,40,35,34,0,11,null,null,null,null,5,9,null,null,933,84,571,128,50,43,0,11,0,11,0,11,0,11,27,19,null,null,null,null,23,38,93,70,0,11,0,11,0,11,0,11,93,70,null,null,null,null,0,11,238,98,17,19,0,11,9,15,39,41,173,84,null,null,null,null,0,11,33,31,10,17,13,20,0,11,10,17,0,11,null,null,null,null,0,11,133,83,27,36,40,51,61,59,0,11,0,11,null,null,null,null,5,9,24,27,15,23,9,13,0,11,0,11,0,11,null,null,null,null,0,11,0,11,0,11,0,11,0,11,0,11,0,11,null,null,null,null,0,11]
[]
[]
[]
[]
[]
["Occupied Rental Housing Cost Burdern All Incomes"]
["NAME","RntrOccHU","MOE RntrOccHU","RntrOccHUwRent","MOE RntrOccHUwRent","ROHUGRent<100","MOE ROHUGRent<100","ROHUGRent100to149","MOE ROHUGRent100to149","ROHUGRent150to199","MOE ROHUGRent150to199","ROHUGRent200to249","MOE ROHUGRent200to249","ROHUGRent250to299","MOE ROHUGRent250to299","ROHUGRent300to349","MOE ROHUGRent300to349","ROHUGRent350to399","MOE ROHUGRent350to399","ROHUGRent400to449","MOE ROHUGRent400to449","ROHUGRent450to499","MOE ROHUGRent450to499","ROHUGRent500to549","MOE ROHUGRent500to549","ROHUGRent550to599","MOE ROHUGRent550to599","ROHUGRent600to649","MOE ROHUGRent600to649","ROHUGRent650to699","MOE ROHUGRent650to699","ROHUGRent700to749","MOE ROHUGRent700to749","ROHUGRent750to799","MOE ROHUGRent750to799","ROHUGRent800to899","MOE ROHUGRent800to899","ROHUGRent900to999","MOE ROHUGRent900to999","ROHUGRent1000to1249","MOE ROHUGRent1000to1249","ROHUGRent1250to1499","MOE ROHUGRent1250to1499","ROHUGRent1500to1999","MOE ROHUGRent1500to1999","ROHUGRent2000>","MOE ROHUGRent2000>","ROHUNoGRent","MOE ROHUNoGRent","MedianGrossRnt","MOE MedianGrossRnt","H73RenterOccHU","MOE H73RenterOccHU","H73ROHUHhInc<10k","MOE H73ROHUHhInc<10k","H73ROHUHhInc<10kRnt<20pct","MOE H73ROHUHhInc<10kRnt<20pct","H73ROHUHhInc<10kRnt20to25pct","MOE H73ROHUHhInc<10kRnt20to25pct","H73ROHUHhInc<10kRnt25to30pct","MOE H73ROHUHhInc<10kRnt25to30pct","H73ROHUHhInc<10kRnt30to35pct","MOE H73ROHUHhInc<10kRnt30to35pct","H73ROHUHhInc<10kRnt35to39.9","MOE H73ROHUHhInc<10kRnt35to39.9","H73ROHUHhInc<10kRnt40to49.9","MOE H73ROHUHhInc<10kRnt40to49.9","H73ROHUHhInc<10kRnt>50pct","MOE H73ROHUHhInc<10kRnt>50pct","H73ROHUHhInc<10kPctNotComput","MOE H73ROHUHhInc<10kPctNotComput","H73ROHUHhInc10to20k","MOE H73ROHUHhInc10to20k","H73ROHUHhInc10to20kRnt<20pct","MOE H73ROHUHhInc10to20kRnt<20pct","H73ROHUHhInc10to20kRnt20to25pct","MOE H73ROHUHhInc10to20kRnt20to25pct","H73ROHUHhInc10to20kRnt25to30pct","MOE H73ROHUHhInc10to20kRnt25to30pct","H73ROHUHhInc10to20kRnt30to35pct","MOE H73ROHUHhInc10to20kRnt30to35pct","H73ROHUHhInc10to20kRnt35to39.9","MOE H73ROHUHhInc10to20kRnt35to39.9","H73ROHUHhInc10to20kRnt40to49.9","MOE H73ROHUHhInc10to20kRnt40to49.9","H73ROHUHhInc10to20kRnt>50pct","MOE H73ROHUHhInc10to20kRnt>50pct","H73ROHUHhInc10to20kRntPctNC","MOE H73ROHUHhInc10to20kRntPctNC","H73ROHUHhInc20to34.9k","MOE H73ROHUHhInc20to34.9k","H73ROHUHhInc20to34.9kRnt<20pct","MOE H73ROHUHhInc20to34.9kRnt<20pct","H73ROHUHhInc20to34.9kRnt20to25pct","MOE H73ROHUHhInc20to34.9kRnt20to25pct","H73ROHUHhInc20to34.9kRnt25to30pct","MOE H73ROHUHhInc20to34.9kRnt25to30pct","H73ROHUHhInc20to34.9kRnt30to35pct","MOE H73ROHUHhInc20to34.9kRnt30to35pct","H73ROHUHhInc20to34.9kRnt35to39.9","MOE H73ROHUHhInc20to34.9kRnt35to39.9","H73ROHUHhInc20to34.9kRnt40to49.9","MOE H73ROHUHhInc20to34.9kRnt40to49.9","H73ROHUHhInc20to34.9kRnt>50pct","MOE H73ROHUHhInc20to34.9kRnt>50pct","H73ROHUHhInc20to34.9kRntPctNC","MOE H73ROHUHhInc20to34.9kRntPctNC","H73ROHUHhInc35to49.9k","MOE H73ROHUHhInc35to49.9k","H73ROHUHhInc35to49.9kRnt<20pct","MOE H73ROHUHhInc35to49.9kRnt<20pct","H73ROHUHhInc35to49.9kRnt20to25pct","MOE H73ROHUHhInc35to49.9kRnt20to25pct","H73ROHUHhInc35to49.9kRnt25to30pct","MOE H73ROHUHhInc35to49.9kRnt25to30pct","H73ROHUHhInc35to49.9kRnt30to35pct","MOE H73ROHUHhInc35to49.9kRnt30to35pct","H73ROHUHhInc35to49.9kRnt35to39.9","MOE H73ROHUHhInc35to49.9kRnt35to39.9","H73ROHUHhInc35to49.9kRnt40to49.9","MOE H73ROHUHhInc35to49.9kRnt40to49.9","H73ROHUHhInc35to49.9kRnt>50pct","MOE H73ROHUHhInc35to49.9kRnt>50pct","H73ROHUHhInc35to49.9kRntPctNC","MOE H73ROHUHhInc35to49.9kRntPctNC","H73ROHUHhInc50to74.9k","MOE H73ROHUHhInc50to74.9k","H73ROHUHhInc50to74.9kRnt<20pct","MOE H73ROHUHhInc50to74.9kRnt<20pct","H73ROHUHhInc50to74.9kRnt20to25pct","MOE H73ROHUHhInc50to74.9kRnt20to25pct","H73ROHUHhInc50to74.9kRnt25to30pct","MOE H73ROHUHhInc50to74.9kRnt25to30pct","H73ROHUHhInc50to74.9kRnt30to35pct","MOE H73ROHUHhInc50to74.9kRnt30to35pct","H73ROHUHhInc50to74.9kRnt35to39.9","MOE H73ROHUHhInc50to74.9kRnt35to39.9","H73ROHUHhInc50to74.9kRnt40to49.9","MOE H73ROHUHhInc50to74.9kRnt40to49.9","H73ROHUHhInc50to74.9kRnt>50pct","MOE H73ROHUHhInc50to74.9kRnt>50pct","H73ROHUHhInc50to74.9kRntPctNC","MOE H73ROHUHhInc50to74.9kRntPctNC","H73ROHUHhInc75to99.9k","MOE H73ROHUHhInc75to99.9k","H73ROHUHhInc75to99.9kRnt<20pct","MOE H73ROHUHhInc75to99.9kRnt<20pct","H73ROHUHhInc75to99.9kRnt20to25pct","MOE H73ROHUHhInc75to99.9kRnt20to25pct","H73ROHUHhInc75to99.9kRnt25to30pct","MOE H73ROHUHhInc75to99.9kRnt25to30pct","H73ROHUHhInc75to99.9kRnt30to35pct","MOE H73ROHUHhInc75to99.9kRnt30to35pct","H73ROHUHhInc75to99.9kRnt35to39.9","MOE H73ROHUHhInc75to99.9kRnt35to39.9","H73ROHUHhInc75to99.9kRnt40to49.9","MOE H73ROHUHhInc75to99.9kRnt40to49.9","H73ROHUHhInc75to99.9kRnt>50pct","MOE H73ROHUHhInc75to99.9kRnt>50pct","H73ROHUHhInc75to99.9kRntPctNC","MOE H73ROHUHhInc75to99.9kRntPctNC","H73ROHUHhInc>100k","MOE H73ROHUHhInc>100k","H73ROHUHhInc>100kRnt<20pct","MOE H73ROHUHhInc>100kRnt<20pct","H73ROHUHhInc>100kRnt20to25pct","MOE H73ROHUHhInc>100kRnt20to25pct","H73ROHUHhInc>100kRnt25to30pct","MOE H73ROHUHhInc>100kRnt25to30pct","H73ROHUHhInc>100kRnt30to35pct","MOE H73ROHUHhInc>100kRnt30to35pct","H73ROHUHhInc>100kRnt35to39.9","MOE H73ROHUHhInc>100kRnt35to39.9","H73ROHUHhInc>100kRnt40to49.9","MOE H73ROHUHhInc>100kRnt40to49.9","H73ROHUHhInc>100kRnt>50pct","MOE H73ROHUHhInc>100kRnt>50pct","H73ROHUHhInc>100kRntPctNC","MOE H73ROHUHhInc>100kRntPctNC"]
[{"$f":"VLOOKUP(DropDownList!$B$27,CntyQryCensus!$A$275:$AG$297,A$1)","v":"Dublin"},571,128,69,48.559242168715933,62,55,70,61,201,95.414883535012507,342,127.73409881468612,49,45,250,105.49407566304374,293,119.5449706177554,145,81]
[]
["Income By Household Type and Tenure"]
["NAME","TotalFamilyHouseholds",{"$f":"\"MOE \"&B159","v":"MOE TotalFamilyHouseholds"},"FamInc<10K",{"$f":"\"MOE \"&D159","v":"MOE FamInc<10K"},"FamInc10to15K",{"$f":"\"MOE \"&F159","v":"MOE FamInc10to15K"},"FamInc15to20K",{"$f":"\"MOE \"&H159","v":"MOE FamInc15to20K"},"FamInc20to25K",{"$f":"\"MOE \"&J159","v":"MOE FamInc20to25K"},"FamInc25to30K",{"$f":"\"MOE \"&L159","v":"MOE FamInc25to30K"},"FamInc30to35K",{"$f":"\"MOE \"&N159","v":"MOE FamInc30to35K"},"FamInc35to40K",{"$f":"\"MOE \"&P159","v":"MOE FamInc35to40K"},"FamInc40to45K",{"$f":"\"MOE \"&R159","v":"MOE FamInc40to45K"},"FamInc45to50K",{"$f":"\"MOE \"&T159","v":"MOE FamInc45to50K"},"FamInc50to60K",{"$f":"\"MOE \"&V159","v":"MOE FamInc50to60K"},"FamInc60to75K",{"$f":"\"MOE \"&X159","v":"MOE FamInc60to75K"},"FamInc75to100K",{"$f":"\"MOE \"&Z159","v":"MOE FamInc75to100K"},"FamInc100to125K",{"$f":"\"MOE \"&AB159","v":"MOE FamInc100to125K"},"FamInc125to150K",{"$f":"\"MOE \"&AD159","v":"MOE FamInc125to150K"},"FamInc150to200K",{"$f":"\"MOE \"&AF159","v":"MOE FamInc150to200K"},"FamInc>200K",{"$f":"\"MOE \"&AH159","v":"MOE FamInc>200K"},"MedFamInc",{"$f":"\"MOE \"&AJ159","v":"MOE MedFamInc"},"TotalNonNonFamilyHouseholds",{"$f":"\"MOE \"&AL159","v":"MOE TotalNonNonFamilyHouseholds"},"NonFamInc<10K",{"$f":"\"MOE \"&AN159","v":"MOE NonFamInc<10K"},"NonFamInc10to15K",{"$f":"\"MOE \"&AP159","v":"MOE NonFamInc10to15K"},"NonFamInc15to20K",{"$f":"\"MOE \"&AR159","v":"MOE NonFamInc15to20K"},"NonFamInc20to25K",{"$f":"\"MOE \"&AT159","v":"MOE NonFamInc20to25K"},"NonFamInc25to30K",{"$f":"\"MOE \"&AV159","v":"MOE NonFamInc25to30K"},"NonFamInc30to35K",{"$f":"\"MOE \"&AX159","v":"MOE NonFamInc30to35K"},"NonFamInc35to40K",{"$f":"\"MOE \"&AZ159","v":"MOE NonFamInc35to40K"},"NonFamInc40to45K",{"$f":"\"MOE \"&BB159","v":"MOE NonFamInc40to45K"},"NonFamInc45to50K",{"$f":"\"MOE \"&BD159","v":"MOE NonFamInc45to50K"},"NonFamInc50to60K",{"$f":"\"MOE \"&BF159","v":"MOE NonFamInc50to60K"},"NonFamInc60to75K",{"$f":"\"MOE \"&BH159","v":"MOE NonFamInc60to75K"},"NonFamInc75to100K",{"$f":"\"MOE \"&BJ159","v":"MOE NonFamInc75to100K"},"NonFamInc100to125K",{"$f":"\"MOE \"&BL159","v":"MOE NonFamInc100to125K"},"NonFamInc125to150K",{"$f":"\"MOE \"&BN159","v":"MOE NonFamInc125to150K"},"NonFamInc150to200K",{"$f":"\"MOE \"&BP159","v":"MOE NonFamInc150to200K"},"NonFamInc>200K",{"$f":"\"MOE \"&BR159","v":"MOE NonFamInc>200K"},"MedNonFamInc",{"$f":"\"MOE \"&BT159","v":"MOE MedNonFamInc"}]
[{"$f":"VLOOKUP(DropDownList!$B$27,CntyQryCensus!$A$275:$AG$297,A$1)","v":"Dublin"},450,60,8,13,4,5,13,15,18,20,21,18,13,15,6,6,20,13,25,20,67,32,69,27,39,23,69,27,17,15,39,23,22,18,65978,4946,170,49,13,8,0,11,3,4,23,20,12,14,33,25,0,11,15,18,17,17,5,8,3,4,26,17,12,9,3,4,0,11,5,6,40250,17662]

{"sheet":"StatisticallySignificantCalcs","index":18,"n_rows":271,"n_cols":16,"rows_kept":271,"cut":false,"hidden":true,"merged":[]}
[]
["Statistically Significant Change  10 Year","Standard Error Estimate  1","Standard Error Estimate  2","Square Root of Sum of Squared SE","Difference between the estimates","Value","Test Statistic (90%) Confidence Interval",null,null,"Statistically Significant Change  5Year","Standard Error Estimate  1","Standard Error Estimate  2","Square Root of Sum of Squared SE","Difference between the estimates","Value","Test Statistic (90%) Confidence Interval"]
[{"$f":"IF(F3>G3,\"Y\",\"N\")","v":"Y"},{"$f":"PopulationCharacteristics!Q22/1.645","v":110.31047997289974},{"$f":"PopulationCharacteristics!T22/1.645","v":122.66386665629352},{"$f":"SQRT((B3^2)+(C3^2))","v":164.9691673462786},{"$f":"(PopulationCharacteristics!M22-PopulationCharacteristics!S22)","v":-847},{"$f":"ABS((E3/D3))","v":5.1342927507302276},1.645,"Population By Age Under 15 yrs.",null,{"$f":"IF(O3>P3,\"Y\",\"N\")","v":"N"},{"$f":"PopulationCharacteristics!P22/1.645","v":465.6534954407295},{"$f":"PopulationCharacteristics!T22/1.645","v":122.66386665629352},{"$f":"SQRT((K3^2)+(L3^2))","v":481.53878556066741},{"$f":"(PopulationCharacteristics!P22-PopulationCharacteristics!S22)","v":-81},{"$f":"ABS((N3/M3))","v":0.16821074943255032},1.645]
["Y",{"$f":"PopulationCharacteristics!Q23/1.645","v":107.72063918947933},{"$f":"PopulationCharacteristics!T23/1.645","v":119.07137230962877},160.56689512813099,{"$f":"(PopulationCharacteristics!M23-PopulationCharacteristics!S23)","v":-561},3.4938708851057179,1.645,"Population By Age 15 to 24 yrs.",null,{"$f":"IF(O4>P4,\"Y\",\"N\")","v":"N"},{"$f":"PopulationCharacteristics!P23/1.645","v":331.30699088145894},{"$f":"PopulationCharacteristics!T23/1.645","v":119.07137230962877},352.05441896193457,{"$f":"(PopulationCharacteristics!P23-PopulationCharacteristics!S23)","v":-16},4.5447519298799026E-2,1.645]
["Y",{"$f":"PopulationCharacteristics!Q24/1.645","v":93.159978572929717},{"$f":"PopulationCharacteristics!T24/1.645","v":95.046909786234522},133.08905540134143,{"$f":"(PopulationCharacteristics!M24-PopulationCharacteristics!S24)","v":-528},3.9672683708496606,1.645,"Population By Age 25 to 34 yrs.",null,"N",{"$f":"PopulationCharacteristics!P24/1.645","v":313.677811550152},{"$f":"PopulationCharacteristics!T24/1.645","v":95.046909786234522},327.76162758749729,{"$f":"(PopulationCharacteristics!P24-PopulationCharacteristics!S24)","v":-12},3.661197342814803E-2,1.645]
["Y",{"$f":"PopulationCharacteristics!Q25/1.645","v":79.174518111207504},{"$f":"PopulationCharacteristics!T25/1.645","v":85.67331793813068},116.65556876836163,{"$f":"(PopulationCharacteristics!M25-PopulationCharacteristics!S25)","v":-533},4.5690060545532729,1.645,"Population By Age 35 to 44 yrs.",null,"N",{"$f":"PopulationCharacteristics!P25/1.645","v":241.94528875379939},{"$f":"PopulationCharacteristics!T25/1.645","v":85.67331793813068},256.66600896240112,{"$f":"(PopulationCharacteristics!P25-PopulationCharacteristics!S25)","v":-135},0.5259753737775853,1.645]
["Y",{"$f":"PopulationCharacteristics!Q26/1.645","v":105.44090034078828},{"$f":"PopulationCharacteristics!T26/1.645","v":67.624910216677776},125.26337033023572,{"$f":"(PopulationCharacteristics!M26-PopulationCharacteristics!S26)","v":-328},2.6184829542370078,1.645,"Population By Age 45 to 54 yrs.",null,"N",{"$f":"PopulationCharacteristics!P26/1.645","v":372.64437689969606},{"$f":"PopulationCharacteristics!T26/1.645","v":67.624910216677776},378.7307224358442,{"$f":"(PopulationCharacteristics!P26-PopulationCharacteristics!S26)","v":285},0.75251354885337596,1.645]
["Y",{"$f":"PopulationCharacteristics!Q27/1.645","v":93.060756073188642},{"$f":"PopulationCharacteristics!T27/1.645","v":108.86382204592012},143.21883979197457,{"$f":"(PopulationCharacteristics!M27-PopulationCharacteristics!S27)","v":-769},5.3694053178825696,1.645,"Population By Age 55 to 64 yrs.",null,"N",{"$f":"PopulationCharacteristics!P27/1.645","v":384.80243161094222},{"$f":"PopulationCharacteristics!T27/1.645","v":108.86382204592012},399.90529269333211,{"$f":"(PopulationCharacteristics!P27-PopulationCharacteristics!S27)","v":-136},0.34008052027531371,1.645]
["Y",{"$f":"PopulationCharacteristics!Q28/1.645","v":68.082392477391878},{"$f":"PopulationCharacteristics!T28/1.645","v":59.241673287320438},90.248479318641387,{"$f":"(PopulationCharacteristics!M28-PopulationCharacteristics!S28)","v":-370},4.0997920717714988,1.645,"Population By Age 65 to 74 yrs.",null,"N",{"$f":"PopulationCharacteristics!P28/1.645","v":284.49848024316111},{"$f":"PopulationCharacteristics!T28/1.645","v":59.241673287320438},290.60103426269831,{"$f":"(PopulationCharacteristics!P28-PopulationCharacteristics!S28)","v":98},0.33723211016313759,1.645]
["Y",{"$f":"PopulationCharacteristics!Q29/1.645","v":55.449260795094851},{"$f":"PopulationCharacteristics!T29/1.645","v":44.626023470475268},71.176558595578726,{"$f":"(PopulationCharacteristics!M29-PopulationCharacteristics!S29)","v":-235},3.3016488101828161,1.645,"Population By Age Over 74 yrs. ",null,"N",{"$f":"PopulationCharacteristics!P29/1.645","v":171.42857142857142},{"$f":"PopulationCharacteristics!T29/1.645","v":44.626023470475268},177.14185579029092,{"$f":"(PopulationCharacteristics!P29-PopulationCharacteristics!S29)","v":47},0.26532408046825967,1.645]
["N",{"$f":"PopulationCharacteristics!Q$30/1.645","v":3.7082066869300911},{"$f":"PopulationCharacteristics!T$30/1.645","v":2.6747720364741645},4.5722207164677862,{"$f":"(PopulationCharacteristics!P30-PopulationCharacteristics!S30)","v":2.7000000000000028},0.59052267321116014,1.645,"Population By Age Median Age        ",null,"N",{"$f":"PopulationCharacteristics!P30/1.645","v":24.741641337386021},{"$f":"PopulationCharacteristics!T30/1.645","v":2.6747720364741645},{"$f":"SQRT((K11^2)+(L11^2))","v":24.885803614007585},{"$f":"(PopulationCharacteristics!P30-PopulationCharacteristics!S30)","v":2.7000000000000028},0.10849559218092686,1.645]
["Y",{"$f":"PopulationCharacteristics!E51/1.645","v":21.88449848024316},{"$f":"PopulationCharacteristics!K51/1.645","v":80.243161094224916},83.173891192642273,{"$f":"PopulationCharacteristics!D51-PopulationCharacteristics!J51","v":2682},32.245695873337411,1.645,"Total Households",null,"N",{"$f":"PopulationCharacteristics!H51/1.645","v":93.61702127659575},{"$f":"PopulationCharacteristics!K51/1.645","v":80.243161094224916},123.30089851698695,{"$f":"PopulationCharacteristics!G51-PopulationCharacteristics!J51","v":123},0.99755964051676804,1.645]
["N",{"$f":"PopulationCharacteristics!E52/1.645","v":0.12158054711246201},{"$f":"PopulationCharacteristics!K52/1.645","v":0.13787591964174467},0.18382491303744014,{"$f":"PopulationCharacteristics!D52-PopulationCharacteristics!J52","v":-0.21151361621279285},1.1506254115279428,1.645,"Persons per Household",null,"N",{"$f":"PopulationCharacteristics!H52/1.645","v":0.1398176291793313},{"$f":"PopulationCharacteristics!K52/1.645","v":0.13787591964174467},0.19636379158690592,{"$f":"PopulationCharacteristics!G52-PopulationCharacteristics!J52","v":-0.18151361621279261},0.9243741666724693,1.645]
["Y",{"$f":"PopulationCharacteristics!E53/1.645","v":21.88449848024316},{"$f":"PopulationCharacteristics!K53/1.645","v":80.243161094224916},83.173891192642273,{"$f":"PopulationCharacteristics!D53-PopulationCharacteristics!J53","v":2526},30.37010729904933,1.645,"Family Households",null,"Y",{"$f":"PopulationCharacteristics!H53/1.645","v":93.61702127659575},{"$f":"PopulationCharacteristics!K53/1.645","v":80.243161094224916},123.30089851698695,{"$f":"PopulationCharacteristics!G53-PopulationCharacteristics!J53","v":223},1.8085837384978802,1.645]
["Y",{"$f":"PopulationCharacteristics!E54/1.645","v":0.1276595744680851},{"$f":"PopulationCharacteristics!K54/1.645","v":0.28759743474752103},0.31465735558973856,{"$f":"PopulationCharacteristics!D54-PopulationCharacteristics!J54","v":-1.1481384790011351},3.6488531369281536,1.645,"Persons per Family Household",null,"Y",{"$f":"PopulationCharacteristics!H54/1.645","v":0.1276595744680851},{"$f":"PopulationCharacteristics!K54/1.645","v":0.28759743474752103},0.31465735558973856,{"$f":"PopulationCharacteristics!G54-PopulationCharacteristics!J54","v":-1.0981384790011353},3.4899501298578484,1.645]
["Y",{"$f":"PopulationCharacteristics!E55/1.645","v":220.66869300911853},{"$f":"PopulationCharacteristics!K55/1.645","v":68.085106382978722},230.93344016303513,{"$f":"PopulationCharacteristics!D55-PopulationCharacteristics!J55","v":1611},6.9760360338574658,1.645,"Married-Couple Family Hh",null,"N",{"$f":"PopulationCharacteristics!H55/1.645","v":72.948328267477208},{"$f":"PopulationCharacteristics!K55/1.645","v":68.085106382978722},99.784970352258682,{"$f":"PopulationCharacteristics!G55-PopulationCharacteristics!J55","v":-11},0.11023704232378929,1.645]
["Y",{"$f":"PopulationCharacteristics!E56/1.645","v":220.06079027355622},{"$f":"PopulationCharacteristics!K56/1.645","v":43.768996960486319},224.37129163676255,{"$f":"PopulationCharacteristics!D56-PopulationCharacteristics!J56","v":2070},9.2257792202361983,1.645,"Single-Parent Family Hh",null,"Y",{"$f":"PopulationCharacteristics!H56/1.645","v":75.98784194528875},{"$f":"PopulationCharacteristics!K56/1.645","v":43.768996960486319},87.691945003114427,{"$f":"PopulationCharacteristics!G56-PopulationCharacteristics!J56","v":234},2.6684320890783,1.645]
["Y",{"$f":"PopulationCharacteristics!E57/1.645","v":134.34650455927053},{"$f":"PopulationCharacteristics!K57/1.645","v":86.322188449848028},159.68877075757447,{"$f":"PopulationCharacteristics!D57-PopulationCharacteristics!J57","v":-365},2.2856960966536031,1.645,"Non-Family Households*",null,"N",{"$f":"PopulationCharacteristics!H57/1.645","v":87.537993920972639},{"$f":"PopulationCharacteristics!K57/1.645","v":86.322188449848028},122.94071985505583,{"$f":"PopulationCharacteristics!G57-PopulationCharacteristics!J57","v":-100},0.81340015023417467,1.645]
["Y",{"$f":"PopulationCharacteristics!E58/1.645","v":0.32218844984802431},{"$f":"PopulationCharacteristics!K58/1.645","v":0.31996738735329494},0.45407546309525065,{"$f":"PopulationCharacteristics!D58-PopulationCharacteristics!J58","v":1.0570773638968483},2.3279772852978557,1.645,"Persons per Non-Family Hh",null,"Y",{"$f":"PopulationCharacteristics!H58/1.645","v":0.37689969604863222},{"$f":"PopulationCharacteristics!K58/1.645","v":0.31996738735329494},0.49440116287408226,{"$f":"PopulationCharacteristics!G58-PopulationCharacteristics!J58","v":1.0770773638968483},2.1785494144785544,1.645]
["N",{"$f":"PopulationCharacteristics!D36/1.645","v":63.829787234042556},{"$f":"PopulationCharacteristics!J36/1.645","v":32.218844984802431},71.500319653116733,{"$f":"PopulationCharacteristics!C36-PopulationCharacteristics!I36","v":40},0.55943805837595828,1.645,"Ethnicity -White",null,"N",{"$f":"PopulationCharacteristics!G36/1.645","v":51.063829787234042},{"$f":"PopulationCharacteristics!J36/1.645","v":32.218844984802431},60.378544903751525,{"$f":"PopulationCharacteristics!F36-PopulationCharacteristics!I36","v":-8},{"$f":"ABS((N20/M20))","v":0.13249739643034911},1.645]
["N",{"$f":"PopulationCharacteristics!D37/1.645","v":7.2948328267477205},{"$f":"PopulationCharacteristics!J37/1.645","v":17.021276595744681},18.518597217906159,{"$f":"PopulationCharacteristics!C37-PopulationCharacteristics!I37","v":-14},0.75599678718985264,1.645,"Ethnicity -Black",null,"N",{"$f":"PopulationCharacteristics!G37/1.645","v":17.021276595744681},{"$f":"PopulationCharacteristics!J37/1.645","v":17.021276595744681},24.071720210605871,{"$f":"PopulationCharacteristics!F37-PopulationCharacteristics!I37","v":-3},{"$f":"ABS((N21/M21))","v":0.12462757018412901},1.645]
["Y",{"$f":"PopulationCharacteristics!D38/1.645","v":26.13981762917933},{"$f":"PopulationCharacteristics!J38/1.645","v":6.6869300911854106},26.981569630604433,{"$f":"PopulationCharacteristics!C38-PopulationCharacteristics!I38","v":52},1.9272414730467671,1.645,"Ethnicity -American Indian",null,"N",{"$f":"PopulationCharacteristics!G38/1.645","v":15.805471124620061},{"$f":"PopulationCharacteristics!J38/1.645","v":6.6869300911854106},17.161816672939946,{"$f":"PopulationCharacteristics!F38-PopulationCharacteristics!I38","v":10},0.58268889538760738,1.645]
["N",{"$f":"PopulationCharacteristics!D39/1.645","v":36.484294439206458},{"$f":"PopulationCharacteristics!J39/1.645","v":11.209172592453358},38.16738517286872,{"$f":"PopulationCharacteristics!C39-PopulationCharacteristics!I39","v":41},1.0742155852254935,1.645,"Ethnicity -Asian &Pacific Is",null,"N",{"$f":"PopulationCharacteristics!G39/1.645","v":21.145929642463326},{"$f":"PopulationCharacteristics!J39/1.645","v":11.209172592453358},23.933154632254745,{"$f":"PopulationCharacteristics!F39-PopulationCharacteristics!I39","v":14},0.58496258496287745,1.645]
["N",{"$f":"PopulationCharacteristics!D40/1.645","v":40.07550084826628},{"$f":"PopulationCharacteristics!J40/1.645","v":22.492401215805472},45.955999398252224,{"$f":"PopulationCharacteristics!C40-PopulationCharacteristics!I40","v":42},0.91391767233762566,1.645,"Ethnicity -Other*",null,"N",{"$f":"PopulationCharacteristics!G40/1.645","v":16.049092744612871},{"$f":"PopulationCharacteristics!J40/1.645","v":22.492401215805472},27.631168820336807,{"$f":"PopulationCharacteristics!F40-PopulationCharacteristics!I40","v":-7},0.25333709353792999,1.645]
["N",{"$f":"PopulationCharacteristics!D42/1.645","v":6.6869300911854106},{"$f":"PopulationCharacteristics!J42/1.645","v":7.2948328267477205},9.8959395720970864,{"$f":"PopulationCharacteristics!C42-PopulationCharacteristics!I42","v":0},0,1.645,"Ethnicity -Hispanic",null,"Y",{"$f":"PopulationCharacteristics!G42/1.645","v":37.689969604863222},{"$f":"PopulationCharacteristics!J42/1.645","v":7.2948328267477205},38.389430769232689,{"$f":"PopulationCharacteristics!F42-PopulationCharacteristics!I41","v":-4127},107.50354765113097,1.645]
["Y",{"$f":"PlaceOfBirthAndPriorRes!E8/1.645","v":43.768996960486319},{"$f":"PlaceOfBirthAndPriorRes!M8/1.645","v":26.747720364741642},51.294889020617596,{"$f":"PlaceOfBirthAndPriorRes!D8-PlaceOfBirthAndPriorRes!L8","v":139},2.7098216343567874,1.645,"Place of Birth - United States Native",null,"N",{"$f":"PlaceOfBirthAndPriorRes!I8/1.645","v":43.768996960486319},{"$f":"PlaceOfBirthAndPriorRes!M8/1.645","v":26.747720364741642},51.294889020617596,{"$f":"PlaceOfBirthAndPriorRes!H8-PlaceOfBirthAndPriorRes!L8","v":44},0.8577852655517888,1.645]
["N",{"$f":"PlaceOfBirthAndPriorRes!E9/1.645","v":137.99392097264439},{"$f":"PlaceOfBirthAndPriorRes!M9/1.645","v":176.89969604863222},224.35646789763581,{"$f":"PlaceOfBirthAndPriorRes!D9-PlaceOfBirthAndPriorRes!L9","v":-74},0.32983225620115847,1.645,"Place of Birth - New Hampshire Native",null,"N",{"$f":"PlaceOfBirthAndPriorRes!I9/1.645","v":129.48328267477203},{"$f":"PlaceOfBirthAndPriorRes!M9/1.645","v":176.89969604863222},219.22459477516063,{"$f":"PlaceOfBirthAndPriorRes!H9-PlaceOfBirthAndPriorRes!L9","v":124},0.56562996559385081,1.645]
["N",{"$f":"PlaceOfBirthAndPriorRes!E10/1.645","v":144.07294832826747},{"$f":"PlaceOfBirthAndPriorRes!M10/1.645","v":176.89969604863222},228.14582376650705,{"$f":"PlaceOfBirthAndPriorRes!D10-PlaceOfBirthAndPriorRes!L10","v":152},0.66624055391678993,1.645,"Place of Birth - Born in Different State",null,"N",{"$f":"PlaceOfBirthAndPriorRes!I10/1.645","v":119.14893617021276},{"$f":"PlaceOfBirthAndPriorRes!M10/1.645","v":176.89969604863222},213.28378150387314,{"$f":"PlaceOfBirthAndPriorRes!H10-PlaceOfBirthAndPriorRes!L10","v":-103},0.48292467094189045,1.645]
["N",{"$f":"PlaceOfBirthAndPriorRes!E11/1.645","v":129.48328267477203},{"$f":"PlaceOfBirthAndPriorRes!M11/1.645","v":166.56534954407294},210.97378074294946,{"$f":"PlaceOfBirthAndPriorRes!D11-PlaceOfBirthAndPriorRes!L11","v":38},0.18011716842814329,1.645,"Place of Birth - Northeast",null,"N",{"$f":"PlaceOfBirthAndPriorRes!I11/1.645","v":125.22796352583586},{"$f":"PlaceOfBirthAndPriorRes!M11/1.645","v":166.56534954407294},208.38919961832781,{"$f":"PlaceOfBirthAndPriorRes!H11-PlaceOfBirthAndPriorRes!L11","v":-93},0.44628032628530073,1.645]
["N",{"$f":"PlaceOfBirthAndPriorRes!E12/1.645","v":47.416413373860181},{"$f":"PlaceOfBirthAndPriorRes!M12/1.645","v":60.182370820668694},76.617452416778121,{"$f":"PlaceOfBirthAndPriorRes!D12-PlaceOfBirthAndPriorRes!L12","v":4},5.2207426295527118E-2,1.645,"Place of Birth - Midwest",null,"N",{"$f":"PlaceOfBirthAndPriorRes!I12/1.645","v":24.316109422492399},{"$f":"PlaceOfBirthAndPriorRes!M12/1.645","v":60.182370820668694},64.909097475185234,{"$f":"PlaceOfBirthAndPriorRes!H12-PlaceOfBirthAndPriorRes!L12","v":-95},1.4635852861198466,1.645]
["N",{"$f":"PlaceOfBirthAndPriorRes!E13/1.645","v":45.59270516717325},{"$f":"PlaceOfBirthAndPriorRes!M13/1.645","v":53.495440729483285},70.288384127837546,{"$f":"PlaceOfBirthAndPriorRes!D13-PlaceOfBirthAndPriorRes!L13","v":39},0.5548569722284189,1.645,"Place of Birth - South",null,"N",{"$f":"PlaceOfBirthAndPriorRes!I13/1.645","v":53.495440729483285},{"$f":"PlaceOfBirthAndPriorRes!M13/1.645","v":53.495440729483285},75.653977804761311,{"$f":"PlaceOfBirthAndPriorRes!H13-PlaceOfBirthAndPriorRes!L13","v":28},0.37010611751650435,1.645]
["Y",{"$f":"PlaceOfBirthAndPriorRes!E14/1.645","v":26.747720364741642},{"$f":"PlaceOfBirthAndPriorRes!M14/1.645","v":7.2948328267477205},27.724630397547429,{"$f":"PlaceOfBirthAndPriorRes!D14-PlaceOfBirthAndPriorRes!L14","v":71},2.5608997841241119,1.645,"Place of Birth - West",null,"N",{"$f":"PlaceOfBirthAndPriorRes!I14/1.645","v":49.240121580547111},{"$f":"PlaceOfBirthAndPriorRes!M14/1.645","v":7.2948328267477205},49.777546737834093,{"$f":"PlaceOfBirthAndPriorRes!H14-PlaceOfBirthAndPriorRes!L14","v":57},1.1450946005877864,1.645]
["Y",{"$f":"PlaceOfBirthAndPriorRes!E15/1.645","v":33.434650455927049},{"$f":"PlaceOfBirthAndPriorRes!M15/1.645","v":7.2948328267477205},34.221198650547279,{"$f":"PlaceOfBirthAndPriorRes!D15-PlaceOfBirthAndPriorRes!L15","v":61},1.7825208468851941,1.645,"Place of Birth - Native Born Outside US",null,"N",{"$f":"PlaceOfBirthAndPriorRes!I15/1.645","v":14.589665653495441},{"$f":"PlaceOfBirthAndPriorRes!M15/1.645","v":7.2948328267477205},16.31174208510485,{"$f":"PlaceOfBirthAndPriorRes!H15-PlaceOfBirthAndPriorRes!L15","v":23},1.4100271988117423,1.645]
["N",{"$f":"PlaceOfBirthAndPriorRes!E16/1.645","v":41.337386018237083},{"$f":"PlaceOfBirthAndPriorRes!M16/1.645","v":25.531914893617021},48.586604748177713,{"$f":"PlaceOfBirthAndPriorRes!D16-PlaceOfBirthAndPriorRes!L16","v":22},0.45279969888871752,1.645,"Place of Birth - Foreign Born",null,"N",{"$f":"PlaceOfBirthAndPriorRes!I16/1.645","v":43.161094224924014},{"$f":"PlaceOfBirthAndPriorRes!M16/1.645","v":25.531914893617021},50.14737014866953,{"$f":"PlaceOfBirthAndPriorRes!H16-PlaceOfBirthAndPriorRes!L16","v":6},0.11964735104178115,1.645]
["N",{"$f":"PlaceOfBirthAndPriorRes!E17/1.645","v":18.237082066869302},{"$f":"PlaceOfBirthAndPriorRes!M17/1.645","v":25.531914893617021},31.376262372191952,{"$f":"PlaceOfBirthAndPriorRes!D17-PlaceOfBirthAndPriorRes!L17","v":-28},0.89239437342338601,1.645,"Place of Birth - Naturalized Citizen",null,"N",{"$f":"PlaceOfBirthAndPriorRes!I17/1.645","v":27.355623100303951},{"$f":"PlaceOfBirthAndPriorRes!M17/1.645","v":25.531914893617021},37.419363882097002,{"$f":"PlaceOfBirthAndPriorRes!H17-PlaceOfBirthAndPriorRes!L17","v":-13},0.34741370914163899,1.645]
["Y",{"$f":"PlaceOfBirthAndPriorRes!E18/1.645","v":29.179331306990882},{"$f":"PlaceOfBirthAndPriorRes!M18/1.645","v":7.2948328267477205},30.077366265903908,{"$f":"PlaceOfBirthAndPriorRes!D18-PlaceOfBirthAndPriorRes!L18","v":50},1.6623795966031989,1.645,"Place of Birth - Not a Citizen",null,"N",{"$f":"PlaceOfBirthAndPriorRes!I18/1.645","v":19.45288753799392},{"$f":"PlaceOfBirthAndPriorRes!M18/1.645","v":7.2948328267477205},20.775692997732598,{"$f":"PlaceOfBirthAndPriorRes!H18-PlaceOfBirthAndPriorRes!L18","v":19},0.91453026390376524,1.645]
["N",{"$f":"PlaceOfBirthAndPriorRes!E43/1.645","v":46.808510638297875},{"$f":"PlaceOfBirthAndPriorRes!I43/1.645","v":24.316109422492399},52.747605117410487,{"$f":"PlaceOfBirthAndPriorRes!D43-PlaceOfBirthAndPriorRes!H43","v":59},1.1185341944657461,1.645,"Place of Residence for Population Total:",null,"N",{"$f":"PlaceOfBirthAndPriorRes!I43/1.645","v":24.316109422492399},{"$f":"PlaceOfBirthAndPriorRes!M43/1.645","v":31.003039513677813},{"$f":"SQRT((K37^2)+(L37^2))","v":39.401289782611066},{"$f":"PlaceOfBirthAndPriorRes!H43-PlaceOfBirthAndPriorRes!L43","v":57},1.4466531505564002,1.645]
["N",{"$f":"PlaceOfBirthAndPriorRes!E44/1.645","v":188.44984802431611},{"$f":"PlaceOfBirthAndPriorRes!I44/1.645","v":200},274.79691632255964,{"$f":"PlaceOfBirthAndPriorRes!D44-PlaceOfBirthAndPriorRes!H44","v":30},0.10917153074885917,1.645,"Place of Residence for Population  Same house ",null,"N",{"$f":"PlaceOfBirthAndPriorRes!I8/1.645","v":43.768996960486319},{"$f":"PlaceOfBirthAndPriorRes!M8/1.645","v":26.747720364741642},{"$f":"SQRT((K38^2)+(L38^2))","v":51.294889020617596},{"$f":"PlaceOfBirthAndPriorRes!H8-PlaceOfBirthAndPriorRes!L8","v":44},0.8577852655517888,1.645]
["N",{"$f":"PlaceOfBirthAndPriorRes!E45/1.645","v":191.80752263124779},{"$f":"PlaceOfBirthAndPriorRes!I45/1.645","v":189.39950931813621},269.55945516321145,{"$f":"PlaceOfBirthAndPriorRes!D45-PlaceOfBirthAndPriorRes!H45","v":29},0.10758294485512011,1.645,"Place of Residence for Population  Different house",null,"N",{"$f":"PlaceOfBirthAndPriorRes!I9/1.645","v":129.48328267477203},{"$f":"PlaceOfBirthAndPriorRes!M9/1.645","v":176.89969604863222},219.22459477516063,{"$f":"PlaceOfBirthAndPriorRes!H9-PlaceOfBirthAndPriorRes!L9","v":124},0.56562996559385081,1.645]
["N",{"$f":"PlaceOfBirthAndPriorRes!E46/1.645","v":186.74589981382101},{"$f":"PlaceOfBirthAndPriorRes!I46/1.645","v":189.183785040674},265.8280188760952,{"$f":"PlaceOfBirthAndPriorRes!D46-PlaceOfBirthAndPriorRes!H46","v":-85},0.31975560875552117,1.645,"Place of Residence for Population in New Hampshire",null,"N",{"$f":"PlaceOfBirthAndPriorRes!I10/1.645","v":119.14893617021276},{"$f":"PlaceOfBirthAndPriorRes!M10/1.645","v":176.89969604863222},213.28378150387314,{"$f":"PlaceOfBirthAndPriorRes!H10-PlaceOfBirthAndPriorRes!L10","v":-103},0.48292467094189045,1.645]
["N",{"$f":"PlaceOfBirthAndPriorRes!E47/1.645","v":186.62613981762917},{"$f":"PlaceOfBirthAndPriorRes!I47/1.645","v":186.62613981762917},263.92921802342869,{"$f":"PlaceOfBirthAndPriorRes!D47-PlaceOfBirthAndPriorRes!H47","v":-38},0.14397799639078529,1.645,"Place of Residence for Population Same county",null,"N",{"$f":"PlaceOfBirthAndPriorRes!I11/1.645","v":125.22796352583586},{"$f":"PlaceOfBirthAndPriorRes!M11/1.645","v":166.56534954407294},208.38919961832781,{"$f":"PlaceOfBirthAndPriorRes!H11-PlaceOfBirthAndPriorRes!L11","v":-93},0.44628032628530073,1.645]
["N",{"$f":"PlaceOfBirthAndPriorRes!E48/1.645","v":6.6869300911854106},{"$f":"PlaceOfBirthAndPriorRes!I48/1.645","v":31.003039513677813},31.715981667466462,{"$f":"PlaceOfBirthAndPriorRes!D48-PlaceOfBirthAndPriorRes!H48","v":-47},1.4819027357495145,1.645,"Place of Residence for Population Different county",null,"N",{"$f":"PlaceOfBirthAndPriorRes!I12/1.645","v":24.316109422492399},{"$f":"PlaceOfBirthAndPriorRes!M12/1.645","v":60.182370820668694},64.909097475185234,{"$f":"PlaceOfBirthAndPriorRes!H12-PlaceOfBirthAndPriorRes!L12","v":-95},1.4635852861198466,1.645]
["Y",{"$f":"PlaceOfBirthAndPriorRes!E49/1.645","v":43.161094224924014},{"$f":"PlaceOfBirthAndPriorRes!I49/1.645","v":6.0790273556230998},43.587092450439762,{"$f":"PlaceOfBirthAndPriorRes!D49-PlaceOfBirthAndPriorRes!H49","v":106},2.43191261542683,1.645,"Place of Residence for Population in Different state",null,"N",{"$f":"PlaceOfBirthAndPriorRes!I13/1.645","v":53.495440729483285},{"$f":"PlaceOfBirthAndPriorRes!M13/1.645","v":53.495440729483285},75.653977804761311,{"$f":"PlaceOfBirthAndPriorRes!H13-PlaceOfBirthAndPriorRes!L13","v":28},0.37010611751650435,1.645]
["N",{"$f":"PlaceOfBirthAndPriorRes!E50/1.645","v":7.2948328267477205},{"$f":"PlaceOfBirthAndPriorRes!I50/1.645","v":6.6869300911854106},9.8959395720970864,{"$f":"PlaceOfBirthAndPriorRes!D50-PlaceOfBirthAndPriorRes!H50","v":8},0.80841237375347974,1.645,"Place of Residence for Population Elsewhere",null,"N",{"$f":"PlaceOfBirthAndPriorRes!I14/1.645","v":49.240121580547111},{"$f":"PlaceOfBirthAndPriorRes!M14/1.645","v":7.2948328267477205},49.777546737834093,{"$f":"PlaceOfBirthAndPriorRes!H14-PlaceOfBirthAndPriorRes!L14","v":57},1.1450946005877864,1.645]
["Y",{"$f":"SchoolEnrolEduAttain!G23/1.645","v":80.243161094224916},{"$f":"SchoolEnrolEduAttain!M23/1.645","v":0},{"$f":"SQRT((B45^2)+(C45^2))","v":80.243161094224916},{"$f":"SchoolEnrolEduAttain!F23-SchoolEnrolEduAttain!L23","v":4070},50.720833333333339,1.645,"Total Population 3 years & over",null,"Y",{"$f":"SchoolEnrolEduAttain!J23/1.645","v":62.006079027355625},{"$f":"SchoolEnrolEduAttain!M23/1.645","v":0},{"$f":"SQRT((K45^2)+(L45^2))","v":62.006079027355625},{"$f":"SchoolEnrolEduAttain!I23-SchoolEnrolEduAttain!L23","v":4071},65.654852941176472,1.645]
["Y",{"$f":"SchoolEnrolEduAttain!G24/1.645","v":83.282674772036472},{"$f":"SchoolEnrolEduAttain!M24/1.645","v":0},{"$f":"SQRT((B46^2)+(C46^2))","v":83.282674772036472},{"$f":"SchoolEnrolEduAttain!F24-SchoolEnrolEduAttain!L24","v":716},8.597226277372263,1.645,"Population 3 years & over enrolled in school",null,"Y",{"$f":"SchoolEnrolEduAttain!J24/1.645","v":106.99088145896657},{"$f":"SchoolEnrolEduAttain!M24/1.645","v":0},{"$f":"SQRT((K46^2)+(L46^2))","v":106.99088145896657},{"$f":"SchoolEnrolEduAttain!I24-SchoolEnrolEduAttain!L24","v":888},8.2997727272727264,1.645]
["Y",{"$f":"SchoolEnrolEduAttain!G25/1.645","v":39.513677811550153},{"$f":"SchoolEnrolEduAttain!M25/1.645","v":0},39.513677811550153,{"$f":"SchoolEnrolEduAttain!F25-SchoolEnrolEduAttain!L25","v":67},1.6956153846153845,1.645,"Preprimary (Nursery, Preschool, Kindergarten)",null,"Y",{"$f":"SchoolEnrolEduAttain!J25/1.645","v":62.661179720633136},{"$f":"SchoolEnrolEduAttain!M25/1.645","v":0},62.661179720633136,{"$f":"SchoolEnrolEduAttain!I25-SchoolEnrolEduAttain!L25","v":137},2.1863616454525272,1.645]
["N",{"$f":"SchoolEnrolEduAttain!G26/1.645","v":31.003039513677813},{"$f":"SchoolEnrolEduAttain!M26/1.645","v":0},31.003039513677813,{"$f":"SchoolEnrolEduAttain!F26-SchoolEnrolEduAttain!L26","v":44},1.4192156862745098,1.645,"Nursery school and Preschool",null,"N",{"$f":"SchoolEnrolEduAttain!J26/1.645","v":54.10334346504559},{"$f":"SchoolEnrolEduAttain!M26/1.645","v":0},54.10334346504559,{"$f":"SchoolEnrolEduAttain!I26-SchoolEnrolEduAttain!L26","v":88},1.6265168539325843,1.645]
["Y",{"$f":"SchoolEnrolEduAttain!G27/1.645","v":69.908814589665653},{"$f":"SchoolEnrolEduAttain!M27/1.645","v":0},69.908814589665653,{"$f":"SchoolEnrolEduAttain!F27-SchoolEnrolEduAttain!L27","v":283},4.0481304347826086,1.645,"Kindergarten",null,"N",{"$f":"SchoolEnrolEduAttain!J27/1.645","v":31.610942249240122},{"$f":"SchoolEnrolEduAttain!M27/1.645","v":0},31.610942249240122,{"$f":"SchoolEnrolEduAttain!I27-SchoolEnrolEduAttain!L27","v":49},1.550096153846154,1.645]
["Y",{"$f":"SchoolEnrolEduAttain!G28/1.645","v":31.003039513677813},{"$f":"SchoolEnrolEduAttain!M28/1.645","v":0},31.003039513677813,{"$f":"SchoolEnrolEduAttain!F28-SchoolEnrolEduAttain!L28","v":61},1.9675490196078431,1.645,"Elementary through High school",null,"Y",{"$f":"SchoolEnrolEduAttain!J28/1.645","v":92.553066714496069},{"$f":"SchoolEnrolEduAttain!M28/1.645","v":0},92.553066714496069,{"$f":"SchoolEnrolEduAttain!I28-SchoolEnrolEduAttain!L28","v":605},6.536790421718595,1.645]
["Y",{"$f":"SchoolEnrolEduAttain!G29/1.645","v":57.750759878419451},{"$f":"SchoolEnrolEduAttain!M29/1.645","v":0},57.750759878419451,{"$f":"SchoolEnrolEduAttain!F29-SchoolEnrolEduAttain!L29","v":130},2.2510526315789474,1.645,"Elementary school (grades 1-8)",null,"Y",{"$f":"SchoolEnrolEduAttain!J29/1.645","v":74.650851953841951},{"$f":"SchoolEnrolEduAttain!M29/1.645","v":0},74.650851953841951,{"$f":"SchoolEnrolEduAttain!I29-SchoolEnrolEduAttain!L29","v":415},5.5592131789279842,1.645]
["Y",{"$f":"SchoolEnrolEduAttain!G30/1.645","v":41.945288753799389},{"$f":"SchoolEnrolEduAttain!M30/1.645","v":0},41.945288753799389,{"$f":"SchoolEnrolEduAttain!F30-SchoolEnrolEduAttain!L30","v":131},3.1231159420289858,1.645,"High school (grades 9-12)",null,"Y",{"$f":"SchoolEnrolEduAttain!J30/1.645","v":54.711246200607903},{"$f":"SchoolEnrolEduAttain!M30/1.645","v":0},54.711246200607903,{"$f":"SchoolEnrolEduAttain!I30-SchoolEnrolEduAttain!L30","v":190},3.472777777777778,1.645]
["N",{"$f":"SchoolEnrolEduAttain!G31/1.645","v":6.6869300911854106},{"$f":"SchoolEnrolEduAttain!M31/1.645","v":0},6.6869300911854106,{"$f":"SchoolEnrolEduAttain!F31-SchoolEnrolEduAttain!L31","v":0},0,1.645,"College or Graduate School",null,"Y",{"$f":"SchoolEnrolEduAttain!J31/1.645","v":50.576630808392679},{"$f":"SchoolEnrolEduAttain!M31/1.645","v":0},50.576630808392679,{"$f":"SchoolEnrolEduAttain!I31-SchoolEnrolEduAttain!L31","v":146},2.8867086966135509,1.645]
["N",{"$f":"SchoolEnrolEduAttain!G52/1.645","v":117.32522796352583},{"$f":"SchoolEnrolEduAttain!M52/1.645","v":110.03039513677811},{"$f":"SQRT((B54^2)+(C54^2))","v":160.8474338329612},{"$f":"SchoolEnrolEduAttain!I52-SchoolEnrolEduAttain!L52","v":248},1.5418337370401947,1.645,"Population 25 years and over",null,"N",{"$f":"SchoolEnrolEduAttain!J52/1.645","v":116.71732522796353},{"$f":"SchoolEnrolEduAttain!M52/1.645","v":110.03039513677811},{"$f":"SQRT((K54^2)+(L54^2))","v":160.40455686272051},{"$f":"SchoolEnrolEduAttain!I52-SchoolEnrolEduAttain!L52","v":248},1.5460907398799557,1.645]
["N",{"$f":"SchoolEnrolEduAttain!G53/1.645","v":22.327498689613321},{"$f":"SchoolEnrolEduAttain!M53/1.645","v":26.329979121833087},{"$f":"SQRT((B55^2)+(C55^2))","v":34.522239184196195},{"$f":"SchoolEnrolEduAttain!I53-SchoolEnrolEduAttain!L53","v":37},1.0717728882701818,1.645,"Less than 9th Grade",null,"N",{"$f":"SchoolEnrolEduAttain!J53/1.645","v":96.039013022997196},{"$f":"SchoolEnrolEduAttain!M53/1.645","v":26.329979121833087},{"$f":"SQRT((K55^2)+(L55^2))","v":99.582929375408469},{"$f":"SchoolEnrolEduAttain!I53-SchoolEnrolEduAttain!L53","v":37},0.37154962433889771,1.645]
["N",{"$f":"SchoolEnrolEduAttain!G54/1.645","v":97.144683116390993},{"$f":"SchoolEnrolEduAttain!M54/1.645","v":66.658967352572887},117.81556512742871,{"$f":"SchoolEnrolEduAttain!I54-SchoolEnrolEduAttain!L54","v":131},1.1119074110310558,1.645,"9th to 12th Grade, no Diploma",null,"N",{"$f":"SchoolEnrolEduAttain!J54/1.645","v":86.047767923260778},{"$f":"SchoolEnrolEduAttain!M54/1.645","v":66.658967352572887},108.84684787850645,{"$f":"SchoolEnrolEduAttain!I54-SchoolEnrolEduAttain!L54","v":131},1.2035258948997827,1.645]
["Y",{"$f":"SchoolEnrolEduAttain!G55/1.645","v":120.37088191639005},{"$f":"SchoolEnrolEduAttain!M55/1.645","v":139.19379794990201},184.02190793774437,{"$f":"SchoolEnrolEduAttain!I55-SchoolEnrolEduAttain!L55","v":370},2.0106301697794211,1.645,"High School Graduate ",null,"Y",{"$f":"SchoolEnrolEduAttain!J55/1.645","v":111.17309538424284},{"$f":"SchoolEnrolEduAttain!M55/1.645","v":139.19379794990201},178.14143404899406,{"$f":"SchoolEnrolEduAttain!I55-SchoolEnrolEduAttain!L55","v":370},2.0770013555534717,1.645]
["N",{"$f":"SchoolEnrolEduAttain!G56/1.645","v":86.582935954790656},{"$f":"SchoolEnrolEduAttain!M56/1.645","v":80.48687315581077},118.21481103884975,{"$f":"SchoolEnrolEduAttain!I56-SchoolEnrolEduAttain!L56","v":-135},1.1419888828958498,1.645,"Some College, No Degree",null,"N",{"$f":"SchoolEnrolEduAttain!J56/1.645","v":63.498925380277662},{"$f":"SchoolEnrolEduAttain!M56/1.645","v":80.48687315581077},102.51951167875139,{"$f":"SchoolEnrolEduAttain!I56-SchoolEnrolEduAttain!L56","v":-135},1.3168225032423819,1.645]
["N",{"$f":"SchoolEnrolEduAttain!G57/1.645","v":51.110848233093968},{"$f":"SchoolEnrolEduAttain!M57/1.645","v":63.493105397186724},81.508853752734296,{"$f":"SchoolEnrolEduAttain!I57-SchoolEnrolEduAttain!L57","v":-69},0.84653380366897046,1.645,"Associate Degree",null,"N",{"$f":"SchoolEnrolEduAttain!J57/1.645","v":48.120407117722308},{"$f":"SchoolEnrolEduAttain!M57/1.645","v":63.493105397186724},79.667735088639262,{"$f":"SchoolEnrolEduAttain!I57-SchoolEnrolEduAttain!L57","v":-69},0.86609717124793095,1.645]
["N",{"$f":"SchoolEnrolEduAttain!G58/1.645","v":49.371283900904444},{"$f":"SchoolEnrolEduAttain!M58/1.645","v":53.141965655961926},72.536833317998813,{"$f":"SchoolEnrolEduAttain!I58-SchoolEnrolEduAttain!L58","v":-92},1.2683211520507847,1.645,"Bachelor's Degree",null,"N",{"$f":"SchoolEnrolEduAttain!J58/1.645","v":50.12894377650651},{"$f":"SchoolEnrolEduAttain!M58/1.645","v":53.141965655961926},73.054633788197094,{"$f":"SchoolEnrolEduAttain!I58-SchoolEnrolEduAttain!L58","v":-92},1.2593314787769667,1.645]
["N",{"$f":"SchoolEnrolEduAttain!G59/1.645","v":25.182146112106967},{"$f":"SchoolEnrolEduAttain!M59/1.645","v":37.057144447728078},44.803710085564205,{"$f":"SchoolEnrolEduAttain!I59-SchoolEnrolEduAttain!L59","v":-9},0.2008762216970913,1.645,"Graduate or Professional Degree",null,"N",{"$f":"SchoolEnrolEduAttain!J59/1.645","v":62.205412952991864},{"$f":"SchoolEnrolEduAttain!M59/1.645","v":37.057144447728078},72.406804619952894,{"$f":"SchoolEnrolEduAttain!I59-SchoolEnrolEduAttain!L59","v":-9},0.12429770996302053,1.645]
["N",{"$f":"HousingCharacteristics!D32/1.645","v":110.63829787234043},{"$f":"HousingCharacteristics!J32/1.645","v":97.872340425531917},147.71536134221091,{"$f":"HousingCharacteristics!C32-HousingCharacteristics!I32","v":152},1.0290060466213997,1.645,"Total Housing Units",null,"N",{"$f":"HousingCharacteristics!G32/1.645","v":110.63829787234043},{"$f":"HousingCharacteristics!J32/1.645","v":97.872340425531917},{"$f":"SQRT((K62^2)+(L62^2))","v":147.71536134221091},{"$f":"HousingCharacteristics!F32-HousingCharacteristics!I32","v":170},{"$f":"ABS((N62/M62))","v":1.1508620258265656},1.645]
["Y",{"$f":"HousingCharacteristics!D33/1.645","v":97.264437689969597},{"$f":"HousingCharacteristics!J33/1.645","v":80.243161094224916},126.09256814554817,{"$f":"HousingCharacteristics!C33-HousingCharacteristics!I33","v":210},1.6654431191979355,1.645,"Occupied Units",null,"N",{"$f":"HousingCharacteristics!G33/1.645","v":97.264437689969597},{"$f":"HousingCharacteristics!J33/1.645","v":80.243161094224916},{"$f":"SQRT((K63^2)+(L63^2))","v":126.09256814554817},{"$f":"HousingCharacteristics!F33-HousingCharacteristics!I33","v":139},{"$f":"ABS((N63/M63))","v":1.1023647312786335},1.645]
["N",{"$f":"HousingCharacteristics!D34/1.645","v":105.77507598784194},{"$f":"HousingCharacteristics!J34/1.645","v":77.81155015197568},131.31261948985392,{"$f":"HousingCharacteristics!C34-HousingCharacteristics!I34","v":207},1.5763907597319251,1.645,"Owner Occupied",null,"N",{"$f":"HousingCharacteristics!G34/1.645","v":105.77507598784194},{"$f":"HousingCharacteristics!J34/1.645","v":77.81155015197568},131.31261948985392,{"$f":"HousingCharacteristics!F34-HousingCharacteristics!I34","v":214},1.629698659819478,1.645]
["N",{"$f":"HousingCharacteristics!D35/1.645","v":75.379939209726444},{"$f":"HousingCharacteristics!J35/1.645","v":74.164133738601819},105.74712274317099,{"$f":"HousingCharacteristics!C35-HousingCharacteristics!I35","v":3},2.836956620830363E-2,1.645,"Renter Occupied",null,"N",{"$f":"HousingCharacteristics!G35/1.645","v":75.379939209726444},{"$f":"HousingCharacteristics!J35/1.645","v":74.164133738601819},105.74712274317099,{"$f":"HousingCharacteristics!F35-HousingCharacteristics!I35","v":-75},0.70923915520759073,1.645]
["N",{"$f":"HousingCharacteristics!D36/1.645","v":75.379939209726444},{"$f":"HousingCharacteristics!J36/1.645","v":63.829787234042556},98.77437407346703,{"$f":"HousingCharacteristics!C36-HousingCharacteristics!I36","v":-58},0.5871968366700091,1.645,"Vacant Units",null,"N",{"$f":"HousingCharacteristics!G36/1.645","v":75.379939209726444},{"$f":"HousingCharacteristics!J36/1.645","v":63.829787234042556},98.77437407346703,{"$f":"HousingCharacteristics!F36-HousingCharacteristics!I36","v":31},0.31384658511672897,1.645]
["N",{"$f":"HousingCharacteristics!D37/1.645","v":41.337386018237083},{"$f":"HousingCharacteristics!J37/1.645","v":10.334346504559271},42.609602210030538,{"$f":"HousingCharacteristics!C37-HousingCharacteristics!I37","v":29},0.68059776425636842,1.645,"Vacant For Sale",null,"N",{"$f":"HousingCharacteristics!G37/1.645","v":41.337386018237083},{"$f":"HousingCharacteristics!J37/1.645","v":10.334346504559271},42.609602210030538,{"$f":"HousingCharacteristics!F37-HousingCharacteristics!I37","v":45},1.0560999790185028,1.645]
[{"$f":"IF(F68>G68,\"Y\",\"N\")","v":"N"},{"$f":"HousingCharacteristics!D38/1.645","v":6.6869300911854106},{"$f":"HousingCharacteristics!J38/1.645","v":7.2948328267477205},9.8959395720970864,{"$f":"HousingCharacteristics!C38-HousingCharacteristics!I38","v":10},{"$f":"ABS((E68/D68))","v":1.0105154671918497},1.645,"Vacant For Rent",null,"N",{"$f":"HousingCharacteristics!G38/1.645","v":6.6869300911854106},{"$f":"HousingCharacteristics!J38/1.645","v":7.2948328267477205},9.8959395720970864,{"$f":"HousingCharacteristics!F38-HousingCharacteristics!I38","v":0},0,1.645]
["N",{"$f":"HousingCharacteristics!D39/1.645","v":41.337386018237083},{"$f":"HousingCharacteristics!J39/1.645","v":59.574468085106382},72.511355872332857,{"$f":"HousingCharacteristics!C39-HousingCharacteristics!I39","v":-93},1.2825577301814695,1.645,"Vacant Seasonal",null,{"$f":"IF(O69>P69,\"Y\",\"N\")","v":"N"},{"$f":"HousingCharacteristics!G39/1.645","v":41.337386018237083},{"$f":"HousingCharacteristics!J39/1.645","v":59.574468085106382},72.511355872332857,{"$f":"HousingCharacteristics!F39-HousingCharacteristics!I39","v":-84},1.1584392401639079,1.645]
["N",{"$f":"HousingCharacteristics!E71/1.645","v":94.224924012158056},{"$f":"HousingCharacteristics!K71/1.645","v":97.872340425531917},135.85776137368146,{"$f":"HousingCharacteristics!D71-HousingCharacteristics!J71","v":152},1.1188171986870794,1.645,"Total Housing Units",null,"N",{"$f":"HousingCharacteristics!H71/1.645","v":110.63829787234043},{"$f":"HousingCharacteristics!K71/1.645","v":97.872340425531917},147.71536134221091,{"$f":"HousingCharacteristics!G71-HousingCharacteristics!J71","v":170},1.1508620258265656,1.645]
["N",{"$f":"HousingCharacteristics!E72/1.645","v":103.34346504559271},{"$f":"HousingCharacteristics!K72/1.645","v":78.419452887538},129.72849478356878,{"$f":"HousingCharacteristics!D72-HousingCharacteristics!J72","v":-34},0.26208582822704879,1.645,"Single Family Units",null,"N",{"$f":"HousingCharacteristics!H72/1.645","v":103.34346504559271},{"$f":"HousingCharacteristics!K72/1.645","v":78.419452887538},129.72849478356878,{"$f":"HousingCharacteristics!G72-HousingCharacteristics!J72","v":29},0.22354379466424748,1.645]
["N",{"$f":"HousingCharacteristics!E73/1.645","v":102.12765957446808},{"$f":"HousingCharacteristics!K73/1.645","v":71.732522796352583},124.80229836380292,{"$f":"HousingCharacteristics!D73-HousingCharacteristics!J73","v":-30},0.24038018845253142,1.645,"SF Owner Occ.",null,"N",{"$f":"HousingCharacteristics!H73/1.645","v":85.714285714285708},{"$f":"HousingCharacteristics!K73/1.645","v":71.732522796352583},111.76982420241809,{"$f":"HousingCharacteristics!G73-HousingCharacteristics!J73","v":7},6.2628710834534515E-2,1.645]
["N",{"$f":"HousingCharacteristics!E74/1.645","v":52.887537993920972},{"$f":"HousingCharacteristics!K74/1.645","v":45.59270516717325},69.826831802103271,{"$f":"HousingCharacteristics!D74-HousingCharacteristics!J74","v":3},4.2963427132170648E-2,1.645,"SF Renter Occ.",null,"N",{"$f":"HousingCharacteristics!H74/1.645","v":38.90577507598784},{"$f":"HousingCharacteristics!K74/1.645","v":45.59270516717325},59.936250289154252,{"$f":"HousingCharacteristics!G74-HousingCharacteristics!J74","v":-8},0.1334751500369992,1.645]
["N",{"$f":"HousingCharacteristics!E75/1.645","v":90.211618963861682},{"$f":"HousingCharacteristics!K75/1.645","v":82.109636498008726},121.98413258254573,{"$f":"HousingCharacteristics!D75-HousingCharacteristics!J75","v":-23},0.18854911301218685,1.645,"Multi-family Units",null,"N",{"$f":"HousingCharacteristics!H75/1.645","v":74.392989863967685},{"$f":"HousingCharacteristics!K75/1.645","v":82.109636498008726},110.79850787233339,{"$f":"HousingCharacteristics!G75-HousingCharacteristics!J75","v":-116},1.046945507006827,1.645]
["N",{"$f":"HousingCharacteristics!E76/1.645","v":28.931316800707098},{"$f":"HousingCharacteristics!K76/1.645","v":21.276595744680851},35.912596930679463,{"$f":"HousingCharacteristics!D76-HousingCharacteristics!J76","v":49},1.3644237450881813,1.645,"MF Owner Occ.",null,"N",{"$f":"HousingCharacteristics!H76/1.645","v":18.186352950336282},{"$f":"HousingCharacteristics!K76/1.645","v":21.276595744680851},27.989943910568602,{"$f":"HousingCharacteristics!G76-HousingCharacteristics!J76","v":-8},0.28581693573809963,1.645]
["N",{"$f":"HousingCharacteristics!E77/1.645","v":80.204006289482592},{"$f":"HousingCharacteristics!K77/1.645","v":76.293609733883386},110.69506543251812,{"$f":"HousingCharacteristics!D77-HousingCharacteristics!J77","v":-43},0.38845453346981978,1.645,"MF Renter Occ.",null,"N",{"$f":"HousingCharacteristics!H77/1.645","v":66.303213152272249},{"$f":"HousingCharacteristics!K77/1.645","v":76.293609733883386},101.07834070928229,{"$f":"HousingCharacteristics!G77-HousingCharacteristics!J77","v":-112},1.1080514303467859,1.645]
["Y",{"$f":"HousingCharacteristics!E78/1.645","v":77.492697774966331},{"$f":"HousingCharacteristics!K78/1.645","v":55.798053953452339},95.491052111884542,{"$f":"HousingCharacteristics!D78-HousingCharacteristics!J78","v":209},2.1886867447550982,1.645,"Mobile Home & Other",null,"Y",{"$f":"HousingCharacteristics!H78/1.645","v":82.338849098693075},{"$f":"HousingCharacteristics!K78/1.645","v":55.798053953452339},99.464108581385915,{"$f":"HousingCharacteristics!G78-HousingCharacteristics!J78","v":257},2.5838466122652806,1.645]
["N",{"$f":"HousingCharacteristics!$D88/1.645","v":0},{"$f":"HousingCharacteristics!L88/1.645","v":21.88449848024316},21.88449848024316,{"$f":"HousingCharacteristics!$D88-HousingCharacteristics!$K88","v":-22},1.0052777777777779,1.645,"No Bedrooms",null,"N",{"$f":"HousingCharacteristics!H88/1.645","v":12.1580547112462},{"$f":"HousingCharacteristics!L88/1.645","v":21.88449848024316},25.034966908175075,{"$f":"HousingCharacteristics!G88-HousingCharacteristics!K88","v":-9},0.35949717980498241,1.645]
["Y",{"$f":"HousingCharacteristics!$D89/1.645","v":0},{"$f":"HousingCharacteristics!L89/1.645","v":63.829787234042556},63.829787234042556,{"$f":"HousingCharacteristics!$D89-HousingCharacteristics!$K89","v":-324},5.0759999999999996,1.645,"1 Bedroom",null,"N",{"$f":"HousingCharacteristics!H89/1.645","v":64.437689969604861},{"$f":"HousingCharacteristics!L89/1.645","v":63.829787234042556},90.699821537652738,{"$f":"HousingCharacteristics!G89-HousingCharacteristics!K89","v":-35},0.38588830062328455,1.645]
["Y",{"$f":"HousingCharacteristics!$D90/1.645","v":0},{"$f":"HousingCharacteristics!L90/1.645","v":86.322188449848028},86.322188449848028,{"$f":"HousingCharacteristics!$D90-HousingCharacteristics!$K90","v":-650},7.5299295774647881,1.645,"2 Bedrooms",null,"N",{"$f":"HousingCharacteristics!H90/1.645","v":109.42249240121581},{"$f":"HousingCharacteristics!L90/1.645","v":86.322188449848028},139.37288854746899,{"$f":"HousingCharacteristics!G90-HousingCharacteristics!K90","v":-25},0.17937491473806438,1.645]
["Y",{"$f":"HousingCharacteristics!$D91/1.645","v":0},{"$f":"HousingCharacteristics!L91/1.645","v":79.027355623100306},79.027355623100306,{"$f":"HousingCharacteristics!$D91-HousingCharacteristics!$K91","v":-661},8.3641923076923081,1.645,"3 Bedrooms",null,"N",{"$f":"HousingCharacteristics!H91/1.645","v":94.224924012158056},{"$f":"HousingCharacteristics!L91/1.645","v":79.027355623100306},122.97828768476541,{"$f":"HousingCharacteristics!G91-HousingCharacteristics!K91","v":106},0.8619407701602867,1.645]
["Y",{"$f":"HousingCharacteristics!$D92/1.645","v":0},{"$f":"HousingCharacteristics!L92/1.645","v":48.57519453124128},48.57519453124128,{"$f":"HousingCharacteristics!$D92-HousingCharacteristics!$K92","v":-175},3.6026618460055415,1.645,"4+ Bedrooms",null,"N",{"$f":"HousingCharacteristics!H92/1.645","v":57.142857142857139},{"$f":"HousingCharacteristics!L92/1.645","v":48.57519453124128},74.999037635138436,{"$f":"HousingCharacteristics!G92-HousingCharacteristics!K92","v":38},0.50667316805937646,1.645]
["N",{"$f":"'HHIncome-10YearComparison'!$F$30/1.645","v":9.1185410334346511},{"$f":"'HHIncome-10YearComparison'!$M$30/1.645","v":10.334346504559271},{"$f":"SQRT((B83^2)+(C83^2))","v":13.782108265963082},{"$f":"'HHIncome-10YearComparison'!$E$30-'HHIncome-10YearComparison'!$L$30","v":-3},0.21767351860157244,1.645,"Household Income Less than $10,000",null,"N",{"$f":"'HHIncome-10YearComparison'!$F$30/1.645","v":9.1185410334346511},{"$f":"'HHIncome-10YearComparison'!$J$30/1.645","v":5.4711246200607899},{"$f":"SQRT((K83^2)+(L83^2))","v":10.63395482342608},{"$f":"'HHIncome-10YearComparison'!$E$30-'HHIncome-10YearComparison'!$I$30","v":7},0.65826873597199642,1.645]
["N",{"$f":"'HHIncome-10YearComparison'!$F$31/1.645","v":3.0395136778115499},{"$f":"'HHIncome-10YearComparison'!$M$31/1.645","v":32.218844984802431},{"$f":"SQRT((B84^2)+(C84^2))","v":32.361900678920762},{"$f":"'HHIncome-10YearComparison'!$E$31-'HHIncome-10YearComparison'!$L$31","v":-37},1.1433197440130676,1.645,"Household Income $10,000 to $14,999",null,"N",{"$f":"'HHIncome-10YearComparison'!$F$31/1.645","v":3.0395136778115499},{"$f":"'HHIncome-10YearComparison'!$J$31/1.645","v":4.2553191489361701},{"$f":"SQRT((K84^2)+(L84^2))","v":5.2293770620319915},{"$f":"'HHIncome-10YearComparison'!$E$31-'HHIncome-10YearComparison'!$I$31","v":-5},0.95613682866791372,1.645]
["Y",{"$f":"'HHIncome-10YearComparison'!$F$32/1.645","v":19.309884710356947},{"$f":"'HHIncome-10YearComparison'!$M$32/1.645","v":5.1939232494331495},19.996211797445014,{"$f":"'HHIncome-10YearComparison'!$E$32-'HHIncome-10YearComparison'!$L$32","v":45},2.2504262535241706,1.645,"Household Income $15,000 to $24,999",null,"N",{"$f":"'HHIncome-10YearComparison'!$F$32/1.645","v":19.309884710356947},{"$f":"'HHIncome-10YearComparison'!$J$32/1.645","v":21.509794544625084},28.905759095364715,{"$f":"'HHIncome-10YearComparison'!$E$32-'HHIncome-10YearComparison'!$I$32","v":-11},0.3805470032359034,1.645]
["Y",{"$f":"'HHIncome-10YearComparison'!$F$33/1.645","v":22.980009934876353},{"$f":"'HHIncome-10YearComparison'!$M$33/1.645","v":9.5151828829778289},24.872063885080589,{"$f":"'HHIncome-10YearComparison'!$E$33-'HHIncome-10YearComparison'!$L$33","v":51},2.0504932857860725,1.645,"Household Income $25,000 to $34,999",null,"N",{"$f":"'HHIncome-10YearComparison'!$F$33/1.645","v":22.980009934876353},{"$f":"'HHIncome-10YearComparison'!$J$33/1.645","v":22.127993584439267},31.901864470278241,{"$f":"'HHIncome-10YearComparison'!$E$33-'HHIncome-10YearComparison'!$I$33","v":0},0,1.645]
["Y",{"$f":"'HHIncome-10YearComparison'!$F$34/1.645","v":21.415094168764178},{"$f":"'HHIncome-10YearComparison'!$M$34/1.645","v":15.294523556728418},26.315940209013206,{"$f":"'HHIncome-10YearComparison'!$E$34-'HHIncome-10YearComparison'!$L$34","v":45},1.7099902052744256,1.645,"Household Income $35,000 to $49,999",null,"N",{"$f":"'HHIncome-10YearComparison'!$F$34/1.645","v":21.415094168764178},{"$f":"'HHIncome-10YearComparison'!$J$34/1.645","v":18.145667546017386},28.069048949824182,{"$f":"'HHIncome-10YearComparison'!$E$34-'HHIncome-10YearComparison'!$I$34","v":31},1.1044193216312794,1.645]
["N",{"$f":"'HHIncome-10YearComparison'!$F$35/1.645","v":26.308917943322069},{"$f":"'HHIncome-10YearComparison'!$M$35/1.645","v":23.21201591736995},35.084994603059151,{"$f":"'HHIncome-10YearComparison'!$E$35-'HHIncome-10YearComparison'!$L$35","v":56},1.5961239451100617,1.645,"Household Income $50,000 to $74,999",null,"N",{"$f":"'HHIncome-10YearComparison'!$F$35/1.645","v":26.308917943322069},{"$f":"'HHIncome-10YearComparison'!$J$35/1.645","v":21.791426539738506},34.161753965293904,{"$f":"'HHIncome-10YearComparison'!$E$35-'HHIncome-10YearComparison'!$I$35","v":52},1.5221700868412253,1.645]
["N",{"$f":"'HHIncome-10YearComparison'!$F$36/1.645","v":17.021276595744681},{"$f":"'HHIncome-10YearComparison'!$M$36/1.645","v":39.513677811550153},43.023883961630389,{"$f":"'HHIncome-10YearComparison'!$E$36-'HHIncome-10YearComparison'!$L$36","v":-44},1.0226877712677018,1.645,"Household Income $75,000 to $99,999",null,"N",{"$f":"'HHIncome-10YearComparison'!$F$36/1.645","v":17.021276595744681},{"$f":"'HHIncome-10YearComparison'!$J$36/1.645","v":17.62917933130699},24.505342699995591,{"$f":"'HHIncome-10YearComparison'!$E$36-'HHIncome-10YearComparison'!$I$36","v":-4},0.16322971071939832,1.645]
["N",{"$f":"'HHIncome-10YearComparison'!$F$37/1.645","v":19.847814853877821},{"$f":"'HHIncome-10YearComparison'!$M$37/1.645","v":21.415094168764178},29.1983220875935,{"$f":"'HHIncome-10YearComparison'!$E$37-'HHIncome-10YearComparison'!$L$37","v":-14},0.47947960701305725,1.645,"Household Income $100,000 to $149,999",null,"N",{"$f":"'HHIncome-10YearComparison'!$F$37/1.645","v":19.847814853877821},{"$f":"'HHIncome-10YearComparison'!$J$37/1.645","v":24.087067180740366},31.210936542233281,{"$f":"'HHIncome-10YearComparison'!$E$37-'HHIncome-10YearComparison'!$I$37","v":-26},0.8330413271904844,1.645]
["N",{"$f":"'HHIncome-10YearComparison'!$F$38/1.645","v":13.98176291793313},{"$f":"'HHIncome-10YearComparison'!$M$38/1.645","v":18.844984802431611},23.465360566101864,{"$f":"'HHIncome-10YearComparison'!$E$38-'HHIncome-10YearComparison'!$L$38","v":-33},1.4063282729894169,1.645,"Household Income $150,000 to $199,999",null,"N",{"$f":"'HHIncome-10YearComparison'!$F$38/1.645","v":13.98176291793313},{"$f":"'HHIncome-10YearComparison'!$J$38/1.645","v":8.5106382978723403},16.368282088554725,{"$f":"'HHIncome-10YearComparison'!$E$38-'HHIncome-10YearComparison'!$I$38","v":3},0.18328129878075017,1.645]
["Y",{"$f":"'HHIncome-10YearComparison'!$F$39/1.645","v":11.550151975683891},{"$f":"'HHIncome-10YearComparison'!$M$39/1.645","v":24.316109422492399},26.919866049221309,{"$f":"'HHIncome-10YearComparison'!$E$39-'HHIncome-10YearComparison'!$L$39","v":-81},3.0089302766921837,1.645,"Household Income Greater than $200,000",null,"N",{"$f":"'HHIncome-10YearComparison'!$F$39/1.645","v":11.550151975683891},{"$f":"'HHIncome-10YearComparison'!$J$39/1.645","v":10.94224924012158},15.910337177267355,{"$f":"'HHIncome-10YearComparison'!$E$39-'HHIncome-10YearComparison'!$I$39","v":-11},0.6913744113303123,1.645]
["N",{"$f":"'HHIncome-10YearComparison'!$F$41/1.645","v":6855.9270516717324},{"$f":"'HHIncome-10YearComparison'!$M$41/1.645","v":3475.9878419452889},7686.7566121996942,{"$f":"'HHIncome-10YearComparison'!$E$41-'HHIncome-10YearComparison'!$I$41","v":-11250},1.4635561612741923,1.645,"Median Household Income",null,"N",{"$f":"'HHIncome-10YearComparison'!$F$41/1.645","v":6855.9270516717324},{"$f":"'HHIncome-10YearComparison'!$J$41/1.645","v":8327.0516717325227},10786.265585528092,{"$f":"'HHIncome-10YearComparison'!$E$41-'HHIncome-10YearComparison'!$I$41","v":-11250},1.042993046184038,1.645]
["Y",{"$f":"PovertyCharacteristics!$E$54/1.645","v":180.54711246200608},{"$f":"PovertyCharacteristics!$M54/1.645","v":138.60182370820669},227.61310452961419,{"$f":"PovertyCharacteristics!$D54-PovertyCharacteristics!$L54","v":416},1.8276627826842686,1.645,"Total Households Below Poverty Level",null,"Y",{"$f":"PovertyCharacteristics!$I$54/1.645","v":176.89969604863222},{"$f":"PovertyCharacteristics!$M54/1.645","v":138.60182370820669},224.73087904722678,{"$f":"PovertyCharacteristics!$H54-PovertyCharacteristics!$L54","v":486},2.1625866550269133,1.645]
["N",{"$f":"PovertyCharacteristics!$E$55/1.645","v":81.458966565349542},{"$f":"PovertyCharacteristics!$M55/1.645","v":64.437689969604861},103.86423408716617,{"$f":"PovertyCharacteristics!$D55-PovertyCharacteristics!$L55","v":75},0.72209650087110466,1.645,"Family Households Below Poverty Level",null,"N",{"$f":"PovertyCharacteristics!$I$55/1.645","v":57.750759878419451},{"$f":"PovertyCharacteristics!$M55/1.645","v":64.437689969604861},86.529568097580238,{"$f":"PovertyCharacteristics!$H55-PovertyCharacteristics!$L55","v":43},0.49693995873767083,1.645]
["Y",{"$f":"PovertyCharacteristics!$E$56/1.645","v":52.27963525835866},{"$f":"PovertyCharacteristics!$M56/1.645","v":32.218844984802431},61.410212789907732,{"$f":"PovertyCharacteristics!$D56-PovertyCharacteristics!$L56","v":108},1.7586651322880438,1.645,"Married Couple Fam HH Below Poverty Level",null,"N",{"$f":"PovertyCharacteristics!$I$56/1.645","v":42.553191489361701},{"$f":"PovertyCharacteristics!$M56/1.645","v":32.218844984802431},53.374414077205699,{"$f":"PovertyCharacteristics!$H56-PovertyCharacteristics!$L56","v":47},0.88057172734514411,1.645]
["N",{"$f":"PovertyCharacteristics!$E$57/1.645","v":48.632218844984799},{"$f":"PovertyCharacteristics!$M57/1.645","v":23.100303951367781},53.839732098442617,{"$f":"PovertyCharacteristics!$D57-PovertyCharacteristics!$L57","v":69},1.2815814141466708,1.645,"M C Fam HH w/Children Below Poverty Level",null,"N",{"$f":"PovertyCharacteristics!$I$57/1.645","v":32.826747720364743},{"$f":"PovertyCharacteristics!$M57/1.645","v":23.100303951367781},40.139997615122624,{"$f":"PovertyCharacteristics!$H57-PovertyCharacteristics!$L57","v":20},0.49825613324065221,1.645]
["N",{"$f":"PovertyCharacteristics!$E$58/1.645","v":12.76595744680851},{"$f":"PovertyCharacteristics!$M58/1.645","v":18.237082066869302},22.261195651793987,{"$f":"PovertyCharacteristics!$D58-PovertyCharacteristics!$L58","v":-13},0.58397582067665599,1.645,"Male Head of Family HH  Below Poverty Level",null,"N",{"$f":"PovertyCharacteristics!$I$58/1.645","v":38.297872340425535},{"$f":"PovertyCharacteristics!$M58/1.645","v":18.237082066869302},42.418370880047448,{"$f":"PovertyCharacteristics!$H58-PovertyCharacteristics!$L58","v":33},0.77796481371995319,1.645]
["N",{"$f":"PovertyCharacteristics!$E$59/1.645","v":12.76595744680851},{"$f":"PovertyCharacteristics!$M59/1.645","v":18.237082066869302},22.261195651793987,{"$f":"PovertyCharacteristics!$D59-PovertyCharacteristics!$L59","v":-26},1.167951641353312,1.645,"Male Head of HH w/Children Below Poverty Level",null,"N",{"$f":"PovertyCharacteristics!$I$59/1.645","v":35.866261398176292},{"$f":"PovertyCharacteristics!$M59/1.645","v":18.237082066869302},40.236548920055711,{"$f":"PovertyCharacteristics!$H59-PovertyCharacteristics!$L59","v":20},0.4970605217593872,1.645]
["N",{"$f":"PovertyCharacteristics!$E$60/1.645","v":52.887537993920972},{"$f":"PovertyCharacteristics!$M60/1.645","v":55.927051671732521},76.973545999590499,{"$f":"PovertyCharacteristics!$D60-PovertyCharacteristics!$L60","v":-20},0.2598295263687917,1.645,"Female Head of Family HH  Below Poverty Level",null,"N",{"$f":"PovertyCharacteristics!$I$60/1.645","v":43.768996960486319},{"$f":"PovertyCharacteristics!$M60/1.645","v":55.927051671732521},71.01802731433547,{"$f":"PovertyCharacteristics!$H60-PovertyCharacteristics!$L60","v":-37},0.52099447702529045,1.645]
["N",{"$f":"PovertyCharacteristics!$E$61/1.645","v":53.495440729483285},{"$f":"PovertyCharacteristics!$M61/1.645","v":51.063829787234042},73.954559638884135,{"$f":"PovertyCharacteristics!$D61-PovertyCharacteristics!$L61","v":-5},6.7609083529328179E-2,1.645,"Female Head of HH w/Children Below Poverty Level",null,"N",{"$f":"PovertyCharacteristics!$I$61/1.645","v":43.768996960486319},{"$f":"PovertyCharacteristics!$M61/1.645","v":51.063829787234042},67.255035554720138,{"$f":"PovertyCharacteristics!$H61-PovertyCharacteristics!$L61","v":-8},0.11895020103722982,1.645]
["Y",{"$f":"PovertyCharacteristics!$E$62/1.645","v":148.93617021276594},{"$f":"PovertyCharacteristics!$M62/1.645","v":122.18844984802432},192.64475096381199,{"$f":"PovertyCharacteristics!$D62-PovertyCharacteristics!$L62","v":341},1.7700975411681801,1.645,"Non-Family HH  Below Poverty Level",null,"Y",{"$f":"PovertyCharacteristics!$I$62/1.645","v":161.70212765957447},{"$f":"PovertyCharacteristics!$M62/1.645","v":122.18844984802432},202.67608483956974,{"$f":"PovertyCharacteristics!$H62-PovertyCharacteristics!$L62","v":443},2.1857536884564404,1.645]
["N",{"$f":"PovertyCharacteristics!$E$68/1.645","v":267.47720364741639},{"$f":"PovertyCharacteristics!$M68/1.645","v":263.22188449848022},375.27298723725471,{"$f":"PovertyCharacteristics!$D68-PovertyCharacteristics!$L68","v":-518},1.3803285011625699,1.645,"Total Households At or Above Poverty Level",null,"N",{"$f":"PovertyCharacteristics!$I$68/1.645","v":255.92705167173253},{"$f":"PovertyCharacteristics!$M68/1.645","v":263.22188449848022},367.12997188504903,{"$f":"PovertyCharacteristics!$H68-PovertyCharacteristics!$L68","v":-167},0.45487977770523425,1.645]
["N",{"$f":"PovertyCharacteristics!$E$69/1.645","v":151.36778115501519},{"$f":"PovertyCharacteristics!$M69/1.645","v":171.42857142857142},228.69184566536995,{"$f":"PovertyCharacteristics!$D69-PovertyCharacteristics!$L69","v":100},0.43726963551784681,1.645,"Family Households At or Above Poverty Level",null,"Y",{"$f":"PovertyCharacteristics!$I$69/1.645","v":189.66565349544072},{"$f":"PovertyCharacteristics!$M69/1.645","v":171.42857142857142},255.65761326018318,{"$f":"PovertyCharacteristics!$H69-PovertyCharacteristics!$L69","v":536},2.096554032421917,1.645]
["N",{"$f":"PovertyCharacteristics!$E$70/1.645","v":144.07294832826747},{"$f":"PovertyCharacteristics!$M70/1.645","v":203.64741641337386},249.45798173608662,{"$f":"PovertyCharacteristics!$D70-PovertyCharacteristics!$L70","v":203},0.81376430045346593,1.645,"Married Couple Fam HH At or Above Poverty Level",null,"N",{"$f":"PovertyCharacteristics!$I$70/1.645","v":156.23100303951367},{"$f":"PovertyCharacteristics!$M70/1.645","v":203.64741641337386},256.67176806687297,{"$f":"PovertyCharacteristics!$H70-PovertyCharacteristics!$L70","v":211},0.82206158312287114,1.645]
["Y",{"$f":"PovertyCharacteristics!$E$71/1.645","v":99.088145896656528},{"$f":"PovertyCharacteristics!$M71/1.645","v":96.656534954407292},138.42307035544923,{"$f":"PovertyCharacteristics!$D71-PovertyCharacteristics!$L71","v":355},2.5646013998130113,1.645,"M C Fam HH w/Children At or Above Poverty Level",null,"N",{"$f":"PovertyCharacteristics!$I$71/1.645","v":113.06990881458967},{"$f":"PovertyCharacteristics!$M71/1.645","v":96.656534954407292},148.75244545462834,{"$f":"PovertyCharacteristics!$H71-PovertyCharacteristics!$L71","v":202},1.3579608683583824,1.645]
["N",{"$f":"PovertyCharacteristics!$E$72/1.645","v":81.458966565349542},{"$f":"PovertyCharacteristics!$M72/1.645","v":90.577507598784194},121.8189152664829,{"$f":"PovertyCharacteristics!$D72-PovertyCharacteristics!$L72","v":28},0.22984936238144196,1.645,"Male Head of Family HH  At or Above Poverty Level",null,"N",{"$f":"PovertyCharacteristics!$I$72/1.645","v":94.224924012158056},{"$f":"PovertyCharacteristics!$M72/1.645","v":90.577507598784194},130.70050186554286,{"$f":"PovertyCharacteristics!$H72-PovertyCharacteristics!$L72","v":-9},6.8859720288286894E-2,1.645]
["N",{"$f":"PovertyCharacteristics!$E$73/1.645","v":88.145896656534958},{"$f":"PovertyCharacteristics!$M73/1.645","v":88.145896656534958},124.65712251920898,{"$f":"PovertyCharacteristics!$D73-PovertyCharacteristics!$L73","v":-10},8.0220045175991087E-2,1.645,"Male Head of HH w/Children At or Above Poverty Level",null,"N",{"$f":"PovertyCharacteristics!$I$73/1.645","v":91.79331306990882},{"$f":"PovertyCharacteristics!$M73/1.645","v":88.145896656534958},127.26237237194202,{"$f":"PovertyCharacteristics!$H73-PovertyCharacteristics!$L73","v":-3},2.3573346497361231E-2,1.645]
["N",{"$f":"PovertyCharacteristics!$E$74/1.645","v":75.98784194528875},{"$f":"PovertyCharacteristics!$M74/1.645","v":112.46200607902736},135.72713411407969,{"$f":"PovertyCharacteristics!$D74-PovertyCharacteristics!$L74","v":-131},0.96517178274679771,1.645,"Female Head of Family HH  At or Above Poverty Level",null,"Y",{"$f":"PovertyCharacteristics!$I$74/1.645","v":119.75683890577507},{"$f":"PovertyCharacteristics!$M74/1.645","v":112.46200607902736},164.28451928292861,{"$f":"PovertyCharacteristics!$H74-PovertyCharacteristics!$L74","v":334},2.0330582665843862,1.645]
["N",{"$f":"PovertyCharacteristics!$E$75/1.645","v":72.948328267477208},{"$f":"PovertyCharacteristics!$M75/1.645","v":75.98784194528875},105.33570487029458,{"$f":"PovertyCharacteristics!$D75-PovertyCharacteristics!$L75","v":-78},0.74048965729185112,1.645,"Female Head of HH w/Children At or Above Poverty Level",null,"Y",{"$f":"PovertyCharacteristics!$I$75/1.645","v":104.55927051671732},{"$f":"PovertyCharacteristics!$M75/1.645","v":75.98784194528875},129.25476074207191,{"$f":"PovertyCharacteristics!$H75-PovertyCharacteristics!$L75","v":291},2.2513677510160806,1.645]
["Y",{"$f":"PovertyCharacteristics!$E$76/1.645","v":223.10030395136778},{"$f":"PovertyCharacteristics!$M76/1.645","v":286.322188449848},362.97953278649607,{"$f":"PovertyCharacteristics!$D76-PovertyCharacteristics!$L76","v":-618},1.7025753360135227,1.645,"Non-Family HH  At or Above Poverty Level",null,"Y",{"$f":"PovertyCharacteristics!$I$76/1.645","v":199.39209726443769},{"$f":"PovertyCharacteristics!$M76/1.645","v":286.322188449848},348.90916303562631,{"$f":"PovertyCharacteristics!$H76-PovertyCharacteristics!$L76","v":-703},2.0148510686382242,1.645]
["Y",{"$f":"PovertyCharacteristics!$E24/1.645","v":403.03951367781156},{"$f":"PovertyCharacteristics!M24/1.645","v":266.26139817629178},483.04863289780735,{"$f":"PovertyCharacteristics!H24-PovertyCharacteristics!L24","v":847},1.7534466352152773,1.645,"Total Individuals Living in Poverty",null,{"$f":"IF(O112>P112,\"Y\",\"N\")","v":"Y"},{"$f":"PovertyCharacteristics!$I24/1.645","v":380.54711246200606},{"$f":"PovertyCharacteristics!$M24/1.645","v":266.26139817629178},464.44723808196392,{"$f":"PovertyCharacteristics!$H24-PovertyCharacteristics!$L24","v":847},1.8236732411153334,1.645]
["N",{"$f":"PovertyCharacteristics!$E25/1.645","v":55.57241865305933},{"$f":"PovertyCharacteristics!M25/1.645","v":65.656309744926958},86.017700063839698,{"$f":"PovertyCharacteristics!H25-PovertyCharacteristics!L25","v":54},0.62777777085324138,1.645,"Individuals Under 5 yrs. Living in Poverty",null,"N",{"$f":"PovertyCharacteristics!$I25/1.645","v":67.125786087607025},{"$f":"PovertyCharacteristics!$M25/1.645","v":65.656309744926958},93.896869847726904,{"$f":"PovertyCharacteristics!$H25-PovertyCharacteristics!$L25","v":54},0.57509904310518667,1.645]
["N",{"$f":"PovertyCharacteristics!$E26/1.645","v":133.55472299729843},{"$f":"PovertyCharacteristics!M26/1.645","v":64.755196434759384},148.42540045487291,{"$f":"PovertyCharacteristics!H26-PovertyCharacteristics!L26","v":198},1.3340034751006091,1.645,"Individuals 5 to 17 yrs. Living in Poverty",null,"N",{"$f":"PovertyCharacteristics!$I26/1.645","v":130.09260573607514},{"$f":"PovertyCharacteristics!$M26/1.645","v":64.755196434759384},145.31800140555941,{"$f":"PovertyCharacteristics!$H26-PovertyCharacteristics!$L26","v":198},1.3625290609895846,1.645]
["N",{"$f":"PovertyCharacteristics!$E27/1.645","v":286.33315888352968},{"$f":"PovertyCharacteristics!M27/1.645","v":197.12083982449087},347.62523408022793,{"$f":"PovertyCharacteristics!H27-PovertyCharacteristics!L27","v":458},1.3175107992715478,1.645,"Individuals 18 to 64 yrs. Living in Poverty",null,"N",{"$f":"PovertyCharacteristics!$I27/1.645","v":243.05544817463297},{"$f":"PovertyCharacteristics!$M27/1.645","v":197.12083982449087},312.94180989520123,{"$f":"PovertyCharacteristics!$H27-PovertyCharacteristics!$L27","v":458},1.4635308722518612,1.645]
["N",{"$f":"PovertyCharacteristics!$E28/1.645","v":43.280796380127811},{"$f":"PovertyCharacteristics!M28/1.645","v":59.939333033159848},73.93207003566269,{"$f":"PovertyCharacteristics!H28-PovertyCharacteristics!L28","v":-64},0.86565951648761152,1.645,"Individuals 65 to 74 yrs. Living in Poverty",null,"N",{"$f":"PovertyCharacteristics!$I28/1.645","v":45.132428433484705},{"$f":"PovertyCharacteristics!$M28/1.645","v":59.939333033159848},75.031058507551833,{"$f":"PovertyCharacteristics!$H28-PovertyCharacteristics!$L28","v":-64},0.85298010281380254,1.645]
["Y",{"$f":"PovertyCharacteristics!$E29/1.645","v":56.58722295367896},{"$f":"PovertyCharacteristics!M29/1.645","v":22.615289042842889},60.939027725265689,{"$f":"PovertyCharacteristics!H29-PovertyCharacteristics!L29","v":201},3.298378846905432,1.645,"Individuals 75 yrs. & Over Living in Poverty",null,"Y",{"$f":"PovertyCharacteristics!$I29/1.645","v":75.035983582781626},{"$f":"PovertyCharacteristics!$M29/1.645","v":22.615289042842889},78.369956812076936,{"$f":"PovertyCharacteristics!$H29-PovertyCharacteristics!$L29","v":201},2.5647583356716304,1.645]
[null,null,null,null,null,null,null,"Under 5",null,"N",{"$f":"DisabilityByAgePrior5YearEst!$E$31/1.645","v":16.368282088554722},{"$f":"DisabilityByAge!$E$31/1.645","v":22.623457830915982},{"$f":"SQRT((K118^2)+(L118^2))","v":27.923851861047662},{"$f":"DisabilityByAge!$D$31-DisabilityByAgePrior5YearEst!$D$31","v":39},1.3966554540565728,1.645]
[null,null,null,null,null,null,null,"5 to 17",null,"N",{"$f":"DisabilityByAgePrior5YearEst!$F$31/1.645","v":142.24924012158056},{"$f":"DisabilityByAge!$F$31/1.645","v":149.54407294832828},{"$f":"SQRT((K119^2)+(L119^2))","v":206.39349812710188},{"$f":"DisabilityByAge!$D$31-DisabilityByAgePrior5YearEst!$D$31","v":39},0.18895944084431818,1.645]
[null,null,null,null,null,null,null,"18 to 34",null,"N",{"$f":"DisabilityByAgePrior5YearEst!$I$31/1.645","v":40.734019617631496},{"$f":"DisabilityByAge!$I$31/1.645","v":36.982276411562623},55.01771644471269,{"$f":"DisabilityByAge!$D$31-DisabilityByAgePrior5YearEst!$D$31","v":39},0.70886257228053262,1.645]
[null,null,null,null,null,null,null,"35 to 64",null,"N",{"$f":"DisabilityByAgePrior5YearEst!$K$31/1.645","v":49.47969786048543},{"$f":"DisabilityByAge!$K$31/1.645","v":77.60706413571944},92.038562049450761,{"$f":"DisabilityByAge!$D$31-DisabilityByAgePrior5YearEst!$D$31","v":39},0.42373543362233279,1.645]
[null,null,null,null,null,null,null,"65 to 74",null,"N",{"$f":"DisabilityByAgePrior5YearEst!$M$31/1.645","v":23.465360566101861},{"$f":"DisabilityByAge!$M$31/1.645","v":50.904368183485275},56.052456205388502,{"$f":"DisabilityByAge!$D$31-DisabilityByAgePrior5YearEst!$D$31","v":39},0.69577682478525904,1.645]
[null,null,null,null,null,null,null,"75 and Over",null,"N",{"$f":"DisabilityByAgePrior5YearEst!$O$31/1.645","v":18.913494451190328},{"$f":"DisabilityByAge!$O$31/1.645","v":34.79944506106191},39.60709089182231,{"$f":"DisabilityByAge!$D$31-DisabilityByAgePrior5YearEst!$D$31","v":39},0.98467216657036394,1.645]
[null,null,null,null,null,null,null,"With a Disability -Under 5",null,"Y",{"$f":"DisabilityByAgePrior5YearEst!$E$33/1.645","v":9.4567472255951639},{"$f":"DisabilityByAge!$E$33/1.645","v":10.316451518831087},13.994971955284301,{"$f":"DisabilityByAge!$D$31-DisabilityByAgePrior5YearEst!$D$31","v":39},2.7867151234464718,1.645]
[null,null,null,null,null,null,null,"With a Disability -5 to 17",null,"Y",{"$f":"DisabilityByAgePrior5YearEst!$F$33/1.645","v":10.334346504559271},{"$f":"DisabilityByAge!$F$33/1.645","v":0},10.334346504559271,{"$f":"DisabilityByAge!$D$31-DisabilityByAgePrior5YearEst!$D$31","v":39},3.7738235294117648,1.645]
[null,null,null,null,null,null,null,"With a Disability -18 to 34",null,"N",{"$f":"DisabilityByAgePrior5YearEst!$I$33/1.645","v":13.875637945912858},{"$f":"DisabilityByAge!$I$33/1.645","v":24.805113389791082},28.422297209874674,{"$f":"DisabilityByAge!$D$31-DisabilityByAgePrior5YearEst!$D$31","v":39},1.3721621342574077,1.645]
[null,null,null,null,null,null,null,"With a Disability -35 to 64",null,"Y",{"$f":"DisabilityByAgePrior5YearEst!$K$33/1.645","v":13.122816501472888},{"$f":"DisabilityByAge!$K$33/1.645","v":13.052225260537318},18.508616836034442,{"$f":"DisabilityByAge!$D$31-DisabilityByAgePrior5YearEst!$D$31","v":39},{"$f":"ABS((N127/M127))","v":2.1071266613543411},1.645]
[null,null,null,null,null,null,null,"With a Disability -65 to 74",null,"Y",{"$f":"DisabilityByAgePrior5YearEst!$M$33/1.645","v":10.352210556794166},{"$f":"DisabilityByAge!$M$33/1.645","v":14.191632255232525},17.566180275744546,{"$f":"DisabilityByAge!$D$31-DisabilityByAgePrior5YearEst!$D$31","v":39},2.2201753248457412,1.645]
[null,null,null,null,null,null,null,"With a Disability -75 and Over",null,"N",{"$f":"DisabilityByAgePrior5YearEst!$O$33/1.645","v":9.6117862011196937},{"$f":"DisabilityByAge!$O$33/1.645","v":26.995262384406708},28.65537689821927,{"$f":"DisabilityByAge!$D$31-DisabilityByAgePrior5YearEst!$D$31","v":39},1.3610011181679336,1.645]
[null,null,null,null,null,null,null,"Hearing Disability - Under 5",null,"Y",{"$f":"DisabilityByAgePrior5YearEst!$E$38/1.645","v":9.4567472255951639},{"$f":"DisabilityByAge!$E$38/1.645","v":10.316451518831087},13.994971955284301,{"$f":"DisabilityByAge!$D$31-DisabilityByAgePrior5YearEst!$D$31","v":39},2.7867151234464718,1.645]
[null,null,null,null,null,null,null,"Hearing Disability - 5 to 17",null,"Y",{"$f":"DisabilityByAgePrior5YearEst!$F$38/1.645","v":6.6869300911854106},{"$f":"DisabilityByAge!$F$38/1.645","v":0},6.6869300911854106,{"$f":"DisabilityByAge!$D$31-DisabilityByAgePrior5YearEst!$D$31","v":39},5.8322727272727271,1.645]
[null,null,null,null,null,null,null,"Hearing Disability - 18 to 34",null,"Y",{"$f":"DisabilityByAgePrior5YearEst!$I$38/1.645","v":9.4567472255951639},{"$f":"DisabilityByAge!$I$38/1.645","v":10.316451518831087},13.994971955284301,{"$f":"DisabilityByAge!$D$31-DisabilityByAgePrior5YearEst!$D$31","v":39},2.7867151234464718,1.645]
[null,null,null,null,null,null,null,"Hearing Disability - 35 to 64",null,"Y",{"$f":"DisabilityByAgePrior5YearEst!$K$38/1.645","v":4.2985214661796203},{"$f":"DisabilityByAge!$K$38/1.645","v":8.445254704832708},9.4762658164862597,{"$f":"DisabilityByAge!$D$31-DisabilityByAgePrior5YearEst!$D$31","v":39},4.115545168873382,1.645]
[null,null,null,null,null,null,null,"Hearing Disability - 65 to 74",null,"Y",{"$f":"DisabilityByAgePrior5YearEst!$M$38/1.645","v":8.6399212179646785},{"$f":"DisabilityByAge!$M$38/1.645","v":10.616564861138588},13.687939512702373,{"$f":"DisabilityByAge!$D$31-DisabilityByAgePrior5YearEst!$D$31","v":39},2.8492235784508031,1.645]
[null,null,null,null,null,null,null,"Hearing Disability - 75 and Over",null,"Y",{"$f":"DisabilityByAgePrior5YearEst!$O$38/1.645","v":8.2683711299303617},{"$f":"DisabilityByAge!$O$38/1.645","v":8.155871042552425},11.613965455649121,{"$f":"DisabilityByAge!$D$31-DisabilityByAgePrior5YearEst!$D$31","v":39},3.3580261753775154,1.645]
[null,null,null,null,null,null,null,"Visual Disability - Under 5",null,"Y",{"$f":"DisabilityByAgePrior5YearEst!$E$39/1.645","v":9.4567472255951639},{"$f":"DisabilityByAge!$E$39/1.645","v":10.316451518831087},13.994971955284301,{"$f":"DisabilityByAge!$D$31-DisabilityByAgePrior5YearEst!$D$31","v":39},2.7867151234464718,1.645]
[null,null,null,null,null,null,null,"Visual Disability - 5 to 17",null,"Y",{"$f":"DisabilityByAgePrior5YearEst!$F$39/1.645","v":1.8237082066869301},{"$f":"DisabilityByAge!$F$39/1.645","v":0},1.8237082066869301,{"$f":"DisabilityByAge!$D$31-DisabilityByAgePrior5YearEst!$D$31","v":39},21.384999999999998,1.645]
[null,null,null,null,null,null,null,"Visual Disability - 18 to 34",null,"Y",{"$f":"DisabilityByAgePrior5YearEst!$I$39/1.645","v":9.4567472255951639},{"$f":"DisabilityByAge!$I$39/1.645","v":10.316451518831087},13.994971955284301,{"$f":"DisabilityByAge!$D$31-DisabilityByAgePrior5YearEst!$D$31","v":39},2.7867151234464718,1.645]
[null,null,null,null,null,null,null,"Visual Disability - 35 to 64",null,"Y",{"$f":"DisabilityByAgePrior5YearEst!$K$39/1.645","v":7.1153190946623868},{"$f":"DisabilityByAge!$K$39/1.645","v":10.754897272312542},{"$f":"SQRT((K140^2)+(L140^2))","v":10.874494723403231},{"$f":"DisabilityByAge!$D$31-DisabilityByAgePrior5YearEst!$D$31","v":39},{"$f":"ABS((N140/M140))","v":3.5863735274124755},1.645]
[null,null,null,null,null,null,null,"Visual Disability - 65 to 74",null,"Y",{"$f":"DisabilityByAgePrior5YearEst!$M$39/1.645","v":3.4388171729436965},{"$f":"DisabilityByAge!$M$39/1.645","v":10.316451518831087},10.874494723403231,{"$f":"DisabilityByAge!$D$31-DisabilityByAgePrior5YearEst!$D$31","v":39},3.5863735274124755,1.645]
[null,null,null,null,null,null,null,"Visual Disability - 75 and Over",null,"Y",{"$f":"DisabilityByAgePrior5YearEst!$O$39/1.645","v":3.4388171729436965},{"$f":"DisabilityByAge!$O$39/1.645","v":7.5193415664759762},8.2683711299303599,{"$f":"DisabilityByAge!$D$31-DisabilityByAgePrior5YearEst!$D$31","v":39},4.7167694080428237,1.645]
[null,null,null,null,null,null,null,"Cognative Disability - 5 to 17",null,"Y",{"$f":"DisabilityByAgePrior5YearEst!$F$40/1.645","v":3.6474164133738602},{"$f":"DisabilityByAge!$F$40/1.645","v":0},3.6474164133738602,{"$f":"DisabilityByAge!$D$31-DisabilityByAgePrior5YearEst!$D$31","v":39},10.692499999999999,1.645]
[null,null,null,null,null,null,null,"Cognative Disability - 18 to 34",null,"Y",{"$f":"DisabilityByAgePrior5YearEst!$I$40/1.645","v":9.4567472255951639},{"$f":"DisabilityByAge!$I$40/1.645","v":14.703205619997354},17.481828382429669,{"$f":"DisabilityByAge!$D$31-DisabilityByAgePrior5YearEst!$D$31","v":39},2.230887933850068,1.645]
[null,null,null,null,null,null,null,"Cognative Disability - 35 to 64",null,{"$f":"IF(O144>P144,\"Y\",\"N\")","v":"Y"},{"$f":"DisabilityByAgePrior5YearEst!$K$40/1.645","v":7.3453167012732958},{"$f":"DisabilityByAge!$K$40/1.645","v":7.5193415664759762},{"$f":"SQRT((K145^2)+(L145^2))","v":13.994971955284301},{"$f":"DisabilityByAge!$D$31-DisabilityByAgePrior5YearEst!$D$31","v":39},{"$f":"ABS((N145/M145))","v":2.7867151234464718},1.645]
[null,null,null,null,null,null,null,"Cognative Disability - 65 to 74",null,"Y",{"$f":"DisabilityByAgePrior5YearEst!$M$40/1.645","v":9.4567472255951639},{"$f":"DisabilityByAge!$M$40/1.645","v":10.316451518831087},{"$f":"SQRT((K145^2)+(L145^2))","v":13.994971955284301},{"$f":"DisabilityByAge!$D$31-DisabilityByAgePrior5YearEst!$D$31","v":39},{"$f":"ABS((N145/M145))","v":2.7867151234464718},1.645]
[null,null,null,null,null,null,null,"Cognative Disability - 75 and Over",null,"Y",{"$f":"DisabilityByAgePrior5YearEst!$O$40/1.645","v":8.2683711299303617},{"$f":"DisabilityByAge!$O$40/1.645","v":7.6894289608957553},{"$f":"SQRT((K146^2)+(L146^2))","v":11.291292170824748},{"$f":"DisabilityByAge!$D$31-DisabilityByAgePrior5YearEst!$D$31","v":39},{"$f":"ABS((N146/M146))","v":3.4539890926541608},1.645]
[null,null,null,null,null,null,null,"Amblatory Disability - 5 to 17",null,"Y",{"$f":"DisabilityByAgePrior5YearEst!$F$41/1.645","v":1.8237082066869301},{"$f":"DisabilityByAge!$F$41/1.645","v":0},{"$f":"SQRT((K147^2)+(L147^2))","v":1.8237082066869301},{"$f":"DisabilityByAge!$D$31-DisabilityByAgePrior5YearEst!$D$31","v":39},{"$f":"ABS((N147/M147))","v":21.384999999999998},1.645]
[null,null,null,null,null,null,null,"Amblatory Disability - 18 to 34",null,"Y",{"$f":"DisabilityByAgePrior5YearEst!$I$41/1.645","v":12.309092237882423},{"$f":"DisabilityByAge!$I$41/1.645","v":10.316451518831087},{"$f":"SQRT((K148^2)+(L148^2))","v":16.060601597109915},{"$f":"DisabilityByAge!$D$31-DisabilityByAgePrior5YearEst!$D$31","v":39},{"$f":"ABS((N148/M148))","v":2.4283025616560963},1.645]
[null,null,null,null,null,null,null,"Amblatory Disability - 35 to 64",null,"Y",{"$f":"DisabilityByAgePrior5YearEst!$K$41/1.645","v":11.803336072308571},{"$f":"DisabilityByAge!$K$41/1.645","v":10.316451518831087},{"$f":"SQRT((K150^2)+(L150^2))","v":13.332347841617818},{"$f":"DisabilityByAge!$D$31-DisabilityByAgePrior5YearEst!$D$31","v":39},{"$f":"ABS((N150/M150))","v":2.9252162082254474},1.645]
[null,null,null,null,null,null,null,"Amblatory Disability - 65 to 74",null,"Y",{"$f":"DisabilityByAgePrior5YearEst!$M$41/1.645","v":8.445254704832708},{"$f":"DisabilityByAge!$M$41/1.645","v":10.316451518831087},{"$f":"SQRT((K150^2)+(L150^2))","v":13.332347841617818},{"$f":"DisabilityByAge!$D$31-DisabilityByAgePrior5YearEst!$D$31","v":39},{"$f":"ABS((N150/M150))","v":2.9252162082254474},1.645]
[null,null,null,null,null,null,null,"Amblatory Disability - 75 and Over",null,"Y",{"$f":"DisabilityByAgePrior5YearEst!$O$41/1.645","v":9.0371238585522828},{"$f":"DisabilityByAge!$O$41/1.645","v":3.5446516078086936},{"$f":"SQRT((K151^2)+(L151^2))","v":9.7074282204688824},{"$f":"DisabilityByAge!$D$31-DisabilityByAgePrior5YearEst!$D$31","v":39},{"$f":"ABS((N151/M151))","v":4.0175419394567768},1.645]
[null,null,null,null,null,null,null,"Self Care Disability - 5 to 17",null,"Y",{"$f":"DisabilityByAgePrior5YearEst!$F$42/1.645","v":1.8237082066869301},{"$f":"DisabilityByAge!$F$42/1.645","v":0},{"$f":"SQRT((K152^2)+(L152^2))","v":1.8237082066869301},{"$f":"DisabilityByAge!$D$31-DisabilityByAgePrior5YearEst!$D$31","v":39},{"$f":"ABS((N152/M152))","v":21.384999999999998},1.645]
[null,null,null,null,null,null,null,"Self Care Disability - 18 to 34",null,"Y",{"$f":"DisabilityByAgePrior5YearEst!$I$42/1.645","v":9.4567472255951639},{"$f":"DisabilityByAge!$I$42/1.645","v":10.316451518831087},{"$f":"SQRT((K153^2)+(L153^2))","v":13.994971955284301},{"$f":"DisabilityByAge!$D$31-DisabilityByAgePrior5YearEst!$D$31","v":39},{"$f":"ABS((N153/M153))","v":2.7867151234464718},1.645]
[null,null,null,null,null,null,null,"Self Care Disability - 35 to 64",null,"Y",{"$f":"DisabilityByAgePrior5YearEst!$K$42/1.645","v":7.3453167012732958},{"$f":"DisabilityByAge!$K$42/1.645","v":10.316451518831087},{"$f":"SQRT((K155^2)+(L155^2))","v":10.874494723403231},{"$f":"DisabilityByAge!$D$31-DisabilityByAgePrior5YearEst!$D$31","v":39},{"$f":"ABS((N155/M155))","v":3.5863735274124755},1.645]
[null,null,null,null,null,null,null,"Self Care Disability - 65 to 74",null,"Y",{"$f":"DisabilityByAgePrior5YearEst!$M$42/1.645","v":3.4388171729436965},{"$f":"DisabilityByAge!$M$42/1.645","v":10.316451518831087},{"$f":"SQRT((K155^2)+(L155^2))","v":10.874494723403231},{"$f":"DisabilityByAge!$D$31-DisabilityByAgePrior5YearEst!$D$31","v":39},{"$f":"ABS((N155/M155))","v":3.5863735274124755},1.645]
[null,null,null,null,null,null,null,"Self Care Disability - 75 and Over",null,"Y",{"$f":"DisabilityByAgePrior5YearEst!$O$42/1.645","v":8.2683711299303617},{"$f":"DisabilityByAge!$O$42/1.645","v":3.5446516078086936},{"$f":"SQRT((K156^2)+(L156^2))","v":8.9961389586314553},{"$f":"DisabilityByAge!$D$31-DisabilityByAgePrior5YearEst!$D$31","v":39},{"$f":"ABS((N156/M156))","v":4.3351931511219011},1.645]
[null,null,null,null,null,null,null,"Independant Living Disability - 18 to 34",null,"Y",{"$f":"DisabilityByAgePrior5YearEst!$I$43/1.645","v":9.4567472255951639},{"$f":"DisabilityByAge!$I$43/1.645","v":14.703205619997354},{"$f":"SQRT((K157^2)+(L157^2))","v":17.481828382429669},{"$f":"DisabilityByAge!$D$31-DisabilityByAgePrior5YearEst!$D$31","v":39},{"$f":"ABS((N157/M157))","v":2.230887933850068},1.645]
[null,null,null,null,null,null,null,"Independant Living Disability - 35 to 64",null,"Y",{"$f":"DisabilityByAgePrior5YearEst!$K$43/1.645","v":9.0371238585522828},{"$f":"DisabilityByAge!$K$43/1.645","v":4.6296493044765406},{"$f":"SQRT((K159^2)+(L159^2))","v":12.823722255154399},{"$f":"DisabilityByAge!$D$31-DisabilityByAgePrior5YearEst!$D$31","v":39},{"$f":"ABS((N159/M159))","v":3.0412386687745241},1.645]
[null,null,null,null,null,null,null,"Independant Living Disability - 65 to 74",null,"Y",{"$f":"DisabilityByAgePrior5YearEst!$M$43/1.645","v":7.61699944446302},{"$f":"DisabilityByAge!$M$43/1.645","v":10.316451518831087},{"$f":"SQRT((K159^2)+(L159^2))","v":12.823722255154399},{"$f":"DisabilityByAge!$D$31-DisabilityByAgePrior5YearEst!$D$31","v":39},{"$f":"ABS((N159/M159))","v":3.0412386687745241},1.645]
[null,null,null,null,null,null,null,"Independant Living Disability - 75 and Over",null,"N",{"$f":"DisabilityByAgePrior5YearEst!$O$43/1.645","v":8.2683711299303617},{"$f":"DisabilityByAge!$O$43/1.645","v":26.315940209013206},{"$f":"SQRT((K160^2)+(L160^2))","v":27.584319281552407},{"$f":"DisabilityByAge!$D$31-DisabilityByAgePrior5YearEst!$D$31","v":39},1.4138467439391216,1.645]
[null,null,null,null,null,null,null,"No Disability - Under 5",null,"N",{"$f":"DisabilityByAgePrior5YearEst!$E$47/1.645","v":16.368282088554722},{"$f":"DisabilityByAge!$E$47/1.645","v":22.623457830915982},{"$f":"SQRT((K161^2)+(L161^2))","v":27.923851861047662},{"$f":"DisabilityByAge!$D$47-DisabilityByAgePrior5YearEst!$D$47","v":39},1.3966554540565728,1.645]
[null,null,null,null,null,null,null,"No Disability - 5 to 17",null,"N",{"$f":"DisabilityByAgePrior5YearEst!$F$47/1.645","v":131.91489361702128},{"$f":"DisabilityByAge!$F$47/1.645","v":149.54407294832828},{"$f":"SQRT((K162^2)+(L162^2))","v":199.4115566158716},{"$f":"DisabilityByAge!$D$47-DisabilityByAgePrior5YearEst!$D$47","v":39},0.19557542532565489,1.645]
[null,null,null,null,null,null,null,"No Disability - 18 to 34",null,"N",{"$f":"DisabilityByAgePrior5YearEst!$I$47/1.645","v":39.644394494055604},{"$f":"DisabilityByAge!$I$47/1.645","v":31.593401726896737},50.693402405810048,{"$f":"DisabilityByAge!$D$47-DisabilityByAgePrior5YearEst!$D$47","v":39},0.76933088230688873,1.645]
[null,null,null,null,null,null,null,"No Disability - 35 to 64",null,"N",{"$f":"DisabilityByAgePrior5YearEst!$K$47/1.645","v":47.013328391453641},{"$f":"DisabilityByAge!$K$47/1.645","v":73.578835482736807},87.316081436573356,{"$f":"DisabilityByAge!$D$47-DisabilityByAgePrior5YearEst!$D$47","v":39},0.4466531177115376,1.645]
[null,null,null,null,null,null,null,"No Disability - 65 to 74",null,{"$f":"IF(O165>P165,\"Y\",\"N\")","v":"N"},{"$f":"DisabilityByAgePrior5YearEst!$M$47/1.645","v":22.027563443153117},{"$f":"DisabilityByAge!$M$47/1.645","v":50.44127666604011},55.041220398371777,{"$f":"DisabilityByAge!$D$47-DisabilityByAgePrior5YearEst!$D$47","v":39},0.7085598705430175,1.645]
[null,null,null,null,null,null,null,"No Disability - 75 and Over",null,"N",{"$f":"DisabilityByAgePrior5YearEst!$O$47/1.645","v":18.074247717104566},{"$f":"DisabilityByAge!$O$47/1.645","v":22.352311624134025},28.745508614071461,{"$f":"DisabilityByAge!$D$47-DisabilityByAgePrior5YearEst!$D$47","v":39},{"$f":"ABS((N166/M166))","v":1.3567336909428966},1.645]
[{"$f":"IF(F167>G167,\"Y\",\"N\")","v":"N"},null,null,null,null,null,null,"Renter Total:",null,"N",{"$f":"'RentalHousingCost-Prior5Yr'!$F$52/1.645","v":75.379939209726444},{"$f":"RentalHousingCost!$F$52/1.645","v":74.164133738601819},105.74712274317099,{"$f":"'RentalHousingCost-Prior5Yr'!$E$52-RentalHousingCost!$E$52","v":-75},{"$f":"ABS((N167/M167))","v":0.70923915520759073},1.645]
["N",null,null,null,null,null,null,"Renter Less than 20.0 percent",null,"N",{"$f":"'RentalHousingCost-Prior5Yr'!$F$53/1.645","v":47.45147172495205},{"$f":"RentalHousingCost!$F$53/1.645","v":40.328287636770781},62.273693905035401,{"$f":"'RentalHousingCost-Prior5Yr'!$E$53-RentalHousingCost!$E$53","v":-4},6.423257958809736E-2,1.645]
["N",null,null,null,null,null,null,"Renter 20.0 to 24.9 percent",null,"Y",{"$f":"'RentalHousingCost-Prior5Yr'!$F$54/1.645","v":51.671732522796354},{"$f":"RentalHousingCost!$F$54/1.645","v":7.2948328267477205},52.184121415212182,{"$f":"'RentalHousingCost-Prior5Yr'!$E$54-RentalHousingCost!$E$54","v":113},2.1654096482892857,1.645]
["N",null,null,null,null,null,null,"Renter 25.0 to 29.9 percent",null,"Y",{"$f":"'RentalHousingCost-Prior5Yr'!$F$55/1.645","v":20.668693009118542},{"$f":"RentalHousingCost!$F$55/1.645","v":40.121580547112458},45.132428433484698,{"$f":"'RentalHousingCost-Prior5Yr'!$E$55-RentalHousingCost!$E$55","v":-112},2.4815859435763232,1.645]
["N",null,null,null,null,null,null,"Renter 30.0 to 34.9 percent",null,"N",{"$f":"'RentalHousingCost-Prior5Yr'!$F$56/1.645","v":73.135524756964173},{"$f":"RentalHousingCost!$F$56/1.645","v":57.352651161761905},92.941549248757781,{"$f":"'RentalHousingCost-Prior5Yr'!$E$56-RentalHousingCost!$E$56","v":-3},3.2278351547277408E-2,1.645]
["N",null,null,null,null,null,null,"Renter 35.0 to 39.9 percent",null,"N",{"$f":"'RentalHousingCost-Prior5Yr'!$F$57/1.645","v":66.475769344489009},{"$f":"RentalHousingCost!$F$57/1.645","v":64.026329337114305},92.295171912328811,{"$f":"'RentalHousingCost-Prior5Yr'!$E$57-RentalHousingCost!$E$57","v":-64},0.69342738817143768,1.645]
["N",null,null,null,null,null,null,"Renter 40.0 to 49.9 percent",null,"N",{"$f":"'RentalHousingCost-Prior5Yr'!$F$58/1.645","v":22.492401215805472},{"$f":"RentalHousingCost!$F$58/1.645","v":38.90577507598784},44.939597758726372,{"$f":"'RentalHousingCost-Prior5Yr'!$E$58-RentalHousingCost!$E$58","v":-38},0.84557944207725266,1.645]
["N",null,null,null,null,null,null,"Renter 50.0 percent or more",null,"N",{"$f":"'RentalHousingCost-Prior5Yr'!$F$59/1.645","v":76.516096959589404},{"$f":"RentalHousingCost!$F$59/1.645","v":69.303578042883942},103.23613235430409,{"$f":"'RentalHousingCost-Prior5Yr'!$E$59-RentalHousingCost!$E$59","v":-41},0.39714777244161881,1.645]
["N",null,null,null,null,null,null,"Renter Not computed",null,"N",{"$f":"'RentalHousingCost-Prior5Yr'!$F$60/1.645","v":62.55493423774768},{"$f":"RentalHousingCost!$F$60/1.645","v":50.849891977478833},{"$f":"SQRT((K175^2)+(L175^2))","v":80.615329259454143},{"$f":"'RentalHousingCost-Prior5Yr'!$E$60-RentalHousingCost!$E$60","v":-26},0.32251930543285423,1.645]
["N",null,null,null,null,null,null,"Renter Less than $10,000:",null,"N",{"$f":"'RentalHousingCost-Prior5Yr'!$I$52/1.645","v":33.434650455927049},{"$f":"RentalHousingCost!$I$52/1.645","v":24.316109422492399},{"$f":"SQRT((K176^2)+(L176^2))","v":41.341855649651798},{"$f":"'RentalHousingCost-Prior5Yr'!$H$52-RentalHousingCost!$H$52","v":2},4.8377122133772557E-2,1.645]
["N",null,null,null,null,null,null,"Renter Less than 20.0 percent",null,"N",{"$f":"'RentalHousingCost-Prior5Yr'!$I$53/1.645","v":6.6869300911854106},{"$f":"RentalHousingCost!$I$53/1.645","v":7.2948328267477205},9.8959395720970864,{"$f":"'RentalHousingCost-Prior5Yr'!$H$53-RentalHousingCost!$H$53","v":0},0,1.645]
["N",null,null,null,null,null,null,"Renter 20.0 to 24.9 percent",null,"N",{"$f":"'RentalHousingCost-Prior5Yr'!$I$54/1.645","v":6.6869300911854106},{"$f":"RentalHousingCost!$I$54/1.645","v":7.2948328267477205},9.8959395720970864,{"$f":"'RentalHousingCost-Prior5Yr'!$H$54-RentalHousingCost!$H$54","v":0},0,1.645]
["N",null,null,null,null,null,null,"Renter 25.0 to 29.9 percent",null,"N",{"$f":"'RentalHousingCost-Prior5Yr'!$I$55/1.645","v":6.6869300911854106},{"$f":"RentalHousingCost!$I$55/1.645","v":7.2948328267477205},9.8959395720970864,{"$f":"'RentalHousingCost-Prior5Yr'!$H$55-RentalHousingCost!$H$55","v":0},0,1.645]
["N",null,null,null,null,null,null,"Renter 30.0 to 34.9 percent",null,"N",{"$f":"'RentalHousingCost-Prior5Yr'!$I$56/1.645","v":11.582102664594316},{"$f":"RentalHousingCost!$I$56/1.645","v":12.635021088648346},17.140270127503566,{"$f":"'RentalHousingCost-Prior5Yr'!$H$56-RentalHousingCost!$H$56","v":0},0,1.645]
["N",null,null,null,null,null,null,"Renter 35.0 to 39.9 percent",null,"N",{"$f":"'RentalHousingCost-Prior5Yr'!$I$57/1.645","v":35.383908111502123},{"$f":"RentalHousingCost!$I$57/1.645","v":15.581769748299449},38.662805145672571,{"$f":"'RentalHousingCost-Prior5Yr'!$H$57-RentalHousingCost!$H$57","v":34},0.87939816761602807,1.645]
["N",null,null,null,null,null,null,"Renter 40.0 to 49.9 percent",null,"N",{"$f":"'RentalHousingCost-Prior5Yr'!$I$58/1.645","v":6.6869300911854106},{"$f":"RentalHousingCost!$I$58/1.645","v":7.2948328267477205},9.8959395720970864,{"$f":"'RentalHousingCost-Prior5Yr'!$H$58-RentalHousingCost!$H$58","v":0},0,1.645]
["N",null,null,null,null,null,null,"Renter 50.0 percent or more",null,"N",{"$f":"'RentalHousingCost-Prior5Yr'!$I$59/1.645","v":13.373860182370821},{"$f":"RentalHousingCost!$I$59/1.645","v":14.589665653495441},19.791879144194173,{"$f":"'RentalHousingCost-Prior5Yr'!$H$59-RentalHousingCost!$H$59","v":0},0,1.645]
["N",null,null,null,null,null,null,"Renter Not computed",null,"N",{"$f":"'RentalHousingCost-Prior5Yr'!$I$60/1.645","v":34.746307993782949},{"$f":"RentalHousingCost!$I$60/1.645","v":13.768695018730851},{"$f":"SQRT((K184^2)+(L184^2))","v":37.374896410794889},{"$f":"'RentalHousingCost-Prior5Yr'!$H$60-RentalHousingCost!$H$60","v":34},0.90970151800019095,1.645]
["N",null,null,null,null,null,null,"Renter $10,000 to $19,999:",null,"N",{"$f":"'RentalHousingCost-Prior5Yr'!$K$52/1.645","v":38.90577507598784},{"$f":"RentalHousingCost!$K$52/1.645","v":37.689969604863222},{"$f":"SQRT((K185^2)+(L185^2))","v":54.16819309409231},{"$f":"'RentalHousingCost-Prior5Yr'!$J$52-RentalHousingCost!$J$52","v":-27},0.49844749211220546,1.645]
["N",null,null,null,null,null,null,"Renter Less than 20.0 percent",null,"N",{"$f":"'RentalHousingCost-Prior5Yr'!$K$53/1.645","v":6.6869300911854106},{"$f":"RentalHousingCost!$K$53/1.645","v":7.2948328267477205},9.8959395720970864,{"$f":"'RentalHousingCost-Prior5Yr'!$J$53-RentalHousingCost!$J$53","v":0},0,1.645]
["N",null,null,null,null,null,null,"Renter 20.0 to 24.9 percent",null,"N",{"$f":"'RentalHousingCost-Prior5Yr'!$K$54/1.645","v":6.6869300911854106},{"$f":"RentalHousingCost!$K$54/1.645","v":7.2948328267477205},9.8959395720970864,{"$f":"'RentalHousingCost-Prior5Yr'!$J$54-RentalHousingCost!$J$54","v":0},0,1.645]
["N",null,null,null,null,null,null,"Renter 25.0 to 29.9 percent",null,"N",{"$f":"'RentalHousingCost-Prior5Yr'!$K$55/1.645","v":6.6869300911854106},{"$f":"RentalHousingCost!$K$55/1.645","v":21.88449848024316},22.883319422150407,{"$f":"'RentalHousingCost-Prior5Yr'!$J$55-RentalHousingCost!$J$55","v":-22},0.96139898212077668,1.645]
["N",null,null,null,null,null,null,"Renter 30.0 to 34.9 percent",null,"N",{"$f":"'RentalHousingCost-Prior5Yr'!$K$56/1.645","v":11.582102664594316},{"$f":"RentalHousingCost!$K$56/1.645","v":24.194223394689846},26.823600574966818,{"$f":"'RentalHousingCost-Prior5Yr'!$J$56-RentalHousingCost!$J$56","v":-22},0.82017326266524959,1.645]
["N",null,null,null,null,null,null,"Renter 35.0 to 39.9 percent",null,"N",{"$f":"'RentalHousingCost-Prior5Yr'!$K$57/1.645","v":39.161394306155394},{"$f":"RentalHousingCost!$K$57/1.645","v":26.671624277787604},47.381329082431293,{"$f":"'RentalHousingCost-Prior5Yr'!$J$57-RentalHousingCost!$J$57","v":-1},2.1105359840376321E-2,1.645]
["N",null,null,null,null,null,null,"Renter 40.0 to 49.9 percent",null,"N",{"$f":"'RentalHousingCost-Prior5Yr'!$K$58/1.645","v":4.86322188449848},{"$f":"RentalHousingCost!$K$58/1.645","v":7.2948328267477205},8.7672979342589414,{"$f":"'RentalHousingCost-Prior5Yr'!$J$58-RentalHousingCost!$J$58","v":4},0.45624091139525091,1.645]
["N",null,null,null,null,null,null,"Renter 50.0 percent or more",null,"N",{"$f":"'RentalHousingCost-Prior5Yr'!$K$59/1.645","v":12.561688948189559},{"$f":"RentalHousingCost!$K$59/1.645","v":25.270042177296691},28.22004714513109,{"$f":"'RentalHousingCost-Prior5Yr'!$J$59-RentalHousingCost!$J$59","v":-18},0.6378444340446684,1.645]
["N",null,null,null,null,null,null,"Renter Not computed",null,"N",{"$f":"'RentalHousingCost-Prior5Yr'!$K$60/1.645","v":38.858253652272069},{"$f":"RentalHousingCost!$K$60/1.645","v":25.65464783709324},{"$f":"SQRT((K193^2)+(L193^2))","v":46.563127392278844},{"$f":"'RentalHousingCost-Prior5Yr'!$J$60-RentalHousingCost!$J$60","v":-5},0.1073811034614721,1.645]
["N",null,null,null,null,null,null,"Renter $20,000 to $34,999:",null,"N",{"$f":"'RentalHousingCost-Prior5Yr'!$M$52/1.645","v":49.240121580547111},{"$f":"RentalHousingCost!$M$52/1.645","v":37.08206686930091},{"$f":"SQRT((K194^2)+(L194^2))","v":61.641457287821851},{"$f":"'RentalHousingCost-Prior5Yr'!$L$52-RentalHousingCost!$L$52","v":27},0.43801689946960803,1.645]
["N",null,null,null,null,null,null,"Renter Less than 20.0 percent",null,"N",{"$f":"'RentalHousingCost-Prior5Yr'!$M$53/1.645","v":10.334346504559271},{"$f":"RentalHousingCost!$M$53/1.645","v":7.2948328267477205},12.649636502543958,{"$f":"'RentalHousingCost-Prior5Yr'!$L$53-RentalHousingCost!$L$53","v":18},1.4229657900746819,1.645]
["N",null,null,null,null,null,null,"Renter 20.0 to 24.9 percent",null,"N",{"$f":"'RentalHousingCost-Prior5Yr'!$M$54/1.645","v":30.3951367781155},{"$f":"RentalHousingCost!$M$54/1.645","v":7.2948328267477205},31.258261719592561,{"$f":"'RentalHousingCost-Prior5Yr'!$L$54-RentalHousingCost!$L$54","v":34},1.0877124359954069,1.645]
["N",null,null,null,null,null,null,"Renter 25.0 to 29.9 percent",null,"N",{"$f":"'RentalHousingCost-Prior5Yr'!$M$55/1.645","v":6.6869300911854106},{"$f":"RentalHousingCost!$M$55/1.645","v":7.2948328267477205},9.8959395720970864,{"$f":"'RentalHousingCost-Prior5Yr'!$L$55-RentalHousingCost!$L$55","v":0},0,1.645]
["N",null,null,null,null,null,null,"Renter 30.0 to 34.9 percent",null,"N",{"$f":"'RentalHousingCost-Prior5Yr'!$M$56/1.645","v":32.79295795565028},{"$f":"RentalHousingCost!$M$56/1.645","v":12.635021088648346},35.142877648132853,{"$f":"'RentalHousingCost-Prior5Yr'!$L$56-RentalHousingCost!$L$56","v":52},1.4796739333827083,1.645]
["N",null,null,null,null,null,null,"Renter 35.0 to 39.9 percent",null,"N",{"$f":"'RentalHousingCost-Prior5Yr'!$M$57/1.645","v":41.252371008689472},{"$f":"RentalHousingCost!$M$57/1.645","v":40.597709074927657},57.878597909512521,{"$f":"'RentalHousingCost-Prior5Yr'!$L$57-RentalHousingCost!$L$57","v":-25},0.43193859048011207,1.645]
["N",null,null,null,null,null,null,"Renter 40.0 to 49.9 percent",null,"N",{"$f":"'RentalHousingCost-Prior5Yr'!$M$58/1.645","v":17.021276595744681},{"$f":"RentalHousingCost!$M$58/1.645","v":20.060790273556229},26.308917943322069,{"$f":"'RentalHousingCost-Prior5Yr'!$L$58-RentalHousingCost!$L$58","v":0},0,1.645]
["N",null,null,null,null,null,null,"Renter 50.0 percent or more",null,"N",{"$f":"'RentalHousingCost-Prior5Yr'!$M$59/1.645","v":36.947286076651046},{"$f":"RentalHousingCost!$M$59/1.645","v":23.70820668693009},43.899669847734494,{"$f":"'RentalHousingCost-Prior5Yr'!$L$59-RentalHousingCost!$L$59","v":52},1.1845191588082873,1.645]
["N",null,null,null,null,null,null,"Renter Not computed",null,"N",{"$f":"'RentalHousingCost-Prior5Yr'!$M$60/1.645","v":37.577044280913292},{"$f":"RentalHousingCost!$M$60/1.645","v":35.295023384789751},51.553592819730554,{"$f":"'RentalHousingCost-Prior5Yr'!$L$60-RentalHousingCost!$L$60","v":-25},0.48493225462323197,1.645]
["N",null,null,null,null,null,null,"Renter $35,000 to $49,999:",null,"Y",{"$f":"'RentalHousingCost-Prior5Yr'!$O$52/1.645","v":15.805471124620061},{"$f":"RentalHousingCost!$O$52/1.645","v":40.729483282674771},43.688713942446078,{"$f":"'RentalHousingCost-Prior5Yr'!$N$52-RentalHousingCost!$N$52","v":-128},2.9298184462152523,1.645]
["N",null,null,null,null,null,null,"Renter Less than 20.0 percent",null,"N",{"$f":"'RentalHousingCost-Prior5Yr'!$O$53/1.645","v":6.6869300911854106},{"$f":"RentalHousingCost!$O$53/1.645","v":7.2948328267477205},9.8959395720970864,{"$f":"'RentalHousingCost-Prior5Yr'!$N$53-RentalHousingCost!$N$53","v":0},0,1.645]
["N",null,null,null,null,null,null,"Renter 20.0 to 24.9 percent",null,"N",{"$f":"'RentalHousingCost-Prior5Yr'!$O$54/1.645","v":9.7264437689969601},{"$f":"RentalHousingCost!$O$54/1.645","v":7.2948328267477205},12.158054711246201,{"$f":"'RentalHousingCost-Prior5Yr'!$N$54-RentalHousingCost!$N$54","v":10},0.8224999999999999,1.645]
["N",null,null,null,null,null,null,"Renter 25.0 to 29.9 percent",null,"Y",{"$f":"'RentalHousingCost-Prior5Yr'!$O$55/1.645","v":6.6869300911854106},{"$f":"RentalHousingCost!$O$55/1.645","v":32.218844984802431},32.905455568934606,{"$f":"'RentalHousingCost-Prior5Yr'!$N$55-RentalHousingCost!$N$55","v":-77},2.3400375004287794,1.645]
["N",null,null,null,null,null,null,"Renter 30.0 to 34.9 percent",null,"Y",{"$f":"'RentalHousingCost-Prior5Yr'!$O$56/1.645","v":13.565904926699938},{"$f":"RentalHousingCost!$O$56/1.645","v":33.830210523955081},36.448826052088187,{"$f":"'RentalHousingCost-Prior5Yr'!$N$56-RentalHousingCost!$N$56","v":-67},1.8381936335686595,1.645]
["N",null,null,null,null,null,null,"Renter 35.0 to 39.9 percent",null,{"$f":"IF(O208>P208,\"Y\",\"N\")","v":"Y"},{"$f":"'RentalHousingCost-Prior5Yr'!$O$57/1.645","v":13.373860182370821},{"$f":"RentalHousingCost!$O$57/1.645","v":37.773219168160445},40.070889963956219,{"$f":"'RentalHousingCost-Prior5Yr'!$N$57-RentalHousingCost!$N$57","v":-73},1.8217713673358273,1.645]
["N",null,null,null,null,null,null,"Renter 40.0 to 49.9 percent",null,"Y",{"$f":"'RentalHousingCost-Prior5Yr'!$O$58/1.645","v":6.6869300911854106},{"$f":"RentalHousingCost!$O$58/1.645","v":34.650455927051674},35.289787899574449,{"$f":"'RentalHousingCost-Prior5Yr'!$N$58-RentalHousingCost!$N$58","v":-61},1.7285453846758763,1.645]
["N",null,null,null,null,null,null,"Renter 50.0 percent or more",null,"Y",{"$f":"'RentalHousingCost-Prior5Yr'!$O$59/1.645","v":20.252835017885346},{"$f":"RentalHousingCost!$O$59/1.645","v":68.480666451006755},71.41273698602879,{"$f":"'RentalHousingCost-Prior5Yr'!$N$59-RentalHousingCost!$N$59","v":-128},1.7923973425782849,1.645]
["N",null,null,null,null,null,null,"Renter Not computed",null,"N",{"$f":"'RentalHousingCost-Prior5Yr'!$O$60/1.645","v":11.582102664594316},{"$f":"RentalHousingCost!$O$60/1.645","v":15.038683132951952},18.981756834037682,{"$f":"'RentalHousingCost-Prior5Yr'!$N$60-RentalHousingCost!$N$60","v":-12},0.63218595122248411,1.645]
["N",null,null,null,null,null,null,"Renter $50,000 to $74,999:",null,"N",{"$f":"'RentalHousingCost-Prior5Yr'!$Q$52/1.645","v":44.376899696048632},{"$f":"RentalHousingCost!$Q$52/1.645","v":37.08206686930091},57.830691764256677,{"$f":"'RentalHousingCost-Prior5Yr'!$P$52-RentalHousingCost!$P$52","v":39},0.67438238779818072,1.645]
["N",null,null,null,null,null,null,"Renter Less than 20.0 percent",null,"N",{"$f":"'RentalHousingCost-Prior5Yr'!$Q$53/1.645","v":15.19756838905775},{"$f":"RentalHousingCost!$Q$53/1.645","v":27.96352583586626},31.826480517224134,{"$f":"'RentalHousingCost-Prior5Yr'!$P$53-RentalHousingCost!$P$53","v":-30},0.9426112945088081,1.645]
["N",null,null,null,null,null,null,"Renter 20.0 to 24.9 percent",null,"Y",{"$f":"'RentalHousingCost-Prior5Yr'!$Q$54/1.645","v":35.258358662613979},{"$f":"RentalHousingCost!$Q$54/1.645","v":7.2948328267477205},36.00508910628777,{"$f":"'RentalHousingCost-Prior5Yr'!$P$54-RentalHousingCost!$P$54","v":65},1.8053003509620169,1.645]
["N",null,null,null,null,null,null,"Renter 25.0 to 29.9 percent",null,"N",{"$f":"'RentalHousingCost-Prior5Yr'!$Q$55/1.645","v":20.668693009118542},{"$f":"RentalHousingCost!$Q$55/1.645","v":24.316109422492399},31.913446196733585,{"$f":"'RentalHousingCost-Prior5Yr'!$P$55-RentalHousingCost!$P$55","v":-13},0.40735180775715096,1.645]
["N",null,null,null,null,null,null,"Renter 30.0 to 34.9 percent",null,"N",{"$f":"'RentalHousingCost-Prior5Yr'!$Q$56/1.645","v":43.604045812594038},{"$f":"RentalHousingCost!$Q$56/1.645","v":37.768327214611709},57.686734626054012,{"$f":"'RentalHousingCost-Prior5Yr'!$P$56-RentalHousingCost!$P$56","v":22},0.38137017362157605,1.645]
["N",null,null,null,null,null,null,"Renter 35.0 to 39.9 percent",null,"N",{"$f":"'RentalHousingCost-Prior5Yr'!$Q$57/1.645","v":21.604079810233266},{"$f":"RentalHousingCost!$Q$57/1.645","v":21.19829273454431},30.267207986637331,{"$f":"'RentalHousingCost-Prior5Yr'!$P$57-RentalHousingCost!$P$57","v":1},3.303905667286821E-2,1.645]
["N",null,null,null,null,null,null,"Renter 40.0 to 49.9 percent",null,"N",{"$f":"'RentalHousingCost-Prior5Yr'!$Q$58/1.645","v":18.237082066869302},{"$f":"RentalHousingCost!$Q$58/1.645","v":7.2948328267477205},19.641938506265667,{"$f":"'RentalHousingCost-Prior5Yr'!$P$58-RentalHousingCost!$P$58","v":19},0.96731796578729268,1.645]
["N",null,null,null,null,null,null,"Renter 50.0 percent or more",null,"N",{"$f":"'RentalHousingCost-Prior5Yr'!$Q$59/1.645","v":47.264193355441122},{"$f":"RentalHousingCost!$Q$59/1.645","v":38.466363573389359},60.939027725265696,{"$f":"'RentalHousingCost-Prior5Yr'!$P$59-RentalHousingCost!$P$59","v":41},0.6728036453886701,1.645]
["N",null,null,null,null,null,null,"Renter Not computed",null,"N",{"$f":"'RentalHousingCost-Prior5Yr'!$Q$60/1.645","v":11.582102664594316},{"$f":"RentalHousingCost!$Q$60/1.645","v":19.903593366255198},23.028202948177277,{"$f":"'RentalHousingCost-Prior5Yr'!$P$60-RentalHousingCost!$P$60","v":-18},0.78165022431438713,1.645]
["N",null,null,null,null,null,null,"Renter $75,000 to $99,999:",null,"N",{"$f":"'RentalHousingCost-Prior5Yr'!$S$52/1.645","v":15.19756838905775},{"$f":"RentalHousingCost!$S$52/1.645","v":7.2948328267477205},16.857659117157503,{"$f":"'RentalHousingCost-Prior5Yr'!$R$52-RentalHousingCost!$R$52","v":16},0.94912347490259852,1.645]
["N",null,null,null,null,null,null,"Renter Less than 20.0 percent",null,"N",{"$f":"'RentalHousingCost-Prior5Yr'!$S$53/1.645","v":11.550151975683891},{"$f":"RentalHousingCost!$S$53/1.645","v":7.2948328267477205},13.660914926592238,{"$f":"'RentalHousingCost-Prior5Yr'!$R$53-RentalHousingCost!$R$53","v":12},0.87841847083322999,1.645]
["N",null,null,null,null,null,null,"Renter 20.0 to 24.9 percent",null,"N",{"$f":"'RentalHousingCost-Prior5Yr'!$S$54/1.645","v":10.334346504559271},{"$f":"RentalHousingCost!$S$54/1.645","v":7.2948328267477205},12.649636502543958,{"$f":"'RentalHousingCost-Prior5Yr'!$R$54-RentalHousingCost!$R$54","v":4},0.316214620016596,1.645]
["N",null,null,null,null,null,null,"Renter 25.0 to 29.9 percent",null,"N",{"$f":"'RentalHousingCost-Prior5Yr'!$S$55/1.645","v":6.6869300911854106},{"$f":"RentalHousingCost!$S$55/1.645","v":7.2948328267477205},9.8959395720970864,{"$f":"'RentalHousingCost-Prior5Yr'!$R$55-RentalHousingCost!$R$55","v":0},0,1.645]
["N",null,null,null,null,null,null,"Renter 30.0 to 34.9 percent",null,"N",{"$f":"'RentalHousingCost-Prior5Yr'!$S$56/1.645","v":16.879566415701909},{"$f":"RentalHousingCost!$S$56/1.645","v":12.635021088648346},21.084675010364286,{"$f":"'RentalHousingCost-Prior5Yr'!$R$56-RentalHousingCost!$R$56","v":16},0.75884499012363782,1.645]
["N",null,null,null,null,null,null,"Renter 35.0 to 39.9 percent",null,"N",{"$f":"'RentalHousingCost-Prior5Yr'!$S$57/1.645","v":13.373860182370821},{"$f":"RentalHousingCost!$S$57/1.645","v":14.589665653495441},19.791879144194173,{"$f":"'RentalHousingCost-Prior5Yr'!$R$57-RentalHousingCost!$R$57","v":0},0,1.645]
["N",null,null,null,null,null,null,"Renter 40.0 to 49.9 percent",null,"N",{"$f":"'RentalHousingCost-Prior5Yr'!$S$58/1.645","v":6.6869300911854106},{"$f":"RentalHousingCost!$S$58/1.645","v":7.2948328267477205},9.8959395720970864,{"$f":"'RentalHousingCost-Prior5Yr'!$R$58-RentalHousingCost!$R$58","v":0},0,1.645]
["N",null,null,null,null,null,null,"Renter 50.0 percent or more",null,"N",{"$f":"'RentalHousingCost-Prior5Yr'!$S$59/1.645","v":18.15584744445967},{"$f":"RentalHousingCost!$S$59/1.645","v":14.589665653495441},23.29148214062981,{"$f":"'RentalHousingCost-Prior5Yr'!$R$59-RentalHousingCost!$R$59","v":16},0.68694640827899478,1.645]
["N",null,null,null,null,null,null,"Renter Not computed",null,"N",{"$f":"'RentalHousingCost-Prior5Yr'!$S$60/1.645","v":11.582102664594316},{"$f":"RentalHousingCost!$S$60/1.645","v":12.635021088648346},17.140270127503566,{"$f":"'RentalHousingCost-Prior5Yr'!$R$60-RentalHousingCost!$R$60","v":0},0,1.645]
["N",null,null,null,null,null,null,"Renter $100,000 or more:",null,"N",{"$f":"'RentalHousingCost-Prior5Yr'!$U$52/1.645","v":38.90577507598784},{"$f":"RentalHousingCost!$U$52/1.645","v":28.571428571428569},48.26992712730776,{"$f":"'RentalHousingCost-Prior5Yr'!$T$52-RentalHousingCost!$T$52","v":-4},8.2867330407405543E-2,1.645]
[{"$f":"IF(F231>G231,\"Y\",\"N\")","v":"N"},null,null,null,null,null,null,"Renter Less than 20.0 percent",null,"N",{"$f":"'RentalHousingCost-Prior5Yr'!$U$53/1.645","v":38.90577507598784},{"$f":"RentalHousingCost!$U$53/1.645","v":28.571428571428569},48.26992712730776,{"$f":"'RentalHousingCost-Prior5Yr'!$T$53-RentalHousingCost!$T$53","v":-4},{"$f":"ABS((N231/M231))","v":8.2867330407405543E-2},1.645]
["N",null,null,null,null,null,null,"Renter 20.0 to 24.9 percent",null,"N",{"$f":"'RentalHousingCost-Prior5Yr'!$U$54/1.645","v":6.6869300911854106},{"$f":"RentalHousingCost!$U$54/1.645","v":7.2948328267477205},9.8959395720970864,{"$f":"'RentalHousingCost-Prior5Yr'!$T$54-RentalHousingCost!$T$54","v":0},0,1.645]
["N",null,null,null,null,null,null,"Renter 25.0 to 29.9 percent",null,"N",{"$f":"'RentalHousingCost-Prior5Yr'!$U$55/1.645","v":6.6869300911854106},{"$f":"RentalHousingCost!$U$55/1.645","v":7.2948328267477205},9.8959395720970864,{"$f":"'RentalHousingCost-Prior5Yr'!$T$55-RentalHousingCost!$T$55","v":0},0,1.645]
["N",null,null,null,null,null,null,"Renter 30.0 to 34.9 percent",null,"N",{"$f":"'RentalHousingCost-Prior5Yr'!$U$56/1.645","v":40.03859890595772},{"$f":"RentalHousingCost!$U$56/1.645","v":30.376894221638874},50.257786510199551,{"$f":"'RentalHousingCost-Prior5Yr'!$T$56-RentalHousingCost!$T$56","v":-4},7.9589657200446362E-2,1.645]
["N",null,null,null,null,null,null,"Renter 35.0 to 39.9 percent",null,"N",{"$f":"'RentalHousingCost-Prior5Yr'!$U$57/1.645","v":13.373860182370821},{"$f":"RentalHousingCost!$U$57/1.645","v":14.589665653495441},19.791879144194173,{"$f":"'RentalHousingCost-Prior5Yr'!$T$57-RentalHousingCost!$T$57","v":0},0,1.645]
["N",null,null,null,null,null,null,"Renter 40.0 to 49.9 percent",null,"N",{"$f":"'RentalHousingCost-Prior5Yr'!$U$58/1.645","v":6.6869300911854106},{"$f":"RentalHousingCost!$U$58/1.645","v":7.2948328267477205},9.8959395720970864,{"$f":"'RentalHousingCost-Prior5Yr'!$T$58-RentalHousingCost!$T$58","v":0},0,1.645]
["N",null,null,null,null,null,null,"Renter 50.0 percent or more",null,"N",{"$f":"'RentalHousingCost-Prior5Yr'!$U$59/1.645","v":40.593157507104074},{"$f":"RentalHousingCost!$U$59/1.645","v":31.240523179403276},51.222794973716468,{"$f":"'RentalHousingCost-Prior5Yr'!$T$59-RentalHousingCost!$T$59","v":-4},7.8090233109155541E-2,1.645]
["N",null,null,null,null,null,null,"Renter Not computed",null,"N",{"$f":"'RentalHousingCost-Prior5Yr'!$U$60/1.645","v":11.582102664594316},{"$f":"RentalHousingCost!$U$60/1.645","v":12.635021088648346},17.140270127503566,{"$f":"'RentalHousingCost-Prior5Yr'!$T$60-RentalHousingCost!$T$60","v":0},0,1.645]
[null,null,null,null,null,null,null,"Total Owner Housing",null,"N",{"$f":"OwnerHousingCostPrior5Year!$F$50/1.645","v":105.77507598784194},{"$f":"OwnerHousingCost!$F$50/1.645","v":110.03039513677811},152.62717501870125,{"$f":"OwnerHousingCostPrior5Year!$E$50-OwnerHousingCost!$E$50","v":7},4.5863392276914626E-2,1.645]
[null,null,null,null,null,null,null,"Monthly Costs Less than 20% of HH Income",null,"N",{"$f":"OwnerHousingCostPrior5Year!$F$51/1.645","v":80.857919585010606},{"$f":"OwnerHousingCost!$F$51/1.645","v":73.997021351481706},109.60639729736435,{"$f":"OwnerHousingCostPrior5Year!$E$51-OwnerHousingCost!$E$51","v":15},0.13685332580820717,1.645]
[null,null,null,null,null,null,null,"Monthly Costs 20% to 29.9% of HH Income",null,"N",{"$f":"OwnerHousingCostPrior5Year!$F$52/1.645","v":54.409841851709729},{"$f":"OwnerHousingCost!$F$52/1.645","v":52.856085396435638},75.856421308702409,{"$f":"OwnerHousingCostPrior5Year!$E$52-OwnerHousingCost!$E$52","v":-12},0.15819359512315057,1.645]
[null,null,null,null,null,null,null,"Monthly Costs Less Than 30% of HH Income",null,"N",{"$f":"OwnerHousingCostPrior5Year!$F$53/1.645","v":97.459909962733434},{"$f":"OwnerHousingCost!$F$53/1.645","v":90.935828650356157},133.29575755541151,{"$f":"OwnerHousingCostPrior5Year!$E$53-OwnerHousingCost!$E$53","v":3},2.2506342700013462E-2,1.645]
[null,null,null,null,null,null,null,"Monthly Costs 30% or More of HH Income",null,"N",{"$f":"OwnerHousingCostPrior5Year!$F$54/1.645","v":90.336473730000776},{"$f":"OwnerHousingCost!$F$54/1.645","v":79.246831078314756},120.16962478898765,{"$f":"OwnerHousingCostPrior5Year!$E$54-OwnerHousingCost!$E$54","v":-5},4.1607852306935054E-2,1.645]
[null,null,null,null,null,null,null,"Monthly Costs 35% or More of HH Income",null,"N",{"$f":"OwnerHousingCostPrior5Year!$F$56/1.645","v":77.225184273143753},{"$f":"OwnerHousingCost!$F$56/1.645","v":68.66879633528481},103.33988908527934,{"$f":"OwnerHousingCostPrior5Year!$E$56-OwnerHousingCost!$E$56","v":8},7.7414443452693743E-2,1.645]
[null,null,null,null,null,null,null,"Monthly Costs 50% or More of HH Income",null,"N",{"$f":"OwnerHousingCostPrior5Year!$F$57/1.645","v":51.25164476196472},{"$f":"OwnerHousingCost!$F$57/1.645","v":47.978124066566906},70.204212692355668,{"$f":"OwnerHousingCostPrior5Year!$E$57-OwnerHousingCost!$E$57","v":-43},0.61249885656337755,1.645]
[null,null,null,null,null,null,null,"Percent not computed",null,"N",{"$f":"OwnerHousingCostPrior5Year!$F$58/1.645","v":10.823400495297786},{"$f":"OwnerHousingCost!$F$58/1.645","v":9.4567472255951639},14.372754307035732,{"$f":"OwnerHousingCostPrior5Year!$E$58-OwnerHousingCost!$E$58","v":9},0.62618478043518289,1.645]
[null,null,null,null,null,null,null,"Owner Less than $20,000:",null,"N",{"$f":"OwnerHousingCostPrior5Year!$I$50/1.645","v":46.808510638297875},{"$f":"OwnerHousingCost!$I$50/1.645","v":39.513677811550153},61.256570279200552,{"$f":"OwnerHousingCostPrior5Year!$H$50-OwnerHousingCost!$H$50","v":7},0.11427345618755323,1.645]
[null,null,null,null,null,null,null,"Owner Less than 20.0 percent",null,"N",{"$f":"OwnerHousingCostPrior5Year!$I$51/1.645","v":6.6869300911854106},{"$f":"OwnerHousingCost!$I$51/1.645","v":9.7264437689969601},11.803336072308571,{"$f":"OwnerHousingCostPrior5Year!$H$51-OwnerHousingCost!$H$51","v":-9},0.7624962929857273,1.645]
[null,null,null,null,null,null,null,"Owner 20.0 to 24.9 percent",null,"N",{"$f":"OwnerHousingCostPrior5Year!$I$52/1.645","v":6.6869300911854106},{"$f":"OwnerHousingCost!$I$52/1.645","v":6.6869300911854106},9.4567472255951639,{"$f":"OwnerHousingCostPrior5Year!$H$52-OwnerHousingCost!$H$52","v":0},0,1.645]
[null,null,null,null,null,null,null,"Owner 25.0 to 29.9 percent",null,"N",{"$f":"OwnerHousingCostPrior5Year!$I$53/1.645","v":9.4567472255951639},{"$f":"OwnerHousingCost!$I$53/1.645","v":11.803336072308571},15.124444139361373,{"$f":"OwnerHousingCostPrior5Year!$H$53-OwnerHousingCost!$H$53","v":-9},0.59506319155078868,1.645]
[null,null,null,null,null,null,null,"Owner 30.0 or more",null,"N",{"$f":"OwnerHousingCostPrior5Year!$I$54/1.645","v":46.808510638297875},{"$f":"OwnerHousingCost!$I$54/1.645","v":37.08206686930091},59.716968706348027,{"$f":"OwnerHousingCostPrior5Year!$H$54-OwnerHousingCost!$H$54","v":16},0.26793054548160899,1.645]
[null,null,null,null,null,null,null,"Owner $20,000 to $34,999:",null,"N",{"$f":"OwnerHousingCostPrior5Year!$J$50/1.645","v":142.85714285714286},{"$f":"OwnerHousingCost!$J$50/1.645","v":150.75987841945289},207.69377507848986,{"$f":"OwnerHousingCostPrior5Year!$K$50-OwnerHousingCost!$K$50","v":22},0.10592517754413172,1.645]
[null,null,null,null,null,null,null,"Owner Less than 20.0 percent",null,"N",{"$f":"OwnerHousingCostPrior5Year!$J$51/1.645","v":9.1185410334346511},{"$f":"OwnerHousingCost!$J$51/1.645","v":4.86322188449848},10.334346504559271,{"$f":"OwnerHousingCostPrior5Year!$K$51-OwnerHousingCost!$K$51","v":4},0.38705882352941173,1.645]
[null,null,null,null,null,null,null,"Owner 20.0 to 24.9 percent",null,"N",{"$f":"OwnerHousingCostPrior5Year!$J$52/1.645","v":18.237082066869302},{"$f":"OwnerHousingCost!$J$52/1.645","v":12.1580547112462},21.91824483564735,{"$f":"OwnerHousingCostPrior5Year!$K$52-OwnerHousingCost!$K$52","v":5},0.22812045569762548,1.645]
[null,null,null,null,null,null,null,"Owner 25.0 to 29.9 percent",null,"N",{"$f":"OwnerHousingCostPrior5Year!$J$53/1.645","v":27.355623100303951},{"$f":"OwnerHousingCost!$J$53/1.645","v":17.021276595744681},32.218844984802431,{"$f":"OwnerHousingCostPrior5Year!$K$53-OwnerHousingCost!$K$53","v":6.3207845000308573},0.19618283967076908,1.645]
[null,null,null,null,null,null,null,"Owner 30.0 or more",null,"N",{"$f":"OwnerHousingCostPrior5Year!$J$54/1.645","v":115.5015197568389},{"$f":"OwnerHousingCost!$J$54/1.645","v":133.73860182370819},176.71053925530251,{"$f":"OwnerHousingCostPrior5Year!$K$54-OwnerHousingCost!$K$54","v":13},7.3566636459743096E-2,1.645]
[null,null,null,null,null,null,null,"Owner $35,000 to $49,999:",null,"N",{"$f":"OwnerHousingCostPrior5Year!$M$50/1.645","v":53.495440729483285},{"$f":"OwnerHousingCost!$M$50/1.645","v":49.240121580547111},72.707301917405246,{"$f":"OwnerHousingCostPrior5Year!$L$50-OwnerHousingCost!$L$50","v":14},0.19255287475670405,1.645]
[null,null,null,null,null,null,null,"Owner Less than 20.0 percent",null,"N",{"$f":"OwnerHousingCostPrior5Year!$M$51/1.645","v":20.668693009118542},{"$f":"OwnerHousingCost!$M$51/1.645","v":19.45288753799392},{"$f":"SQRT((K258^2)+(L258^2))","v":28.38326451046505},{"$f":"OwnerHousingCostPrior5Year!$L$51-OwnerHousingCost!$L$51","v":-4},0.14092811623290127,1.645]
[null,null,null,null,null,null,null,"Owner 20.0 to 24.9 percent",null,"N",{"$f":"OwnerHousingCostPrior5Year!$M$52/1.645","v":27.355623100303951},{"$f":"OwnerHousingCost!$M$52/1.645","v":26.13981762917933},37.836757008134796,{"$f":"OwnerHousingCostPrior5Year!$L$52-OwnerHousingCost!$L$52","v":5},0.13214663188298653,1.645]
[null,null,null,null,null,null,null,"Owner 25.0 to 29.9 percent",null,"N",{"$f":"OwnerHousingCostPrior5Year!$M$53/1.645","v":34.285929853382548},{"$f":"OwnerHousingCost!$M$53/1.645","v":32.583813454729231},47.299364532345066,{"$f":"OwnerHousingCostPrior5Year!$L$53-OwnerHousingCost!$L$53","v":1},2.1141933086990264E-2,1.645]
[null,null,null,null,null,null,null,"Owner 30.0 or more",null,"N",{"$f":"OwnerHousingCostPrior5Year!$M$54/1.645","v":40.121580547112458},{"$f":"OwnerHousingCost!$M$54/1.645","v":34.042553191489361},52.617835886644137,{"$f":"OwnerHousingCostPrior5Year!$L$54-OwnerHousingCost!$L$54","v":13},0.24706451302950222,1.645]
[null,null,null,null,null,null,null,"Owner $50,000 to $74,999:",null,"N",{"$f":"OwnerHousingCostPrior5Year!$O$50/1.645","v":59.574468085106382},{"$f":"OwnerHousingCost!$O$50/1.645","v":55.319148936170215},81.297758189543828,{"$f":"OwnerHousingCostPrior5Year!$N$50-OwnerHousingCost!$N$50","v":-64},0.7872295795756814,1.645]
[null,null,null,null,null,null,null,"Owner Less than 20.0 percent",null,"N",{"$f":"OwnerHousingCostPrior5Year!$O$51/1.645","v":46.808510638297875},{"$f":"OwnerHousingCost!$O$51/1.645","v":40.729483282674771},62.047783817388101,{"$f":"OwnerHousingCostPrior5Year!$N$51-OwnerHousingCost!$N$51","v":-8},0.12893288861927252,1.645]
[null,null,null,null,null,null,null,"Owner 20.0 to 24.9 percent",null,"N",{"$f":"OwnerHousingCostPrior5Year!$O$52/1.645","v":35.258358662613979},{"$f":"OwnerHousingCost!$O$52/1.645","v":29.179331306990882},45.766638844300822,{"$f":"OwnerHousingCostPrior5Year!$N$52-OwnerHousingCost!$N$52","v":-15},0.32774965299571923,1.645]
[null,null,null,null,null,null,null,"Owner 25.0 to 29.9 percent",null,"N",{"$f":"OwnerHousingCostPrior5Year!$O$53/1.645","v":58.601949828970469},{"$f":"OwnerHousingCost!$O$53/1.645","v":50.103135470715024},77.100666065566472,{"$f":"OwnerHousingCostPrior5Year!$N$53-OwnerHousingCost!$N$53","v":-23},0.29831130097424557,1.645]
[null,null,null,null,null,null,null,"Owner 30.0 or more",null,"N",{"$f":"OwnerHousingCostPrior5Year!$O$54/1.645","v":13.98176291793313},{"$f":"OwnerHousingCost!$O$54/1.645","v":23.70820668693009},27.52396698522011,{"$f":"OwnerHousingCostPrior5Year!$N$54-OwnerHousingCost!$N$54","v":-41},1.4896108552236051,1.645]
[null,null,null,null,null,null,null,"Owner $75,000 or more",null,"N",{"$f":"OwnerHousingCostPrior5Year!$Q$50/1.645","v":68.085106382978722},{"$f":"OwnerHousingCost!$Q$50/1.645","v":67.477203647416417},95.857992485011053,{"$f":"OwnerHousingCostPrior5Year!$P$50-OwnerHousingCost!$P$50","v":54},0.56333330794971292,1.645]
[null,null,null,null,null,null,null,"Owner Less than 20.0 percent",null,"N",{"$f":"OwnerHousingCostPrior5Year!$Q$51/1.645","v":61.398176291793312},{"$f":"OwnerHousingCost!$Q$51/1.645","v":55.319148936170215},82.643477002001276,{"$f":"OwnerHousingCostPrior5Year!$P$51-OwnerHousingCost!$P$51","v":29},0.35090488750004722,1.645]
[null,null,null,null,null,null,null,"Owner 20.0 to 24.9 percent",null,"N",{"$f":"OwnerHousingCostPrior5Year!$Q$52/1.645","v":29.787234042553191},{"$f":"OwnerHousingCost!$Q$52/1.645","v":32.218844984802431},43.87861989694489,{"$f":"OwnerHousingCostPrior5Year!$P$52-OwnerHousingCost!$P$52","v":-12},0.27348170995768983,1.645]
[null,null,null,null,null,null,null,"Owner 25.0 to 29.9 percent",null,"N",{"$f":"OwnerHousingCostPrior5Year!$Q$53/1.645","v":68.24232824181756},{"$f":"OwnerHousingCost!$Q$53/1.645","v":64.017671085231697},93.569640242125971,{"$f":"OwnerHousingCostPrior5Year!$P$53-OwnerHousingCost!$P$53","v":17},0.18168286162060537,1.645]
[null,null,null,null,null,null,null,"Owner 30.0 or more",null,"N",{"$f":"OwnerHousingCostPrior5Year!$Q$54/1.645","v":29.787234042553191},{"$f":"OwnerHousingCost!$Q$54/1.645","v":17.021276595744681},34.307479779993827,{"$f":"OwnerHousingCostPrior5Year!$P$54-OwnerHousingCost!$P$54","v":37},1.0784820172531675,1.645]

{"sheet":"SData_B01001Populuation","index":19,"n_rows":79,"n_cols":102,"rows_kept":79,"cut":false,"hidden":true,"merged":[]}
["GEO_ID","GEO_ID2","SUMLEVEL","GEO_NAME",{"$f":"[1]ACS_16_5YR_B01001_with_ann!D1","v":"B01001_001E"},{"$f":"[1]ACS_16_5YR_B01001_with_ann!E1","v":"B01001_001M"},{"$f":"[1]ACS_16_5YR_B01001_with_ann!F1","v":"B01001_002E"},{"$f":"[1]ACS_16_5YR_B01001_with_ann!G1","v":"B01001_002M"},{"$f":"[1]ACS_16_5YR_B01001_with_ann!H1","v":"B01001_003E"},{"$f":"[1]ACS_16_5YR_B01001_with_ann!I1","v":"B01001_003M"},{"$f":"[1]ACS_16_5YR_B01001_with_ann!J1","v":"B01001_004E"},{"$f":"[1]ACS_16_5YR_B01001_with_ann!K1","v":"B01001_004M"},{"$f":"[1]ACS_16_5YR_B01001_with_ann!L1","v":"B01001_005E"},{"$f":"[1]ACS_16_5YR_B01001_with_ann!M1","v":"B01001_005M"},{"$f":"[1]ACS_16_5YR_B01001_with_ann!N1","v":"B01001_006E"},{"$f":"[1]ACS_16_5YR_B01001_with_ann!O1","v":"B01001_006M"},{"$f":"[1]ACS_16_5YR_B01001_with_ann!P1","v":"B01001_007E"},{"$f":"[1]ACS_16_5YR_B01001_with_ann!Q1","v":"B01001_007M"},{"$f":"[1]ACS_16_5YR_B01001_with_ann!R1","v":"B01001_008E"},{"$f":"[1]ACS_16_5YR_B01001_with_ann!S1","v":"B01001_008M"},{"$f":"[1]ACS_16_5YR_B01001_with_ann!T1","v":"B01001_009E"},{"$f":"[1]ACS_16_5YR_B01001_with_ann!U1","v":"B01001_009M"},{"$f":"[1]ACS_16_5YR_B01001_with_ann!V1","v":"B01001_010E"},{"$f":"[1]ACS_16_5YR_B01001_with_ann!W1","v":"B01001_010M"},{"$f":"[1]ACS_16_5YR_B01001_with_ann!X1","v":"B01001_011E"},{"$f":"[1]ACS_16_5YR_B01001_with_ann!Y1","v":"B01001_011M"},{"$f":"[1]ACS_16_5YR_B01001_with_ann!Z1","v":"B01001_012E"},{"$f":"[1]ACS_16_5YR_B01001_with_ann!AA1","v":"B01001_012M"},{"$f":"[1]ACS_16_5YR_B01001_with_ann!AB1","v":"B01001_013E"},{"$f":"[1]ACS_16_5YR_B01001_with_ann!AC1","v":"B01001_013M"},{"$f":"[1]ACS_16_5YR_B01001_with_ann!AD1","v":"B01001_014E"},{"$f":"[1]ACS_16_5YR_B01001_with_ann!AE1","v":"B01001_014M"},{"$f":"[1]ACS_16_5YR_B01001_with_ann!AF1","v":"B01001_015E"},{"$f":"[1]ACS_16_5YR_B01001_with_ann!AG1","v":"B01001_015M"},{"$f":"[1]ACS_16_5YR_B01001_with_ann!AH1","v":"B01001_016E"},{"$f":"[1]ACS_16_5YR_B01001_with_ann!AI1","v":"B01001_016M"},{"$f":"[1]ACS_16_5YR_B01001_with_ann!AJ1","v":"B01001_017E"},{"$f":"[1]ACS_16_5YR_B01001_with_ann!AK1","v":"B01001_017M"},{"$f":"[1]ACS_16_5YR_B01001_with_ann!AL1","v":"B01001_018E"},{"$f":"[1]ACS_16_5YR_B01001_with_ann!AM1","v":"B01001_018M"},{"$f":"[1]ACS_16_5YR_B01001_with_ann!AN1","v":"B01001_019E"},{"$f":"[1]ACS_16_5YR_B01001_with_ann!AO1","v":"B01001_019M"},{"$f":"[1]ACS_16_5YR_B01001_with_ann!AP1","v":"B01001_020E"},{"$f":"[1]ACS_16_5YR_B01001_with_ann!AQ1","v":"B01001_020M"},{"$f":"[1]ACS_16_5YR_B01001_with_ann!AR1","v":"B01001_021E"},{"$f":"[1]ACS_16_5YR_B01001_with_ann!AS1","v":"B01001_021M"},{"$f":"[1]ACS_16_5YR_B01001_with_ann!AT1","v":"B01001_022E"},{"$f":"[1]ACS_16_5YR_B01001_with_ann!AU1","v":"B01001_022M"},{"$f":"[1]ACS_16_5YR_B01001_with_ann!AV1","v":"B01001_023E"},{"$f":"[1]ACS_16_5YR_B01001_with_ann!AW1","v":"B01001_023M"},{"$f":"[1]ACS_16_5YR_B01001_with_ann!AX1","v":"B01001_024E"},{"$f":"[1]ACS_16_5YR_B01001_with_ann!AY1","v":"B01001_024M"},{"$f":"[1]ACS_16_5YR_B01001_with_ann!AZ1","v":"B01001_025E"},{"$f":"[1]ACS_16_5YR_B01001_with_ann!BA1","v":"B01001_025M"},{"$f":"[1]ACS_16_5YR_B01001_with_ann!BB1","v":"B01001_026E"},{"$f":"[1]ACS_16_5YR_B01001_with_ann!BC1","v":"B01001_026M"},{"$f":"[1]ACS_16_5YR_B01001_with_ann!BD1","v":"B01001_027E"},{"$f":"[1]ACS_16_5YR_B01001_with_ann!BE1","v":"B01001_027M"},{"$f":"[1]ACS_16_5YR_B01001_with_ann!BF1","v":"B01001_028E"},{"$f":"[1]ACS_16_5YR_B01001_with_ann!BG1","v":"B01001_028M"},{"$f":"[1]ACS_16_5YR_B01001_with_ann!BH1","v":"B01001_029E"},{"$f":"[1]ACS_16_5YR_B01001_with_ann!BI1","v":"B01001_029M"},{"$f":"[1]ACS_16_5YR_B01001_with_ann!BJ1","v":"B01001_030E"},{"$f":"[1]ACS_16_5YR_B01001_with_ann!BK1","v":"B01001_030M"},{"$f":"[1]ACS_16_5YR_B01001_with_ann!BL1","v":"B01001_031E"},{"$f":"[1]ACS_16_5YR_B01001_with_ann!BM1","v":"B01001_031M"},{"$f":"[1]ACS_16_5YR_B01001_with_ann!BN1","v":"B01001_032E"},{"$f":"[1]ACS_16_5YR_B01001_with_ann!BO1","v":"B01001_032M"},{"$f":"[1]ACS_16_5YR_B01001_with_ann!BP1","v":"B01001_033E"},{"$f":"[1]ACS_16_5YR_B01001_with_ann!BQ1","v":"B01001_033M"},{"$f":"[1]ACS_16_5YR_B01001_with_ann!BR1","v":"B01001_034E"},{"$f":"[1]ACS_16_5YR_B01001_with_ann!BS1","v":"B01001_034M"},{"$f":"[1]ACS_16_5YR_B01001_with_ann!BT1","v":"B01001_035E"},{"$f":"[1]ACS_16_5YR_B01001_with_ann!BU1","v":"B01001_035M"},{"$f":"[1]ACS_16_5YR_B01001_with_ann!BV1","v":"B01001_036E"},{"$f":"[1]ACS_16_5YR_B01001_with_ann!BW1","v":"B01001_036M"},{"$f":"[1]ACS_16_5YR_B01001_with_ann!BX1","v":"B01001_037E"},{"$f":"[1]ACS_16_5YR_B01001_with_ann!BY1","v":"B01001_037M"},{"$f":"[1]ACS_16_5YR_B01001_with_ann!BZ1","v":"B01001_038E"},{"$f":"[1]ACS_16_5YR_B01001_with_ann!CA1","v":"B01001_038M"},{"$f":"[1]ACS_16_5YR_B01001_with_ann!CB1","v":"B01001_039E"},{"$f":"[1]ACS_16_5YR_B01001_with_ann!CC1","v":"B01001_039M"},{"$f":"[1]ACS_16_5YR_B01001_with_ann!CD1","v":"B01001_040E"},{"$f":"[1]ACS_16_5YR_B01001_with_ann!CE1","v":"B01001_040M"},{"$f":"[1]ACS_16_5YR_B01001_with_ann!CF1","v":"B01001_041E"},{"$f":"[1]ACS_16_5YR_B01001_with_ann!CG1","v":"B01001_041M"},{"$f":"[1]ACS_16_5YR_B01001_with_ann!CH1","v":"B01001_042E"},{"$f":"[1]ACS_16_5YR_B01001_with_ann!CI1","v":"B01001_042M"},{"$f":"[1]ACS_16_5YR_B01001_with_ann!CJ1","v":"B01001_043E"},{"$f":"[1]ACS_16_5YR_B01001_with_ann!CK1","v":"B01001_043M"},{"$f":"[1]ACS_16_5YR_B01001_with_ann!CL1","v":"B01001_044E"},{"$f":"[1]ACS_16_5YR_B01001_with_ann!CM1","v":"B01001_044M"},{"$f":"[1]ACS_16_5YR_B01001_with_ann!CN1","v":"B01001_045E"},{"$f":"[1]ACS_16_5YR_B01001_with_ann!CO1","v":"B01001_045M"},{"$f":"[1]ACS_16_5YR_B01001_with_ann!CP1","v":"B01001_046E"},{"$f":"[1]ACS_16_5YR_B01001_with_ann!CQ1","v":"B01001_046M"},{"$f":"[1]ACS_16_5YR_B01001_with_ann!CR1","v":"B01001_047E"},{"$f":"[1]ACS_16_5YR_B01001_with_ann!CS1","v":"B01001_047M"},{"$f":"[1]ACS_16_5YR_B01001_with_ann!CT1","v":"B01001_048E"},{"$f":"[1]ACS_16_5YR_B01001_with_ann!CU1","v":"B01001_048M"},{"$f":"[1]ACS_16_5YR_B01001_with_ann!CV1","v":"B01001_049E"},{"$f":"[1]ACS_16_5YR_B01001_with_ann!CW1","v":"B01001_049M"}]
["Geography Identifier","Geography Identifier","Geographic Summary Level","Geography",{"$f":"[1]ACS_16_5YR_B01001_with_ann!D2","v":"Estimate!!Total:"},{"$f":"[1]ACS_16_5YR_B01001_with_ann!E2","v":"Margin of Error!!Total:"},{"$f":"[1]ACS_16_5YR_B01001_with_ann!F2","v":"Estimate!!Total:!!Male:"},{"$f":"[1]ACS_16_5YR_B01001_with_ann!G2","v":"Margin of Error!!Total:!!Male:"},{"$f":"[1]ACS_16_5YR_B01001_with_ann!H2","v":"Estimate!!Total:!!Male:!!Under 5 years"},{"$f":"[1]ACS_16_5YR_B01001_with_ann!I2","v":"Margin of Error!!Total:!!Male:!!Under 5 years"},{"$f":"[1]ACS_16_5YR_B01001_with_ann!J2","v":"Estimate!!Total:!!Male:!!5 to 9 years"},{"$f":"[1]ACS_16_5YR_B01001_with_ann!K2","v":"Margin of Error!!Total:!!Male:!!5 to 9 years"},{"$f":"[1]ACS_16_5YR_B01001_with_ann!L2","v":"Estimate!!Total:!!Male:!!10 to 14 years"},{"$f":"[1]ACS_16_5YR_B01001_with_ann!M2","v":"Margin of Error!!Total:!!Male:!!10 to 14 years"},{"$f":"[1]ACS_16_5YR_B01001_with_ann!N2","v":"Estimate!!Total:!!Male:!!15 to 17 years"},{"$f":"[1]ACS_16_5YR_B01001_with_ann!O2","v":"Margin of Error!!Total:!!Male:!!15 to 17 years"},{"$f":"[1]ACS_16_5YR_B01001_with_ann!P2","v":"Estimate!!Total:!!Male:!!18 and 19 years"},{"$f":"[1]ACS_16_5YR_B01001_with_ann!Q2","v":"Margin of Error!!Total:!!Male:!!18 and 19 years"},{"$f":"[1]ACS_16_5YR_B01001_with_ann!R2","v":"Estimate!!Total:!!Male:!!20 years"},{"$f":"[1]ACS_16_5YR_B01001_with_ann!S2","v":"Margin of Error!!Total:!!Male:!!20 years"},{"$f":"[1]ACS_16_5YR_B01001_with_ann!T2","v":"Estimate!!Total:!!Male:!!21 years"},{"$f":"[1]ACS_16_5YR_B01001_with_ann!U2","v":"Margin of Error!!Total:!!Male:!!21 years"},{"$f":"[1]ACS_16_5YR_B01001_with_ann!V2","v":"Estimate!!Total:!!Male:!!22 to 24 years"},{"$f":"[1]ACS_16_5YR_B01001_with_ann!W2","v":"Margin of Error!!Total:!!Male:!!22 to 24 years"},{"$f":"[1]ACS_16_5YR_B01001_with_ann!X2","v":"Estimate!!Total:!!Male:!!25 to 29 years"},{"$f":"[1]ACS_16_5YR_B01001_with_ann!Y2","v":"Margin of Error!!Total:!!Male:!!25 to 29 years"},{"$f":"[1]ACS_16_5YR_B01001_with_ann!Z2","v":"Estimate!!Total:!!Male:!!30 to 34 years"},{"$f":"[1]ACS_16_5YR_B01001_with_ann!AA2","v":"Margin of Error!!Total:!!Male:!!30 to 34 years"},{"$f":"[1]ACS_16_5YR_B01001_with_ann!AB2","v":"Estimate!!Total:!!Male:!!35 to 39 years"},{"$f":"[1]ACS_16_5YR_B01001_with_ann!AC2","v":"Margin of Error!!Total:!!Male:!!35 to 39 years"},{"$f":"[1]ACS_16_5YR_B01001_with_ann!AD2","v":"Estimate!!Total:!!Male:!!40 to 44 years"},{"$f":"[1]ACS_16_5YR_B01001_with_ann!AE2","v":"Margin of Error!!Total:!!Male:!!40 to 44 years"},{"$f":"[1]ACS_16_5YR_B01001_with_ann!AF2","v":"Estimate!!Total:!!Male:!!45 to 49 years"},{"$f":"[1]ACS_16_5YR_B01001_with_ann!AG2","v":"Margin of Error!!Total:!!Male:!!45 to 49 years"},{"$f":"[1]ACS_16_5YR_B01001_with_ann!AH2","v":"Estimate!!Total:!!Male:!!50 to 54 years"},{"$f":"[1]ACS_16_5YR_B01001_with_ann!AI2","v":"Margin of Error!!Total:!!Male:!!50 to 54 years"},{"$f":"[1]ACS_16_5YR_B01001_with_ann!AJ2","v":"Estimate!!Total:!!Male:!!55 to 59 years"},{"$f":"[1]ACS_16_5YR_B01001_with_ann!AK2","v":"Margin of Error!!Total:!!Male:!!55 to 59 years"},{"$f":"[1]ACS_16_5YR_B01001_with_ann!AL2","v":"Estimate!!Total:!!Male:!!60 and 61 years"},{"$f":"[1]ACS_16_5YR_B01001_with_ann!AM2","v":"Margin of Error!!Total:!!Male:!!60 and 61 years"},{"$f":"[1]ACS_16_5YR_B01001_with_ann!AN2","v":"Estimate!!Total:!!Male:!!62 to 64 years"},{"$f":"[1]ACS_16_5YR_B01001_with_ann!AO2","v":"Margin of Error!!Total:!!Male:!!62 to 64 years"},{"$f":"[1]ACS_16_5YR_B01001_with_ann!AP2","v":"Estimate!!Total:!!Male:!!65 and 66 years"},{"$f":"[1]ACS_16_5YR_B01001_with_ann!AQ2","v":"Margin of Error!!Total:!!Male:!!65 and 66 years"},{"$f":"[1]ACS_16_5YR_B01001_with_ann!AR2","v":"Estimate!!Total:!!Male:!!67 to 69 years"},{"$f":"[1]ACS_16_5YR_B01001_with_ann!AS2","v":"Margin of Error!!Total:!!Male:!!67 to 69 years"},{"$f":"[1]ACS_16_5YR_B01001_with_ann!AT2","v":"Estimate!!Total:!!Male:!!70 to 74 years"},{"$f":"[1]ACS_16_5YR_B01001_with_ann!AU2","v":"Margin of Error!!Total:!!Male:!!70 to 74 years"},{"$f":"[1]ACS_16_5YR_B01001_with_ann!AV2","v":"Estimate!!Total:!!Male:!!75 to 79 years"},{"$f":"[1]ACS_16_5YR_B01001_with_ann!AW2","v":"Margin of Error!!Total:!!Male:!!75 to 79 years"},{"$f":"[1]ACS_16_5YR_B01001_with_ann!AX2","v":"Estimate!!Total:!!Male:!!80 to 84 years"},{"$f":"[1]ACS_16_5YR_B01001_with_ann!AY2","v":"Margin of Error!!Total:!!Male:!!80 to 84 years"},{"$f":"[1]ACS_16_5YR_B01001_with_ann!AZ2","v":"Estimate!!Total:!!Male:!!85 years and over"},{"$f":"[1]ACS_16_5YR_B01001_with_ann!BA2","v":"Margin of Error!!Total:!!Male:!!85 years and over"},{"$f":"[1]ACS_16_5YR_B01001_with_ann!BB2","v":"Estimate!!Total:!!Female:"},{"$f":"[1]ACS_16_5YR_B01001_with_ann!BC2","v":"Margin of Error!!Total:!!Female:"},{"$f":"[1]ACS_16_5YR_B01001_with_ann!BD2","v":"Estimate!!Total:!!Female:!!Under 5 years"},{"$f":"[1]ACS_16_5YR_B01001_with_ann!BE2","v":"Margin of Error!!Total:!!Female:!!Under 5 years"},{"$f":"[1]ACS_16_5YR_B01001_with_ann!BF2","v":"Estimate!!Total:!!Female:!!5 to 9 years"},{"$f":"[1]ACS_16_5YR_B01001_with_ann!BG2","v":"Margin of Error!!Total:!!Female:!!5 to 9 years"},{"$f":"[1]ACS_16_5YR_B01001_with_ann!BH2","v":"Estimate!!Total:!!Female:!!10 to 14 years"},{"$f":"[1]ACS_16_5YR_B01001_with_ann!BI2","v":"Margin of Error!!Total:!!Female:!!10 to 14 years"},{"$f":"[1]ACS_16_5YR_B01001_with_ann!BJ2","v":"Estimate!!Total:!!Female:!!15 to 17 years"},{"$f":"[1]ACS_16_5YR_B01001_with_ann!BK2","v":"Margin of Error!!Total:!!Female:!!15 to 17 years"},{"$f":"[1]ACS_16_5YR_B01001_with_ann!BL2","v":"Estimate!!Total:!!Female:!!18 and 19 years"},{"$f":"[1]ACS_16_5YR_B01001_with_ann!BM2","v":"Margin of Error!!Total:!!Female:!!18 and 19 years"},{"$f":"[1]ACS_16_5YR_B01001_with_ann!BN2","v":"Estimate!!Total:!!Female:!!20 years"},{"$f":"[1]ACS_16_5YR_B01001_with_ann!BO2","v":"Margin of Error!!Total:!!Female:!!20 years"},{"$f":"[1]ACS_16_5YR_B01001_with_ann!BP2","v":"Estimate!!Total:!!Female:!!21 years"},{"$f":"[1]ACS_16_5YR_B01001_with_ann!BQ2","v":"Margin of Error!!Total:!!Female:!!21 years"},{"$f":"[1]ACS_16_5YR_B01001_with_ann!BR2","v":"Estimate!!Total:!!Female:!!22 to 24 years"},{"$f":"[1]ACS_16_5YR_B01001_with_ann!BS2","v":"Margin of Error!!Total:!!Female:!!22 to 24 years"},{"$f":"[1]ACS_16_5YR_B01001_with_ann!BT2","v":"Estimate!!Total:!!Female:!!25 to 29 years"},{"$f":"[1]ACS_16_5YR_B01001_with_ann!BU2","v":"Margin of Error!!Total:!!Female:!!25 to 29 years"},{"$f":"[1]ACS_16_5YR_B01001_with_ann!BV2","v":"Estimate!!Total:!!Female:!!30 to 34 years"},{"$f":"[1]ACS_16_5YR_B01001_with_ann!BW2","v":"Margin of Error!!Total:!!Female:!!30 to 34 years"},{"$f":"[1]ACS_16_5YR_B01001_with_ann!BX2","v":"Estimate!!Total:!!Female:!!35 to 39 years"},{"$f":"[1]ACS_16_5YR_B01001_with_ann!BY2","v":"Margin of Error!!Total:!!Female:!!35 to 39 years"},{"$f":"[1]ACS_16_5YR_B01001_with_ann!BZ2","v":"Estimate!!Total:!!Female:!!40 to 44 years"},{"$f":"[1]ACS_16_5YR_B01001_with_ann!CA2","v":"Margin of Error!!Total:!!Female:!!40 to 44 years"},{"$f":"[1]ACS_16_5YR_B01001_with_ann!CB2","v":"Estimate!!Total:!!Female:!!45 to 49 years"},{"$f":"[1]ACS_16_5YR_B01001_with_ann!CC2","v":"Margin of Error!!Total:!!Female:!!45 to 49 years"},{"$f":"[1]ACS_16_5YR_B01001_with_ann!CD2","v":"Estimate!!Total:!!Female:!!50 to 54 years"},{"$f":"[1]ACS_16_5YR_B01001_with_ann!CE2","v":"Margin of Error!!Total:!!Female:!!50 to 54 years"},{"$f":"[1]ACS_16_5YR_B01001_with_ann!CF2","v":"Estimate!!Total:!!Female:!!55 to 59 years"},{"$f":"[1]ACS_16_5YR_B01001_with_ann!CG2","v":"Margin of Error!!Total:!!Female:!!55 to 59 years"},{"$f":"[1]ACS_16_5YR_B01001_with_ann!CH2","v":"Estimate!!Total:!!Female:!!60 and 61 years"},{"$f":"[1]ACS_16_5YR_B01001_with_ann!CI2","v":"Margin of Error!!Total:!!Female:!!60 and 61 years"},{"$f":"[1]ACS_16_5YR_B01001_with_ann!CJ2","v":"Estimate!!Total:!!Female:!!62 to 64 years"},{"$f":"[1]ACS_16_5YR_B01001_with_ann!CK2","v":"Margin of Error!!Total:!!Female:!!62 to 64 years"},{"$f":"[1]ACS_16_5YR_B01001_with_ann!CL2","v":"Estimate!!Total:!!Female:!!65 and 66 years"},{"$f":"[1]ACS_16_5YR_B01001_with_ann!CM2","v":"Margin of Error!!Total:!!Female:!!65 and 66 years"},{"$f":"[1]ACS_16_5YR_B01001_with_ann!CN2","v":"Estimate!!Total:!!Female:!!67 to 69 years"},{"$f":"[1]ACS_16_5YR_B01001_with_ann!CO2","v":"Margin of Error!!Total:!!Female:!!67 to 69 years"},{"$f":"[1]ACS_16_5YR_B01001_with_ann!CP2","v":"Estimate!!Total:!!Female:!!70 to 74 years"},{"$f":"[1]ACS_16_5YR_B01001_with_ann!CQ2","v":"Margin of Error!!Total:!!Female:!!70 to 74 years"},{"$f":"[1]ACS_16_5YR_B01001_with_ann!CR2","v":"Estimate!!Total:!!Female:!!75 to 79 years"},{"$f":"[1]ACS_16_5YR_B01001_with_ann!CS2","v":"Margin of Error!!Total:!!Female:!!75 to 79 years"},{"$f":"[1]ACS_16_5YR_B01001_with_ann!CT2","v":"Estimate!!Total:!!Female:!!80 to 84 years"},{"$f":"[1]ACS_16_5YR_B01001_with_ann!CU2","v":"Margin of Error!!Total:!!Female:!!80 to 84 years"},{"$f":"[1]ACS_16_5YR_B01001_with_ann!CV2","v":"Estimate!!Total:!!Female:!!85 years and over"},{"$f":"[1]ACS_16_5YR_B01001_with_ann!CW2","v":"Margin of Error!!Total:!!Female:!!85 years and over"}]
["0600000US3300500820","0600000US3300500820","060",{"$f":"[1]ACS_16_5YR_B01001_with_ann!C44","v":"Alstead"},{"$f":"[1]ACS_16_5YR_B01001_with_ann!D44","v":1599},{"$f":"[1]ACS_16_5YR_B01001_with_ann!E44","v":169},{"$f":"[1]ACS_16_5YR_B01001_with_ann!F44","v":770},{"$f":"[1]ACS_16_5YR_B01001_with_ann!G44","v":116},{"$f":"[1]ACS_16_5YR_B01001_with_ann!H44","v":12},{"$f":"[1]ACS_16_5YR_B01001_with_ann!I44","v":11},{"$f":"[1]ACS_16_5YR_B01001_with_ann!J44","v":14},{"$f":"[1]ACS_16_5YR_B01001_with_ann!K44","v":9},{"$f":"[1]ACS_16_5YR_B01001_with_ann!L44","v":43},{"$f":"[1]ACS_16_5YR_B01001_with_ann!M44","v":28},{"$f":"[1]ACS_16_5YR_B01001_with_ann!N44","v":39},{"$f":"[1]ACS_16_5YR_B01001_with_ann!O44","v":28},{"$f":"[1]ACS_16_5YR_B01001_with_ann!P44","v":46},{"$f":"[1]ACS_16_5YR_B01001_with_ann!Q44","v":32},{"$f":"[1]ACS_16_5YR_B01001_with_ann!R44","v":0},{"$f":"[1]ACS_16_5YR_B01001_with_ann!S44","v":12},{"$f":"[1]ACS_16_5YR_B01001_with_ann!T44","v":0},{"$f":"[1]ACS_16_5YR_B01001_with_ann!U44","v":12},{"$f":"[1]ACS_16_5YR_B01001_with_ann!V44","v":6},{"$f":"[1]ACS_16_5YR_B01001_with_ann!W44","v":8},{"$f":"[1]ACS_16_5YR_B01001_with_ann!X44","v":65},{"$f":"[1]ACS_16_5YR_B01001_with_ann!Y44","v":50},{"$f":"[1]ACS_16_5YR_B01001_with_ann!Z44","v":30},{"$f":"[1]ACS_16_5YR_B01001_with_ann!AA44","v":19},{"$f":"[1]ACS_16_5YR_B01001_with_ann!AB44","v":34},{"$f":"[1]ACS_16_5YR_B01001_with_ann!AC44","v":22},{"$f":"[1]ACS_16_5YR_B01001_with_ann!AD44","v":41},{"$f":"[1]ACS_16_5YR_B01001_with_ann!AE44","v":24},{"$f":"[1]ACS_16_5YR_B01001_with_ann!AF44","v":50},{"$f":"[1]ACS_16_5YR_B01001_with_ann!AG44","v":32},{"$f":"[1]ACS_16_5YR_B01001_with_ann!AH44","v":52},{"$f":"[1]ACS_16_5YR_B01001_with_ann!AI44","v":23},{"$f":"[1]ACS_16_5YR_B01001_with_ann!AJ44","v":78},{"$f":"[1]ACS_16_5YR_B01001_with_ann!AK44","v":56},{"$f":"[1]ACS_16_5YR_B01001_with_ann!AL44","v":20},{"$f":"[1]ACS_16_5YR_B01001_with_ann!AM44","v":14},{"$f":"[1]ACS_16_5YR_B01001_with_ann!AN44","v":82},{"$f":"[1]ACS_16_5YR_B01001_with_ann!AO44","v":49},{"$f":"[1]ACS_16_5YR_B01001_with_ann!AP44","v":17},{"$f":"[1]ACS_16_5YR_B01001_with_ann!AQ44","v":18},{"$f":"[1]ACS_16_5YR_B01001_with_ann!AR44","v":56},{"$f":"[1]ACS_16_5YR_B01001_with_ann!AS44","v":35},{"$f":"[1]ACS_16_5YR_B01001_with_ann!AT44","v":33},{"$f":"[1]ACS_16_5YR_B01001_with_ann!AU44","v":16},{"$f":"[1]ACS_16_5YR_B01001_with_ann!AV44","v":37},{"$f":"[1]ACS_16_5YR_B01001_with_ann!AW44","v":31},{"$f":"[1]ACS_16_5YR_B01001_with_ann!AX44","v":15},{"$f":"[1]ACS_16_5YR_B01001_with_ann!AY44","v":11},{"$f":"[1]ACS_16_5YR_B01001_with_ann!AZ44","v":0},{"$f":"[1]ACS_16_5YR_B01001_with_ann!BA44","v":12},{"$f":"[1]ACS_16_5YR_B01001_with_ann!BB44","v":829},{"$f":"[1]ACS_16_5YR_B01001_with_ann!BC44","v":95},{"$f":"[1]ACS_16_5YR_B01001_with_ann!BD44","v":20},{"$f":"[1]ACS_16_5YR_B01001_with_ann!BE44","v":19},{"$f":"[1]ACS_16_5YR_B01001_with_ann!BF44","v":42},{"$f":"[1]ACS_16_5YR_B01001_with_ann!BG44","v":23},{"$f":"[1]ACS_16_5YR_B01001_with_ann!BH44","v":29},{"$f":"[1]ACS_16_5YR_B01001_with_ann!BI44","v":18},{"$f":"[1]ACS_16_5YR_B01001_with_ann!BJ44","v":29},{"$f":"[1]ACS_16_5YR_B01001_with_ann!BK44","v":22},{"$f":"[1]ACS_16_5YR_B01001_with_ann!BL44","v":7},{"$f":"[1]ACS_16_5YR_B01001_with_ann!BM44","v":12},{"$f":"[1]ACS_16_5YR_B01001_with_ann!BN44","v":0},{"$f":"[1]ACS_16_5YR_B01001_with_ann!BO44","v":12},{"$f":"[1]ACS_16_5YR_B01001_with_ann!BP44","v":0},{"$f":"[1]ACS_16_5YR_B01001_with_ann!BQ44","v":12},{"$f":"[1]ACS_16_5YR_B01001_with_ann!BR44","v":31},{"$f":"[1]ACS_16_5YR_B01001_with_ann!BS44","v":31},{"$f":"[1]ACS_16_5YR_B01001_with_ann!BT44","v":59},{"$f":"[1]ACS_16_5YR_B01001_with_ann!BU44","v":28},{"$f":"[1]ACS_16_5YR_B01001_with_ann!BV44","v":20},{"$f":"[1]ACS_16_5YR_B01001_with_ann!BW44","v":21},{"$f":"[1]ACS_16_5YR_B01001_with_ann!BX44","v":22},{"$f":"[1]ACS_16_5YR_B01001_with_ann!BY44","v":17},{"$f":"[1]ACS_16_5YR_B01001_with_ann!BZ44","v":30},{"$f":"[1]ACS_16_5YR_B01001_with_ann!CA44","v":16},{"$f":"[1]ACS_16_5YR_B01001_with_ann!CB44","v":32},{"$f":"[1]ACS_16_5YR_B01001_with_ann!CC44","v":20},{"$f":"[1]ACS_16_5YR_B01001_with_ann!CD44","v":81},{"$f":"[1]ACS_16_5YR_B01001_with_ann!CE44","v":33},{"$f":"[1]ACS_16_5YR_B01001_with_ann!CF44","v":99},{"$f":"[1]ACS_16_5YR_B01001_with_ann!CG44","v":54},{"$f":"[1]ACS_16_5YR_B01001_with_ann!CH44","v":15},{"$f":"[1]ACS_16_5YR_B01001_with_ann!CI44","v":11},{"$f":"[1]ACS_16_5YR_B01001_with_ann!CJ44","v":50},{"$f":"[1]ACS_16_5YR_B01001_with_ann!CK44","v":27},{"$f":"[1]ACS_16_5YR_B01001_with_ann!CL44","v":19},{"$f":"[1]ACS_16_5YR_B01001_with_ann!CM44","v":14},{"$f":"[1]ACS_16_5YR_B01001_with_ann!CN44","v":64},{"$f":"[1]ACS_16_5YR_B01001_with_ann!CO44","v":33},{"$f":"[1]ACS_16_5YR_B01001_with_ann!CP44","v":90},{"$f":"[1]ACS_16_5YR_B01001_with_ann!CQ44","v":58},{"$f":"[1]ACS_16_5YR_B01001_with_ann!CR44","v":35},{"$f":"[1]ACS_16_5YR_B01001_with_ann!CS44","v":36},{"$f":"[1]ACS_16_5YR_B01001_with_ann!CT44","v":43},{"$f":"[1]ACS_16_5YR_B01001_with_ann!CU44","v":31},{"$f":"[1]ACS_16_5YR_B01001_with_ann!CV44","v":12},{"$f":"[1]ACS_16_5YR_B01001_with_ann!CW44","v":11}]
["0600000US3300512260","0600000US3300512260","060",{"$f":"[1]ACS_16_5YR_B01001_with_ann!C45","v":"Chesterfield"},{"$f":"[1]ACS_16_5YR_B01001_with_ann!D45","v":3577},{"$f":"[1]ACS_16_5YR_B01001_with_ann!E45","v":15},{"$f":"[1]ACS_16_5YR_B01001_with_ann!F45","v":2000},{"$f":"[1]ACS_16_5YR_B01001_with_ann!G45","v":139},{"$f":"[1]ACS_16_5YR_B01001_with_ann!H45","v":121},{"$f":"[1]ACS_16_5YR_B01001_with_ann!I45","v":74},{"$f":"[1]ACS_16_5YR_B01001_with_ann!J45","v":170},{"$f":"[1]ACS_16_5YR_B01001_with_ann!K45","v":89},{"$f":"[1]ACS_16_5YR_B01001_with_ann!L45","v":187},{"$f":"[1]ACS_16_5YR_B01001_with_ann!M45","v":78},{"$f":"[1]ACS_16_5YR_B01001_with_ann!N45","v":95},{"$f":"[1]ACS_16_5YR_B01001_with_ann!O45","v":84},{"$f":"[1]ACS_16_5YR_B01001_with_ann!P45","v":40},{"$f":"[1]ACS_16_5YR_B01001_with_ann!Q45","v":49},{"$f":"[1]ACS_16_5YR_B01001_with_ann!R45","v":0},{"$f":"[1]ACS_16_5YR_B01001_with_ann!S45","v":12},{"$f":"[1]ACS_16_5YR_B01001_with_ann!T45","v":17},{"$f":"[1]ACS_16_5YR_B01001_with_ann!U45","v":27},{"$f":"[1]ACS_16_5YR_B01001_with_ann!V45","v":35},{"$f":"[1]ACS_16_5YR_B01001_with_ann!W45","v":39},{"$f":"[1]ACS_16_5YR_B01001_with_ann!X45","v":102},{"$f":"[1]ACS_16_5YR_B01001_with_ann!Y45","v":80},{"$f":"[1]ACS_16_5YR_B01001_with_ann!Z45","v":172},{"$f":"[1]ACS_16_5YR_B01001_with_ann!AA45","v":107},{"$f":"[1]ACS_16_5YR_B01001_with_ann!AB45","v":21},{"$f":"[1]ACS_16_5YR_B01001_with_ann!AC45","v":23},{"$f":"[1]ACS_16_5YR_B01001_with_ann!AD45","v":187},{"$f":"[1]ACS_16_5YR_B01001_with_ann!AE45","v":106},{"$f":"[1]ACS_16_5YR_B01001_with_ann!AF45","v":69},{"$f":"[1]ACS_16_5YR_B01001_with_ann!AG45","v":104},{"$f":"[1]ACS_16_5YR_B01001_with_ann!AH45","v":55},{"$f":"[1]ACS_16_5YR_B01001_with_ann!AI45","v":44},{"$f":"[1]ACS_16_5YR_B01001_with_ann!AJ45","v":108},{"$f":"[1]ACS_16_5YR_B01001_with_ann!AK45","v":101},{"$f":"[1]ACS_16_5YR_B01001_with_ann!AL45","v":18},{"$f":"[1]ACS_16_5YR_B01001_with_ann!AM45","v":27},{"$f":"[1]ACS_16_5YR_B01001_with_ann!AN45","v":79},{"$f":"[1]ACS_16_5YR_B01001_with_ann!AO45","v":97},{"$f":"[1]ACS_16_5YR_B01001_with_ann!AP45","v":95},{"$f":"[1]ACS_16_5YR_B01001_with_ann!AQ45","v":75},{"$f":"[1]ACS_16_5YR_B01001_with_ann!AR45","v":56},{"$f":"[1]ACS_16_5YR_B01001_with_ann!AS45","v":46},{"$f":"[1]ACS_16_5YR_B01001_with_ann!AT45","v":216},{"$f":"[1]ACS_16_5YR_B01001_with_ann!AU45","v":118},{"$f":"[1]ACS_16_5YR_B01001_with_ann!AV45","v":68},{"$f":"[1]ACS_16_5YR_B01001_with_ann!AW45","v":72},{"$f":"[1]ACS_16_5YR_B01001_with_ann!AX45","v":75},{"$f":"[1]ACS_16_5YR_B01001_with_ann!AY45","v":52},{"$f":"[1]ACS_16_5YR_B01001_with_ann!AZ45","v":14},{"$f":"[1]ACS_16_5YR_B01001_with_ann!BA45","v":22},{"$f":"[1]ACS_16_5YR_B01001_with_ann!BB45","v":1577},{"$f":"[1]ACS_16_5YR_B01001_with_ann!BC45","v":140},{"$f":"[1]ACS_16_5YR_B01001_with_ann!BD45","v":20},{"$f":"[1]ACS_16_5YR_B01001_with_ann!BE45","v":30},{"$f":"[1]ACS_16_5YR_B01001_with_ann!BF45","v":59},{"$f":"[1]ACS_16_5YR_B01001_with_ann!BG45","v":44},{"$f":"[1]ACS_16_5YR_B01001_with_ann!BH45","v":85},{"$f":"[1]ACS_16_5YR_B01001_with_ann!BI45","v":68},{"$f":"[1]ACS_16_5YR_B01001_with_ann!BJ45","v":0},{"$f":"[1]ACS_16_5YR_B01001_with_ann!BK45","v":12},{"$f":"[1]ACS_16_5YR_B01001_with_ann!BL45","v":5},{"$f":"[1]ACS_16_5YR_B01001_with_ann!BM45","v":12},{"$f":"[1]ACS_16_5YR_B01001_with_ann!BN45","v":0},{"$f":"[1]ACS_16_5YR_B01001_with_ann!BO45","v":12},{"$f":"[1]ACS_16_5YR_B01001_with_ann!BP45","v":23},{"$f":"[1]ACS_16_5YR_B01001_with_ann!BQ45","v":35},{"$f":"[1]ACS_16_5YR_B01001_with_ann!BR45","v":26},{"$f":"[1]ACS_16_5YR_B01001_with_ann!BS45","v":41},{"$f":"[1]ACS_16_5YR_B01001_with_ann!BT45","v":114},{"$f":"[1]ACS_16_5YR_B01001_with_ann!BU45","v":82},{"$f":"[1]ACS_16_5YR_B01001_with_ann!BV45","v":155},{"$f":"[1]ACS_16_5YR_B01001_with_ann!BW45","v":77},{"$f":"[1]ACS_16_5YR_B01001_with_ann!BX45","v":84},{"$f":"[1]ACS_16_5YR_B01001_with_ann!BY45","v":71},{"$f":"[1]ACS_16_5YR_B01001_with_ann!BZ45","v":44},{"$f":"[1]ACS_16_5YR_B01001_with_ann!CA45","v":38},{"$f":"[1]ACS_16_5YR_B01001_with_ann!CB45","v":134},{"$f":"[1]ACS_16_5YR_B01001_with_ann!CC45","v":91},{"$f":"[1]ACS_16_5YR_B01001_with_ann!CD45","v":125},{"$f":"[1]ACS_16_5YR_B01001_with_ann!CE45","v":90},{"$f":"[1]ACS_16_5YR_B01001_with_ann!CF45","v":143},{"$f":"[1]ACS_16_5YR_B01001_with_ann!CG45","v":108},{"$f":"[1]ACS_16_5YR_B01001_with_ann!CH45","v":83},{"$f":"[1]ACS_16_5YR_B01001_with_ann!CI45","v":98},{"$f":"[1]ACS_16_5YR_B01001_with_ann!CJ45","v":116},{"$f":"[1]ACS_16_5YR_B01001_with_ann!CK45","v":80},{"$f":"[1]ACS_16_5YR_B01001_with_ann!CL45","v":54},{"$f":"[1]ACS_16_5YR_B01001_with_ann!CM45","v":47},{"$f":"[1]ACS_16_5YR_B01001_with_ann!CN45","v":35},{"$f":"[1]ACS_16_5YR_B01001_with_ann!CO45","v":36},{"$f":"[1]ACS_16_5YR_B01001_with_ann!CP45","v":155},{"$f":"[1]ACS_16_5YR_B01001_with_ann!CQ45","v":102},{"$f":"[1]ACS_16_5YR_B01001_with_ann!CR45","v":28},{"$f":"[1]ACS_16_5YR_B01001_with_ann!CS45","v":33},{"$f":"[1]ACS_16_5YR_B01001_with_ann!CT45","v":54},{"$f":"[1]ACS_16_5YR_B01001_with_ann!CU45","v":47},{"$f":"[1]ACS_16_5YR_B01001_with_ann!CV45","v":35},{"$f":"[1]ACS_16_5YR_B01001_with_ann!CW45","v":38}]
["0600000US3300519140","0600000US3300519140","060",{"$f":"[1]ACS_16_5YR_B01001_with_ann!C46","v":"Dublin"},{"$f":"[1]ACS_16_5YR_B01001_with_ann!D46","v":1711},{"$f":"[1]ACS_16_5YR_B01001_with_ann!E46","v":216},{"$f":"[1]ACS_16_5YR_B01001_with_ann!F46","v":800},{"$f":"[1]ACS_16_5YR_B01001_with_ann!G46","v":118},{"$f":"[1]ACS_16_5YR_B01001_with_ann!H46","v":24},{"$f":"[1]ACS_16_5YR_B01001_with_ann!I46","v":19},{"$f":"[1]ACS_16_5YR_B01001_with_ann!J46","v":32},{"$f":"[1]ACS_16_5YR_B01001_with_ann!K46","v":18},{"$f":"[1]ACS_16_5YR_B01001_with_ann!L46","v":38},{"$f":"[1]ACS_16_5YR_B01001_with_ann!M46","v":23},{"$f":"[1]ACS_16_5YR_B01001_with_ann!N46","v":27},{"$f":"[1]ACS_16_5YR_B01001_with_ann!O46","v":19},{"$f":"[1]ACS_16_5YR_B01001_with_ann!P46","v":15},{"$f":"[1]ACS_16_5YR_B01001_with_ann!Q46","v":15},{"$f":"[1]ACS_16_5YR_B01001_with_ann!R46","v":9},{"$f":"[1]ACS_16_5YR_B01001_with_ann!S46","v":10},{"$f":"[1]ACS_16_5YR_B01001_with_ann!T46","v":12},{"$f":"[1]ACS_16_5YR_B01001_with_ann!U46","v":15},{"$f":"[1]ACS_16_5YR_B01001_with_ann!V46","v":37},{"$f":"[1]ACS_16_5YR_B01001_with_ann!W46","v":24},{"$f":"[1]ACS_16_5YR_B01001_with_ann!X46","v":25},{"$f":"[1]ACS_16_5YR_B01001_with_ann!Y46","v":28},{"$f":"[1]ACS_16_5YR_B01001_with_ann!Z46","v":38},{"$f":"[1]ACS_16_5YR_B01001_with_ann!AA46","v":35},{"$f":"[1]ACS_16_5YR_B01001_with_ann!AB46","v":39},{"$f":"[1]ACS_16_5YR_B01001_with_ann!AC46","v":29},{"$f":"[1]ACS_16_5YR_B01001_with_ann!AD46","v":30},{"$f":"[1]ACS_16_5YR_B01001_with_ann!AE46","v":18},{"$f":"[1]ACS_16_5YR_B01001_with_ann!AF46","v":58},{"$f":"[1]ACS_16_5YR_B01001_with_ann!AG46","v":24},{"$f":"[1]ACS_16_5YR_B01001_with_ann!AH46","v":79},{"$f":"[1]ACS_16_5YR_B01001_with_ann!AI46","v":29},{"$f":"[1]ACS_16_5YR_B01001_with_ann!AJ46","v":104},{"$f":"[1]ACS_16_5YR_B01001_with_ann!AK46","v":59},{"$f":"[1]ACS_16_5YR_B01001_with_ann!AL46","v":17},{"$f":"[1]ACS_16_5YR_B01001_with_ann!AM46","v":12},{"$f":"[1]ACS_16_5YR_B01001_with_ann!AN46","v":11},{"$f":"[1]ACS_16_5YR_B01001_with_ann!AO46","v":8},{"$f":"[1]ACS_16_5YR_B01001_with_ann!AP46","v":26},{"$f":"[1]ACS_16_5YR_B01001_with_ann!AQ46","v":20},{"$f":"[1]ACS_16_5YR_B01001_with_ann!AR46","v":59},{"$f":"[1]ACS_16_5YR_B01001_with_ann!AS46","v":30},{"$f":"[1]ACS_16_5YR_B01001_with_ann!AT46","v":68},{"$f":"[1]ACS_16_5YR_B01001_with_ann!AU46","v":55},{"$f":"[1]ACS_16_5YR_B01001_with_ann!AV46","v":18},{"$f":"[1]ACS_16_5YR_B01001_with_ann!AW46","v":14},{"$f":"[1]ACS_16_5YR_B01001_with_ann!AX46","v":24},{"$f":"[1]ACS_16_5YR_B01001_with_ann!AY46","v":18},{"$f":"[1]ACS_16_5YR_B01001_with_ann!AZ46","v":10},{"$f":"[1]ACS_16_5YR_B01001_with_ann!BA46","v":7},{"$f":"[1]ACS_16_5YR_B01001_with_ann!BB46","v":911},{"$f":"[1]ACS_16_5YR_B01001_with_ann!BC46","v":135},{"$f":"[1]ACS_16_5YR_B01001_with_ann!BD46","v":57},{"$f":"[1]ACS_16_5YR_B01001_with_ann!BE46","v":32},{"$f":"[1]ACS_16_5YR_B01001_with_ann!BF46","v":23},{"$f":"[1]ACS_16_5YR_B01001_with_ann!BG46","v":12},{"$f":"[1]ACS_16_5YR_B01001_with_ann!BH46","v":91},{"$f":"[1]ACS_16_5YR_B01001_with_ann!BI46","v":33},{"$f":"[1]ACS_16_5YR_B01001_with_ann!BJ46","v":35},{"$f":"[1]ACS_16_5YR_B01001_with_ann!BK46","v":23},{"$f":"[1]ACS_16_5YR_B01001_with_ann!BL46","v":25},{"$f":"[1]ACS_16_5YR_B01001_with_ann!BM46","v":17},{"$f":"[1]ACS_16_5YR_B01001_with_ann!BN46","v":0},{"$f":"[1]ACS_16_5YR_B01001_with_ann!BO46","v":12},{"$f":"[1]ACS_16_5YR_B01001_with_ann!BP46","v":5},{"$f":"[1]ACS_16_5YR_B01001_with_ann!BQ46","v":7},{"$f":"[1]ACS_16_5YR_B01001_with_ann!BR46","v":3},{"$f":"[1]ACS_16_5YR_B01001_with_ann!BS46","v":5},{"$f":"[1]ACS_16_5YR_B01001_with_ann!BT46","v":10},{"$f":"[1]ACS_16_5YR_B01001_with_ann!BU46","v":17},{"$f":"[1]ACS_16_5YR_B01001_with_ann!BV46","v":20},{"$f":"[1]ACS_16_5YR_B01001_with_ann!BW46","v":13},{"$f":"[1]ACS_16_5YR_B01001_with_ann!BX46","v":43},{"$f":"[1]ACS_16_5YR_B01001_with_ann!BY46","v":29},{"$f":"[1]ACS_16_5YR_B01001_with_ann!BZ46","v":55},{"$f":"[1]ACS_16_5YR_B01001_with_ann!CA46","v":29},{"$f":"[1]ACS_16_5YR_B01001_with_ann!CB46","v":73},{"$f":"[1]ACS_16_5YR_B01001_with_ann!CC46","v":38},{"$f":"[1]ACS_16_5YR_B01001_with_ann!CD46","v":74},{"$f":"[1]ACS_16_5YR_B01001_with_ann!CE46","v":38},{"$f":"[1]ACS_16_5YR_B01001_with_ann!CF46","v":94},{"$f":"[1]ACS_16_5YR_B01001_with_ann!CG46","v":72},{"$f":"[1]ACS_16_5YR_B01001_with_ann!CH46","v":20},{"$f":"[1]ACS_16_5YR_B01001_with_ann!CI46","v":14},{"$f":"[1]ACS_16_5YR_B01001_with_ann!CJ46","v":45},{"$f":"[1]ACS_16_5YR_B01001_with_ann!CK46","v":23},{"$f":"[1]ACS_16_5YR_B01001_with_ann!CL46","v":23},{"$f":"[1]ACS_16_5YR_B01001_with_ann!CM46","v":19},{"$f":"[1]ACS_16_5YR_B01001_with_ann!CN46","v":57},{"$f":"[1]ACS_16_5YR_B01001_with_ann!CO46","v":26},{"$f":"[1]ACS_16_5YR_B01001_with_ann!CP46","v":82},{"$f":"[1]ACS_16_5YR_B01001_with_ann!CQ46","v":49},{"$f":"[1]ACS_16_5YR_B01001_with_ann!CR46","v":40},{"$f":"[1]ACS_16_5YR_B01001_with_ann!CS46","v":26},{"$f":"[1]ACS_16_5YR_B01001_with_ann!CT46","v":17},{"$f":"[1]ACS_16_5YR_B01001_with_ann!CU46","v":10},{"$f":"[1]ACS_16_5YR_B01001_with_ann!CV46","v":19},{"$f":"[1]ACS_16_5YR_B01001_with_ann!CW46","v":43}]
["0600000US3300526500","0600000US3300526500","060",{"$f":"[1]ACS_16_5YR_B01001_with_ann!C47","v":"Fitzwilliam"},{"$f":"[1]ACS_16_5YR_B01001_with_ann!D47","v":2287},{"$f":"[1]ACS_16_5YR_B01001_with_ann!E47","v":368},{"$f":"[1]ACS_16_5YR_B01001_with_ann!F47","v":1203},{"$f":"[1]ACS_16_5YR_B01001_with_ann!G47","v":216},{"$f":"[1]ACS_16_5YR_B01001_with_ann!H47","v":33},{"$f":"[1]ACS_16_5YR_B01001_with_ann!I47","v":23},{"$f":"[1]ACS_16_5YR_B01001_with_ann!J47","v":21},{"$f":"[1]ACS_16_5YR_B01001_with_ann!K47","v":15},{"$f":"[1]ACS_16_5YR_B01001_with_ann!L47","v":40},{"$f":"[1]ACS_16_5YR_B01001_with_ann!M47","v":18},{"$f":"[1]ACS_16_5YR_B01001_with_ann!N47","v":40},{"$f":"[1]ACS_16_5YR_B01001_with_ann!O47","v":29},{"$f":"[1]ACS_16_5YR_B01001_with_ann!P47","v":5},{"$f":"[1]ACS_16_5YR_B01001_with_ann!Q47","v":9},{"$f":"[1]ACS_16_5YR_B01001_with_ann!R47","v":16},{"$f":"[1]ACS_16_5YR_B01001_with_ann!S47","v":19},{"$f":"[1]ACS_16_5YR_B01001_with_ann!T47","v":11},{"$f":"[1]ACS_16_5YR_B01001_with_ann!U47","v":13},{"$f":"[1]ACS_16_5YR_B01001_with_ann!V47","v":29},{"$f":"[1]ACS_16_5YR_B01001_with_ann!W47","v":20},{"$f":"[1]ACS_16_5YR_B01001_with_ann!X47","v":50},{"$f":"[1]ACS_16_5YR_B01001_with_ann!Y47","v":33},{"$f":"[1]ACS_16_5YR_B01001_with_ann!Z47","v":115},{"$f":"[1]ACS_16_5YR_B01001_with_ann!AA47","v":70},{"$f":"[1]ACS_16_5YR_B01001_with_ann!AB47","v":63},{"$f":"[1]ACS_16_5YR_B01001_with_ann!AC47","v":32},{"$f":"[1]ACS_16_5YR_B01001_with_ann!AD47","v":56},{"$f":"[1]ACS_16_5YR_B01001_with_ann!AE47","v":27},{"$f":"[1]ACS_16_5YR_B01001_with_ann!AF47","v":201},{"$f":"[1]ACS_16_5YR_B01001_with_ann!AG47","v":156},{"$f":"[1]ACS_16_5YR_B01001_with_ann!AH47","v":35},{"$f":"[1]ACS_16_5YR_B01001_with_ann!AI47","v":30},{"$f":"[1]ACS_16_5YR_B01001_with_ann!AJ47","v":126},{"$f":"[1]ACS_16_5YR_B01001_with_ann!AK47","v":50},{"$f":"[1]ACS_16_5YR_B01001_with_ann!AL47","v":34},{"$f":"[1]ACS_16_5YR_B01001_with_ann!AM47","v":23},{"$f":"[1]ACS_16_5YR_B01001_with_ann!AN47","v":90},{"$f":"[1]ACS_16_5YR_B01001_with_ann!AO47","v":46},{"$f":"[1]ACS_16_5YR_B01001_with_ann!AP47","v":16},{"$f":"[1]ACS_16_5YR_B01001_with_ann!AQ47","v":13},{"$f":"[1]ACS_16_5YR_B01001_with_ann!AR47","v":72},{"$f":"[1]ACS_16_5YR_B01001_with_ann!AS47","v":35},{"$f":"[1]ACS_16_5YR_B01001_with_ann!AT47","v":107},{"$f":"[1]ACS_16_5YR_B01001_with_ann!AU47","v":46},{"$f":"[1]ACS_16_5YR_B01001_with_ann!AV47","v":27},{"$f":"[1]ACS_16_5YR_B01001_with_ann!AW47","v":15},{"$f":"[1]ACS_16_5YR_B01001_with_ann!AX47","v":9},{"$f":"[1]ACS_16_5YR_B01001_with_ann!AY47","v":11},{"$f":"[1]ACS_16_5YR_B01001_with_ann!AZ47","v":7},{"$f":"[1]ACS_16_5YR_B01001_with_ann!BA47","v":8},{"$f":"[1]ACS_16_5YR_B01001_with_ann!BB47","v":1084},{"$f":"[1]ACS_16_5YR_B01001_with_ann!BC47","v":188},{"$f":"[1]ACS_16_5YR_B01001_with_ann!BD47","v":45},{"$f":"[1]ACS_16_5YR_B01001_with_ann!BE47","v":46},{"$f":"[1]ACS_16_5YR_B01001_with_ann!BF47","v":37},{"$f":"[1]ACS_16_5YR_B01001_with_ann!BG47","v":28},{"$f":"[1]ACS_16_5YR_B01001_with_ann!BH47","v":64},{"$f":"[1]ACS_16_5YR_B01001_with_ann!BI47","v":34},{"$f":"[1]ACS_16_5YR_B01001_with_ann!BJ47","v":5},{"$f":"[1]ACS_16_5YR_B01001_with_ann!BK47","v":7},{"$f":"[1]ACS_16_5YR_B01001_with_ann!BL47","v":6},{"$f":"[1]ACS_16_5YR_B01001_with_ann!BM47","v":9},{"$f":"[1]ACS_16_5YR_B01001_with_ann!BN47","v":10},{"$f":"[1]ACS_16_5YR_B01001_with_ann!BO47","v":10},{"$f":"[1]ACS_16_5YR_B01001_with_ann!BP47","v":0},{"$f":"[1]ACS_16_5YR_B01001_with_ann!BQ47","v":12},{"$f":"[1]ACS_16_5YR_B01001_with_ann!BR47","v":28},{"$f":"[1]ACS_16_5YR_B01001_with_ann!BS47","v":32},{"$f":"[1]ACS_16_5YR_B01001_with_ann!BT47","v":24},{"$f":"[1]ACS_16_5YR_B01001_with_ann!BU47","v":34},{"$f":"[1]ACS_16_5YR_B01001_with_ann!BV47","v":83},{"$f":"[1]ACS_16_5YR_B01001_with_ann!BW47","v":52},{"$f":"[1]ACS_16_5YR_B01001_with_ann!BX47","v":38},{"$f":"[1]ACS_16_5YR_B01001_with_ann!BY47","v":17},{"$f":"[1]ACS_16_5YR_B01001_with_ann!BZ47","v":53},{"$f":"[1]ACS_16_5YR_B01001_with_ann!CA47","v":25},{"$f":"[1]ACS_16_5YR_B01001_with_ann!CB47","v":43},{"$f":"[1]ACS_16_5YR_B01001_with_ann!CC47","v":31},{"$f":"[1]ACS_16_5YR_B01001_with_ann!CD47","v":50},{"$f":"[1]ACS_16_5YR_B01001_with_ann!CE47","v":47},{"$f":"[1]ACS_16_5YR_B01001_with_ann!CF47","v":160},{"$f":"[1]ACS_16_5YR_B01001_with_ann!CG47","v":47},{"$f":"[1]ACS_16_5YR_B01001_with_ann!CH47","v":71},{"$f":"[1]ACS_16_5YR_B01001_with_ann!CI47","v":45},{"$f":"[1]ACS_16_5YR_B01001_with_ann!CJ47","v":69},{"$f":"[1]ACS_16_5YR_B01001_with_ann!CK47","v":34},{"$f":"[1]ACS_16_5YR_B01001_with_ann!CL47","v":61},{"$f":"[1]ACS_16_5YR_B01001_with_ann!CM47","v":36},{"$f":"[1]ACS_16_5YR_B01001_with_ann!CN47","v":128},{"$f":"[1]ACS_16_5YR_B01001_with_ann!CO47","v":94},{"$f":"[1]ACS_16_5YR_B01001_with_ann!CP47","v":62},{"$f":"[1]ACS_16_5YR_B01001_with_ann!CQ47","v":40},{"$f":"[1]ACS_16_5YR_B01001_with_ann!CR47","v":40},{"$f":"[1]ACS_16_5YR_B01001_with_ann!CS47","v":25},{"$f":"[1]ACS_16_5YR_B01001_with_ann!CT47","v":7},{"$f":"[1]ACS_16_5YR_B01001_with_ann!CU47","v":8},{"$f":"[1]ACS_16_5YR_B01001_with_ann!CV47","v":0},{"$f":"[1]ACS_16_5YR_B01001_with_ann!CW47","v":12}]
["0600000US3300529220","0600000US3300529220","060",{"$f":"[1]ACS_16_5YR_B01001_with_ann!C48","v":"Gilsum"},{"$f":"[1]ACS_16_5YR_B01001_with_ann!D48","v":871},{"$f":"[1]ACS_16_5YR_B01001_with_ann!E48","v":144},{"$f":"[1]ACS_16_5YR_B01001_with_ann!F48","v":452},{"$f":"[1]ACS_16_5YR_B01001_with_ann!G48","v":88},{"$f":"[1]ACS_16_5YR_B01001_with_ann!H48","v":33},{"$f":"[1]ACS_16_5YR_B01001_with_ann!I48","v":23},{"$f":"[1]ACS_16_5YR_B01001_with_ann!J48","v":9},{"$f":"[1]ACS_16_5YR_B01001_with_ann!K48","v":8},{"$f":"[1]ACS_16_5YR_B01001_with_ann!L48","v":10},{"$f":"[1]ACS_16_5YR_B01001_with_ann!M48","v":10},{"$f":"[1]ACS_16_5YR_B01001_with_ann!N48","v":33},{"$f":"[1]ACS_16_5YR_B01001_with_ann!O48","v":29},{"$f":"[1]ACS_16_5YR_B01001_with_ann!P48","v":8},{"$f":"[1]ACS_16_5YR_B01001_with_ann!Q48","v":12},{"$f":"[1]ACS_16_5YR_B01001_with_ann!R48","v":31},{"$f":"[1]ACS_16_5YR_B01001_with_ann!S48","v":27},{"$f":"[1]ACS_16_5YR_B01001_with_ann!T48","v":4},{"$f":"[1]ACS_16_5YR_B01001_with_ann!U48","v":5},{"$f":"[1]ACS_16_5YR_B01001_with_ann!V48","v":13},{"$f":"[1]ACS_16_5YR_B01001_with_ann!W48","v":10},{"$f":"[1]ACS_16_5YR_B01001_with_ann!X48","v":19},{"$f":"[1]ACS_16_5YR_B01001_with_ann!Y48","v":17},{"$f":"[1]ACS_16_5YR_B01001_with_ann!Z48","v":44},{"$f":"[1]ACS_16_5YR_B01001_with_ann!AA48","v":24},{"$f":"[1]ACS_16_5YR_B01001_with_ann!AB48","v":17},{"$f":"[1]ACS_16_5YR_B01001_with_ann!AC48","v":15},{"$f":"[1]ACS_16_5YR_B01001_with_ann!AD48","v":23},{"$f":"[1]ACS_16_5YR_B01001_with_ann!AE48","v":14},{"$f":"[1]ACS_16_5YR_B01001_with_ann!AF48","v":29},{"$f":"[1]ACS_16_5YR_B01001_with_ann!AG48","v":15},{"$f":"[1]ACS_16_5YR_B01001_with_ann!AH48","v":31},{"$f":"[1]ACS_16_5YR_B01001_with_ann!AI48","v":19},{"$f":"[1]ACS_16_5YR_B01001_with_ann!AJ48","v":21},{"$f":"[1]ACS_16_5YR_B01001_with_ann!AK48","v":15},{"$f":"[1]ACS_16_5YR_B01001_with_ann!AL48","v":6},{"$f":"[1]ACS_16_5YR_B01001_with_ann!AM48","v":6},{"$f":"[1]ACS_16_5YR_B01001_with_ann!AN48","v":31},{"$f":"[1]ACS_16_5YR_B01001_with_ann!AO48","v":14},{"$f":"[1]ACS_16_5YR_B01001_with_ann!AP48","v":17},{"$f":"[1]ACS_16_5YR_B01001_with_ann!AQ48","v":14},{"$f":"[1]ACS_16_5YR_B01001_with_ann!AR48","v":48},{"$f":"[1]ACS_16_5YR_B01001_with_ann!AS48","v":23},{"$f":"[1]ACS_16_5YR_B01001_with_ann!AT48","v":11},{"$f":"[1]ACS_16_5YR_B01001_with_ann!AU48","v":8},{"$f":"[1]ACS_16_5YR_B01001_with_ann!AV48","v":8},{"$f":"[1]ACS_16_5YR_B01001_with_ann!AW48","v":6},{"$f":"[1]ACS_16_5YR_B01001_with_ann!AX48","v":2},{"$f":"[1]ACS_16_5YR_B01001_with_ann!AY48","v":4},{"$f":"[1]ACS_16_5YR_B01001_with_ann!AZ48","v":4},{"$f":"[1]ACS_16_5YR_B01001_with_ann!BA48","v":6},{"$f":"[1]ACS_16_5YR_B01001_with_ann!BB48","v":419},{"$f":"[1]ACS_16_5YR_B01001_with_ann!BC48","v":74},{"$f":"[1]ACS_16_5YR_B01001_with_ann!BD48","v":26},{"$f":"[1]ACS_16_5YR_B01001_with_ann!BE48","v":17},{"$f":"[1]ACS_16_5YR_B01001_with_ann!BF48","v":32},{"$f":"[1]ACS_16_5YR_B01001_with_ann!BG48","v":28},{"$f":"[1]ACS_16_5YR_B01001_with_ann!BH48","v":4},{"$f":"[1]ACS_16_5YR_B01001_with_ann!BI48","v":4},{"$f":"[1]ACS_16_5YR_B01001_with_ann!BJ48","v":2},{"$f":"[1]ACS_16_5YR_B01001_with_ann!BK48","v":3},{"$f":"[1]ACS_16_5YR_B01001_with_ann!BL48","v":3},{"$f":"[1]ACS_16_5YR_B01001_with_ann!BM48","v":6},{"$f":"[1]ACS_16_5YR_B01001_with_ann!BN48","v":8},{"$f":"[1]ACS_16_5YR_B01001_with_ann!BO48","v":12},{"$f":"[1]ACS_16_5YR_B01001_with_ann!BP48","v":0},{"$f":"[1]ACS_16_5YR_B01001_with_ann!BQ48","v":12},{"$f":"[1]ACS_16_5YR_B01001_with_ann!BR48","v":30},{"$f":"[1]ACS_16_5YR_B01001_with_ann!BS48","v":23},{"$f":"[1]ACS_16_5YR_B01001_with_ann!BT48","v":37},{"$f":"[1]ACS_16_5YR_B01001_with_ann!BU48","v":26},{"$f":"[1]ACS_16_5YR_B01001_with_ann!BV48","v":17},{"$f":"[1]ACS_16_5YR_B01001_with_ann!BW48","v":9},{"$f":"[1]ACS_16_5YR_B01001_with_ann!BX48","v":18},{"$f":"[1]ACS_16_5YR_B01001_with_ann!BY48","v":13},{"$f":"[1]ACS_16_5YR_B01001_with_ann!BZ48","v":20},{"$f":"[1]ACS_16_5YR_B01001_with_ann!CA48","v":11},{"$f":"[1]ACS_16_5YR_B01001_with_ann!CB48","v":21},{"$f":"[1]ACS_16_5YR_B01001_with_ann!CC48","v":13},{"$f":"[1]ACS_16_5YR_B01001_with_ann!CD48","v":38},{"$f":"[1]ACS_16_5YR_B01001_with_ann!CE48","v":26},{"$f":"[1]ACS_16_5YR_B01001_with_ann!CF48","v":30},{"$f":"[1]ACS_16_5YR_B01001_with_ann!CG48","v":14},{"$f":"[1]ACS_16_5YR_B01001_with_ann!CH48","v":19},{"$f":"[1]ACS_16_5YR_B01001_with_ann!CI48","v":14},{"$f":"[1]ACS_16_5YR_B01001_with_ann!CJ48","v":24},{"$f":"[1]ACS_16_5YR_B01001_with_ann!CK48","v":16},{"$f":"[1]ACS_16_5YR_B01001_with_ann!CL48","v":33},{"$f":"[1]ACS_16_5YR_B01001_with_ann!CM48","v":20},{"$f":"[1]ACS_16_5YR_B01001_with_ann!CN48","v":16},{"$f":"[1]ACS_16_5YR_B01001_with_ann!CO48","v":14},{"$f":"[1]ACS_16_5YR_B01001_with_ann!CP48","v":9},{"$f":"[1]ACS_16_5YR_B01001_with_ann!CQ48","v":6},{"$f":"[1]ACS_16_5YR_B01001_with_ann!CR48","v":16},{"$f":"[1]ACS_16_5YR_B01001_with_ann!CS48","v":9},{"$f":"[1]ACS_16_5YR_B01001_with_ann!CT48","v":8},{"$f":"[1]ACS_16_5YR_B01001_with_ann!CU48","v":10},{"$f":"[1]ACS_16_5YR_B01001_with_ann!CV48","v":8},{"$f":"[1]ACS_16_5YR_B01001_with_ann!CW48","v":7}]
["0600000US3300534420","0600000US3300534420","060",{"$f":"[1]ACS_16_5YR_B01001_with_ann!C49","v":"Harrisville"},{"$f":"[1]ACS_16_5YR_B01001_with_ann!D49","v":977},{"$f":"[1]ACS_16_5YR_B01001_with_ann!E49","v":197},{"$f":"[1]ACS_16_5YR_B01001_with_ann!F49","v":461},{"$f":"[1]ACS_16_5YR_B01001_with_ann!G49","v":95},{"$f":"[1]ACS_16_5YR_B01001_with_ann!H49","v":42},{"$f":"[1]ACS_16_5YR_B01001_with_ann!I49","v":33},{"$f":"[1]ACS_16_5YR_B01001_with_ann!J49","v":20},{"$f":"[1]ACS_16_5YR_B01001_with_ann!K49","v":17},{"$f":"[1]ACS_16_5YR_B01001_with_ann!L49","v":20},{"$f":"[1]ACS_16_5YR_B01001_with_ann!M49","v":21},{"$f":"[1]ACS_16_5YR_B01001_with_ann!N49","v":7},{"$f":"[1]ACS_16_5YR_B01001_with_ann!O49","v":8},{"$f":"[1]ACS_16_5YR_B01001_with_ann!P49","v":9},{"$f":"[1]ACS_16_5YR_B01001_with_ann!Q49","v":10},{"$f":"[1]ACS_16_5YR_B01001_with_ann!R49","v":0},{"$f":"[1]ACS_16_5YR_B01001_with_ann!S49","v":12},{"$f":"[1]ACS_16_5YR_B01001_with_ann!T49","v":0},{"$f":"[1]ACS_16_5YR_B01001_with_ann!U49","v":12},{"$f":"[1]ACS_16_5YR_B01001_with_ann!V49","v":0},{"$f":"[1]ACS_16_5YR_B01001_with_ann!W49","v":12},{"$f":"[1]ACS_16_5YR_B01001_with_ann!X49","v":7},{"$f":"[1]ACS_16_5YR_B01001_with_ann!Y49","v":7},{"$f":"[1]ACS_16_5YR_B01001_with_ann!Z49","v":22},{"$f":"[1]ACS_16_5YR_B01001_with_ann!AA49","v":16},{"$f":"[1]ACS_16_5YR_B01001_with_ann!AB49","v":24},{"$f":"[1]ACS_16_5YR_B01001_with_ann!AC49","v":15},{"$f":"[1]ACS_16_5YR_B01001_with_ann!AD49","v":30},{"$f":"[1]ACS_16_5YR_B01001_with_ann!AE49","v":33},{"$f":"[1]ACS_16_5YR_B01001_with_ann!AF49","v":9},{"$f":"[1]ACS_16_5YR_B01001_with_ann!AG49","v":10},{"$f":"[1]ACS_16_5YR_B01001_with_ann!AH49","v":26},{"$f":"[1]ACS_16_5YR_B01001_with_ann!AI49","v":15},{"$f":"[1]ACS_16_5YR_B01001_with_ann!AJ49","v":36},{"$f":"[1]ACS_16_5YR_B01001_with_ann!AK49","v":23},{"$f":"[1]ACS_16_5YR_B01001_with_ann!AL49","v":31},{"$f":"[1]ACS_16_5YR_B01001_with_ann!AM49","v":21},{"$f":"[1]ACS_16_5YR_B01001_with_ann!AN49","v":34},{"$f":"[1]ACS_16_5YR_B01001_with_ann!AO49","v":18},{"$f":"[1]ACS_16_5YR_B01001_with_ann!AP49","v":29},{"$f":"[1]ACS_16_5YR_B01001_with_ann!AQ49","v":22},{"$f":"[1]ACS_16_5YR_B01001_with_ann!AR49","v":19},{"$f":"[1]ACS_16_5YR_B01001_with_ann!AS49","v":11},{"$f":"[1]ACS_16_5YR_B01001_with_ann!AT49","v":43},{"$f":"[1]ACS_16_5YR_B01001_with_ann!AU49","v":15},{"$f":"[1]ACS_16_5YR_B01001_with_ann!AV49","v":39},{"$f":"[1]ACS_16_5YR_B01001_with_ann!AW49","v":18},{"$f":"[1]ACS_16_5YR_B01001_with_ann!AX49","v":0},{"$f":"[1]ACS_16_5YR_B01001_with_ann!AY49","v":12},{"$f":"[1]ACS_16_5YR_B01001_with_ann!AZ49","v":14},{"$f":"[1]ACS_16_5YR_B01001_with_ann!BA49","v":12},{"$f":"[1]ACS_16_5YR_B01001_with_ann!BB49","v":516},{"$f":"[1]ACS_16_5YR_B01001_with_ann!BC49","v":110},{"$f":"[1]ACS_16_5YR_B01001_with_ann!BD49","v":8},{"$f":"[1]ACS_16_5YR_B01001_with_ann!BE49","v":8},{"$f":"[1]ACS_16_5YR_B01001_with_ann!BF49","v":36},{"$f":"[1]ACS_16_5YR_B01001_with_ann!BG49","v":32},{"$f":"[1]ACS_16_5YR_B01001_with_ann!BH49","v":12},{"$f":"[1]ACS_16_5YR_B01001_with_ann!BI49","v":12},{"$f":"[1]ACS_16_5YR_B01001_with_ann!BJ49","v":4},{"$f":"[1]ACS_16_5YR_B01001_with_ann!BK49","v":6},{"$f":"[1]ACS_16_5YR_B01001_with_ann!BL49","v":3},{"$f":"[1]ACS_16_5YR_B01001_with_ann!BM49","v":5},{"$f":"[1]ACS_16_5YR_B01001_with_ann!BN49","v":0},{"$f":"[1]ACS_16_5YR_B01001_with_ann!BO49","v":12},{"$f":"[1]ACS_16_5YR_B01001_with_ann!BP49","v":13},{"$f":"[1]ACS_16_5YR_B01001_with_ann!BQ49","v":17},{"$f":"[1]ACS_16_5YR_B01001_with_ann!BR49","v":11},{"$f":"[1]ACS_16_5YR_B01001_with_ann!BS49","v":14},{"$f":"[1]ACS_16_5YR_B01001_with_ann!BT49","v":34},{"$f":"[1]ACS_16_5YR_B01001_with_ann!BU49","v":25},{"$f":"[1]ACS_16_5YR_B01001_with_ann!BV49","v":28},{"$f":"[1]ACS_16_5YR_B01001_with_ann!BW49","v":26},{"$f":"[1]ACS_16_5YR_B01001_with_ann!BX49","v":25},{"$f":"[1]ACS_16_5YR_B01001_with_ann!BY49","v":18},{"$f":"[1]ACS_16_5YR_B01001_with_ann!BZ49","v":34},{"$f":"[1]ACS_16_5YR_B01001_with_ann!CA49","v":36},{"$f":"[1]ACS_16_5YR_B01001_with_ann!CB49","v":17},{"$f":"[1]ACS_16_5YR_B01001_with_ann!CC49","v":16},{"$f":"[1]ACS_16_5YR_B01001_with_ann!CD49","v":15},{"$f":"[1]ACS_16_5YR_B01001_with_ann!CE49","v":10},{"$f":"[1]ACS_16_5YR_B01001_with_ann!CF49","v":87},{"$f":"[1]ACS_16_5YR_B01001_with_ann!CG49","v":41},{"$f":"[1]ACS_16_5YR_B01001_with_ann!CH49","v":29},{"$f":"[1]ACS_16_5YR_B01001_with_ann!CI49","v":16},{"$f":"[1]ACS_16_5YR_B01001_with_ann!CJ49","v":13},{"$f":"[1]ACS_16_5YR_B01001_with_ann!CK49","v":10},{"$f":"[1]ACS_16_5YR_B01001_with_ann!CL49","v":4},{"$f":"[1]ACS_16_5YR_B01001_with_ann!CM49","v":4},{"$f":"[1]ACS_16_5YR_B01001_with_ann!CN49","v":37},{"$f":"[1]ACS_16_5YR_B01001_with_ann!CO49","v":16},{"$f":"[1]ACS_16_5YR_B01001_with_ann!CP49","v":66},{"$f":"[1]ACS_16_5YR_B01001_with_ann!CQ49","v":23},{"$f":"[1]ACS_16_5YR_B01001_with_ann!CR49","v":25},{"$f":"[1]ACS_16_5YR_B01001_with_ann!CS49","v":17},{"$f":"[1]ACS_16_5YR_B01001_with_ann!CT49","v":3},{"$f":"[1]ACS_16_5YR_B01001_with_ann!CU49","v":4},{"$f":"[1]ACS_16_5YR_B01001_with_ann!CV49","v":12},{"$f":"[1]ACS_16_5YR_B01001_with_ann!CW49","v":12}]
["0600000US3300536660","0600000US3300536660","060",{"$f":"[1]ACS_16_5YR_B01001_with_ann!C50","v":"Hinsdale"},{"$f":"[1]ACS_16_5YR_B01001_with_ann!D50","v":3965},{"$f":"[1]ACS_16_5YR_B01001_with_ann!E50","v":16},{"$f":"[1]ACS_16_5YR_B01001_with_ann!F50","v":2090},{"$f":"[1]ACS_16_5YR_B01001_with_ann!G50","v":205},{"$f":"[1]ACS_16_5YR_B01001_with_ann!H50","v":26},{"$f":"[1]ACS_16_5YR_B01001_with_ann!I50","v":38},{"$f":"[1]ACS_16_5YR_B01001_with_ann!J50","v":152},{"$f":"[1]ACS_16_5YR_B01001_with_ann!K50","v":72},{"$f":"[1]ACS_16_5YR_B01001_with_ann!L50","v":62},{"$f":"[1]ACS_16_5YR_B01001_with_ann!M50","v":50},{"$f":"[1]ACS_16_5YR_B01001_with_ann!N50","v":63},{"$f":"[1]ACS_16_5YR_B01001_with_ann!O50","v":95},{"$f":"[1]ACS_16_5YR_B01001_with_ann!P50","v":17},{"$f":"[1]ACS_16_5YR_B01001_with_ann!Q50","v":30},{"$f":"[1]ACS_16_5YR_B01001_with_ann!R50","v":68},{"$f":"[1]ACS_16_5YR_B01001_with_ann!S50","v":78},{"$f":"[1]ACS_16_5YR_B01001_with_ann!T50","v":14},{"$f":"[1]ACS_16_5YR_B01001_with_ann!U50","v":24},{"$f":"[1]ACS_16_5YR_B01001_with_ann!V50","v":35},{"$f":"[1]ACS_16_5YR_B01001_with_ann!W50","v":42},{"$f":"[1]ACS_16_5YR_B01001_with_ann!X50","v":81},{"$f":"[1]ACS_16_5YR_B01001_with_ann!Y50","v":54},{"$f":"[1]ACS_16_5YR_B01001_with_ann!Z50","v":79},{"$f":"[1]ACS_16_5YR_B01001_with_ann!AA50","v":66},{"$f":"[1]ACS_16_5YR_B01001_with_ann!AB50","v":55},{"$f":"[1]ACS_16_5YR_B01001_with_ann!AC50","v":49},{"$f":"[1]ACS_16_5YR_B01001_with_ann!AD50","v":191},{"$f":"[1]ACS_16_5YR_B01001_with_ann!AE50","v":95},{"$f":"[1]ACS_16_5YR_B01001_with_ann!AF50","v":104},{"$f":"[1]ACS_16_5YR_B01001_with_ann!AG50","v":75},{"$f":"[1]ACS_16_5YR_B01001_with_ann!AH50","v":237},{"$f":"[1]ACS_16_5YR_B01001_with_ann!AI50","v":127},{"$f":"[1]ACS_16_5YR_B01001_with_ann!AJ50","v":132},{"$f":"[1]ACS_16_5YR_B01001_with_ann!AK50","v":62},{"$f":"[1]ACS_16_5YR_B01001_with_ann!AL50","v":25},{"$f":"[1]ACS_16_5YR_B01001_with_ann!AM50","v":25},{"$f":"[1]ACS_16_5YR_B01001_with_ann!AN50","v":134},{"$f":"[1]ACS_16_5YR_B01001_with_ann!AO50","v":81},{"$f":"[1]ACS_16_5YR_B01001_with_ann!AP50","v":64},{"$f":"[1]ACS_16_5YR_B01001_with_ann!AQ50","v":91},{"$f":"[1]ACS_16_5YR_B01001_with_ann!AR50","v":91},{"$f":"[1]ACS_16_5YR_B01001_with_ann!AS50","v":76},{"$f":"[1]ACS_16_5YR_B01001_with_ann!AT50","v":278},{"$f":"[1]ACS_16_5YR_B01001_with_ann!AU50","v":229},{"$f":"[1]ACS_16_5YR_B01001_with_ann!AV50","v":62},{"$f":"[1]ACS_16_5YR_B01001_with_ann!AW50","v":47},{"$f":"[1]ACS_16_5YR_B01001_with_ann!AX50","v":20},{"$f":"[1]ACS_16_5YR_B01001_with_ann!AY50","v":21},{"$f":"[1]ACS_16_5YR_B01001_with_ann!AZ50","v":100},{"$f":"[1]ACS_16_5YR_B01001_with_ann!BA50","v":120},{"$f":"[1]ACS_16_5YR_B01001_with_ann!BB50","v":1875},{"$f":"[1]ACS_16_5YR_B01001_with_ann!BC50","v":204},{"$f":"[1]ACS_16_5YR_B01001_with_ann!BD50","v":58},{"$f":"[1]ACS_16_5YR_B01001_with_ann!BE50","v":46},{"$f":"[1]ACS_16_5YR_B01001_with_ann!BF50","v":103},{"$f":"[1]ACS_16_5YR_B01001_with_ann!BG50","v":50},{"$f":"[1]ACS_16_5YR_B01001_with_ann!BH50","v":82},{"$f":"[1]ACS_16_5YR_B01001_with_ann!BI50","v":55},{"$f":"[1]ACS_16_5YR_B01001_with_ann!BJ50","v":40},{"$f":"[1]ACS_16_5YR_B01001_with_ann!BK50","v":51},{"$f":"[1]ACS_16_5YR_B01001_with_ann!BL50","v":61},{"$f":"[1]ACS_16_5YR_B01001_with_ann!BM50","v":58},{"$f":"[1]ACS_16_5YR_B01001_with_ann!BN50","v":62},{"$f":"[1]ACS_16_5YR_B01001_with_ann!BO50","v":79},{"$f":"[1]ACS_16_5YR_B01001_with_ann!BP50","v":0},{"$f":"[1]ACS_16_5YR_B01001_with_ann!BQ50","v":12},{"$f":"[1]ACS_16_5YR_B01001_with_ann!BR50","v":78},{"$f":"[1]ACS_16_5YR_B01001_with_ann!BS50","v":97},{"$f":"[1]ACS_16_5YR_B01001_with_ann!BT50","v":71},{"$f":"[1]ACS_16_5YR_B01001_with_ann!BU50","v":47},{"$f":"[1]ACS_16_5YR_B01001_with_ann!BV50","v":34},{"$f":"[1]ACS_16_5YR_B01001_with_ann!BW50","v":35},{"$f":"[1]ACS_16_5YR_B01001_with_ann!BX50","v":91},{"$f":"[1]ACS_16_5YR_B01001_with_ann!BY50","v":58},{"$f":"[1]ACS_16_5YR_B01001_with_ann!BZ50","v":144},{"$f":"[1]ACS_16_5YR_B01001_with_ann!CA50","v":68},{"$f":"[1]ACS_16_5YR_B01001_with_ann!CB50","v":133},{"$f":"[1]ACS_16_5YR_B01001_with_ann!CC50","v":78},{"$f":"[1]ACS_16_5YR_B01001_with_ann!CD50","v":92},{"$f":"[1]ACS_16_5YR_B01001_with_ann!CE50","v":57},{"$f":"[1]ACS_16_5YR_B01001_with_ann!CF50","v":151},{"$f":"[1]ACS_16_5YR_B01001_with_ann!CG50","v":79},{"$f":"[1]ACS_16_5YR_B01001_with_ann!CH50","v":164},{"$f":"[1]ACS_16_5YR_B01001_with_ann!CI50","v":89},{"$f":"[1]ACS_16_5YR_B01001_with_ann!CJ50","v":68},{"$f":"[1]ACS_16_5YR_B01001_with_ann!CK50","v":54},{"$f":"[1]ACS_16_5YR_B01001_with_ann!CL50","v":81},{"$f":"[1]ACS_16_5YR_B01001_with_ann!CM50","v":93},{"$f":"[1]ACS_16_5YR_B01001_with_ann!CN50","v":61},{"$f":"[1]ACS_16_5YR_B01001_with_ann!CO50","v":41},{"$f":"[1]ACS_16_5YR_B01001_with_ann!CP50","v":72},{"$f":"[1]ACS_16_5YR_B01001_with_ann!CQ50","v":47},{"$f":"[1]ACS_16_5YR_B01001_with_ann!CR50","v":49},{"$f":"[1]ACS_16_5YR_B01001_with_ann!CS50","v":39},{"$f":"[1]ACS_16_5YR_B01001_with_ann!CT50","v":162},{"$f":"[1]ACS_16_5YR_B01001_with_ann!CU50","v":148},{"$f":"[1]ACS_16_5YR_B01001_with_ann!CV50","v":18},{"$f":"[1]ACS_16_5YR_B01001_with_ann!CW50","v":20}]
["0600000US3300538500","0600000US3300538500","060",{"$f":"[1]ACS_16_5YR_B01001_with_ann!C51","v":"Jaffrey"},{"$f":"[1]ACS_16_5YR_B01001_with_ann!D51","v":5363},{"$f":"[1]ACS_16_5YR_B01001_with_ann!E51","v":32},{"$f":"[1]ACS_16_5YR_B01001_with_ann!F51","v":2738},{"$f":"[1]ACS_16_5YR_B01001_with_ann!G51","v":213},{"$f":"[1]ACS_16_5YR_B01001_with_ann!H51","v":114},{"$f":"[1]ACS_16_5YR_B01001_with_ann!I51","v":89},{"$f":"[1]ACS_16_5YR_B01001_with_ann!J51","v":240},{"$f":"[1]ACS_16_5YR_B01001_with_ann!K51","v":135},{"$f":"[1]ACS_16_5YR_B01001_with_ann!L51","v":214},{"$f":"[1]ACS_16_5YR_B01001_with_ann!M51","v":97},{"$f":"[1]ACS_16_5YR_B01001_with_ann!N51","v":112},{"$f":"[1]ACS_16_5YR_B01001_with_ann!O51","v":92},{"$f":"[1]ACS_16_5YR_B01001_with_ann!P51","v":0},{"$f":"[1]ACS_16_5YR_B01001_with_ann!Q51","v":17},{"$f":"[1]ACS_16_5YR_B01001_with_ann!R51","v":0},{"$f":"[1]ACS_16_5YR_B01001_with_ann!S51","v":17},{"$f":"[1]ACS_16_5YR_B01001_with_ann!T51","v":0},{"$f":"[1]ACS_16_5YR_B01001_with_ann!U51","v":17},{"$f":"[1]ACS_16_5YR_B01001_with_ann!V51","v":37},{"$f":"[1]ACS_16_5YR_B01001_with_ann!W51","v":54},{"$f":"[1]ACS_16_5YR_B01001_with_ann!X51","v":313},{"$f":"[1]ACS_16_5YR_B01001_with_ann!Y51","v":175},{"$f":"[1]ACS_16_5YR_B01001_with_ann!Z51","v":58},{"$f":"[1]ACS_16_5YR_B01001_with_ann!AA51","v":69},{"$f":"[1]ACS_16_5YR_B01001_with_ann!AB51","v":266},{"$f":"[1]ACS_16_5YR_B01001_with_ann!AC51","v":122},{"$f":"[1]ACS_16_5YR_B01001_with_ann!AD51","v":125},{"$f":"[1]ACS_16_5YR_B01001_with_ann!AE51","v":79},{"$f":"[1]ACS_16_5YR_B01001_with_ann!AF51","v":277},{"$f":"[1]ACS_16_5YR_B01001_with_ann!AG51","v":116},{"$f":"[1]ACS_16_5YR_B01001_with_ann!AH51","v":167},{"$f":"[1]ACS_16_5YR_B01001_with_ann!AI51","v":79},{"$f":"[1]ACS_16_5YR_B01001_with_ann!AJ51","v":126},{"$f":"[1]ACS_16_5YR_B01001_with_ann!AK51","v":71},{"$f":"[1]ACS_16_5YR_B01001_with_ann!AL51","v":64},{"$f":"[1]ACS_16_5YR_B01001_with_ann!AM51","v":76},{"$f":"[1]ACS_16_5YR_B01001_with_ann!AN51","v":285},{"$f":"[1]ACS_16_5YR_B01001_with_ann!AO51","v":185},{"$f":"[1]ACS_16_5YR_B01001_with_ann!AP51","v":30},{"$f":"[1]ACS_16_5YR_B01001_with_ann!AQ51","v":36},{"$f":"[1]ACS_16_5YR_B01001_with_ann!AR51","v":57},{"$f":"[1]ACS_16_5YR_B01001_with_ann!AS51","v":54},{"$f":"[1]ACS_16_5YR_B01001_with_ann!AT51","v":72},{"$f":"[1]ACS_16_5YR_B01001_with_ann!AU51","v":65},{"$f":"[1]ACS_16_5YR_B01001_with_ann!AV51","v":52},{"$f":"[1]ACS_16_5YR_B01001_with_ann!AW51","v":45},{"$f":"[1]ACS_16_5YR_B01001_with_ann!AX51","v":65},{"$f":"[1]ACS_16_5YR_B01001_with_ann!AY51","v":75},{"$f":"[1]ACS_16_5YR_B01001_with_ann!AZ51","v":64},{"$f":"[1]ACS_16_5YR_B01001_with_ann!BA51","v":60},{"$f":"[1]ACS_16_5YR_B01001_with_ann!BB51","v":2625},{"$f":"[1]ACS_16_5YR_B01001_with_ann!BC51","v":216},{"$f":"[1]ACS_16_5YR_B01001_with_ann!BD51","v":28},{"$f":"[1]ACS_16_5YR_B01001_with_ann!BE51","v":48},{"$f":"[1]ACS_16_5YR_B01001_with_ann!BF51","v":124},{"$f":"[1]ACS_16_5YR_B01001_with_ann!BG51","v":74},{"$f":"[1]ACS_16_5YR_B01001_with_ann!BH51","v":329},{"$f":"[1]ACS_16_5YR_B01001_with_ann!BI51","v":130},{"$f":"[1]ACS_16_5YR_B01001_with_ann!BJ51","v":164},{"$f":"[1]ACS_16_5YR_B01001_with_ann!BK51","v":92},{"$f":"[1]ACS_16_5YR_B01001_with_ann!BL51","v":5},{"$f":"[1]ACS_16_5YR_B01001_with_ann!BM51","v":13},{"$f":"[1]ACS_16_5YR_B01001_with_ann!BN51","v":33},{"$f":"[1]ACS_16_5YR_B01001_with_ann!BO51","v":60},{"$f":"[1]ACS_16_5YR_B01001_with_ann!BP51","v":70},{"$f":"[1]ACS_16_5YR_B01001_with_ann!BQ51","v":82},{"$f":"[1]ACS_16_5YR_B01001_with_ann!BR51","v":49},{"$f":"[1]ACS_16_5YR_B01001_with_ann!BS51","v":74},{"$f":"[1]ACS_16_5YR_B01001_with_ann!BT51","v":63},{"$f":"[1]ACS_16_5YR_B01001_with_ann!BU51","v":72},{"$f":"[1]ACS_16_5YR_B01001_with_ann!BV51","v":87},{"$f":"[1]ACS_16_5YR_B01001_with_ann!BW51","v":87},{"$f":"[1]ACS_16_5YR_B01001_with_ann!BX51","v":225},{"$f":"[1]ACS_16_5YR_B01001_with_ann!BY51","v":95},{"$f":"[1]ACS_16_5YR_B01001_with_ann!BZ51","v":95},{"$f":"[1]ACS_16_5YR_B01001_with_ann!CA51","v":65},{"$f":"[1]ACS_16_5YR_B01001_with_ann!CB51","v":208},{"$f":"[1]ACS_16_5YR_B01001_with_ann!CC51","v":107},{"$f":"[1]ACS_16_5YR_B01001_with_ann!CD51","v":229},{"$f":"[1]ACS_16_5YR_B01001_with_ann!CE51","v":137},{"$f":"[1]ACS_16_5YR_B01001_with_ann!CF51","v":94},{"$f":"[1]ACS_16_5YR_B01001_with_ann!CG51","v":72},{"$f":"[1]ACS_16_5YR_B01001_with_ann!CH51","v":264},{"$f":"[1]ACS_16_5YR_B01001_with_ann!CI51","v":154},{"$f":"[1]ACS_16_5YR_B01001_with_ann!CJ51","v":29},{"$f":"[1]ACS_16_5YR_B01001_with_ann!CK51","v":35},{"$f":"[1]ACS_16_5YR_B01001_with_ann!CL51","v":50},{"$f":"[1]ACS_16_5YR_B01001_with_ann!CM51","v":63},{"$f":"[1]ACS_16_5YR_B01001_with_ann!CN51","v":104},{"$f":"[1]ACS_16_5YR_B01001_with_ann!CO51","v":58},{"$f":"[1]ACS_16_5YR_B01001_with_ann!CP51","v":122},{"$f":"[1]ACS_16_5YR_B01001_with_ann!CQ51","v":76},{"$f":"[1]ACS_16_5YR_B01001_with_ann!CR51","v":45},{"$f":"[1]ACS_16_5YR_B01001_with_ann!CS51","v":33},{"$f":"[1]ACS_16_5YR_B01001_with_ann!CT51","v":92},{"$f":"[1]ACS_16_5YR_B01001_with_ann!CU51","v":72},{"$f":"[1]ACS_16_5YR_B01001_with_ann!CV51","v":116},{"$f":"[1]ACS_16_5YR_B01001_with_ann!CW51","v":74}]
["0600000US3300539300","0600000US3300539300","060",{"$f":"[1]ACS_16_5YR_B01001_with_ann!C52","v":"Keene"},{"$f":"[1]ACS_16_5YR_B01001_with_ann!D52","v":22907},{"$f":"[1]ACS_16_5YR_B01001_with_ann!E52","v":27},{"$f":"[1]ACS_16_5YR_B01001_with_ann!F52","v":11235},{"$f":"[1]ACS_16_5YR_B01001_with_ann!G52","v":407},{"$f":"[1]ACS_16_5YR_B01001_with_ann!H52","v":485},{"$f":"[1]ACS_16_5YR_B01001_with_ann!I52","v":125},{"$f":"[1]ACS_16_5YR_B01001_with_ann!J52","v":483},{"$f":"[1]ACS_16_5YR_B01001_with_ann!K52","v":120},{"$f":"[1]ACS_16_5YR_B01001_with_ann!L52","v":562},{"$f":"[1]ACS_16_5YR_B01001_with_ann!M52","v":145},{"$f":"[1]ACS_16_5YR_B01001_with_ann!N52","v":334},{"$f":"[1]ACS_16_5YR_B01001_with_ann!O52","v":142},{"$f":"[1]ACS_16_5YR_B01001_with_ann!P52","v":759},{"$f":"[1]ACS_16_5YR_B01001_with_ann!Q52","v":136},{"$f":"[1]ACS_16_5YR_B01001_with_ann!R52","v":362},{"$f":"[1]ACS_16_5YR_B01001_with_ann!S52","v":107},{"$f":"[1]ACS_16_5YR_B01001_with_ann!T52","v":545},{"$f":"[1]ACS_16_5YR_B01001_with_ann!U52","v":246},{"$f":"[1]ACS_16_5YR_B01001_with_ann!V52","v":573},{"$f":"[1]ACS_16_5YR_B01001_with_ann!W52","v":183},{"$f":"[1]ACS_16_5YR_B01001_with_ann!X52","v":660},{"$f":"[1]ACS_16_5YR_B01001_with_ann!Y52","v":225},{"$f":"[1]ACS_16_5YR_B01001_with_ann!Z52","v":922},{"$f":"[1]ACS_16_5YR_B01001_with_ann!AA52","v":163},{"$f":"[1]ACS_16_5YR_B01001_with_ann!AB52","v":527},{"$f":"[1]ACS_16_5YR_B01001_with_ann!AC52","v":166},{"$f":"[1]ACS_16_5YR_B01001_with_ann!AD52","v":825},{"$f":"[1]ACS_16_5YR_B01001_with_ann!AE52","v":228},{"$f":"[1]ACS_16_5YR_B01001_with_ann!AF52","v":457},{"$f":"[1]ACS_16_5YR_B01001_with_ann!AG52","v":136},{"$f":"[1]ACS_16_5YR_B01001_with_ann!AH52","v":880},{"$f":"[1]ACS_16_5YR_B01001_with_ann!AI52","v":177},{"$f":"[1]ACS_16_5YR_B01001_with_ann!AJ52","v":635},{"$f":"[1]ACS_16_5YR_B01001_with_ann!AK52","v":179},{"$f":"[1]ACS_16_5YR_B01001_with_ann!AL52","v":150},{"$f":"[1]ACS_16_5YR_B01001_with_ann!AM52","v":67},{"$f":"[1]ACS_16_5YR_B01001_with_ann!AN52","v":404},{"$f":"[1]ACS_16_5YR_B01001_with_ann!AO52","v":155},{"$f":"[1]ACS_16_5YR_B01001_with_ann!AP52","v":154},{"$f":"[1]ACS_16_5YR_B01001_with_ann!AQ52","v":79},{"$f":"[1]ACS_16_5YR_B01001_with_ann!AR52","v":270},{"$f":"[1]ACS_16_5YR_B01001_with_ann!AS52","v":94},{"$f":"[1]ACS_16_5YR_B01001_with_ann!AT52","v":500},{"$f":"[1]ACS_16_5YR_B01001_with_ann!AU52","v":120},{"$f":"[1]ACS_16_5YR_B01001_with_ann!AV52","v":320},{"$f":"[1]ACS_16_5YR_B01001_with_ann!AW52","v":111},{"$f":"[1]ACS_16_5YR_B01001_with_ann!AX52","v":164},{"$f":"[1]ACS_16_5YR_B01001_with_ann!AY52","v":79},{"$f":"[1]ACS_16_5YR_B01001_with_ann!AZ52","v":264},{"$f":"[1]ACS_16_5YR_B01001_with_ann!BA52","v":120},{"$f":"[1]ACS_16_5YR_B01001_with_ann!BB52","v":11672},{"$f":"[1]ACS_16_5YR_B01001_with_ann!BC52","v":406},{"$f":"[1]ACS_16_5YR_B01001_with_ann!BD52","v":387},{"$f":"[1]ACS_16_5YR_B01001_with_ann!BE52","v":112},{"$f":"[1]ACS_16_5YR_B01001_with_ann!BF52","v":329},{"$f":"[1]ACS_16_5YR_B01001_with_ann!BG52","v":114},{"$f":"[1]ACS_16_5YR_B01001_with_ann!BH52","v":396},{"$f":"[1]ACS_16_5YR_B01001_with_ann!BI52","v":138},{"$f":"[1]ACS_16_5YR_B01001_with_ann!BJ52","v":316},{"$f":"[1]ACS_16_5YR_B01001_with_ann!BK52","v":144},{"$f":"[1]ACS_16_5YR_B01001_with_ann!BL52","v":908},{"$f":"[1]ACS_16_5YR_B01001_with_ann!BM52","v":132},{"$f":"[1]ACS_16_5YR_B01001_with_ann!BN52","v":392},{"$f":"[1]ACS_16_5YR_B01001_with_ann!BO52","v":104},{"$f":"[1]ACS_16_5YR_B01001_with_ann!BP52","v":395},{"$f":"[1]ACS_16_5YR_B01001_with_ann!BQ52","v":118},{"$f":"[1]ACS_16_5YR_B01001_with_ann!BR52","v":536},{"$f":"[1]ACS_16_5YR_B01001_with_ann!BS52","v":194},{"$f":"[1]ACS_16_5YR_B01001_with_ann!BT52","v":837},{"$f":"[1]ACS_16_5YR_B01001_with_ann!BU52","v":155},{"$f":"[1]ACS_16_5YR_B01001_with_ann!BV52","v":939},{"$f":"[1]ACS_16_5YR_B01001_with_ann!BW52","v":164},{"$f":"[1]ACS_16_5YR_B01001_with_ann!BX52","v":636},{"$f":"[1]ACS_16_5YR_B01001_with_ann!BY52","v":171},{"$f":"[1]ACS_16_5YR_B01001_with_ann!BZ52","v":479},{"$f":"[1]ACS_16_5YR_B01001_with_ann!CA52","v":135},{"$f":"[1]ACS_16_5YR_B01001_with_ann!CB52","v":664},{"$f":"[1]ACS_16_5YR_B01001_with_ann!CC52","v":245},{"$f":"[1]ACS_16_5YR_B01001_with_ann!CD52","v":589},{"$f":"[1]ACS_16_5YR_B01001_with_ann!CE52","v":168},{"$f":"[1]ACS_16_5YR_B01001_with_ann!CF52","v":761},{"$f":"[1]ACS_16_5YR_B01001_with_ann!CG52","v":206},{"$f":"[1]ACS_16_5YR_B01001_with_ann!CH52","v":325},{"$f":"[1]ACS_16_5YR_B01001_with_ann!CI52","v":110},{"$f":"[1]ACS_16_5YR_B01001_with_ann!CJ52","v":288},{"$f":"[1]ACS_16_5YR_B01001_with_ann!CK52","v":112},{"$f":"[1]ACS_16_5YR_B01001_with_ann!CL52","v":239},{"$f":"[1]ACS_16_5YR_B01001_with_ann!CM52","v":101},{"$f":"[1]ACS_16_5YR_B01001_with_ann!CN52","v":370},{"$f":"[1]ACS_16_5YR_B01001_with_ann!CO52","v":119},{"$f":"[1]ACS_16_5YR_B01001_with_ann!CP52","v":706},{"$f":"[1]ACS_16_5YR_B01001_with_ann!CQ52","v":151},{"$f":"[1]ACS_16_5YR_B01001_with_ann!CR52","v":318},{"$f":"[1]ACS_16_5YR_B01001_with_ann!CS52","v":128},{"$f":"[1]ACS_16_5YR_B01001_with_ann!CT52","v":330},{"$f":"[1]ACS_16_5YR_B01001_with_ann!CU52","v":148},{"$f":"[1]ACS_16_5YR_B01001_with_ann!CV52","v":532},{"$f":"[1]ACS_16_5YR_B01001_with_ann!CW52","v":174}]
["0600000US3300545460","0600000US3300545460","060",{"$f":"[1]ACS_16_5YR_B01001_with_ann!C53","v":"Marlborough"},{"$f":"[1]ACS_16_5YR_B01001_with_ann!D53","v":2253},{"$f":"[1]ACS_16_5YR_B01001_with_ann!E53","v":391},{"$f":"[1]ACS_16_5YR_B01001_with_ann!F53","v":1005},{"$f":"[1]ACS_16_5YR_B01001_with_ann!G53","v":199},{"$f":"[1]ACS_16_5YR_B01001_with_ann!H53","v":76},{"$f":"[1]ACS_16_5YR_B01001_with_ann!I53","v":60},{"$f":"[1]ACS_16_5YR_B01001_with_ann!J53","v":10},{"$f":"[1]ACS_16_5YR_B01001_with_ann!K53","v":8},{"$f":"[1]ACS_16_5YR_B01001_with_ann!L53","v":89},{"$f":"[1]ACS_16_5YR_B01001_with_ann!M53","v":57},{"$f":"[1]ACS_16_5YR_B01001_with_ann!N53","v":30},{"$f":"[1]ACS_16_5YR_B01001_with_ann!O53","v":27},{"$f":"[1]ACS_16_5YR_B01001_with_ann!P53","v":38},{"$f":"[1]ACS_16_5YR_B01001_with_ann!Q53","v":36},{"$f":"[1]ACS_16_5YR_B01001_with_ann!R53","v":0},{"$f":"[1]ACS_16_5YR_B01001_with_ann!S53","v":12},{"$f":"[1]ACS_16_5YR_B01001_with_ann!T53","v":15},{"$f":"[1]ACS_16_5YR_B01001_with_ann!U53","v":23},{"$f":"[1]ACS_16_5YR_B01001_with_ann!V53","v":42},{"$f":"[1]ACS_16_5YR_B01001_with_ann!W53","v":41},{"$f":"[1]ACS_16_5YR_B01001_with_ann!X53","v":54},{"$f":"[1]ACS_16_5YR_B01001_with_ann!Y53","v":39},{"$f":"[1]ACS_16_5YR_B01001_with_ann!Z53","v":26},{"$f":"[1]ACS_16_5YR_B01001_with_ann!AA53","v":19},{"$f":"[1]ACS_16_5YR_B01001_with_ann!AB53","v":69},{"$f":"[1]ACS_16_5YR_B01001_with_ann!AC53","v":37},{"$f":"[1]ACS_16_5YR_B01001_with_ann!AD53","v":58},{"$f":"[1]ACS_16_5YR_B01001_with_ann!AE53","v":42},{"$f":"[1]ACS_16_5YR_B01001_with_ann!AF53","v":85},{"$f":"[1]ACS_16_5YR_B01001_with_ann!AG53","v":69},{"$f":"[1]ACS_16_5YR_B01001_with_ann!AH53","v":62},{"$f":"[1]ACS_16_5YR_B01001_with_ann!AI53","v":43},{"$f":"[1]ACS_16_5YR_B01001_with_ann!AJ53","v":116},{"$f":"[1]ACS_16_5YR_B01001_with_ann!AK53","v":49},{"$f":"[1]ACS_16_5YR_B01001_with_ann!AL53","v":18},{"$f":"[1]ACS_16_5YR_B01001_with_ann!AM53","v":17},{"$f":"[1]ACS_16_5YR_B01001_with_ann!AN53","v":32},{"$f":"[1]ACS_16_5YR_B01001_with_ann!AO53","v":28},{"$f":"[1]ACS_16_5YR_B01001_with_ann!AP53","v":11},{"$f":"[1]ACS_16_5YR_B01001_with_ann!AQ53","v":11},{"$f":"[1]ACS_16_5YR_B01001_with_ann!AR53","v":32},{"$f":"[1]ACS_16_5YR_B01001_with_ann!AS53","v":27},{"$f":"[1]ACS_16_5YR_B01001_with_ann!AT53","v":40},{"$f":"[1]ACS_16_5YR_B01001_with_ann!AU53","v":23},{"$f":"[1]ACS_16_5YR_B01001_with_ann!AV53","v":30},{"$f":"[1]ACS_16_5YR_B01001_with_ann!AW53","v":19},{"$f":"[1]ACS_16_5YR_B01001_with_ann!AX53","v":25},{"$f":"[1]ACS_16_5YR_B01001_with_ann!AY53","v":22},{"$f":"[1]ACS_16_5YR_B01001_with_ann!AZ53","v":47},{"$f":"[1]ACS_16_5YR_B01001_with_ann!BA53","v":35},{"$f":"[1]ACS_16_5YR_B01001_with_ann!BB53","v":1248},{"$f":"[1]ACS_16_5YR_B01001_with_ann!BC53","v":240},{"$f":"[1]ACS_16_5YR_B01001_with_ann!BD53","v":140},{"$f":"[1]ACS_16_5YR_B01001_with_ann!BE53","v":107},{"$f":"[1]ACS_16_5YR_B01001_with_ann!BF53","v":14},{"$f":"[1]ACS_16_5YR_B01001_with_ann!BG53","v":13},{"$f":"[1]ACS_16_5YR_B01001_with_ann!BH53","v":53},{"$f":"[1]ACS_16_5YR_B01001_with_ann!BI53","v":35},{"$f":"[1]ACS_16_5YR_B01001_with_ann!BJ53","v":131},{"$f":"[1]ACS_16_5YR_B01001_with_ann!BK53","v":73},{"$f":"[1]ACS_16_5YR_B01001_with_ann!BL53","v":11},{"$f":"[1]ACS_16_5YR_B01001_with_ann!BM53","v":12},{"$f":"[1]ACS_16_5YR_B01001_with_ann!BN53","v":8},{"$f":"[1]ACS_16_5YR_B01001_with_ann!BO53","v":12},{"$f":"[1]ACS_16_5YR_B01001_with_ann!BP53","v":0},{"$f":"[1]ACS_16_5YR_B01001_with_ann!BQ53","v":12},{"$f":"[1]ACS_16_5YR_B01001_with_ann!BR53","v":12},{"$f":"[1]ACS_16_5YR_B01001_with_ann!BS53","v":21},{"$f":"[1]ACS_16_5YR_B01001_with_ann!BT53","v":21},{"$f":"[1]ACS_16_5YR_B01001_with_ann!BU53","v":17},{"$f":"[1]ACS_16_5YR_B01001_with_ann!BV53","v":65},{"$f":"[1]ACS_16_5YR_B01001_with_ann!BW53","v":38},{"$f":"[1]ACS_16_5YR_B01001_with_ann!BX53","v":129},{"$f":"[1]ACS_16_5YR_B01001_with_ann!BY53","v":73},{"$f":"[1]ACS_16_5YR_B01001_with_ann!BZ53","v":129},{"$f":"[1]ACS_16_5YR_B01001_with_ann!CA53","v":99},{"$f":"[1]ACS_16_5YR_B01001_with_ann!CB53","v":16},{"$f":"[1]ACS_16_5YR_B01001_with_ann!CC53","v":20},{"$f":"[1]ACS_16_5YR_B01001_with_ann!CD53","v":104},{"$f":"[1]ACS_16_5YR_B01001_with_ann!CE53","v":50},{"$f":"[1]ACS_16_5YR_B01001_with_ann!CF53","v":92},{"$f":"[1]ACS_16_5YR_B01001_with_ann!CG53","v":44},{"$f":"[1]ACS_16_5YR_B01001_with_ann!CH53","v":56},{"$f":"[1]ACS_16_5YR_B01001_with_ann!CI53","v":42},{"$f":"[1]ACS_16_5YR_B01001_with_ann!CJ53","v":60},{"$f":"[1]ACS_16_5YR_B01001_with_ann!CK53","v":32},{"$f":"[1]ACS_16_5YR_B01001_with_ann!CL53","v":6},{"$f":"[1]ACS_16_5YR_B01001_with_ann!CM53","v":8},{"$f":"[1]ACS_16_5YR_B01001_with_ann!CN53","v":58},{"$f":"[1]ACS_16_5YR_B01001_with_ann!CO53","v":29},{"$f":"[1]ACS_16_5YR_B01001_with_ann!CP53","v":56},{"$f":"[1]ACS_16_5YR_B01001_with_ann!CQ53","v":34},{"$f":"[1]ACS_16_5YR_B01001_with_ann!CR53","v":36},{"$f":"[1]ACS_16_5YR_B01001_with_ann!CS53","v":25},{"$f":"[1]ACS_16_5YR_B01001_with_ann!CT53","v":21},{"$f":"[1]ACS_16_5YR_B01001_with_ann!CU53","v":14},{"$f":"[1]ACS_16_5YR_B01001_with_ann!CV53","v":30},{"$f":"[1]ACS_16_5YR_B01001_with_ann!CW53","v":28}]
["0600000US3300545700","0600000US3300545700","060",{"$f":"[1]ACS_16_5YR_B01001_with_ann!C54","v":"Marlow"},{"$f":"[1]ACS_16_5YR_B01001_with_ann!D54","v":803},{"$f":"[1]ACS_16_5YR_B01001_with_ann!E54","v":175},{"$f":"[1]ACS_16_5YR_B01001_with_ann!F54","v":364},{"$f":"[1]ACS_16_5YR_B01001_with_ann!G54","v":80},{"$f":"[1]ACS_16_5YR_B01001_with_ann!H54","v":23},{"$f":"[1]ACS_16_5YR_B01001_with_ann!I54","v":26},{"$f":"[1]ACS_16_5YR_B01001_with_ann!J54","v":9},{"$f":"[1]ACS_16_5YR_B01001_with_ann!K54","v":10},{"$f":"[1]ACS_16_5YR_B01001_with_ann!L54","v":11},{"$f":"[1]ACS_16_5YR_B01001_with_ann!M54","v":9},{"$f":"[1]ACS_16_5YR_B01001_with_ann!N54","v":17},{"$f":"[1]ACS_16_5YR_B01001_with_ann!O54","v":20},{"$f":"[1]ACS_16_5YR_B01001_with_ann!P54","v":6},{"$f":"[1]ACS_16_5YR_B01001_with_ann!Q54","v":6},{"$f":"[1]ACS_16_5YR_B01001_with_ann!R54","v":7},{"$f":"[1]ACS_16_5YR_B01001_with_ann!S54","v":12},{"$f":"[1]ACS_16_5YR_B01001_with_ann!T54","v":0},{"$f":"[1]ACS_16_5YR_B01001_with_ann!U54","v":12},{"$f":"[1]ACS_16_5YR_B01001_with_ann!V54","v":4},{"$f":"[1]ACS_16_5YR_B01001_with_ann!W54","v":5},{"$f":"[1]ACS_16_5YR_B01001_with_ann!X54","v":18},{"$f":"[1]ACS_16_5YR_B01001_with_ann!Y54","v":24},{"$f":"[1]ACS_16_5YR_B01001_with_ann!Z54","v":18},{"$f":"[1]ACS_16_5YR_B01001_with_ann!AA54","v":15},{"$f":"[1]ACS_16_5YR_B01001_with_ann!AB54","v":21},{"$f":"[1]ACS_16_5YR_B01001_with_ann!AC54","v":15},{"$f":"[1]ACS_16_5YR_B01001_with_ann!AD54","v":12},{"$f":"[1]ACS_16_5YR_B01001_with_ann!AE54","v":14},{"$f":"[1]ACS_16_5YR_B01001_with_ann!AF54","v":21},{"$f":"[1]ACS_16_5YR_B01001_with_ann!AG54","v":16},{"$f":"[1]ACS_16_5YR_B01001_with_ann!AH54","v":19},{"$f":"[1]ACS_16_5YR_B01001_with_ann!AI54","v":8},{"$f":"[1]ACS_16_5YR_B01001_with_ann!AJ54","v":30},{"$f":"[1]ACS_16_5YR_B01001_with_ann!AK54","v":18},{"$f":"[1]ACS_16_5YR_B01001_with_ann!AL54","v":28},{"$f":"[1]ACS_16_5YR_B01001_with_ann!AM54","v":23},{"$f":"[1]ACS_16_5YR_B01001_with_ann!AN54","v":22},{"$f":"[1]ACS_16_5YR_B01001_with_ann!AO54","v":16},{"$f":"[1]ACS_16_5YR_B01001_with_ann!AP54","v":16},{"$f":"[1]ACS_16_5YR_B01001_with_ann!AQ54","v":9},{"$f":"[1]ACS_16_5YR_B01001_with_ann!AR54","v":5},{"$f":"[1]ACS_16_5YR_B01001_with_ann!AS54","v":5},{"$f":"[1]ACS_16_5YR_B01001_with_ann!AT54","v":54},{"$f":"[1]ACS_16_5YR_B01001_with_ann!AU54","v":37},{"$f":"[1]ACS_16_5YR_B01001_with_ann!AV54","v":7},{"$f":"[1]ACS_16_5YR_B01001_with_ann!AW54","v":6},{"$f":"[1]ACS_16_5YR_B01001_with_ann!AX54","v":5},{"$f":"[1]ACS_16_5YR_B01001_with_ann!AY54","v":5},{"$f":"[1]ACS_16_5YR_B01001_with_ann!AZ54","v":11},{"$f":"[1]ACS_16_5YR_B01001_with_ann!BA54","v":9},{"$f":"[1]ACS_16_5YR_B01001_with_ann!BB54","v":439},{"$f":"[1]ACS_16_5YR_B01001_with_ann!BC54","v":110},{"$f":"[1]ACS_16_5YR_B01001_with_ann!BD54","v":19},{"$f":"[1]ACS_16_5YR_B01001_with_ann!BE54","v":19},{"$f":"[1]ACS_16_5YR_B01001_with_ann!BF54","v":14},{"$f":"[1]ACS_16_5YR_B01001_with_ann!BG54","v":12},{"$f":"[1]ACS_16_5YR_B01001_with_ann!BH54","v":91},{"$f":"[1]ACS_16_5YR_B01001_with_ann!BI54","v":52},{"$f":"[1]ACS_16_5YR_B01001_with_ann!BJ54","v":11},{"$f":"[1]ACS_16_5YR_B01001_with_ann!BK54","v":9},{"$f":"[1]ACS_16_5YR_B01001_with_ann!BL54","v":10},{"$f":"[1]ACS_16_5YR_B01001_with_ann!BM54","v":13},{"$f":"[1]ACS_16_5YR_B01001_with_ann!BN54","v":2},{"$f":"[1]ACS_16_5YR_B01001_with_ann!BO54","v":3},{"$f":"[1]ACS_16_5YR_B01001_with_ann!BP54","v":3},{"$f":"[1]ACS_16_5YR_B01001_with_ann!BQ54","v":7},{"$f":"[1]ACS_16_5YR_B01001_with_ann!BR54","v":6},{"$f":"[1]ACS_16_5YR_B01001_with_ann!BS54","v":6},{"$f":"[1]ACS_16_5YR_B01001_with_ann!BT54","v":13},{"$f":"[1]ACS_16_5YR_B01001_with_ann!BU54","v":12},{"$f":"[1]ACS_16_5YR_B01001_with_ann!BV54","v":38},{"$f":"[1]ACS_16_5YR_B01001_with_ann!BW54","v":32},{"$f":"[1]ACS_16_5YR_B01001_with_ann!BX54","v":12},{"$f":"[1]ACS_16_5YR_B01001_with_ann!BY54","v":12},{"$f":"[1]ACS_16_5YR_B01001_with_ann!BZ54","v":21},{"$f":"[1]ACS_16_5YR_B01001_with_ann!CA54","v":13},{"$f":"[1]ACS_16_5YR_B01001_with_ann!CB54","v":17},{"$f":"[1]ACS_16_5YR_B01001_with_ann!CC54","v":13},{"$f":"[1]ACS_16_5YR_B01001_with_ann!CD54","v":19},{"$f":"[1]ACS_16_5YR_B01001_with_ann!CE54","v":16},{"$f":"[1]ACS_16_5YR_B01001_with_ann!CF54","v":22},{"$f":"[1]ACS_16_5YR_B01001_with_ann!CG54","v":13},{"$f":"[1]ACS_16_5YR_B01001_with_ann!CH54","v":9},{"$f":"[1]ACS_16_5YR_B01001_with_ann!CI54","v":10},{"$f":"[1]ACS_16_5YR_B01001_with_ann!CJ54","v":32},{"$f":"[1]ACS_16_5YR_B01001_with_ann!CK54","v":24},{"$f":"[1]ACS_16_5YR_B01001_with_ann!CL54","v":14},{"$f":"[1]ACS_16_5YR_B01001_with_ann!CM54","v":8},{"$f":"[1]ACS_16_5YR_B01001_with_ann!CN54","v":26},{"$f":"[1]ACS_16_5YR_B01001_with_ann!CO54","v":27},{"$f":"[1]ACS_16_5YR_B01001_with_ann!CP54","v":27},{"$f":"[1]ACS_16_5YR_B01001_with_ann!CQ54","v":22},{"$f":"[1]ACS_16_5YR_B01001_with_ann!CR54","v":10},{"$f":"[1]ACS_16_5YR_B01001_with_ann!CS54","v":7},{"$f":"[1]ACS_16_5YR_B01001_with_ann!CT54","v":16},{"$f":"[1]ACS_16_5YR_B01001_with_ann!CU54","v":13},{"$f":"[1]ACS_16_5YR_B01001_with_ann!CV54","v":7},{"$f":"[1]ACS_16_5YR_B01001_with_ann!CW54","v":9}]
["0600000US3300550580","0600000US3300550580","060",{"$f":"[1]ACS_16_5YR_B01001_with_ann!C55","v":"Nelson"},{"$f":"[1]ACS_16_5YR_B01001_with_ann!D55","v":550},{"$f":"[1]ACS_16_5YR_B01001_with_ann!E55","v":106},{"$f":"[1]ACS_16_5YR_B01001_with_ann!F55","v":252},{"$f":"[1]ACS_16_5YR_B01001_with_ann!G55","v":50},{"$f":"[1]ACS_16_5YR_B01001_with_ann!H55","v":15},{"$f":"[1]ACS_16_5YR_B01001_with_ann!I55","v":8},{"$f":"[1]ACS_16_5YR_B01001_with_ann!J55","v":12},{"$f":"[1]ACS_16_5YR_B01001_with_ann!K55","v":10},{"$f":"[1]ACS_16_5YR_B01001_with_ann!L55","v":2},{"$f":"[1]ACS_16_5YR_B01001_with_ann!M55","v":3},{"$f":"[1]ACS_16_5YR_B01001_with_ann!N55","v":3},{"$f":"[1]ACS_16_5YR_B01001_with_ann!O55","v":6},{"$f":"[1]ACS_16_5YR_B01001_with_ann!P55","v":7},{"$f":"[1]ACS_16_5YR_B01001_with_ann!Q55","v":11},{"$f":"[1]ACS_16_5YR_B01001_with_ann!R55","v":0},{"$f":"[1]ACS_16_5YR_B01001_with_ann!S55","v":12},{"$f":"[1]ACS_16_5YR_B01001_with_ann!T55","v":0},{"$f":"[1]ACS_16_5YR_B01001_with_ann!U55","v":12},{"$f":"[1]ACS_16_5YR_B01001_with_ann!V55","v":0},{"$f":"[1]ACS_16_5YR_B01001_with_ann!W55","v":12},{"$f":"[1]ACS_16_5YR_B01001_with_ann!X55","v":6},{"$f":"[1]ACS_16_5YR_B01001_with_ann!Y55","v":6},{"$f":"[1]ACS_16_5YR_B01001_with_ann!Z55","v":12},{"$f":"[1]ACS_16_5YR_B01001_with_ann!AA55","v":8},{"$f":"[1]ACS_16_5YR_B01001_with_ann!AB55","v":27},{"$f":"[1]ACS_16_5YR_B01001_with_ann!AC55","v":16},{"$f":"[1]ACS_16_5YR_B01001_with_ann!AD55","v":2},{"$f":"[1]ACS_16_5YR_B01001_with_ann!AE55","v":3},{"$f":"[1]ACS_16_5YR_B01001_with_ann!AF55","v":11},{"$f":"[1]ACS_16_5YR_B01001_with_ann!AG55","v":9},{"$f":"[1]ACS_16_5YR_B01001_with_ann!AH55","v":25},{"$f":"[1]ACS_16_5YR_B01001_with_ann!AI55","v":15},{"$f":"[1]ACS_16_5YR_B01001_with_ann!AJ55","v":22},{"$f":"[1]ACS_16_5YR_B01001_with_ann!AK55","v":16},{"$f":"[1]ACS_16_5YR_B01001_with_ann!AL55","v":16},{"$f":"[1]ACS_16_5YR_B01001_with_ann!AM55","v":10},{"$f":"[1]ACS_16_5YR_B01001_with_ann!AN55","v":13},{"$f":"[1]ACS_16_5YR_B01001_with_ann!AO55","v":11},{"$f":"[1]ACS_16_5YR_B01001_with_ann!AP55","v":14},{"$f":"[1]ACS_16_5YR_B01001_with_ann!AQ55","v":9},{"$f":"[1]ACS_16_5YR_B01001_with_ann!AR55","v":16},{"$f":"[1]ACS_16_5YR_B01001_with_ann!AS55","v":10},{"$f":"[1]ACS_16_5YR_B01001_with_ann!AT55","v":29},{"$f":"[1]ACS_16_5YR_B01001_with_ann!AU55","v":16},{"$f":"[1]ACS_16_5YR_B01001_with_ann!AV55","v":13},{"$f":"[1]ACS_16_5YR_B01001_with_ann!AW55","v":8},{"$f":"[1]ACS_16_5YR_B01001_with_ann!AX55","v":3},{"$f":"[1]ACS_16_5YR_B01001_with_ann!AY55","v":4},{"$f":"[1]ACS_16_5YR_B01001_with_ann!AZ55","v":4},{"$f":"[1]ACS_16_5YR_B01001_with_ann!BA55","v":4},{"$f":"[1]ACS_16_5YR_B01001_with_ann!BB55","v":298},{"$f":"[1]ACS_16_5YR_B01001_with_ann!BC55","v":67},{"$f":"[1]ACS_16_5YR_B01001_with_ann!BD55","v":7},{"$f":"[1]ACS_16_5YR_B01001_with_ann!BE55","v":7},{"$f":"[1]ACS_16_5YR_B01001_with_ann!BF55","v":27},{"$f":"[1]ACS_16_5YR_B01001_with_ann!BG55","v":20},{"$f":"[1]ACS_16_5YR_B01001_with_ann!BH55","v":11},{"$f":"[1]ACS_16_5YR_B01001_with_ann!BI55","v":11},{"$f":"[1]ACS_16_5YR_B01001_with_ann!BJ55","v":8},{"$f":"[1]ACS_16_5YR_B01001_with_ann!BK55","v":12},{"$f":"[1]ACS_16_5YR_B01001_with_ann!BL55","v":6},{"$f":"[1]ACS_16_5YR_B01001_with_ann!BM55","v":12},{"$f":"[1]ACS_16_5YR_B01001_with_ann!BN55","v":0},{"$f":"[1]ACS_16_5YR_B01001_with_ann!BO55","v":12},{"$f":"[1]ACS_16_5YR_B01001_with_ann!BP55","v":0},{"$f":"[1]ACS_16_5YR_B01001_with_ann!BQ55","v":12},{"$f":"[1]ACS_16_5YR_B01001_with_ann!BR55","v":4},{"$f":"[1]ACS_16_5YR_B01001_with_ann!BS55","v":4},{"$f":"[1]ACS_16_5YR_B01001_with_ann!BT55","v":11},{"$f":"[1]ACS_16_5YR_B01001_with_ann!BU55","v":9},{"$f":"[1]ACS_16_5YR_B01001_with_ann!BV55","v":6},{"$f":"[1]ACS_16_5YR_B01001_with_ann!BW55","v":6},{"$f":"[1]ACS_16_5YR_B01001_with_ann!BX55","v":32},{"$f":"[1]ACS_16_5YR_B01001_with_ann!BY55","v":17},{"$f":"[1]ACS_16_5YR_B01001_with_ann!BZ55","v":14},{"$f":"[1]ACS_16_5YR_B01001_with_ann!CA55","v":14},{"$f":"[1]ACS_16_5YR_B01001_with_ann!CB55","v":3},{"$f":"[1]ACS_16_5YR_B01001_with_ann!CC55","v":5},{"$f":"[1]ACS_16_5YR_B01001_with_ann!CD55","v":17},{"$f":"[1]ACS_16_5YR_B01001_with_ann!CE55","v":16},{"$f":"[1]ACS_16_5YR_B01001_with_ann!CF55","v":46},{"$f":"[1]ACS_16_5YR_B01001_with_ann!CG55","v":22},{"$f":"[1]ACS_16_5YR_B01001_with_ann!CH55","v":15},{"$f":"[1]ACS_16_5YR_B01001_with_ann!CI55","v":8},{"$f":"[1]ACS_16_5YR_B01001_with_ann!CJ55","v":13},{"$f":"[1]ACS_16_5YR_B01001_with_ann!CK55","v":12},{"$f":"[1]ACS_16_5YR_B01001_with_ann!CL55","v":14},{"$f":"[1]ACS_16_5YR_B01001_with_ann!CM55","v":8},{"$f":"[1]ACS_16_5YR_B01001_with_ann!CN55","v":19},{"$f":"[1]ACS_16_5YR_B01001_with_ann!CO55","v":13},{"$f":"[1]ACS_16_5YR_B01001_with_ann!CP55","v":15},{"$f":"[1]ACS_16_5YR_B01001_with_ann!CQ55","v":7},{"$f":"[1]ACS_16_5YR_B01001_with_ann!CR55","v":18},{"$f":"[1]ACS_16_5YR_B01001_with_ann!CS55","v":13},{"$f":"[1]ACS_16_5YR_B01001_with_ann!CT55","v":6},{"$f":"[1]ACS_16_5YR_B01001_with_ann!CU55","v":6},{"$f":"[1]ACS_16_5YR_B01001_with_ann!CV55","v":6},{"$f":"[1]ACS_16_5YR_B01001_with_ann!CW55","v":8}]
["0600000US3300564420","0600000US3300564420","060",{"$f":"[1]ACS_16_5YR_B01001_with_ann!C56","v":"Richmond"},{"$f":"[1]ACS_16_5YR_B01001_with_ann!D56","v":1107},{"$f":"[1]ACS_16_5YR_B01001_with_ann!E56","v":251},{"$f":"[1]ACS_16_5YR_B01001_with_ann!F56","v":598},{"$f":"[1]ACS_16_5YR_B01001_with_ann!G56","v":161},{"$f":"[1]ACS_16_5YR_B01001_with_ann!H56","v":38},{"$f":"[1]ACS_16_5YR_B01001_with_ann!I56","v":31},{"$f":"[1]ACS_16_5YR_B01001_with_ann!J56","v":34},{"$f":"[1]ACS_16_5YR_B01001_with_ann!K56","v":22},{"$f":"[1]ACS_16_5YR_B01001_with_ann!L56","v":36},{"$f":"[1]ACS_16_5YR_B01001_with_ann!M56","v":22},{"$f":"[1]ACS_16_5YR_B01001_with_ann!N56","v":12},{"$f":"[1]ACS_16_5YR_B01001_with_ann!O56","v":12},{"$f":"[1]ACS_16_5YR_B01001_with_ann!P56","v":15},{"$f":"[1]ACS_16_5YR_B01001_with_ann!Q56","v":29},{"$f":"[1]ACS_16_5YR_B01001_with_ann!R56","v":0},{"$f":"[1]ACS_16_5YR_B01001_with_ann!S56","v":12},{"$f":"[1]ACS_16_5YR_B01001_with_ann!T56","v":13},{"$f":"[1]ACS_16_5YR_B01001_with_ann!U56","v":20},{"$f":"[1]ACS_16_5YR_B01001_with_ann!V56","v":28},{"$f":"[1]ACS_16_5YR_B01001_with_ann!W56","v":26},{"$f":"[1]ACS_16_5YR_B01001_with_ann!X56","v":16},{"$f":"[1]ACS_16_5YR_B01001_with_ann!Y56","v":15},{"$f":"[1]ACS_16_5YR_B01001_with_ann!Z56","v":41},{"$f":"[1]ACS_16_5YR_B01001_with_ann!AA56","v":30},{"$f":"[1]ACS_16_5YR_B01001_with_ann!AB56","v":14},{"$f":"[1]ACS_16_5YR_B01001_with_ann!AC56","v":13},{"$f":"[1]ACS_16_5YR_B01001_with_ann!AD56","v":24},{"$f":"[1]ACS_16_5YR_B01001_with_ann!AE56","v":14},{"$f":"[1]ACS_16_5YR_B01001_with_ann!AF56","v":19},{"$f":"[1]ACS_16_5YR_B01001_with_ann!AG56","v":20},{"$f":"[1]ACS_16_5YR_B01001_with_ann!AH56","v":29},{"$f":"[1]ACS_16_5YR_B01001_with_ann!AI56","v":19},{"$f":"[1]ACS_16_5YR_B01001_with_ann!AJ56","v":40},{"$f":"[1]ACS_16_5YR_B01001_with_ann!AK56","v":29},{"$f":"[1]ACS_16_5YR_B01001_with_ann!AL56","v":20},{"$f":"[1]ACS_16_5YR_B01001_with_ann!AM56","v":14},{"$f":"[1]ACS_16_5YR_B01001_with_ann!AN56","v":46},{"$f":"[1]ACS_16_5YR_B01001_with_ann!AO56","v":26},{"$f":"[1]ACS_16_5YR_B01001_with_ann!AP56","v":47},{"$f":"[1]ACS_16_5YR_B01001_with_ann!AQ56","v":36},{"$f":"[1]ACS_16_5YR_B01001_with_ann!AR56","v":57},{"$f":"[1]ACS_16_5YR_B01001_with_ann!AS56","v":64},{"$f":"[1]ACS_16_5YR_B01001_with_ann!AT56","v":41},{"$f":"[1]ACS_16_5YR_B01001_with_ann!AU56","v":19},{"$f":"[1]ACS_16_5YR_B01001_with_ann!AV56","v":5},{"$f":"[1]ACS_16_5YR_B01001_with_ann!AW56","v":5},{"$f":"[1]ACS_16_5YR_B01001_with_ann!AX56","v":2},{"$f":"[1]ACS_16_5YR_B01001_with_ann!AY56","v":4},{"$f":"[1]ACS_16_5YR_B01001_with_ann!AZ56","v":21},{"$f":"[1]ACS_16_5YR_B01001_with_ann!BA56","v":15},{"$f":"[1]ACS_16_5YR_B01001_with_ann!BB56","v":509},{"$f":"[1]ACS_16_5YR_B01001_with_ann!BC56","v":121},{"$f":"[1]ACS_16_5YR_B01001_with_ann!BD56","v":10},{"$f":"[1]ACS_16_5YR_B01001_with_ann!BE56","v":14},{"$f":"[1]ACS_16_5YR_B01001_with_ann!BF56","v":34},{"$f":"[1]ACS_16_5YR_B01001_with_ann!BG56","v":25},{"$f":"[1]ACS_16_5YR_B01001_with_ann!BH56","v":14},{"$f":"[1]ACS_16_5YR_B01001_with_ann!BI56","v":15},{"$f":"[1]ACS_16_5YR_B01001_with_ann!BJ56","v":10},{"$f":"[1]ACS_16_5YR_B01001_with_ann!BK56","v":9},{"$f":"[1]ACS_16_5YR_B01001_with_ann!BL56","v":3},{"$f":"[1]ACS_16_5YR_B01001_with_ann!BM56","v":6},{"$f":"[1]ACS_16_5YR_B01001_with_ann!BN56","v":17},{"$f":"[1]ACS_16_5YR_B01001_with_ann!BO56","v":27},{"$f":"[1]ACS_16_5YR_B01001_with_ann!BP56","v":0},{"$f":"[1]ACS_16_5YR_B01001_with_ann!BQ56","v":12},{"$f":"[1]ACS_16_5YR_B01001_with_ann!BR56","v":18},{"$f":"[1]ACS_16_5YR_B01001_with_ann!BS56","v":20},{"$f":"[1]ACS_16_5YR_B01001_with_ann!BT56","v":4},{"$f":"[1]ACS_16_5YR_B01001_with_ann!BU56","v":10},{"$f":"[1]ACS_16_5YR_B01001_with_ann!BV56","v":27},{"$f":"[1]ACS_16_5YR_B01001_with_ann!BW56","v":15},{"$f":"[1]ACS_16_5YR_B01001_with_ann!BX56","v":18},{"$f":"[1]ACS_16_5YR_B01001_with_ann!BY56","v":11},{"$f":"[1]ACS_16_5YR_B01001_with_ann!BZ56","v":23},{"$f":"[1]ACS_16_5YR_B01001_with_ann!CA56","v":19},{"$f":"[1]ACS_16_5YR_B01001_with_ann!CB56","v":13},{"$f":"[1]ACS_16_5YR_B01001_with_ann!CC56","v":12},{"$f":"[1]ACS_16_5YR_B01001_with_ann!CD56","v":37},{"$f":"[1]ACS_16_5YR_B01001_with_ann!CE56","v":27},{"$f":"[1]ACS_16_5YR_B01001_with_ann!CF56","v":71},{"$f":"[1]ACS_16_5YR_B01001_with_ann!CG56","v":45},{"$f":"[1]ACS_16_5YR_B01001_with_ann!CH56","v":46},{"$f":"[1]ACS_16_5YR_B01001_with_ann!CI56","v":28},{"$f":"[1]ACS_16_5YR_B01001_with_ann!CJ56","v":18},{"$f":"[1]ACS_16_5YR_B01001_with_ann!CK56","v":12},{"$f":"[1]ACS_16_5YR_B01001_with_ann!CL56","v":21},{"$f":"[1]ACS_16_5YR_B01001_with_ann!CM56","v":19},{"$f":"[1]ACS_16_5YR_B01001_with_ann!CN56","v":26},{"$f":"[1]ACS_16_5YR_B01001_with_ann!CO56","v":13},{"$f":"[1]ACS_16_5YR_B01001_with_ann!CP56","v":22},{"$f":"[1]ACS_16_5YR_B01001_with_ann!CQ56","v":14},{"$f":"[1]ACS_16_5YR_B01001_with_ann!CR56","v":40},{"$f":"[1]ACS_16_5YR_B01001_with_ann!CS56","v":35},{"$f":"[1]ACS_16_5YR_B01001_with_ann!CT56","v":12},{"$f":"[1]ACS_16_5YR_B01001_with_ann!CU56","v":13},{"$f":"[1]ACS_16_5YR_B01001_with_ann!CV56","v":25},{"$f":"[1]ACS_16_5YR_B01001_with_ann!CW56","v":21}]
["0600000US3300564580","0600000US3300564580","060",{"$f":"[1]ACS_16_5YR_B01001_with_ann!C57","v":"Rindge"},{"$f":"[1]ACS_16_5YR_B01001_with_ann!D57","v":6446},{"$f":"[1]ACS_16_5YR_B01001_with_ann!E57","v":21},{"$f":"[1]ACS_16_5YR_B01001_with_ann!F57","v":3165},{"$f":"[1]ACS_16_5YR_B01001_with_ann!G57","v":186},{"$f":"[1]ACS_16_5YR_B01001_with_ann!H57","v":144},{"$f":"[1]ACS_16_5YR_B01001_with_ann!I57","v":96},{"$f":"[1]ACS_16_5YR_B01001_with_ann!J57","v":189},{"$f":"[1]ACS_16_5YR_B01001_with_ann!K57","v":77},{"$f":"[1]ACS_16_5YR_B01001_with_ann!L57","v":223},{"$f":"[1]ACS_16_5YR_B01001_with_ann!M57","v":103},{"$f":"[1]ACS_16_5YR_B01001_with_ann!N57","v":58},{"$f":"[1]ACS_16_5YR_B01001_with_ann!O57","v":51},{"$f":"[1]ACS_16_5YR_B01001_with_ann!P57","v":219},{"$f":"[1]ACS_16_5YR_B01001_with_ann!Q57","v":67},{"$f":"[1]ACS_16_5YR_B01001_with_ann!R57","v":130},{"$f":"[1]ACS_16_5YR_B01001_with_ann!S57","v":64},{"$f":"[1]ACS_16_5YR_B01001_with_ann!T57","v":134},{"$f":"[1]ACS_16_5YR_B01001_with_ann!U57","v":64},{"$f":"[1]ACS_16_5YR_B01001_with_ann!V57","v":44},{"$f":"[1]ACS_16_5YR_B01001_with_ann!W57","v":39},{"$f":"[1]ACS_16_5YR_B01001_with_ann!X57","v":265},{"$f":"[1]ACS_16_5YR_B01001_with_ann!Y57","v":93},{"$f":"[1]ACS_16_5YR_B01001_with_ann!Z57","v":152},{"$f":"[1]ACS_16_5YR_B01001_with_ann!AA57","v":63},{"$f":"[1]ACS_16_5YR_B01001_with_ann!AB57","v":187},{"$f":"[1]ACS_16_5YR_B01001_with_ann!AC57","v":79},{"$f":"[1]ACS_16_5YR_B01001_with_ann!AD57","v":97},{"$f":"[1]ACS_16_5YR_B01001_with_ann!AE57","v":60},{"$f":"[1]ACS_16_5YR_B01001_with_ann!AF57","v":144},{"$f":"[1]ACS_16_5YR_B01001_with_ann!AG57","v":76},{"$f":"[1]ACS_16_5YR_B01001_with_ann!AH57","v":117},{"$f":"[1]ACS_16_5YR_B01001_with_ann!AI57","v":66},{"$f":"[1]ACS_16_5YR_B01001_with_ann!AJ57","v":249},{"$f":"[1]ACS_16_5YR_B01001_with_ann!AK57","v":97},{"$f":"[1]ACS_16_5YR_B01001_with_ann!AL57","v":66},{"$f":"[1]ACS_16_5YR_B01001_with_ann!AM57","v":51},{"$f":"[1]ACS_16_5YR_B01001_with_ann!AN57","v":123},{"$f":"[1]ACS_16_5YR_B01001_with_ann!AO57","v":55},{"$f":"[1]ACS_16_5YR_B01001_with_ann!AP57","v":79},{"$f":"[1]ACS_16_5YR_B01001_with_ann!AQ57","v":43},{"$f":"[1]ACS_16_5YR_B01001_with_ann!AR57","v":141},{"$f":"[1]ACS_16_5YR_B01001_with_ann!AS57","v":84},{"$f":"[1]ACS_16_5YR_B01001_with_ann!AT57","v":208},{"$f":"[1]ACS_16_5YR_B01001_with_ann!AU57","v":95},{"$f":"[1]ACS_16_5YR_B01001_with_ann!AV57","v":164},{"$f":"[1]ACS_16_5YR_B01001_with_ann!AW57","v":92},{"$f":"[1]ACS_16_5YR_B01001_with_ann!AX57","v":26},{"$f":"[1]ACS_16_5YR_B01001_with_ann!AY57","v":25},{"$f":"[1]ACS_16_5YR_B01001_with_ann!AZ57","v":6},{"$f":"[1]ACS_16_5YR_B01001_with_ann!BA57","v":10},{"$f":"[1]ACS_16_5YR_B01001_with_ann!BB57","v":3281},{"$f":"[1]ACS_16_5YR_B01001_with_ann!BC57","v":187},{"$f":"[1]ACS_16_5YR_B01001_with_ann!BD57","v":116},{"$f":"[1]ACS_16_5YR_B01001_with_ann!BE57","v":74},{"$f":"[1]ACS_16_5YR_B01001_with_ann!BF57","v":170},{"$f":"[1]ACS_16_5YR_B01001_with_ann!BG57","v":91},{"$f":"[1]ACS_16_5YR_B01001_with_ann!BH57","v":227},{"$f":"[1]ACS_16_5YR_B01001_with_ann!BI57","v":112},{"$f":"[1]ACS_16_5YR_B01001_with_ann!BJ57","v":46},{"$f":"[1]ACS_16_5YR_B01001_with_ann!BK57","v":61},{"$f":"[1]ACS_16_5YR_B01001_with_ann!BL57","v":379},{"$f":"[1]ACS_16_5YR_B01001_with_ann!BM57","v":105},{"$f":"[1]ACS_16_5YR_B01001_with_ann!BN57","v":159},{"$f":"[1]ACS_16_5YR_B01001_with_ann!BO57","v":60},{"$f":"[1]ACS_16_5YR_B01001_with_ann!BP57","v":85},{"$f":"[1]ACS_16_5YR_B01001_with_ann!BQ57","v":55},{"$f":"[1]ACS_16_5YR_B01001_with_ann!BR57","v":125},{"$f":"[1]ACS_16_5YR_B01001_with_ann!BS57","v":66},{"$f":"[1]ACS_16_5YR_B01001_with_ann!BT57","v":116},{"$f":"[1]ACS_16_5YR_B01001_with_ann!BU57","v":71},{"$f":"[1]ACS_16_5YR_B01001_with_ann!BV57","v":138},{"$f":"[1]ACS_16_5YR_B01001_with_ann!BW57","v":63},{"$f":"[1]ACS_16_5YR_B01001_with_ann!BX57","v":183},{"$f":"[1]ACS_16_5YR_B01001_with_ann!BY57","v":69},{"$f":"[1]ACS_16_5YR_B01001_with_ann!BZ57","v":129},{"$f":"[1]ACS_16_5YR_B01001_with_ann!CA57","v":72},{"$f":"[1]ACS_16_5YR_B01001_with_ann!CB57","v":101},{"$f":"[1]ACS_16_5YR_B01001_with_ann!CC57","v":71},{"$f":"[1]ACS_16_5YR_B01001_with_ann!CD57","v":252},{"$f":"[1]ACS_16_5YR_B01001_with_ann!CE57","v":90},{"$f":"[1]ACS_16_5YR_B01001_with_ann!CF57","v":249},{"$f":"[1]ACS_16_5YR_B01001_with_ann!CG57","v":89},{"$f":"[1]ACS_16_5YR_B01001_with_ann!CH57","v":77},{"$f":"[1]ACS_16_5YR_B01001_with_ann!CI57","v":55},{"$f":"[1]ACS_16_5YR_B01001_with_ann!CJ57","v":76},{"$f":"[1]ACS_16_5YR_B01001_with_ann!CK57","v":59},{"$f":"[1]ACS_16_5YR_B01001_with_ann!CL57","v":45},{"$f":"[1]ACS_16_5YR_B01001_with_ann!CM57","v":26},{"$f":"[1]ACS_16_5YR_B01001_with_ann!CN57","v":94},{"$f":"[1]ACS_16_5YR_B01001_with_ann!CO57","v":65},{"$f":"[1]ACS_16_5YR_B01001_with_ann!CP57","v":292},{"$f":"[1]ACS_16_5YR_B01001_with_ann!CQ57","v":84},{"$f":"[1]ACS_16_5YR_B01001_with_ann!CR57","v":68},{"$f":"[1]ACS_16_5YR_B01001_with_ann!CS57","v":45},{"$f":"[1]ACS_16_5YR_B01001_with_ann!CT57","v":71},{"$f":"[1]ACS_16_5YR_B01001_with_ann!CU57","v":79},{"$f":"[1]ACS_16_5YR_B01001_with_ann!CV57","v":83},{"$f":"[1]ACS_16_5YR_B01001_with_ann!CW57","v":70}]
["0600000US3300565700","0600000US3300565700","060",{"$f":"[1]ACS_16_5YR_B01001_with_ann!C58","v":"Roxbury"},{"$f":"[1]ACS_16_5YR_B01001_with_ann!D58","v":295},{"$f":"[1]ACS_16_5YR_B01001_with_ann!E58","v":142},{"$f":"[1]ACS_16_5YR_B01001_with_ann!F58","v":135},{"$f":"[1]ACS_16_5YR_B01001_with_ann!G58","v":70},{"$f":"[1]ACS_16_5YR_B01001_with_ann!H58","v":36},{"$f":"[1]ACS_16_5YR_B01001_with_ann!I58","v":37},{"$f":"[1]ACS_16_5YR_B01001_with_ann!J58","v":2},{"$f":"[1]ACS_16_5YR_B01001_with_ann!K58","v":4},{"$f":"[1]ACS_16_5YR_B01001_with_ann!L58","v":2},{"$f":"[1]ACS_16_5YR_B01001_with_ann!M58","v":3},{"$f":"[1]ACS_16_5YR_B01001_with_ann!N58","v":0},{"$f":"[1]ACS_16_5YR_B01001_with_ann!O58","v":12},{"$f":"[1]ACS_16_5YR_B01001_with_ann!P58","v":0},{"$f":"[1]ACS_16_5YR_B01001_with_ann!Q58","v":12},{"$f":"[1]ACS_16_5YR_B01001_with_ann!R58","v":0},{"$f":"[1]ACS_16_5YR_B01001_with_ann!S58","v":12},{"$f":"[1]ACS_16_5YR_B01001_with_ann!T58","v":0},{"$f":"[1]ACS_16_5YR_B01001_with_ann!U58","v":12},{"$f":"[1]ACS_16_5YR_B01001_with_ann!V58","v":9},{"$f":"[1]ACS_16_5YR_B01001_with_ann!W58","v":11},{"$f":"[1]ACS_16_5YR_B01001_with_ann!X58","v":7},{"$f":"[1]ACS_16_5YR_B01001_with_ann!Y58","v":5},{"$f":"[1]ACS_16_5YR_B01001_with_ann!Z58","v":1},{"$f":"[1]ACS_16_5YR_B01001_with_ann!AA58","v":2},{"$f":"[1]ACS_16_5YR_B01001_with_ann!AB58","v":3},{"$f":"[1]ACS_16_5YR_B01001_with_ann!AC58","v":4},{"$f":"[1]ACS_16_5YR_B01001_with_ann!AD58","v":3},{"$f":"[1]ACS_16_5YR_B01001_with_ann!AE58","v":4},{"$f":"[1]ACS_16_5YR_B01001_with_ann!AF58","v":5},{"$f":"[1]ACS_16_5YR_B01001_with_ann!AG58","v":4},{"$f":"[1]ACS_16_5YR_B01001_with_ann!AH58","v":38},{"$f":"[1]ACS_16_5YR_B01001_with_ann!AI58","v":37},{"$f":"[1]ACS_16_5YR_B01001_with_ann!AJ58","v":6},{"$f":"[1]ACS_16_5YR_B01001_with_ann!AK58","v":6},{"$f":"[1]ACS_16_5YR_B01001_with_ann!AL58","v":2},{"$f":"[1]ACS_16_5YR_B01001_with_ann!AM58","v":3},{"$f":"[1]ACS_16_5YR_B01001_with_ann!AN58","v":8},{"$f":"[1]ACS_16_5YR_B01001_with_ann!AO58","v":9},{"$f":"[1]ACS_16_5YR_B01001_with_ann!AP58","v":0},{"$f":"[1]ACS_16_5YR_B01001_with_ann!AQ58","v":12},{"$f":"[1]ACS_16_5YR_B01001_with_ann!AR58","v":3},{"$f":"[1]ACS_16_5YR_B01001_with_ann!AS58","v":4},{"$f":"[1]ACS_16_5YR_B01001_with_ann!AT58","v":7},{"$f":"[1]ACS_16_5YR_B01001_with_ann!AU58","v":5},{"$f":"[1]ACS_16_5YR_B01001_with_ann!AV58","v":3},{"$f":"[1]ACS_16_5YR_B01001_with_ann!AW58","v":3},{"$f":"[1]ACS_16_5YR_B01001_with_ann!AX58","v":0},{"$f":"[1]ACS_16_5YR_B01001_with_ann!AY58","v":12},{"$f":"[1]ACS_16_5YR_B01001_with_ann!AZ58","v":0},{"$f":"[1]ACS_16_5YR_B01001_with_ann!BA58","v":12},{"$f":"[1]ACS_16_5YR_B01001_with_ann!BB58","v":160},{"$f":"[1]ACS_16_5YR_B01001_with_ann!BC58","v":78},{"$f":"[1]ACS_16_5YR_B01001_with_ann!BD58","v":2},{"$f":"[1]ACS_16_5YR_B01001_with_ann!BE58","v":3},{"$f":"[1]ACS_16_5YR_B01001_with_ann!BF58","v":3},{"$f":"[1]ACS_16_5YR_B01001_with_ann!BG58","v":3},{"$f":"[1]ACS_16_5YR_B01001_with_ann!BH58","v":0},{"$f":"[1]ACS_16_5YR_B01001_with_ann!BI58","v":12},{"$f":"[1]ACS_16_5YR_B01001_with_ann!BJ58","v":2},{"$f":"[1]ACS_16_5YR_B01001_with_ann!BK58","v":4},{"$f":"[1]ACS_16_5YR_B01001_with_ann!BL58","v":2},{"$f":"[1]ACS_16_5YR_B01001_with_ann!BM58","v":4},{"$f":"[1]ACS_16_5YR_B01001_with_ann!BN58","v":0},{"$f":"[1]ACS_16_5YR_B01001_with_ann!BO58","v":12},{"$f":"[1]ACS_16_5YR_B01001_with_ann!BP58","v":13},{"$f":"[1]ACS_16_5YR_B01001_with_ann!BQ58","v":15},{"$f":"[1]ACS_16_5YR_B01001_with_ann!BR58","v":43},{"$f":"[1]ACS_16_5YR_B01001_with_ann!BS58","v":56},{"$f":"[1]ACS_16_5YR_B01001_with_ann!BT58","v":3},{"$f":"[1]ACS_16_5YR_B01001_with_ann!BU58","v":6},{"$f":"[1]ACS_16_5YR_B01001_with_ann!BV58","v":6},{"$f":"[1]ACS_16_5YR_B01001_with_ann!BW58","v":6},{"$f":"[1]ACS_16_5YR_B01001_with_ann!BX58","v":15},{"$f":"[1]ACS_16_5YR_B01001_with_ann!BY58","v":12},{"$f":"[1]ACS_16_5YR_B01001_with_ann!BZ58","v":6},{"$f":"[1]ACS_16_5YR_B01001_with_ann!CA58","v":4},{"$f":"[1]ACS_16_5YR_B01001_with_ann!CB58","v":8},{"$f":"[1]ACS_16_5YR_B01001_with_ann!CC58","v":7},{"$f":"[1]ACS_16_5YR_B01001_with_ann!CD58","v":18},{"$f":"[1]ACS_16_5YR_B01001_with_ann!CE58","v":22},{"$f":"[1]ACS_16_5YR_B01001_with_ann!CF58","v":8},{"$f":"[1]ACS_16_5YR_B01001_with_ann!CG58","v":5},{"$f":"[1]ACS_16_5YR_B01001_with_ann!CH58","v":7},{"$f":"[1]ACS_16_5YR_B01001_with_ann!CI58","v":13},{"$f":"[1]ACS_16_5YR_B01001_with_ann!CJ58","v":4},{"$f":"[1]ACS_16_5YR_B01001_with_ann!CK58","v":4},{"$f":"[1]ACS_16_5YR_B01001_with_ann!CL58","v":2},{"$f":"[1]ACS_16_5YR_B01001_with_ann!CM58","v":2},{"$f":"[1]ACS_16_5YR_B01001_with_ann!CN58","v":5},{"$f":"[1]ACS_16_5YR_B01001_with_ann!CO58","v":4},{"$f":"[1]ACS_16_5YR_B01001_with_ann!CP58","v":6},{"$f":"[1]ACS_16_5YR_B01001_with_ann!CQ58","v":4},{"$f":"[1]ACS_16_5YR_B01001_with_ann!CR58","v":2},{"$f":"[1]ACS_16_5YR_B01001_with_ann!CS58","v":3},{"$f":"[1]ACS_16_5YR_B01001_with_ann!CT58","v":1},{"$f":"[1]ACS_16_5YR_B01001_with_ann!CU58","v":2},{"$f":"[1]ACS_16_5YR_B01001_with_ann!CV58","v":4},{"$f":"[1]ACS_16_5YR_B01001_with_ann!CW58","v":6}]
["0600000US3300573700","0600000US3300573700","060",{"$f":"[1]ACS_16_5YR_B01001_with_ann!C59","v":"Stoddard"},{"$f":"[1]ACS_16_5YR_B01001_with_ann!D59","v":1205},{"$f":"[1]ACS_16_5YR_B01001_with_ann!E59","v":162},{"$f":"[1]ACS_16_5YR_B01001_with_ann!F59","v":592},{"$f":"[1]ACS_16_5YR_B01001_with_ann!G59","v":98},{"$f":"[1]ACS_16_5YR_B01001_with_ann!H59","v":29},{"$f":"[1]ACS_16_5YR_B01001_with_ann!I59","v":16},{"$f":"[1]ACS_16_5YR_B01001_with_ann!J59","v":37},{"$f":"[1]ACS_16_5YR_B01001_with_ann!K59","v":23},{"$f":"[1]ACS_16_5YR_B01001_with_ann!L59","v":37},{"$f":"[1]ACS_16_5YR_B01001_with_ann!M59","v":19},{"$f":"[1]ACS_16_5YR_B01001_with_ann!N59","v":30},{"$f":"[1]ACS_16_5YR_B01001_with_ann!O59","v":31},{"$f":"[1]ACS_16_5YR_B01001_with_ann!P59","v":15},{"$f":"[1]ACS_16_5YR_B01001_with_ann!Q59","v":18},{"$f":"[1]ACS_16_5YR_B01001_with_ann!R59","v":0},{"$f":"[1]ACS_16_5YR_B01001_with_ann!S59","v":12},{"$f":"[1]ACS_16_5YR_B01001_with_ann!T59","v":12},{"$f":"[1]ACS_16_5YR_B01001_with_ann!U59","v":11},{"$f":"[1]ACS_16_5YR_B01001_with_ann!V59","v":9},{"$f":"[1]ACS_16_5YR_B01001_with_ann!W59","v":8},{"$f":"[1]ACS_16_5YR_B01001_with_ann!X59","v":17},{"$f":"[1]ACS_16_5YR_B01001_with_ann!Y59","v":11},{"$f":"[1]ACS_16_5YR_B01001_with_ann!Z59","v":28},{"$f":"[1]ACS_16_5YR_B01001_with_ann!AA59","v":18},{"$f":"[1]ACS_16_5YR_B01001_with_ann!AB59","v":33},{"$f":"[1]ACS_16_5YR_B01001_with_ann!AC59","v":25},{"$f":"[1]ACS_16_5YR_B01001_with_ann!AD59","v":23},{"$f":"[1]ACS_16_5YR_B01001_with_ann!AE59","v":12},{"$f":"[1]ACS_16_5YR_B01001_with_ann!AF59","v":23},{"$f":"[1]ACS_16_5YR_B01001_with_ann!AG59","v":12},{"$f":"[1]ACS_16_5YR_B01001_with_ann!AH59","v":85},{"$f":"[1]ACS_16_5YR_B01001_with_ann!AI59","v":35},{"$f":"[1]ACS_16_5YR_B01001_with_ann!AJ59","v":30},{"$f":"[1]ACS_16_5YR_B01001_with_ann!AK59","v":16},{"$f":"[1]ACS_16_5YR_B01001_with_ann!AL59","v":31},{"$f":"[1]ACS_16_5YR_B01001_with_ann!AM59","v":17},{"$f":"[1]ACS_16_5YR_B01001_with_ann!AN59","v":54},{"$f":"[1]ACS_16_5YR_B01001_with_ann!AO59","v":28},{"$f":"[1]ACS_16_5YR_B01001_with_ann!AP59","v":26},{"$f":"[1]ACS_16_5YR_B01001_with_ann!AQ59","v":11},{"$f":"[1]ACS_16_5YR_B01001_with_ann!AR59","v":11},{"$f":"[1]ACS_16_5YR_B01001_with_ann!AS59","v":8},{"$f":"[1]ACS_16_5YR_B01001_with_ann!AT59","v":31},{"$f":"[1]ACS_16_5YR_B01001_with_ann!AU59","v":12},{"$f":"[1]ACS_16_5YR_B01001_with_ann!AV59","v":18},{"$f":"[1]ACS_16_5YR_B01001_with_ann!AW59","v":14},{"$f":"[1]ACS_16_5YR_B01001_with_ann!AX59","v":13},{"$f":"[1]ACS_16_5YR_B01001_with_ann!AY59","v":8},{"$f":"[1]ACS_16_5YR_B01001_with_ann!AZ59","v":0},{"$f":"[1]ACS_16_5YR_B01001_with_ann!BA59","v":12},{"$f":"[1]ACS_16_5YR_B01001_with_ann!BB59","v":613},{"$f":"[1]ACS_16_5YR_B01001_with_ann!BC59","v":91},{"$f":"[1]ACS_16_5YR_B01001_with_ann!BD59","v":29},{"$f":"[1]ACS_16_5YR_B01001_with_ann!BE59","v":23},{"$f":"[1]ACS_16_5YR_B01001_with_ann!BF59","v":24},{"$f":"[1]ACS_16_5YR_B01001_with_ann!BG59","v":17},{"$f":"[1]ACS_16_5YR_B01001_with_ann!BH59","v":53},{"$f":"[1]ACS_16_5YR_B01001_with_ann!BI59","v":27},{"$f":"[1]ACS_16_5YR_B01001_with_ann!BJ59","v":12},{"$f":"[1]ACS_16_5YR_B01001_with_ann!BK59","v":7},{"$f":"[1]ACS_16_5YR_B01001_with_ann!BL59","v":0},{"$f":"[1]ACS_16_5YR_B01001_with_ann!BM59","v":12},{"$f":"[1]ACS_16_5YR_B01001_with_ann!BN59","v":10},{"$f":"[1]ACS_16_5YR_B01001_with_ann!BO59","v":10},{"$f":"[1]ACS_16_5YR_B01001_with_ann!BP59","v":0},{"$f":"[1]ACS_16_5YR_B01001_with_ann!BQ59","v":12},{"$f":"[1]ACS_16_5YR_B01001_with_ann!BR59","v":13},{"$f":"[1]ACS_16_5YR_B01001_with_ann!BS59","v":14},{"$f":"[1]ACS_16_5YR_B01001_with_ann!BT59","v":42},{"$f":"[1]ACS_16_5YR_B01001_with_ann!BU59","v":23},{"$f":"[1]ACS_16_5YR_B01001_with_ann!BV59","v":37},{"$f":"[1]ACS_16_5YR_B01001_with_ann!BW59","v":27},{"$f":"[1]ACS_16_5YR_B01001_with_ann!BX59","v":51},{"$f":"[1]ACS_16_5YR_B01001_with_ann!BY59","v":25},{"$f":"[1]ACS_16_5YR_B01001_with_ann!BZ59","v":20},{"$f":"[1]ACS_16_5YR_B01001_with_ann!CA59","v":14},{"$f":"[1]ACS_16_5YR_B01001_with_ann!CB59","v":38},{"$f":"[1]ACS_16_5YR_B01001_with_ann!CC59","v":21},{"$f":"[1]ACS_16_5YR_B01001_with_ann!CD59","v":45},{"$f":"[1]ACS_16_5YR_B01001_with_ann!CE59","v":22},{"$f":"[1]ACS_16_5YR_B01001_with_ann!CF59","v":60},{"$f":"[1]ACS_16_5YR_B01001_with_ann!CG59","v":21},{"$f":"[1]ACS_16_5YR_B01001_with_ann!CH59","v":18},{"$f":"[1]ACS_16_5YR_B01001_with_ann!CI59","v":16},{"$f":"[1]ACS_16_5YR_B01001_with_ann!CJ59","v":25},{"$f":"[1]ACS_16_5YR_B01001_with_ann!CK59","v":18},{"$f":"[1]ACS_16_5YR_B01001_with_ann!CL59","v":30},{"$f":"[1]ACS_16_5YR_B01001_with_ann!CM59","v":16},{"$f":"[1]ACS_16_5YR_B01001_with_ann!CN59","v":29},{"$f":"[1]ACS_16_5YR_B01001_with_ann!CO59","v":17},{"$f":"[1]ACS_16_5YR_B01001_with_ann!CP59","v":27},{"$f":"[1]ACS_16_5YR_B01001_with_ann!CQ59","v":12},{"$f":"[1]ACS_16_5YR_B01001_with_ann!CR59","v":26},{"$f":"[1]ACS_16_5YR_B01001_with_ann!CS59","v":17},{"$f":"[1]ACS_16_5YR_B01001_with_ann!CT59","v":14},{"$f":"[1]ACS_16_5YR_B01001_with_ann!CU59","v":9},{"$f":"[1]ACS_16_5YR_B01001_with_ann!CV59","v":10},{"$f":"[1]ACS_16_5YR_B01001_with_ann!CW59","v":10}]
["0600000US3300574900","0600000US3300574900","060",{"$f":"[1]ACS_16_5YR_B01001_with_ann!C60","v":"Sullivan"},{"$f":"[1]ACS_16_5YR_B01001_with_ann!D60","v":681},{"$f":"[1]ACS_16_5YR_B01001_with_ann!E60","v":130},{"$f":"[1]ACS_16_5YR_B01001_with_ann!F60","v":342},{"$f":"[1]ACS_16_5YR_B01001_with_ann!G60","v":79},{"$f":"[1]ACS_16_5YR_B01001_with_ann!H60","v":35},{"$f":"[1]ACS_16_5YR_B01001_with_ann!I60","v":30},{"$f":"[1]ACS_16_5YR_B01001_with_ann!J60","v":10},{"$f":"[1]ACS_16_5YR_B01001_with_ann!K60","v":8},{"$f":"[1]ACS_16_5YR_B01001_with_ann!L60","v":3},{"$f":"[1]ACS_16_5YR_B01001_with_ann!M60","v":4},{"$f":"[1]ACS_16_5YR_B01001_with_ann!N60","v":5},{"$f":"[1]ACS_16_5YR_B01001_with_ann!O60","v":7},{"$f":"[1]ACS_16_5YR_B01001_with_ann!P60","v":8},{"$f":"[1]ACS_16_5YR_B01001_with_ann!Q60","v":9},{"$f":"[1]ACS_16_5YR_B01001_with_ann!R60","v":2},{"$f":"[1]ACS_16_5YR_B01001_with_ann!S60","v":4},{"$f":"[1]ACS_16_5YR_B01001_with_ann!T60","v":3},{"$f":"[1]ACS_16_5YR_B01001_with_ann!U60","v":4},{"$f":"[1]ACS_16_5YR_B01001_with_ann!V60","v":0},{"$f":"[1]ACS_16_5YR_B01001_with_ann!W60","v":12},{"$f":"[1]ACS_16_5YR_B01001_with_ann!X60","v":19},{"$f":"[1]ACS_16_5YR_B01001_with_ann!Y60","v":16},{"$f":"[1]ACS_16_5YR_B01001_with_ann!Z60","v":56},{"$f":"[1]ACS_16_5YR_B01001_with_ann!AA60","v":30},{"$f":"[1]ACS_16_5YR_B01001_with_ann!AB60","v":11},{"$f":"[1]ACS_16_5YR_B01001_with_ann!AC60","v":8},{"$f":"[1]ACS_16_5YR_B01001_with_ann!AD60","v":16},{"$f":"[1]ACS_16_5YR_B01001_with_ann!AE60","v":9},{"$f":"[1]ACS_16_5YR_B01001_with_ann!AF60","v":33},{"$f":"[1]ACS_16_5YR_B01001_with_ann!AG60","v":19},{"$f":"[1]ACS_16_5YR_B01001_with_ann!AH60","v":10},{"$f":"[1]ACS_16_5YR_B01001_with_ann!AI60","v":10},{"$f":"[1]ACS_16_5YR_B01001_with_ann!AJ60","v":41},{"$f":"[1]ACS_16_5YR_B01001_with_ann!AK60","v":16},{"$f":"[1]ACS_16_5YR_B01001_with_ann!AL60","v":4},{"$f":"[1]ACS_16_5YR_B01001_with_ann!AM60","v":4},{"$f":"[1]ACS_16_5YR_B01001_with_ann!AN60","v":19},{"$f":"[1]ACS_16_5YR_B01001_with_ann!AO60","v":13},{"$f":"[1]ACS_16_5YR_B01001_with_ann!AP60","v":20},{"$f":"[1]ACS_16_5YR_B01001_with_ann!AQ60","v":15},{"$f":"[1]ACS_16_5YR_B01001_with_ann!AR60","v":13},{"$f":"[1]ACS_16_5YR_B01001_with_ann!AS60","v":5},{"$f":"[1]ACS_16_5YR_B01001_with_ann!AT60","v":7},{"$f":"[1]ACS_16_5YR_B01001_with_ann!AU60","v":6},{"$f":"[1]ACS_16_5YR_B01001_with_ann!AV60","v":14},{"$f":"[1]ACS_16_5YR_B01001_with_ann!AW60","v":11},{"$f":"[1]ACS_16_5YR_B01001_with_ann!AX60","v":10},{"$f":"[1]ACS_16_5YR_B01001_with_ann!AY60","v":10},{"$f":"[1]ACS_16_5YR_B01001_with_ann!AZ60","v":3},{"$f":"[1]ACS_16_5YR_B01001_with_ann!BA60","v":3},{"$f":"[1]ACS_16_5YR_B01001_with_ann!BB60","v":339},{"$f":"[1]ACS_16_5YR_B01001_with_ann!BC60","v":65},{"$f":"[1]ACS_16_5YR_B01001_with_ann!BD60","v":28},{"$f":"[1]ACS_16_5YR_B01001_with_ann!BE60","v":18},{"$f":"[1]ACS_16_5YR_B01001_with_ann!BF60","v":17},{"$f":"[1]ACS_16_5YR_B01001_with_ann!BG60","v":11},{"$f":"[1]ACS_16_5YR_B01001_with_ann!BH60","v":8},{"$f":"[1]ACS_16_5YR_B01001_with_ann!BI60","v":8},{"$f":"[1]ACS_16_5YR_B01001_with_ann!BJ60","v":5},{"$f":"[1]ACS_16_5YR_B01001_with_ann!BK60","v":6},{"$f":"[1]ACS_16_5YR_B01001_with_ann!BL60","v":0},{"$f":"[1]ACS_16_5YR_B01001_with_ann!BM60","v":12},{"$f":"[1]ACS_16_5YR_B01001_with_ann!BN60","v":0},{"$f":"[1]ACS_16_5YR_B01001_with_ann!BO60","v":12},{"$f":"[1]ACS_16_5YR_B01001_with_ann!BP60","v":7},{"$f":"[1]ACS_16_5YR_B01001_with_ann!BQ60","v":7},{"$f":"[1]ACS_16_5YR_B01001_with_ann!BR60","v":7},{"$f":"[1]ACS_16_5YR_B01001_with_ann!BS60","v":7},{"$f":"[1]ACS_16_5YR_B01001_with_ann!BT60","v":26},{"$f":"[1]ACS_16_5YR_B01001_with_ann!BU60","v":31},{"$f":"[1]ACS_16_5YR_B01001_with_ann!BV60","v":34},{"$f":"[1]ACS_16_5YR_B01001_with_ann!BW60","v":20},{"$f":"[1]ACS_16_5YR_B01001_with_ann!BX60","v":11},{"$f":"[1]ACS_16_5YR_B01001_with_ann!BY60","v":8},{"$f":"[1]ACS_16_5YR_B01001_with_ann!BZ60","v":29},{"$f":"[1]ACS_16_5YR_B01001_with_ann!CA60","v":17},{"$f":"[1]ACS_16_5YR_B01001_with_ann!CB60","v":17},{"$f":"[1]ACS_16_5YR_B01001_with_ann!CC60","v":10},{"$f":"[1]ACS_16_5YR_B01001_with_ann!CD60","v":23},{"$f":"[1]ACS_16_5YR_B01001_with_ann!CE60","v":16},{"$f":"[1]ACS_16_5YR_B01001_with_ann!CF60","v":31},{"$f":"[1]ACS_16_5YR_B01001_with_ann!CG60","v":16},{"$f":"[1]ACS_16_5YR_B01001_with_ann!CH60","v":12},{"$f":"[1]ACS_16_5YR_B01001_with_ann!CI60","v":8},{"$f":"[1]ACS_16_5YR_B01001_with_ann!CJ60","v":22},{"$f":"[1]ACS_16_5YR_B01001_with_ann!CK60","v":10},{"$f":"[1]ACS_16_5YR_B01001_with_ann!CL60","v":13},{"$f":"[1]ACS_16_5YR_B01001_with_ann!CM60","v":9},{"$f":"[1]ACS_16_5YR_B01001_with_ann!CN60","v":5},{"$f":"[1]ACS_16_5YR_B01001_with_ann!CO60","v":5},{"$f":"[1]ACS_16_5YR_B01001_with_ann!CP60","v":22},{"$f":"[1]ACS_16_5YR_B01001_with_ann!CQ60","v":9},{"$f":"[1]ACS_16_5YR_B01001_with_ann!CR60","v":12},{"$f":"[1]ACS_16_5YR_B01001_with_ann!CS60","v":12},{"$f":"[1]ACS_16_5YR_B01001_with_ann!CT60","v":9},{"$f":"[1]ACS_16_5YR_B01001_with_ann!CU60","v":9},{"$f":"[1]ACS_16_5YR_B01001_with_ann!CV60","v":1},{"$f":"[1]ACS_16_5YR_B01001_with_ann!CW60","v":4}]
["0600000US3300575300","0600000US3300575300","060",{"$f":"[1]ACS_16_5YR_B01001_with_ann!C61","v":"Surry"},{"$f":"[1]ACS_16_5YR_B01001_with_ann!D61","v":950},{"$f":"[1]ACS_16_5YR_B01001_with_ann!E61","v":245},{"$f":"[1]ACS_16_5YR_B01001_with_ann!F61","v":388},{"$f":"[1]ACS_16_5YR_B01001_with_ann!G61","v":72},{"$f":"[1]ACS_16_5YR_B01001_with_ann!H61","v":17},{"$f":"[1]ACS_16_5YR_B01001_with_ann!I61","v":13},{"$f":"[1]ACS_16_5YR_B01001_with_ann!J61","v":12},{"$f":"[1]ACS_16_5YR_B01001_with_ann!K61","v":9},{"$f":"[1]ACS_16_5YR_B01001_with_ann!L61","v":19},{"$f":"[1]ACS_16_5YR_B01001_with_ann!M61","v":13},{"$f":"[1]ACS_16_5YR_B01001_with_ann!N61","v":3},{"$f":"[1]ACS_16_5YR_B01001_with_ann!O61","v":4},{"$f":"[1]ACS_16_5YR_B01001_with_ann!P61","v":8},{"$f":"[1]ACS_16_5YR_B01001_with_ann!Q61","v":15},{"$f":"[1]ACS_16_5YR_B01001_with_ann!R61","v":0},{"$f":"[1]ACS_16_5YR_B01001_with_ann!S61","v":12},{"$f":"[1]ACS_16_5YR_B01001_with_ann!T61","v":0},{"$f":"[1]ACS_16_5YR_B01001_with_ann!U61","v":12},{"$f":"[1]ACS_16_5YR_B01001_with_ann!V61","v":4},{"$f":"[1]ACS_16_5YR_B01001_with_ann!W61","v":5},{"$f":"[1]ACS_16_5YR_B01001_with_ann!X61","v":6},{"$f":"[1]ACS_16_5YR_B01001_with_ann!Y61","v":6},{"$f":"[1]ACS_16_5YR_B01001_with_ann!Z61","v":31},{"$f":"[1]ACS_16_5YR_B01001_with_ann!AA61","v":22},{"$f":"[1]ACS_16_5YR_B01001_with_ann!AB61","v":16},{"$f":"[1]ACS_16_5YR_B01001_with_ann!AC61","v":10},{"$f":"[1]ACS_16_5YR_B01001_with_ann!AD61","v":43},{"$f":"[1]ACS_16_5YR_B01001_with_ann!AE61","v":31},{"$f":"[1]ACS_16_5YR_B01001_with_ann!AF61","v":32},{"$f":"[1]ACS_16_5YR_B01001_with_ann!AG61","v":23},{"$f":"[1]ACS_16_5YR_B01001_with_ann!AH61","v":19},{"$f":"[1]ACS_16_5YR_B01001_with_ann!AI61","v":12},{"$f":"[1]ACS_16_5YR_B01001_with_ann!AJ61","v":33},{"$f":"[1]ACS_16_5YR_B01001_with_ann!AK61","v":21},{"$f":"[1]ACS_16_5YR_B01001_with_ann!AL61","v":12},{"$f":"[1]ACS_16_5YR_B01001_with_ann!AM61","v":10},{"$f":"[1]ACS_16_5YR_B01001_with_ann!AN61","v":9},{"$f":"[1]ACS_16_5YR_B01001_with_ann!AO61","v":7},{"$f":"[1]ACS_16_5YR_B01001_with_ann!AP61","v":8},{"$f":"[1]ACS_16_5YR_B01001_with_ann!AQ61","v":6},{"$f":"[1]ACS_16_5YR_B01001_with_ann!AR61","v":50},{"$f":"[1]ACS_16_5YR_B01001_with_ann!AS61","v":30},{"$f":"[1]ACS_16_5YR_B01001_with_ann!AT61","v":22},{"$f":"[1]ACS_16_5YR_B01001_with_ann!AU61","v":11},{"$f":"[1]ACS_16_5YR_B01001_with_ann!AV61","v":21},{"$f":"[1]ACS_16_5YR_B01001_with_ann!AW61","v":14},{"$f":"[1]ACS_16_5YR_B01001_with_ann!AX61","v":7},{"$f":"[1]ACS_16_5YR_B01001_with_ann!AY61","v":7},{"$f":"[1]ACS_16_5YR_B01001_with_ann!AZ61","v":16},{"$f":"[1]ACS_16_5YR_B01001_with_ann!BA61","v":13},{"$f":"[1]ACS_16_5YR_B01001_with_ann!BB61","v":562},{"$f":"[1]ACS_16_5YR_B01001_with_ann!BC61","v":203},{"$f":"[1]ACS_16_5YR_B01001_with_ann!BD61","v":47},{"$f":"[1]ACS_16_5YR_B01001_with_ann!BE61","v":47},{"$f":"[1]ACS_16_5YR_B01001_with_ann!BF61","v":42},{"$f":"[1]ACS_16_5YR_B01001_with_ann!BG61","v":56},{"$f":"[1]ACS_16_5YR_B01001_with_ann!BH61","v":45},{"$f":"[1]ACS_16_5YR_B01001_with_ann!BI61","v":29},{"$f":"[1]ACS_16_5YR_B01001_with_ann!BJ61","v":8},{"$f":"[1]ACS_16_5YR_B01001_with_ann!BK61","v":7},{"$f":"[1]ACS_16_5YR_B01001_with_ann!BL61","v":3},{"$f":"[1]ACS_16_5YR_B01001_with_ann!BM61","v":5},{"$f":"[1]ACS_16_5YR_B01001_with_ann!BN61","v":3},{"$f":"[1]ACS_16_5YR_B01001_with_ann!BO61","v":4},{"$f":"[1]ACS_16_5YR_B01001_with_ann!BP61","v":2},{"$f":"[1]ACS_16_5YR_B01001_with_ann!BQ61","v":3},{"$f":"[1]ACS_16_5YR_B01001_with_ann!BR61","v":14},{"$f":"[1]ACS_16_5YR_B01001_with_ann!BS61","v":12},{"$f":"[1]ACS_16_5YR_B01001_with_ann!BT61","v":12},{"$f":"[1]ACS_16_5YR_B01001_with_ann!BU61","v":9},{"$f":"[1]ACS_16_5YR_B01001_with_ann!BV61","v":88},{"$f":"[1]ACS_16_5YR_B01001_with_ann!BW61","v":79},{"$f":"[1]ACS_16_5YR_B01001_with_ann!BX61","v":28},{"$f":"[1]ACS_16_5YR_B01001_with_ann!BY61","v":26},{"$f":"[1]ACS_16_5YR_B01001_with_ann!BZ61","v":33},{"$f":"[1]ACS_16_5YR_B01001_with_ann!CA61","v":16},{"$f":"[1]ACS_16_5YR_B01001_with_ann!CB61","v":28},{"$f":"[1]ACS_16_5YR_B01001_with_ann!CC61","v":27},{"$f":"[1]ACS_16_5YR_B01001_with_ann!CD61","v":19},{"$f":"[1]ACS_16_5YR_B01001_with_ann!CE61","v":12},{"$f":"[1]ACS_16_5YR_B01001_with_ann!CF61","v":45},{"$f":"[1]ACS_16_5YR_B01001_with_ann!CG61","v":36},{"$f":"[1]ACS_16_5YR_B01001_with_ann!CH61","v":15},{"$f":"[1]ACS_16_5YR_B01001_with_ann!CI61","v":11},{"$f":"[1]ACS_16_5YR_B01001_with_ann!CJ61","v":11},{"$f":"[1]ACS_16_5YR_B01001_with_ann!CK61","v":7},{"$f":"[1]ACS_16_5YR_B01001_with_ann!CL61","v":11},{"$f":"[1]ACS_16_5YR_B01001_with_ann!CM61","v":9},{"$f":"[1]ACS_16_5YR_B01001_with_ann!CN61","v":23},{"$f":"[1]ACS_16_5YR_B01001_with_ann!CO61","v":21},{"$f":"[1]ACS_16_5YR_B01001_with_ann!CP61","v":38},{"$f":"[1]ACS_16_5YR_B01001_with_ann!CQ61","v":17},{"$f":"[1]ACS_16_5YR_B01001_with_ann!CR61","v":17},{"$f":"[1]ACS_16_5YR_B01001_with_ann!CS61","v":10},{"$f":"[1]ACS_16_5YR_B01001_with_ann!CT61","v":16},{"$f":"[1]ACS_16_5YR_B01001_with_ann!CU61","v":15},{"$f":"[1]ACS_16_5YR_B01001_with_ann!CV61","v":14},{"$f":"[1]ACS_16_5YR_B01001_with_ann!CW61","v":10}]
["0600000US3300575700","0600000US3300575700","060",{"$f":"[1]ACS_16_5YR_B01001_with_ann!C62","v":"Swanzey"},{"$f":"[1]ACS_16_5YR_B01001_with_ann!D62","v":7306},{"$f":"[1]ACS_16_5YR_B01001_with_ann!E62","v":22},{"$f":"[1]ACS_16_5YR_B01001_with_ann!F62","v":3563},{"$f":"[1]ACS_16_5YR_B01001_with_ann!G62","v":205},{"$f":"[1]ACS_16_5YR_B01001_with_ann!H62","v":125},{"$f":"[1]ACS_16_5YR_B01001_with_ann!I62","v":95},{"$f":"[1]ACS_16_5YR_B01001_with_ann!J62","v":135},{"$f":"[1]ACS_16_5YR_B01001_with_ann!K62","v":72},{"$f":"[1]ACS_16_5YR_B01001_with_ann!L62","v":239},{"$f":"[1]ACS_16_5YR_B01001_with_ann!M62","v":96},{"$f":"[1]ACS_16_5YR_B01001_with_ann!N62","v":51},{"$f":"[1]ACS_16_5YR_B01001_with_ann!O62","v":60},{"$f":"[1]ACS_16_5YR_B01001_with_ann!P62","v":26},{"$f":"[1]ACS_16_5YR_B01001_with_ann!Q62","v":61},{"$f":"[1]ACS_16_5YR_B01001_with_ann!R62","v":25},{"$f":"[1]ACS_16_5YR_B01001_with_ann!S62","v":39},{"$f":"[1]ACS_16_5YR_B01001_with_ann!T62","v":11},{"$f":"[1]ACS_16_5YR_B01001_with_ann!U62","v":19},{"$f":"[1]ACS_16_5YR_B01001_with_ann!V62","v":124},{"$f":"[1]ACS_16_5YR_B01001_with_ann!W62","v":120},{"$f":"[1]ACS_16_5YR_B01001_with_ann!X62","v":116},{"$f":"[1]ACS_16_5YR_B01001_with_ann!Y62","v":67},{"$f":"[1]ACS_16_5YR_B01001_with_ann!Z62","v":226},{"$f":"[1]ACS_16_5YR_B01001_with_ann!AA62","v":95},{"$f":"[1]ACS_16_5YR_B01001_with_ann!AB62","v":222},{"$f":"[1]ACS_16_5YR_B01001_with_ann!AC62","v":131},{"$f":"[1]ACS_16_5YR_B01001_with_ann!AD62","v":155},{"$f":"[1]ACS_16_5YR_B01001_with_ann!AE62","v":92},{"$f":"[1]ACS_16_5YR_B01001_with_ann!AF62","v":174},{"$f":"[1]ACS_16_5YR_B01001_with_ann!AG62","v":109},{"$f":"[1]ACS_16_5YR_B01001_with_ann!AH62","v":202},{"$f":"[1]ACS_16_5YR_B01001_with_ann!AI62","v":148},{"$f":"[1]ACS_16_5YR_B01001_with_ann!AJ62","v":308},{"$f":"[1]ACS_16_5YR_B01001_with_ann!AK62","v":114},{"$f":"[1]ACS_16_5YR_B01001_with_ann!AL62","v":324},{"$f":"[1]ACS_16_5YR_B01001_with_ann!AM62","v":158},{"$f":"[1]ACS_16_5YR_B01001_with_ann!AN62","v":183},{"$f":"[1]ACS_16_5YR_B01001_with_ann!AO62","v":97},{"$f":"[1]ACS_16_5YR_B01001_with_ann!AP62","v":64},{"$f":"[1]ACS_16_5YR_B01001_with_ann!AQ62","v":53},{"$f":"[1]ACS_16_5YR_B01001_with_ann!AR62","v":129},{"$f":"[1]ACS_16_5YR_B01001_with_ann!AS62","v":64},{"$f":"[1]ACS_16_5YR_B01001_with_ann!AT62","v":340},{"$f":"[1]ACS_16_5YR_B01001_with_ann!AU62","v":186},{"$f":"[1]ACS_16_5YR_B01001_with_ann!AV62","v":182},{"$f":"[1]ACS_16_5YR_B01001_with_ann!AW62","v":96},{"$f":"[1]ACS_16_5YR_B01001_with_ann!AX62","v":72},{"$f":"[1]ACS_16_5YR_B01001_with_ann!AY62","v":55},{"$f":"[1]ACS_16_5YR_B01001_with_ann!AZ62","v":130},{"$f":"[1]ACS_16_5YR_B01001_with_ann!BA62","v":149},{"$f":"[1]ACS_16_5YR_B01001_with_ann!BB62","v":3743},{"$f":"[1]ACS_16_5YR_B01001_with_ann!BC62","v":209},{"$f":"[1]ACS_16_5YR_B01001_with_ann!BD62","v":110},{"$f":"[1]ACS_16_5YR_B01001_with_ann!BE62","v":82},{"$f":"[1]ACS_16_5YR_B01001_with_ann!BF62","v":229},{"$f":"[1]ACS_16_5YR_B01001_with_ann!BG62","v":111},{"$f":"[1]ACS_16_5YR_B01001_with_ann!BH62","v":233},{"$f":"[1]ACS_16_5YR_B01001_with_ann!BI62","v":108},{"$f":"[1]ACS_16_5YR_B01001_with_ann!BJ62","v":140},{"$f":"[1]ACS_16_5YR_B01001_with_ann!BK62","v":105},{"$f":"[1]ACS_16_5YR_B01001_with_ann!BL62","v":14},{"$f":"[1]ACS_16_5YR_B01001_with_ann!BM62","v":26},{"$f":"[1]ACS_16_5YR_B01001_with_ann!BN62","v":0},{"$f":"[1]ACS_16_5YR_B01001_with_ann!BO62","v":17},{"$f":"[1]ACS_16_5YR_B01001_with_ann!BP62","v":0},{"$f":"[1]ACS_16_5YR_B01001_with_ann!BQ62","v":17},{"$f":"[1]ACS_16_5YR_B01001_with_ann!BR62","v":94},{"$f":"[1]ACS_16_5YR_B01001_with_ann!BS62","v":76},{"$f":"[1]ACS_16_5YR_B01001_with_ann!BT62","v":259},{"$f":"[1]ACS_16_5YR_B01001_with_ann!BU62","v":91},{"$f":"[1]ACS_16_5YR_B01001_with_ann!BV62","v":57},{"$f":"[1]ACS_16_5YR_B01001_with_ann!BW62","v":62},{"$f":"[1]ACS_16_5YR_B01001_with_ann!BX62","v":337},{"$f":"[1]ACS_16_5YR_B01001_with_ann!BY62","v":105},{"$f":"[1]ACS_16_5YR_B01001_with_ann!BZ62","v":68},{"$f":"[1]ACS_16_5YR_B01001_with_ann!CA62","v":71},{"$f":"[1]ACS_16_5YR_B01001_with_ann!CB62","v":315},{"$f":"[1]ACS_16_5YR_B01001_with_ann!CC62","v":142},{"$f":"[1]ACS_16_5YR_B01001_with_ann!CD62","v":206},{"$f":"[1]ACS_16_5YR_B01001_with_ann!CE62","v":143},{"$f":"[1]ACS_16_5YR_B01001_with_ann!CF62","v":403},{"$f":"[1]ACS_16_5YR_B01001_with_ann!CG62","v":139},{"$f":"[1]ACS_16_5YR_B01001_with_ann!CH62","v":99},{"$f":"[1]ACS_16_5YR_B01001_with_ann!CI62","v":77},{"$f":"[1]ACS_16_5YR_B01001_with_ann!CJ62","v":220},{"$f":"[1]ACS_16_5YR_B01001_with_ann!CK62","v":103},{"$f":"[1]ACS_16_5YR_B01001_with_ann!CL62","v":134},{"$f":"[1]ACS_16_5YR_B01001_with_ann!CM62","v":71},{"$f":"[1]ACS_16_5YR_B01001_with_ann!CN62","v":150},{"$f":"[1]ACS_16_5YR_B01001_with_ann!CO62","v":93},{"$f":"[1]ACS_16_5YR_B01001_with_ann!CP62","v":303},{"$f":"[1]ACS_16_5YR_B01001_with_ann!CQ62","v":143},{"$f":"[1]ACS_16_5YR_B01001_with_ann!CR62","v":196},{"$f":"[1]ACS_16_5YR_B01001_with_ann!CS62","v":88},{"$f":"[1]ACS_16_5YR_B01001_with_ann!CT62","v":124},{"$f":"[1]ACS_16_5YR_B01001_with_ann!CU62","v":98},{"$f":"[1]ACS_16_5YR_B01001_with_ann!CV62","v":52},{"$f":"[1]ACS_16_5YR_B01001_with_ann!CW62","v":50}]
["0600000US3300577380","0600000US3300577380","060",{"$f":"[1]ACS_16_5YR_B01001_with_ann!C63","v":"Troy"},{"$f":"[1]ACS_16_5YR_B01001_with_ann!D63","v":1889},{"$f":"[1]ACS_16_5YR_B01001_with_ann!E63","v":275},{"$f":"[1]ACS_16_5YR_B01001_with_ann!F63","v":950},{"$f":"[1]ACS_16_5YR_B01001_with_ann!G63","v":177},{"$f":"[1]ACS_16_5YR_B01001_with_ann!H63","v":25},{"$f":"[1]ACS_16_5YR_B01001_with_ann!I63","v":22},{"$f":"[1]ACS_16_5YR_B01001_with_ann!J63","v":16},{"$f":"[1]ACS_16_5YR_B01001_with_ann!K63","v":19},{"$f":"[1]ACS_16_5YR_B01001_with_ann!L63","v":101},{"$f":"[1]ACS_16_5YR_B01001_with_ann!M63","v":56},{"$f":"[1]ACS_16_5YR_B01001_with_ann!N63","v":32},{"$f":"[1]ACS_16_5YR_B01001_with_ann!O63","v":34},{"$f":"[1]ACS_16_5YR_B01001_with_ann!P63","v":11},{"$f":"[1]ACS_16_5YR_B01001_with_ann!Q63","v":14},{"$f":"[1]ACS_16_5YR_B01001_with_ann!R63","v":0},{"$f":"[1]ACS_16_5YR_B01001_with_ann!S63","v":12},{"$f":"[1]ACS_16_5YR_B01001_with_ann!T63","v":0},{"$f":"[1]ACS_16_5YR_B01001_with_ann!U63","v":12},{"$f":"[1]ACS_16_5YR_B01001_with_ann!V63","v":22},{"$f":"[1]ACS_16_5YR_B01001_with_ann!W63","v":17},{"$f":"[1]ACS_16_5YR_B01001_with_ann!X63","v":73},{"$f":"[1]ACS_16_5YR_B01001_with_ann!Y63","v":40},{"$f":"[1]ACS_16_5YR_B01001_with_ann!Z63","v":85},{"$f":"[1]ACS_16_5YR_B01001_with_ann!AA63","v":59},{"$f":"[1]ACS_16_5YR_B01001_with_ann!AB63","v":106},{"$f":"[1]ACS_16_5YR_B01001_with_ann!AC63","v":53},{"$f":"[1]ACS_16_5YR_B01001_with_ann!AD63","v":46},{"$f":"[1]ACS_16_5YR_B01001_with_ann!AE63","v":26},{"$f":"[1]ACS_16_5YR_B01001_with_ann!AF63","v":61},{"$f":"[1]ACS_16_5YR_B01001_with_ann!AG63","v":41},{"$f":"[1]ACS_16_5YR_B01001_with_ann!AH63","v":62},{"$f":"[1]ACS_16_5YR_B01001_with_ann!AI63","v":40},{"$f":"[1]ACS_16_5YR_B01001_with_ann!AJ63","v":72},{"$f":"[1]ACS_16_5YR_B01001_with_ann!AK63","v":42},{"$f":"[1]ACS_16_5YR_B01001_with_ann!AL63","v":5},{"$f":"[1]ACS_16_5YR_B01001_with_ann!AM63","v":7},{"$f":"[1]ACS_16_5YR_B01001_with_ann!AN63","v":67},{"$f":"[1]ACS_16_5YR_B01001_with_ann!AO63","v":35},{"$f":"[1]ACS_16_5YR_B01001_with_ann!AP63","v":29},{"$f":"[1]ACS_16_5YR_B01001_with_ann!AQ63","v":29},{"$f":"[1]ACS_16_5YR_B01001_with_ann!AR63","v":60},{"$f":"[1]ACS_16_5YR_B01001_with_ann!AS63","v":37},{"$f":"[1]ACS_16_5YR_B01001_with_ann!AT63","v":32},{"$f":"[1]ACS_16_5YR_B01001_with_ann!AU63","v":21},{"$f":"[1]ACS_16_5YR_B01001_with_ann!AV63","v":12},{"$f":"[1]ACS_16_5YR_B01001_with_ann!AW63","v":10},{"$f":"[1]ACS_16_5YR_B01001_with_ann!AX63","v":28},{"$f":"[1]ACS_16_5YR_B01001_with_ann!AY63","v":26},{"$f":"[1]ACS_16_5YR_B01001_with_ann!AZ63","v":5},{"$f":"[1]ACS_16_5YR_B01001_with_ann!BA63","v":8},{"$f":"[1]ACS_16_5YR_B01001_with_ann!BB63","v":939},{"$f":"[1]ACS_16_5YR_B01001_with_ann!BC63","v":136},{"$f":"[1]ACS_16_5YR_B01001_with_ann!BD63","v":106},{"$f":"[1]ACS_16_5YR_B01001_with_ann!BE63","v":55},{"$f":"[1]ACS_16_5YR_B01001_with_ann!BF63","v":65},{"$f":"[1]ACS_16_5YR_B01001_with_ann!BG63","v":39},{"$f":"[1]ACS_16_5YR_B01001_with_ann!BH63","v":18},{"$f":"[1]ACS_16_5YR_B01001_with_ann!BI63","v":16},{"$f":"[1]ACS_16_5YR_B01001_with_ann!BJ63","v":30},{"$f":"[1]ACS_16_5YR_B01001_with_ann!BK63","v":29},{"$f":"[1]ACS_16_5YR_B01001_with_ann!BL63","v":4},{"$f":"[1]ACS_16_5YR_B01001_with_ann!BM63","v":8},{"$f":"[1]ACS_16_5YR_B01001_with_ann!BN63","v":24},{"$f":"[1]ACS_16_5YR_B01001_with_ann!BO63","v":25},{"$f":"[1]ACS_16_5YR_B01001_with_ann!BP63","v":0},{"$f":"[1]ACS_16_5YR_B01001_with_ann!BQ63","v":12},{"$f":"[1]ACS_16_5YR_B01001_with_ann!BR63","v":21},{"$f":"[1]ACS_16_5YR_B01001_with_ann!BS63","v":24},{"$f":"[1]ACS_16_5YR_B01001_with_ann!BT63","v":73},{"$f":"[1]ACS_16_5YR_B01001_with_ann!BU63","v":32},{"$f":"[1]ACS_16_5YR_B01001_with_ann!BV63","v":83},{"$f":"[1]ACS_16_5YR_B01001_with_ann!BW63","v":39},{"$f":"[1]ACS_16_5YR_B01001_with_ann!BX63","v":67},{"$f":"[1]ACS_16_5YR_B01001_with_ann!BY63","v":46},{"$f":"[1]ACS_16_5YR_B01001_with_ann!BZ63","v":74},{"$f":"[1]ACS_16_5YR_B01001_with_ann!CA63","v":44},{"$f":"[1]ACS_16_5YR_B01001_with_ann!CB63","v":28},{"$f":"[1]ACS_16_5YR_B01001_with_ann!CC63","v":22},{"$f":"[1]ACS_16_5YR_B01001_with_ann!CD63","v":48},{"$f":"[1]ACS_16_5YR_B01001_with_ann!CE63","v":30},{"$f":"[1]ACS_16_5YR_B01001_with_ann!CF63","v":48},{"$f":"[1]ACS_16_5YR_B01001_with_ann!CG63","v":30},{"$f":"[1]ACS_16_5YR_B01001_with_ann!CH63","v":33},{"$f":"[1]ACS_16_5YR_B01001_with_ann!CI63","v":23},{"$f":"[1]ACS_16_5YR_B01001_with_ann!CJ63","v":54},{"$f":"[1]ACS_16_5YR_B01001_with_ann!CK63","v":33},{"$f":"[1]ACS_16_5YR_B01001_with_ann!CL63","v":29},{"$f":"[1]ACS_16_5YR_B01001_with_ann!CM63","v":23},{"$f":"[1]ACS_16_5YR_B01001_with_ann!CN63","v":37},{"$f":"[1]ACS_16_5YR_B01001_with_ann!CO63","v":26},{"$f":"[1]ACS_16_5YR_B01001_with_ann!CP63","v":35},{"$f":"[1]ACS_16_5YR_B01001_with_ann!CQ63","v":19},{"$f":"[1]ACS_16_5YR_B01001_with_ann!CR63","v":14},{"$f":"[1]ACS_16_5YR_B01001_with_ann!CS63","v":15},{"$f":"[1]ACS_16_5YR_B01001_with_ann!CT63","v":41},{"$f":"[1]ACS_16_5YR_B01001_with_ann!CU63","v":33},{"$f":"[1]ACS_16_5YR_B01001_with_ann!CV63","v":7},{"$f":"[1]ACS_16_5YR_B01001_with_ann!CW63","v":10}]
["0600000US3300578420","0600000US3300578420","060",{"$f":"[1]ACS_16_5YR_B01001_with_ann!C64","v":"Walpole"},{"$f":"[1]ACS_16_5YR_B01001_with_ann!D64","v":3651},{"$f":"[1]ACS_16_5YR_B01001_with_ann!E64","v":33},{"$f":"[1]ACS_16_5YR_B01001_with_ann!F64","v":1799},{"$f":"[1]ACS_16_5YR_B01001_with_ann!G64","v":162},{"$f":"[1]ACS_16_5YR_B01001_with_ann!H64","v":183},{"$f":"[1]ACS_16_5YR_B01001_with_ann!I64","v":89},{"$f":"[1]ACS_16_5YR_B01001_with_ann!J64","v":93},{"$f":"[1]ACS_16_5YR_B01001_with_ann!K64","v":68},{"$f":"[1]ACS_16_5YR_B01001_with_ann!L64","v":97},{"$f":"[1]ACS_16_5YR_B01001_with_ann!M64","v":55},{"$f":"[1]ACS_16_5YR_B01001_with_ann!N64","v":122},{"$f":"[1]ACS_16_5YR_B01001_with_ann!O64","v":98},{"$f":"[1]ACS_16_5YR_B01001_with_ann!P64","v":76},{"$f":"[1]ACS_16_5YR_B01001_with_ann!Q64","v":56},{"$f":"[1]ACS_16_5YR_B01001_with_ann!R64","v":0},{"$f":"[1]ACS_16_5YR_B01001_with_ann!S64","v":12},{"$f":"[1]ACS_16_5YR_B01001_with_ann!T64","v":31},{"$f":"[1]ACS_16_5YR_B01001_with_ann!U64","v":40},{"$f":"[1]ACS_16_5YR_B01001_with_ann!V64","v":29},{"$f":"[1]ACS_16_5YR_B01001_with_ann!W64","v":33},{"$f":"[1]ACS_16_5YR_B01001_with_ann!X64","v":151},{"$f":"[1]ACS_16_5YR_B01001_with_ann!Y64","v":89},{"$f":"[1]ACS_16_5YR_B01001_with_ann!Z64","v":79},{"$f":"[1]ACS_16_5YR_B01001_with_ann!AA64","v":56},{"$f":"[1]ACS_16_5YR_B01001_with_ann!AB64","v":72},{"$f":"[1]ACS_16_5YR_B01001_with_ann!AC64","v":36},{"$f":"[1]ACS_16_5YR_B01001_with_ann!AD64","v":61},{"$f":"[1]ACS_16_5YR_B01001_with_ann!AE64","v":40},{"$f":"[1]ACS_16_5YR_B01001_with_ann!AF64","v":65},{"$f":"[1]ACS_16_5YR_B01001_with_ann!AG64","v":38},{"$f":"[1]ACS_16_5YR_B01001_with_ann!AH64","v":163},{"$f":"[1]ACS_16_5YR_B01001_with_ann!AI64","v":75},{"$f":"[1]ACS_16_5YR_B01001_with_ann!AJ64","v":86},{"$f":"[1]ACS_16_5YR_B01001_with_ann!AK64","v":54},{"$f":"[1]ACS_16_5YR_B01001_with_ann!AL64","v":60},{"$f":"[1]ACS_16_5YR_B01001_with_ann!AM64","v":41},{"$f":"[1]ACS_16_5YR_B01001_with_ann!AN64","v":64},{"$f":"[1]ACS_16_5YR_B01001_with_ann!AO64","v":47},{"$f":"[1]ACS_16_5YR_B01001_with_ann!AP64","v":78},{"$f":"[1]ACS_16_5YR_B01001_with_ann!AQ64","v":47},{"$f":"[1]ACS_16_5YR_B01001_with_ann!AR64","v":127},{"$f":"[1]ACS_16_5YR_B01001_with_ann!AS64","v":44},{"$f":"[1]ACS_16_5YR_B01001_with_ann!AT64","v":66},{"$f":"[1]ACS_16_5YR_B01001_with_ann!AU64","v":37},{"$f":"[1]ACS_16_5YR_B01001_with_ann!AV64","v":46},{"$f":"[1]ACS_16_5YR_B01001_with_ann!AW64","v":37},{"$f":"[1]ACS_16_5YR_B01001_with_ann!AX64","v":19},{"$f":"[1]ACS_16_5YR_B01001_with_ann!AY64","v":17},{"$f":"[1]ACS_16_5YR_B01001_with_ann!AZ64","v":31},{"$f":"[1]ACS_16_5YR_B01001_with_ann!BA64","v":30},{"$f":"[1]ACS_16_5YR_B01001_with_ann!BB64","v":1852},{"$f":"[1]ACS_16_5YR_B01001_with_ann!BC64","v":161},{"$f":"[1]ACS_16_5YR_B01001_with_ann!BD64","v":144},{"$f":"[1]ACS_16_5YR_B01001_with_ann!BE64","v":82},{"$f":"[1]ACS_16_5YR_B01001_with_ann!BF64","v":103},{"$f":"[1]ACS_16_5YR_B01001_with_ann!BG64","v":52},{"$f":"[1]ACS_16_5YR_B01001_with_ann!BH64","v":96},{"$f":"[1]ACS_16_5YR_B01001_with_ann!BI64","v":57},{"$f":"[1]ACS_16_5YR_B01001_with_ann!BJ64","v":88},{"$f":"[1]ACS_16_5YR_B01001_with_ann!BK64","v":64},{"$f":"[1]ACS_16_5YR_B01001_with_ann!BL64","v":3},{"$f":"[1]ACS_16_5YR_B01001_with_ann!BM64","v":6},{"$f":"[1]ACS_16_5YR_B01001_with_ann!BN64","v":29},{"$f":"[1]ACS_16_5YR_B01001_with_ann!BO64","v":45},{"$f":"[1]ACS_16_5YR_B01001_with_ann!BP64","v":7},{"$f":"[1]ACS_16_5YR_B01001_with_ann!BQ64","v":10},{"$f":"[1]ACS_16_5YR_B01001_with_ann!BR64","v":21},{"$f":"[1]ACS_16_5YR_B01001_with_ann!BS64","v":24},{"$f":"[1]ACS_16_5YR_B01001_with_ann!BT64","v":180},{"$f":"[1]ACS_16_5YR_B01001_with_ann!BU64","v":118},{"$f":"[1]ACS_16_5YR_B01001_with_ann!BV64","v":78},{"$f":"[1]ACS_16_5YR_B01001_with_ann!BW64","v":57},{"$f":"[1]ACS_16_5YR_B01001_with_ann!BX64","v":111},{"$f":"[1]ACS_16_5YR_B01001_with_ann!BY64","v":59},{"$f":"[1]ACS_16_5YR_B01001_with_ann!BZ64","v":107},{"$f":"[1]ACS_16_5YR_B01001_with_ann!CA64","v":57},{"$f":"[1]ACS_16_5YR_B01001_with_ann!CB64","v":73},{"$f":"[1]ACS_16_5YR_B01001_with_ann!CC64","v":47},{"$f":"[1]ACS_16_5YR_B01001_with_ann!CD64","v":217},{"$f":"[1]ACS_16_5YR_B01001_with_ann!CE64","v":89},{"$f":"[1]ACS_16_5YR_B01001_with_ann!CF64","v":105},{"$f":"[1]ACS_16_5YR_B01001_with_ann!CG64","v":69},{"$f":"[1]ACS_16_5YR_B01001_with_ann!CH64","v":48},{"$f":"[1]ACS_16_5YR_B01001_with_ann!CI64","v":39},{"$f":"[1]ACS_16_5YR_B01001_with_ann!CJ64","v":38},{"$f":"[1]ACS_16_5YR_B01001_with_ann!CK64","v":31},{"$f":"[1]ACS_16_5YR_B01001_with_ann!CL64","v":52},{"$f":"[1]ACS_16_5YR_B01001_with_ann!CM64","v":31},{"$f":"[1]ACS_16_5YR_B01001_with_ann!CN64","v":75},{"$f":"[1]ACS_16_5YR_B01001_with_ann!CO64","v":34},{"$f":"[1]ACS_16_5YR_B01001_with_ann!CP64","v":55},{"$f":"[1]ACS_16_5YR_B01001_with_ann!CQ64","v":31},{"$f":"[1]ACS_16_5YR_B01001_with_ann!CR64","v":26},{"$f":"[1]ACS_16_5YR_B01001_with_ann!CS64","v":18},{"$f":"[1]ACS_16_5YR_B01001_with_ann!CT64","v":89},{"$f":"[1]ACS_16_5YR_B01001_with_ann!CU64","v":77},{"$f":"[1]ACS_16_5YR_B01001_with_ann!CV64","v":107},{"$f":"[1]ACS_16_5YR_B01001_with_ann!CW64","v":86}]
["0600000US3300582660","0600000US3300582660","060",{"$f":"[1]ACS_16_5YR_B01001_with_ann!C65","v":"Westmoreland"},{"$f":"[1]ACS_16_5YR_B01001_with_ann!D65","v":2042},{"$f":"[1]ACS_16_5YR_B01001_with_ann!E65","v":341},{"$f":"[1]ACS_16_5YR_B01001_with_ann!F65","v":890},{"$f":"[1]ACS_16_5YR_B01001_with_ann!G65","v":172},{"$f":"[1]ACS_16_5YR_B01001_with_ann!H65","v":33},{"$f":"[1]ACS_16_5YR_B01001_with_ann!I65","v":31},{"$f":"[1]ACS_16_5YR_B01001_with_ann!J65","v":12},{"$f":"[1]ACS_16_5YR_B01001_with_ann!K65","v":9},{"$f":"[1]ACS_16_5YR_B01001_with_ann!L65","v":23},{"$f":"[1]ACS_16_5YR_B01001_with_ann!M65","v":20},{"$f":"[1]ACS_16_5YR_B01001_with_ann!N65","v":16},{"$f":"[1]ACS_16_5YR_B01001_with_ann!O65","v":13},{"$f":"[1]ACS_16_5YR_B01001_with_ann!P65","v":7},{"$f":"[1]ACS_16_5YR_B01001_with_ann!Q65","v":9},{"$f":"[1]ACS_16_5YR_B01001_with_ann!R65","v":7},{"$f":"[1]ACS_16_5YR_B01001_with_ann!S65","v":8},{"$f":"[1]ACS_16_5YR_B01001_with_ann!T65","v":2},{"$f":"[1]ACS_16_5YR_B01001_with_ann!U65","v":3},{"$f":"[1]ACS_16_5YR_B01001_with_ann!V65","v":32},{"$f":"[1]ACS_16_5YR_B01001_with_ann!W65","v":34},{"$f":"[1]ACS_16_5YR_B01001_with_ann!X65","v":19},{"$f":"[1]ACS_16_5YR_B01001_with_ann!Y65","v":16},{"$f":"[1]ACS_16_5YR_B01001_with_ann!Z65","v":50},{"$f":"[1]ACS_16_5YR_B01001_with_ann!AA65","v":34},{"$f":"[1]ACS_16_5YR_B01001_with_ann!AB65","v":11},{"$f":"[1]ACS_16_5YR_B01001_with_ann!AC65","v":11},{"$f":"[1]ACS_16_5YR_B01001_with_ann!AD65","v":14},{"$f":"[1]ACS_16_5YR_B01001_with_ann!AE65","v":11},{"$f":"[1]ACS_16_5YR_B01001_with_ann!AF65","v":65},{"$f":"[1]ACS_16_5YR_B01001_with_ann!AG65","v":50},{"$f":"[1]ACS_16_5YR_B01001_with_ann!AH65","v":84},{"$f":"[1]ACS_16_5YR_B01001_with_ann!AI65","v":38},{"$f":"[1]ACS_16_5YR_B01001_with_ann!AJ65","v":158},{"$f":"[1]ACS_16_5YR_B01001_with_ann!AK65","v":79},{"$f":"[1]ACS_16_5YR_B01001_with_ann!AL65","v":31},{"$f":"[1]ACS_16_5YR_B01001_with_ann!AM65","v":20},{"$f":"[1]ACS_16_5YR_B01001_with_ann!AN65","v":32},{"$f":"[1]ACS_16_5YR_B01001_with_ann!AO65","v":23},{"$f":"[1]ACS_16_5YR_B01001_with_ann!AP65","v":35},{"$f":"[1]ACS_16_5YR_B01001_with_ann!AQ65","v":20},{"$f":"[1]ACS_16_5YR_B01001_with_ann!AR65","v":40},{"$f":"[1]ACS_16_5YR_B01001_with_ann!AS65","v":19},{"$f":"[1]ACS_16_5YR_B01001_with_ann!AT65","v":81},{"$f":"[1]ACS_16_5YR_B01001_with_ann!AU65","v":35},{"$f":"[1]ACS_16_5YR_B01001_with_ann!AV65","v":71},{"$f":"[1]ACS_16_5YR_B01001_with_ann!AW65","v":61},{"$f":"[1]ACS_16_5YR_B01001_with_ann!AX65","v":14},{"$f":"[1]ACS_16_5YR_B01001_with_ann!AY65","v":16},{"$f":"[1]ACS_16_5YR_B01001_with_ann!AZ65","v":53},{"$f":"[1]ACS_16_5YR_B01001_with_ann!BA65","v":53},{"$f":"[1]ACS_16_5YR_B01001_with_ann!BB65","v":1152},{"$f":"[1]ACS_16_5YR_B01001_with_ann!BC65","v":226},{"$f":"[1]ACS_16_5YR_B01001_with_ann!BD65","v":47},{"$f":"[1]ACS_16_5YR_B01001_with_ann!BE65","v":41},{"$f":"[1]ACS_16_5YR_B01001_with_ann!BF65","v":95},{"$f":"[1]ACS_16_5YR_B01001_with_ann!BG65","v":66},{"$f":"[1]ACS_16_5YR_B01001_with_ann!BH65","v":58},{"$f":"[1]ACS_16_5YR_B01001_with_ann!BI65","v":31},{"$f":"[1]ACS_16_5YR_B01001_with_ann!BJ65","v":27},{"$f":"[1]ACS_16_5YR_B01001_with_ann!BK65","v":22},{"$f":"[1]ACS_16_5YR_B01001_with_ann!BL65","v":0},{"$f":"[1]ACS_16_5YR_B01001_with_ann!BM65","v":12},{"$f":"[1]ACS_16_5YR_B01001_with_ann!BN65","v":8},{"$f":"[1]ACS_16_5YR_B01001_with_ann!BO65","v":11},{"$f":"[1]ACS_16_5YR_B01001_with_ann!BP65","v":2},{"$f":"[1]ACS_16_5YR_B01001_with_ann!BQ65","v":3},{"$f":"[1]ACS_16_5YR_B01001_with_ann!BR65","v":49},{"$f":"[1]ACS_16_5YR_B01001_with_ann!BS65","v":60},{"$f":"[1]ACS_16_5YR_B01001_with_ann!BT65","v":37},{"$f":"[1]ACS_16_5YR_B01001_with_ann!BU65","v":30},{"$f":"[1]ACS_16_5YR_B01001_with_ann!BV65","v":23},{"$f":"[1]ACS_16_5YR_B01001_with_ann!BW65","v":21},{"$f":"[1]ACS_16_5YR_B01001_with_ann!BX65","v":63},{"$f":"[1]ACS_16_5YR_B01001_with_ann!BY65","v":62},{"$f":"[1]ACS_16_5YR_B01001_with_ann!BZ65","v":60},{"$f":"[1]ACS_16_5YR_B01001_with_ann!CA65","v":32},{"$f":"[1]ACS_16_5YR_B01001_with_ann!CB65","v":37},{"$f":"[1]ACS_16_5YR_B01001_with_ann!CC65","v":31},{"$f":"[1]ACS_16_5YR_B01001_with_ann!CD65","v":55},{"$f":"[1]ACS_16_5YR_B01001_with_ann!CE65","v":27},{"$f":"[1]ACS_16_5YR_B01001_with_ann!CF65","v":163},{"$f":"[1]ACS_16_5YR_B01001_with_ann!CG65","v":82},{"$f":"[1]ACS_16_5YR_B01001_with_ann!CH65","v":6},{"$f":"[1]ACS_16_5YR_B01001_with_ann!CI65","v":8},{"$f":"[1]ACS_16_5YR_B01001_with_ann!CJ65","v":46},{"$f":"[1]ACS_16_5YR_B01001_with_ann!CK65","v":26},{"$f":"[1]ACS_16_5YR_B01001_with_ann!CL65","v":41},{"$f":"[1]ACS_16_5YR_B01001_with_ann!CM65","v":40},{"$f":"[1]ACS_16_5YR_B01001_with_ann!CN65","v":73},{"$f":"[1]ACS_16_5YR_B01001_with_ann!CO65","v":37},{"$f":"[1]ACS_16_5YR_B01001_with_ann!CP65","v":112},{"$f":"[1]ACS_16_5YR_B01001_with_ann!CQ65","v":103},{"$f":"[1]ACS_16_5YR_B01001_with_ann!CR65","v":69},{"$f":"[1]ACS_16_5YR_B01001_with_ann!CS65","v":50},{"$f":"[1]ACS_16_5YR_B01001_with_ann!CT65","v":31},{"$f":"[1]ACS_16_5YR_B01001_with_ann!CU65","v":25},{"$f":"[1]ACS_16_5YR_B01001_with_ann!CV65","v":50},{"$f":"[1]ACS_16_5YR_B01001_with_ann!CW65","v":35}]
["0600000US3300585540","0600000US3300585540","060",{"$f":"[1]ACS_16_5YR_B01001_with_ann!C66","v":"Winchester"},{"$f":"[1]ACS_16_5YR_B01001_with_ann!D66","v":4175},{"$f":"[1]ACS_16_5YR_B01001_with_ann!E66","v":25},{"$f":"[1]ACS_16_5YR_B01001_with_ann!F66","v":1978},{"$f":"[1]ACS_16_5YR_B01001_with_ann!G66","v":179},{"$f":"[1]ACS_16_5YR_B01001_with_ann!H66","v":102},{"$f":"[1]ACS_16_5YR_B01001_with_ann!I66","v":62},{"$f":"[1]ACS_16_5YR_B01001_with_ann!J66","v":119},{"$f":"[1]ACS_16_5YR_B01001_with_ann!K66","v":81},{"$f":"[1]ACS_16_5YR_B01001_with_ann!L66","v":113},{"$f":"[1]ACS_16_5YR_B01001_with_ann!M66","v":63},{"$f":"[1]ACS_16_5YR_B01001_with_ann!N66","v":79},{"$f":"[1]ACS_16_5YR_B01001_with_ann!O66","v":63},{"$f":"[1]ACS_16_5YR_B01001_with_ann!P66","v":72},{"$f":"[1]ACS_16_5YR_B01001_with_ann!Q66","v":67},{"$f":"[1]ACS_16_5YR_B01001_with_ann!R66","v":0},{"$f":"[1]ACS_16_5YR_B01001_with_ann!S66","v":12},{"$f":"[1]ACS_16_5YR_B01001_with_ann!T66","v":9},{"$f":"[1]ACS_16_5YR_B01001_with_ann!U66","v":15},{"$f":"[1]ACS_16_5YR_B01001_with_ann!V66","v":57},{"$f":"[1]ACS_16_5YR_B01001_with_ann!W66","v":45},{"$f":"[1]ACS_16_5YR_B01001_with_ann!X66","v":122},{"$f":"[1]ACS_16_5YR_B01001_with_ann!Y66","v":59},{"$f":"[1]ACS_16_5YR_B01001_with_ann!Z66","v":128},{"$f":"[1]ACS_16_5YR_B01001_with_ann!AA66","v":82},{"$f":"[1]ACS_16_5YR_B01001_with_ann!AB66","v":55},{"$f":"[1]ACS_16_5YR_B01001_with_ann!AC66","v":48},{"$f":"[1]ACS_16_5YR_B01001_with_ann!AD66","v":190},{"$f":"[1]ACS_16_5YR_B01001_with_ann!AE66","v":76},{"$f":"[1]ACS_16_5YR_B01001_with_ann!AF66","v":65},{"$f":"[1]ACS_16_5YR_B01001_with_ann!AG66","v":41},{"$f":"[1]ACS_16_5YR_B01001_with_ann!AH66","v":105},{"$f":"[1]ACS_16_5YR_B01001_with_ann!AI66","v":58},{"$f":"[1]ACS_16_5YR_B01001_with_ann!AJ66","v":273},{"$f":"[1]ACS_16_5YR_B01001_with_ann!AK66","v":115},{"$f":"[1]ACS_16_5YR_B01001_with_ann!AL66","v":86},{"$f":"[1]ACS_16_5YR_B01001_with_ann!AM66","v":70},{"$f":"[1]ACS_16_5YR_B01001_with_ann!AN66","v":136},{"$f":"[1]ACS_16_5YR_B01001_with_ann!AO66","v":81},{"$f":"[1]ACS_16_5YR_B01001_with_ann!AP66","v":29},{"$f":"[1]ACS_16_5YR_B01001_with_ann!AQ66","v":26},{"$f":"[1]ACS_16_5YR_B01001_with_ann!AR66","v":27},{"$f":"[1]ACS_16_5YR_B01001_with_ann!AS66","v":26},{"$f":"[1]ACS_16_5YR_B01001_with_ann!AT66","v":137},{"$f":"[1]ACS_16_5YR_B01001_with_ann!AU66","v":57},{"$f":"[1]ACS_16_5YR_B01001_with_ann!AV66","v":40},{"$f":"[1]ACS_16_5YR_B01001_with_ann!AW66","v":30},{"$f":"[1]ACS_16_5YR_B01001_with_ann!AX66","v":8},{"$f":"[1]ACS_16_5YR_B01001_with_ann!AY66","v":13},{"$f":"[1]ACS_16_5YR_B01001_with_ann!AZ66","v":26},{"$f":"[1]ACS_16_5YR_B01001_with_ann!BA66","v":30},{"$f":"[1]ACS_16_5YR_B01001_with_ann!BB66","v":2197},{"$f":"[1]ACS_16_5YR_B01001_with_ann!BC66","v":177},{"$f":"[1]ACS_16_5YR_B01001_with_ann!BD66","v":237},{"$f":"[1]ACS_16_5YR_B01001_with_ann!BE66","v":122},{"$f":"[1]ACS_16_5YR_B01001_with_ann!BF66","v":88},{"$f":"[1]ACS_16_5YR_B01001_with_ann!BG66","v":64},{"$f":"[1]ACS_16_5YR_B01001_with_ann!BH66","v":89},{"$f":"[1]ACS_16_5YR_B01001_with_ann!BI66","v":85},{"$f":"[1]ACS_16_5YR_B01001_with_ann!BJ66","v":112},{"$f":"[1]ACS_16_5YR_B01001_with_ann!BK66","v":74},{"$f":"[1]ACS_16_5YR_B01001_with_ann!BL66","v":44},{"$f":"[1]ACS_16_5YR_B01001_with_ann!BM66","v":48},{"$f":"[1]ACS_16_5YR_B01001_with_ann!BN66","v":0},{"$f":"[1]ACS_16_5YR_B01001_with_ann!BO66","v":12},{"$f":"[1]ACS_16_5YR_B01001_with_ann!BP66","v":0},{"$f":"[1]ACS_16_5YR_B01001_with_ann!BQ66","v":12},{"$f":"[1]ACS_16_5YR_B01001_with_ann!BR66","v":178},{"$f":"[1]ACS_16_5YR_B01001_with_ann!BS66","v":136},{"$f":"[1]ACS_16_5YR_B01001_with_ann!BT66","v":65},{"$f":"[1]ACS_16_5YR_B01001_with_ann!BU66","v":54},{"$f":"[1]ACS_16_5YR_B01001_with_ann!BV66","v":205},{"$f":"[1]ACS_16_5YR_B01001_with_ann!BW66","v":103},{"$f":"[1]ACS_16_5YR_B01001_with_ann!BX66","v":104},{"$f":"[1]ACS_16_5YR_B01001_with_ann!BY66","v":72},{"$f":"[1]ACS_16_5YR_B01001_with_ann!BZ66","v":166},{"$f":"[1]ACS_16_5YR_B01001_with_ann!CA66","v":93},{"$f":"[1]ACS_16_5YR_B01001_with_ann!CB66","v":67},{"$f":"[1]ACS_16_5YR_B01001_with_ann!CC66","v":37},{"$f":"[1]ACS_16_5YR_B01001_with_ann!CD66","v":111},{"$f":"[1]ACS_16_5YR_B01001_with_ann!CE66","v":60},{"$f":"[1]ACS_16_5YR_B01001_with_ann!CF66","v":153},{"$f":"[1]ACS_16_5YR_B01001_with_ann!CG66","v":73},{"$f":"[1]ACS_16_5YR_B01001_with_ann!CH66","v":71},{"$f":"[1]ACS_16_5YR_B01001_with_ann!CI66","v":44},{"$f":"[1]ACS_16_5YR_B01001_with_ann!CJ66","v":81},{"$f":"[1]ACS_16_5YR_B01001_with_ann!CK66","v":55},{"$f":"[1]ACS_16_5YR_B01001_with_ann!CL66","v":39},{"$f":"[1]ACS_16_5YR_B01001_with_ann!CM66","v":35},{"$f":"[1]ACS_16_5YR_B01001_with_ann!CN66","v":59},{"$f":"[1]ACS_16_5YR_B01001_with_ann!CO66","v":38},{"$f":"[1]ACS_16_5YR_B01001_with_ann!CP66","v":106},{"$f":"[1]ACS_16_5YR_B01001_with_ann!CQ66","v":79},{"$f":"[1]ACS_16_5YR_B01001_with_ann!CR66","v":88},{"$f":"[1]ACS_16_5YR_B01001_with_ann!CS66","v":60},{"$f":"[1]ACS_16_5YR_B01001_with_ann!CT66","v":53},{"$f":"[1]ACS_16_5YR_B01001_with_ann!CU66","v":37},{"$f":"[1]ACS_16_5YR_B01001_with_ann!CV66","v":81},{"$f":"[1]ACS_16_5YR_B01001_with_ann!CW66","v":46}]
[]
[]
[null,null,null,null,{"$f":"$D$4","v":"Chesterfield"},null,{"$f":"$D$5","v":"Dublin"},null,{"$f":"$D$6","v":"Fitzwilliam"},null,{"$f":"$D$7","v":"Gilsum"},null,{"$f":"$D$8","v":"Harrisville"},null,{"$f":"$D$9","v":"Hinsdale"},null,{"$f":"$D$10","v":"Jaffrey"},null,{"$f":"$D$11","v":"Keene"},null,{"$f":"$D$12","v":"Marlborough"},null,{"$f":"$D$13","v":"Marlow"},null,{"$f":"$D$14","v":"Nelson"},null,{"$f":"$D$15","v":"Richmond"},null,{"$f":"$D$16","v":"Rindge"},null,{"$f":"$D$17","v":"Roxbury"},null,{"$f":"$D$18","v":"Stoddard"},null,{"$f":"$D$19","v":"Sullivan"},null,{"$f":"$D$20","v":"Surry"},null,{"$f":"$D$21","v":"Swanzey"},null,{"$f":"$D$22","v":"Troy"},null,{"$f":"$D$23","v":"Walpole"},null,{"$f":"$D$24","v":"Westmoreland"},null,{"$f":"$D$25","v":"Winchester"},null,{"$f":"#REF!","v":{"$error":"#REF!"}}]
[null,null,null,null,"Estimate","Margin of Error","Estimate","Margin of Error","Estimate","Margin of Error","Estimate","Margin of Error","Estimate","Margin of Error","Estimate","Margin of Error","Estimate","Margin of Error","Estimate","Margin of Error","Estimate","Margin of Error","Estimate","Margin of Error","Estimate","Margin of Error","Estimate","Margin of Error","Estimate","Margin of Error","Estimate","Margin of Error","Estimate","Margin of Error","Estimate","Margin of Error","Estimate","Margin of Error","Estimate","Margin of Error","Estimate","Margin of Error","Estimate","Margin of Error","Estimate","Margin of Error","Estimate","Margin of Error","Estimate","Margin of Error"]
[]
[null,null,null,"Estimate!!Total:",1599,169,3577,15,1711,216,2287,368,871,144,977,197,3965,16,5363,32,22907,27,2253,391,803,175,550,106,1107,251,6446,21,295,142,1205,162,681,130,950,245,7306,22,1889,275,3651,33,2042,341,4175,25]
[null,null,null,"Estimate!!Total:!!Male:",770,116,2000,139,800,118,1203,216,452,88,461,95,2090,205,2738,213,11235,407,1005,199,364,80,252,50,598,161,3165,186,135,70,592,98,342,79,388,72,3563,205,950,177,1799,162,890,172,1978,179]
[null,null,null,"Estimate!!Total:!!Male:!!Under 5 years",12,11,121,74,24,19,33,23,33,23,42,33,26,38,114,89,485,125,76,60,23,26,15,8,38,31,144,96,36,37,29,16,35,30,17,13,125,95,25,22,183,89,33,31,102,62]
[null,null,null,"Estimate!!Total:!!Male:!!5 to 9 years",14,9,170,89,32,18,21,15,9,8,20,17,152,72,240,135,483,120,10,8,9,10,12,10,34,22,189,77,2,4,37,23,10,8,12,9,135,72,16,19,93,68,12,9,119,81]
[null,null,null,"Estimate!!Total:!!Male:!!10 to 14 years",43,28,187,78,38,23,40,18,10,10,20,21,62,50,214,97,562,145,89,57,11,9,2,3,36,22,223,103,2,3,37,19,3,4,19,13,239,96,101,56,97,55,23,20,113,63]
[null,null,null,"Estimate!!Total:!!Male:!!15 to 17 years",39,28,95,84,27,19,40,29,33,29,7,8,63,95,112,92,334,142,30,27,17,20,3,6,12,12,58,51,0,12,30,31,5,7,3,4,51,60,32,34,122,98,16,13,79,63]
[null,null,null,"Estimate!!Total:!!Male:!!18 and 19 years",46,32,40,49,15,15,5,9,8,12,9,10,17,30,0,17,759,136,38,36,6,6,7,11,15,29,219,67,0,12,15,18,8,9,8,15,26,61,11,14,76,56,7,9,72,67]
[null,null,null,"Estimate!!Total:!!Male:!!20 years",0,12,0,12,9,10,16,19,31,27,0,12,68,78,0,17,362,107,0,12,7,12,0,12,0,12,130,64,0,12,0,12,2,4,0,12,25,39,0,12,0,12,7,8,0,12]
[null,null,null,"Estimate!!Total:!!Male:!!21 years",0,12,17,27,12,15,11,13,4,5,0,12,14,24,0,17,545,246,15,23,0,12,0,12,13,20,134,64,0,12,12,11,3,4,0,12,11,19,0,12,31,40,2,3,9,15]
[null,null,null,"Estimate!!Total:!!Male:!!22 to 24 years",6,8,35,39,37,24,29,20,13,10,0,12,35,42,37,54,573,183,42,41,4,5,0,12,28,26,44,39,9,11,9,8,0,12,4,5,124,120,22,17,29,33,32,34,57,45]
[null,null,null,"Estimate!!Total:!!Male:!!25 to 29 years",65,50,102,80,25,28,50,33,19,17,7,7,81,54,313,175,660,225,54,39,18,24,6,6,16,15,265,93,7,5,17,11,19,16,6,6,116,67,73,40,151,89,19,16,122,59]
[null,null,null,"Estimate!!Total:!!Male:!!30 to 34 years",30,19,172,107,38,35,115,70,44,24,22,16,79,66,58,69,922,163,26,19,18,15,12,8,41,30,152,63,1,2,28,18,56,30,31,22,226,95,85,59,79,56,50,34,128,82]
[null,null,null,"Estimate!!Total:!!Male:!!35 to 39 years",34,22,21,23,39,29,63,32,17,15,24,15,55,49,266,122,527,166,69,37,21,15,27,16,14,13,187,79,3,4,33,25,11,8,16,10,222,131,106,53,72,36,11,11,55,48]
[null,null,null,"Estimate!!Total:!!Male:!!40 to 44 years",41,24,187,106,30,18,56,27,23,14,30,33,191,95,125,79,825,228,58,42,12,14,2,3,24,14,97,60,3,4,23,12,16,9,43,31,155,92,46,26,61,40,14,11,190,76]
[null,null,null,"Estimate!!Total:!!Male:!!45 to 49 years",50,32,69,104,58,24,201,156,29,15,9,10,104,75,277,116,457,136,85,69,21,16,11,9,19,20,144,76,5,4,23,12,33,19,32,23,174,109,61,41,65,38,65,50,65,41]
[null,null,null,"Estimate!!Total:!!Male:!!50 to 54 years",52,23,55,44,79,29,35,30,31,19,26,15,237,127,167,79,880,177,62,43,19,8,25,15,29,19,117,66,38,37,85,35,10,10,19,12,202,148,62,40,163,75,84,38,105,58]
[null,null,null,"Estimate!!Total:!!Male:!!55 to 59 years",78,56,108,101,104,59,126,50,21,15,36,23,132,62,126,71,635,179,116,49,30,18,22,16,40,29,249,97,6,6,30,16,41,16,33,21,308,114,72,42,86,54,158,79,273,115]
[null,null,null,"Estimate!!Total:!!Male:!!60 and 61 years",20,14,18,27,17,12,34,23,6,6,31,21,25,25,64,76,150,67,18,17,28,23,16,10,20,14,66,51,2,3,31,17,4,4,12,10,324,158,5,7,60,41,31,20,86,70]
[null,null,null,"Estimate!!Total:!!Male:!!62 to 64 years",82,49,79,97,11,8,90,46,31,14,34,18,134,81,285,185,404,155,32,28,22,16,13,11,46,26,123,55,8,9,54,28,19,13,9,7,183,97,67,35,64,47,32,23,136,81]
[null,null,null,"Estimate!!Total:!!Male:!!65 and 66 years",17,18,95,75,26,20,16,13,17,14,29,22,64,91,30,36,154,79,11,11,16,9,14,9,47,36,79,43,0,12,26,11,20,15,8,6,64,53,29,29,78,47,35,20,29,26]
[null,null,null,"Estimate!!Total:!!Male:!!67 to 69 years",56,35,56,46,59,30,72,35,48,23,19,11,91,76,57,54,270,94,32,27,5,5,16,10,57,64,141,84,3,4,11,8,13,5,50,30,129,64,60,37,127,44,40,19,27,26]
[null,null,null,"Estimate!!Total:!!Male:!!70 to 74 years",33,16,216,118,68,55,107,46,11,8,43,15,278,229,72,65,500,120,40,23,54,37,29,16,41,19,208,95,7,5,31,12,7,6,22,11,340,186,32,21,66,37,81,35,137,57]
[null,null,null,"Estimate!!Total:!!Male:!!75 to 79 years",37,31,68,72,18,14,27,15,8,6,39,18,62,47,52,45,320,111,30,19,7,6,13,8,5,5,164,92,3,3,18,14,14,11,21,14,182,96,12,10,46,37,71,61,40,30]
[null,null,null,"Estimate!!Total:!!Male:!!80 to 84 years",15,11,75,52,24,18,9,11,2,4,0,12,20,21,65,75,164,79,25,22,5,5,3,4,2,4,26,25,0,12,13,8,10,10,7,7,72,55,28,26,19,17,14,16,8,13]
[null,null,null,"Estimate!!Total:!!Male:!!85 years and over",0,12,14,22,10,7,7,8,4,6,14,12,100,120,64,60,264,120,47,35,11,9,4,4,21,15,6,10,0,12,0,12,3,3,16,13,130,149,5,8,31,30,53,53,26,30]
[null,null,null,"Estimate!!Total:!!Female:",829,95,1577,140,911,135,1084,188,419,74,516,110,1875,204,2625,216,11672,406,1248,240,439,110,298,67,509,121,3281,187,160,78,613,91,339,65,562,203,3743,209,939,136,1852,161,1152,226,2197,177]
[null,null,null,"Estimate!!Total:!!Female:!!Under 5 years",20,19,20,30,57,32,45,46,26,17,8,8,58,46,28,48,387,112,140,107,19,19,7,7,10,14,116,74,2,3,29,23,28,18,47,47,110,82,106,55,144,82,47,41,237,122]
[null,null,null,"Estimate!!Total:!!Female:!!5 to 9 years",42,23,59,44,23,12,37,28,32,28,36,32,103,50,124,74,329,114,14,13,14,12,27,20,34,25,170,91,3,3,24,17,17,11,42,56,229,111,65,39,103,52,95,66,88,64]
[null,null,null,"Estimate!!Total:!!Female:!!10 to 14 years",29,18,85,68,91,33,64,34,4,4,12,12,82,55,329,130,396,138,53,35,91,52,11,11,14,15,227,112,0,12,53,27,8,8,45,29,233,108,18,16,96,57,58,31,89,85]
[null,null,null,"Estimate!!Total:!!Female:!!15 to 17 years",29,22,0,12,35,23,5,7,2,3,4,6,40,51,164,92,316,144,131,73,11,9,8,12,10,9,46,61,2,4,12,7,5,6,8,7,140,105,30,29,88,64,27,22,112,74]
[null,null,null,"Estimate!!Total:!!Female:!!18 and 19 years",7,12,5,12,25,17,6,9,3,6,3,5,61,58,5,13,908,132,11,12,10,13,6,12,3,6,379,105,2,4,0,12,0,12,3,5,14,26,4,8,3,6,0,12,44,48]
[null,null,null,"Estimate!!Total:!!Female:!!20 years",0,12,0,12,0,12,10,10,8,12,0,12,62,79,33,60,392,104,8,12,2,3,0,12,17,27,159,60,0,12,10,10,0,12,3,4,0,17,24,25,29,45,8,11,0,12]
[null,null,null,"Estimate!!Total:!!Female:!!21 years",0,12,23,35,5,7,0,12,0,12,13,17,0,12,70,82,395,118,0,12,3,7,0,12,0,12,85,55,13,15,0,12,7,7,2,3,0,17,0,12,7,10,2,3,0,12]
[null,null,null,"Estimate!!Total:!!Female:!!22 to 24 years",31,31,26,41,3,5,28,32,30,23,11,14,78,97,49,74,536,194,12,21,6,6,4,4,18,20,125,66,43,56,13,14,7,7,14,12,94,76,21,24,21,24,49,60,178,136]
[null,null,null,"Estimate!!Total:!!Female:!!25 to 29 years",59,28,114,82,10,17,24,34,37,26,34,25,71,47,63,72,837,155,21,17,13,12,11,9,4,10,116,71,3,6,42,23,26,31,12,9,259,91,73,32,180,118,37,30,65,54]
[null,null,null,"Estimate!!Total:!!Female:!!30 to 34 years",20,21,155,77,20,13,83,52,17,9,28,26,34,35,87,87,939,164,65,38,38,32,6,6,27,15,138,63,6,6,37,27,34,20,88,79,57,62,83,39,78,57,23,21,205,103]
[null,null,null,"Estimate!!Total:!!Female:!!35 to 39 years",22,17,84,71,43,29,38,17,18,13,25,18,91,58,225,95,636,171,129,73,12,12,32,17,18,11,183,69,15,12,51,25,11,8,28,26,337,105,67,46,111,59,63,62,104,72]
[null,null,null,"Estimate!!Total:!!Female:!!40 to 44 years",30,16,44,38,55,29,53,25,20,11,34,36,144,68,95,65,479,135,129,99,21,13,14,14,23,19,129,72,6,4,20,14,29,17,33,16,68,71,74,44,107,57,60,32,166,93]
[null,null,null,"Estimate!!Total:!!Female:!!45 to 49 years",32,20,134,91,73,38,43,31,21,13,17,16,133,78,208,107,664,245,16,20,17,13,3,5,13,12,101,71,8,7,38,21,17,10,28,27,315,142,28,22,73,47,37,31,67,37]
[null,null,null,"Estimate!!Total:!!Female:!!50 to 54 years",81,33,125,90,74,38,50,47,38,26,15,10,92,57,229,137,589,168,104,50,19,16,17,16,37,27,252,90,18,22,45,22,23,16,19,12,206,143,48,30,217,89,55,27,111,60]
[null,null,null,"Estimate!!Total:!!Female:!!55 to 59 years",99,54,143,108,94,72,160,47,30,14,87,41,151,79,94,72,761,206,92,44,22,13,46,22,71,45,249,89,8,5,60,21,31,16,45,36,403,139,48,30,105,69,163,82,153,73]
[null,null,null,"Estimate!!Total:!!Female:!!60 and 61 years",15,11,83,98,20,14,71,45,19,14,29,16,164,89,264,154,325,110,56,42,9,10,15,8,46,28,77,55,7,13,18,16,12,8,15,11,99,77,33,23,48,39,6,8,71,44]
[null,null,null,"Estimate!!Total:!!Female:!!62 to 64 years",50,27,116,80,45,23,69,34,24,16,13,10,68,54,29,35,288,112,60,32,32,24,13,12,18,12,76,59,4,4,25,18,22,10,11,7,220,103,54,33,38,31,46,26,81,55]
[null,null,null,"Estimate!!Total:!!Female:!!65 and 66 years",19,14,54,47,23,19,61,36,33,20,4,4,81,93,50,63,239,101,6,8,14,8,14,8,21,19,45,26,2,2,30,16,13,9,11,9,134,71,29,23,52,31,41,40,39,35]
[null,null,null,"Estimate!!Total:!!Female:!!67 to 69 years",64,33,35,36,57,26,128,94,16,14,37,16,61,41,104,58,370,119,58,29,26,27,19,13,26,13,94,65,5,4,29,17,5,5,23,21,150,93,37,26,75,34,73,37,59,38]
[null,null,null,"Estimate!!Total:!!Female:!!70 to 74 years",90,58,155,102,82,49,62,40,9,6,66,23,72,47,122,76,706,151,56,34,27,22,15,7,22,14,292,84,6,4,27,12,22,9,38,17,303,143,35,19,55,31,112,103,106,79]
[null,null,null,"Estimate!!Total:!!Female:!!75 to 79 years",35,36,28,33,40,26,40,25,16,9,25,17,49,39,45,33,318,128,36,25,10,7,18,13,40,35,68,45,2,3,26,17,12,12,17,10,196,88,14,15,26,18,69,50,88,60]
[null,null,null,"Estimate!!Total:!!Female:!!80 to 84 years",43,31,54,47,17,10,7,8,8,10,3,4,162,148,92,72,330,148,21,14,16,13,6,6,12,13,71,79,1,2,14,9,9,9,16,15,124,98,41,33,89,77,31,25,53,37]
[null,null,null,"Estimate!!Total:!!Female:!!85 years and over",12,11,35,38,19,43,0,12,8,7,12,12,18,20,116,74,532,174,30,28,7,9,6,8,25,21,83,70,4,6,10,10,1,4,14,10,52,50,7,10,107,86,50,35,81,46]

{"sheet":"SData_B01002MedianAgePop","index":20,"n_rows":33,"n_cols":50,"rows_kept":33,"cut":false,"hidden":true,"merged":[]}
["GEO_ID","GEO_ID2","SUMLEVEL","GEO_NAME",{"$f":"[1]ACS_16_5YR_B01002_with_ann!D1","v":"B01002_001E"},{"$f":"[1]ACS_16_5YR_B01002_with_ann!E1","v":"B01002_001M"},{"$f":"[1]ACS_16_5YR_B01002_with_ann!F1","v":"B01002_002E"},{"$f":"[1]ACS_16_5YR_B01002_with_ann!G1","v":"B01002_002M"},{"$f":"[1]ACS_16_5YR_B01002_with_ann!H1","v":"B01002_003E"},{"$f":"[1]ACS_16_5YR_B01002_with_ann!I1","v":"B01002_003M"}]
["Geography Identifier","Geography Identifier","Geographic Summary Level","Geography",{"$f":"[1]ACS_16_5YR_B01002_with_ann!D2","v":"Estimate!!Median age --!!Total:"},{"$f":"[1]ACS_16_5YR_B01002_with_ann!E2","v":"Margin of Error!!Median age --!!Total:"},{"$f":"[1]ACS_16_5YR_B01002_with_ann!F2","v":"Estimate!!Median age --!!Male"},{"$f":"[1]ACS_16_5YR_B01002_with_ann!G2","v":"Margin of Error!!Median age --!!Male"},{"$f":"[1]ACS_16_5YR_B01002_with_ann!H2","v":"Estimate!!Median age --!!Female"},{"$f":"[1]ACS_16_5YR_B01002_with_ann!I2","v":"Margin of Error!!Median age --!!Female"}]
["0600000US3300500820","0600000US3300500820","060",{"$f":"[1]ACS_16_5YR_B01002_with_ann!C44","v":"Alstead"},{"$f":"[1]ACS_16_5YR_B01002_with_ann!D44","v":54},{"$f":"[1]ACS_16_5YR_B01002_with_ann!E44","v":4.9000000000000004},{"$f":"[1]ACS_16_5YR_B01002_with_ann!F44","v":50.3},{"$f":"[1]ACS_16_5YR_B01002_with_ann!G44","v":8.4},{"$f":"[1]ACS_16_5YR_B01002_with_ann!H44","v":55.5},{"$f":"[1]ACS_16_5YR_B01002_with_ann!I44","v":4.5999999999999996}]
["0600000US3300512260","0600000US3300512260","060",{"$f":"[1]ACS_16_5YR_B01002_with_ann!C45","v":"Chesterfield"},{"$f":"[1]ACS_16_5YR_B01002_with_ann!D45","v":45.2},{"$f":"[1]ACS_16_5YR_B01002_with_ann!E45","v":5.7},{"$f":"[1]ACS_16_5YR_B01002_with_ann!F45","v":42},{"$f":"[1]ACS_16_5YR_B01002_with_ann!G45","v":12.4},{"$f":"[1]ACS_16_5YR_B01002_with_ann!H45","v":51.8},{"$f":"[1]ACS_16_5YR_B01002_with_ann!I45","v":6.6}]
["0600000US3300519140","0600000US3300519140","060",{"$f":"[1]ACS_16_5YR_B01002_with_ann!C46","v":"Dublin"},{"$f":"[1]ACS_16_5YR_B01002_with_ann!D46","v":51.2},{"$f":"[1]ACS_16_5YR_B01002_with_ann!E46","v":5.9},{"$f":"[1]ACS_16_5YR_B01002_with_ann!F46","v":51.2},{"$f":"[1]ACS_16_5YR_B01002_with_ann!G46","v":7.4},{"$f":"[1]ACS_16_5YR_B01002_with_ann!H46","v":51.2},{"$f":"[1]ACS_16_5YR_B01002_with_ann!I46","v":5.8}]
["0600000US3300526500","0600000US3300526500","060",{"$f":"[1]ACS_16_5YR_B01002_with_ann!C47","v":"Fitzwilliam"},{"$f":"[1]ACS_16_5YR_B01002_with_ann!D47","v":51.6},{"$f":"[1]ACS_16_5YR_B01002_with_ann!E47","v":7.9},{"$f":"[1]ACS_16_5YR_B01002_with_ann!F47","v":48.5},{"$f":"[1]ACS_16_5YR_B01002_with_ann!G47","v":1.3},{"$f":"[1]ACS_16_5YR_B01002_with_ann!H47","v":56.6},{"$f":"[1]ACS_16_5YR_B01002_with_ann!I47","v":2.7}]
["0600000US3300529220","0600000US3300529220","060",{"$f":"[1]ACS_16_5YR_B01002_with_ann!C48","v":"Gilsum"},{"$f":"[1]ACS_16_5YR_B01002_with_ann!D48","v":44.3},{"$f":"[1]ACS_16_5YR_B01002_with_ann!E48","v":7},{"$f":"[1]ACS_16_5YR_B01002_with_ann!F48","v":40.6},{"$f":"[1]ACS_16_5YR_B01002_with_ann!G48","v":8.4},{"$f":"[1]ACS_16_5YR_B01002_with_ann!H48","v":48.5},{"$f":"[1]ACS_16_5YR_B01002_with_ann!I48","v":6.6}]
["0600000US3300534420","0600000US3300534420","060",{"$f":"[1]ACS_16_5YR_B01002_with_ann!C49","v":"Harrisville"},{"$f":"[1]ACS_16_5YR_B01002_with_ann!D49","v":56.6},{"$f":"[1]ACS_16_5YR_B01002_with_ann!E49","v":5.7},{"$f":"[1]ACS_16_5YR_B01002_with_ann!F49","v":56.6},{"$f":"[1]ACS_16_5YR_B01002_with_ann!G49","v":7.7},{"$f":"[1]ACS_16_5YR_B01002_with_ann!H49","v":56.6},{"$f":"[1]ACS_16_5YR_B01002_with_ann!I49","v":5.6}]
["0600000US3300536660","0600000US3300536660","060",{"$f":"[1]ACS_16_5YR_B01002_with_ann!C50","v":"Hinsdale"},{"$f":"[1]ACS_16_5YR_B01002_with_ann!D50","v":50.9},{"$f":"[1]ACS_16_5YR_B01002_with_ann!E50","v":5.5},{"$f":"[1]ACS_16_5YR_B01002_with_ann!F50","v":53.1},{"$f":"[1]ACS_16_5YR_B01002_with_ann!G50","v":6.2},{"$f":"[1]ACS_16_5YR_B01002_with_ann!H50","v":48.9},{"$f":"[1]ACS_16_5YR_B01002_with_ann!I50","v":7.3}]
["0600000US3300538500","0600000US3300538500","060",{"$f":"[1]ACS_16_5YR_B01002_with_ann!C51","v":"Jaffrey"},{"$f":"[1]ACS_16_5YR_B01002_with_ann!D51","v":43.8},{"$f":"[1]ACS_16_5YR_B01002_with_ann!E51","v":5.7},{"$f":"[1]ACS_16_5YR_B01002_with_ann!F51","v":41.4},{"$f":"[1]ACS_16_5YR_B01002_with_ann!G51","v":8.3000000000000007},{"$f":"[1]ACS_16_5YR_B01002_with_ann!H51","v":46.5},{"$f":"[1]ACS_16_5YR_B01002_with_ann!I51","v":5.2}]
["0600000US3300539300","0600000US3300539300","060",{"$f":"[1]ACS_16_5YR_B01002_with_ann!C52","v":"Keene"},{"$f":"[1]ACS_16_5YR_B01002_with_ann!D52","v":36.1},{"$f":"[1]ACS_16_5YR_B01002_with_ann!E52","v":1.5},{"$f":"[1]ACS_16_5YR_B01002_with_ann!F52","v":34.6},{"$f":"[1]ACS_16_5YR_B01002_with_ann!G52","v":2},{"$f":"[1]ACS_16_5YR_B01002_with_ann!H52","v":37.5},{"$f":"[1]ACS_16_5YR_B01002_with_ann!I52","v":1.9}]
["0600000US3300545460","0600000US3300545460","060",{"$f":"[1]ACS_16_5YR_B01002_with_ann!C53","v":"Marlborough"},{"$f":"[1]ACS_16_5YR_B01002_with_ann!D53","v":41.7},{"$f":"[1]ACS_16_5YR_B01002_with_ann!E53","v":4.3},{"$f":"[1]ACS_16_5YR_B01002_with_ann!F53","v":43.6},{"$f":"[1]ACS_16_5YR_B01002_with_ann!G53","v":5.4},{"$f":"[1]ACS_16_5YR_B01002_with_ann!H53","v":40.6},{"$f":"[1]ACS_16_5YR_B01002_with_ann!I53","v":3.9}]
["0600000US3300545700","0600000US3300545700","060",{"$f":"[1]ACS_16_5YR_B01002_with_ann!C54","v":"Marlow"},{"$f":"[1]ACS_16_5YR_B01002_with_ann!D54","v":47.7},{"$f":"[1]ACS_16_5YR_B01002_with_ann!E54","v":11.9},{"$f":"[1]ACS_16_5YR_B01002_with_ann!F54","v":52.8},{"$f":"[1]ACS_16_5YR_B01002_with_ann!G54","v":10.1},{"$f":"[1]ACS_16_5YR_B01002_with_ann!H54","v":40.1},{"$f":"[1]ACS_16_5YR_B01002_with_ann!I54","v":14.1}]
["0600000US3300550580","0600000US3300550580","060",{"$f":"[1]ACS_16_5YR_B01002_with_ann!C55","v":"Nelson"},{"$f":"[1]ACS_16_5YR_B01002_with_ann!D55","v":56},{"$f":"[1]ACS_16_5YR_B01002_with_ann!E55","v":7.2},{"$f":"[1]ACS_16_5YR_B01002_with_ann!F55","v":58},{"$f":"[1]ACS_16_5YR_B01002_with_ann!G55","v":8.8000000000000007},{"$f":"[1]ACS_16_5YR_B01002_with_ann!H55","v":55.4},{"$f":"[1]ACS_16_5YR_B01002_with_ann!I55","v":8.9}]
["0600000US3300564420","0600000US3300564420","060",{"$f":"[1]ACS_16_5YR_B01002_with_ann!C56","v":"Richmond"},{"$f":"[1]ACS_16_5YR_B01002_with_ann!D56","v":55.3},{"$f":"[1]ACS_16_5YR_B01002_with_ann!E56","v":7.7},{"$f":"[1]ACS_16_5YR_B01002_with_ann!F56","v":50.8},{"$f":"[1]ACS_16_5YR_B01002_with_ann!G56","v":14.4},{"$f":"[1]ACS_16_5YR_B01002_with_ann!H56","v":57.1},{"$f":"[1]ACS_16_5YR_B01002_with_ann!I56","v":3.5}]
["0600000US3300564580","0600000US3300564580","060",{"$f":"[1]ACS_16_5YR_B01002_with_ann!C57","v":"Rindge"},{"$f":"[1]ACS_16_5YR_B01002_with_ann!D57","v":35.799999999999997},{"$f":"[1]ACS_16_5YR_B01002_with_ann!E57","v":3.9},{"$f":"[1]ACS_16_5YR_B01002_with_ann!F57","v":35.299999999999997},{"$f":"[1]ACS_16_5YR_B01002_with_ann!G57","v":4.5999999999999996},{"$f":"[1]ACS_16_5YR_B01002_with_ann!H57","v":36.9},{"$f":"[1]ACS_16_5YR_B01002_with_ann!I57","v":4.3}]
["0600000US3300565700","0600000US3300565700","060",{"$f":"[1]ACS_16_5YR_B01002_with_ann!C58","v":"Roxbury"},{"$f":"[1]ACS_16_5YR_B01002_with_ann!D58","v":39.700000000000003},{"$f":"[1]ACS_16_5YR_B01002_with_ann!E58","v":11.7},{"$f":"[1]ACS_16_5YR_B01002_with_ann!F58","v":46.8},{"$f":"[1]ACS_16_5YR_B01002_with_ann!G58","v":12.1},{"$f":"[1]ACS_16_5YR_B01002_with_ann!H58","v":38.5},{"$f":"[1]ACS_16_5YR_B01002_with_ann!I58","v":15.3}]
["0600000US3300573700","0600000US3300573700","060",{"$f":"[1]ACS_16_5YR_B01002_with_ann!C59","v":"Stoddard"},{"$f":"[1]ACS_16_5YR_B01002_with_ann!D59","v":49.3},{"$f":"[1]ACS_16_5YR_B01002_with_ann!E59","v":4.8},{"$f":"[1]ACS_16_5YR_B01002_with_ann!F59","v":50.2},{"$f":"[1]ACS_16_5YR_B01002_with_ann!G59","v":5.9},{"$f":"[1]ACS_16_5YR_B01002_with_ann!H59","v":48.3},{"$f":"[1]ACS_16_5YR_B01002_with_ann!I59","v":8}]
["0600000US3300574900","0600000US3300574900","060",{"$f":"[1]ACS_16_5YR_B01002_with_ann!C60","v":"Sullivan"},{"$f":"[1]ACS_16_5YR_B01002_with_ann!D60","v":45.1},{"$f":"[1]ACS_16_5YR_B01002_with_ann!E60","v":6.6},{"$f":"[1]ACS_16_5YR_B01002_with_ann!F60","v":46.3},{"$f":"[1]ACS_16_5YR_B01002_with_ann!G60","v":7.5},{"$f":"[1]ACS_16_5YR_B01002_with_ann!H60","v":43.9},{"$f":"[1]ACS_16_5YR_B01002_with_ann!I60","v":7.8}]
["0600000US3300575300","0600000US3300575300","060",{"$f":"[1]ACS_16_5YR_B01002_with_ann!C61","v":"Surry"},{"$f":"[1]ACS_16_5YR_B01002_with_ann!D61","v":44.7},{"$f":"[1]ACS_16_5YR_B01002_with_ann!E61","v":5.9},{"$f":"[1]ACS_16_5YR_B01002_with_ann!F61","v":50.6},{"$f":"[1]ACS_16_5YR_B01002_with_ann!G61","v":9.1},{"$f":"[1]ACS_16_5YR_B01002_with_ann!H61","v":37},{"$f":"[1]ACS_16_5YR_B01002_with_ann!I61","v":14.5}]
["0600000US3300575700","0600000US3300575700","060",{"$f":"[1]ACS_16_5YR_B01002_with_ann!C62","v":"Swanzey"},{"$f":"[1]ACS_16_5YR_B01002_with_ann!D62","v":51.7},{"$f":"[1]ACS_16_5YR_B01002_with_ann!E62","v":4.2},{"$f":"[1]ACS_16_5YR_B01002_with_ann!F62","v":51.6},{"$f":"[1]ACS_16_5YR_B01002_with_ann!G62","v":8.3000000000000007},{"$f":"[1]ACS_16_5YR_B01002_with_ann!H62","v":52.1},{"$f":"[1]ACS_16_5YR_B01002_with_ann!I62","v":5.5}]
["0600000US3300577380","0600000US3300577380","060",{"$f":"[1]ACS_16_5YR_B01002_with_ann!C63","v":"Troy"},{"$f":"[1]ACS_16_5YR_B01002_with_ann!D63","v":39.6},{"$f":"[1]ACS_16_5YR_B01002_with_ann!E63","v":4.0999999999999996},{"$f":"[1]ACS_16_5YR_B01002_with_ann!F63","v":40.4},{"$f":"[1]ACS_16_5YR_B01002_with_ann!G63","v":6.6},{"$f":"[1]ACS_16_5YR_B01002_with_ann!H63","v":37.9},{"$f":"[1]ACS_16_5YR_B01002_with_ann!I63","v":5.8}]
["0600000US3300578420","0600000US3300578420","060",{"$f":"[1]ACS_16_5YR_B01002_with_ann!C64","v":"Walpole"},{"$f":"[1]ACS_16_5YR_B01002_with_ann!D64","v":41},{"$f":"[1]ACS_16_5YR_B01002_with_ann!E64","v":6.8},{"$f":"[1]ACS_16_5YR_B01002_with_ann!F64","v":36.5},{"$f":"[1]ACS_16_5YR_B01002_with_ann!G64","v":7.8},{"$f":"[1]ACS_16_5YR_B01002_with_ann!H64","v":43.3},{"$f":"[1]ACS_16_5YR_B01002_with_ann!I64","v":9.1999999999999993}]
["0600000US3300582660","0600000US3300582660","060",{"$f":"[1]ACS_16_5YR_B01002_with_ann!C65","v":"Westmoreland"},{"$f":"[1]ACS_16_5YR_B01002_with_ann!D65","v":55.6},{"$f":"[1]ACS_16_5YR_B01002_with_ann!E65","v":1.9},{"$f":"[1]ACS_16_5YR_B01002_with_ann!F65","v":56.4},{"$f":"[1]ACS_16_5YR_B01002_with_ann!G65","v":2},{"$f":"[1]ACS_16_5YR_B01002_with_ann!H65","v":55.2},{"$f":"[1]ACS_16_5YR_B01002_with_ann!I65","v":6.6}]
["0600000US3300585540","0600000US3300585540","060",{"$f":"[1]ACS_16_5YR_B01002_with_ann!C66","v":"Winchester"},{"$f":"[1]ACS_16_5YR_B01002_with_ann!D66","v":41},{"$f":"[1]ACS_16_5YR_B01002_with_ann!E66","v":3.5},{"$f":"[1]ACS_16_5YR_B01002_with_ann!F66","v":43.8},{"$f":"[1]ACS_16_5YR_B01002_with_ann!G66","v":4.8},{"$f":"[1]ACS_16_5YR_B01002_with_ann!H66","v":39.5},{"$f":"[1]ACS_16_5YR_B01002_with_ann!I66","v":5.8}]
[]
[]
[null,null,null,null,{"$f":"$D$3","v":"Alstead"},null,{"$f":"$D$4","v":"Chesterfield"},null,{"$f":"$D$5","v":"Dublin"},null,{"$f":"$D$6","v":"Fitzwilliam"},null,{"$f":"$D$7","v":"Gilsum"},null,{"$f":"$D$8","v":"Harrisville"},null,{"$f":"$D$9","v":"Hinsdale"},null,{"$f":"$D$10","v":"Jaffrey"},null,{"$f":"$D$11","v":"Keene"},null,{"$f":"$D$12","v":"Marlborough"},null,{"$f":"$D$13","v":"Marlow"},null,{"$f":"$D$14","v":"Nelson"},null,{"$f":"$D$15","v":"Richmond"},null,{"$f":"$D$16","v":"Rindge"},null,{"$f":"$D$17","v":"Roxbury"},null,{"$f":"$D$18","v":"Stoddard"},null,{"$f":"$D$19","v":"Sullivan"},null,{"$f":"$D$20","v":"Surry"},null,{"$f":"$D$21","v":"Swanzey"},null,{"$f":"$D$22","v":"Troy"},null,{"$f":"$D$23","v":"Walpole"},null,{"$f":"$D$25","v":"Winchester"},null,{"$f":"#REF!","v":{"$error":"#REF!"}}]
[null,null,null,null,"Estimate","Margin of Error","Estimate","Margin of Error","Estimate","Margin of Error","Estimate","Margin of Error","Estimate","Margin of Error","Estimate","Margin of Error","Estimate","Margin of Error","Estimate","Margin of Error","Estimate","Margin of Error","Estimate","Margin of Error","Estimate","Margin of Error","Estimate","Margin of Error","Estimate","Margin of Error","Estimate","Margin of Error","Estimate","Margin of Error","Estimate","Margin of Error","Estimate","Margin of Error","Estimate","Margin of Error","Estimate","Margin of Error","Estimate","Margin of Error","Estimate","Margin of Error","Estimate","Margin of Error","Estimate","Margin of Error"]
[]
[null,null,null,"Estimate!!Median age --!!Total:",54,4.9000000000000004,45.2,5.7,51.2,5.9,51.6,7.9,44.3,7,56.6,5.7,50.9,5.5,43.8,5.7,36.1,1.5,41.7,4.3,47.7,11.9,56,7.2,55.3,7.7,35.799999999999997,3.9,39.700000000000003,11.7,49.3,4.8,45.1,6.6,44.7,5.9,51.7,4.2,39.6,4.0999999999999996,41,6.8,55.6,1.9,41,3.5]
[null,null,null,"Estimate!!Median age --!!Male",50.3,8.4,42,12.4,51.2,7.4,48.5,1.3,40.6,8.4,56.6,7.7,53.1,6.2,41.4,8.3000000000000007,34.6,2,43.6,5.4,52.8,10.1,58,8.8000000000000007,50.8,14.4,35.299999999999997,4.5999999999999996,46.8,12.1,50.2,5.9,46.3,7.5,50.6,9.1,51.6,8.3000000000000007,40.4,6.6,36.5,7.8,56.4,2,43.8,4.8]
[null,null,null,"Estimate!!Median age --!!Female",55.5,4.5999999999999996,51.8,6.6,51.2,5.8,56.6,2.7,48.5,6.6,56.6,5.6,48.9,7.3,46.5,5.2,37.5,1.9,40.6,3.9,40.1,14.1,55.4,8.9,57.1,3.5,36.9,4.3,38.5,15.3,48.3,8,43.9,7.8,37,14.5,52.1,5.5,37.9,5.8,43.3,9.1999999999999993,55.2,6.6,39.5,5.8]

{"sheet":"SData_B03002HispanLationRace","index":21,"n_rows":51,"n_cols":50,"rows_kept":51,"cut":false,"hidden":true,"merged":[]}
["GEO_ID","GEO_ID2","SUMLEVEL",{"$f":"[1]ACS_16_5YR_B03002_with_ann!C1","v":"NAME"},{"$f":"[1]ACS_16_5YR_B03002_with_ann!D1","v":"B03002_001E"},{"$f":"[1]ACS_16_5YR_B03002_with_ann!E1","v":"B03002_001M"},{"$f":"[1]ACS_16_5YR_B03002_with_ann!F1","v":"B03002_002E"},{"$f":"[1]ACS_16_5YR_B03002_with_ann!G1","v":"B03002_002M"},{"$f":"[1]ACS_16_5YR_B03002_with_ann!H1","v":"B03002_003E"},{"$f":"[1]ACS_16_5YR_B03002_with_ann!I1","v":"B03002_003M"},{"$f":"[1]ACS_16_5YR_B03002_with_ann!J1","v":"B03002_004E"},{"$f":"[1]ACS_16_5YR_B03002_with_ann!K1","v":"B03002_004M"},{"$f":"[1]ACS_16_5YR_B03002_with_ann!L1","v":"B03002_005E"},{"$f":"[1]ACS_16_5YR_B03002_with_ann!M1","v":"B03002_005M"},{"$f":"[1]ACS_16_5YR_B03002_with_ann!N1","v":"B03002_006E"},{"$f":"[1]ACS_16_5YR_B03002_with_ann!O1","v":"B03002_006M"},{"$f":"[1]ACS_16_5YR_B03002_with_ann!P1","v":"B03002_007E"},{"$f":"[1]ACS_16_5YR_B03002_with_ann!Q1","v":"B03002_007M"},{"$f":"[1]ACS_16_5YR_B03002_with_ann!R1","v":"B03002_008E"},{"$f":"[1]ACS_16_5YR_B03002_with_ann!S1","v":"B03002_008M"},{"$f":"[1]ACS_16_5YR_B03002_with_ann!T1","v":"B03002_009E"},{"$f":"[1]ACS_16_5YR_B03002_with_ann!U1","v":"B03002_009M"},{"$f":"[1]ACS_16_5YR_B03002_with_ann!V1","v":"B03002_010E"},{"$f":"[1]ACS_16_5YR_B03002_with_ann!W1","v":"B03002_010M"},{"$f":"[1]ACS_16_5YR_B03002_with_ann!X1","v":"B03002_011E"},{"$f":"[1]ACS_16_5YR_B03002_with_ann!Y1","v":"B03002_011M"},{"$f":"[1]ACS_16_5YR_B03002_with_ann!Z1","v":"B03002_012E"},{"$f":"[1]ACS_16_5YR_B03002_with_ann!AA1","v":"B03002_012M"},{"$f":"[1]ACS_16_5YR_B03002_with_ann!AB1","v":"B03002_013E"},{"$f":"[1]ACS_16_5YR_B03002_with_ann!AC1","v":"B03002_013M"},{"$f":"[1]ACS_16_5YR_B03002_with_ann!AD1","v":"B03002_014E"},{"$f":"[1]ACS_16_5YR_B03002_with_ann!AE1","v":"B03002_014M"},{"$f":"[1]ACS_16_5YR_B03002_with_ann!AF1","v":"B03002_015E"},{"$f":"[1]ACS_16_5YR_B03002_with_ann!AG1","v":"B03002_015M"},{"$f":"[1]ACS_16_5YR_B03002_with_ann!AH1","v":"B03002_016E"},{"$f":"[1]ACS_16_5YR_B03002_with_ann!AI1","v":"B03002_016M"},{"$f":"[1]ACS_16_5YR_B03002_with_ann!AJ1","v":"B03002_017E"},{"$f":"[1]ACS_16_5YR_B03002_with_ann!AK1","v":"B03002_017M"},{"$f":"[1]ACS_16_5YR_B03002_with_ann!AL1","v":"B03002_018E"},{"$f":"[1]ACS_16_5YR_B03002_with_ann!AM1","v":"B03002_018M"},{"$f":"[1]ACS_16_5YR_B03002_with_ann!AN1","v":"B03002_019E"},{"$f":"[1]ACS_16_5YR_B03002_with_ann!AO1","v":"B03002_019M"},{"$f":"[1]ACS_16_5YR_B03002_with_ann!AP1","v":"B03002_020E"},{"$f":"[1]ACS_16_5YR_B03002_with_ann!AQ1","v":"B03002_020M"},{"$f":"[1]ACS_16_5YR_B03002_with_ann!AR1","v":"B03002_021E"},{"$f":"[1]ACS_16_5YR_B03002_with_ann!AS1","v":"B03002_021M"}]
["Geography Identifier","Geography Identifier","Geographic Summary Level",{"$f":"[1]ACS_16_5YR_B03002_with_ann!C2","v":"Geographic Area Name"},{"$f":"[1]ACS_16_5YR_B03002_with_ann!D2","v":"Estimate!!Total:"},{"$f":"[1]ACS_16_5YR_B03002_with_ann!E2","v":"Margin of Error!!Total:"},{"$f":"[1]ACS_16_5YR_B03002_with_ann!F2","v":"Estimate!!Total:!!Not Hispanic or Latino:"},{"$f":"[1]ACS_16_5YR_B03002_with_ann!G2","v":"Margin of Error!!Total:!!Not Hispanic or Latino:"},{"$f":"[1]ACS_16_5YR_B03002_with_ann!H2","v":"Estimate!!Total:!!Not Hispanic or Latino:!!White alone"},{"$f":"[1]ACS_16_5YR_B03002_with_ann!I2","v":"Margin of Error!!Total:!!Not Hispanic or Latino:!!White alone"},{"$f":"[1]ACS_16_5YR_B03002_with_ann!J2","v":"Estimate!!Total:!!Not Hispanic or Latino:!!Black or African American alone"},{"$f":"[1]ACS_16_5YR_B03002_with_ann!K2","v":"Margin of Error!!Total:!!Not Hispanic or Latino:!!Black or African American alone"},{"$f":"[1]ACS_16_5YR_B03002_with_ann!L2","v":"Estimate!!Total:!!Not Hispanic or Latino:!!American Indian and Alaska Native alone"},{"$f":"[1]ACS_16_5YR_B03002_with_ann!M2","v":"Margin of Error!!Total:!!Not Hispanic or Latino:!!American Indian and Alaska Native alone"},{"$f":"[1]ACS_16_5YR_B03002_with_ann!N2","v":"Estimate!!Total:!!Not Hispanic or Latino:!!Asian alone"},{"$f":"[1]ACS_16_5YR_B03002_with_ann!O2","v":"Margin of Error!!Total:!!Not Hispanic or Latino:!!Asian alone"},{"$f":"[1]ACS_16_5YR_B03002_with_ann!P2","v":"Estimate!!Total:!!Not Hispanic or Latino:!!Native Hawaiian and Other Pacific Islander alone"},{"$f":"[1]ACS_16_5YR_B03002_with_ann!Q2","v":"Margin of Error!!Total:!!Not Hispanic or Latino:!!Native Hawaiian and Other Pacific Islander alone"},{"$f":"[1]ACS_16_5YR_B03002_with_ann!R2","v":"Estimate!!Total:!!Not Hispanic or Latino:!!Some other race alone"},{"$f":"[1]ACS_16_5YR_B03002_with_ann!S2","v":"Margin of Error!!Total:!!Not Hispanic or Latino:!!Some other race alone"},{"$f":"[1]ACS_16_5YR_B03002_with_ann!T2","v":"Estimate!!Total:!!Not Hispanic or Latino:!!Two or more races:"},{"$f":"[1]ACS_16_5YR_B03002_with_ann!U2","v":"Margin of Error!!Total:!!Not Hispanic or Latino:!!Two or more races:"},{"$f":"[1]ACS_16_5YR_B03002_with_ann!V2","v":"Estimate!!Total:!!Not Hispanic or Latino:!!Two or more races:!!Two races including Some other race"},{"$f":"[1]ACS_16_5YR_B03002_with_ann!W2","v":"Margin of Error!!Total:!!Not Hispanic or Latino:!!Two or more races:!!Two races including Some other race"},{"$f":"[1]ACS_16_5YR_B03002_with_ann!X2","v":"Estimate!!Total:!!Not Hispanic or Latino:!!Two or more races:!!Two races excluding Some other race, and three or more races"},{"$f":"[1]ACS_16_5YR_B03002_with_ann!Y2","v":"Margin of Error!!Total:!!Not Hispanic or Latino:!!Two or more races:!!Two races excluding Some other race, and three or more races"},{"$f":"[1]ACS_16_5YR_B03002_with_ann!Z2","v":"Estimate!!Total:!!Hispanic or Latino:"},{"$f":"[1]ACS_16_5YR_B03002_with_ann!AA2","v":"Margin of Error!!Total:!!Hispanic or Latino:"},{"$f":"[1]ACS_16_5YR_B03002_with_ann!AB2","v":"Estimate!!Total:!!Hispanic or Latino:!!White alone"},{"$f":"[1]ACS_16_5YR_B03002_with_ann!AC2","v":"Margin of Error!!Total:!!Hispanic or Latino:!!White alone"},{"$f":"[1]ACS_16_5YR_B03002_with_ann!AD2","v":"Estimate!!Total:!!Hispanic or Latino:!!Black or African American alone"},{"$f":"[1]ACS_16_5YR_B03002_with_ann!AE2","v":"Margin of Error!!Total:!!Hispanic or Latino:!!Black or African American alone"},{"$f":"[1]ACS_16_5YR_B03002_with_ann!AF2","v":"Estimate!!Total:!!Hispanic or Latino:!!American Indian and Alaska Native alone"},{"$f":"[1]ACS_16_5YR_B03002_with_ann!AG2","v":"Margin of Error!!Total:!!Hispanic or Latino:!!American Indian and Alaska Native alone"},{"$f":"[1]ACS_16_5YR_B03002_with_ann!AH2","v":"Estimate!!Total:!!Hispanic or Latino:!!Asian alone"},{"$f":"[1]ACS_16_5YR_B03002_with_ann!AI2","v":"Margin of Error!!Total:!!Hispanic or Latino:!!Asian alone"},{"$f":"[1]ACS_16_5YR_B03002_with_ann!AJ2","v":"Estimate!!Total:!!Hispanic or Latino:!!Native Hawaiian and Other Pacific Islander alone"},{"$f":"[1]ACS_16_5YR_B03002_with_ann!AK2","v":"Margin of Error!!Total:!!Hispanic or Latino:!!Native Hawaiian and Other Pacific Islander alone"},{"$f":"[1]ACS_16_5YR_B03002_with_ann!AL2","v":"Estimate!!Total:!!Hispanic or Latino:!!Some other race alone"},{"$f":"[1]ACS_16_5YR_B03002_with_ann!AM2","v":"Margin of Error!!Total:!!Hispanic or Latino:!!Some other race alone"},{"$f":"[1]ACS_16_5YR_B03002_with_ann!AN2","v":"Estimate!!Total:!!Hispanic or Latino:!!Two or more races:"},{"$f":"[1]ACS_16_5YR_B03002_with_ann!AO2","v":"Margin of Error!!Total:!!Hispanic or Latino:!!Two or more races:"},{"$f":"[1]ACS_16_5YR_B03002_with_ann!AP2","v":"Estimate!!Total:!!Hispanic or Latino:!!Two or more races:!!Two races including Some other race"},{"$f":"[1]ACS_16_5YR_B03002_with_ann!AQ2","v":"Margin of Error!!Total:!!Hispanic or Latino:!!Two or more races:!!Two races including Some other race"},{"$f":"[1]ACS_16_5YR_B03002_with_ann!AR2","v":"Estimate!!Total:!!Hispanic or Latino:!!Two or more races:!!Two races excluding Some other race, and three or more races"},{"$f":"[1]ACS_16_5YR_B03002_with_ann!AS2","v":"Margin of Error!!Total:!!Hispanic or Latino:!!Two or more races:!!Two races excluding Some other race, and three or more races"}]
["0600000US3300500820","0600000US3300500820","060",{"$f":"[1]ACS_16_5YR_B03002_with_ann!C44","v":"Alstead"},{"$f":"[1]ACS_16_5YR_B03002_with_ann!D44","v":1599},{"$f":"[1]ACS_16_5YR_B03002_with_ann!E44","v":169},{"$f":"[1]ACS_16_5YR_B03002_with_ann!F44","v":1566},{"$f":"[1]ACS_16_5YR_B03002_with_ann!G44","v":170},{"$f":"[1]ACS_16_5YR_B03002_with_ann!H44","v":1523},{"$f":"[1]ACS_16_5YR_B03002_with_ann!I44","v":174},{"$f":"[1]ACS_16_5YR_B03002_with_ann!J44","v":0},{"$f":"[1]ACS_16_5YR_B03002_with_ann!K44","v":12},{"$f":"[1]ACS_16_5YR_B03002_with_ann!L44","v":1},{"$f":"[1]ACS_16_5YR_B03002_with_ann!M44","v":3},{"$f":"[1]ACS_16_5YR_B03002_with_ann!N44","v":19},{"$f":"[1]ACS_16_5YR_B03002_with_ann!O44","v":19},{"$f":"[1]ACS_16_5YR_B03002_with_ann!P44","v":0},{"$f":"[1]ACS_16_5YR_B03002_with_ann!Q44","v":12},{"$f":"[1]ACS_16_5YR_B03002_with_ann!R44","v":0},{"$f":"[1]ACS_16_5YR_B03002_with_ann!S44","v":12},{"$f":"[1]ACS_16_5YR_B03002_with_ann!T44","v":23},{"$f":"[1]ACS_16_5YR_B03002_with_ann!U44","v":23},{"$f":"[1]ACS_16_5YR_B03002_with_ann!V44","v":13},{"$f":"[1]ACS_16_5YR_B03002_with_ann!W44","v":19},{"$f":"[1]ACS_16_5YR_B03002_with_ann!X44","v":10},{"$f":"[1]ACS_16_5YR_B03002_with_ann!Y44","v":13},{"$f":"[1]ACS_16_5YR_B03002_with_ann!Z44","v":33},{"$f":"[1]ACS_16_5YR_B03002_with_ann!AA44","v":37},{"$f":"[1]ACS_16_5YR_B03002_with_ann!AB44","v":0},{"$f":"[1]ACS_16_5YR_B03002_with_ann!AC44","v":12},{"$f":"[1]ACS_16_5YR_B03002_with_ann!AD44","v":0},{"$f":"[1]ACS_16_5YR_B03002_with_ann!AE44","v":12},{"$f":"[1]ACS_16_5YR_B03002_with_ann!AF44","v":0},{"$f":"[1]ACS_16_5YR_B03002_with_ann!AG44","v":12},{"$f":"[1]ACS_16_5YR_B03002_with_ann!AH44","v":0},{"$f":"[1]ACS_16_5YR_B03002_with_ann!AI44","v":12},{"$f":"[1]ACS_16_5YR_B03002_with_ann!AJ44","v":0},{"$f":"[1]ACS_16_5YR_B03002_with_ann!AK44","v":12},{"$f":"[1]ACS_16_5YR_B03002_with_ann!AL44","v":15},{"$f":"[1]ACS_16_5YR_B03002_with_ann!AM44","v":23},{"$f":"[1]ACS_16_5YR_B03002_with_ann!AN44","v":18},{"$f":"[1]ACS_16_5YR_B03002_with_ann!AO44","v":26},{"$f":"[1]ACS_16_5YR_B03002_with_ann!AP44","v":18},{"$f":"[1]ACS_16_5YR_B03002_with_ann!AQ44","v":26},{"$f":"[1]ACS_16_5YR_B03002_with_ann!AR44","v":0},{"$f":"[1]ACS_16_5YR_B03002_with_ann!AS44","v":12}]
["0600000US3300512260","0600000US3300512260","060",{"$f":"[1]ACS_16_5YR_B03002_with_ann!C45","v":"Chesterfield"},{"$f":"[1]ACS_16_5YR_B03002_with_ann!D45","v":3577},{"$f":"[1]ACS_16_5YR_B03002_with_ann!E45","v":15},{"$f":"[1]ACS_16_5YR_B03002_with_ann!F45","v":3577},{"$f":"[1]ACS_16_5YR_B03002_with_ann!G45","v":15},{"$f":"[1]ACS_16_5YR_B03002_with_ann!H45","v":3427},{"$f":"[1]ACS_16_5YR_B03002_with_ann!I45","v":112},{"$f":"[1]ACS_16_5YR_B03002_with_ann!J45","v":9},{"$f":"[1]ACS_16_5YR_B03002_with_ann!K45","v":20},{"$f":"[1]ACS_16_5YR_B03002_with_ann!L45","v":0},{"$f":"[1]ACS_16_5YR_B03002_with_ann!M45","v":12},{"$f":"[1]ACS_16_5YR_B03002_with_ann!N45","v":79},{"$f":"[1]ACS_16_5YR_B03002_with_ann!O45","v":92},{"$f":"[1]ACS_16_5YR_B03002_with_ann!P45","v":0},{"$f":"[1]ACS_16_5YR_B03002_with_ann!Q45","v":12},{"$f":"[1]ACS_16_5YR_B03002_with_ann!R45","v":0},{"$f":"[1]ACS_16_5YR_B03002_with_ann!S45","v":12},{"$f":"[1]ACS_16_5YR_B03002_with_ann!T45","v":62},{"$f":"[1]ACS_16_5YR_B03002_with_ann!U45","v":62},{"$f":"[1]ACS_16_5YR_B03002_with_ann!V45","v":0},{"$f":"[1]ACS_16_5YR_B03002_with_ann!W45","v":12},{"$f":"[1]ACS_16_5YR_B03002_with_ann!X45","v":62},{"$f":"[1]ACS_16_5YR_B03002_with_ann!Y45","v":62},{"$f":"[1]ACS_16_5YR_B03002_with_ann!Z45","v":0},{"$f":"[1]ACS_16_5YR_B03002_with_ann!AA45","v":12},{"$f":"[1]ACS_16_5YR_B03002_with_ann!AB45","v":0},{"$f":"[1]ACS_16_5YR_B03002_with_ann!AC45","v":12},{"$f":"[1]ACS_16_5YR_B03002_with_ann!AD45","v":0},{"$f":"[1]ACS_16_5YR_B03002_with_ann!AE45","v":12},{"$f":"[1]ACS_16_5YR_B03002_with_ann!AF45","v":0},{"$f":"[1]ACS_16_5YR_B03002_with_ann!AG45","v":12},{"$f":"[1]ACS_16_5YR_B03002_with_ann!AH45","v":0},{"$f":"[1]ACS_16_5YR_B03002_with_ann!AI45","v":12},{"$f":"[1]ACS_16_5YR_B03002_with_ann!AJ45","v":0},{"$f":"[1]ACS_16_5YR_B03002_with_ann!AK45","v":12},{"$f":"[1]ACS_16_5YR_B03002_with_ann!AL45","v":0},{"$f":"[1]ACS_16_5YR_B03002_with_ann!AM45","v":12},{"$f":"[1]ACS_16_5YR_B03002_with_ann!AN45","v":0},{"$f":"[1]ACS_16_5YR_B03002_with_ann!AO45","v":12},{"$f":"[1]ACS_16_5YR_B03002_with_ann!AP45","v":0},{"$f":"[1]ACS_16_5YR_B03002_with_ann!AQ45","v":12},{"$f":"[1]ACS_16_5YR_B03002_with_ann!AR45","v":0},{"$f":"[1]ACS_16_5YR_B03002_with_ann!AS45","v":12}]
["0600000US3300519140","0600000US3300519140","060",{"$f":"[1]ACS_16_5YR_B03002_with_ann!C46","v":"Dublin"},{"$f":"[1]ACS_16_5YR_B03002_with_ann!D46","v":1711},{"$f":"[1]ACS_16_5YR_B03002_with_ann!E46","v":216},{"$f":"[1]ACS_16_5YR_B03002_with_ann!F46","v":1689},{"$f":"[1]ACS_16_5YR_B03002_with_ann!G46","v":212},{"$f":"[1]ACS_16_5YR_B03002_with_ann!H46","v":1602},{"$f":"[1]ACS_16_5YR_B03002_with_ann!I46","v":229},{"$f":"[1]ACS_16_5YR_B03002_with_ann!J46","v":7},{"$f":"[1]ACS_16_5YR_B03002_with_ann!K46","v":9},{"$f":"[1]ACS_16_5YR_B03002_with_ann!L46","v":2},{"$f":"[1]ACS_16_5YR_B03002_with_ann!M46","v":3},{"$f":"[1]ACS_16_5YR_B03002_with_ann!N46","v":25},{"$f":"[1]ACS_16_5YR_B03002_with_ann!O46","v":22},{"$f":"[1]ACS_16_5YR_B03002_with_ann!P46","v":0},{"$f":"[1]ACS_16_5YR_B03002_with_ann!Q46","v":12},{"$f":"[1]ACS_16_5YR_B03002_with_ann!R46","v":3},{"$f":"[1]ACS_16_5YR_B03002_with_ann!S46","v":4},{"$f":"[1]ACS_16_5YR_B03002_with_ann!T46","v":50},{"$f":"[1]ACS_16_5YR_B03002_with_ann!U46","v":45},{"$f":"[1]ACS_16_5YR_B03002_with_ann!V46","v":28},{"$f":"[1]ACS_16_5YR_B03002_with_ann!W46","v":39},{"$f":"[1]ACS_16_5YR_B03002_with_ann!X46","v":22},{"$f":"[1]ACS_16_5YR_B03002_with_ann!Y46","v":24},{"$f":"[1]ACS_16_5YR_B03002_with_ann!Z46","v":22},{"$f":"[1]ACS_16_5YR_B03002_with_ann!AA46","v":22},{"$f":"[1]ACS_16_5YR_B03002_with_ann!AB46","v":11},{"$f":"[1]ACS_16_5YR_B03002_with_ann!AC46","v":18},{"$f":"[1]ACS_16_5YR_B03002_with_ann!AD46","v":0},{"$f":"[1]ACS_16_5YR_B03002_with_ann!AE46","v":12},{"$f":"[1]ACS_16_5YR_B03002_with_ann!AF46","v":0},{"$f":"[1]ACS_16_5YR_B03002_with_ann!AG46","v":12},{"$f":"[1]ACS_16_5YR_B03002_with_ann!AH46","v":0},{"$f":"[1]ACS_16_5YR_B03002_with_ann!AI46","v":12},{"$f":"[1]ACS_16_5YR_B03002_with_ann!AJ46","v":0},{"$f":"[1]ACS_16_5YR_B03002_with_ann!AK46","v":12},{"$f":"[1]ACS_16_5YR_B03002_with_ann!AL46","v":0},{"$f":"[1]ACS_16_5YR_B03002_with_ann!AM46","v":12},{"$f":"[1]ACS_16_5YR_B03002_with_ann!AN46","v":11},{"$f":"[1]ACS_16_5YR_B03002_with_ann!AO46","v":11},{"$f":"[1]ACS_16_5YR_B03002_with_ann!AP46","v":11},{"$f":"[1]ACS_16_5YR_B03002_with_ann!AQ46","v":11},{"$f":"[1]ACS_16_5YR_B03002_with_ann!AR46","v":0},{"$f":"[1]ACS_16_5YR_B03002_with_ann!AS46","v":12}]
["0600000US3300526500","0600000US3300526500","060",{"$f":"[1]ACS_16_5YR_B03002_with_ann!C47","v":"Fitzwilliam"},{"$f":"[1]ACS_16_5YR_B03002_with_ann!D47","v":2287},{"$f":"[1]ACS_16_5YR_B03002_with_ann!E47","v":368},{"$f":"[1]ACS_16_5YR_B03002_with_ann!F47","v":2248},{"$f":"[1]ACS_16_5YR_B03002_with_ann!G47","v":375},{"$f":"[1]ACS_16_5YR_B03002_with_ann!H47","v":2186},{"$f":"[1]ACS_16_5YR_B03002_with_ann!I47","v":368},{"$f":"[1]ACS_16_5YR_B03002_with_ann!J47","v":0},{"$f":"[1]ACS_16_5YR_B03002_with_ann!K47","v":12},{"$f":"[1]ACS_16_5YR_B03002_with_ann!L47","v":0},{"$f":"[1]ACS_16_5YR_B03002_with_ann!M47","v":12},{"$f":"[1]ACS_16_5YR_B03002_with_ann!N47","v":13},{"$f":"[1]ACS_16_5YR_B03002_with_ann!O47","v":39},{"$f":"[1]ACS_16_5YR_B03002_with_ann!P47","v":0},{"$f":"[1]ACS_16_5YR_B03002_with_ann!Q47","v":12},{"$f":"[1]ACS_16_5YR_B03002_with_ann!R47","v":3},{"$f":"[1]ACS_16_5YR_B03002_with_ann!S47","v":5},{"$f":"[1]ACS_16_5YR_B03002_with_ann!T47","v":46},{"$f":"[1]ACS_16_5YR_B03002_with_ann!U47","v":35},{"$f":"[1]ACS_16_5YR_B03002_with_ann!V47","v":25},{"$f":"[1]ACS_16_5YR_B03002_with_ann!W47","v":28},{"$f":"[1]ACS_16_5YR_B03002_with_ann!X47","v":21},{"$f":"[1]ACS_16_5YR_B03002_with_ann!Y47","v":21},{"$f":"[1]ACS_16_5YR_B03002_with_ann!Z47","v":39},{"$f":"[1]ACS_16_5YR_B03002_with_ann!AA47","v":51},{"$f":"[1]ACS_16_5YR_B03002_with_ann!AB47","v":21},{"$f":"[1]ACS_16_5YR_B03002_with_ann!AC47","v":39},{"$f":"[1]ACS_16_5YR_B03002_with_ann!AD47","v":0},{"$f":"[1]ACS_16_5YR_B03002_with_ann!AE47","v":12},{"$f":"[1]ACS_16_5YR_B03002_with_ann!AF47","v":0},{"$f":"[1]ACS_16_5YR_B03002_with_ann!AG47","v":12},{"$f":"[1]ACS_16_5YR_B03002_with_ann!AH47","v":0},{"$f":"[1]ACS_16_5YR_B03002_with_ann!AI47","v":12},{"$f":"[1]ACS_16_5YR_B03002_with_ann!AJ47","v":0},{"$f":"[1]ACS_16_5YR_B03002_with_ann!AK47","v":12},{"$f":"[1]ACS_16_5YR_B03002_with_ann!AL47","v":0},{"$f":"[1]ACS_16_5YR_B03002_with_ann!AM47","v":12},{"$f":"[1]ACS_16_5YR_B03002_with_ann!AN47","v":18},{"$f":"[1]ACS_16_5YR_B03002_with_ann!AO47","v":32},{"$f":"[1]ACS_16_5YR_B03002_with_ann!AP47","v":0},{"$f":"[1]ACS_16_5YR_B03002_with_ann!AQ47","v":12},{"$f":"[1]ACS_16_5YR_B03002_with_ann!AR47","v":18},{"$f":"[1]ACS_16_5YR_B03002_with_ann!AS47","v":32}]
["0600000US3300529220","0600000US3300529220","060",{"$f":"[1]ACS_16_5YR_B03002_with_ann!C48","v":"Gilsum"},{"$f":"[1]ACS_16_5YR_B03002_with_ann!D48","v":871},{"$f":"[1]ACS_16_5YR_B03002_with_ann!E48","v":144},{"$f":"[1]ACS_16_5YR_B03002_with_ann!F48","v":806},{"$f":"[1]ACS_16_5YR_B03002_with_ann!G48","v":152},{"$f":"[1]ACS_16_5YR_B03002_with_ann!H48","v":800},{"$f":"[1]ACS_16_5YR_B03002_with_ann!I48","v":150},{"$f":"[1]ACS_16_5YR_B03002_with_ann!J48","v":0},{"$f":"[1]ACS_16_5YR_B03002_with_ann!K48","v":12},{"$f":"[1]ACS_16_5YR_B03002_with_ann!L48","v":5},{"$f":"[1]ACS_16_5YR_B03002_with_ann!M48","v":8},{"$f":"[1]ACS_16_5YR_B03002_with_ann!N48","v":0},{"$f":"[1]ACS_16_5YR_B03002_with_ann!O48","v":12},{"$f":"[1]ACS_16_5YR_B03002_with_ann!P48","v":0},{"$f":"[1]ACS_16_5YR_B03002_with_ann!Q48","v":12},{"$f":"[1]ACS_16_5YR_B03002_with_ann!R48","v":0},{"$f":"[1]ACS_16_5YR_B03002_with_ann!S48","v":12},{"$f":"[1]ACS_16_5YR_B03002_with_ann!T48","v":1},{"$f":"[1]ACS_16_5YR_B03002_with_ann!U48","v":2},{"$f":"[1]ACS_16_5YR_B03002_with_ann!V48","v":0},{"$f":"[1]ACS_16_5YR_B03002_with_ann!W48","v":12},{"$f":"[1]ACS_16_5YR_B03002_with_ann!X48","v":1},{"$f":"[1]ACS_16_5YR_B03002_with_ann!Y48","v":2},{"$f":"[1]ACS_16_5YR_B03002_with_ann!Z48","v":65},{"$f":"[1]ACS_16_5YR_B03002_with_ann!AA48","v":81},{"$f":"[1]ACS_16_5YR_B03002_with_ann!AB48","v":55},{"$f":"[1]ACS_16_5YR_B03002_with_ann!AC48","v":79},{"$f":"[1]ACS_16_5YR_B03002_with_ann!AD48","v":0},{"$f":"[1]ACS_16_5YR_B03002_with_ann!AE48","v":12},{"$f":"[1]ACS_16_5YR_B03002_with_ann!AF48","v":0},{"$f":"[1]ACS_16_5YR_B03002_with_ann!AG48","v":12},{"$f":"[1]ACS_16_5YR_B03002_with_ann!AH48","v":0},{"$f":"[1]ACS_16_5YR_B03002_with_ann!AI48","v":12},{"$f":"[1]ACS_16_5YR_B03002_with_ann!AJ48","v":0},{"$f":"[1]ACS_16_5YR_B03002_with_ann!AK48","v":12},{"$f":"[1]ACS_16_5YR_B03002_with_ann!AL48","v":10},{"$f":"[1]ACS_16_5YR_B03002_with_ann!AM48","v":14},{"$f":"[1]ACS_16_5YR_B03002_with_ann!AN48","v":0},{"$f":"[1]ACS_16_5YR_B03002_with_ann!AO48","v":12},{"$f":"[1]ACS_16_5YR_B03002_with_ann!AP48","v":0},{"$f":"[1]ACS_16_5YR_B03002_with_ann!AQ48","v":12},{"$f":"[1]ACS_16_5YR_B03002_with_ann!AR48","v":0},{"$f":"[1]ACS_16_5YR_B03002_with_ann!AS48","v":12}]
["0600000US3300534420","0600000US3300534420","060",{"$f":"[1]ACS_16_5YR_B03002_with_ann!C49","v":"Harrisville"},{"$f":"[1]ACS_16_5YR_B03002_with_ann!D49","v":977},{"$f":"[1]ACS_16_5YR_B03002_with_ann!E49","v":197},{"$f":"[1]ACS_16_5YR_B03002_with_ann!F49","v":954},{"$f":"[1]ACS_16_5YR_B03002_with_ann!G49","v":192},{"$f":"[1]ACS_16_5YR_B03002_with_ann!H49","v":893},{"$f":"[1]ACS_16_5YR_B03002_with_ann!I49","v":187},{"$f":"[1]ACS_16_5YR_B03002_with_ann!J49","v":17},{"$f":"[1]ACS_16_5YR_B03002_with_ann!K49","v":29},{"$f":"[1]ACS_16_5YR_B03002_with_ann!L49","v":5},{"$f":"[1]ACS_16_5YR_B03002_with_ann!M49","v":6},{"$f":"[1]ACS_16_5YR_B03002_with_ann!N49","v":12},{"$f":"[1]ACS_16_5YR_B03002_with_ann!O49","v":17},{"$f":"[1]ACS_16_5YR_B03002_with_ann!P49","v":0},{"$f":"[1]ACS_16_5YR_B03002_with_ann!Q49","v":12},{"$f":"[1]ACS_16_5YR_B03002_with_ann!R49","v":0},{"$f":"[1]ACS_16_5YR_B03002_with_ann!S49","v":12},{"$f":"[1]ACS_16_5YR_B03002_with_ann!T49","v":27},{"$f":"[1]ACS_16_5YR_B03002_with_ann!U49","v":24},{"$f":"[1]ACS_16_5YR_B03002_with_ann!V49","v":0},{"$f":"[1]ACS_16_5YR_B03002_with_ann!W49","v":12},{"$f":"[1]ACS_16_5YR_B03002_with_ann!X49","v":27},{"$f":"[1]ACS_16_5YR_B03002_with_ann!Y49","v":24},{"$f":"[1]ACS_16_5YR_B03002_with_ann!Z49","v":23},{"$f":"[1]ACS_16_5YR_B03002_with_ann!AA49","v":27},{"$f":"[1]ACS_16_5YR_B03002_with_ann!AB49","v":19},{"$f":"[1]ACS_16_5YR_B03002_with_ann!AC49","v":22},{"$f":"[1]ACS_16_5YR_B03002_with_ann!AD49","v":0},{"$f":"[1]ACS_16_5YR_B03002_with_ann!AE49","v":12},{"$f":"[1]ACS_16_5YR_B03002_with_ann!AF49","v":4},{"$f":"[1]ACS_16_5YR_B03002_with_ann!AG49","v":6},{"$f":"[1]ACS_16_5YR_B03002_with_ann!AH49","v":0},{"$f":"[1]ACS_16_5YR_B03002_with_ann!AI49","v":12},{"$f":"[1]ACS_16_5YR_B03002_with_ann!AJ49","v":0},{"$f":"[1]ACS_16_5YR_B03002_with_ann!AK49","v":12},{"$f":"[1]ACS_16_5YR_B03002_with_ann!AL49","v":0},{"$f":"[1]ACS_16_5YR_B03002_with_ann!AM49","v":12},{"$f":"[1]ACS_16_5YR_B03002_with_ann!AN49","v":0},{"$f":"[1]ACS_16_5YR_B03002_with_ann!AO49","v":12},{"$f":"[1]ACS_16_5YR_B03002_with_ann!AP49","v":0},{"$f":"[1]ACS_16_5YR_B03002_with_ann!AQ49","v":12},{"$f":"[1]ACS_16_5YR_B03002_with_ann!AR49","v":0},{"$f":"[1]ACS_16_5YR_B03002_with_ann!AS49","v":12}]
["0600000US3300536660","0600000US3300536660","060",{"$f":"[1]ACS_16_5YR_B03002_with_ann!C50","v":"Hinsdale"},{"$f":"[1]ACS_16_5YR_B03002_with_ann!D50","v":3965},{"$f":"[1]ACS_16_5YR_B03002_with_ann!E50","v":16},{"$f":"[1]ACS_16_5YR_B03002_with_ann!F50","v":3939},{"$f":"[1]ACS_16_5YR_B03002_with_ann!G50","v":45},{"$f":"[1]ACS_16_5YR_B03002_with_ann!H50","v":3827},{"$f":"[1]ACS_16_5YR_B03002_with_ann!I50","v":106},{"$f":"[1]ACS_16_5YR_B03002_with_ann!J50","v":0},{"$f":"[1]ACS_16_5YR_B03002_with_ann!K50","v":12},{"$f":"[1]ACS_16_5YR_B03002_with_ann!L50","v":0},{"$f":"[1]ACS_16_5YR_B03002_with_ann!M50","v":12},{"$f":"[1]ACS_16_5YR_B03002_with_ann!N50","v":0},{"$f":"[1]ACS_16_5YR_B03002_with_ann!O50","v":12},{"$f":"[1]ACS_16_5YR_B03002_with_ann!P50","v":7},{"$f":"[1]ACS_16_5YR_B03002_with_ann!Q50","v":8},{"$f":"[1]ACS_16_5YR_B03002_with_ann!R50","v":0},{"$f":"[1]ACS_16_5YR_B03002_with_ann!S50","v":12},{"$f":"[1]ACS_16_5YR_B03002_with_ann!T50","v":105},{"$f":"[1]ACS_16_5YR_B03002_with_ann!U50","v":102},{"$f":"[1]ACS_16_5YR_B03002_with_ann!V50","v":0},{"$f":"[1]ACS_16_5YR_B03002_with_ann!W50","v":12},{"$f":"[1]ACS_16_5YR_B03002_with_ann!X50","v":105},{"$f":"[1]ACS_16_5YR_B03002_with_ann!Y50","v":102},{"$f":"[1]ACS_16_5YR_B03002_with_ann!Z50","v":26},{"$f":"[1]ACS_16_5YR_B03002_with_ann!AA50","v":40},{"$f":"[1]ACS_16_5YR_B03002_with_ann!AB50","v":0},{"$f":"[1]ACS_16_5YR_B03002_with_ann!AC50","v":12},{"$f":"[1]ACS_16_5YR_B03002_with_ann!AD50","v":0},{"$f":"[1]ACS_16_5YR_B03002_with_ann!AE50","v":12},{"$f":"[1]ACS_16_5YR_B03002_with_ann!AF50","v":0},{"$f":"[1]ACS_16_5YR_B03002_with_ann!AG50","v":12},{"$f":"[1]ACS_16_5YR_B03002_with_ann!AH50","v":0},{"$f":"[1]ACS_16_5YR_B03002_with_ann!AI50","v":12},{"$f":"[1]ACS_16_5YR_B03002_with_ann!AJ50","v":0},{"$f":"[1]ACS_16_5YR_B03002_with_ann!AK50","v":12},{"$f":"[1]ACS_16_5YR_B03002_with_ann!AL50","v":26},{"$f":"[1]ACS_16_5YR_B03002_with_ann!AM50","v":40},{"$f":"[1]ACS_16_5YR_B03002_with_ann!AN50","v":0},{"$f":"[1]ACS_16_5YR_B03002_with_ann!AO50","v":12},{"$f":"[1]ACS_16_5YR_B03002_with_ann!AP50","v":0},{"$f":"[1]ACS_16_5YR_B03002_with_ann!AQ50","v":12},{"$f":"[1]ACS_16_5YR_B03002_with_ann!AR50","v":0},{"$f":"[1]ACS_16_5YR_B03002_with_ann!AS50","v":12}]
["0600000US3300538500","0600000US3300538500","060",{"$f":"[1]ACS_16_5YR_B03002_with_ann!C51","v":"Jaffrey"},{"$f":"[1]ACS_16_5YR_B03002_with_ann!D51","v":5363},{"$f":"[1]ACS_16_5YR_B03002_with_ann!E51","v":32},{"$f":"[1]ACS_16_5YR_B03002_with_ann!F51","v":5316},{"$f":"[1]ACS_16_5YR_B03002_with_ann!G51","v":86},{"$f":"[1]ACS_16_5YR_B03002_with_ann!H51","v":4971},{"$f":"[1]ACS_16_5YR_B03002_with_ann!I51","v":235},{"$f":"[1]ACS_16_5YR_B03002_with_ann!J51","v":30},{"$f":"[1]ACS_16_5YR_B03002_with_ann!K51","v":44},{"$f":"[1]ACS_16_5YR_B03002_with_ann!L51","v":0},{"$f":"[1]ACS_16_5YR_B03002_with_ann!M51","v":17},{"$f":"[1]ACS_16_5YR_B03002_with_ann!N51","v":53},{"$f":"[1]ACS_16_5YR_B03002_with_ann!O51","v":64},{"$f":"[1]ACS_16_5YR_B03002_with_ann!P51","v":0},{"$f":"[1]ACS_16_5YR_B03002_with_ann!Q51","v":17},{"$f":"[1]ACS_16_5YR_B03002_with_ann!R51","v":0},{"$f":"[1]ACS_16_5YR_B03002_with_ann!S51","v":17},{"$f":"[1]ACS_16_5YR_B03002_with_ann!T51","v":262},{"$f":"[1]ACS_16_5YR_B03002_with_ann!U51","v":162},{"$f":"[1]ACS_16_5YR_B03002_with_ann!V51","v":0},{"$f":"[1]ACS_16_5YR_B03002_with_ann!W51","v":17},{"$f":"[1]ACS_16_5YR_B03002_with_ann!X51","v":262},{"$f":"[1]ACS_16_5YR_B03002_with_ann!Y51","v":162},{"$f":"[1]ACS_16_5YR_B03002_with_ann!Z51","v":47},{"$f":"[1]ACS_16_5YR_B03002_with_ann!AA51","v":81},{"$f":"[1]ACS_16_5YR_B03002_with_ann!AB51","v":0},{"$f":"[1]ACS_16_5YR_B03002_with_ann!AC51","v":17},{"$f":"[1]ACS_16_5YR_B03002_with_ann!AD51","v":31},{"$f":"[1]ACS_16_5YR_B03002_with_ann!AE51","v":56},{"$f":"[1]ACS_16_5YR_B03002_with_ann!AF51","v":0},{"$f":"[1]ACS_16_5YR_B03002_with_ann!AG51","v":17},{"$f":"[1]ACS_16_5YR_B03002_with_ann!AH51","v":0},{"$f":"[1]ACS_16_5YR_B03002_with_ann!AI51","v":17},{"$f":"[1]ACS_16_5YR_B03002_with_ann!AJ51","v":0},{"$f":"[1]ACS_16_5YR_B03002_with_ann!AK51","v":17},{"$f":"[1]ACS_16_5YR_B03002_with_ann!AL51","v":16},{"$f":"[1]ACS_16_5YR_B03002_with_ann!AM51","v":28},{"$f":"[1]ACS_16_5YR_B03002_with_ann!AN51","v":0},{"$f":"[1]ACS_16_5YR_B03002_with_ann!AO51","v":17},{"$f":"[1]ACS_16_5YR_B03002_with_ann!AP51","v":0},{"$f":"[1]ACS_16_5YR_B03002_with_ann!AQ51","v":17},{"$f":"[1]ACS_16_5YR_B03002_with_ann!AR51","v":0},{"$f":"[1]ACS_16_5YR_B03002_with_ann!AS51","v":17}]
["0600000US3300539300","0600000US3300539300","060",{"$f":"[1]ACS_16_5YR_B03002_with_ann!C52","v":"Keene"},{"$f":"[1]ACS_16_5YR_B03002_with_ann!D52","v":22907},{"$f":"[1]ACS_16_5YR_B03002_with_ann!E52","v":27},{"$f":"[1]ACS_16_5YR_B03002_with_ann!F52","v":22383},{"$f":"[1]ACS_16_5YR_B03002_with_ann!G52","v":183},{"$f":"[1]ACS_16_5YR_B03002_with_ann!H52","v":21127},{"$f":"[1]ACS_16_5YR_B03002_with_ann!I52","v":330},{"$f":"[1]ACS_16_5YR_B03002_with_ann!J52","v":233},{"$f":"[1]ACS_16_5YR_B03002_with_ann!K52","v":108},{"$f":"[1]ACS_16_5YR_B03002_with_ann!L52","v":22},{"$f":"[1]ACS_16_5YR_B03002_with_ann!M52","v":27},{"$f":"[1]ACS_16_5YR_B03002_with_ann!N52","v":148},{"$f":"[1]ACS_16_5YR_B03002_with_ann!O52","v":132},{"$f":"[1]ACS_16_5YR_B03002_with_ann!P52","v":7},{"$f":"[1]ACS_16_5YR_B03002_with_ann!Q52","v":15},{"$f":"[1]ACS_16_5YR_B03002_with_ann!R52","v":66},{"$f":"[1]ACS_16_5YR_B03002_with_ann!S52","v":111},{"$f":"[1]ACS_16_5YR_B03002_with_ann!T52","v":780},{"$f":"[1]ACS_16_5YR_B03002_with_ann!U52","v":247},{"$f":"[1]ACS_16_5YR_B03002_with_ann!V52","v":101},{"$f":"[1]ACS_16_5YR_B03002_with_ann!W52","v":70},{"$f":"[1]ACS_16_5YR_B03002_with_ann!X52","v":679},{"$f":"[1]ACS_16_5YR_B03002_with_ann!Y52","v":249},{"$f":"[1]ACS_16_5YR_B03002_with_ann!Z52","v":524},{"$f":"[1]ACS_16_5YR_B03002_with_ann!AA52","v":186},{"$f":"[1]ACS_16_5YR_B03002_with_ann!AB52","v":153},{"$f":"[1]ACS_16_5YR_B03002_with_ann!AC52","v":88},{"$f":"[1]ACS_16_5YR_B03002_with_ann!AD52","v":7},{"$f":"[1]ACS_16_5YR_B03002_with_ann!AE52","v":7},{"$f":"[1]ACS_16_5YR_B03002_with_ann!AF52","v":0},{"$f":"[1]ACS_16_5YR_B03002_with_ann!AG52","v":22},{"$f":"[1]ACS_16_5YR_B03002_with_ann!AH52","v":0},{"$f":"[1]ACS_16_5YR_B03002_with_ann!AI52","v":22},{"$f":"[1]ACS_16_5YR_B03002_with_ann!AJ52","v":0},{"$f":"[1]ACS_16_5YR_B03002_with_ann!AK52","v":22},{"$f":"[1]ACS_16_5YR_B03002_with_ann!AL52","v":65},{"$f":"[1]ACS_16_5YR_B03002_with_ann!AM52","v":52},{"$f":"[1]ACS_16_5YR_B03002_with_ann!AN52","v":299},{"$f":"[1]ACS_16_5YR_B03002_with_ann!AO52","v":128},{"$f":"[1]ACS_16_5YR_B03002_with_ann!AP52","v":233},{"$f":"[1]ACS_16_5YR_B03002_with_ann!AQ52","v":114},{"$f":"[1]ACS_16_5YR_B03002_with_ann!AR52","v":66},{"$f":"[1]ACS_16_5YR_B03002_with_ann!AS52","v":82}]
["0600000US3300545460","0600000US3300545460","060",{"$f":"[1]ACS_16_5YR_B03002_with_ann!C53","v":"Marlborough"},{"$f":"[1]ACS_16_5YR_B03002_with_ann!D53","v":2253},{"$f":"[1]ACS_16_5YR_B03002_with_ann!E53","v":391},{"$f":"[1]ACS_16_5YR_B03002_with_ann!F53","v":2252},{"$f":"[1]ACS_16_5YR_B03002_with_ann!G53","v":390},{"$f":"[1]ACS_16_5YR_B03002_with_ann!H53","v":2180},{"$f":"[1]ACS_16_5YR_B03002_with_ann!I53","v":392},{"$f":"[1]ACS_16_5YR_B03002_with_ann!J53","v":0},{"$f":"[1]ACS_16_5YR_B03002_with_ann!K53","v":12},{"$f":"[1]ACS_16_5YR_B03002_with_ann!L53","v":10},{"$f":"[1]ACS_16_5YR_B03002_with_ann!M53","v":17},{"$f":"[1]ACS_16_5YR_B03002_with_ann!N53","v":1},{"$f":"[1]ACS_16_5YR_B03002_with_ann!O53","v":2},{"$f":"[1]ACS_16_5YR_B03002_with_ann!P53","v":0},{"$f":"[1]ACS_16_5YR_B03002_with_ann!Q53","v":12},{"$f":"[1]ACS_16_5YR_B03002_with_ann!R53","v":0},{"$f":"[1]ACS_16_5YR_B03002_with_ann!S53","v":12},{"$f":"[1]ACS_16_5YR_B03002_with_ann!T53","v":61},{"$f":"[1]ACS_16_5YR_B03002_with_ann!U53","v":45},{"$f":"[1]ACS_16_5YR_B03002_with_ann!V53","v":17},{"$f":"[1]ACS_16_5YR_B03002_with_ann!W53","v":20},{"$f":"[1]ACS_16_5YR_B03002_with_ann!X53","v":44},{"$f":"[1]ACS_16_5YR_B03002_with_ann!Y53","v":40},{"$f":"[1]ACS_16_5YR_B03002_with_ann!Z53","v":1},{"$f":"[1]ACS_16_5YR_B03002_with_ann!AA53","v":5},{"$f":"[1]ACS_16_5YR_B03002_with_ann!AB53","v":0},{"$f":"[1]ACS_16_5YR_B03002_with_ann!AC53","v":12},{"$f":"[1]ACS_16_5YR_B03002_with_ann!AD53","v":0},{"$f":"[1]ACS_16_5YR_B03002_with_ann!AE53","v":12},{"$f":"[1]ACS_16_5YR_B03002_with_ann!AF53","v":0},{"$f":"[1]ACS_16_5YR_B03002_with_ann!AG53","v":12},{"$f":"[1]ACS_16_5YR_B03002_with_ann!AH53","v":0},{"$f":"[1]ACS_16_5YR_B03002_with_ann!AI53","v":12},{"$f":"[1]ACS_16_5YR_B03002_with_ann!AJ53","v":0},{"$f":"[1]ACS_16_5YR_B03002_with_ann!AK53","v":12},{"$f":"[1]ACS_16_5YR_B03002_with_ann!AL53","v":0},{"$f":"[1]ACS_16_5YR_B03002_with_ann!AM53","v":12},{"$f":"[1]ACS_16_5YR_B03002_with_ann!AN53","v":1},{"$f":"[1]ACS_16_5YR_B03002_with_ann!AO53","v":5},{"$f":"[1]ACS_16_5YR_B03002_with_ann!AP53","v":1},{"$f":"[1]ACS_16_5YR_B03002_with_ann!AQ53","v":5},{"$f":"[1]ACS_16_5YR_B03002_with_ann!AR53","v":0},{"$f":"[1]ACS_16_5YR_B03002_with_ann!AS53","v":12}]
["0600000US3300545700","0600000US3300545700","060",{"$f":"[1]ACS_16_5YR_B03002_with_ann!C54","v":"Marlow"},{"$f":"[1]ACS_16_5YR_B03002_with_ann!D54","v":803},{"$f":"[1]ACS_16_5YR_B03002_with_ann!E54","v":175},{"$f":"[1]ACS_16_5YR_B03002_with_ann!F54","v":800},{"$f":"[1]ACS_16_5YR_B03002_with_ann!G54","v":174},{"$f":"[1]ACS_16_5YR_B03002_with_ann!H54","v":780},{"$f":"[1]ACS_16_5YR_B03002_with_ann!I54","v":172},{"$f":"[1]ACS_16_5YR_B03002_with_ann!J54","v":0},{"$f":"[1]ACS_16_5YR_B03002_with_ann!K54","v":12},{"$f":"[1]ACS_16_5YR_B03002_with_ann!L54","v":0},{"$f":"[1]ACS_16_5YR_B03002_with_ann!M54","v":12},{"$f":"[1]ACS_16_5YR_B03002_with_ann!N54","v":0},{"$f":"[1]ACS_16_5YR_B03002_with_ann!O54","v":12},{"$f":"[1]ACS_16_5YR_B03002_with_ann!P54","v":0},{"$f":"[1]ACS_16_5YR_B03002_with_ann!Q54","v":12},{"$f":"[1]ACS_16_5YR_B03002_with_ann!R54","v":9},{"$f":"[1]ACS_16_5YR_B03002_with_ann!S54","v":12},{"$f":"[1]ACS_16_5YR_B03002_with_ann!T54","v":11},{"$f":"[1]ACS_16_5YR_B03002_with_ann!U54","v":9},{"$f":"[1]ACS_16_5YR_B03002_with_ann!V54","v":5},{"$f":"[1]ACS_16_5YR_B03002_with_ann!W54","v":7},{"$f":"[1]ACS_16_5YR_B03002_with_ann!X54","v":6},{"$f":"[1]ACS_16_5YR_B03002_with_ann!Y54","v":6},{"$f":"[1]ACS_16_5YR_B03002_with_ann!Z54","v":3},{"$f":"[1]ACS_16_5YR_B03002_with_ann!AA54","v":4},{"$f":"[1]ACS_16_5YR_B03002_with_ann!AB54","v":3},{"$f":"[1]ACS_16_5YR_B03002_with_ann!AC54","v":4},{"$f":"[1]ACS_16_5YR_B03002_with_ann!AD54","v":0},{"$f":"[1]ACS_16_5YR_B03002_with_ann!AE54","v":12},{"$f":"[1]ACS_16_5YR_B03002_with_ann!AF54","v":0},{"$f":"[1]ACS_16_5YR_B03002_with_ann!AG54","v":12},{"$f":"[1]ACS_16_5YR_B03002_with_ann!AH54","v":0},{"$f":"[1]ACS_16_5YR_B03002_with_ann!AI54","v":12},{"$f":"[1]ACS_16_5YR_B03002_with_ann!AJ54","v":0},{"$f":"[1]ACS_16_5YR_B03002_with_ann!AK54","v":12},{"$f":"[1]ACS_16_5YR_B03002_with_ann!AL54","v":0},{"$f":"[1]ACS_16_5YR_B03002_with_ann!AM54","v":12},{"$f":"[1]ACS_16_5YR_B03002_with_ann!AN54","v":0},{"$f":"[1]ACS_16_5YR_B03002_with_ann!AO54","v":12},{"$f":"[1]ACS_16_5YR_B03002_with_ann!AP54","v":0},{"$f":"[1]ACS_16_5YR_B03002_with_ann!AQ54","v":12},{"$f":"[1]ACS_16_5YR_B03002_with_ann!AR54","v":0},{"$f":"[1]ACS_16_5YR_B03002_with_ann!AS54","v":12}]
["0600000US3300550580","0600000US3300550580","060",{"$f":"[1]ACS_16_5YR_B03002_with_ann!C55","v":"Nelson"},{"$f":"[1]ACS_16_5YR_B03002_with_ann!D55","v":550},{"$f":"[1]ACS_16_5YR_B03002_with_ann!E55","v":106},{"$f":"[1]ACS_16_5YR_B03002_with_ann!F55","v":540},{"$f":"[1]ACS_16_5YR_B03002_with_ann!G55","v":106},{"$f":"[1]ACS_16_5YR_B03002_with_ann!H55","v":514},{"$f":"[1]ACS_16_5YR_B03002_with_ann!I55","v":104},{"$f":"[1]ACS_16_5YR_B03002_with_ann!J55","v":0},{"$f":"[1]ACS_16_5YR_B03002_with_ann!K55","v":12},{"$f":"[1]ACS_16_5YR_B03002_with_ann!L55","v":0},{"$f":"[1]ACS_16_5YR_B03002_with_ann!M55","v":12},{"$f":"[1]ACS_16_5YR_B03002_with_ann!N55","v":0},{"$f":"[1]ACS_16_5YR_B03002_with_ann!O55","v":12},{"$f":"[1]ACS_16_5YR_B03002_with_ann!P55","v":0},{"$f":"[1]ACS_16_5YR_B03002_with_ann!Q55","v":12},{"$f":"[1]ACS_16_5YR_B03002_with_ann!R55","v":2},{"$f":"[1]ACS_16_5YR_B03002_with_ann!S55","v":3},{"$f":"[1]ACS_16_5YR_B03002_with_ann!T55","v":24},{"$f":"[1]ACS_16_5YR_B03002_with_ann!U55","v":24},{"$f":"[1]ACS_16_5YR_B03002_with_ann!V55","v":3},{"$f":"[1]ACS_16_5YR_B03002_with_ann!W55","v":4},{"$f":"[1]ACS_16_5YR_B03002_with_ann!X55","v":21},{"$f":"[1]ACS_16_5YR_B03002_with_ann!Y55","v":24},{"$f":"[1]ACS_16_5YR_B03002_with_ann!Z55","v":10},{"$f":"[1]ACS_16_5YR_B03002_with_ann!AA55","v":9},{"$f":"[1]ACS_16_5YR_B03002_with_ann!AB55","v":0},{"$f":"[1]ACS_16_5YR_B03002_with_ann!AC55","v":12},{"$f":"[1]ACS_16_5YR_B03002_with_ann!AD55","v":0},{"$f":"[1]ACS_16_5YR_B03002_with_ann!AE55","v":12},{"$f":"[1]ACS_16_5YR_B03002_with_ann!AF55","v":0},{"$f":"[1]ACS_16_5YR_B03002_with_ann!AG55","v":12},{"$f":"[1]ACS_16_5YR_B03002_with_ann!AH55","v":0},{"$f":"[1]ACS_16_5YR_B03002_with_ann!AI55","v":12},{"$f":"[1]ACS_16_5YR_B03002_with_ann!AJ55","v":0},{"$f":"[1]ACS_16_5YR_B03002_with_ann!AK55","v":12},{"$f":"[1]ACS_16_5YR_B03002_with_ann!AL55","v":0},{"$f":"[1]ACS_16_5YR_B03002_with_ann!AM55","v":12},{"$f":"[1]ACS_16_5YR_B03002_with_ann!AN55","v":10},{"$f":"[1]ACS_16_5YR_B03002_with_ann!AO55","v":9},{"$f":"[1]ACS_16_5YR_B03002_with_ann!AP55","v":10},{"$f":"[1]ACS_16_5YR_B03002_with_ann!AQ55","v":9},{"$f":"[1]ACS_16_5YR_B03002_with_ann!AR55","v":0},{"$f":"[1]ACS_16_5YR_B03002_with_ann!AS55","v":12}]
["0600000US3300564420","0600000US3300564420","060",{"$f":"[1]ACS_16_5YR_B03002_with_ann!C56","v":"Richmond"},{"$f":"[1]ACS_16_5YR_B03002_with_ann!D56","v":1107},{"$f":"[1]ACS_16_5YR_B03002_with_ann!E56","v":251},{"$f":"[1]ACS_16_5YR_B03002_with_ann!F56","v":1069},{"$f":"[1]ACS_16_5YR_B03002_with_ann!G56","v":247},{"$f":"[1]ACS_16_5YR_B03002_with_ann!H56","v":1050},{"$f":"[1]ACS_16_5YR_B03002_with_ann!I56","v":246},{"$f":"[1]ACS_16_5YR_B03002_with_ann!J56","v":0},{"$f":"[1]ACS_16_5YR_B03002_with_ann!K56","v":12},{"$f":"[1]ACS_16_5YR_B03002_with_ann!L56","v":0},{"$f":"[1]ACS_16_5YR_B03002_with_ann!M56","v":12},{"$f":"[1]ACS_16_5YR_B03002_with_ann!N56","v":7},{"$f":"[1]ACS_16_5YR_B03002_with_ann!O56","v":11},{"$f":"[1]ACS_16_5YR_B03002_with_ann!P56","v":0},{"$f":"[1]ACS_16_5YR_B03002_with_ann!Q56","v":12},{"$f":"[1]ACS_16_5YR_B03002_with_ann!R56","v":3},{"$f":"[1]ACS_16_5YR_B03002_with_ann!S56","v":4},{"$f":"[1]ACS_16_5YR_B03002_with_ann!T56","v":9},{"$f":"[1]ACS_16_5YR_B03002_with_ann!U56","v":11},{"$f":"[1]ACS_16_5YR_B03002_with_ann!V56","v":3},{"$f":"[1]ACS_16_5YR_B03002_with_ann!W56","v":4},{"$f":"[1]ACS_16_5YR_B03002_with_ann!X56","v":6},{"$f":"[1]ACS_16_5YR_B03002_with_ann!Y56","v":10},{"$f":"[1]ACS_16_5YR_B03002_with_ann!Z56","v":38},{"$f":"[1]ACS_16_5YR_B03002_with_ann!AA56","v":36},{"$f":"[1]ACS_16_5YR_B03002_with_ann!AB56","v":3},{"$f":"[1]ACS_16_5YR_B03002_with_ann!AC56","v":5},{"$f":"[1]ACS_16_5YR_B03002_with_ann!AD56","v":0},{"$f":"[1]ACS_16_5YR_B03002_with_ann!AE56","v":12},{"$f":"[1]ACS_16_5YR_B03002_with_ann!AF56","v":0},{"$f":"[1]ACS_16_5YR_B03002_with_ann!AG56","v":12},{"$f":"[1]ACS_16_5YR_B03002_with_ann!AH56","v":0},{"$f":"[1]ACS_16_5YR_B03002_with_ann!AI56","v":12},{"$f":"[1]ACS_16_5YR_B03002_with_ann!AJ56","v":0},{"$f":"[1]ACS_16_5YR_B03002_with_ann!AK56","v":12},{"$f":"[1]ACS_16_5YR_B03002_with_ann!AL56","v":4},{"$f":"[1]ACS_16_5YR_B03002_with_ann!AM56","v":10},{"$f":"[1]ACS_16_5YR_B03002_with_ann!AN56","v":31},{"$f":"[1]ACS_16_5YR_B03002_with_ann!AO56","v":32},{"$f":"[1]ACS_16_5YR_B03002_with_ann!AP56","v":31},{"$f":"[1]ACS_16_5YR_B03002_with_ann!AQ56","v":32},{"$f":"[1]ACS_16_5YR_B03002_with_ann!AR56","v":0},{"$f":"[1]ACS_16_5YR_B03002_with_ann!AS56","v":12}]
["0600000US3300564580","0600000US3300564580","060",{"$f":"[1]ACS_16_5YR_B03002_with_ann!C57","v":"Rindge"},{"$f":"[1]ACS_16_5YR_B03002_with_ann!D57","v":6446},{"$f":"[1]ACS_16_5YR_B03002_with_ann!E57","v":21},{"$f":"[1]ACS_16_5YR_B03002_with_ann!F57","v":6079},{"$f":"[1]ACS_16_5YR_B03002_with_ann!G57","v":175},{"$f":"[1]ACS_16_5YR_B03002_with_ann!H57","v":5517},{"$f":"[1]ACS_16_5YR_B03002_with_ann!I57","v":240},{"$f":"[1]ACS_16_5YR_B03002_with_ann!J57","v":65},{"$f":"[1]ACS_16_5YR_B03002_with_ann!K57","v":44},{"$f":"[1]ACS_16_5YR_B03002_with_ann!L57","v":0},{"$f":"[1]ACS_16_5YR_B03002_with_ann!M57","v":17},{"$f":"[1]ACS_16_5YR_B03002_with_ann!N57","v":83},{"$f":"[1]ACS_16_5YR_B03002_with_ann!O57","v":87},{"$f":"[1]ACS_16_5YR_B03002_with_ann!P57","v":0},{"$f":"[1]ACS_16_5YR_B03002_with_ann!Q57","v":17},{"$f":"[1]ACS_16_5YR_B03002_with_ann!R57","v":0},{"$f":"[1]ACS_16_5YR_B03002_with_ann!S57","v":17},{"$f":"[1]ACS_16_5YR_B03002_with_ann!T57","v":414},{"$f":"[1]ACS_16_5YR_B03002_with_ann!U57","v":211},{"$f":"[1]ACS_16_5YR_B03002_with_ann!V57","v":8},{"$f":"[1]ACS_16_5YR_B03002_with_ann!W57","v":13},{"$f":"[1]ACS_16_5YR_B03002_with_ann!X57","v":406},{"$f":"[1]ACS_16_5YR_B03002_with_ann!Y57","v":211},{"$f":"[1]ACS_16_5YR_B03002_with_ann!Z57","v":367},{"$f":"[1]ACS_16_5YR_B03002_with_ann!AA57","v":179},{"$f":"[1]ACS_16_5YR_B03002_with_ann!AB57","v":78},{"$f":"[1]ACS_16_5YR_B03002_with_ann!AC57","v":100},{"$f":"[1]ACS_16_5YR_B03002_with_ann!AD57","v":2},{"$f":"[1]ACS_16_5YR_B03002_with_ann!AE57","v":6},{"$f":"[1]ACS_16_5YR_B03002_with_ann!AF57","v":0},{"$f":"[1]ACS_16_5YR_B03002_with_ann!AG57","v":17},{"$f":"[1]ACS_16_5YR_B03002_with_ann!AH57","v":0},{"$f":"[1]ACS_16_5YR_B03002_with_ann!AI57","v":17},{"$f":"[1]ACS_16_5YR_B03002_with_ann!AJ57","v":0},{"$f":"[1]ACS_16_5YR_B03002_with_ann!AK57","v":17},{"$f":"[1]ACS_16_5YR_B03002_with_ann!AL57","v":69},{"$f":"[1]ACS_16_5YR_B03002_with_ann!AM57","v":64},{"$f":"[1]ACS_16_5YR_B03002_with_ann!AN57","v":218},{"$f":"[1]ACS_16_5YR_B03002_with_ann!AO57","v":155},{"$f":"[1]ACS_16_5YR_B03002_with_ann!AP57","v":57},{"$f":"[1]ACS_16_5YR_B03002_with_ann!AQ57","v":59},{"$f":"[1]ACS_16_5YR_B03002_with_ann!AR57","v":161},{"$f":"[1]ACS_16_5YR_B03002_with_ann!AS57","v":166}]
["0600000US3300565700","0600000US3300565700","060",{"$f":"[1]ACS_16_5YR_B03002_with_ann!C58","v":"Roxbury"},{"$f":"[1]ACS_16_5YR_B03002_with_ann!D58","v":295},{"$f":"[1]ACS_16_5YR_B03002_with_ann!E58","v":142},{"$f":"[1]ACS_16_5YR_B03002_with_ann!F58","v":295},{"$f":"[1]ACS_16_5YR_B03002_with_ann!G58","v":142},{"$f":"[1]ACS_16_5YR_B03002_with_ann!H58","v":295},{"$f":"[1]ACS_16_5YR_B03002_with_ann!I58","v":142},{"$f":"[1]ACS_16_5YR_B03002_with_ann!J58","v":0},{"$f":"[1]ACS_16_5YR_B03002_with_ann!K58","v":12},{"$f":"[1]ACS_16_5YR_B03002_with_ann!L58","v":0},{"$f":"[1]ACS_16_5YR_B03002_with_ann!M58","v":12},{"$f":"[1]ACS_16_5YR_B03002_with_ann!N58","v":0},{"$f":"[1]ACS_16_5YR_B03002_with_ann!O58","v":12},{"$f":"[1]ACS_16_5YR_B03002_with_ann!P58","v":0},{"$f":"[1]ACS_16_5YR_B03002_with_ann!Q58","v":12},{"$f":"[1]ACS_16_5YR_B03002_with_ann!R58","v":0},{"$f":"[1]ACS_16_5YR_B03002_with_ann!S58","v":12},{"$f":"[1]ACS_16_5YR_B03002_with_ann!T58","v":0},{"$f":"[1]ACS_16_5YR_B03002_with_ann!U58","v":12},{"$f":"[1]ACS_16_5YR_B03002_with_ann!V58","v":0},{"$f":"[1]ACS_16_5YR_B03002_with_ann!W58","v":12},{"$f":"[1]ACS_16_5YR_B03002_with_ann!X58","v":0},{"$f":"[1]ACS_16_5YR_B03002_with_ann!Y58","v":12},{"$f":"[1]ACS_16_5YR_B03002_with_ann!Z58","v":0},{"$f":"[1]ACS_16_5YR_B03002_with_ann!AA58","v":12},{"$f":"[1]ACS_16_5YR_B03002_with_ann!AB58","v":0},{"$f":"[1]ACS_16_5YR_B03002_with_ann!AC58","v":12},{"$f":"[1]ACS_16_5YR_B03002_with_ann!AD58","v":0},{"$f":"[1]ACS_16_5YR_B03002_with_ann!AE58","v":12},{"$f":"[1]ACS_16_5YR_B03002_with_ann!AF58","v":0},{"$f":"[1]ACS_16_5YR_B03002_with_ann!AG58","v":12},{"$f":"[1]ACS_16_5YR_B03002_with_ann!AH58","v":0},{"$f":"[1]ACS_16_5YR_B03002_with_ann!AI58","v":12},{"$f":"[1]ACS_16_5YR_B03002_with_ann!AJ58","v":0},{"$f":"[1]ACS_16_5YR_B03002_with_ann!AK58","v":12},{"$f":"[1]ACS_16_5YR_B03002_with_ann!AL58","v":0},{"$f":"[1]ACS_16_5YR_B03002_with_ann!AM58","v":12},{"$f":"[1]ACS_16_5YR_B03002_with_ann!AN58","v":0},{"$f":"[1]ACS_16_5YR_B03002_with_ann!AO58","v":12},{"$f":"[1]ACS_16_5YR_B03002_with_ann!AP58","v":0},{"$f":"[1]ACS_16_5YR_B03002_with_ann!AQ58","v":12},{"$f":"[1]ACS_16_5YR_B03002_with_ann!AR58","v":0},{"$f":"[1]ACS_16_5YR_B03002_with_ann!AS58","v":12}]
["0600000US3300573700","0600000US3300573700","060",{"$f":"[1]ACS_16_5YR_B03002_with_ann!C59","v":"Stoddard"},{"$f":"[1]ACS_16_5YR_B03002_with_ann!D59","v":1205},{"$f":"[1]ACS_16_5YR_B03002_with_ann!E59","v":162},{"$f":"[1]ACS_16_5YR_B03002_with_ann!F59","v":1201},{"$f":"[1]ACS_16_5YR_B03002_with_ann!G59","v":163},{"$f":"[1]ACS_16_5YR_B03002_with_ann!H59","v":1161},{"$f":"[1]ACS_16_5YR_B03002_with_ann!I59","v":156},{"$f":"[1]ACS_16_5YR_B03002_with_ann!J59","v":0},{"$f":"[1]ACS_16_5YR_B03002_with_ann!K59","v":12},{"$f":"[1]ACS_16_5YR_B03002_with_ann!L59","v":6},{"$f":"[1]ACS_16_5YR_B03002_with_ann!M59","v":8},{"$f":"[1]ACS_16_5YR_B03002_with_ann!N59","v":6},{"$f":"[1]ACS_16_5YR_B03002_with_ann!O59","v":8},{"$f":"[1]ACS_16_5YR_B03002_with_ann!P59","v":0},{"$f":"[1]ACS_16_5YR_B03002_with_ann!Q59","v":12},{"$f":"[1]ACS_16_5YR_B03002_with_ann!R59","v":0},{"$f":"[1]ACS_16_5YR_B03002_with_ann!S59","v":12},{"$f":"[1]ACS_16_5YR_B03002_with_ann!T59","v":28},{"$f":"[1]ACS_16_5YR_B03002_with_ann!U59","v":22},{"$f":"[1]ACS_16_5YR_B03002_with_ann!V59","v":0},{"$f":"[1]ACS_16_5YR_B03002_with_ann!W59","v":12},{"$f":"[1]ACS_16_5YR_B03002_with_ann!X59","v":28},{"$f":"[1]ACS_16_5YR_B03002_with_ann!Y59","v":22},{"$f":"[1]ACS_16_5YR_B03002_with_ann!Z59","v":4},{"$f":"[1]ACS_16_5YR_B03002_with_ann!AA59","v":5},{"$f":"[1]ACS_16_5YR_B03002_with_ann!AB59","v":0},{"$f":"[1]ACS_16_5YR_B03002_with_ann!AC59","v":12},{"$f":"[1]ACS_16_5YR_B03002_with_ann!AD59","v":0},{"$f":"[1]ACS_16_5YR_B03002_with_ann!AE59","v":12},{"$f":"[1]ACS_16_5YR_B03002_with_ann!AF59","v":0},{"$f":"[1]ACS_16_5YR_B03002_with_ann!AG59","v":12},{"$f":"[1]ACS_16_5YR_B03002_with_ann!AH59","v":0},{"$f":"[1]ACS_16_5YR_B03002_with_ann!AI59","v":12},{"$f":"[1]ACS_16_5YR_B03002_with_ann!AJ59","v":0},{"$f":"[1]ACS_16_5YR_B03002_with_ann!AK59","v":12},{"$f":"[1]ACS_16_5YR_B03002_with_ann!AL59","v":0},{"$f":"[1]ACS_16_5YR_B03002_with_ann!AM59","v":12},{"$f":"[1]ACS_16_5YR_B03002_with_ann!AN59","v":4},{"$f":"[1]ACS_16_5YR_B03002_with_ann!AO59","v":5},{"$f":"[1]ACS_16_5YR_B03002_with_ann!AP59","v":4},{"$f":"[1]ACS_16_5YR_B03002_with_ann!AQ59","v":5},{"$f":"[1]ACS_16_5YR_B03002_with_ann!AR59","v":0},{"$f":"[1]ACS_16_5YR_B03002_with_ann!AS59","v":12}]
["0600000US3300574900","0600000US3300574900","060",{"$f":"[1]ACS_16_5YR_B03002_with_ann!C60","v":"Sullivan"},{"$f":"[1]ACS_16_5YR_B03002_with_ann!D60","v":681},{"$f":"[1]ACS_16_5YR_B03002_with_ann!E60","v":130},{"$f":"[1]ACS_16_5YR_B03002_with_ann!F60","v":668},{"$f":"[1]ACS_16_5YR_B03002_with_ann!G60","v":131},{"$f":"[1]ACS_16_5YR_B03002_with_ann!H60","v":615},{"$f":"[1]ACS_16_5YR_B03002_with_ann!I60","v":126},{"$f":"[1]ACS_16_5YR_B03002_with_ann!J60","v":0},{"$f":"[1]ACS_16_5YR_B03002_with_ann!K60","v":12},{"$f":"[1]ACS_16_5YR_B03002_with_ann!L60","v":0},{"$f":"[1]ACS_16_5YR_B03002_with_ann!M60","v":12},{"$f":"[1]ACS_16_5YR_B03002_with_ann!N60","v":26},{"$f":"[1]ACS_16_5YR_B03002_with_ann!O60","v":24},{"$f":"[1]ACS_16_5YR_B03002_with_ann!P60","v":0},{"$f":"[1]ACS_16_5YR_B03002_with_ann!Q60","v":12},{"$f":"[1]ACS_16_5YR_B03002_with_ann!R60","v":5},{"$f":"[1]ACS_16_5YR_B03002_with_ann!S60","v":7},{"$f":"[1]ACS_16_5YR_B03002_with_ann!T60","v":22},{"$f":"[1]ACS_16_5YR_B03002_with_ann!U60","v":18},{"$f":"[1]ACS_16_5YR_B03002_with_ann!V60","v":5},{"$f":"[1]ACS_16_5YR_B03002_with_ann!W60","v":7},{"$f":"[1]ACS_16_5YR_B03002_with_ann!X60","v":17},{"$f":"[1]ACS_16_5YR_B03002_with_ann!Y60","v":18},{"$f":"[1]ACS_16_5YR_B03002_with_ann!Z60","v":13},{"$f":"[1]ACS_16_5YR_B03002_with_ann!AA60","v":14},{"$f":"[1]ACS_16_5YR_B03002_with_ann!AB60","v":5},{"$f":"[1]ACS_16_5YR_B03002_with_ann!AC60","v":7},{"$f":"[1]ACS_16_5YR_B03002_with_ann!AD60","v":0},{"$f":"[1]ACS_16_5YR_B03002_with_ann!AE60","v":12},{"$f":"[1]ACS_16_5YR_B03002_with_ann!AF60","v":0},{"$f":"[1]ACS_16_5YR_B03002_with_ann!AG60","v":12},{"$f":"[1]ACS_16_5YR_B03002_with_ann!AH60","v":0},{"$f":"[1]ACS_16_5YR_B03002_with_ann!AI60","v":12},{"$f":"[1]ACS_16_5YR_B03002_with_ann!AJ60","v":0},{"$f":"[1]ACS_16_5YR_B03002_with_ann!AK60","v":12},{"$f":"[1]ACS_16_5YR_B03002_with_ann!AL60","v":8},{"$f":"[1]ACS_16_5YR_B03002_with_ann!AM60","v":12},{"$f":"[1]ACS_16_5YR_B03002_with_ann!AN60","v":0},{"$f":"[1]ACS_16_5YR_B03002_with_ann!AO60","v":12},{"$f":"[1]ACS_16_5YR_B03002_with_ann!AP60","v":0},{"$f":"[1]ACS_16_5YR_B03002_with_ann!AQ60","v":12},{"$f":"[1]ACS_16_5YR_B03002_with_ann!AR60","v":0},{"$f":"[1]ACS_16_5YR_B03002_with_ann!AS60","v":12}]
["0600000US3300575300","0600000US3300575300","060",{"$f":"[1]ACS_16_5YR_B03002_with_ann!C61","v":"Surry"},{"$f":"[1]ACS_16_5YR_B03002_with_ann!D61","v":950},{"$f":"[1]ACS_16_5YR_B03002_with_ann!E61","v":245},{"$f":"[1]ACS_16_5YR_B03002_with_ann!F61","v":945},{"$f":"[1]ACS_16_5YR_B03002_with_ann!G61","v":245},{"$f":"[1]ACS_16_5YR_B03002_with_ann!H61","v":913},{"$f":"[1]ACS_16_5YR_B03002_with_ann!I61","v":240},{"$f":"[1]ACS_16_5YR_B03002_with_ann!J61","v":0},{"$f":"[1]ACS_16_5YR_B03002_with_ann!K61","v":12},{"$f":"[1]ACS_16_5YR_B03002_with_ann!L61","v":5},{"$f":"[1]ACS_16_5YR_B03002_with_ann!M61","v":8},{"$f":"[1]ACS_16_5YR_B03002_with_ann!N61","v":0},{"$f":"[1]ACS_16_5YR_B03002_with_ann!O61","v":12},{"$f":"[1]ACS_16_5YR_B03002_with_ann!P61","v":0},{"$f":"[1]ACS_16_5YR_B03002_with_ann!Q61","v":12},{"$f":"[1]ACS_16_5YR_B03002_with_ann!R61","v":0},{"$f":"[1]ACS_16_5YR_B03002_with_ann!S61","v":12},{"$f":"[1]ACS_16_5YR_B03002_with_ann!T61","v":27},{"$f":"[1]ACS_16_5YR_B03002_with_ann!U61","v":19},{"$f":"[1]ACS_16_5YR_B03002_with_ann!V61","v":0},{"$f":"[1]ACS_16_5YR_B03002_with_ann!W61","v":12},{"$f":"[1]ACS_16_5YR_B03002_with_ann!X61","v":27},{"$f":"[1]ACS_16_5YR_B03002_with_ann!Y61","v":19},{"$f":"[1]ACS_16_5YR_B03002_with_ann!Z61","v":5},{"$f":"[1]ACS_16_5YR_B03002_with_ann!AA61","v":7},{"$f":"[1]ACS_16_5YR_B03002_with_ann!AB61","v":0},{"$f":"[1]ACS_16_5YR_B03002_with_ann!AC61","v":12},{"$f":"[1]ACS_16_5YR_B03002_with_ann!AD61","v":0},{"$f":"[1]ACS_16_5YR_B03002_with_ann!AE61","v":12},{"$f":"[1]ACS_16_5YR_B03002_with_ann!AF61","v":0},{"$f":"[1]ACS_16_5YR_B03002_with_ann!AG61","v":12},{"$f":"[1]ACS_16_5YR_B03002_with_ann!AH61","v":0},{"$f":"[1]ACS_16_5YR_B03002_with_ann!AI61","v":12},{"$f":"[1]ACS_16_5YR_B03002_with_ann!AJ61","v":0},{"$f":"[1]ACS_16_5YR_B03002_with_ann!AK61","v":12},{"$f":"[1]ACS_16_5YR_B03002_with_ann!AL61","v":0},{"$f":"[1]ACS_16_5YR_B03002_with_ann!AM61","v":12},{"$f":"[1]ACS_16_5YR_B03002_with_ann!AN61","v":5},{"$f":"[1]ACS_16_5YR_B03002_with_ann!AO61","v":7},{"$f":"[1]ACS_16_5YR_B03002_with_ann!AP61","v":5},{"$f":"[1]ACS_16_5YR_B03002_with_ann!AQ61","v":7},{"$f":"[1]ACS_16_5YR_B03002_with_ann!AR61","v":0},{"$f":"[1]ACS_16_5YR_B03002_with_ann!AS61","v":12}]
["0600000US3300575700","0600000US3300575700","060",{"$f":"[1]ACS_16_5YR_B03002_with_ann!C62","v":"Swanzey"},{"$f":"[1]ACS_16_5YR_B03002_with_ann!D62","v":7306},{"$f":"[1]ACS_16_5YR_B03002_with_ann!E62","v":22},{"$f":"[1]ACS_16_5YR_B03002_with_ann!F62","v":7097},{"$f":"[1]ACS_16_5YR_B03002_with_ann!G62","v":114},{"$f":"[1]ACS_16_5YR_B03002_with_ann!H62","v":6862},{"$f":"[1]ACS_16_5YR_B03002_with_ann!I62","v":221},{"$f":"[1]ACS_16_5YR_B03002_with_ann!J62","v":15},{"$f":"[1]ACS_16_5YR_B03002_with_ann!K62","v":22},{"$f":"[1]ACS_16_5YR_B03002_with_ann!L62","v":0},{"$f":"[1]ACS_16_5YR_B03002_with_ann!M62","v":17},{"$f":"[1]ACS_16_5YR_B03002_with_ann!N62","v":20},{"$f":"[1]ACS_16_5YR_B03002_with_ann!O62","v":42},{"$f":"[1]ACS_16_5YR_B03002_with_ann!P62","v":0},{"$f":"[1]ACS_16_5YR_B03002_with_ann!Q62","v":17},{"$f":"[1]ACS_16_5YR_B03002_with_ann!R62","v":40},{"$f":"[1]ACS_16_5YR_B03002_with_ann!S62","v":59},{"$f":"[1]ACS_16_5YR_B03002_with_ann!T62","v":160},{"$f":"[1]ACS_16_5YR_B03002_with_ann!U62","v":145},{"$f":"[1]ACS_16_5YR_B03002_with_ann!V62","v":45},{"$f":"[1]ACS_16_5YR_B03002_with_ann!W62","v":77},{"$f":"[1]ACS_16_5YR_B03002_with_ann!X62","v":115},{"$f":"[1]ACS_16_5YR_B03002_with_ann!Y62","v":144},{"$f":"[1]ACS_16_5YR_B03002_with_ann!Z62","v":209},{"$f":"[1]ACS_16_5YR_B03002_with_ann!AA62","v":111},{"$f":"[1]ACS_16_5YR_B03002_with_ann!AB62","v":75},{"$f":"[1]ACS_16_5YR_B03002_with_ann!AC62","v":80},{"$f":"[1]ACS_16_5YR_B03002_with_ann!AD62","v":0},{"$f":"[1]ACS_16_5YR_B03002_with_ann!AE62","v":17},{"$f":"[1]ACS_16_5YR_B03002_with_ann!AF62","v":0},{"$f":"[1]ACS_16_5YR_B03002_with_ann!AG62","v":17},{"$f":"[1]ACS_16_5YR_B03002_with_ann!AH62","v":0},{"$f":"[1]ACS_16_5YR_B03002_with_ann!AI62","v":17},{"$f":"[1]ACS_16_5YR_B03002_with_ann!AJ62","v":0},{"$f":"[1]ACS_16_5YR_B03002_with_ann!AK62","v":17},{"$f":"[1]ACS_16_5YR_B03002_with_ann!AL62","v":0},{"$f":"[1]ACS_16_5YR_B03002_with_ann!AM62","v":17},{"$f":"[1]ACS_16_5YR_B03002_with_ann!AN62","v":134},{"$f":"[1]ACS_16_5YR_B03002_with_ann!AO62","v":87},{"$f":"[1]ACS_16_5YR_B03002_with_ann!AP62","v":134},{"$f":"[1]ACS_16_5YR_B03002_with_ann!AQ62","v":87},{"$f":"[1]ACS_16_5YR_B03002_with_ann!AR62","v":0},{"$f":"[1]ACS_16_5YR_B03002_with_ann!AS62","v":17}]
["0600000US3300577380","0600000US3300577380","060",{"$f":"[1]ACS_16_5YR_B03002_with_ann!C63","v":"Troy"},{"$f":"[1]ACS_16_5YR_B03002_with_ann!D63","v":1889},{"$f":"[1]ACS_16_5YR_B03002_with_ann!E63","v":275},{"$f":"[1]ACS_16_5YR_B03002_with_ann!F63","v":1869},{"$f":"[1]ACS_16_5YR_B03002_with_ann!G63","v":277},{"$f":"[1]ACS_16_5YR_B03002_with_ann!H63","v":1842},{"$f":"[1]ACS_16_5YR_B03002_with_ann!I63","v":269},{"$f":"[1]ACS_16_5YR_B03002_with_ann!J63","v":0},{"$f":"[1]ACS_16_5YR_B03002_with_ann!K63","v":12},{"$f":"[1]ACS_16_5YR_B03002_with_ann!L63","v":4},{"$f":"[1]ACS_16_5YR_B03002_with_ann!M63","v":6},{"$f":"[1]ACS_16_5YR_B03002_with_ann!N63","v":0},{"$f":"[1]ACS_16_5YR_B03002_with_ann!O63","v":12},{"$f":"[1]ACS_16_5YR_B03002_with_ann!P63","v":0},{"$f":"[1]ACS_16_5YR_B03002_with_ann!Q63","v":12},{"$f":"[1]ACS_16_5YR_B03002_with_ann!R63","v":0},{"$f":"[1]ACS_16_5YR_B03002_with_ann!S63","v":12},{"$f":"[1]ACS_16_5YR_B03002_with_ann!T63","v":23},{"$f":"[1]ACS_16_5YR_B03002_with_ann!U63","v":26},{"$f":"[1]ACS_16_5YR_B03002_with_ann!V63","v":5},{"$f":"[1]ACS_16_5YR_B03002_with_ann!W63","v":7},{"$f":"[1]ACS_16_5YR_B03002_with_ann!X63","v":18},{"$f":"[1]ACS_16_5YR_B03002_with_ann!Y63","v":25},{"$f":"[1]ACS_16_5YR_B03002_with_ann!Z63","v":20},{"$f":"[1]ACS_16_5YR_B03002_with_ann!AA63","v":29},{"$f":"[1]ACS_16_5YR_B03002_with_ann!AB63","v":0},{"$f":"[1]ACS_16_5YR_B03002_with_ann!AC63","v":12},{"$f":"[1]ACS_16_5YR_B03002_with_ann!AD63","v":0},{"$f":"[1]ACS_16_5YR_B03002_with_ann!AE63","v":12},{"$f":"[1]ACS_16_5YR_B03002_with_ann!AF63","v":0},{"$f":"[1]ACS_16_5YR_B03002_with_ann!AG63","v":12},{"$f":"[1]ACS_16_5YR_B03002_with_ann!AH63","v":0},{"$f":"[1]ACS_16_5YR_B03002_with_ann!AI63","v":12},{"$f":"[1]ACS_16_5YR_B03002_with_ann!AJ63","v":0},{"$f":"[1]ACS_16_5YR_B03002_with_ann!AK63","v":12},{"$f":"[1]ACS_16_5YR_B03002_with_ann!AL63","v":8},{"$f":"[1]ACS_16_5YR_B03002_with_ann!AM63","v":13},{"$f":"[1]ACS_16_5YR_B03002_with_ann!AN63","v":12},{"$f":"[1]ACS_16_5YR_B03002_with_ann!AO63","v":25},{"$f":"[1]ACS_16_5YR_B03002_with_ann!AP63","v":12},{"$f":"[1]ACS_16_5YR_B03002_with_ann!AQ63","v":25},{"$f":"[1]ACS_16_5YR_B03002_with_ann!AR63","v":0},{"$f":"[1]ACS_16_5YR_B03002_with_ann!AS63","v":12}]
["0600000US3300578420","0600000US3300578420","060",{"$f":"[1]ACS_16_5YR_B03002_with_ann!C64","v":"Walpole"},{"$f":"[1]ACS_16_5YR_B03002_with_ann!D64","v":3651},{"$f":"[1]ACS_16_5YR_B03002_with_ann!E64","v":33},{"$f":"[1]ACS_16_5YR_B03002_with_ann!F64","v":3458},{"$f":"[1]ACS_16_5YR_B03002_with_ann!G64","v":225},{"$f":"[1]ACS_16_5YR_B03002_with_ann!H64","v":3257},{"$f":"[1]ACS_16_5YR_B03002_with_ann!I64","v":258},{"$f":"[1]ACS_16_5YR_B03002_with_ann!J64","v":98},{"$f":"[1]ACS_16_5YR_B03002_with_ann!K64","v":126},{"$f":"[1]ACS_16_5YR_B03002_with_ann!L64","v":0},{"$f":"[1]ACS_16_5YR_B03002_with_ann!M64","v":12},{"$f":"[1]ACS_16_5YR_B03002_with_ann!N64","v":0},{"$f":"[1]ACS_16_5YR_B03002_with_ann!O64","v":12},{"$f":"[1]ACS_16_5YR_B03002_with_ann!P64","v":0},{"$f":"[1]ACS_16_5YR_B03002_with_ann!Q64","v":12},{"$f":"[1]ACS_16_5YR_B03002_with_ann!R64","v":13},{"$f":"[1]ACS_16_5YR_B03002_with_ann!S64","v":23},{"$f":"[1]ACS_16_5YR_B03002_with_ann!T64","v":90},{"$f":"[1]ACS_16_5YR_B03002_with_ann!U64","v":61},{"$f":"[1]ACS_16_5YR_B03002_with_ann!V64","v":7},{"$f":"[1]ACS_16_5YR_B03002_with_ann!W64","v":13},{"$f":"[1]ACS_16_5YR_B03002_with_ann!X64","v":83},{"$f":"[1]ACS_16_5YR_B03002_with_ann!Y64","v":58},{"$f":"[1]ACS_16_5YR_B03002_with_ann!Z64","v":193},{"$f":"[1]ACS_16_5YR_B03002_with_ann!AA64","v":224},{"$f":"[1]ACS_16_5YR_B03002_with_ann!AB64","v":36},{"$f":"[1]ACS_16_5YR_B03002_with_ann!AC64","v":58},{"$f":"[1]ACS_16_5YR_B03002_with_ann!AD64","v":0},{"$f":"[1]ACS_16_5YR_B03002_with_ann!AE64","v":12},{"$f":"[1]ACS_16_5YR_B03002_with_ann!AF64","v":0},{"$f":"[1]ACS_16_5YR_B03002_with_ann!AG64","v":12},{"$f":"[1]ACS_16_5YR_B03002_with_ann!AH64","v":0},{"$f":"[1]ACS_16_5YR_B03002_with_ann!AI64","v":12},{"$f":"[1]ACS_16_5YR_B03002_with_ann!AJ64","v":0},{"$f":"[1]ACS_16_5YR_B03002_with_ann!AK64","v":12},{"$f":"[1]ACS_16_5YR_B03002_with_ann!AL64","v":157},{"$f":"[1]ACS_16_5YR_B03002_with_ann!AM64","v":216},{"$f":"[1]ACS_16_5YR_B03002_with_ann!AN64","v":0},{"$f":"[1]ACS_16_5YR_B03002_with_ann!AO64","v":12},{"$f":"[1]ACS_16_5YR_B03002_with_ann!AP64","v":0},{"$f":"[1]ACS_16_5YR_B03002_with_ann!AQ64","v":12},{"$f":"[1]ACS_16_5YR_B03002_with_ann!AR64","v":0},{"$f":"[1]ACS_16_5YR_B03002_with_ann!AS64","v":12}]
["0600000US3300582660","0600000US3300582660","060",{"$f":"[1]ACS_16_5YR_B03002_with_ann!C65","v":"Westmoreland"},{"$f":"[1]ACS_16_5YR_B03002_with_ann!D65","v":2042},{"$f":"[1]ACS_16_5YR_B03002_with_ann!E65","v":341},{"$f":"[1]ACS_16_5YR_B03002_with_ann!F65","v":2042},{"$f":"[1]ACS_16_5YR_B03002_with_ann!G65","v":341},{"$f":"[1]ACS_16_5YR_B03002_with_ann!H65","v":1985},{"$f":"[1]ACS_16_5YR_B03002_with_ann!I65","v":333},{"$f":"[1]ACS_16_5YR_B03002_with_ann!J65","v":0},{"$f":"[1]ACS_16_5YR_B03002_with_ann!K65","v":12},{"$f":"[1]ACS_16_5YR_B03002_with_ann!L65","v":6},{"$f":"[1]ACS_16_5YR_B03002_with_ann!M65","v":6},{"$f":"[1]ACS_16_5YR_B03002_with_ann!N65","v":5},{"$f":"[1]ACS_16_5YR_B03002_with_ann!O65","v":9},{"$f":"[1]ACS_16_5YR_B03002_with_ann!P65","v":0},{"$f":"[1]ACS_16_5YR_B03002_with_ann!Q65","v":12},{"$f":"[1]ACS_16_5YR_B03002_with_ann!R65","v":10},{"$f":"[1]ACS_16_5YR_B03002_with_ann!S65","v":17},{"$f":"[1]ACS_16_5YR_B03002_with_ann!T65","v":36},{"$f":"[1]ACS_16_5YR_B03002_with_ann!U65","v":27},{"$f":"[1]ACS_16_5YR_B03002_with_ann!V65","v":9},{"$f":"[1]ACS_16_5YR_B03002_with_ann!W65","v":14},{"$f":"[1]ACS_16_5YR_B03002_with_ann!X65","v":27},{"$f":"[1]ACS_16_5YR_B03002_with_ann!Y65","v":23},{"$f":"[1]ACS_16_5YR_B03002_with_ann!Z65","v":0},{"$f":"[1]ACS_16_5YR_B03002_with_ann!AA65","v":12},{"$f":"[1]ACS_16_5YR_B03002_with_ann!AB65","v":0},{"$f":"[1]ACS_16_5YR_B03002_with_ann!AC65","v":12},{"$f":"[1]ACS_16_5YR_B03002_with_ann!AD65","v":0},{"$f":"[1]ACS_16_5YR_B03002_with_ann!AE65","v":12},{"$f":"[1]ACS_16_5YR_B03002_with_ann!AF65","v":0},{"$f":"[1]ACS_16_5YR_B03002_with_ann!AG65","v":12},{"$f":"[1]ACS_16_5YR_B03002_with_ann!AH65","v":0},{"$f":"[1]ACS_16_5YR_B03002_with_ann!AI65","v":12},{"$f":"[1]ACS_16_5YR_B03002_with_ann!AJ65","v":0},{"$f":"[1]ACS_16_5YR_B03002_with_ann!AK65","v":12},{"$f":"[1]ACS_16_5YR_B03002_with_ann!AL65","v":0},{"$f":"[1]ACS_16_5YR_B03002_with_ann!AM65","v":12},{"$f":"[1]ACS_16_5YR_B03002_with_ann!AN65","v":0},{"$f":"[1]ACS_16_5YR_B03002_with_ann!AO65","v":12},{"$f":"[1]ACS_16_5YR_B03002_with_ann!AP65","v":0},{"$f":"[1]ACS_16_5YR_B03002_with_ann!AQ65","v":12},{"$f":"[1]ACS_16_5YR_B03002_with_ann!AR65","v":0},{"$f":"[1]ACS_16_5YR_B03002_with_ann!AS65","v":12}]
["0600000US3300585540","0600000US3300585540","060",{"$f":"[1]ACS_16_5YR_B03002_with_ann!C66","v":"Winchester"},{"$f":"[1]ACS_16_5YR_B03002_with_ann!D66","v":4175},{"$f":"[1]ACS_16_5YR_B03002_with_ann!E66","v":25},{"$f":"[1]ACS_16_5YR_B03002_with_ann!F66","v":4155},{"$f":"[1]ACS_16_5YR_B03002_with_ann!G66","v":43},{"$f":"[1]ACS_16_5YR_B03002_with_ann!H66","v":4009},{"$f":"[1]ACS_16_5YR_B03002_with_ann!I66","v":108},{"$f":"[1]ACS_16_5YR_B03002_with_ann!J66","v":3},{"$f":"[1]ACS_16_5YR_B03002_with_ann!K66","v":8},{"$f":"[1]ACS_16_5YR_B03002_with_ann!L66","v":32},{"$f":"[1]ACS_16_5YR_B03002_with_ann!M66","v":27},{"$f":"[1]ACS_16_5YR_B03002_with_ann!N66","v":15},{"$f":"[1]ACS_16_5YR_B03002_with_ann!O66","v":22},{"$f":"[1]ACS_16_5YR_B03002_with_ann!P66","v":0},{"$f":"[1]ACS_16_5YR_B03002_with_ann!Q66","v":12},{"$f":"[1]ACS_16_5YR_B03002_with_ann!R66","v":0},{"$f":"[1]ACS_16_5YR_B03002_with_ann!S66","v":12},{"$f":"[1]ACS_16_5YR_B03002_with_ann!T66","v":96},{"$f":"[1]ACS_16_5YR_B03002_with_ann!U66","v":94},{"$f":"[1]ACS_16_5YR_B03002_with_ann!V66","v":48},{"$f":"[1]ACS_16_5YR_B03002_with_ann!W66","v":79},{"$f":"[1]ACS_16_5YR_B03002_with_ann!X66","v":48},{"$f":"[1]ACS_16_5YR_B03002_with_ann!Y66","v":51},{"$f":"[1]ACS_16_5YR_B03002_with_ann!Z66","v":20},{"$f":"[1]ACS_16_5YR_B03002_with_ann!AA66","v":34},{"$f":"[1]ACS_16_5YR_B03002_with_ann!AB66","v":0},{"$f":"[1]ACS_16_5YR_B03002_with_ann!AC66","v":12},{"$f":"[1]ACS_16_5YR_B03002_with_ann!AD66","v":0},{"$f":"[1]ACS_16_5YR_B03002_with_ann!AE66","v":12},{"$f":"[1]ACS_16_5YR_B03002_with_ann!AF66","v":0},{"$f":"[1]ACS_16_5YR_B03002_with_ann!AG66","v":12},{"$f":"[1]ACS_16_5YR_B03002_with_ann!AH66","v":0},{"$f":"[1]ACS_16_5YR_B03002_with_ann!AI66","v":12},{"$f":"[1]ACS_16_5YR_B03002_with_ann!AJ66","v":0},{"$f":"[1]ACS_16_5YR_B03002_with_ann!AK66","v":12},{"$f":"[1]ACS_16_5YR_B03002_with_ann!AL66","v":0},{"$f":"[1]ACS_16_5YR_B03002_with_ann!AM66","v":12},{"$f":"[1]ACS_16_5YR_B03002_with_ann!AN66","v":20},{"$f":"[1]ACS_16_5YR_B03002_with_ann!AO66","v":34},{"$f":"[1]ACS_16_5YR_B03002_with_ann!AP66","v":20},{"$f":"[1]ACS_16_5YR_B03002_with_ann!AQ66","v":34},{"$f":"[1]ACS_16_5YR_B03002_with_ann!AR66","v":0},{"$f":"[1]ACS_16_5YR_B03002_with_ann!AS66","v":12}]
[]
[]
[null,null,null,null,{"$f":"$D$3","v":"Alstead"},null,{"$f":"$D$4","v":"Chesterfield"},null,{"$f":"$D$5","v":"Dublin"},null,{"$f":"$D$6","v":"Fitzwilliam"},null,{"$f":"$D$7","v":"Gilsum"},null,{"$f":"$D$8","v":"Harrisville"},null,{"$f":"$D$9","v":"Hinsdale"},null,{"$f":"$D$10","v":"Jaffrey"},null,{"$f":"$D$11","v":"Keene"},null,{"$f":"$D$12","v":"Marlborough"},null,{"$f":"$D$13","v":"Marlow"},null,{"$f":"$D$14","v":"Nelson"},null,{"$f":"$D$15","v":"Richmond"},null,{"$f":"$D$16","v":"Rindge"},null,{"$f":"$D$17","v":"Roxbury"},null,{"$f":"$D$18","v":"Stoddard"},null,{"$f":"$D$19","v":"Sullivan"},null,{"$f":"$D$20","v":"Surry"},null,{"$f":"$D$21","v":"Swanzey"},null,{"$f":"$D$22","v":"Troy"},null,{"$f":"$D$23","v":"Walpole"},null,{"$f":"$D$24","v":"Westmoreland"},null,{"$f":"$D$25","v":"Winchester"}]
[null,null,null,null,"Estimate","Margin of Error","Estimate","Margin of Error","Estimate","Margin of Error","Estimate","Margin of Error","Estimate","Margin of Error","Estimate","Margin of Error","Estimate","Margin of Error","Estimate","Margin of Error","Estimate","Margin of Error","Estimate","Margin of Error","Estimate","Margin of Error"]
[]
[null,null,null,"Estimate!!Total:",1599,169,3577,15,1711,216,2287,368,871,144,977,197,3965,16,5363,32,22907,27,2253,391,803,175,550,106,1107,251,6446,21,295,142,1205,162,681,130,950,245,7306,22,1889,275,3651,33,2042,341,4175,25]
[null,null,null,"Estimate!!Total:!!Not Hispanic or Latino:",1566,170,3577,15,1689,212,2248,375,806,152,954,192,3939,45,5316,86,22383,183,2252,390,800,174,540,106,1069,247,6079,175,295,142,1201,163,668,131,945,245,7097,114,1869,277,3458,225,2042,341,4155,43]
[null,null,null,"Estimate!!Total:!!Not Hispanic or Latino:!!White alone",1523,174,3427,112,1602,229,2186,368,800,150,893,187,3827,106,4971,235,21127,330,2180,392,780,172,514,104,1050,246,5517,240,295,142,1161,156,615,126,913,240,6862,221,1842,269,3257,258,1985,333,4009,108]
[null,null,null,"Estimate!!Total:!!Not Hispanic or Latino:!!Black or African American alone",0,12,9,20,7,9,0,12,0,12,17,29,0,12,30,44,233,108,0,12,0,12,0,12,0,12,65,44,0,12,0,12,0,12,0,12,15,22,0,12,98,126,0,12,3,8]
[null,null,null,"Estimate!!Total:!!Not Hispanic or Latino:!!American Indian and Alaska Native alone",1,3,0,12,2,3,0,12,5,8,5,6,0,12,0,17,22,27,10,17,0,12,0,12,0,12,0,17,0,12,6,8,0,12,5,8,0,17,4,6,0,12,6,6,32,27]
[null,null,null,"Estimate!!Total:!!Not Hispanic or Latino:!!Asian alone",19,19,79,92,25,22,13,39,0,12,12,17,0,12,53,64,148,132,1,2,0,12,0,12,7,11,83,87,0,12,6,8,26,24,0,12,20,42,0,12,0,12,5,9,15,22]
[null,null,null,"Estimate!!Total:!!Not Hispanic or Latino:!!Native Hawaiian and Other Pacific Islander alone",0,12,0,12,0,12,0,12,0,12,0,12,7,8,0,17,7,15,0,12,0,12,0,12,0,12,0,17,0,12,0,12,0,12,0,12,0,17,0,12,0,12,0,12,0,12]
[null,null,null,"Estimate!!Total:!!Not Hispanic or Latino:!!Some other race alone",0,12,0,12,3,4,3,5,0,12,0,12,0,12,0,17,66,111,0,12,9,12,2,3,3,4,0,17,0,12,0,12,5,7,0,12,40,59,0,12,13,23,10,17,0,12]
[null,null,null,"Estimate!!Total:!!Not Hispanic or Latino:!!Two or more races:",23,23,62,62,50,45,46,35,1,2,27,24,105,102,262,162,780,247,61,45,11,9,24,24,9,11,414,211,0,12,28,22,22,18,27,19,160,145,23,26,90,61,36,27,96,94]
[null,null,null,"Estimate!!Total:!!Not Hispanic or Latino:!!Two or more races:!!Two races including Some other race",13,19,0,12,28,39,25,28,0,12,0,12,0,12,0,17,101,70,17,20,5,7,3,4,3,4,8,13,0,12,0,12,5,7,0,12,45,77,5,7,7,13,9,14,48,79]
[null,null,null,"Estimate!!Total:!!Not Hispanic or Latino:!!Two or more races:!!Two races excluding Some other race, and three or more races",10,13,62,62,22,24,21,21,1,2,27,24,105,102,262,162,679,249,44,40,6,6,21,24,6,10,406,211,0,12,28,22,17,18,27,19,115,144,18,25,83,58,27,23,48,51]
[null,null,null,"Estimate!!Total:!!Hispanic or Latino:",33,37,0,12,22,22,39,51,65,81,23,27,26,40,47,81,524,186,1,5,3,4,10,9,38,36,367,179,0,12,4,5,13,14,5,7,209,111,20,29,193,224,0,12,20,34]
[null,null,null,"Estimate!!Total:!!Hispanic or Latino:!!White alone",0,12,0,12,11,18,21,39,55,79,19,22,0,12,0,17,153,88,0,12,3,4,0,12,3,5,78,100,0,12,0,12,5,7,0,12,75,80,0,12,36,58,0,12,0,12]
[null,null,null,"Estimate!!Total:!!Hispanic or Latino:!!Black or African American alone",0,12,0,12,0,12,0,12,0,12,0,12,0,12,31,56,7,7,0,12,0,12,0,12,0,12,2,6,0,12,0,12,0,12,0,12,0,17,0,12,0,12,0,12,0,12]
[null,null,null,"Estimate!!Total:!!Hispanic or Latino:!!American Indian and Alaska Native alone",0,12,0,12,0,12,0,12,0,12,4,6,0,12,0,17,0,22,0,12,0,12,0,12,0,12,0,17,0,12,0,12,0,12,0,12,0,17,0,12,0,12,0,12,0,12]
[null,null,null,"Estimate!!Total:!!Hispanic or Latino:!!Asian alone",0,12,0,12,0,12,0,12,0,12,0,12,0,12,0,17,0,22,0,12,0,12,0,12,0,12,0,17,0,12,0,12,0,12,0,12,0,17,0,12,0,12,0,12,0,12]
[null,null,null,"Estimate!!Total:!!Hispanic or Latino:!!Native Hawaiian and Other Pacific Islander alone",0,12,0,12,0,12,0,12,0,12,0,12,0,12,0,17,0,22,0,12,0,12,0,12,0,12,0,17,0,12,0,12,0,12,0,12,0,17,0,12,0,12,0,12,0,12]
[null,null,null,"Estimate!!Total:!!Hispanic or Latino:!!Some other race alone",15,23,0,12,0,12,0,12,10,14,0,12,26,40,16,28,65,52,0,12,0,12,0,12,4,10,69,64,0,12,0,12,8,12,0,12,0,17,8,13,157,216,0,12,0,12]
[null,null,null,"Estimate!!Total:!!Hispanic or Latino:!!Two or more races:",18,26,0,12,11,11,18,32,0,12,0,12,0,12,0,17,299,128,1,5,0,12,10,9,31,32,218,155,0,12,4,5,0,12,5,7,134,87,12,25,0,12,0,12,20,34]
[null,null,null,"Estimate!!Total:!!Hispanic or Latino:!!Two or more races:!!Two races including Some other race",18,26,0,12,11,11,0,12,0,12,0,12,0,12,0,17,233,114,1,5,0,12,10,9,31,32,57,59,0,12,4,5,0,12,5,7,134,87,12,25,0,12,0,12,20,34]
[null,null,null,"Estimate!!Total:!!Hispanic or Latino:!!Two or more races:!!Two races excluding Some other race, and three or more races",0,12,0,12,0,12,18,32,0,12,0,12,0,12,0,17,66,82,0,12,0,12,0,12,0,12,161,166,0,12,0,12,0,12,0,12,0,17,0,12,0,12,0,12,0,12]

{"sheet":"SData_B05002_PlaceofBirthCitzSt","index":22,"n_rows":57,"n_cols":58,"rows_kept":57,"cut":false,"hidden":true,"merged":[]}
["GEO_ID","GEO_ID2","SUMLEVEL","GEO_NAME",{"$f":"[1]ACS_16_5YR_B05002_with_ann!D1","v":"B05002_001E"},{"$f":"[1]ACS_16_5YR_B05002_with_ann!E1","v":"B05002_001M"},{"$f":"[1]ACS_16_5YR_B05002_with_ann!F1","v":"B05002_002E"},{"$f":"[1]ACS_16_5YR_B05002_with_ann!G1","v":"B05002_002M"},{"$f":"[1]ACS_16_5YR_B05002_with_ann!H1","v":"B05002_003E"},{"$f":"[1]ACS_16_5YR_B05002_with_ann!I1","v":"B05002_003M"},{"$f":"[1]ACS_16_5YR_B05002_with_ann!J1","v":"B05002_004E"},{"$f":"[1]ACS_16_5YR_B05002_with_ann!K1","v":"B05002_004M"},{"$f":"[1]ACS_16_5YR_B05002_with_ann!L1","v":"B05002_005E"},{"$f":"[1]ACS_16_5YR_B05002_with_ann!M1","v":"B05002_005M"},{"$f":"[1]ACS_16_5YR_B05002_with_ann!N1","v":"B05002_006E"},{"$f":"[1]ACS_16_5YR_B05002_with_ann!O1","v":"B05002_006M"},{"$f":"[1]ACS_16_5YR_B05002_with_ann!P1","v":"B05002_007E"},{"$f":"[1]ACS_16_5YR_B05002_with_ann!Q1","v":"B05002_007M"},{"$f":"[1]ACS_16_5YR_B05002_with_ann!R1","v":"B05002_008E"},{"$f":"[1]ACS_16_5YR_B05002_with_ann!S1","v":"B05002_008M"},{"$f":"[1]ACS_16_5YR_B05002_with_ann!T1","v":"B05002_009E"},{"$f":"[1]ACS_16_5YR_B05002_with_ann!U1","v":"B05002_009M"},{"$f":"[1]ACS_16_5YR_B05002_with_ann!V1","v":"B05002_010E"},{"$f":"[1]ACS_16_5YR_B05002_with_ann!W1","v":"B05002_010M"},{"$f":"[1]ACS_16_5YR_B05002_with_ann!X1","v":"B05002_011E"},{"$f":"[1]ACS_16_5YR_B05002_with_ann!Y1","v":"B05002_011M"},{"$f":"[1]ACS_16_5YR_B05002_with_ann!Z1","v":"B05002_012E"},{"$f":"[1]ACS_16_5YR_B05002_with_ann!AA1","v":"B05002_012M"},{"$f":"[1]ACS_16_5YR_B05002_with_ann!AB1","v":"B05002_013E"},{"$f":"[1]ACS_16_5YR_B05002_with_ann!AC1","v":"B05002_013M"},{"$f":"[1]ACS_16_5YR_B05002_with_ann!AD1","v":"B05002_014E"},{"$f":"[1]ACS_16_5YR_B05002_with_ann!AE1","v":"B05002_014M"},{"$f":"[1]ACS_16_5YR_B05002_with_ann!AF1","v":"B05002_015E"},{"$f":"[1]ACS_16_5YR_B05002_with_ann!AG1","v":"B05002_015M"},{"$f":"[1]ACS_16_5YR_B05002_with_ann!AH1","v":"B05002_016E"},{"$f":"[1]ACS_16_5YR_B05002_with_ann!AI1","v":"B05002_016M"},{"$f":"[1]ACS_16_5YR_B05002_with_ann!AJ1","v":"B05002_017E"},{"$f":"[1]ACS_16_5YR_B05002_with_ann!AK1","v":"B05002_017M"},{"$f":"[1]ACS_16_5YR_B05002_with_ann!AL1","v":"B05002_018E"},{"$f":"[1]ACS_16_5YR_B05002_with_ann!AM1","v":"B05002_018M"},{"$f":"[1]ACS_16_5YR_B05002_with_ann!AN1","v":"B05002_019E"},{"$f":"[1]ACS_16_5YR_B05002_with_ann!AO1","v":"B05002_019M"},{"$f":"[1]ACS_16_5YR_B05002_with_ann!AP1","v":"B05002_020E"},{"$f":"[1]ACS_16_5YR_B05002_with_ann!AQ1","v":"B05002_020M"},{"$f":"[1]ACS_16_5YR_B05002_with_ann!AR1","v":"B05002_021E"},{"$f":"[1]ACS_16_5YR_B05002_with_ann!AS1","v":"B05002_021M"},{"$f":"[1]ACS_16_5YR_B05002_with_ann!AT1","v":"B05002_022E"},{"$f":"[1]ACS_16_5YR_B05002_with_ann!AU1","v":"B05002_022M"},{"$f":"[1]ACS_16_5YR_B05002_with_ann!AV1","v":"B05002_023E"},{"$f":"[1]ACS_16_5YR_B05002_with_ann!AW1","v":"B05002_023M"},{"$f":"[1]ACS_16_5YR_B05002_with_ann!AX1","v":"B05002_024E"},{"$f":"[1]ACS_16_5YR_B05002_with_ann!AY1","v":"B05002_024M"},{"$f":"[1]ACS_16_5YR_B05002_with_ann!AZ1","v":"B05002_025E"},{"$f":"[1]ACS_16_5YR_B05002_with_ann!BA1","v":"B05002_025M"},{"$f":"[1]ACS_16_5YR_B05002_with_ann!BB1","v":"B05002_026E"},{"$f":"[1]ACS_16_5YR_B05002_with_ann!BC1","v":"B05002_026M"},{"$f":"[1]ACS_16_5YR_B05002_with_ann!BD1","v":"B05002_027E"},{"$f":"[1]ACS_16_5YR_B05002_with_ann!BE1","v":"B05002_027M"}]
["Geography Identifier","Geography Identifier","Geographic Summary Level","Geography",{"$f":"[1]ACS_16_5YR_B05002_with_ann!D2","v":"Estimate!!Total:"},{"$f":"[1]ACS_16_5YR_B05002_with_ann!E2","v":"Margin of Error!!Total:"},{"$f":"[1]ACS_16_5YR_B05002_with_ann!F2","v":"Estimate!!Total:!!Native:"},{"$f":"[1]ACS_16_5YR_B05002_with_ann!G2","v":"Margin of Error!!Total:!!Native:"},{"$f":"[1]ACS_16_5YR_B05002_with_ann!H2","v":"Estimate!!Total:!!Native:!!Born in state of residence"},{"$f":"[1]ACS_16_5YR_B05002_with_ann!I2","v":"Margin of Error!!Total:!!Native:!!Born in state of residence"},{"$f":"[1]ACS_16_5YR_B05002_with_ann!J2","v":"Estimate!!Total:!!Native:!!Born in other state in the United States:"},{"$f":"[1]ACS_16_5YR_B05002_with_ann!K2","v":"Margin of Error!!Total:!!Native:!!Born in other state in the United States:"},{"$f":"[1]ACS_16_5YR_B05002_with_ann!L2","v":"Estimate!!Total:!!Native:!!Born in other state in the United States:!!Northeast"},{"$f":"[1]ACS_16_5YR_B05002_with_ann!M2","v":"Margin of Error!!Total:!!Native:!!Born in other state in the United States:!!Northeast"},{"$f":"[1]ACS_16_5YR_B05002_with_ann!N2","v":"Estimate!!Total:!!Native:!!Born in other state in the United States:!!Midwest"},{"$f":"[1]ACS_16_5YR_B05002_with_ann!O2","v":"Margin of Error!!Total:!!Native:!!Born in other state in the United States:!!Midwest"},{"$f":"[1]ACS_16_5YR_B05002_with_ann!P2","v":"Estimate!!Total:!!Native:!!Born in other state in the United States:!!South"},{"$f":"[1]ACS_16_5YR_B05002_with_ann!Q2","v":"Margin of Error!!Total:!!Native:!!Born in other state in the United States:!!South"},{"$f":"[1]ACS_16_5YR_B05002_with_ann!R2","v":"Estimate!!Total:!!Native:!!Born in other state in the United States:!!West"},{"$f":"[1]ACS_16_5YR_B05002_with_ann!S2","v":"Margin of Error!!Total:!!Native:!!Born in other state in the United States:!!West"},{"$f":"[1]ACS_16_5YR_B05002_with_ann!T2","v":"Estimate!!Total:!!Native:!!Born outside the United States:"},{"$f":"[1]ACS_16_5YR_B05002_with_ann!U2","v":"Margin of Error!!Total:!!Native:!!Born outside the United States:"},{"$f":"[1]ACS_16_5YR_B05002_with_ann!V2","v":"Estimate!!Total:!!Native:!!Born outside the United States:!!Puerto Rico"},{"$f":"[1]ACS_16_5YR_B05002_with_ann!W2","v":"Margin of Error!!Total:!!Native:!!Born outside the United States:!!Puerto Rico"},{"$f":"[1]ACS_16_5YR_B05002_with_ann!X2","v":"Estimate!!Total:!!Native:!!Born outside the United States:!!U.S. Island Areas"},{"$f":"[1]ACS_16_5YR_B05002_with_ann!Y2","v":"Margin of Error!!Total:!!Native:!!Born outside the United States:!!U.S. Island Areas"},{"$f":"[1]ACS_16_5YR_B05002_with_ann!Z2","v":"Estimate!!Total:!!Native:!!Born outside the United States:!!Born abroad of American parent(s)"},{"$f":"[1]ACS_16_5YR_B05002_with_ann!AA2","v":"Margin of Error!!Total:!!Native:!!Born outside the United States:!!Born abroad of American parent(s)"},{"$f":"[1]ACS_16_5YR_B05002_with_ann!AB2","v":"Estimate!!Total:!!Foreign born:"},{"$f":"[1]ACS_16_5YR_B05002_with_ann!AC2","v":"Margin of Error!!Total:!!Foreign born:"},{"$f":"[1]ACS_16_5YR_B05002_with_ann!AD2","v":"Estimate!!Total:!!Foreign born:!!Naturalized U.S. citizen"},{"$f":"[1]ACS_16_5YR_B05002_with_ann!AE2","v":"Margin of Error!!Total:!!Foreign born:!!Naturalized U.S. citizen"},{"$f":"[1]ACS_16_5YR_B05002_with_ann!AF2","v":"Estimate!!Total:!!Foreign born:!!Naturalized U.S. citizen!!Europe"},{"$f":"[1]ACS_16_5YR_B05002_with_ann!AG2","v":"Margin of Error!!Total:!!Foreign born:!!Naturalized U.S. citizen!!Europe"},{"$f":"[1]ACS_16_5YR_B05002_with_ann!AH2","v":"Estimate!!Total:!!Foreign born:!!Naturalized U.S. citizen!!Asia"},{"$f":"[1]ACS_16_5YR_B05002_with_ann!AI2","v":"Margin of Error!!Total:!!Foreign born:!!Naturalized U.S. citizen!!Asia"},{"$f":"[1]ACS_16_5YR_B05002_with_ann!AJ2","v":"Estimate!!Total:!!Foreign born:!!Naturalized U.S. citizen!!Africa"},{"$f":"[1]ACS_16_5YR_B05002_with_ann!AK2","v":"Margin of Error!!Total:!!Foreign born:!!Naturalized U.S. citizen!!Africa"},{"$f":"[1]ACS_16_5YR_B05002_with_ann!AL2","v":"Estimate!!Total:!!Foreign born:!!Naturalized U.S. citizen!!Oceania"},{"$f":"[1]ACS_16_5YR_B05002_with_ann!AM2","v":"Margin of Error!!Total:!!Foreign born:!!Naturalized U.S. citizen!!Oceania"},{"$f":"[1]ACS_16_5YR_B05002_with_ann!AN2","v":"Estimate!!Total:!!Foreign born:!!Naturalized U.S. citizen!!Latin America"},{"$f":"[1]ACS_16_5YR_B05002_with_ann!AO2","v":"Margin of Error!!Total:!!Foreign born:!!Naturalized U.S. citizen!!Latin America"},{"$f":"[1]ACS_16_5YR_B05002_with_ann!AP2","v":"Estimate!!Total:!!Foreign born:!!Naturalized U.S. citizen!!Northern America"},{"$f":"[1]ACS_16_5YR_B05002_with_ann!AQ2","v":"Margin of Error!!Total:!!Foreign born:!!Naturalized U.S. citizen!!Northern America"},{"$f":"[1]ACS_16_5YR_B05002_with_ann!AR2","v":"Estimate!!Total:!!Foreign born:!!Not a U.S. citizen"},{"$f":"[1]ACS_16_5YR_B05002_with_ann!AS2","v":"Margin of Error!!Total:!!Foreign born:!!Not a U.S. citizen"},{"$f":"[1]ACS_16_5YR_B05002_with_ann!AT2","v":"Estimate!!Total:!!Foreign born:!!Not a U.S. citizen!!Europe"},{"$f":"[1]ACS_16_5YR_B05002_with_ann!AU2","v":"Margin of Error!!Total:!!Foreign born:!!Not a U.S. citizen!!Europe"},{"$f":"[1]ACS_16_5YR_B05002_with_ann!AV2","v":"Estimate!!Total:!!Foreign born:!!Not a U.S. citizen!!Asia"},{"$f":"[1]ACS_16_5YR_B05002_with_ann!AW2","v":"Margin of Error!!Total:!!Foreign born:!!Not a U.S. citizen!!Asia"},{"$f":"[1]ACS_16_5YR_B05002_with_ann!AX2","v":"Estimate!!Total:!!Foreign born:!!Not a U.S. citizen!!Africa"},{"$f":"[1]ACS_16_5YR_B05002_with_ann!AY2","v":"Margin of Error!!Total:!!Foreign born:!!Not a U.S. citizen!!Africa"},{"$f":"[1]ACS_16_5YR_B05002_with_ann!AZ2","v":"Estimate!!Total:!!Foreign born:!!Not a U.S. citizen!!Oceania"},{"$f":"[1]ACS_16_5YR_B05002_with_ann!BA2","v":"Margin of Error!!Total:!!Foreign born:!!Not a U.S. citizen!!Oceania"},{"$f":"[1]ACS_16_5YR_B05002_with_ann!BB2","v":"Estimate!!Total:!!Foreign born:!!Not a U.S. citizen!!Latin America"},{"$f":"[1]ACS_16_5YR_B05002_with_ann!BC2","v":"Margin of Error!!Total:!!Foreign born:!!Not a U.S. citizen!!Latin America"},{"$f":"[1]ACS_16_5YR_B05002_with_ann!BD2","v":"Estimate!!Total:!!Foreign born:!!Not a U.S. citizen!!Northern America"},{"$f":"[1]ACS_16_5YR_B05002_with_ann!BE2","v":"Margin of Error!!Total:!!Foreign born:!!Not a U.S. citizen!!Northern America"}]
["0600000US3300500820","0600000US3300500820","060",{"$f":"[1]ACS_16_5YR_B05002_with_ann!C44","v":"Alstead"},{"$f":"[1]ACS_16_5YR_B05002_with_ann!D44","v":1599},{"$f":"[1]ACS_16_5YR_B05002_with_ann!E44","v":169},{"$f":"[1]ACS_16_5YR_B05002_with_ann!F44","v":1564},{"$f":"[1]ACS_16_5YR_B05002_with_ann!G44","v":172},{"$f":"[1]ACS_16_5YR_B05002_with_ann!H44","v":717},{"$f":"[1]ACS_16_5YR_B05002_with_ann!I44","v":132},{"$f":"[1]ACS_16_5YR_B05002_with_ann!J44","v":832},{"$f":"[1]ACS_16_5YR_B05002_with_ann!K44","v":116},{"$f":"[1]ACS_16_5YR_B05002_with_ann!L44","v":729},{"$f":"[1]ACS_16_5YR_B05002_with_ann!M44","v":117},{"$f":"[1]ACS_16_5YR_B05002_with_ann!N44","v":39},{"$f":"[1]ACS_16_5YR_B05002_with_ann!O44","v":38},{"$f":"[1]ACS_16_5YR_B05002_with_ann!P44","v":46},{"$f":"[1]ACS_16_5YR_B05002_with_ann!Q44","v":22},{"$f":"[1]ACS_16_5YR_B05002_with_ann!R44","v":18},{"$f":"[1]ACS_16_5YR_B05002_with_ann!S44","v":14},{"$f":"[1]ACS_16_5YR_B05002_with_ann!T44","v":15},{"$f":"[1]ACS_16_5YR_B05002_with_ann!U44","v":23},{"$f":"[1]ACS_16_5YR_B05002_with_ann!V44","v":15},{"$f":"[1]ACS_16_5YR_B05002_with_ann!W44","v":23},{"$f":"[1]ACS_16_5YR_B05002_with_ann!X44","v":0},{"$f":"[1]ACS_16_5YR_B05002_with_ann!Y44","v":12},{"$f":"[1]ACS_16_5YR_B05002_with_ann!Z44","v":0},{"$f":"[1]ACS_16_5YR_B05002_with_ann!AA44","v":12},{"$f":"[1]ACS_16_5YR_B05002_with_ann!AB44","v":35},{"$f":"[1]ACS_16_5YR_B05002_with_ann!AC44","v":23},{"$f":"[1]ACS_16_5YR_B05002_with_ann!AD44","v":20},{"$f":"[1]ACS_16_5YR_B05002_with_ann!AE44","v":17},{"$f":"[1]ACS_16_5YR_B05002_with_ann!AF44","v":7},{"$f":"[1]ACS_16_5YR_B05002_with_ann!AG44","v":9},{"$f":"[1]ACS_16_5YR_B05002_with_ann!AH44","v":13},{"$f":"[1]ACS_16_5YR_B05002_with_ann!AI44","v":15},{"$f":"[1]ACS_16_5YR_B05002_with_ann!AJ44","v":0},{"$f":"[1]ACS_16_5YR_B05002_with_ann!AK44","v":12},{"$f":"[1]ACS_16_5YR_B05002_with_ann!AL44","v":0},{"$f":"[1]ACS_16_5YR_B05002_with_ann!AM44","v":12},{"$f":"[1]ACS_16_5YR_B05002_with_ann!AN44","v":0},{"$f":"[1]ACS_16_5YR_B05002_with_ann!AO44","v":12},{"$f":"[1]ACS_16_5YR_B05002_with_ann!AP44","v":0},{"$f":"[1]ACS_16_5YR_B05002_with_ann!AQ44","v":12},{"$f":"[1]ACS_16_5YR_B05002_with_ann!AR44","v":15},{"$f":"[1]ACS_16_5YR_B05002_with_ann!AS44","v":17},{"$f":"[1]ACS_16_5YR_B05002_with_ann!AT44","v":0},{"$f":"[1]ACS_16_5YR_B05002_with_ann!AU44","v":12},{"$f":"[1]ACS_16_5YR_B05002_with_ann!AV44","v":6},{"$f":"[1]ACS_16_5YR_B05002_with_ann!AW44","v":11},{"$f":"[1]ACS_16_5YR_B05002_with_ann!AX44","v":0},{"$f":"[1]ACS_16_5YR_B05002_with_ann!AY44","v":12},{"$f":"[1]ACS_16_5YR_B05002_with_ann!AZ44","v":0},{"$f":"[1]ACS_16_5YR_B05002_with_ann!BA44","v":12},{"$f":"[1]ACS_16_5YR_B05002_with_ann!BB44","v":0},{"$f":"[1]ACS_16_5YR_B05002_with_ann!BC44","v":12},{"$f":"[1]ACS_16_5YR_B05002_with_ann!BD44","v":9},{"$f":"[1]ACS_16_5YR_B05002_with_ann!BE44","v":13}]
["0600000US3300512260","0600000US3300512260","060",{"$f":"[1]ACS_16_5YR_B05002_with_ann!C45","v":"Chesterfield"},{"$f":"[1]ACS_16_5YR_B05002_with_ann!D45","v":3577},{"$f":"[1]ACS_16_5YR_B05002_with_ann!E45","v":15},{"$f":"[1]ACS_16_5YR_B05002_with_ann!F45","v":3422},{"$f":"[1]ACS_16_5YR_B05002_with_ann!G45","v":106},{"$f":"[1]ACS_16_5YR_B05002_with_ann!H45","v":1033},{"$f":"[1]ACS_16_5YR_B05002_with_ann!I45","v":344},{"$f":"[1]ACS_16_5YR_B05002_with_ann!J45","v":2378},{"$f":"[1]ACS_16_5YR_B05002_with_ann!K45","v":357},{"$f":"[1]ACS_16_5YR_B05002_with_ann!L45","v":1852},{"$f":"[1]ACS_16_5YR_B05002_with_ann!M45","v":308},{"$f":"[1]ACS_16_5YR_B05002_with_ann!N45","v":237},{"$f":"[1]ACS_16_5YR_B05002_with_ann!O45","v":146},{"$f":"[1]ACS_16_5YR_B05002_with_ann!P45","v":203},{"$f":"[1]ACS_16_5YR_B05002_with_ann!Q45","v":108},{"$f":"[1]ACS_16_5YR_B05002_with_ann!R45","v":86},{"$f":"[1]ACS_16_5YR_B05002_with_ann!S45","v":74},{"$f":"[1]ACS_16_5YR_B05002_with_ann!T45","v":11},{"$f":"[1]ACS_16_5YR_B05002_with_ann!U45","v":19},{"$f":"[1]ACS_16_5YR_B05002_with_ann!V45","v":0},{"$f":"[1]ACS_16_5YR_B05002_with_ann!W45","v":12},{"$f":"[1]ACS_16_5YR_B05002_with_ann!X45","v":0},{"$f":"[1]ACS_16_5YR_B05002_with_ann!Y45","v":12},{"$f":"[1]ACS_16_5YR_B05002_with_ann!Z45","v":11},{"$f":"[1]ACS_16_5YR_B05002_with_ann!AA45","v":19},{"$f":"[1]ACS_16_5YR_B05002_with_ann!AB45","v":155},{"$f":"[1]ACS_16_5YR_B05002_with_ann!AC45","v":106},{"$f":"[1]ACS_16_5YR_B05002_with_ann!AD45","v":61},{"$f":"[1]ACS_16_5YR_B05002_with_ann!AE45","v":45},{"$f":"[1]ACS_16_5YR_B05002_with_ann!AF45","v":37},{"$f":"[1]ACS_16_5YR_B05002_with_ann!AG45","v":36},{"$f":"[1]ACS_16_5YR_B05002_with_ann!AH45","v":0},{"$f":"[1]ACS_16_5YR_B05002_with_ann!AI45","v":12},{"$f":"[1]ACS_16_5YR_B05002_with_ann!AJ45","v":9},{"$f":"[1]ACS_16_5YR_B05002_with_ann!AK45","v":20},{"$f":"[1]ACS_16_5YR_B05002_with_ann!AL45","v":0},{"$f":"[1]ACS_16_5YR_B05002_with_ann!AM45","v":12},{"$f":"[1]ACS_16_5YR_B05002_with_ann!AN45","v":0},{"$f":"[1]ACS_16_5YR_B05002_with_ann!AO45","v":12},{"$f":"[1]ACS_16_5YR_B05002_with_ann!AP45","v":15},{"$f":"[1]ACS_16_5YR_B05002_with_ann!AQ45","v":24},{"$f":"[1]ACS_16_5YR_B05002_with_ann!AR45","v":94},{"$f":"[1]ACS_16_5YR_B05002_with_ann!AS45","v":90},{"$f":"[1]ACS_16_5YR_B05002_with_ann!AT45","v":67},{"$f":"[1]ACS_16_5YR_B05002_with_ann!AU45","v":77},{"$f":"[1]ACS_16_5YR_B05002_with_ann!AV45","v":27},{"$f":"[1]ACS_16_5YR_B05002_with_ann!AW45","v":43},{"$f":"[1]ACS_16_5YR_B05002_with_ann!AX45","v":0},{"$f":"[1]ACS_16_5YR_B05002_with_ann!AY45","v":12},{"$f":"[1]ACS_16_5YR_B05002_with_ann!AZ45","v":0},{"$f":"[1]ACS_16_5YR_B05002_with_ann!BA45","v":12},{"$f":"[1]ACS_16_5YR_B05002_with_ann!BB45","v":0},{"$f":"[1]ACS_16_5YR_B05002_with_ann!BC45","v":12},{"$f":"[1]ACS_16_5YR_B05002_with_ann!BD45","v":0},{"$f":"[1]ACS_16_5YR_B05002_with_ann!BE45","v":12}]
["0600000US3300519140","0600000US3300519140","060",{"$f":"[1]ACS_16_5YR_B05002_with_ann!C46","v":"Dublin"},{"$f":"[1]ACS_16_5YR_B05002_with_ann!D46","v":1711},{"$f":"[1]ACS_16_5YR_B05002_with_ann!E46","v":216},{"$f":"[1]ACS_16_5YR_B05002_with_ann!F46","v":1653},{"$f":"[1]ACS_16_5YR_B05002_with_ann!G46","v":212},{"$f":"[1]ACS_16_5YR_B05002_with_ann!H46","v":757},{"$f":"[1]ACS_16_5YR_B05002_with_ann!I46","v":173},{"$f":"[1]ACS_16_5YR_B05002_with_ann!J46","v":882},{"$f":"[1]ACS_16_5YR_B05002_with_ann!K46","v":157},{"$f":"[1]ACS_16_5YR_B05002_with_ann!L46","v":613},{"$f":"[1]ACS_16_5YR_B05002_with_ann!M46","v":158},{"$f":"[1]ACS_16_5YR_B05002_with_ann!N46","v":40},{"$f":"[1]ACS_16_5YR_B05002_with_ann!O46","v":21},{"$f":"[1]ACS_16_5YR_B05002_with_ann!P46","v":164},{"$f":"[1]ACS_16_5YR_B05002_with_ann!Q46","v":69},{"$f":"[1]ACS_16_5YR_B05002_with_ann!R46","v":65},{"$f":"[1]ACS_16_5YR_B05002_with_ann!S46","v":28},{"$f":"[1]ACS_16_5YR_B05002_with_ann!T46","v":14},{"$f":"[1]ACS_16_5YR_B05002_with_ann!U46","v":20},{"$f":"[1]ACS_16_5YR_B05002_with_ann!V46","v":0},{"$f":"[1]ACS_16_5YR_B05002_with_ann!W46","v":12},{"$f":"[1]ACS_16_5YR_B05002_with_ann!X46","v":10},{"$f":"[1]ACS_16_5YR_B05002_with_ann!Y46","v":20},{"$f":"[1]ACS_16_5YR_B05002_with_ann!Z46","v":4},{"$f":"[1]ACS_16_5YR_B05002_with_ann!AA46","v":5},{"$f":"[1]ACS_16_5YR_B05002_with_ann!AB46","v":58},{"$f":"[1]ACS_16_5YR_B05002_with_ann!AC46","v":34},{"$f":"[1]ACS_16_5YR_B05002_with_ann!AD46","v":54},{"$f":"[1]ACS_16_5YR_B05002_with_ann!AE46","v":33},{"$f":"[1]ACS_16_5YR_B05002_with_ann!AF46","v":15},{"$f":"[1]ACS_16_5YR_B05002_with_ann!AG46","v":11},{"$f":"[1]ACS_16_5YR_B05002_with_ann!AH46","v":25},{"$f":"[1]ACS_16_5YR_B05002_with_ann!AI46","v":22},{"$f":"[1]ACS_16_5YR_B05002_with_ann!AJ46","v":0},{"$f":"[1]ACS_16_5YR_B05002_with_ann!AK46","v":12},{"$f":"[1]ACS_16_5YR_B05002_with_ann!AL46","v":1},{"$f":"[1]ACS_16_5YR_B05002_with_ann!AM46","v":4},{"$f":"[1]ACS_16_5YR_B05002_with_ann!AN46","v":13},{"$f":"[1]ACS_16_5YR_B05002_with_ann!AO46","v":18},{"$f":"[1]ACS_16_5YR_B05002_with_ann!AP46","v":0},{"$f":"[1]ACS_16_5YR_B05002_with_ann!AQ46","v":12},{"$f":"[1]ACS_16_5YR_B05002_with_ann!AR46","v":4},{"$f":"[1]ACS_16_5YR_B05002_with_ann!AS46","v":6},{"$f":"[1]ACS_16_5YR_B05002_with_ann!AT46","v":4},{"$f":"[1]ACS_16_5YR_B05002_with_ann!AU46","v":6},{"$f":"[1]ACS_16_5YR_B05002_with_ann!AV46","v":0},{"$f":"[1]ACS_16_5YR_B05002_with_ann!AW46","v":12},{"$f":"[1]ACS_16_5YR_B05002_with_ann!AX46","v":0},{"$f":"[1]ACS_16_5YR_B05002_with_ann!AY46","v":12},{"$f":"[1]ACS_16_5YR_B05002_with_ann!AZ46","v":0},{"$f":"[1]ACS_16_5YR_B05002_with_ann!BA46","v":12},{"$f":"[1]ACS_16_5YR_B05002_with_ann!BB46","v":0},{"$f":"[1]ACS_16_5YR_B05002_with_ann!BC46","v":12},{"$f":"[1]ACS_16_5YR_B05002_with_ann!BD46","v":0},{"$f":"[1]ACS_16_5YR_B05002_with_ann!BE46","v":12}]
["0600000US3300526500","0600000US3300526500","060",{"$f":"[1]ACS_16_5YR_B05002_with_ann!C47","v":"Fitzwilliam"},{"$f":"[1]ACS_16_5YR_B05002_with_ann!D47","v":2287},{"$f":"[1]ACS_16_5YR_B05002_with_ann!E47","v":368},{"$f":"[1]ACS_16_5YR_B05002_with_ann!F47","v":2262},{"$f":"[1]ACS_16_5YR_B05002_with_ann!G47","v":365},{"$f":"[1]ACS_16_5YR_B05002_with_ann!H47","v":578},{"$f":"[1]ACS_16_5YR_B05002_with_ann!I47","v":142},{"$f":"[1]ACS_16_5YR_B05002_with_ann!J47","v":1684},{"$f":"[1]ACS_16_5YR_B05002_with_ann!K47","v":319},{"$f":"[1]ACS_16_5YR_B05002_with_ann!L47","v":1438},{"$f":"[1]ACS_16_5YR_B05002_with_ann!M47","v":306},{"$f":"[1]ACS_16_5YR_B05002_with_ann!N47","v":59},{"$f":"[1]ACS_16_5YR_B05002_with_ann!O47","v":35},{"$f":"[1]ACS_16_5YR_B05002_with_ann!P47","v":80},{"$f":"[1]ACS_16_5YR_B05002_with_ann!Q47","v":47},{"$f":"[1]ACS_16_5YR_B05002_with_ann!R47","v":107},{"$f":"[1]ACS_16_5YR_B05002_with_ann!S47","v":49},{"$f":"[1]ACS_16_5YR_B05002_with_ann!T47","v":0},{"$f":"[1]ACS_16_5YR_B05002_with_ann!U47","v":12},{"$f":"[1]ACS_16_5YR_B05002_with_ann!V47","v":0},{"$f":"[1]ACS_16_5YR_B05002_with_ann!W47","v":12},{"$f":"[1]ACS_16_5YR_B05002_with_ann!X47","v":0},{"$f":"[1]ACS_16_5YR_B05002_with_ann!Y47","v":12},{"$f":"[1]ACS_16_5YR_B05002_with_ann!Z47","v":0},{"$f":"[1]ACS_16_5YR_B05002_with_ann!AA47","v":12},{"$f":"[1]ACS_16_5YR_B05002_with_ann!AB47","v":25},{"$f":"[1]ACS_16_5YR_B05002_with_ann!AC47","v":41},{"$f":"[1]ACS_16_5YR_B05002_with_ann!AD47","v":20},{"$f":"[1]ACS_16_5YR_B05002_with_ann!AE47","v":40},{"$f":"[1]ACS_16_5YR_B05002_with_ann!AF47","v":4},{"$f":"[1]ACS_16_5YR_B05002_with_ann!AG47","v":6},{"$f":"[1]ACS_16_5YR_B05002_with_ann!AH47","v":13},{"$f":"[1]ACS_16_5YR_B05002_with_ann!AI47","v":39},{"$f":"[1]ACS_16_5YR_B05002_with_ann!AJ47","v":0},{"$f":"[1]ACS_16_5YR_B05002_with_ann!AK47","v":12},{"$f":"[1]ACS_16_5YR_B05002_with_ann!AL47","v":0},{"$f":"[1]ACS_16_5YR_B05002_with_ann!AM47","v":12},{"$f":"[1]ACS_16_5YR_B05002_with_ann!AN47","v":3},{"$f":"[1]ACS_16_5YR_B05002_with_ann!AO47","v":5},{"$f":"[1]ACS_16_5YR_B05002_with_ann!AP47","v":0},{"$f":"[1]ACS_16_5YR_B05002_with_ann!AQ47","v":12},{"$f":"[1]ACS_16_5YR_B05002_with_ann!AR47","v":5},{"$f":"[1]ACS_16_5YR_B05002_with_ann!AS47","v":9},{"$f":"[1]ACS_16_5YR_B05002_with_ann!AT47","v":5},{"$f":"[1]ACS_16_5YR_B05002_with_ann!AU47","v":9},{"$f":"[1]ACS_16_5YR_B05002_with_ann!AV47","v":0},{"$f":"[1]ACS_16_5YR_B05002_with_ann!AW47","v":12},{"$f":"[1]ACS_16_5YR_B05002_with_ann!AX47","v":0},{"$f":"[1]ACS_16_5YR_B05002_with_ann!AY47","v":12},{"$f":"[1]ACS_16_5YR_B05002_with_ann!AZ47","v":0},{"$f":"[1]ACS_16_5YR_B05002_with_ann!BA47","v":12},{"$f":"[1]ACS_16_5YR_B05002_with_ann!BB47","v":0},{"$f":"[1]ACS_16_5YR_B05002_with_ann!BC47","v":12},{"$f":"[1]ACS_16_5YR_B05002_with_ann!BD47","v":0},{"$f":"[1]ACS_16_5YR_B05002_with_ann!BE47","v":12}]
["0600000US3300529220","0600000US3300529220","060",{"$f":"[1]ACS_16_5YR_B05002_with_ann!C48","v":"Gilsum"},{"$f":"[1]ACS_16_5YR_B05002_with_ann!D48","v":871},{"$f":"[1]ACS_16_5YR_B05002_with_ann!E48","v":144},{"$f":"[1]ACS_16_5YR_B05002_with_ann!F48","v":862},{"$f":"[1]ACS_16_5YR_B05002_with_ann!G48","v":142},{"$f":"[1]ACS_16_5YR_B05002_with_ann!H48","v":436},{"$f":"[1]ACS_16_5YR_B05002_with_ann!I48","v":116},{"$f":"[1]ACS_16_5YR_B05002_with_ann!J48","v":426},{"$f":"[1]ACS_16_5YR_B05002_with_ann!K48","v":74},{"$f":"[1]ACS_16_5YR_B05002_with_ann!L48","v":315},{"$f":"[1]ACS_16_5YR_B05002_with_ann!M48","v":59},{"$f":"[1]ACS_16_5YR_B05002_with_ann!N48","v":33},{"$f":"[1]ACS_16_5YR_B05002_with_ann!O48","v":22},{"$f":"[1]ACS_16_5YR_B05002_with_ann!P48","v":33},{"$f":"[1]ACS_16_5YR_B05002_with_ann!Q48","v":26},{"$f":"[1]ACS_16_5YR_B05002_with_ann!R48","v":45},{"$f":"[1]ACS_16_5YR_B05002_with_ann!S48","v":23},{"$f":"[1]ACS_16_5YR_B05002_with_ann!T48","v":0},{"$f":"[1]ACS_16_5YR_B05002_with_ann!U48","v":12},{"$f":"[1]ACS_16_5YR_B05002_with_ann!V48","v":0},{"$f":"[1]ACS_16_5YR_B05002_with_ann!W48","v":12},{"$f":"[1]ACS_16_5YR_B05002_with_ann!X48","v":0},{"$f":"[1]ACS_16_5YR_B05002_with_ann!Y48","v":12},{"$f":"[1]ACS_16_5YR_B05002_with_ann!Z48","v":0},{"$f":"[1]ACS_16_5YR_B05002_with_ann!AA48","v":12},{"$f":"[1]ACS_16_5YR_B05002_with_ann!AB48","v":9},{"$f":"[1]ACS_16_5YR_B05002_with_ann!AC48","v":7},{"$f":"[1]ACS_16_5YR_B05002_with_ann!AD48","v":8},{"$f":"[1]ACS_16_5YR_B05002_with_ann!AE48","v":7},{"$f":"[1]ACS_16_5YR_B05002_with_ann!AF48","v":8},{"$f":"[1]ACS_16_5YR_B05002_with_ann!AG48","v":7},{"$f":"[1]ACS_16_5YR_B05002_with_ann!AH48","v":0},{"$f":"[1]ACS_16_5YR_B05002_with_ann!AI48","v":12},{"$f":"[1]ACS_16_5YR_B05002_with_ann!AJ48","v":0},{"$f":"[1]ACS_16_5YR_B05002_with_ann!AK48","v":12},{"$f":"[1]ACS_16_5YR_B05002_with_ann!AL48","v":0},{"$f":"[1]ACS_16_5YR_B05002_with_ann!AM48","v":12},{"$f":"[1]ACS_16_5YR_B05002_with_ann!AN48","v":0},{"$f":"[1]ACS_16_5YR_B05002_with_ann!AO48","v":12},{"$f":"[1]ACS_16_5YR_B05002_with_ann!AP48","v":0},{"$f":"[1]ACS_16_5YR_B05002_with_ann!AQ48","v":12},{"$f":"[1]ACS_16_5YR_B05002_with_ann!AR48","v":1},{"$f":"[1]ACS_16_5YR_B05002_with_ann!AS48","v":2},{"$f":"[1]ACS_16_5YR_B05002_with_ann!AT48","v":0},{"$f":"[1]ACS_16_5YR_B05002_with_ann!AU48","v":12},{"$f":"[1]ACS_16_5YR_B05002_with_ann!AV48","v":0},{"$f":"[1]ACS_16_5YR_B05002_with_ann!AW48","v":12},{"$f":"[1]ACS_16_5YR_B05002_with_ann!AX48","v":0},{"$f":"[1]ACS_16_5YR_B05002_with_ann!AY48","v":12},{"$f":"[1]ACS_16_5YR_B05002_with_ann!AZ48","v":0},{"$f":"[1]ACS_16_5YR_B05002_with_ann!BA48","v":12},{"$f":"[1]ACS_16_5YR_B05002_with_ann!BB48","v":0},{"$f":"[1]ACS_16_5YR_B05002_with_ann!BC48","v":12},{"$f":"[1]ACS_16_5YR_B05002_with_ann!BD48","v":1},{"$f":"[1]ACS_16_5YR_B05002_with_ann!BE48","v":2}]
["0600000US3300534420","0600000US3300534420","060",{"$f":"[1]ACS_16_5YR_B05002_with_ann!C49","v":"Harrisville"},{"$f":"[1]ACS_16_5YR_B05002_with_ann!D49","v":977},{"$f":"[1]ACS_16_5YR_B05002_with_ann!E49","v":197},{"$f":"[1]ACS_16_5YR_B05002_with_ann!F49","v":932},{"$f":"[1]ACS_16_5YR_B05002_with_ann!G49","v":195},{"$f":"[1]ACS_16_5YR_B05002_with_ann!H49","v":465},{"$f":"[1]ACS_16_5YR_B05002_with_ann!I49","v":135},{"$f":"[1]ACS_16_5YR_B05002_with_ann!J49","v":447},{"$f":"[1]ACS_16_5YR_B05002_with_ann!K49","v":95},{"$f":"[1]ACS_16_5YR_B05002_with_ann!L49","v":301},{"$f":"[1]ACS_16_5YR_B05002_with_ann!M49","v":74},{"$f":"[1]ACS_16_5YR_B05002_with_ann!N49","v":54},{"$f":"[1]ACS_16_5YR_B05002_with_ann!O49","v":29},{"$f":"[1]ACS_16_5YR_B05002_with_ann!P49","v":49},{"$f":"[1]ACS_16_5YR_B05002_with_ann!Q49","v":28},{"$f":"[1]ACS_16_5YR_B05002_with_ann!R49","v":43},{"$f":"[1]ACS_16_5YR_B05002_with_ann!S49","v":28},{"$f":"[1]ACS_16_5YR_B05002_with_ann!T49","v":20},{"$f":"[1]ACS_16_5YR_B05002_with_ann!U49","v":22},{"$f":"[1]ACS_16_5YR_B05002_with_ann!V49","v":13},{"$f":"[1]ACS_16_5YR_B05002_with_ann!W49","v":21},{"$f":"[1]ACS_16_5YR_B05002_with_ann!X49","v":0},{"$f":"[1]ACS_16_5YR_B05002_with_ann!Y49","v":12},{"$f":"[1]ACS_16_5YR_B05002_with_ann!Z49","v":7},{"$f":"[1]ACS_16_5YR_B05002_with_ann!AA49","v":7},{"$f":"[1]ACS_16_5YR_B05002_with_ann!AB49","v":45},{"$f":"[1]ACS_16_5YR_B05002_with_ann!AC49","v":20},{"$f":"[1]ACS_16_5YR_B05002_with_ann!AD49","v":32},{"$f":"[1]ACS_16_5YR_B05002_with_ann!AE49","v":18},{"$f":"[1]ACS_16_5YR_B05002_with_ann!AF49","v":3},{"$f":"[1]ACS_16_5YR_B05002_with_ann!AG49","v":4},{"$f":"[1]ACS_16_5YR_B05002_with_ann!AH49","v":3},{"$f":"[1]ACS_16_5YR_B05002_with_ann!AI49","v":11},{"$f":"[1]ACS_16_5YR_B05002_with_ann!AJ49","v":11},{"$f":"[1]ACS_16_5YR_B05002_with_ann!AK49","v":13},{"$f":"[1]ACS_16_5YR_B05002_with_ann!AL49","v":5},{"$f":"[1]ACS_16_5YR_B05002_with_ann!AM49","v":7},{"$f":"[1]ACS_16_5YR_B05002_with_ann!AN49","v":0},{"$f":"[1]ACS_16_5YR_B05002_with_ann!AO49","v":12},{"$f":"[1]ACS_16_5YR_B05002_with_ann!AP49","v":10},{"$f":"[1]ACS_16_5YR_B05002_with_ann!AQ49","v":11},{"$f":"[1]ACS_16_5YR_B05002_with_ann!AR49","v":13},{"$f":"[1]ACS_16_5YR_B05002_with_ann!AS49","v":8},{"$f":"[1]ACS_16_5YR_B05002_with_ann!AT49","v":13},{"$f":"[1]ACS_16_5YR_B05002_with_ann!AU49","v":8},{"$f":"[1]ACS_16_5YR_B05002_with_ann!AV49","v":0},{"$f":"[1]ACS_16_5YR_B05002_with_ann!AW49","v":12},{"$f":"[1]ACS_16_5YR_B05002_with_ann!AX49","v":0},{"$f":"[1]ACS_16_5YR_B05002_with_ann!AY49","v":12},{"$f":"[1]ACS_16_5YR_B05002_with_ann!AZ49","v":0},{"$f":"[1]ACS_16_5YR_B05002_with_ann!BA49","v":12},{"$f":"[1]ACS_16_5YR_B05002_with_ann!BB49","v":0},{"$f":"[1]ACS_16_5YR_B05002_with_ann!BC49","v":12},{"$f":"[1]ACS_16_5YR_B05002_with_ann!BD49","v":0},{"$f":"[1]ACS_16_5YR_B05002_with_ann!BE49","v":12}]
["0600000US3300536660","0600000US3300536660","060",{"$f":"[1]ACS_16_5YR_B05002_with_ann!C50","v":"Hinsdale"},{"$f":"[1]ACS_16_5YR_B05002_with_ann!D50","v":3965},{"$f":"[1]ACS_16_5YR_B05002_with_ann!E50","v":16},{"$f":"[1]ACS_16_5YR_B05002_with_ann!F50","v":3948},{"$f":"[1]ACS_16_5YR_B05002_with_ann!G50","v":33},{"$f":"[1]ACS_16_5YR_B05002_with_ann!H50","v":802},{"$f":"[1]ACS_16_5YR_B05002_with_ann!I50","v":235},{"$f":"[1]ACS_16_5YR_B05002_with_ann!J50","v":2985},{"$f":"[1]ACS_16_5YR_B05002_with_ann!K50","v":309},{"$f":"[1]ACS_16_5YR_B05002_with_ann!L50","v":2542},{"$f":"[1]ACS_16_5YR_B05002_with_ann!M50","v":310},{"$f":"[1]ACS_16_5YR_B05002_with_ann!N50","v":106},{"$f":"[1]ACS_16_5YR_B05002_with_ann!O50","v":90},{"$f":"[1]ACS_16_5YR_B05002_with_ann!P50","v":210},{"$f":"[1]ACS_16_5YR_B05002_with_ann!Q50","v":87},{"$f":"[1]ACS_16_5YR_B05002_with_ann!R50","v":127},{"$f":"[1]ACS_16_5YR_B05002_with_ann!S50","v":118},{"$f":"[1]ACS_16_5YR_B05002_with_ann!T50","v":161},{"$f":"[1]ACS_16_5YR_B05002_with_ann!U50","v":167},{"$f":"[1]ACS_16_5YR_B05002_with_ann!V50","v":0},{"$f":"[1]ACS_16_5YR_B05002_with_ann!W50","v":12},{"$f":"[1]ACS_16_5YR_B05002_with_ann!X50","v":0},{"$f":"[1]ACS_16_5YR_B05002_with_ann!Y50","v":12},{"$f":"[1]ACS_16_5YR_B05002_with_ann!Z50","v":161},{"$f":"[1]ACS_16_5YR_B05002_with_ann!AA50","v":167},{"$f":"[1]ACS_16_5YR_B05002_with_ann!AB50","v":17},{"$f":"[1]ACS_16_5YR_B05002_with_ann!AC50","v":28},{"$f":"[1]ACS_16_5YR_B05002_with_ann!AD50","v":17},{"$f":"[1]ACS_16_5YR_B05002_with_ann!AE50","v":28},{"$f":"[1]ACS_16_5YR_B05002_with_ann!AF50","v":17},{"$f":"[1]ACS_16_5YR_B05002_with_ann!AG50","v":28},{"$f":"[1]ACS_16_5YR_B05002_with_ann!AH50","v":0},{"$f":"[1]ACS_16_5YR_B05002_with_ann!AI50","v":12},{"$f":"[1]ACS_16_5YR_B05002_with_ann!AJ50","v":0},{"$f":"[1]ACS_16_5YR_B05002_with_ann!AK50","v":12},{"$f":"[1]ACS_16_5YR_B05002_with_ann!AL50","v":0},{"$f":"[1]ACS_16_5YR_B05002_with_ann!AM50","v":12},{"$f":"[1]ACS_16_5YR_B05002_with_ann!AN50","v":0},{"$f":"[1]ACS_16_5YR_B05002_with_ann!AO50","v":12},{"$f":"[1]ACS_16_5YR_B05002_with_ann!AP50","v":0},{"$f":"[1]ACS_16_5YR_B05002_with_ann!AQ50","v":12},{"$f":"[1]ACS_16_5YR_B05002_with_ann!AR50","v":0},{"$f":"[1]ACS_16_5YR_B05002_with_ann!AS50","v":12},{"$f":"[1]ACS_16_5YR_B05002_with_ann!AT50","v":0},{"$f":"[1]ACS_16_5YR_B05002_with_ann!AU50","v":12},{"$f":"[1]ACS_16_5YR_B05002_with_ann!AV50","v":0},{"$f":"[1]ACS_16_5YR_B05002_with_ann!AW50","v":12},{"$f":"[1]ACS_16_5YR_B05002_with_ann!AX50","v":0},{"$f":"[1]ACS_16_5YR_B05002_with_ann!AY50","v":12},{"$f":"[1]ACS_16_5YR_B05002_with_ann!AZ50","v":0},{"$f":"[1]ACS_16_5YR_B05002_with_ann!BA50","v":12},{"$f":"[1]ACS_16_5YR_B05002_with_ann!BB50","v":0},{"$f":"[1]ACS_16_5YR_B05002_with_ann!BC50","v":12},{"$f":"[1]ACS_16_5YR_B05002_with_ann!BD50","v":0},{"$f":"[1]ACS_16_5YR_B05002_with_ann!BE50","v":12}]
["0600000US3300538500","0600000US3300538500","060",{"$f":"[1]ACS_16_5YR_B05002_with_ann!C51","v":"Jaffrey"},{"$f":"[1]ACS_16_5YR_B05002_with_ann!D51","v":5363},{"$f":"[1]ACS_16_5YR_B05002_with_ann!E51","v":32},{"$f":"[1]ACS_16_5YR_B05002_with_ann!F51","v":5287},{"$f":"[1]ACS_16_5YR_B05002_with_ann!G51","v":66},{"$f":"[1]ACS_16_5YR_B05002_with_ann!H51","v":2874},{"$f":"[1]ACS_16_5YR_B05002_with_ann!I51","v":491},{"$f":"[1]ACS_16_5YR_B05002_with_ann!J51","v":2355},{"$f":"[1]ACS_16_5YR_B05002_with_ann!K51","v":474},{"$f":"[1]ACS_16_5YR_B05002_with_ann!L51","v":1737},{"$f":"[1]ACS_16_5YR_B05002_with_ann!M51","v":459},{"$f":"[1]ACS_16_5YR_B05002_with_ann!N51","v":114},{"$f":"[1]ACS_16_5YR_B05002_with_ann!O51","v":89},{"$f":"[1]ACS_16_5YR_B05002_with_ann!P51","v":214},{"$f":"[1]ACS_16_5YR_B05002_with_ann!Q51","v":127},{"$f":"[1]ACS_16_5YR_B05002_with_ann!R51","v":290},{"$f":"[1]ACS_16_5YR_B05002_with_ann!S51","v":181},{"$f":"[1]ACS_16_5YR_B05002_with_ann!T51","v":58},{"$f":"[1]ACS_16_5YR_B05002_with_ann!U51","v":76},{"$f":"[1]ACS_16_5YR_B05002_with_ann!V51","v":0},{"$f":"[1]ACS_16_5YR_B05002_with_ann!W51","v":17},{"$f":"[1]ACS_16_5YR_B05002_with_ann!X51","v":0},{"$f":"[1]ACS_16_5YR_B05002_with_ann!Y51","v":17},{"$f":"[1]ACS_16_5YR_B05002_with_ann!Z51","v":58},{"$f":"[1]ACS_16_5YR_B05002_with_ann!AA51","v":76},{"$f":"[1]ACS_16_5YR_B05002_with_ann!AB51","v":76},{"$f":"[1]ACS_16_5YR_B05002_with_ann!AC51","v":57},{"$f":"[1]ACS_16_5YR_B05002_with_ann!AD51","v":54},{"$f":"[1]ACS_16_5YR_B05002_with_ann!AE51","v":48},{"$f":"[1]ACS_16_5YR_B05002_with_ann!AF51","v":13},{"$f":"[1]ACS_16_5YR_B05002_with_ann!AG51","v":21},{"$f":"[1]ACS_16_5YR_B05002_with_ann!AH51","v":40},{"$f":"[1]ACS_16_5YR_B05002_with_ann!AI51","v":47},{"$f":"[1]ACS_16_5YR_B05002_with_ann!AJ51","v":0},{"$f":"[1]ACS_16_5YR_B05002_with_ann!AK51","v":17},{"$f":"[1]ACS_16_5YR_B05002_with_ann!AL51","v":0},{"$f":"[1]ACS_16_5YR_B05002_with_ann!AM51","v":17},{"$f":"[1]ACS_16_5YR_B05002_with_ann!AN51","v":1},{"$f":"[1]ACS_16_5YR_B05002_with_ann!AO51","v":2},{"$f":"[1]ACS_16_5YR_B05002_with_ann!AP51","v":0},{"$f":"[1]ACS_16_5YR_B05002_with_ann!AQ51","v":17},{"$f":"[1]ACS_16_5YR_B05002_with_ann!AR51","v":22},{"$f":"[1]ACS_16_5YR_B05002_with_ann!AS51","v":34},{"$f":"[1]ACS_16_5YR_B05002_with_ann!AT51","v":22},{"$f":"[1]ACS_16_5YR_B05002_with_ann!AU51","v":34},{"$f":"[1]ACS_16_5YR_B05002_with_ann!AV51","v":0},{"$f":"[1]ACS_16_5YR_B05002_with_ann!AW51","v":17},{"$f":"[1]ACS_16_5YR_B05002_with_ann!AX51","v":0},{"$f":"[1]ACS_16_5YR_B05002_with_ann!AY51","v":17},{"$f":"[1]ACS_16_5YR_B05002_with_ann!AZ51","v":0},{"$f":"[1]ACS_16_5YR_B05002_with_ann!BA51","v":17},{"$f":"[1]ACS_16_5YR_B05002_with_ann!BB51","v":0},{"$f":"[1]ACS_16_5YR_B05002_with_ann!BC51","v":17},{"$f":"[1]ACS_16_5YR_B05002_with_ann!BD51","v":0},{"$f":"[1]ACS_16_5YR_B05002_with_ann!BE51","v":17}]
["0600000US3300539300","0600000US3300539300","060",{"$f":"[1]ACS_16_5YR_B05002_with_ann!C52","v":"Keene"},{"$f":"[1]ACS_16_5YR_B05002_with_ann!D52","v":22907},{"$f":"[1]ACS_16_5YR_B05002_with_ann!E52","v":27},{"$f":"[1]ACS_16_5YR_B05002_with_ann!F52","v":21955},{"$f":"[1]ACS_16_5YR_B05002_with_ann!G52","v":241},{"$f":"[1]ACS_16_5YR_B05002_with_ann!H52","v":10357},{"$f":"[1]ACS_16_5YR_B05002_with_ann!I52","v":588},{"$f":"[1]ACS_16_5YR_B05002_with_ann!J52","v":11398},{"$f":"[1]ACS_16_5YR_B05002_with_ann!K52","v":590},{"$f":"[1]ACS_16_5YR_B05002_with_ann!L52","v":8652},{"$f":"[1]ACS_16_5YR_B05002_with_ann!M52","v":579},{"$f":"[1]ACS_16_5YR_B05002_with_ann!N52","v":722},{"$f":"[1]ACS_16_5YR_B05002_with_ann!O52","v":200},{"$f":"[1]ACS_16_5YR_B05002_with_ann!P52","v":1241},{"$f":"[1]ACS_16_5YR_B05002_with_ann!Q52","v":310},{"$f":"[1]ACS_16_5YR_B05002_with_ann!R52","v":783},{"$f":"[1]ACS_16_5YR_B05002_with_ann!S52","v":221},{"$f":"[1]ACS_16_5YR_B05002_with_ann!T52","v":200},{"$f":"[1]ACS_16_5YR_B05002_with_ann!U52","v":125},{"$f":"[1]ACS_16_5YR_B05002_with_ann!V52","v":21},{"$f":"[1]ACS_16_5YR_B05002_with_ann!W52","v":31},{"$f":"[1]ACS_16_5YR_B05002_with_ann!X52","v":2},{"$f":"[1]ACS_16_5YR_B05002_with_ann!Y52","v":4},{"$f":"[1]ACS_16_5YR_B05002_with_ann!Z52","v":177},{"$f":"[1]ACS_16_5YR_B05002_with_ann!AA52","v":120},{"$f":"[1]ACS_16_5YR_B05002_with_ann!AB52","v":952},{"$f":"[1]ACS_16_5YR_B05002_with_ann!AC52","v":245},{"$f":"[1]ACS_16_5YR_B05002_with_ann!AD52","v":528},{"$f":"[1]ACS_16_5YR_B05002_with_ann!AE52","v":180},{"$f":"[1]ACS_16_5YR_B05002_with_ann!AF52","v":192},{"$f":"[1]ACS_16_5YR_B05002_with_ann!AG52","v":111},{"$f":"[1]ACS_16_5YR_B05002_with_ann!AH52","v":223},{"$f":"[1]ACS_16_5YR_B05002_with_ann!AI52","v":149},{"$f":"[1]ACS_16_5YR_B05002_with_ann!AJ52","v":30},{"$f":"[1]ACS_16_5YR_B05002_with_ann!AK52","v":51},{"$f":"[1]ACS_16_5YR_B05002_with_ann!AL52","v":0},{"$f":"[1]ACS_16_5YR_B05002_with_ann!AM52","v":22},{"$f":"[1]ACS_16_5YR_B05002_with_ann!AN52","v":13},{"$f":"[1]ACS_16_5YR_B05002_with_ann!AO52","v":23},{"$f":"[1]ACS_16_5YR_B05002_with_ann!AP52","v":70},{"$f":"[1]ACS_16_5YR_B05002_with_ann!AQ52","v":55},{"$f":"[1]ACS_16_5YR_B05002_with_ann!AR52","v":424},{"$f":"[1]ACS_16_5YR_B05002_with_ann!AS52","v":167},{"$f":"[1]ACS_16_5YR_B05002_with_ann!AT52","v":105},{"$f":"[1]ACS_16_5YR_B05002_with_ann!AU52","v":69},{"$f":"[1]ACS_16_5YR_B05002_with_ann!AV52","v":59},{"$f":"[1]ACS_16_5YR_B05002_with_ann!AW52","v":72},{"$f":"[1]ACS_16_5YR_B05002_with_ann!AX52","v":132},{"$f":"[1]ACS_16_5YR_B05002_with_ann!AY52","v":84},{"$f":"[1]ACS_16_5YR_B05002_with_ann!AZ52","v":0},{"$f":"[1]ACS_16_5YR_B05002_with_ann!BA52","v":22},{"$f":"[1]ACS_16_5YR_B05002_with_ann!BB52","v":72},{"$f":"[1]ACS_16_5YR_B05002_with_ann!BC52","v":79},{"$f":"[1]ACS_16_5YR_B05002_with_ann!BD52","v":56},{"$f":"[1]ACS_16_5YR_B05002_with_ann!BE52","v":70}]
["0600000US3300545460","0600000US3300545460","060",{"$f":"[1]ACS_16_5YR_B05002_with_ann!C53","v":"Marlborough"},{"$f":"[1]ACS_16_5YR_B05002_with_ann!D53","v":2253},{"$f":"[1]ACS_16_5YR_B05002_with_ann!E53","v":391},{"$f":"[1]ACS_16_5YR_B05002_with_ann!F53","v":2246},{"$f":"[1]ACS_16_5YR_B05002_with_ann!G53","v":391},{"$f":"[1]ACS_16_5YR_B05002_with_ann!H53","v":1483},{"$f":"[1]ACS_16_5YR_B05002_with_ann!I53","v":338},{"$f":"[1]ACS_16_5YR_B05002_with_ann!J53","v":750},{"$f":"[1]ACS_16_5YR_B05002_with_ann!K53","v":139},{"$f":"[1]ACS_16_5YR_B05002_with_ann!L53","v":559},{"$f":"[1]ACS_16_5YR_B05002_with_ann!M53","v":123},{"$f":"[1]ACS_16_5YR_B05002_with_ann!N53","v":81},{"$f":"[1]ACS_16_5YR_B05002_with_ann!O53","v":58},{"$f":"[1]ACS_16_5YR_B05002_with_ann!P53","v":83},{"$f":"[1]ACS_16_5YR_B05002_with_ann!Q53","v":48},{"$f":"[1]ACS_16_5YR_B05002_with_ann!R53","v":27},{"$f":"[1]ACS_16_5YR_B05002_with_ann!S53","v":26},{"$f":"[1]ACS_16_5YR_B05002_with_ann!T53","v":13},{"$f":"[1]ACS_16_5YR_B05002_with_ann!U53","v":17},{"$f":"[1]ACS_16_5YR_B05002_with_ann!V53","v":0},{"$f":"[1]ACS_16_5YR_B05002_with_ann!W53","v":12},{"$f":"[1]ACS_16_5YR_B05002_with_ann!X53","v":0},{"$f":"[1]ACS_16_5YR_B05002_with_ann!Y53","v":12},{"$f":"[1]ACS_16_5YR_B05002_with_ann!Z53","v":13},{"$f":"[1]ACS_16_5YR_B05002_with_ann!AA53","v":17},{"$f":"[1]ACS_16_5YR_B05002_with_ann!AB53","v":7},{"$f":"[1]ACS_16_5YR_B05002_with_ann!AC53","v":10},{"$f":"[1]ACS_16_5YR_B05002_with_ann!AD53","v":1},{"$f":"[1]ACS_16_5YR_B05002_with_ann!AE53","v":2},{"$f":"[1]ACS_16_5YR_B05002_with_ann!AF53","v":0},{"$f":"[1]ACS_16_5YR_B05002_with_ann!AG53","v":12},{"$f":"[1]ACS_16_5YR_B05002_with_ann!AH53","v":1},{"$f":"[1]ACS_16_5YR_B05002_with_ann!AI53","v":2},{"$f":"[1]ACS_16_5YR_B05002_with_ann!AJ53","v":0},{"$f":"[1]ACS_16_5YR_B05002_with_ann!AK53","v":12},{"$f":"[1]ACS_16_5YR_B05002_with_ann!AL53","v":0},{"$f":"[1]ACS_16_5YR_B05002_with_ann!AM53","v":12},{"$f":"[1]ACS_16_5YR_B05002_with_ann!AN53","v":0},{"$f":"[1]ACS_16_5YR_B05002_with_ann!AO53","v":12},{"$f":"[1]ACS_16_5YR_B05002_with_ann!AP53","v":0},{"$f":"[1]ACS_16_5YR_B05002_with_ann!AQ53","v":12},{"$f":"[1]ACS_16_5YR_B05002_with_ann!AR53","v":6},{"$f":"[1]ACS_16_5YR_B05002_with_ann!AS53","v":10},{"$f":"[1]ACS_16_5YR_B05002_with_ann!AT53","v":6},{"$f":"[1]ACS_16_5YR_B05002_with_ann!AU53","v":10},{"$f":"[1]ACS_16_5YR_B05002_with_ann!AV53","v":0},{"$f":"[1]ACS_16_5YR_B05002_with_ann!AW53","v":12},{"$f":"[1]ACS_16_5YR_B05002_with_ann!AX53","v":0},{"$f":"[1]ACS_16_5YR_B05002_with_ann!AY53","v":12},{"$f":"[1]ACS_16_5YR_B05002_with_ann!AZ53","v":0},{"$f":"[1]ACS_16_5YR_B05002_with_ann!BA53","v":12},{"$f":"[1]ACS_16_5YR_B05002_with_ann!BB53","v":0},{"$f":"[1]ACS_16_5YR_B05002_with_ann!BC53","v":12},{"$f":"[1]ACS_16_5YR_B05002_with_ann!BD53","v":0},{"$f":"[1]ACS_16_5YR_B05002_with_ann!BE53","v":12}]
["0600000US3300545700","0600000US3300545700","060",{"$f":"[1]ACS_16_5YR_B05002_with_ann!C54","v":"Marlow"},{"$f":"[1]ACS_16_5YR_B05002_with_ann!D54","v":803},{"$f":"[1]ACS_16_5YR_B05002_with_ann!E54","v":175},{"$f":"[1]ACS_16_5YR_B05002_with_ann!F54","v":794},{"$f":"[1]ACS_16_5YR_B05002_with_ann!G54","v":175},{"$f":"[1]ACS_16_5YR_B05002_with_ann!H54","v":340},{"$f":"[1]ACS_16_5YR_B05002_with_ann!I54","v":116},{"$f":"[1]ACS_16_5YR_B05002_with_ann!J54","v":450},{"$f":"[1]ACS_16_5YR_B05002_with_ann!K54","v":130},{"$f":"[1]ACS_16_5YR_B05002_with_ann!L54","v":296},{"$f":"[1]ACS_16_5YR_B05002_with_ann!M54","v":76},{"$f":"[1]ACS_16_5YR_B05002_with_ann!N54","v":26},{"$f":"[1]ACS_16_5YR_B05002_with_ann!O54","v":23},{"$f":"[1]ACS_16_5YR_B05002_with_ann!P54","v":79},{"$f":"[1]ACS_16_5YR_B05002_with_ann!Q54","v":45},{"$f":"[1]ACS_16_5YR_B05002_with_ann!R54","v":49},{"$f":"[1]ACS_16_5YR_B05002_with_ann!S54","v":40},{"$f":"[1]ACS_16_5YR_B05002_with_ann!T54","v":4},{"$f":"[1]ACS_16_5YR_B05002_with_ann!U54","v":5},{"$f":"[1]ACS_16_5YR_B05002_with_ann!V54","v":3},{"$f":"[1]ACS_16_5YR_B05002_with_ann!W54","v":4},{"$f":"[1]ACS_16_5YR_B05002_with_ann!X54","v":1},{"$f":"[1]ACS_16_5YR_B05002_with_ann!Y54","v":2},{"$f":"[1]ACS_16_5YR_B05002_with_ann!Z54","v":0},{"$f":"[1]ACS_16_5YR_B05002_with_ann!AA54","v":12},{"$f":"[1]ACS_16_5YR_B05002_with_ann!AB54","v":9},{"$f":"[1]ACS_16_5YR_B05002_with_ann!AC54","v":7},{"$f":"[1]ACS_16_5YR_B05002_with_ann!AD54","v":9},{"$f":"[1]ACS_16_5YR_B05002_with_ann!AE54","v":7},{"$f":"[1]ACS_16_5YR_B05002_with_ann!AF54","v":5},{"$f":"[1]ACS_16_5YR_B05002_with_ann!AG54","v":5},{"$f":"[1]ACS_16_5YR_B05002_with_ann!AH54","v":0},{"$f":"[1]ACS_16_5YR_B05002_with_ann!AI54","v":12},{"$f":"[1]ACS_16_5YR_B05002_with_ann!AJ54","v":0},{"$f":"[1]ACS_16_5YR_B05002_with_ann!AK54","v":12},{"$f":"[1]ACS_16_5YR_B05002_with_ann!AL54","v":0},{"$f":"[1]ACS_16_5YR_B05002_with_ann!AM54","v":12},{"$f":"[1]ACS_16_5YR_B05002_with_ann!AN54","v":0},{"$f":"[1]ACS_16_5YR_B05002_with_ann!AO54","v":12},{"$f":"[1]ACS_16_5YR_B05002_with_ann!AP54","v":4},{"$f":"[1]ACS_16_5YR_B05002_with_ann!AQ54","v":4},{"$f":"[1]ACS_16_5YR_B05002_with_ann!AR54","v":0},{"$f":"[1]ACS_16_5YR_B05002_with_ann!AS54","v":12},{"$f":"[1]ACS_16_5YR_B05002_with_ann!AT54","v":0},{"$f":"[1]ACS_16_5YR_B05002_with_ann!AU54","v":12},{"$f":"[1]ACS_16_5YR_B05002_with_ann!AV54","v":0},{"$f":"[1]ACS_16_5YR_B05002_with_ann!AW54","v":12},{"$f":"[1]ACS_16_5YR_B05002_with_ann!AX54","v":0},{"$f":"[1]ACS_16_5YR_B05002_with_ann!AY54","v":12},{"$f":"[1]ACS_16_5YR_B05002_with_ann!AZ54","v":0},{"$f":"[1]ACS_16_5YR_B05002_with_ann!BA54","v":12},{"$f":"[1]ACS_16_5YR_B05002_with_ann!BB54","v":0},{"$f":"[1]ACS_16_5YR_B05002_with_ann!BC54","v":12},{"$f":"[1]ACS_16_5YR_B05002_with_ann!BD54","v":0},{"$f":"[1]ACS_16_5YR_B05002_with_ann!BE54","v":12}]
["0600000US3300550580","0600000US3300550580","060",{"$f":"[1]ACS_16_5YR_B05002_with_ann!C55","v":"Nelson"},{"$f":"[1]ACS_16_5YR_B05002_with_ann!D55","v":550},{"$f":"[1]ACS_16_5YR_B05002_with_ann!E55","v":106},{"$f":"[1]ACS_16_5YR_B05002_with_ann!F55","v":533},{"$f":"[1]ACS_16_5YR_B05002_with_ann!G55","v":105},{"$f":"[1]ACS_16_5YR_B05002_with_ann!H55","v":231},{"$f":"[1]ACS_16_5YR_B05002_with_ann!I55","v":64},{"$f":"[1]ACS_16_5YR_B05002_with_ann!J55","v":296},{"$f":"[1]ACS_16_5YR_B05002_with_ann!K55","v":64},{"$f":"[1]ACS_16_5YR_B05002_with_ann!L55","v":223},{"$f":"[1]ACS_16_5YR_B05002_with_ann!M55","v":53},{"$f":"[1]ACS_16_5YR_B05002_with_ann!N55","v":20},{"$f":"[1]ACS_16_5YR_B05002_with_ann!O55","v":14},{"$f":"[1]ACS_16_5YR_B05002_with_ann!P55","v":27},{"$f":"[1]ACS_16_5YR_B05002_with_ann!Q55","v":16},{"$f":"[1]ACS_16_5YR_B05002_with_ann!R55","v":26},{"$f":"[1]ACS_16_5YR_B05002_with_ann!S55","v":14},{"$f":"[1]ACS_16_5YR_B05002_with_ann!T55","v":6},{"$f":"[1]ACS_16_5YR_B05002_with_ann!U55","v":6},{"$f":"[1]ACS_16_5YR_B05002_with_ann!V55","v":0},{"$f":"[1]ACS_16_5YR_B05002_with_ann!W55","v":12},{"$f":"[1]ACS_16_5YR_B05002_with_ann!X55","v":0},{"$f":"[1]ACS_16_5YR_B05002_with_ann!Y55","v":12},{"$f":"[1]ACS_16_5YR_B05002_with_ann!Z55","v":6},{"$f":"[1]ACS_16_5YR_B05002_with_ann!AA55","v":6},{"$f":"[1]ACS_16_5YR_B05002_with_ann!AB55","v":17},{"$f":"[1]ACS_16_5YR_B05002_with_ann!AC55","v":16},{"$f":"[1]ACS_16_5YR_B05002_with_ann!AD55","v":14},{"$f":"[1]ACS_16_5YR_B05002_with_ann!AE55","v":16},{"$f":"[1]ACS_16_5YR_B05002_with_ann!AF55","v":5},{"$f":"[1]ACS_16_5YR_B05002_with_ann!AG55","v":9},{"$f":"[1]ACS_16_5YR_B05002_with_ann!AH55","v":0},{"$f":"[1]ACS_16_5YR_B05002_with_ann!AI55","v":12},{"$f":"[1]ACS_16_5YR_B05002_with_ann!AJ55","v":9},{"$f":"[1]ACS_16_5YR_B05002_with_ann!AK55","v":13},{"$f":"[1]ACS_16_5YR_B05002_with_ann!AL55","v":0},{"$f":"[1]ACS_16_5YR_B05002_with_ann!AM55","v":12},{"$f":"[1]ACS_16_5YR_B05002_with_ann!AN55","v":0},{"$f":"[1]ACS_16_5YR_B05002_with_ann!AO55","v":12},{"$f":"[1]ACS_16_5YR_B05002_with_ann!AP55","v":0},{"$f":"[1]ACS_16_5YR_B05002_with_ann!AQ55","v":12},{"$f":"[1]ACS_16_5YR_B05002_with_ann!AR55","v":3},{"$f":"[1]ACS_16_5YR_B05002_with_ann!AS55","v":4},{"$f":"[1]ACS_16_5YR_B05002_with_ann!AT55","v":3},{"$f":"[1]ACS_16_5YR_B05002_with_ann!AU55","v":4},{"$f":"[1]ACS_16_5YR_B05002_with_ann!AV55","v":0},{"$f":"[1]ACS_16_5YR_B05002_with_ann!AW55","v":12},{"$f":"[1]ACS_16_5YR_B05002_with_ann!AX55","v":0},{"$f":"[1]ACS_16_5YR_B05002_with_ann!AY55","v":12},{"$f":"[1]ACS_16_5YR_B05002_with_ann!AZ55","v":0},{"$f":"[1]ACS_16_5YR_B05002_with_ann!BA55","v":12},{"$f":"[1]ACS_16_5YR_B05002_with_ann!BB55","v":0},{"$f":"[1]ACS_16_5YR_B05002_with_ann!BC55","v":12},{"$f":"[1]ACS_16_5YR_B05002_with_ann!BD55","v":0},{"$f":"[1]ACS_16_5YR_B05002_with_ann!BE55","v":12}]
["0600000US3300564420","0600000US3300564420","060",{"$f":"[1]ACS_16_5YR_B05002_with_ann!C56","v":"Richmond"},{"$f":"[1]ACS_16_5YR_B05002_with_ann!D56","v":1107},{"$f":"[1]ACS_16_5YR_B05002_with_ann!E56","v":251},{"$f":"[1]ACS_16_5YR_B05002_with_ann!F56","v":1086},{"$f":"[1]ACS_16_5YR_B05002_with_ann!G56","v":253},{"$f":"[1]ACS_16_5YR_B05002_with_ann!H56","v":460},{"$f":"[1]ACS_16_5YR_B05002_with_ann!I56","v":165},{"$f":"[1]ACS_16_5YR_B05002_with_ann!J56","v":609},{"$f":"[1]ACS_16_5YR_B05002_with_ann!K56","v":166},{"$f":"[1]ACS_16_5YR_B05002_with_ann!L56","v":489},{"$f":"[1]ACS_16_5YR_B05002_with_ann!M56","v":157},{"$f":"[1]ACS_16_5YR_B05002_with_ann!N56","v":33},{"$f":"[1]ACS_16_5YR_B05002_with_ann!O56","v":23},{"$f":"[1]ACS_16_5YR_B05002_with_ann!P56","v":52},{"$f":"[1]ACS_16_5YR_B05002_with_ann!Q56","v":33},{"$f":"[1]ACS_16_5YR_B05002_with_ann!R56","v":35},{"$f":"[1]ACS_16_5YR_B05002_with_ann!S56","v":27},{"$f":"[1]ACS_16_5YR_B05002_with_ann!T56","v":17},{"$f":"[1]ACS_16_5YR_B05002_with_ann!U56","v":17},{"$f":"[1]ACS_16_5YR_B05002_with_ann!V56","v":10},{"$f":"[1]ACS_16_5YR_B05002_with_ann!W56","v":14},{"$f":"[1]ACS_16_5YR_B05002_with_ann!X56","v":3},{"$f":"[1]ACS_16_5YR_B05002_with_ann!Y56","v":4},{"$f":"[1]ACS_16_5YR_B05002_with_ann!Z56","v":4},{"$f":"[1]ACS_16_5YR_B05002_with_ann!AA56","v":10},{"$f":"[1]ACS_16_5YR_B05002_with_ann!AB56","v":21},{"$f":"[1]ACS_16_5YR_B05002_with_ann!AC56","v":15},{"$f":"[1]ACS_16_5YR_B05002_with_ann!AD56","v":18},{"$f":"[1]ACS_16_5YR_B05002_with_ann!AE56","v":14},{"$f":"[1]ACS_16_5YR_B05002_with_ann!AF56","v":14},{"$f":"[1]ACS_16_5YR_B05002_with_ann!AG56","v":13},{"$f":"[1]ACS_16_5YR_B05002_with_ann!AH56","v":0},{"$f":"[1]ACS_16_5YR_B05002_with_ann!AI56","v":12},{"$f":"[1]ACS_16_5YR_B05002_with_ann!AJ56","v":0},{"$f":"[1]ACS_16_5YR_B05002_with_ann!AK56","v":12},{"$f":"[1]ACS_16_5YR_B05002_with_ann!AL56","v":0},{"$f":"[1]ACS_16_5YR_B05002_with_ann!AM56","v":12},{"$f":"[1]ACS_16_5YR_B05002_with_ann!AN56","v":4},{"$f":"[1]ACS_16_5YR_B05002_with_ann!AO56","v":5},{"$f":"[1]ACS_16_5YR_B05002_with_ann!AP56","v":0},{"$f":"[1]ACS_16_5YR_B05002_with_ann!AQ56","v":12},{"$f":"[1]ACS_16_5YR_B05002_with_ann!AR56","v":3},{"$f":"[1]ACS_16_5YR_B05002_with_ann!AS56","v":6},{"$f":"[1]ACS_16_5YR_B05002_with_ann!AT56","v":3},{"$f":"[1]ACS_16_5YR_B05002_with_ann!AU56","v":6},{"$f":"[1]ACS_16_5YR_B05002_with_ann!AV56","v":0},{"$f":"[1]ACS_16_5YR_B05002_with_ann!AW56","v":12},{"$f":"[1]ACS_16_5YR_B05002_with_ann!AX56","v":0},{"$f":"[1]ACS_16_5YR_B05002_with_ann!AY56","v":12},{"$f":"[1]ACS_16_5YR_B05002_with_ann!AZ56","v":0},{"$f":"[1]ACS_16_5YR_B05002_with_ann!BA56","v":12},{"$f":"[1]ACS_16_5YR_B05002_with_ann!BB56","v":0},{"$f":"[1]ACS_16_5YR_B05002_with_ann!BC56","v":12},{"$f":"[1]ACS_16_5YR_B05002_with_ann!BD56","v":0},{"$f":"[1]ACS_16_5YR_B05002_with_ann!BE56","v":12}]
["0600000US3300564580","0600000US3300564580","060",{"$f":"[1]ACS_16_5YR_B05002_with_ann!C57","v":"Rindge"},{"$f":"[1]ACS_16_5YR_B05002_with_ann!D57","v":6446},{"$f":"[1]ACS_16_5YR_B05002_with_ann!E57","v":21},{"$f":"[1]ACS_16_5YR_B05002_with_ann!F57","v":6312},{"$f":"[1]ACS_16_5YR_B05002_with_ann!G57","v":90},{"$f":"[1]ACS_16_5YR_B05002_with_ann!H57","v":1934},{"$f":"[1]ACS_16_5YR_B05002_with_ann!I57","v":323},{"$f":"[1]ACS_16_5YR_B05002_with_ann!J57","v":4309},{"$f":"[1]ACS_16_5YR_B05002_with_ann!K57","v":316},{"$f":"[1]ACS_16_5YR_B05002_with_ann!L57","v":3612},{"$f":"[1]ACS_16_5YR_B05002_with_ann!M57","v":339},{"$f":"[1]ACS_16_5YR_B05002_with_ann!N57","v":264},{"$f":"[1]ACS_16_5YR_B05002_with_ann!O57","v":143},{"$f":"[1]ACS_16_5YR_B05002_with_ann!P57","v":280},{"$f":"[1]ACS_16_5YR_B05002_with_ann!Q57","v":139},{"$f":"[1]ACS_16_5YR_B05002_with_ann!R57","v":153},{"$f":"[1]ACS_16_5YR_B05002_with_ann!S57","v":70},{"$f":"[1]ACS_16_5YR_B05002_with_ann!T57","v":69},{"$f":"[1]ACS_16_5YR_B05002_with_ann!U57","v":59},{"$f":"[1]ACS_16_5YR_B05002_with_ann!V57","v":41},{"$f":"[1]ACS_16_5YR_B05002_with_ann!W57","v":55},{"$f":"[1]ACS_16_5YR_B05002_with_ann!X57","v":5},{"$f":"[1]ACS_16_5YR_B05002_with_ann!Y57","v":11},{"$f":"[1]ACS_16_5YR_B05002_with_ann!Z57","v":23},{"$f":"[1]ACS_16_5YR_B05002_with_ann!AA57","v":30},{"$f":"[1]ACS_16_5YR_B05002_with_ann!AB57","v":134},{"$f":"[1]ACS_16_5YR_B05002_with_ann!AC57","v":88},{"$f":"[1]ACS_16_5YR_B05002_with_ann!AD57","v":58},{"$f":"[1]ACS_16_5YR_B05002_with_ann!AE57","v":62},{"$f":"[1]ACS_16_5YR_B05002_with_ann!AF57","v":8},{"$f":"[1]ACS_16_5YR_B05002_with_ann!AG57","v":18},{"$f":"[1]ACS_16_5YR_B05002_with_ann!AH57","v":25},{"$f":"[1]ACS_16_5YR_B05002_with_ann!AI57","v":39},{"$f":"[1]ACS_16_5YR_B05002_with_ann!AJ57","v":0},{"$f":"[1]ACS_16_5YR_B05002_with_ann!AK57","v":17},{"$f":"[1]ACS_16_5YR_B05002_with_ann!AL57","v":0},{"$f":"[1]ACS_16_5YR_B05002_with_ann!AM57","v":17},{"$f":"[1]ACS_16_5YR_B05002_with_ann!AN57","v":25},{"$f":"[1]ACS_16_5YR_B05002_with_ann!AO57","v":39},{"$f":"[1]ACS_16_5YR_B05002_with_ann!AP57","v":0},{"$f":"[1]ACS_16_5YR_B05002_with_ann!AQ57","v":17},{"$f":"[1]ACS_16_5YR_B05002_with_ann!AR57","v":76},{"$f":"[1]ACS_16_5YR_B05002_with_ann!AS57","v":65},{"$f":"[1]ACS_16_5YR_B05002_with_ann!AT57","v":10},{"$f":"[1]ACS_16_5YR_B05002_with_ann!AU57","v":18},{"$f":"[1]ACS_16_5YR_B05002_with_ann!AV57","v":9},{"$f":"[1]ACS_16_5YR_B05002_with_ann!AW57","v":20},{"$f":"[1]ACS_16_5YR_B05002_with_ann!AX57","v":4},{"$f":"[1]ACS_16_5YR_B05002_with_ann!AY57","v":7},{"$f":"[1]ACS_16_5YR_B05002_with_ann!AZ57","v":0},{"$f":"[1]ACS_16_5YR_B05002_with_ann!BA57","v":17},{"$f":"[1]ACS_16_5YR_B05002_with_ann!BB57","v":13},{"$f":"[1]ACS_16_5YR_B05002_with_ann!BC57","v":22},{"$f":"[1]ACS_16_5YR_B05002_with_ann!BD57","v":40},{"$f":"[1]ACS_16_5YR_B05002_with_ann!BE57","v":53}]
["0600000US3300565700","0600000US3300565700","060",{"$f":"[1]ACS_16_5YR_B05002_with_ann!C58","v":"Roxbury"},{"$f":"[1]ACS_16_5YR_B05002_with_ann!D58","v":295},{"$f":"[1]ACS_16_5YR_B05002_with_ann!E58","v":142},{"$f":"[1]ACS_16_5YR_B05002_with_ann!F58","v":293},{"$f":"[1]ACS_16_5YR_B05002_with_ann!G58","v":143},{"$f":"[1]ACS_16_5YR_B05002_with_ann!H58","v":144},{"$f":"[1]ACS_16_5YR_B05002_with_ann!I58","v":73},{"$f":"[1]ACS_16_5YR_B05002_with_ann!J58","v":149},{"$f":"[1]ACS_16_5YR_B05002_with_ann!K58","v":78},{"$f":"[1]ACS_16_5YR_B05002_with_ann!L58","v":147},{"$f":"[1]ACS_16_5YR_B05002_with_ann!M58","v":78},{"$f":"[1]ACS_16_5YR_B05002_with_ann!N58","v":1},{"$f":"[1]ACS_16_5YR_B05002_with_ann!O58","v":2},{"$f":"[1]ACS_16_5YR_B05002_with_ann!P58","v":0},{"$f":"[1]ACS_16_5YR_B05002_with_ann!Q58","v":12},{"$f":"[1]ACS_16_5YR_B05002_with_ann!R58","v":1},{"$f":"[1]ACS_16_5YR_B05002_with_ann!S58","v":2},{"$f":"[1]ACS_16_5YR_B05002_with_ann!T58","v":0},{"$f":"[1]ACS_16_5YR_B05002_with_ann!U58","v":12},{"$f":"[1]ACS_16_5YR_B05002_with_ann!V58","v":0},{"$f":"[1]ACS_16_5YR_B05002_with_ann!W58","v":12},{"$f":"[1]ACS_16_5YR_B05002_with_ann!X58","v":0},{"$f":"[1]ACS_16_5YR_B05002_with_ann!Y58","v":12},{"$f":"[1]ACS_16_5YR_B05002_with_ann!Z58","v":0},{"$f":"[1]ACS_16_5YR_B05002_with_ann!AA58","v":12},{"$f":"[1]ACS_16_5YR_B05002_with_ann!AB58","v":2},{"$f":"[1]ACS_16_5YR_B05002_with_ann!AC58","v":5},{"$f":"[1]ACS_16_5YR_B05002_with_ann!AD58","v":2},{"$f":"[1]ACS_16_5YR_B05002_with_ann!AE58","v":5},{"$f":"[1]ACS_16_5YR_B05002_with_ann!AF58","v":1},{"$f":"[1]ACS_16_5YR_B05002_with_ann!AG58","v":3},{"$f":"[1]ACS_16_5YR_B05002_with_ann!AH58","v":0},{"$f":"[1]ACS_16_5YR_B05002_with_ann!AI58","v":12},{"$f":"[1]ACS_16_5YR_B05002_with_ann!AJ58","v":0},{"$f":"[1]ACS_16_5YR_B05002_with_ann!AK58","v":12},{"$f":"[1]ACS_16_5YR_B05002_with_ann!AL58","v":0},{"$f":"[1]ACS_16_5YR_B05002_with_ann!AM58","v":12},{"$f":"[1]ACS_16_5YR_B05002_with_ann!AN58","v":0},{"$f":"[1]ACS_16_5YR_B05002_with_ann!AO58","v":12},{"$f":"[1]ACS_16_5YR_B05002_with_ann!AP58","v":1},{"$f":"[1]ACS_16_5YR_B05002_with_ann!AQ58","v":3},{"$f":"[1]ACS_16_5YR_B05002_with_ann!AR58","v":0},{"$f":"[1]ACS_16_5YR_B05002_with_ann!AS58","v":12},{"$f":"[1]ACS_16_5YR_B05002_with_ann!AT58","v":0},{"$f":"[1]ACS_16_5YR_B05002_with_ann!AU58","v":12},{"$f":"[1]ACS_16_5YR_B05002_with_ann!AV58","v":0},{"$f":"[1]ACS_16_5YR_B05002_with_ann!AW58","v":12},{"$f":"[1]ACS_16_5YR_B05002_with_ann!AX58","v":0},{"$f":"[1]ACS_16_5YR_B05002_with_ann!AY58","v":12},{"$f":"[1]ACS_16_5YR_B05002_with_ann!AZ58","v":0},{"$f":"[1]ACS_16_5YR_B05002_with_ann!BA58","v":12},{"$f":"[1]ACS_16_5YR_B05002_with_ann!BB58","v":0},{"$f":"[1]ACS_16_5YR_B05002_with_ann!BC58","v":12},{"$f":"[1]ACS_16_5YR_B05002_with_ann!BD58","v":0},{"$f":"[1]ACS_16_5YR_B05002_with_ann!BE58","v":12}]
["0600000US3300573700","0600000US3300573700","060",{"$f":"[1]ACS_16_5YR_B05002_with_ann!C59","v":"Stoddard"},{"$f":"[1]ACS_16_5YR_B05002_with_ann!D59","v":1205},{"$f":"[1]ACS_16_5YR_B05002_with_ann!E59","v":162},{"$f":"[1]ACS_16_5YR_B05002_with_ann!F59","v":1182},{"$f":"[1]ACS_16_5YR_B05002_with_ann!G59","v":159},{"$f":"[1]ACS_16_5YR_B05002_with_ann!H59","v":704},{"$f":"[1]ACS_16_5YR_B05002_with_ann!I59","v":120},{"$f":"[1]ACS_16_5YR_B05002_with_ann!J59","v":478},{"$f":"[1]ACS_16_5YR_B05002_with_ann!K59","v":79},{"$f":"[1]ACS_16_5YR_B05002_with_ann!L59","v":379},{"$f":"[1]ACS_16_5YR_B05002_with_ann!M59","v":76},{"$f":"[1]ACS_16_5YR_B05002_with_ann!N59","v":40},{"$f":"[1]ACS_16_5YR_B05002_with_ann!O59","v":15},{"$f":"[1]ACS_16_5YR_B05002_with_ann!P59","v":24},{"$f":"[1]ACS_16_5YR_B05002_with_ann!Q59","v":11},{"$f":"[1]ACS_16_5YR_B05002_with_ann!R59","v":35},{"$f":"[1]ACS_16_5YR_B05002_with_ann!S59","v":28},{"$f":"[1]ACS_16_5YR_B05002_with_ann!T59","v":0},{"$f":"[1]ACS_16_5YR_B05002_with_ann!U59","v":12},{"$f":"[1]ACS_16_5YR_B05002_with_ann!V59","v":0},{"$f":"[1]ACS_16_5YR_B05002_with_ann!W59","v":12},{"$f":"[1]ACS_16_5YR_B05002_with_ann!X59","v":0},{"$f":"[1]ACS_16_5YR_B05002_with_ann!Y59","v":12},{"$f":"[1]ACS_16_5YR_B05002_with_ann!Z59","v":0},{"$f":"[1]ACS_16_5YR_B05002_with_ann!AA59","v":12},{"$f":"[1]ACS_16_5YR_B05002_with_ann!AB59","v":23},{"$f":"[1]ACS_16_5YR_B05002_with_ann!AC59","v":17},{"$f":"[1]ACS_16_5YR_B05002_with_ann!AD59","v":10},{"$f":"[1]ACS_16_5YR_B05002_with_ann!AE59","v":10},{"$f":"[1]ACS_16_5YR_B05002_with_ann!AF59","v":2},{"$f":"[1]ACS_16_5YR_B05002_with_ann!AG59","v":4},{"$f":"[1]ACS_16_5YR_B05002_with_ann!AH59","v":8},{"$f":"[1]ACS_16_5YR_B05002_with_ann!AI59","v":8},{"$f":"[1]ACS_16_5YR_B05002_with_ann!AJ59","v":0},{"$f":"[1]ACS_16_5YR_B05002_with_ann!AK59","v":12},{"$f":"[1]ACS_16_5YR_B05002_with_ann!AL59","v":0},{"$f":"[1]ACS_16_5YR_B05002_with_ann!AM59","v":12},{"$f":"[1]ACS_16_5YR_B05002_with_ann!AN59","v":0},{"$f":"[1]ACS_16_5YR_B05002_with_ann!AO59","v":12},{"$f":"[1]ACS_16_5YR_B05002_with_ann!AP59","v":0},{"$f":"[1]ACS_16_5YR_B05002_with_ann!AQ59","v":12},{"$f":"[1]ACS_16_5YR_B05002_with_ann!AR59","v":13},{"$f":"[1]ACS_16_5YR_B05002_with_ann!AS59","v":14},{"$f":"[1]ACS_16_5YR_B05002_with_ann!AT59","v":2},{"$f":"[1]ACS_16_5YR_B05002_with_ann!AU59","v":3},{"$f":"[1]ACS_16_5YR_B05002_with_ann!AV59","v":0},{"$f":"[1]ACS_16_5YR_B05002_with_ann!AW59","v":12},{"$f":"[1]ACS_16_5YR_B05002_with_ann!AX59","v":0},{"$f":"[1]ACS_16_5YR_B05002_with_ann!AY59","v":12},{"$f":"[1]ACS_16_5YR_B05002_with_ann!AZ59","v":0},{"$f":"[1]ACS_16_5YR_B05002_with_ann!BA59","v":12},{"$f":"[1]ACS_16_5YR_B05002_with_ann!BB59","v":0},{"$f":"[1]ACS_16_5YR_B05002_with_ann!BC59","v":12},{"$f":"[1]ACS_16_5YR_B05002_with_ann!BD59","v":11},{"$f":"[1]ACS_16_5YR_B05002_with_ann!BE59","v":13}]
["0600000US3300574900","0600000US3300574900","060",{"$f":"[1]ACS_16_5YR_B05002_with_ann!C60","v":"Sullivan"},{"$f":"[1]ACS_16_5YR_B05002_with_ann!D60","v":681},{"$f":"[1]ACS_16_5YR_B05002_with_ann!E60","v":130},{"$f":"[1]ACS_16_5YR_B05002_with_ann!F60","v":649},{"$f":"[1]ACS_16_5YR_B05002_with_ann!G60","v":124},{"$f":"[1]ACS_16_5YR_B05002_with_ann!H60","v":314},{"$f":"[1]ACS_16_5YR_B05002_with_ann!I60","v":95},{"$f":"[1]ACS_16_5YR_B05002_with_ann!J60","v":298},{"$f":"[1]ACS_16_5YR_B05002_with_ann!K60","v":51},{"$f":"[1]ACS_16_5YR_B05002_with_ann!L60","v":234},{"$f":"[1]ACS_16_5YR_B05002_with_ann!M60","v":44},{"$f":"[1]ACS_16_5YR_B05002_with_ann!N60","v":6},{"$f":"[1]ACS_16_5YR_B05002_with_ann!O60","v":6},{"$f":"[1]ACS_16_5YR_B05002_with_ann!P60","v":37},{"$f":"[1]ACS_16_5YR_B05002_with_ann!Q60","v":20},{"$f":"[1]ACS_16_5YR_B05002_with_ann!R60","v":21},{"$f":"[1]ACS_16_5YR_B05002_with_ann!S60","v":15},{"$f":"[1]ACS_16_5YR_B05002_with_ann!T60","v":37},{"$f":"[1]ACS_16_5YR_B05002_with_ann!U60","v":27},{"$f":"[1]ACS_16_5YR_B05002_with_ann!V60","v":0},{"$f":"[1]ACS_16_5YR_B05002_with_ann!W60","v":12},{"$f":"[1]ACS_16_5YR_B05002_with_ann!X60","v":0},{"$f":"[1]ACS_16_5YR_B05002_with_ann!Y60","v":12},{"$f":"[1]ACS_16_5YR_B05002_with_ann!Z60","v":37},{"$f":"[1]ACS_16_5YR_B05002_with_ann!AA60","v":27},{"$f":"[1]ACS_16_5YR_B05002_with_ann!AB60","v":32},{"$f":"[1]ACS_16_5YR_B05002_with_ann!AC60","v":31},{"$f":"[1]ACS_16_5YR_B05002_with_ann!AD60","v":9},{"$f":"[1]ACS_16_5YR_B05002_with_ann!AE60","v":9},{"$f":"[1]ACS_16_5YR_B05002_with_ann!AF60","v":0},{"$f":"[1]ACS_16_5YR_B05002_with_ann!AG60","v":12},{"$f":"[1]ACS_16_5YR_B05002_with_ann!AH60","v":7},{"$f":"[1]ACS_16_5YR_B05002_with_ann!AI60","v":9},{"$f":"[1]ACS_16_5YR_B05002_with_ann!AJ60","v":0},{"$f":"[1]ACS_16_5YR_B05002_with_ann!AK60","v":12},{"$f":"[1]ACS_16_5YR_B05002_with_ann!AL60","v":0},{"$f":"[1]ACS_16_5YR_B05002_with_ann!AM60","v":12},{"$f":"[1]ACS_16_5YR_B05002_with_ann!AN60","v":0},{"$f":"[1]ACS_16_5YR_B05002_with_ann!AO60","v":12},{"$f":"[1]ACS_16_5YR_B05002_with_ann!AP60","v":2},{"$f":"[1]ACS_16_5YR_B05002_with_ann!AQ60","v":4},{"$f":"[1]ACS_16_5YR_B05002_with_ann!AR60","v":23},{"$f":"[1]ACS_16_5YR_B05002_with_ann!AS60","v":28},{"$f":"[1]ACS_16_5YR_B05002_with_ann!AT60","v":0},{"$f":"[1]ACS_16_5YR_B05002_with_ann!AU60","v":12},{"$f":"[1]ACS_16_5YR_B05002_with_ann!AV60","v":23},{"$f":"[1]ACS_16_5YR_B05002_with_ann!AW60","v":28},{"$f":"[1]ACS_16_5YR_B05002_with_ann!AX60","v":0},{"$f":"[1]ACS_16_5YR_B05002_with_ann!AY60","v":12},{"$f":"[1]ACS_16_5YR_B05002_with_ann!AZ60","v":0},{"$f":"[1]ACS_16_5YR_B05002_with_ann!BA60","v":12},{"$f":"[1]ACS_16_5YR_B05002_with_ann!BB60","v":0},{"$f":"[1]ACS_16_5YR_B05002_with_ann!BC60","v":12},{"$f":"[1]ACS_16_5YR_B05002_with_ann!BD60","v":0},{"$f":"[1]ACS_16_5YR_B05002_with_ann!BE60","v":12}]
["0600000US3300575300","0600000US3300575300","060",{"$f":"[1]ACS_16_5YR_B05002_with_ann!C61","v":"Surry"},{"$f":"[1]ACS_16_5YR_B05002_with_ann!D61","v":950},{"$f":"[1]ACS_16_5YR_B05002_with_ann!E61","v":245},{"$f":"[1]ACS_16_5YR_B05002_with_ann!F61","v":947},{"$f":"[1]ACS_16_5YR_B05002_with_ann!G61","v":244},{"$f":"[1]ACS_16_5YR_B05002_with_ann!H61","v":492},{"$f":"[1]ACS_16_5YR_B05002_with_ann!I61","v":117},{"$f":"[1]ACS_16_5YR_B05002_with_ann!J61","v":448},{"$f":"[1]ACS_16_5YR_B05002_with_ann!K61","v":182},{"$f":"[1]ACS_16_5YR_B05002_with_ann!L61","v":367},{"$f":"[1]ACS_16_5YR_B05002_with_ann!M61","v":180},{"$f":"[1]ACS_16_5YR_B05002_with_ann!N61","v":39},{"$f":"[1]ACS_16_5YR_B05002_with_ann!O61","v":19},{"$f":"[1]ACS_16_5YR_B05002_with_ann!P61","v":35},{"$f":"[1]ACS_16_5YR_B05002_with_ann!Q61","v":16},{"$f":"[1]ACS_16_5YR_B05002_with_ann!R61","v":7},{"$f":"[1]ACS_16_5YR_B05002_with_ann!S61","v":7},{"$f":"[1]ACS_16_5YR_B05002_with_ann!T61","v":7},{"$f":"[1]ACS_16_5YR_B05002_with_ann!U61","v":7},{"$f":"[1]ACS_16_5YR_B05002_with_ann!V61","v":0},{"$f":"[1]ACS_16_5YR_B05002_with_ann!W61","v":12},{"$f":"[1]ACS_16_5YR_B05002_with_ann!X61","v":0},{"$f":"[1]ACS_16_5YR_B05002_with_ann!Y61","v":12},{"$f":"[1]ACS_16_5YR_B05002_with_ann!Z61","v":7},{"$f":"[1]ACS_16_5YR_B05002_with_ann!AA61","v":7},{"$f":"[1]ACS_16_5YR_B05002_with_ann!AB61","v":3},{"$f":"[1]ACS_16_5YR_B05002_with_ann!AC61","v":4},{"$f":"[1]ACS_16_5YR_B05002_with_ann!AD61","v":3},{"$f":"[1]ACS_16_5YR_B05002_with_ann!AE61","v":4},{"$f":"[1]ACS_16_5YR_B05002_with_ann!AF61","v":3},{"$f":"[1]ACS_16_5YR_B05002_with_ann!AG61","v":4},{"$f":"[1]ACS_16_5YR_B05002_with_ann!AH61","v":0},{"$f":"[1]ACS_16_5YR_B05002_with_ann!AI61","v":12},{"$f":"[1]ACS_16_5YR_B05002_with_ann!AJ61","v":0},{"$f":"[1]ACS_16_5YR_B05002_with_ann!AK61","v":12},{"$f":"[1]ACS_16_5YR_B05002_with_ann!AL61","v":0},{"$f":"[1]ACS_16_5YR_B05002_with_ann!AM61","v":12},{"$f":"[1]ACS_16_5YR_B05002_with_ann!AN61","v":0},{"$f":"[1]ACS_16_5YR_B05002_with_ann!AO61","v":12},{"$f":"[1]ACS_16_5YR_B05002_with_ann!AP61","v":0},{"$f":"[1]ACS_16_5YR_B05002_with_ann!AQ61","v":12},{"$f":"[1]ACS_16_5YR_B05002_with_ann!AR61","v":0},{"$f":"[1]ACS_16_5YR_B05002_with_ann!AS61","v":12},{"$f":"[1]ACS_16_5YR_B05002_with_ann!AT61","v":0},{"$f":"[1]ACS_16_5YR_B05002_with_ann!AU61","v":12},{"$f":"[1]ACS_16_5YR_B05002_with_ann!AV61","v":0},{"$f":"[1]ACS_16_5YR_B05002_with_ann!AW61","v":12},{"$f":"[1]ACS_16_5YR_B05002_with_ann!AX61","v":0},{"$f":"[1]ACS_16_5YR_B05002_with_ann!AY61","v":12},{"$f":"[1]ACS_16_5YR_B05002_with_ann!AZ61","v":0},{"$f":"[1]ACS_16_5YR_B05002_with_ann!BA61","v":12},{"$f":"[1]ACS_16_5YR_B05002_with_ann!BB61","v":0},{"$f":"[1]ACS_16_5YR_B05002_with_ann!BC61","v":12},{"$f":"[1]ACS_16_5YR_B05002_with_ann!BD61","v":0},{"$f":"[1]ACS_16_5YR_B05002_with_ann!BE61","v":12}]
["0600000US3300575700","0600000US3300575700","060",{"$f":"[1]ACS_16_5YR_B05002_with_ann!C62","v":"Swanzey"},{"$f":"[1]ACS_16_5YR_B05002_with_ann!D62","v":7306},{"$f":"[1]ACS_16_5YR_B05002_with_ann!E62","v":22},{"$f":"[1]ACS_16_5YR_B05002_with_ann!F62","v":7157},{"$f":"[1]ACS_16_5YR_B05002_with_ann!G62","v":102},{"$f":"[1]ACS_16_5YR_B05002_with_ann!H62","v":3894},{"$f":"[1]ACS_16_5YR_B05002_with_ann!I62","v":401},{"$f":"[1]ACS_16_5YR_B05002_with_ann!J62","v":3238},{"$f":"[1]ACS_16_5YR_B05002_with_ann!K62","v":393},{"$f":"[1]ACS_16_5YR_B05002_with_ann!L62","v":2739},{"$f":"[1]ACS_16_5YR_B05002_with_ann!M62","v":341},{"$f":"[1]ACS_16_5YR_B05002_with_ann!N62","v":287},{"$f":"[1]ACS_16_5YR_B05002_with_ann!O62","v":125},{"$f":"[1]ACS_16_5YR_B05002_with_ann!P62","v":183},{"$f":"[1]ACS_16_5YR_B05002_with_ann!Q62","v":102},{"$f":"[1]ACS_16_5YR_B05002_with_ann!R62","v":29},{"$f":"[1]ACS_16_5YR_B05002_with_ann!S62","v":37},{"$f":"[1]ACS_16_5YR_B05002_with_ann!T62","v":25},{"$f":"[1]ACS_16_5YR_B05002_with_ann!U62","v":48},{"$f":"[1]ACS_16_5YR_B05002_with_ann!V62","v":0},{"$f":"[1]ACS_16_5YR_B05002_with_ann!W62","v":17},{"$f":"[1]ACS_16_5YR_B05002_with_ann!X62","v":0},{"$f":"[1]ACS_16_5YR_B05002_with_ann!Y62","v":17},{"$f":"[1]ACS_16_5YR_B05002_with_ann!Z62","v":25},{"$f":"[1]ACS_16_5YR_B05002_with_ann!AA62","v":48},{"$f":"[1]ACS_16_5YR_B05002_with_ann!AB62","v":149},{"$f":"[1]ACS_16_5YR_B05002_with_ann!AC62","v":101},{"$f":"[1]ACS_16_5YR_B05002_with_ann!AD62","v":117},{"$f":"[1]ACS_16_5YR_B05002_with_ann!AE62","v":94},{"$f":"[1]ACS_16_5YR_B05002_with_ann!AF62","v":23},{"$f":"[1]ACS_16_5YR_B05002_with_ann!AG62","v":25},{"$f":"[1]ACS_16_5YR_B05002_with_ann!AH62","v":76},{"$f":"[1]ACS_16_5YR_B05002_with_ann!AI62","v":86},{"$f":"[1]ACS_16_5YR_B05002_with_ann!AJ62","v":0},{"$f":"[1]ACS_16_5YR_B05002_with_ann!AK62","v":17},{"$f":"[1]ACS_16_5YR_B05002_with_ann!AL62","v":0},{"$f":"[1]ACS_16_5YR_B05002_with_ann!AM62","v":17},{"$f":"[1]ACS_16_5YR_B05002_with_ann!AN62","v":0},{"$f":"[1]ACS_16_5YR_B05002_with_ann!AO62","v":17},{"$f":"[1]ACS_16_5YR_B05002_with_ann!AP62","v":18},{"$f":"[1]ACS_16_5YR_B05002_with_ann!AQ62","v":26},{"$f":"[1]ACS_16_5YR_B05002_with_ann!AR62","v":32},{"$f":"[1]ACS_16_5YR_B05002_with_ann!AS62","v":34},{"$f":"[1]ACS_16_5YR_B05002_with_ann!AT62","v":17},{"$f":"[1]ACS_16_5YR_B05002_with_ann!AU62","v":26},{"$f":"[1]ACS_16_5YR_B05002_with_ann!AV62","v":0},{"$f":"[1]ACS_16_5YR_B05002_with_ann!AW62","v":17},{"$f":"[1]ACS_16_5YR_B05002_with_ann!AX62","v":15},{"$f":"[1]ACS_16_5YR_B05002_with_ann!AY62","v":22},{"$f":"[1]ACS_16_5YR_B05002_with_ann!AZ62","v":0},{"$f":"[1]ACS_16_5YR_B05002_with_ann!BA62","v":17},{"$f":"[1]ACS_16_5YR_B05002_with_ann!BB62","v":0},{"$f":"[1]ACS_16_5YR_B05002_with_ann!BC62","v":17},{"$f":"[1]ACS_16_5YR_B05002_with_ann!BD62","v":0},{"$f":"[1]ACS_16_5YR_B05002_with_ann!BE62","v":17}]
["0600000US3300577380","0600000US3300577380","060",{"$f":"[1]ACS_16_5YR_B05002_with_ann!C63","v":"Troy"},{"$f":"[1]ACS_16_5YR_B05002_with_ann!D63","v":1889},{"$f":"[1]ACS_16_5YR_B05002_with_ann!E63","v":275},{"$f":"[1]ACS_16_5YR_B05002_with_ann!F63","v":1864},{"$f":"[1]ACS_16_5YR_B05002_with_ann!G63","v":276},{"$f":"[1]ACS_16_5YR_B05002_with_ann!H63","v":997},{"$f":"[1]ACS_16_5YR_B05002_with_ann!I63","v":240},{"$f":"[1]ACS_16_5YR_B05002_with_ann!J63","v":840},{"$f":"[1]ACS_16_5YR_B05002_with_ann!K63","v":166},{"$f":"[1]ACS_16_5YR_B05002_with_ann!L63","v":681},{"$f":"[1]ACS_16_5YR_B05002_with_ann!M63","v":153},{"$f":"[1]ACS_16_5YR_B05002_with_ann!N63","v":95},{"$f":"[1]ACS_16_5YR_B05002_with_ann!O63","v":64},{"$f":"[1]ACS_16_5YR_B05002_with_ann!P63","v":44},{"$f":"[1]ACS_16_5YR_B05002_with_ann!Q63","v":37},{"$f":"[1]ACS_16_5YR_B05002_with_ann!R63","v":20},{"$f":"[1]ACS_16_5YR_B05002_with_ann!S63","v":16},{"$f":"[1]ACS_16_5YR_B05002_with_ann!T63","v":27},{"$f":"[1]ACS_16_5YR_B05002_with_ann!U63","v":30},{"$f":"[1]ACS_16_5YR_B05002_with_ann!V63","v":8},{"$f":"[1]ACS_16_5YR_B05002_with_ann!W63","v":13},{"$f":"[1]ACS_16_5YR_B05002_with_ann!X63","v":0},{"$f":"[1]ACS_16_5YR_B05002_with_ann!Y63","v":12},{"$f":"[1]ACS_16_5YR_B05002_with_ann!Z63","v":19},{"$f":"[1]ACS_16_5YR_B05002_with_ann!AA63","v":26},{"$f":"[1]ACS_16_5YR_B05002_with_ann!AB63","v":25},{"$f":"[1]ACS_16_5YR_B05002_with_ann!AC63","v":26},{"$f":"[1]ACS_16_5YR_B05002_with_ann!AD63","v":17},{"$f":"[1]ACS_16_5YR_B05002_with_ann!AE63","v":29},{"$f":"[1]ACS_16_5YR_B05002_with_ann!AF63","v":17},{"$f":"[1]ACS_16_5YR_B05002_with_ann!AG63","v":29},{"$f":"[1]ACS_16_5YR_B05002_with_ann!AH63","v":0},{"$f":"[1]ACS_16_5YR_B05002_with_ann!AI63","v":12},{"$f":"[1]ACS_16_5YR_B05002_with_ann!AJ63","v":0},{"$f":"[1]ACS_16_5YR_B05002_with_ann!AK63","v":12},{"$f":"[1]ACS_16_5YR_B05002_with_ann!AL63","v":0},{"$f":"[1]ACS_16_5YR_B05002_with_ann!AM63","v":12},{"$f":"[1]ACS_16_5YR_B05002_with_ann!AN63","v":0},{"$f":"[1]ACS_16_5YR_B05002_with_ann!AO63","v":12},{"$f":"[1]ACS_16_5YR_B05002_with_ann!AP63","v":0},{"$f":"[1]ACS_16_5YR_B05002_with_ann!AQ63","v":12},{"$f":"[1]ACS_16_5YR_B05002_with_ann!AR63","v":8},{"$f":"[1]ACS_16_5YR_B05002_with_ann!AS63","v":12},{"$f":"[1]ACS_16_5YR_B05002_with_ann!AT63","v":0},{"$f":"[1]ACS_16_5YR_B05002_with_ann!AU63","v":12},{"$f":"[1]ACS_16_5YR_B05002_with_ann!AV63","v":0},{"$f":"[1]ACS_16_5YR_B05002_with_ann!AW63","v":12},{"$f":"[1]ACS_16_5YR_B05002_with_ann!AX63","v":0},{"$f":"[1]ACS_16_5YR_B05002_with_ann!AY63","v":12},{"$f":"[1]ACS_16_5YR_B05002_with_ann!AZ63","v":8},{"$f":"[1]ACS_16_5YR_B05002_with_ann!BA63","v":12},{"$f":"[1]ACS_16_5YR_B05002_with_ann!BB63","v":0},{"$f":"[1]ACS_16_5YR_B05002_with_ann!BC63","v":12},{"$f":"[1]ACS_16_5YR_B05002_with_ann!BD63","v":0},{"$f":"[1]ACS_16_5YR_B05002_with_ann!BE63","v":12}]
["0600000US3300578420","0600000US3300578420","060",{"$f":"[1]ACS_16_5YR_B05002_with_ann!C64","v":"Walpole"},{"$f":"[1]ACS_16_5YR_B05002_with_ann!D64","v":3651},{"$f":"[1]ACS_16_5YR_B05002_with_ann!E64","v":33},{"$f":"[1]ACS_16_5YR_B05002_with_ann!F64","v":3501},{"$f":"[1]ACS_16_5YR_B05002_with_ann!G64","v":114},{"$f":"[1]ACS_16_5YR_B05002_with_ann!H64","v":1105},{"$f":"[1]ACS_16_5YR_B05002_with_ann!I64","v":191},{"$f":"[1]ACS_16_5YR_B05002_with_ann!J64","v":2369},{"$f":"[1]ACS_16_5YR_B05002_with_ann!K64","v":212},{"$f":"[1]ACS_16_5YR_B05002_with_ann!L64","v":1862},{"$f":"[1]ACS_16_5YR_B05002_with_ann!M64","v":218},{"$f":"[1]ACS_16_5YR_B05002_with_ann!N64","v":122},{"$f":"[1]ACS_16_5YR_B05002_with_ann!O64","v":60},{"$f":"[1]ACS_16_5YR_B05002_with_ann!P64","v":288},{"$f":"[1]ACS_16_5YR_B05002_with_ann!Q64","v":134},{"$f":"[1]ACS_16_5YR_B05002_with_ann!R64","v":97},{"$f":"[1]ACS_16_5YR_B05002_with_ann!S64","v":63},{"$f":"[1]ACS_16_5YR_B05002_with_ann!T64","v":27},{"$f":"[1]ACS_16_5YR_B05002_with_ann!U64","v":30},{"$f":"[1]ACS_16_5YR_B05002_with_ann!V64","v":0},{"$f":"[1]ACS_16_5YR_B05002_with_ann!W64","v":12},{"$f":"[1]ACS_16_5YR_B05002_with_ann!X64","v":0},{"$f":"[1]ACS_16_5YR_B05002_with_ann!Y64","v":12},{"$f":"[1]ACS_16_5YR_B05002_with_ann!Z64","v":27},{"$f":"[1]ACS_16_5YR_B05002_with_ann!AA64","v":30},{"$f":"[1]ACS_16_5YR_B05002_with_ann!AB64","v":150},{"$f":"[1]ACS_16_5YR_B05002_with_ann!AC64","v":107},{"$f":"[1]ACS_16_5YR_B05002_with_ann!AD64","v":142},{"$f":"[1]ACS_16_5YR_B05002_with_ann!AE64","v":106},{"$f":"[1]ACS_16_5YR_B05002_with_ann!AF64","v":27},{"$f":"[1]ACS_16_5YR_B05002_with_ann!AG64","v":34},{"$f":"[1]ACS_16_5YR_B05002_with_ann!AH64","v":0},{"$f":"[1]ACS_16_5YR_B05002_with_ann!AI64","v":12},{"$f":"[1]ACS_16_5YR_B05002_with_ann!AJ64","v":70},{"$f":"[1]ACS_16_5YR_B05002_with_ann!AK64","v":88},{"$f":"[1]ACS_16_5YR_B05002_with_ann!AL64","v":0},{"$f":"[1]ACS_16_5YR_B05002_with_ann!AM64","v":12},{"$f":"[1]ACS_16_5YR_B05002_with_ann!AN64","v":45},{"$f":"[1]ACS_16_5YR_B05002_with_ann!AO64","v":50},{"$f":"[1]ACS_16_5YR_B05002_with_ann!AP64","v":0},{"$f":"[1]ACS_16_5YR_B05002_with_ann!AQ64","v":12},{"$f":"[1]ACS_16_5YR_B05002_with_ann!AR64","v":8},{"$f":"[1]ACS_16_5YR_B05002_with_ann!AS64","v":11},{"$f":"[1]ACS_16_5YR_B05002_with_ann!AT64","v":8},{"$f":"[1]ACS_16_5YR_B05002_with_ann!AU64","v":11},{"$f":"[1]ACS_16_5YR_B05002_with_ann!AV64","v":0},{"$f":"[1]ACS_16_5YR_B05002_with_ann!AW64","v":12},{"$f":"[1]ACS_16_5YR_B05002_with_ann!AX64","v":0},{"$f":"[1]ACS_16_5YR_B05002_with_ann!AY64","v":12},{"$f":"[1]ACS_16_5YR_B05002_with_ann!AZ64","v":0},{"$f":"[1]ACS_16_5YR_B05002_with_ann!BA64","v":12},{"$f":"[1]ACS_16_5YR_B05002_with_ann!BB64","v":0},{"$f":"[1]ACS_16_5YR_B05002_with_ann!BC64","v":12},{"$f":"[1]ACS_16_5YR_B05002_with_ann!BD64","v":0},{"$f":"[1]ACS_16_5YR_B05002_with_ann!BE64","v":12}]
["0600000US3300582660","0600000US3300582660","060",{"$f":"[1]ACS_16_5YR_B05002_with_ann!C65","v":"Westmoreland"},{"$f":"[1]ACS_16_5YR_B05002_with_ann!D65","v":2042},{"$f":"[1]ACS_16_5YR_B05002_with_ann!E65","v":341},{"$f":"[1]ACS_16_5YR_B05002_with_ann!F65","v":1983},{"$f":"[1]ACS_16_5YR_B05002_with_ann!G65","v":340},{"$f":"[1]ACS_16_5YR_B05002_with_ann!H65","v":919},{"$f":"[1]ACS_16_5YR_B05002_with_ann!I65","v":212},{"$f":"[1]ACS_16_5YR_B05002_with_ann!J65","v":1056},{"$f":"[1]ACS_16_5YR_B05002_with_ann!K65","v":222},{"$f":"[1]ACS_16_5YR_B05002_with_ann!L65","v":884},{"$f":"[1]ACS_16_5YR_B05002_with_ann!M65","v":213},{"$f":"[1]ACS_16_5YR_B05002_with_ann!N65","v":88},{"$f":"[1]ACS_16_5YR_B05002_with_ann!O65","v":41},{"$f":"[1]ACS_16_5YR_B05002_with_ann!P65","v":60},{"$f":"[1]ACS_16_5YR_B05002_with_ann!Q65","v":27},{"$f":"[1]ACS_16_5YR_B05002_with_ann!R65","v":24},{"$f":"[1]ACS_16_5YR_B05002_with_ann!S65","v":19},{"$f":"[1]ACS_16_5YR_B05002_with_ann!T65","v":8},{"$f":"[1]ACS_16_5YR_B05002_with_ann!U65","v":8},{"$f":"[1]ACS_16_5YR_B05002_with_ann!V65","v":0},{"$f":"[1]ACS_16_5YR_B05002_with_ann!W65","v":12},{"$f":"[1]ACS_16_5YR_B05002_with_ann!X65","v":0},{"$f":"[1]ACS_16_5YR_B05002_with_ann!Y65","v":12},{"$f":"[1]ACS_16_5YR_B05002_with_ann!Z65","v":8},{"$f":"[1]ACS_16_5YR_B05002_with_ann!AA65","v":8},{"$f":"[1]ACS_16_5YR_B05002_with_ann!AB65","v":59},{"$f":"[1]ACS_16_5YR_B05002_with_ann!AC65","v":57},{"$f":"[1]ACS_16_5YR_B05002_with_ann!AD65","v":18},{"$f":"[1]ACS_16_5YR_B05002_with_ann!AE65","v":13},{"$f":"[1]ACS_16_5YR_B05002_with_ann!AF65","v":8},{"$f":"[1]ACS_16_5YR_B05002_with_ann!AG65","v":7},{"$f":"[1]ACS_16_5YR_B05002_with_ann!AH65","v":5},{"$f":"[1]ACS_16_5YR_B05002_with_ann!AI65","v":9},{"$f":"[1]ACS_16_5YR_B05002_with_ann!AJ65","v":0},{"$f":"[1]ACS_16_5YR_B05002_with_ann!AK65","v":12},{"$f":"[1]ACS_16_5YR_B05002_with_ann!AL65","v":0},{"$f":"[1]ACS_16_5YR_B05002_with_ann!AM65","v":12},{"$f":"[1]ACS_16_5YR_B05002_with_ann!AN65","v":0},{"$f":"[1]ACS_16_5YR_B05002_with_ann!AO65","v":12},{"$f":"[1]ACS_16_5YR_B05002_with_ann!AP65","v":5},{"$f":"[1]ACS_16_5YR_B05002_with_ann!AQ65","v":6},{"$f":"[1]ACS_16_5YR_B05002_with_ann!AR65","v":41},{"$f":"[1]ACS_16_5YR_B05002_with_ann!AS65","v":55},{"$f":"[1]ACS_16_5YR_B05002_with_ann!AT65","v":39},{"$f":"[1]ACS_16_5YR_B05002_with_ann!AU65","v":55},{"$f":"[1]ACS_16_5YR_B05002_with_ann!AV65","v":2},{"$f":"[1]ACS_16_5YR_B05002_with_ann!AW65","v":4},{"$f":"[1]ACS_16_5YR_B05002_with_ann!AX65","v":0},{"$f":"[1]ACS_16_5YR_B05002_with_ann!AY65","v":12},{"$f":"[1]ACS_16_5YR_B05002_with_ann!AZ65","v":0},{"$f":"[1]ACS_16_5YR_B05002_with_ann!BA65","v":12},{"$f":"[1]ACS_16_5YR_B05002_with_ann!BB65","v":0},{"$f":"[1]ACS_16_5YR_B05002_with_ann!BC65","v":12},{"$f":"[1]ACS_16_5YR_B05002_with_ann!BD65","v":0},{"$f":"[1]ACS_16_5YR_B05002_with_ann!BE65","v":12}]
["0600000US3300585540","0600000US3300585540","060",{"$f":"[1]ACS_16_5YR_B05002_with_ann!C66","v":"Winchester"},{"$f":"[1]ACS_16_5YR_B05002_with_ann!D66","v":4175},{"$f":"[1]ACS_16_5YR_B05002_with_ann!E66","v":25},{"$f":"[1]ACS_16_5YR_B05002_with_ann!F66","v":4112},{"$f":"[1]ACS_16_5YR_B05002_with_ann!G66","v":55},{"$f":"[1]ACS_16_5YR_B05002_with_ann!H66","v":2128},{"$f":"[1]ACS_16_5YR_B05002_with_ann!I66","v":281},{"$f":"[1]ACS_16_5YR_B05002_with_ann!J66","v":1984},{"$f":"[1]ACS_16_5YR_B05002_with_ann!K66","v":278},{"$f":"[1]ACS_16_5YR_B05002_with_ann!L66","v":1818},{"$f":"[1]ACS_16_5YR_B05002_with_ann!M66","v":277},{"$f":"[1]ACS_16_5YR_B05002_with_ann!N66","v":109},{"$f":"[1]ACS_16_5YR_B05002_with_ann!O66","v":88},{"$f":"[1]ACS_16_5YR_B05002_with_ann!P66","v":47},{"$f":"[1]ACS_16_5YR_B05002_with_ann!Q66","v":61},{"$f":"[1]ACS_16_5YR_B05002_with_ann!R66","v":10},{"$f":"[1]ACS_16_5YR_B05002_with_ann!S66","v":15},{"$f":"[1]ACS_16_5YR_B05002_with_ann!T66","v":0},{"$f":"[1]ACS_16_5YR_B05002_with_ann!U66","v":12},{"$f":"[1]ACS_16_5YR_B05002_with_ann!V66","v":0},{"$f":"[1]ACS_16_5YR_B05002_with_ann!W66","v":12},{"$f":"[1]ACS_16_5YR_B05002_with_ann!X66","v":0},{"$f":"[1]ACS_16_5YR_B05002_with_ann!Y66","v":12},{"$f":"[1]ACS_16_5YR_B05002_with_ann!Z66","v":0},{"$f":"[1]ACS_16_5YR_B05002_with_ann!AA66","v":12},{"$f":"[1]ACS_16_5YR_B05002_with_ann!AB66","v":63},{"$f":"[1]ACS_16_5YR_B05002_with_ann!AC66","v":47},{"$f":"[1]ACS_16_5YR_B05002_with_ann!AD66","v":63},{"$f":"[1]ACS_16_5YR_B05002_with_ann!AE66","v":47},{"$f":"[1]ACS_16_5YR_B05002_with_ann!AF66","v":39},{"$f":"[1]ACS_16_5YR_B05002_with_ann!AG66","v":34},{"$f":"[1]ACS_16_5YR_B05002_with_ann!AH66","v":15},{"$f":"[1]ACS_16_5YR_B05002_with_ann!AI66","v":22},{"$f":"[1]ACS_16_5YR_B05002_with_ann!AJ66","v":0},{"$f":"[1]ACS_16_5YR_B05002_with_ann!AK66","v":12},{"$f":"[1]ACS_16_5YR_B05002_with_ann!AL66","v":0},{"$f":"[1]ACS_16_5YR_B05002_with_ann!AM66","v":12},{"$f":"[1]ACS_16_5YR_B05002_with_ann!AN66","v":0},{"$f":"[1]ACS_16_5YR_B05002_with_ann!AO66","v":12},{"$f":"[1]ACS_16_5YR_B05002_with_ann!AP66","v":9},{"$f":"[1]ACS_16_5YR_B05002_with_ann!AQ66","v":14},{"$f":"[1]ACS_16_5YR_B05002_with_ann!AR66","v":0},{"$f":"[1]ACS_16_5YR_B05002_with_ann!AS66","v":12},{"$f":"[1]ACS_16_5YR_B05002_with_ann!AT66","v":0},{"$f":"[1]ACS_16_5YR_B05002_with_ann!AU66","v":12},{"$f":"[1]ACS_16_5YR_B05002_with_ann!AV66","v":0},{"$f":"[1]ACS_16_5YR_B05002_with_ann!AW66","v":12},{"$f":"[1]ACS_16_5YR_B05002_with_ann!AX66","v":0},{"$f":"[1]ACS_16_5YR_B05002_with_ann!AY66","v":12},{"$f":"[1]ACS_16_5YR_B05002_with_ann!AZ66","v":0},{"$f":"[1]ACS_16_5YR_B05002_with_ann!BA66","v":12},{"$f":"[1]ACS_16_5YR_B05002_with_ann!BB66","v":0},{"$f":"[1]ACS_16_5YR_B05002_with_ann!BC66","v":12},{"$f":"[1]ACS_16_5YR_B05002_with_ann!BD66","v":0},{"$f":"[1]ACS_16_5YR_B05002_with_ann!BE66","v":12}]
[]
[]
[null,null,null,null,{"$f":"$D$3","v":"Alstead"},null,{"$f":"$D$4","v":"Chesterfield"},null,{"$f":"$D$5","v":"Dublin"},null,{"$f":"$D$6","v":"Fitzwilliam"},null,{"$f":"$D$7","v":"Gilsum"},null,{"$f":"$D$8","v":"Harrisville"},null,{"$f":"$D$9","v":"Hinsdale"},null,{"$f":"$D$10","v":"Jaffrey"},null,{"$f":"$D$11","v":"Keene"},null,{"$f":"$D$12","v":"Marlborough"},null,{"$f":"$D$13","v":"Marlow"},null,{"$f":"$D$14","v":"Nelson"},null,{"$f":"$D$15","v":"Richmond"},null,{"$f":"$D$16","v":"Rindge"},null,{"$f":"$D$17","v":"Roxbury"},null,{"$f":"$D$18","v":"Stoddard"},null,{"$f":"$D$19","v":"Sullivan"},null,{"$f":"$D$20","v":"Surry"},null,{"$f":"$D$21","v":"Swanzey"},null,{"$f":"$D$22","v":"Troy"},null,{"$f":"$D$23","v":"Walpole"},null,{"$f":"$D$24","v":"Westmoreland"},null,{"$f":"$D$25","v":"Winchester"}]
[null,null,null,null,"Estimate","Margin of Error","Estimate","Margin of Error","Estimate","Margin of Error","Estimate","Margin of Error","Estimate","Margin of Error","Estimate","Margin of Error","Estimate","Margin of Error","Estimate","Margin of Error","Estimate","Margin of Error","Estimate","Margin of Error","Estimate","Margin of Error"]
[]
[null,null,null,"Estimate!!Total:",1599,169,3577,15,1711,216,2287,368,871,144,977,197,3965,16,5363,32,22907,27,2253,391,803,175,550,106,1107,251,6446,21,295,142,1205,162,681,130,950,245,7306,22,1889,275,3651,33,2042,341,4175,25]
[null,null,null,"Estimate!!Total:!!Native:",1564,172,3422,106,1653,212,2262,365,862,142,932,195,3948,33,5287,66,21955,241,2246,391,794,175,533,105,1086,253,6312,90,293,143,1182,159,649,124,947,244,7157,102,1864,276,3501,114,1983,340,4112,55]
[null,null,null,"Estimate!!Total:!!Native:!!Born in state of residence",717,132,1033,344,757,173,578,142,436,116,465,135,802,235,2874,491,10357,588,1483,338,340,116,231,64,460,165,1934,323,144,73,704,120,314,95,492,117,3894,401,997,240,1105,191,919,212,2128,281]
[null,null,null,"Estimate!!Total:!!Native:!!Born in other state in the United States:",832,116,2378,357,882,157,1684,319,426,74,447,95,2985,309,2355,474,11398,590,750,139,450,130,296,64,609,166,4309,316,149,78,478,79,298,51,448,182,3238,393,840,166,2369,212,1056,222,1984,278]
[null,null,null,"Estimate!!Total:!!Native:!!Born in other state in the United States:!!Northeast",729,117,1852,308,613,158,1438,306,315,59,301,74,2542,310,1737,459,8652,579,559,123,296,76,223,53,489,157,3612,339,147,78,379,76,234,44,367,180,2739,341,681,153,1862,218,884,213,1818,277]
[null,null,null,"Estimate!!Total:!!Native:!!Born in other state in the United States:!!Midwest",39,38,237,146,40,21,59,35,33,22,54,29,106,90,114,89,722,200,81,58,26,23,20,14,33,23,264,143,1,2,40,15,6,6,39,19,287,125,95,64,122,60,88,41,109,88]
[null,null,null,"Estimate!!Total:!!Native:!!Born in other state in the United States:!!South",46,22,203,108,164,69,80,47,33,26,49,28,210,87,214,127,1241,310,83,48,79,45,27,16,52,33,280,139,0,12,24,11,37,20,35,16,183,102,44,37,288,134,60,27,47,61]
[null,null,null,"Estimate!!Total:!!Native:!!Born in other state in the United States:!!West",18,14,86,74,65,28,107,49,45,23,43,28,127,118,290,181,783,221,27,26,49,40,26,14,35,27,153,70,1,2,35,28,21,15,7,7,29,37,20,16,97,63,24,19,10,15]
[null,null,null,"Estimate!!Total:!!Native:!!Born outside the United States:",15,23,11,19,14,20,0,12,0,12,20,22,161,167,58,76,200,125,13,17,4,5,6,6,17,17,69,59,0,12,0,12,37,27,7,7,25,48,27,30,27,30,8,8,0,12]
[null,null,null,"Estimate!!Total:!!Native:!!Born outside the United States:!!Puerto Rico",15,23,0,12,0,12,0,12,0,12,13,21,0,12,0,17,21,31,0,12,3,4,0,12,10,14,41,55,0,12,0,12,0,12,0,12,0,17,8,13,0,12,0,12,0,12]
[null,null,null,"Estimate!!Total:!!Native:!!Born outside the United States:!!U.S. Island Areas",0,12,0,12,10,20,0,12,0,12,0,12,0,12,0,17,2,4,0,12,1,2,0,12,3,4,5,11,0,12,0,12,0,12,0,12,0,17,0,12,0,12,0,12,0,12]
[null,null,null,"Estimate!!Total:!!Native:!!Born outside the United States:!!Born abroad of American parent(s)",0,12,11,19,4,5,0,12,0,12,7,7,161,167,58,76,177,120,13,17,0,12,6,6,4,10,23,30,0,12,0,12,37,27,7,7,25,48,19,26,27,30,8,8,0,12]
[null,null,null,"Estimate!!Total:!!Foreign born:",35,23,155,106,58,34,25,41,9,7,45,20,17,28,76,57,952,245,7,10,9,7,17,16,21,15,134,88,2,5,23,17,32,31,3,4,149,101,25,26,150,107,59,57,63,47]
[null,null,null,"Estimate!!Total:!!Foreign born:!!Naturalized U.S. citizen",20,17,61,45,54,33,20,40,8,7,32,18,17,28,54,48,528,180,1,2,9,7,14,16,18,14,58,62,2,5,10,10,9,9,3,4,117,94,17,29,142,106,18,13,63,47]
[null,null,null,"Estimate!!Total:!!Foreign born:!!Naturalized U.S. citizen!!Europe",7,9,37,36,15,11,4,6,8,7,3,4,17,28,13,21,192,111,0,12,5,5,5,9,14,13,8,18,1,3,2,4,0,12,3,4,23,25,17,29,27,34,8,7,39,34]
[null,null,null,"Estimate!!Total:!!Foreign born:!!Naturalized U.S. citizen!!Asia",13,15,0,12,25,22,13,39,0,12,3,11,0,12,40,47,223,149,1,2,0,12,0,12,0,12,25,39,0,12,8,8,7,9,0,12,76,86,0,12,0,12,5,9,15,22]
[null,null,null,"Estimate!!Total:!!Foreign born:!!Naturalized U.S. citizen!!Africa",0,12,9,20,0,12,0,12,0,12,11,13,0,12,0,17,30,51,0,12,0,12,9,13,0,12,0,17,0,12,0,12,0,12,0,12,0,17,0,12,70,88,0,12,0,12]
[null,null,null,"Estimate!!Total:!!Foreign born:!!Naturalized U.S. citizen!!Oceania",0,12,0,12,1,4,0,12,0,12,5,7,0,12,0,17,0,22,0,12,0,12,0,12,0,12,0,17,0,12,0,12,0,12,0,12,0,17,0,12,0,12,0,12,0,12]
[null,null,null,"Estimate!!Total:!!Foreign born:!!Naturalized U.S. citizen!!Latin America",0,12,0,12,13,18,3,5,0,12,0,12,0,12,1,2,13,23,0,12,0,12,0,12,4,5,25,39,0,12,0,12,0,12,0,12,0,17,0,12,45,50,0,12,0,12]
[null,null,null,"Estimate!!Total:!!Foreign born:!!Naturalized U.S. citizen!!Northern America",0,12,15,24,0,12,0,12,0,12,10,11,0,12,0,17,70,55,0,12,4,4,0,12,0,12,0,17,1,3,0,12,2,4,0,12,18,26,0,12,0,12,5,6,9,14]
[null,null,null,"Estimate!!Total:!!Foreign born:!!Not a U.S. citizen",15,17,94,90,4,6,5,9,1,2,13,8,0,12,22,34,424,167,6,10,0,12,3,4,3,6,76,65,0,12,13,14,23,28,0,12,32,34,8,12,8,11,41,55,0,12]
[null,null,null,"Estimate!!Total:!!Foreign born:!!Not a U.S. citizen!!Europe",0,12,67,77,4,6,5,9,0,12,13,8,0,12,22,34,105,69,6,10,0,12,3,4,3,6,10,18,0,12,2,3,0,12,0,12,17,26,0,12,8,11,39,55,0,12]
[null,null,null,"Estimate!!Total:!!Foreign born:!!Not a U.S. citizen!!Asia",6,11,27,43,0,12,0,12,0,12,0,12,0,12,0,17,59,72,0,12,0,12,0,12,0,12,9,20,0,12,0,12,23,28,0,12,0,17,0,12,0,12,2,4,0,12]
[null,null,null,"Estimate!!Total:!!Foreign born:!!Not a U.S. citizen!!Africa",0,12,0,12,0,12,0,12,0,12,0,12,0,12,0,17,132,84,0,12,0,12,0,12,0,12,4,7,0,12,0,12,0,12,0,12,15,22,0,12,0,12,0,12,0,12]
[null,null,null,"Estimate!!Total:!!Foreign born:!!Not a U.S. citizen!!Oceania",0,12,0,12,0,12,0,12,0,12,0,12,0,12,0,17,0,22,0,12,0,12,0,12,0,12,0,17,0,12,0,12,0,12,0,12,0,17,8,12,0,12,0,12,0,12]
[null,null,null,"Estimate!!Total:!!Foreign born:!!Not a U.S. citizen!!Latin America",0,12,0,12,0,12,0,12,0,12,0,12,0,12,0,17,72,79,0,12,0,12,0,12,0,12,13,22,0,12,0,12,0,12,0,12,0,17,0,12,0,12,0,12,0,12]
[null,null,null,"Estimate!!Total:!!Foreign born:!!Not a U.S. citizen!!Northern America",9,13,0,12,0,12,0,12,1,2,0,12,0,12,0,17,56,70,0,12,0,12,0,12,0,12,40,53,0,12,11,13,0,12,0,12,0,17,0,12,0,12,0,12,0,12]

{"sheet":"SData_B07003_ResidenceMobility","index":23,"n_rows":48,"n_cols":50,"rows_kept":48,"cut":false,"hidden":true,"merged":[[0,19,0,19],[0,20,0,20],[0,21,0,21],[0,38,0,38],[0,39,0,39],[0,34,0,34],[0,35,0,35],[0,36,0,36],[0,37,0,37],[0,32,0,32],[0,33,0,33],[0,30,0,30],[0,31,0,31],[0,22,0,22],[0,23,0,23],[0,24,0,24],[0,25,0,25],[0,26,0,26],[0,27,0,27],[0,28,0,28],[0,29,0,29],[0,16,0,16],[0,17,0,17],[0,18,0,18],[0,15,0,15],[0,4,0,4],[0,5,0,5],[0,6,0,6],[0,7,0,7],[0,8,0,8],[0,9,0,9],[0,10,0,10],[0,11,0,11],[0,12,0,12],[0,13,0,13],[0,14,0,14]]}
["GEO_ID","GEO_ID2","SUMLEVEL","GEO_NAME",{"$f":"[1]ACS_16_5YR_B07003_with_ann!D1","v":"B07003_001E"},{"$f":"[1]ACS_16_5YR_B07003_with_ann!E1","v":"B07003_001M"},{"$f":"[1]ACS_16_5YR_B07003_with_ann!F1","v":"B07003_002E"},{"$f":"[1]ACS_16_5YR_B07003_with_ann!G1","v":"B07003_002M"},{"$f":"[1]ACS_16_5YR_B07003_with_ann!H1","v":"B07003_003E"},{"$f":"[1]ACS_16_5YR_B07003_with_ann!I1","v":"B07003_003M"},{"$f":"[1]ACS_16_5YR_B07003_with_ann!J1","v":"B07003_004E"},{"$f":"[1]ACS_16_5YR_B07003_with_ann!K1","v":"B07003_004M"},{"$f":"[1]ACS_16_5YR_B07003_with_ann!L1","v":"B07003_005E"},{"$f":"[1]ACS_16_5YR_B07003_with_ann!M1","v":"B07003_005M"},{"$f":"[1]ACS_16_5YR_B07003_with_ann!N1","v":"B07003_006E"},{"$f":"[1]ACS_16_5YR_B07003_with_ann!O1","v":"B07003_006M"},{"$f":"[1]ACS_16_5YR_B07003_with_ann!P1","v":"B07003_007E"},{"$f":"[1]ACS_16_5YR_B07003_with_ann!Q1","v":"B07003_007M"},{"$f":"[1]ACS_16_5YR_B07003_with_ann!R1","v":"B07003_008E"},{"$f":"[1]ACS_16_5YR_B07003_with_ann!S1","v":"B07003_008M"},{"$f":"[1]ACS_16_5YR_B07003_with_ann!T1","v":"B07003_009E"},{"$f":"[1]ACS_16_5YR_B07003_with_ann!U1","v":"B07003_009M"},{"$f":"[1]ACS_16_5YR_B07003_with_ann!V1","v":"B07003_010E"},{"$f":"[1]ACS_16_5YR_B07003_with_ann!W1","v":"B07003_010M"},{"$f":"[1]ACS_16_5YR_B07003_with_ann!X1","v":"B07003_011E"},{"$f":"[1]ACS_16_5YR_B07003_with_ann!Y1","v":"B07003_011M"},{"$f":"[1]ACS_16_5YR_B07003_with_ann!Z1","v":"B07003_012E"},{"$f":"[1]ACS_16_5YR_B07003_with_ann!AA1","v":"B07003_012M"},{"$f":"[1]ACS_16_5YR_B07003_with_ann!AB1","v":"B07003_013E"},{"$f":"[1]ACS_16_5YR_B07003_with_ann!AC1","v":"B07003_013M"},{"$f":"[1]ACS_16_5YR_B07003_with_ann!AD1","v":"B07003_014E"},{"$f":"[1]ACS_16_5YR_B07003_with_ann!AE1","v":"B07003_014M"},{"$f":"[1]ACS_16_5YR_B07003_with_ann!AF1","v":"B07003_015E"},{"$f":"[1]ACS_16_5YR_B07003_with_ann!AG1","v":"B07003_015M"},{"$f":"[1]ACS_16_5YR_B07003_with_ann!AH1","v":"B07003_016E"},{"$f":"[1]ACS_16_5YR_B07003_with_ann!AI1","v":"B07003_016M"},{"$f":"[1]ACS_16_5YR_B07003_with_ann!AJ1","v":"B07003_017E"},{"$f":"[1]ACS_16_5YR_B07003_with_ann!AK1","v":"B07003_017M"},{"$f":"[1]ACS_16_5YR_B07003_with_ann!AL1","v":"B07003_018E"},{"$f":"[1]ACS_16_5YR_B07003_with_ann!AM1","v":"B07003_018M"}]
["Geography Identifier","Geography Identifier","Geographic Summary Level","Geography",{"$f":"[1]ACS_16_5YR_B07003_with_ann!D2","v":"Estimate!!Total:"},{"$f":"[1]ACS_16_5YR_B07003_with_ann!E2","v":"Margin of Error!!Total:"},{"$f":"[1]ACS_16_5YR_B07003_with_ann!F2","v":"Estimate!!Total:!!Male"},{"$f":"[1]ACS_16_5YR_B07003_with_ann!G2","v":"Margin of Error!!Total:!!Male"},{"$f":"[1]ACS_16_5YR_B07003_with_ann!H2","v":"Estimate!!Total:!!Female"},{"$f":"[1]ACS_16_5YR_B07003_with_ann!I2","v":"Margin of Error!!Total:!!Female"},{"$f":"[1]ACS_16_5YR_B07003_with_ann!J2","v":"Estimate!!Total:!!Same house 1 year ago:"},{"$f":"[1]ACS_16_5YR_B07003_with_ann!K2","v":"Margin of Error!!Total:!!Same house 1 year ago:"},{"$f":"[1]ACS_16_5YR_B07003_with_ann!L2","v":"Estimate!!Total:!!Same house 1 year ago:!!Male"},{"$f":"[1]ACS_16_5YR_B07003_with_ann!M2","v":"Margin of Error!!Total:!!Same house 1 year ago:!!Male"},{"$f":"[1]ACS_16_5YR_B07003_with_ann!N2","v":"Estimate!!Total:!!Same house 1 year ago:!!Female"},{"$f":"[1]ACS_16_5YR_B07003_with_ann!O2","v":"Margin of Error!!Total:!!Same house 1 year ago:!!Female"},{"$f":"[1]ACS_16_5YR_B07003_with_ann!P2","v":"Estimate!!Total:!!Moved within same county:"},{"$f":"[1]ACS_16_5YR_B07003_with_ann!Q2","v":"Margin of Error!!Total:!!Moved within same county:"},{"$f":"[1]ACS_16_5YR_B07003_with_ann!R2","v":"Estimate!!Total:!!Moved within same county:!!Male"},{"$f":"[1]ACS_16_5YR_B07003_with_ann!S2","v":"Margin of Error!!Total:!!Moved within same county:!!Male"},{"$f":"[1]ACS_16_5YR_B07003_with_ann!T2","v":"Estimate!!Total:!!Moved within same county:!!Female"},{"$f":"[1]ACS_16_5YR_B07003_with_ann!U2","v":"Margin of Error!!Total:!!Moved within same county:!!Female"},{"$f":"[1]ACS_16_5YR_B07003_with_ann!V2","v":"Estimate!!Total:!!Moved from different county within same state:"},{"$f":"[1]ACS_16_5YR_B07003_with_ann!W2","v":"Margin of Error!!Total:!!Moved from different county within same state:"},{"$f":"[1]ACS_16_5YR_B07003_with_ann!X2","v":"Estimate!!Total:!!Moved from different county within same state:!!Male"},{"$f":"[1]ACS_16_5YR_B07003_with_ann!Y2","v":"Margin of Error!!Total:!!Moved from different county within same state:!!Male"},{"$f":"[1]ACS_16_5YR_B07003_with_ann!Z2","v":"Estimate!!Total:!!Moved from different county within same state:!!Female"},{"$f":"[1]ACS_16_5YR_B07003_with_ann!AA2","v":"Margin of Error!!Total:!!Moved from different county within same state:!!Female"},{"$f":"[1]ACS_16_5YR_B07003_with_ann!AB2","v":"Estimate!!Total:!!Moved from different state:"},{"$f":"[1]ACS_16_5YR_B07003_with_ann!AC2","v":"Margin of Error!!Total:!!Moved from different state:"},{"$f":"[1]ACS_16_5YR_B07003_with_ann!AD2","v":"Estimate!!Total:!!Moved from different state:!!Male"},{"$f":"[1]ACS_16_5YR_B07003_with_ann!AE2","v":"Margin of Error!!Total:!!Moved from different state:!!Male"},{"$f":"[1]ACS_16_5YR_B07003_with_ann!AF2","v":"Estimate!!Total:!!Moved from different state:!!Female"},{"$f":"[1]ACS_16_5YR_B07003_with_ann!AG2","v":"Margin of Error!!Total:!!Moved from different state:!!Female"},{"$f":"[1]ACS_16_5YR_B07003_with_ann!AH2","v":"Estimate!!Total:!!Moved from abroad:"},{"$f":"[1]ACS_16_5YR_B07003_with_ann!AI2","v":"Margin of Error!!Total:!!Moved from abroad:"},{"$f":"[1]ACS_16_5YR_B07003_with_ann!AJ2","v":"Estimate!!Total:!!Moved from abroad:!!Male"},{"$f":"[1]ACS_16_5YR_B07003_with_ann!AK2","v":"Margin of Error!!Total:!!Moved from abroad:!!Male"},{"$f":"[1]ACS_16_5YR_B07003_with_ann!AL2","v":"Estimate!!Total:!!Moved from abroad:!!Female"},{"$f":"[1]ACS_16_5YR_B07003_with_ann!AM2","v":"Margin of Error!!Total:!!Moved from abroad:!!Female"}]
["0600000US3300500820","0600000US3300500820","060",{"$f":"[1]ACS_16_5YR_B07003_with_ann!C44","v":"Alstead"},{"$f":"[1]ACS_16_5YR_B07003_with_ann!D44","v":1593},{"$f":"[1]ACS_16_5YR_B07003_with_ann!E44","v":170},{"$f":"[1]ACS_16_5YR_B07003_with_ann!F44","v":770},{"$f":"[1]ACS_16_5YR_B07003_with_ann!G44","v":116},{"$f":"[1]ACS_16_5YR_B07003_with_ann!H44","v":823},{"$f":"[1]ACS_16_5YR_B07003_with_ann!I44","v":95},{"$f":"[1]ACS_16_5YR_B07003_with_ann!J44","v":1493},{"$f":"[1]ACS_16_5YR_B07003_with_ann!K44","v":171},{"$f":"[1]ACS_16_5YR_B07003_with_ann!L44","v":710},{"$f":"[1]ACS_16_5YR_B07003_with_ann!M44","v":112},{"$f":"[1]ACS_16_5YR_B07003_with_ann!N44","v":783},{"$f":"[1]ACS_16_5YR_B07003_with_ann!O44","v":98},{"$f":"[1]ACS_16_5YR_B07003_with_ann!P44","v":9},{"$f":"[1]ACS_16_5YR_B07003_with_ann!Q44","v":13},{"$f":"[1]ACS_16_5YR_B07003_with_ann!R44","v":4},{"$f":"[1]ACS_16_5YR_B07003_with_ann!S44","v":7},{"$f":"[1]ACS_16_5YR_B07003_with_ann!T44","v":5},{"$f":"[1]ACS_16_5YR_B07003_with_ann!U44","v":7},{"$f":"[1]ACS_16_5YR_B07003_with_ann!V44","v":19},{"$f":"[1]ACS_16_5YR_B07003_with_ann!W44","v":22},{"$f":"[1]ACS_16_5YR_B07003_with_ann!X44","v":4},{"$f":"[1]ACS_16_5YR_B07003_with_ann!Y44","v":6},{"$f":"[1]ACS_16_5YR_B07003_with_ann!Z44","v":15},{"$f":"[1]ACS_16_5YR_B07003_with_ann!AA44","v":17},{"$f":"[1]ACS_16_5YR_B07003_with_ann!AB44","v":72},{"$f":"[1]ACS_16_5YR_B07003_with_ann!AC44","v":43},{"$f":"[1]ACS_16_5YR_B07003_with_ann!AD44","v":52},{"$f":"[1]ACS_16_5YR_B07003_with_ann!AE44","v":32},{"$f":"[1]ACS_16_5YR_B07003_with_ann!AF44","v":20},{"$f":"[1]ACS_16_5YR_B07003_with_ann!AG44","v":17},{"$f":"[1]ACS_16_5YR_B07003_with_ann!AH44","v":0},{"$f":"[1]ACS_16_5YR_B07003_with_ann!AI44","v":12},{"$f":"[1]ACS_16_5YR_B07003_with_ann!AJ44","v":0},{"$f":"[1]ACS_16_5YR_B07003_with_ann!AK44","v":12},{"$f":"[1]ACS_16_5YR_B07003_with_ann!AL44","v":0},{"$f":"[1]ACS_16_5YR_B07003_with_ann!AM44","v":12}]
["0600000US3300512260","0600000US3300512260","060",{"$f":"[1]ACS_16_5YR_B07003_with_ann!C45","v":"Chesterfield"},{"$f":"[1]ACS_16_5YR_B07003_with_ann!D45","v":3560},{"$f":"[1]ACS_16_5YR_B07003_with_ann!E45","v":22},{"$f":"[1]ACS_16_5YR_B07003_with_ann!F45","v":1983},{"$f":"[1]ACS_16_5YR_B07003_with_ann!G45","v":138},{"$f":"[1]ACS_16_5YR_B07003_with_ann!H45","v":1577},{"$f":"[1]ACS_16_5YR_B07003_with_ann!I45","v":140},{"$f":"[1]ACS_16_5YR_B07003_with_ann!J45","v":3058},{"$f":"[1]ACS_16_5YR_B07003_with_ann!K45","v":290},{"$f":"[1]ACS_16_5YR_B07003_with_ann!L45","v":1751},{"$f":"[1]ACS_16_5YR_B07003_with_ann!M45","v":225},{"$f":"[1]ACS_16_5YR_B07003_with_ann!N45","v":1307},{"$f":"[1]ACS_16_5YR_B07003_with_ann!O45","v":175},{"$f":"[1]ACS_16_5YR_B07003_with_ann!P45","v":274},{"$f":"[1]ACS_16_5YR_B07003_with_ann!Q45","v":188},{"$f":"[1]ACS_16_5YR_B07003_with_ann!R45","v":153},{"$f":"[1]ACS_16_5YR_B07003_with_ann!S45","v":112},{"$f":"[1]ACS_16_5YR_B07003_with_ann!T45","v":121},{"$f":"[1]ACS_16_5YR_B07003_with_ann!U45","v":88},{"$f":"[1]ACS_16_5YR_B07003_with_ann!V45","v":86},{"$f":"[1]ACS_16_5YR_B07003_with_ann!W45","v":129},{"$f":"[1]ACS_16_5YR_B07003_with_ann!X45","v":17},{"$f":"[1]ACS_16_5YR_B07003_with_ann!Y45","v":26},{"$f":"[1]ACS_16_5YR_B07003_with_ann!Z45","v":69},{"$f":"[1]ACS_16_5YR_B07003_with_ann!AA45","v":104},{"$f":"[1]ACS_16_5YR_B07003_with_ann!AB45","v":142},{"$f":"[1]ACS_16_5YR_B07003_with_ann!AC45","v":94},{"$f":"[1]ACS_16_5YR_B07003_with_ann!AD45","v":62},{"$f":"[1]ACS_16_5YR_B07003_with_ann!AE45","v":56},{"$f":"[1]ACS_16_5YR_B07003_with_ann!AF45","v":80},{"$f":"[1]ACS_16_5YR_B07003_with_ann!AG45","v":68},{"$f":"[1]ACS_16_5YR_B07003_with_ann!AH45","v":0},{"$f":"[1]ACS_16_5YR_B07003_with_ann!AI45","v":12},{"$f":"[1]ACS_16_5YR_B07003_with_ann!AJ45","v":0},{"$f":"[1]ACS_16_5YR_B07003_with_ann!AK45","v":12},{"$f":"[1]ACS_16_5YR_B07003_with_ann!AL45","v":0},{"$f":"[1]ACS_16_5YR_B07003_with_ann!AM45","v":12}]
["0600000US3300519140","0600000US3300519140","060",{"$f":"[1]ACS_16_5YR_B07003_with_ann!C46","v":"Dublin"},{"$f":"[1]ACS_16_5YR_B07003_with_ann!D46","v":1695},{"$f":"[1]ACS_16_5YR_B07003_with_ann!E46","v":217},{"$f":"[1]ACS_16_5YR_B07003_with_ann!F46","v":789},{"$f":"[1]ACS_16_5YR_B07003_with_ann!G46","v":118},{"$f":"[1]ACS_16_5YR_B07003_with_ann!H46","v":906},{"$f":"[1]ACS_16_5YR_B07003_with_ann!I46","v":135},{"$f":"[1]ACS_16_5YR_B07003_with_ann!J46","v":1574},{"$f":"[1]ACS_16_5YR_B07003_with_ann!K46","v":235},{"$f":"[1]ACS_16_5YR_B07003_with_ann!L46","v":707},{"$f":"[1]ACS_16_5YR_B07003_with_ann!M46","v":126},{"$f":"[1]ACS_16_5YR_B07003_with_ann!N46","v":867},{"$f":"[1]ACS_16_5YR_B07003_with_ann!O46","v":135},{"$f":"[1]ACS_16_5YR_B07003_with_ann!P46","v":64},{"$f":"[1]ACS_16_5YR_B07003_with_ann!Q46","v":46},{"$f":"[1]ACS_16_5YR_B07003_with_ann!R46","v":47},{"$f":"[1]ACS_16_5YR_B07003_with_ann!S46","v":37},{"$f":"[1]ACS_16_5YR_B07003_with_ann!T46","v":17},{"$f":"[1]ACS_16_5YR_B07003_with_ann!U46","v":14},{"$f":"[1]ACS_16_5YR_B07003_with_ann!V46","v":17},{"$f":"[1]ACS_16_5YR_B07003_with_ann!W46","v":25},{"$f":"[1]ACS_16_5YR_B07003_with_ann!X46","v":17},{"$f":"[1]ACS_16_5YR_B07003_with_ann!Y46","v":25},{"$f":"[1]ACS_16_5YR_B07003_with_ann!Z46","v":0},{"$f":"[1]ACS_16_5YR_B07003_with_ann!AA46","v":12},{"$f":"[1]ACS_16_5YR_B07003_with_ann!AB46","v":35},{"$f":"[1]ACS_16_5YR_B07003_with_ann!AC46","v":30},{"$f":"[1]ACS_16_5YR_B07003_with_ann!AD46","v":13},{"$f":"[1]ACS_16_5YR_B07003_with_ann!AE46","v":14},{"$f":"[1]ACS_16_5YR_B07003_with_ann!AF46","v":22},{"$f":"[1]ACS_16_5YR_B07003_with_ann!AG46","v":26},{"$f":"[1]ACS_16_5YR_B07003_with_ann!AH46","v":5},{"$f":"[1]ACS_16_5YR_B07003_with_ann!AI46","v":7},{"$f":"[1]ACS_16_5YR_B07003_with_ann!AJ46","v":5},{"$f":"[1]ACS_16_5YR_B07003_with_ann!AK46","v":7},{"$f":"[1]ACS_16_5YR_B07003_with_ann!AL46","v":0},{"$f":"[1]ACS_16_5YR_B07003_with_ann!AM46","v":12}]
["0600000US3300526500","0600000US3300526500","060",{"$f":"[1]ACS_16_5YR_B07003_with_ann!C47","v":"Fitzwilliam"},{"$f":"[1]ACS_16_5YR_B07003_with_ann!D47","v":2259},{"$f":"[1]ACS_16_5YR_B07003_with_ann!E47","v":367},{"$f":"[1]ACS_16_5YR_B07003_with_ann!F47","v":1197},{"$f":"[1]ACS_16_5YR_B07003_with_ann!G47","v":217},{"$f":"[1]ACS_16_5YR_B07003_with_ann!H47","v":1062},{"$f":"[1]ACS_16_5YR_B07003_with_ann!I47","v":182},{"$f":"[1]ACS_16_5YR_B07003_with_ann!J47","v":2074},{"$f":"[1]ACS_16_5YR_B07003_with_ann!K47","v":358},{"$f":"[1]ACS_16_5YR_B07003_with_ann!L47","v":1112},{"$f":"[1]ACS_16_5YR_B07003_with_ann!M47","v":216},{"$f":"[1]ACS_16_5YR_B07003_with_ann!N47","v":962},{"$f":"[1]ACS_16_5YR_B07003_with_ann!O47","v":171},{"$f":"[1]ACS_16_5YR_B07003_with_ann!P47","v":7},{"$f":"[1]ACS_16_5YR_B07003_with_ann!Q47","v":10},{"$f":"[1]ACS_16_5YR_B07003_with_ann!R47","v":7},{"$f":"[1]ACS_16_5YR_B07003_with_ann!S47","v":10},{"$f":"[1]ACS_16_5YR_B07003_with_ann!T47","v":0},{"$f":"[1]ACS_16_5YR_B07003_with_ann!U47","v":12},{"$f":"[1]ACS_16_5YR_B07003_with_ann!V47","v":0},{"$f":"[1]ACS_16_5YR_B07003_with_ann!W47","v":12},{"$f":"[1]ACS_16_5YR_B07003_with_ann!X47","v":0},{"$f":"[1]ACS_16_5YR_B07003_with_ann!Y47","v":12},{"$f":"[1]ACS_16_5YR_B07003_with_ann!Z47","v":0},{"$f":"[1]ACS_16_5YR_B07003_with_ann!AA47","v":12},{"$f":"[1]ACS_16_5YR_B07003_with_ann!AB47","v":178},{"$f":"[1]ACS_16_5YR_B07003_with_ann!AC47","v":152},{"$f":"[1]ACS_16_5YR_B07003_with_ann!AD47","v":78},{"$f":"[1]ACS_16_5YR_B07003_with_ann!AE47","v":72},{"$f":"[1]ACS_16_5YR_B07003_with_ann!AF47","v":100},{"$f":"[1]ACS_16_5YR_B07003_with_ann!AG47","v":84},{"$f":"[1]ACS_16_5YR_B07003_with_ann!AH47","v":0},{"$f":"[1]ACS_16_5YR_B07003_with_ann!AI47","v":12},{"$f":"[1]ACS_16_5YR_B07003_with_ann!AJ47","v":0},{"$f":"[1]ACS_16_5YR_B07003_with_ann!AK47","v":12},{"$f":"[1]ACS_16_5YR_B07003_with_ann!AL47","v":0},{"$f":"[1]ACS_16_5YR_B07003_with_ann!AM47","v":12}]
["0600000US3300529220","0600000US3300529220","060",{"$f":"[1]ACS_16_5YR_B07003_with_ann!C48","v":"Gilsum"},{"$f":"[1]ACS_16_5YR_B07003_with_ann!D48","v":860},{"$f":"[1]ACS_16_5YR_B07003_with_ann!E48","v":143},{"$f":"[1]ACS_16_5YR_B07003_with_ann!F48","v":446},{"$f":"[1]ACS_16_5YR_B07003_with_ann!G48","v":87},{"$f":"[1]ACS_16_5YR_B07003_with_ann!H48","v":414},{"$f":"[1]ACS_16_5YR_B07003_with_ann!I48","v":74},{"$f":"[1]ACS_16_5YR_B07003_with_ann!J48","v":801},{"$f":"[1]ACS_16_5YR_B07003_with_ann!K48","v":127},{"$f":"[1]ACS_16_5YR_B07003_with_ann!L48","v":422},{"$f":"[1]ACS_16_5YR_B07003_with_ann!M48","v":78},{"$f":"[1]ACS_16_5YR_B07003_with_ann!N48","v":379},{"$f":"[1]ACS_16_5YR_B07003_with_ann!O48","v":70},{"$f":"[1]ACS_16_5YR_B07003_with_ann!P48","v":25},{"$f":"[1]ACS_16_5YR_B07003_with_ann!Q48","v":29},{"$f":"[1]ACS_16_5YR_B07003_with_ann!R48","v":11},{"$f":"[1]ACS_16_5YR_B07003_with_ann!S48","v":12},{"$f":"[1]ACS_16_5YR_B07003_with_ann!T48","v":14},{"$f":"[1]ACS_16_5YR_B07003_with_ann!U48","v":18},{"$f":"[1]ACS_16_5YR_B07003_with_ann!V48","v":14},{"$f":"[1]ACS_16_5YR_B07003_with_ann!W48","v":13},{"$f":"[1]ACS_16_5YR_B07003_with_ann!X48","v":8},{"$f":"[1]ACS_16_5YR_B07003_with_ann!Y48","v":8},{"$f":"[1]ACS_16_5YR_B07003_with_ann!Z48","v":6},{"$f":"[1]ACS_16_5YR_B07003_with_ann!AA48","v":10},{"$f":"[1]ACS_16_5YR_B07003_with_ann!AB48","v":20},{"$f":"[1]ACS_16_5YR_B07003_with_ann!AC48","v":19},{"$f":"[1]ACS_16_5YR_B07003_with_ann!AD48","v":5},{"$f":"[1]ACS_16_5YR_B07003_with_ann!AE48","v":4},{"$f":"[1]ACS_16_5YR_B07003_with_ann!AF48","v":15},{"$f":"[1]ACS_16_5YR_B07003_with_ann!AG48","v":16},{"$f":"[1]ACS_16_5YR_B07003_with_ann!AH48","v":0},{"$f":"[1]ACS_16_5YR_B07003_with_ann!AI48","v":12},{"$f":"[1]ACS_16_5YR_B07003_with_ann!AJ48","v":0},{"$f":"[1]ACS_16_5YR_B07003_with_ann!AK48","v":12},{"$f":"[1]ACS_16_5YR_B07003_with_ann!AL48","v":0},{"$f":"[1]ACS_16_5YR_B07003_with_ann!AM48","v":12}]
["0600000US3300534420","0600000US3300534420","060",{"$f":"[1]ACS_16_5YR_B07003_with_ann!C49","v":"Harrisville"},{"$f":"[1]ACS_16_5YR_B07003_with_ann!D49","v":973},{"$f":"[1]ACS_16_5YR_B07003_with_ann!E49","v":197},{"$f":"[1]ACS_16_5YR_B07003_with_ann!F49","v":461},{"$f":"[1]ACS_16_5YR_B07003_with_ann!G49","v":95},{"$f":"[1]ACS_16_5YR_B07003_with_ann!H49","v":512},{"$f":"[1]ACS_16_5YR_B07003_with_ann!I49","v":109},{"$f":"[1]ACS_16_5YR_B07003_with_ann!J49","v":884},{"$f":"[1]ACS_16_5YR_B07003_with_ann!K49","v":195},{"$f":"[1]ACS_16_5YR_B07003_with_ann!L49","v":414},{"$f":"[1]ACS_16_5YR_B07003_with_ann!M49","v":95},{"$f":"[1]ACS_16_5YR_B07003_with_ann!N49","v":470},{"$f":"[1]ACS_16_5YR_B07003_with_ann!O49","v":106},{"$f":"[1]ACS_16_5YR_B07003_with_ann!P49","v":39},{"$f":"[1]ACS_16_5YR_B07003_with_ann!Q49","v":25},{"$f":"[1]ACS_16_5YR_B07003_with_ann!R49","v":19},{"$f":"[1]ACS_16_5YR_B07003_with_ann!S49","v":15},{"$f":"[1]ACS_16_5YR_B07003_with_ann!T49","v":20},{"$f":"[1]ACS_16_5YR_B07003_with_ann!U49","v":15},{"$f":"[1]ACS_16_5YR_B07003_with_ann!V49","v":9},{"$f":"[1]ACS_16_5YR_B07003_with_ann!W49","v":11},{"$f":"[1]ACS_16_5YR_B07003_with_ann!X49","v":4},{"$f":"[1]ACS_16_5YR_B07003_with_ann!Y49","v":6},{"$f":"[1]ACS_16_5YR_B07003_with_ann!Z49","v":5},{"$f":"[1]ACS_16_5YR_B07003_with_ann!AA49","v":6},{"$f":"[1]ACS_16_5YR_B07003_with_ann!AB49","v":41},{"$f":"[1]ACS_16_5YR_B07003_with_ann!AC49","v":28},{"$f":"[1]ACS_16_5YR_B07003_with_ann!AD49","v":24},{"$f":"[1]ACS_16_5YR_B07003_with_ann!AE49","v":18},{"$f":"[1]ACS_16_5YR_B07003_with_ann!AF49","v":17},{"$f":"[1]ACS_16_5YR_B07003_with_ann!AG49","v":15},{"$f":"[1]ACS_16_5YR_B07003_with_ann!AH49","v":0},{"$f":"[1]ACS_16_5YR_B07003_with_ann!AI49","v":12},{"$f":"[1]ACS_16_5YR_B07003_with_ann!AJ49","v":0},{"$f":"[1]ACS_16_5YR_B07003_with_ann!AK49","v":12},{"$f":"[1]ACS_16_5YR_B07003_with_ann!AL49","v":0},{"$f":"[1]ACS_16_5YR_B07003_with_ann!AM49","v":12}]
["0600000US3300536660","0600000US3300536660","060",{"$f":"[1]ACS_16_5YR_B07003_with_ann!C50","v":"Hinsdale"},{"$f":"[1]ACS_16_5YR_B07003_with_ann!D50","v":3965},{"$f":"[1]ACS_16_5YR_B07003_with_ann!E50","v":16},{"$f":"[1]ACS_16_5YR_B07003_with_ann!F50","v":2090},{"$f":"[1]ACS_16_5YR_B07003_with_ann!G50","v":205},{"$f":"[1]ACS_16_5YR_B07003_with_ann!H50","v":1875},{"$f":"[1]ACS_16_5YR_B07003_with_ann!I50","v":204},{"$f":"[1]ACS_16_5YR_B07003_with_ann!J50","v":3683},{"$f":"[1]ACS_16_5YR_B07003_with_ann!K50","v":198},{"$f":"[1]ACS_16_5YR_B07003_with_ann!L50","v":1916},{"$f":"[1]ACS_16_5YR_B07003_with_ann!M50","v":236},{"$f":"[1]ACS_16_5YR_B07003_with_ann!N50","v":1767},{"$f":"[1]ACS_16_5YR_B07003_with_ann!O50","v":217},{"$f":"[1]ACS_16_5YR_B07003_with_ann!P50","v":136},{"$f":"[1]ACS_16_5YR_B07003_with_ann!Q50","v":123},{"$f":"[1]ACS_16_5YR_B07003_with_ann!R50","v":75},{"$f":"[1]ACS_16_5YR_B07003_with_ann!S50","v":65},{"$f":"[1]ACS_16_5YR_B07003_with_ann!T50","v":61},{"$f":"[1]ACS_16_5YR_B07003_with_ann!U50","v":65},{"$f":"[1]ACS_16_5YR_B07003_with_ann!V50","v":51},{"$f":"[1]ACS_16_5YR_B07003_with_ann!W50","v":60},{"$f":"[1]ACS_16_5YR_B07003_with_ann!X50","v":39},{"$f":"[1]ACS_16_5YR_B07003_with_ann!Y50","v":57},{"$f":"[1]ACS_16_5YR_B07003_with_ann!Z50","v":12},{"$f":"[1]ACS_16_5YR_B07003_with_ann!AA50","v":20},{"$f":"[1]ACS_16_5YR_B07003_with_ann!AB50","v":95},{"$f":"[1]ACS_16_5YR_B07003_with_ann!AC50","v":86},{"$f":"[1]ACS_16_5YR_B07003_with_ann!AD50","v":60},{"$f":"[1]ACS_16_5YR_B07003_with_ann!AE50","v":66},{"$f":"[1]ACS_16_5YR_B07003_with_ann!AF50","v":35},{"$f":"[1]ACS_16_5YR_B07003_with_ann!AG50","v":40},{"$f":"[1]ACS_16_5YR_B07003_with_ann!AH50","v":0},{"$f":"[1]ACS_16_5YR_B07003_with_ann!AI50","v":12},{"$f":"[1]ACS_16_5YR_B07003_with_ann!AJ50","v":0},{"$f":"[1]ACS_16_5YR_B07003_with_ann!AK50","v":12},{"$f":"[1]ACS_16_5YR_B07003_with_ann!AL50","v":0},{"$f":"[1]ACS_16_5YR_B07003_with_ann!AM50","v":12}]
["0600000US3300538500","0600000US3300538500","060",{"$f":"[1]ACS_16_5YR_B07003_with_ann!C51","v":"Jaffrey"},{"$f":"[1]ACS_16_5YR_B07003_with_ann!D51","v":5363},{"$f":"[1]ACS_16_5YR_B07003_with_ann!E51","v":32},{"$f":"[1]ACS_16_5YR_B07003_with_ann!F51","v":2738},{"$f":"[1]ACS_16_5YR_B07003_with_ann!G51","v":213},{"$f":"[1]ACS_16_5YR_B07003_with_ann!H51","v":2625},{"$f":"[1]ACS_16_5YR_B07003_with_ann!I51","v":216},{"$f":"[1]ACS_16_5YR_B07003_with_ann!J51","v":5046},{"$f":"[1]ACS_16_5YR_B07003_with_ann!K51","v":122},{"$f":"[1]ACS_16_5YR_B07003_with_ann!L51","v":2568},{"$f":"[1]ACS_16_5YR_B07003_with_ann!M51","v":222},{"$f":"[1]ACS_16_5YR_B07003_with_ann!N51","v":2478},{"$f":"[1]ACS_16_5YR_B07003_with_ann!O51","v":209},{"$f":"[1]ACS_16_5YR_B07003_with_ann!P51","v":172},{"$f":"[1]ACS_16_5YR_B07003_with_ann!Q51","v":122},{"$f":"[1]ACS_16_5YR_B07003_with_ann!R51","v":79},{"$f":"[1]ACS_16_5YR_B07003_with_ann!S51","v":80},{"$f":"[1]ACS_16_5YR_B07003_with_ann!T51","v":93},{"$f":"[1]ACS_16_5YR_B07003_with_ann!U51","v":64},{"$f":"[1]ACS_16_5YR_B07003_with_ann!V51","v":49},{"$f":"[1]ACS_16_5YR_B07003_with_ann!W51","v":52},{"$f":"[1]ACS_16_5YR_B07003_with_ann!X51","v":30},{"$f":"[1]ACS_16_5YR_B07003_with_ann!Y51","v":40},{"$f":"[1]ACS_16_5YR_B07003_with_ann!Z51","v":19},{"$f":"[1]ACS_16_5YR_B07003_with_ann!AA51","v":31},{"$f":"[1]ACS_16_5YR_B07003_with_ann!AB51","v":96},{"$f":"[1]ACS_16_5YR_B07003_with_ann!AC51","v":89},{"$f":"[1]ACS_16_5YR_B07003_with_ann!AD51","v":61},{"$f":"[1]ACS_16_5YR_B07003_with_ann!AE51","v":66},{"$f":"[1]ACS_16_5YR_B07003_with_ann!AF51","v":35},{"$f":"[1]ACS_16_5YR_B07003_with_ann!AG51","v":61},{"$f":"[1]ACS_16_5YR_B07003_with_ann!AH51","v":0},{"$f":"[1]ACS_16_5YR_B07003_with_ann!AI51","v":17},{"$f":"[1]ACS_16_5YR_B07003_with_ann!AJ51","v":0},{"$f":"[1]ACS_16_5YR_B07003_with_ann!AK51","v":17},{"$f":"[1]ACS_16_5YR_B07003_with_ann!AL51","v":0},{"$f":"[1]ACS_16_5YR_B07003_with_ann!AM51","v":17}]
["0600000US3300539300","0600000US3300539300","060",{"$f":"[1]ACS_16_5YR_B07003_with_ann!C52","v":"Keene"},{"$f":"[1]ACS_16_5YR_B07003_with_ann!D52","v":22791},{"$f":"[1]ACS_16_5YR_B07003_with_ann!E52","v":67},{"$f":"[1]ACS_16_5YR_B07003_with_ann!F52","v":11124},{"$f":"[1]ACS_16_5YR_B07003_with_ann!G52","v":412},{"$f":"[1]ACS_16_5YR_B07003_with_ann!H52","v":11667},{"$f":"[1]ACS_16_5YR_B07003_with_ann!I52","v":407},{"$f":"[1]ACS_16_5YR_B07003_with_ann!J52","v":18275},{"$f":"[1]ACS_16_5YR_B07003_with_ann!K52","v":548},{"$f":"[1]ACS_16_5YR_B07003_with_ann!L52","v":8998},{"$f":"[1]ACS_16_5YR_B07003_with_ann!M52","v":421},{"$f":"[1]ACS_16_5YR_B07003_with_ann!N52","v":9277},{"$f":"[1]ACS_16_5YR_B07003_with_ann!O52","v":392},{"$f":"[1]ACS_16_5YR_B07003_with_ann!P52","v":2629},{"$f":"[1]ACS_16_5YR_B07003_with_ann!Q52","v":551},{"$f":"[1]ACS_16_5YR_B07003_with_ann!R52","v":1228},{"$f":"[1]ACS_16_5YR_B07003_with_ann!S52","v":387},{"$f":"[1]ACS_16_5YR_B07003_with_ann!T52","v":1401},{"$f":"[1]ACS_16_5YR_B07003_with_ann!U52","v":284},{"$f":"[1]ACS_16_5YR_B07003_with_ann!V52","v":561},{"$f":"[1]ACS_16_5YR_B07003_with_ann!W52","v":188},{"$f":"[1]ACS_16_5YR_B07003_with_ann!X52","v":413},{"$f":"[1]ACS_16_5YR_B07003_with_ann!Y52","v":141},{"$f":"[1]ACS_16_5YR_B07003_with_ann!Z52","v":148},{"$f":"[1]ACS_16_5YR_B07003_with_ann!AA52","v":95},{"$f":"[1]ACS_16_5YR_B07003_with_ann!AB52","v":1277},{"$f":"[1]ACS_16_5YR_B07003_with_ann!AC52","v":275},{"$f":"[1]ACS_16_5YR_B07003_with_ann!AD52","v":436},{"$f":"[1]ACS_16_5YR_B07003_with_ann!AE52","v":139},{"$f":"[1]ACS_16_5YR_B07003_with_ann!AF52","v":841},{"$f":"[1]ACS_16_5YR_B07003_with_ann!AG52","v":203},{"$f":"[1]ACS_16_5YR_B07003_with_ann!AH52","v":49},{"$f":"[1]ACS_16_5YR_B07003_with_ann!AI52","v":36},{"$f":"[1]ACS_16_5YR_B07003_with_ann!AJ52","v":49},{"$f":"[1]ACS_16_5YR_B07003_with_ann!AK52","v":36},{"$f":"[1]ACS_16_5YR_B07003_with_ann!AL52","v":0},{"$f":"[1]ACS_16_5YR_B07003_with_ann!AM52","v":22}]
["0600000US3300545460","0600000US3300545460","060",{"$f":"[1]ACS_16_5YR_B07003_with_ann!C53","v":"Marlborough"},{"$f":"[1]ACS_16_5YR_B07003_with_ann!D53","v":2220},{"$f":"[1]ACS_16_5YR_B07003_with_ann!E53","v":386},{"$f":"[1]ACS_16_5YR_B07003_with_ann!F53","v":999},{"$f":"[1]ACS_16_5YR_B07003_with_ann!G53","v":198},{"$f":"[1]ACS_16_5YR_B07003_with_ann!H53","v":1221},{"$f":"[1]ACS_16_5YR_B07003_with_ann!I53","v":234},{"$f":"[1]ACS_16_5YR_B07003_with_ann!J53","v":2026},{"$f":"[1]ACS_16_5YR_B07003_with_ann!K53","v":356},{"$f":"[1]ACS_16_5YR_B07003_with_ann!L53","v":916},{"$f":"[1]ACS_16_5YR_B07003_with_ann!M53","v":180},{"$f":"[1]ACS_16_5YR_B07003_with_ann!N53","v":1110},{"$f":"[1]ACS_16_5YR_B07003_with_ann!O53","v":221},{"$f":"[1]ACS_16_5YR_B07003_with_ann!P53","v":128},{"$f":"[1]ACS_16_5YR_B07003_with_ann!Q53","v":79},{"$f":"[1]ACS_16_5YR_B07003_with_ann!R53","v":43},{"$f":"[1]ACS_16_5YR_B07003_with_ann!S53","v":37},{"$f":"[1]ACS_16_5YR_B07003_with_ann!T53","v":85},{"$f":"[1]ACS_16_5YR_B07003_with_ann!U53","v":49},{"$f":"[1]ACS_16_5YR_B07003_with_ann!V53","v":47},{"$f":"[1]ACS_16_5YR_B07003_with_ann!W53","v":63},{"$f":"[1]ACS_16_5YR_B07003_with_ann!X53","v":32},{"$f":"[1]ACS_16_5YR_B07003_with_ann!Y53","v":44},{"$f":"[1]ACS_16_5YR_B07003_with_ann!Z53","v":15},{"$f":"[1]ACS_16_5YR_B07003_with_ann!AA53","v":20},{"$f":"[1]ACS_16_5YR_B07003_with_ann!AB53","v":19},{"$f":"[1]ACS_16_5YR_B07003_with_ann!AC53","v":17},{"$f":"[1]ACS_16_5YR_B07003_with_ann!AD53","v":8},{"$f":"[1]ACS_16_5YR_B07003_with_ann!AE53","v":9},{"$f":"[1]ACS_16_5YR_B07003_with_ann!AF53","v":11},{"$f":"[1]ACS_16_5YR_B07003_with_ann!AG53","v":12},{"$f":"[1]ACS_16_5YR_B07003_with_ann!AH53","v":0},{"$f":"[1]ACS_16_5YR_B07003_with_ann!AI53","v":12},{"$f":"[1]ACS_16_5YR_B07003_with_ann!AJ53","v":0},{"$f":"[1]ACS_16_5YR_B07003_with_ann!AK53","v":12},{"$f":"[1]ACS_16_5YR_B07003_with_ann!AL53","v":0},{"$f":"[1]ACS_16_5YR_B07003_with_ann!AM53","v":12}]
["0600000US3300545700","0600000US3300545700","060",{"$f":"[1]ACS_16_5YR_B07003_with_ann!C54","v":"Marlow"},{"$f":"[1]ACS_16_5YR_B07003_with_ann!D54","v":795},{"$f":"[1]ACS_16_5YR_B07003_with_ann!E54","v":172},{"$f":"[1]ACS_16_5YR_B07003_with_ann!F54","v":356},{"$f":"[1]ACS_16_5YR_B07003_with_ann!G54","v":77},{"$f":"[1]ACS_16_5YR_B07003_with_ann!H54","v":439},{"$f":"[1]ACS_16_5YR_B07003_with_ann!I54","v":110},{"$f":"[1]ACS_16_5YR_B07003_with_ann!J54","v":658},{"$f":"[1]ACS_16_5YR_B07003_with_ann!K54","v":150},{"$f":"[1]ACS_16_5YR_B07003_with_ann!L54","v":308},{"$f":"[1]ACS_16_5YR_B07003_with_ann!M54","v":72},{"$f":"[1]ACS_16_5YR_B07003_with_ann!N54","v":350},{"$f":"[1]ACS_16_5YR_B07003_with_ann!O54","v":93},{"$f":"[1]ACS_16_5YR_B07003_with_ann!P54","v":53},{"$f":"[1]ACS_16_5YR_B07003_with_ann!Q54","v":47},{"$f":"[1]ACS_16_5YR_B07003_with_ann!R54","v":17},{"$f":"[1]ACS_16_5YR_B07003_with_ann!S54","v":19},{"$f":"[1]ACS_16_5YR_B07003_with_ann!T54","v":36},{"$f":"[1]ACS_16_5YR_B07003_with_ann!U54","v":30},{"$f":"[1]ACS_16_5YR_B07003_with_ann!V54","v":39},{"$f":"[1]ACS_16_5YR_B07003_with_ann!W54","v":53},{"$f":"[1]ACS_16_5YR_B07003_with_ann!X54","v":17},{"$f":"[1]ACS_16_5YR_B07003_with_ann!Y54","v":24},{"$f":"[1]ACS_16_5YR_B07003_with_ann!Z54","v":22},{"$f":"[1]ACS_16_5YR_B07003_with_ann!AA54","v":31},{"$f":"[1]ACS_16_5YR_B07003_with_ann!AB54","v":45},{"$f":"[1]ACS_16_5YR_B07003_with_ann!AC54","v":53},{"$f":"[1]ACS_16_5YR_B07003_with_ann!AD54","v":14},{"$f":"[1]ACS_16_5YR_B07003_with_ann!AE54","v":13},{"$f":"[1]ACS_16_5YR_B07003_with_ann!AF54","v":31},{"$f":"[1]ACS_16_5YR_B07003_with_ann!AG54","v":43},{"$f":"[1]ACS_16_5YR_B07003_with_ann!AH54","v":0},{"$f":"[1]ACS_16_5YR_B07003_with_ann!AI54","v":12},{"$f":"[1]ACS_16_5YR_B07003_with_ann!AJ54","v":0},{"$f":"[1]ACS_16_5YR_B07003_with_ann!AK54","v":12},{"$f":"[1]ACS_16_5YR_B07003_with_ann!AL54","v":0},{"$f":"[1]ACS_16_5YR_B07003_with_ann!AM54","v":12}]
["0600000US3300550580","0600000US3300550580","060",{"$f":"[1]ACS_16_5YR_B07003_with_ann!C55","v":"Nelson"},{"$f":"[1]ACS_16_5YR_B07003_with_ann!D55","v":542},{"$f":"[1]ACS_16_5YR_B07003_with_ann!E55","v":105},{"$f":"[1]ACS_16_5YR_B07003_with_ann!F55","v":246},{"$f":"[1]ACS_16_5YR_B07003_with_ann!G55","v":49},{"$f":"[1]ACS_16_5YR_B07003_with_ann!H55","v":296},{"$f":"[1]ACS_16_5YR_B07003_with_ann!I55","v":67},{"$f":"[1]ACS_16_5YR_B07003_with_ann!J55","v":500},{"$f":"[1]ACS_16_5YR_B07003_with_ann!K55","v":107},{"$f":"[1]ACS_16_5YR_B07003_with_ann!L55","v":223},{"$f":"[1]ACS_16_5YR_B07003_with_ann!M55","v":50},{"$f":"[1]ACS_16_5YR_B07003_with_ann!N55","v":277},{"$f":"[1]ACS_16_5YR_B07003_with_ann!O55","v":67},{"$f":"[1]ACS_16_5YR_B07003_with_ann!P55","v":17},{"$f":"[1]ACS_16_5YR_B07003_with_ann!Q55","v":14},{"$f":"[1]ACS_16_5YR_B07003_with_ann!R55","v":8},{"$f":"[1]ACS_16_5YR_B07003_with_ann!S55","v":7},{"$f":"[1]ACS_16_5YR_B07003_with_ann!T55","v":9},{"$f":"[1]ACS_16_5YR_B07003_with_ann!U55","v":8},{"$f":"[1]ACS_16_5YR_B07003_with_ann!V55","v":9},{"$f":"[1]ACS_16_5YR_B07003_with_ann!W55","v":8},{"$f":"[1]ACS_16_5YR_B07003_with_ann!X55","v":7},{"$f":"[1]ACS_16_5YR_B07003_with_ann!Y55","v":6},{"$f":"[1]ACS_16_5YR_B07003_with_ann!Z55","v":2},{"$f":"[1]ACS_16_5YR_B07003_with_ann!AA55","v":3},{"$f":"[1]ACS_16_5YR_B07003_with_ann!AB55","v":7},{"$f":"[1]ACS_16_5YR_B07003_with_ann!AC55","v":7},{"$f":"[1]ACS_16_5YR_B07003_with_ann!AD55","v":4},{"$f":"[1]ACS_16_5YR_B07003_with_ann!AE55","v":4},{"$f":"[1]ACS_16_5YR_B07003_with_ann!AF55","v":3},{"$f":"[1]ACS_16_5YR_B07003_with_ann!AG55","v":5},{"$f":"[1]ACS_16_5YR_B07003_with_ann!AH55","v":9},{"$f":"[1]ACS_16_5YR_B07003_with_ann!AI55","v":13},{"$f":"[1]ACS_16_5YR_B07003_with_ann!AJ55","v":4},{"$f":"[1]ACS_16_5YR_B07003_with_ann!AK55","v":7},{"$f":"[1]ACS_16_5YR_B07003_with_ann!AL55","v":5},{"$f":"[1]ACS_16_5YR_B07003_with_ann!AM55","v":6}]
["0600000US3300564420","0600000US3300564420","060",{"$f":"[1]ACS_16_5YR_B07003_with_ann!C56","v":"Richmond"},{"$f":"[1]ACS_16_5YR_B07003_with_ann!D56","v":1098},{"$f":"[1]ACS_16_5YR_B07003_with_ann!E56","v":247},{"$f":"[1]ACS_16_5YR_B07003_with_ann!F56","v":589},{"$f":"[1]ACS_16_5YR_B07003_with_ann!G56","v":158},{"$f":"[1]ACS_16_5YR_B07003_with_ann!H56","v":509},{"$f":"[1]ACS_16_5YR_B07003_with_ann!I56","v":121},{"$f":"[1]ACS_16_5YR_B07003_with_ann!J56","v":991},{"$f":"[1]ACS_16_5YR_B07003_with_ann!K56","v":244},{"$f":"[1]ACS_16_5YR_B07003_with_ann!L56","v":542},{"$f":"[1]ACS_16_5YR_B07003_with_ann!M56","v":155},{"$f":"[1]ACS_16_5YR_B07003_with_ann!N56","v":449},{"$f":"[1]ACS_16_5YR_B07003_with_ann!O56","v":116},{"$f":"[1]ACS_16_5YR_B07003_with_ann!P56","v":66},{"$f":"[1]ACS_16_5YR_B07003_with_ann!Q56","v":58},{"$f":"[1]ACS_16_5YR_B07003_with_ann!R56","v":23},{"$f":"[1]ACS_16_5YR_B07003_with_ann!S56","v":21},{"$f":"[1]ACS_16_5YR_B07003_with_ann!T56","v":43},{"$f":"[1]ACS_16_5YR_B07003_with_ann!U56","v":49},{"$f":"[1]ACS_16_5YR_B07003_with_ann!V56","v":2},{"$f":"[1]ACS_16_5YR_B07003_with_ann!W56","v":7},{"$f":"[1]ACS_16_5YR_B07003_with_ann!X56","v":0},{"$f":"[1]ACS_16_5YR_B07003_with_ann!Y56","v":12},{"$f":"[1]ACS_16_5YR_B07003_with_ann!Z56","v":2},{"$f":"[1]ACS_16_5YR_B07003_with_ann!AA56","v":7},{"$f":"[1]ACS_16_5YR_B07003_with_ann!AB56","v":39},{"$f":"[1]ACS_16_5YR_B07003_with_ann!AC56","v":31},{"$f":"[1]ACS_16_5YR_B07003_with_ann!AD56","v":24},{"$f":"[1]ACS_16_5YR_B07003_with_ann!AE56","v":19},{"$f":"[1]ACS_16_5YR_B07003_with_ann!AF56","v":15},{"$f":"[1]ACS_16_5YR_B07003_with_ann!AG56","v":13},{"$f":"[1]ACS_16_5YR_B07003_with_ann!AH56","v":0},{"$f":"[1]ACS_16_5YR_B07003_with_ann!AI56","v":12},{"$f":"[1]ACS_16_5YR_B07003_with_ann!AJ56","v":0},{"$f":"[1]ACS_16_5YR_B07003_with_ann!AK56","v":12},{"$f":"[1]ACS_16_5YR_B07003_with_ann!AL56","v":0},{"$f":"[1]ACS_16_5YR_B07003_with_ann!AM56","v":12}]
["0600000US3300564580","0600000US3300564580","060",{"$f":"[1]ACS_16_5YR_B07003_with_ann!C57","v":"Rindge"},{"$f":"[1]ACS_16_5YR_B07003_with_ann!D57","v":6416},{"$f":"[1]ACS_16_5YR_B07003_with_ann!E57","v":40},{"$f":"[1]ACS_16_5YR_B07003_with_ann!F57","v":3135},{"$f":"[1]ACS_16_5YR_B07003_with_ann!G57","v":186},{"$f":"[1]ACS_16_5YR_B07003_with_ann!H57","v":3281},{"$f":"[1]ACS_16_5YR_B07003_with_ann!I57","v":187},{"$f":"[1]ACS_16_5YR_B07003_with_ann!J57","v":5794},{"$f":"[1]ACS_16_5YR_B07003_with_ann!K57","v":187},{"$f":"[1]ACS_16_5YR_B07003_with_ann!L57","v":2842},{"$f":"[1]ACS_16_5YR_B07003_with_ann!M57","v":190},{"$f":"[1]ACS_16_5YR_B07003_with_ann!N57","v":2952},{"$f":"[1]ACS_16_5YR_B07003_with_ann!O57","v":216},{"$f":"[1]ACS_16_5YR_B07003_with_ann!P57","v":190},{"$f":"[1]ACS_16_5YR_B07003_with_ann!Q57","v":100},{"$f":"[1]ACS_16_5YR_B07003_with_ann!R57","v":87},{"$f":"[1]ACS_16_5YR_B07003_with_ann!S57","v":55},{"$f":"[1]ACS_16_5YR_B07003_with_ann!T57","v":103},{"$f":"[1]ACS_16_5YR_B07003_with_ann!U57","v":63},{"$f":"[1]ACS_16_5YR_B07003_with_ann!V57","v":103},{"$f":"[1]ACS_16_5YR_B07003_with_ann!W57","v":65},{"$f":"[1]ACS_16_5YR_B07003_with_ann!X57","v":44},{"$f":"[1]ACS_16_5YR_B07003_with_ann!Y57","v":34},{"$f":"[1]ACS_16_5YR_B07003_with_ann!Z57","v":59},{"$f":"[1]ACS_16_5YR_B07003_with_ann!AA57","v":43},{"$f":"[1]ACS_16_5YR_B07003_with_ann!AB57","v":319},{"$f":"[1]ACS_16_5YR_B07003_with_ann!AC57","v":129},{"$f":"[1]ACS_16_5YR_B07003_with_ann!AD57","v":152},{"$f":"[1]ACS_16_5YR_B07003_with_ann!AE57","v":83},{"$f":"[1]ACS_16_5YR_B07003_with_ann!AF57","v":167},{"$f":"[1]ACS_16_5YR_B07003_with_ann!AG57","v":91},{"$f":"[1]ACS_16_5YR_B07003_with_ann!AH57","v":10},{"$f":"[1]ACS_16_5YR_B07003_with_ann!AI57","v":15},{"$f":"[1]ACS_16_5YR_B07003_with_ann!AJ57","v":10},{"$f":"[1]ACS_16_5YR_B07003_with_ann!AK57","v":15},{"$f":"[1]ACS_16_5YR_B07003_with_ann!AL57","v":0},{"$f":"[1]ACS_16_5YR_B07003_with_ann!AM57","v":17}]
["0600000US3300565700","0600000US3300565700","060",{"$f":"[1]ACS_16_5YR_B07003_with_ann!C58","v":"Roxbury"},{"$f":"[1]ACS_16_5YR_B07003_with_ann!D58","v":295},{"$f":"[1]ACS_16_5YR_B07003_with_ann!E58","v":142},{"$f":"[1]ACS_16_5YR_B07003_with_ann!F58","v":135},{"$f":"[1]ACS_16_5YR_B07003_with_ann!G58","v":70},{"$f":"[1]ACS_16_5YR_B07003_with_ann!H58","v":160},{"$f":"[1]ACS_16_5YR_B07003_with_ann!I58","v":78},{"$f":"[1]ACS_16_5YR_B07003_with_ann!J58","v":281},{"$f":"[1]ACS_16_5YR_B07003_with_ann!K58","v":142},{"$f":"[1]ACS_16_5YR_B07003_with_ann!L58","v":130},{"$f":"[1]ACS_16_5YR_B07003_with_ann!M58","v":70},{"$f":"[1]ACS_16_5YR_B07003_with_ann!N58","v":151},{"$f":"[1]ACS_16_5YR_B07003_with_ann!O58","v":78},{"$f":"[1]ACS_16_5YR_B07003_with_ann!P58","v":10},{"$f":"[1]ACS_16_5YR_B07003_with_ann!Q58","v":8},{"$f":"[1]ACS_16_5YR_B07003_with_ann!R58","v":4},{"$f":"[1]ACS_16_5YR_B07003_with_ann!S58","v":3},{"$f":"[1]ACS_16_5YR_B07003_with_ann!T58","v":6},{"$f":"[1]ACS_16_5YR_B07003_with_ann!U58","v":6},{"$f":"[1]ACS_16_5YR_B07003_with_ann!V58","v":0},{"$f":"[1]ACS_16_5YR_B07003_with_ann!W58","v":12},{"$f":"[1]ACS_16_5YR_B07003_with_ann!X58","v":0},{"$f":"[1]ACS_16_5YR_B07003_with_ann!Y58","v":12},{"$f":"[1]ACS_16_5YR_B07003_with_ann!Z58","v":0},{"$f":"[1]ACS_16_5YR_B07003_with_ann!AA58","v":12},{"$f":"[1]ACS_16_5YR_B07003_with_ann!AB58","v":4},{"$f":"[1]ACS_16_5YR_B07003_with_ann!AC58","v":7},{"$f":"[1]ACS_16_5YR_B07003_with_ann!AD58","v":1},{"$f":"[1]ACS_16_5YR_B07003_with_ann!AE58","v":3},{"$f":"[1]ACS_16_5YR_B07003_with_ann!AF58","v":3},{"$f":"[1]ACS_16_5YR_B07003_with_ann!AG58","v":5},{"$f":"[1]ACS_16_5YR_B07003_with_ann!AH58","v":0},{"$f":"[1]ACS_16_5YR_B07003_with_ann!AI58","v":12},{"$f":"[1]ACS_16_5YR_B07003_with_ann!AJ58","v":0},{"$f":"[1]ACS_16_5YR_B07003_with_ann!AK58","v":12},{"$f":"[1]ACS_16_5YR_B07003_with_ann!AL58","v":0},{"$f":"[1]ACS_16_5YR_B07003_with_ann!AM58","v":12}]
["0600000US3300573700","0600000US3300573700","060",{"$f":"[1]ACS_16_5YR_B07003_with_ann!C59","v":"Stoddard"},{"$f":"[1]ACS_16_5YR_B07003_with_ann!D59","v":1198},{"$f":"[1]ACS_16_5YR_B07003_with_ann!E59","v":162},{"$f":"[1]ACS_16_5YR_B07003_with_ann!F59","v":588},{"$f":"[1]ACS_16_5YR_B07003_with_ann!G59","v":98},{"$f":"[1]ACS_16_5YR_B07003_with_ann!H59","v":610},{"$f":"[1]ACS_16_5YR_B07003_with_ann!I59","v":90},{"$f":"[1]ACS_16_5YR_B07003_with_ann!J59","v":1134},{"$f":"[1]ACS_16_5YR_B07003_with_ann!K59","v":159},{"$f":"[1]ACS_16_5YR_B07003_with_ann!L59","v":560},{"$f":"[1]ACS_16_5YR_B07003_with_ann!M59","v":96},{"$f":"[1]ACS_16_5YR_B07003_with_ann!N59","v":574},{"$f":"[1]ACS_16_5YR_B07003_with_ann!O59","v":88},{"$f":"[1]ACS_16_5YR_B07003_with_ann!P59","v":4},{"$f":"[1]ACS_16_5YR_B07003_with_ann!Q59","v":6},{"$f":"[1]ACS_16_5YR_B07003_with_ann!R59","v":4},{"$f":"[1]ACS_16_5YR_B07003_with_ann!S59","v":6},{"$f":"[1]ACS_16_5YR_B07003_with_ann!T59","v":0},{"$f":"[1]ACS_16_5YR_B07003_with_ann!U59","v":12},{"$f":"[1]ACS_16_5YR_B07003_with_ann!V59","v":29},{"$f":"[1]ACS_16_5YR_B07003_with_ann!W59","v":22},{"$f":"[1]ACS_16_5YR_B07003_with_ann!X59","v":18},{"$f":"[1]ACS_16_5YR_B07003_with_ann!Y59","v":14},{"$f":"[1]ACS_16_5YR_B07003_with_ann!Z59","v":11},{"$f":"[1]ACS_16_5YR_B07003_with_ann!AA59","v":10},{"$f":"[1]ACS_16_5YR_B07003_with_ann!AB59","v":31},{"$f":"[1]ACS_16_5YR_B07003_with_ann!AC59","v":28},{"$f":"[1]ACS_16_5YR_B07003_with_ann!AD59","v":6},{"$f":"[1]ACS_16_5YR_B07003_with_ann!AE59","v":6},{"$f":"[1]ACS_16_5YR_B07003_with_ann!AF59","v":25},{"$f":"[1]ACS_16_5YR_B07003_with_ann!AG59","v":23},{"$f":"[1]ACS_16_5YR_B07003_with_ann!AH59","v":0},{"$f":"[1]ACS_16_5YR_B07003_with_ann!AI59","v":12},{"$f":"[1]ACS_16_5YR_B07003_with_ann!AJ59","v":0},{"$f":"[1]ACS_16_5YR_B07003_with_ann!AK59","v":12},{"$f":"[1]ACS_16_5YR_B07003_with_ann!AL59","v":0},{"$f":"[1]ACS_16_5YR_B07003_with_ann!AM59","v":12}]
["0600000US3300574900","0600000US3300574900","060",{"$f":"[1]ACS_16_5YR_B07003_with_ann!C60","v":"Sullivan"},{"$f":"[1]ACS_16_5YR_B07003_with_ann!D60","v":672},{"$f":"[1]ACS_16_5YR_B07003_with_ann!E60","v":127},{"$f":"[1]ACS_16_5YR_B07003_with_ann!F60","v":342},{"$f":"[1]ACS_16_5YR_B07003_with_ann!G60","v":79},{"$f":"[1]ACS_16_5YR_B07003_with_ann!H60","v":330},{"$f":"[1]ACS_16_5YR_B07003_with_ann!I60","v":63},{"$f":"[1]ACS_16_5YR_B07003_with_ann!J60","v":617},{"$f":"[1]ACS_16_5YR_B07003_with_ann!K60","v":122},{"$f":"[1]ACS_16_5YR_B07003_with_ann!L60","v":316},{"$f":"[1]ACS_16_5YR_B07003_with_ann!M60","v":79},{"$f":"[1]ACS_16_5YR_B07003_with_ann!N60","v":301},{"$f":"[1]ACS_16_5YR_B07003_with_ann!O60","v":57},{"$f":"[1]ACS_16_5YR_B07003_with_ann!P60","v":22},{"$f":"[1]ACS_16_5YR_B07003_with_ann!Q60","v":17},{"$f":"[1]ACS_16_5YR_B07003_with_ann!R60","v":9},{"$f":"[1]ACS_16_5YR_B07003_with_ann!S60","v":10},{"$f":"[1]ACS_16_5YR_B07003_with_ann!T60","v":13},{"$f":"[1]ACS_16_5YR_B07003_with_ann!U60","v":9},{"$f":"[1]ACS_16_5YR_B07003_with_ann!V60","v":17},{"$f":"[1]ACS_16_5YR_B07003_with_ann!W60","v":15},{"$f":"[1]ACS_16_5YR_B07003_with_ann!X60","v":11},{"$f":"[1]ACS_16_5YR_B07003_with_ann!Y60","v":11},{"$f":"[1]ACS_16_5YR_B07003_with_ann!Z60","v":6},{"$f":"[1]ACS_16_5YR_B07003_with_ann!AA60","v":6},{"$f":"[1]ACS_16_5YR_B07003_with_ann!AB60","v":16},{"$f":"[1]ACS_16_5YR_B07003_with_ann!AC60","v":15},{"$f":"[1]ACS_16_5YR_B07003_with_ann!AD60","v":6},{"$f":"[1]ACS_16_5YR_B07003_with_ann!AE60","v":6},{"$f":"[1]ACS_16_5YR_B07003_with_ann!AF60","v":10},{"$f":"[1]ACS_16_5YR_B07003_with_ann!AG60","v":14},{"$f":"[1]ACS_16_5YR_B07003_with_ann!AH60","v":0},{"$f":"[1]ACS_16_5YR_B07003_with_ann!AI60","v":12},{"$f":"[1]ACS_16_5YR_B07003_with_ann!AJ60","v":0},{"$f":"[1]ACS_16_5YR_B07003_with_ann!AK60","v":12},{"$f":"[1]ACS_16_5YR_B07003_with_ann!AL60","v":0},{"$f":"[1]ACS_16_5YR_B07003_with_ann!AM60","v":12}]
["0600000US3300575300","0600000US3300575300","060",{"$f":"[1]ACS_16_5YR_B07003_with_ann!C61","v":"Surry"},{"$f":"[1]ACS_16_5YR_B07003_with_ann!D61","v":948},{"$f":"[1]ACS_16_5YR_B07003_with_ann!E61","v":245},{"$f":"[1]ACS_16_5YR_B07003_with_ann!F61","v":386},{"$f":"[1]ACS_16_5YR_B07003_with_ann!G61","v":71},{"$f":"[1]ACS_16_5YR_B07003_with_ann!H61","v":562},{"$f":"[1]ACS_16_5YR_B07003_with_ann!I61","v":203},{"$f":"[1]ACS_16_5YR_B07003_with_ann!J61","v":763},{"$f":"[1]ACS_16_5YR_B07003_with_ann!K61","v":145},{"$f":"[1]ACS_16_5YR_B07003_with_ann!L61","v":358},{"$f":"[1]ACS_16_5YR_B07003_with_ann!M61","v":74},{"$f":"[1]ACS_16_5YR_B07003_with_ann!N61","v":405},{"$f":"[1]ACS_16_5YR_B07003_with_ann!O61","v":79},{"$f":"[1]ACS_16_5YR_B07003_with_ann!P61","v":44},{"$f":"[1]ACS_16_5YR_B07003_with_ann!Q61","v":40},{"$f":"[1]ACS_16_5YR_B07003_with_ann!R61","v":17},{"$f":"[1]ACS_16_5YR_B07003_with_ann!S61","v":18},{"$f":"[1]ACS_16_5YR_B07003_with_ann!T61","v":27},{"$f":"[1]ACS_16_5YR_B07003_with_ann!U61","v":22},{"$f":"[1]ACS_16_5YR_B07003_with_ann!V61","v":3},{"$f":"[1]ACS_16_5YR_B07003_with_ann!W61","v":5},{"$f":"[1]ACS_16_5YR_B07003_with_ann!X61","v":0},{"$f":"[1]ACS_16_5YR_B07003_with_ann!Y61","v":12},{"$f":"[1]ACS_16_5YR_B07003_with_ann!Z61","v":3},{"$f":"[1]ACS_16_5YR_B07003_with_ann!AA61","v":5},{"$f":"[1]ACS_16_5YR_B07003_with_ann!AB61","v":136},{"$f":"[1]ACS_16_5YR_B07003_with_ann!AC61","v":163},{"$f":"[1]ACS_16_5YR_B07003_with_ann!AD61","v":11},{"$f":"[1]ACS_16_5YR_B07003_with_ann!AE61","v":10},{"$f":"[1]ACS_16_5YR_B07003_with_ann!AF61","v":125},{"$f":"[1]ACS_16_5YR_B07003_with_ann!AG61","v":167},{"$f":"[1]ACS_16_5YR_B07003_with_ann!AH61","v":2},{"$f":"[1]ACS_16_5YR_B07003_with_ann!AI61","v":4},{"$f":"[1]ACS_16_5YR_B07003_with_ann!AJ61","v":0},{"$f":"[1]ACS_16_5YR_B07003_with_ann!AK61","v":12},{"$f":"[1]ACS_16_5YR_B07003_with_ann!AL61","v":2},{"$f":"[1]ACS_16_5YR_B07003_with_ann!AM61","v":4}]
["0600000US3300575700","0600000US3300575700","060",{"$f":"[1]ACS_16_5YR_B07003_with_ann!C62","v":"Swanzey"},{"$f":"[1]ACS_16_5YR_B07003_with_ann!D62","v":7294},{"$f":"[1]ACS_16_5YR_B07003_with_ann!E62","v":31},{"$f":"[1]ACS_16_5YR_B07003_with_ann!F62","v":3551},{"$f":"[1]ACS_16_5YR_B07003_with_ann!G62","v":206},{"$f":"[1]ACS_16_5YR_B07003_with_ann!H62","v":3743},{"$f":"[1]ACS_16_5YR_B07003_with_ann!I62","v":209},{"$f":"[1]ACS_16_5YR_B07003_with_ann!J62","v":6236},{"$f":"[1]ACS_16_5YR_B07003_with_ann!K62","v":321},{"$f":"[1]ACS_16_5YR_B07003_with_ann!L62","v":2966},{"$f":"[1]ACS_16_5YR_B07003_with_ann!M62","v":229},{"$f":"[1]ACS_16_5YR_B07003_with_ann!N62","v":3270},{"$f":"[1]ACS_16_5YR_B07003_with_ann!O62","v":244},{"$f":"[1]ACS_16_5YR_B07003_with_ann!P62","v":812},{"$f":"[1]ACS_16_5YR_B07003_with_ann!Q62","v":309},{"$f":"[1]ACS_16_5YR_B07003_with_ann!R62","v":440},{"$f":"[1]ACS_16_5YR_B07003_with_ann!S62","v":170},{"$f":"[1]ACS_16_5YR_B07003_with_ann!T62","v":372},{"$f":"[1]ACS_16_5YR_B07003_with_ann!U62","v":163},{"$f":"[1]ACS_16_5YR_B07003_with_ann!V62","v":32},{"$f":"[1]ACS_16_5YR_B07003_with_ann!W62","v":35},{"$f":"[1]ACS_16_5YR_B07003_with_ann!X62","v":32},{"$f":"[1]ACS_16_5YR_B07003_with_ann!Y62","v":35},{"$f":"[1]ACS_16_5YR_B07003_with_ann!Z62","v":0},{"$f":"[1]ACS_16_5YR_B07003_with_ann!AA62","v":17},{"$f":"[1]ACS_16_5YR_B07003_with_ann!AB62","v":177},{"$f":"[1]ACS_16_5YR_B07003_with_ann!AC62","v":111},{"$f":"[1]ACS_16_5YR_B07003_with_ann!AD62","v":98},{"$f":"[1]ACS_16_5YR_B07003_with_ann!AE62","v":87},{"$f":"[1]ACS_16_5YR_B07003_with_ann!AF62","v":79},{"$f":"[1]ACS_16_5YR_B07003_with_ann!AG62","v":55},{"$f":"[1]ACS_16_5YR_B07003_with_ann!AH62","v":37},{"$f":"[1]ACS_16_5YR_B07003_with_ann!AI62","v":42},{"$f":"[1]ACS_16_5YR_B07003_with_ann!AJ62","v":15},{"$f":"[1]ACS_16_5YR_B07003_with_ann!AK62","v":22},{"$f":"[1]ACS_16_5YR_B07003_with_ann!AL62","v":22},{"$f":"[1]ACS_16_5YR_B07003_with_ann!AM62","v":39}]
["0600000US3300577380","0600000US3300577380","060",{"$f":"[1]ACS_16_5YR_B07003_with_ann!C63","v":"Troy"},{"$f":"[1]ACS_16_5YR_B07003_with_ann!D63","v":1889},{"$f":"[1]ACS_16_5YR_B07003_with_ann!E63","v":275},{"$f":"[1]ACS_16_5YR_B07003_with_ann!F63","v":950},{"$f":"[1]ACS_16_5YR_B07003_with_ann!G63","v":177},{"$f":"[1]ACS_16_5YR_B07003_with_ann!H63","v":939},{"$f":"[1]ACS_16_5YR_B07003_with_ann!I63","v":136},{"$f":"[1]ACS_16_5YR_B07003_with_ann!J63","v":1662},{"$f":"[1]ACS_16_5YR_B07003_with_ann!K63","v":284},{"$f":"[1]ACS_16_5YR_B07003_with_ann!L63","v":858},{"$f":"[1]ACS_16_5YR_B07003_with_ann!M63","v":174},{"$f":"[1]ACS_16_5YR_B07003_with_ann!N63","v":804},{"$f":"[1]ACS_16_5YR_B07003_with_ann!O63","v":143},{"$f":"[1]ACS_16_5YR_B07003_with_ann!P63","v":103},{"$f":"[1]ACS_16_5YR_B07003_with_ann!Q63","v":56},{"$f":"[1]ACS_16_5YR_B07003_with_ann!R63","v":49},{"$f":"[1]ACS_16_5YR_B07003_with_ann!S63","v":38},{"$f":"[1]ACS_16_5YR_B07003_with_ann!T63","v":54},{"$f":"[1]ACS_16_5YR_B07003_with_ann!U63","v":31},{"$f":"[1]ACS_16_5YR_B07003_with_ann!V63","v":5},{"$f":"[1]ACS_16_5YR_B07003_with_ann!W63","v":9},{"$f":"[1]ACS_16_5YR_B07003_with_ann!X63","v":5},{"$f":"[1]ACS_16_5YR_B07003_with_ann!Y63","v":9},{"$f":"[1]ACS_16_5YR_B07003_with_ann!Z63","v":0},{"$f":"[1]ACS_16_5YR_B07003_with_ann!AA63","v":12},{"$f":"[1]ACS_16_5YR_B07003_with_ann!AB63","v":119},{"$f":"[1]ACS_16_5YR_B07003_with_ann!AC63","v":98},{"$f":"[1]ACS_16_5YR_B07003_with_ann!AD63","v":38},{"$f":"[1]ACS_16_5YR_B07003_with_ann!AE63","v":28},{"$f":"[1]ACS_16_5YR_B07003_with_ann!AF63","v":81},{"$f":"[1]ACS_16_5YR_B07003_with_ann!AG63","v":79},{"$f":"[1]ACS_16_5YR_B07003_with_ann!AH63","v":0},{"$f":"[1]ACS_16_5YR_B07003_with_ann!AI63","v":12},{"$f":"[1]ACS_16_5YR_B07003_with_ann!AJ63","v":0},{"$f":"[1]ACS_16_5YR_B07003_with_ann!AK63","v":12},{"$f":"[1]ACS_16_5YR_B07003_with_ann!AL63","v":0},{"$f":"[1]ACS_16_5YR_B07003_with_ann!AM63","v":12}]
["0600000US3300578420","0600000US3300578420","060",{"$f":"[1]ACS_16_5YR_B07003_with_ann!C64","v":"Walpole"},{"$f":"[1]ACS_16_5YR_B07003_with_ann!D64","v":3622},{"$f":"[1]ACS_16_5YR_B07003_with_ann!E64","v":47},{"$f":"[1]ACS_16_5YR_B07003_with_ann!F64","v":1770},{"$f":"[1]ACS_16_5YR_B07003_with_ann!G64","v":156},{"$f":"[1]ACS_16_5YR_B07003_with_ann!H64","v":1852},{"$f":"[1]ACS_16_5YR_B07003_with_ann!I64","v":161},{"$f":"[1]ACS_16_5YR_B07003_with_ann!J64","v":3336},{"$f":"[1]ACS_16_5YR_B07003_with_ann!K64","v":163},{"$f":"[1]ACS_16_5YR_B07003_with_ann!L64","v":1625},{"$f":"[1]ACS_16_5YR_B07003_with_ann!M64","v":174},{"$f":"[1]ACS_16_5YR_B07003_with_ann!N64","v":1711},{"$f":"[1]ACS_16_5YR_B07003_with_ann!O64","v":168},{"$f":"[1]ACS_16_5YR_B07003_with_ann!P64","v":166},{"$f":"[1]ACS_16_5YR_B07003_with_ann!Q64","v":132},{"$f":"[1]ACS_16_5YR_B07003_with_ann!R64","v":61},{"$f":"[1]ACS_16_5YR_B07003_with_ann!S64","v":75},{"$f":"[1]ACS_16_5YR_B07003_with_ann!T64","v":105},{"$f":"[1]ACS_16_5YR_B07003_with_ann!U64","v":74},{"$f":"[1]ACS_16_5YR_B07003_with_ann!V64","v":54},{"$f":"[1]ACS_16_5YR_B07003_with_ann!W64","v":44},{"$f":"[1]ACS_16_5YR_B07003_with_ann!X64","v":41},{"$f":"[1]ACS_16_5YR_B07003_with_ann!Y64","v":35},{"$f":"[1]ACS_16_5YR_B07003_with_ann!Z64","v":13},{"$f":"[1]ACS_16_5YR_B07003_with_ann!AA64","v":14},{"$f":"[1]ACS_16_5YR_B07003_with_ann!AB64","v":66},{"$f":"[1]ACS_16_5YR_B07003_with_ann!AC64","v":55},{"$f":"[1]ACS_16_5YR_B07003_with_ann!AD64","v":43},{"$f":"[1]ACS_16_5YR_B07003_with_ann!AE64","v":43},{"$f":"[1]ACS_16_5YR_B07003_with_ann!AF64","v":23},{"$f":"[1]ACS_16_5YR_B07003_with_ann!AG64","v":36},{"$f":"[1]ACS_16_5YR_B07003_with_ann!AH64","v":0},{"$f":"[1]ACS_16_5YR_B07003_with_ann!AI64","v":12},{"$f":"[1]ACS_16_5YR_B07003_with_ann!AJ64","v":0},{"$f":"[1]ACS_16_5YR_B07003_with_ann!AK64","v":12},{"$f":"[1]ACS_16_5YR_B07003_with_ann!AL64","v":0},{"$f":"[1]ACS_16_5YR_B07003_with_ann!AM64","v":12}]
["0600000US3300582660","0600000US3300582660","060",{"$f":"[1]ACS_16_5YR_B07003_with_ann!C65","v":"Westmoreland"},{"$f":"[1]ACS_16_5YR_B07003_with_ann!D65","v":2014},{"$f":"[1]ACS_16_5YR_B07003_with_ann!E65","v":333},{"$f":"[1]ACS_16_5YR_B07003_with_ann!F65","v":890},{"$f":"[1]ACS_16_5YR_B07003_with_ann!G65","v":172},{"$f":"[1]ACS_16_5YR_B07003_with_ann!H65","v":1124},{"$f":"[1]ACS_16_5YR_B07003_with_ann!I65","v":216},{"$f":"[1]ACS_16_5YR_B07003_with_ann!J65","v":1910},{"$f":"[1]ACS_16_5YR_B07003_with_ann!K65","v":324},{"$f":"[1]ACS_16_5YR_B07003_with_ann!L65","v":860},{"$f":"[1]ACS_16_5YR_B07003_with_ann!M65","v":167},{"$f":"[1]ACS_16_5YR_B07003_with_ann!N65","v":1050},{"$f":"[1]ACS_16_5YR_B07003_with_ann!O65","v":212},{"$f":"[1]ACS_16_5YR_B07003_with_ann!P65","v":50},{"$f":"[1]ACS_16_5YR_B07003_with_ann!Q65","v":54},{"$f":"[1]ACS_16_5YR_B07003_with_ann!R65","v":5},{"$f":"[1]ACS_16_5YR_B07003_with_ann!S65","v":9},{"$f":"[1]ACS_16_5YR_B07003_with_ann!T65","v":45},{"$f":"[1]ACS_16_5YR_B07003_with_ann!U65","v":53},{"$f":"[1]ACS_16_5YR_B07003_with_ann!V65","v":7},{"$f":"[1]ACS_16_5YR_B07003_with_ann!W65","v":10},{"$f":"[1]ACS_16_5YR_B07003_with_ann!X65","v":4},{"$f":"[1]ACS_16_5YR_B07003_with_ann!Y65","v":5},{"$f":"[1]ACS_16_5YR_B07003_with_ann!Z65","v":3},{"$f":"[1]ACS_16_5YR_B07003_with_ann!AA65","v":5},{"$f":"[1]ACS_16_5YR_B07003_with_ann!AB65","v":47},{"$f":"[1]ACS_16_5YR_B07003_with_ann!AC65","v":37},{"$f":"[1]ACS_16_5YR_B07003_with_ann!AD65","v":21},{"$f":"[1]ACS_16_5YR_B07003_with_ann!AE65","v":20},{"$f":"[1]ACS_16_5YR_B07003_with_ann!AF65","v":26},{"$f":"[1]ACS_16_5YR_B07003_with_ann!AG65","v":28},{"$f":"[1]ACS_16_5YR_B07003_with_ann!AH65","v":0},{"$f":"[1]ACS_16_5YR_B07003_with_ann!AI65","v":12},{"$f":"[1]ACS_16_5YR_B07003_with_ann!AJ65","v":0},{"$f":"[1]ACS_16_5YR_B07003_with_ann!AK65","v":12},{"$f":"[1]ACS_16_5YR_B07003_with_ann!AL65","v":0},{"$f":"[1]ACS_16_5YR_B07003_with_ann!AM65","v":12}]
["0600000US3300585540","0600000US3300585540","060",{"$f":"[1]ACS_16_5YR_B07003_with_ann!C66","v":"Winchester"},{"$f":"[1]ACS_16_5YR_B07003_with_ann!D66","v":4119},{"$f":"[1]ACS_16_5YR_B07003_with_ann!E66","v":52},{"$f":"[1]ACS_16_5YR_B07003_with_ann!F66","v":1922},{"$f":"[1]ACS_16_5YR_B07003_with_ann!G66","v":182},{"$f":"[1]ACS_16_5YR_B07003_with_ann!H66","v":2197},{"$f":"[1]ACS_16_5YR_B07003_with_ann!I66","v":177},{"$f":"[1]ACS_16_5YR_B07003_with_ann!J66","v":3344},{"$f":"[1]ACS_16_5YR_B07003_with_ann!K66","v":336},{"$f":"[1]ACS_16_5YR_B07003_with_ann!L66","v":1625},{"$f":"[1]ACS_16_5YR_B07003_with_ann!M66","v":233},{"$f":"[1]ACS_16_5YR_B07003_with_ann!N66","v":1719},{"$f":"[1]ACS_16_5YR_B07003_with_ann!O66","v":233},{"$f":"[1]ACS_16_5YR_B07003_with_ann!P66","v":556},{"$f":"[1]ACS_16_5YR_B07003_with_ann!Q66","v":308},{"$f":"[1]ACS_16_5YR_B07003_with_ann!R66","v":179},{"$f":"[1]ACS_16_5YR_B07003_with_ann!S66","v":87},{"$f":"[1]ACS_16_5YR_B07003_with_ann!T66","v":377},{"$f":"[1]ACS_16_5YR_B07003_with_ann!U66","v":238},{"$f":"[1]ACS_16_5YR_B07003_with_ann!V66","v":33},{"$f":"[1]ACS_16_5YR_B07003_with_ann!W66","v":39},{"$f":"[1]ACS_16_5YR_B07003_with_ann!X66","v":23},{"$f":"[1]ACS_16_5YR_B07003_with_ann!Y66","v":36},{"$f":"[1]ACS_16_5YR_B07003_with_ann!Z66","v":10},{"$f":"[1]ACS_16_5YR_B07003_with_ann!AA66","v":15},{"$f":"[1]ACS_16_5YR_B07003_with_ann!AB66","v":186},{"$f":"[1]ACS_16_5YR_B07003_with_ann!AC66","v":161},{"$f":"[1]ACS_16_5YR_B07003_with_ann!AD66","v":95},{"$f":"[1]ACS_16_5YR_B07003_with_ann!AE66","v":74},{"$f":"[1]ACS_16_5YR_B07003_with_ann!AF66","v":91},{"$f":"[1]ACS_16_5YR_B07003_with_ann!AG66","v":90},{"$f":"[1]ACS_16_5YR_B07003_with_ann!AH66","v":0},{"$f":"[1]ACS_16_5YR_B07003_with_ann!AI66","v":12},{"$f":"[1]ACS_16_5YR_B07003_with_ann!AJ66","v":0},{"$f":"[1]ACS_16_5YR_B07003_with_ann!AK66","v":12},{"$f":"[1]ACS_16_5YR_B07003_with_ann!AL66","v":0},{"$f":"[1]ACS_16_5YR_B07003_with_ann!AM66","v":12}]
[]
[]
[null,null,null,null,{"$f":"$D$3","v":"Alstead"},null,{"$f":"$D$4","v":"Chesterfield"},null,{"$f":"$D$5","v":"Dublin"},null,{"$f":"$D$6","v":"Fitzwilliam"},null,{"$f":"$D$7","v":"Gilsum"},null,{"$f":"$D$8","v":"Harrisville"},null,{"$f":"$D$9","v":"Hinsdale"},null,{"$f":"$D$10","v":"Jaffrey"},null,{"$f":"$D$11","v":"Keene"},null,{"$f":"$D$12","v":"Marlborough"},null,{"$f":"$D$13","v":"Marlow"},null,{"$f":"$D$14","v":"Nelson"},null,{"$f":"$D$15","v":"Richmond"},null,{"$f":"$D$16","v":"Rindge"},null,{"$f":"$D$17","v":"Roxbury"},null,{"$f":"$D$18","v":"Stoddard"},null,{"$f":"$D$19","v":"Sullivan"},null,{"$f":"$D$20","v":"Surry"},null,{"$f":"$D$21","v":"Swanzey"},null,{"$f":"$D$22","v":"Troy"},null,{"$f":"$D$23","v":"Walpole"},null,{"$f":"$D$24","v":"Westmoreland"},null,{"$f":"$D$25","v":"Winchester"}]
[null,null,null,null,"Estimate","Margin of Error","Estimate","Margin of Error","Estimate","Margin of Error","Estimate","Margin of Error","Estimate","Margin of Error","Estimate","Margin of Error","Estimate","Margin of Error","Estimate","Margin of Error","Estimate","Margin of Error","Estimate","Margin of Error","Estimate","Margin of Error","Estimate","Margin of Error","Estimate","Margin of Error","Estimate","Margin of Error","Estimate","Margin of Error","Estimate","Margin of Error","Estimate","Margin of Error","Estimate","Margin of Error","Estimate","Margin of Error","Estimate","Margin of Error","Estimate","Margin of Error","Estimate","Margin of Error","Estimate","Margin of Error"]
[]
[null,null,null,"Estimate!!Total:",1593,170,3560,22,1695,217,2259,367,860,143,973,197,3965,16,5363,32,22791,67,2220,386,795,172,542,105,1098,247,6416,40,295,142,1198,162,672,127,948,245,7294,31,1889,275,3622,47,2014,333,4119,52]
[null,null,null,"Estimate!!Total:!!Male",770,116,1983,138,789,118,1197,217,446,87,461,95,2090,205,2738,213,11124,412,999,198,356,77,246,49,589,158,3135,186,135,70,588,98,342,79,386,71,3551,206,950,177,1770,156,890,172,1922,182]
[null,null,null,"Estimate!!Total:!!Female",823,95,1577,140,906,135,1062,182,414,74,512,109,1875,204,2625,216,11667,407,1221,234,439,110,296,67,509,121,3281,187,160,78,610,90,330,63,562,203,3743,209,939,136,1852,161,1124,216,2197,177]
[null,null,null,"Estimate!!Total:!!Same house 1 year ago:",1493,171,3058,290,1574,235,2074,358,801,127,884,195,3683,198,5046,122,18275,548,2026,356,658,150,500,107,991,244,5794,187,281,142,1134,159,617,122,763,145,6236,321,1662,284,3336,163,1910,324,3344,336]
[null,null,null,"Estimate!!Total:!!Same house 1 year ago:!!Male",710,112,1751,225,707,126,1112,216,422,78,414,95,1916,236,2568,222,8998,421,916,180,308,72,223,50,542,155,2842,190,130,70,560,96,316,79,358,74,2966,229,858,174,1625,174,860,167,1625,233]
[null,null,null,"Estimate!!Total:!!Same house 1 year ago:!!Female",783,98,1307,175,867,135,962,171,379,70,470,106,1767,217,2478,209,9277,392,1110,221,350,93,277,67,449,116,2952,216,151,78,574,88,301,57,405,79,3270,244,804,143,1711,168,1050,212,1719,233]
[null,null,null,"Estimate!!Total:!!Moved within same county:",9,13,274,188,64,46,7,10,25,29,39,25,136,123,172,122,2629,551,128,79,53,47,17,14,66,58,190,100,10,8,4,6,22,17,44,40,812,309,103,56,166,132,50,54,556,308]
[null,null,null,"Estimate!!Total:!!Moved within same county:!!Male",4,7,153,112,47,37,7,10,11,12,19,15,75,65,79,80,1228,387,43,37,17,19,8,7,23,21,87,55,4,3,4,6,9,10,17,18,440,170,49,38,61,75,5,9,179,87]
[null,null,null,"Estimate!!Total:!!Moved within same county:!!Female",5,7,121,88,17,14,0,12,14,18,20,15,61,65,93,64,1401,284,85,49,36,30,9,8,43,49,103,63,6,6,0,12,13,9,27,22,372,163,54,31,105,74,45,53,377,238]
[null,null,null,"Estimate!!Total:!!Moved from different county within same state:",19,22,86,129,17,25,0,12,14,13,9,11,51,60,49,52,561,188,47,63,39,53,9,8,2,7,103,65,0,12,29,22,17,15,3,5,32,35,5,9,54,44,7,10,33,39]
[null,null,null,"Estimate!!Total:!!Moved from different county within same state:!!Male",4,6,17,26,17,25,0,12,8,8,4,6,39,57,30,40,413,141,32,44,17,24,7,6,0,12,44,34,0,12,18,14,11,11,0,12,32,35,5,9,41,35,4,5,23,36]
[null,null,null,"Estimate!!Total:!!Moved from different county within same state:!!Female",15,17,69,104,0,12,0,12,6,10,5,6,12,20,19,31,148,95,15,20,22,31,2,3,2,7,59,43,0,12,11,10,6,6,3,5,0,17,0,12,13,14,3,5,10,15]
[null,null,null,"Estimate!!Total:!!Moved from different state:",72,43,142,94,35,30,178,152,20,19,41,28,95,86,96,89,1277,275,19,17,45,53,7,7,39,31,319,129,4,7,31,28,16,15,136,163,177,111,119,98,66,55,47,37,186,161]
[null,null,null,"Estimate!!Total:!!Moved from different state:!!Male",52,32,62,56,13,14,78,72,5,4,24,18,60,66,61,66,436,139,8,9,14,13,4,4,24,19,152,83,1,3,6,6,6,6,11,10,98,87,38,28,43,43,21,20,95,74]
[null,null,null,"Estimate!!Total:!!Moved from different state:!!Female",20,17,80,68,22,26,100,84,15,16,17,15,35,40,35,61,841,203,11,12,31,43,3,5,15,13,167,91,3,5,25,23,10,14,125,167,79,55,81,79,23,36,26,28,91,90]
[null,null,null,"Estimate!!Total:!!Moved from abroad:",0,12,0,12,5,7,0,12,0,12,0,12,0,12,0,17,49,36,0,12,0,12,9,13,0,12,10,15,0,12,0,12,0,12,2,4,37,42,0,12,0,12,0,12,0,12]
[null,null,null,"Estimate!!Total:!!Moved from abroad:!!Male",0,12,0,12,5,7,0,12,0,12,0,12,0,12,0,17,49,36,0,12,0,12,4,7,0,12,10,15,0,12,0,12,0,12,0,12,15,22,0,12,0,12,0,12,0,12]
[null,null,null,"Estimate!!Total:!!Moved from abroad:!!Female",0,12,0,12,0,12,0,12,0,12,0,12,0,12,0,17,0,22,0,12,0,12,5,6,0,12,0,17,0,12,0,12,0,12,2,4,22,39,0,12,0,12,0,12,0,12]

{"sheet":"SData_B08303Commuting","index":24,"n_rows":43,"n_cols":50,"rows_kept":43,"cut":false,"hidden":true,"merged":[]}
["GEO_ID","GEO_ID2","SUMLEVEL",{"$f":"[1]ACS_16_5YR_B08303_with_ann!C1","v":"NAME"},{"$f":"[1]ACS_16_5YR_B08303_with_ann!D1","v":"B08303_001E"},{"$f":"[1]ACS_16_5YR_B08303_with_ann!E1","v":"B08303_001M"},{"$f":"[1]ACS_16_5YR_B08303_with_ann!F1","v":"B08303_002E"},{"$f":"[1]ACS_16_5YR_B08303_with_ann!G1","v":"B08303_002M"},{"$f":"[1]ACS_16_5YR_B08303_with_ann!H1","v":"B08303_003E"},{"$f":"[1]ACS_16_5YR_B08303_with_ann!I1","v":"B08303_003M"},{"$f":"[1]ACS_16_5YR_B08303_with_ann!J1","v":"B08303_004E"},{"$f":"[1]ACS_16_5YR_B08303_with_ann!K1","v":"B08303_004M"},{"$f":"[1]ACS_16_5YR_B08303_with_ann!L1","v":"B08303_005E"},{"$f":"[1]ACS_16_5YR_B08303_with_ann!M1","v":"B08303_005M"},{"$f":"[1]ACS_16_5YR_B08303_with_ann!N1","v":"B08303_006E"},{"$f":"[1]ACS_16_5YR_B08303_with_ann!O1","v":"B08303_006M"},{"$f":"[1]ACS_16_5YR_B08303_with_ann!P1","v":"B08303_007E"},{"$f":"[1]ACS_16_5YR_B08303_with_ann!Q1","v":"B08303_007M"},{"$f":"[1]ACS_16_5YR_B08303_with_ann!R1","v":"B08303_008E"},{"$f":"[1]ACS_16_5YR_B08303_with_ann!S1","v":"B08303_008M"},{"$f":"[1]ACS_16_5YR_B08303_with_ann!T1","v":"B08303_009E"},{"$f":"[1]ACS_16_5YR_B08303_with_ann!U1","v":"B08303_009M"},{"$f":"[1]ACS_16_5YR_B08303_with_ann!V1","v":"B08303_010E"},{"$f":"[1]ACS_16_5YR_B08303_with_ann!W1","v":"B08303_010M"},{"$f":"[1]ACS_16_5YR_B08303_with_ann!X1","v":"B08303_011E"},{"$f":"[1]ACS_16_5YR_B08303_with_ann!Y1","v":"B08303_011M"},{"$f":"[1]ACS_16_5YR_B08303_with_ann!Z1","v":"B08303_012E"},{"$f":"[1]ACS_16_5YR_B08303_with_ann!AA1","v":"B08303_012M"},{"$f":"[1]ACS_16_5YR_B08303_with_ann!AB1","v":"B08303_013E"},{"$f":"[1]ACS_16_5YR_B08303_with_ann!AC1","v":"B08303_013M"}]
["Geography Identifier","Geography Identifier","Geographic Summary Level",{"$f":"[1]ACS_16_5YR_B08303_with_ann!C2","v":"Geographic Area Name"},{"$f":"[1]ACS_16_5YR_B08303_with_ann!D2","v":"Estimate!!Total:"},{"$f":"[1]ACS_16_5YR_B08303_with_ann!E2","v":"Margin of Error!!Total:"},{"$f":"[1]ACS_16_5YR_B08303_with_ann!F2","v":"Estimate!!Total:!!Less than 5 minutes"},{"$f":"[1]ACS_16_5YR_B08303_with_ann!G2","v":"Margin of Error!!Total:!!Less than 5 minutes"},{"$f":"[1]ACS_16_5YR_B08303_with_ann!H2","v":"Estimate!!Total:!!5 to 9 minutes"},{"$f":"[1]ACS_16_5YR_B08303_with_ann!I2","v":"Margin of Error!!Total:!!5 to 9 minutes"},{"$f":"[1]ACS_16_5YR_B08303_with_ann!J2","v":"Estimate!!Total:!!10 to 14 minutes"},{"$f":"[1]ACS_16_5YR_B08303_with_ann!K2","v":"Margin of Error!!Total:!!10 to 14 minutes"},{"$f":"[1]ACS_16_5YR_B08303_with_ann!L2","v":"Estimate!!Total:!!15 to 19 minutes"},{"$f":"[1]ACS_16_5YR_B08303_with_ann!M2","v":"Margin of Error!!Total:!!15 to 19 minutes"},{"$f":"[1]ACS_16_5YR_B08303_with_ann!N2","v":"Estimate!!Total:!!20 to 24 minutes"},{"$f":"[1]ACS_16_5YR_B08303_with_ann!O2","v":"Margin of Error!!Total:!!20 to 24 minutes"},{"$f":"[1]ACS_16_5YR_B08303_with_ann!P2","v":"Estimate!!Total:!!25 to 29 minutes"},{"$f":"[1]ACS_16_5YR_B08303_with_ann!Q2","v":"Margin of Error!!Total:!!25 to 29 minutes"},{"$f":"[1]ACS_16_5YR_B08303_with_ann!R2","v":"Estimate!!Total:!!30 to 34 minutes"},{"$f":"[1]ACS_16_5YR_B08303_with_ann!S2","v":"Margin of Error!!Total:!!30 to 34 minutes"},{"$f":"[1]ACS_16_5YR_B08303_with_ann!T2","v":"Estimate!!Total:!!35 to 39 minutes"},{"$f":"[1]ACS_16_5YR_B08303_with_ann!U2","v":"Margin of Error!!Total:!!35 to 39 minutes"},{"$f":"[1]ACS_16_5YR_B08303_with_ann!V2","v":"Estimate!!Total:!!40 to 44 minutes"},{"$f":"[1]ACS_16_5YR_B08303_with_ann!W2","v":"Margin of Error!!Total:!!40 to 44 minutes"},{"$f":"[1]ACS_16_5YR_B08303_with_ann!X2","v":"Estimate!!Total:!!45 to 59 minutes"},{"$f":"[1]ACS_16_5YR_B08303_with_ann!Y2","v":"Margin of Error!!Total:!!45 to 59 minutes"},{"$f":"[1]ACS_16_5YR_B08303_with_ann!Z2","v":"Estimate!!Total:!!60 to 89 minutes"},{"$f":"[1]ACS_16_5YR_B08303_with_ann!AA2","v":"Margin of Error!!Total:!!60 to 89 minutes"},{"$f":"[1]ACS_16_5YR_B08303_with_ann!AB2","v":"Estimate!!Total:!!90 or more minutes"},{"$f":"[1]ACS_16_5YR_B08303_with_ann!AC2","v":"Margin of Error!!Total:!!90 or more minutes"}]
["0600000US3300500820","0600000US3300500820","060",{"$f":"[1]ACS_16_5YR_B08303_with_ann!C44","v":"Alstead"},{"$f":"[1]ACS_16_5YR_B08303_with_ann!D44","v":635},{"$f":"[1]ACS_16_5YR_B08303_with_ann!E44","v":107},{"$f":"[1]ACS_16_5YR_B08303_with_ann!F44","v":6},{"$f":"[1]ACS_16_5YR_B08303_with_ann!G44","v":8},{"$f":"[1]ACS_16_5YR_B08303_with_ann!H44","v":14},{"$f":"[1]ACS_16_5YR_B08303_with_ann!I44","v":12},{"$f":"[1]ACS_16_5YR_B08303_with_ann!J44","v":96},{"$f":"[1]ACS_16_5YR_B08303_with_ann!K44","v":37},{"$f":"[1]ACS_16_5YR_B08303_with_ann!L44","v":38},{"$f":"[1]ACS_16_5YR_B08303_with_ann!M44","v":20},{"$f":"[1]ACS_16_5YR_B08303_with_ann!N44","v":143},{"$f":"[1]ACS_16_5YR_B08303_with_ann!O44","v":58},{"$f":"[1]ACS_16_5YR_B08303_with_ann!P44","v":40},{"$f":"[1]ACS_16_5YR_B08303_with_ann!Q44","v":28},{"$f":"[1]ACS_16_5YR_B08303_with_ann!R44","v":95},{"$f":"[1]ACS_16_5YR_B08303_with_ann!S44","v":36},{"$f":"[1]ACS_16_5YR_B08303_with_ann!T44","v":17},{"$f":"[1]ACS_16_5YR_B08303_with_ann!U44","v":14},{"$f":"[1]ACS_16_5YR_B08303_with_ann!V44","v":49},{"$f":"[1]ACS_16_5YR_B08303_with_ann!W44","v":31},{"$f":"[1]ACS_16_5YR_B08303_with_ann!X44","v":60},{"$f":"[1]ACS_16_5YR_B08303_with_ann!Y44","v":31},{"$f":"[1]ACS_16_5YR_B08303_with_ann!Z44","v":42},{"$f":"[1]ACS_16_5YR_B08303_with_ann!AA44","v":29},{"$f":"[1]ACS_16_5YR_B08303_with_ann!AB44","v":35},{"$f":"[1]ACS_16_5YR_B08303_with_ann!AC44","v":26}]
["0600000US3300512260","0600000US3300512260","060",{"$f":"[1]ACS_16_5YR_B08303_with_ann!C45","v":"Chesterfield"},{"$f":"[1]ACS_16_5YR_B08303_with_ann!D45","v":1600},{"$f":"[1]ACS_16_5YR_B08303_with_ann!E45","v":230},{"$f":"[1]ACS_16_5YR_B08303_with_ann!F45","v":46},{"$f":"[1]ACS_16_5YR_B08303_with_ann!G45","v":48},{"$f":"[1]ACS_16_5YR_B08303_with_ann!H45","v":75},{"$f":"[1]ACS_16_5YR_B08303_with_ann!I45","v":74},{"$f":"[1]ACS_16_5YR_B08303_with_ann!J45","v":184},{"$f":"[1]ACS_16_5YR_B08303_with_ann!K45","v":120},{"$f":"[1]ACS_16_5YR_B08303_with_ann!L45","v":479},{"$f":"[1]ACS_16_5YR_B08303_with_ann!M45","v":199},{"$f":"[1]ACS_16_5YR_B08303_with_ann!N45","v":314},{"$f":"[1]ACS_16_5YR_B08303_with_ann!O45","v":212},{"$f":"[1]ACS_16_5YR_B08303_with_ann!P45","v":125},{"$f":"[1]ACS_16_5YR_B08303_with_ann!Q45","v":91},{"$f":"[1]ACS_16_5YR_B08303_with_ann!R45","v":106},{"$f":"[1]ACS_16_5YR_B08303_with_ann!S45","v":75},{"$f":"[1]ACS_16_5YR_B08303_with_ann!T45","v":18},{"$f":"[1]ACS_16_5YR_B08303_with_ann!U45","v":27},{"$f":"[1]ACS_16_5YR_B08303_with_ann!V45","v":53},{"$f":"[1]ACS_16_5YR_B08303_with_ann!W45","v":68},{"$f":"[1]ACS_16_5YR_B08303_with_ann!X45","v":79},{"$f":"[1]ACS_16_5YR_B08303_with_ann!Y45","v":62},{"$f":"[1]ACS_16_5YR_B08303_with_ann!Z45","v":71},{"$f":"[1]ACS_16_5YR_B08303_with_ann!AA45","v":72},{"$f":"[1]ACS_16_5YR_B08303_with_ann!AB45","v":50},{"$f":"[1]ACS_16_5YR_B08303_with_ann!AC45","v":57}]
["0600000US3300519140","0600000US3300519140","060",{"$f":"[1]ACS_16_5YR_B08303_with_ann!C46","v":"Dublin"},{"$f":"[1]ACS_16_5YR_B08303_with_ann!D46","v":632},{"$f":"[1]ACS_16_5YR_B08303_with_ann!E46","v":118},{"$f":"[1]ACS_16_5YR_B08303_with_ann!F46","v":20},{"$f":"[1]ACS_16_5YR_B08303_with_ann!G46","v":15},{"$f":"[1]ACS_16_5YR_B08303_with_ann!H46","v":80},{"$f":"[1]ACS_16_5YR_B08303_with_ann!I46","v":43},{"$f":"[1]ACS_16_5YR_B08303_with_ann!J46","v":84},{"$f":"[1]ACS_16_5YR_B08303_with_ann!K46","v":30},{"$f":"[1]ACS_16_5YR_B08303_with_ann!L46","v":93},{"$f":"[1]ACS_16_5YR_B08303_with_ann!M46","v":44},{"$f":"[1]ACS_16_5YR_B08303_with_ann!N46","v":114},{"$f":"[1]ACS_16_5YR_B08303_with_ann!O46","v":75},{"$f":"[1]ACS_16_5YR_B08303_with_ann!P46","v":69},{"$f":"[1]ACS_16_5YR_B08303_with_ann!Q46","v":33},{"$f":"[1]ACS_16_5YR_B08303_with_ann!R46","v":59},{"$f":"[1]ACS_16_5YR_B08303_with_ann!S46","v":33},{"$f":"[1]ACS_16_5YR_B08303_with_ann!T46","v":8},{"$f":"[1]ACS_16_5YR_B08303_with_ann!U46","v":11},{"$f":"[1]ACS_16_5YR_B08303_with_ann!V46","v":2},{"$f":"[1]ACS_16_5YR_B08303_with_ann!W46","v":4},{"$f":"[1]ACS_16_5YR_B08303_with_ann!X46","v":28},{"$f":"[1]ACS_16_5YR_B08303_with_ann!Y46","v":17},{"$f":"[1]ACS_16_5YR_B08303_with_ann!Z46","v":14},{"$f":"[1]ACS_16_5YR_B08303_with_ann!AA46","v":10},{"$f":"[1]ACS_16_5YR_B08303_with_ann!AB46","v":61},{"$f":"[1]ACS_16_5YR_B08303_with_ann!AC46","v":31}]
["0600000US3300526500","0600000US3300526500","060",{"$f":"[1]ACS_16_5YR_B08303_with_ann!C47","v":"Fitzwilliam"},{"$f":"[1]ACS_16_5YR_B08303_with_ann!D47","v":1023},{"$f":"[1]ACS_16_5YR_B08303_with_ann!E47","v":232},{"$f":"[1]ACS_16_5YR_B08303_with_ann!F47","v":19},{"$f":"[1]ACS_16_5YR_B08303_with_ann!G47","v":23},{"$f":"[1]ACS_16_5YR_B08303_with_ann!H47","v":27},{"$f":"[1]ACS_16_5YR_B08303_with_ann!I47","v":15},{"$f":"[1]ACS_16_5YR_B08303_with_ann!J47","v":27},{"$f":"[1]ACS_16_5YR_B08303_with_ann!K47","v":19},{"$f":"[1]ACS_16_5YR_B08303_with_ann!L47","v":84},{"$f":"[1]ACS_16_5YR_B08303_with_ann!M47","v":61},{"$f":"[1]ACS_16_5YR_B08303_with_ann!N47","v":154},{"$f":"[1]ACS_16_5YR_B08303_with_ann!O47","v":60},{"$f":"[1]ACS_16_5YR_B08303_with_ann!P47","v":31},{"$f":"[1]ACS_16_5YR_B08303_with_ann!Q47","v":20},{"$f":"[1]ACS_16_5YR_B08303_with_ann!R47","v":160},{"$f":"[1]ACS_16_5YR_B08303_with_ann!S47","v":56},{"$f":"[1]ACS_16_5YR_B08303_with_ann!T47","v":180},{"$f":"[1]ACS_16_5YR_B08303_with_ann!U47","v":162},{"$f":"[1]ACS_16_5YR_B08303_with_ann!V47","v":9},{"$f":"[1]ACS_16_5YR_B08303_with_ann!W47","v":10},{"$f":"[1]ACS_16_5YR_B08303_with_ann!X47","v":149},{"$f":"[1]ACS_16_5YR_B08303_with_ann!Y47","v":80},{"$f":"[1]ACS_16_5YR_B08303_with_ann!Z47","v":91},{"$f":"[1]ACS_16_5YR_B08303_with_ann!AA47","v":57},{"$f":"[1]ACS_16_5YR_B08303_with_ann!AB47","v":92},{"$f":"[1]ACS_16_5YR_B08303_with_ann!AC47","v":56}]
["0600000US3300529220","0600000US3300529220","060",{"$f":"[1]ACS_16_5YR_B08303_with_ann!C48","v":"Gilsum"},{"$f":"[1]ACS_16_5YR_B08303_with_ann!D48","v":431},{"$f":"[1]ACS_16_5YR_B08303_with_ann!E48","v":88},{"$f":"[1]ACS_16_5YR_B08303_with_ann!F48","v":16},{"$f":"[1]ACS_16_5YR_B08303_with_ann!G48","v":14},{"$f":"[1]ACS_16_5YR_B08303_with_ann!H48","v":15},{"$f":"[1]ACS_16_5YR_B08303_with_ann!I48","v":10},{"$f":"[1]ACS_16_5YR_B08303_with_ann!J48","v":17},{"$f":"[1]ACS_16_5YR_B08303_with_ann!K48","v":9},{"$f":"[1]ACS_16_5YR_B08303_with_ann!L48","v":97},{"$f":"[1]ACS_16_5YR_B08303_with_ann!M48","v":42},{"$f":"[1]ACS_16_5YR_B08303_with_ann!N48","v":114},{"$f":"[1]ACS_16_5YR_B08303_with_ann!O48","v":42},{"$f":"[1]ACS_16_5YR_B08303_with_ann!P48","v":35},{"$f":"[1]ACS_16_5YR_B08303_with_ann!Q48","v":23},{"$f":"[1]ACS_16_5YR_B08303_with_ann!R48","v":45},{"$f":"[1]ACS_16_5YR_B08303_with_ann!S48","v":18},{"$f":"[1]ACS_16_5YR_B08303_with_ann!T48","v":7},{"$f":"[1]ACS_16_5YR_B08303_with_ann!U48","v":11},{"$f":"[1]ACS_16_5YR_B08303_with_ann!V48","v":12},{"$f":"[1]ACS_16_5YR_B08303_with_ann!W48","v":12},{"$f":"[1]ACS_16_5YR_B08303_with_ann!X48","v":32},{"$f":"[1]ACS_16_5YR_B08303_with_ann!Y48","v":17},{"$f":"[1]ACS_16_5YR_B08303_with_ann!Z48","v":25},{"$f":"[1]ACS_16_5YR_B08303_with_ann!AA48","v":16},{"$f":"[1]ACS_16_5YR_B08303_with_ann!AB48","v":16},{"$f":"[1]ACS_16_5YR_B08303_with_ann!AC48","v":9}]
["0600000US3300534420","0600000US3300534420","060",{"$f":"[1]ACS_16_5YR_B08303_with_ann!C49","v":"Harrisville"},{"$f":"[1]ACS_16_5YR_B08303_with_ann!D49","v":404},{"$f":"[1]ACS_16_5YR_B08303_with_ann!E49","v":115},{"$f":"[1]ACS_16_5YR_B08303_with_ann!F49","v":14},{"$f":"[1]ACS_16_5YR_B08303_with_ann!G49","v":15},{"$f":"[1]ACS_16_5YR_B08303_with_ann!H49","v":5},{"$f":"[1]ACS_16_5YR_B08303_with_ann!I49","v":7},{"$f":"[1]ACS_16_5YR_B08303_with_ann!J49","v":63},{"$f":"[1]ACS_16_5YR_B08303_with_ann!K49","v":39},{"$f":"[1]ACS_16_5YR_B08303_with_ann!L49","v":70},{"$f":"[1]ACS_16_5YR_B08303_with_ann!M49","v":50},{"$f":"[1]ACS_16_5YR_B08303_with_ann!N49","v":66},{"$f":"[1]ACS_16_5YR_B08303_with_ann!O49","v":29},{"$f":"[1]ACS_16_5YR_B08303_with_ann!P49","v":47},{"$f":"[1]ACS_16_5YR_B08303_with_ann!Q49","v":22},{"$f":"[1]ACS_16_5YR_B08303_with_ann!R49","v":61},{"$f":"[1]ACS_16_5YR_B08303_with_ann!S49","v":37},{"$f":"[1]ACS_16_5YR_B08303_with_ann!T49","v":13},{"$f":"[1]ACS_16_5YR_B08303_with_ann!U49","v":11},{"$f":"[1]ACS_16_5YR_B08303_with_ann!V49","v":0},{"$f":"[1]ACS_16_5YR_B08303_with_ann!W49","v":12},{"$f":"[1]ACS_16_5YR_B08303_with_ann!X49","v":30},{"$f":"[1]ACS_16_5YR_B08303_with_ann!Y49","v":21},{"$f":"[1]ACS_16_5YR_B08303_with_ann!Z49","v":21},{"$f":"[1]ACS_16_5YR_B08303_with_ann!AA49","v":20},{"$f":"[1]ACS_16_5YR_B08303_with_ann!AB49","v":14},{"$f":"[1]ACS_16_5YR_B08303_with_ann!AC49","v":11}]
["0600000US3300536660","0600000US3300536660","060",{"$f":"[1]ACS_16_5YR_B08303_with_ann!C50","v":"Hinsdale"},{"$f":"[1]ACS_16_5YR_B08303_with_ann!D50","v":1913},{"$f":"[1]ACS_16_5YR_B08303_with_ann!E50","v":275},{"$f":"[1]ACS_16_5YR_B08303_with_ann!F50","v":347},{"$f":"[1]ACS_16_5YR_B08303_with_ann!G50","v":237},{"$f":"[1]ACS_16_5YR_B08303_with_ann!H50","v":106},{"$f":"[1]ACS_16_5YR_B08303_with_ann!I50","v":85},{"$f":"[1]ACS_16_5YR_B08303_with_ann!J50","v":251},{"$f":"[1]ACS_16_5YR_B08303_with_ann!K50","v":123},{"$f":"[1]ACS_16_5YR_B08303_with_ann!L50","v":608},{"$f":"[1]ACS_16_5YR_B08303_with_ann!M50","v":200},{"$f":"[1]ACS_16_5YR_B08303_with_ann!N50","v":165},{"$f":"[1]ACS_16_5YR_B08303_with_ann!O50","v":107},{"$f":"[1]ACS_16_5YR_B08303_with_ann!P50","v":37},{"$f":"[1]ACS_16_5YR_B08303_with_ann!Q50","v":34},{"$f":"[1]ACS_16_5YR_B08303_with_ann!R50","v":60},{"$f":"[1]ACS_16_5YR_B08303_with_ann!S50","v":53},{"$f":"[1]ACS_16_5YR_B08303_with_ann!T50","v":101},{"$f":"[1]ACS_16_5YR_B08303_with_ann!U50","v":62},{"$f":"[1]ACS_16_5YR_B08303_with_ann!V50","v":71},{"$f":"[1]ACS_16_5YR_B08303_with_ann!W50","v":57},{"$f":"[1]ACS_16_5YR_B08303_with_ann!X50","v":69},{"$f":"[1]ACS_16_5YR_B08303_with_ann!Y50","v":51},{"$f":"[1]ACS_16_5YR_B08303_with_ann!Z50","v":48},{"$f":"[1]ACS_16_5YR_B08303_with_ann!AA50","v":63},{"$f":"[1]ACS_16_5YR_B08303_with_ann!AB50","v":50},{"$f":"[1]ACS_16_5YR_B08303_with_ann!AC50","v":56}]
["0600000US3300538500","0600000US3300538500","060",{"$f":"[1]ACS_16_5YR_B08303_with_ann!C51","v":"Jaffrey"},{"$f":"[1]ACS_16_5YR_B08303_with_ann!D51","v":2529},{"$f":"[1]ACS_16_5YR_B08303_with_ann!E51","v":322},{"$f":"[1]ACS_16_5YR_B08303_with_ann!F51","v":144},{"$f":"[1]ACS_16_5YR_B08303_with_ann!G51","v":88},{"$f":"[1]ACS_16_5YR_B08303_with_ann!H51","v":572},{"$f":"[1]ACS_16_5YR_B08303_with_ann!I51","v":295},{"$f":"[1]ACS_16_5YR_B08303_with_ann!J51","v":430},{"$f":"[1]ACS_16_5YR_B08303_with_ann!K51","v":202},{"$f":"[1]ACS_16_5YR_B08303_with_ann!L51","v":160},{"$f":"[1]ACS_16_5YR_B08303_with_ann!M51","v":90},{"$f":"[1]ACS_16_5YR_B08303_with_ann!N51","v":175},{"$f":"[1]ACS_16_5YR_B08303_with_ann!O51","v":87},{"$f":"[1]ACS_16_5YR_B08303_with_ann!P51","v":62},{"$f":"[1]ACS_16_5YR_B08303_with_ann!Q51","v":61},{"$f":"[1]ACS_16_5YR_B08303_with_ann!R51","v":302},{"$f":"[1]ACS_16_5YR_B08303_with_ann!S51","v":197},{"$f":"[1]ACS_16_5YR_B08303_with_ann!T51","v":9},{"$f":"[1]ACS_16_5YR_B08303_with_ann!U51","v":19},{"$f":"[1]ACS_16_5YR_B08303_with_ann!V51","v":233},{"$f":"[1]ACS_16_5YR_B08303_with_ann!W51","v":170},{"$f":"[1]ACS_16_5YR_B08303_with_ann!X51","v":130},{"$f":"[1]ACS_16_5YR_B08303_with_ann!Y51","v":111},{"$f":"[1]ACS_16_5YR_B08303_with_ann!Z51","v":195},{"$f":"[1]ACS_16_5YR_B08303_with_ann!AA51","v":109},{"$f":"[1]ACS_16_5YR_B08303_with_ann!AB51","v":117},{"$f":"[1]ACS_16_5YR_B08303_with_ann!AC51","v":119}]
["0600000US3300539300","0600000US3300539300","060",{"$f":"[1]ACS_16_5YR_B08303_with_ann!C52","v":"Keene"},{"$f":"[1]ACS_16_5YR_B08303_with_ann!D52","v":10027},{"$f":"[1]ACS_16_5YR_B08303_with_ann!E52","v":496},{"$f":"[1]ACS_16_5YR_B08303_with_ann!F52","v":799},{"$f":"[1]ACS_16_5YR_B08303_with_ann!G52","v":205},{"$f":"[1]ACS_16_5YR_B08303_with_ann!H52","v":2988},{"$f":"[1]ACS_16_5YR_B08303_with_ann!I52","v":430},{"$f":"[1]ACS_16_5YR_B08303_with_ann!J52","v":2478},{"$f":"[1]ACS_16_5YR_B08303_with_ann!K52","v":417},{"$f":"[1]ACS_16_5YR_B08303_with_ann!L52","v":1021},{"$f":"[1]ACS_16_5YR_B08303_with_ann!M52","v":244},{"$f":"[1]ACS_16_5YR_B08303_with_ann!N52","v":751},{"$f":"[1]ACS_16_5YR_B08303_with_ann!O52","v":202},{"$f":"[1]ACS_16_5YR_B08303_with_ann!P52","v":293},{"$f":"[1]ACS_16_5YR_B08303_with_ann!Q52","v":144},{"$f":"[1]ACS_16_5YR_B08303_with_ann!R52","v":571},{"$f":"[1]ACS_16_5YR_B08303_with_ann!S52","v":216},{"$f":"[1]ACS_16_5YR_B08303_with_ann!T52","v":344},{"$f":"[1]ACS_16_5YR_B08303_with_ann!U52","v":119},{"$f":"[1]ACS_16_5YR_B08303_with_ann!V52","v":139},{"$f":"[1]ACS_16_5YR_B08303_with_ann!W52","v":75},{"$f":"[1]ACS_16_5YR_B08303_with_ann!X52","v":235},{"$f":"[1]ACS_16_5YR_B08303_with_ann!Y52","v":103},{"$f":"[1]ACS_16_5YR_B08303_with_ann!Z52","v":220},{"$f":"[1]ACS_16_5YR_B08303_with_ann!AA52","v":108},{"$f":"[1]ACS_16_5YR_B08303_with_ann!AB52","v":188},{"$f":"[1]ACS_16_5YR_B08303_with_ann!AC52","v":125}]
["0600000US3300545460","0600000US3300545460","060",{"$f":"[1]ACS_16_5YR_B08303_with_ann!C53","v":"Marlborough"},{"$f":"[1]ACS_16_5YR_B08303_with_ann!D53","v":990},{"$f":"[1]ACS_16_5YR_B08303_with_ann!E53","v":208},{"$f":"[1]ACS_16_5YR_B08303_with_ann!F53","v":51},{"$f":"[1]ACS_16_5YR_B08303_with_ann!G53","v":33},{"$f":"[1]ACS_16_5YR_B08303_with_ann!H53","v":86},{"$f":"[1]ACS_16_5YR_B08303_with_ann!I53","v":43},{"$f":"[1]ACS_16_5YR_B08303_with_ann!J53","v":211},{"$f":"[1]ACS_16_5YR_B08303_with_ann!K53","v":104},{"$f":"[1]ACS_16_5YR_B08303_with_ann!L53","v":215},{"$f":"[1]ACS_16_5YR_B08303_with_ann!M53","v":108},{"$f":"[1]ACS_16_5YR_B08303_with_ann!N53","v":198},{"$f":"[1]ACS_16_5YR_B08303_with_ann!O53","v":82},{"$f":"[1]ACS_16_5YR_B08303_with_ann!P53","v":57},{"$f":"[1]ACS_16_5YR_B08303_with_ann!Q53","v":38},{"$f":"[1]ACS_16_5YR_B08303_with_ann!R53","v":81},{"$f":"[1]ACS_16_5YR_B08303_with_ann!S53","v":46},{"$f":"[1]ACS_16_5YR_B08303_with_ann!T53","v":10},{"$f":"[1]ACS_16_5YR_B08303_with_ann!U53","v":10},{"$f":"[1]ACS_16_5YR_B08303_with_ann!V53","v":14},{"$f":"[1]ACS_16_5YR_B08303_with_ann!W53","v":13},{"$f":"[1]ACS_16_5YR_B08303_with_ann!X53","v":24},{"$f":"[1]ACS_16_5YR_B08303_with_ann!Y53","v":23},{"$f":"[1]ACS_16_5YR_B08303_with_ann!Z53","v":34},{"$f":"[1]ACS_16_5YR_B08303_with_ann!AA53","v":28},{"$f":"[1]ACS_16_5YR_B08303_with_ann!AB53","v":9},{"$f":"[1]ACS_16_5YR_B08303_with_ann!AC53","v":9}]
["0600000US3300545700","0600000US3300545700","060",{"$f":"[1]ACS_16_5YR_B08303_with_ann!C54","v":"Marlow"},{"$f":"[1]ACS_16_5YR_B08303_with_ann!D54","v":347},{"$f":"[1]ACS_16_5YR_B08303_with_ann!E54","v":96},{"$f":"[1]ACS_16_5YR_B08303_with_ann!F54","v":0},{"$f":"[1]ACS_16_5YR_B08303_with_ann!G54","v":12},{"$f":"[1]ACS_16_5YR_B08303_with_ann!H54","v":18},{"$f":"[1]ACS_16_5YR_B08303_with_ann!I54","v":21},{"$f":"[1]ACS_16_5YR_B08303_with_ann!J54","v":12},{"$f":"[1]ACS_16_5YR_B08303_with_ann!K54","v":9},{"$f":"[1]ACS_16_5YR_B08303_with_ann!L54","v":11},{"$f":"[1]ACS_16_5YR_B08303_with_ann!M54","v":13},{"$f":"[1]ACS_16_5YR_B08303_with_ann!N54","v":61},{"$f":"[1]ACS_16_5YR_B08303_with_ann!O54","v":34},{"$f":"[1]ACS_16_5YR_B08303_with_ann!P54","v":32},{"$f":"[1]ACS_16_5YR_B08303_with_ann!Q54","v":18},{"$f":"[1]ACS_16_5YR_B08303_with_ann!R54","v":72},{"$f":"[1]ACS_16_5YR_B08303_with_ann!S54","v":39},{"$f":"[1]ACS_16_5YR_B08303_with_ann!T54","v":42},{"$f":"[1]ACS_16_5YR_B08303_with_ann!U54","v":33},{"$f":"[1]ACS_16_5YR_B08303_with_ann!V54","v":8},{"$f":"[1]ACS_16_5YR_B08303_with_ann!W54","v":7},{"$f":"[1]ACS_16_5YR_B08303_with_ann!X54","v":31},{"$f":"[1]ACS_16_5YR_B08303_with_ann!Y54","v":24},{"$f":"[1]ACS_16_5YR_B08303_with_ann!Z54","v":43},{"$f":"[1]ACS_16_5YR_B08303_with_ann!AA54","v":31},{"$f":"[1]ACS_16_5YR_B08303_with_ann!AB54","v":17},{"$f":"[1]ACS_16_5YR_B08303_with_ann!AC54","v":14}]
["0600000US3300550580","0600000US3300550580","060",{"$f":"[1]ACS_16_5YR_B08303_with_ann!C55","v":"Nelson"},{"$f":"[1]ACS_16_5YR_B08303_with_ann!D55","v":234},{"$f":"[1]ACS_16_5YR_B08303_with_ann!E55","v":65},{"$f":"[1]ACS_16_5YR_B08303_with_ann!F55","v":12},{"$f":"[1]ACS_16_5YR_B08303_with_ann!G55","v":12},{"$f":"[1]ACS_16_5YR_B08303_with_ann!H55","v":10},{"$f":"[1]ACS_16_5YR_B08303_with_ann!I55","v":7},{"$f":"[1]ACS_16_5YR_B08303_with_ann!J55","v":8},{"$f":"[1]ACS_16_5YR_B08303_with_ann!K55","v":6},{"$f":"[1]ACS_16_5YR_B08303_with_ann!L55","v":42},{"$f":"[1]ACS_16_5YR_B08303_with_ann!M55","v":18},{"$f":"[1]ACS_16_5YR_B08303_with_ann!N55","v":102},{"$f":"[1]ACS_16_5YR_B08303_with_ann!O55","v":45},{"$f":"[1]ACS_16_5YR_B08303_with_ann!P55","v":27},{"$f":"[1]ACS_16_5YR_B08303_with_ann!Q55","v":17},{"$f":"[1]ACS_16_5YR_B08303_with_ann!R55","v":6},{"$f":"[1]ACS_16_5YR_B08303_with_ann!S55","v":6},{"$f":"[1]ACS_16_5YR_B08303_with_ann!T55","v":3},{"$f":"[1]ACS_16_5YR_B08303_with_ann!U55","v":6},{"$f":"[1]ACS_16_5YR_B08303_with_ann!V55","v":2},{"$f":"[1]ACS_16_5YR_B08303_with_ann!W55","v":3},{"$f":"[1]ACS_16_5YR_B08303_with_ann!X55","v":2},{"$f":"[1]ACS_16_5YR_B08303_with_ann!Y55","v":3},{"$f":"[1]ACS_16_5YR_B08303_with_ann!Z55","v":12},{"$f":"[1]ACS_16_5YR_B08303_with_ann!AA55","v":12},{"$f":"[1]ACS_16_5YR_B08303_with_ann!AB55","v":8},{"$f":"[1]ACS_16_5YR_B08303_with_ann!AC55","v":6}]
["0600000US3300564420","0600000US3300564420","060",{"$f":"[1]ACS_16_5YR_B08303_with_ann!C56","v":"Richmond"},{"$f":"[1]ACS_16_5YR_B08303_with_ann!D56","v":449},{"$f":"[1]ACS_16_5YR_B08303_with_ann!E56","v":129},{"$f":"[1]ACS_16_5YR_B08303_with_ann!F56","v":6},{"$f":"[1]ACS_16_5YR_B08303_with_ann!G56","v":5},{"$f":"[1]ACS_16_5YR_B08303_with_ann!H56","v":10},{"$f":"[1]ACS_16_5YR_B08303_with_ann!I56","v":13},{"$f":"[1]ACS_16_5YR_B08303_with_ann!J56","v":46},{"$f":"[1]ACS_16_5YR_B08303_with_ann!K56","v":30},{"$f":"[1]ACS_16_5YR_B08303_with_ann!L56","v":42},{"$f":"[1]ACS_16_5YR_B08303_with_ann!M56","v":37},{"$f":"[1]ACS_16_5YR_B08303_with_ann!N56","v":35},{"$f":"[1]ACS_16_5YR_B08303_with_ann!O56","v":26},{"$f":"[1]ACS_16_5YR_B08303_with_ann!P56","v":50},{"$f":"[1]ACS_16_5YR_B08303_with_ann!Q56","v":41},{"$f":"[1]ACS_16_5YR_B08303_with_ann!R56","v":92},{"$f":"[1]ACS_16_5YR_B08303_with_ann!S56","v":46},{"$f":"[1]ACS_16_5YR_B08303_with_ann!T56","v":18},{"$f":"[1]ACS_16_5YR_B08303_with_ann!U56","v":15},{"$f":"[1]ACS_16_5YR_B08303_with_ann!V56","v":41},{"$f":"[1]ACS_16_5YR_B08303_with_ann!W56","v":37},{"$f":"[1]ACS_16_5YR_B08303_with_ann!X56","v":72},{"$f":"[1]ACS_16_5YR_B08303_with_ann!Y56","v":40},{"$f":"[1]ACS_16_5YR_B08303_with_ann!Z56","v":13},{"$f":"[1]ACS_16_5YR_B08303_with_ann!AA56","v":10},{"$f":"[1]ACS_16_5YR_B08303_with_ann!AB56","v":24},{"$f":"[1]ACS_16_5YR_B08303_with_ann!AC56","v":12}]
["0600000US3300564580","0600000US3300564580","060",{"$f":"[1]ACS_16_5YR_B08303_with_ann!C57","v":"Rindge"},{"$f":"[1]ACS_16_5YR_B08303_with_ann!D57","v":2516},{"$f":"[1]ACS_16_5YR_B08303_with_ann!E57","v":271},{"$f":"[1]ACS_16_5YR_B08303_with_ann!F57","v":180},{"$f":"[1]ACS_16_5YR_B08303_with_ann!G57","v":91},{"$f":"[1]ACS_16_5YR_B08303_with_ann!H57","v":473},{"$f":"[1]ACS_16_5YR_B08303_with_ann!I57","v":150},{"$f":"[1]ACS_16_5YR_B08303_with_ann!J57","v":220},{"$f":"[1]ACS_16_5YR_B08303_with_ann!K57","v":102},{"$f":"[1]ACS_16_5YR_B08303_with_ann!L57","v":240},{"$f":"[1]ACS_16_5YR_B08303_with_ann!M57","v":99},{"$f":"[1]ACS_16_5YR_B08303_with_ann!N57","v":202},{"$f":"[1]ACS_16_5YR_B08303_with_ann!O57","v":87},{"$f":"[1]ACS_16_5YR_B08303_with_ann!P57","v":129},{"$f":"[1]ACS_16_5YR_B08303_with_ann!Q57","v":100},{"$f":"[1]ACS_16_5YR_B08303_with_ann!R57","v":173},{"$f":"[1]ACS_16_5YR_B08303_with_ann!S57","v":87},{"$f":"[1]ACS_16_5YR_B08303_with_ann!T57","v":185},{"$f":"[1]ACS_16_5YR_B08303_with_ann!U57","v":104},{"$f":"[1]ACS_16_5YR_B08303_with_ann!V57","v":107},{"$f":"[1]ACS_16_5YR_B08303_with_ann!W57","v":78},{"$f":"[1]ACS_16_5YR_B08303_with_ann!X57","v":185},{"$f":"[1]ACS_16_5YR_B08303_with_ann!Y57","v":86},{"$f":"[1]ACS_16_5YR_B08303_with_ann!Z57","v":195},{"$f":"[1]ACS_16_5YR_B08303_with_ann!AA57","v":95},{"$f":"[1]ACS_16_5YR_B08303_with_ann!AB57","v":227},{"$f":"[1]ACS_16_5YR_B08303_with_ann!AC57","v":106}]
["0600000US3300565700","0600000US3300565700","060",{"$f":"[1]ACS_16_5YR_B08303_with_ann!C58","v":"Roxbury"},{"$f":"[1]ACS_16_5YR_B08303_with_ann!D58","v":139},{"$f":"[1]ACS_16_5YR_B08303_with_ann!E58","v":50},{"$f":"[1]ACS_16_5YR_B08303_with_ann!F58","v":2},{"$f":"[1]ACS_16_5YR_B08303_with_ann!G58","v":3},{"$f":"[1]ACS_16_5YR_B08303_with_ann!H58","v":26},{"$f":"[1]ACS_16_5YR_B08303_with_ann!I58","v":16},{"$f":"[1]ACS_16_5YR_B08303_with_ann!J58","v":43},{"$f":"[1]ACS_16_5YR_B08303_with_ann!K58","v":26},{"$f":"[1]ACS_16_5YR_B08303_with_ann!L58","v":17},{"$f":"[1]ACS_16_5YR_B08303_with_ann!M58","v":11},{"$f":"[1]ACS_16_5YR_B08303_with_ann!N58","v":19},{"$f":"[1]ACS_16_5YR_B08303_with_ann!O58","v":21},{"$f":"[1]ACS_16_5YR_B08303_with_ann!P58","v":11},{"$f":"[1]ACS_16_5YR_B08303_with_ann!Q58","v":17},{"$f":"[1]ACS_16_5YR_B08303_with_ann!R58","v":6},{"$f":"[1]ACS_16_5YR_B08303_with_ann!S58","v":5},{"$f":"[1]ACS_16_5YR_B08303_with_ann!T58","v":1},{"$f":"[1]ACS_16_5YR_B08303_with_ann!U58","v":2},{"$f":"[1]ACS_16_5YR_B08303_with_ann!V58","v":3},{"$f":"[1]ACS_16_5YR_B08303_with_ann!W58","v":3},{"$f":"[1]ACS_16_5YR_B08303_with_ann!X58","v":4},{"$f":"[1]ACS_16_5YR_B08303_with_ann!Y58","v":5},{"$f":"[1]ACS_16_5YR_B08303_with_ann!Z58","v":0},{"$f":"[1]ACS_16_5YR_B08303_with_ann!AA58","v":12},{"$f":"[1]ACS_16_5YR_B08303_with_ann!AB58","v":7},{"$f":"[1]ACS_16_5YR_B08303_with_ann!AC58","v":11}]
["0600000US3300573700","0600000US3300573700","060",{"$f":"[1]ACS_16_5YR_B08303_with_ann!C59","v":"Stoddard"},{"$f":"[1]ACS_16_5YR_B08303_with_ann!D59","v":551},{"$f":"[1]ACS_16_5YR_B08303_with_ann!E59","v":100},{"$f":"[1]ACS_16_5YR_B08303_with_ann!F59","v":6},{"$f":"[1]ACS_16_5YR_B08303_with_ann!G59","v":7},{"$f":"[1]ACS_16_5YR_B08303_with_ann!H59","v":15},{"$f":"[1]ACS_16_5YR_B08303_with_ann!I59","v":13},{"$f":"[1]ACS_16_5YR_B08303_with_ann!J59","v":7},{"$f":"[1]ACS_16_5YR_B08303_with_ann!K59","v":6},{"$f":"[1]ACS_16_5YR_B08303_with_ann!L59","v":45},{"$f":"[1]ACS_16_5YR_B08303_with_ann!M59","v":27},{"$f":"[1]ACS_16_5YR_B08303_with_ann!N59","v":112},{"$f":"[1]ACS_16_5YR_B08303_with_ann!O59","v":65},{"$f":"[1]ACS_16_5YR_B08303_with_ann!P59","v":71},{"$f":"[1]ACS_16_5YR_B08303_with_ann!Q59","v":28},{"$f":"[1]ACS_16_5YR_B08303_with_ann!R59","v":83},{"$f":"[1]ACS_16_5YR_B08303_with_ann!S59","v":31},{"$f":"[1]ACS_16_5YR_B08303_with_ann!T59","v":60},{"$f":"[1]ACS_16_5YR_B08303_with_ann!U59","v":36},{"$f":"[1]ACS_16_5YR_B08303_with_ann!V59","v":10},{"$f":"[1]ACS_16_5YR_B08303_with_ann!W59","v":9},{"$f":"[1]ACS_16_5YR_B08303_with_ann!X59","v":76},{"$f":"[1]ACS_16_5YR_B08303_with_ann!Y59","v":49},{"$f":"[1]ACS_16_5YR_B08303_with_ann!Z59","v":37},{"$f":"[1]ACS_16_5YR_B08303_with_ann!AA59","v":21},{"$f":"[1]ACS_16_5YR_B08303_with_ann!AB59","v":29},{"$f":"[1]ACS_16_5YR_B08303_with_ann!AC59","v":17}]
["0600000US3300574900","0600000US3300574900","060",{"$f":"[1]ACS_16_5YR_B08303_with_ann!C60","v":"Sullivan"},{"$f":"[1]ACS_16_5YR_B08303_with_ann!D60","v":374},{"$f":"[1]ACS_16_5YR_B08303_with_ann!E60","v":80},{"$f":"[1]ACS_16_5YR_B08303_with_ann!F60","v":17},{"$f":"[1]ACS_16_5YR_B08303_with_ann!G60","v":12},{"$f":"[1]ACS_16_5YR_B08303_with_ann!H60","v":0},{"$f":"[1]ACS_16_5YR_B08303_with_ann!I60","v":12},{"$f":"[1]ACS_16_5YR_B08303_with_ann!J60","v":34},{"$f":"[1]ACS_16_5YR_B08303_with_ann!K60","v":19},{"$f":"[1]ACS_16_5YR_B08303_with_ann!L60","v":98},{"$f":"[1]ACS_16_5YR_B08303_with_ann!M60","v":31},{"$f":"[1]ACS_16_5YR_B08303_with_ann!N60","v":82},{"$f":"[1]ACS_16_5YR_B08303_with_ann!O60","v":34},{"$f":"[1]ACS_16_5YR_B08303_with_ann!P60","v":29},{"$f":"[1]ACS_16_5YR_B08303_with_ann!Q60","v":21},{"$f":"[1]ACS_16_5YR_B08303_with_ann!R60","v":57},{"$f":"[1]ACS_16_5YR_B08303_with_ann!S60","v":26},{"$f":"[1]ACS_16_5YR_B08303_with_ann!T60","v":1},{"$f":"[1]ACS_16_5YR_B08303_with_ann!U60","v":2},{"$f":"[1]ACS_16_5YR_B08303_with_ann!V60","v":5},{"$f":"[1]ACS_16_5YR_B08303_with_ann!W60","v":7},{"$f":"[1]ACS_16_5YR_B08303_with_ann!X60","v":22},{"$f":"[1]ACS_16_5YR_B08303_with_ann!Y60","v":13},{"$f":"[1]ACS_16_5YR_B08303_with_ann!Z60","v":3},{"$f":"[1]ACS_16_5YR_B08303_with_ann!AA60","v":4},{"$f":"[1]ACS_16_5YR_B08303_with_ann!AB60","v":26},{"$f":"[1]ACS_16_5YR_B08303_with_ann!AC60","v":18}]
["0600000US3300575300","0600000US3300575300","060",{"$f":"[1]ACS_16_5YR_B08303_with_ann!C61","v":"Surry"},{"$f":"[1]ACS_16_5YR_B08303_with_ann!D61","v":400},{"$f":"[1]ACS_16_5YR_B08303_with_ann!E61","v":86},{"$f":"[1]ACS_16_5YR_B08303_with_ann!F61","v":13},{"$f":"[1]ACS_16_5YR_B08303_with_ann!G61","v":10},{"$f":"[1]ACS_16_5YR_B08303_with_ann!H61","v":28},{"$f":"[1]ACS_16_5YR_B08303_with_ann!I61","v":24},{"$f":"[1]ACS_16_5YR_B08303_with_ann!J61","v":37},{"$f":"[1]ACS_16_5YR_B08303_with_ann!K61","v":25},{"$f":"[1]ACS_16_5YR_B08303_with_ann!L61","v":157},{"$f":"[1]ACS_16_5YR_B08303_with_ann!M61","v":66},{"$f":"[1]ACS_16_5YR_B08303_with_ann!N61","v":57},{"$f":"[1]ACS_16_5YR_B08303_with_ann!O61","v":28},{"$f":"[1]ACS_16_5YR_B08303_with_ann!P61","v":13},{"$f":"[1]ACS_16_5YR_B08303_with_ann!Q61","v":8},{"$f":"[1]ACS_16_5YR_B08303_with_ann!R61","v":35},{"$f":"[1]ACS_16_5YR_B08303_with_ann!S61","v":30},{"$f":"[1]ACS_16_5YR_B08303_with_ann!T61","v":2},{"$f":"[1]ACS_16_5YR_B08303_with_ann!U61","v":3},{"$f":"[1]ACS_16_5YR_B08303_with_ann!V61","v":8},{"$f":"[1]ACS_16_5YR_B08303_with_ann!W61","v":8},{"$f":"[1]ACS_16_5YR_B08303_with_ann!X61","v":17},{"$f":"[1]ACS_16_5YR_B08303_with_ann!Y61","v":10},{"$f":"[1]ACS_16_5YR_B08303_with_ann!Z61","v":29},{"$f":"[1]ACS_16_5YR_B08303_with_ann!AA61","v":15},{"$f":"[1]ACS_16_5YR_B08303_with_ann!AB61","v":4},{"$f":"[1]ACS_16_5YR_B08303_with_ann!AC61","v":4}]
["0600000US3300575700","0600000US3300575700","060",{"$f":"[1]ACS_16_5YR_B08303_with_ann!C62","v":"Swanzey"},{"$f":"[1]ACS_16_5YR_B08303_with_ann!D62","v":3752},{"$f":"[1]ACS_16_5YR_B08303_with_ann!E62","v":360},{"$f":"[1]ACS_16_5YR_B08303_with_ann!F62","v":98},{"$f":"[1]ACS_16_5YR_B08303_with_ann!G62","v":91},{"$f":"[1]ACS_16_5YR_B08303_with_ann!H62","v":318},{"$f":"[1]ACS_16_5YR_B08303_with_ann!I62","v":271},{"$f":"[1]ACS_16_5YR_B08303_with_ann!J62","v":854},{"$f":"[1]ACS_16_5YR_B08303_with_ann!K62","v":270},{"$f":"[1]ACS_16_5YR_B08303_with_ann!L62","v":754},{"$f":"[1]ACS_16_5YR_B08303_with_ann!M62","v":265},{"$f":"[1]ACS_16_5YR_B08303_with_ann!N62","v":798},{"$f":"[1]ACS_16_5YR_B08303_with_ann!O62","v":229},{"$f":"[1]ACS_16_5YR_B08303_with_ann!P62","v":275},{"$f":"[1]ACS_16_5YR_B08303_with_ann!Q62","v":132},{"$f":"[1]ACS_16_5YR_B08303_with_ann!R62","v":154},{"$f":"[1]ACS_16_5YR_B08303_with_ann!S62","v":85},{"$f":"[1]ACS_16_5YR_B08303_with_ann!T62","v":107},{"$f":"[1]ACS_16_5YR_B08303_with_ann!U62","v":71},{"$f":"[1]ACS_16_5YR_B08303_with_ann!V62","v":0},{"$f":"[1]ACS_16_5YR_B08303_with_ann!W62","v":17},{"$f":"[1]ACS_16_5YR_B08303_with_ann!X62","v":175},{"$f":"[1]ACS_16_5YR_B08303_with_ann!Y62","v":112},{"$f":"[1]ACS_16_5YR_B08303_with_ann!Z62","v":127},{"$f":"[1]ACS_16_5YR_B08303_with_ann!AA62","v":95},{"$f":"[1]ACS_16_5YR_B08303_with_ann!AB62","v":92},{"$f":"[1]ACS_16_5YR_B08303_with_ann!AC62","v":73}]
["0600000US3300577380","0600000US3300577380","060",{"$f":"[1]ACS_16_5YR_B08303_with_ann!C63","v":"Troy"},{"$f":"[1]ACS_16_5YR_B08303_with_ann!D63","v":898},{"$f":"[1]ACS_16_5YR_B08303_with_ann!E63","v":184},{"$f":"[1]ACS_16_5YR_B08303_with_ann!F63","v":6},{"$f":"[1]ACS_16_5YR_B08303_with_ann!G63","v":8},{"$f":"[1]ACS_16_5YR_B08303_with_ann!H63","v":27},{"$f":"[1]ACS_16_5YR_B08303_with_ann!I63","v":20},{"$f":"[1]ACS_16_5YR_B08303_with_ann!J63","v":33},{"$f":"[1]ACS_16_5YR_B08303_with_ann!K63","v":21},{"$f":"[1]ACS_16_5YR_B08303_with_ann!L63","v":175},{"$f":"[1]ACS_16_5YR_B08303_with_ann!M63","v":83},{"$f":"[1]ACS_16_5YR_B08303_with_ann!N63","v":326},{"$f":"[1]ACS_16_5YR_B08303_with_ann!O63","v":92},{"$f":"[1]ACS_16_5YR_B08303_with_ann!P63","v":75},{"$f":"[1]ACS_16_5YR_B08303_with_ann!Q63","v":32},{"$f":"[1]ACS_16_5YR_B08303_with_ann!R63","v":78},{"$f":"[1]ACS_16_5YR_B08303_with_ann!S63","v":39},{"$f":"[1]ACS_16_5YR_B08303_with_ann!T63","v":10},{"$f":"[1]ACS_16_5YR_B08303_with_ann!U63","v":12},{"$f":"[1]ACS_16_5YR_B08303_with_ann!V63","v":13},{"$f":"[1]ACS_16_5YR_B08303_with_ann!W63","v":11},{"$f":"[1]ACS_16_5YR_B08303_with_ann!X63","v":41},{"$f":"[1]ACS_16_5YR_B08303_with_ann!Y63","v":35},{"$f":"[1]ACS_16_5YR_B08303_with_ann!Z63","v":68},{"$f":"[1]ACS_16_5YR_B08303_with_ann!AA63","v":57},{"$f":"[1]ACS_16_5YR_B08303_with_ann!AB63","v":46},{"$f":"[1]ACS_16_5YR_B08303_with_ann!AC63","v":51}]
["0600000US3300578420","0600000US3300578420","060",{"$f":"[1]ACS_16_5YR_B08303_with_ann!C64","v":"Walpole"},{"$f":"[1]ACS_16_5YR_B08303_with_ann!D64","v":1553},{"$f":"[1]ACS_16_5YR_B08303_with_ann!E64","v":202},{"$f":"[1]ACS_16_5YR_B08303_with_ann!F64","v":36},{"$f":"[1]ACS_16_5YR_B08303_with_ann!G64","v":36},{"$f":"[1]ACS_16_5YR_B08303_with_ann!H64","v":146},{"$f":"[1]ACS_16_5YR_B08303_with_ann!I64","v":80},{"$f":"[1]ACS_16_5YR_B08303_with_ann!J64","v":204},{"$f":"[1]ACS_16_5YR_B08303_with_ann!K64","v":97},{"$f":"[1]ACS_16_5YR_B08303_with_ann!L64","v":120},{"$f":"[1]ACS_16_5YR_B08303_with_ann!M64","v":61},{"$f":"[1]ACS_16_5YR_B08303_with_ann!N64","v":171},{"$f":"[1]ACS_16_5YR_B08303_with_ann!O64","v":78},{"$f":"[1]ACS_16_5YR_B08303_with_ann!P64","v":263},{"$f":"[1]ACS_16_5YR_B08303_with_ann!Q64","v":195},{"$f":"[1]ACS_16_5YR_B08303_with_ann!R64","v":406},{"$f":"[1]ACS_16_5YR_B08303_with_ann!S64","v":154},{"$f":"[1]ACS_16_5YR_B08303_with_ann!T64","v":85},{"$f":"[1]ACS_16_5YR_B08303_with_ann!U64","v":56},{"$f":"[1]ACS_16_5YR_B08303_with_ann!V64","v":0},{"$f":"[1]ACS_16_5YR_B08303_with_ann!W64","v":12},{"$f":"[1]ACS_16_5YR_B08303_with_ann!X64","v":54},{"$f":"[1]ACS_16_5YR_B08303_with_ann!Y64","v":30},{"$f":"[1]ACS_16_5YR_B08303_with_ann!Z64","v":53},{"$f":"[1]ACS_16_5YR_B08303_with_ann!AA64","v":46},{"$f":"[1]ACS_16_5YR_B08303_with_ann!AB64","v":15},{"$f":"[1]ACS_16_5YR_B08303_with_ann!AC64","v":17}]
["0600000US3300582660","0600000US3300582660","060",{"$f":"[1]ACS_16_5YR_B08303_with_ann!C65","v":"Westmoreland"},{"$f":"[1]ACS_16_5YR_B08303_with_ann!D65","v":879},{"$f":"[1]ACS_16_5YR_B08303_with_ann!E65","v":184},{"$f":"[1]ACS_16_5YR_B08303_with_ann!F65","v":32},{"$f":"[1]ACS_16_5YR_B08303_with_ann!G65","v":28},{"$f":"[1]ACS_16_5YR_B08303_with_ann!H65","v":93},{"$f":"[1]ACS_16_5YR_B08303_with_ann!I65","v":70},{"$f":"[1]ACS_16_5YR_B08303_with_ann!J65","v":102},{"$f":"[1]ACS_16_5YR_B08303_with_ann!K65","v":46},{"$f":"[1]ACS_16_5YR_B08303_with_ann!L65","v":248},{"$f":"[1]ACS_16_5YR_B08303_with_ann!M65","v":116},{"$f":"[1]ACS_16_5YR_B08303_with_ann!N65","v":189},{"$f":"[1]ACS_16_5YR_B08303_with_ann!O65","v":80},{"$f":"[1]ACS_16_5YR_B08303_with_ann!P65","v":29},{"$f":"[1]ACS_16_5YR_B08303_with_ann!Q65","v":17},{"$f":"[1]ACS_16_5YR_B08303_with_ann!R65","v":103},{"$f":"[1]ACS_16_5YR_B08303_with_ann!S65","v":61},{"$f":"[1]ACS_16_5YR_B08303_with_ann!T65","v":8},{"$f":"[1]ACS_16_5YR_B08303_with_ann!U65","v":9},{"$f":"[1]ACS_16_5YR_B08303_with_ann!V65","v":8},{"$f":"[1]ACS_16_5YR_B08303_with_ann!W65","v":15},{"$f":"[1]ACS_16_5YR_B08303_with_ann!X65","v":40},{"$f":"[1]ACS_16_5YR_B08303_with_ann!Y65","v":27},{"$f":"[1]ACS_16_5YR_B08303_with_ann!Z65","v":13},{"$f":"[1]ACS_16_5YR_B08303_with_ann!AA65","v":10},{"$f":"[1]ACS_16_5YR_B08303_with_ann!AB65","v":14},{"$f":"[1]ACS_16_5YR_B08303_with_ann!AC65","v":11}]
["0600000US3300585540","0600000US3300585540","060",{"$f":"[1]ACS_16_5YR_B08303_with_ann!C66","v":"Winchester"},{"$f":"[1]ACS_16_5YR_B08303_with_ann!D66","v":1802},{"$f":"[1]ACS_16_5YR_B08303_with_ann!E66","v":272},{"$f":"[1]ACS_16_5YR_B08303_with_ann!F66","v":39},{"$f":"[1]ACS_16_5YR_B08303_with_ann!G66","v":26},{"$f":"[1]ACS_16_5YR_B08303_with_ann!H66","v":103},{"$f":"[1]ACS_16_5YR_B08303_with_ann!I66","v":71},{"$f":"[1]ACS_16_5YR_B08303_with_ann!J66","v":135},{"$f":"[1]ACS_16_5YR_B08303_with_ann!K66","v":78},{"$f":"[1]ACS_16_5YR_B08303_with_ann!L66","v":70},{"$f":"[1]ACS_16_5YR_B08303_with_ann!M66","v":56},{"$f":"[1]ACS_16_5YR_B08303_with_ann!N66","v":485},{"$f":"[1]ACS_16_5YR_B08303_with_ann!O66","v":143},{"$f":"[1]ACS_16_5YR_B08303_with_ann!P66","v":216},{"$f":"[1]ACS_16_5YR_B08303_with_ann!Q66","v":116},{"$f":"[1]ACS_16_5YR_B08303_with_ann!R66","v":528},{"$f":"[1]ACS_16_5YR_B08303_with_ann!S66","v":169},{"$f":"[1]ACS_16_5YR_B08303_with_ann!T66","v":57},{"$f":"[1]ACS_16_5YR_B08303_with_ann!U66","v":42},{"$f":"[1]ACS_16_5YR_B08303_with_ann!V66","v":41},{"$f":"[1]ACS_16_5YR_B08303_with_ann!W66","v":42},{"$f":"[1]ACS_16_5YR_B08303_with_ann!X66","v":57},{"$f":"[1]ACS_16_5YR_B08303_with_ann!Y66","v":50},{"$f":"[1]ACS_16_5YR_B08303_with_ann!Z66","v":55},{"$f":"[1]ACS_16_5YR_B08303_with_ann!AA66","v":44},{"$f":"[1]ACS_16_5YR_B08303_with_ann!AB66","v":16},{"$f":"[1]ACS_16_5YR_B08303_with_ann!AC66","v":21}]
[]
[]
[]
[null,null,null,null,{"$f":"$D$3","v":"Alstead"},null,{"$f":"$D$4","v":"Chesterfield"},null,{"$f":"$D$5","v":"Dublin"},null,{"$f":"$D$6","v":"Fitzwilliam"},null,{"$f":"$D$7","v":"Gilsum"},null,{"$f":"$D$8","v":"Harrisville"},null,{"$f":"$D$9","v":"Hinsdale"},null,{"$f":"$D$10","v":"Jaffrey"},null,{"$f":"$D$11","v":"Keene"},null,{"$f":"$D$12","v":"Marlborough"},null,{"$f":"$D$13","v":"Marlow"},null,{"$f":"$D$14","v":"Nelson"},null,{"$f":"$D$15","v":"Richmond"},null,{"$f":"$D$16","v":"Rindge"},null,{"$f":"$D$17","v":"Roxbury"},null,{"$f":"$D$18","v":"Stoddard"},null,{"$f":"$D$19","v":"Sullivan"},null,{"$f":"$D$20","v":"Surry"},null,{"$f":"$D$21","v":"Swanzey"},null,{"$f":"$D$21","v":"Swanzey"},null,{"$f":"$D$21","v":"Swanzey"},null,{"$f":"$D$21","v":"Swanzey"},null,{"$f":"$D$21","v":"Swanzey"}]
[null,null,null,null,"Estimate","Margin of Error","Estimate","Margin of Error","Estimate","Margin of Error","Estimate","Margin of Error","Estimate","Margin of Error","Estimate","Margin of Error","Estimate","Margin of Error","Estimate","Margin of Error","Estimate","Margin of Error","Estimate","Margin of Error","Estimate","Margin of Error","Estimate","Margin of Error","Estimate","Margin of Error","Estimate","Margin of Error","Estimate","Margin of Error","Estimate","Margin of Error","Estimate","Margin of Error","Estimate","Margin of Error","Estimate","Margin of Error"]
[null,null,null,"Estimate!!Total:",635,107,1600,230,632,118,1023,232,431,88,404,115,1913,275,2529,322,10027,496,990,208,347,96,234,65,449,129,2516,271,139,50,551,100,374,80,400,86,3752,360,898,184,1553,202,879,184,1802,272]
[null,null,null,"Estimate!!Total:!!Less than 5 minutes",6,8,46,48,20,15,19,23,16,14,14,15,347,237,144,88,799,205,51,33,0,12,12,12,6,5,180,91,2,3,6,7,17,12,13,10,98,91,6,8,36,36,32,28,39,26]
[null,null,null,"Estimate!!Total:!!5 to 9 minutes",14,12,75,74,80,43,27,15,15,10,5,7,106,85,572,295,2988,430,86,43,18,21,10,7,10,13,473,150,26,16,15,13,0,12,28,24,318,271,27,20,146,80,93,70,103,71]
[null,null,null,"Estimate!!Total:!!10 to 14 minutes",96,37,184,120,84,30,27,19,17,9,63,39,251,123,430,202,2478,417,211,104,12,9,8,6,46,30,220,102,43,26,7,6,34,19,37,25,854,270,33,21,204,97,102,46,135,78]
[null,null,null,"Estimate!!Total:!!15 to 19 minutes",38,20,479,199,93,44,84,61,97,42,70,50,608,200,160,90,1021,244,215,108,11,13,42,18,42,37,240,99,17,11,45,27,98,31,157,66,754,265,175,83,120,61,248,116,70,56]
[null,null,null,"Estimate!!Total:!!20 to 24 minutes",143,58,314,212,114,75,154,60,114,42,66,29,165,107,175,87,751,202,198,82,61,34,102,45,35,26,202,87,19,21,112,65,82,34,57,28,798,229,326,92,171,78,189,80,485,143]
[null,null,null,"Estimate!!Total:!!25 to 29 minutes",40,28,125,91,69,33,31,20,35,23,47,22,37,34,62,61,293,144,57,38,32,18,27,17,50,41,129,100,11,17,71,28,29,21,13,8,275,132,75,32,263,195,29,17,216,116]
[null,null,null,"Estimate!!Total:!!30 to 34 minutes",95,36,106,75,59,33,160,56,45,18,61,37,60,53,302,197,571,216,81,46,72,39,6,6,92,46,173,87,6,5,83,31,57,26,35,30,154,85,78,39,406,154,103,61,528,169]
[null,null,null,"Estimate!!Total:!!35 to 39 minutes",17,14,18,27,8,11,180,162,7,11,13,11,101,62,9,19,344,119,10,10,42,33,3,6,18,15,185,104,1,2,60,36,1,2,2,3,107,71,10,12,85,56,8,9,57,42]
[null,null,null,"Estimate!!Total:!!40 to 44 minutes",49,31,53,68,2,4,9,10,12,12,0,12,71,57,233,170,139,75,14,13,8,7,2,3,41,37,107,78,3,3,10,9,5,7,8,8,0,17,13,11,0,12,8,15,41,42]
[null,null,null,"Estimate!!Total:!!45 to 59 minutes",60,31,79,62,28,17,149,80,32,17,30,21,69,51,130,111,235,103,24,23,31,24,2,3,72,40,185,86,4,5,76,49,22,13,17,10,175,112,41,35,54,30,40,27,57,50]
[null,null,null,"Estimate!!Total:!!60 to 89 minutes",42,29,71,72,14,10,91,57,25,16,21,20,48,63,195,109,220,108,34,28,43,31,12,12,13,10,195,95,0,12,37,21,3,4,29,15,127,95,68,57,53,46,13,10,55,44]
[null,null,null,"Estimate!!Total:!!90 or more minutes",35,26,50,57,61,31,92,56,16,9,14,11,50,56,117,119,188,125,9,9,17,14,8,6,24,12,227,106,7,11,29,17,26,18,4,4,92,73,46,51,15,17,14,11,16,21]

{"sheet":"SData_B11001HouseholdByFamType","index":25,"n_rows":39,"n_cols":50,"rows_kept":39,"cut":false,"hidden":true,"merged":[[0,4,0,4],[0,5,0,5],[0,10,0,10],[0,11,0,11],[0,12,0,12],[0,13,0,13],[0,6,0,6],[0,7,0,7],[0,8,0,8],[0,9,0,9],[0,20,0,20],[0,21,0,21],[0,14,0,14],[0,15,0,15],[0,16,0,16],[0,17,0,17],[0,18,0,18],[0,19,0,19]]}
["GEO_ID","GEO_ID2","SUMLEVEL","GEO_NAME",{"$f":"[1]ACS_16_5YR_B11001_with_ann!D1","v":"B11001_001E"},{"$f":"[1]ACS_16_5YR_B11001_with_ann!E1","v":"B11001_001M"},{"$f":"[1]ACS_16_5YR_B11001_with_ann!F1","v":"B11001_002E"},{"$f":"[1]ACS_16_5YR_B11001_with_ann!G1","v":"B11001_002M"},{"$f":"[1]ACS_16_5YR_B11001_with_ann!H1","v":"B11001_003E"},{"$f":"[1]ACS_16_5YR_B11001_with_ann!I1","v":"B11001_003M"},{"$f":"[1]ACS_16_5YR_B11001_with_ann!J1","v":"B11001_004E"},{"$f":"[1]ACS_16_5YR_B11001_with_ann!K1","v":"B11001_004M"},{"$f":"[1]ACS_16_5YR_B11001_with_ann!L1","v":"B11001_005E"},{"$f":"[1]ACS_16_5YR_B11001_with_ann!M1","v":"B11001_005M"},{"$f":"[1]ACS_16_5YR_B11001_with_ann!N1","v":"B11001_006E"},{"$f":"[1]ACS_16_5YR_B11001_with_ann!O1","v":"B11001_006M"},{"$f":"[1]ACS_16_5YR_B11001_with_ann!P1","v":"B11001_007E"},{"$f":"[1]ACS_16_5YR_B11001_with_ann!Q1","v":"B11001_007M"},{"$f":"[1]ACS_16_5YR_B11001_with_ann!R1","v":"B11001_008E"},{"$f":"[1]ACS_16_5YR_B11001_with_ann!S1","v":"B11001_008M"},{"$f":"[1]ACS_16_5YR_B11001_with_ann!T1","v":"B11001_009E"},{"$f":"[1]ACS_16_5YR_B11001_with_ann!U1","v":"B11001_009M"}]
["Geography Identifier","Geography Identifier","Geographic Summary Level","Geography",{"$f":"[1]ACS_16_5YR_B11001_with_ann!D2","v":"Estimate!!Total:"},{"$f":"[1]ACS_16_5YR_B11001_with_ann!E2","v":"Margin of Error!!Total:"},{"$f":"[1]ACS_16_5YR_B11001_with_ann!F2","v":"Estimate!!Total:!!Family households:"},{"$f":"[1]ACS_16_5YR_B11001_with_ann!G2","v":"Margin of Error!!Total:!!Family households:"},{"$f":"[1]ACS_16_5YR_B11001_with_ann!H2","v":"Estimate!!Total:!!Family households:!!Married-couple family"},{"$f":"[1]ACS_16_5YR_B11001_with_ann!I2","v":"Margin of Error!!Total:!!Family households:!!Married-couple family"},{"$f":"[1]ACS_16_5YR_B11001_with_ann!J2","v":"Estimate!!Total:!!Family households:!!Other family:"},{"$f":"[1]ACS_16_5YR_B11001_with_ann!K2","v":"Margin of Error!!Total:!!Family households:!!Other family:"},{"$f":"[1]ACS_16_5YR_B11001_with_ann!L2","v":"Estimate!!Total:!!Family households:!!Other family:!!Male householder, no spouse present"},{"$f":"[1]ACS_16_5YR_B11001_with_ann!M2","v":"Margin of Error!!Total:!!Family households:!!Other family:!!Male householder, no spouse present"},{"$f":"[1]ACS_16_5YR_B11001_with_ann!N2","v":"Estimate!!Total:!!Family households:!!Other family:!!Female householder, no spouse present"},{"$f":"[1]ACS_16_5YR_B11001_with_ann!O2","v":"Margin of Error!!Total:!!Family households:!!Other family:!!Female householder, no spouse present"},{"$f":"[1]ACS_16_5YR_B11001_with_ann!P2","v":"Estimate!!Total:!!Nonfamily households:"},{"$f":"[1]ACS_16_5YR_B11001_with_ann!Q2","v":"Margin of Error!!Total:!!Nonfamily households:"},{"$f":"[1]ACS_16_5YR_B11001_with_ann!R2","v":"Estimate!!Total:!!Nonfamily households:!!Householder living alone"},{"$f":"[1]ACS_16_5YR_B11001_with_ann!S2","v":"Margin of Error!!Total:!!Nonfamily households:!!Householder living alone"},{"$f":"[1]ACS_16_5YR_B11001_with_ann!T2","v":"Estimate!!Total:!!Nonfamily households:!!Householder not living alone"},{"$f":"[1]ACS_16_5YR_B11001_with_ann!U2","v":"Margin of Error!!Total:!!Nonfamily households:!!Householder not living alone"}]
["0600000US3300500820","0600000US3300500820","060",{"$f":"[1]ACS_16_5YR_B11001_with_ann!C44","v":"Alstead"},{"$f":"[1]ACS_16_5YR_B11001_with_ann!D44","v":723},{"$f":"[1]ACS_16_5YR_B11001_with_ann!E44","v":97},{"$f":"[1]ACS_16_5YR_B11001_with_ann!F44","v":454},{"$f":"[1]ACS_16_5YR_B11001_with_ann!G44","v":72},{"$f":"[1]ACS_16_5YR_B11001_with_ann!H44","v":389},{"$f":"[1]ACS_16_5YR_B11001_with_ann!I44","v":73},{"$f":"[1]ACS_16_5YR_B11001_with_ann!J44","v":65},{"$f":"[1]ACS_16_5YR_B11001_with_ann!K44","v":21},{"$f":"[1]ACS_16_5YR_B11001_with_ann!L44","v":13},{"$f":"[1]ACS_16_5YR_B11001_with_ann!M44","v":11},{"$f":"[1]ACS_16_5YR_B11001_with_ann!N44","v":52},{"$f":"[1]ACS_16_5YR_B11001_with_ann!O44","v":20},{"$f":"[1]ACS_16_5YR_B11001_with_ann!P44","v":269},{"$f":"[1]ACS_16_5YR_B11001_with_ann!Q44","v":84},{"$f":"[1]ACS_16_5YR_B11001_with_ann!R44","v":201},{"$f":"[1]ACS_16_5YR_B11001_with_ann!S44","v":78},{"$f":"[1]ACS_16_5YR_B11001_with_ann!T44","v":68},{"$f":"[1]ACS_16_5YR_B11001_with_ann!U44","v":33}]
["0600000US3300512260","0600000US3300512260","060",{"$f":"[1]ACS_16_5YR_B11001_with_ann!C45","v":"Chesterfield"},{"$f":"[1]ACS_16_5YR_B11001_with_ann!D45","v":1366},{"$f":"[1]ACS_16_5YR_B11001_with_ann!E45","v":158},{"$f":"[1]ACS_16_5YR_B11001_with_ann!F45","v":1003},{"$f":"[1]ACS_16_5YR_B11001_with_ann!G45","v":131},{"$f":"[1]ACS_16_5YR_B11001_with_ann!H45","v":848},{"$f":"[1]ACS_16_5YR_B11001_with_ann!I45","v":155},{"$f":"[1]ACS_16_5YR_B11001_with_ann!J45","v":155},{"$f":"[1]ACS_16_5YR_B11001_with_ann!K45","v":87},{"$f":"[1]ACS_16_5YR_B11001_with_ann!L45","v":18},{"$f":"[1]ACS_16_5YR_B11001_with_ann!M45","v":29},{"$f":"[1]ACS_16_5YR_B11001_with_ann!N45","v":137},{"$f":"[1]ACS_16_5YR_B11001_with_ann!O45","v":81},{"$f":"[1]ACS_16_5YR_B11001_with_ann!P45","v":363},{"$f":"[1]ACS_16_5YR_B11001_with_ann!Q45","v":168},{"$f":"[1]ACS_16_5YR_B11001_with_ann!R45","v":326},{"$f":"[1]ACS_16_5YR_B11001_with_ann!S45","v":169},{"$f":"[1]ACS_16_5YR_B11001_with_ann!T45","v":37},{"$f":"[1]ACS_16_5YR_B11001_with_ann!U45","v":39}]
["0600000US3300519140","0600000US3300519140","060",{"$f":"[1]ACS_16_5YR_B11001_with_ann!C46","v":"Dublin"},{"$f":"[1]ACS_16_5YR_B11001_with_ann!D46","v":635},{"$f":"[1]ACS_16_5YR_B11001_with_ann!E46","v":101},{"$f":"[1]ACS_16_5YR_B11001_with_ann!F46","v":527},{"$f":"[1]ACS_16_5YR_B11001_with_ann!G46","v":93},{"$f":"[1]ACS_16_5YR_B11001_with_ann!H46","v":454},{"$f":"[1]ACS_16_5YR_B11001_with_ann!I46","v":95},{"$f":"[1]ACS_16_5YR_B11001_with_ann!J46","v":73},{"$f":"[1]ACS_16_5YR_B11001_with_ann!K46","v":30},{"$f":"[1]ACS_16_5YR_B11001_with_ann!L46","v":35},{"$f":"[1]ACS_16_5YR_B11001_with_ann!M46","v":22},{"$f":"[1]ACS_16_5YR_B11001_with_ann!N46","v":38},{"$f":"[1]ACS_16_5YR_B11001_with_ann!O46","v":20},{"$f":"[1]ACS_16_5YR_B11001_with_ann!P46","v":108},{"$f":"[1]ACS_16_5YR_B11001_with_ann!Q46","v":32},{"$f":"[1]ACS_16_5YR_B11001_with_ann!R46","v":90},{"$f":"[1]ACS_16_5YR_B11001_with_ann!S46","v":31},{"$f":"[1]ACS_16_5YR_B11001_with_ann!T46","v":18},{"$f":"[1]ACS_16_5YR_B11001_with_ann!U46","v":10}]
["0600000US3300526500","0600000US3300526500","060",{"$f":"[1]ACS_16_5YR_B11001_with_ann!C47","v":"Fitzwilliam"},{"$f":"[1]ACS_16_5YR_B11001_with_ann!D47","v":1013},{"$f":"[1]ACS_16_5YR_B11001_with_ann!E47","v":154},{"$f":"[1]ACS_16_5YR_B11001_with_ann!F47","v":619},{"$f":"[1]ACS_16_5YR_B11001_with_ann!G47","v":124},{"$f":"[1]ACS_16_5YR_B11001_with_ann!H47","v":481},{"$f":"[1]ACS_16_5YR_B11001_with_ann!I47","v":77},{"$f":"[1]ACS_16_5YR_B11001_with_ann!J47","v":138},{"$f":"[1]ACS_16_5YR_B11001_with_ann!K47","v":101},{"$f":"[1]ACS_16_5YR_B11001_with_ann!L47","v":55},{"$f":"[1]ACS_16_5YR_B11001_with_ann!M47","v":33},{"$f":"[1]ACS_16_5YR_B11001_with_ann!N47","v":83},{"$f":"[1]ACS_16_5YR_B11001_with_ann!O47","v":93},{"$f":"[1]ACS_16_5YR_B11001_with_ann!P47","v":394},{"$f":"[1]ACS_16_5YR_B11001_with_ann!Q47","v":89},{"$f":"[1]ACS_16_5YR_B11001_with_ann!R47","v":262},{"$f":"[1]ACS_16_5YR_B11001_with_ann!S47","v":66},{"$f":"[1]ACS_16_5YR_B11001_with_ann!T47","v":132},{"$f":"[1]ACS_16_5YR_B11001_with_ann!U47","v":70}]
["0600000US3300529220","0600000US3300529220","060",{"$f":"[1]ACS_16_5YR_B11001_with_ann!C48","v":"Gilsum"},{"$f":"[1]ACS_16_5YR_B11001_with_ann!D48","v":310},{"$f":"[1]ACS_16_5YR_B11001_with_ann!E48","v":51},{"$f":"[1]ACS_16_5YR_B11001_with_ann!F48","v":230},{"$f":"[1]ACS_16_5YR_B11001_with_ann!G48","v":43},{"$f":"[1]ACS_16_5YR_B11001_with_ann!H48","v":193},{"$f":"[1]ACS_16_5YR_B11001_with_ann!I48","v":37},{"$f":"[1]ACS_16_5YR_B11001_with_ann!J48","v":37},{"$f":"[1]ACS_16_5YR_B11001_with_ann!K48","v":28},{"$f":"[1]ACS_16_5YR_B11001_with_ann!L48","v":10},{"$f":"[1]ACS_16_5YR_B11001_with_ann!M48","v":12},{"$f":"[1]ACS_16_5YR_B11001_with_ann!N48","v":27},{"$f":"[1]ACS_16_5YR_B11001_with_ann!O48","v":26},{"$f":"[1]ACS_16_5YR_B11001_with_ann!P48","v":80},{"$f":"[1]ACS_16_5YR_B11001_with_ann!Q48","v":29},{"$f":"[1]ACS_16_5YR_B11001_with_ann!R48","v":62},{"$f":"[1]ACS_16_5YR_B11001_with_ann!S48","v":25},{"$f":"[1]ACS_16_5YR_B11001_with_ann!T48","v":18},{"$f":"[1]ACS_16_5YR_B11001_with_ann!U48","v":14}]
["0600000US3300534420","0600000US3300534420","060",{"$f":"[1]ACS_16_5YR_B11001_with_ann!C49","v":"Harrisville"},{"$f":"[1]ACS_16_5YR_B11001_with_ann!D49","v":416},{"$f":"[1]ACS_16_5YR_B11001_with_ann!E49","v":75},{"$f":"[1]ACS_16_5YR_B11001_with_ann!F49","v":313},{"$f":"[1]ACS_16_5YR_B11001_with_ann!G49","v":70},{"$f":"[1]ACS_16_5YR_B11001_with_ann!H49","v":271},{"$f":"[1]ACS_16_5YR_B11001_with_ann!I49","v":66},{"$f":"[1]ACS_16_5YR_B11001_with_ann!J49","v":42},{"$f":"[1]ACS_16_5YR_B11001_with_ann!K49","v":22},{"$f":"[1]ACS_16_5YR_B11001_with_ann!L49","v":12},{"$f":"[1]ACS_16_5YR_B11001_with_ann!M49","v":10},{"$f":"[1]ACS_16_5YR_B11001_with_ann!N49","v":30},{"$f":"[1]ACS_16_5YR_B11001_with_ann!O49","v":19},{"$f":"[1]ACS_16_5YR_B11001_with_ann!P49","v":103},{"$f":"[1]ACS_16_5YR_B11001_with_ann!Q49","v":30},{"$f":"[1]ACS_16_5YR_B11001_with_ann!R49","v":77},{"$f":"[1]ACS_16_5YR_B11001_with_ann!S49","v":28},{"$f":"[1]ACS_16_5YR_B11001_with_ann!T49","v":26},{"$f":"[1]ACS_16_5YR_B11001_with_ann!U49","v":17}]
["0600000US3300536660","0600000US3300536660","060",{"$f":"[1]ACS_16_5YR_B11001_with_ann!C50","v":"Hinsdale"},{"$f":"[1]ACS_16_5YR_B11001_with_ann!D50","v":1594},{"$f":"[1]ACS_16_5YR_B11001_with_ann!E50","v":139},{"$f":"[1]ACS_16_5YR_B11001_with_ann!F50","v":1049},{"$f":"[1]ACS_16_5YR_B11001_with_ann!G50","v":141},{"$f":"[1]ACS_16_5YR_B11001_with_ann!H50","v":884},{"$f":"[1]ACS_16_5YR_B11001_with_ann!I50","v":153},{"$f":"[1]ACS_16_5YR_B11001_with_ann!J50","v":165},{"$f":"[1]ACS_16_5YR_B11001_with_ann!K50","v":95},{"$f":"[1]ACS_16_5YR_B11001_with_ann!L50","v":81},{"$f":"[1]ACS_16_5YR_B11001_with_ann!M50","v":75},{"$f":"[1]ACS_16_5YR_B11001_with_ann!N50","v":84},{"$f":"[1]ACS_16_5YR_B11001_with_ann!O50","v":61},{"$f":"[1]ACS_16_5YR_B11001_with_ann!P50","v":545},{"$f":"[1]ACS_16_5YR_B11001_with_ann!Q50","v":133},{"$f":"[1]ACS_16_5YR_B11001_with_ann!R50","v":406},{"$f":"[1]ACS_16_5YR_B11001_with_ann!S50","v":127},{"$f":"[1]ACS_16_5YR_B11001_with_ann!T50","v":139},{"$f":"[1]ACS_16_5YR_B11001_with_ann!U50","v":78}]
["0600000US3300538500","0600000US3300538500","060",{"$f":"[1]ACS_16_5YR_B11001_with_ann!C51","v":"Jaffrey"},{"$f":"[1]ACS_16_5YR_B11001_with_ann!D51","v":2026},{"$f":"[1]ACS_16_5YR_B11001_with_ann!E51","v":225},{"$f":"[1]ACS_16_5YR_B11001_with_ann!F51","v":1374},{"$f":"[1]ACS_16_5YR_B11001_with_ann!G51","v":156},{"$f":"[1]ACS_16_5YR_B11001_with_ann!H51","v":1202},{"$f":"[1]ACS_16_5YR_B11001_with_ann!I51","v":191},{"$f":"[1]ACS_16_5YR_B11001_with_ann!J51","v":172},{"$f":"[1]ACS_16_5YR_B11001_with_ann!K51","v":86},{"$f":"[1]ACS_16_5YR_B11001_with_ann!L51","v":36},{"$f":"[1]ACS_16_5YR_B11001_with_ann!M51","v":38},{"$f":"[1]ACS_16_5YR_B11001_with_ann!N51","v":136},{"$f":"[1]ACS_16_5YR_B11001_with_ann!O51","v":88},{"$f":"[1]ACS_16_5YR_B11001_with_ann!P51","v":652},{"$f":"[1]ACS_16_5YR_B11001_with_ann!Q51","v":266},{"$f":"[1]ACS_16_5YR_B11001_with_ann!R51","v":495},{"$f":"[1]ACS_16_5YR_B11001_with_ann!S51","v":245},{"$f":"[1]ACS_16_5YR_B11001_with_ann!T51","v":157},{"$f":"[1]ACS_16_5YR_B11001_with_ann!U51","v":105}]
["0600000US3300539300","0600000US3300539300","060",{"$f":"[1]ACS_16_5YR_B11001_with_ann!C52","v":"Keene"},{"$f":"[1]ACS_16_5YR_B11001_with_ann!D52","v":9259},{"$f":"[1]ACS_16_5YR_B11001_with_ann!E52","v":370},{"$f":"[1]ACS_16_5YR_B11001_with_ann!F52","v":4541},{"$f":"[1]ACS_16_5YR_B11001_with_ann!G52","v":311},{"$f":"[1]ACS_16_5YR_B11001_with_ann!H52","v":3393},{"$f":"[1]ACS_16_5YR_B11001_with_ann!I52","v":299},{"$f":"[1]ACS_16_5YR_B11001_with_ann!J52","v":1148},{"$f":"[1]ACS_16_5YR_B11001_with_ann!K52","v":218},{"$f":"[1]ACS_16_5YR_B11001_with_ann!L52","v":334},{"$f":"[1]ACS_16_5YR_B11001_with_ann!M52","v":150},{"$f":"[1]ACS_16_5YR_B11001_with_ann!N52","v":814},{"$f":"[1]ACS_16_5YR_B11001_with_ann!O52","v":170},{"$f":"[1]ACS_16_5YR_B11001_with_ann!P52","v":4718},{"$f":"[1]ACS_16_5YR_B11001_with_ann!Q52","v":494},{"$f":"[1]ACS_16_5YR_B11001_with_ann!R52","v":3651},{"$f":"[1]ACS_16_5YR_B11001_with_ann!S52","v":482},{"$f":"[1]ACS_16_5YR_B11001_with_ann!T52","v":1067},{"$f":"[1]ACS_16_5YR_B11001_with_ann!U52","v":230}]
["0600000US3300545460","0600000US3300545460","060",{"$f":"[1]ACS_16_5YR_B11001_with_ann!C53","v":"Marlborough"},{"$f":"[1]ACS_16_5YR_B11001_with_ann!D53","v":942},{"$f":"[1]ACS_16_5YR_B11001_with_ann!E53","v":130},{"$f":"[1]ACS_16_5YR_B11001_with_ann!F53","v":557},{"$f":"[1]ACS_16_5YR_B11001_with_ann!G53","v":107},{"$f":"[1]ACS_16_5YR_B11001_with_ann!H53","v":446},{"$f":"[1]ACS_16_5YR_B11001_with_ann!I53","v":99},{"$f":"[1]ACS_16_5YR_B11001_with_ann!J53","v":111},{"$f":"[1]ACS_16_5YR_B11001_with_ann!K53","v":66},{"$f":"[1]ACS_16_5YR_B11001_with_ann!L53","v":21},{"$f":"[1]ACS_16_5YR_B11001_with_ann!M53","v":22},{"$f":"[1]ACS_16_5YR_B11001_with_ann!N53","v":90},{"$f":"[1]ACS_16_5YR_B11001_with_ann!O53","v":64},{"$f":"[1]ACS_16_5YR_B11001_with_ann!P53","v":385},{"$f":"[1]ACS_16_5YR_B11001_with_ann!Q53","v":81},{"$f":"[1]ACS_16_5YR_B11001_with_ann!R53","v":257},{"$f":"[1]ACS_16_5YR_B11001_with_ann!S53","v":61},{"$f":"[1]ACS_16_5YR_B11001_with_ann!T53","v":128},{"$f":"[1]ACS_16_5YR_B11001_with_ann!U53","v":63}]
["0600000US3300545700","0600000US3300545700","060",{"$f":"[1]ACS_16_5YR_B11001_with_ann!C54","v":"Marlow"},{"$f":"[1]ACS_16_5YR_B11001_with_ann!D54","v":314},{"$f":"[1]ACS_16_5YR_B11001_with_ann!E54","v":61},{"$f":"[1]ACS_16_5YR_B11001_with_ann!F54","v":247},{"$f":"[1]ACS_16_5YR_B11001_with_ann!G54","v":59},{"$f":"[1]ACS_16_5YR_B11001_with_ann!H54","v":227},{"$f":"[1]ACS_16_5YR_B11001_with_ann!I54","v":55},{"$f":"[1]ACS_16_5YR_B11001_with_ann!J54","v":20},{"$f":"[1]ACS_16_5YR_B11001_with_ann!K54","v":17},{"$f":"[1]ACS_16_5YR_B11001_with_ann!L54","v":8},{"$f":"[1]ACS_16_5YR_B11001_with_ann!M54","v":12},{"$f":"[1]ACS_16_5YR_B11001_with_ann!N54","v":12},{"$f":"[1]ACS_16_5YR_B11001_with_ann!O54","v":11},{"$f":"[1]ACS_16_5YR_B11001_with_ann!P54","v":67},{"$f":"[1]ACS_16_5YR_B11001_with_ann!Q54","v":22},{"$f":"[1]ACS_16_5YR_B11001_with_ann!R54","v":58},{"$f":"[1]ACS_16_5YR_B11001_with_ann!S54","v":22},{"$f":"[1]ACS_16_5YR_B11001_with_ann!T54","v":9},{"$f":"[1]ACS_16_5YR_B11001_with_ann!U54","v":7}]
["0600000US3300550580","0600000US3300550580","060",{"$f":"[1]ACS_16_5YR_B11001_with_ann!C55","v":"Nelson"},{"$f":"[1]ACS_16_5YR_B11001_with_ann!D55","v":246},{"$f":"[1]ACS_16_5YR_B11001_with_ann!E55","v":41},{"$f":"[1]ACS_16_5YR_B11001_with_ann!F55","v":167},{"$f":"[1]ACS_16_5YR_B11001_with_ann!G55","v":39},{"$f":"[1]ACS_16_5YR_B11001_with_ann!H55","v":136},{"$f":"[1]ACS_16_5YR_B11001_with_ann!I55","v":31},{"$f":"[1]ACS_16_5YR_B11001_with_ann!J55","v":31},{"$f":"[1]ACS_16_5YR_B11001_with_ann!K55","v":18},{"$f":"[1]ACS_16_5YR_B11001_with_ann!L55","v":10},{"$f":"[1]ACS_16_5YR_B11001_with_ann!M55","v":10},{"$f":"[1]ACS_16_5YR_B11001_with_ann!N55","v":21},{"$f":"[1]ACS_16_5YR_B11001_with_ann!O55","v":14},{"$f":"[1]ACS_16_5YR_B11001_with_ann!P55","v":79},{"$f":"[1]ACS_16_5YR_B11001_with_ann!Q55","v":24},{"$f":"[1]ACS_16_5YR_B11001_with_ann!R55","v":66},{"$f":"[1]ACS_16_5YR_B11001_with_ann!S55","v":25},{"$f":"[1]ACS_16_5YR_B11001_with_ann!T55","v":13},{"$f":"[1]ACS_16_5YR_B11001_with_ann!U55","v":9}]
["0600000US3300564420","0600000US3300564420","060",{"$f":"[1]ACS_16_5YR_B11001_with_ann!C56","v":"Richmond"},{"$f":"[1]ACS_16_5YR_B11001_with_ann!D56","v":393},{"$f":"[1]ACS_16_5YR_B11001_with_ann!E56","v":73},{"$f":"[1]ACS_16_5YR_B11001_with_ann!F56","v":316},{"$f":"[1]ACS_16_5YR_B11001_with_ann!G56","v":68},{"$f":"[1]ACS_16_5YR_B11001_with_ann!H56","v":245},{"$f":"[1]ACS_16_5YR_B11001_with_ann!I56","v":57},{"$f":"[1]ACS_16_5YR_B11001_with_ann!J56","v":71},{"$f":"[1]ACS_16_5YR_B11001_with_ann!K56","v":40},{"$f":"[1]ACS_16_5YR_B11001_with_ann!L56","v":41},{"$f":"[1]ACS_16_5YR_B11001_with_ann!M56","v":37},{"$f":"[1]ACS_16_5YR_B11001_with_ann!N56","v":30},{"$f":"[1]ACS_16_5YR_B11001_with_ann!O56","v":24},{"$f":"[1]ACS_16_5YR_B11001_with_ann!P56","v":77},{"$f":"[1]ACS_16_5YR_B11001_with_ann!Q56","v":29},{"$f":"[1]ACS_16_5YR_B11001_with_ann!R56","v":51},{"$f":"[1]ACS_16_5YR_B11001_with_ann!S56","v":21},{"$f":"[1]ACS_16_5YR_B11001_with_ann!T56","v":26},{"$f":"[1]ACS_16_5YR_B11001_with_ann!U56","v":23}]
["0600000US3300564580","0600000US3300564580","060",{"$f":"[1]ACS_16_5YR_B11001_with_ann!C57","v":"Rindge"},{"$f":"[1]ACS_16_5YR_B11001_with_ann!D57","v":1972},{"$f":"[1]ACS_16_5YR_B11001_with_ann!E57","v":144},{"$f":"[1]ACS_16_5YR_B11001_with_ann!F57","v":1451},{"$f":"[1]ACS_16_5YR_B11001_with_ann!G57","v":123},{"$f":"[1]ACS_16_5YR_B11001_with_ann!H57","v":1368},{"$f":"[1]ACS_16_5YR_B11001_with_ann!I57","v":126},{"$f":"[1]ACS_16_5YR_B11001_with_ann!J57","v":83},{"$f":"[1]ACS_16_5YR_B11001_with_ann!K57","v":47},{"$f":"[1]ACS_16_5YR_B11001_with_ann!L57","v":35},{"$f":"[1]ACS_16_5YR_B11001_with_ann!M57","v":38},{"$f":"[1]ACS_16_5YR_B11001_with_ann!N57","v":48},{"$f":"[1]ACS_16_5YR_B11001_with_ann!O57","v":42},{"$f":"[1]ACS_16_5YR_B11001_with_ann!P57","v":521},{"$f":"[1]ACS_16_5YR_B11001_with_ann!Q57","v":144},{"$f":"[1]ACS_16_5YR_B11001_with_ann!R57","v":399},{"$f":"[1]ACS_16_5YR_B11001_with_ann!S57","v":123},{"$f":"[1]ACS_16_5YR_B11001_with_ann!T57","v":122},{"$f":"[1]ACS_16_5YR_B11001_with_ann!U57","v":66}]
["0600000US3300565700","0600000US3300565700","060",{"$f":"[1]ACS_16_5YR_B11001_with_ann!C58","v":"Roxbury"},{"$f":"[1]ACS_16_5YR_B11001_with_ann!D58","v":95},{"$f":"[1]ACS_16_5YR_B11001_with_ann!E58","v":37},{"$f":"[1]ACS_16_5YR_B11001_with_ann!F58","v":66},{"$f":"[1]ACS_16_5YR_B11001_with_ann!G58","v":37},{"$f":"[1]ACS_16_5YR_B11001_with_ann!H58","v":57},{"$f":"[1]ACS_16_5YR_B11001_with_ann!I58","v":37},{"$f":"[1]ACS_16_5YR_B11001_with_ann!J58","v":9},{"$f":"[1]ACS_16_5YR_B11001_with_ann!K58","v":11},{"$f":"[1]ACS_16_5YR_B11001_with_ann!L58","v":8},{"$f":"[1]ACS_16_5YR_B11001_with_ann!M58","v":11},{"$f":"[1]ACS_16_5YR_B11001_with_ann!N58","v":1},{"$f":"[1]ACS_16_5YR_B11001_with_ann!O58","v":2},{"$f":"[1]ACS_16_5YR_B11001_with_ann!P58","v":29},{"$f":"[1]ACS_16_5YR_B11001_with_ann!Q58","v":13},{"$f":"[1]ACS_16_5YR_B11001_with_ann!R58","v":18},{"$f":"[1]ACS_16_5YR_B11001_with_ann!S58","v":9},{"$f":"[1]ACS_16_5YR_B11001_with_ann!T58","v":11},{"$f":"[1]ACS_16_5YR_B11001_with_ann!U58","v":10}]
["0600000US3300573700","0600000US3300573700","060",{"$f":"[1]ACS_16_5YR_B11001_with_ann!C59","v":"Stoddard"},{"$f":"[1]ACS_16_5YR_B11001_with_ann!D59","v":436},{"$f":"[1]ACS_16_5YR_B11001_with_ann!E59","v":52},{"$f":"[1]ACS_16_5YR_B11001_with_ann!F59","v":297},{"$f":"[1]ACS_16_5YR_B11001_with_ann!G59","v":45},{"$f":"[1]ACS_16_5YR_B11001_with_ann!H59","v":259},{"$f":"[1]ACS_16_5YR_B11001_with_ann!I59","v":45},{"$f":"[1]ACS_16_5YR_B11001_with_ann!J59","v":38},{"$f":"[1]ACS_16_5YR_B11001_with_ann!K59","v":21},{"$f":"[1]ACS_16_5YR_B11001_with_ann!L59","v":19},{"$f":"[1]ACS_16_5YR_B11001_with_ann!M59","v":17},{"$f":"[1]ACS_16_5YR_B11001_with_ann!N59","v":19},{"$f":"[1]ACS_16_5YR_B11001_with_ann!O59","v":13},{"$f":"[1]ACS_16_5YR_B11001_with_ann!P59","v":139},{"$f":"[1]ACS_16_5YR_B11001_with_ann!Q59","v":39},{"$f":"[1]ACS_16_5YR_B11001_with_ann!R59","v":84},{"$f":"[1]ACS_16_5YR_B11001_with_ann!S59","v":27},{"$f":"[1]ACS_16_5YR_B11001_with_ann!T59","v":55},{"$f":"[1]ACS_16_5YR_B11001_with_ann!U59","v":26}]
["0600000US3300574900","0600000US3300574900","060",{"$f":"[1]ACS_16_5YR_B11001_with_ann!C60","v":"Sullivan"},{"$f":"[1]ACS_16_5YR_B11001_with_ann!D60","v":281},{"$f":"[1]ACS_16_5YR_B11001_with_ann!E60","v":53},{"$f":"[1]ACS_16_5YR_B11001_with_ann!F60","v":196},{"$f":"[1]ACS_16_5YR_B11001_with_ann!G60","v":45},{"$f":"[1]ACS_16_5YR_B11001_with_ann!H60","v":167},{"$f":"[1]ACS_16_5YR_B11001_with_ann!I60","v":45},{"$f":"[1]ACS_16_5YR_B11001_with_ann!J60","v":29},{"$f":"[1]ACS_16_5YR_B11001_with_ann!K60","v":19},{"$f":"[1]ACS_16_5YR_B11001_with_ann!L60","v":21},{"$f":"[1]ACS_16_5YR_B11001_with_ann!M60","v":17},{"$f":"[1]ACS_16_5YR_B11001_with_ann!N60","v":8},{"$f":"[1]ACS_16_5YR_B11001_with_ann!O60","v":7},{"$f":"[1]ACS_16_5YR_B11001_with_ann!P60","v":85},{"$f":"[1]ACS_16_5YR_B11001_with_ann!Q60","v":24},{"$f":"[1]ACS_16_5YR_B11001_with_ann!R60","v":59},{"$f":"[1]ACS_16_5YR_B11001_with_ann!S60","v":18},{"$f":"[1]ACS_16_5YR_B11001_with_ann!T60","v":26},{"$f":"[1]ACS_16_5YR_B11001_with_ann!U60","v":15}]
["0600000US3300575300","0600000US3300575300","060",{"$f":"[1]ACS_16_5YR_B11001_with_ann!C61","v":"Surry"},{"$f":"[1]ACS_16_5YR_B11001_with_ann!D61","v":344},{"$f":"[1]ACS_16_5YR_B11001_with_ann!E61","v":58},{"$f":"[1]ACS_16_5YR_B11001_with_ann!F61","v":262},{"$f":"[1]ACS_16_5YR_B11001_with_ann!G61","v":60},{"$f":"[1]ACS_16_5YR_B11001_with_ann!H61","v":233},{"$f":"[1]ACS_16_5YR_B11001_with_ann!I61","v":60},{"$f":"[1]ACS_16_5YR_B11001_with_ann!J61","v":29},{"$f":"[1]ACS_16_5YR_B11001_with_ann!K61","v":16},{"$f":"[1]ACS_16_5YR_B11001_with_ann!L61","v":6},{"$f":"[1]ACS_16_5YR_B11001_with_ann!M61","v":5},{"$f":"[1]ACS_16_5YR_B11001_with_ann!N61","v":23},{"$f":"[1]ACS_16_5YR_B11001_with_ann!O61","v":15},{"$f":"[1]ACS_16_5YR_B11001_with_ann!P61","v":82},{"$f":"[1]ACS_16_5YR_B11001_with_ann!Q61","v":23},{"$f":"[1]ACS_16_5YR_B11001_with_ann!R61","v":61},{"$f":"[1]ACS_16_5YR_B11001_with_ann!S61","v":22},{"$f":"[1]ACS_16_5YR_B11001_with_ann!T61","v":21},{"$f":"[1]ACS_16_5YR_B11001_with_ann!U61","v":15}]
["0600000US3300575700","0600000US3300575700","060",{"$f":"[1]ACS_16_5YR_B11001_with_ann!C62","v":"Swanzey"},{"$f":"[1]ACS_16_5YR_B11001_with_ann!D62","v":3255},{"$f":"[1]ACS_16_5YR_B11001_with_ann!E62","v":171},{"$f":"[1]ACS_16_5YR_B11001_with_ann!F62","v":2089},{"$f":"[1]ACS_16_5YR_B11001_with_ann!G62","v":223},{"$f":"[1]ACS_16_5YR_B11001_with_ann!H62","v":1583},{"$f":"[1]ACS_16_5YR_B11001_with_ann!I62","v":258},{"$f":"[1]ACS_16_5YR_B11001_with_ann!J62","v":506},{"$f":"[1]ACS_16_5YR_B11001_with_ann!K62","v":188},{"$f":"[1]ACS_16_5YR_B11001_with_ann!L62","v":147},{"$f":"[1]ACS_16_5YR_B11001_with_ann!M62","v":114},{"$f":"[1]ACS_16_5YR_B11001_with_ann!N62","v":359},{"$f":"[1]ACS_16_5YR_B11001_with_ann!O62","v":152},{"$f":"[1]ACS_16_5YR_B11001_with_ann!P62","v":1166},{"$f":"[1]ACS_16_5YR_B11001_with_ann!Q62","v":251},{"$f":"[1]ACS_16_5YR_B11001_with_ann!R62","v":750},{"$f":"[1]ACS_16_5YR_B11001_with_ann!S62","v":175},{"$f":"[1]ACS_16_5YR_B11001_with_ann!T62","v":416},{"$f":"[1]ACS_16_5YR_B11001_with_ann!U62","v":189}]
["0600000US3300577380","0600000US3300577380","060",{"$f":"[1]ACS_16_5YR_B11001_with_ann!C63","v":"Troy"},{"$f":"[1]ACS_16_5YR_B11001_with_ann!D63","v":758},{"$f":"[1]ACS_16_5YR_B11001_with_ann!E63","v":101},{"$f":"[1]ACS_16_5YR_B11001_with_ann!F63","v":497},{"$f":"[1]ACS_16_5YR_B11001_with_ann!G63","v":87},{"$f":"[1]ACS_16_5YR_B11001_with_ann!H63","v":359},{"$f":"[1]ACS_16_5YR_B11001_with_ann!I63","v":71},{"$f":"[1]ACS_16_5YR_B11001_with_ann!J63","v":138},{"$f":"[1]ACS_16_5YR_B11001_with_ann!K63","v":52},{"$f":"[1]ACS_16_5YR_B11001_with_ann!L63","v":57},{"$f":"[1]ACS_16_5YR_B11001_with_ann!M63","v":35},{"$f":"[1]ACS_16_5YR_B11001_with_ann!N63","v":81},{"$f":"[1]ACS_16_5YR_B11001_with_ann!O63","v":37},{"$f":"[1]ACS_16_5YR_B11001_with_ann!P63","v":261},{"$f":"[1]ACS_16_5YR_B11001_with_ann!Q63","v":80},{"$f":"[1]ACS_16_5YR_B11001_with_ann!R63","v":190},{"$f":"[1]ACS_16_5YR_B11001_with_ann!S63","v":69},{"$f":"[1]ACS_16_5YR_B11001_with_ann!T63","v":71},{"$f":"[1]ACS_16_5YR_B11001_with_ann!U63","v":36}]
["0600000US3300578420","0600000US3300578420","060",{"$f":"[1]ACS_16_5YR_B11001_with_ann!C64","v":"Walpole"},{"$f":"[1]ACS_16_5YR_B11001_with_ann!D64","v":1427},{"$f":"[1]ACS_16_5YR_B11001_with_ann!E64","v":121},{"$f":"[1]ACS_16_5YR_B11001_with_ann!F64","v":883},{"$f":"[1]ACS_16_5YR_B11001_with_ann!G64","v":94},{"$f":"[1]ACS_16_5YR_B11001_with_ann!H64","v":717},{"$f":"[1]ACS_16_5YR_B11001_with_ann!I64","v":98},{"$f":"[1]ACS_16_5YR_B11001_with_ann!J64","v":166},{"$f":"[1]ACS_16_5YR_B11001_with_ann!K64","v":81},{"$f":"[1]ACS_16_5YR_B11001_with_ann!L64","v":43},{"$f":"[1]ACS_16_5YR_B11001_with_ann!M64","v":30},{"$f":"[1]ACS_16_5YR_B11001_with_ann!N64","v":123},{"$f":"[1]ACS_16_5YR_B11001_with_ann!O64","v":72},{"$f":"[1]ACS_16_5YR_B11001_with_ann!P64","v":544},{"$f":"[1]ACS_16_5YR_B11001_with_ann!Q64","v":145},{"$f":"[1]ACS_16_5YR_B11001_with_ann!R64","v":472},{"$f":"[1]ACS_16_5YR_B11001_with_ann!S64","v":143},{"$f":"[1]ACS_16_5YR_B11001_with_ann!T64","v":72},{"$f":"[1]ACS_16_5YR_B11001_with_ann!U64","v":46}]
["0600000US3300582660","0600000US3300582660","060",{"$f":"[1]ACS_16_5YR_B11001_with_ann!C65","v":"Westmoreland"},{"$f":"[1]ACS_16_5YR_B11001_with_ann!D65","v":885},{"$f":"[1]ACS_16_5YR_B11001_with_ann!E65","v":182},{"$f":"[1]ACS_16_5YR_B11001_with_ann!F65","v":669},{"$f":"[1]ACS_16_5YR_B11001_with_ann!G65","v":155},{"$f":"[1]ACS_16_5YR_B11001_with_ann!H65","v":609},{"$f":"[1]ACS_16_5YR_B11001_with_ann!I65","v":146},{"$f":"[1]ACS_16_5YR_B11001_with_ann!J65","v":60},{"$f":"[1]ACS_16_5YR_B11001_with_ann!K65","v":58},{"$f":"[1]ACS_16_5YR_B11001_with_ann!L65","v":11},{"$f":"[1]ACS_16_5YR_B11001_with_ann!M65","v":9},{"$f":"[1]ACS_16_5YR_B11001_with_ann!N65","v":49},{"$f":"[1]ACS_16_5YR_B11001_with_ann!O65","v":58},{"$f":"[1]ACS_16_5YR_B11001_with_ann!P65","v":216},{"$f":"[1]ACS_16_5YR_B11001_with_ann!Q65","v":94},{"$f":"[1]ACS_16_5YR_B11001_with_ann!R65","v":188},{"$f":"[1]ACS_16_5YR_B11001_with_ann!S65","v":84},{"$f":"[1]ACS_16_5YR_B11001_with_ann!T65","v":28},{"$f":"[1]ACS_16_5YR_B11001_with_ann!U65","v":29}]
["0600000US3300585540","0600000US3300585540","060",{"$f":"[1]ACS_16_5YR_B11001_with_ann!C66","v":"Winchester"},{"$f":"[1]ACS_16_5YR_B11001_with_ann!D66","v":1617},{"$f":"[1]ACS_16_5YR_B11001_with_ann!E66","v":146},{"$f":"[1]ACS_16_5YR_B11001_with_ann!F66","v":909},{"$f":"[1]ACS_16_5YR_B11001_with_ann!G66","v":104},{"$f":"[1]ACS_16_5YR_B11001_with_ann!H66","v":713},{"$f":"[1]ACS_16_5YR_B11001_with_ann!I66","v":112},{"$f":"[1]ACS_16_5YR_B11001_with_ann!J66","v":196},{"$f":"[1]ACS_16_5YR_B11001_with_ann!K66","v":76},{"$f":"[1]ACS_16_5YR_B11001_with_ann!L66","v":26},{"$f":"[1]ACS_16_5YR_B11001_with_ann!M66","v":44},{"$f":"[1]ACS_16_5YR_B11001_with_ann!N66","v":170},{"$f":"[1]ACS_16_5YR_B11001_with_ann!O66","v":70},{"$f":"[1]ACS_16_5YR_B11001_with_ann!P66","v":708},{"$f":"[1]ACS_16_5YR_B11001_with_ann!Q66","v":172},{"$f":"[1]ACS_16_5YR_B11001_with_ann!R66","v":558},{"$f":"[1]ACS_16_5YR_B11001_with_ann!S66","v":159},{"$f":"[1]ACS_16_5YR_B11001_with_ann!T66","v":150},{"$f":"[1]ACS_16_5YR_B11001_with_ann!U66","v":75}]
[]
[]
[null,null,null,null,null,null,null,null,null,null,null,null,null,null,null,null,null,null,null,null,null,null,null,null,null,null,null,null,null,null,null,null,null,null,null,null,null,null,null,null,null,null,{"$f":"$D$22","v":"Troy"},null,{"$f":"$D$23","v":"Walpole"},null,{"$f":"$D$24","v":"Westmoreland"},null,{"$f":"$D$25","v":"Winchester"}]
[null,null,null,null,{"$f":"$D$3","v":"Alstead"},null,{"$f":"$D$4","v":"Chesterfield"},null,{"$f":"$D$5","v":"Dublin"},null,{"$f":"$D$6","v":"Fitzwilliam"},null,{"$f":"$D$7","v":"Gilsum"},null,{"$f":"$D$8","v":"Harrisville"},null,{"$f":"$D$9","v":"Hinsdale"},null,{"$f":"$D$10","v":"Jaffrey"},null,{"$f":"$D$11","v":"Keene"},null,{"$f":"$D$12","v":"Marlborough"},null,{"$f":"$D$13","v":"Marlow"},null,{"$f":"$D$14","v":"Nelson"},null,{"$f":"$D$15","v":"Richmond"},null,{"$f":"$D$16","v":"Rindge"},null,{"$f":"$D$17","v":"Roxbury"},null,{"$f":"$D$18","v":"Stoddard"},null,{"$f":"$D$19","v":"Sullivan"},null,{"$f":"$D$20","v":"Surry"},null,{"$f":"$D$21","v":"Swanzey"},null,{"$f":"$D$21","v":"Swanzey"},null,{"$f":"$D$21","v":"Swanzey"},null,{"$f":"$D$21","v":"Swanzey"},null,{"$f":"$D$21","v":"Swanzey"}]
[null,null,null,null,"Estimate","Margin of Error","Estimate","Margin of Error","Estimate","Margin of Error","Estimate","Margin of Error","Estimate","Margin of Error","Estimate","Margin of Error","Estimate","Margin of Error","Estimate","Margin of Error","Estimate","Margin of Error","Estimate","Margin of Error","Estimate","Margin of Error","Estimate","Margin of Error","Estimate","Margin of Error","Estimate","Margin of Error","Estimate","Margin of Error","Estimate","Margin of Error","Estimate","Margin of Error","Estimate","Margin of Error","Estimate","Margin of Error"]
[null,null,null,"Estimate!!Total:",723,97,1366,158,635,101,1013,154,310,51,416,75,1594,139,2026,225,9259,370,942,130,314,61,246,41,393,73,1972,144,95,37,436,52,281,53,344,58,3255,171,758,101,1427,121,885,182,1617,146]
[null,null,null,"Estimate!!Total:!!Family households:",454,72,1003,131,527,93,619,124,230,43,313,70,1049,141,1374,156,4541,311,557,107,247,59,167,39,316,68,1451,123,66,37,297,45,196,45,262,60,2089,223,497,87,883,94,669,155,909,104]
[null,null,null,"Estimate!!Total:!!Family households:!!Married-couple family",389,73,848,155,454,95,481,77,193,37,271,66,884,153,1202,191,3393,299,446,99,227,55,136,31,245,57,1368,126,57,37,259,45,167,45,233,60,1583,258,359,71,717,98,609,146,713,112]
[null,null,null,"Estimate!!Total:!!Family households:!!Other family:",65,21,155,87,73,30,138,101,37,28,42,22,165,95,172,86,1148,218,111,66,20,17,31,18,71,40,83,47,9,11,38,21,29,19,29,16,506,188,138,52,166,81,60,58,196,76]
[null,null,null,"Estimate!!Total:!!Family households:!!Other family:!!Male householder, no spouse present",13,11,18,29,35,22,55,33,10,12,12,10,81,75,36,38,334,150,21,22,8,12,10,10,41,37,35,38,8,11,19,17,21,17,6,5,147,114,57,35,43,30,11,9,26,44]
[null,null,null,"Estimate!!Total:!!Family households:!!Other family:!!Female householder, no spouse present",52,20,137,81,38,20,83,93,27,26,30,19,84,61,136,88,814,170,90,64,12,11,21,14,30,24,48,42,1,2,19,13,8,7,23,15,359,152,81,37,123,72,49,58,170,70]
[null,null,null,"Estimate!!Total:!!Nonfamily households:",269,84,363,168,108,32,394,89,80,29,103,30,545,133,652,266,4718,494,385,81,67,22,79,24,77,29,521,144,29,13,139,39,85,24,82,23,1166,251,261,80,544,145,216,94,708,172]
[null,null,null,"Estimate!!Total:!!Nonfamily households:!!Householder living alone",201,78,326,169,90,31,262,66,62,25,77,28,406,127,495,245,3651,482,257,61,58,22,66,25,51,21,399,123,18,9,84,27,59,18,61,22,750,175,190,69,472,143,188,84,558,159]
[null,null,null,"Estimate!!Total:!!Nonfamily households:!!Householder not living alone",68,33,37,39,18,10,132,70,18,14,26,17,139,78,157,105,1067,230,128,63,9,7,13,9,26,23,122,66,11,10,55,26,26,15,21,15,416,189,71,36,72,46,28,29,150,75]

{"sheet":"SData_B11002PopByHHType","index":26,"n_rows":42,"n_cols":50,"rows_kept":42,"cut":false,"hidden":true,"merged":[[0,27,0,27],[0,16,0,16],[0,17,0,17],[0,18,0,18],[0,19,0,19],[0,20,0,20],[0,21,0,21],[0,22,0,22],[0,23,0,23],[0,24,0,24],[0,25,0,25],[0,26,0,26],[0,15,0,15],[0,4,0,4],[0,5,0,5],[0,6,0,6],[0,7,0,7],[0,8,0,8],[0,9,0,9],[0,10,0,10],[0,11,0,11],[0,12,0,12],[0,13,0,13],[0,14,0,14]]}
["GEO_ID","GEO_ID2","SUMLEVEL","GEO_NAME",{"$f":"[1]ACS_16_5YR_B11002_with_ann!D1","v":"B11002_001E"},{"$f":"[1]ACS_16_5YR_B11002_with_ann!E1","v":"B11002_001M"},{"$f":"[1]ACS_16_5YR_B11002_with_ann!F1","v":"B11002_002E"},{"$f":"[1]ACS_16_5YR_B11002_with_ann!G1","v":"B11002_002M"},{"$f":"[1]ACS_16_5YR_B11002_with_ann!H1","v":"B11002_003E"},{"$f":"[1]ACS_16_5YR_B11002_with_ann!I1","v":"B11002_003M"},{"$f":"[1]ACS_16_5YR_B11002_with_ann!J1","v":"B11002_004E"},{"$f":"[1]ACS_16_5YR_B11002_with_ann!K1","v":"B11002_004M"},{"$f":"[1]ACS_16_5YR_B11002_with_ann!L1","v":"B11002_005E"},{"$f":"[1]ACS_16_5YR_B11002_with_ann!M1","v":"B11002_005M"},{"$f":"[1]ACS_16_5YR_B11002_with_ann!N1","v":"B11002_006E"},{"$f":"[1]ACS_16_5YR_B11002_with_ann!O1","v":"B11002_006M"},{"$f":"[1]ACS_16_5YR_B11002_with_ann!P1","v":"B11002_007E"},{"$f":"[1]ACS_16_5YR_B11002_with_ann!Q1","v":"B11002_007M"},{"$f":"[1]ACS_16_5YR_B11002_with_ann!R1","v":"B11002_008E"},{"$f":"[1]ACS_16_5YR_B11002_with_ann!S1","v":"B11002_008M"},{"$f":"[1]ACS_16_5YR_B11002_with_ann!T1","v":"B11002_009E"},{"$f":"[1]ACS_16_5YR_B11002_with_ann!U1","v":"B11002_009M"},{"$f":"[1]ACS_16_5YR_B11002_with_ann!V1","v":"B11002_010E"},{"$f":"[1]ACS_16_5YR_B11002_with_ann!W1","v":"B11002_010M"},{"$f":"[1]ACS_16_5YR_B11002_with_ann!X1","v":"B11002_011E"},{"$f":"[1]ACS_16_5YR_B11002_with_ann!Y1","v":"B11002_011M"},{"$f":"[1]ACS_16_5YR_B11002_with_ann!Z1","v":"B11002_012E"},{"$f":"[1]ACS_16_5YR_B11002_with_ann!AA1","v":"B11002_012M"}]
["Geography Identifier","Geography Identifier","Geographic Summary Level","Geography",{"$f":"[1]ACS_16_5YR_B11002_with_ann!D2","v":"Estimate!!Total:"},{"$f":"[1]ACS_16_5YR_B11002_with_ann!E2","v":"Margin of Error!!Total:"},{"$f":"[1]ACS_16_5YR_B11002_with_ann!F2","v":"Estimate!!Total:!!In family households:"},{"$f":"[1]ACS_16_5YR_B11002_with_ann!G2","v":"Margin of Error!!Total:!!In family households:"},{"$f":"[1]ACS_16_5YR_B11002_with_ann!H2","v":"Estimate!!Total:!!In family households:!!In married-couple family:"},{"$f":"[1]ACS_16_5YR_B11002_with_ann!I2","v":"Margin of Error!!Total:!!In family households:!!In married-couple family:"},{"$f":"[1]ACS_16_5YR_B11002_with_ann!J2","v":"Estimate!!Total:!!In family households:!!In married-couple family:!!Relatives"},{"$f":"[1]ACS_16_5YR_B11002_with_ann!K2","v":"Margin of Error!!Total:!!In family households:!!In married-couple family:!!Relatives"},{"$f":"[1]ACS_16_5YR_B11002_with_ann!L2","v":"Estimate!!Total:!!In family households:!!In married-couple family:!!Nonrelatives"},{"$f":"[1]ACS_16_5YR_B11002_with_ann!M2","v":"Margin of Error!!Total:!!In family households:!!In married-couple family:!!Nonrelatives"},{"$f":"[1]ACS_16_5YR_B11002_with_ann!N2","v":"Estimate!!Total:!!In family households:!!In male householder, no spouse present, family:"},{"$f":"[1]ACS_16_5YR_B11002_with_ann!O2","v":"Margin of Error!!Total:!!In family households:!!In male householder, no spouse present, family:"},{"$f":"[1]ACS_16_5YR_B11002_with_ann!P2","v":"Estimate!!Total:!!In family households:!!In male householder, no spouse present, family:!!Relatives"},{"$f":"[1]ACS_16_5YR_B11002_with_ann!Q2","v":"Margin of Error!!Total:!!In family households:!!In male householder, no spouse present, family:!!Relatives"},{"$f":"[1]ACS_16_5YR_B11002_with_ann!R2","v":"Estimate!!Total:!!In family households:!!In male householder, no spouse present, family:!!Nonrelatives"},{"$f":"[1]ACS_16_5YR_B11002_with_ann!S2","v":"Margin of Error!!Total:!!In family households:!!In male householder, no spouse present, family:!!Nonrelatives"},{"$f":"[1]ACS_16_5YR_B11002_with_ann!T2","v":"Estimate!!Total:!!In family households:!!In female householder, no spouse present, family:"},{"$f":"[1]ACS_16_5YR_B11002_with_ann!U2","v":"Margin of Error!!Total:!!In family households:!!In female householder, no spouse present, family:"},{"$f":"[1]ACS_16_5YR_B11002_with_ann!V2","v":"Estimate!!Total:!!In family households:!!In female householder, no spouse present, family:!!Relatives"},{"$f":"[1]ACS_16_5YR_B11002_with_ann!W2","v":"Margin of Error!!Total:!!In family households:!!In female householder, no spouse present, family:!!Relatives"},{"$f":"[1]ACS_16_5YR_B11002_with_ann!X2","v":"Estimate!!Total:!!In family households:!!In female householder, no spouse present, family:!!Nonrelatives"},{"$f":"[1]ACS_16_5YR_B11002_with_ann!Y2","v":"Margin of Error!!Total:!!In family households:!!In female householder, no spouse present, family:!!Nonrelatives"},{"$f":"[1]ACS_16_5YR_B11002_with_ann!Z2","v":"Estimate!!Total:!!In nonfamily households"},{"$f":"[1]ACS_16_5YR_B11002_with_ann!AA2","v":"Margin of Error!!Total:!!In nonfamily households"}]
["0600000US3300500820","0600000US3300500820","060",{"$f":"[1]ACS_16_5YR_B11002_with_ann!C44","v":"Alstead"},{"$f":"[1]ACS_16_5YR_B11002_with_ann!D44","v":1599},{"$f":"[1]ACS_16_5YR_B11002_with_ann!E44","v":169},{"$f":"[1]ACS_16_5YR_B11002_with_ann!F44","v":1238},{"$f":"[1]ACS_16_5YR_B11002_with_ann!G44","v":149},{"$f":"[1]ACS_16_5YR_B11002_with_ann!H44","v":1015},{"$f":"[1]ACS_16_5YR_B11002_with_ann!I44","v":157},{"$f":"[1]ACS_16_5YR_B11002_with_ann!J44","v":1015},{"$f":"[1]ACS_16_5YR_B11002_with_ann!K44","v":157},{"$f":"[1]ACS_16_5YR_B11002_with_ann!L44","v":0},{"$f":"[1]ACS_16_5YR_B11002_with_ann!M44","v":12},{"$f":"[1]ACS_16_5YR_B11002_with_ann!N44","v":44},{"$f":"[1]ACS_16_5YR_B11002_with_ann!O44","v":36},{"$f":"[1]ACS_16_5YR_B11002_with_ann!P44","v":34},{"$f":"[1]ACS_16_5YR_B11002_with_ann!Q44","v":27},{"$f":"[1]ACS_16_5YR_B11002_with_ann!R44","v":10},{"$f":"[1]ACS_16_5YR_B11002_with_ann!S44","v":10},{"$f":"[1]ACS_16_5YR_B11002_with_ann!T44","v":179},{"$f":"[1]ACS_16_5YR_B11002_with_ann!U44","v":75},{"$f":"[1]ACS_16_5YR_B11002_with_ann!V44","v":158},{"$f":"[1]ACS_16_5YR_B11002_with_ann!W44","v":65},{"$f":"[1]ACS_16_5YR_B11002_with_ann!X44","v":21},{"$f":"[1]ACS_16_5YR_B11002_with_ann!Y44","v":16},{"$f":"[1]ACS_16_5YR_B11002_with_ann!Z44","v":361},{"$f":"[1]ACS_16_5YR_B11002_with_ann!AA44","v":106}]
["0600000US3300512260","0600000US3300512260","060",{"$f":"[1]ACS_16_5YR_B11002_with_ann!C45","v":"Chesterfield"},{"$f":"[1]ACS_16_5YR_B11002_with_ann!D45","v":3577},{"$f":"[1]ACS_16_5YR_B11002_with_ann!E45","v":15},{"$f":"[1]ACS_16_5YR_B11002_with_ann!F45","v":3174},{"$f":"[1]ACS_16_5YR_B11002_with_ann!G45","v":175},{"$f":"[1]ACS_16_5YR_B11002_with_ann!H45","v":2553},{"$f":"[1]ACS_16_5YR_B11002_with_ann!I45","v":375},{"$f":"[1]ACS_16_5YR_B11002_with_ann!J45","v":2534},{"$f":"[1]ACS_16_5YR_B11002_with_ann!K45","v":376},{"$f":"[1]ACS_16_5YR_B11002_with_ann!L45","v":19},{"$f":"[1]ACS_16_5YR_B11002_with_ann!M45","v":29},{"$f":"[1]ACS_16_5YR_B11002_with_ann!N45","v":50},{"$f":"[1]ACS_16_5YR_B11002_with_ann!O45","v":79},{"$f":"[1]ACS_16_5YR_B11002_with_ann!P45","v":33},{"$f":"[1]ACS_16_5YR_B11002_with_ann!Q45","v":52},{"$f":"[1]ACS_16_5YR_B11002_with_ann!R45","v":17},{"$f":"[1]ACS_16_5YR_B11002_with_ann!S45","v":28},{"$f":"[1]ACS_16_5YR_B11002_with_ann!T45","v":571},{"$f":"[1]ACS_16_5YR_B11002_with_ann!U45","v":345},{"$f":"[1]ACS_16_5YR_B11002_with_ann!V45","v":516},{"$f":"[1]ACS_16_5YR_B11002_with_ann!W45","v":322},{"$f":"[1]ACS_16_5YR_B11002_with_ann!X45","v":55},{"$f":"[1]ACS_16_5YR_B11002_with_ann!Y45","v":52},{"$f":"[1]ACS_16_5YR_B11002_with_ann!Z45","v":403},{"$f":"[1]ACS_16_5YR_B11002_with_ann!AA45","v":175}]
["0600000US3300519140","0600000US3300519140","060",{"$f":"[1]ACS_16_5YR_B11002_with_ann!C46","v":"Dublin"},{"$f":"[1]ACS_16_5YR_B11002_with_ann!D46","v":1617},{"$f":"[1]ACS_16_5YR_B11002_with_ann!E46","v":217},{"$f":"[1]ACS_16_5YR_B11002_with_ann!F46","v":1483},{"$f":"[1]ACS_16_5YR_B11002_with_ann!G46","v":216},{"$f":"[1]ACS_16_5YR_B11002_with_ann!H46","v":1246},{"$f":"[1]ACS_16_5YR_B11002_with_ann!I46","v":218},{"$f":"[1]ACS_16_5YR_B11002_with_ann!J46","v":1246},{"$f":"[1]ACS_16_5YR_B11002_with_ann!K46","v":218},{"$f":"[1]ACS_16_5YR_B11002_with_ann!L46","v":0},{"$f":"[1]ACS_16_5YR_B11002_with_ann!M46","v":12},{"$f":"[1]ACS_16_5YR_B11002_with_ann!N46","v":118},{"$f":"[1]ACS_16_5YR_B11002_with_ann!O46","v":66},{"$f":"[1]ACS_16_5YR_B11002_with_ann!P46","v":97},{"$f":"[1]ACS_16_5YR_B11002_with_ann!Q46","v":53},{"$f":"[1]ACS_16_5YR_B11002_with_ann!R46","v":21},{"$f":"[1]ACS_16_5YR_B11002_with_ann!S46","v":17},{"$f":"[1]ACS_16_5YR_B11002_with_ann!T46","v":119},{"$f":"[1]ACS_16_5YR_B11002_with_ann!U46","v":65},{"$f":"[1]ACS_16_5YR_B11002_with_ann!V46","v":119},{"$f":"[1]ACS_16_5YR_B11002_with_ann!W46","v":65},{"$f":"[1]ACS_16_5YR_B11002_with_ann!X46","v":0},{"$f":"[1]ACS_16_5YR_B11002_with_ann!Y46","v":12},{"$f":"[1]ACS_16_5YR_B11002_with_ann!Z46","v":134},{"$f":"[1]ACS_16_5YR_B11002_with_ann!AA46","v":39}]
["0600000US3300526500","0600000US3300526500","060",{"$f":"[1]ACS_16_5YR_B11002_with_ann!C47","v":"Fitzwilliam"},{"$f":"[1]ACS_16_5YR_B11002_with_ann!D47","v":2287},{"$f":"[1]ACS_16_5YR_B11002_with_ann!E47","v":368},{"$f":"[1]ACS_16_5YR_B11002_with_ann!F47","v":1762},{"$f":"[1]ACS_16_5YR_B11002_with_ann!G47","v":321},{"$f":"[1]ACS_16_5YR_B11002_with_ann!H47","v":1334},{"$f":"[1]ACS_16_5YR_B11002_with_ann!I47","v":212},{"$f":"[1]ACS_16_5YR_B11002_with_ann!J47","v":1312},{"$f":"[1]ACS_16_5YR_B11002_with_ann!K47","v":211},{"$f":"[1]ACS_16_5YR_B11002_with_ann!L47","v":22},{"$f":"[1]ACS_16_5YR_B11002_with_ann!M47","v":31},{"$f":"[1]ACS_16_5YR_B11002_with_ann!N47","v":158},{"$f":"[1]ACS_16_5YR_B11002_with_ann!O47","v":103},{"$f":"[1]ACS_16_5YR_B11002_with_ann!P47","v":155},{"$f":"[1]ACS_16_5YR_B11002_with_ann!Q47","v":100},{"$f":"[1]ACS_16_5YR_B11002_with_ann!R47","v":3},{"$f":"[1]ACS_16_5YR_B11002_with_ann!S47","v":5},{"$f":"[1]ACS_16_5YR_B11002_with_ann!T47","v":270},{"$f":"[1]ACS_16_5YR_B11002_with_ann!U47","v":247},{"$f":"[1]ACS_16_5YR_B11002_with_ann!V47","v":243},{"$f":"[1]ACS_16_5YR_B11002_with_ann!W47","v":241},{"$f":"[1]ACS_16_5YR_B11002_with_ann!X47","v":27},{"$f":"[1]ACS_16_5YR_B11002_with_ann!Y47","v":48},{"$f":"[1]ACS_16_5YR_B11002_with_ann!Z47","v":525},{"$f":"[1]ACS_16_5YR_B11002_with_ann!AA47","v":141}]
["0600000US3300529220","0600000US3300529220","060",{"$f":"[1]ACS_16_5YR_B11002_with_ann!C48","v":"Gilsum"},{"$f":"[1]ACS_16_5YR_B11002_with_ann!D48","v":863},{"$f":"[1]ACS_16_5YR_B11002_with_ann!E48","v":144},{"$f":"[1]ACS_16_5YR_B11002_with_ann!F48","v":750},{"$f":"[1]ACS_16_5YR_B11002_with_ann!G48","v":140},{"$f":"[1]ACS_16_5YR_B11002_with_ann!H48","v":626},{"$f":"[1]ACS_16_5YR_B11002_with_ann!I48","v":140},{"$f":"[1]ACS_16_5YR_B11002_with_ann!J48","v":614},{"$f":"[1]ACS_16_5YR_B11002_with_ann!K48","v":136},{"$f":"[1]ACS_16_5YR_B11002_with_ann!L48","v":12},{"$f":"[1]ACS_16_5YR_B11002_with_ann!M48","v":17},{"$f":"[1]ACS_16_5YR_B11002_with_ann!N48","v":27},{"$f":"[1]ACS_16_5YR_B11002_with_ann!O48","v":31},{"$f":"[1]ACS_16_5YR_B11002_with_ann!P48","v":27},{"$f":"[1]ACS_16_5YR_B11002_with_ann!Q48","v":31},{"$f":"[1]ACS_16_5YR_B11002_with_ann!R48","v":0},{"$f":"[1]ACS_16_5YR_B11002_with_ann!S48","v":12},{"$f":"[1]ACS_16_5YR_B11002_with_ann!T48","v":97},{"$f":"[1]ACS_16_5YR_B11002_with_ann!U48","v":82},{"$f":"[1]ACS_16_5YR_B11002_with_ann!V48","v":92},{"$f":"[1]ACS_16_5YR_B11002_with_ann!W48","v":82},{"$f":"[1]ACS_16_5YR_B11002_with_ann!X48","v":5},{"$f":"[1]ACS_16_5YR_B11002_with_ann!Y48","v":5},{"$f":"[1]ACS_16_5YR_B11002_with_ann!Z48","v":113},{"$f":"[1]ACS_16_5YR_B11002_with_ann!AA48","v":44}]
["0600000US3300534420","0600000US3300534420","060",{"$f":"[1]ACS_16_5YR_B11002_with_ann!C49","v":"Harrisville"},{"$f":"[1]ACS_16_5YR_B11002_with_ann!D49","v":977},{"$f":"[1]ACS_16_5YR_B11002_with_ann!E49","v":197},{"$f":"[1]ACS_16_5YR_B11002_with_ann!F49","v":833},{"$f":"[1]ACS_16_5YR_B11002_with_ann!G49","v":194},{"$f":"[1]ACS_16_5YR_B11002_with_ann!H49","v":701},{"$f":"[1]ACS_16_5YR_B11002_with_ann!I49","v":187},{"$f":"[1]ACS_16_5YR_B11002_with_ann!J49","v":701},{"$f":"[1]ACS_16_5YR_B11002_with_ann!K49","v":187},{"$f":"[1]ACS_16_5YR_B11002_with_ann!L49","v":0},{"$f":"[1]ACS_16_5YR_B11002_with_ann!M49","v":12},{"$f":"[1]ACS_16_5YR_B11002_with_ann!N49","v":37},{"$f":"[1]ACS_16_5YR_B11002_with_ann!O49","v":29},{"$f":"[1]ACS_16_5YR_B11002_with_ann!P49","v":28},{"$f":"[1]ACS_16_5YR_B11002_with_ann!Q49","v":22},{"$f":"[1]ACS_16_5YR_B11002_with_ann!R49","v":9},{"$f":"[1]ACS_16_5YR_B11002_with_ann!S49","v":8},{"$f":"[1]ACS_16_5YR_B11002_with_ann!T49","v":95},{"$f":"[1]ACS_16_5YR_B11002_with_ann!U49","v":60},{"$f":"[1]ACS_16_5YR_B11002_with_ann!V49","v":75},{"$f":"[1]ACS_16_5YR_B11002_with_ann!W49","v":46},{"$f":"[1]ACS_16_5YR_B11002_with_ann!X49","v":20},{"$f":"[1]ACS_16_5YR_B11002_with_ann!Y49","v":17},{"$f":"[1]ACS_16_5YR_B11002_with_ann!Z49","v":144},{"$f":"[1]ACS_16_5YR_B11002_with_ann!AA49","v":48}]
["0600000US3300536660","0600000US3300536660","060",{"$f":"[1]ACS_16_5YR_B11002_with_ann!C50","v":"Hinsdale"},{"$f":"[1]ACS_16_5YR_B11002_with_ann!D50","v":3965},{"$f":"[1]ACS_16_5YR_B11002_with_ann!E50","v":16},{"$f":"[1]ACS_16_5YR_B11002_with_ann!F50","v":3185},{"$f":"[1]ACS_16_5YR_B11002_with_ann!G50","v":208},{"$f":"[1]ACS_16_5YR_B11002_with_ann!H50","v":2638},{"$f":"[1]ACS_16_5YR_B11002_with_ann!I50","v":363},{"$f":"[1]ACS_16_5YR_B11002_with_ann!J50","v":2598},{"$f":"[1]ACS_16_5YR_B11002_with_ann!K50","v":360},{"$f":"[1]ACS_16_5YR_B11002_with_ann!L50","v":40},{"$f":"[1]ACS_16_5YR_B11002_with_ann!M50","v":61},{"$f":"[1]ACS_16_5YR_B11002_with_ann!N50","v":284},{"$f":"[1]ACS_16_5YR_B11002_with_ann!O50","v":267},{"$f":"[1]ACS_16_5YR_B11002_with_ann!P50","v":270},{"$f":"[1]ACS_16_5YR_B11002_with_ann!Q50","v":262},{"$f":"[1]ACS_16_5YR_B11002_with_ann!R50","v":14},{"$f":"[1]ACS_16_5YR_B11002_with_ann!S50","v":24},{"$f":"[1]ACS_16_5YR_B11002_with_ann!T50","v":263},{"$f":"[1]ACS_16_5YR_B11002_with_ann!U50","v":192},{"$f":"[1]ACS_16_5YR_B11002_with_ann!V50","v":212},{"$f":"[1]ACS_16_5YR_B11002_with_ann!W50","v":151},{"$f":"[1]ACS_16_5YR_B11002_with_ann!X50","v":51},{"$f":"[1]ACS_16_5YR_B11002_with_ann!Y50","v":49},{"$f":"[1]ACS_16_5YR_B11002_with_ann!Z50","v":780},{"$f":"[1]ACS_16_5YR_B11002_with_ann!AA50","v":207}]
["0600000US3300538500","0600000US3300538500","060",{"$f":"[1]ACS_16_5YR_B11002_with_ann!C51","v":"Jaffrey"},{"$f":"[1]ACS_16_5YR_B11002_with_ann!D51","v":5280},{"$f":"[1]ACS_16_5YR_B11002_with_ann!E51","v":31},{"$f":"[1]ACS_16_5YR_B11002_with_ann!F51","v":4467},{"$f":"[1]ACS_16_5YR_B11002_with_ann!G51","v":318},{"$f":"[1]ACS_16_5YR_B11002_with_ann!H51","v":3857},{"$f":"[1]ACS_16_5YR_B11002_with_ann!I51","v":443},{"$f":"[1]ACS_16_5YR_B11002_with_ann!J51","v":3798},{"$f":"[1]ACS_16_5YR_B11002_with_ann!K51","v":451},{"$f":"[1]ACS_16_5YR_B11002_with_ann!L51","v":59},{"$f":"[1]ACS_16_5YR_B11002_with_ann!M51","v":77},{"$f":"[1]ACS_16_5YR_B11002_with_ann!N51","v":145},{"$f":"[1]ACS_16_5YR_B11002_with_ann!O51","v":148},{"$f":"[1]ACS_16_5YR_B11002_with_ann!P51","v":104},{"$f":"[1]ACS_16_5YR_B11002_with_ann!Q51","v":98},{"$f":"[1]ACS_16_5YR_B11002_with_ann!R51","v":41},{"$f":"[1]ACS_16_5YR_B11002_with_ann!S51","v":56},{"$f":"[1]ACS_16_5YR_B11002_with_ann!T51","v":465},{"$f":"[1]ACS_16_5YR_B11002_with_ann!U51","v":284},{"$f":"[1]ACS_16_5YR_B11002_with_ann!V51","v":445},{"$f":"[1]ACS_16_5YR_B11002_with_ann!W51","v":280},{"$f":"[1]ACS_16_5YR_B11002_with_ann!X51","v":20},{"$f":"[1]ACS_16_5YR_B11002_with_ann!Y51","v":35},{"$f":"[1]ACS_16_5YR_B11002_with_ann!Z51","v":813},{"$f":"[1]ACS_16_5YR_B11002_with_ann!AA51","v":315}]
["0600000US3300539300","0600000US3300539300","060",{"$f":"[1]ACS_16_5YR_B11002_with_ann!C52","v":"Keene"},{"$f":"[1]ACS_16_5YR_B11002_with_ann!D52","v":20239},{"$f":"[1]ACS_16_5YR_B11002_with_ann!E52","v":48},{"$f":"[1]ACS_16_5YR_B11002_with_ann!F52","v":13599},{"$f":"[1]ACS_16_5YR_B11002_with_ann!G52","v":687},{"$f":"[1]ACS_16_5YR_B11002_with_ann!H52","v":9903},{"$f":"[1]ACS_16_5YR_B11002_with_ann!I52","v":858},{"$f":"[1]ACS_16_5YR_B11002_with_ann!J52","v":9851},{"$f":"[1]ACS_16_5YR_B11002_with_ann!K52","v":847},{"$f":"[1]ACS_16_5YR_B11002_with_ann!L52","v":52},{"$f":"[1]ACS_16_5YR_B11002_with_ann!M52","v":53},{"$f":"[1]ACS_16_5YR_B11002_with_ann!N52","v":1052},{"$f":"[1]ACS_16_5YR_B11002_with_ann!O52","v":534},{"$f":"[1]ACS_16_5YR_B11002_with_ann!P52","v":762},{"$f":"[1]ACS_16_5YR_B11002_with_ann!Q52","v":340},{"$f":"[1]ACS_16_5YR_B11002_with_ann!R52","v":290},{"$f":"[1]ACS_16_5YR_B11002_with_ann!S52","v":241},{"$f":"[1]ACS_16_5YR_B11002_with_ann!T52","v":2644},{"$f":"[1]ACS_16_5YR_B11002_with_ann!U52","v":571},{"$f":"[1]ACS_16_5YR_B11002_with_ann!V52","v":2349},{"$f":"[1]ACS_16_5YR_B11002_with_ann!W52","v":491},{"$f":"[1]ACS_16_5YR_B11002_with_ann!X52","v":295},{"$f":"[1]ACS_16_5YR_B11002_with_ann!Y52","v":125},{"$f":"[1]ACS_16_5YR_B11002_with_ann!Z52","v":6640},{"$f":"[1]ACS_16_5YR_B11002_with_ann!AA52","v":688}]
["0600000US3300545460","0600000US3300545460","060",{"$f":"[1]ACS_16_5YR_B11002_with_ann!C53","v":"Marlborough"},{"$f":"[1]ACS_16_5YR_B11002_with_ann!D53","v":2248},{"$f":"[1]ACS_16_5YR_B11002_with_ann!E53","v":391},{"$f":"[1]ACS_16_5YR_B11002_with_ann!F53","v":1698},{"$f":"[1]ACS_16_5YR_B11002_with_ann!G53","v":359},{"$f":"[1]ACS_16_5YR_B11002_with_ann!H53","v":1347},{"$f":"[1]ACS_16_5YR_B11002_with_ann!I53","v":336},{"$f":"[1]ACS_16_5YR_B11002_with_ann!J53","v":1347},{"$f":"[1]ACS_16_5YR_B11002_with_ann!K53","v":336},{"$f":"[1]ACS_16_5YR_B11002_with_ann!L53","v":0},{"$f":"[1]ACS_16_5YR_B11002_with_ann!M53","v":12},{"$f":"[1]ACS_16_5YR_B11002_with_ann!N53","v":64},{"$f":"[1]ACS_16_5YR_B11002_with_ann!O53","v":79},{"$f":"[1]ACS_16_5YR_B11002_with_ann!P53","v":52},{"$f":"[1]ACS_16_5YR_B11002_with_ann!Q53","v":59},{"$f":"[1]ACS_16_5YR_B11002_with_ann!R53","v":12},{"$f":"[1]ACS_16_5YR_B11002_with_ann!S53","v":21},{"$f":"[1]ACS_16_5YR_B11002_with_ann!T53","v":287},{"$f":"[1]ACS_16_5YR_B11002_with_ann!U53","v":208},{"$f":"[1]ACS_16_5YR_B11002_with_ann!V53","v":287},{"$f":"[1]ACS_16_5YR_B11002_with_ann!W53","v":208},{"$f":"[1]ACS_16_5YR_B11002_with_ann!X53","v":0},{"$f":"[1]ACS_16_5YR_B11002_with_ann!Y53","v":12},{"$f":"[1]ACS_16_5YR_B11002_with_ann!Z53","v":550},{"$f":"[1]ACS_16_5YR_B11002_with_ann!AA53","v":148}]
["0600000US3300545700","0600000US3300545700","060",{"$f":"[1]ACS_16_5YR_B11002_with_ann!C54","v":"Marlow"},{"$f":"[1]ACS_16_5YR_B11002_with_ann!D54","v":798},{"$f":"[1]ACS_16_5YR_B11002_with_ann!E54","v":175},{"$f":"[1]ACS_16_5YR_B11002_with_ann!F54","v":721},{"$f":"[1]ACS_16_5YR_B11002_with_ann!G54","v":173},{"$f":"[1]ACS_16_5YR_B11002_with_ann!H54","v":658},{"$f":"[1]ACS_16_5YR_B11002_with_ann!I54","v":163},{"$f":"[1]ACS_16_5YR_B11002_with_ann!J54","v":656},{"$f":"[1]ACS_16_5YR_B11002_with_ann!K54","v":162},{"$f":"[1]ACS_16_5YR_B11002_with_ann!L54","v":2},{"$f":"[1]ACS_16_5YR_B11002_with_ann!M54","v":5},{"$f":"[1]ACS_16_5YR_B11002_with_ann!N54","v":15},{"$f":"[1]ACS_16_5YR_B11002_with_ann!O54","v":23},{"$f":"[1]ACS_16_5YR_B11002_with_ann!P54","v":15},{"$f":"[1]ACS_16_5YR_B11002_with_ann!Q54","v":23},{"$f":"[1]ACS_16_5YR_B11002_with_ann!R54","v":0},{"$f":"[1]ACS_16_5YR_B11002_with_ann!S54","v":12},{"$f":"[1]ACS_16_5YR_B11002_with_ann!T54","v":48},{"$f":"[1]ACS_16_5YR_B11002_with_ann!U54","v":52},{"$f":"[1]ACS_16_5YR_B11002_with_ann!V54","v":38},{"$f":"[1]ACS_16_5YR_B11002_with_ann!W54","v":42},{"$f":"[1]ACS_16_5YR_B11002_with_ann!X54","v":10},{"$f":"[1]ACS_16_5YR_B11002_with_ann!Y54","v":11},{"$f":"[1]ACS_16_5YR_B11002_with_ann!Z54","v":77},{"$f":"[1]ACS_16_5YR_B11002_with_ann!AA54","v":24}]
["0600000US3300550580","0600000US3300550580","060",{"$f":"[1]ACS_16_5YR_B11002_with_ann!C55","v":"Nelson"},{"$f":"[1]ACS_16_5YR_B11002_with_ann!D55","v":550},{"$f":"[1]ACS_16_5YR_B11002_with_ann!E55","v":106},{"$f":"[1]ACS_16_5YR_B11002_with_ann!F55","v":455},{"$f":"[1]ACS_16_5YR_B11002_with_ann!G55","v":101},{"$f":"[1]ACS_16_5YR_B11002_with_ann!H55","v":347},{"$f":"[1]ACS_16_5YR_B11002_with_ann!I55","v":72},{"$f":"[1]ACS_16_5YR_B11002_with_ann!J55","v":337},{"$f":"[1]ACS_16_5YR_B11002_with_ann!K55","v":71},{"$f":"[1]ACS_16_5YR_B11002_with_ann!L55","v":10},{"$f":"[1]ACS_16_5YR_B11002_with_ann!M55","v":11},{"$f":"[1]ACS_16_5YR_B11002_with_ann!N55","v":34},{"$f":"[1]ACS_16_5YR_B11002_with_ann!O55","v":29},{"$f":"[1]ACS_16_5YR_B11002_with_ann!P55","v":26},{"$f":"[1]ACS_16_5YR_B11002_with_ann!Q55","v":20},{"$f":"[1]ACS_16_5YR_B11002_with_ann!R55","v":8},{"$f":"[1]ACS_16_5YR_B11002_with_ann!S55","v":10},{"$f":"[1]ACS_16_5YR_B11002_with_ann!T55","v":74},{"$f":"[1]ACS_16_5YR_B11002_with_ann!U55","v":48},{"$f":"[1]ACS_16_5YR_B11002_with_ann!V55","v":71},{"$f":"[1]ACS_16_5YR_B11002_with_ann!W55","v":46},{"$f":"[1]ACS_16_5YR_B11002_with_ann!X55","v":3},{"$f":"[1]ACS_16_5YR_B11002_with_ann!Y55","v":5},{"$f":"[1]ACS_16_5YR_B11002_with_ann!Z55","v":95},{"$f":"[1]ACS_16_5YR_B11002_with_ann!AA55","v":28}]
["0600000US3300564420","0600000US3300564420","060",{"$f":"[1]ACS_16_5YR_B11002_with_ann!C56","v":"Richmond"},{"$f":"[1]ACS_16_5YR_B11002_with_ann!D56","v":1102},{"$f":"[1]ACS_16_5YR_B11002_with_ann!E56","v":251},{"$f":"[1]ACS_16_5YR_B11002_with_ann!F56","v":999},{"$f":"[1]ACS_16_5YR_B11002_with_ann!G56","v":246},{"$f":"[1]ACS_16_5YR_B11002_with_ann!H56","v":763},{"$f":"[1]ACS_16_5YR_B11002_with_ann!I56","v":196},{"$f":"[1]ACS_16_5YR_B11002_with_ann!J56","v":763},{"$f":"[1]ACS_16_5YR_B11002_with_ann!K56","v":196},{"$f":"[1]ACS_16_5YR_B11002_with_ann!L56","v":0},{"$f":"[1]ACS_16_5YR_B11002_with_ann!M56","v":12},{"$f":"[1]ACS_16_5YR_B11002_with_ann!N56","v":156},{"$f":"[1]ACS_16_5YR_B11002_with_ann!O56","v":138},{"$f":"[1]ACS_16_5YR_B11002_with_ann!P56","v":137},{"$f":"[1]ACS_16_5YR_B11002_with_ann!Q56","v":124},{"$f":"[1]ACS_16_5YR_B11002_with_ann!R56","v":19},{"$f":"[1]ACS_16_5YR_B11002_with_ann!S56","v":22},{"$f":"[1]ACS_16_5YR_B11002_with_ann!T56","v":80},{"$f":"[1]ACS_16_5YR_B11002_with_ann!U56","v":64},{"$f":"[1]ACS_16_5YR_B11002_with_ann!V56","v":80},{"$f":"[1]ACS_16_5YR_B11002_with_ann!W56","v":64},{"$f":"[1]ACS_16_5YR_B11002_with_ann!X56","v":0},{"$f":"[1]ACS_16_5YR_B11002_with_ann!Y56","v":12},{"$f":"[1]ACS_16_5YR_B11002_with_ann!Z56","v":103},{"$f":"[1]ACS_16_5YR_B11002_with_ann!AA56","v":44}]
["0600000US3300564580","0600000US3300564580","060",{"$f":"[1]ACS_16_5YR_B11002_with_ann!C57","v":"Rindge"},{"$f":"[1]ACS_16_5YR_B11002_with_ann!D57","v":5437},{"$f":"[1]ACS_16_5YR_B11002_with_ann!E57","v":37},{"$f":"[1]ACS_16_5YR_B11002_with_ann!F57","v":4786},{"$f":"[1]ACS_16_5YR_B11002_with_ann!G57","v":196},{"$f":"[1]ACS_16_5YR_B11002_with_ann!H57","v":4555},{"$f":"[1]ACS_16_5YR_B11002_with_ann!I57","v":246},{"$f":"[1]ACS_16_5YR_B11002_with_ann!J57","v":4511},{"$f":"[1]ACS_16_5YR_B11002_with_ann!K57","v":247},{"$f":"[1]ACS_16_5YR_B11002_with_ann!L57","v":44},{"$f":"[1]ACS_16_5YR_B11002_with_ann!M57","v":55},{"$f":"[1]ACS_16_5YR_B11002_with_ann!N57","v":103},{"$f":"[1]ACS_16_5YR_B11002_with_ann!O57","v":118},{"$f":"[1]ACS_16_5YR_B11002_with_ann!P57","v":83},{"$f":"[1]ACS_16_5YR_B11002_with_ann!Q57","v":89},{"$f":"[1]ACS_16_5YR_B11002_with_ann!R57","v":20},{"$f":"[1]ACS_16_5YR_B11002_with_ann!S57","v":36},{"$f":"[1]ACS_16_5YR_B11002_with_ann!T57","v":128},{"$f":"[1]ACS_16_5YR_B11002_with_ann!U57","v":111},{"$f":"[1]ACS_16_5YR_B11002_with_ann!V57","v":128},{"$f":"[1]ACS_16_5YR_B11002_with_ann!W57","v":111},{"$f":"[1]ACS_16_5YR_B11002_with_ann!X57","v":0},{"$f":"[1]ACS_16_5YR_B11002_with_ann!Y57","v":17},{"$f":"[1]ACS_16_5YR_B11002_with_ann!Z57","v":651},{"$f":"[1]ACS_16_5YR_B11002_with_ann!AA57","v":192}]
["0600000US3300565700","0600000US3300565700","060",{"$f":"[1]ACS_16_5YR_B11002_with_ann!C58","v":"Roxbury"},{"$f":"[1]ACS_16_5YR_B11002_with_ann!D58","v":295},{"$f":"[1]ACS_16_5YR_B11002_with_ann!E58","v":142},{"$f":"[1]ACS_16_5YR_B11002_with_ann!F58","v":243},{"$f":"[1]ACS_16_5YR_B11002_with_ann!G58","v":143},{"$f":"[1]ACS_16_5YR_B11002_with_ann!H58","v":211},{"$f":"[1]ACS_16_5YR_B11002_with_ann!I58","v":140},{"$f":"[1]ACS_16_5YR_B11002_with_ann!J58","v":180},{"$f":"[1]ACS_16_5YR_B11002_with_ann!K58","v":107},{"$f":"[1]ACS_16_5YR_B11002_with_ann!L58","v":31},{"$f":"[1]ACS_16_5YR_B11002_with_ann!M58","v":38},{"$f":"[1]ACS_16_5YR_B11002_with_ann!N58","v":29},{"$f":"[1]ACS_16_5YR_B11002_with_ann!O58","v":35},{"$f":"[1]ACS_16_5YR_B11002_with_ann!P58","v":20},{"$f":"[1]ACS_16_5YR_B11002_with_ann!Q58","v":22},{"$f":"[1]ACS_16_5YR_B11002_with_ann!R58","v":9},{"$f":"[1]ACS_16_5YR_B11002_with_ann!S58","v":14},{"$f":"[1]ACS_16_5YR_B11002_with_ann!T58","v":3},{"$f":"[1]ACS_16_5YR_B11002_with_ann!U58","v":5},{"$f":"[1]ACS_16_5YR_B11002_with_ann!V58","v":3},{"$f":"[1]ACS_16_5YR_B11002_with_ann!W58","v":5},{"$f":"[1]ACS_16_5YR_B11002_with_ann!X58","v":0},{"$f":"[1]ACS_16_5YR_B11002_with_ann!Y58","v":12},{"$f":"[1]ACS_16_5YR_B11002_with_ann!Z58","v":52},{"$f":"[1]ACS_16_5YR_B11002_with_ann!AA58","v":28}]
["0600000US3300573700","0600000US3300573700","060",{"$f":"[1]ACS_16_5YR_B11002_with_ann!C59","v":"Stoddard"},{"$f":"[1]ACS_16_5YR_B11002_with_ann!D59","v":1205},{"$f":"[1]ACS_16_5YR_B11002_with_ann!E59","v":162},{"$f":"[1]ACS_16_5YR_B11002_with_ann!F59","v":1004},{"$f":"[1]ACS_16_5YR_B11002_with_ann!G59","v":158},{"$f":"[1]ACS_16_5YR_B11002_with_ann!H59","v":823},{"$f":"[1]ACS_16_5YR_B11002_with_ann!I59","v":153},{"$f":"[1]ACS_16_5YR_B11002_with_ann!J59","v":806},{"$f":"[1]ACS_16_5YR_B11002_with_ann!K59","v":150},{"$f":"[1]ACS_16_5YR_B11002_with_ann!L59","v":17},{"$f":"[1]ACS_16_5YR_B11002_with_ann!M59","v":21},{"$f":"[1]ACS_16_5YR_B11002_with_ann!N59","v":89},{"$f":"[1]ACS_16_5YR_B11002_with_ann!O59","v":73},{"$f":"[1]ACS_16_5YR_B11002_with_ann!P59","v":67},{"$f":"[1]ACS_16_5YR_B11002_with_ann!Q59","v":57},{"$f":"[1]ACS_16_5YR_B11002_with_ann!R59","v":22},{"$f":"[1]ACS_16_5YR_B11002_with_ann!S59","v":18},{"$f":"[1]ACS_16_5YR_B11002_with_ann!T59","v":92},{"$f":"[1]ACS_16_5YR_B11002_with_ann!U59","v":66},{"$f":"[1]ACS_16_5YR_B11002_with_ann!V59","v":83},{"$f":"[1]ACS_16_5YR_B11002_with_ann!W59","v":59},{"$f":"[1]ACS_16_5YR_B11002_with_ann!X59","v":9},{"$f":"[1]ACS_16_5YR_B11002_with_ann!Y59","v":8},{"$f":"[1]ACS_16_5YR_B11002_with_ann!Z59","v":201},{"$f":"[1]ACS_16_5YR_B11002_with_ann!AA59","v":61}]
["0600000US3300574900","0600000US3300574900","060",{"$f":"[1]ACS_16_5YR_B11002_with_ann!C60","v":"Sullivan"},{"$f":"[1]ACS_16_5YR_B11002_with_ann!D60","v":681},{"$f":"[1]ACS_16_5YR_B11002_with_ann!E60","v":130},{"$f":"[1]ACS_16_5YR_B11002_with_ann!F60","v":561},{"$f":"[1]ACS_16_5YR_B11002_with_ann!G60","v":123},{"$f":"[1]ACS_16_5YR_B11002_with_ann!H60","v":463},{"$f":"[1]ACS_16_5YR_B11002_with_ann!I60","v":120},{"$f":"[1]ACS_16_5YR_B11002_with_ann!J60","v":454},{"$f":"[1]ACS_16_5YR_B11002_with_ann!K60","v":119},{"$f":"[1]ACS_16_5YR_B11002_with_ann!L60","v":9},{"$f":"[1]ACS_16_5YR_B11002_with_ann!M60","v":8},{"$f":"[1]ACS_16_5YR_B11002_with_ann!N60","v":62},{"$f":"[1]ACS_16_5YR_B11002_with_ann!O60","v":46},{"$f":"[1]ACS_16_5YR_B11002_with_ann!P60","v":49},{"$f":"[1]ACS_16_5YR_B11002_with_ann!Q60","v":39},{"$f":"[1]ACS_16_5YR_B11002_with_ann!R60","v":13},{"$f":"[1]ACS_16_5YR_B11002_with_ann!S60","v":14},{"$f":"[1]ACS_16_5YR_B11002_with_ann!T60","v":36},{"$f":"[1]ACS_16_5YR_B11002_with_ann!U60","v":31},{"$f":"[1]ACS_16_5YR_B11002_with_ann!V60","v":29},{"$f":"[1]ACS_16_5YR_B11002_with_ann!W60","v":26},{"$f":"[1]ACS_16_5YR_B11002_with_ann!X60","v":7},{"$f":"[1]ACS_16_5YR_B11002_with_ann!Y60","v":9},{"$f":"[1]ACS_16_5YR_B11002_with_ann!Z60","v":120},{"$f":"[1]ACS_16_5YR_B11002_with_ann!AA60","v":38}]
["0600000US3300575300","0600000US3300575300","060",{"$f":"[1]ACS_16_5YR_B11002_with_ann!C61","v":"Surry"},{"$f":"[1]ACS_16_5YR_B11002_with_ann!D61","v":950},{"$f":"[1]ACS_16_5YR_B11002_with_ann!E61","v":245},{"$f":"[1]ACS_16_5YR_B11002_with_ann!F61","v":840},{"$f":"[1]ACS_16_5YR_B11002_with_ann!G61","v":246},{"$f":"[1]ACS_16_5YR_B11002_with_ann!H61","v":736},{"$f":"[1]ACS_16_5YR_B11002_with_ann!I61","v":251},{"$f":"[1]ACS_16_5YR_B11002_with_ann!J61","v":736},{"$f":"[1]ACS_16_5YR_B11002_with_ann!K61","v":251},{"$f":"[1]ACS_16_5YR_B11002_with_ann!L61","v":0},{"$f":"[1]ACS_16_5YR_B11002_with_ann!M61","v":12},{"$f":"[1]ACS_16_5YR_B11002_with_ann!N61","v":18},{"$f":"[1]ACS_16_5YR_B11002_with_ann!O61","v":15},{"$f":"[1]ACS_16_5YR_B11002_with_ann!P61","v":18},{"$f":"[1]ACS_16_5YR_B11002_with_ann!Q61","v":15},{"$f":"[1]ACS_16_5YR_B11002_with_ann!R61","v":0},{"$f":"[1]ACS_16_5YR_B11002_with_ann!S61","v":12},{"$f":"[1]ACS_16_5YR_B11002_with_ann!T61","v":86},{"$f":"[1]ACS_16_5YR_B11002_with_ann!U61","v":56},{"$f":"[1]ACS_16_5YR_B11002_with_ann!V61","v":77},{"$f":"[1]ACS_16_5YR_B11002_with_ann!W61","v":56},{"$f":"[1]ACS_16_5YR_B11002_with_ann!X61","v":9},{"$f":"[1]ACS_16_5YR_B11002_with_ann!Y61","v":10},{"$f":"[1]ACS_16_5YR_B11002_with_ann!Z61","v":110},{"$f":"[1]ACS_16_5YR_B11002_with_ann!AA61","v":36}]
["0600000US3300575700","0600000US3300575700","060",{"$f":"[1]ACS_16_5YR_B11002_with_ann!C62","v":"Swanzey"},{"$f":"[1]ACS_16_5YR_B11002_with_ann!D62","v":7306},{"$f":"[1]ACS_16_5YR_B11002_with_ann!E62","v":22},{"$f":"[1]ACS_16_5YR_B11002_with_ann!F62","v":5678},{"$f":"[1]ACS_16_5YR_B11002_with_ann!G62","v":408},{"$f":"[1]ACS_16_5YR_B11002_with_ann!H62","v":4117},{"$f":"[1]ACS_16_5YR_B11002_with_ann!I62","v":648},{"$f":"[1]ACS_16_5YR_B11002_with_ann!J62","v":4087},{"$f":"[1]ACS_16_5YR_B11002_with_ann!K62","v":647},{"$f":"[1]ACS_16_5YR_B11002_with_ann!L62","v":30},{"$f":"[1]ACS_16_5YR_B11002_with_ann!M62","v":51},{"$f":"[1]ACS_16_5YR_B11002_with_ann!N62","v":449},{"$f":"[1]ACS_16_5YR_B11002_with_ann!O62","v":330},{"$f":"[1]ACS_16_5YR_B11002_with_ann!P62","v":369},{"$f":"[1]ACS_16_5YR_B11002_with_ann!Q62","v":273},{"$f":"[1]ACS_16_5YR_B11002_with_ann!R62","v":80},{"$f":"[1]ACS_16_5YR_B11002_with_ann!S62","v":96},{"$f":"[1]ACS_16_5YR_B11002_with_ann!T62","v":1112},{"$f":"[1]ACS_16_5YR_B11002_with_ann!U62","v":509},{"$f":"[1]ACS_16_5YR_B11002_with_ann!V62","v":990},{"$f":"[1]ACS_16_5YR_B11002_with_ann!W62","v":452},{"$f":"[1]ACS_16_5YR_B11002_with_ann!X62","v":122},{"$f":"[1]ACS_16_5YR_B11002_with_ann!Y62","v":93},{"$f":"[1]ACS_16_5YR_B11002_with_ann!Z62","v":1628},{"$f":"[1]ACS_16_5YR_B11002_with_ann!AA62","v":407}]
["0600000US3300577380","0600000US3300577380","060",{"$f":"[1]ACS_16_5YR_B11002_with_ann!C63","v":"Troy"},{"$f":"[1]ACS_16_5YR_B11002_with_ann!D63","v":1889},{"$f":"[1]ACS_16_5YR_B11002_with_ann!E63","v":275},{"$f":"[1]ACS_16_5YR_B11002_with_ann!F63","v":1549},{"$f":"[1]ACS_16_5YR_B11002_with_ann!G63","v":268},{"$f":"[1]ACS_16_5YR_B11002_with_ann!H63","v":1141},{"$f":"[1]ACS_16_5YR_B11002_with_ann!I63","v":224},{"$f":"[1]ACS_16_5YR_B11002_with_ann!J63","v":1141},{"$f":"[1]ACS_16_5YR_B11002_with_ann!K63","v":224},{"$f":"[1]ACS_16_5YR_B11002_with_ann!L63","v":0},{"$f":"[1]ACS_16_5YR_B11002_with_ann!M63","v":12},{"$f":"[1]ACS_16_5YR_B11002_with_ann!N63","v":147},{"$f":"[1]ACS_16_5YR_B11002_with_ann!O63","v":92},{"$f":"[1]ACS_16_5YR_B11002_with_ann!P63","v":132},{"$f":"[1]ACS_16_5YR_B11002_with_ann!Q63","v":79},{"$f":"[1]ACS_16_5YR_B11002_with_ann!R63","v":15},{"$f":"[1]ACS_16_5YR_B11002_with_ann!S63","v":22},{"$f":"[1]ACS_16_5YR_B11002_with_ann!T63","v":261},{"$f":"[1]ACS_16_5YR_B11002_with_ann!U63","v":140},{"$f":"[1]ACS_16_5YR_B11002_with_ann!V63","v":249},{"$f":"[1]ACS_16_5YR_B11002_with_ann!W63","v":136},{"$f":"[1]ACS_16_5YR_B11002_with_ann!X63","v":12},{"$f":"[1]ACS_16_5YR_B11002_with_ann!Y63","v":13},{"$f":"[1]ACS_16_5YR_B11002_with_ann!Z63","v":340},{"$f":"[1]ACS_16_5YR_B11002_with_ann!AA63","v":109}]
["0600000US3300578420","0600000US3300578420","060",{"$f":"[1]ACS_16_5YR_B11002_with_ann!C64","v":"Walpole"},{"$f":"[1]ACS_16_5YR_B11002_with_ann!D64","v":3651},{"$f":"[1]ACS_16_5YR_B11002_with_ann!E64","v":33},{"$f":"[1]ACS_16_5YR_B11002_with_ann!F64","v":3034},{"$f":"[1]ACS_16_5YR_B11002_with_ann!G64","v":161},{"$f":"[1]ACS_16_5YR_B11002_with_ann!H64","v":2476},{"$f":"[1]ACS_16_5YR_B11002_with_ann!I64","v":324},{"$f":"[1]ACS_16_5YR_B11002_with_ann!J64","v":2426},{"$f":"[1]ACS_16_5YR_B11002_with_ann!K64","v":316},{"$f":"[1]ACS_16_5YR_B11002_with_ann!L64","v":50},{"$f":"[1]ACS_16_5YR_B11002_with_ann!M64","v":55},{"$f":"[1]ACS_16_5YR_B11002_with_ann!N64","v":187},{"$f":"[1]ACS_16_5YR_B11002_with_ann!O64","v":145},{"$f":"[1]ACS_16_5YR_B11002_with_ann!P64","v":162},{"$f":"[1]ACS_16_5YR_B11002_with_ann!Q64","v":122},{"$f":"[1]ACS_16_5YR_B11002_with_ann!R64","v":25},{"$f":"[1]ACS_16_5YR_B11002_with_ann!S64","v":26},{"$f":"[1]ACS_16_5YR_B11002_with_ann!T64","v":371},{"$f":"[1]ACS_16_5YR_B11002_with_ann!U64","v":190},{"$f":"[1]ACS_16_5YR_B11002_with_ann!V64","v":351},{"$f":"[1]ACS_16_5YR_B11002_with_ann!W64","v":176},{"$f":"[1]ACS_16_5YR_B11002_with_ann!X64","v":20},{"$f":"[1]ACS_16_5YR_B11002_with_ann!Y64","v":26},{"$f":"[1]ACS_16_5YR_B11002_with_ann!Z64","v":617},{"$f":"[1]ACS_16_5YR_B11002_with_ann!AA64","v":159}]
["0600000US3300582660","0600000US3300582660","060",{"$f":"[1]ACS_16_5YR_B11002_with_ann!C65","v":"Westmoreland"},{"$f":"[1]ACS_16_5YR_B11002_with_ann!D65","v":1971},{"$f":"[1]ACS_16_5YR_B11002_with_ann!E65","v":342},{"$f":"[1]ACS_16_5YR_B11002_with_ann!F65","v":1738},{"$f":"[1]ACS_16_5YR_B11002_with_ann!G65","v":335},{"$f":"[1]ACS_16_5YR_B11002_with_ann!H65","v":1589},{"$f":"[1]ACS_16_5YR_B11002_with_ann!I65","v":318},{"$f":"[1]ACS_16_5YR_B11002_with_ann!J65","v":1569},{"$f":"[1]ACS_16_5YR_B11002_with_ann!K65","v":314},{"$f":"[1]ACS_16_5YR_B11002_with_ann!L65","v":20},{"$f":"[1]ACS_16_5YR_B11002_with_ann!M65","v":27},{"$f":"[1]ACS_16_5YR_B11002_with_ann!N65","v":40},{"$f":"[1]ACS_16_5YR_B11002_with_ann!O65","v":36},{"$f":"[1]ACS_16_5YR_B11002_with_ann!P65","v":23},{"$f":"[1]ACS_16_5YR_B11002_with_ann!Q65","v":19},{"$f":"[1]ACS_16_5YR_B11002_with_ann!R65","v":17},{"$f":"[1]ACS_16_5YR_B11002_with_ann!S65","v":19},{"$f":"[1]ACS_16_5YR_B11002_with_ann!T65","v":109},{"$f":"[1]ACS_16_5YR_B11002_with_ann!U65","v":114},{"$f":"[1]ACS_16_5YR_B11002_with_ann!V65","v":101},{"$f":"[1]ACS_16_5YR_B11002_with_ann!W65","v":110},{"$f":"[1]ACS_16_5YR_B11002_with_ann!X65","v":8},{"$f":"[1]ACS_16_5YR_B11002_with_ann!Y65","v":12},{"$f":"[1]ACS_16_5YR_B11002_with_ann!Z65","v":233},{"$f":"[1]ACS_16_5YR_B11002_with_ann!AA65","v":97}]
["0600000US3300585540","0600000US3300585540","060",{"$f":"[1]ACS_16_5YR_B11002_with_ann!C66","v":"Winchester"},{"$f":"[1]ACS_16_5YR_B11002_with_ann!D66","v":4094},{"$f":"[1]ACS_16_5YR_B11002_with_ann!E66","v":24},{"$f":"[1]ACS_16_5YR_B11002_with_ann!F66","v":3091},{"$f":"[1]ACS_16_5YR_B11002_with_ann!G66","v":317},{"$f":"[1]ACS_16_5YR_B11002_with_ann!H66","v":2369},{"$f":"[1]ACS_16_5YR_B11002_with_ann!I66","v":375},{"$f":"[1]ACS_16_5YR_B11002_with_ann!J66","v":2351},{"$f":"[1]ACS_16_5YR_B11002_with_ann!K66","v":372},{"$f":"[1]ACS_16_5YR_B11002_with_ann!L66","v":18},{"$f":"[1]ACS_16_5YR_B11002_with_ann!M66","v":28},{"$f":"[1]ACS_16_5YR_B11002_with_ann!N66","v":102},{"$f":"[1]ACS_16_5YR_B11002_with_ann!O66","v":159},{"$f":"[1]ACS_16_5YR_B11002_with_ann!P66","v":102},{"$f":"[1]ACS_16_5YR_B11002_with_ann!Q66","v":159},{"$f":"[1]ACS_16_5YR_B11002_with_ann!R66","v":0},{"$f":"[1]ACS_16_5YR_B11002_with_ann!S66","v":12},{"$f":"[1]ACS_16_5YR_B11002_with_ann!T66","v":620},{"$f":"[1]ACS_16_5YR_B11002_with_ann!U66","v":279},{"$f":"[1]ACS_16_5YR_B11002_with_ann!V66","v":511},{"$f":"[1]ACS_16_5YR_B11002_with_ann!W66","v":221},{"$f":"[1]ACS_16_5YR_B11002_with_ann!X66","v":109},{"$f":"[1]ACS_16_5YR_B11002_with_ann!Y66","v":68},{"$f":"[1]ACS_16_5YR_B11002_with_ann!Z66","v":1003},{"$f":"[1]ACS_16_5YR_B11002_with_ann!AA66","v":314}]
[]
[]
[null,null,null,null,{"$f":"$D$3","v":"Alstead"},null,{"$f":"$D$4","v":"Chesterfield"},null,{"$f":"$D$5","v":"Dublin"},null,{"$f":"$D$6","v":"Fitzwilliam"},null,{"$f":"$D$7","v":"Gilsum"},null,{"$f":"$D$8","v":"Harrisville"},null,{"$f":"$D$9","v":"Hinsdale"},null,{"$f":"$D$10","v":"Jaffrey"},null,{"$f":"$D$11","v":"Keene"},null,{"$f":"$D$12","v":"Marlborough"},null,{"$f":"$D$13","v":"Marlow"},null,{"$f":"$D$14","v":"Nelson"},null,{"$f":"$D$15","v":"Richmond"},null,{"$f":"$D$16","v":"Rindge"},null,{"$f":"$D$17","v":"Roxbury"},null,{"$f":"$D$18","v":"Stoddard"},null,{"$f":"$D$19","v":"Sullivan"},null,{"$f":"$D$20","v":"Surry"},null,{"$f":"$D$21","v":"Swanzey"},null,{"$f":"$D$22","v":"Troy"},null,{"$f":"$D$23","v":"Walpole"},null,{"$f":"$D$24","v":"Westmoreland"},null,{"$f":"$D$25","v":"Winchester"}]
[null,null,null,null,"Estimate","Margin of Error","Estimate","Margin of Error","Estimate","Margin of Error","Estimate","Margin of Error","Estimate","Margin of Error","Estimate","Margin of Error","Estimate","Margin of Error","Estimate","Margin of Error","Estimate","Margin of Error","Estimate","Margin of Error","Estimate","Margin of Error","Estimate","Margin of Error","Estimate","Margin of Error","Estimate","Margin of Error","Estimate","Margin of Error","Estimate","Margin of Error","Estimate","Margin of Error","Estimate","Margin of Error","Estimate","Margin of Error","Estimate","Margin of Error","Estimate","Margin of Error","Estimate","Margin of Error","Estimate","Margin of Error"]
[]
[null,null,null,"Estimate!!Total:",1599,169,3577,15,1617,217,2287,368,863,144,977,197,3965,16,5280,31,20239,48,2248,391,798,175,550,106,1102,251,5437,37,295,142,1205,162,681,130,950,245,7306,22,1889,275,3651,33,1971,342,4094,24]
[null,null,null,"Estimate!!Total:!!In family households:",1238,149,3174,175,1483,216,1762,321,750,140,833,194,3185,208,4467,318,13599,687,1698,359,721,173,455,101,999,246,4786,196,243,143,1004,158,561,123,840,246,5678,408,1549,268,3034,161,1738,335,3091,317]
[null,null,null,"Estimate!!Total:!!In family households:!!In married-couple family:",1015,157,2553,375,1246,218,1334,212,626,140,701,187,2638,363,3857,443,9903,858,1347,336,658,163,347,72,763,196,4555,246,211,140,823,153,463,120,736,251,4117,648,1141,224,2476,324,1589,318,2369,375]
[null,null,null,"Estimate!!Total:!!In family households:!!In married-couple family:!!Relatives",1015,157,2534,376,1246,218,1312,211,614,136,701,187,2598,360,3798,451,9851,847,1347,336,656,162,337,71,763,196,4511,247,180,107,806,150,454,119,736,251,4087,647,1141,224,2426,316,1569,314,2351,372]
[null,null,null,"Estimate!!Total:!!In family households:!!In married-couple family:!!Nonrelatives",0,12,19,29,0,12,22,31,12,17,0,12,40,61,59,77,52,53,0,12,2,5,10,11,0,12,44,55,31,38,17,21,9,8,0,12,30,51,0,12,50,55,20,27,18,28]
[null,null,null,"Estimate!!Total:!!In family households:!!In male householder, no spouse present, family:",44,36,50,79,118,66,158,103,27,31,37,29,284,267,145,148,1052,534,64,79,15,23,34,29,156,138,103,118,29,35,89,73,62,46,18,15,449,330,147,92,187,145,40,36,102,159]
[null,null,null,"Estimate!!Total:!!In family households:!!In male householder, no spouse present, family:!!Relatives",34,27,33,52,97,53,155,100,27,31,28,22,270,262,104,98,762,340,52,59,15,23,26,20,137,124,83,89,20,22,67,57,49,39,18,15,369,273,132,79,162,122,23,19,102,159]
[null,null,null,"Estimate!!Total:!!In family households:!!In male householder, no spouse present, family:!!Nonrelatives",10,10,17,28,21,17,3,5,0,12,9,8,14,24,41,56,290,241,12,21,0,12,8,10,19,22,20,36,9,14,22,18,13,14,0,12,80,96,15,22,25,26,17,19,0,12]
[null,null,null,"Estimate!!Total:!!In family households:!!In female householder, no spouse present, family:",179,75,571,345,119,65,270,247,97,82,95,60,263,192,465,284,2644,571,287,208,48,52,74,48,80,64,128,111,3,5,92,66,36,31,86,56,1112,509,261,140,371,190,109,114,620,279]
[null,null,null,"Estimate!!Total:!!In family households:!!In female householder, no spouse present, family:!!Relatives",158,65,516,322,119,65,243,241,92,82,75,46,212,151,445,280,2349,491,287,208,38,42,71,46,80,64,128,111,3,5,83,59,29,26,77,56,990,452,249,136,351,176,101,110,511,221]
[null,null,null,"Estimate!!Total:!!In family households:!!In female householder, no spouse present, family:!!Nonrelatives",21,16,55,52,0,12,27,48,5,5,20,17,51,49,20,35,295,125,0,12,10,11,3,5,0,12,0,17,0,12,9,8,7,9,9,10,122,93,12,13,20,26,8,12,109,68]
[null,null,null,"Estimate!!Total:!!In nonfamily households",361,106,403,175,134,39,525,141,113,44,144,48,780,207,813,315,6640,688,550,148,77,24,95,28,103,44,651,192,52,28,201,61,120,38,110,36,1628,407,340,109,617,159,233,97,1003,314]

{"sheet":"SData_B14001_and_B15002School","index":27,"n_rows":77,"n_cols":96,"rows_kept":77,"cut":false,"hidden":true,"merged":[]}
["GEO_ID","GEO_ID2","SUMLEVEL","GEO_NAME",{"$f":"[1]ACS_16_5YR_B14001_with_ann!D1","v":"B14001_001E"},{"$f":"[1]ACS_16_5YR_B14001_with_ann!E1","v":"B14001_001M"},{"$f":"[1]ACS_16_5YR_B14001_with_ann!F1","v":"B14001_002E"},{"$f":"[1]ACS_16_5YR_B14001_with_ann!G1","v":"B14001_002M"},{"$f":"[1]ACS_16_5YR_B14001_with_ann!H1","v":"B14001_003E"},{"$f":"[1]ACS_16_5YR_B14001_with_ann!I1","v":"B14001_003M"},{"$f":"[1]ACS_16_5YR_B14001_with_ann!J1","v":"B14001_004E"},{"$f":"[1]ACS_16_5YR_B14001_with_ann!K1","v":"B14001_004M"},{"$f":"[1]ACS_16_5YR_B14001_with_ann!L1","v":"B14001_005E"},{"$f":"[1]ACS_16_5YR_B14001_with_ann!M1","v":"B14001_005M"},{"$f":"[1]ACS_16_5YR_B14001_with_ann!N1","v":"B14001_006E"},{"$f":"[1]ACS_16_5YR_B14001_with_ann!O1","v":"B14001_006M"},{"$f":"[1]ACS_16_5YR_B14001_with_ann!P1","v":"B14001_007E"},{"$f":"[1]ACS_16_5YR_B14001_with_ann!Q1","v":"B14001_007M"},{"$f":"[1]ACS_16_5YR_B14001_with_ann!R1","v":"B14001_008E"},{"$f":"[1]ACS_16_5YR_B14001_with_ann!S1","v":"B14001_008M"},{"$f":"[1]ACS_16_5YR_B14001_with_ann!T1","v":"B14001_009E"},{"$f":"[1]ACS_16_5YR_B14001_with_ann!U1","v":"B14001_009M"},{"$f":"[1]ACS_16_5YR_B14001_with_ann!V1","v":"B14001_010E"},{"$f":"[1]ACS_16_5YR_B14001_with_ann!W1","v":"B14001_010M"},{"$f":"[1]ACS_16_5YR_B15002_with_ann!D1","v":"B15002_001E"},{"$f":"[1]ACS_16_5YR_B15002_with_ann!E1","v":"B15002_001M"},{"$f":"[1]ACS_16_5YR_B15002_with_ann!F1","v":"B15002_002E"},{"$f":"[1]ACS_16_5YR_B15002_with_ann!G1","v":"B15002_002M"},{"$f":"[1]ACS_16_5YR_B15002_with_ann!H1","v":"B15002_003E"},{"$f":"[1]ACS_16_5YR_B15002_with_ann!I1","v":"B15002_003M"},{"$f":"[1]ACS_16_5YR_B15002_with_ann!J1","v":"B15002_004E"},{"$f":"[1]ACS_16_5YR_B15002_with_ann!K1","v":"B15002_004M"},{"$f":"[1]ACS_16_5YR_B15002_with_ann!L1","v":"B15002_005E"},{"$f":"[1]ACS_16_5YR_B15002_with_ann!M1","v":"B15002_005M"},{"$f":"[1]ACS_16_5YR_B15002_with_ann!N1","v":"B15002_006E"},{"$f":"[1]ACS_16_5YR_B15002_with_ann!O1","v":"B15002_006M"},{"$f":"[1]ACS_16_5YR_B15002_with_ann!P1","v":"B15002_007E"},{"$f":"[1]ACS_16_5YR_B15002_with_ann!Q1","v":"B15002_007M"},{"$f":"[1]ACS_16_5YR_B15002_with_ann!R1","v":"B15002_008E"},{"$f":"[1]ACS_16_5YR_B15002_with_ann!S1","v":"B15002_008M"},{"$f":"[1]ACS_16_5YR_B15002_with_ann!T1","v":"B15002_009E"},{"$f":"[1]ACS_16_5YR_B15002_with_ann!U1","v":"B15002_009M"},{"$f":"[1]ACS_16_5YR_B15002_with_ann!V1","v":"B15002_010E"},{"$f":"[1]ACS_16_5YR_B15002_with_ann!W1","v":"B15002_010M"},{"$f":"[1]ACS_16_5YR_B15002_with_ann!X1","v":"B15002_011E"},{"$f":"[1]ACS_16_5YR_B15002_with_ann!Y1","v":"B15002_011M"},{"$f":"[1]ACS_16_5YR_B15002_with_ann!Z1","v":"B15002_012E"},{"$f":"[1]ACS_16_5YR_B15002_with_ann!AA1","v":"B15002_012M"},{"$f":"[1]ACS_16_5YR_B15002_with_ann!AB1","v":"B15002_013E"},{"$f":"[1]ACS_16_5YR_B15002_with_ann!AC1","v":"B15002_013M"},{"$f":"[1]ACS_16_5YR_B15002_with_ann!AD1","v":"B15002_014E"},{"$f":"[1]ACS_16_5YR_B15002_with_ann!AE1","v":"B15002_014M"},{"$f":"[1]ACS_16_5YR_B15002_with_ann!AF1","v":"B15002_015E"},{"$f":"[1]ACS_16_5YR_B15002_with_ann!AG1","v":"B15002_015M"},{"$f":"[1]ACS_16_5YR_B15002_with_ann!AH1","v":"B15002_016E"},{"$f":"[1]ACS_16_5YR_B15002_with_ann!AI1","v":"B15002_016M"},{"$f":"[1]ACS_16_5YR_B15002_with_ann!AJ1","v":"B15002_017E"},{"$f":"[1]ACS_16_5YR_B15002_with_ann!AK1","v":"B15002_017M"},{"$f":"[1]ACS_16_5YR_B15002_with_ann!AL1","v":"B15002_018E"},{"$f":"[1]ACS_16_5YR_B15002_with_ann!AM1","v":"B15002_018M"},{"$f":"[1]ACS_16_5YR_B15002_with_ann!AN1","v":"B15002_019E"},{"$f":"[1]ACS_16_5YR_B15002_with_ann!AO1","v":"B15002_019M"},{"$f":"[1]ACS_16_5YR_B15002_with_ann!AP1","v":"B15002_020E"},{"$f":"[1]ACS_16_5YR_B15002_with_ann!AQ1","v":"B15002_020M"},{"$f":"[1]ACS_16_5YR_B15002_with_ann!AR1","v":"B15002_021E"},{"$f":"[1]ACS_16_5YR_B15002_with_ann!AS1","v":"B15002_021M"},{"$f":"[1]ACS_16_5YR_B15002_with_ann!AT1","v":"B15002_022E"},{"$f":"[1]ACS_16_5YR_B15002_with_ann!AU1","v":"B15002_022M"},{"$f":"[1]ACS_16_5YR_B15002_with_ann!AV1","v":"B15002_023E"},{"$f":"[1]ACS_16_5YR_B15002_with_ann!AW1","v":"B15002_023M"},{"$f":"[1]ACS_16_5YR_B15002_with_ann!AX1","v":"B15002_024E"},{"$f":"[1]ACS_16_5YR_B15002_with_ann!AY1","v":"B15002_024M"},{"$f":"[1]ACS_16_5YR_B15002_with_ann!AZ1","v":"B15002_025E"},{"$f":"[1]ACS_16_5YR_B15002_with_ann!BA1","v":"B15002_025M"},{"$f":"[1]ACS_16_5YR_B15002_with_ann!BB1","v":"B15002_026E"},{"$f":"[1]ACS_16_5YR_B15002_with_ann!BC1","v":"B15002_026M"},{"$f":"[1]ACS_16_5YR_B15002_with_ann!BD1","v":"B15002_027E"},{"$f":"[1]ACS_16_5YR_B15002_with_ann!BE1","v":"B15002_027M"},{"$f":"[1]ACS_16_5YR_B15002_with_ann!BF1","v":"B15002_028E"},{"$f":"[1]ACS_16_5YR_B15002_with_ann!BG1","v":"B15002_028M"},{"$f":"[1]ACS_16_5YR_B15002_with_ann!BH1","v":"B15002_029E"},{"$f":"[1]ACS_16_5YR_B15002_with_ann!BI1","v":"B15002_029M"},{"$f":"[1]ACS_16_5YR_B15002_with_ann!BJ1","v":"B15002_030E"},{"$f":"[1]ACS_16_5YR_B15002_with_ann!BK1","v":"B15002_030M"},{"$f":"[1]ACS_16_5YR_B15002_with_ann!BL1","v":"B15002_031E"},{"$f":"[1]ACS_16_5YR_B15002_with_ann!BM1","v":"B15002_031M"},{"$f":"[1]ACS_16_5YR_B15002_with_ann!BN1","v":"B15002_032E"},{"$f":"[1]ACS_16_5YR_B15002_with_ann!BO1","v":"B15002_032M"},{"$f":"[1]ACS_16_5YR_B15002_with_ann!BP1","v":"B15002_033E"},{"$f":"[1]ACS_16_5YR_B15002_with_ann!BQ1","v":"B15002_033M"},{"$f":"[1]ACS_16_5YR_B15002_with_ann!BR1","v":"B15002_034E"},{"$f":"[1]ACS_16_5YR_B15002_with_ann!BS1","v":"B15002_034M"},{"$f":"[1]ACS_16_5YR_B15002_with_ann!BT1","v":"B15002_035E"},{"$f":"[1]ACS_16_5YR_B15002_with_ann!BU1","v":"B15002_035M"}]
["Geography Identifier","Geography Identifier","Geographic Summary Level","Geography",{"$f":"[1]ACS_16_5YR_B14001_with_ann!D2","v":"Estimate!!Total:"},{"$f":"[1]ACS_16_5YR_B14001_with_ann!E2","v":"Margin of Error!!Total:"},{"$f":"[1]ACS_16_5YR_B14001_with_ann!F2","v":"Estimate!!Total:!!Enrolled in school:"},{"$f":"[1]ACS_16_5YR_B14001_with_ann!G2","v":"Margin of Error!!Total:!!Enrolled in school:"},{"$f":"[1]ACS_16_5YR_B14001_with_ann!H2","v":"Estimate!!Total:!!Enrolled in school:!!Enrolled in nursery school"},{"$f":"[1]ACS_16_5YR_B14001_with_ann!I2","v":"Margin of Error!!Total:!!Enrolled in school:!!Enrolled in nursery school"},{"$f":"[1]ACS_16_5YR_B14001_with_ann!J2","v":"Estimate!!Total:!!Enrolled in school:!!Enrolled in kindergarten"},{"$f":"[1]ACS_16_5YR_B14001_with_ann!K2","v":"Margin of Error!!Total:!!Enrolled in school:!!Enrolled in kindergarten"},{"$f":"[1]ACS_16_5YR_B14001_with_ann!L2","v":"Estimate!!Total:!!Enrolled in school:!!Enrolled in grade 1 to grade 4"},{"$f":"[1]ACS_16_5YR_B14001_with_ann!M2","v":"Margin of Error!!Total:!!Enrolled in school:!!Enrolled in grade 1 to grade 4"},{"$f":"[1]ACS_16_5YR_B14001_with_ann!N2","v":"Estimate!!Total:!!Enrolled in school:!!Enrolled in grade 5 to grade 8"},{"$f":"[1]ACS_16_5YR_B14001_with_ann!O2","v":"Margin of Error!!Total:!!Enrolled in school:!!Enrolled in grade 5 to grade 8"},{"$f":"[1]ACS_16_5YR_B14001_with_ann!P2","v":"Estimate!!Total:!!Enrolled in school:!!Enrolled in grade 9 to grade 12"},{"$f":"[1]ACS_16_5YR_B14001_with_ann!Q2","v":"Margin of Error!!Total:!!Enrolled in school:!!Enrolled in grade 9 to grade 12"},{"$f":"[1]ACS_16_5YR_B14001_with_ann!R2","v":"Estimate!!Total:!!Enrolled in school:!!Enrolled in college, undergraduate years"},{"$f":"[1]ACS_16_5YR_B14001_with_ann!S2","v":"Margin of Error!!Total:!!Enrolled in school:!!Enrolled in college, undergraduate years"},{"$f":"[1]ACS_16_5YR_B14001_with_ann!T2","v":"Estimate!!Total:!!Enrolled in school:!!Graduate or professional school"},{"$f":"[1]ACS_16_5YR_B14001_with_ann!U2","v":"Margin of Error!!Total:!!Enrolled in school:!!Graduate or professional school"},{"$f":"[1]ACS_16_5YR_B14001_with_ann!V2","v":"Estimate!!Total:!!Not enrolled in school"},{"$f":"[1]ACS_16_5YR_B14001_with_ann!W2","v":"Margin of Error!!Total:!!Not enrolled in school"},{"$f":"[1]ACS_16_5YR_B15002_with_ann!D2","v":"Estimate!!Total:"},{"$f":"[1]ACS_16_5YR_B15002_with_ann!E2","v":"Margin of Error!!Total:"},{"$f":"[1]ACS_16_5YR_B15002_with_ann!F2","v":"Estimate!!Total:!!Male:"},{"$f":"[1]ACS_16_5YR_B15002_with_ann!G2","v":"Margin of Error!!Total:!!Male:"},{"$f":"[1]ACS_16_5YR_B15002_with_ann!H2","v":"Estimate!!Total:!!Male:!!No schooling completed"},{"$f":"[1]ACS_16_5YR_B15002_with_ann!I2","v":"Margin of Error!!Total:!!Male:!!No schooling completed"},{"$f":"[1]ACS_16_5YR_B15002_with_ann!J2","v":"Estimate!!Total:!!Male:!!Nursery to 4th grade"},{"$f":"[1]ACS_16_5YR_B15002_with_ann!K2","v":"Margin of Error!!Total:!!Male:!!Nursery to 4th grade"},{"$f":"[1]ACS_16_5YR_B15002_with_ann!L2","v":"Estimate!!Total:!!Male:!!5th and 6th grade"},{"$f":"[1]ACS_16_5YR_B15002_with_ann!M2","v":"Margin of Error!!Total:!!Male:!!5th and 6th grade"},{"$f":"[1]ACS_16_5YR_B15002_with_ann!N2","v":"Estimate!!Total:!!Male:!!7th and 8th grade"},{"$f":"[1]ACS_16_5YR_B15002_with_ann!O2","v":"Margin of Error!!Total:!!Male:!!7th and 8th grade"},{"$f":"[1]ACS_16_5YR_B15002_with_ann!P2","v":"Estimate!!Total:!!Male:!!9th grade"},{"$f":"[1]ACS_16_5YR_B15002_with_ann!Q2","v":"Margin of Error!!Total:!!Male:!!9th grade"},{"$f":"[1]ACS_16_5YR_B15002_with_ann!R2","v":"Estimate!!Total:!!Male:!!10th grade"},{"$f":"[1]ACS_16_5YR_B15002_with_ann!S2","v":"Margin of Error!!Total:!!Male:!!10th grade"},{"$f":"[1]ACS_16_5YR_B15002_with_ann!T2","v":"Estimate!!Total:!!Male:!!11th grade"},{"$f":"[1]ACS_16_5YR_B15002_with_ann!U2","v":"Margin of Error!!Total:!!Male:!!11th grade"},{"$f":"[1]ACS_16_5YR_B15002_with_ann!V2","v":"Estimate!!Total:!!Male:!!12th grade, no diploma"},{"$f":"[1]ACS_16_5YR_B15002_with_ann!W2","v":"Margin of Error!!Total:!!Male:!!12th grade, no diploma"},{"$f":"[1]ACS_16_5YR_B15002_with_ann!X2","v":"Estimate!!Total:!!Male:!!High school graduate (includes equivalency)"},{"$f":"[1]ACS_16_5YR_B15002_with_ann!Y2","v":"Margin of Error!!Total:!!Male:!!High school graduate (includes equivalency)"},{"$f":"[1]ACS_16_5YR_B15002_with_ann!Z2","v":"Estimate!!Total:!!Male:!!Some college, less than 1 year"},{"$f":"[1]ACS_16_5YR_B15002_with_ann!AA2","v":"Margin of Error!!Total:!!Male:!!Some college, less than 1 year"},{"$f":"[1]ACS_16_5YR_B15002_with_ann!AB2","v":"Estimate!!Total:!!Male:!!Some college, 1 or more years, no degree"},{"$f":"[1]ACS_16_5YR_B15002_with_ann!AC2","v":"Margin of Error!!Total:!!Male:!!Some college, 1 or more years, no degree"},{"$f":"[1]ACS_16_5YR_B15002_with_ann!AD2","v":"Estimate!!Total:!!Male:!!Associate's degree"},{"$f":"[1]ACS_16_5YR_B15002_with_ann!AE2","v":"Margin of Error!!Total:!!Male:!!Associate's degree"},{"$f":"[1]ACS_16_5YR_B15002_with_ann!AF2","v":"Estimate!!Total:!!Male:!!Bachelor's degree"},{"$f":"[1]ACS_16_5YR_B15002_with_ann!AG2","v":"Margin of Error!!Total:!!Male:!!Bachelor's degree"},{"$f":"[1]ACS_16_5YR_B15002_with_ann!AH2","v":"Estimate!!Total:!!Male:!!Master's degree"},{"$f":"[1]ACS_16_5YR_B15002_with_ann!AI2","v":"Margin of Error!!Total:!!Male:!!Master's degree"},{"$f":"[1]ACS_16_5YR_B15002_with_ann!AJ2","v":"Estimate!!Total:!!Male:!!Professional school degree"},{"$f":"[1]ACS_16_5YR_B15002_with_ann!AK2","v":"Margin of Error!!Total:!!Male:!!Professional school degree"},{"$f":"[1]ACS_16_5YR_B15002_with_ann!AL2","v":"Estimate!!Total:!!Male:!!Doctorate degree"},{"$f":"[1]ACS_16_5YR_B15002_with_ann!AM2","v":"Margin of Error!!Total:!!Male:!!Doctorate degree"},{"$f":"[1]ACS_16_5YR_B15002_with_ann!AN2","v":"Estimate!!Total:!!Female:"},{"$f":"[1]ACS_16_5YR_B15002_with_ann!AO2","v":"Margin of Error!!Total:!!Female:"},{"$f":"[1]ACS_16_5YR_B15002_with_ann!AP2","v":"Estimate!!Total:!!Female:!!No schooling completed"},{"$f":"[1]ACS_16_5YR_B15002_with_ann!AQ2","v":"Margin of Error!!Total:!!Female:!!No schooling completed"},{"$f":"[1]ACS_16_5YR_B15002_with_ann!AR2","v":"Estimate!!Total:!!Female:!!Nursery to 4th grade"},{"$f":"[1]ACS_16_5YR_B15002_with_ann!AS2","v":"Margin of Error!!Total:!!Female:!!Nursery to 4th grade"},{"$f":"[1]ACS_16_5YR_B15002_with_ann!AT2","v":"Estimate!!Total:!!Female:!!5th and 6th grade"},{"$f":"[1]ACS_16_5YR_B15002_with_ann!AU2","v":"Margin of Error!!Total:!!Female:!!5th and 6th grade"},{"$f":"[1]ACS_16_5YR_B15002_with_ann!AV2","v":"Estimate!!Total:!!Female:!!7th and 8th grade"},{"$f":"[1]ACS_16_5YR_B15002_with_ann!AW2","v":"Margin of Error!!Total:!!Female:!!7th and 8th grade"},{"$f":"[1]ACS_16_5YR_B15002_with_ann!AX2","v":"Estimate!!Total:!!Female:!!9th grade"},{"$f":"[1]ACS_16_5YR_B15002_with_ann!AY2","v":"Margin of Error!!Total:!!Female:!!9th grade"},{"$f":"[1]ACS_16_5YR_B15002_with_ann!AZ2","v":"Estimate!!Total:!!Female:!!10th grade"},{"$f":"[1]ACS_16_5YR_B15002_with_ann!BA2","v":"Margin of Error!!Total:!!Female:!!10th grade"},{"$f":"[1]ACS_16_5YR_B15002_with_ann!BB2","v":"Estimate!!Total:!!Female:!!11th grade"},{"$f":"[1]ACS_16_5YR_B15002_with_ann!BC2","v":"Margin of Error!!Total:!!Female:!!11th grade"},{"$f":"[1]ACS_16_5YR_B15002_with_ann!BD2","v":"Estimate!!Total:!!Female:!!12th grade, no diploma"},{"$f":"[1]ACS_16_5YR_B15002_with_ann!BE2","v":"Margin of Error!!Total:!!Female:!!12th grade, no diploma"},{"$f":"[1]ACS_16_5YR_B15002_with_ann!BF2","v":"Estimate!!Total:!!Female:!!High school graduate (includes equivalency)"},{"$f":"[1]ACS_16_5YR_B15002_with_ann!BG2","v":"Margin of Error!!Total:!!Female:!!High school graduate (includes equivalency)"},{"$f":"[1]ACS_16_5YR_B15002_with_ann!BH2","v":"Estimate!!Total:!!Female:!!Some college, less than 1 year"},{"$f":"[1]ACS_16_5YR_B15002_with_ann!BI2","v":"Margin of Error!!Total:!!Female:!!Some college, less than 1 year"},{"$f":"[1]ACS_16_5YR_B15002_with_ann!BJ2","v":"Estimate!!Total:!!Female:!!Some college, 1 or more years, no degree"},{"$f":"[1]ACS_16_5YR_B15002_with_ann!BK2","v":"Margin of Error!!Total:!!Female:!!Some college, 1 or more years, no degree"},{"$f":"[1]ACS_16_5YR_B15002_with_ann!BL2","v":"Estimate!!Total:!!Female:!!Associate's degree"},{"$f":"[1]ACS_16_5YR_B15002_with_ann!BM2","v":"Margin of Error!!Total:!!Female:!!Associate's degree"},{"$f":"[1]ACS_16_5YR_B15002_with_ann!BN2","v":"Estimate!!Total:!!Female:!!Bachelor's degree"},{"$f":"[1]ACS_16_5YR_B15002_with_ann!BO2","v":"Margin of Error!!Total:!!Female:!!Bachelor's degree"},{"$f":"[1]ACS_16_5YR_B15002_with_ann!BP2","v":"Estimate!!Total:!!Female:!!Master's degree"},{"$f":"[1]ACS_16_5YR_B15002_with_ann!BQ2","v":"Margin of Error!!Total:!!Female:!!Master's degree"},{"$f":"[1]ACS_16_5YR_B15002_with_ann!BR2","v":"Estimate!!Total:!!Female:!!Professional school degree"},{"$f":"[1]ACS_16_5YR_B15002_with_ann!BS2","v":"Margin of Error!!Total:!!Female:!!Professional school degree"},{"$f":"[1]ACS_16_5YR_B15002_with_ann!BT2","v":"Estimate!!Total:!!Female:!!Doctorate degree"},{"$f":"[1]ACS_16_5YR_B15002_with_ann!BU2","v":"Margin of Error!!Total:!!Female:!!Doctorate degree"}]
["06000US3300500820","0600000US3300512260","060",{"$f":"[1]ACS_16_5YR_B14001_with_ann!C44","v":"Alstead"},{"$f":"[1]ACS_16_5YR_B14001_with_ann!D44","v":1581},{"$f":"[1]ACS_16_5YR_B14001_with_ann!E44","v":172},{"$f":"[1]ACS_16_5YR_B14001_with_ann!F44","v":287},{"$f":"[1]ACS_16_5YR_B14001_with_ann!G44","v":85},{"$f":"[1]ACS_16_5YR_B14001_with_ann!H44","v":13},{"$f":"[1]ACS_16_5YR_B14001_with_ann!I44","v":13},{"$f":"[1]ACS_16_5YR_B14001_with_ann!J44","v":8},{"$f":"[1]ACS_16_5YR_B14001_with_ann!K44","v":8},{"$f":"[1]ACS_16_5YR_B14001_with_ann!L44","v":56},{"$f":"[1]ACS_16_5YR_B14001_with_ann!M44","v":24},{"$f":"[1]ACS_16_5YR_B14001_with_ann!N44","v":64},{"$f":"[1]ACS_16_5YR_B14001_with_ann!O44","v":43},{"$f":"[1]ACS_16_5YR_B14001_with_ann!P44","v":78},{"$f":"[1]ACS_16_5YR_B14001_with_ann!Q44","v":32},{"$f":"[1]ACS_16_5YR_B14001_with_ann!R44","v":51},{"$f":"[1]ACS_16_5YR_B14001_with_ann!S44","v":27},{"$f":"[1]ACS_16_5YR_B14001_with_ann!T44","v":17},{"$f":"[1]ACS_16_5YR_B14001_with_ann!U44","v":16},{"$f":"[1]ACS_16_5YR_B14001_with_ann!V44","v":1294},{"$f":"[1]ACS_16_5YR_B14001_with_ann!W44","v":134},{"$f":"[1]ACS_16_5YR_B15002_with_ann!D44","v":1281},{"$f":"[1]ACS_16_5YR_B15002_with_ann!E44","v":141},{"$f":"[1]ACS_16_5YR_B15002_with_ann!F44","v":610},{"$f":"[1]ACS_16_5YR_B15002_with_ann!G44","v":87},{"$f":"[1]ACS_16_5YR_B15002_with_ann!H44","v":0},{"$f":"[1]ACS_16_5YR_B15002_with_ann!I44","v":12},{"$f":"[1]ACS_16_5YR_B15002_with_ann!J44","v":0},{"$f":"[1]ACS_16_5YR_B15002_with_ann!K44","v":12},{"$f":"[1]ACS_16_5YR_B15002_with_ann!L44","v":0},{"$f":"[1]ACS_16_5YR_B15002_with_ann!M44","v":12},{"$f":"[1]ACS_16_5YR_B15002_with_ann!N44","v":8},{"$f":"[1]ACS_16_5YR_B15002_with_ann!O44","v":11},{"$f":"[1]ACS_16_5YR_B15002_with_ann!P44","v":2},{"$f":"[1]ACS_16_5YR_B15002_with_ann!Q44","v":3},{"$f":"[1]ACS_16_5YR_B15002_with_ann!R44","v":11},{"$f":"[1]ACS_16_5YR_B15002_with_ann!S44","v":10},{"$f":"[1]ACS_16_5YR_B15002_with_ann!T44","v":2},{"$f":"[1]ACS_16_5YR_B15002_with_ann!U44","v":3},{"$f":"[1]ACS_16_5YR_B15002_with_ann!V44","v":19},{"$f":"[1]ACS_16_5YR_B15002_with_ann!W44","v":12},{"$f":"[1]ACS_16_5YR_B15002_with_ann!X44","v":259},{"$f":"[1]ACS_16_5YR_B15002_with_ann!Y44","v":85},{"$f":"[1]ACS_16_5YR_B15002_with_ann!Z44","v":38},{"$f":"[1]ACS_16_5YR_B15002_with_ann!AA44","v":29},{"$f":"[1]ACS_16_5YR_B15002_with_ann!AB44","v":51},{"$f":"[1]ACS_16_5YR_B15002_with_ann!AC44","v":29},{"$f":"[1]ACS_16_5YR_B15002_with_ann!AD44","v":62},{"$f":"[1]ACS_16_5YR_B15002_with_ann!AE44","v":39},{"$f":"[1]ACS_16_5YR_B15002_with_ann!AF44","v":109},{"$f":"[1]ACS_16_5YR_B15002_with_ann!AG44","v":40},{"$f":"[1]ACS_16_5YR_B15002_with_ann!AH44","v":36},{"$f":"[1]ACS_16_5YR_B15002_with_ann!AI44","v":24},{"$f":"[1]ACS_16_5YR_B15002_with_ann!AJ44","v":0},{"$f":"[1]ACS_16_5YR_B15002_with_ann!AK44","v":12},{"$f":"[1]ACS_16_5YR_B15002_with_ann!AL44","v":13},{"$f":"[1]ACS_16_5YR_B15002_with_ann!AM44","v":11},{"$f":"[1]ACS_16_5YR_B15002_with_ann!AN44","v":671},{"$f":"[1]ACS_16_5YR_B15002_with_ann!AO44","v":89},{"$f":"[1]ACS_16_5YR_B15002_with_ann!AP44","v":7},{"$f":"[1]ACS_16_5YR_B15002_with_ann!AQ44","v":8},{"$f":"[1]ACS_16_5YR_B15002_with_ann!AR44","v":0},{"$f":"[1]ACS_16_5YR_B15002_with_ann!AS44","v":12},{"$f":"[1]ACS_16_5YR_B15002_with_ann!AT44","v":0},{"$f":"[1]ACS_16_5YR_B15002_with_ann!AU44","v":12},{"$f":"[1]ACS_16_5YR_B15002_with_ann!AV44","v":6},{"$f":"[1]ACS_16_5YR_B15002_with_ann!AW44","v":8},{"$f":"[1]ACS_16_5YR_B15002_with_ann!AX44","v":0},{"$f":"[1]ACS_16_5YR_B15002_with_ann!AY44","v":12},{"$f":"[1]ACS_16_5YR_B15002_with_ann!AZ44","v":4},{"$f":"[1]ACS_16_5YR_B15002_with_ann!BA44","v":7},{"$f":"[1]ACS_16_5YR_B15002_with_ann!BB44","v":20},{"$f":"[1]ACS_16_5YR_B15002_with_ann!BC44","v":29},{"$f":"[1]ACS_16_5YR_B15002_with_ann!BD44","v":0},{"$f":"[1]ACS_16_5YR_B15002_with_ann!BE44","v":12},{"$f":"[1]ACS_16_5YR_B15002_with_ann!BF44","v":285},{"$f":"[1]ACS_16_5YR_B15002_with_ann!BG44","v":84},{"$f":"[1]ACS_16_5YR_B15002_with_ann!BH44","v":20},{"$f":"[1]ACS_16_5YR_B15002_with_ann!BI44","v":14},{"$f":"[1]ACS_16_5YR_B15002_with_ann!BJ44","v":61},{"$f":"[1]ACS_16_5YR_B15002_with_ann!BK44","v":25},{"$f":"[1]ACS_16_5YR_B15002_with_ann!BL44","v":70},{"$f":"[1]ACS_16_5YR_B15002_with_ann!BM44","v":32},{"$f":"[1]ACS_16_5YR_B15002_with_ann!BN44","v":132},{"$f":"[1]ACS_16_5YR_B15002_with_ann!BO44","v":41},{"$f":"[1]ACS_16_5YR_B15002_with_ann!BP44","v":43},{"$f":"[1]ACS_16_5YR_B15002_with_ann!BQ44","v":21},{"$f":"[1]ACS_16_5YR_B15002_with_ann!BR44","v":4},{"$f":"[1]ACS_16_5YR_B15002_with_ann!BS44","v":7},{"$f":"[1]ACS_16_5YR_B15002_with_ann!BT44","v":19},{"$f":"[1]ACS_16_5YR_B15002_with_ann!BU44","v":14},null,{"$f":"D3","v":"Alstead"}]
["06000US3300512260","0600000US3300519140","060",{"$f":"[1]ACS_16_5YR_B14001_with_ann!C45","v":"Chesterfield"},{"$f":"[1]ACS_16_5YR_B14001_with_ann!D45","v":3522},{"$f":"[1]ACS_16_5YR_B14001_with_ann!E45","v":46},{"$f":"[1]ACS_16_5YR_B14001_with_ann!F45","v":719},{"$f":"[1]ACS_16_5YR_B14001_with_ann!G45","v":148},{"$f":"[1]ACS_16_5YR_B14001_with_ann!H45","v":53},{"$f":"[1]ACS_16_5YR_B14001_with_ann!I45","v":44},{"$f":"[1]ACS_16_5YR_B14001_with_ann!J45","v":17},{"$f":"[1]ACS_16_5YR_B14001_with_ann!K45","v":26},{"$f":"[1]ACS_16_5YR_B14001_with_ann!L45","v":212},{"$f":"[1]ACS_16_5YR_B14001_with_ann!M45","v":75},{"$f":"[1]ACS_16_5YR_B14001_with_ann!N45","v":242},{"$f":"[1]ACS_16_5YR_B14001_with_ann!O45","v":71},{"$f":"[1]ACS_16_5YR_B14001_with_ann!P45","v":125},{"$f":"[1]ACS_16_5YR_B14001_with_ann!Q45","v":90},{"$f":"[1]ACS_16_5YR_B14001_with_ann!R45","v":5},{"$f":"[1]ACS_16_5YR_B14001_with_ann!S45","v":12},{"$f":"[1]ACS_16_5YR_B14001_with_ann!T45","v":65},{"$f":"[1]ACS_16_5YR_B14001_with_ann!U45","v":71},{"$f":"[1]ACS_16_5YR_B14001_with_ann!V45","v":2803},{"$f":"[1]ACS_16_5YR_B14001_with_ann!W45","v":162},{"$f":"[1]ACS_16_5YR_B15002_with_ann!D45","v":2694},{"$f":"[1]ACS_16_5YR_B15002_with_ann!E45","v":196},{"$f":"[1]ACS_16_5YR_B15002_with_ann!F45","v":1335},{"$f":"[1]ACS_16_5YR_B15002_with_ann!G45","v":150},{"$f":"[1]ACS_16_5YR_B15002_with_ann!H45","v":0},{"$f":"[1]ACS_16_5YR_B15002_with_ann!I45","v":12},{"$f":"[1]ACS_16_5YR_B15002_with_ann!J45","v":0},{"$f":"[1]ACS_16_5YR_B15002_with_ann!K45","v":12},{"$f":"[1]ACS_16_5YR_B15002_with_ann!L45","v":0},{"$f":"[1]ACS_16_5YR_B15002_with_ann!M45","v":12},{"$f":"[1]ACS_16_5YR_B15002_with_ann!N45","v":0},{"$f":"[1]ACS_16_5YR_B15002_with_ann!O45","v":12},{"$f":"[1]ACS_16_5YR_B15002_with_ann!P45","v":0},{"$f":"[1]ACS_16_5YR_B15002_with_ann!Q45","v":12},{"$f":"[1]ACS_16_5YR_B15002_with_ann!R45","v":15},{"$f":"[1]ACS_16_5YR_B15002_with_ann!S45","v":24},{"$f":"[1]ACS_16_5YR_B15002_with_ann!T45","v":0},{"$f":"[1]ACS_16_5YR_B15002_with_ann!U45","v":12},{"$f":"[1]ACS_16_5YR_B15002_with_ann!V45","v":53},{"$f":"[1]ACS_16_5YR_B15002_with_ann!W45","v":69},{"$f":"[1]ACS_16_5YR_B15002_with_ann!X45","v":461},{"$f":"[1]ACS_16_5YR_B15002_with_ann!Y45","v":152},{"$f":"[1]ACS_16_5YR_B15002_with_ann!Z45","v":48},{"$f":"[1]ACS_16_5YR_B15002_with_ann!AA45","v":34},{"$f":"[1]ACS_16_5YR_B15002_with_ann!AB45","v":142},{"$f":"[1]ACS_16_5YR_B15002_with_ann!AC45","v":132},{"$f":"[1]ACS_16_5YR_B15002_with_ann!AD45","v":73},{"$f":"[1]ACS_16_5YR_B15002_with_ann!AE45","v":71},{"$f":"[1]ACS_16_5YR_B15002_with_ann!AF45","v":244},{"$f":"[1]ACS_16_5YR_B15002_with_ann!AG45","v":115},{"$f":"[1]ACS_16_5YR_B15002_with_ann!AH45","v":175},{"$f":"[1]ACS_16_5YR_B15002_with_ann!AI45","v":107},{"$f":"[1]ACS_16_5YR_B15002_with_ann!AJ45","v":107},{"$f":"[1]ACS_16_5YR_B15002_with_ann!AK45","v":91},{"$f":"[1]ACS_16_5YR_B15002_with_ann!AL45","v":17},{"$f":"[1]ACS_16_5YR_B15002_with_ann!AM45","v":27},{"$f":"[1]ACS_16_5YR_B15002_with_ann!AN45","v":1359},{"$f":"[1]ACS_16_5YR_B15002_with_ann!AO45","v":138},{"$f":"[1]ACS_16_5YR_B15002_with_ann!AP45","v":0},{"$f":"[1]ACS_16_5YR_B15002_with_ann!AQ45","v":12},{"$f":"[1]ACS_16_5YR_B15002_with_ann!AR45","v":0},{"$f":"[1]ACS_16_5YR_B15002_with_ann!AS45","v":12},{"$f":"[1]ACS_16_5YR_B15002_with_ann!AT45","v":20},{"$f":"[1]ACS_16_5YR_B15002_with_ann!AU45","v":30},{"$f":"[1]ACS_16_5YR_B15002_with_ann!AV45","v":0},{"$f":"[1]ACS_16_5YR_B15002_with_ann!AW45","v":12},{"$f":"[1]ACS_16_5YR_B15002_with_ann!AX45","v":0},{"$f":"[1]ACS_16_5YR_B15002_with_ann!AY45","v":12},{"$f":"[1]ACS_16_5YR_B15002_with_ann!AZ45","v":0},{"$f":"[1]ACS_16_5YR_B15002_with_ann!BA45","v":12},{"$f":"[1]ACS_16_5YR_B15002_with_ann!BB45","v":32},{"$f":"[1]ACS_16_5YR_B15002_with_ann!BC45","v":49},{"$f":"[1]ACS_16_5YR_B15002_with_ann!BD45","v":0},{"$f":"[1]ACS_16_5YR_B15002_with_ann!BE45","v":12},{"$f":"[1]ACS_16_5YR_B15002_with_ann!BF45","v":381},{"$f":"[1]ACS_16_5YR_B15002_with_ann!BG45","v":153},{"$f":"[1]ACS_16_5YR_B15002_with_ann!BH45","v":103},{"$f":"[1]ACS_16_5YR_B15002_with_ann!BI45","v":101},{"$f":"[1]ACS_16_5YR_B15002_with_ann!BJ45","v":115},{"$f":"[1]ACS_16_5YR_B15002_with_ann!BK45","v":75},{"$f":"[1]ACS_16_5YR_B15002_with_ann!BL45","v":93},{"$f":"[1]ACS_16_5YR_B15002_with_ann!BM45","v":51},{"$f":"[1]ACS_16_5YR_B15002_with_ann!BN45","v":292},{"$f":"[1]ACS_16_5YR_B15002_with_ann!BO45","v":129},{"$f":"[1]ACS_16_5YR_B15002_with_ann!BP45","v":271},{"$f":"[1]ACS_16_5YR_B15002_with_ann!BQ45","v":141},{"$f":"[1]ACS_16_5YR_B15002_with_ann!BR45","v":32},{"$f":"[1]ACS_16_5YR_B15002_with_ann!BS45","v":48},{"$f":"[1]ACS_16_5YR_B15002_with_ann!BT45","v":20},{"$f":"[1]ACS_16_5YR_B15002_with_ann!BU45","v":30},null,"Chesterfield"]
["06000US3300519140","0600000US3300526500","060",{"$f":"[1]ACS_16_5YR_B14001_with_ann!C46","v":"Dublin"},{"$f":"[1]ACS_16_5YR_B14001_with_ann!D46","v":1676},{"$f":"[1]ACS_16_5YR_B14001_with_ann!E46","v":212},{"$f":"[1]ACS_16_5YR_B14001_with_ann!F46","v":348},{"$f":"[1]ACS_16_5YR_B14001_with_ann!G46","v":88},{"$f":"[1]ACS_16_5YR_B14001_with_ann!H46","v":4},{"$f":"[1]ACS_16_5YR_B14001_with_ann!I46","v":6},{"$f":"[1]ACS_16_5YR_B14001_with_ann!J46","v":10},{"$f":"[1]ACS_16_5YR_B14001_with_ann!K46","v":9},{"$f":"[1]ACS_16_5YR_B14001_with_ann!L46","v":52},{"$f":"[1]ACS_16_5YR_B14001_with_ann!M46","v":29},{"$f":"[1]ACS_16_5YR_B14001_with_ann!N46","v":111},{"$f":"[1]ACS_16_5YR_B14001_with_ann!O46","v":39},{"$f":"[1]ACS_16_5YR_B14001_with_ann!P46","v":79},{"$f":"[1]ACS_16_5YR_B14001_with_ann!Q46","v":36},{"$f":"[1]ACS_16_5YR_B14001_with_ann!R46","v":67},{"$f":"[1]ACS_16_5YR_B14001_with_ann!S46","v":24},{"$f":"[1]ACS_16_5YR_B14001_with_ann!T46","v":25},{"$f":"[1]ACS_16_5YR_B14001_with_ann!U46","v":34},{"$f":"[1]ACS_16_5YR_B14001_with_ann!V46","v":1328},{"$f":"[1]ACS_16_5YR_B14001_with_ann!W46","v":188},{"$f":"[1]ACS_16_5YR_B15002_with_ann!D46","v":1278},{"$f":"[1]ACS_16_5YR_B15002_with_ann!E46","v":183},{"$f":"[1]ACS_16_5YR_B15002_with_ann!F46","v":606},{"$f":"[1]ACS_16_5YR_B15002_with_ann!G46","v":102},{"$f":"[1]ACS_16_5YR_B15002_with_ann!H46","v":0},{"$f":"[1]ACS_16_5YR_B15002_with_ann!I46","v":12},{"$f":"[1]ACS_16_5YR_B15002_with_ann!J46","v":8},{"$f":"[1]ACS_16_5YR_B15002_with_ann!K46","v":12},{"$f":"[1]ACS_16_5YR_B15002_with_ann!L46","v":0},{"$f":"[1]ACS_16_5YR_B15002_with_ann!M46","v":12},{"$f":"[1]ACS_16_5YR_B15002_with_ann!N46","v":0},{"$f":"[1]ACS_16_5YR_B15002_with_ann!O46","v":12},{"$f":"[1]ACS_16_5YR_B15002_with_ann!P46","v":5},{"$f":"[1]ACS_16_5YR_B15002_with_ann!Q46","v":6},{"$f":"[1]ACS_16_5YR_B15002_with_ann!R46","v":6},{"$f":"[1]ACS_16_5YR_B15002_with_ann!S46","v":7},{"$f":"[1]ACS_16_5YR_B15002_with_ann!T46","v":6},{"$f":"[1]ACS_16_5YR_B15002_with_ann!U46","v":6},{"$f":"[1]ACS_16_5YR_B15002_with_ann!V46","v":3},{"$f":"[1]ACS_16_5YR_B15002_with_ann!W46","v":4},{"$f":"[1]ACS_16_5YR_B15002_with_ann!X46","v":152},{"$f":"[1]ACS_16_5YR_B15002_with_ann!Y46","v":67},{"$f":"[1]ACS_16_5YR_B15002_with_ann!Z46","v":8},{"$f":"[1]ACS_16_5YR_B15002_with_ann!AA46","v":8},{"$f":"[1]ACS_16_5YR_B15002_with_ann!AB46","v":80},{"$f":"[1]ACS_16_5YR_B15002_with_ann!AC46","v":53},{"$f":"[1]ACS_16_5YR_B15002_with_ann!AD46","v":62},{"$f":"[1]ACS_16_5YR_B15002_with_ann!AE46","v":41},{"$f":"[1]ACS_16_5YR_B15002_with_ann!AF46","v":156},{"$f":"[1]ACS_16_5YR_B15002_with_ann!AG46","v":48},{"$f":"[1]ACS_16_5YR_B15002_with_ann!AH46","v":87},{"$f":"[1]ACS_16_5YR_B15002_with_ann!AI46","v":31},{"$f":"[1]ACS_16_5YR_B15002_with_ann!AJ46","v":19},{"$f":"[1]ACS_16_5YR_B15002_with_ann!AK46","v":12},{"$f":"[1]ACS_16_5YR_B15002_with_ann!AL46","v":14},{"$f":"[1]ACS_16_5YR_B15002_with_ann!AM46","v":11},{"$f":"[1]ACS_16_5YR_B15002_with_ann!AN46","v":672},{"$f":"[1]ACS_16_5YR_B15002_with_ann!AO46","v":111},{"$f":"[1]ACS_16_5YR_B15002_with_ann!AP46","v":0},{"$f":"[1]ACS_16_5YR_B15002_with_ann!AQ46","v":12},{"$f":"[1]ACS_16_5YR_B15002_with_ann!AR46","v":0},{"$f":"[1]ACS_16_5YR_B15002_with_ann!AS46","v":12},{"$f":"[1]ACS_16_5YR_B15002_with_ann!AT46","v":0},{"$f":"[1]ACS_16_5YR_B15002_with_ann!AU46","v":12},{"$f":"[1]ACS_16_5YR_B15002_with_ann!AV46","v":0},{"$f":"[1]ACS_16_5YR_B15002_with_ann!AW46","v":12},{"$f":"[1]ACS_16_5YR_B15002_with_ann!AX46","v":0},{"$f":"[1]ACS_16_5YR_B15002_with_ann!AY46","v":12},{"$f":"[1]ACS_16_5YR_B15002_with_ann!AZ46","v":3},{"$f":"[1]ACS_16_5YR_B15002_with_ann!BA46","v":4},{"$f":"[1]ACS_16_5YR_B15002_with_ann!BB46","v":0},{"$f":"[1]ACS_16_5YR_B15002_with_ann!BC46","v":12},{"$f":"[1]ACS_16_5YR_B15002_with_ann!BD46","v":3},{"$f":"[1]ACS_16_5YR_B15002_with_ann!BE46","v":4},{"$f":"[1]ACS_16_5YR_B15002_with_ann!BF46","v":146},{"$f":"[1]ACS_16_5YR_B15002_with_ann!BG46","v":78},{"$f":"[1]ACS_16_5YR_B15002_with_ann!BH46","v":33},{"$f":"[1]ACS_16_5YR_B15002_with_ann!BI46","v":25},{"$f":"[1]ACS_16_5YR_B15002_with_ann!BJ46","v":93},{"$f":"[1]ACS_16_5YR_B15002_with_ann!BK46","v":63},{"$f":"[1]ACS_16_5YR_B15002_with_ann!BL46","v":50},{"$f":"[1]ACS_16_5YR_B15002_with_ann!BM46","v":22},{"$f":"[1]ACS_16_5YR_B15002_with_ann!BN46","v":180},{"$f":"[1]ACS_16_5YR_B15002_with_ann!BO46","v":58},{"$f":"[1]ACS_16_5YR_B15002_with_ann!BP46","v":121},{"$f":"[1]ACS_16_5YR_B15002_with_ann!BQ46","v":51},{"$f":"[1]ACS_16_5YR_B15002_with_ann!BR46","v":35},{"$f":"[1]ACS_16_5YR_B15002_with_ann!BS46","v":27},{"$f":"[1]ACS_16_5YR_B15002_with_ann!BT46","v":8},{"$f":"[1]ACS_16_5YR_B15002_with_ann!BU46","v":8},null,"Dublin"]
["06000US3300526500","0600000US3300529220","060",{"$f":"[1]ACS_16_5YR_B14001_with_ann!C47","v":"Fitzwilliam"},{"$f":"[1]ACS_16_5YR_B14001_with_ann!D47","v":2236},{"$f":"[1]ACS_16_5YR_B14001_with_ann!E47","v":360},{"$f":"[1]ACS_16_5YR_B14001_with_ann!F47","v":274},{"$f":"[1]ACS_16_5YR_B14001_with_ann!G47","v":83},{"$f":"[1]ACS_16_5YR_B14001_with_ann!H47","v":8},{"$f":"[1]ACS_16_5YR_B14001_with_ann!I47","v":9},{"$f":"[1]ACS_16_5YR_B14001_with_ann!J47","v":30},{"$f":"[1]ACS_16_5YR_B14001_with_ann!K47","v":36},{"$f":"[1]ACS_16_5YR_B14001_with_ann!L47","v":44},{"$f":"[1]ACS_16_5YR_B14001_with_ann!M47","v":20},{"$f":"[1]ACS_16_5YR_B14001_with_ann!N47","v":81},{"$f":"[1]ACS_16_5YR_B14001_with_ann!O47","v":38},{"$f":"[1]ACS_16_5YR_B14001_with_ann!P47","v":58},{"$f":"[1]ACS_16_5YR_B14001_with_ann!Q47","v":38},{"$f":"[1]ACS_16_5YR_B14001_with_ann!R47","v":42},{"$f":"[1]ACS_16_5YR_B14001_with_ann!S47","v":24},{"$f":"[1]ACS_16_5YR_B14001_with_ann!T47","v":11},{"$f":"[1]ACS_16_5YR_B14001_with_ann!U47","v":11},{"$f":"[1]ACS_16_5YR_B14001_with_ann!V47","v":1962},{"$f":"[1]ACS_16_5YR_B14001_with_ann!W47","v":332},{"$f":"[1]ACS_16_5YR_B15002_with_ann!D47","v":1897},{"$f":"[1]ACS_16_5YR_B15002_with_ann!E47","v":332},{"$f":"[1]ACS_16_5YR_B15002_with_ann!F47","v":1008},{"$f":"[1]ACS_16_5YR_B15002_with_ann!G47","v":198},{"$f":"[1]ACS_16_5YR_B15002_with_ann!H47","v":1},{"$f":"[1]ACS_16_5YR_B15002_with_ann!I47","v":3},{"$f":"[1]ACS_16_5YR_B15002_with_ann!J47","v":0},{"$f":"[1]ACS_16_5YR_B15002_with_ann!K47","v":12},{"$f":"[1]ACS_16_5YR_B15002_with_ann!L47","v":0},{"$f":"[1]ACS_16_5YR_B15002_with_ann!M47","v":12},{"$f":"[1]ACS_16_5YR_B15002_with_ann!N47","v":41},{"$f":"[1]ACS_16_5YR_B15002_with_ann!O47","v":27},{"$f":"[1]ACS_16_5YR_B15002_with_ann!P47","v":0},{"$f":"[1]ACS_16_5YR_B15002_with_ann!Q47","v":12},{"$f":"[1]ACS_16_5YR_B15002_with_ann!R47","v":3},{"$f":"[1]ACS_16_5YR_B15002_with_ann!S47","v":5},{"$f":"[1]ACS_16_5YR_B15002_with_ann!T47","v":7},{"$f":"[1]ACS_16_5YR_B15002_with_ann!U47","v":7},{"$f":"[1]ACS_16_5YR_B15002_with_ann!V47","v":45},{"$f":"[1]ACS_16_5YR_B15002_with_ann!W47","v":55},{"$f":"[1]ACS_16_5YR_B15002_with_ann!X47","v":266},{"$f":"[1]ACS_16_5YR_B15002_with_ann!Y47","v":64},{"$f":"[1]ACS_16_5YR_B15002_with_ann!Z47","v":69},{"$f":"[1]ACS_16_5YR_B15002_with_ann!AA47","v":46},{"$f":"[1]ACS_16_5YR_B15002_with_ann!AB47","v":114},{"$f":"[1]ACS_16_5YR_B15002_with_ann!AC47","v":52},{"$f":"[1]ACS_16_5YR_B15002_with_ann!AD47","v":183},{"$f":"[1]ACS_16_5YR_B15002_with_ann!AE47","v":154},{"$f":"[1]ACS_16_5YR_B15002_with_ann!AF47","v":172},{"$f":"[1]ACS_16_5YR_B15002_with_ann!AG47","v":58},{"$f":"[1]ACS_16_5YR_B15002_with_ann!AH47","v":95},{"$f":"[1]ACS_16_5YR_B15002_with_ann!AI47","v":53},{"$f":"[1]ACS_16_5YR_B15002_with_ann!AJ47","v":7},{"$f":"[1]ACS_16_5YR_B15002_with_ann!AK47","v":11},{"$f":"[1]ACS_16_5YR_B15002_with_ann!AL47","v":5},{"$f":"[1]ACS_16_5YR_B15002_with_ann!AM47","v":7},{"$f":"[1]ACS_16_5YR_B15002_with_ann!AN47","v":889},{"$f":"[1]ACS_16_5YR_B15002_with_ann!AO47","v":158},{"$f":"[1]ACS_16_5YR_B15002_with_ann!AP47","v":0},{"$f":"[1]ACS_16_5YR_B15002_with_ann!AQ47","v":12},{"$f":"[1]ACS_16_5YR_B15002_with_ann!AR47","v":6},{"$f":"[1]ACS_16_5YR_B15002_with_ann!AS47","v":8},{"$f":"[1]ACS_16_5YR_B15002_with_ann!AT47","v":0},{"$f":"[1]ACS_16_5YR_B15002_with_ann!AU47","v":12},{"$f":"[1]ACS_16_5YR_B15002_with_ann!AV47","v":0},{"$f":"[1]ACS_16_5YR_B15002_with_ann!AW47","v":12},{"$f":"[1]ACS_16_5YR_B15002_with_ann!AX47","v":0},{"$f":"[1]ACS_16_5YR_B15002_with_ann!AY47","v":12},{"$f":"[1]ACS_16_5YR_B15002_with_ann!AZ47","v":8},{"$f":"[1]ACS_16_5YR_B15002_with_ann!BA47","v":10},{"$f":"[1]ACS_16_5YR_B15002_with_ann!BB47","v":0},{"$f":"[1]ACS_16_5YR_B15002_with_ann!BC47","v":12},{"$f":"[1]ACS_16_5YR_B15002_with_ann!BD47","v":11},{"$f":"[1]ACS_16_5YR_B15002_with_ann!BE47","v":12},{"$f":"[1]ACS_16_5YR_B15002_with_ann!BF47","v":241},{"$f":"[1]ACS_16_5YR_B15002_with_ann!BG47","v":74},{"$f":"[1]ACS_16_5YR_B15002_with_ann!BH47","v":69},{"$f":"[1]ACS_16_5YR_B15002_with_ann!BI47","v":36},{"$f":"[1]ACS_16_5YR_B15002_with_ann!BJ47","v":117},{"$f":"[1]ACS_16_5YR_B15002_with_ann!BK47","v":48},{"$f":"[1]ACS_16_5YR_B15002_with_ann!BL47","v":96},{"$f":"[1]ACS_16_5YR_B15002_with_ann!BM47","v":47},{"$f":"[1]ACS_16_5YR_B15002_with_ann!BN47","v":213},{"$f":"[1]ACS_16_5YR_B15002_with_ann!BO47","v":105},{"$f":"[1]ACS_16_5YR_B15002_with_ann!BP47","v":105},{"$f":"[1]ACS_16_5YR_B15002_with_ann!BQ47","v":55},{"$f":"[1]ACS_16_5YR_B15002_with_ann!BR47","v":3},{"$f":"[1]ACS_16_5YR_B15002_with_ann!BS47","v":6},{"$f":"[1]ACS_16_5YR_B15002_with_ann!BT47","v":20},{"$f":"[1]ACS_16_5YR_B15002_with_ann!BU47","v":12},null,"Fitzwilliam"]
["06000US3300529220","0600000US3300534420","060",{"$f":"[1]ACS_16_5YR_B14001_with_ann!C48","v":"Gilsum"},{"$f":"[1]ACS_16_5YR_B14001_with_ann!D48","v":825},{"$f":"[1]ACS_16_5YR_B14001_with_ann!E48","v":137},{"$f":"[1]ACS_16_5YR_B14001_with_ann!F48","v":128},{"$f":"[1]ACS_16_5YR_B14001_with_ann!G48","v":62},{"$f":"[1]ACS_16_5YR_B14001_with_ann!H48","v":11},{"$f":"[1]ACS_16_5YR_B14001_with_ann!I48","v":10},{"$f":"[1]ACS_16_5YR_B14001_with_ann!J48","v":14},{"$f":"[1]ACS_16_5YR_B14001_with_ann!K48","v":15},{"$f":"[1]ACS_16_5YR_B14001_with_ann!L48","v":31},{"$f":"[1]ACS_16_5YR_B14001_with_ann!M48","v":28},{"$f":"[1]ACS_16_5YR_B14001_with_ann!N48","v":2},{"$f":"[1]ACS_16_5YR_B14001_with_ann!O48","v":3},{"$f":"[1]ACS_16_5YR_B14001_with_ann!P48","v":48},{"$f":"[1]ACS_16_5YR_B14001_with_ann!Q48","v":32},{"$f":"[1]ACS_16_5YR_B14001_with_ann!R48","v":17},{"$f":"[1]ACS_16_5YR_B14001_with_ann!S48","v":17},{"$f":"[1]ACS_16_5YR_B14001_with_ann!T48","v":5},{"$f":"[1]ACS_16_5YR_B14001_with_ann!U48","v":9},{"$f":"[1]ACS_16_5YR_B14001_with_ann!V48","v":697},{"$f":"[1]ACS_16_5YR_B14001_with_ann!W48","v":130},{"$f":"[1]ACS_16_5YR_B15002_with_ann!D48","v":625},{"$f":"[1]ACS_16_5YR_B15002_with_ann!E48","v":101},{"$f":"[1]ACS_16_5YR_B15002_with_ann!F48","v":311},{"$f":"[1]ACS_16_5YR_B15002_with_ann!G48","v":60},{"$f":"[1]ACS_16_5YR_B15002_with_ann!H48","v":0},{"$f":"[1]ACS_16_5YR_B15002_with_ann!I48","v":12},{"$f":"[1]ACS_16_5YR_B15002_with_ann!J48","v":3},{"$f":"[1]ACS_16_5YR_B15002_with_ann!K48","v":8},{"$f":"[1]ACS_16_5YR_B15002_with_ann!L48","v":0},{"$f":"[1]ACS_16_5YR_B15002_with_ann!M48","v":12},{"$f":"[1]ACS_16_5YR_B15002_with_ann!N48","v":6},{"$f":"[1]ACS_16_5YR_B15002_with_ann!O48","v":7},{"$f":"[1]ACS_16_5YR_B15002_with_ann!P48","v":4},{"$f":"[1]ACS_16_5YR_B15002_with_ann!Q48","v":4},{"$f":"[1]ACS_16_5YR_B15002_with_ann!R48","v":2},{"$f":"[1]ACS_16_5YR_B15002_with_ann!S48","v":3},{"$f":"[1]ACS_16_5YR_B15002_with_ann!T48","v":4},{"$f":"[1]ACS_16_5YR_B15002_with_ann!U48","v":5},{"$f":"[1]ACS_16_5YR_B15002_with_ann!V48","v":7},{"$f":"[1]ACS_16_5YR_B15002_with_ann!W48","v":5},{"$f":"[1]ACS_16_5YR_B15002_with_ann!X48","v":136},{"$f":"[1]ACS_16_5YR_B15002_with_ann!Y48","v":50},{"$f":"[1]ACS_16_5YR_B15002_with_ann!Z48","v":3},{"$f":"[1]ACS_16_5YR_B15002_with_ann!AA48","v":4},{"$f":"[1]ACS_16_5YR_B15002_with_ann!AB48","v":48},{"$f":"[1]ACS_16_5YR_B15002_with_ann!AC48","v":21},{"$f":"[1]ACS_16_5YR_B15002_with_ann!AD48","v":46},{"$f":"[1]ACS_16_5YR_B15002_with_ann!AE48","v":22},{"$f":"[1]ACS_16_5YR_B15002_with_ann!AF48","v":27},{"$f":"[1]ACS_16_5YR_B15002_with_ann!AG48","v":14},{"$f":"[1]ACS_16_5YR_B15002_with_ann!AH48","v":16},{"$f":"[1]ACS_16_5YR_B15002_with_ann!AI48","v":14},{"$f":"[1]ACS_16_5YR_B15002_with_ann!AJ48","v":5},{"$f":"[1]ACS_16_5YR_B15002_with_ann!AK48","v":6},{"$f":"[1]ACS_16_5YR_B15002_with_ann!AL48","v":4},{"$f":"[1]ACS_16_5YR_B15002_with_ann!AM48","v":4},{"$f":"[1]ACS_16_5YR_B15002_with_ann!AN48","v":314},{"$f":"[1]ACS_16_5YR_B15002_with_ann!AO48","v":56},{"$f":"[1]ACS_16_5YR_B15002_with_ann!AP48","v":0},{"$f":"[1]ACS_16_5YR_B15002_with_ann!AQ48","v":12},{"$f":"[1]ACS_16_5YR_B15002_with_ann!AR48","v":0},{"$f":"[1]ACS_16_5YR_B15002_with_ann!AS48","v":12},{"$f":"[1]ACS_16_5YR_B15002_with_ann!AT48","v":0},{"$f":"[1]ACS_16_5YR_B15002_with_ann!AU48","v":12},{"$f":"[1]ACS_16_5YR_B15002_with_ann!AV48","v":3},{"$f":"[1]ACS_16_5YR_B15002_with_ann!AW48","v":4},{"$f":"[1]ACS_16_5YR_B15002_with_ann!AX48","v":7},{"$f":"[1]ACS_16_5YR_B15002_with_ann!AY48","v":11},{"$f":"[1]ACS_16_5YR_B15002_with_ann!AZ48","v":3},{"$f":"[1]ACS_16_5YR_B15002_with_ann!BA48","v":4},{"$f":"[1]ACS_16_5YR_B15002_with_ann!BB48","v":2},{"$f":"[1]ACS_16_5YR_B15002_with_ann!BC48","v":4},{"$f":"[1]ACS_16_5YR_B15002_with_ann!BD48","v":0},{"$f":"[1]ACS_16_5YR_B15002_with_ann!BE48","v":12},{"$f":"[1]ACS_16_5YR_B15002_with_ann!BF48","v":108},{"$f":"[1]ACS_16_5YR_B15002_with_ann!BG48","v":38},{"$f":"[1]ACS_16_5YR_B15002_with_ann!BH48","v":21},{"$f":"[1]ACS_16_5YR_B15002_with_ann!BI48","v":15},{"$f":"[1]ACS_16_5YR_B15002_with_ann!BJ48","v":31},{"$f":"[1]ACS_16_5YR_B15002_with_ann!BK48","v":16},{"$f":"[1]ACS_16_5YR_B15002_with_ann!BL48","v":75},{"$f":"[1]ACS_16_5YR_B15002_with_ann!BM48","v":29},{"$f":"[1]ACS_16_5YR_B15002_with_ann!BN48","v":38},{"$f":"[1]ACS_16_5YR_B15002_with_ann!BO48","v":18},{"$f":"[1]ACS_16_5YR_B15002_with_ann!BP48","v":22},{"$f":"[1]ACS_16_5YR_B15002_with_ann!BQ48","v":15},{"$f":"[1]ACS_16_5YR_B15002_with_ann!BR48","v":0},{"$f":"[1]ACS_16_5YR_B15002_with_ann!BS48","v":12},{"$f":"[1]ACS_16_5YR_B15002_with_ann!BT48","v":4},{"$f":"[1]ACS_16_5YR_B15002_with_ann!BU48","v":5},null,"Gilsum"]
["06000US3300534420","0600000US3300536660","060",{"$f":"[1]ACS_16_5YR_B14001_with_ann!C49","v":"Harrisville"},{"$f":"[1]ACS_16_5YR_B14001_with_ann!D49","v":958},{"$f":"[1]ACS_16_5YR_B14001_with_ann!E49","v":193},{"$f":"[1]ACS_16_5YR_B14001_with_ann!F49","v":158},{"$f":"[1]ACS_16_5YR_B14001_with_ann!G49","v":67},{"$f":"[1]ACS_16_5YR_B14001_with_ann!H49","v":16},{"$f":"[1]ACS_16_5YR_B14001_with_ann!I49","v":15},{"$f":"[1]ACS_16_5YR_B14001_with_ann!J49","v":7},{"$f":"[1]ACS_16_5YR_B14001_with_ann!K49","v":7},{"$f":"[1]ACS_16_5YR_B14001_with_ann!L49","v":53},{"$f":"[1]ACS_16_5YR_B14001_with_ann!M49","v":38},{"$f":"[1]ACS_16_5YR_B14001_with_ann!N49","v":23},{"$f":"[1]ACS_16_5YR_B14001_with_ann!O49","v":22},{"$f":"[1]ACS_16_5YR_B14001_with_ann!P49","v":17},{"$f":"[1]ACS_16_5YR_B14001_with_ann!Q49","v":13},{"$f":"[1]ACS_16_5YR_B14001_with_ann!R49","v":31},{"$f":"[1]ACS_16_5YR_B14001_with_ann!S49","v":21},{"$f":"[1]ACS_16_5YR_B14001_with_ann!T49","v":11},{"$f":"[1]ACS_16_5YR_B14001_with_ann!U49","v":10},{"$f":"[1]ACS_16_5YR_B14001_with_ann!V49","v":800},{"$f":"[1]ACS_16_5YR_B14001_with_ann!W49","v":156},{"$f":"[1]ACS_16_5YR_B15002_with_ann!D49","v":792},{"$f":"[1]ACS_16_5YR_B15002_with_ann!E49","v":140},{"$f":"[1]ACS_16_5YR_B15002_with_ann!F49","v":363},{"$f":"[1]ACS_16_5YR_B15002_with_ann!G49","v":66},{"$f":"[1]ACS_16_5YR_B15002_with_ann!H49","v":0},{"$f":"[1]ACS_16_5YR_B15002_with_ann!I49","v":12},{"$f":"[1]ACS_16_5YR_B15002_with_ann!J49","v":0},{"$f":"[1]ACS_16_5YR_B15002_with_ann!K49","v":12},{"$f":"[1]ACS_16_5YR_B15002_with_ann!L49","v":0},{"$f":"[1]ACS_16_5YR_B15002_with_ann!M49","v":12},{"$f":"[1]ACS_16_5YR_B15002_with_ann!N49","v":0},{"$f":"[1]ACS_16_5YR_B15002_with_ann!O49","v":12},{"$f":"[1]ACS_16_5YR_B15002_with_ann!P49","v":3},{"$f":"[1]ACS_16_5YR_B15002_with_ann!Q49","v":5},{"$f":"[1]ACS_16_5YR_B15002_with_ann!R49","v":3},{"$f":"[1]ACS_16_5YR_B15002_with_ann!S49","v":4},{"$f":"[1]ACS_16_5YR_B15002_with_ann!T49","v":4},{"$f":"[1]ACS_16_5YR_B15002_with_ann!U49","v":6},{"$f":"[1]ACS_16_5YR_B15002_with_ann!V49","v":2},{"$f":"[1]ACS_16_5YR_B15002_with_ann!W49","v":3},{"$f":"[1]ACS_16_5YR_B15002_with_ann!X49","v":90},{"$f":"[1]ACS_16_5YR_B15002_with_ann!Y49","v":41},{"$f":"[1]ACS_16_5YR_B15002_with_ann!Z49","v":18},{"$f":"[1]ACS_16_5YR_B15002_with_ann!AA49","v":13},{"$f":"[1]ACS_16_5YR_B15002_with_ann!AB49","v":35},{"$f":"[1]ACS_16_5YR_B15002_with_ann!AC49","v":19},{"$f":"[1]ACS_16_5YR_B15002_with_ann!AD49","v":42},{"$f":"[1]ACS_16_5YR_B15002_with_ann!AE49","v":22},{"$f":"[1]ACS_16_5YR_B15002_with_ann!AF49","v":110},{"$f":"[1]ACS_16_5YR_B15002_with_ann!AG49","v":40},{"$f":"[1]ACS_16_5YR_B15002_with_ann!AH49","v":38},{"$f":"[1]ACS_16_5YR_B15002_with_ann!AI49","v":18},{"$f":"[1]ACS_16_5YR_B15002_with_ann!AJ49","v":11},{"$f":"[1]ACS_16_5YR_B15002_with_ann!AK49","v":9},{"$f":"[1]ACS_16_5YR_B15002_with_ann!AL49","v":7},{"$f":"[1]ACS_16_5YR_B15002_with_ann!AM49","v":11},{"$f":"[1]ACS_16_5YR_B15002_with_ann!AN49","v":429},{"$f":"[1]ACS_16_5YR_B15002_with_ann!AO49","v":82},{"$f":"[1]ACS_16_5YR_B15002_with_ann!AP49","v":0},{"$f":"[1]ACS_16_5YR_B15002_with_ann!AQ49","v":12},{"$f":"[1]ACS_16_5YR_B15002_with_ann!AR49","v":0},{"$f":"[1]ACS_16_5YR_B15002_with_ann!AS49","v":12},{"$f":"[1]ACS_16_5YR_B15002_with_ann!AT49","v":0},{"$f":"[1]ACS_16_5YR_B15002_with_ann!AU49","v":12},{"$f":"[1]ACS_16_5YR_B15002_with_ann!AV49","v":0},{"$f":"[1]ACS_16_5YR_B15002_with_ann!AW49","v":12},{"$f":"[1]ACS_16_5YR_B15002_with_ann!AX49","v":0},{"$f":"[1]ACS_16_5YR_B15002_with_ann!AY49","v":12},{"$f":"[1]ACS_16_5YR_B15002_with_ann!AZ49","v":9},{"$f":"[1]ACS_16_5YR_B15002_with_ann!BA49","v":15},{"$f":"[1]ACS_16_5YR_B15002_with_ann!BB49","v":0},{"$f":"[1]ACS_16_5YR_B15002_with_ann!BC49","v":12},{"$f":"[1]ACS_16_5YR_B15002_with_ann!BD49","v":4},{"$f":"[1]ACS_16_5YR_B15002_with_ann!BE49","v":5},{"$f":"[1]ACS_16_5YR_B15002_with_ann!BF49","v":102},{"$f":"[1]ACS_16_5YR_B15002_with_ann!BG49","v":48},{"$f":"[1]ACS_16_5YR_B15002_with_ann!BH49","v":11},{"$f":"[1]ACS_16_5YR_B15002_with_ann!BI49","v":11},{"$f":"[1]ACS_16_5YR_B15002_with_ann!BJ49","v":31},{"$f":"[1]ACS_16_5YR_B15002_with_ann!BK49","v":23},{"$f":"[1]ACS_16_5YR_B15002_with_ann!BL49","v":58},{"$f":"[1]ACS_16_5YR_B15002_with_ann!BM49","v":39},{"$f":"[1]ACS_16_5YR_B15002_with_ann!BN49","v":111},{"$f":"[1]ACS_16_5YR_B15002_with_ann!BO49","v":38},{"$f":"[1]ACS_16_5YR_B15002_with_ann!BP49","v":98},{"$f":"[1]ACS_16_5YR_B15002_with_ann!BQ49","v":29},{"$f":"[1]ACS_16_5YR_B15002_with_ann!BR49","v":5},{"$f":"[1]ACS_16_5YR_B15002_with_ann!BS49","v":5},{"$f":"[1]ACS_16_5YR_B15002_with_ann!BT49","v":0},{"$f":"[1]ACS_16_5YR_B15002_with_ann!BU49","v":12},null,"Harrisville"]
["06000US3300536660","0600000US3300538500","060",{"$f":"[1]ACS_16_5YR_B14001_with_ann!C50","v":"Hinsdale"},{"$f":"[1]ACS_16_5YR_B14001_with_ann!D50","v":3911},{"$f":"[1]ACS_16_5YR_B14001_with_ann!E50","v":51},{"$f":"[1]ACS_16_5YR_B14001_with_ann!F50","v":532},{"$f":"[1]ACS_16_5YR_B14001_with_ann!G50","v":185},{"$f":"[1]ACS_16_5YR_B14001_with_ann!H50","v":36},{"$f":"[1]ACS_16_5YR_B14001_with_ann!I50","v":39},{"$f":"[1]ACS_16_5YR_B14001_with_ann!J50","v":27},{"$f":"[1]ACS_16_5YR_B14001_with_ann!K50","v":36},{"$f":"[1]ACS_16_5YR_B14001_with_ann!L50","v":150},{"$f":"[1]ACS_16_5YR_B14001_with_ann!M50","v":77},{"$f":"[1]ACS_16_5YR_B14001_with_ann!N50","v":141},{"$f":"[1]ACS_16_5YR_B14001_with_ann!O50","v":58},{"$f":"[1]ACS_16_5YR_B14001_with_ann!P50","v":89},{"$f":"[1]ACS_16_5YR_B14001_with_ann!Q50","v":95},{"$f":"[1]ACS_16_5YR_B14001_with_ann!R50","v":89},{"$f":"[1]ACS_16_5YR_B14001_with_ann!S50","v":72},{"$f":"[1]ACS_16_5YR_B14001_with_ann!T50","v":0},{"$f":"[1]ACS_16_5YR_B14001_with_ann!U50","v":12},{"$f":"[1]ACS_16_5YR_B14001_with_ann!V50","v":3379},{"$f":"[1]ACS_16_5YR_B14001_with_ann!W50","v":179},{"$f":"[1]ACS_16_5YR_B15002_with_ann!D50","v":3044},{"$f":"[1]ACS_16_5YR_B15002_with_ann!E50","v":195},{"$f":"[1]ACS_16_5YR_B15002_with_ann!F50","v":1653},{"$f":"[1]ACS_16_5YR_B15002_with_ann!G50","v":203},{"$f":"[1]ACS_16_5YR_B15002_with_ann!H50","v":20},{"$f":"[1]ACS_16_5YR_B15002_with_ann!I50","v":19},{"$f":"[1]ACS_16_5YR_B15002_with_ann!J50","v":31},{"$f":"[1]ACS_16_5YR_B15002_with_ann!K50","v":41},{"$f":"[1]ACS_16_5YR_B15002_with_ann!L50","v":0},{"$f":"[1]ACS_16_5YR_B15002_with_ann!M50","v":12},{"$f":"[1]ACS_16_5YR_B15002_with_ann!N50","v":25},{"$f":"[1]ACS_16_5YR_B15002_with_ann!O50","v":28},{"$f":"[1]ACS_16_5YR_B15002_with_ann!P50","v":0},{"$f":"[1]ACS_16_5YR_B15002_with_ann!Q50","v":12},{"$f":"[1]ACS_16_5YR_B15002_with_ann!R50","v":127},{"$f":"[1]ACS_16_5YR_B15002_with_ann!S50","v":101},{"$f":"[1]ACS_16_5YR_B15002_with_ann!T50","v":38},{"$f":"[1]ACS_16_5YR_B15002_with_ann!U50","v":48},{"$f":"[1]ACS_16_5YR_B15002_with_ann!V50","v":0},{"$f":"[1]ACS_16_5YR_B15002_with_ann!W50","v":12},{"$f":"[1]ACS_16_5YR_B15002_with_ann!X50","v":884},{"$f":"[1]ACS_16_5YR_B15002_with_ann!Y50","v":230},{"$f":"[1]ACS_16_5YR_B15002_with_ann!Z50","v":41},{"$f":"[1]ACS_16_5YR_B15002_with_ann!AA50","v":46},{"$f":"[1]ACS_16_5YR_B15002_with_ann!AB50","v":143},{"$f":"[1]ACS_16_5YR_B15002_with_ann!AC50","v":89},{"$f":"[1]ACS_16_5YR_B15002_with_ann!AD50","v":123},{"$f":"[1]ACS_16_5YR_B15002_with_ann!AE50","v":72},{"$f":"[1]ACS_16_5YR_B15002_with_ann!AF50","v":185},{"$f":"[1]ACS_16_5YR_B15002_with_ann!AG50","v":122},{"$f":"[1]ACS_16_5YR_B15002_with_ann!AH50","v":21},{"$f":"[1]ACS_16_5YR_B15002_with_ann!AI50","v":31},{"$f":"[1]ACS_16_5YR_B15002_with_ann!AJ50","v":0},{"$f":"[1]ACS_16_5YR_B15002_with_ann!AK50","v":12},{"$f":"[1]ACS_16_5YR_B15002_with_ann!AL50","v":15},{"$f":"[1]ACS_16_5YR_B15002_with_ann!AM50","v":27},{"$f":"[1]ACS_16_5YR_B15002_with_ann!AN50","v":1391},{"$f":"[1]ACS_16_5YR_B15002_with_ann!AO50","v":158},{"$f":"[1]ACS_16_5YR_B15002_with_ann!AP50","v":0},{"$f":"[1]ACS_16_5YR_B15002_with_ann!AQ50","v":12},{"$f":"[1]ACS_16_5YR_B15002_with_ann!AR50","v":0},{"$f":"[1]ACS_16_5YR_B15002_with_ann!AS50","v":12},{"$f":"[1]ACS_16_5YR_B15002_with_ann!AT50","v":0},{"$f":"[1]ACS_16_5YR_B15002_with_ann!AU50","v":12},{"$f":"[1]ACS_16_5YR_B15002_with_ann!AV50","v":10},{"$f":"[1]ACS_16_5YR_B15002_with_ann!AW50","v":15},{"$f":"[1]ACS_16_5YR_B15002_with_ann!AX50","v":13},{"$f":"[1]ACS_16_5YR_B15002_with_ann!AY50","v":22},{"$f":"[1]ACS_16_5YR_B15002_with_ann!AZ50","v":10},{"$f":"[1]ACS_16_5YR_B15002_with_ann!BA50","v":17},{"$f":"[1]ACS_16_5YR_B15002_with_ann!BB50","v":16},{"$f":"[1]ACS_16_5YR_B15002_with_ann!BC50","v":23},{"$f":"[1]ACS_16_5YR_B15002_with_ann!BD50","v":9},{"$f":"[1]ACS_16_5YR_B15002_with_ann!BE50","v":14},{"$f":"[1]ACS_16_5YR_B15002_with_ann!BF50","v":515},{"$f":"[1]ACS_16_5YR_B15002_with_ann!BG50","v":151},{"$f":"[1]ACS_16_5YR_B15002_with_ann!BH50","v":143},{"$f":"[1]ACS_16_5YR_B15002_with_ann!BI50","v":73},{"$f":"[1]ACS_16_5YR_B15002_with_ann!BJ50","v":189},{"$f":"[1]ACS_16_5YR_B15002_with_ann!BK50","v":117},{"$f":"[1]ACS_16_5YR_B15002_with_ann!BL50","v":239},{"$f":"[1]ACS_16_5YR_B15002_with_ann!BM50","v":121},{"$f":"[1]ACS_16_5YR_B15002_with_ann!BN50","v":187},{"$f":"[1]ACS_16_5YR_B15002_with_ann!BO50","v":81},{"$f":"[1]ACS_16_5YR_B15002_with_ann!BP50","v":51},{"$f":"[1]ACS_16_5YR_B15002_with_ann!BQ50","v":49},{"$f":"[1]ACS_16_5YR_B15002_with_ann!BR50","v":0},{"$f":"[1]ACS_16_5YR_B15002_with_ann!BS50","v":12},{"$f":"[1]ACS_16_5YR_B15002_with_ann!BT50","v":9},{"$f":"[1]ACS_16_5YR_B15002_with_ann!BU50","v":14},null,"Hinsdale"]
["06000US3300538500","0600000US3300539300","060",{"$f":"[1]ACS_16_5YR_B14001_with_ann!C51","v":"Jaffrey"},{"$f":"[1]ACS_16_5YR_B14001_with_ann!D51","v":5277},{"$f":"[1]ACS_16_5YR_B14001_with_ann!E51","v":96},{"$f":"[1]ACS_16_5YR_B14001_with_ann!F51","v":1405},{"$f":"[1]ACS_16_5YR_B14001_with_ann!G51","v":220},{"$f":"[1]ACS_16_5YR_B14001_with_ann!H51","v":38},{"$f":"[1]ACS_16_5YR_B14001_with_ann!I51","v":50},{"$f":"[1]ACS_16_5YR_B14001_with_ann!J51","v":152},{"$f":"[1]ACS_16_5YR_B14001_with_ann!K51","v":85},{"$f":"[1]ACS_16_5YR_B14001_with_ann!L51","v":219},{"$f":"[1]ACS_16_5YR_B14001_with_ann!M51","v":97},{"$f":"[1]ACS_16_5YR_B14001_with_ann!N51","v":495},{"$f":"[1]ACS_16_5YR_B14001_with_ann!O51","v":180},{"$f":"[1]ACS_16_5YR_B14001_with_ann!P51","v":305},{"$f":"[1]ACS_16_5YR_B14001_with_ann!Q51","v":125},{"$f":"[1]ACS_16_5YR_B14001_with_ann!R51","v":172},{"$f":"[1]ACS_16_5YR_B14001_with_ann!S51","v":115},{"$f":"[1]ACS_16_5YR_B14001_with_ann!T51","v":24},{"$f":"[1]ACS_16_5YR_B14001_with_ann!U51","v":39},{"$f":"[1]ACS_16_5YR_B14001_with_ann!V51","v":3872},{"$f":"[1]ACS_16_5YR_B14001_with_ann!W51","v":252},{"$f":"[1]ACS_16_5YR_B15002_with_ann!D51","v":3844},{"$f":"[1]ACS_16_5YR_B15002_with_ann!E51","v":226},{"$f":"[1]ACS_16_5YR_B15002_with_ann!F51","v":2021},{"$f":"[1]ACS_16_5YR_B15002_with_ann!G51","v":221},{"$f":"[1]ACS_16_5YR_B15002_with_ann!H51","v":11},{"$f":"[1]ACS_16_5YR_B15002_with_ann!I51","v":20},{"$f":"[1]ACS_16_5YR_B15002_with_ann!J51","v":2},{"$f":"[1]ACS_16_5YR_B15002_with_ann!K51","v":7},{"$f":"[1]ACS_16_5YR_B15002_with_ann!L51","v":0},{"$f":"[1]ACS_16_5YR_B15002_with_ann!M51","v":17},{"$f":"[1]ACS_16_5YR_B15002_with_ann!N51","v":13},{"$f":"[1]ACS_16_5YR_B15002_with_ann!O51","v":21},{"$f":"[1]ACS_16_5YR_B15002_with_ann!P51","v":10},{"$f":"[1]ACS_16_5YR_B15002_with_ann!Q51","v":19},{"$f":"[1]ACS_16_5YR_B15002_with_ann!R51","v":0},{"$f":"[1]ACS_16_5YR_B15002_with_ann!S51","v":17},{"$f":"[1]ACS_16_5YR_B15002_with_ann!T51","v":18},{"$f":"[1]ACS_16_5YR_B15002_with_ann!U51","v":30},{"$f":"[1]ACS_16_5YR_B15002_with_ann!V51","v":53},{"$f":"[1]ACS_16_5YR_B15002_with_ann!W51","v":58},{"$f":"[1]ACS_16_5YR_B15002_with_ann!X51","v":595},{"$f":"[1]ACS_16_5YR_B15002_with_ann!Y51","v":261},{"$f":"[1]ACS_16_5YR_B15002_with_ann!Z51","v":140},{"$f":"[1]ACS_16_5YR_B15002_with_ann!AA51","v":111},{"$f":"[1]ACS_16_5YR_B15002_with_ann!AB51","v":544},{"$f":"[1]ACS_16_5YR_B15002_with_ann!AC51","v":252},{"$f":"[1]ACS_16_5YR_B15002_with_ann!AD51","v":142},{"$f":"[1]ACS_16_5YR_B15002_with_ann!AE51","v":121},{"$f":"[1]ACS_16_5YR_B15002_with_ann!AF51","v":353},{"$f":"[1]ACS_16_5YR_B15002_with_ann!AG51","v":123},{"$f":"[1]ACS_16_5YR_B15002_with_ann!AH51","v":44},{"$f":"[1]ACS_16_5YR_B15002_with_ann!AI51","v":38},{"$f":"[1]ACS_16_5YR_B15002_with_ann!AJ51","v":85},{"$f":"[1]ACS_16_5YR_B15002_with_ann!AK51","v":57},{"$f":"[1]ACS_16_5YR_B15002_with_ann!AL51","v":11},{"$f":"[1]ACS_16_5YR_B15002_with_ann!AM51","v":19},{"$f":"[1]ACS_16_5YR_B15002_with_ann!AN51","v":1823},{"$f":"[1]ACS_16_5YR_B15002_with_ann!AO51","v":159},{"$f":"[1]ACS_16_5YR_B15002_with_ann!AP51","v":0},{"$f":"[1]ACS_16_5YR_B15002_with_ann!AQ51","v":17},{"$f":"[1]ACS_16_5YR_B15002_with_ann!AR51","v":0},{"$f":"[1]ACS_16_5YR_B15002_with_ann!AS51","v":17},{"$f":"[1]ACS_16_5YR_B15002_with_ann!AT51","v":0},{"$f":"[1]ACS_16_5YR_B15002_with_ann!AU51","v":17},{"$f":"[1]ACS_16_5YR_B15002_with_ann!AV51","v":0},{"$f":"[1]ACS_16_5YR_B15002_with_ann!AW51","v":17},{"$f":"[1]ACS_16_5YR_B15002_with_ann!AX51","v":0},{"$f":"[1]ACS_16_5YR_B15002_with_ann!AY51","v":17},{"$f":"[1]ACS_16_5YR_B15002_with_ann!AZ51","v":0},{"$f":"[1]ACS_16_5YR_B15002_with_ann!BA51","v":17},{"$f":"[1]ACS_16_5YR_B15002_with_ann!BB51","v":9},{"$f":"[1]ACS_16_5YR_B15002_with_ann!BC51","v":17},{"$f":"[1]ACS_16_5YR_B15002_with_ann!BD51","v":5},{"$f":"[1]ACS_16_5YR_B15002_with_ann!BE51","v":7},{"$f":"[1]ACS_16_5YR_B15002_with_ann!BF51","v":481},{"$f":"[1]ACS_16_5YR_B15002_with_ann!BG51","v":148},{"$f":"[1]ACS_16_5YR_B15002_with_ann!BH51","v":201},{"$f":"[1]ACS_16_5YR_B15002_with_ann!BI51","v":132},{"$f":"[1]ACS_16_5YR_B15002_with_ann!BJ51","v":215},{"$f":"[1]ACS_16_5YR_B15002_with_ann!BK51","v":120},{"$f":"[1]ACS_16_5YR_B15002_with_ann!BL51","v":206},{"$f":"[1]ACS_16_5YR_B15002_with_ann!BM51","v":93},{"$f":"[1]ACS_16_5YR_B15002_with_ann!BN51","v":401},{"$f":"[1]ACS_16_5YR_B15002_with_ann!BO51","v":150},{"$f":"[1]ACS_16_5YR_B15002_with_ann!BP51","v":251},{"$f":"[1]ACS_16_5YR_B15002_with_ann!BQ51","v":147},{"$f":"[1]ACS_16_5YR_B15002_with_ann!BR51","v":40},{"$f":"[1]ACS_16_5YR_B15002_with_ann!BS51","v":47},{"$f":"[1]ACS_16_5YR_B15002_with_ann!BT51","v":14},{"$f":"[1]ACS_16_5YR_B15002_with_ann!BU51","v":25},null,"Jaffrey"]
["06000US3300539300","0600000US3300545460","060",{"$f":"[1]ACS_16_5YR_B14001_with_ann!C52","v":"Keene"},{"$f":"[1]ACS_16_5YR_B14001_with_ann!D52","v":22399},{"$f":"[1]ACS_16_5YR_B14001_with_ann!E52","v":133},{"$f":"[1]ACS_16_5YR_B14001_with_ann!F52","v":6535},{"$f":"[1]ACS_16_5YR_B14001_with_ann!G52","v":471},{"$f":"[1]ACS_16_5YR_B14001_with_ann!H52","v":298},{"$f":"[1]ACS_16_5YR_B14001_with_ann!I52","v":134},{"$f":"[1]ACS_16_5YR_B14001_with_ann!J52","v":175},{"$f":"[1]ACS_16_5YR_B14001_with_ann!K52","v":60},{"$f":"[1]ACS_16_5YR_B14001_with_ann!L52","v":708},{"$f":"[1]ACS_16_5YR_B14001_with_ann!M52","v":182},{"$f":"[1]ACS_16_5YR_B14001_with_ann!N52","v":744},{"$f":"[1]ACS_16_5YR_B14001_with_ann!O52","v":197},{"$f":"[1]ACS_16_5YR_B14001_with_ann!P52","v":833},{"$f":"[1]ACS_16_5YR_B14001_with_ann!Q52","v":234},{"$f":"[1]ACS_16_5YR_B14001_with_ann!R52","v":3322},{"$f":"[1]ACS_16_5YR_B14001_with_ann!S52","v":351},{"$f":"[1]ACS_16_5YR_B14001_with_ann!T52","v":455},{"$f":"[1]ACS_16_5YR_B14001_with_ann!U52","v":159},{"$f":"[1]ACS_16_5YR_B14001_with_ann!V52","v":15864},{"$f":"[1]ACS_16_5YR_B14001_with_ann!W52","v":456},{"$f":"[1]ACS_16_5YR_B15002_with_ann!D52","v":15145},{"$f":"[1]ACS_16_5YR_B15002_with_ann!E52","v":401},{"$f":"[1]ACS_16_5YR_B15002_with_ann!F52","v":7132},{"$f":"[1]ACS_16_5YR_B15002_with_ann!G52","v":379},{"$f":"[1]ACS_16_5YR_B15002_with_ann!H52","v":164},{"$f":"[1]ACS_16_5YR_B15002_with_ann!I52","v":116},{"$f":"[1]ACS_16_5YR_B15002_with_ann!J52","v":0},{"$f":"[1]ACS_16_5YR_B15002_with_ann!K52","v":22},{"$f":"[1]ACS_16_5YR_B15002_with_ann!L52","v":0},{"$f":"[1]ACS_16_5YR_B15002_with_ann!M52","v":22},{"$f":"[1]ACS_16_5YR_B15002_with_ann!N52","v":85},{"$f":"[1]ACS_16_5YR_B15002_with_ann!O52","v":76},{"$f":"[1]ACS_16_5YR_B15002_with_ann!P52","v":46},{"$f":"[1]ACS_16_5YR_B15002_with_ann!Q52","v":33},{"$f":"[1]ACS_16_5YR_B15002_with_ann!R52","v":67},{"$f":"[1]ACS_16_5YR_B15002_with_ann!S52","v":50},{"$f":"[1]ACS_16_5YR_B15002_with_ann!T52","v":143},{"$f":"[1]ACS_16_5YR_B15002_with_ann!U52","v":109},{"$f":"[1]ACS_16_5YR_B15002_with_ann!V52","v":41},{"$f":"[1]ACS_16_5YR_B15002_with_ann!W52","v":38},{"$f":"[1]ACS_16_5YR_B15002_with_ann!X52","v":1864},{"$f":"[1]ACS_16_5YR_B15002_with_ann!Y52","v":333},{"$f":"[1]ACS_16_5YR_B15002_with_ann!Z52","v":446},{"$f":"[1]ACS_16_5YR_B15002_with_ann!AA52","v":174},{"$f":"[1]ACS_16_5YR_B15002_with_ann!AB52","v":1028},{"$f":"[1]ACS_16_5YR_B15002_with_ann!AC52","v":293},{"$f":"[1]ACS_16_5YR_B15002_with_ann!AD52","v":296},{"$f":"[1]ACS_16_5YR_B15002_with_ann!AE52","v":108},{"$f":"[1]ACS_16_5YR_B15002_with_ann!AF52","v":1799},{"$f":"[1]ACS_16_5YR_B15002_with_ann!AG52","v":293},{"$f":"[1]ACS_16_5YR_B15002_with_ann!AH52","v":716},{"$f":"[1]ACS_16_5YR_B15002_with_ann!AI52","v":185},{"$f":"[1]ACS_16_5YR_B15002_with_ann!AJ52","v":177},{"$f":"[1]ACS_16_5YR_B15002_with_ann!AK52","v":81},{"$f":"[1]ACS_16_5YR_B15002_with_ann!AL52","v":260},{"$f":"[1]ACS_16_5YR_B15002_with_ann!AM52","v":121},{"$f":"[1]ACS_16_5YR_B15002_with_ann!AN52","v":8013},{"$f":"[1]ACS_16_5YR_B15002_with_ann!AO52","v":307},{"$f":"[1]ACS_16_5YR_B15002_with_ann!AP52","v":70},{"$f":"[1]ACS_16_5YR_B15002_with_ann!AQ52","v":46},{"$f":"[1]ACS_16_5YR_B15002_with_ann!AR52","v":50},{"$f":"[1]ACS_16_5YR_B15002_with_ann!AS52","v":72},{"$f":"[1]ACS_16_5YR_B15002_with_ann!AT52","v":0},{"$f":"[1]ACS_16_5YR_B15002_with_ann!AU52","v":22},{"$f":"[1]ACS_16_5YR_B15002_with_ann!AV52","v":65},{"$f":"[1]ACS_16_5YR_B15002_with_ann!AW52","v":71},{"$f":"[1]ACS_16_5YR_B15002_with_ann!AX52","v":33},{"$f":"[1]ACS_16_5YR_B15002_with_ann!AY52","v":35},{"$f":"[1]ACS_16_5YR_B15002_with_ann!AZ52","v":29},{"$f":"[1]ACS_16_5YR_B15002_with_ann!BA52","v":25},{"$f":"[1]ACS_16_5YR_B15002_with_ann!BB52","v":62},{"$f":"[1]ACS_16_5YR_B15002_with_ann!BC52","v":70},{"$f":"[1]ACS_16_5YR_B15002_with_ann!BD52","v":160},{"$f":"[1]ACS_16_5YR_B15002_with_ann!BE52","v":90},{"$f":"[1]ACS_16_5YR_B15002_with_ann!BF52","v":2013},{"$f":"[1]ACS_16_5YR_B15002_with_ann!BG52","v":357},{"$f":"[1]ACS_16_5YR_B15002_with_ann!BH52","v":396},{"$f":"[1]ACS_16_5YR_B15002_with_ann!BI52","v":119},{"$f":"[1]ACS_16_5YR_B15002_with_ann!BJ52","v":689},{"$f":"[1]ACS_16_5YR_B15002_with_ann!BK52","v":148},{"$f":"[1]ACS_16_5YR_B15002_with_ann!BL52","v":723},{"$f":"[1]ACS_16_5YR_B15002_with_ann!BM52","v":215},{"$f":"[1]ACS_16_5YR_B15002_with_ann!BN52","v":2466},{"$f":"[1]ACS_16_5YR_B15002_with_ann!BO52","v":342},{"$f":"[1]ACS_16_5YR_B15002_with_ann!BP52","v":1170},{"$f":"[1]ACS_16_5YR_B15002_with_ann!BQ52","v":217},{"$f":"[1]ACS_16_5YR_B15002_with_ann!BR52","v":66},{"$f":"[1]ACS_16_5YR_B15002_with_ann!BS52","v":53},{"$f":"[1]ACS_16_5YR_B15002_with_ann!BT52","v":21},{"$f":"[1]ACS_16_5YR_B15002_with_ann!BU52","v":27},null,"Keene"]
["06000US3300545460","0600000US3300545700","060",{"$f":"[1]ACS_16_5YR_B14001_with_ann!C53","v":"Marlborough"},{"$f":"[1]ACS_16_5YR_B14001_with_ann!D53","v":2082},{"$f":"[1]ACS_16_5YR_B14001_with_ann!E53","v":340},{"$f":"[1]ACS_16_5YR_B14001_with_ann!F53","v":433},{"$f":"[1]ACS_16_5YR_B14001_with_ann!G53","v":152},{"$f":"[1]ACS_16_5YR_B14001_with_ann!H53","v":21},{"$f":"[1]ACS_16_5YR_B14001_with_ann!I53","v":26},{"$f":"[1]ACS_16_5YR_B14001_with_ann!J53","v":7},{"$f":"[1]ACS_16_5YR_B14001_with_ann!K53","v":8},{"$f":"[1]ACS_16_5YR_B14001_with_ann!L53","v":17},{"$f":"[1]ACS_16_5YR_B14001_with_ann!M53","v":15},{"$f":"[1]ACS_16_5YR_B14001_with_ann!N53","v":127},{"$f":"[1]ACS_16_5YR_B14001_with_ann!O53","v":69},{"$f":"[1]ACS_16_5YR_B14001_with_ann!P53","v":168},{"$f":"[1]ACS_16_5YR_B14001_with_ann!Q53","v":88},{"$f":"[1]ACS_16_5YR_B14001_with_ann!R53","v":86},{"$f":"[1]ACS_16_5YR_B14001_with_ann!S53","v":48},{"$f":"[1]ACS_16_5YR_B14001_with_ann!T53","v":7},{"$f":"[1]ACS_16_5YR_B14001_with_ann!U53","v":13},{"$f":"[1]ACS_16_5YR_B14001_with_ann!V53","v":1649},{"$f":"[1]ACS_16_5YR_B14001_with_ann!W53","v":258},{"$f":"[1]ACS_16_5YR_B15002_with_ann!D53","v":1584},{"$f":"[1]ACS_16_5YR_B15002_with_ann!E53","v":244},{"$f":"[1]ACS_16_5YR_B15002_with_ann!F53","v":705},{"$f":"[1]ACS_16_5YR_B15002_with_ann!G53","v":126},{"$f":"[1]ACS_16_5YR_B15002_with_ann!H53","v":7},{"$f":"[1]ACS_16_5YR_B15002_with_ann!I53","v":10},{"$f":"[1]ACS_16_5YR_B15002_with_ann!J53","v":0},{"$f":"[1]ACS_16_5YR_B15002_with_ann!K53","v":12},{"$f":"[1]ACS_16_5YR_B15002_with_ann!L53","v":0},{"$f":"[1]ACS_16_5YR_B15002_with_ann!M53","v":12},{"$f":"[1]ACS_16_5YR_B15002_with_ann!N53","v":0},{"$f":"[1]ACS_16_5YR_B15002_with_ann!O53","v":12},{"$f":"[1]ACS_16_5YR_B15002_with_ann!P53","v":23},{"$f":"[1]ACS_16_5YR_B15002_with_ann!Q53","v":32},{"$f":"[1]ACS_16_5YR_B15002_with_ann!R53","v":17},{"$f":"[1]ACS_16_5YR_B15002_with_ann!S53","v":15},{"$f":"[1]ACS_16_5YR_B15002_with_ann!T53","v":13},{"$f":"[1]ACS_16_5YR_B15002_with_ann!U53","v":13},{"$f":"[1]ACS_16_5YR_B15002_with_ann!V53","v":23},{"$f":"[1]ACS_16_5YR_B15002_with_ann!W53","v":18},{"$f":"[1]ACS_16_5YR_B15002_with_ann!X53","v":246},{"$f":"[1]ACS_16_5YR_B15002_with_ann!Y53","v":84},{"$f":"[1]ACS_16_5YR_B15002_with_ann!Z53","v":40},{"$f":"[1]ACS_16_5YR_B15002_with_ann!AA53","v":29},{"$f":"[1]ACS_16_5YR_B15002_with_ann!AB53","v":125},{"$f":"[1]ACS_16_5YR_B15002_with_ann!AC53","v":59},{"$f":"[1]ACS_16_5YR_B15002_with_ann!AD53","v":29},{"$f":"[1]ACS_16_5YR_B15002_with_ann!AE53","v":20},{"$f":"[1]ACS_16_5YR_B15002_with_ann!AF53","v":102},{"$f":"[1]ACS_16_5YR_B15002_with_ann!AG53","v":43},{"$f":"[1]ACS_16_5YR_B15002_with_ann!AH53","v":80},{"$f":"[1]ACS_16_5YR_B15002_with_ann!AI53","v":42},{"$f":"[1]ACS_16_5YR_B15002_with_ann!AJ53","v":0},{"$f":"[1]ACS_16_5YR_B15002_with_ann!AK53","v":12},{"$f":"[1]ACS_16_5YR_B15002_with_ann!AL53","v":0},{"$f":"[1]ACS_16_5YR_B15002_with_ann!AM53","v":12},{"$f":"[1]ACS_16_5YR_B15002_with_ann!AN53","v":879},{"$f":"[1]ACS_16_5YR_B15002_with_ann!AO53","v":153},{"$f":"[1]ACS_16_5YR_B15002_with_ann!AP53","v":6},{"$f":"[1]ACS_16_5YR_B15002_with_ann!AQ53","v":9},{"$f":"[1]ACS_16_5YR_B15002_with_ann!AR53","v":0},{"$f":"[1]ACS_16_5YR_B15002_with_ann!AS53","v":12},{"$f":"[1]ACS_16_5YR_B15002_with_ann!AT53","v":0},{"$f":"[1]ACS_16_5YR_B15002_with_ann!AU53","v":12},{"$f":"[1]ACS_16_5YR_B15002_with_ann!AV53","v":6},{"$f":"[1]ACS_16_5YR_B15002_with_ann!AW53","v":8},{"$f":"[1]ACS_16_5YR_B15002_with_ann!AX53","v":7},{"$f":"[1]ACS_16_5YR_B15002_with_ann!AY53","v":10},{"$f":"[1]ACS_16_5YR_B15002_with_ann!AZ53","v":0},{"$f":"[1]ACS_16_5YR_B15002_with_ann!BA53","v":12},{"$f":"[1]ACS_16_5YR_B15002_with_ann!BB53","v":11},{"$f":"[1]ACS_16_5YR_B15002_with_ann!BC53","v":12},{"$f":"[1]ACS_16_5YR_B15002_with_ann!BD53","v":0},{"$f":"[1]ACS_16_5YR_B15002_with_ann!BE53","v":12},{"$f":"[1]ACS_16_5YR_B15002_with_ann!BF53","v":254},{"$f":"[1]ACS_16_5YR_B15002_with_ann!BG53","v":84},{"$f":"[1]ACS_16_5YR_B15002_with_ann!BH53","v":80},{"$f":"[1]ACS_16_5YR_B15002_with_ann!BI53","v":66},{"$f":"[1]ACS_16_5YR_B15002_with_ann!BJ53","v":106},{"$f":"[1]ACS_16_5YR_B15002_with_ann!BK53","v":61},{"$f":"[1]ACS_16_5YR_B15002_with_ann!BL53","v":24},{"$f":"[1]ACS_16_5YR_B15002_with_ann!BM53","v":17},{"$f":"[1]ACS_16_5YR_B15002_with_ann!BN53","v":254},{"$f":"[1]ACS_16_5YR_B15002_with_ann!BO53","v":111},{"$f":"[1]ACS_16_5YR_B15002_with_ann!BP53","v":100},{"$f":"[1]ACS_16_5YR_B15002_with_ann!BQ53","v":46},{"$f":"[1]ACS_16_5YR_B15002_with_ann!BR53","v":14},{"$f":"[1]ACS_16_5YR_B15002_with_ann!BS53","v":20},{"$f":"[1]ACS_16_5YR_B15002_with_ann!BT53","v":17},{"$f":"[1]ACS_16_5YR_B15002_with_ann!BU53","v":19},null,"Marlborough"]
["06000US3300545700","0600000US3300550580","060",{"$f":"[1]ACS_16_5YR_B14001_with_ann!C54","v":"Marlow"},{"$f":"[1]ACS_16_5YR_B14001_with_ann!D54","v":788},{"$f":"[1]ACS_16_5YR_B14001_with_ann!E54","v":169},{"$f":"[1]ACS_16_5YR_B14001_with_ann!F54","v":205},{"$f":"[1]ACS_16_5YR_B14001_with_ann!G54","v":85},{"$f":"[1]ACS_16_5YR_B14001_with_ann!H54","v":16},{"$f":"[1]ACS_16_5YR_B14001_with_ann!I54","v":19},{"$f":"[1]ACS_16_5YR_B14001_with_ann!J54","v":3},{"$f":"[1]ACS_16_5YR_B14001_with_ann!K54","v":6},{"$f":"[1]ACS_16_5YR_B14001_with_ann!L54","v":32},{"$f":"[1]ACS_16_5YR_B14001_with_ann!M54","v":19},{"$f":"[1]ACS_16_5YR_B14001_with_ann!N54","v":89},{"$f":"[1]ACS_16_5YR_B14001_with_ann!O54","v":50},{"$f":"[1]ACS_16_5YR_B14001_with_ann!P54","v":50},{"$f":"[1]ACS_16_5YR_B14001_with_ann!Q54","v":36},{"$f":"[1]ACS_16_5YR_B14001_with_ann!R54","v":13},{"$f":"[1]ACS_16_5YR_B14001_with_ann!S54","v":11},{"$f":"[1]ACS_16_5YR_B14001_with_ann!T54","v":2},{"$f":"[1]ACS_16_5YR_B14001_with_ann!U54","v":4},{"$f":"[1]ACS_16_5YR_B14001_with_ann!V54","v":583},{"$f":"[1]ACS_16_5YR_B14001_with_ann!W54","v":113},{"$f":"[1]ACS_16_5YR_B15002_with_ann!D54","v":570},{"$f":"[1]ACS_16_5YR_B15002_with_ann!E54","v":115},{"$f":"[1]ACS_16_5YR_B15002_with_ann!F54","v":287},{"$f":"[1]ACS_16_5YR_B15002_with_ann!G54","v":58},{"$f":"[1]ACS_16_5YR_B15002_with_ann!H54","v":0},{"$f":"[1]ACS_16_5YR_B15002_with_ann!I54","v":12},{"$f":"[1]ACS_16_5YR_B15002_with_ann!J54","v":0},{"$f":"[1]ACS_16_5YR_B15002_with_ann!K54","v":12},{"$f":"[1]ACS_16_5YR_B15002_with_ann!L54","v":0},{"$f":"[1]ACS_16_5YR_B15002_with_ann!M54","v":12},{"$f":"[1]ACS_16_5YR_B15002_with_ann!N54","v":0},{"$f":"[1]ACS_16_5YR_B15002_with_ann!O54","v":12},{"$f":"[1]ACS_16_5YR_B15002_with_ann!P54","v":0},{"$f":"[1]ACS_16_5YR_B15002_with_ann!Q54","v":12},{"$f":"[1]ACS_16_5YR_B15002_with_ann!R54","v":0},{"$f":"[1]ACS_16_5YR_B15002_with_ann!S54","v":12},{"$f":"[1]ACS_16_5YR_B15002_with_ann!T54","v":2},{"$f":"[1]ACS_16_5YR_B15002_with_ann!U54","v":3},{"$f":"[1]ACS_16_5YR_B15002_with_ann!V54","v":1},{"$f":"[1]ACS_16_5YR_B15002_with_ann!W54","v":2},{"$f":"[1]ACS_16_5YR_B15002_with_ann!X54","v":132},{"$f":"[1]ACS_16_5YR_B15002_with_ann!Y54","v":46},{"$f":"[1]ACS_16_5YR_B15002_with_ann!Z54","v":34},{"$f":"[1]ACS_16_5YR_B15002_with_ann!AA54","v":30},{"$f":"[1]ACS_16_5YR_B15002_with_ann!AB54","v":21},{"$f":"[1]ACS_16_5YR_B15002_with_ann!AC54","v":15},{"$f":"[1]ACS_16_5YR_B15002_with_ann!AD54","v":46},{"$f":"[1]ACS_16_5YR_B15002_with_ann!AE54","v":29},{"$f":"[1]ACS_16_5YR_B15002_with_ann!AF54","v":25},{"$f":"[1]ACS_16_5YR_B15002_with_ann!AG54","v":16},{"$f":"[1]ACS_16_5YR_B15002_with_ann!AH54","v":13},{"$f":"[1]ACS_16_5YR_B15002_with_ann!AI54","v":8},{"$f":"[1]ACS_16_5YR_B15002_with_ann!AJ54","v":10},{"$f":"[1]ACS_16_5YR_B15002_with_ann!AK54","v":13},{"$f":"[1]ACS_16_5YR_B15002_with_ann!AL54","v":3},{"$f":"[1]ACS_16_5YR_B15002_with_ann!AM54","v":4},{"$f":"[1]ACS_16_5YR_B15002_with_ann!AN54","v":283},{"$f":"[1]ACS_16_5YR_B15002_with_ann!AO54","v":64},{"$f":"[1]ACS_16_5YR_B15002_with_ann!AP54","v":0},{"$f":"[1]ACS_16_5YR_B15002_with_ann!AQ54","v":12},{"$f":"[1]ACS_16_5YR_B15002_with_ann!AR54","v":0},{"$f":"[1]ACS_16_5YR_B15002_with_ann!AS54","v":12},{"$f":"[1]ACS_16_5YR_B15002_with_ann!AT54","v":0},{"$f":"[1]ACS_16_5YR_B15002_with_ann!AU54","v":12},{"$f":"[1]ACS_16_5YR_B15002_with_ann!AV54","v":3},{"$f":"[1]ACS_16_5YR_B15002_with_ann!AW54","v":4},{"$f":"[1]ACS_16_5YR_B15002_with_ann!AX54","v":2},{"$f":"[1]ACS_16_5YR_B15002_with_ann!AY54","v":4},{"$f":"[1]ACS_16_5YR_B15002_with_ann!AZ54","v":3},{"$f":"[1]ACS_16_5YR_B15002_with_ann!BA54","v":5},{"$f":"[1]ACS_16_5YR_B15002_with_ann!BB54","v":0},{"$f":"[1]ACS_16_5YR_B15002_with_ann!BC54","v":12},{"$f":"[1]ACS_16_5YR_B15002_with_ann!BD54","v":0},{"$f":"[1]ACS_16_5YR_B15002_with_ann!BE54","v":12},{"$f":"[1]ACS_16_5YR_B15002_with_ann!BF54","v":61},{"$f":"[1]ACS_16_5YR_B15002_with_ann!BG54","v":25},{"$f":"[1]ACS_16_5YR_B15002_with_ann!BH54","v":11},{"$f":"[1]ACS_16_5YR_B15002_with_ann!BI54","v":10},{"$f":"[1]ACS_16_5YR_B15002_with_ann!BJ54","v":61},{"$f":"[1]ACS_16_5YR_B15002_with_ann!BK54","v":30},{"$f":"[1]ACS_16_5YR_B15002_with_ann!BL54","v":40},{"$f":"[1]ACS_16_5YR_B15002_with_ann!BM54","v":26},{"$f":"[1]ACS_16_5YR_B15002_with_ann!BN54","v":58},{"$f":"[1]ACS_16_5YR_B15002_with_ann!BO54","v":39},{"$f":"[1]ACS_16_5YR_B15002_with_ann!BP54","v":38},{"$f":"[1]ACS_16_5YR_B15002_with_ann!BQ54","v":26},{"$f":"[1]ACS_16_5YR_B15002_with_ann!BR54","v":6},{"$f":"[1]ACS_16_5YR_B15002_with_ann!BS54","v":6},{"$f":"[1]ACS_16_5YR_B15002_with_ann!BT54","v":0},{"$f":"[1]ACS_16_5YR_B15002_with_ann!BU54","v":12},null,"Marlow"]
["06000US3300550580","0600000US3300564420","060",{"$f":"[1]ACS_16_5YR_B14001_with_ann!C55","v":"Nelson"},{"$f":"[1]ACS_16_5YR_B14001_with_ann!D55","v":533},{"$f":"[1]ACS_16_5YR_B14001_with_ann!E55","v":105},{"$f":"[1]ACS_16_5YR_B14001_with_ann!F55","v":75},{"$f":"[1]ACS_16_5YR_B14001_with_ann!G55","v":34},{"$f":"[1]ACS_16_5YR_B14001_with_ann!H55","v":2},{"$f":"[1]ACS_16_5YR_B14001_with_ann!I55","v":3},{"$f":"[1]ACS_16_5YR_B14001_with_ann!J55","v":5},{"$f":"[1]ACS_16_5YR_B14001_with_ann!K55","v":7},{"$f":"[1]ACS_16_5YR_B14001_with_ann!L55","v":33},{"$f":"[1]ACS_16_5YR_B14001_with_ann!M55","v":22},{"$f":"[1]ACS_16_5YR_B14001_with_ann!N55","v":13},{"$f":"[1]ACS_16_5YR_B14001_with_ann!O55","v":12},{"$f":"[1]ACS_16_5YR_B14001_with_ann!P55","v":13},{"$f":"[1]ACS_16_5YR_B14001_with_ann!Q55","v":14},{"$f":"[1]ACS_16_5YR_B14001_with_ann!R55","v":3},{"$f":"[1]ACS_16_5YR_B14001_with_ann!S55","v":4},{"$f":"[1]ACS_16_5YR_B14001_with_ann!T55","v":6},{"$f":"[1]ACS_16_5YR_B14001_with_ann!U55","v":6},{"$f":"[1]ACS_16_5YR_B14001_with_ann!V55","v":458},{"$f":"[1]ACS_16_5YR_B14001_with_ann!W55","v":87},{"$f":"[1]ACS_16_5YR_B15002_with_ann!D55","v":448},{"$f":"[1]ACS_16_5YR_B15002_with_ann!E55","v":77},{"$f":"[1]ACS_16_5YR_B15002_with_ann!F55","v":213},{"$f":"[1]ACS_16_5YR_B15002_with_ann!G55","v":38},{"$f":"[1]ACS_16_5YR_B15002_with_ann!H55","v":0},{"$f":"[1]ACS_16_5YR_B15002_with_ann!I55","v":12},{"$f":"[1]ACS_16_5YR_B15002_with_ann!J55","v":0},{"$f":"[1]ACS_16_5YR_B15002_with_ann!K55","v":12},{"$f":"[1]ACS_16_5YR_B15002_with_ann!L55","v":0},{"$f":"[1]ACS_16_5YR_B15002_with_ann!M55","v":12},{"$f":"[1]ACS_16_5YR_B15002_with_ann!N55","v":0},{"$f":"[1]ACS_16_5YR_B15002_with_ann!O55","v":12},{"$f":"[1]ACS_16_5YR_B15002_with_ann!P55","v":0},{"$f":"[1]ACS_16_5YR_B15002_with_ann!Q55","v":12},{"$f":"[1]ACS_16_5YR_B15002_with_ann!R55","v":0},{"$f":"[1]ACS_16_5YR_B15002_with_ann!S55","v":12},{"$f":"[1]ACS_16_5YR_B15002_with_ann!T55","v":8},{"$f":"[1]ACS_16_5YR_B15002_with_ann!U55","v":13},{"$f":"[1]ACS_16_5YR_B15002_with_ann!V55","v":0},{"$f":"[1]ACS_16_5YR_B15002_with_ann!W55","v":12},{"$f":"[1]ACS_16_5YR_B15002_with_ann!X55","v":39},{"$f":"[1]ACS_16_5YR_B15002_with_ann!Y55","v":16},{"$f":"[1]ACS_16_5YR_B15002_with_ann!Z55","v":9},{"$f":"[1]ACS_16_5YR_B15002_with_ann!AA55","v":6},{"$f":"[1]ACS_16_5YR_B15002_with_ann!AB55","v":7},{"$f":"[1]ACS_16_5YR_B15002_with_ann!AC55","v":6},{"$f":"[1]ACS_16_5YR_B15002_with_ann!AD55","v":22},{"$f":"[1]ACS_16_5YR_B15002_with_ann!AE55","v":14},{"$f":"[1]ACS_16_5YR_B15002_with_ann!AF55","v":87},{"$f":"[1]ACS_16_5YR_B15002_with_ann!AG55","v":25},{"$f":"[1]ACS_16_5YR_B15002_with_ann!AH55","v":28},{"$f":"[1]ACS_16_5YR_B15002_with_ann!AI55","v":17},{"$f":"[1]ACS_16_5YR_B15002_with_ann!AJ55","v":11},{"$f":"[1]ACS_16_5YR_B15002_with_ann!AK55","v":8},{"$f":"[1]ACS_16_5YR_B15002_with_ann!AL55","v":2},{"$f":"[1]ACS_16_5YR_B15002_with_ann!AM55","v":3},{"$f":"[1]ACS_16_5YR_B15002_with_ann!AN55","v":235},{"$f":"[1]ACS_16_5YR_B15002_with_ann!AO55","v":50},{"$f":"[1]ACS_16_5YR_B15002_with_ann!AP55","v":3},{"$f":"[1]ACS_16_5YR_B15002_with_ann!AQ55","v":4},{"$f":"[1]ACS_16_5YR_B15002_with_ann!AR55","v":0},{"$f":"[1]ACS_16_5YR_B15002_with_ann!AS55","v":12},{"$f":"[1]ACS_16_5YR_B15002_with_ann!AT55","v":0},{"$f":"[1]ACS_16_5YR_B15002_with_ann!AU55","v":12},{"$f":"[1]ACS_16_5YR_B15002_with_ann!AV55","v":0},{"$f":"[1]ACS_16_5YR_B15002_with_ann!AW55","v":12},{"$f":"[1]ACS_16_5YR_B15002_with_ann!AX55","v":0},{"$f":"[1]ACS_16_5YR_B15002_with_ann!AY55","v":12},{"$f":"[1]ACS_16_5YR_B15002_with_ann!AZ55","v":0},{"$f":"[1]ACS_16_5YR_B15002_with_ann!BA55","v":12},{"$f":"[1]ACS_16_5YR_B15002_with_ann!BB55","v":0},{"$f":"[1]ACS_16_5YR_B15002_with_ann!BC55","v":12},{"$f":"[1]ACS_16_5YR_B15002_with_ann!BD55","v":0},{"$f":"[1]ACS_16_5YR_B15002_with_ann!BE55","v":12},{"$f":"[1]ACS_16_5YR_B15002_with_ann!BF55","v":53},{"$f":"[1]ACS_16_5YR_B15002_with_ann!BG55","v":24},{"$f":"[1]ACS_16_5YR_B15002_with_ann!BH55","v":8},{"$f":"[1]ACS_16_5YR_B15002_with_ann!BI55","v":7},{"$f":"[1]ACS_16_5YR_B15002_with_ann!BJ55","v":22},{"$f":"[1]ACS_16_5YR_B15002_with_ann!BK55","v":10},{"$f":"[1]ACS_16_5YR_B15002_with_ann!BL55","v":10},{"$f":"[1]ACS_16_5YR_B15002_with_ann!BM55","v":7},{"$f":"[1]ACS_16_5YR_B15002_with_ann!BN55","v":88},{"$f":"[1]ACS_16_5YR_B15002_with_ann!BO55","v":30},{"$f":"[1]ACS_16_5YR_B15002_with_ann!BP55","v":40},{"$f":"[1]ACS_16_5YR_B15002_with_ann!BQ55","v":18},{"$f":"[1]ACS_16_5YR_B15002_with_ann!BR55","v":3},{"$f":"[1]ACS_16_5YR_B15002_with_ann!BS55","v":4},{"$f":"[1]ACS_16_5YR_B15002_with_ann!BT55","v":8},{"$f":"[1]ACS_16_5YR_B15002_with_ann!BU55","v":7},null,"Nelson"]
["06000US3300564420","0600000US3300564580","060",{"$f":"[1]ACS_16_5YR_B14001_with_ann!C56","v":"Richmond"},{"$f":"[1]ACS_16_5YR_B14001_with_ann!D56","v":1076},{"$f":"[1]ACS_16_5YR_B14001_with_ann!E56","v":238},{"$f":"[1]ACS_16_5YR_B14001_with_ann!F56","v":168},{"$f":"[1]ACS_16_5YR_B14001_with_ann!G56","v":66},{"$f":"[1]ACS_16_5YR_B14001_with_ann!H56","v":16},{"$f":"[1]ACS_16_5YR_B14001_with_ann!I56","v":15},{"$f":"[1]ACS_16_5YR_B14001_with_ann!J56","v":5},{"$f":"[1]ACS_16_5YR_B14001_with_ann!K56","v":5},{"$f":"[1]ACS_16_5YR_B14001_with_ann!L56","v":55},{"$f":"[1]ACS_16_5YR_B14001_with_ann!M56","v":33},{"$f":"[1]ACS_16_5YR_B14001_with_ann!N56","v":48},{"$f":"[1]ACS_16_5YR_B14001_with_ann!O56","v":25},{"$f":"[1]ACS_16_5YR_B14001_with_ann!P56","v":25},{"$f":"[1]ACS_16_5YR_B14001_with_ann!Q56","v":15},{"$f":"[1]ACS_16_5YR_B14001_with_ann!R56","v":13},{"$f":"[1]ACS_16_5YR_B14001_with_ann!S56","v":11},{"$f":"[1]ACS_16_5YR_B14001_with_ann!T56","v":6},{"$f":"[1]ACS_16_5YR_B14001_with_ann!U56","v":9},{"$f":"[1]ACS_16_5YR_B14001_with_ann!V56","v":908},{"$f":"[1]ACS_16_5YR_B14001_with_ann!W56","v":211},{"$f":"[1]ACS_16_5YR_B15002_with_ann!D56","v":825},{"$f":"[1]ACS_16_5YR_B15002_with_ann!E56","v":176},{"$f":"[1]ACS_16_5YR_B15002_with_ann!F56","v":422},{"$f":"[1]ACS_16_5YR_B15002_with_ann!G56","v":125},{"$f":"[1]ACS_16_5YR_B15002_with_ann!H56","v":0},{"$f":"[1]ACS_16_5YR_B15002_with_ann!I56","v":12},{"$f":"[1]ACS_16_5YR_B15002_with_ann!J56","v":0},{"$f":"[1]ACS_16_5YR_B15002_with_ann!K56","v":12},{"$f":"[1]ACS_16_5YR_B15002_with_ann!L56","v":0},{"$f":"[1]ACS_16_5YR_B15002_with_ann!M56","v":12},{"$f":"[1]ACS_16_5YR_B15002_with_ann!N56","v":11},{"$f":"[1]ACS_16_5YR_B15002_with_ann!O56","v":15},{"$f":"[1]ACS_16_5YR_B15002_with_ann!P56","v":0},{"$f":"[1]ACS_16_5YR_B15002_with_ann!Q56","v":12},{"$f":"[1]ACS_16_5YR_B15002_with_ann!R56","v":10},{"$f":"[1]ACS_16_5YR_B15002_with_ann!S56","v":14},{"$f":"[1]ACS_16_5YR_B15002_with_ann!T56","v":4},{"$f":"[1]ACS_16_5YR_B15002_with_ann!U56","v":6},{"$f":"[1]ACS_16_5YR_B15002_with_ann!V56","v":0},{"$f":"[1]ACS_16_5YR_B15002_with_ann!W56","v":12},{"$f":"[1]ACS_16_5YR_B15002_with_ann!X56","v":149},{"$f":"[1]ACS_16_5YR_B15002_with_ann!Y56","v":53},{"$f":"[1]ACS_16_5YR_B15002_with_ann!Z56","v":24},{"$f":"[1]ACS_16_5YR_B15002_with_ann!AA56","v":15},{"$f":"[1]ACS_16_5YR_B15002_with_ann!AB56","v":36},{"$f":"[1]ACS_16_5YR_B15002_with_ann!AC56","v":18},{"$f":"[1]ACS_16_5YR_B15002_with_ann!AD56","v":23},{"$f":"[1]ACS_16_5YR_B15002_with_ann!AE56","v":14},{"$f":"[1]ACS_16_5YR_B15002_with_ann!AF56","v":111},{"$f":"[1]ACS_16_5YR_B15002_with_ann!AG56","v":78},{"$f":"[1]ACS_16_5YR_B15002_with_ann!AH56","v":43},{"$f":"[1]ACS_16_5YR_B15002_with_ann!AI56","v":33},{"$f":"[1]ACS_16_5YR_B15002_with_ann!AJ56","v":11},{"$f":"[1]ACS_16_5YR_B15002_with_ann!AK56","v":17},{"$f":"[1]ACS_16_5YR_B15002_with_ann!AL56","v":0},{"$f":"[1]ACS_16_5YR_B15002_with_ann!AM56","v":12},{"$f":"[1]ACS_16_5YR_B15002_with_ann!AN56","v":403},{"$f":"[1]ACS_16_5YR_B15002_with_ann!AO56","v":85},{"$f":"[1]ACS_16_5YR_B15002_with_ann!AP56","v":0},{"$f":"[1]ACS_16_5YR_B15002_with_ann!AQ56","v":12},{"$f":"[1]ACS_16_5YR_B15002_with_ann!AR56","v":0},{"$f":"[1]ACS_16_5YR_B15002_with_ann!AS56","v":12},{"$f":"[1]ACS_16_5YR_B15002_with_ann!AT56","v":0},{"$f":"[1]ACS_16_5YR_B15002_with_ann!AU56","v":12},{"$f":"[1]ACS_16_5YR_B15002_with_ann!AV56","v":0},{"$f":"[1]ACS_16_5YR_B15002_with_ann!AW56","v":12},{"$f":"[1]ACS_16_5YR_B15002_with_ann!AX56","v":3},{"$f":"[1]ACS_16_5YR_B15002_with_ann!AY56","v":4},{"$f":"[1]ACS_16_5YR_B15002_with_ann!AZ56","v":5},{"$f":"[1]ACS_16_5YR_B15002_with_ann!BA56","v":6},{"$f":"[1]ACS_16_5YR_B15002_with_ann!BB56","v":17},{"$f":"[1]ACS_16_5YR_B15002_with_ann!BC56","v":28},{"$f":"[1]ACS_16_5YR_B15002_with_ann!BD56","v":0},{"$f":"[1]ACS_16_5YR_B15002_with_ann!BE56","v":12},{"$f":"[1]ACS_16_5YR_B15002_with_ann!BF56","v":137},{"$f":"[1]ACS_16_5YR_B15002_with_ann!BG56","v":54},{"$f":"[1]ACS_16_5YR_B15002_with_ann!BH56","v":26},{"$f":"[1]ACS_16_5YR_B15002_with_ann!BI56","v":15},{"$f":"[1]ACS_16_5YR_B15002_with_ann!BJ56","v":46},{"$f":"[1]ACS_16_5YR_B15002_with_ann!BK56","v":22},{"$f":"[1]ACS_16_5YR_B15002_with_ann!BL56","v":62},{"$f":"[1]ACS_16_5YR_B15002_with_ann!BM56","v":25},{"$f":"[1]ACS_16_5YR_B15002_with_ann!BN56","v":81},{"$f":"[1]ACS_16_5YR_B15002_with_ann!BO56","v":30},{"$f":"[1]ACS_16_5YR_B15002_with_ann!BP56","v":26},{"$f":"[1]ACS_16_5YR_B15002_with_ann!BQ56","v":15},{"$f":"[1]ACS_16_5YR_B15002_with_ann!BR56","v":0},{"$f":"[1]ACS_16_5YR_B15002_with_ann!BS56","v":12},{"$f":"[1]ACS_16_5YR_B15002_with_ann!BT56","v":0},{"$f":"[1]ACS_16_5YR_B15002_with_ann!BU56","v":12},null,"Richmond"]
["06000US3300564580","0600000US3300565700","060",{"$f":"[1]ACS_16_5YR_B14001_with_ann!C57","v":"Rindge"},{"$f":"[1]ACS_16_5YR_B14001_with_ann!D57","v":6302},{"$f":"[1]ACS_16_5YR_B14001_with_ann!E57","v":99},{"$f":"[1]ACS_16_5YR_B14001_with_ann!F57","v":2000},{"$f":"[1]ACS_16_5YR_B14001_with_ann!G57","v":191},{"$f":"[1]ACS_16_5YR_B14001_with_ann!H57","v":110},{"$f":"[1]ACS_16_5YR_B14001_with_ann!I57","v":79},{"$f":"[1]ACS_16_5YR_B14001_with_ann!J57","v":58},{"$f":"[1]ACS_16_5YR_B14001_with_ann!K57","v":41},{"$f":"[1]ACS_16_5YR_B14001_with_ann!L57","v":244},{"$f":"[1]ACS_16_5YR_B14001_with_ann!M57","v":75},{"$f":"[1]ACS_16_5YR_B14001_with_ann!N57","v":238},{"$f":"[1]ACS_16_5YR_B14001_with_ann!O57","v":112},{"$f":"[1]ACS_16_5YR_B14001_with_ann!P57","v":245},{"$f":"[1]ACS_16_5YR_B14001_with_ann!Q57","v":107},{"$f":"[1]ACS_16_5YR_B14001_with_ann!R57","v":1086},{"$f":"[1]ACS_16_5YR_B14001_with_ann!S57","v":93},{"$f":"[1]ACS_16_5YR_B14001_with_ann!T57","v":19},{"$f":"[1]ACS_16_5YR_B14001_with_ann!U57","v":25},{"$f":"[1]ACS_16_5YR_B14001_with_ann!V57","v":4302},{"$f":"[1]ACS_16_5YR_B14001_with_ann!W57","v":183},{"$f":"[1]ACS_16_5YR_B15002_with_ann!D57","v":3998},{"$f":"[1]ACS_16_5YR_B15002_with_ann!E57","v":171},{"$f":"[1]ACS_16_5YR_B15002_with_ann!F57","v":2024},{"$f":"[1]ACS_16_5YR_B15002_with_ann!G57","v":134},{"$f":"[1]ACS_16_5YR_B15002_with_ann!H57","v":0},{"$f":"[1]ACS_16_5YR_B15002_with_ann!I57","v":17},{"$f":"[1]ACS_16_5YR_B15002_with_ann!J57","v":0},{"$f":"[1]ACS_16_5YR_B15002_with_ann!K57","v":17},{"$f":"[1]ACS_16_5YR_B15002_with_ann!L57","v":0},{"$f":"[1]ACS_16_5YR_B15002_with_ann!M57","v":17},{"$f":"[1]ACS_16_5YR_B15002_with_ann!N57","v":0},{"$f":"[1]ACS_16_5YR_B15002_with_ann!O57","v":17},{"$f":"[1]ACS_16_5YR_B15002_with_ann!P57","v":18},{"$f":"[1]ACS_16_5YR_B15002_with_ann!Q57","v":21},{"$f":"[1]ACS_16_5YR_B15002_with_ann!R57","v":6},{"$f":"[1]ACS_16_5YR_B15002_with_ann!S57","v":10},{"$f":"[1]ACS_16_5YR_B15002_with_ann!T57","v":58},{"$f":"[1]ACS_16_5YR_B15002_with_ann!U57","v":49},{"$f":"[1]ACS_16_5YR_B15002_with_ann!V57","v":0},{"$f":"[1]ACS_16_5YR_B15002_with_ann!W57","v":17},{"$f":"[1]ACS_16_5YR_B15002_with_ann!X57","v":648},{"$f":"[1]ACS_16_5YR_B15002_with_ann!Y57","v":144},{"$f":"[1]ACS_16_5YR_B15002_with_ann!Z57","v":83},{"$f":"[1]ACS_16_5YR_B15002_with_ann!AA57","v":54},{"$f":"[1]ACS_16_5YR_B15002_with_ann!AB57","v":178},{"$f":"[1]ACS_16_5YR_B15002_with_ann!AC57","v":84},{"$f":"[1]ACS_16_5YR_B15002_with_ann!AD57","v":223},{"$f":"[1]ACS_16_5YR_B15002_with_ann!AE57","v":89},{"$f":"[1]ACS_16_5YR_B15002_with_ann!AF57","v":429},{"$f":"[1]ACS_16_5YR_B15002_with_ann!AG57","v":138},{"$f":"[1]ACS_16_5YR_B15002_with_ann!AH57","v":252},{"$f":"[1]ACS_16_5YR_B15002_with_ann!AI57","v":110},{"$f":"[1]ACS_16_5YR_B15002_with_ann!AJ57","v":48},{"$f":"[1]ACS_16_5YR_B15002_with_ann!AK57","v":39},{"$f":"[1]ACS_16_5YR_B15002_with_ann!AL57","v":81},{"$f":"[1]ACS_16_5YR_B15002_with_ann!AM57","v":64},{"$f":"[1]ACS_16_5YR_B15002_with_ann!AN57","v":1974},{"$f":"[1]ACS_16_5YR_B15002_with_ann!AO57","v":142},{"$f":"[1]ACS_16_5YR_B15002_with_ann!AP57","v":0},{"$f":"[1]ACS_16_5YR_B15002_with_ann!AQ57","v":17},{"$f":"[1]ACS_16_5YR_B15002_with_ann!AR57","v":8},{"$f":"[1]ACS_16_5YR_B15002_with_ann!AS57","v":13},{"$f":"[1]ACS_16_5YR_B15002_with_ann!AT57","v":0},{"$f":"[1]ACS_16_5YR_B15002_with_ann!AU57","v":17},{"$f":"[1]ACS_16_5YR_B15002_with_ann!AV57","v":13},{"$f":"[1]ACS_16_5YR_B15002_with_ann!AW57","v":22},{"$f":"[1]ACS_16_5YR_B15002_with_ann!AX57","v":18},{"$f":"[1]ACS_16_5YR_B15002_with_ann!AY57","v":28},{"$f":"[1]ACS_16_5YR_B15002_with_ann!AZ57","v":58},{"$f":"[1]ACS_16_5YR_B15002_with_ann!BA57","v":51},{"$f":"[1]ACS_16_5YR_B15002_with_ann!BB57","v":0},{"$f":"[1]ACS_16_5YR_B15002_with_ann!BC57","v":17},{"$f":"[1]ACS_16_5YR_B15002_with_ann!BD57","v":2},{"$f":"[1]ACS_16_5YR_B15002_with_ann!BE57","v":6},{"$f":"[1]ACS_16_5YR_B15002_with_ann!BF57","v":418},{"$f":"[1]ACS_16_5YR_B15002_with_ann!BG57","v":133},{"$f":"[1]ACS_16_5YR_B15002_with_ann!BH57","v":172},{"$f":"[1]ACS_16_5YR_B15002_with_ann!BI57","v":94},{"$f":"[1]ACS_16_5YR_B15002_with_ann!BJ57","v":332},{"$f":"[1]ACS_16_5YR_B15002_with_ann!BK57","v":115},{"$f":"[1]ACS_16_5YR_B15002_with_ann!BL57","v":398},{"$f":"[1]ACS_16_5YR_B15002_with_ann!BM57","v":132},{"$f":"[1]ACS_16_5YR_B15002_with_ann!BN57","v":312},{"$f":"[1]ACS_16_5YR_B15002_with_ann!BO57","v":152},{"$f":"[1]ACS_16_5YR_B15002_with_ann!BP57","v":191},{"$f":"[1]ACS_16_5YR_B15002_with_ann!BQ57","v":99},{"$f":"[1]ACS_16_5YR_B15002_with_ann!BR57","v":31},{"$f":"[1]ACS_16_5YR_B15002_with_ann!BS57","v":25},{"$f":"[1]ACS_16_5YR_B15002_with_ann!BT57","v":21},{"$f":"[1]ACS_16_5YR_B15002_with_ann!BU57","v":37},null,"Rindge"]
["06000US3300565700","0600000US3300573700","060",{"$f":"[1]ACS_16_5YR_B14001_with_ann!C58","v":"Roxbury"},{"$f":"[1]ACS_16_5YR_B14001_with_ann!D58","v":263},{"$f":"[1]ACS_16_5YR_B14001_with_ann!E58","v":111},{"$f":"[1]ACS_16_5YR_B14001_with_ann!F58","v":66},{"$f":"[1]ACS_16_5YR_B14001_with_ann!G58","v":54},{"$f":"[1]ACS_16_5YR_B14001_with_ann!H58","v":7},{"$f":"[1]ACS_16_5YR_B14001_with_ann!I58","v":6},{"$f":"[1]ACS_16_5YR_B14001_with_ann!J58","v":0},{"$f":"[1]ACS_16_5YR_B14001_with_ann!K58","v":12},{"$f":"[1]ACS_16_5YR_B14001_with_ann!L58","v":4},{"$f":"[1]ACS_16_5YR_B14001_with_ann!M58","v":4},{"$f":"[1]ACS_16_5YR_B14001_with_ann!N58","v":2},{"$f":"[1]ACS_16_5YR_B14001_with_ann!O58","v":3},{"$f":"[1]ACS_16_5YR_B14001_with_ann!P58","v":4},{"$f":"[1]ACS_16_5YR_B14001_with_ann!Q58","v":6},{"$f":"[1]ACS_16_5YR_B14001_with_ann!R58","v":47},{"$f":"[1]ACS_16_5YR_B14001_with_ann!S58","v":56},{"$f":"[1]ACS_16_5YR_B14001_with_ann!T58","v":2},{"$f":"[1]ACS_16_5YR_B14001_with_ann!U58","v":3},{"$f":"[1]ACS_16_5YR_B14001_with_ann!V58","v":197},{"$f":"[1]ACS_16_5YR_B14001_with_ann!W58","v":68},{"$f":"[1]ACS_16_5YR_B15002_with_ann!D58","v":181},{"$f":"[1]ACS_16_5YR_B15002_with_ann!E58","v":63},{"$f":"[1]ACS_16_5YR_B15002_with_ann!F58","v":86},{"$f":"[1]ACS_16_5YR_B15002_with_ann!G58","v":37},{"$f":"[1]ACS_16_5YR_B15002_with_ann!H58","v":1},{"$f":"[1]ACS_16_5YR_B15002_with_ann!I58","v":2},{"$f":"[1]ACS_16_5YR_B15002_with_ann!J58","v":0},{"$f":"[1]ACS_16_5YR_B15002_with_ann!K58","v":12},{"$f":"[1]ACS_16_5YR_B15002_with_ann!L58","v":0},{"$f":"[1]ACS_16_5YR_B15002_with_ann!M58","v":12},{"$f":"[1]ACS_16_5YR_B15002_with_ann!N58","v":0},{"$f":"[1]ACS_16_5YR_B15002_with_ann!O58","v":12},{"$f":"[1]ACS_16_5YR_B15002_with_ann!P58","v":0},{"$f":"[1]ACS_16_5YR_B15002_with_ann!Q58","v":12},{"$f":"[1]ACS_16_5YR_B15002_with_ann!R58","v":2},{"$f":"[1]ACS_16_5YR_B15002_with_ann!S58","v":3},{"$f":"[1]ACS_16_5YR_B15002_with_ann!T58","v":0},{"$f":"[1]ACS_16_5YR_B15002_with_ann!U58","v":12},{"$f":"[1]ACS_16_5YR_B15002_with_ann!V58","v":1},{"$f":"[1]ACS_16_5YR_B15002_with_ann!W58","v":3},{"$f":"[1]ACS_16_5YR_B15002_with_ann!X58","v":31},{"$f":"[1]ACS_16_5YR_B15002_with_ann!Y58","v":14},{"$f":"[1]ACS_16_5YR_B15002_with_ann!Z58","v":2},{"$f":"[1]ACS_16_5YR_B15002_with_ann!AA58","v":3},{"$f":"[1]ACS_16_5YR_B15002_with_ann!AB58","v":3},{"$f":"[1]ACS_16_5YR_B15002_with_ann!AC58","v":3},{"$f":"[1]ACS_16_5YR_B15002_with_ann!AD58","v":8},{"$f":"[1]ACS_16_5YR_B15002_with_ann!AE58","v":7},{"$f":"[1]ACS_16_5YR_B15002_with_ann!AF58","v":30},{"$f":"[1]ACS_16_5YR_B15002_with_ann!AG58","v":36},{"$f":"[1]ACS_16_5YR_B15002_with_ann!AH58","v":5},{"$f":"[1]ACS_16_5YR_B15002_with_ann!AI58","v":4},{"$f":"[1]ACS_16_5YR_B15002_with_ann!AJ58","v":0},{"$f":"[1]ACS_16_5YR_B15002_with_ann!AK58","v":12},{"$f":"[1]ACS_16_5YR_B15002_with_ann!AL58","v":3},{"$f":"[1]ACS_16_5YR_B15002_with_ann!AM58","v":4},{"$f":"[1]ACS_16_5YR_B15002_with_ann!AN58","v":95},{"$f":"[1]ACS_16_5YR_B15002_with_ann!AO58","v":32},{"$f":"[1]ACS_16_5YR_B15002_with_ann!AP58","v":1},{"$f":"[1]ACS_16_5YR_B15002_with_ann!AQ58","v":2},{"$f":"[1]ACS_16_5YR_B15002_with_ann!AR58","v":0},{"$f":"[1]ACS_16_5YR_B15002_with_ann!AS58","v":12},{"$f":"[1]ACS_16_5YR_B15002_with_ann!AT58","v":0},{"$f":"[1]ACS_16_5YR_B15002_with_ann!AU58","v":12},{"$f":"[1]ACS_16_5YR_B15002_with_ann!AV58","v":0},{"$f":"[1]ACS_16_5YR_B15002_with_ann!AW58","v":12},{"$f":"[1]ACS_16_5YR_B15002_with_ann!AX58","v":0},{"$f":"[1]ACS_16_5YR_B15002_with_ann!AY58","v":12},{"$f":"[1]ACS_16_5YR_B15002_with_ann!AZ58","v":0},{"$f":"[1]ACS_16_5YR_B15002_with_ann!BA58","v":12},{"$f":"[1]ACS_16_5YR_B15002_with_ann!BB58","v":0},{"$f":"[1]ACS_16_5YR_B15002_with_ann!BC58","v":12},{"$f":"[1]ACS_16_5YR_B15002_with_ann!BD58","v":2},{"$f":"[1]ACS_16_5YR_B15002_with_ann!BE58","v":3},{"$f":"[1]ACS_16_5YR_B15002_with_ann!BF58","v":28},{"$f":"[1]ACS_16_5YR_B15002_with_ann!BG58","v":15},{"$f":"[1]ACS_16_5YR_B15002_with_ann!BH58","v":23},{"$f":"[1]ACS_16_5YR_B15002_with_ann!BI58","v":23},{"$f":"[1]ACS_16_5YR_B15002_with_ann!BJ58","v":7},{"$f":"[1]ACS_16_5YR_B15002_with_ann!BK58","v":6},{"$f":"[1]ACS_16_5YR_B15002_with_ann!BL58","v":8},{"$f":"[1]ACS_16_5YR_B15002_with_ann!BM58","v":8},{"$f":"[1]ACS_16_5YR_B15002_with_ann!BN58","v":13},{"$f":"[1]ACS_16_5YR_B15002_with_ann!BO58","v":7},{"$f":"[1]ACS_16_5YR_B15002_with_ann!BP58","v":12},{"$f":"[1]ACS_16_5YR_B15002_with_ann!BQ58","v":13},{"$f":"[1]ACS_16_5YR_B15002_with_ann!BR58","v":1},{"$f":"[1]ACS_16_5YR_B15002_with_ann!BS58","v":2},{"$f":"[1]ACS_16_5YR_B15002_with_ann!BT58","v":0},{"$f":"[1]ACS_16_5YR_B15002_with_ann!BU58","v":12},null,"Roxbury"]
["06000US3300573700","0600000US3300574900","060",{"$f":"[1]ACS_16_5YR_B14001_with_ann!C59","v":"Stoddard"},{"$f":"[1]ACS_16_5YR_B14001_with_ann!D59","v":1169},{"$f":"[1]ACS_16_5YR_B14001_with_ann!E59","v":156},{"$f":"[1]ACS_16_5YR_B14001_with_ann!F59","v":256},{"$f":"[1]ACS_16_5YR_B14001_with_ann!G59","v":95},{"$f":"[1]ACS_16_5YR_B14001_with_ann!H59","v":16},{"$f":"[1]ACS_16_5YR_B14001_with_ann!I59","v":11},{"$f":"[1]ACS_16_5YR_B14001_with_ann!J59","v":4},{"$f":"[1]ACS_16_5YR_B14001_with_ann!K59","v":6},{"$f":"[1]ACS_16_5YR_B14001_with_ann!L59","v":60},{"$f":"[1]ACS_16_5YR_B14001_with_ann!M59","v":28},{"$f":"[1]ACS_16_5YR_B14001_with_ann!N59","v":82},{"$f":"[1]ACS_16_5YR_B14001_with_ann!O59","v":34},{"$f":"[1]ACS_16_5YR_B14001_with_ann!P59","v":47},{"$f":"[1]ACS_16_5YR_B14001_with_ann!Q59","v":33},{"$f":"[1]ACS_16_5YR_B14001_with_ann!R59","v":31},{"$f":"[1]ACS_16_5YR_B14001_with_ann!S59","v":20},{"$f":"[1]ACS_16_5YR_B14001_with_ann!T59","v":16},{"$f":"[1]ACS_16_5YR_B14001_with_ann!U59","v":12},{"$f":"[1]ACS_16_5YR_B14001_with_ann!V59","v":913},{"$f":"[1]ACS_16_5YR_B14001_with_ann!W59","v":110},{"$f":"[1]ACS_16_5YR_B15002_with_ann!D59","v":895},{"$f":"[1]ACS_16_5YR_B15002_with_ann!E59","v":109},{"$f":"[1]ACS_16_5YR_B15002_with_ann!F59","v":423},{"$f":"[1]ACS_16_5YR_B15002_with_ann!G59","v":57},{"$f":"[1]ACS_16_5YR_B15002_with_ann!H59","v":11},{"$f":"[1]ACS_16_5YR_B15002_with_ann!I59","v":14},{"$f":"[1]ACS_16_5YR_B15002_with_ann!J59","v":0},{"$f":"[1]ACS_16_5YR_B15002_with_ann!K59","v":12},{"$f":"[1]ACS_16_5YR_B15002_with_ann!L59","v":0},{"$f":"[1]ACS_16_5YR_B15002_with_ann!M59","v":12},{"$f":"[1]ACS_16_5YR_B15002_with_ann!N59","v":0},{"$f":"[1]ACS_16_5YR_B15002_with_ann!O59","v":12},{"$f":"[1]ACS_16_5YR_B15002_with_ann!P59","v":0},{"$f":"[1]ACS_16_5YR_B15002_with_ann!Q59","v":12},{"$f":"[1]ACS_16_5YR_B15002_with_ann!R59","v":0},{"$f":"[1]ACS_16_5YR_B15002_with_ann!S59","v":12},{"$f":"[1]ACS_16_5YR_B15002_with_ann!T59","v":0},{"$f":"[1]ACS_16_5YR_B15002_with_ann!U59","v":12},{"$f":"[1]ACS_16_5YR_B15002_with_ann!V59","v":2},{"$f":"[1]ACS_16_5YR_B15002_with_ann!W59","v":4},{"$f":"[1]ACS_16_5YR_B15002_with_ann!X59","v":172},{"$f":"[1]ACS_16_5YR_B15002_with_ann!Y59","v":43},{"$f":"[1]ACS_16_5YR_B15002_with_ann!Z59","v":35},{"$f":"[1]ACS_16_5YR_B15002_with_ann!AA59","v":16},{"$f":"[1]ACS_16_5YR_B15002_with_ann!AB59","v":68},{"$f":"[1]ACS_16_5YR_B15002_with_ann!AC59","v":24},{"$f":"[1]ACS_16_5YR_B15002_with_ann!AD59","v":49},{"$f":"[1]ACS_16_5YR_B15002_with_ann!AE59","v":22},{"$f":"[1]ACS_16_5YR_B15002_with_ann!AF59","v":49},{"$f":"[1]ACS_16_5YR_B15002_with_ann!AG59","v":14},{"$f":"[1]ACS_16_5YR_B15002_with_ann!AH59","v":31},{"$f":"[1]ACS_16_5YR_B15002_with_ann!AI59","v":19},{"$f":"[1]ACS_16_5YR_B15002_with_ann!AJ59","v":4},{"$f":"[1]ACS_16_5YR_B15002_with_ann!AK59","v":5},{"$f":"[1]ACS_16_5YR_B15002_with_ann!AL59","v":2},{"$f":"[1]ACS_16_5YR_B15002_with_ann!AM59","v":4},{"$f":"[1]ACS_16_5YR_B15002_with_ann!AN59","v":472},{"$f":"[1]ACS_16_5YR_B15002_with_ann!AO59","v":67},{"$f":"[1]ACS_16_5YR_B15002_with_ann!AP59","v":5},{"$f":"[1]ACS_16_5YR_B15002_with_ann!AQ59","v":6},{"$f":"[1]ACS_16_5YR_B15002_with_ann!AR59","v":0},{"$f":"[1]ACS_16_5YR_B15002_with_ann!AS59","v":12},{"$f":"[1]ACS_16_5YR_B15002_with_ann!AT59","v":0},{"$f":"[1]ACS_16_5YR_B15002_with_ann!AU59","v":12},{"$f":"[1]ACS_16_5YR_B15002_with_ann!AV59","v":0},{"$f":"[1]ACS_16_5YR_B15002_with_ann!AW59","v":12},{"$f":"[1]ACS_16_5YR_B15002_with_ann!AX59","v":0},{"$f":"[1]ACS_16_5YR_B15002_with_ann!AY59","v":12},{"$f":"[1]ACS_16_5YR_B15002_with_ann!AZ59","v":0},{"$f":"[1]ACS_16_5YR_B15002_with_ann!BA59","v":12},{"$f":"[1]ACS_16_5YR_B15002_with_ann!BB59","v":0},{"$f":"[1]ACS_16_5YR_B15002_with_ann!BC59","v":12},{"$f":"[1]ACS_16_5YR_B15002_with_ann!BD59","v":0},{"$f":"[1]ACS_16_5YR_B15002_with_ann!BE59","v":12},{"$f":"[1]ACS_16_5YR_B15002_with_ann!BF59","v":149},{"$f":"[1]ACS_16_5YR_B15002_with_ann!BG59","v":37},{"$f":"[1]ACS_16_5YR_B15002_with_ann!BH59","v":43},{"$f":"[1]ACS_16_5YR_B15002_with_ann!BI59","v":17},{"$f":"[1]ACS_16_5YR_B15002_with_ann!BJ59","v":60},{"$f":"[1]ACS_16_5YR_B15002_with_ann!BK59","v":30},{"$f":"[1]ACS_16_5YR_B15002_with_ann!BL59","v":43},{"$f":"[1]ACS_16_5YR_B15002_with_ann!BM59","v":21},{"$f":"[1]ACS_16_5YR_B15002_with_ann!BN59","v":113},{"$f":"[1]ACS_16_5YR_B15002_with_ann!BO59","v":32},{"$f":"[1]ACS_16_5YR_B15002_with_ann!BP59","v":59},{"$f":"[1]ACS_16_5YR_B15002_with_ann!BQ59","v":29},{"$f":"[1]ACS_16_5YR_B15002_with_ann!BR59","v":0},{"$f":"[1]ACS_16_5YR_B15002_with_ann!BS59","v":12},{"$f":"[1]ACS_16_5YR_B15002_with_ann!BT59","v":0},{"$f":"[1]ACS_16_5YR_B15002_with_ann!BU59","v":12},null,"Stoddard"]
["06000US3300574900","0600000US3300575300","060",{"$f":"[1]ACS_16_5YR_B14001_with_ann!C60","v":"Sullivan"},{"$f":"[1]ACS_16_5YR_B14001_with_ann!D60","v":644},{"$f":"[1]ACS_16_5YR_B14001_with_ann!E60","v":113},{"$f":"[1]ACS_16_5YR_B14001_with_ann!F60","v":93},{"$f":"[1]ACS_16_5YR_B14001_with_ann!G60","v":32},{"$f":"[1]ACS_16_5YR_B14001_with_ann!H60","v":16},{"$f":"[1]ACS_16_5YR_B14001_with_ann!I60","v":13},{"$f":"[1]ACS_16_5YR_B14001_with_ann!J60","v":0},{"$f":"[1]ACS_16_5YR_B14001_with_ann!K60","v":12},{"$f":"[1]ACS_16_5YR_B14001_with_ann!L60","v":25},{"$f":"[1]ACS_16_5YR_B14001_with_ann!M60","v":14},{"$f":"[1]ACS_16_5YR_B14001_with_ann!N60","v":11},{"$f":"[1]ACS_16_5YR_B14001_with_ann!O60","v":8},{"$f":"[1]ACS_16_5YR_B14001_with_ann!P60","v":18},{"$f":"[1]ACS_16_5YR_B14001_with_ann!Q60","v":12},{"$f":"[1]ACS_16_5YR_B14001_with_ann!R60","v":13},{"$f":"[1]ACS_16_5YR_B14001_with_ann!S60","v":13},{"$f":"[1]ACS_16_5YR_B14001_with_ann!T60","v":10},{"$f":"[1]ACS_16_5YR_B14001_with_ann!U60","v":13},{"$f":"[1]ACS_16_5YR_B14001_with_ann!V60","v":551},{"$f":"[1]ACS_16_5YR_B14001_with_ann!W60","v":93},{"$f":"[1]ACS_16_5YR_B15002_with_ann!D60","v":543},{"$f":"[1]ACS_16_5YR_B15002_with_ann!E60","v":93},{"$f":"[1]ACS_16_5YR_B15002_with_ann!F60","v":276},{"$f":"[1]ACS_16_5YR_B15002_with_ann!G60","v":58},{"$f":"[1]ACS_16_5YR_B15002_with_ann!H60","v":3},{"$f":"[1]ACS_16_5YR_B15002_with_ann!I60","v":3},{"$f":"[1]ACS_16_5YR_B15002_with_ann!J60","v":0},{"$f":"[1]ACS_16_5YR_B15002_with_ann!K60","v":12},{"$f":"[1]ACS_16_5YR_B15002_with_ann!L60","v":0},{"$f":"[1]ACS_16_5YR_B15002_with_ann!M60","v":12},{"$f":"[1]ACS_16_5YR_B15002_with_ann!N60","v":6},{"$f":"[1]ACS_16_5YR_B15002_with_ann!O60","v":6},{"$f":"[1]ACS_16_5YR_B15002_with_ann!P60","v":0},{"$f":"[1]ACS_16_5YR_B15002_with_ann!Q60","v":12},{"$f":"[1]ACS_16_5YR_B15002_with_ann!R60","v":7},{"$f":"[1]ACS_16_5YR_B15002_with_ann!S60","v":6},{"$f":"[1]ACS_16_5YR_B15002_with_ann!T60","v":6},{"$f":"[1]ACS_16_5YR_B15002_with_ann!U60","v":7},{"$f":"[1]ACS_16_5YR_B15002_with_ann!V60","v":18},{"$f":"[1]ACS_16_5YR_B15002_with_ann!W60","v":20},{"$f":"[1]ACS_16_5YR_B15002_with_ann!X60","v":88},{"$f":"[1]ACS_16_5YR_B15002_with_ann!Y60","v":25},{"$f":"[1]ACS_16_5YR_B15002_with_ann!Z60","v":17},{"$f":"[1]ACS_16_5YR_B15002_with_ann!AA60","v":14},{"$f":"[1]ACS_16_5YR_B15002_with_ann!AB60","v":55},{"$f":"[1]ACS_16_5YR_B15002_with_ann!AC60","v":26},{"$f":"[1]ACS_16_5YR_B15002_with_ann!AD60","v":18},{"$f":"[1]ACS_16_5YR_B15002_with_ann!AE60","v":9},{"$f":"[1]ACS_16_5YR_B15002_with_ann!AF60","v":25},{"$f":"[1]ACS_16_5YR_B15002_with_ann!AG60","v":15},{"$f":"[1]ACS_16_5YR_B15002_with_ann!AH60","v":7},{"$f":"[1]ACS_16_5YR_B15002_with_ann!AI60","v":5},{"$f":"[1]ACS_16_5YR_B15002_with_ann!AJ60","v":15},{"$f":"[1]ACS_16_5YR_B15002_with_ann!AK60","v":11},{"$f":"[1]ACS_16_5YR_B15002_with_ann!AL60","v":11},{"$f":"[1]ACS_16_5YR_B15002_with_ann!AM60","v":13},{"$f":"[1]ACS_16_5YR_B15002_with_ann!AN60","v":267},{"$f":"[1]ACS_16_5YR_B15002_with_ann!AO60","v":51},{"$f":"[1]ACS_16_5YR_B15002_with_ann!AP60","v":0},{"$f":"[1]ACS_16_5YR_B15002_with_ann!AQ60","v":12},{"$f":"[1]ACS_16_5YR_B15002_with_ann!AR60","v":0},{"$f":"[1]ACS_16_5YR_B15002_with_ann!AS60","v":12},{"$f":"[1]ACS_16_5YR_B15002_with_ann!AT60","v":0},{"$f":"[1]ACS_16_5YR_B15002_with_ann!AU60","v":12},{"$f":"[1]ACS_16_5YR_B15002_with_ann!AV60","v":0},{"$f":"[1]ACS_16_5YR_B15002_with_ann!AW60","v":12},{"$f":"[1]ACS_16_5YR_B15002_with_ann!AX60","v":2},{"$f":"[1]ACS_16_5YR_B15002_with_ann!AY60","v":3},{"$f":"[1]ACS_16_5YR_B15002_with_ann!AZ60","v":2},{"$f":"[1]ACS_16_5YR_B15002_with_ann!BA60","v":4},{"$f":"[1]ACS_16_5YR_B15002_with_ann!BB60","v":4},{"$f":"[1]ACS_16_5YR_B15002_with_ann!BC60","v":6},{"$f":"[1]ACS_16_5YR_B15002_with_ann!BD60","v":2},{"$f":"[1]ACS_16_5YR_B15002_with_ann!BE60","v":3},{"$f":"[1]ACS_16_5YR_B15002_with_ann!BF60","v":74},{"$f":"[1]ACS_16_5YR_B15002_with_ann!BG60","v":26},{"$f":"[1]ACS_16_5YR_B15002_with_ann!BH60","v":16},{"$f":"[1]ACS_16_5YR_B15002_with_ann!BI60","v":13},{"$f":"[1]ACS_16_5YR_B15002_with_ann!BJ60","v":42},{"$f":"[1]ACS_16_5YR_B15002_with_ann!BK60","v":28},{"$f":"[1]ACS_16_5YR_B15002_with_ann!BL60","v":38},{"$f":"[1]ACS_16_5YR_B15002_with_ann!BM60","v":22},{"$f":"[1]ACS_16_5YR_B15002_with_ann!BN60","v":52},{"$f":"[1]ACS_16_5YR_B15002_with_ann!BO60","v":18},{"$f":"[1]ACS_16_5YR_B15002_with_ann!BP60","v":26},{"$f":"[1]ACS_16_5YR_B15002_with_ann!BQ60","v":11},{"$f":"[1]ACS_16_5YR_B15002_with_ann!BR60","v":9},{"$f":"[1]ACS_16_5YR_B15002_with_ann!BS60","v":8},{"$f":"[1]ACS_16_5YR_B15002_with_ann!BT60","v":0},{"$f":"[1]ACS_16_5YR_B15002_with_ann!BU60","v":12},null,"Sullivan"]
["06000US3300575300","0600000US3300575700","060",{"$f":"[1]ACS_16_5YR_B14001_with_ann!C61","v":"Surry"},{"$f":"[1]ACS_16_5YR_B14001_with_ann!D61","v":901},{"$f":"[1]ACS_16_5YR_B14001_with_ann!E61","v":210},{"$f":"[1]ACS_16_5YR_B14001_with_ann!F61","v":209},{"$f":"[1]ACS_16_5YR_B14001_with_ann!G61","v":131},{"$f":"[1]ACS_16_5YR_B14001_with_ann!H61","v":6},{"$f":"[1]ACS_16_5YR_B14001_with_ann!I61","v":7},{"$f":"[1]ACS_16_5YR_B14001_with_ann!J61","v":4},{"$f":"[1]ACS_16_5YR_B14001_with_ann!K61","v":4},{"$f":"[1]ACS_16_5YR_B14001_with_ann!L61","v":52},{"$f":"[1]ACS_16_5YR_B14001_with_ann!M61","v":56},{"$f":"[1]ACS_16_5YR_B14001_with_ann!N61","v":38},{"$f":"[1]ACS_16_5YR_B14001_with_ann!O61","v":22},{"$f":"[1]ACS_16_5YR_B14001_with_ann!P61","v":35},{"$f":"[1]ACS_16_5YR_B14001_with_ann!Q61","v":27},{"$f":"[1]ACS_16_5YR_B14001_with_ann!R61","v":70},{"$f":"[1]ACS_16_5YR_B14001_with_ann!S61","v":75},{"$f":"[1]ACS_16_5YR_B14001_with_ann!T61","v":4},{"$f":"[1]ACS_16_5YR_B14001_with_ann!U61","v":5},{"$f":"[1]ACS_16_5YR_B14001_with_ann!V61","v":692},{"$f":"[1]ACS_16_5YR_B14001_with_ann!W61","v":117},{"$f":"[1]ACS_16_5YR_B15002_with_ann!D61","v":723},{"$f":"[1]ACS_16_5YR_B15002_with_ann!E61","v":150},{"$f":"[1]ACS_16_5YR_B15002_with_ann!F61","v":325},{"$f":"[1]ACS_16_5YR_B15002_with_ann!G61","v":58},{"$f":"[1]ACS_16_5YR_B15002_with_ann!H61","v":4},{"$f":"[1]ACS_16_5YR_B15002_with_ann!I61","v":5},{"$f":"[1]ACS_16_5YR_B15002_with_ann!J61","v":0},{"$f":"[1]ACS_16_5YR_B15002_with_ann!K61","v":12},{"$f":"[1]ACS_16_5YR_B15002_with_ann!L61","v":0},{"$f":"[1]ACS_16_5YR_B15002_with_ann!M61","v":12},{"$f":"[1]ACS_16_5YR_B15002_with_ann!N61","v":0},{"$f":"[1]ACS_16_5YR_B15002_with_ann!O61","v":12},{"$f":"[1]ACS_16_5YR_B15002_with_ann!P61","v":0},{"$f":"[1]ACS_16_5YR_B15002_with_ann!Q61","v":12},{"$f":"[1]ACS_16_5YR_B15002_with_ann!R61","v":2},{"$f":"[1]ACS_16_5YR_B15002_with_ann!S61","v":3},{"$f":"[1]ACS_16_5YR_B15002_with_ann!T61","v":0},{"$f":"[1]ACS_16_5YR_B15002_with_ann!U61","v":12},{"$f":"[1]ACS_16_5YR_B15002_with_ann!V61","v":0},{"$f":"[1]ACS_16_5YR_B15002_with_ann!W61","v":12},{"$f":"[1]ACS_16_5YR_B15002_with_ann!X61","v":75},{"$f":"[1]ACS_16_5YR_B15002_with_ann!Y61","v":32},{"$f":"[1]ACS_16_5YR_B15002_with_ann!Z61","v":10},{"$f":"[1]ACS_16_5YR_B15002_with_ann!AA61","v":10},{"$f":"[1]ACS_16_5YR_B15002_with_ann!AB61","v":49},{"$f":"[1]ACS_16_5YR_B15002_with_ann!AC61","v":34},{"$f":"[1]ACS_16_5YR_B15002_with_ann!AD61","v":69},{"$f":"[1]ACS_16_5YR_B15002_with_ann!AE61","v":28},{"$f":"[1]ACS_16_5YR_B15002_with_ann!AF61","v":86},{"$f":"[1]ACS_16_5YR_B15002_with_ann!AG61","v":24},{"$f":"[1]ACS_16_5YR_B15002_with_ann!AH61","v":16},{"$f":"[1]ACS_16_5YR_B15002_with_ann!AI61","v":11},{"$f":"[1]ACS_16_5YR_B15002_with_ann!AJ61","v":14},{"$f":"[1]ACS_16_5YR_B15002_with_ann!AK61","v":12},{"$f":"[1]ACS_16_5YR_B15002_with_ann!AL61","v":0},{"$f":"[1]ACS_16_5YR_B15002_with_ann!AM61","v":12},{"$f":"[1]ACS_16_5YR_B15002_with_ann!AN61","v":398},{"$f":"[1]ACS_16_5YR_B15002_with_ann!AO61","v":110},{"$f":"[1]ACS_16_5YR_B15002_with_ann!AP61","v":0},{"$f":"[1]ACS_16_5YR_B15002_with_ann!AQ61","v":12},{"$f":"[1]ACS_16_5YR_B15002_with_ann!AR61","v":0},{"$f":"[1]ACS_16_5YR_B15002_with_ann!AS61","v":12},{"$f":"[1]ACS_16_5YR_B15002_with_ann!AT61","v":0},{"$f":"[1]ACS_16_5YR_B15002_with_ann!AU61","v":12},{"$f":"[1]ACS_16_5YR_B15002_with_ann!AV61","v":0},{"$f":"[1]ACS_16_5YR_B15002_with_ann!AW61","v":12},{"$f":"[1]ACS_16_5YR_B15002_with_ann!AX61","v":0},{"$f":"[1]ACS_16_5YR_B15002_with_ann!AY61","v":12},{"$f":"[1]ACS_16_5YR_B15002_with_ann!AZ61","v":0},{"$f":"[1]ACS_16_5YR_B15002_with_ann!BA61","v":12},{"$f":"[1]ACS_16_5YR_B15002_with_ann!BB61","v":2},{"$f":"[1]ACS_16_5YR_B15002_with_ann!BC61","v":4},{"$f":"[1]ACS_16_5YR_B15002_with_ann!BD61","v":7},{"$f":"[1]ACS_16_5YR_B15002_with_ann!BE61","v":7},{"$f":"[1]ACS_16_5YR_B15002_with_ann!BF61","v":105},{"$f":"[1]ACS_16_5YR_B15002_with_ann!BG61","v":36},{"$f":"[1]ACS_16_5YR_B15002_with_ann!BH61","v":18},{"$f":"[1]ACS_16_5YR_B15002_with_ann!BI61","v":9},{"$f":"[1]ACS_16_5YR_B15002_with_ann!BJ61","v":105},{"$f":"[1]ACS_16_5YR_B15002_with_ann!BK61","v":105},{"$f":"[1]ACS_16_5YR_B15002_with_ann!BL61","v":31},{"$f":"[1]ACS_16_5YR_B15002_with_ann!BM61","v":19},{"$f":"[1]ACS_16_5YR_B15002_with_ann!BN61","v":82},{"$f":"[1]ACS_16_5YR_B15002_with_ann!BO61","v":39},{"$f":"[1]ACS_16_5YR_B15002_with_ann!BP61","v":45},{"$f":"[1]ACS_16_5YR_B15002_with_ann!BQ61","v":22},{"$f":"[1]ACS_16_5YR_B15002_with_ann!BR61","v":3},{"$f":"[1]ACS_16_5YR_B15002_with_ann!BS61","v":4},{"$f":"[1]ACS_16_5YR_B15002_with_ann!BT61","v":0},{"$f":"[1]ACS_16_5YR_B15002_with_ann!BU61","v":12},null,"Surry"]
["06000US3300575700","0600000US3300577380","060",{"$f":"[1]ACS_16_5YR_B14001_with_ann!C62","v":"Swanzey"},{"$f":"[1]ACS_16_5YR_B14001_with_ann!D62","v":7177},{"$f":"[1]ACS_16_5YR_B14001_with_ann!E62","v":99},{"$f":"[1]ACS_16_5YR_B14001_with_ann!F62","v":1284},{"$f":"[1]ACS_16_5YR_B14001_with_ann!G62","v":288},{"$f":"[1]ACS_16_5YR_B14001_with_ann!H62","v":103},{"$f":"[1]ACS_16_5YR_B14001_with_ann!I62","v":51},{"$f":"[1]ACS_16_5YR_B14001_with_ann!J62","v":44},{"$f":"[1]ACS_16_5YR_B14001_with_ann!K62","v":43},{"$f":"[1]ACS_16_5YR_B14001_with_ann!L62","v":314},{"$f":"[1]ACS_16_5YR_B14001_with_ann!M62","v":114},{"$f":"[1]ACS_16_5YR_B14001_with_ann!N62","v":376},{"$f":"[1]ACS_16_5YR_B14001_with_ann!O62","v":136},{"$f":"[1]ACS_16_5YR_B14001_with_ann!P62","v":217},{"$f":"[1]ACS_16_5YR_B14001_with_ann!Q62","v":139},{"$f":"[1]ACS_16_5YR_B14001_with_ann!R62","v":151},{"$f":"[1]ACS_16_5YR_B14001_with_ann!S62","v":122},{"$f":"[1]ACS_16_5YR_B14001_with_ann!T62","v":79},{"$f":"[1]ACS_16_5YR_B14001_with_ann!U62","v":105},{"$f":"[1]ACS_16_5YR_B14001_with_ann!V62","v":5893},{"$f":"[1]ACS_16_5YR_B14001_with_ann!W62","v":257},{"$f":"[1]ACS_16_5YR_B15002_with_ann!D62","v":5750},{"$f":"[1]ACS_16_5YR_B15002_with_ann!E62","v":243},{"$f":"[1]ACS_16_5YR_B15002_with_ann!F62","v":2827},{"$f":"[1]ACS_16_5YR_B15002_with_ann!G62","v":210},{"$f":"[1]ACS_16_5YR_B15002_with_ann!H62","v":0},{"$f":"[1]ACS_16_5YR_B15002_with_ann!I62","v":17},{"$f":"[1]ACS_16_5YR_B15002_with_ann!J62","v":0},{"$f":"[1]ACS_16_5YR_B15002_with_ann!K62","v":17},{"$f":"[1]ACS_16_5YR_B15002_with_ann!L62","v":0},{"$f":"[1]ACS_16_5YR_B15002_with_ann!M62","v":17},{"$f":"[1]ACS_16_5YR_B15002_with_ann!N62","v":19},{"$f":"[1]ACS_16_5YR_B15002_with_ann!O62","v":28},{"$f":"[1]ACS_16_5YR_B15002_with_ann!P62","v":85},{"$f":"[1]ACS_16_5YR_B15002_with_ann!Q62","v":138},{"$f":"[1]ACS_16_5YR_B15002_with_ann!R62","v":54},{"$f":"[1]ACS_16_5YR_B15002_with_ann!S62","v":51},{"$f":"[1]ACS_16_5YR_B15002_with_ann!T62","v":63},{"$f":"[1]ACS_16_5YR_B15002_with_ann!U62","v":84},{"$f":"[1]ACS_16_5YR_B15002_with_ann!V62","v":20},{"$f":"[1]ACS_16_5YR_B15002_with_ann!W62","v":32},{"$f":"[1]ACS_16_5YR_B15002_with_ann!X62","v":1253},{"$f":"[1]ACS_16_5YR_B15002_with_ann!Y62","v":291},{"$f":"[1]ACS_16_5YR_B15002_with_ann!Z62","v":262},{"$f":"[1]ACS_16_5YR_B15002_with_ann!AA62","v":163},{"$f":"[1]ACS_16_5YR_B15002_with_ann!AB62","v":251},{"$f":"[1]ACS_16_5YR_B15002_with_ann!AC62","v":122},{"$f":"[1]ACS_16_5YR_B15002_with_ann!AD62","v":144},{"$f":"[1]ACS_16_5YR_B15002_with_ann!AE62","v":114},{"$f":"[1]ACS_16_5YR_B15002_with_ann!AF62","v":454},{"$f":"[1]ACS_16_5YR_B15002_with_ann!AG62","v":173},{"$f":"[1]ACS_16_5YR_B15002_with_ann!AH62","v":202},{"$f":"[1]ACS_16_5YR_B15002_with_ann!AI62","v":99},{"$f":"[1]ACS_16_5YR_B15002_with_ann!AJ62","v":16},{"$f":"[1]ACS_16_5YR_B15002_with_ann!AK62","v":18},{"$f":"[1]ACS_16_5YR_B15002_with_ann!AL62","v":4},{"$f":"[1]ACS_16_5YR_B15002_with_ann!AM62","v":12},{"$f":"[1]ACS_16_5YR_B15002_with_ann!AN62","v":2923},{"$f":"[1]ACS_16_5YR_B15002_with_ann!AO62","v":191},{"$f":"[1]ACS_16_5YR_B15002_with_ann!AP62","v":0},{"$f":"[1]ACS_16_5YR_B15002_with_ann!AQ62","v":17},{"$f":"[1]ACS_16_5YR_B15002_with_ann!AR62","v":0},{"$f":"[1]ACS_16_5YR_B15002_with_ann!AS62","v":17},{"$f":"[1]ACS_16_5YR_B15002_with_ann!AT62","v":0},{"$f":"[1]ACS_16_5YR_B15002_with_ann!AU62","v":17},{"$f":"[1]ACS_16_5YR_B15002_with_ann!AV62","v":17},{"$f":"[1]ACS_16_5YR_B15002_with_ann!AW62","v":25},{"$f":"[1]ACS_16_5YR_B15002_with_ann!AX62","v":0},{"$f":"[1]ACS_16_5YR_B15002_with_ann!AY62","v":17},{"$f":"[1]ACS_16_5YR_B15002_with_ann!AZ62","v":66},{"$f":"[1]ACS_16_5YR_B15002_with_ann!BA62","v":82},{"$f":"[1]ACS_16_5YR_B15002_with_ann!BB62","v":0},{"$f":"[1]ACS_16_5YR_B15002_with_ann!BC62","v":17},{"$f":"[1]ACS_16_5YR_B15002_with_ann!BD62","v":11},{"$f":"[1]ACS_16_5YR_B15002_with_ann!BE62","v":18},{"$f":"[1]ACS_16_5YR_B15002_with_ann!BF62","v":1156},{"$f":"[1]ACS_16_5YR_B15002_with_ann!BG62","v":270},{"$f":"[1]ACS_16_5YR_B15002_with_ann!BH62","v":108},{"$f":"[1]ACS_16_5YR_B15002_with_ann!BI62","v":69},{"$f":"[1]ACS_16_5YR_B15002_with_ann!BJ62","v":372},{"$f":"[1]ACS_16_5YR_B15002_with_ann!BK62","v":152},{"$f":"[1]ACS_16_5YR_B15002_with_ann!BL62","v":454},{"$f":"[1]ACS_16_5YR_B15002_with_ann!BM62","v":188},{"$f":"[1]ACS_16_5YR_B15002_with_ann!BN62","v":452},{"$f":"[1]ACS_16_5YR_B15002_with_ann!BO62","v":167},{"$f":"[1]ACS_16_5YR_B15002_with_ann!BP62","v":225},{"$f":"[1]ACS_16_5YR_B15002_with_ann!BQ62","v":120},{"$f":"[1]ACS_16_5YR_B15002_with_ann!BR62","v":28},{"$f":"[1]ACS_16_5YR_B15002_with_ann!BS62","v":42},{"$f":"[1]ACS_16_5YR_B15002_with_ann!BT62","v":34},{"$f":"[1]ACS_16_5YR_B15002_with_ann!BU62","v":46},null,"Swanzey"]
["06000US3300577380","0600000US3300578420","060",{"$f":"[1]ACS_16_5YR_B14001_with_ann!C63","v":"Troy"},{"$f":"[1]ACS_16_5YR_B14001_with_ann!D63","v":1820},{"$f":"[1]ACS_16_5YR_B14001_with_ann!E63","v":262},{"$f":"[1]ACS_16_5YR_B14001_with_ann!F63","v":374},{"$f":"[1]ACS_16_5YR_B14001_with_ann!G63","v":120},{"$f":"[1]ACS_16_5YR_B14001_with_ann!H63","v":23},{"$f":"[1]ACS_16_5YR_B14001_with_ann!I63","v":30},{"$f":"[1]ACS_16_5YR_B14001_with_ann!J63","v":26},{"$f":"[1]ACS_16_5YR_B14001_with_ann!K63","v":24},{"$f":"[1]ACS_16_5YR_B14001_with_ann!L63","v":91},{"$f":"[1]ACS_16_5YR_B14001_with_ann!M63","v":48},{"$f":"[1]ACS_16_5YR_B14001_with_ann!N63","v":70},{"$f":"[1]ACS_16_5YR_B14001_with_ann!O63","v":41},{"$f":"[1]ACS_16_5YR_B14001_with_ann!P63","v":62},{"$f":"[1]ACS_16_5YR_B14001_with_ann!Q63","v":56},{"$f":"[1]ACS_16_5YR_B14001_with_ann!R63","v":78},{"$f":"[1]ACS_16_5YR_B14001_with_ann!S63","v":50},{"$f":"[1]ACS_16_5YR_B14001_with_ann!T63","v":24},{"$f":"[1]ACS_16_5YR_B14001_with_ann!U63","v":22},{"$f":"[1]ACS_16_5YR_B14001_with_ann!V63","v":1446},{"$f":"[1]ACS_16_5YR_B14001_with_ann!W63","v":221},{"$f":"[1]ACS_16_5YR_B15002_with_ann!D63","v":1414},{"$f":"[1]ACS_16_5YR_B15002_with_ann!E63","v":203},{"$f":"[1]ACS_16_5YR_B15002_with_ann!F63","v":743},{"$f":"[1]ACS_16_5YR_B15002_with_ann!G63","v":134},{"$f":"[1]ACS_16_5YR_B15002_with_ann!H63","v":0},{"$f":"[1]ACS_16_5YR_B15002_with_ann!I63","v":12},{"$f":"[1]ACS_16_5YR_B15002_with_ann!J63","v":0},{"$f":"[1]ACS_16_5YR_B15002_with_ann!K63","v":12},{"$f":"[1]ACS_16_5YR_B15002_with_ann!L63","v":0},{"$f":"[1]ACS_16_5YR_B15002_with_ann!M63","v":12},{"$f":"[1]ACS_16_5YR_B15002_with_ann!N63","v":0},{"$f":"[1]ACS_16_5YR_B15002_with_ann!O63","v":12},{"$f":"[1]ACS_16_5YR_B15002_with_ann!P63","v":21},{"$f":"[1]ACS_16_5YR_B15002_with_ann!Q63","v":32},{"$f":"[1]ACS_16_5YR_B15002_with_ann!R63","v":19},{"$f":"[1]ACS_16_5YR_B15002_with_ann!S63","v":18},{"$f":"[1]ACS_16_5YR_B15002_with_ann!T63","v":0},{"$f":"[1]ACS_16_5YR_B15002_with_ann!U63","v":12},{"$f":"[1]ACS_16_5YR_B15002_with_ann!V63","v":0},{"$f":"[1]ACS_16_5YR_B15002_with_ann!W63","v":12},{"$f":"[1]ACS_16_5YR_B15002_with_ann!X63","v":361},{"$f":"[1]ACS_16_5YR_B15002_with_ann!Y63","v":113},{"$f":"[1]ACS_16_5YR_B15002_with_ann!Z63","v":63},{"$f":"[1]ACS_16_5YR_B15002_with_ann!AA63","v":33},{"$f":"[1]ACS_16_5YR_B15002_with_ann!AB63","v":76},{"$f":"[1]ACS_16_5YR_B15002_with_ann!AC63","v":53},{"$f":"[1]ACS_16_5YR_B15002_with_ann!AD63","v":13},{"$f":"[1]ACS_16_5YR_B15002_with_ann!AE63","v":14},{"$f":"[1]ACS_16_5YR_B15002_with_ann!AF63","v":139},{"$f":"[1]ACS_16_5YR_B15002_with_ann!AG63","v":50},{"$f":"[1]ACS_16_5YR_B15002_with_ann!AH63","v":36},{"$f":"[1]ACS_16_5YR_B15002_with_ann!AI63","v":29},{"$f":"[1]ACS_16_5YR_B15002_with_ann!AJ63","v":0},{"$f":"[1]ACS_16_5YR_B15002_with_ann!AK63","v":12},{"$f":"[1]ACS_16_5YR_B15002_with_ann!AL63","v":15},{"$f":"[1]ACS_16_5YR_B15002_with_ann!AM63","v":16},{"$f":"[1]ACS_16_5YR_B15002_with_ann!AN63","v":671},{"$f":"[1]ACS_16_5YR_B15002_with_ann!AO63","v":96},{"$f":"[1]ACS_16_5YR_B15002_with_ann!AP63","v":0},{"$f":"[1]ACS_16_5YR_B15002_with_ann!AQ63","v":12},{"$f":"[1]ACS_16_5YR_B15002_with_ann!AR63","v":0},{"$f":"[1]ACS_16_5YR_B15002_with_ann!AS63","v":12},{"$f":"[1]ACS_16_5YR_B15002_with_ann!AT63","v":0},{"$f":"[1]ACS_16_5YR_B15002_with_ann!AU63","v":12},{"$f":"[1]ACS_16_5YR_B15002_with_ann!AV63","v":13},{"$f":"[1]ACS_16_5YR_B15002_with_ann!AW63","v":19},{"$f":"[1]ACS_16_5YR_B15002_with_ann!AX63","v":4},{"$f":"[1]ACS_16_5YR_B15002_with_ann!AY63","v":7},{"$f":"[1]ACS_16_5YR_B15002_with_ann!AZ63","v":0},{"$f":"[1]ACS_16_5YR_B15002_with_ann!BA63","v":12},{"$f":"[1]ACS_16_5YR_B15002_with_ann!BB63","v":23},{"$f":"[1]ACS_16_5YR_B15002_with_ann!BC63","v":26},{"$f":"[1]ACS_16_5YR_B15002_with_ann!BD63","v":8},{"$f":"[1]ACS_16_5YR_B15002_with_ann!BE63","v":12},{"$f":"[1]ACS_16_5YR_B15002_with_ann!BF63","v":238},{"$f":"[1]ACS_16_5YR_B15002_with_ann!BG63","v":76},{"$f":"[1]ACS_16_5YR_B15002_with_ann!BH63","v":16},{"$f":"[1]ACS_16_5YR_B15002_with_ann!BI63","v":16},{"$f":"[1]ACS_16_5YR_B15002_with_ann!BJ63","v":114},{"$f":"[1]ACS_16_5YR_B15002_with_ann!BK63","v":43},{"$f":"[1]ACS_16_5YR_B15002_with_ann!BL63","v":65},{"$f":"[1]ACS_16_5YR_B15002_with_ann!BM63","v":35},{"$f":"[1]ACS_16_5YR_B15002_with_ann!BN63","v":119},{"$f":"[1]ACS_16_5YR_B15002_with_ann!BO63","v":44},{"$f":"[1]ACS_16_5YR_B15002_with_ann!BP63","v":66},{"$f":"[1]ACS_16_5YR_B15002_with_ann!BQ63","v":38},{"$f":"[1]ACS_16_5YR_B15002_with_ann!BR63","v":0},{"$f":"[1]ACS_16_5YR_B15002_with_ann!BS63","v":12},{"$f":"[1]ACS_16_5YR_B15002_with_ann!BT63","v":5},{"$f":"[1]ACS_16_5YR_B15002_with_ann!BU63","v":7},null,"Troy"]
["06000US3300578420","0600000US3300582660","060",{"$f":"[1]ACS_16_5YR_B14001_with_ann!C64","v":"Walpole"},{"$f":"[1]ACS_16_5YR_B14001_with_ann!D64","v":3428},{"$f":"[1]ACS_16_5YR_B14001_with_ann!E64","v":115},{"$f":"[1]ACS_16_5YR_B14001_with_ann!F64","v":694},{"$f":"[1]ACS_16_5YR_B14001_with_ann!G64","v":163},{"$f":"[1]ACS_16_5YR_B14001_with_ann!H64","v":25},{"$f":"[1]ACS_16_5YR_B14001_with_ann!I64","v":18},{"$f":"[1]ACS_16_5YR_B14001_with_ann!J64","v":62},{"$f":"[1]ACS_16_5YR_B14001_with_ann!K64","v":36},{"$f":"[1]ACS_16_5YR_B14001_with_ann!L64","v":98},{"$f":"[1]ACS_16_5YR_B14001_with_ann!M64","v":54},{"$f":"[1]ACS_16_5YR_B14001_with_ann!N64","v":159},{"$f":"[1]ACS_16_5YR_B14001_with_ann!O64","v":79},{"$f":"[1]ACS_16_5YR_B14001_with_ann!P64","v":260},{"$f":"[1]ACS_16_5YR_B14001_with_ann!Q64","v":147},{"$f":"[1]ACS_16_5YR_B14001_with_ann!R64","v":71},{"$f":"[1]ACS_16_5YR_B14001_with_ann!S64","v":78},{"$f":"[1]ACS_16_5YR_B14001_with_ann!T64","v":19},{"$f":"[1]ACS_16_5YR_B14001_with_ann!U64","v":29},{"$f":"[1]ACS_16_5YR_B14001_with_ann!V64","v":2734},{"$f":"[1]ACS_16_5YR_B14001_with_ann!W64","v":174},{"$f":"[1]ACS_16_5YR_B15002_with_ann!D64","v":2529},{"$f":"[1]ACS_16_5YR_B15002_with_ann!E64","v":131},{"$f":"[1]ACS_16_5YR_B15002_with_ann!F64","v":1168},{"$f":"[1]ACS_16_5YR_B15002_with_ann!G64","v":130},{"$f":"[1]ACS_16_5YR_B15002_with_ann!H64","v":8},{"$f":"[1]ACS_16_5YR_B15002_with_ann!I64","v":14},{"$f":"[1]ACS_16_5YR_B15002_with_ann!J64","v":31},{"$f":"[1]ACS_16_5YR_B15002_with_ann!K64","v":36},{"$f":"[1]ACS_16_5YR_B15002_with_ann!L64","v":25},{"$f":"[1]ACS_16_5YR_B15002_with_ann!M64","v":38},{"$f":"[1]ACS_16_5YR_B15002_with_ann!N64","v":0},{"$f":"[1]ACS_16_5YR_B15002_with_ann!O64","v":12},{"$f":"[1]ACS_16_5YR_B15002_with_ann!P64","v":0},{"$f":"[1]ACS_16_5YR_B15002_with_ann!Q64","v":12},{"$f":"[1]ACS_16_5YR_B15002_with_ann!R64","v":32},{"$f":"[1]ACS_16_5YR_B15002_with_ann!S64","v":30},{"$f":"[1]ACS_16_5YR_B15002_with_ann!T64","v":0},{"$f":"[1]ACS_16_5YR_B15002_with_ann!U64","v":12},{"$f":"[1]ACS_16_5YR_B15002_with_ann!V64","v":0},{"$f":"[1]ACS_16_5YR_B15002_with_ann!W64","v":12},{"$f":"[1]ACS_16_5YR_B15002_with_ann!X64","v":326},{"$f":"[1]ACS_16_5YR_B15002_with_ann!Y64","v":105},{"$f":"[1]ACS_16_5YR_B15002_with_ann!Z64","v":56},{"$f":"[1]ACS_16_5YR_B15002_with_ann!AA64","v":38},{"$f":"[1]ACS_16_5YR_B15002_with_ann!AB64","v":213},{"$f":"[1]ACS_16_5YR_B15002_with_ann!AC64","v":93},{"$f":"[1]ACS_16_5YR_B15002_with_ann!AD64","v":123},{"$f":"[1]ACS_16_5YR_B15002_with_ann!AE64","v":84},{"$f":"[1]ACS_16_5YR_B15002_with_ann!AF64","v":250},{"$f":"[1]ACS_16_5YR_B15002_with_ann!AG64","v":65},{"$f":"[1]ACS_16_5YR_B15002_with_ann!AH64","v":72},{"$f":"[1]ACS_16_5YR_B15002_with_ann!AI64","v":50},{"$f":"[1]ACS_16_5YR_B15002_with_ann!AJ64","v":14},{"$f":"[1]ACS_16_5YR_B15002_with_ann!AK64","v":16},{"$f":"[1]ACS_16_5YR_B15002_with_ann!AL64","v":18},{"$f":"[1]ACS_16_5YR_B15002_with_ann!AM64","v":18},{"$f":"[1]ACS_16_5YR_B15002_with_ann!AN64","v":1361},{"$f":"[1]ACS_16_5YR_B15002_with_ann!AO64","v":126},{"$f":"[1]ACS_16_5YR_B15002_with_ann!AP64","v":8},{"$f":"[1]ACS_16_5YR_B15002_with_ann!AQ64","v":12},{"$f":"[1]ACS_16_5YR_B15002_with_ann!AR64","v":0},{"$f":"[1]ACS_16_5YR_B15002_with_ann!AS64","v":12},{"$f":"[1]ACS_16_5YR_B15002_with_ann!AT64","v":0},{"$f":"[1]ACS_16_5YR_B15002_with_ann!AU64","v":12},{"$f":"[1]ACS_16_5YR_B15002_with_ann!AV64","v":102},{"$f":"[1]ACS_16_5YR_B15002_with_ann!AW64","v":112},{"$f":"[1]ACS_16_5YR_B15002_with_ann!AX64","v":0},{"$f":"[1]ACS_16_5YR_B15002_with_ann!AY64","v":12},{"$f":"[1]ACS_16_5YR_B15002_with_ann!AZ64","v":0},{"$f":"[1]ACS_16_5YR_B15002_with_ann!BA64","v":12},{"$f":"[1]ACS_16_5YR_B15002_with_ann!BB64","v":6},{"$f":"[1]ACS_16_5YR_B15002_with_ann!BC64","v":11},{"$f":"[1]ACS_16_5YR_B15002_with_ann!BD64","v":24},{"$f":"[1]ACS_16_5YR_B15002_with_ann!BE64","v":28},{"$f":"[1]ACS_16_5YR_B15002_with_ann!BF64","v":402},{"$f":"[1]ACS_16_5YR_B15002_with_ann!BG64","v":117},{"$f":"[1]ACS_16_5YR_B15002_with_ann!BH64","v":68},{"$f":"[1]ACS_16_5YR_B15002_with_ann!BI64","v":44},{"$f":"[1]ACS_16_5YR_B15002_with_ann!BJ64","v":94},{"$f":"[1]ACS_16_5YR_B15002_with_ann!BK64","v":51},{"$f":"[1]ACS_16_5YR_B15002_with_ann!BL64","v":197},{"$f":"[1]ACS_16_5YR_B15002_with_ann!BM64","v":122},{"$f":"[1]ACS_16_5YR_B15002_with_ann!BN64","v":283},{"$f":"[1]ACS_16_5YR_B15002_with_ann!BO64","v":76},{"$f":"[1]ACS_16_5YR_B15002_with_ann!BP64","v":149},{"$f":"[1]ACS_16_5YR_B15002_with_ann!BQ64","v":76},{"$f":"[1]ACS_16_5YR_B15002_with_ann!BR64","v":28},{"$f":"[1]ACS_16_5YR_B15002_with_ann!BS64","v":26},{"$f":"[1]ACS_16_5YR_B15002_with_ann!BT64","v":0},{"$f":"[1]ACS_16_5YR_B15002_with_ann!BU64","v":12},null,"Walpole"]
["06000US3300582660","0600000US3300585540","060",{"$f":"[1]ACS_16_5YR_B14001_with_ann!C65","v":"Westmoreland"},{"$f":"[1]ACS_16_5YR_B14001_with_ann!D65","v":1998},{"$f":"[1]ACS_16_5YR_B14001_with_ann!E65","v":336},{"$f":"[1]ACS_16_5YR_B14001_with_ann!F65","v":323},{"$f":"[1]ACS_16_5YR_B14001_with_ann!G65","v":113},{"$f":"[1]ACS_16_5YR_B14001_with_ann!H65","v":29},{"$f":"[1]ACS_16_5YR_B14001_with_ann!I65","v":30},{"$f":"[1]ACS_16_5YR_B14001_with_ann!J65","v":7},{"$f":"[1]ACS_16_5YR_B14001_with_ann!K65","v":6},{"$f":"[1]ACS_16_5YR_B14001_with_ann!L65","v":94},{"$f":"[1]ACS_16_5YR_B14001_with_ann!M65","v":67},{"$f":"[1]ACS_16_5YR_B14001_with_ann!N65","v":61},{"$f":"[1]ACS_16_5YR_B14001_with_ann!O65","v":29},{"$f":"[1]ACS_16_5YR_B14001_with_ann!P65","v":50},{"$f":"[1]ACS_16_5YR_B14001_with_ann!Q65","v":27},{"$f":"[1]ACS_16_5YR_B14001_with_ann!R65","v":19},{"$f":"[1]ACS_16_5YR_B14001_with_ann!S65","v":15},{"$f":"[1]ACS_16_5YR_B14001_with_ann!T65","v":63},{"$f":"[1]ACS_16_5YR_B14001_with_ann!U65","v":45},{"$f":"[1]ACS_16_5YR_B14001_with_ann!V65","v":1675},{"$f":"[1]ACS_16_5YR_B14001_with_ann!W65","v":294},{"$f":"[1]ACS_16_5YR_B15002_with_ann!D65","v":1624},{"$f":"[1]ACS_16_5YR_B15002_with_ann!E65","v":284},{"$f":"[1]ACS_16_5YR_B15002_with_ann!F65","v":758},{"$f":"[1]ACS_16_5YR_B15002_with_ann!G65","v":152},{"$f":"[1]ACS_16_5YR_B15002_with_ann!H65","v":6},{"$f":"[1]ACS_16_5YR_B15002_with_ann!I65","v":6},{"$f":"[1]ACS_16_5YR_B15002_with_ann!J65","v":0},{"$f":"[1]ACS_16_5YR_B15002_with_ann!K65","v":12},{"$f":"[1]ACS_16_5YR_B15002_with_ann!L65","v":0},{"$f":"[1]ACS_16_5YR_B15002_with_ann!M65","v":12},{"$f":"[1]ACS_16_5YR_B15002_with_ann!N65","v":0},{"$f":"[1]ACS_16_5YR_B15002_with_ann!O65","v":12},{"$f":"[1]ACS_16_5YR_B15002_with_ann!P65","v":0},{"$f":"[1]ACS_16_5YR_B15002_with_ann!Q65","v":12},{"$f":"[1]ACS_16_5YR_B15002_with_ann!R65","v":3},{"$f":"[1]ACS_16_5YR_B15002_with_ann!S65","v":4},{"$f":"[1]ACS_16_5YR_B15002_with_ann!T65","v":8},{"$f":"[1]ACS_16_5YR_B15002_with_ann!U65","v":15},{"$f":"[1]ACS_16_5YR_B15002_with_ann!V65","v":4},{"$f":"[1]ACS_16_5YR_B15002_with_ann!W65","v":6},{"$f":"[1]ACS_16_5YR_B15002_with_ann!X65","v":171},{"$f":"[1]ACS_16_5YR_B15002_with_ann!Y65","v":46},{"$f":"[1]ACS_16_5YR_B15002_with_ann!Z65","v":52},{"$f":"[1]ACS_16_5YR_B15002_with_ann!AA65","v":31},{"$f":"[1]ACS_16_5YR_B15002_with_ann!AB65","v":64},{"$f":"[1]ACS_16_5YR_B15002_with_ann!AC65","v":49},{"$f":"[1]ACS_16_5YR_B15002_with_ann!AD65","v":81},{"$f":"[1]ACS_16_5YR_B15002_with_ann!AE65","v":64},{"$f":"[1]ACS_16_5YR_B15002_with_ann!AF65","v":217},{"$f":"[1]ACS_16_5YR_B15002_with_ann!AG65","v":88},{"$f":"[1]ACS_16_5YR_B15002_with_ann!AH65","v":105},{"$f":"[1]ACS_16_5YR_B15002_with_ann!AI65","v":52},{"$f":"[1]ACS_16_5YR_B15002_with_ann!AJ65","v":39},{"$f":"[1]ACS_16_5YR_B15002_with_ann!AK65","v":25},{"$f":"[1]ACS_16_5YR_B15002_with_ann!AL65","v":8},{"$f":"[1]ACS_16_5YR_B15002_with_ann!AM65","v":10},{"$f":"[1]ACS_16_5YR_B15002_with_ann!AN65","v":866},{"$f":"[1]ACS_16_5YR_B15002_with_ann!AO65","v":171},{"$f":"[1]ACS_16_5YR_B15002_with_ann!AP65","v":0},{"$f":"[1]ACS_16_5YR_B15002_with_ann!AQ65","v":12},{"$f":"[1]ACS_16_5YR_B15002_with_ann!AR65","v":4},{"$f":"[1]ACS_16_5YR_B15002_with_ann!AS65","v":8},{"$f":"[1]ACS_16_5YR_B15002_with_ann!AT65","v":0},{"$f":"[1]ACS_16_5YR_B15002_with_ann!AU65","v":12},{"$f":"[1]ACS_16_5YR_B15002_with_ann!AV65","v":22},{"$f":"[1]ACS_16_5YR_B15002_with_ann!AW65","v":24},{"$f":"[1]ACS_16_5YR_B15002_with_ann!AX65","v":0},{"$f":"[1]ACS_16_5YR_B15002_with_ann!AY65","v":12},{"$f":"[1]ACS_16_5YR_B15002_with_ann!AZ65","v":3},{"$f":"[1]ACS_16_5YR_B15002_with_ann!BA65","v":5},{"$f":"[1]ACS_16_5YR_B15002_with_ann!BB65","v":0},{"$f":"[1]ACS_16_5YR_B15002_with_ann!BC65","v":12},{"$f":"[1]ACS_16_5YR_B15002_with_ann!BD65","v":3},{"$f":"[1]ACS_16_5YR_B15002_with_ann!BE65","v":5},{"$f":"[1]ACS_16_5YR_B15002_with_ann!BF65","v":192},{"$f":"[1]ACS_16_5YR_B15002_with_ann!BG65","v":87},{"$f":"[1]ACS_16_5YR_B15002_with_ann!BH65","v":32},{"$f":"[1]ACS_16_5YR_B15002_with_ann!BI65","v":21},{"$f":"[1]ACS_16_5YR_B15002_with_ann!BJ65","v":126},{"$f":"[1]ACS_16_5YR_B15002_with_ann!BK65","v":106},{"$f":"[1]ACS_16_5YR_B15002_with_ann!BL65","v":64},{"$f":"[1]ACS_16_5YR_B15002_with_ann!BM65","v":34},{"$f":"[1]ACS_16_5YR_B15002_with_ann!BN65","v":262},{"$f":"[1]ACS_16_5YR_B15002_with_ann!BO65","v":80},{"$f":"[1]ACS_16_5YR_B15002_with_ann!BP65","v":129},{"$f":"[1]ACS_16_5YR_B15002_with_ann!BQ65","v":67},{"$f":"[1]ACS_16_5YR_B15002_with_ann!BR65","v":17},{"$f":"[1]ACS_16_5YR_B15002_with_ann!BS65","v":16},{"$f":"[1]ACS_16_5YR_B15002_with_ann!BT65","v":12},{"$f":"[1]ACS_16_5YR_B15002_with_ann!BU65","v":17},null,"Westmoreland"]
["06000US3300585540","0600000US3300500820","060",{"$f":"[1]ACS_16_5YR_B14001_with_ann!C66","v":"Winchester"},{"$f":"[1]ACS_16_5YR_B14001_with_ann!D66","v":3951},{"$f":"[1]ACS_16_5YR_B14001_with_ann!E66","v":111},{"$f":"[1]ACS_16_5YR_B14001_with_ann!F66","v":773},{"$f":"[1]ACS_16_5YR_B14001_with_ann!G66","v":236},{"$f":"[1]ACS_16_5YR_B14001_with_ann!H66","v":79},{"$f":"[1]ACS_16_5YR_B14001_with_ann!I66","v":52},{"$f":"[1]ACS_16_5YR_B14001_with_ann!J66","v":37},{"$f":"[1]ACS_16_5YR_B14001_with_ann!K66","v":40},{"$f":"[1]ACS_16_5YR_B14001_with_ann!L66","v":163},{"$f":"[1]ACS_16_5YR_B14001_with_ann!M66","v":95},{"$f":"[1]ACS_16_5YR_B14001_with_ann!N66","v":159},{"$f":"[1]ACS_16_5YR_B14001_with_ann!O66","v":127},{"$f":"[1]ACS_16_5YR_B14001_with_ann!P66","v":254},{"$f":"[1]ACS_16_5YR_B14001_with_ann!Q66","v":131},{"$f":"[1]ACS_16_5YR_B14001_with_ann!R66","v":75},{"$f":"[1]ACS_16_5YR_B14001_with_ann!S66","v":60},{"$f":"[1]ACS_16_5YR_B14001_with_ann!T66","v":6},{"$f":"[1]ACS_16_5YR_B14001_with_ann!U66","v":11},{"$f":"[1]ACS_16_5YR_B14001_with_ann!V66","v":3178},{"$f":"[1]ACS_16_5YR_B14001_with_ann!W66","v":213},{"$f":"[1]ACS_16_5YR_B15002_with_ann!D66","v":2876},{"$f":"[1]ACS_16_5YR_B15002_with_ann!E66","v":231},{"$f":"[1]ACS_16_5YR_B15002_with_ann!F66","v":1427},{"$f":"[1]ACS_16_5YR_B15002_with_ann!G66","v":186},{"$f":"[1]ACS_16_5YR_B15002_with_ann!H66","v":47},{"$f":"[1]ACS_16_5YR_B15002_with_ann!I66","v":57},{"$f":"[1]ACS_16_5YR_B15002_with_ann!J66","v":0},{"$f":"[1]ACS_16_5YR_B15002_with_ann!K66","v":12},{"$f":"[1]ACS_16_5YR_B15002_with_ann!L66","v":0},{"$f":"[1]ACS_16_5YR_B15002_with_ann!M66","v":12},{"$f":"[1]ACS_16_5YR_B15002_with_ann!N66","v":53},{"$f":"[1]ACS_16_5YR_B15002_with_ann!O66","v":50},{"$f":"[1]ACS_16_5YR_B15002_with_ann!P66","v":0},{"$f":"[1]ACS_16_5YR_B15002_with_ann!Q66","v":12},{"$f":"[1]ACS_16_5YR_B15002_with_ann!R66","v":59},{"$f":"[1]ACS_16_5YR_B15002_with_ann!S66","v":38},{"$f":"[1]ACS_16_5YR_B15002_with_ann!T66","v":81},{"$f":"[1]ACS_16_5YR_B15002_with_ann!U66","v":58},{"$f":"[1]ACS_16_5YR_B15002_with_ann!V66","v":10},{"$f":"[1]ACS_16_5YR_B15002_with_ann!W66","v":19},{"$f":"[1]ACS_16_5YR_B15002_with_ann!X66","v":753},{"$f":"[1]ACS_16_5YR_B15002_with_ann!Y66","v":160},{"$f":"[1]ACS_16_5YR_B15002_with_ann!Z66","v":56},{"$f":"[1]ACS_16_5YR_B15002_with_ann!AA66","v":41},{"$f":"[1]ACS_16_5YR_B15002_with_ann!AB66","v":107},{"$f":"[1]ACS_16_5YR_B15002_with_ann!AC66","v":68},{"$f":"[1]ACS_16_5YR_B15002_with_ann!AD66","v":104},{"$f":"[1]ACS_16_5YR_B15002_with_ann!AE66","v":60},{"$f":"[1]ACS_16_5YR_B15002_with_ann!AF66","v":97},{"$f":"[1]ACS_16_5YR_B15002_with_ann!AG66","v":54},{"$f":"[1]ACS_16_5YR_B15002_with_ann!AH66","v":41},{"$f":"[1]ACS_16_5YR_B15002_with_ann!AI66","v":42},{"$f":"[1]ACS_16_5YR_B15002_with_ann!AJ66","v":0},{"$f":"[1]ACS_16_5YR_B15002_with_ann!AK66","v":12},{"$f":"[1]ACS_16_5YR_B15002_with_ann!AL66","v":19},{"$f":"[1]ACS_16_5YR_B15002_with_ann!AM66","v":21},{"$f":"[1]ACS_16_5YR_B15002_with_ann!AN66","v":1449},{"$f":"[1]ACS_16_5YR_B15002_with_ann!AO66","v":148},{"$f":"[1]ACS_16_5YR_B15002_with_ann!AP66","v":14},{"$f":"[1]ACS_16_5YR_B15002_with_ann!AQ66","v":22},{"$f":"[1]ACS_16_5YR_B15002_with_ann!AR66","v":0},{"$f":"[1]ACS_16_5YR_B15002_with_ann!AS66","v":12},{"$f":"[1]ACS_16_5YR_B15002_with_ann!AT66","v":0},{"$f":"[1]ACS_16_5YR_B15002_with_ann!AU66","v":12},{"$f":"[1]ACS_16_5YR_B15002_with_ann!AV66","v":0},{"$f":"[1]ACS_16_5YR_B15002_with_ann!AW66","v":12},{"$f":"[1]ACS_16_5YR_B15002_with_ann!AX66","v":43},{"$f":"[1]ACS_16_5YR_B15002_with_ann!AY66","v":41},{"$f":"[1]ACS_16_5YR_B15002_with_ann!AZ66","v":31},{"$f":"[1]ACS_16_5YR_B15002_with_ann!BA66","v":28},{"$f":"[1]ACS_16_5YR_B15002_with_ann!BB66","v":10},{"$f":"[1]ACS_16_5YR_B15002_with_ann!BC66","v":21},{"$f":"[1]ACS_16_5YR_B15002_with_ann!BD66","v":35},{"$f":"[1]ACS_16_5YR_B15002_with_ann!BE66","v":38},{"$f":"[1]ACS_16_5YR_B15002_with_ann!BF66","v":542},{"$f":"[1]ACS_16_5YR_B15002_with_ann!BG66","v":144},{"$f":"[1]ACS_16_5YR_B15002_with_ann!BH66","v":188},{"$f":"[1]ACS_16_5YR_B15002_with_ann!BI66","v":96},{"$f":"[1]ACS_16_5YR_B15002_with_ann!BJ66","v":160},{"$f":"[1]ACS_16_5YR_B15002_with_ann!BK66","v":78},{"$f":"[1]ACS_16_5YR_B15002_with_ann!BL66","v":161},{"$f":"[1]ACS_16_5YR_B15002_with_ann!BM66","v":86},{"$f":"[1]ACS_16_5YR_B15002_with_ann!BN66","v":134},{"$f":"[1]ACS_16_5YR_B15002_with_ann!BO66","v":64},{"$f":"[1]ACS_16_5YR_B15002_with_ann!BP66","v":120},{"$f":"[1]ACS_16_5YR_B15002_with_ann!BQ66","v":99},{"$f":"[1]ACS_16_5YR_B15002_with_ann!BR66","v":11},{"$f":"[1]ACS_16_5YR_B15002_with_ann!BS66","v":18},{"$f":"[1]ACS_16_5YR_B15002_with_ann!BT66","v":0},{"$f":"[1]ACS_16_5YR_B15002_with_ann!BU66","v":12},null,"Winchester"]
[]
[]
[null,null,null,null,{"$f":"$D$3","v":"Alstead"},null,{"$f":"$D$4","v":"Chesterfield"},null,{"$f":"$D$5","v":"Dublin"},null,{"$f":"$D$6","v":"Fitzwilliam"},null,{"$f":"$D$7","v":"Gilsum"},null,{"$f":"$D$8","v":"Harrisville"},null,{"$f":"$D$9","v":"Hinsdale"},null,{"$f":"$D$10","v":"Jaffrey"},null,{"$f":"$D$11","v":"Keene"},null,{"$f":"$D$12","v":"Marlborough"},null,{"$f":"$D$13","v":"Marlow"},null,{"$f":"$D$14","v":"Nelson"},null,{"$f":"$D$15","v":"Richmond"},null,{"$f":"$D$16","v":"Rindge"},null,{"$f":"$D$17","v":"Roxbury"},null,{"$f":"$D$18","v":"Stoddard"},null,{"$f":"$D$19","v":"Sullivan"},null,{"$f":"$D$20","v":"Surry"},null,{"$f":"$D$21","v":"Swanzey"},null,{"$f":"$D$22","v":"Troy"},null,{"$f":"$D$23","v":"Walpole"},null,{"$f":"$D$24","v":"Westmoreland"},null,{"$f":"$D$25","v":"Winchester"}]
[null,null,null,null,"Estimate","Margin of Error","Estimate","Margin of Error","Estimate","Margin of Error","Estimate","Margin of Error","Estimate","Margin of Error","Estimate","Margin of Error","Estimate","Margin of Error","Estimate","Margin of Error","Estimate","Margin of Error","Estimate","Margin of Error","Estimate","Margin of Error","Estimate","Margin of Error","Estimate","Margin of Error","Estimate","Margin of Error","Estimate","Margin of Error","Estimate","Margin of Error","Estimate","Margin of Error","Estimate","Margin of Error","Estimate","Margin of Error","Estimate","Margin of Error","Estimate","Margin of Error","Estimate","Margin of Error","Estimate","Margin of Error"]
[]
[null,null,null,"Estimate!!Total:",1581,172,3522,46,1676,212,2236,360,825,137,958,193,3911,51,5277,96,22399,133,2082,340,788,169,533,105,1076,238,6302,99,263,111,1169,156,644,113,901,210,7177,99,1820,262,3428,115,1998,336,3951,111]
[null,null,null,"Estimate!!Total:!!Enrolled in school:",287,85,719,148,348,88,274,83,128,62,158,67,532,185,1405,220,6535,471,433,152,205,85,75,34,168,66,2000,191,66,54,256,95,93,32,209,131,1284,288,374,120,694,163,323,113,773,236]
[null,null,null,"Estimate!!Total:!!Enrolled in school:!!Enrolled in nursery school",13,13,53,44,4,6,8,9,11,10,16,15,36,39,38,50,298,134,21,26,16,19,2,3,16,15,110,79,7,6,16,11,16,13,6,7,103,51,23,30,25,18,29,30,79,52]
[null,null,null,"Estimate!!Total:!!Enrolled in school:!!Enrolled in kindergarten",8,8,17,26,10,9,30,36,14,15,7,7,27,36,152,85,175,60,7,8,3,6,5,7,5,5,58,41,0,12,4,6,0,12,4,4,44,43,26,24,62,36,7,6,37,40]
[null,null,null,"Estimate!!Total:!!Enrolled in school:!!Enrolled in grade 1 to grade 4",56,24,212,75,52,29,44,20,31,28,53,38,150,77,219,97,708,182,17,15,32,19,33,22,55,33,244,75,4,4,60,28,25,14,52,56,314,114,91,48,98,54,94,67,163,95]
[null,null,null,"Estimate!!Total:!!Enrolled in school:!!Enrolled in grade 5 to grade 8",64,43,242,71,111,39,81,38,2,3,23,22,141,58,495,180,744,197,127,69,89,50,13,12,48,25,238,112,2,3,82,34,11,8,38,22,376,136,70,41,159,79,61,29,159,127]
[null,null,null,"Estimate!!Total:!!Enrolled in school:!!Enrolled in grade 9 to grade 12",78,32,125,90,79,36,58,38,48,32,17,13,89,95,305,125,833,234,168,88,50,36,13,14,25,15,245,107,4,6,47,33,18,12,35,27,217,139,62,56,260,147,50,27,254,131]
[null,null,null,"Estimate!!Total:!!Enrolled in school:!!Enrolled in college, undergraduate years",51,27,5,12,67,24,42,24,17,17,31,21,89,72,172,115,3322,351,86,48,13,11,3,4,13,11,1086,93,47,56,31,20,13,13,70,75,151,122,78,50,71,78,19,15,75,60]
[null,null,null,"Estimate!!Total:!!Enrolled in school:!!Graduate or professional school",17,16,65,71,25,34,11,11,5,9,11,10,0,12,24,39,455,159,7,13,2,4,6,6,6,9,19,25,2,3,16,12,10,13,4,5,79,105,24,22,19,29,63,45,6,11]
[null,null,null,"Estimate!!Total:!!Not enrolled in school",1294,134,2803,162,1328,188,1962,332,697,130,800,156,3379,179,3872,252,15864,456,1649,258,583,113,458,87,908,211,4302,183,197,68,913,110,551,93,692,117,5893,257,1446,221,2734,174,1675,294,3178,213]
[]
["Table  B15002"]
[null,null,null,"Estimate!!Total:",1281,141,2694,196,1278,183,1897,332,625,101,792,140,3044,195,3844,226,15145,401,1584,244,570,115,448,77,825,176,3998,171,181,63,895,109,543,93,723,150,5750,243,1414,203,2529,131,1624,284,2876,231]
[null,null,null,"Estimate!!Total:!!Male:",610,87,1335,150,606,102,1008,198,311,60,363,66,1653,203,2021,221,7132,379,705,126,287,58,213,38,422,125,2024,134,86,37,423,57,276,58,325,58,2827,210,743,134,1168,130,758,152,1427,186]
[null,null,null,"Estimate!!Total:!!Male:!!No schooling completed",0,12,0,12,0,12,1,3,0,12,0,12,20,19,11,20,164,116,7,10,0,12,0,12,0,12,0,17,1,2,11,14,3,3,4,5,0,17,0,12,8,14,6,6,47,57]
[null,null,null,"Estimate!!Total:!!Male:!!Nursery to 4th grade",0,12,0,12,8,12,0,12,3,8,0,12,31,41,2,7,0,22,0,12,0,12,0,12,0,12,0,17,0,12,0,12,0,12,0,12,0,17,0,12,31,36,0,12,0,12]
[null,null,null,"Estimate!!Total:!!Male:!!5th and 6th grade",0,12,0,12,0,12,0,12,0,12,0,12,0,12,0,17,0,22,0,12,0,12,0,12,0,12,0,17,0,12,0,12,0,12,0,12,0,17,0,12,25,38,0,12,0,12]
[null,null,null,"Estimate!!Total:!!Male:!!7th and 8th grade",8,11,0,12,0,12,41,27,6,7,0,12,25,28,13,21,85,76,0,12,0,12,0,12,11,15,0,17,0,12,0,12,6,6,0,12,19,28,0,12,0,12,0,12,53,50]
[null,null,null,"Estimate!!Total:!!Male:!!9th grade",2,3,0,12,5,6,0,12,4,4,3,5,0,12,10,19,46,33,23,32,0,12,0,12,0,12,18,21,0,12,0,12,0,12,0,12,85,138,21,32,0,12,0,12,0,12]
[null,null,null,"Estimate!!Total:!!Male:!!10th grade",11,10,15,24,6,7,3,5,2,3,3,4,127,101,0,17,67,50,17,15,0,12,0,12,10,14,6,10,2,3,0,12,7,6,2,3,54,51,19,18,32,30,3,4,59,38]
[null,null,null,"Estimate!!Total:!!Male:!!11th grade",2,3,0,12,6,6,7,7,4,5,4,6,38,48,18,30,143,109,13,13,2,3,8,13,4,6,58,49,0,12,0,12,6,7,0,12,63,84,0,12,0,12,8,15,81,58]
[null,null,null,"Estimate!!Total:!!Male:!!12th grade, no diploma",19,12,53,69,3,4,45,55,7,5,2,3,0,12,53,58,41,38,23,18,1,2,0,12,0,12,0,17,1,3,2,4,18,20,0,12,20,32,0,12,0,12,4,6,10,19]
[null,null,null,"Estimate!!Total:!!Male:!!High school graduate (includes equivalency)",259,85,461,152,152,67,266,64,136,50,90,41,884,230,595,261,1864,333,246,84,132,46,39,16,149,53,648,144,31,14,172,43,88,25,75,32,1253,291,361,113,326,105,171,46,753,160]
[null,null,null,"Estimate!!Total:!!Male:!!Some college, less than 1 year",38,29,48,34,8,8,69,46,3,4,18,13,41,46,140,111,446,174,40,29,34,30,9,6,24,15,83,54,2,3,35,16,17,14,10,10,262,163,63,33,56,38,52,31,56,41]
[null,null,null,"Estimate!!Total:!!Male:!!Some college, 1 or more years, no degree",51,29,142,132,80,53,114,52,48,21,35,19,143,89,544,252,1028,293,125,59,21,15,7,6,36,18,178,84,3,3,68,24,55,26,49,34,251,122,76,53,213,93,64,49,107,68]
[null,null,null,"Estimate!!Total:!!Male:!!Associate's degree",62,39,73,71,62,41,183,154,46,22,42,22,123,72,142,121,296,108,29,20,46,29,22,14,23,14,223,89,8,7,49,22,18,9,69,28,144,114,13,14,123,84,81,64,104,60]
[null,null,null,"Estimate!!Total:!!Male:!!Bachelor's degree",109,40,244,115,156,48,172,58,27,14,110,40,185,122,353,123,1799,293,102,43,25,16,87,25,111,78,429,138,30,36,49,14,25,15,86,24,454,173,139,50,250,65,217,88,97,54]
[null,null,null,"Estimate!!Total:!!Male:!!Master's degree",36,24,175,107,87,31,95,53,16,14,38,18,21,31,44,38,716,185,80,42,13,8,28,17,43,33,252,110,5,4,31,19,7,5,16,11,202,99,36,29,72,50,105,52,41,42]
[null,null,null,"Estimate!!Total:!!Male:!!Professional school degree",0,12,107,91,19,12,7,11,5,6,11,9,0,12,85,57,177,81,0,12,10,13,11,8,11,17,48,39,0,12,4,5,15,11,14,12,16,18,0,12,14,16,39,25,0,12]
[null,null,null,"Estimate!!Total:!!Male:!!Doctorate degree",13,11,17,27,14,11,5,7,4,4,7,11,15,27,11,19,260,121,0,12,3,4,2,3,0,12,81,64,3,4,2,4,11,13,0,12,4,12,15,16,18,18,8,10,19,21]
[null,null,null,"Estimate!!Total:!!Female:",671,89,1359,138,672,111,889,158,314,56,429,82,1391,158,1823,159,8013,307,879,153,283,64,235,50,403,85,1974,142,95,32,472,67,267,51,398,110,2923,191,671,96,1361,126,866,171,1449,148]
[null,null,null,"Estimate!!Total:!!Female:!!No schooling completed",7,8,0,12,0,12,0,12,0,12,0,12,0,12,0,17,70,46,6,9,0,12,3,4,0,12,0,17,1,2,5,6,0,12,0,12,0,17,0,12,8,12,0,12,14,22]
[null,null,null,"Estimate!!Total:!!Female:!!Nursery to 4th grade",0,12,0,12,0,12,6,8,0,12,0,12,0,12,0,17,50,72,0,12,0,12,0,12,0,12,8,13,0,12,0,12,0,12,0,12,0,17,0,12,0,12,4,8,0,12]
[null,null,null,"Estimate!!Total:!!Female:!!5th and 6th grade",0,12,20,30,0,12,0,12,0,12,0,12,0,12,0,17,0,22,0,12,0,12,0,12,0,12,0,17,0,12,0,12,0,12,0,12,0,17,0,12,0,12,0,12,0,12]
[null,null,null,"Estimate!!Total:!!Female:!!7th and 8th grade",6,8,0,12,0,12,0,12,3,4,0,12,10,15,0,17,65,71,6,8,3,4,0,12,0,12,13,22,0,12,0,12,0,12,0,12,17,25,13,19,102,112,22,24,0,12]
[null,null,null,"Estimate!!Total:!!Female:!!9th grade",0,12,0,12,0,12,0,12,7,11,0,12,13,22,0,17,33,35,7,10,2,4,0,12,3,4,18,28,0,12,0,12,2,3,0,12,0,17,4,7,0,12,0,12,43,41]
[null,null,null,"Estimate!!Total:!!Female:!!10th grade",4,7,0,12,3,4,8,10,3,4,9,15,10,17,0,17,29,25,0,12,3,5,0,12,5,6,58,51,0,12,0,12,2,4,0,12,66,82,0,12,0,12,3,5,31,28]
[null,null,null,"Estimate!!Total:!!Female:!!11th grade",20,29,32,49,0,12,0,12,2,4,0,12,16,23,9,17,62,70,11,12,0,12,0,12,17,28,0,17,0,12,0,12,4,6,2,4,0,17,23,26,6,11,0,12,10,21]
[null,null,null,"Estimate!!Total:!!Female:!!12th grade, no diploma",0,12,0,12,3,4,11,12,0,12,4,5,9,14,5,7,160,90,0,12,0,12,0,12,0,12,2,6,2,3,0,12,2,3,7,7,11,18,8,12,24,28,3,5,35,38]
[null,null,null,"Estimate!!Total:!!Female:!!High school graduate (includes equivalency)",285,84,381,153,146,78,241,74,108,38,102,48,515,151,481,148,2013,357,254,84,61,25,53,24,137,54,418,133,28,15,149,37,74,26,105,36,1156,270,238,76,402,117,192,87,542,144]
[null,null,null,"Estimate!!Total:!!Female:!!Some college, less than 1 year",20,14,103,101,33,25,69,36,21,15,11,11,143,73,201,132,396,119,80,66,11,10,8,7,26,15,172,94,23,23,43,17,16,13,18,9,108,69,16,16,68,44,32,21,188,96]
[null,null,null,"Estimate!!Total:!!Female:!!Some college, 1 or more years, no degree",61,25,115,75,93,63,117,48,31,16,31,23,189,117,215,120,689,148,106,61,61,30,22,10,46,22,332,115,7,6,60,30,42,28,105,105,372,152,114,43,94,51,126,106,160,78]
[null,null,null,"Estimate!!Total:!!Female:!!Associate's degree",70,32,93,51,50,22,96,47,75,29,58,39,239,121,206,93,723,215,24,17,40,26,10,7,62,25,398,132,8,8,43,21,38,22,31,19,454,188,65,35,197,122,64,34,161,86]
[null,null,null,"Estimate!!Total:!!Female:!!Bachelor's degree",132,41,292,129,180,58,213,105,38,18,111,38,187,81,401,150,2466,342,254,111,58,39,88,30,81,30,312,152,13,7,113,32,52,18,82,39,452,167,119,44,283,76,262,80,134,64]
[null,null,null,"Estimate!!Total:!!Female:!!Master's degree",43,21,271,141,121,51,105,55,22,15,98,29,51,49,251,147,1170,217,100,46,38,26,40,18,26,15,191,99,12,13,59,29,26,11,45,22,225,120,66,38,149,76,129,67,120,99]
[null,null,null,"Estimate!!Total:!!Female:!!Professional school degree",4,7,32,48,35,27,3,6,0,12,5,5,0,12,40,47,66,53,14,20,6,6,3,4,0,12,31,25,1,2,0,12,9,8,3,4,28,42,0,12,28,26,17,16,11,18]
[null,null,null,"Estimate!!Total:!!Female:!!Doctorate degree",19,14,20,30,8,8,20,12,4,5,0,12,9,14,14,25,21,27,17,19,0,12,8,7,0,12,21,37,0,12,0,12,0,12,0,12,34,46,5,7,0,12,12,17,0,12]

{"sheet":"SData_B17001PopPovtyStat","index":28,"n_rows":122,"n_cols":122,"rows_kept":122,"cut":false,"hidden":true,"merged":[]}
["GEO_ID","GEO_ID2","SUMLEVEL","GEO_NAME",{"$f":"[1]ACS_16_5YR_B17001_with_ann!D1","v":"B17001_001E"},{"$f":"[1]ACS_16_5YR_B17001_with_ann!E1","v":"B17001_001M"},{"$f":"[1]ACS_16_5YR_B17001_with_ann!F1","v":"B17001_002E"},{"$f":"[1]ACS_16_5YR_B17001_with_ann!G1","v":"B17001_002M"},{"$f":"[1]ACS_16_5YR_B17001_with_ann!H1","v":"B17001_003E"},{"$f":"[1]ACS_16_5YR_B17001_with_ann!I1","v":"B17001_003M"},{"$f":"[1]ACS_16_5YR_B17001_with_ann!J1","v":"B17001_004E"},{"$f":"[1]ACS_16_5YR_B17001_with_ann!K1","v":"B17001_004M"},{"$f":"[1]ACS_16_5YR_B17001_with_ann!L1","v":"B17001_005E"},{"$f":"[1]ACS_16_5YR_B17001_with_ann!M1","v":"B17001_005M"},{"$f":"[1]ACS_16_5YR_B17001_with_ann!N1","v":"B17001_006E"},{"$f":"[1]ACS_16_5YR_B17001_with_ann!O1","v":"B17001_006M"},{"$f":"[1]ACS_16_5YR_B17001_with_ann!P1","v":"B17001_007E"},{"$f":"[1]ACS_16_5YR_B17001_with_ann!Q1","v":"B17001_007M"},{"$f":"[1]ACS_16_5YR_B17001_with_ann!R1","v":"B17001_008E"},{"$f":"[1]ACS_16_5YR_B17001_with_ann!S1","v":"B17001_008M"},{"$f":"[1]ACS_16_5YR_B17001_with_ann!T1","v":"B17001_009E"},{"$f":"[1]ACS_16_5YR_B17001_with_ann!U1","v":"B17001_009M"},{"$f":"[1]ACS_16_5YR_B17001_with_ann!V1","v":"B17001_010E"},{"$f":"[1]ACS_16_5YR_B17001_with_ann!W1","v":"B17001_010M"},{"$f":"[1]ACS_16_5YR_B17001_with_ann!X1","v":"B17001_011E"},{"$f":"[1]ACS_16_5YR_B17001_with_ann!Y1","v":"B17001_011M"},{"$f":"[1]ACS_16_5YR_B17001_with_ann!Z1","v":"B17001_012E"},{"$f":"[1]ACS_16_5YR_B17001_with_ann!AA1","v":"B17001_012M"},{"$f":"[1]ACS_16_5YR_B17001_with_ann!AB1","v":"B17001_013E"},{"$f":"[1]ACS_16_5YR_B17001_with_ann!AC1","v":"B17001_013M"},{"$f":"[1]ACS_16_5YR_B17001_with_ann!AD1","v":"B17001_014E"},{"$f":"[1]ACS_16_5YR_B17001_with_ann!AE1","v":"B17001_014M"},{"$f":"[1]ACS_16_5YR_B17001_with_ann!AF1","v":"B17001_015E"},{"$f":"[1]ACS_16_5YR_B17001_with_ann!AG1","v":"B17001_015M"},{"$f":"[1]ACS_16_5YR_B17001_with_ann!AH1","v":"B17001_016E"},{"$f":"[1]ACS_16_5YR_B17001_with_ann!AI1","v":"B17001_016M"},{"$f":"[1]ACS_16_5YR_B17001_with_ann!AJ1","v":"B17001_017E"},{"$f":"[1]ACS_16_5YR_B17001_with_ann!AK1","v":"B17001_017M"},{"$f":"[1]ACS_16_5YR_B17001_with_ann!AL1","v":"B17001_018E"},{"$f":"[1]ACS_16_5YR_B17001_with_ann!AM1","v":"B17001_018M"},{"$f":"[1]ACS_16_5YR_B17001_with_ann!AN1","v":"B17001_019E"},{"$f":"[1]ACS_16_5YR_B17001_with_ann!AO1","v":"B17001_019M"},{"$f":"[1]ACS_16_5YR_B17001_with_ann!AP1","v":"B17001_020E"},{"$f":"[1]ACS_16_5YR_B17001_with_ann!AQ1","v":"B17001_020M"},{"$f":"[1]ACS_16_5YR_B17001_with_ann!AR1","v":"B17001_021E"},{"$f":"[1]ACS_16_5YR_B17001_with_ann!AS1","v":"B17001_021M"},{"$f":"[1]ACS_16_5YR_B17001_with_ann!AT1","v":"B17001_022E"},{"$f":"[1]ACS_16_5YR_B17001_with_ann!AU1","v":"B17001_022M"},{"$f":"[1]ACS_16_5YR_B17001_with_ann!AV1","v":"B17001_023E"},{"$f":"[1]ACS_16_5YR_B17001_with_ann!AW1","v":"B17001_023M"},{"$f":"[1]ACS_16_5YR_B17001_with_ann!AX1","v":"B17001_024E"},{"$f":"[1]ACS_16_5YR_B17001_with_ann!AY1","v":"B17001_024M"},{"$f":"[1]ACS_16_5YR_B17001_with_ann!AZ1","v":"B17001_025E"},{"$f":"[1]ACS_16_5YR_B17001_with_ann!BA1","v":"B17001_025M"},{"$f":"[1]ACS_16_5YR_B17001_with_ann!BB1","v":"B17001_026E"},{"$f":"[1]ACS_16_5YR_B17001_with_ann!BC1","v":"B17001_026M"},{"$f":"[1]ACS_16_5YR_B17001_with_ann!BD1","v":"B17001_027E"},{"$f":"[1]ACS_16_5YR_B17001_with_ann!BE1","v":"B17001_027M"},{"$f":"[1]ACS_16_5YR_B17001_with_ann!BF1","v":"B17001_028E"},{"$f":"[1]ACS_16_5YR_B17001_with_ann!BG1","v":"B17001_028M"},{"$f":"[1]ACS_16_5YR_B17001_with_ann!BH1","v":"B17001_029E"},{"$f":"[1]ACS_16_5YR_B17001_with_ann!BI1","v":"B17001_029M"},{"$f":"[1]ACS_16_5YR_B17001_with_ann!BJ1","v":"B17001_030E"},{"$f":"[1]ACS_16_5YR_B17001_with_ann!BK1","v":"B17001_030M"},{"$f":"[1]ACS_16_5YR_B17001_with_ann!BL1","v":"B17001_031E"},{"$f":"[1]ACS_16_5YR_B17001_with_ann!BM1","v":"B17001_031M"},{"$f":"[1]ACS_16_5YR_B17001_with_ann!BN1","v":"B17001_032E"},{"$f":"[1]ACS_16_5YR_B17001_with_ann!BO1","v":"B17001_032M"},{"$f":"[1]ACS_16_5YR_B17001_with_ann!BP1","v":"B17001_033E"},{"$f":"[1]ACS_16_5YR_B17001_with_ann!BQ1","v":"B17001_033M"},{"$f":"[1]ACS_16_5YR_B17001_with_ann!BR1","v":"B17001_034E"},{"$f":"[1]ACS_16_5YR_B17001_with_ann!BS1","v":"B17001_034M"},{"$f":"[1]ACS_16_5YR_B17001_with_ann!BT1","v":"B17001_035E"},{"$f":"[1]ACS_16_5YR_B17001_with_ann!BU1","v":"B17001_035M"},{"$f":"[1]ACS_16_5YR_B17001_with_ann!BV1","v":"B17001_036E"},{"$f":"[1]ACS_16_5YR_B17001_with_ann!BW1","v":"B17001_036M"},{"$f":"[1]ACS_16_5YR_B17001_with_ann!BX1","v":"B17001_037E"},{"$f":"[1]ACS_16_5YR_B17001_with_ann!BY1","v":"B17001_037M"},{"$f":"[1]ACS_16_5YR_B17001_with_ann!BZ1","v":"B17001_038E"},{"$f":"[1]ACS_16_5YR_B17001_with_ann!CA1","v":"B17001_038M"},{"$f":"[1]ACS_16_5YR_B17001_with_ann!CB1","v":"B17001_039E"},{"$f":"[1]ACS_16_5YR_B17001_with_ann!CC1","v":"B17001_039M"},{"$f":"[1]ACS_16_5YR_B17001_with_ann!CD1","v":"B17001_040E"},{"$f":"[1]ACS_16_5YR_B17001_with_ann!CE1","v":"B17001_040M"},{"$f":"[1]ACS_16_5YR_B17001_with_ann!CF1","v":"B17001_041E"},{"$f":"[1]ACS_16_5YR_B17001_with_ann!CG1","v":"B17001_041M"},{"$f":"[1]ACS_16_5YR_B17001_with_ann!CH1","v":"B17001_042E"},{"$f":"[1]ACS_16_5YR_B17001_with_ann!CI1","v":"B17001_042M"},{"$f":"[1]ACS_16_5YR_B17001_with_ann!CJ1","v":"B17001_043E"},{"$f":"[1]ACS_16_5YR_B17001_with_ann!CK1","v":"B17001_043M"},{"$f":"[1]ACS_16_5YR_B17001_with_ann!CL1","v":"B17001_044E"},{"$f":"[1]ACS_16_5YR_B17001_with_ann!CM1","v":"B17001_044M"},{"$f":"[1]ACS_16_5YR_B17001_with_ann!CN1","v":"B17001_045E"},{"$f":"[1]ACS_16_5YR_B17001_with_ann!CO1","v":"B17001_045M"},{"$f":"[1]ACS_16_5YR_B17001_with_ann!CP1","v":"B17001_046E"},{"$f":"[1]ACS_16_5YR_B17001_with_ann!CQ1","v":"B17001_046M"},{"$f":"[1]ACS_16_5YR_B17001_with_ann!CR1","v":"B17001_047E"},{"$f":"[1]ACS_16_5YR_B17001_with_ann!CS1","v":"B17001_047M"},{"$f":"[1]ACS_16_5YR_B17001_with_ann!CT1","v":"B17001_048E"},{"$f":"[1]ACS_16_5YR_B17001_with_ann!CU1","v":"B17001_048M"},{"$f":"[1]ACS_16_5YR_B17001_with_ann!CV1","v":"B17001_049E"},{"$f":"[1]ACS_16_5YR_B17001_with_ann!CW1","v":"B17001_049M"},{"$f":"[1]ACS_16_5YR_B17001_with_ann!CX1","v":"B17001_050E"},{"$f":"[1]ACS_16_5YR_B17001_with_ann!CY1","v":"B17001_050M"},{"$f":"[1]ACS_16_5YR_B17001_with_ann!CZ1","v":"B17001_051E"},{"$f":"[1]ACS_16_5YR_B17001_with_ann!DA1","v":"B17001_051M"},{"$f":"[1]ACS_16_5YR_B17001_with_ann!DB1","v":"B17001_052E"},{"$f":"[1]ACS_16_5YR_B17001_with_ann!DC1","v":"B17001_052M"},{"$f":"[1]ACS_16_5YR_B17001_with_ann!DD1","v":"B17001_053E"},{"$f":"[1]ACS_16_5YR_B17001_with_ann!DE1","v":"B17001_053M"},{"$f":"[1]ACS_16_5YR_B17001_with_ann!DF1","v":"B17001_054E"},{"$f":"[1]ACS_16_5YR_B17001_with_ann!DG1","v":"B17001_054M"},{"$f":"[1]ACS_16_5YR_B17001_with_ann!DH1","v":"B17001_055E"},{"$f":"[1]ACS_16_5YR_B17001_with_ann!DI1","v":"B17001_055M"},{"$f":"[1]ACS_16_5YR_B17001_with_ann!DJ1","v":"B17001_056E"},{"$f":"[1]ACS_16_5YR_B17001_with_ann!DK1","v":"B17001_056M"},{"$f":"[1]ACS_16_5YR_B17001_with_ann!DL1","v":"B17001_057E"},{"$f":"[1]ACS_16_5YR_B17001_with_ann!DM1","v":"B17001_057M"},{"$f":"[1]ACS_16_5YR_B17001_with_ann!DN1","v":"B17001_058E"},{"$f":"[1]ACS_16_5YR_B17001_with_ann!DO1","v":"B17001_058M"},{"$f":"[1]ACS_16_5YR_B17001_with_ann!DP1","v":"B17001_059E"},{"$f":"[1]ACS_16_5YR_B17001_with_ann!DQ1","v":"B17001_059M"}]
["Geography Identifier","Geography Identifier","Geographic Summary Level","Geography",{"$f":"[1]ACS_16_5YR_B17001_with_ann!D2","v":"Estimate!!Total:"},{"$f":"[1]ACS_16_5YR_B17001_with_ann!E2","v":"Margin of Error!!Total:"},{"$f":"[1]ACS_16_5YR_B17001_with_ann!F2","v":"Estimate!!Total:!!Income in the past 12 months below poverty level:"},{"$f":"[1]ACS_16_5YR_B17001_with_ann!G2","v":"Margin of Error!!Total:!!Income in the past 12 months below poverty level:"},{"$f":"[1]ACS_16_5YR_B17001_with_ann!H2","v":"Estimate!!Total:!!Income in the past 12 months below poverty level:!!Male:"},{"$f":"[1]ACS_16_5YR_B17001_with_ann!I2","v":"Margin of Error!!Total:!!Income in the past 12 months below poverty level:!!Male:"},{"$f":"[1]ACS_16_5YR_B17001_with_ann!J2","v":"Estimate!!Total:!!Income in the past 12 months below poverty level:!!Male:!!Under 5 years"},{"$f":"[1]ACS_16_5YR_B17001_with_ann!K2","v":"Margin of Error!!Total:!!Income in the past 12 months below poverty level:!!Male:!!Under 5 years"},{"$f":"[1]ACS_16_5YR_B17001_with_ann!L2","v":"Estimate!!Total:!!Income in the past 12 months below poverty level:!!Male:!!5 years"},{"$f":"[1]ACS_16_5YR_B17001_with_ann!M2","v":"Margin of Error!!Total:!!Income in the past 12 months below poverty level:!!Male:!!5 years"},{"$f":"[1]ACS_16_5YR_B17001_with_ann!N2","v":"Estimate!!Total:!!Income in the past 12 months below poverty level:!!Male:!!6 to 11 years"},{"$f":"[1]ACS_16_5YR_B17001_with_ann!O2","v":"Margin of Error!!Total:!!Income in the past 12 months below poverty level:!!Male:!!6 to 11 years"},{"$f":"[1]ACS_16_5YR_B17001_with_ann!P2","v":"Estimate!!Total:!!Income in the past 12 months below poverty level:!!Male:!!12 to 14 years"},{"$f":"[1]ACS_16_5YR_B17001_with_ann!Q2","v":"Margin of Error!!Total:!!Income in the past 12 months below poverty level:!!Male:!!12 to 14 years"},{"$f":"[1]ACS_16_5YR_B17001_with_ann!R2","v":"Estimate!!Total:!!Income in the past 12 months below poverty level:!!Male:!!15 years"},{"$f":"[1]ACS_16_5YR_B17001_with_ann!S2","v":"Margin of Error!!Total:!!Income in the past 12 months below poverty level:!!Male:!!15 years"},{"$f":"[1]ACS_16_5YR_B17001_with_ann!T2","v":"Estimate!!Total:!!Income in the past 12 months below poverty level:!!Male:!!16 and 17 years"},{"$f":"[1]ACS_16_5YR_B17001_with_ann!U2","v":"Margin of Error!!Total:!!Income in the past 12 months below poverty level:!!Male:!!16 and 17 years"},{"$f":"[1]ACS_16_5YR_B17001_with_ann!V2","v":"Estimate!!Total:!!Income in the past 12 months below poverty level:!!Male:!!18 to 24 years"},{"$f":"[1]ACS_16_5YR_B17001_with_ann!W2","v":"Margin of Error!!Total:!!Income in the past 12 months below poverty level:!!Male:!!18 to 24 years"},{"$f":"[1]ACS_16_5YR_B17001_with_ann!X2","v":"Estimate!!Total:!!Income in the past 12 months below poverty level:!!Male:!!25 to 34 years"},{"$f":"[1]ACS_16_5YR_B17001_with_ann!Y2","v":"Margin of Error!!Total:!!Income in the past 12 months below poverty level:!!Male:!!25 to 34 years"},{"$f":"[1]ACS_16_5YR_B17001_with_ann!Z2","v":"Estimate!!Total:!!Income in the past 12 months below poverty level:!!Male:!!35 to 44 years"},{"$f":"[1]ACS_16_5YR_B17001_with_ann!AA2","v":"Margin of Error!!Total:!!Income in the past 12 months below poverty level:!!Male:!!35 to 44 years"},{"$f":"[1]ACS_16_5YR_B17001_with_ann!AB2","v":"Estimate!!Total:!!Income in the past 12 months below poverty level:!!Male:!!45 to 54 years"},{"$f":"[1]ACS_16_5YR_B17001_with_ann!AC2","v":"Margin of Error!!Total:!!Income in the past 12 months below poverty level:!!Male:!!45 to 54 years"},{"$f":"[1]ACS_16_5YR_B17001_with_ann!AD2","v":"Estimate!!Total:!!Income in the past 12 months below poverty level:!!Male:!!55 to 64 years"},{"$f":"[1]ACS_16_5YR_B17001_with_ann!AE2","v":"Margin of Error!!Total:!!Income in the past 12 months below poverty level:!!Male:!!55 to 64 years"},{"$f":"[1]ACS_16_5YR_B17001_with_ann!AF2","v":"Estimate!!Total:!!Income in the past 12 months below poverty level:!!Male:!!65 to 74 years"},{"$f":"[1]ACS_16_5YR_B17001_with_ann!AG2","v":"Margin of Error!!Total:!!Income in the past 12 months below poverty level:!!Male:!!65 to 74 years"},{"$f":"[1]ACS_16_5YR_B17001_with_ann!AH2","v":"Estimate!!Total:!!Income in the past 12 months below poverty level:!!Male:!!75 years and over"},{"$f":"[1]ACS_16_5YR_B17001_with_ann!AI2","v":"Margin of Error!!Total:!!Income in the past 12 months below poverty level:!!Male:!!75 years and over"},{"$f":"[1]ACS_16_5YR_B17001_with_ann!AJ2","v":"Estimate!!Total:!!Income in the past 12 months below poverty level:!!Female:"},{"$f":"[1]ACS_16_5YR_B17001_with_ann!AK2","v":"Margin of Error!!Total:!!Income in the past 12 months below poverty level:!!Female:"},{"$f":"[1]ACS_16_5YR_B17001_with_ann!AL2","v":"Estimate!!Total:!!Income in the past 12 months below poverty level:!!Female:!!Under 5 years"},{"$f":"[1]ACS_16_5YR_B17001_with_ann!AM2","v":"Margin of Error!!Total:!!Income in the past 12 months below poverty level:!!Female:!!Under 5 years"},{"$f":"[1]ACS_16_5YR_B17001_with_ann!AN2","v":"Estimate!!Total:!!Income in the past 12 months below poverty level:!!Female:!!5 years"},{"$f":"[1]ACS_16_5YR_B17001_with_ann!AO2","v":"Margin of Error!!Total:!!Income in the past 12 months below poverty level:!!Female:!!5 years"},{"$f":"[1]ACS_16_5YR_B17001_with_ann!AP2","v":"Estimate!!Total:!!Income in the past 12 months below poverty level:!!Female:!!6 to 11 years"},{"$f":"[1]ACS_16_5YR_B17001_with_ann!AQ2","v":"Margin of Error!!Total:!!Income in the past 12 months below poverty level:!!Female:!!6 to 11 years"},{"$f":"[1]ACS_16_5YR_B17001_with_ann!AR2","v":"Estimate!!Total:!!Income in the past 12 months below poverty level:!!Female:!!12 to 14 years"},{"$f":"[1]ACS_16_5YR_B17001_with_ann!AS2","v":"Margin of Error!!Total:!!Income in the past 12 months below poverty level:!!Female:!!12 to 14 years"},{"$f":"[1]ACS_16_5YR_B17001_with_ann!AT2","v":"Estimate!!Total:!!Income in the past 12 months below poverty level:!!Female:!!15 years"},{"$f":"[1]ACS_16_5YR_B17001_with_ann!AU2","v":"Margin of Error!!Total:!!Income in the past 12 months below poverty level:!!Female:!!15 years"},{"$f":"[1]ACS_16_5YR_B17001_with_ann!AV2","v":"Estimate!!Total:!!Income in the past 12 months below poverty level:!!Female:!!16 and 17 years"},{"$f":"[1]ACS_16_5YR_B17001_with_ann!AW2","v":"Margin of Error!!Total:!!Income in the past 12 months below poverty level:!!Female:!!16 and 17 years"},{"$f":"[1]ACS_16_5YR_B17001_with_ann!AX2","v":"Estimate!!Total:!!Income in the past 12 months below poverty level:!!Female:!!18 to 24 years"},{"$f":"[1]ACS_16_5YR_B17001_with_ann!AY2","v":"Margin of Error!!Total:!!Income in the past 12 months below poverty level:!!Female:!!18 to 24 years"},{"$f":"[1]ACS_16_5YR_B17001_with_ann!AZ2","v":"Estimate!!Total:!!Income in the past 12 months below poverty level:!!Female:!!25 to 34 years"},{"$f":"[1]ACS_16_5YR_B17001_with_ann!BA2","v":"Margin of Error!!Total:!!Income in the past 12 months below poverty level:!!Female:!!25 to 34 years"},{"$f":"[1]ACS_16_5YR_B17001_with_ann!BB2","v":"Estimate!!Total:!!Income in the past 12 months below poverty level:!!Female:!!35 to 44 years"},{"$f":"[1]ACS_16_5YR_B17001_with_ann!BC2","v":"Margin of Error!!Total:!!Income in the past 12 months below poverty level:!!Female:!!35 to 44 years"},{"$f":"[1]ACS_16_5YR_B17001_with_ann!BD2","v":"Estimate!!Total:!!Income in the past 12 months below poverty level:!!Female:!!45 to 54 years"},{"$f":"[1]ACS_16_5YR_B17001_with_ann!BE2","v":"Margin of Error!!Total:!!Income in the past 12 months below poverty level:!!Female:!!45 to 54 years"},{"$f":"[1]ACS_16_5YR_B17001_with_ann!BF2","v":"Estimate!!Total:!!Income in the past 12 months below poverty level:!!Female:!!55 to 64 years"},{"$f":"[1]ACS_16_5YR_B17001_with_ann!BG2","v":"Margin of Error!!Total:!!Income in the past 12 months below poverty level:!!Female:!!55 to 64 years"},{"$f":"[1]ACS_16_5YR_B17001_with_ann!BH2","v":"Estimate!!Total:!!Income in the past 12 months below poverty level:!!Female:!!65 to 74 years"},{"$f":"[1]ACS_16_5YR_B17001_with_ann!BI2","v":"Margin of Error!!Total:!!Income in the past 12 months below poverty level:!!Female:!!65 to 74 years"},{"$f":"[1]ACS_16_5YR_B17001_with_ann!BJ2","v":"Estimate!!Total:!!Income in the past 12 months below poverty level:!!Female:!!75 years and over"},{"$f":"[1]ACS_16_5YR_B17001_with_ann!BK2","v":"Margin of Error!!Total:!!Income in the past 12 months below poverty level:!!Female:!!75 years and over"},{"$f":"[1]ACS_16_5YR_B17001_with_ann!BL2","v":"Estimate!!Total:!!Income in the past 12 months at or above poverty level:"},{"$f":"[1]ACS_16_5YR_B17001_with_ann!BM2","v":"Margin of Error!!Total:!!Income in the past 12 months at or above poverty level:"},{"$f":"[1]ACS_16_5YR_B17001_with_ann!BN2","v":"Estimate!!Total:!!Income in the past 12 months at or above poverty level:!!Male:"},{"$f":"[1]ACS_16_5YR_B17001_with_ann!BO2","v":"Margin of Error!!Total:!!Income in the past 12 months at or above poverty level:!!Male:"},{"$f":"[1]ACS_16_5YR_B17001_with_ann!BP2","v":"Estimate!!Total:!!Income in the past 12 months at or above poverty level:!!Male:!!Under 5 years"},{"$f":"[1]ACS_16_5YR_B17001_with_ann!BQ2","v":"Margin of Error!!Total:!!Income in the past 12 months at or above poverty level:!!Male:!!Under 5 years"},{"$f":"[1]ACS_16_5YR_B17001_with_ann!BR2","v":"Estimate!!Total:!!Income in the past 12 months at or above poverty level:!!Male:!!5 years"},{"$f":"[1]ACS_16_5YR_B17001_with_ann!BS2","v":"Margin of Error!!Total:!!Income in the past 12 months at or above poverty level:!!Male:!!5 years"},{"$f":"[1]ACS_16_5YR_B17001_with_ann!BT2","v":"Estimate!!Total:!!Income in the past 12 months at or above poverty level:!!Male:!!6 to 11 years"},{"$f":"[1]ACS_16_5YR_B17001_with_ann!BU2","v":"Margin of Error!!Total:!!Income in the past 12 months at or above poverty level:!!Male:!!6 to 11 years"},{"$f":"[1]ACS_16_5YR_B17001_with_ann!BV2","v":"Estimate!!Total:!!Income in the past 12 months at or above poverty level:!!Male:!!12 to 14 years"},{"$f":"[1]ACS_16_5YR_B17001_with_ann!BW2","v":"Margin of Error!!Total:!!Income in the past 12 months at or above poverty level:!!Male:!!12 to 14 years"},{"$f":"[1]ACS_16_5YR_B17001_with_ann!BX2","v":"Estimate!!Total:!!Income in the past 12 months at or above poverty level:!!Male:!!15 years"},{"$f":"[1]ACS_16_5YR_B17001_with_ann!BY2","v":"Margin of Error!!Total:!!Income in the past 12 months at or above poverty level:!!Male:!!15 years"},{"$f":"[1]ACS_16_5YR_B17001_with_ann!BZ2","v":"Estimate!!Total:!!Income in the past 12 months at or above poverty level:!!Male:!!16 and 17 years"},{"$f":"[1]ACS_16_5YR_B17001_with_ann!CA2","v":"Margin of Error!!Total:!!Income in the past 12 months at or above poverty level:!!Male:!!16 and 17 years"},{"$f":"[1]ACS_16_5YR_B17001_with_ann!CB2","v":"Estimate!!Total:!!Income in the past 12 months at or above poverty level:!!Male:!!18 to 24 years"},{"$f":"[1]ACS_16_5YR_B17001_with_ann!CC2","v":"Margin of Error!!Total:!!Income in the past 12 months at or above poverty level:!!Male:!!18 to 24 years"},{"$f":"[1]ACS_16_5YR_B17001_with_ann!CD2","v":"Estimate!!Total:!!Income in the past 12 months at or above poverty level:!!Male:!!25 to 34 years"},{"$f":"[1]ACS_16_5YR_B17001_with_ann!CE2","v":"Margin of Error!!Total:!!Income in the past 12 months at or above poverty level:!!Male:!!25 to 34 years"},{"$f":"[1]ACS_16_5YR_B17001_with_ann!CF2","v":"Estimate!!Total:!!Income in the past 12 months at or above poverty level:!!Male:!!35 to 44 years"},{"$f":"[1]ACS_16_5YR_B17001_with_ann!CG2","v":"Margin of Error!!Total:!!Income in the past 12 months at or above poverty level:!!Male:!!35 to 44 years"},{"$f":"[1]ACS_16_5YR_B17001_with_ann!CH2","v":"Estimate!!Total:!!Income in the past 12 months at or above poverty level:!!Male:!!45 to 54 years"},{"$f":"[1]ACS_16_5YR_B17001_with_ann!CI2","v":"Margin of Error!!Total:!!Income in the past 12 months at or above poverty level:!!Male:!!45 to 54 years"},{"$f":"[1]ACS_16_5YR_B17001_with_ann!CJ2","v":"Estimate!!Total:!!Income in the past 12 months at or above poverty level:!!Male:!!55 to 64 years"},{"$f":"[1]ACS_16_5YR_B17001_with_ann!CK2","v":"Margin of Error!!Total:!!Income in the past 12 months at or above poverty level:!!Male:!!55 to 64 years"},{"$f":"[1]ACS_16_5YR_B17001_with_ann!CL2","v":"Estimate!!Total:!!Income in the past 12 months at or above poverty level:!!Male:!!65 to 74 years"},{"$f":"[1]ACS_16_5YR_B17001_with_ann!CM2","v":"Margin of Error!!Total:!!Income in the past 12 months at or above poverty level:!!Male:!!65 to 74 years"},{"$f":"[1]ACS_16_5YR_B17001_with_ann!CN2","v":"Estimate!!Total:!!Income in the past 12 months at or above poverty level:!!Male:!!75 years and over"},{"$f":"[1]ACS_16_5YR_B17001_with_ann!CO2","v":"Margin of Error!!Total:!!Income in the past 12 months at or above poverty level:!!Male:!!75 years and over"},{"$f":"[1]ACS_16_5YR_B17001_with_ann!CP2","v":"Estimate!!Total:!!Income in the past 12 months at or above poverty level:!!Female:"},{"$f":"[1]ACS_16_5YR_B17001_with_ann!CQ2","v":"Margin of Error!!Total:!!Income in the past 12 months at or above poverty level:!!Female:"},{"$f":"[1]ACS_16_5YR_B17001_with_ann!CR2","v":"Estimate!!Total:!!Income in the past 12 months at or above poverty level:!!Female:!!Under 5 years"},{"$f":"[1]ACS_16_5YR_B17001_with_ann!CS2","v":"Margin of Error!!Total:!!Income in the past 12 months at or above poverty level:!!Female:!!Under 5 years"},{"$f":"[1]ACS_16_5YR_B17001_with_ann!CT2","v":"Estimate!!Total:!!Income in the past 12 months at or above poverty level:!!Female:!!5 years"},{"$f":"[1]ACS_16_5YR_B17001_with_ann!CU2","v":"Margin of Error!!Total:!!Income in the past 12 months at or above poverty level:!!Female:!!5 years"},{"$f":"[1]ACS_16_5YR_B17001_with_ann!CV2","v":"Estimate!!Total:!!Income in the past 12 months at or above poverty level:!!Female:!!6 to 11 years"},{"$f":"[1]ACS_16_5YR_B17001_with_ann!CW2","v":"Margin of Error!!Total:!!Income in the past 12 months at or above poverty level:!!Female:!!6 to 11 years"},{"$f":"[1]ACS_16_5YR_B17001_with_ann!CX2","v":"Estimate!!Total:!!Income in the past 12 months at or above poverty level:!!Female:!!12 to 14 years"},{"$f":"[1]ACS_16_5YR_B17001_with_ann!CY2","v":"Margin of Error!!Total:!!Income in the past 12 months at or above poverty level:!!Female:!!12 to 14 years"},{"$f":"[1]ACS_16_5YR_B17001_with_ann!CZ2","v":"Estimate!!Total:!!Income in the past 12 months at or above poverty level:!!Female:!!15 years"},{"$f":"[1]ACS_16_5YR_B17001_with_ann!DA2","v":"Margin of Error!!Total:!!Income in the past 12 months at or above poverty level:!!Female:!!15 years"},{"$f":"[1]ACS_16_5YR_B17001_with_ann!DB2","v":"Estimate!!Total:!!Income in the past 12 months at or above poverty level:!!Female:!!16 and 17 years"},{"$f":"[1]ACS_16_5YR_B17001_with_ann!DC2","v":"Margin of Error!!Total:!!Income in the past 12 months at or above poverty level:!!Female:!!16 and 17 years"},{"$f":"[1]ACS_16_5YR_B17001_with_ann!DD2","v":"Estimate!!Total:!!Income in the past 12 months at or above poverty level:!!Female:!!18 to 24 years"},{"$f":"[1]ACS_16_5YR_B17001_with_ann!DE2","v":"Margin of Error!!Total:!!Income in the past 12 months at or above poverty level:!!Female:!!18 to 24 years"},{"$f":"[1]ACS_16_5YR_B17001_with_ann!DF2","v":"Estimate!!Total:!!Income in the past 12 months at or above poverty level:!!Female:!!25 to 34 years"},{"$f":"[1]ACS_16_5YR_B17001_with_ann!DG2","v":"Margin of Error!!Total:!!Income in the past 12 months at or above poverty level:!!Female:!!25 to 34 years"},{"$f":"[1]ACS_16_5YR_B17001_with_ann!DH2","v":"Estimate!!Total:!!Income in the past 12 months at or above poverty level:!!Female:!!35 to 44 years"},{"$f":"[1]ACS_16_5YR_B17001_with_ann!DI2","v":"Margin of Error!!Total:!!Income in the past 12 months at or above poverty level:!!Female:!!35 to 44 years"},{"$f":"[1]ACS_16_5YR_B17001_with_ann!DJ2","v":"Estimate!!Total:!!Income in the past 12 months at or above poverty level:!!Female:!!45 to 54 years"},{"$f":"[1]ACS_16_5YR_B17001_with_ann!DK2","v":"Margin of Error!!Total:!!Income in the past 12 months at or above poverty level:!!Female:!!45 to 54 years"},{"$f":"[1]ACS_16_5YR_B17001_with_ann!DL2","v":"Estimate!!Total:!!Income in the past 12 months at or above poverty level:!!Female:!!55 to 64 years"},{"$f":"[1]ACS_16_5YR_B17001_with_ann!DM2","v":"Margin of Error!!Total:!!Income in the past 12 months at or above poverty level:!!Female:!!55 to 64 years"},{"$f":"[1]ACS_16_5YR_B17001_with_ann!DN2","v":"Estimate!!Total:!!Income in the past 12 months at or above poverty level:!!Female:!!65 to 74 years"},{"$f":"[1]ACS_16_5YR_B17001_with_ann!DO2","v":"Margin of Error!!Total:!!Income in the past 12 months at or above poverty level:!!Female:!!65 to 74 years"},{"$f":"[1]ACS_16_5YR_B17001_with_ann!DP2","v":"Estimate!!Total:!!Income in the past 12 months at or above poverty level:!!Female:!!75 years and over"},{"$f":"[1]ACS_16_5YR_B17001_with_ann!DQ2","v":"Margin of Error!!Total:!!Income in the past 12 months at or above poverty level:!!Female:!!75 years and over"}]
["06000US3300500820","0600000US3300512260","060",{"$f":"[1]ACS_16_5YR_B17001_with_ann!C44","v":"Alstead"},{"$f":"[1]ACS_16_5YR_B17001_with_ann!D44","v":1599},{"$f":"[1]ACS_16_5YR_B17001_with_ann!E44","v":169},{"$f":"[1]ACS_16_5YR_B17001_with_ann!F44","v":171},{"$f":"[1]ACS_16_5YR_B17001_with_ann!G44","v":78},{"$f":"[1]ACS_16_5YR_B17001_with_ann!H44","v":50},{"$f":"[1]ACS_16_5YR_B17001_with_ann!I44","v":39},{"$f":"[1]ACS_16_5YR_B17001_with_ann!J44","v":0},{"$f":"[1]ACS_16_5YR_B17001_with_ann!K44","v":12},{"$f":"[1]ACS_16_5YR_B17001_with_ann!L44","v":0},{"$f":"[1]ACS_16_5YR_B17001_with_ann!M44","v":12},{"$f":"[1]ACS_16_5YR_B17001_with_ann!N44","v":0},{"$f":"[1]ACS_16_5YR_B17001_with_ann!O44","v":12},{"$f":"[1]ACS_16_5YR_B17001_with_ann!P44","v":0},{"$f":"[1]ACS_16_5YR_B17001_with_ann!Q44","v":12},{"$f":"[1]ACS_16_5YR_B17001_with_ann!R44","v":0},{"$f":"[1]ACS_16_5YR_B17001_with_ann!S44","v":12},{"$f":"[1]ACS_16_5YR_B17001_with_ann!T44","v":0},{"$f":"[1]ACS_16_5YR_B17001_with_ann!U44","v":12},{"$f":"[1]ACS_16_5YR_B17001_with_ann!V44","v":0},{"$f":"[1]ACS_16_5YR_B17001_with_ann!W44","v":12},{"$f":"[1]ACS_16_5YR_B17001_with_ann!X44","v":28},{"$f":"[1]ACS_16_5YR_B17001_with_ann!Y44","v":38},{"$f":"[1]ACS_16_5YR_B17001_with_ann!Z44","v":0},{"$f":"[1]ACS_16_5YR_B17001_with_ann!AA44","v":12},{"$f":"[1]ACS_16_5YR_B17001_with_ann!AB44","v":4},{"$f":"[1]ACS_16_5YR_B17001_with_ann!AC44","v":6},{"$f":"[1]ACS_16_5YR_B17001_with_ann!AD44","v":18},{"$f":"[1]ACS_16_5YR_B17001_with_ann!AE44","v":12},{"$f":"[1]ACS_16_5YR_B17001_with_ann!AF44","v":0},{"$f":"[1]ACS_16_5YR_B17001_with_ann!AG44","v":12},{"$f":"[1]ACS_16_5YR_B17001_with_ann!AH44","v":0},{"$f":"[1]ACS_16_5YR_B17001_with_ann!AI44","v":12},{"$f":"[1]ACS_16_5YR_B17001_with_ann!AJ44","v":121},{"$f":"[1]ACS_16_5YR_B17001_with_ann!AK44","v":64},{"$f":"[1]ACS_16_5YR_B17001_with_ann!AL44","v":0},{"$f":"[1]ACS_16_5YR_B17001_with_ann!AM44","v":12},{"$f":"[1]ACS_16_5YR_B17001_with_ann!AN44","v":0},{"$f":"[1]ACS_16_5YR_B17001_with_ann!AO44","v":12},{"$f":"[1]ACS_16_5YR_B17001_with_ann!AP44","v":0},{"$f":"[1]ACS_16_5YR_B17001_with_ann!AQ44","v":12},{"$f":"[1]ACS_16_5YR_B17001_with_ann!AR44","v":0},{"$f":"[1]ACS_16_5YR_B17001_with_ann!AS44","v":12},{"$f":"[1]ACS_16_5YR_B17001_with_ann!AT44","v":0},{"$f":"[1]ACS_16_5YR_B17001_with_ann!AU44","v":12},{"$f":"[1]ACS_16_5YR_B17001_with_ann!AV44","v":0},{"$f":"[1]ACS_16_5YR_B17001_with_ann!AW44","v":12},{"$f":"[1]ACS_16_5YR_B17001_with_ann!AX44","v":16},{"$f":"[1]ACS_16_5YR_B17001_with_ann!AY44","v":22},{"$f":"[1]ACS_16_5YR_B17001_with_ann!AZ44","v":18},{"$f":"[1]ACS_16_5YR_B17001_with_ann!BA44","v":13},{"$f":"[1]ACS_16_5YR_B17001_with_ann!BB44","v":0},{"$f":"[1]ACS_16_5YR_B17001_with_ann!BC44","v":12},{"$f":"[1]ACS_16_5YR_B17001_with_ann!BD44","v":4},{"$f":"[1]ACS_16_5YR_B17001_with_ann!BE44","v":6},{"$f":"[1]ACS_16_5YR_B17001_with_ann!BF44","v":15},{"$f":"[1]ACS_16_5YR_B17001_with_ann!BG44","v":11},{"$f":"[1]ACS_16_5YR_B17001_with_ann!BH44","v":62},{"$f":"[1]ACS_16_5YR_B17001_with_ann!BI44","v":53},{"$f":"[1]ACS_16_5YR_B17001_with_ann!BJ44","v":6},{"$f":"[1]ACS_16_5YR_B17001_with_ann!BK44","v":8},{"$f":"[1]ACS_16_5YR_B17001_with_ann!BL44","v":1428},{"$f":"[1]ACS_16_5YR_B17001_with_ann!BM44","v":156},{"$f":"[1]ACS_16_5YR_B17001_with_ann!BN44","v":720},{"$f":"[1]ACS_16_5YR_B17001_with_ann!BO44","v":111},{"$f":"[1]ACS_16_5YR_B17001_with_ann!BP44","v":12},{"$f":"[1]ACS_16_5YR_B17001_with_ann!BQ44","v":11},{"$f":"[1]ACS_16_5YR_B17001_with_ann!BR44","v":3},{"$f":"[1]ACS_16_5YR_B17001_with_ann!BS44","v":4},{"$f":"[1]ACS_16_5YR_B17001_with_ann!BT44","v":32},{"$f":"[1]ACS_16_5YR_B17001_with_ann!BU44","v":20},{"$f":"[1]ACS_16_5YR_B17001_with_ann!BV44","v":22},{"$f":"[1]ACS_16_5YR_B17001_with_ann!BW44","v":13},{"$f":"[1]ACS_16_5YR_B17001_with_ann!BX44","v":13},{"$f":"[1]ACS_16_5YR_B17001_with_ann!BY44","v":13},{"$f":"[1]ACS_16_5YR_B17001_with_ann!BZ44","v":26},{"$f":"[1]ACS_16_5YR_B17001_with_ann!CA44","v":27},{"$f":"[1]ACS_16_5YR_B17001_with_ann!CB44","v":52},{"$f":"[1]ACS_16_5YR_B17001_with_ann!CC44","v":34},{"$f":"[1]ACS_16_5YR_B17001_with_ann!CD44","v":67},{"$f":"[1]ACS_16_5YR_B17001_with_ann!CE44","v":39},{"$f":"[1]ACS_16_5YR_B17001_with_ann!CF44","v":75},{"$f":"[1]ACS_16_5YR_B17001_with_ann!CG44","v":30},{"$f":"[1]ACS_16_5YR_B17001_with_ann!CH44","v":98},{"$f":"[1]ACS_16_5YR_B17001_with_ann!CI44","v":34},{"$f":"[1]ACS_16_5YR_B17001_with_ann!CJ44","v":162},{"$f":"[1]ACS_16_5YR_B17001_with_ann!CK44","v":73},{"$f":"[1]ACS_16_5YR_B17001_with_ann!CL44","v":106},{"$f":"[1]ACS_16_5YR_B17001_with_ann!CM44","v":42},{"$f":"[1]ACS_16_5YR_B17001_with_ann!CN44","v":52},{"$f":"[1]ACS_16_5YR_B17001_with_ann!CO44","v":33},{"$f":"[1]ACS_16_5YR_B17001_with_ann!CP44","v":708},{"$f":"[1]ACS_16_5YR_B17001_with_ann!CQ44","v":84},{"$f":"[1]ACS_16_5YR_B17001_with_ann!CR44","v":20},{"$f":"[1]ACS_16_5YR_B17001_with_ann!CS44","v":19},{"$f":"[1]ACS_16_5YR_B17001_with_ann!CT44","v":0},{"$f":"[1]ACS_16_5YR_B17001_with_ann!CU44","v":12},{"$f":"[1]ACS_16_5YR_B17001_with_ann!CV44","v":46},{"$f":"[1]ACS_16_5YR_B17001_with_ann!CW44","v":23},{"$f":"[1]ACS_16_5YR_B17001_with_ann!CX44","v":25},{"$f":"[1]ACS_16_5YR_B17001_with_ann!CY44","v":18},{"$f":"[1]ACS_16_5YR_B17001_with_ann!CZ44","v":12},{"$f":"[1]ACS_16_5YR_B17001_with_ann!DA44","v":11},{"$f":"[1]ACS_16_5YR_B17001_with_ann!DB44","v":17},{"$f":"[1]ACS_16_5YR_B17001_with_ann!DC44","v":12},{"$f":"[1]ACS_16_5YR_B17001_with_ann!DD44","v":22},{"$f":"[1]ACS_16_5YR_B17001_with_ann!DE44","v":30},{"$f":"[1]ACS_16_5YR_B17001_with_ann!DF44","v":61},{"$f":"[1]ACS_16_5YR_B17001_with_ann!DG44","v":37},{"$f":"[1]ACS_16_5YR_B17001_with_ann!DH44","v":52},{"$f":"[1]ACS_16_5YR_B17001_with_ann!DI44","v":23},{"$f":"[1]ACS_16_5YR_B17001_with_ann!DJ44","v":109},{"$f":"[1]ACS_16_5YR_B17001_with_ann!DK44","v":36},{"$f":"[1]ACS_16_5YR_B17001_with_ann!DL44","v":149},{"$f":"[1]ACS_16_5YR_B17001_with_ann!DM44","v":56},{"$f":"[1]ACS_16_5YR_B17001_with_ann!DN44","v":111},{"$f":"[1]ACS_16_5YR_B17001_with_ann!DO44","v":42},{"$f":"[1]ACS_16_5YR_B17001_with_ann!DP44","v":84},{"$f":"[1]ACS_16_5YR_B17001_with_ann!DQ44","v":45}]
["06000US3300512260","0600000US3300519140","060",{"$f":"[1]ACS_16_5YR_B17001_with_ann!C45","v":"Chesterfield"},{"$f":"[1]ACS_16_5YR_B17001_with_ann!D45","v":3577},{"$f":"[1]ACS_16_5YR_B17001_with_ann!E45","v":15},{"$f":"[1]ACS_16_5YR_B17001_with_ann!F45","v":227},{"$f":"[1]ACS_16_5YR_B17001_with_ann!G45","v":212},{"$f":"[1]ACS_16_5YR_B17001_with_ann!H45","v":140},{"$f":"[1]ACS_16_5YR_B17001_with_ann!I45","v":178},{"$f":"[1]ACS_16_5YR_B17001_with_ann!J45","v":0},{"$f":"[1]ACS_16_5YR_B17001_with_ann!K45","v":12},{"$f":"[1]ACS_16_5YR_B17001_with_ann!L45","v":0},{"$f":"[1]ACS_16_5YR_B17001_with_ann!M45","v":12},{"$f":"[1]ACS_16_5YR_B17001_with_ann!N45","v":57},{"$f":"[1]ACS_16_5YR_B17001_with_ann!O45","v":74},{"$f":"[1]ACS_16_5YR_B17001_with_ann!P45","v":30},{"$f":"[1]ACS_16_5YR_B17001_with_ann!Q45","v":39},{"$f":"[1]ACS_16_5YR_B17001_with_ann!R45","v":0},{"$f":"[1]ACS_16_5YR_B17001_with_ann!S45","v":12},{"$f":"[1]ACS_16_5YR_B17001_with_ann!T45","v":0},{"$f":"[1]ACS_16_5YR_B17001_with_ann!U45","v":12},{"$f":"[1]ACS_16_5YR_B17001_with_ann!V45","v":0},{"$f":"[1]ACS_16_5YR_B17001_with_ann!W45","v":12},{"$f":"[1]ACS_16_5YR_B17001_with_ann!X45","v":53},{"$f":"[1]ACS_16_5YR_B17001_with_ann!Y45","v":69},{"$f":"[1]ACS_16_5YR_B17001_with_ann!Z45","v":0},{"$f":"[1]ACS_16_5YR_B17001_with_ann!AA45","v":12},{"$f":"[1]ACS_16_5YR_B17001_with_ann!AB45","v":0},{"$f":"[1]ACS_16_5YR_B17001_with_ann!AC45","v":12},{"$f":"[1]ACS_16_5YR_B17001_with_ann!AD45","v":0},{"$f":"[1]ACS_16_5YR_B17001_with_ann!AE45","v":12},{"$f":"[1]ACS_16_5YR_B17001_with_ann!AF45","v":0},{"$f":"[1]ACS_16_5YR_B17001_with_ann!AG45","v":12},{"$f":"[1]ACS_16_5YR_B17001_with_ann!AH45","v":0},{"$f":"[1]ACS_16_5YR_B17001_with_ann!AI45","v":12},{"$f":"[1]ACS_16_5YR_B17001_with_ann!AJ45","v":87},{"$f":"[1]ACS_16_5YR_B17001_with_ann!AK45","v":56},{"$f":"[1]ACS_16_5YR_B17001_with_ann!AL45","v":0},{"$f":"[1]ACS_16_5YR_B17001_with_ann!AM45","v":12},{"$f":"[1]ACS_16_5YR_B17001_with_ann!AN45","v":0},{"$f":"[1]ACS_16_5YR_B17001_with_ann!AO45","v":12},{"$f":"[1]ACS_16_5YR_B17001_with_ann!AP45","v":0},{"$f":"[1]ACS_16_5YR_B17001_with_ann!AQ45","v":12},{"$f":"[1]ACS_16_5YR_B17001_with_ann!AR45","v":0},{"$f":"[1]ACS_16_5YR_B17001_with_ann!AS45","v":12},{"$f":"[1]ACS_16_5YR_B17001_with_ann!AT45","v":0},{"$f":"[1]ACS_16_5YR_B17001_with_ann!AU45","v":12},{"$f":"[1]ACS_16_5YR_B17001_with_ann!AV45","v":0},{"$f":"[1]ACS_16_5YR_B17001_with_ann!AW45","v":12},{"$f":"[1]ACS_16_5YR_B17001_with_ann!AX45","v":0},{"$f":"[1]ACS_16_5YR_B17001_with_ann!AY45","v":12},{"$f":"[1]ACS_16_5YR_B17001_with_ann!AZ45","v":50},{"$f":"[1]ACS_16_5YR_B17001_with_ann!BA45","v":39},{"$f":"[1]ACS_16_5YR_B17001_with_ann!BB45","v":0},{"$f":"[1]ACS_16_5YR_B17001_with_ann!BC45","v":12},{"$f":"[1]ACS_16_5YR_B17001_with_ann!BD45","v":0},{"$f":"[1]ACS_16_5YR_B17001_with_ann!BE45","v":12},{"$f":"[1]ACS_16_5YR_B17001_with_ann!BF45","v":18},{"$f":"[1]ACS_16_5YR_B17001_with_ann!BG45","v":29},{"$f":"[1]ACS_16_5YR_B17001_with_ann!BH45","v":0},{"$f":"[1]ACS_16_5YR_B17001_with_ann!BI45","v":12},{"$f":"[1]ACS_16_5YR_B17001_with_ann!BJ45","v":19},{"$f":"[1]ACS_16_5YR_B17001_with_ann!BK45","v":28},{"$f":"[1]ACS_16_5YR_B17001_with_ann!BL45","v":3350},{"$f":"[1]ACS_16_5YR_B17001_with_ann!BM45","v":213},{"$f":"[1]ACS_16_5YR_B17001_with_ann!BN45","v":1860},{"$f":"[1]ACS_16_5YR_B17001_with_ann!BO45","v":165},{"$f":"[1]ACS_16_5YR_B17001_with_ann!BP45","v":121},{"$f":"[1]ACS_16_5YR_B17001_with_ann!BQ45","v":74},{"$f":"[1]ACS_16_5YR_B17001_with_ann!BR45","v":17},{"$f":"[1]ACS_16_5YR_B17001_with_ann!BS45","v":26},{"$f":"[1]ACS_16_5YR_B17001_with_ann!BT45","v":191},{"$f":"[1]ACS_16_5YR_B17001_with_ann!BU45","v":85},{"$f":"[1]ACS_16_5YR_B17001_with_ann!BV45","v":62},{"$f":"[1]ACS_16_5YR_B17001_with_ann!BW45","v":50},{"$f":"[1]ACS_16_5YR_B17001_with_ann!BX45","v":32},{"$f":"[1]ACS_16_5YR_B17001_with_ann!BY45","v":36},{"$f":"[1]ACS_16_5YR_B17001_with_ann!BZ45","v":63},{"$f":"[1]ACS_16_5YR_B17001_with_ann!CA45","v":79},{"$f":"[1]ACS_16_5YR_B17001_with_ann!CB45","v":92},{"$f":"[1]ACS_16_5YR_B17001_with_ann!CC45","v":68},{"$f":"[1]ACS_16_5YR_B17001_with_ann!CD45","v":221},{"$f":"[1]ACS_16_5YR_B17001_with_ann!CE45","v":108},{"$f":"[1]ACS_16_5YR_B17001_with_ann!CF45","v":208},{"$f":"[1]ACS_16_5YR_B17001_with_ann!CG45","v":104},{"$f":"[1]ACS_16_5YR_B17001_with_ann!CH45","v":124},{"$f":"[1]ACS_16_5YR_B17001_with_ann!CI45","v":112},{"$f":"[1]ACS_16_5YR_B17001_with_ann!CJ45","v":205},{"$f":"[1]ACS_16_5YR_B17001_with_ann!CK45","v":132},{"$f":"[1]ACS_16_5YR_B17001_with_ann!CL45","v":367},{"$f":"[1]ACS_16_5YR_B17001_with_ann!CM45","v":125},{"$f":"[1]ACS_16_5YR_B17001_with_ann!CN45","v":157},{"$f":"[1]ACS_16_5YR_B17001_with_ann!CO45","v":80},{"$f":"[1]ACS_16_5YR_B17001_with_ann!CP45","v":1490},{"$f":"[1]ACS_16_5YR_B17001_with_ann!CQ45","v":161},{"$f":"[1]ACS_16_5YR_B17001_with_ann!CR45","v":20},{"$f":"[1]ACS_16_5YR_B17001_with_ann!CS45","v":30},{"$f":"[1]ACS_16_5YR_B17001_with_ann!CT45","v":0},{"$f":"[1]ACS_16_5YR_B17001_with_ann!CU45","v":12},{"$f":"[1]ACS_16_5YR_B17001_with_ann!CV45","v":89},{"$f":"[1]ACS_16_5YR_B17001_with_ann!CW45","v":58},{"$f":"[1]ACS_16_5YR_B17001_with_ann!CX45","v":55},{"$f":"[1]ACS_16_5YR_B17001_with_ann!CY45","v":46},{"$f":"[1]ACS_16_5YR_B17001_with_ann!CZ45","v":0},{"$f":"[1]ACS_16_5YR_B17001_with_ann!DA45","v":12},{"$f":"[1]ACS_16_5YR_B17001_with_ann!DB45","v":0},{"$f":"[1]ACS_16_5YR_B17001_with_ann!DC45","v":12},{"$f":"[1]ACS_16_5YR_B17001_with_ann!DD45","v":54},{"$f":"[1]ACS_16_5YR_B17001_with_ann!DE45","v":55},{"$f":"[1]ACS_16_5YR_B17001_with_ann!DF45","v":219},{"$f":"[1]ACS_16_5YR_B17001_with_ann!DG45","v":121},{"$f":"[1]ACS_16_5YR_B17001_with_ann!DH45","v":128},{"$f":"[1]ACS_16_5YR_B17001_with_ann!DI45","v":79},{"$f":"[1]ACS_16_5YR_B17001_with_ann!DJ45","v":259},{"$f":"[1]ACS_16_5YR_B17001_with_ann!DK45","v":97},{"$f":"[1]ACS_16_5YR_B17001_with_ann!DL45","v":324},{"$f":"[1]ACS_16_5YR_B17001_with_ann!DM45","v":148},{"$f":"[1]ACS_16_5YR_B17001_with_ann!DN45","v":244},{"$f":"[1]ACS_16_5YR_B17001_with_ann!DO45","v":110},{"$f":"[1]ACS_16_5YR_B17001_with_ann!DP45","v":98},{"$f":"[1]ACS_16_5YR_B17001_with_ann!DQ45","v":71}]
["06000US3300519140","0600000US3300526500","060",{"$f":"[1]ACS_16_5YR_B17001_with_ann!C46","v":"Dublin"},{"$f":"[1]ACS_16_5YR_B17001_with_ann!D46","v":1675},{"$f":"[1]ACS_16_5YR_B17001_with_ann!E46","v":216},{"$f":"[1]ACS_16_5YR_B17001_with_ann!F46","v":164},{"$f":"[1]ACS_16_5YR_B17001_with_ann!G46","v":89},{"$f":"[1]ACS_16_5YR_B17001_with_ann!H46","v":86},{"$f":"[1]ACS_16_5YR_B17001_with_ann!I46","v":56},{"$f":"[1]ACS_16_5YR_B17001_with_ann!J46","v":0},{"$f":"[1]ACS_16_5YR_B17001_with_ann!K46","v":12},{"$f":"[1]ACS_16_5YR_B17001_with_ann!L46","v":0},{"$f":"[1]ACS_16_5YR_B17001_with_ann!M46","v":12},{"$f":"[1]ACS_16_5YR_B17001_with_ann!N46","v":6},{"$f":"[1]ACS_16_5YR_B17001_with_ann!O46","v":6},{"$f":"[1]ACS_16_5YR_B17001_with_ann!P46","v":4},{"$f":"[1]ACS_16_5YR_B17001_with_ann!Q46","v":7},{"$f":"[1]ACS_16_5YR_B17001_with_ann!R46","v":5},{"$f":"[1]ACS_16_5YR_B17001_with_ann!S46","v":6},{"$f":"[1]ACS_16_5YR_B17001_with_ann!T46","v":9},{"$f":"[1]ACS_16_5YR_B17001_with_ann!U46","v":9},{"$f":"[1]ACS_16_5YR_B17001_with_ann!V46","v":0},{"$f":"[1]ACS_16_5YR_B17001_with_ann!W46","v":12},{"$f":"[1]ACS_16_5YR_B17001_with_ann!X46","v":0},{"$f":"[1]ACS_16_5YR_B17001_with_ann!Y46","v":12},{"$f":"[1]ACS_16_5YR_B17001_with_ann!Z46","v":8},{"$f":"[1]ACS_16_5YR_B17001_with_ann!AA46","v":12},{"$f":"[1]ACS_16_5YR_B17001_with_ann!AB46","v":7},{"$f":"[1]ACS_16_5YR_B17001_with_ann!AC46","v":7},{"$f":"[1]ACS_16_5YR_B17001_with_ann!AD46","v":11},{"$f":"[1]ACS_16_5YR_B17001_with_ann!AE46","v":13},{"$f":"[1]ACS_16_5YR_B17001_with_ann!AF46","v":34},{"$f":"[1]ACS_16_5YR_B17001_with_ann!AG46","v":53},{"$f":"[1]ACS_16_5YR_B17001_with_ann!AH46","v":2},{"$f":"[1]ACS_16_5YR_B17001_with_ann!AI46","v":5},{"$f":"[1]ACS_16_5YR_B17001_with_ann!AJ46","v":78},{"$f":"[1]ACS_16_5YR_B17001_with_ann!AK46","v":46},{"$f":"[1]ACS_16_5YR_B17001_with_ann!AL46","v":4},{"$f":"[1]ACS_16_5YR_B17001_with_ann!AM46","v":6},{"$f":"[1]ACS_16_5YR_B17001_with_ann!AN46","v":0},{"$f":"[1]ACS_16_5YR_B17001_with_ann!AO46","v":12},{"$f":"[1]ACS_16_5YR_B17001_with_ann!AP46","v":3},{"$f":"[1]ACS_16_5YR_B17001_with_ann!AQ46","v":4},{"$f":"[1]ACS_16_5YR_B17001_with_ann!AR46","v":10},{"$f":"[1]ACS_16_5YR_B17001_with_ann!AS46","v":11},{"$f":"[1]ACS_16_5YR_B17001_with_ann!AT46","v":0},{"$f":"[1]ACS_16_5YR_B17001_with_ann!AU46","v":12},{"$f":"[1]ACS_16_5YR_B17001_with_ann!AV46","v":0},{"$f":"[1]ACS_16_5YR_B17001_with_ann!AW46","v":12},{"$f":"[1]ACS_16_5YR_B17001_with_ann!AX46","v":0},{"$f":"[1]ACS_16_5YR_B17001_with_ann!AY46","v":12},{"$f":"[1]ACS_16_5YR_B17001_with_ann!AZ46","v":8},{"$f":"[1]ACS_16_5YR_B17001_with_ann!BA46","v":15},{"$f":"[1]ACS_16_5YR_B17001_with_ann!BB46","v":5},{"$f":"[1]ACS_16_5YR_B17001_with_ann!BC46","v":4},{"$f":"[1]ACS_16_5YR_B17001_with_ann!BD46","v":12},{"$f":"[1]ACS_16_5YR_B17001_with_ann!BE46","v":13},{"$f":"[1]ACS_16_5YR_B17001_with_ann!BF46","v":5},{"$f":"[1]ACS_16_5YR_B17001_with_ann!BG46","v":7},{"$f":"[1]ACS_16_5YR_B17001_with_ann!BH46","v":25},{"$f":"[1]ACS_16_5YR_B17001_with_ann!BI46","v":38},{"$f":"[1]ACS_16_5YR_B17001_with_ann!BJ46","v":6},{"$f":"[1]ACS_16_5YR_B17001_with_ann!BK46","v":6},{"$f":"[1]ACS_16_5YR_B17001_with_ann!BL46","v":1511},{"$f":"[1]ACS_16_5YR_B17001_with_ann!BM46","v":201},{"$f":"[1]ACS_16_5YR_B17001_with_ann!BN46","v":696},{"$f":"[1]ACS_16_5YR_B17001_with_ann!BO46","v":98},{"$f":"[1]ACS_16_5YR_B17001_with_ann!BP46","v":24},{"$f":"[1]ACS_16_5YR_B17001_with_ann!BQ46","v":19},{"$f":"[1]ACS_16_5YR_B17001_with_ann!BR46","v":4},{"$f":"[1]ACS_16_5YR_B17001_with_ann!BS46","v":6},{"$f":"[1]ACS_16_5YR_B17001_with_ann!BT46","v":28},{"$f":"[1]ACS_16_5YR_B17001_with_ann!BU46","v":16},{"$f":"[1]ACS_16_5YR_B17001_with_ann!BV46","v":28},{"$f":"[1]ACS_16_5YR_B17001_with_ann!BW46","v":20},{"$f":"[1]ACS_16_5YR_B17001_with_ann!BX46","v":8},{"$f":"[1]ACS_16_5YR_B17001_with_ann!BY46","v":10},{"$f":"[1]ACS_16_5YR_B17001_with_ann!BZ46","v":5},{"$f":"[1]ACS_16_5YR_B17001_with_ann!CA46","v":9},{"$f":"[1]ACS_16_5YR_B17001_with_ann!CB46","v":55},{"$f":"[1]ACS_16_5YR_B17001_with_ann!CC46","v":28},{"$f":"[1]ACS_16_5YR_B17001_with_ann!CD46","v":63},{"$f":"[1]ACS_16_5YR_B17001_with_ann!CE46","v":45},{"$f":"[1]ACS_16_5YR_B17001_with_ann!CF46","v":61},{"$f":"[1]ACS_16_5YR_B17001_with_ann!CG46","v":24},{"$f":"[1]ACS_16_5YR_B17001_with_ann!CH46","v":130},{"$f":"[1]ACS_16_5YR_B17001_with_ann!CI46","v":34},{"$f":"[1]ACS_16_5YR_B17001_with_ann!CJ46","v":121},{"$f":"[1]ACS_16_5YR_B17001_with_ann!CK46","v":58},{"$f":"[1]ACS_16_5YR_B17001_with_ann!CL46","v":119},{"$f":"[1]ACS_16_5YR_B17001_with_ann!CM46","v":36},{"$f":"[1]ACS_16_5YR_B17001_with_ann!CN46","v":50},{"$f":"[1]ACS_16_5YR_B17001_with_ann!CO46","v":26},{"$f":"[1]ACS_16_5YR_B17001_with_ann!CP46","v":815},{"$f":"[1]ACS_16_5YR_B17001_with_ann!CQ46","v":126},{"$f":"[1]ACS_16_5YR_B17001_with_ann!CR46","v":53},{"$f":"[1]ACS_16_5YR_B17001_with_ann!CS46","v":32},{"$f":"[1]ACS_16_5YR_B17001_with_ann!CT46","v":2},{"$f":"[1]ACS_16_5YR_B17001_with_ann!CU46","v":3},{"$f":"[1]ACS_16_5YR_B17001_with_ann!CV46","v":55},{"$f":"[1]ACS_16_5YR_B17001_with_ann!CW46","v":18},{"$f":"[1]ACS_16_5YR_B17001_with_ann!CX46","v":44},{"$f":"[1]ACS_16_5YR_B17001_with_ann!CY46","v":21},{"$f":"[1]ACS_16_5YR_B17001_with_ann!CZ46","v":16},{"$f":"[1]ACS_16_5YR_B17001_with_ann!DA46","v":17},{"$f":"[1]ACS_16_5YR_B17001_with_ann!DB46","v":19},{"$f":"[1]ACS_16_5YR_B17001_with_ann!DC46","v":14},{"$f":"[1]ACS_16_5YR_B17001_with_ann!DD46","v":15},{"$f":"[1]ACS_16_5YR_B17001_with_ann!DE46","v":14},{"$f":"[1]ACS_16_5YR_B17001_with_ann!DF46","v":22},{"$f":"[1]ACS_16_5YR_B17001_with_ann!DG46","v":16},{"$f":"[1]ACS_16_5YR_B17001_with_ann!DH46","v":93},{"$f":"[1]ACS_16_5YR_B17001_with_ann!DI46","v":40},{"$f":"[1]ACS_16_5YR_B17001_with_ann!DJ46","v":135},{"$f":"[1]ACS_16_5YR_B17001_with_ann!DK46","v":46},{"$f":"[1]ACS_16_5YR_B17001_with_ann!DL46","v":154},{"$f":"[1]ACS_16_5YR_B17001_with_ann!DM46","v":77},{"$f":"[1]ACS_16_5YR_B17001_with_ann!DN46","v":137},{"$f":"[1]ACS_16_5YR_B17001_with_ann!DO46","v":42},{"$f":"[1]ACS_16_5YR_B17001_with_ann!DP46","v":70},{"$f":"[1]ACS_16_5YR_B17001_with_ann!DQ46","v":51}]
["06000US3300526500","0600000US3300529220","060",{"$f":"[1]ACS_16_5YR_B17001_with_ann!C47","v":"Fitzwilliam"},{"$f":"[1]ACS_16_5YR_B17001_with_ann!D47","v":2282},{"$f":"[1]ACS_16_5YR_B17001_with_ann!E47","v":370},{"$f":"[1]ACS_16_5YR_B17001_with_ann!F47","v":214},{"$f":"[1]ACS_16_5YR_B17001_with_ann!G47","v":100},{"$f":"[1]ACS_16_5YR_B17001_with_ann!H47","v":87},{"$f":"[1]ACS_16_5YR_B17001_with_ann!I47","v":42},{"$f":"[1]ACS_16_5YR_B17001_with_ann!J47","v":0},{"$f":"[1]ACS_16_5YR_B17001_with_ann!K47","v":12},{"$f":"[1]ACS_16_5YR_B17001_with_ann!L47","v":0},{"$f":"[1]ACS_16_5YR_B17001_with_ann!M47","v":12},{"$f":"[1]ACS_16_5YR_B17001_with_ann!N47","v":0},{"$f":"[1]ACS_16_5YR_B17001_with_ann!O47","v":12},{"$f":"[1]ACS_16_5YR_B17001_with_ann!P47","v":0},{"$f":"[1]ACS_16_5YR_B17001_with_ann!Q47","v":12},{"$f":"[1]ACS_16_5YR_B17001_with_ann!R47","v":0},{"$f":"[1]ACS_16_5YR_B17001_with_ann!S47","v":12},{"$f":"[1]ACS_16_5YR_B17001_with_ann!T47","v":10},{"$f":"[1]ACS_16_5YR_B17001_with_ann!U47","v":16},{"$f":"[1]ACS_16_5YR_B17001_with_ann!V47","v":6},{"$f":"[1]ACS_16_5YR_B17001_with_ann!W47","v":9},{"$f":"[1]ACS_16_5YR_B17001_with_ann!X47","v":0},{"$f":"[1]ACS_16_5YR_B17001_with_ann!Y47","v":12},{"$f":"[1]ACS_16_5YR_B17001_with_ann!Z47","v":5},{"$f":"[1]ACS_16_5YR_B17001_with_ann!AA47","v":8},{"$f":"[1]ACS_16_5YR_B17001_with_ann!AB47","v":23},{"$f":"[1]ACS_16_5YR_B17001_with_ann!AC47","v":21},{"$f":"[1]ACS_16_5YR_B17001_with_ann!AD47","v":24},{"$f":"[1]ACS_16_5YR_B17001_with_ann!AE47","v":27},{"$f":"[1]ACS_16_5YR_B17001_with_ann!AF47","v":10},{"$f":"[1]ACS_16_5YR_B17001_with_ann!AG47","v":13},{"$f":"[1]ACS_16_5YR_B17001_with_ann!AH47","v":9},{"$f":"[1]ACS_16_5YR_B17001_with_ann!AI47","v":9},{"$f":"[1]ACS_16_5YR_B17001_with_ann!AJ47","v":127},{"$f":"[1]ACS_16_5YR_B17001_with_ann!AK47","v":72},{"$f":"[1]ACS_16_5YR_B17001_with_ann!AL47","v":0},{"$f":"[1]ACS_16_5YR_B17001_with_ann!AM47","v":12},{"$f":"[1]ACS_16_5YR_B17001_with_ann!AN47","v":0},{"$f":"[1]ACS_16_5YR_B17001_with_ann!AO47","v":12},{"$f":"[1]ACS_16_5YR_B17001_with_ann!AP47","v":0},{"$f":"[1]ACS_16_5YR_B17001_with_ann!AQ47","v":12},{"$f":"[1]ACS_16_5YR_B17001_with_ann!AR47","v":15},{"$f":"[1]ACS_16_5YR_B17001_with_ann!AS47","v":17},{"$f":"[1]ACS_16_5YR_B17001_with_ann!AT47","v":0},{"$f":"[1]ACS_16_5YR_B17001_with_ann!AU47","v":12},{"$f":"[1]ACS_16_5YR_B17001_with_ann!AV47","v":0},{"$f":"[1]ACS_16_5YR_B17001_with_ann!AW47","v":12},{"$f":"[1]ACS_16_5YR_B17001_with_ann!AX47","v":4},{"$f":"[1]ACS_16_5YR_B17001_with_ann!AY47","v":8},{"$f":"[1]ACS_16_5YR_B17001_with_ann!AZ47","v":16},{"$f":"[1]ACS_16_5YR_B17001_with_ann!BA47","v":31},{"$f":"[1]ACS_16_5YR_B17001_with_ann!BB47","v":0},{"$f":"[1]ACS_16_5YR_B17001_with_ann!BC47","v":12},{"$f":"[1]ACS_16_5YR_B17001_with_ann!BD47","v":32},{"$f":"[1]ACS_16_5YR_B17001_with_ann!BE47","v":35},{"$f":"[1]ACS_16_5YR_B17001_with_ann!BF47","v":29},{"$f":"[1]ACS_16_5YR_B17001_with_ann!BG47","v":29},{"$f":"[1]ACS_16_5YR_B17001_with_ann!BH47","v":26},{"$f":"[1]ACS_16_5YR_B17001_with_ann!BI47","v":29},{"$f":"[1]ACS_16_5YR_B17001_with_ann!BJ47","v":5},{"$f":"[1]ACS_16_5YR_B17001_with_ann!BK47","v":8},{"$f":"[1]ACS_16_5YR_B17001_with_ann!BL47","v":2068},{"$f":"[1]ACS_16_5YR_B17001_with_ann!BM47","v":349},{"$f":"[1]ACS_16_5YR_B17001_with_ann!BN47","v":1116},{"$f":"[1]ACS_16_5YR_B17001_with_ann!BO47","v":210},{"$f":"[1]ACS_16_5YR_B17001_with_ann!BP47","v":33},{"$f":"[1]ACS_16_5YR_B17001_with_ann!BQ47","v":23},{"$f":"[1]ACS_16_5YR_B17001_with_ann!BR47","v":8},{"$f":"[1]ACS_16_5YR_B17001_with_ann!BS47","v":13},{"$f":"[1]ACS_16_5YR_B17001_with_ann!BT47","v":42},{"$f":"[1]ACS_16_5YR_B17001_with_ann!BU47","v":19},{"$f":"[1]ACS_16_5YR_B17001_with_ann!BV47","v":11},{"$f":"[1]ACS_16_5YR_B17001_with_ann!BW47","v":10},{"$f":"[1]ACS_16_5YR_B17001_with_ann!BX47","v":0},{"$f":"[1]ACS_16_5YR_B17001_with_ann!BY47","v":12},{"$f":"[1]ACS_16_5YR_B17001_with_ann!BZ47","v":30},{"$f":"[1]ACS_16_5YR_B17001_with_ann!CA47","v":25},{"$f":"[1]ACS_16_5YR_B17001_with_ann!CB47","v":55},{"$f":"[1]ACS_16_5YR_B17001_with_ann!CC47","v":34},{"$f":"[1]ACS_16_5YR_B17001_with_ann!CD47","v":165},{"$f":"[1]ACS_16_5YR_B17001_with_ann!CE47","v":80},{"$f":"[1]ACS_16_5YR_B17001_with_ann!CF47","v":114},{"$f":"[1]ACS_16_5YR_B17001_with_ann!CG47","v":40},{"$f":"[1]ACS_16_5YR_B17001_with_ann!CH47","v":213},{"$f":"[1]ACS_16_5YR_B17001_with_ann!CI47","v":154},{"$f":"[1]ACS_16_5YR_B17001_with_ann!CJ47","v":226},{"$f":"[1]ACS_16_5YR_B17001_with_ann!CK47","v":61},{"$f":"[1]ACS_16_5YR_B17001_with_ann!CL47","v":185},{"$f":"[1]ACS_16_5YR_B17001_with_ann!CM47","v":51},{"$f":"[1]ACS_16_5YR_B17001_with_ann!CN47","v":34},{"$f":"[1]ACS_16_5YR_B17001_with_ann!CO47","v":17},{"$f":"[1]ACS_16_5YR_B17001_with_ann!CP47","v":952},{"$f":"[1]ACS_16_5YR_B17001_with_ann!CQ47","v":172},{"$f":"[1]ACS_16_5YR_B17001_with_ann!CR47","v":40},{"$f":"[1]ACS_16_5YR_B17001_with_ann!CS47","v":44},{"$f":"[1]ACS_16_5YR_B17001_with_ann!CT47","v":7},{"$f":"[1]ACS_16_5YR_B17001_with_ann!CU47","v":9},{"$f":"[1]ACS_16_5YR_B17001_with_ann!CV47","v":43},{"$f":"[1]ACS_16_5YR_B17001_with_ann!CW47","v":29},{"$f":"[1]ACS_16_5YR_B17001_with_ann!CX47","v":36},{"$f":"[1]ACS_16_5YR_B17001_with_ann!CY47","v":24},{"$f":"[1]ACS_16_5YR_B17001_with_ann!CZ47","v":0},{"$f":"[1]ACS_16_5YR_B17001_with_ann!DA47","v":12},{"$f":"[1]ACS_16_5YR_B17001_with_ann!DB47","v":5},{"$f":"[1]ACS_16_5YR_B17001_with_ann!DC47","v":7},{"$f":"[1]ACS_16_5YR_B17001_with_ann!DD47","v":40},{"$f":"[1]ACS_16_5YR_B17001_with_ann!DE47","v":33},{"$f":"[1]ACS_16_5YR_B17001_with_ann!DF47","v":91},{"$f":"[1]ACS_16_5YR_B17001_with_ann!DG47","v":57},{"$f":"[1]ACS_16_5YR_B17001_with_ann!DH47","v":91},{"$f":"[1]ACS_16_5YR_B17001_with_ann!DI47","v":28},{"$f":"[1]ACS_16_5YR_B17001_with_ann!DJ47","v":61},{"$f":"[1]ACS_16_5YR_B17001_with_ann!DK47","v":40},{"$f":"[1]ACS_16_5YR_B17001_with_ann!DL47","v":271},{"$f":"[1]ACS_16_5YR_B17001_with_ann!DM47","v":71},{"$f":"[1]ACS_16_5YR_B17001_with_ann!DN47","v":225},{"$f":"[1]ACS_16_5YR_B17001_with_ann!DO47","v":102},{"$f":"[1]ACS_16_5YR_B17001_with_ann!DP47","v":42},{"$f":"[1]ACS_16_5YR_B17001_with_ann!DQ47","v":26}]
["06000US3300529220","0600000US3300534420","060",{"$f":"[1]ACS_16_5YR_B17001_with_ann!C48","v":"Gilsum"},{"$f":"[1]ACS_16_5YR_B17001_with_ann!D48","v":871},{"$f":"[1]ACS_16_5YR_B17001_with_ann!E48","v":144},{"$f":"[1]ACS_16_5YR_B17001_with_ann!F48","v":59},{"$f":"[1]ACS_16_5YR_B17001_with_ann!G48","v":35},{"$f":"[1]ACS_16_5YR_B17001_with_ann!H48","v":27},{"$f":"[1]ACS_16_5YR_B17001_with_ann!I48","v":18},{"$f":"[1]ACS_16_5YR_B17001_with_ann!J48","v":0},{"$f":"[1]ACS_16_5YR_B17001_with_ann!K48","v":12},{"$f":"[1]ACS_16_5YR_B17001_with_ann!L48","v":0},{"$f":"[1]ACS_16_5YR_B17001_with_ann!M48","v":12},{"$f":"[1]ACS_16_5YR_B17001_with_ann!N48","v":0},{"$f":"[1]ACS_16_5YR_B17001_with_ann!O48","v":12},{"$f":"[1]ACS_16_5YR_B17001_with_ann!P48","v":0},{"$f":"[1]ACS_16_5YR_B17001_with_ann!Q48","v":12},{"$f":"[1]ACS_16_5YR_B17001_with_ann!R48","v":3},{"$f":"[1]ACS_16_5YR_B17001_with_ann!S48","v":5},{"$f":"[1]ACS_16_5YR_B17001_with_ann!T48","v":0},{"$f":"[1]ACS_16_5YR_B17001_with_ann!U48","v":12},{"$f":"[1]ACS_16_5YR_B17001_with_ann!V48","v":2},{"$f":"[1]ACS_16_5YR_B17001_with_ann!W48","v":4},{"$f":"[1]ACS_16_5YR_B17001_with_ann!X48","v":4},{"$f":"[1]ACS_16_5YR_B17001_with_ann!Y48","v":7},{"$f":"[1]ACS_16_5YR_B17001_with_ann!Z48","v":6},{"$f":"[1]ACS_16_5YR_B17001_with_ann!AA48","v":9},{"$f":"[1]ACS_16_5YR_B17001_with_ann!AB48","v":9},{"$f":"[1]ACS_16_5YR_B17001_with_ann!AC48","v":8},{"$f":"[1]ACS_16_5YR_B17001_with_ann!AD48","v":2},{"$f":"[1]ACS_16_5YR_B17001_with_ann!AE48","v":3},{"$f":"[1]ACS_16_5YR_B17001_with_ann!AF48","v":0},{"$f":"[1]ACS_16_5YR_B17001_with_ann!AG48","v":12},{"$f":"[1]ACS_16_5YR_B17001_with_ann!AH48","v":1},{"$f":"[1]ACS_16_5YR_B17001_with_ann!AI48","v":3},{"$f":"[1]ACS_16_5YR_B17001_with_ann!AJ48","v":32},{"$f":"[1]ACS_16_5YR_B17001_with_ann!AK48","v":26},{"$f":"[1]ACS_16_5YR_B17001_with_ann!AL48","v":5},{"$f":"[1]ACS_16_5YR_B17001_with_ann!AM48","v":8},{"$f":"[1]ACS_16_5YR_B17001_with_ann!AN48","v":0},{"$f":"[1]ACS_16_5YR_B17001_with_ann!AO48","v":12},{"$f":"[1]ACS_16_5YR_B17001_with_ann!AP48","v":2},{"$f":"[1]ACS_16_5YR_B17001_with_ann!AQ48","v":3},{"$f":"[1]ACS_16_5YR_B17001_with_ann!AR48","v":2},{"$f":"[1]ACS_16_5YR_B17001_with_ann!AS48","v":3},{"$f":"[1]ACS_16_5YR_B17001_with_ann!AT48","v":0},{"$f":"[1]ACS_16_5YR_B17001_with_ann!AU48","v":12},{"$f":"[1]ACS_16_5YR_B17001_with_ann!AV48","v":0},{"$f":"[1]ACS_16_5YR_B17001_with_ann!AW48","v":12},{"$f":"[1]ACS_16_5YR_B17001_with_ann!AX48","v":0},{"$f":"[1]ACS_16_5YR_B17001_with_ann!AY48","v":12},{"$f":"[1]ACS_16_5YR_B17001_with_ann!AZ48","v":0},{"$f":"[1]ACS_16_5YR_B17001_with_ann!BA48","v":12},{"$f":"[1]ACS_16_5YR_B17001_with_ann!BB48","v":3},{"$f":"[1]ACS_16_5YR_B17001_with_ann!BC48","v":4},{"$f":"[1]ACS_16_5YR_B17001_with_ann!BD48","v":4},{"$f":"[1]ACS_16_5YR_B17001_with_ann!BE48","v":4},{"$f":"[1]ACS_16_5YR_B17001_with_ann!BF48","v":0},{"$f":"[1]ACS_16_5YR_B17001_with_ann!BG48","v":12},{"$f":"[1]ACS_16_5YR_B17001_with_ann!BH48","v":16},{"$f":"[1]ACS_16_5YR_B17001_with_ann!BI48","v":15},{"$f":"[1]ACS_16_5YR_B17001_with_ann!BJ48","v":0},{"$f":"[1]ACS_16_5YR_B17001_with_ann!BK48","v":12},{"$f":"[1]ACS_16_5YR_B17001_with_ann!BL48","v":812},{"$f":"[1]ACS_16_5YR_B17001_with_ann!BM48","v":144},{"$f":"[1]ACS_16_5YR_B17001_with_ann!BN48","v":425},{"$f":"[1]ACS_16_5YR_B17001_with_ann!BO48","v":88},{"$f":"[1]ACS_16_5YR_B17001_with_ann!BP48","v":33},{"$f":"[1]ACS_16_5YR_B17001_with_ann!BQ48","v":23},{"$f":"[1]ACS_16_5YR_B17001_with_ann!BR48","v":5},{"$f":"[1]ACS_16_5YR_B17001_with_ann!BS48","v":7},{"$f":"[1]ACS_16_5YR_B17001_with_ann!BT48","v":12},{"$f":"[1]ACS_16_5YR_B17001_with_ann!BU48","v":10},{"$f":"[1]ACS_16_5YR_B17001_with_ann!BV48","v":2},{"$f":"[1]ACS_16_5YR_B17001_with_ann!BW48","v":3},{"$f":"[1]ACS_16_5YR_B17001_with_ann!BX48","v":0},{"$f":"[1]ACS_16_5YR_B17001_with_ann!BY48","v":12},{"$f":"[1]ACS_16_5YR_B17001_with_ann!BZ48","v":30},{"$f":"[1]ACS_16_5YR_B17001_with_ann!CA48","v":29},{"$f":"[1]ACS_16_5YR_B17001_with_ann!CB48","v":54},{"$f":"[1]ACS_16_5YR_B17001_with_ann!CC48","v":36},{"$f":"[1]ACS_16_5YR_B17001_with_ann!CD48","v":59},{"$f":"[1]ACS_16_5YR_B17001_with_ann!CE48","v":32},{"$f":"[1]ACS_16_5YR_B17001_with_ann!CF48","v":34},{"$f":"[1]ACS_16_5YR_B17001_with_ann!CG48","v":19},{"$f":"[1]ACS_16_5YR_B17001_with_ann!CH48","v":51},{"$f":"[1]ACS_16_5YR_B17001_with_ann!CI48","v":24},{"$f":"[1]ACS_16_5YR_B17001_with_ann!CJ48","v":56},{"$f":"[1]ACS_16_5YR_B17001_with_ann!CK48","v":21},{"$f":"[1]ACS_16_5YR_B17001_with_ann!CL48","v":76},{"$f":"[1]ACS_16_5YR_B17001_with_ann!CM48","v":29},{"$f":"[1]ACS_16_5YR_B17001_with_ann!CN48","v":13},{"$f":"[1]ACS_16_5YR_B17001_with_ann!CO48","v":9},{"$f":"[1]ACS_16_5YR_B17001_with_ann!CP48","v":387},{"$f":"[1]ACS_16_5YR_B17001_with_ann!CQ48","v":72},{"$f":"[1]ACS_16_5YR_B17001_with_ann!CR48","v":21},{"$f":"[1]ACS_16_5YR_B17001_with_ann!CS48","v":15},{"$f":"[1]ACS_16_5YR_B17001_with_ann!CT48","v":7},{"$f":"[1]ACS_16_5YR_B17001_with_ann!CU48","v":8},{"$f":"[1]ACS_16_5YR_B17001_with_ann!CV48","v":25},{"$f":"[1]ACS_16_5YR_B17001_with_ann!CW48","v":28},{"$f":"[1]ACS_16_5YR_B17001_with_ann!CX48","v":0},{"$f":"[1]ACS_16_5YR_B17001_with_ann!CY48","v":12},{"$f":"[1]ACS_16_5YR_B17001_with_ann!CZ48","v":2},{"$f":"[1]ACS_16_5YR_B17001_with_ann!DA48","v":3},{"$f":"[1]ACS_16_5YR_B17001_with_ann!DB48","v":0},{"$f":"[1]ACS_16_5YR_B17001_with_ann!DC48","v":12},{"$f":"[1]ACS_16_5YR_B17001_with_ann!DD48","v":41},{"$f":"[1]ACS_16_5YR_B17001_with_ann!DE48","v":23},{"$f":"[1]ACS_16_5YR_B17001_with_ann!DF48","v":54},{"$f":"[1]ACS_16_5YR_B17001_with_ann!DG48","v":26},{"$f":"[1]ACS_16_5YR_B17001_with_ann!DH48","v":35},{"$f":"[1]ACS_16_5YR_B17001_with_ann!DI48","v":17},{"$f":"[1]ACS_16_5YR_B17001_with_ann!DJ48","v":55},{"$f":"[1]ACS_16_5YR_B17001_with_ann!DK48","v":30},{"$f":"[1]ACS_16_5YR_B17001_with_ann!DL48","v":73},{"$f":"[1]ACS_16_5YR_B17001_with_ann!DM48","v":24},{"$f":"[1]ACS_16_5YR_B17001_with_ann!DN48","v":42},{"$f":"[1]ACS_16_5YR_B17001_with_ann!DO48","v":20},{"$f":"[1]ACS_16_5YR_B17001_with_ann!DP48","v":32},{"$f":"[1]ACS_16_5YR_B17001_with_ann!DQ48","v":14}]
["06000US3300534420","0600000US3300536660","060",{"$f":"[1]ACS_16_5YR_B17001_with_ann!C49","v":"Harrisville"},{"$f":"[1]ACS_16_5YR_B17001_with_ann!D49","v":977},{"$f":"[1]ACS_16_5YR_B17001_with_ann!E49","v":197},{"$f":"[1]ACS_16_5YR_B17001_with_ann!F49","v":42},{"$f":"[1]ACS_16_5YR_B17001_with_ann!G49","v":25},{"$f":"[1]ACS_16_5YR_B17001_with_ann!H49","v":24},{"$f":"[1]ACS_16_5YR_B17001_with_ann!I49","v":19},{"$f":"[1]ACS_16_5YR_B17001_with_ann!J49","v":0},{"$f":"[1]ACS_16_5YR_B17001_with_ann!K49","v":12},{"$f":"[1]ACS_16_5YR_B17001_with_ann!L49","v":0},{"$f":"[1]ACS_16_5YR_B17001_with_ann!M49","v":12},{"$f":"[1]ACS_16_5YR_B17001_with_ann!N49","v":0},{"$f":"[1]ACS_16_5YR_B17001_with_ann!O49","v":12},{"$f":"[1]ACS_16_5YR_B17001_with_ann!P49","v":0},{"$f":"[1]ACS_16_5YR_B17001_with_ann!Q49","v":12},{"$f":"[1]ACS_16_5YR_B17001_with_ann!R49","v":0},{"$f":"[1]ACS_16_5YR_B17001_with_ann!S49","v":12},{"$f":"[1]ACS_16_5YR_B17001_with_ann!T49","v":0},{"$f":"[1]ACS_16_5YR_B17001_with_ann!U49","v":12},{"$f":"[1]ACS_16_5YR_B17001_with_ann!V49","v":0},{"$f":"[1]ACS_16_5YR_B17001_with_ann!W49","v":12},{"$f":"[1]ACS_16_5YR_B17001_with_ann!X49","v":0},{"$f":"[1]ACS_16_5YR_B17001_with_ann!Y49","v":12},{"$f":"[1]ACS_16_5YR_B17001_with_ann!Z49","v":5},{"$f":"[1]ACS_16_5YR_B17001_with_ann!AA49","v":7},{"$f":"[1]ACS_16_5YR_B17001_with_ann!AB49","v":7},{"$f":"[1]ACS_16_5YR_B17001_with_ann!AC49","v":9},{"$f":"[1]ACS_16_5YR_B17001_with_ann!AD49","v":12},{"$f":"[1]ACS_16_5YR_B17001_with_ann!AE49","v":15},{"$f":"[1]ACS_16_5YR_B17001_with_ann!AF49","v":0},{"$f":"[1]ACS_16_5YR_B17001_with_ann!AG49","v":12},{"$f":"[1]ACS_16_5YR_B17001_with_ann!AH49","v":0},{"$f":"[1]ACS_16_5YR_B17001_with_ann!AI49","v":12},{"$f":"[1]ACS_16_5YR_B17001_with_ann!AJ49","v":18},{"$f":"[1]ACS_16_5YR_B17001_with_ann!AK49","v":14},{"$f":"[1]ACS_16_5YR_B17001_with_ann!AL49","v":0},{"$f":"[1]ACS_16_5YR_B17001_with_ann!AM49","v":12},{"$f":"[1]ACS_16_5YR_B17001_with_ann!AN49","v":0},{"$f":"[1]ACS_16_5YR_B17001_with_ann!AO49","v":12},{"$f":"[1]ACS_16_5YR_B17001_with_ann!AP49","v":0},{"$f":"[1]ACS_16_5YR_B17001_with_ann!AQ49","v":12},{"$f":"[1]ACS_16_5YR_B17001_with_ann!AR49","v":0},{"$f":"[1]ACS_16_5YR_B17001_with_ann!AS49","v":12},{"$f":"[1]ACS_16_5YR_B17001_with_ann!AT49","v":0},{"$f":"[1]ACS_16_5YR_B17001_with_ann!AU49","v":12},{"$f":"[1]ACS_16_5YR_B17001_with_ann!AV49","v":0},{"$f":"[1]ACS_16_5YR_B17001_with_ann!AW49","v":12},{"$f":"[1]ACS_16_5YR_B17001_with_ann!AX49","v":0},{"$f":"[1]ACS_16_5YR_B17001_with_ann!AY49","v":12},{"$f":"[1]ACS_16_5YR_B17001_with_ann!AZ49","v":0},{"$f":"[1]ACS_16_5YR_B17001_with_ann!BA49","v":12},{"$f":"[1]ACS_16_5YR_B17001_with_ann!BB49","v":0},{"$f":"[1]ACS_16_5YR_B17001_with_ann!BC49","v":12},{"$f":"[1]ACS_16_5YR_B17001_with_ann!BD49","v":5},{"$f":"[1]ACS_16_5YR_B17001_with_ann!BE49","v":7},{"$f":"[1]ACS_16_5YR_B17001_with_ann!BF49","v":10},{"$f":"[1]ACS_16_5YR_B17001_with_ann!BG49","v":13},{"$f":"[1]ACS_16_5YR_B17001_with_ann!BH49","v":3},{"$f":"[1]ACS_16_5YR_B17001_with_ann!BI49","v":4},{"$f":"[1]ACS_16_5YR_B17001_with_ann!BJ49","v":0},{"$f":"[1]ACS_16_5YR_B17001_with_ann!BK49","v":12},{"$f":"[1]ACS_16_5YR_B17001_with_ann!BL49","v":935},{"$f":"[1]ACS_16_5YR_B17001_with_ann!BM49","v":193},{"$f":"[1]ACS_16_5YR_B17001_with_ann!BN49","v":437},{"$f":"[1]ACS_16_5YR_B17001_with_ann!BO49","v":93},{"$f":"[1]ACS_16_5YR_B17001_with_ann!BP49","v":42},{"$f":"[1]ACS_16_5YR_B17001_with_ann!BQ49","v":33},{"$f":"[1]ACS_16_5YR_B17001_with_ann!BR49","v":3},{"$f":"[1]ACS_16_5YR_B17001_with_ann!BS49","v":4},{"$f":"[1]ACS_16_5YR_B17001_with_ann!BT49","v":20},{"$f":"[1]ACS_16_5YR_B17001_with_ann!BU49","v":15},{"$f":"[1]ACS_16_5YR_B17001_with_ann!BV49","v":17},{"$f":"[1]ACS_16_5YR_B17001_with_ann!BW49","v":21},{"$f":"[1]ACS_16_5YR_B17001_with_ann!BX49","v":3},{"$f":"[1]ACS_16_5YR_B17001_with_ann!BY49","v":5},{"$f":"[1]ACS_16_5YR_B17001_with_ann!BZ49","v":4},{"$f":"[1]ACS_16_5YR_B17001_with_ann!CA49","v":6},{"$f":"[1]ACS_16_5YR_B17001_with_ann!CB49","v":9},{"$f":"[1]ACS_16_5YR_B17001_with_ann!CC49","v":10},{"$f":"[1]ACS_16_5YR_B17001_with_ann!CD49","v":29},{"$f":"[1]ACS_16_5YR_B17001_with_ann!CE49","v":17},{"$f":"[1]ACS_16_5YR_B17001_with_ann!CF49","v":49},{"$f":"[1]ACS_16_5YR_B17001_with_ann!CG49","v":35},{"$f":"[1]ACS_16_5YR_B17001_with_ann!CH49","v":28},{"$f":"[1]ACS_16_5YR_B17001_with_ann!CI49","v":16},{"$f":"[1]ACS_16_5YR_B17001_with_ann!CJ49","v":89},{"$f":"[1]ACS_16_5YR_B17001_with_ann!CK49","v":38},{"$f":"[1]ACS_16_5YR_B17001_with_ann!CL49","v":91},{"$f":"[1]ACS_16_5YR_B17001_with_ann!CM49","v":28},{"$f":"[1]ACS_16_5YR_B17001_with_ann!CN49","v":53},{"$f":"[1]ACS_16_5YR_B17001_with_ann!CO49","v":20},{"$f":"[1]ACS_16_5YR_B17001_with_ann!CP49","v":498},{"$f":"[1]ACS_16_5YR_B17001_with_ann!CQ49","v":110},{"$f":"[1]ACS_16_5YR_B17001_with_ann!CR49","v":8},{"$f":"[1]ACS_16_5YR_B17001_with_ann!CS49","v":8},{"$f":"[1]ACS_16_5YR_B17001_with_ann!CT49","v":5},{"$f":"[1]ACS_16_5YR_B17001_with_ann!CU49","v":6},{"$f":"[1]ACS_16_5YR_B17001_with_ann!CV49","v":43},{"$f":"[1]ACS_16_5YR_B17001_with_ann!CW49","v":37},{"$f":"[1]ACS_16_5YR_B17001_with_ann!CX49","v":0},{"$f":"[1]ACS_16_5YR_B17001_with_ann!CY49","v":12},{"$f":"[1]ACS_16_5YR_B17001_with_ann!CZ49","v":0},{"$f":"[1]ACS_16_5YR_B17001_with_ann!DA49","v":12},{"$f":"[1]ACS_16_5YR_B17001_with_ann!DB49","v":4},{"$f":"[1]ACS_16_5YR_B17001_with_ann!DC49","v":6},{"$f":"[1]ACS_16_5YR_B17001_with_ann!DD49","v":27},{"$f":"[1]ACS_16_5YR_B17001_with_ann!DE49","v":23},{"$f":"[1]ACS_16_5YR_B17001_with_ann!DF49","v":62},{"$f":"[1]ACS_16_5YR_B17001_with_ann!DG49","v":36},{"$f":"[1]ACS_16_5YR_B17001_with_ann!DH49","v":59},{"$f":"[1]ACS_16_5YR_B17001_with_ann!DI49","v":39},{"$f":"[1]ACS_16_5YR_B17001_with_ann!DJ49","v":27},{"$f":"[1]ACS_16_5YR_B17001_with_ann!DK49","v":19},{"$f":"[1]ACS_16_5YR_B17001_with_ann!DL49","v":119},{"$f":"[1]ACS_16_5YR_B17001_with_ann!DM49","v":42},{"$f":"[1]ACS_16_5YR_B17001_with_ann!DN49","v":104},{"$f":"[1]ACS_16_5YR_B17001_with_ann!DO49","v":30},{"$f":"[1]ACS_16_5YR_B17001_with_ann!DP49","v":40},{"$f":"[1]ACS_16_5YR_B17001_with_ann!DQ49","v":22}]
["06000US3300536660","0600000US3300538500","060",{"$f":"[1]ACS_16_5YR_B17001_with_ann!C50","v":"Hinsdale"},{"$f":"[1]ACS_16_5YR_B17001_with_ann!D50","v":3965},{"$f":"[1]ACS_16_5YR_B17001_with_ann!E50","v":16},{"$f":"[1]ACS_16_5YR_B17001_with_ann!F50","v":245},{"$f":"[1]ACS_16_5YR_B17001_with_ann!G50","v":198},{"$f":"[1]ACS_16_5YR_B17001_with_ann!H50","v":130},{"$f":"[1]ACS_16_5YR_B17001_with_ann!I50","v":124},{"$f":"[1]ACS_16_5YR_B17001_with_ann!J50","v":26},{"$f":"[1]ACS_16_5YR_B17001_with_ann!K50","v":38},{"$f":"[1]ACS_16_5YR_B17001_with_ann!L50","v":0},{"$f":"[1]ACS_16_5YR_B17001_with_ann!M50","v":12},{"$f":"[1]ACS_16_5YR_B17001_with_ann!N50","v":0},{"$f":"[1]ACS_16_5YR_B17001_with_ann!O50","v":12},{"$f":"[1]ACS_16_5YR_B17001_with_ann!P50","v":7},{"$f":"[1]ACS_16_5YR_B17001_with_ann!Q50","v":17},{"$f":"[1]ACS_16_5YR_B17001_with_ann!R50","v":6},{"$f":"[1]ACS_16_5YR_B17001_with_ann!S50","v":24},{"$f":"[1]ACS_16_5YR_B17001_with_ann!T50","v":6},{"$f":"[1]ACS_16_5YR_B17001_with_ann!U50","v":24},{"$f":"[1]ACS_16_5YR_B17001_with_ann!V50","v":26},{"$f":"[1]ACS_16_5YR_B17001_with_ann!W50","v":40},{"$f":"[1]ACS_16_5YR_B17001_with_ann!X50","v":10},{"$f":"[1]ACS_16_5YR_B17001_with_ann!Y50","v":15},{"$f":"[1]ACS_16_5YR_B17001_with_ann!Z50","v":0},{"$f":"[1]ACS_16_5YR_B17001_with_ann!AA50","v":12},{"$f":"[1]ACS_16_5YR_B17001_with_ann!AB50","v":43},{"$f":"[1]ACS_16_5YR_B17001_with_ann!AC50","v":53},{"$f":"[1]ACS_16_5YR_B17001_with_ann!AD50","v":6},{"$f":"[1]ACS_16_5YR_B17001_with_ann!AE50","v":11},{"$f":"[1]ACS_16_5YR_B17001_with_ann!AF50","v":0},{"$f":"[1]ACS_16_5YR_B17001_with_ann!AG50","v":12},{"$f":"[1]ACS_16_5YR_B17001_with_ann!AH50","v":0},{"$f":"[1]ACS_16_5YR_B17001_with_ann!AI50","v":12},{"$f":"[1]ACS_16_5YR_B17001_with_ann!AJ50","v":115},{"$f":"[1]ACS_16_5YR_B17001_with_ann!AK50","v":94},{"$f":"[1]ACS_16_5YR_B17001_with_ann!AL50","v":0},{"$f":"[1]ACS_16_5YR_B17001_with_ann!AM50","v":12},{"$f":"[1]ACS_16_5YR_B17001_with_ann!AN50","v":10},{"$f":"[1]ACS_16_5YR_B17001_with_ann!AO50","v":15},{"$f":"[1]ACS_16_5YR_B17001_with_ann!AP50","v":10},{"$f":"[1]ACS_16_5YR_B17001_with_ann!AQ50","v":14},{"$f":"[1]ACS_16_5YR_B17001_with_ann!AR50","v":0},{"$f":"[1]ACS_16_5YR_B17001_with_ann!AS50","v":12},{"$f":"[1]ACS_16_5YR_B17001_with_ann!AT50","v":5},{"$f":"[1]ACS_16_5YR_B17001_with_ann!AU50","v":21},{"$f":"[1]ACS_16_5YR_B17001_with_ann!AV50","v":0},{"$f":"[1]ACS_16_5YR_B17001_with_ann!AW50","v":12},{"$f":"[1]ACS_16_5YR_B17001_with_ann!AX50","v":17},{"$f":"[1]ACS_16_5YR_B17001_with_ann!AY50","v":26},{"$f":"[1]ACS_16_5YR_B17001_with_ann!AZ50","v":12},{"$f":"[1]ACS_16_5YR_B17001_with_ann!BA50","v":18},{"$f":"[1]ACS_16_5YR_B17001_with_ann!BB50","v":0},{"$f":"[1]ACS_16_5YR_B17001_with_ann!BC50","v":12},{"$f":"[1]ACS_16_5YR_B17001_with_ann!BD50","v":18},{"$f":"[1]ACS_16_5YR_B17001_with_ann!BE50","v":24},{"$f":"[1]ACS_16_5YR_B17001_with_ann!BF50","v":14},{"$f":"[1]ACS_16_5YR_B17001_with_ann!BG50","v":24},{"$f":"[1]ACS_16_5YR_B17001_with_ann!BH50","v":0},{"$f":"[1]ACS_16_5YR_B17001_with_ann!BI50","v":12},{"$f":"[1]ACS_16_5YR_B17001_with_ann!BJ50","v":29},{"$f":"[1]ACS_16_5YR_B17001_with_ann!BK50","v":47},{"$f":"[1]ACS_16_5YR_B17001_with_ann!BL50","v":3720},{"$f":"[1]ACS_16_5YR_B17001_with_ann!BM50","v":201},{"$f":"[1]ACS_16_5YR_B17001_with_ann!BN50","v":1960},{"$f":"[1]ACS_16_5YR_B17001_with_ann!BO50","v":213},{"$f":"[1]ACS_16_5YR_B17001_with_ann!BP50","v":0},{"$f":"[1]ACS_16_5YR_B17001_with_ann!BQ50","v":12},{"$f":"[1]ACS_16_5YR_B17001_with_ann!BR50","v":35},{"$f":"[1]ACS_16_5YR_B17001_with_ann!BS50","v":38},{"$f":"[1]ACS_16_5YR_B17001_with_ann!BT50","v":153},{"$f":"[1]ACS_16_5YR_B17001_with_ann!BU50","v":78},{"$f":"[1]ACS_16_5YR_B17001_with_ann!BV50","v":19},{"$f":"[1]ACS_16_5YR_B17001_with_ann!BW50","v":22},{"$f":"[1]ACS_16_5YR_B17001_with_ann!BX50","v":0},{"$f":"[1]ACS_16_5YR_B17001_with_ann!BY50","v":12},{"$f":"[1]ACS_16_5YR_B17001_with_ann!BZ50","v":51},{"$f":"[1]ACS_16_5YR_B17001_with_ann!CA50","v":79},{"$f":"[1]ACS_16_5YR_B17001_with_ann!CB50","v":108},{"$f":"[1]ACS_16_5YR_B17001_with_ann!CC50","v":83},{"$f":"[1]ACS_16_5YR_B17001_with_ann!CD50","v":150},{"$f":"[1]ACS_16_5YR_B17001_with_ann!CE50","v":90},{"$f":"[1]ACS_16_5YR_B17001_with_ann!CF50","v":246},{"$f":"[1]ACS_16_5YR_B17001_with_ann!CG50","v":92},{"$f":"[1]ACS_16_5YR_B17001_with_ann!CH50","v":298},{"$f":"[1]ACS_16_5YR_B17001_with_ann!CI50","v":130},{"$f":"[1]ACS_16_5YR_B17001_with_ann!CJ50","v":285},{"$f":"[1]ACS_16_5YR_B17001_with_ann!CK50","v":115},{"$f":"[1]ACS_16_5YR_B17001_with_ann!CL50","v":433},{"$f":"[1]ACS_16_5YR_B17001_with_ann!CM50","v":236},{"$f":"[1]ACS_16_5YR_B17001_with_ann!CN50","v":182},{"$f":"[1]ACS_16_5YR_B17001_with_ann!CO50","v":113},{"$f":"[1]ACS_16_5YR_B17001_with_ann!CP50","v":1760},{"$f":"[1]ACS_16_5YR_B17001_with_ann!CQ50","v":224},{"$f":"[1]ACS_16_5YR_B17001_with_ann!CR50","v":58},{"$f":"[1]ACS_16_5YR_B17001_with_ann!CS50","v":46},{"$f":"[1]ACS_16_5YR_B17001_with_ann!CT50","v":34},{"$f":"[1]ACS_16_5YR_B17001_with_ann!CU50","v":28},{"$f":"[1]ACS_16_5YR_B17001_with_ann!CV50","v":86},{"$f":"[1]ACS_16_5YR_B17001_with_ann!CW50","v":56},{"$f":"[1]ACS_16_5YR_B17001_with_ann!CX50","v":45},{"$f":"[1]ACS_16_5YR_B17001_with_ann!CY50","v":44},{"$f":"[1]ACS_16_5YR_B17001_with_ann!CZ50","v":33},{"$f":"[1]ACS_16_5YR_B17001_with_ann!DA50","v":46},{"$f":"[1]ACS_16_5YR_B17001_with_ann!DB50","v":2},{"$f":"[1]ACS_16_5YR_B17001_with_ann!DC50","v":8},{"$f":"[1]ACS_16_5YR_B17001_with_ann!DD50","v":184},{"$f":"[1]ACS_16_5YR_B17001_with_ann!DE50","v":133},{"$f":"[1]ACS_16_5YR_B17001_with_ann!DF50","v":93},{"$f":"[1]ACS_16_5YR_B17001_with_ann!DG50","v":57},{"$f":"[1]ACS_16_5YR_B17001_with_ann!DH50","v":235},{"$f":"[1]ACS_16_5YR_B17001_with_ann!DI50","v":80},{"$f":"[1]ACS_16_5YR_B17001_with_ann!DJ50","v":207},{"$f":"[1]ACS_16_5YR_B17001_with_ann!DK50","v":83},{"$f":"[1]ACS_16_5YR_B17001_with_ann!DL50","v":369},{"$f":"[1]ACS_16_5YR_B17001_with_ann!DM50","v":98},{"$f":"[1]ACS_16_5YR_B17001_with_ann!DN50","v":214},{"$f":"[1]ACS_16_5YR_B17001_with_ann!DO50","v":97},{"$f":"[1]ACS_16_5YR_B17001_with_ann!DP50","v":200},{"$f":"[1]ACS_16_5YR_B17001_with_ann!DQ50","v":156}]
["06000US3300538500","0600000US3300539300","060",{"$f":"[1]ACS_16_5YR_B17001_with_ann!C51","v":"Jaffrey"},{"$f":"[1]ACS_16_5YR_B17001_with_ann!D51","v":5291},{"$f":"[1]ACS_16_5YR_B17001_with_ann!E51","v":36},{"$f":"[1]ACS_16_5YR_B17001_with_ann!F51","v":235},{"$f":"[1]ACS_16_5YR_B17001_with_ann!G51","v":156},{"$f":"[1]ACS_16_5YR_B17001_with_ann!H51","v":59},{"$f":"[1]ACS_16_5YR_B17001_with_ann!I51","v":45},{"$f":"[1]ACS_16_5YR_B17001_with_ann!J51","v":0},{"$f":"[1]ACS_16_5YR_B17001_with_ann!K51","v":17},{"$f":"[1]ACS_16_5YR_B17001_with_ann!L51","v":19},{"$f":"[1]ACS_16_5YR_B17001_with_ann!M51","v":33},{"$f":"[1]ACS_16_5YR_B17001_with_ann!N51","v":0},{"$f":"[1]ACS_16_5YR_B17001_with_ann!O51","v":17},{"$f":"[1]ACS_16_5YR_B17001_with_ann!P51","v":0},{"$f":"[1]ACS_16_5YR_B17001_with_ann!Q51","v":17},{"$f":"[1]ACS_16_5YR_B17001_with_ann!R51","v":0},{"$f":"[1]ACS_16_5YR_B17001_with_ann!S51","v":17},{"$f":"[1]ACS_16_5YR_B17001_with_ann!T51","v":0},{"$f":"[1]ACS_16_5YR_B17001_with_ann!U51","v":17},{"$f":"[1]ACS_16_5YR_B17001_with_ann!V51","v":0},{"$f":"[1]ACS_16_5YR_B17001_with_ann!W51","v":17},{"$f":"[1]ACS_16_5YR_B17001_with_ann!X51","v":7},{"$f":"[1]ACS_16_5YR_B17001_with_ann!Y51","v":12},{"$f":"[1]ACS_16_5YR_B17001_with_ann!Z51","v":3},{"$f":"[1]ACS_16_5YR_B17001_with_ann!AA51","v":10},{"$f":"[1]ACS_16_5YR_B17001_with_ann!AB51","v":1},{"$f":"[1]ACS_16_5YR_B17001_with_ann!AC51","v":5},{"$f":"[1]ACS_16_5YR_B17001_with_ann!AD51","v":11},{"$f":"[1]ACS_16_5YR_B17001_with_ann!AE51","v":16},{"$f":"[1]ACS_16_5YR_B17001_with_ann!AF51","v":0},{"$f":"[1]ACS_16_5YR_B17001_with_ann!AG51","v":17},{"$f":"[1]ACS_16_5YR_B17001_with_ann!AH51","v":18},{"$f":"[1]ACS_16_5YR_B17001_with_ann!AI51","v":30},{"$f":"[1]ACS_16_5YR_B17001_with_ann!AJ51","v":176},{"$f":"[1]ACS_16_5YR_B17001_with_ann!AK51","v":125},{"$f":"[1]ACS_16_5YR_B17001_with_ann!AL51","v":28},{"$f":"[1]ACS_16_5YR_B17001_with_ann!AM51","v":48},{"$f":"[1]ACS_16_5YR_B17001_with_ann!AN51","v":0},{"$f":"[1]ACS_16_5YR_B17001_with_ann!AO51","v":17},{"$f":"[1]ACS_16_5YR_B17001_with_ann!AP51","v":0},{"$f":"[1]ACS_16_5YR_B17001_with_ann!AQ51","v":17},{"$f":"[1]ACS_16_5YR_B17001_with_ann!AR51","v":0},{"$f":"[1]ACS_16_5YR_B17001_with_ann!AS51","v":17},{"$f":"[1]ACS_16_5YR_B17001_with_ann!AT51","v":0},{"$f":"[1]ACS_16_5YR_B17001_with_ann!AU51","v":17},{"$f":"[1]ACS_16_5YR_B17001_with_ann!AV51","v":0},{"$f":"[1]ACS_16_5YR_B17001_with_ann!AW51","v":17},{"$f":"[1]ACS_16_5YR_B17001_with_ann!AX51","v":46},{"$f":"[1]ACS_16_5YR_B17001_with_ann!AY51","v":71},{"$f":"[1]ACS_16_5YR_B17001_with_ann!AZ51","v":0},{"$f":"[1]ACS_16_5YR_B17001_with_ann!BA51","v":17},{"$f":"[1]ACS_16_5YR_B17001_with_ann!BB51","v":23},{"$f":"[1]ACS_16_5YR_B17001_with_ann!BC51","v":39},{"$f":"[1]ACS_16_5YR_B17001_with_ann!BD51","v":28},{"$f":"[1]ACS_16_5YR_B17001_with_ann!BE51","v":42},{"$f":"[1]ACS_16_5YR_B17001_with_ann!BF51","v":11},{"$f":"[1]ACS_16_5YR_B17001_with_ann!BG51","v":18},{"$f":"[1]ACS_16_5YR_B17001_with_ann!BH51","v":12},{"$f":"[1]ACS_16_5YR_B17001_with_ann!BI51","v":21},{"$f":"[1]ACS_16_5YR_B17001_with_ann!BJ51","v":28},{"$f":"[1]ACS_16_5YR_B17001_with_ann!BK51","v":32},{"$f":"[1]ACS_16_5YR_B17001_with_ann!BL51","v":5056},{"$f":"[1]ACS_16_5YR_B17001_with_ann!BM51","v":159},{"$f":"[1]ACS_16_5YR_B17001_with_ann!BN51","v":2664},{"$f":"[1]ACS_16_5YR_B17001_with_ann!BO51","v":225},{"$f":"[1]ACS_16_5YR_B17001_with_ann!BP51","v":114},{"$f":"[1]ACS_16_5YR_B17001_with_ann!BQ51","v":89},{"$f":"[1]ACS_16_5YR_B17001_with_ann!BR51","v":105},{"$f":"[1]ACS_16_5YR_B17001_with_ann!BS51","v":72},{"$f":"[1]ACS_16_5YR_B17001_with_ann!BT51","v":184},{"$f":"[1]ACS_16_5YR_B17001_with_ann!BU51","v":78},{"$f":"[1]ACS_16_5YR_B17001_with_ann!BV51","v":138},{"$f":"[1]ACS_16_5YR_B17001_with_ann!BW51","v":95},{"$f":"[1]ACS_16_5YR_B17001_with_ann!BX51","v":0},{"$f":"[1]ACS_16_5YR_B17001_with_ann!BY51","v":17},{"$f":"[1]ACS_16_5YR_B17001_with_ann!BZ51","v":112},{"$f":"[1]ACS_16_5YR_B17001_with_ann!CA51","v":92},{"$f":"[1]ACS_16_5YR_B17001_with_ann!CB51","v":37},{"$f":"[1]ACS_16_5YR_B17001_with_ann!CC51","v":54},{"$f":"[1]ACS_16_5YR_B17001_with_ann!CD51","v":364},{"$f":"[1]ACS_16_5YR_B17001_with_ann!CE51","v":177},{"$f":"[1]ACS_16_5YR_B17001_with_ann!CF51","v":388},{"$f":"[1]ACS_16_5YR_B17001_with_ann!CG51","v":135},{"$f":"[1]ACS_16_5YR_B17001_with_ann!CH51","v":443},{"$f":"[1]ACS_16_5YR_B17001_with_ann!CI51","v":146},{"$f":"[1]ACS_16_5YR_B17001_with_ann!CJ51","v":464},{"$f":"[1]ACS_16_5YR_B17001_with_ann!CK51","v":207},{"$f":"[1]ACS_16_5YR_B17001_with_ann!CL51","v":159},{"$f":"[1]ACS_16_5YR_B17001_with_ann!CM51","v":87},{"$f":"[1]ACS_16_5YR_B17001_with_ann!CN51","v":156},{"$f":"[1]ACS_16_5YR_B17001_with_ann!CO51","v":99},{"$f":"[1]ACS_16_5YR_B17001_with_ann!CP51","v":2392},{"$f":"[1]ACS_16_5YR_B17001_with_ann!CQ51","v":248},{"$f":"[1]ACS_16_5YR_B17001_with_ann!CR51","v":0},{"$f":"[1]ACS_16_5YR_B17001_with_ann!CS51","v":17},{"$f":"[1]ACS_16_5YR_B17001_with_ann!CT51","v":19},{"$f":"[1]ACS_16_5YR_B17001_with_ann!CU51","v":27},{"$f":"[1]ACS_16_5YR_B17001_with_ann!CV51","v":249},{"$f":"[1]ACS_16_5YR_B17001_with_ann!CW51","v":92},{"$f":"[1]ACS_16_5YR_B17001_with_ann!CX51","v":185},{"$f":"[1]ACS_16_5YR_B17001_with_ann!CY51","v":101},{"$f":"[1]ACS_16_5YR_B17001_with_ann!CZ51","v":99},{"$f":"[1]ACS_16_5YR_B17001_with_ann!DA51","v":75},{"$f":"[1]ACS_16_5YR_B17001_with_ann!DB51","v":65},{"$f":"[1]ACS_16_5YR_B17001_with_ann!DC51","v":60},{"$f":"[1]ACS_16_5YR_B17001_with_ann!DD51","v":111},{"$f":"[1]ACS_16_5YR_B17001_with_ann!DE51","v":109},{"$f":"[1]ACS_16_5YR_B17001_with_ann!DF51","v":150},{"$f":"[1]ACS_16_5YR_B17001_with_ann!DG51","v":112},{"$f":"[1]ACS_16_5YR_B17001_with_ann!DH51","v":297},{"$f":"[1]ACS_16_5YR_B17001_with_ann!DI51","v":117},{"$f":"[1]ACS_16_5YR_B17001_with_ann!DJ51","v":409},{"$f":"[1]ACS_16_5YR_B17001_with_ann!DK51","v":131},{"$f":"[1]ACS_16_5YR_B17001_with_ann!DL51","v":376},{"$f":"[1]ACS_16_5YR_B17001_with_ann!DM51","v":154},{"$f":"[1]ACS_16_5YR_B17001_with_ann!DN51","v":264},{"$f":"[1]ACS_16_5YR_B17001_with_ann!DO51","v":100},{"$f":"[1]ACS_16_5YR_B17001_with_ann!DP51","v":168},{"$f":"[1]ACS_16_5YR_B17001_with_ann!DQ51","v":90}]
["06000US3300539300","0600000US3300545460","060",{"$f":"[1]ACS_16_5YR_B17001_with_ann!C52","v":"Keene"},{"$f":"[1]ACS_16_5YR_B17001_with_ann!D52","v":20295},{"$f":"[1]ACS_16_5YR_B17001_with_ann!E52","v":127},{"$f":"[1]ACS_16_5YR_B17001_with_ann!F52","v":2263},{"$f":"[1]ACS_16_5YR_B17001_with_ann!G52","v":410},{"$f":"[1]ACS_16_5YR_B17001_with_ann!H52","v":1061},{"$f":"[1]ACS_16_5YR_B17001_with_ann!I52","v":245},{"$f":"[1]ACS_16_5YR_B17001_with_ann!J52","v":67},{"$f":"[1]ACS_16_5YR_B17001_with_ann!K52","v":74},{"$f":"[1]ACS_16_5YR_B17001_with_ann!L52","v":1},{"$f":"[1]ACS_16_5YR_B17001_with_ann!M52","v":3},{"$f":"[1]ACS_16_5YR_B17001_with_ann!N52","v":62},{"$f":"[1]ACS_16_5YR_B17001_with_ann!O52","v":64},{"$f":"[1]ACS_16_5YR_B17001_with_ann!P52","v":12},{"$f":"[1]ACS_16_5YR_B17001_with_ann!Q52","v":19},{"$f":"[1]ACS_16_5YR_B17001_with_ann!R52","v":14},{"$f":"[1]ACS_16_5YR_B17001_with_ann!S52","v":24},{"$f":"[1]ACS_16_5YR_B17001_with_ann!T52","v":50},{"$f":"[1]ACS_16_5YR_B17001_with_ann!U52","v":54},{"$f":"[1]ACS_16_5YR_B17001_with_ann!V52","v":342},{"$f":"[1]ACS_16_5YR_B17001_with_ann!W52","v":174},{"$f":"[1]ACS_16_5YR_B17001_with_ann!X52","v":208},{"$f":"[1]ACS_16_5YR_B17001_with_ann!Y52","v":115},{"$f":"[1]ACS_16_5YR_B17001_with_ann!Z52","v":87},{"$f":"[1]ACS_16_5YR_B17001_with_ann!AA52","v":77},{"$f":"[1]ACS_16_5YR_B17001_with_ann!AB52","v":38},{"$f":"[1]ACS_16_5YR_B17001_with_ann!AC52","v":43},{"$f":"[1]ACS_16_5YR_B17001_with_ann!AD52","v":119},{"$f":"[1]ACS_16_5YR_B17001_with_ann!AE52","v":79},{"$f":"[1]ACS_16_5YR_B17001_with_ann!AF52","v":61},{"$f":"[1]ACS_16_5YR_B17001_with_ann!AG52","v":42},{"$f":"[1]ACS_16_5YR_B17001_with_ann!AH52","v":0},{"$f":"[1]ACS_16_5YR_B17001_with_ann!AI52","v":22},{"$f":"[1]ACS_16_5YR_B17001_with_ann!AJ52","v":1202},{"$f":"[1]ACS_16_5YR_B17001_with_ann!AK52","v":296},{"$f":"[1]ACS_16_5YR_B17001_with_ann!AL52","v":37},{"$f":"[1]ACS_16_5YR_B17001_with_ann!AM52","v":46},{"$f":"[1]ACS_16_5YR_B17001_with_ann!AN52","v":0},{"$f":"[1]ACS_16_5YR_B17001_with_ann!AO52","v":22},{"$f":"[1]ACS_16_5YR_B17001_with_ann!AP52","v":29},{"$f":"[1]ACS_16_5YR_B17001_with_ann!AQ52","v":25},{"$f":"[1]ACS_16_5YR_B17001_with_ann!AR52","v":0},{"$f":"[1]ACS_16_5YR_B17001_with_ann!AS52","v":22},{"$f":"[1]ACS_16_5YR_B17001_with_ann!AT52","v":13},{"$f":"[1]ACS_16_5YR_B17001_with_ann!AU52","v":23},{"$f":"[1]ACS_16_5YR_B17001_with_ann!AV52","v":0},{"$f":"[1]ACS_16_5YR_B17001_with_ann!AW52","v":22},{"$f":"[1]ACS_16_5YR_B17001_with_ann!AX52","v":367},{"$f":"[1]ACS_16_5YR_B17001_with_ann!AY52","v":176},{"$f":"[1]ACS_16_5YR_B17001_with_ann!AZ52","v":229},{"$f":"[1]ACS_16_5YR_B17001_with_ann!BA52","v":103},{"$f":"[1]ACS_16_5YR_B17001_with_ann!BB52","v":124},{"$f":"[1]ACS_16_5YR_B17001_with_ann!BC52","v":85},{"$f":"[1]ACS_16_5YR_B17001_with_ann!BD52","v":53},{"$f":"[1]ACS_16_5YR_B17001_with_ann!BE52","v":48},{"$f":"[1]ACS_16_5YR_B17001_with_ann!BF52","v":163},{"$f":"[1]ACS_16_5YR_B17001_with_ann!BG52","v":93},{"$f":"[1]ACS_16_5YR_B17001_with_ann!BH52","v":127},{"$f":"[1]ACS_16_5YR_B17001_with_ann!BI52","v":81},{"$f":"[1]ACS_16_5YR_B17001_with_ann!BJ52","v":60},{"$f":"[1]ACS_16_5YR_B17001_with_ann!BK52","v":45},{"$f":"[1]ACS_16_5YR_B17001_with_ann!BL52","v":18032},{"$f":"[1]ACS_16_5YR_B17001_with_ann!BM52","v":425},{"$f":"[1]ACS_16_5YR_B17001_with_ann!BN52","v":9035},{"$f":"[1]ACS_16_5YR_B17001_with_ann!BO52","v":426},{"$f":"[1]ACS_16_5YR_B17001_with_ann!BP52","v":418},{"$f":"[1]ACS_16_5YR_B17001_with_ann!BQ52","v":105},{"$f":"[1]ACS_16_5YR_B17001_with_ann!BR52","v":63},{"$f":"[1]ACS_16_5YR_B17001_with_ann!BS52","v":48},{"$f":"[1]ACS_16_5YR_B17001_with_ann!BT52","v":643},{"$f":"[1]ACS_16_5YR_B17001_with_ann!BU52","v":141},{"$f":"[1]ACS_16_5YR_B17001_with_ann!BV52","v":230},{"$f":"[1]ACS_16_5YR_B17001_with_ann!BW52","v":84},{"$f":"[1]ACS_16_5YR_B17001_with_ann!BX52","v":56},{"$f":"[1]ACS_16_5YR_B17001_with_ann!BY52","v":51},{"$f":"[1]ACS_16_5YR_B17001_with_ann!BZ52","v":214},{"$f":"[1]ACS_16_5YR_B17001_with_ann!CA52","v":106},{"$f":"[1]ACS_16_5YR_B17001_with_ann!CB52","v":992},{"$f":"[1]ACS_16_5YR_B17001_with_ann!CC52","v":239},{"$f":"[1]ACS_16_5YR_B17001_with_ann!CD52","v":1305},{"$f":"[1]ACS_16_5YR_B17001_with_ann!CE52","v":280},{"$f":"[1]ACS_16_5YR_B17001_with_ann!CF52","v":1240},{"$f":"[1]ACS_16_5YR_B17001_with_ann!CG52","v":242},{"$f":"[1]ACS_16_5YR_B17001_with_ann!CH52","v":1281},{"$f":"[1]ACS_16_5YR_B17001_with_ann!CI52","v":190},{"$f":"[1]ACS_16_5YR_B17001_with_ann!CJ52","v":1025},{"$f":"[1]ACS_16_5YR_B17001_with_ann!CK52","v":235},{"$f":"[1]ACS_16_5YR_B17001_with_ann!CL52","v":838},{"$f":"[1]ACS_16_5YR_B17001_with_ann!CM52","v":144},{"$f":"[1]ACS_16_5YR_B17001_with_ann!CN52","v":730},{"$f":"[1]ACS_16_5YR_B17001_with_ann!CO52","v":148},{"$f":"[1]ACS_16_5YR_B17001_with_ann!CP52","v":8997},{"$f":"[1]ACS_16_5YR_B17001_with_ann!CQ52","v":412},{"$f":"[1]ACS_16_5YR_B17001_with_ann!CR52","v":345},{"$f":"[1]ACS_16_5YR_B17001_with_ann!CS52","v":108},{"$f":"[1]ACS_16_5YR_B17001_with_ann!CT52","v":48},{"$f":"[1]ACS_16_5YR_B17001_with_ann!CU52","v":39},{"$f":"[1]ACS_16_5YR_B17001_with_ann!CV52","v":289},{"$f":"[1]ACS_16_5YR_B17001_with_ann!CW52","v":118},{"$f":"[1]ACS_16_5YR_B17001_with_ann!CX52","v":288},{"$f":"[1]ACS_16_5YR_B17001_with_ann!CY52","v":106},{"$f":"[1]ACS_16_5YR_B17001_with_ann!CZ52","v":114},{"$f":"[1]ACS_16_5YR_B17001_with_ann!DA52","v":74},{"$f":"[1]ACS_16_5YR_B17001_with_ann!DB52","v":189},{"$f":"[1]ACS_16_5YR_B17001_with_ann!DC52","v":109},{"$f":"[1]ACS_16_5YR_B17001_with_ann!DD52","v":692},{"$f":"[1]ACS_16_5YR_B17001_with_ann!DE52","v":231},{"$f":"[1]ACS_16_5YR_B17001_with_ann!DF52","v":1534},{"$f":"[1]ACS_16_5YR_B17001_with_ann!DG52","v":193},{"$f":"[1]ACS_16_5YR_B17001_with_ann!DH52","v":973},{"$f":"[1]ACS_16_5YR_B17001_with_ann!DI52","v":174},{"$f":"[1]ACS_16_5YR_B17001_with_ann!DJ52","v":1168},{"$f":"[1]ACS_16_5YR_B17001_with_ann!DK52","v":239},{"$f":"[1]ACS_16_5YR_B17001_with_ann!DL52","v":1207},{"$f":"[1]ACS_16_5YR_B17001_with_ann!DM52","v":212},{"$f":"[1]ACS_16_5YR_B17001_with_ann!DN52","v":1173},{"$f":"[1]ACS_16_5YR_B17001_with_ann!DO52","v":175},{"$f":"[1]ACS_16_5YR_B17001_with_ann!DP52","v":977},{"$f":"[1]ACS_16_5YR_B17001_with_ann!DQ52","v":202}]
["06000US3300545460","0600000US3300545700","060",{"$f":"[1]ACS_16_5YR_B17001_with_ann!C53","v":"Marlborough"},{"$f":"[1]ACS_16_5YR_B17001_with_ann!D53","v":2249},{"$f":"[1]ACS_16_5YR_B17001_with_ann!E53","v":391},{"$f":"[1]ACS_16_5YR_B17001_with_ann!F53","v":329},{"$f":"[1]ACS_16_5YR_B17001_with_ann!G53","v":226},{"$f":"[1]ACS_16_5YR_B17001_with_ann!H53","v":156},{"$f":"[1]ACS_16_5YR_B17001_with_ann!I53","v":111},{"$f":"[1]ACS_16_5YR_B17001_with_ann!J53","v":42},{"$f":"[1]ACS_16_5YR_B17001_with_ann!K53","v":57},{"$f":"[1]ACS_16_5YR_B17001_with_ann!L53","v":0},{"$f":"[1]ACS_16_5YR_B17001_with_ann!M53","v":12},{"$f":"[1]ACS_16_5YR_B17001_with_ann!N53","v":0},{"$f":"[1]ACS_16_5YR_B17001_with_ann!O53","v":12},{"$f":"[1]ACS_16_5YR_B17001_with_ann!P53","v":31},{"$f":"[1]ACS_16_5YR_B17001_with_ann!Q53","v":45},{"$f":"[1]ACS_16_5YR_B17001_with_ann!R53","v":0},{"$f":"[1]ACS_16_5YR_B17001_with_ann!S53","v":12},{"$f":"[1]ACS_16_5YR_B17001_with_ann!T53","v":9},{"$f":"[1]ACS_16_5YR_B17001_with_ann!U53","v":14},{"$f":"[1]ACS_16_5YR_B17001_with_ann!V53","v":45},{"$f":"[1]ACS_16_5YR_B17001_with_ann!W53","v":46},{"$f":"[1]ACS_16_5YR_B17001_with_ann!X53","v":0},{"$f":"[1]ACS_16_5YR_B17001_with_ann!Y53","v":12},{"$f":"[1]ACS_16_5YR_B17001_with_ann!Z53","v":8},{"$f":"[1]ACS_16_5YR_B17001_with_ann!AA53","v":12},{"$f":"[1]ACS_16_5YR_B17001_with_ann!AB53","v":7},{"$f":"[1]ACS_16_5YR_B17001_with_ann!AC53","v":10},{"$f":"[1]ACS_16_5YR_B17001_with_ann!AD53","v":4},{"$f":"[1]ACS_16_5YR_B17001_with_ann!AE53","v":7},{"$f":"[1]ACS_16_5YR_B17001_with_ann!AF53","v":10},{"$f":"[1]ACS_16_5YR_B17001_with_ann!AG53","v":16},{"$f":"[1]ACS_16_5YR_B17001_with_ann!AH53","v":0},{"$f":"[1]ACS_16_5YR_B17001_with_ann!AI53","v":12},{"$f":"[1]ACS_16_5YR_B17001_with_ann!AJ53","v":173},{"$f":"[1]ACS_16_5YR_B17001_with_ann!AK53","v":130},{"$f":"[1]ACS_16_5YR_B17001_with_ann!AL53","v":0},{"$f":"[1]ACS_16_5YR_B17001_with_ann!AM53","v":12},{"$f":"[1]ACS_16_5YR_B17001_with_ann!AN53","v":0},{"$f":"[1]ACS_16_5YR_B17001_with_ann!AO53","v":12},{"$f":"[1]ACS_16_5YR_B17001_with_ann!AP53","v":0},{"$f":"[1]ACS_16_5YR_B17001_with_ann!AQ53","v":12},{"$f":"[1]ACS_16_5YR_B17001_with_ann!AR53","v":6},{"$f":"[1]ACS_16_5YR_B17001_with_ann!AS53","v":9},{"$f":"[1]ACS_16_5YR_B17001_with_ann!AT53","v":51},{"$f":"[1]ACS_16_5YR_B17001_with_ann!AU53","v":61},{"$f":"[1]ACS_16_5YR_B17001_with_ann!AV53","v":0},{"$f":"[1]ACS_16_5YR_B17001_with_ann!AW53","v":12},{"$f":"[1]ACS_16_5YR_B17001_with_ann!AX53","v":0},{"$f":"[1]ACS_16_5YR_B17001_with_ann!AY53","v":12},{"$f":"[1]ACS_16_5YR_B17001_with_ann!AZ53","v":13},{"$f":"[1]ACS_16_5YR_B17001_with_ann!BA53","v":21},{"$f":"[1]ACS_16_5YR_B17001_with_ann!BB53","v":56},{"$f":"[1]ACS_16_5YR_B17001_with_ann!BC53","v":64},{"$f":"[1]ACS_16_5YR_B17001_with_ann!BD53","v":5},{"$f":"[1]ACS_16_5YR_B17001_with_ann!BE53","v":8},{"$f":"[1]ACS_16_5YR_B17001_with_ann!BF53","v":36},{"$f":"[1]ACS_16_5YR_B17001_with_ann!BG53","v":34},{"$f":"[1]ACS_16_5YR_B17001_with_ann!BH53","v":6},{"$f":"[1]ACS_16_5YR_B17001_with_ann!BI53","v":9},{"$f":"[1]ACS_16_5YR_B17001_with_ann!BJ53","v":0},{"$f":"[1]ACS_16_5YR_B17001_with_ann!BK53","v":12},{"$f":"[1]ACS_16_5YR_B17001_with_ann!BL53","v":1920},{"$f":"[1]ACS_16_5YR_B17001_with_ann!BM53","v":387},{"$f":"[1]ACS_16_5YR_B17001_with_ann!BN53","v":846},{"$f":"[1]ACS_16_5YR_B17001_with_ann!BO53","v":171},{"$f":"[1]ACS_16_5YR_B17001_with_ann!BP53","v":34},{"$f":"[1]ACS_16_5YR_B17001_with_ann!BQ53","v":32},{"$f":"[1]ACS_16_5YR_B17001_with_ann!BR53","v":3},{"$f":"[1]ACS_16_5YR_B17001_with_ann!BS53","v":5},{"$f":"[1]ACS_16_5YR_B17001_with_ann!BT53","v":22},{"$f":"[1]ACS_16_5YR_B17001_with_ann!BU53","v":16},{"$f":"[1]ACS_16_5YR_B17001_with_ann!BV53","v":43},{"$f":"[1]ACS_16_5YR_B17001_with_ann!BW53","v":31},{"$f":"[1]ACS_16_5YR_B17001_with_ann!BX53","v":8},{"$f":"[1]ACS_16_5YR_B17001_with_ann!BY53","v":14},{"$f":"[1]ACS_16_5YR_B17001_with_ann!BZ53","v":13},{"$f":"[1]ACS_16_5YR_B17001_with_ann!CA53","v":16},{"$f":"[1]ACS_16_5YR_B17001_with_ann!CB53","v":47},{"$f":"[1]ACS_16_5YR_B17001_with_ann!CC53","v":38},{"$f":"[1]ACS_16_5YR_B17001_with_ann!CD53","v":80},{"$f":"[1]ACS_16_5YR_B17001_with_ann!CE53","v":45},{"$f":"[1]ACS_16_5YR_B17001_with_ann!CF53","v":119},{"$f":"[1]ACS_16_5YR_B17001_with_ann!CG53","v":53},{"$f":"[1]ACS_16_5YR_B17001_with_ann!CH53","v":140},{"$f":"[1]ACS_16_5YR_B17001_with_ann!CI53","v":74},{"$f":"[1]ACS_16_5YR_B17001_with_ann!CJ53","v":162},{"$f":"[1]ACS_16_5YR_B17001_with_ann!CK53","v":57},{"$f":"[1]ACS_16_5YR_B17001_with_ann!CL53","v":73},{"$f":"[1]ACS_16_5YR_B17001_with_ann!CM53","v":33},{"$f":"[1]ACS_16_5YR_B17001_with_ann!CN53","v":102},{"$f":"[1]ACS_16_5YR_B17001_with_ann!CO53","v":43},{"$f":"[1]ACS_16_5YR_B17001_with_ann!CP53","v":1074},{"$f":"[1]ACS_16_5YR_B17001_with_ann!CQ53","v":255},{"$f":"[1]ACS_16_5YR_B17001_with_ann!CR53","v":140},{"$f":"[1]ACS_16_5YR_B17001_with_ann!CS53","v":107},{"$f":"[1]ACS_16_5YR_B17001_with_ann!CT53","v":11},{"$f":"[1]ACS_16_5YR_B17001_with_ann!CU53","v":12},{"$f":"[1]ACS_16_5YR_B17001_with_ann!CV53","v":22},{"$f":"[1]ACS_16_5YR_B17001_with_ann!CW53","v":19},{"$f":"[1]ACS_16_5YR_B17001_with_ann!CX53","v":28},{"$f":"[1]ACS_16_5YR_B17001_with_ann!CY53","v":23},{"$f":"[1]ACS_16_5YR_B17001_with_ann!CZ53","v":9},{"$f":"[1]ACS_16_5YR_B17001_with_ann!DA53","v":12},{"$f":"[1]ACS_16_5YR_B17001_with_ann!DB53","v":71},{"$f":"[1]ACS_16_5YR_B17001_with_ann!DC53","v":50},{"$f":"[1]ACS_16_5YR_B17001_with_ann!DD53","v":30},{"$f":"[1]ACS_16_5YR_B17001_with_ann!DE53","v":31},{"$f":"[1]ACS_16_5YR_B17001_with_ann!DF53","v":73},{"$f":"[1]ACS_16_5YR_B17001_with_ann!DG53","v":38},{"$f":"[1]ACS_16_5YR_B17001_with_ann!DH53","v":202},{"$f":"[1]ACS_16_5YR_B17001_with_ann!DI53","v":107},{"$f":"[1]ACS_16_5YR_B17001_with_ann!DJ53","v":115},{"$f":"[1]ACS_16_5YR_B17001_with_ann!DK53","v":51},{"$f":"[1]ACS_16_5YR_B17001_with_ann!DL53","v":172},{"$f":"[1]ACS_16_5YR_B17001_with_ann!DM53","v":57},{"$f":"[1]ACS_16_5YR_B17001_with_ann!DN53","v":114},{"$f":"[1]ACS_16_5YR_B17001_with_ann!DO53","v":48},{"$f":"[1]ACS_16_5YR_B17001_with_ann!DP53","v":87},{"$f":"[1]ACS_16_5YR_B17001_with_ann!DQ53","v":42}]
["06000US3300545700","0600000US3300550580","060",{"$f":"[1]ACS_16_5YR_B17001_with_ann!C54","v":"Marlow"},{"$f":"[1]ACS_16_5YR_B17001_with_ann!D54","v":803},{"$f":"[1]ACS_16_5YR_B17001_with_ann!E54","v":175},{"$f":"[1]ACS_16_5YR_B17001_with_ann!F54","v":100},{"$f":"[1]ACS_16_5YR_B17001_with_ann!G54","v":65},{"$f":"[1]ACS_16_5YR_B17001_with_ann!H54","v":48},{"$f":"[1]ACS_16_5YR_B17001_with_ann!I54","v":34},{"$f":"[1]ACS_16_5YR_B17001_with_ann!J54","v":15},{"$f":"[1]ACS_16_5YR_B17001_with_ann!K54","v":22},{"$f":"[1]ACS_16_5YR_B17001_with_ann!L54","v":3},{"$f":"[1]ACS_16_5YR_B17001_with_ann!M54","v":6},{"$f":"[1]ACS_16_5YR_B17001_with_ann!N54","v":3},{"$f":"[1]ACS_16_5YR_B17001_with_ann!O54","v":4},{"$f":"[1]ACS_16_5YR_B17001_with_ann!P54","v":3},{"$f":"[1]ACS_16_5YR_B17001_with_ann!Q54","v":4},{"$f":"[1]ACS_16_5YR_B17001_with_ann!R54","v":0},{"$f":"[1]ACS_16_5YR_B17001_with_ann!S54","v":12},{"$f":"[1]ACS_16_5YR_B17001_with_ann!T54","v":0},{"$f":"[1]ACS_16_5YR_B17001_with_ann!U54","v":12},{"$f":"[1]ACS_16_5YR_B17001_with_ann!V54","v":0},{"$f":"[1]ACS_16_5YR_B17001_with_ann!W54","v":12},{"$f":"[1]ACS_16_5YR_B17001_with_ann!X54","v":4},{"$f":"[1]ACS_16_5YR_B17001_with_ann!Y54","v":6},{"$f":"[1]ACS_16_5YR_B17001_with_ann!Z54","v":0},{"$f":"[1]ACS_16_5YR_B17001_with_ann!AA54","v":12},{"$f":"[1]ACS_16_5YR_B17001_with_ann!AB54","v":5},{"$f":"[1]ACS_16_5YR_B17001_with_ann!AC54","v":5},{"$f":"[1]ACS_16_5YR_B17001_with_ann!AD54","v":13},{"$f":"[1]ACS_16_5YR_B17001_with_ann!AE54","v":14},{"$f":"[1]ACS_16_5YR_B17001_with_ann!AF54","v":0},{"$f":"[1]ACS_16_5YR_B17001_with_ann!AG54","v":12},{"$f":"[1]ACS_16_5YR_B17001_with_ann!AH54","v":2},{"$f":"[1]ACS_16_5YR_B17001_with_ann!AI54","v":3},{"$f":"[1]ACS_16_5YR_B17001_with_ann!AJ54","v":52},{"$f":"[1]ACS_16_5YR_B17001_with_ann!AK54","v":33},{"$f":"[1]ACS_16_5YR_B17001_with_ann!AL54","v":0},{"$f":"[1]ACS_16_5YR_B17001_with_ann!AM54","v":12},{"$f":"[1]ACS_16_5YR_B17001_with_ann!AN54","v":0},{"$f":"[1]ACS_16_5YR_B17001_with_ann!AO54","v":12},{"$f":"[1]ACS_16_5YR_B17001_with_ann!AP54","v":18},{"$f":"[1]ACS_16_5YR_B17001_with_ann!AQ54","v":17},{"$f":"[1]ACS_16_5YR_B17001_with_ann!AR54","v":5},{"$f":"[1]ACS_16_5YR_B17001_with_ann!AS54","v":7},{"$f":"[1]ACS_16_5YR_B17001_with_ann!AT54","v":0},{"$f":"[1]ACS_16_5YR_B17001_with_ann!AU54","v":12},{"$f":"[1]ACS_16_5YR_B17001_with_ann!AV54","v":0},{"$f":"[1]ACS_16_5YR_B17001_with_ann!AW54","v":12},{"$f":"[1]ACS_16_5YR_B17001_with_ann!AX54","v":0},{"$f":"[1]ACS_16_5YR_B17001_with_ann!AY54","v":12},{"$f":"[1]ACS_16_5YR_B17001_with_ann!AZ54","v":10},{"$f":"[1]ACS_16_5YR_B17001_with_ann!BA54","v":10},{"$f":"[1]ACS_16_5YR_B17001_with_ann!BB54","v":0},{"$f":"[1]ACS_16_5YR_B17001_with_ann!BC54","v":12},{"$f":"[1]ACS_16_5YR_B17001_with_ann!BD54","v":9},{"$f":"[1]ACS_16_5YR_B17001_with_ann!BE54","v":10},{"$f":"[1]ACS_16_5YR_B17001_with_ann!BF54","v":0},{"$f":"[1]ACS_16_5YR_B17001_with_ann!BG54","v":12},{"$f":"[1]ACS_16_5YR_B17001_with_ann!BH54","v":0},{"$f":"[1]ACS_16_5YR_B17001_with_ann!BI54","v":12},{"$f":"[1]ACS_16_5YR_B17001_with_ann!BJ54","v":10},{"$f":"[1]ACS_16_5YR_B17001_with_ann!BK54","v":9},{"$f":"[1]ACS_16_5YR_B17001_with_ann!BL54","v":703},{"$f":"[1]ACS_16_5YR_B17001_with_ann!BM54","v":166},{"$f":"[1]ACS_16_5YR_B17001_with_ann!BN54","v":316},{"$f":"[1]ACS_16_5YR_B17001_with_ann!BO54","v":72},{"$f":"[1]ACS_16_5YR_B17001_with_ann!BP54","v":8},{"$f":"[1]ACS_16_5YR_B17001_with_ann!BQ54","v":13},{"$f":"[1]ACS_16_5YR_B17001_with_ann!BR54","v":0},{"$f":"[1]ACS_16_5YR_B17001_with_ann!BS54","v":12},{"$f":"[1]ACS_16_5YR_B17001_with_ann!BT54","v":4},{"$f":"[1]ACS_16_5YR_B17001_with_ann!BU54","v":5},{"$f":"[1]ACS_16_5YR_B17001_with_ann!BV54","v":7},{"$f":"[1]ACS_16_5YR_B17001_with_ann!BW54","v":6},{"$f":"[1]ACS_16_5YR_B17001_with_ann!BX54","v":0},{"$f":"[1]ACS_16_5YR_B17001_with_ann!BY54","v":12},{"$f":"[1]ACS_16_5YR_B17001_with_ann!BZ54","v":17},{"$f":"[1]ACS_16_5YR_B17001_with_ann!CA54","v":20},{"$f":"[1]ACS_16_5YR_B17001_with_ann!CB54","v":17},{"$f":"[1]ACS_16_5YR_B17001_with_ann!CC54","v":13},{"$f":"[1]ACS_16_5YR_B17001_with_ann!CD54","v":32},{"$f":"[1]ACS_16_5YR_B17001_with_ann!CE54","v":27},{"$f":"[1]ACS_16_5YR_B17001_with_ann!CF54","v":33},{"$f":"[1]ACS_16_5YR_B17001_with_ann!CG54","v":20},{"$f":"[1]ACS_16_5YR_B17001_with_ann!CH54","v":35},{"$f":"[1]ACS_16_5YR_B17001_with_ann!CI54","v":18},{"$f":"[1]ACS_16_5YR_B17001_with_ann!CJ54","v":67},{"$f":"[1]ACS_16_5YR_B17001_with_ann!CK54","v":31},{"$f":"[1]ACS_16_5YR_B17001_with_ann!CL54","v":75},{"$f":"[1]ACS_16_5YR_B17001_with_ann!CM54","v":38},{"$f":"[1]ACS_16_5YR_B17001_with_ann!CN54","v":21},{"$f":"[1]ACS_16_5YR_B17001_with_ann!CO54","v":12},{"$f":"[1]ACS_16_5YR_B17001_with_ann!CP54","v":387},{"$f":"[1]ACS_16_5YR_B17001_with_ann!CQ54","v":109},{"$f":"[1]ACS_16_5YR_B17001_with_ann!CR54","v":19},{"$f":"[1]ACS_16_5YR_B17001_with_ann!CS54","v":19},{"$f":"[1]ACS_16_5YR_B17001_with_ann!CT54","v":0},{"$f":"[1]ACS_16_5YR_B17001_with_ann!CU54","v":12},{"$f":"[1]ACS_16_5YR_B17001_with_ann!CV54","v":55},{"$f":"[1]ACS_16_5YR_B17001_with_ann!CW54","v":44},{"$f":"[1]ACS_16_5YR_B17001_with_ann!CX54","v":27},{"$f":"[1]ACS_16_5YR_B17001_with_ann!CY54","v":17},{"$f":"[1]ACS_16_5YR_B17001_with_ann!CZ54","v":8},{"$f":"[1]ACS_16_5YR_B17001_with_ann!DA54","v":8},{"$f":"[1]ACS_16_5YR_B17001_with_ann!DB54","v":3},{"$f":"[1]ACS_16_5YR_B17001_with_ann!DC54","v":4},{"$f":"[1]ACS_16_5YR_B17001_with_ann!DD54","v":21},{"$f":"[1]ACS_16_5YR_B17001_with_ann!DE54","v":16},{"$f":"[1]ACS_16_5YR_B17001_with_ann!DF54","v":41},{"$f":"[1]ACS_16_5YR_B17001_with_ann!DG54","v":32},{"$f":"[1]ACS_16_5YR_B17001_with_ann!DH54","v":33},{"$f":"[1]ACS_16_5YR_B17001_with_ann!DI54","v":18},{"$f":"[1]ACS_16_5YR_B17001_with_ann!DJ54","v":27},{"$f":"[1]ACS_16_5YR_B17001_with_ann!DK54","v":19},{"$f":"[1]ACS_16_5YR_B17001_with_ann!DL54","v":63},{"$f":"[1]ACS_16_5YR_B17001_with_ann!DM54","v":28},{"$f":"[1]ACS_16_5YR_B17001_with_ann!DN54","v":67},{"$f":"[1]ACS_16_5YR_B17001_with_ann!DO54","v":38},{"$f":"[1]ACS_16_5YR_B17001_with_ann!DP54","v":23},{"$f":"[1]ACS_16_5YR_B17001_with_ann!DQ54","v":15}]
["06000US3300550580","0600000US3300564420","060",{"$f":"[1]ACS_16_5YR_B17001_with_ann!C55","v":"Nelson"},{"$f":"[1]ACS_16_5YR_B17001_with_ann!D55","v":541},{"$f":"[1]ACS_16_5YR_B17001_with_ann!E55","v":104},{"$f":"[1]ACS_16_5YR_B17001_with_ann!F55","v":15},{"$f":"[1]ACS_16_5YR_B17001_with_ann!G55","v":8},{"$f":"[1]ACS_16_5YR_B17001_with_ann!H55","v":6},{"$f":"[1]ACS_16_5YR_B17001_with_ann!I55","v":5},{"$f":"[1]ACS_16_5YR_B17001_with_ann!J55","v":0},{"$f":"[1]ACS_16_5YR_B17001_with_ann!K55","v":12},{"$f":"[1]ACS_16_5YR_B17001_with_ann!L55","v":0},{"$f":"[1]ACS_16_5YR_B17001_with_ann!M55","v":12},{"$f":"[1]ACS_16_5YR_B17001_with_ann!N55","v":0},{"$f":"[1]ACS_16_5YR_B17001_with_ann!O55","v":12},{"$f":"[1]ACS_16_5YR_B17001_with_ann!P55","v":0},{"$f":"[1]ACS_16_5YR_B17001_with_ann!Q55","v":12},{"$f":"[1]ACS_16_5YR_B17001_with_ann!R55","v":0},{"$f":"[1]ACS_16_5YR_B17001_with_ann!S55","v":12},{"$f":"[1]ACS_16_5YR_B17001_with_ann!T55","v":0},{"$f":"[1]ACS_16_5YR_B17001_with_ann!U55","v":12},{"$f":"[1]ACS_16_5YR_B17001_with_ann!V55","v":0},{"$f":"[1]ACS_16_5YR_B17001_with_ann!W55","v":12},{"$f":"[1]ACS_16_5YR_B17001_with_ann!X55","v":2},{"$f":"[1]ACS_16_5YR_B17001_with_ann!Y55","v":3},{"$f":"[1]ACS_16_5YR_B17001_with_ann!Z55","v":0},{"$f":"[1]ACS_16_5YR_B17001_with_ann!AA55","v":12},{"$f":"[1]ACS_16_5YR_B17001_with_ann!AB55","v":0},{"$f":"[1]ACS_16_5YR_B17001_with_ann!AC55","v":12},{"$f":"[1]ACS_16_5YR_B17001_with_ann!AD55","v":0},{"$f":"[1]ACS_16_5YR_B17001_with_ann!AE55","v":12},{"$f":"[1]ACS_16_5YR_B17001_with_ann!AF55","v":4},{"$f":"[1]ACS_16_5YR_B17001_with_ann!AG55","v":4},{"$f":"[1]ACS_16_5YR_B17001_with_ann!AH55","v":0},{"$f":"[1]ACS_16_5YR_B17001_with_ann!AI55","v":12},{"$f":"[1]ACS_16_5YR_B17001_with_ann!AJ55","v":9},{"$f":"[1]ACS_16_5YR_B17001_with_ann!AK55","v":6},{"$f":"[1]ACS_16_5YR_B17001_with_ann!AL55","v":0},{"$f":"[1]ACS_16_5YR_B17001_with_ann!AM55","v":12},{"$f":"[1]ACS_16_5YR_B17001_with_ann!AN55","v":0},{"$f":"[1]ACS_16_5YR_B17001_with_ann!AO55","v":12},{"$f":"[1]ACS_16_5YR_B17001_with_ann!AP55","v":0},{"$f":"[1]ACS_16_5YR_B17001_with_ann!AQ55","v":12},{"$f":"[1]ACS_16_5YR_B17001_with_ann!AR55","v":0},{"$f":"[1]ACS_16_5YR_B17001_with_ann!AS55","v":12},{"$f":"[1]ACS_16_5YR_B17001_with_ann!AT55","v":0},{"$f":"[1]ACS_16_5YR_B17001_with_ann!AU55","v":12},{"$f":"[1]ACS_16_5YR_B17001_with_ann!AV55","v":0},{"$f":"[1]ACS_16_5YR_B17001_with_ann!AW55","v":12},{"$f":"[1]ACS_16_5YR_B17001_with_ann!AX55","v":0},{"$f":"[1]ACS_16_5YR_B17001_with_ann!AY55","v":12},{"$f":"[1]ACS_16_5YR_B17001_with_ann!AZ55","v":4},{"$f":"[1]ACS_16_5YR_B17001_with_ann!BA55","v":5},{"$f":"[1]ACS_16_5YR_B17001_with_ann!BB55","v":0},{"$f":"[1]ACS_16_5YR_B17001_with_ann!BC55","v":12},{"$f":"[1]ACS_16_5YR_B17001_with_ann!BD55","v":0},{"$f":"[1]ACS_16_5YR_B17001_with_ann!BE55","v":12},{"$f":"[1]ACS_16_5YR_B17001_with_ann!BF55","v":2},{"$f":"[1]ACS_16_5YR_B17001_with_ann!BG55","v":3},{"$f":"[1]ACS_16_5YR_B17001_with_ann!BH55","v":3},{"$f":"[1]ACS_16_5YR_B17001_with_ann!BI55","v":3},{"$f":"[1]ACS_16_5YR_B17001_with_ann!BJ55","v":0},{"$f":"[1]ACS_16_5YR_B17001_with_ann!BK55","v":12},{"$f":"[1]ACS_16_5YR_B17001_with_ann!BL55","v":526},{"$f":"[1]ACS_16_5YR_B17001_with_ann!BM55","v":105},{"$f":"[1]ACS_16_5YR_B17001_with_ann!BN55","v":244},{"$f":"[1]ACS_16_5YR_B17001_with_ann!BO55","v":50},{"$f":"[1]ACS_16_5YR_B17001_with_ann!BP55","v":15},{"$f":"[1]ACS_16_5YR_B17001_with_ann!BQ55","v":8},{"$f":"[1]ACS_16_5YR_B17001_with_ann!BR55","v":0},{"$f":"[1]ACS_16_5YR_B17001_with_ann!BS55","v":12},{"$f":"[1]ACS_16_5YR_B17001_with_ann!BT55","v":12},{"$f":"[1]ACS_16_5YR_B17001_with_ann!BU55","v":9},{"$f":"[1]ACS_16_5YR_B17001_with_ann!BV55","v":0},{"$f":"[1]ACS_16_5YR_B17001_with_ann!BW55","v":12},{"$f":"[1]ACS_16_5YR_B17001_with_ann!BX55","v":3},{"$f":"[1]ACS_16_5YR_B17001_with_ann!BY55","v":6},{"$f":"[1]ACS_16_5YR_B17001_with_ann!BZ55","v":0},{"$f":"[1]ACS_16_5YR_B17001_with_ann!CA55","v":12},{"$f":"[1]ACS_16_5YR_B17001_with_ann!CB55","v":7},{"$f":"[1]ACS_16_5YR_B17001_with_ann!CC55","v":11},{"$f":"[1]ACS_16_5YR_B17001_with_ann!CD55","v":16},{"$f":"[1]ACS_16_5YR_B17001_with_ann!CE55","v":9},{"$f":"[1]ACS_16_5YR_B17001_with_ann!CF55","v":29},{"$f":"[1]ACS_16_5YR_B17001_with_ann!CG55","v":15},{"$f":"[1]ACS_16_5YR_B17001_with_ann!CH55","v":36},{"$f":"[1]ACS_16_5YR_B17001_with_ann!CI55","v":20},{"$f":"[1]ACS_16_5YR_B17001_with_ann!CJ55","v":51},{"$f":"[1]ACS_16_5YR_B17001_with_ann!CK55","v":23},{"$f":"[1]ACS_16_5YR_B17001_with_ann!CL55","v":55},{"$f":"[1]ACS_16_5YR_B17001_with_ann!CM55","v":22},{"$f":"[1]ACS_16_5YR_B17001_with_ann!CN55","v":20},{"$f":"[1]ACS_16_5YR_B17001_with_ann!CO55","v":10},{"$f":"[1]ACS_16_5YR_B17001_with_ann!CP55","v":282},{"$f":"[1]ACS_16_5YR_B17001_with_ann!CQ55","v":66},{"$f":"[1]ACS_16_5YR_B17001_with_ann!CR55","v":7},{"$f":"[1]ACS_16_5YR_B17001_with_ann!CS55","v":7},{"$f":"[1]ACS_16_5YR_B17001_with_ann!CT55","v":1},{"$f":"[1]ACS_16_5YR_B17001_with_ann!CU55","v":3},{"$f":"[1]ACS_16_5YR_B17001_with_ann!CV55","v":30},{"$f":"[1]ACS_16_5YR_B17001_with_ann!CW55","v":22},{"$f":"[1]ACS_16_5YR_B17001_with_ann!CX55","v":0},{"$f":"[1]ACS_16_5YR_B17001_with_ann!CY55","v":12},{"$f":"[1]ACS_16_5YR_B17001_with_ann!CZ55","v":0},{"$f":"[1]ACS_16_5YR_B17001_with_ann!DA55","v":12},{"$f":"[1]ACS_16_5YR_B17001_with_ann!DB55","v":8},{"$f":"[1]ACS_16_5YR_B17001_with_ann!DC55","v":12},{"$f":"[1]ACS_16_5YR_B17001_with_ann!DD55","v":10},{"$f":"[1]ACS_16_5YR_B17001_with_ann!DE55","v":13},{"$f":"[1]ACS_16_5YR_B17001_with_ann!DF55","v":13},{"$f":"[1]ACS_16_5YR_B17001_with_ann!DG55","v":10},{"$f":"[1]ACS_16_5YR_B17001_with_ann!DH55","v":46},{"$f":"[1]ACS_16_5YR_B17001_with_ann!DI55","v":22},{"$f":"[1]ACS_16_5YR_B17001_with_ann!DJ55","v":20},{"$f":"[1]ACS_16_5YR_B17001_with_ann!DK55","v":15},{"$f":"[1]ACS_16_5YR_B17001_with_ann!DL55","v":72},{"$f":"[1]ACS_16_5YR_B17001_with_ann!DM55","v":27},{"$f":"[1]ACS_16_5YR_B17001_with_ann!DN55","v":45},{"$f":"[1]ACS_16_5YR_B17001_with_ann!DO55","v":18},{"$f":"[1]ACS_16_5YR_B17001_with_ann!DP55","v":30},{"$f":"[1]ACS_16_5YR_B17001_with_ann!DQ55","v":21}]
["06000US3300564420","0600000US3300564580","060",{"$f":"[1]ACS_16_5YR_B17001_with_ann!C56","v":"Richmond"},{"$f":"[1]ACS_16_5YR_B17001_with_ann!D56","v":1107},{"$f":"[1]ACS_16_5YR_B17001_with_ann!E56","v":251},{"$f":"[1]ACS_16_5YR_B17001_with_ann!F56","v":35},{"$f":"[1]ACS_16_5YR_B17001_with_ann!G56","v":48},{"$f":"[1]ACS_16_5YR_B17001_with_ann!H56","v":0},{"$f":"[1]ACS_16_5YR_B17001_with_ann!I56","v":12},{"$f":"[1]ACS_16_5YR_B17001_with_ann!J56","v":0},{"$f":"[1]ACS_16_5YR_B17001_with_ann!K56","v":12},{"$f":"[1]ACS_16_5YR_B17001_with_ann!L56","v":0},{"$f":"[1]ACS_16_5YR_B17001_with_ann!M56","v":12},{"$f":"[1]ACS_16_5YR_B17001_with_ann!N56","v":0},{"$f":"[1]ACS_16_5YR_B17001_with_ann!O56","v":12},{"$f":"[1]ACS_16_5YR_B17001_with_ann!P56","v":0},{"$f":"[1]ACS_16_5YR_B17001_with_ann!Q56","v":12},{"$f":"[1]ACS_16_5YR_B17001_with_ann!R56","v":0},{"$f":"[1]ACS_16_5YR_B17001_with_ann!S56","v":12},{"$f":"[1]ACS_16_5YR_B17001_with_ann!T56","v":0},{"$f":"[1]ACS_16_5YR_B17001_with_ann!U56","v":12},{"$f":"[1]ACS_16_5YR_B17001_with_ann!V56","v":0},{"$f":"[1]ACS_16_5YR_B17001_with_ann!W56","v":12},{"$f":"[1]ACS_16_5YR_B17001_with_ann!X56","v":0},{"$f":"[1]ACS_16_5YR_B17001_with_ann!Y56","v":12},{"$f":"[1]ACS_16_5YR_B17001_with_ann!Z56","v":0},{"$f":"[1]ACS_16_5YR_B17001_with_ann!AA56","v":12},{"$f":"[1]ACS_16_5YR_B17001_with_ann!AB56","v":0},{"$f":"[1]ACS_16_5YR_B17001_with_ann!AC56","v":12},{"$f":"[1]ACS_16_5YR_B17001_with_ann!AD56","v":0},{"$f":"[1]ACS_16_5YR_B17001_with_ann!AE56","v":12},{"$f":"[1]ACS_16_5YR_B17001_with_ann!AF56","v":0},{"$f":"[1]ACS_16_5YR_B17001_with_ann!AG56","v":12},{"$f":"[1]ACS_16_5YR_B17001_with_ann!AH56","v":0},{"$f":"[1]ACS_16_5YR_B17001_with_ann!AI56","v":12},{"$f":"[1]ACS_16_5YR_B17001_with_ann!AJ56","v":35},{"$f":"[1]ACS_16_5YR_B17001_with_ann!AK56","v":48},{"$f":"[1]ACS_16_5YR_B17001_with_ann!AL56","v":0},{"$f":"[1]ACS_16_5YR_B17001_with_ann!AM56","v":12},{"$f":"[1]ACS_16_5YR_B17001_with_ann!AN56","v":0},{"$f":"[1]ACS_16_5YR_B17001_with_ann!AO56","v":12},{"$f":"[1]ACS_16_5YR_B17001_with_ann!AP56","v":0},{"$f":"[1]ACS_16_5YR_B17001_with_ann!AQ56","v":12},{"$f":"[1]ACS_16_5YR_B17001_with_ann!AR56","v":0},{"$f":"[1]ACS_16_5YR_B17001_with_ann!AS56","v":12},{"$f":"[1]ACS_16_5YR_B17001_with_ann!AT56","v":0},{"$f":"[1]ACS_16_5YR_B17001_with_ann!AU56","v":12},{"$f":"[1]ACS_16_5YR_B17001_with_ann!AV56","v":0},{"$f":"[1]ACS_16_5YR_B17001_with_ann!AW56","v":12},{"$f":"[1]ACS_16_5YR_B17001_with_ann!AX56","v":0},{"$f":"[1]ACS_16_5YR_B17001_with_ann!AY56","v":12},{"$f":"[1]ACS_16_5YR_B17001_with_ann!AZ56","v":1},{"$f":"[1]ACS_16_5YR_B17001_with_ann!BA56","v":3},{"$f":"[1]ACS_16_5YR_B17001_with_ann!BB56","v":1},{"$f":"[1]ACS_16_5YR_B17001_with_ann!BC56","v":3},{"$f":"[1]ACS_16_5YR_B17001_with_ann!BD56","v":12},{"$f":"[1]ACS_16_5YR_B17001_with_ann!BE56","v":20},{"$f":"[1]ACS_16_5YR_B17001_with_ann!BF56","v":1},{"$f":"[1]ACS_16_5YR_B17001_with_ann!BG56","v":3},{"$f":"[1]ACS_16_5YR_B17001_with_ann!BH56","v":0},{"$f":"[1]ACS_16_5YR_B17001_with_ann!BI56","v":12},{"$f":"[1]ACS_16_5YR_B17001_with_ann!BJ56","v":20},{"$f":"[1]ACS_16_5YR_B17001_with_ann!BK56","v":28},{"$f":"[1]ACS_16_5YR_B17001_with_ann!BL56","v":1072},{"$f":"[1]ACS_16_5YR_B17001_with_ann!BM56","v":251},{"$f":"[1]ACS_16_5YR_B17001_with_ann!BN56","v":598},{"$f":"[1]ACS_16_5YR_B17001_with_ann!BO56","v":161},{"$f":"[1]ACS_16_5YR_B17001_with_ann!BP56","v":38},{"$f":"[1]ACS_16_5YR_B17001_with_ann!BQ56","v":31},{"$f":"[1]ACS_16_5YR_B17001_with_ann!BR56","v":0},{"$f":"[1]ACS_16_5YR_B17001_with_ann!BS56","v":12},{"$f":"[1]ACS_16_5YR_B17001_with_ann!BT56","v":51},{"$f":"[1]ACS_16_5YR_B17001_with_ann!BU56","v":28},{"$f":"[1]ACS_16_5YR_B17001_with_ann!BV56","v":19},{"$f":"[1]ACS_16_5YR_B17001_with_ann!BW56","v":14},{"$f":"[1]ACS_16_5YR_B17001_with_ann!BX56","v":2},{"$f":"[1]ACS_16_5YR_B17001_with_ann!BY56","v":4},{"$f":"[1]ACS_16_5YR_B17001_with_ann!BZ56","v":10},{"$f":"[1]ACS_16_5YR_B17001_with_ann!CA56","v":10},{"$f":"[1]ACS_16_5YR_B17001_with_ann!CB56","v":56},{"$f":"[1]ACS_16_5YR_B17001_with_ann!CC56","v":42},{"$f":"[1]ACS_16_5YR_B17001_with_ann!CD56","v":57},{"$f":"[1]ACS_16_5YR_B17001_with_ann!CE56","v":34},{"$f":"[1]ACS_16_5YR_B17001_with_ann!CF56","v":38},{"$f":"[1]ACS_16_5YR_B17001_with_ann!CG56","v":17},{"$f":"[1]ACS_16_5YR_B17001_with_ann!CH56","v":48},{"$f":"[1]ACS_16_5YR_B17001_with_ann!CI56","v":27},{"$f":"[1]ACS_16_5YR_B17001_with_ann!CJ56","v":106},{"$f":"[1]ACS_16_5YR_B17001_with_ann!CK56","v":42},{"$f":"[1]ACS_16_5YR_B17001_with_ann!CL56","v":145},{"$f":"[1]ACS_16_5YR_B17001_with_ann!CM56","v":100},{"$f":"[1]ACS_16_5YR_B17001_with_ann!CN56","v":28},{"$f":"[1]ACS_16_5YR_B17001_with_ann!CO56","v":16},{"$f":"[1]ACS_16_5YR_B17001_with_ann!CP56","v":474},{"$f":"[1]ACS_16_5YR_B17001_with_ann!CQ56","v":116},{"$f":"[1]ACS_16_5YR_B17001_with_ann!CR56","v":10},{"$f":"[1]ACS_16_5YR_B17001_with_ann!CS56","v":14},{"$f":"[1]ACS_16_5YR_B17001_with_ann!CT56","v":2},{"$f":"[1]ACS_16_5YR_B17001_with_ann!CU56","v":3},{"$f":"[1]ACS_16_5YR_B17001_with_ann!CV56","v":34},{"$f":"[1]ACS_16_5YR_B17001_with_ann!CW56","v":25},{"$f":"[1]ACS_16_5YR_B17001_with_ann!CX56","v":12},{"$f":"[1]ACS_16_5YR_B17001_with_ann!CY56","v":11},{"$f":"[1]ACS_16_5YR_B17001_with_ann!CZ56","v":0},{"$f":"[1]ACS_16_5YR_B17001_with_ann!DA56","v":12},{"$f":"[1]ACS_16_5YR_B17001_with_ann!DB56","v":10},{"$f":"[1]ACS_16_5YR_B17001_with_ann!DC56","v":9},{"$f":"[1]ACS_16_5YR_B17001_with_ann!DD56","v":38},{"$f":"[1]ACS_16_5YR_B17001_with_ann!DE56","v":39},{"$f":"[1]ACS_16_5YR_B17001_with_ann!DF56","v":30},{"$f":"[1]ACS_16_5YR_B17001_with_ann!DG56","v":18},{"$f":"[1]ACS_16_5YR_B17001_with_ann!DH56","v":40},{"$f":"[1]ACS_16_5YR_B17001_with_ann!DI56","v":21},{"$f":"[1]ACS_16_5YR_B17001_with_ann!DJ56","v":38},{"$f":"[1]ACS_16_5YR_B17001_with_ann!DK56","v":21},{"$f":"[1]ACS_16_5YR_B17001_with_ann!DL56","v":134},{"$f":"[1]ACS_16_5YR_B17001_with_ann!DM56","v":52},{"$f":"[1]ACS_16_5YR_B17001_with_ann!DN56","v":69},{"$f":"[1]ACS_16_5YR_B17001_with_ann!DO56","v":30},{"$f":"[1]ACS_16_5YR_B17001_with_ann!DP56","v":57},{"$f":"[1]ACS_16_5YR_B17001_with_ann!DQ56","v":28}]
["06000US3300564580","0600000US3300565700","060",{"$f":"[1]ACS_16_5YR_B17001_with_ann!C57","v":"Rindge"},{"$f":"[1]ACS_16_5YR_B17001_with_ann!D57","v":5461},{"$f":"[1]ACS_16_5YR_B17001_with_ann!E57","v":37},{"$f":"[1]ACS_16_5YR_B17001_with_ann!F57","v":298},{"$f":"[1]ACS_16_5YR_B17001_with_ann!G57","v":177},{"$f":"[1]ACS_16_5YR_B17001_with_ann!H57","v":111},{"$f":"[1]ACS_16_5YR_B17001_with_ann!I57","v":79},{"$f":"[1]ACS_16_5YR_B17001_with_ann!J57","v":13},{"$f":"[1]ACS_16_5YR_B17001_with_ann!K57","v":23},{"$f":"[1]ACS_16_5YR_B17001_with_ann!L57","v":0},{"$f":"[1]ACS_16_5YR_B17001_with_ann!M57","v":17},{"$f":"[1]ACS_16_5YR_B17001_with_ann!N57","v":30},{"$f":"[1]ACS_16_5YR_B17001_with_ann!O57","v":35},{"$f":"[1]ACS_16_5YR_B17001_with_ann!P57","v":0},{"$f":"[1]ACS_16_5YR_B17001_with_ann!Q57","v":17},{"$f":"[1]ACS_16_5YR_B17001_with_ann!R57","v":0},{"$f":"[1]ACS_16_5YR_B17001_with_ann!S57","v":17},{"$f":"[1]ACS_16_5YR_B17001_with_ann!T57","v":0},{"$f":"[1]ACS_16_5YR_B17001_with_ann!U57","v":17},{"$f":"[1]ACS_16_5YR_B17001_with_ann!V57","v":12},{"$f":"[1]ACS_16_5YR_B17001_with_ann!W57","v":20},{"$f":"[1]ACS_16_5YR_B17001_with_ann!X57","v":18},{"$f":"[1]ACS_16_5YR_B17001_with_ann!Y57","v":29},{"$f":"[1]ACS_16_5YR_B17001_with_ann!Z57","v":10},{"$f":"[1]ACS_16_5YR_B17001_with_ann!AA57","v":18},{"$f":"[1]ACS_16_5YR_B17001_with_ann!AB57","v":0},{"$f":"[1]ACS_16_5YR_B17001_with_ann!AC57","v":17},{"$f":"[1]ACS_16_5YR_B17001_with_ann!AD57","v":20},{"$f":"[1]ACS_16_5YR_B17001_with_ann!AE57","v":27},{"$f":"[1]ACS_16_5YR_B17001_with_ann!AF57","v":8},{"$f":"[1]ACS_16_5YR_B17001_with_ann!AG57","v":13},{"$f":"[1]ACS_16_5YR_B17001_with_ann!AH57","v":0},{"$f":"[1]ACS_16_5YR_B17001_with_ann!AI57","v":17},{"$f":"[1]ACS_16_5YR_B17001_with_ann!AJ57","v":187},{"$f":"[1]ACS_16_5YR_B17001_with_ann!AK57","v":107},{"$f":"[1]ACS_16_5YR_B17001_with_ann!AL57","v":0},{"$f":"[1]ACS_16_5YR_B17001_with_ann!AM57","v":17},{"$f":"[1]ACS_16_5YR_B17001_with_ann!AN57","v":0},{"$f":"[1]ACS_16_5YR_B17001_with_ann!AO57","v":17},{"$f":"[1]ACS_16_5YR_B17001_with_ann!AP57","v":10},{"$f":"[1]ACS_16_5YR_B17001_with_ann!AQ57","v":17},{"$f":"[1]ACS_16_5YR_B17001_with_ann!AR57","v":28},{"$f":"[1]ACS_16_5YR_B17001_with_ann!AS57","v":33},{"$f":"[1]ACS_16_5YR_B17001_with_ann!AT57","v":0},{"$f":"[1]ACS_16_5YR_B17001_with_ann!AU57","v":17},{"$f":"[1]ACS_16_5YR_B17001_with_ann!AV57","v":0},{"$f":"[1]ACS_16_5YR_B17001_with_ann!AW57","v":17},{"$f":"[1]ACS_16_5YR_B17001_with_ann!AX57","v":46},{"$f":"[1]ACS_16_5YR_B17001_with_ann!AY57","v":54},{"$f":"[1]ACS_16_5YR_B17001_with_ann!AZ57","v":18},{"$f":"[1]ACS_16_5YR_B17001_with_ann!BA57","v":28},{"$f":"[1]ACS_16_5YR_B17001_with_ann!BB57","v":42},{"$f":"[1]ACS_16_5YR_B17001_with_ann!BC57","v":35},{"$f":"[1]ACS_16_5YR_B17001_with_ann!BD57","v":8},{"$f":"[1]ACS_16_5YR_B17001_with_ann!BE57","v":13},{"$f":"[1]ACS_16_5YR_B17001_with_ann!BF57","v":21},{"$f":"[1]ACS_16_5YR_B17001_with_ann!BG57","v":28},{"$f":"[1]ACS_16_5YR_B17001_with_ann!BH57","v":14},{"$f":"[1]ACS_16_5YR_B17001_with_ann!BI57","v":17},{"$f":"[1]ACS_16_5YR_B17001_with_ann!BJ57","v":0},{"$f":"[1]ACS_16_5YR_B17001_with_ann!BK57","v":17},{"$f":"[1]ACS_16_5YR_B17001_with_ann!BL57","v":5163},{"$f":"[1]ACS_16_5YR_B17001_with_ann!BM57","v":185},{"$f":"[1]ACS_16_5YR_B17001_with_ann!BN57","v":2619},{"$f":"[1]ACS_16_5YR_B17001_with_ann!BO57","v":190},{"$f":"[1]ACS_16_5YR_B17001_with_ann!BP57","v":131},{"$f":"[1]ACS_16_5YR_B17001_with_ann!BQ57","v":99},{"$f":"[1]ACS_16_5YR_B17001_with_ann!BR57","v":45},{"$f":"[1]ACS_16_5YR_B17001_with_ann!BS57","v":42},{"$f":"[1]ACS_16_5YR_B17001_with_ann!BT57","v":215},{"$f":"[1]ACS_16_5YR_B17001_with_ann!BU57","v":95},{"$f":"[1]ACS_16_5YR_B17001_with_ann!BV57","v":118},{"$f":"[1]ACS_16_5YR_B17001_with_ann!BW57","v":78},{"$f":"[1]ACS_16_5YR_B17001_with_ann!BX57","v":10},{"$f":"[1]ACS_16_5YR_B17001_with_ann!BY57","v":18},{"$f":"[1]ACS_16_5YR_B17001_with_ann!BZ57","v":48},{"$f":"[1]ACS_16_5YR_B17001_with_ann!CA57","v":47},{"$f":"[1]ACS_16_5YR_B17001_with_ann!CB57","v":107},{"$f":"[1]ACS_16_5YR_B17001_with_ann!CC57","v":63},{"$f":"[1]ACS_16_5YR_B17001_with_ann!CD57","v":376},{"$f":"[1]ACS_16_5YR_B17001_with_ann!CE57","v":101},{"$f":"[1]ACS_16_5YR_B17001_with_ann!CF57","v":274},{"$f":"[1]ACS_16_5YR_B17001_with_ann!CG57","v":95},{"$f":"[1]ACS_16_5YR_B17001_with_ann!CH57","v":261},{"$f":"[1]ACS_16_5YR_B17001_with_ann!CI57","v":100},{"$f":"[1]ACS_16_5YR_B17001_with_ann!CJ57","v":418},{"$f":"[1]ACS_16_5YR_B17001_with_ann!CK57","v":103},{"$f":"[1]ACS_16_5YR_B17001_with_ann!CL57","v":420},{"$f":"[1]ACS_16_5YR_B17001_with_ann!CM57","v":109},{"$f":"[1]ACS_16_5YR_B17001_with_ann!CN57","v":196},{"$f":"[1]ACS_16_5YR_B17001_with_ann!CO57","v":97},{"$f":"[1]ACS_16_5YR_B17001_with_ann!CP57","v":2544},{"$f":"[1]ACS_16_5YR_B17001_with_ann!CQ57","v":206},{"$f":"[1]ACS_16_5YR_B17001_with_ann!CR57","v":116},{"$f":"[1]ACS_16_5YR_B17001_with_ann!CS57","v":74},{"$f":"[1]ACS_16_5YR_B17001_with_ann!CT57","v":32},{"$f":"[1]ACS_16_5YR_B17001_with_ann!CU57","v":61},{"$f":"[1]ACS_16_5YR_B17001_with_ann!CV57","v":268},{"$f":"[1]ACS_16_5YR_B17001_with_ann!CW57","v":133},{"$f":"[1]ACS_16_5YR_B17001_with_ann!CX57","v":59},{"$f":"[1]ACS_16_5YR_B17001_with_ann!CY57","v":42},{"$f":"[1]ACS_16_5YR_B17001_with_ann!CZ57","v":32},{"$f":"[1]ACS_16_5YR_B17001_with_ann!DA57","v":54},{"$f":"[1]ACS_16_5YR_B17001_with_ann!DB57","v":14},{"$f":"[1]ACS_16_5YR_B17001_with_ann!DC57","v":19},{"$f":"[1]ACS_16_5YR_B17001_with_ann!DD57","v":152},{"$f":"[1]ACS_16_5YR_B17001_with_ann!DE57","v":71},{"$f":"[1]ACS_16_5YR_B17001_with_ann!DF57","v":236},{"$f":"[1]ACS_16_5YR_B17001_with_ann!DG57","v":96},{"$f":"[1]ACS_16_5YR_B17001_with_ann!DH57","v":270},{"$f":"[1]ACS_16_5YR_B17001_with_ann!DI57","v":82},{"$f":"[1]ACS_16_5YR_B17001_with_ann!DJ57","v":345},{"$f":"[1]ACS_16_5YR_B17001_with_ann!DK57","v":102},{"$f":"[1]ACS_16_5YR_B17001_with_ann!DL57","v":381},{"$f":"[1]ACS_16_5YR_B17001_with_ann!DM57","v":115},{"$f":"[1]ACS_16_5YR_B17001_with_ann!DN57","v":417},{"$f":"[1]ACS_16_5YR_B17001_with_ann!DO57","v":105},{"$f":"[1]ACS_16_5YR_B17001_with_ann!DP57","v":222},{"$f":"[1]ACS_16_5YR_B17001_with_ann!DQ57","v":107}]
["06000US3300565700","0600000US3300573700","060",{"$f":"[1]ACS_16_5YR_B17001_with_ann!C58","v":"Roxbury"},{"$f":"[1]ACS_16_5YR_B17001_with_ann!D58","v":264},{"$f":"[1]ACS_16_5YR_B17001_with_ann!E58","v":111},{"$f":"[1]ACS_16_5YR_B17001_with_ann!F58","v":2},{"$f":"[1]ACS_16_5YR_B17001_with_ann!G58","v":3},{"$f":"[1]ACS_16_5YR_B17001_with_ann!H58","v":1},{"$f":"[1]ACS_16_5YR_B17001_with_ann!I58","v":3},{"$f":"[1]ACS_16_5YR_B17001_with_ann!J58","v":0},{"$f":"[1]ACS_16_5YR_B17001_with_ann!K58","v":12},{"$f":"[1]ACS_16_5YR_B17001_with_ann!L58","v":0},{"$f":"[1]ACS_16_5YR_B17001_with_ann!M58","v":12},{"$f":"[1]ACS_16_5YR_B17001_with_ann!N58","v":0},{"$f":"[1]ACS_16_5YR_B17001_with_ann!O58","v":12},{"$f":"[1]ACS_16_5YR_B17001_with_ann!P58","v":0},{"$f":"[1]ACS_16_5YR_B17001_with_ann!Q58","v":12},{"$f":"[1]ACS_16_5YR_B17001_with_ann!R58","v":0},{"$f":"[1]ACS_16_5YR_B17001_with_ann!S58","v":12},{"$f":"[1]ACS_16_5YR_B17001_with_ann!T58","v":0},{"$f":"[1]ACS_16_5YR_B17001_with_ann!U58","v":12},{"$f":"[1]ACS_16_5YR_B17001_with_ann!V58","v":0},{"$f":"[1]ACS_16_5YR_B17001_with_ann!W58","v":12},{"$f":"[1]ACS_16_5YR_B17001_with_ann!X58","v":1},{"$f":"[1]ACS_16_5YR_B17001_with_ann!Y58","v":3},{"$f":"[1]ACS_16_5YR_B17001_with_ann!Z58","v":0},{"$f":"[1]ACS_16_5YR_B17001_with_ann!AA58","v":12},{"$f":"[1]ACS_16_5YR_B17001_with_ann!AB58","v":0},{"$f":"[1]ACS_16_5YR_B17001_with_ann!AC58","v":12},{"$f":"[1]ACS_16_5YR_B17001_with_ann!AD58","v":0},{"$f":"[1]ACS_16_5YR_B17001_with_ann!AE58","v":12},{"$f":"[1]ACS_16_5YR_B17001_with_ann!AF58","v":0},{"$f":"[1]ACS_16_5YR_B17001_with_ann!AG58","v":12},{"$f":"[1]ACS_16_5YR_B17001_with_ann!AH58","v":0},{"$f":"[1]ACS_16_5YR_B17001_with_ann!AI58","v":12},{"$f":"[1]ACS_16_5YR_B17001_with_ann!AJ58","v":1},{"$f":"[1]ACS_16_5YR_B17001_with_ann!AK58","v":2},{"$f":"[1]ACS_16_5YR_B17001_with_ann!AL58","v":0},{"$f":"[1]ACS_16_5YR_B17001_with_ann!AM58","v":12},{"$f":"[1]ACS_16_5YR_B17001_with_ann!AN58","v":0},{"$f":"[1]ACS_16_5YR_B17001_with_ann!AO58","v":12},{"$f":"[1]ACS_16_5YR_B17001_with_ann!AP58","v":0},{"$f":"[1]ACS_16_5YR_B17001_with_ann!AQ58","v":12},{"$f":"[1]ACS_16_5YR_B17001_with_ann!AR58","v":0},{"$f":"[1]ACS_16_5YR_B17001_with_ann!AS58","v":12},{"$f":"[1]ACS_16_5YR_B17001_with_ann!AT58","v":0},{"$f":"[1]ACS_16_5YR_B17001_with_ann!AU58","v":12},{"$f":"[1]ACS_16_5YR_B17001_with_ann!AV58","v":0},{"$f":"[1]ACS_16_5YR_B17001_with_ann!AW58","v":12},{"$f":"[1]ACS_16_5YR_B17001_with_ann!AX58","v":0},{"$f":"[1]ACS_16_5YR_B17001_with_ann!AY58","v":12},{"$f":"[1]ACS_16_5YR_B17001_with_ann!AZ58","v":0},{"$f":"[1]ACS_16_5YR_B17001_with_ann!BA58","v":12},{"$f":"[1]ACS_16_5YR_B17001_with_ann!BB58","v":0},{"$f":"[1]ACS_16_5YR_B17001_with_ann!BC58","v":12},{"$f":"[1]ACS_16_5YR_B17001_with_ann!BD58","v":0},{"$f":"[1]ACS_16_5YR_B17001_with_ann!BE58","v":12},{"$f":"[1]ACS_16_5YR_B17001_with_ann!BF58","v":0},{"$f":"[1]ACS_16_5YR_B17001_with_ann!BG58","v":12},{"$f":"[1]ACS_16_5YR_B17001_with_ann!BH58","v":0},{"$f":"[1]ACS_16_5YR_B17001_with_ann!BI58","v":12},{"$f":"[1]ACS_16_5YR_B17001_with_ann!BJ58","v":1},{"$f":"[1]ACS_16_5YR_B17001_with_ann!BK58","v":2},{"$f":"[1]ACS_16_5YR_B17001_with_ann!BL58","v":262},{"$f":"[1]ACS_16_5YR_B17001_with_ann!BM58","v":111},{"$f":"[1]ACS_16_5YR_B17001_with_ann!BN58","v":103},{"$f":"[1]ACS_16_5YR_B17001_with_ann!BO58","v":40},{"$f":"[1]ACS_16_5YR_B17001_with_ann!BP58","v":5},{"$f":"[1]ACS_16_5YR_B17001_with_ann!BQ58","v":5},{"$f":"[1]ACS_16_5YR_B17001_with_ann!BR58","v":0},{"$f":"[1]ACS_16_5YR_B17001_with_ann!BS58","v":12},{"$f":"[1]ACS_16_5YR_B17001_with_ann!BT58","v":3},{"$f":"[1]ACS_16_5YR_B17001_with_ann!BU58","v":5},{"$f":"[1]ACS_16_5YR_B17001_with_ann!BV58","v":1},{"$f":"[1]ACS_16_5YR_B17001_with_ann!BW58","v":2},{"$f":"[1]ACS_16_5YR_B17001_with_ann!BX58","v":0},{"$f":"[1]ACS_16_5YR_B17001_with_ann!BY58","v":12},{"$f":"[1]ACS_16_5YR_B17001_with_ann!BZ58","v":0},{"$f":"[1]ACS_16_5YR_B17001_with_ann!CA58","v":12},{"$f":"[1]ACS_16_5YR_B17001_with_ann!CB58","v":9},{"$f":"[1]ACS_16_5YR_B17001_with_ann!CC58","v":11},{"$f":"[1]ACS_16_5YR_B17001_with_ann!CD58","v":7},{"$f":"[1]ACS_16_5YR_B17001_with_ann!CE58","v":6},{"$f":"[1]ACS_16_5YR_B17001_with_ann!CF58","v":6},{"$f":"[1]ACS_16_5YR_B17001_with_ann!CG58","v":5},{"$f":"[1]ACS_16_5YR_B17001_with_ann!CH58","v":43},{"$f":"[1]ACS_16_5YR_B17001_with_ann!CI58","v":37},{"$f":"[1]ACS_16_5YR_B17001_with_ann!CJ58","v":16},{"$f":"[1]ACS_16_5YR_B17001_with_ann!CK58","v":12},{"$f":"[1]ACS_16_5YR_B17001_with_ann!CL58","v":10},{"$f":"[1]ACS_16_5YR_B17001_with_ann!CM58","v":6},{"$f":"[1]ACS_16_5YR_B17001_with_ann!CN58","v":3},{"$f":"[1]ACS_16_5YR_B17001_with_ann!CO58","v":3},{"$f":"[1]ACS_16_5YR_B17001_with_ann!CP58","v":159},{"$f":"[1]ACS_16_5YR_B17001_with_ann!CQ58","v":78},{"$f":"[1]ACS_16_5YR_B17001_with_ann!CR58","v":2},{"$f":"[1]ACS_16_5YR_B17001_with_ann!CS58","v":3},{"$f":"[1]ACS_16_5YR_B17001_with_ann!CT58","v":1},{"$f":"[1]ACS_16_5YR_B17001_with_ann!CU58","v":2},{"$f":"[1]ACS_16_5YR_B17001_with_ann!CV58","v":2},{"$f":"[1]ACS_16_5YR_B17001_with_ann!CW58","v":3},{"$f":"[1]ACS_16_5YR_B17001_with_ann!CX58","v":0},{"$f":"[1]ACS_16_5YR_B17001_with_ann!CY58","v":12},{"$f":"[1]ACS_16_5YR_B17001_with_ann!CZ58","v":0},{"$f":"[1]ACS_16_5YR_B17001_with_ann!DA58","v":12},{"$f":"[1]ACS_16_5YR_B17001_with_ann!DB58","v":2},{"$f":"[1]ACS_16_5YR_B17001_with_ann!DC58","v":4},{"$f":"[1]ACS_16_5YR_B17001_with_ann!DD58","v":58},{"$f":"[1]ACS_16_5YR_B17001_with_ann!DE58","v":58},{"$f":"[1]ACS_16_5YR_B17001_with_ann!DF58","v":9},{"$f":"[1]ACS_16_5YR_B17001_with_ann!DG58","v":8},{"$f":"[1]ACS_16_5YR_B17001_with_ann!DH58","v":21},{"$f":"[1]ACS_16_5YR_B17001_with_ann!DI58","v":13},{"$f":"[1]ACS_16_5YR_B17001_with_ann!DJ58","v":26},{"$f":"[1]ACS_16_5YR_B17001_with_ann!DK58","v":24},{"$f":"[1]ACS_16_5YR_B17001_with_ann!DL58","v":19},{"$f":"[1]ACS_16_5YR_B17001_with_ann!DM58","v":16},{"$f":"[1]ACS_16_5YR_B17001_with_ann!DN58","v":13},{"$f":"[1]ACS_16_5YR_B17001_with_ann!DO58","v":5},{"$f":"[1]ACS_16_5YR_B17001_with_ann!DP58","v":6},{"$f":"[1]ACS_16_5YR_B17001_with_ann!DQ58","v":6}]
["06000US3300573700","0600000US3300574900","060",{"$f":"[1]ACS_16_5YR_B17001_with_ann!C59","v":"Stoddard"},{"$f":"[1]ACS_16_5YR_B17001_with_ann!D59","v":1205},{"$f":"[1]ACS_16_5YR_B17001_with_ann!E59","v":162},{"$f":"[1]ACS_16_5YR_B17001_with_ann!F59","v":75},{"$f":"[1]ACS_16_5YR_B17001_with_ann!G59","v":51},{"$f":"[1]ACS_16_5YR_B17001_with_ann!H59","v":25},{"$f":"[1]ACS_16_5YR_B17001_with_ann!I59","v":20},{"$f":"[1]ACS_16_5YR_B17001_with_ann!J59","v":0},{"$f":"[1]ACS_16_5YR_B17001_with_ann!K59","v":12},{"$f":"[1]ACS_16_5YR_B17001_with_ann!L59","v":4},{"$f":"[1]ACS_16_5YR_B17001_with_ann!M59","v":6},{"$f":"[1]ACS_16_5YR_B17001_with_ann!N59","v":0},{"$f":"[1]ACS_16_5YR_B17001_with_ann!O59","v":12},{"$f":"[1]ACS_16_5YR_B17001_with_ann!P59","v":0},{"$f":"[1]ACS_16_5YR_B17001_with_ann!Q59","v":12},{"$f":"[1]ACS_16_5YR_B17001_with_ann!R59","v":0},{"$f":"[1]ACS_16_5YR_B17001_with_ann!S59","v":12},{"$f":"[1]ACS_16_5YR_B17001_with_ann!T59","v":0},{"$f":"[1]ACS_16_5YR_B17001_with_ann!U59","v":12},{"$f":"[1]ACS_16_5YR_B17001_with_ann!V59","v":0},{"$f":"[1]ACS_16_5YR_B17001_with_ann!W59","v":12},{"$f":"[1]ACS_16_5YR_B17001_with_ann!X59","v":2},{"$f":"[1]ACS_16_5YR_B17001_with_ann!Y59","v":5},{"$f":"[1]ACS_16_5YR_B17001_with_ann!Z59","v":0},{"$f":"[1]ACS_16_5YR_B17001_with_ann!AA59","v":12},{"$f":"[1]ACS_16_5YR_B17001_with_ann!AB59","v":9},{"$f":"[1]ACS_16_5YR_B17001_with_ann!AC59","v":10},{"$f":"[1]ACS_16_5YR_B17001_with_ann!AD59","v":10},{"$f":"[1]ACS_16_5YR_B17001_with_ann!AE59","v":13},{"$f":"[1]ACS_16_5YR_B17001_with_ann!AF59","v":0},{"$f":"[1]ACS_16_5YR_B17001_with_ann!AG59","v":12},{"$f":"[1]ACS_16_5YR_B17001_with_ann!AH59","v":0},{"$f":"[1]ACS_16_5YR_B17001_with_ann!AI59","v":12},{"$f":"[1]ACS_16_5YR_B17001_with_ann!AJ59","v":50},{"$f":"[1]ACS_16_5YR_B17001_with_ann!AK59","v":34},{"$f":"[1]ACS_16_5YR_B17001_with_ann!AL59","v":12},{"$f":"[1]ACS_16_5YR_B17001_with_ann!AM59","v":17},{"$f":"[1]ACS_16_5YR_B17001_with_ann!AN59","v":0},{"$f":"[1]ACS_16_5YR_B17001_with_ann!AO59","v":12},{"$f":"[1]ACS_16_5YR_B17001_with_ann!AP59","v":4},{"$f":"[1]ACS_16_5YR_B17001_with_ann!AQ59","v":6},{"$f":"[1]ACS_16_5YR_B17001_with_ann!AR59","v":0},{"$f":"[1]ACS_16_5YR_B17001_with_ann!AS59","v":12},{"$f":"[1]ACS_16_5YR_B17001_with_ann!AT59","v":0},{"$f":"[1]ACS_16_5YR_B17001_with_ann!AU59","v":12},{"$f":"[1]ACS_16_5YR_B17001_with_ann!AV59","v":0},{"$f":"[1]ACS_16_5YR_B17001_with_ann!AW59","v":12},{"$f":"[1]ACS_16_5YR_B17001_with_ann!AX59","v":0},{"$f":"[1]ACS_16_5YR_B17001_with_ann!AY59","v":12},{"$f":"[1]ACS_16_5YR_B17001_with_ann!AZ59","v":0},{"$f":"[1]ACS_16_5YR_B17001_with_ann!BA59","v":12},{"$f":"[1]ACS_16_5YR_B17001_with_ann!BB59","v":3},{"$f":"[1]ACS_16_5YR_B17001_with_ann!BC59","v":4},{"$f":"[1]ACS_16_5YR_B17001_with_ann!BD59","v":7},{"$f":"[1]ACS_16_5YR_B17001_with_ann!BE59","v":12},{"$f":"[1]ACS_16_5YR_B17001_with_ann!BF59","v":0},{"$f":"[1]ACS_16_5YR_B17001_with_ann!BG59","v":12},{"$f":"[1]ACS_16_5YR_B17001_with_ann!BH59","v":12},{"$f":"[1]ACS_16_5YR_B17001_with_ann!BI59","v":14},{"$f":"[1]ACS_16_5YR_B17001_with_ann!BJ59","v":12},{"$f":"[1]ACS_16_5YR_B17001_with_ann!BK59","v":14},{"$f":"[1]ACS_16_5YR_B17001_with_ann!BL59","v":1130},{"$f":"[1]ACS_16_5YR_B17001_with_ann!BM59","v":167},{"$f":"[1]ACS_16_5YR_B17001_with_ann!BN59","v":567},{"$f":"[1]ACS_16_5YR_B17001_with_ann!BO59","v":101},{"$f":"[1]ACS_16_5YR_B17001_with_ann!BP59","v":29},{"$f":"[1]ACS_16_5YR_B17001_with_ann!BQ59","v":16},{"$f":"[1]ACS_16_5YR_B17001_with_ann!BR59","v":0},{"$f":"[1]ACS_16_5YR_B17001_with_ann!BS59","v":12},{"$f":"[1]ACS_16_5YR_B17001_with_ann!BT59","v":39},{"$f":"[1]ACS_16_5YR_B17001_with_ann!BU59","v":25},{"$f":"[1]ACS_16_5YR_B17001_with_ann!BV59","v":31},{"$f":"[1]ACS_16_5YR_B17001_with_ann!BW59","v":19},{"$f":"[1]ACS_16_5YR_B17001_with_ann!BX59","v":18},{"$f":"[1]ACS_16_5YR_B17001_with_ann!BY59","v":16},{"$f":"[1]ACS_16_5YR_B17001_with_ann!BZ59","v":12},{"$f":"[1]ACS_16_5YR_B17001_with_ann!CA59","v":15},{"$f":"[1]ACS_16_5YR_B17001_with_ann!CB59","v":36},{"$f":"[1]ACS_16_5YR_B17001_with_ann!CC59","v":19},{"$f":"[1]ACS_16_5YR_B17001_with_ann!CD59","v":43},{"$f":"[1]ACS_16_5YR_B17001_with_ann!CE59","v":23},{"$f":"[1]ACS_16_5YR_B17001_with_ann!CF59","v":56},{"$f":"[1]ACS_16_5YR_B17001_with_ann!CG59","v":28},{"$f":"[1]ACS_16_5YR_B17001_with_ann!CH59","v":99},{"$f":"[1]ACS_16_5YR_B17001_with_ann!CI59","v":36},{"$f":"[1]ACS_16_5YR_B17001_with_ann!CJ59","v":105},{"$f":"[1]ACS_16_5YR_B17001_with_ann!CK59","v":34},{"$f":"[1]ACS_16_5YR_B17001_with_ann!CL59","v":68},{"$f":"[1]ACS_16_5YR_B17001_with_ann!CM59","v":17},{"$f":"[1]ACS_16_5YR_B17001_with_ann!CN59","v":31},{"$f":"[1]ACS_16_5YR_B17001_with_ann!CO59","v":15},{"$f":"[1]ACS_16_5YR_B17001_with_ann!CP59","v":563},{"$f":"[1]ACS_16_5YR_B17001_with_ann!CQ59","v":90},{"$f":"[1]ACS_16_5YR_B17001_with_ann!CR59","v":17},{"$f":"[1]ACS_16_5YR_B17001_with_ann!CS59","v":15},{"$f":"[1]ACS_16_5YR_B17001_with_ann!CT59","v":0},{"$f":"[1]ACS_16_5YR_B17001_with_ann!CU59","v":12},{"$f":"[1]ACS_16_5YR_B17001_with_ann!CV59","v":35},{"$f":"[1]ACS_16_5YR_B17001_with_ann!CW59","v":20},{"$f":"[1]ACS_16_5YR_B17001_with_ann!CX59","v":38},{"$f":"[1]ACS_16_5YR_B17001_with_ann!CY59","v":21},{"$f":"[1]ACS_16_5YR_B17001_with_ann!CZ59","v":0},{"$f":"[1]ACS_16_5YR_B17001_with_ann!DA59","v":12},{"$f":"[1]ACS_16_5YR_B17001_with_ann!DB59","v":12},{"$f":"[1]ACS_16_5YR_B17001_with_ann!DC59","v":7},{"$f":"[1]ACS_16_5YR_B17001_with_ann!DD59","v":23},{"$f":"[1]ACS_16_5YR_B17001_with_ann!DE59","v":17},{"$f":"[1]ACS_16_5YR_B17001_with_ann!DF59","v":79},{"$f":"[1]ACS_16_5YR_B17001_with_ann!DG59","v":36},{"$f":"[1]ACS_16_5YR_B17001_with_ann!DH59","v":68},{"$f":"[1]ACS_16_5YR_B17001_with_ann!DI59","v":30},{"$f":"[1]ACS_16_5YR_B17001_with_ann!DJ59","v":76},{"$f":"[1]ACS_16_5YR_B17001_with_ann!DK59","v":26},{"$f":"[1]ACS_16_5YR_B17001_with_ann!DL59","v":103},{"$f":"[1]ACS_16_5YR_B17001_with_ann!DM59","v":32},{"$f":"[1]ACS_16_5YR_B17001_with_ann!DN59","v":74},{"$f":"[1]ACS_16_5YR_B17001_with_ann!DO59","v":21},{"$f":"[1]ACS_16_5YR_B17001_with_ann!DP59","v":38},{"$f":"[1]ACS_16_5YR_B17001_with_ann!DQ59","v":16}]
["06000US3300574900","0600000US3300575300","060",{"$f":"[1]ACS_16_5YR_B17001_with_ann!C60","v":"Sullivan"},{"$f":"[1]ACS_16_5YR_B17001_with_ann!D60","v":681},{"$f":"[1]ACS_16_5YR_B17001_with_ann!E60","v":130},{"$f":"[1]ACS_16_5YR_B17001_with_ann!F60","v":22},{"$f":"[1]ACS_16_5YR_B17001_with_ann!G60","v":14},{"$f":"[1]ACS_16_5YR_B17001_with_ann!H60","v":8},{"$f":"[1]ACS_16_5YR_B17001_with_ann!I60","v":6},{"$f":"[1]ACS_16_5YR_B17001_with_ann!J60","v":0},{"$f":"[1]ACS_16_5YR_B17001_with_ann!K60","v":12},{"$f":"[1]ACS_16_5YR_B17001_with_ann!L60","v":0},{"$f":"[1]ACS_16_5YR_B17001_with_ann!M60","v":12},{"$f":"[1]ACS_16_5YR_B17001_with_ann!N60","v":0},{"$f":"[1]ACS_16_5YR_B17001_with_ann!O60","v":12},{"$f":"[1]ACS_16_5YR_B17001_with_ann!P60","v":0},{"$f":"[1]ACS_16_5YR_B17001_with_ann!Q60","v":12},{"$f":"[1]ACS_16_5YR_B17001_with_ann!R60","v":0},{"$f":"[1]ACS_16_5YR_B17001_with_ann!S60","v":12},{"$f":"[1]ACS_16_5YR_B17001_with_ann!T60","v":0},{"$f":"[1]ACS_16_5YR_B17001_with_ann!U60","v":12},{"$f":"[1]ACS_16_5YR_B17001_with_ann!V60","v":0},{"$f":"[1]ACS_16_5YR_B17001_with_ann!W60","v":12},{"$f":"[1]ACS_16_5YR_B17001_with_ann!X60","v":0},{"$f":"[1]ACS_16_5YR_B17001_with_ann!Y60","v":12},{"$f":"[1]ACS_16_5YR_B17001_with_ann!Z60","v":0},{"$f":"[1]ACS_16_5YR_B17001_with_ann!AA60","v":12},{"$f":"[1]ACS_16_5YR_B17001_with_ann!AB60","v":0},{"$f":"[1]ACS_16_5YR_B17001_with_ann!AC60","v":12},{"$f":"[1]ACS_16_5YR_B17001_with_ann!AD60","v":8},{"$f":"[1]ACS_16_5YR_B17001_with_ann!AE60","v":6},{"$f":"[1]ACS_16_5YR_B17001_with_ann!AF60","v":0},{"$f":"[1]ACS_16_5YR_B17001_with_ann!AG60","v":12},{"$f":"[1]ACS_16_5YR_B17001_with_ann!AH60","v":0},{"$f":"[1]ACS_16_5YR_B17001_with_ann!AI60","v":12},{"$f":"[1]ACS_16_5YR_B17001_with_ann!AJ60","v":14},{"$f":"[1]ACS_16_5YR_B17001_with_ann!AK60","v":11},{"$f":"[1]ACS_16_5YR_B17001_with_ann!AL60","v":0},{"$f":"[1]ACS_16_5YR_B17001_with_ann!AM60","v":12},{"$f":"[1]ACS_16_5YR_B17001_with_ann!AN60","v":0},{"$f":"[1]ACS_16_5YR_B17001_with_ann!AO60","v":12},{"$f":"[1]ACS_16_5YR_B17001_with_ann!AP60","v":0},{"$f":"[1]ACS_16_5YR_B17001_with_ann!AQ60","v":12},{"$f":"[1]ACS_16_5YR_B17001_with_ann!AR60","v":0},{"$f":"[1]ACS_16_5YR_B17001_with_ann!AS60","v":12},{"$f":"[1]ACS_16_5YR_B17001_with_ann!AT60","v":0},{"$f":"[1]ACS_16_5YR_B17001_with_ann!AU60","v":12},{"$f":"[1]ACS_16_5YR_B17001_with_ann!AV60","v":3},{"$f":"[1]ACS_16_5YR_B17001_with_ann!AW60","v":4},{"$f":"[1]ACS_16_5YR_B17001_with_ann!AX60","v":0},{"$f":"[1]ACS_16_5YR_B17001_with_ann!AY60","v":12},{"$f":"[1]ACS_16_5YR_B17001_with_ann!AZ60","v":0},{"$f":"[1]ACS_16_5YR_B17001_with_ann!BA60","v":12},{"$f":"[1]ACS_16_5YR_B17001_with_ann!BB60","v":0},{"$f":"[1]ACS_16_5YR_B17001_with_ann!BC60","v":12},{"$f":"[1]ACS_16_5YR_B17001_with_ann!BD60","v":3},{"$f":"[1]ACS_16_5YR_B17001_with_ann!BE60","v":4},{"$f":"[1]ACS_16_5YR_B17001_with_ann!BF60","v":0},{"$f":"[1]ACS_16_5YR_B17001_with_ann!BG60","v":12},{"$f":"[1]ACS_16_5YR_B17001_with_ann!BH60","v":2},{"$f":"[1]ACS_16_5YR_B17001_with_ann!BI60","v":3},{"$f":"[1]ACS_16_5YR_B17001_with_ann!BJ60","v":6},{"$f":"[1]ACS_16_5YR_B17001_with_ann!BK60","v":9},{"$f":"[1]ACS_16_5YR_B17001_with_ann!BL60","v":659},{"$f":"[1]ACS_16_5YR_B17001_with_ann!BM60","v":130},{"$f":"[1]ACS_16_5YR_B17001_with_ann!BN60","v":334},{"$f":"[1]ACS_16_5YR_B17001_with_ann!BO60","v":78},{"$f":"[1]ACS_16_5YR_B17001_with_ann!BP60","v":35},{"$f":"[1]ACS_16_5YR_B17001_with_ann!BQ60","v":30},{"$f":"[1]ACS_16_5YR_B17001_with_ann!BR60","v":0},{"$f":"[1]ACS_16_5YR_B17001_with_ann!BS60","v":12},{"$f":"[1]ACS_16_5YR_B17001_with_ann!BT60","v":13},{"$f":"[1]ACS_16_5YR_B17001_with_ann!BU60","v":8},{"$f":"[1]ACS_16_5YR_B17001_with_ann!BV60","v":0},{"$f":"[1]ACS_16_5YR_B17001_with_ann!BW60","v":12},{"$f":"[1]ACS_16_5YR_B17001_with_ann!BX60","v":0},{"$f":"[1]ACS_16_5YR_B17001_with_ann!BY60","v":12},{"$f":"[1]ACS_16_5YR_B17001_with_ann!BZ60","v":5},{"$f":"[1]ACS_16_5YR_B17001_with_ann!CA60","v":7},{"$f":"[1]ACS_16_5YR_B17001_with_ann!CB60","v":13},{"$f":"[1]ACS_16_5YR_B17001_with_ann!CC60","v":11},{"$f":"[1]ACS_16_5YR_B17001_with_ann!CD60","v":75},{"$f":"[1]ACS_16_5YR_B17001_with_ann!CE60","v":35},{"$f":"[1]ACS_16_5YR_B17001_with_ann!CF60","v":27},{"$f":"[1]ACS_16_5YR_B17001_with_ann!CG60","v":12},{"$f":"[1]ACS_16_5YR_B17001_with_ann!CH60","v":43},{"$f":"[1]ACS_16_5YR_B17001_with_ann!CI60","v":20},{"$f":"[1]ACS_16_5YR_B17001_with_ann!CJ60","v":56},{"$f":"[1]ACS_16_5YR_B17001_with_ann!CK60","v":18},{"$f":"[1]ACS_16_5YR_B17001_with_ann!CL60","v":40},{"$f":"[1]ACS_16_5YR_B17001_with_ann!CM60","v":17},{"$f":"[1]ACS_16_5YR_B17001_with_ann!CN60","v":27},{"$f":"[1]ACS_16_5YR_B17001_with_ann!CO60","v":14},{"$f":"[1]ACS_16_5YR_B17001_with_ann!CP60","v":325},{"$f":"[1]ACS_16_5YR_B17001_with_ann!CQ60","v":65},{"$f":"[1]ACS_16_5YR_B17001_with_ann!CR60","v":28},{"$f":"[1]ACS_16_5YR_B17001_with_ann!CS60","v":18},{"$f":"[1]ACS_16_5YR_B17001_with_ann!CT60","v":2},{"$f":"[1]ACS_16_5YR_B17001_with_ann!CU60","v":3},{"$f":"[1]ACS_16_5YR_B17001_with_ann!CV60","v":23},{"$f":"[1]ACS_16_5YR_B17001_with_ann!CW60","v":12},{"$f":"[1]ACS_16_5YR_B17001_with_ann!CX60","v":0},{"$f":"[1]ACS_16_5YR_B17001_with_ann!CY60","v":12},{"$f":"[1]ACS_16_5YR_B17001_with_ann!CZ60","v":2},{"$f":"[1]ACS_16_5YR_B17001_with_ann!DA60","v":4},{"$f":"[1]ACS_16_5YR_B17001_with_ann!DB60","v":0},{"$f":"[1]ACS_16_5YR_B17001_with_ann!DC60","v":12},{"$f":"[1]ACS_16_5YR_B17001_with_ann!DD60","v":14},{"$f":"[1]ACS_16_5YR_B17001_with_ann!DE60","v":10},{"$f":"[1]ACS_16_5YR_B17001_with_ann!DF60","v":60},{"$f":"[1]ACS_16_5YR_B17001_with_ann!DG60","v":36},{"$f":"[1]ACS_16_5YR_B17001_with_ann!DH60","v":40},{"$f":"[1]ACS_16_5YR_B17001_with_ann!DI60","v":20},{"$f":"[1]ACS_16_5YR_B17001_with_ann!DJ60","v":37},{"$f":"[1]ACS_16_5YR_B17001_with_ann!DK60","v":17},{"$f":"[1]ACS_16_5YR_B17001_with_ann!DL60","v":65},{"$f":"[1]ACS_16_5YR_B17001_with_ann!DM60","v":18},{"$f":"[1]ACS_16_5YR_B17001_with_ann!DN60","v":38},{"$f":"[1]ACS_16_5YR_B17001_with_ann!DO60","v":14},{"$f":"[1]ACS_16_5YR_B17001_with_ann!DP60","v":16},{"$f":"[1]ACS_16_5YR_B17001_with_ann!DQ60","v":10}]
["06000US3300575300","0600000US3300575700","060",{"$f":"[1]ACS_16_5YR_B17001_with_ann!C61","v":"Surry"},{"$f":"[1]ACS_16_5YR_B17001_with_ann!D61","v":950},{"$f":"[1]ACS_16_5YR_B17001_with_ann!E61","v":245},{"$f":"[1]ACS_16_5YR_B17001_with_ann!F61","v":18},{"$f":"[1]ACS_16_5YR_B17001_with_ann!G61","v":12},{"$f":"[1]ACS_16_5YR_B17001_with_ann!H61","v":11},{"$f":"[1]ACS_16_5YR_B17001_with_ann!I61","v":10},{"$f":"[1]ACS_16_5YR_B17001_with_ann!J61","v":0},{"$f":"[1]ACS_16_5YR_B17001_with_ann!K61","v":12},{"$f":"[1]ACS_16_5YR_B17001_with_ann!L61","v":0},{"$f":"[1]ACS_16_5YR_B17001_with_ann!M61","v":12},{"$f":"[1]ACS_16_5YR_B17001_with_ann!N61","v":0},{"$f":"[1]ACS_16_5YR_B17001_with_ann!O61","v":12},{"$f":"[1]ACS_16_5YR_B17001_with_ann!P61","v":0},{"$f":"[1]ACS_16_5YR_B17001_with_ann!Q61","v":12},{"$f":"[1]ACS_16_5YR_B17001_with_ann!R61","v":0},{"$f":"[1]ACS_16_5YR_B17001_with_ann!S61","v":12},{"$f":"[1]ACS_16_5YR_B17001_with_ann!T61","v":0},{"$f":"[1]ACS_16_5YR_B17001_with_ann!U61","v":12},{"$f":"[1]ACS_16_5YR_B17001_with_ann!V61","v":0},{"$f":"[1]ACS_16_5YR_B17001_with_ann!W61","v":12},{"$f":"[1]ACS_16_5YR_B17001_with_ann!X61","v":0},{"$f":"[1]ACS_16_5YR_B17001_with_ann!Y61","v":12},{"$f":"[1]ACS_16_5YR_B17001_with_ann!Z61","v":0},{"$f":"[1]ACS_16_5YR_B17001_with_ann!AA61","v":12},{"$f":"[1]ACS_16_5YR_B17001_with_ann!AB61","v":4},{"$f":"[1]ACS_16_5YR_B17001_with_ann!AC61","v":5},{"$f":"[1]ACS_16_5YR_B17001_with_ann!AD61","v":3},{"$f":"[1]ACS_16_5YR_B17001_with_ann!AE61","v":4},{"$f":"[1]ACS_16_5YR_B17001_with_ann!AF61","v":0},{"$f":"[1]ACS_16_5YR_B17001_with_ann!AG61","v":12},{"$f":"[1]ACS_16_5YR_B17001_with_ann!AH61","v":4},{"$f":"[1]ACS_16_5YR_B17001_with_ann!AI61","v":5},{"$f":"[1]ACS_16_5YR_B17001_with_ann!AJ61","v":7},{"$f":"[1]ACS_16_5YR_B17001_with_ann!AK61","v":7},{"$f":"[1]ACS_16_5YR_B17001_with_ann!AL61","v":0},{"$f":"[1]ACS_16_5YR_B17001_with_ann!AM61","v":12},{"$f":"[1]ACS_16_5YR_B17001_with_ann!AN61","v":0},{"$f":"[1]ACS_16_5YR_B17001_with_ann!AO61","v":12},{"$f":"[1]ACS_16_5YR_B17001_with_ann!AP61","v":0},{"$f":"[1]ACS_16_5YR_B17001_with_ann!AQ61","v":12},{"$f":"[1]ACS_16_5YR_B17001_with_ann!AR61","v":0},{"$f":"[1]ACS_16_5YR_B17001_with_ann!AS61","v":12},{"$f":"[1]ACS_16_5YR_B17001_with_ann!AT61","v":0},{"$f":"[1]ACS_16_5YR_B17001_with_ann!AU61","v":12},{"$f":"[1]ACS_16_5YR_B17001_with_ann!AV61","v":0},{"$f":"[1]ACS_16_5YR_B17001_with_ann!AW61","v":12},{"$f":"[1]ACS_16_5YR_B17001_with_ann!AX61","v":3},{"$f":"[1]ACS_16_5YR_B17001_with_ann!AY61","v":5},{"$f":"[1]ACS_16_5YR_B17001_with_ann!AZ61","v":0},{"$f":"[1]ACS_16_5YR_B17001_with_ann!BA61","v":12},{"$f":"[1]ACS_16_5YR_B17001_with_ann!BB61","v":0},{"$f":"[1]ACS_16_5YR_B17001_with_ann!BC61","v":12},{"$f":"[1]ACS_16_5YR_B17001_with_ann!BD61","v":0},{"$f":"[1]ACS_16_5YR_B17001_with_ann!BE61","v":12},{"$f":"[1]ACS_16_5YR_B17001_with_ann!BF61","v":0},{"$f":"[1]ACS_16_5YR_B17001_with_ann!BG61","v":12},{"$f":"[1]ACS_16_5YR_B17001_with_ann!BH61","v":2},{"$f":"[1]ACS_16_5YR_B17001_with_ann!BI61","v":4},{"$f":"[1]ACS_16_5YR_B17001_with_ann!BJ61","v":2},{"$f":"[1]ACS_16_5YR_B17001_with_ann!BK61","v":3},{"$f":"[1]ACS_16_5YR_B17001_with_ann!BL61","v":932},{"$f":"[1]ACS_16_5YR_B17001_with_ann!BM61","v":246},{"$f":"[1]ACS_16_5YR_B17001_with_ann!BN61","v":377},{"$f":"[1]ACS_16_5YR_B17001_with_ann!BO61","v":72},{"$f":"[1]ACS_16_5YR_B17001_with_ann!BP61","v":17},{"$f":"[1]ACS_16_5YR_B17001_with_ann!BQ61","v":13},{"$f":"[1]ACS_16_5YR_B17001_with_ann!BR61","v":0},{"$f":"[1]ACS_16_5YR_B17001_with_ann!BS61","v":12},{"$f":"[1]ACS_16_5YR_B17001_with_ann!BT61","v":14},{"$f":"[1]ACS_16_5YR_B17001_with_ann!BU61","v":10},{"$f":"[1]ACS_16_5YR_B17001_with_ann!BV61","v":17},{"$f":"[1]ACS_16_5YR_B17001_with_ann!BW61","v":14},{"$f":"[1]ACS_16_5YR_B17001_with_ann!BX61","v":3},{"$f":"[1]ACS_16_5YR_B17001_with_ann!BY61","v":4},{"$f":"[1]ACS_16_5YR_B17001_with_ann!BZ61","v":0},{"$f":"[1]ACS_16_5YR_B17001_with_ann!CA61","v":12},{"$f":"[1]ACS_16_5YR_B17001_with_ann!CB61","v":12},{"$f":"[1]ACS_16_5YR_B17001_with_ann!CC61","v":16},{"$f":"[1]ACS_16_5YR_B17001_with_ann!CD61","v":37},{"$f":"[1]ACS_16_5YR_B17001_with_ann!CE61","v":23},{"$f":"[1]ACS_16_5YR_B17001_with_ann!CF61","v":59},{"$f":"[1]ACS_16_5YR_B17001_with_ann!CG61","v":33},{"$f":"[1]ACS_16_5YR_B17001_with_ann!CH61","v":47},{"$f":"[1]ACS_16_5YR_B17001_with_ann!CI61","v":25},{"$f":"[1]ACS_16_5YR_B17001_with_ann!CJ61","v":51},{"$f":"[1]ACS_16_5YR_B17001_with_ann!CK61","v":21},{"$f":"[1]ACS_16_5YR_B17001_with_ann!CL61","v":80},{"$f":"[1]ACS_16_5YR_B17001_with_ann!CM61","v":34},{"$f":"[1]ACS_16_5YR_B17001_with_ann!CN61","v":40},{"$f":"[1]ACS_16_5YR_B17001_with_ann!CO61","v":20},{"$f":"[1]ACS_16_5YR_B17001_with_ann!CP61","v":555},{"$f":"[1]ACS_16_5YR_B17001_with_ann!CQ61","v":203},{"$f":"[1]ACS_16_5YR_B17001_with_ann!CR61","v":47},{"$f":"[1]ACS_16_5YR_B17001_with_ann!CS61","v":47},{"$f":"[1]ACS_16_5YR_B17001_with_ann!CT61","v":2},{"$f":"[1]ACS_16_5YR_B17001_with_ann!CU61","v":3},{"$f":"[1]ACS_16_5YR_B17001_with_ann!CV61","v":54},{"$f":"[1]ACS_16_5YR_B17001_with_ann!CW61","v":57},{"$f":"[1]ACS_16_5YR_B17001_with_ann!CX61","v":31},{"$f":"[1]ACS_16_5YR_B17001_with_ann!CY61","v":26},{"$f":"[1]ACS_16_5YR_B17001_with_ann!CZ61","v":5},{"$f":"[1]ACS_16_5YR_B17001_with_ann!DA61","v":5},{"$f":"[1]ACS_16_5YR_B17001_with_ann!DB61","v":3},{"$f":"[1]ACS_16_5YR_B17001_with_ann!DC61","v":3},{"$f":"[1]ACS_16_5YR_B17001_with_ann!DD61","v":19},{"$f":"[1]ACS_16_5YR_B17001_with_ann!DE61","v":13},{"$f":"[1]ACS_16_5YR_B17001_with_ann!DF61","v":100},{"$f":"[1]ACS_16_5YR_B17001_with_ann!DG61","v":79},{"$f":"[1]ACS_16_5YR_B17001_with_ann!DH61","v":61},{"$f":"[1]ACS_16_5YR_B17001_with_ann!DI61","v":32},{"$f":"[1]ACS_16_5YR_B17001_with_ann!DJ61","v":47},{"$f":"[1]ACS_16_5YR_B17001_with_ann!DK61","v":31},{"$f":"[1]ACS_16_5YR_B17001_with_ann!DL61","v":71},{"$f":"[1]ACS_16_5YR_B17001_with_ann!DM61","v":39},{"$f":"[1]ACS_16_5YR_B17001_with_ann!DN61","v":70},{"$f":"[1]ACS_16_5YR_B17001_with_ann!DO61","v":25},{"$f":"[1]ACS_16_5YR_B17001_with_ann!DP61","v":45},{"$f":"[1]ACS_16_5YR_B17001_with_ann!DQ61","v":20}]
["06000US3300575700","0600000US3300577380","060",{"$f":"[1]ACS_16_5YR_B17001_with_ann!C62","v":"Swanzey"},{"$f":"[1]ACS_16_5YR_B17001_with_ann!D62","v":7251},{"$f":"[1]ACS_16_5YR_B17001_with_ann!E62","v":64},{"$f":"[1]ACS_16_5YR_B17001_with_ann!F62","v":695},{"$f":"[1]ACS_16_5YR_B17001_with_ann!G62","v":308},{"$f":"[1]ACS_16_5YR_B17001_with_ann!H62","v":241},{"$f":"[1]ACS_16_5YR_B17001_with_ann!I62","v":161},{"$f":"[1]ACS_16_5YR_B17001_with_ann!J62","v":11},{"$f":"[1]ACS_16_5YR_B17001_with_ann!K62","v":21},{"$f":"[1]ACS_16_5YR_B17001_with_ann!L62","v":0},{"$f":"[1]ACS_16_5YR_B17001_with_ann!M62","v":17},{"$f":"[1]ACS_16_5YR_B17001_with_ann!N62","v":10},{"$f":"[1]ACS_16_5YR_B17001_with_ann!O62","v":16},{"$f":"[1]ACS_16_5YR_B17001_with_ann!P62","v":0},{"$f":"[1]ACS_16_5YR_B17001_with_ann!Q62","v":17},{"$f":"[1]ACS_16_5YR_B17001_with_ann!R62","v":0},{"$f":"[1]ACS_16_5YR_B17001_with_ann!S62","v":17},{"$f":"[1]ACS_16_5YR_B17001_with_ann!T62","v":0},{"$f":"[1]ACS_16_5YR_B17001_with_ann!U62","v":17},{"$f":"[1]ACS_16_5YR_B17001_with_ann!V62","v":0},{"$f":"[1]ACS_16_5YR_B17001_with_ann!W62","v":17},{"$f":"[1]ACS_16_5YR_B17001_with_ann!X62","v":71},{"$f":"[1]ACS_16_5YR_B17001_with_ann!Y62","v":73},{"$f":"[1]ACS_16_5YR_B17001_with_ann!Z62","v":15},{"$f":"[1]ACS_16_5YR_B17001_with_ann!AA62","v":25},{"$f":"[1]ACS_16_5YR_B17001_with_ann!AB62","v":0},{"$f":"[1]ACS_16_5YR_B17001_with_ann!AC62","v":17},{"$f":"[1]ACS_16_5YR_B17001_with_ann!AD62","v":106},{"$f":"[1]ACS_16_5YR_B17001_with_ann!AE62","v":121},{"$f":"[1]ACS_16_5YR_B17001_with_ann!AF62","v":28},{"$f":"[1]ACS_16_5YR_B17001_with_ann!AG62","v":34},{"$f":"[1]ACS_16_5YR_B17001_with_ann!AH62","v":0},{"$f":"[1]ACS_16_5YR_B17001_with_ann!AI62","v":17},{"$f":"[1]ACS_16_5YR_B17001_with_ann!AJ62","v":454},{"$f":"[1]ACS_16_5YR_B17001_with_ann!AK62","v":218},{"$f":"[1]ACS_16_5YR_B17001_with_ann!AL62","v":0},{"$f":"[1]ACS_16_5YR_B17001_with_ann!AM62","v":17},{"$f":"[1]ACS_16_5YR_B17001_with_ann!AN62","v":20},{"$f":"[1]ACS_16_5YR_B17001_with_ann!AO62","v":33},{"$f":"[1]ACS_16_5YR_B17001_with_ann!AP62","v":82},{"$f":"[1]ACS_16_5YR_B17001_with_ann!AQ62","v":68},{"$f":"[1]ACS_16_5YR_B17001_with_ann!AR62","v":15},{"$f":"[1]ACS_16_5YR_B17001_with_ann!AS62","v":34},{"$f":"[1]ACS_16_5YR_B17001_with_ann!AT62","v":0},{"$f":"[1]ACS_16_5YR_B17001_with_ann!AU62","v":17},{"$f":"[1]ACS_16_5YR_B17001_with_ann!AV62","v":0},{"$f":"[1]ACS_16_5YR_B17001_with_ann!AW62","v":17},{"$f":"[1]ACS_16_5YR_B17001_with_ann!AX62","v":0},{"$f":"[1]ACS_16_5YR_B17001_with_ann!AY62","v":17},{"$f":"[1]ACS_16_5YR_B17001_with_ann!AZ62","v":22},{"$f":"[1]ACS_16_5YR_B17001_with_ann!BA62","v":39},{"$f":"[1]ACS_16_5YR_B17001_with_ann!BB62","v":68},{"$f":"[1]ACS_16_5YR_B17001_with_ann!BC62","v":66},{"$f":"[1]ACS_16_5YR_B17001_with_ann!BD62","v":116},{"$f":"[1]ACS_16_5YR_B17001_with_ann!BE62","v":122},{"$f":"[1]ACS_16_5YR_B17001_with_ann!BF62","v":52},{"$f":"[1]ACS_16_5YR_B17001_with_ann!BG62","v":39},{"$f":"[1]ACS_16_5YR_B17001_with_ann!BH62","v":0},{"$f":"[1]ACS_16_5YR_B17001_with_ann!BI62","v":17},{"$f":"[1]ACS_16_5YR_B17001_with_ann!BJ62","v":79},{"$f":"[1]ACS_16_5YR_B17001_with_ann!BK62","v":80},{"$f":"[1]ACS_16_5YR_B17001_with_ann!BL62","v":6556},{"$f":"[1]ACS_16_5YR_B17001_with_ann!BM62","v":303},{"$f":"[1]ACS_16_5YR_B17001_with_ann!BN62","v":3267},{"$f":"[1]ACS_16_5YR_B17001_with_ann!BO62","v":248},{"$f":"[1]ACS_16_5YR_B17001_with_ann!BP62","v":114},{"$f":"[1]ACS_16_5YR_B17001_with_ann!BQ62","v":96},{"$f":"[1]ACS_16_5YR_B17001_with_ann!BR62","v":62},{"$f":"[1]ACS_16_5YR_B17001_with_ann!BS62","v":40},{"$f":"[1]ACS_16_5YR_B17001_with_ann!BT62","v":92},{"$f":"[1]ACS_16_5YR_B17001_with_ann!BU62","v":76},{"$f":"[1]ACS_16_5YR_B17001_with_ann!BV62","v":155},{"$f":"[1]ACS_16_5YR_B17001_with_ann!BW62","v":92},{"$f":"[1]ACS_16_5YR_B17001_with_ann!BX62","v":18},{"$f":"[1]ACS_16_5YR_B17001_with_ann!BY62","v":31},{"$f":"[1]ACS_16_5YR_B17001_with_ann!BZ62","v":33},{"$f":"[1]ACS_16_5YR_B17001_with_ann!CA62","v":52},{"$f":"[1]ACS_16_5YR_B17001_with_ann!CB62","v":186},{"$f":"[1]ACS_16_5YR_B17001_with_ann!CC62","v":155},{"$f":"[1]ACS_16_5YR_B17001_with_ann!CD62","v":271},{"$f":"[1]ACS_16_5YR_B17001_with_ann!CE62","v":101},{"$f":"[1]ACS_16_5YR_B17001_with_ann!CF62","v":362},{"$f":"[1]ACS_16_5YR_B17001_with_ann!CG62","v":160},{"$f":"[1]ACS_16_5YR_B17001_with_ann!CH62","v":376},{"$f":"[1]ACS_16_5YR_B17001_with_ann!CI62","v":175},{"$f":"[1]ACS_16_5YR_B17001_with_ann!CJ62","v":709},{"$f":"[1]ACS_16_5YR_B17001_with_ann!CK62","v":187},{"$f":"[1]ACS_16_5YR_B17001_with_ann!CL62","v":505},{"$f":"[1]ACS_16_5YR_B17001_with_ann!CM62","v":186},{"$f":"[1]ACS_16_5YR_B17001_with_ann!CN62","v":384},{"$f":"[1]ACS_16_5YR_B17001_with_ann!CO62","v":157},{"$f":"[1]ACS_16_5YR_B17001_with_ann!CP62","v":3289},{"$f":"[1]ACS_16_5YR_B17001_with_ann!CQ62","v":284},{"$f":"[1]ACS_16_5YR_B17001_with_ann!CR62","v":110},{"$f":"[1]ACS_16_5YR_B17001_with_ann!CS62","v":82},{"$f":"[1]ACS_16_5YR_B17001_with_ann!CT62","v":40},{"$f":"[1]ACS_16_5YR_B17001_with_ann!CU62","v":56},{"$f":"[1]ACS_16_5YR_B17001_with_ann!CV62","v":177},{"$f":"[1]ACS_16_5YR_B17001_with_ann!CW62","v":93},{"$f":"[1]ACS_16_5YR_B17001_with_ann!CX62","v":128},{"$f":"[1]ACS_16_5YR_B17001_with_ann!CY62","v":95},{"$f":"[1]ACS_16_5YR_B17001_with_ann!CZ62","v":92},{"$f":"[1]ACS_16_5YR_B17001_with_ann!DA62","v":83},{"$f":"[1]ACS_16_5YR_B17001_with_ann!DB62","v":48},{"$f":"[1]ACS_16_5YR_B17001_with_ann!DC62","v":46},{"$f":"[1]ACS_16_5YR_B17001_with_ann!DD62","v":108},{"$f":"[1]ACS_16_5YR_B17001_with_ann!DE62","v":78},{"$f":"[1]ACS_16_5YR_B17001_with_ann!DF62","v":294},{"$f":"[1]ACS_16_5YR_B17001_with_ann!DG62","v":91},{"$f":"[1]ACS_16_5YR_B17001_with_ann!DH62","v":337},{"$f":"[1]ACS_16_5YR_B17001_with_ann!DI62","v":102},{"$f":"[1]ACS_16_5YR_B17001_with_ann!DJ62","v":405},{"$f":"[1]ACS_16_5YR_B17001_with_ann!DK62","v":150},{"$f":"[1]ACS_16_5YR_B17001_with_ann!DL62","v":670},{"$f":"[1]ACS_16_5YR_B17001_with_ann!DM62","v":161},{"$f":"[1]ACS_16_5YR_B17001_with_ann!DN62","v":587},{"$f":"[1]ACS_16_5YR_B17001_with_ann!DO62","v":143},{"$f":"[1]ACS_16_5YR_B17001_with_ann!DP62","v":293},{"$f":"[1]ACS_16_5YR_B17001_with_ann!DQ62","v":112}]
["06000US3300577380","0600000US3300578420","060",{"$f":"[1]ACS_16_5YR_B17001_with_ann!C63","v":"Troy"},{"$f":"[1]ACS_16_5YR_B17001_with_ann!D63","v":1889},{"$f":"[1]ACS_16_5YR_B17001_with_ann!E63","v":275},{"$f":"[1]ACS_16_5YR_B17001_with_ann!F63","v":140},{"$f":"[1]ACS_16_5YR_B17001_with_ann!G63","v":67},{"$f":"[1]ACS_16_5YR_B17001_with_ann!H63","v":51},{"$f":"[1]ACS_16_5YR_B17001_with_ann!I63","v":31},{"$f":"[1]ACS_16_5YR_B17001_with_ann!J63","v":0},{"$f":"[1]ACS_16_5YR_B17001_with_ann!K63","v":12},{"$f":"[1]ACS_16_5YR_B17001_with_ann!L63","v":0},{"$f":"[1]ACS_16_5YR_B17001_with_ann!M63","v":12},{"$f":"[1]ACS_16_5YR_B17001_with_ann!N63","v":6},{"$f":"[1]ACS_16_5YR_B17001_with_ann!O63","v":9},{"$f":"[1]ACS_16_5YR_B17001_with_ann!P63","v":0},{"$f":"[1]ACS_16_5YR_B17001_with_ann!Q63","v":12},{"$f":"[1]ACS_16_5YR_B17001_with_ann!R63","v":0},{"$f":"[1]ACS_16_5YR_B17001_with_ann!S63","v":12},{"$f":"[1]ACS_16_5YR_B17001_with_ann!T63","v":0},{"$f":"[1]ACS_16_5YR_B17001_with_ann!U63","v":12},{"$f":"[1]ACS_16_5YR_B17001_with_ann!V63","v":5},{"$f":"[1]ACS_16_5YR_B17001_with_ann!W63","v":9},{"$f":"[1]ACS_16_5YR_B17001_with_ann!X63","v":5},{"$f":"[1]ACS_16_5YR_B17001_with_ann!Y63","v":9},{"$f":"[1]ACS_16_5YR_B17001_with_ann!Z63","v":0},{"$f":"[1]ACS_16_5YR_B17001_with_ann!AA63","v":12},{"$f":"[1]ACS_16_5YR_B17001_with_ann!AB63","v":0},{"$f":"[1]ACS_16_5YR_B17001_with_ann!AC63","v":12},{"$f":"[1]ACS_16_5YR_B17001_with_ann!AD63","v":25},{"$f":"[1]ACS_16_5YR_B17001_with_ann!AE63","v":25},{"$f":"[1]ACS_16_5YR_B17001_with_ann!AF63","v":6},{"$f":"[1]ACS_16_5YR_B17001_with_ann!AG63","v":10},{"$f":"[1]ACS_16_5YR_B17001_with_ann!AH63","v":4},{"$f":"[1]ACS_16_5YR_B17001_with_ann!AI63","v":8},{"$f":"[1]ACS_16_5YR_B17001_with_ann!AJ63","v":89},{"$f":"[1]ACS_16_5YR_B17001_with_ann!AK63","v":47},{"$f":"[1]ACS_16_5YR_B17001_with_ann!AL63","v":0},{"$f":"[1]ACS_16_5YR_B17001_with_ann!AM63","v":12},{"$f":"[1]ACS_16_5YR_B17001_with_ann!AN63","v":0},{"$f":"[1]ACS_16_5YR_B17001_with_ann!AO63","v":12},{"$f":"[1]ACS_16_5YR_B17001_with_ann!AP63","v":0},{"$f":"[1]ACS_16_5YR_B17001_with_ann!AQ63","v":12},{"$f":"[1]ACS_16_5YR_B17001_with_ann!AR63","v":0},{"$f":"[1]ACS_16_5YR_B17001_with_ann!AS63","v":12},{"$f":"[1]ACS_16_5YR_B17001_with_ann!AT63","v":0},{"$f":"[1]ACS_16_5YR_B17001_with_ann!AU63","v":12},{"$f":"[1]ACS_16_5YR_B17001_with_ann!AV63","v":0},{"$f":"[1]ACS_16_5YR_B17001_with_ann!AW63","v":12},{"$f":"[1]ACS_16_5YR_B17001_with_ann!AX63","v":9},{"$f":"[1]ACS_16_5YR_B17001_with_ann!AY63","v":11},{"$f":"[1]ACS_16_5YR_B17001_with_ann!AZ63","v":44},{"$f":"[1]ACS_16_5YR_B17001_with_ann!BA63","v":34},{"$f":"[1]ACS_16_5YR_B17001_with_ann!BB63","v":7},{"$f":"[1]ACS_16_5YR_B17001_with_ann!BC63","v":11},{"$f":"[1]ACS_16_5YR_B17001_with_ann!BD63","v":4},{"$f":"[1]ACS_16_5YR_B17001_with_ann!BE63","v":7},{"$f":"[1]ACS_16_5YR_B17001_with_ann!BF63","v":13},{"$f":"[1]ACS_16_5YR_B17001_with_ann!BG63","v":19},{"$f":"[1]ACS_16_5YR_B17001_with_ann!BH63","v":12},{"$f":"[1]ACS_16_5YR_B17001_with_ann!BI63","v":12},{"$f":"[1]ACS_16_5YR_B17001_with_ann!BJ63","v":0},{"$f":"[1]ACS_16_5YR_B17001_with_ann!BK63","v":12},{"$f":"[1]ACS_16_5YR_B17001_with_ann!BL63","v":1749},{"$f":"[1]ACS_16_5YR_B17001_with_ann!BM63","v":260},{"$f":"[1]ACS_16_5YR_B17001_with_ann!BN63","v":899},{"$f":"[1]ACS_16_5YR_B17001_with_ann!BO63","v":171},{"$f":"[1]ACS_16_5YR_B17001_with_ann!BP63","v":25},{"$f":"[1]ACS_16_5YR_B17001_with_ann!BQ63","v":22},{"$f":"[1]ACS_16_5YR_B17001_with_ann!BR63","v":0},{"$f":"[1]ACS_16_5YR_B17001_with_ann!BS63","v":12},{"$f":"[1]ACS_16_5YR_B17001_with_ann!BT63","v":61},{"$f":"[1]ACS_16_5YR_B17001_with_ann!BU63","v":45},{"$f":"[1]ACS_16_5YR_B17001_with_ann!BV63","v":50},{"$f":"[1]ACS_16_5YR_B17001_with_ann!BW63","v":33},{"$f":"[1]ACS_16_5YR_B17001_with_ann!BX63","v":17},{"$f":"[1]ACS_16_5YR_B17001_with_ann!BY63","v":27},{"$f":"[1]ACS_16_5YR_B17001_with_ann!BZ63","v":15},{"$f":"[1]ACS_16_5YR_B17001_with_ann!CA63","v":22},{"$f":"[1]ACS_16_5YR_B17001_with_ann!CB63","v":28},{"$f":"[1]ACS_16_5YR_B17001_with_ann!CC63","v":20},{"$f":"[1]ACS_16_5YR_B17001_with_ann!CD63","v":153},{"$f":"[1]ACS_16_5YR_B17001_with_ann!CE63","v":77},{"$f":"[1]ACS_16_5YR_B17001_with_ann!CF63","v":152},{"$f":"[1]ACS_16_5YR_B17001_with_ann!CG63","v":57},{"$f":"[1]ACS_16_5YR_B17001_with_ann!CH63","v":123},{"$f":"[1]ACS_16_5YR_B17001_with_ann!CI63","v":52},{"$f":"[1]ACS_16_5YR_B17001_with_ann!CJ63","v":119},{"$f":"[1]ACS_16_5YR_B17001_with_ann!CK63","v":46},{"$f":"[1]ACS_16_5YR_B17001_with_ann!CL63","v":115},{"$f":"[1]ACS_16_5YR_B17001_with_ann!CM63","v":47},{"$f":"[1]ACS_16_5YR_B17001_with_ann!CN63","v":41},{"$f":"[1]ACS_16_5YR_B17001_with_ann!CO63","v":28},{"$f":"[1]ACS_16_5YR_B17001_with_ann!CP63","v":850},{"$f":"[1]ACS_16_5YR_B17001_with_ann!CQ63","v":129},{"$f":"[1]ACS_16_5YR_B17001_with_ann!CR63","v":106},{"$f":"[1]ACS_16_5YR_B17001_with_ann!CS63","v":55},{"$f":"[1]ACS_16_5YR_B17001_with_ann!CT63","v":26},{"$f":"[1]ACS_16_5YR_B17001_with_ann!CU63","v":24},{"$f":"[1]ACS_16_5YR_B17001_with_ann!CV63","v":53},{"$f":"[1]ACS_16_5YR_B17001_with_ann!CW63","v":35},{"$f":"[1]ACS_16_5YR_B17001_with_ann!CX63","v":4},{"$f":"[1]ACS_16_5YR_B17001_with_ann!CY63","v":6},{"$f":"[1]ACS_16_5YR_B17001_with_ann!CZ63","v":12},{"$f":"[1]ACS_16_5YR_B17001_with_ann!DA63","v":15},{"$f":"[1]ACS_16_5YR_B17001_with_ann!DB63","v":18},{"$f":"[1]ACS_16_5YR_B17001_with_ann!DC63","v":22},{"$f":"[1]ACS_16_5YR_B17001_with_ann!DD63","v":40},{"$f":"[1]ACS_16_5YR_B17001_with_ann!DE63","v":33},{"$f":"[1]ACS_16_5YR_B17001_with_ann!DF63","v":112},{"$f":"[1]ACS_16_5YR_B17001_with_ann!DG63","v":46},{"$f":"[1]ACS_16_5YR_B17001_with_ann!DH63","v":134},{"$f":"[1]ACS_16_5YR_B17001_with_ann!DI63","v":58},{"$f":"[1]ACS_16_5YR_B17001_with_ann!DJ63","v":72},{"$f":"[1]ACS_16_5YR_B17001_with_ann!DK63","v":36},{"$f":"[1]ACS_16_5YR_B17001_with_ann!DL63","v":122},{"$f":"[1]ACS_16_5YR_B17001_with_ann!DM63","v":49},{"$f":"[1]ACS_16_5YR_B17001_with_ann!DN63","v":89},{"$f":"[1]ACS_16_5YR_B17001_with_ann!DO63","v":31},{"$f":"[1]ACS_16_5YR_B17001_with_ann!DP63","v":62},{"$f":"[1]ACS_16_5YR_B17001_with_ann!DQ63","v":38}]
["06000US3300578420","0600000US3300582660","060",{"$f":"[1]ACS_16_5YR_B17001_with_ann!C64","v":"Walpole"},{"$f":"[1]ACS_16_5YR_B17001_with_ann!D64","v":3651},{"$f":"[1]ACS_16_5YR_B17001_with_ann!E64","v":33},{"$f":"[1]ACS_16_5YR_B17001_with_ann!F64","v":300},{"$f":"[1]ACS_16_5YR_B17001_with_ann!G64","v":159},{"$f":"[1]ACS_16_5YR_B17001_with_ann!H64","v":91},{"$f":"[1]ACS_16_5YR_B17001_with_ann!I64","v":73},{"$f":"[1]ACS_16_5YR_B17001_with_ann!J64","v":15},{"$f":"[1]ACS_16_5YR_B17001_with_ann!K64","v":25},{"$f":"[1]ACS_16_5YR_B17001_with_ann!L64","v":0},{"$f":"[1]ACS_16_5YR_B17001_with_ann!M64","v":12},{"$f":"[1]ACS_16_5YR_B17001_with_ann!N64","v":0},{"$f":"[1]ACS_16_5YR_B17001_with_ann!O64","v":12},{"$f":"[1]ACS_16_5YR_B17001_with_ann!P64","v":0},{"$f":"[1]ACS_16_5YR_B17001_with_ann!Q64","v":12},{"$f":"[1]ACS_16_5YR_B17001_with_ann!R64","v":0},{"$f":"[1]ACS_16_5YR_B17001_with_ann!S64","v":12},{"$f":"[1]ACS_16_5YR_B17001_with_ann!T64","v":0},{"$f":"[1]ACS_16_5YR_B17001_with_ann!U64","v":12},{"$f":"[1]ACS_16_5YR_B17001_with_ann!V64","v":0},{"$f":"[1]ACS_16_5YR_B17001_with_ann!W64","v":12},{"$f":"[1]ACS_16_5YR_B17001_with_ann!X64","v":8},{"$f":"[1]ACS_16_5YR_B17001_with_ann!Y64","v":14},{"$f":"[1]ACS_16_5YR_B17001_with_ann!Z64","v":0},{"$f":"[1]ACS_16_5YR_B17001_with_ann!AA64","v":12},{"$f":"[1]ACS_16_5YR_B17001_with_ann!AB64","v":0},{"$f":"[1]ACS_16_5YR_B17001_with_ann!AC64","v":12},{"$f":"[1]ACS_16_5YR_B17001_with_ann!AD64","v":26},{"$f":"[1]ACS_16_5YR_B17001_with_ann!AE64","v":33},{"$f":"[1]ACS_16_5YR_B17001_with_ann!AF64","v":21},{"$f":"[1]ACS_16_5YR_B17001_with_ann!AG64","v":33},{"$f":"[1]ACS_16_5YR_B17001_with_ann!AH64","v":21},{"$f":"[1]ACS_16_5YR_B17001_with_ann!AI64","v":32},{"$f":"[1]ACS_16_5YR_B17001_with_ann!AJ64","v":209},{"$f":"[1]ACS_16_5YR_B17001_with_ann!AK64","v":125},{"$f":"[1]ACS_16_5YR_B17001_with_ann!AL64","v":0},{"$f":"[1]ACS_16_5YR_B17001_with_ann!AM64","v":12},{"$f":"[1]ACS_16_5YR_B17001_with_ann!AN64","v":0},{"$f":"[1]ACS_16_5YR_B17001_with_ann!AO64","v":12},{"$f":"[1]ACS_16_5YR_B17001_with_ann!AP64","v":0},{"$f":"[1]ACS_16_5YR_B17001_with_ann!AQ64","v":12},{"$f":"[1]ACS_16_5YR_B17001_with_ann!AR64","v":0},{"$f":"[1]ACS_16_5YR_B17001_with_ann!AS64","v":12},{"$f":"[1]ACS_16_5YR_B17001_with_ann!AT64","v":0},{"$f":"[1]ACS_16_5YR_B17001_with_ann!AU64","v":12},{"$f":"[1]ACS_16_5YR_B17001_with_ann!AV64","v":0},{"$f":"[1]ACS_16_5YR_B17001_with_ann!AW64","v":12},{"$f":"[1]ACS_16_5YR_B17001_with_ann!AX64","v":0},{"$f":"[1]ACS_16_5YR_B17001_with_ann!AY64","v":12},{"$f":"[1]ACS_16_5YR_B17001_with_ann!AZ64","v":26},{"$f":"[1]ACS_16_5YR_B17001_with_ann!BA64","v":27},{"$f":"[1]ACS_16_5YR_B17001_with_ann!BB64","v":21},{"$f":"[1]ACS_16_5YR_B17001_with_ann!BC64","v":23},{"$f":"[1]ACS_16_5YR_B17001_with_ann!BD64","v":25},{"$f":"[1]ACS_16_5YR_B17001_with_ann!BE64","v":29},{"$f":"[1]ACS_16_5YR_B17001_with_ann!BF64","v":20},{"$f":"[1]ACS_16_5YR_B17001_with_ann!BG64","v":36},{"$f":"[1]ACS_16_5YR_B17001_with_ann!BH64","v":6},{"$f":"[1]ACS_16_5YR_B17001_with_ann!BI64","v":8},{"$f":"[1]ACS_16_5YR_B17001_with_ann!BJ64","v":111},{"$f":"[1]ACS_16_5YR_B17001_with_ann!BK64","v":92},{"$f":"[1]ACS_16_5YR_B17001_with_ann!BL64","v":3351},{"$f":"[1]ACS_16_5YR_B17001_with_ann!BM64","v":162},{"$f":"[1]ACS_16_5YR_B17001_with_ann!BN64","v":1708},{"$f":"[1]ACS_16_5YR_B17001_with_ann!BO64","v":149},{"$f":"[1]ACS_16_5YR_B17001_with_ann!BP64","v":168},{"$f":"[1]ACS_16_5YR_B17001_with_ann!BQ64","v":87},{"$f":"[1]ACS_16_5YR_B17001_with_ann!BR64","v":29},{"$f":"[1]ACS_16_5YR_B17001_with_ann!BS64","v":28},{"$f":"[1]ACS_16_5YR_B17001_with_ann!BT64","v":81},{"$f":"[1]ACS_16_5YR_B17001_with_ann!BU64","v":74},{"$f":"[1]ACS_16_5YR_B17001_with_ann!BV64","v":80},{"$f":"[1]ACS_16_5YR_B17001_with_ann!BW64","v":53},{"$f":"[1]ACS_16_5YR_B17001_with_ann!BX64","v":39},{"$f":"[1]ACS_16_5YR_B17001_with_ann!BY64","v":49},{"$f":"[1]ACS_16_5YR_B17001_with_ann!BZ64","v":83},{"$f":"[1]ACS_16_5YR_B17001_with_ann!CA64","v":85},{"$f":"[1]ACS_16_5YR_B17001_with_ann!CB64","v":136},{"$f":"[1]ACS_16_5YR_B17001_with_ann!CC64","v":91},{"$f":"[1]ACS_16_5YR_B17001_with_ann!CD64","v":222},{"$f":"[1]ACS_16_5YR_B17001_with_ann!CE64","v":87},{"$f":"[1]ACS_16_5YR_B17001_with_ann!CF64","v":133},{"$f":"[1]ACS_16_5YR_B17001_with_ann!CG64","v":51},{"$f":"[1]ACS_16_5YR_B17001_with_ann!CH64","v":228},{"$f":"[1]ACS_16_5YR_B17001_with_ann!CI64","v":77},{"$f":"[1]ACS_16_5YR_B17001_with_ann!CJ64","v":184},{"$f":"[1]ACS_16_5YR_B17001_with_ann!CK64","v":84},{"$f":"[1]ACS_16_5YR_B17001_with_ann!CL64","v":250},{"$f":"[1]ACS_16_5YR_B17001_with_ann!CM64","v":74},{"$f":"[1]ACS_16_5YR_B17001_with_ann!CN64","v":75},{"$f":"[1]ACS_16_5YR_B17001_with_ann!CO64","v":39},{"$f":"[1]ACS_16_5YR_B17001_with_ann!CP64","v":1643},{"$f":"[1]ACS_16_5YR_B17001_with_ann!CQ64","v":210},{"$f":"[1]ACS_16_5YR_B17001_with_ann!CR64","v":144},{"$f":"[1]ACS_16_5YR_B17001_with_ann!CS64","v":82},{"$f":"[1]ACS_16_5YR_B17001_with_ann!CT64","v":31},{"$f":"[1]ACS_16_5YR_B17001_with_ann!CU64","v":31},{"$f":"[1]ACS_16_5YR_B17001_with_ann!CV64","v":79},{"$f":"[1]ACS_16_5YR_B17001_with_ann!CW64","v":51},{"$f":"[1]ACS_16_5YR_B17001_with_ann!CX64","v":89},{"$f":"[1]ACS_16_5YR_B17001_with_ann!CY64","v":57},{"$f":"[1]ACS_16_5YR_B17001_with_ann!CZ64","v":7},{"$f":"[1]ACS_16_5YR_B17001_with_ann!DA64","v":13},{"$f":"[1]ACS_16_5YR_B17001_with_ann!DB64","v":81},{"$f":"[1]ACS_16_5YR_B17001_with_ann!DC64","v":62},{"$f":"[1]ACS_16_5YR_B17001_with_ann!DD64","v":60},{"$f":"[1]ACS_16_5YR_B17001_with_ann!DE64","v":50},{"$f":"[1]ACS_16_5YR_B17001_with_ann!DF64","v":232},{"$f":"[1]ACS_16_5YR_B17001_with_ann!DG64","v":130},{"$f":"[1]ACS_16_5YR_B17001_with_ann!DH64","v":197},{"$f":"[1]ACS_16_5YR_B17001_with_ann!DI64","v":60},{"$f":"[1]ACS_16_5YR_B17001_with_ann!DJ64","v":265},{"$f":"[1]ACS_16_5YR_B17001_with_ann!DK64","v":81},{"$f":"[1]ACS_16_5YR_B17001_with_ann!DL64","v":171},{"$f":"[1]ACS_16_5YR_B17001_with_ann!DM64","v":78},{"$f":"[1]ACS_16_5YR_B17001_with_ann!DN64","v":176},{"$f":"[1]ACS_16_5YR_B17001_with_ann!DO64","v":50},{"$f":"[1]ACS_16_5YR_B17001_with_ann!DP64","v":111},{"$f":"[1]ACS_16_5YR_B17001_with_ann!DQ64","v":51}]
["06000US3300582660","0600000US3300585540","060",{"$f":"[1]ACS_16_5YR_B17001_with_ann!C65","v":"Westmoreland"},{"$f":"[1]ACS_16_5YR_B17001_with_ann!D65","v":1971},{"$f":"[1]ACS_16_5YR_B17001_with_ann!E65","v":342},{"$f":"[1]ACS_16_5YR_B17001_with_ann!F65","v":127},{"$f":"[1]ACS_16_5YR_B17001_with_ann!G65","v":157},{"$f":"[1]ACS_16_5YR_B17001_with_ann!H65","v":53},{"$f":"[1]ACS_16_5YR_B17001_with_ann!I65","v":60},{"$f":"[1]ACS_16_5YR_B17001_with_ann!J65","v":0},{"$f":"[1]ACS_16_5YR_B17001_with_ann!K65","v":12},{"$f":"[1]ACS_16_5YR_B17001_with_ann!L65","v":0},{"$f":"[1]ACS_16_5YR_B17001_with_ann!M65","v":12},{"$f":"[1]ACS_16_5YR_B17001_with_ann!N65","v":0},{"$f":"[1]ACS_16_5YR_B17001_with_ann!O65","v":12},{"$f":"[1]ACS_16_5YR_B17001_with_ann!P65","v":0},{"$f":"[1]ACS_16_5YR_B17001_with_ann!Q65","v":12},{"$f":"[1]ACS_16_5YR_B17001_with_ann!R65","v":0},{"$f":"[1]ACS_16_5YR_B17001_with_ann!S65","v":12},{"$f":"[1]ACS_16_5YR_B17001_with_ann!T65","v":0},{"$f":"[1]ACS_16_5YR_B17001_with_ann!U65","v":12},{"$f":"[1]ACS_16_5YR_B17001_with_ann!V65","v":0},{"$f":"[1]ACS_16_5YR_B17001_with_ann!W65","v":12},{"$f":"[1]ACS_16_5YR_B17001_with_ann!X65","v":0},{"$f":"[1]ACS_16_5YR_B17001_with_ann!Y65","v":12},{"$f":"[1]ACS_16_5YR_B17001_with_ann!Z65","v":0},{"$f":"[1]ACS_16_5YR_B17001_with_ann!AA65","v":12},{"$f":"[1]ACS_16_5YR_B17001_with_ann!AB65","v":5},{"$f":"[1]ACS_16_5YR_B17001_with_ann!AC65","v":8},{"$f":"[1]ACS_16_5YR_B17001_with_ann!AD65","v":0},{"$f":"[1]ACS_16_5YR_B17001_with_ann!AE65","v":12},{"$f":"[1]ACS_16_5YR_B17001_with_ann!AF65","v":8},{"$f":"[1]ACS_16_5YR_B17001_with_ann!AG65","v":9},{"$f":"[1]ACS_16_5YR_B17001_with_ann!AH65","v":40},{"$f":"[1]ACS_16_5YR_B17001_with_ann!AI65","v":59},{"$f":"[1]ACS_16_5YR_B17001_with_ann!AJ65","v":74},{"$f":"[1]ACS_16_5YR_B17001_with_ann!AK65","v":99},{"$f":"[1]ACS_16_5YR_B17001_with_ann!AL65","v":0},{"$f":"[1]ACS_16_5YR_B17001_with_ann!AM65","v":12},{"$f":"[1]ACS_16_5YR_B17001_with_ann!AN65","v":0},{"$f":"[1]ACS_16_5YR_B17001_with_ann!AO65","v":12},{"$f":"[1]ACS_16_5YR_B17001_with_ann!AP65","v":0},{"$f":"[1]ACS_16_5YR_B17001_with_ann!AQ65","v":12},{"$f":"[1]ACS_16_5YR_B17001_with_ann!AR65","v":0},{"$f":"[1]ACS_16_5YR_B17001_with_ann!AS65","v":12},{"$f":"[1]ACS_16_5YR_B17001_with_ann!AT65","v":0},{"$f":"[1]ACS_16_5YR_B17001_with_ann!AU65","v":12},{"$f":"[1]ACS_16_5YR_B17001_with_ann!AV65","v":0},{"$f":"[1]ACS_16_5YR_B17001_with_ann!AW65","v":12},{"$f":"[1]ACS_16_5YR_B17001_with_ann!AX65","v":3},{"$f":"[1]ACS_16_5YR_B17001_with_ann!AY65","v":5},{"$f":"[1]ACS_16_5YR_B17001_with_ann!AZ65","v":0},{"$f":"[1]ACS_16_5YR_B17001_with_ann!BA65","v":12},{"$f":"[1]ACS_16_5YR_B17001_with_ann!BB65","v":0},{"$f":"[1]ACS_16_5YR_B17001_with_ann!BC65","v":12},{"$f":"[1]ACS_16_5YR_B17001_with_ann!BD65","v":0},{"$f":"[1]ACS_16_5YR_B17001_with_ann!BE65","v":12},{"$f":"[1]ACS_16_5YR_B17001_with_ann!BF65","v":0},{"$f":"[1]ACS_16_5YR_B17001_with_ann!BG65","v":12},{"$f":"[1]ACS_16_5YR_B17001_with_ann!BH65","v":71},{"$f":"[1]ACS_16_5YR_B17001_with_ann!BI65","v":98},{"$f":"[1]ACS_16_5YR_B17001_with_ann!BJ65","v":0},{"$f":"[1]ACS_16_5YR_B17001_with_ann!BK65","v":12},{"$f":"[1]ACS_16_5YR_B17001_with_ann!BL65","v":1844},{"$f":"[1]ACS_16_5YR_B17001_with_ann!BM65","v":296},{"$f":"[1]ACS_16_5YR_B17001_with_ann!BN65","v":804},{"$f":"[1]ACS_16_5YR_B17001_with_ann!BO65","v":144},{"$f":"[1]ACS_16_5YR_B17001_with_ann!BP65","v":33},{"$f":"[1]ACS_16_5YR_B17001_with_ann!BQ65","v":31},{"$f":"[1]ACS_16_5YR_B17001_with_ann!BR65","v":7},{"$f":"[1]ACS_16_5YR_B17001_with_ann!BS65","v":6},{"$f":"[1]ACS_16_5YR_B17001_with_ann!BT65","v":24},{"$f":"[1]ACS_16_5YR_B17001_with_ann!BU65","v":19},{"$f":"[1]ACS_16_5YR_B17001_with_ann!BV65","v":4},{"$f":"[1]ACS_16_5YR_B17001_with_ann!BW65","v":6},{"$f":"[1]ACS_16_5YR_B17001_with_ann!BX65","v":6},{"$f":"[1]ACS_16_5YR_B17001_with_ann!BY65","v":7},{"$f":"[1]ACS_16_5YR_B17001_with_ann!BZ65","v":10},{"$f":"[1]ACS_16_5YR_B17001_with_ann!CA65","v":10},{"$f":"[1]ACS_16_5YR_B17001_with_ann!CB65","v":48},{"$f":"[1]ACS_16_5YR_B17001_with_ann!CC65","v":35},{"$f":"[1]ACS_16_5YR_B17001_with_ann!CD65","v":69},{"$f":"[1]ACS_16_5YR_B17001_with_ann!CE65","v":38},{"$f":"[1]ACS_16_5YR_B17001_with_ann!CF65","v":25},{"$f":"[1]ACS_16_5YR_B17001_with_ann!CG65","v":15},{"$f":"[1]ACS_16_5YR_B17001_with_ann!CH65","v":144},{"$f":"[1]ACS_16_5YR_B17001_with_ann!CI65","v":57},{"$f":"[1]ACS_16_5YR_B17001_with_ann!CJ65","v":221},{"$f":"[1]ACS_16_5YR_B17001_with_ann!CK65","v":81},{"$f":"[1]ACS_16_5YR_B17001_with_ann!CL65","v":148},{"$f":"[1]ACS_16_5YR_B17001_with_ann!CM65","v":50},{"$f":"[1]ACS_16_5YR_B17001_with_ann!CN65","v":65},{"$f":"[1]ACS_16_5YR_B17001_with_ann!CO65","v":26},{"$f":"[1]ACS_16_5YR_B17001_with_ann!CP65","v":1040},{"$f":"[1]ACS_16_5YR_B17001_with_ann!CQ65","v":195},{"$f":"[1]ACS_16_5YR_B17001_with_ann!CR65","v":47},{"$f":"[1]ACS_16_5YR_B17001_with_ann!CS65","v":41},{"$f":"[1]ACS_16_5YR_B17001_with_ann!CT65","v":0},{"$f":"[1]ACS_16_5YR_B17001_with_ann!CU65","v":12},{"$f":"[1]ACS_16_5YR_B17001_with_ann!CV65","v":114},{"$f":"[1]ACS_16_5YR_B17001_with_ann!CW65","v":68},{"$f":"[1]ACS_16_5YR_B17001_with_ann!CX65","v":39},{"$f":"[1]ACS_16_5YR_B17001_with_ann!CY65","v":25},{"$f":"[1]ACS_16_5YR_B17001_with_ann!CZ65","v":18},{"$f":"[1]ACS_16_5YR_B17001_with_ann!DA65","v":17},{"$f":"[1]ACS_16_5YR_B17001_with_ann!DB65","v":9},{"$f":"[1]ACS_16_5YR_B17001_with_ann!DC65","v":12},{"$f":"[1]ACS_16_5YR_B17001_with_ann!DD65","v":56},{"$f":"[1]ACS_16_5YR_B17001_with_ann!DE65","v":60},{"$f":"[1]ACS_16_5YR_B17001_with_ann!DF65","v":60},{"$f":"[1]ACS_16_5YR_B17001_with_ann!DG65","v":35},{"$f":"[1]ACS_16_5YR_B17001_with_ann!DH65","v":123},{"$f":"[1]ACS_16_5YR_B17001_with_ann!DI65","v":67},{"$f":"[1]ACS_16_5YR_B17001_with_ann!DJ65","v":92},{"$f":"[1]ACS_16_5YR_B17001_with_ann!DK65","v":37},{"$f":"[1]ACS_16_5YR_B17001_with_ann!DL65","v":215},{"$f":"[1]ACS_16_5YR_B17001_with_ann!DM65","v":83},{"$f":"[1]ACS_16_5YR_B17001_with_ann!DN65","v":144},{"$f":"[1]ACS_16_5YR_B17001_with_ann!DO65","v":51},{"$f":"[1]ACS_16_5YR_B17001_with_ann!DP65","v":123},{"$f":"[1]ACS_16_5YR_B17001_with_ann!DQ65","v":45}]
["06000US3300585540","0600000US3300500820","060",{"$f":"[1]ACS_16_5YR_B17001_with_ann!C66","v":"Winchester"},{"$f":"[1]ACS_16_5YR_B17001_with_ann!D66","v":4060},{"$f":"[1]ACS_16_5YR_B17001_with_ann!E66","v":58},{"$f":"[1]ACS_16_5YR_B17001_with_ann!F66","v":762},{"$f":"[1]ACS_16_5YR_B17001_with_ann!G66","v":291},{"$f":"[1]ACS_16_5YR_B17001_with_ann!H66","v":345},{"$f":"[1]ACS_16_5YR_B17001_with_ann!I66","v":164},{"$f":"[1]ACS_16_5YR_B17001_with_ann!J66","v":53},{"$f":"[1]ACS_16_5YR_B17001_with_ann!K66","v":44},{"$f":"[1]ACS_16_5YR_B17001_with_ann!L66","v":0},{"$f":"[1]ACS_16_5YR_B17001_with_ann!M66","v":12},{"$f":"[1]ACS_16_5YR_B17001_with_ann!N66","v":26},{"$f":"[1]ACS_16_5YR_B17001_with_ann!O66","v":30},{"$f":"[1]ACS_16_5YR_B17001_with_ann!P66","v":8},{"$f":"[1]ACS_16_5YR_B17001_with_ann!Q66","v":12},{"$f":"[1]ACS_16_5YR_B17001_with_ann!R66","v":11},{"$f":"[1]ACS_16_5YR_B17001_with_ann!S66","v":18},{"$f":"[1]ACS_16_5YR_B17001_with_ann!T66","v":0},{"$f":"[1]ACS_16_5YR_B17001_with_ann!U66","v":12},{"$f":"[1]ACS_16_5YR_B17001_with_ann!V66","v":35},{"$f":"[1]ACS_16_5YR_B17001_with_ann!W66","v":46},{"$f":"[1]ACS_16_5YR_B17001_with_ann!X66","v":28},{"$f":"[1]ACS_16_5YR_B17001_with_ann!Y66","v":32},{"$f":"[1]ACS_16_5YR_B17001_with_ann!Z66","v":63},{"$f":"[1]ACS_16_5YR_B17001_with_ann!AA66","v":47},{"$f":"[1]ACS_16_5YR_B17001_with_ann!AB66","v":14},{"$f":"[1]ACS_16_5YR_B17001_with_ann!AC66","v":24},{"$f":"[1]ACS_16_5YR_B17001_with_ann!AD66","v":75},{"$f":"[1]ACS_16_5YR_B17001_with_ann!AE66","v":96},{"$f":"[1]ACS_16_5YR_B17001_with_ann!AF66","v":26},{"$f":"[1]ACS_16_5YR_B17001_with_ann!AG66","v":24},{"$f":"[1]ACS_16_5YR_B17001_with_ann!AH66","v":6},{"$f":"[1]ACS_16_5YR_B17001_with_ann!AI66","v":9},{"$f":"[1]ACS_16_5YR_B17001_with_ann!AJ66","v":417},{"$f":"[1]ACS_16_5YR_B17001_with_ann!AK66","v":171},{"$f":"[1]ACS_16_5YR_B17001_with_ann!AL66","v":155},{"$f":"[1]ACS_16_5YR_B17001_with_ann!AM66","v":128},{"$f":"[1]ACS_16_5YR_B17001_with_ann!AN66","v":0},{"$f":"[1]ACS_16_5YR_B17001_with_ann!AO66","v":12},{"$f":"[1]ACS_16_5YR_B17001_with_ann!AP66","v":14},{"$f":"[1]ACS_16_5YR_B17001_with_ann!AQ66","v":22},{"$f":"[1]ACS_16_5YR_B17001_with_ann!AR66","v":21},{"$f":"[1]ACS_16_5YR_B17001_with_ann!AS66","v":28},{"$f":"[1]ACS_16_5YR_B17001_with_ann!AT66","v":25},{"$f":"[1]ACS_16_5YR_B17001_with_ann!AU66","v":34},{"$f":"[1]ACS_16_5YR_B17001_with_ann!AV66","v":0},{"$f":"[1]ACS_16_5YR_B17001_with_ann!AW66","v":12},{"$f":"[1]ACS_16_5YR_B17001_with_ann!AX66","v":29},{"$f":"[1]ACS_16_5YR_B17001_with_ann!AY66","v":39},{"$f":"[1]ACS_16_5YR_B17001_with_ann!AZ66","v":90},{"$f":"[1]ACS_16_5YR_B17001_with_ann!BA66","v":57},{"$f":"[1]ACS_16_5YR_B17001_with_ann!BB66","v":25},{"$f":"[1]ACS_16_5YR_B17001_with_ann!BC66","v":28},{"$f":"[1]ACS_16_5YR_B17001_with_ann!BD66","v":10},{"$f":"[1]ACS_16_5YR_B17001_with_ann!BE66","v":16},{"$f":"[1]ACS_16_5YR_B17001_with_ann!BF66","v":9},{"$f":"[1]ACS_16_5YR_B17001_with_ann!BG66","v":14},{"$f":"[1]ACS_16_5YR_B17001_with_ann!BH66","v":30},{"$f":"[1]ACS_16_5YR_B17001_with_ann!BI66","v":23},{"$f":"[1]ACS_16_5YR_B17001_with_ann!BJ66","v":9},{"$f":"[1]ACS_16_5YR_B17001_with_ann!BK66","v":14},{"$f":"[1]ACS_16_5YR_B17001_with_ann!BL66","v":3298},{"$f":"[1]ACS_16_5YR_B17001_with_ann!BM66","v":282},{"$f":"[1]ACS_16_5YR_B17001_with_ann!BN66","v":1589},{"$f":"[1]ACS_16_5YR_B17001_with_ann!BO66","v":222},{"$f":"[1]ACS_16_5YR_B17001_with_ann!BP66","v":49},{"$f":"[1]ACS_16_5YR_B17001_with_ann!BQ66","v":45},{"$f":"[1]ACS_16_5YR_B17001_with_ann!BR66","v":28},{"$f":"[1]ACS_16_5YR_B17001_with_ann!BS66","v":41},{"$f":"[1]ACS_16_5YR_B17001_with_ann!BT66","v":82},{"$f":"[1]ACS_16_5YR_B17001_with_ann!BU66","v":64},{"$f":"[1]ACS_16_5YR_B17001_with_ann!BV66","v":54},{"$f":"[1]ACS_16_5YR_B17001_with_ann!BW66","v":37},{"$f":"[1]ACS_16_5YR_B17001_with_ann!BX66","v":19},{"$f":"[1]ACS_16_5YR_B17001_with_ann!BY66","v":32},{"$f":"[1]ACS_16_5YR_B17001_with_ann!BZ66","v":49},{"$f":"[1]ACS_16_5YR_B17001_with_ann!CA66","v":45},{"$f":"[1]ACS_16_5YR_B17001_with_ann!CB66","v":103},{"$f":"[1]ACS_16_5YR_B17001_with_ann!CC66","v":59},{"$f":"[1]ACS_16_5YR_B17001_with_ann!CD66","v":222},{"$f":"[1]ACS_16_5YR_B17001_with_ann!CE66","v":105},{"$f":"[1]ACS_16_5YR_B17001_with_ann!CF66","v":182},{"$f":"[1]ACS_16_5YR_B17001_with_ann!CG66","v":83},{"$f":"[1]ACS_16_5YR_B17001_with_ann!CH66","v":156},{"$f":"[1]ACS_16_5YR_B17001_with_ann!CI66","v":65},{"$f":"[1]ACS_16_5YR_B17001_with_ann!CJ66","v":420},{"$f":"[1]ACS_16_5YR_B17001_with_ann!CK66","v":105},{"$f":"[1]ACS_16_5YR_B17001_with_ann!CL66","v":167},{"$f":"[1]ACS_16_5YR_B17001_with_ann!CM66","v":67},{"$f":"[1]ACS_16_5YR_B17001_with_ann!CN66","v":58},{"$f":"[1]ACS_16_5YR_B17001_with_ann!CO66","v":32},{"$f":"[1]ACS_16_5YR_B17001_with_ann!CP66","v":1709},{"$f":"[1]ACS_16_5YR_B17001_with_ann!CQ66","v":223},{"$f":"[1]ACS_16_5YR_B17001_with_ann!CR66","v":82},{"$f":"[1]ACS_16_5YR_B17001_with_ann!CS66","v":66},{"$f":"[1]ACS_16_5YR_B17001_with_ann!CT66","v":30},{"$f":"[1]ACS_16_5YR_B17001_with_ann!CU66","v":36},{"$f":"[1]ACS_16_5YR_B17001_with_ann!CV66","v":58},{"$f":"[1]ACS_16_5YR_B17001_with_ann!CW66","v":53},{"$f":"[1]ACS_16_5YR_B17001_with_ann!CX66","v":54},{"$f":"[1]ACS_16_5YR_B17001_with_ann!CY66","v":78},{"$f":"[1]ACS_16_5YR_B17001_with_ann!CZ66","v":27},{"$f":"[1]ACS_16_5YR_B17001_with_ann!DA66","v":40},{"$f":"[1]ACS_16_5YR_B17001_with_ann!DB66","v":60},{"$f":"[1]ACS_16_5YR_B17001_with_ann!DC66","v":65},{"$f":"[1]ACS_16_5YR_B17001_with_ann!DD66","v":193},{"$f":"[1]ACS_16_5YR_B17001_with_ann!DE66","v":133},{"$f":"[1]ACS_16_5YR_B17001_with_ann!DF66","v":180},{"$f":"[1]ACS_16_5YR_B17001_with_ann!DG66","v":97},{"$f":"[1]ACS_16_5YR_B17001_with_ann!DH66","v":245},{"$f":"[1]ACS_16_5YR_B17001_with_ann!DI66","v":96},{"$f":"[1]ACS_16_5YR_B17001_with_ann!DJ66","v":168},{"$f":"[1]ACS_16_5YR_B17001_with_ann!DK66","v":61},{"$f":"[1]ACS_16_5YR_B17001_with_ann!DL66","v":296},{"$f":"[1]ACS_16_5YR_B17001_with_ann!DM66","v":85},{"$f":"[1]ACS_16_5YR_B17001_with_ann!DN66","v":174},{"$f":"[1]ACS_16_5YR_B17001_with_ann!DO66","v":80},{"$f":"[1]ACS_16_5YR_B17001_with_ann!DP66","v":142},{"$f":"[1]ACS_16_5YR_B17001_with_ann!DQ66","v":65}]
[]
[]
[]
[null,null,null,null,{"$f":"$D$3","v":"Alstead"},null,{"$f":"$D$4","v":"Chesterfield"},null,{"$f":"$D$5","v":"Dublin"},null,{"$f":"$D$6","v":"Fitzwilliam"},null,{"$f":"$D$7","v":"Gilsum"},null,{"$f":"$D$8","v":"Harrisville"},null,{"$f":"$D$9","v":"Hinsdale"},null,{"$f":"$D$10","v":"Jaffrey"},null,{"$f":"$D$11","v":"Keene"},null,{"$f":"$D$12","v":"Marlborough"},null,{"$f":"$D$13","v":"Marlow"},null,{"$f":"$D$14","v":"Nelson"},null,{"$f":"$D$15","v":"Richmond"},null,{"$f":"$D$16","v":"Rindge"},null,{"$f":"$D$17","v":"Roxbury"},null,{"$f":"$D$18","v":"Stoddard"},null,{"$f":"$D$19","v":"Sullivan"},null,{"$f":"$D$20","v":"Surry"},null,{"$f":"$D$21","v":"Swanzey"},null,{"$f":"$D$22","v":"Troy"},null,{"$f":"$D$23","v":"Walpole"},null,{"$f":"$D$24","v":"Westmoreland"},null,{"$f":"$D$25","v":"Winchester"}]
[null,null,null,null,"Estimate","Margin of Error","Estimate","Margin of Error","Estimate","Margin of Error","Estimate","Margin of Error","Estimate","Margin of Error","Estimate","Margin of Error","Estimate","Margin of Error","Estimate","Margin of Error","Estimate","Margin of Error","Estimate","Margin of Error","Estimate","Margin of Error","Estimate","Margin of Error","Estimate","Margin of Error","Estimate","Margin of Error","Estimate","Margin of Error","Estimate","Margin of Error","Estimate","Margin of Error","Estimate","Margin of Error","Estimate","Margin of Error","Estimate","Margin of Error","Estimate","Margin of Error","Estimate","Margin of Error","Estimate","Margin of Error"]
[null,null,null,"Estimate!!Total:",1599,169,3577,15,1675,216,2282,370,871,144,977,197,3965,16,5291,36,20295,127,2249,391,803,175,541,104,1107,251,5461,37,264,111,1205,162,681,130,950,245,7251,64,1889,275,3651,33,1971,342,4060,58]
[null,null,null,"Estimate!!Total:!!Income in the past 12 months below poverty level:",171,78,227,212,164,89,214,100,59,35,42,25,245,198,235,156,2263,410,329,226,100,65,15,8,35,48,298,177,2,3,75,51,22,14,18,12,695,308,140,67,300,159,127,157,762,291]
[null,null,null,"Estimate!!Total:!!Income in the past 12 months below poverty level:!!Male:",50,39,140,178,86,56,87,42,27,18,24,19,130,124,59,45,1061,245,156,111,48,34,6,5,0,12,111,79,1,3,25,20,8,6,11,10,241,161,51,31,91,73,53,60,345,164]
[null,null,null,"Estimate!!Total:!!Income in the past 12 months below poverty level:!!Male:!!Under 5 years",0,12,0,12,0,12,0,12,0,12,0,12,26,38,0,17,67,74,42,57,15,22,0,12,0,12,13,23,0,12,0,12,0,12,0,12,11,21,0,12,15,25,0,12,53,44]
[null,null,null,"Estimate!!Total:!!Income in the past 12 months below poverty level:!!Male:!!5 years",0,12,0,12,0,12,0,12,0,12,0,12,0,12,19,33,1,3,0,12,3,6,0,12,0,12,0,17,0,12,4,6,0,12,0,12,0,17,0,12,0,12,0,12,0,12]
[null,null,null,"Estimate!!Total:!!Income in the past 12 months below poverty level:!!Male:!!6 to 11 years",0,12,57,74,6,6,0,12,0,12,0,12,0,12,0,17,62,64,0,12,3,4,0,12,0,12,30,35,0,12,0,12,0,12,0,12,10,16,6,9,0,12,0,12,26,30]
[null,null,null,"Estimate!!Total:!!Income in the past 12 months below poverty level:!!Male:!!12 to 14 years",0,12,30,39,4,7,0,12,0,12,0,12,7,17,0,17,12,19,31,45,3,4,0,12,0,12,0,17,0,12,0,12,0,12,0,12,0,17,0,12,0,12,0,12,8,12]
[null,null,null,"Estimate!!Total:!!Income in the past 12 months below poverty level:!!Male:!!15 years",0,12,0,12,5,6,0,12,3,5,0,12,6,24,0,17,14,24,0,12,0,12,0,12,0,12,0,17,0,12,0,12,0,12,0,12,0,17,0,12,0,12,0,12,11,18]
[null,null,null,"Estimate!!Total:!!Income in the past 12 months below poverty level:!!Male:!!16 and 17 years",0,12,0,12,9,9,10,16,0,12,0,12,6,24,0,17,50,54,9,14,0,12,0,12,0,12,0,17,0,12,0,12,0,12,0,12,0,17,0,12,0,12,0,12,0,12]
[null,null,null,"Estimate!!Total:!!Income in the past 12 months below poverty level:!!Male:!!18 to 24 years",0,12,0,12,0,12,6,9,2,4,0,12,26,40,0,17,342,174,45,46,0,12,0,12,0,12,12,20,0,12,0,12,0,12,0,12,0,17,5,9,0,12,0,12,35,46]
[null,null,null,"Estimate!!Total:!!Income in the past 12 months below poverty level:!!Male:!!25 to 34 years",28,38,53,69,0,12,0,12,4,7,0,12,10,15,7,12,208,115,0,12,4,6,2,3,0,12,18,29,1,3,2,5,0,12,0,12,71,73,5,9,8,14,0,12,28,32]
[null,null,null,"Estimate!!Total:!!Income in the past 12 months below poverty level:!!Male:!!35 to 44 years",0,12,0,12,8,12,5,8,6,9,5,7,0,12,3,10,87,77,8,12,0,12,0,12,0,12,10,18,0,12,0,12,0,12,0,12,15,25,0,12,0,12,0,12,63,47]
[null,null,null,"Estimate!!Total:!!Income in the past 12 months below poverty level:!!Male:!!45 to 54 years",4,6,0,12,7,7,23,21,9,8,7,9,43,53,1,5,38,43,7,10,5,5,0,12,0,12,0,17,0,12,9,10,0,12,4,5,0,17,0,12,0,12,5,8,14,24]
[null,null,null,"Estimate!!Total:!!Income in the past 12 months below poverty level:!!Male:!!55 to 64 years",18,12,0,12,11,13,24,27,2,3,12,15,6,11,11,16,119,79,4,7,13,14,0,12,0,12,20,27,0,12,10,13,8,6,3,4,106,121,25,25,26,33,0,12,75,96]
[null,null,null,"Estimate!!Total:!!Income in the past 12 months below poverty level:!!Male:!!65 to 74 years",0,12,0,12,34,53,10,13,0,12,0,12,0,12,0,17,61,42,10,16,0,12,4,4,0,12,8,13,0,12,0,12,0,12,0,12,28,34,6,10,21,33,8,9,26,24]
[null,null,null,"Estimate!!Total:!!Income in the past 12 months below poverty level:!!Male:!!75 years and over",0,12,0,12,2,5,9,9,1,3,0,12,0,12,18,30,0,22,0,12,2,3,0,12,0,12,0,17,0,12,0,12,0,12,4,5,0,17,4,8,21,32,40,59,6,9]
[null,null,null,"Estimate!!Total:!!Income in the past 12 months below poverty level:!!Female:",121,64,87,56,78,46,127,72,32,26,18,14,115,94,176,125,1202,296,173,130,52,33,9,6,35,48,187,107,1,2,50,34,14,11,7,7,454,218,89,47,209,125,74,99,417,171]
[null,null,null,"Estimate!!Total:!!Income in the past 12 months below poverty level:!!Female:!!Under 5 years",0,12,0,12,4,6,0,12,5,8,0,12,0,12,28,48,37,46,0,12,0,12,0,12,0,12,0,17,0,12,12,17,0,12,0,12,0,17,0,12,0,12,0,12,155,128]
[null,null,null,"Estimate!!Total:!!Income in the past 12 months below poverty level:!!Female:!!5 years",0,12,0,12,0,12,0,12,0,12,0,12,10,15,0,17,0,22,0,12,0,12,0,12,0,12,0,17,0,12,0,12,0,12,0,12,20,33,0,12,0,12,0,12,0,12]
[null,null,null,"Estimate!!Total:!!Income in the past 12 months below poverty level:!!Female:!!6 to 11 years",0,12,0,12,3,4,0,12,2,3,0,12,10,14,0,17,29,25,0,12,18,17,0,12,0,12,10,17,0,12,4,6,0,12,0,12,82,68,0,12,0,12,0,12,14,22]
[null,null,null,"Estimate!!Total:!!Income in the past 12 months below poverty level:!!Female:!!12 to 14 years",0,12,0,12,10,11,15,17,2,3,0,12,0,12,0,17,0,22,6,9,5,7,0,12,0,12,28,33,0,12,0,12,0,12,0,12,15,34,0,12,0,12,0,12,21,28]
[null,null,null,"Estimate!!Total:!!Income in the past 12 months below poverty level:!!Female:!!15 years",0,12,0,12,0,12,0,12,0,12,0,12,5,21,0,17,13,23,51,61,0,12,0,12,0,12,0,17,0,12,0,12,0,12,0,12,0,17,0,12,0,12,0,12,25,34]
[null,null,null,"Estimate!!Total:!!Income in the past 12 months below poverty level:!!Female:!!16 and 17 years",0,12,0,12,0,12,0,12,0,12,0,12,0,12,0,17,0,22,0,12,0,12,0,12,0,12,0,17,0,12,0,12,3,4,0,12,0,17,0,12,0,12,0,12,0,12]
[null,null,null,"Estimate!!Total:!!Income in the past 12 months below poverty level:!!Female:!!18 to 24 years",16,22,0,12,0,12,4,8,0,12,0,12,17,26,46,71,367,176,0,12,0,12,0,12,0,12,46,54,0,12,0,12,0,12,3,5,0,17,9,11,0,12,3,5,29,39]
[null,null,null,"Estimate!!Total:!!Income in the past 12 months below poverty level:!!Female:!!25 to 34 years",18,13,50,39,8,15,16,31,0,12,0,12,12,18,0,17,229,103,13,21,10,10,4,5,1,3,18,28,0,12,0,12,0,12,0,12,22,39,44,34,26,27,0,12,90,57]
[null,null,null,"Estimate!!Total:!!Income in the past 12 months below poverty level:!!Female:!!35 to 44 years",0,12,0,12,5,4,0,12,3,4,0,12,0,12,23,39,124,85,56,64,0,12,0,12,1,3,42,35,0,12,3,4,0,12,0,12,68,66,7,11,21,23,0,12,25,28]
[null,null,null,"Estimate!!Total:!!Income in the past 12 months below poverty level:!!Female:!!45 to 54 years",4,6,0,12,12,13,32,35,4,4,5,7,18,24,28,42,53,48,5,8,9,10,0,12,12,20,8,13,0,12,7,12,3,4,0,12,116,122,4,7,25,29,0,12,10,16]
[null,null,null,"Estimate!!Total:!!Income in the past 12 months below poverty level:!!Female:!!55 to 64 years",15,11,18,29,5,7,29,29,0,12,10,13,14,24,11,18,163,93,36,34,0,12,2,3,1,3,21,28,0,12,0,12,0,12,0,12,52,39,13,19,20,36,0,12,9,14]
[null,null,null,"Estimate!!Total:!!Income in the past 12 months below poverty level:!!Female:!!65 to 74 years",62,53,0,12,25,38,26,29,16,15,3,4,0,12,12,21,127,81,6,9,0,12,3,3,0,12,14,17,0,12,12,14,2,3,2,4,0,17,12,12,6,8,71,98,30,23]
[null,null,null,"Estimate!!Total:!!Income in the past 12 months below poverty level:!!Female:!!75 years and over",6,8,19,28,6,6,5,8,0,12,0,12,29,47,28,32,60,45,0,12,10,9,0,12,20,28,0,17,1,2,12,14,6,9,2,3,79,80,0,12,111,92,0,12,9,14]
[null,null,null,"Estimate!!Total:!!Income in the past 12 months at or above poverty level:",1428,156,3350,213,1511,201,2068,349,812,144,935,193,3720,201,5056,159,18032,425,1920,387,703,166,526,105,1072,251,5163,185,262,111,1130,167,659,130,932,246,6556,303,1749,260,3351,162,1844,296,3298,282]
[null,null,null,"Estimate!!Total:!!Income in the past 12 months at or above poverty level:!!Male:",720,111,1860,165,696,98,1116,210,425,88,437,93,1960,213,2664,225,9035,426,846,171,316,72,244,50,598,161,2619,190,103,40,567,101,334,78,377,72,3267,248,899,171,1708,149,804,144,1589,222]
[null,null,null,"Estimate!!Total:!!Income in the past 12 months at or above poverty level:!!Male:!!Under 5 years",12,11,121,74,24,19,33,23,33,23,42,33,0,12,114,89,418,105,34,32,8,13,15,8,38,31,131,99,5,5,29,16,35,30,17,13,114,96,25,22,168,87,33,31,49,45]
[null,null,null,"Estimate!!Total:!!Income in the past 12 months at or above poverty level:!!Male:!!5 years",3,4,17,26,4,6,8,13,5,7,3,4,35,38,105,72,63,48,3,5,0,12,0,12,0,12,45,42,0,12,0,12,0,12,0,12,62,40,0,12,29,28,7,6,28,41]
[null,null,null,"Estimate!!Total:!!Income in the past 12 months at or above poverty level:!!Male:!!6 to 11 years",32,20,191,85,28,16,42,19,12,10,20,15,153,78,184,78,643,141,22,16,4,5,12,9,51,28,215,95,3,5,39,25,13,8,14,10,92,76,61,45,81,74,24,19,82,64]
[null,null,null,"Estimate!!Total:!!Income in the past 12 months at or above poverty level:!!Male:!!12 to 14 years",22,13,62,50,28,20,11,10,2,3,17,21,19,22,138,95,230,84,43,31,7,6,0,12,19,14,118,78,1,2,31,19,0,12,17,14,155,92,50,33,80,53,4,6,54,37]
[null,null,null,"Estimate!!Total:!!Income in the past 12 months at or above poverty level:!!Male:!!15 years",13,13,32,36,8,10,0,12,0,12,3,5,0,12,0,17,56,51,8,14,0,12,3,6,2,4,10,18,0,12,18,16,0,12,3,4,18,31,17,27,39,49,6,7,19,32]
[null,null,null,"Estimate!!Total:!!Income in the past 12 months at or above poverty level:!!Male:!!16 and 17 years",26,27,63,79,5,9,30,25,30,29,4,6,51,79,112,92,214,106,13,16,17,20,0,12,10,10,48,47,0,12,12,15,5,7,0,12,33,52,15,22,83,85,10,10,49,45]
[null,null,null,"Estimate!!Total:!!Income in the past 12 months at or above poverty level:!!Male:!!18 to 24 years",52,34,92,68,55,28,55,34,54,36,9,10,108,83,37,54,992,239,47,38,17,13,7,11,56,42,107,63,9,11,36,19,13,11,12,16,186,155,28,20,136,91,48,35,103,59]
[null,null,null,"Estimate!!Total:!!Income in the past 12 months at or above poverty level:!!Male:!!25 to 34 years",67,39,221,108,63,45,165,80,59,32,29,17,150,90,364,177,1305,280,80,45,32,27,16,9,57,34,376,101,7,6,43,23,75,35,37,23,271,101,153,77,222,87,69,38,222,105]
[null,null,null,"Estimate!!Total:!!Income in the past 12 months at or above poverty level:!!Male:!!35 to 44 years",75,30,208,104,61,24,114,40,34,19,49,35,246,92,388,135,1240,242,119,53,33,20,29,15,38,17,274,95,6,5,56,28,27,12,59,33,362,160,152,57,133,51,25,15,182,83]
[null,null,null,"Estimate!!Total:!!Income in the past 12 months at or above poverty level:!!Male:!!45 to 54 years",98,34,124,112,130,34,213,154,51,24,28,16,298,130,443,146,1281,190,140,74,35,18,36,20,48,27,261,100,43,37,99,36,43,20,47,25,376,175,123,52,228,77,144,57,156,65]
[null,null,null,"Estimate!!Total:!!Income in the past 12 months at or above poverty level:!!Male:!!55 to 64 years",162,73,205,132,121,58,226,61,56,21,89,38,285,115,464,207,1025,235,162,57,67,31,51,23,106,42,418,103,16,12,105,34,56,18,51,21,709,187,119,46,184,84,221,81,420,105]
[null,null,null,"Estimate!!Total:!!Income in the past 12 months at or above poverty level:!!Male:!!65 to 74 years",106,42,367,125,119,36,185,51,76,29,91,28,433,236,159,87,838,144,73,33,75,38,55,22,145,100,420,109,10,6,68,17,40,17,80,34,505,186,115,47,250,74,148,50,167,67]
[null,null,null,"Estimate!!Total:!!Income in the past 12 months at or above poverty level:!!Male:!!75 years and over",52,33,157,80,50,26,34,17,13,9,53,20,182,113,156,99,730,148,102,43,21,12,20,10,28,16,196,97,3,3,31,15,27,14,40,20,384,157,41,28,75,39,65,26,58,32]
[null,null,null,"Estimate!!Total:!!Income in the past 12 months at or above poverty level:!!Female:",708,84,1490,161,815,126,952,172,387,72,498,110,1760,224,2392,248,8997,412,1074,255,387,109,282,66,474,116,2544,206,159,78,563,90,325,65,555,203,3289,284,850,129,1643,210,1040,195,1709,223]
[null,null,null,"Estimate!!Total:!!Income in the past 12 months at or above poverty level:!!Female:!!Under 5 years",20,19,20,30,53,32,40,44,21,15,8,8,58,46,0,17,345,108,140,107,19,19,7,7,10,14,116,74,2,3,17,15,28,18,47,47,110,82,106,55,144,82,47,41,82,66]
[null,null,null,"Estimate!!Total:!!Income in the past 12 months at or above poverty level:!!Female:!!5 years",0,12,0,12,2,3,7,9,7,8,5,6,34,28,19,27,48,39,11,12,0,12,1,3,2,3,32,61,1,2,0,12,2,3,2,3,40,56,26,24,31,31,0,12,30,36]
[null,null,null,"Estimate!!Total:!!Income in the past 12 months at or above poverty level:!!Female:!!6 to 11 years",46,23,89,58,55,18,43,29,25,28,43,37,86,56,249,92,289,118,22,19,55,44,30,22,34,25,268,133,2,3,35,20,23,12,54,57,177,93,53,35,79,51,114,68,58,53]
[null,null,null,"Estimate!!Total:!!Income in the past 12 months at or above poverty level:!!Female:!!12 to 14 years",25,18,55,46,44,21,36,24,0,12,0,12,45,44,185,101,288,106,28,23,27,17,0,12,12,11,59,42,0,12,38,21,0,12,31,26,128,95,4,6,89,57,39,25,54,78]
[null,null,null,"Estimate!!Total:!!Income in the past 12 months at or above poverty level:!!Female:!!15 years",12,11,0,12,16,17,0,12,2,3,0,12,33,46,99,75,114,74,9,12,8,8,0,12,0,12,32,54,0,12,0,12,2,4,5,5,92,83,12,15,7,13,18,17,27,40]
[null,null,null,"Estimate!!Total:!!Income in the past 12 months at or above poverty level:!!Female:!!16 and 17 years",17,12,0,12,19,14,5,7,0,12,4,6,2,8,65,60,189,109,71,50,3,4,8,12,10,9,14,19,2,4,12,7,0,12,3,3,48,46,18,22,81,62,9,12,60,65]
[null,null,null,"Estimate!!Total:!!Income in the past 12 months at or above poverty level:!!Female:!!18 to 24 years",22,30,54,55,15,14,40,33,41,23,27,23,184,133,111,109,692,231,30,31,21,16,10,13,38,39,152,71,58,58,23,17,14,10,19,13,108,78,40,33,60,50,56,60,193,133]
[null,null,null,"Estimate!!Total:!!Income in the past 12 months at or above poverty level:!!Female:!!25 to 34 years",61,37,219,121,22,16,91,57,54,26,62,36,93,57,150,112,1534,193,73,38,41,32,13,10,30,18,236,96,9,8,79,36,60,36,100,79,294,91,112,46,232,130,60,35,180,97]
[null,null,null,"Estimate!!Total:!!Income in the past 12 months at or above poverty level:!!Female:!!35 to 44 years",52,23,128,79,93,40,91,28,35,17,59,39,235,80,297,117,973,174,202,107,33,18,46,22,40,21,270,82,21,13,68,30,40,20,61,32,337,102,134,58,197,60,123,67,245,96]
[null,null,null,"Estimate!!Total:!!Income in the past 12 months at or above poverty level:!!Female:!!45 to 54 years",109,36,259,97,135,46,61,40,55,30,27,19,207,83,409,131,1168,239,115,51,27,19,20,15,38,21,345,102,26,24,76,26,37,17,47,31,405,150,72,36,265,81,92,37,168,61]
[null,null,null,"Estimate!!Total:!!Income in the past 12 months at or above poverty level:!!Female:!!55 to 64 years",149,56,324,148,154,77,271,71,73,24,119,42,369,98,376,154,1207,212,172,57,63,28,72,27,134,52,381,115,19,16,103,32,65,18,71,39,670,161,122,49,171,78,215,83,296,85]
[null,null,null,"Estimate!!Total:!!Income in the past 12 months at or above poverty level:!!Female:!!65 to 74 years",111,42,244,110,137,42,225,102,42,20,104,30,214,97,264,100,1173,175,114,48,67,38,45,18,69,30,417,105,13,5,74,21,38,14,70,25,587,143,89,31,176,50,144,51,174,80]
[null,null,null,"Estimate!!Total:!!Income in the past 12 months at or above poverty level:!!Female:!!75 years and over",84,45,98,71,70,51,42,26,32,14,40,22,200,156,168,90,977,202,87,42,23,15,30,21,57,28,222,107,6,6,38,16,16,10,45,20,293,112,62,38,111,51,123,45,142,65]
[]
[]
[null,null,null,null,{"$f":"$D$3","v":"Alstead"},null,{"$f":"$D$4","v":"Chesterfield"},null,{"$f":"$D$5","v":"Dublin"},null,{"$f":"$D$6","v":"Fitzwilliam"},null,{"$f":"$D$7","v":"Gilsum"},null,{"$f":"$D$8","v":"Harrisville"},null,{"$f":"$D$9","v":"Hinsdale"},null,{"$f":"$D$10","v":"Jaffrey"},null,{"$f":"$D$11","v":"Keene"},null,{"$f":"$D$12","v":"Marlborough"},null,{"$f":"$D$13","v":"Marlow"},null,{"$f":"$D$14","v":"Nelson"},null,{"$f":"$D$15","v":"Richmond"},null,{"$f":"$D$16","v":"Rindge"},null,{"$f":"$D$17","v":"Roxbury"},null,{"$f":"$D$18","v":"Stoddard"},null,{"$f":"$D$19","v":"Sullivan"},null,{"$f":"$D$20","v":"Surry"},null,{"$f":"$D$21","v":"Swanzey"},null,{"$f":"$D$22","v":"Troy"},null,{"$f":"$D$23","v":"Walpole"},null,{"$f":"$D$24","v":"Westmoreland"},null,{"$f":"$D$25","v":"Winchester"}]
[null,null,null,null,"Estimate","Margin of Error","Estimate","Margin of Error","Estimate","Margin of Error","Estimate","Margin of Error","Estimate","Margin of Error","Estimate","Margin of Error","Estimate","Margin of Error","Estimate","Margin of Error","Estimate","Margin of Error","Estimate","Margin of Error","Estimate","Margin of Error","Estimate","Margin of Error","Estimate","Margin of Error","Estimate","Margin of Error","Estimate","Margin of Error","Estimate","Margin of Error","Estimate","Margin of Error","Estimate","Margin of Error","Estimate","Margin of Error","Estimate","Margin of Error","Estimate","Margin of Error","Estimate","Margin of Error","Estimate","Margin of Error"]
[null,null,null,"POPULATION FOR WHOM POVERTY STATUS IS DETERMINED: Total ",{"$f":"E31","v":1599},169,3577,15,1675,216,2282,370,871,144,977,197,3965,16,5291,36,20295,127,2249,391,803,175,{"$f":"AA31","v":541},104,1107,251,5461,37,264,111,1205,162,681,130,950,245,7251,64,1889,275,3651,33,1971,342,4060,58]
[null,null,null," Income in the past 12 months below poverty level ",{"$f":"E32","v":171},78,227,212,164,89,214,100,59,35,42,25,245,198,235,156,2263,410,329,226,100,65,{"$f":"AA32","v":15},8,35,48,298,177,2,3,75,51,22,14,18,12,695,308,140,67,300,159,127,157,762,291]
[null,null,null," Income in the past 12 months below poverty level Under 5 years ",{"$f":"E34+E48","v":0},{"$f":"ROUND((SQRT(((F34/1.645)*(F34/1.645))+((F48/1.645)*(F48/1.645))))*1.645,0)","v":17},{"$f":"G34+G48","v":0},{"$f":"ROUND((SQRT(((H34/1.645)*(H34/1.645))+((H48/1.645)*(H48/1.645))))*1.645,0)","v":17},{"$f":"I34+I48","v":4},{"$f":"ROUND((SQRT(((J34/1.645)*(J34/1.645))+((J48/1.645)*(J48/1.645))))*1.645,0)","v":13},{"$f":"K34+K48","v":0},{"$f":"ROUND((SQRT(((L34/1.645)*(L34/1.645))+((L48/1.645)*(L48/1.645))))*1.645,0)","v":17},{"$f":"M34+M48","v":5},{"$f":"ROUND((SQRT(((N34/1.645)*(N34/1.645))+((N48/1.645)*(N48/1.645))))*1.645,0)","v":14},{"$f":"O34+O48","v":0},{"$f":"ROUND((SQRT(((P34/1.645)*(P34/1.645))+((P48/1.645)*(P48/1.645))))*1.645,0)","v":17},{"$f":"Q34+Q48","v":26},{"$f":"ROUND((SQRT(((R34/1.645)*(R34/1.645))+((R48/1.645)*(R48/1.645))))*1.645,0)","v":40},{"$f":"S34+S48","v":28},{"$f":"ROUND((SQRT(((T34/1.645)*(T34/1.645))+((T48/1.645)*(T48/1.645))))*1.645,0)","v":51},{"$f":"U34+U48","v":104},{"$f":"ROUND((SQRT(((V34/1.645)*(V34/1.645))+((V48/1.645)*(V48/1.645))))*1.645,0)","v":87},{"$f":"W34+W48","v":42},{"$f":"ROUND((SQRT(((X34/1.645)*(X34/1.645))+((X48/1.645)*(X48/1.645))))*1.645,0)","v":58},{"$f":"Y34+Y48","v":15},{"$f":"ROUND((SQRT(((Z34/1.645)*(Z34/1.645))+((Z48/1.645)*(Z48/1.645))))*1.645,0)","v":25},{"$f":"AA34+AA48","v":0},{"$f":"ROUND((SQRT(((AB34/1.645)*(AB34/1.645))+((AB48/1.645)*(AB48/1.645))))*1.645,0)","v":17},{"$f":"AC34+AC48","v":0},{"$f":"ROUND((SQRT(((AD34/1.645)*(AD34/1.645))+((AD48/1.645)*(AD48/1.645))))*1.645,0)","v":17},{"$f":"AE34+AE48","v":13},{"$f":"ROUND((SQRT(((AF34/1.645)*(AF34/1.645))+((AF48/1.645)*(AF48/1.645))))*1.645,0)","v":29},{"$f":"AG34+AG48","v":0},{"$f":"ROUND((SQRT(((AH34/1.645)*(AH34/1.645))+((AH48/1.645)*(AH48/1.645))))*1.645,0)","v":17},{"$f":"AI34+AI48","v":12},{"$f":"ROUND((SQRT(((AJ34/1.645)*(AJ34/1.645))+((AJ48/1.645)*(AJ48/1.645))))*1.645,0)","v":21},{"$f":"AK34+AK48","v":0},{"$f":"ROUND((SQRT(((AL34/1.645)*(AL34/1.645))+((AL48/1.645)*(AL48/1.645))))*1.645,0)","v":17},{"$f":"AM34+AM48","v":0},{"$f":"ROUND((SQRT(((AN34/1.645)*(AN34/1.645))+((AN48/1.645)*(AN48/1.645))))*1.645,0)","v":17},{"$f":"AO34+AO48","v":11},{"$f":"ROUND((SQRT(((AP34/1.645)*(AP34/1.645))+((AP48/1.645)*(AP48/1.645))))*1.645,0)","v":27},{"$f":"AQ34+AQ48","v":0},17,{"$f":"AS34+AS48","v":15},28,{"$f":"AU34+AU48","v":0},17,{"$f":"AW34+AW48","v":208},135]
[null,null,null," Income in the past 12 months below poverty level 5 years ",{"$f":"E35+E49","v":0},{"$f":"ROUND((SQRT(((F35/1.645)*(F35/1.645))+((F49/1.645)*(F49/1.645))))*1.645,0)","v":17},{"$f":"G35+G49","v":0},17,0,17,0,17,0,17,0,17,10,19,19,37,1,22,0,17,3,13,0,17,0,17,0,24,0,17,4,13,0,17,0,17,20,37,0,17,0,17,0,17,0,17]
[null,null,null," Income in the past 12 months below poverty level 6 to 11 years ",{"$f":"E36+E50","v":0},17,57,75,9,7,0,17,2,12,0,17,10,18,0,24,91,69,0,17,21,17,0,17,0,17,40,39,0,17,4,13,0,17,0,17,92,70,6,15,0,17,0,17,40,37]
[null,null,null," Income in the past 12 months below poverty level 12 to 14 years ",0,17,30,41,14,13,15,21,2,12,0,17,7,21,0,24,12,29,37,46,8,8,0,17,0,17,28,37,0,17,0,17,0,17,0,17,15,38,0,17,0,17,0,17,29,30]
[null,null,null," Income in the past 12 months below poverty level 15 years ",0,17,0,17,5,13,0,17,3,13,0,17,11,32,0,24,27,33,51,62,0,17,0,17,0,17,0,24,0,17,0,17,0,17,0,17,0,24,0,17,0,17,0,17,36,38]
[null,null,null," Income in the past 12 months below poverty level 16 and 17 years ",0,17,0,17,9,15,10,20,0,17,0,17,6,27,0,24,50,58,9,18,0,17,0,17,0,17,0,24,0,17,0,17,3,13,0,17,0,24,0,17,0,17,0,17,0,17]
[null,null,null," Income in the past 12 months below poverty level 18 to 24 years ",16,25,0,17,0,17,10,12,2,13,0,17,43,48,46,73,709,247,45,48,0,17,0,17,0,17,58,58,0,17,0,17,0,17,3,13,0,24,14,14,0,17,3,13,64,60]
[null,null,null," Income in the past 12 months below poverty level 25 to 34 years ",46,40,103,79,8,19,16,33,4,14,0,17,22,23,7,21,437,154,13,24,14,12,6,6,1,12,36,40,1,12,2,13,0,17,0,17,93,83,49,35,34,30,0,17,118,65]
[null,null,null," Income in the past 12 months below poverty level 35 to 44 years ",0,17,0,17,13,13,5,14,9,10,5,14,0,17,26,40,211,115,64,65,0,17,0,17,1,12,52,39,0,17,3,13,0,17,0,17,83,71,7,16,21,26,0,17,88,55]
[null,null,null," Income in the past 12 months below poverty level 45 to 54 years ",8,8,0,17,19,15,55,41,13,9,12,11,61,58,29,42,91,64,12,13,14,11,0,17,12,23,8,21,0,17,16,16,3,13,4,13,116,123,4,14,25,31,5,14,24,29]
[null,null,null," Income in the past 12 months below poverty level 55 to 64 years ",33,16,18,31,16,15,53,40,2,12,22,20,20,26,22,24,282,122,40,35,13,18,2,12,1,12,41,39,0,17,10,18,8,13,3,13,158,127,38,31,46,49,0,17,84,97]
[null,null,null," Income in the past 12 months below poverty level 65 to 74 years ",62,54,0,17,59,65,36,32,16,19,3,13,0,17,12,27,188,91,16,18,0,17,7,5,0,17,22,21,0,17,12,18,2,12,2,13,28,38,18,16,27,34,79,98,56,33]
[null,null,null," Income in the past 12 months below poverty level 75 years and over ",6,14,19,30,8,8,14,12,1,12,0,17,29,49,46,44,60,50,0,17,12,9,0,17,20,30,0,24,1,12,12,18,6,15,6,6,79,82,4,14,132,97,40,60,15,17]
[null,null,null," Income in the past 12 months at or above poverty level ",{"$f":"E61","v":1428},156,3350,213,1511,201,2068,349,812,144,935,193,3720,201,5056,159,18032,425,1920,387,703,166,{"$f":"AA61","v":526},105,1072,251,5163,185,262,111,1130,167,659,130,932,246,6556,303,1749,260,3351,162,1844,296,3298,282]
[null,null,null," Income in the past 12 months at or above poverty level Under 5 years ",{"$f":"E63+E77","v":32},{"$f":"ROUND((SQRT(((F48/1.645)*(F48/1.645))+((F62/1.645)*(F62/1.645))))*1.645,0)","v":112},{"$f":"G63+G77","v":141},165,{"$f":"I63+I77","v":77},{"$f":"ROUND((SQRT(((J48/1.645)*(J48/1.645))+((J62/1.645)*(J62/1.645))))*1.645,0)","v":98},{"$f":"K63+K77","v":73},{"$f":"ROUND((SQRT(((L48/1.645)*(L48/1.645))+((L62/1.645)*(L62/1.645))))*1.645,0)","v":210},{"$f":"M63+M77","v":54},{"$f":"ROUND((SQRT(((N48/1.645)*(N48/1.645))+((N62/1.645)*(N62/1.645))))*1.645,0)","v":88},{"$f":"O63+O77","v":50},{"$f":"ROUND((SQRT(((P48/1.645)*(P48/1.645))+((P62/1.645)*(P62/1.645))))*1.645,0)","v":94},{"$f":"Q63+Q77","v":58},{"$f":"ROUND((SQRT(((R48/1.645)*(R48/1.645))+((R62/1.645)*(R62/1.645))))*1.645,0)","v":213},{"$f":"S63+S77","v":114},{"$f":"ROUND((SQRT(((T48/1.645)*(T48/1.645))+((T62/1.645)*(T62/1.645))))*1.645,0)","v":230},{"$f":"U63+U77","v":763},{"$f":"ROUND((SQRT(((V48/1.645)*(V48/1.645))+((V62/1.645)*(V62/1.645))))*1.645,0)","v":428},{"$f":"W63+W77","v":174},{"$f":"ROUND((SQRT(((X48/1.645)*(X48/1.645))+((X62/1.645)*(X62/1.645))))*1.645,0)","v":171},{"$f":"Y63+Y77","v":27},{"$f":"ROUND((SQRT(((Z48/1.645)*(Z48/1.645))+((Z62/1.645)*(Z62/1.645))))*1.645,0)","v":73},{"$f":"AA63+AA77","v":22},{"$f":"ROUND((SQRT(((AB48/1.645)*(AB48/1.645))+((AB62/1.645)*(AB62/1.645))))*1.645,0)","v":51},{"$f":"AC63+AC77","v":48},{"$f":"ROUND((SQRT(((AD48/1.645)*(AD48/1.645))+((AD62/1.645)*(AD62/1.645))))*1.645,0)","v":161},{"$f":"AE63+AE77","v":247},{"$f":"ROUND((SQRT(((AF48/1.645)*(AF48/1.645))+((AF62/1.645)*(AF62/1.645))))*1.645,0)","v":191},{"$f":"AG63+AG77","v":7},{"$f":"ROUND((SQRT(((AH48/1.645)*(AH48/1.645))+((AH62/1.645)*(AH62/1.645))))*1.645,0)","v":42},{"$f":"AI63+AI77","v":46},{"$f":"ROUND((SQRT(((AJ48/1.645)*(AJ48/1.645))+((AJ62/1.645)*(AJ62/1.645))))*1.645,0)","v":102},{"$f":"AK63+AK77","v":63},{"$f":"ROUND((SQRT(((AL48/1.645)*(AL48/1.645))+((AL62/1.645)*(AL62/1.645))))*1.645,0)","v":79},{"$f":"AM63+AM77","v":64},{"$f":"ROUND((SQRT(((AN48/1.645)*(AN48/1.645))+((AN62/1.645)*(AN62/1.645))))*1.645,0)","v":73},{"$f":"AO63+AO77","v":224},{"$f":"ROUND((SQRT(((AP48/1.645)*(AP48/1.645))+((AP62/1.645)*(AP62/1.645))))*1.645,0)","v":249},{"$f":"AQ63+AQ77","v":131},171,{"$f":"AS63+AS77","v":312},149,{"$f":"AU63+AU77","v":80},144,{"$f":"AW63+AW77","v":131},256]
[null,null,null," Income in the past 12 months at or above poverty level 5 years ",3,16,17,75,6,22,15,26,12,26,8,35,69,19,124,91,111,107,14,34,0,18,1,14,2,33,77,100,1,13,0,20,2,32,2,18,102,102,26,25,60,88,7,33,58,47]
[null,null,null," Income in the past 12 months at or above poverty level 6 to 11 years ",78,13,280,29,83,7,85,18,37,8,63,13,239,40,433,74,932,54,44,13,59,21,42,17,85,17,483,45,5,17,74,13,36,17,68,17,269,79,114,17,160,30,138,13,140,47]
[null,null,null," Income in the past 12 months at or above poverty level 12 to 14 years ",47,23,117,86,72,19,47,25,2,10,17,19,64,79,323,80,518,143,71,18,34,9,0,15,31,30,177,101,1,13,69,28,0,14,48,16,283,83,54,47,169,75,43,22,108,70]
[null,null,null," Income in the past 12 months at or above poverty level 15 years ",25,18,32,51,24,23,0,16,2,12,3,24,33,30,99,97,170,87,17,68,8,13,3,17,2,18,42,80,0,12,18,22,2,17,8,18,110,94,29,35,46,54,24,13,46,50]
[null,null,null," Income in the past 12 months at or above poverty level 16 and 17 years ",43,18,63,38,24,16,35,17,30,17,8,13,53,17,177,24,403,56,84,18,20,17,8,13,20,13,62,25,2,17,24,20,5,13,3,13,81,35,33,30,164,50,19,14,109,34]
[null,null,null," Income in the past 12 months at or above poverty level 18 to 24 years ",74,35,146,80,70,15,95,26,95,31,36,13,292,83,148,116,1684,205,77,20,38,23,17,17,94,16,259,72,67,17,59,19,27,14,31,13,294,55,68,25,196,86,104,11,296,60]
[null,null,null," Income in the past 12 months at or above poverty level 25 to 34 years ",128,36,440,78,85,32,256,46,113,38,91,16,243,85,514,57,2839,260,153,43,73,16,29,12,87,42,612,69,16,16,122,22,135,16,137,20,565,160,265,39,454,95,129,37,402,82]
[null,null,null," Income in the past 12 months at or above poverty level 35 to 44 years ",127,41,336,109,154,45,205,81,69,32,108,21,481,91,685,181,2213,293,321,78,66,30,75,15,78,34,544,107,27,13,124,23,67,37,120,26,699,121,286,78,330,90,148,40,427,109]
[null,null,null," Income in the past 12 months at or above poverty level 45 to 54 years ",207,31,383,105,265,27,274,53,106,19,55,36,505,95,852,141,2449,247,255,54,62,22,56,19,86,26,606,96,69,13,175,30,80,13,94,35,781,201,195,57,493,59,236,19,324,85]
[null,null,null," Income in the past 12 months at or above poverty level 55 to 64 years ",311,36,529,116,275,35,497,157,129,27,208,21,654,132,840,147,2232,212,334,81,130,22,123,20,240,27,799,104,35,39,208,38,121,23,122,28,1379,179,241,55,355,85,436,58,716,66]
[null,null,null," Income in the past 12 months at or above poverty level 65 to 74 years ",217,90,611,133,256,69,410,68,118,26,195,38,647,116,423,208,2011,249,187,58,142,33,100,23,214,44,837,104,23,17,142,37,78,18,150,21,1092,188,204,48,426,84,292,127,341,107]
[null,null,null," Income in the past 12 months at or above poverty level 75 years and over ",136,43,255,128,120,36,76,52,45,31,93,30,382,241,324,93,1707,151,189,35,44,39,50,25,85,104,418,110,9,6,69,22,43,19,85,34,677,202,103,49,186,118,188,51,200,68]

{"sheet":"SDataB17010FamilyPovertyStatus","index":29,"n_rows":71,"n_cols":86,"rows_kept":71,"cut":false,"hidden":true,"merged":[[0,82,0,82],[0,83,0,83],[0,84,0,84],[0,85,0,85],[0,76,0,76],[0,77,0,77],[0,78,0,78],[0,79,0,79],[0,80,0,80],[0,81,0,81],[0,75,0,75],[0,64,0,64],[0,65,0,65],[0,66,0,66],[0,67,0,67],[0,68,0,68],[0,69,0,69],[0,70,0,70],[0,71,0,71],[0,72,0,72],[0,73,0,73],[0,74,0,74],[0,63,0,63],[0,52,0,52],[0,53,0,53],[0,54,0,54],[0,55,0,55],[0,56,0,56],[0,57,0,57],[0,58,0,58],[0,59,0,59],[0,60,0,60],[0,61,0,61],[0,62,0,62],[0,51,0,51],[0,46,0,46],[0,47,0,47],[0,48,0,48],[0,49,0,49],[0,50,0,50]]}
["GEO_ID","GEO_ID2","SUMLEVEL","GEO_NAME",{"$f":"[1]ACS_16_5YR_B17010_with_ann!D1","v":"B17010_001E"},{"$f":"[1]ACS_16_5YR_B17010_with_ann!E1","v":"B17010_001M"},{"$f":"[1]ACS_16_5YR_B17010_with_ann!F1","v":"B17010_002E"},{"$f":"[1]ACS_16_5YR_B17010_with_ann!G1","v":"B17010_002M"},{"$f":"[1]ACS_16_5YR_B17010_with_ann!H1","v":"B17010_003E"},{"$f":"[1]ACS_16_5YR_B17010_with_ann!I1","v":"B17010_003M"},{"$f":"[1]ACS_16_5YR_B17010_with_ann!J1","v":"B17010_004E"},{"$f":"[1]ACS_16_5YR_B17010_with_ann!K1","v":"B17010_004M"},{"$f":"[1]ACS_16_5YR_B17010_with_ann!L1","v":"B17010_005E"},{"$f":"[1]ACS_16_5YR_B17010_with_ann!M1","v":"B17010_005M"},{"$f":"[1]ACS_16_5YR_B17010_with_ann!N1","v":"B17010_006E"},{"$f":"[1]ACS_16_5YR_B17010_with_ann!O1","v":"B17010_006M"},{"$f":"[1]ACS_16_5YR_B17010_with_ann!P1","v":"B17010_007E"},{"$f":"[1]ACS_16_5YR_B17010_with_ann!Q1","v":"B17010_007M"},{"$f":"[1]ACS_16_5YR_B17010_with_ann!R1","v":"B17010_008E"},{"$f":"[1]ACS_16_5YR_B17010_with_ann!S1","v":"B17010_008M"},{"$f":"[1]ACS_16_5YR_B17010_with_ann!T1","v":"B17010_009E"},{"$f":"[1]ACS_16_5YR_B17010_with_ann!U1","v":"B17010_009M"},{"$f":"[1]ACS_16_5YR_B17010_with_ann!V1","v":"B17010_010E"},{"$f":"[1]ACS_16_5YR_B17010_with_ann!W1","v":"B17010_010M"},{"$f":"[1]ACS_16_5YR_B17010_with_ann!X1","v":"B17010_011E"},{"$f":"[1]ACS_16_5YR_B17010_with_ann!Y1","v":"B17010_011M"},{"$f":"[1]ACS_16_5YR_B17010_with_ann!Z1","v":"B17010_012E"},{"$f":"[1]ACS_16_5YR_B17010_with_ann!AA1","v":"B17010_012M"},{"$f":"[1]ACS_16_5YR_B17010_with_ann!AB1","v":"B17010_013E"},{"$f":"[1]ACS_16_5YR_B17010_with_ann!AC1","v":"B17010_013M"},{"$f":"[1]ACS_16_5YR_B17010_with_ann!AD1","v":"B17010_014E"},{"$f":"[1]ACS_16_5YR_B17010_with_ann!AE1","v":"B17010_014M"},{"$f":"[1]ACS_16_5YR_B17010_with_ann!AF1","v":"B17010_015E"},{"$f":"[1]ACS_16_5YR_B17010_with_ann!AG1","v":"B17010_015M"},{"$f":"[1]ACS_16_5YR_B17010_with_ann!AH1","v":"B17010_016E"},{"$f":"[1]ACS_16_5YR_B17010_with_ann!AI1","v":"B17010_016M"},{"$f":"[1]ACS_16_5YR_B17010_with_ann!AJ1","v":"B17010_017E"},{"$f":"[1]ACS_16_5YR_B17010_with_ann!AK1","v":"B17010_017M"},{"$f":"[1]ACS_16_5YR_B17010_with_ann!AL1","v":"B17010_018E"},{"$f":"[1]ACS_16_5YR_B17010_with_ann!AM1","v":"B17010_018M"},{"$f":"[1]ACS_16_5YR_B17010_with_ann!AN1","v":"B17010_019E"},{"$f":"[1]ACS_16_5YR_B17010_with_ann!AO1","v":"B17010_019M"},{"$f":"[1]ACS_16_5YR_B17010_with_ann!AP1","v":"B17010_020E"},{"$f":"[1]ACS_16_5YR_B17010_with_ann!AQ1","v":"B17010_020M"},{"$f":"[1]ACS_16_5YR_B17010_with_ann!AR1","v":"B17010_021E"},{"$f":"[1]ACS_16_5YR_B17010_with_ann!AS1","v":"B17010_021M"},{"$f":"[1]ACS_16_5YR_B17010_with_ann!AT1","v":"B17010_022E"},{"$f":"[1]ACS_16_5YR_B17010_with_ann!AU1","v":"B17010_022M"},{"$f":"[1]ACS_16_5YR_B17010_with_ann!AV1","v":"B17010_023E"},{"$f":"[1]ACS_16_5YR_B17010_with_ann!AW1","v":"B17010_023M"},{"$f":"[1]ACS_16_5YR_B17010_with_ann!AX1","v":"B17010_024E"},{"$f":"[1]ACS_16_5YR_B17010_with_ann!AY1","v":"B17010_024M"},{"$f":"[1]ACS_16_5YR_B17010_with_ann!AZ1","v":"B17010_025E"},{"$f":"[1]ACS_16_5YR_B17010_with_ann!BA1","v":"B17010_025M"},{"$f":"[1]ACS_16_5YR_B17010_with_ann!BB1","v":"B17010_026E"},{"$f":"[1]ACS_16_5YR_B17010_with_ann!BC1","v":"B17010_026M"},{"$f":"[1]ACS_16_5YR_B17010_with_ann!BD1","v":"B17010_027E"},{"$f":"[1]ACS_16_5YR_B17010_with_ann!BE1","v":"B17010_027M"},{"$f":"[1]ACS_16_5YR_B17010_with_ann!BF1","v":"B17010_028E"},{"$f":"[1]ACS_16_5YR_B17010_with_ann!BG1","v":"B17010_028M"},{"$f":"[1]ACS_16_5YR_B17010_with_ann!BH1","v":"B17010_029E"},{"$f":"[1]ACS_16_5YR_B17010_with_ann!BI1","v":"B17010_029M"},{"$f":"[1]ACS_16_5YR_B17010_with_ann!BJ1","v":"B17010_030E"},{"$f":"[1]ACS_16_5YR_B17010_with_ann!BK1","v":"B17010_030M"},{"$f":"[1]ACS_16_5YR_B17010_with_ann!BL1","v":"B17010_031E"},{"$f":"[1]ACS_16_5YR_B17010_with_ann!BM1","v":"B17010_031M"},{"$f":"[1]ACS_16_5YR_B17010_with_ann!BN1","v":"B17010_032E"},{"$f":"[1]ACS_16_5YR_B17010_with_ann!BO1","v":"B17010_032M"},{"$f":"[1]ACS_16_5YR_B17010_with_ann!BP1","v":"B17010_033E"},{"$f":"[1]ACS_16_5YR_B17010_with_ann!BQ1","v":"B17010_033M"},{"$f":"[1]ACS_16_5YR_B17010_with_ann!BR1","v":"B17010_034E"},{"$f":"[1]ACS_16_5YR_B17010_with_ann!BS1","v":"B17010_034M"},{"$f":"[1]ACS_16_5YR_B17010_with_ann!BT1","v":"B17010_035E"},{"$f":"[1]ACS_16_5YR_B17010_with_ann!BU1","v":"B17010_035M"},{"$f":"[1]ACS_16_5YR_B17010_with_ann!BV1","v":"B17010_036E"},{"$f":"[1]ACS_16_5YR_B17010_with_ann!BW1","v":"B17010_036M"},{"$f":"[1]ACS_16_5YR_B17010_with_ann!BX1","v":"B17010_037E"},{"$f":"[1]ACS_16_5YR_B17010_with_ann!BY1","v":"B17010_037M"},{"$f":"[1]ACS_16_5YR_B17010_with_ann!BZ1","v":"B17010_038E"},{"$f":"[1]ACS_16_5YR_B17010_with_ann!CA1","v":"B17010_038M"},{"$f":"[1]ACS_16_5YR_B17010_with_ann!CB1","v":"B17010_039E"},{"$f":"[1]ACS_16_5YR_B17010_with_ann!CC1","v":"B17010_039M"},{"$f":"[1]ACS_16_5YR_B17010_with_ann!CD1","v":"B17010_040E"},{"$f":"[1]ACS_16_5YR_B17010_with_ann!CE1","v":"B17010_040M"},{"$f":"[1]ACS_16_5YR_B17010_with_ann!CF1","v":"B17010_041E"},{"$f":"[1]ACS_16_5YR_B17010_with_ann!CG1","v":"B17010_041M"}]
["Geography Identifier","Geography Identifier","Geographic Summary Level","Geography",{"$f":"[1]ACS_16_5YR_B17010_with_ann!D2","v":"Estimate!!Total:"},{"$f":"[1]ACS_16_5YR_B17010_with_ann!E2","v":"Margin of Error!!Total:"},{"$f":"[1]ACS_16_5YR_B17010_with_ann!F2","v":"Estimate!!Total:!!Income in the past 12 months below poverty level:"},{"$f":"[1]ACS_16_5YR_B17010_with_ann!G2","v":"Margin of Error!!Total:!!Income in the past 12 months below poverty level:"},{"$f":"[1]ACS_16_5YR_B17010_with_ann!H2","v":"Estimate!!Total:!!Income in the past 12 months below poverty level:!!Married-couple family:"},{"$f":"[1]ACS_16_5YR_B17010_with_ann!I2","v":"Margin of Error!!Total:!!Income in the past 12 months below poverty level:!!Married-couple family:"},{"$f":"[1]ACS_16_5YR_B17010_with_ann!J2","v":"Estimate!!Total:!!Income in the past 12 months below poverty level:!!Married-couple family:!!With related children of the householder under 18 years:"},{"$f":"[1]ACS_16_5YR_B17010_with_ann!K2","v":"Margin of Error!!Total:!!Income in the past 12 months below poverty level:!!Married-couple family:!!With related children of the householder under 18 years:"},{"$f":"[1]ACS_16_5YR_B17010_with_ann!L2","v":"Estimate!!Total:!!Income in the past 12 months below poverty level:!!Married-couple family:!!With related children of the householder under 18 years:!!Under 5 years only"},{"$f":"[1]ACS_16_5YR_B17010_with_ann!M2","v":"Margin of Error!!Total:!!Income in the past 12 months below poverty level:!!Married-couple family:!!With related children of the householder under 18 years:!!Under 5 years only"},{"$f":"[1]ACS_16_5YR_B17010_with_ann!N2","v":"Estimate!!Total:!!Income in the past 12 months below poverty level:!!Married-couple family:!!With related children of the householder under 18 years:!!Under 5 years and 5 to 17 years"},{"$f":"[1]ACS_16_5YR_B17010_with_ann!O2","v":"Margin of Error!!Total:!!Income in the past 12 months below poverty level:!!Married-couple family:!!With related children of the householder under 18 years:!!Under 5 years and 5 to 17 years"},{"$f":"[1]ACS_16_5YR_B17010_with_ann!P2","v":"Estimate!!Total:!!Income in the past 12 months below poverty level:!!Married-couple family:!!With related children of the householder under 18 years:!!5 to 17 years only"},{"$f":"[1]ACS_16_5YR_B17010_with_ann!Q2","v":"Margin of Error!!Total:!!Income in the past 12 months below poverty level:!!Married-couple family:!!With related children of the householder under 18 years:!!5 to 17 years only"},{"$f":"[1]ACS_16_5YR_B17010_with_ann!R2","v":"Estimate!!Total:!!Income in the past 12 months below poverty level:!!Married-couple family:!!No related children of the householder under 18 years"},{"$f":"[1]ACS_16_5YR_B17010_with_ann!S2","v":"Margin of Error!!Total:!!Income in the past 12 months below poverty level:!!Married-couple family:!!No related children of the householder under 18 years"},{"$f":"[1]ACS_16_5YR_B17010_with_ann!T2","v":"Estimate!!Total:!!Income in the past 12 months below poverty level:!!Other family:"},{"$f":"[1]ACS_16_5YR_B17010_with_ann!U2","v":"Margin of Error!!Total:!!Income in the past 12 months below poverty level:!!Other family:"},{"$f":"[1]ACS_16_5YR_B17010_with_ann!V2","v":"Estimate!!Total:!!Income in the past 12 months below poverty level:!!Other family:!!Male householder, no spouse present:"},{"$f":"[1]ACS_16_5YR_B17010_with_ann!W2","v":"Margin of Error!!Total:!!Income in the past 12 months below poverty level:!!Other family:!!Male householder, no spouse present:"},{"$f":"[1]ACS_16_5YR_B17010_with_ann!X2","v":"Estimate!!Total:!!Income in the past 12 months below poverty level:!!Other family:!!Male householder, no spouse present:!!With related children of the householder under 18 years:"},{"$f":"[1]ACS_16_5YR_B17010_with_ann!Y2","v":"Margin of Error!!Total:!!Income in the past 12 months below poverty level:!!Other family:!!Male householder, no spouse present:!!With related children of the householder under 18 years:"},{"$f":"[1]ACS_16_5YR_B17010_with_ann!Z2","v":"Estimate!!Total:!!Income in the past 12 months below poverty level:!!Other family:!!Male householder, no spouse present:!!With related children of the householder under 18 years:!!Under 5 years only"},{"$f":"[1]ACS_16_5YR_B17010_with_ann!AA2","v":"Margin of Error!!Total:!!Income in the past 12 months below poverty level:!!Other family:!!Male householder, no spouse present:!!With related children of the householder under 18 years:!!Under 5 years only"},{"$f":"[1]ACS_16_5YR_B17010_with_ann!AB2","v":"Estimate!!Total:!!Income in the past 12 months below poverty level:!!Other family:!!Male householder, no spouse present:!!With related children of the householder under 18 years:!!Under 5 years and 5 to 17 years"},{"$f":"[1]ACS_16_5YR_B17010_with_ann!AC2","v":"Margin of Error!!Total:!!Income in the past 12 months below poverty level:!!Other family:!!Male householder, no spouse present:!!With related children of the householder under 18 years:!!Under 5 years and 5 to 17 years"},{"$f":"[1]ACS_16_5YR_B17010_with_ann!AD2","v":"Estimate!!Total:!!Income in the past 12 months below poverty level:!!Other family:!!Male householder, no spouse present:!!With related children of the householder under 18 years:!!5 to 17 years only"},{"$f":"[1]ACS_16_5YR_B17010_with_ann!AE2","v":"Margin of Error!!Total:!!Income in the past 12 months below poverty level:!!Other family:!!Male householder, no spouse present:!!With related children of the householder under 18 years:!!5 to 17 years only"},{"$f":"[1]ACS_16_5YR_B17010_with_ann!AF2","v":"Estimate!!Total:!!Income in the past 12 months below poverty level:!!Other family:!!Male householder, no spouse present:!!No related children of the householder under 18 years"},{"$f":"[1]ACS_16_5YR_B17010_with_ann!AG2","v":"Margin of Error!!Total:!!Income in the past 12 months below poverty level:!!Other family:!!Male householder, no spouse present:!!No related children of the householder under 18 years"},{"$f":"[1]ACS_16_5YR_B17010_with_ann!AH2","v":"Estimate!!Total:!!Income in the past 12 months below poverty level:!!Other family:!!Female householder, no spouse present:"},{"$f":"[1]ACS_16_5YR_B17010_with_ann!AI2","v":"Margin of Error!!Total:!!Income in the past 12 months below poverty level:!!Other family:!!Female householder, no spouse present:"},{"$f":"[1]ACS_16_5YR_B17010_with_ann!AJ2","v":"Estimate!!Total:!!Income in the past 12 months below poverty level:!!Other family:!!Female householder, no spouse present:!!With related children of the householder under 18 years:"},{"$f":"[1]ACS_16_5YR_B17010_with_ann!AK2","v":"Margin of Error!!Total:!!Income in the past 12 months below poverty level:!!Other family:!!Female householder, no spouse present:!!With related children of the householder under 18 years:"},{"$f":"[1]ACS_16_5YR_B17010_with_ann!AL2","v":"Estimate!!Total:!!Income in the past 12 months below poverty level:!!Other family:!!Female householder, no spouse present:!!With related children of the householder under 18 years:!!Under 5 years only"},{"$f":"[1]ACS_16_5YR_B17010_with_ann!AM2","v":"Margin of Error!!Total:!!Income in the past 12 months below poverty level:!!Other family:!!Female householder, no spouse present:!!With related children of the householder under 18 years:!!Under 5 years only"},{"$f":"[1]ACS_16_5YR_B17010_with_ann!AN2","v":"Estimate!!Total:!!Income in the past 12 months below poverty level:!!Other family:!!Female householder, no spouse present:!!With related children of the householder under 18 years:!!Under 5 years and 5 to 17 years"},{"$f":"[1]ACS_16_5YR_B17010_with_ann!AO2","v":"Margin of Error!!Total:!!Income in the past 12 months below poverty level:!!Other family:!!Female householder, no spouse present:!!With related children of the householder under 18 years:!!Under 5 years and 5 to 17 years"},{"$f":"[1]ACS_16_5YR_B17010_with_ann!AP2","v":"Estimate!!Total:!!Income in the past 12 months below poverty level:!!Other family:!!Female householder, no spouse present:!!With related children of the householder under 18 years:!!5 to 17 years only"},{"$f":"[1]ACS_16_5YR_B17010_with_ann!AQ2","v":"Margin of Error!!Total:!!Income in the past 12 months below poverty level:!!Other family:!!Female householder, no spouse present:!!With related children of the householder under 18 years:!!5 to 17 years only"},{"$f":"[1]ACS_16_5YR_B17010_with_ann!AR2","v":"Estimate!!Total:!!Income in the past 12 months below poverty level:!!Other family:!!Female householder, no spouse present:!!No related children of the householder under 18 years"},{"$f":"[1]ACS_16_5YR_B17010_with_ann!AS2","v":"Margin of Error!!Total:!!Income in the past 12 months below poverty level:!!Other family:!!Female householder, no spouse present:!!No related children of the householder under 18 years"},{"$f":"[1]ACS_16_5YR_B17010_with_ann!AT2","v":"Estimate!!Total:!!Income in the past 12 months at or above poverty level:"},{"$f":"[1]ACS_16_5YR_B17010_with_ann!AU2","v":"Margin of Error!!Total:!!Income in the past 12 months at or above poverty level:"},{"$f":"[1]ACS_16_5YR_B17010_with_ann!AV2","v":"Estimate!!Total:!!Income in the past 12 months at or above poverty level:!!Married-couple family:"},{"$f":"[1]ACS_16_5YR_B17010_with_ann!AW2","v":"Margin of Error!!Total:!!Income in the past 12 months at or above poverty level:!!Married-couple family:"},{"$f":"[1]ACS_16_5YR_B17010_with_ann!AX2","v":"Estimate!!Total:!!Income in the past 12 months at or above poverty level:!!Married-couple family:!!With related children of the householder under 18 years:"},{"$f":"[1]ACS_16_5YR_B17010_with_ann!AY2","v":"Margin of Error!!Total:!!Income in the past 12 months at or above poverty level:!!Married-couple family:!!With related children of the householder under 18 years:"},{"$f":"[1]ACS_16_5YR_B17010_with_ann!AZ2","v":"Estimate!!Total:!!Income in the past 12 months at or above poverty level:!!Married-couple family:!!With related children of the householder under 18 years:!!Under 5 years only"},{"$f":"[1]ACS_16_5YR_B17010_with_ann!BA2","v":"Margin of Error!!Total:!!Income in the past 12 months at or above poverty level:!!Married-couple family:!!With related children of the householder under 18 years:!!Under 5 years only"},{"$f":"[1]ACS_16_5YR_B17010_with_ann!BB2","v":"Estimate!!Total:!!Income in the past 12 months at or above poverty level:!!Married-couple family:!!With related children of the householder under 18 years:!!Under 5 years and 5 to 17 years"},{"$f":"[1]ACS_16_5YR_B17010_with_ann!BC2","v":"Margin of Error!!Total:!!Income in the past 12 months at or above poverty level:!!Married-couple family:!!With related children of the householder under 18 years:!!Under 5 years and 5 to 17 years"},{"$f":"[1]ACS_16_5YR_B17010_with_ann!BD2","v":"Estimate!!Total:!!Income in the past 12 months at or above poverty level:!!Married-couple family:!!With related children of the householder under 18 years:!!5 to 17 years only"},{"$f":"[1]ACS_16_5YR_B17010_with_ann!BE2","v":"Margin of Error!!Total:!!Income in the past 12 months at or above poverty level:!!Married-couple family:!!With related children of the householder under 18 years:!!5 to 17 years only"},{"$f":"[1]ACS_16_5YR_B17010_with_ann!BF2","v":"Estimate!!Total:!!Income in the past 12 months at or above poverty level:!!Married-couple family:!!No related children of the householder under 18 years"},{"$f":"[1]ACS_16_5YR_B17010_with_ann!BG2","v":"Margin of Error!!Total:!!Income in the past 12 months at or above poverty level:!!Married-couple family:!!No related children of the householder under 18 years"},{"$f":"[1]ACS_16_5YR_B17010_with_ann!BH2","v":"Estimate!!Total:!!Income in the past 12 months at or above poverty level:!!Other family:"},{"$f":"[1]ACS_16_5YR_B17010_with_ann!BI2","v":"Margin of Error!!Total:!!Income in the past 12 months at or above poverty level:!!Other family:"},{"$f":"[1]ACS_16_5YR_B17010_with_ann!BJ2","v":"Estimate!!Total:!!Income in the past 12 months at or above poverty level:!!Other family:!!Male householder, no spouse present:"},{"$f":"[1]ACS_16_5YR_B17010_with_ann!BK2","v":"Margin of Error!!Total:!!Income in the past 12 months at or above poverty level:!!Other family:!!Male householder, no spouse present:"},{"$f":"[1]ACS_16_5YR_B17010_with_ann!BL2","v":"Estimate!!Total:!!Income in the past 12 months at or above poverty level:!!Other family:!!Male householder, no spouse present:!!With related children of the householder under 18 years:"},{"$f":"[1]ACS_16_5YR_B17010_with_ann!BM2","v":"Margin of Error!!Total:!!Income in the past 12 months at or above poverty level:!!Other family:!!Male householder, no spouse present:!!With related children of the householder under 18 years:"},{"$f":"[1]ACS_16_5YR_B17010_with_ann!BN2","v":"Estimate!!Total:!!Income in the past 12 months at or above poverty level:!!Other family:!!Male householder, no spouse present:!!With related children of the householder under 18 years:!!Under 5 years only"},{"$f":"[1]ACS_16_5YR_B17010_with_ann!BO2","v":"Margin of Error!!Total:!!Income in the past 12 months at or above poverty level:!!Other family:!!Male householder, no spouse present:!!With related children of the householder under 18 years:!!Under 5 years only"},{"$f":"[1]ACS_16_5YR_B17010_with_ann!BP2","v":"Estimate!!Total:!!Income in the past 12 months at or above poverty level:!!Other family:!!Male householder, no spouse present:!!With related children of the householder under 18 years:!!Under 5 years and 5 to 17 years"},{"$f":"[1]ACS_16_5YR_B17010_with_ann!BQ2","v":"Margin of Error!!Total:!!Income in the past 12 months at or above poverty level:!!Other family:!!Male householder, no spouse present:!!With related children of the householder under 18 years:!!Under 5 years and 5 to 17 years"},{"$f":"[1]ACS_16_5YR_B17010_with_ann!BR2","v":"Estimate!!Total:!!Income in the past 12 months at or above poverty level:!!Other family:!!Male householder, no spouse present:!!With related children of the householder under 18 years:!!5 to 17 years only"},{"$f":"[1]ACS_16_5YR_B17010_with_ann!BS2","v":"Margin of Error!!Total:!!Income in the past 12 months at or above poverty level:!!Other family:!!Male householder, no spouse present:!!With related children of the householder under 18 years:!!5 to 17 years only"},{"$f":"[1]ACS_16_5YR_B17010_with_ann!BT2","v":"Estimate!!Total:!!Income in the past 12 months at or above poverty level:!!Other family:!!Male householder, no spouse present:!!No related children of the householder under 18 years"},{"$f":"[1]ACS_16_5YR_B17010_with_ann!BU2","v":"Margin of Error!!Total:!!Income in the past 12 months at or above poverty level:!!Other family:!!Male householder, no spouse present:!!No related children of the householder under 18 years"},{"$f":"[1]ACS_16_5YR_B17010_with_ann!BV2","v":"Estimate!!Total:!!Income in the past 12 months at or above poverty level:!!Other family:!!Female householder, no spouse present:"},{"$f":"[1]ACS_16_5YR_B17010_with_ann!BW2","v":"Margin of Error!!Total:!!Income in the past 12 months at or above poverty level:!!Other family:!!Female householder, no spouse present:"},{"$f":"[1]ACS_16_5YR_B17010_with_ann!BX2","v":"Estimate!!Total:!!Income in the past 12 months at or above poverty level:!!Other family:!!Female householder, no spouse present:!!With related children of the householder under 18 years:"},{"$f":"[1]ACS_16_5YR_B17010_with_ann!BY2","v":"Margin of Error!!Total:!!Income in the past 12 months at or above poverty level:!!Other family:!!Female householder, no spouse present:!!With related children of the householder under 18 years:"},{"$f":"[1]ACS_16_5YR_B17010_with_ann!BZ2","v":"Estimate!!Total:!!Income in the past 12 months at or above poverty level:!!Other family:!!Female householder, no spouse present:!!With related children of the householder under 18 years:!!Under 5 years only"},{"$f":"[1]ACS_16_5YR_B17010_with_ann!CA2","v":"Margin of Error!!Total:!!Income in the past 12 months at or above poverty level:!!Other family:!!Female householder, no spouse present:!!With related children of the householder under 18 years:!!Under 5 years only"},{"$f":"[1]ACS_16_5YR_B17010_with_ann!CB2","v":"Estimate!!Total:!!Income in the past 12 months at or above poverty level:!!Other family:!!Female householder, no spouse present:!!With related children of the householder under 18 years:!!Under 5 years and 5 to 17 years"},{"$f":"[1]ACS_16_5YR_B17010_with_ann!CC2","v":"Margin of Error!!Total:!!Income in the past 12 months at or above poverty level:!!Other family:!!Female householder, no spouse present:!!With related children of the householder under 18 years:!!Under 5 years and 5 to 17 years"},{"$f":"[1]ACS_16_5YR_B17010_with_ann!CD2","v":"Estimate!!Total:!!Income in the past 12 months at or above poverty level:!!Other family:!!Female householder, no spouse present:!!With related children of the householder under 18 years:!!5 to 17 years only"},{"$f":"[1]ACS_16_5YR_B17010_with_ann!CE2","v":"Margin of Error!!Total:!!Income in the past 12 months at or above poverty level:!!Other family:!!Female householder, no spouse present:!!With related children of the householder under 18 years:!!5 to 17 years only"},{"$f":"[1]ACS_16_5YR_B17010_with_ann!CF2","v":"Estimate!!Total:!!Income in the past 12 months at or above poverty level:!!Other family:!!Female householder, no spouse present:!!No related children of the householder under 18 years"},{"$f":"[1]ACS_16_5YR_B17010_with_ann!CG2","v":"Margin of Error!!Total:!!Income in the past 12 months at or above poverty level:!!Other family:!!Female householder, no spouse present:!!No related children of the householder under 18 years"}]
["06000US3300500820","0600000US3300512260","060",{"$f":"[1]ACS_16_5YR_B17010_with_ann!C44","v":"Alstead"},{"$f":"[1]ACS_16_5YR_B17010_with_ann!D44","v":454},{"$f":"[1]ACS_16_5YR_B17010_with_ann!E44","v":72},{"$f":"[1]ACS_16_5YR_B17010_with_ann!F44","v":9},{"$f":"[1]ACS_16_5YR_B17010_with_ann!G44","v":9},{"$f":"[1]ACS_16_5YR_B17010_with_ann!H44","v":9},{"$f":"[1]ACS_16_5YR_B17010_with_ann!I44","v":9},{"$f":"[1]ACS_16_5YR_B17010_with_ann!J44","v":0},{"$f":"[1]ACS_16_5YR_B17010_with_ann!K44","v":12},{"$f":"[1]ACS_16_5YR_B17010_with_ann!L44","v":0},{"$f":"[1]ACS_16_5YR_B17010_with_ann!M44","v":12},{"$f":"[1]ACS_16_5YR_B17010_with_ann!N44","v":0},{"$f":"[1]ACS_16_5YR_B17010_with_ann!O44","v":12},{"$f":"[1]ACS_16_5YR_B17010_with_ann!P44","v":0},{"$f":"[1]ACS_16_5YR_B17010_with_ann!Q44","v":12},{"$f":"[1]ACS_16_5YR_B17010_with_ann!R44","v":9},{"$f":"[1]ACS_16_5YR_B17010_with_ann!S44","v":9},{"$f":"[1]ACS_16_5YR_B17010_with_ann!T44","v":0},{"$f":"[1]ACS_16_5YR_B17010_with_ann!U44","v":12},{"$f":"[1]ACS_16_5YR_B17010_with_ann!V44","v":0},{"$f":"[1]ACS_16_5YR_B17010_with_ann!W44","v":12},{"$f":"[1]ACS_16_5YR_B17010_with_ann!X44","v":0},{"$f":"[1]ACS_16_5YR_B17010_with_ann!Y44","v":12},{"$f":"[1]ACS_16_5YR_B17010_with_ann!Z44","v":0},{"$f":"[1]ACS_16_5YR_B17010_with_ann!AA44","v":12},{"$f":"[1]ACS_16_5YR_B17010_with_ann!AB44","v":0},{"$f":"[1]ACS_16_5YR_B17010_with_ann!AC44","v":12},{"$f":"[1]ACS_16_5YR_B17010_with_ann!AD44","v":0},{"$f":"[1]ACS_16_5YR_B17010_with_ann!AE44","v":12},{"$f":"[1]ACS_16_5YR_B17010_with_ann!AF44","v":0},{"$f":"[1]ACS_16_5YR_B17010_with_ann!AG44","v":12},{"$f":"[1]ACS_16_5YR_B17010_with_ann!AH44","v":0},{"$f":"[1]ACS_16_5YR_B17010_with_ann!AI44","v":12},{"$f":"[1]ACS_16_5YR_B17010_with_ann!AJ44","v":0},{"$f":"[1]ACS_16_5YR_B17010_with_ann!AK44","v":12},{"$f":"[1]ACS_16_5YR_B17010_with_ann!AL44","v":0},{"$f":"[1]ACS_16_5YR_B17010_with_ann!AM44","v":12},{"$f":"[1]ACS_16_5YR_B17010_with_ann!AN44","v":0},{"$f":"[1]ACS_16_5YR_B17010_with_ann!AO44","v":12},{"$f":"[1]ACS_16_5YR_B17010_with_ann!AP44","v":0},{"$f":"[1]ACS_16_5YR_B17010_with_ann!AQ44","v":12},{"$f":"[1]ACS_16_5YR_B17010_with_ann!AR44","v":0},{"$f":"[1]ACS_16_5YR_B17010_with_ann!AS44","v":12},{"$f":"[1]ACS_16_5YR_B17010_with_ann!AT44","v":445},{"$f":"[1]ACS_16_5YR_B17010_with_ann!AU44","v":73},{"$f":"[1]ACS_16_5YR_B17010_with_ann!AV44","v":380},{"$f":"[1]ACS_16_5YR_B17010_with_ann!AW44","v":74},{"$f":"[1]ACS_16_5YR_B17010_with_ann!AX44","v":75},{"$f":"[1]ACS_16_5YR_B17010_with_ann!AY44","v":33},{"$f":"[1]ACS_16_5YR_B17010_with_ann!AZ44","v":8},{"$f":"[1]ACS_16_5YR_B17010_with_ann!BA44","v":9},{"$f":"[1]ACS_16_5YR_B17010_with_ann!BB44","v":10},{"$f":"[1]ACS_16_5YR_B17010_with_ann!BC44","v":9},{"$f":"[1]ACS_16_5YR_B17010_with_ann!BD44","v":57},{"$f":"[1]ACS_16_5YR_B17010_with_ann!BE44","v":32},{"$f":"[1]ACS_16_5YR_B17010_with_ann!BF44","v":305},{"$f":"[1]ACS_16_5YR_B17010_with_ann!BG44","v":81},{"$f":"[1]ACS_16_5YR_B17010_with_ann!BH44","v":65},{"$f":"[1]ACS_16_5YR_B17010_with_ann!BI44","v":21},{"$f":"[1]ACS_16_5YR_B17010_with_ann!BJ44","v":13},{"$f":"[1]ACS_16_5YR_B17010_with_ann!BK44","v":11},{"$f":"[1]ACS_16_5YR_B17010_with_ann!BL44","v":9},{"$f":"[1]ACS_16_5YR_B17010_with_ann!BM44","v":9},{"$f":"[1]ACS_16_5YR_B17010_with_ann!BN44","v":0},{"$f":"[1]ACS_16_5YR_B17010_with_ann!BO44","v":12},{"$f":"[1]ACS_16_5YR_B17010_with_ann!BP44","v":5},{"$f":"[1]ACS_16_5YR_B17010_with_ann!BQ44","v":7},{"$f":"[1]ACS_16_5YR_B17010_with_ann!BR44","v":4},{"$f":"[1]ACS_16_5YR_B17010_with_ann!BS44","v":6},{"$f":"[1]ACS_16_5YR_B17010_with_ann!BT44","v":4},{"$f":"[1]ACS_16_5YR_B17010_with_ann!BU44","v":6},{"$f":"[1]ACS_16_5YR_B17010_with_ann!BV44","v":52},{"$f":"[1]ACS_16_5YR_B17010_with_ann!BW44","v":20},{"$f":"[1]ACS_16_5YR_B17010_with_ann!BX44","v":31},{"$f":"[1]ACS_16_5YR_B17010_with_ann!BY44","v":18},{"$f":"[1]ACS_16_5YR_B17010_with_ann!BZ44","v":0},{"$f":"[1]ACS_16_5YR_B17010_with_ann!CA44","v":12},{"$f":"[1]ACS_16_5YR_B17010_with_ann!CB44","v":0},{"$f":"[1]ACS_16_5YR_B17010_with_ann!CC44","v":12},{"$f":"[1]ACS_16_5YR_B17010_with_ann!CD44","v":31},{"$f":"[1]ACS_16_5YR_B17010_with_ann!CE44","v":18},{"$f":"[1]ACS_16_5YR_B17010_with_ann!CF44","v":21},{"$f":"[1]ACS_16_5YR_B17010_with_ann!CG44","v":14}]
["06000US3300512260","0600000US3300519140","060",{"$f":"[1]ACS_16_5YR_B17010_with_ann!C45","v":"Chesterfield"},{"$f":"[1]ACS_16_5YR_B17010_with_ann!D45","v":1003},{"$f":"[1]ACS_16_5YR_B17010_with_ann!E45","v":131},{"$f":"[1]ACS_16_5YR_B17010_with_ann!F45","v":33},{"$f":"[1]ACS_16_5YR_B17010_with_ann!G45","v":45},{"$f":"[1]ACS_16_5YR_B17010_with_ann!H45","v":33},{"$f":"[1]ACS_16_5YR_B17010_with_ann!I45","v":45},{"$f":"[1]ACS_16_5YR_B17010_with_ann!J45","v":33},{"$f":"[1]ACS_16_5YR_B17010_with_ann!K45","v":45},{"$f":"[1]ACS_16_5YR_B17010_with_ann!L45","v":0},{"$f":"[1]ACS_16_5YR_B17010_with_ann!M45","v":12},{"$f":"[1]ACS_16_5YR_B17010_with_ann!N45","v":0},{"$f":"[1]ACS_16_5YR_B17010_with_ann!O45","v":12},{"$f":"[1]ACS_16_5YR_B17010_with_ann!P45","v":33},{"$f":"[1]ACS_16_5YR_B17010_with_ann!Q45","v":45},{"$f":"[1]ACS_16_5YR_B17010_with_ann!R45","v":0},{"$f":"[1]ACS_16_5YR_B17010_with_ann!S45","v":12},{"$f":"[1]ACS_16_5YR_B17010_with_ann!T45","v":0},{"$f":"[1]ACS_16_5YR_B17010_with_ann!U45","v":12},{"$f":"[1]ACS_16_5YR_B17010_with_ann!V45","v":0},{"$f":"[1]ACS_16_5YR_B17010_with_ann!W45","v":12},{"$f":"[1]ACS_16_5YR_B17010_with_ann!X45","v":0},{"$f":"[1]ACS_16_5YR_B17010_with_ann!Y45","v":12},{"$f":"[1]ACS_16_5YR_B17010_with_ann!Z45","v":0},{"$f":"[1]ACS_16_5YR_B17010_with_ann!AA45","v":12},{"$f":"[1]ACS_16_5YR_B17010_with_ann!AB45","v":0},{"$f":"[1]ACS_16_5YR_B17010_with_ann!AC45","v":12},{"$f":"[1]ACS_16_5YR_B17010_with_ann!AD45","v":0},{"$f":"[1]ACS_16_5YR_B17010_with_ann!AE45","v":12},{"$f":"[1]ACS_16_5YR_B17010_with_ann!AF45","v":0},{"$f":"[1]ACS_16_5YR_B17010_with_ann!AG45","v":12},{"$f":"[1]ACS_16_5YR_B17010_with_ann!AH45","v":0},{"$f":"[1]ACS_16_5YR_B17010_with_ann!AI45","v":12},{"$f":"[1]ACS_16_5YR_B17010_with_ann!AJ45","v":0},{"$f":"[1]ACS_16_5YR_B17010_with_ann!AK45","v":12},{"$f":"[1]ACS_16_5YR_B17010_with_ann!AL45","v":0},{"$f":"[1]ACS_16_5YR_B17010_with_ann!AM45","v":12},{"$f":"[1]ACS_16_5YR_B17010_with_ann!AN45","v":0},{"$f":"[1]ACS_16_5YR_B17010_with_ann!AO45","v":12},{"$f":"[1]ACS_16_5YR_B17010_with_ann!AP45","v":0},{"$f":"[1]ACS_16_5YR_B17010_with_ann!AQ45","v":12},{"$f":"[1]ACS_16_5YR_B17010_with_ann!AR45","v":0},{"$f":"[1]ACS_16_5YR_B17010_with_ann!AS45","v":12},{"$f":"[1]ACS_16_5YR_B17010_with_ann!AT45","v":970},{"$f":"[1]ACS_16_5YR_B17010_with_ann!AU45","v":146},{"$f":"[1]ACS_16_5YR_B17010_with_ann!AV45","v":815},{"$f":"[1]ACS_16_5YR_B17010_with_ann!AW45","v":161},{"$f":"[1]ACS_16_5YR_B17010_with_ann!AX45","v":242},{"$f":"[1]ACS_16_5YR_B17010_with_ann!AY45","v":85},{"$f":"[1]ACS_16_5YR_B17010_with_ann!AZ45","v":41},{"$f":"[1]ACS_16_5YR_B17010_with_ann!BA45","v":33},{"$f":"[1]ACS_16_5YR_B17010_with_ann!BB45","v":0},{"$f":"[1]ACS_16_5YR_B17010_with_ann!BC45","v":12},{"$f":"[1]ACS_16_5YR_B17010_with_ann!BD45","v":201},{"$f":"[1]ACS_16_5YR_B17010_with_ann!BE45","v":88},{"$f":"[1]ACS_16_5YR_B17010_with_ann!BF45","v":573},{"$f":"[1]ACS_16_5YR_B17010_with_ann!BG45","v":158},{"$f":"[1]ACS_16_5YR_B17010_with_ann!BH45","v":155},{"$f":"[1]ACS_16_5YR_B17010_with_ann!BI45","v":87},{"$f":"[1]ACS_16_5YR_B17010_with_ann!BJ45","v":18},{"$f":"[1]ACS_16_5YR_B17010_with_ann!BK45","v":29},{"$f":"[1]ACS_16_5YR_B17010_with_ann!BL45","v":18},{"$f":"[1]ACS_16_5YR_B17010_with_ann!BM45","v":29},{"$f":"[1]ACS_16_5YR_B17010_with_ann!BN45","v":0},{"$f":"[1]ACS_16_5YR_B17010_with_ann!BO45","v":12},{"$f":"[1]ACS_16_5YR_B17010_with_ann!BP45","v":0},{"$f":"[1]ACS_16_5YR_B17010_with_ann!BQ45","v":12},{"$f":"[1]ACS_16_5YR_B17010_with_ann!BR45","v":18},{"$f":"[1]ACS_16_5YR_B17010_with_ann!BS45","v":29},{"$f":"[1]ACS_16_5YR_B17010_with_ann!BT45","v":0},{"$f":"[1]ACS_16_5YR_B17010_with_ann!BU45","v":12},{"$f":"[1]ACS_16_5YR_B17010_with_ann!BV45","v":137},{"$f":"[1]ACS_16_5YR_B17010_with_ann!BW45","v":81},{"$f":"[1]ACS_16_5YR_B17010_with_ann!BX45","v":82},{"$f":"[1]ACS_16_5YR_B17010_with_ann!BY45","v":65},{"$f":"[1]ACS_16_5YR_B17010_with_ann!BZ45","v":0},{"$f":"[1]ACS_16_5YR_B17010_with_ann!CA45","v":12},{"$f":"[1]ACS_16_5YR_B17010_with_ann!CB45","v":36},{"$f":"[1]ACS_16_5YR_B17010_with_ann!CC45","v":38},{"$f":"[1]ACS_16_5YR_B17010_with_ann!CD45","v":46},{"$f":"[1]ACS_16_5YR_B17010_with_ann!CE45","v":56},{"$f":"[1]ACS_16_5YR_B17010_with_ann!CF45","v":55},{"$f":"[1]ACS_16_5YR_B17010_with_ann!CG45","v":50}]
["06000US3300519140","0600000US3300526500","060",{"$f":"[1]ACS_16_5YR_B17010_with_ann!C46","v":"Dublin"},{"$f":"[1]ACS_16_5YR_B17010_with_ann!D46","v":527},{"$f":"[1]ACS_16_5YR_B17010_with_ann!E46","v":93},{"$f":"[1]ACS_16_5YR_B17010_with_ann!F46","v":57},{"$f":"[1]ACS_16_5YR_B17010_with_ann!G46","v":52},{"$f":"[1]ACS_16_5YR_B17010_with_ann!H46","v":44},{"$f":"[1]ACS_16_5YR_B17010_with_ann!I46","v":52},{"$f":"[1]ACS_16_5YR_B17010_with_ann!J46","v":7},{"$f":"[1]ACS_16_5YR_B17010_with_ann!K46","v":7},{"$f":"[1]ACS_16_5YR_B17010_with_ann!L46","v":0},{"$f":"[1]ACS_16_5YR_B17010_with_ann!M46","v":12},{"$f":"[1]ACS_16_5YR_B17010_with_ann!N46","v":0},{"$f":"[1]ACS_16_5YR_B17010_with_ann!O46","v":12},{"$f":"[1]ACS_16_5YR_B17010_with_ann!P46","v":7},{"$f":"[1]ACS_16_5YR_B17010_with_ann!Q46","v":7},{"$f":"[1]ACS_16_5YR_B17010_with_ann!R46","v":37},{"$f":"[1]ACS_16_5YR_B17010_with_ann!S46","v":53},{"$f":"[1]ACS_16_5YR_B17010_with_ann!T46","v":13},{"$f":"[1]ACS_16_5YR_B17010_with_ann!U46","v":13},{"$f":"[1]ACS_16_5YR_B17010_with_ann!V46","v":0},{"$f":"[1]ACS_16_5YR_B17010_with_ann!W46","v":12},{"$f":"[1]ACS_16_5YR_B17010_with_ann!X46","v":0},{"$f":"[1]ACS_16_5YR_B17010_with_ann!Y46","v":12},{"$f":"[1]ACS_16_5YR_B17010_with_ann!Z46","v":0},{"$f":"[1]ACS_16_5YR_B17010_with_ann!AA46","v":12},{"$f":"[1]ACS_16_5YR_B17010_with_ann!AB46","v":0},{"$f":"[1]ACS_16_5YR_B17010_with_ann!AC46","v":12},{"$f":"[1]ACS_16_5YR_B17010_with_ann!AD46","v":0},{"$f":"[1]ACS_16_5YR_B17010_with_ann!AE46","v":12},{"$f":"[1]ACS_16_5YR_B17010_with_ann!AF46","v":0},{"$f":"[1]ACS_16_5YR_B17010_with_ann!AG46","v":12},{"$f":"[1]ACS_16_5YR_B17010_with_ann!AH46","v":13},{"$f":"[1]ACS_16_5YR_B17010_with_ann!AI46","v":13},{"$f":"[1]ACS_16_5YR_B17010_with_ann!AJ46","v":13},{"$f":"[1]ACS_16_5YR_B17010_with_ann!AK46","v":13},{"$f":"[1]ACS_16_5YR_B17010_with_ann!AL46","v":4},{"$f":"[1]ACS_16_5YR_B17010_with_ann!AM46","v":5},{"$f":"[1]ACS_16_5YR_B17010_with_ann!AN46","v":0},{"$f":"[1]ACS_16_5YR_B17010_with_ann!AO46","v":12},{"$f":"[1]ACS_16_5YR_B17010_with_ann!AP46","v":9},{"$f":"[1]ACS_16_5YR_B17010_with_ann!AQ46","v":12},{"$f":"[1]ACS_16_5YR_B17010_with_ann!AR46","v":0},{"$f":"[1]ACS_16_5YR_B17010_with_ann!AS46","v":12},{"$f":"[1]ACS_16_5YR_B17010_with_ann!AT46","v":470},{"$f":"[1]ACS_16_5YR_B17010_with_ann!AU46","v":81},{"$f":"[1]ACS_16_5YR_B17010_with_ann!AV46","v":410},{"$f":"[1]ACS_16_5YR_B17010_with_ann!AW46","v":82},{"$f":"[1]ACS_16_5YR_B17010_with_ann!AX46","v":111},{"$f":"[1]ACS_16_5YR_B17010_with_ann!AY46","v":38},{"$f":"[1]ACS_16_5YR_B17010_with_ann!AZ46","v":4},{"$f":"[1]ACS_16_5YR_B17010_with_ann!BA46","v":6},{"$f":"[1]ACS_16_5YR_B17010_with_ann!BB46","v":47},{"$f":"[1]ACS_16_5YR_B17010_with_ann!BC46","v":28},{"$f":"[1]ACS_16_5YR_B17010_with_ann!BD46","v":60},{"$f":"[1]ACS_16_5YR_B17010_with_ann!BE46","v":31},{"$f":"[1]ACS_16_5YR_B17010_with_ann!BF46","v":299},{"$f":"[1]ACS_16_5YR_B17010_with_ann!BG46","v":80},{"$f":"[1]ACS_16_5YR_B17010_with_ann!BH46","v":60},{"$f":"[1]ACS_16_5YR_B17010_with_ann!BI46","v":26},{"$f":"[1]ACS_16_5YR_B17010_with_ann!BJ46","v":35},{"$f":"[1]ACS_16_5YR_B17010_with_ann!BK46","v":22},{"$f":"[1]ACS_16_5YR_B17010_with_ann!BL46","v":8},{"$f":"[1]ACS_16_5YR_B17010_with_ann!BM46","v":6},{"$f":"[1]ACS_16_5YR_B17010_with_ann!BN46","v":0},{"$f":"[1]ACS_16_5YR_B17010_with_ann!BO46","v":12},{"$f":"[1]ACS_16_5YR_B17010_with_ann!BP46","v":0},{"$f":"[1]ACS_16_5YR_B17010_with_ann!BQ46","v":12},{"$f":"[1]ACS_16_5YR_B17010_with_ann!BR46","v":8},{"$f":"[1]ACS_16_5YR_B17010_with_ann!BS46","v":6},{"$f":"[1]ACS_16_5YR_B17010_with_ann!BT46","v":27},{"$f":"[1]ACS_16_5YR_B17010_with_ann!BU46","v":19},{"$f":"[1]ACS_16_5YR_B17010_with_ann!BV46","v":25},{"$f":"[1]ACS_16_5YR_B17010_with_ann!BW46","v":15},{"$f":"[1]ACS_16_5YR_B17010_with_ann!BX46","v":6},{"$f":"[1]ACS_16_5YR_B17010_with_ann!BY46","v":7},{"$f":"[1]ACS_16_5YR_B17010_with_ann!BZ46","v":0},{"$f":"[1]ACS_16_5YR_B17010_with_ann!CA46","v":12},{"$f":"[1]ACS_16_5YR_B17010_with_ann!CB46","v":0},{"$f":"[1]ACS_16_5YR_B17010_with_ann!CC46","v":12},{"$f":"[1]ACS_16_5YR_B17010_with_ann!CD46","v":6},{"$f":"[1]ACS_16_5YR_B17010_with_ann!CE46","v":7},{"$f":"[1]ACS_16_5YR_B17010_with_ann!CF46","v":19},{"$f":"[1]ACS_16_5YR_B17010_with_ann!CG46","v":15}]
["06000US3300526500","0600000US3300529220","060",{"$f":"[1]ACS_16_5YR_B17010_with_ann!C47","v":"Fitzwilliam"},{"$f":"[1]ACS_16_5YR_B17010_with_ann!D47","v":619},{"$f":"[1]ACS_16_5YR_B17010_with_ann!E47","v":124},{"$f":"[1]ACS_16_5YR_B17010_with_ann!F47","v":34},{"$f":"[1]ACS_16_5YR_B17010_with_ann!G47","v":27},{"$f":"[1]ACS_16_5YR_B17010_with_ann!H47","v":6},{"$f":"[1]ACS_16_5YR_B17010_with_ann!I47","v":8},{"$f":"[1]ACS_16_5YR_B17010_with_ann!J47","v":0},{"$f":"[1]ACS_16_5YR_B17010_with_ann!K47","v":12},{"$f":"[1]ACS_16_5YR_B17010_with_ann!L47","v":0},{"$f":"[1]ACS_16_5YR_B17010_with_ann!M47","v":12},{"$f":"[1]ACS_16_5YR_B17010_with_ann!N47","v":0},{"$f":"[1]ACS_16_5YR_B17010_with_ann!O47","v":12},{"$f":"[1]ACS_16_5YR_B17010_with_ann!P47","v":0},{"$f":"[1]ACS_16_5YR_B17010_with_ann!Q47","v":12},{"$f":"[1]ACS_16_5YR_B17010_with_ann!R47","v":6},{"$f":"[1]ACS_16_5YR_B17010_with_ann!S47","v":8},{"$f":"[1]ACS_16_5YR_B17010_with_ann!T47","v":28},{"$f":"[1]ACS_16_5YR_B17010_with_ann!U47","v":24},{"$f":"[1]ACS_16_5YR_B17010_with_ann!V47","v":16},{"$f":"[1]ACS_16_5YR_B17010_with_ann!W47","v":18},{"$f":"[1]ACS_16_5YR_B17010_with_ann!X47","v":16},{"$f":"[1]ACS_16_5YR_B17010_with_ann!Y47","v":18},{"$f":"[1]ACS_16_5YR_B17010_with_ann!Z47","v":0},{"$f":"[1]ACS_16_5YR_B17010_with_ann!AA47","v":12},{"$f":"[1]ACS_16_5YR_B17010_with_ann!AB47","v":0},{"$f":"[1]ACS_16_5YR_B17010_with_ann!AC47","v":12},{"$f":"[1]ACS_16_5YR_B17010_with_ann!AD47","v":16},{"$f":"[1]ACS_16_5YR_B17010_with_ann!AE47","v":18},{"$f":"[1]ACS_16_5YR_B17010_with_ann!AF47","v":0},{"$f":"[1]ACS_16_5YR_B17010_with_ann!AG47","v":12},{"$f":"[1]ACS_16_5YR_B17010_with_ann!AH47","v":12},{"$f":"[1]ACS_16_5YR_B17010_with_ann!AI47","v":15},{"$f":"[1]ACS_16_5YR_B17010_with_ann!AJ47","v":7},{"$f":"[1]ACS_16_5YR_B17010_with_ann!AK47","v":12},{"$f":"[1]ACS_16_5YR_B17010_with_ann!AL47","v":0},{"$f":"[1]ACS_16_5YR_B17010_with_ann!AM47","v":12},{"$f":"[1]ACS_16_5YR_B17010_with_ann!AN47","v":0},{"$f":"[1]ACS_16_5YR_B17010_with_ann!AO47","v":12},{"$f":"[1]ACS_16_5YR_B17010_with_ann!AP47","v":7},{"$f":"[1]ACS_16_5YR_B17010_with_ann!AQ47","v":12},{"$f":"[1]ACS_16_5YR_B17010_with_ann!AR47","v":5},{"$f":"[1]ACS_16_5YR_B17010_with_ann!AS47","v":8},{"$f":"[1]ACS_16_5YR_B17010_with_ann!AT47","v":585},{"$f":"[1]ACS_16_5YR_B17010_with_ann!AU47","v":122},{"$f":"[1]ACS_16_5YR_B17010_with_ann!AV47","v":475},{"$f":"[1]ACS_16_5YR_B17010_with_ann!AW47","v":78},{"$f":"[1]ACS_16_5YR_B17010_with_ann!AX47","v":144},{"$f":"[1]ACS_16_5YR_B17010_with_ann!AY47","v":53},{"$f":"[1]ACS_16_5YR_B17010_with_ann!AZ47","v":52},{"$f":"[1]ACS_16_5YR_B17010_with_ann!BA47","v":45},{"$f":"[1]ACS_16_5YR_B17010_with_ann!BB47","v":12},{"$f":"[1]ACS_16_5YR_B17010_with_ann!BC47","v":11},{"$f":"[1]ACS_16_5YR_B17010_with_ann!BD47","v":80},{"$f":"[1]ACS_16_5YR_B17010_with_ann!BE47","v":30},{"$f":"[1]ACS_16_5YR_B17010_with_ann!BF47","v":331},{"$f":"[1]ACS_16_5YR_B17010_with_ann!BG47","v":76},{"$f":"[1]ACS_16_5YR_B17010_with_ann!BH47","v":110},{"$f":"[1]ACS_16_5YR_B17010_with_ann!BI47","v":97},{"$f":"[1]ACS_16_5YR_B17010_with_ann!BJ47","v":39},{"$f":"[1]ACS_16_5YR_B17010_with_ann!BK47","v":28},{"$f":"[1]ACS_16_5YR_B17010_with_ann!BL47","v":8},{"$f":"[1]ACS_16_5YR_B17010_with_ann!BM47","v":12},{"$f":"[1]ACS_16_5YR_B17010_with_ann!BN47","v":0},{"$f":"[1]ACS_16_5YR_B17010_with_ann!BO47","v":12},{"$f":"[1]ACS_16_5YR_B17010_with_ann!BP47","v":0},{"$f":"[1]ACS_16_5YR_B17010_with_ann!BQ47","v":12},{"$f":"[1]ACS_16_5YR_B17010_with_ann!BR47","v":8},{"$f":"[1]ACS_16_5YR_B17010_with_ann!BS47","v":12},{"$f":"[1]ACS_16_5YR_B17010_with_ann!BT47","v":31},{"$f":"[1]ACS_16_5YR_B17010_with_ann!BU47","v":25},{"$f":"[1]ACS_16_5YR_B17010_with_ann!BV47","v":71},{"$f":"[1]ACS_16_5YR_B17010_with_ann!BW47","v":91},{"$f":"[1]ACS_16_5YR_B17010_with_ann!BX47","v":0},{"$f":"[1]ACS_16_5YR_B17010_with_ann!BY47","v":12},{"$f":"[1]ACS_16_5YR_B17010_with_ann!BZ47","v":0},{"$f":"[1]ACS_16_5YR_B17010_with_ann!CA47","v":12},{"$f":"[1]ACS_16_5YR_B17010_with_ann!CB47","v":0},{"$f":"[1]ACS_16_5YR_B17010_with_ann!CC47","v":12},{"$f":"[1]ACS_16_5YR_B17010_with_ann!CD47","v":0},{"$f":"[1]ACS_16_5YR_B17010_with_ann!CE47","v":12},{"$f":"[1]ACS_16_5YR_B17010_with_ann!CF47","v":71},{"$f":"[1]ACS_16_5YR_B17010_with_ann!CG47","v":91}]
["06000US3300529220","0600000US3300534420","060",{"$f":"[1]ACS_16_5YR_B17010_with_ann!C48","v":"Gilsum"},{"$f":"[1]ACS_16_5YR_B17010_with_ann!D48","v":230},{"$f":"[1]ACS_16_5YR_B17010_with_ann!E48","v":43},{"$f":"[1]ACS_16_5YR_B17010_with_ann!F48","v":5},{"$f":"[1]ACS_16_5YR_B17010_with_ann!G48","v":6},{"$f":"[1]ACS_16_5YR_B17010_with_ann!H48","v":3},{"$f":"[1]ACS_16_5YR_B17010_with_ann!I48","v":4},{"$f":"[1]ACS_16_5YR_B17010_with_ann!J48","v":2},{"$f":"[1]ACS_16_5YR_B17010_with_ann!K48","v":3},{"$f":"[1]ACS_16_5YR_B17010_with_ann!L48","v":0},{"$f":"[1]ACS_16_5YR_B17010_with_ann!M48","v":12},{"$f":"[1]ACS_16_5YR_B17010_with_ann!N48","v":2},{"$f":"[1]ACS_16_5YR_B17010_with_ann!O48","v":3},{"$f":"[1]ACS_16_5YR_B17010_with_ann!P48","v":0},{"$f":"[1]ACS_16_5YR_B17010_with_ann!Q48","v":12},{"$f":"[1]ACS_16_5YR_B17010_with_ann!R48","v":1},{"$f":"[1]ACS_16_5YR_B17010_with_ann!S48","v":3},{"$f":"[1]ACS_16_5YR_B17010_with_ann!T48","v":2},{"$f":"[1]ACS_16_5YR_B17010_with_ann!U48","v":3},{"$f":"[1]ACS_16_5YR_B17010_with_ann!V48","v":0},{"$f":"[1]ACS_16_5YR_B17010_with_ann!W48","v":12},{"$f":"[1]ACS_16_5YR_B17010_with_ann!X48","v":0},{"$f":"[1]ACS_16_5YR_B17010_with_ann!Y48","v":12},{"$f":"[1]ACS_16_5YR_B17010_with_ann!Z48","v":0},{"$f":"[1]ACS_16_5YR_B17010_with_ann!AA48","v":12},{"$f":"[1]ACS_16_5YR_B17010_with_ann!AB48","v":0},{"$f":"[1]ACS_16_5YR_B17010_with_ann!AC48","v":12},{"$f":"[1]ACS_16_5YR_B17010_with_ann!AD48","v":0},{"$f":"[1]ACS_16_5YR_B17010_with_ann!AE48","v":12},{"$f":"[1]ACS_16_5YR_B17010_with_ann!AF48","v":0},{"$f":"[1]ACS_16_5YR_B17010_with_ann!AG48","v":12},{"$f":"[1]ACS_16_5YR_B17010_with_ann!AH48","v":2},{"$f":"[1]ACS_16_5YR_B17010_with_ann!AI48","v":3},{"$f":"[1]ACS_16_5YR_B17010_with_ann!AJ48","v":2},{"$f":"[1]ACS_16_5YR_B17010_with_ann!AK48","v":3},{"$f":"[1]ACS_16_5YR_B17010_with_ann!AL48","v":0},{"$f":"[1]ACS_16_5YR_B17010_with_ann!AM48","v":12},{"$f":"[1]ACS_16_5YR_B17010_with_ann!AN48","v":0},{"$f":"[1]ACS_16_5YR_B17010_with_ann!AO48","v":12},{"$f":"[1]ACS_16_5YR_B17010_with_ann!AP48","v":2},{"$f":"[1]ACS_16_5YR_B17010_with_ann!AQ48","v":3},{"$f":"[1]ACS_16_5YR_B17010_with_ann!AR48","v":0},{"$f":"[1]ACS_16_5YR_B17010_with_ann!AS48","v":12},{"$f":"[1]ACS_16_5YR_B17010_with_ann!AT48","v":225},{"$f":"[1]ACS_16_5YR_B17010_with_ann!AU48","v":44},{"$f":"[1]ACS_16_5YR_B17010_with_ann!AV48","v":190},{"$f":"[1]ACS_16_5YR_B17010_with_ann!AW48","v":37},{"$f":"[1]ACS_16_5YR_B17010_with_ann!AX48","v":58},{"$f":"[1]ACS_16_5YR_B17010_with_ann!AY48","v":21},{"$f":"[1]ACS_16_5YR_B17010_with_ann!AZ48","v":28},{"$f":"[1]ACS_16_5YR_B17010_with_ann!BA48","v":15},{"$f":"[1]ACS_16_5YR_B17010_with_ann!BB48","v":4},{"$f":"[1]ACS_16_5YR_B17010_with_ann!BC48","v":4},{"$f":"[1]ACS_16_5YR_B17010_with_ann!BD48","v":26},{"$f":"[1]ACS_16_5YR_B17010_with_ann!BE48","v":13},{"$f":"[1]ACS_16_5YR_B17010_with_ann!BF48","v":132},{"$f":"[1]ACS_16_5YR_B17010_with_ann!BG48","v":30},{"$f":"[1]ACS_16_5YR_B17010_with_ann!BH48","v":35},{"$f":"[1]ACS_16_5YR_B17010_with_ann!BI48","v":27},{"$f":"[1]ACS_16_5YR_B17010_with_ann!BJ48","v":10},{"$f":"[1]ACS_16_5YR_B17010_with_ann!BK48","v":12},{"$f":"[1]ACS_16_5YR_B17010_with_ann!BL48","v":0},{"$f":"[1]ACS_16_5YR_B17010_with_ann!BM48","v":12},{"$f":"[1]ACS_16_5YR_B17010_with_ann!BN48","v":0},{"$f":"[1]ACS_16_5YR_B17010_with_ann!BO48","v":12},{"$f":"[1]ACS_16_5YR_B17010_with_ann!BP48","v":0},{"$f":"[1]ACS_16_5YR_B17010_with_ann!BQ48","v":12},{"$f":"[1]ACS_16_5YR_B17010_with_ann!BR48","v":0},{"$f":"[1]ACS_16_5YR_B17010_with_ann!BS48","v":12},{"$f":"[1]ACS_16_5YR_B17010_with_ann!BT48","v":10},{"$f":"[1]ACS_16_5YR_B17010_with_ann!BU48","v":12},{"$f":"[1]ACS_16_5YR_B17010_with_ann!BV48","v":25},{"$f":"[1]ACS_16_5YR_B17010_with_ann!BW48","v":26},{"$f":"[1]ACS_16_5YR_B17010_with_ann!BX48","v":20},{"$f":"[1]ACS_16_5YR_B17010_with_ann!BY48","v":25},{"$f":"[1]ACS_16_5YR_B17010_with_ann!BZ48","v":3},{"$f":"[1]ACS_16_5YR_B17010_with_ann!CA48","v":4},{"$f":"[1]ACS_16_5YR_B17010_with_ann!CB48","v":0},{"$f":"[1]ACS_16_5YR_B17010_with_ann!CC48","v":12},{"$f":"[1]ACS_16_5YR_B17010_with_ann!CD48","v":17},{"$f":"[1]ACS_16_5YR_B17010_with_ann!CE48","v":25},{"$f":"[1]ACS_16_5YR_B17010_with_ann!CF48","v":5},{"$f":"[1]ACS_16_5YR_B17010_with_ann!CG48","v":7}]
["06000US3300534420","0600000US3300536660","060",{"$f":"[1]ACS_16_5YR_B17010_with_ann!C49","v":"Harrisville"},{"$f":"[1]ACS_16_5YR_B17010_with_ann!D49","v":313},{"$f":"[1]ACS_16_5YR_B17010_with_ann!E49","v":70},{"$f":"[1]ACS_16_5YR_B17010_with_ann!F49","v":0},{"$f":"[1]ACS_16_5YR_B17010_with_ann!G49","v":12},{"$f":"[1]ACS_16_5YR_B17010_with_ann!H49","v":0},{"$f":"[1]ACS_16_5YR_B17010_with_ann!I49","v":12},{"$f":"[1]ACS_16_5YR_B17010_with_ann!J49","v":0},{"$f":"[1]ACS_16_5YR_B17010_with_ann!K49","v":12},{"$f":"[1]ACS_16_5YR_B17010_with_ann!L49","v":0},{"$f":"[1]ACS_16_5YR_B17010_with_ann!M49","v":12},{"$f":"[1]ACS_16_5YR_B17010_with_ann!N49","v":0},{"$f":"[1]ACS_16_5YR_B17010_with_ann!O49","v":12},{"$f":"[1]ACS_16_5YR_B17010_with_ann!P49","v":0},{"$f":"[1]ACS_16_5YR_B17010_with_ann!Q49","v":12},{"$f":"[1]ACS_16_5YR_B17010_with_ann!R49","v":0},{"$f":"[1]ACS_16_5YR_B17010_with_ann!S49","v":12},{"$f":"[1]ACS_16_5YR_B17010_with_ann!T49","v":0},{"$f":"[1]ACS_16_5YR_B17010_with_ann!U49","v":12},{"$f":"[1]ACS_16_5YR_B17010_with_ann!V49","v":0},{"$f":"[1]ACS_16_5YR_B17010_with_ann!W49","v":12},{"$f":"[1]ACS_16_5YR_B17010_with_ann!X49","v":0},{"$f":"[1]ACS_16_5YR_B17010_with_ann!Y49","v":12},{"$f":"[1]ACS_16_5YR_B17010_with_ann!Z49","v":0},{"$f":"[1]ACS_16_5YR_B17010_with_ann!AA49","v":12},{"$f":"[1]ACS_16_5YR_B17010_with_ann!AB49","v":0},{"$f":"[1]ACS_16_5YR_B17010_with_ann!AC49","v":12},{"$f":"[1]ACS_16_5YR_B17010_with_ann!AD49","v":0},{"$f":"[1]ACS_16_5YR_B17010_with_ann!AE49","v":12},{"$f":"[1]ACS_16_5YR_B17010_with_ann!AF49","v":0},{"$f":"[1]ACS_16_5YR_B17010_with_ann!AG49","v":12},{"$f":"[1]ACS_16_5YR_B17010_with_ann!AH49","v":0},{"$f":"[1]ACS_16_5YR_B17010_with_ann!AI49","v":12},{"$f":"[1]ACS_16_5YR_B17010_with_ann!AJ49","v":0},{"$f":"[1]ACS_16_5YR_B17010_with_ann!AK49","v":12},{"$f":"[1]ACS_16_5YR_B17010_with_ann!AL49","v":0},{"$f":"[1]ACS_16_5YR_B17010_with_ann!AM49","v":12},{"$f":"[1]ACS_16_5YR_B17010_with_ann!AN49","v":0},{"$f":"[1]ACS_16_5YR_B17010_with_ann!AO49","v":12},{"$f":"[1]ACS_16_5YR_B17010_with_ann!AP49","v":0},{"$f":"[1]ACS_16_5YR_B17010_with_ann!AQ49","v":12},{"$f":"[1]ACS_16_5YR_B17010_with_ann!AR49","v":0},{"$f":"[1]ACS_16_5YR_B17010_with_ann!AS49","v":12},{"$f":"[1]ACS_16_5YR_B17010_with_ann!AT49","v":313},{"$f":"[1]ACS_16_5YR_B17010_with_ann!AU49","v":70},{"$f":"[1]ACS_16_5YR_B17010_with_ann!AV49","v":271},{"$f":"[1]ACS_16_5YR_B17010_with_ann!AW49","v":66},{"$f":"[1]ACS_16_5YR_B17010_with_ann!AX49","v":61},{"$f":"[1]ACS_16_5YR_B17010_with_ann!AY49","v":43},{"$f":"[1]ACS_16_5YR_B17010_with_ann!AZ49","v":16},{"$f":"[1]ACS_16_5YR_B17010_with_ann!BA49","v":22},{"$f":"[1]ACS_16_5YR_B17010_with_ann!BB49","v":30},{"$f":"[1]ACS_16_5YR_B17010_with_ann!BC49","v":34},{"$f":"[1]ACS_16_5YR_B17010_with_ann!BD49","v":15},{"$f":"[1]ACS_16_5YR_B17010_with_ann!BE49","v":14},{"$f":"[1]ACS_16_5YR_B17010_with_ann!BF49","v":210},{"$f":"[1]ACS_16_5YR_B17010_with_ann!BG49","v":50},{"$f":"[1]ACS_16_5YR_B17010_with_ann!BH49","v":42},{"$f":"[1]ACS_16_5YR_B17010_with_ann!BI49","v":22},{"$f":"[1]ACS_16_5YR_B17010_with_ann!BJ49","v":12},{"$f":"[1]ACS_16_5YR_B17010_with_ann!BK49","v":10},{"$f":"[1]ACS_16_5YR_B17010_with_ann!BL49","v":9},{"$f":"[1]ACS_16_5YR_B17010_with_ann!BM49","v":8},{"$f":"[1]ACS_16_5YR_B17010_with_ann!BN49","v":4},{"$f":"[1]ACS_16_5YR_B17010_with_ann!BO49","v":6},{"$f":"[1]ACS_16_5YR_B17010_with_ann!BP49","v":0},{"$f":"[1]ACS_16_5YR_B17010_with_ann!BQ49","v":12},{"$f":"[1]ACS_16_5YR_B17010_with_ann!BR49","v":5},{"$f":"[1]ACS_16_5YR_B17010_with_ann!BS49","v":6},{"$f":"[1]ACS_16_5YR_B17010_with_ann!BT49","v":3},{"$f":"[1]ACS_16_5YR_B17010_with_ann!BU49","v":4},{"$f":"[1]ACS_16_5YR_B17010_with_ann!BV49","v":30},{"$f":"[1]ACS_16_5YR_B17010_with_ann!BW49","v":19},{"$f":"[1]ACS_16_5YR_B17010_with_ann!BX49","v":11},{"$f":"[1]ACS_16_5YR_B17010_with_ann!BY49","v":8},{"$f":"[1]ACS_16_5YR_B17010_with_ann!BZ49","v":3},{"$f":"[1]ACS_16_5YR_B17010_with_ann!CA49","v":5},{"$f":"[1]ACS_16_5YR_B17010_with_ann!CB49","v":0},{"$f":"[1]ACS_16_5YR_B17010_with_ann!CC49","v":12},{"$f":"[1]ACS_16_5YR_B17010_with_ann!CD49","v":8},{"$f":"[1]ACS_16_5YR_B17010_with_ann!CE49","v":8},{"$f":"[1]ACS_16_5YR_B17010_with_ann!CF49","v":19},{"$f":"[1]ACS_16_5YR_B17010_with_ann!CG49","v":17}]
["06000US3300536660","0600000US3300538500","060",{"$f":"[1]ACS_16_5YR_B17010_with_ann!C50","v":"Hinsdale"},{"$f":"[1]ACS_16_5YR_B17010_with_ann!D50","v":1049},{"$f":"[1]ACS_16_5YR_B17010_with_ann!E50","v":141},{"$f":"[1]ACS_16_5YR_B17010_with_ann!F50","v":19},{"$f":"[1]ACS_16_5YR_B17010_with_ann!G50","v":25},{"$f":"[1]ACS_16_5YR_B17010_with_ann!H50","v":10},{"$f":"[1]ACS_16_5YR_B17010_with_ann!I50","v":15},{"$f":"[1]ACS_16_5YR_B17010_with_ann!J50","v":10},{"$f":"[1]ACS_16_5YR_B17010_with_ann!K50","v":15},{"$f":"[1]ACS_16_5YR_B17010_with_ann!L50","v":0},{"$f":"[1]ACS_16_5YR_B17010_with_ann!M50","v":12},{"$f":"[1]ACS_16_5YR_B17010_with_ann!N50","v":10},{"$f":"[1]ACS_16_5YR_B17010_with_ann!O50","v":15},{"$f":"[1]ACS_16_5YR_B17010_with_ann!P50","v":0},{"$f":"[1]ACS_16_5YR_B17010_with_ann!Q50","v":12},{"$f":"[1]ACS_16_5YR_B17010_with_ann!R50","v":0},{"$f":"[1]ACS_16_5YR_B17010_with_ann!S50","v":12},{"$f":"[1]ACS_16_5YR_B17010_with_ann!T50","v":9},{"$f":"[1]ACS_16_5YR_B17010_with_ann!U50","v":24},{"$f":"[1]ACS_16_5YR_B17010_with_ann!V50","v":5},{"$f":"[1]ACS_16_5YR_B17010_with_ann!W50","v":20},{"$f":"[1]ACS_16_5YR_B17010_with_ann!X50","v":5},{"$f":"[1]ACS_16_5YR_B17010_with_ann!Y50","v":20},{"$f":"[1]ACS_16_5YR_B17010_with_ann!Z50","v":0},{"$f":"[1]ACS_16_5YR_B17010_with_ann!AA50","v":12},{"$f":"[1]ACS_16_5YR_B17010_with_ann!AB50","v":0},{"$f":"[1]ACS_16_5YR_B17010_with_ann!AC50","v":12},{"$f":"[1]ACS_16_5YR_B17010_with_ann!AD50","v":5},{"$f":"[1]ACS_16_5YR_B17010_with_ann!AE50","v":20},{"$f":"[1]ACS_16_5YR_B17010_with_ann!AF50","v":0},{"$f":"[1]ACS_16_5YR_B17010_with_ann!AG50","v":12},{"$f":"[1]ACS_16_5YR_B17010_with_ann!AH50","v":4},{"$f":"[1]ACS_16_5YR_B17010_with_ann!AI50","v":10},{"$f":"[1]ACS_16_5YR_B17010_with_ann!AJ50","v":4},{"$f":"[1]ACS_16_5YR_B17010_with_ann!AK50","v":10},{"$f":"[1]ACS_16_5YR_B17010_with_ann!AL50","v":0},{"$f":"[1]ACS_16_5YR_B17010_with_ann!AM50","v":12},{"$f":"[1]ACS_16_5YR_B17010_with_ann!AN50","v":0},{"$f":"[1]ACS_16_5YR_B17010_with_ann!AO50","v":12},{"$f":"[1]ACS_16_5YR_B17010_with_ann!AP50","v":4},{"$f":"[1]ACS_16_5YR_B17010_with_ann!AQ50","v":10},{"$f":"[1]ACS_16_5YR_B17010_with_ann!AR50","v":0},{"$f":"[1]ACS_16_5YR_B17010_with_ann!AS50","v":12},{"$f":"[1]ACS_16_5YR_B17010_with_ann!AT50","v":1030},{"$f":"[1]ACS_16_5YR_B17010_with_ann!AU50","v":147},{"$f":"[1]ACS_16_5YR_B17010_with_ann!AV50","v":874},{"$f":"[1]ACS_16_5YR_B17010_with_ann!AW50","v":154},{"$f":"[1]ACS_16_5YR_B17010_with_ann!AX50","v":262},{"$f":"[1]ACS_16_5YR_B17010_with_ann!AY50","v":86},{"$f":"[1]ACS_16_5YR_B17010_with_ann!AZ50","v":8},{"$f":"[1]ACS_16_5YR_B17010_with_ann!BA50","v":14},{"$f":"[1]ACS_16_5YR_B17010_with_ann!BB50","v":22},{"$f":"[1]ACS_16_5YR_B17010_with_ann!BC50","v":32},{"$f":"[1]ACS_16_5YR_B17010_with_ann!BD50","v":232},{"$f":"[1]ACS_16_5YR_B17010_with_ann!BE50","v":87},{"$f":"[1]ACS_16_5YR_B17010_with_ann!BF50","v":612},{"$f":"[1]ACS_16_5YR_B17010_with_ann!BG50","v":170},{"$f":"[1]ACS_16_5YR_B17010_with_ann!BH50","v":156},{"$f":"[1]ACS_16_5YR_B17010_with_ann!BI50","v":92},{"$f":"[1]ACS_16_5YR_B17010_with_ann!BJ50","v":76},{"$f":"[1]ACS_16_5YR_B17010_with_ann!BK50","v":71},{"$f":"[1]ACS_16_5YR_B17010_with_ann!BL50","v":25},{"$f":"[1]ACS_16_5YR_B17010_with_ann!BM50","v":28},{"$f":"[1]ACS_16_5YR_B17010_with_ann!BN50","v":0},{"$f":"[1]ACS_16_5YR_B17010_with_ann!BO50","v":12},{"$f":"[1]ACS_16_5YR_B17010_with_ann!BP50","v":15},{"$f":"[1]ACS_16_5YR_B17010_with_ann!BQ50","v":24},{"$f":"[1]ACS_16_5YR_B17010_with_ann!BR50","v":10},{"$f":"[1]ACS_16_5YR_B17010_with_ann!BS50","v":17},{"$f":"[1]ACS_16_5YR_B17010_with_ann!BT50","v":51},{"$f":"[1]ACS_16_5YR_B17010_with_ann!BU50","v":69},{"$f":"[1]ACS_16_5YR_B17010_with_ann!BV50","v":80},{"$f":"[1]ACS_16_5YR_B17010_with_ann!BW50","v":59},{"$f":"[1]ACS_16_5YR_B17010_with_ann!BX50","v":28},{"$f":"[1]ACS_16_5YR_B17010_with_ann!BY50","v":33},{"$f":"[1]ACS_16_5YR_B17010_with_ann!BZ50","v":0},{"$f":"[1]ACS_16_5YR_B17010_with_ann!CA50","v":12},{"$f":"[1]ACS_16_5YR_B17010_with_ann!CB50","v":0},{"$f":"[1]ACS_16_5YR_B17010_with_ann!CC50","v":12},{"$f":"[1]ACS_16_5YR_B17010_with_ann!CD50","v":28},{"$f":"[1]ACS_16_5YR_B17010_with_ann!CE50","v":33},{"$f":"[1]ACS_16_5YR_B17010_with_ann!CF50","v":52},{"$f":"[1]ACS_16_5YR_B17010_with_ann!CG50","v":50}]
["06000US3300538500","0600000US3300539300","060",{"$f":"[1]ACS_16_5YR_B17010_with_ann!C51","v":"Jaffrey"},{"$f":"[1]ACS_16_5YR_B17010_with_ann!D51","v":1374},{"$f":"[1]ACS_16_5YR_B17010_with_ann!E51","v":156},{"$f":"[1]ACS_16_5YR_B17010_with_ann!F51","v":23},{"$f":"[1]ACS_16_5YR_B17010_with_ann!G51","v":39},{"$f":"[1]ACS_16_5YR_B17010_with_ann!H51","v":0},{"$f":"[1]ACS_16_5YR_B17010_with_ann!I51","v":17},{"$f":"[1]ACS_16_5YR_B17010_with_ann!J51","v":0},{"$f":"[1]ACS_16_5YR_B17010_with_ann!K51","v":17},{"$f":"[1]ACS_16_5YR_B17010_with_ann!L51","v":0},{"$f":"[1]ACS_16_5YR_B17010_with_ann!M51","v":17},{"$f":"[1]ACS_16_5YR_B17010_with_ann!N51","v":0},{"$f":"[1]ACS_16_5YR_B17010_with_ann!O51","v":17},{"$f":"[1]ACS_16_5YR_B17010_with_ann!P51","v":0},{"$f":"[1]ACS_16_5YR_B17010_with_ann!Q51","v":17},{"$f":"[1]ACS_16_5YR_B17010_with_ann!R51","v":0},{"$f":"[1]ACS_16_5YR_B17010_with_ann!S51","v":17},{"$f":"[1]ACS_16_5YR_B17010_with_ann!T51","v":23},{"$f":"[1]ACS_16_5YR_B17010_with_ann!U51","v":39},{"$f":"[1]ACS_16_5YR_B17010_with_ann!V51","v":0},{"$f":"[1]ACS_16_5YR_B17010_with_ann!W51","v":17},{"$f":"[1]ACS_16_5YR_B17010_with_ann!X51","v":0},{"$f":"[1]ACS_16_5YR_B17010_with_ann!Y51","v":17},{"$f":"[1]ACS_16_5YR_B17010_with_ann!Z51","v":0},{"$f":"[1]ACS_16_5YR_B17010_with_ann!AA51","v":17},{"$f":"[1]ACS_16_5YR_B17010_with_ann!AB51","v":0},{"$f":"[1]ACS_16_5YR_B17010_with_ann!AC51","v":17},{"$f":"[1]ACS_16_5YR_B17010_with_ann!AD51","v":0},{"$f":"[1]ACS_16_5YR_B17010_with_ann!AE51","v":17},{"$f":"[1]ACS_16_5YR_B17010_with_ann!AF51","v":0},{"$f":"[1]ACS_16_5YR_B17010_with_ann!AG51","v":17},{"$f":"[1]ACS_16_5YR_B17010_with_ann!AH51","v":23},{"$f":"[1]ACS_16_5YR_B17010_with_ann!AI51","v":39},{"$f":"[1]ACS_16_5YR_B17010_with_ann!AJ51","v":23},{"$f":"[1]ACS_16_5YR_B17010_with_ann!AK51","v":39},{"$f":"[1]ACS_16_5YR_B17010_with_ann!AL51","v":0},{"$f":"[1]ACS_16_5YR_B17010_with_ann!AM51","v":17},{"$f":"[1]ACS_16_5YR_B17010_with_ann!AN51","v":23},{"$f":"[1]ACS_16_5YR_B17010_with_ann!AO51","v":39},{"$f":"[1]ACS_16_5YR_B17010_with_ann!AP51","v":0},{"$f":"[1]ACS_16_5YR_B17010_with_ann!AQ51","v":17},{"$f":"[1]ACS_16_5YR_B17010_with_ann!AR51","v":0},{"$f":"[1]ACS_16_5YR_B17010_with_ann!AS51","v":17},{"$f":"[1]ACS_16_5YR_B17010_with_ann!AT51","v":1351},{"$f":"[1]ACS_16_5YR_B17010_with_ann!AU51","v":165},{"$f":"[1]ACS_16_5YR_B17010_with_ann!AV51","v":1202},{"$f":"[1]ACS_16_5YR_B17010_with_ann!AW51","v":191},{"$f":"[1]ACS_16_5YR_B17010_with_ann!AX51","v":431},{"$f":"[1]ACS_16_5YR_B17010_with_ann!AY51","v":122},{"$f":"[1]ACS_16_5YR_B17010_with_ann!AZ51","v":0},{"$f":"[1]ACS_16_5YR_B17010_with_ann!BA51","v":17},{"$f":"[1]ACS_16_5YR_B17010_with_ann!BB51","v":92},{"$f":"[1]ACS_16_5YR_B17010_with_ann!BC51","v":91},{"$f":"[1]ACS_16_5YR_B17010_with_ann!BD51","v":339},{"$f":"[1]ACS_16_5YR_B17010_with_ann!BE51","v":118},{"$f":"[1]ACS_16_5YR_B17010_with_ann!BF51","v":771},{"$f":"[1]ACS_16_5YR_B17010_with_ann!BG51","v":188},{"$f":"[1]ACS_16_5YR_B17010_with_ann!BH51","v":149},{"$f":"[1]ACS_16_5YR_B17010_with_ann!BI51","v":74},{"$f":"[1]ACS_16_5YR_B17010_with_ann!BJ51","v":36},{"$f":"[1]ACS_16_5YR_B17010_with_ann!BK51","v":38},{"$f":"[1]ACS_16_5YR_B17010_with_ann!BL51","v":36},{"$f":"[1]ACS_16_5YR_B17010_with_ann!BM51","v":38},{"$f":"[1]ACS_16_5YR_B17010_with_ann!BN51","v":8},{"$f":"[1]ACS_16_5YR_B17010_with_ann!BO51","v":17},{"$f":"[1]ACS_16_5YR_B17010_with_ann!BP51","v":0},{"$f":"[1]ACS_16_5YR_B17010_with_ann!BQ51","v":17},{"$f":"[1]ACS_16_5YR_B17010_with_ann!BR51","v":28},{"$f":"[1]ACS_16_5YR_B17010_with_ann!BS51","v":35},{"$f":"[1]ACS_16_5YR_B17010_with_ann!BT51","v":0},{"$f":"[1]ACS_16_5YR_B17010_with_ann!BU51","v":17},{"$f":"[1]ACS_16_5YR_B17010_with_ann!BV51","v":113},{"$f":"[1]ACS_16_5YR_B17010_with_ann!BW51","v":75},{"$f":"[1]ACS_16_5YR_B17010_with_ann!BX51","v":60},{"$f":"[1]ACS_16_5YR_B17010_with_ann!BY51","v":50},{"$f":"[1]ACS_16_5YR_B17010_with_ann!BZ51","v":0},{"$f":"[1]ACS_16_5YR_B17010_with_ann!CA51","v":17},{"$f":"[1]ACS_16_5YR_B17010_with_ann!CB51","v":0},{"$f":"[1]ACS_16_5YR_B17010_with_ann!CC51","v":17},{"$f":"[1]ACS_16_5YR_B17010_with_ann!CD51","v":60},{"$f":"[1]ACS_16_5YR_B17010_with_ann!CE51","v":50},{"$f":"[1]ACS_16_5YR_B17010_with_ann!CF51","v":53},{"$f":"[1]ACS_16_5YR_B17010_with_ann!CG51","v":54}]
["06000US3300539300","0600000US3300545460","060",{"$f":"[1]ACS_16_5YR_B17010_with_ann!C52","v":"Keene"},{"$f":"[1]ACS_16_5YR_B17010_with_ann!D52","v":4541},{"$f":"[1]ACS_16_5YR_B17010_with_ann!E52","v":311},{"$f":"[1]ACS_16_5YR_B17010_with_ann!F52","v":174},{"$f":"[1]ACS_16_5YR_B17010_with_ann!G52","v":92},{"$f":"[1]ACS_16_5YR_B17010_with_ann!H52","v":48},{"$f":"[1]ACS_16_5YR_B17010_with_ann!I52","v":48},{"$f":"[1]ACS_16_5YR_B17010_with_ann!J52","v":28},{"$f":"[1]ACS_16_5YR_B17010_with_ann!K52","v":40},{"$f":"[1]ACS_16_5YR_B17010_with_ann!L52","v":28},{"$f":"[1]ACS_16_5YR_B17010_with_ann!M52","v":40},{"$f":"[1]ACS_16_5YR_B17010_with_ann!N52","v":0},{"$f":"[1]ACS_16_5YR_B17010_with_ann!O52","v":22},{"$f":"[1]ACS_16_5YR_B17010_with_ann!P52","v":0},{"$f":"[1]ACS_16_5YR_B17010_with_ann!Q52","v":22},{"$f":"[1]ACS_16_5YR_B17010_with_ann!R52","v":20},{"$f":"[1]ACS_16_5YR_B17010_with_ann!S52","v":26},{"$f":"[1]ACS_16_5YR_B17010_with_ann!T52","v":126},{"$f":"[1]ACS_16_5YR_B17010_with_ann!U52","v":79},{"$f":"[1]ACS_16_5YR_B17010_with_ann!V52","v":26},{"$f":"[1]ACS_16_5YR_B17010_with_ann!W52","v":30},{"$f":"[1]ACS_16_5YR_B17010_with_ann!X52","v":26},{"$f":"[1]ACS_16_5YR_B17010_with_ann!Y52","v":30},{"$f":"[1]ACS_16_5YR_B17010_with_ann!Z52","v":0},{"$f":"[1]ACS_16_5YR_B17010_with_ann!AA52","v":22},{"$f":"[1]ACS_16_5YR_B17010_with_ann!AB52","v":0},{"$f":"[1]ACS_16_5YR_B17010_with_ann!AC52","v":22},{"$f":"[1]ACS_16_5YR_B17010_with_ann!AD52","v":26},{"$f":"[1]ACS_16_5YR_B17010_with_ann!AE52","v":30},{"$f":"[1]ACS_16_5YR_B17010_with_ann!AF52","v":0},{"$f":"[1]ACS_16_5YR_B17010_with_ann!AG52","v":22},{"$f":"[1]ACS_16_5YR_B17010_with_ann!AH52","v":100},{"$f":"[1]ACS_16_5YR_B17010_with_ann!AI52","v":71},{"$f":"[1]ACS_16_5YR_B17010_with_ann!AJ52","v":79},{"$f":"[1]ACS_16_5YR_B17010_with_ann!AK52","v":66},{"$f":"[1]ACS_16_5YR_B17010_with_ann!AL52","v":17},{"$f":"[1]ACS_16_5YR_B17010_with_ann!AM52","v":29},{"$f":"[1]ACS_16_5YR_B17010_with_ann!AN52","v":27},{"$f":"[1]ACS_16_5YR_B17010_with_ann!AO52","v":38},{"$f":"[1]ACS_16_5YR_B17010_with_ann!AP52","v":35},{"$f":"[1]ACS_16_5YR_B17010_with_ann!AQ52","v":31},{"$f":"[1]ACS_16_5YR_B17010_with_ann!AR52","v":21},{"$f":"[1]ACS_16_5YR_B17010_with_ann!AS52","v":24},{"$f":"[1]ACS_16_5YR_B17010_with_ann!AT52","v":4367},{"$f":"[1]ACS_16_5YR_B17010_with_ann!AU52","v":293},{"$f":"[1]ACS_16_5YR_B17010_with_ann!AV52","v":3345},{"$f":"[1]ACS_16_5YR_B17010_with_ann!AW52","v":288},{"$f":"[1]ACS_16_5YR_B17010_with_ann!AX52","v":972},{"$f":"[1]ACS_16_5YR_B17010_with_ann!AY52","v":156},{"$f":"[1]ACS_16_5YR_B17010_with_ann!AZ52","v":180},{"$f":"[1]ACS_16_5YR_B17010_with_ann!BA52","v":82},{"$f":"[1]ACS_16_5YR_B17010_with_ann!BB52","v":203},{"$f":"[1]ACS_16_5YR_B17010_with_ann!BC52","v":63},{"$f":"[1]ACS_16_5YR_B17010_with_ann!BD52","v":589},{"$f":"[1]ACS_16_5YR_B17010_with_ann!BE52","v":140},{"$f":"[1]ACS_16_5YR_B17010_with_ann!BF52","v":2373},{"$f":"[1]ACS_16_5YR_B17010_with_ann!BG52","v":292},{"$f":"[1]ACS_16_5YR_B17010_with_ann!BH52","v":1022},{"$f":"[1]ACS_16_5YR_B17010_with_ann!BI52","v":212},{"$f":"[1]ACS_16_5YR_B17010_with_ann!BJ52","v":308},{"$f":"[1]ACS_16_5YR_B17010_with_ann!BK52","v":149},{"$f":"[1]ACS_16_5YR_B17010_with_ann!BL52","v":242},{"$f":"[1]ACS_16_5YR_B17010_with_ann!BM52","v":138},{"$f":"[1]ACS_16_5YR_B17010_with_ann!BN52","v":67},{"$f":"[1]ACS_16_5YR_B17010_with_ann!BO52","v":66},{"$f":"[1]ACS_16_5YR_B17010_with_ann!BP52","v":0},{"$f":"[1]ACS_16_5YR_B17010_with_ann!BQ52","v":22},{"$f":"[1]ACS_16_5YR_B17010_with_ann!BR52","v":175},{"$f":"[1]ACS_16_5YR_B17010_with_ann!BS52","v":113},{"$f":"[1]ACS_16_5YR_B17010_with_ann!BT52","v":66},{"$f":"[1]ACS_16_5YR_B17010_with_ann!BU52","v":59},{"$f":"[1]ACS_16_5YR_B17010_with_ann!BV52","v":714},{"$f":"[1]ACS_16_5YR_B17010_with_ann!BW52","v":163},{"$f":"[1]ACS_16_5YR_B17010_with_ann!BX52","v":361},{"$f":"[1]ACS_16_5YR_B17010_with_ann!BY52","v":120},{"$f":"[1]ACS_16_5YR_B17010_with_ann!BZ52","v":58},{"$f":"[1]ACS_16_5YR_B17010_with_ann!CA52","v":70},{"$f":"[1]ACS_16_5YR_B17010_with_ann!CB52","v":32},{"$f":"[1]ACS_16_5YR_B17010_with_ann!CC52","v":37},{"$f":"[1]ACS_16_5YR_B17010_with_ann!CD52","v":271},{"$f":"[1]ACS_16_5YR_B17010_with_ann!CE52","v":103},{"$f":"[1]ACS_16_5YR_B17010_with_ann!CF52","v":353},{"$f":"[1]ACS_16_5YR_B17010_with_ann!CG52","v":133}]
["06000US3300545460","0600000US3300545700","060",{"$f":"[1]ACS_16_5YR_B17010_with_ann!C53","v":"Marlborough"},{"$f":"[1]ACS_16_5YR_B17010_with_ann!D53","v":557},{"$f":"[1]ACS_16_5YR_B17010_with_ann!E53","v":107},{"$f":"[1]ACS_16_5YR_B17010_with_ann!F53","v":56},{"$f":"[1]ACS_16_5YR_B17010_with_ann!G53","v":64},{"$f":"[1]ACS_16_5YR_B17010_with_ann!H53","v":7},{"$f":"[1]ACS_16_5YR_B17010_with_ann!I53","v":10},{"$f":"[1]ACS_16_5YR_B17010_with_ann!J53","v":7},{"$f":"[1]ACS_16_5YR_B17010_with_ann!K53","v":10},{"$f":"[1]ACS_16_5YR_B17010_with_ann!L53","v":0},{"$f":"[1]ACS_16_5YR_B17010_with_ann!M53","v":12},{"$f":"[1]ACS_16_5YR_B17010_with_ann!N53","v":0},{"$f":"[1]ACS_16_5YR_B17010_with_ann!O53","v":12},{"$f":"[1]ACS_16_5YR_B17010_with_ann!P53","v":7},{"$f":"[1]ACS_16_5YR_B17010_with_ann!Q53","v":10},{"$f":"[1]ACS_16_5YR_B17010_with_ann!R53","v":0},{"$f":"[1]ACS_16_5YR_B17010_with_ann!S53","v":12},{"$f":"[1]ACS_16_5YR_B17010_with_ann!T53","v":49},{"$f":"[1]ACS_16_5YR_B17010_with_ann!U53","v":64},{"$f":"[1]ACS_16_5YR_B17010_with_ann!V53","v":0},{"$f":"[1]ACS_16_5YR_B17010_with_ann!W53","v":12},{"$f":"[1]ACS_16_5YR_B17010_with_ann!X53","v":0},{"$f":"[1]ACS_16_5YR_B17010_with_ann!Y53","v":12},{"$f":"[1]ACS_16_5YR_B17010_with_ann!Z53","v":0},{"$f":"[1]ACS_16_5YR_B17010_with_ann!AA53","v":12},{"$f":"[1]ACS_16_5YR_B17010_with_ann!AB53","v":0},{"$f":"[1]ACS_16_5YR_B17010_with_ann!AC53","v":12},{"$f":"[1]ACS_16_5YR_B17010_with_ann!AD53","v":0},{"$f":"[1]ACS_16_5YR_B17010_with_ann!AE53","v":12},{"$f":"[1]ACS_16_5YR_B17010_with_ann!AF53","v":0},{"$f":"[1]ACS_16_5YR_B17010_with_ann!AG53","v":12},{"$f":"[1]ACS_16_5YR_B17010_with_ann!AH53","v":49},{"$f":"[1]ACS_16_5YR_B17010_with_ann!AI53","v":64},{"$f":"[1]ACS_16_5YR_B17010_with_ann!AJ53","v":49},{"$f":"[1]ACS_16_5YR_B17010_with_ann!AK53","v":64},{"$f":"[1]ACS_16_5YR_B17010_with_ann!AL53","v":0},{"$f":"[1]ACS_16_5YR_B17010_with_ann!AM53","v":12},{"$f":"[1]ACS_16_5YR_B17010_with_ann!AN53","v":49},{"$f":"[1]ACS_16_5YR_B17010_with_ann!AO53","v":64},{"$f":"[1]ACS_16_5YR_B17010_with_ann!AP53","v":0},{"$f":"[1]ACS_16_5YR_B17010_with_ann!AQ53","v":12},{"$f":"[1]ACS_16_5YR_B17010_with_ann!AR53","v":0},{"$f":"[1]ACS_16_5YR_B17010_with_ann!AS53","v":12},{"$f":"[1]ACS_16_5YR_B17010_with_ann!AT53","v":501},{"$f":"[1]ACS_16_5YR_B17010_with_ann!AU53","v":112},{"$f":"[1]ACS_16_5YR_B17010_with_ann!AV53","v":439},{"$f":"[1]ACS_16_5YR_B17010_with_ann!AW53","v":100},{"$f":"[1]ACS_16_5YR_B17010_with_ann!AX53","v":197},{"$f":"[1]ACS_16_5YR_B17010_with_ann!AY53","v":86},{"$f":"[1]ACS_16_5YR_B17010_with_ann!AZ53","v":70},{"$f":"[1]ACS_16_5YR_B17010_with_ann!BA53","v":70},{"$f":"[1]ACS_16_5YR_B17010_with_ann!BB53","v":16},{"$f":"[1]ACS_16_5YR_B17010_with_ann!BC53","v":14},{"$f":"[1]ACS_16_5YR_B17010_with_ann!BD53","v":111},{"$f":"[1]ACS_16_5YR_B17010_with_ann!BE53","v":53},{"$f":"[1]ACS_16_5YR_B17010_with_ann!BF53","v":242},{"$f":"[1]ACS_16_5YR_B17010_with_ann!BG53","v":67},{"$f":"[1]ACS_16_5YR_B17010_with_ann!BH53","v":62},{"$f":"[1]ACS_16_5YR_B17010_with_ann!BI53","v":30},{"$f":"[1]ACS_16_5YR_B17010_with_ann!BJ53","v":21},{"$f":"[1]ACS_16_5YR_B17010_with_ann!BK53","v":22},{"$f":"[1]ACS_16_5YR_B17010_with_ann!BL53","v":16},{"$f":"[1]ACS_16_5YR_B17010_with_ann!BM53","v":21},{"$f":"[1]ACS_16_5YR_B17010_with_ann!BN53","v":0},{"$f":"[1]ACS_16_5YR_B17010_with_ann!BO53","v":12},{"$f":"[1]ACS_16_5YR_B17010_with_ann!BP53","v":0},{"$f":"[1]ACS_16_5YR_B17010_with_ann!BQ53","v":12},{"$f":"[1]ACS_16_5YR_B17010_with_ann!BR53","v":16},{"$f":"[1]ACS_16_5YR_B17010_with_ann!BS53","v":21},{"$f":"[1]ACS_16_5YR_B17010_with_ann!BT53","v":5},{"$f":"[1]ACS_16_5YR_B17010_with_ann!BU53","v":8},{"$f":"[1]ACS_16_5YR_B17010_with_ann!BV53","v":41},{"$f":"[1]ACS_16_5YR_B17010_with_ann!BW53","v":26},{"$f":"[1]ACS_16_5YR_B17010_with_ann!BX53","v":21},{"$f":"[1]ACS_16_5YR_B17010_with_ann!BY53","v":24},{"$f":"[1]ACS_16_5YR_B17010_with_ann!BZ53","v":14},{"$f":"[1]ACS_16_5YR_B17010_with_ann!CA53","v":21},{"$f":"[1]ACS_16_5YR_B17010_with_ann!CB53","v":0},{"$f":"[1]ACS_16_5YR_B17010_with_ann!CC53","v":12},{"$f":"[1]ACS_16_5YR_B17010_with_ann!CD53","v":7},{"$f":"[1]ACS_16_5YR_B17010_with_ann!CE53","v":13},{"$f":"[1]ACS_16_5YR_B17010_with_ann!CF53","v":20},{"$f":"[1]ACS_16_5YR_B17010_with_ann!CG53","v":16}]
["06000US3300545700","0600000US3300550580","060",{"$f":"[1]ACS_16_5YR_B17010_with_ann!C54","v":"Marlow"},{"$f":"[1]ACS_16_5YR_B17010_with_ann!D54","v":247},{"$f":"[1]ACS_16_5YR_B17010_with_ann!E54","v":59},{"$f":"[1]ACS_16_5YR_B17010_with_ann!F54","v":20},{"$f":"[1]ACS_16_5YR_B17010_with_ann!G54","v":15},{"$f":"[1]ACS_16_5YR_B17010_with_ann!H54","v":13},{"$f":"[1]ACS_16_5YR_B17010_with_ann!I54","v":12},{"$f":"[1]ACS_16_5YR_B17010_with_ann!J54","v":6},{"$f":"[1]ACS_16_5YR_B17010_with_ann!K54","v":7},{"$f":"[1]ACS_16_5YR_B17010_with_ann!L54","v":0},{"$f":"[1]ACS_16_5YR_B17010_with_ann!M54","v":12},{"$f":"[1]ACS_16_5YR_B17010_with_ann!N54","v":0},{"$f":"[1]ACS_16_5YR_B17010_with_ann!O54","v":12},{"$f":"[1]ACS_16_5YR_B17010_with_ann!P54","v":6},{"$f":"[1]ACS_16_5YR_B17010_with_ann!Q54","v":7},{"$f":"[1]ACS_16_5YR_B17010_with_ann!R54","v":7},{"$f":"[1]ACS_16_5YR_B17010_with_ann!S54","v":9},{"$f":"[1]ACS_16_5YR_B17010_with_ann!T54","v":7},{"$f":"[1]ACS_16_5YR_B17010_with_ann!U54","v":10},{"$f":"[1]ACS_16_5YR_B17010_with_ann!V54","v":0},{"$f":"[1]ACS_16_5YR_B17010_with_ann!W54","v":12},{"$f":"[1]ACS_16_5YR_B17010_with_ann!X54","v":0},{"$f":"[1]ACS_16_5YR_B17010_with_ann!Y54","v":12},{"$f":"[1]ACS_16_5YR_B17010_with_ann!Z54","v":0},{"$f":"[1]ACS_16_5YR_B17010_with_ann!AA54","v":12},{"$f":"[1]ACS_16_5YR_B17010_with_ann!AB54","v":0},{"$f":"[1]ACS_16_5YR_B17010_with_ann!AC54","v":12},{"$f":"[1]ACS_16_5YR_B17010_with_ann!AD54","v":0},{"$f":"[1]ACS_16_5YR_B17010_with_ann!AE54","v":12},{"$f":"[1]ACS_16_5YR_B17010_with_ann!AF54","v":0},{"$f":"[1]ACS_16_5YR_B17010_with_ann!AG54","v":12},{"$f":"[1]ACS_16_5YR_B17010_with_ann!AH54","v":7},{"$f":"[1]ACS_16_5YR_B17010_with_ann!AI54","v":10},{"$f":"[1]ACS_16_5YR_B17010_with_ann!AJ54","v":7},{"$f":"[1]ACS_16_5YR_B17010_with_ann!AK54","v":10},{"$f":"[1]ACS_16_5YR_B17010_with_ann!AL54","v":0},{"$f":"[1]ACS_16_5YR_B17010_with_ann!AM54","v":12},{"$f":"[1]ACS_16_5YR_B17010_with_ann!AN54","v":7},{"$f":"[1]ACS_16_5YR_B17010_with_ann!AO54","v":10},{"$f":"[1]ACS_16_5YR_B17010_with_ann!AP54","v":0},{"$f":"[1]ACS_16_5YR_B17010_with_ann!AQ54","v":12},{"$f":"[1]ACS_16_5YR_B17010_with_ann!AR54","v":0},{"$f":"[1]ACS_16_5YR_B17010_with_ann!AS54","v":12},{"$f":"[1]ACS_16_5YR_B17010_with_ann!AT54","v":227},{"$f":"[1]ACS_16_5YR_B17010_with_ann!AU54","v":58},{"$f":"[1]ACS_16_5YR_B17010_with_ann!AV54","v":214},{"$f":"[1]ACS_16_5YR_B17010_with_ann!AW54","v":55},{"$f":"[1]ACS_16_5YR_B17010_with_ann!AX54","v":74},{"$f":"[1]ACS_16_5YR_B17010_with_ann!AY54","v":35},{"$f":"[1]ACS_16_5YR_B17010_with_ann!AZ54","v":6},{"$f":"[1]ACS_16_5YR_B17010_with_ann!BA54","v":11},{"$f":"[1]ACS_16_5YR_B17010_with_ann!BB54","v":15},{"$f":"[1]ACS_16_5YR_B17010_with_ann!BC54","v":15},{"$f":"[1]ACS_16_5YR_B17010_with_ann!BD54","v":53},{"$f":"[1]ACS_16_5YR_B17010_with_ann!BE54","v":30},{"$f":"[1]ACS_16_5YR_B17010_with_ann!BF54","v":140},{"$f":"[1]ACS_16_5YR_B17010_with_ann!BG54","v":46},{"$f":"[1]ACS_16_5YR_B17010_with_ann!BH54","v":13},{"$f":"[1]ACS_16_5YR_B17010_with_ann!BI54","v":13},{"$f":"[1]ACS_16_5YR_B17010_with_ann!BJ54","v":8},{"$f":"[1]ACS_16_5YR_B17010_with_ann!BK54","v":12},{"$f":"[1]ACS_16_5YR_B17010_with_ann!BL54","v":8},{"$f":"[1]ACS_16_5YR_B17010_with_ann!BM54","v":12},{"$f":"[1]ACS_16_5YR_B17010_with_ann!BN54","v":0},{"$f":"[1]ACS_16_5YR_B17010_with_ann!BO54","v":12},{"$f":"[1]ACS_16_5YR_B17010_with_ann!BP54","v":0},{"$f":"[1]ACS_16_5YR_B17010_with_ann!BQ54","v":12},{"$f":"[1]ACS_16_5YR_B17010_with_ann!BR54","v":8},{"$f":"[1]ACS_16_5YR_B17010_with_ann!BS54","v":12},{"$f":"[1]ACS_16_5YR_B17010_with_ann!BT54","v":0},{"$f":"[1]ACS_16_5YR_B17010_with_ann!BU54","v":12},{"$f":"[1]ACS_16_5YR_B17010_with_ann!BV54","v":5},{"$f":"[1]ACS_16_5YR_B17010_with_ann!BW54","v":5},{"$f":"[1]ACS_16_5YR_B17010_with_ann!BX54","v":2},{"$f":"[1]ACS_16_5YR_B17010_with_ann!BY54","v":3},{"$f":"[1]ACS_16_5YR_B17010_with_ann!BZ54","v":0},{"$f":"[1]ACS_16_5YR_B17010_with_ann!CA54","v":12},{"$f":"[1]ACS_16_5YR_B17010_with_ann!CB54","v":0},{"$f":"[1]ACS_16_5YR_B17010_with_ann!CC54","v":12},{"$f":"[1]ACS_16_5YR_B17010_with_ann!CD54","v":2},{"$f":"[1]ACS_16_5YR_B17010_with_ann!CE54","v":3},{"$f":"[1]ACS_16_5YR_B17010_with_ann!CF54","v":3},{"$f":"[1]ACS_16_5YR_B17010_with_ann!CG54","v":4}]
["06000US3300550580","0600000US3300564420","060",{"$f":"[1]ACS_16_5YR_B17010_with_ann!C55","v":"Nelson"},{"$f":"[1]ACS_16_5YR_B17010_with_ann!D55","v":167},{"$f":"[1]ACS_16_5YR_B17010_with_ann!E55","v":39},{"$f":"[1]ACS_16_5YR_B17010_with_ann!F55","v":4},{"$f":"[1]ACS_16_5YR_B17010_with_ann!G55","v":4},{"$f":"[1]ACS_16_5YR_B17010_with_ann!H55","v":4},{"$f":"[1]ACS_16_5YR_B17010_with_ann!I55","v":4},{"$f":"[1]ACS_16_5YR_B17010_with_ann!J55","v":0},{"$f":"[1]ACS_16_5YR_B17010_with_ann!K55","v":12},{"$f":"[1]ACS_16_5YR_B17010_with_ann!L55","v":0},{"$f":"[1]ACS_16_5YR_B17010_with_ann!M55","v":12},{"$f":"[1]ACS_16_5YR_B17010_with_ann!N55","v":0},{"$f":"[1]ACS_16_5YR_B17010_with_ann!O55","v":12},{"$f":"[1]ACS_16_5YR_B17010_with_ann!P55","v":0},{"$f":"[1]ACS_16_5YR_B17010_with_ann!Q55","v":12},{"$f":"[1]ACS_16_5YR_B17010_with_ann!R55","v":4},{"$f":"[1]ACS_16_5YR_B17010_with_ann!S55","v":4},{"$f":"[1]ACS_16_5YR_B17010_with_ann!T55","v":0},{"$f":"[1]ACS_16_5YR_B17010_with_ann!U55","v":12},{"$f":"[1]ACS_16_5YR_B17010_with_ann!V55","v":0},{"$f":"[1]ACS_16_5YR_B17010_with_ann!W55","v":12},{"$f":"[1]ACS_16_5YR_B17010_with_ann!X55","v":0},{"$f":"[1]ACS_16_5YR_B17010_with_ann!Y55","v":12},{"$f":"[1]ACS_16_5YR_B17010_with_ann!Z55","v":0},{"$f":"[1]ACS_16_5YR_B17010_with_ann!AA55","v":12},{"$f":"[1]ACS_16_5YR_B17010_with_ann!AB55","v":0},{"$f":"[1]ACS_16_5YR_B17010_with_ann!AC55","v":12},{"$f":"[1]ACS_16_5YR_B17010_with_ann!AD55","v":0},{"$f":"[1]ACS_16_5YR_B17010_with_ann!AE55","v":12},{"$f":"[1]ACS_16_5YR_B17010_with_ann!AF55","v":0},{"$f":"[1]ACS_16_5YR_B17010_with_ann!AG55","v":12},{"$f":"[1]ACS_16_5YR_B17010_with_ann!AH55","v":0},{"$f":"[1]ACS_16_5YR_B17010_with_ann!AI55","v":12},{"$f":"[1]ACS_16_5YR_B17010_with_ann!AJ55","v":0},{"$f":"[1]ACS_16_5YR_B17010_with_ann!AK55","v":12},{"$f":"[1]ACS_16_5YR_B17010_with_ann!AL55","v":0},{"$f":"[1]ACS_16_5YR_B17010_with_ann!AM55","v":12},{"$f":"[1]ACS_16_5YR_B17010_with_ann!AN55","v":0},{"$f":"[1]ACS_16_5YR_B17010_with_ann!AO55","v":12},{"$f":"[1]ACS_16_5YR_B17010_with_ann!AP55","v":0},{"$f":"[1]ACS_16_5YR_B17010_with_ann!AQ55","v":12},{"$f":"[1]ACS_16_5YR_B17010_with_ann!AR55","v":0},{"$f":"[1]ACS_16_5YR_B17010_with_ann!AS55","v":12},{"$f":"[1]ACS_16_5YR_B17010_with_ann!AT55","v":163},{"$f":"[1]ACS_16_5YR_B17010_with_ann!AU55","v":39},{"$f":"[1]ACS_16_5YR_B17010_with_ann!AV55","v":132},{"$f":"[1]ACS_16_5YR_B17010_with_ann!AW55","v":32},{"$f":"[1]ACS_16_5YR_B17010_with_ann!AX55","v":27},{"$f":"[1]ACS_16_5YR_B17010_with_ann!AY55","v":14},{"$f":"[1]ACS_16_5YR_B17010_with_ann!AZ55","v":6},{"$f":"[1]ACS_16_5YR_B17010_with_ann!BA55","v":6},{"$f":"[1]ACS_16_5YR_B17010_with_ann!BB55","v":3},{"$f":"[1]ACS_16_5YR_B17010_with_ann!BC55","v":4},{"$f":"[1]ACS_16_5YR_B17010_with_ann!BD55","v":18},{"$f":"[1]ACS_16_5YR_B17010_with_ann!BE55","v":13},{"$f":"[1]ACS_16_5YR_B17010_with_ann!BF55","v":105},{"$f":"[1]ACS_16_5YR_B17010_with_ann!BG55","v":31},{"$f":"[1]ACS_16_5YR_B17010_with_ann!BH55","v":31},{"$f":"[1]ACS_16_5YR_B17010_with_ann!BI55","v":18},{"$f":"[1]ACS_16_5YR_B17010_with_ann!BJ55","v":10},{"$f":"[1]ACS_16_5YR_B17010_with_ann!BK55","v":10},{"$f":"[1]ACS_16_5YR_B17010_with_ann!BL55","v":9},{"$f":"[1]ACS_16_5YR_B17010_with_ann!BM55","v":10},{"$f":"[1]ACS_16_5YR_B17010_with_ann!BN55","v":2},{"$f":"[1]ACS_16_5YR_B17010_with_ann!BO55","v":3},{"$f":"[1]ACS_16_5YR_B17010_with_ann!BP55","v":0},{"$f":"[1]ACS_16_5YR_B17010_with_ann!BQ55","v":12},{"$f":"[1]ACS_16_5YR_B17010_with_ann!BR55","v":7},{"$f":"[1]ACS_16_5YR_B17010_with_ann!BS55","v":10},{"$f":"[1]ACS_16_5YR_B17010_with_ann!BT55","v":1},{"$f":"[1]ACS_16_5YR_B17010_with_ann!BU55","v":2},{"$f":"[1]ACS_16_5YR_B17010_with_ann!BV55","v":21},{"$f":"[1]ACS_16_5YR_B17010_with_ann!BW55","v":14},{"$f":"[1]ACS_16_5YR_B17010_with_ann!BX55","v":7},{"$f":"[1]ACS_16_5YR_B17010_with_ann!BY55","v":7},{"$f":"[1]ACS_16_5YR_B17010_with_ann!BZ55","v":3},{"$f":"[1]ACS_16_5YR_B17010_with_ann!CA55","v":3},{"$f":"[1]ACS_16_5YR_B17010_with_ann!CB55","v":0},{"$f":"[1]ACS_16_5YR_B17010_with_ann!CC55","v":12},{"$f":"[1]ACS_16_5YR_B17010_with_ann!CD55","v":4},{"$f":"[1]ACS_16_5YR_B17010_with_ann!CE55","v":6},{"$f":"[1]ACS_16_5YR_B17010_with_ann!CF55","v":14},{"$f":"[1]ACS_16_5YR_B17010_with_ann!CG55","v":11}]
["06000US3300564420","0600000US3300564580","060",{"$f":"[1]ACS_16_5YR_B17010_with_ann!C56","v":"Richmond"},{"$f":"[1]ACS_16_5YR_B17010_with_ann!D56","v":316},{"$f":"[1]ACS_16_5YR_B17010_with_ann!E56","v":68},{"$f":"[1]ACS_16_5YR_B17010_with_ann!F56","v":12},{"$f":"[1]ACS_16_5YR_B17010_with_ann!G56","v":20},{"$f":"[1]ACS_16_5YR_B17010_with_ann!H56","v":0},{"$f":"[1]ACS_16_5YR_B17010_with_ann!I56","v":12},{"$f":"[1]ACS_16_5YR_B17010_with_ann!J56","v":0},{"$f":"[1]ACS_16_5YR_B17010_with_ann!K56","v":12},{"$f":"[1]ACS_16_5YR_B17010_with_ann!L56","v":0},{"$f":"[1]ACS_16_5YR_B17010_with_ann!M56","v":12},{"$f":"[1]ACS_16_5YR_B17010_with_ann!N56","v":0},{"$f":"[1]ACS_16_5YR_B17010_with_ann!O56","v":12},{"$f":"[1]ACS_16_5YR_B17010_with_ann!P56","v":0},{"$f":"[1]ACS_16_5YR_B17010_with_ann!Q56","v":12},{"$f":"[1]ACS_16_5YR_B17010_with_ann!R56","v":0},{"$f":"[1]ACS_16_5YR_B17010_with_ann!S56","v":12},{"$f":"[1]ACS_16_5YR_B17010_with_ann!T56","v":12},{"$f":"[1]ACS_16_5YR_B17010_with_ann!U56","v":20},{"$f":"[1]ACS_16_5YR_B17010_with_ann!V56","v":0},{"$f":"[1]ACS_16_5YR_B17010_with_ann!W56","v":12},{"$f":"[1]ACS_16_5YR_B17010_with_ann!X56","v":0},{"$f":"[1]ACS_16_5YR_B17010_with_ann!Y56","v":12},{"$f":"[1]ACS_16_5YR_B17010_with_ann!Z56","v":0},{"$f":"[1]ACS_16_5YR_B17010_with_ann!AA56","v":12},{"$f":"[1]ACS_16_5YR_B17010_with_ann!AB56","v":0},{"$f":"[1]ACS_16_5YR_B17010_with_ann!AC56","v":12},{"$f":"[1]ACS_16_5YR_B17010_with_ann!AD56","v":0},{"$f":"[1]ACS_16_5YR_B17010_with_ann!AE56","v":12},{"$f":"[1]ACS_16_5YR_B17010_with_ann!AF56","v":0},{"$f":"[1]ACS_16_5YR_B17010_with_ann!AG56","v":12},{"$f":"[1]ACS_16_5YR_B17010_with_ann!AH56","v":12},{"$f":"[1]ACS_16_5YR_B17010_with_ann!AI56","v":20},{"$f":"[1]ACS_16_5YR_B17010_with_ann!AJ56","v":0},{"$f":"[1]ACS_16_5YR_B17010_with_ann!AK56","v":12},{"$f":"[1]ACS_16_5YR_B17010_with_ann!AL56","v":0},{"$f":"[1]ACS_16_5YR_B17010_with_ann!AM56","v":12},{"$f":"[1]ACS_16_5YR_B17010_with_ann!AN56","v":0},{"$f":"[1]ACS_16_5YR_B17010_with_ann!AO56","v":12},{"$f":"[1]ACS_16_5YR_B17010_with_ann!AP56","v":0},{"$f":"[1]ACS_16_5YR_B17010_with_ann!AQ56","v":12},{"$f":"[1]ACS_16_5YR_B17010_with_ann!AR56","v":12},{"$f":"[1]ACS_16_5YR_B17010_with_ann!AS56","v":20},{"$f":"[1]ACS_16_5YR_B17010_with_ann!AT56","v":304},{"$f":"[1]ACS_16_5YR_B17010_with_ann!AU56","v":67},{"$f":"[1]ACS_16_5YR_B17010_with_ann!AV56","v":245},{"$f":"[1]ACS_16_5YR_B17010_with_ann!AW56","v":57},{"$f":"[1]ACS_16_5YR_B17010_with_ann!AX56","v":66},{"$f":"[1]ACS_16_5YR_B17010_with_ann!AY56","v":27},{"$f":"[1]ACS_16_5YR_B17010_with_ann!AZ56","v":2},{"$f":"[1]ACS_16_5YR_B17010_with_ann!BA56","v":4},{"$f":"[1]ACS_16_5YR_B17010_with_ann!BB56","v":15},{"$f":"[1]ACS_16_5YR_B17010_with_ann!BC56","v":12},{"$f":"[1]ACS_16_5YR_B17010_with_ann!BD56","v":49},{"$f":"[1]ACS_16_5YR_B17010_with_ann!BE56","v":26},{"$f":"[1]ACS_16_5YR_B17010_with_ann!BF56","v":179},{"$f":"[1]ACS_16_5YR_B17010_with_ann!BG56","v":49},{"$f":"[1]ACS_16_5YR_B17010_with_ann!BH56","v":59},{"$f":"[1]ACS_16_5YR_B17010_with_ann!BI56","v":36},{"$f":"[1]ACS_16_5YR_B17010_with_ann!BJ56","v":41},{"$f":"[1]ACS_16_5YR_B17010_with_ann!BK56","v":37},{"$f":"[1]ACS_16_5YR_B17010_with_ann!BL56","v":8},{"$f":"[1]ACS_16_5YR_B17010_with_ann!BM56","v":13},{"$f":"[1]ACS_16_5YR_B17010_with_ann!BN56","v":8},{"$f":"[1]ACS_16_5YR_B17010_with_ann!BO56","v":13},{"$f":"[1]ACS_16_5YR_B17010_with_ann!BP56","v":0},{"$f":"[1]ACS_16_5YR_B17010_with_ann!BQ56","v":12},{"$f":"[1]ACS_16_5YR_B17010_with_ann!BR56","v":0},{"$f":"[1]ACS_16_5YR_B17010_with_ann!BS56","v":12},{"$f":"[1]ACS_16_5YR_B17010_with_ann!BT56","v":33},{"$f":"[1]ACS_16_5YR_B17010_with_ann!BU56","v":34},{"$f":"[1]ACS_16_5YR_B17010_with_ann!BV56","v":18},{"$f":"[1]ACS_16_5YR_B17010_with_ann!BW56","v":14},{"$f":"[1]ACS_16_5YR_B17010_with_ann!BX56","v":4},{"$f":"[1]ACS_16_5YR_B17010_with_ann!BY56","v":6},{"$f":"[1]ACS_16_5YR_B17010_with_ann!BZ56","v":0},{"$f":"[1]ACS_16_5YR_B17010_with_ann!CA56","v":12},{"$f":"[1]ACS_16_5YR_B17010_with_ann!CB56","v":0},{"$f":"[1]ACS_16_5YR_B17010_with_ann!CC56","v":12},{"$f":"[1]ACS_16_5YR_B17010_with_ann!CD56","v":4},{"$f":"[1]ACS_16_5YR_B17010_with_ann!CE56","v":6},{"$f":"[1]ACS_16_5YR_B17010_with_ann!CF56","v":14},{"$f":"[1]ACS_16_5YR_B17010_with_ann!CG56","v":11}]
["06000US3300564580","0600000US3300565700","060",{"$f":"[1]ACS_16_5YR_B17010_with_ann!C57","v":"Rindge"},{"$f":"[1]ACS_16_5YR_B17010_with_ann!D57","v":1451},{"$f":"[1]ACS_16_5YR_B17010_with_ann!E57","v":123},{"$f":"[1]ACS_16_5YR_B17010_with_ann!F57","v":79},{"$f":"[1]ACS_16_5YR_B17010_with_ann!G57","v":55},{"$f":"[1]ACS_16_5YR_B17010_with_ann!H57","v":59},{"$f":"[1]ACS_16_5YR_B17010_with_ann!I57","v":48},{"$f":"[1]ACS_16_5YR_B17010_with_ann!J57","v":10},{"$f":"[1]ACS_16_5YR_B17010_with_ann!K57","v":18},{"$f":"[1]ACS_16_5YR_B17010_with_ann!L57","v":0},{"$f":"[1]ACS_16_5YR_B17010_with_ann!M57","v":17},{"$f":"[1]ACS_16_5YR_B17010_with_ann!N57","v":10},{"$f":"[1]ACS_16_5YR_B17010_with_ann!O57","v":18},{"$f":"[1]ACS_16_5YR_B17010_with_ann!P57","v":0},{"$f":"[1]ACS_16_5YR_B17010_with_ann!Q57","v":17},{"$f":"[1]ACS_16_5YR_B17010_with_ann!R57","v":49},{"$f":"[1]ACS_16_5YR_B17010_with_ann!S57","v":45},{"$f":"[1]ACS_16_5YR_B17010_with_ann!T57","v":20},{"$f":"[1]ACS_16_5YR_B17010_with_ann!U57","v":24},{"$f":"[1]ACS_16_5YR_B17010_with_ann!V57","v":0},{"$f":"[1]ACS_16_5YR_B17010_with_ann!W57","v":17},{"$f":"[1]ACS_16_5YR_B17010_with_ann!X57","v":0},{"$f":"[1]ACS_16_5YR_B17010_with_ann!Y57","v":17},{"$f":"[1]ACS_16_5YR_B17010_with_ann!Z57","v":0},{"$f":"[1]ACS_16_5YR_B17010_with_ann!AA57","v":17},{"$f":"[1]ACS_16_5YR_B17010_with_ann!AB57","v":0},{"$f":"[1]ACS_16_5YR_B17010_with_ann!AC57","v":17},{"$f":"[1]ACS_16_5YR_B17010_with_ann!AD57","v":0},{"$f":"[1]ACS_16_5YR_B17010_with_ann!AE57","v":17},{"$f":"[1]ACS_16_5YR_B17010_with_ann!AF57","v":0},{"$f":"[1]ACS_16_5YR_B17010_with_ann!AG57","v":17},{"$f":"[1]ACS_16_5YR_B17010_with_ann!AH57","v":20},{"$f":"[1]ACS_16_5YR_B17010_with_ann!AI57","v":24},{"$f":"[1]ACS_16_5YR_B17010_with_ann!AJ57","v":14},{"$f":"[1]ACS_16_5YR_B17010_with_ann!AK57","v":22},{"$f":"[1]ACS_16_5YR_B17010_with_ann!AL57","v":0},{"$f":"[1]ACS_16_5YR_B17010_with_ann!AM57","v":17},{"$f":"[1]ACS_16_5YR_B17010_with_ann!AN57","v":0},{"$f":"[1]ACS_16_5YR_B17010_with_ann!AO57","v":17},{"$f":"[1]ACS_16_5YR_B17010_with_ann!AP57","v":14},{"$f":"[1]ACS_16_5YR_B17010_with_ann!AQ57","v":22},{"$f":"[1]ACS_16_5YR_B17010_with_ann!AR57","v":6},{"$f":"[1]ACS_16_5YR_B17010_with_ann!AS57","v":10},{"$f":"[1]ACS_16_5YR_B17010_with_ann!AT57","v":1372},{"$f":"[1]ACS_16_5YR_B17010_with_ann!AU57","v":129},{"$f":"[1]ACS_16_5YR_B17010_with_ann!AV57","v":1309},{"$f":"[1]ACS_16_5YR_B17010_with_ann!AW57","v":127},{"$f":"[1]ACS_16_5YR_B17010_with_ann!AX57","v":383},{"$f":"[1]ACS_16_5YR_B17010_with_ann!AY57","v":88},{"$f":"[1]ACS_16_5YR_B17010_with_ann!AZ57","v":13},{"$f":"[1]ACS_16_5YR_B17010_with_ann!BA57","v":16},{"$f":"[1]ACS_16_5YR_B17010_with_ann!BB57","v":70},{"$f":"[1]ACS_16_5YR_B17010_with_ann!BC57","v":45},{"$f":"[1]ACS_16_5YR_B17010_with_ann!BD57","v":300},{"$f":"[1]ACS_16_5YR_B17010_with_ann!BE57","v":93},{"$f":"[1]ACS_16_5YR_B17010_with_ann!BF57","v":926},{"$f":"[1]ACS_16_5YR_B17010_with_ann!BG57","v":139},{"$f":"[1]ACS_16_5YR_B17010_with_ann!BH57","v":63},{"$f":"[1]ACS_16_5YR_B17010_with_ann!BI57","v":41},{"$f":"[1]ACS_16_5YR_B17010_with_ann!BJ57","v":35},{"$f":"[1]ACS_16_5YR_B17010_with_ann!BK57","v":38},{"$f":"[1]ACS_16_5YR_B17010_with_ann!BL57","v":35},{"$f":"[1]ACS_16_5YR_B17010_with_ann!BM57","v":38},{"$f":"[1]ACS_16_5YR_B17010_with_ann!BN57","v":35},{"$f":"[1]ACS_16_5YR_B17010_with_ann!BO57","v":38},{"$f":"[1]ACS_16_5YR_B17010_with_ann!BP57","v":0},{"$f":"[1]ACS_16_5YR_B17010_with_ann!BQ57","v":17},{"$f":"[1]ACS_16_5YR_B17010_with_ann!BR57","v":0},{"$f":"[1]ACS_16_5YR_B17010_with_ann!BS57","v":17},{"$f":"[1]ACS_16_5YR_B17010_with_ann!BT57","v":0},{"$f":"[1]ACS_16_5YR_B17010_with_ann!BU57","v":17},{"$f":"[1]ACS_16_5YR_B17010_with_ann!BV57","v":28},{"$f":"[1]ACS_16_5YR_B17010_with_ann!BW57","v":32},{"$f":"[1]ACS_16_5YR_B17010_with_ann!BX57","v":20},{"$f":"[1]ACS_16_5YR_B17010_with_ann!BY57","v":30},{"$f":"[1]ACS_16_5YR_B17010_with_ann!BZ57","v":0},{"$f":"[1]ACS_16_5YR_B17010_with_ann!CA57","v":17},{"$f":"[1]ACS_16_5YR_B17010_with_ann!CB57","v":0},{"$f":"[1]ACS_16_5YR_B17010_with_ann!CC57","v":17},{"$f":"[1]ACS_16_5YR_B17010_with_ann!CD57","v":20},{"$f":"[1]ACS_16_5YR_B17010_with_ann!CE57","v":30},{"$f":"[1]ACS_16_5YR_B17010_with_ann!CF57","v":8},{"$f":"[1]ACS_16_5YR_B17010_with_ann!CG57","v":13}]
["06000US3300565700","0600000US3300573700","060",{"$f":"[1]ACS_16_5YR_B17010_with_ann!C58","v":"Roxbury"},{"$f":"[1]ACS_16_5YR_B17010_with_ann!D58","v":66},{"$f":"[1]ACS_16_5YR_B17010_with_ann!E58","v":37},{"$f":"[1]ACS_16_5YR_B17010_with_ann!F58","v":0},{"$f":"[1]ACS_16_5YR_B17010_with_ann!G58","v":12},{"$f":"[1]ACS_16_5YR_B17010_with_ann!H58","v":0},{"$f":"[1]ACS_16_5YR_B17010_with_ann!I58","v":12},{"$f":"[1]ACS_16_5YR_B17010_with_ann!J58","v":0},{"$f":"[1]ACS_16_5YR_B17010_with_ann!K58","v":12},{"$f":"[1]ACS_16_5YR_B17010_with_ann!L58","v":0},{"$f":"[1]ACS_16_5YR_B17010_with_ann!M58","v":12},{"$f":"[1]ACS_16_5YR_B17010_with_ann!N58","v":0},{"$f":"[1]ACS_16_5YR_B17010_with_ann!O58","v":12},{"$f":"[1]ACS_16_5YR_B17010_with_ann!P58","v":0},{"$f":"[1]ACS_16_5YR_B17010_with_ann!Q58","v":12},{"$f":"[1]ACS_16_5YR_B17010_with_ann!R58","v":0},{"$f":"[1]ACS_16_5YR_B17010_with_ann!S58","v":12},{"$f":"[1]ACS_16_5YR_B17010_with_ann!T58","v":0},{"$f":"[1]ACS_16_5YR_B17010_with_ann!U58","v":12},{"$f":"[1]ACS_16_5YR_B17010_with_ann!V58","v":0},{"$f":"[1]ACS_16_5YR_B17010_with_ann!W58","v":12},{"$f":"[1]ACS_16_5YR_B17010_with_ann!X58","v":0},{"$f":"[1]ACS_16_5YR_B17010_with_ann!Y58","v":12},{"$f":"[1]ACS_16_5YR_B17010_with_ann!Z58","v":0},{"$f":"[1]ACS_16_5YR_B17010_with_ann!AA58","v":12},{"$f":"[1]ACS_16_5YR_B17010_with_ann!AB58","v":0},{"$f":"[1]ACS_16_5YR_B17010_with_ann!AC58","v":12},{"$f":"[1]ACS_16_5YR_B17010_with_ann!AD58","v":0},{"$f":"[1]ACS_16_5YR_B17010_with_ann!AE58","v":12},{"$f":"[1]ACS_16_5YR_B17010_with_ann!AF58","v":0},{"$f":"[1]ACS_16_5YR_B17010_with_ann!AG58","v":12},{"$f":"[1]ACS_16_5YR_B17010_with_ann!AH58","v":0},{"$f":"[1]ACS_16_5YR_B17010_with_ann!AI58","v":12},{"$f":"[1]ACS_16_5YR_B17010_with_ann!AJ58","v":0},{"$f":"[1]ACS_16_5YR_B17010_with_ann!AK58","v":12},{"$f":"[1]ACS_16_5YR_B17010_with_ann!AL58","v":0},{"$f":"[1]ACS_16_5YR_B17010_with_ann!AM58","v":12},{"$f":"[1]ACS_16_5YR_B17010_with_ann!AN58","v":0},{"$f":"[1]ACS_16_5YR_B17010_with_ann!AO58","v":12},{"$f":"[1]ACS_16_5YR_B17010_with_ann!AP58","v":0},{"$f":"[1]ACS_16_5YR_B17010_with_ann!AQ58","v":12},{"$f":"[1]ACS_16_5YR_B17010_with_ann!AR58","v":0},{"$f":"[1]ACS_16_5YR_B17010_with_ann!AS58","v":12},{"$f":"[1]ACS_16_5YR_B17010_with_ann!AT58","v":66},{"$f":"[1]ACS_16_5YR_B17010_with_ann!AU58","v":37},{"$f":"[1]ACS_16_5YR_B17010_with_ann!AV58","v":57},{"$f":"[1]ACS_16_5YR_B17010_with_ann!AW58","v":37},{"$f":"[1]ACS_16_5YR_B17010_with_ann!AX58","v":11},{"$f":"[1]ACS_16_5YR_B17010_with_ann!AY58","v":11},{"$f":"[1]ACS_16_5YR_B17010_with_ann!AZ58","v":2},{"$f":"[1]ACS_16_5YR_B17010_with_ann!BA58","v":3},{"$f":"[1]ACS_16_5YR_B17010_with_ann!BB58","v":4},{"$f":"[1]ACS_16_5YR_B17010_with_ann!BC58","v":5},{"$f":"[1]ACS_16_5YR_B17010_with_ann!BD58","v":5},{"$f":"[1]ACS_16_5YR_B17010_with_ann!BE58","v":6},{"$f":"[1]ACS_16_5YR_B17010_with_ann!BF58","v":46},{"$f":"[1]ACS_16_5YR_B17010_with_ann!BG58","v":40},{"$f":"[1]ACS_16_5YR_B17010_with_ann!BH58","v":9},{"$f":"[1]ACS_16_5YR_B17010_with_ann!BI58","v":11},{"$f":"[1]ACS_16_5YR_B17010_with_ann!BJ58","v":8},{"$f":"[1]ACS_16_5YR_B17010_with_ann!BK58","v":11},{"$f":"[1]ACS_16_5YR_B17010_with_ann!BL58","v":1},{"$f":"[1]ACS_16_5YR_B17010_with_ann!BM58","v":2},{"$f":"[1]ACS_16_5YR_B17010_with_ann!BN58","v":1},{"$f":"[1]ACS_16_5YR_B17010_with_ann!BO58","v":2},{"$f":"[1]ACS_16_5YR_B17010_with_ann!BP58","v":0},{"$f":"[1]ACS_16_5YR_B17010_with_ann!BQ58","v":12},{"$f":"[1]ACS_16_5YR_B17010_with_ann!BR58","v":0},{"$f":"[1]ACS_16_5YR_B17010_with_ann!BS58","v":12},{"$f":"[1]ACS_16_5YR_B17010_with_ann!BT58","v":7},{"$f":"[1]ACS_16_5YR_B17010_with_ann!BU58","v":10},{"$f":"[1]ACS_16_5YR_B17010_with_ann!BV58","v":1},{"$f":"[1]ACS_16_5YR_B17010_with_ann!BW58","v":2},{"$f":"[1]ACS_16_5YR_B17010_with_ann!BX58","v":0},{"$f":"[1]ACS_16_5YR_B17010_with_ann!BY58","v":12},{"$f":"[1]ACS_16_5YR_B17010_with_ann!BZ58","v":0},{"$f":"[1]ACS_16_5YR_B17010_with_ann!CA58","v":12},{"$f":"[1]ACS_16_5YR_B17010_with_ann!CB58","v":0},{"$f":"[1]ACS_16_5YR_B17010_with_ann!CC58","v":12},{"$f":"[1]ACS_16_5YR_B17010_with_ann!CD58","v":0},{"$f":"[1]ACS_16_5YR_B17010_with_ann!CE58","v":12},{"$f":"[1]ACS_16_5YR_B17010_with_ann!CF58","v":1},{"$f":"[1]ACS_16_5YR_B17010_with_ann!CG58","v":2}]
["06000US3300573700","0600000US3300574900","060",{"$f":"[1]ACS_16_5YR_B17010_with_ann!C59","v":"Stoddard"},{"$f":"[1]ACS_16_5YR_B17010_with_ann!D59","v":297},{"$f":"[1]ACS_16_5YR_B17010_with_ann!E59","v":45},{"$f":"[1]ACS_16_5YR_B17010_with_ann!F59","v":5},{"$f":"[1]ACS_16_5YR_B17010_with_ann!G59","v":8},{"$f":"[1]ACS_16_5YR_B17010_with_ann!H59","v":0},{"$f":"[1]ACS_16_5YR_B17010_with_ann!I59","v":12},{"$f":"[1]ACS_16_5YR_B17010_with_ann!J59","v":0},{"$f":"[1]ACS_16_5YR_B17010_with_ann!K59","v":12},{"$f":"[1]ACS_16_5YR_B17010_with_ann!L59","v":0},{"$f":"[1]ACS_16_5YR_B17010_with_ann!M59","v":12},{"$f":"[1]ACS_16_5YR_B17010_with_ann!N59","v":0},{"$f":"[1]ACS_16_5YR_B17010_with_ann!O59","v":12},{"$f":"[1]ACS_16_5YR_B17010_with_ann!P59","v":0},{"$f":"[1]ACS_16_5YR_B17010_with_ann!Q59","v":12},{"$f":"[1]ACS_16_5YR_B17010_with_ann!R59","v":0},{"$f":"[1]ACS_16_5YR_B17010_with_ann!S59","v":12},{"$f":"[1]ACS_16_5YR_B17010_with_ann!T59","v":5},{"$f":"[1]ACS_16_5YR_B17010_with_ann!U59","v":8},{"$f":"[1]ACS_16_5YR_B17010_with_ann!V59","v":5},{"$f":"[1]ACS_16_5YR_B17010_with_ann!W59","v":8},{"$f":"[1]ACS_16_5YR_B17010_with_ann!X59","v":5},{"$f":"[1]ACS_16_5YR_B17010_with_ann!Y59","v":8},{"$f":"[1]ACS_16_5YR_B17010_with_ann!Z59","v":0},{"$f":"[1]ACS_16_5YR_B17010_with_ann!AA59","v":12},{"$f":"[1]ACS_16_5YR_B17010_with_ann!AB59","v":5},{"$f":"[1]ACS_16_5YR_B17010_with_ann!AC59","v":8},{"$f":"[1]ACS_16_5YR_B17010_with_ann!AD59","v":0},{"$f":"[1]ACS_16_5YR_B17010_with_ann!AE59","v":12},{"$f":"[1]ACS_16_5YR_B17010_with_ann!AF59","v":0},{"$f":"[1]ACS_16_5YR_B17010_with_ann!AG59","v":12},{"$f":"[1]ACS_16_5YR_B17010_with_ann!AH59","v":0},{"$f":"[1]ACS_16_5YR_B17010_with_ann!AI59","v":12},{"$f":"[1]ACS_16_5YR_B17010_with_ann!AJ59","v":0},{"$f":"[1]ACS_16_5YR_B17010_with_ann!AK59","v":12},{"$f":"[1]ACS_16_5YR_B17010_with_ann!AL59","v":0},{"$f":"[1]ACS_16_5YR_B17010_with_ann!AM59","v":12},{"$f":"[1]ACS_16_5YR_B17010_with_ann!AN59","v":0},{"$f":"[1]ACS_16_5YR_B17010_with_ann!AO59","v":12},{"$f":"[1]ACS_16_5YR_B17010_with_ann!AP59","v":0},{"$f":"[1]ACS_16_5YR_B17010_with_ann!AQ59","v":12},{"$f":"[1]ACS_16_5YR_B17010_with_ann!AR59","v":0},{"$f":"[1]ACS_16_5YR_B17010_with_ann!AS59","v":12},{"$f":"[1]ACS_16_5YR_B17010_with_ann!AT59","v":292},{"$f":"[1]ACS_16_5YR_B17010_with_ann!AU59","v":46},{"$f":"[1]ACS_16_5YR_B17010_with_ann!AV59","v":259},{"$f":"[1]ACS_16_5YR_B17010_with_ann!AW59","v":45},{"$f":"[1]ACS_16_5YR_B17010_with_ann!AX59","v":74},{"$f":"[1]ACS_16_5YR_B17010_with_ann!AY59","v":27},{"$f":"[1]ACS_16_5YR_B17010_with_ann!AZ59","v":22},{"$f":"[1]ACS_16_5YR_B17010_with_ann!BA59","v":11},{"$f":"[1]ACS_16_5YR_B17010_with_ann!BB59","v":4},{"$f":"[1]ACS_16_5YR_B17010_with_ann!BC59","v":5},{"$f":"[1]ACS_16_5YR_B17010_with_ann!BD59","v":48},{"$f":"[1]ACS_16_5YR_B17010_with_ann!BE59","v":22},{"$f":"[1]ACS_16_5YR_B17010_with_ann!BF59","v":185},{"$f":"[1]ACS_16_5YR_B17010_with_ann!BG59","v":42},{"$f":"[1]ACS_16_5YR_B17010_with_ann!BH59","v":33},{"$f":"[1]ACS_16_5YR_B17010_with_ann!BI59","v":20},{"$f":"[1]ACS_16_5YR_B17010_with_ann!BJ59","v":14},{"$f":"[1]ACS_16_5YR_B17010_with_ann!BK59","v":15},{"$f":"[1]ACS_16_5YR_B17010_with_ann!BL59","v":14},{"$f":"[1]ACS_16_5YR_B17010_with_ann!BM59","v":15},{"$f":"[1]ACS_16_5YR_B17010_with_ann!BN59","v":2},{"$f":"[1]ACS_16_5YR_B17010_with_ann!BO59","v":4},{"$f":"[1]ACS_16_5YR_B17010_with_ann!BP59","v":0},{"$f":"[1]ACS_16_5YR_B17010_with_ann!BQ59","v":12},{"$f":"[1]ACS_16_5YR_B17010_with_ann!BR59","v":12},{"$f":"[1]ACS_16_5YR_B17010_with_ann!BS59","v":15},{"$f":"[1]ACS_16_5YR_B17010_with_ann!BT59","v":0},{"$f":"[1]ACS_16_5YR_B17010_with_ann!BU59","v":12},{"$f":"[1]ACS_16_5YR_B17010_with_ann!BV59","v":19},{"$f":"[1]ACS_16_5YR_B17010_with_ann!BW59","v":13},{"$f":"[1]ACS_16_5YR_B17010_with_ann!BX59","v":16},{"$f":"[1]ACS_16_5YR_B17010_with_ann!BY59","v":12},{"$f":"[1]ACS_16_5YR_B17010_with_ann!BZ59","v":6},{"$f":"[1]ACS_16_5YR_B17010_with_ann!CA59","v":9},{"$f":"[1]ACS_16_5YR_B17010_with_ann!CB59","v":4},{"$f":"[1]ACS_16_5YR_B17010_with_ann!CC59","v":5},{"$f":"[1]ACS_16_5YR_B17010_with_ann!CD59","v":6},{"$f":"[1]ACS_16_5YR_B17010_with_ann!CE59","v":7},{"$f":"[1]ACS_16_5YR_B17010_with_ann!CF59","v":3},{"$f":"[1]ACS_16_5YR_B17010_with_ann!CG59","v":4}]
["06000US3300574900","0600000US3300575300","060",{"$f":"[1]ACS_16_5YR_B17010_with_ann!C60","v":"Sullivan"},{"$f":"[1]ACS_16_5YR_B17010_with_ann!D60","v":196},{"$f":"[1]ACS_16_5YR_B17010_with_ann!E60","v":45},{"$f":"[1]ACS_16_5YR_B17010_with_ann!F60","v":3},{"$f":"[1]ACS_16_5YR_B17010_with_ann!G60","v":4},{"$f":"[1]ACS_16_5YR_B17010_with_ann!H60","v":3},{"$f":"[1]ACS_16_5YR_B17010_with_ann!I60","v":4},{"$f":"[1]ACS_16_5YR_B17010_with_ann!J60","v":0},{"$f":"[1]ACS_16_5YR_B17010_with_ann!K60","v":12},{"$f":"[1]ACS_16_5YR_B17010_with_ann!L60","v":0},{"$f":"[1]ACS_16_5YR_B17010_with_ann!M60","v":12},{"$f":"[1]ACS_16_5YR_B17010_with_ann!N60","v":0},{"$f":"[1]ACS_16_5YR_B17010_with_ann!O60","v":12},{"$f":"[1]ACS_16_5YR_B17010_with_ann!P60","v":0},{"$f":"[1]ACS_16_5YR_B17010_with_ann!Q60","v":12},{"$f":"[1]ACS_16_5YR_B17010_with_ann!R60","v":3},{"$f":"[1]ACS_16_5YR_B17010_with_ann!S60","v":4},{"$f":"[1]ACS_16_5YR_B17010_with_ann!T60","v":0},{"$f":"[1]ACS_16_5YR_B17010_with_ann!U60","v":12},{"$f":"[1]ACS_16_5YR_B17010_with_ann!V60","v":0},{"$f":"[1]ACS_16_5YR_B17010_with_ann!W60","v":12},{"$f":"[1]ACS_16_5YR_B17010_with_ann!X60","v":0},{"$f":"[1]ACS_16_5YR_B17010_with_ann!Y60","v":12},{"$f":"[1]ACS_16_5YR_B17010_with_ann!Z60","v":0},{"$f":"[1]ACS_16_5YR_B17010_with_ann!AA60","v":12},{"$f":"[1]ACS_16_5YR_B17010_with_ann!AB60","v":0},{"$f":"[1]ACS_16_5YR_B17010_with_ann!AC60","v":12},{"$f":"[1]ACS_16_5YR_B17010_with_ann!AD60","v":0},{"$f":"[1]ACS_16_5YR_B17010_with_ann!AE60","v":12},{"$f":"[1]ACS_16_5YR_B17010_with_ann!AF60","v":0},{"$f":"[1]ACS_16_5YR_B17010_with_ann!AG60","v":12},{"$f":"[1]ACS_16_5YR_B17010_with_ann!AH60","v":0},{"$f":"[1]ACS_16_5YR_B17010_with_ann!AI60","v":12},{"$f":"[1]ACS_16_5YR_B17010_with_ann!AJ60","v":0},{"$f":"[1]ACS_16_5YR_B17010_with_ann!AK60","v":12},{"$f":"[1]ACS_16_5YR_B17010_with_ann!AL60","v":0},{"$f":"[1]ACS_16_5YR_B17010_with_ann!AM60","v":12},{"$f":"[1]ACS_16_5YR_B17010_with_ann!AN60","v":0},{"$f":"[1]ACS_16_5YR_B17010_with_ann!AO60","v":12},{"$f":"[1]ACS_16_5YR_B17010_with_ann!AP60","v":0},{"$f":"[1]ACS_16_5YR_B17010_with_ann!AQ60","v":12},{"$f":"[1]ACS_16_5YR_B17010_with_ann!AR60","v":0},{"$f":"[1]ACS_16_5YR_B17010_with_ann!AS60","v":12},{"$f":"[1]ACS_16_5YR_B17010_with_ann!AT60","v":193},{"$f":"[1]ACS_16_5YR_B17010_with_ann!AU60","v":45},{"$f":"[1]ACS_16_5YR_B17010_with_ann!AV60","v":164},{"$f":"[1]ACS_16_5YR_B17010_with_ann!AW60","v":45},{"$f":"[1]ACS_16_5YR_B17010_with_ann!AX60","v":63},{"$f":"[1]ACS_16_5YR_B17010_with_ann!AY60","v":32},{"$f":"[1]ACS_16_5YR_B17010_with_ann!AZ60","v":42},{"$f":"[1]ACS_16_5YR_B17010_with_ann!BA60","v":28},{"$f":"[1]ACS_16_5YR_B17010_with_ann!BB60","v":7},{"$f":"[1]ACS_16_5YR_B17010_with_ann!BC60","v":6},{"$f":"[1]ACS_16_5YR_B17010_with_ann!BD60","v":14},{"$f":"[1]ACS_16_5YR_B17010_with_ann!BE60","v":11},{"$f":"[1]ACS_16_5YR_B17010_with_ann!BF60","v":101},{"$f":"[1]ACS_16_5YR_B17010_with_ann!BG60","v":28},{"$f":"[1]ACS_16_5YR_B17010_with_ann!BH60","v":29},{"$f":"[1]ACS_16_5YR_B17010_with_ann!BI60","v":19},{"$f":"[1]ACS_16_5YR_B17010_with_ann!BJ60","v":21},{"$f":"[1]ACS_16_5YR_B17010_with_ann!BK60","v":17},{"$f":"[1]ACS_16_5YR_B17010_with_ann!BL60","v":4},{"$f":"[1]ACS_16_5YR_B17010_with_ann!BM60","v":7},{"$f":"[1]ACS_16_5YR_B17010_with_ann!BN60","v":0},{"$f":"[1]ACS_16_5YR_B17010_with_ann!BO60","v":12},{"$f":"[1]ACS_16_5YR_B17010_with_ann!BP60","v":0},{"$f":"[1]ACS_16_5YR_B17010_with_ann!BQ60","v":12},{"$f":"[1]ACS_16_5YR_B17010_with_ann!BR60","v":4},{"$f":"[1]ACS_16_5YR_B17010_with_ann!BS60","v":7},{"$f":"[1]ACS_16_5YR_B17010_with_ann!BT60","v":17},{"$f":"[1]ACS_16_5YR_B17010_with_ann!BU60","v":15},{"$f":"[1]ACS_16_5YR_B17010_with_ann!BV60","v":8},{"$f":"[1]ACS_16_5YR_B17010_with_ann!BW60","v":7},{"$f":"[1]ACS_16_5YR_B17010_with_ann!BX60","v":6},{"$f":"[1]ACS_16_5YR_B17010_with_ann!BY60","v":6},{"$f":"[1]ACS_16_5YR_B17010_with_ann!BZ60","v":0},{"$f":"[1]ACS_16_5YR_B17010_with_ann!CA60","v":12},{"$f":"[1]ACS_16_5YR_B17010_with_ann!CB60","v":3},{"$f":"[1]ACS_16_5YR_B17010_with_ann!CC60","v":4},{"$f":"[1]ACS_16_5YR_B17010_with_ann!CD60","v":3},{"$f":"[1]ACS_16_5YR_B17010_with_ann!CE60","v":4},{"$f":"[1]ACS_16_5YR_B17010_with_ann!CF60","v":2},{"$f":"[1]ACS_16_5YR_B17010_with_ann!CG60","v":3}]
["06000US3300575300","0600000US3300575700","060",{"$f":"[1]ACS_16_5YR_B17010_with_ann!C61","v":"Surry"},{"$f":"[1]ACS_16_5YR_B17010_with_ann!D61","v":262},{"$f":"[1]ACS_16_5YR_B17010_with_ann!E61","v":60},{"$f":"[1]ACS_16_5YR_B17010_with_ann!F61","v":4},{"$f":"[1]ACS_16_5YR_B17010_with_ann!G61","v":5},{"$f":"[1]ACS_16_5YR_B17010_with_ann!H61","v":2},{"$f":"[1]ACS_16_5YR_B17010_with_ann!I61","v":3},{"$f":"[1]ACS_16_5YR_B17010_with_ann!J61","v":0},{"$f":"[1]ACS_16_5YR_B17010_with_ann!K61","v":12},{"$f":"[1]ACS_16_5YR_B17010_with_ann!L61","v":0},{"$f":"[1]ACS_16_5YR_B17010_with_ann!M61","v":12},{"$f":"[1]ACS_16_5YR_B17010_with_ann!N61","v":0},{"$f":"[1]ACS_16_5YR_B17010_with_ann!O61","v":12},{"$f":"[1]ACS_16_5YR_B17010_with_ann!P61","v":0},{"$f":"[1]ACS_16_5YR_B17010_with_ann!Q61","v":12},{"$f":"[1]ACS_16_5YR_B17010_with_ann!R61","v":2},{"$f":"[1]ACS_16_5YR_B17010_with_ann!S61","v":3},{"$f":"[1]ACS_16_5YR_B17010_with_ann!T61","v":2},{"$f":"[1]ACS_16_5YR_B17010_with_ann!U61","v":3},{"$f":"[1]ACS_16_5YR_B17010_with_ann!V61","v":2},{"$f":"[1]ACS_16_5YR_B17010_with_ann!W61","v":3},{"$f":"[1]ACS_16_5YR_B17010_with_ann!X61","v":0},{"$f":"[1]ACS_16_5YR_B17010_with_ann!Y61","v":12},{"$f":"[1]ACS_16_5YR_B17010_with_ann!Z61","v":0},{"$f":"[1]ACS_16_5YR_B17010_with_ann!AA61","v":12},{"$f":"[1]ACS_16_5YR_B17010_with_ann!AB61","v":0},{"$f":"[1]ACS_16_5YR_B17010_with_ann!AC61","v":12},{"$f":"[1]ACS_16_5YR_B17010_with_ann!AD61","v":0},{"$f":"[1]ACS_16_5YR_B17010_with_ann!AE61","v":12},{"$f":"[1]ACS_16_5YR_B17010_with_ann!AF61","v":2},{"$f":"[1]ACS_16_5YR_B17010_with_ann!AG61","v":3},{"$f":"[1]ACS_16_5YR_B17010_with_ann!AH61","v":0},{"$f":"[1]ACS_16_5YR_B17010_with_ann!AI61","v":12},{"$f":"[1]ACS_16_5YR_B17010_with_ann!AJ61","v":0},{"$f":"[1]ACS_16_5YR_B17010_with_ann!AK61","v":12},{"$f":"[1]ACS_16_5YR_B17010_with_ann!AL61","v":0},{"$f":"[1]ACS_16_5YR_B17010_with_ann!AM61","v":12},{"$f":"[1]ACS_16_5YR_B17010_with_ann!AN61","v":0},{"$f":"[1]ACS_16_5YR_B17010_with_ann!AO61","v":12},{"$f":"[1]ACS_16_5YR_B17010_with_ann!AP61","v":0},{"$f":"[1]ACS_16_5YR_B17010_with_ann!AQ61","v":12},{"$f":"[1]ACS_16_5YR_B17010_with_ann!AR61","v":0},{"$f":"[1]ACS_16_5YR_B17010_with_ann!AS61","v":12},{"$f":"[1]ACS_16_5YR_B17010_with_ann!AT61","v":258},{"$f":"[1]ACS_16_5YR_B17010_with_ann!AU61","v":60},{"$f":"[1]ACS_16_5YR_B17010_with_ann!AV61","v":231},{"$f":"[1]ACS_16_5YR_B17010_with_ann!AW61","v":60},{"$f":"[1]ACS_16_5YR_B17010_with_ann!AX61","v":89},{"$f":"[1]ACS_16_5YR_B17010_with_ann!AY61","v":46},{"$f":"[1]ACS_16_5YR_B17010_with_ann!AZ61","v":17},{"$f":"[1]ACS_16_5YR_B17010_with_ann!BA61","v":11},{"$f":"[1]ACS_16_5YR_B17010_with_ann!BB61","v":18},{"$f":"[1]ACS_16_5YR_B17010_with_ann!BC61","v":24},{"$f":"[1]ACS_16_5YR_B17010_with_ann!BD61","v":54},{"$f":"[1]ACS_16_5YR_B17010_with_ann!BE61","v":35},{"$f":"[1]ACS_16_5YR_B17010_with_ann!BF61","v":142},{"$f":"[1]ACS_16_5YR_B17010_with_ann!BG61","v":41},{"$f":"[1]ACS_16_5YR_B17010_with_ann!BH61","v":27},{"$f":"[1]ACS_16_5YR_B17010_with_ann!BI61","v":16},{"$f":"[1]ACS_16_5YR_B17010_with_ann!BJ61","v":4},{"$f":"[1]ACS_16_5YR_B17010_with_ann!BK61","v":4},{"$f":"[1]ACS_16_5YR_B17010_with_ann!BL61","v":2},{"$f":"[1]ACS_16_5YR_B17010_with_ann!BM61","v":3},{"$f":"[1]ACS_16_5YR_B17010_with_ann!BN61","v":0},{"$f":"[1]ACS_16_5YR_B17010_with_ann!BO61","v":12},{"$f":"[1]ACS_16_5YR_B17010_with_ann!BP61","v":0},{"$f":"[1]ACS_16_5YR_B17010_with_ann!BQ61","v":12},{"$f":"[1]ACS_16_5YR_B17010_with_ann!BR61","v":2},{"$f":"[1]ACS_16_5YR_B17010_with_ann!BS61","v":3},{"$f":"[1]ACS_16_5YR_B17010_with_ann!BT61","v":2},{"$f":"[1]ACS_16_5YR_B17010_with_ann!BU61","v":3},{"$f":"[1]ACS_16_5YR_B17010_with_ann!BV61","v":23},{"$f":"[1]ACS_16_5YR_B17010_with_ann!BW61","v":15},{"$f":"[1]ACS_16_5YR_B17010_with_ann!BX61","v":3},{"$f":"[1]ACS_16_5YR_B17010_with_ann!BY61","v":4},{"$f":"[1]ACS_16_5YR_B17010_with_ann!BZ61","v":3},{"$f":"[1]ACS_16_5YR_B17010_with_ann!CA61","v":4},{"$f":"[1]ACS_16_5YR_B17010_with_ann!CB61","v":0},{"$f":"[1]ACS_16_5YR_B17010_with_ann!CC61","v":12},{"$f":"[1]ACS_16_5YR_B17010_with_ann!CD61","v":0},{"$f":"[1]ACS_16_5YR_B17010_with_ann!CE61","v":12},{"$f":"[1]ACS_16_5YR_B17010_with_ann!CF61","v":20},{"$f":"[1]ACS_16_5YR_B17010_with_ann!CG61","v":14}]
["06000US3300575700","0600000US3300577380","060",{"$f":"[1]ACS_16_5YR_B17010_with_ann!C62","v":"Swanzey"},{"$f":"[1]ACS_16_5YR_B17010_with_ann!D62","v":2089},{"$f":"[1]ACS_16_5YR_B17010_with_ann!E62","v":223},{"$f":"[1]ACS_16_5YR_B17010_with_ann!F62","v":164},{"$f":"[1]ACS_16_5YR_B17010_with_ann!G62","v":97},{"$f":"[1]ACS_16_5YR_B17010_with_ann!H62","v":11},{"$f":"[1]ACS_16_5YR_B17010_with_ann!I62","v":21},{"$f":"[1]ACS_16_5YR_B17010_with_ann!J62","v":11},{"$f":"[1]ACS_16_5YR_B17010_with_ann!K62","v":21},{"$f":"[1]ACS_16_5YR_B17010_with_ann!L62","v":11},{"$f":"[1]ACS_16_5YR_B17010_with_ann!M62","v":21},{"$f":"[1]ACS_16_5YR_B17010_with_ann!N62","v":0},{"$f":"[1]ACS_16_5YR_B17010_with_ann!O62","v":17},{"$f":"[1]ACS_16_5YR_B17010_with_ann!P62","v":0},{"$f":"[1]ACS_16_5YR_B17010_with_ann!Q62","v":17},{"$f":"[1]ACS_16_5YR_B17010_with_ann!R62","v":0},{"$f":"[1]ACS_16_5YR_B17010_with_ann!S62","v":17},{"$f":"[1]ACS_16_5YR_B17010_with_ann!T62","v":153},{"$f":"[1]ACS_16_5YR_B17010_with_ann!U62","v":94},{"$f":"[1]ACS_16_5YR_B17010_with_ann!V62","v":21},{"$f":"[1]ACS_16_5YR_B17010_with_ann!W62","v":34},{"$f":"[1]ACS_16_5YR_B17010_with_ann!X62","v":21},{"$f":"[1]ACS_16_5YR_B17010_with_ann!Y62","v":34},{"$f":"[1]ACS_16_5YR_B17010_with_ann!Z62","v":0},{"$f":"[1]ACS_16_5YR_B17010_with_ann!AA62","v":17},{"$f":"[1]ACS_16_5YR_B17010_with_ann!AB62","v":0},{"$f":"[1]ACS_16_5YR_B17010_with_ann!AC62","v":17},{"$f":"[1]ACS_16_5YR_B17010_with_ann!AD62","v":21},{"$f":"[1]ACS_16_5YR_B17010_with_ann!AE62","v":34},{"$f":"[1]ACS_16_5YR_B17010_with_ann!AF62","v":0},{"$f":"[1]ACS_16_5YR_B17010_with_ann!AG62","v":17},{"$f":"[1]ACS_16_5YR_B17010_with_ann!AH62","v":132},{"$f":"[1]ACS_16_5YR_B17010_with_ann!AI62","v":87},{"$f":"[1]ACS_16_5YR_B17010_with_ann!AJ62","v":80},{"$f":"[1]ACS_16_5YR_B17010_with_ann!AK62","v":69},{"$f":"[1]ACS_16_5YR_B17010_with_ann!AL62","v":0},{"$f":"[1]ACS_16_5YR_B17010_with_ann!AM62","v":17},{"$f":"[1]ACS_16_5YR_B17010_with_ann!AN62","v":0},{"$f":"[1]ACS_16_5YR_B17010_with_ann!AO62","v":17},{"$f":"[1]ACS_16_5YR_B17010_with_ann!AP62","v":80},{"$f":"[1]ACS_16_5YR_B17010_with_ann!AQ62","v":69},{"$f":"[1]ACS_16_5YR_B17010_with_ann!AR62","v":52},{"$f":"[1]ACS_16_5YR_B17010_with_ann!AS62","v":77},{"$f":"[1]ACS_16_5YR_B17010_with_ann!AT62","v":1925},{"$f":"[1]ACS_16_5YR_B17010_with_ann!AU62","v":218},{"$f":"[1]ACS_16_5YR_B17010_with_ann!AV62","v":1572},{"$f":"[1]ACS_16_5YR_B17010_with_ann!AW62","v":259},{"$f":"[1]ACS_16_5YR_B17010_with_ann!AX62","v":342},{"$f":"[1]ACS_16_5YR_B17010_with_ann!AY62","v":150},{"$f":"[1]ACS_16_5YR_B17010_with_ann!AZ62","v":0},{"$f":"[1]ACS_16_5YR_B17010_with_ann!BA62","v":17},{"$f":"[1]ACS_16_5YR_B17010_with_ann!BB62","v":123},{"$f":"[1]ACS_16_5YR_B17010_with_ann!BC62","v":116},{"$f":"[1]ACS_16_5YR_B17010_with_ann!BD62","v":219},{"$f":"[1]ACS_16_5YR_B17010_with_ann!BE62","v":110},{"$f":"[1]ACS_16_5YR_B17010_with_ann!BF62","v":1230},{"$f":"[1]ACS_16_5YR_B17010_with_ann!BG62","v":243},{"$f":"[1]ACS_16_5YR_B17010_with_ann!BH62","v":353},{"$f":"[1]ACS_16_5YR_B17010_with_ann!BI62","v":180},{"$f":"[1]ACS_16_5YR_B17010_with_ann!BJ62","v":126},{"$f":"[1]ACS_16_5YR_B17010_with_ann!BK62","v":108},{"$f":"[1]ACS_16_5YR_B17010_with_ann!BL62","v":126},{"$f":"[1]ACS_16_5YR_B17010_with_ann!BM62","v":108},{"$f":"[1]ACS_16_5YR_B17010_with_ann!BN62","v":20},{"$f":"[1]ACS_16_5YR_B17010_with_ann!BO62","v":32},{"$f":"[1]ACS_16_5YR_B17010_with_ann!BP62","v":0},{"$f":"[1]ACS_16_5YR_B17010_with_ann!BQ62","v":17},{"$f":"[1]ACS_16_5YR_B17010_with_ann!BR62","v":106},{"$f":"[1]ACS_16_5YR_B17010_with_ann!BS62","v":106},{"$f":"[1]ACS_16_5YR_B17010_with_ann!BT62","v":0},{"$f":"[1]ACS_16_5YR_B17010_with_ann!BU62","v":17},{"$f":"[1]ACS_16_5YR_B17010_with_ann!BV62","v":227},{"$f":"[1]ACS_16_5YR_B17010_with_ann!BW62","v":127},{"$f":"[1]ACS_16_5YR_B17010_with_ann!BX62","v":180},{"$f":"[1]ACS_16_5YR_B17010_with_ann!BY62","v":121},{"$f":"[1]ACS_16_5YR_B17010_with_ann!BZ62","v":48},{"$f":"[1]ACS_16_5YR_B17010_with_ann!CA62","v":52},{"$f":"[1]ACS_16_5YR_B17010_with_ann!CB62","v":42},{"$f":"[1]ACS_16_5YR_B17010_with_ann!CC62","v":65},{"$f":"[1]ACS_16_5YR_B17010_with_ann!CD62","v":90},{"$f":"[1]ACS_16_5YR_B17010_with_ann!CE62","v":94},{"$f":"[1]ACS_16_5YR_B17010_with_ann!CF62","v":47},{"$f":"[1]ACS_16_5YR_B17010_with_ann!CG62","v":46}]
["06000US3300577380","0600000US3300578420","060",{"$f":"[1]ACS_16_5YR_B17010_with_ann!C63","v":"Troy"},{"$f":"[1]ACS_16_5YR_B17010_with_ann!D63","v":497},{"$f":"[1]ACS_16_5YR_B17010_with_ann!E63","v":87},{"$f":"[1]ACS_16_5YR_B17010_with_ann!F63","v":24},{"$f":"[1]ACS_16_5YR_B17010_with_ann!G63","v":21},{"$f":"[1]ACS_16_5YR_B17010_with_ann!H63","v":6},{"$f":"[1]ACS_16_5YR_B17010_with_ann!I63","v":10},{"$f":"[1]ACS_16_5YR_B17010_with_ann!J63","v":0},{"$f":"[1]ACS_16_5YR_B17010_with_ann!K63","v":12},{"$f":"[1]ACS_16_5YR_B17010_with_ann!L63","v":0},{"$f":"[1]ACS_16_5YR_B17010_with_ann!M63","v":12},{"$f":"[1]ACS_16_5YR_B17010_with_ann!N63","v":0},{"$f":"[1]ACS_16_5YR_B17010_with_ann!O63","v":12},{"$f":"[1]ACS_16_5YR_B17010_with_ann!P63","v":0},{"$f":"[1]ACS_16_5YR_B17010_with_ann!Q63","v":12},{"$f":"[1]ACS_16_5YR_B17010_with_ann!R63","v":6},{"$f":"[1]ACS_16_5YR_B17010_with_ann!S63","v":10},{"$f":"[1]ACS_16_5YR_B17010_with_ann!T63","v":18},{"$f":"[1]ACS_16_5YR_B17010_with_ann!U63","v":18},{"$f":"[1]ACS_16_5YR_B17010_with_ann!V63","v":7},{"$f":"[1]ACS_16_5YR_B17010_with_ann!W63","v":11},{"$f":"[1]ACS_16_5YR_B17010_with_ann!X63","v":0},{"$f":"[1]ACS_16_5YR_B17010_with_ann!Y63","v":12},{"$f":"[1]ACS_16_5YR_B17010_with_ann!Z63","v":0},{"$f":"[1]ACS_16_5YR_B17010_with_ann!AA63","v":12},{"$f":"[1]ACS_16_5YR_B17010_with_ann!AB63","v":0},{"$f":"[1]ACS_16_5YR_B17010_with_ann!AC63","v":12},{"$f":"[1]ACS_16_5YR_B17010_with_ann!AD63","v":0},{"$f":"[1]ACS_16_5YR_B17010_with_ann!AE63","v":12},{"$f":"[1]ACS_16_5YR_B17010_with_ann!AF63","v":7},{"$f":"[1]ACS_16_5YR_B17010_with_ann!AG63","v":11},{"$f":"[1]ACS_16_5YR_B17010_with_ann!AH63","v":11},{"$f":"[1]ACS_16_5YR_B17010_with_ann!AI63","v":13},{"$f":"[1]ACS_16_5YR_B17010_with_ann!AJ63","v":7},{"$f":"[1]ACS_16_5YR_B17010_with_ann!AK63","v":11},{"$f":"[1]ACS_16_5YR_B17010_with_ann!AL63","v":0},{"$f":"[1]ACS_16_5YR_B17010_with_ann!AM63","v":12},{"$f":"[1]ACS_16_5YR_B17010_with_ann!AN63","v":0},{"$f":"[1]ACS_16_5YR_B17010_with_ann!AO63","v":12},{"$f":"[1]ACS_16_5YR_B17010_with_ann!AP63","v":7},{"$f":"[1]ACS_16_5YR_B17010_with_ann!AQ63","v":11},{"$f":"[1]ACS_16_5YR_B17010_with_ann!AR63","v":4},{"$f":"[1]ACS_16_5YR_B17010_with_ann!AS63","v":7},{"$f":"[1]ACS_16_5YR_B17010_with_ann!AT63","v":473},{"$f":"[1]ACS_16_5YR_B17010_with_ann!AU63","v":87},{"$f":"[1]ACS_16_5YR_B17010_with_ann!AV63","v":353},{"$f":"[1]ACS_16_5YR_B17010_with_ann!AW63","v":72},{"$f":"[1]ACS_16_5YR_B17010_with_ann!AX63","v":163},{"$f":"[1]ACS_16_5YR_B17010_with_ann!AY63","v":50},{"$f":"[1]ACS_16_5YR_B17010_with_ann!AZ63","v":33},{"$f":"[1]ACS_16_5YR_B17010_with_ann!BA63","v":21},{"$f":"[1]ACS_16_5YR_B17010_with_ann!BB63","v":34},{"$f":"[1]ACS_16_5YR_B17010_with_ann!BC63","v":28},{"$f":"[1]ACS_16_5YR_B17010_with_ann!BD63","v":96},{"$f":"[1]ACS_16_5YR_B17010_with_ann!BE63","v":50},{"$f":"[1]ACS_16_5YR_B17010_with_ann!BF63","v":190},{"$f":"[1]ACS_16_5YR_B17010_with_ann!BG63","v":56},{"$f":"[1]ACS_16_5YR_B17010_with_ann!BH63","v":120},{"$f":"[1]ACS_16_5YR_B17010_with_ann!BI63","v":49},{"$f":"[1]ACS_16_5YR_B17010_with_ann!BJ63","v":50},{"$f":"[1]ACS_16_5YR_B17010_with_ann!BK63","v":33},{"$f":"[1]ACS_16_5YR_B17010_with_ann!BL63","v":22},{"$f":"[1]ACS_16_5YR_B17010_with_ann!BM63","v":23},{"$f":"[1]ACS_16_5YR_B17010_with_ann!BN63","v":22},{"$f":"[1]ACS_16_5YR_B17010_with_ann!BO63","v":23},{"$f":"[1]ACS_16_5YR_B17010_with_ann!BP63","v":0},{"$f":"[1]ACS_16_5YR_B17010_with_ann!BQ63","v":12},{"$f":"[1]ACS_16_5YR_B17010_with_ann!BR63","v":0},{"$f":"[1]ACS_16_5YR_B17010_with_ann!BS63","v":12},{"$f":"[1]ACS_16_5YR_B17010_with_ann!BT63","v":28},{"$f":"[1]ACS_16_5YR_B17010_with_ann!BU63","v":24},{"$f":"[1]ACS_16_5YR_B17010_with_ann!BV63","v":70},{"$f":"[1]ACS_16_5YR_B17010_with_ann!BW63","v":35},{"$f":"[1]ACS_16_5YR_B17010_with_ann!BX63","v":32},{"$f":"[1]ACS_16_5YR_B17010_with_ann!BY63","v":26},{"$f":"[1]ACS_16_5YR_B17010_with_ann!BZ63","v":0},{"$f":"[1]ACS_16_5YR_B17010_with_ann!CA63","v":12},{"$f":"[1]ACS_16_5YR_B17010_with_ann!CB63","v":0},{"$f":"[1]ACS_16_5YR_B17010_with_ann!CC63","v":12},{"$f":"[1]ACS_16_5YR_B17010_with_ann!CD63","v":32},{"$f":"[1]ACS_16_5YR_B17010_with_ann!CE63","v":26},{"$f":"[1]ACS_16_5YR_B17010_with_ann!CF63","v":38},{"$f":"[1]ACS_16_5YR_B17010_with_ann!CG63","v":23}]
["06000US3300578420","0600000US3300582660","060",{"$f":"[1]ACS_16_5YR_B17010_with_ann!C64","v":"Walpole"},{"$f":"[1]ACS_16_5YR_B17010_with_ann!D64","v":883},{"$f":"[1]ACS_16_5YR_B17010_with_ann!E64","v":94},{"$f":"[1]ACS_16_5YR_B17010_with_ann!F64","v":28},{"$f":"[1]ACS_16_5YR_B17010_with_ann!G64","v":32},{"$f":"[1]ACS_16_5YR_B17010_with_ann!H64","v":6},{"$f":"[1]ACS_16_5YR_B17010_with_ann!I64","v":9},{"$f":"[1]ACS_16_5YR_B17010_with_ann!J64","v":0},{"$f":"[1]ACS_16_5YR_B17010_with_ann!K64","v":12},{"$f":"[1]ACS_16_5YR_B17010_with_ann!L64","v":0},{"$f":"[1]ACS_16_5YR_B17010_with_ann!M64","v":12},{"$f":"[1]ACS_16_5YR_B17010_with_ann!N64","v":0},{"$f":"[1]ACS_16_5YR_B17010_with_ann!O64","v":12},{"$f":"[1]ACS_16_5YR_B17010_with_ann!P64","v":0},{"$f":"[1]ACS_16_5YR_B17010_with_ann!Q64","v":12},{"$f":"[1]ACS_16_5YR_B17010_with_ann!R64","v":6},{"$f":"[1]ACS_16_5YR_B17010_with_ann!S64","v":9},{"$f":"[1]ACS_16_5YR_B17010_with_ann!T64","v":22},{"$f":"[1]ACS_16_5YR_B17010_with_ann!U64","v":31},{"$f":"[1]ACS_16_5YR_B17010_with_ann!V64","v":0},{"$f":"[1]ACS_16_5YR_B17010_with_ann!W64","v":12},{"$f":"[1]ACS_16_5YR_B17010_with_ann!X64","v":0},{"$f":"[1]ACS_16_5YR_B17010_with_ann!Y64","v":12},{"$f":"[1]ACS_16_5YR_B17010_with_ann!Z64","v":0},{"$f":"[1]ACS_16_5YR_B17010_with_ann!AA64","v":12},{"$f":"[1]ACS_16_5YR_B17010_with_ann!AB64","v":0},{"$f":"[1]ACS_16_5YR_B17010_with_ann!AC64","v":12},{"$f":"[1]ACS_16_5YR_B17010_with_ann!AD64","v":0},{"$f":"[1]ACS_16_5YR_B17010_with_ann!AE64","v":12},{"$f":"[1]ACS_16_5YR_B17010_with_ann!AF64","v":0},{"$f":"[1]ACS_16_5YR_B17010_with_ann!AG64","v":12},{"$f":"[1]ACS_16_5YR_B17010_with_ann!AH64","v":22},{"$f":"[1]ACS_16_5YR_B17010_with_ann!AI64","v":31},{"$f":"[1]ACS_16_5YR_B17010_with_ann!AJ64","v":12},{"$f":"[1]ACS_16_5YR_B17010_with_ann!AK64","v":20},{"$f":"[1]ACS_16_5YR_B17010_with_ann!AL64","v":12},{"$f":"[1]ACS_16_5YR_B17010_with_ann!AM64","v":20},{"$f":"[1]ACS_16_5YR_B17010_with_ann!AN64","v":0},{"$f":"[1]ACS_16_5YR_B17010_with_ann!AO64","v":12},{"$f":"[1]ACS_16_5YR_B17010_with_ann!AP64","v":0},{"$f":"[1]ACS_16_5YR_B17010_with_ann!AQ64","v":12},{"$f":"[1]ACS_16_5YR_B17010_with_ann!AR64","v":10},{"$f":"[1]ACS_16_5YR_B17010_with_ann!AS64","v":16},{"$f":"[1]ACS_16_5YR_B17010_with_ann!AT64","v":855},{"$f":"[1]ACS_16_5YR_B17010_with_ann!AU64","v":100},{"$f":"[1]ACS_16_5YR_B17010_with_ann!AV64","v":711},{"$f":"[1]ACS_16_5YR_B17010_with_ann!AW64","v":99},{"$f":"[1]ACS_16_5YR_B17010_with_ann!AX64","v":385},{"$f":"[1]ACS_16_5YR_B17010_with_ann!AY64","v":109},{"$f":"[1]ACS_16_5YR_B17010_with_ann!AZ64","v":98},{"$f":"[1]ACS_16_5YR_B17010_with_ann!BA64","v":95},{"$f":"[1]ACS_16_5YR_B17010_with_ann!BB64","v":95},{"$f":"[1]ACS_16_5YR_B17010_with_ann!BC64","v":48},{"$f":"[1]ACS_16_5YR_B17010_with_ann!BD64","v":192},{"$f":"[1]ACS_16_5YR_B17010_with_ann!BE64","v":78},{"$f":"[1]ACS_16_5YR_B17010_with_ann!BF64","v":326},{"$f":"[1]ACS_16_5YR_B17010_with_ann!BG64","v":87},{"$f":"[1]ACS_16_5YR_B17010_with_ann!BH64","v":144},{"$f":"[1]ACS_16_5YR_B17010_with_ann!BI64","v":70},{"$f":"[1]ACS_16_5YR_B17010_with_ann!BJ64","v":43},{"$f":"[1]ACS_16_5YR_B17010_with_ann!BK64","v":30},{"$f":"[1]ACS_16_5YR_B17010_with_ann!BL64","v":29},{"$f":"[1]ACS_16_5YR_B17010_with_ann!BM64","v":27},{"$f":"[1]ACS_16_5YR_B17010_with_ann!BN64","v":22},{"$f":"[1]ACS_16_5YR_B17010_with_ann!BO64","v":24},{"$f":"[1]ACS_16_5YR_B17010_with_ann!BP64","v":0},{"$f":"[1]ACS_16_5YR_B17010_with_ann!BQ64","v":12},{"$f":"[1]ACS_16_5YR_B17010_with_ann!BR64","v":7},{"$f":"[1]ACS_16_5YR_B17010_with_ann!BS64","v":13},{"$f":"[1]ACS_16_5YR_B17010_with_ann!BT64","v":14},{"$f":"[1]ACS_16_5YR_B17010_with_ann!BU64","v":15},{"$f":"[1]ACS_16_5YR_B17010_with_ann!BV64","v":101},{"$f":"[1]ACS_16_5YR_B17010_with_ann!BW64","v":62},{"$f":"[1]ACS_16_5YR_B17010_with_ann!BX64","v":72},{"$f":"[1]ACS_16_5YR_B17010_with_ann!BY64","v":63},{"$f":"[1]ACS_16_5YR_B17010_with_ann!BZ64","v":0},{"$f":"[1]ACS_16_5YR_B17010_with_ann!CA64","v":12},{"$f":"[1]ACS_16_5YR_B17010_with_ann!CB64","v":7},{"$f":"[1]ACS_16_5YR_B17010_with_ann!CC64","v":11},{"$f":"[1]ACS_16_5YR_B17010_with_ann!CD64","v":65},{"$f":"[1]ACS_16_5YR_B17010_with_ann!CE64","v":62},{"$f":"[1]ACS_16_5YR_B17010_with_ann!CF64","v":29},{"$f":"[1]ACS_16_5YR_B17010_with_ann!CG64","v":24}]
["06000US3300582660","0600000US3300585540","060",{"$f":"[1]ACS_16_5YR_B17010_with_ann!C65","v":"Westmoreland"},{"$f":"[1]ACS_16_5YR_B17010_with_ann!D65","v":669},{"$f":"[1]ACS_16_5YR_B17010_with_ann!E65","v":155},{"$f":"[1]ACS_16_5YR_B17010_with_ann!F65","v":69},{"$f":"[1]ACS_16_5YR_B17010_with_ann!G65","v":99},{"$f":"[1]ACS_16_5YR_B17010_with_ann!H65","v":69},{"$f":"[1]ACS_16_5YR_B17010_with_ann!I65","v":99},{"$f":"[1]ACS_16_5YR_B17010_with_ann!J65","v":0},{"$f":"[1]ACS_16_5YR_B17010_with_ann!K65","v":12},{"$f":"[1]ACS_16_5YR_B17010_with_ann!L65","v":0},{"$f":"[1]ACS_16_5YR_B17010_with_ann!M65","v":12},{"$f":"[1]ACS_16_5YR_B17010_with_ann!N65","v":0},{"$f":"[1]ACS_16_5YR_B17010_with_ann!O65","v":12},{"$f":"[1]ACS_16_5YR_B17010_with_ann!P65","v":0},{"$f":"[1]ACS_16_5YR_B17010_with_ann!Q65","v":12},{"$f":"[1]ACS_16_5YR_B17010_with_ann!R65","v":69},{"$f":"[1]ACS_16_5YR_B17010_with_ann!S65","v":99},{"$f":"[1]ACS_16_5YR_B17010_with_ann!T65","v":0},{"$f":"[1]ACS_16_5YR_B17010_with_ann!U65","v":12},{"$f":"[1]ACS_16_5YR_B17010_with_ann!V65","v":0},{"$f":"[1]ACS_16_5YR_B17010_with_ann!W65","v":12},{"$f":"[1]ACS_16_5YR_B17010_with_ann!X65","v":0},{"$f":"[1]ACS_16_5YR_B17010_with_ann!Y65","v":12},{"$f":"[1]ACS_16_5YR_B17010_with_ann!Z65","v":0},{"$f":"[1]ACS_16_5YR_B17010_with_ann!AA65","v":12},{"$f":"[1]ACS_16_5YR_B17010_with_ann!AB65","v":0},{"$f":"[1]ACS_16_5YR_B17010_with_ann!AC65","v":12},{"$f":"[1]ACS_16_5YR_B17010_with_ann!AD65","v":0},{"$f":"[1]ACS_16_5YR_B17010_with_ann!AE65","v":12},{"$f":"[1]ACS_16_5YR_B17010_with_ann!AF65","v":0},{"$f":"[1]ACS_16_5YR_B17010_with_ann!AG65","v":12},{"$f":"[1]ACS_16_5YR_B17010_with_ann!AH65","v":0},{"$f":"[1]ACS_16_5YR_B17010_with_ann!AI65","v":12},{"$f":"[1]ACS_16_5YR_B17010_with_ann!AJ65","v":0},{"$f":"[1]ACS_16_5YR_B17010_with_ann!AK65","v":12},{"$f":"[1]ACS_16_5YR_B17010_with_ann!AL65","v":0},{"$f":"[1]ACS_16_5YR_B17010_with_ann!AM65","v":12},{"$f":"[1]ACS_16_5YR_B17010_with_ann!AN65","v":0},{"$f":"[1]ACS_16_5YR_B17010_with_ann!AO65","v":12},{"$f":"[1]ACS_16_5YR_B17010_with_ann!AP65","v":0},{"$f":"[1]ACS_16_5YR_B17010_with_ann!AQ65","v":12},{"$f":"[1]ACS_16_5YR_B17010_with_ann!AR65","v":0},{"$f":"[1]ACS_16_5YR_B17010_with_ann!AS65","v":12},{"$f":"[1]ACS_16_5YR_B17010_with_ann!AT65","v":600},{"$f":"[1]ACS_16_5YR_B17010_with_ann!AU65","v":113},{"$f":"[1]ACS_16_5YR_B17010_with_ann!AV65","v":540},{"$f":"[1]ACS_16_5YR_B17010_with_ann!AW65","v":101},{"$f":"[1]ACS_16_5YR_B17010_with_ann!AX65","v":130},{"$f":"[1]ACS_16_5YR_B17010_with_ann!AY65","v":48},{"$f":"[1]ACS_16_5YR_B17010_with_ann!AZ65","v":25},{"$f":"[1]ACS_16_5YR_B17010_with_ann!BA65","v":23},{"$f":"[1]ACS_16_5YR_B17010_with_ann!BB65","v":25},{"$f":"[1]ACS_16_5YR_B17010_with_ann!BC65","v":19},{"$f":"[1]ACS_16_5YR_B17010_with_ann!BD65","v":80},{"$f":"[1]ACS_16_5YR_B17010_with_ann!BE65","v":37},{"$f":"[1]ACS_16_5YR_B17010_with_ann!BF65","v":410},{"$f":"[1]ACS_16_5YR_B17010_with_ann!BG65","v":99},{"$f":"[1]ACS_16_5YR_B17010_with_ann!BH65","v":60},{"$f":"[1]ACS_16_5YR_B17010_with_ann!BI65","v":58},{"$f":"[1]ACS_16_5YR_B17010_with_ann!BJ65","v":11},{"$f":"[1]ACS_16_5YR_B17010_with_ann!BK65","v":9},{"$f":"[1]ACS_16_5YR_B17010_with_ann!BL65","v":8},{"$f":"[1]ACS_16_5YR_B17010_with_ann!BM65","v":8},{"$f":"[1]ACS_16_5YR_B17010_with_ann!BN65","v":3},{"$f":"[1]ACS_16_5YR_B17010_with_ann!BO65","v":5},{"$f":"[1]ACS_16_5YR_B17010_with_ann!BP65","v":0},{"$f":"[1]ACS_16_5YR_B17010_with_ann!BQ65","v":12},{"$f":"[1]ACS_16_5YR_B17010_with_ann!BR65","v":5},{"$f":"[1]ACS_16_5YR_B17010_with_ann!BS65","v":7},{"$f":"[1]ACS_16_5YR_B17010_with_ann!BT65","v":3},{"$f":"[1]ACS_16_5YR_B17010_with_ann!BU65","v":5},{"$f":"[1]ACS_16_5YR_B17010_with_ann!BV65","v":49},{"$f":"[1]ACS_16_5YR_B17010_with_ann!BW65","v":58},{"$f":"[1]ACS_16_5YR_B17010_with_ann!BX65","v":46},{"$f":"[1]ACS_16_5YR_B17010_with_ann!BY65","v":58},{"$f":"[1]ACS_16_5YR_B17010_with_ann!BZ65","v":8},{"$f":"[1]ACS_16_5YR_B17010_with_ann!CA65","v":15},{"$f":"[1]ACS_16_5YR_B17010_with_ann!CB65","v":0},{"$f":"[1]ACS_16_5YR_B17010_with_ann!CC65","v":12},{"$f":"[1]ACS_16_5YR_B17010_with_ann!CD65","v":38},{"$f":"[1]ACS_16_5YR_B17010_with_ann!CE65","v":57},{"$f":"[1]ACS_16_5YR_B17010_with_ann!CF65","v":3},{"$f":"[1]ACS_16_5YR_B17010_with_ann!CG65","v":4}]
["06000US3300585540","0600000US3300500820","060",{"$f":"[1]ACS_16_5YR_B17010_with_ann!C66","v":"Winchester"},{"$f":"[1]ACS_16_5YR_B17010_with_ann!D66","v":909},{"$f":"[1]ACS_16_5YR_B17010_with_ann!E66","v":104},{"$f":"[1]ACS_16_5YR_B17010_with_ann!F66","v":159},{"$f":"[1]ACS_16_5YR_B17010_with_ann!G66","v":74},{"$f":"[1]ACS_16_5YR_B17010_with_ann!H66","v":49},{"$f":"[1]ACS_16_5YR_B17010_with_ann!I66","v":38},{"$f":"[1]ACS_16_5YR_B17010_with_ann!J66","v":32},{"$f":"[1]ACS_16_5YR_B17010_with_ann!K66","v":35},{"$f":"[1]ACS_16_5YR_B17010_with_ann!L66","v":0},{"$f":"[1]ACS_16_5YR_B17010_with_ann!M66","v":12},{"$f":"[1]ACS_16_5YR_B17010_with_ann!N66","v":32},{"$f":"[1]ACS_16_5YR_B17010_with_ann!O66","v":35},{"$f":"[1]ACS_16_5YR_B17010_with_ann!P66","v":0},{"$f":"[1]ACS_16_5YR_B17010_with_ann!Q66","v":12},{"$f":"[1]ACS_16_5YR_B17010_with_ann!R66","v":17},{"$f":"[1]ACS_16_5YR_B17010_with_ann!S66","v":19},{"$f":"[1]ACS_16_5YR_B17010_with_ann!T66","v":110},{"$f":"[1]ACS_16_5YR_B17010_with_ann!U66","v":68},{"$f":"[1]ACS_16_5YR_B17010_with_ann!V66","v":26},{"$f":"[1]ACS_16_5YR_B17010_with_ann!W66","v":44},{"$f":"[1]ACS_16_5YR_B17010_with_ann!X66","v":26},{"$f":"[1]ACS_16_5YR_B17010_with_ann!Y66","v":44},{"$f":"[1]ACS_16_5YR_B17010_with_ann!Z66","v":26},{"$f":"[1]ACS_16_5YR_B17010_with_ann!AA66","v":44},{"$f":"[1]ACS_16_5YR_B17010_with_ann!AB66","v":0},{"$f":"[1]ACS_16_5YR_B17010_with_ann!AC66","v":12},{"$f":"[1]ACS_16_5YR_B17010_with_ann!AD66","v":0},{"$f":"[1]ACS_16_5YR_B17010_with_ann!AE66","v":12},{"$f":"[1]ACS_16_5YR_B17010_with_ann!AF66","v":0},{"$f":"[1]ACS_16_5YR_B17010_with_ann!AG66","v":12},{"$f":"[1]ACS_16_5YR_B17010_with_ann!AH66","v":84},{"$f":"[1]ACS_16_5YR_B17010_with_ann!AI66","v":57},{"$f":"[1]ACS_16_5YR_B17010_with_ann!AJ66","v":84},{"$f":"[1]ACS_16_5YR_B17010_with_ann!AK66","v":57},{"$f":"[1]ACS_16_5YR_B17010_with_ann!AL66","v":34},{"$f":"[1]ACS_16_5YR_B17010_with_ann!AM66","v":39},{"$f":"[1]ACS_16_5YR_B17010_with_ann!AN66","v":31},{"$f":"[1]ACS_16_5YR_B17010_with_ann!AO66","v":33},{"$f":"[1]ACS_16_5YR_B17010_with_ann!AP66","v":19},{"$f":"[1]ACS_16_5YR_B17010_with_ann!AQ66","v":21},{"$f":"[1]ACS_16_5YR_B17010_with_ann!AR66","v":0},{"$f":"[1]ACS_16_5YR_B17010_with_ann!AS66","v":12},{"$f":"[1]ACS_16_5YR_B17010_with_ann!AT66","v":750},{"$f":"[1]ACS_16_5YR_B17010_with_ann!AU66","v":121},{"$f":"[1]ACS_16_5YR_B17010_with_ann!AV66","v":664},{"$f":"[1]ACS_16_5YR_B17010_with_ann!AW66","v":114},{"$f":"[1]ACS_16_5YR_B17010_with_ann!AX66","v":319},{"$f":"[1]ACS_16_5YR_B17010_with_ann!AY66","v":100},{"$f":"[1]ACS_16_5YR_B17010_with_ann!AZ66","v":61},{"$f":"[1]ACS_16_5YR_B17010_with_ann!BA66","v":49},{"$f":"[1]ACS_16_5YR_B17010_with_ann!BB66","v":72},{"$f":"[1]ACS_16_5YR_B17010_with_ann!BC66","v":60},{"$f":"[1]ACS_16_5YR_B17010_with_ann!BD66","v":186},{"$f":"[1]ACS_16_5YR_B17010_with_ann!BE66","v":95},{"$f":"[1]ACS_16_5YR_B17010_with_ann!BF66","v":345},{"$f":"[1]ACS_16_5YR_B17010_with_ann!BG66","v":98},{"$f":"[1]ACS_16_5YR_B17010_with_ann!BH66","v":86},{"$f":"[1]ACS_16_5YR_B17010_with_ann!BI66","v":45},{"$f":"[1]ACS_16_5YR_B17010_with_ann!BJ66","v":0},{"$f":"[1]ACS_16_5YR_B17010_with_ann!BK66","v":12},{"$f":"[1]ACS_16_5YR_B17010_with_ann!BL66","v":0},{"$f":"[1]ACS_16_5YR_B17010_with_ann!BM66","v":12},{"$f":"[1]ACS_16_5YR_B17010_with_ann!BN66","v":0},{"$f":"[1]ACS_16_5YR_B17010_with_ann!BO66","v":12},{"$f":"[1]ACS_16_5YR_B17010_with_ann!BP66","v":0},{"$f":"[1]ACS_16_5YR_B17010_with_ann!BQ66","v":12},{"$f":"[1]ACS_16_5YR_B17010_with_ann!BR66","v":0},{"$f":"[1]ACS_16_5YR_B17010_with_ann!BS66","v":12},{"$f":"[1]ACS_16_5YR_B17010_with_ann!BT66","v":0},{"$f":"[1]ACS_16_5YR_B17010_with_ann!BU66","v":12},{"$f":"[1]ACS_16_5YR_B17010_with_ann!BV66","v":86},{"$f":"[1]ACS_16_5YR_B17010_with_ann!BW66","v":45},{"$f":"[1]ACS_16_5YR_B17010_with_ann!BX66","v":28},{"$f":"[1]ACS_16_5YR_B17010_with_ann!BY66","v":29},{"$f":"[1]ACS_16_5YR_B17010_with_ann!BZ66","v":0},{"$f":"[1]ACS_16_5YR_B17010_with_ann!CA66","v":12},{"$f":"[1]ACS_16_5YR_B17010_with_ann!CB66","v":0},{"$f":"[1]ACS_16_5YR_B17010_with_ann!CC66","v":12},{"$f":"[1]ACS_16_5YR_B17010_with_ann!CD66","v":28},{"$f":"[1]ACS_16_5YR_B17010_with_ann!CE66","v":29},{"$f":"[1]ACS_16_5YR_B17010_with_ann!CF66","v":58},{"$f":"[1]ACS_16_5YR_B17010_with_ann!CG66","v":38}]
[]
[]
[null,null,null,null,null,null,null,null,null,null,null,null,null,null,null,null,null,null,null,null,null,null,null,null,null,null,null,null,null,null,null,null,null,null,null,null,null,null,null,null,null,null,{"$f":"$D$22","v":"Troy"},null,{"$f":"$D$23","v":"Walpole"},null,{"$f":"$D$24","v":"Westmoreland"},null,{"$f":"$D$25","v":"Winchester"}]
[null,null,null,null,{"$f":"$D$3","v":"Alstead"},null,{"$f":"$D$4","v":"Chesterfield"},null,{"$f":"$D$5","v":"Dublin"},null,{"$f":"$D$6","v":"Fitzwilliam"},null,{"$f":"$D$7","v":"Gilsum"},null,{"$f":"$D$8","v":"Harrisville"},null,{"$f":"$D$9","v":"Hinsdale"},null,{"$f":"$D$10","v":"Jaffrey"},null,{"$f":"$D$11","v":"Keene"},null,{"$f":"$D$12","v":"Marlborough"},null,{"$f":"$D$13","v":"Marlow"},null,{"$f":"$D$14","v":"Nelson"},null,{"$f":"$D$15","v":"Richmond"},null,{"$f":"$D$16","v":"Rindge"},null,{"$f":"$D$17","v":"Roxbury"},null,{"$f":"$D$18","v":"Stoddard"},null,{"$f":"$D$19","v":"Sullivan"},null,{"$f":"$D$20","v":"Surry"},null,{"$f":"$D$21","v":"Swanzey"},null,{"$f":"$D$21","v":"Swanzey"},null,{"$f":"$D$21","v":"Swanzey"},null,{"$f":"$D$21","v":"Swanzey"},null,{"$f":"$D$21","v":"Swanzey"}]
[null,null,null,null,"Estimate","Margin of Error","Estimate","Margin of Error","Estimate","Margin of Error","Estimate","Margin of Error","Estimate","Margin of Error","Estimate","Margin of Error","Estimate","Margin of Error","Estimate","Margin of Error","Estimate","Margin of Error","Estimate","Margin of Error","Estimate","Margin of Error","Estimate","Margin of Error","Estimate","Margin of Error","Estimate","Margin of Error","Estimate","Margin of Error","Estimate","Margin of Error","Estimate","Margin of Error","Estimate","Margin of Error","Estimate","Margin of Error"]
[null,null,null,"Estimate!!Total:",454,72,1003,131,527,93,619,124,230,43,313,70,1049,141,1374,156,4541,311,557,107,247,59,167,39,316,68,1451,123,66,37,297,45,196,45,262,60,2089,223,497,87,883,94,669,155,909,104]
[null,null,null,"Estimate!!Total:!!Income in the past 12 months below poverty level:",9,9,33,45,57,52,34,27,5,6,0,12,19,25,23,39,174,92,56,64,20,15,4,4,12,20,79,55,0,12,5,8,3,4,4,5,164,97,24,21,28,32,69,99,159,74]
[null,null,null,"Estimate!!Total:!!Income in the past 12 months below poverty level:!!Married-couple family:",9,9,33,45,44,52,6,8,3,4,0,12,10,15,0,17,48,48,7,10,13,12,4,4,0,12,59,48,0,12,0,12,3,4,2,3,11,21,6,10,6,9,69,99,49,38]
[null,null,null,"Estimate!!Total:!!Income in the past 12 months below poverty level:!!Married-couple family:!!With related children of the householder under 18 years:",0,12,33,45,7,7,0,12,2,3,0,12,10,15,0,17,28,40,7,10,6,7,0,12,0,12,10,18,0,12,0,12,0,12,0,12,11,21,0,12,0,12,0,12,32,35]
[null,null,null,"Estimate!!Total:!!Income in the past 12 months below poverty level:!!Married-couple family:!!With related children of the householder under 18 years:!!Under 5 years only",0,12,0,12,0,12,0,12,0,12,0,12,0,12,0,17,28,40,0,12,0,12,0,12,0,12,0,17,0,12,0,12,0,12,0,12,11,21,0,12,0,12,0,12,0,12]
[null,null,null,"Estimate!!Total:!!Income in the past 12 months below poverty level:!!Married-couple family:!!With related children of the householder under 18 years:!!Under 5 years and 5 to 17 years",0,12,0,12,0,12,0,12,2,3,0,12,10,15,0,17,0,22,0,12,0,12,0,12,0,12,10,18,0,12,0,12,0,12,0,12,0,17,0,12,0,12,0,12,32,35]
[null,null,null,"Estimate!!Total:!!Income in the past 12 months below poverty level:!!Married-couple family:!!With related children of the householder under 18 years:!!5 to 17 years only",0,12,33,45,7,7,0,12,0,12,0,12,0,12,0,17,0,22,7,10,6,7,0,12,0,12,0,17,0,12,0,12,0,12,0,12,0,17,0,12,0,12,0,12,0,12]
[null,null,null,"Estimate!!Total:!!Income in the past 12 months below poverty level:!!Married-couple family:!!No related children of the householder under 18 years",9,9,0,12,37,53,6,8,1,3,0,12,0,12,0,17,20,26,0,12,7,9,4,4,0,12,49,45,0,12,0,12,3,4,2,3,0,17,6,10,6,9,69,99,17,19]
[null,null,null,"Estimate!!Total:!!Income in the past 12 months below poverty level:!!Other family:",0,12,0,12,13,13,28,24,2,3,0,12,9,24,23,39,126,79,49,64,7,10,0,12,12,20,20,24,0,12,5,8,0,12,2,3,153,94,18,18,22,31,0,12,110,68]
[null,null,null,"Estimate!!Total:!!Income in the past 12 months below poverty level:!!Other family:!!Male householder, no spouse present:",0,12,0,12,0,12,16,18,0,12,0,12,5,20,0,17,26,30,0,12,0,12,0,12,0,12,0,17,0,12,5,8,0,12,2,3,21,34,7,11,0,12,0,12,26,44]
[null,null,null,"Estimate!!Total:!!Income in the past 12 months below poverty level:!!Other family:!!Male householder, no spouse present:!!With related children of the householder under 18 years:",0,12,0,12,0,12,16,18,0,12,0,12,5,20,0,17,26,30,0,12,0,12,0,12,0,12,0,17,0,12,5,8,0,12,0,12,21,34,0,12,0,12,0,12,26,44]
[null,null,null,"Estimate!!Total:!!Income in the past 12 months below poverty level:!!Other family:!!Male householder, no spouse present:!!With related children of the householder under 18 years:!!Under 5 years only",0,12,0,12,0,12,0,12,0,12,0,12,0,12,0,17,0,22,0,12,0,12,0,12,0,12,0,17,0,12,0,12,0,12,0,12,0,17,0,12,0,12,0,12,26,44]
[null,null,null,"Estimate!!Total:!!Income in the past 12 months below poverty level:!!Other family:!!Male householder, no spouse present:!!With related children of the householder under 18 years:!!Under 5 years and 5 to 17 years",0,12,0,12,0,12,0,12,0,12,0,12,0,12,0,17,0,22,0,12,0,12,0,12,0,12,0,17,0,12,5,8,0,12,0,12,0,17,0,12,0,12,0,12,0,12]
[null,null,null,"Estimate!!Total:!!Income in the past 12 months below poverty level:!!Other family:!!Male householder, no spouse present:!!With related children of the householder under 18 years:!!5 to 17 years only",0,12,0,12,0,12,16,18,0,12,0,12,5,20,0,17,26,30,0,12,0,12,0,12,0,12,0,17,0,12,0,12,0,12,0,12,21,34,0,12,0,12,0,12,0,12]
[null,null,null,"Estimate!!Total:!!Income in the past 12 months below poverty level:!!Other family:!!Male householder, no spouse present:!!No related children of the householder under 18 years",0,12,0,12,0,12,0,12,0,12,0,12,0,12,0,17,0,22,0,12,0,12,0,12,0,12,0,17,0,12,0,12,0,12,2,3,0,17,7,11,0,12,0,12,0,12]
[null,null,null,"Estimate!!Total:!!Income in the past 12 months below poverty level:!!Other family:!!Female householder, no spouse present:",0,12,0,12,13,13,12,15,2,3,0,12,4,10,23,39,100,71,49,64,7,10,0,12,12,20,20,24,0,12,0,12,0,12,0,12,132,87,11,13,22,31,0,12,84,57]
[null,null,null,"Estimate!!Total:!!Income in the past 12 months below poverty level:!!Other family:!!Female householder, no spouse present:!!With related children of the householder under 18 years:",0,12,0,12,13,13,7,12,2,3,0,12,4,10,23,39,79,66,49,64,7,10,0,12,0,12,14,22,0,12,0,12,0,12,0,12,80,69,7,11,12,20,0,12,84,57]
[null,null,null,"Estimate!!Total:!!Income in the past 12 months below poverty level:!!Other family:!!Female householder, no spouse present:!!With related children of the householder under 18 years:!!Under 5 years only",0,12,0,12,4,5,0,12,0,12,0,12,0,12,0,17,17,29,0,12,0,12,0,12,0,12,0,17,0,12,0,12,0,12,0,12,0,17,0,12,12,20,0,12,34,39]
[null,null,null,"Estimate!!Total:!!Income in the past 12 months below poverty level:!!Other family:!!Female householder, no spouse present:!!With related children of the householder under 18 years:!!Under 5 years and 5 to 17 years",0,12,0,12,0,12,0,12,0,12,0,12,0,12,23,39,27,38,49,64,7,10,0,12,0,12,0,17,0,12,0,12,0,12,0,12,0,17,0,12,0,12,0,12,31,33]
[null,null,null,"Estimate!!Total:!!Income in the past 12 months below poverty level:!!Other family:!!Female householder, no spouse present:!!With related children of the householder under 18 years:!!5 to 17 years only",0,12,0,12,9,12,7,12,2,3,0,12,4,10,0,17,35,31,0,12,0,12,0,12,0,12,14,22,0,12,0,12,0,12,0,12,80,69,7,11,0,12,0,12,19,21]
[null,null,null,"Estimate!!Total:!!Income in the past 12 months below poverty level:!!Other family:!!Female householder, no spouse present:!!No related children of the householder under 18 years",0,12,0,12,0,12,5,8,0,12,0,12,0,12,0,17,21,24,0,12,0,12,0,12,12,20,6,10,0,12,0,12,0,12,0,12,52,77,4,7,10,16,0,12,0,12]
[null,null,null,"Estimate!!Total:!!Income in the past 12 months at or above poverty level:",445,73,970,146,470,81,585,122,225,44,313,70,1030,147,1351,165,4367,293,501,112,227,58,163,39,304,67,1372,129,66,37,292,46,193,45,258,60,1925,218,473,87,855,100,600,113,750,121]
[null,null,null,"Estimate!!Total:!!Income in the past 12 months at or above poverty level:!!Married-couple family:",380,74,815,161,410,82,475,78,190,37,271,66,874,154,1202,191,3345,288,439,100,214,55,132,32,245,57,1309,127,57,37,259,45,164,45,231,60,1572,259,353,72,711,99,540,101,664,114]
[null,null,null,"Estimate!!Total:!!Income in the past 12 months at or above poverty level:!!Married-couple family:!!With related children of the householder under 18 years:",75,33,242,85,111,38,144,53,58,21,61,43,262,86,431,122,972,156,197,86,74,35,27,14,66,27,383,88,11,11,74,27,63,32,89,46,342,150,163,50,385,109,130,48,319,100]
[null,null,null,"Estimate!!Total:!!Income in the past 12 months at or above poverty level:!!Married-couple family:!!With related children of the householder under 18 years:!!Under 5 years only",8,9,41,33,4,6,52,45,28,15,16,22,8,14,0,17,180,82,70,70,6,11,6,6,2,4,13,16,2,3,22,11,42,28,17,11,0,17,33,21,98,95,25,23,61,49]
[null,null,null,"Estimate!!Total:!!Income in the past 12 months at or above poverty level:!!Married-couple family:!!With related children of the householder under 18 years:!!Under 5 years and 5 to 17 years",10,9,0,12,47,28,12,11,4,4,30,34,22,32,92,91,203,63,16,14,15,15,3,4,15,12,70,45,4,5,4,5,7,6,18,24,123,116,34,28,95,48,25,19,72,60]
[null,null,null,"Estimate!!Total:!!Income in the past 12 months at or above poverty level:!!Married-couple family:!!With related children of the householder under 18 years:!!5 to 17 years only",57,32,201,88,60,31,80,30,26,13,15,14,232,87,339,118,589,140,111,53,53,30,18,13,49,26,300,93,5,6,48,22,14,11,54,35,219,110,96,50,192,78,80,37,186,95]
[null,null,null,"Estimate!!Total:!!Income in the past 12 months at or above poverty level:!!Married-couple family:!!No related children of the householder under 18 years",305,81,573,158,299,80,331,76,132,30,210,50,612,170,771,188,2373,292,242,67,140,46,105,31,179,49,926,139,46,40,185,42,101,28,142,41,1230,243,190,56,326,87,410,99,345,98]
[null,null,null,"Estimate!!Total:!!Income in the past 12 months at or above poverty level:!!Other family:",65,21,155,87,60,26,110,97,35,27,42,22,156,92,149,74,1022,212,62,30,13,13,31,18,59,36,63,41,9,11,33,20,29,19,27,16,353,180,120,49,144,70,60,58,86,45]
[null,null,null,"Estimate!!Total:!!Income in the past 12 months at or above poverty level:!!Other family:!!Male householder, no spouse present:",13,11,18,29,35,22,39,28,10,12,12,10,76,71,36,38,308,149,21,22,8,12,10,10,41,37,35,38,8,11,14,15,21,17,4,4,126,108,50,33,43,30,11,9,0,12]
[null,null,null,"Estimate!!Total:!!Income in the past 12 months at or above poverty level:!!Other family:!!Male householder, no spouse present:!!With related children of the householder under 18 years:",9,9,18,29,8,6,8,12,0,12,9,8,25,28,36,38,242,138,16,21,8,12,9,10,8,13,35,38,1,2,14,15,4,7,2,3,126,108,22,23,29,27,8,8,0,12]
[null,null,null,"Estimate!!Total:!!Income in the past 12 months at or above poverty level:!!Other family:!!Male householder, no spouse present:!!With related children of the householder under 18 years:!!Under 5 years only",0,12,0,12,0,12,0,12,0,12,4,6,0,12,8,17,67,66,0,12,0,12,2,3,8,13,35,38,1,2,2,4,0,12,0,12,20,32,22,23,22,24,3,5,0,12]
[null,null,null,"Estimate!!Total:!!Income in the past 12 months at or above poverty level:!!Other family:!!Male householder, no spouse present:!!With related children of the householder under 18 years:!!Under 5 years and 5 to 17 years",5,7,0,12,0,12,0,12,0,12,0,12,15,24,0,17,0,22,0,12,0,12,0,12,0,12,0,17,0,12,0,12,0,12,0,12,0,17,0,12,0,12,0,12,0,12]
[null,null,null,"Estimate!!Total:!!Income in the past 12 months at or above poverty level:!!Other family:!!Male householder, no spouse present:!!With related children of the householder under 18 years:!!5 to 17 years only",4,6,18,29,8,6,8,12,0,12,5,6,10,17,28,35,175,113,16,21,8,12,7,10,0,12,0,17,0,12,12,15,4,7,2,3,106,106,0,12,7,13,5,7,0,12]
[null,null,null,"Estimate!!Total:!!Income in the past 12 months at or above poverty level:!!Other family:!!Male householder, no spouse present:!!No related children of the householder under 18 years",4,6,0,12,27,19,31,25,10,12,3,4,51,69,0,17,66,59,5,8,0,12,1,2,33,34,0,17,7,10,0,12,17,15,2,3,0,17,28,24,14,15,3,5,0,12]
[null,null,null,"Estimate!!Total:!!Income in the past 12 months at or above poverty level:!!Other family:!!Female householder, no spouse present:",52,20,137,81,25,15,71,91,25,26,30,19,80,59,113,75,714,163,41,26,5,5,21,14,18,14,28,32,1,2,19,13,8,7,23,15,227,127,70,35,101,62,49,58,86,45]
[null,null,null,"Estimate!!Total:!!Income in the past 12 months at or above poverty level:!!Other family:!!Female householder, no spouse present:!!With related children of the householder under 18 years:",31,18,82,65,6,7,0,12,20,25,11,8,28,33,60,50,361,120,21,24,2,3,7,7,4,6,20,30,0,12,16,12,6,6,3,4,180,121,32,26,72,63,46,58,28,29]
[null,null,null,"Estimate!!Total:!!Income in the past 12 months at or above poverty level:!!Other family:!!Female householder, no spouse present:!!With related children of the householder under 18 years:!!Under 5 years only",0,12,0,12,0,12,0,12,3,4,3,5,0,12,0,17,58,70,14,21,0,12,3,3,0,12,0,17,0,12,6,9,0,12,3,4,48,52,0,12,0,12,8,15,0,12]
[null,null,null,"Estimate!!Total:!!Income in the past 12 months at or above poverty level:!!Other family:!!Female householder, no spouse present:!!With related children of the householder under 18 years:!!Under 5 years and 5 to 17 years",0,12,36,38,0,12,0,12,0,12,0,12,0,12,0,17,32,37,0,12,0,12,0,12,0,12,0,17,0,12,4,5,3,4,0,12,42,65,0,12,7,11,0,12,0,12]
[null,null,null,"Estimate!!Total:!!Income in the past 12 months at or above poverty level:!!Other family:!!Female householder, no spouse present:!!With related children of the householder under 18 years:!!5 to 17 years only",31,18,46,56,6,7,0,12,17,25,8,8,28,33,60,50,271,103,7,13,2,3,4,6,4,6,20,30,0,12,6,7,3,4,0,12,90,94,32,26,65,62,38,57,28,29]
[null,null,null,"Estimate!!Total:!!Income in the past 12 months at or above poverty level:!!Other family:!!Female householder, no spouse present:!!No related children of the householder under 18 years",21,14,55,50,19,15,71,91,5,7,19,17,52,50,53,54,353,133,20,16,3,4,14,11,14,11,8,13,1,2,3,4,2,3,20,14,47,46,38,23,29,24,3,4,58,38]

{"sheet":"SData_B17017_HH PovStat","index":30,"n_rows":89,"n_cols":122,"rows_kept":89,"cut":false,"hidden":true,"merged":[]}
["GEO_ID","GEO_ID2","SUMLEVEL",{"$f":"[1]ACS_16_5YR_B17017_with_ann!C1","v":"NAME"},{"$f":"[1]ACS_16_5YR_B17017_with_ann!D1","v":"B17017_001E"},{"$f":"[1]ACS_16_5YR_B17017_with_ann!E1","v":"B17017_001M"},{"$f":"[1]ACS_16_5YR_B17017_with_ann!F1","v":"B17017_002E"},{"$f":"[1]ACS_16_5YR_B17017_with_ann!G1","v":"B17017_002M"},{"$f":"[1]ACS_16_5YR_B17017_with_ann!H1","v":"B17017_003E"},{"$f":"[1]ACS_16_5YR_B17017_with_ann!I1","v":"B17017_003M"},{"$f":"[1]ACS_16_5YR_B17017_with_ann!J1","v":"B17017_004E"},{"$f":"[1]ACS_16_5YR_B17017_with_ann!K1","v":"B17017_004M"},{"$f":"[1]ACS_16_5YR_B17017_with_ann!L1","v":"B17017_005E"},{"$f":"[1]ACS_16_5YR_B17017_with_ann!M1","v":"B17017_005M"},{"$f":"[1]ACS_16_5YR_B17017_with_ann!N1","v":"B17017_006E"},{"$f":"[1]ACS_16_5YR_B17017_with_ann!O1","v":"B17017_006M"},{"$f":"[1]ACS_16_5YR_B17017_with_ann!P1","v":"B17017_007E"},{"$f":"[1]ACS_16_5YR_B17017_with_ann!Q1","v":"B17017_007M"},{"$f":"[1]ACS_16_5YR_B17017_with_ann!R1","v":"B17017_008E"},{"$f":"[1]ACS_16_5YR_B17017_with_ann!S1","v":"B17017_008M"},{"$f":"[1]ACS_16_5YR_B17017_with_ann!T1","v":"B17017_009E"},{"$f":"[1]ACS_16_5YR_B17017_with_ann!U1","v":"B17017_009M"},{"$f":"[1]ACS_16_5YR_B17017_with_ann!V1","v":"B17017_010E"},{"$f":"[1]ACS_16_5YR_B17017_with_ann!W1","v":"B17017_010M"},{"$f":"[1]ACS_16_5YR_B17017_with_ann!X1","v":"B17017_011E"},{"$f":"[1]ACS_16_5YR_B17017_with_ann!Y1","v":"B17017_011M"},{"$f":"[1]ACS_16_5YR_B17017_with_ann!Z1","v":"B17017_012E"},{"$f":"[1]ACS_16_5YR_B17017_with_ann!AA1","v":"B17017_012M"},{"$f":"[1]ACS_16_5YR_B17017_with_ann!AB1","v":"B17017_013E"},{"$f":"[1]ACS_16_5YR_B17017_with_ann!AC1","v":"B17017_013M"},{"$f":"[1]ACS_16_5YR_B17017_with_ann!AD1","v":"B17017_014E"},{"$f":"[1]ACS_16_5YR_B17017_with_ann!AE1","v":"B17017_014M"},{"$f":"[1]ACS_16_5YR_B17017_with_ann!AF1","v":"B17017_015E"},{"$f":"[1]ACS_16_5YR_B17017_with_ann!AG1","v":"B17017_015M"},{"$f":"[1]ACS_16_5YR_B17017_with_ann!AH1","v":"B17017_016E"},{"$f":"[1]ACS_16_5YR_B17017_with_ann!AI1","v":"B17017_016M"},{"$f":"[1]ACS_16_5YR_B17017_with_ann!AJ1","v":"B17017_017E"},{"$f":"[1]ACS_16_5YR_B17017_with_ann!AK1","v":"B17017_017M"},{"$f":"[1]ACS_16_5YR_B17017_with_ann!AL1","v":"B17017_018E"},{"$f":"[1]ACS_16_5YR_B17017_with_ann!AM1","v":"B17017_018M"},{"$f":"[1]ACS_16_5YR_B17017_with_ann!AN1","v":"B17017_019E"},{"$f":"[1]ACS_16_5YR_B17017_with_ann!AO1","v":"B17017_019M"},{"$f":"[1]ACS_16_5YR_B17017_with_ann!AP1","v":"B17017_020E"},{"$f":"[1]ACS_16_5YR_B17017_with_ann!AQ1","v":"B17017_020M"},{"$f":"[1]ACS_16_5YR_B17017_with_ann!AR1","v":"B17017_021E"},{"$f":"[1]ACS_16_5YR_B17017_with_ann!AS1","v":"B17017_021M"},{"$f":"[1]ACS_16_5YR_B17017_with_ann!AT1","v":"B17017_022E"},{"$f":"[1]ACS_16_5YR_B17017_with_ann!AU1","v":"B17017_022M"},{"$f":"[1]ACS_16_5YR_B17017_with_ann!AV1","v":"B17017_023E"},{"$f":"[1]ACS_16_5YR_B17017_with_ann!AW1","v":"B17017_023M"},{"$f":"[1]ACS_16_5YR_B17017_with_ann!AX1","v":"B17017_024E"},{"$f":"[1]ACS_16_5YR_B17017_with_ann!AY1","v":"B17017_024M"},{"$f":"[1]ACS_16_5YR_B17017_with_ann!AZ1","v":"B17017_025E"},{"$f":"[1]ACS_16_5YR_B17017_with_ann!BA1","v":"B17017_025M"},{"$f":"[1]ACS_16_5YR_B17017_with_ann!BB1","v":"B17017_026E"},{"$f":"[1]ACS_16_5YR_B17017_with_ann!BC1","v":"B17017_026M"},{"$f":"[1]ACS_16_5YR_B17017_with_ann!BD1","v":"B17017_027E"},{"$f":"[1]ACS_16_5YR_B17017_with_ann!BE1","v":"B17017_027M"},{"$f":"[1]ACS_16_5YR_B17017_with_ann!BF1","v":"B17017_028E"},{"$f":"[1]ACS_16_5YR_B17017_with_ann!BG1","v":"B17017_028M"},{"$f":"[1]ACS_16_5YR_B17017_with_ann!BH1","v":"B17017_029E"},{"$f":"[1]ACS_16_5YR_B17017_with_ann!BI1","v":"B17017_029M"},{"$f":"[1]ACS_16_5YR_B17017_with_ann!BJ1","v":"B17017_030E"},{"$f":"[1]ACS_16_5YR_B17017_with_ann!BK1","v":"B17017_030M"},{"$f":"[1]ACS_16_5YR_B17017_with_ann!BL1","v":"B17017_031E"},{"$f":"[1]ACS_16_5YR_B17017_with_ann!BM1","v":"B17017_031M"},{"$f":"[1]ACS_16_5YR_B17017_with_ann!BN1","v":"B17017_032E"},{"$f":"[1]ACS_16_5YR_B17017_with_ann!BO1","v":"B17017_032M"},{"$f":"[1]ACS_16_5YR_B17017_with_ann!BP1","v":"B17017_033E"},{"$f":"[1]ACS_16_5YR_B17017_with_ann!BQ1","v":"B17017_033M"},{"$f":"[1]ACS_16_5YR_B17017_with_ann!BR1","v":"B17017_034E"},{"$f":"[1]ACS_16_5YR_B17017_with_ann!BS1","v":"B17017_034M"},{"$f":"[1]ACS_16_5YR_B17017_with_ann!BT1","v":"B17017_035E"},{"$f":"[1]ACS_16_5YR_B17017_with_ann!BU1","v":"B17017_035M"},{"$f":"[1]ACS_16_5YR_B17017_with_ann!BV1","v":"B17017_036E"},{"$f":"[1]ACS_16_5YR_B17017_with_ann!BW1","v":"B17017_036M"},{"$f":"[1]ACS_16_5YR_B17017_with_ann!BX1","v":"B17017_037E"},{"$f":"[1]ACS_16_5YR_B17017_with_ann!BY1","v":"B17017_037M"},{"$f":"[1]ACS_16_5YR_B17017_with_ann!BZ1","v":"B17017_038E"},{"$f":"[1]ACS_16_5YR_B17017_with_ann!CA1","v":"B17017_038M"},{"$f":"[1]ACS_16_5YR_B17017_with_ann!CB1","v":"B17017_039E"},{"$f":"[1]ACS_16_5YR_B17017_with_ann!CC1","v":"B17017_039M"},{"$f":"[1]ACS_16_5YR_B17017_with_ann!CD1","v":"B17017_040E"},{"$f":"[1]ACS_16_5YR_B17017_with_ann!CE1","v":"B17017_040M"},{"$f":"[1]ACS_16_5YR_B17017_with_ann!CF1","v":"B17017_041E"},{"$f":"[1]ACS_16_5YR_B17017_with_ann!CG1","v":"B17017_041M"},{"$f":"[1]ACS_16_5YR_B17017_with_ann!CH1","v":"B17017_042E"},{"$f":"[1]ACS_16_5YR_B17017_with_ann!CI1","v":"B17017_042M"},{"$f":"[1]ACS_16_5YR_B17017_with_ann!CJ1","v":"B17017_043E"},{"$f":"[1]ACS_16_5YR_B17017_with_ann!CK1","v":"B17017_043M"},{"$f":"[1]ACS_16_5YR_B17017_with_ann!CL1","v":"B17017_044E"},{"$f":"[1]ACS_16_5YR_B17017_with_ann!CM1","v":"B17017_044M"},{"$f":"[1]ACS_16_5YR_B17017_with_ann!CN1","v":"B17017_045E"},{"$f":"[1]ACS_16_5YR_B17017_with_ann!CO1","v":"B17017_045M"},{"$f":"[1]ACS_16_5YR_B17017_with_ann!CP1","v":"B17017_046E"},{"$f":"[1]ACS_16_5YR_B17017_with_ann!CQ1","v":"B17017_046M"},{"$f":"[1]ACS_16_5YR_B17017_with_ann!CR1","v":"B17017_047E"},{"$f":"[1]ACS_16_5YR_B17017_with_ann!CS1","v":"B17017_047M"},{"$f":"[1]ACS_16_5YR_B17017_with_ann!CT1","v":"B17017_048E"},{"$f":"[1]ACS_16_5YR_B17017_with_ann!CU1","v":"B17017_048M"},{"$f":"[1]ACS_16_5YR_B17017_with_ann!CV1","v":"B17017_049E"},{"$f":"[1]ACS_16_5YR_B17017_with_ann!CW1","v":"B17017_049M"},{"$f":"[1]ACS_16_5YR_B17017_with_ann!CX1","v":"B17017_050E"},{"$f":"[1]ACS_16_5YR_B17017_with_ann!CY1","v":"B17017_050M"},{"$f":"[1]ACS_16_5YR_B17017_with_ann!CZ1","v":"B17017_051E"},{"$f":"[1]ACS_16_5YR_B17017_with_ann!DA1","v":"B17017_051M"},{"$f":"[1]ACS_16_5YR_B17017_with_ann!DB1","v":"B17017_052E"},{"$f":"[1]ACS_16_5YR_B17017_with_ann!DC1","v":"B17017_052M"},{"$f":"[1]ACS_16_5YR_B17017_with_ann!DD1","v":"B17017_053E"},{"$f":"[1]ACS_16_5YR_B17017_with_ann!DE1","v":"B17017_053M"},{"$f":"[1]ACS_16_5YR_B17017_with_ann!DF1","v":"B17017_054E"},{"$f":"[1]ACS_16_5YR_B17017_with_ann!DG1","v":"B17017_054M"},{"$f":"[1]ACS_16_5YR_B17017_with_ann!DH1","v":"B17017_055E"},{"$f":"[1]ACS_16_5YR_B17017_with_ann!DI1","v":"B17017_055M"},{"$f":"[1]ACS_16_5YR_B17017_with_ann!DJ1","v":"B17017_056E"},{"$f":"[1]ACS_16_5YR_B17017_with_ann!DK1","v":"B17017_056M"},{"$f":"[1]ACS_16_5YR_B17017_with_ann!DL1","v":"B17017_057E"},{"$f":"[1]ACS_16_5YR_B17017_with_ann!DM1","v":"B17017_057M"},{"$f":"[1]ACS_16_5YR_B17017_with_ann!DN1","v":"B17017_058E"},{"$f":"[1]ACS_16_5YR_B17017_with_ann!DO1","v":"B17017_058M"},{"$f":"[1]ACS_16_5YR_B17017_with_ann!DP1","v":"B17017_059E"},{"$f":"[1]ACS_16_5YR_B17017_with_ann!DQ1","v":"B17017_059M"}]
["Geography Identifier","Geography Identifier","Geographic Summary Level",{"$f":"[1]ACS_16_5YR_B17017_with_ann!C2","v":"Geographic Area Name"},{"$f":"[1]ACS_16_5YR_B17017_with_ann!D2","v":"Estimate!!Total:"},{"$f":"[1]ACS_16_5YR_B17017_with_ann!E2","v":"Margin of Error!!Total:"},{"$f":"[1]ACS_16_5YR_B17017_with_ann!F2","v":"Estimate!!Total:!!Income in the past 12 months below poverty level:"},{"$f":"[1]ACS_16_5YR_B17017_with_ann!G2","v":"Margin of Error!!Total:!!Income in the past 12 months below poverty level:"},{"$f":"[1]ACS_16_5YR_B17017_with_ann!H2","v":"Estimate!!Total:!!Income in the past 12 months below poverty level:!!Family households:"},{"$f":"[1]ACS_16_5YR_B17017_with_ann!I2","v":"Margin of Error!!Total:!!Income in the past 12 months below poverty level:!!Family households:"},{"$f":"[1]ACS_16_5YR_B17017_with_ann!J2","v":"Estimate!!Total:!!Income in the past 12 months below poverty level:!!Family households:!!Married-couple family:"},{"$f":"[1]ACS_16_5YR_B17017_with_ann!K2","v":"Margin of Error!!Total:!!Income in the past 12 months below poverty level:!!Family households:!!Married-couple family:"},{"$f":"[1]ACS_16_5YR_B17017_with_ann!L2","v":"Estimate!!Total:!!Income in the past 12 months below poverty level:!!Family households:!!Married-couple family:!!Householder under 25 years"},{"$f":"[1]ACS_16_5YR_B17017_with_ann!M2","v":"Margin of Error!!Total:!!Income in the past 12 months below poverty level:!!Family households:!!Married-couple family:!!Householder under 25 years"},{"$f":"[1]ACS_16_5YR_B17017_with_ann!N2","v":"Estimate!!Total:!!Income in the past 12 months below poverty level:!!Family households:!!Married-couple family:!!Householder 25 to 44 years"},{"$f":"[1]ACS_16_5YR_B17017_with_ann!O2","v":"Margin of Error!!Total:!!Income in the past 12 months below poverty level:!!Family households:!!Married-couple family:!!Householder 25 to 44 years"},{"$f":"[1]ACS_16_5YR_B17017_with_ann!P2","v":"Estimate!!Total:!!Income in the past 12 months below poverty level:!!Family households:!!Married-couple family:!!Householder 45 to 64 years"},{"$f":"[1]ACS_16_5YR_B17017_with_ann!Q2","v":"Margin of Error!!Total:!!Income in the past 12 months below poverty level:!!Family households:!!Married-couple family:!!Householder 45 to 64 years"},{"$f":"[1]ACS_16_5YR_B17017_with_ann!R2","v":"Estimate!!Total:!!Income in the past 12 months below poverty level:!!Family households:!!Married-couple family:!!Householder 65 years and over"},{"$f":"[1]ACS_16_5YR_B17017_with_ann!S2","v":"Margin of Error!!Total:!!Income in the past 12 months below poverty level:!!Family households:!!Married-couple family:!!Householder 65 years and over"},{"$f":"[1]ACS_16_5YR_B17017_with_ann!T2","v":"Estimate!!Total:!!Income in the past 12 months below poverty level:!!Family households:!!Other family:"},{"$f":"[1]ACS_16_5YR_B17017_with_ann!U2","v":"Margin of Error!!Total:!!Income in the past 12 months below poverty level:!!Family households:!!Other family:"},{"$f":"[1]ACS_16_5YR_B17017_with_ann!V2","v":"Estimate!!Total:!!Income in the past 12 months below poverty level:!!Family households:!!Other family:!!Male householder, no spouse present:"},{"$f":"[1]ACS_16_5YR_B17017_with_ann!W2","v":"Margin of Error!!Total:!!Income in the past 12 months below poverty level:!!Family households:!!Other family:!!Male householder, no spouse present:"},{"$f":"[1]ACS_16_5YR_B17017_with_ann!X2","v":"Estimate!!Total:!!Income in the past 12 months below poverty level:!!Family households:!!Other family:!!Male householder, no spouse present:!!Householder under 25 years"},{"$f":"[1]ACS_16_5YR_B17017_with_ann!Y2","v":"Margin of Error!!Total:!!Income in the past 12 months below poverty level:!!Family households:!!Other family:!!Male householder, no spouse present:!!Householder under 25 years"},{"$f":"[1]ACS_16_5YR_B17017_with_ann!Z2","v":"Estimate!!Total:!!Income in the past 12 months below poverty level:!!Family households:!!Other family:!!Male householder, no spouse present:!!Householder 25 to 44 years"},{"$f":"[1]ACS_16_5YR_B17017_with_ann!AA2","v":"Margin of Error!!Total:!!Income in the past 12 months below poverty level:!!Family households:!!Other family:!!Male householder, no spouse present:!!Householder 25 to 44 years"},{"$f":"[1]ACS_16_5YR_B17017_with_ann!AB2","v":"Estimate!!Total:!!Income in the past 12 months below poverty level:!!Family households:!!Other family:!!Male householder, no spouse present:!!Householder 45 to 64 years"},{"$f":"[1]ACS_16_5YR_B17017_with_ann!AC2","v":"Margin of Error!!Total:!!Income in the past 12 months below poverty level:!!Family households:!!Other family:!!Male householder, no spouse present:!!Householder 45 to 64 years"},{"$f":"[1]ACS_16_5YR_B17017_with_ann!AD2","v":"Estimate!!Total:!!Income in the past 12 months below poverty level:!!Family households:!!Other family:!!Male householder, no spouse present:!!Householder 65 years and over"},{"$f":"[1]ACS_16_5YR_B17017_with_ann!AE2","v":"Margin of Error!!Total:!!Income in the past 12 months below poverty level:!!Family households:!!Other family:!!Male householder, no spouse present:!!Householder 65 years and over"},{"$f":"[1]ACS_16_5YR_B17017_with_ann!AF2","v":"Estimate!!Total:!!Income in the past 12 months below poverty level:!!Family households:!!Other family:!!Female householder, no spouse present:"},{"$f":"[1]ACS_16_5YR_B17017_with_ann!AG2","v":"Margin of Error!!Total:!!Income in the past 12 months below poverty level:!!Family households:!!Other family:!!Female householder, no spouse present:"},{"$f":"[1]ACS_16_5YR_B17017_with_ann!AH2","v":"Estimate!!Total:!!Income in the past 12 months below poverty level:!!Family households:!!Other family:!!Female householder, no spouse present:!!Householder under 25 years"},{"$f":"[1]ACS_16_5YR_B17017_with_ann!AI2","v":"Margin of Error!!Total:!!Income in the past 12 months below poverty level:!!Family households:!!Other family:!!Female householder, no spouse present:!!Householder under 25 years"},{"$f":"[1]ACS_16_5YR_B17017_with_ann!AJ2","v":"Estimate!!Total:!!Income in the past 12 months below poverty level:!!Family households:!!Other family:!!Female householder, no spouse present:!!Householder 25 to 44 years"},{"$f":"[1]ACS_16_5YR_B17017_with_ann!AK2","v":"Margin of Error!!Total:!!Income in the past 12 months below poverty level:!!Family households:!!Other family:!!Female householder, no spouse present:!!Householder 25 to 44 years"},{"$f":"[1]ACS_16_5YR_B17017_with_ann!AL2","v":"Estimate!!Total:!!Income in the past 12 months below poverty level:!!Family households:!!Other family:!!Female householder, no spouse present:!!Householder 45 to 64 years"},{"$f":"[1]ACS_16_5YR_B17017_with_ann!AM2","v":"Margin of Error!!Total:!!Income in the past 12 months below poverty level:!!Family households:!!Other family:!!Female householder, no spouse present:!!Householder 45 to 64 years"},{"$f":"[1]ACS_16_5YR_B17017_with_ann!AN2","v":"Estimate!!Total:!!Income in the past 12 months below poverty level:!!Family households:!!Other family:!!Female householder, no spouse present:!!Householder 65 years and over"},{"$f":"[1]ACS_16_5YR_B17017_with_ann!AO2","v":"Margin of Error!!Total:!!Income in the past 12 months below poverty level:!!Family households:!!Other family:!!Female householder, no spouse present:!!Householder 65 years and over"},{"$f":"[1]ACS_16_5YR_B17017_with_ann!AP2","v":"Estimate!!Total:!!Income in the past 12 months below poverty level:!!Nonfamily households:"},{"$f":"[1]ACS_16_5YR_B17017_with_ann!AQ2","v":"Margin of Error!!Total:!!Income in the past 12 months below poverty level:!!Nonfamily households:"},{"$f":"[1]ACS_16_5YR_B17017_with_ann!AR2","v":"Estimate!!Total:!!Income in the past 12 months below poverty level:!!Nonfamily households:!!Male householder:"},{"$f":"[1]ACS_16_5YR_B17017_with_ann!AS2","v":"Margin of Error!!Total:!!Income in the past 12 months below poverty level:!!Nonfamily households:!!Male householder:"},{"$f":"[1]ACS_16_5YR_B17017_with_ann!AT2","v":"Estimate!!Total:!!Income in the past 12 months below poverty level:!!Nonfamily households:!!Male householder:!!Householder under 25 years"},{"$f":"[1]ACS_16_5YR_B17017_with_ann!AU2","v":"Margin of Error!!Total:!!Income in the past 12 months below poverty level:!!Nonfamily households:!!Male householder:!!Householder under 25 years"},{"$f":"[1]ACS_16_5YR_B17017_with_ann!AV2","v":"Estimate!!Total:!!Income in the past 12 months below poverty level:!!Nonfamily households:!!Male householder:!!Householder 25 to 44 years"},{"$f":"[1]ACS_16_5YR_B17017_with_ann!AW2","v":"Margin of Error!!Total:!!Income in the past 12 months below poverty level:!!Nonfamily households:!!Male householder:!!Householder 25 to 44 years"},{"$f":"[1]ACS_16_5YR_B17017_with_ann!AX2","v":"Estimate!!Total:!!Income in the past 12 months below poverty level:!!Nonfamily households:!!Male householder:!!Householder 45 to 64 years"},{"$f":"[1]ACS_16_5YR_B17017_with_ann!AY2","v":"Margin of Error!!Total:!!Income in the past 12 months below poverty level:!!Nonfamily households:!!Male householder:!!Householder 45 to 64 years"},{"$f":"[1]ACS_16_5YR_B17017_with_ann!AZ2","v":"Estimate!!Total:!!Income in the past 12 months below poverty level:!!Nonfamily households:!!Male householder:!!Householder 65 years and over"},{"$f":"[1]ACS_16_5YR_B17017_with_ann!BA2","v":"Margin of Error!!Total:!!Income in the past 12 months below poverty level:!!Nonfamily households:!!Male householder:!!Householder 65 years and over"},{"$f":"[1]ACS_16_5YR_B17017_with_ann!BB2","v":"Estimate!!Total:!!Income in the past 12 months below poverty level:!!Nonfamily households:!!Female householder:"},{"$f":"[1]ACS_16_5YR_B17017_with_ann!BC2","v":"Margin of Error!!Total:!!Income in the past 12 months below poverty level:!!Nonfamily households:!!Female householder:"},{"$f":"[1]ACS_16_5YR_B17017_with_ann!BD2","v":"Estimate!!Total:!!Income in the past 12 months below poverty level:!!Nonfamily households:!!Female householder:!!Householder under 25 years"},{"$f":"[1]ACS_16_5YR_B17017_with_ann!BE2","v":"Margin of Error!!Total:!!Income in the past 12 months below poverty level:!!Nonfamily households:!!Female householder:!!Householder under 25 years"},{"$f":"[1]ACS_16_5YR_B17017_with_ann!BF2","v":"Estimate!!Total:!!Income in the past 12 months below poverty level:!!Nonfamily households:!!Female householder:!!Householder 25 to 44 years"},{"$f":"[1]ACS_16_5YR_B17017_with_ann!BG2","v":"Margin of Error!!Total:!!Income in the past 12 months below poverty level:!!Nonfamily households:!!Female householder:!!Householder 25 to 44 years"},{"$f":"[1]ACS_16_5YR_B17017_with_ann!BH2","v":"Estimate!!Total:!!Income in the past 12 months below poverty level:!!Nonfamily households:!!Female householder:!!Householder 45 to 64 years"},{"$f":"[1]ACS_16_5YR_B17017_with_ann!BI2","v":"Margin of Error!!Total:!!Income in the past 12 months below poverty level:!!Nonfamily households:!!Female householder:!!Householder 45 to 64 years"},{"$f":"[1]ACS_16_5YR_B17017_with_ann!BJ2","v":"Estimate!!Total:!!Income in the past 12 months below poverty level:!!Nonfamily households:!!Female householder:!!Householder 65 years and over"},{"$f":"[1]ACS_16_5YR_B17017_with_ann!BK2","v":"Margin of Error!!Total:!!Income in the past 12 months below poverty level:!!Nonfamily households:!!Female householder:!!Householder 65 years and over"},{"$f":"[1]ACS_16_5YR_B17017_with_ann!BL2","v":"Estimate!!Total:!!Income in the past 12 months at or above poverty level:"},{"$f":"[1]ACS_16_5YR_B17017_with_ann!BM2","v":"Margin of Error!!Total:!!Income in the past 12 months at or above poverty level:"},{"$f":"[1]ACS_16_5YR_B17017_with_ann!BN2","v":"Estimate!!Total:!!Income in the past 12 months at or above poverty level:!!Family households:"},{"$f":"[1]ACS_16_5YR_B17017_with_ann!BO2","v":"Margin of Error!!Total:!!Income in the past 12 months at or above poverty level:!!Family households:"},{"$f":"[1]ACS_16_5YR_B17017_with_ann!BP2","v":"Estimate!!Total:!!Income in the past 12 months at or above poverty level:!!Family households:!!Married-couple family:"},{"$f":"[1]ACS_16_5YR_B17017_with_ann!BQ2","v":"Margin of Error!!Total:!!Income in the past 12 months at or above poverty level:!!Family households:!!Married-couple family:"},{"$f":"[1]ACS_16_5YR_B17017_with_ann!BR2","v":"Estimate!!Total:!!Income in the past 12 months at or above poverty level:!!Family households:!!Married-couple family:!!Householder under 25 years"},{"$f":"[1]ACS_16_5YR_B17017_with_ann!BS2","v":"Margin of Error!!Total:!!Income in the past 12 months at or above poverty level:!!Family households:!!Married-couple family:!!Householder under 25 years"},{"$f":"[1]ACS_16_5YR_B17017_with_ann!BT2","v":"Estimate!!Total:!!Income in the past 12 months at or above poverty level:!!Family households:!!Married-couple family:!!Householder 25 to 44 years"},{"$f":"[1]ACS_16_5YR_B17017_with_ann!BU2","v":"Margin of Error!!Total:!!Income in the past 12 months at or above poverty level:!!Family households:!!Married-couple family:!!Householder 25 to 44 years"},{"$f":"[1]ACS_16_5YR_B17017_with_ann!BV2","v":"Estimate!!Total:!!Income in the past 12 months at or above poverty level:!!Family households:!!Married-couple family:!!Householder 45 to 64 years"},{"$f":"[1]ACS_16_5YR_B17017_with_ann!BW2","v":"Margin of Error!!Total:!!Income in the past 12 months at or above poverty level:!!Family households:!!Married-couple family:!!Householder 45 to 64 years"},{"$f":"[1]ACS_16_5YR_B17017_with_ann!BX2","v":"Estimate!!Total:!!Income in the past 12 months at or above poverty level:!!Family households:!!Married-couple family:!!Householder 65 years and over"},{"$f":"[1]ACS_16_5YR_B17017_with_ann!BY2","v":"Margin of Error!!Total:!!Income in the past 12 months at or above poverty level:!!Family households:!!Married-couple family:!!Householder 65 years and over"},{"$f":"[1]ACS_16_5YR_B17017_with_ann!BZ2","v":"Estimate!!Total:!!Income in the past 12 months at or above poverty level:!!Family households:!!Other family:"},{"$f":"[1]ACS_16_5YR_B17017_with_ann!CA2","v":"Margin of Error!!Total:!!Income in the past 12 months at or above poverty level:!!Family households:!!Other family:"},{"$f":"[1]ACS_16_5YR_B17017_with_ann!CB2","v":"Estimate!!Total:!!Income in the past 12 months at or above poverty level:!!Family households:!!Other family:!!Male householder, no spouse present:"},{"$f":"[1]ACS_16_5YR_B17017_with_ann!CC2","v":"Margin of Error!!Total:!!Income in the past 12 months at or above poverty level:!!Family households:!!Other family:!!Male householder, no spouse present:"},{"$f":"[1]ACS_16_5YR_B17017_with_ann!CD2","v":"Estimate!!Total:!!Income in the past 12 months at or above poverty level:!!Family households:!!Other family:!!Male householder, no spouse present:!!Householder under 25 years"},{"$f":"[1]ACS_16_5YR_B17017_with_ann!CE2","v":"Margin of Error!!Total:!!Income in the past 12 months at or above poverty level:!!Family households:!!Other family:!!Male householder, no spouse present:!!Householder under 25 years"},{"$f":"[1]ACS_16_5YR_B17017_with_ann!CF2","v":"Estimate!!Total:!!Income in the past 12 months at or above poverty level:!!Family households:!!Other family:!!Male householder, no spouse present:!!Householder 25 to 44 years"},{"$f":"[1]ACS_16_5YR_B17017_with_ann!CG2","v":"Margin of Error!!Total:!!Income in the past 12 months at or above poverty level:!!Family households:!!Other family:!!Male householder, no spouse present:!!Householder 25 to 44 years"},{"$f":"[1]ACS_16_5YR_B17017_with_ann!CH2","v":"Estimate!!Total:!!Income in the past 12 months at or above poverty level:!!Family households:!!Other family:!!Male householder, no spouse present:!!Householder 45 to 64 years"},{"$f":"[1]ACS_16_5YR_B17017_with_ann!CI2","v":"Margin of Error!!Total:!!Income in the past 12 months at or above poverty level:!!Family households:!!Other family:!!Male householder, no spouse present:!!Householder 45 to 64 years"},{"$f":"[1]ACS_16_5YR_B17017_with_ann!CJ2","v":"Estimate!!Total:!!Income in the past 12 months at or above poverty level:!!Family households:!!Other family:!!Male householder, no spouse present:!!Householder 65 years and over"},{"$f":"[1]ACS_16_5YR_B17017_with_ann!CK2","v":"Margin of Error!!Total:!!Income in the past 12 months at or above poverty level:!!Family households:!!Other family:!!Male householder, no spouse present:!!Householder 65 years and over"},{"$f":"[1]ACS_16_5YR_B17017_with_ann!CL2","v":"Estimate!!Total:!!Income in the past 12 months at or above poverty level:!!Family households:!!Other family:!!Female householder, no spouse present:"},{"$f":"[1]ACS_16_5YR_B17017_with_ann!CM2","v":"Margin of Error!!Total:!!Income in the past 12 months at or above poverty level:!!Family households:!!Other family:!!Female householder, no spouse present:"},{"$f":"[1]ACS_16_5YR_B17017_with_ann!CN2","v":"Estimate!!Total:!!Income in the past 12 months at or above poverty level:!!Family households:!!Other family:!!Female householder, no spouse present:!!Householder under 25 years"},{"$f":"[1]ACS_16_5YR_B17017_with_ann!CO2","v":"Margin of Error!!Total:!!Income in the past 12 months at or above poverty level:!!Family households:!!Other family:!!Female householder, no spouse present:!!Householder under 25 years"},{"$f":"[1]ACS_16_5YR_B17017_with_ann!CP2","v":"Estimate!!Total:!!Income in the past 12 months at or above poverty level:!!Family households:!!Other family:!!Female householder, no spouse present:!!Householder 25 to 44 years"},{"$f":"[1]ACS_16_5YR_B17017_with_ann!CQ2","v":"Margin of Error!!Total:!!Income in the past 12 months at or above poverty level:!!Family households:!!Other family:!!Female householder, no spouse present:!!Householder 25 to 44 years"},{"$f":"[1]ACS_16_5YR_B17017_with_ann!CR2","v":"Estimate!!Total:!!Income in the past 12 months at or above poverty level:!!Family households:!!Other family:!!Female householder, no spouse present:!!Householder 45 to 64 years"},{"$f":"[1]ACS_16_5YR_B17017_with_ann!CS2","v":"Margin of Error!!Total:!!Income in the past 12 months at or above poverty level:!!Family households:!!Other family:!!Female householder, no spouse present:!!Householder 45 to 64 years"},{"$f":"[1]ACS_16_5YR_B17017_with_ann!CT2","v":"Estimate!!Total:!!Income in the past 12 months at or above poverty level:!!Family households:!!Other family:!!Female householder, no spouse present:!!Householder 65 years and over"},{"$f":"[1]ACS_16_5YR_B17017_with_ann!CU2","v":"Margin of Error!!Total:!!Income in the past 12 months at or above poverty level:!!Family households:!!Other family:!!Female householder, no spouse present:!!Householder 65 years and over"},{"$f":"[1]ACS_16_5YR_B17017_with_ann!CV2","v":"Estimate!!Total:!!Income in the past 12 months at or above poverty level:!!Nonfamily households:"},{"$f":"[1]ACS_16_5YR_B17017_with_ann!CW2","v":"Margin of Error!!Total:!!Income in the past 12 months at or above poverty level:!!Nonfamily households:"},{"$f":"[1]ACS_16_5YR_B17017_with_ann!CX2","v":"Estimate!!Total:!!Income in the past 12 months at or above poverty level:!!Nonfamily households:!!Male householder:"},{"$f":"[1]ACS_16_5YR_B17017_with_ann!CY2","v":"Margin of Error!!Total:!!Income in the past 12 months at or above poverty level:!!Nonfamily households:!!Male householder:"},{"$f":"[1]ACS_16_5YR_B17017_with_ann!CZ2","v":"Estimate!!Total:!!Income in the past 12 months at or above poverty level:!!Nonfamily households:!!Male householder:!!Householder under 25 years"},{"$f":"[1]ACS_16_5YR_B17017_with_ann!DA2","v":"Margin of Error!!Total:!!Income in the past 12 months at or above poverty level:!!Nonfamily households:!!Male householder:!!Householder under 25 years"},{"$f":"[1]ACS_16_5YR_B17017_with_ann!DB2","v":"Estimate!!Total:!!Income in the past 12 months at or above poverty level:!!Nonfamily households:!!Male householder:!!Householder 25 to 44 years"},{"$f":"[1]ACS_16_5YR_B17017_with_ann!DC2","v":"Margin of Error!!Total:!!Income in the past 12 months at or above poverty level:!!Nonfamily households:!!Male householder:!!Householder 25 to 44 years"},{"$f":"[1]ACS_16_5YR_B17017_with_ann!DD2","v":"Estimate!!Total:!!Income in the past 12 months at or above poverty level:!!Nonfamily households:!!Male householder:!!Householder 45 to 64 years"},{"$f":"[1]ACS_16_5YR_B17017_with_ann!DE2","v":"Margin of Error!!Total:!!Income in the past 12 months at or above poverty level:!!Nonfamily households:!!Male householder:!!Householder 45 to 64 years"},{"$f":"[1]ACS_16_5YR_B17017_with_ann!DF2","v":"Estimate!!Total:!!Income in the past 12 months at or above poverty level:!!Nonfamily households:!!Male householder:!!Householder 65 years and over"},{"$f":"[1]ACS_16_5YR_B17017_with_ann!DG2","v":"Margin of Error!!Total:!!Income in the past 12 months at or above poverty level:!!Nonfamily households:!!Male householder:!!Householder 65 years and over"},{"$f":"[1]ACS_16_5YR_B17017_with_ann!DH2","v":"Estimate!!Total:!!Income in the past 12 months at or above poverty level:!!Nonfamily households:!!Female householder:"},{"$f":"[1]ACS_16_5YR_B17017_with_ann!DI2","v":"Margin of Error!!Total:!!Income in the past 12 months at or above poverty level:!!Nonfamily households:!!Female householder:"},{"$f":"[1]ACS_16_5YR_B17017_with_ann!DJ2","v":"Estimate!!Total:!!Income in the past 12 months at or above poverty level:!!Nonfamily households:!!Female householder:!!Householder under 25 years"},{"$f":"[1]ACS_16_5YR_B17017_with_ann!DK2","v":"Margin of Error!!Total:!!Income in the past 12 months at or above poverty level:!!Nonfamily households:!!Female householder:!!Householder under 25 years"},{"$f":"[1]ACS_16_5YR_B17017_with_ann!DL2","v":"Estimate!!Total:!!Income in the past 12 months at or above poverty level:!!Nonfamily households:!!Female householder:!!Householder 25 to 44 years"},{"$f":"[1]ACS_16_5YR_B17017_with_ann!DM2","v":"Margin of Error!!Total:!!Income in the past 12 months at or above poverty level:!!Nonfamily households:!!Female householder:!!Householder 25 to 44 years"},{"$f":"[1]ACS_16_5YR_B17017_with_ann!DN2","v":"Estimate!!Total:!!Income in the past 12 months at or above poverty level:!!Nonfamily households:!!Female householder:!!Householder 45 to 64 years"},{"$f":"[1]ACS_16_5YR_B17017_with_ann!DO2","v":"Margin of Error!!Total:!!Income in the past 12 months at or above poverty level:!!Nonfamily households:!!Female householder:!!Householder 45 to 64 years"},{"$f":"[1]ACS_16_5YR_B17017_with_ann!DP2","v":"Estimate!!Total:!!Income in the past 12 months at or above poverty level:!!Nonfamily households:!!Female householder:!!Householder 65 years and over"},{"$f":"[1]ACS_16_5YR_B17017_with_ann!DQ2","v":"Margin of Error!!Total:!!Income in the past 12 months at or above poverty level:!!Nonfamily households:!!Female householder:!!Householder 65 years and over"}]
["06000US3300500820","0600000US3300512260","060",{"$f":"[1]ACS_16_5YR_B17017_with_ann!C44","v":"Alstead"},{"$f":"[1]ACS_16_5YR_B17017_with_ann!D44","v":723},{"$f":"[1]ACS_16_5YR_B17017_with_ann!E44","v":97},{"$f":"[1]ACS_16_5YR_B17017_with_ann!F44","v":110},{"$f":"[1]ACS_16_5YR_B17017_with_ann!G44","v":64},{"$f":"[1]ACS_16_5YR_B17017_with_ann!H44","v":9},{"$f":"[1]ACS_16_5YR_B17017_with_ann!I44","v":9},{"$f":"[1]ACS_16_5YR_B17017_with_ann!J44","v":9},{"$f":"[1]ACS_16_5YR_B17017_with_ann!K44","v":9},{"$f":"[1]ACS_16_5YR_B17017_with_ann!L44","v":0},{"$f":"[1]ACS_16_5YR_B17017_with_ann!M44","v":12},{"$f":"[1]ACS_16_5YR_B17017_with_ann!N44","v":0},{"$f":"[1]ACS_16_5YR_B17017_with_ann!O44","v":12},{"$f":"[1]ACS_16_5YR_B17017_with_ann!P44","v":9},{"$f":"[1]ACS_16_5YR_B17017_with_ann!Q44","v":9},{"$f":"[1]ACS_16_5YR_B17017_with_ann!R44","v":0},{"$f":"[1]ACS_16_5YR_B17017_with_ann!S44","v":12},{"$f":"[1]ACS_16_5YR_B17017_with_ann!T44","v":0},{"$f":"[1]ACS_16_5YR_B17017_with_ann!U44","v":12},{"$f":"[1]ACS_16_5YR_B17017_with_ann!V44","v":0},{"$f":"[1]ACS_16_5YR_B17017_with_ann!W44","v":12},{"$f":"[1]ACS_16_5YR_B17017_with_ann!X44","v":0},{"$f":"[1]ACS_16_5YR_B17017_with_ann!Y44","v":12},{"$f":"[1]ACS_16_5YR_B17017_with_ann!Z44","v":0},{"$f":"[1]ACS_16_5YR_B17017_with_ann!AA44","v":12},{"$f":"[1]ACS_16_5YR_B17017_with_ann!AB44","v":0},{"$f":"[1]ACS_16_5YR_B17017_with_ann!AC44","v":12},{"$f":"[1]ACS_16_5YR_B17017_with_ann!AD44","v":0},{"$f":"[1]ACS_16_5YR_B17017_with_ann!AE44","v":12},{"$f":"[1]ACS_16_5YR_B17017_with_ann!AF44","v":0},{"$f":"[1]ACS_16_5YR_B17017_with_ann!AG44","v":12},{"$f":"[1]ACS_16_5YR_B17017_with_ann!AH44","v":0},{"$f":"[1]ACS_16_5YR_B17017_with_ann!AI44","v":12},{"$f":"[1]ACS_16_5YR_B17017_with_ann!AJ44","v":0},{"$f":"[1]ACS_16_5YR_B17017_with_ann!AK44","v":12},{"$f":"[1]ACS_16_5YR_B17017_with_ann!AL44","v":0},{"$f":"[1]ACS_16_5YR_B17017_with_ann!AM44","v":12},{"$f":"[1]ACS_16_5YR_B17017_with_ann!AN44","v":0},{"$f":"[1]ACS_16_5YR_B17017_with_ann!AO44","v":12},{"$f":"[1]ACS_16_5YR_B17017_with_ann!AP44","v":101},{"$f":"[1]ACS_16_5YR_B17017_with_ann!AQ44","v":64},{"$f":"[1]ACS_16_5YR_B17017_with_ann!AR44","v":33},{"$f":"[1]ACS_16_5YR_B17017_with_ann!AS44","v":38},{"$f":"[1]ACS_16_5YR_B17017_with_ann!AT44","v":0},{"$f":"[1]ACS_16_5YR_B17017_with_ann!AU44","v":12},{"$f":"[1]ACS_16_5YR_B17017_with_ann!AV44","v":28},{"$f":"[1]ACS_16_5YR_B17017_with_ann!AW44","v":38},{"$f":"[1]ACS_16_5YR_B17017_with_ann!AX44","v":5},{"$f":"[1]ACS_16_5YR_B17017_with_ann!AY44","v":6},{"$f":"[1]ACS_16_5YR_B17017_with_ann!AZ44","v":0},{"$f":"[1]ACS_16_5YR_B17017_with_ann!BA44","v":12},{"$f":"[1]ACS_16_5YR_B17017_with_ann!BB44","v":68},{"$f":"[1]ACS_16_5YR_B17017_with_ann!BC44","v":53},{"$f":"[1]ACS_16_5YR_B17017_with_ann!BD44","v":0},{"$f":"[1]ACS_16_5YR_B17017_with_ann!BE44","v":12},{"$f":"[1]ACS_16_5YR_B17017_with_ann!BF44","v":0},{"$f":"[1]ACS_16_5YR_B17017_with_ann!BG44","v":12},{"$f":"[1]ACS_16_5YR_B17017_with_ann!BH44","v":0},{"$f":"[1]ACS_16_5YR_B17017_with_ann!BI44","v":12},{"$f":"[1]ACS_16_5YR_B17017_with_ann!BJ44","v":68},{"$f":"[1]ACS_16_5YR_B17017_with_ann!BK44","v":53},{"$f":"[1]ACS_16_5YR_B17017_with_ann!BL44","v":613},{"$f":"[1]ACS_16_5YR_B17017_with_ann!BM44","v":80},{"$f":"[1]ACS_16_5YR_B17017_with_ann!BN44","v":445},{"$f":"[1]ACS_16_5YR_B17017_with_ann!BO44","v":73},{"$f":"[1]ACS_16_5YR_B17017_with_ann!BP44","v":380},{"$f":"[1]ACS_16_5YR_B17017_with_ann!BQ44","v":74},{"$f":"[1]ACS_16_5YR_B17017_with_ann!BR44","v":0},{"$f":"[1]ACS_16_5YR_B17017_with_ann!BS44","v":12},{"$f":"[1]ACS_16_5YR_B17017_with_ann!BT44","v":51},{"$f":"[1]ACS_16_5YR_B17017_with_ann!BU44","v":27},{"$f":"[1]ACS_16_5YR_B17017_with_ann!BV44","v":200},{"$f":"[1]ACS_16_5YR_B17017_with_ann!BW44","v":70},{"$f":"[1]ACS_16_5YR_B17017_with_ann!BX44","v":129},{"$f":"[1]ACS_16_5YR_B17017_with_ann!BY44","v":48},{"$f":"[1]ACS_16_5YR_B17017_with_ann!BZ44","v":65},{"$f":"[1]ACS_16_5YR_B17017_with_ann!CA44","v":21},{"$f":"[1]ACS_16_5YR_B17017_with_ann!CB44","v":13},{"$f":"[1]ACS_16_5YR_B17017_with_ann!CC44","v":11},{"$f":"[1]ACS_16_5YR_B17017_with_ann!CD44","v":0},{"$f":"[1]ACS_16_5YR_B17017_with_ann!CE44","v":12},{"$f":"[1]ACS_16_5YR_B17017_with_ann!CF44","v":5},{"$f":"[1]ACS_16_5YR_B17017_with_ann!CG44","v":7},{"$f":"[1]ACS_16_5YR_B17017_with_ann!CH44","v":8},{"$f":"[1]ACS_16_5YR_B17017_with_ann!CI44","v":8},{"$f":"[1]ACS_16_5YR_B17017_with_ann!CJ44","v":0},{"$f":"[1]ACS_16_5YR_B17017_with_ann!CK44","v":12},{"$f":"[1]ACS_16_5YR_B17017_with_ann!CL44","v":52},{"$f":"[1]ACS_16_5YR_B17017_with_ann!CM44","v":20},{"$f":"[1]ACS_16_5YR_B17017_with_ann!CN44","v":0},{"$f":"[1]ACS_16_5YR_B17017_with_ann!CO44","v":12},{"$f":"[1]ACS_16_5YR_B17017_with_ann!CP44","v":13},{"$f":"[1]ACS_16_5YR_B17017_with_ann!CQ44","v":11},{"$f":"[1]ACS_16_5YR_B17017_with_ann!CR44","v":28},{"$f":"[1]ACS_16_5YR_B17017_with_ann!CS44","v":15},{"$f":"[1]ACS_16_5YR_B17017_with_ann!CT44","v":11},{"$f":"[1]ACS_16_5YR_B17017_with_ann!CU44","v":10},{"$f":"[1]ACS_16_5YR_B17017_with_ann!CV44","v":168},{"$f":"[1]ACS_16_5YR_B17017_with_ann!CW44","v":56},{"$f":"[1]ACS_16_5YR_B17017_with_ann!CX44","v":64},{"$f":"[1]ACS_16_5YR_B17017_with_ann!CY44","v":41},{"$f":"[1]ACS_16_5YR_B17017_with_ann!CZ44","v":0},{"$f":"[1]ACS_16_5YR_B17017_with_ann!DA44","v":12},{"$f":"[1]ACS_16_5YR_B17017_with_ann!DB44","v":24},{"$f":"[1]ACS_16_5YR_B17017_with_ann!DC44","v":23},{"$f":"[1]ACS_16_5YR_B17017_with_ann!DD44","v":35},{"$f":"[1]ACS_16_5YR_B17017_with_ann!DE44","v":33},{"$f":"[1]ACS_16_5YR_B17017_with_ann!DF44","v":5},{"$f":"[1]ACS_16_5YR_B17017_with_ann!DG44","v":6},{"$f":"[1]ACS_16_5YR_B17017_with_ann!DH44","v":104},{"$f":"[1]ACS_16_5YR_B17017_with_ann!DI44","v":44},{"$f":"[1]ACS_16_5YR_B17017_with_ann!DJ44","v":0},{"$f":"[1]ACS_16_5YR_B17017_with_ann!DK44","v":12},{"$f":"[1]ACS_16_5YR_B17017_with_ann!DL44","v":24},{"$f":"[1]ACS_16_5YR_B17017_with_ann!DM44","v":21},{"$f":"[1]ACS_16_5YR_B17017_with_ann!DN44","v":9},{"$f":"[1]ACS_16_5YR_B17017_with_ann!DO44","v":9},{"$f":"[1]ACS_16_5YR_B17017_with_ann!DP44","v":71},{"$f":"[1]ACS_16_5YR_B17017_with_ann!DQ44","v":37}]
["06000US3300512260","0600000US3300519140","060",{"$f":"[1]ACS_16_5YR_B17017_with_ann!C45","v":"Chesterfield"},{"$f":"[1]ACS_16_5YR_B17017_with_ann!D45","v":1366},{"$f":"[1]ACS_16_5YR_B17017_with_ann!E45","v":158},{"$f":"[1]ACS_16_5YR_B17017_with_ann!F45","v":51},{"$f":"[1]ACS_16_5YR_B17017_with_ann!G45","v":53},{"$f":"[1]ACS_16_5YR_B17017_with_ann!H45","v":33},{"$f":"[1]ACS_16_5YR_B17017_with_ann!I45","v":45},{"$f":"[1]ACS_16_5YR_B17017_with_ann!J45","v":33},{"$f":"[1]ACS_16_5YR_B17017_with_ann!K45","v":45},{"$f":"[1]ACS_16_5YR_B17017_with_ann!L45","v":0},{"$f":"[1]ACS_16_5YR_B17017_with_ann!M45","v":12},{"$f":"[1]ACS_16_5YR_B17017_with_ann!N45","v":33},{"$f":"[1]ACS_16_5YR_B17017_with_ann!O45","v":45},{"$f":"[1]ACS_16_5YR_B17017_with_ann!P45","v":0},{"$f":"[1]ACS_16_5YR_B17017_with_ann!Q45","v":12},{"$f":"[1]ACS_16_5YR_B17017_with_ann!R45","v":0},{"$f":"[1]ACS_16_5YR_B17017_with_ann!S45","v":12},{"$f":"[1]ACS_16_5YR_B17017_with_ann!T45","v":0},{"$f":"[1]ACS_16_5YR_B17017_with_ann!U45","v":12},{"$f":"[1]ACS_16_5YR_B17017_with_ann!V45","v":0},{"$f":"[1]ACS_16_5YR_B17017_with_ann!W45","v":12},{"$f":"[1]ACS_16_5YR_B17017_with_ann!X45","v":0},{"$f":"[1]ACS_16_5YR_B17017_with_ann!Y45","v":12},{"$f":"[1]ACS_16_5YR_B17017_with_ann!Z45","v":0},{"$f":"[1]ACS_16_5YR_B17017_with_ann!AA45","v":12},{"$f":"[1]ACS_16_5YR_B17017_with_ann!AB45","v":0},{"$f":"[1]ACS_16_5YR_B17017_with_ann!AC45","v":12},{"$f":"[1]ACS_16_5YR_B17017_with_ann!AD45","v":0},{"$f":"[1]ACS_16_5YR_B17017_with_ann!AE45","v":12},{"$f":"[1]ACS_16_5YR_B17017_with_ann!AF45","v":0},{"$f":"[1]ACS_16_5YR_B17017_with_ann!AG45","v":12},{"$f":"[1]ACS_16_5YR_B17017_with_ann!AH45","v":0},{"$f":"[1]ACS_16_5YR_B17017_with_ann!AI45","v":12},{"$f":"[1]ACS_16_5YR_B17017_with_ann!AJ45","v":0},{"$f":"[1]ACS_16_5YR_B17017_with_ann!AK45","v":12},{"$f":"[1]ACS_16_5YR_B17017_with_ann!AL45","v":0},{"$f":"[1]ACS_16_5YR_B17017_with_ann!AM45","v":12},{"$f":"[1]ACS_16_5YR_B17017_with_ann!AN45","v":0},{"$f":"[1]ACS_16_5YR_B17017_with_ann!AO45","v":12},{"$f":"[1]ACS_16_5YR_B17017_with_ann!AP45","v":18},{"$f":"[1]ACS_16_5YR_B17017_with_ann!AQ45","v":29},{"$f":"[1]ACS_16_5YR_B17017_with_ann!AR45","v":0},{"$f":"[1]ACS_16_5YR_B17017_with_ann!AS45","v":12},{"$f":"[1]ACS_16_5YR_B17017_with_ann!AT45","v":0},{"$f":"[1]ACS_16_5YR_B17017_with_ann!AU45","v":12},{"$f":"[1]ACS_16_5YR_B17017_with_ann!AV45","v":0},{"$f":"[1]ACS_16_5YR_B17017_with_ann!AW45","v":12},{"$f":"[1]ACS_16_5YR_B17017_with_ann!AX45","v":0},{"$f":"[1]ACS_16_5YR_B17017_with_ann!AY45","v":12},{"$f":"[1]ACS_16_5YR_B17017_with_ann!AZ45","v":0},{"$f":"[1]ACS_16_5YR_B17017_with_ann!BA45","v":12},{"$f":"[1]ACS_16_5YR_B17017_with_ann!BB45","v":18},{"$f":"[1]ACS_16_5YR_B17017_with_ann!BC45","v":29},{"$f":"[1]ACS_16_5YR_B17017_with_ann!BD45","v":0},{"$f":"[1]ACS_16_5YR_B17017_with_ann!BE45","v":12},{"$f":"[1]ACS_16_5YR_B17017_with_ann!BF45","v":0},{"$f":"[1]ACS_16_5YR_B17017_with_ann!BG45","v":12},{"$f":"[1]ACS_16_5YR_B17017_with_ann!BH45","v":18},{"$f":"[1]ACS_16_5YR_B17017_with_ann!BI45","v":29},{"$f":"[1]ACS_16_5YR_B17017_with_ann!BJ45","v":0},{"$f":"[1]ACS_16_5YR_B17017_with_ann!BK45","v":12},{"$f":"[1]ACS_16_5YR_B17017_with_ann!BL45","v":1315},{"$f":"[1]ACS_16_5YR_B17017_with_ann!BM45","v":175},{"$f":"[1]ACS_16_5YR_B17017_with_ann!BN45","v":970},{"$f":"[1]ACS_16_5YR_B17017_with_ann!BO45","v":146},{"$f":"[1]ACS_16_5YR_B17017_with_ann!BP45","v":815},{"$f":"[1]ACS_16_5YR_B17017_with_ann!BQ45","v":161},{"$f":"[1]ACS_16_5YR_B17017_with_ann!BR45","v":26},{"$f":"[1]ACS_16_5YR_B17017_with_ann!BS45","v":41},{"$f":"[1]ACS_16_5YR_B17017_with_ann!BT45","v":155},{"$f":"[1]ACS_16_5YR_B17017_with_ann!BU45","v":101},{"$f":"[1]ACS_16_5YR_B17017_with_ann!BV45","v":298},{"$f":"[1]ACS_16_5YR_B17017_with_ann!BW45","v":147},{"$f":"[1]ACS_16_5YR_B17017_with_ann!BX45","v":336},{"$f":"[1]ACS_16_5YR_B17017_with_ann!BY45","v":103},{"$f":"[1]ACS_16_5YR_B17017_with_ann!BZ45","v":155},{"$f":"[1]ACS_16_5YR_B17017_with_ann!CA45","v":87},{"$f":"[1]ACS_16_5YR_B17017_with_ann!CB45","v":18},{"$f":"[1]ACS_16_5YR_B17017_with_ann!CC45","v":29},{"$f":"[1]ACS_16_5YR_B17017_with_ann!CD45","v":0},{"$f":"[1]ACS_16_5YR_B17017_with_ann!CE45","v":12},{"$f":"[1]ACS_16_5YR_B17017_with_ann!CF45","v":0},{"$f":"[1]ACS_16_5YR_B17017_with_ann!CG45","v":12},{"$f":"[1]ACS_16_5YR_B17017_with_ann!CH45","v":18},{"$f":"[1]ACS_16_5YR_B17017_with_ann!CI45","v":29},{"$f":"[1]ACS_16_5YR_B17017_with_ann!CJ45","v":0},{"$f":"[1]ACS_16_5YR_B17017_with_ann!CK45","v":12},{"$f":"[1]ACS_16_5YR_B17017_with_ann!CL45","v":137},{"$f":"[1]ACS_16_5YR_B17017_with_ann!CM45","v":81},{"$f":"[1]ACS_16_5YR_B17017_with_ann!CN45","v":0},{"$f":"[1]ACS_16_5YR_B17017_with_ann!CO45","v":12},{"$f":"[1]ACS_16_5YR_B17017_with_ann!CP45","v":67},{"$f":"[1]ACS_16_5YR_B17017_with_ann!CQ45","v":64},{"$f":"[1]ACS_16_5YR_B17017_with_ann!CR45","v":36},{"$f":"[1]ACS_16_5YR_B17017_with_ann!CS45","v":39},{"$f":"[1]ACS_16_5YR_B17017_with_ann!CT45","v":34},{"$f":"[1]ACS_16_5YR_B17017_with_ann!CU45","v":38},{"$f":"[1]ACS_16_5YR_B17017_with_ann!CV45","v":345},{"$f":"[1]ACS_16_5YR_B17017_with_ann!CW45","v":164},{"$f":"[1]ACS_16_5YR_B17017_with_ann!CX45","v":210},{"$f":"[1]ACS_16_5YR_B17017_with_ann!CY45","v":118},{"$f":"[1]ACS_16_5YR_B17017_with_ann!CZ45","v":0},{"$f":"[1]ACS_16_5YR_B17017_with_ann!DA45","v":12},{"$f":"[1]ACS_16_5YR_B17017_with_ann!DB45","v":19},{"$f":"[1]ACS_16_5YR_B17017_with_ann!DC45","v":30},{"$f":"[1]ACS_16_5YR_B17017_with_ann!DD45","v":0},{"$f":"[1]ACS_16_5YR_B17017_with_ann!DE45","v":12},{"$f":"[1]ACS_16_5YR_B17017_with_ann!DF45","v":191},{"$f":"[1]ACS_16_5YR_B17017_with_ann!DG45","v":124},{"$f":"[1]ACS_16_5YR_B17017_with_ann!DH45","v":135},{"$f":"[1]ACS_16_5YR_B17017_with_ann!DI45","v":103},{"$f":"[1]ACS_16_5YR_B17017_with_ann!DJ45","v":0},{"$f":"[1]ACS_16_5YR_B17017_with_ann!DK45","v":12},{"$f":"[1]ACS_16_5YR_B17017_with_ann!DL45","v":0},{"$f":"[1]ACS_16_5YR_B17017_with_ann!DM45","v":12},{"$f":"[1]ACS_16_5YR_B17017_with_ann!DN45","v":96},{"$f":"[1]ACS_16_5YR_B17017_with_ann!DO45","v":90},{"$f":"[1]ACS_16_5YR_B17017_with_ann!DP45","v":39},{"$f":"[1]ACS_16_5YR_B17017_with_ann!DQ45","v":44}]
["06000US3300519140","0600000US3300526500","060",{"$f":"[1]ACS_16_5YR_B17017_with_ann!C46","v":"Dublin"},{"$f":"[1]ACS_16_5YR_B17017_with_ann!D46","v":635},{"$f":"[1]ACS_16_5YR_B17017_with_ann!E46","v":101},{"$f":"[1]ACS_16_5YR_B17017_with_ann!F46","v":72},{"$f":"[1]ACS_16_5YR_B17017_with_ann!G46","v":55},{"$f":"[1]ACS_16_5YR_B17017_with_ann!H46","v":57},{"$f":"[1]ACS_16_5YR_B17017_with_ann!I46","v":52},{"$f":"[1]ACS_16_5YR_B17017_with_ann!J46","v":44},{"$f":"[1]ACS_16_5YR_B17017_with_ann!K46","v":52},{"$f":"[1]ACS_16_5YR_B17017_with_ann!L46","v":0},{"$f":"[1]ACS_16_5YR_B17017_with_ann!M46","v":12},{"$f":"[1]ACS_16_5YR_B17017_with_ann!N46","v":0},{"$f":"[1]ACS_16_5YR_B17017_with_ann!O46","v":12},{"$f":"[1]ACS_16_5YR_B17017_with_ann!P46","v":7},{"$f":"[1]ACS_16_5YR_B17017_with_ann!Q46","v":7},{"$f":"[1]ACS_16_5YR_B17017_with_ann!R46","v":37},{"$f":"[1]ACS_16_5YR_B17017_with_ann!S46","v":53},{"$f":"[1]ACS_16_5YR_B17017_with_ann!T46","v":13},{"$f":"[1]ACS_16_5YR_B17017_with_ann!U46","v":13},{"$f":"[1]ACS_16_5YR_B17017_with_ann!V46","v":0},{"$f":"[1]ACS_16_5YR_B17017_with_ann!W46","v":12},{"$f":"[1]ACS_16_5YR_B17017_with_ann!X46","v":0},{"$f":"[1]ACS_16_5YR_B17017_with_ann!Y46","v":12},{"$f":"[1]ACS_16_5YR_B17017_with_ann!Z46","v":0},{"$f":"[1]ACS_16_5YR_B17017_with_ann!AA46","v":12},{"$f":"[1]ACS_16_5YR_B17017_with_ann!AB46","v":0},{"$f":"[1]ACS_16_5YR_B17017_with_ann!AC46","v":12},{"$f":"[1]ACS_16_5YR_B17017_with_ann!AD46","v":0},{"$f":"[1]ACS_16_5YR_B17017_with_ann!AE46","v":12},{"$f":"[1]ACS_16_5YR_B17017_with_ann!AF46","v":13},{"$f":"[1]ACS_16_5YR_B17017_with_ann!AG46","v":13},{"$f":"[1]ACS_16_5YR_B17017_with_ann!AH46","v":0},{"$f":"[1]ACS_16_5YR_B17017_with_ann!AI46","v":12},{"$f":"[1]ACS_16_5YR_B17017_with_ann!AJ46","v":4},{"$f":"[1]ACS_16_5YR_B17017_with_ann!AK46","v":5},{"$f":"[1]ACS_16_5YR_B17017_with_ann!AL46","v":9},{"$f":"[1]ACS_16_5YR_B17017_with_ann!AM46","v":12},{"$f":"[1]ACS_16_5YR_B17017_with_ann!AN46","v":0},{"$f":"[1]ACS_16_5YR_B17017_with_ann!AO46","v":12},{"$f":"[1]ACS_16_5YR_B17017_with_ann!AP46","v":15},{"$f":"[1]ACS_16_5YR_B17017_with_ann!AQ46","v":11},{"$f":"[1]ACS_16_5YR_B17017_with_ann!AR46","v":4},{"$f":"[1]ACS_16_5YR_B17017_with_ann!AS46","v":5},{"$f":"[1]ACS_16_5YR_B17017_with_ann!AT46","v":0},{"$f":"[1]ACS_16_5YR_B17017_with_ann!AU46","v":12},{"$f":"[1]ACS_16_5YR_B17017_with_ann!AV46","v":0},{"$f":"[1]ACS_16_5YR_B17017_with_ann!AW46","v":12},{"$f":"[1]ACS_16_5YR_B17017_with_ann!AX46","v":4},{"$f":"[1]ACS_16_5YR_B17017_with_ann!AY46","v":5},{"$f":"[1]ACS_16_5YR_B17017_with_ann!AZ46","v":0},{"$f":"[1]ACS_16_5YR_B17017_with_ann!BA46","v":12},{"$f":"[1]ACS_16_5YR_B17017_with_ann!BB46","v":11},{"$f":"[1]ACS_16_5YR_B17017_with_ann!BC46","v":9},{"$f":"[1]ACS_16_5YR_B17017_with_ann!BD46","v":0},{"$f":"[1]ACS_16_5YR_B17017_with_ann!BE46","v":12},{"$f":"[1]ACS_16_5YR_B17017_with_ann!BF46","v":3},{"$f":"[1]ACS_16_5YR_B17017_with_ann!BG46","v":4},{"$f":"[1]ACS_16_5YR_B17017_with_ann!BH46","v":5},{"$f":"[1]ACS_16_5YR_B17017_with_ann!BI46","v":7},{"$f":"[1]ACS_16_5YR_B17017_with_ann!BJ46","v":3},{"$f":"[1]ACS_16_5YR_B17017_with_ann!BK46","v":4},{"$f":"[1]ACS_16_5YR_B17017_with_ann!BL46","v":563},{"$f":"[1]ACS_16_5YR_B17017_with_ann!BM46","v":79},{"$f":"[1]ACS_16_5YR_B17017_with_ann!BN46","v":470},{"$f":"[1]ACS_16_5YR_B17017_with_ann!BO46","v":81},{"$f":"[1]ACS_16_5YR_B17017_with_ann!BP46","v":410},{"$f":"[1]ACS_16_5YR_B17017_with_ann!BQ46","v":82},{"$f":"[1]ACS_16_5YR_B17017_with_ann!BR46","v":3},{"$f":"[1]ACS_16_5YR_B17017_with_ann!BS46","v":4},{"$f":"[1]ACS_16_5YR_B17017_with_ann!BT46","v":67},{"$f":"[1]ACS_16_5YR_B17017_with_ann!BU46","v":33},{"$f":"[1]ACS_16_5YR_B17017_with_ann!BV46","v":205},{"$f":"[1]ACS_16_5YR_B17017_with_ann!BW46","v":75},{"$f":"[1]ACS_16_5YR_B17017_with_ann!BX46","v":135},{"$f":"[1]ACS_16_5YR_B17017_with_ann!BY46","v":38},{"$f":"[1]ACS_16_5YR_B17017_with_ann!BZ46","v":60},{"$f":"[1]ACS_16_5YR_B17017_with_ann!CA46","v":26},{"$f":"[1]ACS_16_5YR_B17017_with_ann!CB46","v":35},{"$f":"[1]ACS_16_5YR_B17017_with_ann!CC46","v":22},{"$f":"[1]ACS_16_5YR_B17017_with_ann!CD46","v":0},{"$f":"[1]ACS_16_5YR_B17017_with_ann!CE46","v":12},{"$f":"[1]ACS_16_5YR_B17017_with_ann!CF46","v":9},{"$f":"[1]ACS_16_5YR_B17017_with_ann!CG46","v":13},{"$f":"[1]ACS_16_5YR_B17017_with_ann!CH46","v":25},{"$f":"[1]ACS_16_5YR_B17017_with_ann!CI46","v":16},{"$f":"[1]ACS_16_5YR_B17017_with_ann!CJ46","v":1},{"$f":"[1]ACS_16_5YR_B17017_with_ann!CK46","v":2},{"$f":"[1]ACS_16_5YR_B17017_with_ann!CL46","v":25},{"$f":"[1]ACS_16_5YR_B17017_with_ann!CM46","v":15},{"$f":"[1]ACS_16_5YR_B17017_with_ann!CN46","v":0},{"$f":"[1]ACS_16_5YR_B17017_with_ann!CO46","v":12},{"$f":"[1]ACS_16_5YR_B17017_with_ann!CP46","v":0},{"$f":"[1]ACS_16_5YR_B17017_with_ann!CQ46","v":12},{"$f":"[1]ACS_16_5YR_B17017_with_ann!CR46","v":6},{"$f":"[1]ACS_16_5YR_B17017_with_ann!CS46","v":7},{"$f":"[1]ACS_16_5YR_B17017_with_ann!CT46","v":19},{"$f":"[1]ACS_16_5YR_B17017_with_ann!CU46","v":15},{"$f":"[1]ACS_16_5YR_B17017_with_ann!CV46","v":93},{"$f":"[1]ACS_16_5YR_B17017_with_ann!CW46","v":30},{"$f":"[1]ACS_16_5YR_B17017_with_ann!CX46","v":57},{"$f":"[1]ACS_16_5YR_B17017_with_ann!CY46","v":26},{"$f":"[1]ACS_16_5YR_B17017_with_ann!CZ46","v":0},{"$f":"[1]ACS_16_5YR_B17017_with_ann!DA46","v":12},{"$f":"[1]ACS_16_5YR_B17017_with_ann!DB46","v":12},{"$f":"[1]ACS_16_5YR_B17017_with_ann!DC46","v":12},{"$f":"[1]ACS_16_5YR_B17017_with_ann!DD46","v":33},{"$f":"[1]ACS_16_5YR_B17017_with_ann!DE46","v":23},{"$f":"[1]ACS_16_5YR_B17017_with_ann!DF46","v":12},{"$f":"[1]ACS_16_5YR_B17017_with_ann!DG46","v":7},{"$f":"[1]ACS_16_5YR_B17017_with_ann!DH46","v":36},{"$f":"[1]ACS_16_5YR_B17017_with_ann!DI46","v":17},{"$f":"[1]ACS_16_5YR_B17017_with_ann!DJ46","v":0},{"$f":"[1]ACS_16_5YR_B17017_with_ann!DK46","v":12},{"$f":"[1]ACS_16_5YR_B17017_with_ann!DL46","v":6},{"$f":"[1]ACS_16_5YR_B17017_with_ann!DM46","v":7},{"$f":"[1]ACS_16_5YR_B17017_with_ann!DN46","v":7},{"$f":"[1]ACS_16_5YR_B17017_with_ann!DO46","v":8},{"$f":"[1]ACS_16_5YR_B17017_with_ann!DP46","v":23},{"$f":"[1]ACS_16_5YR_B17017_with_ann!DQ46","v":12}]
["06000US3300526500","0600000US3300529220","060",{"$f":"[1]ACS_16_5YR_B17017_with_ann!C47","v":"Fitzwilliam"},{"$f":"[1]ACS_16_5YR_B17017_with_ann!D47","v":1013},{"$f":"[1]ACS_16_5YR_B17017_with_ann!E47","v":154},{"$f":"[1]ACS_16_5YR_B17017_with_ann!F47","v":133},{"$f":"[1]ACS_16_5YR_B17017_with_ann!G47","v":58},{"$f":"[1]ACS_16_5YR_B17017_with_ann!H47","v":34},{"$f":"[1]ACS_16_5YR_B17017_with_ann!I47","v":27},{"$f":"[1]ACS_16_5YR_B17017_with_ann!J47","v":6},{"$f":"[1]ACS_16_5YR_B17017_with_ann!K47","v":8},{"$f":"[1]ACS_16_5YR_B17017_with_ann!L47","v":0},{"$f":"[1]ACS_16_5YR_B17017_with_ann!M47","v":12},{"$f":"[1]ACS_16_5YR_B17017_with_ann!N47","v":0},{"$f":"[1]ACS_16_5YR_B17017_with_ann!O47","v":12},{"$f":"[1]ACS_16_5YR_B17017_with_ann!P47","v":6},{"$f":"[1]ACS_16_5YR_B17017_with_ann!Q47","v":8},{"$f":"[1]ACS_16_5YR_B17017_with_ann!R47","v":0},{"$f":"[1]ACS_16_5YR_B17017_with_ann!S47","v":12},{"$f":"[1]ACS_16_5YR_B17017_with_ann!T47","v":28},{"$f":"[1]ACS_16_5YR_B17017_with_ann!U47","v":24},{"$f":"[1]ACS_16_5YR_B17017_with_ann!V47","v":16},{"$f":"[1]ACS_16_5YR_B17017_with_ann!W47","v":18},{"$f":"[1]ACS_16_5YR_B17017_with_ann!X47","v":0},{"$f":"[1]ACS_16_5YR_B17017_with_ann!Y47","v":12},{"$f":"[1]ACS_16_5YR_B17017_with_ann!Z47","v":0},{"$f":"[1]ACS_16_5YR_B17017_with_ann!AA47","v":12},{"$f":"[1]ACS_16_5YR_B17017_with_ann!AB47","v":16},{"$f":"[1]ACS_16_5YR_B17017_with_ann!AC47","v":18},{"$f":"[1]ACS_16_5YR_B17017_with_ann!AD47","v":0},{"$f":"[1]ACS_16_5YR_B17017_with_ann!AE47","v":12},{"$f":"[1]ACS_16_5YR_B17017_with_ann!AF47","v":12},{"$f":"[1]ACS_16_5YR_B17017_with_ann!AG47","v":15},{"$f":"[1]ACS_16_5YR_B17017_with_ann!AH47","v":0},{"$f":"[1]ACS_16_5YR_B17017_with_ann!AI47","v":12},{"$f":"[1]ACS_16_5YR_B17017_with_ann!AJ47","v":0},{"$f":"[1]ACS_16_5YR_B17017_with_ann!AK47","v":12},{"$f":"[1]ACS_16_5YR_B17017_with_ann!AL47","v":12},{"$f":"[1]ACS_16_5YR_B17017_with_ann!AM47","v":15},{"$f":"[1]ACS_16_5YR_B17017_with_ann!AN47","v":0},{"$f":"[1]ACS_16_5YR_B17017_with_ann!AO47","v":12},{"$f":"[1]ACS_16_5YR_B17017_with_ann!AP47","v":99},{"$f":"[1]ACS_16_5YR_B17017_with_ann!AQ47","v":50},{"$f":"[1]ACS_16_5YR_B17017_with_ann!AR47","v":45},{"$f":"[1]ACS_16_5YR_B17017_with_ann!AS47","v":31},{"$f":"[1]ACS_16_5YR_B17017_with_ann!AT47","v":0},{"$f":"[1]ACS_16_5YR_B17017_with_ann!AU47","v":12},{"$f":"[1]ACS_16_5YR_B17017_with_ann!AV47","v":0},{"$f":"[1]ACS_16_5YR_B17017_with_ann!AW47","v":12},{"$f":"[1]ACS_16_5YR_B17017_with_ann!AX47","v":31},{"$f":"[1]ACS_16_5YR_B17017_with_ann!AY47","v":29},{"$f":"[1]ACS_16_5YR_B17017_with_ann!AZ47","v":14},{"$f":"[1]ACS_16_5YR_B17017_with_ann!BA47","v":12},{"$f":"[1]ACS_16_5YR_B17017_with_ann!BB47","v":54},{"$f":"[1]ACS_16_5YR_B17017_with_ann!BC47","v":39},{"$f":"[1]ACS_16_5YR_B17017_with_ann!BD47","v":0},{"$f":"[1]ACS_16_5YR_B17017_with_ann!BE47","v":12},{"$f":"[1]ACS_16_5YR_B17017_with_ann!BF47","v":0},{"$f":"[1]ACS_16_5YR_B17017_with_ann!BG47","v":12},{"$f":"[1]ACS_16_5YR_B17017_with_ann!BH47","v":23},{"$f":"[1]ACS_16_5YR_B17017_with_ann!BI47","v":28},{"$f":"[1]ACS_16_5YR_B17017_with_ann!BJ47","v":31},{"$f":"[1]ACS_16_5YR_B17017_with_ann!BK47","v":30},{"$f":"[1]ACS_16_5YR_B17017_with_ann!BL47","v":880},{"$f":"[1]ACS_16_5YR_B17017_with_ann!BM47","v":144},{"$f":"[1]ACS_16_5YR_B17017_with_ann!BN47","v":585},{"$f":"[1]ACS_16_5YR_B17017_with_ann!BO47","v":122},{"$f":"[1]ACS_16_5YR_B17017_with_ann!BP47","v":475},{"$f":"[1]ACS_16_5YR_B17017_with_ann!BQ47","v":78},{"$f":"[1]ACS_16_5YR_B17017_with_ann!BR47","v":22},{"$f":"[1]ACS_16_5YR_B17017_with_ann!BS47","v":28},{"$f":"[1]ACS_16_5YR_B17017_with_ann!BT47","v":116},{"$f":"[1]ACS_16_5YR_B17017_with_ann!BU47","v":43},{"$f":"[1]ACS_16_5YR_B17017_with_ann!BV47","v":178},{"$f":"[1]ACS_16_5YR_B17017_with_ann!BW47","v":55},{"$f":"[1]ACS_16_5YR_B17017_with_ann!BX47","v":159},{"$f":"[1]ACS_16_5YR_B17017_with_ann!BY47","v":46},{"$f":"[1]ACS_16_5YR_B17017_with_ann!BZ47","v":110},{"$f":"[1]ACS_16_5YR_B17017_with_ann!CA47","v":97},{"$f":"[1]ACS_16_5YR_B17017_with_ann!CB47","v":39},{"$f":"[1]ACS_16_5YR_B17017_with_ann!CC47","v":28},{"$f":"[1]ACS_16_5YR_B17017_with_ann!CD47","v":0},{"$f":"[1]ACS_16_5YR_B17017_with_ann!CE47","v":12},{"$f":"[1]ACS_16_5YR_B17017_with_ann!CF47","v":8},{"$f":"[1]ACS_16_5YR_B17017_with_ann!CG47","v":12},{"$f":"[1]ACS_16_5YR_B17017_with_ann!CH47","v":29},{"$f":"[1]ACS_16_5YR_B17017_with_ann!CI47","v":26},{"$f":"[1]ACS_16_5YR_B17017_with_ann!CJ47","v":2},{"$f":"[1]ACS_16_5YR_B17017_with_ann!CK47","v":3},{"$f":"[1]ACS_16_5YR_B17017_with_ann!CL47","v":71},{"$f":"[1]ACS_16_5YR_B17017_with_ann!CM47","v":91},{"$f":"[1]ACS_16_5YR_B17017_with_ann!CN47","v":0},{"$f":"[1]ACS_16_5YR_B17017_with_ann!CO47","v":12},{"$f":"[1]ACS_16_5YR_B17017_with_ann!CP47","v":0},{"$f":"[1]ACS_16_5YR_B17017_with_ann!CQ47","v":12},{"$f":"[1]ACS_16_5YR_B17017_with_ann!CR47","v":6},{"$f":"[1]ACS_16_5YR_B17017_with_ann!CS47","v":9},{"$f":"[1]ACS_16_5YR_B17017_with_ann!CT47","v":65},{"$f":"[1]ACS_16_5YR_B17017_with_ann!CU47","v":91},{"$f":"[1]ACS_16_5YR_B17017_with_ann!CV47","v":295},{"$f":"[1]ACS_16_5YR_B17017_with_ann!CW47","v":75},{"$f":"[1]ACS_16_5YR_B17017_with_ann!CX47","v":119},{"$f":"[1]ACS_16_5YR_B17017_with_ann!CY47","v":58},{"$f":"[1]ACS_16_5YR_B17017_with_ann!CZ47","v":0},{"$f":"[1]ACS_16_5YR_B17017_with_ann!DA47","v":12},{"$f":"[1]ACS_16_5YR_B17017_with_ann!DB47","v":9},{"$f":"[1]ACS_16_5YR_B17017_with_ann!DC47","v":9},{"$f":"[1]ACS_16_5YR_B17017_with_ann!DD47","v":79},{"$f":"[1]ACS_16_5YR_B17017_with_ann!DE47","v":53},{"$f":"[1]ACS_16_5YR_B17017_with_ann!DF47","v":31},{"$f":"[1]ACS_16_5YR_B17017_with_ann!DG47","v":16},{"$f":"[1]ACS_16_5YR_B17017_with_ann!DH47","v":176},{"$f":"[1]ACS_16_5YR_B17017_with_ann!DI47","v":62},{"$f":"[1]ACS_16_5YR_B17017_with_ann!DJ47","v":4},{"$f":"[1]ACS_16_5YR_B17017_with_ann!DK47","v":7},{"$f":"[1]ACS_16_5YR_B17017_with_ann!DL47","v":43},{"$f":"[1]ACS_16_5YR_B17017_with_ann!DM47","v":35},{"$f":"[1]ACS_16_5YR_B17017_with_ann!DN47","v":89},{"$f":"[1]ACS_16_5YR_B17017_with_ann!DO47","v":46},{"$f":"[1]ACS_16_5YR_B17017_with_ann!DP47","v":40},{"$f":"[1]ACS_16_5YR_B17017_with_ann!DQ47","v":22}]
["06000US3300529220","0600000US3300534420","060",{"$f":"[1]ACS_16_5YR_B17017_with_ann!C48","v":"Gilsum"},{"$f":"[1]ACS_16_5YR_B17017_with_ann!D48","v":310},{"$f":"[1]ACS_16_5YR_B17017_with_ann!E48","v":51},{"$f":"[1]ACS_16_5YR_B17017_with_ann!F48","v":18},{"$f":"[1]ACS_16_5YR_B17017_with_ann!G48","v":15},{"$f":"[1]ACS_16_5YR_B17017_with_ann!H48","v":5},{"$f":"[1]ACS_16_5YR_B17017_with_ann!I48","v":6},{"$f":"[1]ACS_16_5YR_B17017_with_ann!J48","v":3},{"$f":"[1]ACS_16_5YR_B17017_with_ann!K48","v":4},{"$f":"[1]ACS_16_5YR_B17017_with_ann!L48","v":0},{"$f":"[1]ACS_16_5YR_B17017_with_ann!M48","v":12},{"$f":"[1]ACS_16_5YR_B17017_with_ann!N48","v":2},{"$f":"[1]ACS_16_5YR_B17017_with_ann!O48","v":3},{"$f":"[1]ACS_16_5YR_B17017_with_ann!P48","v":0},{"$f":"[1]ACS_16_5YR_B17017_with_ann!Q48","v":12},{"$f":"[1]ACS_16_5YR_B17017_with_ann!R48","v":1},{"$f":"[1]ACS_16_5YR_B17017_with_ann!S48","v":3},{"$f":"[1]ACS_16_5YR_B17017_with_ann!T48","v":2},{"$f":"[1]ACS_16_5YR_B17017_with_ann!U48","v":3},{"$f":"[1]ACS_16_5YR_B17017_with_ann!V48","v":0},{"$f":"[1]ACS_16_5YR_B17017_with_ann!W48","v":12},{"$f":"[1]ACS_16_5YR_B17017_with_ann!X48","v":0},{"$f":"[1]ACS_16_5YR_B17017_with_ann!Y48","v":12},{"$f":"[1]ACS_16_5YR_B17017_with_ann!Z48","v":0},{"$f":"[1]ACS_16_5YR_B17017_with_ann!AA48","v":12},{"$f":"[1]ACS_16_5YR_B17017_with_ann!AB48","v":0},{"$f":"[1]ACS_16_5YR_B17017_with_ann!AC48","v":12},{"$f":"[1]ACS_16_5YR_B17017_with_ann!AD48","v":0},{"$f":"[1]ACS_16_5YR_B17017_with_ann!AE48","v":12},{"$f":"[1]ACS_16_5YR_B17017_with_ann!AF48","v":2},{"$f":"[1]ACS_16_5YR_B17017_with_ann!AG48","v":3},{"$f":"[1]ACS_16_5YR_B17017_with_ann!AH48","v":0},{"$f":"[1]ACS_16_5YR_B17017_with_ann!AI48","v":12},{"$f":"[1]ACS_16_5YR_B17017_with_ann!AJ48","v":0},{"$f":"[1]ACS_16_5YR_B17017_with_ann!AK48","v":12},{"$f":"[1]ACS_16_5YR_B17017_with_ann!AL48","v":2},{"$f":"[1]ACS_16_5YR_B17017_with_ann!AM48","v":3},{"$f":"[1]ACS_16_5YR_B17017_with_ann!AN48","v":0},{"$f":"[1]ACS_16_5YR_B17017_with_ann!AO48","v":12},{"$f":"[1]ACS_16_5YR_B17017_with_ann!AP48","v":13},{"$f":"[1]ACS_16_5YR_B17017_with_ann!AQ48","v":13},{"$f":"[1]ACS_16_5YR_B17017_with_ann!AR48","v":3},{"$f":"[1]ACS_16_5YR_B17017_with_ann!AS48","v":5},{"$f":"[1]ACS_16_5YR_B17017_with_ann!AT48","v":0},{"$f":"[1]ACS_16_5YR_B17017_with_ann!AU48","v":12},{"$f":"[1]ACS_16_5YR_B17017_with_ann!AV48","v":1},{"$f":"[1]ACS_16_5YR_B17017_with_ann!AW48","v":4},{"$f":"[1]ACS_16_5YR_B17017_with_ann!AX48","v":2},{"$f":"[1]ACS_16_5YR_B17017_with_ann!AY48","v":3},{"$f":"[1]ACS_16_5YR_B17017_with_ann!AZ48","v":0},{"$f":"[1]ACS_16_5YR_B17017_with_ann!BA48","v":12},{"$f":"[1]ACS_16_5YR_B17017_with_ann!BB48","v":10},{"$f":"[1]ACS_16_5YR_B17017_with_ann!BC48","v":12},{"$f":"[1]ACS_16_5YR_B17017_with_ann!BD48","v":0},{"$f":"[1]ACS_16_5YR_B17017_with_ann!BE48","v":12},{"$f":"[1]ACS_16_5YR_B17017_with_ann!BF48","v":1},{"$f":"[1]ACS_16_5YR_B17017_with_ann!BG48","v":2},{"$f":"[1]ACS_16_5YR_B17017_with_ann!BH48","v":0},{"$f":"[1]ACS_16_5YR_B17017_with_ann!BI48","v":12},{"$f":"[1]ACS_16_5YR_B17017_with_ann!BJ48","v":9},{"$f":"[1]ACS_16_5YR_B17017_with_ann!BK48","v":12},{"$f":"[1]ACS_16_5YR_B17017_with_ann!BL48","v":292},{"$f":"[1]ACS_16_5YR_B17017_with_ann!BM48","v":53},{"$f":"[1]ACS_16_5YR_B17017_with_ann!BN48","v":225},{"$f":"[1]ACS_16_5YR_B17017_with_ann!BO48","v":44},{"$f":"[1]ACS_16_5YR_B17017_with_ann!BP48","v":190},{"$f":"[1]ACS_16_5YR_B17017_with_ann!BQ48","v":37},{"$f":"[1]ACS_16_5YR_B17017_with_ann!BR48","v":0},{"$f":"[1]ACS_16_5YR_B17017_with_ann!BS48","v":12},{"$f":"[1]ACS_16_5YR_B17017_with_ann!BT48","v":45},{"$f":"[1]ACS_16_5YR_B17017_with_ann!BU48","v":18},{"$f":"[1]ACS_16_5YR_B17017_with_ann!BV48","v":79},{"$f":"[1]ACS_16_5YR_B17017_with_ann!BW48","v":26},{"$f":"[1]ACS_16_5YR_B17017_with_ann!BX48","v":66},{"$f":"[1]ACS_16_5YR_B17017_with_ann!BY48","v":24},{"$f":"[1]ACS_16_5YR_B17017_with_ann!BZ48","v":35},{"$f":"[1]ACS_16_5YR_B17017_with_ann!CA48","v":27},{"$f":"[1]ACS_16_5YR_B17017_with_ann!CB48","v":10},{"$f":"[1]ACS_16_5YR_B17017_with_ann!CC48","v":12},{"$f":"[1]ACS_16_5YR_B17017_with_ann!CD48","v":0},{"$f":"[1]ACS_16_5YR_B17017_with_ann!CE48","v":12},{"$f":"[1]ACS_16_5YR_B17017_with_ann!CF48","v":7},{"$f":"[1]ACS_16_5YR_B17017_with_ann!CG48","v":11},{"$f":"[1]ACS_16_5YR_B17017_with_ann!CH48","v":0},{"$f":"[1]ACS_16_5YR_B17017_with_ann!CI48","v":12},{"$f":"[1]ACS_16_5YR_B17017_with_ann!CJ48","v":3},{"$f":"[1]ACS_16_5YR_B17017_with_ann!CK48","v":5},{"$f":"[1]ACS_16_5YR_B17017_with_ann!CL48","v":25},{"$f":"[1]ACS_16_5YR_B17017_with_ann!CM48","v":26},{"$f":"[1]ACS_16_5YR_B17017_with_ann!CN48","v":3},{"$f":"[1]ACS_16_5YR_B17017_with_ann!CO48","v":4},{"$f":"[1]ACS_16_5YR_B17017_with_ann!CP48","v":0},{"$f":"[1]ACS_16_5YR_B17017_with_ann!CQ48","v":12},{"$f":"[1]ACS_16_5YR_B17017_with_ann!CR48","v":22},{"$f":"[1]ACS_16_5YR_B17017_with_ann!CS48","v":26},{"$f":"[1]ACS_16_5YR_B17017_with_ann!CT48","v":0},{"$f":"[1]ACS_16_5YR_B17017_with_ann!CU48","v":12},{"$f":"[1]ACS_16_5YR_B17017_with_ann!CV48","v":67},{"$f":"[1]ACS_16_5YR_B17017_with_ann!CW48","v":28},{"$f":"[1]ACS_16_5YR_B17017_with_ann!CX48","v":26},{"$f":"[1]ACS_16_5YR_B17017_with_ann!CY48","v":15},{"$f":"[1]ACS_16_5YR_B17017_with_ann!CZ48","v":0},{"$f":"[1]ACS_16_5YR_B17017_with_ann!DA48","v":12},{"$f":"[1]ACS_16_5YR_B17017_with_ann!DB48","v":6},{"$f":"[1]ACS_16_5YR_B17017_with_ann!DC48","v":9},{"$f":"[1]ACS_16_5YR_B17017_with_ann!DD48","v":13},{"$f":"[1]ACS_16_5YR_B17017_with_ann!DE48","v":9},{"$f":"[1]ACS_16_5YR_B17017_with_ann!DF48","v":7},{"$f":"[1]ACS_16_5YR_B17017_with_ann!DG48","v":6},{"$f":"[1]ACS_16_5YR_B17017_with_ann!DH48","v":41},{"$f":"[1]ACS_16_5YR_B17017_with_ann!DI48","v":18},{"$f":"[1]ACS_16_5YR_B17017_with_ann!DJ48","v":0},{"$f":"[1]ACS_16_5YR_B17017_with_ann!DK48","v":12},{"$f":"[1]ACS_16_5YR_B17017_with_ann!DL48","v":10},{"$f":"[1]ACS_16_5YR_B17017_with_ann!DM48","v":11},{"$f":"[1]ACS_16_5YR_B17017_with_ann!DN48","v":15},{"$f":"[1]ACS_16_5YR_B17017_with_ann!DO48","v":11},{"$f":"[1]ACS_16_5YR_B17017_with_ann!DP48","v":16},{"$f":"[1]ACS_16_5YR_B17017_with_ann!DQ48","v":9}]
["06000US3300534420","0600000US3300536660","060",{"$f":"[1]ACS_16_5YR_B17017_with_ann!C49","v":"Harrisville"},{"$f":"[1]ACS_16_5YR_B17017_with_ann!D49","v":416},{"$f":"[1]ACS_16_5YR_B17017_with_ann!E49","v":75},{"$f":"[1]ACS_16_5YR_B17017_with_ann!F49","v":10},{"$f":"[1]ACS_16_5YR_B17017_with_ann!G49","v":10},{"$f":"[1]ACS_16_5YR_B17017_with_ann!H49","v":0},{"$f":"[1]ACS_16_5YR_B17017_with_ann!I49","v":12},{"$f":"[1]ACS_16_5YR_B17017_with_ann!J49","v":0},{"$f":"[1]ACS_16_5YR_B17017_with_ann!K49","v":12},{"$f":"[1]ACS_16_5YR_B17017_with_ann!L49","v":0},{"$f":"[1]ACS_16_5YR_B17017_with_ann!M49","v":12},{"$f":"[1]ACS_16_5YR_B17017_with_ann!N49","v":0},{"$f":"[1]ACS_16_5YR_B17017_with_ann!O49","v":12},{"$f":"[1]ACS_16_5YR_B17017_with_ann!P49","v":0},{"$f":"[1]ACS_16_5YR_B17017_with_ann!Q49","v":12},{"$f":"[1]ACS_16_5YR_B17017_with_ann!R49","v":0},{"$f":"[1]ACS_16_5YR_B17017_with_ann!S49","v":12},{"$f":"[1]ACS_16_5YR_B17017_with_ann!T49","v":0},{"$f":"[1]ACS_16_5YR_B17017_with_ann!U49","v":12},{"$f":"[1]ACS_16_5YR_B17017_with_ann!V49","v":0},{"$f":"[1]ACS_16_5YR_B17017_with_ann!W49","v":12},{"$f":"[1]ACS_16_5YR_B17017_with_ann!X49","v":0},{"$f":"[1]ACS_16_5YR_B17017_with_ann!Y49","v":12},{"$f":"[1]ACS_16_5YR_B17017_with_ann!Z49","v":0},{"$f":"[1]ACS_16_5YR_B17017_with_ann!AA49","v":12},{"$f":"[1]ACS_16_5YR_B17017_with_ann!AB49","v":0},{"$f":"[1]ACS_16_5YR_B17017_with_ann!AC49","v":12},{"$f":"[1]ACS_16_5YR_B17017_with_ann!AD49","v":0},{"$f":"[1]ACS_16_5YR_B17017_with_ann!AE49","v":12},{"$f":"[1]ACS_16_5YR_B17017_with_ann!AF49","v":0},{"$f":"[1]ACS_16_5YR_B17017_with_ann!AG49","v":12},{"$f":"[1]ACS_16_5YR_B17017_with_ann!AH49","v":0},{"$f":"[1]ACS_16_5YR_B17017_with_ann!AI49","v":12},{"$f":"[1]ACS_16_5YR_B17017_with_ann!AJ49","v":0},{"$f":"[1]ACS_16_5YR_B17017_with_ann!AK49","v":12},{"$f":"[1]ACS_16_5YR_B17017_with_ann!AL49","v":0},{"$f":"[1]ACS_16_5YR_B17017_with_ann!AM49","v":12},{"$f":"[1]ACS_16_5YR_B17017_with_ann!AN49","v":0},{"$f":"[1]ACS_16_5YR_B17017_with_ann!AO49","v":12},{"$f":"[1]ACS_16_5YR_B17017_with_ann!AP49","v":10},{"$f":"[1]ACS_16_5YR_B17017_with_ann!AQ49","v":10},{"$f":"[1]ACS_16_5YR_B17017_with_ann!AR49","v":7},{"$f":"[1]ACS_16_5YR_B17017_with_ann!AS49","v":9},{"$f":"[1]ACS_16_5YR_B17017_with_ann!AT49","v":0},{"$f":"[1]ACS_16_5YR_B17017_with_ann!AU49","v":12},{"$f":"[1]ACS_16_5YR_B17017_with_ann!AV49","v":0},{"$f":"[1]ACS_16_5YR_B17017_with_ann!AW49","v":12},{"$f":"[1]ACS_16_5YR_B17017_with_ann!AX49","v":7},{"$f":"[1]ACS_16_5YR_B17017_with_ann!AY49","v":9},{"$f":"[1]ACS_16_5YR_B17017_with_ann!AZ49","v":0},{"$f":"[1]ACS_16_5YR_B17017_with_ann!BA49","v":12},{"$f":"[1]ACS_16_5YR_B17017_with_ann!BB49","v":3},{"$f":"[1]ACS_16_5YR_B17017_with_ann!BC49","v":4},{"$f":"[1]ACS_16_5YR_B17017_with_ann!BD49","v":0},{"$f":"[1]ACS_16_5YR_B17017_with_ann!BE49","v":12},{"$f":"[1]ACS_16_5YR_B17017_with_ann!BF49","v":0},{"$f":"[1]ACS_16_5YR_B17017_with_ann!BG49","v":12},{"$f":"[1]ACS_16_5YR_B17017_with_ann!BH49","v":0},{"$f":"[1]ACS_16_5YR_B17017_with_ann!BI49","v":12},{"$f":"[1]ACS_16_5YR_B17017_with_ann!BJ49","v":3},{"$f":"[1]ACS_16_5YR_B17017_with_ann!BK49","v":4},{"$f":"[1]ACS_16_5YR_B17017_with_ann!BL49","v":406},{"$f":"[1]ACS_16_5YR_B17017_with_ann!BM49","v":73},{"$f":"[1]ACS_16_5YR_B17017_with_ann!BN49","v":313},{"$f":"[1]ACS_16_5YR_B17017_with_ann!BO49","v":70},{"$f":"[1]ACS_16_5YR_B17017_with_ann!BP49","v":271},{"$f":"[1]ACS_16_5YR_B17017_with_ann!BQ49","v":66},{"$f":"[1]ACS_16_5YR_B17017_with_ann!BR49","v":0},{"$f":"[1]ACS_16_5YR_B17017_with_ann!BS49","v":12},{"$f":"[1]ACS_16_5YR_B17017_with_ann!BT49","v":70},{"$f":"[1]ACS_16_5YR_B17017_with_ann!BU49","v":49},{"$f":"[1]ACS_16_5YR_B17017_with_ann!BV49","v":91},{"$f":"[1]ACS_16_5YR_B17017_with_ann!BW49","v":39},{"$f":"[1]ACS_16_5YR_B17017_with_ann!BX49","v":110},{"$f":"[1]ACS_16_5YR_B17017_with_ann!BY49","v":34},{"$f":"[1]ACS_16_5YR_B17017_with_ann!BZ49","v":42},{"$f":"[1]ACS_16_5YR_B17017_with_ann!CA49","v":22},{"$f":"[1]ACS_16_5YR_B17017_with_ann!CB49","v":12},{"$f":"[1]ACS_16_5YR_B17017_with_ann!CC49","v":10},{"$f":"[1]ACS_16_5YR_B17017_with_ann!CD49","v":0},{"$f":"[1]ACS_16_5YR_B17017_with_ann!CE49","v":12},{"$f":"[1]ACS_16_5YR_B17017_with_ann!CF49","v":4},{"$f":"[1]ACS_16_5YR_B17017_with_ann!CG49","v":6},{"$f":"[1]ACS_16_5YR_B17017_with_ann!CH49","v":6},{"$f":"[1]ACS_16_5YR_B17017_with_ann!CI49","v":7},{"$f":"[1]ACS_16_5YR_B17017_with_ann!CJ49","v":2},{"$f":"[1]ACS_16_5YR_B17017_with_ann!CK49","v":5},{"$f":"[1]ACS_16_5YR_B17017_with_ann!CL49","v":30},{"$f":"[1]ACS_16_5YR_B17017_with_ann!CM49","v":19},{"$f":"[1]ACS_16_5YR_B17017_with_ann!CN49","v":0},{"$f":"[1]ACS_16_5YR_B17017_with_ann!CO49","v":12},{"$f":"[1]ACS_16_5YR_B17017_with_ann!CP49","v":7},{"$f":"[1]ACS_16_5YR_B17017_with_ann!CQ49","v":7},{"$f":"[1]ACS_16_5YR_B17017_with_ann!CR49","v":23},{"$f":"[1]ACS_16_5YR_B17017_with_ann!CS49","v":18},{"$f":"[1]ACS_16_5YR_B17017_with_ann!CT49","v":0},{"$f":"[1]ACS_16_5YR_B17017_with_ann!CU49","v":12},{"$f":"[1]ACS_16_5YR_B17017_with_ann!CV49","v":93},{"$f":"[1]ACS_16_5YR_B17017_with_ann!CW49","v":28},{"$f":"[1]ACS_16_5YR_B17017_with_ann!CX49","v":45},{"$f":"[1]ACS_16_5YR_B17017_with_ann!CY49","v":21},{"$f":"[1]ACS_16_5YR_B17017_with_ann!CZ49","v":0},{"$f":"[1]ACS_16_5YR_B17017_with_ann!DA49","v":12},{"$f":"[1]ACS_16_5YR_B17017_with_ann!DB49","v":6},{"$f":"[1]ACS_16_5YR_B17017_with_ann!DC49","v":6},{"$f":"[1]ACS_16_5YR_B17017_with_ann!DD49","v":12},{"$f":"[1]ACS_16_5YR_B17017_with_ann!DE49","v":11},{"$f":"[1]ACS_16_5YR_B17017_with_ann!DF49","v":27},{"$f":"[1]ACS_16_5YR_B17017_with_ann!DG49","v":17},{"$f":"[1]ACS_16_5YR_B17017_with_ann!DH49","v":48},{"$f":"[1]ACS_16_5YR_B17017_with_ann!DI49","v":22},{"$f":"[1]ACS_16_5YR_B17017_with_ann!DJ49","v":0},{"$f":"[1]ACS_16_5YR_B17017_with_ann!DK49","v":12},{"$f":"[1]ACS_16_5YR_B17017_with_ann!DL49","v":0},{"$f":"[1]ACS_16_5YR_B17017_with_ann!DM49","v":12},{"$f":"[1]ACS_16_5YR_B17017_with_ann!DN49","v":11},{"$f":"[1]ACS_16_5YR_B17017_with_ann!DO49","v":9},{"$f":"[1]ACS_16_5YR_B17017_with_ann!DP49","v":37},{"$f":"[1]ACS_16_5YR_B17017_with_ann!DQ49","v":20}]
["06000US3300536660","0600000US3300538500","060",{"$f":"[1]ACS_16_5YR_B17017_with_ann!C50","v":"Hinsdale"},{"$f":"[1]ACS_16_5YR_B17017_with_ann!D50","v":1594},{"$f":"[1]ACS_16_5YR_B17017_with_ann!E50","v":139},{"$f":"[1]ACS_16_5YR_B17017_with_ann!F50","v":68},{"$f":"[1]ACS_16_5YR_B17017_with_ann!G50","v":62},{"$f":"[1]ACS_16_5YR_B17017_with_ann!H50","v":19},{"$f":"[1]ACS_16_5YR_B17017_with_ann!I50","v":25},{"$f":"[1]ACS_16_5YR_B17017_with_ann!J50","v":10},{"$f":"[1]ACS_16_5YR_B17017_with_ann!K50","v":15},{"$f":"[1]ACS_16_5YR_B17017_with_ann!L50","v":0},{"$f":"[1]ACS_16_5YR_B17017_with_ann!M50","v":12},{"$f":"[1]ACS_16_5YR_B17017_with_ann!N50","v":10},{"$f":"[1]ACS_16_5YR_B17017_with_ann!O50","v":15},{"$f":"[1]ACS_16_5YR_B17017_with_ann!P50","v":0},{"$f":"[1]ACS_16_5YR_B17017_with_ann!Q50","v":12},{"$f":"[1]ACS_16_5YR_B17017_with_ann!R50","v":0},{"$f":"[1]ACS_16_5YR_B17017_with_ann!S50","v":12},{"$f":"[1]ACS_16_5YR_B17017_with_ann!T50","v":9},{"$f":"[1]ACS_16_5YR_B17017_with_ann!U50","v":24},{"$f":"[1]ACS_16_5YR_B17017_with_ann!V50","v":5},{"$f":"[1]ACS_16_5YR_B17017_with_ann!W50","v":20},{"$f":"[1]ACS_16_5YR_B17017_with_ann!X50","v":0},{"$f":"[1]ACS_16_5YR_B17017_with_ann!Y50","v":12},{"$f":"[1]ACS_16_5YR_B17017_with_ann!Z50","v":0},{"$f":"[1]ACS_16_5YR_B17017_with_ann!AA50","v":12},{"$f":"[1]ACS_16_5YR_B17017_with_ann!AB50","v":5},{"$f":"[1]ACS_16_5YR_B17017_with_ann!AC50","v":20},{"$f":"[1]ACS_16_5YR_B17017_with_ann!AD50","v":0},{"$f":"[1]ACS_16_5YR_B17017_with_ann!AE50","v":12},{"$f":"[1]ACS_16_5YR_B17017_with_ann!AF50","v":4},{"$f":"[1]ACS_16_5YR_B17017_with_ann!AG50","v":10},{"$f":"[1]ACS_16_5YR_B17017_with_ann!AH50","v":0},{"$f":"[1]ACS_16_5YR_B17017_with_ann!AI50","v":12},{"$f":"[1]ACS_16_5YR_B17017_with_ann!AJ50","v":0},{"$f":"[1]ACS_16_5YR_B17017_with_ann!AK50","v":12},{"$f":"[1]ACS_16_5YR_B17017_with_ann!AL50","v":4},{"$f":"[1]ACS_16_5YR_B17017_with_ann!AM50","v":10},{"$f":"[1]ACS_16_5YR_B17017_with_ann!AN50","v":0},{"$f":"[1]ACS_16_5YR_B17017_with_ann!AO50","v":12},{"$f":"[1]ACS_16_5YR_B17017_with_ann!AP50","v":49},{"$f":"[1]ACS_16_5YR_B17017_with_ann!AQ50","v":54},{"$f":"[1]ACS_16_5YR_B17017_with_ann!AR50","v":6},{"$f":"[1]ACS_16_5YR_B17017_with_ann!AS50","v":11},{"$f":"[1]ACS_16_5YR_B17017_with_ann!AT50","v":0},{"$f":"[1]ACS_16_5YR_B17017_with_ann!AU50","v":12},{"$f":"[1]ACS_16_5YR_B17017_with_ann!AV50","v":0},{"$f":"[1]ACS_16_5YR_B17017_with_ann!AW50","v":12},{"$f":"[1]ACS_16_5YR_B17017_with_ann!AX50","v":6},{"$f":"[1]ACS_16_5YR_B17017_with_ann!AY50","v":11},{"$f":"[1]ACS_16_5YR_B17017_with_ann!AZ50","v":0},{"$f":"[1]ACS_16_5YR_B17017_with_ann!BA50","v":12},{"$f":"[1]ACS_16_5YR_B17017_with_ann!BB50","v":43},{"$f":"[1]ACS_16_5YR_B17017_with_ann!BC50","v":52},{"$f":"[1]ACS_16_5YR_B17017_with_ann!BD50","v":0},{"$f":"[1]ACS_16_5YR_B17017_with_ann!BE50","v":12},{"$f":"[1]ACS_16_5YR_B17017_with_ann!BF50","v":0},{"$f":"[1]ACS_16_5YR_B17017_with_ann!BG50","v":12},{"$f":"[1]ACS_16_5YR_B17017_with_ann!BH50","v":14},{"$f":"[1]ACS_16_5YR_B17017_with_ann!BI50","v":21},{"$f":"[1]ACS_16_5YR_B17017_with_ann!BJ50","v":29},{"$f":"[1]ACS_16_5YR_B17017_with_ann!BK50","v":47},{"$f":"[1]ACS_16_5YR_B17017_with_ann!BL50","v":1526},{"$f":"[1]ACS_16_5YR_B17017_with_ann!BM50","v":155},{"$f":"[1]ACS_16_5YR_B17017_with_ann!BN50","v":1030},{"$f":"[1]ACS_16_5YR_B17017_with_ann!BO50","v":147},{"$f":"[1]ACS_16_5YR_B17017_with_ann!BP50","v":874},{"$f":"[1]ACS_16_5YR_B17017_with_ann!BQ50","v":154},{"$f":"[1]ACS_16_5YR_B17017_with_ann!BR50","v":0},{"$f":"[1]ACS_16_5YR_B17017_with_ann!BS50","v":12},{"$f":"[1]ACS_16_5YR_B17017_with_ann!BT50","v":154},{"$f":"[1]ACS_16_5YR_B17017_with_ann!BU50","v":65},{"$f":"[1]ACS_16_5YR_B17017_with_ann!BV50","v":410},{"$f":"[1]ACS_16_5YR_B17017_with_ann!BW50","v":113},{"$f":"[1]ACS_16_5YR_B17017_with_ann!BX50","v":310},{"$f":"[1]ACS_16_5YR_B17017_with_ann!BY50","v":159},{"$f":"[1]ACS_16_5YR_B17017_with_ann!BZ50","v":156},{"$f":"[1]ACS_16_5YR_B17017_with_ann!CA50","v":92},{"$f":"[1]ACS_16_5YR_B17017_with_ann!CB50","v":76},{"$f":"[1]ACS_16_5YR_B17017_with_ann!CC50","v":71},{"$f":"[1]ACS_16_5YR_B17017_with_ann!CD50","v":0},{"$f":"[1]ACS_16_5YR_B17017_with_ann!CE50","v":12},{"$f":"[1]ACS_16_5YR_B17017_with_ann!CF50","v":10},{"$f":"[1]ACS_16_5YR_B17017_with_ann!CG50","v":17},{"$f":"[1]ACS_16_5YR_B17017_with_ann!CH50","v":15},{"$f":"[1]ACS_16_5YR_B17017_with_ann!CI50","v":24},{"$f":"[1]ACS_16_5YR_B17017_with_ann!CJ50","v":51},{"$f":"[1]ACS_16_5YR_B17017_with_ann!CK50","v":69},{"$f":"[1]ACS_16_5YR_B17017_with_ann!CL50","v":80},{"$f":"[1]ACS_16_5YR_B17017_with_ann!CM50","v":59},{"$f":"[1]ACS_16_5YR_B17017_with_ann!CN50","v":0},{"$f":"[1]ACS_16_5YR_B17017_with_ann!CO50","v":12},{"$f":"[1]ACS_16_5YR_B17017_with_ann!CP50","v":13},{"$f":"[1]ACS_16_5YR_B17017_with_ann!CQ50","v":21},{"$f":"[1]ACS_16_5YR_B17017_with_ann!CR50","v":53},{"$f":"[1]ACS_16_5YR_B17017_with_ann!CS50","v":55},{"$f":"[1]ACS_16_5YR_B17017_with_ann!CT50","v":14},{"$f":"[1]ACS_16_5YR_B17017_with_ann!CU50","v":15},{"$f":"[1]ACS_16_5YR_B17017_with_ann!CV50","v":496},{"$f":"[1]ACS_16_5YR_B17017_with_ann!CW50","v":131},{"$f":"[1]ACS_16_5YR_B17017_with_ann!CX50","v":331},{"$f":"[1]ACS_16_5YR_B17017_with_ann!CY50","v":119},{"$f":"[1]ACS_16_5YR_B17017_with_ann!CZ50","v":9},{"$f":"[1]ACS_16_5YR_B17017_with_ann!DA50","v":14},{"$f":"[1]ACS_16_5YR_B17017_with_ann!DB50","v":69},{"$f":"[1]ACS_16_5YR_B17017_with_ann!DC50","v":52},{"$f":"[1]ACS_16_5YR_B17017_with_ann!DD50","v":91},{"$f":"[1]ACS_16_5YR_B17017_with_ann!DE50","v":61},{"$f":"[1]ACS_16_5YR_B17017_with_ann!DF50","v":162},{"$f":"[1]ACS_16_5YR_B17017_with_ann!DG50","v":107},{"$f":"[1]ACS_16_5YR_B17017_with_ann!DH50","v":165},{"$f":"[1]ACS_16_5YR_B17017_with_ann!DI50","v":64},{"$f":"[1]ACS_16_5YR_B17017_with_ann!DJ50","v":0},{"$f":"[1]ACS_16_5YR_B17017_with_ann!DK50","v":12},{"$f":"[1]ACS_16_5YR_B17017_with_ann!DL50","v":28},{"$f":"[1]ACS_16_5YR_B17017_with_ann!DM50","v":31},{"$f":"[1]ACS_16_5YR_B17017_with_ann!DN50","v":79},{"$f":"[1]ACS_16_5YR_B17017_with_ann!DO50","v":50},{"$f":"[1]ACS_16_5YR_B17017_with_ann!DP50","v":58},{"$f":"[1]ACS_16_5YR_B17017_with_ann!DQ50","v":36}]
["06000US3300538500","0600000US3300539300","060",{"$f":"[1]ACS_16_5YR_B17017_with_ann!C51","v":"Jaffrey"},{"$f":"[1]ACS_16_5YR_B17017_with_ann!D51","v":2026},{"$f":"[1]ACS_16_5YR_B17017_with_ann!E51","v":225},{"$f":"[1]ACS_16_5YR_B17017_with_ann!F51","v":102},{"$f":"[1]ACS_16_5YR_B17017_with_ann!G51","v":70},{"$f":"[1]ACS_16_5YR_B17017_with_ann!H51","v":23},{"$f":"[1]ACS_16_5YR_B17017_with_ann!I51","v":39},{"$f":"[1]ACS_16_5YR_B17017_with_ann!J51","v":0},{"$f":"[1]ACS_16_5YR_B17017_with_ann!K51","v":17},{"$f":"[1]ACS_16_5YR_B17017_with_ann!L51","v":0},{"$f":"[1]ACS_16_5YR_B17017_with_ann!M51","v":17},{"$f":"[1]ACS_16_5YR_B17017_with_ann!N51","v":0},{"$f":"[1]ACS_16_5YR_B17017_with_ann!O51","v":17},{"$f":"[1]ACS_16_5YR_B17017_with_ann!P51","v":0},{"$f":"[1]ACS_16_5YR_B17017_with_ann!Q51","v":17},{"$f":"[1]ACS_16_5YR_B17017_with_ann!R51","v":0},{"$f":"[1]ACS_16_5YR_B17017_with_ann!S51","v":17},{"$f":"[1]ACS_16_5YR_B17017_with_ann!T51","v":23},{"$f":"[1]ACS_16_5YR_B17017_with_ann!U51","v":39},{"$f":"[1]ACS_16_5YR_B17017_with_ann!V51","v":0},{"$f":"[1]ACS_16_5YR_B17017_with_ann!W51","v":17},{"$f":"[1]ACS_16_5YR_B17017_with_ann!X51","v":0},{"$f":"[1]ACS_16_5YR_B17017_with_ann!Y51","v":17},{"$f":"[1]ACS_16_5YR_B17017_with_ann!Z51","v":0},{"$f":"[1]ACS_16_5YR_B17017_with_ann!AA51","v":17},{"$f":"[1]ACS_16_5YR_B17017_with_ann!AB51","v":0},{"$f":"[1]ACS_16_5YR_B17017_with_ann!AC51","v":17},{"$f":"[1]ACS_16_5YR_B17017_with_ann!AD51","v":0},{"$f":"[1]ACS_16_5YR_B17017_with_ann!AE51","v":17},{"$f":"[1]ACS_16_5YR_B17017_with_ann!AF51","v":23},{"$f":"[1]ACS_16_5YR_B17017_with_ann!AG51","v":39},{"$f":"[1]ACS_16_5YR_B17017_with_ann!AH51","v":0},{"$f":"[1]ACS_16_5YR_B17017_with_ann!AI51","v":17},{"$f":"[1]ACS_16_5YR_B17017_with_ann!AJ51","v":23},{"$f":"[1]ACS_16_5YR_B17017_with_ann!AK51","v":39},{"$f":"[1]ACS_16_5YR_B17017_with_ann!AL51","v":0},{"$f":"[1]ACS_16_5YR_B17017_with_ann!AM51","v":17},{"$f":"[1]ACS_16_5YR_B17017_with_ann!AN51","v":0},{"$f":"[1]ACS_16_5YR_B17017_with_ann!AO51","v":17},{"$f":"[1]ACS_16_5YR_B17017_with_ann!AP51","v":79},{"$f":"[1]ACS_16_5YR_B17017_with_ann!AQ51","v":58},{"$f":"[1]ACS_16_5YR_B17017_with_ann!AR51","v":0},{"$f":"[1]ACS_16_5YR_B17017_with_ann!AS51","v":17},{"$f":"[1]ACS_16_5YR_B17017_with_ann!AT51","v":0},{"$f":"[1]ACS_16_5YR_B17017_with_ann!AU51","v":17},{"$f":"[1]ACS_16_5YR_B17017_with_ann!AV51","v":0},{"$f":"[1]ACS_16_5YR_B17017_with_ann!AW51","v":17},{"$f":"[1]ACS_16_5YR_B17017_with_ann!AX51","v":0},{"$f":"[1]ACS_16_5YR_B17017_with_ann!AY51","v":17},{"$f":"[1]ACS_16_5YR_B17017_with_ann!AZ51","v":0},{"$f":"[1]ACS_16_5YR_B17017_with_ann!BA51","v":17},{"$f":"[1]ACS_16_5YR_B17017_with_ann!BB51","v":79},{"$f":"[1]ACS_16_5YR_B17017_with_ann!BC51","v":58},{"$f":"[1]ACS_16_5YR_B17017_with_ann!BD51","v":0},{"$f":"[1]ACS_16_5YR_B17017_with_ann!BE51","v":17},{"$f":"[1]ACS_16_5YR_B17017_with_ann!BF51","v":0},{"$f":"[1]ACS_16_5YR_B17017_with_ann!BG51","v":17},{"$f":"[1]ACS_16_5YR_B17017_with_ann!BH51","v":39},{"$f":"[1]ACS_16_5YR_B17017_with_ann!BI51","v":48},{"$f":"[1]ACS_16_5YR_B17017_with_ann!BJ51","v":40},{"$f":"[1]ACS_16_5YR_B17017_with_ann!BK51","v":38},{"$f":"[1]ACS_16_5YR_B17017_with_ann!BL51","v":1924},{"$f":"[1]ACS_16_5YR_B17017_with_ann!BM51","v":249},{"$f":"[1]ACS_16_5YR_B17017_with_ann!BN51","v":1351},{"$f":"[1]ACS_16_5YR_B17017_with_ann!BO51","v":165},{"$f":"[1]ACS_16_5YR_B17017_with_ann!BP51","v":1202},{"$f":"[1]ACS_16_5YR_B17017_with_ann!BQ51","v":191},{"$f":"[1]ACS_16_5YR_B17017_with_ann!BR51","v":0},{"$f":"[1]ACS_16_5YR_B17017_with_ann!BS51","v":17},{"$f":"[1]ACS_16_5YR_B17017_with_ann!BT51","v":282},{"$f":"[1]ACS_16_5YR_B17017_with_ann!BU51","v":131},{"$f":"[1]ACS_16_5YR_B17017_with_ann!BV51","v":718},{"$f":"[1]ACS_16_5YR_B17017_with_ann!BW51","v":163},{"$f":"[1]ACS_16_5YR_B17017_with_ann!BX51","v":202},{"$f":"[1]ACS_16_5YR_B17017_with_ann!BY51","v":85},{"$f":"[1]ACS_16_5YR_B17017_with_ann!BZ51","v":149},{"$f":"[1]ACS_16_5YR_B17017_with_ann!CA51","v":74},{"$f":"[1]ACS_16_5YR_B17017_with_ann!CB51","v":36},{"$f":"[1]ACS_16_5YR_B17017_with_ann!CC51","v":38},{"$f":"[1]ACS_16_5YR_B17017_with_ann!CD51","v":0},{"$f":"[1]ACS_16_5YR_B17017_with_ann!CE51","v":17},{"$f":"[1]ACS_16_5YR_B17017_with_ann!CF51","v":18},{"$f":"[1]ACS_16_5YR_B17017_with_ann!CG51","v":24},{"$f":"[1]ACS_16_5YR_B17017_with_ann!CH51","v":18},{"$f":"[1]ACS_16_5YR_B17017_with_ann!CI51","v":29},{"$f":"[1]ACS_16_5YR_B17017_with_ann!CJ51","v":0},{"$f":"[1]ACS_16_5YR_B17017_with_ann!CK51","v":17},{"$f":"[1]ACS_16_5YR_B17017_with_ann!CL51","v":113},{"$f":"[1]ACS_16_5YR_B17017_with_ann!CM51","v":75},{"$f":"[1]ACS_16_5YR_B17017_with_ann!CN51","v":0},{"$f":"[1]ACS_16_5YR_B17017_with_ann!CO51","v":17},{"$f":"[1]ACS_16_5YR_B17017_with_ann!CP51","v":46},{"$f":"[1]ACS_16_5YR_B17017_with_ann!CQ51","v":46},{"$f":"[1]ACS_16_5YR_B17017_with_ann!CR51","v":14},{"$f":"[1]ACS_16_5YR_B17017_with_ann!CS51","v":21},{"$f":"[1]ACS_16_5YR_B17017_with_ann!CT51","v":53},{"$f":"[1]ACS_16_5YR_B17017_with_ann!CU51","v":54},{"$f":"[1]ACS_16_5YR_B17017_with_ann!CV51","v":573},{"$f":"[1]ACS_16_5YR_B17017_with_ann!CW51","v":276},{"$f":"[1]ACS_16_5YR_B17017_with_ann!CX51","v":339},{"$f":"[1]ACS_16_5YR_B17017_with_ann!CY51","v":236},{"$f":"[1]ACS_16_5YR_B17017_with_ann!CZ51","v":0},{"$f":"[1]ACS_16_5YR_B17017_with_ann!DA51","v":17},{"$f":"[1]ACS_16_5YR_B17017_with_ann!DB51","v":61},{"$f":"[1]ACS_16_5YR_B17017_with_ann!DC51","v":59},{"$f":"[1]ACS_16_5YR_B17017_with_ann!DD51","v":255},{"$f":"[1]ACS_16_5YR_B17017_with_ann!DE51","v":228},{"$f":"[1]ACS_16_5YR_B17017_with_ann!DF51","v":23},{"$f":"[1]ACS_16_5YR_B17017_with_ann!DG51","v":26},{"$f":"[1]ACS_16_5YR_B17017_with_ann!DH51","v":234},{"$f":"[1]ACS_16_5YR_B17017_with_ann!DI51","v":143},{"$f":"[1]ACS_16_5YR_B17017_with_ann!DJ51","v":49},{"$f":"[1]ACS_16_5YR_B17017_with_ann!DK51","v":74},{"$f":"[1]ACS_16_5YR_B17017_with_ann!DL51","v":17},{"$f":"[1]ACS_16_5YR_B17017_with_ann!DM51","v":28},{"$f":"[1]ACS_16_5YR_B17017_with_ann!DN51","v":21},{"$f":"[1]ACS_16_5YR_B17017_with_ann!DO51","v":33},{"$f":"[1]ACS_16_5YR_B17017_with_ann!DP51","v":147},{"$f":"[1]ACS_16_5YR_B17017_with_ann!DQ51","v":89}]
["06000US3300539300","0600000US3300545460","060",{"$f":"[1]ACS_16_5YR_B17017_with_ann!C52","v":"Keene"},{"$f":"[1]ACS_16_5YR_B17017_with_ann!D52","v":9259},{"$f":"[1]ACS_16_5YR_B17017_with_ann!E52","v":370},{"$f":"[1]ACS_16_5YR_B17017_with_ann!F52","v":970},{"$f":"[1]ACS_16_5YR_B17017_with_ann!G52","v":199},{"$f":"[1]ACS_16_5YR_B17017_with_ann!H52","v":174},{"$f":"[1]ACS_16_5YR_B17017_with_ann!I52","v":92},{"$f":"[1]ACS_16_5YR_B17017_with_ann!J52","v":48},{"$f":"[1]ACS_16_5YR_B17017_with_ann!K52","v":48},{"$f":"[1]ACS_16_5YR_B17017_with_ann!L52","v":22},{"$f":"[1]ACS_16_5YR_B17017_with_ann!M52","v":39},{"$f":"[1]ACS_16_5YR_B17017_with_ann!N52","v":6},{"$f":"[1]ACS_16_5YR_B17017_with_ann!O52","v":10},{"$f":"[1]ACS_16_5YR_B17017_with_ann!P52","v":0},{"$f":"[1]ACS_16_5YR_B17017_with_ann!Q52","v":22},{"$f":"[1]ACS_16_5YR_B17017_with_ann!R52","v":20},{"$f":"[1]ACS_16_5YR_B17017_with_ann!S52","v":26},{"$f":"[1]ACS_16_5YR_B17017_with_ann!T52","v":126},{"$f":"[1]ACS_16_5YR_B17017_with_ann!U52","v":79},{"$f":"[1]ACS_16_5YR_B17017_with_ann!V52","v":26},{"$f":"[1]ACS_16_5YR_B17017_with_ann!W52","v":30},{"$f":"[1]ACS_16_5YR_B17017_with_ann!X52","v":0},{"$f":"[1]ACS_16_5YR_B17017_with_ann!Y52","v":22},{"$f":"[1]ACS_16_5YR_B17017_with_ann!Z52","v":26},{"$f":"[1]ACS_16_5YR_B17017_with_ann!AA52","v":30},{"$f":"[1]ACS_16_5YR_B17017_with_ann!AB52","v":0},{"$f":"[1]ACS_16_5YR_B17017_with_ann!AC52","v":22},{"$f":"[1]ACS_16_5YR_B17017_with_ann!AD52","v":0},{"$f":"[1]ACS_16_5YR_B17017_with_ann!AE52","v":22},{"$f":"[1]ACS_16_5YR_B17017_with_ann!AF52","v":100},{"$f":"[1]ACS_16_5YR_B17017_with_ann!AG52","v":71},{"$f":"[1]ACS_16_5YR_B17017_with_ann!AH52","v":11},{"$f":"[1]ACS_16_5YR_B17017_with_ann!AI52","v":18},{"$f":"[1]ACS_16_5YR_B17017_with_ann!AJ52","v":89},{"$f":"[1]ACS_16_5YR_B17017_with_ann!AK52","v":66},{"$f":"[1]ACS_16_5YR_B17017_with_ann!AL52","v":0},{"$f":"[1]ACS_16_5YR_B17017_with_ann!AM52","v":22},{"$f":"[1]ACS_16_5YR_B17017_with_ann!AN52","v":0},{"$f":"[1]ACS_16_5YR_B17017_with_ann!AO52","v":22},{"$f":"[1]ACS_16_5YR_B17017_with_ann!AP52","v":796},{"$f":"[1]ACS_16_5YR_B17017_with_ann!AQ52","v":194},{"$f":"[1]ACS_16_5YR_B17017_with_ann!AR52","v":395},{"$f":"[1]ACS_16_5YR_B17017_with_ann!AS52","v":128},{"$f":"[1]ACS_16_5YR_B17017_with_ann!AT52","v":149},{"$f":"[1]ACS_16_5YR_B17017_with_ann!AU52","v":81},{"$f":"[1]ACS_16_5YR_B17017_with_ann!AV52","v":114},{"$f":"[1]ACS_16_5YR_B17017_with_ann!AW52","v":89},{"$f":"[1]ACS_16_5YR_B17017_with_ann!AX52","v":91},{"$f":"[1]ACS_16_5YR_B17017_with_ann!AY52","v":64},{"$f":"[1]ACS_16_5YR_B17017_with_ann!AZ52","v":41},{"$f":"[1]ACS_16_5YR_B17017_with_ann!BA52","v":34},{"$f":"[1]ACS_16_5YR_B17017_with_ann!BB52","v":401},{"$f":"[1]ACS_16_5YR_B17017_with_ann!BC52","v":151},{"$f":"[1]ACS_16_5YR_B17017_with_ann!BD52","v":51},{"$f":"[1]ACS_16_5YR_B17017_with_ann!BE52","v":36},{"$f":"[1]ACS_16_5YR_B17017_with_ann!BF52","v":96},{"$f":"[1]ACS_16_5YR_B17017_with_ann!BG52","v":88},{"$f":"[1]ACS_16_5YR_B17017_with_ann!BH52","v":124},{"$f":"[1]ACS_16_5YR_B17017_with_ann!BI52","v":91},{"$f":"[1]ACS_16_5YR_B17017_with_ann!BJ52","v":130},{"$f":"[1]ACS_16_5YR_B17017_with_ann!BK52","v":86},{"$f":"[1]ACS_16_5YR_B17017_with_ann!BL52","v":8289},{"$f":"[1]ACS_16_5YR_B17017_with_ann!BM52","v":374},{"$f":"[1]ACS_16_5YR_B17017_with_ann!BN52","v":4367},{"$f":"[1]ACS_16_5YR_B17017_with_ann!BO52","v":293},{"$f":"[1]ACS_16_5YR_B17017_with_ann!BP52","v":3345},{"$f":"[1]ACS_16_5YR_B17017_with_ann!BQ52","v":288},{"$f":"[1]ACS_16_5YR_B17017_with_ann!BR52","v":0},{"$f":"[1]ACS_16_5YR_B17017_with_ann!BS52","v":22},{"$f":"[1]ACS_16_5YR_B17017_with_ann!BT52","v":918},{"$f":"[1]ACS_16_5YR_B17017_with_ann!BU52","v":169},{"$f":"[1]ACS_16_5YR_B17017_with_ann!BV52","v":1480},{"$f":"[1]ACS_16_5YR_B17017_with_ann!BW52","v":281},{"$f":"[1]ACS_16_5YR_B17017_with_ann!BX52","v":947},{"$f":"[1]ACS_16_5YR_B17017_with_ann!BY52","v":163},{"$f":"[1]ACS_16_5YR_B17017_with_ann!BZ52","v":1022},{"$f":"[1]ACS_16_5YR_B17017_with_ann!CA52","v":212},{"$f":"[1]ACS_16_5YR_B17017_with_ann!CB52","v":308},{"$f":"[1]ACS_16_5YR_B17017_with_ann!CC52","v":149},{"$f":"[1]ACS_16_5YR_B17017_with_ann!CD52","v":27},{"$f":"[1]ACS_16_5YR_B17017_with_ann!CE52","v":43},{"$f":"[1]ACS_16_5YR_B17017_with_ann!CF52","v":94},{"$f":"[1]ACS_16_5YR_B17017_with_ann!CG52","v":86},{"$f":"[1]ACS_16_5YR_B17017_with_ann!CH52","v":169},{"$f":"[1]ACS_16_5YR_B17017_with_ann!CI52","v":108},{"$f":"[1]ACS_16_5YR_B17017_with_ann!CJ52","v":18},{"$f":"[1]ACS_16_5YR_B17017_with_ann!CK52","v":28},{"$f":"[1]ACS_16_5YR_B17017_with_ann!CL52","v":714},{"$f":"[1]ACS_16_5YR_B17017_with_ann!CM52","v":163},{"$f":"[1]ACS_16_5YR_B17017_with_ann!CN52","v":41},{"$f":"[1]ACS_16_5YR_B17017_with_ann!CO52","v":65},{"$f":"[1]ACS_16_5YR_B17017_with_ann!CP52","v":230},{"$f":"[1]ACS_16_5YR_B17017_with_ann!CQ52","v":99},{"$f":"[1]ACS_16_5YR_B17017_with_ann!CR52","v":382},{"$f":"[1]ACS_16_5YR_B17017_with_ann!CS52","v":125},{"$f":"[1]ACS_16_5YR_B17017_with_ann!CT52","v":61},{"$f":"[1]ACS_16_5YR_B17017_with_ann!CU52","v":48},{"$f":"[1]ACS_16_5YR_B17017_with_ann!CV52","v":3922},{"$f":"[1]ACS_16_5YR_B17017_with_ann!CW52","v":453},{"$f":"[1]ACS_16_5YR_B17017_with_ann!CX52","v":1641},{"$f":"[1]ACS_16_5YR_B17017_with_ann!CY52","v":308},{"$f":"[1]ACS_16_5YR_B17017_with_ann!CZ52","v":210},{"$f":"[1]ACS_16_5YR_B17017_with_ann!DA52","v":105},{"$f":"[1]ACS_16_5YR_B17017_with_ann!DB52","v":687},{"$f":"[1]ACS_16_5YR_B17017_with_ann!DC52","v":242},{"$f":"[1]ACS_16_5YR_B17017_with_ann!DD52","v":397},{"$f":"[1]ACS_16_5YR_B17017_with_ann!DE52","v":141},{"$f":"[1]ACS_16_5YR_B17017_with_ann!DF52","v":347},{"$f":"[1]ACS_16_5YR_B17017_with_ann!DG52","v":137},{"$f":"[1]ACS_16_5YR_B17017_with_ann!DH52","v":2281},{"$f":"[1]ACS_16_5YR_B17017_with_ann!DI52","v":327},{"$f":"[1]ACS_16_5YR_B17017_with_ann!DJ52","v":131},{"$f":"[1]ACS_16_5YR_B17017_with_ann!DK52","v":78},{"$f":"[1]ACS_16_5YR_B17017_with_ann!DL52","v":716},{"$f":"[1]ACS_16_5YR_B17017_with_ann!DM52","v":193},{"$f":"[1]ACS_16_5YR_B17017_with_ann!DN52","v":393},{"$f":"[1]ACS_16_5YR_B17017_with_ann!DO52","v":136},{"$f":"[1]ACS_16_5YR_B17017_with_ann!DP52","v":1041},{"$f":"[1]ACS_16_5YR_B17017_with_ann!DQ52","v":260}]
["06000US3300545460","0600000US3300545700","060",{"$f":"[1]ACS_16_5YR_B17017_with_ann!C53","v":"Marlborough"},{"$f":"[1]ACS_16_5YR_B17017_with_ann!D53","v":942},{"$f":"[1]ACS_16_5YR_B17017_with_ann!E53","v":130},{"$f":"[1]ACS_16_5YR_B17017_with_ann!F53","v":114},{"$f":"[1]ACS_16_5YR_B17017_with_ann!G53","v":71},{"$f":"[1]ACS_16_5YR_B17017_with_ann!H53","v":56},{"$f":"[1]ACS_16_5YR_B17017_with_ann!I53","v":64},{"$f":"[1]ACS_16_5YR_B17017_with_ann!J53","v":7},{"$f":"[1]ACS_16_5YR_B17017_with_ann!K53","v":10},{"$f":"[1]ACS_16_5YR_B17017_with_ann!L53","v":0},{"$f":"[1]ACS_16_5YR_B17017_with_ann!M53","v":12},{"$f":"[1]ACS_16_5YR_B17017_with_ann!N53","v":7},{"$f":"[1]ACS_16_5YR_B17017_with_ann!O53","v":10},{"$f":"[1]ACS_16_5YR_B17017_with_ann!P53","v":0},{"$f":"[1]ACS_16_5YR_B17017_with_ann!Q53","v":12},{"$f":"[1]ACS_16_5YR_B17017_with_ann!R53","v":0},{"$f":"[1]ACS_16_5YR_B17017_with_ann!S53","v":12},{"$f":"[1]ACS_16_5YR_B17017_with_ann!T53","v":49},{"$f":"[1]ACS_16_5YR_B17017_with_ann!U53","v":64},{"$f":"[1]ACS_16_5YR_B17017_with_ann!V53","v":0},{"$f":"[1]ACS_16_5YR_B17017_with_ann!W53","v":12},{"$f":"[1]ACS_16_5YR_B17017_with_ann!X53","v":0},{"$f":"[1]ACS_16_5YR_B17017_with_ann!Y53","v":12},{"$f":"[1]ACS_16_5YR_B17017_with_ann!Z53","v":0},{"$f":"[1]ACS_16_5YR_B17017_with_ann!AA53","v":12},{"$f":"[1]ACS_16_5YR_B17017_with_ann!AB53","v":0},{"$f":"[1]ACS_16_5YR_B17017_with_ann!AC53","v":12},{"$f":"[1]ACS_16_5YR_B17017_with_ann!AD53","v":0},{"$f":"[1]ACS_16_5YR_B17017_with_ann!AE53","v":12},{"$f":"[1]ACS_16_5YR_B17017_with_ann!AF53","v":49},{"$f":"[1]ACS_16_5YR_B17017_with_ann!AG53","v":64},{"$f":"[1]ACS_16_5YR_B17017_with_ann!AH53","v":0},{"$f":"[1]ACS_16_5YR_B17017_with_ann!AI53","v":12},{"$f":"[1]ACS_16_5YR_B17017_with_ann!AJ53","v":49},{"$f":"[1]ACS_16_5YR_B17017_with_ann!AK53","v":64},{"$f":"[1]ACS_16_5YR_B17017_with_ann!AL53","v":0},{"$f":"[1]ACS_16_5YR_B17017_with_ann!AM53","v":12},{"$f":"[1]ACS_16_5YR_B17017_with_ann!AN53","v":0},{"$f":"[1]ACS_16_5YR_B17017_with_ann!AO53","v":12},{"$f":"[1]ACS_16_5YR_B17017_with_ann!AP53","v":58},{"$f":"[1]ACS_16_5YR_B17017_with_ann!AQ53","v":33},{"$f":"[1]ACS_16_5YR_B17017_with_ann!AR53","v":22},{"$f":"[1]ACS_16_5YR_B17017_with_ann!AS53","v":20},{"$f":"[1]ACS_16_5YR_B17017_with_ann!AT53","v":0},{"$f":"[1]ACS_16_5YR_B17017_with_ann!AU53","v":12},{"$f":"[1]ACS_16_5YR_B17017_with_ann!AV53","v":8},{"$f":"[1]ACS_16_5YR_B17017_with_ann!AW53","v":12},{"$f":"[1]ACS_16_5YR_B17017_with_ann!AX53","v":4},{"$f":"[1]ACS_16_5YR_B17017_with_ann!AY53","v":7},{"$f":"[1]ACS_16_5YR_B17017_with_ann!AZ53","v":10},{"$f":"[1]ACS_16_5YR_B17017_with_ann!BA53","v":16},{"$f":"[1]ACS_16_5YR_B17017_with_ann!BB53","v":36},{"$f":"[1]ACS_16_5YR_B17017_with_ann!BC53","v":29},{"$f":"[1]ACS_16_5YR_B17017_with_ann!BD53","v":0},{"$f":"[1]ACS_16_5YR_B17017_with_ann!BE53","v":12},{"$f":"[1]ACS_16_5YR_B17017_with_ann!BF53","v":13},{"$f":"[1]ACS_16_5YR_B17017_with_ann!BG53","v":21},{"$f":"[1]ACS_16_5YR_B17017_with_ann!BH53","v":17},{"$f":"[1]ACS_16_5YR_B17017_with_ann!BI53","v":18},{"$f":"[1]ACS_16_5YR_B17017_with_ann!BJ53","v":6},{"$f":"[1]ACS_16_5YR_B17017_with_ann!BK53","v":9},{"$f":"[1]ACS_16_5YR_B17017_with_ann!BL53","v":828},{"$f":"[1]ACS_16_5YR_B17017_with_ann!BM53","v":135},{"$f":"[1]ACS_16_5YR_B17017_with_ann!BN53","v":501},{"$f":"[1]ACS_16_5YR_B17017_with_ann!BO53","v":112},{"$f":"[1]ACS_16_5YR_B17017_with_ann!BP53","v":439},{"$f":"[1]ACS_16_5YR_B17017_with_ann!BQ53","v":100},{"$f":"[1]ACS_16_5YR_B17017_with_ann!BR53","v":0},{"$f":"[1]ACS_16_5YR_B17017_with_ann!BS53","v":12},{"$f":"[1]ACS_16_5YR_B17017_with_ann!BT53","v":108},{"$f":"[1]ACS_16_5YR_B17017_with_ann!BU53","v":47},{"$f":"[1]ACS_16_5YR_B17017_with_ann!BV53","v":212},{"$f":"[1]ACS_16_5YR_B17017_with_ann!BW53","v":73},{"$f":"[1]ACS_16_5YR_B17017_with_ann!BX53","v":119},{"$f":"[1]ACS_16_5YR_B17017_with_ann!BY53","v":40},{"$f":"[1]ACS_16_5YR_B17017_with_ann!BZ53","v":62},{"$f":"[1]ACS_16_5YR_B17017_with_ann!CA53","v":30},{"$f":"[1]ACS_16_5YR_B17017_with_ann!CB53","v":21},{"$f":"[1]ACS_16_5YR_B17017_with_ann!CC53","v":22},{"$f":"[1]ACS_16_5YR_B17017_with_ann!CD53","v":0},{"$f":"[1]ACS_16_5YR_B17017_with_ann!CE53","v":12},{"$f":"[1]ACS_16_5YR_B17017_with_ann!CF53","v":12},{"$f":"[1]ACS_16_5YR_B17017_with_ann!CG53","v":19},{"$f":"[1]ACS_16_5YR_B17017_with_ann!CH53","v":9},{"$f":"[1]ACS_16_5YR_B17017_with_ann!CI53","v":11},{"$f":"[1]ACS_16_5YR_B17017_with_ann!CJ53","v":0},{"$f":"[1]ACS_16_5YR_B17017_with_ann!CK53","v":12},{"$f":"[1]ACS_16_5YR_B17017_with_ann!CL53","v":41},{"$f":"[1]ACS_16_5YR_B17017_with_ann!CM53","v":26},{"$f":"[1]ACS_16_5YR_B17017_with_ann!CN53","v":0},{"$f":"[1]ACS_16_5YR_B17017_with_ann!CO53","v":12},{"$f":"[1]ACS_16_5YR_B17017_with_ann!CP53","v":19},{"$f":"[1]ACS_16_5YR_B17017_with_ann!CQ53","v":21},{"$f":"[1]ACS_16_5YR_B17017_with_ann!CR53","v":12},{"$f":"[1]ACS_16_5YR_B17017_with_ann!CS53","v":13},{"$f":"[1]ACS_16_5YR_B17017_with_ann!CT53","v":10},{"$f":"[1]ACS_16_5YR_B17017_with_ann!CU53","v":12},{"$f":"[1]ACS_16_5YR_B17017_with_ann!CV53","v":327},{"$f":"[1]ACS_16_5YR_B17017_with_ann!CW53","v":80},{"$f":"[1]ACS_16_5YR_B17017_with_ann!CX53","v":153},{"$f":"[1]ACS_16_5YR_B17017_with_ann!CY53","v":69},{"$f":"[1]ACS_16_5YR_B17017_with_ann!CZ53","v":0},{"$f":"[1]ACS_16_5YR_B17017_with_ann!DA53","v":12},{"$f":"[1]ACS_16_5YR_B17017_with_ann!DB53","v":63},{"$f":"[1]ACS_16_5YR_B17017_with_ann!DC53","v":41},{"$f":"[1]ACS_16_5YR_B17017_with_ann!DD53","v":34},{"$f":"[1]ACS_16_5YR_B17017_with_ann!DE53","v":33},{"$f":"[1]ACS_16_5YR_B17017_with_ann!DF53","v":56},{"$f":"[1]ACS_16_5YR_B17017_with_ann!DG53","v":40},{"$f":"[1]ACS_16_5YR_B17017_with_ann!DH53","v":174},{"$f":"[1]ACS_16_5YR_B17017_with_ann!DI53","v":53},{"$f":"[1]ACS_16_5YR_B17017_with_ann!DJ53","v":0},{"$f":"[1]ACS_16_5YR_B17017_with_ann!DK53","v":12},{"$f":"[1]ACS_16_5YR_B17017_with_ann!DL53","v":60},{"$f":"[1]ACS_16_5YR_B17017_with_ann!DM53","v":41},{"$f":"[1]ACS_16_5YR_B17017_with_ann!DN53","v":37},{"$f":"[1]ACS_16_5YR_B17017_with_ann!DO53","v":26},{"$f":"[1]ACS_16_5YR_B17017_with_ann!DP53","v":77},{"$f":"[1]ACS_16_5YR_B17017_with_ann!DQ53","v":29}]
["06000US3300545700","0600000US3300550580","060",{"$f":"[1]ACS_16_5YR_B17017_with_ann!C54","v":"Marlow"},{"$f":"[1]ACS_16_5YR_B17017_with_ann!D54","v":314},{"$f":"[1]ACS_16_5YR_B17017_with_ann!E54","v":61},{"$f":"[1]ACS_16_5YR_B17017_with_ann!F54","v":34},{"$f":"[1]ACS_16_5YR_B17017_with_ann!G54","v":21},{"$f":"[1]ACS_16_5YR_B17017_with_ann!H54","v":20},{"$f":"[1]ACS_16_5YR_B17017_with_ann!I54","v":15},{"$f":"[1]ACS_16_5YR_B17017_with_ann!J54","v":13},{"$f":"[1]ACS_16_5YR_B17017_with_ann!K54","v":12},{"$f":"[1]ACS_16_5YR_B17017_with_ann!L54","v":0},{"$f":"[1]ACS_16_5YR_B17017_with_ann!M54","v":12},{"$f":"[1]ACS_16_5YR_B17017_with_ann!N54","v":4},{"$f":"[1]ACS_16_5YR_B17017_with_ann!O54","v":6},{"$f":"[1]ACS_16_5YR_B17017_with_ann!P54","v":9},{"$f":"[1]ACS_16_5YR_B17017_with_ann!Q54","v":10},{"$f":"[1]ACS_16_5YR_B17017_with_ann!R54","v":0},{"$f":"[1]ACS_16_5YR_B17017_with_ann!S54","v":12},{"$f":"[1]ACS_16_5YR_B17017_with_ann!T54","v":7},{"$f":"[1]ACS_16_5YR_B17017_with_ann!U54","v":10},{"$f":"[1]ACS_16_5YR_B17017_with_ann!V54","v":0},{"$f":"[1]ACS_16_5YR_B17017_with_ann!W54","v":12},{"$f":"[1]ACS_16_5YR_B17017_with_ann!X54","v":0},{"$f":"[1]ACS_16_5YR_B17017_with_ann!Y54","v":12},{"$f":"[1]ACS_16_5YR_B17017_with_ann!Z54","v":0},{"$f":"[1]ACS_16_5YR_B17017_with_ann!AA54","v":12},{"$f":"[1]ACS_16_5YR_B17017_with_ann!AB54","v":0},{"$f":"[1]ACS_16_5YR_B17017_with_ann!AC54","v":12},{"$f":"[1]ACS_16_5YR_B17017_with_ann!AD54","v":0},{"$f":"[1]ACS_16_5YR_B17017_with_ann!AE54","v":12},{"$f":"[1]ACS_16_5YR_B17017_with_ann!AF54","v":7},{"$f":"[1]ACS_16_5YR_B17017_with_ann!AG54","v":10},{"$f":"[1]ACS_16_5YR_B17017_with_ann!AH54","v":0},{"$f":"[1]ACS_16_5YR_B17017_with_ann!AI54","v":12},{"$f":"[1]ACS_16_5YR_B17017_with_ann!AJ54","v":7},{"$f":"[1]ACS_16_5YR_B17017_with_ann!AK54","v":10},{"$f":"[1]ACS_16_5YR_B17017_with_ann!AL54","v":0},{"$f":"[1]ACS_16_5YR_B17017_with_ann!AM54","v":12},{"$f":"[1]ACS_16_5YR_B17017_with_ann!AN54","v":0},{"$f":"[1]ACS_16_5YR_B17017_with_ann!AO54","v":12},{"$f":"[1]ACS_16_5YR_B17017_with_ann!AP54","v":14},{"$f":"[1]ACS_16_5YR_B17017_with_ann!AQ54","v":12},{"$f":"[1]ACS_16_5YR_B17017_with_ann!AR54","v":11},{"$f":"[1]ACS_16_5YR_B17017_with_ann!AS54","v":11},{"$f":"[1]ACS_16_5YR_B17017_with_ann!AT54","v":0},{"$f":"[1]ACS_16_5YR_B17017_with_ann!AU54","v":12},{"$f":"[1]ACS_16_5YR_B17017_with_ann!AV54","v":0},{"$f":"[1]ACS_16_5YR_B17017_with_ann!AW54","v":12},{"$f":"[1]ACS_16_5YR_B17017_with_ann!AX54","v":9},{"$f":"[1]ACS_16_5YR_B17017_with_ann!AY54","v":11},{"$f":"[1]ACS_16_5YR_B17017_with_ann!AZ54","v":2},{"$f":"[1]ACS_16_5YR_B17017_with_ann!BA54","v":3},{"$f":"[1]ACS_16_5YR_B17017_with_ann!BB54","v":3},{"$f":"[1]ACS_16_5YR_B17017_with_ann!BC54","v":4},{"$f":"[1]ACS_16_5YR_B17017_with_ann!BD54","v":0},{"$f":"[1]ACS_16_5YR_B17017_with_ann!BE54","v":12},{"$f":"[1]ACS_16_5YR_B17017_with_ann!BF54","v":0},{"$f":"[1]ACS_16_5YR_B17017_with_ann!BG54","v":12},{"$f":"[1]ACS_16_5YR_B17017_with_ann!BH54","v":0},{"$f":"[1]ACS_16_5YR_B17017_with_ann!BI54","v":12},{"$f":"[1]ACS_16_5YR_B17017_with_ann!BJ54","v":3},{"$f":"[1]ACS_16_5YR_B17017_with_ann!BK54","v":4},{"$f":"[1]ACS_16_5YR_B17017_with_ann!BL54","v":280},{"$f":"[1]ACS_16_5YR_B17017_with_ann!BM54","v":60},{"$f":"[1]ACS_16_5YR_B17017_with_ann!BN54","v":227},{"$f":"[1]ACS_16_5YR_B17017_with_ann!BO54","v":58},{"$f":"[1]ACS_16_5YR_B17017_with_ann!BP54","v":214},{"$f":"[1]ACS_16_5YR_B17017_with_ann!BQ54","v":55},{"$f":"[1]ACS_16_5YR_B17017_with_ann!BR54","v":0},{"$f":"[1]ACS_16_5YR_B17017_with_ann!BS54","v":12},{"$f":"[1]ACS_16_5YR_B17017_with_ann!BT54","v":57},{"$f":"[1]ACS_16_5YR_B17017_with_ann!BU54","v":32},{"$f":"[1]ACS_16_5YR_B17017_with_ann!BV54","v":81},{"$f":"[1]ACS_16_5YR_B17017_with_ann!BW54","v":32},{"$f":"[1]ACS_16_5YR_B17017_with_ann!BX54","v":76},{"$f":"[1]ACS_16_5YR_B17017_with_ann!BY54","v":37},{"$f":"[1]ACS_16_5YR_B17017_with_ann!BZ54","v":13},{"$f":"[1]ACS_16_5YR_B17017_with_ann!CA54","v":13},{"$f":"[1]ACS_16_5YR_B17017_with_ann!CB54","v":8},{"$f":"[1]ACS_16_5YR_B17017_with_ann!CC54","v":12},{"$f":"[1]ACS_16_5YR_B17017_with_ann!CD54","v":0},{"$f":"[1]ACS_16_5YR_B17017_with_ann!CE54","v":12},{"$f":"[1]ACS_16_5YR_B17017_with_ann!CF54","v":0},{"$f":"[1]ACS_16_5YR_B17017_with_ann!CG54","v":12},{"$f":"[1]ACS_16_5YR_B17017_with_ann!CH54","v":8},{"$f":"[1]ACS_16_5YR_B17017_with_ann!CI54","v":12},{"$f":"[1]ACS_16_5YR_B17017_with_ann!CJ54","v":0},{"$f":"[1]ACS_16_5YR_B17017_with_ann!CK54","v":12},{"$f":"[1]ACS_16_5YR_B17017_with_ann!CL54","v":5},{"$f":"[1]ACS_16_5YR_B17017_with_ann!CM54","v":5},{"$f":"[1]ACS_16_5YR_B17017_with_ann!CN54","v":0},{"$f":"[1]ACS_16_5YR_B17017_with_ann!CO54","v":12},{"$f":"[1]ACS_16_5YR_B17017_with_ann!CP54","v":0},{"$f":"[1]ACS_16_5YR_B17017_with_ann!CQ54","v":12},{"$f":"[1]ACS_16_5YR_B17017_with_ann!CR54","v":2},{"$f":"[1]ACS_16_5YR_B17017_with_ann!CS54","v":3},{"$f":"[1]ACS_16_5YR_B17017_with_ann!CT54","v":3},{"$f":"[1]ACS_16_5YR_B17017_with_ann!CU54","v":4},{"$f":"[1]ACS_16_5YR_B17017_with_ann!CV54","v":53},{"$f":"[1]ACS_16_5YR_B17017_with_ann!CW54","v":17},{"$f":"[1]ACS_16_5YR_B17017_with_ann!CX54","v":30},{"$f":"[1]ACS_16_5YR_B17017_with_ann!CY54","v":13},{"$f":"[1]ACS_16_5YR_B17017_with_ann!CZ54","v":0},{"$f":"[1]ACS_16_5YR_B17017_with_ann!DA54","v":12},{"$f":"[1]ACS_16_5YR_B17017_with_ann!DB54","v":0},{"$f":"[1]ACS_16_5YR_B17017_with_ann!DC54","v":12},{"$f":"[1]ACS_16_5YR_B17017_with_ann!DD54","v":18},{"$f":"[1]ACS_16_5YR_B17017_with_ann!DE54","v":13},{"$f":"[1]ACS_16_5YR_B17017_with_ann!DF54","v":12},{"$f":"[1]ACS_16_5YR_B17017_with_ann!DG54","v":7},{"$f":"[1]ACS_16_5YR_B17017_with_ann!DH54","v":23},{"$f":"[1]ACS_16_5YR_B17017_with_ann!DI54","v":10},{"$f":"[1]ACS_16_5YR_B17017_with_ann!DJ54","v":3},{"$f":"[1]ACS_16_5YR_B17017_with_ann!DK54","v":4},{"$f":"[1]ACS_16_5YR_B17017_with_ann!DL54","v":2},{"$f":"[1]ACS_16_5YR_B17017_with_ann!DM54","v":3},{"$f":"[1]ACS_16_5YR_B17017_with_ann!DN54","v":2},{"$f":"[1]ACS_16_5YR_B17017_with_ann!DO54","v":4},{"$f":"[1]ACS_16_5YR_B17017_with_ann!DP54","v":16},{"$f":"[1]ACS_16_5YR_B17017_with_ann!DQ54","v":11}]
["06000US3300550580","0600000US3300564420","060",{"$f":"[1]ACS_16_5YR_B17017_with_ann!C55","v":"Nelson"},{"$f":"[1]ACS_16_5YR_B17017_with_ann!D55","v":246},{"$f":"[1]ACS_16_5YR_B17017_with_ann!E55","v":41},{"$f":"[1]ACS_16_5YR_B17017_with_ann!F55","v":7},{"$f":"[1]ACS_16_5YR_B17017_with_ann!G55","v":5},{"$f":"[1]ACS_16_5YR_B17017_with_ann!H55","v":4},{"$f":"[1]ACS_16_5YR_B17017_with_ann!I55","v":4},{"$f":"[1]ACS_16_5YR_B17017_with_ann!J55","v":4},{"$f":"[1]ACS_16_5YR_B17017_with_ann!K55","v":4},{"$f":"[1]ACS_16_5YR_B17017_with_ann!L55","v":0},{"$f":"[1]ACS_16_5YR_B17017_with_ann!M55","v":12},{"$f":"[1]ACS_16_5YR_B17017_with_ann!N55","v":0},{"$f":"[1]ACS_16_5YR_B17017_with_ann!O55","v":12},{"$f":"[1]ACS_16_5YR_B17017_with_ann!P55","v":2},{"$f":"[1]ACS_16_5YR_B17017_with_ann!Q55","v":3},{"$f":"[1]ACS_16_5YR_B17017_with_ann!R55","v":2},{"$f":"[1]ACS_16_5YR_B17017_with_ann!S55","v":2},{"$f":"[1]ACS_16_5YR_B17017_with_ann!T55","v":0},{"$f":"[1]ACS_16_5YR_B17017_with_ann!U55","v":12},{"$f":"[1]ACS_16_5YR_B17017_with_ann!V55","v":0},{"$f":"[1]ACS_16_5YR_B17017_with_ann!W55","v":12},{"$f":"[1]ACS_16_5YR_B17017_with_ann!X55","v":0},{"$f":"[1]ACS_16_5YR_B17017_with_ann!Y55","v":12},{"$f":"[1]ACS_16_5YR_B17017_with_ann!Z55","v":0},{"$f":"[1]ACS_16_5YR_B17017_with_ann!AA55","v":12},{"$f":"[1]ACS_16_5YR_B17017_with_ann!AB55","v":0},{"$f":"[1]ACS_16_5YR_B17017_with_ann!AC55","v":12},{"$f":"[1]ACS_16_5YR_B17017_with_ann!AD55","v":0},{"$f":"[1]ACS_16_5YR_B17017_with_ann!AE55","v":12},{"$f":"[1]ACS_16_5YR_B17017_with_ann!AF55","v":0},{"$f":"[1]ACS_16_5YR_B17017_with_ann!AG55","v":12},{"$f":"[1]ACS_16_5YR_B17017_with_ann!AH55","v":0},{"$f":"[1]ACS_16_5YR_B17017_with_ann!AI55","v":12},{"$f":"[1]ACS_16_5YR_B17017_with_ann!AJ55","v":0},{"$f":"[1]ACS_16_5YR_B17017_with_ann!AK55","v":12},{"$f":"[1]ACS_16_5YR_B17017_with_ann!AL55","v":0},{"$f":"[1]ACS_16_5YR_B17017_with_ann!AM55","v":12},{"$f":"[1]ACS_16_5YR_B17017_with_ann!AN55","v":0},{"$f":"[1]ACS_16_5YR_B17017_with_ann!AO55","v":12},{"$f":"[1]ACS_16_5YR_B17017_with_ann!AP55","v":3},{"$f":"[1]ACS_16_5YR_B17017_with_ann!AQ55","v":4},{"$f":"[1]ACS_16_5YR_B17017_with_ann!AR55","v":2},{"$f":"[1]ACS_16_5YR_B17017_with_ann!AS55","v":3},{"$f":"[1]ACS_16_5YR_B17017_with_ann!AT55","v":0},{"$f":"[1]ACS_16_5YR_B17017_with_ann!AU55","v":12},{"$f":"[1]ACS_16_5YR_B17017_with_ann!AV55","v":2},{"$f":"[1]ACS_16_5YR_B17017_with_ann!AW55","v":3},{"$f":"[1]ACS_16_5YR_B17017_with_ann!AX55","v":0},{"$f":"[1]ACS_16_5YR_B17017_with_ann!AY55","v":12},{"$f":"[1]ACS_16_5YR_B17017_with_ann!AZ55","v":0},{"$f":"[1]ACS_16_5YR_B17017_with_ann!BA55","v":12},{"$f":"[1]ACS_16_5YR_B17017_with_ann!BB55","v":1},{"$f":"[1]ACS_16_5YR_B17017_with_ann!BC55","v":4},{"$f":"[1]ACS_16_5YR_B17017_with_ann!BD55","v":0},{"$f":"[1]ACS_16_5YR_B17017_with_ann!BE55","v":12},{"$f":"[1]ACS_16_5YR_B17017_with_ann!BF55","v":0},{"$f":"[1]ACS_16_5YR_B17017_with_ann!BG55","v":12},{"$f":"[1]ACS_16_5YR_B17017_with_ann!BH55","v":0},{"$f":"[1]ACS_16_5YR_B17017_with_ann!BI55","v":12},{"$f":"[1]ACS_16_5YR_B17017_with_ann!BJ55","v":1},{"$f":"[1]ACS_16_5YR_B17017_with_ann!BK55","v":4},{"$f":"[1]ACS_16_5YR_B17017_with_ann!BL55","v":239},{"$f":"[1]ACS_16_5YR_B17017_with_ann!BM55","v":43},{"$f":"[1]ACS_16_5YR_B17017_with_ann!BN55","v":163},{"$f":"[1]ACS_16_5YR_B17017_with_ann!BO55","v":39},{"$f":"[1]ACS_16_5YR_B17017_with_ann!BP55","v":132},{"$f":"[1]ACS_16_5YR_B17017_with_ann!BQ55","v":32},{"$f":"[1]ACS_16_5YR_B17017_with_ann!BR55","v":0},{"$f":"[1]ACS_16_5YR_B17017_with_ann!BS55","v":12},{"$f":"[1]ACS_16_5YR_B17017_with_ann!BT55","v":28},{"$f":"[1]ACS_16_5YR_B17017_with_ann!BU55","v":14},{"$f":"[1]ACS_16_5YR_B17017_with_ann!BV55","v":54},{"$f":"[1]ACS_16_5YR_B17017_with_ann!BW55","v":23},{"$f":"[1]ACS_16_5YR_B17017_with_ann!BX55","v":50},{"$f":"[1]ACS_16_5YR_B17017_with_ann!BY55","v":21},{"$f":"[1]ACS_16_5YR_B17017_with_ann!BZ55","v":31},{"$f":"[1]ACS_16_5YR_B17017_with_ann!CA55","v":18},{"$f":"[1]ACS_16_5YR_B17017_with_ann!CB55","v":10},{"$f":"[1]ACS_16_5YR_B17017_with_ann!CC55","v":10},{"$f":"[1]ACS_16_5YR_B17017_with_ann!CD55","v":0},{"$f":"[1]ACS_16_5YR_B17017_with_ann!CE55","v":12},{"$f":"[1]ACS_16_5YR_B17017_with_ann!CF55","v":7},{"$f":"[1]ACS_16_5YR_B17017_with_ann!CG55","v":10},{"$f":"[1]ACS_16_5YR_B17017_with_ann!CH55","v":0},{"$f":"[1]ACS_16_5YR_B17017_with_ann!CI55","v":12},{"$f":"[1]ACS_16_5YR_B17017_with_ann!CJ55","v":3},{"$f":"[1]ACS_16_5YR_B17017_with_ann!CK55","v":3},{"$f":"[1]ACS_16_5YR_B17017_with_ann!CL55","v":21},{"$f":"[1]ACS_16_5YR_B17017_with_ann!CM55","v":14},{"$f":"[1]ACS_16_5YR_B17017_with_ann!CN55","v":0},{"$f":"[1]ACS_16_5YR_B17017_with_ann!CO55","v":12},{"$f":"[1]ACS_16_5YR_B17017_with_ann!CP55","v":7},{"$f":"[1]ACS_16_5YR_B17017_with_ann!CQ55","v":9},{"$f":"[1]ACS_16_5YR_B17017_with_ann!CR55","v":7},{"$f":"[1]ACS_16_5YR_B17017_with_ann!CS55","v":6},{"$f":"[1]ACS_16_5YR_B17017_with_ann!CT55","v":7},{"$f":"[1]ACS_16_5YR_B17017_with_ann!CU55","v":8},{"$f":"[1]ACS_16_5YR_B17017_with_ann!CV55","v":76},{"$f":"[1]ACS_16_5YR_B17017_with_ann!CW55","v":23},{"$f":"[1]ACS_16_5YR_B17017_with_ann!CX55","v":36},{"$f":"[1]ACS_16_5YR_B17017_with_ann!CY55","v":19},{"$f":"[1]ACS_16_5YR_B17017_with_ann!CZ55","v":0},{"$f":"[1]ACS_16_5YR_B17017_with_ann!DA55","v":12},{"$f":"[1]ACS_16_5YR_B17017_with_ann!DB55","v":4},{"$f":"[1]ACS_16_5YR_B17017_with_ann!DC55","v":4},{"$f":"[1]ACS_16_5YR_B17017_with_ann!DD55","v":15},{"$f":"[1]ACS_16_5YR_B17017_with_ann!DE55","v":12},{"$f":"[1]ACS_16_5YR_B17017_with_ann!DF55","v":17},{"$f":"[1]ACS_16_5YR_B17017_with_ann!DG55","v":12},{"$f":"[1]ACS_16_5YR_B17017_with_ann!DH55","v":40},{"$f":"[1]ACS_16_5YR_B17017_with_ann!DI55","v":15},{"$f":"[1]ACS_16_5YR_B17017_with_ann!DJ55","v":0},{"$f":"[1]ACS_16_5YR_B17017_with_ann!DK55","v":12},{"$f":"[1]ACS_16_5YR_B17017_with_ann!DL55","v":6},{"$f":"[1]ACS_16_5YR_B17017_with_ann!DM55","v":5},{"$f":"[1]ACS_16_5YR_B17017_with_ann!DN55","v":10},{"$f":"[1]ACS_16_5YR_B17017_with_ann!DO55","v":8},{"$f":"[1]ACS_16_5YR_B17017_with_ann!DP55","v":24},{"$f":"[1]ACS_16_5YR_B17017_with_ann!DQ55","v":14}]
["06000US3300564420","0600000US3300564580","060",{"$f":"[1]ACS_16_5YR_B17017_with_ann!C56","v":"Richmond"},{"$f":"[1]ACS_16_5YR_B17017_with_ann!D56","v":393},{"$f":"[1]ACS_16_5YR_B17017_with_ann!E56","v":73},{"$f":"[1]ACS_16_5YR_B17017_with_ann!F56","v":15},{"$f":"[1]ACS_16_5YR_B17017_with_ann!G56","v":21},{"$f":"[1]ACS_16_5YR_B17017_with_ann!H56","v":12},{"$f":"[1]ACS_16_5YR_B17017_with_ann!I56","v":20},{"$f":"[1]ACS_16_5YR_B17017_with_ann!J56","v":0},{"$f":"[1]ACS_16_5YR_B17017_with_ann!K56","v":12},{"$f":"[1]ACS_16_5YR_B17017_with_ann!L56","v":0},{"$f":"[1]ACS_16_5YR_B17017_with_ann!M56","v":12},{"$f":"[1]ACS_16_5YR_B17017_with_ann!N56","v":0},{"$f":"[1]ACS_16_5YR_B17017_with_ann!O56","v":12},{"$f":"[1]ACS_16_5YR_B17017_with_ann!P56","v":0},{"$f":"[1]ACS_16_5YR_B17017_with_ann!Q56","v":12},{"$f":"[1]ACS_16_5YR_B17017_with_ann!R56","v":0},{"$f":"[1]ACS_16_5YR_B17017_with_ann!S56","v":12},{"$f":"[1]ACS_16_5YR_B17017_with_ann!T56","v":12},{"$f":"[1]ACS_16_5YR_B17017_with_ann!U56","v":20},{"$f":"[1]ACS_16_5YR_B17017_with_ann!V56","v":0},{"$f":"[1]ACS_16_5YR_B17017_with_ann!W56","v":12},{"$f":"[1]ACS_16_5YR_B17017_with_ann!X56","v":0},{"$f":"[1]ACS_16_5YR_B17017_with_ann!Y56","v":12},{"$f":"[1]ACS_16_5YR_B17017_with_ann!Z56","v":0},{"$f":"[1]ACS_16_5YR_B17017_with_ann!AA56","v":12},{"$f":"[1]ACS_16_5YR_B17017_with_ann!AB56","v":0},{"$f":"[1]ACS_16_5YR_B17017_with_ann!AC56","v":12},{"$f":"[1]ACS_16_5YR_B17017_with_ann!AD56","v":0},{"$f":"[1]ACS_16_5YR_B17017_with_ann!AE56","v":12},{"$f":"[1]ACS_16_5YR_B17017_with_ann!AF56","v":12},{"$f":"[1]ACS_16_5YR_B17017_with_ann!AG56","v":20},{"$f":"[1]ACS_16_5YR_B17017_with_ann!AH56","v":0},{"$f":"[1]ACS_16_5YR_B17017_with_ann!AI56","v":12},{"$f":"[1]ACS_16_5YR_B17017_with_ann!AJ56","v":0},{"$f":"[1]ACS_16_5YR_B17017_with_ann!AK56","v":12},{"$f":"[1]ACS_16_5YR_B17017_with_ann!AL56","v":12},{"$f":"[1]ACS_16_5YR_B17017_with_ann!AM56","v":20},{"$f":"[1]ACS_16_5YR_B17017_with_ann!AN56","v":0},{"$f":"[1]ACS_16_5YR_B17017_with_ann!AO56","v":12},{"$f":"[1]ACS_16_5YR_B17017_with_ann!AP56","v":3},{"$f":"[1]ACS_16_5YR_B17017_with_ann!AQ56","v":5},{"$f":"[1]ACS_16_5YR_B17017_with_ann!AR56","v":0},{"$f":"[1]ACS_16_5YR_B17017_with_ann!AS56","v":12},{"$f":"[1]ACS_16_5YR_B17017_with_ann!AT56","v":0},{"$f":"[1]ACS_16_5YR_B17017_with_ann!AU56","v":12},{"$f":"[1]ACS_16_5YR_B17017_with_ann!AV56","v":0},{"$f":"[1]ACS_16_5YR_B17017_with_ann!AW56","v":12},{"$f":"[1]ACS_16_5YR_B17017_with_ann!AX56","v":0},{"$f":"[1]ACS_16_5YR_B17017_with_ann!AY56","v":12},{"$f":"[1]ACS_16_5YR_B17017_with_ann!AZ56","v":0},{"$f":"[1]ACS_16_5YR_B17017_with_ann!BA56","v":12},{"$f":"[1]ACS_16_5YR_B17017_with_ann!BB56","v":3},{"$f":"[1]ACS_16_5YR_B17017_with_ann!BC56","v":5},{"$f":"[1]ACS_16_5YR_B17017_with_ann!BD56","v":0},{"$f":"[1]ACS_16_5YR_B17017_with_ann!BE56","v":12},{"$f":"[1]ACS_16_5YR_B17017_with_ann!BF56","v":0},{"$f":"[1]ACS_16_5YR_B17017_with_ann!BG56","v":12},{"$f":"[1]ACS_16_5YR_B17017_with_ann!BH56","v":0},{"$f":"[1]ACS_16_5YR_B17017_with_ann!BI56","v":12},{"$f":"[1]ACS_16_5YR_B17017_with_ann!BJ56","v":3},{"$f":"[1]ACS_16_5YR_B17017_with_ann!BK56","v":5},{"$f":"[1]ACS_16_5YR_B17017_with_ann!BL56","v":378},{"$f":"[1]ACS_16_5YR_B17017_with_ann!BM56","v":72},{"$f":"[1]ACS_16_5YR_B17017_with_ann!BN56","v":304},{"$f":"[1]ACS_16_5YR_B17017_with_ann!BO56","v":67},{"$f":"[1]ACS_16_5YR_B17017_with_ann!BP56","v":245},{"$f":"[1]ACS_16_5YR_B17017_with_ann!BQ56","v":57},{"$f":"[1]ACS_16_5YR_B17017_with_ann!BR56","v":0},{"$f":"[1]ACS_16_5YR_B17017_with_ann!BS56","v":12},{"$f":"[1]ACS_16_5YR_B17017_with_ann!BT56","v":54},{"$f":"[1]ACS_16_5YR_B17017_with_ann!BU56","v":25},{"$f":"[1]ACS_16_5YR_B17017_with_ann!BV56","v":125},{"$f":"[1]ACS_16_5YR_B17017_with_ann!BW56","v":43},{"$f":"[1]ACS_16_5YR_B17017_with_ann!BX56","v":66},{"$f":"[1]ACS_16_5YR_B17017_with_ann!BY56","v":24},{"$f":"[1]ACS_16_5YR_B17017_with_ann!BZ56","v":59},{"$f":"[1]ACS_16_5YR_B17017_with_ann!CA56","v":36},{"$f":"[1]ACS_16_5YR_B17017_with_ann!CB56","v":41},{"$f":"[1]ACS_16_5YR_B17017_with_ann!CC56","v":37},{"$f":"[1]ACS_16_5YR_B17017_with_ann!CD56","v":0},{"$f":"[1]ACS_16_5YR_B17017_with_ann!CE56","v":12},{"$f":"[1]ACS_16_5YR_B17017_with_ann!CF56","v":8},{"$f":"[1]ACS_16_5YR_B17017_with_ann!CG56","v":13},{"$f":"[1]ACS_16_5YR_B17017_with_ann!CH56","v":11},{"$f":"[1]ACS_16_5YR_B17017_with_ann!CI56","v":15},{"$f":"[1]ACS_16_5YR_B17017_with_ann!CJ56","v":22},{"$f":"[1]ACS_16_5YR_B17017_with_ann!CK56","v":30},{"$f":"[1]ACS_16_5YR_B17017_with_ann!CL56","v":18},{"$f":"[1]ACS_16_5YR_B17017_with_ann!CM56","v":14},{"$f":"[1]ACS_16_5YR_B17017_with_ann!CN56","v":0},{"$f":"[1]ACS_16_5YR_B17017_with_ann!CO56","v":12},{"$f":"[1]ACS_16_5YR_B17017_with_ann!CP56","v":0},{"$f":"[1]ACS_16_5YR_B17017_with_ann!CQ56","v":12},{"$f":"[1]ACS_16_5YR_B17017_with_ann!CR56","v":11},{"$f":"[1]ACS_16_5YR_B17017_with_ann!CS56","v":10},{"$f":"[1]ACS_16_5YR_B17017_with_ann!CT56","v":7},{"$f":"[1]ACS_16_5YR_B17017_with_ann!CU56","v":8},{"$f":"[1]ACS_16_5YR_B17017_with_ann!CV56","v":74},{"$f":"[1]ACS_16_5YR_B17017_with_ann!CW56","v":28},{"$f":"[1]ACS_16_5YR_B17017_with_ann!CX56","v":48},{"$f":"[1]ACS_16_5YR_B17017_with_ann!CY56","v":24},{"$f":"[1]ACS_16_5YR_B17017_with_ann!CZ56","v":0},{"$f":"[1]ACS_16_5YR_B17017_with_ann!DA56","v":12},{"$f":"[1]ACS_16_5YR_B17017_with_ann!DB56","v":3},{"$f":"[1]ACS_16_5YR_B17017_with_ann!DC56","v":5},{"$f":"[1]ACS_16_5YR_B17017_with_ann!DD56","v":14},{"$f":"[1]ACS_16_5YR_B17017_with_ann!DE56","v":12},{"$f":"[1]ACS_16_5YR_B17017_with_ann!DF56","v":31},{"$f":"[1]ACS_16_5YR_B17017_with_ann!DG56","v":20},{"$f":"[1]ACS_16_5YR_B17017_with_ann!DH56","v":26},{"$f":"[1]ACS_16_5YR_B17017_with_ann!DI56","v":16},{"$f":"[1]ACS_16_5YR_B17017_with_ann!DJ56","v":0},{"$f":"[1]ACS_16_5YR_B17017_with_ann!DK56","v":12},{"$f":"[1]ACS_16_5YR_B17017_with_ann!DL56","v":2},{"$f":"[1]ACS_16_5YR_B17017_with_ann!DM56","v":4},{"$f":"[1]ACS_16_5YR_B17017_with_ann!DN56","v":0},{"$f":"[1]ACS_16_5YR_B17017_with_ann!DO56","v":12},{"$f":"[1]ACS_16_5YR_B17017_with_ann!DP56","v":24},{"$f":"[1]ACS_16_5YR_B17017_with_ann!DQ56","v":16}]
["06000US3300564580","0600000US3300565700","060",{"$f":"[1]ACS_16_5YR_B17017_with_ann!C57","v":"Rindge"},{"$f":"[1]ACS_16_5YR_B17017_with_ann!D57","v":1972},{"$f":"[1]ACS_16_5YR_B17017_with_ann!E57","v":144},{"$f":"[1]ACS_16_5YR_B17017_with_ann!F57","v":93},{"$f":"[1]ACS_16_5YR_B17017_with_ann!G57","v":56},{"$f":"[1]ACS_16_5YR_B17017_with_ann!H57","v":79},{"$f":"[1]ACS_16_5YR_B17017_with_ann!I57","v":55},{"$f":"[1]ACS_16_5YR_B17017_with_ann!J57","v":59},{"$f":"[1]ACS_16_5YR_B17017_with_ann!K57","v":48},{"$f":"[1]ACS_16_5YR_B17017_with_ann!L57","v":20},{"$f":"[1]ACS_16_5YR_B17017_with_ann!M57","v":31},{"$f":"[1]ACS_16_5YR_B17017_with_ann!N57","v":10},{"$f":"[1]ACS_16_5YR_B17017_with_ann!O57","v":18},{"$f":"[1]ACS_16_5YR_B17017_with_ann!P57","v":29},{"$f":"[1]ACS_16_5YR_B17017_with_ann!Q57","v":36},{"$f":"[1]ACS_16_5YR_B17017_with_ann!R57","v":0},{"$f":"[1]ACS_16_5YR_B17017_with_ann!S57","v":17},{"$f":"[1]ACS_16_5YR_B17017_with_ann!T57","v":20},{"$f":"[1]ACS_16_5YR_B17017_with_ann!U57","v":24},{"$f":"[1]ACS_16_5YR_B17017_with_ann!V57","v":0},{"$f":"[1]ACS_16_5YR_B17017_with_ann!W57","v":17},{"$f":"[1]ACS_16_5YR_B17017_with_ann!X57","v":0},{"$f":"[1]ACS_16_5YR_B17017_with_ann!Y57","v":17},{"$f":"[1]ACS_16_5YR_B17017_with_ann!Z57","v":0},{"$f":"[1]ACS_16_5YR_B17017_with_ann!AA57","v":17},{"$f":"[1]ACS_16_5YR_B17017_with_ann!AB57","v":0},{"$f":"[1]ACS_16_5YR_B17017_with_ann!AC57","v":17},{"$f":"[1]ACS_16_5YR_B17017_with_ann!AD57","v":0},{"$f":"[1]ACS_16_5YR_B17017_with_ann!AE57","v":17},{"$f":"[1]ACS_16_5YR_B17017_with_ann!AF57","v":20},{"$f":"[1]ACS_16_5YR_B17017_with_ann!AG57","v":24},{"$f":"[1]ACS_16_5YR_B17017_with_ann!AH57","v":0},{"$f":"[1]ACS_16_5YR_B17017_with_ann!AI57","v":17},{"$f":"[1]ACS_16_5YR_B17017_with_ann!AJ57","v":20},{"$f":"[1]ACS_16_5YR_B17017_with_ann!AK57","v":24},{"$f":"[1]ACS_16_5YR_B17017_with_ann!AL57","v":0},{"$f":"[1]ACS_16_5YR_B17017_with_ann!AM57","v":17},{"$f":"[1]ACS_16_5YR_B17017_with_ann!AN57","v":0},{"$f":"[1]ACS_16_5YR_B17017_with_ann!AO57","v":17},{"$f":"[1]ACS_16_5YR_B17017_with_ann!AP57","v":14},{"$f":"[1]ACS_16_5YR_B17017_with_ann!AQ57","v":17},{"$f":"[1]ACS_16_5YR_B17017_with_ann!AR57","v":0},{"$f":"[1]ACS_16_5YR_B17017_with_ann!AS57","v":17},{"$f":"[1]ACS_16_5YR_B17017_with_ann!AT57","v":0},{"$f":"[1]ACS_16_5YR_B17017_with_ann!AU57","v":17},{"$f":"[1]ACS_16_5YR_B17017_with_ann!AV57","v":0},{"$f":"[1]ACS_16_5YR_B17017_with_ann!AW57","v":17},{"$f":"[1]ACS_16_5YR_B17017_with_ann!AX57","v":0},{"$f":"[1]ACS_16_5YR_B17017_with_ann!AY57","v":17},{"$f":"[1]ACS_16_5YR_B17017_with_ann!AZ57","v":0},{"$f":"[1]ACS_16_5YR_B17017_with_ann!BA57","v":17},{"$f":"[1]ACS_16_5YR_B17017_with_ann!BB57","v":14},{"$f":"[1]ACS_16_5YR_B17017_with_ann!BC57","v":17},{"$f":"[1]ACS_16_5YR_B17017_with_ann!BD57","v":0},{"$f":"[1]ACS_16_5YR_B17017_with_ann!BE57","v":17},{"$f":"[1]ACS_16_5YR_B17017_with_ann!BF57","v":0},{"$f":"[1]ACS_16_5YR_B17017_with_ann!BG57","v":17},{"$f":"[1]ACS_16_5YR_B17017_with_ann!BH57","v":0},{"$f":"[1]ACS_16_5YR_B17017_with_ann!BI57","v":17},{"$f":"[1]ACS_16_5YR_B17017_with_ann!BJ57","v":14},{"$f":"[1]ACS_16_5YR_B17017_with_ann!BK57","v":17},{"$f":"[1]ACS_16_5YR_B17017_with_ann!BL57","v":1879},{"$f":"[1]ACS_16_5YR_B17017_with_ann!BM57","v":156},{"$f":"[1]ACS_16_5YR_B17017_with_ann!BN57","v":1372},{"$f":"[1]ACS_16_5YR_B17017_with_ann!BO57","v":129},{"$f":"[1]ACS_16_5YR_B17017_with_ann!BP57","v":1309},{"$f":"[1]ACS_16_5YR_B17017_with_ann!BQ57","v":127},{"$f":"[1]ACS_16_5YR_B17017_with_ann!BR57","v":7},{"$f":"[1]ACS_16_5YR_B17017_with_ann!BS57","v":11},{"$f":"[1]ACS_16_5YR_B17017_with_ann!BT57","v":369},{"$f":"[1]ACS_16_5YR_B17017_with_ann!BU57","v":78},{"$f":"[1]ACS_16_5YR_B17017_with_ann!BV57","v":548},{"$f":"[1]ACS_16_5YR_B17017_with_ann!BW57","v":113},{"$f":"[1]ACS_16_5YR_B17017_with_ann!BX57","v":385},{"$f":"[1]ACS_16_5YR_B17017_with_ann!BY57","v":108},{"$f":"[1]ACS_16_5YR_B17017_with_ann!BZ57","v":63},{"$f":"[1]ACS_16_5YR_B17017_with_ann!CA57","v":41},{"$f":"[1]ACS_16_5YR_B17017_with_ann!CB57","v":35},{"$f":"[1]ACS_16_5YR_B17017_with_ann!CC57","v":38},{"$f":"[1]ACS_16_5YR_B17017_with_ann!CD57","v":0},{"$f":"[1]ACS_16_5YR_B17017_with_ann!CE57","v":17},{"$f":"[1]ACS_16_5YR_B17017_with_ann!CF57","v":35},{"$f":"[1]ACS_16_5YR_B17017_with_ann!CG57","v":38},{"$f":"[1]ACS_16_5YR_B17017_with_ann!CH57","v":0},{"$f":"[1]ACS_16_5YR_B17017_with_ann!CI57","v":17},{"$f":"[1]ACS_16_5YR_B17017_with_ann!CJ57","v":0},{"$f":"[1]ACS_16_5YR_B17017_with_ann!CK57","v":17},{"$f":"[1]ACS_16_5YR_B17017_with_ann!CL57","v":28},{"$f":"[1]ACS_16_5YR_B17017_with_ann!CM57","v":32},{"$f":"[1]ACS_16_5YR_B17017_with_ann!CN57","v":0},{"$f":"[1]ACS_16_5YR_B17017_with_ann!CO57","v":17},{"$f":"[1]ACS_16_5YR_B17017_with_ann!CP57","v":0},{"$f":"[1]ACS_16_5YR_B17017_with_ann!CQ57","v":17},{"$f":"[1]ACS_16_5YR_B17017_with_ann!CR57","v":28},{"$f":"[1]ACS_16_5YR_B17017_with_ann!CS57","v":32},{"$f":"[1]ACS_16_5YR_B17017_with_ann!CT57","v":0},{"$f":"[1]ACS_16_5YR_B17017_with_ann!CU57","v":17},{"$f":"[1]ACS_16_5YR_B17017_with_ann!CV57","v":507},{"$f":"[1]ACS_16_5YR_B17017_with_ann!CW57","v":144},{"$f":"[1]ACS_16_5YR_B17017_with_ann!CX57","v":290},{"$f":"[1]ACS_16_5YR_B17017_with_ann!CY57","v":110},{"$f":"[1]ACS_16_5YR_B17017_with_ann!CZ57","v":14},{"$f":"[1]ACS_16_5YR_B17017_with_ann!DA57","v":23},{"$f":"[1]ACS_16_5YR_B17017_with_ann!DB57","v":115},{"$f":"[1]ACS_16_5YR_B17017_with_ann!DC57","v":87},{"$f":"[1]ACS_16_5YR_B17017_with_ann!DD57","v":96},{"$f":"[1]ACS_16_5YR_B17017_with_ann!DE57","v":65},{"$f":"[1]ACS_16_5YR_B17017_with_ann!DF57","v":65},{"$f":"[1]ACS_16_5YR_B17017_with_ann!DG57","v":44},{"$f":"[1]ACS_16_5YR_B17017_with_ann!DH57","v":217},{"$f":"[1]ACS_16_5YR_B17017_with_ann!DI57","v":96},{"$f":"[1]ACS_16_5YR_B17017_with_ann!DJ57","v":0},{"$f":"[1]ACS_16_5YR_B17017_with_ann!DK57","v":17},{"$f":"[1]ACS_16_5YR_B17017_with_ann!DL57","v":34},{"$f":"[1]ACS_16_5YR_B17017_with_ann!DM57","v":41},{"$f":"[1]ACS_16_5YR_B17017_with_ann!DN57","v":65},{"$f":"[1]ACS_16_5YR_B17017_with_ann!DO57","v":47},{"$f":"[1]ACS_16_5YR_B17017_with_ann!DP57","v":118},{"$f":"[1]ACS_16_5YR_B17017_with_ann!DQ57","v":76}]
["06000US3300565700","0600000US3300573700","060",{"$f":"[1]ACS_16_5YR_B17017_with_ann!C58","v":"Roxbury"},{"$f":"[1]ACS_16_5YR_B17017_with_ann!D58","v":95},{"$f":"[1]ACS_16_5YR_B17017_with_ann!E58","v":37},{"$f":"[1]ACS_16_5YR_B17017_with_ann!F58","v":2},{"$f":"[1]ACS_16_5YR_B17017_with_ann!G58","v":3},{"$f":"[1]ACS_16_5YR_B17017_with_ann!H58","v":0},{"$f":"[1]ACS_16_5YR_B17017_with_ann!I58","v":12},{"$f":"[1]ACS_16_5YR_B17017_with_ann!J58","v":0},{"$f":"[1]ACS_16_5YR_B17017_with_ann!K58","v":12},{"$f":"[1]ACS_16_5YR_B17017_with_ann!L58","v":0},{"$f":"[1]ACS_16_5YR_B17017_with_ann!M58","v":12},{"$f":"[1]ACS_16_5YR_B17017_with_ann!N58","v":0},{"$f":"[1]ACS_16_5YR_B17017_with_ann!O58","v":12},{"$f":"[1]ACS_16_5YR_B17017_with_ann!P58","v":0},{"$f":"[1]ACS_16_5YR_B17017_with_ann!Q58","v":12},{"$f":"[1]ACS_16_5YR_B17017_with_ann!R58","v":0},{"$f":"[1]ACS_16_5YR_B17017_with_ann!S58","v":12},{"$f":"[1]ACS_16_5YR_B17017_with_ann!T58","v":0},{"$f":"[1]ACS_16_5YR_B17017_with_ann!U58","v":12},{"$f":"[1]ACS_16_5YR_B17017_with_ann!V58","v":0},{"$f":"[1]ACS_16_5YR_B17017_with_ann!W58","v":12},{"$f":"[1]ACS_16_5YR_B17017_with_ann!X58","v":0},{"$f":"[1]ACS_16_5YR_B17017_with_ann!Y58","v":12},{"$f":"[1]ACS_16_5YR_B17017_with_ann!Z58","v":0},{"$f":"[1]ACS_16_5YR_B17017_with_ann!AA58","v":12},{"$f":"[1]ACS_16_5YR_B17017_with_ann!AB58","v":0},{"$f":"[1]ACS_16_5YR_B17017_with_ann!AC58","v":12},{"$f":"[1]ACS_16_5YR_B17017_with_ann!AD58","v":0},{"$f":"[1]ACS_16_5YR_B17017_with_ann!AE58","v":12},{"$f":"[1]ACS_16_5YR_B17017_with_ann!AF58","v":0},{"$f":"[1]ACS_16_5YR_B17017_with_ann!AG58","v":12},{"$f":"[1]ACS_16_5YR_B17017_with_ann!AH58","v":0},{"$f":"[1]ACS_16_5YR_B17017_with_ann!AI58","v":12},{"$f":"[1]ACS_16_5YR_B17017_with_ann!AJ58","v":0},{"$f":"[1]ACS_16_5YR_B17017_with_ann!AK58","v":12},{"$f":"[1]ACS_16_5YR_B17017_with_ann!AL58","v":0},{"$f":"[1]ACS_16_5YR_B17017_with_ann!AM58","v":12},{"$f":"[1]ACS_16_5YR_B17017_with_ann!AN58","v":0},{"$f":"[1]ACS_16_5YR_B17017_with_ann!AO58","v":12},{"$f":"[1]ACS_16_5YR_B17017_with_ann!AP58","v":2},{"$f":"[1]ACS_16_5YR_B17017_with_ann!AQ58","v":3},{"$f":"[1]ACS_16_5YR_B17017_with_ann!AR58","v":1},{"$f":"[1]ACS_16_5YR_B17017_with_ann!AS58","v":3},{"$f":"[1]ACS_16_5YR_B17017_with_ann!AT58","v":0},{"$f":"[1]ACS_16_5YR_B17017_with_ann!AU58","v":12},{"$f":"[1]ACS_16_5YR_B17017_with_ann!AV58","v":1},{"$f":"[1]ACS_16_5YR_B17017_with_ann!AW58","v":3},{"$f":"[1]ACS_16_5YR_B17017_with_ann!AX58","v":0},{"$f":"[1]ACS_16_5YR_B17017_with_ann!AY58","v":12},{"$f":"[1]ACS_16_5YR_B17017_with_ann!AZ58","v":0},{"$f":"[1]ACS_16_5YR_B17017_with_ann!BA58","v":12},{"$f":"[1]ACS_16_5YR_B17017_with_ann!BB58","v":1},{"$f":"[1]ACS_16_5YR_B17017_with_ann!BC58","v":2},{"$f":"[1]ACS_16_5YR_B17017_with_ann!BD58","v":0},{"$f":"[1]ACS_16_5YR_B17017_with_ann!BE58","v":12},{"$f":"[1]ACS_16_5YR_B17017_with_ann!BF58","v":0},{"$f":"[1]ACS_16_5YR_B17017_with_ann!BG58","v":12},{"$f":"[1]ACS_16_5YR_B17017_with_ann!BH58","v":0},{"$f":"[1]ACS_16_5YR_B17017_with_ann!BI58","v":12},{"$f":"[1]ACS_16_5YR_B17017_with_ann!BJ58","v":1},{"$f":"[1]ACS_16_5YR_B17017_with_ann!BK58","v":2},{"$f":"[1]ACS_16_5YR_B17017_with_ann!BL58","v":93},{"$f":"[1]ACS_16_5YR_B17017_with_ann!BM58","v":37},{"$f":"[1]ACS_16_5YR_B17017_with_ann!BN58","v":66},{"$f":"[1]ACS_16_5YR_B17017_with_ann!BO58","v":37},{"$f":"[1]ACS_16_5YR_B17017_with_ann!BP58","v":57},{"$f":"[1]ACS_16_5YR_B17017_with_ann!BQ58","v":37},{"$f":"[1]ACS_16_5YR_B17017_with_ann!BR58","v":0},{"$f":"[1]ACS_16_5YR_B17017_with_ann!BS58","v":12},{"$f":"[1]ACS_16_5YR_B17017_with_ann!BT58","v":8},{"$f":"[1]ACS_16_5YR_B17017_with_ann!BU58","v":5},{"$f":"[1]ACS_16_5YR_B17017_with_ann!BV58","v":39},{"$f":"[1]ACS_16_5YR_B17017_with_ann!BW58","v":36},{"$f":"[1]ACS_16_5YR_B17017_with_ann!BX58","v":10},{"$f":"[1]ACS_16_5YR_B17017_with_ann!BY58","v":6},{"$f":"[1]ACS_16_5YR_B17017_with_ann!BZ58","v":9},{"$f":"[1]ACS_16_5YR_B17017_with_ann!CA58","v":11},{"$f":"[1]ACS_16_5YR_B17017_with_ann!CB58","v":8},{"$f":"[1]ACS_16_5YR_B17017_with_ann!CC58","v":11},{"$f":"[1]ACS_16_5YR_B17017_with_ann!CD58","v":0},{"$f":"[1]ACS_16_5YR_B17017_with_ann!CE58","v":12},{"$f":"[1]ACS_16_5YR_B17017_with_ann!CF58","v":0},{"$f":"[1]ACS_16_5YR_B17017_with_ann!CG58","v":12},{"$f":"[1]ACS_16_5YR_B17017_with_ann!CH58","v":7},{"$f":"[1]ACS_16_5YR_B17017_with_ann!CI58","v":10},{"$f":"[1]ACS_16_5YR_B17017_with_ann!CJ58","v":1},{"$f":"[1]ACS_16_5YR_B17017_with_ann!CK58","v":2},{"$f":"[1]ACS_16_5YR_B17017_with_ann!CL58","v":1},{"$f":"[1]ACS_16_5YR_B17017_with_ann!CM58","v":2},{"$f":"[1]ACS_16_5YR_B17017_with_ann!CN58","v":0},{"$f":"[1]ACS_16_5YR_B17017_with_ann!CO58","v":12},{"$f":"[1]ACS_16_5YR_B17017_with_ann!CP58","v":0},{"$f":"[1]ACS_16_5YR_B17017_with_ann!CQ58","v":12},{"$f":"[1]ACS_16_5YR_B17017_with_ann!CR58","v":0},{"$f":"[1]ACS_16_5YR_B17017_with_ann!CS58","v":12},{"$f":"[1]ACS_16_5YR_B17017_with_ann!CT58","v":1},{"$f":"[1]ACS_16_5YR_B17017_with_ann!CU58","v":2},{"$f":"[1]ACS_16_5YR_B17017_with_ann!CV58","v":27},{"$f":"[1]ACS_16_5YR_B17017_with_ann!CW58","v":12},{"$f":"[1]ACS_16_5YR_B17017_with_ann!CX58","v":13},{"$f":"[1]ACS_16_5YR_B17017_with_ann!CY58","v":10},{"$f":"[1]ACS_16_5YR_B17017_with_ann!CZ58","v":0},{"$f":"[1]ACS_16_5YR_B17017_with_ann!DA58","v":12},{"$f":"[1]ACS_16_5YR_B17017_with_ann!DB58","v":5},{"$f":"[1]ACS_16_5YR_B17017_with_ann!DC58","v":7},{"$f":"[1]ACS_16_5YR_B17017_with_ann!DD58","v":7},{"$f":"[1]ACS_16_5YR_B17017_with_ann!DE58","v":8},{"$f":"[1]ACS_16_5YR_B17017_with_ann!DF58","v":1},{"$f":"[1]ACS_16_5YR_B17017_with_ann!DG58","v":2},{"$f":"[1]ACS_16_5YR_B17017_with_ann!DH58","v":14},{"$f":"[1]ACS_16_5YR_B17017_with_ann!DI58","v":9},{"$f":"[1]ACS_16_5YR_B17017_with_ann!DJ58","v":0},{"$f":"[1]ACS_16_5YR_B17017_with_ann!DK58","v":12},{"$f":"[1]ACS_16_5YR_B17017_with_ann!DL58","v":2},{"$f":"[1]ACS_16_5YR_B17017_with_ann!DM58","v":3},{"$f":"[1]ACS_16_5YR_B17017_with_ann!DN58","v":4},{"$f":"[1]ACS_16_5YR_B17017_with_ann!DO58","v":4},{"$f":"[1]ACS_16_5YR_B17017_with_ann!DP58","v":8},{"$f":"[1]ACS_16_5YR_B17017_with_ann!DQ58","v":7}]
["06000US3300573700","0600000US3300574900","060",{"$f":"[1]ACS_16_5YR_B17017_with_ann!C59","v":"Stoddard"},{"$f":"[1]ACS_16_5YR_B17017_with_ann!D59","v":436},{"$f":"[1]ACS_16_5YR_B17017_with_ann!E59","v":52},{"$f":"[1]ACS_16_5YR_B17017_with_ann!F59","v":17},{"$f":"[1]ACS_16_5YR_B17017_with_ann!G59","v":15},{"$f":"[1]ACS_16_5YR_B17017_with_ann!H59","v":5},{"$f":"[1]ACS_16_5YR_B17017_with_ann!I59","v":8},{"$f":"[1]ACS_16_5YR_B17017_with_ann!J59","v":0},{"$f":"[1]ACS_16_5YR_B17017_with_ann!K59","v":12},{"$f":"[1]ACS_16_5YR_B17017_with_ann!L59","v":0},{"$f":"[1]ACS_16_5YR_B17017_with_ann!M59","v":12},{"$f":"[1]ACS_16_5YR_B17017_with_ann!N59","v":0},{"$f":"[1]ACS_16_5YR_B17017_with_ann!O59","v":12},{"$f":"[1]ACS_16_5YR_B17017_with_ann!P59","v":0},{"$f":"[1]ACS_16_5YR_B17017_with_ann!Q59","v":12},{"$f":"[1]ACS_16_5YR_B17017_with_ann!R59","v":0},{"$f":"[1]ACS_16_5YR_B17017_with_ann!S59","v":12},{"$f":"[1]ACS_16_5YR_B17017_with_ann!T59","v":5},{"$f":"[1]ACS_16_5YR_B17017_with_ann!U59","v":8},{"$f":"[1]ACS_16_5YR_B17017_with_ann!V59","v":5},{"$f":"[1]ACS_16_5YR_B17017_with_ann!W59","v":8},{"$f":"[1]ACS_16_5YR_B17017_with_ann!X59","v":0},{"$f":"[1]ACS_16_5YR_B17017_with_ann!Y59","v":12},{"$f":"[1]ACS_16_5YR_B17017_with_ann!Z59","v":0},{"$f":"[1]ACS_16_5YR_B17017_with_ann!AA59","v":12},{"$f":"[1]ACS_16_5YR_B17017_with_ann!AB59","v":5},{"$f":"[1]ACS_16_5YR_B17017_with_ann!AC59","v":8},{"$f":"[1]ACS_16_5YR_B17017_with_ann!AD59","v":0},{"$f":"[1]ACS_16_5YR_B17017_with_ann!AE59","v":12},{"$f":"[1]ACS_16_5YR_B17017_with_ann!AF59","v":0},{"$f":"[1]ACS_16_5YR_B17017_with_ann!AG59","v":12},{"$f":"[1]ACS_16_5YR_B17017_with_ann!AH59","v":0},{"$f":"[1]ACS_16_5YR_B17017_with_ann!AI59","v":12},{"$f":"[1]ACS_16_5YR_B17017_with_ann!AJ59","v":0},{"$f":"[1]ACS_16_5YR_B17017_with_ann!AK59","v":12},{"$f":"[1]ACS_16_5YR_B17017_with_ann!AL59","v":0},{"$f":"[1]ACS_16_5YR_B17017_with_ann!AM59","v":12},{"$f":"[1]ACS_16_5YR_B17017_with_ann!AN59","v":0},{"$f":"[1]ACS_16_5YR_B17017_with_ann!AO59","v":12},{"$f":"[1]ACS_16_5YR_B17017_with_ann!AP59","v":12},{"$f":"[1]ACS_16_5YR_B17017_with_ann!AQ59","v":14},{"$f":"[1]ACS_16_5YR_B17017_with_ann!AR59","v":10},{"$f":"[1]ACS_16_5YR_B17017_with_ann!AS59","v":13},{"$f":"[1]ACS_16_5YR_B17017_with_ann!AT59","v":0},{"$f":"[1]ACS_16_5YR_B17017_with_ann!AU59","v":12},{"$f":"[1]ACS_16_5YR_B17017_with_ann!AV59","v":0},{"$f":"[1]ACS_16_5YR_B17017_with_ann!AW59","v":12},{"$f":"[1]ACS_16_5YR_B17017_with_ann!AX59","v":10},{"$f":"[1]ACS_16_5YR_B17017_with_ann!AY59","v":13},{"$f":"[1]ACS_16_5YR_B17017_with_ann!AZ59","v":0},{"$f":"[1]ACS_16_5YR_B17017_with_ann!BA59","v":12},{"$f":"[1]ACS_16_5YR_B17017_with_ann!BB59","v":2},{"$f":"[1]ACS_16_5YR_B17017_with_ann!BC59","v":4},{"$f":"[1]ACS_16_5YR_B17017_with_ann!BD59","v":0},{"$f":"[1]ACS_16_5YR_B17017_with_ann!BE59","v":12},{"$f":"[1]ACS_16_5YR_B17017_with_ann!BF59","v":0},{"$f":"[1]ACS_16_5YR_B17017_with_ann!BG59","v":12},{"$f":"[1]ACS_16_5YR_B17017_with_ann!BH59","v":0},{"$f":"[1]ACS_16_5YR_B17017_with_ann!BI59","v":12},{"$f":"[1]ACS_16_5YR_B17017_with_ann!BJ59","v":2},{"$f":"[1]ACS_16_5YR_B17017_with_ann!BK59","v":4},{"$f":"[1]ACS_16_5YR_B17017_with_ann!BL59","v":419},{"$f":"[1]ACS_16_5YR_B17017_with_ann!BM59","v":53},{"$f":"[1]ACS_16_5YR_B17017_with_ann!BN59","v":292},{"$f":"[1]ACS_16_5YR_B17017_with_ann!BO59","v":46},{"$f":"[1]ACS_16_5YR_B17017_with_ann!BP59","v":259},{"$f":"[1]ACS_16_5YR_B17017_with_ann!BQ59","v":45},{"$f":"[1]ACS_16_5YR_B17017_with_ann!BR59","v":5},{"$f":"[1]ACS_16_5YR_B17017_with_ann!BS59","v":9},{"$f":"[1]ACS_16_5YR_B17017_with_ann!BT59","v":53},{"$f":"[1]ACS_16_5YR_B17017_with_ann!BU59","v":23},{"$f":"[1]ACS_16_5YR_B17017_with_ann!BV59","v":131},{"$f":"[1]ACS_16_5YR_B17017_with_ann!BW59","v":35},{"$f":"[1]ACS_16_5YR_B17017_with_ann!BX59","v":70},{"$f":"[1]ACS_16_5YR_B17017_with_ann!BY59","v":23},{"$f":"[1]ACS_16_5YR_B17017_with_ann!BZ59","v":33},{"$f":"[1]ACS_16_5YR_B17017_with_ann!CA59","v":20},{"$f":"[1]ACS_16_5YR_B17017_with_ann!CB59","v":14},{"$f":"[1]ACS_16_5YR_B17017_with_ann!CC59","v":15},{"$f":"[1]ACS_16_5YR_B17017_with_ann!CD59","v":0},{"$f":"[1]ACS_16_5YR_B17017_with_ann!CE59","v":12},{"$f":"[1]ACS_16_5YR_B17017_with_ann!CF59","v":11},{"$f":"[1]ACS_16_5YR_B17017_with_ann!CG59","v":14},{"$f":"[1]ACS_16_5YR_B17017_with_ann!CH59","v":3},{"$f":"[1]ACS_16_5YR_B17017_with_ann!CI59","v":4},{"$f":"[1]ACS_16_5YR_B17017_with_ann!CJ59","v":0},{"$f":"[1]ACS_16_5YR_B17017_with_ann!CK59","v":12},{"$f":"[1]ACS_16_5YR_B17017_with_ann!CL59","v":19},{"$f":"[1]ACS_16_5YR_B17017_with_ann!CM59","v":13},{"$f":"[1]ACS_16_5YR_B17017_with_ann!CN59","v":0},{"$f":"[1]ACS_16_5YR_B17017_with_ann!CO59","v":12},{"$f":"[1]ACS_16_5YR_B17017_with_ann!CP59","v":4},{"$f":"[1]ACS_16_5YR_B17017_with_ann!CQ59","v":5},{"$f":"[1]ACS_16_5YR_B17017_with_ann!CR59","v":13},{"$f":"[1]ACS_16_5YR_B17017_with_ann!CS59","v":11},{"$f":"[1]ACS_16_5YR_B17017_with_ann!CT59","v":2},{"$f":"[1]ACS_16_5YR_B17017_with_ann!CU59","v":5},{"$f":"[1]ACS_16_5YR_B17017_with_ann!CV59","v":127},{"$f":"[1]ACS_16_5YR_B17017_with_ann!CW59","v":39},{"$f":"[1]ACS_16_5YR_B17017_with_ann!CX59","v":64},{"$f":"[1]ACS_16_5YR_B17017_with_ann!CY59","v":29},{"$f":"[1]ACS_16_5YR_B17017_with_ann!CZ59","v":0},{"$f":"[1]ACS_16_5YR_B17017_with_ann!DA59","v":12},{"$f":"[1]ACS_16_5YR_B17017_with_ann!DB59","v":7},{"$f":"[1]ACS_16_5YR_B17017_with_ann!DC59","v":6},{"$f":"[1]ACS_16_5YR_B17017_with_ann!DD59","v":37},{"$f":"[1]ACS_16_5YR_B17017_with_ann!DE59","v":27},{"$f":"[1]ACS_16_5YR_B17017_with_ann!DF59","v":20},{"$f":"[1]ACS_16_5YR_B17017_with_ann!DG59","v":12},{"$f":"[1]ACS_16_5YR_B17017_with_ann!DH59","v":63},{"$f":"[1]ACS_16_5YR_B17017_with_ann!DI59","v":24},{"$f":"[1]ACS_16_5YR_B17017_with_ann!DJ59","v":0},{"$f":"[1]ACS_16_5YR_B17017_with_ann!DK59","v":12},{"$f":"[1]ACS_16_5YR_B17017_with_ann!DL59","v":6},{"$f":"[1]ACS_16_5YR_B17017_with_ann!DM59","v":6},{"$f":"[1]ACS_16_5YR_B17017_with_ann!DN59","v":21},{"$f":"[1]ACS_16_5YR_B17017_with_ann!DO59","v":16},{"$f":"[1]ACS_16_5YR_B17017_with_ann!DP59","v":36},{"$f":"[1]ACS_16_5YR_B17017_with_ann!DQ59","v":15}]
["06000US3300574900","0600000US3300575300","060",{"$f":"[1]ACS_16_5YR_B17017_with_ann!C60","v":"Sullivan"},{"$f":"[1]ACS_16_5YR_B17017_with_ann!D60","v":281},{"$f":"[1]ACS_16_5YR_B17017_with_ann!E60","v":53},{"$f":"[1]ACS_16_5YR_B17017_with_ann!F60","v":14},{"$f":"[1]ACS_16_5YR_B17017_with_ann!G60","v":11},{"$f":"[1]ACS_16_5YR_B17017_with_ann!H60","v":3},{"$f":"[1]ACS_16_5YR_B17017_with_ann!I60","v":4},{"$f":"[1]ACS_16_5YR_B17017_with_ann!J60","v":3},{"$f":"[1]ACS_16_5YR_B17017_with_ann!K60","v":4},{"$f":"[1]ACS_16_5YR_B17017_with_ann!L60","v":0},{"$f":"[1]ACS_16_5YR_B17017_with_ann!M60","v":12},{"$f":"[1]ACS_16_5YR_B17017_with_ann!N60","v":0},{"$f":"[1]ACS_16_5YR_B17017_with_ann!O60","v":12},{"$f":"[1]ACS_16_5YR_B17017_with_ann!P60","v":3},{"$f":"[1]ACS_16_5YR_B17017_with_ann!Q60","v":4},{"$f":"[1]ACS_16_5YR_B17017_with_ann!R60","v":0},{"$f":"[1]ACS_16_5YR_B17017_with_ann!S60","v":12},{"$f":"[1]ACS_16_5YR_B17017_with_ann!T60","v":0},{"$f":"[1]ACS_16_5YR_B17017_with_ann!U60","v":12},{"$f":"[1]ACS_16_5YR_B17017_with_ann!V60","v":0},{"$f":"[1]ACS_16_5YR_B17017_with_ann!W60","v":12},{"$f":"[1]ACS_16_5YR_B17017_with_ann!X60","v":0},{"$f":"[1]ACS_16_5YR_B17017_with_ann!Y60","v":12},{"$f":"[1]ACS_16_5YR_B17017_with_ann!Z60","v":0},{"$f":"[1]ACS_16_5YR_B17017_with_ann!AA60","v":12},{"$f":"[1]ACS_16_5YR_B17017_with_ann!AB60","v":0},{"$f":"[1]ACS_16_5YR_B17017_with_ann!AC60","v":12},{"$f":"[1]ACS_16_5YR_B17017_with_ann!AD60","v":0},{"$f":"[1]ACS_16_5YR_B17017_with_ann!AE60","v":12},{"$f":"[1]ACS_16_5YR_B17017_with_ann!AF60","v":0},{"$f":"[1]ACS_16_5YR_B17017_with_ann!AG60","v":12},{"$f":"[1]ACS_16_5YR_B17017_with_ann!AH60","v":0},{"$f":"[1]ACS_16_5YR_B17017_with_ann!AI60","v":12},{"$f":"[1]ACS_16_5YR_B17017_with_ann!AJ60","v":0},{"$f":"[1]ACS_16_5YR_B17017_with_ann!AK60","v":12},{"$f":"[1]ACS_16_5YR_B17017_with_ann!AL60","v":0},{"$f":"[1]ACS_16_5YR_B17017_with_ann!AM60","v":12},{"$f":"[1]ACS_16_5YR_B17017_with_ann!AN60","v":0},{"$f":"[1]ACS_16_5YR_B17017_with_ann!AO60","v":12},{"$f":"[1]ACS_16_5YR_B17017_with_ann!AP60","v":11},{"$f":"[1]ACS_16_5YR_B17017_with_ann!AQ60","v":10},{"$f":"[1]ACS_16_5YR_B17017_with_ann!AR60","v":3},{"$f":"[1]ACS_16_5YR_B17017_with_ann!AS60","v":4},{"$f":"[1]ACS_16_5YR_B17017_with_ann!AT60","v":0},{"$f":"[1]ACS_16_5YR_B17017_with_ann!AU60","v":12},{"$f":"[1]ACS_16_5YR_B17017_with_ann!AV60","v":0},{"$f":"[1]ACS_16_5YR_B17017_with_ann!AW60","v":12},{"$f":"[1]ACS_16_5YR_B17017_with_ann!AX60","v":3},{"$f":"[1]ACS_16_5YR_B17017_with_ann!AY60","v":4},{"$f":"[1]ACS_16_5YR_B17017_with_ann!AZ60","v":0},{"$f":"[1]ACS_16_5YR_B17017_with_ann!BA60","v":12},{"$f":"[1]ACS_16_5YR_B17017_with_ann!BB60","v":8},{"$f":"[1]ACS_16_5YR_B17017_with_ann!BC60","v":9},{"$f":"[1]ACS_16_5YR_B17017_with_ann!BD60","v":0},{"$f":"[1]ACS_16_5YR_B17017_with_ann!BE60","v":12},{"$f":"[1]ACS_16_5YR_B17017_with_ann!BF60","v":0},{"$f":"[1]ACS_16_5YR_B17017_with_ann!BG60","v":12},{"$f":"[1]ACS_16_5YR_B17017_with_ann!BH60","v":0},{"$f":"[1]ACS_16_5YR_B17017_with_ann!BI60","v":12},{"$f":"[1]ACS_16_5YR_B17017_with_ann!BJ60","v":8},{"$f":"[1]ACS_16_5YR_B17017_with_ann!BK60","v":9},{"$f":"[1]ACS_16_5YR_B17017_with_ann!BL60","v":267},{"$f":"[1]ACS_16_5YR_B17017_with_ann!BM60","v":53},{"$f":"[1]ACS_16_5YR_B17017_with_ann!BN60","v":193},{"$f":"[1]ACS_16_5YR_B17017_with_ann!BO60","v":45},{"$f":"[1]ACS_16_5YR_B17017_with_ann!BP60","v":164},{"$f":"[1]ACS_16_5YR_B17017_with_ann!BQ60","v":45},{"$f":"[1]ACS_16_5YR_B17017_with_ann!BR60","v":0},{"$f":"[1]ACS_16_5YR_B17017_with_ann!BS60","v":12},{"$f":"[1]ACS_16_5YR_B17017_with_ann!BT60","v":60},{"$f":"[1]ACS_16_5YR_B17017_with_ann!BU60","v":38},{"$f":"[1]ACS_16_5YR_B17017_with_ann!BV60","v":74},{"$f":"[1]ACS_16_5YR_B17017_with_ann!BW60","v":23},{"$f":"[1]ACS_16_5YR_B17017_with_ann!BX60","v":30},{"$f":"[1]ACS_16_5YR_B17017_with_ann!BY60","v":10},{"$f":"[1]ACS_16_5YR_B17017_with_ann!BZ60","v":29},{"$f":"[1]ACS_16_5YR_B17017_with_ann!CA60","v":19},{"$f":"[1]ACS_16_5YR_B17017_with_ann!CB60","v":21},{"$f":"[1]ACS_16_5YR_B17017_with_ann!CC60","v":17},{"$f":"[1]ACS_16_5YR_B17017_with_ann!CD60","v":0},{"$f":"[1]ACS_16_5YR_B17017_with_ann!CE60","v":12},{"$f":"[1]ACS_16_5YR_B17017_with_ann!CF60","v":4},{"$f":"[1]ACS_16_5YR_B17017_with_ann!CG60","v":5},{"$f":"[1]ACS_16_5YR_B17017_with_ann!CH60","v":2},{"$f":"[1]ACS_16_5YR_B17017_with_ann!CI60","v":3},{"$f":"[1]ACS_16_5YR_B17017_with_ann!CJ60","v":15},{"$f":"[1]ACS_16_5YR_B17017_with_ann!CK60","v":15},{"$f":"[1]ACS_16_5YR_B17017_with_ann!CL60","v":8},{"$f":"[1]ACS_16_5YR_B17017_with_ann!CM60","v":7},{"$f":"[1]ACS_16_5YR_B17017_with_ann!CN60","v":0},{"$f":"[1]ACS_16_5YR_B17017_with_ann!CO60","v":12},{"$f":"[1]ACS_16_5YR_B17017_with_ann!CP60","v":3},{"$f":"[1]ACS_16_5YR_B17017_with_ann!CQ60","v":4},{"$f":"[1]ACS_16_5YR_B17017_with_ann!CR60","v":3},{"$f":"[1]ACS_16_5YR_B17017_with_ann!CS60","v":4},{"$f":"[1]ACS_16_5YR_B17017_with_ann!CT60","v":2},{"$f":"[1]ACS_16_5YR_B17017_with_ann!CU60","v":3},{"$f":"[1]ACS_16_5YR_B17017_with_ann!CV60","v":74},{"$f":"[1]ACS_16_5YR_B17017_with_ann!CW60","v":24},{"$f":"[1]ACS_16_5YR_B17017_with_ann!CX60","v":27},{"$f":"[1]ACS_16_5YR_B17017_with_ann!CY60","v":14},{"$f":"[1]ACS_16_5YR_B17017_with_ann!CZ60","v":0},{"$f":"[1]ACS_16_5YR_B17017_with_ann!DA60","v":12},{"$f":"[1]ACS_16_5YR_B17017_with_ann!DB60","v":10},{"$f":"[1]ACS_16_5YR_B17017_with_ann!DC60","v":10},{"$f":"[1]ACS_16_5YR_B17017_with_ann!DD60","v":6},{"$f":"[1]ACS_16_5YR_B17017_with_ann!DE60","v":5},{"$f":"[1]ACS_16_5YR_B17017_with_ann!DF60","v":11},{"$f":"[1]ACS_16_5YR_B17017_with_ann!DG60","v":8},{"$f":"[1]ACS_16_5YR_B17017_with_ann!DH60","v":47},{"$f":"[1]ACS_16_5YR_B17017_with_ann!DI60","v":19},{"$f":"[1]ACS_16_5YR_B17017_with_ann!DJ60","v":0},{"$f":"[1]ACS_16_5YR_B17017_with_ann!DK60","v":12},{"$f":"[1]ACS_16_5YR_B17017_with_ann!DL60","v":7},{"$f":"[1]ACS_16_5YR_B17017_with_ann!DM60","v":6},{"$f":"[1]ACS_16_5YR_B17017_with_ann!DN60","v":22},{"$f":"[1]ACS_16_5YR_B17017_with_ann!DO60","v":14},{"$f":"[1]ACS_16_5YR_B17017_with_ann!DP60","v":18},{"$f":"[1]ACS_16_5YR_B17017_with_ann!DQ60","v":9}]
["06000US3300575300","0600000US3300575700","060",{"$f":"[1]ACS_16_5YR_B17017_with_ann!C61","v":"Surry"},{"$f":"[1]ACS_16_5YR_B17017_with_ann!D61","v":344},{"$f":"[1]ACS_16_5YR_B17017_with_ann!E61","v":58},{"$f":"[1]ACS_16_5YR_B17017_with_ann!F61","v":6},{"$f":"[1]ACS_16_5YR_B17017_with_ann!G61","v":6},{"$f":"[1]ACS_16_5YR_B17017_with_ann!H61","v":4},{"$f":"[1]ACS_16_5YR_B17017_with_ann!I61","v":5},{"$f":"[1]ACS_16_5YR_B17017_with_ann!J61","v":2},{"$f":"[1]ACS_16_5YR_B17017_with_ann!K61","v":3},{"$f":"[1]ACS_16_5YR_B17017_with_ann!L61","v":0},{"$f":"[1]ACS_16_5YR_B17017_with_ann!M61","v":12},{"$f":"[1]ACS_16_5YR_B17017_with_ann!N61","v":0},{"$f":"[1]ACS_16_5YR_B17017_with_ann!O61","v":12},{"$f":"[1]ACS_16_5YR_B17017_with_ann!P61","v":0},{"$f":"[1]ACS_16_5YR_B17017_with_ann!Q61","v":12},{"$f":"[1]ACS_16_5YR_B17017_with_ann!R61","v":2},{"$f":"[1]ACS_16_5YR_B17017_with_ann!S61","v":3},{"$f":"[1]ACS_16_5YR_B17017_with_ann!T61","v":2},{"$f":"[1]ACS_16_5YR_B17017_with_ann!U61","v":3},{"$f":"[1]ACS_16_5YR_B17017_with_ann!V61","v":2},{"$f":"[1]ACS_16_5YR_B17017_with_ann!W61","v":3},{"$f":"[1]ACS_16_5YR_B17017_with_ann!X61","v":0},{"$f":"[1]ACS_16_5YR_B17017_with_ann!Y61","v":12},{"$f":"[1]ACS_16_5YR_B17017_with_ann!Z61","v":0},{"$f":"[1]ACS_16_5YR_B17017_with_ann!AA61","v":12},{"$f":"[1]ACS_16_5YR_B17017_with_ann!AB61","v":0},{"$f":"[1]ACS_16_5YR_B17017_with_ann!AC61","v":12},{"$f":"[1]ACS_16_5YR_B17017_with_ann!AD61","v":2},{"$f":"[1]ACS_16_5YR_B17017_with_ann!AE61","v":3},{"$f":"[1]ACS_16_5YR_B17017_with_ann!AF61","v":0},{"$f":"[1]ACS_16_5YR_B17017_with_ann!AG61","v":12},{"$f":"[1]ACS_16_5YR_B17017_with_ann!AH61","v":0},{"$f":"[1]ACS_16_5YR_B17017_with_ann!AI61","v":12},{"$f":"[1]ACS_16_5YR_B17017_with_ann!AJ61","v":0},{"$f":"[1]ACS_16_5YR_B17017_with_ann!AK61","v":12},{"$f":"[1]ACS_16_5YR_B17017_with_ann!AL61","v":0},{"$f":"[1]ACS_16_5YR_B17017_with_ann!AM61","v":12},{"$f":"[1]ACS_16_5YR_B17017_with_ann!AN61","v":0},{"$f":"[1]ACS_16_5YR_B17017_with_ann!AO61","v":12},{"$f":"[1]ACS_16_5YR_B17017_with_ann!AP61","v":2},{"$f":"[1]ACS_16_5YR_B17017_with_ann!AQ61","v":4},{"$f":"[1]ACS_16_5YR_B17017_with_ann!AR61","v":0},{"$f":"[1]ACS_16_5YR_B17017_with_ann!AS61","v":12},{"$f":"[1]ACS_16_5YR_B17017_with_ann!AT61","v":0},{"$f":"[1]ACS_16_5YR_B17017_with_ann!AU61","v":12},{"$f":"[1]ACS_16_5YR_B17017_with_ann!AV61","v":0},{"$f":"[1]ACS_16_5YR_B17017_with_ann!AW61","v":12},{"$f":"[1]ACS_16_5YR_B17017_with_ann!AX61","v":0},{"$f":"[1]ACS_16_5YR_B17017_with_ann!AY61","v":12},{"$f":"[1]ACS_16_5YR_B17017_with_ann!AZ61","v":0},{"$f":"[1]ACS_16_5YR_B17017_with_ann!BA61","v":12},{"$f":"[1]ACS_16_5YR_B17017_with_ann!BB61","v":2},{"$f":"[1]ACS_16_5YR_B17017_with_ann!BC61","v":4},{"$f":"[1]ACS_16_5YR_B17017_with_ann!BD61","v":0},{"$f":"[1]ACS_16_5YR_B17017_with_ann!BE61","v":12},{"$f":"[1]ACS_16_5YR_B17017_with_ann!BF61","v":0},{"$f":"[1]ACS_16_5YR_B17017_with_ann!BG61","v":12},{"$f":"[1]ACS_16_5YR_B17017_with_ann!BH61","v":0},{"$f":"[1]ACS_16_5YR_B17017_with_ann!BI61","v":12},{"$f":"[1]ACS_16_5YR_B17017_with_ann!BJ61","v":2},{"$f":"[1]ACS_16_5YR_B17017_with_ann!BK61","v":4},{"$f":"[1]ACS_16_5YR_B17017_with_ann!BL61","v":338},{"$f":"[1]ACS_16_5YR_B17017_with_ann!BM61","v":59},{"$f":"[1]ACS_16_5YR_B17017_with_ann!BN61","v":258},{"$f":"[1]ACS_16_5YR_B17017_with_ann!BO61","v":60},{"$f":"[1]ACS_16_5YR_B17017_with_ann!BP61","v":231},{"$f":"[1]ACS_16_5YR_B17017_with_ann!BQ61","v":60},{"$f":"[1]ACS_16_5YR_B17017_with_ann!BR61","v":2},{"$f":"[1]ACS_16_5YR_B17017_with_ann!BS61","v":4},{"$f":"[1]ACS_16_5YR_B17017_with_ann!BT61","v":71},{"$f":"[1]ACS_16_5YR_B17017_with_ann!BU61","v":35},{"$f":"[1]ACS_16_5YR_B17017_with_ann!BV61","v":64},{"$f":"[1]ACS_16_5YR_B17017_with_ann!BW61","v":31},{"$f":"[1]ACS_16_5YR_B17017_with_ann!BX61","v":94},{"$f":"[1]ACS_16_5YR_B17017_with_ann!BY61","v":36},{"$f":"[1]ACS_16_5YR_B17017_with_ann!BZ61","v":27},{"$f":"[1]ACS_16_5YR_B17017_with_ann!CA61","v":16},{"$f":"[1]ACS_16_5YR_B17017_with_ann!CB61","v":4},{"$f":"[1]ACS_16_5YR_B17017_with_ann!CC61","v":4},{"$f":"[1]ACS_16_5YR_B17017_with_ann!CD61","v":0},{"$f":"[1]ACS_16_5YR_B17017_with_ann!CE61","v":12},{"$f":"[1]ACS_16_5YR_B17017_with_ann!CF61","v":2},{"$f":"[1]ACS_16_5YR_B17017_with_ann!CG61","v":3},{"$f":"[1]ACS_16_5YR_B17017_with_ann!CH61","v":2},{"$f":"[1]ACS_16_5YR_B17017_with_ann!CI61","v":3},{"$f":"[1]ACS_16_5YR_B17017_with_ann!CJ61","v":0},{"$f":"[1]ACS_16_5YR_B17017_with_ann!CK61","v":12},{"$f":"[1]ACS_16_5YR_B17017_with_ann!CL61","v":23},{"$f":"[1]ACS_16_5YR_B17017_with_ann!CM61","v":15},{"$f":"[1]ACS_16_5YR_B17017_with_ann!CN61","v":0},{"$f":"[1]ACS_16_5YR_B17017_with_ann!CO61","v":12},{"$f":"[1]ACS_16_5YR_B17017_with_ann!CP61","v":0},{"$f":"[1]ACS_16_5YR_B17017_with_ann!CQ61","v":12},{"$f":"[1]ACS_16_5YR_B17017_with_ann!CR61","v":11},{"$f":"[1]ACS_16_5YR_B17017_with_ann!CS61","v":8},{"$f":"[1]ACS_16_5YR_B17017_with_ann!CT61","v":12},{"$f":"[1]ACS_16_5YR_B17017_with_ann!CU61","v":13},{"$f":"[1]ACS_16_5YR_B17017_with_ann!CV61","v":80},{"$f":"[1]ACS_16_5YR_B17017_with_ann!CW61","v":24},{"$f":"[1]ACS_16_5YR_B17017_with_ann!CX61","v":45},{"$f":"[1]ACS_16_5YR_B17017_with_ann!CY61","v":22},{"$f":"[1]ACS_16_5YR_B17017_with_ann!CZ61","v":0},{"$f":"[1]ACS_16_5YR_B17017_with_ann!DA61","v":12},{"$f":"[1]ACS_16_5YR_B17017_with_ann!DB61","v":6},{"$f":"[1]ACS_16_5YR_B17017_with_ann!DC61","v":5},{"$f":"[1]ACS_16_5YR_B17017_with_ann!DD61","v":23},{"$f":"[1]ACS_16_5YR_B17017_with_ann!DE61","v":19},{"$f":"[1]ACS_16_5YR_B17017_with_ann!DF61","v":16},{"$f":"[1]ACS_16_5YR_B17017_with_ann!DG61","v":9},{"$f":"[1]ACS_16_5YR_B17017_with_ann!DH61","v":35},{"$f":"[1]ACS_16_5YR_B17017_with_ann!DI61","v":15},{"$f":"[1]ACS_16_5YR_B17017_with_ann!DJ61","v":2},{"$f":"[1]ACS_16_5YR_B17017_with_ann!DK61","v":3},{"$f":"[1]ACS_16_5YR_B17017_with_ann!DL61","v":2},{"$f":"[1]ACS_16_5YR_B17017_with_ann!DM61","v":3},{"$f":"[1]ACS_16_5YR_B17017_with_ann!DN61","v":7},{"$f":"[1]ACS_16_5YR_B17017_with_ann!DO61","v":6},{"$f":"[1]ACS_16_5YR_B17017_with_ann!DP61","v":24},{"$f":"[1]ACS_16_5YR_B17017_with_ann!DQ61","v":13}]
["06000US3300575700","0600000US3300577380","060",{"$f":"[1]ACS_16_5YR_B17017_with_ann!C62","v":"Swanzey"},{"$f":"[1]ACS_16_5YR_B17017_with_ann!D62","v":3255},{"$f":"[1]ACS_16_5YR_B17017_with_ann!E62","v":171},{"$f":"[1]ACS_16_5YR_B17017_with_ann!F62","v":281},{"$f":"[1]ACS_16_5YR_B17017_with_ann!G62","v":130},{"$f":"[1]ACS_16_5YR_B17017_with_ann!H62","v":164},{"$f":"[1]ACS_16_5YR_B17017_with_ann!I62","v":97},{"$f":"[1]ACS_16_5YR_B17017_with_ann!J62","v":11},{"$f":"[1]ACS_16_5YR_B17017_with_ann!K62","v":21},{"$f":"[1]ACS_16_5YR_B17017_with_ann!L62","v":0},{"$f":"[1]ACS_16_5YR_B17017_with_ann!M62","v":17},{"$f":"[1]ACS_16_5YR_B17017_with_ann!N62","v":0},{"$f":"[1]ACS_16_5YR_B17017_with_ann!O62","v":17},{"$f":"[1]ACS_16_5YR_B17017_with_ann!P62","v":11},{"$f":"[1]ACS_16_5YR_B17017_with_ann!Q62","v":21},{"$f":"[1]ACS_16_5YR_B17017_with_ann!R62","v":0},{"$f":"[1]ACS_16_5YR_B17017_with_ann!S62","v":17},{"$f":"[1]ACS_16_5YR_B17017_with_ann!T62","v":153},{"$f":"[1]ACS_16_5YR_B17017_with_ann!U62","v":94},{"$f":"[1]ACS_16_5YR_B17017_with_ann!V62","v":21},{"$f":"[1]ACS_16_5YR_B17017_with_ann!W62","v":34},{"$f":"[1]ACS_16_5YR_B17017_with_ann!X62","v":0},{"$f":"[1]ACS_16_5YR_B17017_with_ann!Y62","v":17},{"$f":"[1]ACS_16_5YR_B17017_with_ann!Z62","v":21},{"$f":"[1]ACS_16_5YR_B17017_with_ann!AA62","v":34},{"$f":"[1]ACS_16_5YR_B17017_with_ann!AB62","v":0},{"$f":"[1]ACS_16_5YR_B17017_with_ann!AC62","v":17},{"$f":"[1]ACS_16_5YR_B17017_with_ann!AD62","v":0},{"$f":"[1]ACS_16_5YR_B17017_with_ann!AE62","v":17},{"$f":"[1]ACS_16_5YR_B17017_with_ann!AF62","v":132},{"$f":"[1]ACS_16_5YR_B17017_with_ann!AG62","v":87},{"$f":"[1]ACS_16_5YR_B17017_with_ann!AH62","v":0},{"$f":"[1]ACS_16_5YR_B17017_with_ann!AI62","v":17},{"$f":"[1]ACS_16_5YR_B17017_with_ann!AJ62","v":68},{"$f":"[1]ACS_16_5YR_B17017_with_ann!AK62","v":66},{"$f":"[1]ACS_16_5YR_B17017_with_ann!AL62","v":0},{"$f":"[1]ACS_16_5YR_B17017_with_ann!AM62","v":17},{"$f":"[1]ACS_16_5YR_B17017_with_ann!AN62","v":64},{"$f":"[1]ACS_16_5YR_B17017_with_ann!AO62","v":75},{"$f":"[1]ACS_16_5YR_B17017_with_ann!AP62","v":117},{"$f":"[1]ACS_16_5YR_B17017_with_ann!AQ62","v":81},{"$f":"[1]ACS_16_5YR_B17017_with_ann!AR62","v":90},{"$f":"[1]ACS_16_5YR_B17017_with_ann!AS62","v":74},{"$f":"[1]ACS_16_5YR_B17017_with_ann!AT62","v":0},{"$f":"[1]ACS_16_5YR_B17017_with_ann!AU62","v":17},{"$f":"[1]ACS_16_5YR_B17017_with_ann!AV62","v":58},{"$f":"[1]ACS_16_5YR_B17017_with_ann!AW62","v":70},{"$f":"[1]ACS_16_5YR_B17017_with_ann!AX62","v":12},{"$f":"[1]ACS_16_5YR_B17017_with_ann!AY62","v":21},{"$f":"[1]ACS_16_5YR_B17017_with_ann!AZ62","v":20},{"$f":"[1]ACS_16_5YR_B17017_with_ann!BA62","v":28},{"$f":"[1]ACS_16_5YR_B17017_with_ann!BB62","v":27},{"$f":"[1]ACS_16_5YR_B17017_with_ann!BC62","v":33},{"$f":"[1]ACS_16_5YR_B17017_with_ann!BD62","v":0},{"$f":"[1]ACS_16_5YR_B17017_with_ann!BE62","v":17},{"$f":"[1]ACS_16_5YR_B17017_with_ann!BF62","v":0},{"$f":"[1]ACS_16_5YR_B17017_with_ann!BG62","v":17},{"$f":"[1]ACS_16_5YR_B17017_with_ann!BH62","v":27},{"$f":"[1]ACS_16_5YR_B17017_with_ann!BI62","v":33},{"$f":"[1]ACS_16_5YR_B17017_with_ann!BJ62","v":0},{"$f":"[1]ACS_16_5YR_B17017_with_ann!BK62","v":17},{"$f":"[1]ACS_16_5YR_B17017_with_ann!BL62","v":2974},{"$f":"[1]ACS_16_5YR_B17017_with_ann!BM62","v":182},{"$f":"[1]ACS_16_5YR_B17017_with_ann!BN62","v":1925},{"$f":"[1]ACS_16_5YR_B17017_with_ann!BO62","v":218},{"$f":"[1]ACS_16_5YR_B17017_with_ann!BP62","v":1572},{"$f":"[1]ACS_16_5YR_B17017_with_ann!BQ62","v":259},{"$f":"[1]ACS_16_5YR_B17017_with_ann!BR62","v":0},{"$f":"[1]ACS_16_5YR_B17017_with_ann!BS62","v":17},{"$f":"[1]ACS_16_5YR_B17017_with_ann!BT62","v":312},{"$f":"[1]ACS_16_5YR_B17017_with_ann!BU62","v":149},{"$f":"[1]ACS_16_5YR_B17017_with_ann!BV62","v":608},{"$f":"[1]ACS_16_5YR_B17017_with_ann!BW62","v":160},{"$f":"[1]ACS_16_5YR_B17017_with_ann!BX62","v":652},{"$f":"[1]ACS_16_5YR_B17017_with_ann!BY62","v":170},{"$f":"[1]ACS_16_5YR_B17017_with_ann!BZ62","v":353},{"$f":"[1]ACS_16_5YR_B17017_with_ann!CA62","v":180},{"$f":"[1]ACS_16_5YR_B17017_with_ann!CB62","v":126},{"$f":"[1]ACS_16_5YR_B17017_with_ann!CC62","v":108},{"$f":"[1]ACS_16_5YR_B17017_with_ann!CD62","v":0},{"$f":"[1]ACS_16_5YR_B17017_with_ann!CE62","v":17},{"$f":"[1]ACS_16_5YR_B17017_with_ann!CF62","v":43},{"$f":"[1]ACS_16_5YR_B17017_with_ann!CG62","v":65},{"$f":"[1]ACS_16_5YR_B17017_with_ann!CH62","v":83},{"$f":"[1]ACS_16_5YR_B17017_with_ann!CI62","v":89},{"$f":"[1]ACS_16_5YR_B17017_with_ann!CJ62","v":0},{"$f":"[1]ACS_16_5YR_B17017_with_ann!CK62","v":17},{"$f":"[1]ACS_16_5YR_B17017_with_ann!CL62","v":227},{"$f":"[1]ACS_16_5YR_B17017_with_ann!CM62","v":127},{"$f":"[1]ACS_16_5YR_B17017_with_ann!CN62","v":0},{"$f":"[1]ACS_16_5YR_B17017_with_ann!CO62","v":17},{"$f":"[1]ACS_16_5YR_B17017_with_ann!CP62","v":178},{"$f":"[1]ACS_16_5YR_B17017_with_ann!CQ62","v":119},{"$f":"[1]ACS_16_5YR_B17017_with_ann!CR62","v":25},{"$f":"[1]ACS_16_5YR_B17017_with_ann!CS62","v":30},{"$f":"[1]ACS_16_5YR_B17017_with_ann!CT62","v":24},{"$f":"[1]ACS_16_5YR_B17017_with_ann!CU62","v":32},{"$f":"[1]ACS_16_5YR_B17017_with_ann!CV62","v":1049},{"$f":"[1]ACS_16_5YR_B17017_with_ann!CW62","v":244},{"$f":"[1]ACS_16_5YR_B17017_with_ann!CX62","v":614},{"$f":"[1]ACS_16_5YR_B17017_with_ann!CY62","v":193},{"$f":"[1]ACS_16_5YR_B17017_with_ann!CZ62","v":51},{"$f":"[1]ACS_16_5YR_B17017_with_ann!DA62","v":51},{"$f":"[1]ACS_16_5YR_B17017_with_ann!DB62","v":31},{"$f":"[1]ACS_16_5YR_B17017_with_ann!DC62","v":33},{"$f":"[1]ACS_16_5YR_B17017_with_ann!DD62","v":353},{"$f":"[1]ACS_16_5YR_B17017_with_ann!DE62","v":195},{"$f":"[1]ACS_16_5YR_B17017_with_ann!DF62","v":179},{"$f":"[1]ACS_16_5YR_B17017_with_ann!DG62","v":85},{"$f":"[1]ACS_16_5YR_B17017_with_ann!DH62","v":435},{"$f":"[1]ACS_16_5YR_B17017_with_ann!DI62","v":151},{"$f":"[1]ACS_16_5YR_B17017_with_ann!DJ62","v":0},{"$f":"[1]ACS_16_5YR_B17017_with_ann!DK62","v":17},{"$f":"[1]ACS_16_5YR_B17017_with_ann!DL62","v":120},{"$f":"[1]ACS_16_5YR_B17017_with_ann!DM62","v":79},{"$f":"[1]ACS_16_5YR_B17017_with_ann!DN62","v":112},{"$f":"[1]ACS_16_5YR_B17017_with_ann!DO62","v":72},{"$f":"[1]ACS_16_5YR_B17017_with_ann!DP62","v":203},{"$f":"[1]ACS_16_5YR_B17017_with_ann!DQ62","v":92}]
["06000US3300577380","0600000US3300578420","060",{"$f":"[1]ACS_16_5YR_B17017_with_ann!C63","v":"Troy"},{"$f":"[1]ACS_16_5YR_B17017_with_ann!D63","v":758},{"$f":"[1]ACS_16_5YR_B17017_with_ann!E63","v":101},{"$f":"[1]ACS_16_5YR_B17017_with_ann!F63","v":71},{"$f":"[1]ACS_16_5YR_B17017_with_ann!G63","v":35},{"$f":"[1]ACS_16_5YR_B17017_with_ann!H63","v":24},{"$f":"[1]ACS_16_5YR_B17017_with_ann!I63","v":21},{"$f":"[1]ACS_16_5YR_B17017_with_ann!J63","v":6},{"$f":"[1]ACS_16_5YR_B17017_with_ann!K63","v":10},{"$f":"[1]ACS_16_5YR_B17017_with_ann!L63","v":0},{"$f":"[1]ACS_16_5YR_B17017_with_ann!M63","v":12},{"$f":"[1]ACS_16_5YR_B17017_with_ann!N63","v":0},{"$f":"[1]ACS_16_5YR_B17017_with_ann!O63","v":12},{"$f":"[1]ACS_16_5YR_B17017_with_ann!P63","v":0},{"$f":"[1]ACS_16_5YR_B17017_with_ann!Q63","v":12},{"$f":"[1]ACS_16_5YR_B17017_with_ann!R63","v":6},{"$f":"[1]ACS_16_5YR_B17017_with_ann!S63","v":10},{"$f":"[1]ACS_16_5YR_B17017_with_ann!T63","v":18},{"$f":"[1]ACS_16_5YR_B17017_with_ann!U63","v":18},{"$f":"[1]ACS_16_5YR_B17017_with_ann!V63","v":7},{"$f":"[1]ACS_16_5YR_B17017_with_ann!W63","v":11},{"$f":"[1]ACS_16_5YR_B17017_with_ann!X63","v":0},{"$f":"[1]ACS_16_5YR_B17017_with_ann!Y63","v":12},{"$f":"[1]ACS_16_5YR_B17017_with_ann!Z63","v":0},{"$f":"[1]ACS_16_5YR_B17017_with_ann!AA63","v":12},{"$f":"[1]ACS_16_5YR_B17017_with_ann!AB63","v":7},{"$f":"[1]ACS_16_5YR_B17017_with_ann!AC63","v":11},{"$f":"[1]ACS_16_5YR_B17017_with_ann!AD63","v":0},{"$f":"[1]ACS_16_5YR_B17017_with_ann!AE63","v":12},{"$f":"[1]ACS_16_5YR_B17017_with_ann!AF63","v":11},{"$f":"[1]ACS_16_5YR_B17017_with_ann!AG63","v":13},{"$f":"[1]ACS_16_5YR_B17017_with_ann!AH63","v":0},{"$f":"[1]ACS_16_5YR_B17017_with_ann!AI63","v":12},{"$f":"[1]ACS_16_5YR_B17017_with_ann!AJ63","v":7},{"$f":"[1]ACS_16_5YR_B17017_with_ann!AK63","v":11},{"$f":"[1]ACS_16_5YR_B17017_with_ann!AL63","v":4},{"$f":"[1]ACS_16_5YR_B17017_with_ann!AM63","v":7},{"$f":"[1]ACS_16_5YR_B17017_with_ann!AN63","v":0},{"$f":"[1]ACS_16_5YR_B17017_with_ann!AO63","v":12},{"$f":"[1]ACS_16_5YR_B17017_with_ann!AP63","v":47},{"$f":"[1]ACS_16_5YR_B17017_with_ann!AQ63","v":31},{"$f":"[1]ACS_16_5YR_B17017_with_ann!AR63","v":17},{"$f":"[1]ACS_16_5YR_B17017_with_ann!AS63","v":20},{"$f":"[1]ACS_16_5YR_B17017_with_ann!AT63","v":0},{"$f":"[1]ACS_16_5YR_B17017_with_ann!AU63","v":12},{"$f":"[1]ACS_16_5YR_B17017_with_ann!AV63","v":0},{"$f":"[1]ACS_16_5YR_B17017_with_ann!AW63","v":12},{"$f":"[1]ACS_16_5YR_B17017_with_ann!AX63","v":13},{"$f":"[1]ACS_16_5YR_B17017_with_ann!AY63","v":22},{"$f":"[1]ACS_16_5YR_B17017_with_ann!AZ63","v":4},{"$f":"[1]ACS_16_5YR_B17017_with_ann!BA63","v":8},{"$f":"[1]ACS_16_5YR_B17017_with_ann!BB63","v":30},{"$f":"[1]ACS_16_5YR_B17017_with_ann!BC63","v":24},{"$f":"[1]ACS_16_5YR_B17017_with_ann!BD63","v":5},{"$f":"[1]ACS_16_5YR_B17017_with_ann!BE63","v":7},{"$f":"[1]ACS_16_5YR_B17017_with_ann!BF63","v":7},{"$f":"[1]ACS_16_5YR_B17017_with_ann!BG63","v":10},{"$f":"[1]ACS_16_5YR_B17017_with_ann!BH63","v":13},{"$f":"[1]ACS_16_5YR_B17017_with_ann!BI63","v":19},{"$f":"[1]ACS_16_5YR_B17017_with_ann!BJ63","v":5},{"$f":"[1]ACS_16_5YR_B17017_with_ann!BK63","v":7},{"$f":"[1]ACS_16_5YR_B17017_with_ann!BL63","v":687},{"$f":"[1]ACS_16_5YR_B17017_with_ann!BM63","v":96},{"$f":"[1]ACS_16_5YR_B17017_with_ann!BN63","v":473},{"$f":"[1]ACS_16_5YR_B17017_with_ann!BO63","v":87},{"$f":"[1]ACS_16_5YR_B17017_with_ann!BP63","v":353},{"$f":"[1]ACS_16_5YR_B17017_with_ann!BQ63","v":72},{"$f":"[1]ACS_16_5YR_B17017_with_ann!BR63","v":6},{"$f":"[1]ACS_16_5YR_B17017_with_ann!BS63","v":10},{"$f":"[1]ACS_16_5YR_B17017_with_ann!BT63","v":135},{"$f":"[1]ACS_16_5YR_B17017_with_ann!BU63","v":43},{"$f":"[1]ACS_16_5YR_B17017_with_ann!BV63","v":117},{"$f":"[1]ACS_16_5YR_B17017_with_ann!BW63","v":49},{"$f":"[1]ACS_16_5YR_B17017_with_ann!BX63","v":95},{"$f":"[1]ACS_16_5YR_B17017_with_ann!BY63","v":39},{"$f":"[1]ACS_16_5YR_B17017_with_ann!BZ63","v":120},{"$f":"[1]ACS_16_5YR_B17017_with_ann!CA63","v":49},{"$f":"[1]ACS_16_5YR_B17017_with_ann!CB63","v":50},{"$f":"[1]ACS_16_5YR_B17017_with_ann!CC63","v":33},{"$f":"[1]ACS_16_5YR_B17017_with_ann!CD63","v":0},{"$f":"[1]ACS_16_5YR_B17017_with_ann!CE63","v":12},{"$f":"[1]ACS_16_5YR_B17017_with_ann!CF63","v":37},{"$f":"[1]ACS_16_5YR_B17017_with_ann!CG63","v":33},{"$f":"[1]ACS_16_5YR_B17017_with_ann!CH63","v":7},{"$f":"[1]ACS_16_5YR_B17017_with_ann!CI63","v":9},{"$f":"[1]ACS_16_5YR_B17017_with_ann!CJ63","v":6},{"$f":"[1]ACS_16_5YR_B17017_with_ann!CK63","v":8},{"$f":"[1]ACS_16_5YR_B17017_with_ann!CL63","v":70},{"$f":"[1]ACS_16_5YR_B17017_with_ann!CM63","v":35},{"$f":"[1]ACS_16_5YR_B17017_with_ann!CN63","v":0},{"$f":"[1]ACS_16_5YR_B17017_with_ann!CO63","v":12},{"$f":"[1]ACS_16_5YR_B17017_with_ann!CP63","v":32},{"$f":"[1]ACS_16_5YR_B17017_with_ann!CQ63","v":26},{"$f":"[1]ACS_16_5YR_B17017_with_ann!CR63","v":13},{"$f":"[1]ACS_16_5YR_B17017_with_ann!CS63","v":15},{"$f":"[1]ACS_16_5YR_B17017_with_ann!CT63","v":25},{"$f":"[1]ACS_16_5YR_B17017_with_ann!CU63","v":19},{"$f":"[1]ACS_16_5YR_B17017_with_ann!CV63","v":214},{"$f":"[1]ACS_16_5YR_B17017_with_ann!CW63","v":72},{"$f":"[1]ACS_16_5YR_B17017_with_ann!CX63","v":109},{"$f":"[1]ACS_16_5YR_B17017_with_ann!CY63","v":50},{"$f":"[1]ACS_16_5YR_B17017_with_ann!CZ63","v":0},{"$f":"[1]ACS_16_5YR_B17017_with_ann!DA63","v":12},{"$f":"[1]ACS_16_5YR_B17017_with_ann!DB63","v":49},{"$f":"[1]ACS_16_5YR_B17017_with_ann!DC63","v":35},{"$f":"[1]ACS_16_5YR_B17017_with_ann!DD63","v":4},{"$f":"[1]ACS_16_5YR_B17017_with_ann!DE63","v":6},{"$f":"[1]ACS_16_5YR_B17017_with_ann!DF63","v":56},{"$f":"[1]ACS_16_5YR_B17017_with_ann!DG63","v":37},{"$f":"[1]ACS_16_5YR_B17017_with_ann!DH63","v":105},{"$f":"[1]ACS_16_5YR_B17017_with_ann!DI63","v":51},{"$f":"[1]ACS_16_5YR_B17017_with_ann!DJ63","v":0},{"$f":"[1]ACS_16_5YR_B17017_with_ann!DK63","v":12},{"$f":"[1]ACS_16_5YR_B17017_with_ann!DL63","v":21},{"$f":"[1]ACS_16_5YR_B17017_with_ann!DM63","v":23},{"$f":"[1]ACS_16_5YR_B17017_with_ann!DN63","v":56},{"$f":"[1]ACS_16_5YR_B17017_with_ann!DO63","v":41},{"$f":"[1]ACS_16_5YR_B17017_with_ann!DP63","v":28},{"$f":"[1]ACS_16_5YR_B17017_with_ann!DQ63","v":22}]
["06000US3300578420","0600000US3300582660","060",{"$f":"[1]ACS_16_5YR_B17017_with_ann!C64","v":"Walpole"},{"$f":"[1]ACS_16_5YR_B17017_with_ann!D64","v":1427},{"$f":"[1]ACS_16_5YR_B17017_with_ann!E64","v":121},{"$f":"[1]ACS_16_5YR_B17017_with_ann!F64","v":203},{"$f":"[1]ACS_16_5YR_B17017_with_ann!G64","v":125},{"$f":"[1]ACS_16_5YR_B17017_with_ann!H64","v":28},{"$f":"[1]ACS_16_5YR_B17017_with_ann!I64","v":32},{"$f":"[1]ACS_16_5YR_B17017_with_ann!J64","v":6},{"$f":"[1]ACS_16_5YR_B17017_with_ann!K64","v":9},{"$f":"[1]ACS_16_5YR_B17017_with_ann!L64","v":0},{"$f":"[1]ACS_16_5YR_B17017_with_ann!M64","v":12},{"$f":"[1]ACS_16_5YR_B17017_with_ann!N64","v":0},{"$f":"[1]ACS_16_5YR_B17017_with_ann!O64","v":12},{"$f":"[1]ACS_16_5YR_B17017_with_ann!P64","v":6},{"$f":"[1]ACS_16_5YR_B17017_with_ann!Q64","v":9},{"$f":"[1]ACS_16_5YR_B17017_with_ann!R64","v":0},{"$f":"[1]ACS_16_5YR_B17017_with_ann!S64","v":12},{"$f":"[1]ACS_16_5YR_B17017_with_ann!T64","v":22},{"$f":"[1]ACS_16_5YR_B17017_with_ann!U64","v":31},{"$f":"[1]ACS_16_5YR_B17017_with_ann!V64","v":0},{"$f":"[1]ACS_16_5YR_B17017_with_ann!W64","v":12},{"$f":"[1]ACS_16_5YR_B17017_with_ann!X64","v":0},{"$f":"[1]ACS_16_5YR_B17017_with_ann!Y64","v":12},{"$f":"[1]ACS_16_5YR_B17017_with_ann!Z64","v":0},{"$f":"[1]ACS_16_5YR_B17017_with_ann!AA64","v":12},{"$f":"[1]ACS_16_5YR_B17017_with_ann!AB64","v":0},{"$f":"[1]ACS_16_5YR_B17017_with_ann!AC64","v":12},{"$f":"[1]ACS_16_5YR_B17017_with_ann!AD64","v":0},{"$f":"[1]ACS_16_5YR_B17017_with_ann!AE64","v":12},{"$f":"[1]ACS_16_5YR_B17017_with_ann!AF64","v":22},{"$f":"[1]ACS_16_5YR_B17017_with_ann!AG64","v":31},{"$f":"[1]ACS_16_5YR_B17017_with_ann!AH64","v":0},{"$f":"[1]ACS_16_5YR_B17017_with_ann!AI64","v":12},{"$f":"[1]ACS_16_5YR_B17017_with_ann!AJ64","v":12},{"$f":"[1]ACS_16_5YR_B17017_with_ann!AK64","v":20},{"$f":"[1]ACS_16_5YR_B17017_with_ann!AL64","v":0},{"$f":"[1]ACS_16_5YR_B17017_with_ann!AM64","v":12},{"$f":"[1]ACS_16_5YR_B17017_with_ann!AN64","v":10},{"$f":"[1]ACS_16_5YR_B17017_with_ann!AO64","v":16},{"$f":"[1]ACS_16_5YR_B17017_with_ann!AP64","v":175},{"$f":"[1]ACS_16_5YR_B17017_with_ann!AQ64","v":118},{"$f":"[1]ACS_16_5YR_B17017_with_ann!AR64","v":62},{"$f":"[1]ACS_16_5YR_B17017_with_ann!AS64","v":63},{"$f":"[1]ACS_16_5YR_B17017_with_ann!AT64","v":0},{"$f":"[1]ACS_16_5YR_B17017_with_ann!AU64","v":12},{"$f":"[1]ACS_16_5YR_B17017_with_ann!AV64","v":0},{"$f":"[1]ACS_16_5YR_B17017_with_ann!AW64","v":12},{"$f":"[1]ACS_16_5YR_B17017_with_ann!AX64","v":20},{"$f":"[1]ACS_16_5YR_B17017_with_ann!AY64","v":32},{"$f":"[1]ACS_16_5YR_B17017_with_ann!AZ64","v":42},{"$f":"[1]ACS_16_5YR_B17017_with_ann!BA64","v":55},{"$f":"[1]ACS_16_5YR_B17017_with_ann!BB64","v":113},{"$f":"[1]ACS_16_5YR_B17017_with_ann!BC64","v":94},{"$f":"[1]ACS_16_5YR_B17017_with_ann!BD64","v":0},{"$f":"[1]ACS_16_5YR_B17017_with_ann!BE64","v":12},{"$f":"[1]ACS_16_5YR_B17017_with_ann!BF64","v":0},{"$f":"[1]ACS_16_5YR_B17017_with_ann!BG64","v":12},{"$f":"[1]ACS_16_5YR_B17017_with_ann!BH64","v":12},{"$f":"[1]ACS_16_5YR_B17017_with_ann!BI64","v":20},{"$f":"[1]ACS_16_5YR_B17017_with_ann!BJ64","v":101},{"$f":"[1]ACS_16_5YR_B17017_with_ann!BK64","v":92},{"$f":"[1]ACS_16_5YR_B17017_with_ann!BL64","v":1224},{"$f":"[1]ACS_16_5YR_B17017_with_ann!BM64","v":116},{"$f":"[1]ACS_16_5YR_B17017_with_ann!BN64","v":855},{"$f":"[1]ACS_16_5YR_B17017_with_ann!BO64","v":100},{"$f":"[1]ACS_16_5YR_B17017_with_ann!BP64","v":711},{"$f":"[1]ACS_16_5YR_B17017_with_ann!BQ64","v":99},{"$f":"[1]ACS_16_5YR_B17017_with_ann!BR64","v":0},{"$f":"[1]ACS_16_5YR_B17017_with_ann!BS64","v":12},{"$f":"[1]ACS_16_5YR_B17017_with_ann!BT64","v":197},{"$f":"[1]ACS_16_5YR_B17017_with_ann!BU64","v":91},{"$f":"[1]ACS_16_5YR_B17017_with_ann!BV64","v":312},{"$f":"[1]ACS_16_5YR_B17017_with_ann!BW64","v":67},{"$f":"[1]ACS_16_5YR_B17017_with_ann!BX64","v":202},{"$f":"[1]ACS_16_5YR_B17017_with_ann!BY64","v":51},{"$f":"[1]ACS_16_5YR_B17017_with_ann!BZ64","v":144},{"$f":"[1]ACS_16_5YR_B17017_with_ann!CA64","v":70},{"$f":"[1]ACS_16_5YR_B17017_with_ann!CB64","v":43},{"$f":"[1]ACS_16_5YR_B17017_with_ann!CC64","v":30},{"$f":"[1]ACS_16_5YR_B17017_with_ann!CD64","v":0},{"$f":"[1]ACS_16_5YR_B17017_with_ann!CE64","v":12},{"$f":"[1]ACS_16_5YR_B17017_with_ann!CF64","v":29},{"$f":"[1]ACS_16_5YR_B17017_with_ann!CG64","v":27},{"$f":"[1]ACS_16_5YR_B17017_with_ann!CH64","v":7},{"$f":"[1]ACS_16_5YR_B17017_with_ann!CI64","v":10},{"$f":"[1]ACS_16_5YR_B17017_with_ann!CJ64","v":7},{"$f":"[1]ACS_16_5YR_B17017_with_ann!CK64","v":11},{"$f":"[1]ACS_16_5YR_B17017_with_ann!CL64","v":101},{"$f":"[1]ACS_16_5YR_B17017_with_ann!CM64","v":62},{"$f":"[1]ACS_16_5YR_B17017_with_ann!CN64","v":0},{"$f":"[1]ACS_16_5YR_B17017_with_ann!CO64","v":12},{"$f":"[1]ACS_16_5YR_B17017_with_ann!CP64","v":7},{"$f":"[1]ACS_16_5YR_B17017_with_ann!CQ64","v":12},{"$f":"[1]ACS_16_5YR_B17017_with_ann!CR64","v":65},{"$f":"[1]ACS_16_5YR_B17017_with_ann!CS64","v":59},{"$f":"[1]ACS_16_5YR_B17017_with_ann!CT64","v":29},{"$f":"[1]ACS_16_5YR_B17017_with_ann!CU64","v":24},{"$f":"[1]ACS_16_5YR_B17017_with_ann!CV64","v":369},{"$f":"[1]ACS_16_5YR_B17017_with_ann!CW64","v":115},{"$f":"[1]ACS_16_5YR_B17017_with_ann!CX64","v":222},{"$f":"[1]ACS_16_5YR_B17017_with_ann!CY64","v":95},{"$f":"[1]ACS_16_5YR_B17017_with_ann!CZ64","v":5},{"$f":"[1]ACS_16_5YR_B17017_with_ann!DA64","v":9},{"$f":"[1]ACS_16_5YR_B17017_with_ann!DB64","v":39},{"$f":"[1]ACS_16_5YR_B17017_with_ann!DC64","v":40},{"$f":"[1]ACS_16_5YR_B17017_with_ann!DD64","v":95},{"$f":"[1]ACS_16_5YR_B17017_with_ann!DE64","v":57},{"$f":"[1]ACS_16_5YR_B17017_with_ann!DF64","v":83},{"$f":"[1]ACS_16_5YR_B17017_with_ann!DG64","v":57},{"$f":"[1]ACS_16_5YR_B17017_with_ann!DH64","v":147},{"$f":"[1]ACS_16_5YR_B17017_with_ann!DI64","v":70},{"$f":"[1]ACS_16_5YR_B17017_with_ann!DJ64","v":0},{"$f":"[1]ACS_16_5YR_B17017_with_ann!DK64","v":12},{"$f":"[1]ACS_16_5YR_B17017_with_ann!DL64","v":29},{"$f":"[1]ACS_16_5YR_B17017_with_ann!DM64","v":30},{"$f":"[1]ACS_16_5YR_B17017_with_ann!DN64","v":67},{"$f":"[1]ACS_16_5YR_B17017_with_ann!DO64","v":51},{"$f":"[1]ACS_16_5YR_B17017_with_ann!DP64","v":51},{"$f":"[1]ACS_16_5YR_B17017_with_ann!DQ64","v":35}]
["06000US3300582660","0600000US3300585540","060",{"$f":"[1]ACS_16_5YR_B17017_with_ann!C65","v":"Westmoreland"},{"$f":"[1]ACS_16_5YR_B17017_with_ann!D65","v":885},{"$f":"[1]ACS_16_5YR_B17017_with_ann!E65","v":182},{"$f":"[1]ACS_16_5YR_B17017_with_ann!F65","v":72},{"$f":"[1]ACS_16_5YR_B17017_with_ann!G65","v":99},{"$f":"[1]ACS_16_5YR_B17017_with_ann!H65","v":69},{"$f":"[1]ACS_16_5YR_B17017_with_ann!I65","v":99},{"$f":"[1]ACS_16_5YR_B17017_with_ann!J65","v":69},{"$f":"[1]ACS_16_5YR_B17017_with_ann!K65","v":99},{"$f":"[1]ACS_16_5YR_B17017_with_ann!L65","v":0},{"$f":"[1]ACS_16_5YR_B17017_with_ann!M65","v":12},{"$f":"[1]ACS_16_5YR_B17017_with_ann!N65","v":0},{"$f":"[1]ACS_16_5YR_B17017_with_ann!O65","v":12},{"$f":"[1]ACS_16_5YR_B17017_with_ann!P65","v":0},{"$f":"[1]ACS_16_5YR_B17017_with_ann!Q65","v":12},{"$f":"[1]ACS_16_5YR_B17017_with_ann!R65","v":69},{"$f":"[1]ACS_16_5YR_B17017_with_ann!S65","v":99},{"$f":"[1]ACS_16_5YR_B17017_with_ann!T65","v":0},{"$f":"[1]ACS_16_5YR_B17017_with_ann!U65","v":12},{"$f":"[1]ACS_16_5YR_B17017_with_ann!V65","v":0},{"$f":"[1]ACS_16_5YR_B17017_with_ann!W65","v":12},{"$f":"[1]ACS_16_5YR_B17017_with_ann!X65","v":0},{"$f":"[1]ACS_16_5YR_B17017_with_ann!Y65","v":12},{"$f":"[1]ACS_16_5YR_B17017_with_ann!Z65","v":0},{"$f":"[1]ACS_16_5YR_B17017_with_ann!AA65","v":12},{"$f":"[1]ACS_16_5YR_B17017_with_ann!AB65","v":0},{"$f":"[1]ACS_16_5YR_B17017_with_ann!AC65","v":12},{"$f":"[1]ACS_16_5YR_B17017_with_ann!AD65","v":0},{"$f":"[1]ACS_16_5YR_B17017_with_ann!AE65","v":12},{"$f":"[1]ACS_16_5YR_B17017_with_ann!AF65","v":0},{"$f":"[1]ACS_16_5YR_B17017_with_ann!AG65","v":12},{"$f":"[1]ACS_16_5YR_B17017_with_ann!AH65","v":0},{"$f":"[1]ACS_16_5YR_B17017_with_ann!AI65","v":12},{"$f":"[1]ACS_16_5YR_B17017_with_ann!AJ65","v":0},{"$f":"[1]ACS_16_5YR_B17017_with_ann!AK65","v":12},{"$f":"[1]ACS_16_5YR_B17017_with_ann!AL65","v":0},{"$f":"[1]ACS_16_5YR_B17017_with_ann!AM65","v":12},{"$f":"[1]ACS_16_5YR_B17017_with_ann!AN65","v":0},{"$f":"[1]ACS_16_5YR_B17017_with_ann!AO65","v":12},{"$f":"[1]ACS_16_5YR_B17017_with_ann!AP65","v":3},{"$f":"[1]ACS_16_5YR_B17017_with_ann!AQ65","v":4},{"$f":"[1]ACS_16_5YR_B17017_with_ann!AR65","v":3},{"$f":"[1]ACS_16_5YR_B17017_with_ann!AS65","v":4},{"$f":"[1]ACS_16_5YR_B17017_with_ann!AT65","v":0},{"$f":"[1]ACS_16_5YR_B17017_with_ann!AU65","v":12},{"$f":"[1]ACS_16_5YR_B17017_with_ann!AV65","v":0},{"$f":"[1]ACS_16_5YR_B17017_with_ann!AW65","v":12},{"$f":"[1]ACS_16_5YR_B17017_with_ann!AX65","v":0},{"$f":"[1]ACS_16_5YR_B17017_with_ann!AY65","v":12},{"$f":"[1]ACS_16_5YR_B17017_with_ann!AZ65","v":3},{"$f":"[1]ACS_16_5YR_B17017_with_ann!BA65","v":4},{"$f":"[1]ACS_16_5YR_B17017_with_ann!BB65","v":0},{"$f":"[1]ACS_16_5YR_B17017_with_ann!BC65","v":12},{"$f":"[1]ACS_16_5YR_B17017_with_ann!BD65","v":0},{"$f":"[1]ACS_16_5YR_B17017_with_ann!BE65","v":12},{"$f":"[1]ACS_16_5YR_B17017_with_ann!BF65","v":0},{"$f":"[1]ACS_16_5YR_B17017_with_ann!BG65","v":12},{"$f":"[1]ACS_16_5YR_B17017_with_ann!BH65","v":0},{"$f":"[1]ACS_16_5YR_B17017_with_ann!BI65","v":12},{"$f":"[1]ACS_16_5YR_B17017_with_ann!BJ65","v":0},{"$f":"[1]ACS_16_5YR_B17017_with_ann!BK65","v":12},{"$f":"[1]ACS_16_5YR_B17017_with_ann!BL65","v":813},{"$f":"[1]ACS_16_5YR_B17017_with_ann!BM65","v":144},{"$f":"[1]ACS_16_5YR_B17017_with_ann!BN65","v":600},{"$f":"[1]ACS_16_5YR_B17017_with_ann!BO65","v":113},{"$f":"[1]ACS_16_5YR_B17017_with_ann!BP65","v":540},{"$f":"[1]ACS_16_5YR_B17017_with_ann!BQ65","v":101},{"$f":"[1]ACS_16_5YR_B17017_with_ann!BR65","v":0},{"$f":"[1]ACS_16_5YR_B17017_with_ann!BS65","v":12},{"$f":"[1]ACS_16_5YR_B17017_with_ann!BT65","v":87},{"$f":"[1]ACS_16_5YR_B17017_with_ann!BU65","v":38},{"$f":"[1]ACS_16_5YR_B17017_with_ann!BV65","v":276},{"$f":"[1]ACS_16_5YR_B17017_with_ann!BW65","v":75},{"$f":"[1]ACS_16_5YR_B17017_with_ann!BX65","v":177},{"$f":"[1]ACS_16_5YR_B17017_with_ann!BY65","v":50},{"$f":"[1]ACS_16_5YR_B17017_with_ann!BZ65","v":60},{"$f":"[1]ACS_16_5YR_B17017_with_ann!CA65","v":58},{"$f":"[1]ACS_16_5YR_B17017_with_ann!CB65","v":11},{"$f":"[1]ACS_16_5YR_B17017_with_ann!CC65","v":9},{"$f":"[1]ACS_16_5YR_B17017_with_ann!CD65","v":3},{"$f":"[1]ACS_16_5YR_B17017_with_ann!CE65","v":5},{"$f":"[1]ACS_16_5YR_B17017_with_ann!CF65","v":0},{"$f":"[1]ACS_16_5YR_B17017_with_ann!CG65","v":12},{"$f":"[1]ACS_16_5YR_B17017_with_ann!CH65","v":6},{"$f":"[1]ACS_16_5YR_B17017_with_ann!CI65","v":6},{"$f":"[1]ACS_16_5YR_B17017_with_ann!CJ65","v":2},{"$f":"[1]ACS_16_5YR_B17017_with_ann!CK65","v":4},{"$f":"[1]ACS_16_5YR_B17017_with_ann!CL65","v":49},{"$f":"[1]ACS_16_5YR_B17017_with_ann!CM65","v":58},{"$f":"[1]ACS_16_5YR_B17017_with_ann!CN65","v":0},{"$f":"[1]ACS_16_5YR_B17017_with_ann!CO65","v":12},{"$f":"[1]ACS_16_5YR_B17017_with_ann!CP65","v":46},{"$f":"[1]ACS_16_5YR_B17017_with_ann!CQ65","v":58},{"$f":"[1]ACS_16_5YR_B17017_with_ann!CR65","v":0},{"$f":"[1]ACS_16_5YR_B17017_with_ann!CS65","v":12},{"$f":"[1]ACS_16_5YR_B17017_with_ann!CT65","v":3},{"$f":"[1]ACS_16_5YR_B17017_with_ann!CU65","v":4},{"$f":"[1]ACS_16_5YR_B17017_with_ann!CV65","v":213},{"$f":"[1]ACS_16_5YR_B17017_with_ann!CW65","v":94},{"$f":"[1]ACS_16_5YR_B17017_with_ann!CX65","v":106},{"$f":"[1]ACS_16_5YR_B17017_with_ann!CY65","v":68},{"$f":"[1]ACS_16_5YR_B17017_with_ann!CZ65","v":0},{"$f":"[1]ACS_16_5YR_B17017_with_ann!DA65","v":12},{"$f":"[1]ACS_16_5YR_B17017_with_ann!DB65","v":31},{"$f":"[1]ACS_16_5YR_B17017_with_ann!DC65","v":31},{"$f":"[1]ACS_16_5YR_B17017_with_ann!DD65","v":58},{"$f":"[1]ACS_16_5YR_B17017_with_ann!DE65","v":46},{"$f":"[1]ACS_16_5YR_B17017_with_ann!DF65","v":17},{"$f":"[1]ACS_16_5YR_B17017_with_ann!DG65","v":19},{"$f":"[1]ACS_16_5YR_B17017_with_ann!DH65","v":107},{"$f":"[1]ACS_16_5YR_B17017_with_ann!DI65","v":54},{"$f":"[1]ACS_16_5YR_B17017_with_ann!DJ65","v":2},{"$f":"[1]ACS_16_5YR_B17017_with_ann!DK65","v":3},{"$f":"[1]ACS_16_5YR_B17017_with_ann!DL65","v":4},{"$f":"[1]ACS_16_5YR_B17017_with_ann!DM65","v":6},{"$f":"[1]ACS_16_5YR_B17017_with_ann!DN65","v":34},{"$f":"[1]ACS_16_5YR_B17017_with_ann!DO65","v":34},{"$f":"[1]ACS_16_5YR_B17017_with_ann!DP65","v":67},{"$f":"[1]ACS_16_5YR_B17017_with_ann!DQ65","v":40}]
["06000US3300585540","0600000US3300500820","060",{"$f":"[1]ACS_16_5YR_B17017_with_ann!C66","v":"Winchester"},{"$f":"[1]ACS_16_5YR_B17017_with_ann!D66","v":1617},{"$f":"[1]ACS_16_5YR_B17017_with_ann!E66","v":146},{"$f":"[1]ACS_16_5YR_B17017_with_ann!F66","v":235},{"$f":"[1]ACS_16_5YR_B17017_with_ann!G66","v":91},{"$f":"[1]ACS_16_5YR_B17017_with_ann!H66","v":159},{"$f":"[1]ACS_16_5YR_B17017_with_ann!I66","v":74},{"$f":"[1]ACS_16_5YR_B17017_with_ann!J66","v":49},{"$f":"[1]ACS_16_5YR_B17017_with_ann!K66","v":38},{"$f":"[1]ACS_16_5YR_B17017_with_ann!L66","v":0},{"$f":"[1]ACS_16_5YR_B17017_with_ann!M66","v":12},{"$f":"[1]ACS_16_5YR_B17017_with_ann!N66","v":32},{"$f":"[1]ACS_16_5YR_B17017_with_ann!O66","v":35},{"$f":"[1]ACS_16_5YR_B17017_with_ann!P66","v":0},{"$f":"[1]ACS_16_5YR_B17017_with_ann!Q66","v":12},{"$f":"[1]ACS_16_5YR_B17017_with_ann!R66","v":17},{"$f":"[1]ACS_16_5YR_B17017_with_ann!S66","v":19},{"$f":"[1]ACS_16_5YR_B17017_with_ann!T66","v":110},{"$f":"[1]ACS_16_5YR_B17017_with_ann!U66","v":68},{"$f":"[1]ACS_16_5YR_B17017_with_ann!V66","v":26},{"$f":"[1]ACS_16_5YR_B17017_with_ann!W66","v":44},{"$f":"[1]ACS_16_5YR_B17017_with_ann!X66","v":26},{"$f":"[1]ACS_16_5YR_B17017_with_ann!Y66","v":44},{"$f":"[1]ACS_16_5YR_B17017_with_ann!Z66","v":0},{"$f":"[1]ACS_16_5YR_B17017_with_ann!AA66","v":12},{"$f":"[1]ACS_16_5YR_B17017_with_ann!AB66","v":0},{"$f":"[1]ACS_16_5YR_B17017_with_ann!AC66","v":12},{"$f":"[1]ACS_16_5YR_B17017_with_ann!AD66","v":0},{"$f":"[1]ACS_16_5YR_B17017_with_ann!AE66","v":12},{"$f":"[1]ACS_16_5YR_B17017_with_ann!AF66","v":84},{"$f":"[1]ACS_16_5YR_B17017_with_ann!AG66","v":57},{"$f":"[1]ACS_16_5YR_B17017_with_ann!AH66","v":25},{"$f":"[1]ACS_16_5YR_B17017_with_ann!AI66","v":38},{"$f":"[1]ACS_16_5YR_B17017_with_ann!AJ66","v":40},{"$f":"[1]ACS_16_5YR_B17017_with_ann!AK66","v":36},{"$f":"[1]ACS_16_5YR_B17017_with_ann!AL66","v":19},{"$f":"[1]ACS_16_5YR_B17017_with_ann!AM66","v":21},{"$f":"[1]ACS_16_5YR_B17017_with_ann!AN66","v":0},{"$f":"[1]ACS_16_5YR_B17017_with_ann!AO66","v":12},{"$f":"[1]ACS_16_5YR_B17017_with_ann!AP66","v":76},{"$f":"[1]ACS_16_5YR_B17017_with_ann!AQ66","v":41},{"$f":"[1]ACS_16_5YR_B17017_with_ann!AR66","v":62},{"$f":"[1]ACS_16_5YR_B17017_with_ann!AS66","v":42},{"$f":"[1]ACS_16_5YR_B17017_with_ann!AT66","v":0},{"$f":"[1]ACS_16_5YR_B17017_with_ann!AU66","v":12},{"$f":"[1]ACS_16_5YR_B17017_with_ann!AV66","v":26},{"$f":"[1]ACS_16_5YR_B17017_with_ann!AW66","v":29},{"$f":"[1]ACS_16_5YR_B17017_with_ann!AX66","v":21},{"$f":"[1]ACS_16_5YR_B17017_with_ann!AY66","v":23},{"$f":"[1]ACS_16_5YR_B17017_with_ann!AZ66","v":15},{"$f":"[1]ACS_16_5YR_B17017_with_ann!BA66","v":18},{"$f":"[1]ACS_16_5YR_B17017_with_ann!BB66","v":14},{"$f":"[1]ACS_16_5YR_B17017_with_ann!BC66","v":17},{"$f":"[1]ACS_16_5YR_B17017_with_ann!BD66","v":0},{"$f":"[1]ACS_16_5YR_B17017_with_ann!BE66","v":12},{"$f":"[1]ACS_16_5YR_B17017_with_ann!BF66","v":0},{"$f":"[1]ACS_16_5YR_B17017_with_ann!BG66","v":12},{"$f":"[1]ACS_16_5YR_B17017_with_ann!BH66","v":0},{"$f":"[1]ACS_16_5YR_B17017_with_ann!BI66","v":12},{"$f":"[1]ACS_16_5YR_B17017_with_ann!BJ66","v":14},{"$f":"[1]ACS_16_5YR_B17017_with_ann!BK66","v":17},{"$f":"[1]ACS_16_5YR_B17017_with_ann!BL66","v":1382},{"$f":"[1]ACS_16_5YR_B17017_with_ann!BM66","v":172},{"$f":"[1]ACS_16_5YR_B17017_with_ann!BN66","v":750},{"$f":"[1]ACS_16_5YR_B17017_with_ann!BO66","v":121},{"$f":"[1]ACS_16_5YR_B17017_with_ann!BP66","v":664},{"$f":"[1]ACS_16_5YR_B17017_with_ann!BQ66","v":114},{"$f":"[1]ACS_16_5YR_B17017_with_ann!BR66","v":24},{"$f":"[1]ACS_16_5YR_B17017_with_ann!BS66","v":34},{"$f":"[1]ACS_16_5YR_B17017_with_ann!BT66","v":210},{"$f":"[1]ACS_16_5YR_B17017_with_ann!BU66","v":96},{"$f":"[1]ACS_16_5YR_B17017_with_ann!BV66","v":297},{"$f":"[1]ACS_16_5YR_B17017_with_ann!BW66","v":73},{"$f":"[1]ACS_16_5YR_B17017_with_ann!BX66","v":133},{"$f":"[1]ACS_16_5YR_B17017_with_ann!BY66","v":61},{"$f":"[1]ACS_16_5YR_B17017_with_ann!BZ66","v":86},{"$f":"[1]ACS_16_5YR_B17017_with_ann!CA66","v":45},{"$f":"[1]ACS_16_5YR_B17017_with_ann!CB66","v":0},{"$f":"[1]ACS_16_5YR_B17017_with_ann!CC66","v":12},{"$f":"[1]ACS_16_5YR_B17017_with_ann!CD66","v":0},{"$f":"[1]ACS_16_5YR_B17017_with_ann!CE66","v":12},{"$f":"[1]ACS_16_5YR_B17017_with_ann!CF66","v":0},{"$f":"[1]ACS_16_5YR_B17017_with_ann!CG66","v":12},{"$f":"[1]ACS_16_5YR_B17017_with_ann!CH66","v":0},{"$f":"[1]ACS_16_5YR_B17017_with_ann!CI66","v":12},{"$f":"[1]ACS_16_5YR_B17017_with_ann!CJ66","v":0},{"$f":"[1]ACS_16_5YR_B17017_with_ann!CK66","v":12},{"$f":"[1]ACS_16_5YR_B17017_with_ann!CL66","v":86},{"$f":"[1]ACS_16_5YR_B17017_with_ann!CM66","v":45},{"$f":"[1]ACS_16_5YR_B17017_with_ann!CN66","v":0},{"$f":"[1]ACS_16_5YR_B17017_with_ann!CO66","v":12},{"$f":"[1]ACS_16_5YR_B17017_with_ann!CP66","v":30},{"$f":"[1]ACS_16_5YR_B17017_with_ann!CQ66","v":31},{"$f":"[1]ACS_16_5YR_B17017_with_ann!CR66","v":20},{"$f":"[1]ACS_16_5YR_B17017_with_ann!CS66","v":20},{"$f":"[1]ACS_16_5YR_B17017_with_ann!CT66","v":36},{"$f":"[1]ACS_16_5YR_B17017_with_ann!CU66","v":31},{"$f":"[1]ACS_16_5YR_B17017_with_ann!CV66","v":632},{"$f":"[1]ACS_16_5YR_B17017_with_ann!CW66","v":167},{"$f":"[1]ACS_16_5YR_B17017_with_ann!CX66","v":363},{"$f":"[1]ACS_16_5YR_B17017_with_ann!CY66","v":134},{"$f":"[1]ACS_16_5YR_B17017_with_ann!CZ66","v":0},{"$f":"[1]ACS_16_5YR_B17017_with_ann!DA66","v":12},{"$f":"[1]ACS_16_5YR_B17017_with_ann!DB66","v":96},{"$f":"[1]ACS_16_5YR_B17017_with_ann!DC66","v":73},{"$f":"[1]ACS_16_5YR_B17017_with_ann!DD66","v":181},{"$f":"[1]ACS_16_5YR_B17017_with_ann!DE66","v":92},{"$f":"[1]ACS_16_5YR_B17017_with_ann!DF66","v":86},{"$f":"[1]ACS_16_5YR_B17017_with_ann!DG66","v":49},{"$f":"[1]ACS_16_5YR_B17017_with_ann!DH66","v":269},{"$f":"[1]ACS_16_5YR_B17017_with_ann!DI66","v":105},{"$f":"[1]ACS_16_5YR_B17017_with_ann!DJ66","v":39},{"$f":"[1]ACS_16_5YR_B17017_with_ann!DK66","v":49},{"$f":"[1]ACS_16_5YR_B17017_with_ann!DL66","v":6},{"$f":"[1]ACS_16_5YR_B17017_with_ann!DM66","v":11},{"$f":"[1]ACS_16_5YR_B17017_with_ann!DN66","v":95},{"$f":"[1]ACS_16_5YR_B17017_with_ann!DO66","v":60},{"$f":"[1]ACS_16_5YR_B17017_with_ann!DP66","v":129},{"$f":"[1]ACS_16_5YR_B17017_with_ann!DQ66","v":81}]
[]
[]
[null,null,null,null,null,null,null,null,null,null,null,null,null,null,null,null,null,null,null,null,null,null,null,null,null,null,null,null,null,null,null,null,null,null,null,null,null,null,null,null,null,null,{"$f":"$D$22","v":"Troy"},null,{"$f":"$D$23","v":"Walpole"},null,{"$f":"$D$24","v":"Westmoreland"},null,{"$f":"$D$25","v":"Winchester"}]
[null,null,null,null,{"$f":"$D$3","v":"Alstead"},null,{"$f":"$D$4","v":"Chesterfield"},null,{"$f":"$D$5","v":"Dublin"},null,{"$f":"$D$6","v":"Fitzwilliam"},null,{"$f":"$D$7","v":"Gilsum"},null,{"$f":"$D$8","v":"Harrisville"},null,{"$f":"$D$9","v":"Hinsdale"},null,{"$f":"$D$10","v":"Jaffrey"},null,{"$f":"$D$11","v":"Keene"},null,{"$f":"$D$12","v":"Marlborough"},null,{"$f":"$D$13","v":"Marlow"},null,{"$f":"$D$14","v":"Nelson"},null,{"$f":"$D$15","v":"Richmond"},null,{"$f":"$D$16","v":"Rindge"},null,{"$f":"$D$17","v":"Roxbury"},null,{"$f":"$D$18","v":"Stoddard"},null,{"$f":"$D$19","v":"Sullivan"},null,{"$f":"$D$20","v":"Surry"},null,{"$f":"$D$21","v":"Swanzey"},null,{"$f":"$D$21","v":"Swanzey"},null,{"$f":"$D$21","v":"Swanzey"},null,{"$f":"$D$21","v":"Swanzey"},null,{"$f":"$D$21","v":"Swanzey"}]
[null,null,null,null,"Estimate","Margin of Error","Estimate","Margin of Error","Estimate","Margin of Error","Estimate","Margin of Error","Estimate","Margin of Error","Estimate","Margin of Error","Estimate","Margin of Error","Estimate","Margin of Error","Estimate","Margin of Error","Estimate","Margin of Error","Estimate","Margin of Error","Estimate","Margin of Error","Estimate","Margin of Error","Estimate","Margin of Error","Estimate","Margin of Error","Estimate","Margin of Error","Estimate","Margin of Error","Estimate","Margin of Error","Estimate","Margin of Error"]
[null,null,null,"Estimate!!Total:",723,97,1366,158,635,101,1013,154,310,51,416,75,1594,139,2026,225,9259,370,942,130,314,61,246,41,393,73,1972,144,95,37,436,52,281,53,344,58,3255,171,758,101,1427,121,885,182,1617,146]
[null,null,null,"Estimate!!Total:!!Income in the past 12 months below poverty level:",110,64,51,53,72,55,133,58,18,15,10,10,68,62,102,70,970,199,114,71,34,21,7,5,15,21,93,56,2,3,17,15,14,11,6,6,281,130,71,35,203,125,72,99,235,91]
[null,null,null,"Estimate!!Total:!!Income in the past 12 months below poverty level:!!Family households:",9,9,33,45,57,52,34,27,5,6,0,12,19,25,23,39,174,92,56,64,20,15,4,4,12,20,79,55,0,12,5,8,3,4,4,5,164,97,24,21,28,32,69,99,159,74]
[null,null,null,"Estimate!!Total:!!Income in the past 12 months below poverty level:!!Family households:!!Married-couple family:",9,9,33,45,44,52,6,8,3,4,0,12,10,15,0,17,48,48,7,10,13,12,4,4,0,12,59,48,0,12,0,12,3,4,2,3,11,21,6,10,6,9,69,99,49,38]
[null,null,null,"Estimate!!Total:!!Income in the past 12 months below poverty level:!!Family households:!!Married-couple family:!!Householder under 25 years",0,12,0,12,0,12,0,12,0,12,0,12,0,12,0,17,22,39,0,12,0,12,0,12,0,12,20,31,0,12,0,12,0,12,0,12,0,17,0,12,0,12,0,12,0,12]
[null,null,null,"Estimate!!Total:!!Income in the past 12 months below poverty level:!!Family households:!!Married-couple family:!!Householder 25 to 44 years",0,12,33,45,0,12,0,12,2,3,0,12,10,15,0,17,6,10,7,10,4,6,0,12,0,12,10,18,0,12,0,12,0,12,0,12,0,17,0,12,0,12,0,12,32,35]
[null,null,null,"Estimate!!Total:!!Income in the past 12 months below poverty level:!!Family households:!!Married-couple family:!!Householder 45 to 64 years",9,9,0,12,7,7,6,8,0,12,0,12,0,12,0,17,0,22,0,12,9,10,2,3,0,12,29,36,0,12,0,12,3,4,0,12,11,21,0,12,6,9,0,12,0,12]
[null,null,null,"Estimate!!Total:!!Income in the past 12 months below poverty level:!!Family households:!!Married-couple family:!!Householder 65 years and over",0,12,0,12,37,53,0,12,1,3,0,12,0,12,0,17,20,26,0,12,0,12,2,2,0,12,0,17,0,12,0,12,0,12,2,3,0,17,6,10,0,12,69,99,17,19]
[null,null,null,"Estimate!!Total:!!Income in the past 12 months below poverty level:!!Family households:!!Other family:",0,12,0,12,13,13,28,24,2,3,0,12,9,24,23,39,126,79,49,64,7,10,0,12,12,20,20,24,0,12,5,8,0,12,2,3,153,94,18,18,22,31,0,12,110,68]
[null,null,null,"Estimate!!Total:!!Income in the past 12 months below poverty level:!!Family households:!!Other family:!!Male householder, no spouse present:",0,12,0,12,0,12,16,18,0,12,0,12,5,20,0,17,26,30,0,12,0,12,0,12,0,12,0,17,0,12,5,8,0,12,2,3,21,34,7,11,0,12,0,12,26,44]
[null,null,null,"Estimate!!Total:!!Income in the past 12 months below poverty level:!!Family households:!!Other family:!!Male householder, no spouse present:!!Householder under 25 years",0,12,0,12,0,12,0,12,0,12,0,12,0,12,0,17,0,22,0,12,0,12,0,12,0,12,0,17,0,12,0,12,0,12,0,12,0,17,0,12,0,12,0,12,26,44]
[null,null,null,"Estimate!!Total:!!Income in the past 12 months below poverty level:!!Family households:!!Other family:!!Male householder, no spouse present:!!Householder 25 to 44 years",0,12,0,12,0,12,0,12,0,12,0,12,0,12,0,17,26,30,0,12,0,12,0,12,0,12,0,17,0,12,0,12,0,12,0,12,21,34,0,12,0,12,0,12,0,12]
[null,null,null,"Estimate!!Total:!!Income in the past 12 months below poverty level:!!Family households:!!Other family:!!Male householder, no spouse present:!!Householder 45 to 64 years",0,12,0,12,0,12,16,18,0,12,0,12,5,20,0,17,0,22,0,12,0,12,0,12,0,12,0,17,0,12,5,8,0,12,0,12,0,17,7,11,0,12,0,12,0,12]
[null,null,null,"Estimate!!Total:!!Income in the past 12 months below poverty level:!!Family households:!!Other family:!!Male householder, no spouse present:!!Householder 65 years and over",0,12,0,12,0,12,0,12,0,12,0,12,0,12,0,17,0,22,0,12,0,12,0,12,0,12,0,17,0,12,0,12,0,12,2,3,0,17,0,12,0,12,0,12,0,12]
[null,null,null,"Estimate!!Total:!!Income in the past 12 months below poverty level:!!Family households:!!Other family:!!Female householder, no spouse present:",0,12,0,12,13,13,12,15,2,3,0,12,4,10,23,39,100,71,49,64,7,10,0,12,12,20,20,24,0,12,0,12,0,12,0,12,132,87,11,13,22,31,0,12,84,57]
[null,null,null,"Estimate!!Total:!!Income in the past 12 months below poverty level:!!Family households:!!Other family:!!Female householder, no spouse present:!!Householder under 25 years",0,12,0,12,0,12,0,12,0,12,0,12,0,12,0,17,11,18,0,12,0,12,0,12,0,12,0,17,0,12,0,12,0,12,0,12,0,17,0,12,0,12,0,12,25,38]
[null,null,null,"Estimate!!Total:!!Income in the past 12 months below poverty level:!!Family households:!!Other family:!!Female householder, no spouse present:!!Householder 25 to 44 years",0,12,0,12,4,5,0,12,0,12,0,12,0,12,23,39,89,66,49,64,7,10,0,12,0,12,20,24,0,12,0,12,0,12,0,12,68,66,7,11,12,20,0,12,40,36]
[null,null,null,"Estimate!!Total:!!Income in the past 12 months below poverty level:!!Family households:!!Other family:!!Female householder, no spouse present:!!Householder 45 to 64 years",0,12,0,12,9,12,12,15,2,3,0,12,4,10,0,17,0,22,0,12,0,12,0,12,12,20,0,17,0,12,0,12,0,12,0,12,0,17,4,7,0,12,0,12,19,21]
[null,null,null,"Estimate!!Total:!!Income in the past 12 months below poverty level:!!Family households:!!Other family:!!Female householder, no spouse present:!!Householder 65 years and over",0,12,0,12,0,12,0,12,0,12,0,12,0,12,0,17,0,22,0,12,0,12,0,12,0,12,0,17,0,12,0,12,0,12,0,12,64,75,0,12,10,16,0,12,0,12]
[null,null,null,"Estimate!!Total:!!Income in the past 12 months below poverty level:!!Nonfamily households:",101,64,18,29,15,11,99,50,13,13,10,10,49,54,79,58,796,194,58,33,14,12,3,4,3,5,14,17,2,3,12,14,11,10,2,4,117,81,47,31,175,118,3,4,76,41]
[null,null,null,"Estimate!!Total:!!Income in the past 12 months below poverty level:!!Nonfamily households:!!Male householder:",33,38,0,12,4,5,45,31,3,5,7,9,6,11,0,17,395,128,22,20,11,11,2,3,0,12,0,17,1,3,10,13,3,4,0,12,90,74,17,20,62,63,3,4,62,42]
[null,null,null,"Estimate!!Total:!!Income in the past 12 months below poverty level:!!Nonfamily households:!!Male householder:!!Householder under 25 years",0,12,0,12,0,12,0,12,0,12,0,12,0,12,0,17,149,81,0,12,0,12,0,12,0,12,0,17,0,12,0,12,0,12,0,12,0,17,0,12,0,12,0,12,0,12]
[null,null,null,"Estimate!!Total:!!Income in the past 12 months below poverty level:!!Nonfamily households:!!Male householder:!!Householder 25 to 44 years",28,38,0,12,0,12,0,12,1,4,0,12,0,12,0,17,114,89,8,12,0,12,2,3,0,12,0,17,1,3,0,12,0,12,0,12,58,70,0,12,0,12,0,12,26,29]
[null,null,null,"Estimate!!Total:!!Income in the past 12 months below poverty level:!!Nonfamily households:!!Male householder:!!Householder 45 to 64 years",5,6,0,12,4,5,31,29,2,3,7,9,6,11,0,17,91,64,4,7,9,11,0,12,0,12,0,17,0,12,10,13,3,4,0,12,12,21,13,22,20,32,0,12,21,23]
[null,null,null,"Estimate!!Total:!!Income in the past 12 months below poverty level:!!Nonfamily households:!!Male householder:!!Householder 65 years and over",0,12,0,12,0,12,14,12,0,12,0,12,0,12,0,17,41,34,10,16,2,3,0,12,0,12,0,17,0,12,0,12,0,12,0,12,20,28,4,8,42,55,3,4,15,18]
[null,null,null,"Estimate!!Total:!!Income in the past 12 months below poverty level:!!Nonfamily households:!!Female householder:",68,53,18,29,11,9,54,39,10,12,3,4,43,52,79,58,401,151,36,29,3,4,1,4,3,5,14,17,1,2,2,4,8,9,2,4,27,33,30,24,113,94,0,12,14,17]
[null,null,null,"Estimate!!Total:!!Income in the past 12 months below poverty level:!!Nonfamily households:!!Female householder:!!Householder under 25 years",0,12,0,12,0,12,0,12,0,12,0,12,0,12,0,17,51,36,0,12,0,12,0,12,0,12,0,17,0,12,0,12,0,12,0,12,0,17,5,7,0,12,0,12,0,12]
[null,null,null,"Estimate!!Total:!!Income in the past 12 months below poverty level:!!Nonfamily households:!!Female householder:!!Householder 25 to 44 years",0,12,0,12,3,4,0,12,1,2,0,12,0,12,0,17,96,88,13,21,0,12,0,12,0,12,0,17,0,12,0,12,0,12,0,12,0,17,7,10,0,12,0,12,0,12]
[null,null,null,"Estimate!!Total:!!Income in the past 12 months below poverty level:!!Nonfamily households:!!Female householder:!!Householder 45 to 64 years",0,12,18,29,5,7,23,28,0,12,0,12,14,21,39,48,124,91,17,18,0,12,0,12,0,12,0,17,0,12,0,12,0,12,0,12,27,33,13,19,12,20,0,12,0,12]
[null,null,null,"Estimate!!Total:!!Income in the past 12 months below poverty level:!!Nonfamily households:!!Female householder:!!Householder 65 years and over",68,53,0,12,3,4,31,30,9,12,3,4,29,47,40,38,130,86,6,9,3,4,1,4,3,5,14,17,1,2,2,4,8,9,2,4,0,17,5,7,101,92,0,12,14,17]
[null,null,null,"Estimate!!Total:!!Income in the past 12 months at or above poverty level:",613,80,1315,175,563,79,880,144,292,53,406,73,1526,155,1924,249,8289,374,828,135,280,60,239,43,378,72,1879,156,93,37,419,53,267,53,338,59,2974,182,687,96,1224,116,813,144,1382,172]
[null,null,null,"Estimate!!Total:!!Income in the past 12 months at or above poverty level:!!Family households:",445,73,970,146,470,81,585,122,225,44,313,70,1030,147,1351,165,4367,293,501,112,227,58,163,39,304,67,1372,129,66,37,292,46,193,45,258,60,1925,218,473,87,855,100,600,113,750,121]
[null,null,null,"Estimate!!Total:!!Income in the past 12 months at or above poverty level:!!Family households:!!Married-couple family:",380,74,815,161,410,82,475,78,190,37,271,66,874,154,1202,191,3345,288,439,100,214,55,132,32,245,57,1309,127,57,37,259,45,164,45,231,60,1572,259,353,72,711,99,540,101,664,114]
[null,null,null,"Estimate!!Total:!!Income in the past 12 months at or above poverty level:!!Family households:!!Married-couple family:!!Householder under 25 years",0,12,26,41,3,4,22,28,0,12,0,12,0,12,0,17,0,22,0,12,0,12,0,12,0,12,7,11,0,12,5,9,0,12,2,4,0,17,6,10,0,12,0,12,24,34]
[null,null,null,"Estimate!!Total:!!Income in the past 12 months at or above poverty level:!!Family households:!!Married-couple family:!!Householder 25 to 44 years",51,27,155,101,67,33,116,43,45,18,70,49,154,65,282,131,918,169,108,47,57,32,28,14,54,25,369,78,8,5,53,23,60,38,71,35,312,149,135,43,197,91,87,38,210,96]
[null,null,null,"Estimate!!Total:!!Income in the past 12 months at or above poverty level:!!Family households:!!Married-couple family:!!Householder 45 to 64 years",200,70,298,147,205,75,178,55,79,26,91,39,410,113,718,163,1480,281,212,73,81,32,54,23,125,43,548,113,39,36,131,35,74,23,64,31,608,160,117,49,312,67,276,75,297,73]
[null,null,null,"Estimate!!Total:!!Income in the past 12 months at or above poverty level:!!Family households:!!Married-couple family:!!Householder 65 years and over",129,48,336,103,135,38,159,46,66,24,110,34,310,159,202,85,947,163,119,40,76,37,50,21,66,24,385,108,10,6,70,23,30,10,94,36,652,170,95,39,202,51,177,50,133,61]
[null,null,null,"Estimate!!Total:!!Income in the past 12 months at or above poverty level:!!Family households:!!Other family:",65,21,155,87,60,26,110,97,35,27,42,22,156,92,149,74,1022,212,62,30,13,13,31,18,59,36,63,41,9,11,33,20,29,19,27,16,353,180,120,49,144,70,60,58,86,45]
[null,null,null,"Estimate!!Total:!!Income in the past 12 months at or above poverty level:!!Family households:!!Other family:!!Male householder, no spouse present:",13,11,18,29,35,22,39,28,10,12,12,10,76,71,36,38,308,149,21,22,8,12,10,10,41,37,35,38,8,11,14,15,21,17,4,4,126,108,50,33,43,30,11,9,0,12]
[null,null,null,"Estimate!!Total:!!Income in the past 12 months at or above poverty level:!!Family households:!!Other family:!!Male householder, no spouse present:!!Householder under 25 years",0,12,0,12,0,12,0,12,0,12,0,12,0,12,0,17,27,43,0,12,0,12,0,12,0,12,0,17,0,12,0,12,0,12,0,12,0,17,0,12,0,12,3,5,0,12]
[null,null,null,"Estimate!!Total:!!Income in the past 12 months at or above poverty level:!!Family households:!!Other family:!!Male householder, no spouse present:!!Householder 25 to 44 years",5,7,0,12,9,13,8,12,7,11,4,6,10,17,18,24,94,86,12,19,0,12,7,10,8,13,35,38,0,12,11,14,4,5,2,3,43,65,37,33,29,27,0,12,0,12]
[null,null,null,"Estimate!!Total:!!Income in the past 12 months at or above poverty level:!!Family households:!!Other family:!!Male householder, no spouse present:!!Householder 45 to 64 years",8,8,18,29,25,16,29,26,0,12,6,7,15,24,18,29,169,108,9,11,8,12,0,12,11,15,0,17,7,10,3,4,2,3,2,3,83,89,7,9,7,10,6,6,0,12]
[null,null,null,"Estimate!!Total:!!Income in the past 12 months at or above poverty level:!!Family households:!!Other family:!!Male householder, no spouse present:!!Householder 65 years and over",0,12,0,12,1,2,2,3,3,5,2,5,51,69,0,17,18,28,0,12,0,12,3,3,22,30,0,17,1,2,0,12,15,15,0,12,0,17,6,8,7,11,2,4,0,12]
[null,null,null,"Estimate!!Total:!!Income in the past 12 months at or above poverty level:!!Family households:!!Other family:!!Female householder, no spouse present:",52,20,137,81,25,15,71,91,25,26,30,19,80,59,113,75,714,163,41,26,5,5,21,14,18,14,28,32,1,2,19,13,8,7,23,15,227,127,70,35,101,62,49,58,86,45]
[null,null,null,"Estimate!!Total:!!Income in the past 12 months at or above poverty level:!!Family households:!!Other family:!!Female householder, no spouse present:!!Householder under 25 years",0,12,0,12,0,12,0,12,3,4,0,12,0,12,0,17,41,65,0,12,0,12,0,12,0,12,0,17,0,12,0,12,0,12,0,12,0,17,0,12,0,12,0,12,0,12]
[null,null,null,"Estimate!!Total:!!Income in the past 12 months at or above poverty level:!!Family households:!!Other family:!!Female householder, no spouse present:!!Householder 25 to 44 years",13,11,67,64,0,12,0,12,0,12,7,7,13,21,46,46,230,99,19,21,0,12,7,9,0,12,0,17,0,12,4,5,3,4,0,12,178,119,32,26,7,12,46,58,30,31]
[null,null,null,"Estimate!!Total:!!Income in the past 12 months at or above poverty level:!!Family households:!!Other family:!!Female householder, no spouse present:!!Householder 45 to 64 years",28,15,36,39,6,7,6,9,22,26,23,18,53,55,14,21,382,125,12,13,2,3,7,6,11,10,28,32,0,12,13,11,3,4,11,8,25,30,13,15,65,59,0,12,20,20]
[null,null,null,"Estimate!!Total:!!Income in the past 12 months at or above poverty level:!!Family households:!!Other family:!!Female householder, no spouse present:!!Householder 65 years and over",11,10,34,38,19,15,65,91,0,12,0,12,14,15,53,54,61,48,10,12,3,4,7,8,7,8,0,17,1,2,2,5,2,3,12,13,24,32,25,19,29,24,3,4,36,31]
[null,null,null,"Estimate!!Total:!!Income in the past 12 months at or above poverty level:!!Nonfamily households:",168,56,345,164,93,30,295,75,67,28,93,28,496,131,573,276,3922,453,327,80,53,17,76,23,74,28,507,144,27,12,127,39,74,24,80,24,1049,244,214,72,369,115,213,94,632,167]
[null,null,null,"Estimate!!Total:!!Income in the past 12 months at or above poverty level:!!Nonfamily households:!!Male householder:",64,41,210,118,57,26,119,58,26,15,45,21,331,119,339,236,1641,308,153,69,30,13,36,19,48,24,290,110,13,10,64,29,27,14,45,22,614,193,109,50,222,95,106,68,363,134]
[null,null,null,"Estimate!!Total:!!Income in the past 12 months at or above poverty level:!!Nonfamily households:!!Male householder:!!Householder under 25 years",0,12,0,12,0,12,0,12,0,12,0,12,9,14,0,17,210,105,0,12,0,12,0,12,0,12,14,23,0,12,0,12,0,12,0,12,51,51,0,12,5,9,0,12,0,12]
[null,null,null,"Estimate!!Total:!!Income in the past 12 months at or above poverty level:!!Nonfamily households:!!Male householder:!!Householder 25 to 44 years",24,23,19,30,12,12,9,9,6,9,6,6,69,52,61,59,687,242,63,41,0,12,4,4,3,5,115,87,5,7,7,6,10,10,6,5,31,33,49,35,39,40,31,31,96,73]
[null,null,null,"Estimate!!Total:!!Income in the past 12 months at or above poverty level:!!Nonfamily households:!!Male householder:!!Householder 45 to 64 years",35,33,0,12,33,23,79,53,13,9,12,11,91,61,255,228,397,141,34,33,18,13,15,12,14,12,96,65,7,8,37,27,6,5,23,19,353,195,4,6,95,57,58,46,181,92]
[null,null,null,"Estimate!!Total:!!Income in the past 12 months at or above poverty level:!!Nonfamily households:!!Male householder:!!Householder 65 years and over",5,6,191,124,12,7,31,16,7,6,27,17,162,107,23,26,347,137,56,40,12,7,17,12,31,20,65,44,1,2,20,12,11,8,16,9,179,85,56,37,83,57,17,19,86,49]
[null,null,null,"Estimate!!Total:!!Income in the past 12 months at or above poverty level:!!Nonfamily households:!!Female householder:",104,44,135,103,36,17,176,62,41,18,48,22,165,64,234,143,2281,327,174,53,23,10,40,15,26,16,217,96,14,9,63,24,47,19,35,15,435,151,105,51,147,70,107,54,269,105]
[null,null,null,"Estimate!!Total:!!Income in the past 12 months at or above poverty level:!!Nonfamily households:!!Female householder:!!Householder under 25 years",0,12,0,12,0,12,4,7,0,12,0,12,0,12,49,74,131,78,0,12,3,4,0,12,0,12,0,17,0,12,0,12,0,12,2,3,0,17,0,12,0,12,2,3,39,49]
[null,null,null,"Estimate!!Total:!!Income in the past 12 months at or above poverty level:!!Nonfamily households:!!Female householder:!!Householder 25 to 44 years",24,21,0,12,6,7,43,35,10,11,0,12,28,31,17,28,716,193,60,41,2,3,6,5,2,4,34,41,2,3,6,6,7,6,2,3,120,79,21,23,29,30,4,6,6,11]
[null,null,null,"Estimate!!Total:!!Income in the past 12 months at or above poverty level:!!Nonfamily households:!!Female householder:!!Householder 45 to 64 years",9,9,96,90,7,8,89,46,15,11,11,9,79,50,21,33,393,136,37,26,2,4,10,8,0,12,65,47,4,4,21,16,22,14,7,6,112,72,56,41,67,51,34,34,95,60]
[null,null,null,"Estimate!!Total:!!Income in the past 12 months at or above poverty level:!!Nonfamily households:!!Female householder:!!Householder 65 years and over",71,37,39,44,23,12,40,22,16,9,37,20,58,36,147,89,1041,260,77,29,16,11,24,14,24,16,118,76,8,7,36,15,18,9,24,13,203,92,28,22,51,35,67,40,129,81]

{"sheet":"ACS_Table_B01001","index":31,"n_rows":265,"n_cols":48,"rows_kept":265,"cut":false,"hidden":true,"merged":[[65030,10,65030,11],[65030,12,65030,13],[65030,14,65030,15],[65030,2,65030,3],[65030,4,65030,5],[65030,6,65030,7],[65030,8,65030,9],[64948,14,64948,15],[65010,2,65010,3],[65010,4,65010,5],[65010,6,65010,7],[65010,8,65010,9],[65010,10,65010,11],[65010,12,65010,13],[65010,14,65010,15],[64948,2,64948,3],[64948,4,64948,5],[64948,6,64948,7],[64948,8,64948,9],[64948,10,64948,11],[64948,12,64948,13],[64866,14,64866,15],[64928,2,64928,3],[64928,4,64928,5],[64928,6,64928,7],[64928,8,64928,9],[64928,10,64928,11],[64928,12,64928,13],[64928,14,64928,15],[64866,2,64866,3],[64866,4,64866,5],[64866,6,64866,7],[64866,8,64866,9],[64866,10,64866,11],[64866,12,64866,13],[64784,14,64784,15],[64846,2,64846,3],[64846,4,64846,5],[64846,6,64846,7],[64846,8,64846,9],[64846,10,64846,11],[64846,12,64846,13],[64846,14,64846,15],[64784,2,64784,3],[64784,4,64784,5],[64784,6,64784,7],[64784,8,64784,9],[64784,10,64784,11],[64784,12,64784,13],[64702,14,64702,15],[64764,2,64764,3],[64764,4,64764,5],[64764,6,64764,7],[64764,8,64764,9],[64764,10,64764,11],[64764,12,64764,13],[64764,14,64764,15],[64702,2,64702,3],[64702,4,64702,5],[64702,6,64702,7],[64702,8,64702,9],[64702,10,64702,11],[64702,12,64702,13],[64620,14,64620,15],[64682,2,64682,3],[64682,4,64682,5],[64682,6,64682,7],[64682,8,64682,9],[64682,10,64682,11],[64682,12,64682,13],[64682,14,64682,15],[64620,2,64620,3],[64620,4,64620,5],[64620,6,64620,7],[64620,8,64620,9],[64620,10,64620,11],[64620,12,64620,13],[64538,14,64538,15],[64600,2,64600,3],[64600,4,64600,5],[64600,6,64600,7],[64600,8,64600,9],[64600,10,64600,11],[64600,12,64600,13],[64600,14,64600,15],[64538,2,64538,3],[64538,4,64538,5],[64538,6,64538,7],[64538,8,64538,9],[64538,10,64538,11],[64538,12,64538,13],[64456,14,64456,15],[64518,2,64518,3],[64518,4,64518,5],[64518,6,64518,7],[64518,8,64518,9],[64518,10,64518,11],[64518,12,64518,13],[64518,14,64518,15],[64456,2,64456,3],[64456,4,64456,5],[64456,6,64456,7],[64456,8,64456,9],[64456,10,64456,11],[64456,12,64456,13],[64374,14,64374,15],[64436,2,64436,3],[64436,4,64436,5],[64436,6,64436,7],[64436,8,64436,9],[64436,10,64436,11],[64436,12,64436,13],[64436,14,64436,15],[64374,2,64374,3],[64374,4,64374,5],[64374,6,64374,7],[64374,8,64374,9],[64374,10,64374,11],[64374,12,64374,13],[64292,14,64292,15],[64354,2,64354,3],[64354,4,64354,5],[64354,6,64354,7],[64354,8,64354,9],[64354,10,64354,11],[64354,12,64354,13],[64354,14,64354,15],[64292,2,64292,3],[64292,4,64292,5],[64292,6,64292,7],[64292,8,64292,9],[64292,10,64292,11],[64292,12,64292,13],[64210,14,64210,15],[64272,2,64272,3],[64272,4,64272,5],[64272,6,64272,7],[64272,8,64272,9],[64272,10,64272,11],[64272,12,64272,13],[64272,14,64272,15],[64210,2,64210,3],[64210,4,64210,5],[64210,6,64210,7],[64210,8,64210,9],[64210,10,64210,11],[64210,12,64210,13],[64128,14,64128,15],[64190,2,64190,3],[64190,4,64190,5],[64190,6,64190,7],[64190,8,64190,9],[64190,10,64190,11],[64190,12,64190,13],[64190,14,64190,15],[64128,2,64128,3],[64128,4,64128,5],[64128,6,64128,7],[64128,8,64128,9],[64128,10,64128,11],[64128,12,64128,13],[64046,14,64046,15],[64108,2,64108,3],[64108,4,64108,5],[64108,6,64108,7],[64108,8,64108,9],[64108,10,64108,11],[64108,12,64108,13],[64108,14,64108,15],[64046,2,64046,3],[64046,4,64046,5],[64046,6,64046,7],[64046,8,64046,9],[64046,10,64046,11],[64046,12,64046,13],[63964,14,63964,15],[64026,2,64026,3],[64026,4,64026,5],[64026,6,64026,7],[64026,8,64026,9],[64026,10,64026,11],[64026,12,64026,13],[64026,14,64026,15],[63964,2,63964,3],[63964,4,63964,5],[63964,6,63964,7],[63964,8,63964,9],[63964,10,63964,11],[63964,12,63964,13],[63882,14,63882,15],[63944,2,63944,3],[63944,4,63944,5],[63944,6,63944,7],[63944,8,63944,9],[63944,10,63944,11],[63944,12,63944,13],[63944,14,63944,15],[63882,2,63882,3],[63882,4,63882,5],[63882,6,63882,7],[63882,8,63882,9],[63882,10,63882,11],[63882,12,63882,13],[63800,14,63800,15],[63862,2,63862,3],[63862,4,63862,5],[63862,6,63862,7],[63862,8,63862,9],[63862,10,63862,11],[63862,12,63862,13],[63862,14,63862,15],[63800,2,63800,3],[63800,4,63800,5],[63800,6,63800,7],[63800,8,63800,9],[63800,10,63800,11],[63800,12,63800,13],[63718,14,63718,15],[63780,2,63780,3],[63780,4,63780,5],[63780,6,63780,7],[63780,8,63780,9],[63780,10,63780,11],[63780,12,63780,13],[63780,14,63780,15],[63718,2,63718,3],[63718,4,63718,5],[63718,6,63718,7],[63718,8,63718,9],[63718,10,63718,11],[63718,12,63718,13],[63636,14,63636,15],[63698,2,63698,3],[63698,4,63698,5],[63698,6,63698,7],[63698,8,63698,9],[63698,10,63698,11],[63698,12,63698,13],[63698,14,63698,15],[63636,2,63636,3],[63636,4,63636,5],[63636,6,63636,7],[63636,8,63636,9],[63636,10,63636,11],[63636,12,63636,13],[63554,14,63554,15],[63616,2,63616,3],[63616,4,63616,5],[63616,6,63616,7],[63616,8,63616,9],[63616,10,63616,11],[63616,12,63616,13],[63616,14,63616,15],[63554,2,63554,3],[63554,4,63554,5],[63554,6,63554,7],[63554,8,63554,9],[63554,10,63554,11],[63554,12,63554,13],[63472,14,63472,15],[63534,2,63534,3],[63534,4,63534,5],[63534,6,63534,7],[63534,8,63534,9],[63534,10,63534,11],[63534,12,63534,13],[63534,14,63534,15],[63472,2,63472,3],[63472,4,63472,5],[63472,6,63472,7],[63472,8,63472,9],[63472,10,63472,11],[63472,12,63472,13],[63390,14,63390,15],[63452,2,63452,3],[63452,4,63452,5],[63452,6,63452,7],[63452,8,63452,9],[63452,10,63452,11],[63452,12,63452,13],[63452,14,63452,15],[63390,2,63390,3],[63390,4,63390,5],[63390,6,63390,7],[63390,8,63390,9],[63390,10,63390,11],[63390,12,63390,13],[63308,14,63308,15],[63370,2,63370,3],[63370,4,63370,5],[63370,6,63370,7],[63370,8,63370,9],[63370,10,63370,11],[63370,12,63370,13],[63370,14,63370,15],[63308,2,63308,3],[63308,4,63308,5],[63308,6,63308,7],[63308,8,63308,9],[63308,10,63308,11],[63308,12,63308,13],[63226,14,63226,15],[63288,2,63288,3],[63288,4,63288,5],[63288,6,63288,7],[63288,8,63288,9],[63288,10,63288,11],[63288,12,63288,13],[63288,14,63288,15],[63226,2,63226,3],[63226,4,63226,5],[63226,6,63226,7],[63226,8,63226,9],[63226,10,63226,11],[63226,12,63226,13],[63144,14,63144,15],[63206,2,63206,3],[63206,4,63206,5],[63206,6,63206,7],[63206,8,63206,9],[63206,10,63206,11],[63206,12,63206,13],[63206,14,63206,15],[63144,2,63144,3],[63144,4,63144,5],[63144,6,63144,7],[63144,8,63144,9],[63144,10,63144,11],[63144,12,63144,13],[63062,14,63062,15],[63124,2,63124,3],[63124,4,63124,5],[63124,6,63124,7],[63124,8,63124,9],[63124,10,63124,11],[63124,12,63124,13],[63124,14,63124,15],[63062,2,63062,3],[63062,4,63062,5],[63062,6,63062,7],[63062,8,63062,9],[63062,10,63062,11],[63062,12,63062,13],[62980,14,62980,15],[63042,2,63042,3],[63042,4,63042,5],[63042,6,63042,7],[63042,8,63042,9],[63042,10,63042,11],[63042,12,63042,13],[63042,14,63042,15],[62980,2,62980,3],[62980,4,62980,5],[62980,6,62980,7],[62980,8,62980,9],[62980,10,62980,11],[62980,12,62980,13],[62898,14,62898,15],[62960,2,62960,3],[62960,4,62960,5],[62960,6,62960,7],[62960,8,62960,9],[62960,10,62960,11],[62960,12,62960,13],[62960,14,62960,15],[62898,2,62898,3],[62898,4,62898,5],[62898,6,62898,7],[62898,8,62898,9],[62898,10,62898,11],[62898,12,62898,13],[62816,14,62816,15],[62878,2,62878,3],[62878,4,62878,5],[62878,6,62878,7],[62878,8,62878,9],[62878,10,62878,11],[62878,12,62878,13],[62878,14,62878,15],[62816,2,62816,3],[62816,4,62816,5],[62816,6,62816,7],[62816,8,62816,9],[62816,10,62816,11],[62816,12,62816,13],[62734,14,62734,15],[62796,2,62796,3],[62796,4,62796,5],[62796,6,62796,7],[62796,8,62796,9],[62796,10,62796,11],[62796,12,62796,13],[62796,14,62796,15],[62734,2,62734,3],[62734,4,62734,5],[62734,6,62734,7],[62734,8,62734,9],[62734,10,62734,11],[62734,12,62734,13],[62652,14,62652,15],[62714,2,62714,3],[62714,4,62714,5],[62714,6,62714,7],[62714,8,62714,9],[62714,10,62714,11],[62714,12,62714,13],[62714,14,62714,15],[62652,2,62652,3],[62652,4,62652,5],[62652,6,62652,7],[62652,8,62652,9],[62652,10,62652,11],[62652,12,62652,13],[62570,14,62570,15],[62632,2,62632,3],[62632,4,62632,5],[62632,6,62632,7],[62632,8,62632,9],[62632,10,62632,11],[62632,12,62632,13],[62632,14,62632,15],[62570,2,62570,3],[62570,4,62570,5],[62570,6,62570,7],[62570,8,62570,9],[62570,10,62570,11],[62570,12,62570,13],[62488,14,62488,15],[62550,2,62550,3],[62550,4,62550,5],[62550,6,62550,7],[62550,8,62550,9],[62550,10,62550,11],[62550,12,62550,13],[62550,14,62550,15],[62488,2,62488,3],[62488,4,62488,5],[62488,6,62488,7],[62488,8,62488,9],[62488,10,62488,11],[62488,12,62488,13],[62406,14,62406,15],[62468,2,62468,3],[62468,4,62468,5],[62468,6,62468,7],[62468,8,62468,9],[62468,10,62468,11],[62468,12,62468,13],[62468,14,62468,15],[62406,2,62406,3],[62406,4,62406,5],[62406,6,62406,7],[62406,8,62406,9],[62406,10,62406,11],[62406,12,62406,13],[62324,14,62324,15],[62386,2,62386,3],[62386,4,62386,5],[62386,6,62386,7],[62386,8,62386,9],[62386,10,62386,11],[62386,12,62386,13],[62386,14,62386,15],[62324,2,62324,3],[62324,4,62324,5],[62324,6,62324,7],[62324,8,62324,9],[62324,10,62324,11],[62324,12,62324,13],[62242,14,62242,15],[62304,2,62304,3],[62304,4,62304,5],[62304,6,62304,7],[62304,8,62304,9],[62304,10,62304,11],[62304,12,62304,13],[62304,14,62304,15],[62242,2,62242,3],[62242,4,62242,5],[62242,6,62242,7],[62242,8,62242,9],[62242,10,62242,11],[62242,12,62242,13],[62160,14,62160,15],[62222,2,62222,3],[62222,4,62222,5],[62222,6,62222,7],[62222,8,62222,9],[62222,10,62222,11],[62222,12,62222,13],[62222,14,62222,15],[62160,2,62160,3],[62160,4,62160,5],[62160,6,62160,7],[62160,8,62160,9],[62160,10,62160,11],[62160,12,62160,13],[62078,14,62078,15],[62140,2,62140,3],[62140,4,62140,5],[62140,6,62140,7],[62140,8,62140,9],[62140,10,62140,11],[62140,12,62140,13],[62140,14,62140,15],[62078,2,62078,3],[62078,4,62078,5],[62078,6,62078,7],[62078,8,62078,9],[62078,10,62078,11],[62078,12,62078,13],[61996,14,61996,15],[62058,2,62058,3],[62058,4,62058,5],[62058,6,62058,7],[62058,8,62058,9],[62058,10,62058,11],[62058,12,62058,13],[62058,14,62058,15],[61996,2,61996,3],[61996,4,61996,5],[61996,6,61996,7],[61996,8,61996,9],[61996,10,61996,11],[61996,12,61996,13],[61914,14,61914,15],[61976,2,61976,3],[61976,4,61976,5],[61976,6,61976,7],[61976,8,61976,9],[61976,10,61976,11],[61976,12,61976,13],[61976,14,61976,15],[61914,2,61914,3],[61914,4,61914,5],[61914,6,61914,7],[61914,8,61914,9],[61914,10,61914,11],[61914,12,61914,13],[61832,14,61832,15],[61894,2,61894,3],[61894,4,61894,5],[61894,6,61894,7],[61894,8,61894,9],[61894,10,61894,11],[61894,12,61894,13],[61894,14,61894,15],[61832,2,61832,3],[61832,4,61832,5],[61832,6,61832,7],[61832,8,61832,9],[61832,10,61832,11],[61832,12,61832,13],[61750,14,61750,15],[61812,2,61812,3],[61812,4,61812,5],[61812,6,61812,7],[61812,8,61812,9],[61812,10,61812,11],[61812,12,61812,13],[61812,14,61812,15],[61750,2,61750,3],[61750,4,61750,5],[61750,6,61750,7],[61750,8,61750,9],[61750,10,61750,11],[61750,12,61750,13],[61668,14,61668,15],[61730,2,61730,3],[61730,4,61730,5],[61730,6,61730,7],[61730,8,61730,9],[61730,10,61730,11],[61730,12,61730,13],[61730,14,61730,15],[61668,2,61668,3],[61668,4,61668,5],[61668,6,61668,7],[61668,8,61668,9],[61668,10,61668,11],[61668,12,61668,13],[61586,14,61586,15],[61648,2,61648,3],[61648,4,61648,5],[61648,6,61648,7],[61648,8,61648,9],[61648,10,61648,11],[61648,12,61648,13],[61648,14,61648,15],[61586,2,61586,3],[61586,4,61586,5],[61586,6,61586,7],[61586,8,61586,9],[61586,10,61586,11],[61586,12,61586,13],[61504,14,61504,15],[61566,2,61566,3],[61566,4,61566,5],[61566,6,61566,7],[61566,8,61566,9],[61566,10,61566,11],[61566,12,61566,13],[61566,14,61566,15],[61504,2,61504,3],[61504,4,61504,5],[61504,6,61504,7],[61504,8,61504,9],[61504,10,61504,11],[61504,12,61504,13],[61422,14,61422,15],[61484,2,61484,3],[61484,4,61484,5],[61484,6,61484,7],[61484,8,61484,9],[61484,10,61484,11],[61484,12,61484,13],[61484,14,61484,15],[61422,2,61422,3],[61422,4,61422,5],[61422,6,61422,7],[61422,8,61422,9],[61422,10,61422,11],[61422,12,61422,13],[61340,14,61340,15],[61402,2,61402,3],[61402,4,61402,5],[61402,6,61402,7],[61402,8,61402,9],[61402,10,61402,11],[61402,12,61402,13],[61402,14,61402,15],[61340,2,61340,3],[61340,4,61340,5],[61340,6,61340,7],[61340,8,61340,9],[61340,10,61340,11],[61340,12,61340,13],[61258,14,61258,15],[61320,2,61320,3],[61320,4,61320,5],[61320,6,61320,7],[61320,8,61320,9],[61320,10,61320,11],[61320,12,61320,13],[61320,14,61320,15],[61258,2,61258,3],[61258,4,61258,5],[61258,6,61258,7],[61258,8,61258,9],[61258,10,61258,11],[61258,12,61258,13],[61176,14,61176,15],[61238,2,61238,3],[61238,4,61238,5],[61238,6,61238,7],[61238,8,61238,9],[61238,10,61238,11],[61238,12,61238,13],[61238,14,61238,15],[61176,2,61176,3],[61176,4,61176,5],[61176,6,61176,7],[61176,8,61176,9],[61176,10,61176,11],[61176,12,61176,13],[61094,14,61094,15],[61156,2,61156,3],[61156,4,61156,5],[61156,6,61156,7],[61156,8,61156,9],[61156,10,61156,11],[61156,12,61156,13],[61156,14,61156,15],[61094,2,61094,3],[61094,4,61094,5],[61094,6,61094,7],[61094,8,61094,9],[61094,10,61094,11],[61094,12,61094,13],[61012,14,61012,15],[61074,2,61074,3],[61074,4,61074,5],[61074,6,61074,7],[61074,8,61074,9],[61074,10,61074,11],[61074,12,61074,13],[61074,14,61074,15],[61012,2,61012,3],[61012,4,61012,5],[61012,6,61012,7],[61012,8,61012,9],[61012,10,61012,11],[61012,12,61012,13],[60930,14,60930,15],[60992,2,60992,3],[60992,4,60992,5],[60992,6,60992,7],[60992,8,60992,9],[60992,10,60992,11],[60992,12,60992,13],[60992,14,60992,15],[60930,2,60930,3],[60930,4,60930,5],[60930,6,60930,7],[60930,8,60930,9],[60930,10,60930,11],[60930,12,60930,13],[60848,14,60848,15],[60910,2,60910,3],[60910,4,60910,5],[60910,6,60910,7],[60910,8,60910,9],[60910,10,60910,11],[60910,12,60910,13],[60910,14,60910,15],[60848,2,60848,3],[60848,4,60848,5],[60848,6,60848,7],[60848,8,60848,9],[60848,10,60848,11],[60848,12,60848,13],[60766,14,60766,15],[60828,2,60828,3],[60828,4,60828,5],[60828,6,60828,7],[60828,8,60828,9],[60828,10,60828,11],[60828,12,60828,13],[60828,14,60828,15],[60766,2,60766,3],[60766,4,60766,5],[60766,6,60766,7],[60766,8,60766,9],[60766,10,60766,11],[60766,12,60766,13],[60684,14,60684,15],[60746,2,60746,3],[60746,4,60746,5],[60746,6,60746,7],[60746,8,60746,9],[60746,10,60746,11],[60746,12,60746,13],[60746,14,60746,15],[60684,2,60684,3],[60684,4,60684,5],[60684,6,60684,7],[60684,8,60684,9],[60684,10,60684,11],[60684,12,60684,13],[60602,14,60602,15],[60664,2,60664,3],[60664,4,60664,5],[60664,6,60664,7],[60664,8,60664,9],[60664,10,60664,11],[60664,12,60664,13],[60664,14,60664,15],[60602,2,60602,3],[60602,4,60602,5],[60602,6,60602,7],[60602,8,60602,9],[60602,10,60602,11],[60602,12,60602,13],[60520,14,60520,15],[60582,2,60582,3],[60582,4,60582,5],[60582,6,60582,7],[60582,8,60582,9],[60582,10,60582,11],[60582,12,60582,13],[60582,14,60582,15],[60520,2,60520,3],[60520,4,60520,5],[60520,6,60520,7],[60520,8,60520,9],[60520,10,60520,11],[60520,12,60520,13],[60438,14,60438,15],[60500,2,60500,3],[60500,4,60500,5],[60500,6,60500,7],[60500,8,60500,9],[60500,10,60500,11],[60500,12,60500,13],[60500,14,60500,15],[60438,2,60438,3],[60438,4,60438,5],[60438,6,60438,7],[60438,8,60438,9],[60438,10,60438,11],[60438,12,60438,13],[60356,14,60356,15],[60418,2,60418,3],[60418,4,60418,5],[60418,6,60418,7],[60418,8,60418,9],[60418,10,60418,11],[60418,12,60418,13],[60418,14,60418,15],[60356,2,60356,3],[60356,4,60356,5],[60356,6,60356,7],[60356,8,60356,9],[60356,10,60356,11],[60356,12,60356,13],[60274,14,60274,15],[60336,2,60336,3],[60336,4,60336,5],[60336,6,60336,7],[60336,8,60336,9],[60336,10,60336,11],[60336,12,60336,13],[60336,14,60336,15],[60274,2,60274,3],[60274,4,60274,5],[60274,6,60274,7],[60274,8,60274,9],[60274,10,60274,11],[60274,12,60274,13],[60192,14,60192,15],[60254,2,60254,3],[60254,4,60254,5],[60254,6,60254,7],[60254,8,60254,9],[60254,10,60254,11],[60254,12,60254,13],[60254,14,60254,15],[60192,2,60192,3],[60192,4,60192,5],[60192,6,60192,7],[60192,8,60192,9],[60192,10,60192,11],[60192,12,60192,13],[60110,14,60110,15],[60172,2,60172,3],[60172,4,60172,5],[60172,6,60172,7],[60172,8,60172,9],[60172,10,60172,11],[60172,12,60172,13],[60172,14,60172,15],[60110,2,60110,3],[60110,4,60110,5],[60110,6,60110,7],[60110,8,60110,9],[60110,10,60110,11],[60110,12,60110,13],[60028,14,60028,15],[60090,2,60090,3],[60090,4,60090,5],[60090,6,60090,7],[60090,8,60090,9],[60090,10,60090,11],[60090,12,60090,13],[60090,14,60090,15],[60028,2,60028,3],[60028,4,60028,5],[60028,6,60028,7],[60028,8,60028,9],[60028,10,60028,11],[60028,12,60028,13],[59946,14,59946,15],[60008,2,60008,3],[60008,4,60008,5],[60008,6,60008,7],[60008,8,60008,9],[60008,10,60008,11],[60008,12,60008,13],[60008,14,60008,15],[59946,2,59946,3],[59946,4,59946,5],[59946,6,59946,7],[59946,8,59946,9],[59946,10,59946,11],[59946,12,59946,13],[59864,14,59864,15],[59926,2,59926,3],[59926,4,59926,5],[59926,6,59926,7],[59926,8,59926,9],[59926,10,59926,11],[59926,12,59926,13],[59926,14,59926,15],[59864,2,59864,3],[59864,4,59864,5],[59864,6,59864,7],[59864,8,59864,9],[59864,10,59864,11],[59864,12,59864,13],[59782,14,59782,15],[59844,2,59844,3],[59844,4,59844,5],[59844,6,59844,7],[59844,8,59844,9],[59844,10,59844,11],[59844,12,59844,13],[59844,14,59844,15],[59782,2,59782,3],[59782,4,59782,5],[59782,6,59782,7],[59782,8,59782,9],[59782,10,59782,11],[59782,12,59782,13],[59700,14,59700,15],[59762,2,59762,3],[59762,4,59762,5],[59762,6,59762,7],[59762,8,59762,9],[59762,10,59762,11],[59762,12,59762,13],[59762,14,59762,15],[59700,2,59700,3],[59700,4,59700,5],[59700,6,59700,7],[59700,8,59700,9],[59700,10,59700,11],[59700,12,59700,13],[59618,14,59618,15],[59680,2,59680,3],[59680,4,59680,5],[59680,6,59680,7],[59680,8,59680,9],[59680,10,59680,11],[59680,12,59680,13],[59680,14,59680,15],[59618,2,59618,3],[59618,4,59618,5],[59618,6,59618,7],[59618,8,59618,9],[59618,10,59618,11],[59618,12,59618,13],[59536,14,59536,15],[59598,2,59598,3],[59598,4,59598,5],[59598,6,59598,7],[59598,8,59598,9],[59598,10,59598,11],[59598,12,59598,13],[59598,14,59598,15],[59536,2,59536,3],[59536,4,59536,5],[59536,6,59536,7],[59536,8,59536,9],[59536,10,59536,11],[59536,12,59536,13],[59454,14,59454,15],[59516,2,59516,3],[59516,4,59516,5],[59516,6,59516,7],[59516,8,59516,9],[59516,10,59516,11],[59516,12,59516,13],[59516,14,59516,15],[59454,2,59454,3],[59454,4,59454,5],[59454,6,59454,7],[59454,8,59454,9],[59454,10,59454,11],[59454,12,59454,13],[59372,14,59372,15],[59434,2,59434,3],[59434,4,59434,5],[59434,6,59434,7],[59434,8,59434,9],[59434,10,59434,11],[59434,12,59434,13],[59434,14,59434,15],[59372,2,59372,3],[59372,4,59372,5],[59372,6,59372,7],[59372,8,59372,9],[59372,10,59372,11],[59372,12,59372,13],[59290,14,59290,15],[59352,2,59352,3],[59352,4,59352,5],[59352,6,59352,7],[59352,8,59352,9],[59352,10,59352,11],[59352,12,59352,13],[59352,14,59352,15],[59290,2,59290,3],[59290,4,59290,5],[59290,6,59290,7],[59290,8,59290,9],[59290,10,59290,11],[59290,12,59290,13],[59208,14,59208,15],[59270,2,59270,3],[59270,4,59270,5],[59270,6,59270,7],[59270,8,59270,9],[59270,10,59270,11],[59270,12,59270,13],[59270,14,59270,15],[59208,2,59208,3],[59208,4,59208,5],[59208,6,59208,7],[59208,8,59208,9],[59208,10,59208,11]],"merged_total":36409,"flags":["merged_cut"]}
[null,"B01001. GENDER BY AGE"]
[null,"Universe:  TOTAL POPULATION"]
[null,"Data Set: 2018-2022 American Community Survey 5-Year Estimates"]
[]
[null,null,"Alstead",null,"Chesterfield",null,"Dublin",null,"Fitzwilliam",null,"Gilsum",null,"Harrisville",null,"Hinsdale",null,"Jaffrey",null,"Keene",null,"Marlborough",null,"Marlow",null,"Nelson",null,"Richmond",null,"Rindge",null,"Roxbury",null,"Stoddard",null,"Sullivan",null,"Surry",null,"Swanzey",null,"Troy",null,"Walpole",null,"Westmoreland",null,"Winchester"]
[null," ","Estimate","Margin of Error","Estimate","Margin of Error","Estimate","Margin of Error","Estimate","Margin of Error","Estimate","Margin of Error","Estimate","Margin of Error","Estimate","Margin of Error","Estimate","Margin of Error","Estimate","Margin of Error","Estimate","Margin of Error","Estimate","Margin of Error","Estimate","Margin of Error","Estimate","Margin of Error","Estimate","Margin of Error","Estimate","Margin of Error","Estimate","Margin of Error","Estimate","Margin of Error","Estimate","Margin of Error","Estimate","Margin of Error","Estimate","Margin of Error","Estimate","Margin of Error","Estimate","Margin of Error","Estimate","Margin of Error"]
[null,"Total:",1599,169,3577,15,1711,216,2287,368,871,144,977,197,3965,16,5363,32,22907,27,2253,391,803,175,550,106,1107,251,6446,21,295,142,1205,162,681,130,950,245,7306,22,1889,275,3651,33,2042,341,4175,25]
[null,"Male:",770,116,2000,139,800,118,1203,216,452,88,461,95,2090,205,2738,213,11235,407,1005,199,364,80,252,50,598,161,3165,186,135,70,592,98,342,79,388,72,3563,205,950,177,1799,162,890,172,1978,179]
[null,"Under 5 years",12,11,121,74,24,19,33,23,33,23,42,33,26,38,114,89,485,125,76,60,23,26,15,8,38,31,144,96,36,37,29,16,35,30,17,13,125,95,25,22,183,89,33,31,102,62]
[null,"5 to 9 years",14,9,170,89,32,18,21,15,9,8,20,17,152,72,240,135,483,120,10,8,9,10,12,10,34,22,189,77,2,4,37,23,10,8,12,9,135,72,16,19,93,68,12,9,119,81]
[null,"10 to 14 years",43,28,187,78,38,23,40,18,10,10,20,21,62,50,214,97,562,145,89,57,11,9,2,3,36,22,223,103,2,3,37,19,3,4,19,13,239,96,101,56,97,55,23,20,113,63]
[null,"15 to 17 years",39,28,95,84,27,19,40,29,33,29,7,8,63,95,112,92,334,142,30,27,17,20,3,6,12,12,58,51,0,12,30,31,5,7,3,4,51,60,32,34,122,98,16,13,79,63]
[null,"18 and 19 years",46,32,40,49,15,15,5,9,8,12,9,10,17,30,0,17,759,136,38,36,6,6,7,11,15,29,219,67,0,12,15,18,8,9,8,15,26,61,11,14,76,56,7,9,72,67]
[null,"20 years",0,12,0,12,9,10,16,19,31,27,0,12,68,78,0,17,362,107,0,12,7,12,0,12,0,12,130,64,0,12,0,12,2,4,0,12,25,39,0,12,0,12,7,8,0,12]
[null,"21 years",0,12,17,27,12,15,11,13,4,5,0,12,14,24,0,17,545,246,15,23,0,12,0,12,13,20,134,64,0,12,12,11,3,4,0,12,11,19,0,12,31,40,2,3,9,15]
[null,"22 to 24 years",6,8,35,39,37,24,29,20,13,10,0,12,35,42,37,54,573,183,42,41,4,5,0,12,28,26,44,39,9,11,9,8,0,12,4,5,124,120,22,17,29,33,32,34,57,45]
[null,"25 to 29 years",65,50,102,80,25,28,50,33,19,17,7,7,81,54,313,175,660,225,54,39,18,24,6,6,16,15,265,93,7,5,17,11,19,16,6,6,116,67,73,40,151,89,19,16,122,59]
[null,"30 to 34 years",30,19,172,107,38,35,115,70,44,24,22,16,79,66,58,69,922,163,26,19,18,15,12,8,41,30,152,63,1,2,28,18,56,30,31,22,226,95,85,59,79,56,50,34,128,82]
[null,"35 to 39 years",34,22,21,23,39,29,63,32,17,15,24,15,55,49,266,122,527,166,69,37,21,15,27,16,14,13,187,79,3,4,33,25,11,8,16,10,222,131,106,53,72,36,11,11,55,48]
[null,"40 to 44 years",41,24,187,106,30,18,56,27,23,14,30,33,191,95,125,79,825,228,58,42,12,14,2,3,24,14,97,60,3,4,23,12,16,9,43,31,155,92,46,26,61,40,14,11,190,76]
[null,"45 to 49 years",50,32,69,104,58,24,201,156,29,15,9,10,104,75,277,116,457,136,85,69,21,16,11,9,19,20,144,76,5,4,23,12,33,19,32,23,174,109,61,41,65,38,65,50,65,41]
[null,"50 to 54 years",52,23,55,44,79,29,35,30,31,19,26,15,237,127,167,79,880,177,62,43,19,8,25,15,29,19,117,66,38,37,85,35,10,10,19,12,202,148,62,40,163,75,84,38,105,58]
[null,"55 to 59 years",78,56,108,101,104,59,126,50,21,15,36,23,132,62,126,71,635,179,116,49,30,18,22,16,40,29,249,97,6,6,30,16,41,16,33,21,308,114,72,42,86,54,158,79,273,115]
[null,"60 and 61 years",20,14,18,27,17,12,34,23,6,6,31,21,25,25,64,76,150,67,18,17,28,23,16,10,20,14,66,51,2,3,31,17,4,4,12,10,324,158,5,7,60,41,31,20,86,70]
[null,"62 to 64 years",82,49,79,97,11,8,90,46,31,14,34,18,134,81,285,185,404,155,32,28,22,16,13,11,46,26,123,55,8,9,54,28,19,13,9,7,183,97,67,35,64,47,32,23,136,81]
[null,"65 and 66 years",17,18,95,75,26,20,16,13,17,14,29,22,64,91,30,36,154,79,11,11,16,9,14,9,47,36,79,43,0,12,26,11,20,15,8,6,64,53,29,29,78,47,35,20,29,26]
[null,"67 to 69 years",56,35,56,46,59,30,72,35,48,23,19,11,91,76,57,54,270,94,32,27,5,5,16,10,57,64,141,84,3,4,11,8,13,5,50,30,129,64,60,37,127,44,40,19,27,26]
[null,"70 to 74 years",33,16,216,118,68,55,107,46,11,8,43,15,278,229,72,65,500,120,40,23,54,37,29,16,41,19,208,95,7,5,31,12,7,6,22,11,340,186,32,21,66,37,81,35,137,57]
[null,"75 to 79 years",37,31,68,72,18,14,27,15,8,6,39,18,62,47,52,45,320,111,30,19,7,6,13,8,5,5,164,92,3,3,18,14,14,11,21,14,182,96,12,10,46,37,71,61,40,30]
[null,"80 to 84 years",15,11,75,52,24,18,9,11,2,4,0,12,20,21,65,75,164,79,25,22,5,5,3,4,2,4,26,25,0,12,13,8,10,10,7,7,72,55,28,26,19,17,14,16,8,13]
[null,"85 years and over",0,12,14,22,10,7,7,8,4,6,14,12,100,120,64,60,264,120,47,35,11,9,4,4,21,15,6,10,0,12,0,12,3,3,16,13,130,149,5,8,31,30,53,53,26,30]
[null,"Female:",829,95,1577,140,911,135,1084,188,419,74,516,110,1875,204,2625,216,11672,406,1248,240,439,110,298,67,509,121,3281,187,160,78,613,91,339,65,562,203,3743,209,939,136,1852,161,1152,226,2197,177]
[null,"Under 5 years",20,19,20,30,57,32,45,46,26,17,8,8,58,46,28,48,387,112,140,107,19,19,7,7,10,14,116,74,2,3,29,23,28,18,47,47,110,82,106,55,144,82,47,41,237,122]
[null,"5 to 9 years",42,23,59,44,23,12,37,28,32,28,36,32,103,50,124,74,329,114,14,13,14,12,27,20,34,25,170,91,3,3,24,17,17,11,42,56,229,111,65,39,103,52,95,66,88,64]
[null,"10 to 14 years",29,18,85,68,91,33,64,34,4,4,12,12,82,55,329,130,396,138,53,35,91,52,11,11,14,15,227,112,0,12,53,27,8,8,45,29,233,108,18,16,96,57,58,31,89,85]
[null,"15 to 17 years",29,22,0,12,35,23,5,7,2,3,4,6,40,51,164,92,316,144,131,73,11,9,8,12,10,9,46,61,2,4,12,7,5,6,8,7,140,105,30,29,88,64,27,22,112,74]
[null,"18 and 19 years",7,12,5,12,25,17,6,9,3,6,3,5,61,58,5,13,908,132,11,12,10,13,6,12,3,6,379,105,2,4,0,12,0,12,3,5,14,26,4,8,3,6,0,12,44,48]
[null,"20 years",0,12,0,12,0,12,10,10,8,12,0,12,62,79,33,60,392,104,8,12,2,3,0,12,17,27,159,60,0,12,10,10,0,12,3,4,0,17,24,25,29,45,8,11,0,12]
[null,"21 years",0,12,23,35,5,7,0,12,0,12,13,17,0,12,70,82,395,118,0,12,3,7,0,12,0,12,85,55,13,15,0,12,7,7,2,3,0,17,0,12,7,10,2,3,0,12]
[null,"22 to 24 years",31,31,26,41,3,5,28,32,30,23,11,14,78,97,49,74,536,194,12,21,6,6,4,4,18,20,125,66,43,56,13,14,7,7,14,12,94,76,21,24,21,24,49,60,178,136]
[null,"25 to 29 years",59,28,114,82,10,17,24,34,37,26,34,25,71,47,63,72,837,155,21,17,13,12,11,9,4,10,116,71,3,6,42,23,26,31,12,9,259,91,73,32,180,118,37,30,65,54]
[null,"30 to 34 years",20,21,155,77,20,13,83,52,17,9,28,26,34,35,87,87,939,164,65,38,38,32,6,6,27,15,138,63,6,6,37,27,34,20,88,79,57,62,83,39,78,57,23,21,205,103]
[null,"35 to 39 years",22,17,84,71,43,29,38,17,18,13,25,18,91,58,225,95,636,171,129,73,12,12,32,17,18,11,183,69,15,12,51,25,11,8,28,26,337,105,67,46,111,59,63,62,104,72]
[null,"40 to 44 years",30,16,44,38,55,29,53,25,20,11,34,36,144,68,95,65,479,135,129,99,21,13,14,14,23,19,129,72,6,4,20,14,29,17,33,16,68,71,74,44,107,57,60,32,166,93]
[null,"45 to 49 years",32,20,134,91,73,38,43,31,21,13,17,16,133,78,208,107,664,245,16,20,17,13,3,5,13,12,101,71,8,7,38,21,17,10,28,27,315,142,28,22,73,47,37,31,67,37]
[null,"50 to 54 years",81,33,125,90,74,38,50,47,38,26,15,10,92,57,229,137,589,168,104,50,19,16,17,16,37,27,252,90,18,22,45,22,23,16,19,12,206,143,48,30,217,89,55,27,111,60]
[null,"55 to 59 years",99,54,143,108,94,72,160,47,30,14,87,41,151,79,94,72,761,206,92,44,22,13,46,22,71,45,249,89,8,5,60,21,31,16,45,36,403,139,48,30,105,69,163,82,153,73]
[null,"60 and 61 years",15,11,83,98,20,14,71,45,19,14,29,16,164,89,264,154,325,110,56,42,9,10,15,8,46,28,77,55,7,13,18,16,12,8,15,11,99,77,33,23,48,39,6,8,71,44]
[null,"62 to 64 years",50,27,116,80,45,23,69,34,24,16,13,10,68,54,29,35,288,112,60,32,32,24,13,12,18,12,76,59,4,4,25,18,22,10,11,7,220,103,54,33,38,31,46,26,81,55]
[null,"65 and 66 years",19,14,54,47,23,19,61,36,33,20,4,4,81,93,50,63,239,101,6,8,14,8,14,8,21,19,45,26,2,2,30,16,13,9,11,9,134,71,29,23,52,31,41,40,39,35]
[null,"67 to 69 years",64,33,35,36,57,26,128,94,16,14,37,16,61,41,104,58,370,119,58,29,26,27,19,13,26,13,94,65,5,4,29,17,5,5,23,21,150,93,37,26,75,34,73,37,59,38]
[null,"70 to 74 years",90,58,155,102,82,49,62,40,9,6,66,23,72,47,122,76,706,151,56,34,27,22,15,7,22,14,292,84,6,4,27,12,22,9,38,17,303,143,35,19,55,31,112,103,106,79]
[null,"75 to 79 years",35,36,28,33,40,26,40,25,16,9,25,17,49,39,45,33,318,128,36,25,10,7,18,13,40,35,68,45,2,3,26,17,12,12,17,10,196,88,14,15,26,18,69,50,88,60]
[null,"80 to 84 years",43,31,54,47,17,10,7,8,8,10,3,4,162,148,92,72,330,148,21,14,16,13,6,6,12,13,71,79,1,2,14,9,9,9,16,15,124,98,41,33,89,77,31,25,53,37]
[null,"85 years and over",12,11,35,38,19,43,0,12,8,7,12,12,18,20,116,74,532,174,30,28,7,9,6,8,25,21,83,70,4,6,10,10,1,4,14,10,52,50,7,10,107,86,50,35,81,46]
[]
[]
[]
[]
[]
[]
[]
[]
[]
[]
[]
[]
[]
[null,"Calculated B01001. GENDER BY AGE"]
[null,"Universe:  TOTAL POPULATION"]
[null,{"$f":"B3","v":"Data Set: 2018-2022 American Community Survey 5-Year Estimates"}]
[]
[null,null,"Alstead",null,"Chesterfield",null,"Dublin",null,"Fitzwilliam",null,"Gilsum",null,"Harrisville",null,"Hinsdale",null,"Jaffrey",null,"Keene",null,"Marlborough",null,"Marlow",null,"Nelson",null,"Richmond",null,"Rindge",null,"Roxbury",null,"Stoddard",null,"Sullivan",null,"Surry",null,"Swanzey",null,"Troy",null,"Walpole",null,"Westmoreland",null,"Winchester"]
[null," ","Estimate","Margin of Error","Estimate","Margin of Error","Estimate","Margin of Error","Estimate","Margin of Error","Estimate","Margin of Error","Estimate","Margin of Error","Estimate","Margin of Error","Estimate","Margin of Error","Estimate","Margin of Error","Estimate","Margin of Error","Estimate","Margin of Error","Estimate","Margin of Error","Estimate","Margin of Error","Estimate","Margin of Error","Estimate","Margin of Error","Estimate","Margin of Error","Estimate","Margin of Error","Estimate","Margin of Error","Estimate","Margin of Error","Estimate","Margin of Error","Estimate","Margin of Error","Estimate","Margin of Error","Estimate","Margin of Error"]
[null,"Total",{"$f":"C7","v":1599},{"$f":"D7","v":169},3577,15,1711,216,2287,368,871,144,977,197,3965,16,5363,32,22907,27,2253,391,803,175,{"$f":"Y7","v":550},106,1107,251,6446,21,295,142,1205,162,681,130,950,245,7306,22,1889,275,3651,33,2042,341,4175,25]
[null,"Under 15 yrs.",{"$f":"C9+C10+C11+C33+C34+C35","v":160},{"$f":"SQRT((D9^2)+(D10^2)+(D11^2)+(D33^2)+(D34^2)+(D35^2))","v":46.904157598234299},{"$f":"E9+E10+E11+E33+E34+E35","v":642},{"$f":"SQRT((F9^2)+(F10^2)+(F11^2)+(F33^2)+(F34^2)+(F35^2))","v":164.13713778423212},{"$f":"G9+G10+G11+G33+G34+G35","v":265},{"$f":"SQRT((H9^2)+(H10^2)+(H11^2)+(H33^2)+(H34^2)+(H35^2))","v":58.915193286621744},{"$f":"I9+I10+I11+I33+I34+I35","v":240},{"$f":"SQRT((J9^2)+(J10^2)+(J11^2)+(J33^2)+(J34^2)+(J35^2))","v":71.651936470691425},{"$f":"K9+K10+K11+K33+K34+K35","v":114},{"$f":"SQRT((L9^2)+(L10^2)+(L11^2)+(L33^2)+(L34^2)+(L35^2))","v":42.213741838410868},{"$f":"M9+M10+M11+M33+M34+M35","v":138},{"$f":"SQRT((N9^2)+(N10^2)+(N11^2)+(N33^2)+(N34^2)+(N35^2))","v":55.235857918565905},{"$f":"O9+O10+O11+O33+O34+O35","v":483},{"$f":"SQRT((P9^2)+(P10^2)+(P11^2)+(P33^2)+(P34^2)+(P35^2))","v":129.49517365523704},{"$f":"Q9+Q10+Q11+Q33+Q34+Q35","v":1049},{"$f":"SQRT((R9^2)+(R10^2)+(R11^2)+(R33^2)+(R34^2)+(R35^2))","v":245.42819723902957},{"$f":"S9+S10+S11+S33+S34+S35","v":2642},{"$f":"SQRT((T9^2)+(T10^2)+(T11^2)+(T33^2)+(T34^2)+(T35^2))","v":309.24747371643957},{"$f":"U9+U10+U11+U33+U34+U35","v":382},{"$f":"SQRT((V9^2)+(V10^2)+(V11^2)+(V33^2)+(V34^2)+(V35^2))","v":140.5560386465128},{"$f":"W9+W10+W11+W33+W34+W35","v":167},{"$f":"SQRT((X9^2)+(X10^2)+(X11^2)+(X33^2)+(X34^2)+(X35^2))","v":63.765194267719437},{"$f":"Y9+Y10+Y11+Y33+Y34+Y35","v":74},{"$f":"SQRT((Z9^2)+(Z10^2)+(Z11^2)+(Z33^2)+(Z34^2)+(Z35^2))","v":27.258026340878022},{"$f":"AA9+AA10+AA11+AA33+AA34+AA35","v":166},{"$f":"SQRT((AB9^2)+(AB10^2)+(AB11^2)+(AB33^2)+(AB34^2)+(AB35^2))","v":54.543560573178574},{"$f":"AC9+AC10+AC11+AC33+AC34+AC35","v":1069},{"$f":"SQRT((AD9^2)+(AD10^2)+(AD11^2)+(AD33^2)+(AD34^2)+(AD35^2))","v":228.15564862610788},{"$f":"AE9+AE10+AE11+AE33+AE34+AE35","v":45},{"$f":"SQRT((AF9^2)+(AF10^2)+(AF11^2)+(AF33^2)+(AF34^2)+(AF35^2))","v":39.446165846632042},{"$f":"AG9+AG10+AG11+AG33+AG34+AG35","v":209},{"$f":"SQRT((AH9^2)+(AH10^2)+(AH11^2)+(AH33^2)+(AH34^2)+(AH35^2))","v":51.894122981316485},{"$f":"AI9+AI10+AI11+AI33+AI34+AI35","v":101},{"$f":"SQRT((AJ9^2)+(AJ10^2)+(AJ11^2)+(AJ33^2)+(AJ34^2)+(AJ35^2))","v":38.587562763149478},{"$f":"AK9+AK10+AK11+AK33+AK34+AK35","v":182},{"$f":"SQRT((AL9^2)+(AL10^2)+(AL11^2)+(AL33^2)+(AL34^2)+(AL35^2))","v":81.271151093115449},{"$f":"AM9+AM10+AM11+AM33+AM34+AM35","v":1071},{"$f":"SQRT((AN9^2)+(AN10^2)+(AN11^2)+(AN33^2)+(AN34^2)+(AN35^2))","v":232.66714422109538},{"$f":"AO9+AO10+AO11+AO33+AO34+AO35","v":331},{"$f":"SQRT((AP9^2)+(AP10^2)+(AP11^2)+(AP33^2)+(AP34^2)+(AP35^2))","v":93.71766108903914},{"$f":"AQ9+AQ10+AQ11+AQ33+AQ34+AQ35","v":716},{"$f":"SQRT((AR9^2)+(AR10^2)+(AR11^2)+(AR33^2)+(AR34^2)+(AR35^2))","v":168.0684384410113},{"$f":"AS9+AS10+AS11+AS33+AS34+AS35","v":268},{"$f":"SQRT((AT9^2)+(AT10^2)+(AT11^2)+(AT33^2)+(AT34^2)+(AT35^2))","v":91.869472622846814},{"$f":"AU9+AU10+AU11+AU33+AU34+AU35","v":748},{"$f":"SQRT((AV9^2)+(AV10^2)+(AV11^2)+(AV33^2)+(AV34^2)+(AV35^2))","v":201.44229943087922}]
[null,"15 to 24 yrs.",{"$f":"C12+C13+C14+C15+C16+C36+C37+C38+C39+C40","v":158},{"$f":"SQRT((D12^2)+(D13^2)+(D14^2)+(D15^2)+(D16^2)+(D36^2)+(D37^2)+(D38^2)+(D39^2)+(D40^2))","v":63.537390566500292},{"$f":"E12+E13+E14+E15+E16+E36+E37+E38+E39+E40","v":241},{"$f":"SQRT((F12^2)+(F13^2)+(F14^2)+(F15^2)+(F16^2)+(F36^2)+(F37^2)+(F38^2)+(F39^2)+(F40^2))","v":123.24366109459748},{"$f":"G12+G13+G14+G15+G16+G36+G37+G38+G39+G40","v":168},{"$f":"SQRT((H12^2)+(H13^2)+(H14^2)+(H15^2)+(H16^2)+(H36^2)+(H37^2)+(H38^2)+(H39^2)+(H40^2))","v":50.229473419497438},{"$f":"I12+I13+I14+I15+I16+I36+I37+I38+I39+I40","v":150},{"$f":"SQRT((J12^2)+(J13^2)+(J14^2)+(J15^2)+(J16^2)+(J36^2)+(J37^2)+(J38^2)+(J39^2)+(J40^2))","v":57.008771254956898},{"$f":"K12+K13+K14+K15+K16+K36+K37+K38+K39+K40","v":132},{"$f":"SQRT((L12^2)+(L13^2)+(L14^2)+(L15^2)+(L16^2)+(L36^2)+(L37^2)+(L38^2)+(L39^2)+(L40^2))","v":51.97114584074513},{"$f":"M12+M13+M14+M15+M16+M36+M37+M38+M39+M40","v":47},{"$f":"SQRT((N12^2)+(N13^2)+(N14^2)+(N15^2)+(N16^2)+(N36^2)+(N37^2)+(N38^2)+(N39^2)+(N40^2))","v":35.860842154082214},{"$f":"O12+O13+O14+O15+O16+O36+O37+O38+O39+O40","v":438},{"$f":"SQRT((P12^2)+(P13^2)+(P14^2)+(P15^2)+(P16^2)+(P36^2)+(P37^2)+(P38^2)+(P39^2)+(P40^2))","v":200.2698179956231},{"$f":"Q12+Q13+Q14+Q15+Q16+Q36+Q37+Q38+Q39+Q40","v":470},{"$f":"SQRT((R12^2)+(R13^2)+(R14^2)+(R15^2)+(R16^2)+(R36^2)+(R37^2)+(R38^2)+(R39^2)+(R40^2))","v":191.52023391798579},{"$f":"S12+S13+S14+S15+S16+S36+S37+S38+S39+S40","v":5120},{"$f":"SQRT((T12^2)+(T13^2)+(T14^2)+(T15^2)+(T16^2)+(T36^2)+(T37^2)+(T38^2)+(T39^2)+(T40^2))","v":494.62106708064914},{"$f":"U12+U13+U14+U15+U16+U36+U37+U38+U39+U40","v":287},{"$f":"SQRT((V12^2)+(V13^2)+(V14^2)+(V15^2)+(V16^2)+(V36^2)+(V37^2)+(V38^2)+(V39^2)+(V40^2))","v":102.86398786747479},{"$f":"W12+W13+W14+W15+W16+W36+W37+W38+W39+W40","v":66},{"$f":"SQRT((X12^2)+(X13^2)+(X14^2)+(X15^2)+(X16^2)+(X36^2)+(X37^2)+(X38^2)+(X39^2)+(X40^2))","v":33.060550509633082},{"$f":"Y12+Y13+Y14+Y15+Y16+Y36+Y37+Y38+Y39+Y40","v":28},{"$f":"SQRT((Z12^2)+(Z13^2)+(Z14^2)+(Z15^2)+(Z16^2)+(Z36^2)+(Z37^2)+(Z38^2)+(Z39^2)+(Z40^2))","v":34.365680554879162},{"$f":"AA12+AA13+AA14+AA15+AA16+AA36+AA37+AA38+AA39+AA40","v":116},{"$f":"SQRT((AB12^2)+(AB13^2)+(AB14^2)+(AB15^2)+(AB16^2)+(AB36^2)+(AB37^2)+(AB38^2)+(AB39^2)+(AB40^2))","v":59.958318855685071},{"$f":"AC12+AC13+AC14+AC15+AC16+AC36+AC37+AC38+AC39+AC40","v":1379},{"$f":"SQRT((AD12^2)+(AD13^2)+(AD14^2)+(AD15^2)+(AD16^2)+(AD36^2)+(AD37^2)+(AD38^2)+(AD39^2)+(AD40^2))","v":206.22802913280242},{"$f":"AE12+AE13+AE14+AE15+AE16+AE36+AE37+AE38+AE39+AE40","v":69},{"$f":"SQRT((AF12^2)+(AF13^2)+(AF14^2)+(AF15^2)+(AF16^2)+(AF36^2)+(AF37^2)+(AF38^2)+(AF39^2)+(AF40^2))","v":65.069193939989759},{"$f":"AG12+AG13+AG14+AG15+AG16+AG36+AG37+AG38+AG39+AG40","v":101},{"$f":"SQRT((AH12^2)+(AH13^2)+(AH14^2)+(AH15^2)+(AH16^2)+(AH36^2)+(AH37^2)+(AH38^2)+(AH39^2)+(AH40^2))","v":47.402531577965327},{"$f":"AI12+AI13+AI14+AI15+AI16+AI36+AI37+AI38+AI39+AI40","v":37},{"$f":"SQRT((AJ12^2)+(AJ13^2)+(AJ14^2)+(AJ15^2)+(AJ16^2)+(AJ36^2)+(AJ37^2)+(AJ38^2)+(AJ39^2)+(AJ40^2))","v":26.981475126464083},{"$f":"AK12+AK13+AK14+AK15+AK16+AK36+AK37+AK38+AK39+AK40","v":45},{"$f":"SQRT((AL12^2)+(AL13^2)+(AL14^2)+(AL15^2)+(AL16^2)+(AL36^2)+(AL37^2)+(AL38^2)+(AL39^2)+(AL40^2))","v":28.231188426986208},{"$f":"AM12+AM13+AM14+AM15+AM16+AM36+AM37+AM38+AM39+AM40","v":485},{"$f":"SQRT((AN12^2)+(AN13^2)+(AN14^2)+(AN15^2)+(AN16^2)+(AN36^2)+(AN37^2)+(AN38^2)+(AN39^2)+(AN40^2))","v":204.10291521680918},{"$f":"AO12+AO13+AO14+AO15+AO16+AO36+AO37+AO38+AO39+AO40","v":144},{"$f":"SQRT((AP12^2)+(AP13^2)+(AP14^2)+(AP15^2)+(AP16^2)+(AP36^2)+(AP37^2)+(AP38^2)+(AP39^2)+(AP40^2))","v":64.645185435575939},{"$f":"AQ12+AQ13+AQ14+AQ15+AQ16+AQ36+AQ37+AQ38+AQ39+AQ40","v":406},{"$f":"SQRT((AR12^2)+(AR13^2)+(AR14^2)+(AR15^2)+(AR16^2)+(AR36^2)+(AR37^2)+(AR38^2)+(AR39^2)+(AR40^2))","v":149.68633872200897},{"$f":"AS12+AS13+AS14+AS15+AS16+AS36+AS37+AS38+AS39+AS40","v":150},{"$f":"SQRT((AT12^2)+(AT13^2)+(AT14^2)+(AT15^2)+(AT16^2)+(AT36^2)+(AT37^2)+(AT38^2)+(AT39^2)+(AT40^2))","v":76.400261779656233},{"$f":"AU12+AU13+AU14+AU15+AU16+AU36+AU37+AU38+AU39+AU40","v":551},{"$f":"SQRT((AV12^2)+(AV13^2)+(AV14^2)+(AV15^2)+(AV16^2)+(AV36^2)+(AV37^2)+(AV38^2)+(AV39^2)+(AV40^2))","v":193.43215865000317}]
[null,"25 to 34 yrs.",{"$f":"C17+C18+C41+C42","v":174},{"$f":"SQRT((D17^2)+(D18^2)+(D41^2)+(D42^2))","v":63.921827257987552},{"$f":"E17+E18+E41+E42","v":543},{"$f":"SQRT((F17^2)+(F18^2)+(F41^2)+(F42^2))","v":174.64821785520743},{"$f":"G17+G18+G41+G42","v":93},{"$f":"SQRT((H17^2)+(H18^2)+(H41^2)+(H42^2))","v":49.668903752750573},{"$f":"I17+I18+I41+I42","v":272},{"$f":"SQRT((J17^2)+(J18^2)+(J41^2)+(J42^2))","v":99.242128151304783},{"$f":"K17+K18+K41+K42","v":117},{"$f":"SQRT((L17^2)+(L18^2)+(L41^2)+(L42^2))","v":40.274061131204533},{"$f":"M17+M18+M41+M42","v":91},{"$f":"SQRT((N17^2)+(N18^2)+(N41^2)+(N42^2))","v":40.074929819027759},{"$f":"O17+O18+O41+O42","v":265},{"$f":"SQRT((P17^2)+(P18^2)+(P41^2)+(P42^2))","v":103.46980235798269},{"$f":"Q17+Q18+Q41+Q42","v":521},{"$f":"SQRT((R17^2)+(R18^2)+(R41^2)+(R42^2))","v":219.4060163258975},{"$f":"S17+S18+S41+S42","v":3358},{"$f":"SQRT((T17^2)+(T18^2)+(T41^2)+(T42^2))","v":357.93155770342463},{"$f":"U17+U18+U41+U42","v":166},{"$f":"SQRT((V17^2)+(V18^2)+(V41^2)+(V42^2))","v":60.124870062229654},{"$f":"W17+W18+W41+W42","v":87},{"$f":"SQRT((X17^2)+(X18^2)+(X41^2)+(X42^2))","v":44.37341546466758},{"$f":"Y17+Y18+Y41+Y42","v":35},{"$f":"SQRT((Z17^2)+(Z18^2)+(Z41^2)+(Z42^2))","v":14.730919862656235},{"$f":"AA17+AA18+AA41+AA42","v":88},{"$f":"SQRT((AB17^2)+(AB18^2)+(AB41^2)+(AB42^2))","v":38.078865529319543},{"$f":"AC17+AC18+AC41+AC42","v":671},{"$f":"SQRT((AD17^2)+(AD18^2)+(AD41^2)+(AD42^2))","v":147.0646116507979},{"$f":"AE17+AE18+AE41+AE42","v":17},{"$f":"SQRT((AF17^2)+(AF18^2)+(AF41^2)+(AF42^2))","v":10.04987562112089},{"$f":"AG17+AG18+AG41+AG42","v":124},{"$f":"SQRT((AH17^2)+(AH18^2)+(AH41^2)+(AH42^2))","v":41.267420563926699},{"$f":"AI17+AI18+AI41+AI42","v":135},{"$f":"SQRT((AJ17^2)+(AJ18^2)+(AJ41^2)+(AJ42^2))","v":50.169711978443729},{"$f":"AK17+AK18+AK41+AK42","v":137},{"$f":"SQRT((AL17^2)+(AL18^2)+(AL41^2)+(AL42^2))","v":82.716382899640863},{"$f":"AM17+AM18+AM41+AM42","v":658},{"$f":"SQRT((AN17^2)+(AN18^2)+(AN41^2)+(AN42^2))","v":160.12182861808691},{"$f":"AO17+AO18+AO41+AO42","v":314},{"$f":"SQRT((AP17^2)+(AP18^2)+(AP41^2)+(AP42^2))","v":87.326971778483198},{"$f":"AQ17+AQ18+AQ41+AQ42","v":488},{"$f":"SQRT((AR17^2)+(AR18^2)+(AR41^2)+(AR42^2))","v":168.01785619391768},{"$f":"AS17+AS18+AS41+AS42","v":129},{"$f":"SQRT((AT17^2)+(AT18^2)+(AT41^2)+(AT42^2))","v":52.469038489379621},{"$f":"AU17+AU18+AU41+AU42","v":520},{"$f":"SQRT((AV17^2)+(AV18^2)+(AV41^2)+(AV42^2))","v":154.04544783926593}]
[null,"35 to 44 yrs.",{"$f":"C19+C20+C43+C44","v":127},{"$f":"SQRT((D19^2)+(D20^2)+(D43^2)+(D44^2))","v":40.06245124802026},{"$f":"E19+E20+E43+E44","v":336},{"$f":"SQRT((F19^2)+(F20^2)+(F43^2)+(F44^2))","v":135.09256086106296},{"$f":"G19+G20+G43+G44","v":167},{"$f":"SQRT((H19^2)+(H20^2)+(H43^2)+(H44^2))","v":53.3572862878164},{"$f":"I19+I20+I43+I44","v":210},{"$f":"SQRT((J19^2)+(J20^2)+(J43^2)+(J44^2))","v":51.643005334701428},{"$f":"K19+K20+K43+K44","v":78},{"$f":"SQRT((L19^2)+(L20^2)+(L43^2)+(L44^2))","v":26.664583251946766},{"$f":"M19+M20+M43+M44","v":113},{"$f":"SQRT((N19^2)+(N20^2)+(N43^2)+(N44^2))","v":54.166410255803363},{"$f":"O19+O20+O43+O44","v":481},{"$f":"SQRT((P19^2)+(P20^2)+(P43^2)+(P44^2))","v":139.33413077921719},{"$f":"Q19+Q20+Q43+Q44","v":711},{"$f":"SQRT((R19^2)+(R20^2)+(R43^2)+(R44^2))","v":185.40496217739158},{"$f":"S19+S20+S43+S44","v":2467},{"$f":"SQRT((T19^2)+(T20^2)+(T43^2)+(T44^2))","v":356.37901172768295},{"$f":"U19+U20+U43+U44","v":385},{"$f":"SQRT((V19^2)+(V20^2)+(V43^2)+(V44^2))","v":135.14066745432331},{"$f":"W19+W20+W43+W44","v":66},{"$f":"SQRT((X19^2)+(X20^2)+(X43^2)+(X44^2))","v":27.092434368288131},{"$f":"Y19+Y20+Y43+Y44","v":75},{"$f":"SQRT((Z19^2)+(Z20^2)+(Z43^2)+(Z44^2))","v":27.386127875258307},{"$f":"AA19+AA20+AA43+AA44","v":79},{"$f":"SQRT((AB19^2)+(AB20^2)+(AB43^2)+(AB44^2))","v":29.103264421710495},{"$f":"AC19+AC20+AC43+AC44","v":596},{"$f":"SQRT((AD19^2)+(AD20^2)+(AD43^2)+(AD44^2))","v":140.66271716414411},{"$f":"AE19+AE20+AE43+AE44","v":27},{"$f":"SQRT((AF19^2)+(AF20^2)+(AF43^2)+(AF44^2))","v":13.856406460551018},{"$f":"AG19+AG20+AG43+AG44","v":127},{"$f":"SQRT((AH19^2)+(AH20^2)+(AH43^2)+(AH44^2))","v":39.874804074753769},{"$f":"AI19+AI20+AI43+AI44","v":67},{"$f":"SQRT((AJ19^2)+(AJ20^2)+(AJ43^2)+(AJ44^2))","v":22.315913604421397},{"$f":"AK19+AK20+AK43+AK44","v":120},{"$f":"SQRT((AL19^2)+(AL20^2)+(AL43^2)+(AL44^2))","v":44.643028571099428},{"$f":"AM19+AM20+AM43+AM44","v":782},{"$f":"SQRT((AN19^2)+(AN20^2)+(AN43^2)+(AN44^2))","v":204.18374078265879},{"$f":"AO19+AO20+AO43+AO44","v":293},{"$f":"SQRT((AP19^2)+(AP20^2)+(AP43^2)+(AP44^2))","v":86.815897161752588},{"$f":"AQ19+AQ20+AQ43+AQ44","v":351},{"$f":"SQRT((AR19^2)+(AR20^2)+(AR43^2)+(AR44^2))","v":98.112180691288273},{"$f":"AS19+AS20+AS43+AS44","v":148},{"$f":"SQRT((AT19^2)+(AT20^2)+(AT43^2)+(AT44^2))","v":71.484264002646071},{"$f":"AU19+AU20+AU43+AU44","v":515},{"$f":"SQRT((AV19^2)+(AV20^2)+(AV43^2)+(AV44^2))","v":148.03040228277433}]
[null,"45 to 54 yrs.",{"$f":"C21+C22+C45+C46","v":215},{"$f":"SQRT((D21^2)+(D22^2)+(D45^2)+(D46^2))","v":55.154328932550705},{"$f":"E21+E22+E45+E46","v":383},{"$f":"SQRT((F21^2)+(F22^2)+(F45^2)+(F46^2))","v":170.6839183988931},{"$f":"G21+G22+G45+G46","v":284},{"$f":"SQRT((H21^2)+(H22^2)+(H45^2)+(H46^2))","v":65.612498809296994},{"$f":"I21+I22+I45+I46","v":329},{"$f":"SQRT((J21^2)+(J22^2)+(J45^2)+(J46^2))","v":168.54079624826744},{"$f":"K21+K22+K45+K46","v":119},{"$f":"SQRT((L21^2)+(L22^2)+(L45^2)+(L46^2))","v":37.828560638755476},{"$f":"M21+M22+M45+M46","v":67},{"$f":"SQRT((N21^2)+(N22^2)+(N45^2)+(N46^2))","v":26.095976701399778},{"$f":"O21+O22+O45+O46","v":566},{"$f":"SQRT((P21^2)+(P22^2)+(P45^2)+(P46^2))","v":176.31505891443305},{"$f":"Q21+Q22+Q45+Q46","v":881},{"$f":"SQRT((R21^2)+(R22^2)+(R45^2)+(R46^2))","v":223.4166511252015},{"$f":"S21+S22+S45+S46","v":2590},{"$f":"SQRT((T21^2)+(T22^2)+(T45^2)+(T46^2))","v":371.5830997233324},{"$f":"U21+U22+U45+U46","v":267},{"$f":"SQRT((V21^2)+(V22^2)+(V45^2)+(V46^2))","v":97.519228873079186},{"$f":"W21+W22+W45+W46","v":76},{"$f":"SQRT((X21^2)+(X22^2)+(X45^2)+(X46^2))","v":27.294688127912362},{"$f":"Y21+Y22+Y45+Y46","v":56},{"$f":"SQRT((Z21^2)+(Z22^2)+(Z45^2)+(Z46^2))","v":24.228082879171435},{"$f":"AA21+AA22+AA45+AA46","v":98},{"$f":"SQRT((AB21^2)+(AB22^2)+(AB45^2)+(AB46^2))","v":40.422765862815474},{"$f":"AC21+AC22+AC45+AC46","v":614},{"$f":"SQRT((AD21^2)+(AD22^2)+(AD45^2)+(AD46^2))","v":152.55490814785344},{"$f":"AE21+AE22+AE45+AE46","v":69},{"$f":"SQRT((AF21^2)+(AF22^2)+(AF45^2)+(AF46^2))","v":43.79497688091638},{"$f":"AG21+AG22+AG45+AG46","v":191},{"$f":"SQRT((AH21^2)+(AH22^2)+(AH45^2)+(AH46^2))","v":47.89572005931219},{"$f":"AI21+AI22+AI45+AI46","v":83},{"$f":"SQRT((AJ21^2)+(AJ22^2)+(AJ45^2)+(AJ46^2))","v":28.583211855912904},{"$f":"AK21+AK22+AK45+AK46","v":98},{"$f":"SQRT((AL21^2)+(AL22^2)+(AL45^2)+(AL46^2))","v":39.319206502675002},{"$f":"AM21+AM22+AM45+AM46","v":897},{"$f":"SQRT((AN21^2)+(AN22^2)+(AN45^2)+(AN46^2))","v":272.75996773720294},{"$f":"AO21+AO22+AO45+AO46","v":199},{"$f":"SQRT((AP21^2)+(AP22^2)+(AP45^2)+(AP46^2))","v":68.30080526611674},{"$f":"AQ21+AQ22+AQ45+AQ46","v":518},{"$f":"SQRT((AR21^2)+(AR22^2)+(AR45^2)+(AR46^2))","v":131.14495796636635},{"$f":"AS21+AS22+AS45+AS46","v":241},{"$f":"SQRT((AT21^2)+(AT22^2)+(AT45^2)+(AT46^2))","v":75.059976019180823},{"$f":"AU21+AU22+AU45+AU46","v":348},{"$f":"SQRT((AV21^2)+(AV22^2)+(AV45^2)+(AV46^2))","v":100.06997551713501}]
[null,"55 to 64 yrs.",{"$f":"C23+C24+C25+C47+C48+C49","v":344},{"$f":"SQRT((D23^2)+(D24^2)+(D25^2)+(D47^2)+(D48^2)+(D49^2))","v":97.462813421324952},{"$f":"E23+E24+E25+E47+E48+E49","v":547},{"$f":"SQRT((F23^2)+(F24^2)+(F25^2)+(F47^2)+(F48^2)+(F49^2))","v":219.10499766093881},{"$f":"G23+G24+G25+G47+G48+G49","v":291},{"$f":"SQRT((H23^2)+(H24^2)+(H25^2)+(H47^2)+(H48^2)+(H49^2))","v":97.969382972436847},{"$f":"I23+I24+I25+I47+I48+I49","v":550},{"$f":"SQRT((J23^2)+(J24^2)+(J25^2)+(J47^2)+(J48^2)+(J49^2))","v":102.64014809030625},{"$f":"K23+K24+K25+K47+K48+K49","v":131},{"$f":"SQRT((L23^2)+(L24^2)+(L25^2)+(L47^2)+(L48^2)+(L49^2))","v":33.241540277189323},{"$f":"M23+M24+M25+M47+M48+M49","v":230},{"$f":"SQRT((N23^2)+(N24^2)+(N25^2)+(N47^2)+(N48^2)+(N49^2))","v":57.714816122032303},{"$f":"O23+O24+O25+O47+O48+O49","v":674},{"$f":"SQRT((P23^2)+(P24^2)+(P25^2)+(P47^2)+(P48^2)+(P49^2))","v":167.65440644373174},{"$f":"Q23+Q24+Q25+Q47+Q48+Q49","v":862},{"$f":"SQRT((R23^2)+(R24^2)+(R25^2)+(R47^2)+(R48^2)+(R49^2))","v":274.16600810457885},{"$f":"S23+S24+S25+S47+S48+S49","v":2563},{"$f":"SQRT((T23^2)+(T24^2)+(T25^2)+(T47^2)+(T48^2)+(T49^2))","v":357.26040922553955},{"$f":"U23+U24+U25+U47+U48+U49","v":374},{"$f":"SQRT((V23^2)+(V24^2)+(V25^2)+(V47^2)+(V48^2)+(V49^2))","v":90.542807555321588},{"$f":"W23+W24+W25+W47+W48+W49","v":143},{"$f":"SQRT((X23^2)+(X24^2)+(X25^2)+(X47^2)+(X48^2)+(X49^2))","v":44.204072210600685},{"$f":"Y23+Y24+Y25+Y47+Y48+Y49","v":125},{"$f":"SQRT((Z23^2)+(Z24^2)+(Z25^2)+(Z47^2)+(Z48^2)+(Z49^2))","v":34.190641994557517},{"$f":"AA23+AA24+AA25+AA47+AA48+AA49","v":241},{"$f":"SQRT((AB23^2)+(AB24^2)+(AB25^2)+(AB47^2)+(AB48^2)+(AB49^2))","v":68.308125431752259},{"$f":"AC23+AC24+AC25+AC47+AC48+AC49","v":840},{"$f":"SQRT((AD23^2)+(AD24^2)+(AD25^2)+(AD47^2)+(AD48^2)+(AD49^2))","v":171.64498244924027},{"$f":"AE23+AE24+AE25+AE47+AE48+AE49","v":35},{"$f":"SQRT((AF23^2)+(AF24^2)+(AF25^2)+(AF47^2)+(AF48^2)+(AF49^2))","v":18.330302779823359},{"$f":"AG23+AG24+AG25+AG47+AG48+AG49","v":218},{"$f":"SQRT((AH23^2)+(AH24^2)+(AH25^2)+(AH47^2)+(AH48^2)+(AH49^2))","v":48.47679857416329},{"$f":"AI23+AI24+AI25+AI47+AI48+AI49","v":129},{"$f":"SQRT((AJ23^2)+(AJ24^2)+(AJ25^2)+(AJ47^2)+(AJ48^2)+(AJ49^2))","v":29.34280150224242},{"$f":"AK23+AK24+AK25+AK47+AK48+AK49","v":125},{"$f":"SQRT((AL23^2)+(AL24^2)+(AL25^2)+(AL47^2)+(AL48^2)+(AL49^2))","v":45.343136195018538},{"$f":"AM23+AM24+AM25+AM47+AM48+AM49","v":1537},{"$f":"SQRT((AN23^2)+(AN24^2)+(AN25^2)+(AN47^2)+(AN48^2)+(AN49^2))","v":288.49263422139569},{"$f":"AO23+AO24+AO25+AO47+AO48+AO49","v":279},{"$f":"SQRT((AP23^2)+(AP24^2)+(AP25^2)+(AP47^2)+(AP48^2)+(AP49^2))","v":74.538580614336894},{"$f":"AQ23+AQ24+AQ25+AQ47+AQ48+AQ49","v":401},{"$f":"SQRT((AR23^2)+(AR24^2)+(AR25^2)+(AR47^2)+(AR48^2)+(AR49^2))","v":118.52847759083046},{"$f":"AS23+AS24+AS25+AS47+AS48+AS49","v":436},{"$f":"SQRT((AT23^2)+(AT24^2)+(AT25^2)+(AT47^2)+(AT48^2)+(AT49^2))","v":120.97107092193571},{"$f":"AU23+AU24+AU25+AU47+AU48+AU49","v":800},{"$f":"SQRT((AV23^2)+(AV24^2)+(AV25^2)+(AV47^2)+(AV48^2)+(AV49^2))","v":187.01871564097536}]
[null,"65 to 74 yrs.",{"$f":"C26+C27+C28+C50+C51+C52","v":279},{"$f":"SQRT((D26^2)+(D27^2)+(D28^2)+(D50^2)+(D51^2)+(D52^2))","v":80.336791073579732},{"$f":"E26+E27+E28+E50+E51+E52","v":611},{"$f":"SQRT((F26^2)+(F27^2)+(F28^2)+(F50^2)+(F51^2)+(F52^2))","v":188.61071019430472},{"$f":"G26+G27+G28+G50+G51+G52","v":315},{"$f":"SQRT((H26^2)+(H27^2)+(H28^2)+(H50^2)+(H51^2)+(H52^2))","v":88.107888409608364},{"$f":"I26+I27+I28+I50+I51+I52","v":446},{"$f":"SQRT((J26^2)+(J27^2)+(J28^2)+(J50^2)+(J51^2)+(J52^2))","v":123.45849504995596},{"$f":"K26+K27+K28+K50+K51+K52","v":134},{"$f":"SQRT((L26^2)+(L27^2)+(L28^2)+(L50^2)+(L51^2)+(L52^2))","v":37.696153649941529},{"$f":"M26+M27+M28+M50+M51+M52","v":198},{"$f":"SQRT((N26^2)+(N27^2)+(N28^2)+(N50^2)+(N51^2)+(N52^2))","v":40.385641012617342},{"$f":"O26+O27+O28+O50+O51+O52","v":647},{"$f":"SQRT((P26^2)+(P27^2)+(P28^2)+(P50^2)+(P51^2)+(P52^2))","v":281.13519879232484},{"$f":"Q26+Q27+Q28+Q50+Q51+Q52","v":435},{"$f":"SQRT((R26^2)+(R27^2)+(R28^2)+(R50^2)+(R51^2)+(R52^2))","v":146.78555787270082},{"$f":"S26+S27+S28+S50+S51+S52","v":2239},{"$f":"SQRT((T26^2)+(T27^2)+(T28^2)+(T50^2)+(T51^2)+(T52^2))","v":276.83930356797242},{"$f":"U26+U27+U28+U50+U51+U52","v":203},{"$f":"SQRT((V26^2)+(V27^2)+(V28^2)+(V50^2)+(V51^2)+(V52^2))","v":58.651513194460719},{"$f":"W26+W27+W28+W50+W51+W52","v":142},{"$f":"SQRT((X26^2)+(X27^2)+(X28^2)+(X50^2)+(X51^2)+(X52^2))","v":52.459508194416003},{"$f":"Y26+Y27+Y28+Y50+Y51+Y52","v":107},{"$f":"SQRT((Z26^2)+(Z27^2)+(Z28^2)+(Z50^2)+(Z51^2)+(Z52^2))","v":26.814175355583846},{"$f":"AA26+AA27+AA28+AA50+AA51+AA52","v":214},{"$f":"SQRT((AB26^2)+(AB27^2)+(AB28^2)+(AB50^2)+(AB51^2)+(AB52^2))","v":80.492235650402947},{"$f":"AC26+AC27+AC28+AC50+AC51+AC52","v":859},{"$f":"SQRT((AD26^2)+(AD27^2)+(AD28^2)+(AD50^2)+(AD51^2)+(AD52^2))","v":172.87857010051883},{"$f":"AE26+AE27+AE28+AE50+AE51+AE52","v":23},{"$f":"SQRT((AF26^2)+(AF27^2)+(AF28^2)+(AF50^2)+(AF51^2)+(AF52^2))","v":14.866068747318506},{"$f":"AG26+AG27+AG28+AG50+AG51+AG52","v":154},{"$f":"SQRT((AH26^2)+(AH27^2)+(AH28^2)+(AH50^2)+(AH51^2)+(AH52^2))","v":31.906112267087632},{"$f":"AI26+AI27+AI28+AI50+AI51+AI52","v":80},{"$f":"SQRT((AJ26^2)+(AJ27^2)+(AJ28^2)+(AJ50^2)+(AJ51^2)+(AJ52^2))","v":21.748563170931547},{"$f":"AK26+AK27+AK28+AK50+AK51+AK52","v":152},{"$f":"SQRT((AL26^2)+(AL27^2)+(AL28^2)+(AL50^2)+(AL51^2)+(AL52^2))","v":43.220365569948619},{"$f":"AM26+AM27+AM28+AM50+AM51+AM52","v":1120},{"$f":"SQRT((AN26^2)+(AN27^2)+(AN28^2)+(AN50^2)+(AN51^2)+(AN52^2))","v":275.02727137504019},{"$f":"AO26+AO27+AO28+AO50+AO51+AO52","v":222},{"$f":"SQRT((AP26^2)+(AP27^2)+(AP28^2)+(AP50^2)+(AP51^2)+(AP52^2))","v":64.938432380216881},{"$f":"AQ26+AQ27+AQ28+AQ50+AQ51+AQ52","v":453},{"$f":"SQRT((AR26^2)+(AR27^2)+(AR28^2)+(AR50^2)+(AR51^2)+(AR52^2))","v":92.693041810051739},{"$f":"AS26+AS27+AS28+AS50+AS51+AS52","v":382},{"$f":"SQRT((AT26^2)+(AT27^2)+(AT28^2)+(AT50^2)+(AT51^2)+(AT52^2))","v":124.75576139000555},{"$f":"AU26+AU27+AU28+AU50+AU51+AU52","v":397},{"$f":"SQRT((AV26^2)+(AV27^2)+(AV28^2)+(AV50^2)+(AV51^2)+(AV52^2))","v":116.23682721065643}]
[null,"Over 74 yrs. ",{"$f":"C29+C30+C31+C53+C54+C55","v":142},{"$f":"SQRT((D29^2)+(D30^2)+(D31^2)+(D53^2)+(D54^2)+(D55^2))","v":60.033324079214538},{"$f":"E29+E30+E31+E53+E54+E55","v":274},{"$f":"SQRT((F29^2)+(F30^2)+(F31^2)+(F53^2)+(F54^2)+(F55^2))","v":114.51637437502114},{"$f":"G29+G30+G31+G53+G54+G55","v":128},{"$f":"SQRT((H29^2)+(H30^2)+(H31^2)+(H53^2)+(H54^2)+(H55^2))","v":56.515484603779164},{"$f":"I29+I30+I31+I53+I54+I55","v":90},{"$f":"SQRT((J29^2)+(J30^2)+(J31^2)+(J53^2)+(J54^2)+(J55^2))","v":35.256205127608389},{"$f":"K29+K30+K31+K53+K54+K55","v":46},{"$f":"SQRT((L29^2)+(L30^2)+(L31^2)+(L53^2)+(L54^2)+(L55^2))","v":17.832554500127006},{"$f":"M29+M30+M31+M53+M54+M55","v":93},{"$f":"SQRT((N29^2)+(N30^2)+(N31^2)+(N53^2)+(N54^2)+(N55^2))","v":32.572994949804659},{"$f":"O29+O30+O31+O53+O54+O55","v":411},{"$f":"SQRT((P29^2)+(P30^2)+(P31^2)+(P53^2)+(P54^2)+(P55^2))","v":202.1756661915573},{"$f":"Q29+Q30+Q31+Q53+Q54+Q55","v":434},{"$f":"SQRT((R29^2)+(R30^2)+(R31^2)+(R53^2)+(R54^2)+(R55^2))","v":151.65421194282735},{"$f":"S29+S30+S31+S53+S54+S55","v":1928},{"$f":"SQRT((T29^2)+(T30^2)+(T31^2)+(T53^2)+(T54^2)+(T55^2))","v":318.63144854204205},{"$f":"U29+U30+U31+U53+U54+U55","v":189},{"$f":"SQRT((V29^2)+(V30^2)+(V31^2)+(V53^2)+(V54^2)+(V55^2))","v":60.621778264910702},{"$f":"W29+W30+W31+W53+W54+W55","v":56},{"$f":"SQRT((X29^2)+(X30^2)+(X31^2)+(X53^2)+(X54^2)+(X55^2))","v":21},{"$f":"Y29+Y30+Y31+Y53+Y54+Y55","v":50},{"$f":"SQRT((Z29^2)+(Z30^2)+(Z31^2)+(Z53^2)+(Z54^2)+(Z55^2))","v":19.104973174542799},{"$f":"AA29+AA30+AA31+AA53+AA54+AA55","v":105},{"$f":"SQRT((AB29^2)+(AB30^2)+(AB31^2)+(AB53^2)+(AB54^2)+(AB55^2))","v":45.836666545463359},{"$f":"AC29+AC30+AC31+AC53+AC54+AC55","v":418},{"$f":"SQRT((AD29^2)+(AD30^2)+(AD31^2)+(AD53^2)+(AD54^2)+(AD55^2))","v":149.51588544365444},{"$f":"AE29+AE30+AE31+AE53+AE54+AE55","v":10},{"$f":"SQRT((AF29^2)+(AF30^2)+(AF31^2)+(AF53^2)+(AF54^2)+(AF55^2))","v":18.601075237738275},{"$f":"AG29+AG30+AG31+AG53+AG54+AG55","v":81},{"$f":"SQRT((AH29^2)+(AH30^2)+(AH31^2)+(AH53^2)+(AH54^2)+(AH55^2))","v":29.563490998188964},{"$f":"AI29+AI30+AI31+AI53+AI54+AI55","v":49},{"$f":"SQRT((AJ29^2)+(AJ30^2)+(AJ31^2)+(AJ53^2)+(AJ54^2)+(AJ55^2))","v":21.702534414210707},{"$f":"AK29+AK30+AK31+AK53+AK54+AK55","v":91},{"$f":"SQRT((AL29^2)+(AL30^2)+(AL31^2)+(AL53^2)+(AL54^2)+(AL55^2))","v":28.965496715920477},{"$f":"AM29+AM30+AM31+AM53+AM54+AM55","v":756},{"$f":"SQRT((AN29^2)+(AN30^2)+(AN31^2)+(AN53^2)+(AN54^2)+(AN55^2))","v":233.00214591286493},{"$f":"AO29+AO30+AO31+AO53+AO54+AO55","v":107},{"$f":"SQRT((AP29^2)+(AP30^2)+(AP31^2)+(AP53^2)+(AP54^2)+(AP55^2))","v":47.47630988187688},{"$f":"AQ29+AQ30+AQ31+AQ53+AQ54+AQ55","v":318},{"$f":"SQRT((AR29^2)+(AR30^2)+(AR31^2)+(AR53^2)+(AR54^2)+(AR55^2))","v":127.30671624073885},{"$f":"AS29+AS30+AS31+AS53+AS54+AS55","v":288},{"$f":"SQRT((AT29^2)+(AT30^2)+(AT31^2)+(AT53^2)+(AT54^2)+(AT55^2))","v":105.52724766618336},{"$f":"AU29+AU30+AU31+AU53+AU54+AU55","v":296},{"$f":"SQRT((AV29^2)+(AV30^2)+(AV31^2)+(AV53^2)+(AV54^2)+(AV55^2))","v":95.152509162922229}]
[]
[]
[]
[]
[]
[]
[]
[]
[]
[]
[]
[]
[]
[]
[]
[]
[]
[]
[]
[]
[]
[]
[]
[]
[]
[]
[]
[]
[]
[]
[]
[]
[]
[]
[]
[]
[]
[]
[]
[]
[]
[]
[]
[]
[]
[]
[]
[]
[]
[]
[]
[]
[]
[]
[]
[]
[]
[]
[]
[]
[]
[]
[]
[]
[]
[]
[]
[]
[]
[]
[]
[]
[]
[]
[]
[]
[null,"Calculated B01001. GENDER BY AGE"]
[null,"Universe:  TOTAL POPULATION"]
[null,"Data Set: 2013-2017 American Community Survey 5-Year Estimates"]
[]
[null,null,"Alstead",null,"Chesterfield",null,"Dublin",null,"Fitzwilliam",null,"Gilsum",null,"Harrisville",null,"Hinsdale",null,"Jaffrey",null,"Keene",null,"Marlborough",null,"Marlow",null,"Nelson",null,"Richmond",null,"Rindge",null,"Roxbury",null,"Stoddard",null,"Sullivan",null,"Surry",null,"Swanzey",null,"Troy",null,"Walpole",null,"Westmoreland",null,"Winchester"]
[null," ","Estimate","Margin of Error","Estimate","Margin of Error","Estimate","Margin of Error","Estimate","Margin of Error","Estimate","Margin of Error","Estimate","Margin of Error","Estimate","Margin of Error","Estimate","Margin of Error","Estimate","Margin of Error","Estimate","Margin of Error","Estimate","Margin of Error","Estimate","Margin of Error","Estimate","Margin of Error","Estimate","Margin of Error","Estimate","Margin of Error","Estimate","Margin of Error","Estimate","Margin of Error","Estimate","Margin of Error","Estimate","Margin of Error","Estimate","Margin of Error","Estimate","Margin of Error","Estimate","Margin of Error","Estimate","Margin of Error"]
[null,"Total",1847,227,3566,15,1487,174,2294,213,702,80,913,140,3925,20,23204,40,23537,32,2125,297,708,115,575,94,1243,176,6005,33,216,57,1193,185,725,118,884,130,7169,37,2182,310,3809,18,1802,235,4221,15]
[null,"Under 15 yrs.",262,81.731266966810196,743,189.12429775150522,235,58.779248038742381,264,70.908391604943347,78,23.748684174075834,76,30.315012782448235,614,157.16233645501711,3020,370.45917453884175,2981,342.13593789603573,292,87.64701934464172,110,34.205262752974143,85,27.331300737432898,213,76.804947757289696,1127,194.97179283168117,33,17.804493814764857,170,61.562975886485539,143,44.698993277254019,134,45.044422518220834,1089,246.6718467924542,2351,104.53707476297583,560,171.16366436834659,198,59.933296255086788,766,181.46073955542008]
[null,"15 to 24 yrs.",228,83.898748500797083,122,71.56116265125938,163,57.948252777801677,232,78.453808065638214,99,31.160872901765767,80,34.322004603461025,437,157.70225109363531,5740,502.20314614705472,5967,548.9171157834304,262,91.755108849589405,55,31.048349392520048,72,37.282703764614496,115,50.596442562694072,1462,234.23492480840682,24,18.814887722226779,107,50.635955604688654,73,35.580893749314392,68,32.969683043669072,752,211.83012061555362,230,97.841708897586201,394,125.75770354137356,209,57.375953151124207,545,177.20045146669349]
[null,"25 to 34 yrs.",195,66.219332524573218,411,138.24615727028365,134,51.633322573702344,287,76.347887986505555,60,19.493588689617926,31,15,292,116.87172455303293,2876,330.04999621269502,3115,332.96546367453789,211,70.894287499064404,85,30.248966924508348,71,25.37715508089904,186,56.231663678038196,641,132.62729734108285,29,16.124515496597098,142,43.382023926967726,87,29.597297173897484,90,33.181320046074113,1033,249.42533953069002,283,96.969067232803681,443,127.01181047445942,179,62.128898268036266,516,153.24816475246939]
[null,"35 to 44 yrs.",192,63.820059542435402,396,149.58943812983588,111,32.280024783137947,217,67.067130548428864,77,23.49468024894146,78,33.241540277189323,596,153.668474320532,2184,300.26987860922713,2078,273.30203072791096,279,79.353638857962906,72,27.055498516937366,46,18.384776310850235,99,37.336309405188942,636,119.10919359982252,24,13.30413469565007,126,46.249324319388712,43,20.928449536456348,114,36.041642581880197,867,177.23712929293342,272,79.91245209602819,394,111.27443551867607,129,42.848570571257099,398,130.24208229293635]
[null,"45 to 54 yrs.",317,75.345869163478369,463,142.84957122791795,227,53.563046963368315,341,83.94641147779933,118,28.460498941515414,143,44.519658579104131,661,149.40214188558343,2823,265.19803920843759,2750,263.0380200655411,228,73.006848993775918,122,27,80,21.88606862823929,179,42.130748865881792,586,121.54834429147935,33,12.24744871391589,186,50.744457825461097,127,31.575306807693888,108,28.390139133156779,1107,215.34391098891095,324,87.034475927646056,744,136.87220316777254,305,61.757590626578043,613,173.45028106059672]
[null,"55 to 64 yrs.",292,76.151165453983694,642,167.84814565552995,340,67.014923711066032,453,89.693923985964616,154,32.062439083762797,220,40.853396431630991,576,120.95453691366852,2757,321.64576788759399,2877,322.55542159449124,433,98.336158151516173,143,33.941125496954278,112,29.597297173897484,272,61.644140029689765,727,134.61054936371073,42,18.411952639521967,198,49.142649501222458,126,31.208973068654469,187,44.57577817604534,1079,221.45428422137152,389,105.63143471523995,547,130.53735097664577,381,65.871086221497819,633,153.08494374039532]
[null,"65 to 74 yrs.",247,58.197938107805847,508,153.29709716755892,180,42.071367935925259,360,82.334682849938758,75,18.193405398660254,198,44.654227123532216,509,110.32678731840241,2021,243.51591323771842,2079,254.87251715318385,246,69.663476800975133,57,16.733200530681511,63,20.445048300260872,106,29.461839725312469,512,109.37549999885715,23,9.8488578017961039,150,38.561638969317684,80,24.454038521274967,123,28.565713714171402,614,154.49271827500479,184,54.680892457969264,364,102.64014809030625,246,60.116553460756549,468,111.99553562530964]
[null,"Over 74 yrs. ",114,47.655010229775421,281,127.02755606560333,97,34.568772034887211,140,49.79959839195493,41,15.329709716755891,87,57.157676649772952,240,94.889409314211662,1783,267.65462820582798,1690,249.44338034912852,174,57.67148342118486,64,20.928449536456348,46,17.233687939614086,73,28.460498941515414,314,101.5381701627521,8,17.804493814764857,114,38.327535793473601,46,21.354156504062622,60,18.547236990991408,628,156.67163112701672,113,51.604263389762671,363,113.65298060323803,155,59.11852501542981,282,91.214034007931033]
[]
[]
[]
[]
[]
[]
[]
[]
[]
[]
[]
[]
[]
[]
[]
[]
[]
[]
[]
[]
[]
[]
[]
[]
[]
[]
[]
[]
[]
[]
[]
[]
[]
[]
[]
[]
[]
[]
[]
[]
[]
[]
[]
[]
[]
[]
[]
[]
[]
[]
[]
[]
[]
[]
[]
[]
[]
[]
[]
[]
[]
[]
[]
[]
[]
[]
[]
[]
[]
[]
[]
[]
[]
[]
[]
[]
[null,"Calculated B01001. GENDER BY AGE"]
[null,"Universe:  TOTAL POPULATION"]
[null,"Data Set: 2008-2012 American Community Survey 5-Year Estimates"]
[]
[null,null,"Alstead",null,"Chesterfield",null,"Dublin",null,"Fitzwilliam",null,"Gilsum",null,"Harrisville",null,"Hinsdale",null,"Jaffrey",null,"Keene",null,"Marlborough",null,"Marlow",null,"Nelson",null,"Richmond",null,"Rindge",null,"Roxbury",null,"Stoddard",null,"Sullivan",null,"Surry",null,"Swanzey",null,"Troy",null,"Walpole",null,"Westmoreland",null,"Winchester"]
[null," ","Estimate","Margin of Error","Estimate","Margin of Error","Estimate","Margin of Error","Estimate","Margin of Error","Estimate","Margin of Error","Estimate","Margin of Error","Estimate","Margin of Error","Estimate","Margin of Error","Estimate","Margin of Error","Estimate","Margin of Error","Estimate","Margin of Error","Estimate","Margin of Error","Estimate","Margin of Error","Estimate","Margin of Error","Estimate","Margin of Error","Estimate","Margin of Error","Estimate","Margin of Error","Estimate","Margin of Error","Estimate","Margin of Error","Estimate","Margin of Error","Estimate","Margin of Error","Estimate","Margin of Error","Estimate","Margin of Error"]
[null,"Total",1883,173,3617,22,1709,209,2576,268,542,75,923,139,4046,18,5462,21,23389,22,1977,269,890,185,729,156,992,145,6001,19,219,37,1045,181,691,108,821,110,7236,29,2112,274,3731,19,2183,246,4332,18]
[null,"Under 15 yrs.",393,84.628600366542756,508,155.94870951694341,312,74.47818472546173,454,111.26095451684746,48,19.078784028338912,152,45.122056690713912,656,174.33301465872722,1043,243.37830634631345,2896,353.60995461100924,315,96.648848932617923,163,50.882216932834204,72,37.416573867739416,155,49.507575177946251,1100,185.93547267802344,28,17.11724276862369,200,59.388551085204966,125,46.454278597347738,79,27.386127875258307,1172,210.8909670896314,417,99.969995498649496,744,178.63090438107287,337,77.459666924148337,826,195.86730201848394]
[null,"15 to 24 yrs.",170,55.551777649324599,418,173.38973441354594,231,67.867518003828607,172,63.324560795950255,47,24.779023386727733,42,30.083217912982647,351,123.16655390161731,636,197.07866449720021,6484,650.78952050567011,184,71.533209071032175,61,46.957427527495582,110,38.781438859330635,125,44.721359549995796,1784,269.32322588295278,25,25.826343140289914,69,32.619012860600179,90,38.052595180880893,78,35.468295701936398,959,231.90084087816498,272,87.903356022395414,464,122.83729075488436,224,71.414284285428494,404,132.52546925025393]
[null,"25 to 34 yrs.",199,57.253820833198546,334,163.8596960817394,67,29.223278392404914,270,92.644481756875294,59,23.345235059857504,64,24.372115213907882,538,142.50614021858848,379,143.67672045254932,2409,295.91045942987552,188,84.142735871850519,72,31.144823004794873,37,18.411952639521967,106,34.785054261852174,773,150.8343462212768,25,15.811388300841896,63,30.773365106858236,84,31.984371183438952,93,34.014702703389901,768,187.49399990399692,307,86.423376467249881,381,112.30761327710601,240,69.55573304911681,412,136.91603266235842]
[null,"35 to 44 yrs.",252,51.778373863998475,485,133.15404612703287,249,83.228600853312443,292,84.303024856763003,58,21.213203435596427,89,33.196385345395662,413,113.21219015636082,885,209.21520021260406,2400,290.77654650951479,311,82.304313374209016,153,43.623388222374473,59,25.903667693977237,75,27.404379212089442,487,129.20526305069774,27,14.212670403551895,160,47.180504448341793,108,35.312887166019152,100,26.645825188948457,850,177.36403243047897,306,85.638776264026561,595,124.04031602668546,253,57.40209055426466,679,160.77313208369114]
[null,"45 to 54 yrs.",345,71.867934435323804,431,126.0833057942248,291,67.542579163073128,638,108.36050941187015,95,27.294688127912362,207,56.550862062394771,755,165.07876907706819,802,175.6388339747221,2895,266.63458140308808,307,75.08661665037252,179,61.603571325045756,163,53.047148839499378,186,49.859803449271638,681,128.24195881223898,30,14.071247279470288,277,63.796551630946325,119,33.630343441600473,175,47,1230,229.873878463822,320,82.782848465125909,596,124.77579893553076,487,82.668010741761535,816,152.33515680892575]
[null,"55 to 64 yrs.",255,49.849774322458067,774,177.09884245810304,266,56.0357029044876,389,95.163018026962547,140,37.188707963574103,224,43.749285708454714,564,122.09013064126027,877,181.94779471046084,2770,281.36630928382311,351,76.387171697870841,105,46.82947789587238,163,41.109609582188931,243,54.63515351859094,648,120.51970793193949,42,13.928388277184119,107,30.577769702841312,84,23.130067012440755,150,38.923000912057127,1184,232.17881040267218,230,68.556546004010443,423,105.64090116995405,250,54.899908925243217,611,139.21925154230647]
[null,"65 to 74 yrs.",158,45.738386504117088,402,151.7695621658045,194,68.920243760451115,263,74.040529441651074,65,23.916521486202797,66,27.766886753829642,416,126.39224659764538,423,118.31736981525579,1512,209.03827400741713,182,57.035076926396798,110,35.042830935870462,81,28.635642126552707,73,21.330729007701542,297,89.26925562588724,32,12,115,35.284557528754704,53,19.442222095223581,79,20.591260281974002,736,157.0063692975543,177,57.078892771321343,277,85.211501571090736,136,41.844951905815357,374,90.631120482977593]
[null,"Over 74 yrs. ",111,38.483762809787713,265,122.51122397560152,99,35.846896657869841,98,45.858477951192405,30,18.841443681416774,79,36.510272527057367,353,133.68993978605869,417,119.26021968787413,2023,238.82001591156467,139,47.074409183759279,47,22.449944320643649,44,19.723082923316021,29,17.916472867168917,231,74.806416837060169,10,20.09975124224178,54,25.13961017995307,28,24.596747752497688,67,33.645207682521445,337,120.48651376813922,83,40.149719799769464,251,74.505033387013526,256,74.033776075518389,210,68.308125431752259]

{"sheet":"ACS_Table_B01002","index":32,"n_rows":49,"n_cols":48,"rows_kept":49,"cut":false,"hidden":true,"merged":[[64938,16,64938,17],[64938,18,64938,19],[64938,20,64938,21],[64938,22,64938,23],[64856,16,64856,17],[64856,18,64856,19],[64856,20,64856,21],[64856,22,64856,23],[64918,16,64918,17],[64918,18,64918,19],[64918,20,64918,21],[64918,22,64918,23],[64774,16,64774,17],[64774,18,64774,19],[64774,20,64774,21],[64774,22,64774,23],[64836,16,64836,17],[64836,18,64836,19],[64836,20,64836,21],[64836,22,64836,23],[64692,16,64692,17],[64692,18,64692,19],[64692,20,64692,21],[64692,22,64692,23],[64754,16,64754,17],[64754,18,64754,19],[64754,20,64754,21],[64754,22,64754,23],[64610,16,64610,17],[64610,18,64610,19],[64610,20,64610,21],[64610,22,64610,23],[64672,16,64672,17],[64672,18,64672,19],[64672,20,64672,21],[64672,22,64672,23],[64528,16,64528,17],[64528,18,64528,19],[64528,20,64528,21],[64528,22,64528,23],[64590,16,64590,17],[64590,18,64590,19],[64590,20,64590,21],[64590,22,64590,23],[64446,16,64446,17],[64446,18,64446,19],[64446,20,64446,21],[64446,22,64446,23],[64508,16,64508,17],[64508,18,64508,19],[64508,20,64508,21],[64508,22,64508,23],[64364,16,64364,17],[64364,18,64364,19],[64364,20,64364,21],[64364,22,64364,23],[64426,16,64426,17],[64426,18,64426,19],[64426,20,64426,21],[64426,22,64426,23],[64282,16,64282,17],[64282,18,64282,19],[64282,20,64282,21],[64282,22,64282,23],[64344,16,64344,17],[64344,18,64344,19],[64344,20,64344,21],[64344,22,64344,23],[64200,16,64200,17],[64200,18,64200,19],[64200,20,64200,21],[64200,22,64200,23],[64262,16,64262,17],[64262,18,64262,19],[64262,20,64262,21],[64262,22,64262,23],[64118,16,64118,17],[64118,18,64118,19],[64118,20,64118,21],[64118,22,64118,23],[64180,16,64180,17],[64180,18,64180,19],[64180,20,64180,21],[64180,22,64180,23],[64036,16,64036,17],[64036,18,64036,19],[64036,20,64036,21],[64036,22,64036,23],[64098,16,64098,17],[64098,18,64098,19],[64098,20,64098,21],[64098,22,64098,23],[63954,16,63954,17],[63954,18,63954,19],[63954,20,63954,21],[63954,22,63954,23],[64016,16,64016,17],[64016,18,64016,19],[64016,20,64016,21],[64016,22,64016,23],[63872,16,63872,17],[63872,18,63872,19],[63872,20,63872,21],[63872,22,63872,23],[63934,16,63934,17],[63934,18,63934,19],[63934,20,63934,21],[63934,22,63934,23],[63790,16,63790,17],[63790,18,63790,19],[63790,20,63790,21],[63790,22,63790,23],[63852,16,63852,17],[63852,18,63852,19],[63852,20,63852,21],[63852,22,63852,23],[63708,16,63708,17],[63708,18,63708,19],[63708,20,63708,21],[63708,22,63708,23],[63770,16,63770,17],[63770,18,63770,19],[63770,20,63770,21],[63770,22,63770,23],[63626,16,63626,17],[63626,18,63626,19],[63626,20,63626,21],[63626,22,63626,23],[63688,16,63688,17],[63688,18,63688,19],[63688,20,63688,21],[63688,22,63688,23],[63544,16,63544,17],[63544,18,63544,19],[63544,20,63544,21],[63544,22,63544,23],[63606,16,63606,17],[63606,18,63606,19],[63606,20,63606,21],[63606,22,63606,23],[63462,16,63462,17],[63462,18,63462,19],[63462,20,63462,21],[63462,22,63462,23],[63524,16,63524,17],[63524,18,63524,19],[63524,20,63524,21],[63524,22,63524,23],[63380,16,63380,17],[63380,18,63380,19],[63380,20,63380,21],[63380,22,63380,23],[63442,16,63442,17],[63442,18,63442,19],[63442,20,63442,21],[63442,22,63442,23],[63298,16,63298,17],[63298,18,63298,19],[63298,20,63298,21],[63298,22,63298,23],[63360,16,63360,17],[63360,18,63360,19],[63360,20,63360,21],[63360,22,63360,23],[63216,16,63216,17],[63216,18,63216,19],[63216,20,63216,21],[63216,22,63216,23],[63278,16,63278,17],[63278,18,63278,19],[63278,20,63278,21],[63278,22,63278,23],[63134,16,63134,17],[63134,18,63134,19],[63134,20,63134,21],[63134,22,63134,23],[63196,16,63196,17],[63196,18,63196,19],[63196,20,63196,21],[63196,22,63196,23],[63052,16,63052,17],[63052,18,63052,19],[63052,20,63052,21],[63052,22,63052,23],[63114,16,63114,17],[63114,18,63114,19],[63114,20,63114,21],[63114,22,63114,23],[62970,16,62970,17],[62970,18,62970,19],[62970,20,62970,21],[62970,22,62970,23],[63032,16,63032,17],[63032,18,63032,19],[63032,20,63032,21],[63032,22,63032,23],[62888,16,62888,17],[62888,18,62888,19],[62888,20,62888,21],[62888,22,62888,23],[62950,16,62950,17],[62950,18,62950,19],[62950,20,62950,21],[62950,22,62950,23],[62806,16,62806,17],[62806,18,62806,19],[62806,20,62806,21],[62806,22,62806,23],[62868,16,62868,17],[62868,18,62868,19],[62868,20,62868,21],[62868,22,62868,23],[62724,16,62724,17],[62724,18,62724,19],[62724,20,62724,21],[62724,22,62724,23],[62786,16,62786,17],[62786,18,62786,19],[62786,20,62786,21],[62786,22,62786,23],[62642,16,62642,17],[62642,18,62642,19],[62642,20,62642,21],[62642,22,62642,23],[62704,16,62704,17],[62704,18,62704,19],[62704,20,62704,21],[62704,22,62704,23],[62560,16,62560,17],[62560,18,62560,19],[62560,20,62560,21],[62560,22,62560,23],[62622,16,62622,17],[62622,18,62622,19],[62622,20,62622,21],[62622,22,62622,23],[62478,16,62478,17],[62478,18,62478,19],[62478,20,62478,21],[62478,22,62478,23],[62540,16,62540,17],[62540,18,62540,19],[62540,20,62540,21],[62540,22,62540,23],[62396,16,62396,17],[62396,18,62396,19],[62396,20,62396,21],[62396,22,62396,23],[62458,16,62458,17],[62458,18,62458,19],[62458,20,62458,21],[62458,22,62458,23],[62314,16,62314,17],[62314,18,62314,19],[62314,20,62314,21],[62314,22,62314,23],[62376,16,62376,17],[62376,18,62376,19],[62376,20,62376,21],[62376,22,62376,23],[62232,16,62232,17],[62232,18,62232,19],[62232,20,62232,21],[62232,22,62232,23],[62294,16,62294,17],[62294,18,62294,19],[62294,20,62294,21],[62294,22,62294,23],[62150,16,62150,17],[62150,18,62150,19],[62150,20,62150,21],[62150,22,62150,23],[62212,16,62212,17],[62212,18,62212,19],[62212,20,62212,21],[62212,22,62212,23],[62068,16,62068,17],[62068,18,62068,19],[62068,20,62068,21],[62068,22,62068,23],[62130,16,62130,17],[62130,18,62130,19],[62130,20,62130,21],[62130,22,62130,23],[61986,16,61986,17],[61986,18,61986,19],[61986,20,61986,21],[61986,22,61986,23],[62048,16,62048,17],[62048,18,62048,19],[62048,20,62048,21],[62048,22,62048,23],[61904,16,61904,17],[61904,18,61904,19],[61904,20,61904,21],[61904,22,61904,23],[61966,16,61966,17],[61966,18,61966,19],[61966,20,61966,21],[61966,22,61966,23],[61822,16,61822,17],[61822,18,61822,19],[61822,20,61822,21],[61822,22,61822,23],[61884,16,61884,17],[61884,18,61884,19],[61884,20,61884,21],[61884,22,61884,23],[61740,16,61740,17],[61740,18,61740,19],[61740,20,61740,21],[61740,22,61740,23],[61802,16,61802,17],[61802,18,61802,19],[61802,20,61802,21],[61802,22,61802,23],[61658,16,61658,17],[61658,18,61658,19],[61658,20,61658,21],[61658,22,61658,23],[61720,16,61720,17],[61720,18,61720,19],[61720,20,61720,21],[61720,22,61720,23],[61576,16,61576,17],[61576,18,61576,19],[61576,20,61576,21],[61576,22,61576,23],[61638,16,61638,17],[61638,18,61638,19],[61638,20,61638,21],[61638,22,61638,23],[61494,16,61494,17],[61494,18,61494,19],[61494,20,61494,21],[61494,22,61494,23],[61556,16,61556,17],[61556,18,61556,19],[61556,20,61556,21],[61556,22,61556,23],[61412,16,61412,17],[61412,18,61412,19],[61412,20,61412,21],[61412,22,61412,23],[61474,16,61474,17],[61474,18,61474,19],[61474,20,61474,21],[61474,22,61474,23],[61330,16,61330,17],[61330,18,61330,19],[61330,20,61330,21],[61330,22,61330,23],[61392,16,61392,17],[61392,18,61392,19],[61392,20,61392,21],[61392,22,61392,23],[61248,16,61248,17],[61248,18,61248,19],[61248,20,61248,21],[61248,22,61248,23],[61310,16,61310,17],[61310,18,61310,19],[61310,20,61310,21],[61310,22,61310,23],[61166,16,61166,17],[61166,18,61166,19],[61166,20,61166,21],[61166,22,61166,23],[61228,16,61228,17],[61228,18,61228,19],[61228,20,61228,21],[61228,22,61228,23],[61084,16,61084,17],[61084,18,61084,19],[61084,20,61084,21],[61084,22,61084,23],[61146,16,61146,17],[61146,18,61146,19],[61146,20,61146,21],[61146,22,61146,23],[61002,16,61002,17],[61002,18,61002,19],[61002,20,61002,21],[61002,22,61002,23],[61064,16,61064,17],[61064,18,61064,19],[61064,20,61064,21],[61064,22,61064,23],[60920,16,60920,17],[60920,18,60920,19],[60920,20,60920,21],[60920,22,60920,23],[60982,16,60982,17],[60982,18,60982,19],[60982,20,60982,21],[60982,22,60982,23],[60838,16,60838,17],[60838,18,60838,19],[60838,20,60838,21],[60838,22,60838,23],[60900,16,60900,17],[60900,18,60900,19],[60900,20,60900,21],[60900,22,60900,23],[60756,16,60756,17],[60756,18,60756,19],[60756,20,60756,21],[60756,22,60756,23],[60818,16,60818,17],[60818,18,60818,19],[60818,20,60818,21],[60818,22,60818,23],[60674,16,60674,17],[60674,18,60674,19],[60674,20,60674,21],[60674,22,60674,23],[60736,16,60736,17],[60736,18,60736,19],[60736,20,60736,21],[60736,22,60736,23],[60592,16,60592,17],[60592,18,60592,19],[60592,20,60592,21],[60592,22,60592,23],[60654,16,60654,17],[60654,18,60654,19],[60654,20,60654,21],[60654,22,60654,23],[60510,16,60510,17],[60510,18,60510,19],[60510,20,60510,21],[60510,22,60510,23],[60572,16,60572,17],[60572,18,60572,19],[60572,20,60572,21],[60572,22,60572,23],[60428,16,60428,17],[60428,18,60428,19],[60428,20,60428,21],[60428,22,60428,23],[60490,16,60490,17],[60490,18,60490,19],[60490,20,60490,21],[60490,22,60490,23],[60346,16,60346,17],[60346,18,60346,19],[60346,20,60346,21],[60346,22,60346,23],[60408,16,60408,17],[60408,18,60408,19],[60408,20,60408,21],[60408,22,60408,23],[60264,16,60264,17],[60264,18,60264,19],[60264,20,60264,21],[60264,22,60264,23],[60326,16,60326,17],[60326,18,60326,19],[60326,20,60326,21],[60326,22,60326,23],[60182,16,60182,17],[60182,18,60182,19],[60182,20,60182,21],[60182,22,60182,23],[60244,16,60244,17],[60244,18,60244,19],[60244,20,60244,21],[60244,22,60244,23],[60100,16,60100,17],[60100,18,60100,19],[60100,20,60100,21],[60100,22,60100,23],[60162,16,60162,17],[60162,18,60162,19],[60162,20,60162,21],[60162,22,60162,23],[60018,16,60018,17],[60018,18,60018,19],[60018,20,60018,21],[60018,22,60018,23],[60080,16,60080,17],[60080,18,60080,19],[60080,20,60080,21],[60080,22,60080,23],[59936,16,59936,17],[59936,18,59936,19],[59936,20,59936,21],[59936,22,59936,23],[59998,16,59998,17],[59998,18,59998,19],[59998,20,59998,21],[59998,22,59998,23],[59854,16,59854,17],[59854,18,59854,19],[59854,20,59854,21],[59854,22,59854,23],[59916,16,59916,17],[59916,18,59916,19],[59916,20,59916,21],[59916,22,59916,23],[59772,16,59772,17],[59772,18,59772,19],[59772,20,59772,21],[59772,22,59772,23],[59834,16,59834,17],[59834,18,59834,19],[59834,20,59834,21],[59834,22,59834,23],[59690,16,59690,17],[59690,18,59690,19],[59690,20,59690,21],[59690,22,59690,23],[59752,16,59752,17],[59752,18,59752,19],[59752,20,59752,21],[59752,22,59752,23],[59608,16,59608,17],[59608,18,59608,19],[59608,20,59608,21],[59608,22,59608,23],[59670,16,59670,17],[59670,18,59670,19],[59670,20,59670,21],[59670,22,59670,23],[59526,16,59526,17],[59526,18,59526,19],[59526,20,59526,21],[59526,22,59526,23],[59588,16,59588,17],[59588,18,59588,19],[59588,20,59588,21],[59588,22,59588,23],[59444,16,59444,17],[59444,18,59444,19],[59444,20,59444,21],[59444,22,59444,23],[59506,16,59506,17],[59506,18,59506,19],[59506,20,59506,21],[59506,22,59506,23],[59362,16,59362,17],[59362,18,59362,19],[59362,20,59362,21],[59362,22,59362,23],[59424,16,59424,17],[59424,18,59424,19],[59424,20,59424,21],[59424,22,59424,23],[59280,16,59280,17],[59280,18,59280,19],[59280,20,59280,21],[59280,22,59280,23],[59342,16,59342,17],[59342,18,59342,19],[59342,20,59342,21],[59342,22,59342,23],[59198,16,59198,17],[59198,18,59198,19],[59198,20,59198,21],[59198,22,59198,23],[59260,16,59260,17],[59260,18,59260,19],[59260,20,59260,21],[59260,22,59260,23],[59116,16,59116,17],[59116,18,59116,19],[59116,20,59116,21],[59116,22,59116,23],[59178,16,59178,17],[59178,18,59178,19],[59178,20,59178,21],[59178,22,59178,23],[59034,16,59034,17],[59034,18,59034,19],[59034,20,59034,21],[59034,22,59034,23],[59096,16,59096,17],[59096,18,59096,19],[59096,20,59096,21],[59096,22,59096,23],[58952,16,58952,17],[58952,18,58952,19],[58952,20,58952,21],[58952,22,58952,23],[59014,16,59014,17],[59014,18,59014,19],[59014,20,59014,21],[59014,22,59014,23],[58870,16,58870,17],[58870,18,58870,19],[58870,20,58870,21],[58870,22,58870,23],[58932,16,58932,17],[58932,18,58932,19],[58932,20,58932,21],[58932,22,58932,23],[58788,16,58788,17],[58788,18,58788,19],[58788,20,58788,21],[58788,22,58788,23],[58850,16,58850,17],[58850,18,58850,19],[58850,20,58850,21],[58850,22,58850,23],[58706,16,58706,17],[58706,18,58706,19],[58706,20,58706,21],[58706,22,58706,23],[58768,16,58768,17],[58768,18,58768,19],[58768,20,58768,21],[58768,22,58768,23],[58624,16,58624,17],[58624,18,58624,19],[58624,20,58624,21],[58624,22,58624,23],[58686,16,58686,17],[58686,18,58686,19],[58686,20,58686,21],[58686,22,58686,23],[58542,16,58542,17],[58542,18,58542,19],[58542,20,58542,21],[58542,22,58542,23],[58604,16,58604,17],[58604,18,58604,19],[58604,20,58604,21],[58604,22,58604,23],[58460,16,58460,17],[58460,18,58460,19],[58460,20,58460,21],[58460,22,58460,23],[58522,16,58522,17],[58522,18,58522,19],[58522,20,58522,21],[58522,22,58522,23],[58378,16,58378,17],[58378,18,58378,19],[58378,20,58378,21],[58378,22,58378,23],[58440,16,58440,17],[58440,18,58440,19],[58440,20,58440,21],[58440,22,58440,23],[58296,16,58296,17],[58296,18,58296,19],[58296,20,58296,21],[58296,22,58296,23],[58358,16,58358,17],[58358,18,58358,19],[58358,20,58358,21],[58358,22,58358,23],[58214,16,58214,17],[58214,18,58214,19],[58214,20,58214,21],[58214,22,58214,23],[58276,16,58276,17],[58276,18,58276,19],[58276,20,58276,21],[58276,22,58276,23],[58132,16,58132,17],[58132,18,58132,19],[58132,20,58132,21],[58132,22,58132,23],[58194,16,58194,17],[58194,18,58194,19],[58194,20,58194,21],[58194,22,58194,23],[58050,16,58050,17],[58050,18,58050,19],[58050,20,58050,21],[58050,22,58050,23],[58112,16,58112,17],[58112,18,58112,19],[58112,20,58112,21],[58112,22,58112,23],[57968,16,57968,17],[57968,18,57968,19],[57968,20,57968,21],[57968,22,57968,23],[58030,16,58030,17],[58030,18,58030,19],[58030,20,58030,21],[58030,22,58030,23],[57886,16,57886,17],[57886,18,57886,19],[57886,20,57886,21],[57886,22,57886,23],[57948,16,57948,17],[57948,18,57948,19],[57948,20,57948,21],[57948,22,57948,23],[57804,16,57804,17],[57804,18,57804,19],[57804,20,57804,21],[57804,22,57804,23],[57866,16,57866,17],[57866,18,57866,19],[57866,20,57866,21],[57866,22,57866,23],[57722,16,57722,17],[57722,18,57722,19],[57722,20,57722,21],[57722,22,57722,23],[57784,16,57784,17],[57784,18,57784,19],[57784,20,57784,21],[57784,22,57784,23],[57640,16,57640,17],[57640,18,57640,19],[57640,20,57640,21],[57640,22,57640,23],[57702,16,57702,17],[57702,18,57702,19],[57702,20,57702,21],[57702,22,57702,23],[57558,16,57558,17],[57558,18,57558,19],[57558,20,57558,21],[57558,22,57558,23],[57620,16,57620,17],[57620,18,57620,19],[57620,20,57620,21],[57620,22,57620,23],[57476,16,57476,17],[57476,18,57476,19],[57476,20,57476,21],[57476,22,57476,23],[57538,16,57538,17],[57538,18,57538,19],[57538,20,57538,21],[57538,22,57538,23],[57394,16,57394,17],[57394,18,57394,19],[57394,20,57394,21],[57394,22,57394,23],[57456,16,57456,17],[57456,18,57456,19],[57456,20,57456,21],[57456,22,57456,23],[57312,16,57312,17],[57312,18,57312,19],[57312,20,57312,21],[57312,22,57312,23],[57374,16,57374,17],[57374,18,57374,19],[57374,20,57374,21],[57374,22,57374,23],[57230,16,57230,17],[57230,18,57230,19],[57230,20,57230,21],[57230,22,57230,23],[57292,16,57292,17],[57292,18,57292,19],[57292,20,57292,21],[57292,22,57292,23],[57148,16,57148,17],[57148,18,57148,19],[57148,20,57148,21],[57148,22,57148,23],[57210,16,57210,17],[57210,18,57210,19],[57210,20,57210,21],[57210,22,57210,23],[57066,16,57066,17],[57066,18,57066,19],[57066,20,57066,21],[57066,22,57066,23],[57128,16,57128,17],[57128,18,57128,19],[57128,20,57128,21],[57128,22,57128,23],[56984,16,56984,17],[56984,18,56984,19],[56984,20,56984,21],[56984,22,56984,23],[57046,16,57046,17],[57046,18,57046,19],[57046,20,57046,21],[57046,22,57046,23],[56902,16,56902,17],[56902,18,56902,19],[56902,20,56902,21],[56902,22,56902,23],[56964,16,56964,17],[56964,18,56964,19],[56964,20,56964,21],[56964,22,56964,23],[56820,16,56820,17],[56820,18,56820,19],[56820,20,56820,21],[56820,22,56820,23],[56882,16,56882,17],[56882,18,56882,19],[56882,20,56882,21],[56882,22,56882,23],[56738,16,56738,17],[56738,18,56738,19],[56738,20,56738,21],[56738,22,56738,23],[56800,16,56800,17],[56800,18,56800,19],[56800,20,56800,21],[56800,22,56800,23],[56656,16,56656,17],[56656,18,56656,19],[56656,20,56656,21],[56656,22,56656,23],[56718,16,56718,17],[56718,18,56718,19],[56718,20,56718,21],[56718,22,56718,23],[56574,16,56574,17],[56574,18,56574,19],[56574,20,56574,21],[56574,22,56574,23],[56636,16,56636,17],[56636,18,56636,19],[56636,20,56636,21],[56636,22,56636,23],[56492,16,56492,17],[56492,18,56492,19],[56492,20,56492,21],[56492,22,56492,23],[56554,16,56554,17],[56554,18,56554,19],[56554,20,56554,21],[56554,22,56554,23],[56410,16,56410,17],[56410,18,56410,19],[56410,20,56410,21],[56410,22,56410,23],[56472,16,56472,17],[56472,18,56472,19],[56472,20,56472,21],[56472,22,56472,23],[56328,16,56328,17],[56328,18,56328,19],[56328,20,56328,21],[56328,22,56328,23],[56390,16,56390,17],[56390,18,56390,19],[56390,20,56390,21],[56390,22,56390,23],[56246,16,56246,17],[56246,18,56246,19],[56246,20,56246,21],[56246,22,56246,23],[56308,16,56308,17],[56308,18,56308,19],[56308,20,56308,21],[56308,22,56308,23],[56164,16,56164,17],[56164,18,56164,19],[56164,20,56164,21],[56164,22,56164,23],[56226,16,56226,17],[56226,18,56226,19],[56226,20,56226,21],[56226,22,56226,23],[56082,16,56082,17],[56082,18,56082,19],[56082,20,56082,21],[56082,22,56082,23],[56144,16,56144,17],[56144,18,56144,19],[56144,20,56144,21],[56144,22,56144,23],[56000,16,56000,17],[56000,18,56000,19],[56000,20,56000,21],[56000,22,56000,23],[56062,16,56062,17],[56062,18,56062,19],[56062,20,56062,21],[56062,22,56062,23],[55918,16,55918,17],[55918,18,55918,19],[55918,20,55918,21],[55918,22,55918,23],[55980,16,55980,17],[55980,18,55980,19],[55980,20,55980,21],[55980,22,55980,23],[55836,16,55836,17],[55836,18,55836,19],[55836,20,55836,21],[55836,22,55836,23],[55898,16,55898,17],[55898,18,55898,19],[55898,20,55898,21],[55898,22,55898,23],[55754,16,55754,17],[55754,18,55754,19],[55754,20,55754,21],[55754,22,55754,23],[55816,16,55816,17],[55816,18,55816,19],[55816,20,55816,21],[55816,22,55816,23],[55672,16,55672,17],[55672,18,55672,19],[55672,20,55672,21],[55672,22,55672,23],[55734,16,55734,17],[55734,18,55734,19],[55734,20,55734,21],[55734,22,55734,23],[55590,16,55590,17],[55590,18,55590,19],[55590,20,55590,21],[55590,22,55590,23],[55652,16,55652,17],[55652,18,55652,19],[55652,20,55652,21],[55652,22,55652,23],[55508,16,55508,17],[55508,18,55508,19],[55508,20,55508,21],[55508,22,55508,23],[55570,16,55570,17],[55570,18,55570,19],[55570,20,55570,21],[55570,22,55570,23],[55426,16,55426,17],[55426,18,55426,19],[55426,20,55426,21],[55426,22,55426,23],[55488,16,55488,17],[55488,18,55488,19],[55488,20,55488,21],[55488,22,55488,23],[55344,16,55344,17],[55344,18,55344,19],[55344,20,55344,21],[55344,22,55344,23],[55406,16,55406,17],[55406,18,55406,19],[55406,20,55406,21],[55406,22,55406,23],[55262,16,55262,17],[55262,18,55262,19],[55262,20,55262,21],[55262,22,55262,23],[55324,16,55324,17],[55324,18,55324,19],[55324,20,55324,21],[55324,22,55324,23],[55180,16,55180,17],[55180,18,55180,19],[55180,20,55180,21],[55180,22,55180,23],[55242,16,55242,17],[55242,18,55242,19],[55242,20,55242,21],[55242,22,55242,23],[55098,16,55098,17],[55098,18,55098,19],[55098,20,55098,21],[55098,22,55098,23],[55160,16,55160,17],[55160,18,55160,19],[55160,20,55160,21],[55160,22,55160,23],[55016,16,55016,17],[55016,18,55016,19],[55016,20,55016,21],[55016,22,55016,23],[55078,16,55078,17],[55078,18,55078,19],[55078,20,55078,21],[55078,22,55078,23],[54934,16,54934,17],[54934,18,54934,19],[54934,20,54934,21],[54934,22,54934,23],[54996,16,54996,17],[54996,18,54996,19],[54996,20,54996,21],[54996,22,54996,23],[54852,16,54852,17],[54852,18,54852,19],[54852,20,54852,21],[54852,22,54852,23],[54914,16,54914,17],[54914,18,54914,19],[54914,20,54914,21],[54914,22,54914,23],[54770,16,54770,17],[54770,18,54770,19],[54770,20,54770,21],[54770,22,54770,23],[54832,16,54832,17],[54832,18,54832,19],[54832,20,54832,21],[54832,22,54832,23],[54688,16,54688,17],[54688,18,54688,19],[54688,20,54688,21],[54688,22,54688,23]],"merged_total":36432,"flags":["merged_cut"]}
[null,"B01001. GENDER BY AGE"]
[null,"Universe:  TOTAL POPULATION, Median Age"]
[null,"Data Set: 2018-2022 American Community Survey 5-Year Estimates"]
[]
[null,null,"Alstead",null,"Chesterfield",null,"Dublin",null,"Fitzwilliam",null,"Gilsum",null,"Harrisville",null,"Hinsdale",null,"Jaffrey",null,"Keene",null,"Marlborough",null,"Marlow",null,"Nelson",null,"Richmond",null,"Rindge",null,"Roxbury",null,"Stoddard",null,"Sullivan",null,"Surry",null,"Swanzey",null,"Troy",null,"Walpole",null,"Westmoreland",null,"Winchester"]
[null," ","Estimate","Margin of Error","Estimate","Margin of Error","Estimate","Margin of Error","Estimate","Margin of Error","Estimate","Margin of Error","Estimate","Margin of Error","Estimate","Margin of Error","Estimate","Margin of Error","Estimate","Margin of Error","Estimate","Margin of Error","Estimate","Margin of Error","Estimate","Margin of Error","Estimate","Margin of Error","Estimate","Margin of Error","Estimate","Margin of Error","Estimate","Margin of Error","Estimate","Margin of Error","Estimate","Margin of Error","Estimate","Margin of Error","Estimate","Margin of Error","Estimate","Margin of Error","Estimate","Margin of Error","Estimate","Margin of Error"]
[null,"Total:",54,4.9000000000000004,45.2,5.7,51.2,5.9,51.6,7.9,44.3,7,56.6,5.7,50.9,5.5,43.8,5.7,36.1,1.5,41.7,4.3,47.7,11.9,56,7.2,55.3,7.7,35.799999999999997,3.9,39.700000000000003,11.7,49.3,4.8,45.1,6.6,44.7,5.9,51.7,4.2,39.6,4.0999999999999996,41,6.8,55.6,1.9,41,3.5]
[null,"Male:",50.3,8.4,42,12.4,51.2,7.4,48.5,1.3,40.6,8.4,56.6,7.7,53.1,6.2,41.4,8.3000000000000007,34.6,2,43.6,5.4,52.8,10.1,58,8.8000000000000007,50.8,14.4,35.299999999999997,4.5999999999999996,46.8,12.1,50.2,5.9,46.3,7.5,50.6,9.1,51.6,8.3000000000000007,40.4,6.6,36.5,7.8,56.4,2,43.8,4.8]
[null,"Female:",55.5,4.5999999999999996,51.8,6.6,51.2,5.8,56.6,2.7,48.5,6.6,56.6,5.6,48.9,7.3,46.5,5.2,37.5,1.9,40.6,3.9,40.1,14.1,55.4,8.9,57.1,3.5,36.9,4.3,38.5,15.3,48.3,8,43.9,7.8,37,14.5,52.1,5.5,37.9,5.8,43.3,9.1999999999999993,55.2,6.6,39.5,5.8]
[]
[]
[]
[]
[]
[]
[]
[]
[]
[]
[]
[null,"B01001. GENDER BY AGE"]
[null,"Universe:  TOTAL POPULATION, Median Age"]
[null,"Data Set: 2013-2017 American Community Survey 5-Year Estimates"]
[]
[null,null,"Alstead",null,"Chesterfield",null,"Dublin",null,"Fitzwilliam",null,"Gilsum",null,"Harrisville",null,"Hinsdale",null,"Jaffrey",null,"Keene",null,"Marlborough",null,"Marlow",null,"Nelson",null,"Richmond",null,"Rindge",null,"Roxbury",null,"Stoddard",null,"Sullivan",null,"Surry",null,"Swanzey",null,"Troy",null,"Walpole",null,"Westmoreland",null,"Winchester"]
[null," ","Estimate","Margin of Error","Estimate","Margin of Error","Estimate","Margin of Error","Estimate","Margin of Error","Estimate","Margin of Error","Estimate","Margin of Error","Estimate","Margin of Error","Estimate","Margin of Error","Estimate","Margin of Error","Estimate","Margin of Error","Estimate","Margin of Error","Estimate","Margin of Error","Estimate","Margin of Error","Estimate","Margin of Error","Estimate","Margin of Error","Estimate","Margin of Error","Estimate","Margin of Error","Estimate","Margin of Error","Estimate","Margin of Error","Estimate","Margin of Error","Estimate","Margin of Error","Estimate","Margin of Error","Estimate","Margin of Error"]
[null,"Total:",46.7,5.7,46.8,5.3,50.4,3.5,50.2,4.5,48,4.5,57.7,3.9,45.5,3.2,34.700000000000003,3,33.6,1.9,46.4,6.4,49.5,5.0999999999999996,46,6.6,45.5,5.9,32.200000000000003,2.7,41.8,10.9,48.1,4.8,46.8,6.5,47.8,5.7,43.3,2.9,41.9,5.9,46.8,2.2999999999999998,52.5,3,40.700000000000003,6.1]
[null,"Male:",46.1,12.5,47.3,6.6,48.4,6.5,52.6,4.8,44.5,3.5,56.6,8.5,44.1,3.1,35.4,4,33.799999999999997,3.6,44.4,5.5,50,4.8,47.9,8.5,44.3,9.6999999999999993,29,5.0999999999999996,36.9,9.8000000000000007,48.5,6.5,47.6,8.3000000000000007,52.1,6.7,42.6,3.4,41.3,6.7,45.5,3.7,54.2,2.4,43.9,9.1]
[null,"Female:",47.4,6,46.6,5.5,52.3,1.6,48.6,3.6,51.4,3.9,58.7,3,47.2,4.2,34.1,3.1,33.299999999999997,1.9,50.1,7.9,49.4,7.7,44.8,5.2,46.5,5.4,34.200000000000003,3.2,46.5,11.8,47.1,5.3,46.4,6.9,46.8,5.9,43.9,5.4,41.9,7.1,47.5,2.6,50.7,5.3,40.4,4.2]
[]
[]
[]
[]
[]
[]
[]
[]
[]
[]
[]
[null,"B01001. GENDER BY AGE"]
[null,"Universe:  TOTAL POPULATION, Median Age"]
[null,"Data Set: 2008-2012 American Community Survey 5-Year Estimates"]
[]
[null,null,"Alstead",null,"Chesterfield",null,"Dublin",null,"Fitzwilliam",null,"Gilsum",null,"Harrisville",null,"Hinsdale",null,"Jaffrey",null,"Keene",null,"Marlborough",null,"Marlow",null,"Nelson",null,"Richmond",null,"Rindge",null,"Roxbury",null,"Stoddard",null,"Sullivan",null,"Surry",null,"Swanzey",null,"Troy",null,"Walpole",null,"Westmoreland",null,"Winchester"]
[null," ","Estimate","Margin of Error","Estimate","Margin of Error","Estimate","Margin of Error","Estimate","Margin of Error","Estimate","Margin of Error","Estimate","Margin of Error","Estimate","Margin of Error","Estimate","Margin of Error","Estimate","Margin of Error","Estimate","Margin of Error","Estimate","Margin of Error","Estimate","Margin of Error","Estimate","Margin of Error","Estimate","Margin of Error","Estimate","Margin of Error","Estimate","Margin of Error","Estimate","Margin of Error","Estimate","Margin of Error","Estimate","Margin of Error","Estimate","Margin of Error","Estimate","Margin of Error","Estimate","Margin of Error","Estimate","Margin of Error"]
[null,"Total:",43.2,2.5,49.7,10.5,44.5,6.5,47.2,2.9,52.1,3.5,51,4.9000000000000004,45.5,1.5,43.2,2.7,34.6,1.6,44.8,4.4000000000000004,44.2,6.8,51.7,3.2,47.8,5.2,25.9,1.7,46.6,6.8,46.9,5.5,39.799999999999997,3.6,47.5,1.9,43.4,2.2999999999999998,36.9,3.5,39.700000000000003,1.7,46.1,3.8,43.1,2.6]
[null,"Male:",42.8,4.2,52.4,12.2,47.1,7.8,46.1,4.5,50.9,6.3,52.2,4,42.9,6.9,44.4,2.5,33.9,2.6,47.2,6.9,44.5,8.1999999999999993,53.3,1.7,46.9,8.1999999999999993,26,2.2999999999999998,48.6,6.4,48.4,7.1,40.9,6.2,47.8,3.6,42,2.2000000000000002,36.1,3.6,40,1.5,42.6,5.7,43.8,5]
[null,"Female:",43.3,2.1,45.3,10.5,43.1,7.1,48.6,2.4,52.4,2.5,48.6,4,46.9,3.4,42.1,2.2000000000000002,35,1.5,44.4,3.6,43.9,8,49.3,4.5999999999999996,48,5.7,25.8,3.9,42.5,8.6,46.4,5.3,38.5,6.9,47.2,2,46.1,3.7,37.700000000000003,3.9,39.1,4,47.9,3.4,42.7,1.8]

{"sheet":"ACS_Tbl_B11001_B11002_B25010","index":33,"n_rows":202,"n_cols":48,"rows_kept":202,"cut":false,"hidden":true,"merged":[]}
[null,"B11001. HOUSEHOLD TYPE (INCLUDING LIVING ALONE)"]
[null,"Universe:  HOUSEHOLDS"]
[null,"Data Set: 2018-2022 American Community Survey 5-Year Estimates"]
[]
[null,null,"Alstead",null,"Chesterfield",null,"Dublin",null,"Fitzwilliam",null,"Gilsum",null,"Harrisville",null,"Hinsdale",null,"Jaffrey",null,"Keene",null,"Marlborough",null,"Marlow",null,"Nelson",null,"Richmond",null,"Rindge",null,"Roxbury",null,"Stoddard",null,"Sullivan",null,"Surry",null,"Swanzey",null,"Troy",null,"Walpole",null,"Westmoreland",null,"Winchester"]
[null," ","Estimate","Margin of Error","Estimate","Margin of Error","Estimate","Margin of Error","Estimate","Margin of Error","Estimate","Margin of Error","Estimate","Margin of Error","Estimate","Margin of Error","Estimate","Margin of Error","Estimate","Margin of Error","Estimate","Margin of Error","Estimate","Margin of Error","Estimate","Margin of Error","Estimate","Margin of Error","Estimate","Margin of Error","Estimate","Margin of Error","Estimate","Margin of Error","Estimate","Margin of Error","Estimate","Margin of Error","Estimate","Margin of Error","Estimate","Margin of Error","Estimate","Margin of Error","Estimate","Margin of Error","Estimate","Margin of Error"]
[null,"Total:",723,97,1366,158,635,101,1013,154,310,51,416,75,1594,139,2026,225,9259,370,942,130,314,61,246,41,393,73,1972,144,95,37,436,52,281,53,344,58,3255,171,758,101,1427,121,885,182,1617,146]
[null,"Family households:",454,72,1003,131,527,93,619,124,230,43,313,70,1049,141,1374,156,4541,311,557,107,247,59,167,39,316,68,1451,123,66,37,297,45,196,45,262,60,2089,223,497,87,883,94,669,155,909,104]
[null,"Married-couple family",389,73,848,155,454,95,481,77,193,37,271,66,884,153,1202,191,3393,299,446,99,227,55,136,31,245,57,1368,126,57,37,259,45,167,45,233,60,1583,258,359,71,717,98,609,146,713,112]
[null,"Other family:",65,21,155,87,73,30,138,101,37,28,42,22,165,95,172,86,1148,218,111,66,20,17,31,18,71,40,83,47,9,11,38,21,29,19,29,16,506,188,138,52,166,81,60,58,196,76]
[null,"Male householder, no spouse present",13,11,18,29,35,22,55,33,10,12,12,10,81,75,36,38,334,150,21,22,8,12,10,10,41,37,35,38,8,11,19,17,21,17,6,5,147,114,57,35,43,30,11,9,26,44]
[null,"Female householder, no spouse present",52,20,137,81,38,20,83,93,27,26,30,19,84,61,136,88,814,170,90,64,12,11,21,14,30,24,48,42,1,2,19,13,8,7,23,15,359,152,81,37,123,72,49,58,170,70]
[null,"Nonfamily households:",269,84,363,168,108,32,394,89,80,29,103,30,545,133,652,266,4718,494,385,81,67,22,79,24,77,29,521,144,29,13,139,39,85,24,82,23,1166,251,261,80,544,145,216,94,708,172]
[null,"Householder living alone",201,78,326,169,90,31,262,66,62,25,77,28,406,127,495,245,3651,482,257,61,58,22,66,25,51,21,399,123,18,9,84,27,59,18,61,22,750,175,190,69,472,143,188,84,558,159]
[null,"Householder not living alone",68,33,37,39,18,10,132,70,18,14,26,17,139,78,157,105,1067,230,128,63,9,7,13,9,26,23,122,66,11,10,55,26,26,15,21,15,416,189,71,36,72,46,28,29,150,75]
[]
[]
[]
[]
[]
[]
[]
[]
[]
[]
[]
[]
[]
[]
[]
[]
[]
[null,"B11002. HOUSEHOLD TYPE BY RELATIVES AND NONRELATIVES FOR POPULATION IN HOUSEHOLDS "]
[null,"Universe:  POPULATION IN HOUSEHOLDS"]
[null,"Data Set: 2018-2022 American Community Survey 5-Year Estimates"]
[]
[null,null,"Alstead",null,"Chesterfield",null,"Dublin",null,"Fitzwilliam",null,"Gilsum",null,"Harrisville",null,"Hinsdale",null,"Jaffrey",null,"Keene",null,"Marlborough",null,"Marlow",null,"Nelson",null,"Richmond",null,"Rindge",null,"Roxbury",null,"Stoddard",null,"Sullivan",null,"Surry",null,"Swanzey",null,"Troy",null,"Walpole",null,"Westmoreland",null,"Winchester"]
[null," ","Estimate","Margin of Error","Estimate","Margin of Error","Estimate","Margin of Error","Estimate","Margin of Error","Estimate","Margin of Error","Estimate","Margin of Error","Estimate","Margin of Error","Estimate","Margin of Error","Estimate","Margin of Error","Estimate","Margin of Error","Estimate","Margin of Error","Estimate","Margin of Error","Estimate","Margin of Error","Estimate","Margin of Error","Estimate","Margin of Error","Estimate","Margin of Error","Estimate","Margin of Error","Estimate","Margin of Error","Estimate","Margin of Error","Estimate","Margin of Error","Estimate","Margin of Error","Estimate","Margin of Error","Estimate","Margin of Error"]
[null,"Total:",1599,169,3577,15,1617,217,2287,368,863,144,977,197,3965,16,5280,31,20239,48,2248,391,798,175,550,106,1102,251,5437,37,295,142,1205,162,681,130,950,245,7306,22,1889,275,3651,33,1971,342,4094,24]
[null,"In family households:",1238,149,3174,175,1483,216,1762,321,750,140,833,194,3185,208,4467,318,13599,687,1698,359,721,173,455,101,999,246,4786,196,243,143,1004,158,561,123,840,246,5678,408,1549,268,3034,161,1738,335,3091,317]
[null,"In married-couple family:",1015,157,2553,375,1246,218,1334,212,626,140,701,187,2638,363,3857,443,9903,858,1347,336,658,163,347,72,763,196,4555,246,211,140,823,153,463,120,736,251,4117,648,1141,224,2476,324,1589,318,2369,375]
[null,"Relatives",1015,157,2534,376,1246,218,1312,211,614,136,701,187,2598,360,3798,451,9851,847,1347,336,656,162,337,71,763,196,4511,247,180,107,806,150,454,119,736,251,4087,647,1141,224,2426,316,1569,314,2351,372]
[null,"Nonrelatives",0,12,19,29,0,12,22,31,12,17,0,12,40,61,59,77,52,53,0,12,2,5,10,11,0,12,44,55,31,38,17,21,9,8,0,12,30,51,0,12,50,55,20,27,18,28]
[null,"In male householder, no spouse present, family:",44,36,50,79,118,66,158,103,27,31,37,29,284,267,145,148,1052,534,64,79,15,23,34,29,156,138,103,118,29,35,89,73,62,46,18,15,449,330,147,92,187,145,40,36,102,159]
[null,"Relatives",34,27,33,52,97,53,155,100,27,31,28,22,270,262,104,98,762,340,52,59,15,23,26,20,137,124,83,89,20,22,67,57,49,39,18,15,369,273,132,79,162,122,23,19,102,159]
[null,"Nonrelatives",10,10,17,28,21,17,3,5,0,12,9,8,14,24,41,56,290,241,12,21,0,12,8,10,19,22,20,36,9,14,22,18,13,14,0,12,80,96,15,22,25,26,17,19,0,12]
[null,"In female householder, no spouse present, family:",179,75,571,345,119,65,270,247,97,82,95,60,263,192,465,284,2644,571,287,208,48,52,74,48,80,64,128,111,3,5,92,66,36,31,86,56,1112,509,261,140,371,190,109,114,620,279]
[null,"Relatives",158,65,516,322,119,65,243,241,92,82,75,46,212,151,445,280,2349,491,287,208,38,42,71,46,80,64,128,111,3,5,83,59,29,26,77,56,990,452,249,136,351,176,101,110,511,221]
[null,"Nonrelatives",21,16,55,52,0,12,27,48,5,5,20,17,51,49,20,35,295,125,0,12,10,11,3,5,0,12,0,17,0,12,9,8,7,9,9,10,122,93,12,13,20,26,8,12,109,68]
[null,"In nonfamily households",361,106,403,175,134,39,525,141,113,44,144,48,780,207,813,315,6640,688,550,148,77,24,95,28,103,44,651,192,52,28,201,61,120,38,110,36,1628,407,340,109,617,159,233,97,1003,314]
[]
[]
[]
[null,"Calculated Average  Household Size by Household Type"]
[null,"Universe:  POPULATION IN HOUSEHOLDS"]
[null,"Data Set: 2018-2022 American Community Survey 5-Year Estimates"]
[]
[null,null,"Alstead",null,"Chesterfield",null,"Dublin",null,"Fitzwilliam",null,"Gilsum",null,"Harrisville",null,"Hinsdale",null,"Jaffrey",null,"Keene",null,"Marlborough",null,"Marlow",null,"Nelson",null,"Richmond",null,"Rindge",null,"Roxbury",null,"Stoddard",null,"Sullivan",null,"Surry",null,"Swanzey",null,"Troy",null,"Walpole",null,"Westmoreland",null,"Winchester"]
[null," ","Estimate","Margin of Error","Estimate","Margin of Error","Estimate","Margin of Error","Estimate","Margin of Error","Estimate","Margin of Error","Estimate","Margin of Error","Estimate","Margin of Error","Estimate","Margin of Error","Estimate","Margin of Error","Estimate","Margin of Error","Estimate","Margin of Error","Estimate","Margin of Error","Estimate","Margin of Error","Estimate","Margin of Error","Estimate","Margin of Error","Estimate","Margin of Error","Estimate","Margin of Error","Estimate","Margin of Error","Estimate","Margin of Error","Estimate","Margin of Error","Estimate","Margin of Error","Estimate","Margin of Error","Estimate","Margin of Error"]
[null,"Total:",{"$f":"C39/C7","v":2.2116182572614109},{"$f":"D73","v":0.2},{"$f":"E39/E7","v":2.6185944363103952},{"$f":"(SQRT((F$39^2)+((E$39^2)/(E$7^2))*(F$7^2)))/E$7","v":0.30308180300604587},{"$f":"G39/G7","v":2.5464566929133858},{"$f":"(SQRT((H$39^2)+((G$39^2)/(G$7^2))*(H$7^2)))/G$7","v":0.52993188244620881},{"$f":"I39/I7","v":2.2576505429417573},{"$f":"(SQRT((J$39^2)+((I$39^2)/(I$7^2))*(J$7^2)))/I$7","v":0.49976788820817458},{"$f":"K39/K7","v":2.7838709677419353},{"$f":"(SQRT((L$39^2)+((K$39^2)/(K$7^2))*(L$7^2)))/K$7","v":0.6523278384448995},{"$f":"M39/M7","v":2.3485576923076925},{"$f":"(SQRT((N$39^2)+((M$39^2)/(M$7^2))*(N$7^2)))/M$7","v":0.63524764173961945},{"$f":"O39/O7","v":2.4874529485570891},{"$f":"(SQRT((P$39^2)+((O$39^2)/(O$7^2))*(P$7^2)))/O$7","v":0.21714301454168625},{"$f":"Q39/Q7","v":2.6061204343534059},{"$f":"(SQRT((R$39^2)+((Q$39^2)/(Q$7^2))*(R$7^2)))/Q$7","v":0.28983018978980241},{"$f":"S39/S7","v":2.1858732044497247},{"$f":"(SQRT((T$39^2)+((S$39^2)/(S$7^2))*(T$7^2)))/S$7","v":8.7503641139707364E-2},{"$f":"U39/U7","v":2.3864118895966029},{"$f":"(SQRT((V$39^2)+((U$39^2)/(U$7^2))*(V$7^2)))/U$7","v":0.52985678065069075},{"$f":"W39/W7","v":2.5414012738853504},{"$f":"(SQRT((X$39^2)+((W$39^2)/(W$7^2))*(X$7^2)))/W$7","v":0.74455505715567194},{"$f":"Y39/Y7","v":2.2357723577235773},{"$f":"(SQRT((Z$39^2)+((Y$39^2)/(Y$7^2))*(Z$7^2)))/Y$7","v":0.56966838874384673},{"$f":"AA39/AA7","v":2.8040712468193383},{"$f":"(SQRT((AB$39^2)+((AA$39^2)/(AA$7^2))*(AB$7^2)))/AA$7","v":0.82413663116550828},{"$f":"AC39/AC7","v":2.7570993914807302},{"$f":"(SQRT((AD$39^2)+((AC$39^2)/(AC$7^2))*(AD$7^2)))/AC$7","v":0.20220216508768357},{"$f":"AE39/AE7","v":3.1052631578947367},{"$f":"(SQRT((AF$39^2)+((AE$39^2)/(AE$7^2))*(AF$7^2)))/AE$7","v":1.9227404425219021},{"$f":"AG39/AG7","v":2.7637614678899083},{"$f":"(SQRT((AH$39^2)+((AG$39^2)/(AG$7^2))*(AH$7^2)))/AG$7","v":0.49669692483335559},{"$f":"AI39/AI7","v":2.4234875444839856},{"$f":"(SQRT((AJ$39^2)+((AI$39^2)/(AI$7^2))*(AJ$7^2)))/AI$7","v":0.65036088022624938},{"$f":"AK39/AK7","v":2.7616279069767442},{"$f":"(SQRT((AL$39^2)+((AK$39^2)/(AK$7^2))*(AL$7^2)))/AK$7","v":0.8509096056801535},{"$f":"AM39/AM7","v":2.2445468509984638},{"$f":"(SQRT((AN$39^2)+((AM$39^2)/(AM$7^2))*(AN$7^2)))/AM$7","v":0.11810983178584111},{"$f":"AO39/AO7","v":2.4920844327176783},{"$f":"(SQRT((AP$39^2)+((AO$39^2)/(AO$7^2))*(AP$7^2)))/AO$7","v":0.49181760017894449},{"$f":"AQ39/AQ7","v":2.5585143658023828},{"$f":"(SQRT((AR$39^2)+((AQ$39^2)/(AQ$7^2))*(AR$7^2)))/AQ$7","v":0.21817386361033111},{"$f":"AS39/AS7","v":2.2271186440677968},{"$f":"(SQRT((AT$39^2)+((AS$39^2)/(AS$7^2))*(AT$7^2)))/AS$7","v":0.59925469273748233},{"$f":"AU39/AU7","v":2.5318491032776747},{"$f":"(SQRT((AV$39^2)+((AU$39^2)/(AU$7^2))*(AV$7^2)))/AU$7","v":0.22908365193192828}]
[null,"In family households:",{"$f":"C40/C8","v":2.7268722466960353},{"$f":"(SQRT((D$40^2)+((C$40^2)/(C$8^2))*(D$8^2)))/C$8","v":0.54288945496169549},{"$f":"E40/E8","v":3.164506480558325},{"$f":"(SQRT((F$40^2)+((E$40^2)/(E$8^2))*(F$8^2)))/E$8","v":0.44862854897926474},{"$f":"G40/G8","v":2.8140417457305502},{"$f":"(SQRT((H$40^2)+((G$40^2)/(G$8^2))*(H$8^2)))/G$8","v":0.64389307446907229},{"$f":"I40/I8","v":2.8465266558966076},{"$f":"(SQRT((J$40^2)+((I$40^2)/(I$8^2))*(J$8^2)))/I$8","v":0.7707659267625151},{"$f":"K40/K8","v":3.2608695652173911},{"$f":"(SQRT((L$40^2)+((K$40^2)/(K$8^2))*(L$8^2)))/K$8","v":0.86149424880381698},{"$f":"M40/M8","v":2.6613418530351436},{"$f":"(SQRT((N$40^2)+((M$40^2)/(M$8^2))*(N$8^2)))/M$8","v":0.85930868631970614},{"$f":"O40/O8","v":3.0362249761677789},{"$f":"(SQRT((P$40^2)+((O$40^2)/(O$8^2))*(P$8^2)))/O$8","v":0.45372966241852147},{"$f":"Q40/Q8","v":3.2510917030567685},{"$f":"(SQRT((R$40^2)+((Q$40^2)/(Q$8^2))*(R$8^2)))/Q$8","v":0.4356767431664465},{"$f":"S40/S8","v":2.9947148205241136},{"$f":"(SQRT((T$40^2)+((S$40^2)/(S$8^2))*(T$8^2)))/S$8","v":0.25486054278421522},{"$f":"U40/U8","v":3.0484739676840213},{"$f":"(SQRT((V$40^2)+((U$40^2)/(U$8^2))*(V$8^2)))/U$8","v":0.87083560619491318},{"$f":"W40/W8","v":2.9190283400809718},{"$f":"(SQRT((X$40^2)+((W$40^2)/(W$8^2))*(X$8^2)))/W$8","v":0.98829923585192614},{"$f":"Y40/Y8","v":2.7245508982035926},{"$f":"(SQRT((Z$40^2)+((Y$40^2)/(Y$8^2))*(Z$8^2)))/Y$8","v":0.87784621326488355},{"$f":"AA40/AA8","v":3.1613924050632911},{"$f":"(SQRT((AB$40^2)+((AA$40^2)/(AA$8^2))*(AB$8^2)))/AA$8","v":1.0338473173765395},{"$f":"AC40/AC8","v":3.2984148862853204},{"$f":"(SQRT((AD$40^2)+((AC$40^2)/(AC$8^2))*(AD$8^2)))/AC$8","v":0.31052320104209086},{"$f":"AE40/AE8","v":3.6818181818181817},{"$f":"(SQRT((AF$40^2)+((AE$40^2)/(AE$8^2))*(AF$8^2)))/AE$8","v":2.9924480181146285},{"$f":"AG40/AG8","v":3.3804713804713806},{"$f":"(SQRT((AH$40^2)+((AG$40^2)/(AG$8^2))*(AH$8^2)))/AG$8","v":0.7384788175223137},{"$f":"AI40/AI8","v":2.8622448979591835},{"$f":"(SQRT((AJ$40^2)+((AI$40^2)/(AI$8^2))*(AJ$8^2)))/AI$8","v":0.9086604758232909},{"$f":"AK40/AK8","v":3.2061068702290076},{"$f":"(SQRT((AL$40^2)+((AK$40^2)/(AK$8^2))*(AL$8^2)))/AK$8","v":1.1919208523554015},{"$f":"AM40/AM8","v":2.7180469123982767},{"$f":"(SQRT((AN$40^2)+((AM$40^2)/(AM$8^2))*(AN$8^2)))/AM$8","v":0.34976112284298599},{"$f":"AO40/AO8","v":3.1167002012072436},{"$f":"(SQRT((AP$40^2)+((AO$40^2)/(AO$8^2))*(AP$8^2)))/AO$8","v":0.76709296341584388},{"$f":"AQ40/AQ8","v":3.436013590033975},{"$f":"(SQRT((AR$40^2)+((AQ$40^2)/(AQ$8^2))*(AR$8^2)))/AQ$8","v":0.40870721667752247},{"$f":"AS40/AS8","v":2.5979073243647233},{"$f":"(SQRT((AT$40^2)+((AS$40^2)/(AS$8^2))*(AT$8^2)))/AS$8","v":0.78296852655172022},{"$f":"AU40/AU8","v":3.4004400440044003},{"$f":"(SQRT((AV$40^2)+((AU$40^2)/(AU$8^2))*(AV$8^2)))/AU$8","v":0.52247040850872084}]
[null,"In nonfamily households",{"$f":"C50/C13","v":1.3420074349442379},{"$f":"(SQRT((D$50^2)+((C$50^2)/(C$13^2))*(D$13^2)))/C$13","v":0.57523292920345426},{"$f":"E50/E13","v":1.1101928374655647},{"$f":"(SQRT((F$50^2)+((E$50^2)/(E$13^2))*(F$13^2)))/E$13","v":0.70456598275526128},{"$f":"G50/G13","v":1.2407407407407407},{"$f":"(SQRT((H$50^2)+((G$50^2)/(G$13^2))*(H$13^2)))/G$13","v":0.51531617671568153},{"$f":"I50/I13","v":1.3324873096446701},{"$f":"(SQRT((J$50^2)+((I$50^2)/(I$13^2))*(J$13^2)))/I$13","v":0.46761790216800525},{"$f":"K50/K13","v":1.4125000000000001},{"$f":"(SQRT((L$50^2)+((K$50^2)/(K$13^2))*(L$13^2)))/K$13","v":0.751449267067686},{"$f":"M50/M13","v":1.3980582524271845},{"$f":"(SQRT((N$50^2)+((M$50^2)/(M$13^2))*(N$13^2)))/M$13","v":0.61885951903047798},{"$f":"O50/O13","v":1.4311926605504588},{"$f":"(SQRT((P$50^2)+((O$50^2)/(O$13^2))*(P$13^2)))/O$13","v":0.515989919977214},{"$f":"Q50/Q13","v":1.2469325153374233},{"$f":"(SQRT((R$50^2)+((Q$50^2)/(Q$13^2))*(R$13^2)))/Q$13","v":0.70157489869031753},{"$f":"S50/S13","v":1.4073760067825349},{"$f":"(SQRT((T$50^2)+((S$50^2)/(S$13^2))*(T$13^2)))/S$13","v":0.20731548227303398},{"$f":"U50/U13","v":1.4285714285714286},{"$f":"(SQRT((V$50^2)+((U$50^2)/(U$13^2))*(V$13^2)))/U$13","v":0.48796475599409372},{"$f":"W50/W13","v":1.1492537313432836},{"$f":"(SQRT((X$50^2)+((W$50^2)/(W$13^2))*(X$13^2)))/W$13","v":0.52030705400519672},{"$f":"Y50/Y13","v":1.2025316455696202},{"$f":"(SQRT((Z$50^2)+((Y$50^2)/(Y$13^2))*(Z$13^2)))/Y$13","v":0.50900297756804092},{"$f":"AA50/AA13","v":1.3376623376623376},{"$f":"(SQRT((AB$50^2)+((AA$50^2)/(AA$13^2))*(AB$13^2)))/AA$13","v":0.76180044627955779},{"$f":"AC50/AC13","v":1.2495201535508638},{"$f":"(SQRT((AD$50^2)+((AC$50^2)/(AC$13^2))*(AD$13^2)))/AC$13","v":0.50505430390426664},{"$f":"AE50/AE13","v":1.7931034482758621},{"$f":"(SQRT((AF$50^2)+((AE$50^2)/(AE$13^2))*(AF$13^2)))/AE$13","v":1.2563144558063417},{"$f":"AG50/AG13","v":1.4460431654676258},{"$f":"(SQRT((AH$50^2)+((AG$50^2)/(AG$13^2))*(AH$13^2)))/AG$13","v":0.59766262769174416},{"$f":"AI50/AI13","v":1.411764705882353},{"$f":"(SQRT((AJ$50^2)+((AI$50^2)/(AI$13^2))*(AJ$13^2)))/AI$13","v":0.59896263735344202},{"$f":"AK50/AK13","v":1.3414634146341464},{"$f":"(SQRT((AL$50^2)+((AK$50^2)/(AK$13^2))*(AL$13^2)))/AK$13","v":0.57820161675758885},{"$f":"AM50/AM13","v":1.3962264150943395},{"$f":"(SQRT((AN$50^2)+((AM$50^2)/(AM$13^2))*(AN$13^2)))/AM$13","v":0.460626485685521},{"$f":"AO50/AO13","v":1.3026819923371646},{"$f":"(SQRT((AP$50^2)+((AO$50^2)/(AO$13^2))*(AP$13^2)))/AO$13","v":0.57779091812324812},{"$f":"AQ50/AQ13","v":1.1341911764705883},{"$f":"(SQRT((AR$50^2)+((AQ$50^2)/(AQ$13^2))*(AR$13^2)))/AQ$13","v":0.42049945499106434},{"$f":"AS50/AS13","v":1.0787037037037037},{"$f":"(SQRT((AT$50^2)+((AS$50^2)/(AS$13^2))*(AT$13^2)))/AS$13","v":0.64964418033244864},{"$f":"AU50/AU13","v":1.4166666666666667},{"$f":"(SQRT((AV$50^2)+((AU$50^2)/(AU$13^2))*(AV$13^2)))/AU$13","v":0.5613752839086944}]
[]
[]
[]
[null,"B25010. AVERAGE HOUSEHOLD SIZE OF OCCUPIED HOUSING UNITS BY TENURE"]
[null,"Universe:  OCCUPIED HOUSING UNITS"]
[null,"Data Set: 2018-2022 American Community Survey 5-Year Estimates"]
[]
[null,null,"Alstead",null,"Chesterfield",null,"Dublin",null,"Fitzwilliam",null,"Gilsum",null,"Harrisville",null,"Hinsdale",null,"Jaffrey",null,"Keene",null,"Marlborough",null,"Marlow",null,"Nelson",null,"Richmond",null,"Rindge",null,"Roxbury",null,"Stoddard",null,"Sullivan",null,"Surry",null,"Swanzey",null,"Troy",null,"Walpole",null,"Westmoreland",null,"Winchester"]
[null," ","Estimate","Margin of Error","Estimate","Margin of Error","Estimate","Margin of Error","Estimate","Margin of Error","Estimate","Margin of Error","Estimate","Margin of Error","Estimate","Margin of Error","Estimate","Margin of Error","Estimate","Margin of Error","Estimate","Margin of Error","Estimate","Margin of Error","Estimate","Margin of Error","Estimate","Margin of Error","Estimate","Margin of Error","Estimate","Margin of Error","Estimate","Margin of Error","Estimate","Margin of Error","Estimate","Margin of Error","Estimate","Margin of Error","Estimate","Margin of Error","Estimate","Margin of Error","Estimate","Margin of Error","Estimate","Margin of Error"]
[null,"Average household size --"]
[null,"Total:",2.21,0.2,2.62,0.3,2.5499999999999998,0.23,2.2599999999999998,0.17,2.78,0.37,2.35,0.23,2.4900000000000002,0.22,2.61,0.28999999999999998,2.19,0.09,2.39,0.22,2.54,0.31,2.2400000000000002,0.31,2.8,0.37,2.76,0.2,3.11,0.73,2.76,0.25,2.42,0.2,2.76,0.52,2.2400000000000002,0.12,2.4900000000000002,0.21,2.56,0.22,2.23,0.27,2.5299999999999998,0.23]
[null,"Owner occupied",2.2799999999999998,0.2,2.59,0.3,2.5,0.22,2.29,0.18,2.8,0.41,2.3199999999999998,0.24,2.44,0.26,2.73,0.41,2.44,0.12,2.61,0.31,2.39,0.28000000000000003,2.29,0.35,2.8,0.38,2.82,0.23,3.11,0.76,2.67,0.26,2.44,0.23,2.79,0.54,2.38,0.16,2.62,0.25,2.83,0.32,2.2599999999999998,0.24,2.61,0.31]
[null,"Renter occupied",2.06,0.54,2.9,1.05,2.79,0.69,1.7,0.36,2.56,0.65,2.77,0.66,2.78,0.85,2.17,0.43,1.92,0.13,1.97,0.35,3.71,1.43,1.67,0.5,3,1.1000000000000001,2.36,0.81,3,3.34,4,0.97,2.34,0.6,2.35,0.53,1.95,0.23,2.2000000000000002,0.36,2.0299999999999998,0.41,1.95,1.07,2.39,0.42]
[]
[]
[]
[]
[]
[]
[null,"B11001. HOUSEHOLD TYPE (INCLUDING LIVING ALONE)"]
[null,"Universe:  HOUSEHOLDS"]
[null,"Data Set: 2013-2017 American Community Survey 5-Year Estimates"]
[]
[null,null,"Alstead",null,"Chesterfield",null,"Dublin",null,"Fitzwilliam",null,"Gilsum",null,"Harrisville",null,"Hinsdale",null,"Jaffrey",null,"Keene",null,"Marlborough",null,"Marlow",null,"Nelson",null,"Richmond",null,"Rindge",null,"Roxbury",null,"Stoddard",null,"Sullivan",null,"Surry",null,"Swanzey",null,"Troy",null,"Walpole",null,"Westmoreland",null,"Winchester"]
[null," ","Estimate","Margin of Error","Estimate","Margin of Error","Estimate","Margin of Error","Estimate","Margin of Error","Estimate","Margin of Error","Estimate","Margin of Error","Estimate","Margin of Error","Estimate","Margin of Error","Estimate","Margin of Error","Estimate","Margin of Error","Estimate","Margin of Error","Estimate","Margin of Error","Estimate","Margin of Error","Estimate","Margin of Error","Estimate","Margin of Error","Estimate","Margin of Error","Estimate","Margin of Error","Estimate","Margin of Error","Estimate","Margin of Error","Estimate","Margin of Error","Estimate","Margin of Error","Estimate","Margin of Error","Estimate","Margin of Error"]
[null,"Total:",802,56,1452,141,576,69,1029,85,301,33,440,64,1780,93,2112,162,9449,367,865,95,281,35,219,34,425,58,1816,139,87,18,493,63,276,44,372,40,2868,188,893,84,1587,96,648,74,1702,154]
[null,"Family households:",513,67,1079,105,422,63,649,95,202,28,286,51,1029,87,1347,140,5116,300,473,82,205,32,152,26,317,54,1317,116,66,14,369,64,173,32,293,36,1958,203,552,97,1011,88,543,68,1104,120]
[null,"Married-couple family",387,62,1014,120,389,62,635,93,173,24,248,50,745,112,998,129,3544,251,390,73,176,31,116,25,274,49,1148,119,60,14,330,62,142,32,250,33,1444,236,389,81,775,101,502,70,667,120]
[null,"Other family:",126,46,65,64,33,18,14,15,29,14,38,21,284,97,349,141,1572,256,83,50,29,12,36,14,43,24,169,80,6,4,39,19,31,17,43,23,514,181,163,64,236,90,41,24,437,125]
[null,"Male householder, no wife present",46,35,15,22,4,5,6,9,15,12,15,13,95,58,56,56,425,169,29,27,4,5,13,10,17,17,59,45,1,2,13,8,11,10,19,16,193,172,107,55,81,58,4,7,217,105]
[null,"Female householder, no husband present",80,31,50,60,29,18,8,11,14,8,23,17,189,78,293,141,1147,209,54,39,25,11,23,10,26,18,110,69,5,4,26,19,20,14,24,17,321,123,56,38,155,81,37,22,220,102]
[null,"Nonfamily households:",289,60,373,145,154,44,380,83,99,29,154,44,751,129,765,194,4333,361,392,87,76,23,67,18,108,38,499,120,21,11,124,40,103,32,79,25,910,229,341,87,576,120,105,39,598,144]
[null,"Householder living alone",214,53,306,148,139,42,320,77,58,20,122,42,646,138,664,183,3168,338,332,83,50,19,52,16,82,35,327,104,18,10,97,34,68,28,63,25,680,209,270,80,482,109,62,32,481,135]
[null,"Householder not living alone",75,43,67,49,15,10,60,34,41,20,32,17,105,79,101,67,1165,238,60,39,26,13,15,8,26,16,172,73,3,4,27,21,35,20,16,8,230,107,71,42,94,49,43,19,117,59]
[]
[]
[]
[]
[]
[]
[]
[]
[]
[]
[]
[]
[]
[]
[]
[]
[]
[null,"B11002. HOUSEHOLD TYPE BY RELATIVES AND NONRELATIVES FOR POPULATION IN HOUSEHOLDS "]
[null,"Universe:  POPULATION IN HOUSEHOLDS"]
[null,"Data Set: 2013-2017 American Community Survey 5-Year Estimates"]
[]
[null,null,"Alstead",null,"Chesterfield",null,"Dublin",null,"Fitzwilliam",null,"Gilsum",null,"Harrisville",null,"Hinsdale",null,"Jaffrey",null,"Keene",null,"Marlborough",null,"Marlow",null,"Nelson",null,"Richmond",null,"Rindge",null,"Roxbury",null,"Stoddard",null,"Sullivan",null,"Surry",null,"Swanzey",null,"Troy",null,"Walpole",null,"Westmoreland",null,"Winchester"]
[null," ","Estimate","Margin of Error","Estimate","Margin of Error","Estimate","Margin of Error","Estimate","Margin of Error","Estimate","Margin of Error","Estimate","Margin of Error","Estimate","Margin of Error","Estimate","Margin of Error","Estimate","Margin of Error","Estimate","Margin of Error","Estimate","Margin of Error","Estimate","Margin of Error","Estimate","Margin of Error","Estimate","Margin of Error","Estimate","Margin of Error","Estimate","Margin of Error","Estimate","Margin of Error","Estimate","Margin of Error","Estimate","Margin of Error","Estimate","Margin of Error","Estimate","Margin of Error","Estimate","Margin of Error","Estimate","Margin of Error"]
[null,"Total:",1847,227,3566,15,1411,167,2294,213,692,79,888,124,3925,20,20081,326,20328,379,2120,297,708,115,575,94,1238,175,4991,219,216,57,1193,185,725,118,884,130,7169,37,2182,310,3809,18,1696,212,4146,122]
[null,"In family households:",1410,238,3071,197,1215,174,1834,202,565,75,692,125,3106,176,14191,506,14122,637,1664,317,599,116,490,88,1096,177,4148,269,194,54,1038,185,568,115,781,133,5957,330,1801,347,3063,151,1528,208,3349,267]
[null,"In married-couple family:",1002,206,2896,231,1090,163,1746,200,478,74,590,109,2161,315,9884,864,9819,741,1302,278,509,108,350,75,840,174,3631,316,173,53,941,174,477,110,611,100,4447,580,1280,310,2398,297,1391,218,2174,380]
[null,"Relatives",1002,206,2896,231,1090,163,1716,204,475,73,584,110,2120,307,9848,849,9767,736,1277,273,507,108,347,74,808,151,3631,316,172,51,906,148,468,108,611,100,4376,584,1273,309,2398,297,1363,213,2174,380]
[null,"Nonrelatives",0,11,0,11,0,11,30,32,3,4,6,10,41,41,36,44,52,46,25,22,2,3,3,4,32,35,0,16,1,4,35,47,9,11,0,11,71,89,7,10,0,11,28,32,0,11]
[null,"In male householder, no wife present, family:",115,102,32,44,20,31,35,48,38,26,60,39,322,263,1179,413,1101,425,110,98,10,9,30,22,44,42,234,191,9,9,28,30,27,14,80,58,292,254,278,141,158,137,28,31,501,319]
[null,"Relatives",95,82,32,44,20,31,27,38,36,24,57,39,255,206,994,349,971,370,91,77,10,9,30,22,40,40,223,185,9,9,21,22,22,11,72,51,255,218,263,138,151,135,28,31,402,218]
[null,"Nonrelatives",20,22,0,11,0,11,8,11,2,3,3,4,67,61,185,117,130,90,19,23,0,11,0,11,4,6,11,16,0,11,7,10,5,8,8,11,37,53,15,13,7,11,0,11,99,136]
[null,"In female householder, no husband present, family:",293,183,143,160,105,76,53,35,49,22,42,29,623,340,3128,605,3202,552,252,183,80,34,110,72,212,136,283,159,12,12,69,63,64,42,90,66,1218,533,243,153,507,255,109,65,674,327]
[null,"Relatives",260,160,126,149,88,61,46,31,43,20,33,24,562,293,2911,595,2973,535,252,183,75,33,108,71,183,114,219,121,10,10,65,58,59,40,78,53,1086,471,200,125,477,240,105,64,622,298]
[null,"Nonrelatives",33,36,17,26,17,16,7,10,6,5,9,7,61,66,217,86,229,92,0,11,5,4,2,3,29,30,64,74,2,3,4,6,5,5,12,14,132,94,43,37,30,29,4,6,52,50]
[null,"In nonfamily households",437,126,495,198,196,54,460,131,127,39,196,49,819,173,5890,488,6206,582,456,120,109,36,85,25,142,52,843,208,22,13,155,51,157,49,103,35,1212,329,381,102,746,151,168,58,797,221]
[]
[]
[]
[null,"Calculated Average  Household Size by Household Type"]
[null,"Universe:  POPULATION IN HOUSEHOLDS"]
[null,"Data Set: 2013-2017 American Community Survey 5-Year Estimates"]
[]
[null,null,"Alstead",null,"Chesterfield",null,"Dublin",null,"Fitzwilliam",null,"Gilsum",null,"Harrisville",null,"Hinsdale",null,"Jaffrey",null,"Keene",null,"Marlborough",null,"Marlow",null,"Nelson",null,"Richmond",null,"Rindge",null,"Roxbury",null,"Stoddard",null,"Sullivan",null,"Surry",null,"Swanzey",null,"Troy",null,"Walpole",null,"Westmoreland",null,"Winchester"]
[null," ","Estimate","Margin of Error","Estimate","Margin of Error","Estimate","Margin of Error","Estimate","Margin of Error","Estimate","Margin of Error","Estimate","Margin of Error","Estimate","Margin of Error","Estimate","Margin of Error","Estimate","Margin of Error","Estimate","Margin of Error","Estimate","Margin of Error","Estimate","Margin of Error","Estimate","Margin of Error","Estimate","Margin of Error","Estimate","Margin of Error","Estimate","Margin of Error","Estimate","Margin of Error","Estimate","Margin of Error","Estimate","Margin of Error","Estimate","Margin of Error","Estimate","Margin of Error","Estimate","Margin of Error","Estimate","Margin of Error"]
[null,"Total:",{"$f":"C154","v":2.38},0.22,2.4700000000000002,0.25,2.42,0.22,2.29,0.17,2.4500000000000002,0.18,2.0299999999999998,0.13,2.2400000000000002,0.15,2.14,7.0000000000000007E-2,2.15,7.0000000000000007E-2,2.34,0.23,2.5099999999999998,0.23,2.54,0.28000000000000003,2.82,0.3,2.65,0.19,2.57,0.34,2.46,0.22,2.4700000000000002,0.4,2.38,0.2,2.54,0.16,2.46,0.25,2.34,0.13,2.59,0.17,2.41,0.23]
[null,"In family households:",{"$f":"C155","v":2.56},0.28000000000000003,2.52,0.25,2.38,0.22,2.25,0.17,2.4700000000000002,0.2,2.04,0.16,2.31,0.18,2.38,0.09,2.33,0.08,2.59,0.25,2.6,0.25,2.64,0.36,2.74,0.32,2.65,0.2,2.65,0.41,2.39,0.22,2.23,0.4,2.39,0.21,2.71,0.22,2.57,0.31,2.4500000000000002,0.16,2.63,0.18,2.34,0.21]
[null,"In nonfamily households",{"$f":"C156","v":1.94},0.35,2.2200000000000002,0.81,2.5499999999999998,0.7,2.57,0.68,2.19,0.52,1.98,0.4,2.06,0.35,1.86,0.1,1.96,0.15,1.83,0.44,1.67,0.5,2.1,0.64,3.5,1.52,2.64,0.46,2.08,1,3.2,0.9,3.41,0.67,2.27,0.56999999999999995,2.02,0.23,2.12,0.42,1.89,0.3,2.09,0.46,2.6,0.62]
[]
[]
[]
[null,"B25010. AVERAGE HOUSEHOLD SIZE OF OCCUPIED HOUSING UNITS BY TENURE"]
[null,"Universe:  OCCUPIED HOUSING UNITS"]
[null,"Data Set: 2013-2017 American Community Survey 5-Year Estimates"]
[]
[null,null,"Alstead",null,"Chesterfield",null,"Dublin",null,"Fitzwilliam",null,"Gilsum",null,"Harrisville",null,"Hinsdale",null,"Jaffrey",null,"Keene",null,"Marlborough",null,"Marlow",null,"Nelson",null,"Richmond",null,"Rindge",null,"Roxbury",null,"Stoddard",null,"Sullivan",null,"Surry",null,"Swanzey",null,"Troy",null,"Walpole",null,"Westmoreland",null,"Winchester"]
[null," ","Estimate","Margin of Error","Estimate","Margin of Error","Estimate","Margin of Error","Estimate","Margin of Error","Estimate","Margin of Error","Estimate","Margin of Error","Estimate","Margin of Error","Estimate","Margin of Error","Estimate","Margin of Error","Estimate","Margin of Error","Estimate","Margin of Error","Estimate","Margin of Error","Estimate","Margin of Error","Estimate","Margin of Error","Estimate","Margin of Error","Estimate","Margin of Error","Estimate","Margin of Error","Estimate","Margin of Error","Estimate","Margin of Error","Estimate","Margin of Error","Estimate","Margin of Error","Estimate","Margin of Error","Estimate","Margin of Error"]
[null,"Average household size --"]
[null,"Total:",2.38,0.22,2.4700000000000002,0.25,2.42,0.22,2.29,0.17,2.4500000000000002,0.18,2.0299999999999998,0.13,2.2400000000000002,0.15,2.14,7.0000000000000007E-2,2.15,7.0000000000000007E-2,2.34,0.23,2.5099999999999998,0.23,2.54,0.28000000000000003,2.82,0.3,2.65,0.19,2.57,0.34,2.46,0.22,2.4700000000000002,0.4,2.38,0.2,2.54,0.16,2.46,0.25,2.34,0.13,2.59,0.17,2.41,0.23]
[null,"Owner occupied",2.56,0.28000000000000003,2.52,0.25,2.38,0.22,2.25,0.17,2.4700000000000002,0.2,2.04,0.16,2.31,0.18,2.38,0.09,2.33,0.08,2.59,0.25,2.6,0.25,2.64,0.36,2.74,0.32,2.65,0.2,2.65,0.41,2.39,0.22,2.23,0.4,2.39,0.21,2.71,0.22,2.57,0.31,2.4500000000000002,0.16,2.63,0.18,2.34,0.21]
[null,"Renter occupied",1.94,0.35,2.2200000000000002,0.81,2.5499999999999998,0.7,2.57,0.68,2.19,0.52,1.98,0.4,2.06,0.35,1.86,0.1,1.96,0.15,1.83,0.44,1.67,0.5,2.1,0.64,3.5,1.52,2.64,0.46,2.08,1,3.2,0.9,3.41,0.67,2.27,0.56999999999999995,2.02,0.23,2.12,0.42,1.89,0.3,2.09,0.46,2.6,0.62]
[]
[]
[]
[]
[]
[]
[null,"B11001. HOUSEHOLD TYPE (INCLUDING LIVING ALONE)"]
[null,"Universe:  HOUSEHOLDS"]
[null,"Data Set: 2008-2012 American Community Survey 5-Year Estimates"]
[]
[null,null,"Alstead",null,"Chesterfield",null,"Dublin",null,"Fitzwilliam",null,"Gilsum",null,"Harrisville",null,"Hinsdale",null,"Jaffrey",null,"Keene",null,"Marlborough",null,"Marlow",null,"Nelson",null,"Richmond",null,"Rindge",null,"Roxbury",null,"Stoddard",null,"Sullivan",null,"Surry",null,"Swanzey",null,"Troy",null,"Walpole",null,"Westmoreland",null,"Winchester"]
[null," ","Estimate","Margin of Error","Estimate","Margin of Error","Estimate","Margin of Error","Estimate","Margin of Error","Estimate","Margin of Error","Estimate","Margin of Error","Estimate","Margin of Error","Estimate","Margin of Error","Estimate","Margin of Error","Estimate","Margin of Error","Estimate","Margin of Error","Estimate","Margin of Error","Estimate","Margin of Error","Estimate","Margin of Error","Estimate","Margin of Error","Estimate","Margin of Error","Estimate","Margin of Error","Estimate","Margin of Error","Estimate","Margin of Error","Estimate","Margin of Error","Estimate","Margin of Error","Estimate","Margin of Error","Estimate","Margin of Error"]
[null,"Total:",1883,173,3617,22,1584,194,2576,268,539,74,923,139,4046,18,5380,78,20149,407,1973,270,890,185,729,156,971,143,4795,234,219,37,1045,181,691,108,821,110,7230,28,2112,274,3728,24,1913,227,4261,36]
[null,"Family households:",1539,185,3115,268,1372,194,2108,310,428,71,727,136,3178,202,4432,208,13949,649,1661,277,788,185,602,151,858,152,4046,254,196,37,884,177,607,115,727,119,6048,222,1804,288,2996,177,1753,236,3407,198]
[null,"Married-couple family",1296,200,2343,338,1200,193,1943,298,326,63,625,133,2187,304,3809,377,10636,736,1476,276,740,191,512,128,678,129,3104,323,145,36,633,139,412,92,626,118,5153,416,1342,281,2033,325,1619,243,2289,363]
[null,"Other family:",1273,201,2343,338,1200,193,1943,298,321,61,623,132,2143,296,3723,367,10602,730,1437,261,740,191,512,128,672,127,3077,324,142,36,633,139,393,84,626,118,5057,414,1336,280,2033,325,1611,243,2273,362]
[null,"Male householder, no wife present",23,15,0,11,0,11,0,11,5,5,2,4,44,51,86,92,34,35,39,36,0,11,0,11,6,10,27,42,3,6,0,11,19,18,0,11,96,95,6,10,0,11,8,7,16,24]
[null,"Female householder, no husband present",92,76,79,92,56,39,103,80,36,28,22,17,501,311,252,274,1156,497,11,16,23,30,10,10,43,34,249,109,18,19,134,98,76,73,6,8,376,249,170,119,341,267,31,26,358,240]
[null,"Nonfamily households:",83,69,79,92,53,40,74,56,34,26,19,15,429,284,222,253,1065,468,11,16,23,30,9,8,31,24,241,105,16,16,121,86,65,62,6,8,291,183,140,106,206,145,31,26,333,221]
[null,"Householder living alone",9,10,0,11,3,4,29,26,2,4,3,4,72,55,30,46,91,61,0,11,0,11,1,4,12,12,8,12,2,4,13,16,11,14,0,11,85,76,30,26,135,128,0,11,25,30]
[null,"Householder not living alone",151,62,693,313,116,81,62,82,66,43,80,52,490,223,371,238,2157,561,174,124,25,24,80,54,137,85,693,321,33,24,117,79,119,92,95,58,519,314,292,160,622,249,103,60,760,289]
[]
[]
[]
[null,"Calculated Average  Household Size by Household Type"]
[null,"Universe:  POPULATION IN HOUSEHOLDS"]
[null,"Data Set: 2008-2012 American Community Survey 5-Year Estimates"]
[]
[null,null,"Alstead",null,"Chesterfield",null,"Dublin",null,"Fitzwilliam",null,"Gilsum",null,"Harrisville",null,"Hinsdale",null,"Jaffrey",null,"Keene",null,"Marlborough",null,"Marlow",null,"Nelson",null,"Richmond",null,"Rindge",null,"Roxbury",null,"Stoddard",null,"Sullivan",null,"Surry",null,"Swanzey",null,"Troy",null,"Walpole",null,"Westmoreland",null,"Winchester"]
[null," ","Estimate","Margin of Error","Estimate","Margin of Error","Estimate","Margin of Error","Estimate","Margin of Error","Estimate","Margin of Error","Estimate","Margin of Error","Estimate","Margin of Error","Estimate","Margin of Error","Estimate","Margin of Error","Estimate","Margin of Error","Estimate","Margin of Error","Estimate","Margin of Error","Estimate","Margin of Error","Estimate","Margin of Error","Estimate","Margin of Error","Estimate","Margin of Error","Estimate","Margin of Error","Estimate","Margin of Error","Estimate","Margin of Error","Estimate","Margin of Error","Estimate","Margin of Error","Estimate","Margin of Error","Estimate","Margin of Error"]
[null,"Total:",{"$f":"C200","v":2.5},0.21,2.48,0.17,2.5499999999999998,0.23,2.2999999999999998,0.19,2.1800000000000002,0.25,2.16,0.22,2.2000000000000002,0.17,2.44,0.15,2.25,0.08,2.38,0.22,2.63,0.22,2.29,0.28000000000000003,2.59,0.27,2.69,0.16,2.4900000000000002,0.33,2.27,0.2,2.68,0.27,2.38,0.16,2.48,0.14000000000000001,2.52,0.21,2.46,0.2,2.78,0.22,2.38,0.2]
[null,"In family households:",{"$f":"C201","v":2.64},0.23,2.52,0.19,2.62,0.23,2.42,0.21,2.21,0.27,2.2000000000000002,0.17,2.38,0.22,2.6,0.19,2.41,0.1,2.4500000000000002,0.22,2.62,0.23,2.36,0.28999999999999998,2.54,0.28000000000000003,2.64,0.19,2.64,0.35,2.1800000000000002,0.19,2.73,0.28999999999999998,2.37,0.17,2.64,0.16,2.64,0.26,2.56,0.26,2.78,0.23,2.29,0.21]
[null,"In nonfamily households",{"$f":"C202","v":1.86},0.35,2.23,0.46,2.34,0.7,1.62,0.37,1.97,0.56999999999999995,1.91,0.85,1.77,0.31,1.93,0.44,2.04,0.15,2.2000000000000002,0.54,2.76,0.72,2.08,0.69,3.12,0.65,2.82,0.46,1.5,0.64,2.92,1.0900000000000001,2.38,1.19,2.57,1,1.93,0.37,2.27,0.39,2.2400000000000002,0.33,2.83,0.75,2.58,0.53]
[]
[]
[]
[null,"B25010. AVERAGE HOUSEHOLD SIZE OF OCCUPIED HOUSING UNITS BY TENURE"]
[null,"Universe:  OCCUPIED HOUSING UNITS"]
[null,"Data Set: 2008-2012 American Community Survey 5-Year Estimates"]
[]
[null,null,"Alstead",null,"Chesterfield",null,"Dublin",null,"Fitzwilliam",null,"Gilsum",null,"Harrisville",null,"Hinsdale",null,"Jaffrey",null,"Keene",null,"Marlborough",null,"Marlow",null,"Nelson",null,"Richmond",null,"Rindge",null,"Roxbury",null,"Stoddard",null,"Sullivan",null,"Surry",null,"Swanzey",null,"Troy",null,"Walpole",null,"Westmoreland",null,"Winchester"]
[null," ","Estimate","Margin of Error","Estimate","Margin of Error","Estimate","Margin of Error","Estimate","Margin of Error","Estimate","Margin of Error","Estimate","Margin of Error","Estimate","Margin of Error","Estimate","Margin of Error","Estimate","Margin of Error","Estimate","Margin of Error","Estimate","Margin of Error","Estimate","Margin of Error","Estimate","Margin of Error","Estimate","Margin of Error","Estimate","Margin of Error","Estimate","Margin of Error","Estimate","Margin of Error","Estimate","Margin of Error","Estimate","Margin of Error","Estimate","Margin of Error","Estimate","Margin of Error","Estimate","Margin of Error","Estimate","Margin of Error"]
[null,"Average household size --"]
[null,"Total:",2.5,0.21,2.48,0.17,2.5499999999999998,0.23,2.2999999999999998,0.19,2.1800000000000002,0.25,2.16,0.22,2.2000000000000002,0.17,2.44,0.15,2.25,0.08,2.38,0.22,2.63,0.22,2.29,0.28000000000000003,2.59,0.27,2.69,0.16,2.4900000000000002,0.33,2.27,0.2,2.68,0.27,2.38,0.16,2.48,0.14000000000000001,2.52,0.21,2.46,0.2,2.78,0.22,2.38,0.2]
[null,"Owner occupied",2.64,0.23,2.52,0.19,2.62,0.23,2.42,0.21,2.21,0.27,2.2000000000000002,0.17,2.38,0.22,2.6,0.19,2.41,0.1,2.4500000000000002,0.22,2.62,0.23,2.36,0.28999999999999998,2.54,0.28000000000000003,2.64,0.19,2.64,0.35,2.1800000000000002,0.19,2.73,0.28999999999999998,2.37,0.17,2.64,0.16,2.64,0.26,2.56,0.26,2.78,0.23,2.29,0.21]
[null,"Renter occupied",1.86,0.35,2.23,0.46,2.34,0.7,1.62,0.37,1.97,0.56999999999999995,1.91,0.85,1.77,0.31,1.93,0.44,2.04,0.15,2.2000000000000002,0.54,2.76,0.72,2.08,0.69,3.12,0.65,2.82,0.46,1.5,0.64,2.92,1.0900000000000001,2.38,1.19,2.57,1,1.93,0.37,2.27,0.39,2.2400000000000002,0.33,2.83,0.75,2.58,0.53]

{"sheet":"ACS_Table_B19001","index":34,"n_rows":162,"n_cols":64,"rows_kept":162,"cut":false,"hidden":true,"merged":[]}
[null,"B19001. HOUSEHOLD INCOME IN THE PAST 12 MONTHS (IN 2022 INFLATION-ADJUSTED DOLLARS)",null,null,null,null,null,null,null,null,null,null,null,null,{"$f":"B1","v":"B19001. HOUSEHOLD INCOME IN THE PAST 12 MONTHS (IN 2022 INFLATION-ADJUSTED DOLLARS)"}]
[null,"Universe:  HOUSEHOLDS",null,null,null,null,null,null,null,null,null,null,null,null,{"$f":"B3","v":"Data Set: 2018-2022 American Community Survey 5-Year Estimates"}]
[null,"Data Set: 2018-2022 American Community Survey 5-Year Estimates"]
[]
[null,null,"Alstead",null,"Chesterfield",null,"Dublin",null,"Fitzwilliam",null,"Gilsum",null,"Harrisville",null,"Hinsdale",null,"Jaffrey",null,"Keene",null,"Marlborough",null,"Marlow",null,"Nelson",null,"Richmond",null,"Rindge",null,"Roxbury",null,"Stoddard",null,"Sullivan",null,"Surry",null,"Swanzey",null,"Troy",null,"Walpole",null,"Westmoreland",null,"Winchester"]
[null," ","Estimate","Margin of Error","Estimate","Margin of Error","Estimate","Margin of Error","Estimate","Margin of Error","Estimate","Margin of Error","Estimate","Margin of Error","Estimate","Margin of Error","Estimate","Margin of Error","Estimate","Margin of Error","Estimate","Margin of Error","Estimate","Margin of Error","Estimate","Margin of Error","Estimate","Margin of Error","Estimate","Margin of Error","Estimate","Margin of Error","Estimate","Margin of Error","Estimate","Margin of Error","Estimate","Margin of Error","Estimate","Margin of Error","Estimate","Margin of Error","Estimate","Margin of Error","Estimate","Margin of Error","Estimate","Margin of Error"]
[null,"Total Households",723,97,1366,158,635,101,1013,154,310,51,416,75,1594,139,2026,225,9259,370,942,130,314,61,246,41,393,73,1972,144,95,37,436,52,281,53,344,58,3255,171,758,101,1427,121,885,182,1617,146]
[null,"Households With"]
[null,"Income Less than $10,000 ",54,45,0,12,24,17,59,36,2,4,7,9,29,47,40,38,224,124,20,18,2,3,3,5,0,12,0,17,0,12,10,13,0,12,0,12,32,34,33,31,182,120,72,99,65,46]
[null,"Income $10,000 to $14,999 ",47,48,18,29,41,53,44,33,12,12,3,4,14,21,28,42,492,158,38,30,12,12,2,2,3,5,43,40,1,2,2,4,8,9,4,5,127,88,22,19,0,12,0,12,25,17]
[null,"Income $15,000 to $19,999 ",23,13,39,39,3,3,29,29,8,6,3,4,3,5,34,34,634,198,29,27,11,10,3,3,31,25,48,42,0,12,0,12,9,9,4,5,208,118,11,17,35,34,47,47,145,71]
[null,"Income $20,000 to $24,999 ",73,57,33,38,9,8,19,21,4,5,7,7,67,50,54,49,191,94,109,74,7,6,2,3,0,12,67,52,4,6,8,9,9,9,14,13,98,69,49,39,7,11,27,30,101,73]
[null,"Income $25,000 to $29,999 ",6,7,86,90,18,14,46,32,11,7,5,6,48,36,62,50,288,137,32,20,16,14,2,5,7,7,32,25,4,4,9,7,2,3,5,7,114,83,89,48,37,30,26,16,58,50]
[null,"Income $30,000 to $34,999 ",29,23,37,56,7,7,19,19,2,3,10,10,61,38,111,90,536,195,50,31,6,6,18,15,18,14,32,33,4,5,15,8,4,4,2,3,145,154,42,40,19,23,17,19,71,44]
[null,"Income $35,000 to $39,999 ",27,15,46,44,16,19,26,27,13,12,0,12,62,48,23,29,388,114,48,30,9,8,3,4,2,4,77,82,3,3,16,14,11,7,15,10,77,48,20,25,51,57,12,12,95,61]
[null,"Income $40,000 to $44,999 ",11,12,73,88,3,4,40,23,22,26,21,13,96,93,22,28,299,152,5,7,5,5,4,4,9,8,64,54,3,4,5,5,3,4,0,12,162,104,11,11,7,11,21,18,96,58]
[null,"Income $45,000 to $49,999 ",32,25,16,24,19,16,30,16,21,14,30,19,10,15,15,24,333,147,11,13,8,11,6,5,26,18,43,40,3,3,5,5,8,7,32,28,113,65,13,12,83,63,17,18,97,66]
[null,"Income $50,000 to $59,999 ",120,59,15,24,58,27,94,51,24,12,25,23,168,130,111,77,769,184,56,32,12,8,15,11,12,10,176,87,5,5,34,14,17,10,35,20,189,87,111,45,139,73,79,64,89,62]
[null,"Income $60,000 to $74,999 ",24,16,126,97,33,27,64,37,52,25,51,25,339,191,435,258,714,174,98,49,24,16,30,12,57,30,192,89,22,36,68,31,36,22,12,9,406,155,50,25,96,47,50,22,194,99]
[null,"Income $75,000 to $99,999 ",74,30,108,78,109,65,186,103,38,17,81,33,185,84,183,107,1456,259,106,66,42,22,42,18,67,29,242,94,10,8,65,26,36,16,52,20,400,135,89,35,133,62,89,33,155,87]
[null,"Income $100,000 to $124,999 ",70,29,206,134,72,29,110,51,26,13,50,25,118,67,397,164,873,201,110,46,76,48,31,17,50,33,305,109,14,11,54,26,53,26,45,20,497,178,69,31,173,105,141,82,90,48]
[null,"Income $125,000 to $149,999 ",34,18,184,96,43,20,66,32,16,13,13,10,136,72,186,119,814,221,84,51,33,26,31,17,40,28,238,103,1,3,59,21,27,15,28,16,321,166,45,30,141,73,42,20,163,82]
[null,"Income $150,000 to $199,999 ",75,32,247,132,72,31,77,45,44,22,43,20,165,93,115,71,648,189,86,56,35,21,18,11,53,32,200,83,11,11,41,20,42,23,51,39,185,103,61,45,162,75,130,53,92,60]
[null,"Income $200,000 or more ",24,14,132,80,108,40,104,46,15,8,67,38,93,79,210,130,600,167,60,39,16,13,36,16,18,13,213,93,10,6,45,21,16,14,45,21,181,94,43,25,162,81,115,44,81,69]
[]
[]
[]
[]
[null,{"$f":"\"Calculated \"&B1","v":"Calculated B19001. HOUSEHOLD INCOME IN THE PAST 12 MONTHS (IN 2022 INFLATION-ADJUSTED DOLLARS)"}]
[null,"Universe:  HOUSEHOLDS"]
[null,{"$f":"B3","v":"Data Set: 2018-2022 American Community Survey 5-Year Estimates"}]
[null,null,"Alstead",null,"Chesterfield",null,"Dublin",null,"Fitzwilliam",null,"Gilsum",null,"Harrisville",null,"Hinsdale",null,"Jaffrey",null,"Keene",null,"Marlborough",null,"Marlow",null,"Nelson",null,"Richmond",null,"Rindge",null,"Roxbury",null,"Stoddard",null,"Sullivan",null,"Surry",null,"Swanzey",null,"Troy",null,"Walpole",null,"Westmoreland",null,"Winchester"]
[null," ","Estimate","Margin of Error","Estimate","Margin of Error","Estimate","Margin of Error","Estimate","Margin of Error","Estimate","Margin of Error","Estimate","Margin of Error","Estimate","Margin of Error","Estimate","Margin of Error","Estimate","Margin of Error","Estimate","Margin of Error","Estimate","Margin of Error","Estimate","Margin of Error","Estimate","Margin of Error","Estimate","Margin of Error","Estimate","Margin of Error","Estimate","Margin of Error","Estimate","Margin of Error","Estimate","Margin of Error","Estimate","Margin of Error","Estimate","Margin of Error","Estimate","Margin of Error","Estimate","Margin of Error","Estimate","Margin of Error"]
[null,"Total Households",{"$f":"$C$7","v":723},{"$f":"$D$7","v":97},{"$f":"$E$7","v":1366},{"$f":"$F$7","v":158},{"$f":"$G$7","v":635},{"$f":"$H$7","v":101},{"$f":"$I$7","v":1013},{"$f":"$J$7","v":154},{"$f":"$K$7","v":310},{"$f":"$L$7","v":51},{"$f":"$M$7","v":416},{"$f":"$N$7","v":75},{"$f":"$O$7","v":1594},{"$f":"$P$7","v":139},{"$f":"$Q$7","v":2026},{"$f":"R7","v":225},9259,370,942,130,314,61,{"$f":"Y7","v":246},41,393,73,1972,144,95,37,436,52,281,53,344,58,3255,171,{"$f":"AO7","v":758},101,1427,121,885,182,1617,146]
[null,"Households With"]
[null,"Income Less than $10,000 ",{"$f":"$C$9","v":54},{"$f":"$D$9","v":45},{"$f":"$E$9","v":0},{"$f":"$F$9","v":12},{"$f":"$G$9","v":24},{"$f":"$H$9","v":17},{"$f":"$I$9","v":59},{"$f":"$J$9","v":36},{"$f":"$K$9","v":2},{"$f":"$L$9","v":4},{"$f":"$M$9","v":7},{"$f":"$N$9","v":9},{"$f":"$O$9","v":29},{"$f":"$P$9","v":47},{"$f":"$Q$9","v":40},{"$f":"R9","v":38},224,124,20,18,2,3,{"$f":"Y9","v":3},5,0,12,0,17,0,12,10,13,0,12,0,12,32,34,{"$f":"AO9","v":33},31,182,120,72,99,65,46]
[null,"Income $10,000 to $14,999 ",{"$f":"$C$10","v":47},{"$f":"$D$10","v":48},{"$f":"$E$10","v":18},{"$f":"$F$10","v":29},{"$f":"$G$10","v":41},{"$f":"$H$10","v":53},{"$f":"$I$10","v":44},{"$f":"$J$10","v":33},{"$f":"$K$10","v":12},{"$f":"$L$10","v":12},{"$f":"$M$10","v":3},{"$f":"$N$10","v":4},{"$f":"$O$10","v":14},{"$f":"$P$10","v":21},{"$f":"$Q$10","v":28},42,492,158,38,30,12,12,{"$f":"Y10","v":2},2,3,5,43,40,1,2,2,4,8,9,4,5,127,88,{"$f":"AO10","v":22},19,0,12,0,12,25,17]
[null,"Income $15,000 to $24,999 ",{"$f":"$C$11+$C$12","v":96},{"$f":"SQRT(($D$11^2)+($D$12^2))","v":58.463663928973865},{"$f":"$E$11+$E$12","v":72},{"$f":"SQRT(($F$11^2)+($F$12^2))","v":54.451813560247928},{"$f":"$G$11+$G$12","v":12},{"$f":"SQRT(($H$11^2)+($H$12^2))","v":8.5440037453175304},{"$f":"$I$11+$I$12","v":48},{"$f":"SQRT(($J$11^2)+($J$12^2))","v":35.805027579936315},{"$f":"$K$11+$K$12","v":12},{"$f":"SQRT(($L$11^2)+($L$12^2))","v":7.810249675906654},{"$f":"$M$11+$M$12","v":10},{"$f":"SQRT(($N$11^2)+($N$12^2))","v":8.0622577482985491},{"$f":"$O$11+$O$12","v":70},{"$f":"SQRT(($P$11^2)+($P$12^2))","v":50.24937810560445},{"$f":"Q11+Q12","v":88},{"$f":"SQRT((R11^2)+(R12^2))","v":59.640590204993778},{"$f":"S11+S12","v":825},{"$f":"SQRT((T11^2)+(T12^2))","v":219.18029108475972},{"$f":"U11+U12","v":138},{"$f":"SQRT((V11^2)+(V12^2))","v":78.771822373231913},{"$f":"W11+W12","v":18},{"$f":"SQRT((X11^2)+(X12^2))","v":11.661903789690601},{"$f":"Y11+Y12","v":5},{"$f":"SQRT((Z11^2)+(Z12^2))","v":4.2426406871192848},{"$f":"AA11+AA12","v":31},{"$f":"SQRT((AB11^2)+(AB12^2))","v":27.730849247724095},{"$f":"AC11+AC12","v":115},{"$f":"SQRT((AD11^2)+(AD12^2))","v":66.843099868273612},{"$f":"AE11+AE12","v":4},{"$f":"SQRT((AF11^2)+(AF12^2))","v":13.416407864998739},{"$f":"AG11+AG12","v":8},{"$f":"SQRT((AH11^2)+(AH12^2))","v":15},{"$f":"AI11+AI12","v":18},{"$f":"SQRT((AJ11^2)+(AJ12^2))","v":12.727922061357855},{"$f":"AK11+AK12","v":18},{"$f":"SQRT((AL11^2)+(AL12^2))","v":13.928388277184119},{"$f":"AM11+AM12","v":306},{"$f":"SQRT((AN11^2)+(AN12^2))","v":136.69308687713507},{"$f":"AO11+AO12","v":60},{"$f":"SQRT((AP11^2)+(AP12^2))","v":42.544094772365298},{"$f":"AQ11+AQ12","v":42},{"$f":"SQRT((AR11^2)+(AR12^2))","v":35.735136770411273},{"$f":"AS11+AS12","v":74},{"$f":"SQRT((AT11^2)+(AT12^2))","v":55.758407437802596},{"$f":"AU11+AU12","v":246},{"$f":"SQRT((AV11^2)+(AV12^2))","v":101.83319694480774}]
[null,"Income $25,000 to $34,999 ",{"$f":"$C$13+$C$14","v":35},{"$f":"SQRT(($D$13^2)+($D$14^2))","v":24.041630560342615},{"$f":"$E$13+$E$14","v":123},{"$f":"SQRT(($F$13^2)+($F$14^2))","v":106},{"$f":"$G$13+$G$14","v":25},{"$f":"SQRT(($H$13^2)+($H$14^2))","v":15.652475842498529},{"$f":"$I$13+$I$14","v":65},{"$f":"SQRT(($J$13^2)+($J$14^2))","v":37.215588131856791},{"$f":"$K$13+$K$14","v":13},{"$f":"SQRT(($L$13^2)+($L$14^2))","v":7.6157731058639087},{"$f":"$M$13+$M$14","v":15},{"$f":"SQRT(($N$13^2)+($N$14^2))","v":11.661903789690601},{"$f":"$O$13+$O$14","v":109},{"$f":"SQRT(($P$13^2)+($P$14^2))","v":52.345009313209601},{"$f":"Q13+Q14","v":173},{"$f":"SQRT((R13^2)+(R14^2))","v":102.95630140987001},{"$f":"S13+S14","v":824},{"$f":"SQRT((T13^2)+(T14^2))","v":238.3149177034455},{"$f":"U13+U14","v":82},{"$f":"SQRT((V13^2)+(V14^2))","v":36.891733491393431},{"$f":"W13+W14","v":22},{"$f":"SQRT((X13^2)+(X14^2))","v":15.231546211727817},{"$f":"Y13+Y14","v":20},{"$f":"SQRT((Z13^2)+(Z14^2))","v":15.811388300841896},{"$f":"AA13+AA14","v":25},{"$f":"SQRT((AB13^2)+(AB14^2))","v":15.652475842498529},{"$f":"AC13+AC14","v":64},{"$f":"SQRT((AD13^2)+(AD14^2))","v":41.400483088968905},{"$f":"AE13+AE14","v":8},{"$f":"SQRT((AF13^2)+(AF14^2))","v":6.4031242374328485},{"$f":"AG13+AG14","v":24},{"$f":"SQRT((AH13^2)+(AH14^2))","v":10.63014581273465},{"$f":"AI13+AI14","v":6},{"$f":"SQRT((AJ13^2)+(AJ14^2))","v":5},{"$f":"AK13+AK14","v":7},{"$f":"SQRT((AL13^2)+(AL14^2))","v":7.6157731058639087},{"$f":"AM13+AM14","v":259},{"$f":"SQRT((AN13^2)+(AN14^2))","v":174.94284781036347},{"$f":"AO13+AO14","v":131},{"$f":"SQRT((AP13^2)+(AP14^2))","v":62.481997407253232},{"$f":"AQ13+AQ14","v":56},{"$f":"SQRT((AR13^2)+(AR14^2))","v":37.802116342871599},{"$f":"AS13+AS14","v":43},{"$f":"SQRT((AT13^2)+(AT14^2))","v":24.839484696748443},{"$f":"AU13+AU14","v":129},{"$f":"SQRT((AV13^2)+(AV14^2))","v":66.603303221386852}]
[null,"Income $35,000 to $49,999 ",{"$f":"$C$15+$C$16+$C$17","v":70},{"$f":"SQRT(($D$15^2)+($D$16^2)+($D$17^2))","v":31.527765540868891},{"$f":"$E$15+$E$16+$E$17","v":135},{"$f":"SQRT(($F$15^2)+($F$16^2)+($F$17^2))","v":101.27191120937731},{"$f":"$G$15+$G$16+$G$17","v":38},{"$f":"SQRT(($H$15^2)+($H$16^2)+($H$17^2))","v":25.159491250818249},{"$f":"$I$15+$I$16+$I$17","v":96},{"$f":"SQRT(($J$15^2)+($J$16^2)+($J$17^2))","v":38.910152916687437},{"$f":"$K$15+$K$16+$K$17","v":56},{"$f":"SQRT(($L$15^2)+($L$16^2)+($L$17^2))","v":31.874754901018456},{"$f":"$M$15+$M$16+$M$17","v":51},{"$f":"SQRT(($N$15^2)+($N$16^2)+($N$17^2))","v":25.96150997149434},{"$f":"$O$15+$O$16+$O$17","v":168},{"$f":"SQRT(($P$15^2)+($P$16^2)+($P$17^2))","v":105.72606112023658},{"$f":"Q15+Q16+Q17","v":60},{"$f":"SQRT((R15^2)+(R16^2)+(R17^2))","v":46.914816422959603},{"$f":"S15+S16+S17","v":1020},{"$f":"SQRT((T15^2)+(T16^2)+(T17^2))","v":240.22697600394508},{"$f":"U15+U16+U17","v":64},{"$f":"SQRT((V15^2)+(V16^2)+(V17^2))","v":33.436506994600975},{"$f":"W15+W16+W17","v":22},{"$f":"SQRT((X15^2)+(X16^2)+(X17^2))","v":14.491376746189438},{"$f":"Y15+Y16+Y17","v":13},{"$f":"SQRT((Z15^2)+(Z16^2)+(Z17^2))","v":7.5498344352707498},{"$f":"AA15+AA16+AA17","v":37},{"$f":"SQRT((AB15^2)+(AB16^2)+(AB17^2))","v":20.09975124224178},{"$f":"AC15+AC16+AC17","v":184},{"$f":"SQRT((AD15^2)+(AD16^2)+(AD17^2))","v":106.01886624558857},{"$f":"AE15+AE16+AE17","v":9},{"$f":"SQRT((AF15^2)+(AF16^2)+(AF17^2))","v":5.8309518948453007},{"$f":"AG15+AG16+AG17","v":26},{"$f":"SQRT((AH15^2)+(AH16^2)+(AH17^2))","v":15.684387141358123},{"$f":"AI15+AI16+AI17","v":22},{"$f":"SQRT((AJ15^2)+(AJ16^2)+(AJ17^2))","v":10.677078252031311},{"$f":"AK15+AK16+AK17","v":47},{"$f":"SQRT((AL15^2)+(AL16^2)+(AL17^2))","v":32.062439083762797},{"$f":"AM15+AM16+AM17","v":352},{"$f":"SQRT((AN15^2)+(AN16^2)+(AN17^2))","v":131.70041761513136},{"$f":"AO15+AO16+AO17","v":44},{"$f":"SQRT((AP15^2)+(AP16^2)+(AP17^2))","v":29.832867780352597},{"$f":"AQ15+AQ16+AQ17","v":141},{"$f":"SQRT((AR15^2)+(AR16^2)+(AR17^2))","v":85.667963673709437},{"$f":"AS15+AS16+AS17","v":50},{"$f":"SQRT((AT15^2)+(AT16^2)+(AT17^2))","v":28.142494558940577},{"$f":"AU15+AU16+AU17","v":288},{"$f":"SQRT((AV15^2)+(AV16^2)+(AV17^2))","v":106.96261028976434}]
[null,"Income $50,000 to $74,999 ",{"$f":"$C$18+$C$19","v":144},{"$f":"SQRT(($D$18^2)+($D$19^2))","v":61.1310068623117},{"$f":"$E$18+$E$19","v":141},{"$f":"SQRT(($F$18^2)+($F$19^2))","v":99.924971853886447},{"$f":"$G$18+$G$19","v":91},{"$f":"SQRT(($H$18^2)+($H$19^2))","v":38.183766184073569},{"$f":"$I$18+$I$19","v":158},{"$f":"SQRT(($J$18^2)+($J$19^2))","v":63.007936008093459},{"$f":"$K$18+$K$19","v":76},{"$f":"SQRT(($L$18^2)+($L$19^2))","v":27.730849247724095},{"$f":"$M$18+$M$19","v":76},{"$f":"SQRT(($N$18^2)+($N$19^2))","v":33.97057550292606},{"$f":"$O$18+$O$19","v":507},{"$f":"SQRT(($P$18^2)+($P$19^2))","v":231.04328598771269},{"$f":"Q18+Q19","v":546},{"$f":"SQRT((R18^2)+(R19^2))","v":269.24524136927658},{"$f":"S18+S19","v":1483},{"$f":"SQRT((T18^2)+(T19^2))","v":253.24296633865274},{"$f":"U18+U19","v":154},{"$f":"SQRT((V18^2)+(V19^2))","v":58.523499553598128},{"$f":"W18+W19","v":36},{"$f":"SQRT((X18^2)+(X19^2))","v":17.888543819998318},{"$f":"Y18+Y19","v":45},{"$f":"SQRT((Z18^2)+(Z19^2))","v":16.278820596099706},{"$f":"AA18+AA19","v":69},{"$f":"SQRT((AB18^2)+(AB19^2))","v":31.622776601683793},{"$f":"AC18+AC19","v":368},{"$f":"SQRT((AD18^2)+(AD19^2))","v":124.45882853377658},{"$f":"AE18+AE19","v":27},{"$f":"SQRT((AF18^2)+(AF19^2))","v":36.345563690772494},{"$f":"AG18+AG19","v":102},{"$f":"SQRT((AH18^2)+(AH19^2))","v":34.014702703389901},{"$f":"AI18+AI19","v":53},{"$f":"SQRT((AJ18^2)+(AJ19^2))","v":24.166091947189145},{"$f":"AK18+AK19","v":47},{"$f":"SQRT((AL18^2)+(AL19^2))","v":21.931712199461309},{"$f":"AM18+AM19","v":595},{"$f":"SQRT((AN18^2)+(AN19^2))","v":177.74701122663075},{"$f":"AO18+AO19","v":161},{"$f":"SQRT((AP18^2)+(AP19^2))","v":51.478150704935004},{"$f":"AQ18+AQ19","v":235},{"$f":"SQRT((AR18^2)+(AR19^2))","v":86.821656284592962},{"$f":"AS18+AS19","v":129},{"$f":"SQRT((AT18^2)+(AT19^2))","v":67.675697262754525},{"$f":"AU18+AU19","v":283},{"$f":"SQRT((AV18^2)+(AV19^2))","v":116.81181447096864}]
[null,"Income $75,000 to $99,999 ",{"$f":"$C$20","v":74},{"$f":"$D$20","v":30},{"$f":"$E$20","v":108},{"$f":"$F$20","v":78},{"$f":"$G$20","v":109},{"$f":"$H$20","v":65},{"$f":"$I$20","v":186},{"$f":"$J$20","v":103},{"$f":"$K$20","v":38},{"$f":"$L$20","v":17},{"$f":"$M$20","v":81},{"$f":"$N$20","v":33},{"$f":"$O$20","v":185},{"$f":"$P$20","v":84},{"$f":"Q20","v":183},107,1456,259,106,66,42,22,{"$f":"Y20","v":42},18,67,29,242,94,10,8,65,26,36,16,52,20,400,135,{"$f":"AO20","v":89},35,133,62,89,33,155,87]
[null,"Income $100,000 to $149,999 ",{"$f":"$C$21+$C$22","v":104},{"$f":"SQRT(($D$21^2)+($D$22^2))","v":34.132096331752024},{"$f":"$E$21+$E$22","v":390},{"$f":"SQRT(($F$21^2)+($F$22^2))","v":164.83931569865243},{"$f":"$G$21+$G$22","v":115},{"$f":"SQRT(($H$21^2)+($H$22^2))","v":35.227829907617071},{"$f":"$I$21+$I$22","v":176},{"$f":"SQRT(($J$21^2)+($J$22^2))","v":60.207972893961475},{"$f":"$K$21+$K$22","v":42},{"$f":"SQRT(($L$21^2)+($L$22^2))","v":18.384776310850235},{"$f":"$M$21+$M$22","v":63},{"$f":"SQRT(($N$21^2)+($N$22^2))","v":26.92582403567252},{"$f":"$O$21+$O$22","v":254},{"$f":"SQRT(($P$21^2)+($P$22^2))","v":98.35141076771599},{"$f":"Q21+Q22","v":583},{"$f":"SQRT((R21^2)+(R22^2))","v":202.62526989494671},{"$f":"S21+S22","v":1687},{"$f":"SQRT((T21^2)+(T22^2))","v":298.73399538720059},{"$f":"U21+U22","v":194},{"$f":"SQRT((V21^2)+(V22^2))","v":68.680419334771102},{"$f":"W21+W22","v":109},{"$f":"SQRT((X21^2)+(X22^2))","v":54.589376255824725},{"$f":"Y21+Y22","v":62},{"$f":"SQRT((Z21^2)+(Z22^2))","v":24.041630560342615},{"$f":"AA21+AA22","v":90},{"$f":"SQRT((AB21^2)+(AB22^2))","v":43.278170016764804},{"$f":"AC21+AC22","v":543},{"$f":"SQRT((AD21^2)+(AD22^2))","v":149.96666296213968},{"$f":"AE21+AE22","v":15},{"$f":"SQRT((AF21^2)+(AF22^2))","v":11.401754250991379},{"$f":"AG21+AG22","v":113},{"$f":"SQRT((AH21^2)+(AH22^2))","v":33.421549934136806},{"$f":"AI21+AI22","v":80},{"$f":"SQRT((AJ21^2)+(AJ22^2))","v":30.016662039607269},{"$f":"AK21+AK22","v":73},{"$f":"SQRT((AL21^2)+(AL22^2))","v":25.612496949731394},{"$f":"AM21+AM22","v":818},{"$f":"SQRT((AN21^2)+(AN22^2))","v":243.39268682522078},{"$f":"AO21+AO22","v":114},{"$f":"SQRT((AP21^2)+(AP22^2))","v":43.139309220245984},{"$f":"AQ21+AQ22","v":314},{"$f":"SQRT((AR21^2)+(AR22^2))","v":127.88275880665071},{"$f":"AS21+AS22","v":183},{"$f":"SQRT((AT21^2)+(AT22^2))","v":84.403791384036765},{"$f":"AU21+AU22","v":253},{"$f":"SQRT((AV21^2)+(AV22^2))","v":95.015788161757627}]
[null,"Income $150,000 to $199,999 ",{"$f":"$C$23","v":75},{"$f":"$D$23","v":32},{"$f":"$E$23","v":247},{"$f":"$F$23","v":132},{"$f":"$G$23","v":72},{"$f":"$H$23","v":31},{"$f":"$I$23","v":77},{"$f":"$J$23","v":45},{"$f":"$K$23","v":44},{"$f":"$L$23","v":22},{"$f":"$M$23","v":43},{"$f":"$N$23","v":20},{"$f":"$O$23","v":165},{"$f":"$P$23","v":93},{"$f":"Q23","v":115},71,648,189,86,56,35,21,{"$f":"Y23","v":18},11,53,32,200,83,11,11,41,20,42,23,51,39,185,103,{"$f":"AO23","v":61},45,162,75,130,53,92,60]
[null,"Income $200,000 or more ",{"$f":"$C$24","v":24},{"$f":"$D$24","v":14},{"$f":"$E$24","v":132},{"$f":"$F$24","v":80},{"$f":"$G$24","v":108},{"$f":"$H$24","v":40},{"$f":"$I$24","v":104},{"$f":"$J$24","v":46},{"$f":"$K$24","v":15},{"$f":"$L$24","v":8},{"$f":"$M$24","v":67},{"$f":"$N$24","v":38},{"$f":"$O$24","v":93},{"$f":"$P$24","v":79},210,130,600,167,60,39,16,13,{"$f":"Y24","v":36},16,18,13,213,93,10,6,45,21,16,14,45,21,181,94,{"$f":"AO24","v":43},25,162,81,115,44,81,69]
[]
[]
[]
[]
[]
[]
[]
[]
[]
[]
[]
[]
[]
[]
[]
[]
[]
[]
[]
[]
[]
[]
[]
[]
[null,"B19001. HOUSEHOLD INCOME IN THE PAST 12 MONTHS (IN 2017 INFLATION-ADJUSTED DOLLARS)",null,null,null,null,null,null,null,null,null,null,null,null,{"$f":"B70","v":"B19001. HOUSEHOLD INCOME IN THE PAST 12 MONTHS (IN 2017 INFLATION-ADJUSTED DOLLARS)"}]
[null,"Universe:  HOUSEHOLDS",null,null,null,null,null,null,null,null,null,null,null,null,{"$f":"B72","v":"Data Set: 2013-2017 American Community Survey 5-Year Estimates"}]
[null,"Data Set: 2013-2017 American Community Survey 5-Year Estimates"]
[]
[null,null,"Alstead",null,"Chesterfield",null,"Dublin",null,"Fitzwilliam",null,"Gilsum",null,"Harrisville",null,"Hinsdale",null,"Jaffrey",null,"Keene",null,"Marlborough",null,"Marlow",null,"Nelson",null,"Richmond",null,"Rindge",null,"Roxbury",null,"Stoddard",null,"Sullivan",null,"Surry",null,"Swanzey",null,"Troy",null,"Walpole",null,"Westmoreland",null,"Winchester"]
[null," ","Estimate","Margin of Error","Estimate","Margin of Error","Estimate","Margin of Error","Estimate","Margin of Error","Estimate","Margin of Error","Estimate","Margin of Error","Estimate","Margin of Error","Estimate","Margin of Error","Estimate","Margin of Error","Estimate","Margin of Error","Estimate","Margin of Error","Estimate","Margin of Error","Estimate","Margin of Error","Estimate","Margin of Error","Estimate","Margin of Error","Estimate","Margin of Error","Estimate","Margin of Error","Estimate","Margin of Error","Estimate","Margin of Error","Estimate","Margin of Error","Estimate","Margin of Error","Estimate","Margin of Error","Estimate","Margin of Error"]
[null,"Total Households",776,79,1443,147,584,63,1002,92,283,34,437,53,1749,117,9391,370,9449,367,906,99,282,42,226,33,439,50,1883,144,84,27,484,60,293,50,371,45,2828,180,888,87,1631,93,656,77,1718,160]
[null,"Households With"]
[null,"Income Less than $10,000 ",66,40,63,73,14,9,28,17,24,14,11,13,110,83,712,201,761,231,10,11,12,9,18,16,20,21,105,66,2,5,3,5,16,10,5,6,111,83,22,27,86,74,16,17,84,65]
[null,"Income $10,000 to $14,999 ",42,27,26,28,9,7,43,35,8,8,6,6,142,88,422,128,525,155,49,37,7,7,0,11,14,9,71,51,3,3,3,4,1,4,14,11,111,88,1997,43,41,40,14,15,50,42]
[null,"Income $15,000 to $19,999 ",8,9,0,11,34,26,58,37,9,6,9,13,121,76,497,136,549,170,19,15,10,9,5,5,0,11,78,63,1,3,0,11,17,15,14,12,204,128,37,33,62,51,2,4,129,84]
[null,"Income $20,000 to $24,999 ",26,15,64,68,34,24,57,34,13,8,13,15,111,65,689,208,572,180,72,44,8,7,10,6,23,14,58,31,1,2,3,4,16,11,7,6,127,72,18,14,19,22,21,12,193,106]
[null,"Income $25,000 to $29,999 ",20,19,49,50,29,22,58,32,15,12,14,10,45,38,585,163,613,200,69,40,4,4,9,8,17,17,76,44,0,11,42,25,8,12,7,6,109,78,43,34,44,29,10,9,72,47]
[null,"Income $30,000 to $34,999 ",46,35,17,26,47,29,83,42,6,6,9,7,83,52,338,130,331,129,73,40,8,12,10,8,13,14,93,52,7,7,37,18,16,12,5,5,105,80,48,30,86,47,7,8,114,59]
[null,"Income $35,000 to $39,999 ",49,29,97,76,17,21,48,29,14,10,18,11,60,39,346,142,395,132,45,32,14,12,6,5,20,13,76,54,5,6,31,18,23,13,9,10,91,58,27,18,73,51,9,9,57,44]
[null,"Income $40,000 to $44,999 ",34,25,82,65,20,15,76,48,14,11,26,15,55,38,239,127,248,96,43,42,8,6,8,6,19,15,85,51,2,3,22,10,25,12,0,11,217,116,78,47,150,72,11,11,53,41]
[null,"Income $45,000 to $49,999 ",36,22,95,70,15,15,31,28,13,7,28,16,63,39,381,133,382,156,33,38,34,17,10,7,28,22,31,30,1,2,13,12,12,7,10,7,134,82,11,13,86,47,13,11,120,69]
[null,"Income $50,000 to $59,999 ",75,33,87,69,17,14,66,37,26,11,56,28,153,69,880,217,790,184,66,38,33,22,14,8,43,24,148,69,4,8,29,13,11,7,38,23,316,147,93,48,52,39,74,29,102,87]
[null,"Income $60,000 to $74,999 ",113,46,123,74,78,33,82,29,46,17,50,19,275,104,1231,249,1188,234,76,44,37,19,25,15,80,37,176,72,21,13,49,25,25,14,64,25,225,90,111,52,160,74,65,26,255,83]
[null,"Income $75,000 to $99,999 ",112,44,198,98,69,29,108,44,40,13,49,21,276,101,1165,219,1115,202,94,34,36,17,25,13,66,30,327,105,12,9,70,26,54,20,74,26,450,146,144,53,217,70,127,33,272,88]
[null,"Income $100,000 to $124,999 ",72,31,195,93,68,29,90,35,16,8,63,26,130,65,728,156,821,205,93,50,41,19,16,9,45,24,213,80,8,7,77,39,32,19,52,24,261,106,57,30,222,92,102,40,147,112]
[null,"Income $125,000 to $149,999 ",31,21,73,54,59,27,71,32,25,12,26,19,59,41,365,110,342,104,69,37,19,10,32,17,31,23,108,67,6,5,51,31,14,11,38,17,154,80,75,46,87,51,88,33,30,30]
[null,"Income $150,000 to $199,999 ",33,24,74,46,36,14,27,18,9,6,34,17,27,31,369,94,386,108,62,43,5,6,6,4,1,3,175,60,7,6,45,24,14,8,30,20,104,65,18,15,128,80,36,21,40,31]
[null,"Income $200,000 or more ",13,10,200,90,38,18,76,38,5,5,25,13,39,35,444,114,431,118,33,19,6,6,32,22,19,11,63,44,4,5,9,8,9,7,4,4,109,69,41,38,118,67,61,24,0,11]
[]
[]
[]
[]
[null,{"$f":"\"Calculated \"&B70","v":"Calculated B19001. HOUSEHOLD INCOME IN THE PAST 12 MONTHS (IN 2017 INFLATION-ADJUSTED DOLLARS)"}]
[null,"Universe:  HOUSEHOLDS"]
[null,{"$f":"B72","v":"Data Set: 2013-2017 American Community Survey 5-Year Estimates"}]
[null,null,"Alstead",null,"Chesterfield",null,"Dublin",null,"Fitzwilliam",null,"Gilsum",null,"Harrisville",null,"Hinsdale",null,"Jaffrey",null,"Keene",null,"Marlborough",null,"Marlow",null,"Nelson",null,"Richmond",null,"Rindge",null,"Roxbury",null,"Stoddard",null,"Sullivan",null,"Surry",null,"Swanzey",null,"Troy",null,"Walpole",null,"Westmoreland",null,"Winchester"]
[null," ","Estimate","Margin of Error","Estimate","Margin of Error","Estimate","Margin of Error","Estimate","Margin of Error","Estimate","Margin of Error","Estimate","Margin of Error","Estimate","Margin of Error","Estimate","Margin of Error","Estimate","Margin of Error","Estimate","Margin of Error","Estimate","Margin of Error","Estimate","Margin of Error","Estimate","Margin of Error","Estimate","Margin of Error","Estimate","Margin of Error","Estimate","Margin of Error","Estimate","Margin of Error","Estimate","Margin of Error","Estimate","Margin of Error","Estimate","Margin of Error","Estimate","Margin of Error","Estimate","Margin of Error","Estimate","Margin of Error"]
[null,"Total Households",{"$f":"C76","v":776},79,1443,147,584,63,1002,92,283,34,437,53,1749,117,9391,{"$f":"R76","v":370},9449,367,906,99,282,42,226,33,439,50,1883,144,84,27,484,60,293,50,371,45,2828,180,888,87,1631,93,656,77,1718,160,0,0,0,0,0,0,0,0,0,0,0,0,0,0,0,{"$f":"BL76","v":0}]
[null,"Households With"]
[null,"Income Less than $10,000 ",{"$f":"C78","v":66},40,63,73,14,9,28,17,24,14,11,13,110,83,712,{"$f":"R78","v":201},761,231,10,11,12,9,18,16,20,21,105,66,2,5,3,5,16,10,5,6,111,83,22,27,86,74,16,17,84,65,0,0,0,0,0,0,0,0,0,0,0,0,0,0,0,{"$f":"BL78","v":0}]
[null,"Income $10,000 to $14,999 ",{"$f":"C79","v":42},27,26,28,9,7,43,35,8,8,6,6,142,88,422,128,525,155,49,37,7,7,0,11,14,9,71,51,3,3,3,4,1,4,14,11,111,88,1997,43,41,40,14,15,50,42,0,0,0,0,0,0,0,0,0,0,0,0,0,0,0,{"$f":"BL79","v":0}]
[null,"Income $15,000 to $24,999 ",{"$f":"C80+C81","v":34},{"$f":"SQRT((D80^2)+(D81^2))","v":17.4928556845359},{"$f":"E80+E81","v":64},{"$f":"SQRT((F80^2)+(F81^2))","v":68.8839603971781},{"$f":"G80+G81","v":68},{"$f":"SQRT((H80^2)+(H81^2))","v":35.383612025908263},{"$f":"I80+I81","v":115},{"$f":"SQRT((J80^2)+(J81^2))","v":50.24937810560445},{"$f":"K80+K81","v":22},{"$f":"SQRT((L80^2)+(L81^2))","v":10},{"$f":"M80+M81","v":22},{"$f":"SQRT((N80^2)+(N81^2))","v":19.849433241279208},{"$f":"O80+O81","v":232},{"$f":"SQRT((P80^2)+(P81^2))","v":100.00499987500625},{"$f":"Q80+Q81","v":1186},{"$f":"SQRT((R80^2)+(R81^2))","v":248.51559307214507},{"$f":"S80+S81","v":1121},{"$f":"SQRT((T80^2)+(T81^2))","v":247.58836806279893},{"$f":"U80+U81","v":91},{"$f":"SQRT((V80^2)+(V81^2))","v":46.486557196677836},{"$f":"W80+W81","v":18},{"$f":"SQRT((X80^2)+(X81^2))","v":11.401754250991379},{"$f":"Y80+Y81","v":15},{"$f":"SQRT((Z80^2)+(Z81^2))","v":7.810249675906654},{"$f":"AA80+AA81","v":23},{"$f":"SQRT((AB80^2)+(AB81^2))","v":17.804493814764857},{"$f":"AC80+AC81","v":136},{"$f":"SQRT((AD80^2)+(AD81^2))","v":70.213958726167832},{"$f":"AE80+AE81","v":2},{"$f":"SQRT((AF80^2)+(AF81^2))","v":3.6055512754639891},{"$f":"AG80+AG81","v":3},{"$f":"SQRT((AH80^2)+(AH81^2))","v":11.704699910719626},{"$f":"AI80+AI81","v":33},{"$f":"SQRT((AJ80^2)+(AJ81^2))","v":18.601075237738275},{"$f":"AK80+AK81","v":21},{"$f":"SQRT((AL80^2)+(AL81^2))","v":13.416407864998739},{"$f":"AM80+AM81","v":331},{"$f":"SQRT((AN80^2)+(AN81^2))","v":146.86047800548656},{"$f":"AO80+AO81","v":55},{"$f":"SQRT((AP80^2)+(AP81^2))","v":35.846896657869841},{"$f":"AQ80+AQ81","v":81},{"$f":"SQRT((AR80^2)+(AR81^2))","v":55.542776307995261},{"$f":"AS80+AS81","v":23},{"$f":"SQRT((AT80^2)+(AT81^2))","v":12.649110640673518},{"$f":"AU80+AU81","v":322},{"$f":"SQRT((AV80^2)+(AV81^2))","v":135.2479205015737},{"$f":"AW80+AW81","v":0},{"$f":"SQRT((AX80^2)+(AX81^2))","v":0},{"$f":"AY80+AY81","v":0},{"$f":"SQRT((AZ80^2)+(AZ81^2))","v":0},{"$f":"BA80+BA81","v":0},{"$f":"SQRT((BB80^2)+(BB81^2))","v":0},{"$f":"BC80+BC81","v":0},{"$f":"SQRT((BD80^2)+(BD81^2))","v":0},{"$f":"BE80+BE81","v":0},{"$f":"SQRT((BF80^2)+(BF81^2))","v":0},{"$f":"BG80+BG81","v":0},{"$f":"SQRT((BH80^2)+(BH81^2))","v":0},{"$f":"BI80+BI81","v":0},{"$f":"SQRT((BJ80^2)+(BJ81^2))","v":0},{"$f":"BK80+BK81","v":0},{"$f":"SQRT((BL80^2)+(BL81^2))","v":0}]
[null,"Income $25,000 to $34,999 ",{"$f":"C82+C83","v":66},{"$f":"SQRT((D82^2)+(D83^2))","v":39.824615503479755},{"$f":"E82+E83","v":66},{"$f":"SQRT((F82^2)+(F83^2))","v":56.356011214421486},{"$f":"G82+G83","v":76},{"$f":"SQRT((H82^2)+(H83^2))","v":36.400549446402593},{"$f":"I82+I83","v":141},{"$f":"SQRT((J82^2)+(J83^2))","v":52.801515129776341},{"$f":"K82+K83","v":21},{"$f":"SQRT((L82^2)+(L83^2))","v":13.416407864998739},{"$f":"M82+M83","v":23},{"$f":"SQRT((N82^2)+(N83^2))","v":12.206555615733702},{"$f":"O82+O83","v":128},{"$f":"SQRT((P82^2)+(P83^2))","v":64.404968752418469},{"$f":"Q82+Q83","v":923},{"$f":"SQRT((R82^2)+(R83^2))","v":208.49220608934041},{"$f":"S82+S83","v":944},{"$f":"SQRT((T82^2)+(T83^2))","v":237.99369739554029},{"$f":"U82+U83","v":142},{"$f":"SQRT((V82^2)+(V83^2))","v":56.568542494923804},{"$f":"W82+W83","v":12},{"$f":"SQRT((X82^2)+(X83^2))","v":12.649110640673518},{"$f":"Y82+Y83","v":19},{"$f":"SQRT((Z82^2)+(Z83^2))","v":11.313708498984761},{"$f":"AA82+AA83","v":30},{"$f":"SQRT((AB82^2)+(AB83^2))","v":22.022715545545239},{"$f":"AC82+AC83","v":169},{"$f":"SQRT((AD82^2)+(AD83^2))","v":68.117545463705611},{"$f":"AE82+AE83","v":7},{"$f":"SQRT((AF82^2)+(AF83^2))","v":13.038404810405298},{"$f":"AG82+AG83","v":79},{"$f":"SQRT((AH82^2)+(AH83^2))","v":30.805843601498726},{"$f":"AI82+AI83","v":24},{"$f":"SQRT((AJ82^2)+(AJ83^2))","v":16.970562748477139},{"$f":"AK82+AK83","v":12},{"$f":"SQRT((AL82^2)+(AL83^2))","v":7.810249675906654},{"$f":"AM82+AM83","v":214},{"$f":"SQRT((AN82^2)+(AN83^2))","v":111.73182178770737},{"$f":"AO82+AO83","v":91},{"$f":"SQRT((AP82^2)+(AP83^2))","v":45.343136195018538},{"$f":"AQ82+AQ83","v":130},{"$f":"SQRT((AR82^2)+(AR83^2))","v":55.226805085936306},{"$f":"AS82+AS83","v":17},{"$f":"SQRT((AT82^2)+(AT83^2))","v":12.041594578792296},{"$f":"AU82+AU83","v":186},{"$f":"SQRT((AV82^2)+(AV83^2))","v":75.432088662584434},{"$f":"AW82+AW83","v":0},{"$f":"SQRT((AX82^2)+(AX83^2))","v":0},{"$f":"AY82+AY83","v":0},{"$f":"SQRT((AZ82^2)+(AZ83^2))","v":0},{"$f":"BA82+BA83","v":0},{"$f":"SQRT((BB82^2)+(BB83^2))","v":0},{"$f":"BC82+BC83","v":0},{"$f":"SQRT((BD82^2)+(BD83^2))","v":0},{"$f":"BE82+BE83","v":0},{"$f":"SQRT((BF82^2)+(BF83^2))","v":0},{"$f":"BG82+BG83","v":0},{"$f":"SQRT((BH82^2)+(BH83^2))","v":0},{"$f":"BI82+BI83","v":0},{"$f":"SQRT((BJ82^2)+(BJ83^2))","v":0},{"$f":"BK82+BK83","v":0},{"$f":"SQRT((BL82^2)+(BL83^2))","v":0}]
[null,"Income $35,000 to $49,999 ",{"$f":"C84+C85+C86","v":119},{"$f":"SQRT((D84^2)+(D85^2)+(D86^2))","v":44.158804331639232},{"$f":"E84+E85+E86","v":274},{"$f":"SQRT((F84^2)+(F85^2)+(F86^2))","v":122.06965224821442},{"$f":"G84+G85+G86","v":52},{"$f":"SQRT((H84^2)+(H85^2)+(H86^2))","v":29.8496231131986},{"$f":"I84+I85+I86","v":155},{"$f":"SQRT((J84^2)+(J85^2)+(J86^2))","v":62.681735776859277},{"$f":"K84+K85+K86","v":41},{"$f":"SQRT((L84^2)+(L85^2)+(L86^2))","v":16.431676725154983},{"$f":"M84+M85+M86","v":72},{"$f":"SQRT((N84^2)+(N85^2)+(N86^2))","v":24.535688292770594},{"$f":"O84+O85+O86","v":178},{"$f":"SQRT((P84^2)+(P85^2)+(P86^2))","v":66.977608198561398},{"$f":"Q84+Q85+Q86","v":966},{"$f":"SQRT((R84^2)+(R85^2)+(R86^2))","v":232.34026771095878},{"$f":"S84+S85+S86","v":1025},{"$f":"SQRT((T84^2)+(T85^2)+(T86^2))","v":225.77865266672134},{"$f":"U84+U85+U86","v":121},{"$f":"SQRT((V84^2)+(V85^2)+(V86^2))","v":65.053823869162372},{"$f":"W84+W85+W86","v":56},{"$f":"SQRT((X84^2)+(X85^2)+(X86^2))","v":21.656407827707714},{"$f":"Y84+Y85+Y86","v":24},{"$f":"SQRT((Z84^2)+(Z85^2)+(Z86^2))","v":10.488088481701515},{"$f":"AA84+AA85+AA86","v":67},{"$f":"SQRT((AB84^2)+(AB85^2)+(AB86^2))","v":29.631064780058107},{"$f":"AC84+AC85+AC86","v":192},{"$f":"SQRT((AD84^2)+(AD85^2)+(AD86^2))","v":80.106179536912137},{"$f":"AE84+AE85+AE86","v":8},{"$f":"SQRT((AF84^2)+(AF85^2)+(AF86^2))","v":7},{"$f":"AG84+AG85+AG86","v":66},{"$f":"SQRT((AH84^2)+(AH85^2)+(AH86^2))","v":23.832750575625969},{"$f":"AI84+AI85+AI86","v":60},{"$f":"SQRT((AJ84^2)+(AJ85^2)+(AJ86^2))","v":19.026297590440446},{"$f":"AK84+AK85+AK86","v":19},{"$f":"SQRT((AL84^2)+(AL85^2)+(AL86^2))","v":16.431676725154983},{"$f":"AM84+AM85+AM86","v":442},{"$f":"SQRT((AN84^2)+(AN85^2)+(AN86^2))","v":153.44054223053305},{"$f":"AO84+AO85+AO86","v":116},{"$f":"SQRT((AP84^2)+(AP85^2)+(AP86^2))","v":51.980765673468106},{"$f":"AQ84+AQ85+AQ86","v":309},{"$f":"SQRT((AR84^2)+(AR85^2)+(AR86^2))","v":99.969995498649496},{"$f":"AS84+AS85+AS86","v":33},{"$f":"SQRT((AT84^2)+(AT85^2)+(AT86^2))","v":17.972200755611428},{"$f":"AU84+AU85+AU86","v":230},{"$f":"SQRT((AV84^2)+(AV85^2)+(AV86^2))","v":91.531415371991272},{"$f":"AW84+AW85+AW86","v":0},{"$f":"SQRT((AX84^2)+(AX85^2)+(AX86^2))","v":0},{"$f":"AY84+AY85+AY86","v":0},{"$f":"SQRT((AZ84^2)+(AZ85^2)+(AZ86^2))","v":0},{"$f":"BA84+BA85+BA86","v":0},{"$f":"SQRT((BB84^2)+(BB85^2)+(BB86^2))","v":0},{"$f":"BC84+BC85+BC86","v":0},{"$f":"SQRT((BD84^2)+(BD85^2)+(BD86^2))","v":0},{"$f":"BE84+BE85+BE86","v":0},{"$f":"SQRT((BF84^2)+(BF85^2)+(BF86^2))","v":0},{"$f":"BG84+BG85+BG86","v":0},{"$f":"SQRT((BH84^2)+(BH85^2)+(BH86^2))","v":0},{"$f":"BI84+BI85+BI86","v":0},{"$f":"SQRT((BJ84^2)+(BJ85^2)+(BJ86^2))","v":0},{"$f":"BK84+BK85+BK86","v":0},{"$f":"SQRT((BL84^2)+(BL85^2)+(BL86^2))","v":0}]
[null,"Income $50,000 to $74,999 ",{"$f":"C87+C88","v":188},{"$f":"SQRT((D87^2)+(D88^2))","v":56.612719418872643},{"$f":"E87+E88","v":210},{"$f":"SQRT((F87^2)+(F88^2))","v":101.17806086301516},{"$f":"G87+G88","v":95},{"$f":"SQRT((H87^2)+(H88^2))","v":35.846896657869841},{"$f":"I87+I88","v":148},{"$f":"SQRT((J87^2)+(J88^2))","v":47.010637094172637},{"$f":"K87+K88","v":72},{"$f":"SQRT((L87^2)+(L88^2))","v":20.248456731316587},{"$f":"M87+M88","v":106},{"$f":"SQRT((N87^2)+(N88^2))","v":33.837848631377263},{"$f":"O87+O88","v":428},{"$f":"SQRT((P87^2)+(P88^2))","v":124.80785231707178},{"$f":"Q87+Q88","v":2111},{"$f":"SQRT((R87^2)+(R88^2))","v":330.28775333033468},{"$f":"S87+S88","v":1978},{"$f":"SQRT((T87^2)+(T88^2))","v":297.67767803448078},{"$f":"U87+U88","v":142},{"$f":"SQRT((V87^2)+(V88^2))","v":58.137767414994535},{"$f":"W87+W88","v":70},{"$f":"SQRT((X87^2)+(X88^2))","v":29.068883707497267},{"$f":"Y87+Y88","v":39},{"$f":"SQRT((Z87^2)+(Z88^2))","v":17},{"$f":"AA87+AA88","v":123},{"$f":"SQRT((AB87^2)+(AB88^2))","v":44.10215414239989},{"$f":"AC87+AC88","v":324},{"$f":"SQRT((AD87^2)+(AD88^2))","v":99.724620831567975},{"$f":"AE87+AE88","v":25},{"$f":"SQRT((AF87^2)+(AF88^2))","v":15.264337522473747},{"$f":"AG87+AG88","v":78},{"$f":"SQRT((AH87^2)+(AH88^2))","v":28.178005607210743},{"$f":"AI87+AI88","v":36},{"$f":"SQRT((AJ87^2)+(AJ88^2))","v":15.652475842498529},{"$f":"AK87+AK88","v":102},{"$f":"SQRT((AL87^2)+(AL88^2))","v":33.97057550292606},{"$f":"AM87+AM88","v":541},{"$f":"SQRT((AN87^2)+(AN88^2))","v":172.36298906667869},{"$f":"AO87+AO88","v":204},{"$f":"SQRT((AP87^2)+(AP88^2))","v":70.767224051816527},{"$f":"AQ87+AQ88","v":212},{"$f":"SQRT((AR87^2)+(AR88^2))","v":83.648072302952684},{"$f":"AS87+AS88","v":139},{"$f":"SQRT((AT87^2)+(AT88^2))","v":38.948684188300895},{"$f":"AU87+AU88","v":357},{"$f":"SQRT((AV87^2)+(AV88^2))","v":120.24142381059865},{"$f":"AW87+AW88","v":0},{"$f":"SQRT((AX87^2)+(AX88^2))","v":0},{"$f":"AY87+AY88","v":0},{"$f":"SQRT((AZ87^2)+(AZ88^2))","v":0},{"$f":"BA87+BA88","v":0},{"$f":"SQRT((BB87^2)+(BB88^2))","v":0},{"$f":"BC87+BC88","v":0},{"$f":"SQRT((BD87^2)+(BD88^2))","v":0},{"$f":"BE87+BE88","v":0},{"$f":"SQRT((BF87^2)+(BF88^2))","v":0},{"$f":"BG87+BG88","v":0},{"$f":"SQRT((BH87^2)+(BH88^2))","v":0},{"$f":"BI87+BI88","v":0},{"$f":"SQRT((BJ87^2)+(BJ88^2))","v":0},{"$f":"BK87+BK88","v":0},{"$f":"SQRT((BL87^2)+(BL88^2))","v":0}]
[null,"Income $75,000 to $99,999 ",{"$f":"C89","v":112},44,198,98,69,29,108,44,40,13,49,21,276,101,{"$f":"Q89","v":1165},219,1115,202,94,34,36,17,25,13,66,30,327,105,12,9,70,26,54,20,74,26,450,146,144,53,217,70,127,33,272,88,0,0,0,0,0,0,0,0,0,0,0,0,0,0,0,{"$f":"BL89","v":0}]
[null,"Income $100,000 to $149,999 ",{"$f":"C90+C91","v":103},{"$f":"SQRT((D90^2)+(D91^2))","v":37.443290453698111},{"$f":"E90+E91","v":268},{"$f":"SQRT((F90^2)+(F91^2))","v":107.54068997360952},{"$f":"G90+G91","v":127},{"$f":"SQRT((H90^2)+(H91^2))","v":39.623225512317902},{"$f":"I90+I91","v":161},{"$f":"SQRT((J90^2)+(J91^2))","v":47.423622805517503},{"$f":"K90+K91","v":41},{"$f":"SQRT((L90^2)+(L91^2))","v":14.422205101855956},{"$f":"M90+M91","v":89},{"$f":"SQRT((N90^2)+(N91^2))","v":32.202484376209235},{"$f":"O90+O91","v":189},{"$f":"SQRT((P90^2)+(P91^2))","v":76.850504227363402},{"$f":"Q90+Q91","v":1093},{"$f":"SQRT((R90^2)+(R91^2))","v":190.8821626030049},{"$f":"S90+S91","v":1163},{"$f":"SQRT((T90^2)+(T91^2))","v":229.87170334775874},{"$f":"U90+U91","v":162},{"$f":"SQRT((V90^2)+(V91^2))","v":62.201286160335947},{"$f":"W90+W91","v":60},{"$f":"SQRT((X90^2)+(X91^2))","v":21.470910553583888},{"$f":"Y90+Y91","v":48},{"$f":"SQRT((Z90^2)+(Z91^2))","v":19.235384061671343},{"$f":"AA90+AA91","v":76},{"$f":"SQRT((AB90^2)+(AB91^2))","v":33.241540277189323},{"$f":"AC90+AC91","v":321},{"$f":"SQRT((AD90^2)+(AD91^2))","v":104.35037134576953},{"$f":"AE90+AE91","v":14},{"$f":"SQRT((AF90^2)+(AF91^2))","v":8.6023252670426267},{"$f":"AG90+AG91","v":128},{"$f":"SQRT((AH90^2)+(AH91^2))","v":49.819674828324601},{"$f":"AI90+AI91","v":46},{"$f":"SQRT((AJ90^2)+(AJ91^2))","v":21.95449840010015},{"$f":"AK90+AK91","v":90},{"$f":"SQRT((AL90^2)+(AL91^2))","v":29.410882339705484},{"$f":"AM90+AM91","v":415},{"$f":"SQRT((AN90^2)+(AN91^2))","v":132.80060240827223},{"$f":"AO90+AO91","v":132},{"$f":"SQRT((AP90^2)+(AP91^2))","v":54.918120870983927},{"$f":"AQ90+AQ91","v":309},{"$f":"SQRT((AR90^2)+(AR91^2))","v":105.19030373565806},{"$f":"AS90+AS91","v":190},{"$f":"SQRT((AT90^2)+(AT91^2))","v":51.855568649856693},{"$f":"AU90+AU91","v":177},{"$f":"SQRT((AV90^2)+(AV91^2))","v":115.94826432508596},{"$f":"AW90+AW91","v":0},{"$f":"SQRT((AX90^2)+(AX91^2))","v":0},{"$f":"AY90+AY91","v":0},{"$f":"SQRT((AZ90^2)+(AZ91^2))","v":0},{"$f":"BA90+BA91","v":0},{"$f":"SQRT((BB90^2)+(BB91^2))","v":0},{"$f":"BC90+BC91","v":0},{"$f":"SQRT((BD90^2)+(BD91^2))","v":0},{"$f":"BE90+BE91","v":0},{"$f":"SQRT((BF90^2)+(BF91^2))","v":0},{"$f":"BG90+BG91","v":0},{"$f":"SQRT((BH90^2)+(BH91^2))","v":0},{"$f":"BI90+BI91","v":0},{"$f":"SQRT((BJ90^2)+(BJ91^2))","v":0},{"$f":"BK90+BK91","v":0},{"$f":"SQRT((BL90^2)+(BL91^2))","v":0}]
[null,"Income $150,000 to $199,999 ",{"$f":"C92","v":33},24,74,46,36,14,27,18,9,6,34,17,27,31,{"$f":"Q92","v":369},94,386,108,62,43,5,6,6,4,1,3,175,60,7,6,45,24,14,8,30,20,104,65,18,15,128,80,36,21,40,31,0,0,0,0,0,0,0,0,0,0,0,0,0,0,0,{"$f":"BL92","v":0}]
[null,"Income $200,000 or more ",{"$f":"C93","v":13},10,200,90,38,18,76,38,5,5,25,13,39,35,444,114,431,118,33,19,6,6,32,22,19,11,63,44,4,5,9,8,9,7,4,4,109,69,41,38,118,67,61,24,0,11,0,0,0,0,0,0,0,0,0,0,0,0,0,0,0,{"$f":"BL93","v":0}]
[]
[]
[]
[null,"B19001. HOUSEHOLD INCOME IN THE PAST 12 MONTHS (IN 2012 INFLATION-ADJUSTED DOLLARS)",null,null,null,null,null,null,null,null,null,null,null,null,{"$f":"B118","v":"B19001. HOUSEHOLD INCOME IN THE PAST 12 MONTHS (IN 2012 INFLATION-ADJUSTED DOLLARS)"}]
[null,"Universe:  HOUSEHOLDS",null,null,null,null,null,null,null,null,null,null,null,null,{"$f":"B120","v":"Data Set: 2008-2012 American Community Survey 5-Year Estimates"}]
[null,"Data Set: 2008-2012 American Community Survey 5-Year Estimates"]
[]
[null,null,"Alstead",null,"Chesterfield",null,"Dublin",null,"Fitzwilliam",null,"Gilsum",null,"Harrisville",null,"Hinsdale",null,"Jaffrey",null,"Keene",null,"Marlborough",null,"Marlow",null,"Nelson",null,"Richmond",null,"Rindge",null,"Roxbury",null,"Stoddard",null,"Sullivan",null,"Surry",null,"Swanzey",null,"Troy",null,"Walpole",null,"Westmoreland",null,"Winchester"]
[null," ","Estimate","Margin of Error","Estimate","Margin of Error","Estimate","Margin of Error","Estimate","Margin of Error","Estimate","Margin of Error","Estimate","Margin of Error","Estimate","Margin of Error","Estimate","Margin of Error","Estimate","Margin of Error","Estimate","Margin of Error","Estimate","Margin of Error","Estimate","Margin of Error","Estimate","Margin of Error","Estimate","Margin of Error","Estimate","Margin of Error","Estimate","Margin of Error","Estimate","Margin of Error","Estimate","Margin of Error","Estimate","Margin of Error","Estimate","Margin of Error","Estimate","Margin of Error","Estimate","Margin of Error","Estimate","Margin of Error"]
[null,"Total Households",753,73,1456,99,620,67,1121,88,247,34,428,65,1837,141,2209,134,8964,376,828,90,338,62,319,58,375,50,1785,129,88,16,461,67,258,36,345,43,2913,162,837,103,1515,123,687,79,1789,148]
[null,"Households With"]
[null,"Income Less than $10,000 ",15,15,67,48,21,15,7,10,15,13,18,16,105,74,75,50,655,180,27,19,17,17,6,6,17,16,128,52,5,7,14,11,8,11,11,9,102,79,43,35,60,50,3,4,77,51]
[null,"Income $10,000 to $14,999 ",52,22,28,29,4,5,42,34,7,8,0,11,95,51,138,75,501,151,25,28,16,12,6,9,7,7,100,65,2,3,12,14,25,20,0,11,136,94,26,23,37,31,11,10,107,57]
[null,"Income $15,000 to $19,999 ",31,21,13,20,16,15,24,20,13,12,14,13,141,78,90,56,474,142,31,30,7,7,10,14,11,12,95,44,4,4,4,5,12,13,2,3,164,85,40,33,111,63,19,17,87,72]
[null,"Income $20,000 to $24,999 ",28,19,16,23,41,28,110,66,9,10,44,38,134,97,153,80,596,150,56,50,8,7,15,9,3,5,78,49,7,6,25,18,15,13,9,9,109,89,61,39,39,27,17,19,164,62]
[null,"Income $25,000 to $29,999 ",42,30,14,22,30,23,42,26,15,16,10,10,115,70,206,88,470,139,38,34,2,3,26,14,15,11,62,45,2,3,38,19,8,7,7,4,118,62,42,35,75,46,9,9,130,80]
[null,"Income $30,000 to $34,999 ",51,26,38,41,46,30,69,49,3,5,30,23,80,44,70,52,484,150,17,15,13,15,17,11,18,14,55,40,8,8,32,21,14,11,29,19,138,115,58,40,122,73,14,11,192,92]
[null,"Income $35,000 to $39,999 ",29,21,63,77,6,6,79,46,18,18,38,26,180,110,39,37,394,125,35,23,31,22,28,37,24,13,99,47,0,11,3,5,18,10,17,16,96,58,39,40,124,81,24,15,110,67]
[null,"Income $40,000 to $44,999 ",24,13,24,33,35,23,44,26,34,19,25,18,54,40,61,41,359,129,57,40,34,43,5,6,25,19,65,54,11,9,37,25,10,8,13,10,209,90,80,43,77,45,39,19,57,42]
[null,"Income $45,000 to $49,999 ",22,16,129,76,42,26,77,54,16,15,16,15,110,84,45,41,507,199,36,28,5,6,13,9,47,31,20,18,0,11,24,20,3,5,12,9,142,133,29,25,65,41,56,29,60,36]
[null,"Income $50,000 to $59,999 ",107,39,103,60,72,33,54,28,29,14,47,24,201,90,210,100,772,204,85,42,31,20,5,5,12,10,128,54,7,5,24,15,7,9,38,21,363,117,76,39,79,39,55,19,198,96]
[null,"Income $60,000 to $74,999 ",123,48,189,111,75,28,118,55,19,10,14,11,216,89,327,138,785,169,101,49,65,29,24,16,47,18,182,73,8,6,104,38,33,18,31,16,302,104,74,35,261,90,66,32,211,73]
[null,"Income $75,000 to $99,999 ",90,28,258,111,65,28,221,69,44,15,66,21,250,97,266,105,1176,222,172,47,40,18,51,21,55,25,341,74,16,8,41,24,46,22,77,26,279,108,131,52,196,76,179,45,227,86]
[null,"Income $100,000 to $124,999 ",73,32,221,93,81,29,98,37,10,8,56,26,107,60,229,107,740,168,65,31,34,20,27,15,49,21,243,74,4,4,54,24,29,18,18,9,363,126,87,43,150,58,80,30,31,33]
[null,"Income $125,000 to $149,999 ",29,24,86,78,20,15,56,29,4,3,19,13,15,19,76,49,390,120,54,29,17,12,22,18,29,22,72,38,4,7,23,17,17,9,47,25,208,106,16,17,19,22,28,21,60,52]
[null,"Income $150,000 to $199,999 ",11,10,144,63,39,23,65,39,11,8,9,7,28,28,128,86,339,103,18,16,16,19,27,19,9,8,43,31,4,4,14,15,2,4,19,11,108,76,12,15,64,53,37,20,47,38]
[null,"Income $200,000 or more ",26,17,63,71,27,19,15,15,0,11,22,13,6,10,96,60,322,99,11,17,2,3,37,23,7,7,74,42,6,5,12,16,11,7,15,10,76,59,23,17,36,28,50,27,31,32]
[]
[]
[]
[]
[null,{"$f":"\"Calculated \"&B118","v":"Calculated B19001. HOUSEHOLD INCOME IN THE PAST 12 MONTHS (IN 2012 INFLATION-ADJUSTED DOLLARS)"}]
[null,"Universe:  HOUSEHOLDS"]
[null,{"$f":"B120","v":"Data Set: 2008-2012 American Community Survey 5-Year Estimates"}]
[null,null,"Alstead",null,"Chesterfield",null,"Dublin",null,"Fitzwilliam",null,"Gilsum",null,"Harrisville",null,"Hinsdale",null,"Jaffrey",null,"Keene",null,"Marlborough",null,"Marlow",null,"Nelson",null,"Richmond",null,"Rindge",null,"Roxbury",null,"Stoddard",null,"Sullivan",null,"Surry",null,"Swanzey",null,"Troy",null,"Walpole",null,"Westmoreland",null,"Winchester"]
[null," ","Estimate","Margin of Error","Estimate","Margin of Error","Estimate","Margin of Error","Estimate","Margin of Error","Estimate","Margin of Error","Estimate","Margin of Error","Estimate","Margin of Error","Estimate","Margin of Error","Estimate","Margin of Error","Estimate","Margin of Error","Estimate","Margin of Error","Estimate","Margin of Error","Estimate","Margin of Error","Estimate","Margin of Error","Estimate","Margin of Error","Estimate","Margin of Error","Estimate","Margin of Error","Estimate","Margin of Error","Estimate","Margin of Error","Estimate","Margin of Error","Estimate","Margin of Error","Estimate","Margin of Error","Estimate","Margin of Error"]
[null,"Total Households",{"$f":"C124","v":753},73,1456,99,620,67,1121,88,247,34,428,65,1837,141,2209,{"$f":"R124","v":134},8964,376,828,90,338,62,319,58,375,50,1785,129,88,16,461,67,258,36,345,43,2913,162,837,103,1515,123,687,79,1789,148,0,0,0,0,0,0,0,0,0,0,0,0,0,0,0,{"$f":"BL124","v":0}]
[null,"Households With"]
[null,"Income Less than $10,000 ",{"$f":"C126","v":15},15,67,48,21,15,7,10,15,13,18,16,105,74,75,{"$f":"R126","v":50},655,180,27,19,17,17,6,6,17,16,128,52,5,7,14,11,8,11,11,9,102,79,43,35,60,50,3,4,77,51,0,0,0,0,0,0,0,0,0,0,0,0,0,0,0,{"$f":"BL126","v":0}]
[null,"Income $10,000 to $14,999 ",{"$f":"C127","v":52},22,28,29,4,5,42,34,7,8,0,11,95,51,138,75,501,151,25,28,16,12,6,9,7,7,100,65,2,3,12,14,25,20,0,11,136,94,26,23,37,31,11,10,107,57,0,0,0,0,0,0,0,0,0,0,0,0,0,0,0,{"$f":"BL127","v":0}]
[null,"Income $15,000 to $24,999 ",{"$f":"C128+C129","v":59},{"$f":"SQRT((D128^2)+(D129^2))","v":28.319604517012593},{"$f":"E128+E129","v":29},{"$f":"SQRT((F128^2)+(F129^2))","v":30.479501308256342},{"$f":"G128+G129","v":57},{"$f":"SQRT((H128^2)+(H129^2))","v":31.76476034853718},{"$f":"I128+I129","v":134},{"$f":"SQRT((J128^2)+(J129^2))","v":68.963758598266665},{"$f":"K128+K129","v":22},{"$f":"SQRT((L128^2)+(L129^2))","v":15.620499351813308},{"$f":"M128+M129","v":58},{"$f":"SQRT((N128^2)+(N129^2))","v":40.162171256046406},{"$f":"O128+O129","v":275},{"$f":"SQRT((P128^2)+(P129^2))","v":124.47088012864695},{"$f":"Q128+Q129","v":243},{"$f":"SQRT((R128^2)+(R129^2))","v":97.652444925869617},{"$f":"S128+S129","v":1070},{"$f":"SQRT((T128^2)+(T129^2))","v":206.55265672462312},{"$f":"U128+U129","v":87},{"$f":"SQRT((V128^2)+(V129^2))","v":58.309518948453004},{"$f":"W128+W129","v":15},{"$f":"SQRT((X128^2)+(X129^2))","v":9.8994949366116654},{"$f":"Y128+Y129","v":25},{"$f":"SQRT((Z128^2)+(Z129^2))","v":16.643316977093239},{"$f":"AA128+AA129","v":14},{"$f":"SQRT((AB128^2)+(AB129^2))","v":13},{"$f":"AC128+AC129","v":173},{"$f":"SQRT((AD128^2)+(AD129^2))","v":65.855903304107827},{"$f":"AE128+AE129","v":11},{"$f":"SQRT((AF128^2)+(AF129^2))","v":7.2111025509279782},{"$f":"AG128+AG129","v":29},{"$f":"SQRT((AH128^2)+(AH129^2))","v":18.681541692269406},{"$f":"AI128+AI129","v":27},{"$f":"SQRT((AJ128^2)+(AJ129^2))","v":18.384776310850235},{"$f":"AK128+AK129","v":11},{"$f":"SQRT((AL128^2)+(AL129^2))","v":9.4868329805051381},{"$f":"AM128+AM129","v":273},{"$f":"SQRT((AN128^2)+(AN129^2))","v":123.0690862889621},{"$f":"AO128+AO129","v":101},{"$f":"SQRT((AP128^2)+(AP129^2))","v":51.088159097779204},{"$f":"AQ128+AQ129","v":150},{"$f":"SQRT((AR128^2)+(AR129^2))","v":68.541957952775178},{"$f":"AS128+AS129","v":36},{"$f":"SQRT((AT128^2)+(AT129^2))","v":25.495097567963924},{"$f":"AU128+AU129","v":251},{"$f":"SQRT((AV128^2)+(AV129^2))","v":95.015788161757627},{"$f":"AW128+AW129","v":0},{"$f":"SQRT((AX128^2)+(AX129^2))","v":0},{"$f":"AY128+AY129","v":0},{"$f":"SQRT((AZ128^2)+(AZ129^2))","v":0},{"$f":"BA128+BA129","v":0},{"$f":"SQRT((BB128^2)+(BB129^2))","v":0},{"$f":"BC128+BC129","v":0},{"$f":"SQRT((BD128^2)+(BD129^2))","v":0},{"$f":"BE128+BE129","v":0},{"$f":"SQRT((BF128^2)+(BF129^2))","v":0},{"$f":"BG128+BG129","v":0},{"$f":"SQRT((BH128^2)+(BH129^2))","v":0},{"$f":"BI128+BI129","v":0},{"$f":"SQRT((BJ128^2)+(BJ129^2))","v":0},{"$f":"BK128+BK129","v":0},{"$f":"SQRT((BL128^2)+(BL129^2))","v":0}]
[null,"Income $25,000 to $34,999 ",{"$f":"C130+C131","v":93},{"$f":"SQRT((D130^2)+(D131^2))","v":39.698866482558415},{"$f":"E130+E131","v":52},{"$f":"SQRT((F130^2)+(F131^2))","v":46.529560496527367},{"$f":"G130+G131","v":76},{"$f":"SQRT((H130^2)+(H131^2))","v":37.802116342871599},{"$f":"I130+I131","v":111},{"$f":"SQRT((J130^2)+(J131^2))","v":55.470712993434653},{"$f":"K130+K131","v":18},{"$f":"SQRT((L130^2)+(L131^2))","v":16.763054614240211},{"$f":"M130+M131","v":40},{"$f":"SQRT((N130^2)+(N131^2))","v":25.079872407968907},{"$f":"O130+O131","v":195},{"$f":"SQRT((P130^2)+(P131^2))","v":82.680106434377549},{"$f":"Q130+Q131","v":276},{"$f":"SQRT((R130^2)+(R131^2))","v":102.2154587134451},{"$f":"S130+S131","v":954},{"$f":"SQRT((T130^2)+(T131^2))","v":204.50183373260984},{"$f":"U130+U131","v":55},{"$f":"SQRT((V130^2)+(V131^2))","v":37.161808352124091},{"$f":"W130+W131","v":15},{"$f":"SQRT((X130^2)+(X131^2))","v":15.297058540778355},{"$f":"Y130+Y131","v":43},{"$f":"SQRT((Z130^2)+(Z131^2))","v":17.804493814764857},{"$f":"AA130+AA131","v":33},{"$f":"SQRT((AB130^2)+(AB131^2))","v":17.804493814764857},{"$f":"AC130+AC131","v":117},{"$f":"SQRT((AD130^2)+(AD131^2))","v":60.207972893961475},{"$f":"AE130+AE131","v":10},{"$f":"SQRT((AF130^2)+(AF131^2))","v":8.5440037453175304},{"$f":"AG130+AG131","v":70},{"$f":"SQRT((AH130^2)+(AH131^2))","v":28.319604517012593},{"$f":"AI130+AI131","v":22},{"$f":"SQRT((AJ130^2)+(AJ131^2))","v":13.038404810405298},{"$f":"AK130+AK131","v":36},{"$f":"SQRT((AL130^2)+(AL131^2))","v":19.416487838947599},{"$f":"AM130+AM131","v":256},{"$f":"SQRT((AN130^2)+(AN131^2))","v":130.64838307457157},{"$f":"AO130+AO131","v":100},{"$f":"SQRT((AP130^2)+(AP131^2))","v":53.150729063673246},{"$f":"AQ130+AQ131","v":197},{"$f":"SQRT((AR130^2)+(AR131^2))","v":86.284413424441851},{"$f":"AS130+AS131","v":23},{"$f":"SQRT((AT130^2)+(AT131^2))","v":14.212670403551895},{"$f":"AU130+AU131","v":322},{"$f":"SQRT((AV130^2)+(AV131^2))","v":121.91800523302537},{"$f":"AW130+AW131","v":0},{"$f":"SQRT((AX130^2)+(AX131^2))","v":0},{"$f":"AY130+AY131","v":0},{"$f":"SQRT((AZ130^2)+(AZ131^2))","v":0},{"$f":"BA130+BA131","v":0},{"$f":"SQRT((BB130^2)+(BB131^2))","v":0},{"$f":"BC130+BC131","v":0},{"$f":"SQRT((BD130^2)+(BD131^2))","v":0},{"$f":"BE130+BE131","v":0},{"$f":"SQRT((BF130^2)+(BF131^2))","v":0},{"$f":"BG130+BG131","v":0},{"$f":"SQRT((BH130^2)+(BH131^2))","v":0},{"$f":"BI130+BI131","v":0},{"$f":"SQRT((BJ130^2)+(BJ131^2))","v":0},{"$f":"BK130+BK131","v":0},{"$f":"SQRT((BL130^2)+(BL131^2))","v":0}]
[null,"Income $35,000 to $49,999 ",{"$f":"C132+C133+C134","v":75},{"$f":"SQRT((D132^2)+(D133^2)+(D134^2))","v":29.427877939124322},{"$f":"E132+E133+E134","v":216},{"$f":"SQRT((F132^2)+(F133^2)+(F134^2))","v":113.11056537742175},{"$f":"G132+G133+G134","v":83},{"$f":"SQRT((H132^2)+(H133^2)+(H134^2))","v":35.227829907617071},{"$f":"I132+I133+I134","v":200},{"$f":"SQRT((J132^2)+(J133^2)+(J134^2))","v":75.551307070096414},{"$f":"K132+K133+K134","v":68},{"$f":"SQRT((L132^2)+(L133^2)+(L134^2))","v":30.166206257996713},{"$f":"M132+M133+M134","v":79},{"$f":"SQRT((N132^2)+(N133^2)+(N134^2))","v":35},{"$f":"O132+O133+O134","v":344},{"$f":"SQRT((P132^2)+(P133^2)+(P134^2))","v":144.06942770761603},{"$f":"Q132+Q133+Q134","v":145},{"$f":"SQRT((R132^2)+(R133^2)+(R134^2))","v":68.782265156070579},{"$f":"S132+S133+S134","v":1260},{"$f":"SQRT((T132^2)+(T133^2)+(T134^2))","v":268.08021187696789},{"$f":"U132+U133+U134","v":128},{"$f":"SQRT((V132^2)+(V133^2)+(V134^2))","v":53.972215074054539},{"$f":"W132+W133+W134","v":70},{"$f":"SQRT((X132^2)+(X133^2)+(X134^2))","v":48.672374094551827},{"$f":"Y132+Y133+Y134","v":46},{"$f":"SQRT((Z132^2)+(Z133^2)+(Z134^2))","v":38.548670534792763},{"$f":"AA132+AA133+AA134","v":96},{"$f":"SQRT((AB132^2)+(AB133^2)+(AB134^2))","v":38.613469152615643},{"$f":"AC132+AC133+AC134","v":184},{"$f":"SQRT((AD132^2)+(AD133^2)+(AD134^2))","v":73.81734213584231},{"$f":"AE132+AE133+AE134","v":11},{"$f":"SQRT((AF132^2)+(AF133^2)+(AF134^2))","v":17.972200755611428},{"$f":"AG132+AG133+AG134","v":64},{"$f":"SQRT((AH132^2)+(AH133^2)+(AH134^2))","v":32.403703492039298},{"$f":"AI132+AI133+AI134","v":31},{"$f":"SQRT((AJ132^2)+(AJ133^2)+(AJ134^2))","v":13.74772708486752},{"$f":"AK132+AK133+AK134","v":42},{"$f":"SQRT((AL132^2)+(AL133^2)+(AL134^2))","v":20.904544960366874},{"$f":"AM132+AM133+AM134","v":447},{"$f":"SQRT((AN132^2)+(AN133^2)+(AN134^2))","v":170.74249617479535},{"$f":"AO132+AO133+AO134","v":148},{"$f":"SQRT((AP132^2)+(AP133^2)+(AP134^2))","v":63.827893588931794},{"$f":"AQ132+AQ133+AQ134","v":266},{"$f":"SQRT((AR132^2)+(AR133^2)+(AR134^2))","v":101.32620588969075},{"$f":"AS132+AS133+AS134","v":119},{"$f":"SQRT((AT132^2)+(AT133^2)+(AT134^2))","v":37.775653535048207},{"$f":"AU132+AU133+AU134","v":227},{"$f":"SQRT((AV132^2)+(AV133^2)+(AV134^2))","v":86.884981440983225},{"$f":"AW132+AW133+AW134","v":0},{"$f":"SQRT((AX132^2)+(AX133^2)+(AX134^2))","v":0},{"$f":"AY132+AY133+AY134","v":0},{"$f":"SQRT((AZ132^2)+(AZ133^2)+(AZ134^2))","v":0},{"$f":"BA132+BA133+BA134","v":0},{"$f":"SQRT((BB132^2)+(BB133^2)+(BB134^2))","v":0},{"$f":"BC132+BC133+BC134","v":0},{"$f":"SQRT((BD132^2)+(BD133^2)+(BD134^2))","v":0},{"$f":"BE132+BE133+BE134","v":0},{"$f":"SQRT((BF132^2)+(BF133^2)+(BF134^2))","v":0},{"$f":"BG132+BG133+BG134","v":0},{"$f":"SQRT((BH132^2)+(BH133^2)+(BH134^2))","v":0},{"$f":"BI132+BI133+BI134","v":0},{"$f":"SQRT((BJ132^2)+(BJ133^2)+(BJ134^2))","v":0},{"$f":"BK132+BK133+BK134","v":0},{"$f":"SQRT((BL132^2)+(BL133^2)+(BL134^2))","v":0}]
[null,"Income $50,000 to $74,999 ",{"$f":"C135+C136","v":230},{"$f":"SQRT((D135^2)+(D136^2))","v":61.846584384264908},{"$f":"E135+E136","v":292},{"$f":"SQRT((F135^2)+(F136^2))","v":126.17844506887855},{"$f":"G135+G136","v":147},{"$f":"SQRT((H135^2)+(H136^2))","v":43.278170016764804},{"$f":"I135+I136","v":172},{"$f":"SQRT((J135^2)+(J136^2))","v":61.71709649683789},{"$f":"K135+K136","v":48},{"$f":"SQRT((L135^2)+(L136^2))","v":17.204650534085253},{"$f":"M135+M136","v":61},{"$f":"SQRT((N135^2)+(N136^2))","v":26.40075756488817},{"$f":"O135+O136","v":417},{"$f":"SQRT((P135^2)+(P136^2))","v":126.57408897558773},{"$f":"Q135+Q136","v":537},{"$f":"SQRT((R135^2)+(R136^2))","v":170.42300314218147},{"$f":"S135+S136","v":1557},{"$f":"SQRT((T135^2)+(T136^2))","v":264.90941848111027},{"$f":"U135+U136","v":186},{"$f":"SQRT((V135^2)+(V136^2))","v":64.536811201050213},{"$f":"W135+W136","v":96},{"$f":"SQRT((X135^2)+(X136^2))","v":35.227829907617071},{"$f":"Y135+Y136","v":29},{"$f":"SQRT((Z135^2)+(Z136^2))","v":16.763054614240211},{"$f":"AA135+AA136","v":59},{"$f":"SQRT((AB135^2)+(AB136^2))","v":20.591260281974002},{"$f":"AC135+AC136","v":310},{"$f":"SQRT((AD135^2)+(AD136^2))","v":90.801982357215081},{"$f":"AE135+AE136","v":15},{"$f":"SQRT((AF135^2)+(AF136^2))","v":7.810249675906654},{"$f":"AG135+AG136","v":128},{"$f":"SQRT((AH135^2)+(AH136^2))","v":40.853396431630991},{"$f":"AI135+AI136","v":40},{"$f":"SQRT((AJ135^2)+(AJ136^2))","v":20.124611797498108},{"$f":"AK135+AK136","v":69},{"$f":"SQRT((AL135^2)+(AL136^2))","v":26.40075756488817},{"$f":"AM135+AM136","v":665},{"$f":"SQRT((AN135^2)+(AN136^2))","v":156.54072952429985},{"$f":"AO135+AO136","v":150},{"$f":"SQRT((AP135^2)+(AP136^2))","v":52.40229002629561},{"$f":"AQ135+AQ136","v":340},{"$f":"SQRT((AR135^2)+(AR136^2))","v":98.086696345630884},{"$f":"AS135+AS136","v":121},{"$f":"SQRT((AT135^2)+(AT136^2))","v":37.215588131856791},{"$f":"AU135+AU136","v":409},{"$f":"SQRT((AV135^2)+(AV136^2))","v":120.60265337047937},{"$f":"AW135+AW136","v":0},{"$f":"SQRT((AX135^2)+(AX136^2))","v":0},{"$f":"AY135+AY136","v":0},{"$f":"SQRT((AZ135^2)+(AZ136^2))","v":0},{"$f":"BA135+BA136","v":0},{"$f":"SQRT((BB135^2)+(BB136^2))","v":0},{"$f":"BC135+BC136","v":0},{"$f":"SQRT((BD135^2)+(BD136^2))","v":0},{"$f":"BE135+BE136","v":0},{"$f":"SQRT((BF135^2)+(BF136^2))","v":0},{"$f":"BG135+BG136","v":0},{"$f":"SQRT((BH135^2)+(BH136^2))","v":0},{"$f":"BI135+BI136","v":0},{"$f":"SQRT((BJ135^2)+(BJ136^2))","v":0},{"$f":"BK135+BK136","v":0},{"$f":"SQRT((BL135^2)+(BL136^2))","v":0}]
[null,"Income $75,000 to $99,999 ",{"$f":"C137","v":90},28,258,111,65,28,221,69,44,15,66,21,250,97,{"$f":"Q137","v":266},105,1176,222,172,47,40,18,51,21,55,25,341,74,16,8,41,24,46,22,77,26,279,108,131,52,196,76,179,45,227,86,0,0,0,0,0,0,0,0,0,0,0,0,0,0,0,{"$f":"BL137","v":0}]
[null,"Income $100,000 to $149,999 ",{"$f":"C138+C139","v":102},{"$f":"SQRT((D138^2)+(D139^2))","v":40},{"$f":"E138+E139","v":307},{"$f":"SQRT((F138^2)+(F139^2))","v":121.37956994486346},{"$f":"G138+G139","v":101},{"$f":"SQRT((H138^2)+(H139^2))","v":32.649655434629018},{"$f":"I138+I139","v":154},{"$f":"SQRT((J138^2)+(J139^2))","v":47.010637094172637},{"$f":"K138+K139","v":14},{"$f":"SQRT((L138^2)+(L139^2))","v":8.5440037453175304},{"$f":"M138+M139","v":75},{"$f":"SQRT((N138^2)+(N139^2))","v":29.068883707497267},{"$f":"O138+O139","v":122},{"$f":"SQRT((P138^2)+(P139^2))","v":62.936475910238251},{"$f":"Q138+Q139","v":305},{"$f":"SQRT((R138^2)+(R139^2))","v":117.6860229593982},{"$f":"S138+S139","v":1130},{"$f":"SQRT((T138^2)+(T139^2))","v":206.45580640902304},{"$f":"U138+U139","v":119},{"$f":"SQRT((V138^2)+(V139^2))","v":42.449970553582247},{"$f":"W138+W139","v":51},{"$f":"SQRT((X138^2)+(X139^2))","v":23.323807579381203},{"$f":"Y138+Y139","v":49},{"$f":"SQRT((Z138^2)+(Z139^2))","v":23.430749027719962},{"$f":"AA138+AA139","v":78},{"$f":"SQRT((AB138^2)+(AB139^2))","v":30.413812651491099},{"$f":"AC138+AC139","v":315},{"$f":"SQRT((AD138^2)+(AD139^2))","v":83.186537372341689},{"$f":"AE138+AE139","v":8},{"$f":"SQRT((AF138^2)+(AF139^2))","v":8.0622577482985491},{"$f":"AG138+AG139","v":77},{"$f":"SQRT((AH138^2)+(AH139^2))","v":29.410882339705484},{"$f":"AI138+AI139","v":46},{"$f":"SQRT((AJ138^2)+(AJ139^2))","v":20.124611797498108},{"$f":"AK138+AK139","v":65},{"$f":"SQRT((AL138^2)+(AL139^2))","v":26.570660511172846},{"$f":"AM138+AM139","v":571},{"$f":"SQRT((AN138^2)+(AN139^2))","v":164.65721970202219},{"$f":"AO138+AO139","v":103},{"$f":"SQRT((AP138^2)+(AP139^2))","v":46.238512086787566},{"$f":"AQ138+AQ139","v":169},{"$f":"SQRT((AR138^2)+(AR139^2))","v":62.032249677083293},{"$f":"AS138+AS139","v":108},{"$f":"SQRT((AT138^2)+(AT139^2))","v":36.61966684720111},{"$f":"AU138+AU139","v":91},{"$f":"SQRT((AV138^2)+(AV139^2))","v":61.587336360651285},{"$f":"AW138+AW139","v":0},{"$f":"SQRT((AX138^2)+(AX139^2))","v":0},{"$f":"AY138+AY139","v":0},{"$f":"SQRT((AZ138^2)+(AZ139^2))","v":0},{"$f":"BA138+BA139","v":0},{"$f":"SQRT((BB138^2)+(BB139^2))","v":0},{"$f":"BC138+BC139","v":0},{"$f":"SQRT((BD138^2)+(BD139^2))","v":0},{"$f":"BE138+BE139","v":0},{"$f":"SQRT((BF138^2)+(BF139^2))","v":0},{"$f":"BG138+BG139","v":0},{"$f":"SQRT((BH138^2)+(BH139^2))","v":0},{"$f":"BI138+BI139","v":0},{"$f":"SQRT((BJ138^2)+(BJ139^2))","v":0},{"$f":"BK138+BK139","v":0},{"$f":"SQRT((BL138^2)+(BL139^2))","v":0}]
[null,"Income $150,000 to $199,999 ",{"$f":"C140","v":11},10,144,63,39,23,65,39,11,8,9,7,28,28,{"$f":"Q140","v":128},86,339,103,18,16,16,19,27,19,9,8,43,31,4,4,14,15,2,4,19,11,108,76,12,15,64,53,37,20,47,38,0,0,0,0,0,0,0,0,0,0,0,0,0,0,0,{"$f":"BL140","v":0}]
[null,"Income $200,000 or more ",{"$f":"C141","v":26},17,63,71,27,19,15,15,0,11,22,13,6,10,96,60,322,99,11,17,2,3,37,23,7,7,74,42,6,5,12,16,11,7,15,10,76,59,23,17,36,28,50,27,31,32,0,0,0,0,0,0,0,0,0,0,0,0,0,0,0,{"$f":"BL141","v":0}]

{"sheet":"ACS_Table_B19037","index":35,"n_rows":253,"n_cols":48,"rows_kept":253,"cut":false,"hidden":true,"merged":[]}
[null,"B19037. AGE OF HOUSEHOLDER BY HOUSEHOLD INCOME IN THE PAST 12 MONTHS (IN 2022 INFLATION-ADJUSTED DOLLARS)"]
[null,"Universe:  HOUSEHOLDS"]
[null,"Data Set: 2018-2022 American Community Survey 5-Year Estimates"]
[]
[null,null,"Alstead",null,"Chesterfield",null,"Dublin",null,"Fitzwilliam",null,"Gilsum",null,"Harrisville",null,"Hinsdale",null,"Jaffrey",null,"Keene",null,"Marlborough",null,"Marlow",null,"Nelson",null,"Richmond",null,"Rindge",null,"Roxbury",null,"Stoddard",null,"Sullivan",null,"Surry",null,"Swanzey",null,"Troy",null,"Walpole",null,"Westmoreland",null,"Winchester"]
[null," ","Estimate","Margin of Error","Estimate","Margin of Error","Estimate","Margin of Error","Estimate","Margin of Error","Estimate","Margin of Error","Estimate","Margin of Error","Estimate","Margin of Error","Estimate","Margin of Error","Estimate","Margin of Error","Estimate","Margin of Error","Estimate","Margin of Error","Estimate","Margin of Error","Estimate","Margin of Error","Estimate","Margin of Error","Estimate","Margin of Error","Estimate","Margin of Error","Estimate","Margin of Error","Estimate","Margin of Error","Estimate","Margin of Error","Estimate","Margin of Error","Estimate","Margin of Error","Estimate","Margin of Error","Estimate","Margin of Error"]
[null,"Total:",723,97,1366,158,635,101,1013,154,310,51,416,75,1594,139,2026,225,9259,370,942,130,314,61,246,41,393,73,1972,144,95,37,436,52,281,53,344,58,3255,171,758,101,1427,121,885,182,1617,146]
[null,"Householder under 25 years:",0,12,26,41,3,4,26,30,3,4,0,12,9,14,49,74,642,165,0,12,3,4,0,12,0,12,41,39,0,12,5,9,0,12,4,5,51,51,11,12,5,9,5,6,114,82]
[null,"Less than $10,000",0,12,0,12,0,12,0,12,0,12,0,12,0,12,0,17,45,51,0,12,0,12,0,12,0,12,0,17,0,12,0,12,0,12,0,12,0,17,0,12,0,12,0,12,0,12]
[null,"$10,000 to $14,999",0,12,0,12,0,12,0,12,0,12,0,12,0,12,0,17,99,71,0,12,0,12,0,12,0,12,0,17,0,12,0,12,0,12,0,12,0,17,0,12,0,12,0,12,0,12]
[null,"$15,000 to $19,999",0,12,0,12,0,12,0,12,0,12,0,12,0,12,0,17,101,99,0,12,0,12,0,12,0,12,20,31,0,12,0,12,0,12,0,12,0,17,0,12,0,12,0,12,26,44]
[null,"$20,000 to $24,999",0,12,0,12,0,12,0,12,0,12,0,12,0,12,0,17,0,22,0,12,0,12,0,12,0,12,0,17,0,12,0,12,0,12,0,12,0,17,0,12,0,12,0,12,0,12]
[null,"$25,000 to $29,999",0,12,0,12,0,12,0,12,0,12,0,12,0,12,0,17,11,18,0,12,0,12,0,12,0,12,0,17,0,12,0,12,0,12,0,12,0,17,0,12,0,12,0,12,0,12]
[null,"$30,000 to $34,999",0,12,0,12,0,12,0,12,0,12,0,12,0,12,0,17,36,43,0,12,0,12,0,12,0,12,0,17,0,12,0,12,0,12,2,3,0,17,0,12,0,12,0,12,0,12]
[null,"$35,000 to $39,999",0,12,0,12,3,4,0,12,0,12,0,12,0,12,0,17,49,44,0,12,0,12,0,12,0,12,14,23,0,12,0,12,0,12,0,12,0,17,0,12,0,12,0,12,0,12]
[null,"$40,000 to $44,999",0,12,0,12,0,12,0,12,0,12,0,12,0,12,0,17,0,22,0,12,0,12,0,12,0,12,0,17,0,12,0,12,0,12,0,12,0,17,0,12,0,12,0,12,25,38]
[null,"$45,000 to $49,999",0,12,0,12,0,12,0,12,0,12,0,12,0,12,0,17,39,43,0,12,0,12,0,12,0,12,0,17,0,12,0,12,0,12,0,12,0,17,0,12,0,12,0,12,0,12]
[null,"$50,000 to $59,999",0,12,0,12,0,12,0,12,0,12,0,12,0,12,0,17,69,77,0,12,0,12,0,12,0,12,0,17,0,12,0,12,0,12,0,12,25,37,0,12,0,12,0,12,0,12]
[null,"$60,000 to $74,999",0,12,0,12,0,12,4,6,3,4,0,12,9,14,0,17,46,50,0,12,0,12,0,12,0,12,0,17,0,12,5,9,0,12,0,12,0,17,5,7,5,9,0,12,24,34]
[null,"$75,000 to $99,999",0,12,26,41,0,12,22,30,0,12,0,12,0,12,0,17,75,61,0,12,3,4,0,12,0,12,7,11,0,12,0,12,0,12,2,4,26,40,6,10,0,12,2,3,0,12]
[null,"$100,000 to $124,999",0,12,0,12,0,12,0,12,0,12,0,12,0,12,49,74,72,54,0,12,0,12,0,12,0,12,0,17,0,12,0,12,0,12,0,12,0,17,0,12,0,12,0,12,0,12]
[null,"$125,000 to $149,999",0,12,0,12,0,12,0,12,0,12,0,12,0,12,0,17,0,22,0,12,0,12,0,12,0,12,0,17,0,12,0,12,0,12,0,12,0,17,0,12,0,12,0,12,39,49]
[null,"$150,000 to $199,999",0,12,0,12,0,12,0,12,0,12,0,12,0,12,0,17,0,22,0,12,0,12,0,12,0,12,0,17,0,12,0,12,0,12,0,12,0,17,0,12,0,12,3,5,0,12]
[null,"$200,000 or more",0,12,0,12,0,12,0,12,0,12,0,12,0,12,0,17,0,22,0,12,0,12,0,12,0,12,0,17,0,12,0,12,0,12,0,12,0,17,0,12,0,12,0,12,0,12]
[null,"Householder 25 to 44 years:",145,54,274,143,101,37,176,58,72,26,87,50,284,87,447,128,2976,333,339,97,70,33,54,18,67,29,583,114,16,9,81,29,84,38,81,35,831,175,288,77,313,96,168,74,440,83]
[null,"Less than $10,000",28,38,0,12,3,4,0,12,1,2,0,12,0,12,0,17,75,86,0,12,0,12,0,12,0,12,0,17,0,12,0,12,0,12,0,12,0,17,7,10,0,12,0,12,32,37]
[null,"$10,000 to $14,999",0,12,0,12,4,5,0,12,0,12,0,12,0,12,0,17,89,62,21,24,0,12,0,12,0,12,0,17,0,12,0,12,0,12,0,12,100,83,0,12,0,12,0,12,0,12]
[null,"$15,000 to $19,999",0,12,0,12,0,12,0,12,2,3,0,12,0,12,33,34,98,79,7,10,0,12,2,3,0,12,6,10,0,12,0,12,0,12,0,12,30,46,0,12,0,12,0,12,8,15]
[null,"$20,000 to $24,999",0,12,0,12,3,4,13,19,0,12,0,12,0,12,0,17,55,48,73,70,0,12,0,12,0,12,14,22,0,12,0,12,0,12,0,12,17,37,7,11,0,12,0,12,9,13]
[null,"$25,000 to $29,999",0,12,33,45,0,12,0,12,1,4,0,12,0,12,11,20,61,73,0,12,7,10,0,12,0,12,0,17,0,12,0,12,0,12,0,12,0,17,34,33,0,12,0,12,27,37]
[null,"$30,000 to $34,999",9,8,37,56,0,12,0,12,0,12,0,12,25,29,0,17,208,122,20,23,0,12,2,3,3,5,14,24,4,5,0,12,0,12,0,12,0,17,12,19,12,19,0,12,16,25]
[null,"$35,000 to $39,999",10,10,0,12,0,12,3,5,7,10,0,12,0,12,10,19,107,69,0,12,4,6,0,12,2,4,10,18,0,12,0,12,0,12,0,12,0,17,0,12,0,12,0,12,49,56]
[null,"$40,000 to $44,999",0,12,0,12,0,12,4,6,4,5,0,12,0,12,0,17,63,59,0,12,0,12,0,12,0,12,42,44,1,3,0,12,3,4,0,12,52,64,0,12,0,12,8,15,35,33]
[null,"$45,000 to $49,999",0,12,0,12,0,12,0,12,0,12,3,5,10,15,0,17,127,95,6,9,0,12,2,3,3,5,0,17,1,2,0,12,1,4,0,12,39,37,0,12,7,12,0,12,38,41]
[null,"$50,000 to $59,999",24,22,0,12,18,16,34,35,4,4,17,22,13,22,0,17,238,114,16,23,2,3,0,12,0,12,56,61,2,3,6,8,7,10,0,12,47,66,73,39,26,26,45,57,29,32]
[null,"$60,000 to $74,999",0,12,14,23,16,23,13,11,23,16,3,4,28,42,76,68,224,99,52,36,9,11,7,5,10,9,79,63,0,12,12,14,19,19,0,12,98,80,4,6,7,10,0,12,92,72]
[null,"$75,000 to $99,999",8,9,0,12,9,9,16,15,5,5,18,16,93,62,30,32,642,216,27,22,4,4,10,10,15,17,88,55,3,5,15,9,7,5,14,10,103,82,44,31,65,46,33,25,49,48]
[null,"$100,000 to $124,999",15,15,81,67,25,19,30,28,6,7,10,12,21,24,98,96,376,140,24,22,26,25,13,13,6,7,87,53,2,3,16,16,15,17,11,8,151,116,24,25,77,75,6,7,19,18]
[null,"$125,000 to $149,999",4,7,69,75,10,8,39,22,4,4,0,12,38,36,61,58,246,110,58,43,13,15,13,12,13,14,40,42,0,12,20,10,22,15,16,12,83,106,20,22,45,37,10,8,23,34]
[null,"$150,000 to $199,999",47,27,19,30,13,14,16,12,7,7,12,9,32,43,29,38,259,133,35,27,2,3,3,4,7,10,66,47,1,3,7,7,5,5,25,29,64,70,43,40,49,41,47,39,14,24]
[null,"$200,000 or more",0,12,21,32,0,12,8,9,8,7,24,34,24,31,99,103,108,94,0,12,3,5,2,3,8,9,81,53,2,4,5,5,5,7,15,12,47,53,20,14,25,42,19,21,0,12]
[null,"Householder 45 to 64 years:",294,75,466,165,301,79,469,86,133,41,150,47,677,122,1065,226,3036,266,325,86,129,39,88,29,173,48,766,126,57,37,220,42,113,27,107,34,1231,190,234,73,584,105,374,95,633,113]
[null,"Less than $10,000",0,12,0,12,18,15,45,34,0,12,7,9,0,12,0,17,56,43,14,16,0,12,2,3,0,12,0,17,0,12,8,12,0,12,0,12,12,21,26,29,32,38,0,12,10,16]
[null,"$10,000 to $14,999",5,6,18,29,0,12,13,13,2,3,0,12,14,21,28,42,137,109,7,10,9,11,0,12,0,12,29,36,0,12,2,4,0,12,0,12,27,33,7,11,0,12,0,12,11,16]
[null,"$15,000 to $19,999",11,7,0,12,0,12,29,29,0,12,0,12,3,5,0,17,60,56,11,17,7,9,0,12,16,21,0,17,0,12,0,12,3,4,0,12,49,67,0,12,26,31,36,44,84,51]
[null,"$20,000 to $24,999",47,55,0,12,6,6,0,12,2,3,4,5,31,34,41,43,28,30,12,12,2,4,0,12,0,12,21,33,0,12,0,12,2,3,7,11,25,34,36,36,7,11,0,12,6,11]
[null,"$25,000 to $29,999",4,7,0,12,15,12,20,32,3,4,0,12,14,24,21,33,40,34,9,11,2,3,0,12,4,6,11,19,0,12,6,5,0,12,0,12,94,81,4,6,0,12,7,8,23,27]
[null,"$30,000 to $34,999",0,12,0,12,5,6,12,20,0,12,7,9,11,17,58,75,186,131,11,12,2,5,5,5,4,6,0,17,0,12,0,12,0,12,0,12,134,154,15,24,0,12,0,12,19,21]
[null,"$35,000 to $39,999",5,6,30,36,13,19,6,9,4,4,0,12,43,38,0,17,80,54,10,11,3,4,0,12,0,12,0,17,2,3,9,13,5,5,3,4,0,17,4,7,45,56,0,12,19,22]
[null,"$40,000 to $44,999",0,12,0,12,0,12,23,20,18,26,0,12,15,24,22,28,77,101,5,7,0,12,0,12,4,6,16,16,1,2,0,12,0,12,0,12,51,59,7,9,7,11,4,6,8,15]
[null,"$45,000 to $49,999",32,25,0,12,3,4,16,13,9,9,13,15,0,12,0,17,68,71,5,9,8,11,2,3,9,8,30,37,2,3,0,12,5,5,13,14,32,37,5,7,70,61,14,17,35,33]
[null,"$50,000 to $59,999",40,47,0,12,12,10,36,35,12,8,0,12,32,31,33,36,240,107,3,5,2,3,1,2,8,9,57,51,3,4,20,12,2,3,11,9,43,38,24,15,70,57,15,20,26,31]
[null,"$60,000 to $74,999",13,11,76,84,6,8,21,27,18,16,6,7,97,62,329,253,279,117,34,32,5,5,19,12,22,16,23,27,21,36,24,20,8,7,0,12,99,95,14,13,39,34,25,18,54,43]
[null,"$75,000 to $99,999",35,25,9,19,76,66,52,26,14,10,38,23,59,53,105,77,525,186,62,63,20,17,14,11,21,16,75,53,5,5,35,21,22,12,16,10,142,77,28,18,28,20,18,14,77,71]
[null,"$100,000 to $124,999",31,18,83,100,24,19,63,42,15,11,25,18,69,57,156,140,297,118,57,38,10,7,5,5,12,11,167,83,9,9,30,19,31,17,16,12,182,102,28,19,41,38,113,78,55,45]
[null,"$125,000 to $149,999",26,16,59,62,12,9,19,16,4,4,3,4,93,65,125,100,355,144,7,10,19,22,6,5,25,23,165,79,1,3,29,19,5,5,10,8,159,102,13,14,81,56,20,14,74,53]
[null,"$150,000 to $199,999",21,14,130,100,34,22,30,35,25,16,28,17,127,85,70,55,295,136,45,36,30,20,11,8,40,32,76,47,8,10,30,18,25,17,23,25,108,64,0,12,70,50,58,29,60,45]
[null,"$200,000 or more",24,14,61,55,77,33,84,42,7,6,19,10,69,68,77,66,313,105,33,22,10,12,23,14,8,8,96,66,5,5,27,17,5,6,8,6,74,66,23,21,68,44,64,33,72,66]
[null,"Householder 65 years and over:",284,81,600,141,230,62,342,108,102,27,179,38,624,172,465,116,2605,293,278,62,112,40,104,28,153,46,582,132,22,9,130,22,84,24,152,38,1142,174,225,54,525,99,338,127,430,78]
[null,"Less than $10,000",26,27,0,12,3,4,14,12,1,3,0,12,29,47,40,38,48,41,6,9,2,3,1,4,0,12,0,17,0,12,2,4,0,12,0,12,20,28,0,12,150,107,72,99,23,22]
[null,"$10,000 to $14,999",42,47,0,12,37,53,31,31,10,12,3,4,0,12,0,17,167,82,10,16,3,4,2,2,3,5,14,17,1,2,0,12,8,9,4,5,0,17,15,14,0,12,0,12,14,17]
[null,"$15,000 to $19,999",12,11,39,39,3,3,0,12,6,5,3,4,0,12,1,4,375,138,11,17,4,5,1,3,15,15,22,20,0,12,0,12,6,8,4,5,129,85,11,17,9,12,11,14,27,24]
[null,"$20,000 to $24,999",26,30,33,38,0,12,6,9,2,4,3,4,36,32,13,21,108,73,24,23,5,5,2,3,0,12,32,33,4,6,8,9,7,9,7,6,56,43,6,8,0,12,27,30,86,71]
[null,"$25,000 to $29,999",2,3,53,80,3,4,26,14,7,5,5,6,34,28,30,32,176,108,23,18,7,11,2,5,3,5,21,23,4,4,3,4,2,3,5,7,20,23,51,36,37,30,19,15,8,13]
[null,"$30,000 to $34,999",20,21,0,12,2,3,7,9,2,3,3,4,25,19,53,51,106,85,19,15,4,5,11,13,11,12,18,22,0,12,15,8,4,4,0,12,11,19,15,25,7,11,17,19,36,29]
[null,"$35,000 to $39,999",12,11,16,25,0,12,17,25,2,4,0,12,19,31,13,20,152,79,38,29,2,4,3,4,0,12,53,68,1,2,7,6,6,5,12,9,77,48,16,24,6,11,12,12,27,25]
[null,"$40,000 to $44,999",11,12,73,88,3,4,13,11,0,12,21,13,81,90,0,17,159,100,0,12,5,5,4,4,5,5,6,9,1,2,5,5,0,12,0,12,59,48,4,6,0,12,9,8,28,26]
[null,"$45,000 to $49,999",0,12,16,24,16,15,14,10,12,12,14,9,0,12,15,24,99,59,0,12,0,12,2,3,14,14,13,15,0,12,5,5,2,3,19,24,42,44,8,9,6,11,3,5,24,26]
[null,"$50,000 to $59,999",56,44,15,24,28,20,24,17,8,10,8,8,123,116,78,71,222,106,37,22,8,6,14,10,4,7,63,50,0,12,8,6,8,6,24,17,74,52,14,13,43,28,19,13,34,40]
[null,"$60,000 to $74,999",11,10,36,38,11,11,26,20,8,6,42,24,205,164,30,30,165,80,12,13,10,8,4,4,25,23,90,68,1,2,27,14,9,5,12,9,209,121,27,18,45,31,25,15,24,18]
[null,"$75,000 to $99,999",31,18,73,69,24,11,96,96,19,12,25,18,33,26,48,60,214,84,17,15,15,14,18,13,31,17,72,48,2,3,15,14,7,8,20,11,129,64,11,11,40,28,36,21,29,23]
[null,"$100,000 to $124,999",24,16,42,66,23,14,17,8,5,5,15,10,28,24,94,74,128,69,29,18,40,32,13,8,32,30,51,65,3,3,8,6,7,9,18,16,164,116,17,15,55,39,22,18,16,18]
[null,"$125,000 to $149,999",4,8,56,43,21,17,8,8,8,12,10,9,5,9,0,17,213,163,19,24,1,2,12,10,2,4,33,26,0,12,10,7,0,12,2,4,79,84,12,17,15,12,12,9,27,27]
[null,"$150,000 to $199,999",7,9,98,87,25,18,31,25,12,13,3,5,6,9,16,26,94,46,6,10,3,4,4,4,6,8,58,50,2,3,4,4,12,14,3,4,13,15,18,19,43,37,22,18,18,19]
[null,"$200,000 or more",0,12,50,43,31,21,12,11,0,12,24,13,0,12,34,36,179,102,27,32,3,4,11,9,2,4,36,49,3,3,13,11,6,7,22,16,60,52,0,12,69,48,32,25,9,14]
[]
[]
[]
[]
[]
[]
[]
[]
[]
[]
[]
[]
[]
[]
[null,"B19037. AGE OF HOUSEHOLDER BY HOUSEHOLD INCOME IN THE PAST 12 MONTHS (IN 2017 INFLATION-ADJUSTED DOLLARS)"]
[null,"Universe:  HOUSEHOLDS"]
[null,"Data Set: 2013-2017 American Community Survey 5-Year Estimates"]
[]
[null,null,"Alstead",null,"Chesterfield",null,"Dublin",null,"Fitzwilliam",null,"Gilsum",null,"Harrisville",null,"Hinsdale",null,"Jaffrey",null,"Keene",null,"Marlborough",null,"Marlow",null,"Nelson",null,"Richmond",null,"Rindge",null,"Roxbury",null,"Stoddard",null,"Sullivan",null,"Surry",null,"Swanzey",null,"Troy",null,"Walpole",null,"Westmoreland",null,"Winchester"]
[null," ","Estimate","Margin of Error","Estimate","Margin of Error","Estimate","Margin of Error","Estimate","Margin of Error","Estimate","Margin of Error","Estimate","Margin of Error","Estimate","Margin of Error","Estimate","Margin of Error","Estimate","Margin of Error","Estimate","Margin of Error","Estimate","Margin of Error","Estimate","Margin of Error","Estimate","Margin of Error","Estimate","Margin of Error","Estimate","Margin of Error","Estimate","Margin of Error","Estimate","Margin of Error","Estimate","Margin of Error","Estimate","Margin of Error","Estimate","Margin of Error","Estimate","Margin of Error","Estimate","Margin of Error","Estimate","Margin of Error"]
[null,"Total:",776,79,1443,147,584,63,1002,92,283,34,437,53,1749,117,9391,370,9449,367,906,99,282,42,226,33,439,50,1883,144,84,27,484,60,293,50,371,45,2828,180,888,87,1631,93,656,77,1798,121]
[null,"Householder under 25 years:",7,7,0,11,5,6,6,9,8,8,7,6,108,87,921,204,929,191,54,43,0,11,0,11,3,4,98,58,3,3,0,11,11,12,3,5,98,90,6,10,92,71,5,8,32,50]
[null,"Less than $10,000",0,11,0,11,0,11,0,11,2,4,0,11,0,11,228,101,190,101,0,11,0,11,0,11,0,11,21,33,0,11,0,11,0,11,0,11,30,50,1997,11,43,62,0,11,0,11]
[null,"$10,000 to $14,999",0,11,0,11,0,11,0,11,0,11,0,11,35,60,54,49,113,79,5,8,0,11,0,11,0,11,0,16,0,11,0,11,0,11,0,11,50,76,0,11,0,11,0,11,0,11]
[null,"$15,000 to $19,999",3,4,0,11,0,11,0,11,0,11,0,11,12,18,108,78,116,79,0,11,0,11,0,11,0,11,25,40,0,11,0,11,5,8,0,11,0,16,0,11,0,11,0,11,0,11]
[null,"$20,000 to $24,999",0,11,0,11,3,4,0,11,2,3,0,11,0,11,158,143,83,98,19,32,0,11,0,11,0,11,0,16,1,2,0,11,0,11,0,11,18,32,0,11,0,11,0,11,0,11]
[null,"$25,000 to $29,999",0,11,0,11,2,4,0,11,0,11,0,11,26,42,70,83,92,86,0,11,0,11,0,11,0,11,0,16,0,11,0,11,0,11,0,11,0,16,0,11,0,11,0,11,0,11]
[null,"$30,000 to $34,999",0,11,0,11,0,11,0,11,0,11,0,11,25,42,42,46,38,42,6,9,0,11,0,11,0,11,0,16,0,11,0,11,0,11,0,11,0,16,0,11,0,11,0,11,0,11]
[null,"$35,000 to $39,999",0,11,0,11,0,11,0,11,0,11,0,11,0,11,11,17,38,39,0,11,0,11,0,11,0,11,0,16,0,11,0,11,0,11,0,11,0,16,0,11,0,11,0,11,0,11]
[null,"$40,000 to $44,999",0,11,0,11,0,11,0,11,0,11,5,6,0,11,0,21,25,42,20,29,0,11,0,11,3,4,10,17,0,11,0,11,0,11,0,11,0,16,0,11,0,11,5,8,0,11]
[null,"$45,000 to $49,999",0,11,0,11,0,11,0,11,0,11,0,11,0,11,18,31,16,27,0,11,0,11,0,11,0,11,7,12,0,11,0,11,0,11,0,11,0,16,6,10,0,11,0,11,0,11]
[null,"$50,000 to $59,999",0,11,0,11,0,11,0,11,0,11,2,3,10,15,144,93,102,77,0,11,0,11,0,11,0,11,13,21,0,11,0,11,0,11,0,11,0,16,0,11,35,37,0,11,0,11]
[null,"$60,000 to $74,999",0,11,0,11,0,11,6,9,3,6,0,11,0,11,88,84,58,67,4,7,0,11,0,11,0,11,0,16,2,3,0,11,6,9,3,5,0,16,0,11,6,11,0,11,0,11]
[null,"$75,000 to $99,999",0,11,0,11,0,11,0,11,1,2,0,11,0,11,0,21,0,20,0,11,0,11,0,11,0,11,0,16,0,11,0,11,0,11,0,11,0,16,0,11,8,12,0,11,0,11]
[null,"$100,000 to $124,999",4,6,0,11,0,11,0,11,0,11,0,11,0,11,0,21,58,86,0,11,0,11,0,11,0,11,22,35,0,11,0,11,0,11,0,11,0,16,0,11,0,11,0,11,32,50]
[null,"$125,000 to $149,999",0,11,0,11,0,11,0,11,0,11,0,11,0,11,0,21,0,20,0,11,0,11,0,11,0,11,0,16,0,11,0,11,0,11,0,11,0,16,0,11,0,11,0,11,0,11]
[null,"$150,000 to $199,999",0,11,0,11,0,11,0,11,0,11,0,11,0,11,0,21,0,20,0,11,0,11,0,11,0,11,0,16,0,11,0,11,0,11,0,11,0,16,0,11,0,11,0,11,0,11]
[null,"$200,000 or more",0,11,0,11,0,11,0,11,0,11,0,11,0,11,0,21,0,20,0,11,0,11,0,11,0,11,0,16,0,11,0,11,0,11,0,11,0,16,0,11,0,11,0,11,0,11]
[null,"Householder 25 to 44 years:",219,68,348,93,100,36,190,45,57,18,53,23,417,107,2675,262,2706,201,212,56,73,26,55,25,96,35,595,91,24,13,134,41,53,20,95,32,833,173,260,79,349,88,111,38,498,115]
[null,"Less than $10,000",48,34,0,11,0,11,7,10,0,11,0,11,0,11,144,57,170,103,0,11,0,11,9,13,0,11,44,44,0,11,0,11,2,4,0,11,13,20,0,11,0,11,9,14,49,71]
[null,"$10,000 to $14,999",7,9,0,11,0,11,4,6,0,11,0,11,20,23,104,67,111,73,16,25,0,11,0,11,0,11,7,14,2,3,0,11,0,11,0,11,12,19,0,11,0,11,0,11,6,10]
[null,"$15,000 to $19,999",0,11,0,11,7,9,0,11,2,3,9,13,0,11,87,69,102,65,0,11,0,11,0,11,0,11,6,11,0,11,0,11,2,3,0,11,66,77,20,24,0,11,0,11,0,11]
[null,"$20,000 to $24,999",6,8,40,63,8,13,0,11,0,11,0,11,7,11,102,80,123,88,6,9,0,11,0,11,1,3,0,16,0,11,0,11,0,11,0,11,32,36,0,11,0,11,0,11,34,41]
[null,"$25,000 to $29,999",11,16,0,11,0,11,0,11,0,11,0,11,0,11,152,104,157,110,0,11,0,11,3,4,9,14,9,15,0,11,0,11,0,11,0,11,0,16,28,31,0,11,0,11,34,31]
[null,"$30,000 to $34,999",16,17,0,11,8,12,10,14,0,11,0,11,31,49,114,93,126,97,13,21,0,11,3,4,0,11,10,15,0,11,9,14,2,2,0,11,68,71,5,7,0,11,0,11,52,53]
[null,"$35,000 to $39,999",0,11,16,23,2,4,14,21,0,11,0,11,0,11,97,69,82,65,28,30,9,11,0,11,0,11,38,45,3,4,11,12,12,14,0,11,0,16,6,9,41,44,0,11,37,43]
[null,"$40,000 to $44,999",4,5,0,11,3,5,6,8,0,11,0,11,11,17,8,13,30,28,0,11,2,3,2,3,12,14,24,22,0,11,7,5,2,4,0,11,131,94,32,30,52,39,0,11,38,34]
[null,"$45,000 to $49,999",5,6,34,36,0,11,21,25,0,11,0,11,0,11,182,118,136,102,16,24,9,9,0,11,0,11,24,27,0,11,0,11,0,11,0,11,13,21,0,11,0,11,0,11,0,11]
[null,"$50,000 to $59,999",43,30,19,27,9,7,22,19,4,5,11,7,13,20,217,109,249,107,25,24,12,15,2,3,2,4,34,29,0,11,10,8,4,4,6,9,78,86,67,44,5,10,16,12,37,45]
[null,"$60,000 to $74,999",49,30,31,49,28,21,21,18,9,7,4,6,141,84,493,154,501,164,27,27,9,7,3,4,26,24,75,44,10,10,22,16,3,4,34,23,67,45,32,31,55,47,21,15,68,60]
[null,"$75,000 to $99,999",11,11,62,46,6,6,42,23,20,12,22,19,74,50,508,157,450,144,18,16,8,10,8,7,36,23,143,64,1,3,29,23,6,5,13,11,164,94,32,24,82,51,15,13,102,74]
[null,"$100,000 to $124,999",9,8,69,63,4,6,6,8,10,7,0,11,78,59,229,123,234,93,28,26,20,15,2,3,5,7,85,48,2,3,27,25,11,13,23,16,94,74,9,16,98,61,28,24,34,50]
[null,"$125,000 to $149,999",10,13,20,29,19,18,18,15,8,7,4,5,29,31,83,49,77,47,13,14,2,3,9,7,5,8,18,22,4,4,9,14,6,6,14,13,12,20,18,24,0,11,10,12,7,13]
[null,"$150,000 to $199,999",0,11,42,35,6,6,0,11,2,3,3,4,0,11,88,60,93,56,6,8,0,11,0,11,0,11,59,40,1,3,10,15,0,11,5,5,33,37,6,10,16,24,5,8,0,11]
[null,"$200,000 or more",0,11,15,22,0,11,19,18,2,3,0,11,13,20,67,49,65,41,16,14,2,3,14,16,0,11,19,31,1,4,0,11,3,5,0,11,50,43,5,8,0,11,7,8,0,11]
[null,"Householder 45 to 64 years:",331,57,640,149,317,55,475,82,154,33,210,40,686,141,3193,233,3265,241,387,89,124,27,103,26,232,45,686,91,38,19,188,41,149,34,154,31,1192,156,429,75,718,105,376,61,873,148]
[null,"Less than $10,000",6,9,49,80,9,7,13,12,15,13,11,13,57,69,72,54,106,66,5,9,4,5,9,7,20,21,30,35,1,4,3,5,3,4,0,11,55,62,17,26,17,16,4,7,25,27]
[null,"$10,000 to $14,999",5,7,0,11,0,11,18,29,4,6,4,5,32,28,95,54,143,79,18,30,4,3,0,11,9,9,49,41,1,3,3,4,0,11,2,3,0,16,24,29,9,13,6,6,48,36]
[null,"$15,000 to $19,999",0,11,0,11,20,22,10,11,7,6,0,11,44,55,80,49,100,56,5,7,3,5,3,4,0,11,0,16,0,11,0,11,0,11,3,7,62,55,3,6,62,51,0,11,62,66]
[null,"$20,000 to $24,999",5,7,24,26,20,19,25,26,5,6,0,11,21,24,210,127,146,97,33,23,6,6,2,3,5,9,10,16,0,11,0,11,12,11,0,11,27,32,9,11,0,11,7,8,34,43]
[null,"$25,000 to $29,999",0,11,17,26,16,18,29,27,11,11,11,8,11,18,119,90,155,88,26,28,0,11,6,7,7,8,17,26,0,11,12,14,8,12,3,4,53,63,0,11,8,12,7,7,78,68]
[null,"$30,000 to $34,999",21,30,17,26,20,21,37,30,2,4,0,11,18,19,58,39,48,35,6,9,2,4,5,5,4,6,35,42,4,7,9,8,12,11,0,11,25,30,20,18,35,27,0,11,39,42]
[null,"$35,000 to $39,999",17,13,32,34,11,17,26,18,4,5,3,4,21,24,137,107,140,98,13,12,0,11,2,3,18,12,21,24,0,11,6,6,9,10,7,10,14,23,11,11,8,12,6,7,63,40]
[null,"$40,000 to $44,999",25,23,19,29,7,7,39,38,10,10,18,14,8,14,77,55,93,57,18,28,2,3,3,5,4,5,23,26,2,3,4,5,6,6,0,11,44,68,46,35,43,36,3,5,6,12]
[null,"$45,000 to $49,999",9,9,13,20,7,8,0,11,5,6,3,4,10,16,50,36,43,32,17,27,11,12,3,4,18,19,0,16,0,11,0,11,0,11,0,11,94,72,5,8,69,44,8,9,39,32]
[null,"$50,000 to $59,999",23,13,40,58,0,11,20,15,15,10,29,23,114,62,195,84,190,91,19,15,7,11,7,6,22,12,85,56,2,4,7,7,5,5,11,12,149,91,12,13,12,14,29,17,102,65]
[null,"$60,000 to $74,999",45,27,68,49,42,24,39,20,32,15,24,12,88,46,499,157,471,131,38,29,23,15,7,7,44,24,38,27,4,5,15,16,12,10,15,8,111,71,65,44,80,54,27,18,133,57]
[null,"$75,000 to $99,999",76,33,31,32,37,24,52,32,13,9,6,6,160,80,469,147,487,123,46,25,24,13,8,7,17,11,117,57,8,7,33,15,43,18,57,23,208,103,93,41,105,50,99,30,92,43]
[null,"$100,000 to $124,999",59,27,126,74,54,28,74,32,6,6,41,17,27,23,400,120,422,132,48,36,16,9,11,7,35,22,74,39,5,6,31,22,19,13,14,8,123,71,40,26,60,34,48,21,64,55]
[null,"$125,000 to $149,999",17,16,39,36,26,18,48,32,17,10,19,18,30,27,243,85,223,90,37,34,15,9,20,13,16,18,60,51,2,3,27,21,8,8,21,13,124,79,52,38,69,43,62,28,46,54]
[null,"$150,000 to $199,999",23,23,19,28,20,10,19,14,5,5,28,17,19,29,220,81,237,87,51,41,5,6,2,3,1,3,98,41,6,6,32,19,10,7,19,13,59,48,6,9,73,58,23,16,31,27]
[null,"$200,000 or more",0,11,146,80,28,16,26,18,3,4,13,10,26,27,269,88,261,93,7,10,2,3,15,13,12,8,29,26,3,4,6,6,2,3,2,3,44,48,26,36,68,48,47,23,11,13]
[null,"Householder 65 years and over:",219,54,455,122,162,34,331,71,64,16,167,34,538,116,2602,231,2549,231,253,60,85,22,68,21,108,30,504,81,19,10,162,37,80,20,119,28,705,116,193,61,472,83,164,48,395,86]
[null,"Less than $10,000",12,19,14,20,5,5,8,8,7,6,0,11,53,47,268,131,295,139,5,7,8,6,0,11,0,11,10,16,1,2,0,11,11,9,5,6,13,22,5,7,26,25,3,4,16,18]
[null,"$10,000 to $14,999",30,24,26,28,9,7,21,21,4,4,2,4,55,54,169,76,158,87,10,13,3,6,0,11,5,6,15,18,0,11,0,11,1,4,12,10,49,45,41,34,32,38,8,13,40,44]
[null,"$15,000 to $19,999",5,8,0,11,7,8,48,37,0,11,0,11,65,49,222,84,231,108,14,13,7,7,2,3,0,11,47,49,1,3,0,11,10,10,11,11,76,74,14,22,0,11,2,4,18,21]
[null,"$20,000 to $24,999",15,11,0,11,3,4,32,30,6,5,13,15,83,60,219,88,220,87,14,11,2,3,8,7,17,12,48,30,0,11,3,4,4,4,7,6,50,40,9,9,19,22,14,12,86,54]
[null,"$25,000 to $29,999",9,10,32,43,11,13,29,15,4,4,3,4,8,12,244,101,209,104,43,27,4,4,0,11,1,4,50,39,0,11,30,19,0,11,4,4,56,45,15,13,36,26,3,5,27,24]
[null,"$30,000 to $34,999",9,8,0,11,19,17,36,24,4,4,9,7,9,13,124,62,119,65,48,35,6,12,2,3,9,13,48,33,3,3,19,15,2,3,5,5,12,20,23,27,51,44,7,8,39,28]
[null,"$35,000 to $39,999",32,26,49,57,4,8,8,8,10,9,15,10,39,31,101,59,135,64,4,6,5,6,4,4,2,4,17,18,2,5,14,14,2,3,2,3,77,48,10,11,24,25,3,6,40,33]
[null,"$40,000 to $44,999",5,7,63,55,10,12,31,27,4,4,3,5,36,31,154,103,100,52,5,8,4,4,3,4,0,11,28,25,0,11,11,8,17,12,0,11,42,41,0,11,55,45,3,5,35,28]
[null,"$45,000 to $49,999",22,16,48,67,8,13,10,11,8,6,25,16,53,36,131,65,187,93,0,11,14,11,7,7,10,12,0,16,1,2,13,12,12,7,10,7,27,29,0,11,17,19,5,6,0,11]
[null,"$50,000 to $59,999",9,9,28,31,8,13,24,24,7,6,14,14,16,19,324,131,249,93,22,28,14,10,5,5,19,19,16,19,2,4,12,9,2,3,21,15,89,67,14,13,0,11,29,24,15,18]
[null,"$60,000 to $74,999",19,23,24,28,8,7,16,12,2,3,22,13,46,34,151,71,158,89,7,10,5,5,15,12,10,7,63,42,5,5,12,9,4,3,12,7,47,37,14,13,19,22,17,13,38,23]
[null,"$75,000 to $99,999",25,26,105,88,26,17,14,12,6,6,21,11,42,33,188,57,178,58,30,19,4,4,9,8,13,10,67,36,3,4,8,6,5,5,4,4,78,52,19,22,22,17,13,12,35,28]
[null,"$100,000 to $124,999",0,11,0,11,10,8,10,9,0,11,22,15,25,22,99,54,107,64,17,15,5,5,3,4,5,5,32,25,1,2,19,17,2,3,15,13,44,43,8,9,64,58,26,16,0,11]
[null,"$125,000 to $149,999",4,6,14,23,14,10,5,7,0,11,3,4,0,11,39,34,42,34,19,14,2,4,3,4,10,10,30,36,0,11,15,15,0,11,3,4,18,28,5,7,18,21,16,9,6,9]
[null,"$150,000 to $199,999",10,9,13,20,10,8,8,9,2,3,3,4,8,13,61,37,56,34,5,7,0,11,4,4,0,11,18,20,0,11,3,4,4,4,6,9,12,20,6,9,39,43,8,9,0,11]
[null,"$200,000 or more",13,10,39,33,10,8,31,30,0,11,12,9,0,11,108,78,105,71,10,11,2,3,3,4,7,7,15,18,0,11,3,4,4,4,2,3,15,23,10,10,50,47,7,8,0,11]
[]
[]
[]
[]
[]
[]
[]
[]
[]
[]
[]
[]
[]
[]
[null,"B19037. AGE OF HOUSEHOLDER BY HOUSEHOLD INCOME IN THE PAST 12 MONTHS (IN 2012 INFLATION-ADJUSTED DOLLARS)"]
[null,"Universe:  HOUSEHOLDS"]
[null,"Data Set: 2008-2012 American Community Survey 5-Year Estimates"]
[]
[null,null,"Alstead",null,"Chesterfield",null,"Dublin",null,"Fitzwilliam",null,"Gilsum",null,"Harrisville",null,"Hinsdale",null,"Jaffrey",null,"Keene",null,"Marlborough",null,"Marlow",null,"Nelson",null,"Richmond",null,"Rindge",null,"Roxbury",null,"Stoddard",null,"Sullivan",null,"Surry",null,"Swanzey",null,"Troy",null,"Walpole",null,"Westmoreland",null,"Winchester"]
[null," ","Estimate","Margin of Error","Estimate","Margin of Error","Estimate","Margin of Error","Estimate","Margin of Error","Estimate","Margin of Error","Estimate","Margin of Error","Estimate","Margin of Error","Estimate","Margin of Error","Estimate","Margin of Error","Estimate","Margin of Error","Estimate","Margin of Error","Estimate","Margin of Error","Estimate","Margin of Error","Estimate","Margin of Error","Estimate","Margin of Error","Estimate","Margin of Error","Estimate","Margin of Error","Estimate","Margin of Error","Estimate","Margin of Error","Estimate","Margin of Error","Estimate","Margin of Error","Estimate","Margin of Error","Estimate","Margin of Error"]
[null,"Total:",753,73,1456,99,620,67,1121,88,247,34,428,65,1837,141,2209,134,8964,376,828,90,338,62,319,58,375,50,1785,129,88,16,461,67,258,36,345,43,2913,162,837,103,1515,123,687,79,1789,148]
[null,"Householder under 25 years:",8,9,0,11,3,4,0,11,4,7,2,4,0,11,22,38,730,192,0,11,0,11,6,11,2,5,136,58,1,2,13,14,0,11,5,5,58,49,56,46,88,55,12,10,0,11]
[null,"Less than $10,000",0,11,0,11,0,11,0,11,0,11,0,11,0,11,0,16,160,99,0,11,0,11,0,11,0,11,65,36,0,11,0,11,0,11,0,11,0,16,0,11,0,11,0,11,0,11]
[null,"$10,000 to $14,999",5,8,0,11,0,11,0,11,0,11,0,11,0,11,22,38,56,53,0,11,0,11,0,11,0,11,26,34,0,11,0,11,0,11,0,11,31,36,0,11,0,11,0,11,0,11]
[null,"$15,000 to $19,999",0,11,0,11,0,11,0,11,0,11,0,11,0,11,0,16,109,85,0,11,0,11,0,11,0,11,22,19,0,11,0,11,0,11,0,11,0,16,24,30,20,34,0,11,0,11]
[null,"$20,000 to $24,999",0,11,0,11,0,11,0,11,0,11,0,11,0,11,0,16,86,76,0,11,0,11,0,11,0,11,11,17,0,11,0,11,0,11,0,11,0,16,0,11,12,14,0,11,0,11]
[null,"$25,000 to $29,999",0,11,0,11,0,11,0,11,0,11,2,4,0,11,0,16,54,46,0,11,0,11,0,11,0,11,0,16,0,11,0,11,0,11,0,11,0,16,0,11,0,11,2,3,0,11]
[null,"$30,000 to $34,999",3,4,0,11,0,11,0,11,0,11,0,11,0,11,0,16,35,40,0,11,0,11,0,11,2,5,0,16,0,11,5,7,0,11,0,11,17,29,21,31,0,11,3,6,0,11]
[null,"$35,000 to $39,999",0,11,0,11,0,11,0,11,0,11,0,11,0,11,0,16,34,39,0,11,0,11,0,11,0,11,12,13,0,11,0,11,0,11,0,11,0,16,0,11,35,37,0,11,0,11]
[null,"$40,000 to $44,999",0,11,0,11,0,11,0,11,0,11,0,11,0,11,0,16,54,57,0,11,0,11,0,11,0,11,0,16,0,11,0,11,0,11,0,11,0,16,7,10,14,17,0,11,0,11]
[null,"$45,000 to $49,999",0,11,0,11,0,11,0,11,0,11,0,11,0,11,0,16,44,58,0,11,0,11,0,11,0,11,0,16,0,11,0,11,0,11,0,11,0,16,0,11,0,11,0,11,0,11]
[null,"$50,000 to $59,999",0,11,0,11,0,11,0,11,4,7,0,11,0,11,0,16,10,19,0,11,0,11,0,11,0,11,0,16,0,11,0,11,0,11,1,3,0,16,0,11,7,11,7,8,0,11]
[null,"$60,000 to $74,999",0,11,0,11,0,11,0,11,0,11,0,11,0,11,0,16,6,9,0,11,0,11,6,11,0,11,0,16,0,11,0,11,0,11,0,11,10,16,4,7,0,11,0,11,0,11]
[null,"$75,000 to $99,999",0,11,0,11,3,4,0,11,0,11,0,11,0,11,0,16,31,35,0,11,0,11,0,11,0,11,0,16,1,2,0,11,0,11,4,4,0,16,0,11,0,11,0,11,0,11]
[null,"$100,000 to $124,999",0,11,0,11,0,11,0,11,0,11,0,11,0,11,0,16,51,79,0,11,0,11,0,11,0,11,0,16,0,11,0,11,0,11,0,11,0,16,0,11,0,11,0,11,0,11]
[null,"$125,000 to $149,999",0,11,0,11,0,11,0,11,0,11,0,11,0,11,0,16,0,21,0,11,0,11,0,11,0,11,0,16,0,11,0,11,0,11,0,11,0,16,0,11,0,11,0,11,0,11]
[null,"$150,000 to $199,999",0,11,0,11,0,11,0,11,0,11,0,11,0,11,0,16,0,21,0,11,0,11,0,11,0,11,0,16,0,11,0,11,0,11,0,11,0,16,0,11,0,11,0,11,0,11]
[null,"$200,000 or more",0,11,0,11,0,11,0,11,0,11,0,11,0,11,0,16,0,21,0,11,0,11,0,11,0,11,0,16,0,11,8,13,0,11,0,11,0,16,0,11,0,11,0,11,0,11]
[null,"Householder 25 to 44 years:",204,40,364,131,143,48,283,73,56,22,75,26,522,127,635,113,2536,203,264,84,89,31,57,26,81,29,572,114,24,12,121,39,86,32,97,29,807,119,289,79,479,88,187,47,596,89]
[null,"Less than $10,000",3,4,24,27,3,5,0,11,2,4,0,11,22,25,13,21,147,82,0,11,5,7,0,11,0,11,17,21,0,11,0,11,0,11,0,11,5,10,16,26,12,20,0,11,51,46]
[null,"$10,000 to $14,999",11,11,0,11,0,11,7,10,2,5,0,11,14,22,22,35,83,69,0,11,0,11,6,9,0,11,16,19,0,11,0,11,2,3,0,11,19,32,5,7,9,16,0,11,27,27]
[null,"$15,000 to $19,999",12,14,0,11,5,7,0,11,0,11,0,11,11,16,0,16,68,61,17,27,0,11,2,4,0,11,16,19,0,11,0,11,9,12,0,11,0,16,0,11,37,38,0,11,69,69]
[null,"$20,000 to $24,999",0,11,0,11,13,19,20,27,0,11,0,11,15,23,12,19,72,68,44,49,0,11,2,3,0,11,35,42,0,11,0,11,4,5,6,7,22,27,34,32,13,22,10,16,19,21]
[null,"$25,000 to $29,999",18,22,0,11,22,20,4,6,0,11,4,7,32,37,61,58,127,81,5,8,0,11,4,5,0,11,8,13,0,11,9,12,0,11,0,11,0,16,27,31,25,24,0,11,42,50]
[null,"$30,000 to $34,999",28,22,0,11,13,15,17,27,0,11,5,7,14,22,0,16,107,64,6,8,0,11,4,5,12,13,17,26,7,7,9,13,7,8,2,3,74,94,7,11,43,41,3,5,69,55]
[null,"$35,000 to $39,999",8,7,0,11,0,11,8,11,0,11,0,11,45,69,0,16,38,36,16,16,0,11,0,11,3,5,37,33,0,11,0,11,4,5,13,15,0,16,32,39,59,54,3,5,52,51]
[null,"$40,000 to $44,999",3,4,0,11,0,11,27,22,20,17,7,11,20,23,8,19,107,68,0,11,2,3,3,5,6,8,57,48,6,8,9,14,5,5,7,8,40,41,38,41,0,11,12,11,13,20]
[null,"$45,000 to $49,999",0,11,0,11,7,9,51,51,2,5,9,14,55,54,20,31,187,118,5,7,0,11,2,3,0,11,0,16,0,11,4,6,0,11,5,8,41,42,0,11,7,11,18,18,0,11]
[null,"$50,000 to $59,999",26,18,0,11,0,11,10,13,2,3,9,10,86,67,42,44,307,169,41,37,27,19,2,4,6,8,33,32,0,11,8,8,3,6,17,13,103,69,38,24,20,18,8,8,33,40]
[null,"$60,000 to $74,999",21,15,79,103,24,15,42,42,7,7,5,8,26,29,94,83,320,115,67,45,11,11,0,11,8,8,80,50,3,3,44,25,21,15,10,10,94,64,24,20,107,58,33,24,77,59]
[null,"$75,000 to $99,999",31,19,71,64,21,18,62,35,17,9,18,10,155,76,144,100,491,164,34,20,12,10,8,9,35,23,130,48,4,5,18,17,7,7,25,15,141,89,41,25,41,36,57,27,115,71]
[null,"$100,000 to $124,999",26,23,72,42,16,15,18,17,2,3,8,9,27,42,100,90,204,77,15,14,21,18,10,13,8,8,91,54,0,11,13,11,14,18,3,4,152,89,11,14,88,51,18,13,0,11]
[null,"$125,000 to $149,999",0,11,40,63,9,13,8,11,2,2,0,11,0,11,37,46,108,63,14,19,11,10,0,11,3,5,13,16,0,11,3,4,6,7,4,6,48,50,7,10,11,18,4,6,16,26]
[null,"$150,000 to $199,999",7,7,72,49,10,10,9,12,0,11,3,5,0,11,57,76,110,52,0,11,0,11,5,8,0,11,9,15,2,3,4,5,2,4,5,5,35,47,4,6,7,11,16,16,13,21]
[null,"$200,000 or more",10,14,6,12,0,11,0,11,0,11,7,7,0,11,25,42,60,49,0,11,0,11,9,10,0,11,13,15,2,3,0,11,2,3,0,11,33,43,5,7,0,11,5,9,0,11]
[null,"Householder 45 to 64 years:",362,63,719,123,321,63,635,83,140,33,238,53,820,116,968,125,3295,228,345,64,153,54,190,52,236,48,747,97,42,14,222,50,121,24,160,34,1268,155,315,57,603,90,348,72,872,134]
[null,"Less than $10,000",3,4,27,30,18,14,7,10,13,13,0,11,37,49,34,34,162,72,18,16,0,11,3,4,13,15,27,26,5,7,9,10,0,11,8,10,14,24,9,11,32,41,3,4,18,21]
[null,"$10,000 to $14,999",19,17,12,17,0,11,28,30,0,11,0,11,17,19,22,27,113,51,0,11,3,4,0,11,3,5,52,46,2,3,3,4,12,10,0,11,33,40,0,11,15,22,7,9,32,26]
[null,"$15,000 to $19,999",16,14,13,20,3,4,19,17,8,11,8,12,67,65,23,26,108,54,7,11,2,4,0,11,9,11,10,12,0,11,4,5,3,4,2,3,29,31,0,11,30,34,0,11,0,11]
[null,"$20,000 to $24,999",18,13,0,11,23,20,52,52,0,11,41,38,39,35,38,36,152,90,7,11,6,6,9,8,3,5,21,16,0,11,2,5,9,10,3,4,63,73,15,16,1,2,4,6,82,48]
[null,"$25,000 to $29,999",21,20,14,22,3,5,23,21,13,15,0,11,26,30,131,79,123,93,7,10,0,11,12,10,10,9,6,11,2,3,15,13,6,6,3,5,45,43,5,8,6,9,7,8,59,55]
[null,"$30,000 to $34,999",9,11,15,22,9,11,34,43,3,5,16,17,26,19,25,28,140,75,5,7,11,15,10,9,4,6,38,34,1,3,9,8,5,5,2,4,35,41,25,21,52,51,4,6,84,63]
[null,"$35,000 to $39,999",0,11,14,21,0,11,32,26,13,17,6,6,73,76,12,19,183,90,0,11,12,12,28,37,11,9,50,40,0,11,0,11,2,5,2,3,34,47,0,11,0,11,12,11,48,34]
[null,"$40,000 to $44,999",13,9,24,33,28,21,7,9,9,8,15,14,24,27,38,31,89,52,40,36,30,44,2,3,13,17,8,12,2,3,28,23,2,3,6,6,89,65,24,27,6,9,17,14,33,33]
[null,"$45,000 to $49,999",11,13,87,66,18,17,26,19,12,14,3,4,55,64,25,27,102,77,8,12,3,6,5,6,45,31,12,14,0,11,15,17,0,11,5,4,53,83,24,23,31,30,20,18,60,36]
[null,"$50,000 to $59,999",53,24,15,22,53,30,34,21,16,10,17,16,115,59,140,87,331,99,33,25,0,11,3,4,3,4,53,33,5,4,10,14,4,7,2,3,133,74,0,11,48,35,23,14,137,87]
[null,"$60,000 to $74,999",62,37,92,78,34,18,66,41,10,8,9,8,153,67,179,94,262,87,22,20,32,18,3,4,33,16,73,49,5,5,41,25,12,9,12,10,184,82,33,28,128,61,22,19,107,53]
[null,"$75,000 to $99,999",51,21,154,98,31,18,136,58,24,13,38,16,80,41,110,52,511,154,111,45,23,15,39,20,20,12,137,53,11,8,14,13,39,21,39,21,110,57,85,48,127,68,107,40,82,49]
[null,"$100,000 to $124,999",41,26,135,77,50,24,67,35,8,7,48,25,71,42,116,83,417,121,35,21,7,6,8,6,30,16,143,58,2,3,38,22,15,10,10,6,199,102,60,31,45,32,45,24,31,33]
[null,"$125,000 to $149,999",29,24,32,34,3,5,42,25,2,3,19,13,15,19,24,27,212,93,28,21,6,7,20,18,26,21,48,29,4,7,20,16,7,6,40,24,160,93,9,14,8,12,24,21,34,42]
[null,"$150,000 to $199,999",0,11,72,54,29,23,47,35,9,7,6,6,16,19,19,23,199,81,13,14,16,19,20,15,9,8,22,21,2,3,10,15,0,11,11,7,44,49,8,13,44,50,12,9,34,31]
[null,"$200,000 or more",16,12,13,21,19,18,15,15,0,11,12,10,6,10,32,32,191,70,11,17,2,3,28,21,4,6,47,33,1,3,4,5,5,5,15,10,43,41,18,15,30,26,41,25,31,32]
[null,"Householder 65 years and over:",179,49,373,119,153,33,203,45,47,19,113,38,495,100,584,111,2403,167,219,58,96,32,66,23,56,18,330,74,21,11,105,29,51,24,83,23,780,114,177,58,345,93,140,52,321,69]
[null,"Less than $10,000",9,14,16,23,0,11,0,11,0,11,18,16,46,46,28,30,186,81,9,9,12,16,3,5,4,5,19,22,0,11,5,6,8,11,3,4,83,75,18,22,16,18,0,11,8,12]
[null,"$10,000 to $14,999",17,12,16,23,4,5,7,9,5,5,0,11,64,43,72,47,249,98,25,28,13,11,0,11,4,6,6,10,0,11,9,14,11,16,0,11,53,44,21,20,13,14,4,6,48,36]
[null,"$15,000 to $19,999",3,4,0,11,8,12,5,9,5,6,6,6,63,44,67,51,189,72,7,10,5,6,8,14,2,5,47,43,4,4,0,11,0,11,0,11,135,78,16,14,24,25,19,17,18,21]
[null,"$20,000 to $24,999",10,13,16,23,5,7,38,38,9,10,3,5,80,71,103,71,286,85,5,8,2,3,4,5,0,11,11,17,7,6,23,18,2,4,0,11,24,27,12,13,13,15,3,5,63,38]
[null,"$25,000 to $29,999",3,4,0,11,5,9,15,14,2,3,4,5,57,68,14,24,166,71,26,31,2,3,10,9,5,5,48,41,0,11,14,9,2,3,4,5,73,48,10,11,44,36,0,11,29,23]
[null,"$30,000 to $34,999",11,7,23,36,24,22,18,17,0,11,9,14,40,34,45,43,202,108,6,9,2,3,3,5,0,11,0,16,0,11,9,13,2,4,25,19,12,18,5,8,27,20,4,6,39,28]
[null,"$35,000 to $39,999",21,19,49,74,6,6,39,33,5,7,32,25,62,43,27,32,139,63,19,17,19,17,0,11,10,9,0,16,0,11,3,5,12,9,2,5,62,44,7,9,30,45,9,11,10,17]
[null,"$40,000 to $44,999",8,7,0,11,7,7,10,12,5,6,3,4,10,17,15,23,109,64,17,16,2,3,0,11,6,6,0,16,3,5,0,11,3,5,0,11,80,53,11,12,57,41,10,10,11,18]
[null,"$45,000 to $49,999",11,9,42,38,17,17,0,11,2,3,4,5,0,11,0,16,174,89,23,24,2,3,6,6,2,5,8,12,0,11,5,6,3,5,2,3,48,62,5,8,27,24,18,14,0,11]
[null,"$50,000 to $59,999",28,25,88,56,19,12,10,10,7,6,21,13,0,11,28,32,124,65,11,10,4,4,0,11,3,5,42,32,2,3,6,7,0,11,18,12,127,74,38,33,4,8,17,12,28,25]
[null,"$60,000 to $74,999",40,26,18,26,17,17,10,11,2,3,0,11,37,53,54,46,197,99,12,14,22,19,15,10,6,6,29,26,0,11,19,12,0,11,9,8,14,23,13,12,26,30,11,11,27,25]
[null,"$75,000 to $99,999",8,8,33,34,10,11,23,15,3,4,10,8,15,23,12,19,143,67,27,16,5,5,4,5,0,11,74,37,0,11,9,7,0,11,9,7,28,26,5,8,28,23,15,12,30,24]
[null,"$100,000 to $124,999",6,6,14,22,15,10,13,11,0,11,0,11,9,14,13,22,68,44,15,15,6,6,9,7,11,8,9,14,2,3,3,5,0,11,5,5,12,20,16,26,17,17,17,14,0,11]
[null,"$125,000 to $149,999",0,11,14,20,8,7,6,9,0,11,0,11,0,11,15,22,70,52,12,13,0,11,2,3,0,11,11,17,0,11,0,11,4,5,3,4,0,16,0,11,0,11,0,11,10,15]
[null,"$150,000 to $199,999",4,7,0,11,0,11,9,10,2,2,0,11,12,20,52,38,30,26,5,8,0,11,2,3,0,11,12,18,0,11,0,11,0,11,3,4,29,35,0,11,13,15,9,10,0,11]
[null,"$200,000 or more",0,11,44,68,8,8,0,11,0,11,3,5,0,11,39,35,71,50,0,11,0,11,0,11,3,6,14,20,3,5,0,11,4,6,0,11,0,16,0,11,6,9,4,6,0,11]

{"sheet":"DisabilityByAge","index":36,"n_rows":72,"n_cols":15,"rows_kept":72,"cut":false,"hidden":true,"merged":[[51,11,51,12],[51,13,51,14],[28,3,28,4],[28,5,28,6],[28,7,28,8],[28,9,28,10],[28,11,28,12],[28,13,28,14],[51,3,51,4],[51,5,51,6],[51,7,51,8],[51,9,51,10]]}
[]
[]
[]
[]
[null,{"$f":"CntyDataLink!A20","v":"Dublin"}]
[null,"SOCIAL CHARACTERISTICS"]
[]
[]
[null,"Disabilities By Age"]
[null,null,"Universe: Civilian Non-institutionalized Population"]
[]
[]
[]
[]
[]
[]
[]
[]
[]
[]
[]
[]
[]
[]
[]
[]
[]
[]
[null,null,null,"Under 5",null,"5 to 17 years",null,"18 to 34 years",null,"35 to 64 years",null,"65 to 74 years",null,"75 years and older"]
[null,null,null,"Estimate","Margin of Error","Estimate","Margin of Error","Estimate","Margin of Error","Estimate","Margin of Error","Estimate","Margin of Error","Estimate","Margin of Error"]
[null,"Total ",null,{"$f":"CntyDataLink!D112","v":81},{"$f":"CntyDataLink!E112","v":37.215588131856791},{"$f":"CntyDataLink!J112","v":246},{"$f":"CntyDataLink!K112","v":59.464274989274024},{"$f":"CntyDataLink!P112","v":199},{"$f":"CntyDataLink!Q112","v":60.835844697020519},{"$f":"CntyDataLink!V112","v":742},{"$f":"CntyDataLink!W112","v":127.66362050325849},{"$f":"CntyDataLink!AB112","v":315},{"$f":"CntyDataLink!AC112","v":83.737685661833282},{"$f":"CntyDataLink!AH112","v":128},{"$f":"CntyDataLink!AI112","v":57.245087125446844}]
[]
[null,"With a disability:",null,{"$f":"CntyDataLink!F112","v":0},{"$f":"CntyDataLink!G112","v":16.970562748477139},{"$f":"CntyDataLink!L112","v":0},{"$f":"CntyDataLink!M112","v":16.970562748477139},{"$f":"CntyDataLink!R112","v":33},{"$f":"CntyDataLink!S112","v":40.80441152620633},{"$f":"CntyDataLink!X112","v":38},{"$f":"CntyDataLink!Y112","v":21.470910553583888},{"$f":"CntyDataLink!AD112","v":29},{"$f":"CntyDataLink!AE112","v":23.345235059857504},{"$f":"CntyDataLink!AJ112","v":26},{"$f":"CntyDataLink!AK112","v":44.407206622349037}]
[]
[null,"With one disability:",null,{"$f":"CntyDataLink!CX112","v":0},{"$f":"CntyDataLink!CY112","v":12},{"$f":"CntyDataLink!DB112","v":56},{"$f":"CntyDataLink!DC112","v":36},{"$f":"CntyDataLink!DF112","v":32},{"$f":"CntyDataLink!DG112","v":31},{"$f":"CntyDataLink!DJ112","v":0},{"$f":"CntyDataLink!DK112","v":0},{"$f":"CntyDataLink!DN112","v":0},{"$f":"CntyDataLink!DO112","v":0},{"$f":"CntyDataLink!DR112","v":0},{"$f":"CntyDataLink!DS112","v":0}]
[]
[null,"Type of disability"]
[null,null,"Hearing disability",{"$f":"CntyDataLink!AN112","v":0},{"$f":"CntyDataLink!AO112","v":16.970562748477139},{"$f":"CntyDataLink!AP112","v":0},{"$f":"CntyDataLink!AQ112","v":16.970562748477139},{"$f":"CntyDataLink!AR112","v":0},{"$f":"CntyDataLink!AS112","v":16.970562748477139},{"$f":"CntyDataLink!AT112","v":8},{"$f":"CntyDataLink!AU112","v":13.892443989449804},{"$f":"CntyDataLink!AV112","v":19},{"$f":"CntyDataLink!AW112","v":17.464249196572979},{"$f":"CntyDataLink!AX112","v":6},{"$f":"CntyDataLink!AY112","v":13.416407864998739}]
[null,null,"Visual disability",{"$f":"CntyDataLink!AZ112","v":0},{"$f":"CntyDataLink!BA112","v":16.970562748477139},{"$f":"CntyDataLink!BB112","v":0},{"$f":"CntyDataLink!BC112","v":16.970562748477139},{"$f":"CntyDataLink!BD112","v":0},{"$f":"CntyDataLink!BE112","v":16.970562748477139},{"$f":"CntyDataLink!BF112","v":10},{"$f":"CntyDataLink!BG112","v":17.691806012954132},{"$f":"CntyDataLink!BH112","v":0},{"$f":"CntyDataLink!BI112","v":16.970562748477139},{"$f":"CntyDataLink!BJ112","v":2},{"$f":"CntyDataLink!BK112","v":12.369316876852981}]
[null,null,"Cognitive disability","NA","NA",{"$f":"CntyDataLink!BL112","v":0},{"$f":"CntyDataLink!BM112","v":16.970562748477139},{"$f":"CntyDataLink!BN112","v":13},{"$f":"CntyDataLink!BO112","v":24.186773244895647},{"$f":"CntyDataLink!BP112","v":2},{"$f":"CntyDataLink!BQ112","v":12.369316876852981},{"$f":"CntyDataLink!BR112","v":0},{"$f":"CntyDataLink!BS112","v":16.970562748477139},{"$f":"CntyDataLink!BT112","v":3},{"$f":"CntyDataLink!BU112","v":12.649110640673518}]
[null,null,"Ambulatory disability","NA","NA",{"$f":"CntyDataLink!BV112","v":0},{"$f":"CntyDataLink!BW112","v":16.970562748477139},{"$f":"CntyDataLink!BX112","v":0},{"$f":"CntyDataLink!BY112","v":16.970562748477139},{"$f":"CntyDataLink!BZ112","v":0},{"$f":"CntyDataLink!CA112","v":16.970562748477139},{"$f":"CntyDataLink!CB112","v":0},{"$f":"CntyDataLink!CC112","v":16.970562748477139},{"$f":"CntyDataLink!CD112","v":7},{"$f":"CntyDataLink!CE112","v":5.8309518948453007}]
[null,null,"Self-care disability","NA","NA",{"$f":"CntyDataLink!CF112","v":0},{"$f":"CntyDataLink!CG112","v":16.970562748477139},{"$f":"CntyDataLink!CH112","v":0},{"$f":"CntyDataLink!CI112","v":16.970562748477139},{"$f":"CntyDataLink!CJ112","v":0},{"$f":"CntyDataLink!CK112","v":16.970562748477139},{"$f":"CntyDataLink!CL112","v":0},{"$f":"CntyDataLink!CM112","v":16.970562748477139},{"$f":"CntyDataLink!CN112","v":7},{"$f":"CntyDataLink!CO112","v":5.8309518948453007}]
[null,null,"Independent living disability","NA","NA","NA","NA",{"$f":"CntyDataLink!CP112","v":13},{"$f":"CntyDataLink!CQ112","v":24.186773244895647},{"$f":"CntyDataLink!CR112","v":7},{"$f":"CntyDataLink!CS112","v":7.6157731058639087},{"$f":"CntyDataLink!CT112","v":0},{"$f":"CntyDataLink!CU112","v":16.970562748477139},{"$f":"CntyDataLink!CV112","v":22},{"$f":"CntyDataLink!CW112","v":43.289721643826724}]
[]
[null,"With two or more types of disability:",null,{"$f":"CntyDataLink!CZ112","v":0},{"$f":"CntyDataLink!DA112","v":12},{"$f":"CntyDataLink!DD112","v":15},{"$f":"CntyDataLink!DE112","v":21},{"$f":"CntyDataLink!DH112","v":23},{"$f":"CntyDataLink!DI112","v":43},{"$f":"CntyDataLink!DL112","v":0},{"$f":"CntyDataLink!DM112","v":0},{"$f":"CntyDataLink!DP112","v":0},{"$f":"CntyDataLink!DQ112","v":0},{"$f":"CntyDataLink!DT112","v":0},{"$f":"CntyDataLink!DU112","v":0}]
[]
[null,"No disability",null,{"$f":"CntyDataLink!H112","v":81},{"$f":"CntyDataLink!I112","v":37.215588131856791},{"$f":"CntyDataLink!N112","v":246},{"$f":"CntyDataLink!O112","v":59.464274989274024},{"$f":"CntyDataLink!T112","v":166},{"$f":"CntyDataLink!U112","v":51.97114584074513},{"$f":"CntyDataLink!Z112","v":704},{"$f":"CntyDataLink!AA112","v":121.03718436910205},{"$f":"CntyDataLink!AF112","v":286},{"$f":"CntyDataLink!AG112","v":82.97590011563598},{"$f":"CntyDataLink!AL112","v":102},{"$f":"CntyDataLink!AM112","v":36.76955262170047}]
[null,"Source: 2018-2022 American Community Survey Tables B18101;  B18102; B18103; B18104; B18105; B18106; and B18107"]
[null,"NA indicates that the American Community Survey does not calculate the number for that disability."]
[]
[null,"Percent of Population with Disabilities"]
[null,null,null,"Under 5",null,"5 to 17 years",null,"18 to 34 years",null,"35 to 64 years",null,"65 to 74 years",null,"75 years and older"]
[]
[null,"With a disability:",null,{"$f":"D33/D$31","v":0},null,{"$f":"F33/F$31","v":0},null,{"$f":"H33/H$31","v":0.16582914572864321},null,{"$f":"J33/J$31","v":5.1212938005390833E-2},null,{"$f":"L33/L$31","v":9.2063492063492069E-2},null,{"$f":"N33/N$31","v":0.203125}]
[]
[null,"Type of disability"]
[null,null,"Hearing disability",{"$f":"D38/D$31","v":0},null,{"$f":"F38/F$31","v":0},null,{"$f":"H38/H$31","v":0},null,{"$f":"J38/J$31","v":1.078167115902965E-2},null,{"$f":"L38/L$31","v":6.0317460317460318E-2},null,{"$f":"N38/N$31","v":4.6875E-2}]
[null,null,"Visual disability",{"$f":"D39/D$31","v":0},null,{"$f":"F39/F$31","v":0},null,0,null,1.3477088948787063E-2,null,0,null,1.5625E-2]
[null,null,"Cognitive disability","NA",null,{"$f":"F40/F$31","v":0},null,6.5326633165829151E-2,null,2.6954177897574125E-3,null,0,null,2.34375E-2]
[null,null,"Ambulatory disability","NA",null,{"$f":"F41/F$31","v":0},null,0,null,0,null,0,null,5.46875E-2]
[null,null,"Self-care disability","NA",null,{"$f":"F42/F$31","v":0},null,0,null,0,null,0,null,5.46875E-2]
[null,null,"Independent living disability","NA",null,"NA",null,6.5326633165829151E-2,null,9.433962264150943E-3,null,0,null,0.171875]
[]
[null,"With two or more types of disability:",null,{"$f":"D45/D$31","v":0},null,{"$f":"F45/F$31","v":6.097560975609756E-2},null,{"$f":"H45/H$31","v":0.11557788944723618},null,{"$f":"J45/J$31","v":0},null,{"$f":"L45/L$31","v":0},null,{"$f":"N45/N$31","v":0}]
[]
[null,"No disability",null,{"$f":"D47/D$31","v":1},null,{"$f":"F47/F$31","v":1},null,{"$f":"H47/H$31","v":0.83417085427135673},null,{"$f":"J47/J$31","v":0.94878706199460916},null,{"$f":"L47/L$31","v":0.90793650793650793},null,{"$f":"N47/N$31","v":0.796875}]
[]
[]
[null,"Source: 2018-2022 American Community Survey Tables B18101;  B18102; B18103; B18104; B18105; B18106; and B18107"]
[null,"NA indicates that the American Community Survey does not calculate the number for that disability."]
[]
[null,"Data from the American Community Survey are estimates."]

{"sheet":"DisabilityByAgePrior5YearEst","index":37,"n_rows":72,"n_cols":15,"rows_kept":72,"cut":false,"hidden":true,"merged":[[51,13,51,14],[28,3,28,4],[28,5,28,6],[28,7,28,8],[28,9,28,10],[28,11,28,12],[28,13,28,14],[51,3,51,4],[51,5,51,6],[51,7,51,8],[51,9,51,10],[51,11,51,12]]}
[]
[]
[]
[]
[null,{"$f":"CntyDataLink!A20","v":"Dublin"}]
[null,"SOCIAL CHARACTERISTICS"]
[]
[]
[null,"Disabilities By Age"]
[null,null,"Universe: Civilian Non-institutionalized Population"]
[]
[]
[]
[]
[]
[]
[]
[]
[]
[]
[]
[]
[]
[]
[]
[]
[]
[]
[null,null,null,"Under 5",null,"5 to 17 years",null,"18 to 34 years",null,"35 to 64 years",null,"65 to 74 years",null,"75 years and older"]
[null,null,null,"Estimate","Margin of Error","Estimate","Margin of Error","Estimate","Margin of Error","Estimate","Margin of Error","Estimate","Margin of Error","Estimate","Margin of Error"]
[null,"Total ",null,{"$f":"CntyDataLinkPrior5YearEstimates!D112","v":42},{"$f":"CntyDataLinkPrior5YearEstimates!E112","v":26.92582403567252},{"$f":"CntyDataLinkPrior5YearEstimates!J112","v":234},{"$f":"CntyDataLinkPrior5YearEstimates!K112","v":62.433965115151864},{"$f":"CntyDataLinkPrior5YearEstimates!P112","v":256},{"$f":"CntyDataLinkPrior5YearEstimates!Q112","v":67.007462271003817},{"$f":"CntyDataLinkPrior5YearEstimates!V112","v":678},{"$f":"CntyDataLinkPrior5YearEstimates!W112","v":81.394102980498531},{"$f":"CntyDataLinkPrior5YearEstimates!AB112","v":180},{"$f":"CntyDataLinkPrior5YearEstimates!AC112","v":38.600518131237564},{"$f":"CntyDataLinkPrior5YearEstimates!AH112","v":97},{"$f":"CntyDataLinkPrior5YearEstimates!AI112","v":31.11269837220809}]
[]
[null,"With a disability:",null,{"$f":"CntyDataLinkPrior5YearEstimates!F112","v":0},{"$f":"CntyDataLinkPrior5YearEstimates!G112","v":15.556349186104045},{"$f":"CntyDataLinkPrior5YearEstimates!L112","v":17},{"$f":"CntyDataLinkPrior5YearEstimates!M112","v":21.95449840010015},{"$f":"CntyDataLinkPrior5YearEstimates!R112","v":16},{"$f":"CntyDataLinkPrior5YearEstimates!S112","v":22.825424421026653},{"$f":"CntyDataLinkPrior5YearEstimates!X112","v":29},{"$f":"CntyDataLinkPrior5YearEstimates!Y112","v":21.587033144922902},{"$f":"CntyDataLinkPrior5YearEstimates!AD112","v":35},{"$f":"CntyDataLinkPrior5YearEstimates!AE112","v":17.029386365926403},{"$f":"CntyDataLinkPrior5YearEstimates!AJ112","v":23},{"$f":"CntyDataLinkPrior5YearEstimates!AK112","v":15.811388300841896}]
[]
[null,"With one disability:",null,{"$f":"CntyDataLinkPrior5YearEstimates!CX112","v":14},{"$f":"CntyDataLinkPrior5YearEstimates!CY112","v":18},{"$f":"CntyDataLinkPrior5YearEstimates!DB112","v":42},{"$f":"CntyDataLinkPrior5YearEstimates!DC112","v":29},{"$f":"CntyDataLinkPrior5YearEstimates!DF112","v":37},{"$f":"CntyDataLinkPrior5YearEstimates!DG112","v":19},{"$f":"CntyDataLinkPrior5YearEstimates!DJ112","v":206},{"$f":"CntyDataLinkPrior5YearEstimates!DK112","v":61},{"$f":"CntyDataLinkPrior5YearEstimates!DN112","v":0},{"$f":"CntyDataLinkPrior5YearEstimates!DO112","v":0},{"$f":"CntyDataLinkPrior5YearEstimates!DR112","v":0},{"$f":"CntyDataLinkPrior5YearEstimates!DS112","v":0}]
[]
[null,"Type of disability"]
[null,null,"Hearing disability",{"$f":"CntyDataLinkPrior5YearEstimates!AN112","v":0},{"$f":"CntyDataLinkPrior5YearEstimates!AO112","v":15.556349186104045},{"$f":"CntyDataLinkPrior5YearEstimates!AP112","v":11},{"$f":"CntyDataLinkPrior5YearEstimates!AQ112","v":21.095023109728988},{"$f":"CntyDataLinkPrior5YearEstimates!AR112","v":0},{"$f":"CntyDataLinkPrior5YearEstimates!AS112","v":15.556349186104045},{"$f":"CntyDataLinkPrior5YearEstimates!AT112","v":7},{"$f":"CntyDataLinkPrior5YearEstimates!AU112","v":7.0710678118654755},{"$f":"CntyDataLinkPrior5YearEstimates!AV112","v":12},{"$f":"CntyDataLinkPrior5YearEstimates!AW112","v":14.212670403551895},{"$f":"CntyDataLinkPrior5YearEstimates!AX112","v":12},{"$f":"CntyDataLinkPrior5YearEstimates!AY112","v":13.601470508735444}]
[null,null,"Visual disability",{"$f":"CntyDataLinkPrior5YearEstimates!AZ112","v":0},{"$f":"CntyDataLinkPrior5YearEstimates!BA112","v":15.556349186104045},{"$f":"CntyDataLinkPrior5YearEstimates!BB112","v":3},{"$f":"CntyDataLinkPrior5YearEstimates!BC112","v":12.083045973594572},{"$f":"CntyDataLinkPrior5YearEstimates!BD112","v":0},{"$f":"CntyDataLinkPrior5YearEstimates!BE112","v":15.556349186104045},{"$f":"CntyDataLinkPrior5YearEstimates!BF112","v":3},{"$f":"CntyDataLinkPrior5YearEstimates!BG112","v":11.704699910719626},{"$f":"CntyDataLinkPrior5YearEstimates!BH112","v":6},{"$f":"CntyDataLinkPrior5YearEstimates!BI112","v":5.6568542494923806},{"$f":"CntyDataLinkPrior5YearEstimates!BJ112","v":6},{"$f":"CntyDataLinkPrior5YearEstimates!BK112","v":5.6568542494923806}]
[null,null,"Cognitive disability","NA","NA",{"$f":"CntyDataLinkPrior5YearEstimates!BL112","v":6},{"$f":"CntyDataLinkPrior5YearEstimates!BM112","v":13.038404810405298},{"$f":"CntyDataLinkPrior5YearEstimates!BN112","v":5},{"$f":"CntyDataLinkPrior5YearEstimates!BO112","v":15.556349186104045},{"$f":"CntyDataLinkPrior5YearEstimates!BP112","v":3},{"$f":"CntyDataLinkPrior5YearEstimates!BQ112","v":12.083045973594572},{"$f":"CntyDataLinkPrior5YearEstimates!BR112","v":0},{"$f":"CntyDataLinkPrior5YearEstimates!BS112","v":15.556349186104045},{"$f":"CntyDataLinkPrior5YearEstimates!BT112","v":9},{"$f":"CntyDataLinkPrior5YearEstimates!BU112","v":13.601470508735444}]
[null,null,"Ambulatory disability","NA","NA",{"$f":"CntyDataLinkPrior5YearEstimates!BV112","v":3},{"$f":"CntyDataLinkPrior5YearEstimates!BW112","v":12.083045973594572},{"$f":"CntyDataLinkPrior5YearEstimates!BX112","v":11},{"$f":"CntyDataLinkPrior5YearEstimates!BY112","v":20.248456731316587},{"$f":"CntyDataLinkPrior5YearEstimates!BZ112","v":11},{"$f":"CntyDataLinkPrior5YearEstimates!CA112","v":19.416487838947599},{"$f":"CntyDataLinkPrior5YearEstimates!CB112","v":20},{"$f":"CntyDataLinkPrior5YearEstimates!CC112","v":13.892443989449804},{"$f":"CntyDataLinkPrior5YearEstimates!CD112","v":14},{"$f":"CntyDataLinkPrior5YearEstimates!CE112","v":14.866068747318506}]
[null,null,"Self-care disability","NA","NA",{"$f":"CntyDataLinkPrior5YearEstimates!CF112","v":3},{"$f":"CntyDataLinkPrior5YearEstimates!CG112","v":12.083045973594572},{"$f":"CntyDataLinkPrior5YearEstimates!CH112","v":0},{"$f":"CntyDataLinkPrior5YearEstimates!CI112","v":15.556349186104045},{"$f":"CntyDataLinkPrior5YearEstimates!CJ112","v":3},{"$f":"CntyDataLinkPrior5YearEstimates!CK112","v":12.083045973594572},{"$f":"CntyDataLinkPrior5YearEstimates!CL112","v":6},{"$f":"CntyDataLinkPrior5YearEstimates!CM112","v":5.6568542494923806},{"$f":"CntyDataLinkPrior5YearEstimates!CN112","v":9},{"$f":"CntyDataLinkPrior5YearEstimates!CO112","v":13.601470508735444}]
[null,null,"Independent living disability","NA","NA","NA","NA",{"$f":"CntyDataLinkPrior5YearEstimates!CP112","v":0},{"$f":"CntyDataLinkPrior5YearEstimates!CQ112","v":15.556349186104045},{"$f":"CntyDataLinkPrior5YearEstimates!CR112","v":8},{"$f":"CntyDataLinkPrior5YearEstimates!CS112","v":14.866068747318506},{"$f":"CntyDataLinkPrior5YearEstimates!CT112","v":6},{"$f":"CntyDataLinkPrior5YearEstimates!CU112","v":12.529964086141668},{"$f":"CntyDataLinkPrior5YearEstimates!CV112","v":9},{"$f":"CntyDataLinkPrior5YearEstimates!CW112","v":13.601470508735444}]
[]
[null,"With two or more types of disability:",null,{"$f":"CntyDataLinkPrior5YearEstimates!CZ112","v":3},{"$f":"CntyDataLinkPrior5YearEstimates!DA112","v":5},{"$f":"CntyDataLinkPrior5YearEstimates!DD112","v":3},{"$f":"CntyDataLinkPrior5YearEstimates!DE112","v":5},{"$f":"CntyDataLinkPrior5YearEstimates!DH112","v":21},{"$f":"CntyDataLinkPrior5YearEstimates!DI112","v":16},{"$f":"CntyDataLinkPrior5YearEstimates!DL112","v":0},{"$f":"CntyDataLinkPrior5YearEstimates!DM112","v":0},{"$f":"CntyDataLinkPrior5YearEstimates!DP112","v":0},{"$f":"CntyDataLinkPrior5YearEstimates!DQ112","v":0},{"$f":"CntyDataLinkPrior5YearEstimates!DT112","v":19295},{"$f":"CntyDataLinkPrior5YearEstimates!DU112","v":901}]
[]
[null,"No disability",null,{"$f":"CntyDataLinkPrior5YearEstimates!H112","v":42},{"$f":"CntyDataLinkPrior5YearEstimates!I112","v":26.92582403567252},{"$f":"CntyDataLinkPrior5YearEstimates!N112","v":217},{"$f":"CntyDataLinkPrior5YearEstimates!O112","v":59.941638282582836},{"$f":"CntyDataLinkPrior5YearEstimates!T112","v":240},{"$f":"CntyDataLinkPrior5YearEstimates!U112","v":65.215028942721474},{"$f":"CntyDataLinkPrior5YearEstimates!Z112","v":649},{"$f":"CntyDataLinkPrior5YearEstimates!AA112","v":77.336925203941234},{"$f":"CntyDataLinkPrior5YearEstimates!AF112","v":145},{"$f":"CntyDataLinkPrior5YearEstimates!AG112","v":36.235341863986875},{"$f":"CntyDataLinkPrior5YearEstimates!AL112","v":74},{"$f":"CntyDataLinkPrior5YearEstimates!AM112","v":29.732137494637012}]
[null,"Source: 2013-2017 American Community Survey Tables B18101;  B18102; B18103; B18104; B18105; B18106;  and B18107"]
[null,"NA indicates that the American Community Survey does not calculate the number for that disability."]
[null,"Percent of Population with Disabilities"]
[]
[null,null,null,"Under 5",null,"5 to 17 years",null,"18 to 34 years",null,"35 to 64 years",null,"65 to 74 years",null,"75 years and older"]
[]
[null,"With a disability:",null,{"$f":"D33/D$31","v":0},null,{"$f":"F33/F$31","v":7.2649572649572655E-2},null,{"$f":"H33/H$31","v":6.25E-2},null,{"$f":"J33/J$31","v":4.2772861356932153E-2},null,{"$f":"L33/L$31","v":0.19444444444444445},null,{"$f":"N33/N$31","v":0.23711340206185566}]
[]
[null,"Type of disability"]
[null,null,"Hearing disability",{"$f":"D38/D$31","v":0},null,{"$f":"F38/F$31","v":4.7008547008547008E-2},null,{"$f":"H38/H$31","v":0},null,{"$f":"J38/J$31","v":1.0324483775811209E-2},null,{"$f":"L38/L$31","v":6.6666666666666666E-2},null,{"$f":"N38/N$31","v":0.12371134020618557}]
[null,null,"Visual disability",{"$f":"D39/D$31","v":0},null,{"$f":"F39/F$31","v":1.282051282051282E-2},null,0,null,4.4247787610619468E-3,null,3.3333333333333333E-2,null,6.1855670103092786E-2]
[null,null,"Cognitive disability","NA",null,{"$f":"F40/F$31","v":2.564102564102564E-2},null,1.953125E-2,null,4.4247787610619468E-3,null,0,null,9.2783505154639179E-2]
[null,null,"Ambulatory disability","NA",null,{"$f":"F41/F$31","v":1.282051282051282E-2},null,4.296875E-2,null,1.6224188790560472E-2,null,0.1111111111111111,null,0.14432989690721648]
[null,null,"Self-care disability","NA",null,{"$f":"F42/F$31","v":1.282051282051282E-2},null,0,null,4.4247787610619468E-3,null,3.3333333333333333E-2,null,9.2783505154639179E-2]
[null,null,"Independent living disability","NA",null,"NA",null,0,null,1.1799410029498525E-2,null,3.3333333333333333E-2,null,9.2783505154639179E-2]
[]
[]
[]
[null,"No disability",null,{"$f":"D47/D$31","v":1},null,{"$f":"F47/F$31","v":0.92735042735042739},null,{"$f":"H47/H$31","v":0.9375},null,{"$f":"J47/J$31","v":0.95722713864306785},null,{"$f":"L47/L$31","v":0.80555555555555558},null,{"$f":"N47/N$31","v":0.76288659793814428}]
[]
[]
[null,"Source: 2013-2017 American Community Survey Tables B18101;  B18102; B18103; B18104; B18105; B18106;  and B18107"]
[null,"NA indicates that the American Community Survey does not calculate the number for that disability."]
[]
[null,"Data from the American Community Survey are estimates."]

{"sheet":"SData_B18101_DisabilityAge","index":38,"n_rows":69,"n_cols":82,"rows_kept":69,"cut":false,"hidden":true,"merged":[]}
["GEO_ID","GEO_ID2","SUMLEVEL","GEO_NAME",{"$f":"[1]ACS_16_5YR_B18101_with_ann!E1","v":"B18101_001M"},{"$f":"[1]ACS_16_5YR_B18101_with_ann!F1","v":"B18101_002E"},{"$f":"[1]ACS_16_5YR_B18101_with_ann!G1","v":"B18101_002M"},{"$f":"[1]ACS_16_5YR_B18101_with_ann!H1","v":"B18101_003E"},{"$f":"[1]ACS_16_5YR_B18101_with_ann!I1","v":"B18101_003M"},{"$f":"[1]ACS_16_5YR_B18101_with_ann!J1","v":"B18101_004E"},{"$f":"[1]ACS_16_5YR_B18101_with_ann!K1","v":"B18101_004M"},{"$f":"[1]ACS_16_5YR_B18101_with_ann!L1","v":"B18101_005E"},{"$f":"[1]ACS_16_5YR_B18101_with_ann!M1","v":"B18101_005M"},{"$f":"[1]ACS_16_5YR_B18101_with_ann!N1","v":"B18101_006E"},{"$f":"[1]ACS_16_5YR_B18101_with_ann!O1","v":"B18101_006M"},{"$f":"[1]ACS_16_5YR_B18101_with_ann!P1","v":"B18101_007E"},{"$f":"[1]ACS_16_5YR_B18101_with_ann!Q1","v":"B18101_007M"},{"$f":"[1]ACS_16_5YR_B18101_with_ann!R1","v":"B18101_008E"},{"$f":"[1]ACS_16_5YR_B18101_with_ann!S1","v":"B18101_008M"},{"$f":"[1]ACS_16_5YR_B18101_with_ann!T1","v":"B18101_009E"},{"$f":"[1]ACS_16_5YR_B18101_with_ann!U1","v":"B18101_009M"},{"$f":"[1]ACS_16_5YR_B18101_with_ann!V1","v":"B18101_010E"},{"$f":"[1]ACS_16_5YR_B18101_with_ann!W1","v":"B18101_010M"},{"$f":"[1]ACS_16_5YR_B18101_with_ann!X1","v":"B18101_011E"},{"$f":"[1]ACS_16_5YR_B18101_with_ann!Y1","v":"B18101_011M"},{"$f":"[1]ACS_16_5YR_B18101_with_ann!Z1","v":"B18101_012E"},{"$f":"[1]ACS_16_5YR_B18101_with_ann!AA1","v":"B18101_012M"},{"$f":"[1]ACS_16_5YR_B18101_with_ann!AB1","v":"B18101_013E"},{"$f":"[1]ACS_16_5YR_B18101_with_ann!AC1","v":"B18101_013M"},{"$f":"[1]ACS_16_5YR_B18101_with_ann!AD1","v":"B18101_014E"},{"$f":"[1]ACS_16_5YR_B18101_with_ann!AE1","v":"B18101_014M"},{"$f":"[1]ACS_16_5YR_B18101_with_ann!AF1","v":"B18101_015E"},{"$f":"[1]ACS_16_5YR_B18101_with_ann!AG1","v":"B18101_015M"},{"$f":"[1]ACS_16_5YR_B18101_with_ann!AH1","v":"B18101_016E"},{"$f":"[1]ACS_16_5YR_B18101_with_ann!AI1","v":"B18101_016M"},{"$f":"[1]ACS_16_5YR_B18101_with_ann!AJ1","v":"B18101_017E"},{"$f":"[1]ACS_16_5YR_B18101_with_ann!AK1","v":"B18101_017M"},{"$f":"[1]ACS_16_5YR_B18101_with_ann!AL1","v":"B18101_018E"},{"$f":"[1]ACS_16_5YR_B18101_with_ann!AM1","v":"B18101_018M"},{"$f":"[1]ACS_16_5YR_B18101_with_ann!AN1","v":"B18101_019E"},{"$f":"[1]ACS_16_5YR_B18101_with_ann!AO1","v":"B18101_019M"},{"$f":"[1]ACS_16_5YR_B18101_with_ann!AP1","v":"B18101_020E"},{"$f":"[1]ACS_16_5YR_B18101_with_ann!AQ1","v":"B18101_020M"},{"$f":"[1]ACS_16_5YR_B18101_with_ann!AR1","v":"B18101_021E"},{"$f":"[1]ACS_16_5YR_B18101_with_ann!AS1","v":"B18101_021M"},{"$f":"[1]ACS_16_5YR_B18101_with_ann!AT1","v":"B18101_022E"},{"$f":"[1]ACS_16_5YR_B18101_with_ann!AU1","v":"B18101_022M"},{"$f":"[1]ACS_16_5YR_B18101_with_ann!AV1","v":"B18101_023E"},{"$f":"[1]ACS_16_5YR_B18101_with_ann!AW1","v":"B18101_023M"},{"$f":"[1]ACS_16_5YR_B18101_with_ann!AX1","v":"B18101_024E"},{"$f":"[1]ACS_16_5YR_B18101_with_ann!AY1","v":"B18101_024M"},{"$f":"[1]ACS_16_5YR_B18101_with_ann!AZ1","v":"B18101_025E"},{"$f":"[1]ACS_16_5YR_B18101_with_ann!BA1","v":"B18101_025M"},{"$f":"[1]ACS_16_5YR_B18101_with_ann!BB1","v":"B18101_026E"},{"$f":"[1]ACS_16_5YR_B18101_with_ann!BC1","v":"B18101_026M"},{"$f":"[1]ACS_16_5YR_B18101_with_ann!BD1","v":"B18101_027E"},{"$f":"[1]ACS_16_5YR_B18101_with_ann!BE1","v":"B18101_027M"},{"$f":"[1]ACS_16_5YR_B18101_with_ann!BF1","v":"B18101_028E"},{"$f":"[1]ACS_16_5YR_B18101_with_ann!BG1","v":"B18101_028M"},{"$f":"[1]ACS_16_5YR_B18101_with_ann!BH1","v":"B18101_029E"},{"$f":"[1]ACS_16_5YR_B18101_with_ann!BI1","v":"B18101_029M"},{"$f":"[1]ACS_16_5YR_B18101_with_ann!BJ1","v":"B18101_030E"},{"$f":"[1]ACS_16_5YR_B18101_with_ann!BK1","v":"B18101_030M"},{"$f":"[1]ACS_16_5YR_B18101_with_ann!BL1","v":"B18101_031E"},{"$f":"[1]ACS_16_5YR_B18101_with_ann!BM1","v":"B18101_031M"},{"$f":"[1]ACS_16_5YR_B18101_with_ann!BN1","v":"B18101_032E"},{"$f":"[1]ACS_16_5YR_B18101_with_ann!BO1","v":"B18101_032M"},{"$f":"[1]ACS_16_5YR_B18101_with_ann!BP1","v":"B18101_033E"},{"$f":"[1]ACS_16_5YR_B18101_with_ann!BQ1","v":"B18101_033M"},{"$f":"[1]ACS_16_5YR_B18101_with_ann!BR1","v":"B18101_034E"},{"$f":"[1]ACS_16_5YR_B18101_with_ann!BS1","v":"B18101_034M"},{"$f":"[1]ACS_16_5YR_B18101_with_ann!BT1","v":"B18101_035E"},{"$f":"[1]ACS_16_5YR_B18101_with_ann!BU1","v":"B18101_035M"},{"$f":"[1]ACS_16_5YR_B18101_with_ann!BV1","v":"B18101_036E"},{"$f":"[1]ACS_16_5YR_B18101_with_ann!BW1","v":"B18101_036M"},{"$f":"[1]ACS_16_5YR_B18101_with_ann!BX1","v":"B18101_037E"},{"$f":"[1]ACS_16_5YR_B18101_with_ann!BY1","v":"B18101_037M"},{"$f":"[1]ACS_16_5YR_B18101_with_ann!BZ1","v":"B18101_038E"},{"$f":"[1]ACS_16_5YR_B18101_with_ann!CA1","v":"B18101_038M"},{"$f":"[1]ACS_16_5YR_B18101_with_ann!CB1","v":"B18101_039E"},{"$f":"[1]ACS_16_5YR_B18101_with_ann!CC1","v":"B18101_039M"},{"$f":"[1]ACS_16_5YR_B18101_with_ann!CD1","v":0}]
["Geography Identifier","Geography Identifier","Geographic Summary Level","Geography",{"$f":"[1]ACS_16_5YR_B18101_with_ann!D2","v":"Estimate!!Total:"},{"$f":"[1]ACS_16_5YR_B18101_with_ann!E2","v":"Margin of Error!!Total:"},{"$f":"[1]ACS_16_5YR_B18101_with_ann!F2","v":"Estimate!!Total:!!Male:"},{"$f":"[1]ACS_16_5YR_B18101_with_ann!G2","v":"Margin of Error!!Total:!!Male:"},{"$f":"[1]ACS_16_5YR_B18101_with_ann!H2","v":"Estimate!!Total:!!Male:!!Under 5 years:"},{"$f":"[1]ACS_16_5YR_B18101_with_ann!I2","v":"Margin of Error!!Total:!!Male:!!Under 5 years:"},{"$f":"[1]ACS_16_5YR_B18101_with_ann!J2","v":"Estimate!!Total:!!Male:!!Under 5 years:!!With a disability"},{"$f":"[1]ACS_16_5YR_B18101_with_ann!K2","v":"Margin of Error!!Total:!!Male:!!Under 5 years:!!With a disability"},{"$f":"[1]ACS_16_5YR_B18101_with_ann!L2","v":"Estimate!!Total:!!Male:!!Under 5 years:!!No disability"},{"$f":"[1]ACS_16_5YR_B18101_with_ann!M2","v":"Margin of Error!!Total:!!Male:!!Under 5 years:!!No disability"},{"$f":"[1]ACS_16_5YR_B18101_with_ann!N2","v":"Estimate!!Total:!!Male:!!5 to 17 years:"},{"$f":"[1]ACS_16_5YR_B18101_with_ann!O2","v":"Margin of Error!!Total:!!Male:!!5 to 17 years:"},{"$f":"[1]ACS_16_5YR_B18101_with_ann!P2","v":"Estimate!!Total:!!Male:!!5 to 17 years:!!With a disability"},{"$f":"[1]ACS_16_5YR_B18101_with_ann!Q2","v":"Margin of Error!!Total:!!Male:!!5 to 17 years:!!With a disability"},{"$f":"[1]ACS_16_5YR_B18101_with_ann!R2","v":"Estimate!!Total:!!Male:!!5 to 17 years:!!No disability"},{"$f":"[1]ACS_16_5YR_B18101_with_ann!S2","v":"Margin of Error!!Total:!!Male:!!5 to 17 years:!!No disability"},{"$f":"[1]ACS_16_5YR_B18101_with_ann!T2","v":"Estimate!!Total:!!Male:!!18 to 34 years:"},{"$f":"[1]ACS_16_5YR_B18101_with_ann!U2","v":"Margin of Error!!Total:!!Male:!!18 to 34 years:"},{"$f":"[1]ACS_16_5YR_B18101_with_ann!V2","v":"Estimate!!Total:!!Male:!!18 to 34 years:!!With a disability"},{"$f":"[1]ACS_16_5YR_B18101_with_ann!W2","v":"Margin of Error!!Total:!!Male:!!18 to 34 years:!!With a disability"},{"$f":"[1]ACS_16_5YR_B18101_with_ann!X2","v":"Estimate!!Total:!!Male:!!18 to 34 years:!!No disability"},{"$f":"[1]ACS_16_5YR_B18101_with_ann!Y2","v":"Margin of Error!!Total:!!Male:!!18 to 34 years:!!No disability"},{"$f":"[1]ACS_16_5YR_B18101_with_ann!Z2","v":"Estimate!!Total:!!Male:!!35 to 64 years:"},{"$f":"[1]ACS_16_5YR_B18101_with_ann!AA2","v":"Margin of Error!!Total:!!Male:!!35 to 64 years:"},{"$f":"[1]ACS_16_5YR_B18101_with_ann!AB2","v":"Estimate!!Total:!!Male:!!35 to 64 years:!!With a disability"},{"$f":"[1]ACS_16_5YR_B18101_with_ann!AC2","v":"Margin of Error!!Total:!!Male:!!35 to 64 years:!!With a disability"},{"$f":"[1]ACS_16_5YR_B18101_with_ann!AD2","v":"Estimate!!Total:!!Male:!!35 to 64 years:!!No disability"},{"$f":"[1]ACS_16_5YR_B18101_with_ann!AE2","v":"Margin of Error!!Total:!!Male:!!35 to 64 years:!!No disability"},{"$f":"[1]ACS_16_5YR_B18101_with_ann!AF2","v":"Estimate!!Total:!!Male:!!65 to 74 years:"},{"$f":"[1]ACS_16_5YR_B18101_with_ann!AG2","v":"Margin of Error!!Total:!!Male:!!65 to 74 years:"},{"$f":"[1]ACS_16_5YR_B18101_with_ann!AH2","v":"Estimate!!Total:!!Male:!!65 to 74 years:!!With a disability"},{"$f":"[1]ACS_16_5YR_B18101_with_ann!AI2","v":"Margin of Error!!Total:!!Male:!!65 to 74 years:!!With a disability"},{"$f":"[1]ACS_16_5YR_B18101_with_ann!AJ2","v":"Estimate!!Total:!!Male:!!65 to 74 years:!!No disability"},{"$f":"[1]ACS_16_5YR_B18101_with_ann!AK2","v":"Margin of Error!!Total:!!Male:!!65 to 74 years:!!No disability"},{"$f":"[1]ACS_16_5YR_B18101_with_ann!AL2","v":"Estimate!!Total:!!Male:!!75 years and over:"},{"$f":"[1]ACS_16_5YR_B18101_with_ann!AM2","v":"Margin of Error!!Total:!!Male:!!75 years and over:"},{"$f":"[1]ACS_16_5YR_B18101_with_ann!AN2","v":"Estimate!!Total:!!Male:!!75 years and over:!!With a disability"},{"$f":"[1]ACS_16_5YR_B18101_with_ann!AO2","v":"Margin of Error!!Total:!!Male:!!75 years and over:!!With a disability"},{"$f":"[1]ACS_16_5YR_B18101_with_ann!AP2","v":"Estimate!!Total:!!Male:!!75 years and over:!!No disability"},{"$f":"[1]ACS_16_5YR_B18101_with_ann!AQ2","v":"Margin of Error!!Total:!!Male:!!75 years and over:!!No disability"},{"$f":"[1]ACS_16_5YR_B18101_with_ann!AR2","v":"Estimate!!Total:!!Female:"},{"$f":"[1]ACS_16_5YR_B18101_with_ann!AS2","v":"Margin of Error!!Total:!!Female:"},{"$f":"[1]ACS_16_5YR_B18101_with_ann!AT2","v":"Estimate!!Total:!!Female:!!Under 5 years:"},{"$f":"[1]ACS_16_5YR_B18101_with_ann!AU2","v":"Margin of Error!!Total:!!Female:!!Under 5 years:"},{"$f":"[1]ACS_16_5YR_B18101_with_ann!AV2","v":"Estimate!!Total:!!Female:!!Under 5 years:!!With a disability"},{"$f":"[1]ACS_16_5YR_B18101_with_ann!AW2","v":"Margin of Error!!Total:!!Female:!!Under 5 years:!!With a disability"},{"$f":"[1]ACS_16_5YR_B18101_with_ann!AX2","v":"Estimate!!Total:!!Female:!!Under 5 years:!!No disability"},{"$f":"[1]ACS_16_5YR_B18101_with_ann!AY2","v":"Margin of Error!!Total:!!Female:!!Under 5 years:!!No disability"},{"$f":"[1]ACS_16_5YR_B18101_with_ann!AZ2","v":"Estimate!!Total:!!Female:!!5 to 17 years:"},{"$f":"[1]ACS_16_5YR_B18101_with_ann!BA2","v":"Margin of Error!!Total:!!Female:!!5 to 17 years:"},{"$f":"[1]ACS_16_5YR_B18101_with_ann!BB2","v":"Estimate!!Total:!!Female:!!5 to 17 years:!!With a disability"},{"$f":"[1]ACS_16_5YR_B18101_with_ann!BC2","v":"Margin of Error!!Total:!!Female:!!5 to 17 years:!!With a disability"},{"$f":"[1]ACS_16_5YR_B18101_with_ann!BD2","v":"Estimate!!Total:!!Female:!!5 to 17 years:!!No disability"},{"$f":"[1]ACS_16_5YR_B18101_with_ann!BE2","v":"Margin of Error!!Total:!!Female:!!5 to 17 years:!!No disability"},{"$f":"[1]ACS_16_5YR_B18101_with_ann!BF2","v":"Estimate!!Total:!!Female:!!18 to 34 years:"},{"$f":"[1]ACS_16_5YR_B18101_with_ann!BG2","v":"Margin of Error!!Total:!!Female:!!18 to 34 years:"},{"$f":"[1]ACS_16_5YR_B18101_with_ann!BH2","v":"Estimate!!Total:!!Female:!!18 to 34 years:!!With a disability"},{"$f":"[1]ACS_16_5YR_B18101_with_ann!BI2","v":"Margin of Error!!Total:!!Female:!!18 to 34 years:!!With a disability"},{"$f":"[1]ACS_16_5YR_B18101_with_ann!BJ2","v":"Estimate!!Total:!!Female:!!18 to 34 years:!!No disability"},{"$f":"[1]ACS_16_5YR_B18101_with_ann!BK2","v":"Margin of Error!!Total:!!Female:!!18 to 34 years:!!No disability"},{"$f":"[1]ACS_16_5YR_B18101_with_ann!BL2","v":"Estimate!!Total:!!Female:!!35 to 64 years:"},{"$f":"[1]ACS_16_5YR_B18101_with_ann!BM2","v":"Margin of Error!!Total:!!Female:!!35 to 64 years:"},{"$f":"[1]ACS_16_5YR_B18101_with_ann!BN2","v":"Estimate!!Total:!!Female:!!35 to 64 years:!!With a disability"},{"$f":"[1]ACS_16_5YR_B18101_with_ann!BO2","v":"Margin of Error!!Total:!!Female:!!35 to 64 years:!!With a disability"},{"$f":"[1]ACS_16_5YR_B18101_with_ann!BP2","v":"Estimate!!Total:!!Female:!!35 to 64 years:!!No disability"},{"$f":"[1]ACS_16_5YR_B18101_with_ann!BQ2","v":"Margin of Error!!Total:!!Female:!!35 to 64 years:!!No disability"},{"$f":"[1]ACS_16_5YR_B18101_with_ann!BR2","v":"Estimate!!Total:!!Female:!!65 to 74 years:"},{"$f":"[1]ACS_16_5YR_B18101_with_ann!BS2","v":"Margin of Error!!Total:!!Female:!!65 to 74 years:"},{"$f":"[1]ACS_16_5YR_B18101_with_ann!BT2","v":"Estimate!!Total:!!Female:!!65 to 74 years:!!With a disability"},{"$f":"[1]ACS_16_5YR_B18101_with_ann!BU2","v":"Margin of Error!!Total:!!Female:!!65 to 74 years:!!With a disability"},{"$f":"[1]ACS_16_5YR_B18101_with_ann!BV2","v":"Estimate!!Total:!!Female:!!65 to 74 years:!!No disability"},{"$f":"[1]ACS_16_5YR_B18101_with_ann!BW2","v":"Margin of Error!!Total:!!Female:!!65 to 74 years:!!No disability"},{"$f":"[1]ACS_16_5YR_B18101_with_ann!BX2","v":"Estimate!!Total:!!Female:!!75 years and over:"},{"$f":"[1]ACS_16_5YR_B18101_with_ann!BY2","v":"Margin of Error!!Total:!!Female:!!75 years and over:"},{"$f":"[1]ACS_16_5YR_B18101_with_ann!BZ2","v":"Estimate!!Total:!!Female:!!75 years and over:!!With a disability"},{"$f":"[1]ACS_16_5YR_B18101_with_ann!CA2","v":"Margin of Error!!Total:!!Female:!!75 years and over:!!With a disability"},{"$f":"[1]ACS_16_5YR_B18101_with_ann!CB2","v":"Estimate!!Total:!!Female:!!75 years and over:!!No disability"},{"$f":"[1]ACS_16_5YR_B18101_with_ann!CC2","v":"Margin of Error!!Total:!!Female:!!75 years and over:!!No disability"}]
["06000US3300500820","0600000US3300512260","060",{"$f":"[1]ACS_16_5YR_B18101_with_ann!C44","v":"Alstead"},{"$f":"[1]ACS_16_5YR_B18101_with_ann!D44","v":1599},{"$f":"[1]ACS_16_5YR_B18101_with_ann!E44","v":169},{"$f":"[1]ACS_16_5YR_B18101_with_ann!F44","v":770},{"$f":"[1]ACS_16_5YR_B18101_with_ann!G44","v":116},{"$f":"[1]ACS_16_5YR_B18101_with_ann!H44","v":12},{"$f":"[1]ACS_16_5YR_B18101_with_ann!I44","v":11},{"$f":"[1]ACS_16_5YR_B18101_with_ann!J44","v":0},{"$f":"[1]ACS_16_5YR_B18101_with_ann!K44","v":12},{"$f":"[1]ACS_16_5YR_B18101_with_ann!L44","v":12},{"$f":"[1]ACS_16_5YR_B18101_with_ann!M44","v":11},{"$f":"[1]ACS_16_5YR_B18101_with_ann!N44","v":96},{"$f":"[1]ACS_16_5YR_B18101_with_ann!O44","v":55},{"$f":"[1]ACS_16_5YR_B18101_with_ann!P44","v":0},{"$f":"[1]ACS_16_5YR_B18101_with_ann!Q44","v":12},{"$f":"[1]ACS_16_5YR_B18101_with_ann!R44","v":96},{"$f":"[1]ACS_16_5YR_B18101_with_ann!S44","v":55},{"$f":"[1]ACS_16_5YR_B18101_with_ann!T44","v":147},{"$f":"[1]ACS_16_5YR_B18101_with_ann!U44","v":61},{"$f":"[1]ACS_16_5YR_B18101_with_ann!V44","v":54},{"$f":"[1]ACS_16_5YR_B18101_with_ann!W44","v":46},{"$f":"[1]ACS_16_5YR_B18101_with_ann!X44","v":93},{"$f":"[1]ACS_16_5YR_B18101_with_ann!Y44","v":42},{"$f":"[1]ACS_16_5YR_B18101_with_ann!Z44","v":357},{"$f":"[1]ACS_16_5YR_B18101_with_ann!AA44","v":76},{"$f":"[1]ACS_16_5YR_B18101_with_ann!AB44","v":59},{"$f":"[1]ACS_16_5YR_B18101_with_ann!AC44","v":37},{"$f":"[1]ACS_16_5YR_B18101_with_ann!AD44","v":298},{"$f":"[1]ACS_16_5YR_B18101_with_ann!AE44","v":73},{"$f":"[1]ACS_16_5YR_B18101_with_ann!AF44","v":106},{"$f":"[1]ACS_16_5YR_B18101_with_ann!AG44","v":42},{"$f":"[1]ACS_16_5YR_B18101_with_ann!AH44","v":24},{"$f":"[1]ACS_16_5YR_B18101_with_ann!AI44","v":20},{"$f":"[1]ACS_16_5YR_B18101_with_ann!AJ44","v":82},{"$f":"[1]ACS_16_5YR_B18101_with_ann!AK44","v":38},{"$f":"[1]ACS_16_5YR_B18101_with_ann!AL44","v":52},{"$f":"[1]ACS_16_5YR_B18101_with_ann!AM44","v":33},{"$f":"[1]ACS_16_5YR_B18101_with_ann!AN44","v":12},{"$f":"[1]ACS_16_5YR_B18101_with_ann!AO44","v":12},{"$f":"[1]ACS_16_5YR_B18101_with_ann!AP44","v":40},{"$f":"[1]ACS_16_5YR_B18101_with_ann!AQ44","v":30},{"$f":"[1]ACS_16_5YR_B18101_with_ann!AR44","v":829},{"$f":"[1]ACS_16_5YR_B18101_with_ann!AS44","v":95},{"$f":"[1]ACS_16_5YR_B18101_with_ann!AT44","v":20},{"$f":"[1]ACS_16_5YR_B18101_with_ann!AU44","v":19},{"$f":"[1]ACS_16_5YR_B18101_with_ann!AV44","v":0},{"$f":"[1]ACS_16_5YR_B18101_with_ann!AW44","v":12},{"$f":"[1]ACS_16_5YR_B18101_with_ann!AX44","v":20},{"$f":"[1]ACS_16_5YR_B18101_with_ann!AY44","v":19},{"$f":"[1]ACS_16_5YR_B18101_with_ann!AZ44","v":100},{"$f":"[1]ACS_16_5YR_B18101_with_ann!BA44","v":34},{"$f":"[1]ACS_16_5YR_B18101_with_ann!BB44","v":0},{"$f":"[1]ACS_16_5YR_B18101_with_ann!BC44","v":12},{"$f":"[1]ACS_16_5YR_B18101_with_ann!BD44","v":100},{"$f":"[1]ACS_16_5YR_B18101_with_ann!BE44","v":34},{"$f":"[1]ACS_16_5YR_B18101_with_ann!BF44","v":117},{"$f":"[1]ACS_16_5YR_B18101_with_ann!BG44","v":55},{"$f":"[1]ACS_16_5YR_B18101_with_ann!BH44","v":13},{"$f":"[1]ACS_16_5YR_B18101_with_ann!BI44","v":12},{"$f":"[1]ACS_16_5YR_B18101_with_ann!BJ44","v":104},{"$f":"[1]ACS_16_5YR_B18101_with_ann!BK44","v":54},{"$f":"[1]ACS_16_5YR_B18101_with_ann!BL44","v":329},{"$f":"[1]ACS_16_5YR_B18101_with_ann!BM44","v":67},{"$f":"[1]ACS_16_5YR_B18101_with_ann!BN44","v":82},{"$f":"[1]ACS_16_5YR_B18101_with_ann!BO44","v":53},{"$f":"[1]ACS_16_5YR_B18101_with_ann!BP44","v":247},{"$f":"[1]ACS_16_5YR_B18101_with_ann!BQ44","v":49},{"$f":"[1]ACS_16_5YR_B18101_with_ann!BR44","v":173},{"$f":"[1]ACS_16_5YR_B18101_with_ann!BS44","v":71},{"$f":"[1]ACS_16_5YR_B18101_with_ann!BT44","v":12},{"$f":"[1]ACS_16_5YR_B18101_with_ann!BU44","v":11},{"$f":"[1]ACS_16_5YR_B18101_with_ann!BV44","v":161},{"$f":"[1]ACS_16_5YR_B18101_with_ann!BW44","v":70},{"$f":"[1]ACS_16_5YR_B18101_with_ann!BX44","v":90},{"$f":"[1]ACS_16_5YR_B18101_with_ann!BY44","v":47},{"$f":"[1]ACS_16_5YR_B18101_with_ann!BZ44","v":17},{"$f":"[1]ACS_16_5YR_B18101_with_ann!CA44","v":13},{"$f":"[1]ACS_16_5YR_B18101_with_ann!CB44","v":73},{"$f":"[1]ACS_16_5YR_B18101_with_ann!CC44","v":45}]
["06000US3300512260","0600000US3300519140","060",{"$f":"[1]ACS_16_5YR_B18101_with_ann!C45","v":"Chesterfield"},{"$f":"[1]ACS_16_5YR_B18101_with_ann!D45","v":3577},{"$f":"[1]ACS_16_5YR_B18101_with_ann!E45","v":15},{"$f":"[1]ACS_16_5YR_B18101_with_ann!F45","v":2000},{"$f":"[1]ACS_16_5YR_B18101_with_ann!G45","v":139},{"$f":"[1]ACS_16_5YR_B18101_with_ann!H45","v":121},{"$f":"[1]ACS_16_5YR_B18101_with_ann!I45","v":74},{"$f":"[1]ACS_16_5YR_B18101_with_ann!J45","v":0},{"$f":"[1]ACS_16_5YR_B18101_with_ann!K45","v":12},{"$f":"[1]ACS_16_5YR_B18101_with_ann!L45","v":121},{"$f":"[1]ACS_16_5YR_B18101_with_ann!M45","v":74},{"$f":"[1]ACS_16_5YR_B18101_with_ann!N45","v":452},{"$f":"[1]ACS_16_5YR_B18101_with_ann!O45","v":132},{"$f":"[1]ACS_16_5YR_B18101_with_ann!P45","v":37},{"$f":"[1]ACS_16_5YR_B18101_with_ann!Q45","v":54},{"$f":"[1]ACS_16_5YR_B18101_with_ann!R45","v":415},{"$f":"[1]ACS_16_5YR_B18101_with_ann!S45","v":138},{"$f":"[1]ACS_16_5YR_B18101_with_ann!T45","v":366},{"$f":"[1]ACS_16_5YR_B18101_with_ann!U45","v":146},{"$f":"[1]ACS_16_5YR_B18101_with_ann!V45","v":25},{"$f":"[1]ACS_16_5YR_B18101_with_ann!W45","v":38},{"$f":"[1]ACS_16_5YR_B18101_with_ann!X45","v":341},{"$f":"[1]ACS_16_5YR_B18101_with_ann!Y45","v":142},{"$f":"[1]ACS_16_5YR_B18101_with_ann!Z45","v":537},{"$f":"[1]ACS_16_5YR_B18101_with_ann!AA45","v":175},{"$f":"[1]ACS_16_5YR_B18101_with_ann!AB45","v":62},{"$f":"[1]ACS_16_5YR_B18101_with_ann!AC45","v":94},{"$f":"[1]ACS_16_5YR_B18101_with_ann!AD45","v":475},{"$f":"[1]ACS_16_5YR_B18101_with_ann!AE45","v":158},{"$f":"[1]ACS_16_5YR_B18101_with_ann!AF45","v":367},{"$f":"[1]ACS_16_5YR_B18101_with_ann!AG45","v":125},{"$f":"[1]ACS_16_5YR_B18101_with_ann!AH45","v":153},{"$f":"[1]ACS_16_5YR_B18101_with_ann!AI45","v":99},{"$f":"[1]ACS_16_5YR_B18101_with_ann!AJ45","v":214},{"$f":"[1]ACS_16_5YR_B18101_with_ann!AK45","v":103},{"$f":"[1]ACS_16_5YR_B18101_with_ann!AL45","v":157},{"$f":"[1]ACS_16_5YR_B18101_with_ann!AM45","v":80},{"$f":"[1]ACS_16_5YR_B18101_with_ann!AN45","v":82},{"$f":"[1]ACS_16_5YR_B18101_with_ann!AO45","v":65},{"$f":"[1]ACS_16_5YR_B18101_with_ann!AP45","v":75},{"$f":"[1]ACS_16_5YR_B18101_with_ann!AQ45","v":52},{"$f":"[1]ACS_16_5YR_B18101_with_ann!AR45","v":1577},{"$f":"[1]ACS_16_5YR_B18101_with_ann!AS45","v":140},{"$f":"[1]ACS_16_5YR_B18101_with_ann!AT45","v":20},{"$f":"[1]ACS_16_5YR_B18101_with_ann!AU45","v":30},{"$f":"[1]ACS_16_5YR_B18101_with_ann!AV45","v":0},{"$f":"[1]ACS_16_5YR_B18101_with_ann!AW45","v":12},{"$f":"[1]ACS_16_5YR_B18101_with_ann!AX45","v":20},{"$f":"[1]ACS_16_5YR_B18101_with_ann!AY45","v":30},{"$f":"[1]ACS_16_5YR_B18101_with_ann!AZ45","v":144},{"$f":"[1]ACS_16_5YR_B18101_with_ann!BA45","v":80},{"$f":"[1]ACS_16_5YR_B18101_with_ann!BB45","v":19},{"$f":"[1]ACS_16_5YR_B18101_with_ann!BC45","v":28},{"$f":"[1]ACS_16_5YR_B18101_with_ann!BD45","v":125},{"$f":"[1]ACS_16_5YR_B18101_with_ann!BE45","v":68},{"$f":"[1]ACS_16_5YR_B18101_with_ann!BF45","v":323},{"$f":"[1]ACS_16_5YR_B18101_with_ann!BG45","v":125},{"$f":"[1]ACS_16_5YR_B18101_with_ann!BH45","v":0},{"$f":"[1]ACS_16_5YR_B18101_with_ann!BI45","v":12},{"$f":"[1]ACS_16_5YR_B18101_with_ann!BJ45","v":323},{"$f":"[1]ACS_16_5YR_B18101_with_ann!BK45","v":125},{"$f":"[1]ACS_16_5YR_B18101_with_ann!BL45","v":729},{"$f":"[1]ACS_16_5YR_B18101_with_ann!BM45","v":167},{"$f":"[1]ACS_16_5YR_B18101_with_ann!BN45","v":33},{"$f":"[1]ACS_16_5YR_B18101_with_ann!BO45","v":44},{"$f":"[1]ACS_16_5YR_B18101_with_ann!BP45","v":696},{"$f":"[1]ACS_16_5YR_B18101_with_ann!BQ45","v":169},{"$f":"[1]ACS_16_5YR_B18101_with_ann!BR45","v":244},{"$f":"[1]ACS_16_5YR_B18101_with_ann!BS45","v":110},{"$f":"[1]ACS_16_5YR_B18101_with_ann!BT45","v":20},{"$f":"[1]ACS_16_5YR_B18101_with_ann!BU45","v":30},{"$f":"[1]ACS_16_5YR_B18101_with_ann!BV45","v":224},{"$f":"[1]ACS_16_5YR_B18101_with_ann!BW45","v":111},{"$f":"[1]ACS_16_5YR_B18101_with_ann!BX45","v":117},{"$f":"[1]ACS_16_5YR_B18101_with_ann!BY45","v":76},{"$f":"[1]ACS_16_5YR_B18101_with_ann!BZ45","v":45},{"$f":"[1]ACS_16_5YR_B18101_with_ann!CA45","v":42},{"$f":"[1]ACS_16_5YR_B18101_with_ann!CB45","v":72},{"$f":"[1]ACS_16_5YR_B18101_with_ann!CC45","v":55}]
["06000US3300519140","0600000US3300526500","060",{"$f":"[1]ACS_16_5YR_B18101_with_ann!C46","v":"Dublin"},{"$f":"[1]ACS_16_5YR_B18101_with_ann!D46","v":1711},{"$f":"[1]ACS_16_5YR_B18101_with_ann!E46","v":216},{"$f":"[1]ACS_16_5YR_B18101_with_ann!F46","v":800},{"$f":"[1]ACS_16_5YR_B18101_with_ann!G46","v":118},{"$f":"[1]ACS_16_5YR_B18101_with_ann!H46","v":24},{"$f":"[1]ACS_16_5YR_B18101_with_ann!I46","v":19},{"$f":"[1]ACS_16_5YR_B18101_with_ann!J46","v":0},{"$f":"[1]ACS_16_5YR_B18101_with_ann!K46","v":12},{"$f":"[1]ACS_16_5YR_B18101_with_ann!L46","v":24},{"$f":"[1]ACS_16_5YR_B18101_with_ann!M46","v":19},{"$f":"[1]ACS_16_5YR_B18101_with_ann!N46","v":97},{"$f":"[1]ACS_16_5YR_B18101_with_ann!O46","v":40},{"$f":"[1]ACS_16_5YR_B18101_with_ann!P46","v":0},{"$f":"[1]ACS_16_5YR_B18101_with_ann!Q46","v":12},{"$f":"[1]ACS_16_5YR_B18101_with_ann!R46","v":97},{"$f":"[1]ACS_16_5YR_B18101_with_ann!S46","v":40},{"$f":"[1]ACS_16_5YR_B18101_with_ann!T46","v":136},{"$f":"[1]ACS_16_5YR_B18101_with_ann!U46","v":55},{"$f":"[1]ACS_16_5YR_B18101_with_ann!V46","v":33},{"$f":"[1]ACS_16_5YR_B18101_with_ann!W46","v":39},{"$f":"[1]ACS_16_5YR_B18101_with_ann!X46","v":103},{"$f":"[1]ACS_16_5YR_B18101_with_ann!Y46","v":45},{"$f":"[1]ACS_16_5YR_B18101_with_ann!Z46","v":338},{"$f":"[1]ACS_16_5YR_B18101_with_ann!AA46","v":83},{"$f":"[1]ACS_16_5YR_B18101_with_ann!AB46","v":29},{"$f":"[1]ACS_16_5YR_B18101_with_ann!AC46","v":19},{"$f":"[1]ACS_16_5YR_B18101_with_ann!AD46","v":309},{"$f":"[1]ACS_16_5YR_B18101_with_ann!AE46","v":75},{"$f":"[1]ACS_16_5YR_B18101_with_ann!AF46","v":153},{"$f":"[1]ACS_16_5YR_B18101_with_ann!AG46","v":64},{"$f":"[1]ACS_16_5YR_B18101_with_ann!AH46","v":16},{"$f":"[1]ACS_16_5YR_B18101_with_ann!AI46","v":17},{"$f":"[1]ACS_16_5YR_B18101_with_ann!AJ46","v":137},{"$f":"[1]ACS_16_5YR_B18101_with_ann!AK46","v":63},{"$f":"[1]ACS_16_5YR_B18101_with_ann!AL46","v":52},{"$f":"[1]ACS_16_5YR_B18101_with_ann!AM46","v":26},{"$f":"[1]ACS_16_5YR_B18101_with_ann!AN46","v":5},{"$f":"[1]ACS_16_5YR_B18101_with_ann!AO46","v":6},{"$f":"[1]ACS_16_5YR_B18101_with_ann!AP46","v":47},{"$f":"[1]ACS_16_5YR_B18101_with_ann!AQ46","v":26},{"$f":"[1]ACS_16_5YR_B18101_with_ann!AR46","v":911},{"$f":"[1]ACS_16_5YR_B18101_with_ann!AS46","v":135},{"$f":"[1]ACS_16_5YR_B18101_with_ann!AT46","v":57},{"$f":"[1]ACS_16_5YR_B18101_with_ann!AU46","v":32},{"$f":"[1]ACS_16_5YR_B18101_with_ann!AV46","v":0},{"$f":"[1]ACS_16_5YR_B18101_with_ann!AW46","v":12},{"$f":"[1]ACS_16_5YR_B18101_with_ann!AX46","v":57},{"$f":"[1]ACS_16_5YR_B18101_with_ann!AY46","v":32},{"$f":"[1]ACS_16_5YR_B18101_with_ann!AZ46","v":149},{"$f":"[1]ACS_16_5YR_B18101_with_ann!BA46","v":44},{"$f":"[1]ACS_16_5YR_B18101_with_ann!BB46","v":0},{"$f":"[1]ACS_16_5YR_B18101_with_ann!BC46","v":12},{"$f":"[1]ACS_16_5YR_B18101_with_ann!BD46","v":149},{"$f":"[1]ACS_16_5YR_B18101_with_ann!BE46","v":44},{"$f":"[1]ACS_16_5YR_B18101_with_ann!BF46","v":63},{"$f":"[1]ACS_16_5YR_B18101_with_ann!BG46","v":26},{"$f":"[1]ACS_16_5YR_B18101_with_ann!BH46","v":0},{"$f":"[1]ACS_16_5YR_B18101_with_ann!BI46","v":12},{"$f":"[1]ACS_16_5YR_B18101_with_ann!BJ46","v":63},{"$f":"[1]ACS_16_5YR_B18101_with_ann!BK46","v":26},{"$f":"[1]ACS_16_5YR_B18101_with_ann!BL46","v":404},{"$f":"[1]ACS_16_5YR_B18101_with_ann!BM46","v":97},{"$f":"[1]ACS_16_5YR_B18101_with_ann!BN46","v":9},{"$f":"[1]ACS_16_5YR_B18101_with_ann!BO46","v":10},{"$f":"[1]ACS_16_5YR_B18101_with_ann!BP46","v":395},{"$f":"[1]ACS_16_5YR_B18101_with_ann!BQ46","v":95},{"$f":"[1]ACS_16_5YR_B18101_with_ann!BR46","v":162},{"$f":"[1]ACS_16_5YR_B18101_with_ann!BS46","v":54},{"$f":"[1]ACS_16_5YR_B18101_with_ann!BT46","v":13},{"$f":"[1]ACS_16_5YR_B18101_with_ann!BU46","v":16},{"$f":"[1]ACS_16_5YR_B18101_with_ann!BV46","v":149},{"$f":"[1]ACS_16_5YR_B18101_with_ann!BW46","v":54},{"$f":"[1]ACS_16_5YR_B18101_with_ann!BX46","v":76},{"$f":"[1]ACS_16_5YR_B18101_with_ann!BY46","v":51},{"$f":"[1]ACS_16_5YR_B18101_with_ann!BZ46","v":21},{"$f":"[1]ACS_16_5YR_B18101_with_ann!CA46","v":44},{"$f":"[1]ACS_16_5YR_B18101_with_ann!CB46","v":55},{"$f":"[1]ACS_16_5YR_B18101_with_ann!CC46","v":26}]
["06000US3300526500","0600000US3300529220","060",{"$f":"[1]ACS_16_5YR_B18101_with_ann!C47","v":"Fitzwilliam"},{"$f":"[1]ACS_16_5YR_B18101_with_ann!D47","v":2287},{"$f":"[1]ACS_16_5YR_B18101_with_ann!E47","v":368},{"$f":"[1]ACS_16_5YR_B18101_with_ann!F47","v":1203},{"$f":"[1]ACS_16_5YR_B18101_with_ann!G47","v":216},{"$f":"[1]ACS_16_5YR_B18101_with_ann!H47","v":33},{"$f":"[1]ACS_16_5YR_B18101_with_ann!I47","v":23},{"$f":"[1]ACS_16_5YR_B18101_with_ann!J47","v":0},{"$f":"[1]ACS_16_5YR_B18101_with_ann!K47","v":12},{"$f":"[1]ACS_16_5YR_B18101_with_ann!L47","v":33},{"$f":"[1]ACS_16_5YR_B18101_with_ann!M47","v":23},{"$f":"[1]ACS_16_5YR_B18101_with_ann!N47","v":101},{"$f":"[1]ACS_16_5YR_B18101_with_ann!O47","v":36},{"$f":"[1]ACS_16_5YR_B18101_with_ann!P47","v":4},{"$f":"[1]ACS_16_5YR_B18101_with_ann!Q47","v":5},{"$f":"[1]ACS_16_5YR_B18101_with_ann!R47","v":97},{"$f":"[1]ACS_16_5YR_B18101_with_ann!S47","v":35},{"$f":"[1]ACS_16_5YR_B18101_with_ann!T47","v":226},{"$f":"[1]ACS_16_5YR_B18101_with_ann!U47","v":92},{"$f":"[1]ACS_16_5YR_B18101_with_ann!V47","v":10},{"$f":"[1]ACS_16_5YR_B18101_with_ann!W47","v":10},{"$f":"[1]ACS_16_5YR_B18101_with_ann!X47","v":216},{"$f":"[1]ACS_16_5YR_B18101_with_ann!Y47","v":91},{"$f":"[1]ACS_16_5YR_B18101_with_ann!Z47","v":605},{"$f":"[1]ACS_16_5YR_B18101_with_ann!AA47","v":177},{"$f":"[1]ACS_16_5YR_B18101_with_ann!AB47","v":76},{"$f":"[1]ACS_16_5YR_B18101_with_ann!AC47","v":44},{"$f":"[1]ACS_16_5YR_B18101_with_ann!AD47","v":529},{"$f":"[1]ACS_16_5YR_B18101_with_ann!AE47","v":176},{"$f":"[1]ACS_16_5YR_B18101_with_ann!AF47","v":195},{"$f":"[1]ACS_16_5YR_B18101_with_ann!AG47","v":55},{"$f":"[1]ACS_16_5YR_B18101_with_ann!AH47","v":75},{"$f":"[1]ACS_16_5YR_B18101_with_ann!AI47","v":44},{"$f":"[1]ACS_16_5YR_B18101_with_ann!AJ47","v":120},{"$f":"[1]ACS_16_5YR_B18101_with_ann!AK47","v":34},{"$f":"[1]ACS_16_5YR_B18101_with_ann!AL47","v":43},{"$f":"[1]ACS_16_5YR_B18101_with_ann!AM47","v":19},{"$f":"[1]ACS_16_5YR_B18101_with_ann!AN47","v":19},{"$f":"[1]ACS_16_5YR_B18101_with_ann!AO47","v":14},{"$f":"[1]ACS_16_5YR_B18101_with_ann!AP47","v":24},{"$f":"[1]ACS_16_5YR_B18101_with_ann!AQ47","v":15},{"$f":"[1]ACS_16_5YR_B18101_with_ann!AR47","v":1084},{"$f":"[1]ACS_16_5YR_B18101_with_ann!AS47","v":188},{"$f":"[1]ACS_16_5YR_B18101_with_ann!AT47","v":45},{"$f":"[1]ACS_16_5YR_B18101_with_ann!AU47","v":46},{"$f":"[1]ACS_16_5YR_B18101_with_ann!AV47","v":0},{"$f":"[1]ACS_16_5YR_B18101_with_ann!AW47","v":12},{"$f":"[1]ACS_16_5YR_B18101_with_ann!AX47","v":45},{"$f":"[1]ACS_16_5YR_B18101_with_ann!AY47","v":46},{"$f":"[1]ACS_16_5YR_B18101_with_ann!AZ47","v":106},{"$f":"[1]ACS_16_5YR_B18101_with_ann!BA47","v":53},{"$f":"[1]ACS_16_5YR_B18101_with_ann!BB47","v":18},{"$f":"[1]ACS_16_5YR_B18101_with_ann!BC47","v":22},{"$f":"[1]ACS_16_5YR_B18101_with_ann!BD47","v":88},{"$f":"[1]ACS_16_5YR_B18101_with_ann!BE47","v":38},{"$f":"[1]ACS_16_5YR_B18101_with_ann!BF47","v":151},{"$f":"[1]ACS_16_5YR_B18101_with_ann!BG47","v":78},{"$f":"[1]ACS_16_5YR_B18101_with_ann!BH47","v":4},{"$f":"[1]ACS_16_5YR_B18101_with_ann!BI47","v":6},{"$f":"[1]ACS_16_5YR_B18101_with_ann!BJ47","v":147},{"$f":"[1]ACS_16_5YR_B18101_with_ann!BK47","v":77},{"$f":"[1]ACS_16_5YR_B18101_with_ann!BL47","v":484},{"$f":"[1]ACS_16_5YR_B18101_with_ann!BM47","v":84},{"$f":"[1]ACS_16_5YR_B18101_with_ann!BN47","v":14},{"$f":"[1]ACS_16_5YR_B18101_with_ann!BO47","v":12},{"$f":"[1]ACS_16_5YR_B18101_with_ann!BP47","v":470},{"$f":"[1]ACS_16_5YR_B18101_with_ann!BQ47","v":85},{"$f":"[1]ACS_16_5YR_B18101_with_ann!BR47","v":251},{"$f":"[1]ACS_16_5YR_B18101_with_ann!BS47","v":106},{"$f":"[1]ACS_16_5YR_B18101_with_ann!BT47","v":17},{"$f":"[1]ACS_16_5YR_B18101_with_ann!BU47","v":20},{"$f":"[1]ACS_16_5YR_B18101_with_ann!BV47","v":234},{"$f":"[1]ACS_16_5YR_B18101_with_ann!BW47","v":104},{"$f":"[1]ACS_16_5YR_B18101_with_ann!BX47","v":47},{"$f":"[1]ACS_16_5YR_B18101_with_ann!BY47","v":27},{"$f":"[1]ACS_16_5YR_B18101_with_ann!BZ47","v":21},{"$f":"[1]ACS_16_5YR_B18101_with_ann!CA47","v":19},{"$f":"[1]ACS_16_5YR_B18101_with_ann!CB47","v":26},{"$f":"[1]ACS_16_5YR_B18101_with_ann!CC47","v":16}]
["06000US3300529220","0600000US3300534420","060",{"$f":"[1]ACS_16_5YR_B18101_with_ann!C48","v":"Gilsum"},{"$f":"[1]ACS_16_5YR_B18101_with_ann!D48","v":871},{"$f":"[1]ACS_16_5YR_B18101_with_ann!E48","v":144},{"$f":"[1]ACS_16_5YR_B18101_with_ann!F48","v":452},{"$f":"[1]ACS_16_5YR_B18101_with_ann!G48","v":88},{"$f":"[1]ACS_16_5YR_B18101_with_ann!H48","v":33},{"$f":"[1]ACS_16_5YR_B18101_with_ann!I48","v":23},{"$f":"[1]ACS_16_5YR_B18101_with_ann!J48","v":0},{"$f":"[1]ACS_16_5YR_B18101_with_ann!K48","v":12},{"$f":"[1]ACS_16_5YR_B18101_with_ann!L48","v":33},{"$f":"[1]ACS_16_5YR_B18101_with_ann!M48","v":23},{"$f":"[1]ACS_16_5YR_B18101_with_ann!N48","v":52},{"$f":"[1]ACS_16_5YR_B18101_with_ann!O48","v":31},{"$f":"[1]ACS_16_5YR_B18101_with_ann!P48","v":21},{"$f":"[1]ACS_16_5YR_B18101_with_ann!Q48","v":29},{"$f":"[1]ACS_16_5YR_B18101_with_ann!R48","v":31},{"$f":"[1]ACS_16_5YR_B18101_with_ann!S48","v":16},{"$f":"[1]ACS_16_5YR_B18101_with_ann!T48","v":119},{"$f":"[1]ACS_16_5YR_B18101_with_ann!U48","v":56},{"$f":"[1]ACS_16_5YR_B18101_with_ann!V48","v":6},{"$f":"[1]ACS_16_5YR_B18101_with_ann!W48","v":8},{"$f":"[1]ACS_16_5YR_B18101_with_ann!X48","v":113},{"$f":"[1]ACS_16_5YR_B18101_with_ann!Y48","v":56},{"$f":"[1]ACS_16_5YR_B18101_with_ann!Z48","v":158},{"$f":"[1]ACS_16_5YR_B18101_with_ann!AA48","v":38},{"$f":"[1]ACS_16_5YR_B18101_with_ann!AB48","v":45},{"$f":"[1]ACS_16_5YR_B18101_with_ann!AC48","v":21},{"$f":"[1]ACS_16_5YR_B18101_with_ann!AD48","v":113},{"$f":"[1]ACS_16_5YR_B18101_with_ann!AE48","v":30},{"$f":"[1]ACS_16_5YR_B18101_with_ann!AF48","v":76},{"$f":"[1]ACS_16_5YR_B18101_with_ann!AG48","v":29},{"$f":"[1]ACS_16_5YR_B18101_with_ann!AH48","v":21},{"$f":"[1]ACS_16_5YR_B18101_with_ann!AI48","v":16},{"$f":"[1]ACS_16_5YR_B18101_with_ann!AJ48","v":55},{"$f":"[1]ACS_16_5YR_B18101_with_ann!AK48","v":27},{"$f":"[1]ACS_16_5YR_B18101_with_ann!AL48","v":14},{"$f":"[1]ACS_16_5YR_B18101_with_ann!AM48","v":10},{"$f":"[1]ACS_16_5YR_B18101_with_ann!AN48","v":8},{"$f":"[1]ACS_16_5YR_B18101_with_ann!AO48","v":8},{"$f":"[1]ACS_16_5YR_B18101_with_ann!AP48","v":6},{"$f":"[1]ACS_16_5YR_B18101_with_ann!AQ48","v":6},{"$f":"[1]ACS_16_5YR_B18101_with_ann!AR48","v":419},{"$f":"[1]ACS_16_5YR_B18101_with_ann!AS48","v":74},{"$f":"[1]ACS_16_5YR_B18101_with_ann!AT48","v":26},{"$f":"[1]ACS_16_5YR_B18101_with_ann!AU48","v":17},{"$f":"[1]ACS_16_5YR_B18101_with_ann!AV48","v":0},{"$f":"[1]ACS_16_5YR_B18101_with_ann!AW48","v":12},{"$f":"[1]ACS_16_5YR_B18101_with_ann!AX48","v":26},{"$f":"[1]ACS_16_5YR_B18101_with_ann!AY48","v":17},{"$f":"[1]ACS_16_5YR_B18101_with_ann!AZ48","v":38},{"$f":"[1]ACS_16_5YR_B18101_with_ann!BA48","v":29},{"$f":"[1]ACS_16_5YR_B18101_with_ann!BB48","v":4},{"$f":"[1]ACS_16_5YR_B18101_with_ann!BC48","v":4},{"$f":"[1]ACS_16_5YR_B18101_with_ann!BD48","v":34},{"$f":"[1]ACS_16_5YR_B18101_with_ann!BE48","v":29},{"$f":"[1]ACS_16_5YR_B18101_with_ann!BF48","v":95},{"$f":"[1]ACS_16_5YR_B18101_with_ann!BG48","v":35},{"$f":"[1]ACS_16_5YR_B18101_with_ann!BH48","v":0},{"$f":"[1]ACS_16_5YR_B18101_with_ann!BI48","v":12},{"$f":"[1]ACS_16_5YR_B18101_with_ann!BJ48","v":95},{"$f":"[1]ACS_16_5YR_B18101_with_ann!BK48","v":35},{"$f":"[1]ACS_16_5YR_B18101_with_ann!BL48","v":170},{"$f":"[1]ACS_16_5YR_B18101_with_ann!BM48","v":44},{"$f":"[1]ACS_16_5YR_B18101_with_ann!BN48","v":15},{"$f":"[1]ACS_16_5YR_B18101_with_ann!BO48","v":10},{"$f":"[1]ACS_16_5YR_B18101_with_ann!BP48","v":155},{"$f":"[1]ACS_16_5YR_B18101_with_ann!BQ48","v":41},{"$f":"[1]ACS_16_5YR_B18101_with_ann!BR48","v":58},{"$f":"[1]ACS_16_5YR_B18101_with_ann!BS48","v":25},{"$f":"[1]ACS_16_5YR_B18101_with_ann!BT48","v":2},{"$f":"[1]ACS_16_5YR_B18101_with_ann!BU48","v":3},{"$f":"[1]ACS_16_5YR_B18101_with_ann!BV48","v":56},{"$f":"[1]ACS_16_5YR_B18101_with_ann!BW48","v":25},{"$f":"[1]ACS_16_5YR_B18101_with_ann!BX48","v":32},{"$f":"[1]ACS_16_5YR_B18101_with_ann!BY48","v":14},{"$f":"[1]ACS_16_5YR_B18101_with_ann!BZ48","v":13},{"$f":"[1]ACS_16_5YR_B18101_with_ann!CA48","v":12},{"$f":"[1]ACS_16_5YR_B18101_with_ann!CB48","v":19},{"$f":"[1]ACS_16_5YR_B18101_with_ann!CC48","v":9}]
["06000US3300534420","0600000US3300536660","060",{"$f":"[1]ACS_16_5YR_B18101_with_ann!C49","v":"Harrisville"},{"$f":"[1]ACS_16_5YR_B18101_with_ann!D49","v":977},{"$f":"[1]ACS_16_5YR_B18101_with_ann!E49","v":197},{"$f":"[1]ACS_16_5YR_B18101_with_ann!F49","v":461},{"$f":"[1]ACS_16_5YR_B18101_with_ann!G49","v":95},{"$f":"[1]ACS_16_5YR_B18101_with_ann!H49","v":42},{"$f":"[1]ACS_16_5YR_B18101_with_ann!I49","v":33},{"$f":"[1]ACS_16_5YR_B18101_with_ann!J49","v":0},{"$f":"[1]ACS_16_5YR_B18101_with_ann!K49","v":12},{"$f":"[1]ACS_16_5YR_B18101_with_ann!L49","v":42},{"$f":"[1]ACS_16_5YR_B18101_with_ann!M49","v":33},{"$f":"[1]ACS_16_5YR_B18101_with_ann!N49","v":47},{"$f":"[1]ACS_16_5YR_B18101_with_ann!O49","v":26},{"$f":"[1]ACS_16_5YR_B18101_with_ann!P49","v":3},{"$f":"[1]ACS_16_5YR_B18101_with_ann!Q49","v":5},{"$f":"[1]ACS_16_5YR_B18101_with_ann!R49","v":44},{"$f":"[1]ACS_16_5YR_B18101_with_ann!S49","v":26},{"$f":"[1]ACS_16_5YR_B18101_with_ann!T49","v":38},{"$f":"[1]ACS_16_5YR_B18101_with_ann!U49","v":20},{"$f":"[1]ACS_16_5YR_B18101_with_ann!V49","v":0},{"$f":"[1]ACS_16_5YR_B18101_with_ann!W49","v":12},{"$f":"[1]ACS_16_5YR_B18101_with_ann!X49","v":38},{"$f":"[1]ACS_16_5YR_B18101_with_ann!Y49","v":20},{"$f":"[1]ACS_16_5YR_B18101_with_ann!Z49","v":190},{"$f":"[1]ACS_16_5YR_B18101_with_ann!AA49","v":52},{"$f":"[1]ACS_16_5YR_B18101_with_ann!AB49","v":44},{"$f":"[1]ACS_16_5YR_B18101_with_ann!AC49","v":25},{"$f":"[1]ACS_16_5YR_B18101_with_ann!AD49","v":146},{"$f":"[1]ACS_16_5YR_B18101_with_ann!AE49","v":46},{"$f":"[1]ACS_16_5YR_B18101_with_ann!AF49","v":91},{"$f":"[1]ACS_16_5YR_B18101_with_ann!AG49","v":28},{"$f":"[1]ACS_16_5YR_B18101_with_ann!AH49","v":10},{"$f":"[1]ACS_16_5YR_B18101_with_ann!AI49","v":10},{"$f":"[1]ACS_16_5YR_B18101_with_ann!AJ49","v":81},{"$f":"[1]ACS_16_5YR_B18101_with_ann!AK49","v":27},{"$f":"[1]ACS_16_5YR_B18101_with_ann!AL49","v":53},{"$f":"[1]ACS_16_5YR_B18101_with_ann!AM49","v":20},{"$f":"[1]ACS_16_5YR_B18101_with_ann!AN49","v":20},{"$f":"[1]ACS_16_5YR_B18101_with_ann!AO49","v":15},{"$f":"[1]ACS_16_5YR_B18101_with_ann!AP49","v":33},{"$f":"[1]ACS_16_5YR_B18101_with_ann!AQ49","v":16},{"$f":"[1]ACS_16_5YR_B18101_with_ann!AR49","v":516},{"$f":"[1]ACS_16_5YR_B18101_with_ann!AS49","v":110},{"$f":"[1]ACS_16_5YR_B18101_with_ann!AT49","v":8},{"$f":"[1]ACS_16_5YR_B18101_with_ann!AU49","v":8},{"$f":"[1]ACS_16_5YR_B18101_with_ann!AV49","v":0},{"$f":"[1]ACS_16_5YR_B18101_with_ann!AW49","v":12},{"$f":"[1]ACS_16_5YR_B18101_with_ann!AX49","v":8},{"$f":"[1]ACS_16_5YR_B18101_with_ann!AY49","v":8},{"$f":"[1]ACS_16_5YR_B18101_with_ann!AZ49","v":52},{"$f":"[1]ACS_16_5YR_B18101_with_ann!BA49","v":39},{"$f":"[1]ACS_16_5YR_B18101_with_ann!BB49","v":0},{"$f":"[1]ACS_16_5YR_B18101_with_ann!BC49","v":12},{"$f":"[1]ACS_16_5YR_B18101_with_ann!BD49","v":52},{"$f":"[1]ACS_16_5YR_B18101_with_ann!BE49","v":39},{"$f":"[1]ACS_16_5YR_B18101_with_ann!BF49","v":89},{"$f":"[1]ACS_16_5YR_B18101_with_ann!BG49","v":40},{"$f":"[1]ACS_16_5YR_B18101_with_ann!BH49","v":4},{"$f":"[1]ACS_16_5YR_B18101_with_ann!BI49","v":7},{"$f":"[1]ACS_16_5YR_B18101_with_ann!BJ49","v":85},{"$f":"[1]ACS_16_5YR_B18101_with_ann!BK49","v":40},{"$f":"[1]ACS_16_5YR_B18101_with_ann!BL49","v":220},{"$f":"[1]ACS_16_5YR_B18101_with_ann!BM49","v":61},{"$f":"[1]ACS_16_5YR_B18101_with_ann!BN49","v":17},{"$f":"[1]ACS_16_5YR_B18101_with_ann!BO49","v":14},{"$f":"[1]ACS_16_5YR_B18101_with_ann!BP49","v":203},{"$f":"[1]ACS_16_5YR_B18101_with_ann!BQ49","v":59},{"$f":"[1]ACS_16_5YR_B18101_with_ann!BR49","v":107},{"$f":"[1]ACS_16_5YR_B18101_with_ann!BS49","v":30},{"$f":"[1]ACS_16_5YR_B18101_with_ann!BT49","v":19},{"$f":"[1]ACS_16_5YR_B18101_with_ann!BU49","v":13},{"$f":"[1]ACS_16_5YR_B18101_with_ann!BV49","v":88},{"$f":"[1]ACS_16_5YR_B18101_with_ann!BW49","v":28},{"$f":"[1]ACS_16_5YR_B18101_with_ann!BX49","v":40},{"$f":"[1]ACS_16_5YR_B18101_with_ann!BY49","v":22},{"$f":"[1]ACS_16_5YR_B18101_with_ann!BZ49","v":3},{"$f":"[1]ACS_16_5YR_B18101_with_ann!CA49","v":4},{"$f":"[1]ACS_16_5YR_B18101_with_ann!CB49","v":37},{"$f":"[1]ACS_16_5YR_B18101_with_ann!CC49","v":22}]
["06000US3300536660","0600000US3300538500","060",{"$f":"[1]ACS_16_5YR_B18101_with_ann!C50","v":"Hinsdale"},{"$f":"[1]ACS_16_5YR_B18101_with_ann!D50","v":3965},{"$f":"[1]ACS_16_5YR_B18101_with_ann!E50","v":16},{"$f":"[1]ACS_16_5YR_B18101_with_ann!F50","v":2090},{"$f":"[1]ACS_16_5YR_B18101_with_ann!G50","v":205},{"$f":"[1]ACS_16_5YR_B18101_with_ann!H50","v":26},{"$f":"[1]ACS_16_5YR_B18101_with_ann!I50","v":38},{"$f":"[1]ACS_16_5YR_B18101_with_ann!J50","v":0},{"$f":"[1]ACS_16_5YR_B18101_with_ann!K50","v":12},{"$f":"[1]ACS_16_5YR_B18101_with_ann!L50","v":26},{"$f":"[1]ACS_16_5YR_B18101_with_ann!M50","v":38},{"$f":"[1]ACS_16_5YR_B18101_with_ann!N50","v":277},{"$f":"[1]ACS_16_5YR_B18101_with_ann!O50","v":125},{"$f":"[1]ACS_16_5YR_B18101_with_ann!P50","v":18},{"$f":"[1]ACS_16_5YR_B18101_with_ann!Q50","v":32},{"$f":"[1]ACS_16_5YR_B18101_with_ann!R50","v":259},{"$f":"[1]ACS_16_5YR_B18101_with_ann!S50","v":112},{"$f":"[1]ACS_16_5YR_B18101_with_ann!T50","v":294},{"$f":"[1]ACS_16_5YR_B18101_with_ann!U50","v":122},{"$f":"[1]ACS_16_5YR_B18101_with_ann!V50","v":50},{"$f":"[1]ACS_16_5YR_B18101_with_ann!W50","v":64},{"$f":"[1]ACS_16_5YR_B18101_with_ann!X50","v":244},{"$f":"[1]ACS_16_5YR_B18101_with_ann!Y50","v":107},{"$f":"[1]ACS_16_5YR_B18101_with_ann!Z50","v":878},{"$f":"[1]ACS_16_5YR_B18101_with_ann!AA50","v":165},{"$f":"[1]ACS_16_5YR_B18101_with_ann!AB50","v":136},{"$f":"[1]ACS_16_5YR_B18101_with_ann!AC50","v":94},{"$f":"[1]ACS_16_5YR_B18101_with_ann!AD50","v":742},{"$f":"[1]ACS_16_5YR_B18101_with_ann!AE50","v":145},{"$f":"[1]ACS_16_5YR_B18101_with_ann!AF50","v":433},{"$f":"[1]ACS_16_5YR_B18101_with_ann!AG50","v":236},{"$f":"[1]ACS_16_5YR_B18101_with_ann!AH50","v":243},{"$f":"[1]ACS_16_5YR_B18101_with_ann!AI50","v":229},{"$f":"[1]ACS_16_5YR_B18101_with_ann!AJ50","v":190},{"$f":"[1]ACS_16_5YR_B18101_with_ann!AK50","v":115},{"$f":"[1]ACS_16_5YR_B18101_with_ann!AL50","v":182},{"$f":"[1]ACS_16_5YR_B18101_with_ann!AM50","v":113},{"$f":"[1]ACS_16_5YR_B18101_with_ann!AN50","v":143},{"$f":"[1]ACS_16_5YR_B18101_with_ann!AO50","v":115},{"$f":"[1]ACS_16_5YR_B18101_with_ann!AP50","v":39},{"$f":"[1]ACS_16_5YR_B18101_with_ann!AQ50","v":26},{"$f":"[1]ACS_16_5YR_B18101_with_ann!AR50","v":1875},{"$f":"[1]ACS_16_5YR_B18101_with_ann!AS50","v":204},{"$f":"[1]ACS_16_5YR_B18101_with_ann!AT50","v":58},{"$f":"[1]ACS_16_5YR_B18101_with_ann!AU50","v":46},{"$f":"[1]ACS_16_5YR_B18101_with_ann!AV50","v":0},{"$f":"[1]ACS_16_5YR_B18101_with_ann!AW50","v":12},{"$f":"[1]ACS_16_5YR_B18101_with_ann!AX50","v":58},{"$f":"[1]ACS_16_5YR_B18101_with_ann!AY50","v":46},{"$f":"[1]ACS_16_5YR_B18101_with_ann!AZ50","v":225},{"$f":"[1]ACS_16_5YR_B18101_with_ann!BA50","v":70},{"$f":"[1]ACS_16_5YR_B18101_with_ann!BB50","v":0},{"$f":"[1]ACS_16_5YR_B18101_with_ann!BC50","v":12},{"$f":"[1]ACS_16_5YR_B18101_with_ann!BD50","v":225},{"$f":"[1]ACS_16_5YR_B18101_with_ann!BE50","v":70},{"$f":"[1]ACS_16_5YR_B18101_with_ann!BF50","v":306},{"$f":"[1]ACS_16_5YR_B18101_with_ann!BG50","v":147},{"$f":"[1]ACS_16_5YR_B18101_with_ann!BH50","v":0},{"$f":"[1]ACS_16_5YR_B18101_with_ann!BI50","v":12},{"$f":"[1]ACS_16_5YR_B18101_with_ann!BJ50","v":306},{"$f":"[1]ACS_16_5YR_B18101_with_ann!BK50","v":147},{"$f":"[1]ACS_16_5YR_B18101_with_ann!BL50","v":843},{"$f":"[1]ACS_16_5YR_B18101_with_ann!BM50","v":127},{"$f":"[1]ACS_16_5YR_B18101_with_ann!BN50","v":64},{"$f":"[1]ACS_16_5YR_B18101_with_ann!BO50","v":46},{"$f":"[1]ACS_16_5YR_B18101_with_ann!BP50","v":779},{"$f":"[1]ACS_16_5YR_B18101_with_ann!BQ50","v":116},{"$f":"[1]ACS_16_5YR_B18101_with_ann!BR50","v":214},{"$f":"[1]ACS_16_5YR_B18101_with_ann!BS50","v":97},{"$f":"[1]ACS_16_5YR_B18101_with_ann!BT50","v":52},{"$f":"[1]ACS_16_5YR_B18101_with_ann!BU50","v":40},{"$f":"[1]ACS_16_5YR_B18101_with_ann!BV50","v":162},{"$f":"[1]ACS_16_5YR_B18101_with_ann!BW50","v":93},{"$f":"[1]ACS_16_5YR_B18101_with_ann!BX50","v":229},{"$f":"[1]ACS_16_5YR_B18101_with_ann!BY50","v":155},{"$f":"[1]ACS_16_5YR_B18101_with_ann!BZ50","v":84},{"$f":"[1]ACS_16_5YR_B18101_with_ann!CA50","v":64},{"$f":"[1]ACS_16_5YR_B18101_with_ann!CB50","v":145},{"$f":"[1]ACS_16_5YR_B18101_with_ann!CC50","v":153}]
["06000US3300538500","0600000US3300539300","060",{"$f":"[1]ACS_16_5YR_B18101_with_ann!C51","v":"Jaffrey"},{"$f":"[1]ACS_16_5YR_B18101_with_ann!D51","v":5299},{"$f":"[1]ACS_16_5YR_B18101_with_ann!E51","v":31},{"$f":"[1]ACS_16_5YR_B18101_with_ann!F51","v":2731},{"$f":"[1]ACS_16_5YR_B18101_with_ann!G51","v":216},{"$f":"[1]ACS_16_5YR_B18101_with_ann!H51","v":114},{"$f":"[1]ACS_16_5YR_B18101_with_ann!I51","v":89},{"$f":"[1]ACS_16_5YR_B18101_with_ann!J51","v":0},{"$f":"[1]ACS_16_5YR_B18101_with_ann!K51","v":17},{"$f":"[1]ACS_16_5YR_B18101_with_ann!L51","v":114},{"$f":"[1]ACS_16_5YR_B18101_with_ann!M51","v":89},{"$f":"[1]ACS_16_5YR_B18101_with_ann!N51","v":566},{"$f":"[1]ACS_16_5YR_B18101_with_ann!O51","v":154},{"$f":"[1]ACS_16_5YR_B18101_with_ann!P51","v":34},{"$f":"[1]ACS_16_5YR_B18101_with_ann!Q51","v":42},{"$f":"[1]ACS_16_5YR_B18101_with_ann!R51","v":532},{"$f":"[1]ACS_16_5YR_B18101_with_ann!S51","v":157},{"$f":"[1]ACS_16_5YR_B18101_with_ann!T51","v":408},{"$f":"[1]ACS_16_5YR_B18101_with_ann!U51","v":190},{"$f":"[1]ACS_16_5YR_B18101_with_ann!V51","v":31},{"$f":"[1]ACS_16_5YR_B18101_with_ann!W51","v":56},{"$f":"[1]ACS_16_5YR_B18101_with_ann!X51","v":377},{"$f":"[1]ACS_16_5YR_B18101_with_ann!Y51","v":187},{"$f":"[1]ACS_16_5YR_B18101_with_ann!Z51","v":1310},{"$f":"[1]ACS_16_5YR_B18101_with_ann!AA51","v":200},{"$f":"[1]ACS_16_5YR_B18101_with_ann!AB51","v":113},{"$f":"[1]ACS_16_5YR_B18101_with_ann!AC51","v":89},{"$f":"[1]ACS_16_5YR_B18101_with_ann!AD51","v":1197},{"$f":"[1]ACS_16_5YR_B18101_with_ann!AE51","v":182},{"$f":"[1]ACS_16_5YR_B18101_with_ann!AF51","v":159},{"$f":"[1]ACS_16_5YR_B18101_with_ann!AG51","v":87},{"$f":"[1]ACS_16_5YR_B18101_with_ann!AH51","v":40},{"$f":"[1]ACS_16_5YR_B18101_with_ann!AI51","v":42},{"$f":"[1]ACS_16_5YR_B18101_with_ann!AJ51","v":119},{"$f":"[1]ACS_16_5YR_B18101_with_ann!AK51","v":75},{"$f":"[1]ACS_16_5YR_B18101_with_ann!AL51","v":174},{"$f":"[1]ACS_16_5YR_B18101_with_ann!AM51","v":110},{"$f":"[1]ACS_16_5YR_B18101_with_ann!AN51","v":46},{"$f":"[1]ACS_16_5YR_B18101_with_ann!AO51","v":58},{"$f":"[1]ACS_16_5YR_B18101_with_ann!AP51","v":128},{"$f":"[1]ACS_16_5YR_B18101_with_ann!AQ51","v":96},{"$f":"[1]ACS_16_5YR_B18101_with_ann!AR51","v":2568},{"$f":"[1]ACS_16_5YR_B18101_with_ann!AS51","v":218},{"$f":"[1]ACS_16_5YR_B18101_with_ann!AT51","v":28},{"$f":"[1]ACS_16_5YR_B18101_with_ann!AU51","v":48},{"$f":"[1]ACS_16_5YR_B18101_with_ann!AV51","v":0},{"$f":"[1]ACS_16_5YR_B18101_with_ann!AW51","v":17},{"$f":"[1]ACS_16_5YR_B18101_with_ann!AX51","v":28},{"$f":"[1]ACS_16_5YR_B18101_with_ann!AY51","v":48},{"$f":"[1]ACS_16_5YR_B18101_with_ann!AZ51","v":617},{"$f":"[1]ACS_16_5YR_B18101_with_ann!BA51","v":129},{"$f":"[1]ACS_16_5YR_B18101_with_ann!BB51","v":95},{"$f":"[1]ACS_16_5YR_B18101_with_ann!BC51","v":95},{"$f":"[1]ACS_16_5YR_B18101_with_ann!BD51","v":522},{"$f":"[1]ACS_16_5YR_B18101_with_ann!BE51","v":148},{"$f":"[1]ACS_16_5YR_B18101_with_ann!BF51","v":307},{"$f":"[1]ACS_16_5YR_B18101_with_ann!BG51","v":170},{"$f":"[1]ACS_16_5YR_B18101_with_ann!BH51","v":0},{"$f":"[1]ACS_16_5YR_B18101_with_ann!BI51","v":17},{"$f":"[1]ACS_16_5YR_B18101_with_ann!BJ51","v":307},{"$f":"[1]ACS_16_5YR_B18101_with_ann!BK51","v":170},{"$f":"[1]ACS_16_5YR_B18101_with_ann!BL51","v":1144},{"$f":"[1]ACS_16_5YR_B18101_with_ann!BM51","v":160},{"$f":"[1]ACS_16_5YR_B18101_with_ann!BN51","v":228},{"$f":"[1]ACS_16_5YR_B18101_with_ann!BO51","v":145},{"$f":"[1]ACS_16_5YR_B18101_with_ann!BP51","v":916},{"$f":"[1]ACS_16_5YR_B18101_with_ann!BQ51","v":144},{"$f":"[1]ACS_16_5YR_B18101_with_ann!BR51","v":276},{"$f":"[1]ACS_16_5YR_B18101_with_ann!BS51","v":101},{"$f":"[1]ACS_16_5YR_B18101_with_ann!BT51","v":48},{"$f":"[1]ACS_16_5YR_B18101_with_ann!BU51","v":43},{"$f":"[1]ACS_16_5YR_B18101_with_ann!BV51","v":228},{"$f":"[1]ACS_16_5YR_B18101_with_ann!BW51","v":95},{"$f":"[1]ACS_16_5YR_B18101_with_ann!BX51","v":196},{"$f":"[1]ACS_16_5YR_B18101_with_ann!BY51","v":97},{"$f":"[1]ACS_16_5YR_B18101_with_ann!BZ51","v":99},{"$f":"[1]ACS_16_5YR_B18101_with_ann!CA51","v":87},{"$f":"[1]ACS_16_5YR_B18101_with_ann!CB51","v":97},{"$f":"[1]ACS_16_5YR_B18101_with_ann!CC51","v":59}]
["06000US3300539300","0600000US3300545460","060",{"$f":"[1]ACS_16_5YR_B18101_with_ann!C52","v":"Keene"},{"$f":"[1]ACS_16_5YR_B18101_with_ann!D52","v":22429},{"$f":"[1]ACS_16_5YR_B18101_with_ann!E52","v":47},{"$f":"[1]ACS_16_5YR_B18101_with_ann!F52","v":10985},{"$f":"[1]ACS_16_5YR_B18101_with_ann!G52","v":396},{"$f":"[1]ACS_16_5YR_B18101_with_ann!H52","v":485},{"$f":"[1]ACS_16_5YR_B18101_with_ann!I52","v":125},{"$f":"[1]ACS_16_5YR_B18101_with_ann!J52","v":0},{"$f":"[1]ACS_16_5YR_B18101_with_ann!K52","v":22},{"$f":"[1]ACS_16_5YR_B18101_with_ann!L52","v":485},{"$f":"[1]ACS_16_5YR_B18101_with_ann!M52","v":125},{"$f":"[1]ACS_16_5YR_B18101_with_ann!N52","v":1379},{"$f":"[1]ACS_16_5YR_B18101_with_ann!O52","v":180},{"$f":"[1]ACS_16_5YR_B18101_with_ann!P52","v":102},{"$f":"[1]ACS_16_5YR_B18101_with_ann!Q52","v":47},{"$f":"[1]ACS_16_5YR_B18101_with_ann!R52","v":1277},{"$f":"[1]ACS_16_5YR_B18101_with_ann!S52","v":172},{"$f":"[1]ACS_16_5YR_B18101_with_ann!T52","v":3702},{"$f":"[1]ACS_16_5YR_B18101_with_ann!U52","v":372},{"$f":"[1]ACS_16_5YR_B18101_with_ann!V52","v":381},{"$f":"[1]ACS_16_5YR_B18101_with_ann!W52","v":159},{"$f":"[1]ACS_16_5YR_B18101_with_ann!X52","v":3321},{"$f":"[1]ACS_16_5YR_B18101_with_ann!Y52","v":398},{"$f":"[1]ACS_16_5YR_B18101_with_ann!Z52","v":3790},{"$f":"[1]ACS_16_5YR_B18101_with_ann!AA52","v":283},{"$f":"[1]ACS_16_5YR_B18101_with_ann!AB52","v":381},{"$f":"[1]ACS_16_5YR_B18101_with_ann!AC52","v":153},{"$f":"[1]ACS_16_5YR_B18101_with_ann!AD52","v":3409},{"$f":"[1]ACS_16_5YR_B18101_with_ann!AE52","v":309},{"$f":"[1]ACS_16_5YR_B18101_with_ann!AF52","v":899},{"$f":"[1]ACS_16_5YR_B18101_with_ann!AG52","v":135},{"$f":"[1]ACS_16_5YR_B18101_with_ann!AH52","v":222},{"$f":"[1]ACS_16_5YR_B18101_with_ann!AI52","v":95},{"$f":"[1]ACS_16_5YR_B18101_with_ann!AJ52","v":677},{"$f":"[1]ACS_16_5YR_B18101_with_ann!AK52","v":147},{"$f":"[1]ACS_16_5YR_B18101_with_ann!AL52","v":730},{"$f":"[1]ACS_16_5YR_B18101_with_ann!AM52","v":148},{"$f":"[1]ACS_16_5YR_B18101_with_ann!AN52","v":350},{"$f":"[1]ACS_16_5YR_B18101_with_ann!AO52","v":106},{"$f":"[1]ACS_16_5YR_B18101_with_ann!AP52","v":380},{"$f":"[1]ACS_16_5YR_B18101_with_ann!AQ52","v":134},{"$f":"[1]ACS_16_5YR_B18101_with_ann!AR52","v":11444},{"$f":"[1]ACS_16_5YR_B18101_with_ann!AS52","v":392},{"$f":"[1]ACS_16_5YR_B18101_with_ann!AT52","v":387},{"$f":"[1]ACS_16_5YR_B18101_with_ann!AU52","v":112},{"$f":"[1]ACS_16_5YR_B18101_with_ann!AV52","v":5},{"$f":"[1]ACS_16_5YR_B18101_with_ann!AW52","v":23},{"$f":"[1]ACS_16_5YR_B18101_with_ann!AX52","v":382},{"$f":"[1]ACS_16_5YR_B18101_with_ann!AY52","v":112},{"$f":"[1]ACS_16_5YR_B18101_with_ann!AZ52","v":1041},{"$f":"[1]ACS_16_5YR_B18101_with_ann!BA52","v":198},{"$f":"[1]ACS_16_5YR_B18101_with_ann!BB52","v":91},{"$f":"[1]ACS_16_5YR_B18101_with_ann!BC52","v":77},{"$f":"[1]ACS_16_5YR_B18101_with_ann!BD52","v":950},{"$f":"[1]ACS_16_5YR_B18101_with_ann!BE52","v":190},{"$f":"[1]ACS_16_5YR_B18101_with_ann!BF52","v":3991},{"$f":"[1]ACS_16_5YR_B18101_with_ann!BG52","v":285},{"$f":"[1]ACS_16_5YR_B18101_with_ann!BH52","v":466},{"$f":"[1]ACS_16_5YR_B18101_with_ann!BI52","v":171},{"$f":"[1]ACS_16_5YR_B18101_with_ann!BJ52","v":3525},{"$f":"[1]ACS_16_5YR_B18101_with_ann!BK52","v":318},{"$f":"[1]ACS_16_5YR_B18101_with_ann!BL52","v":3688},{"$f":"[1]ACS_16_5YR_B18101_with_ann!BM52","v":301},{"$f":"[1]ACS_16_5YR_B18101_with_ann!BN52","v":603},{"$f":"[1]ACS_16_5YR_B18101_with_ann!BO52","v":171},{"$f":"[1]ACS_16_5YR_B18101_with_ann!BP52","v":3085},{"$f":"[1]ACS_16_5YR_B18101_with_ann!BQ52","v":274},{"$f":"[1]ACS_16_5YR_B18101_with_ann!BR52","v":1300},{"$f":"[1]ACS_16_5YR_B18101_with_ann!BS52","v":181},{"$f":"[1]ACS_16_5YR_B18101_with_ann!BT52","v":420},{"$f":"[1]ACS_16_5YR_B18101_with_ann!BU52","v":129},{"$f":"[1]ACS_16_5YR_B18101_with_ann!BV52","v":880},{"$f":"[1]ACS_16_5YR_B18101_with_ann!BW52","v":164},{"$f":"[1]ACS_16_5YR_B18101_with_ann!BX52","v":1037},{"$f":"[1]ACS_16_5YR_B18101_with_ann!BY52","v":197},{"$f":"[1]ACS_16_5YR_B18101_with_ann!BZ52","v":373},{"$f":"[1]ACS_16_5YR_B18101_with_ann!CA52","v":178},{"$f":"[1]ACS_16_5YR_B18101_with_ann!CB52","v":664},{"$f":"[1]ACS_16_5YR_B18101_with_ann!CC52","v":167}]
["06000US3300545460","0600000US3300545700","060",{"$f":"[1]ACS_16_5YR_B18101_with_ann!C53","v":"Marlborough"},{"$f":"[1]ACS_16_5YR_B18101_with_ann!D53","v":2253},{"$f":"[1]ACS_16_5YR_B18101_with_ann!E53","v":391},{"$f":"[1]ACS_16_5YR_B18101_with_ann!F53","v":1005},{"$f":"[1]ACS_16_5YR_B18101_with_ann!G53","v":199},{"$f":"[1]ACS_16_5YR_B18101_with_ann!H53","v":76},{"$f":"[1]ACS_16_5YR_B18101_with_ann!I53","v":60},{"$f":"[1]ACS_16_5YR_B18101_with_ann!J53","v":0},{"$f":"[1]ACS_16_5YR_B18101_with_ann!K53","v":12},{"$f":"[1]ACS_16_5YR_B18101_with_ann!L53","v":76},{"$f":"[1]ACS_16_5YR_B18101_with_ann!M53","v":60},{"$f":"[1]ACS_16_5YR_B18101_with_ann!N53","v":129},{"$f":"[1]ACS_16_5YR_B18101_with_ann!O53","v":64},{"$f":"[1]ACS_16_5YR_B18101_with_ann!P53","v":0},{"$f":"[1]ACS_16_5YR_B18101_with_ann!Q53","v":12},{"$f":"[1]ACS_16_5YR_B18101_with_ann!R53","v":129},{"$f":"[1]ACS_16_5YR_B18101_with_ann!S53","v":64},{"$f":"[1]ACS_16_5YR_B18101_with_ann!T53","v":175},{"$f":"[1]ACS_16_5YR_B18101_with_ann!U53","v":92},{"$f":"[1]ACS_16_5YR_B18101_with_ann!V53","v":18},{"$f":"[1]ACS_16_5YR_B18101_with_ann!W53","v":26},{"$f":"[1]ACS_16_5YR_B18101_with_ann!X53","v":157},{"$f":"[1]ACS_16_5YR_B18101_with_ann!Y53","v":83},{"$f":"[1]ACS_16_5YR_B18101_with_ann!Z53","v":440},{"$f":"[1]ACS_16_5YR_B18101_with_ann!AA53","v":108},{"$f":"[1]ACS_16_5YR_B18101_with_ann!AB53","v":37},{"$f":"[1]ACS_16_5YR_B18101_with_ann!AC53","v":19},{"$f":"[1]ACS_16_5YR_B18101_with_ann!AD53","v":403},{"$f":"[1]ACS_16_5YR_B18101_with_ann!AE53","v":103},{"$f":"[1]ACS_16_5YR_B18101_with_ann!AF53","v":83},{"$f":"[1]ACS_16_5YR_B18101_with_ann!AG53","v":37},{"$f":"[1]ACS_16_5YR_B18101_with_ann!AH53","v":5},{"$f":"[1]ACS_16_5YR_B18101_with_ann!AI53","v":8},{"$f":"[1]ACS_16_5YR_B18101_with_ann!AJ53","v":78},{"$f":"[1]ACS_16_5YR_B18101_with_ann!AK53","v":37},{"$f":"[1]ACS_16_5YR_B18101_with_ann!AL53","v":102},{"$f":"[1]ACS_16_5YR_B18101_with_ann!AM53","v":43},{"$f":"[1]ACS_16_5YR_B18101_with_ann!AN53","v":42},{"$f":"[1]ACS_16_5YR_B18101_with_ann!AO53","v":35},{"$f":"[1]ACS_16_5YR_B18101_with_ann!AP53","v":60},{"$f":"[1]ACS_16_5YR_B18101_with_ann!AQ53","v":30},{"$f":"[1]ACS_16_5YR_B18101_with_ann!AR53","v":1248},{"$f":"[1]ACS_16_5YR_B18101_with_ann!AS53","v":240},{"$f":"[1]ACS_16_5YR_B18101_with_ann!AT53","v":140},{"$f":"[1]ACS_16_5YR_B18101_with_ann!AU53","v":107},{"$f":"[1]ACS_16_5YR_B18101_with_ann!AV53","v":0},{"$f":"[1]ACS_16_5YR_B18101_with_ann!AW53","v":12},{"$f":"[1]ACS_16_5YR_B18101_with_ann!AX53","v":140},{"$f":"[1]ACS_16_5YR_B18101_with_ann!AY53","v":107},{"$f":"[1]ACS_16_5YR_B18101_with_ann!AZ53","v":198},{"$f":"[1]ACS_16_5YR_B18101_with_ann!BA53","v":77},{"$f":"[1]ACS_16_5YR_B18101_with_ann!BB53","v":0},{"$f":"[1]ACS_16_5YR_B18101_with_ann!BC53","v":12},{"$f":"[1]ACS_16_5YR_B18101_with_ann!BD53","v":198},{"$f":"[1]ACS_16_5YR_B18101_with_ann!BE53","v":77},{"$f":"[1]ACS_16_5YR_B18101_with_ann!BF53","v":117},{"$f":"[1]ACS_16_5YR_B18101_with_ann!BG53","v":53},{"$f":"[1]ACS_16_5YR_B18101_with_ann!BH53","v":13},{"$f":"[1]ACS_16_5YR_B18101_with_ann!BI53","v":21},{"$f":"[1]ACS_16_5YR_B18101_with_ann!BJ53","v":104},{"$f":"[1]ACS_16_5YR_B18101_with_ann!BK53","v":50},{"$f":"[1]ACS_16_5YR_B18101_with_ann!BL53","v":586},{"$f":"[1]ACS_16_5YR_B18101_with_ann!BM53","v":139},{"$f":"[1]ACS_16_5YR_B18101_with_ann!BN53","v":109},{"$f":"[1]ACS_16_5YR_B18101_with_ann!BO53","v":55},{"$f":"[1]ACS_16_5YR_B18101_with_ann!BP53","v":477},{"$f":"[1]ACS_16_5YR_B18101_with_ann!BQ53","v":128},{"$f":"[1]ACS_16_5YR_B18101_with_ann!BR53","v":120},{"$f":"[1]ACS_16_5YR_B18101_with_ann!BS53","v":51},{"$f":"[1]ACS_16_5YR_B18101_with_ann!BT53","v":21},{"$f":"[1]ACS_16_5YR_B18101_with_ann!BU53","v":16},{"$f":"[1]ACS_16_5YR_B18101_with_ann!BV53","v":99},{"$f":"[1]ACS_16_5YR_B18101_with_ann!BW53","v":47},{"$f":"[1]ACS_16_5YR_B18101_with_ann!BX53","v":87},{"$f":"[1]ACS_16_5YR_B18101_with_ann!BY53","v":42},{"$f":"[1]ACS_16_5YR_B18101_with_ann!BZ53","v":27},{"$f":"[1]ACS_16_5YR_B18101_with_ann!CA53","v":21},{"$f":"[1]ACS_16_5YR_B18101_with_ann!CB53","v":60},{"$f":"[1]ACS_16_5YR_B18101_with_ann!CC53","v":37}]
["06000US3300545700","0600000US3300550580","060",{"$f":"[1]ACS_16_5YR_B18101_with_ann!C54","v":"Marlow"},{"$f":"[1]ACS_16_5YR_B18101_with_ann!D54","v":803},{"$f":"[1]ACS_16_5YR_B18101_with_ann!E54","v":175},{"$f":"[1]ACS_16_5YR_B18101_with_ann!F54","v":364},{"$f":"[1]ACS_16_5YR_B18101_with_ann!G54","v":80},{"$f":"[1]ACS_16_5YR_B18101_with_ann!H54","v":23},{"$f":"[1]ACS_16_5YR_B18101_with_ann!I54","v":26},{"$f":"[1]ACS_16_5YR_B18101_with_ann!J54","v":0},{"$f":"[1]ACS_16_5YR_B18101_with_ann!K54","v":12},{"$f":"[1]ACS_16_5YR_B18101_with_ann!L54","v":23},{"$f":"[1]ACS_16_5YR_B18101_with_ann!M54","v":26},{"$f":"[1]ACS_16_5YR_B18101_with_ann!N54","v":37},{"$f":"[1]ACS_16_5YR_B18101_with_ann!O54","v":23},{"$f":"[1]ACS_16_5YR_B18101_with_ann!P54","v":2},{"$f":"[1]ACS_16_5YR_B18101_with_ann!Q54","v":3},{"$f":"[1]ACS_16_5YR_B18101_with_ann!R54","v":35},{"$f":"[1]ACS_16_5YR_B18101_with_ann!S54","v":23},{"$f":"[1]ACS_16_5YR_B18101_with_ann!T54","v":53},{"$f":"[1]ACS_16_5YR_B18101_with_ann!U54","v":32},{"$f":"[1]ACS_16_5YR_B18101_with_ann!V54","v":2},{"$f":"[1]ACS_16_5YR_B18101_with_ann!W54","v":6},{"$f":"[1]ACS_16_5YR_B18101_with_ann!X54","v":51},{"$f":"[1]ACS_16_5YR_B18101_with_ann!Y54","v":31},{"$f":"[1]ACS_16_5YR_B18101_with_ann!Z54","v":153},{"$f":"[1]ACS_16_5YR_B18101_with_ann!AA54","v":41},{"$f":"[1]ACS_16_5YR_B18101_with_ann!AB54","v":9},{"$f":"[1]ACS_16_5YR_B18101_with_ann!AC54","v":10},{"$f":"[1]ACS_16_5YR_B18101_with_ann!AD54","v":144},{"$f":"[1]ACS_16_5YR_B18101_with_ann!AE54","v":39},{"$f":"[1]ACS_16_5YR_B18101_with_ann!AF54","v":75},{"$f":"[1]ACS_16_5YR_B18101_with_ann!AG54","v":38},{"$f":"[1]ACS_16_5YR_B18101_with_ann!AH54","v":23},{"$f":"[1]ACS_16_5YR_B18101_with_ann!AI54","v":28},{"$f":"[1]ACS_16_5YR_B18101_with_ann!AJ54","v":52},{"$f":"[1]ACS_16_5YR_B18101_with_ann!AK54","v":26},{"$f":"[1]ACS_16_5YR_B18101_with_ann!AL54","v":23},{"$f":"[1]ACS_16_5YR_B18101_with_ann!AM54","v":13},{"$f":"[1]ACS_16_5YR_B18101_with_ann!AN54","v":6},{"$f":"[1]ACS_16_5YR_B18101_with_ann!AO54","v":6},{"$f":"[1]ACS_16_5YR_B18101_with_ann!AP54","v":17},{"$f":"[1]ACS_16_5YR_B18101_with_ann!AQ54","v":10},{"$f":"[1]ACS_16_5YR_B18101_with_ann!AR54","v":439},{"$f":"[1]ACS_16_5YR_B18101_with_ann!AS54","v":110},{"$f":"[1]ACS_16_5YR_B18101_with_ann!AT54","v":19},{"$f":"[1]ACS_16_5YR_B18101_with_ann!AU54","v":19},{"$f":"[1]ACS_16_5YR_B18101_with_ann!AV54","v":0},{"$f":"[1]ACS_16_5YR_B18101_with_ann!AW54","v":12},{"$f":"[1]ACS_16_5YR_B18101_with_ann!AX54","v":19},{"$f":"[1]ACS_16_5YR_B18101_with_ann!AY54","v":19},{"$f":"[1]ACS_16_5YR_B18101_with_ann!AZ54","v":116},{"$f":"[1]ACS_16_5YR_B18101_with_ann!BA54","v":56},{"$f":"[1]ACS_16_5YR_B18101_with_ann!BB54","v":17},{"$f":"[1]ACS_16_5YR_B18101_with_ann!BC54","v":16},{"$f":"[1]ACS_16_5YR_B18101_with_ann!BD54","v":99},{"$f":"[1]ACS_16_5YR_B18101_with_ann!BE54","v":51},{"$f":"[1]ACS_16_5YR_B18101_with_ann!BF54","v":72},{"$f":"[1]ACS_16_5YR_B18101_with_ann!BG54","v":40},{"$f":"[1]ACS_16_5YR_B18101_with_ann!BH54","v":0},{"$f":"[1]ACS_16_5YR_B18101_with_ann!BI54","v":12},{"$f":"[1]ACS_16_5YR_B18101_with_ann!BJ54","v":72},{"$f":"[1]ACS_16_5YR_B18101_with_ann!BK54","v":40},{"$f":"[1]ACS_16_5YR_B18101_with_ann!BL54","v":132},{"$f":"[1]ACS_16_5YR_B18101_with_ann!BM54","v":39},{"$f":"[1]ACS_16_5YR_B18101_with_ann!BN54","v":13},{"$f":"[1]ACS_16_5YR_B18101_with_ann!BO54","v":13},{"$f":"[1]ACS_16_5YR_B18101_with_ann!BP54","v":119},{"$f":"[1]ACS_16_5YR_B18101_with_ann!BQ54","v":36},{"$f":"[1]ACS_16_5YR_B18101_with_ann!BR54","v":67},{"$f":"[1]ACS_16_5YR_B18101_with_ann!BS54","v":38},{"$f":"[1]ACS_16_5YR_B18101_with_ann!BT54","v":32},{"$f":"[1]ACS_16_5YR_B18101_with_ann!BU54","v":31},{"$f":"[1]ACS_16_5YR_B18101_with_ann!BV54","v":35},{"$f":"[1]ACS_16_5YR_B18101_with_ann!BW54","v":22},{"$f":"[1]ACS_16_5YR_B18101_with_ann!BX54","v":33},{"$f":"[1]ACS_16_5YR_B18101_with_ann!BY54","v":18},{"$f":"[1]ACS_16_5YR_B18101_with_ann!BZ54","v":13},{"$f":"[1]ACS_16_5YR_B18101_with_ann!CA54","v":12},{"$f":"[1]ACS_16_5YR_B18101_with_ann!CB54","v":20},{"$f":"[1]ACS_16_5YR_B18101_with_ann!CC54","v":12}]
["06000US3300550580","0600000US3300564420","060",{"$f":"[1]ACS_16_5YR_B18101_with_ann!C55","v":"Nelson"},{"$f":"[1]ACS_16_5YR_B18101_with_ann!D55","v":550},{"$f":"[1]ACS_16_5YR_B18101_with_ann!E55","v":106},{"$f":"[1]ACS_16_5YR_B18101_with_ann!F55","v":252},{"$f":"[1]ACS_16_5YR_B18101_with_ann!G55","v":50},{"$f":"[1]ACS_16_5YR_B18101_with_ann!H55","v":15},{"$f":"[1]ACS_16_5YR_B18101_with_ann!I55","v":8},{"$f":"[1]ACS_16_5YR_B18101_with_ann!J55","v":0},{"$f":"[1]ACS_16_5YR_B18101_with_ann!K55","v":12},{"$f":"[1]ACS_16_5YR_B18101_with_ann!L55","v":15},{"$f":"[1]ACS_16_5YR_B18101_with_ann!M55","v":8},{"$f":"[1]ACS_16_5YR_B18101_with_ann!N55","v":17},{"$f":"[1]ACS_16_5YR_B18101_with_ann!O55","v":12},{"$f":"[1]ACS_16_5YR_B18101_with_ann!P55","v":0},{"$f":"[1]ACS_16_5YR_B18101_with_ann!Q55","v":12},{"$f":"[1]ACS_16_5YR_B18101_with_ann!R55","v":17},{"$f":"[1]ACS_16_5YR_B18101_with_ann!S55","v":12},{"$f":"[1]ACS_16_5YR_B18101_with_ann!T55","v":25},{"$f":"[1]ACS_16_5YR_B18101_with_ann!U55","v":15},{"$f":"[1]ACS_16_5YR_B18101_with_ann!V55","v":2},{"$f":"[1]ACS_16_5YR_B18101_with_ann!W55","v":3},{"$f":"[1]ACS_16_5YR_B18101_with_ann!X55","v":23},{"$f":"[1]ACS_16_5YR_B18101_with_ann!Y55","v":14},{"$f":"[1]ACS_16_5YR_B18101_with_ann!Z55","v":116},{"$f":"[1]ACS_16_5YR_B18101_with_ann!AA55","v":30},{"$f":"[1]ACS_16_5YR_B18101_with_ann!AB55","v":13},{"$f":"[1]ACS_16_5YR_B18101_with_ann!AC55","v":14},{"$f":"[1]ACS_16_5YR_B18101_with_ann!AD55","v":103},{"$f":"[1]ACS_16_5YR_B18101_with_ann!AE55","v":27},{"$f":"[1]ACS_16_5YR_B18101_with_ann!AF55","v":59},{"$f":"[1]ACS_16_5YR_B18101_with_ann!AG55","v":21},{"$f":"[1]ACS_16_5YR_B18101_with_ann!AH55","v":7},{"$f":"[1]ACS_16_5YR_B18101_with_ann!AI55","v":7},{"$f":"[1]ACS_16_5YR_B18101_with_ann!AJ55","v":52},{"$f":"[1]ACS_16_5YR_B18101_with_ann!AK55","v":20},{"$f":"[1]ACS_16_5YR_B18101_with_ann!AL55","v":20},{"$f":"[1]ACS_16_5YR_B18101_with_ann!AM55","v":10},{"$f":"[1]ACS_16_5YR_B18101_with_ann!AN55","v":15},{"$f":"[1]ACS_16_5YR_B18101_with_ann!AO55","v":9},{"$f":"[1]ACS_16_5YR_B18101_with_ann!AP55","v":5},{"$f":"[1]ACS_16_5YR_B18101_with_ann!AQ55","v":5},{"$f":"[1]ACS_16_5YR_B18101_with_ann!AR55","v":298},{"$f":"[1]ACS_16_5YR_B18101_with_ann!AS55","v":67},{"$f":"[1]ACS_16_5YR_B18101_with_ann!AT55","v":7},{"$f":"[1]ACS_16_5YR_B18101_with_ann!AU55","v":7},{"$f":"[1]ACS_16_5YR_B18101_with_ann!AV55","v":0},{"$f":"[1]ACS_16_5YR_B18101_with_ann!AW55","v":12},{"$f":"[1]ACS_16_5YR_B18101_with_ann!AX55","v":7},{"$f":"[1]ACS_16_5YR_B18101_with_ann!AY55","v":7},{"$f":"[1]ACS_16_5YR_B18101_with_ann!AZ55","v":46},{"$f":"[1]ACS_16_5YR_B18101_with_ann!BA55","v":30},{"$f":"[1]ACS_16_5YR_B18101_with_ann!BB55","v":0},{"$f":"[1]ACS_16_5YR_B18101_with_ann!BC55","v":12},{"$f":"[1]ACS_16_5YR_B18101_with_ann!BD55","v":46},{"$f":"[1]ACS_16_5YR_B18101_with_ann!BE55","v":30},{"$f":"[1]ACS_16_5YR_B18101_with_ann!BF55","v":27},{"$f":"[1]ACS_16_5YR_B18101_with_ann!BG55","v":18},{"$f":"[1]ACS_16_5YR_B18101_with_ann!BH55","v":4},{"$f":"[1]ACS_16_5YR_B18101_with_ann!BI55","v":5},{"$f":"[1]ACS_16_5YR_B18101_with_ann!BJ55","v":23},{"$f":"[1]ACS_16_5YR_B18101_with_ann!BK55","v":16},{"$f":"[1]ACS_16_5YR_B18101_with_ann!BL55","v":140},{"$f":"[1]ACS_16_5YR_B18101_with_ann!BM55","v":38},{"$f":"[1]ACS_16_5YR_B18101_with_ann!BN55","v":9},{"$f":"[1]ACS_16_5YR_B18101_with_ann!BO55","v":10},{"$f":"[1]ACS_16_5YR_B18101_with_ann!BP55","v":131},{"$f":"[1]ACS_16_5YR_B18101_with_ann!BQ55","v":36},{"$f":"[1]ACS_16_5YR_B18101_with_ann!BR55","v":48},{"$f":"[1]ACS_16_5YR_B18101_with_ann!BS55","v":17},{"$f":"[1]ACS_16_5YR_B18101_with_ann!BT55","v":7},{"$f":"[1]ACS_16_5YR_B18101_with_ann!BU55","v":6},{"$f":"[1]ACS_16_5YR_B18101_with_ann!BV55","v":41},{"$f":"[1]ACS_16_5YR_B18101_with_ann!BW55","v":16},{"$f":"[1]ACS_16_5YR_B18101_with_ann!BX55","v":30},{"$f":"[1]ACS_16_5YR_B18101_with_ann!BY55","v":21},{"$f":"[1]ACS_16_5YR_B18101_with_ann!BZ55","v":11},{"$f":"[1]ACS_16_5YR_B18101_with_ann!CA55","v":12},{"$f":"[1]ACS_16_5YR_B18101_with_ann!CB55","v":19},{"$f":"[1]ACS_16_5YR_B18101_with_ann!CC55","v":13}]
["06000US3300564420","0600000US3300564580","060",{"$f":"[1]ACS_16_5YR_B18101_with_ann!C56","v":"Richmond"},{"$f":"[1]ACS_16_5YR_B18101_with_ann!D56","v":1104},{"$f":"[1]ACS_16_5YR_B18101_with_ann!E56","v":251},{"$f":"[1]ACS_16_5YR_B18101_with_ann!F56","v":595},{"$f":"[1]ACS_16_5YR_B18101_with_ann!G56","v":161},{"$f":"[1]ACS_16_5YR_B18101_with_ann!H56","v":38},{"$f":"[1]ACS_16_5YR_B18101_with_ann!I56","v":31},{"$f":"[1]ACS_16_5YR_B18101_with_ann!J56","v":0},{"$f":"[1]ACS_16_5YR_B18101_with_ann!K56","v":12},{"$f":"[1]ACS_16_5YR_B18101_with_ann!L56","v":38},{"$f":"[1]ACS_16_5YR_B18101_with_ann!M56","v":31},{"$f":"[1]ACS_16_5YR_B18101_with_ann!N56","v":82},{"$f":"[1]ACS_16_5YR_B18101_with_ann!O56","v":37},{"$f":"[1]ACS_16_5YR_B18101_with_ann!P56","v":13},{"$f":"[1]ACS_16_5YR_B18101_with_ann!Q56","v":19},{"$f":"[1]ACS_16_5YR_B18101_with_ann!R56","v":69},{"$f":"[1]ACS_16_5YR_B18101_with_ann!S56","v":31},{"$f":"[1]ACS_16_5YR_B18101_with_ann!T56","v":110},{"$f":"[1]ACS_16_5YR_B18101_with_ann!U56","v":61},{"$f":"[1]ACS_16_5YR_B18101_with_ann!V56","v":3},{"$f":"[1]ACS_16_5YR_B18101_with_ann!W56","v":6},{"$f":"[1]ACS_16_5YR_B18101_with_ann!X56","v":107},{"$f":"[1]ACS_16_5YR_B18101_with_ann!Y56","v":60},{"$f":"[1]ACS_16_5YR_B18101_with_ann!Z56","v":192},{"$f":"[1]ACS_16_5YR_B18101_with_ann!AA56","v":53},{"$f":"[1]ACS_16_5YR_B18101_with_ann!AB56","v":15},{"$f":"[1]ACS_16_5YR_B18101_with_ann!AC56","v":10},{"$f":"[1]ACS_16_5YR_B18101_with_ann!AD56","v":177},{"$f":"[1]ACS_16_5YR_B18101_with_ann!AE56","v":55},{"$f":"[1]ACS_16_5YR_B18101_with_ann!AF56","v":145},{"$f":"[1]ACS_16_5YR_B18101_with_ann!AG56","v":100},{"$f":"[1]ACS_16_5YR_B18101_with_ann!AH56","v":22},{"$f":"[1]ACS_16_5YR_B18101_with_ann!AI56","v":13},{"$f":"[1]ACS_16_5YR_B18101_with_ann!AJ56","v":123},{"$f":"[1]ACS_16_5YR_B18101_with_ann!AK56","v":96},{"$f":"[1]ACS_16_5YR_B18101_with_ann!AL56","v":28},{"$f":"[1]ACS_16_5YR_B18101_with_ann!AM56","v":16},{"$f":"[1]ACS_16_5YR_B18101_with_ann!AN56","v":26},{"$f":"[1]ACS_16_5YR_B18101_with_ann!AO56","v":16},{"$f":"[1]ACS_16_5YR_B18101_with_ann!AP56","v":2},{"$f":"[1]ACS_16_5YR_B18101_with_ann!AQ56","v":3},{"$f":"[1]ACS_16_5YR_B18101_with_ann!AR56","v":509},{"$f":"[1]ACS_16_5YR_B18101_with_ann!AS56","v":121},{"$f":"[1]ACS_16_5YR_B18101_with_ann!AT56","v":10},{"$f":"[1]ACS_16_5YR_B18101_with_ann!AU56","v":14},{"$f":"[1]ACS_16_5YR_B18101_with_ann!AV56","v":0},{"$f":"[1]ACS_16_5YR_B18101_with_ann!AW56","v":12},{"$f":"[1]ACS_16_5YR_B18101_with_ann!AX56","v":10},{"$f":"[1]ACS_16_5YR_B18101_with_ann!AY56","v":14},{"$f":"[1]ACS_16_5YR_B18101_with_ann!AZ56","v":58},{"$f":"[1]ACS_16_5YR_B18101_with_ann!BA56","v":27},{"$f":"[1]ACS_16_5YR_B18101_with_ann!BB56","v":0},{"$f":"[1]ACS_16_5YR_B18101_with_ann!BC56","v":12},{"$f":"[1]ACS_16_5YR_B18101_with_ann!BD56","v":58},{"$f":"[1]ACS_16_5YR_B18101_with_ann!BE56","v":27},{"$f":"[1]ACS_16_5YR_B18101_with_ann!BF56","v":69},{"$f":"[1]ACS_16_5YR_B18101_with_ann!BG56","v":47},{"$f":"[1]ACS_16_5YR_B18101_with_ann!BH56","v":0},{"$f":"[1]ACS_16_5YR_B18101_with_ann!BI56","v":12},{"$f":"[1]ACS_16_5YR_B18101_with_ann!BJ56","v":69},{"$f":"[1]ACS_16_5YR_B18101_with_ann!BK56","v":47},{"$f":"[1]ACS_16_5YR_B18101_with_ann!BL56","v":226},{"$f":"[1]ACS_16_5YR_B18101_with_ann!BM56","v":60},{"$f":"[1]ACS_16_5YR_B18101_with_ann!BN56","v":34},{"$f":"[1]ACS_16_5YR_B18101_with_ann!BO56","v":22},{"$f":"[1]ACS_16_5YR_B18101_with_ann!BP56","v":192},{"$f":"[1]ACS_16_5YR_B18101_with_ann!BQ56","v":58},{"$f":"[1]ACS_16_5YR_B18101_with_ann!BR56","v":69},{"$f":"[1]ACS_16_5YR_B18101_with_ann!BS56","v":30},{"$f":"[1]ACS_16_5YR_B18101_with_ann!BT56","v":13},{"$f":"[1]ACS_16_5YR_B18101_with_ann!BU56","v":10},{"$f":"[1]ACS_16_5YR_B18101_with_ann!BV56","v":56},{"$f":"[1]ACS_16_5YR_B18101_with_ann!BW56","v":28},{"$f":"[1]ACS_16_5YR_B18101_with_ann!BX56","v":77},{"$f":"[1]ACS_16_5YR_B18101_with_ann!BY56","v":40},{"$f":"[1]ACS_16_5YR_B18101_with_ann!BZ56","v":52},{"$f":"[1]ACS_16_5YR_B18101_with_ann!CA56","v":38},{"$f":"[1]ACS_16_5YR_B18101_with_ann!CB56","v":25},{"$f":"[1]ACS_16_5YR_B18101_with_ann!CC56","v":18}]
["06000US3300564580","0600000US3300565700","060",{"$f":"[1]ACS_16_5YR_B18101_with_ann!C57","v":"Rindge"},{"$f":"[1]ACS_16_5YR_B18101_with_ann!D57","v":6443},{"$f":"[1]ACS_16_5YR_B18101_with_ann!E57","v":18},{"$f":"[1]ACS_16_5YR_B18101_with_ann!F57","v":3162},{"$f":"[1]ACS_16_5YR_B18101_with_ann!G57","v":187},{"$f":"[1]ACS_16_5YR_B18101_with_ann!H57","v":144},{"$f":"[1]ACS_16_5YR_B18101_with_ann!I57","v":96},{"$f":"[1]ACS_16_5YR_B18101_with_ann!J57","v":0},{"$f":"[1]ACS_16_5YR_B18101_with_ann!K57","v":17},{"$f":"[1]ACS_16_5YR_B18101_with_ann!L57","v":144},{"$f":"[1]ACS_16_5YR_B18101_with_ann!M57","v":96},{"$f":"[1]ACS_16_5YR_B18101_with_ann!N57","v":470},{"$f":"[1]ACS_16_5YR_B18101_with_ann!O57","v":153},{"$f":"[1]ACS_16_5YR_B18101_with_ann!P57","v":0},{"$f":"[1]ACS_16_5YR_B18101_with_ann!Q57","v":17},{"$f":"[1]ACS_16_5YR_B18101_with_ann!R57","v":470},{"$f":"[1]ACS_16_5YR_B18101_with_ann!S57","v":153},{"$f":"[1]ACS_16_5YR_B18101_with_ann!T57","v":941},{"$f":"[1]ACS_16_5YR_B18101_with_ann!U57","v":135},{"$f":"[1]ACS_16_5YR_B18101_with_ann!V57","v":68},{"$f":"[1]ACS_16_5YR_B18101_with_ann!W57","v":51},{"$f":"[1]ACS_16_5YR_B18101_with_ann!X57","v":873},{"$f":"[1]ACS_16_5YR_B18101_with_ann!Y57","v":122},{"$f":"[1]ACS_16_5YR_B18101_with_ann!Z57","v":983},{"$f":"[1]ACS_16_5YR_B18101_with_ann!AA57","v":154},{"$f":"[1]ACS_16_5YR_B18101_with_ann!AB57","v":31},{"$f":"[1]ACS_16_5YR_B18101_with_ann!AC57","v":33},{"$f":"[1]ACS_16_5YR_B18101_with_ann!AD57","v":952},{"$f":"[1]ACS_16_5YR_B18101_with_ann!AE57","v":153},{"$f":"[1]ACS_16_5YR_B18101_with_ann!AF57","v":428},{"$f":"[1]ACS_16_5YR_B18101_with_ann!AG57","v":106},{"$f":"[1]ACS_16_5YR_B18101_with_ann!AH57","v":45},{"$f":"[1]ACS_16_5YR_B18101_with_ann!AI57","v":47},{"$f":"[1]ACS_16_5YR_B18101_with_ann!AJ57","v":383},{"$f":"[1]ACS_16_5YR_B18101_with_ann!AK57","v":120},{"$f":"[1]ACS_16_5YR_B18101_with_ann!AL57","v":196},{"$f":"[1]ACS_16_5YR_B18101_with_ann!AM57","v":97},{"$f":"[1]ACS_16_5YR_B18101_with_ann!AN57","v":35},{"$f":"[1]ACS_16_5YR_B18101_with_ann!AO57","v":32},{"$f":"[1]ACS_16_5YR_B18101_with_ann!AP57","v":161},{"$f":"[1]ACS_16_5YR_B18101_with_ann!AQ57","v":91},{"$f":"[1]ACS_16_5YR_B18101_with_ann!AR57","v":3281},{"$f":"[1]ACS_16_5YR_B18101_with_ann!AS57","v":187},{"$f":"[1]ACS_16_5YR_B18101_with_ann!AT57","v":116},{"$f":"[1]ACS_16_5YR_B18101_with_ann!AU57","v":74},{"$f":"[1]ACS_16_5YR_B18101_with_ann!AV57","v":0},{"$f":"[1]ACS_16_5YR_B18101_with_ann!AW57","v":17},{"$f":"[1]ACS_16_5YR_B18101_with_ann!AX57","v":116},{"$f":"[1]ACS_16_5YR_B18101_with_ann!AY57","v":74},{"$f":"[1]ACS_16_5YR_B18101_with_ann!AZ57","v":443},{"$f":"[1]ACS_16_5YR_B18101_with_ann!BA57","v":150},{"$f":"[1]ACS_16_5YR_B18101_with_ann!BB57","v":9},{"$f":"[1]ACS_16_5YR_B18101_with_ann!BC57","v":16},{"$f":"[1]ACS_16_5YR_B18101_with_ann!BD57","v":434},{"$f":"[1]ACS_16_5YR_B18101_with_ann!BE57","v":148},{"$f":"[1]ACS_16_5YR_B18101_with_ann!BF57","v":1002},{"$f":"[1]ACS_16_5YR_B18101_with_ann!BG57","v":156},{"$f":"[1]ACS_16_5YR_B18101_with_ann!BH57","v":144},{"$f":"[1]ACS_16_5YR_B18101_with_ann!BI57","v":84},{"$f":"[1]ACS_16_5YR_B18101_with_ann!BJ57","v":858},{"$f":"[1]ACS_16_5YR_B18101_with_ann!BK57","v":157},{"$f":"[1]ACS_16_5YR_B18101_with_ann!BL57","v":1067},{"$f":"[1]ACS_16_5YR_B18101_with_ann!BM57","v":134},{"$f":"[1]ACS_16_5YR_B18101_with_ann!BN57","v":117},{"$f":"[1]ACS_16_5YR_B18101_with_ann!BO57","v":82},{"$f":"[1]ACS_16_5YR_B18101_with_ann!BP57","v":950},{"$f":"[1]ACS_16_5YR_B18101_with_ann!BQ57","v":131},{"$f":"[1]ACS_16_5YR_B18101_with_ann!BR57","v":431},{"$f":"[1]ACS_16_5YR_B18101_with_ann!BS57","v":102},{"$f":"[1]ACS_16_5YR_B18101_with_ann!BT57","v":51},{"$f":"[1]ACS_16_5YR_B18101_with_ann!BU57","v":39},{"$f":"[1]ACS_16_5YR_B18101_with_ann!BV57","v":380},{"$f":"[1]ACS_16_5YR_B18101_with_ann!BW57","v":113},{"$f":"[1]ACS_16_5YR_B18101_with_ann!BX57","v":222},{"$f":"[1]ACS_16_5YR_B18101_with_ann!BY57","v":107},{"$f":"[1]ACS_16_5YR_B18101_with_ann!BZ57","v":124},{"$f":"[1]ACS_16_5YR_B18101_with_ann!CA57","v":94},{"$f":"[1]ACS_16_5YR_B18101_with_ann!CB57","v":98},{"$f":"[1]ACS_16_5YR_B18101_with_ann!CC57","v":56}]
["06000US3300565700","0600000US3300573700","060",{"$f":"[1]ACS_16_5YR_B18101_with_ann!C58","v":"Roxbury"},{"$f":"[1]ACS_16_5YR_B18101_with_ann!D58","v":295},{"$f":"[1]ACS_16_5YR_B18101_with_ann!E58","v":142},{"$f":"[1]ACS_16_5YR_B18101_with_ann!F58","v":135},{"$f":"[1]ACS_16_5YR_B18101_with_ann!G58","v":70},{"$f":"[1]ACS_16_5YR_B18101_with_ann!H58","v":36},{"$f":"[1]ACS_16_5YR_B18101_with_ann!I58","v":37},{"$f":"[1]ACS_16_5YR_B18101_with_ann!J58","v":0},{"$f":"[1]ACS_16_5YR_B18101_with_ann!K58","v":12},{"$f":"[1]ACS_16_5YR_B18101_with_ann!L58","v":36},{"$f":"[1]ACS_16_5YR_B18101_with_ann!M58","v":37},{"$f":"[1]ACS_16_5YR_B18101_with_ann!N58","v":4},{"$f":"[1]ACS_16_5YR_B18101_with_ann!O58","v":6},{"$f":"[1]ACS_16_5YR_B18101_with_ann!P58","v":0},{"$f":"[1]ACS_16_5YR_B18101_with_ann!Q58","v":12},{"$f":"[1]ACS_16_5YR_B18101_with_ann!R58","v":4},{"$f":"[1]ACS_16_5YR_B18101_with_ann!S58","v":6},{"$f":"[1]ACS_16_5YR_B18101_with_ann!T58","v":17},{"$f":"[1]ACS_16_5YR_B18101_with_ann!U58","v":10},{"$f":"[1]ACS_16_5YR_B18101_with_ann!V58","v":8},{"$f":"[1]ACS_16_5YR_B18101_with_ann!W58","v":11},{"$f":"[1]ACS_16_5YR_B18101_with_ann!X58","v":9},{"$f":"[1]ACS_16_5YR_B18101_with_ann!Y58","v":6},{"$f":"[1]ACS_16_5YR_B18101_with_ann!Z58","v":65},{"$f":"[1]ACS_16_5YR_B18101_with_ann!AA58","v":37},{"$f":"[1]ACS_16_5YR_B18101_with_ann!AB58","v":6},{"$f":"[1]ACS_16_5YR_B18101_with_ann!AC58","v":5},{"$f":"[1]ACS_16_5YR_B18101_with_ann!AD58","v":59},{"$f":"[1]ACS_16_5YR_B18101_with_ann!AE58","v":35},{"$f":"[1]ACS_16_5YR_B18101_with_ann!AF58","v":10},{"$f":"[1]ACS_16_5YR_B18101_with_ann!AG58","v":6},{"$f":"[1]ACS_16_5YR_B18101_with_ann!AH58","v":3},{"$f":"[1]ACS_16_5YR_B18101_with_ann!AI58","v":4},{"$f":"[1]ACS_16_5YR_B18101_with_ann!AJ58","v":7},{"$f":"[1]ACS_16_5YR_B18101_with_ann!AK58","v":6},{"$f":"[1]ACS_16_5YR_B18101_with_ann!AL58","v":3},{"$f":"[1]ACS_16_5YR_B18101_with_ann!AM58","v":3},{"$f":"[1]ACS_16_5YR_B18101_with_ann!AN58","v":1},{"$f":"[1]ACS_16_5YR_B18101_with_ann!AO58","v":2},{"$f":"[1]ACS_16_5YR_B18101_with_ann!AP58","v":2},{"$f":"[1]ACS_16_5YR_B18101_with_ann!AQ58","v":3},{"$f":"[1]ACS_16_5YR_B18101_with_ann!AR58","v":160},{"$f":"[1]ACS_16_5YR_B18101_with_ann!AS58","v":78},{"$f":"[1]ACS_16_5YR_B18101_with_ann!AT58","v":2},{"$f":"[1]ACS_16_5YR_B18101_with_ann!AU58","v":3},{"$f":"[1]ACS_16_5YR_B18101_with_ann!AV58","v":0},{"$f":"[1]ACS_16_5YR_B18101_with_ann!AW58","v":12},{"$f":"[1]ACS_16_5YR_B18101_with_ann!AX58","v":2},{"$f":"[1]ACS_16_5YR_B18101_with_ann!AY58","v":3},{"$f":"[1]ACS_16_5YR_B18101_with_ann!AZ58","v":5},{"$f":"[1]ACS_16_5YR_B18101_with_ann!BA58","v":5},{"$f":"[1]ACS_16_5YR_B18101_with_ann!BB58","v":0},{"$f":"[1]ACS_16_5YR_B18101_with_ann!BC58","v":12},{"$f":"[1]ACS_16_5YR_B18101_with_ann!BD58","v":5},{"$f":"[1]ACS_16_5YR_B18101_with_ann!BE58","v":5},{"$f":"[1]ACS_16_5YR_B18101_with_ann!BF58","v":67},{"$f":"[1]ACS_16_5YR_B18101_with_ann!BG58","v":57},{"$f":"[1]ACS_16_5YR_B18101_with_ann!BH58","v":0},{"$f":"[1]ACS_16_5YR_B18101_with_ann!BI58","v":12},{"$f":"[1]ACS_16_5YR_B18101_with_ann!BJ58","v":67},{"$f":"[1]ACS_16_5YR_B18101_with_ann!BK58","v":57},{"$f":"[1]ACS_16_5YR_B18101_with_ann!BL58","v":66},{"$f":"[1]ACS_16_5YR_B18101_with_ann!BM58","v":30},{"$f":"[1]ACS_16_5YR_B18101_with_ann!BN58","v":30},{"$f":"[1]ACS_16_5YR_B18101_with_ann!BO58","v":24},{"$f":"[1]ACS_16_5YR_B18101_with_ann!BP58","v":36},{"$f":"[1]ACS_16_5YR_B18101_with_ann!BQ58","v":17},{"$f":"[1]ACS_16_5YR_B18101_with_ann!BR58","v":13},{"$f":"[1]ACS_16_5YR_B18101_with_ann!BS58","v":5},{"$f":"[1]ACS_16_5YR_B18101_with_ann!BT58","v":2},{"$f":"[1]ACS_16_5YR_B18101_with_ann!BU58","v":3},{"$f":"[1]ACS_16_5YR_B18101_with_ann!BV58","v":11},{"$f":"[1]ACS_16_5YR_B18101_with_ann!BW58","v":6},{"$f":"[1]ACS_16_5YR_B18101_with_ann!BX58","v":7},{"$f":"[1]ACS_16_5YR_B18101_with_ann!BY58","v":7},{"$f":"[1]ACS_16_5YR_B18101_with_ann!BZ58","v":5},{"$f":"[1]ACS_16_5YR_B18101_with_ann!CA58","v":6},{"$f":"[1]ACS_16_5YR_B18101_with_ann!CB58","v":2},{"$f":"[1]ACS_16_5YR_B18101_with_ann!CC58","v":3}]
["06000US3300573700","0600000US3300574900","060",{"$f":"[1]ACS_16_5YR_B18101_with_ann!C59","v":"Stoddard"},{"$f":"[1]ACS_16_5YR_B18101_with_ann!D59","v":1205},{"$f":"[1]ACS_16_5YR_B18101_with_ann!E59","v":162},{"$f":"[1]ACS_16_5YR_B18101_with_ann!F59","v":592},{"$f":"[1]ACS_16_5YR_B18101_with_ann!G59","v":98},{"$f":"[1]ACS_16_5YR_B18101_with_ann!H59","v":29},{"$f":"[1]ACS_16_5YR_B18101_with_ann!I59","v":16},{"$f":"[1]ACS_16_5YR_B18101_with_ann!J59","v":0},{"$f":"[1]ACS_16_5YR_B18101_with_ann!K59","v":12},{"$f":"[1]ACS_16_5YR_B18101_with_ann!L59","v":29},{"$f":"[1]ACS_16_5YR_B18101_with_ann!M59","v":16},{"$f":"[1]ACS_16_5YR_B18101_with_ann!N59","v":104},{"$f":"[1]ACS_16_5YR_B18101_with_ann!O59","v":62},{"$f":"[1]ACS_16_5YR_B18101_with_ann!P59","v":0},{"$f":"[1]ACS_16_5YR_B18101_with_ann!Q59","v":12},{"$f":"[1]ACS_16_5YR_B18101_with_ann!R59","v":104},{"$f":"[1]ACS_16_5YR_B18101_with_ann!S59","v":62},{"$f":"[1]ACS_16_5YR_B18101_with_ann!T59","v":81},{"$f":"[1]ACS_16_5YR_B18101_with_ann!U59","v":29},{"$f":"[1]ACS_16_5YR_B18101_with_ann!V59","v":8},{"$f":"[1]ACS_16_5YR_B18101_with_ann!W59","v":11},{"$f":"[1]ACS_16_5YR_B18101_with_ann!X59","v":73},{"$f":"[1]ACS_16_5YR_B18101_with_ann!Y59","v":30},{"$f":"[1]ACS_16_5YR_B18101_with_ann!Z59","v":279},{"$f":"[1]ACS_16_5YR_B18101_with_ann!AA59","v":49},{"$f":"[1]ACS_16_5YR_B18101_with_ann!AB59","v":19},{"$f":"[1]ACS_16_5YR_B18101_with_ann!AC59","v":14},{"$f":"[1]ACS_16_5YR_B18101_with_ann!AD59","v":260},{"$f":"[1]ACS_16_5YR_B18101_with_ann!AE59","v":48},{"$f":"[1]ACS_16_5YR_B18101_with_ann!AF59","v":68},{"$f":"[1]ACS_16_5YR_B18101_with_ann!AG59","v":17},{"$f":"[1]ACS_16_5YR_B18101_with_ann!AH59","v":5},{"$f":"[1]ACS_16_5YR_B18101_with_ann!AI59","v":6},{"$f":"[1]ACS_16_5YR_B18101_with_ann!AJ59","v":63},{"$f":"[1]ACS_16_5YR_B18101_with_ann!AK59","v":17},{"$f":"[1]ACS_16_5YR_B18101_with_ann!AL59","v":31},{"$f":"[1]ACS_16_5YR_B18101_with_ann!AM59","v":15},{"$f":"[1]ACS_16_5YR_B18101_with_ann!AN59","v":19},{"$f":"[1]ACS_16_5YR_B18101_with_ann!AO59","v":14},{"$f":"[1]ACS_16_5YR_B18101_with_ann!AP59","v":12},{"$f":"[1]ACS_16_5YR_B18101_with_ann!AQ59","v":7},{"$f":"[1]ACS_16_5YR_B18101_with_ann!AR59","v":613},{"$f":"[1]ACS_16_5YR_B18101_with_ann!AS59","v":91},{"$f":"[1]ACS_16_5YR_B18101_with_ann!AT59","v":29},{"$f":"[1]ACS_16_5YR_B18101_with_ann!AU59","v":23},{"$f":"[1]ACS_16_5YR_B18101_with_ann!AV59","v":0},{"$f":"[1]ACS_16_5YR_B18101_with_ann!AW59","v":12},{"$f":"[1]ACS_16_5YR_B18101_with_ann!AX59","v":29},{"$f":"[1]ACS_16_5YR_B18101_with_ann!AY59","v":23},{"$f":"[1]ACS_16_5YR_B18101_with_ann!AZ59","v":89},{"$f":"[1]ACS_16_5YR_B18101_with_ann!BA59","v":33},{"$f":"[1]ACS_16_5YR_B18101_with_ann!BB59","v":3},{"$f":"[1]ACS_16_5YR_B18101_with_ann!BC59","v":5},{"$f":"[1]ACS_16_5YR_B18101_with_ann!BD59","v":86},{"$f":"[1]ACS_16_5YR_B18101_with_ann!BE59","v":32},{"$f":"[1]ACS_16_5YR_B18101_with_ann!BF59","v":102},{"$f":"[1]ACS_16_5YR_B18101_with_ann!BG59","v":41},{"$f":"[1]ACS_16_5YR_B18101_with_ann!BH59","v":4},{"$f":"[1]ACS_16_5YR_B18101_with_ann!BI59","v":7},{"$f":"[1]ACS_16_5YR_B18101_with_ann!BJ59","v":98},{"$f":"[1]ACS_16_5YR_B18101_with_ann!BK59","v":40},{"$f":"[1]ACS_16_5YR_B18101_with_ann!BL59","v":257},{"$f":"[1]ACS_16_5YR_B18101_with_ann!BM59","v":49},{"$f":"[1]ACS_16_5YR_B18101_with_ann!BN59","v":6},{"$f":"[1]ACS_16_5YR_B18101_with_ann!BO59","v":7},{"$f":"[1]ACS_16_5YR_B18101_with_ann!BP59","v":251},{"$f":"[1]ACS_16_5YR_B18101_with_ann!BQ59","v":49},{"$f":"[1]ACS_16_5YR_B18101_with_ann!BR59","v":86},{"$f":"[1]ACS_16_5YR_B18101_with_ann!BS59","v":25},{"$f":"[1]ACS_16_5YR_B18101_with_ann!BT59","v":15},{"$f":"[1]ACS_16_5YR_B18101_with_ann!BU59","v":9},{"$f":"[1]ACS_16_5YR_B18101_with_ann!BV59","v":71},{"$f":"[1]ACS_16_5YR_B18101_with_ann!BW59","v":23},{"$f":"[1]ACS_16_5YR_B18101_with_ann!BX59","v":50},{"$f":"[1]ACS_16_5YR_B18101_with_ann!BY59","v":22},{"$f":"[1]ACS_16_5YR_B18101_with_ann!BZ59","v":28},{"$f":"[1]ACS_16_5YR_B18101_with_ann!CA59","v":18},{"$f":"[1]ACS_16_5YR_B18101_with_ann!CB59","v":22},{"$f":"[1]ACS_16_5YR_B18101_with_ann!CC59","v":11}]
["06000US3300574900","0600000US3300575300","060",{"$f":"[1]ACS_16_5YR_B18101_with_ann!C60","v":"Sullivan"},{"$f":"[1]ACS_16_5YR_B18101_with_ann!D60","v":681},{"$f":"[1]ACS_16_5YR_B18101_with_ann!E60","v":130},{"$f":"[1]ACS_16_5YR_B18101_with_ann!F60","v":342},{"$f":"[1]ACS_16_5YR_B18101_with_ann!G60","v":79},{"$f":"[1]ACS_16_5YR_B18101_with_ann!H60","v":35},{"$f":"[1]ACS_16_5YR_B18101_with_ann!I60","v":30},{"$f":"[1]ACS_16_5YR_B18101_with_ann!J60","v":0},{"$f":"[1]ACS_16_5YR_B18101_with_ann!K60","v":12},{"$f":"[1]ACS_16_5YR_B18101_with_ann!L60","v":35},{"$f":"[1]ACS_16_5YR_B18101_with_ann!M60","v":30},{"$f":"[1]ACS_16_5YR_B18101_with_ann!N60","v":18},{"$f":"[1]ACS_16_5YR_B18101_with_ann!O60","v":12},{"$f":"[1]ACS_16_5YR_B18101_with_ann!P60","v":7},{"$f":"[1]ACS_16_5YR_B18101_with_ann!Q60","v":5},{"$f":"[1]ACS_16_5YR_B18101_with_ann!R60","v":11},{"$f":"[1]ACS_16_5YR_B18101_with_ann!S60","v":11},{"$f":"[1]ACS_16_5YR_B18101_with_ann!T60","v":88},{"$f":"[1]ACS_16_5YR_B18101_with_ann!U60","v":36},{"$f":"[1]ACS_16_5YR_B18101_with_ann!V60","v":17},{"$f":"[1]ACS_16_5YR_B18101_with_ann!W60","v":20},{"$f":"[1]ACS_16_5YR_B18101_with_ann!X60","v":71},{"$f":"[1]ACS_16_5YR_B18101_with_ann!Y60","v":31},{"$f":"[1]ACS_16_5YR_B18101_with_ann!Z60","v":134},{"$f":"[1]ACS_16_5YR_B18101_with_ann!AA60","v":28},{"$f":"[1]ACS_16_5YR_B18101_with_ann!AB60","v":10},{"$f":"[1]ACS_16_5YR_B18101_with_ann!AC60","v":5},{"$f":"[1]ACS_16_5YR_B18101_with_ann!AD60","v":124},{"$f":"[1]ACS_16_5YR_B18101_with_ann!AE60","v":29},{"$f":"[1]ACS_16_5YR_B18101_with_ann!AF60","v":40},{"$f":"[1]ACS_16_5YR_B18101_with_ann!AG60","v":17},{"$f":"[1]ACS_16_5YR_B18101_with_ann!AH60","v":6},{"$f":"[1]ACS_16_5YR_B18101_with_ann!AI60","v":5},{"$f":"[1]ACS_16_5YR_B18101_with_ann!AJ60","v":34},{"$f":"[1]ACS_16_5YR_B18101_with_ann!AK60","v":17},{"$f":"[1]ACS_16_5YR_B18101_with_ann!AL60","v":27},{"$f":"[1]ACS_16_5YR_B18101_with_ann!AM60","v":14},{"$f":"[1]ACS_16_5YR_B18101_with_ann!AN60","v":12},{"$f":"[1]ACS_16_5YR_B18101_with_ann!AO60","v":11},{"$f":"[1]ACS_16_5YR_B18101_with_ann!AP60","v":15},{"$f":"[1]ACS_16_5YR_B18101_with_ann!AQ60","v":12},{"$f":"[1]ACS_16_5YR_B18101_with_ann!AR60","v":339},{"$f":"[1]ACS_16_5YR_B18101_with_ann!AS60","v":65},{"$f":"[1]ACS_16_5YR_B18101_with_ann!AT60","v":28},{"$f":"[1]ACS_16_5YR_B18101_with_ann!AU60","v":18},{"$f":"[1]ACS_16_5YR_B18101_with_ann!AV60","v":0},{"$f":"[1]ACS_16_5YR_B18101_with_ann!AW60","v":12},{"$f":"[1]ACS_16_5YR_B18101_with_ann!AX60","v":28},{"$f":"[1]ACS_16_5YR_B18101_with_ann!AY60","v":18},{"$f":"[1]ACS_16_5YR_B18101_with_ann!AZ60","v":30},{"$f":"[1]ACS_16_5YR_B18101_with_ann!BA60","v":15},{"$f":"[1]ACS_16_5YR_B18101_with_ann!BB60","v":3},{"$f":"[1]ACS_16_5YR_B18101_with_ann!BC60","v":4},{"$f":"[1]ACS_16_5YR_B18101_with_ann!BD60","v":27},{"$f":"[1]ACS_16_5YR_B18101_with_ann!BE60","v":14},{"$f":"[1]ACS_16_5YR_B18101_with_ann!BF60","v":74},{"$f":"[1]ACS_16_5YR_B18101_with_ann!BG60","v":37},{"$f":"[1]ACS_16_5YR_B18101_with_ann!BH60","v":0},{"$f":"[1]ACS_16_5YR_B18101_with_ann!BI60","v":12},{"$f":"[1]ACS_16_5YR_B18101_with_ann!BJ60","v":74},{"$f":"[1]ACS_16_5YR_B18101_with_ann!BK60","v":37},{"$f":"[1]ACS_16_5YR_B18101_with_ann!BL60","v":145},{"$f":"[1]ACS_16_5YR_B18101_with_ann!BM60","v":28},{"$f":"[1]ACS_16_5YR_B18101_with_ann!BN60","v":17},{"$f":"[1]ACS_16_5YR_B18101_with_ann!BO60","v":11},{"$f":"[1]ACS_16_5YR_B18101_with_ann!BP60","v":128},{"$f":"[1]ACS_16_5YR_B18101_with_ann!BQ60","v":27},{"$f":"[1]ACS_16_5YR_B18101_with_ann!BR60","v":40},{"$f":"[1]ACS_16_5YR_B18101_with_ann!BS60","v":14},{"$f":"[1]ACS_16_5YR_B18101_with_ann!BT60","v":9},{"$f":"[1]ACS_16_5YR_B18101_with_ann!BU60","v":8},{"$f":"[1]ACS_16_5YR_B18101_with_ann!BV60","v":31},{"$f":"[1]ACS_16_5YR_B18101_with_ann!BW60","v":12},{"$f":"[1]ACS_16_5YR_B18101_with_ann!BX60","v":22},{"$f":"[1]ACS_16_5YR_B18101_with_ann!BY60","v":13},{"$f":"[1]ACS_16_5YR_B18101_with_ann!BZ60","v":9},{"$f":"[1]ACS_16_5YR_B18101_with_ann!CA60","v":7},{"$f":"[1]ACS_16_5YR_B18101_with_ann!CB60","v":13},{"$f":"[1]ACS_16_5YR_B18101_with_ann!CC60","v":11}]
["06000US3300575300","0600000US3300575700","060",{"$f":"[1]ACS_16_5YR_B18101_with_ann!C61","v":"Surry"},{"$f":"[1]ACS_16_5YR_B18101_with_ann!D61","v":950},{"$f":"[1]ACS_16_5YR_B18101_with_ann!E61","v":245},{"$f":"[1]ACS_16_5YR_B18101_with_ann!F61","v":388},{"$f":"[1]ACS_16_5YR_B18101_with_ann!G61","v":72},{"$f":"[1]ACS_16_5YR_B18101_with_ann!H61","v":17},{"$f":"[1]ACS_16_5YR_B18101_with_ann!I61","v":13},{"$f":"[1]ACS_16_5YR_B18101_with_ann!J61","v":6},{"$f":"[1]ACS_16_5YR_B18101_with_ann!K61","v":8},{"$f":"[1]ACS_16_5YR_B18101_with_ann!L61","v":11},{"$f":"[1]ACS_16_5YR_B18101_with_ann!M61","v":11},{"$f":"[1]ACS_16_5YR_B18101_with_ann!N61","v":34},{"$f":"[1]ACS_16_5YR_B18101_with_ann!O61","v":16},{"$f":"[1]ACS_16_5YR_B18101_with_ann!P61","v":5},{"$f":"[1]ACS_16_5YR_B18101_with_ann!Q61","v":9},{"$f":"[1]ACS_16_5YR_B18101_with_ann!R61","v":29},{"$f":"[1]ACS_16_5YR_B18101_with_ann!S61","v":14},{"$f":"[1]ACS_16_5YR_B18101_with_ann!T61","v":49},{"$f":"[1]ACS_16_5YR_B18101_with_ann!U61","v":28},{"$f":"[1]ACS_16_5YR_B18101_with_ann!V61","v":2},{"$f":"[1]ACS_16_5YR_B18101_with_ann!W61","v":3},{"$f":"[1]ACS_16_5YR_B18101_with_ann!X61","v":47},{"$f":"[1]ACS_16_5YR_B18101_with_ann!Y61","v":28},{"$f":"[1]ACS_16_5YR_B18101_with_ann!Z61","v":164},{"$f":"[1]ACS_16_5YR_B18101_with_ann!AA61","v":44},{"$f":"[1]ACS_16_5YR_B18101_with_ann!AB61","v":14},{"$f":"[1]ACS_16_5YR_B18101_with_ann!AC61","v":10},{"$f":"[1]ACS_16_5YR_B18101_with_ann!AD61","v":150},{"$f":"[1]ACS_16_5YR_B18101_with_ann!AE61","v":45},{"$f":"[1]ACS_16_5YR_B18101_with_ann!AF61","v":80},{"$f":"[1]ACS_16_5YR_B18101_with_ann!AG61","v":34},{"$f":"[1]ACS_16_5YR_B18101_with_ann!AH61","v":16},{"$f":"[1]ACS_16_5YR_B18101_with_ann!AI61","v":13},{"$f":"[1]ACS_16_5YR_B18101_with_ann!AJ61","v":64},{"$f":"[1]ACS_16_5YR_B18101_with_ann!AK61","v":31},{"$f":"[1]ACS_16_5YR_B18101_with_ann!AL61","v":44},{"$f":"[1]ACS_16_5YR_B18101_with_ann!AM61","v":21},{"$f":"[1]ACS_16_5YR_B18101_with_ann!AN61","v":18},{"$f":"[1]ACS_16_5YR_B18101_with_ann!AO61","v":15},{"$f":"[1]ACS_16_5YR_B18101_with_ann!AP61","v":26},{"$f":"[1]ACS_16_5YR_B18101_with_ann!AQ61","v":15},{"$f":"[1]ACS_16_5YR_B18101_with_ann!AR61","v":562},{"$f":"[1]ACS_16_5YR_B18101_with_ann!AS61","v":203},{"$f":"[1]ACS_16_5YR_B18101_with_ann!AT61","v":47},{"$f":"[1]ACS_16_5YR_B18101_with_ann!AU61","v":47},{"$f":"[1]ACS_16_5YR_B18101_with_ann!AV61","v":29},{"$f":"[1]ACS_16_5YR_B18101_with_ann!AW61","v":45},{"$f":"[1]ACS_16_5YR_B18101_with_ann!AX61","v":18},{"$f":"[1]ACS_16_5YR_B18101_with_ann!AY61","v":12},{"$f":"[1]ACS_16_5YR_B18101_with_ann!AZ61","v":95},{"$f":"[1]ACS_16_5YR_B18101_with_ann!BA61","v":63},{"$f":"[1]ACS_16_5YR_B18101_with_ann!BB61","v":2},{"$f":"[1]ACS_16_5YR_B18101_with_ann!BC61","v":3},{"$f":"[1]ACS_16_5YR_B18101_with_ann!BD61","v":93},{"$f":"[1]ACS_16_5YR_B18101_with_ann!BE61","v":63},{"$f":"[1]ACS_16_5YR_B18101_with_ann!BF61","v":122},{"$f":"[1]ACS_16_5YR_B18101_with_ann!BG61","v":78},{"$f":"[1]ACS_16_5YR_B18101_with_ann!BH61","v":9},{"$f":"[1]ACS_16_5YR_B18101_with_ann!BI61","v":8},{"$f":"[1]ACS_16_5YR_B18101_with_ann!BJ61","v":113},{"$f":"[1]ACS_16_5YR_B18101_with_ann!BK61","v":77},{"$f":"[1]ACS_16_5YR_B18101_with_ann!BL61","v":179},{"$f":"[1]ACS_16_5YR_B18101_with_ann!BM61","v":54},{"$f":"[1]ACS_16_5YR_B18101_with_ann!BN61","v":6},{"$f":"[1]ACS_16_5YR_B18101_with_ann!BO61","v":6},{"$f":"[1]ACS_16_5YR_B18101_with_ann!BP61","v":173},{"$f":"[1]ACS_16_5YR_B18101_with_ann!BQ61","v":55},{"$f":"[1]ACS_16_5YR_B18101_with_ann!BR61","v":72},{"$f":"[1]ACS_16_5YR_B18101_with_ann!BS61","v":25},{"$f":"[1]ACS_16_5YR_B18101_with_ann!BT61","v":5},{"$f":"[1]ACS_16_5YR_B18101_with_ann!BU61","v":5},{"$f":"[1]ACS_16_5YR_B18101_with_ann!BV61","v":67},{"$f":"[1]ACS_16_5YR_B18101_with_ann!BW61","v":25},{"$f":"[1]ACS_16_5YR_B18101_with_ann!BX61","v":47},{"$f":"[1]ACS_16_5YR_B18101_with_ann!BY61","v":20},{"$f":"[1]ACS_16_5YR_B18101_with_ann!BZ61","v":20},{"$f":"[1]ACS_16_5YR_B18101_with_ann!CA61","v":11},{"$f":"[1]ACS_16_5YR_B18101_with_ann!CB61","v":27},{"$f":"[1]ACS_16_5YR_B18101_with_ann!CC61","v":18}]
["06000US3300575700","0600000US3300577380","060",{"$f":"[1]ACS_16_5YR_B18101_with_ann!C62","v":"Swanzey"},{"$f":"[1]ACS_16_5YR_B18101_with_ann!D62","v":7306},{"$f":"[1]ACS_16_5YR_B18101_with_ann!E62","v":22},{"$f":"[1]ACS_16_5YR_B18101_with_ann!F62","v":3563},{"$f":"[1]ACS_16_5YR_B18101_with_ann!G62","v":205},{"$f":"[1]ACS_16_5YR_B18101_with_ann!H62","v":125},{"$f":"[1]ACS_16_5YR_B18101_with_ann!I62","v":95},{"$f":"[1]ACS_16_5YR_B18101_with_ann!J62","v":0},{"$f":"[1]ACS_16_5YR_B18101_with_ann!K62","v":17},{"$f":"[1]ACS_16_5YR_B18101_with_ann!L62","v":125},{"$f":"[1]ACS_16_5YR_B18101_with_ann!M62","v":95},{"$f":"[1]ACS_16_5YR_B18101_with_ann!N62","v":425},{"$f":"[1]ACS_16_5YR_B18101_with_ann!O62","v":130},{"$f":"[1]ACS_16_5YR_B18101_with_ann!P62","v":6},{"$f":"[1]ACS_16_5YR_B18101_with_ann!Q62","v":14},{"$f":"[1]ACS_16_5YR_B18101_with_ann!R62","v":419},{"$f":"[1]ACS_16_5YR_B18101_with_ann!S62","v":131},{"$f":"[1]ACS_16_5YR_B18101_with_ann!T62","v":528},{"$f":"[1]ACS_16_5YR_B18101_with_ann!U62","v":182},{"$f":"[1]ACS_16_5YR_B18101_with_ann!V62","v":61},{"$f":"[1]ACS_16_5YR_B18101_with_ann!W62","v":68},{"$f":"[1]ACS_16_5YR_B18101_with_ann!X62","v":467},{"$f":"[1]ACS_16_5YR_B18101_with_ann!Y62","v":184},{"$f":"[1]ACS_16_5YR_B18101_with_ann!Z62","v":1568},{"$f":"[1]ACS_16_5YR_B18101_with_ann!AA62","v":216},{"$f":"[1]ACS_16_5YR_B18101_with_ann!AB62","v":270},{"$f":"[1]ACS_16_5YR_B18101_with_ann!AC62","v":151},{"$f":"[1]ACS_16_5YR_B18101_with_ann!AD62","v":1298},{"$f":"[1]ACS_16_5YR_B18101_with_ann!AE62","v":232},{"$f":"[1]ACS_16_5YR_B18101_with_ann!AF62","v":533},{"$f":"[1]ACS_16_5YR_B18101_with_ann!AG62","v":186},{"$f":"[1]ACS_16_5YR_B18101_with_ann!AH62","v":240},{"$f":"[1]ACS_16_5YR_B18101_with_ann!AI62","v":173},{"$f":"[1]ACS_16_5YR_B18101_with_ann!AJ62","v":293},{"$f":"[1]ACS_16_5YR_B18101_with_ann!AK62","v":100},{"$f":"[1]ACS_16_5YR_B18101_with_ann!AL62","v":384},{"$f":"[1]ACS_16_5YR_B18101_with_ann!AM62","v":157},{"$f":"[1]ACS_16_5YR_B18101_with_ann!AN62","v":221},{"$f":"[1]ACS_16_5YR_B18101_with_ann!AO62","v":151},{"$f":"[1]ACS_16_5YR_B18101_with_ann!AP62","v":163},{"$f":"[1]ACS_16_5YR_B18101_with_ann!AQ62","v":88},{"$f":"[1]ACS_16_5YR_B18101_with_ann!AR62","v":3743},{"$f":"[1]ACS_16_5YR_B18101_with_ann!AS62","v":209},{"$f":"[1]ACS_16_5YR_B18101_with_ann!AT62","v":110},{"$f":"[1]ACS_16_5YR_B18101_with_ann!AU62","v":82},{"$f":"[1]ACS_16_5YR_B18101_with_ann!AV62","v":0},{"$f":"[1]ACS_16_5YR_B18101_with_ann!AW62","v":17},{"$f":"[1]ACS_16_5YR_B18101_with_ann!AX62","v":110},{"$f":"[1]ACS_16_5YR_B18101_with_ann!AY62","v":82},{"$f":"[1]ACS_16_5YR_B18101_with_ann!AZ62","v":602},{"$f":"[1]ACS_16_5YR_B18101_with_ann!BA62","v":142},{"$f":"[1]ACS_16_5YR_B18101_with_ann!BB62","v":16},{"$f":"[1]ACS_16_5YR_B18101_with_ann!BC62","v":25},{"$f":"[1]ACS_16_5YR_B18101_with_ann!BD62","v":586},{"$f":"[1]ACS_16_5YR_B18101_with_ann!BE62","v":145},{"$f":"[1]ACS_16_5YR_B18101_with_ann!BF62","v":424},{"$f":"[1]ACS_16_5YR_B18101_with_ann!BG62","v":133},{"$f":"[1]ACS_16_5YR_B18101_with_ann!BH62","v":20},{"$f":"[1]ACS_16_5YR_B18101_with_ann!BI62","v":34},{"$f":"[1]ACS_16_5YR_B18101_with_ann!BJ62","v":404},{"$f":"[1]ACS_16_5YR_B18101_with_ann!BK62","v":130},{"$f":"[1]ACS_16_5YR_B18101_with_ann!BL62","v":1648},{"$f":"[1]ACS_16_5YR_B18101_with_ann!BM62","v":206},{"$f":"[1]ACS_16_5YR_B18101_with_ann!BN62","v":231},{"$f":"[1]ACS_16_5YR_B18101_with_ann!BO62","v":113},{"$f":"[1]ACS_16_5YR_B18101_with_ann!BP62","v":1417},{"$f":"[1]ACS_16_5YR_B18101_with_ann!BQ62","v":230},{"$f":"[1]ACS_16_5YR_B18101_with_ann!BR62","v":587},{"$f":"[1]ACS_16_5YR_B18101_with_ann!BS62","v":143},{"$f":"[1]ACS_16_5YR_B18101_with_ann!BT62","v":52},{"$f":"[1]ACS_16_5YR_B18101_with_ann!BU62","v":51},{"$f":"[1]ACS_16_5YR_B18101_with_ann!BV62","v":535},{"$f":"[1]ACS_16_5YR_B18101_with_ann!BW62","v":150},{"$f":"[1]ACS_16_5YR_B18101_with_ann!BX62","v":372},{"$f":"[1]ACS_16_5YR_B18101_with_ann!BY62","v":116},{"$f":"[1]ACS_16_5YR_B18101_with_ann!BZ62","v":179},{"$f":"[1]ACS_16_5YR_B18101_with_ann!CA62","v":114},{"$f":"[1]ACS_16_5YR_B18101_with_ann!CB62","v":193},{"$f":"[1]ACS_16_5YR_B18101_with_ann!CC62","v":99}]
["06000US3300577380","0600000US3300578420","060",{"$f":"[1]ACS_16_5YR_B18101_with_ann!C63","v":"Troy"},{"$f":"[1]ACS_16_5YR_B18101_with_ann!D63","v":1889},{"$f":"[1]ACS_16_5YR_B18101_with_ann!E63","v":275},{"$f":"[1]ACS_16_5YR_B18101_with_ann!F63","v":950},{"$f":"[1]ACS_16_5YR_B18101_with_ann!G63","v":177},{"$f":"[1]ACS_16_5YR_B18101_with_ann!H63","v":25},{"$f":"[1]ACS_16_5YR_B18101_with_ann!I63","v":22},{"$f":"[1]ACS_16_5YR_B18101_with_ann!J63","v":0},{"$f":"[1]ACS_16_5YR_B18101_with_ann!K63","v":12},{"$f":"[1]ACS_16_5YR_B18101_with_ann!L63","v":25},{"$f":"[1]ACS_16_5YR_B18101_with_ann!M63","v":22},{"$f":"[1]ACS_16_5YR_B18101_with_ann!N63","v":149},{"$f":"[1]ACS_16_5YR_B18101_with_ann!O63","v":79},{"$f":"[1]ACS_16_5YR_B18101_with_ann!P63","v":0},{"$f":"[1]ACS_16_5YR_B18101_with_ann!Q63","v":12},{"$f":"[1]ACS_16_5YR_B18101_with_ann!R63","v":149},{"$f":"[1]ACS_16_5YR_B18101_with_ann!S63","v":79},{"$f":"[1]ACS_16_5YR_B18101_with_ann!T63","v":191},{"$f":"[1]ACS_16_5YR_B18101_with_ann!U63","v":77},{"$f":"[1]ACS_16_5YR_B18101_with_ann!V63","v":9},{"$f":"[1]ACS_16_5YR_B18101_with_ann!W63","v":13},{"$f":"[1]ACS_16_5YR_B18101_with_ann!X63","v":182},{"$f":"[1]ACS_16_5YR_B18101_with_ann!Y63","v":75},{"$f":"[1]ACS_16_5YR_B18101_with_ann!Z63","v":419},{"$f":"[1]ACS_16_5YR_B18101_with_ann!AA63","v":95},{"$f":"[1]ACS_16_5YR_B18101_with_ann!AB63","v":32},{"$f":"[1]ACS_16_5YR_B18101_with_ann!AC63","v":27},{"$f":"[1]ACS_16_5YR_B18101_with_ann!AD63","v":387},{"$f":"[1]ACS_16_5YR_B18101_with_ann!AE63","v":89},{"$f":"[1]ACS_16_5YR_B18101_with_ann!AF63","v":121},{"$f":"[1]ACS_16_5YR_B18101_with_ann!AG63","v":49},{"$f":"[1]ACS_16_5YR_B18101_with_ann!AH63","v":67},{"$f":"[1]ACS_16_5YR_B18101_with_ann!AI63","v":36},{"$f":"[1]ACS_16_5YR_B18101_with_ann!AJ63","v":54},{"$f":"[1]ACS_16_5YR_B18101_with_ann!AK63","v":29},{"$f":"[1]ACS_16_5YR_B18101_with_ann!AL63","v":45},{"$f":"[1]ACS_16_5YR_B18101_with_ann!AM63","v":29},{"$f":"[1]ACS_16_5YR_B18101_with_ann!AN63","v":10},{"$f":"[1]ACS_16_5YR_B18101_with_ann!AO63","v":12},{"$f":"[1]ACS_16_5YR_B18101_with_ann!AP63","v":35},{"$f":"[1]ACS_16_5YR_B18101_with_ann!AQ63","v":28},{"$f":"[1]ACS_16_5YR_B18101_with_ann!AR63","v":939},{"$f":"[1]ACS_16_5YR_B18101_with_ann!AS63","v":136},{"$f":"[1]ACS_16_5YR_B18101_with_ann!AT63","v":106},{"$f":"[1]ACS_16_5YR_B18101_with_ann!AU63","v":55},{"$f":"[1]ACS_16_5YR_B18101_with_ann!AV63","v":0},{"$f":"[1]ACS_16_5YR_B18101_with_ann!AW63","v":12},{"$f":"[1]ACS_16_5YR_B18101_with_ann!AX63","v":106},{"$f":"[1]ACS_16_5YR_B18101_with_ann!AY63","v":55},{"$f":"[1]ACS_16_5YR_B18101_with_ann!AZ63","v":113},{"$f":"[1]ACS_16_5YR_B18101_with_ann!BA63","v":46},{"$f":"[1]ACS_16_5YR_B18101_with_ann!BB63","v":0},{"$f":"[1]ACS_16_5YR_B18101_with_ann!BC63","v":12},{"$f":"[1]ACS_16_5YR_B18101_with_ann!BD63","v":113},{"$f":"[1]ACS_16_5YR_B18101_with_ann!BE63","v":46},{"$f":"[1]ACS_16_5YR_B18101_with_ann!BF63","v":205},{"$f":"[1]ACS_16_5YR_B18101_with_ann!BG63","v":65},{"$f":"[1]ACS_16_5YR_B18101_with_ann!BH63","v":38},{"$f":"[1]ACS_16_5YR_B18101_with_ann!BI63","v":26},{"$f":"[1]ACS_16_5YR_B18101_with_ann!BJ63","v":167},{"$f":"[1]ACS_16_5YR_B18101_with_ann!BK63","v":61},{"$f":"[1]ACS_16_5YR_B18101_with_ann!BL63","v":352},{"$f":"[1]ACS_16_5YR_B18101_with_ann!BM63","v":89},{"$f":"[1]ACS_16_5YR_B18101_with_ann!BN63","v":33},{"$f":"[1]ACS_16_5YR_B18101_with_ann!BO63","v":29},{"$f":"[1]ACS_16_5YR_B18101_with_ann!BP63","v":319},{"$f":"[1]ACS_16_5YR_B18101_with_ann!BQ63","v":82},{"$f":"[1]ACS_16_5YR_B18101_with_ann!BR63","v":101},{"$f":"[1]ACS_16_5YR_B18101_with_ann!BS63","v":32},{"$f":"[1]ACS_16_5YR_B18101_with_ann!BT63","v":4},{"$f":"[1]ACS_16_5YR_B18101_with_ann!BU63","v":6},{"$f":"[1]ACS_16_5YR_B18101_with_ann!BV63","v":97},{"$f":"[1]ACS_16_5YR_B18101_with_ann!BW63","v":32},{"$f":"[1]ACS_16_5YR_B18101_with_ann!BX63","v":62},{"$f":"[1]ACS_16_5YR_B18101_with_ann!BY63","v":38},{"$f":"[1]ACS_16_5YR_B18101_with_ann!BZ63","v":11},{"$f":"[1]ACS_16_5YR_B18101_with_ann!CA63","v":17},{"$f":"[1]ACS_16_5YR_B18101_with_ann!CB63","v":51},{"$f":"[1]ACS_16_5YR_B18101_with_ann!CC63","v":33}]
["06000US3300578420","0600000US3300582660","060",{"$f":"[1]ACS_16_5YR_B18101_with_ann!C64","v":"Walpole"},{"$f":"[1]ACS_16_5YR_B18101_with_ann!D64","v":3651},{"$f":"[1]ACS_16_5YR_B18101_with_ann!E64","v":33},{"$f":"[1]ACS_16_5YR_B18101_with_ann!F64","v":1799},{"$f":"[1]ACS_16_5YR_B18101_with_ann!G64","v":162},{"$f":"[1]ACS_16_5YR_B18101_with_ann!H64","v":183},{"$f":"[1]ACS_16_5YR_B18101_with_ann!I64","v":89},{"$f":"[1]ACS_16_5YR_B18101_with_ann!J64","v":0},{"$f":"[1]ACS_16_5YR_B18101_with_ann!K64","v":12},{"$f":"[1]ACS_16_5YR_B18101_with_ann!L64","v":183},{"$f":"[1]ACS_16_5YR_B18101_with_ann!M64","v":89},{"$f":"[1]ACS_16_5YR_B18101_with_ann!N64","v":312},{"$f":"[1]ACS_16_5YR_B18101_with_ann!O64","v":115},{"$f":"[1]ACS_16_5YR_B18101_with_ann!P64","v":5},{"$f":"[1]ACS_16_5YR_B18101_with_ann!Q64","v":8},{"$f":"[1]ACS_16_5YR_B18101_with_ann!R64","v":307},{"$f":"[1]ACS_16_5YR_B18101_with_ann!S64","v":115},{"$f":"[1]ACS_16_5YR_B18101_with_ann!T64","v":366},{"$f":"[1]ACS_16_5YR_B18101_with_ann!U64","v":116},{"$f":"[1]ACS_16_5YR_B18101_with_ann!V64","v":20},{"$f":"[1]ACS_16_5YR_B18101_with_ann!W64","v":21},{"$f":"[1]ACS_16_5YR_B18101_with_ann!X64","v":346},{"$f":"[1]ACS_16_5YR_B18101_with_ann!Y64","v":117},{"$f":"[1]ACS_16_5YR_B18101_with_ann!Z64","v":571},{"$f":"[1]ACS_16_5YR_B18101_with_ann!AA64","v":100},{"$f":"[1]ACS_16_5YR_B18101_with_ann!AB64","v":48},{"$f":"[1]ACS_16_5YR_B18101_with_ann!AC64","v":52},{"$f":"[1]ACS_16_5YR_B18101_with_ann!AD64","v":523},{"$f":"[1]ACS_16_5YR_B18101_with_ann!AE64","v":97},{"$f":"[1]ACS_16_5YR_B18101_with_ann!AF64","v":271},{"$f":"[1]ACS_16_5YR_B18101_with_ann!AG64","v":74},{"$f":"[1]ACS_16_5YR_B18101_with_ann!AH64","v":48},{"$f":"[1]ACS_16_5YR_B18101_with_ann!AI64","v":34},{"$f":"[1]ACS_16_5YR_B18101_with_ann!AJ64","v":223},{"$f":"[1]ACS_16_5YR_B18101_with_ann!AK64","v":67},{"$f":"[1]ACS_16_5YR_B18101_with_ann!AL64","v":96},{"$f":"[1]ACS_16_5YR_B18101_with_ann!AM64","v":46},{"$f":"[1]ACS_16_5YR_B18101_with_ann!AN64","v":31},{"$f":"[1]ACS_16_5YR_B18101_with_ann!AO64","v":21},{"$f":"[1]ACS_16_5YR_B18101_with_ann!AP64","v":65},{"$f":"[1]ACS_16_5YR_B18101_with_ann!AQ64","v":42},{"$f":"[1]ACS_16_5YR_B18101_with_ann!AR64","v":1852},{"$f":"[1]ACS_16_5YR_B18101_with_ann!AS64","v":161},{"$f":"[1]ACS_16_5YR_B18101_with_ann!AT64","v":144},{"$f":"[1]ACS_16_5YR_B18101_with_ann!AU64","v":82},{"$f":"[1]ACS_16_5YR_B18101_with_ann!AV64","v":0},{"$f":"[1]ACS_16_5YR_B18101_with_ann!AW64","v":12},{"$f":"[1]ACS_16_5YR_B18101_with_ann!AX64","v":144},{"$f":"[1]ACS_16_5YR_B18101_with_ann!AY64","v":82},{"$f":"[1]ACS_16_5YR_B18101_with_ann!AZ64","v":287},{"$f":"[1]ACS_16_5YR_B18101_with_ann!BA64","v":98},{"$f":"[1]ACS_16_5YR_B18101_with_ann!BB64","v":35},{"$f":"[1]ACS_16_5YR_B18101_with_ann!BC64","v":44},{"$f":"[1]ACS_16_5YR_B18101_with_ann!BD64","v":252},{"$f":"[1]ACS_16_5YR_B18101_with_ann!BE64","v":94},{"$f":"[1]ACS_16_5YR_B18101_with_ann!BF64","v":318},{"$f":"[1]ACS_16_5YR_B18101_with_ann!BG64","v":144},{"$f":"[1]ACS_16_5YR_B18101_with_ann!BH64","v":10},{"$f":"[1]ACS_16_5YR_B18101_with_ann!BI64","v":17},{"$f":"[1]ACS_16_5YR_B18101_with_ann!BJ64","v":308},{"$f":"[1]ACS_16_5YR_B18101_with_ann!BK64","v":146},{"$f":"[1]ACS_16_5YR_B18101_with_ann!BL64","v":699},{"$f":"[1]ACS_16_5YR_B18101_with_ann!BM64","v":118},{"$f":"[1]ACS_16_5YR_B18101_with_ann!BN64","v":112},{"$f":"[1]ACS_16_5YR_B18101_with_ann!BO64","v":68},{"$f":"[1]ACS_16_5YR_B18101_with_ann!BP64","v":587},{"$f":"[1]ACS_16_5YR_B18101_with_ann!BQ64","v":108},{"$f":"[1]ACS_16_5YR_B18101_with_ann!BR64","v":182},{"$f":"[1]ACS_16_5YR_B18101_with_ann!BS64","v":50},{"$f":"[1]ACS_16_5YR_B18101_with_ann!BT64","v":21},{"$f":"[1]ACS_16_5YR_B18101_with_ann!BU64","v":20},{"$f":"[1]ACS_16_5YR_B18101_with_ann!BV64","v":161},{"$f":"[1]ACS_16_5YR_B18101_with_ann!BW64","v":43},{"$f":"[1]ACS_16_5YR_B18101_with_ann!BX64","v":222},{"$f":"[1]ACS_16_5YR_B18101_with_ann!BY64","v":100},{"$f":"[1]ACS_16_5YR_B18101_with_ann!BZ64","v":172},{"$f":"[1]ACS_16_5YR_B18101_with_ann!CA64","v":96},{"$f":"[1]ACS_16_5YR_B18101_with_ann!CB64","v":50},{"$f":"[1]ACS_16_5YR_B18101_with_ann!CC64","v":37}]
["06000US3300582660","0600000US3300585540","060",{"$f":"[1]ACS_16_5YR_B18101_with_ann!C65","v":"Westmoreland"},{"$f":"[1]ACS_16_5YR_B18101_with_ann!D65","v":1971},{"$f":"[1]ACS_16_5YR_B18101_with_ann!E65","v":342},{"$f":"[1]ACS_16_5YR_B18101_with_ann!F65","v":857},{"$f":"[1]ACS_16_5YR_B18101_with_ann!G65","v":162},{"$f":"[1]ACS_16_5YR_B18101_with_ann!H65","v":33},{"$f":"[1]ACS_16_5YR_B18101_with_ann!I65","v":31},{"$f":"[1]ACS_16_5YR_B18101_with_ann!J65","v":0},{"$f":"[1]ACS_16_5YR_B18101_with_ann!K65","v":12},{"$f":"[1]ACS_16_5YR_B18101_with_ann!L65","v":33},{"$f":"[1]ACS_16_5YR_B18101_with_ann!M65","v":31},{"$f":"[1]ACS_16_5YR_B18101_with_ann!N65","v":51},{"$f":"[1]ACS_16_5YR_B18101_with_ann!O65","v":27},{"$f":"[1]ACS_16_5YR_B18101_with_ann!P65","v":0},{"$f":"[1]ACS_16_5YR_B18101_with_ann!Q65","v":12},{"$f":"[1]ACS_16_5YR_B18101_with_ann!R65","v":51},{"$f":"[1]ACS_16_5YR_B18101_with_ann!S65","v":27},{"$f":"[1]ACS_16_5YR_B18101_with_ann!T65","v":117},{"$f":"[1]ACS_16_5YR_B18101_with_ann!U65","v":52},{"$f":"[1]ACS_16_5YR_B18101_with_ann!V65","v":3},{"$f":"[1]ACS_16_5YR_B18101_with_ann!W65","v":6},{"$f":"[1]ACS_16_5YR_B18101_with_ann!X65","v":114},{"$f":"[1]ACS_16_5YR_B18101_with_ann!Y65","v":51},{"$f":"[1]ACS_16_5YR_B18101_with_ann!Z65","v":395},{"$f":"[1]ACS_16_5YR_B18101_with_ann!AA65","v":97},{"$f":"[1]ACS_16_5YR_B18101_with_ann!AB65","v":67},{"$f":"[1]ACS_16_5YR_B18101_with_ann!AC65","v":49},{"$f":"[1]ACS_16_5YR_B18101_with_ann!AD65","v":328},{"$f":"[1]ACS_16_5YR_B18101_with_ann!AE65","v":88},{"$f":"[1]ACS_16_5YR_B18101_with_ann!AF65","v":156},{"$f":"[1]ACS_16_5YR_B18101_with_ann!AG65","v":50},{"$f":"[1]ACS_16_5YR_B18101_with_ann!AH65","v":28},{"$f":"[1]ACS_16_5YR_B18101_with_ann!AI65","v":22},{"$f":"[1]ACS_16_5YR_B18101_with_ann!AJ65","v":128},{"$f":"[1]ACS_16_5YR_B18101_with_ann!AK65","v":42},{"$f":"[1]ACS_16_5YR_B18101_with_ann!AL65","v":105},{"$f":"[1]ACS_16_5YR_B18101_with_ann!AM65","v":66},{"$f":"[1]ACS_16_5YR_B18101_with_ann!AN65","v":62},{"$f":"[1]ACS_16_5YR_B18101_with_ann!AO65","v":63},{"$f":"[1]ACS_16_5YR_B18101_with_ann!AP65","v":43},{"$f":"[1]ACS_16_5YR_B18101_with_ann!AQ65","v":21},{"$f":"[1]ACS_16_5YR_B18101_with_ann!AR65","v":1114},{"$f":"[1]ACS_16_5YR_B18101_with_ann!AS65","v":217},{"$f":"[1]ACS_16_5YR_B18101_with_ann!AT65","v":47},{"$f":"[1]ACS_16_5YR_B18101_with_ann!AU65","v":41},{"$f":"[1]ACS_16_5YR_B18101_with_ann!AV65","v":0},{"$f":"[1]ACS_16_5YR_B18101_with_ann!AW65","v":12},{"$f":"[1]ACS_16_5YR_B18101_with_ann!AX65","v":47},{"$f":"[1]ACS_16_5YR_B18101_with_ann!AY65","v":41},{"$f":"[1]ACS_16_5YR_B18101_with_ann!AZ65","v":180},{"$f":"[1]ACS_16_5YR_B18101_with_ann!BA65","v":81},{"$f":"[1]ACS_16_5YR_B18101_with_ann!BB65","v":0},{"$f":"[1]ACS_16_5YR_B18101_with_ann!BC65","v":12},{"$f":"[1]ACS_16_5YR_B18101_with_ann!BD65","v":180},{"$f":"[1]ACS_16_5YR_B18101_with_ann!BE65","v":81},{"$f":"[1]ACS_16_5YR_B18101_with_ann!BF65","v":119},{"$f":"[1]ACS_16_5YR_B18101_with_ann!BG65","v":67},{"$f":"[1]ACS_16_5YR_B18101_with_ann!BH65","v":0},{"$f":"[1]ACS_16_5YR_B18101_with_ann!BI65","v":12},{"$f":"[1]ACS_16_5YR_B18101_with_ann!BJ65","v":119},{"$f":"[1]ACS_16_5YR_B18101_with_ann!BK65","v":67},{"$f":"[1]ACS_16_5YR_B18101_with_ann!BL65","v":430},{"$f":"[1]ACS_16_5YR_B18101_with_ann!BM65","v":101},{"$f":"[1]ACS_16_5YR_B18101_with_ann!BN65","v":17},{"$f":"[1]ACS_16_5YR_B18101_with_ann!BO65","v":17},{"$f":"[1]ACS_16_5YR_B18101_with_ann!BP65","v":413},{"$f":"[1]ACS_16_5YR_B18101_with_ann!BQ65","v":104},{"$f":"[1]ACS_16_5YR_B18101_with_ann!BR65","v":215},{"$f":"[1]ACS_16_5YR_B18101_with_ann!BS65","v":110},{"$f":"[1]ACS_16_5YR_B18101_with_ann!BT65","v":16},{"$f":"[1]ACS_16_5YR_B18101_with_ann!BU65","v":14},{"$f":"[1]ACS_16_5YR_B18101_with_ann!BV65","v":199},{"$f":"[1]ACS_16_5YR_B18101_with_ann!BW65","v":109},{"$f":"[1]ACS_16_5YR_B18101_with_ann!BX65","v":123},{"$f":"[1]ACS_16_5YR_B18101_with_ann!BY65","v":45},{"$f":"[1]ACS_16_5YR_B18101_with_ann!BZ65","v":46},{"$f":"[1]ACS_16_5YR_B18101_with_ann!CA65","v":30},{"$f":"[1]ACS_16_5YR_B18101_with_ann!CB65","v":77},{"$f":"[1]ACS_16_5YR_B18101_with_ann!CC65","v":35}]
["06000US3300585540","0600000US3300500820","060",{"$f":"[1]ACS_16_5YR_B18101_with_ann!C66","v":"Winchester"},{"$f":"[1]ACS_16_5YR_B18101_with_ann!D66","v":4094},{"$f":"[1]ACS_16_5YR_B18101_with_ann!E66","v":24},{"$f":"[1]ACS_16_5YR_B18101_with_ann!F66","v":1968},{"$f":"[1]ACS_16_5YR_B18101_with_ann!G66","v":182},{"$f":"[1]ACS_16_5YR_B18101_with_ann!H66","v":102},{"$f":"[1]ACS_16_5YR_B18101_with_ann!I66","v":62},{"$f":"[1]ACS_16_5YR_B18101_with_ann!J66","v":0},{"$f":"[1]ACS_16_5YR_B18101_with_ann!K66","v":12},{"$f":"[1]ACS_16_5YR_B18101_with_ann!L66","v":102},{"$f":"[1]ACS_16_5YR_B18101_with_ann!M66","v":62},{"$f":"[1]ACS_16_5YR_B18101_with_ann!N66","v":311},{"$f":"[1]ACS_16_5YR_B18101_with_ann!O66","v":122},{"$f":"[1]ACS_16_5YR_B18101_with_ann!P66","v":6},{"$f":"[1]ACS_16_5YR_B18101_with_ann!Q66","v":13},{"$f":"[1]ACS_16_5YR_B18101_with_ann!R66","v":305},{"$f":"[1]ACS_16_5YR_B18101_with_ann!S66","v":121},{"$f":"[1]ACS_16_5YR_B18101_with_ann!T66","v":388},{"$f":"[1]ACS_16_5YR_B18101_with_ann!U66","v":118},{"$f":"[1]ACS_16_5YR_B18101_with_ann!V66","v":0},{"$f":"[1]ACS_16_5YR_B18101_with_ann!W66","v":12},{"$f":"[1]ACS_16_5YR_B18101_with_ann!X66","v":388},{"$f":"[1]ACS_16_5YR_B18101_with_ann!Y66","v":118},{"$f":"[1]ACS_16_5YR_B18101_with_ann!Z66","v":910},{"$f":"[1]ACS_16_5YR_B18101_with_ann!AA66","v":152},{"$f":"[1]ACS_16_5YR_B18101_with_ann!AB66","v":139},{"$f":"[1]ACS_16_5YR_B18101_with_ann!AC66","v":66},{"$f":"[1]ACS_16_5YR_B18101_with_ann!AD66","v":771},{"$f":"[1]ACS_16_5YR_B18101_with_ann!AE66","v":136},{"$f":"[1]ACS_16_5YR_B18101_with_ann!AF66","v":193},{"$f":"[1]ACS_16_5YR_B18101_with_ann!AG66","v":70},{"$f":"[1]ACS_16_5YR_B18101_with_ann!AH66","v":77},{"$f":"[1]ACS_16_5YR_B18101_with_ann!AI66","v":40},{"$f":"[1]ACS_16_5YR_B18101_with_ann!AJ66","v":116},{"$f":"[1]ACS_16_5YR_B18101_with_ann!AK66","v":56},{"$f":"[1]ACS_16_5YR_B18101_with_ann!AL66","v":64},{"$f":"[1]ACS_16_5YR_B18101_with_ann!AM66","v":35},{"$f":"[1]ACS_16_5YR_B18101_with_ann!AN66","v":27},{"$f":"[1]ACS_16_5YR_B18101_with_ann!AO66","v":20},{"$f":"[1]ACS_16_5YR_B18101_with_ann!AP66","v":37},{"$f":"[1]ACS_16_5YR_B18101_with_ann!AQ66","v":28},{"$f":"[1]ACS_16_5YR_B18101_with_ann!AR66","v":2126},{"$f":"[1]ACS_16_5YR_B18101_with_ann!AS66","v":181},{"$f":"[1]ACS_16_5YR_B18101_with_ann!AT66","v":237},{"$f":"[1]ACS_16_5YR_B18101_with_ann!AU66","v":122},{"$f":"[1]ACS_16_5YR_B18101_with_ann!AV66","v":0},{"$f":"[1]ACS_16_5YR_B18101_with_ann!AW66","v":12},{"$f":"[1]ACS_16_5YR_B18101_with_ann!AX66","v":237},{"$f":"[1]ACS_16_5YR_B18101_with_ann!AY66","v":122},{"$f":"[1]ACS_16_5YR_B18101_with_ann!AZ66","v":289},{"$f":"[1]ACS_16_5YR_B18101_with_ann!BA66","v":127},{"$f":"[1]ACS_16_5YR_B18101_with_ann!BB66","v":0},{"$f":"[1]ACS_16_5YR_B18101_with_ann!BC66","v":12},{"$f":"[1]ACS_16_5YR_B18101_with_ann!BD66","v":289},{"$f":"[1]ACS_16_5YR_B18101_with_ann!BE66","v":127},{"$f":"[1]ACS_16_5YR_B18101_with_ann!BF66","v":492},{"$f":"[1]ACS_16_5YR_B18101_with_ann!BG66","v":192},{"$f":"[1]ACS_16_5YR_B18101_with_ann!BH66","v":33},{"$f":"[1]ACS_16_5YR_B18101_with_ann!BI66","v":31},{"$f":"[1]ACS_16_5YR_B18101_with_ann!BJ66","v":459},{"$f":"[1]ACS_16_5YR_B18101_with_ann!BK66","v":199},{"$f":"[1]ACS_16_5YR_B18101_with_ann!BL66","v":753},{"$f":"[1]ACS_16_5YR_B18101_with_ann!BM66","v":132},{"$f":"[1]ACS_16_5YR_B18101_with_ann!BN66","v":131},{"$f":"[1]ACS_16_5YR_B18101_with_ann!BO66","v":68},{"$f":"[1]ACS_16_5YR_B18101_with_ann!BP66","v":622},{"$f":"[1]ACS_16_5YR_B18101_with_ann!BQ66","v":137},{"$f":"[1]ACS_16_5YR_B18101_with_ann!BR66","v":204},{"$f":"[1]ACS_16_5YR_B18101_with_ann!BS66","v":79},{"$f":"[1]ACS_16_5YR_B18101_with_ann!BT66","v":106},{"$f":"[1]ACS_16_5YR_B18101_with_ann!BU66","v":85},{"$f":"[1]ACS_16_5YR_B18101_with_ann!BV66","v":98},{"$f":"[1]ACS_16_5YR_B18101_with_ann!BW66","v":41},{"$f":"[1]ACS_16_5YR_B18101_with_ann!BX66","v":151},{"$f":"[1]ACS_16_5YR_B18101_with_ann!BY66","v":66},{"$f":"[1]ACS_16_5YR_B18101_with_ann!BZ66","v":68},{"$f":"[1]ACS_16_5YR_B18101_with_ann!CA66","v":48},{"$f":"[1]ACS_16_5YR_B18101_with_ann!CB66","v":83},{"$f":"[1]ACS_16_5YR_B18101_with_ann!CC66","v":44}]
[]
[]
[]
[null,null,null,null,{"$f":"$D$3","v":"Alstead"},null,{"$f":"$D$4","v":"Chesterfield"},null,{"$f":"$D$5","v":"Dublin"},null,{"$f":"$D$6","v":"Fitzwilliam"},null,{"$f":"$D$7","v":"Gilsum"},null,{"$f":"$D$8","v":"Harrisville"},null,{"$f":"$D$9","v":"Hinsdale"},null,{"$f":"$D$10","v":"Jaffrey"},null,{"$f":"$D$11","v":"Keene"},null,{"$f":"$D$12","v":"Marlborough"},null,{"$f":"$D$13","v":"Marlow"},null,{"$f":"$D$14","v":"Nelson"},null,{"$f":"$D$15","v":"Richmond"},null,{"$f":"$D$16","v":"Rindge"},null,{"$f":"$D$17","v":"Roxbury"},null,{"$f":"$D$18","v":"Stoddard"},null,{"$f":"$D$19","v":"Sullivan"},null,{"$f":"$D$20","v":"Surry"},null,{"$f":"$D$21","v":"Swanzey"},null,{"$f":"$D$22","v":"Troy"},null,{"$f":"$D$23","v":"Walpole"},null,{"$f":"$D$24","v":"Westmoreland"},null,{"$f":"$D$25","v":"Winchester"}]
[null,null,null,null,"Estimate","Margin of Error","Estimate","Margin of Error","Estimate","Margin of Error","Estimate","Margin of Error","Estimate","Margin of Error","Estimate","Margin of Error","Estimate","Margin of Error","Estimate","Margin of Error","Estimate","Margin of Error","Estimate","Margin of Error","Estimate","Margin of Error","Estimate","Margin of Error","Estimate","Margin of Error","Estimate","Margin of Error","Estimate","Margin of Error","Estimate","Margin of Error","Estimate","Margin of Error","Estimate","Margin of Error","Estimate","Margin of Error","Estimate","Margin of Error","Estimate","Margin of Error","Estimate","Margin of Error","Estimate","Margin of Error"]
[null,null,null,"Estimate!!Total:",1599,169,3577,15,1711,216,2287,368,871,144,977,197,3965,16,5299,31,22429,47,2253,391,803,175,550,106,1104,251,6443,18,295,142,1205,162,681,130,950,245,7306,22,1889,275,3651,33,1971,342,4094,24]
[null,null,null,"Estimate!!Total:!!Male:",770,116,2000,139,800,118,1203,216,452,88,461,95,2090,205,2731,216,10985,396,1005,199,364,80,252,50,595,161,3162,187,135,70,592,98,342,79,388,72,3563,205,950,177,1799,162,857,162,1968,182]
[null,null,null,"Estimate!!Total:!!Male:!!Under 5 years:",12,11,121,74,24,19,33,23,33,23,42,33,26,38,114,89,485,125,76,60,23,26,15,8,38,31,144,96,36,37,29,16,35,30,17,13,125,95,25,22,183,89,33,31,102,62]
[null,null,null,"Estimate!!Total:!!Male:!!Under 5 years:!!With a disability",0,12,0,12,0,12,0,12,0,12,0,12,0,12,0,17,0,22,0,12,0,12,0,12,0,12,0,17,0,12,0,12,0,12,6,8,0,17,0,12,0,12,0,12,0,12]
[null,null,null,"Estimate!!Total:!!Male:!!Under 5 years:!!No disability",12,11,121,74,24,19,33,23,33,23,42,33,26,38,114,89,485,125,76,60,23,26,15,8,38,31,144,96,36,37,29,16,35,30,11,11,125,95,25,22,183,89,33,31,102,62]
[null,null,null,"Estimate!!Total:!!Male:!!5 to 17 years:",96,55,452,132,97,40,101,36,52,31,47,26,277,125,566,154,1379,180,129,64,37,23,17,12,82,37,470,153,4,6,104,62,18,12,34,16,425,130,149,79,312,115,51,27,311,122]
[null,null,null,"Estimate!!Total:!!Male:!!5 to 17 years:!!With a disability",0,12,37,54,0,12,4,5,21,29,3,5,18,32,34,42,102,47,0,12,2,3,0,12,13,19,0,17,0,12,0,12,7,5,5,9,6,14,0,12,5,8,0,12,6,13]
[null,null,null,"Estimate!!Total:!!Male:!!5 to 17 years:!!No disability",96,55,415,138,97,40,97,35,31,16,44,26,259,112,532,157,1277,172,129,64,35,23,17,12,69,31,470,153,4,6,104,62,11,11,29,14,419,131,149,79,307,115,51,27,305,121]
[null,null,null,"Estimate!!Total:!!Male:!!18 to 34 years:",147,61,366,146,136,55,226,92,119,56,38,20,294,122,408,190,3702,372,175,92,53,32,25,15,110,61,941,135,17,10,81,29,88,36,49,28,528,182,191,77,366,116,117,52,388,118]
[null,null,null,"Estimate!!Total:!!Male:!!18 to 34 years:!!With a disability",54,46,25,38,33,39,10,10,6,8,0,12,50,64,31,56,381,159,18,26,2,6,2,3,3,6,68,51,8,11,8,11,17,20,2,3,61,68,9,13,20,21,3,6,0,12]
[null,null,null,"Estimate!!Total:!!Male:!!18 to 34 years:!!No disability",93,42,341,142,103,45,216,91,113,56,38,20,244,107,377,187,3321,398,157,83,51,31,23,14,107,60,873,122,9,6,73,30,71,31,47,28,467,184,182,75,346,117,114,51,388,118]
[null,null,null,"Estimate!!Total:!!Male:!!35 to 64 years:",357,76,537,175,338,83,605,177,158,38,190,52,878,165,1310,200,3790,283,440,108,153,41,116,30,192,53,983,154,65,37,279,49,134,28,164,44,1568,216,419,95,571,100,395,97,910,152]
[null,null,null,"Estimate!!Total:!!Male:!!35 to 64 years:!!With a disability",59,37,62,94,29,19,76,44,45,21,44,25,136,94,113,89,381,153,37,19,9,10,13,14,15,10,31,33,6,5,19,14,10,5,14,10,270,151,32,27,48,52,67,49,139,66]
[null,null,null,"Estimate!!Total:!!Male:!!35 to 64 years:!!No disability",298,73,475,158,309,75,529,176,113,30,146,46,742,145,1197,182,3409,309,403,103,144,39,103,27,177,55,952,153,59,35,260,48,124,29,150,45,1298,232,387,89,523,97,328,88,771,136]
[null,null,null,"Estimate!!Total:!!Male:!!65 to 74 years:",106,42,367,125,153,64,195,55,76,29,91,28,433,236,159,87,899,135,83,37,75,38,59,21,145,100,428,106,10,6,68,17,40,17,80,34,533,186,121,49,271,74,156,50,193,70]
[null,null,null,"Estimate!!Total:!!Male:!!65 to 74 years:!!With a disability",24,20,153,99,16,17,75,44,21,16,10,10,243,229,40,42,222,95,5,8,23,28,7,7,22,13,45,47,3,4,5,6,6,5,16,13,240,173,67,36,48,34,28,22,77,40]
[null,null,null,"Estimate!!Total:!!Male:!!65 to 74 years:!!No disability",82,38,214,103,137,63,120,34,55,27,81,27,190,115,119,75,677,147,78,37,52,26,52,20,123,96,383,120,7,6,63,17,34,17,64,31,293,100,54,29,223,67,128,42,116,56]
[null,null,null,"Estimate!!Total:!!Male:!!75 years and over:",52,33,157,80,52,26,43,19,14,10,53,20,182,113,174,110,730,148,102,43,23,13,20,10,28,16,196,97,3,3,31,15,27,14,44,21,384,157,45,29,96,46,105,66,64,35]
[null,null,null,"Estimate!!Total:!!Male:!!75 years and over:!!With a disability",12,12,82,65,5,6,19,14,8,8,20,15,143,115,46,58,350,106,42,35,6,6,15,9,26,16,35,32,1,2,19,14,12,11,18,15,221,151,10,12,31,21,62,63,27,20]
[null,null,null,"Estimate!!Total:!!Male:!!75 years and over:!!No disability",40,30,75,52,47,26,24,15,6,6,33,16,39,26,128,96,380,134,60,30,17,10,5,5,2,3,161,91,2,3,12,7,15,12,26,15,163,88,35,28,65,42,43,21,37,28]
[null,null,null,"Estimate!!Total:!!Female:",829,95,1577,140,911,135,1084,188,419,74,516,110,1875,204,2568,218,11444,392,1248,240,439,110,298,67,509,121,3281,187,160,78,613,91,339,65,562,203,3743,209,939,136,1852,161,1114,217,2126,181]
[null,null,null,"Estimate!!Total:!!Female:!!Under 5 years:",20,19,20,30,57,32,45,46,26,17,8,8,58,46,28,48,387,112,140,107,19,19,7,7,10,14,116,74,2,3,29,23,28,18,47,47,110,82,106,55,144,82,47,41,237,122]
[null,null,null,"Estimate!!Total:!!Female:!!Under 5 years:!!With a disability",0,12,0,12,0,12,0,12,0,12,0,12,0,12,0,17,5,23,0,12,0,12,0,12,0,12,0,17,0,12,0,12,0,12,29,45,0,17,0,12,0,12,0,12,0,12]
[null,null,null,"Estimate!!Total:!!Female:!!Under 5 years:!!No disability",20,19,20,30,57,32,45,46,26,17,8,8,58,46,28,48,382,112,140,107,19,19,7,7,10,14,116,74,2,3,29,23,28,18,18,12,110,82,106,55,144,82,47,41,237,122]
[null,null,null,"Estimate!!Total:!!Female:!!5 to 17 years:",100,34,144,80,149,44,106,53,38,29,52,39,225,70,617,129,1041,198,198,77,116,56,46,30,58,27,443,150,5,5,89,33,30,15,95,63,602,142,113,46,287,98,180,81,289,127]
[null,null,null,"Estimate!!Total:!!Female:!!5 to 17 years:!!With a disability",0,12,19,28,0,12,18,22,4,4,0,12,0,12,95,95,91,77,0,12,17,16,0,12,0,12,9,16,0,12,3,5,3,4,2,3,16,25,0,12,35,44,0,12,0,12]
[null,null,null,"Estimate!!Total:!!Female:!!5 to 17 years:!!No disability",100,34,125,68,149,44,88,38,34,29,52,39,225,70,522,148,950,190,198,77,99,51,46,30,58,27,434,148,5,5,86,32,27,14,93,63,586,145,113,46,252,94,180,81,289,127]
[null,null,null,"Estimate!!Total:!!Female:!!18 to 34 years:",117,55,323,125,63,26,151,78,95,35,89,40,306,147,307,170,3991,285,117,53,72,40,27,18,69,47,1002,156,67,57,102,41,74,37,122,78,424,133,205,65,318,144,119,67,492,192]
[null,null,null,"Estimate!!Total:!!Female:!!18 to 34 years:!!With a disability",13,12,0,12,0,12,4,6,0,12,4,7,0,12,0,17,466,171,13,21,0,12,4,5,0,12,144,84,0,12,4,7,0,12,9,8,20,34,38,26,10,17,0,12,33,31]
[null,null,null,"Estimate!!Total:!!Female:!!18 to 34 years:!!No disability",104,54,323,125,63,26,147,77,95,35,85,40,306,147,307,170,3525,318,104,50,72,40,23,16,69,47,858,157,67,57,98,40,74,37,113,77,404,130,167,61,308,146,119,67,459,199]
[null,null,null,"Estimate!!Total:!!Female:!!35 to 64 years:",329,67,729,167,404,97,484,84,170,44,220,61,843,127,1144,160,3688,301,586,139,132,39,140,38,226,60,1067,134,66,30,257,49,145,28,179,54,1648,206,352,89,699,118,430,101,753,132]
[null,null,null,"Estimate!!Total:!!Female:!!35 to 64 years:!!With a disability",82,53,33,44,9,10,14,12,15,10,17,14,64,46,228,145,603,171,109,55,13,13,9,10,34,22,117,82,30,24,6,7,17,11,6,6,231,113,33,29,112,68,17,17,131,68]
[null,null,null,"Estimate!!Total:!!Female:!!35 to 64 years:!!No disability",247,49,696,169,395,95,470,85,155,41,203,59,779,116,916,144,3085,274,477,128,119,36,131,36,192,58,950,131,36,17,251,49,128,27,173,55,1417,230,319,82,587,108,413,104,622,137]
[null,null,null,"Estimate!!Total:!!Female:!!65 to 74 years:",173,71,244,110,162,54,251,106,58,25,107,30,214,97,276,101,1300,181,120,51,67,38,48,17,69,30,431,102,13,5,86,25,40,14,72,25,587,143,101,32,182,50,215,110,204,79]
[null,null,null,"Estimate!!Total:!!Female:!!65 to 74 years:!!With a disability",12,11,20,30,13,16,17,20,2,3,19,13,52,40,48,43,420,129,21,16,32,31,7,6,13,10,51,39,2,3,15,9,9,8,5,5,52,51,4,6,21,20,16,14,106,85]
[null,null,null,"Estimate!!Total:!!Female:!!65 to 74 years:!!No disability",161,70,224,111,149,54,234,104,56,25,88,28,162,93,228,95,880,164,99,47,35,22,41,16,56,28,380,113,11,6,71,23,31,12,67,25,535,150,97,32,161,43,199,109,98,41]
[null,null,null,"Estimate!!Total:!!Female:!!75 years and over:",90,47,117,76,76,51,47,27,32,14,40,22,229,155,196,97,1037,197,87,42,33,18,30,21,77,40,222,107,7,7,50,22,22,13,47,20,372,116,62,38,222,100,123,45,151,66]
[null,null,null,"Estimate!!Total:!!Female:!!75 years and over:!!With a disability",17,13,45,42,21,44,21,19,13,12,3,4,84,64,99,87,373,178,27,21,13,12,11,12,52,38,124,94,5,6,28,18,9,7,20,11,179,114,11,17,172,96,46,30,68,48]
[null,null,null,"Estimate!!Total:!!Female:!!75 years and over:!!No disability",73,45,72,55,55,26,26,16,19,9,37,22,145,153,97,59,664,167,60,37,20,12,19,13,25,18,98,56,2,3,22,11,13,11,27,18,193,99,51,33,50,37,77,35,83,44]

{"sheet":"DisabilityByAgePrior10YearEst","index":39,"n_rows":72,"n_cols":15,"rows_kept":72,"cut":false,"hidden":true,"merged":[[51,13,51,14],[28,3,28,4],[28,5,28,6],[28,7,28,8],[28,9,28,10],[28,11,28,12],[28,13,28,14],[51,3,51,4],[51,5,51,6],[51,7,51,8],[51,9,51,10],[51,11,51,12]]}
[]
[]
[]
[]
[null,{"$f":"CntyDataLink!A20","v":"Dublin"}]
[null,"SOCIAL CHARACTERISTICS"]
[]
[]
[null,"Disabilities By Age"]
[null,null,"Universe: Civilian Non-institutionalized Population"]
[]
[]
[]
[]
[]
[]
[]
[]
[]
[]
[]
[]
[]
[]
[]
[]
[]
[]
[null,null,null,"Under 5",null,"5 to 17 years",null,"18 to 34 years",null,"35 to 64 years",null,"65 to 74 years",null,"75 years and older"]
[null,null,null,"Estimate","Margin of Error","Estimate","Margin of Error","Estimate","Margin of Error","Estimate","Margin of Error","Estimate","Margin of Error","Estimate","Margin of Error"]
[null,"Total ",null,{"$f":"CntyDataLinkPrior10YearEstimate!D112","v":37},{"$f":"CntyDataLinkPrior10YearEstimate!E112","v":15},{"$f":"CntyDataLinkPrior10YearEstimate!J112","v":361},{"$f":"CntyDataLinkPrior10YearEstimate!K112","v":98.716766559688324},{"$f":"CntyDataLinkPrior10YearEstimate!P112","v":212},{"$f":"CntyDataLinkPrior10YearEstimate!Q112","v":73.348483283568996},{"$f":"CntyDataLinkPrior10YearEstimate!V112","v":806},{"$f":"CntyDataLinkPrior10YearEstimate!W112","v":107.41508273980894},{"$f":"CntyDataLinkPrior10YearEstimate!AB112","v":194},{"$f":"CntyDataLinkPrior10YearEstimate!AC112","v":66.211781428987393},{"$f":"CntyDataLinkPrior10YearEstimate!AH112","v":99},{"$f":"CntyDataLinkPrior10YearEstimate!AI112","v":35.510561809129406}]
[]
[null,"With a disability:",null,{"$f":"CntyDataLinkPrior10YearEstimate!F112","v":0},{"$f":"CntyDataLinkPrior10YearEstimate!G112","v":15.556349186104045},{"$f":"CntyDataLinkPrior10YearEstimate!L112","v":24},{"$f":"CntyDataLinkPrior10YearEstimate!M112","v":21.377558326431949},{"$f":"CntyDataLinkPrior10YearEstimate!R112","v":3},{"$f":"CntyDataLinkPrior10YearEstimate!S112","v":11.704699910719626},{"$f":"CntyDataLinkPrior10YearEstimate!X112","v":97},{"$f":"CntyDataLinkPrior10YearEstimate!Y112","v":64.621977685614041},{"$f":"CntyDataLinkPrior10YearEstimate!AD112","v":57},{"$f":"CntyDataLinkPrior10YearEstimate!AE112","v":59.841457201508724},{"$f":"CntyDataLinkPrior10YearEstimate!AJ112","v":30},{"$f":"CntyDataLinkPrior10YearEstimate!AK112","v":16.970562748477139}]
[]
[null,"With one disability:",null,{"$f":"CntyDataLinkPrior10YearEstimate!CX112","v":14},{"$f":"CntyDataLinkPrior10YearEstimate!CY112","v":18},{"$f":"CntyDataLinkPrior10YearEstimate!DB112","v":259},{"$f":"CntyDataLinkPrior10YearEstimate!DC112","v":82},{"$f":"CntyDataLinkPrior10YearEstimate!DF112","v":42},{"$f":"CntyDataLinkPrior10YearEstimate!DG112","v":29},{"$f":"CntyDataLinkPrior10YearEstimate!DJ112","v":889},{"$f":"CntyDataLinkPrior10YearEstimate!DK112","v":133},{"$f":"CntyDataLinkPrior10YearEstimate!DN112","v":37},{"$f":"CntyDataLinkPrior10YearEstimate!DO112","v":19},{"$f":"CntyDataLinkPrior10YearEstimate!DR112","v":219},{"$f":"CntyDataLinkPrior10YearEstimate!DS112","v":55}]
[]
[null,"Type of disability"]
[null,null,"Hearing disability",{"$f":"CntyDataLinkPrior10YearEstimate!AN112","v":0},{"$f":"CntyDataLinkPrior10YearEstimate!AO112","v":15.556349186104045},{"$f":"CntyDataLinkPrior10YearEstimate!AP112","v":0},{"$f":"CntyDataLinkPrior10YearEstimate!AQ112","v":15.556349186104045},{"$f":"CntyDataLinkPrior10YearEstimate!AR112","v":0},{"$f":"CntyDataLinkPrior10YearEstimate!AS112","v":15.556349186104045},{"$f":"CntyDataLinkPrior10YearEstimate!AT112","v":33},{"$f":"CntyDataLinkPrior10YearEstimate!AU112","v":17.888543819998318},{"$f":"CntyDataLinkPrior10YearEstimate!AV112","v":14},{"$f":"CntyDataLinkPrior10YearEstimate!AW112","v":9.4339811320566032},{"$f":"CntyDataLinkPrior10YearEstimate!AX112","v":14},{"$f":"CntyDataLinkPrior10YearEstimate!AY112","v":12.727922061357855}]
[null,null,"Visual disability",{"$f":"CntyDataLinkPrior10YearEstimate!AZ112","v":0},{"$f":"CntyDataLinkPrior10YearEstimate!BA112","v":15.556349186104045},{"$f":"CntyDataLinkPrior10YearEstimate!BB112","v":0},{"$f":"CntyDataLinkPrior10YearEstimate!BC112","v":15.556349186104045},{"$f":"CntyDataLinkPrior10YearEstimate!BD112","v":0},{"$f":"CntyDataLinkPrior10YearEstimate!BE112","v":15.556349186104045},{"$f":"CntyDataLinkPrior10YearEstimate!BF112","v":0},{"$f":"CntyDataLinkPrior10YearEstimate!BG112","v":15.556349186104045},{"$f":"CntyDataLinkPrior10YearEstimate!BH112","v":0},{"$f":"CntyDataLinkPrior10YearEstimate!BI112","v":15.556349186104045},{"$f":"CntyDataLinkPrior10YearEstimate!BJ112","v":6},{"$f":"CntyDataLinkPrior10YearEstimate!BK112","v":7.0710678118654755}]
[null,null,"Cognitive disability","NA","NA",{"$f":"CntyDataLinkPrior10YearEstimate!BL112","v":24},{"$f":"CntyDataLinkPrior10YearEstimate!BM112","v":21.377558326431949},{"$f":"CntyDataLinkPrior10YearEstimate!BN112","v":0},{"$f":"CntyDataLinkPrior10YearEstimate!BO112","v":15.556349186104045},{"$f":"CntyDataLinkPrior10YearEstimate!BP112","v":41},{"$f":"CntyDataLinkPrior10YearEstimate!BQ112","v":59.665735560705194},{"$f":"CntyDataLinkPrior10YearEstimate!BR112","v":27},{"$f":"CntyDataLinkPrior10YearEstimate!BS112","v":59.033888572581766},{"$f":"CntyDataLinkPrior10YearEstimate!BT112","v":13},{"$f":"CntyDataLinkPrior10YearEstimate!BU112","v":12.041594578792296}]
[null,null,"Ambulatory disability","NA","NA",{"$f":"CntyDataLinkPrior10YearEstimate!BV112","v":0},{"$f":"CntyDataLinkPrior10YearEstimate!BW112","v":15.556349186104045},{"$f":"CntyDataLinkPrior10YearEstimate!BX112","v":0},{"$f":"CntyDataLinkPrior10YearEstimate!BY112","v":15.556349186104045},{"$f":"CntyDataLinkPrior10YearEstimate!BZ112","v":63},{"$f":"CntyDataLinkPrior10YearEstimate!CA112","v":62.297672508690084},{"$f":"CntyDataLinkPrior10YearEstimate!CB112","v":47},{"$f":"CntyDataLinkPrior10YearEstimate!CC112","v":59.304300012730948},{"$f":"CntyDataLinkPrior10YearEstimate!CD112","v":8},{"$f":"CntyDataLinkPrior10YearEstimate!CE112","v":9.4339811320566032}]
[null,null,"Self-care disability","NA","NA",{"$f":"CntyDataLinkPrior10YearEstimate!CF112","v":0},{"$f":"CntyDataLinkPrior10YearEstimate!CG112","v":15.556349186104045},{"$f":"CntyDataLinkPrior10YearEstimate!CH112","v":3},{"$f":"CntyDataLinkPrior10YearEstimate!CI112","v":11.704699910719626},{"$f":"CntyDataLinkPrior10YearEstimate!CJ112","v":33},{"$f":"CntyDataLinkPrior10YearEstimate!CK112","v":58.54912467321779},{"$f":"CntyDataLinkPrior10YearEstimate!CL112","v":27},{"$f":"CntyDataLinkPrior10YearEstimate!CM112","v":59.033888572581766},{"$f":"CntyDataLinkPrior10YearEstimate!CN112","v":8},{"$f":"CntyDataLinkPrior10YearEstimate!CO112","v":9.4339811320566032}]
[null,null,"Independent living disability","NA","NA","NA","NA",{"$f":"CntyDataLinkPrior10YearEstimate!CP112","v":0},{"$f":"CntyDataLinkPrior10YearEstimate!CQ112","v":15.556349186104045},{"$f":"CntyDataLinkPrior10YearEstimate!CR112","v":52},{"$f":"CntyDataLinkPrior10YearEstimate!CS112","v":61.1310068623117},{"$f":"CntyDataLinkPrior10YearEstimate!CT112","v":36},{"$f":"CntyDataLinkPrior10YearEstimate!CU112","v":60.016664352494629},{"$f":"CntyDataLinkPrior10YearEstimate!CV112","v":16},{"$f":"CntyDataLinkPrior10YearEstimate!CW112","v":13}]
[]
[null,"With two or more types of disability:",null,{"$f":"CntyDataLinkPrior10YearEstimate!CZ112","v":3},{"$f":"CntyDataLinkPrior10YearEstimate!DA112","v":5},{"$f":"CntyDataLinkPrior10YearEstimate!DD112","v":934},{"$f":"CntyDataLinkPrior10YearEstimate!DE112","v":139},{"$f":"CntyDataLinkPrior10YearEstimate!DH112","v":3},{"$f":"CntyDataLinkPrior10YearEstimate!DI112","v":5},{"$f":"CntyDataLinkPrior10YearEstimate!DL112","v":277},{"$f":"CntyDataLinkPrior10YearEstimate!DM112","v":57},{"$f":"CntyDataLinkPrior10YearEstimate!DP112","v":21},{"$f":"CntyDataLinkPrior10YearEstimate!DQ112","v":16},{"$f":"CntyDataLinkPrior10YearEstimate!DT112","v":0},{"$f":"CntyDataLinkPrior10YearEstimate!DU112","v":0}]
[]
[null,"No disability",null,{"$f":"CntyDataLinkPrior10YearEstimate!H112","v":37},{"$f":"CntyDataLinkPrior10YearEstimate!I112","v":15},{"$f":"CntyDataLinkPrior10YearEstimate!N112","v":337},{"$f":"CntyDataLinkPrior10YearEstimate!O112","v":93.60021367496978},{"$f":"CntyDataLinkPrior10YearEstimate!T112","v":209},{"$f":"CntyDataLinkPrior10YearEstimate!U112","v":72.917761896536561},{"$f":"CntyDataLinkPrior10YearEstimate!Z112","v":709},{"$f":"CntyDataLinkPrior10YearEstimate!AA112","v":84.899941107164494},{"$f":"CntyDataLinkPrior10YearEstimate!AF112","v":137},{"$f":"CntyDataLinkPrior10YearEstimate!AG112","v":38.183766184073569},{"$f":"CntyDataLinkPrior10YearEstimate!AL112","v":69},{"$f":"CntyDataLinkPrior10YearEstimate!AM112","v":31.76476034853718}]
[null,"Source: 2008-2012 American Community Survey Tables B18101;  B18102; B18103; B18104; B18105; B18106;  and B18107"]
[null,"NA indicates that the American Community Survey does not calculate the number for that disability."]
[null,"Percent of Population with Disabilities"]
[]
[null,null,null,"Under 5",null,"5 to 17 years",null,"18 to 34 years",null,"35 to 64 years",null,"65 to 74 years",null,"75 years and older"]
[]
[null,"With a disability:",null,{"$f":"D33/D$31","v":0},null,{"$f":"F33/F$31","v":6.6481994459833799E-2},null,{"$f":"H33/H$31","v":1.4150943396226415E-2},null,{"$f":"J33/J$31","v":0.12034739454094293},null,{"$f":"L33/L$31","v":0.29381443298969073},null,{"$f":"N33/N$31","v":0.30303030303030304}]
[]
[null,"Type of disability"]
[null,null,"Hearing disability",{"$f":"D38/D$31","v":0},null,{"$f":"F38/F$31","v":0},null,{"$f":"H38/H$31","v":0},null,{"$f":"J38/J$31","v":4.0942928039702231E-2},null,{"$f":"L38/L$31","v":7.2164948453608241E-2},null,{"$f":"N38/N$31","v":0.14141414141414141}]
[null,null,"Visual disability",{"$f":"D39/D$31","v":0},null,{"$f":"F39/F$31","v":0},null,0,null,0,null,0,null,6.0606060606060608E-2]
[null,null,"Cognitive disability","NA",null,{"$f":"F40/F$31","v":6.6481994459833799E-2},null,0,null,5.0868486352357321E-2,null,0.13917525773195877,null,0.13131313131313133]
[null,null,"Ambulatory disability","NA",null,{"$f":"F41/F$31","v":0},null,0,null,7.8163771712158811E-2,null,0.2422680412371134,null,8.0808080808080815E-2]
[null,null,"Self-care disability","NA",null,{"$f":"F42/F$31","v":0},null,1.4150943396226415E-2,null,4.0942928039702231E-2,null,0.13917525773195877,null,8.0808080808080815E-2]
[null,null,"Independent living disability","NA",null,"NA",null,0,null,6.4516129032258063E-2,null,0.18556701030927836,null,0.16161616161616163]
[]
[]
[]
[null,"No disability",null,{"$f":"D47/D$31","v":1},null,{"$f":"F47/F$31","v":0.93351800554016617},null,{"$f":"H47/H$31","v":0.98584905660377353},null,{"$f":"J47/J$31","v":0.8796526054590571},null,{"$f":"L47/L$31","v":0.70618556701030932},null,{"$f":"N47/N$31","v":0.69696969696969702}]
[]
[]
[null,"Source:  2008-2012  American Community Survey Tables B18101;  B18102; B18103; B18104; B18105; B18106;  and B18107"]
[null,"NA indicates that the American Community Survey does not calculate the number for that disability."]
[]
[null,"Data from the American Community Survey are estimates."]

{"sheet":"ACS_Table_B18101","index":40,"n_rows":156,"n_cols":48,"rows_kept":156,"cut":false,"hidden":true,"merged":[]}
["B18101. SEX BY AGE BY DISABILITY STATUS\n"]
["Universe:  Civilian noninstitutionalized population"]
["Data Set: 2018-2022 American Community Survey 5-Year Estimates"]
[]
[null,null,"Alstead",null,"Chesterfield",null,"Dublin",null,"Fitzwilliam",null,"Gilsum",null,"Harrisville",null,"Hinsdale",null,"Jaffrey",null,"Keene",null,"Marlborough",null,"Marlow",null,"Nelson",null,"Richmond",null,"Rindge",null,"Roxbury",null,"Stoddard",null,"Sullivan",null,"Surry",null,"Swanzey",null,"Troy",null,"Walpole",null,"Westmoreland",null,"Winchester"]
[null," ","Estimate","Margin of Error","Estimate","Margin of Error","Estimate","Margin of Error","Estimate","Margin of Error","Estimate","Margin of Error","Estimate","Margin of Error","Estimate","Margin of Error","Estimate","Margin of Error","Estimate","Margin of Error","Estimate","Margin of Error","Estimate","Margin of Error","Estimate","Margin of Error","Estimate","Margin of Error","Estimate","Margin of Error","Estimate","Margin of Error","Estimate","Margin of Error","Estimate","Margin of Error","Estimate","Margin of Error","Estimate","Margin of Error","Estimate","Margin of Error","Estimate","Margin of Error","Estimate","Margin of Error","Estimate","Margin of Error"]
[null,"Total",1599,169,3577,15,1711,216,2287,368,871,144,977,197,3965,16,5299,31,22429,47,2253,391,803,175,550,106,1104,251,6443,18,295,142,1205,162,681,130,950,245,7306,22,1889,275,3651,33,1971,342,4094,24]
[null,"Male:",770,116,2000,139,800,118,1203,216,452,88,461,95,2090,205,2731,216,10985,396,1005,199,364,80,252,50,595,161,3162,187,135,70,592,98,342,79,388,72,3563,205,950,177,1799,162,857,162,1968,182]
[null,"Under 5 years:",12,11,121,74,24,19,33,23,33,23,42,33,26,38,114,89,485,125,76,60,23,26,15,8,38,31,144,96,36,37,29,16,35,30,17,13,125,95,25,22,183,89,33,31,102,62]
[null,"With a disability",0,12,0,12,0,12,0,12,0,12,0,12,0,12,0,17,0,22,0,12,0,12,0,12,0,12,0,17,0,12,0,12,0,12,6,8,0,17,0,12,0,12,0,12,0,12]
[null,"No disability",12,11,121,74,24,19,33,23,33,23,42,33,26,38,114,89,485,125,76,60,23,26,15,8,38,31,144,96,36,37,29,16,35,30,11,11,125,95,25,22,183,89,33,31,102,62]
[null,"5 to 17 years:",96,55,452,132,97,40,101,36,52,31,47,26,277,125,566,154,1379,180,129,64,37,23,17,12,82,37,470,153,4,6,104,62,18,12,34,16,425,130,149,79,312,115,51,27,311,122]
[null,"With a disability",0,12,37,54,0,12,4,5,21,29,3,5,18,32,34,42,102,47,0,12,2,3,0,12,13,19,0,17,0,12,0,12,7,5,5,9,6,14,0,12,5,8,0,12,6,13]
[null,"No disability",96,55,415,138,97,40,97,35,31,16,44,26,259,112,532,157,1277,172,129,64,35,23,17,12,69,31,470,153,4,6,104,62,11,11,29,14,419,131,149,79,307,115,51,27,305,121]
[null,"18 to 34 years:",147,61,366,146,136,55,226,92,119,56,38,20,294,122,408,190,3702,372,175,92,53,32,25,15,110,61,941,135,17,10,81,29,88,36,49,28,528,182,191,77,366,116,117,52,388,118]
[null,"With a disability",54,46,25,38,33,39,10,10,6,8,0,12,50,64,31,56,381,159,18,26,2,6,2,3,3,6,68,51,8,11,8,11,17,20,2,3,61,68,9,13,20,21,3,6,0,12]
[null,"No disability",93,42,341,142,103,45,216,91,113,56,38,20,244,107,377,187,3321,398,157,83,51,31,23,14,107,60,873,122,9,6,73,30,71,31,47,28,467,184,182,75,346,117,114,51,388,118]
[null,"35 to 64 years:",357,76,537,175,338,83,605,177,158,38,190,52,878,165,1310,200,3790,283,440,108,153,41,116,30,192,53,983,154,65,37,279,49,134,28,164,44,1568,216,419,95,571,100,395,97,910,152]
[null,"With a disability",59,37,62,94,29,19,76,44,45,21,44,25,136,94,113,89,381,153,37,19,9,10,13,14,15,10,31,33,6,5,19,14,10,5,14,10,270,151,32,27,48,52,67,49,139,66]
[null,"No disability",298,73,475,158,309,75,529,176,113,30,146,46,742,145,1197,182,3409,309,403,103,144,39,103,27,177,55,952,153,59,35,260,48,124,29,150,45,1298,232,387,89,523,97,328,88,771,136]
[null,"65 to 74 years:",106,42,367,125,153,64,195,55,76,29,91,28,433,236,159,87,899,135,83,37,75,38,59,21,145,100,428,106,10,6,68,17,40,17,80,34,533,186,121,49,271,74,156,50,193,70]
[null,"With a disability",24,20,153,99,16,17,75,44,21,16,10,10,243,229,40,42,222,95,5,8,23,28,7,7,22,13,45,47,3,4,5,6,6,5,16,13,240,173,67,36,48,34,28,22,77,40]
[null,"No disability",82,38,214,103,137,63,120,34,55,27,81,27,190,115,119,75,677,147,78,37,52,26,52,20,123,96,383,120,7,6,63,17,34,17,64,31,293,100,54,29,223,67,128,42,116,56]
[null,"75 years and over:",52,33,157,80,52,26,43,19,14,10,53,20,182,113,174,110,730,148,102,43,23,13,20,10,28,16,196,97,3,3,31,15,27,14,44,21,384,157,45,29,96,46,105,66,64,35]
[null,"With a disability",12,12,82,65,5,6,19,14,8,8,20,15,143,115,46,58,350,106,42,35,6,6,15,9,26,16,35,32,1,2,19,14,12,11,18,15,221,151,10,12,31,21,62,63,27,20]
[null,"No disability",40,30,75,52,47,26,24,15,6,6,33,16,39,26,128,96,380,134,60,30,17,10,5,5,2,3,161,91,2,3,12,7,15,12,26,15,163,88,35,28,65,42,43,21,37,28]
[null,"Female:",829,95,1577,140,911,135,1084,188,419,74,516,110,1875,204,2568,218,11444,392,1248,240,439,110,298,67,509,121,3281,187,160,78,613,91,339,65,562,203,3743,209,939,136,1852,161,1114,217,2126,181]
[null,"Under 5 years:",20,19,20,30,57,32,45,46,26,17,8,8,58,46,28,48,387,112,140,107,19,19,7,7,10,14,116,74,2,3,29,23,28,18,47,47,110,82,106,55,144,82,47,41,237,122]
[null,"With a disability",0,12,0,12,0,12,0,12,0,12,0,12,0,12,0,17,5,23,0,12,0,12,0,12,0,12,0,17,0,12,0,12,0,12,29,45,0,17,0,12,0,12,0,12,0,12]
[null,"No disability",20,19,20,30,57,32,45,46,26,17,8,8,58,46,28,48,382,112,140,107,19,19,7,7,10,14,116,74,2,3,29,23,28,18,18,12,110,82,106,55,144,82,47,41,237,122]
[null,"5 to 17 years:",100,34,144,80,149,44,106,53,38,29,52,39,225,70,617,129,1041,198,198,77,116,56,46,30,58,27,443,150,5,5,89,33,30,15,95,63,602,142,113,46,287,98,180,81,289,127]
[null,"With a disability",0,12,19,28,0,12,18,22,4,4,0,12,0,12,95,95,91,77,0,12,17,16,0,12,0,12,9,16,0,12,3,5,3,4,2,3,16,25,0,12,35,44,0,12,0,12]
[null,"No disability",100,34,125,68,149,44,88,38,34,29,52,39,225,70,522,148,950,190,198,77,99,51,46,30,58,27,434,148,5,5,86,32,27,14,93,63,586,145,113,46,252,94,180,81,289,127]
[null,"18 to 34 years:",117,55,323,125,63,26,151,78,95,35,89,40,306,147,307,170,3991,285,117,53,72,40,27,18,69,47,1002,156,67,57,102,41,74,37,122,78,424,133,205,65,318,144,119,67,492,192]
[null,"With a disability",13,12,0,12,0,12,4,6,0,12,4,7,0,12,0,17,466,171,13,21,0,12,4,5,0,12,144,84,0,12,4,7,0,12,9,8,20,34,38,26,10,17,0,12,33,31]
[null,"No disability",104,54,323,125,63,26,147,77,95,35,85,40,306,147,307,170,3525,318,104,50,72,40,23,16,69,47,858,157,67,57,98,40,74,37,113,77,404,130,167,61,308,146,119,67,459,199]
[null,"35 to 64 years:",329,67,729,167,404,97,484,84,170,44,220,61,843,127,1144,160,3688,301,586,139,132,39,140,38,226,60,1067,134,66,30,257,49,145,28,179,54,1648,206,352,89,699,118,430,101,753,132]
[null,"With a disability",82,53,33,44,9,10,14,12,15,10,17,14,64,46,228,145,603,171,109,55,13,13,9,10,34,22,117,82,30,24,6,7,17,11,6,6,231,113,33,29,112,68,17,17,131,68]
[null,"No disability",247,49,696,169,395,95,470,85,155,41,203,59,779,116,916,144,3085,274,477,128,119,36,131,36,192,58,950,131,36,17,251,49,128,27,173,55,1417,230,319,82,587,108,413,104,622,137]
[null,"65 to 74 years:",173,71,244,110,162,54,251,106,58,25,107,30,214,97,276,101,1300,181,120,51,67,38,48,17,69,30,431,102,13,5,86,25,40,14,72,25,587,143,101,32,182,50,215,110,204,79]
[null,"With a disability",12,11,20,30,13,16,17,20,2,3,19,13,52,40,48,43,420,129,21,16,32,31,7,6,13,10,51,39,2,3,15,9,9,8,5,5,52,51,4,6,21,20,16,14,106,85]
[null,"No disability",161,70,224,111,149,54,234,104,56,25,88,28,162,93,228,95,880,164,99,47,35,22,41,16,56,28,380,113,11,6,71,23,31,12,67,25,535,150,97,32,161,43,199,109,98,41]
[null,"75 years and over:",90,47,117,76,76,51,47,27,32,14,40,22,229,155,196,97,1037,197,87,42,33,18,30,21,77,40,222,107,7,7,50,22,22,13,47,20,372,116,62,38,222,100,123,45,151,66]
[null,"With a disability",17,13,45,42,21,44,21,19,13,12,3,4,84,64,99,87,373,178,27,21,13,12,11,12,52,38,124,94,5,6,28,18,9,7,20,11,179,114,11,17,172,96,46,30,68,48]
[null,"No disability",73,45,72,55,55,26,26,16,19,9,37,22,145,153,97,59,664,167,60,37,20,12,19,13,25,18,98,56,2,3,22,11,13,11,27,18,193,99,51,33,50,37,77,35,83,44]
[]
[]
["B18101. SEX BY AGE BY DISABILITY STATUS\n"]
["Universe:  Civilian noninstitutionalized population"]
["Data Set: 2018-2022 American Community Survey 5-Year Estimates"]
[]
[]
[null,null,"Alstead",null,"Chesterfield",null,"Dublin",null,"Fitzwilliam",null,"Gilsum",null,"Harrisville",null,"Hinsdale",null,"Jaffrey",null,"Keene",null,"Marlborough",null,"Marlow",null,"Nelson",null,"Richmond",null,"Rindge",null,"Roxbury",null,"Stoddard",null,"Sullivan",null,"Surry",null,"Swanzey",null,"Troy",null,"Walpole",null,"Westmoreland",null,"Winchester"]
[null," ","Estimate","Margin of Error","Estimate","Margin of Error","Estimate","Margin of Error","Estimate","Margin of Error","Estimate","Margin of Error","Estimate","Margin of Error","Estimate","Margin of Error","Estimate","Margin of Error","Estimate","Margin of Error","Estimate","Margin of Error","Estimate","Margin of Error","Estimate","Margin of Error","Estimate","Margin of Error","Estimate","Margin of Error","Estimate","Margin of Error","Estimate","Margin of Error","Estimate","Margin of Error","Estimate","Margin of Error","Estimate","Margin of Error","Estimate","Margin of Error","Estimate","Margin of Error","Estimate","Margin of Error","Estimate","Margin of Error"]
[null,"Total",{"$f":"C7","v":1599},169,3577,15,1711,216,2287,368,871,144,977,197,3965,16,5299,31,22429,47,2253,391,803,175,550,106,1104,251,6443,18,295,142,1205,162,681,130,950,245,7306,22,1889,275,3651,33,1971,342,4094,24]
[null,"Under 5 years:",{"$f":"C28+C9","v":32},{"$f":"SQRT((D28^2)+(D9^2))","v":21.95449840010015},{"$f":"E28+E9","v":141},{"$f":"SQRT((F28^2)+(F9^2))","v":79.849859110708522},{"$f":"G28+G9","v":81},{"$f":"SQRT((H28^2)+(H9^2))","v":37.215588131856791},{"$f":"I28+I9","v":78},{"$f":"SQRT((J28^2)+(J9^2))","v":51.429563482495162},{"$f":"K28+K9","v":59},{"$f":"SQRT((L28^2)+(L9^2))","v":28.600699292150182},{"$f":"M28+M9","v":50},{"$f":"SQRT((N28^2)+(N9^2))","v":33.955853692699293},{"$f":"O28+O9","v":84},{"$f":"SQRT((P28^2)+(P9^2))","v":59.665735560705194},{"$f":"Q28+Q9","v":142},{"$f":"SQRT((R28^2)+(R9^2))","v":101.11874208078342},{"$f":"S28+S9","v":872},{"$f":"SQRT((T28^2)+(T9^2))","v":167.83622970026465},{"$f":"U28+U9","v":216},{"$f":"SQRT((V28^2)+(V9^2))","v":122.67436570041843},{"$f":"W28+W9","v":42},{"$f":"SQRT((X28^2)+(X9^2))","v":32.202484376209235},{"$f":"Y28+Y9","v":22},{"$f":"SQRT((Z28^2)+(Z9^2))","v":10.63014581273465},{"$f":"AA28+AA9","v":48},{"$f":"SQRT((AB28^2)+(AB9^2))","v":34.014702703389901},{"$f":"AC28+AC9","v":260},{"$f":"SQRT((AD28^2)+(AD9^2))","v":121.21056059601408},{"$f":"AE28+AE9","v":38},{"$f":"SQRT((AF28^2)+(AF9^2))","v":37.12142238654117},{"$f":"AG28+AG9","v":58},{"$f":"SQRT((AH28^2)+(AH9^2))","v":28.0178514522438},{"$f":"AI28+AI9","v":63},{"$f":"SQRT((AJ28^2)+(AJ9^2))","v":34.985711369071801},{"$f":"AK28+AK9","v":64},{"$f":"SQRT((AL28^2)+(AL9^2))","v":48.764741360946438},{"$f":"AM28+AM9","v":235},{"$f":"SQRT((AN28^2)+(AN9^2))","v":125.49501982150527},{"$f":"AO28+AO9","v":131},59.236812878479547,{"$f":"AQ28+AQ9","v":327},121.01652779682617,{"$f":"AS28+AS9","v":80},51.400389103585589,{"$f":"AU28+AU9","v":339},136.85028315644803]
[null,"With a disability",0,16.970562748477139,0,16.970562748477139,0,16.970562748477139,0,16.970562748477139,0,16.970562748477139,0,16.970562748477139,0,16.970562748477139,0,24.041630560342615,5,31.827660925679098,0,16.970562748477139,0,16.970562748477139,0,16.970562748477139,0,16.970562748477139,0,24.041630560342615,0,16.970562748477139,0,16.970562748477139,0,16.970562748477139,35,45.705579528105758,0,24.041630560342615,0,16.970562748477139,0,16.970562748477139,0,16.970562748477139,0,16.970562748477139]
[null,"No disability",32,21.95449840010015,141,79.849859110708522,81,37.215588131856791,78,51.429563482495162,59,28.600699292150182,50,33.955853692699293,84,59.665735560705194,142,101.11874208078342,867,167.83622970026465,216,122.67436570041843,42,32.202484376209235,22,10.63014581273465,48,34.014702703389901,260,121.21056059601408,38,37.12142238654117,58,28.0178514522438,63,34.985711369071801,29,16.278820596099706,235,125.49501982150527,131,59.236812878479547,327,121.01652779682617,80,51.400389103585589,339,136.85028315644803]
[null,"5 to 17 years:",196,64.660652641308843,596,154.35025105259791,246,59.464274989274024,207,64.070273918565391,90,42.449970553582247,99,46.872166581031863,502,143.26548781894402,1183,200.89051744669283,2420,267.58923745173308,327,100.12492197250393,153,60.539243470661241,63,32.310988842807021,140,45.803929962395145,913,214.26385602802915,9,7.810249675906654,193,70.235318750611498,48,19.209372712298546,129,65,1027,192.52012881774206,262,91.4166286842826,599,151.09268678529745,231,85.381496824546247,600,176.10508226624239]
[null,"With a disability",0,16.970562748477139,56,60.827625302982199,0,16.970562748477139,22,22.561028345356956,25,29.274562336608895,3,13,18,34.176014981270121,129,103.87011119662864,193,90.210864090751286,0,16.970562748477139,19,16.278820596099706,0,16.970562748477139,13,22.472205054244231,9,23.345235059857504,0,16.970562748477139,3,13,10,6.4031242374328485,7,9.4868329805051381,22,28.653097563788805,0,16.970562748477139,40,44.721359549995796,0,16.970562748477139,6,17.691806012954132]
[null,"No disability",196,64.660652641308843,540,153.84407690905749,246,59.464274989274024,185,51.662365412357957,65,33.120990323358392,96,46.872166581031863,484,132.07573584879245,1054,215.76144233852349,2227,256.28889948649748,327,100.12492197250393,134,55.946402922797461,63,32.310988842807021,127,41.109609582188931,904,212.86850401127921,9,7.810249675906654,190,69.771054170049638,38,17.804493814764857,122,64.536811201050213,1005,195.41238445912276,262,91.4166286842826,559,148.52945835759317,231,85.381496824546247,594,175.41379649275024]
[null,"18 to 34 years:",264,82.134036793524274,689,192.20041623263984,199,60.835844697020519,377,120.61509026651682,214,66.037867924396224,127,44.721359549995796,600,191.03141102970474,715,254.95097567963924,7693,468.62458322200723,292,106.17438485811914,125,51.224993899462788,52,23.430749027719962,179,77.006493232713822,1943,206.30317496345035,84,57.870545184921149,183,50.219518117958877,162,51.623637996561229,171,82.87339742040264,952,225.41739063346466,396,100.7670581092849,684,184.91078930121952,236,84.811555816409836,880,225.36193112413639]
[null,"With a disability",67,47.539457296018853,25,39.849717690342551,33,40.80441152620633,14,11.661903789690601,6,14.422205101855956,4,13.892443989449804,50,65.115282384398824,31,58.523499553598128,847,233.49946466748057,31,33.421549934136806,2,13.416407864998739,6,5.8309518948453007,3,13.416407864998739,212,98.270036124955197,8,16.278820596099706,12,13.038404810405298,17,23.323807579381203,11,8.5440037453175304,81,76.026311234992846,47,29.068883707497267,30,27.018512172212592,3,13.416407864998739,33,33.241540277189323]
[null,"No disability",197,68.410525505948286,664,189.17980864775183,166,51.97114584074513,363,119.20570456148481,208,66.037867924396224,123,44.721359549995796,550,181.81859090863068,684,252.7231687044146,6846,509.43890703400342,261,96.896852374058057,123,50.606323715519977,46,21.2602916254693,176,76.216796049164913,1731,198.82907232092595,76,57.314919523628397,171,50,145,48.270073544588683,160,81.93289937503738,871,225.29092303064499,349,96.674712308855618,654,187.09623192357455,233,84.202137740083529,847,231.35470602518549]
[null,"35 to 64 years:",686,101.31633629380802,1266,241.89667215569543,742,127.66362050325849,1089,195.92090240706835,328,58.137767414994535,410,80.156097709406993,1721,208.21623375712088,2454,256.12496949731394,7478,413.14646313383827,1026,176.02556632489498,285,56.586217403180434,256,48.414873747640819,418,80.05623023850174,2050,204.13720875920686,131,47.634021455258214,536,69.296464556281663,279,39.597979746446661,343,69.656299069071991,3216,298.48283032697208,771,130.17680284904833,1270,154.67385040788247,825,140.03570973148243,1663,201.31567251458591]
[null,"With a disability",141,64.637450444769243,95,103.78824596263297,38,21.470910553583888,90,45.607017003965517,60,23.259406699226016,61,28.653097563788805,200,104.65180361560904,341,170.13524032369074,984,229.4558781116753,146,58.189346103904619,22,16.401219466856727,22,17.204650534085253,49,24.166091947189145,148,88.391176030189797,36,24.515301344262525,25,15.652475842498529,27,12.083045973594572,20,11.661903789690601,501,188.60010604450889,65,39.623225512317902,160,85.603738236130781,84,51.86520991955976,270,94.762861923857074]
[null,"No disability",545,87.920418561333065,1171,231.35470602518549,704,121.03718436910205,999,195.45076106272904,268,50.803543183522152,349,74.813100457072352,1521,185.69060288555261,2113,232.07757323791543,6494,412.98547189943616,880,164.29546554911369,263,53.075418038862395,234,45,369,79.93122043357026,1902,201.41995928904365,95,38.910152916687437,511,68.593002558570063,252,39.623225512317902,323,71.06335201775947,2715,326.68639396216059,706,121.01652779682617,1110,145.16542288024377,741,136.23509092741122,1393,193.04144632694815]
[null,"65 to 74 years:",279,82.492423894561369,611,166.50825805346713,315,83.737685661833282,446,119.41942890501528,134,38.288379438153292,198,41.036569057366385,647,255.15681452785068,435,133.30416347586447,2199,225.80079716422614,203,63.007936008093459,142,53.740115370177612,107,27.018512172212592,214,104.4030650891055,859,147.10540438746634,23,7.810249675906654,154,30.232432915661949,80,22.022715545545239,152,42.201895692018383,1120,234.61670869739862,222,58.523499553598128,453,89.308454247064432,371,120.83045973594572,397,105.55093557141026]
[null,"With a disability",36,22.825424421026653,173,103.4456378974,29,23.345235059857504,92,48.332183894378289,23,16.278820596099706,29,16.401219466856727,295,232.46720198772127,88,60.108235708594876,642,160.20611723651504,26,17.888543819998318,55,41.773197148410844,14,9.2195444572928871,35,16.401219466856727,96,61.073725938409879,5,5,20,10.816653826391969,15,9.4339811320566032,21,13.928388277184119,292,180.36074961032958,71,36.496575181789318,69,39.446165846632042,44,26.076809620810597,183,93.941471140279674]
[null,"No disability",243,79.649231006959511,438,151.42654985173505,286,82.97590011563598,354,109.41663493271945,111,36.796738985948195,169,38.897300677553446,352,147.89861392183499,347,121.03718436910205,1557,220.23850707812201,177,59.816385714952723,87,34.058772731852805,93,25.612496949731394,179,100,763,164.83021567661677,18,8.4852813742385695,134,28.600699292150182,65,20.808652046684813,131,39.824615503479755,828,180.27756377319946,151,43.185645763378368,384,79.611556949980567,327,116.81181447096864,214,69.404610797842537]
[null,"75 years and over:",142,57.428216061444921,274,110.34491379306978,128,57.245087125446844,90,33.015148038438355,46,17.204650534085253,93,29.732137494637012,411,191.81762171396036,370,146.65946952038249,1767,246.40008116881779,189,60.108235708594876,56,22.203603311174518,50,23.259406699226016,105,43.08131845707603,418,144.42298985964803,10,7.6157731058639087,81,26.627053911388696,49,19.104973174542799,91,29,756,195.20502042724209,107,47.801673610868477,318,110.07270324653611,228,79.881161734166085,215,74.706090782479038]
[null,"With a disability",29,17.691806012954132,127,77.388629655783419,26,44.407206622349037,40,23.600847442411894,21,14.422205101855956,23,15.524174696260024,227,131.60927019021113,145,104.5609869884557,723,207.17142660125697,69,40.8166632639171,19,13.416407864998739,26,{"$f":"SQRT((Z44^2)+(Z25^2))","v":15},78,41.231056256176608,159,99.297532698451278,6,6.324555320336759,47,22.803508501982758,21,13.038404810405298,38,18.601075237738275,400,189.20095137181525,21,20.808652046684813,203,98.270036124955197,108,69.778220097678044,95,52]
[null,"No disability",113,54.083269131959838,147,75.690157880665041,102,36.76955262170047,50,21.931712199461309,25,10.816653826391969,70,27.202941017470888,184,155.19342769589181,225,112.6809655620682,1044,214.11445537375565,120,47.634021455258214,37,15.620499351813308,{"$f":"Y45+Y26","v":24},13.928388277184119,27,18.248287590894659,259,106.85036265731624,4,4.2426406871192848,34,13.038404810405298,28,16.278820596099706,53,23.430749027719962,356,132.45754036671525,86,43.278170016764804,115,55.97320787662612,120,40.8166632639171,120,52.153619241621193]
[]
[]
[]
[]
[]
[]
[]
[]
[]
[]
[]
[]
[]
[]
[]
[]
[]
[]
[]
[]
[]
[]
[]
[]
[]
[]
["B18101. SEX BY AGE BY DISABILITY STATUS\n-Calculated"]
["Universe:  Civilian noninstitutionalized population"]
["Data Set: 2013-2017 American Community Survey 5-Year Estimates"]
[]
[]
[null,null,"Alstead",null,"Chesterfield",null,"Dublin",null,"Fitzwilliam",null,"Gilsum",null,"Harrisville",null,"Hinsdale",null,"Jaffrey",null,"Keene",null,"Marlborough",null,"Marlow",null,"Nelson",null,"Richmond",null,"Rindge",null,"Roxbury",null,"Stoddard",null,"Sullivan",null,"Surry",null,"Swanzey",null,"Troy",null,"Walpole",null,"Westmoreland",null,"Winchester"]
[null," ","Estimate","Margin of Error","Estimate","Margin of Error","Estimate","Margin of Error","Estimate","Margin of Error","Estimate","Margin of Error","Estimate","Margin of Error","Estimate","Margin of Error","Estimate","Margin of Error","Estimate","Margin of Error","Estimate","Margin of Error","Estimate","Margin of Error","Estimate","Margin of Error","Estimate","Margin of Error","Estimate","Margin of Error","Estimate","Margin of Error","Estimate","Margin of Error","Estimate","Margin of Error","Estimate","Margin of Error","Estimate","Margin of Error","Estimate","Margin of Error","Estimate","Margin of Error","Estimate","Margin of Error","Estimate","Margin of Error"]
[null,"Total",1847,227,3566,15,1487,174,2294,213,702,80,913,140,3925,20,22723,148,23058,228,2119,295,708,115,575,94,1239,175,6000,44,216,57,1193,185,725,118,884,130,7169,37,2182,310,3809,18,1696,212,4146,122]
[null,"Under 5 years:",82,39.204591567825318,377,144.40221604947757,42,26.92582403567252,96,50.931326312987373,16,9.4339811320566032,15,11.401754250991379,139,103.81714694596457,898,203.8872237291979,923,180.40509970618902,86,45.343136195018538,45,25.238858928247925,38,19.313207915827967,69,62.649820430708338,403,112.64546151532249,17,8.6023252670426267,53,31.144823004794873,82,30.413812651491099,42,29.410882339705484,408,137.88763541376724,107,65.215028942721474,114,85.708809348864477,45,23.430749027719962,257,108.90362712049586]
[null,"With a disability",0,15.556349186104045,0,15.556349186104045,0,15.556349186104045,0,15.556349186104045,0,15.556349186104045,0,15.556349186104045,0,15.556349186104045,0,29.698484809834994,0,28.284271247461902,0,15.556349186104045,0,15.556349186104045,0,15.556349186104045,22,28.635642126552707,0,22.627416997969522,0,15.556349186104045,2,11.704699910719626,0,15.556349186104045,0,15.556349186104045,0,22.627416997969522,0,15.556349186104045,0,15.556349186104045,0,15.556349186104045,0,15.556349186104045]
[null,"No disability",82,39.204591567825318,377,144.40221604947757,42,26.92582403567252,96,50.931326312987373,16,9.4339811320566032,15,11.401754250991379,139,103.81714694596457,898,203.8872237291979,923,180.40509970618902,86,45.343136195018538,45,25.238858928247925,38,19.313207915827967,47,39.05124837953327,403,112.64546151532249,17,8.6023252670426267,51,31.144823004794873,82,30.413812651491099,42,29.410882339705484,408,137.88763541376724,107,65.215028942721474,114,85.708809348864477,45,23.430749027719962,257,108.90362712049586]
[null,"5 to 17 years:",234,89.050547443572739,467,154.76756766196203,234,62.433965115151864,278,75.166481891864535,100,25,81,30.528675044947494,617,137.2953021774598,2821,288.84597971929605,2791,291,266,90.686272390037075,101,31.906112267087632,62,22.671568097509269,161,52.201532544552748,849,190.31815467789718,19,12.083045973594572,158,51.088159097779204,92,42.544094772365298,124,42.544094772365298,894,221.29844102478444,363,106.10372283760829,579,141.79210133149166,243,65.36818798161687,637,146.21901381147393]
[null,"With a disability",5,12.529964086141668,26,30.083217912982647,17,21.95449840010015,0,15.556349186104045,0,15.556349186104045,0,15.556349186104045,23,28.231188426986208,232,134.79243302203577,213,131.18688958886096,0,15.556349186104045,3,11.704699910719626,11,17.029386365926403,25,20.808652046684813,56,39.66106403010388,2,12.083045973594572,3,11.704699910719626,0,15.556349186104045,2,11.401754250991379,25,40.311288741492746,33,34,0,15.556349186104045,14,12.806248474865697,49,66.91038783328041]
[null,"No disability",229,89.050547443572739,441,150.94369811290565,217,59.941638282582836,278,75.166481891864535,100,25,81,30.528675044947494,594,138.95682782792647,2589,281.46935890075139,2578,274.43214097477721,266,90.686272390037075,98,31.064449134018133,51,18.027756377319946,136,46.097722286464439,793,176.18456232031227,17,11.180339887498949,155,51.088159097779204,92,42.544094772365298,122,42.059481689626182,869,215.8008341040414,330,101.17806086301516,579,141.79210133149166,229,65.299310869258036,588,136.517398158623]
[null,"18 to 34 years:",369,111.01801655587259,432,135.79396157414365,256,67.007462271003817,409,96.426137535421375,121,29,91,31.240998703626616,587,140.01428498549711,7744,445.31000437897194,8156,446.97762807549998,413,116.1077086157504,104,31.89043743820395,128,41.231056256176608,280,73.006848993775918,1973,237.26145915424192,50,17.691806012954132,208,55.605755097831377,129,39.66106403010388,126,37.483329627982627,1572,281.58480072617556,430,145.34441853748632,704,146.64924138910504,298,75.663729752107784,933,159.13830462839547]
[null,"With a disability",12,15.556349186104045,0,15.556349186104045,16,22.825424421026653,32,30.594117081556711,16,10.63014581273465,0,15.556349186104045,87,68.658575575087482,635,210.73680267100951,564,202.03960007879644,48,44.10215414239989,3,5,2,11.401754250991379,33,22.561028345356956,29,35.777087639996637,0,15.556349186104045,19,17.464249196572979,15,10.295630140987001,8,8.4852813742385695,168,97.324200484771509,17,30.083217912982647,18,21.931712199461309,6,14.212670403551895,75,59.396969619669989]
[null,"No disability",357,109.62207806824317,432,135.79396157414365,240,65.215028942721474,377,90.509667991878089,105,27.018512172212592,91,31.240998703626616,500,132.54810447531869,7109,423.58588267315992,7592,460.02717311045876,365,108.04628637764465,101,31.89043743820395,126,40.607881008493905,247,73.006848993775918,1944,236.51638421048128,50,17.691806012954132,189,47.381430961928537,114,38.275318418009277,118,36.069377593742864,1404,275.5358415887124,413,140.00357138301865,686,142.43595051811886,292,74.249579123386283,858,155.97435686676192]
[null,"35 to 64 years:",801,101.11874208078342,1501,172.00290695217916,678,81.394102980498531,1011,126.62148316932637,349,45.967379738244816,441,63.655321851358195,1833,171.26587517658035,7687,334.67745666536911,7637,355.06900737743922,934,128.76334882255898,337,47.423622805517503,238,40.459856648287818,550,71.217975259059429,1949,153.52198539622916,99,25.80697580112788,510,82.800966177937809,296,40.311288741492746,409,52.801515129776341,3053,248.01814449753471,985,129.07362240210043,1685,150.86417732516887,800,86.278618440491968,1639,181.79383927955314]
[null,"With a disability",67,36.400549446402593,187,105.11898020814318,29,21.587033144922902,147,54.918120870983927,60,20.591260281974002,28,20.808652046684813,206,91.678787077491378,924,217.22108553268947,920,205.10485123467947,114,54.083269131959838,45,19.849433241279208,38,16.401219466856727,45,29.068883707497267,268,87.114866699088736,12,14.212670403551895,53,19.209372712298546,19,13,11,6.4031242374328485,553,184.49119220168751,159,66.068146636635717,215,89.067390216621931,44,21.633307652783937,204,81.024687595818591]
[null,"No disability",734,94.175368329515976,1314,180.42172818150257,649,77.336925203941234,864,117.38824472663352,289,43.840620433565945,413,63.031738037277698,1627,162.64070831129578,6763,342.5317503531607,6717,360.3123644839294,820,115.96551211459379,292,46.097722286464439,200,36.796738985948195,505,62.289646009589745,1681,164.65721970202219,87,23.430749027719962,457,79.404030124421269,277,41.725292090050132,398,51.400389103585589,2500,254.65663156493687,826,128.81770064707723,1470,157.95252451290546,756,85.562842402528915,1435,183.20753259623362]
[null,"65 to 74 years:",247,55.172456896534889,508,128.70120434556935,180,38.600518131237564,360,80.802227692063042,75,17.691806012954132,198,38.948684188300895,509,98.081598681913832,1908,174.77127910500627,1987,190.53608582103286,246,65.115282384398824,57,18.439088914585774,63,20.248456731316587,106,27.658633371878661,512,97.590983190046813,23,9.4339811320566032,150,38.897300677553446,80,24.041630560342615,123,30.232432915661949,614,129.52991932368366,184,51.855568649856693,364,98.270036124955197,213,54.488530903301111,435,88.600225733346747]
[null,"With a disability",76,24.758836806279895,143,84.958813551037778,35,17.029386365926403,92,45.541190146942803,22,9.8994949366116654,15,10.63014581273465,181,66.708320320631671,477,125.93649193144932,538,124.32618388738553,27,27.202941017470888,19,10.63014581273465,11,6.7082039324993694,28,15.264337522473747,120,54.405882034941776,6,12.083045973594572,45,23.430749027719962,21,15.620499351813308,34,16.278820596099706,132,85.422479477008864,52,30.870698080866262,107,69.231495722683903,21,13.45362404707371,151,68.01470429252781]
[null,"No disability",171,54.037024344425184,365,112.43220179290273,145,36.235341863986875,268,67.208630398186216,53,14.866068747318506,183,39.623225512317902,328,75.006666370396701,1431,164.7573974060042,1449,170.42593699317015,219,57.314919523628397,38,15,52,18.601075237738275,78,25,392,91.219515455849688,17,8.6023252670426267,105,31.144823004794873,59,18.439088914585774,89,24.186773244895647,482,124.25779653607253,132,45.276925690687087,257,86.400231481171389,192,54.488530903301111,284,72.670489196096653]
[null,"75 years and over:",114,45.793012567421243,281,121.75385004179539,97,31.11269837220809,140,48.104053883222775,41,15.811388300841896,87,55.108982933819419,240,90.210864090751286,1665,226.25870149013053,1564,202.94334184693028,174,56.727418414731339,64,19.849433241279208,46,16.401219466856727,73,27.658633371878661,314,95.268042910516428,8,11.180339887498949,114,38.209946349085598,46,16.970562748477139,60,18.357559750685819,628,147.75655653811103,113,52.497618993626752,363,95.524865872714003,97,32.802438933713454,245,76.478755219995577]
[null,"With a disability",41,29.410882339705484,31,33.241540277189323,23,15.811388300841896,42,25.059928172283335,16,10.63014581273465,43,53.600373133029585,115,73.23933369440222,918,201.2212712413874,766,184.25254408012933,55,24.758836806279895,14,8.9442719099991592,14,9.2195444572928871,48,24.207436873820409,175,75.742986473996396,5,7.810249675906654,32,19.849433241279208,22,10.295630140987001,23,13.892443989449804,350,116.27553482998907,51,40.024992192379003,157,67.94115100585212,32,20.248456731316587,123,61.71709649683789]
[null,"No disability",73,38.832975677895199,250,119.5198728245642,74,29.732137494637012,98,38.832975677895199,25,10.770329614269007,44,16.643316977093239,125,60.00833275470999,747,166.83225107874077,798,146.65946952038249,119,51.855568649856693,50,18.439088914585774,32,14.422205101855956,25,14.212670403551895,139,62.241465278381739,3,12.083045973594572,82,32.015621187164243,24,14.212670403551895,37,14.212670403551895,278,93.085981758801893,62,34.539832078341085,206,79.906195003891909,65,25.80697580112788,122,56.356011214421486]
[]
[]
[]
[]
[]
["B18101. SEX BY AGE BY DISABILITY STATUS\n-Calculated"]
["Universe:  Civilian noninstitutionalized population"]
["Data Set: 2008-2012 American Community Survey 5-Year Estimates"]
[]
[]
[null,null,"Alstead",null,"Chesterfield",null,"Dublin",null,"Fitzwilliam",null,"Gilsum",null,"Harrisville",null,"Hinsdale",null,"Jaffrey",null,"Keene",null,"Marlborough",null,"Marlow",null,"Nelson",null,"Richmond",null,"Rindge",null,"Roxbury",null,"Stoddard",null,"Sullivan",null,"Surry",null,"Swanzey",null,"Troy",null,"Walpole",null,"Westmoreland",null,"Winchester"]
[null," ","Estimate","Margin of Error","Estimate","Margin of Error","Estimate","Margin of Error","Estimate","Margin of Error","Estimate","Margin of Error","Estimate","Margin of Error","Estimate","Margin of Error","Estimate","Margin of Error","Estimate","Margin of Error","Estimate","Margin of Error","Estimate","Margin of Error","Estimate","Margin of Error","Estimate","Margin of Error","Estimate","Margin of Error","Estimate","Margin of Error","Estimate","Margin of Error","Estimate","Margin of Error","Estimate","Margin of Error","Estimate","Margin of Error","Estimate","Margin of Error","Estimate","Margin of Error","Estimate","Margin of Error","Estimate","Margin of Error"]
[null,"Total",1883,173,3617,22,1709,209,2576,268,542,75,923,139,4046,18,5394,77,23088,148,1977,269,890,185,729,156,992,145,5982,34,219,37,1045,181,691,108,821,110,7236,29,2112,274,3731,19,1919,226,4271,35]
[null,"Under 5 years:",103,53.225933528685054,206,113.14592347937243,37,15,148,58.051701094799967,18,11.313708498984761,49,26.248809496813376,275,114.05700329221349,272,117.37972567696688,788,181.738823590338,86,58.668560575490517,35,23.021728866442675,6,13.038404810405298,48,27.784887978899608,376,109.04127658827184,7,13.038404810405298,94,38.587562763149478,27,19.924858845171276,24,16.124515496597098,329,121.24768039018313,116,47.423622805517503,260,104.00480758118829,90,45.541190146942803,350,114.33722053644648]
[null,"With a disability",0,15.556349186104045,0,15.556349186104045,0,15.556349186104045,0,15.556349186104045,0,15.556349186104045,0,15.556349186104045,0,15.556349186104045,0,22.627416997969522,0,29.698484809834994,0,15.556349186104045,0,15.556349186104045,0,15.556349186104045,4,13.038404810405298,0,22.627416997969522,0,15.556349186104045,0,15.556349186104045,0,15.556349186104045,0,15.556349186104045,0,22.627416997969522,0,15.556349186104045,0,15.556349186104045,0,15.556349186104045,26,43.416586692184822]
[null,"No disability",103,53.225933528685054,206,113.14592347937243,37,15,148,58.051701094799967,18,11.313708498984761,49,26.248809496813376,275,114.05700329221349,272,117.37972567696688,788,181.738823590338,86,58.668560575490517,35,23.021728866442675,6,13.038404810405298,44,26.832815729997478,376,109.04127658827184,7,13.038404810405298,94,38.587562763149478,27,19.924858845171276,24,16.124515496597098,329,121.24768039018313,116,47.423622805517503,260,104.00480758118829,90,45.541190146942803,324,112.44554237496477]
[null,"5 to 17 years:",358,89.202017914394744,470,138.2931668593933,361,98.716766559688324,349,90.603531939985658,36,16.970562748477139,113,44.944410108488462,509,123.76186811776881,1030,206.92993983471797,2967,302.12083675244912,294,105.99056561788883,151,50.990195135927848,105,41.109609582188931,174,68.8839603971781,897,144.30869689661813,40,15.652475842498529,133,52.201532544552748,130,48.548944375753422,91,31.89043743820395,1194,194.74342094150447,360,94.047860156411858,658,130.91982279242512,350,89.044932477934978,588,138.70832707519762]
[null,"With a disability",9,9.2195444572928871,17,27.313000567495326,24,21.377558326431949,15,21.095023109728988,0,15.556349186104045,0,15.556349186104045,155,89.10667763978185,29,35.735136770411273,146,75.769386958058462,0,15.556349186104045,11,10.440306508910551,19,17.691806012954132,13,14.866068747318506,30,28.792360097775937,0,15.556349186104045,22,16.552945357246848,26,20.615528128088304,0,15.556349186104045,139,104.34557968596465,23,24.596747752497688,82,85.708809348864477,11,9.2195444572928871,36,37.643060449437421]
[null,"No disability",349,89.202017914394744,453,136.35981812836215,337,93.60021367496978,334,87.458561616344909,36,16.970562748477139,113,44.944410108488462,354,85.0411665018772,1001,210.62288574606512,2821,315.39816105995294,294,105.99056561788883,140,48.414873747640819,86,37.643060449437421,161,68.117545463705611,867,148.52945835759317,40,15.652475842498529,111,48.548944375753422,104,39.446165846632042,91,31.89043743820395,1055,185.28356645962967,337,94.868329805051374,576,115.74541027617467,339,86.284413424441851,552,135.07405376311175]
[null,"18 to 34 years:",301,70.724818840347695,584,200.5617112013158,212,73.348483283568996,399,104.95713410721541,100,33.421549934136806,96,31.240998703626616,761,155.20631430454111,754,179.96110690924303,7934,476.76514134319848,307,98.290386101591849,110,47.413078364518789,108,44.407206622349037,164,44.654227123532216,2383,260.59930928534709,31,12.529964086141668,105,37.643060449437421,142,44.407206622349037,135,36.61966684720111,1376,220.86421167767313,520,105.38026380684383,671,129.5569372901351,300,75.690157880665041,704,148.52945835759317]
[null,"With a disability",34,25.298221281347036,0,15.556349186104045,3,11.704699910719626,7,14.866068747318506,6,12.529964086141668,3,12.083045973594572,147,70.724818840347695,0,22.627416997969522,410,126.763559432512,11,16.278820596099706,5,5.8309518948453007,2,11.401754250991379,14,15.556349186104045,62,41.400483088968905,0,15.556349186104045,0,15.556349186104045,5,12.083045973594572,0,15.556349186104045,31,33.541019662496844,28,31.016124838541646,65,38.587562763149478,20,16.401219466856727,96,78.492037812761623]
[null,"No disability",267,67.268120235368556,584,200.5617112013158,209,72.917761896536561,392,104.44615837837216,94,31.622776601683793,93,30.479501308256342,614,154.82893786369524,754,179.96110690924303,7524,480.17080294411903,296,94.111635837445732,105,47.413078364518789,106,44.407206622349037,150,43.046486500061768,2321,257.28777662376422,31,12.529964086141668,105,37.643060449437421,137,43.600458713183279,135,36.61966684720111,1345,219.20994502987313,492,103.23759005323593,606,128.08200498118384,280,71.449282711584999,608,142.61135999632006]
[null,"35 to 64 years:",852,86.556340033529608,1690,164.14932226482082,806,107.41508273980894,1319,123.3288287465668,293,40.80441152620633,520,70,1732,185.45619428857049,2558,156.63013758533191,8056,310.64449134018133,969,115.88356225108029,437,81.344944526380985,385,67.475921631349351,504,70.802542327235685,1798,165.55663683464942,99,22.203603311174518,544,85.428332536694171,311,41.725292090050132,425,57.982756057296896,3264,221.33458834985552,856,114.97825881443848,1614,140.73023839957068,921,102.53292154230269,2106,235.84952830141509]
[null,"With a disability",122,45.607017003965517,151,90.520715861066847,97,64.621977685614041,102,48.60041152089147,43,19.849433241279208,38,20.615528128088304,377,116.67476162392619,181,72.249567472753768,930,188.66107176627614,49,27.018512172212592,59,25.80697580112788,23,15.297058540778355,44,25.079872407968907,194,73.593477971896391,11,7.2111025509279782,55,33.61547262794322,45,20,24,14.317821063276353,309,120.50726119201282,132,53.907327887774215,171,76.661594035083823,34,18.439088914585774,231,82.03657720797473]
[null,"No disability",730,79.208585393251411,1539,155.72411502397438,709,84.899941107164494,1217,125.8729518204765,250,38.832975677895199,482,68.600291544569984,1355,167.09278859364338,2377,167.62159765376299,7126,348.63878154904108,920,114.97825881443848,378,75.073297516493838,362,68.249542123006222,460,68.24221567329127,1604,171.05846953600397,88,21.633307652783937,489,79.39773296511683,266,41.725292090050132,401,57.314919523628397,2955,227.90348834539589,724,105.42295765154761,1443,135.76450198781711,887,101.11874208078342,1875,237.11811402758752]
[null,"65 to 74 years:",158,45.967379738244816,402,145.04137340772803,194,66.211781428987393,263,75.432088662584434,65,22.022715545545239,66,24.041630560342615,416,95.524865872714003,414,112.43220179290273,1482,165.61400906928134,182,53.413481444294568,110,32.557641192199412,81,27.802877548915689,73,21.095023109728988,297,74.027022093286988,32,12.727922061357855,115,36.796738985948195,53,20,79,19.798989873223331,736,140.03570973148243,177,56.824290580701486,277,77.620873481300123,100,37.20215047547655,366,74.411020689142546]
[null,"With a disability",26,14.212670403551895,93,81.743501270743224,57,59.841457201508724,59,37.161808352124091,17,13.601470508735444,16,14.866068747318506,158,86.284413424441851,100,62.297672508690084,403,111.4136436887332,74,42.190046219457976,27,17.029386365926403,24,17.088007490635061,20,12.041594578792296,79,47.707441767506253,3,4.2426406871192848,26,21.213203435596427,10,13.038404810405298,4,5.6568542494923806,125,57.584720195551874,43,32.695565448543633,87,60.605280298007038,17,12.206555615733702,89,47.434164902525687]
[null,"No disability",132,43.840620433565945,309,129.61867149450345,137,38.183766184073569,204,69.339743293438858,48,18.439088914585774,50,19.416487838947599,258,69.641941385920603,314,96.400207468656419,1079,167.76471619503309,108,37.536648758246919,83,27.018512172212592,57,23.345235059857504,53,18.867962264113206,218,71.61005515987263,29,12.806248474865697,89,29.732137494637012,43,17.691806012954132,75,19.798989873223331,611,136.517398158623,134,47.169905660283021,190,65.76473218982953,83,35.805027579936315,277,66.219332524573218]
[null,"75 years and over:",111,37.735924528226413,265,104.00480758118829,99,35.510561809129406,98,43.56604182158393,30,15.556349186104045,79,34.828149534535996,353,120.42009799032718,366,107.71258050942797,1861,183.21571984958058,139,48.877397639399746,47,21.470910553583888,44,17.029386365926403,29,15,231,60.207972893961475,10,6.4031242374328485,54,23.323807579381203,28,19.646882704388499,67,30.232432915661949,337,111.36426715962351,83,34.985711369071801,251,74.202425836356596,158,48.918299234540036,157,58]
[null,"With a disability",43,21.931712199461309,115,79.075912893876861,30,16.970562748477139,49,35.341194094144583,16,14.866068747318506,31,22.671568097509269,196,74.632432628181164,156,74.276510418839678,803,159.84054554461454,62,25.612496949731394,22,12.206555615733702,18,8.9442719099991592,27,15,86,45,2,11.401754250991379,13,14.866068747318506,10,7.6157731058639087,24,18.439088914585774,187,90.13878188659973,55,28.600699292150182,95,43.266615305567875,50,27.294688127912362,87,46.141087980237309]
[null,"No disability",68,33.541019662496844,150,85.088189544730596,69,31.76476034853718,49,22.671568097509269,14,11.704699910719626,48,26.248809496813376,157,97.621718894926246,210,80.808415403347695,1058,182.21415971323415,77,42.154477816715982,25,20.248456731316587,26,14.142135623730951,2,11.704699910719626,145,52.497618993626752,8,5.6568542494923806,41,21.540659228538015,18,17.464249196572979,43,24.698178070456937,150,74.303431953039691,28,24.351591323771842,156,59.816385714952723,108,37.443290453698111,70,43.416586692184822]

{"sheet":"SData_B18102_HearingDisability","index":41,"n_rows":69,"n_cols":82,"rows_kept":69,"cut":false,"hidden":true,"merged":[]}
["GEO_ID","GEO_ID2","SUMLEVEL","GEO_NAME",{"$f":"[1]ACS_16_5YR_B18102_with_ann!D1","v":"B18102_001E"},{"$f":"[1]ACS_16_5YR_B18102_with_ann!E1","v":"B18102_001M"},{"$f":"[1]ACS_16_5YR_B18102_with_ann!F1","v":"B18102_002E"},{"$f":"[1]ACS_16_5YR_B18102_with_ann!G1","v":"B18102_002M"},{"$f":"[1]ACS_16_5YR_B18102_with_ann!H1","v":"B18102_003E"},{"$f":"[1]ACS_16_5YR_B18102_with_ann!I1","v":"B18102_003M"},{"$f":"[1]ACS_16_5YR_B18102_with_ann!J1","v":"B18102_004E"},{"$f":"[1]ACS_16_5YR_B18102_with_ann!K1","v":"B18102_004M"},{"$f":"[1]ACS_16_5YR_B18102_with_ann!L1","v":"B18102_005E"},{"$f":"[1]ACS_16_5YR_B18102_with_ann!M1","v":"B18102_005M"},{"$f":"[1]ACS_16_5YR_B18102_with_ann!N1","v":"B18102_006E"},{"$f":"[1]ACS_16_5YR_B18102_with_ann!O1","v":"B18102_006M"},{"$f":"[1]ACS_16_5YR_B18102_with_ann!P1","v":"B18102_007E"},{"$f":"[1]ACS_16_5YR_B18102_with_ann!Q1","v":"B18102_007M"},{"$f":"[1]ACS_16_5YR_B18102_with_ann!R1","v":"B18102_008E"},{"$f":"[1]ACS_16_5YR_B18102_with_ann!S1","v":"B18102_008M"},{"$f":"[1]ACS_16_5YR_B18102_with_ann!T1","v":"B18102_009E"},{"$f":"[1]ACS_16_5YR_B18102_with_ann!U1","v":"B18102_009M"},{"$f":"[1]ACS_16_5YR_B18102_with_ann!V1","v":"B18102_010E"},{"$f":"[1]ACS_16_5YR_B18102_with_ann!W1","v":"B18102_010M"},{"$f":"[1]ACS_16_5YR_B18102_with_ann!X1","v":"B18102_011E"},{"$f":"[1]ACS_16_5YR_B18102_with_ann!Y1","v":"B18102_011M"},{"$f":"[1]ACS_16_5YR_B18102_with_ann!Z1","v":"B18102_012E"},{"$f":"[1]ACS_16_5YR_B18102_with_ann!AA1","v":"B18102_012M"},{"$f":"[1]ACS_16_5YR_B18102_with_ann!AB1","v":"B18102_013E"},{"$f":"[1]ACS_16_5YR_B18102_with_ann!AC1","v":"B18102_013M"},{"$f":"[1]ACS_16_5YR_B18102_with_ann!AD1","v":"B18102_014E"},{"$f":"[1]ACS_16_5YR_B18102_with_ann!AE1","v":"B18102_014M"},{"$f":"[1]ACS_16_5YR_B18102_with_ann!AF1","v":"B18102_015E"},{"$f":"[1]ACS_16_5YR_B18102_with_ann!AG1","v":"B18102_015M"},{"$f":"[1]ACS_16_5YR_B18102_with_ann!AH1","v":"B18102_016E"},{"$f":"[1]ACS_16_5YR_B18102_with_ann!AI1","v":"B18102_016M"},{"$f":"[1]ACS_16_5YR_B18102_with_ann!AJ1","v":"B18102_017E"},{"$f":"[1]ACS_16_5YR_B18102_with_ann!AK1","v":"B18102_017M"},{"$f":"[1]ACS_16_5YR_B18102_with_ann!AL1","v":"B18102_018E"},{"$f":"[1]ACS_16_5YR_B18102_with_ann!AM1","v":"B18102_018M"},{"$f":"[1]ACS_16_5YR_B18102_with_ann!AN1","v":"B18102_019E"},{"$f":"[1]ACS_16_5YR_B18102_with_ann!AO1","v":"B18102_019M"},{"$f":"[1]ACS_16_5YR_B18102_with_ann!AP1","v":"B18102_020E"},{"$f":"[1]ACS_16_5YR_B18102_with_ann!AQ1","v":"B18102_020M"},{"$f":"[1]ACS_16_5YR_B18102_with_ann!AR1","v":"B18102_021E"},{"$f":"[1]ACS_16_5YR_B18102_with_ann!AS1","v":"B18102_021M"},{"$f":"[1]ACS_16_5YR_B18102_with_ann!AT1","v":"B18102_022E"},{"$f":"[1]ACS_16_5YR_B18102_with_ann!AU1","v":"B18102_022M"},{"$f":"[1]ACS_16_5YR_B18102_with_ann!AV1","v":"B18102_023E"},{"$f":"[1]ACS_16_5YR_B18102_with_ann!AW1","v":"B18102_023M"},{"$f":"[1]ACS_16_5YR_B18102_with_ann!AX1","v":"B18102_024E"},{"$f":"[1]ACS_16_5YR_B18102_with_ann!AY1","v":"B18102_024M"},{"$f":"[1]ACS_16_5YR_B18102_with_ann!AZ1","v":"B18102_025E"},{"$f":"[1]ACS_16_5YR_B18102_with_ann!BA1","v":"B18102_025M"},{"$f":"[1]ACS_16_5YR_B18102_with_ann!BB1","v":"B18102_026E"},{"$f":"[1]ACS_16_5YR_B18102_with_ann!BC1","v":"B18102_026M"},{"$f":"[1]ACS_16_5YR_B18102_with_ann!BD1","v":"B18102_027E"},{"$f":"[1]ACS_16_5YR_B18102_with_ann!BE1","v":"B18102_027M"},{"$f":"[1]ACS_16_5YR_B18102_with_ann!BF1","v":"B18102_028E"},{"$f":"[1]ACS_16_5YR_B18102_with_ann!BG1","v":"B18102_028M"},{"$f":"[1]ACS_16_5YR_B18102_with_ann!BH1","v":"B18102_029E"},{"$f":"[1]ACS_16_5YR_B18102_with_ann!BI1","v":"B18102_029M"},{"$f":"[1]ACS_16_5YR_B18102_with_ann!BJ1","v":"B18102_030E"},{"$f":"[1]ACS_16_5YR_B18102_with_ann!BK1","v":"B18102_030M"},{"$f":"[1]ACS_16_5YR_B18102_with_ann!BL1","v":"B18102_031E"},{"$f":"[1]ACS_16_5YR_B18102_with_ann!BM1","v":"B18102_031M"},{"$f":"[1]ACS_16_5YR_B18102_with_ann!BN1","v":"B18102_032E"},{"$f":"[1]ACS_16_5YR_B18102_with_ann!BO1","v":"B18102_032M"},{"$f":"[1]ACS_16_5YR_B18102_with_ann!BP1","v":"B18102_033E"},{"$f":"[1]ACS_16_5YR_B18102_with_ann!BQ1","v":"B18102_033M"},{"$f":"[1]ACS_16_5YR_B18102_with_ann!BR1","v":"B18102_034E"},{"$f":"[1]ACS_16_5YR_B18102_with_ann!BS1","v":"B18102_034M"},{"$f":"[1]ACS_16_5YR_B18102_with_ann!BT1","v":"B18102_035E"},{"$f":"[1]ACS_16_5YR_B18102_with_ann!BU1","v":"B18102_035M"},{"$f":"[1]ACS_16_5YR_B18102_with_ann!BV1","v":"B18102_036E"},{"$f":"[1]ACS_16_5YR_B18102_with_ann!BW1","v":"B18102_036M"},{"$f":"[1]ACS_16_5YR_B18102_with_ann!BX1","v":"B18102_037E"},{"$f":"[1]ACS_16_5YR_B18102_with_ann!BY1","v":"B18102_037M"},{"$f":"[1]ACS_16_5YR_B18102_with_ann!BZ1","v":"B18102_038E"},{"$f":"[1]ACS_16_5YR_B18102_with_ann!CA1","v":"B18102_038M"},{"$f":"[1]ACS_16_5YR_B18102_with_ann!CB1","v":"B18102_039E"},{"$f":"[1]ACS_16_5YR_B18102_with_ann!CC1","v":"B18102_039M"}]
["Geography Identifier","Geography Identifier","Geographic Summary Level","Geography",{"$f":"[1]ACS_16_5YR_B18102_with_ann!D2","v":"Estimate!!Total:"},{"$f":"[1]ACS_16_5YR_B18102_with_ann!E2","v":"Margin of Error!!Total:"},{"$f":"[1]ACS_16_5YR_B18102_with_ann!F2","v":"Estimate!!Total:!!Male:"},{"$f":"[1]ACS_16_5YR_B18102_with_ann!G2","v":"Margin of Error!!Total:!!Male:"},{"$f":"[1]ACS_16_5YR_B18102_with_ann!H2","v":"Estimate!!Total:!!Male:!!Under 5 years:"},{"$f":"[1]ACS_16_5YR_B18102_with_ann!I2","v":"Margin of Error!!Total:!!Male:!!Under 5 years:"},{"$f":"[1]ACS_16_5YR_B18102_with_ann!J2","v":"Estimate!!Total:!!Male:!!Under 5 years:!!With a hearing difficulty"},{"$f":"[1]ACS_16_5YR_B18102_with_ann!K2","v":"Margin of Error!!Total:!!Male:!!Under 5 years:!!With a hearing difficulty"},{"$f":"[1]ACS_16_5YR_B18102_with_ann!L2","v":"Estimate!!Total:!!Male:!!Under 5 years:!!No hearing difficulty"},{"$f":"[1]ACS_16_5YR_B18102_with_ann!M2","v":"Margin of Error!!Total:!!Male:!!Under 5 years:!!No hearing difficulty"},{"$f":"[1]ACS_16_5YR_B18102_with_ann!N2","v":"Estimate!!Total:!!Male:!!5 to 17 years:"},{"$f":"[1]ACS_16_5YR_B18102_with_ann!O2","v":"Margin of Error!!Total:!!Male:!!5 to 17 years:"},{"$f":"[1]ACS_16_5YR_B18102_with_ann!P2","v":"Estimate!!Total:!!Male:!!5 to 17 years:!!With a hearing difficulty"},{"$f":"[1]ACS_16_5YR_B18102_with_ann!Q2","v":"Margin of Error!!Total:!!Male:!!5 to 17 years:!!With a hearing difficulty"},{"$f":"[1]ACS_16_5YR_B18102_with_ann!R2","v":"Estimate!!Total:!!Male:!!5 to 17 years:!!No hearing difficulty"},{"$f":"[1]ACS_16_5YR_B18102_with_ann!S2","v":"Margin of Error!!Total:!!Male:!!5 to 17 years:!!No hearing difficulty"},{"$f":"[1]ACS_16_5YR_B18102_with_ann!T2","v":"Estimate!!Total:!!Male:!!18 to 34 years:"},{"$f":"[1]ACS_16_5YR_B18102_with_ann!U2","v":"Margin of Error!!Total:!!Male:!!18 to 34 years:"},{"$f":"[1]ACS_16_5YR_B18102_with_ann!V2","v":"Estimate!!Total:!!Male:!!18 to 34 years:!!With a hearing difficulty"},{"$f":"[1]ACS_16_5YR_B18102_with_ann!W2","v":"Margin of Error!!Total:!!Male:!!18 to 34 years:!!With a hearing difficulty"},{"$f":"[1]ACS_16_5YR_B18102_with_ann!X2","v":"Estimate!!Total:!!Male:!!18 to 34 years:!!No hearing difficulty"},{"$f":"[1]ACS_16_5YR_B18102_with_ann!Y2","v":"Margin of Error!!Total:!!Male:!!18 to 34 years:!!No hearing difficulty"},{"$f":"[1]ACS_16_5YR_B18102_with_ann!Z2","v":"Estimate!!Total:!!Male:!!35 to 64 years:"},{"$f":"[1]ACS_16_5YR_B18102_with_ann!AA2","v":"Margin of Error!!Total:!!Male:!!35 to 64 years:"},{"$f":"[1]ACS_16_5YR_B18102_with_ann!AB2","v":"Estimate!!Total:!!Male:!!35 to 64 years:!!With a hearing difficulty"},{"$f":"[1]ACS_16_5YR_B18102_with_ann!AC2","v":"Margin of Error!!Total:!!Male:!!35 to 64 years:!!With a hearing difficulty"},{"$f":"[1]ACS_16_5YR_B18102_with_ann!AD2","v":"Estimate!!Total:!!Male:!!35 to 64 years:!!No hearing difficulty"},{"$f":"[1]ACS_16_5YR_B18102_with_ann!AE2","v":"Margin of Error!!Total:!!Male:!!35 to 64 years:!!No hearing difficulty"},{"$f":"[1]ACS_16_5YR_B18102_with_ann!AF2","v":"Estimate!!Total:!!Male:!!65 to 74 years:"},{"$f":"[1]ACS_16_5YR_B18102_with_ann!AG2","v":"Margin of Error!!Total:!!Male:!!65 to 74 years:"},{"$f":"[1]ACS_16_5YR_B18102_with_ann!AH2","v":"Estimate!!Total:!!Male:!!65 to 74 years:!!With a hearing difficulty"},{"$f":"[1]ACS_16_5YR_B18102_with_ann!AI2","v":"Margin of Error!!Total:!!Male:!!65 to 74 years:!!With a hearing difficulty"},{"$f":"[1]ACS_16_5YR_B18102_with_ann!AJ2","v":"Estimate!!Total:!!Male:!!65 to 74 years:!!No hearing difficulty"},{"$f":"[1]ACS_16_5YR_B18102_with_ann!AK2","v":"Margin of Error!!Total:!!Male:!!65 to 74 years:!!No hearing difficulty"},{"$f":"[1]ACS_16_5YR_B18102_with_ann!AL2","v":"Estimate!!Total:!!Male:!!75 years and over:"},{"$f":"[1]ACS_16_5YR_B18102_with_ann!AM2","v":"Margin of Error!!Total:!!Male:!!75 years and over:"},{"$f":"[1]ACS_16_5YR_B18102_with_ann!AN2","v":"Estimate!!Total:!!Male:!!75 years and over:!!With a hearing difficulty"},{"$f":"[1]ACS_16_5YR_B18102_with_ann!AO2","v":"Margin of Error!!Total:!!Male:!!75 years and over:!!With a hearing difficulty"},{"$f":"[1]ACS_16_5YR_B18102_with_ann!AP2","v":"Estimate!!Total:!!Male:!!75 years and over:!!No hearing difficulty"},{"$f":"[1]ACS_16_5YR_B18102_with_ann!AQ2","v":"Margin of Error!!Total:!!Male:!!75 years and over:!!No hearing difficulty"},{"$f":"[1]ACS_16_5YR_B18102_with_ann!AR2","v":"Estimate!!Total:!!Female:"},{"$f":"[1]ACS_16_5YR_B18102_with_ann!AS2","v":"Margin of Error!!Total:!!Female:"},{"$f":"[1]ACS_16_5YR_B18102_with_ann!AT2","v":"Estimate!!Total:!!Female:!!Under 5 years:"},{"$f":"[1]ACS_16_5YR_B18102_with_ann!AU2","v":"Margin of Error!!Total:!!Female:!!Under 5 years:"},{"$f":"[1]ACS_16_5YR_B18102_with_ann!AV2","v":"Estimate!!Total:!!Female:!!Under 5 years:!!With a hearing difficulty"},{"$f":"[1]ACS_16_5YR_B18102_with_ann!AW2","v":"Margin of Error!!Total:!!Female:!!Under 5 years:!!With a hearing difficulty"},{"$f":"[1]ACS_16_5YR_B18102_with_ann!AX2","v":"Estimate!!Total:!!Female:!!Under 5 years:!!No hearing difficulty"},{"$f":"[1]ACS_16_5YR_B18102_with_ann!AY2","v":"Margin of Error!!Total:!!Female:!!Under 5 years:!!No hearing difficulty"},{"$f":"[1]ACS_16_5YR_B18102_with_ann!AZ2","v":"Estimate!!Total:!!Female:!!5 to 17 years:"},{"$f":"[1]ACS_16_5YR_B18102_with_ann!BA2","v":"Margin of Error!!Total:!!Female:!!5 to 17 years:"},{"$f":"[1]ACS_16_5YR_B18102_with_ann!BB2","v":"Estimate!!Total:!!Female:!!5 to 17 years:!!With a hearing difficulty"},{"$f":"[1]ACS_16_5YR_B18102_with_ann!BC2","v":"Margin of Error!!Total:!!Female:!!5 to 17 years:!!With a hearing difficulty"},{"$f":"[1]ACS_16_5YR_B18102_with_ann!BD2","v":"Estimate!!Total:!!Female:!!5 to 17 years:!!No hearing difficulty"},{"$f":"[1]ACS_16_5YR_B18102_with_ann!BE2","v":"Margin of Error!!Total:!!Female:!!5 to 17 years:!!No hearing difficulty"},{"$f":"[1]ACS_16_5YR_B18102_with_ann!BF2","v":"Estimate!!Total:!!Female:!!18 to 34 years:"},{"$f":"[1]ACS_16_5YR_B18102_with_ann!BG2","v":"Margin of Error!!Total:!!Female:!!18 to 34 years:"},{"$f":"[1]ACS_16_5YR_B18102_with_ann!BH2","v":"Estimate!!Total:!!Female:!!18 to 34 years:!!With a hearing difficulty"},{"$f":"[1]ACS_16_5YR_B18102_with_ann!BI2","v":"Margin of Error!!Total:!!Female:!!18 to 34 years:!!With a hearing difficulty"},{"$f":"[1]ACS_16_5YR_B18102_with_ann!BJ2","v":"Estimate!!Total:!!Female:!!18 to 34 years:!!No hearing difficulty"},{"$f":"[1]ACS_16_5YR_B18102_with_ann!BK2","v":"Margin of Error!!Total:!!Female:!!18 to 34 years:!!No hearing difficulty"},{"$f":"[1]ACS_16_5YR_B18102_with_ann!BL2","v":"Estimate!!Total:!!Female:!!35 to 64 years:"},{"$f":"[1]ACS_16_5YR_B18102_with_ann!BM2","v":"Margin of Error!!Total:!!Female:!!35 to 64 years:"},{"$f":"[1]ACS_16_5YR_B18102_with_ann!BN2","v":"Estimate!!Total:!!Female:!!35 to 64 years:!!With a hearing difficulty"},{"$f":"[1]ACS_16_5YR_B18102_with_ann!BO2","v":"Margin of Error!!Total:!!Female:!!35 to 64 years:!!With a hearing difficulty"},{"$f":"[1]ACS_16_5YR_B18102_with_ann!BP2","v":"Estimate!!Total:!!Female:!!35 to 64 years:!!No hearing difficulty"},{"$f":"[1]ACS_16_5YR_B18102_with_ann!BQ2","v":"Margin of Error!!Total:!!Female:!!35 to 64 years:!!No hearing difficulty"},{"$f":"[1]ACS_16_5YR_B18102_with_ann!BR2","v":"Estimate!!Total:!!Female:!!65 to 74 years:"},{"$f":"[1]ACS_16_5YR_B18102_with_ann!BS2","v":"Margin of Error!!Total:!!Female:!!65 to 74 years:"},{"$f":"[1]ACS_16_5YR_B18102_with_ann!BT2","v":"Estimate!!Total:!!Female:!!65 to 74 years:!!With a hearing difficulty"},{"$f":"[1]ACS_16_5YR_B18102_with_ann!BU2","v":"Margin of Error!!Total:!!Female:!!65 to 74 years:!!With a hearing difficulty"},{"$f":"[1]ACS_16_5YR_B18102_with_ann!BV2","v":"Estimate!!Total:!!Female:!!65 to 74 years:!!No hearing difficulty"},{"$f":"[1]ACS_16_5YR_B18102_with_ann!BW2","v":"Margin of Error!!Total:!!Female:!!65 to 74 years:!!No hearing difficulty"},{"$f":"[1]ACS_16_5YR_B18102_with_ann!BX2","v":"Estimate!!Total:!!Female:!!75 years and over:"},{"$f":"[1]ACS_16_5YR_B18102_with_ann!BY2","v":"Margin of Error!!Total:!!Female:!!75 years and over:"},{"$f":"[1]ACS_16_5YR_B18102_with_ann!BZ2","v":"Estimate!!Total:!!Female:!!75 years and over:!!With a hearing difficulty"},{"$f":"[1]ACS_16_5YR_B18102_with_ann!CA2","v":"Margin of Error!!Total:!!Female:!!75 years and over:!!With a hearing difficulty"},{"$f":"[1]ACS_16_5YR_B18102_with_ann!CB2","v":"Estimate!!Total:!!Female:!!75 years and over:!!No hearing difficulty"},{"$f":"[1]ACS_16_5YR_B18102_with_ann!CC2","v":"Margin of Error!!Total:!!Female:!!75 years and over:!!No hearing difficulty"}]
["06000US3300500820","0600000US3300512260","060",{"$f":"[1]ACS_16_5YR_B18102_with_ann!C44","v":"Alstead"},{"$f":"[1]ACS_16_5YR_B18102_with_ann!D44","v":1599},{"$f":"[1]ACS_16_5YR_B18102_with_ann!E44","v":169},{"$f":"[1]ACS_16_5YR_B18102_with_ann!F44","v":770},{"$f":"[1]ACS_16_5YR_B18102_with_ann!G44","v":116},{"$f":"[1]ACS_16_5YR_B18102_with_ann!H44","v":12},{"$f":"[1]ACS_16_5YR_B18102_with_ann!I44","v":11},{"$f":"[1]ACS_16_5YR_B18102_with_ann!J44","v":0},{"$f":"[1]ACS_16_5YR_B18102_with_ann!K44","v":12},{"$f":"[1]ACS_16_5YR_B18102_with_ann!L44","v":12},{"$f":"[1]ACS_16_5YR_B18102_with_ann!M44","v":11},{"$f":"[1]ACS_16_5YR_B18102_with_ann!N44","v":96},{"$f":"[1]ACS_16_5YR_B18102_with_ann!O44","v":55},{"$f":"[1]ACS_16_5YR_B18102_with_ann!P44","v":0},{"$f":"[1]ACS_16_5YR_B18102_with_ann!Q44","v":12},{"$f":"[1]ACS_16_5YR_B18102_with_ann!R44","v":96},{"$f":"[1]ACS_16_5YR_B18102_with_ann!S44","v":55},{"$f":"[1]ACS_16_5YR_B18102_with_ann!T44","v":147},{"$f":"[1]ACS_16_5YR_B18102_with_ann!U44","v":61},{"$f":"[1]ACS_16_5YR_B18102_with_ann!V44","v":0},{"$f":"[1]ACS_16_5YR_B18102_with_ann!W44","v":12},{"$f":"[1]ACS_16_5YR_B18102_with_ann!X44","v":147},{"$f":"[1]ACS_16_5YR_B18102_with_ann!Y44","v":61},{"$f":"[1]ACS_16_5YR_B18102_with_ann!Z44","v":357},{"$f":"[1]ACS_16_5YR_B18102_with_ann!AA44","v":76},{"$f":"[1]ACS_16_5YR_B18102_with_ann!AB44","v":7},{"$f":"[1]ACS_16_5YR_B18102_with_ann!AC44","v":9},{"$f":"[1]ACS_16_5YR_B18102_with_ann!AD44","v":350},{"$f":"[1]ACS_16_5YR_B18102_with_ann!AE44","v":77},{"$f":"[1]ACS_16_5YR_B18102_with_ann!AF44","v":106},{"$f":"[1]ACS_16_5YR_B18102_with_ann!AG44","v":42},{"$f":"[1]ACS_16_5YR_B18102_with_ann!AH44","v":24},{"$f":"[1]ACS_16_5YR_B18102_with_ann!AI44","v":20},{"$f":"[1]ACS_16_5YR_B18102_with_ann!AJ44","v":82},{"$f":"[1]ACS_16_5YR_B18102_with_ann!AK44","v":38},{"$f":"[1]ACS_16_5YR_B18102_with_ann!AL44","v":52},{"$f":"[1]ACS_16_5YR_B18102_with_ann!AM44","v":33},{"$f":"[1]ACS_16_5YR_B18102_with_ann!AN44","v":12},{"$f":"[1]ACS_16_5YR_B18102_with_ann!AO44","v":12},{"$f":"[1]ACS_16_5YR_B18102_with_ann!AP44","v":40},{"$f":"[1]ACS_16_5YR_B18102_with_ann!AQ44","v":30},{"$f":"[1]ACS_16_5YR_B18102_with_ann!AR44","v":829},{"$f":"[1]ACS_16_5YR_B18102_with_ann!AS44","v":95},{"$f":"[1]ACS_16_5YR_B18102_with_ann!AT44","v":20},{"$f":"[1]ACS_16_5YR_B18102_with_ann!AU44","v":19},{"$f":"[1]ACS_16_5YR_B18102_with_ann!AV44","v":0},{"$f":"[1]ACS_16_5YR_B18102_with_ann!AW44","v":12},{"$f":"[1]ACS_16_5YR_B18102_with_ann!AX44","v":20},{"$f":"[1]ACS_16_5YR_B18102_with_ann!AY44","v":19},{"$f":"[1]ACS_16_5YR_B18102_with_ann!AZ44","v":100},{"$f":"[1]ACS_16_5YR_B18102_with_ann!BA44","v":34},{"$f":"[1]ACS_16_5YR_B18102_with_ann!BB44","v":0},{"$f":"[1]ACS_16_5YR_B18102_with_ann!BC44","v":12},{"$f":"[1]ACS_16_5YR_B18102_with_ann!BD44","v":100},{"$f":"[1]ACS_16_5YR_B18102_with_ann!BE44","v":34},{"$f":"[1]ACS_16_5YR_B18102_with_ann!BF44","v":117},{"$f":"[1]ACS_16_5YR_B18102_with_ann!BG44","v":55},{"$f":"[1]ACS_16_5YR_B18102_with_ann!BH44","v":0},{"$f":"[1]ACS_16_5YR_B18102_with_ann!BI44","v":12},{"$f":"[1]ACS_16_5YR_B18102_with_ann!BJ44","v":117},{"$f":"[1]ACS_16_5YR_B18102_with_ann!BK44","v":55},{"$f":"[1]ACS_16_5YR_B18102_with_ann!BL44","v":329},{"$f":"[1]ACS_16_5YR_B18102_with_ann!BM44","v":67},{"$f":"[1]ACS_16_5YR_B18102_with_ann!BN44","v":14},{"$f":"[1]ACS_16_5YR_B18102_with_ann!BO44","v":13},{"$f":"[1]ACS_16_5YR_B18102_with_ann!BP44","v":315},{"$f":"[1]ACS_16_5YR_B18102_with_ann!BQ44","v":69},{"$f":"[1]ACS_16_5YR_B18102_with_ann!BR44","v":173},{"$f":"[1]ACS_16_5YR_B18102_with_ann!BS44","v":71},{"$f":"[1]ACS_16_5YR_B18102_with_ann!BT44","v":5},{"$f":"[1]ACS_16_5YR_B18102_with_ann!BU44","v":7},{"$f":"[1]ACS_16_5YR_B18102_with_ann!BV44","v":168},{"$f":"[1]ACS_16_5YR_B18102_with_ann!BW44","v":71},{"$f":"[1]ACS_16_5YR_B18102_with_ann!BX44","v":90},{"$f":"[1]ACS_16_5YR_B18102_with_ann!BY44","v":47},{"$f":"[1]ACS_16_5YR_B18102_with_ann!BZ44","v":0},{"$f":"[1]ACS_16_5YR_B18102_with_ann!CA44","v":12},{"$f":"[1]ACS_16_5YR_B18102_with_ann!CB44","v":90},{"$f":"[1]ACS_16_5YR_B18102_with_ann!CC44","v":47}]
["06000US3300512260","0600000US3300519140","060",{"$f":"[1]ACS_16_5YR_B18102_with_ann!C45","v":"Chesterfield"},{"$f":"[1]ACS_16_5YR_B18102_with_ann!D45","v":3577},{"$f":"[1]ACS_16_5YR_B18102_with_ann!E45","v":15},{"$f":"[1]ACS_16_5YR_B18102_with_ann!F45","v":2000},{"$f":"[1]ACS_16_5YR_B18102_with_ann!G45","v":139},{"$f":"[1]ACS_16_5YR_B18102_with_ann!H45","v":121},{"$f":"[1]ACS_16_5YR_B18102_with_ann!I45","v":74},{"$f":"[1]ACS_16_5YR_B18102_with_ann!J45","v":0},{"$f":"[1]ACS_16_5YR_B18102_with_ann!K45","v":12},{"$f":"[1]ACS_16_5YR_B18102_with_ann!L45","v":121},{"$f":"[1]ACS_16_5YR_B18102_with_ann!M45","v":74},{"$f":"[1]ACS_16_5YR_B18102_with_ann!N45","v":452},{"$f":"[1]ACS_16_5YR_B18102_with_ann!O45","v":132},{"$f":"[1]ACS_16_5YR_B18102_with_ann!P45","v":0},{"$f":"[1]ACS_16_5YR_B18102_with_ann!Q45","v":12},{"$f":"[1]ACS_16_5YR_B18102_with_ann!R45","v":452},{"$f":"[1]ACS_16_5YR_B18102_with_ann!S45","v":132},{"$f":"[1]ACS_16_5YR_B18102_with_ann!T45","v":366},{"$f":"[1]ACS_16_5YR_B18102_with_ann!U45","v":146},{"$f":"[1]ACS_16_5YR_B18102_with_ann!V45","v":0},{"$f":"[1]ACS_16_5YR_B18102_with_ann!W45","v":12},{"$f":"[1]ACS_16_5YR_B18102_with_ann!X45","v":366},{"$f":"[1]ACS_16_5YR_B18102_with_ann!Y45","v":146},{"$f":"[1]ACS_16_5YR_B18102_with_ann!Z45","v":537},{"$f":"[1]ACS_16_5YR_B18102_with_ann!AA45","v":175},{"$f":"[1]ACS_16_5YR_B18102_with_ann!AB45","v":0},{"$f":"[1]ACS_16_5YR_B18102_with_ann!AC45","v":12},{"$f":"[1]ACS_16_5YR_B18102_with_ann!AD45","v":537},{"$f":"[1]ACS_16_5YR_B18102_with_ann!AE45","v":175},{"$f":"[1]ACS_16_5YR_B18102_with_ann!AF45","v":367},{"$f":"[1]ACS_16_5YR_B18102_with_ann!AG45","v":125},{"$f":"[1]ACS_16_5YR_B18102_with_ann!AH45","v":53},{"$f":"[1]ACS_16_5YR_B18102_with_ann!AI45","v":80},{"$f":"[1]ACS_16_5YR_B18102_with_ann!AJ45","v":314},{"$f":"[1]ACS_16_5YR_B18102_with_ann!AK45","v":125},{"$f":"[1]ACS_16_5YR_B18102_with_ann!AL45","v":157},{"$f":"[1]ACS_16_5YR_B18102_with_ann!AM45","v":80},{"$f":"[1]ACS_16_5YR_B18102_with_ann!AN45","v":41},{"$f":"[1]ACS_16_5YR_B18102_with_ann!AO45","v":37},{"$f":"[1]ACS_16_5YR_B18102_with_ann!AP45","v":116},{"$f":"[1]ACS_16_5YR_B18102_with_ann!AQ45","v":79},{"$f":"[1]ACS_16_5YR_B18102_with_ann!AR45","v":1577},{"$f":"[1]ACS_16_5YR_B18102_with_ann!AS45","v":140},{"$f":"[1]ACS_16_5YR_B18102_with_ann!AT45","v":20},{"$f":"[1]ACS_16_5YR_B18102_with_ann!AU45","v":30},{"$f":"[1]ACS_16_5YR_B18102_with_ann!AV45","v":0},{"$f":"[1]ACS_16_5YR_B18102_with_ann!AW45","v":12},{"$f":"[1]ACS_16_5YR_B18102_with_ann!AX45","v":20},{"$f":"[1]ACS_16_5YR_B18102_with_ann!AY45","v":30},{"$f":"[1]ACS_16_5YR_B18102_with_ann!AZ45","v":144},{"$f":"[1]ACS_16_5YR_B18102_with_ann!BA45","v":80},{"$f":"[1]ACS_16_5YR_B18102_with_ann!BB45","v":0},{"$f":"[1]ACS_16_5YR_B18102_with_ann!BC45","v":12},{"$f":"[1]ACS_16_5YR_B18102_with_ann!BD45","v":144},{"$f":"[1]ACS_16_5YR_B18102_with_ann!BE45","v":80},{"$f":"[1]ACS_16_5YR_B18102_with_ann!BF45","v":323},{"$f":"[1]ACS_16_5YR_B18102_with_ann!BG45","v":125},{"$f":"[1]ACS_16_5YR_B18102_with_ann!BH45","v":0},{"$f":"[1]ACS_16_5YR_B18102_with_ann!BI45","v":12},{"$f":"[1]ACS_16_5YR_B18102_with_ann!BJ45","v":323},{"$f":"[1]ACS_16_5YR_B18102_with_ann!BK45","v":125},{"$f":"[1]ACS_16_5YR_B18102_with_ann!BL45","v":729},{"$f":"[1]ACS_16_5YR_B18102_with_ann!BM45","v":167},{"$f":"[1]ACS_16_5YR_B18102_with_ann!BN45","v":0},{"$f":"[1]ACS_16_5YR_B18102_with_ann!BO45","v":12},{"$f":"[1]ACS_16_5YR_B18102_with_ann!BP45","v":729},{"$f":"[1]ACS_16_5YR_B18102_with_ann!BQ45","v":167},{"$f":"[1]ACS_16_5YR_B18102_with_ann!BR45","v":244},{"$f":"[1]ACS_16_5YR_B18102_with_ann!BS45","v":110},{"$f":"[1]ACS_16_5YR_B18102_with_ann!BT45","v":0},{"$f":"[1]ACS_16_5YR_B18102_with_ann!BU45","v":12},{"$f":"[1]ACS_16_5YR_B18102_with_ann!BV45","v":244},{"$f":"[1]ACS_16_5YR_B18102_with_ann!BW45","v":110},{"$f":"[1]ACS_16_5YR_B18102_with_ann!BX45","v":117},{"$f":"[1]ACS_16_5YR_B18102_with_ann!BY45","v":76},{"$f":"[1]ACS_16_5YR_B18102_with_ann!BZ45","v":10},{"$f":"[1]ACS_16_5YR_B18102_with_ann!CA45","v":16},{"$f":"[1]ACS_16_5YR_B18102_with_ann!CB45","v":107},{"$f":"[1]ACS_16_5YR_B18102_with_ann!CC45","v":73}]
["06000US3300519140","0600000US3300526500","060",{"$f":"[1]ACS_16_5YR_B18102_with_ann!C46","v":"Dublin"},{"$f":"[1]ACS_16_5YR_B18102_with_ann!D46","v":1711},{"$f":"[1]ACS_16_5YR_B18102_with_ann!E46","v":216},{"$f":"[1]ACS_16_5YR_B18102_with_ann!F46","v":800},{"$f":"[1]ACS_16_5YR_B18102_with_ann!G46","v":118},{"$f":"[1]ACS_16_5YR_B18102_with_ann!H46","v":24},{"$f":"[1]ACS_16_5YR_B18102_with_ann!I46","v":19},{"$f":"[1]ACS_16_5YR_B18102_with_ann!J46","v":0},{"$f":"[1]ACS_16_5YR_B18102_with_ann!K46","v":12},{"$f":"[1]ACS_16_5YR_B18102_with_ann!L46","v":24},{"$f":"[1]ACS_16_5YR_B18102_with_ann!M46","v":19},{"$f":"[1]ACS_16_5YR_B18102_with_ann!N46","v":97},{"$f":"[1]ACS_16_5YR_B18102_with_ann!O46","v":40},{"$f":"[1]ACS_16_5YR_B18102_with_ann!P46","v":0},{"$f":"[1]ACS_16_5YR_B18102_with_ann!Q46","v":12},{"$f":"[1]ACS_16_5YR_B18102_with_ann!R46","v":97},{"$f":"[1]ACS_16_5YR_B18102_with_ann!S46","v":40},{"$f":"[1]ACS_16_5YR_B18102_with_ann!T46","v":136},{"$f":"[1]ACS_16_5YR_B18102_with_ann!U46","v":55},{"$f":"[1]ACS_16_5YR_B18102_with_ann!V46","v":0},{"$f":"[1]ACS_16_5YR_B18102_with_ann!W46","v":12},{"$f":"[1]ACS_16_5YR_B18102_with_ann!X46","v":136},{"$f":"[1]ACS_16_5YR_B18102_with_ann!Y46","v":55},{"$f":"[1]ACS_16_5YR_B18102_with_ann!Z46","v":338},{"$f":"[1]ACS_16_5YR_B18102_with_ann!AA46","v":83},{"$f":"[1]ACS_16_5YR_B18102_with_ann!AB46","v":8},{"$f":"[1]ACS_16_5YR_B18102_with_ann!AC46","v":7},{"$f":"[1]ACS_16_5YR_B18102_with_ann!AD46","v":330},{"$f":"[1]ACS_16_5YR_B18102_with_ann!AE46","v":82},{"$f":"[1]ACS_16_5YR_B18102_with_ann!AF46","v":153},{"$f":"[1]ACS_16_5YR_B18102_with_ann!AG46","v":64},{"$f":"[1]ACS_16_5YR_B18102_with_ann!AH46","v":16},{"$f":"[1]ACS_16_5YR_B18102_with_ann!AI46","v":17},{"$f":"[1]ACS_16_5YR_B18102_with_ann!AJ46","v":137},{"$f":"[1]ACS_16_5YR_B18102_with_ann!AK46","v":63},{"$f":"[1]ACS_16_5YR_B18102_with_ann!AL46","v":52},{"$f":"[1]ACS_16_5YR_B18102_with_ann!AM46","v":26},{"$f":"[1]ACS_16_5YR_B18102_with_ann!AN46","v":0},{"$f":"[1]ACS_16_5YR_B18102_with_ann!AO46","v":12},{"$f":"[1]ACS_16_5YR_B18102_with_ann!AP46","v":52},{"$f":"[1]ACS_16_5YR_B18102_with_ann!AQ46","v":26},{"$f":"[1]ACS_16_5YR_B18102_with_ann!AR46","v":911},{"$f":"[1]ACS_16_5YR_B18102_with_ann!AS46","v":135},{"$f":"[1]ACS_16_5YR_B18102_with_ann!AT46","v":57},{"$f":"[1]ACS_16_5YR_B18102_with_ann!AU46","v":32},{"$f":"[1]ACS_16_5YR_B18102_with_ann!AV46","v":0},{"$f":"[1]ACS_16_5YR_B18102_with_ann!AW46","v":12},{"$f":"[1]ACS_16_5YR_B18102_with_ann!AX46","v":57},{"$f":"[1]ACS_16_5YR_B18102_with_ann!AY46","v":32},{"$f":"[1]ACS_16_5YR_B18102_with_ann!AZ46","v":149},{"$f":"[1]ACS_16_5YR_B18102_with_ann!BA46","v":44},{"$f":"[1]ACS_16_5YR_B18102_with_ann!BB46","v":0},{"$f":"[1]ACS_16_5YR_B18102_with_ann!BC46","v":12},{"$f":"[1]ACS_16_5YR_B18102_with_ann!BD46","v":149},{"$f":"[1]ACS_16_5YR_B18102_with_ann!BE46","v":44},{"$f":"[1]ACS_16_5YR_B18102_with_ann!BF46","v":63},{"$f":"[1]ACS_16_5YR_B18102_with_ann!BG46","v":26},{"$f":"[1]ACS_16_5YR_B18102_with_ann!BH46","v":0},{"$f":"[1]ACS_16_5YR_B18102_with_ann!BI46","v":12},{"$f":"[1]ACS_16_5YR_B18102_with_ann!BJ46","v":63},{"$f":"[1]ACS_16_5YR_B18102_with_ann!BK46","v":26},{"$f":"[1]ACS_16_5YR_B18102_with_ann!BL46","v":404},{"$f":"[1]ACS_16_5YR_B18102_with_ann!BM46","v":97},{"$f":"[1]ACS_16_5YR_B18102_with_ann!BN46","v":0},{"$f":"[1]ACS_16_5YR_B18102_with_ann!BO46","v":12},{"$f":"[1]ACS_16_5YR_B18102_with_ann!BP46","v":404},{"$f":"[1]ACS_16_5YR_B18102_with_ann!BQ46","v":97},{"$f":"[1]ACS_16_5YR_B18102_with_ann!BR46","v":162},{"$f":"[1]ACS_16_5YR_B18102_with_ann!BS46","v":54},{"$f":"[1]ACS_16_5YR_B18102_with_ann!BT46","v":3},{"$f":"[1]ACS_16_5YR_B18102_with_ann!BU46","v":4},{"$f":"[1]ACS_16_5YR_B18102_with_ann!BV46","v":159},{"$f":"[1]ACS_16_5YR_B18102_with_ann!BW46","v":55},{"$f":"[1]ACS_16_5YR_B18102_with_ann!BX46","v":76},{"$f":"[1]ACS_16_5YR_B18102_with_ann!BY46","v":51},{"$f":"[1]ACS_16_5YR_B18102_with_ann!BZ46","v":6},{"$f":"[1]ACS_16_5YR_B18102_with_ann!CA46","v":6},{"$f":"[1]ACS_16_5YR_B18102_with_ann!CB46","v":70},{"$f":"[1]ACS_16_5YR_B18102_with_ann!CC46","v":50}]
["06000US3300526500","0600000US3300529220","060",{"$f":"[1]ACS_16_5YR_B18102_with_ann!C47","v":"Fitzwilliam"},{"$f":"[1]ACS_16_5YR_B18102_with_ann!D47","v":2287},{"$f":"[1]ACS_16_5YR_B18102_with_ann!E47","v":368},{"$f":"[1]ACS_16_5YR_B18102_with_ann!F47","v":1203},{"$f":"[1]ACS_16_5YR_B18102_with_ann!G47","v":216},{"$f":"[1]ACS_16_5YR_B18102_with_ann!H47","v":33},{"$f":"[1]ACS_16_5YR_B18102_with_ann!I47","v":23},{"$f":"[1]ACS_16_5YR_B18102_with_ann!J47","v":0},{"$f":"[1]ACS_16_5YR_B18102_with_ann!K47","v":12},{"$f":"[1]ACS_16_5YR_B18102_with_ann!L47","v":33},{"$f":"[1]ACS_16_5YR_B18102_with_ann!M47","v":23},{"$f":"[1]ACS_16_5YR_B18102_with_ann!N47","v":101},{"$f":"[1]ACS_16_5YR_B18102_with_ann!O47","v":36},{"$f":"[1]ACS_16_5YR_B18102_with_ann!P47","v":0},{"$f":"[1]ACS_16_5YR_B18102_with_ann!Q47","v":12},{"$f":"[1]ACS_16_5YR_B18102_with_ann!R47","v":101},{"$f":"[1]ACS_16_5YR_B18102_with_ann!S47","v":36},{"$f":"[1]ACS_16_5YR_B18102_with_ann!T47","v":226},{"$f":"[1]ACS_16_5YR_B18102_with_ann!U47","v":92},{"$f":"[1]ACS_16_5YR_B18102_with_ann!V47","v":0},{"$f":"[1]ACS_16_5YR_B18102_with_ann!W47","v":12},{"$f":"[1]ACS_16_5YR_B18102_with_ann!X47","v":226},{"$f":"[1]ACS_16_5YR_B18102_with_ann!Y47","v":92},{"$f":"[1]ACS_16_5YR_B18102_with_ann!Z47","v":605},{"$f":"[1]ACS_16_5YR_B18102_with_ann!AA47","v":177},{"$f":"[1]ACS_16_5YR_B18102_with_ann!AB47","v":56},{"$f":"[1]ACS_16_5YR_B18102_with_ann!AC47","v":40},{"$f":"[1]ACS_16_5YR_B18102_with_ann!AD47","v":549},{"$f":"[1]ACS_16_5YR_B18102_with_ann!AE47","v":176},{"$f":"[1]ACS_16_5YR_B18102_with_ann!AF47","v":195},{"$f":"[1]ACS_16_5YR_B18102_with_ann!AG47","v":55},{"$f":"[1]ACS_16_5YR_B18102_with_ann!AH47","v":39},{"$f":"[1]ACS_16_5YR_B18102_with_ann!AI47","v":33},{"$f":"[1]ACS_16_5YR_B18102_with_ann!AJ47","v":156},{"$f":"[1]ACS_16_5YR_B18102_with_ann!AK47","v":43},{"$f":"[1]ACS_16_5YR_B18102_with_ann!AL47","v":43},{"$f":"[1]ACS_16_5YR_B18102_with_ann!AM47","v":19},{"$f":"[1]ACS_16_5YR_B18102_with_ann!AN47","v":14},{"$f":"[1]ACS_16_5YR_B18102_with_ann!AO47","v":11},{"$f":"[1]ACS_16_5YR_B18102_with_ann!AP47","v":29},{"$f":"[1]ACS_16_5YR_B18102_with_ann!AQ47","v":16},{"$f":"[1]ACS_16_5YR_B18102_with_ann!AR47","v":1084},{"$f":"[1]ACS_16_5YR_B18102_with_ann!AS47","v":188},{"$f":"[1]ACS_16_5YR_B18102_with_ann!AT47","v":45},{"$f":"[1]ACS_16_5YR_B18102_with_ann!AU47","v":46},{"$f":"[1]ACS_16_5YR_B18102_with_ann!AV47","v":0},{"$f":"[1]ACS_16_5YR_B18102_with_ann!AW47","v":12},{"$f":"[1]ACS_16_5YR_B18102_with_ann!AX47","v":45},{"$f":"[1]ACS_16_5YR_B18102_with_ann!AY47","v":46},{"$f":"[1]ACS_16_5YR_B18102_with_ann!AZ47","v":106},{"$f":"[1]ACS_16_5YR_B18102_with_ann!BA47","v":53},{"$f":"[1]ACS_16_5YR_B18102_with_ann!BB47","v":0},{"$f":"[1]ACS_16_5YR_B18102_with_ann!BC47","v":12},{"$f":"[1]ACS_16_5YR_B18102_with_ann!BD47","v":106},{"$f":"[1]ACS_16_5YR_B18102_with_ann!BE47","v":53},{"$f":"[1]ACS_16_5YR_B18102_with_ann!BF47","v":151},{"$f":"[1]ACS_16_5YR_B18102_with_ann!BG47","v":78},{"$f":"[1]ACS_16_5YR_B18102_with_ann!BH47","v":0},{"$f":"[1]ACS_16_5YR_B18102_with_ann!BI47","v":12},{"$f":"[1]ACS_16_5YR_B18102_with_ann!BJ47","v":151},{"$f":"[1]ACS_16_5YR_B18102_with_ann!BK47","v":78},{"$f":"[1]ACS_16_5YR_B18102_with_ann!BL47","v":484},{"$f":"[1]ACS_16_5YR_B18102_with_ann!BM47","v":84},{"$f":"[1]ACS_16_5YR_B18102_with_ann!BN47","v":4},{"$f":"[1]ACS_16_5YR_B18102_with_ann!BO47","v":8},{"$f":"[1]ACS_16_5YR_B18102_with_ann!BP47","v":480},{"$f":"[1]ACS_16_5YR_B18102_with_ann!BQ47","v":86},{"$f":"[1]ACS_16_5YR_B18102_with_ann!BR47","v":251},{"$f":"[1]ACS_16_5YR_B18102_with_ann!BS47","v":106},{"$f":"[1]ACS_16_5YR_B18102_with_ann!BT47","v":4},{"$f":"[1]ACS_16_5YR_B18102_with_ann!BU47","v":6},{"$f":"[1]ACS_16_5YR_B18102_with_ann!BV47","v":247},{"$f":"[1]ACS_16_5YR_B18102_with_ann!BW47","v":105},{"$f":"[1]ACS_16_5YR_B18102_with_ann!BX47","v":47},{"$f":"[1]ACS_16_5YR_B18102_with_ann!BY47","v":27},{"$f":"[1]ACS_16_5YR_B18102_with_ann!BZ47","v":4},{"$f":"[1]ACS_16_5YR_B18102_with_ann!CA47","v":7},{"$f":"[1]ACS_16_5YR_B18102_with_ann!CB47","v":43},{"$f":"[1]ACS_16_5YR_B18102_with_ann!CC47","v":26}]
["06000US3300529220","0600000US3300534420","060",{"$f":"[1]ACS_16_5YR_B18102_with_ann!C48","v":"Gilsum"},{"$f":"[1]ACS_16_5YR_B18102_with_ann!D48","v":871},{"$f":"[1]ACS_16_5YR_B18102_with_ann!E48","v":144},{"$f":"[1]ACS_16_5YR_B18102_with_ann!F48","v":452},{"$f":"[1]ACS_16_5YR_B18102_with_ann!G48","v":88},{"$f":"[1]ACS_16_5YR_B18102_with_ann!H48","v":33},{"$f":"[1]ACS_16_5YR_B18102_with_ann!I48","v":23},{"$f":"[1]ACS_16_5YR_B18102_with_ann!J48","v":0},{"$f":"[1]ACS_16_5YR_B18102_with_ann!K48","v":12},{"$f":"[1]ACS_16_5YR_B18102_with_ann!L48","v":33},{"$f":"[1]ACS_16_5YR_B18102_with_ann!M48","v":23},{"$f":"[1]ACS_16_5YR_B18102_with_ann!N48","v":52},{"$f":"[1]ACS_16_5YR_B18102_with_ann!O48","v":31},{"$f":"[1]ACS_16_5YR_B18102_with_ann!P48","v":0},{"$f":"[1]ACS_16_5YR_B18102_with_ann!Q48","v":12},{"$f":"[1]ACS_16_5YR_B18102_with_ann!R48","v":52},{"$f":"[1]ACS_16_5YR_B18102_with_ann!S48","v":31},{"$f":"[1]ACS_16_5YR_B18102_with_ann!T48","v":119},{"$f":"[1]ACS_16_5YR_B18102_with_ann!U48","v":56},{"$f":"[1]ACS_16_5YR_B18102_with_ann!V48","v":0},{"$f":"[1]ACS_16_5YR_B18102_with_ann!W48","v":12},{"$f":"[1]ACS_16_5YR_B18102_with_ann!X48","v":119},{"$f":"[1]ACS_16_5YR_B18102_with_ann!Y48","v":56},{"$f":"[1]ACS_16_5YR_B18102_with_ann!Z48","v":158},{"$f":"[1]ACS_16_5YR_B18102_with_ann!AA48","v":38},{"$f":"[1]ACS_16_5YR_B18102_with_ann!AB48","v":12},{"$f":"[1]ACS_16_5YR_B18102_with_ann!AC48","v":12},{"$f":"[1]ACS_16_5YR_B18102_with_ann!AD48","v":146},{"$f":"[1]ACS_16_5YR_B18102_with_ann!AE48","v":37},{"$f":"[1]ACS_16_5YR_B18102_with_ann!AF48","v":76},{"$f":"[1]ACS_16_5YR_B18102_with_ann!AG48","v":29},{"$f":"[1]ACS_16_5YR_B18102_with_ann!AH48","v":5},{"$f":"[1]ACS_16_5YR_B18102_with_ann!AI48","v":5},{"$f":"[1]ACS_16_5YR_B18102_with_ann!AJ48","v":71},{"$f":"[1]ACS_16_5YR_B18102_with_ann!AK48","v":28},{"$f":"[1]ACS_16_5YR_B18102_with_ann!AL48","v":14},{"$f":"[1]ACS_16_5YR_B18102_with_ann!AM48","v":10},{"$f":"[1]ACS_16_5YR_B18102_with_ann!AN48","v":5},{"$f":"[1]ACS_16_5YR_B18102_with_ann!AO48","v":5},{"$f":"[1]ACS_16_5YR_B18102_with_ann!AP48","v":9},{"$f":"[1]ACS_16_5YR_B18102_with_ann!AQ48","v":9},{"$f":"[1]ACS_16_5YR_B18102_with_ann!AR48","v":419},{"$f":"[1]ACS_16_5YR_B18102_with_ann!AS48","v":74},{"$f":"[1]ACS_16_5YR_B18102_with_ann!AT48","v":26},{"$f":"[1]ACS_16_5YR_B18102_with_ann!AU48","v":17},{"$f":"[1]ACS_16_5YR_B18102_with_ann!AV48","v":0},{"$f":"[1]ACS_16_5YR_B18102_with_ann!AW48","v":12},{"$f":"[1]ACS_16_5YR_B18102_with_ann!AX48","v":26},{"$f":"[1]ACS_16_5YR_B18102_with_ann!AY48","v":17},{"$f":"[1]ACS_16_5YR_B18102_with_ann!AZ48","v":38},{"$f":"[1]ACS_16_5YR_B18102_with_ann!BA48","v":29},{"$f":"[1]ACS_16_5YR_B18102_with_ann!BB48","v":0},{"$f":"[1]ACS_16_5YR_B18102_with_ann!BC48","v":12},{"$f":"[1]ACS_16_5YR_B18102_with_ann!BD48","v":38},{"$f":"[1]ACS_16_5YR_B18102_with_ann!BE48","v":29},{"$f":"[1]ACS_16_5YR_B18102_with_ann!BF48","v":95},{"$f":"[1]ACS_16_5YR_B18102_with_ann!BG48","v":35},{"$f":"[1]ACS_16_5YR_B18102_with_ann!BH48","v":0},{"$f":"[1]ACS_16_5YR_B18102_with_ann!BI48","v":12},{"$f":"[1]ACS_16_5YR_B18102_with_ann!BJ48","v":95},{"$f":"[1]ACS_16_5YR_B18102_with_ann!BK48","v":35},{"$f":"[1]ACS_16_5YR_B18102_with_ann!BL48","v":170},{"$f":"[1]ACS_16_5YR_B18102_with_ann!BM48","v":44},{"$f":"[1]ACS_16_5YR_B18102_with_ann!BN48","v":2},{"$f":"[1]ACS_16_5YR_B18102_with_ann!BO48","v":3},{"$f":"[1]ACS_16_5YR_B18102_with_ann!BP48","v":168},{"$f":"[1]ACS_16_5YR_B18102_with_ann!BQ48","v":43},{"$f":"[1]ACS_16_5YR_B18102_with_ann!BR48","v":58},{"$f":"[1]ACS_16_5YR_B18102_with_ann!BS48","v":25},{"$f":"[1]ACS_16_5YR_B18102_with_ann!BT48","v":0},{"$f":"[1]ACS_16_5YR_B18102_with_ann!BU48","v":12},{"$f":"[1]ACS_16_5YR_B18102_with_ann!BV48","v":58},{"$f":"[1]ACS_16_5YR_B18102_with_ann!BW48","v":25},{"$f":"[1]ACS_16_5YR_B18102_with_ann!BX48","v":32},{"$f":"[1]ACS_16_5YR_B18102_with_ann!BY48","v":14},{"$f":"[1]ACS_16_5YR_B18102_with_ann!BZ48","v":4},{"$f":"[1]ACS_16_5YR_B18102_with_ann!CA48","v":6},{"$f":"[1]ACS_16_5YR_B18102_with_ann!CB48","v":28},{"$f":"[1]ACS_16_5YR_B18102_with_ann!CC48","v":13}]
["06000US3300534420","0600000US3300536660","060",{"$f":"[1]ACS_16_5YR_B18102_with_ann!C49","v":"Harrisville"},{"$f":"[1]ACS_16_5YR_B18102_with_ann!D49","v":977},{"$f":"[1]ACS_16_5YR_B18102_with_ann!E49","v":197},{"$f":"[1]ACS_16_5YR_B18102_with_ann!F49","v":461},{"$f":"[1]ACS_16_5YR_B18102_with_ann!G49","v":95},{"$f":"[1]ACS_16_5YR_B18102_with_ann!H49","v":42},{"$f":"[1]ACS_16_5YR_B18102_with_ann!I49","v":33},{"$f":"[1]ACS_16_5YR_B18102_with_ann!J49","v":0},{"$f":"[1]ACS_16_5YR_B18102_with_ann!K49","v":12},{"$f":"[1]ACS_16_5YR_B18102_with_ann!L49","v":42},{"$f":"[1]ACS_16_5YR_B18102_with_ann!M49","v":33},{"$f":"[1]ACS_16_5YR_B18102_with_ann!N49","v":47},{"$f":"[1]ACS_16_5YR_B18102_with_ann!O49","v":26},{"$f":"[1]ACS_16_5YR_B18102_with_ann!P49","v":0},{"$f":"[1]ACS_16_5YR_B18102_with_ann!Q49","v":12},{"$f":"[1]ACS_16_5YR_B18102_with_ann!R49","v":47},{"$f":"[1]ACS_16_5YR_B18102_with_ann!S49","v":26},{"$f":"[1]ACS_16_5YR_B18102_with_ann!T49","v":38},{"$f":"[1]ACS_16_5YR_B18102_with_ann!U49","v":20},{"$f":"[1]ACS_16_5YR_B18102_with_ann!V49","v":0},{"$f":"[1]ACS_16_5YR_B18102_with_ann!W49","v":12},{"$f":"[1]ACS_16_5YR_B18102_with_ann!X49","v":38},{"$f":"[1]ACS_16_5YR_B18102_with_ann!Y49","v":20},{"$f":"[1]ACS_16_5YR_B18102_with_ann!Z49","v":190},{"$f":"[1]ACS_16_5YR_B18102_with_ann!AA49","v":52},{"$f":"[1]ACS_16_5YR_B18102_with_ann!AB49","v":1},{"$f":"[1]ACS_16_5YR_B18102_with_ann!AC49","v":2},{"$f":"[1]ACS_16_5YR_B18102_with_ann!AD49","v":189},{"$f":"[1]ACS_16_5YR_B18102_with_ann!AE49","v":52},{"$f":"[1]ACS_16_5YR_B18102_with_ann!AF49","v":91},{"$f":"[1]ACS_16_5YR_B18102_with_ann!AG49","v":28},{"$f":"[1]ACS_16_5YR_B18102_with_ann!AH49","v":7},{"$f":"[1]ACS_16_5YR_B18102_with_ann!AI49","v":8},{"$f":"[1]ACS_16_5YR_B18102_with_ann!AJ49","v":84},{"$f":"[1]ACS_16_5YR_B18102_with_ann!AK49","v":28},{"$f":"[1]ACS_16_5YR_B18102_with_ann!AL49","v":53},{"$f":"[1]ACS_16_5YR_B18102_with_ann!AM49","v":20},{"$f":"[1]ACS_16_5YR_B18102_with_ann!AN49","v":17},{"$f":"[1]ACS_16_5YR_B18102_with_ann!AO49","v":14},{"$f":"[1]ACS_16_5YR_B18102_with_ann!AP49","v":36},{"$f":"[1]ACS_16_5YR_B18102_with_ann!AQ49","v":16},{"$f":"[1]ACS_16_5YR_B18102_with_ann!AR49","v":516},{"$f":"[1]ACS_16_5YR_B18102_with_ann!AS49","v":110},{"$f":"[1]ACS_16_5YR_B18102_with_ann!AT49","v":8},{"$f":"[1]ACS_16_5YR_B18102_with_ann!AU49","v":8},{"$f":"[1]ACS_16_5YR_B18102_with_ann!AV49","v":0},{"$f":"[1]ACS_16_5YR_B18102_with_ann!AW49","v":12},{"$f":"[1]ACS_16_5YR_B18102_with_ann!AX49","v":8},{"$f":"[1]ACS_16_5YR_B18102_with_ann!AY49","v":8},{"$f":"[1]ACS_16_5YR_B18102_with_ann!AZ49","v":52},{"$f":"[1]ACS_16_5YR_B18102_with_ann!BA49","v":39},{"$f":"[1]ACS_16_5YR_B18102_with_ann!BB49","v":0},{"$f":"[1]ACS_16_5YR_B18102_with_ann!BC49","v":12},{"$f":"[1]ACS_16_5YR_B18102_with_ann!BD49","v":52},{"$f":"[1]ACS_16_5YR_B18102_with_ann!BE49","v":39},{"$f":"[1]ACS_16_5YR_B18102_with_ann!BF49","v":89},{"$f":"[1]ACS_16_5YR_B18102_with_ann!BG49","v":40},{"$f":"[1]ACS_16_5YR_B18102_with_ann!BH49","v":0},{"$f":"[1]ACS_16_5YR_B18102_with_ann!BI49","v":12},{"$f":"[1]ACS_16_5YR_B18102_with_ann!BJ49","v":89},{"$f":"[1]ACS_16_5YR_B18102_with_ann!BK49","v":40},{"$f":"[1]ACS_16_5YR_B18102_with_ann!BL49","v":220},{"$f":"[1]ACS_16_5YR_B18102_with_ann!BM49","v":61},{"$f":"[1]ACS_16_5YR_B18102_with_ann!BN49","v":6},{"$f":"[1]ACS_16_5YR_B18102_with_ann!BO49","v":6},{"$f":"[1]ACS_16_5YR_B18102_with_ann!BP49","v":214},{"$f":"[1]ACS_16_5YR_B18102_with_ann!BQ49","v":60},{"$f":"[1]ACS_16_5YR_B18102_with_ann!BR49","v":107},{"$f":"[1]ACS_16_5YR_B18102_with_ann!BS49","v":30},{"$f":"[1]ACS_16_5YR_B18102_with_ann!BT49","v":2},{"$f":"[1]ACS_16_5YR_B18102_with_ann!BU49","v":5},{"$f":"[1]ACS_16_5YR_B18102_with_ann!BV49","v":105},{"$f":"[1]ACS_16_5YR_B18102_with_ann!BW49","v":30},{"$f":"[1]ACS_16_5YR_B18102_with_ann!BX49","v":40},{"$f":"[1]ACS_16_5YR_B18102_with_ann!BY49","v":22},{"$f":"[1]ACS_16_5YR_B18102_with_ann!BZ49","v":3},{"$f":"[1]ACS_16_5YR_B18102_with_ann!CA49","v":4},{"$f":"[1]ACS_16_5YR_B18102_with_ann!CB49","v":37},{"$f":"[1]ACS_16_5YR_B18102_with_ann!CC49","v":22}]
["06000US3300536660","0600000US3300538500","060",{"$f":"[1]ACS_16_5YR_B18102_with_ann!C50","v":"Hinsdale"},{"$f":"[1]ACS_16_5YR_B18102_with_ann!D50","v":3965},{"$f":"[1]ACS_16_5YR_B18102_with_ann!E50","v":16},{"$f":"[1]ACS_16_5YR_B18102_with_ann!F50","v":2090},{"$f":"[1]ACS_16_5YR_B18102_with_ann!G50","v":205},{"$f":"[1]ACS_16_5YR_B18102_with_ann!H50","v":26},{"$f":"[1]ACS_16_5YR_B18102_with_ann!I50","v":38},{"$f":"[1]ACS_16_5YR_B18102_with_ann!J50","v":0},{"$f":"[1]ACS_16_5YR_B18102_with_ann!K50","v":12},{"$f":"[1]ACS_16_5YR_B18102_with_ann!L50","v":26},{"$f":"[1]ACS_16_5YR_B18102_with_ann!M50","v":38},{"$f":"[1]ACS_16_5YR_B18102_with_ann!N50","v":277},{"$f":"[1]ACS_16_5YR_B18102_with_ann!O50","v":125},{"$f":"[1]ACS_16_5YR_B18102_with_ann!P50","v":0},{"$f":"[1]ACS_16_5YR_B18102_with_ann!Q50","v":12},{"$f":"[1]ACS_16_5YR_B18102_with_ann!R50","v":277},{"$f":"[1]ACS_16_5YR_B18102_with_ann!S50","v":125},{"$f":"[1]ACS_16_5YR_B18102_with_ann!T50","v":294},{"$f":"[1]ACS_16_5YR_B18102_with_ann!U50","v":122},{"$f":"[1]ACS_16_5YR_B18102_with_ann!V50","v":0},{"$f":"[1]ACS_16_5YR_B18102_with_ann!W50","v":12},{"$f":"[1]ACS_16_5YR_B18102_with_ann!X50","v":294},{"$f":"[1]ACS_16_5YR_B18102_with_ann!Y50","v":122},{"$f":"[1]ACS_16_5YR_B18102_with_ann!Z50","v":878},{"$f":"[1]ACS_16_5YR_B18102_with_ann!AA50","v":165},{"$f":"[1]ACS_16_5YR_B18102_with_ann!AB50","v":76},{"$f":"[1]ACS_16_5YR_B18102_with_ann!AC50","v":89},{"$f":"[1]ACS_16_5YR_B18102_with_ann!AD50","v":802},{"$f":"[1]ACS_16_5YR_B18102_with_ann!AE50","v":140},{"$f":"[1]ACS_16_5YR_B18102_with_ann!AF50","v":433},{"$f":"[1]ACS_16_5YR_B18102_with_ann!AG50","v":236},{"$f":"[1]ACS_16_5YR_B18102_with_ann!AH50","v":210},{"$f":"[1]ACS_16_5YR_B18102_with_ann!AI50","v":222},{"$f":"[1]ACS_16_5YR_B18102_with_ann!AJ50","v":223},{"$f":"[1]ACS_16_5YR_B18102_with_ann!AK50","v":114},{"$f":"[1]ACS_16_5YR_B18102_with_ann!AL50","v":182},{"$f":"[1]ACS_16_5YR_B18102_with_ann!AM50","v":113},{"$f":"[1]ACS_16_5YR_B18102_with_ann!AN50","v":103},{"$f":"[1]ACS_16_5YR_B18102_with_ann!AO50","v":119},{"$f":"[1]ACS_16_5YR_B18102_with_ann!AP50","v":79},{"$f":"[1]ACS_16_5YR_B18102_with_ann!AQ50","v":50},{"$f":"[1]ACS_16_5YR_B18102_with_ann!AR50","v":1875},{"$f":"[1]ACS_16_5YR_B18102_with_ann!AS50","v":204},{"$f":"[1]ACS_16_5YR_B18102_with_ann!AT50","v":58},{"$f":"[1]ACS_16_5YR_B18102_with_ann!AU50","v":46},{"$f":"[1]ACS_16_5YR_B18102_with_ann!AV50","v":0},{"$f":"[1]ACS_16_5YR_B18102_with_ann!AW50","v":12},{"$f":"[1]ACS_16_5YR_B18102_with_ann!AX50","v":58},{"$f":"[1]ACS_16_5YR_B18102_with_ann!AY50","v":46},{"$f":"[1]ACS_16_5YR_B18102_with_ann!AZ50","v":225},{"$f":"[1]ACS_16_5YR_B18102_with_ann!BA50","v":70},{"$f":"[1]ACS_16_5YR_B18102_with_ann!BB50","v":0},{"$f":"[1]ACS_16_5YR_B18102_with_ann!BC50","v":12},{"$f":"[1]ACS_16_5YR_B18102_with_ann!BD50","v":225},{"$f":"[1]ACS_16_5YR_B18102_with_ann!BE50","v":70},{"$f":"[1]ACS_16_5YR_B18102_with_ann!BF50","v":306},{"$f":"[1]ACS_16_5YR_B18102_with_ann!BG50","v":147},{"$f":"[1]ACS_16_5YR_B18102_with_ann!BH50","v":0},{"$f":"[1]ACS_16_5YR_B18102_with_ann!BI50","v":12},{"$f":"[1]ACS_16_5YR_B18102_with_ann!BJ50","v":306},{"$f":"[1]ACS_16_5YR_B18102_with_ann!BK50","v":147},{"$f":"[1]ACS_16_5YR_B18102_with_ann!BL50","v":843},{"$f":"[1]ACS_16_5YR_B18102_with_ann!BM50","v":127},{"$f":"[1]ACS_16_5YR_B18102_with_ann!BN50","v":14},{"$f":"[1]ACS_16_5YR_B18102_with_ann!BO50","v":17},{"$f":"[1]ACS_16_5YR_B18102_with_ann!BP50","v":829},{"$f":"[1]ACS_16_5YR_B18102_with_ann!BQ50","v":125},{"$f":"[1]ACS_16_5YR_B18102_with_ann!BR50","v":214},{"$f":"[1]ACS_16_5YR_B18102_with_ann!BS50","v":97},{"$f":"[1]ACS_16_5YR_B18102_with_ann!BT50","v":0},{"$f":"[1]ACS_16_5YR_B18102_with_ann!BU50","v":12},{"$f":"[1]ACS_16_5YR_B18102_with_ann!BV50","v":214},{"$f":"[1]ACS_16_5YR_B18102_with_ann!BW50","v":97},{"$f":"[1]ACS_16_5YR_B18102_with_ann!BX50","v":229},{"$f":"[1]ACS_16_5YR_B18102_with_ann!BY50","v":155},{"$f":"[1]ACS_16_5YR_B18102_with_ann!BZ50","v":33},{"$f":"[1]ACS_16_5YR_B18102_with_ann!CA50","v":38},{"$f":"[1]ACS_16_5YR_B18102_with_ann!CB50","v":196},{"$f":"[1]ACS_16_5YR_B18102_with_ann!CC50","v":152}]
["06000US3300538500","0600000US3300539300","060",{"$f":"[1]ACS_16_5YR_B18102_with_ann!C51","v":"Jaffrey"},{"$f":"[1]ACS_16_5YR_B18102_with_ann!D51","v":5299},{"$f":"[1]ACS_16_5YR_B18102_with_ann!E51","v":31},{"$f":"[1]ACS_16_5YR_B18102_with_ann!F51","v":2731},{"$f":"[1]ACS_16_5YR_B18102_with_ann!G51","v":216},{"$f":"[1]ACS_16_5YR_B18102_with_ann!H51","v":114},{"$f":"[1]ACS_16_5YR_B18102_with_ann!I51","v":89},{"$f":"[1]ACS_16_5YR_B18102_with_ann!J51","v":0},{"$f":"[1]ACS_16_5YR_B18102_with_ann!K51","v":17},{"$f":"[1]ACS_16_5YR_B18102_with_ann!L51","v":114},{"$f":"[1]ACS_16_5YR_B18102_with_ann!M51","v":89},{"$f":"[1]ACS_16_5YR_B18102_with_ann!N51","v":566},{"$f":"[1]ACS_16_5YR_B18102_with_ann!O51","v":154},{"$f":"[1]ACS_16_5YR_B18102_with_ann!P51","v":0},{"$f":"[1]ACS_16_5YR_B18102_with_ann!Q51","v":17},{"$f":"[1]ACS_16_5YR_B18102_with_ann!R51","v":566},{"$f":"[1]ACS_16_5YR_B18102_with_ann!S51","v":154},{"$f":"[1]ACS_16_5YR_B18102_with_ann!T51","v":408},{"$f":"[1]ACS_16_5YR_B18102_with_ann!U51","v":190},{"$f":"[1]ACS_16_5YR_B18102_with_ann!V51","v":0},{"$f":"[1]ACS_16_5YR_B18102_with_ann!W51","v":17},{"$f":"[1]ACS_16_5YR_B18102_with_ann!X51","v":408},{"$f":"[1]ACS_16_5YR_B18102_with_ann!Y51","v":190},{"$f":"[1]ACS_16_5YR_B18102_with_ann!Z51","v":1310},{"$f":"[1]ACS_16_5YR_B18102_with_ann!AA51","v":200},{"$f":"[1]ACS_16_5YR_B18102_with_ann!AB51","v":0},{"$f":"[1]ACS_16_5YR_B18102_with_ann!AC51","v":17},{"$f":"[1]ACS_16_5YR_B18102_with_ann!AD51","v":1310},{"$f":"[1]ACS_16_5YR_B18102_with_ann!AE51","v":200},{"$f":"[1]ACS_16_5YR_B18102_with_ann!AF51","v":159},{"$f":"[1]ACS_16_5YR_B18102_with_ann!AG51","v":87},{"$f":"[1]ACS_16_5YR_B18102_with_ann!AH51","v":40},{"$f":"[1]ACS_16_5YR_B18102_with_ann!AI51","v":42},{"$f":"[1]ACS_16_5YR_B18102_with_ann!AJ51","v":119},{"$f":"[1]ACS_16_5YR_B18102_with_ann!AK51","v":75},{"$f":"[1]ACS_16_5YR_B18102_with_ann!AL51","v":174},{"$f":"[1]ACS_16_5YR_B18102_with_ann!AM51","v":110},{"$f":"[1]ACS_16_5YR_B18102_with_ann!AN51","v":46},{"$f":"[1]ACS_16_5YR_B18102_with_ann!AO51","v":58},{"$f":"[1]ACS_16_5YR_B18102_with_ann!AP51","v":128},{"$f":"[1]ACS_16_5YR_B18102_with_ann!AQ51","v":96},{"$f":"[1]ACS_16_5YR_B18102_with_ann!AR51","v":2568},{"$f":"[1]ACS_16_5YR_B18102_with_ann!AS51","v":218},{"$f":"[1]ACS_16_5YR_B18102_with_ann!AT51","v":28},{"$f":"[1]ACS_16_5YR_B18102_with_ann!AU51","v":48},{"$f":"[1]ACS_16_5YR_B18102_with_ann!AV51","v":0},{"$f":"[1]ACS_16_5YR_B18102_with_ann!AW51","v":17},{"$f":"[1]ACS_16_5YR_B18102_with_ann!AX51","v":28},{"$f":"[1]ACS_16_5YR_B18102_with_ann!AY51","v":48},{"$f":"[1]ACS_16_5YR_B18102_with_ann!AZ51","v":617},{"$f":"[1]ACS_16_5YR_B18102_with_ann!BA51","v":129},{"$f":"[1]ACS_16_5YR_B18102_with_ann!BB51","v":0},{"$f":"[1]ACS_16_5YR_B18102_with_ann!BC51","v":17},{"$f":"[1]ACS_16_5YR_B18102_with_ann!BD51","v":617},{"$f":"[1]ACS_16_5YR_B18102_with_ann!BE51","v":129},{"$f":"[1]ACS_16_5YR_B18102_with_ann!BF51","v":307},{"$f":"[1]ACS_16_5YR_B18102_with_ann!BG51","v":170},{"$f":"[1]ACS_16_5YR_B18102_with_ann!BH51","v":0},{"$f":"[1]ACS_16_5YR_B18102_with_ann!BI51","v":17},{"$f":"[1]ACS_16_5YR_B18102_with_ann!BJ51","v":307},{"$f":"[1]ACS_16_5YR_B18102_with_ann!BK51","v":170},{"$f":"[1]ACS_16_5YR_B18102_with_ann!BL51","v":1144},{"$f":"[1]ACS_16_5YR_B18102_with_ann!BM51","v":160},{"$f":"[1]ACS_16_5YR_B18102_with_ann!BN51","v":56},{"$f":"[1]ACS_16_5YR_B18102_with_ann!BO51","v":66},{"$f":"[1]ACS_16_5YR_B18102_with_ann!BP51","v":1088},{"$f":"[1]ACS_16_5YR_B18102_with_ann!BQ51","v":146},{"$f":"[1]ACS_16_5YR_B18102_with_ann!BR51","v":276},{"$f":"[1]ACS_16_5YR_B18102_with_ann!BS51","v":101},{"$f":"[1]ACS_16_5YR_B18102_with_ann!BT51","v":23},{"$f":"[1]ACS_16_5YR_B18102_with_ann!BU51","v":30},{"$f":"[1]ACS_16_5YR_B18102_with_ann!BV51","v":253},{"$f":"[1]ACS_16_5YR_B18102_with_ann!BW51","v":96},{"$f":"[1]ACS_16_5YR_B18102_with_ann!BX51","v":196},{"$f":"[1]ACS_16_5YR_B18102_with_ann!BY51","v":97},{"$f":"[1]ACS_16_5YR_B18102_with_ann!BZ51","v":28},{"$f":"[1]ACS_16_5YR_B18102_with_ann!CA51","v":31},{"$f":"[1]ACS_16_5YR_B18102_with_ann!CB51","v":168},{"$f":"[1]ACS_16_5YR_B18102_with_ann!CC51","v":95}]
["06000US3300539300","0600000US3300545460","060",{"$f":"[1]ACS_16_5YR_B18102_with_ann!C52","v":"Keene"},{"$f":"[1]ACS_16_5YR_B18102_with_ann!D52","v":22429},{"$f":"[1]ACS_16_5YR_B18102_with_ann!E52","v":47},{"$f":"[1]ACS_16_5YR_B18102_with_ann!F52","v":10985},{"$f":"[1]ACS_16_5YR_B18102_with_ann!G52","v":396},{"$f":"[1]ACS_16_5YR_B18102_with_ann!H52","v":485},{"$f":"[1]ACS_16_5YR_B18102_with_ann!I52","v":125},{"$f":"[1]ACS_16_5YR_B18102_with_ann!J52","v":0},{"$f":"[1]ACS_16_5YR_B18102_with_ann!K52","v":22},{"$f":"[1]ACS_16_5YR_B18102_with_ann!L52","v":485},{"$f":"[1]ACS_16_5YR_B18102_with_ann!M52","v":125},{"$f":"[1]ACS_16_5YR_B18102_with_ann!N52","v":1379},{"$f":"[1]ACS_16_5YR_B18102_with_ann!O52","v":180},{"$f":"[1]ACS_16_5YR_B18102_with_ann!P52","v":21},{"$f":"[1]ACS_16_5YR_B18102_with_ann!Q52","v":31},{"$f":"[1]ACS_16_5YR_B18102_with_ann!R52","v":1358},{"$f":"[1]ACS_16_5YR_B18102_with_ann!S52","v":177},{"$f":"[1]ACS_16_5YR_B18102_with_ann!T52","v":3702},{"$f":"[1]ACS_16_5YR_B18102_with_ann!U52","v":372},{"$f":"[1]ACS_16_5YR_B18102_with_ann!V52","v":47},{"$f":"[1]ACS_16_5YR_B18102_with_ann!W52","v":59},{"$f":"[1]ACS_16_5YR_B18102_with_ann!X52","v":3655},{"$f":"[1]ACS_16_5YR_B18102_with_ann!Y52","v":384},{"$f":"[1]ACS_16_5YR_B18102_with_ann!Z52","v":3790},{"$f":"[1]ACS_16_5YR_B18102_with_ann!AA52","v":283},{"$f":"[1]ACS_16_5YR_B18102_with_ann!AB52","v":186},{"$f":"[1]ACS_16_5YR_B18102_with_ann!AC52","v":100},{"$f":"[1]ACS_16_5YR_B18102_with_ann!AD52","v":3604},{"$f":"[1]ACS_16_5YR_B18102_with_ann!AE52","v":279},{"$f":"[1]ACS_16_5YR_B18102_with_ann!AF52","v":899},{"$f":"[1]ACS_16_5YR_B18102_with_ann!AG52","v":135},{"$f":"[1]ACS_16_5YR_B18102_with_ann!AH52","v":125},{"$f":"[1]ACS_16_5YR_B18102_with_ann!AI52","v":71},{"$f":"[1]ACS_16_5YR_B18102_with_ann!AJ52","v":774},{"$f":"[1]ACS_16_5YR_B18102_with_ann!AK52","v":144},{"$f":"[1]ACS_16_5YR_B18102_with_ann!AL52","v":730},{"$f":"[1]ACS_16_5YR_B18102_with_ann!AM52","v":148},{"$f":"[1]ACS_16_5YR_B18102_with_ann!AN52","v":176},{"$f":"[1]ACS_16_5YR_B18102_with_ann!AO52","v":81},{"$f":"[1]ACS_16_5YR_B18102_with_ann!AP52","v":554},{"$f":"[1]ACS_16_5YR_B18102_with_ann!AQ52","v":150},{"$f":"[1]ACS_16_5YR_B18102_with_ann!AR52","v":11444},{"$f":"[1]ACS_16_5YR_B18102_with_ann!AS52","v":392},{"$f":"[1]ACS_16_5YR_B18102_with_ann!AT52","v":387},{"$f":"[1]ACS_16_5YR_B18102_with_ann!AU52","v":112},{"$f":"[1]ACS_16_5YR_B18102_with_ann!AV52","v":0},{"$f":"[1]ACS_16_5YR_B18102_with_ann!AW52","v":22},{"$f":"[1]ACS_16_5YR_B18102_with_ann!AX52","v":387},{"$f":"[1]ACS_16_5YR_B18102_with_ann!AY52","v":112},{"$f":"[1]ACS_16_5YR_B18102_with_ann!AZ52","v":1041},{"$f":"[1]ACS_16_5YR_B18102_with_ann!BA52","v":198},{"$f":"[1]ACS_16_5YR_B18102_with_ann!BB52","v":31},{"$f":"[1]ACS_16_5YR_B18102_with_ann!BC52","v":30},{"$f":"[1]ACS_16_5YR_B18102_with_ann!BD52","v":1010},{"$f":"[1]ACS_16_5YR_B18102_with_ann!BE52","v":199},{"$f":"[1]ACS_16_5YR_B18102_with_ann!BF52","v":3991},{"$f":"[1]ACS_16_5YR_B18102_with_ann!BG52","v":285},{"$f":"[1]ACS_16_5YR_B18102_with_ann!BH52","v":73},{"$f":"[1]ACS_16_5YR_B18102_with_ann!BI52","v":79},{"$f":"[1]ACS_16_5YR_B18102_with_ann!BJ52","v":3918},{"$f":"[1]ACS_16_5YR_B18102_with_ann!BK52","v":278},{"$f":"[1]ACS_16_5YR_B18102_with_ann!BL52","v":3688},{"$f":"[1]ACS_16_5YR_B18102_with_ann!BM52","v":301},{"$f":"[1]ACS_16_5YR_B18102_with_ann!BN52","v":170},{"$f":"[1]ACS_16_5YR_B18102_with_ann!BO52","v":100},{"$f":"[1]ACS_16_5YR_B18102_with_ann!BP52","v":3518},{"$f":"[1]ACS_16_5YR_B18102_with_ann!BQ52","v":308},{"$f":"[1]ACS_16_5YR_B18102_with_ann!BR52","v":1300},{"$f":"[1]ACS_16_5YR_B18102_with_ann!BS52","v":181},{"$f":"[1]ACS_16_5YR_B18102_with_ann!BT52","v":171},{"$f":"[1]ACS_16_5YR_B18102_with_ann!BU52","v":101},{"$f":"[1]ACS_16_5YR_B18102_with_ann!BV52","v":1129},{"$f":"[1]ACS_16_5YR_B18102_with_ann!BW52","v":171},{"$f":"[1]ACS_16_5YR_B18102_with_ann!BX52","v":1037},{"$f":"[1]ACS_16_5YR_B18102_with_ann!BY52","v":197},{"$f":"[1]ACS_16_5YR_B18102_with_ann!BZ52","v":212},{"$f":"[1]ACS_16_5YR_B18102_with_ann!CA52","v":155},{"$f":"[1]ACS_16_5YR_B18102_with_ann!CB52","v":825},{"$f":"[1]ACS_16_5YR_B18102_with_ann!CC52","v":165}]
["06000US3300545460","0600000US3300545700","060",{"$f":"[1]ACS_16_5YR_B18102_with_ann!C53","v":"Marlborough"},{"$f":"[1]ACS_16_5YR_B18102_with_ann!D53","v":2253},{"$f":"[1]ACS_16_5YR_B18102_with_ann!E53","v":391},{"$f":"[1]ACS_16_5YR_B18102_with_ann!F53","v":1005},{"$f":"[1]ACS_16_5YR_B18102_with_ann!G53","v":199},{"$f":"[1]ACS_16_5YR_B18102_with_ann!H53","v":76},{"$f":"[1]ACS_16_5YR_B18102_with_ann!I53","v":60},{"$f":"[1]ACS_16_5YR_B18102_with_ann!J53","v":0},{"$f":"[1]ACS_16_5YR_B18102_with_ann!K53","v":12},{"$f":"[1]ACS_16_5YR_B18102_with_ann!L53","v":76},{"$f":"[1]ACS_16_5YR_B18102_with_ann!M53","v":60},{"$f":"[1]ACS_16_5YR_B18102_with_ann!N53","v":129},{"$f":"[1]ACS_16_5YR_B18102_with_ann!O53","v":64},{"$f":"[1]ACS_16_5YR_B18102_with_ann!P53","v":0},{"$f":"[1]ACS_16_5YR_B18102_with_ann!Q53","v":12},{"$f":"[1]ACS_16_5YR_B18102_with_ann!R53","v":129},{"$f":"[1]ACS_16_5YR_B18102_with_ann!S53","v":64},{"$f":"[1]ACS_16_5YR_B18102_with_ann!T53","v":175},{"$f":"[1]ACS_16_5YR_B18102_with_ann!U53","v":92},{"$f":"[1]ACS_16_5YR_B18102_with_ann!V53","v":0},{"$f":"[1]ACS_16_5YR_B18102_with_ann!W53","v":12},{"$f":"[1]ACS_16_5YR_B18102_with_ann!X53","v":175},{"$f":"[1]ACS_16_5YR_B18102_with_ann!Y53","v":92},{"$f":"[1]ACS_16_5YR_B18102_with_ann!Z53","v":440},{"$f":"[1]ACS_16_5YR_B18102_with_ann!AA53","v":108},{"$f":"[1]ACS_16_5YR_B18102_with_ann!AB53","v":0},{"$f":"[1]ACS_16_5YR_B18102_with_ann!AC53","v":12},{"$f":"[1]ACS_16_5YR_B18102_with_ann!AD53","v":440},{"$f":"[1]ACS_16_5YR_B18102_with_ann!AE53","v":108},{"$f":"[1]ACS_16_5YR_B18102_with_ann!AF53","v":83},{"$f":"[1]ACS_16_5YR_B18102_with_ann!AG53","v":37},{"$f":"[1]ACS_16_5YR_B18102_with_ann!AH53","v":0},{"$f":"[1]ACS_16_5YR_B18102_with_ann!AI53","v":12},{"$f":"[1]ACS_16_5YR_B18102_with_ann!AJ53","v":83},{"$f":"[1]ACS_16_5YR_B18102_with_ann!AK53","v":37},{"$f":"[1]ACS_16_5YR_B18102_with_ann!AL53","v":102},{"$f":"[1]ACS_16_5YR_B18102_with_ann!AM53","v":43},{"$f":"[1]ACS_16_5YR_B18102_with_ann!AN53","v":32},{"$f":"[1]ACS_16_5YR_B18102_with_ann!AO53","v":33},{"$f":"[1]ACS_16_5YR_B18102_with_ann!AP53","v":70},{"$f":"[1]ACS_16_5YR_B18102_with_ann!AQ53","v":32},{"$f":"[1]ACS_16_5YR_B18102_with_ann!AR53","v":1248},{"$f":"[1]ACS_16_5YR_B18102_with_ann!AS53","v":240},{"$f":"[1]ACS_16_5YR_B18102_with_ann!AT53","v":140},{"$f":"[1]ACS_16_5YR_B18102_with_ann!AU53","v":107},{"$f":"[1]ACS_16_5YR_B18102_with_ann!AV53","v":0},{"$f":"[1]ACS_16_5YR_B18102_with_ann!AW53","v":12},{"$f":"[1]ACS_16_5YR_B18102_with_ann!AX53","v":140},{"$f":"[1]ACS_16_5YR_B18102_with_ann!AY53","v":107},{"$f":"[1]ACS_16_5YR_B18102_with_ann!AZ53","v":198},{"$f":"[1]ACS_16_5YR_B18102_with_ann!BA53","v":77},{"$f":"[1]ACS_16_5YR_B18102_with_ann!BB53","v":0},{"$f":"[1]ACS_16_5YR_B18102_with_ann!BC53","v":12},{"$f":"[1]ACS_16_5YR_B18102_with_ann!BD53","v":198},{"$f":"[1]ACS_16_5YR_B18102_with_ann!BE53","v":77},{"$f":"[1]ACS_16_5YR_B18102_with_ann!BF53","v":117},{"$f":"[1]ACS_16_5YR_B18102_with_ann!BG53","v":53},{"$f":"[1]ACS_16_5YR_B18102_with_ann!BH53","v":0},{"$f":"[1]ACS_16_5YR_B18102_with_ann!BI53","v":12},{"$f":"[1]ACS_16_5YR_B18102_with_ann!BJ53","v":117},{"$f":"[1]ACS_16_5YR_B18102_with_ann!BK53","v":53},{"$f":"[1]ACS_16_5YR_B18102_with_ann!BL53","v":586},{"$f":"[1]ACS_16_5YR_B18102_with_ann!BM53","v":139},{"$f":"[1]ACS_16_5YR_B18102_with_ann!BN53","v":13},{"$f":"[1]ACS_16_5YR_B18102_with_ann!BO53","v":13},{"$f":"[1]ACS_16_5YR_B18102_with_ann!BP53","v":573},{"$f":"[1]ACS_16_5YR_B18102_with_ann!BQ53","v":136},{"$f":"[1]ACS_16_5YR_B18102_with_ann!BR53","v":120},{"$f":"[1]ACS_16_5YR_B18102_with_ann!BS53","v":51},{"$f":"[1]ACS_16_5YR_B18102_with_ann!BT53","v":0},{"$f":"[1]ACS_16_5YR_B18102_with_ann!BU53","v":12},{"$f":"[1]ACS_16_5YR_B18102_with_ann!BV53","v":120},{"$f":"[1]ACS_16_5YR_B18102_with_ann!BW53","v":51},{"$f":"[1]ACS_16_5YR_B18102_with_ann!BX53","v":87},{"$f":"[1]ACS_16_5YR_B18102_with_ann!BY53","v":42},{"$f":"[1]ACS_16_5YR_B18102_with_ann!BZ53","v":5},{"$f":"[1]ACS_16_5YR_B18102_with_ann!CA53","v":7},{"$f":"[1]ACS_16_5YR_B18102_with_ann!CB53","v":82},{"$f":"[1]ACS_16_5YR_B18102_with_ann!CC53","v":41}]
["06000US3300545700","0600000US3300550580","060",{"$f":"[1]ACS_16_5YR_B18102_with_ann!C54","v":"Marlow"},{"$f":"[1]ACS_16_5YR_B18102_with_ann!D54","v":803},{"$f":"[1]ACS_16_5YR_B18102_with_ann!E54","v":175},{"$f":"[1]ACS_16_5YR_B18102_with_ann!F54","v":364},{"$f":"[1]ACS_16_5YR_B18102_with_ann!G54","v":80},{"$f":"[1]ACS_16_5YR_B18102_with_ann!H54","v":23},{"$f":"[1]ACS_16_5YR_B18102_with_ann!I54","v":26},{"$f":"[1]ACS_16_5YR_B18102_with_ann!J54","v":0},{"$f":"[1]ACS_16_5YR_B18102_with_ann!K54","v":12},{"$f":"[1]ACS_16_5YR_B18102_with_ann!L54","v":23},{"$f":"[1]ACS_16_5YR_B18102_with_ann!M54","v":26},{"$f":"[1]ACS_16_5YR_B18102_with_ann!N54","v":37},{"$f":"[1]ACS_16_5YR_B18102_with_ann!O54","v":23},{"$f":"[1]ACS_16_5YR_B18102_with_ann!P54","v":0},{"$f":"[1]ACS_16_5YR_B18102_with_ann!Q54","v":12},{"$f":"[1]ACS_16_5YR_B18102_with_ann!R54","v":37},{"$f":"[1]ACS_16_5YR_B18102_with_ann!S54","v":23},{"$f":"[1]ACS_16_5YR_B18102_with_ann!T54","v":53},{"$f":"[1]ACS_16_5YR_B18102_with_ann!U54","v":32},{"$f":"[1]ACS_16_5YR_B18102_with_ann!V54","v":0},{"$f":"[1]ACS_16_5YR_B18102_with_ann!W54","v":12},{"$f":"[1]ACS_16_5YR_B18102_with_ann!X54","v":53},{"$f":"[1]ACS_16_5YR_B18102_with_ann!Y54","v":32},{"$f":"[1]ACS_16_5YR_B18102_with_ann!Z54","v":153},{"$f":"[1]ACS_16_5YR_B18102_with_ann!AA54","v":41},{"$f":"[1]ACS_16_5YR_B18102_with_ann!AB54","v":7},{"$f":"[1]ACS_16_5YR_B18102_with_ann!AC54","v":11},{"$f":"[1]ACS_16_5YR_B18102_with_ann!AD54","v":146},{"$f":"[1]ACS_16_5YR_B18102_with_ann!AE54","v":39},{"$f":"[1]ACS_16_5YR_B18102_with_ann!AF54","v":75},{"$f":"[1]ACS_16_5YR_B18102_with_ann!AG54","v":38},{"$f":"[1]ACS_16_5YR_B18102_with_ann!AH54","v":2},{"$f":"[1]ACS_16_5YR_B18102_with_ann!AI54","v":3},{"$f":"[1]ACS_16_5YR_B18102_with_ann!AJ54","v":73},{"$f":"[1]ACS_16_5YR_B18102_with_ann!AK54","v":38},{"$f":"[1]ACS_16_5YR_B18102_with_ann!AL54","v":23},{"$f":"[1]ACS_16_5YR_B18102_with_ann!AM54","v":13},{"$f":"[1]ACS_16_5YR_B18102_with_ann!AN54","v":2},{"$f":"[1]ACS_16_5YR_B18102_with_ann!AO54","v":3},{"$f":"[1]ACS_16_5YR_B18102_with_ann!AP54","v":21},{"$f":"[1]ACS_16_5YR_B18102_with_ann!AQ54","v":12},{"$f":"[1]ACS_16_5YR_B18102_with_ann!AR54","v":439},{"$f":"[1]ACS_16_5YR_B18102_with_ann!AS54","v":110},{"$f":"[1]ACS_16_5YR_B18102_with_ann!AT54","v":19},{"$f":"[1]ACS_16_5YR_B18102_with_ann!AU54","v":19},{"$f":"[1]ACS_16_5YR_B18102_with_ann!AV54","v":0},{"$f":"[1]ACS_16_5YR_B18102_with_ann!AW54","v":12},{"$f":"[1]ACS_16_5YR_B18102_with_ann!AX54","v":19},{"$f":"[1]ACS_16_5YR_B18102_with_ann!AY54","v":19},{"$f":"[1]ACS_16_5YR_B18102_with_ann!AZ54","v":116},{"$f":"[1]ACS_16_5YR_B18102_with_ann!BA54","v":56},{"$f":"[1]ACS_16_5YR_B18102_with_ann!BB54","v":0},{"$f":"[1]ACS_16_5YR_B18102_with_ann!BC54","v":12},{"$f":"[1]ACS_16_5YR_B18102_with_ann!BD54","v":116},{"$f":"[1]ACS_16_5YR_B18102_with_ann!BE54","v":56},{"$f":"[1]ACS_16_5YR_B18102_with_ann!BF54","v":72},{"$f":"[1]ACS_16_5YR_B18102_with_ann!BG54","v":40},{"$f":"[1]ACS_16_5YR_B18102_with_ann!BH54","v":0},{"$f":"[1]ACS_16_5YR_B18102_with_ann!BI54","v":12},{"$f":"[1]ACS_16_5YR_B18102_with_ann!BJ54","v":72},{"$f":"[1]ACS_16_5YR_B18102_with_ann!BK54","v":40},{"$f":"[1]ACS_16_5YR_B18102_with_ann!BL54","v":132},{"$f":"[1]ACS_16_5YR_B18102_with_ann!BM54","v":39},{"$f":"[1]ACS_16_5YR_B18102_with_ann!BN54","v":0},{"$f":"[1]ACS_16_5YR_B18102_with_ann!BO54","v":12},{"$f":"[1]ACS_16_5YR_B18102_with_ann!BP54","v":132},{"$f":"[1]ACS_16_5YR_B18102_with_ann!BQ54","v":39},{"$f":"[1]ACS_16_5YR_B18102_with_ann!BR54","v":67},{"$f":"[1]ACS_16_5YR_B18102_with_ann!BS54","v":38},{"$f":"[1]ACS_16_5YR_B18102_with_ann!BT54","v":1},{"$f":"[1]ACS_16_5YR_B18102_with_ann!BU54","v":2},{"$f":"[1]ACS_16_5YR_B18102_with_ann!BV54","v":66},{"$f":"[1]ACS_16_5YR_B18102_with_ann!BW54","v":38},{"$f":"[1]ACS_16_5YR_B18102_with_ann!BX54","v":33},{"$f":"[1]ACS_16_5YR_B18102_with_ann!BY54","v":18},{"$f":"[1]ACS_16_5YR_B18102_with_ann!BZ54","v":0},{"$f":"[1]ACS_16_5YR_B18102_with_ann!CA54","v":12},{"$f":"[1]ACS_16_5YR_B18102_with_ann!CB54","v":33},{"$f":"[1]ACS_16_5YR_B18102_with_ann!CC54","v":18}]
["06000US3300550580","0600000US3300564420","060",{"$f":"[1]ACS_16_5YR_B18102_with_ann!C55","v":"Nelson"},{"$f":"[1]ACS_16_5YR_B18102_with_ann!D55","v":550},{"$f":"[1]ACS_16_5YR_B18102_with_ann!E55","v":106},{"$f":"[1]ACS_16_5YR_B18102_with_ann!F55","v":252},{"$f":"[1]ACS_16_5YR_B18102_with_ann!G55","v":50},{"$f":"[1]ACS_16_5YR_B18102_with_ann!H55","v":15},{"$f":"[1]ACS_16_5YR_B18102_with_ann!I55","v":8},{"$f":"[1]ACS_16_5YR_B18102_with_ann!J55","v":0},{"$f":"[1]ACS_16_5YR_B18102_with_ann!K55","v":12},{"$f":"[1]ACS_16_5YR_B18102_with_ann!L55","v":15},{"$f":"[1]ACS_16_5YR_B18102_with_ann!M55","v":8},{"$f":"[1]ACS_16_5YR_B18102_with_ann!N55","v":17},{"$f":"[1]ACS_16_5YR_B18102_with_ann!O55","v":12},{"$f":"[1]ACS_16_5YR_B18102_with_ann!P55","v":0},{"$f":"[1]ACS_16_5YR_B18102_with_ann!Q55","v":12},{"$f":"[1]ACS_16_5YR_B18102_with_ann!R55","v":17},{"$f":"[1]ACS_16_5YR_B18102_with_ann!S55","v":12},{"$f":"[1]ACS_16_5YR_B18102_with_ann!T55","v":25},{"$f":"[1]ACS_16_5YR_B18102_with_ann!U55","v":15},{"$f":"[1]ACS_16_5YR_B18102_with_ann!V55","v":0},{"$f":"[1]ACS_16_5YR_B18102_with_ann!W55","v":12},{"$f":"[1]ACS_16_5YR_B18102_with_ann!X55","v":25},{"$f":"[1]ACS_16_5YR_B18102_with_ann!Y55","v":15},{"$f":"[1]ACS_16_5YR_B18102_with_ann!Z55","v":116},{"$f":"[1]ACS_16_5YR_B18102_with_ann!AA55","v":30},{"$f":"[1]ACS_16_5YR_B18102_with_ann!AB55","v":0},{"$f":"[1]ACS_16_5YR_B18102_with_ann!AC55","v":12},{"$f":"[1]ACS_16_5YR_B18102_with_ann!AD55","v":116},{"$f":"[1]ACS_16_5YR_B18102_with_ann!AE55","v":30},{"$f":"[1]ACS_16_5YR_B18102_with_ann!AF55","v":59},{"$f":"[1]ACS_16_5YR_B18102_with_ann!AG55","v":21},{"$f":"[1]ACS_16_5YR_B18102_with_ann!AH55","v":4},{"$f":"[1]ACS_16_5YR_B18102_with_ann!AI55","v":6},{"$f":"[1]ACS_16_5YR_B18102_with_ann!AJ55","v":55},{"$f":"[1]ACS_16_5YR_B18102_with_ann!AK55","v":20},{"$f":"[1]ACS_16_5YR_B18102_with_ann!AL55","v":20},{"$f":"[1]ACS_16_5YR_B18102_with_ann!AM55","v":10},{"$f":"[1]ACS_16_5YR_B18102_with_ann!AN55","v":11},{"$f":"[1]ACS_16_5YR_B18102_with_ann!AO55","v":8},{"$f":"[1]ACS_16_5YR_B18102_with_ann!AP55","v":9},{"$f":"[1]ACS_16_5YR_B18102_with_ann!AQ55","v":6},{"$f":"[1]ACS_16_5YR_B18102_with_ann!AR55","v":298},{"$f":"[1]ACS_16_5YR_B18102_with_ann!AS55","v":67},{"$f":"[1]ACS_16_5YR_B18102_with_ann!AT55","v":7},{"$f":"[1]ACS_16_5YR_B18102_with_ann!AU55","v":7},{"$f":"[1]ACS_16_5YR_B18102_with_ann!AV55","v":0},{"$f":"[1]ACS_16_5YR_B18102_with_ann!AW55","v":12},{"$f":"[1]ACS_16_5YR_B18102_with_ann!AX55","v":7},{"$f":"[1]ACS_16_5YR_B18102_with_ann!AY55","v":7},{"$f":"[1]ACS_16_5YR_B18102_with_ann!AZ55","v":46},{"$f":"[1]ACS_16_5YR_B18102_with_ann!BA55","v":30},{"$f":"[1]ACS_16_5YR_B18102_with_ann!BB55","v":0},{"$f":"[1]ACS_16_5YR_B18102_with_ann!BC55","v":12},{"$f":"[1]ACS_16_5YR_B18102_with_ann!BD55","v":46},{"$f":"[1]ACS_16_5YR_B18102_with_ann!BE55","v":30},{"$f":"[1]ACS_16_5YR_B18102_with_ann!BF55","v":27},{"$f":"[1]ACS_16_5YR_B18102_with_ann!BG55","v":18},{"$f":"[1]ACS_16_5YR_B18102_with_ann!BH55","v":0},{"$f":"[1]ACS_16_5YR_B18102_with_ann!BI55","v":12},{"$f":"[1]ACS_16_5YR_B18102_with_ann!BJ55","v":27},{"$f":"[1]ACS_16_5YR_B18102_with_ann!BK55","v":18},{"$f":"[1]ACS_16_5YR_B18102_with_ann!BL55","v":140},{"$f":"[1]ACS_16_5YR_B18102_with_ann!BM55","v":38},{"$f":"[1]ACS_16_5YR_B18102_with_ann!BN55","v":0},{"$f":"[1]ACS_16_5YR_B18102_with_ann!BO55","v":12},{"$f":"[1]ACS_16_5YR_B18102_with_ann!BP55","v":140},{"$f":"[1]ACS_16_5YR_B18102_with_ann!BQ55","v":38},{"$f":"[1]ACS_16_5YR_B18102_with_ann!BR55","v":48},{"$f":"[1]ACS_16_5YR_B18102_with_ann!BS55","v":17},{"$f":"[1]ACS_16_5YR_B18102_with_ann!BT55","v":4},{"$f":"[1]ACS_16_5YR_B18102_with_ann!BU55","v":4},{"$f":"[1]ACS_16_5YR_B18102_with_ann!BV55","v":44},{"$f":"[1]ACS_16_5YR_B18102_with_ann!BW55","v":16},{"$f":"[1]ACS_16_5YR_B18102_with_ann!BX55","v":30},{"$f":"[1]ACS_16_5YR_B18102_with_ann!BY55","v":21},{"$f":"[1]ACS_16_5YR_B18102_with_ann!BZ55","v":3},{"$f":"[1]ACS_16_5YR_B18102_with_ann!CA55","v":8},{"$f":"[1]ACS_16_5YR_B18102_with_ann!CB55","v":27},{"$f":"[1]ACS_16_5YR_B18102_with_ann!CC55","v":16}]
["06000US3300564420","0600000US3300564580","060",{"$f":"[1]ACS_16_5YR_B18102_with_ann!C56","v":"Richmond"},{"$f":"[1]ACS_16_5YR_B18102_with_ann!D56","v":1104},{"$f":"[1]ACS_16_5YR_B18102_with_ann!E56","v":251},{"$f":"[1]ACS_16_5YR_B18102_with_ann!F56","v":595},{"$f":"[1]ACS_16_5YR_B18102_with_ann!G56","v":161},{"$f":"[1]ACS_16_5YR_B18102_with_ann!H56","v":38},{"$f":"[1]ACS_16_5YR_B18102_with_ann!I56","v":31},{"$f":"[1]ACS_16_5YR_B18102_with_ann!J56","v":0},{"$f":"[1]ACS_16_5YR_B18102_with_ann!K56","v":12},{"$f":"[1]ACS_16_5YR_B18102_with_ann!L56","v":38},{"$f":"[1]ACS_16_5YR_B18102_with_ann!M56","v":31},{"$f":"[1]ACS_16_5YR_B18102_with_ann!N56","v":82},{"$f":"[1]ACS_16_5YR_B18102_with_ann!O56","v":37},{"$f":"[1]ACS_16_5YR_B18102_with_ann!P56","v":0},{"$f":"[1]ACS_16_5YR_B18102_with_ann!Q56","v":12},{"$f":"[1]ACS_16_5YR_B18102_with_ann!R56","v":82},{"$f":"[1]ACS_16_5YR_B18102_with_ann!S56","v":37},{"$f":"[1]ACS_16_5YR_B18102_with_ann!T56","v":110},{"$f":"[1]ACS_16_5YR_B18102_with_ann!U56","v":61},{"$f":"[1]ACS_16_5YR_B18102_with_ann!V56","v":0},{"$f":"[1]ACS_16_5YR_B18102_with_ann!W56","v":12},{"$f":"[1]ACS_16_5YR_B18102_with_ann!X56","v":110},{"$f":"[1]ACS_16_5YR_B18102_with_ann!Y56","v":61},{"$f":"[1]ACS_16_5YR_B18102_with_ann!Z56","v":192},{"$f":"[1]ACS_16_5YR_B18102_with_ann!AA56","v":53},{"$f":"[1]ACS_16_5YR_B18102_with_ann!AB56","v":7},{"$f":"[1]ACS_16_5YR_B18102_with_ann!AC56","v":7},{"$f":"[1]ACS_16_5YR_B18102_with_ann!AD56","v":185},{"$f":"[1]ACS_16_5YR_B18102_with_ann!AE56","v":55},{"$f":"[1]ACS_16_5YR_B18102_with_ann!AF56","v":145},{"$f":"[1]ACS_16_5YR_B18102_with_ann!AG56","v":100},{"$f":"[1]ACS_16_5YR_B18102_with_ann!AH56","v":17},{"$f":"[1]ACS_16_5YR_B18102_with_ann!AI56","v":13},{"$f":"[1]ACS_16_5YR_B18102_with_ann!AJ56","v":128},{"$f":"[1]ACS_16_5YR_B18102_with_ann!AK56","v":96},{"$f":"[1]ACS_16_5YR_B18102_with_ann!AL56","v":28},{"$f":"[1]ACS_16_5YR_B18102_with_ann!AM56","v":16},{"$f":"[1]ACS_16_5YR_B18102_with_ann!AN56","v":22},{"$f":"[1]ACS_16_5YR_B18102_with_ann!AO56","v":15},{"$f":"[1]ACS_16_5YR_B18102_with_ann!AP56","v":6},{"$f":"[1]ACS_16_5YR_B18102_with_ann!AQ56","v":7},{"$f":"[1]ACS_16_5YR_B18102_with_ann!AR56","v":509},{"$f":"[1]ACS_16_5YR_B18102_with_ann!AS56","v":121},{"$f":"[1]ACS_16_5YR_B18102_with_ann!AT56","v":10},{"$f":"[1]ACS_16_5YR_B18102_with_ann!AU56","v":14},{"$f":"[1]ACS_16_5YR_B18102_with_ann!AV56","v":0},{"$f":"[1]ACS_16_5YR_B18102_with_ann!AW56","v":12},{"$f":"[1]ACS_16_5YR_B18102_with_ann!AX56","v":10},{"$f":"[1]ACS_16_5YR_B18102_with_ann!AY56","v":14},{"$f":"[1]ACS_16_5YR_B18102_with_ann!AZ56","v":58},{"$f":"[1]ACS_16_5YR_B18102_with_ann!BA56","v":27},{"$f":"[1]ACS_16_5YR_B18102_with_ann!BB56","v":0},{"$f":"[1]ACS_16_5YR_B18102_with_ann!BC56","v":12},{"$f":"[1]ACS_16_5YR_B18102_with_ann!BD56","v":58},{"$f":"[1]ACS_16_5YR_B18102_with_ann!BE56","v":27},{"$f":"[1]ACS_16_5YR_B18102_with_ann!BF56","v":69},{"$f":"[1]ACS_16_5YR_B18102_with_ann!BG56","v":47},{"$f":"[1]ACS_16_5YR_B18102_with_ann!BH56","v":0},{"$f":"[1]ACS_16_5YR_B18102_with_ann!BI56","v":12},{"$f":"[1]ACS_16_5YR_B18102_with_ann!BJ56","v":69},{"$f":"[1]ACS_16_5YR_B18102_with_ann!BK56","v":47},{"$f":"[1]ACS_16_5YR_B18102_with_ann!BL56","v":226},{"$f":"[1]ACS_16_5YR_B18102_with_ann!BM56","v":60},{"$f":"[1]ACS_16_5YR_B18102_with_ann!BN56","v":10},{"$f":"[1]ACS_16_5YR_B18102_with_ann!BO56","v":12},{"$f":"[1]ACS_16_5YR_B18102_with_ann!BP56","v":216},{"$f":"[1]ACS_16_5YR_B18102_with_ann!BQ56","v":58},{"$f":"[1]ACS_16_5YR_B18102_with_ann!BR56","v":69},{"$f":"[1]ACS_16_5YR_B18102_with_ann!BS56","v":30},{"$f":"[1]ACS_16_5YR_B18102_with_ann!BT56","v":7},{"$f":"[1]ACS_16_5YR_B18102_with_ann!BU56","v":8},{"$f":"[1]ACS_16_5YR_B18102_with_ann!BV56","v":62},{"$f":"[1]ACS_16_5YR_B18102_with_ann!BW56","v":30},{"$f":"[1]ACS_16_5YR_B18102_with_ann!BX56","v":77},{"$f":"[1]ACS_16_5YR_B18102_with_ann!BY56","v":40},{"$f":"[1]ACS_16_5YR_B18102_with_ann!BZ56","v":37},{"$f":"[1]ACS_16_5YR_B18102_with_ann!CA56","v":34},{"$f":"[1]ACS_16_5YR_B18102_with_ann!CB56","v":40},{"$f":"[1]ACS_16_5YR_B18102_with_ann!CC56","v":23}]
["06000US3300564580","0600000US3300565700","060",{"$f":"[1]ACS_16_5YR_B18102_with_ann!C57","v":"Rindge"},{"$f":"[1]ACS_16_5YR_B18102_with_ann!D57","v":6443},{"$f":"[1]ACS_16_5YR_B18102_with_ann!E57","v":18},{"$f":"[1]ACS_16_5YR_B18102_with_ann!F57","v":3162},{"$f":"[1]ACS_16_5YR_B18102_with_ann!G57","v":187},{"$f":"[1]ACS_16_5YR_B18102_with_ann!H57","v":144},{"$f":"[1]ACS_16_5YR_B18102_with_ann!I57","v":96},{"$f":"[1]ACS_16_5YR_B18102_with_ann!J57","v":0},{"$f":"[1]ACS_16_5YR_B18102_with_ann!K57","v":17},{"$f":"[1]ACS_16_5YR_B18102_with_ann!L57","v":144},{"$f":"[1]ACS_16_5YR_B18102_with_ann!M57","v":96},{"$f":"[1]ACS_16_5YR_B18102_with_ann!N57","v":470},{"$f":"[1]ACS_16_5YR_B18102_with_ann!O57","v":153},{"$f":"[1]ACS_16_5YR_B18102_with_ann!P57","v":0},{"$f":"[1]ACS_16_5YR_B18102_with_ann!Q57","v":17},{"$f":"[1]ACS_16_5YR_B18102_with_ann!R57","v":470},{"$f":"[1]ACS_16_5YR_B18102_with_ann!S57","v":153},{"$f":"[1]ACS_16_5YR_B18102_with_ann!T57","v":941},{"$f":"[1]ACS_16_5YR_B18102_with_ann!U57","v":135},{"$f":"[1]ACS_16_5YR_B18102_with_ann!V57","v":15},{"$f":"[1]ACS_16_5YR_B18102_with_ann!W57","v":22},{"$f":"[1]ACS_16_5YR_B18102_with_ann!X57","v":926},{"$f":"[1]ACS_16_5YR_B18102_with_ann!Y57","v":135},{"$f":"[1]ACS_16_5YR_B18102_with_ann!Z57","v":983},{"$f":"[1]ACS_16_5YR_B18102_with_ann!AA57","v":154},{"$f":"[1]ACS_16_5YR_B18102_with_ann!AB57","v":22},{"$f":"[1]ACS_16_5YR_B18102_with_ann!AC57","v":31},{"$f":"[1]ACS_16_5YR_B18102_with_ann!AD57","v":961},{"$f":"[1]ACS_16_5YR_B18102_with_ann!AE57","v":154},{"$f":"[1]ACS_16_5YR_B18102_with_ann!AF57","v":428},{"$f":"[1]ACS_16_5YR_B18102_with_ann!AG57","v":106},{"$f":"[1]ACS_16_5YR_B18102_with_ann!AH57","v":16},{"$f":"[1]ACS_16_5YR_B18102_with_ann!AI57","v":16},{"$f":"[1]ACS_16_5YR_B18102_with_ann!AJ57","v":412},{"$f":"[1]ACS_16_5YR_B18102_with_ann!AK57","v":112},{"$f":"[1]ACS_16_5YR_B18102_with_ann!AL57","v":196},{"$f":"[1]ACS_16_5YR_B18102_with_ann!AM57","v":97},{"$f":"[1]ACS_16_5YR_B18102_with_ann!AN57","v":22},{"$f":"[1]ACS_16_5YR_B18102_with_ann!AO57","v":29},{"$f":"[1]ACS_16_5YR_B18102_with_ann!AP57","v":174},{"$f":"[1]ACS_16_5YR_B18102_with_ann!AQ57","v":92},{"$f":"[1]ACS_16_5YR_B18102_with_ann!AR57","v":3281},{"$f":"[1]ACS_16_5YR_B18102_with_ann!AS57","v":187},{"$f":"[1]ACS_16_5YR_B18102_with_ann!AT57","v":116},{"$f":"[1]ACS_16_5YR_B18102_with_ann!AU57","v":74},{"$f":"[1]ACS_16_5YR_B18102_with_ann!AV57","v":0},{"$f":"[1]ACS_16_5YR_B18102_with_ann!AW57","v":17},{"$f":"[1]ACS_16_5YR_B18102_with_ann!AX57","v":116},{"$f":"[1]ACS_16_5YR_B18102_with_ann!AY57","v":74},{"$f":"[1]ACS_16_5YR_B18102_with_ann!AZ57","v":443},{"$f":"[1]ACS_16_5YR_B18102_with_ann!BA57","v":150},{"$f":"[1]ACS_16_5YR_B18102_with_ann!BB57","v":0},{"$f":"[1]ACS_16_5YR_B18102_with_ann!BC57","v":17},{"$f":"[1]ACS_16_5YR_B18102_with_ann!BD57","v":443},{"$f":"[1]ACS_16_5YR_B18102_with_ann!BE57","v":150},{"$f":"[1]ACS_16_5YR_B18102_with_ann!BF57","v":1002},{"$f":"[1]ACS_16_5YR_B18102_with_ann!BG57","v":156},{"$f":"[1]ACS_16_5YR_B18102_with_ann!BH57","v":26},{"$f":"[1]ACS_16_5YR_B18102_with_ann!BI57","v":44},{"$f":"[1]ACS_16_5YR_B18102_with_ann!BJ57","v":976},{"$f":"[1]ACS_16_5YR_B18102_with_ann!BK57","v":149},{"$f":"[1]ACS_16_5YR_B18102_with_ann!BL57","v":1067},{"$f":"[1]ACS_16_5YR_B18102_with_ann!BM57","v":134},{"$f":"[1]ACS_16_5YR_B18102_with_ann!BN57","v":25},{"$f":"[1]ACS_16_5YR_B18102_with_ann!BO57","v":30},{"$f":"[1]ACS_16_5YR_B18102_with_ann!BP57","v":1042},{"$f":"[1]ACS_16_5YR_B18102_with_ann!BQ57","v":135},{"$f":"[1]ACS_16_5YR_B18102_with_ann!BR57","v":431},{"$f":"[1]ACS_16_5YR_B18102_with_ann!BS57","v":102},{"$f":"[1]ACS_16_5YR_B18102_with_ann!BT57","v":32},{"$f":"[1]ACS_16_5YR_B18102_with_ann!BU57","v":31},{"$f":"[1]ACS_16_5YR_B18102_with_ann!BV57","v":399},{"$f":"[1]ACS_16_5YR_B18102_with_ann!BW57","v":110},{"$f":"[1]ACS_16_5YR_B18102_with_ann!BX57","v":222},{"$f":"[1]ACS_16_5YR_B18102_with_ann!BY57","v":107},{"$f":"[1]ACS_16_5YR_B18102_with_ann!BZ57","v":117},{"$f":"[1]ACS_16_5YR_B18102_with_ann!CA57","v":94},{"$f":"[1]ACS_16_5YR_B18102_with_ann!CB57","v":105},{"$f":"[1]ACS_16_5YR_B18102_with_ann!CC57","v":58}]
["06000US3300565700","0600000US3300573700","060",{"$f":"[1]ACS_16_5YR_B18102_with_ann!C58","v":"Roxbury"},{"$f":"[1]ACS_16_5YR_B18102_with_ann!D58","v":295},{"$f":"[1]ACS_16_5YR_B18102_with_ann!E58","v":142},{"$f":"[1]ACS_16_5YR_B18102_with_ann!F58","v":135},{"$f":"[1]ACS_16_5YR_B18102_with_ann!G58","v":70},{"$f":"[1]ACS_16_5YR_B18102_with_ann!H58","v":36},{"$f":"[1]ACS_16_5YR_B18102_with_ann!I58","v":37},{"$f":"[1]ACS_16_5YR_B18102_with_ann!J58","v":0},{"$f":"[1]ACS_16_5YR_B18102_with_ann!K58","v":12},{"$f":"[1]ACS_16_5YR_B18102_with_ann!L58","v":36},{"$f":"[1]ACS_16_5YR_B18102_with_ann!M58","v":37},{"$f":"[1]ACS_16_5YR_B18102_with_ann!N58","v":4},{"$f":"[1]ACS_16_5YR_B18102_with_ann!O58","v":6},{"$f":"[1]ACS_16_5YR_B18102_with_ann!P58","v":0},{"$f":"[1]ACS_16_5YR_B18102_with_ann!Q58","v":12},{"$f":"[1]ACS_16_5YR_B18102_with_ann!R58","v":4},{"$f":"[1]ACS_16_5YR_B18102_with_ann!S58","v":6},{"$f":"[1]ACS_16_5YR_B18102_with_ann!T58","v":17},{"$f":"[1]ACS_16_5YR_B18102_with_ann!U58","v":10},{"$f":"[1]ACS_16_5YR_B18102_with_ann!V58","v":0},{"$f":"[1]ACS_16_5YR_B18102_with_ann!W58","v":12},{"$f":"[1]ACS_16_5YR_B18102_with_ann!X58","v":17},{"$f":"[1]ACS_16_5YR_B18102_with_ann!Y58","v":10},{"$f":"[1]ACS_16_5YR_B18102_with_ann!Z58","v":65},{"$f":"[1]ACS_16_5YR_B18102_with_ann!AA58","v":37},{"$f":"[1]ACS_16_5YR_B18102_with_ann!AB58","v":2},{"$f":"[1]ACS_16_5YR_B18102_with_ann!AC58","v":3},{"$f":"[1]ACS_16_5YR_B18102_with_ann!AD58","v":63},{"$f":"[1]ACS_16_5YR_B18102_with_ann!AE58","v":37},{"$f":"[1]ACS_16_5YR_B18102_with_ann!AF58","v":10},{"$f":"[1]ACS_16_5YR_B18102_with_ann!AG58","v":6},{"$f":"[1]ACS_16_5YR_B18102_with_ann!AH58","v":0},{"$f":"[1]ACS_16_5YR_B18102_with_ann!AI58","v":12},{"$f":"[1]ACS_16_5YR_B18102_with_ann!AJ58","v":10},{"$f":"[1]ACS_16_5YR_B18102_with_ann!AK58","v":6},{"$f":"[1]ACS_16_5YR_B18102_with_ann!AL58","v":3},{"$f":"[1]ACS_16_5YR_B18102_with_ann!AM58","v":3},{"$f":"[1]ACS_16_5YR_B18102_with_ann!AN58","v":1},{"$f":"[1]ACS_16_5YR_B18102_with_ann!AO58","v":2},{"$f":"[1]ACS_16_5YR_B18102_with_ann!AP58","v":2},{"$f":"[1]ACS_16_5YR_B18102_with_ann!AQ58","v":3},{"$f":"[1]ACS_16_5YR_B18102_with_ann!AR58","v":160},{"$f":"[1]ACS_16_5YR_B18102_with_ann!AS58","v":78},{"$f":"[1]ACS_16_5YR_B18102_with_ann!AT58","v":2},{"$f":"[1]ACS_16_5YR_B18102_with_ann!AU58","v":3},{"$f":"[1]ACS_16_5YR_B18102_with_ann!AV58","v":0},{"$f":"[1]ACS_16_5YR_B18102_with_ann!AW58","v":12},{"$f":"[1]ACS_16_5YR_B18102_with_ann!AX58","v":2},{"$f":"[1]ACS_16_5YR_B18102_with_ann!AY58","v":3},{"$f":"[1]ACS_16_5YR_B18102_with_ann!AZ58","v":5},{"$f":"[1]ACS_16_5YR_B18102_with_ann!BA58","v":5},{"$f":"[1]ACS_16_5YR_B18102_with_ann!BB58","v":0},{"$f":"[1]ACS_16_5YR_B18102_with_ann!BC58","v":12},{"$f":"[1]ACS_16_5YR_B18102_with_ann!BD58","v":5},{"$f":"[1]ACS_16_5YR_B18102_with_ann!BE58","v":5},{"$f":"[1]ACS_16_5YR_B18102_with_ann!BF58","v":67},{"$f":"[1]ACS_16_5YR_B18102_with_ann!BG58","v":57},{"$f":"[1]ACS_16_5YR_B18102_with_ann!BH58","v":0},{"$f":"[1]ACS_16_5YR_B18102_with_ann!BI58","v":12},{"$f":"[1]ACS_16_5YR_B18102_with_ann!BJ58","v":67},{"$f":"[1]ACS_16_5YR_B18102_with_ann!BK58","v":57},{"$f":"[1]ACS_16_5YR_B18102_with_ann!BL58","v":66},{"$f":"[1]ACS_16_5YR_B18102_with_ann!BM58","v":30},{"$f":"[1]ACS_16_5YR_B18102_with_ann!BN58","v":28},{"$f":"[1]ACS_16_5YR_B18102_with_ann!BO58","v":23},{"$f":"[1]ACS_16_5YR_B18102_with_ann!BP58","v":38},{"$f":"[1]ACS_16_5YR_B18102_with_ann!BQ58","v":18},{"$f":"[1]ACS_16_5YR_B18102_with_ann!BR58","v":13},{"$f":"[1]ACS_16_5YR_B18102_with_ann!BS58","v":5},{"$f":"[1]ACS_16_5YR_B18102_with_ann!BT58","v":0},{"$f":"[1]ACS_16_5YR_B18102_with_ann!BU58","v":12},{"$f":"[1]ACS_16_5YR_B18102_with_ann!BV58","v":13},{"$f":"[1]ACS_16_5YR_B18102_with_ann!BW58","v":5},{"$f":"[1]ACS_16_5YR_B18102_with_ann!BX58","v":7},{"$f":"[1]ACS_16_5YR_B18102_with_ann!BY58","v":7},{"$f":"[1]ACS_16_5YR_B18102_with_ann!BZ58","v":4},{"$f":"[1]ACS_16_5YR_B18102_with_ann!CA58","v":6},{"$f":"[1]ACS_16_5YR_B18102_with_ann!CB58","v":3},{"$f":"[1]ACS_16_5YR_B18102_with_ann!CC58","v":4}]
["06000US3300573700","0600000US3300574900","060",{"$f":"[1]ACS_16_5YR_B18102_with_ann!C59","v":"Stoddard"},{"$f":"[1]ACS_16_5YR_B18102_with_ann!D59","v":1205},{"$f":"[1]ACS_16_5YR_B18102_with_ann!E59","v":162},{"$f":"[1]ACS_16_5YR_B18102_with_ann!F59","v":592},{"$f":"[1]ACS_16_5YR_B18102_with_ann!G59","v":98},{"$f":"[1]ACS_16_5YR_B18102_with_ann!H59","v":29},{"$f":"[1]ACS_16_5YR_B18102_with_ann!I59","v":16},{"$f":"[1]ACS_16_5YR_B18102_with_ann!J59","v":0},{"$f":"[1]ACS_16_5YR_B18102_with_ann!K59","v":12},{"$f":"[1]ACS_16_5YR_B18102_with_ann!L59","v":29},{"$f":"[1]ACS_16_5YR_B18102_with_ann!M59","v":16},{"$f":"[1]ACS_16_5YR_B18102_with_ann!N59","v":104},{"$f":"[1]ACS_16_5YR_B18102_with_ann!O59","v":62},{"$f":"[1]ACS_16_5YR_B18102_with_ann!P59","v":0},{"$f":"[1]ACS_16_5YR_B18102_with_ann!Q59","v":12},{"$f":"[1]ACS_16_5YR_B18102_with_ann!R59","v":104},{"$f":"[1]ACS_16_5YR_B18102_with_ann!S59","v":62},{"$f":"[1]ACS_16_5YR_B18102_with_ann!T59","v":81},{"$f":"[1]ACS_16_5YR_B18102_with_ann!U59","v":29},{"$f":"[1]ACS_16_5YR_B18102_with_ann!V59","v":2},{"$f":"[1]ACS_16_5YR_B18102_with_ann!W59","v":5},{"$f":"[1]ACS_16_5YR_B18102_with_ann!X59","v":79},{"$f":"[1]ACS_16_5YR_B18102_with_ann!Y59","v":29},{"$f":"[1]ACS_16_5YR_B18102_with_ann!Z59","v":279},{"$f":"[1]ACS_16_5YR_B18102_with_ann!AA59","v":49},{"$f":"[1]ACS_16_5YR_B18102_with_ann!AB59","v":11},{"$f":"[1]ACS_16_5YR_B18102_with_ann!AC59","v":9},{"$f":"[1]ACS_16_5YR_B18102_with_ann!AD59","v":268},{"$f":"[1]ACS_16_5YR_B18102_with_ann!AE59","v":48},{"$f":"[1]ACS_16_5YR_B18102_with_ann!AF59","v":68},{"$f":"[1]ACS_16_5YR_B18102_with_ann!AG59","v":17},{"$f":"[1]ACS_16_5YR_B18102_with_ann!AH59","v":5},{"$f":"[1]ACS_16_5YR_B18102_with_ann!AI59","v":6},{"$f":"[1]ACS_16_5YR_B18102_with_ann!AJ59","v":63},{"$f":"[1]ACS_16_5YR_B18102_with_ann!AK59","v":17},{"$f":"[1]ACS_16_5YR_B18102_with_ann!AL59","v":31},{"$f":"[1]ACS_16_5YR_B18102_with_ann!AM59","v":15},{"$f":"[1]ACS_16_5YR_B18102_with_ann!AN59","v":16},{"$f":"[1]ACS_16_5YR_B18102_with_ann!AO59","v":13},{"$f":"[1]ACS_16_5YR_B18102_with_ann!AP59","v":15},{"$f":"[1]ACS_16_5YR_B18102_with_ann!AQ59","v":8},{"$f":"[1]ACS_16_5YR_B18102_with_ann!AR59","v":613},{"$f":"[1]ACS_16_5YR_B18102_with_ann!AS59","v":91},{"$f":"[1]ACS_16_5YR_B18102_with_ann!AT59","v":29},{"$f":"[1]ACS_16_5YR_B18102_with_ann!AU59","v":23},{"$f":"[1]ACS_16_5YR_B18102_with_ann!AV59","v":0},{"$f":"[1]ACS_16_5YR_B18102_with_ann!AW59","v":12},{"$f":"[1]ACS_16_5YR_B18102_with_ann!AX59","v":29},{"$f":"[1]ACS_16_5YR_B18102_with_ann!AY59","v":23},{"$f":"[1]ACS_16_5YR_B18102_with_ann!AZ59","v":89},{"$f":"[1]ACS_16_5YR_B18102_with_ann!BA59","v":33},{"$f":"[1]ACS_16_5YR_B18102_with_ann!BB59","v":0},{"$f":"[1]ACS_16_5YR_B18102_with_ann!BC59","v":12},{"$f":"[1]ACS_16_5YR_B18102_with_ann!BD59","v":89},{"$f":"[1]ACS_16_5YR_B18102_with_ann!BE59","v":33},{"$f":"[1]ACS_16_5YR_B18102_with_ann!BF59","v":102},{"$f":"[1]ACS_16_5YR_B18102_with_ann!BG59","v":41},{"$f":"[1]ACS_16_5YR_B18102_with_ann!BH59","v":0},{"$f":"[1]ACS_16_5YR_B18102_with_ann!BI59","v":12},{"$f":"[1]ACS_16_5YR_B18102_with_ann!BJ59","v":102},{"$f":"[1]ACS_16_5YR_B18102_with_ann!BK59","v":41},{"$f":"[1]ACS_16_5YR_B18102_with_ann!BL59","v":257},{"$f":"[1]ACS_16_5YR_B18102_with_ann!BM59","v":49},{"$f":"[1]ACS_16_5YR_B18102_with_ann!BN59","v":0},{"$f":"[1]ACS_16_5YR_B18102_with_ann!BO59","v":12},{"$f":"[1]ACS_16_5YR_B18102_with_ann!BP59","v":257},{"$f":"[1]ACS_16_5YR_B18102_with_ann!BQ59","v":49},{"$f":"[1]ACS_16_5YR_B18102_with_ann!BR59","v":86},{"$f":"[1]ACS_16_5YR_B18102_with_ann!BS59","v":25},{"$f":"[1]ACS_16_5YR_B18102_with_ann!BT59","v":4},{"$f":"[1]ACS_16_5YR_B18102_with_ann!BU59","v":4},{"$f":"[1]ACS_16_5YR_B18102_with_ann!BV59","v":82},{"$f":"[1]ACS_16_5YR_B18102_with_ann!BW59","v":25},{"$f":"[1]ACS_16_5YR_B18102_with_ann!BX59","v":50},{"$f":"[1]ACS_16_5YR_B18102_with_ann!BY59","v":22},{"$f":"[1]ACS_16_5YR_B18102_with_ann!BZ59","v":7},{"$f":"[1]ACS_16_5YR_B18102_with_ann!CA59","v":9},{"$f":"[1]ACS_16_5YR_B18102_with_ann!CB59","v":43},{"$f":"[1]ACS_16_5YR_B18102_with_ann!CC59","v":20}]
["06000US3300574900","0600000US3300575300","060",{"$f":"[1]ACS_16_5YR_B18102_with_ann!C60","v":"Sullivan"},{"$f":"[1]ACS_16_5YR_B18102_with_ann!D60","v":681},{"$f":"[1]ACS_16_5YR_B18102_with_ann!E60","v":130},{"$f":"[1]ACS_16_5YR_B18102_with_ann!F60","v":342},{"$f":"[1]ACS_16_5YR_B18102_with_ann!G60","v":79},{"$f":"[1]ACS_16_5YR_B18102_with_ann!H60","v":35},{"$f":"[1]ACS_16_5YR_B18102_with_ann!I60","v":30},{"$f":"[1]ACS_16_5YR_B18102_with_ann!J60","v":0},{"$f":"[1]ACS_16_5YR_B18102_with_ann!K60","v":12},{"$f":"[1]ACS_16_5YR_B18102_with_ann!L60","v":35},{"$f":"[1]ACS_16_5YR_B18102_with_ann!M60","v":30},{"$f":"[1]ACS_16_5YR_B18102_with_ann!N60","v":18},{"$f":"[1]ACS_16_5YR_B18102_with_ann!O60","v":12},{"$f":"[1]ACS_16_5YR_B18102_with_ann!P60","v":0},{"$f":"[1]ACS_16_5YR_B18102_with_ann!Q60","v":12},{"$f":"[1]ACS_16_5YR_B18102_with_ann!R60","v":18},{"$f":"[1]ACS_16_5YR_B18102_with_ann!S60","v":12},{"$f":"[1]ACS_16_5YR_B18102_with_ann!T60","v":88},{"$f":"[1]ACS_16_5YR_B18102_with_ann!U60","v":36},{"$f":"[1]ACS_16_5YR_B18102_with_ann!V60","v":0},{"$f":"[1]ACS_16_5YR_B18102_with_ann!W60","v":12},{"$f":"[1]ACS_16_5YR_B18102_with_ann!X60","v":88},{"$f":"[1]ACS_16_5YR_B18102_with_ann!Y60","v":36},{"$f":"[1]ACS_16_5YR_B18102_with_ann!Z60","v":134},{"$f":"[1]ACS_16_5YR_B18102_with_ann!AA60","v":28},{"$f":"[1]ACS_16_5YR_B18102_with_ann!AB60","v":4},{"$f":"[1]ACS_16_5YR_B18102_with_ann!AC60","v":4},{"$f":"[1]ACS_16_5YR_B18102_with_ann!AD60","v":130},{"$f":"[1]ACS_16_5YR_B18102_with_ann!AE60","v":29},{"$f":"[1]ACS_16_5YR_B18102_with_ann!AF60","v":40},{"$f":"[1]ACS_16_5YR_B18102_with_ann!AG60","v":17},{"$f":"[1]ACS_16_5YR_B18102_with_ann!AH60","v":2},{"$f":"[1]ACS_16_5YR_B18102_with_ann!AI60","v":3},{"$f":"[1]ACS_16_5YR_B18102_with_ann!AJ60","v":38},{"$f":"[1]ACS_16_5YR_B18102_with_ann!AK60","v":17},{"$f":"[1]ACS_16_5YR_B18102_with_ann!AL60","v":27},{"$f":"[1]ACS_16_5YR_B18102_with_ann!AM60","v":14},{"$f":"[1]ACS_16_5YR_B18102_with_ann!AN60","v":12},{"$f":"[1]ACS_16_5YR_B18102_with_ann!AO60","v":11},{"$f":"[1]ACS_16_5YR_B18102_with_ann!AP60","v":15},{"$f":"[1]ACS_16_5YR_B18102_with_ann!AQ60","v":12},{"$f":"[1]ACS_16_5YR_B18102_with_ann!AR60","v":339},{"$f":"[1]ACS_16_5YR_B18102_with_ann!AS60","v":65},{"$f":"[1]ACS_16_5YR_B18102_with_ann!AT60","v":28},{"$f":"[1]ACS_16_5YR_B18102_with_ann!AU60","v":18},{"$f":"[1]ACS_16_5YR_B18102_with_ann!AV60","v":0},{"$f":"[1]ACS_16_5YR_B18102_with_ann!AW60","v":12},{"$f":"[1]ACS_16_5YR_B18102_with_ann!AX60","v":28},{"$f":"[1]ACS_16_5YR_B18102_with_ann!AY60","v":18},{"$f":"[1]ACS_16_5YR_B18102_with_ann!AZ60","v":30},{"$f":"[1]ACS_16_5YR_B18102_with_ann!BA60","v":15},{"$f":"[1]ACS_16_5YR_B18102_with_ann!BB60","v":0},{"$f":"[1]ACS_16_5YR_B18102_with_ann!BC60","v":12},{"$f":"[1]ACS_16_5YR_B18102_with_ann!BD60","v":30},{"$f":"[1]ACS_16_5YR_B18102_with_ann!BE60","v":15},{"$f":"[1]ACS_16_5YR_B18102_with_ann!BF60","v":74},{"$f":"[1]ACS_16_5YR_B18102_with_ann!BG60","v":37},{"$f":"[1]ACS_16_5YR_B18102_with_ann!BH60","v":0},{"$f":"[1]ACS_16_5YR_B18102_with_ann!BI60","v":12},{"$f":"[1]ACS_16_5YR_B18102_with_ann!BJ60","v":74},{"$f":"[1]ACS_16_5YR_B18102_with_ann!BK60","v":37},{"$f":"[1]ACS_16_5YR_B18102_with_ann!BL60","v":145},{"$f":"[1]ACS_16_5YR_B18102_with_ann!BM60","v":28},{"$f":"[1]ACS_16_5YR_B18102_with_ann!BN60","v":9},{"$f":"[1]ACS_16_5YR_B18102_with_ann!BO60","v":9},{"$f":"[1]ACS_16_5YR_B18102_with_ann!BP60","v":136},{"$f":"[1]ACS_16_5YR_B18102_with_ann!BQ60","v":28},{"$f":"[1]ACS_16_5YR_B18102_with_ann!BR60","v":40},{"$f":"[1]ACS_16_5YR_B18102_with_ann!BS60","v":14},{"$f":"[1]ACS_16_5YR_B18102_with_ann!BT60","v":7},{"$f":"[1]ACS_16_5YR_B18102_with_ann!BU60","v":8},{"$f":"[1]ACS_16_5YR_B18102_with_ann!BV60","v":33},{"$f":"[1]ACS_16_5YR_B18102_with_ann!BW60","v":13},{"$f":"[1]ACS_16_5YR_B18102_with_ann!BX60","v":22},{"$f":"[1]ACS_16_5YR_B18102_with_ann!BY60","v":13},{"$f":"[1]ACS_16_5YR_B18102_with_ann!BZ60","v":4},{"$f":"[1]ACS_16_5YR_B18102_with_ann!CA60","v":5},{"$f":"[1]ACS_16_5YR_B18102_with_ann!CB60","v":18},{"$f":"[1]ACS_16_5YR_B18102_with_ann!CC60","v":12}]
["06000US3300575300","0600000US3300575700","060",{"$f":"[1]ACS_16_5YR_B18102_with_ann!C61","v":"Surry"},{"$f":"[1]ACS_16_5YR_B18102_with_ann!D61","v":950},{"$f":"[1]ACS_16_5YR_B18102_with_ann!E61","v":245},{"$f":"[1]ACS_16_5YR_B18102_with_ann!F61","v":388},{"$f":"[1]ACS_16_5YR_B18102_with_ann!G61","v":72},{"$f":"[1]ACS_16_5YR_B18102_with_ann!H61","v":17},{"$f":"[1]ACS_16_5YR_B18102_with_ann!I61","v":13},{"$f":"[1]ACS_16_5YR_B18102_with_ann!J61","v":3},{"$f":"[1]ACS_16_5YR_B18102_with_ann!K61","v":4},{"$f":"[1]ACS_16_5YR_B18102_with_ann!L61","v":14},{"$f":"[1]ACS_16_5YR_B18102_with_ann!M61","v":11},{"$f":"[1]ACS_16_5YR_B18102_with_ann!N61","v":34},{"$f":"[1]ACS_16_5YR_B18102_with_ann!O61","v":16},{"$f":"[1]ACS_16_5YR_B18102_with_ann!P61","v":0},{"$f":"[1]ACS_16_5YR_B18102_with_ann!Q61","v":12},{"$f":"[1]ACS_16_5YR_B18102_with_ann!R61","v":34},{"$f":"[1]ACS_16_5YR_B18102_with_ann!S61","v":16},{"$f":"[1]ACS_16_5YR_B18102_with_ann!T61","v":49},{"$f":"[1]ACS_16_5YR_B18102_with_ann!U61","v":28},{"$f":"[1]ACS_16_5YR_B18102_with_ann!V61","v":0},{"$f":"[1]ACS_16_5YR_B18102_with_ann!W61","v":12},{"$f":"[1]ACS_16_5YR_B18102_with_ann!X61","v":49},{"$f":"[1]ACS_16_5YR_B18102_with_ann!Y61","v":28},{"$f":"[1]ACS_16_5YR_B18102_with_ann!Z61","v":164},{"$f":"[1]ACS_16_5YR_B18102_with_ann!AA61","v":44},{"$f":"[1]ACS_16_5YR_B18102_with_ann!AB61","v":8},{"$f":"[1]ACS_16_5YR_B18102_with_ann!AC61","v":8},{"$f":"[1]ACS_16_5YR_B18102_with_ann!AD61","v":156},{"$f":"[1]ACS_16_5YR_B18102_with_ann!AE61","v":44},{"$f":"[1]ACS_16_5YR_B18102_with_ann!AF61","v":80},{"$f":"[1]ACS_16_5YR_B18102_with_ann!AG61","v":34},{"$f":"[1]ACS_16_5YR_B18102_with_ann!AH61","v":16},{"$f":"[1]ACS_16_5YR_B18102_with_ann!AI61","v":13},{"$f":"[1]ACS_16_5YR_B18102_with_ann!AJ61","v":64},{"$f":"[1]ACS_16_5YR_B18102_with_ann!AK61","v":31},{"$f":"[1]ACS_16_5YR_B18102_with_ann!AL61","v":44},{"$f":"[1]ACS_16_5YR_B18102_with_ann!AM61","v":21},{"$f":"[1]ACS_16_5YR_B18102_with_ann!AN61","v":13},{"$f":"[1]ACS_16_5YR_B18102_with_ann!AO61","v":13},{"$f":"[1]ACS_16_5YR_B18102_with_ann!AP61","v":31},{"$f":"[1]ACS_16_5YR_B18102_with_ann!AQ61","v":16},{"$f":"[1]ACS_16_5YR_B18102_with_ann!AR61","v":562},{"$f":"[1]ACS_16_5YR_B18102_with_ann!AS61","v":203},{"$f":"[1]ACS_16_5YR_B18102_with_ann!AT61","v":47},{"$f":"[1]ACS_16_5YR_B18102_with_ann!AU61","v":47},{"$f":"[1]ACS_16_5YR_B18102_with_ann!AV61","v":29},{"$f":"[1]ACS_16_5YR_B18102_with_ann!AW61","v":45},{"$f":"[1]ACS_16_5YR_B18102_with_ann!AX61","v":18},{"$f":"[1]ACS_16_5YR_B18102_with_ann!AY61","v":12},{"$f":"[1]ACS_16_5YR_B18102_with_ann!AZ61","v":95},{"$f":"[1]ACS_16_5YR_B18102_with_ann!BA61","v":63},{"$f":"[1]ACS_16_5YR_B18102_with_ann!BB61","v":0},{"$f":"[1]ACS_16_5YR_B18102_with_ann!BC61","v":12},{"$f":"[1]ACS_16_5YR_B18102_with_ann!BD61","v":95},{"$f":"[1]ACS_16_5YR_B18102_with_ann!BE61","v":63},{"$f":"[1]ACS_16_5YR_B18102_with_ann!BF61","v":122},{"$f":"[1]ACS_16_5YR_B18102_with_ann!BG61","v":78},{"$f":"[1]ACS_16_5YR_B18102_with_ann!BH61","v":0},{"$f":"[1]ACS_16_5YR_B18102_with_ann!BI61","v":12},{"$f":"[1]ACS_16_5YR_B18102_with_ann!BJ61","v":122},{"$f":"[1]ACS_16_5YR_B18102_with_ann!BK61","v":78},{"$f":"[1]ACS_16_5YR_B18102_with_ann!BL61","v":179},{"$f":"[1]ACS_16_5YR_B18102_with_ann!BM61","v":54},{"$f":"[1]ACS_16_5YR_B18102_with_ann!BN61","v":4},{"$f":"[1]ACS_16_5YR_B18102_with_ann!BO61","v":4},{"$f":"[1]ACS_16_5YR_B18102_with_ann!BP61","v":175},{"$f":"[1]ACS_16_5YR_B18102_with_ann!BQ61","v":54},{"$f":"[1]ACS_16_5YR_B18102_with_ann!BR61","v":72},{"$f":"[1]ACS_16_5YR_B18102_with_ann!BS61","v":25},{"$f":"[1]ACS_16_5YR_B18102_with_ann!BT61","v":5},{"$f":"[1]ACS_16_5YR_B18102_with_ann!BU61","v":5},{"$f":"[1]ACS_16_5YR_B18102_with_ann!BV61","v":67},{"$f":"[1]ACS_16_5YR_B18102_with_ann!BW61","v":25},{"$f":"[1]ACS_16_5YR_B18102_with_ann!BX61","v":47},{"$f":"[1]ACS_16_5YR_B18102_with_ann!BY61","v":20},{"$f":"[1]ACS_16_5YR_B18102_with_ann!BZ61","v":13},{"$f":"[1]ACS_16_5YR_B18102_with_ann!CA61","v":9},{"$f":"[1]ACS_16_5YR_B18102_with_ann!CB61","v":34},{"$f":"[1]ACS_16_5YR_B18102_with_ann!CC61","v":19}]
["06000US3300575700","0600000US3300577380","060",{"$f":"[1]ACS_16_5YR_B18102_with_ann!C62","v":"Swanzey"},{"$f":"[1]ACS_16_5YR_B18102_with_ann!D62","v":7306},{"$f":"[1]ACS_16_5YR_B18102_with_ann!E62","v":22},{"$f":"[1]ACS_16_5YR_B18102_with_ann!F62","v":3563},{"$f":"[1]ACS_16_5YR_B18102_with_ann!G62","v":205},{"$f":"[1]ACS_16_5YR_B18102_with_ann!H62","v":125},{"$f":"[1]ACS_16_5YR_B18102_with_ann!I62","v":95},{"$f":"[1]ACS_16_5YR_B18102_with_ann!J62","v":0},{"$f":"[1]ACS_16_5YR_B18102_with_ann!K62","v":17},{"$f":"[1]ACS_16_5YR_B18102_with_ann!L62","v":125},{"$f":"[1]ACS_16_5YR_B18102_with_ann!M62","v":95},{"$f":"[1]ACS_16_5YR_B18102_with_ann!N62","v":425},{"$f":"[1]ACS_16_5YR_B18102_with_ann!O62","v":130},{"$f":"[1]ACS_16_5YR_B18102_with_ann!P62","v":0},{"$f":"[1]ACS_16_5YR_B18102_with_ann!Q62","v":17},{"$f":"[1]ACS_16_5YR_B18102_with_ann!R62","v":425},{"$f":"[1]ACS_16_5YR_B18102_with_ann!S62","v":130},{"$f":"[1]ACS_16_5YR_B18102_with_ann!T62","v":528},{"$f":"[1]ACS_16_5YR_B18102_with_ann!U62","v":182},{"$f":"[1]ACS_16_5YR_B18102_with_ann!V62","v":0},{"$f":"[1]ACS_16_5YR_B18102_with_ann!W62","v":17},{"$f":"[1]ACS_16_5YR_B18102_with_ann!X62","v":528},{"$f":"[1]ACS_16_5YR_B18102_with_ann!Y62","v":182},{"$f":"[1]ACS_16_5YR_B18102_with_ann!Z62","v":1568},{"$f":"[1]ACS_16_5YR_B18102_with_ann!AA62","v":216},{"$f":"[1]ACS_16_5YR_B18102_with_ann!AB62","v":13},{"$f":"[1]ACS_16_5YR_B18102_with_ann!AC62","v":34},{"$f":"[1]ACS_16_5YR_B18102_with_ann!AD62","v":1555},{"$f":"[1]ACS_16_5YR_B18102_with_ann!AE62","v":220},{"$f":"[1]ACS_16_5YR_B18102_with_ann!AF62","v":533},{"$f":"[1]ACS_16_5YR_B18102_with_ann!AG62","v":186},{"$f":"[1]ACS_16_5YR_B18102_with_ann!AH62","v":177},{"$f":"[1]ACS_16_5YR_B18102_with_ann!AI62","v":160},{"$f":"[1]ACS_16_5YR_B18102_with_ann!AJ62","v":356},{"$f":"[1]ACS_16_5YR_B18102_with_ann!AK62","v":108},{"$f":"[1]ACS_16_5YR_B18102_with_ann!AL62","v":384},{"$f":"[1]ACS_16_5YR_B18102_with_ann!AM62","v":157},{"$f":"[1]ACS_16_5YR_B18102_with_ann!AN62","v":168},{"$f":"[1]ACS_16_5YR_B18102_with_ann!AO62","v":117},{"$f":"[1]ACS_16_5YR_B18102_with_ann!AP62","v":216},{"$f":"[1]ACS_16_5YR_B18102_with_ann!AQ62","v":93},{"$f":"[1]ACS_16_5YR_B18102_with_ann!AR62","v":3743},{"$f":"[1]ACS_16_5YR_B18102_with_ann!AS62","v":209},{"$f":"[1]ACS_16_5YR_B18102_with_ann!AT62","v":110},{"$f":"[1]ACS_16_5YR_B18102_with_ann!AU62","v":82},{"$f":"[1]ACS_16_5YR_B18102_with_ann!AV62","v":0},{"$f":"[1]ACS_16_5YR_B18102_with_ann!AW62","v":17},{"$f":"[1]ACS_16_5YR_B18102_with_ann!AX62","v":110},{"$f":"[1]ACS_16_5YR_B18102_with_ann!AY62","v":82},{"$f":"[1]ACS_16_5YR_B18102_with_ann!AZ62","v":602},{"$f":"[1]ACS_16_5YR_B18102_with_ann!BA62","v":142},{"$f":"[1]ACS_16_5YR_B18102_with_ann!BB62","v":0},{"$f":"[1]ACS_16_5YR_B18102_with_ann!BC62","v":17},{"$f":"[1]ACS_16_5YR_B18102_with_ann!BD62","v":602},{"$f":"[1]ACS_16_5YR_B18102_with_ann!BE62","v":142},{"$f":"[1]ACS_16_5YR_B18102_with_ann!BF62","v":424},{"$f":"[1]ACS_16_5YR_B18102_with_ann!BG62","v":133},{"$f":"[1]ACS_16_5YR_B18102_with_ann!BH62","v":0},{"$f":"[1]ACS_16_5YR_B18102_with_ann!BI62","v":17},{"$f":"[1]ACS_16_5YR_B18102_with_ann!BJ62","v":424},{"$f":"[1]ACS_16_5YR_B18102_with_ann!BK62","v":133},{"$f":"[1]ACS_16_5YR_B18102_with_ann!BL62","v":1648},{"$f":"[1]ACS_16_5YR_B18102_with_ann!BM62","v":206},{"$f":"[1]ACS_16_5YR_B18102_with_ann!BN62","v":0},{"$f":"[1]ACS_16_5YR_B18102_with_ann!BO62","v":17},{"$f":"[1]ACS_16_5YR_B18102_with_ann!BP62","v":1648},{"$f":"[1]ACS_16_5YR_B18102_with_ann!BQ62","v":206},{"$f":"[1]ACS_16_5YR_B18102_with_ann!BR62","v":587},{"$f":"[1]ACS_16_5YR_B18102_with_ann!BS62","v":143},{"$f":"[1]ACS_16_5YR_B18102_with_ann!BT62","v":0},{"$f":"[1]ACS_16_5YR_B18102_with_ann!BU62","v":17},{"$f":"[1]ACS_16_5YR_B18102_with_ann!BV62","v":587},{"$f":"[1]ACS_16_5YR_B18102_with_ann!BW62","v":143},{"$f":"[1]ACS_16_5YR_B18102_with_ann!BX62","v":372},{"$f":"[1]ACS_16_5YR_B18102_with_ann!BY62","v":116},{"$f":"[1]ACS_16_5YR_B18102_with_ann!BZ62","v":67},{"$f":"[1]ACS_16_5YR_B18102_with_ann!CA62","v":83},{"$f":"[1]ACS_16_5YR_B18102_with_ann!CB62","v":305},{"$f":"[1]ACS_16_5YR_B18102_with_ann!CC62","v":110}]
["06000US3300577380","0600000US3300578420","060",{"$f":"[1]ACS_16_5YR_B18102_with_ann!C63","v":"Troy"},{"$f":"[1]ACS_16_5YR_B18102_with_ann!D63","v":1889},{"$f":"[1]ACS_16_5YR_B18102_with_ann!E63","v":275},{"$f":"[1]ACS_16_5YR_B18102_with_ann!F63","v":950},{"$f":"[1]ACS_16_5YR_B18102_with_ann!G63","v":177},{"$f":"[1]ACS_16_5YR_B18102_with_ann!H63","v":25},{"$f":"[1]ACS_16_5YR_B18102_with_ann!I63","v":22},{"$f":"[1]ACS_16_5YR_B18102_with_ann!J63","v":0},{"$f":"[1]ACS_16_5YR_B18102_with_ann!K63","v":12},{"$f":"[1]ACS_16_5YR_B18102_with_ann!L63","v":25},{"$f":"[1]ACS_16_5YR_B18102_with_ann!M63","v":22},{"$f":"[1]ACS_16_5YR_B18102_with_ann!N63","v":149},{"$f":"[1]ACS_16_5YR_B18102_with_ann!O63","v":79},{"$f":"[1]ACS_16_5YR_B18102_with_ann!P63","v":0},{"$f":"[1]ACS_16_5YR_B18102_with_ann!Q63","v":12},{"$f":"[1]ACS_16_5YR_B18102_with_ann!R63","v":149},{"$f":"[1]ACS_16_5YR_B18102_with_ann!S63","v":79},{"$f":"[1]ACS_16_5YR_B18102_with_ann!T63","v":191},{"$f":"[1]ACS_16_5YR_B18102_with_ann!U63","v":77},{"$f":"[1]ACS_16_5YR_B18102_with_ann!V63","v":0},{"$f":"[1]ACS_16_5YR_B18102_with_ann!W63","v":12},{"$f":"[1]ACS_16_5YR_B18102_with_ann!X63","v":191},{"$f":"[1]ACS_16_5YR_B18102_with_ann!Y63","v":77},{"$f":"[1]ACS_16_5YR_B18102_with_ann!Z63","v":419},{"$f":"[1]ACS_16_5YR_B18102_with_ann!AA63","v":95},{"$f":"[1]ACS_16_5YR_B18102_with_ann!AB63","v":0},{"$f":"[1]ACS_16_5YR_B18102_with_ann!AC63","v":12},{"$f":"[1]ACS_16_5YR_B18102_with_ann!AD63","v":419},{"$f":"[1]ACS_16_5YR_B18102_with_ann!AE63","v":95},{"$f":"[1]ACS_16_5YR_B18102_with_ann!AF63","v":121},{"$f":"[1]ACS_16_5YR_B18102_with_ann!AG63","v":49},{"$f":"[1]ACS_16_5YR_B18102_with_ann!AH63","v":32},{"$f":"[1]ACS_16_5YR_B18102_with_ann!AI63","v":27},{"$f":"[1]ACS_16_5YR_B18102_with_ann!AJ63","v":89},{"$f":"[1]ACS_16_5YR_B18102_with_ann!AK63","v":43},{"$f":"[1]ACS_16_5YR_B18102_with_ann!AL63","v":45},{"$f":"[1]ACS_16_5YR_B18102_with_ann!AM63","v":29},{"$f":"[1]ACS_16_5YR_B18102_with_ann!AN63","v":10},{"$f":"[1]ACS_16_5YR_B18102_with_ann!AO63","v":12},{"$f":"[1]ACS_16_5YR_B18102_with_ann!AP63","v":35},{"$f":"[1]ACS_16_5YR_B18102_with_ann!AQ63","v":28},{"$f":"[1]ACS_16_5YR_B18102_with_ann!AR63","v":939},{"$f":"[1]ACS_16_5YR_B18102_with_ann!AS63","v":136},{"$f":"[1]ACS_16_5YR_B18102_with_ann!AT63","v":106},{"$f":"[1]ACS_16_5YR_B18102_with_ann!AU63","v":55},{"$f":"[1]ACS_16_5YR_B18102_with_ann!AV63","v":0},{"$f":"[1]ACS_16_5YR_B18102_with_ann!AW63","v":12},{"$f":"[1]ACS_16_5YR_B18102_with_ann!AX63","v":106},{"$f":"[1]ACS_16_5YR_B18102_with_ann!AY63","v":55},{"$f":"[1]ACS_16_5YR_B18102_with_ann!AZ63","v":113},{"$f":"[1]ACS_16_5YR_B18102_with_ann!BA63","v":46},{"$f":"[1]ACS_16_5YR_B18102_with_ann!BB63","v":0},{"$f":"[1]ACS_16_5YR_B18102_with_ann!BC63","v":12},{"$f":"[1]ACS_16_5YR_B18102_with_ann!BD63","v":113},{"$f":"[1]ACS_16_5YR_B18102_with_ann!BE63","v":46},{"$f":"[1]ACS_16_5YR_B18102_with_ann!BF63","v":205},{"$f":"[1]ACS_16_5YR_B18102_with_ann!BG63","v":65},{"$f":"[1]ACS_16_5YR_B18102_with_ann!BH63","v":0},{"$f":"[1]ACS_16_5YR_B18102_with_ann!BI63","v":12},{"$f":"[1]ACS_16_5YR_B18102_with_ann!BJ63","v":205},{"$f":"[1]ACS_16_5YR_B18102_with_ann!BK63","v":65},{"$f":"[1]ACS_16_5YR_B18102_with_ann!BL63","v":352},{"$f":"[1]ACS_16_5YR_B18102_with_ann!BM63","v":89},{"$f":"[1]ACS_16_5YR_B18102_with_ann!BN63","v":0},{"$f":"[1]ACS_16_5YR_B18102_with_ann!BO63","v":12},{"$f":"[1]ACS_16_5YR_B18102_with_ann!BP63","v":352},{"$f":"[1]ACS_16_5YR_B18102_with_ann!BQ63","v":89},{"$f":"[1]ACS_16_5YR_B18102_with_ann!BR63","v":101},{"$f":"[1]ACS_16_5YR_B18102_with_ann!BS63","v":32},{"$f":"[1]ACS_16_5YR_B18102_with_ann!BT63","v":0},{"$f":"[1]ACS_16_5YR_B18102_with_ann!BU63","v":12},{"$f":"[1]ACS_16_5YR_B18102_with_ann!BV63","v":101},{"$f":"[1]ACS_16_5YR_B18102_with_ann!BW63","v":32},{"$f":"[1]ACS_16_5YR_B18102_with_ann!BX63","v":62},{"$f":"[1]ACS_16_5YR_B18102_with_ann!BY63","v":38},{"$f":"[1]ACS_16_5YR_B18102_with_ann!BZ63","v":11},{"$f":"[1]ACS_16_5YR_B18102_with_ann!CA63","v":17},{"$f":"[1]ACS_16_5YR_B18102_with_ann!CB63","v":51},{"$f":"[1]ACS_16_5YR_B18102_with_ann!CC63","v":33}]
["06000US3300578420","0600000US3300582660","060",{"$f":"[1]ACS_16_5YR_B18102_with_ann!C64","v":"Walpole"},{"$f":"[1]ACS_16_5YR_B18102_with_ann!D64","v":3651},{"$f":"[1]ACS_16_5YR_B18102_with_ann!E64","v":33},{"$f":"[1]ACS_16_5YR_B18102_with_ann!F64","v":1799},{"$f":"[1]ACS_16_5YR_B18102_with_ann!G64","v":162},{"$f":"[1]ACS_16_5YR_B18102_with_ann!H64","v":183},{"$f":"[1]ACS_16_5YR_B18102_with_ann!I64","v":89},{"$f":"[1]ACS_16_5YR_B18102_with_ann!J64","v":0},{"$f":"[1]ACS_16_5YR_B18102_with_ann!K64","v":12},{"$f":"[1]ACS_16_5YR_B18102_with_ann!L64","v":183},{"$f":"[1]ACS_16_5YR_B18102_with_ann!M64","v":89},{"$f":"[1]ACS_16_5YR_B18102_with_ann!N64","v":312},{"$f":"[1]ACS_16_5YR_B18102_with_ann!O64","v":115},{"$f":"[1]ACS_16_5YR_B18102_with_ann!P64","v":5},{"$f":"[1]ACS_16_5YR_B18102_with_ann!Q64","v":8},{"$f":"[1]ACS_16_5YR_B18102_with_ann!R64","v":307},{"$f":"[1]ACS_16_5YR_B18102_with_ann!S64","v":115},{"$f":"[1]ACS_16_5YR_B18102_with_ann!T64","v":366},{"$f":"[1]ACS_16_5YR_B18102_with_ann!U64","v":116},{"$f":"[1]ACS_16_5YR_B18102_with_ann!V64","v":0},{"$f":"[1]ACS_16_5YR_B18102_with_ann!W64","v":12},{"$f":"[1]ACS_16_5YR_B18102_with_ann!X64","v":366},{"$f":"[1]ACS_16_5YR_B18102_with_ann!Y64","v":116},{"$f":"[1]ACS_16_5YR_B18102_with_ann!Z64","v":571},{"$f":"[1]ACS_16_5YR_B18102_with_ann!AA64","v":100},{"$f":"[1]ACS_16_5YR_B18102_with_ann!AB64","v":41},{"$f":"[1]ACS_16_5YR_B18102_with_ann!AC64","v":50},{"$f":"[1]ACS_16_5YR_B18102_with_ann!AD64","v":530},{"$f":"[1]ACS_16_5YR_B18102_with_ann!AE64","v":99},{"$f":"[1]ACS_16_5YR_B18102_with_ann!AF64","v":271},{"$f":"[1]ACS_16_5YR_B18102_with_ann!AG64","v":74},{"$f":"[1]ACS_16_5YR_B18102_with_ann!AH64","v":6},{"$f":"[1]ACS_16_5YR_B18102_with_ann!AI64","v":11},{"$f":"[1]ACS_16_5YR_B18102_with_ann!AJ64","v":265},{"$f":"[1]ACS_16_5YR_B18102_with_ann!AK64","v":74},{"$f":"[1]ACS_16_5YR_B18102_with_ann!AL64","v":96},{"$f":"[1]ACS_16_5YR_B18102_with_ann!AM64","v":46},{"$f":"[1]ACS_16_5YR_B18102_with_ann!AN64","v":17},{"$f":"[1]ACS_16_5YR_B18102_with_ann!AO64","v":15},{"$f":"[1]ACS_16_5YR_B18102_with_ann!AP64","v":79},{"$f":"[1]ACS_16_5YR_B18102_with_ann!AQ64","v":44},{"$f":"[1]ACS_16_5YR_B18102_with_ann!AR64","v":1852},{"$f":"[1]ACS_16_5YR_B18102_with_ann!AS64","v":161},{"$f":"[1]ACS_16_5YR_B18102_with_ann!AT64","v":144},{"$f":"[1]ACS_16_5YR_B18102_with_ann!AU64","v":82},{"$f":"[1]ACS_16_5YR_B18102_with_ann!AV64","v":0},{"$f":"[1]ACS_16_5YR_B18102_with_ann!AW64","v":12},{"$f":"[1]ACS_16_5YR_B18102_with_ann!AX64","v":144},{"$f":"[1]ACS_16_5YR_B18102_with_ann!AY64","v":82},{"$f":"[1]ACS_16_5YR_B18102_with_ann!AZ64","v":287},{"$f":"[1]ACS_16_5YR_B18102_with_ann!BA64","v":98},{"$f":"[1]ACS_16_5YR_B18102_with_ann!BB64","v":0},{"$f":"[1]ACS_16_5YR_B18102_with_ann!BC64","v":12},{"$f":"[1]ACS_16_5YR_B18102_with_ann!BD64","v":287},{"$f":"[1]ACS_16_5YR_B18102_with_ann!BE64","v":98},{"$f":"[1]ACS_16_5YR_B18102_with_ann!BF64","v":318},{"$f":"[1]ACS_16_5YR_B18102_with_ann!BG64","v":144},{"$f":"[1]ACS_16_5YR_B18102_with_ann!BH64","v":0},{"$f":"[1]ACS_16_5YR_B18102_with_ann!BI64","v":12},{"$f":"[1]ACS_16_5YR_B18102_with_ann!BJ64","v":318},{"$f":"[1]ACS_16_5YR_B18102_with_ann!BK64","v":144},{"$f":"[1]ACS_16_5YR_B18102_with_ann!BL64","v":699},{"$f":"[1]ACS_16_5YR_B18102_with_ann!BM64","v":118},{"$f":"[1]ACS_16_5YR_B18102_with_ann!BN64","v":41},{"$f":"[1]ACS_16_5YR_B18102_with_ann!BO64","v":33},{"$f":"[1]ACS_16_5YR_B18102_with_ann!BP64","v":658},{"$f":"[1]ACS_16_5YR_B18102_with_ann!BQ64","v":112},{"$f":"[1]ACS_16_5YR_B18102_with_ann!BR64","v":182},{"$f":"[1]ACS_16_5YR_B18102_with_ann!BS64","v":50},{"$f":"[1]ACS_16_5YR_B18102_with_ann!BT64","v":8},{"$f":"[1]ACS_16_5YR_B18102_with_ann!BU64","v":13},{"$f":"[1]ACS_16_5YR_B18102_with_ann!BV64","v":174},{"$f":"[1]ACS_16_5YR_B18102_with_ann!BW64","v":44},{"$f":"[1]ACS_16_5YR_B18102_with_ann!BX64","v":222},{"$f":"[1]ACS_16_5YR_B18102_with_ann!BY64","v":100},{"$f":"[1]ACS_16_5YR_B18102_with_ann!BZ64","v":6},{"$f":"[1]ACS_16_5YR_B18102_with_ann!CA64","v":10},{"$f":"[1]ACS_16_5YR_B18102_with_ann!CB64","v":216},{"$f":"[1]ACS_16_5YR_B18102_with_ann!CC64","v":99}]
["06000US3300582660","0600000US3300585540","060",{"$f":"[1]ACS_16_5YR_B18102_with_ann!C65","v":"Westmoreland"},{"$f":"[1]ACS_16_5YR_B18102_with_ann!D65","v":1971},{"$f":"[1]ACS_16_5YR_B18102_with_ann!E65","v":342},{"$f":"[1]ACS_16_5YR_B18102_with_ann!F65","v":857},{"$f":"[1]ACS_16_5YR_B18102_with_ann!G65","v":162},{"$f":"[1]ACS_16_5YR_B18102_with_ann!H65","v":33},{"$f":"[1]ACS_16_5YR_B18102_with_ann!I65","v":31},{"$f":"[1]ACS_16_5YR_B18102_with_ann!J65","v":0},{"$f":"[1]ACS_16_5YR_B18102_with_ann!K65","v":12},{"$f":"[1]ACS_16_5YR_B18102_with_ann!L65","v":33},{"$f":"[1]ACS_16_5YR_B18102_with_ann!M65","v":31},{"$f":"[1]ACS_16_5YR_B18102_with_ann!N65","v":51},{"$f":"[1]ACS_16_5YR_B18102_with_ann!O65","v":27},{"$f":"[1]ACS_16_5YR_B18102_with_ann!P65","v":0},{"$f":"[1]ACS_16_5YR_B18102_with_ann!Q65","v":12},{"$f":"[1]ACS_16_5YR_B18102_with_ann!R65","v":51},{"$f":"[1]ACS_16_5YR_B18102_with_ann!S65","v":27},{"$f":"[1]ACS_16_5YR_B18102_with_ann!T65","v":117},{"$f":"[1]ACS_16_5YR_B18102_with_ann!U65","v":52},{"$f":"[1]ACS_16_5YR_B18102_with_ann!V65","v":3},{"$f":"[1]ACS_16_5YR_B18102_with_ann!W65","v":6},{"$f":"[1]ACS_16_5YR_B18102_with_ann!X65","v":114},{"$f":"[1]ACS_16_5YR_B18102_with_ann!Y65","v":51},{"$f":"[1]ACS_16_5YR_B18102_with_ann!Z65","v":395},{"$f":"[1]ACS_16_5YR_B18102_with_ann!AA65","v":97},{"$f":"[1]ACS_16_5YR_B18102_with_ann!AB65","v":29},{"$f":"[1]ACS_16_5YR_B18102_with_ann!AC65","v":42},{"$f":"[1]ACS_16_5YR_B18102_with_ann!AD65","v":366},{"$f":"[1]ACS_16_5YR_B18102_with_ann!AE65","v":85},{"$f":"[1]ACS_16_5YR_B18102_with_ann!AF65","v":156},{"$f":"[1]ACS_16_5YR_B18102_with_ann!AG65","v":50},{"$f":"[1]ACS_16_5YR_B18102_with_ann!AH65","v":19},{"$f":"[1]ACS_16_5YR_B18102_with_ann!AI65","v":19},{"$f":"[1]ACS_16_5YR_B18102_with_ann!AJ65","v":137},{"$f":"[1]ACS_16_5YR_B18102_with_ann!AK65","v":45},{"$f":"[1]ACS_16_5YR_B18102_with_ann!AL65","v":105},{"$f":"[1]ACS_16_5YR_B18102_with_ann!AM65","v":66},{"$f":"[1]ACS_16_5YR_B18102_with_ann!AN65","v":12},{"$f":"[1]ACS_16_5YR_B18102_with_ann!AO65","v":11},{"$f":"[1]ACS_16_5YR_B18102_with_ann!AP65","v":93},{"$f":"[1]ACS_16_5YR_B18102_with_ann!AQ65","v":60},{"$f":"[1]ACS_16_5YR_B18102_with_ann!AR65","v":1114},{"$f":"[1]ACS_16_5YR_B18102_with_ann!AS65","v":217},{"$f":"[1]ACS_16_5YR_B18102_with_ann!AT65","v":47},{"$f":"[1]ACS_16_5YR_B18102_with_ann!AU65","v":41},{"$f":"[1]ACS_16_5YR_B18102_with_ann!AV65","v":0},{"$f":"[1]ACS_16_5YR_B18102_with_ann!AW65","v":12},{"$f":"[1]ACS_16_5YR_B18102_with_ann!AX65","v":47},{"$f":"[1]ACS_16_5YR_B18102_with_ann!AY65","v":41},{"$f":"[1]ACS_16_5YR_B18102_with_ann!AZ65","v":180},{"$f":"[1]ACS_16_5YR_B18102_with_ann!BA65","v":81},{"$f":"[1]ACS_16_5YR_B18102_with_ann!BB65","v":0},{"$f":"[1]ACS_16_5YR_B18102_with_ann!BC65","v":12},{"$f":"[1]ACS_16_5YR_B18102_with_ann!BD65","v":180},{"$f":"[1]ACS_16_5YR_B18102_with_ann!BE65","v":81},{"$f":"[1]ACS_16_5YR_B18102_with_ann!BF65","v":119},{"$f":"[1]ACS_16_5YR_B18102_with_ann!BG65","v":67},{"$f":"[1]ACS_16_5YR_B18102_with_ann!BH65","v":0},{"$f":"[1]ACS_16_5YR_B18102_with_ann!BI65","v":12},{"$f":"[1]ACS_16_5YR_B18102_with_ann!BJ65","v":119},{"$f":"[1]ACS_16_5YR_B18102_with_ann!BK65","v":67},{"$f":"[1]ACS_16_5YR_B18102_with_ann!BL65","v":430},{"$f":"[1]ACS_16_5YR_B18102_with_ann!BM65","v":101},{"$f":"[1]ACS_16_5YR_B18102_with_ann!BN65","v":3},{"$f":"[1]ACS_16_5YR_B18102_with_ann!BO65","v":5},{"$f":"[1]ACS_16_5YR_B18102_with_ann!BP65","v":427},{"$f":"[1]ACS_16_5YR_B18102_with_ann!BQ65","v":101},{"$f":"[1]ACS_16_5YR_B18102_with_ann!BR65","v":215},{"$f":"[1]ACS_16_5YR_B18102_with_ann!BS65","v":110},{"$f":"[1]ACS_16_5YR_B18102_with_ann!BT65","v":0},{"$f":"[1]ACS_16_5YR_B18102_with_ann!BU65","v":12},{"$f":"[1]ACS_16_5YR_B18102_with_ann!BV65","v":215},{"$f":"[1]ACS_16_5YR_B18102_with_ann!BW65","v":110},{"$f":"[1]ACS_16_5YR_B18102_with_ann!BX65","v":123},{"$f":"[1]ACS_16_5YR_B18102_with_ann!BY65","v":45},{"$f":"[1]ACS_16_5YR_B18102_with_ann!BZ65","v":15},{"$f":"[1]ACS_16_5YR_B18102_with_ann!CA65","v":16},{"$f":"[1]ACS_16_5YR_B18102_with_ann!CB65","v":108},{"$f":"[1]ACS_16_5YR_B18102_with_ann!CC65","v":41}]
["06000US3300585540","0600000US3300500820","060",{"$f":"[1]ACS_16_5YR_B18102_with_ann!C66","v":"Winchester"},{"$f":"[1]ACS_16_5YR_B18102_with_ann!D66","v":4094},{"$f":"[1]ACS_16_5YR_B18102_with_ann!E66","v":24},{"$f":"[1]ACS_16_5YR_B18102_with_ann!F66","v":1968},{"$f":"[1]ACS_16_5YR_B18102_with_ann!G66","v":182},{"$f":"[1]ACS_16_5YR_B18102_with_ann!H66","v":102},{"$f":"[1]ACS_16_5YR_B18102_with_ann!I66","v":62},{"$f":"[1]ACS_16_5YR_B18102_with_ann!J66","v":0},{"$f":"[1]ACS_16_5YR_B18102_with_ann!K66","v":12},{"$f":"[1]ACS_16_5YR_B18102_with_ann!L66","v":102},{"$f":"[1]ACS_16_5YR_B18102_with_ann!M66","v":62},{"$f":"[1]ACS_16_5YR_B18102_with_ann!N66","v":311},{"$f":"[1]ACS_16_5YR_B18102_with_ann!O66","v":122},{"$f":"[1]ACS_16_5YR_B18102_with_ann!P66","v":0},{"$f":"[1]ACS_16_5YR_B18102_with_ann!Q66","v":12},{"$f":"[1]ACS_16_5YR_B18102_with_ann!R66","v":311},{"$f":"[1]ACS_16_5YR_B18102_with_ann!S66","v":122},{"$f":"[1]ACS_16_5YR_B18102_with_ann!T66","v":388},{"$f":"[1]ACS_16_5YR_B18102_with_ann!U66","v":118},{"$f":"[1]ACS_16_5YR_B18102_with_ann!V66","v":0},{"$f":"[1]ACS_16_5YR_B18102_with_ann!W66","v":12},{"$f":"[1]ACS_16_5YR_B18102_with_ann!X66","v":388},{"$f":"[1]ACS_16_5YR_B18102_with_ann!Y66","v":118},{"$f":"[1]ACS_16_5YR_B18102_with_ann!Z66","v":910},{"$f":"[1]ACS_16_5YR_B18102_with_ann!AA66","v":152},{"$f":"[1]ACS_16_5YR_B18102_with_ann!AB66","v":28},{"$f":"[1]ACS_16_5YR_B18102_with_ann!AC66","v":26},{"$f":"[1]ACS_16_5YR_B18102_with_ann!AD66","v":882},{"$f":"[1]ACS_16_5YR_B18102_with_ann!AE66","v":144},{"$f":"[1]ACS_16_5YR_B18102_with_ann!AF66","v":193},{"$f":"[1]ACS_16_5YR_B18102_with_ann!AG66","v":70},{"$f":"[1]ACS_16_5YR_B18102_with_ann!AH66","v":60},{"$f":"[1]ACS_16_5YR_B18102_with_ann!AI66","v":35},{"$f":"[1]ACS_16_5YR_B18102_with_ann!AJ66","v":133},{"$f":"[1]ACS_16_5YR_B18102_with_ann!AK66","v":61},{"$f":"[1]ACS_16_5YR_B18102_with_ann!AL66","v":64},{"$f":"[1]ACS_16_5YR_B18102_with_ann!AM66","v":35},{"$f":"[1]ACS_16_5YR_B18102_with_ann!AN66","v":0},{"$f":"[1]ACS_16_5YR_B18102_with_ann!AO66","v":12},{"$f":"[1]ACS_16_5YR_B18102_with_ann!AP66","v":64},{"$f":"[1]ACS_16_5YR_B18102_with_ann!AQ66","v":35},{"$f":"[1]ACS_16_5YR_B18102_with_ann!AR66","v":2126},{"$f":"[1]ACS_16_5YR_B18102_with_ann!AS66","v":181},{"$f":"[1]ACS_16_5YR_B18102_with_ann!AT66","v":237},{"$f":"[1]ACS_16_5YR_B18102_with_ann!AU66","v":122},{"$f":"[1]ACS_16_5YR_B18102_with_ann!AV66","v":0},{"$f":"[1]ACS_16_5YR_B18102_with_ann!AW66","v":12},{"$f":"[1]ACS_16_5YR_B18102_with_ann!AX66","v":237},{"$f":"[1]ACS_16_5YR_B18102_with_ann!AY66","v":122},{"$f":"[1]ACS_16_5YR_B18102_with_ann!AZ66","v":289},{"$f":"[1]ACS_16_5YR_B18102_with_ann!BA66","v":127},{"$f":"[1]ACS_16_5YR_B18102_with_ann!BB66","v":0},{"$f":"[1]ACS_16_5YR_B18102_with_ann!BC66","v":12},{"$f":"[1]ACS_16_5YR_B18102_with_ann!BD66","v":289},{"$f":"[1]ACS_16_5YR_B18102_with_ann!BE66","v":127},{"$f":"[1]ACS_16_5YR_B18102_with_ann!BF66","v":492},{"$f":"[1]ACS_16_5YR_B18102_with_ann!BG66","v":192},{"$f":"[1]ACS_16_5YR_B18102_with_ann!BH66","v":0},{"$f":"[1]ACS_16_5YR_B18102_with_ann!BI66","v":12},{"$f":"[1]ACS_16_5YR_B18102_with_ann!BJ66","v":492},{"$f":"[1]ACS_16_5YR_B18102_with_ann!BK66","v":192},{"$f":"[1]ACS_16_5YR_B18102_with_ann!BL66","v":753},{"$f":"[1]ACS_16_5YR_B18102_with_ann!BM66","v":132},{"$f":"[1]ACS_16_5YR_B18102_with_ann!BN66","v":32},{"$f":"[1]ACS_16_5YR_B18102_with_ann!BO66","v":30},{"$f":"[1]ACS_16_5YR_B18102_with_ann!BP66","v":721},{"$f":"[1]ACS_16_5YR_B18102_with_ann!BQ66","v":135},{"$f":"[1]ACS_16_5YR_B18102_with_ann!BR66","v":204},{"$f":"[1]ACS_16_5YR_B18102_with_ann!BS66","v":79},{"$f":"[1]ACS_16_5YR_B18102_with_ann!BT66","v":9},{"$f":"[1]ACS_16_5YR_B18102_with_ann!BU66","v":14},{"$f":"[1]ACS_16_5YR_B18102_with_ann!BV66","v":195},{"$f":"[1]ACS_16_5YR_B18102_with_ann!BW66","v":78},{"$f":"[1]ACS_16_5YR_B18102_with_ann!BX66","v":151},{"$f":"[1]ACS_16_5YR_B18102_with_ann!BY66","v":66},{"$f":"[1]ACS_16_5YR_B18102_with_ann!BZ66","v":38},{"$f":"[1]ACS_16_5YR_B18102_with_ann!CA66","v":39},{"$f":"[1]ACS_16_5YR_B18102_with_ann!CB66","v":113},{"$f":"[1]ACS_16_5YR_B18102_with_ann!CC66","v":51}]
[]
[]
[]
[null,null,null,null,{"$f":"$D$3","v":"Alstead"},null,{"$f":"$D$4","v":"Chesterfield"},null,{"$f":"$D$5","v":"Dublin"},null,{"$f":"$D$6","v":"Fitzwilliam"},null,{"$f":"$D$7","v":"Gilsum"},null,{"$f":"$D$8","v":"Harrisville"},null,{"$f":"$D$9","v":"Hinsdale"},null,{"$f":"$D$10","v":"Jaffrey"},null,{"$f":"$D$11","v":"Keene"},null,{"$f":"$D$12","v":"Marlborough"},null,{"$f":"$D$13","v":"Marlow"},null,{"$f":"$D$14","v":"Nelson"},null,{"$f":"$D$15","v":"Richmond"},null,{"$f":"$D$16","v":"Rindge"},null,{"$f":"$D$17","v":"Roxbury"},null,{"$f":"$D$18","v":"Stoddard"},null,{"$f":"$D$19","v":"Sullivan"},null,{"$f":"$D$20","v":"Surry"},null,{"$f":"$D$21","v":"Swanzey"},null,{"$f":"$D$22","v":"Troy"},null,{"$f":"$D$23","v":"Walpole"},null,{"$f":"$D$24","v":"Westmoreland"},null,{"$f":"$D$25","v":"Winchester"}]
[null,null,null,null,"Estimate","Margin of Error","Estimate","Margin of Error","Estimate","Margin of Error","Estimate","Margin of Error","Estimate","Margin of Error","Estimate","Margin of Error","Estimate","Margin of Error","Estimate","Margin of Error","Estimate","Margin of Error","Estimate","Margin of Error","Estimate","Margin of Error","Estimate","Margin of Error","Estimate","Margin of Error","Estimate","Margin of Error","Estimate","Margin of Error","Estimate","Margin of Error","Estimate","Margin of Error","Estimate","Margin of Error","Estimate","Margin of Error","Estimate","Margin of Error","Estimate","Margin of Error","Estimate","Margin of Error","Estimate","Margin of Error"]
[null,null,null,"Estimate!!Total:",1599,169,3577,15,1711,216,2287,368,871,144,977,197,3965,16,5299,31,22429,47,2253,391,803,175,550,106,1104,251,6443,18,295,142,1205,162,681,130,950,245,7306,22,1889,275,3651,33,1971,342,4094,24]
[null,null,null,"Estimate!!Total:!!Male:",770,116,2000,139,800,118,1203,216,452,88,461,95,2090,205,2731,216,10985,396,1005,199,364,80,252,50,595,161,3162,187,135,70,592,98,342,79,388,72,3563,205,950,177,1799,162,857,162,1968,182]
[null,null,null,"Estimate!!Total:!!Male:!!Under 5 years:",12,11,121,74,24,19,33,23,33,23,42,33,26,38,114,89,485,125,76,60,23,26,15,8,38,31,144,96,36,37,29,16,35,30,17,13,125,95,25,22,183,89,33,31,102,62]
[null,null,null,"Estimate!!Total:!!Male:!!Under 5 years:!!With a hearing difficulty",0,12,0,12,0,12,0,12,0,12,0,12,0,12,0,17,0,22,0,12,0,12,0,12,0,12,0,17,0,12,0,12,0,12,3,4,0,17,0,12,0,12,0,12,0,12]
[null,null,null,"Estimate!!Total:!!Male:!!Under 5 years:!!No hearing difficulty",12,11,121,74,24,19,33,23,33,23,42,33,26,38,114,89,485,125,76,60,23,26,15,8,38,31,144,96,36,37,29,16,35,30,14,11,125,95,25,22,183,89,33,31,102,62]
[null,null,null,"Estimate!!Total:!!Male:!!5 to 17 years:",96,55,452,132,97,40,101,36,52,31,47,26,277,125,566,154,1379,180,129,64,37,23,17,12,82,37,470,153,4,6,104,62,18,12,34,16,425,130,149,79,312,115,51,27,311,122]
[null,null,null,"Estimate!!Total:!!Male:!!5 to 17 years:!!With a hearing difficulty",0,12,0,12,0,12,0,12,0,12,0,12,0,12,0,17,21,31,0,12,0,12,0,12,0,12,0,17,0,12,0,12,0,12,0,12,0,17,0,12,5,8,0,12,0,12]
[null,null,null,"Estimate!!Total:!!Male:!!5 to 17 years:!!No hearing difficulty",96,55,452,132,97,40,101,36,52,31,47,26,277,125,566,154,1358,177,129,64,37,23,17,12,82,37,470,153,4,6,104,62,18,12,34,16,425,130,149,79,307,115,51,27,311,122]
[null,null,null,"Estimate!!Total:!!Male:!!18 to 34 years:",147,61,366,146,136,55,226,92,119,56,38,20,294,122,408,190,3702,372,175,92,53,32,25,15,110,61,941,135,17,10,81,29,88,36,49,28,528,182,191,77,366,116,117,52,388,118]
[null,null,null,"Estimate!!Total:!!Male:!!18 to 34 years:!!With a hearing difficulty",0,12,0,12,0,12,0,12,0,12,0,12,0,12,0,17,47,59,0,12,0,12,0,12,0,12,15,22,0,12,2,5,0,12,0,12,0,17,0,12,0,12,3,6,0,12]
[null,null,null,"Estimate!!Total:!!Male:!!18 to 34 years:!!No hearing difficulty",147,61,366,146,136,55,226,92,119,56,38,20,294,122,408,190,3655,384,175,92,53,32,25,15,110,61,926,135,17,10,79,29,88,36,49,28,528,182,191,77,366,116,114,51,388,118]
[null,null,null,"Estimate!!Total:!!Male:!!35 to 64 years:",357,76,537,175,338,83,605,177,158,38,190,52,878,165,1310,200,3790,283,440,108,153,41,116,30,192,53,983,154,65,37,279,49,134,28,164,44,1568,216,419,95,571,100,395,97,910,152]
[null,null,null,"Estimate!!Total:!!Male:!!35 to 64 years:!!With a hearing difficulty",7,9,0,12,8,7,56,40,12,12,1,2,76,89,0,17,186,100,0,12,7,11,0,12,7,7,22,31,2,3,11,9,4,4,8,8,13,34,0,12,41,50,29,42,28,26]
[null,null,null,"Estimate!!Total:!!Male:!!35 to 64 years:!!No hearing difficulty",350,77,537,175,330,82,549,176,146,37,189,52,802,140,1310,200,3604,279,440,108,146,39,116,30,185,55,961,154,63,37,268,48,130,29,156,44,1555,220,419,95,530,99,366,85,882,144]
[null,null,null,"Estimate!!Total:!!Male:!!65 to 74 years:",106,42,367,125,153,64,195,55,76,29,91,28,433,236,159,87,899,135,83,37,75,38,59,21,145,100,428,106,10,6,68,17,40,17,80,34,533,186,121,49,271,74,156,50,193,70]
[null,null,null,"Estimate!!Total:!!Male:!!65 to 74 years:!!With a hearing difficulty",24,20,53,80,16,17,39,33,5,5,7,8,210,222,40,42,125,71,0,12,2,3,4,6,17,13,16,16,0,12,5,6,2,3,16,13,177,160,32,27,6,11,19,19,60,35]
[null,null,null,"Estimate!!Total:!!Male:!!65 to 74 years:!!No hearing difficulty",82,38,314,125,137,63,156,43,71,28,84,28,223,114,119,75,774,144,83,37,73,38,55,20,128,96,412,112,10,6,63,17,38,17,64,31,356,108,89,43,265,74,137,45,133,61]
[null,null,null,"Estimate!!Total:!!Male:!!75 years and over:",52,33,157,80,52,26,43,19,14,10,53,20,182,113,174,110,730,148,102,43,23,13,20,10,28,16,196,97,3,3,31,15,27,14,44,21,384,157,45,29,96,46,105,66,64,35]
[null,null,null,"Estimate!!Total:!!Male:!!75 years and over:!!With a hearing difficulty",12,12,41,37,0,12,14,11,5,5,17,14,103,119,46,58,176,81,32,33,2,3,11,8,22,15,22,29,1,2,16,13,12,11,13,13,168,117,10,12,17,15,12,11,0,12]
[null,null,null,"Estimate!!Total:!!Male:!!75 years and over:!!No hearing difficulty",40,30,116,79,52,26,29,16,9,9,36,16,79,50,128,96,554,150,70,32,21,12,9,6,6,7,174,92,2,3,15,8,15,12,31,16,216,93,35,28,79,44,93,60,64,35]
[null,null,null,"Estimate!!Total:!!Female:",829,95,1577,140,911,135,1084,188,419,74,516,110,1875,204,2568,218,11444,392,1248,240,439,110,298,67,509,121,3281,187,160,78,613,91,339,65,562,203,3743,209,939,136,1852,161,1114,217,2126,181]
[null,null,null,"Estimate!!Total:!!Female:!!Under 5 years:",20,19,20,30,57,32,45,46,26,17,8,8,58,46,28,48,387,112,140,107,19,19,7,7,10,14,116,74,2,3,29,23,28,18,47,47,110,82,106,55,144,82,47,41,237,122]
[null,null,null,"Estimate!!Total:!!Female:!!Under 5 years:!!With a hearing difficulty",0,12,0,12,0,12,0,12,0,12,0,12,0,12,0,17,0,22,0,12,0,12,0,12,0,12,0,17,0,12,0,12,0,12,29,45,0,17,0,12,0,12,0,12,0,12]
[null,null,null,"Estimate!!Total:!!Female:!!Under 5 years:!!No hearing difficulty",20,19,20,30,57,32,45,46,26,17,8,8,58,46,28,48,387,112,140,107,19,19,7,7,10,14,116,74,2,3,29,23,28,18,18,12,110,82,106,55,144,82,47,41,237,122]
[null,null,null,"Estimate!!Total:!!Female:!!5 to 17 years:",100,34,144,80,149,44,106,53,38,29,52,39,225,70,617,129,1041,198,198,77,116,56,46,30,58,27,443,150,5,5,89,33,30,15,95,63,602,142,113,46,287,98,180,81,289,127]
[null,null,null,"Estimate!!Total:!!Female:!!5 to 17 years:!!With a hearing difficulty",0,12,0,12,0,12,0,12,0,12,0,12,0,12,0,17,31,30,0,12,0,12,0,12,0,12,0,17,0,12,0,12,0,12,0,12,0,17,0,12,0,12,0,12,0,12]
[null,null,null,"Estimate!!Total:!!Female:!!5 to 17 years:!!No hearing difficulty",100,34,144,80,149,44,106,53,38,29,52,39,225,70,617,129,1010,199,198,77,116,56,46,30,58,27,443,150,5,5,89,33,30,15,95,63,602,142,113,46,287,98,180,81,289,127]
[null,null,null,"Estimate!!Total:!!Female:!!18 to 34 years:",117,55,323,125,63,26,151,78,95,35,89,40,306,147,307,170,3991,285,117,53,72,40,27,18,69,47,1002,156,67,57,102,41,74,37,122,78,424,133,205,65,318,144,119,67,492,192]
[null,null,null,"Estimate!!Total:!!Female:!!18 to 34 years:!!With a hearing difficulty",0,12,0,12,0,12,0,12,0,12,0,12,0,12,0,17,73,79,0,12,0,12,0,12,0,12,26,44,0,12,0,12,0,12,0,12,0,17,0,12,0,12,0,12,0,12]
[null,null,null,"Estimate!!Total:!!Female:!!18 to 34 years:!!No hearing difficulty",117,55,323,125,63,26,151,78,95,35,89,40,306,147,307,170,3918,278,117,53,72,40,27,18,69,47,976,149,67,57,102,41,74,37,122,78,424,133,205,65,318,144,119,67,492,192]
[null,null,null,"Estimate!!Total:!!Female:!!35 to 64 years:",329,67,729,167,404,97,484,84,170,44,220,61,843,127,1144,160,3688,301,586,139,132,39,140,38,226,60,1067,134,66,30,257,49,145,28,179,54,1648,206,352,89,699,118,430,101,753,132]
[null,null,null,"Estimate!!Total:!!Female:!!35 to 64 years:!!With a hearing difficulty",14,13,0,12,0,12,4,8,2,3,6,6,14,17,56,66,170,100,13,13,0,12,0,12,10,12,25,30,28,23,0,12,9,9,4,4,0,17,0,12,41,33,3,5,32,30]
[null,null,null,"Estimate!!Total:!!Female:!!35 to 64 years:!!No hearing difficulty",315,69,729,167,404,97,480,86,168,43,214,60,829,125,1088,146,3518,308,573,136,132,39,140,38,216,58,1042,135,38,18,257,49,136,28,175,54,1648,206,352,89,658,112,427,101,721,135]
[null,null,null,"Estimate!!Total:!!Female:!!65 to 74 years:",173,71,244,110,162,54,251,106,58,25,107,30,214,97,276,101,1300,181,120,51,67,38,48,17,69,30,431,102,13,5,86,25,40,14,72,25,587,143,101,32,182,50,215,110,204,79]
[null,null,null,"Estimate!!Total:!!Female:!!65 to 74 years:!!With a hearing difficulty",5,7,0,12,3,4,4,6,0,12,2,5,0,12,23,30,171,101,0,12,1,2,4,4,7,8,32,31,0,12,4,4,7,8,5,5,0,17,0,12,8,13,0,12,9,14]
[null,null,null,"Estimate!!Total:!!Female:!!65 to 74 years:!!No hearing difficulty",168,71,244,110,159,55,247,105,58,25,105,30,214,97,253,96,1129,171,120,51,66,38,44,16,62,30,399,110,13,5,82,25,33,13,67,25,587,143,101,32,174,44,215,110,195,78]
[null,null,null,"Estimate!!Total:!!Female:!!75 years and over:",90,47,117,76,76,51,47,27,32,14,40,22,229,155,196,97,1037,197,87,42,33,18,30,21,77,40,222,107,7,7,50,22,22,13,47,20,372,116,62,38,222,100,123,45,151,66]
[null,null,null,"Estimate!!Total:!!Female:!!75 years and over:!!With a hearing difficulty",0,12,10,16,6,6,4,7,4,6,3,4,33,38,28,31,212,155,5,7,0,12,3,8,37,34,117,94,4,6,7,9,4,5,13,9,67,83,11,17,6,10,15,16,38,39]
[null,null,null,"Estimate!!Total:!!Female:!!75 years and over:!!No hearing difficulty",90,47,107,73,70,50,43,26,28,13,37,22,196,152,168,95,825,165,82,41,33,18,27,16,40,23,105,58,3,4,43,20,18,12,34,19,305,110,51,33,216,99,108,41,113,51]

{"sheet":"ACS_Table_B18102","index":42,"n_rows":156,"n_cols":48,"rows_kept":156,"cut":false,"hidden":true,"merged":[]}
["B18102. SEX BY AGE BY HEARING DIFFICULTY\n\n"]
["Universe:  Civilian noninstitutionalized population"]
["Data Set: 2018-2022 American Community Survey 5-Year Estimates"]
[]
[null,null,"Alstead",null,"Chesterfield",null,"Dublin",null,"Fitzwilliam",null,"Gilsum",null,"Harrisville",null,"Hinsdale",null,"Jaffrey",null,"Keene",null,"Marlborough",null,"Marlow",null,"Nelson",null,"Richmond",null,"Rindge",null,"Roxbury",null,"Stoddard",null,"Sullivan",null,"Surry",null,"Swanzey",null,"Troy",null,"Walpole",null,"Westmoreland",null,"Winchester"]
[null," ","Estimate","Margin of Error","Estimate","Margin of Error","Estimate","Margin of Error","Estimate","Margin of Error","Estimate","Margin of Error","Estimate","Margin of Error","Estimate","Margin of Error","Estimate","Margin of Error","Estimate","Margin of Error","Estimate","Margin of Error","Estimate","Margin of Error","Estimate","Margin of Error","Estimate","Margin of Error","Estimate","Margin of Error","Estimate","Margin of Error","Estimate","Margin of Error","Estimate","Margin of Error","Estimate","Margin of Error","Estimate","Margin of Error","Estimate","Margin of Error","Estimate","Margin of Error","Estimate","Margin of Error","Estimate","Margin of Error"]
[null,"Total:",1599,169,3577,15,1711,216,2287,368,871,144,977,197,3965,16,5299,31,22429,47,2253,391,803,175,550,106,1104,251,6443,18,295,142,1205,162,681,130,950,245,7306,22,1889,275,3651,33,1971,342,4094,24]
[null,"Male:",770,116,2000,139,800,118,1203,216,452,88,461,95,2090,205,2731,216,10985,396,1005,199,364,80,252,50,595,161,3162,187,135,70,592,98,342,79,388,72,3563,205,950,177,1799,162,857,162,1968,182]
[null,"Under 5 years:",12,11,121,74,24,19,33,23,33,23,42,33,26,38,114,89,485,125,76,60,23,26,15,8,38,31,144,96,36,37,29,16,35,30,17,13,125,95,25,22,183,89,33,31,102,62]
[null,"With hearing difficulty",0,12,0,12,0,12,0,12,0,12,0,12,0,12,0,17,0,22,0,12,0,12,0,12,0,12,0,17,0,12,0,12,0,12,3,4,0,17,0,12,0,12,0,12,0,12]
[null,"With no hearing difficulty",12,11,121,74,24,19,33,23,33,23,42,33,26,38,114,89,485,125,76,60,23,26,15,8,38,31,144,96,36,37,29,16,35,30,14,11,125,95,25,22,183,89,33,31,102,62]
[null,"5 to 17  years:",96,55,452,132,97,40,101,36,52,31,47,26,277,125,566,154,1379,180,129,64,37,23,17,12,82,37,470,153,4,6,104,62,18,12,34,16,425,130,149,79,312,115,51,27,311,122]
[null,"With hearing difficulty",0,12,0,12,0,12,0,12,0,12,0,12,0,12,0,17,21,31,0,12,0,12,0,12,0,12,0,17,0,12,0,12,0,12,0,12,0,17,0,12,5,8,0,12,0,12]
[null,"With no hearing difficulty",96,55,452,132,97,40,101,36,52,31,47,26,277,125,566,154,1358,177,129,64,37,23,17,12,82,37,470,153,4,6,104,62,18,12,34,16,425,130,149,79,307,115,51,27,311,122]
[null,"18 to 34  years:",147,61,366,146,136,55,226,92,119,56,38,20,294,122,408,190,3702,372,175,92,53,32,25,15,110,61,941,135,17,10,81,29,88,36,49,28,528,182,191,77,366,116,117,52,388,118]
[null,"With hearing difficulty",0,12,0,12,0,12,0,12,0,12,0,12,0,12,0,17,47,59,0,12,0,12,0,12,0,12,15,22,0,12,2,5,0,12,0,12,0,17,0,12,0,12,3,6,0,12]
[null,"With no hearing difficulty",147,61,366,146,136,55,226,92,119,56,38,20,294,122,408,190,3655,384,175,92,53,32,25,15,110,61,926,135,17,10,79,29,88,36,49,28,528,182,191,77,366,116,114,51,388,118]
[null,"35 to 64  years:",357,76,537,175,338,83,605,177,158,38,190,52,878,165,1310,200,3790,283,440,108,153,41,116,30,192,53,983,154,65,37,279,49,134,28,164,44,1568,216,419,95,571,100,395,97,910,152]
[null,"With hearing difficulty",7,9,0,12,8,7,56,40,12,12,1,2,76,89,0,17,186,100,0,12,7,11,0,12,7,7,22,31,2,3,11,9,4,4,8,8,13,34,0,12,41,50,29,42,28,26]
[null,"With no hearing difficulty",350,77,537,175,330,82,549,176,146,37,189,52,802,140,1310,200,3604,279,440,108,146,39,116,30,185,55,961,154,63,37,268,48,130,29,156,44,1555,220,419,95,530,99,366,85,882,144]
[null,"65 to 74  years:",106,42,367,125,153,64,195,55,76,29,91,28,433,236,159,87,899,135,83,37,75,38,59,21,145,100,428,106,10,6,68,17,40,17,80,34,533,186,121,49,271,74,156,50,193,70]
[null,"With hearing difficulty",24,20,53,80,16,17,39,33,5,5,7,8,210,222,40,42,125,71,0,12,2,3,4,6,17,13,16,16,0,12,5,6,2,3,16,13,177,160,32,27,6,11,19,19,60,35]
[null,"With no hearing difficulty",82,38,314,125,137,63,156,43,71,28,84,28,223,114,119,75,774,144,83,37,73,38,55,20,128,96,412,112,10,6,63,17,38,17,64,31,356,108,89,43,265,74,137,45,133,61]
[null,"75  years and Older:",52,33,157,80,52,26,43,19,14,10,53,20,182,113,174,110,730,148,102,43,23,13,20,10,28,16,196,97,3,3,31,15,27,14,44,21,384,157,45,29,96,46,105,66,64,35]
[null,"With hearing difficulty",12,12,41,37,0,12,14,11,5,5,17,14,103,119,46,58,176,81,32,33,2,3,11,8,22,15,22,29,1,2,16,13,12,11,13,13,168,117,10,12,17,15,12,11,0,12]
[null,"With no hearing difficulty",40,30,116,79,52,26,29,16,9,9,36,16,79,50,128,96,554,150,70,32,21,12,9,6,6,7,174,92,2,3,15,8,15,12,31,16,216,93,35,28,79,44,93,60,64,35]
[null,"Female:",829,95,1577,140,911,135,1084,188,419,74,516,110,1875,204,2568,218,11444,392,1248,240,439,110,298,67,509,121,3281,187,160,78,613,91,339,65,562,203,3743,209,939,136,1852,161,1114,217,2126,181]
[null,"Under 5 years:",20,19,20,30,57,32,45,46,26,17,8,8,58,46,28,48,387,112,140,107,19,19,7,7,10,14,116,74,2,3,29,23,28,18,47,47,110,82,106,55,144,82,47,41,237,122]
[null,"With hearing difficulty",0,12,0,12,0,12,0,12,0,12,0,12,0,12,0,17,0,22,0,12,0,12,0,12,0,12,0,17,0,12,0,12,0,12,29,45,0,17,0,12,0,12,0,12,0,12]
[null,"With no hearing difficulty",20,19,20,30,57,32,45,46,26,17,8,8,58,46,28,48,387,112,140,107,19,19,7,7,10,14,116,74,2,3,29,23,28,18,18,12,110,82,106,55,144,82,47,41,237,122]
[null,"5 to 17  years:",100,34,144,80,149,44,106,53,38,29,52,39,225,70,617,129,1041,198,198,77,116,56,46,30,58,27,443,150,5,5,89,33,30,15,95,63,602,142,113,46,287,98,180,81,289,127]
[null,"With hearing difficulty",0,12,0,12,0,12,0,12,0,12,0,12,0,12,0,17,31,30,0,12,0,12,0,12,0,12,0,17,0,12,0,12,0,12,0,12,0,17,0,12,0,12,0,12,0,12]
[null,"With no hearing difficulty",100,34,144,80,149,44,106,53,38,29,52,39,225,70,617,129,1010,199,198,77,116,56,46,30,58,27,443,150,5,5,89,33,30,15,95,63,602,142,113,46,287,98,180,81,289,127]
[null,"18 to 34  years:",117,55,323,125,63,26,151,78,95,35,89,40,306,147,307,170,3991,285,117,53,72,40,27,18,69,47,1002,156,67,57,102,41,74,37,122,78,424,133,205,65,318,144,119,67,492,192]
[null,"With hearing difficulty",0,12,0,12,0,12,0,12,0,12,0,12,0,12,0,17,73,79,0,12,0,12,0,12,0,12,26,44,0,12,0,12,0,12,0,12,0,17,0,12,0,12,0,12,0,12]
[null,"With no hearing difficulty",117,55,323,125,63,26,151,78,95,35,89,40,306,147,307,170,3918,278,117,53,72,40,27,18,69,47,976,149,67,57,102,41,74,37,122,78,424,133,205,65,318,144,119,67,492,192]
[null,"35 to 64  years:",329,67,729,167,404,97,484,84,170,44,220,61,843,127,1144,160,3688,301,586,139,132,39,140,38,226,60,1067,134,66,30,257,49,145,28,179,54,1648,206,352,89,699,118,430,101,753,132]
[null,"With hearing difficulty",14,13,0,12,0,12,4,8,2,3,6,6,14,17,56,66,170,100,13,13,0,12,0,12,10,12,25,30,28,23,0,12,9,9,4,4,0,17,0,12,41,33,3,5,32,30]
[null,"With no hearing difficulty",315,69,729,167,404,97,480,86,168,43,214,60,829,125,1088,146,3518,308,573,136,132,39,140,38,216,58,1042,135,38,18,257,49,136,28,175,54,1648,206,352,89,658,112,427,101,721,135]
[null,"65 to 74  years:",173,71,244,110,162,54,251,106,58,25,107,30,214,97,276,101,1300,181,120,51,67,38,48,17,69,30,431,102,13,5,86,25,40,14,72,25,587,143,101,32,182,50,215,110,204,79]
[null,"With hearing difficulty",5,7,0,12,3,4,4,6,0,12,2,5,0,12,23,30,171,101,0,12,1,2,4,4,7,8,32,31,0,12,4,4,7,8,5,5,0,17,0,12,8,13,0,12,9,14]
[null,"With no hearing difficulty",168,71,244,110,159,55,247,105,58,25,105,30,214,97,253,96,1129,171,120,51,66,38,44,16,62,30,399,110,13,5,82,25,33,13,67,25,587,143,101,32,174,44,215,110,195,78]
[null,"75  years and Older:",90,47,117,76,76,51,47,27,32,14,40,22,229,155,196,97,1037,197,87,42,33,18,30,21,77,40,222,107,7,7,50,22,22,13,47,20,372,116,62,38,222,100,123,45,151,66]
[null,"With hearing difficulty",0,12,10,16,6,6,4,7,4,6,3,4,33,38,28,31,212,155,5,7,0,12,3,8,37,34,117,94,4,6,7,9,4,5,13,9,67,83,11,17,6,10,15,16,38,39]
[null,"With no hearing difficulty",90,47,107,73,70,50,43,26,28,13,37,22,196,152,168,95,825,165,82,41,33,18,27,16,40,23,105,58,3,4,43,20,18,12,34,19,305,110,51,33,216,99,108,41,113,51]
[]
[]
[{"$f":"A1& \"-Calculated\"","v":"B18102. SEX BY AGE BY HEARING DIFFICULTY\n\n-Calculated"}]
[{"$f":"A2","v":"Universe:  Civilian noninstitutionalized population"}]
[{"$f":"A3","v":"Data Set: 2018-2022 American Community Survey 5-Year Estimates"}]
[]
[]
[null,null,"Alstead",null,"Chesterfield",null,"Dublin",null,"Fitzwilliam",null,"Gilsum",null,"Harrisville",null,"Hinsdale",null,"Jaffrey",null,"Keene",null,"Marlborough",null,"Marlow",null,"Nelson",null,"Richmond",null,"Rindge",null,"Roxbury",null,"Stoddard",null,"Sullivan",null,"Surry",null,"Swanzey",null,"Troy",null,"Walpole",null,"Westmoreland",null,"Winchester"]
[null," ","Estimate","Margin of Error","Estimate","Margin of Error","Estimate","Margin of Error","Estimate","Margin of Error","Estimate","Margin of Error","Estimate","Margin of Error","Estimate","Margin of Error","Estimate","Margin of Error","Estimate","Margin of Error","Estimate","Margin of Error","Estimate","Margin of Error","Estimate","Margin of Error","Estimate","Margin of Error","Estimate","Margin of Error","Estimate","Margin of Error","Estimate","Margin of Error","Estimate","Margin of Error","Estimate","Margin of Error","Estimate","Margin of Error","Estimate","Margin of Error","Estimate","Margin of Error","Estimate","Margin of Error","Estimate","Margin of Error"]
[null,"Total",{"$f":"C7","v":1599},169,3577,15,1711,216,2287,368,871,144,977,197,3965,16,5299,31,22429,47,2253,391,803,175,{"$f":"Y7","v":550},106,1104,251,6443,18,295,142,1205,162,681,130,950,245,7306,22,1889,275,3651,33,1971,342,4094,24]
[null,"Under 5 years:",{"$f":"C28+C9","v":32},{"$f":"SQRT((D28^2)+(D9^2))","v":21.95449840010015},{"$f":"E28+E9","v":141},{"$f":"SQRT((F28^2)+(F9^2))","v":79.849859110708522},{"$f":"G28+G9","v":81},{"$f":"SQRT((H28^2)+(H9^2))","v":37.215588131856791},{"$f":"I28+I9","v":78},{"$f":"SQRT((J28^2)+(J9^2))","v":51.429563482495162},{"$f":"K28+K9","v":59},{"$f":"SQRT((L28^2)+(L9^2))","v":28.600699292150182},{"$f":"M28+M9","v":50},{"$f":"SQRT((N28^2)+(N9^2))","v":33.955853692699293},{"$f":"O28+O9","v":84},{"$f":"SQRT((P28^2)+(P9^2))","v":59.665735560705194},{"$f":"Q28+Q9","v":142},{"$f":"SQRT((R28^2)+(R9^2))","v":101.11874208078342},{"$f":"S28+S9","v":872},{"$f":"SQRT((T28^2)+(T9^2))","v":167.83622970026465},{"$f":"U28+U9","v":216},{"$f":"SQRT((V28^2)+(V9^2))","v":122.67436570041843},{"$f":"W28+W9","v":42},{"$f":"SQRT((X28^2)+(X9^2))","v":32.202484376209235},{"$f":"Y28+Y9","v":22},{"$f":"SQRT((Z28^2)+(Z9^2))","v":10.63014581273465},{"$f":"AA28+AA9","v":48},{"$f":"SQRT((AB28^2)+(AB9^2))","v":34.014702703389901},{"$f":"AC28+AC9","v":260},{"$f":"SQRT((AD28^2)+(AD9^2))","v":121.21056059601408},{"$f":"AE28+AE9","v":38},{"$f":"SQRT((AF28^2)+(AF9^2))","v":37.12142238654117},{"$f":"AG28+AG9","v":58},{"$f":"SQRT((AH28^2)+(AH9^2))","v":28.0178514522438},{"$f":"AI28+AI9","v":63},{"$f":"SQRT((AJ28^2)+(AJ9^2))","v":34.985711369071801},{"$f":"AK28+AK9","v":64},{"$f":"SQRT((AL28^2)+(AL9^2))","v":48.764741360946438},{"$f":"AM28+AM9","v":235},{"$f":"SQRT((AN28^2)+(AN9^2))","v":125.49501982150527},{"$f":"AO28+AO9","v":131},59.236812878479547,{"$f":"AQ28+AQ9","v":327},121.01652779682617,{"$f":"AS28+AS9","v":80},51.400389103585589,{"$f":"AU28+AU9","v":339},136.85028315644803]
[null,"With hearing difficulty",0,16.970562748477139,0,16.970562748477139,0,16.970562748477139,0,16.970562748477139,0,16.970562748477139,0,16.970562748477139,0,16.970562748477139,0,24.041630560342615,0,31.11269837220809,0,16.970562748477139,0,16.970562748477139,0,16.970562748477139,0,16.970562748477139,0,24.041630560342615,0,16.970562748477139,0,16.970562748477139,0,16.970562748477139,32,45.177427992306072,0,24.041630560342615,0,16.970562748477139,0,16.970562748477139,0,16.970562748477139,0,16.970562748477139]
[null,"With no hearing difficulty",32,21.95449840010015,141,79.849859110708522,81,37.215588131856791,78,51.429563482495162,59,28.600699292150182,50,33.955853692699293,84,59.665735560705194,142,101.11874208078342,872,167.83622970026465,216,122.67436570041843,42,32.202484376209235,22,10.63014581273465,48,34.014702703389901,260,121.21056059601408,38,37.12142238654117,58,28.0178514522438,63,34.985711369071801,32,16.278820596099706,235,125.49501982150527,131,59.236812878479547,327,121.01652779682617,80,51.400389103585589,339,136.85028315644803]
[null,"5 to 17 years:",196,64.660652641308843,596,154.35025105259791,246,59.464274989274024,207,64.070273918565391,90,42.449970553582247,99,46.872166581031863,502,143.26548781894402,1183,200.89051744669283,2420,267.58923745173308,327,100.12492197250393,153,60.539243470661241,63,32.310988842807021,140,45.803929962395145,913,214.26385602802915,9,7.810249675906654,193,70.235318750611498,48,19.209372712298546,129,65,1027,192.52012881774206,262,91.4166286842826,599,151.09268678529745,231,85.381496824546247,600,176.10508226624239]
[null,"With hearing difficulty",0,16.970562748477139,0,16.970562748477139,0,16.970562748477139,0,16.970562748477139,0,16.970562748477139,0,16.970562748477139,0,16.970562748477139,0,24.041630560342615,52,43.139309220245984,0,16.970562748477139,0,16.970562748477139,0,16.970562748477139,0,16.970562748477139,0,24.041630560342615,0,16.970562748477139,0,16.970562748477139,0,16.970562748477139,0,16.970562748477139,0,24.041630560342615,0,16.970562748477139,5,14.422205101855956,0,16.970562748477139,0,16.970562748477139]
[null,"With no hearing difficulty",196,64.660652641308843,596,154.35025105259791,246,59.464274989274024,207,64.070273918565391,90,42.449970553582247,99,46.872166581031863,502,143.26548781894402,1183,200.89051744669283,2368,266.32686683847726,327,100.12492197250393,153,60.539243470661241,63,32.310988842807021,140,45.803929962395145,913,214.26385602802915,9,7.810249675906654,193,70.235318750611498,48,19.209372712298546,129,65,1027,192.52012881774206,262,91.4166286842826,594,151.09268678529745,231,85.381496824546247,600,176.10508226624239]
[null,"18 to 34 years:",264,82.134036793524274,689,192.20041623263984,199,60.835844697020519,377,120.61509026651682,214,66.037867924396224,127,44.721359549995796,600,191.03141102970474,715,254.95097567963924,7693,468.62458322200723,292,106.17438485811914,125,51.224993899462788,52,23.430749027719962,179,77.006493232713822,1943,206.30317496345035,84,57.870545184921149,183,50.219518117958877,162,51.623637996561229,171,82.87339742040264,952,225.41739063346466,396,100.7670581092849,684,184.91078930121952,236,84.811555816409836,880,225.36193112413639]
[null,"With hearing difficulty",0,16.970562748477139,0,16.970562748477139,0,16.970562748477139,0,16.970562748477139,0,16.970562748477139,0,16.970562748477139,0,16.970562748477139,0,24.041630560342615,120,98.600202839547947,0,16.970562748477139,0,16.970562748477139,0,16.970562748477139,0,16.970562748477139,41,49.193495504995376,0,16.970562748477139,2,13,0,16.970562748477139,0,16.970562748477139,0,24.041630560342615,0,16.970562748477139,0,16.970562748477139,3,13.416407864998739,0,16.970562748477139]
[null,"With no hearing difficulty",264,82.134036793524274,689,192.20041623263984,199,60.835844697020519,377,120.61509026651682,214,66.037867924396224,127,44.721359549995796,600,191.03141102970474,715,254.95097567963924,7573,474.06750574153466,292,106.17438485811914,125,51.224993899462788,52,23.430749027719962,179,77.006493232713822,1902,201.06217943710845,84,57.870545184921149,181,50.219518117958877,162,51.623637996561229,171,82.87339742040264,952,225.41739063346466,396,100.7670581092849,684,184.91078930121952,233,84.202137740083529,880,225.36193112413639]
[null,"35 to 64 years:",686,101.31633629380802,1266,241.89667215569543,742,127.66362050325849,1089,195.92090240706835,328,58.137767414994535,410,80.156097709406993,1721,208.21623375712088,2454,256.12496949731394,7478,413.14646313383827,1026,176.02556632489498,285,56.586217403180434,256,48.414873747640819,418,80.05623023850174,2050,204.13720875920686,131,47.634021455258214,536,69.296464556281663,279,39.597979746446661,343,69.656299069071991,3216,298.48283032697208,771,130.17680284904833,1270,154.67385040788247,825,140.03570973148243,1663,201.31567251458591]
[null,"With hearing difficulty",21,15.811388300841896,0,16.970562748477139,8,13.892443989449804,60,40.792156108742276,14,12.369316876852981,7,6.324555320336759,90,90.609050320594349,56,68.154236845554948,356,141.42135623730951,13,17.691806012954132,7,16.278820596099706,0,16.970562748477139,17,13.892443989449804,47,43.139309220245984,30,23.194827009486403,11,15,13,9.8488578017961039,12,8.9442719099991592,13,38.013155617496423,0,16.970562748477139,82,59.908263203000637,32,42.296571965113202,60,39.698866482558415]
[null,"With no hearing difficulty",665,103.39245620450265,1266,241.89667215569543,734,127.01574705523721,1029,195.88772294352702,314,56.727418414731339,403,79.39773296511683,1631,187.68324379123459,2398,247.62067765031256,7122,415.57791086630192,1013,173.66634676873929,278,55.154328932550705,256,48.414873747640819,401,79.93122043357026,2003,204.79501947068928,101,41.146081222881968,525,68.593002558570063,266,40.311288741492746,331,69.656299069071991,3203,301.39011264472498,771,130.17680284904833,1188,149.4824404403407,793,132.0075755401939,1603,197.38540979515179]
[null,"65 to 74 years:",279,82.492423894561369,611,166.50825805346713,315,83.737685661833282,446,119.41942890501528,134,38.288379438153292,198,41.036569057366385,647,255.15681452785068,435,133.30416347586447,2199,225.80079716422614,203,63.007936008093459,142,53.740115370177612,107,27.018512172212592,214,104.4030650891055,859,147.10540438746634,23,7.810249675906654,154,30.232432915661949,80,22.022715545545239,152,42.201895692018383,1120,234.61670869739862,222,58.523499553598128,453,89.308454247064432,371,120.83045973594572,397,105.55093557141026]
[null,"With hearing difficulty",29,21.189620100417091,53,80.894993664626739,19,17.464249196572979,43,33.541019662496844,5,13,9,9.4339811320566032,210,222.32408776378685,63,51.61395160225576,296,123.45849504995596,0,16.970562748477139,3,3.6055512754639891,8,7.2111025509279782,24,15.264337522473747,48,34.885527085024819,0,16.970562748477139,9,7.2111025509279782,9,8.5440037453175304,21,13.928388277184119,177,160.90059042775448,32,29.546573405388315,14,17.029386365926403,19,22.472205054244231,69,37.696153649941529]
[null,"With no hearing difficulty",250,80.529497701152962,558,166.50825805346713,296,83.630138108220294,403,113.46365056704283,129,37.536648758246919,189,41.036569057366385,437,149.68299836654796,372,121.82364302548172,1903,223.55536227073597,203,63.007936008093459,139,53.740115370177612,99,25.612496949731394,190,100.57832768544127,811,156.98407562552325,23,7.810249675906654,145,30.232432915661949,71,21.400934559032695,131,39.824615503479755,943,179.20100446147057,190,53.600373133029585,439,86.092973000123536,352,118.84864324004712,328,99.02019995940222]
[null,"75 years and over:",142,57.428216061444921,274,110.34491379306978,128,57.245087125446844,90,33.015148038438355,46,17.204650534085253,93,29.732137494637012,411,191.81762171396036,370,146.65946952038249,1767,246.40008116881779,189,60.108235708594876,56,22.203603311174518,50,23.259406699226016,105,43.08131845707603,418,144.42298985964803,10,7.6157731058639087,81,26.627053911388696,49,19.104973174542799,91,29,756,195.20502042724209,107,47.801673610868477,318,110.07270324653611,228,79.881161734166085,215,74.706090782479038]
[null,"With hearing difficulty",12,16.970562748477139,51,40.311288741492746,6,13.416407864998739,18,13.038404810405298,9,7.810249675906654,20,14.560219778561036,136,124.91997438360288,74,65.76473218982953,388,174.88853593074649,37,33.734255586865999,2,12.369316876852981,{"$f":"Y44+Y25","v":14},{"$f":"SQRT((Z44^2)+(Z25^2))","v":11.313708498984761},59,37.161808352124091,139,98.371743910535614,5,6.324555320336759,23,15.811388300841896,16,12.083045973594572,26,15.811388300841896,235,143.45033983926285,21,20.808652046684813,23,18.027756377319946,27,19.416487838947599,38,40.80441152620633]
[null,"With no hearing difficulty",130,55.758407437802596,223,107.56393447619885,122,56.356011214421486,72,30.528675044947494,37,15.811388300841896,73,27.202941017470888,275,160.01249951175689,296,135.05924625881784,1379,222.99103120977759,152,52.009614495783374,54,21.633307652783937,36,17.088007490635061,46,24.041630560342615,279,108.75660899458019,5,5,58,21.540659228538015,33,16.970562748477139,65,24.839484696748443,521,144.04513181638595,86,43.278170016764804,295,108.33743581975715,201,72.670489196096653,177,61.854668376768458]
[]
[]
[]
[]
[]
[]
[]
[]
[]
[]
[]
[]
[]
[]
[]
[]
[]
[]
[]
[]
[]
[]
[]
[]
[]
[]
["B18102. SEX BY AGE BY HEARING DIFFICULTY\n\n-Calculated"]
["Universe:  Civilian noninstitutionalized population"]
["Data Set: 2013-2017 American Community Survey 5-Year Estimates"]
[]
[]
[null,null,"Alstead",null,"Chesterfield",null,"Dublin",null,"Fitzwilliam",null,"Gilsum",null,"Harrisville",null,"Hinsdale",null,"Jaffrey",null,"Keene",null,"Marlborough",null,"Marlow",null,"Nelson",null,"Richmond",null,"Rindge",null,"Roxbury",null,"Stoddard",null,"Sullivan",null,"Surry",null,"Swanzey",null,"Troy",null,"Walpole",null,"Westmoreland",null,"Winchester"]
[null," ","Estimate","Margin of Error","Estimate","Margin of Error","Estimate","Margin of Error","Estimate","Margin of Error","Estimate","Margin of Error","Estimate","Margin of Error","Estimate","Margin of Error","Estimate","Margin of Error","Estimate","Margin of Error","Estimate","Margin of Error","Estimate","Margin of Error","Estimate","Margin of Error","Estimate","Margin of Error","Estimate","Margin of Error","Estimate","Margin of Error","Estimate","Margin of Error","Estimate","Margin of Error","Estimate","Margin of Error","Estimate","Margin of Error","Estimate","Margin of Error","Estimate","Margin of Error","Estimate","Margin of Error","Estimate","Margin of Error"]
[null,"Total",1847,227,3566,15,1487,174,2294,213,702,80,913,140,3925,20,22723,148,23058,228,2119,295,708,115,575,94,1239,175,6000,44,216,57,1193,185,725,118,884,130,7169,37,2182,310,3809,18,1696,212,4146,122]
[null,"Under 5 years:",82,39.204591567825318,377,144.40221604947757,42,26.92582403567252,96,50.931326312987373,16,9.4339811320566032,15,11.401754250991379,139,103.81714694596457,898,203.8872237291979,923,180.40509970618902,86,45.343136195018538,45,25.238858928247925,38,19.313207915827967,69,62.649820430708338,403,112.64546151532249,17,8.6023252670426267,53,31.144823004794873,82,30.413812651491099,42,29.410882339705484,408,137.88763541376724,107,65.215028942721474,114,85.708809348864477,45,23.430749027719962,257,108.90362712049586]
[null,"With hearing difficulty",0,15.556349186104045,0,15.556349186104045,0,15.556349186104045,0,15.556349186104045,0,15.556349186104045,0,15.556349186104045,0,15.556349186104045,0,29.698484809834994,0,28.284271247461902,0,15.556349186104045,0,15.556349186104045,0,15.556349186104045,4,12.529964086141668,0,22.627416997969522,0,15.556349186104045,0,15.556349186104045,0,15.556349186104045,0,15.556349186104045,0,22.627416997969522,0,15.556349186104045,0,15.556349186104045,0,15.556349186104045,0,15.556349186104045]
[null,"With no hearing difficulty",82,39.204591567825318,377,144.40221604947757,42,26.92582403567252,96,50.931326312987373,16,9.4339811320566032,15,11.401754250991379,139,103.81714694596457,898,203.8872237291979,923,180.40509970618902,86,45.343136195018538,45,25.238858928247925,38,19.313207915827967,65,62.241465278381739,403,112.64546151532249,17,8.6023252670426267,53,31.144823004794873,82,30.413812651491099,42,29.410882339705484,408,137.88763541376724,107,65.215028942721474,114,85.708809348864477,45,23.430749027719962,257,108.90362712049586]
[null,"5 to 17 years:",234,89.050547443572739,467,154.76756766196203,234,62.433965115151864,278,75.166481891864535,100,25,81,30.528675044947494,617,137.2953021774598,2821,288.84597971929605,2791,291,266,90.686272390037075,101,31.906112267087632,62,22.671568097509269,161,52.201532544552748,849,190.31815467789718,19,12.083045973594572,158,51.088159097779204,92,42.544094772365298,124,42.544094772365298,894,221.29844102478444,363,106.10372283760829,579,141.79210133149166,243,65.36818798161687,637,146.21901381147393]
[null,"With hearing difficulty",0,15.556349186104045,0,15.556349186104045,11,21.095023109728988,0,15.556349186104045,0,15.556349186104045,0,15.556349186104045,12,21.95449840010015,26,44.294469180700204,18,34.409301068170507,0,15.556349186104045,0,15.556349186104045,0,15.556349186104045,9,17.804493814764857,0,22.627416997969522,0,15.556349186104045,0,15.556349186104045,0,15.556349186104045,0,15.556349186104045,0,22.627416997969522,18,31.016124838541646,0,15.556349186104045,9,11.180339887498949,20,33.837848631377263]
[null,"With no hearing difficulty",234,89.050547443572739,467,154.76756766196203,223,60.901559914340453,278,75.166481891864535,100,25,81,30.528675044947494,605,138.39797686382559,2795,287.50652166516153,2773,293.69542046140248,266,90.686272390037075,101,31.906112267087632,62,22.671568097509269,152,50.606323715519977,849,190.31815467789718,19,12.083045973594572,158,51.088159097779204,92,42.544094772365298,124,42.544094772365298,894,221.29844102478444,345,102.06860437960343,579,141.79210133149166,234,66.730802482811484,617,137.97463535012514]
[null,"18 to 34 years:",369,111.01801655587259,432,135.79396157414365,256,67.007462271003817,409,96.426137535421375,121,29,91,31.240998703626616,587,140.01428498549711,7744,445.31000437897194,8156,446.97762807549998,413,116.1077086157504,104,31.89043743820395,128,41.231056256176608,280,73.006848993775918,1973,237.26145915424192,50,17.691806012954132,208,55.605755097831377,129,39.66106403010388,126,37.483329627982627,1572,281.58480072617556,430,145.34441853748632,704,146.64924138910504,298,75.663729752107784,933,159.13830462839547]
[null,"With hearing difficulty",6,13.601470508735444,0,15.556349186104045,0,15.556349186104045,0,15.556349186104045,3,11.704699910719626,0,15.556349186104045,0,15.556349186104045,0,29.698484809834994,8,23.853720883753127,0,15.556349186104045,0,15.556349186104045,0,15.556349186104045,4,13.038404810405298,0,22.627416997969522,0,15.556349186104045,10,18.601075237738275,6,14.212670403551895,0,15.556349186104045,0,22.627416997969522,17,30.083217912982647,0,15.556349186104045,0,15.556349186104045,0,15.556349186104045]
[null,"With no hearing difficulty",363,111.72287142747452,432,135.79396157414365,256,67.007462271003817,409,96.426137535421375,118,28.284271247461902,91,31.240998703626616,587,140.01428498549711,7744,445.31000437897194,8148,446.16140577149878,413,116.1077086157504,104,31.89043743820395,128,41.231056256176608,276,72.201108024738787,1973,237.26145915424192,50,17.691806012954132,198,48.795491595023407,123,39.66106403010388,126,37.483329627982627,1572,281.58480072617556,413,140.00357138301865,704,146.64924138910504,298,75.663729752107784,933,159.13830462839547]
[null,"35 to 64 years:",801,101.11874208078342,1501,172.00290695217916,678,81.394102980498531,1011,126.62148316932637,349,45.967379738244816,441,63.655321851358195,1833,171.26587517658035,7687,334.67745666536911,7637,355.06900737743922,934,128.76334882255898,337,47.423622805517503,238,40.459856648287818,550,71.217975259059429,1949,153.52198539622916,99,25.80697580112788,510,82.800966177937809,296,40.311288741492746,409,52.801515129776341,3053,248.01814449753471,985,129.07362240210043,1685,150.86417732516887,800,86.278618440491968,1639,181.79383927955314]
[null,"With hearing difficulty",21,31.953090617340916,73,56.586217403180434,7,7.0710678118654755,48,29.832867780352597,22,13,3,12.083045973594572,32,30.083217912982647,264,112.04463396343441,314,125.25573839150046,22,29.154759474226502,15,11.704699910719626,17,14.317821063276353,8,13.601470508735444,65,41.036569057366385,7,13.038404810405298,15,10.816653826391969,11,12.369316876852981,7,12.083045973594572,152,83.546394296821688,51,41.761226035642203,130,79.158069708653201,19,18.601075237738275,32,26.92582403567252]
[null,"With no hearing difficulty",780,98.35141076771599,1428,171.81967291320282,671,79.981247802219244,963,122.494897852931,327,43.840620433565945,438,63.655321851358195,1801,173.31185764395926,7423,326.87918257362304,7323,348.39776118683653,912,123.04470732217619,322,46.75467891024384,221,38.288379438153292,542,71.217975259059429,1884,151.42654985173505,92,25,495,81.60882305241266,285,40.311288741492746,402,52.009614495783374,2901,257.7750957714884,934,132.32157798333574,1555,155.97435686676192,781,86.278618440491968,1607,181.8378398463862]
[null,"65 to 74 years:",247,55.172456896534889,508,128.70120434556935,180,38.600518131237564,360,80.802227692063042,75,17.691806012954132,198,38.948684188300895,509,98.081598681913832,1908,174.77127910500627,1987,190.53608582103286,246,65.115282384398824,57,18.439088914585774,63,20.248456731316587,106,27.658633371878661,512,97.590983190046813,23,9.4339811320566032,150,38.897300677553446,80,24.041630560342615,123,30.232432915661949,614,129.52991932368366,184,51.855568649856693,364,98.270036124955197,213,54.488530903301111,435,88.600225733346747]
[null,"With hearing difficulty",32,16.970562748477139,92,71.867934435323804,12,14.212670403551895,43,32.557641192199412,16,9.2195444572928871,9,8.0622577482985491,98,46.861498055439924,141,61.741396161732524,178,69.835521047673154,0,15.556349186104045,9,6.7082039324993694,8,5.8309518948453007,14,9.4339811320566032,55,35.227829907617071,2,11.401754250991379,27,17.464249196572979,6,5,10,9.4868329805051381,21,25.553864678361276,32,27.892651361962706,46,47.801673610868477,16,11.401754250991379,55,31.953090617340916]
[null,"With no hearing difficulty",215,55.172456896534889,416,120.24142381059865,168,38.600518131237564,317,75.286120898874842,59,14.866068747318506,189,39.623225512317902,411,87.005746936624831,1767,172.55723688098394,1809,190.06577808748213,246,65.115282384398824,48,17.691806012954132,55,19.416487838947599,92,26.248809496813376,457,96.176920308356728,21,8.6023252670426267,123,35.468295701936398,74,24.041630560342615,113,28.600699292150182,593,131.7459676802292,152,44.77722635447622,318,89.627004859026727,197,55.172456896534889,380,88.600225733346747]
[null,"75 years and over:",114,45.793012567421243,281,121.75385004179539,97,31.11269837220809,140,48.104053883222775,41,15.811388300841896,87,55.108982933819419,240,90.210864090751286,1665,226.25870149013053,1564,202.94334184693028,174,56.727418414731339,64,19.849433241279208,46,16.401219466856727,73,27.658633371878661,314,95.268042910516428,8,11.180339887498949,114,38.209946349085598,46,16.970562748477139,60,18.357559750685819,628,147.75655653811103,113,52.497618993626752,363,95.524865872714003,97,32.802438933713454,245,76.478755219995577]
[null,"With hearing difficulty",21,13.45362404707371,15,25.495097567963924,12,13.601470508735444,21,20.880613017821101,10,9.2195444572928871,31,53.150729063673246,47,45.650848842053307,573,185.04323819042943,413,145.43727170158274,31,18.867962264113206,10,6.4031242374328485,13,7.2111025509279782,40,24.207436873820409,108,60.166435825965294,2,3.6055512754639891,14,17.029386365926403,16,8.6023252670426267,16,12.529964086141668,205,91.35097153287424,32,34.525353003264136,113,67.268120235368556,17,17,44,33.301651610693426]
[null,"With no hearing difficulty",93,44.77722635447622,266,118.82760622010359,85,29.732137494637012,119,43.416586692184822,31,12.206555615733702,56,18.601075237738275,193,79.120161779409926,1092,192.27584351654787,1151,176.07100840286,143,54.817880294662984,54,19.209372712298546,33,15.264337522473747,33,16.643316977093239,206,77.201036262475128,6,9.4868329805051381,100,35,30,14.866068747318506,44,13.45362404707371,423,121.01652779682617,81,42.201895692018383,250,87.114866699088736,80,28.42534080710379,201,70.682388188289167]
[]
[]
[]
[]
[]
["B18102. SEX BY AGE BY HEARING DIFFICULTY\n\n-Calculated"]
["Universe:  Civilian noninstitutionalized population"]
["Data Set: 2008-2012 American Community Survey 5-Year Estimates"]
[]
[]
[null,null,"Alstead",null,"Chesterfield",null,"Dublin",null,"Fitzwilliam",null,"Gilsum",null,"Harrisville",null,"Hinsdale",null,"Jaffrey",null,"Keene",null,"Marlborough",null,"Marlow",null,"Nelson",null,"Richmond",null,"Rindge",null,"Roxbury",null,"Stoddard",null,"Sullivan",null,"Surry",null,"Swanzey",null,"Troy",null,"Walpole",null,"Westmoreland",null,"Winchester"]
[null," ","Estimate","Margin of Error","Estimate","Margin of Error","Estimate","Margin of Error","Estimate","Margin of Error","Estimate","Margin of Error","Estimate","Margin of Error","Estimate","Margin of Error","Estimate","Margin of Error","Estimate","Margin of Error","Estimate","Margin of Error","Estimate","Margin of Error","Estimate","Margin of Error","Estimate","Margin of Error","Estimate","Margin of Error","Estimate","Margin of Error","Estimate","Margin of Error","Estimate","Margin of Error","Estimate","Margin of Error","Estimate","Margin of Error","Estimate","Margin of Error","Estimate","Margin of Error","Estimate","Margin of Error","Estimate","Margin of Error"]
[null,"Total",1883,173,3617,22,1709,209,2576,268,542,75,923,139,4046,18,5394,77,23088,148,1977,269,890,185,729,156,992,145,5982,34,219,37,1045,181,691,108,821,110,7236,29,2112,274,3731,19,1919,226,4271,35]
[null,"Under 5 years:",103,53.225933528685054,206,113.14592347937243,37,15,148,58.051701094799967,18,11.313708498984761,49,26.248809496813376,275,114.05700329221349,272,117.37972567696688,788,181.738823590338,86,58.668560575490517,35,23.021728866442675,6,13.038404810405298,48,27.784887978899608,376,109.04127658827184,7,13.038404810405298,94,38.587562763149478,27,19.924858845171276,24,16.124515496597098,329,121.24768039018313,116,47.423622805517503,260,104.00480758118829,90,45.541190146942803,350,114.33722053644648]
[null,"With hearing difficulty",0,15.556349186104045,0,15.556349186104045,0,15.556349186104045,0,15.556349186104045,0,15.556349186104045,0,15.556349186104045,0,15.556349186104045,0,22.627416997969522,0,29.698484809834994,0,15.556349186104045,0,15.556349186104045,0,15.556349186104045,4,13.038404810405298,0,22.627416997969522,0,15.556349186104045,0,15.556349186104045,0,15.556349186104045,0,15.556349186104045,0,22.627416997969522,0,15.556349186104045,0,15.556349186104045,0,15.556349186104045,0,15.556349186104045]
[null,"With no hearing difficulty",103,53.225933528685054,206,113.14592347937243,37,15,148,58.051701094799967,18,11.313708498984761,49,26.248809496813376,275,114.05700329221349,272,117.37972567696688,788,181.738823590338,86,58.668560575490517,35,23.021728866442675,6,13.038404810405298,44,26.832815729997478,376,109.04127658827184,7,13.038404810405298,94,38.587562763149478,27,19.924858845171276,24,16.124515496597098,329,121.24768039018313,116,47.423622805517503,260,104.00480758118829,90,45.541190146942803,350,114.33722053644648]
[null,"5 to 17 years:",358,89.202017914394744,470,138.2931668593933,361,98.716766559688324,349,90.603531939985658,36,16.970562748477139,113,44.944410108488462,509,123.76186811776881,1030,206.92993983471797,2967,302.12083675244912,294,105.99056561788883,151,50.990195135927848,105,41.109609582188931,174,68.8839603971781,897,144.30869689661813,40,15.652475842498529,133,52.201532544552748,130,48.548944375753422,91,31.89043743820395,1194,194.74342094150447,360,94.047860156411858,658,130.91982279242512,350,89.044932477934978,588,138.70832707519762]
[null,"With hearing difficulty",0,15.556349186104045,0,15.556349186104045,0,15.556349186104045,0,15.556349186104045,0,15.556349186104045,0,15.556349186104045,0,15.556349186104045,0,22.627416997969522,41,57.9396237474839,0,15.556349186104045,0,15.556349186104045,0,15.556349186104045,3,12.083045973594572,0,22.627416997969522,0,15.556349186104045,0,15.556349186104045,0,15.556349186104045,0,15.556349186104045,24,43.08131845707603,0,15.556349186104045,0,15.556349186104045,3,12.083045973594572,0,15.556349186104045]
[null,"With no hearing difficulty",358,89.202017914394744,470,138.2931668593933,361,98.716766559688324,349,90.603531939985658,36,16.970562748477139,113,44.944410108488462,509,123.76186811776881,1030,206.92993983471797,2926,319.69047530384762,294,105.99056561788883,151,50.990195135927848,105,41.109609582188931,171,68.8839603971781,897,144.30869689661813,40,15.652475842498529,133,52.201532544552748,130,48.548944375753422,91,31.89043743820395,1170,186.69761648183942,360,94.047860156411858,658,130.91982279242512,347,88.204308284799779,588,138.70832707519762]
[null,"18 to 34 years:",301,70.724818840347695,584,200.5617112013158,212,73.348483283568996,399,104.95713410721541,100,33.421549934136806,96,31.240998703626616,761,155.20631430454111,754,179.96110690924303,7934,476.76514134319848,307,98.290386101591849,110,47.413078364518789,108,44.407206622349037,164,44.654227123532216,2383,260.59930928534709,31,12.529964086141668,105,37.643060449437421,142,44.407206622349037,135,36.61966684720111,1376,220.86421167767313,520,105.38026380684383,671,129.5569372901351,300,75.690157880665041,704,148.52945835759317]
[null,"With hearing difficulty",9,17.804493814764857,0,15.556349186104045,0,15.556349186104045,0,15.556349186104045,0,15.556349186104045,3,12.083045973594572,0,15.556349186104045,0,22.627416997969522,51,45.188494110780013,1,11.401754250991379,0,15.556349186104045,2,11.401754250991379,5,12.529964086141668,7,12.649110640673518,0,15.556349186104045,0,15.556349186104045,0,15.556349186104045,0,15.556349186104045,0,22.627416997969522,0,15.556349186104045,0,15.556349186104045,8,11.180339887498949,32,45.354161881794269]
[null,"With no hearing difficulty",292,70.035705179572517,584,200.5617112013158,212,73.348483283568996,399,104.95713410721541,100,33.421549934136806,93,30.479501308256342,761,155.20631430454111,754,179.96110690924303,7883,466.71725916233265,306,98.290386101591849,110,47.413078364518789,106,44.407206622349037,159,44.10215414239989,2376,259.93268359327192,31,12.529964086141668,105,37.643060449437421,142,44.407206622349037,135,36.61966684720111,1376,220.86421167767313,520,105.38026380684383,671,129.5569372901351,292,72.862884927787476,672,146.98639392814562]
[null,"35 to 64 years:",852,86.556340033529608,1690,164.14932226482082,806,107.41508273980894,1319,123.3288287465668,293,40.80441152620633,520,70,1732,185.45619428857049,2558,156.63013758533191,8056,310.64449134018133,969,115.88356225108029,437,81.344944526380985,385,67.475921631349351,504,70.802542327235685,1798,165.55663683464942,99,22.203603311174518,544,85.428332536694171,311,41.725292090050132,425,57.982756057296896,3264,221.33458834985552,856,114.97825881443848,1614,140.73023839957068,921,102.53292154230269,2106,235.84952830141509]
[null,"With hearing difficulty",33,23.769728648009426,38,48.270073544588683,33,17.888543819998318,46,32.526911934581186,7,13.038404810405298,14,11.180339887498949,71,44.598206241955516,67,45.453272709454048,267,116.36150566231085,0,15.556349186104045,11,9.4339811320566032,12,17.804493814764857,16,19.416487838947599,62,36.400549446402593,3,3.6055512754639891,27,19.209372712298546,6,12.529964086141668,17,13.341664064126334,56,50.606323715519977,29,28.861739379323623,29,24.166091947189145,10,16.278820596099706,61,54.78138369920935]
[null,"With no hearing difficulty",819,84.38601779915912,1652,155.05160431288675,773,105.80170130957252,1273,127.47548783981962,286,40.80441152620633,506,69.202601107183824,1661,190.93978108293726,2491,154.98709623707387,7789,342.23529917295207,969,115.88356225108029,426,82.807004534640669,373,67.475921631349351,488,67.119296778199342,1736,162.74212730574712,96,22.203603311174518,517,81.055536516637773,305,43.185645763378368,408,57.314919523628397,3208,214.97906874856446,827,110.53506231056279,1585,140.73023839957068,911,101.82337649086284,2045,239.88538930080756]
[null,"65 to 74 years:",158,45.967379738244816,402,145.04137340772803,194,66.211781428987393,263,75.432088662584434,65,22.022715545545239,66,24.041630560342615,416,95.524865872714003,414,112.43220179290273,1482,165.61400906928134,182,53.413481444294568,110,32.557641192199412,81,27.802877548915689,73,21.095023109728988,297,74.027022093286988,32,12.727922061357855,115,36.796738985948195,53,20,79,19.798989873223331,736,140.03570973148243,177,56.824290580701486,277,77.620873481300123,100,37.20215047547655,366,74.411020689142546]
[null,"With hearing difficulty",10,14.212670403551895,14,24.596747752497688,14,9.4339811320566032,8,13.601470508735444,9,15.556349186104045,7,6.4031242374328485,87,71.847059786744225,53,34.409301068170507,109,53.150729063673246,39,29.732137494637012,21,14.212670403551895,21,16.763054614240211,16,10.63014581273465,0,22.627416997969522,0,15.556349186104045,14,14.866068747318506,6,12.529964086141668,1,11.704699910719626,34,36.674241641784498,29,31.953090617340916,13,14.7648230602334,3,12.083045973594572,50,37.802116342871599]
[null,"With no hearing difficulty",148,44.553338819890925,388,143.01048912579805,180,65.79513659838392,255,75.432088662584434,56,19.798989873223331,59,22.627416997969522,329,75.802374632988901,361,112.43220179290273,1373,172.5340546095176,143,49.648766349225639,89,29,60,22.627416997969522,57,18.867962264113206,297,74.027022093286988,32,12.727922061357855,101,32.802438933713454,47,18.439088914585774,78,19.798989873223331,702,140.73023839957068,148,48.259714048054619,264,76.05918747922567,97,36.400549446402593,316,67.007462271003817]
[null,"75 years and over:",111,37.735924528226413,265,104.00480758118829,99,35.510561809129406,98,43.56604182158393,30,15.556349186104045,79,34.828149534535996,353,120.42009799032718,366,107.71258050942797,1861,183.21571984958058,139,48.877397639399746,47,21.470910553583888,44,17.029386365926403,29,15,231,60.207972893961475,10,6.4031242374328485,54,23.323807579381203,28,19.646882704388499,67,30.232432915661949,337,111.36426715962351,83,34.985711369071801,251,74.202425836356596,158,48.918299234540036,157,58]
[null,"With hearing difficulty",6,13.038404810405298,71,47.885279575251516,14,12.727922061357855,42,34.928498393145958,11,13.601470508735444,14,19.416487838947599,87,63.134776470658387,77,50.219518117958877,298,108.04628637764465,39,19.849433241279208,11,9.4339811320566032,12,8.0622577482985491,21,13.038404810405298,44,38.483762809787713,2,11.401754250991379,13,14.866068747318506,6,5.8309518948453007,11,17.029386365926403,112,78.108898340714035,10,11.661903789690601,45,26.627053911388696,21,17.088007490635061,57,34]
[null,"With no hearing difficulty",105,36.891733491393431,194,105.47511554864494,85,32.249030993194197,56,23.430749027719962,19,13.038404810405298,65,30.413812651491099,266,101.11874208078342,289,101.21264743103995,1563,191.12822920751398,100,45.650848842053307,36,18.681541692269406,32,15.620499351813308,8,6.4031242374328485,187,57.280013966478741,8,5.6568542494923806,41,21.540659228538015,22,18.439088914585774,56,26.92582403567252,225,88.11923740024082,73,33.61547262794322,206,67.623960250786851,137,43.829214001622255,100,47.010637094172637]

{"sheet":"SData_B18103_VisualDisability","index":43,"n_rows":69,"n_cols":82,"rows_kept":69,"cut":false,"hidden":true,"merged":[]}
["GEO_ID","GEO_ID2","SUMLEVEL","GEO_NAME",{"$f":"[1]ACS_16_5YR_B18103_with_ann!D1","v":"B18103_001E"},{"$f":"[1]ACS_16_5YR_B18103_with_ann!E1","v":"B18103_001M"},{"$f":"[1]ACS_16_5YR_B18103_with_ann!F1","v":"B18103_002E"},{"$f":"[1]ACS_16_5YR_B18103_with_ann!G1","v":"B18103_002M"},{"$f":"[1]ACS_16_5YR_B18103_with_ann!H1","v":"B18103_003E"},{"$f":"[1]ACS_16_5YR_B18103_with_ann!I1","v":"B18103_003M"},{"$f":"[1]ACS_16_5YR_B18103_with_ann!J1","v":"B18103_004E"},{"$f":"[1]ACS_16_5YR_B18103_with_ann!K1","v":"B18103_004M"},{"$f":"[1]ACS_16_5YR_B18103_with_ann!L1","v":"B18103_005E"},{"$f":"[1]ACS_16_5YR_B18103_with_ann!M1","v":"B18103_005M"},{"$f":"[1]ACS_16_5YR_B18103_with_ann!N1","v":"B18103_006E"},{"$f":"[1]ACS_16_5YR_B18103_with_ann!O1","v":"B18103_006M"},{"$f":"[1]ACS_16_5YR_B18103_with_ann!P1","v":"B18103_007E"},{"$f":"[1]ACS_16_5YR_B18103_with_ann!Q1","v":"B18103_007M"},{"$f":"[1]ACS_16_5YR_B18103_with_ann!R1","v":"B18103_008E"},{"$f":"[1]ACS_16_5YR_B18103_with_ann!S1","v":"B18103_008M"},{"$f":"[1]ACS_16_5YR_B18103_with_ann!T1","v":"B18103_009E"},{"$f":"[1]ACS_16_5YR_B18103_with_ann!U1","v":"B18103_009M"},{"$f":"[1]ACS_16_5YR_B18103_with_ann!V1","v":"B18103_010E"},{"$f":"[1]ACS_16_5YR_B18103_with_ann!W1","v":"B18103_010M"},{"$f":"[1]ACS_16_5YR_B18103_with_ann!X1","v":"B18103_011E"},{"$f":"[1]ACS_16_5YR_B18103_with_ann!Y1","v":"B18103_011M"},{"$f":"[1]ACS_16_5YR_B18103_with_ann!Z1","v":"B18103_012E"},{"$f":"[1]ACS_16_5YR_B18103_with_ann!AA1","v":"B18103_012M"},{"$f":"[1]ACS_16_5YR_B18103_with_ann!AB1","v":"B18103_013E"},{"$f":"[1]ACS_16_5YR_B18103_with_ann!AC1","v":"B18103_013M"},{"$f":"[1]ACS_16_5YR_B18103_with_ann!AD1","v":"B18103_014E"},{"$f":"[1]ACS_16_5YR_B18103_with_ann!AE1","v":"B18103_014M"},{"$f":"[1]ACS_16_5YR_B18103_with_ann!AF1","v":"B18103_015E"},{"$f":"[1]ACS_16_5YR_B18103_with_ann!AG1","v":"B18103_015M"},{"$f":"[1]ACS_16_5YR_B18103_with_ann!AH1","v":"B18103_016E"},{"$f":"[1]ACS_16_5YR_B18103_with_ann!AI1","v":"B18103_016M"},{"$f":"[1]ACS_16_5YR_B18103_with_ann!AJ1","v":"B18103_017E"},{"$f":"[1]ACS_16_5YR_B18103_with_ann!AK1","v":"B18103_017M"},{"$f":"[1]ACS_16_5YR_B18103_with_ann!AL1","v":"B18103_018E"},{"$f":"[1]ACS_16_5YR_B18103_with_ann!AM1","v":"B18103_018M"},{"$f":"[1]ACS_16_5YR_B18103_with_ann!AN1","v":"B18103_019E"},{"$f":"[1]ACS_16_5YR_B18103_with_ann!AO1","v":"B18103_019M"},{"$f":"[1]ACS_16_5YR_B18103_with_ann!AP1","v":"B18103_020E"},{"$f":"[1]ACS_16_5YR_B18103_with_ann!AQ1","v":"B18103_020M"},{"$f":"[1]ACS_16_5YR_B18103_with_ann!AR1","v":"B18103_021E"},{"$f":"[1]ACS_16_5YR_B18103_with_ann!AS1","v":"B18103_021M"},{"$f":"[1]ACS_16_5YR_B18103_with_ann!AT1","v":"B18103_022E"},{"$f":"[1]ACS_16_5YR_B18103_with_ann!AU1","v":"B18103_022M"},{"$f":"[1]ACS_16_5YR_B18103_with_ann!AV1","v":"B18103_023E"},{"$f":"[1]ACS_16_5YR_B18103_with_ann!AW1","v":"B18103_023M"},{"$f":"[1]ACS_16_5YR_B18103_with_ann!AX1","v":"B18103_024E"},{"$f":"[1]ACS_16_5YR_B18103_with_ann!AY1","v":"B18103_024M"},{"$f":"[1]ACS_16_5YR_B18103_with_ann!AZ1","v":"B18103_025E"},{"$f":"[1]ACS_16_5YR_B18103_with_ann!BA1","v":"B18103_025M"},{"$f":"[1]ACS_16_5YR_B18103_with_ann!BB1","v":"B18103_026E"},{"$f":"[1]ACS_16_5YR_B18103_with_ann!BC1","v":"B18103_026M"},{"$f":"[1]ACS_16_5YR_B18103_with_ann!BD1","v":"B18103_027E"},{"$f":"[1]ACS_16_5YR_B18103_with_ann!BE1","v":"B18103_027M"},{"$f":"[1]ACS_16_5YR_B18103_with_ann!BF1","v":"B18103_028E"},{"$f":"[1]ACS_16_5YR_B18103_with_ann!BG1","v":"B18103_028M"},{"$f":"[1]ACS_16_5YR_B18103_with_ann!BH1","v":"B18103_029E"},{"$f":"[1]ACS_16_5YR_B18103_with_ann!BI1","v":"B18103_029M"},{"$f":"[1]ACS_16_5YR_B18103_with_ann!BJ1","v":"B18103_030E"},{"$f":"[1]ACS_16_5YR_B18103_with_ann!BK1","v":"B18103_030M"},{"$f":"[1]ACS_16_5YR_B18103_with_ann!BL1","v":"B18103_031E"},{"$f":"[1]ACS_16_5YR_B18103_with_ann!BM1","v":"B18103_031M"},{"$f":"[1]ACS_16_5YR_B18103_with_ann!BN1","v":"B18103_032E"},{"$f":"[1]ACS_16_5YR_B18103_with_ann!BO1","v":"B18103_032M"},{"$f":"[1]ACS_16_5YR_B18103_with_ann!BP1","v":"B18103_033E"},{"$f":"[1]ACS_16_5YR_B18103_with_ann!BQ1","v":"B18103_033M"},{"$f":"[1]ACS_16_5YR_B18103_with_ann!BR1","v":"B18103_034E"},{"$f":"[1]ACS_16_5YR_B18103_with_ann!BS1","v":"B18103_034M"},{"$f":"[1]ACS_16_5YR_B18103_with_ann!BT1","v":"B18103_035E"},{"$f":"[1]ACS_16_5YR_B18103_with_ann!BU1","v":"B18103_035M"},{"$f":"[1]ACS_16_5YR_B18103_with_ann!BV1","v":"B18103_036E"},{"$f":"[1]ACS_16_5YR_B18103_with_ann!BW1","v":"B18103_036M"},{"$f":"[1]ACS_16_5YR_B18103_with_ann!BX1","v":"B18103_037E"},{"$f":"[1]ACS_16_5YR_B18103_with_ann!BY1","v":"B18103_037M"},{"$f":"[1]ACS_16_5YR_B18103_with_ann!BZ1","v":"B18103_038E"},{"$f":"[1]ACS_16_5YR_B18103_with_ann!CA1","v":"B18103_038M"},{"$f":"[1]ACS_16_5YR_B18103_with_ann!CB1","v":"B18103_039E"},{"$f":"[1]ACS_16_5YR_B18103_with_ann!CC1","v":"B18103_039M"}]
["Geography Identifier","Geography Identifier","Geographic Summary Level","Geography",{"$f":"[1]ACS_16_5YR_B18103_with_ann!D2","v":"Estimate!!Total:"},{"$f":"[1]ACS_16_5YR_B18103_with_ann!E2","v":"Margin of Error!!Total:"},{"$f":"[1]ACS_16_5YR_B18103_with_ann!F2","v":"Estimate!!Total:!!Male:"},{"$f":"[1]ACS_16_5YR_B18103_with_ann!G2","v":"Margin of Error!!Total:!!Male:"},{"$f":"[1]ACS_16_5YR_B18103_with_ann!H2","v":"Estimate!!Total:!!Male:!!Under 5 years:"},{"$f":"[1]ACS_16_5YR_B18103_with_ann!I2","v":"Margin of Error!!Total:!!Male:!!Under 5 years:"},{"$f":"[1]ACS_16_5YR_B18103_with_ann!J2","v":"Estimate!!Total:!!Male:!!Under 5 years:!!With a vision difficulty"},{"$f":"[1]ACS_16_5YR_B18103_with_ann!K2","v":"Margin of Error!!Total:!!Male:!!Under 5 years:!!With a vision difficulty"},{"$f":"[1]ACS_16_5YR_B18103_with_ann!L2","v":"Estimate!!Total:!!Male:!!Under 5 years:!!No vision difficulty"},{"$f":"[1]ACS_16_5YR_B18103_with_ann!M2","v":"Margin of Error!!Total:!!Male:!!Under 5 years:!!No vision difficulty"},{"$f":"[1]ACS_16_5YR_B18103_with_ann!N2","v":"Estimate!!Total:!!Male:!!5 to 17 years:"},{"$f":"[1]ACS_16_5YR_B18103_with_ann!O2","v":"Margin of Error!!Total:!!Male:!!5 to 17 years:"},{"$f":"[1]ACS_16_5YR_B18103_with_ann!P2","v":"Estimate!!Total:!!Male:!!5 to 17 years:!!With a vision difficulty"},{"$f":"[1]ACS_16_5YR_B18103_with_ann!Q2","v":"Margin of Error!!Total:!!Male:!!5 to 17 years:!!With a vision difficulty"},{"$f":"[1]ACS_16_5YR_B18103_with_ann!R2","v":"Estimate!!Total:!!Male:!!5 to 17 years:!!No vision difficulty"},{"$f":"[1]ACS_16_5YR_B18103_with_ann!S2","v":"Margin of Error!!Total:!!Male:!!5 to 17 years:!!No vision difficulty"},{"$f":"[1]ACS_16_5YR_B18103_with_ann!T2","v":"Estimate!!Total:!!Male:!!18 to 34 years:"},{"$f":"[1]ACS_16_5YR_B18103_with_ann!U2","v":"Margin of Error!!Total:!!Male:!!18 to 34 years:"},{"$f":"[1]ACS_16_5YR_B18103_with_ann!V2","v":"Estimate!!Total:!!Male:!!18 to 34 years:!!With a vision difficulty"},{"$f":"[1]ACS_16_5YR_B18103_with_ann!W2","v":"Margin of Error!!Total:!!Male:!!18 to 34 years:!!With a vision difficulty"},{"$f":"[1]ACS_16_5YR_B18103_with_ann!X2","v":"Estimate!!Total:!!Male:!!18 to 34 years:!!No vision difficulty"},{"$f":"[1]ACS_16_5YR_B18103_with_ann!Y2","v":"Margin of Error!!Total:!!Male:!!18 to 34 years:!!No vision difficulty"},{"$f":"[1]ACS_16_5YR_B18103_with_ann!Z2","v":"Estimate!!Total:!!Male:!!35 to 64 years:"},{"$f":"[1]ACS_16_5YR_B18103_with_ann!AA2","v":"Margin of Error!!Total:!!Male:!!35 to 64 years:"},{"$f":"[1]ACS_16_5YR_B18103_with_ann!AB2","v":"Estimate!!Total:!!Male:!!35 to 64 years:!!With a vision difficulty"},{"$f":"[1]ACS_16_5YR_B18103_with_ann!AC2","v":"Margin of Error!!Total:!!Male:!!35 to 64 years:!!With a vision difficulty"},{"$f":"[1]ACS_16_5YR_B18103_with_ann!AD2","v":"Estimate!!Total:!!Male:!!35 to 64 years:!!No vision difficulty"},{"$f":"[1]ACS_16_5YR_B18103_with_ann!AE2","v":"Margin of Error!!Total:!!Male:!!35 to 64 years:!!No vision difficulty"},{"$f":"[1]ACS_16_5YR_B18103_with_ann!AF2","v":"Estimate!!Total:!!Male:!!65 to 74 years:"},{"$f":"[1]ACS_16_5YR_B18103_with_ann!AG2","v":"Margin of Error!!Total:!!Male:!!65 to 74 years:"},{"$f":"[1]ACS_16_5YR_B18103_with_ann!AH2","v":"Estimate!!Total:!!Male:!!65 to 74 years:!!With a vision difficulty"},{"$f":"[1]ACS_16_5YR_B18103_with_ann!AI2","v":"Margin of Error!!Total:!!Male:!!65 to 74 years:!!With a vision difficulty"},{"$f":"[1]ACS_16_5YR_B18103_with_ann!AJ2","v":"Estimate!!Total:!!Male:!!65 to 74 years:!!No vision difficulty"},{"$f":"[1]ACS_16_5YR_B18103_with_ann!AK2","v":"Margin of Error!!Total:!!Male:!!65 to 74 years:!!No vision difficulty"},{"$f":"[1]ACS_16_5YR_B18103_with_ann!AL2","v":"Estimate!!Total:!!Male:!!75 years and over:"},{"$f":"[1]ACS_16_5YR_B18103_with_ann!AM2","v":"Margin of Error!!Total:!!Male:!!75 years and over:"},{"$f":"[1]ACS_16_5YR_B18103_with_ann!AN2","v":"Estimate!!Total:!!Male:!!75 years and over:!!With a vision difficulty"},{"$f":"[1]ACS_16_5YR_B18103_with_ann!AO2","v":"Margin of Error!!Total:!!Male:!!75 years and over:!!With a vision difficulty"},{"$f":"[1]ACS_16_5YR_B18103_with_ann!AP2","v":"Estimate!!Total:!!Male:!!75 years and over:!!No vision difficulty"},{"$f":"[1]ACS_16_5YR_B18103_with_ann!AQ2","v":"Margin of Error!!Total:!!Male:!!75 years and over:!!No vision difficulty"},{"$f":"[1]ACS_16_5YR_B18103_with_ann!AR2","v":"Estimate!!Total:!!Female:"},{"$f":"[1]ACS_16_5YR_B18103_with_ann!AS2","v":"Margin of Error!!Total:!!Female:"},{"$f":"[1]ACS_16_5YR_B18103_with_ann!AT2","v":"Estimate!!Total:!!Female:!!Under 5 years:"},{"$f":"[1]ACS_16_5YR_B18103_with_ann!AU2","v":"Margin of Error!!Total:!!Female:!!Under 5 years:"},{"$f":"[1]ACS_16_5YR_B18103_with_ann!AV2","v":"Estimate!!Total:!!Female:!!Under 5 years:!!With a vision difficulty"},{"$f":"[1]ACS_16_5YR_B18103_with_ann!AW2","v":"Margin of Error!!Total:!!Female:!!Under 5 years:!!With a vision difficulty"},{"$f":"[1]ACS_16_5YR_B18103_with_ann!AX2","v":"Estimate!!Total:!!Female:!!Under 5 years:!!No vision difficulty"},{"$f":"[1]ACS_16_5YR_B18103_with_ann!AY2","v":"Margin of Error!!Total:!!Female:!!Under 5 years:!!No vision difficulty"},{"$f":"[1]ACS_16_5YR_B18103_with_ann!AZ2","v":"Estimate!!Total:!!Female:!!5 to 17 years:"},{"$f":"[1]ACS_16_5YR_B18103_with_ann!BA2","v":"Margin of Error!!Total:!!Female:!!5 to 17 years:"},{"$f":"[1]ACS_16_5YR_B18103_with_ann!BB2","v":"Estimate!!Total:!!Female:!!5 to 17 years:!!With a vision difficulty"},{"$f":"[1]ACS_16_5YR_B18103_with_ann!BC2","v":"Margin of Error!!Total:!!Female:!!5 to 17 years:!!With a vision difficulty"},{"$f":"[1]ACS_16_5YR_B18103_with_ann!BD2","v":"Estimate!!Total:!!Female:!!5 to 17 years:!!No vision difficulty"},{"$f":"[1]ACS_16_5YR_B18103_with_ann!BE2","v":"Margin of Error!!Total:!!Female:!!5 to 17 years:!!No vision difficulty"},{"$f":"[1]ACS_16_5YR_B18103_with_ann!BF2","v":"Estimate!!Total:!!Female:!!18 to 34 years:"},{"$f":"[1]ACS_16_5YR_B18103_with_ann!BG2","v":"Margin of Error!!Total:!!Female:!!18 to 34 years:"},{"$f":"[1]ACS_16_5YR_B18103_with_ann!BH2","v":"Estimate!!Total:!!Female:!!18 to 34 years:!!With a vision difficulty"},{"$f":"[1]ACS_16_5YR_B18103_with_ann!BI2","v":"Margin of Error!!Total:!!Female:!!18 to 34 years:!!With a vision difficulty"},{"$f":"[1]ACS_16_5YR_B18103_with_ann!BJ2","v":"Estimate!!Total:!!Female:!!18 to 34 years:!!No vision difficulty"},{"$f":"[1]ACS_16_5YR_B18103_with_ann!BK2","v":"Margin of Error!!Total:!!Female:!!18 to 34 years:!!No vision difficulty"},{"$f":"[1]ACS_16_5YR_B18103_with_ann!BL2","v":"Estimate!!Total:!!Female:!!35 to 64 years:"},{"$f":"[1]ACS_16_5YR_B18103_with_ann!BM2","v":"Margin of Error!!Total:!!Female:!!35 to 64 years:"},{"$f":"[1]ACS_16_5YR_B18103_with_ann!BN2","v":"Estimate!!Total:!!Female:!!35 to 64 years:!!With a vision difficulty"},{"$f":"[1]ACS_16_5YR_B18103_with_ann!BO2","v":"Margin of Error!!Total:!!Female:!!35 to 64 years:!!With a vision difficulty"},{"$f":"[1]ACS_16_5YR_B18103_with_ann!BP2","v":"Estimate!!Total:!!Female:!!35 to 64 years:!!No vision difficulty"},{"$f":"[1]ACS_16_5YR_B18103_with_ann!BQ2","v":"Margin of Error!!Total:!!Female:!!35 to 64 years:!!No vision difficulty"},{"$f":"[1]ACS_16_5YR_B18103_with_ann!BR2","v":"Estimate!!Total:!!Female:!!65 to 74 years:"},{"$f":"[1]ACS_16_5YR_B18103_with_ann!BS2","v":"Margin of Error!!Total:!!Female:!!65 to 74 years:"},{"$f":"[1]ACS_16_5YR_B18103_with_ann!BT2","v":"Estimate!!Total:!!Female:!!65 to 74 years:!!With a vision difficulty"},{"$f":"[1]ACS_16_5YR_B18103_with_ann!BU2","v":"Margin of Error!!Total:!!Female:!!65 to 74 years:!!With a vision difficulty"},{"$f":"[1]ACS_16_5YR_B18103_with_ann!BV2","v":"Estimate!!Total:!!Female:!!65 to 74 years:!!No vision difficulty"},{"$f":"[1]ACS_16_5YR_B18103_with_ann!BW2","v":"Margin of Error!!Total:!!Female:!!65 to 74 years:!!No vision difficulty"},{"$f":"[1]ACS_16_5YR_B18103_with_ann!BX2","v":"Estimate!!Total:!!Female:!!75 years and over:"},{"$f":"[1]ACS_16_5YR_B18103_with_ann!BY2","v":"Margin of Error!!Total:!!Female:!!75 years and over:"},{"$f":"[1]ACS_16_5YR_B18103_with_ann!BZ2","v":"Estimate!!Total:!!Female:!!75 years and over:!!With a vision difficulty"},{"$f":"[1]ACS_16_5YR_B18103_with_ann!CA2","v":"Margin of Error!!Total:!!Female:!!75 years and over:!!With a vision difficulty"},{"$f":"[1]ACS_16_5YR_B18103_with_ann!CB2","v":"Estimate!!Total:!!Female:!!75 years and over:!!No vision difficulty"},{"$f":"[1]ACS_16_5YR_B18103_with_ann!CC2","v":"Margin of Error!!Total:!!Female:!!75 years and over:!!No vision difficulty"}]
["06000US3300500820","0600000US3300512260","060",{"$f":"[1]ACS_16_5YR_B18103_with_ann!C44","v":"Alstead"},{"$f":"[1]ACS_16_5YR_B18103_with_ann!D44","v":1599},{"$f":"[1]ACS_16_5YR_B18103_with_ann!E44","v":169},{"$f":"[1]ACS_16_5YR_B18103_with_ann!F44","v":770},{"$f":"[1]ACS_16_5YR_B18103_with_ann!G44","v":116},{"$f":"[1]ACS_16_5YR_B18103_with_ann!H44","v":12},{"$f":"[1]ACS_16_5YR_B18103_with_ann!I44","v":11},{"$f":"[1]ACS_16_5YR_B18103_with_ann!J44","v":0},{"$f":"[1]ACS_16_5YR_B18103_with_ann!K44","v":12},{"$f":"[1]ACS_16_5YR_B18103_with_ann!L44","v":12},{"$f":"[1]ACS_16_5YR_B18103_with_ann!M44","v":11},{"$f":"[1]ACS_16_5YR_B18103_with_ann!N44","v":96},{"$f":"[1]ACS_16_5YR_B18103_with_ann!O44","v":55},{"$f":"[1]ACS_16_5YR_B18103_with_ann!P44","v":0},{"$f":"[1]ACS_16_5YR_B18103_with_ann!Q44","v":12},{"$f":"[1]ACS_16_5YR_B18103_with_ann!R44","v":96},{"$f":"[1]ACS_16_5YR_B18103_with_ann!S44","v":55},{"$f":"[1]ACS_16_5YR_B18103_with_ann!T44","v":147},{"$f":"[1]ACS_16_5YR_B18103_with_ann!U44","v":61},{"$f":"[1]ACS_16_5YR_B18103_with_ann!V44","v":19},{"$f":"[1]ACS_16_5YR_B18103_with_ann!W44","v":26},{"$f":"[1]ACS_16_5YR_B18103_with_ann!X44","v":128},{"$f":"[1]ACS_16_5YR_B18103_with_ann!Y44","v":58},{"$f":"[1]ACS_16_5YR_B18103_with_ann!Z44","v":357},{"$f":"[1]ACS_16_5YR_B18103_with_ann!AA44","v":76},{"$f":"[1]ACS_16_5YR_B18103_with_ann!AB44","v":5},{"$f":"[1]ACS_16_5YR_B18103_with_ann!AC44","v":7},{"$f":"[1]ACS_16_5YR_B18103_with_ann!AD44","v":352},{"$f":"[1]ACS_16_5YR_B18103_with_ann!AE44","v":77},{"$f":"[1]ACS_16_5YR_B18103_with_ann!AF44","v":106},{"$f":"[1]ACS_16_5YR_B18103_with_ann!AG44","v":42},{"$f":"[1]ACS_16_5YR_B18103_with_ann!AH44","v":0},{"$f":"[1]ACS_16_5YR_B18103_with_ann!AI44","v":12},{"$f":"[1]ACS_16_5YR_B18103_with_ann!AJ44","v":106},{"$f":"[1]ACS_16_5YR_B18103_with_ann!AK44","v":42},{"$f":"[1]ACS_16_5YR_B18103_with_ann!AL44","v":52},{"$f":"[1]ACS_16_5YR_B18103_with_ann!AM44","v":33},{"$f":"[1]ACS_16_5YR_B18103_with_ann!AN44","v":0},{"$f":"[1]ACS_16_5YR_B18103_with_ann!AO44","v":12},{"$f":"[1]ACS_16_5YR_B18103_with_ann!AP44","v":52},{"$f":"[1]ACS_16_5YR_B18103_with_ann!AQ44","v":33},{"$f":"[1]ACS_16_5YR_B18103_with_ann!AR44","v":829},{"$f":"[1]ACS_16_5YR_B18103_with_ann!AS44","v":95},{"$f":"[1]ACS_16_5YR_B18103_with_ann!AT44","v":20},{"$f":"[1]ACS_16_5YR_B18103_with_ann!AU44","v":19},{"$f":"[1]ACS_16_5YR_B18103_with_ann!AV44","v":0},{"$f":"[1]ACS_16_5YR_B18103_with_ann!AW44","v":12},{"$f":"[1]ACS_16_5YR_B18103_with_ann!AX44","v":20},{"$f":"[1]ACS_16_5YR_B18103_with_ann!AY44","v":19},{"$f":"[1]ACS_16_5YR_B18103_with_ann!AZ44","v":100},{"$f":"[1]ACS_16_5YR_B18103_with_ann!BA44","v":34},{"$f":"[1]ACS_16_5YR_B18103_with_ann!BB44","v":0},{"$f":"[1]ACS_16_5YR_B18103_with_ann!BC44","v":12},{"$f":"[1]ACS_16_5YR_B18103_with_ann!BD44","v":100},{"$f":"[1]ACS_16_5YR_B18103_with_ann!BE44","v":34},{"$f":"[1]ACS_16_5YR_B18103_with_ann!BF44","v":117},{"$f":"[1]ACS_16_5YR_B18103_with_ann!BG44","v":55},{"$f":"[1]ACS_16_5YR_B18103_with_ann!BH44","v":0},{"$f":"[1]ACS_16_5YR_B18103_with_ann!BI44","v":12},{"$f":"[1]ACS_16_5YR_B18103_with_ann!BJ44","v":117},{"$f":"[1]ACS_16_5YR_B18103_with_ann!BK44","v":55},{"$f":"[1]ACS_16_5YR_B18103_with_ann!BL44","v":329},{"$f":"[1]ACS_16_5YR_B18103_with_ann!BM44","v":67},{"$f":"[1]ACS_16_5YR_B18103_with_ann!BN44","v":0},{"$f":"[1]ACS_16_5YR_B18103_with_ann!BO44","v":12},{"$f":"[1]ACS_16_5YR_B18103_with_ann!BP44","v":329},{"$f":"[1]ACS_16_5YR_B18103_with_ann!BQ44","v":67},{"$f":"[1]ACS_16_5YR_B18103_with_ann!BR44","v":173},{"$f":"[1]ACS_16_5YR_B18103_with_ann!BS44","v":71},{"$f":"[1]ACS_16_5YR_B18103_with_ann!BT44","v":0},{"$f":"[1]ACS_16_5YR_B18103_with_ann!BU44","v":12},{"$f":"[1]ACS_16_5YR_B18103_with_ann!BV44","v":173},{"$f":"[1]ACS_16_5YR_B18103_with_ann!BW44","v":71},{"$f":"[1]ACS_16_5YR_B18103_with_ann!BX44","v":90},{"$f":"[1]ACS_16_5YR_B18103_with_ann!BY44","v":47},{"$f":"[1]ACS_16_5YR_B18103_with_ann!BZ44","v":6},{"$f":"[1]ACS_16_5YR_B18103_with_ann!CA44","v":7},{"$f":"[1]ACS_16_5YR_B18103_with_ann!CB44","v":84},{"$f":"[1]ACS_16_5YR_B18103_with_ann!CC44","v":46}]
["06000US3300512260","0600000US3300519140","060",{"$f":"[1]ACS_16_5YR_B18103_with_ann!C45","v":"Chesterfield"},{"$f":"[1]ACS_16_5YR_B18103_with_ann!D45","v":3577},{"$f":"[1]ACS_16_5YR_B18103_with_ann!E45","v":15},{"$f":"[1]ACS_16_5YR_B18103_with_ann!F45","v":2000},{"$f":"[1]ACS_16_5YR_B18103_with_ann!G45","v":139},{"$f":"[1]ACS_16_5YR_B18103_with_ann!H45","v":121},{"$f":"[1]ACS_16_5YR_B18103_with_ann!I45","v":74},{"$f":"[1]ACS_16_5YR_B18103_with_ann!J45","v":0},{"$f":"[1]ACS_16_5YR_B18103_with_ann!K45","v":12},{"$f":"[1]ACS_16_5YR_B18103_with_ann!L45","v":121},{"$f":"[1]ACS_16_5YR_B18103_with_ann!M45","v":74},{"$f":"[1]ACS_16_5YR_B18103_with_ann!N45","v":452},{"$f":"[1]ACS_16_5YR_B18103_with_ann!O45","v":132},{"$f":"[1]ACS_16_5YR_B18103_with_ann!P45","v":0},{"$f":"[1]ACS_16_5YR_B18103_with_ann!Q45","v":12},{"$f":"[1]ACS_16_5YR_B18103_with_ann!R45","v":452},{"$f":"[1]ACS_16_5YR_B18103_with_ann!S45","v":132},{"$f":"[1]ACS_16_5YR_B18103_with_ann!T45","v":366},{"$f":"[1]ACS_16_5YR_B18103_with_ann!U45","v":146},{"$f":"[1]ACS_16_5YR_B18103_with_ann!V45","v":0},{"$f":"[1]ACS_16_5YR_B18103_with_ann!W45","v":12},{"$f":"[1]ACS_16_5YR_B18103_with_ann!X45","v":366},{"$f":"[1]ACS_16_5YR_B18103_with_ann!Y45","v":146},{"$f":"[1]ACS_16_5YR_B18103_with_ann!Z45","v":537},{"$f":"[1]ACS_16_5YR_B18103_with_ann!AA45","v":175},{"$f":"[1]ACS_16_5YR_B18103_with_ann!AB45","v":0},{"$f":"[1]ACS_16_5YR_B18103_with_ann!AC45","v":12},{"$f":"[1]ACS_16_5YR_B18103_with_ann!AD45","v":537},{"$f":"[1]ACS_16_5YR_B18103_with_ann!AE45","v":175},{"$f":"[1]ACS_16_5YR_B18103_with_ann!AF45","v":367},{"$f":"[1]ACS_16_5YR_B18103_with_ann!AG45","v":125},{"$f":"[1]ACS_16_5YR_B18103_with_ann!AH45","v":44},{"$f":"[1]ACS_16_5YR_B18103_with_ann!AI45","v":63},{"$f":"[1]ACS_16_5YR_B18103_with_ann!AJ45","v":323},{"$f":"[1]ACS_16_5YR_B18103_with_ann!AK45","v":119},{"$f":"[1]ACS_16_5YR_B18103_with_ann!AL45","v":157},{"$f":"[1]ACS_16_5YR_B18103_with_ann!AM45","v":80},{"$f":"[1]ACS_16_5YR_B18103_with_ann!AN45","v":17},{"$f":"[1]ACS_16_5YR_B18103_with_ann!AO45","v":27},{"$f":"[1]ACS_16_5YR_B18103_with_ann!AP45","v":140},{"$f":"[1]ACS_16_5YR_B18103_with_ann!AQ45","v":77},{"$f":"[1]ACS_16_5YR_B18103_with_ann!AR45","v":1577},{"$f":"[1]ACS_16_5YR_B18103_with_ann!AS45","v":140},{"$f":"[1]ACS_16_5YR_B18103_with_ann!AT45","v":20},{"$f":"[1]ACS_16_5YR_B18103_with_ann!AU45","v":30},{"$f":"[1]ACS_16_5YR_B18103_with_ann!AV45","v":0},{"$f":"[1]ACS_16_5YR_B18103_with_ann!AW45","v":12},{"$f":"[1]ACS_16_5YR_B18103_with_ann!AX45","v":20},{"$f":"[1]ACS_16_5YR_B18103_with_ann!AY45","v":30},{"$f":"[1]ACS_16_5YR_B18103_with_ann!AZ45","v":144},{"$f":"[1]ACS_16_5YR_B18103_with_ann!BA45","v":80},{"$f":"[1]ACS_16_5YR_B18103_with_ann!BB45","v":0},{"$f":"[1]ACS_16_5YR_B18103_with_ann!BC45","v":12},{"$f":"[1]ACS_16_5YR_B18103_with_ann!BD45","v":144},{"$f":"[1]ACS_16_5YR_B18103_with_ann!BE45","v":80},{"$f":"[1]ACS_16_5YR_B18103_with_ann!BF45","v":323},{"$f":"[1]ACS_16_5YR_B18103_with_ann!BG45","v":125},{"$f":"[1]ACS_16_5YR_B18103_with_ann!BH45","v":0},{"$f":"[1]ACS_16_5YR_B18103_with_ann!BI45","v":12},{"$f":"[1]ACS_16_5YR_B18103_with_ann!BJ45","v":323},{"$f":"[1]ACS_16_5YR_B18103_with_ann!BK45","v":125},{"$f":"[1]ACS_16_5YR_B18103_with_ann!BL45","v":729},{"$f":"[1]ACS_16_5YR_B18103_with_ann!BM45","v":167},{"$f":"[1]ACS_16_5YR_B18103_with_ann!BN45","v":11},{"$f":"[1]ACS_16_5YR_B18103_with_ann!BO45","v":19},{"$f":"[1]ACS_16_5YR_B18103_with_ann!BP45","v":718},{"$f":"[1]ACS_16_5YR_B18103_with_ann!BQ45","v":166},{"$f":"[1]ACS_16_5YR_B18103_with_ann!BR45","v":244},{"$f":"[1]ACS_16_5YR_B18103_with_ann!BS45","v":110},{"$f":"[1]ACS_16_5YR_B18103_with_ann!BT45","v":0},{"$f":"[1]ACS_16_5YR_B18103_with_ann!BU45","v":12},{"$f":"[1]ACS_16_5YR_B18103_with_ann!BV45","v":244},{"$f":"[1]ACS_16_5YR_B18103_with_ann!BW45","v":110},{"$f":"[1]ACS_16_5YR_B18103_with_ann!BX45","v":117},{"$f":"[1]ACS_16_5YR_B18103_with_ann!BY45","v":76},{"$f":"[1]ACS_16_5YR_B18103_with_ann!BZ45","v":0},{"$f":"[1]ACS_16_5YR_B18103_with_ann!CA45","v":12},{"$f":"[1]ACS_16_5YR_B18103_with_ann!CB45","v":117},{"$f":"[1]ACS_16_5YR_B18103_with_ann!CC45","v":76}]
["06000US3300519140","0600000US3300526500","060",{"$f":"[1]ACS_16_5YR_B18103_with_ann!C46","v":"Dublin"},{"$f":"[1]ACS_16_5YR_B18103_with_ann!D46","v":1711},{"$f":"[1]ACS_16_5YR_B18103_with_ann!E46","v":216},{"$f":"[1]ACS_16_5YR_B18103_with_ann!F46","v":800},{"$f":"[1]ACS_16_5YR_B18103_with_ann!G46","v":118},{"$f":"[1]ACS_16_5YR_B18103_with_ann!H46","v":24},{"$f":"[1]ACS_16_5YR_B18103_with_ann!I46","v":19},{"$f":"[1]ACS_16_5YR_B18103_with_ann!J46","v":0},{"$f":"[1]ACS_16_5YR_B18103_with_ann!K46","v":12},{"$f":"[1]ACS_16_5YR_B18103_with_ann!L46","v":24},{"$f":"[1]ACS_16_5YR_B18103_with_ann!M46","v":19},{"$f":"[1]ACS_16_5YR_B18103_with_ann!N46","v":97},{"$f":"[1]ACS_16_5YR_B18103_with_ann!O46","v":40},{"$f":"[1]ACS_16_5YR_B18103_with_ann!P46","v":0},{"$f":"[1]ACS_16_5YR_B18103_with_ann!Q46","v":12},{"$f":"[1]ACS_16_5YR_B18103_with_ann!R46","v":97},{"$f":"[1]ACS_16_5YR_B18103_with_ann!S46","v":40},{"$f":"[1]ACS_16_5YR_B18103_with_ann!T46","v":136},{"$f":"[1]ACS_16_5YR_B18103_with_ann!U46","v":55},{"$f":"[1]ACS_16_5YR_B18103_with_ann!V46","v":0},{"$f":"[1]ACS_16_5YR_B18103_with_ann!W46","v":12},{"$f":"[1]ACS_16_5YR_B18103_with_ann!X46","v":136},{"$f":"[1]ACS_16_5YR_B18103_with_ann!Y46","v":55},{"$f":"[1]ACS_16_5YR_B18103_with_ann!Z46","v":338},{"$f":"[1]ACS_16_5YR_B18103_with_ann!AA46","v":83},{"$f":"[1]ACS_16_5YR_B18103_with_ann!AB46","v":10},{"$f":"[1]ACS_16_5YR_B18103_with_ann!AC46","v":13},{"$f":"[1]ACS_16_5YR_B18103_with_ann!AD46","v":328},{"$f":"[1]ACS_16_5YR_B18103_with_ann!AE46","v":78},{"$f":"[1]ACS_16_5YR_B18103_with_ann!AF46","v":153},{"$f":"[1]ACS_16_5YR_B18103_with_ann!AG46","v":64},{"$f":"[1]ACS_16_5YR_B18103_with_ann!AH46","v":0},{"$f":"[1]ACS_16_5YR_B18103_with_ann!AI46","v":12},{"$f":"[1]ACS_16_5YR_B18103_with_ann!AJ46","v":153},{"$f":"[1]ACS_16_5YR_B18103_with_ann!AK46","v":64},{"$f":"[1]ACS_16_5YR_B18103_with_ann!AL46","v":52},{"$f":"[1]ACS_16_5YR_B18103_with_ann!AM46","v":26},{"$f":"[1]ACS_16_5YR_B18103_with_ann!AN46","v":0},{"$f":"[1]ACS_16_5YR_B18103_with_ann!AO46","v":12},{"$f":"[1]ACS_16_5YR_B18103_with_ann!AP46","v":52},{"$f":"[1]ACS_16_5YR_B18103_with_ann!AQ46","v":26},{"$f":"[1]ACS_16_5YR_B18103_with_ann!AR46","v":911},{"$f":"[1]ACS_16_5YR_B18103_with_ann!AS46","v":135},{"$f":"[1]ACS_16_5YR_B18103_with_ann!AT46","v":57},{"$f":"[1]ACS_16_5YR_B18103_with_ann!AU46","v":32},{"$f":"[1]ACS_16_5YR_B18103_with_ann!AV46","v":0},{"$f":"[1]ACS_16_5YR_B18103_with_ann!AW46","v":12},{"$f":"[1]ACS_16_5YR_B18103_with_ann!AX46","v":57},{"$f":"[1]ACS_16_5YR_B18103_with_ann!AY46","v":32},{"$f":"[1]ACS_16_5YR_B18103_with_ann!AZ46","v":149},{"$f":"[1]ACS_16_5YR_B18103_with_ann!BA46","v":44},{"$f":"[1]ACS_16_5YR_B18103_with_ann!BB46","v":0},{"$f":"[1]ACS_16_5YR_B18103_with_ann!BC46","v":12},{"$f":"[1]ACS_16_5YR_B18103_with_ann!BD46","v":149},{"$f":"[1]ACS_16_5YR_B18103_with_ann!BE46","v":44},{"$f":"[1]ACS_16_5YR_B18103_with_ann!BF46","v":63},{"$f":"[1]ACS_16_5YR_B18103_with_ann!BG46","v":26},{"$f":"[1]ACS_16_5YR_B18103_with_ann!BH46","v":0},{"$f":"[1]ACS_16_5YR_B18103_with_ann!BI46","v":12},{"$f":"[1]ACS_16_5YR_B18103_with_ann!BJ46","v":63},{"$f":"[1]ACS_16_5YR_B18103_with_ann!BK46","v":26},{"$f":"[1]ACS_16_5YR_B18103_with_ann!BL46","v":404},{"$f":"[1]ACS_16_5YR_B18103_with_ann!BM46","v":97},{"$f":"[1]ACS_16_5YR_B18103_with_ann!BN46","v":0},{"$f":"[1]ACS_16_5YR_B18103_with_ann!BO46","v":12},{"$f":"[1]ACS_16_5YR_B18103_with_ann!BP46","v":404},{"$f":"[1]ACS_16_5YR_B18103_with_ann!BQ46","v":97},{"$f":"[1]ACS_16_5YR_B18103_with_ann!BR46","v":162},{"$f":"[1]ACS_16_5YR_B18103_with_ann!BS46","v":54},{"$f":"[1]ACS_16_5YR_B18103_with_ann!BT46","v":0},{"$f":"[1]ACS_16_5YR_B18103_with_ann!BU46","v":12},{"$f":"[1]ACS_16_5YR_B18103_with_ann!BV46","v":162},{"$f":"[1]ACS_16_5YR_B18103_with_ann!BW46","v":54},{"$f":"[1]ACS_16_5YR_B18103_with_ann!BX46","v":76},{"$f":"[1]ACS_16_5YR_B18103_with_ann!BY46","v":51},{"$f":"[1]ACS_16_5YR_B18103_with_ann!BZ46","v":2},{"$f":"[1]ACS_16_5YR_B18103_with_ann!CA46","v":3},{"$f":"[1]ACS_16_5YR_B18103_with_ann!CB46","v":74},{"$f":"[1]ACS_16_5YR_B18103_with_ann!CC46","v":51}]
["06000US3300526500","0600000US3300529220","060",{"$f":"[1]ACS_16_5YR_B18103_with_ann!C47","v":"Fitzwilliam"},{"$f":"[1]ACS_16_5YR_B18103_with_ann!D47","v":2287},{"$f":"[1]ACS_16_5YR_B18103_with_ann!E47","v":368},{"$f":"[1]ACS_16_5YR_B18103_with_ann!F47","v":1203},{"$f":"[1]ACS_16_5YR_B18103_with_ann!G47","v":216},{"$f":"[1]ACS_16_5YR_B18103_with_ann!H47","v":33},{"$f":"[1]ACS_16_5YR_B18103_with_ann!I47","v":23},{"$f":"[1]ACS_16_5YR_B18103_with_ann!J47","v":0},{"$f":"[1]ACS_16_5YR_B18103_with_ann!K47","v":12},{"$f":"[1]ACS_16_5YR_B18103_with_ann!L47","v":33},{"$f":"[1]ACS_16_5YR_B18103_with_ann!M47","v":23},{"$f":"[1]ACS_16_5YR_B18103_with_ann!N47","v":101},{"$f":"[1]ACS_16_5YR_B18103_with_ann!O47","v":36},{"$f":"[1]ACS_16_5YR_B18103_with_ann!P47","v":4},{"$f":"[1]ACS_16_5YR_B18103_with_ann!Q47","v":5},{"$f":"[1]ACS_16_5YR_B18103_with_ann!R47","v":97},{"$f":"[1]ACS_16_5YR_B18103_with_ann!S47","v":35},{"$f":"[1]ACS_16_5YR_B18103_with_ann!T47","v":226},{"$f":"[1]ACS_16_5YR_B18103_with_ann!U47","v":92},{"$f":"[1]ACS_16_5YR_B18103_with_ann!V47","v":4},{"$f":"[1]ACS_16_5YR_B18103_with_ann!W47","v":6},{"$f":"[1]ACS_16_5YR_B18103_with_ann!X47","v":222},{"$f":"[1]ACS_16_5YR_B18103_with_ann!Y47","v":92},{"$f":"[1]ACS_16_5YR_B18103_with_ann!Z47","v":605},{"$f":"[1]ACS_16_5YR_B18103_with_ann!AA47","v":177},{"$f":"[1]ACS_16_5YR_B18103_with_ann!AB47","v":0},{"$f":"[1]ACS_16_5YR_B18103_with_ann!AC47","v":12},{"$f":"[1]ACS_16_5YR_B18103_with_ann!AD47","v":605},{"$f":"[1]ACS_16_5YR_B18103_with_ann!AE47","v":177},{"$f":"[1]ACS_16_5YR_B18103_with_ann!AF47","v":195},{"$f":"[1]ACS_16_5YR_B18103_with_ann!AG47","v":55},{"$f":"[1]ACS_16_5YR_B18103_with_ann!AH47","v":7},{"$f":"[1]ACS_16_5YR_B18103_with_ann!AI47","v":8},{"$f":"[1]ACS_16_5YR_B18103_with_ann!AJ47","v":188},{"$f":"[1]ACS_16_5YR_B18103_with_ann!AK47","v":55},{"$f":"[1]ACS_16_5YR_B18103_with_ann!AL47","v":43},{"$f":"[1]ACS_16_5YR_B18103_with_ann!AM47","v":19},{"$f":"[1]ACS_16_5YR_B18103_with_ann!AN47","v":0},{"$f":"[1]ACS_16_5YR_B18103_with_ann!AO47","v":12},{"$f":"[1]ACS_16_5YR_B18103_with_ann!AP47","v":43},{"$f":"[1]ACS_16_5YR_B18103_with_ann!AQ47","v":19},{"$f":"[1]ACS_16_5YR_B18103_with_ann!AR47","v":1084},{"$f":"[1]ACS_16_5YR_B18103_with_ann!AS47","v":188},{"$f":"[1]ACS_16_5YR_B18103_with_ann!AT47","v":45},{"$f":"[1]ACS_16_5YR_B18103_with_ann!AU47","v":46},{"$f":"[1]ACS_16_5YR_B18103_with_ann!AV47","v":0},{"$f":"[1]ACS_16_5YR_B18103_with_ann!AW47","v":12},{"$f":"[1]ACS_16_5YR_B18103_with_ann!AX47","v":45},{"$f":"[1]ACS_16_5YR_B18103_with_ann!AY47","v":46},{"$f":"[1]ACS_16_5YR_B18103_with_ann!AZ47","v":106},{"$f":"[1]ACS_16_5YR_B18103_with_ann!BA47","v":53},{"$f":"[1]ACS_16_5YR_B18103_with_ann!BB47","v":14},{"$f":"[1]ACS_16_5YR_B18103_with_ann!BC47","v":21},{"$f":"[1]ACS_16_5YR_B18103_with_ann!BD47","v":92},{"$f":"[1]ACS_16_5YR_B18103_with_ann!BE47","v":39},{"$f":"[1]ACS_16_5YR_B18103_with_ann!BF47","v":151},{"$f":"[1]ACS_16_5YR_B18103_with_ann!BG47","v":78},{"$f":"[1]ACS_16_5YR_B18103_with_ann!BH47","v":4},{"$f":"[1]ACS_16_5YR_B18103_with_ann!BI47","v":6},{"$f":"[1]ACS_16_5YR_B18103_with_ann!BJ47","v":147},{"$f":"[1]ACS_16_5YR_B18103_with_ann!BK47","v":77},{"$f":"[1]ACS_16_5YR_B18103_with_ann!BL47","v":484},{"$f":"[1]ACS_16_5YR_B18103_with_ann!BM47","v":84},{"$f":"[1]ACS_16_5YR_B18103_with_ann!BN47","v":0},{"$f":"[1]ACS_16_5YR_B18103_with_ann!BO47","v":12},{"$f":"[1]ACS_16_5YR_B18103_with_ann!BP47","v":484},{"$f":"[1]ACS_16_5YR_B18103_with_ann!BQ47","v":84},{"$f":"[1]ACS_16_5YR_B18103_with_ann!BR47","v":251},{"$f":"[1]ACS_16_5YR_B18103_with_ann!BS47","v":106},{"$f":"[1]ACS_16_5YR_B18103_with_ann!BT47","v":4},{"$f":"[1]ACS_16_5YR_B18103_with_ann!BU47","v":6},{"$f":"[1]ACS_16_5YR_B18103_with_ann!BV47","v":247},{"$f":"[1]ACS_16_5YR_B18103_with_ann!BW47","v":105},{"$f":"[1]ACS_16_5YR_B18103_with_ann!BX47","v":47},{"$f":"[1]ACS_16_5YR_B18103_with_ann!BY47","v":27},{"$f":"[1]ACS_16_5YR_B18103_with_ann!BZ47","v":4},{"$f":"[1]ACS_16_5YR_B18103_with_ann!CA47","v":7},{"$f":"[1]ACS_16_5YR_B18103_with_ann!CB47","v":43},{"$f":"[1]ACS_16_5YR_B18103_with_ann!CC47","v":26}]
["06000US3300529220","0600000US3300534420","060",{"$f":"[1]ACS_16_5YR_B18103_with_ann!C48","v":"Gilsum"},{"$f":"[1]ACS_16_5YR_B18103_with_ann!D48","v":871},{"$f":"[1]ACS_16_5YR_B18103_with_ann!E48","v":144},{"$f":"[1]ACS_16_5YR_B18103_with_ann!F48","v":452},{"$f":"[1]ACS_16_5YR_B18103_with_ann!G48","v":88},{"$f":"[1]ACS_16_5YR_B18103_with_ann!H48","v":33},{"$f":"[1]ACS_16_5YR_B18103_with_ann!I48","v":23},{"$f":"[1]ACS_16_5YR_B18103_with_ann!J48","v":0},{"$f":"[1]ACS_16_5YR_B18103_with_ann!K48","v":12},{"$f":"[1]ACS_16_5YR_B18103_with_ann!L48","v":33},{"$f":"[1]ACS_16_5YR_B18103_with_ann!M48","v":23},{"$f":"[1]ACS_16_5YR_B18103_with_ann!N48","v":52},{"$f":"[1]ACS_16_5YR_B18103_with_ann!O48","v":31},{"$f":"[1]ACS_16_5YR_B18103_with_ann!P48","v":18},{"$f":"[1]ACS_16_5YR_B18103_with_ann!Q48","v":28},{"$f":"[1]ACS_16_5YR_B18103_with_ann!R48","v":34},{"$f":"[1]ACS_16_5YR_B18103_with_ann!S48","v":16},{"$f":"[1]ACS_16_5YR_B18103_with_ann!T48","v":119},{"$f":"[1]ACS_16_5YR_B18103_with_ann!U48","v":56},{"$f":"[1]ACS_16_5YR_B18103_with_ann!V48","v":2},{"$f":"[1]ACS_16_5YR_B18103_with_ann!W48","v":3},{"$f":"[1]ACS_16_5YR_B18103_with_ann!X48","v":117},{"$f":"[1]ACS_16_5YR_B18103_with_ann!Y48","v":56},{"$f":"[1]ACS_16_5YR_B18103_with_ann!Z48","v":158},{"$f":"[1]ACS_16_5YR_B18103_with_ann!AA48","v":38},{"$f":"[1]ACS_16_5YR_B18103_with_ann!AB48","v":0},{"$f":"[1]ACS_16_5YR_B18103_with_ann!AC48","v":12},{"$f":"[1]ACS_16_5YR_B18103_with_ann!AD48","v":158},{"$f":"[1]ACS_16_5YR_B18103_with_ann!AE48","v":38},{"$f":"[1]ACS_16_5YR_B18103_with_ann!AF48","v":76},{"$f":"[1]ACS_16_5YR_B18103_with_ann!AG48","v":29},{"$f":"[1]ACS_16_5YR_B18103_with_ann!AH48","v":0},{"$f":"[1]ACS_16_5YR_B18103_with_ann!AI48","v":12},{"$f":"[1]ACS_16_5YR_B18103_with_ann!AJ48","v":76},{"$f":"[1]ACS_16_5YR_B18103_with_ann!AK48","v":29},{"$f":"[1]ACS_16_5YR_B18103_with_ann!AL48","v":14},{"$f":"[1]ACS_16_5YR_B18103_with_ann!AM48","v":10},{"$f":"[1]ACS_16_5YR_B18103_with_ann!AN48","v":0},{"$f":"[1]ACS_16_5YR_B18103_with_ann!AO48","v":12},{"$f":"[1]ACS_16_5YR_B18103_with_ann!AP48","v":14},{"$f":"[1]ACS_16_5YR_B18103_with_ann!AQ48","v":10},{"$f":"[1]ACS_16_5YR_B18103_with_ann!AR48","v":419},{"$f":"[1]ACS_16_5YR_B18103_with_ann!AS48","v":74},{"$f":"[1]ACS_16_5YR_B18103_with_ann!AT48","v":26},{"$f":"[1]ACS_16_5YR_B18103_with_ann!AU48","v":17},{"$f":"[1]ACS_16_5YR_B18103_with_ann!AV48","v":0},{"$f":"[1]ACS_16_5YR_B18103_with_ann!AW48","v":12},{"$f":"[1]ACS_16_5YR_B18103_with_ann!AX48","v":26},{"$f":"[1]ACS_16_5YR_B18103_with_ann!AY48","v":17},{"$f":"[1]ACS_16_5YR_B18103_with_ann!AZ48","v":38},{"$f":"[1]ACS_16_5YR_B18103_with_ann!BA48","v":29},{"$f":"[1]ACS_16_5YR_B18103_with_ann!BB48","v":0},{"$f":"[1]ACS_16_5YR_B18103_with_ann!BC48","v":12},{"$f":"[1]ACS_16_5YR_B18103_with_ann!BD48","v":38},{"$f":"[1]ACS_16_5YR_B18103_with_ann!BE48","v":29},{"$f":"[1]ACS_16_5YR_B18103_with_ann!BF48","v":95},{"$f":"[1]ACS_16_5YR_B18103_with_ann!BG48","v":35},{"$f":"[1]ACS_16_5YR_B18103_with_ann!BH48","v":0},{"$f":"[1]ACS_16_5YR_B18103_with_ann!BI48","v":12},{"$f":"[1]ACS_16_5YR_B18103_with_ann!BJ48","v":95},{"$f":"[1]ACS_16_5YR_B18103_with_ann!BK48","v":35},{"$f":"[1]ACS_16_5YR_B18103_with_ann!BL48","v":170},{"$f":"[1]ACS_16_5YR_B18103_with_ann!BM48","v":44},{"$f":"[1]ACS_16_5YR_B18103_with_ann!BN48","v":0},{"$f":"[1]ACS_16_5YR_B18103_with_ann!BO48","v":12},{"$f":"[1]ACS_16_5YR_B18103_with_ann!BP48","v":170},{"$f":"[1]ACS_16_5YR_B18103_with_ann!BQ48","v":44},{"$f":"[1]ACS_16_5YR_B18103_with_ann!BR48","v":58},{"$f":"[1]ACS_16_5YR_B18103_with_ann!BS48","v":25},{"$f":"[1]ACS_16_5YR_B18103_with_ann!BT48","v":0},{"$f":"[1]ACS_16_5YR_B18103_with_ann!BU48","v":12},{"$f":"[1]ACS_16_5YR_B18103_with_ann!BV48","v":58},{"$f":"[1]ACS_16_5YR_B18103_with_ann!BW48","v":25},{"$f":"[1]ACS_16_5YR_B18103_with_ann!BX48","v":32},{"$f":"[1]ACS_16_5YR_B18103_with_ann!BY48","v":14},{"$f":"[1]ACS_16_5YR_B18103_with_ann!BZ48","v":3},{"$f":"[1]ACS_16_5YR_B18103_with_ann!CA48","v":5},{"$f":"[1]ACS_16_5YR_B18103_with_ann!CB48","v":29},{"$f":"[1]ACS_16_5YR_B18103_with_ann!CC48","v":13}]
["06000US3300534420","0600000US3300536660","060",{"$f":"[1]ACS_16_5YR_B18103_with_ann!C49","v":"Harrisville"},{"$f":"[1]ACS_16_5YR_B18103_with_ann!D49","v":977},{"$f":"[1]ACS_16_5YR_B18103_with_ann!E49","v":197},{"$f":"[1]ACS_16_5YR_B18103_with_ann!F49","v":461},{"$f":"[1]ACS_16_5YR_B18103_with_ann!G49","v":95},{"$f":"[1]ACS_16_5YR_B18103_with_ann!H49","v":42},{"$f":"[1]ACS_16_5YR_B18103_with_ann!I49","v":33},{"$f":"[1]ACS_16_5YR_B18103_with_ann!J49","v":0},{"$f":"[1]ACS_16_5YR_B18103_with_ann!K49","v":12},{"$f":"[1]ACS_16_5YR_B18103_with_ann!L49","v":42},{"$f":"[1]ACS_16_5YR_B18103_with_ann!M49","v":33},{"$f":"[1]ACS_16_5YR_B18103_with_ann!N49","v":47},{"$f":"[1]ACS_16_5YR_B18103_with_ann!O49","v":26},{"$f":"[1]ACS_16_5YR_B18103_with_ann!P49","v":0},{"$f":"[1]ACS_16_5YR_B18103_with_ann!Q49","v":12},{"$f":"[1]ACS_16_5YR_B18103_with_ann!R49","v":47},{"$f":"[1]ACS_16_5YR_B18103_with_ann!S49","v":26},{"$f":"[1]ACS_16_5YR_B18103_with_ann!T49","v":38},{"$f":"[1]ACS_16_5YR_B18103_with_ann!U49","v":20},{"$f":"[1]ACS_16_5YR_B18103_with_ann!V49","v":0},{"$f":"[1]ACS_16_5YR_B18103_with_ann!W49","v":12},{"$f":"[1]ACS_16_5YR_B18103_with_ann!X49","v":38},{"$f":"[1]ACS_16_5YR_B18103_with_ann!Y49","v":20},{"$f":"[1]ACS_16_5YR_B18103_with_ann!Z49","v":190},{"$f":"[1]ACS_16_5YR_B18103_with_ann!AA49","v":52},{"$f":"[1]ACS_16_5YR_B18103_with_ann!AB49","v":0},{"$f":"[1]ACS_16_5YR_B18103_with_ann!AC49","v":12},{"$f":"[1]ACS_16_5YR_B18103_with_ann!AD49","v":190},{"$f":"[1]ACS_16_5YR_B18103_with_ann!AE49","v":52},{"$f":"[1]ACS_16_5YR_B18103_with_ann!AF49","v":91},{"$f":"[1]ACS_16_5YR_B18103_with_ann!AG49","v":28},{"$f":"[1]ACS_16_5YR_B18103_with_ann!AH49","v":0},{"$f":"[1]ACS_16_5YR_B18103_with_ann!AI49","v":12},{"$f":"[1]ACS_16_5YR_B18103_with_ann!AJ49","v":91},{"$f":"[1]ACS_16_5YR_B18103_with_ann!AK49","v":28},{"$f":"[1]ACS_16_5YR_B18103_with_ann!AL49","v":53},{"$f":"[1]ACS_16_5YR_B18103_with_ann!AM49","v":20},{"$f":"[1]ACS_16_5YR_B18103_with_ann!AN49","v":0},{"$f":"[1]ACS_16_5YR_B18103_with_ann!AO49","v":12},{"$f":"[1]ACS_16_5YR_B18103_with_ann!AP49","v":53},{"$f":"[1]ACS_16_5YR_B18103_with_ann!AQ49","v":20},{"$f":"[1]ACS_16_5YR_B18103_with_ann!AR49","v":516},{"$f":"[1]ACS_16_5YR_B18103_with_ann!AS49","v":110},{"$f":"[1]ACS_16_5YR_B18103_with_ann!AT49","v":8},{"$f":"[1]ACS_16_5YR_B18103_with_ann!AU49","v":8},{"$f":"[1]ACS_16_5YR_B18103_with_ann!AV49","v":0},{"$f":"[1]ACS_16_5YR_B18103_with_ann!AW49","v":12},{"$f":"[1]ACS_16_5YR_B18103_with_ann!AX49","v":8},{"$f":"[1]ACS_16_5YR_B18103_with_ann!AY49","v":8},{"$f":"[1]ACS_16_5YR_B18103_with_ann!AZ49","v":52},{"$f":"[1]ACS_16_5YR_B18103_with_ann!BA49","v":39},{"$f":"[1]ACS_16_5YR_B18103_with_ann!BB49","v":0},{"$f":"[1]ACS_16_5YR_B18103_with_ann!BC49","v":12},{"$f":"[1]ACS_16_5YR_B18103_with_ann!BD49","v":52},{"$f":"[1]ACS_16_5YR_B18103_with_ann!BE49","v":39},{"$f":"[1]ACS_16_5YR_B18103_with_ann!BF49","v":89},{"$f":"[1]ACS_16_5YR_B18103_with_ann!BG49","v":40},{"$f":"[1]ACS_16_5YR_B18103_with_ann!BH49","v":0},{"$f":"[1]ACS_16_5YR_B18103_with_ann!BI49","v":12},{"$f":"[1]ACS_16_5YR_B18103_with_ann!BJ49","v":89},{"$f":"[1]ACS_16_5YR_B18103_with_ann!BK49","v":40},{"$f":"[1]ACS_16_5YR_B18103_with_ann!BL49","v":220},{"$f":"[1]ACS_16_5YR_B18103_with_ann!BM49","v":61},{"$f":"[1]ACS_16_5YR_B18103_with_ann!BN49","v":1},{"$f":"[1]ACS_16_5YR_B18103_with_ann!BO49","v":3},{"$f":"[1]ACS_16_5YR_B18103_with_ann!BP49","v":219},{"$f":"[1]ACS_16_5YR_B18103_with_ann!BQ49","v":60},{"$f":"[1]ACS_16_5YR_B18103_with_ann!BR49","v":107},{"$f":"[1]ACS_16_5YR_B18103_with_ann!BS49","v":30},{"$f":"[1]ACS_16_5YR_B18103_with_ann!BT49","v":0},{"$f":"[1]ACS_16_5YR_B18103_with_ann!BU49","v":12},{"$f":"[1]ACS_16_5YR_B18103_with_ann!BV49","v":107},{"$f":"[1]ACS_16_5YR_B18103_with_ann!BW49","v":30},{"$f":"[1]ACS_16_5YR_B18103_with_ann!BX49","v":40},{"$f":"[1]ACS_16_5YR_B18103_with_ann!BY49","v":22},{"$f":"[1]ACS_16_5YR_B18103_with_ann!BZ49","v":0},{"$f":"[1]ACS_16_5YR_B18103_with_ann!CA49","v":12},{"$f":"[1]ACS_16_5YR_B18103_with_ann!CB49","v":40},{"$f":"[1]ACS_16_5YR_B18103_with_ann!CC49","v":22}]
["06000US3300536660","0600000US3300538500","060",{"$f":"[1]ACS_16_5YR_B18103_with_ann!C50","v":"Hinsdale"},{"$f":"[1]ACS_16_5YR_B18103_with_ann!D50","v":3965},{"$f":"[1]ACS_16_5YR_B18103_with_ann!E50","v":16},{"$f":"[1]ACS_16_5YR_B18103_with_ann!F50","v":2090},{"$f":"[1]ACS_16_5YR_B18103_with_ann!G50","v":205},{"$f":"[1]ACS_16_5YR_B18103_with_ann!H50","v":26},{"$f":"[1]ACS_16_5YR_B18103_with_ann!I50","v":38},{"$f":"[1]ACS_16_5YR_B18103_with_ann!J50","v":0},{"$f":"[1]ACS_16_5YR_B18103_with_ann!K50","v":12},{"$f":"[1]ACS_16_5YR_B18103_with_ann!L50","v":26},{"$f":"[1]ACS_16_5YR_B18103_with_ann!M50","v":38},{"$f":"[1]ACS_16_5YR_B18103_with_ann!N50","v":277},{"$f":"[1]ACS_16_5YR_B18103_with_ann!O50","v":125},{"$f":"[1]ACS_16_5YR_B18103_with_ann!P50","v":0},{"$f":"[1]ACS_16_5YR_B18103_with_ann!Q50","v":12},{"$f":"[1]ACS_16_5YR_B18103_with_ann!R50","v":277},{"$f":"[1]ACS_16_5YR_B18103_with_ann!S50","v":125},{"$f":"[1]ACS_16_5YR_B18103_with_ann!T50","v":294},{"$f":"[1]ACS_16_5YR_B18103_with_ann!U50","v":122},{"$f":"[1]ACS_16_5YR_B18103_with_ann!V50","v":0},{"$f":"[1]ACS_16_5YR_B18103_with_ann!W50","v":12},{"$f":"[1]ACS_16_5YR_B18103_with_ann!X50","v":294},{"$f":"[1]ACS_16_5YR_B18103_with_ann!Y50","v":122},{"$f":"[1]ACS_16_5YR_B18103_with_ann!Z50","v":878},{"$f":"[1]ACS_16_5YR_B18103_with_ann!AA50","v":165},{"$f":"[1]ACS_16_5YR_B18103_with_ann!AB50","v":16},{"$f":"[1]ACS_16_5YR_B18103_with_ann!AC50","v":21},{"$f":"[1]ACS_16_5YR_B18103_with_ann!AD50","v":862},{"$f":"[1]ACS_16_5YR_B18103_with_ann!AE50","v":166},{"$f":"[1]ACS_16_5YR_B18103_with_ann!AF50","v":433},{"$f":"[1]ACS_16_5YR_B18103_with_ann!AG50","v":236},{"$f":"[1]ACS_16_5YR_B18103_with_ann!AH50","v":131},{"$f":"[1]ACS_16_5YR_B18103_with_ann!AI50","v":167},{"$f":"[1]ACS_16_5YR_B18103_with_ann!AJ50","v":302},{"$f":"[1]ACS_16_5YR_B18103_with_ann!AK50","v":122},{"$f":"[1]ACS_16_5YR_B18103_with_ann!AL50","v":182},{"$f":"[1]ACS_16_5YR_B18103_with_ann!AM50","v":113},{"$f":"[1]ACS_16_5YR_B18103_with_ann!AN50","v":0},{"$f":"[1]ACS_16_5YR_B18103_with_ann!AO50","v":12},{"$f":"[1]ACS_16_5YR_B18103_with_ann!AP50","v":182},{"$f":"[1]ACS_16_5YR_B18103_with_ann!AQ50","v":113},{"$f":"[1]ACS_16_5YR_B18103_with_ann!AR50","v":1875},{"$f":"[1]ACS_16_5YR_B18103_with_ann!AS50","v":204},{"$f":"[1]ACS_16_5YR_B18103_with_ann!AT50","v":58},{"$f":"[1]ACS_16_5YR_B18103_with_ann!AU50","v":46},{"$f":"[1]ACS_16_5YR_B18103_with_ann!AV50","v":0},{"$f":"[1]ACS_16_5YR_B18103_with_ann!AW50","v":12},{"$f":"[1]ACS_16_5YR_B18103_with_ann!AX50","v":58},{"$f":"[1]ACS_16_5YR_B18103_with_ann!AY50","v":46},{"$f":"[1]ACS_16_5YR_B18103_with_ann!AZ50","v":225},{"$f":"[1]ACS_16_5YR_B18103_with_ann!BA50","v":70},{"$f":"[1]ACS_16_5YR_B18103_with_ann!BB50","v":0},{"$f":"[1]ACS_16_5YR_B18103_with_ann!BC50","v":12},{"$f":"[1]ACS_16_5YR_B18103_with_ann!BD50","v":225},{"$f":"[1]ACS_16_5YR_B18103_with_ann!BE50","v":70},{"$f":"[1]ACS_16_5YR_B18103_with_ann!BF50","v":306},{"$f":"[1]ACS_16_5YR_B18103_with_ann!BG50","v":147},{"$f":"[1]ACS_16_5YR_B18103_with_ann!BH50","v":0},{"$f":"[1]ACS_16_5YR_B18103_with_ann!BI50","v":12},{"$f":"[1]ACS_16_5YR_B18103_with_ann!BJ50","v":306},{"$f":"[1]ACS_16_5YR_B18103_with_ann!BK50","v":147},{"$f":"[1]ACS_16_5YR_B18103_with_ann!BL50","v":843},{"$f":"[1]ACS_16_5YR_B18103_with_ann!BM50","v":127},{"$f":"[1]ACS_16_5YR_B18103_with_ann!BN50","v":0},{"$f":"[1]ACS_16_5YR_B18103_with_ann!BO50","v":12},{"$f":"[1]ACS_16_5YR_B18103_with_ann!BP50","v":843},{"$f":"[1]ACS_16_5YR_B18103_with_ann!BQ50","v":127},{"$f":"[1]ACS_16_5YR_B18103_with_ann!BR50","v":214},{"$f":"[1]ACS_16_5YR_B18103_with_ann!BS50","v":97},{"$f":"[1]ACS_16_5YR_B18103_with_ann!BT50","v":17},{"$f":"[1]ACS_16_5YR_B18103_with_ann!BU50","v":16},{"$f":"[1]ACS_16_5YR_B18103_with_ann!BV50","v":197},{"$f":"[1]ACS_16_5YR_B18103_with_ann!BW50","v":98},{"$f":"[1]ACS_16_5YR_B18103_with_ann!BX50","v":229},{"$f":"[1]ACS_16_5YR_B18103_with_ann!BY50","v":155},{"$f":"[1]ACS_16_5YR_B18103_with_ann!BZ50","v":45},{"$f":"[1]ACS_16_5YR_B18103_with_ann!CA50","v":51},{"$f":"[1]ACS_16_5YR_B18103_with_ann!CB50","v":184},{"$f":"[1]ACS_16_5YR_B18103_with_ann!CC50","v":156}]
["06000US3300538500","0600000US3300539300","060",{"$f":"[1]ACS_16_5YR_B18103_with_ann!C51","v":"Jaffrey"},{"$f":"[1]ACS_16_5YR_B18103_with_ann!D51","v":5299},{"$f":"[1]ACS_16_5YR_B18103_with_ann!E51","v":31},{"$f":"[1]ACS_16_5YR_B18103_with_ann!F51","v":2731},{"$f":"[1]ACS_16_5YR_B18103_with_ann!G51","v":216},{"$f":"[1]ACS_16_5YR_B18103_with_ann!H51","v":114},{"$f":"[1]ACS_16_5YR_B18103_with_ann!I51","v":89},{"$f":"[1]ACS_16_5YR_B18103_with_ann!J51","v":0},{"$f":"[1]ACS_16_5YR_B18103_with_ann!K51","v":17},{"$f":"[1]ACS_16_5YR_B18103_with_ann!L51","v":114},{"$f":"[1]ACS_16_5YR_B18103_with_ann!M51","v":89},{"$f":"[1]ACS_16_5YR_B18103_with_ann!N51","v":566},{"$f":"[1]ACS_16_5YR_B18103_with_ann!O51","v":154},{"$f":"[1]ACS_16_5YR_B18103_with_ann!P51","v":0},{"$f":"[1]ACS_16_5YR_B18103_with_ann!Q51","v":17},{"$f":"[1]ACS_16_5YR_B18103_with_ann!R51","v":566},{"$f":"[1]ACS_16_5YR_B18103_with_ann!S51","v":154},{"$f":"[1]ACS_16_5YR_B18103_with_ann!T51","v":408},{"$f":"[1]ACS_16_5YR_B18103_with_ann!U51","v":190},{"$f":"[1]ACS_16_5YR_B18103_with_ann!V51","v":0},{"$f":"[1]ACS_16_5YR_B18103_with_ann!W51","v":17},{"$f":"[1]ACS_16_5YR_B18103_with_ann!X51","v":408},{"$f":"[1]ACS_16_5YR_B18103_with_ann!Y51","v":190},{"$f":"[1]ACS_16_5YR_B18103_with_ann!Z51","v":1310},{"$f":"[1]ACS_16_5YR_B18103_with_ann!AA51","v":200},{"$f":"[1]ACS_16_5YR_B18103_with_ann!AB51","v":0},{"$f":"[1]ACS_16_5YR_B18103_with_ann!AC51","v":17},{"$f":"[1]ACS_16_5YR_B18103_with_ann!AD51","v":1310},{"$f":"[1]ACS_16_5YR_B18103_with_ann!AE51","v":200},{"$f":"[1]ACS_16_5YR_B18103_with_ann!AF51","v":159},{"$f":"[1]ACS_16_5YR_B18103_with_ann!AG51","v":87},{"$f":"[1]ACS_16_5YR_B18103_with_ann!AH51","v":15},{"$f":"[1]ACS_16_5YR_B18103_with_ann!AI51","v":25},{"$f":"[1]ACS_16_5YR_B18103_with_ann!AJ51","v":144},{"$f":"[1]ACS_16_5YR_B18103_with_ann!AK51","v":84},{"$f":"[1]ACS_16_5YR_B18103_with_ann!AL51","v":174},{"$f":"[1]ACS_16_5YR_B18103_with_ann!AM51","v":110},{"$f":"[1]ACS_16_5YR_B18103_with_ann!AN51","v":0},{"$f":"[1]ACS_16_5YR_B18103_with_ann!AO51","v":17},{"$f":"[1]ACS_16_5YR_B18103_with_ann!AP51","v":174},{"$f":"[1]ACS_16_5YR_B18103_with_ann!AQ51","v":110},{"$f":"[1]ACS_16_5YR_B18103_with_ann!AR51","v":2568},{"$f":"[1]ACS_16_5YR_B18103_with_ann!AS51","v":218},{"$f":"[1]ACS_16_5YR_B18103_with_ann!AT51","v":28},{"$f":"[1]ACS_16_5YR_B18103_with_ann!AU51","v":48},{"$f":"[1]ACS_16_5YR_B18103_with_ann!AV51","v":0},{"$f":"[1]ACS_16_5YR_B18103_with_ann!AW51","v":17},{"$f":"[1]ACS_16_5YR_B18103_with_ann!AX51","v":28},{"$f":"[1]ACS_16_5YR_B18103_with_ann!AY51","v":48},{"$f":"[1]ACS_16_5YR_B18103_with_ann!AZ51","v":617},{"$f":"[1]ACS_16_5YR_B18103_with_ann!BA51","v":129},{"$f":"[1]ACS_16_5YR_B18103_with_ann!BB51","v":0},{"$f":"[1]ACS_16_5YR_B18103_with_ann!BC51","v":17},{"$f":"[1]ACS_16_5YR_B18103_with_ann!BD51","v":617},{"$f":"[1]ACS_16_5YR_B18103_with_ann!BE51","v":129},{"$f":"[1]ACS_16_5YR_B18103_with_ann!BF51","v":307},{"$f":"[1]ACS_16_5YR_B18103_with_ann!BG51","v":170},{"$f":"[1]ACS_16_5YR_B18103_with_ann!BH51","v":0},{"$f":"[1]ACS_16_5YR_B18103_with_ann!BI51","v":17},{"$f":"[1]ACS_16_5YR_B18103_with_ann!BJ51","v":307},{"$f":"[1]ACS_16_5YR_B18103_with_ann!BK51","v":170},{"$f":"[1]ACS_16_5YR_B18103_with_ann!BL51","v":1144},{"$f":"[1]ACS_16_5YR_B18103_with_ann!BM51","v":160},{"$f":"[1]ACS_16_5YR_B18103_with_ann!BN51","v":101},{"$f":"[1]ACS_16_5YR_B18103_with_ann!BO51","v":80},{"$f":"[1]ACS_16_5YR_B18103_with_ann!BP51","v":1043},{"$f":"[1]ACS_16_5YR_B18103_with_ann!BQ51","v":152},{"$f":"[1]ACS_16_5YR_B18103_with_ann!BR51","v":276},{"$f":"[1]ACS_16_5YR_B18103_with_ann!BS51","v":101},{"$f":"[1]ACS_16_5YR_B18103_with_ann!BT51","v":12},{"$f":"[1]ACS_16_5YR_B18103_with_ann!BU51","v":21},{"$f":"[1]ACS_16_5YR_B18103_with_ann!BV51","v":264},{"$f":"[1]ACS_16_5YR_B18103_with_ann!BW51","v":100},{"$f":"[1]ACS_16_5YR_B18103_with_ann!BX51","v":196},{"$f":"[1]ACS_16_5YR_B18103_with_ann!BY51","v":97},{"$f":"[1]ACS_16_5YR_B18103_with_ann!BZ51","v":0},{"$f":"[1]ACS_16_5YR_B18103_with_ann!CA51","v":17},{"$f":"[1]ACS_16_5YR_B18103_with_ann!CB51","v":196},{"$f":"[1]ACS_16_5YR_B18103_with_ann!CC51","v":97}]
["06000US3300539300","0600000US3300545460","060",{"$f":"[1]ACS_16_5YR_B18103_with_ann!C52","v":"Keene"},{"$f":"[1]ACS_16_5YR_B18103_with_ann!D52","v":22429},{"$f":"[1]ACS_16_5YR_B18103_with_ann!E52","v":47},{"$f":"[1]ACS_16_5YR_B18103_with_ann!F52","v":10985},{"$f":"[1]ACS_16_5YR_B18103_with_ann!G52","v":396},{"$f":"[1]ACS_16_5YR_B18103_with_ann!H52","v":485},{"$f":"[1]ACS_16_5YR_B18103_with_ann!I52","v":125},{"$f":"[1]ACS_16_5YR_B18103_with_ann!J52","v":0},{"$f":"[1]ACS_16_5YR_B18103_with_ann!K52","v":22},{"$f":"[1]ACS_16_5YR_B18103_with_ann!L52","v":485},{"$f":"[1]ACS_16_5YR_B18103_with_ann!M52","v":125},{"$f":"[1]ACS_16_5YR_B18103_with_ann!N52","v":1379},{"$f":"[1]ACS_16_5YR_B18103_with_ann!O52","v":180},{"$f":"[1]ACS_16_5YR_B18103_with_ann!P52","v":0},{"$f":"[1]ACS_16_5YR_B18103_with_ann!Q52","v":22},{"$f":"[1]ACS_16_5YR_B18103_with_ann!R52","v":1379},{"$f":"[1]ACS_16_5YR_B18103_with_ann!S52","v":180},{"$f":"[1]ACS_16_5YR_B18103_with_ann!T52","v":3702},{"$f":"[1]ACS_16_5YR_B18103_with_ann!U52","v":372},{"$f":"[1]ACS_16_5YR_B18103_with_ann!V52","v":39},{"$f":"[1]ACS_16_5YR_B18103_with_ann!W52","v":45},{"$f":"[1]ACS_16_5YR_B18103_with_ann!X52","v":3663},{"$f":"[1]ACS_16_5YR_B18103_with_ann!Y52","v":378},{"$f":"[1]ACS_16_5YR_B18103_with_ann!Z52","v":3790},{"$f":"[1]ACS_16_5YR_B18103_with_ann!AA52","v":283},{"$f":"[1]ACS_16_5YR_B18103_with_ann!AB52","v":86},{"$f":"[1]ACS_16_5YR_B18103_with_ann!AC52","v":73},{"$f":"[1]ACS_16_5YR_B18103_with_ann!AD52","v":3704},{"$f":"[1]ACS_16_5YR_B18103_with_ann!AE52","v":282},{"$f":"[1]ACS_16_5YR_B18103_with_ann!AF52","v":899},{"$f":"[1]ACS_16_5YR_B18103_with_ann!AG52","v":135},{"$f":"[1]ACS_16_5YR_B18103_with_ann!AH52","v":14},{"$f":"[1]ACS_16_5YR_B18103_with_ann!AI52","v":23},{"$f":"[1]ACS_16_5YR_B18103_with_ann!AJ52","v":885},{"$f":"[1]ACS_16_5YR_B18103_with_ann!AK52","v":136},{"$f":"[1]ACS_16_5YR_B18103_with_ann!AL52","v":730},{"$f":"[1]ACS_16_5YR_B18103_with_ann!AM52","v":148},{"$f":"[1]ACS_16_5YR_B18103_with_ann!AN52","v":105},{"$f":"[1]ACS_16_5YR_B18103_with_ann!AO52","v":77},{"$f":"[1]ACS_16_5YR_B18103_with_ann!AP52","v":625},{"$f":"[1]ACS_16_5YR_B18103_with_ann!AQ52","v":143},{"$f":"[1]ACS_16_5YR_B18103_with_ann!AR52","v":11444},{"$f":"[1]ACS_16_5YR_B18103_with_ann!AS52","v":392},{"$f":"[1]ACS_16_5YR_B18103_with_ann!AT52","v":387},{"$f":"[1]ACS_16_5YR_B18103_with_ann!AU52","v":112},{"$f":"[1]ACS_16_5YR_B18103_with_ann!AV52","v":5},{"$f":"[1]ACS_16_5YR_B18103_with_ann!AW52","v":23},{"$f":"[1]ACS_16_5YR_B18103_with_ann!AX52","v":382},{"$f":"[1]ACS_16_5YR_B18103_with_ann!AY52","v":112},{"$f":"[1]ACS_16_5YR_B18103_with_ann!AZ52","v":1041},{"$f":"[1]ACS_16_5YR_B18103_with_ann!BA52","v":198},{"$f":"[1]ACS_16_5YR_B18103_with_ann!BB52","v":0},{"$f":"[1]ACS_16_5YR_B18103_with_ann!BC52","v":22},{"$f":"[1]ACS_16_5YR_B18103_with_ann!BD52","v":1041},{"$f":"[1]ACS_16_5YR_B18103_with_ann!BE52","v":198},{"$f":"[1]ACS_16_5YR_B18103_with_ann!BF52","v":3991},{"$f":"[1]ACS_16_5YR_B18103_with_ann!BG52","v":285},{"$f":"[1]ACS_16_5YR_B18103_with_ann!BH52","v":33},{"$f":"[1]ACS_16_5YR_B18103_with_ann!BI52","v":37},{"$f":"[1]ACS_16_5YR_B18103_with_ann!BJ52","v":3958},{"$f":"[1]ACS_16_5YR_B18103_with_ann!BK52","v":288},{"$f":"[1]ACS_16_5YR_B18103_with_ann!BL52","v":3688},{"$f":"[1]ACS_16_5YR_B18103_with_ann!BM52","v":301},{"$f":"[1]ACS_16_5YR_B18103_with_ann!BN52","v":80},{"$f":"[1]ACS_16_5YR_B18103_with_ann!BO52","v":72},{"$f":"[1]ACS_16_5YR_B18103_with_ann!BP52","v":3608},{"$f":"[1]ACS_16_5YR_B18103_with_ann!BQ52","v":295},{"$f":"[1]ACS_16_5YR_B18103_with_ann!BR52","v":1300},{"$f":"[1]ACS_16_5YR_B18103_with_ann!BS52","v":181},{"$f":"[1]ACS_16_5YR_B18103_with_ann!BT52","v":78},{"$f":"[1]ACS_16_5YR_B18103_with_ann!BU52","v":58},{"$f":"[1]ACS_16_5YR_B18103_with_ann!BV52","v":1222},{"$f":"[1]ACS_16_5YR_B18103_with_ann!BW52","v":186},{"$f":"[1]ACS_16_5YR_B18103_with_ann!BX52","v":1037},{"$f":"[1]ACS_16_5YR_B18103_with_ann!BY52","v":197},{"$f":"[1]ACS_16_5YR_B18103_with_ann!BZ52","v":65},{"$f":"[1]ACS_16_5YR_B18103_with_ann!CA52","v":62},{"$f":"[1]ACS_16_5YR_B18103_with_ann!CB52","v":972},{"$f":"[1]ACS_16_5YR_B18103_with_ann!CC52","v":204}]
["06000US3300545460","0600000US3300545700","060",{"$f":"[1]ACS_16_5YR_B18103_with_ann!C53","v":"Marlborough"},{"$f":"[1]ACS_16_5YR_B18103_with_ann!D53","v":2253},{"$f":"[1]ACS_16_5YR_B18103_with_ann!E53","v":391},{"$f":"[1]ACS_16_5YR_B18103_with_ann!F53","v":1005},{"$f":"[1]ACS_16_5YR_B18103_with_ann!G53","v":199},{"$f":"[1]ACS_16_5YR_B18103_with_ann!H53","v":76},{"$f":"[1]ACS_16_5YR_B18103_with_ann!I53","v":60},{"$f":"[1]ACS_16_5YR_B18103_with_ann!J53","v":0},{"$f":"[1]ACS_16_5YR_B18103_with_ann!K53","v":12},{"$f":"[1]ACS_16_5YR_B18103_with_ann!L53","v":76},{"$f":"[1]ACS_16_5YR_B18103_with_ann!M53","v":60},{"$f":"[1]ACS_16_5YR_B18103_with_ann!N53","v":129},{"$f":"[1]ACS_16_5YR_B18103_with_ann!O53","v":64},{"$f":"[1]ACS_16_5YR_B18103_with_ann!P53","v":0},{"$f":"[1]ACS_16_5YR_B18103_with_ann!Q53","v":12},{"$f":"[1]ACS_16_5YR_B18103_with_ann!R53","v":129},{"$f":"[1]ACS_16_5YR_B18103_with_ann!S53","v":64},{"$f":"[1]ACS_16_5YR_B18103_with_ann!T53","v":175},{"$f":"[1]ACS_16_5YR_B18103_with_ann!U53","v":92},{"$f":"[1]ACS_16_5YR_B18103_with_ann!V53","v":0},{"$f":"[1]ACS_16_5YR_B18103_with_ann!W53","v":12},{"$f":"[1]ACS_16_5YR_B18103_with_ann!X53","v":175},{"$f":"[1]ACS_16_5YR_B18103_with_ann!Y53","v":92},{"$f":"[1]ACS_16_5YR_B18103_with_ann!Z53","v":440},{"$f":"[1]ACS_16_5YR_B18103_with_ann!AA53","v":108},{"$f":"[1]ACS_16_5YR_B18103_with_ann!AB53","v":0},{"$f":"[1]ACS_16_5YR_B18103_with_ann!AC53","v":12},{"$f":"[1]ACS_16_5YR_B18103_with_ann!AD53","v":440},{"$f":"[1]ACS_16_5YR_B18103_with_ann!AE53","v":108},{"$f":"[1]ACS_16_5YR_B18103_with_ann!AF53","v":83},{"$f":"[1]ACS_16_5YR_B18103_with_ann!AG53","v":37},{"$f":"[1]ACS_16_5YR_B18103_with_ann!AH53","v":0},{"$f":"[1]ACS_16_5YR_B18103_with_ann!AI53","v":12},{"$f":"[1]ACS_16_5YR_B18103_with_ann!AJ53","v":83},{"$f":"[1]ACS_16_5YR_B18103_with_ann!AK53","v":37},{"$f":"[1]ACS_16_5YR_B18103_with_ann!AL53","v":102},{"$f":"[1]ACS_16_5YR_B18103_with_ann!AM53","v":43},{"$f":"[1]ACS_16_5YR_B18103_with_ann!AN53","v":0},{"$f":"[1]ACS_16_5YR_B18103_with_ann!AO53","v":12},{"$f":"[1]ACS_16_5YR_B18103_with_ann!AP53","v":102},{"$f":"[1]ACS_16_5YR_B18103_with_ann!AQ53","v":43},{"$f":"[1]ACS_16_5YR_B18103_with_ann!AR53","v":1248},{"$f":"[1]ACS_16_5YR_B18103_with_ann!AS53","v":240},{"$f":"[1]ACS_16_5YR_B18103_with_ann!AT53","v":140},{"$f":"[1]ACS_16_5YR_B18103_with_ann!AU53","v":107},{"$f":"[1]ACS_16_5YR_B18103_with_ann!AV53","v":0},{"$f":"[1]ACS_16_5YR_B18103_with_ann!AW53","v":12},{"$f":"[1]ACS_16_5YR_B18103_with_ann!AX53","v":140},{"$f":"[1]ACS_16_5YR_B18103_with_ann!AY53","v":107},{"$f":"[1]ACS_16_5YR_B18103_with_ann!AZ53","v":198},{"$f":"[1]ACS_16_5YR_B18103_with_ann!BA53","v":77},{"$f":"[1]ACS_16_5YR_B18103_with_ann!BB53","v":0},{"$f":"[1]ACS_16_5YR_B18103_with_ann!BC53","v":12},{"$f":"[1]ACS_16_5YR_B18103_with_ann!BD53","v":198},{"$f":"[1]ACS_16_5YR_B18103_with_ann!BE53","v":77},{"$f":"[1]ACS_16_5YR_B18103_with_ann!BF53","v":117},{"$f":"[1]ACS_16_5YR_B18103_with_ann!BG53","v":53},{"$f":"[1]ACS_16_5YR_B18103_with_ann!BH53","v":0},{"$f":"[1]ACS_16_5YR_B18103_with_ann!BI53","v":12},{"$f":"[1]ACS_16_5YR_B18103_with_ann!BJ53","v":117},{"$f":"[1]ACS_16_5YR_B18103_with_ann!BK53","v":53},{"$f":"[1]ACS_16_5YR_B18103_with_ann!BL53","v":586},{"$f":"[1]ACS_16_5YR_B18103_with_ann!BM53","v":139},{"$f":"[1]ACS_16_5YR_B18103_with_ann!BN53","v":24},{"$f":"[1]ACS_16_5YR_B18103_with_ann!BO53","v":37},{"$f":"[1]ACS_16_5YR_B18103_with_ann!BP53","v":562},{"$f":"[1]ACS_16_5YR_B18103_with_ann!BQ53","v":130},{"$f":"[1]ACS_16_5YR_B18103_with_ann!BR53","v":120},{"$f":"[1]ACS_16_5YR_B18103_with_ann!BS53","v":51},{"$f":"[1]ACS_16_5YR_B18103_with_ann!BT53","v":0},{"$f":"[1]ACS_16_5YR_B18103_with_ann!BU53","v":12},{"$f":"[1]ACS_16_5YR_B18103_with_ann!BV53","v":120},{"$f":"[1]ACS_16_5YR_B18103_with_ann!BW53","v":51},{"$f":"[1]ACS_16_5YR_B18103_with_ann!BX53","v":87},{"$f":"[1]ACS_16_5YR_B18103_with_ann!BY53","v":42},{"$f":"[1]ACS_16_5YR_B18103_with_ann!BZ53","v":0},{"$f":"[1]ACS_16_5YR_B18103_with_ann!CA53","v":12},{"$f":"[1]ACS_16_5YR_B18103_with_ann!CB53","v":87},{"$f":"[1]ACS_16_5YR_B18103_with_ann!CC53","v":42}]
["06000US3300545700","0600000US3300550580","060",{"$f":"[1]ACS_16_5YR_B18103_with_ann!C54","v":"Marlow"},{"$f":"[1]ACS_16_5YR_B18103_with_ann!D54","v":803},{"$f":"[1]ACS_16_5YR_B18103_with_ann!E54","v":175},{"$f":"[1]ACS_16_5YR_B18103_with_ann!F54","v":364},{"$f":"[1]ACS_16_5YR_B18103_with_ann!G54","v":80},{"$f":"[1]ACS_16_5YR_B18103_with_ann!H54","v":23},{"$f":"[1]ACS_16_5YR_B18103_with_ann!I54","v":26},{"$f":"[1]ACS_16_5YR_B18103_with_ann!J54","v":0},{"$f":"[1]ACS_16_5YR_B18103_with_ann!K54","v":12},{"$f":"[1]ACS_16_5YR_B18103_with_ann!L54","v":23},{"$f":"[1]ACS_16_5YR_B18103_with_ann!M54","v":26},{"$f":"[1]ACS_16_5YR_B18103_with_ann!N54","v":37},{"$f":"[1]ACS_16_5YR_B18103_with_ann!O54","v":23},{"$f":"[1]ACS_16_5YR_B18103_with_ann!P54","v":0},{"$f":"[1]ACS_16_5YR_B18103_with_ann!Q54","v":12},{"$f":"[1]ACS_16_5YR_B18103_with_ann!R54","v":37},{"$f":"[1]ACS_16_5YR_B18103_with_ann!S54","v":23},{"$f":"[1]ACS_16_5YR_B18103_with_ann!T54","v":53},{"$f":"[1]ACS_16_5YR_B18103_with_ann!U54","v":32},{"$f":"[1]ACS_16_5YR_B18103_with_ann!V54","v":0},{"$f":"[1]ACS_16_5YR_B18103_with_ann!W54","v":12},{"$f":"[1]ACS_16_5YR_B18103_with_ann!X54","v":53},{"$f":"[1]ACS_16_5YR_B18103_with_ann!Y54","v":32},{"$f":"[1]ACS_16_5YR_B18103_with_ann!Z54","v":153},{"$f":"[1]ACS_16_5YR_B18103_with_ann!AA54","v":41},{"$f":"[1]ACS_16_5YR_B18103_with_ann!AB54","v":0},{"$f":"[1]ACS_16_5YR_B18103_with_ann!AC54","v":12},{"$f":"[1]ACS_16_5YR_B18103_with_ann!AD54","v":153},{"$f":"[1]ACS_16_5YR_B18103_with_ann!AE54","v":41},{"$f":"[1]ACS_16_5YR_B18103_with_ann!AF54","v":75},{"$f":"[1]ACS_16_5YR_B18103_with_ann!AG54","v":38},{"$f":"[1]ACS_16_5YR_B18103_with_ann!AH54","v":21},{"$f":"[1]ACS_16_5YR_B18103_with_ann!AI54","v":28},{"$f":"[1]ACS_16_5YR_B18103_with_ann!AJ54","v":54},{"$f":"[1]ACS_16_5YR_B18103_with_ann!AK54","v":26},{"$f":"[1]ACS_16_5YR_B18103_with_ann!AL54","v":23},{"$f":"[1]ACS_16_5YR_B18103_with_ann!AM54","v":13},{"$f":"[1]ACS_16_5YR_B18103_with_ann!AN54","v":0},{"$f":"[1]ACS_16_5YR_B18103_with_ann!AO54","v":12},{"$f":"[1]ACS_16_5YR_B18103_with_ann!AP54","v":23},{"$f":"[1]ACS_16_5YR_B18103_with_ann!AQ54","v":13},{"$f":"[1]ACS_16_5YR_B18103_with_ann!AR54","v":439},{"$f":"[1]ACS_16_5YR_B18103_with_ann!AS54","v":110},{"$f":"[1]ACS_16_5YR_B18103_with_ann!AT54","v":19},{"$f":"[1]ACS_16_5YR_B18103_with_ann!AU54","v":19},{"$f":"[1]ACS_16_5YR_B18103_with_ann!AV54","v":0},{"$f":"[1]ACS_16_5YR_B18103_with_ann!AW54","v":12},{"$f":"[1]ACS_16_5YR_B18103_with_ann!AX54","v":19},{"$f":"[1]ACS_16_5YR_B18103_with_ann!AY54","v":19},{"$f":"[1]ACS_16_5YR_B18103_with_ann!AZ54","v":116},{"$f":"[1]ACS_16_5YR_B18103_with_ann!BA54","v":56},{"$f":"[1]ACS_16_5YR_B18103_with_ann!BB54","v":6},{"$f":"[1]ACS_16_5YR_B18103_with_ann!BC54","v":10},{"$f":"[1]ACS_16_5YR_B18103_with_ann!BD54","v":110},{"$f":"[1]ACS_16_5YR_B18103_with_ann!BE54","v":54},{"$f":"[1]ACS_16_5YR_B18103_with_ann!BF54","v":72},{"$f":"[1]ACS_16_5YR_B18103_with_ann!BG54","v":40},{"$f":"[1]ACS_16_5YR_B18103_with_ann!BH54","v":0},{"$f":"[1]ACS_16_5YR_B18103_with_ann!BI54","v":12},{"$f":"[1]ACS_16_5YR_B18103_with_ann!BJ54","v":72},{"$f":"[1]ACS_16_5YR_B18103_with_ann!BK54","v":40},{"$f":"[1]ACS_16_5YR_B18103_with_ann!BL54","v":132},{"$f":"[1]ACS_16_5YR_B18103_with_ann!BM54","v":39},{"$f":"[1]ACS_16_5YR_B18103_with_ann!BN54","v":0},{"$f":"[1]ACS_16_5YR_B18103_with_ann!BO54","v":12},{"$f":"[1]ACS_16_5YR_B18103_with_ann!BP54","v":132},{"$f":"[1]ACS_16_5YR_B18103_with_ann!BQ54","v":39},{"$f":"[1]ACS_16_5YR_B18103_with_ann!BR54","v":67},{"$f":"[1]ACS_16_5YR_B18103_with_ann!BS54","v":38},{"$f":"[1]ACS_16_5YR_B18103_with_ann!BT54","v":2},{"$f":"[1]ACS_16_5YR_B18103_with_ann!BU54","v":5},{"$f":"[1]ACS_16_5YR_B18103_with_ann!BV54","v":65},{"$f":"[1]ACS_16_5YR_B18103_with_ann!BW54","v":38},{"$f":"[1]ACS_16_5YR_B18103_with_ann!BX54","v":33},{"$f":"[1]ACS_16_5YR_B18103_with_ann!BY54","v":18},{"$f":"[1]ACS_16_5YR_B18103_with_ann!BZ54","v":0},{"$f":"[1]ACS_16_5YR_B18103_with_ann!CA54","v":12},{"$f":"[1]ACS_16_5YR_B18103_with_ann!CB54","v":33},{"$f":"[1]ACS_16_5YR_B18103_with_ann!CC54","v":18}]
["06000US3300550580","0600000US3300564420","060",{"$f":"[1]ACS_16_5YR_B18103_with_ann!C55","v":"Nelson"},{"$f":"[1]ACS_16_5YR_B18103_with_ann!D55","v":550},{"$f":"[1]ACS_16_5YR_B18103_with_ann!E55","v":106},{"$f":"[1]ACS_16_5YR_B18103_with_ann!F55","v":252},{"$f":"[1]ACS_16_5YR_B18103_with_ann!G55","v":50},{"$f":"[1]ACS_16_5YR_B18103_with_ann!H55","v":15},{"$f":"[1]ACS_16_5YR_B18103_with_ann!I55","v":8},{"$f":"[1]ACS_16_5YR_B18103_with_ann!J55","v":0},{"$f":"[1]ACS_16_5YR_B18103_with_ann!K55","v":12},{"$f":"[1]ACS_16_5YR_B18103_with_ann!L55","v":15},{"$f":"[1]ACS_16_5YR_B18103_with_ann!M55","v":8},{"$f":"[1]ACS_16_5YR_B18103_with_ann!N55","v":17},{"$f":"[1]ACS_16_5YR_B18103_with_ann!O55","v":12},{"$f":"[1]ACS_16_5YR_B18103_with_ann!P55","v":0},{"$f":"[1]ACS_16_5YR_B18103_with_ann!Q55","v":12},{"$f":"[1]ACS_16_5YR_B18103_with_ann!R55","v":17},{"$f":"[1]ACS_16_5YR_B18103_with_ann!S55","v":12},{"$f":"[1]ACS_16_5YR_B18103_with_ann!T55","v":25},{"$f":"[1]ACS_16_5YR_B18103_with_ann!U55","v":15},{"$f":"[1]ACS_16_5YR_B18103_with_ann!V55","v":0},{"$f":"[1]ACS_16_5YR_B18103_with_ann!W55","v":12},{"$f":"[1]ACS_16_5YR_B18103_with_ann!X55","v":25},{"$f":"[1]ACS_16_5YR_B18103_with_ann!Y55","v":15},{"$f":"[1]ACS_16_5YR_B18103_with_ann!Z55","v":116},{"$f":"[1]ACS_16_5YR_B18103_with_ann!AA55","v":30},{"$f":"[1]ACS_16_5YR_B18103_with_ann!AB55","v":0},{"$f":"[1]ACS_16_5YR_B18103_with_ann!AC55","v":12},{"$f":"[1]ACS_16_5YR_B18103_with_ann!AD55","v":116},{"$f":"[1]ACS_16_5YR_B18103_with_ann!AE55","v":30},{"$f":"[1]ACS_16_5YR_B18103_with_ann!AF55","v":59},{"$f":"[1]ACS_16_5YR_B18103_with_ann!AG55","v":21},{"$f":"[1]ACS_16_5YR_B18103_with_ann!AH55","v":0},{"$f":"[1]ACS_16_5YR_B18103_with_ann!AI55","v":12},{"$f":"[1]ACS_16_5YR_B18103_with_ann!AJ55","v":59},{"$f":"[1]ACS_16_5YR_B18103_with_ann!AK55","v":21},{"$f":"[1]ACS_16_5YR_B18103_with_ann!AL55","v":20},{"$f":"[1]ACS_16_5YR_B18103_with_ann!AM55","v":10},{"$f":"[1]ACS_16_5YR_B18103_with_ann!AN55","v":0},{"$f":"[1]ACS_16_5YR_B18103_with_ann!AO55","v":12},{"$f":"[1]ACS_16_5YR_B18103_with_ann!AP55","v":20},{"$f":"[1]ACS_16_5YR_B18103_with_ann!AQ55","v":10},{"$f":"[1]ACS_16_5YR_B18103_with_ann!AR55","v":298},{"$f":"[1]ACS_16_5YR_B18103_with_ann!AS55","v":67},{"$f":"[1]ACS_16_5YR_B18103_with_ann!AT55","v":7},{"$f":"[1]ACS_16_5YR_B18103_with_ann!AU55","v":7},{"$f":"[1]ACS_16_5YR_B18103_with_ann!AV55","v":0},{"$f":"[1]ACS_16_5YR_B18103_with_ann!AW55","v":12},{"$f":"[1]ACS_16_5YR_B18103_with_ann!AX55","v":7},{"$f":"[1]ACS_16_5YR_B18103_with_ann!AY55","v":7},{"$f":"[1]ACS_16_5YR_B18103_with_ann!AZ55","v":46},{"$f":"[1]ACS_16_5YR_B18103_with_ann!BA55","v":30},{"$f":"[1]ACS_16_5YR_B18103_with_ann!BB55","v":0},{"$f":"[1]ACS_16_5YR_B18103_with_ann!BC55","v":12},{"$f":"[1]ACS_16_5YR_B18103_with_ann!BD55","v":46},{"$f":"[1]ACS_16_5YR_B18103_with_ann!BE55","v":30},{"$f":"[1]ACS_16_5YR_B18103_with_ann!BF55","v":27},{"$f":"[1]ACS_16_5YR_B18103_with_ann!BG55","v":18},{"$f":"[1]ACS_16_5YR_B18103_with_ann!BH55","v":0},{"$f":"[1]ACS_16_5YR_B18103_with_ann!BI55","v":12},{"$f":"[1]ACS_16_5YR_B18103_with_ann!BJ55","v":27},{"$f":"[1]ACS_16_5YR_B18103_with_ann!BK55","v":18},{"$f":"[1]ACS_16_5YR_B18103_with_ann!BL55","v":140},{"$f":"[1]ACS_16_5YR_B18103_with_ann!BM55","v":38},{"$f":"[1]ACS_16_5YR_B18103_with_ann!BN55","v":3},{"$f":"[1]ACS_16_5YR_B18103_with_ann!BO55","v":4},{"$f":"[1]ACS_16_5YR_B18103_with_ann!BP55","v":137},{"$f":"[1]ACS_16_5YR_B18103_with_ann!BQ55","v":38},{"$f":"[1]ACS_16_5YR_B18103_with_ann!BR55","v":48},{"$f":"[1]ACS_16_5YR_B18103_with_ann!BS55","v":17},{"$f":"[1]ACS_16_5YR_B18103_with_ann!BT55","v":0},{"$f":"[1]ACS_16_5YR_B18103_with_ann!BU55","v":12},{"$f":"[1]ACS_16_5YR_B18103_with_ann!BV55","v":48},{"$f":"[1]ACS_16_5YR_B18103_with_ann!BW55","v":17},{"$f":"[1]ACS_16_5YR_B18103_with_ann!BX55","v":30},{"$f":"[1]ACS_16_5YR_B18103_with_ann!BY55","v":21},{"$f":"[1]ACS_16_5YR_B18103_with_ann!BZ55","v":4},{"$f":"[1]ACS_16_5YR_B18103_with_ann!CA55","v":7},{"$f":"[1]ACS_16_5YR_B18103_with_ann!CB55","v":26},{"$f":"[1]ACS_16_5YR_B18103_with_ann!CC55","v":17}]
["06000US3300564420","0600000US3300564580","060",{"$f":"[1]ACS_16_5YR_B18103_with_ann!C56","v":"Richmond"},{"$f":"[1]ACS_16_5YR_B18103_with_ann!D56","v":1104},{"$f":"[1]ACS_16_5YR_B18103_with_ann!E56","v":251},{"$f":"[1]ACS_16_5YR_B18103_with_ann!F56","v":595},{"$f":"[1]ACS_16_5YR_B18103_with_ann!G56","v":161},{"$f":"[1]ACS_16_5YR_B18103_with_ann!H56","v":38},{"$f":"[1]ACS_16_5YR_B18103_with_ann!I56","v":31},{"$f":"[1]ACS_16_5YR_B18103_with_ann!J56","v":0},{"$f":"[1]ACS_16_5YR_B18103_with_ann!K56","v":12},{"$f":"[1]ACS_16_5YR_B18103_with_ann!L56","v":38},{"$f":"[1]ACS_16_5YR_B18103_with_ann!M56","v":31},{"$f":"[1]ACS_16_5YR_B18103_with_ann!N56","v":82},{"$f":"[1]ACS_16_5YR_B18103_with_ann!O56","v":37},{"$f":"[1]ACS_16_5YR_B18103_with_ann!P56","v":7},{"$f":"[1]ACS_16_5YR_B18103_with_ann!Q56","v":10},{"$f":"[1]ACS_16_5YR_B18103_with_ann!R56","v":75},{"$f":"[1]ACS_16_5YR_B18103_with_ann!S56","v":33},{"$f":"[1]ACS_16_5YR_B18103_with_ann!T56","v":110},{"$f":"[1]ACS_16_5YR_B18103_with_ann!U56","v":61},{"$f":"[1]ACS_16_5YR_B18103_with_ann!V56","v":0},{"$f":"[1]ACS_16_5YR_B18103_with_ann!W56","v":12},{"$f":"[1]ACS_16_5YR_B18103_with_ann!X56","v":110},{"$f":"[1]ACS_16_5YR_B18103_with_ann!Y56","v":61},{"$f":"[1]ACS_16_5YR_B18103_with_ann!Z56","v":192},{"$f":"[1]ACS_16_5YR_B18103_with_ann!AA56","v":53},{"$f":"[1]ACS_16_5YR_B18103_with_ann!AB56","v":0},{"$f":"[1]ACS_16_5YR_B18103_with_ann!AC56","v":12},{"$f":"[1]ACS_16_5YR_B18103_with_ann!AD56","v":192},{"$f":"[1]ACS_16_5YR_B18103_with_ann!AE56","v":53},{"$f":"[1]ACS_16_5YR_B18103_with_ann!AF56","v":145},{"$f":"[1]ACS_16_5YR_B18103_with_ann!AG56","v":100},{"$f":"[1]ACS_16_5YR_B18103_with_ann!AH56","v":2},{"$f":"[1]ACS_16_5YR_B18103_with_ann!AI56","v":4},{"$f":"[1]ACS_16_5YR_B18103_with_ann!AJ56","v":143},{"$f":"[1]ACS_16_5YR_B18103_with_ann!AK56","v":100},{"$f":"[1]ACS_16_5YR_B18103_with_ann!AL56","v":28},{"$f":"[1]ACS_16_5YR_B18103_with_ann!AM56","v":16},{"$f":"[1]ACS_16_5YR_B18103_with_ann!AN56","v":8},{"$f":"[1]ACS_16_5YR_B18103_with_ann!AO56","v":11},{"$f":"[1]ACS_16_5YR_B18103_with_ann!AP56","v":20},{"$f":"[1]ACS_16_5YR_B18103_with_ann!AQ56","v":11},{"$f":"[1]ACS_16_5YR_B18103_with_ann!AR56","v":509},{"$f":"[1]ACS_16_5YR_B18103_with_ann!AS56","v":121},{"$f":"[1]ACS_16_5YR_B18103_with_ann!AT56","v":10},{"$f":"[1]ACS_16_5YR_B18103_with_ann!AU56","v":14},{"$f":"[1]ACS_16_5YR_B18103_with_ann!AV56","v":0},{"$f":"[1]ACS_16_5YR_B18103_with_ann!AW56","v":12},{"$f":"[1]ACS_16_5YR_B18103_with_ann!AX56","v":10},{"$f":"[1]ACS_16_5YR_B18103_with_ann!AY56","v":14},{"$f":"[1]ACS_16_5YR_B18103_with_ann!AZ56","v":58},{"$f":"[1]ACS_16_5YR_B18103_with_ann!BA56","v":27},{"$f":"[1]ACS_16_5YR_B18103_with_ann!BB56","v":0},{"$f":"[1]ACS_16_5YR_B18103_with_ann!BC56","v":12},{"$f":"[1]ACS_16_5YR_B18103_with_ann!BD56","v":58},{"$f":"[1]ACS_16_5YR_B18103_with_ann!BE56","v":27},{"$f":"[1]ACS_16_5YR_B18103_with_ann!BF56","v":69},{"$f":"[1]ACS_16_5YR_B18103_with_ann!BG56","v":47},{"$f":"[1]ACS_16_5YR_B18103_with_ann!BH56","v":0},{"$f":"[1]ACS_16_5YR_B18103_with_ann!BI56","v":12},{"$f":"[1]ACS_16_5YR_B18103_with_ann!BJ56","v":69},{"$f":"[1]ACS_16_5YR_B18103_with_ann!BK56","v":47},{"$f":"[1]ACS_16_5YR_B18103_with_ann!BL56","v":226},{"$f":"[1]ACS_16_5YR_B18103_with_ann!BM56","v":60},{"$f":"[1]ACS_16_5YR_B18103_with_ann!BN56","v":16},{"$f":"[1]ACS_16_5YR_B18103_with_ann!BO56","v":15},{"$f":"[1]ACS_16_5YR_B18103_with_ann!BP56","v":210},{"$f":"[1]ACS_16_5YR_B18103_with_ann!BQ56","v":58},{"$f":"[1]ACS_16_5YR_B18103_with_ann!BR56","v":69},{"$f":"[1]ACS_16_5YR_B18103_with_ann!BS56","v":30},{"$f":"[1]ACS_16_5YR_B18103_with_ann!BT56","v":2},{"$f":"[1]ACS_16_5YR_B18103_with_ann!BU56","v":4},{"$f":"[1]ACS_16_5YR_B18103_with_ann!BV56","v":67},{"$f":"[1]ACS_16_5YR_B18103_with_ann!BW56","v":30},{"$f":"[1]ACS_16_5YR_B18103_with_ann!BX56","v":77},{"$f":"[1]ACS_16_5YR_B18103_with_ann!BY56","v":40},{"$f":"[1]ACS_16_5YR_B18103_with_ann!BZ56","v":27},{"$f":"[1]ACS_16_5YR_B18103_with_ann!CA56","v":33},{"$f":"[1]ACS_16_5YR_B18103_with_ann!CB56","v":50},{"$f":"[1]ACS_16_5YR_B18103_with_ann!CC56","v":26}]
["06000US3300564580","0600000US3300565700","060",{"$f":"[1]ACS_16_5YR_B18103_with_ann!C57","v":"Rindge"},{"$f":"[1]ACS_16_5YR_B18103_with_ann!D57","v":6443},{"$f":"[1]ACS_16_5YR_B18103_with_ann!E57","v":18},{"$f":"[1]ACS_16_5YR_B18103_with_ann!F57","v":3162},{"$f":"[1]ACS_16_5YR_B18103_with_ann!G57","v":187},{"$f":"[1]ACS_16_5YR_B18103_with_ann!H57","v":144},{"$f":"[1]ACS_16_5YR_B18103_with_ann!I57","v":96},{"$f":"[1]ACS_16_5YR_B18103_with_ann!J57","v":0},{"$f":"[1]ACS_16_5YR_B18103_with_ann!K57","v":17},{"$f":"[1]ACS_16_5YR_B18103_with_ann!L57","v":144},{"$f":"[1]ACS_16_5YR_B18103_with_ann!M57","v":96},{"$f":"[1]ACS_16_5YR_B18103_with_ann!N57","v":470},{"$f":"[1]ACS_16_5YR_B18103_with_ann!O57","v":153},{"$f":"[1]ACS_16_5YR_B18103_with_ann!P57","v":0},{"$f":"[1]ACS_16_5YR_B18103_with_ann!Q57","v":17},{"$f":"[1]ACS_16_5YR_B18103_with_ann!R57","v":470},{"$f":"[1]ACS_16_5YR_B18103_with_ann!S57","v":153},{"$f":"[1]ACS_16_5YR_B18103_with_ann!T57","v":941},{"$f":"[1]ACS_16_5YR_B18103_with_ann!U57","v":135},{"$f":"[1]ACS_16_5YR_B18103_with_ann!V57","v":0},{"$f":"[1]ACS_16_5YR_B18103_with_ann!W57","v":17},{"$f":"[1]ACS_16_5YR_B18103_with_ann!X57","v":941},{"$f":"[1]ACS_16_5YR_B18103_with_ann!Y57","v":135},{"$f":"[1]ACS_16_5YR_B18103_with_ann!Z57","v":983},{"$f":"[1]ACS_16_5YR_B18103_with_ann!AA57","v":154},{"$f":"[1]ACS_16_5YR_B18103_with_ann!AB57","v":0},{"$f":"[1]ACS_16_5YR_B18103_with_ann!AC57","v":17},{"$f":"[1]ACS_16_5YR_B18103_with_ann!AD57","v":983},{"$f":"[1]ACS_16_5YR_B18103_with_ann!AE57","v":154},{"$f":"[1]ACS_16_5YR_B18103_with_ann!AF57","v":428},{"$f":"[1]ACS_16_5YR_B18103_with_ann!AG57","v":106},{"$f":"[1]ACS_16_5YR_B18103_with_ann!AH57","v":0},{"$f":"[1]ACS_16_5YR_B18103_with_ann!AI57","v":17},{"$f":"[1]ACS_16_5YR_B18103_with_ann!AJ57","v":428},{"$f":"[1]ACS_16_5YR_B18103_with_ann!AK57","v":106},{"$f":"[1]ACS_16_5YR_B18103_with_ann!AL57","v":196},{"$f":"[1]ACS_16_5YR_B18103_with_ann!AM57","v":97},{"$f":"[1]ACS_16_5YR_B18103_with_ann!AN57","v":0},{"$f":"[1]ACS_16_5YR_B18103_with_ann!AO57","v":17},{"$f":"[1]ACS_16_5YR_B18103_with_ann!AP57","v":196},{"$f":"[1]ACS_16_5YR_B18103_with_ann!AQ57","v":97},{"$f":"[1]ACS_16_5YR_B18103_with_ann!AR57","v":3281},{"$f":"[1]ACS_16_5YR_B18103_with_ann!AS57","v":187},{"$f":"[1]ACS_16_5YR_B18103_with_ann!AT57","v":116},{"$f":"[1]ACS_16_5YR_B18103_with_ann!AU57","v":74},{"$f":"[1]ACS_16_5YR_B18103_with_ann!AV57","v":0},{"$f":"[1]ACS_16_5YR_B18103_with_ann!AW57","v":17},{"$f":"[1]ACS_16_5YR_B18103_with_ann!AX57","v":116},{"$f":"[1]ACS_16_5YR_B18103_with_ann!AY57","v":74},{"$f":"[1]ACS_16_5YR_B18103_with_ann!AZ57","v":443},{"$f":"[1]ACS_16_5YR_B18103_with_ann!BA57","v":150},{"$f":"[1]ACS_16_5YR_B18103_with_ann!BB57","v":0},{"$f":"[1]ACS_16_5YR_B18103_with_ann!BC57","v":17},{"$f":"[1]ACS_16_5YR_B18103_with_ann!BD57","v":443},{"$f":"[1]ACS_16_5YR_B18103_with_ann!BE57","v":150},{"$f":"[1]ACS_16_5YR_B18103_with_ann!BF57","v":1002},{"$f":"[1]ACS_16_5YR_B18103_with_ann!BG57","v":156},{"$f":"[1]ACS_16_5YR_B18103_with_ann!BH57","v":26},{"$f":"[1]ACS_16_5YR_B18103_with_ann!BI57","v":44},{"$f":"[1]ACS_16_5YR_B18103_with_ann!BJ57","v":976},{"$f":"[1]ACS_16_5YR_B18103_with_ann!BK57","v":149},{"$f":"[1]ACS_16_5YR_B18103_with_ann!BL57","v":1067},{"$f":"[1]ACS_16_5YR_B18103_with_ann!BM57","v":134},{"$f":"[1]ACS_16_5YR_B18103_with_ann!BN57","v":40},{"$f":"[1]ACS_16_5YR_B18103_with_ann!BO57","v":45},{"$f":"[1]ACS_16_5YR_B18103_with_ann!BP57","v":1027},{"$f":"[1]ACS_16_5YR_B18103_with_ann!BQ57","v":127},{"$f":"[1]ACS_16_5YR_B18103_with_ann!BR57","v":431},{"$f":"[1]ACS_16_5YR_B18103_with_ann!BS57","v":102},{"$f":"[1]ACS_16_5YR_B18103_with_ann!BT57","v":21},{"$f":"[1]ACS_16_5YR_B18103_with_ann!BU57","v":25},{"$f":"[1]ACS_16_5YR_B18103_with_ann!BV57","v":410},{"$f":"[1]ACS_16_5YR_B18103_with_ann!BW57","v":106},{"$f":"[1]ACS_16_5YR_B18103_with_ann!BX57","v":222},{"$f":"[1]ACS_16_5YR_B18103_with_ann!BY57","v":107},{"$f":"[1]ACS_16_5YR_B18103_with_ann!BZ57","v":17},{"$f":"[1]ACS_16_5YR_B18103_with_ann!CA57","v":30},{"$f":"[1]ACS_16_5YR_B18103_with_ann!CB57","v":205},{"$f":"[1]ACS_16_5YR_B18103_with_ann!CC57","v":99}]
["06000US3300565700","0600000US3300573700","060",{"$f":"[1]ACS_16_5YR_B18103_with_ann!C58","v":"Roxbury"},{"$f":"[1]ACS_16_5YR_B18103_with_ann!D58","v":295},{"$f":"[1]ACS_16_5YR_B18103_with_ann!E58","v":142},{"$f":"[1]ACS_16_5YR_B18103_with_ann!F58","v":135},{"$f":"[1]ACS_16_5YR_B18103_with_ann!G58","v":70},{"$f":"[1]ACS_16_5YR_B18103_with_ann!H58","v":36},{"$f":"[1]ACS_16_5YR_B18103_with_ann!I58","v":37},{"$f":"[1]ACS_16_5YR_B18103_with_ann!J58","v":0},{"$f":"[1]ACS_16_5YR_B18103_with_ann!K58","v":12},{"$f":"[1]ACS_16_5YR_B18103_with_ann!L58","v":36},{"$f":"[1]ACS_16_5YR_B18103_with_ann!M58","v":37},{"$f":"[1]ACS_16_5YR_B18103_with_ann!N58","v":4},{"$f":"[1]ACS_16_5YR_B18103_with_ann!O58","v":6},{"$f":"[1]ACS_16_5YR_B18103_with_ann!P58","v":0},{"$f":"[1]ACS_16_5YR_B18103_with_ann!Q58","v":12},{"$f":"[1]ACS_16_5YR_B18103_with_ann!R58","v":4},{"$f":"[1]ACS_16_5YR_B18103_with_ann!S58","v":6},{"$f":"[1]ACS_16_5YR_B18103_with_ann!T58","v":17},{"$f":"[1]ACS_16_5YR_B18103_with_ann!U58","v":10},{"$f":"[1]ACS_16_5YR_B18103_with_ann!V58","v":8},{"$f":"[1]ACS_16_5YR_B18103_with_ann!W58","v":11},{"$f":"[1]ACS_16_5YR_B18103_with_ann!X58","v":9},{"$f":"[1]ACS_16_5YR_B18103_with_ann!Y58","v":6},{"$f":"[1]ACS_16_5YR_B18103_with_ann!Z58","v":65},{"$f":"[1]ACS_16_5YR_B18103_with_ann!AA58","v":37},{"$f":"[1]ACS_16_5YR_B18103_with_ann!AB58","v":3},{"$f":"[1]ACS_16_5YR_B18103_with_ann!AC58","v":3},{"$f":"[1]ACS_16_5YR_B18103_with_ann!AD58","v":62},{"$f":"[1]ACS_16_5YR_B18103_with_ann!AE58","v":35},{"$f":"[1]ACS_16_5YR_B18103_with_ann!AF58","v":10},{"$f":"[1]ACS_16_5YR_B18103_with_ann!AG58","v":6},{"$f":"[1]ACS_16_5YR_B18103_with_ann!AH58","v":0},{"$f":"[1]ACS_16_5YR_B18103_with_ann!AI58","v":12},{"$f":"[1]ACS_16_5YR_B18103_with_ann!AJ58","v":10},{"$f":"[1]ACS_16_5YR_B18103_with_ann!AK58","v":6},{"$f":"[1]ACS_16_5YR_B18103_with_ann!AL58","v":3},{"$f":"[1]ACS_16_5YR_B18103_with_ann!AM58","v":3},{"$f":"[1]ACS_16_5YR_B18103_with_ann!AN58","v":0},{"$f":"[1]ACS_16_5YR_B18103_with_ann!AO58","v":12},{"$f":"[1]ACS_16_5YR_B18103_with_ann!AP58","v":3},{"$f":"[1]ACS_16_5YR_B18103_with_ann!AQ58","v":3},{"$f":"[1]ACS_16_5YR_B18103_with_ann!AR58","v":160},{"$f":"[1]ACS_16_5YR_B18103_with_ann!AS58","v":78},{"$f":"[1]ACS_16_5YR_B18103_with_ann!AT58","v":2},{"$f":"[1]ACS_16_5YR_B18103_with_ann!AU58","v":3},{"$f":"[1]ACS_16_5YR_B18103_with_ann!AV58","v":0},{"$f":"[1]ACS_16_5YR_B18103_with_ann!AW58","v":12},{"$f":"[1]ACS_16_5YR_B18103_with_ann!AX58","v":2},{"$f":"[1]ACS_16_5YR_B18103_with_ann!AY58","v":3},{"$f":"[1]ACS_16_5YR_B18103_with_ann!AZ58","v":5},{"$f":"[1]ACS_16_5YR_B18103_with_ann!BA58","v":5},{"$f":"[1]ACS_16_5YR_B18103_with_ann!BB58","v":0},{"$f":"[1]ACS_16_5YR_B18103_with_ann!BC58","v":12},{"$f":"[1]ACS_16_5YR_B18103_with_ann!BD58","v":5},{"$f":"[1]ACS_16_5YR_B18103_with_ann!BE58","v":5},{"$f":"[1]ACS_16_5YR_B18103_with_ann!BF58","v":67},{"$f":"[1]ACS_16_5YR_B18103_with_ann!BG58","v":57},{"$f":"[1]ACS_16_5YR_B18103_with_ann!BH58","v":0},{"$f":"[1]ACS_16_5YR_B18103_with_ann!BI58","v":12},{"$f":"[1]ACS_16_5YR_B18103_with_ann!BJ58","v":67},{"$f":"[1]ACS_16_5YR_B18103_with_ann!BK58","v":57},{"$f":"[1]ACS_16_5YR_B18103_with_ann!BL58","v":66},{"$f":"[1]ACS_16_5YR_B18103_with_ann!BM58","v":30},{"$f":"[1]ACS_16_5YR_B18103_with_ann!BN58","v":0},{"$f":"[1]ACS_16_5YR_B18103_with_ann!BO58","v":12},{"$f":"[1]ACS_16_5YR_B18103_with_ann!BP58","v":66},{"$f":"[1]ACS_16_5YR_B18103_with_ann!BQ58","v":30},{"$f":"[1]ACS_16_5YR_B18103_with_ann!BR58","v":13},{"$f":"[1]ACS_16_5YR_B18103_with_ann!BS58","v":5},{"$f":"[1]ACS_16_5YR_B18103_with_ann!BT58","v":0},{"$f":"[1]ACS_16_5YR_B18103_with_ann!BU58","v":12},{"$f":"[1]ACS_16_5YR_B18103_with_ann!BV58","v":13},{"$f":"[1]ACS_16_5YR_B18103_with_ann!BW58","v":5},{"$f":"[1]ACS_16_5YR_B18103_with_ann!BX58","v":7},{"$f":"[1]ACS_16_5YR_B18103_with_ann!BY58","v":7},{"$f":"[1]ACS_16_5YR_B18103_with_ann!BZ58","v":0},{"$f":"[1]ACS_16_5YR_B18103_with_ann!CA58","v":12},{"$f":"[1]ACS_16_5YR_B18103_with_ann!CB58","v":7},{"$f":"[1]ACS_16_5YR_B18103_with_ann!CC58","v":7}]
["06000US3300573700","0600000US3300574900","060",{"$f":"[1]ACS_16_5YR_B18103_with_ann!C59","v":"Stoddard"},{"$f":"[1]ACS_16_5YR_B18103_with_ann!D59","v":1205},{"$f":"[1]ACS_16_5YR_B18103_with_ann!E59","v":162},{"$f":"[1]ACS_16_5YR_B18103_with_ann!F59","v":592},{"$f":"[1]ACS_16_5YR_B18103_with_ann!G59","v":98},{"$f":"[1]ACS_16_5YR_B18103_with_ann!H59","v":29},{"$f":"[1]ACS_16_5YR_B18103_with_ann!I59","v":16},{"$f":"[1]ACS_16_5YR_B18103_with_ann!J59","v":0},{"$f":"[1]ACS_16_5YR_B18103_with_ann!K59","v":12},{"$f":"[1]ACS_16_5YR_B18103_with_ann!L59","v":29},{"$f":"[1]ACS_16_5YR_B18103_with_ann!M59","v":16},{"$f":"[1]ACS_16_5YR_B18103_with_ann!N59","v":104},{"$f":"[1]ACS_16_5YR_B18103_with_ann!O59","v":62},{"$f":"[1]ACS_16_5YR_B18103_with_ann!P59","v":0},{"$f":"[1]ACS_16_5YR_B18103_with_ann!Q59","v":12},{"$f":"[1]ACS_16_5YR_B18103_with_ann!R59","v":104},{"$f":"[1]ACS_16_5YR_B18103_with_ann!S59","v":62},{"$f":"[1]ACS_16_5YR_B18103_with_ann!T59","v":81},{"$f":"[1]ACS_16_5YR_B18103_with_ann!U59","v":29},{"$f":"[1]ACS_16_5YR_B18103_with_ann!V59","v":2},{"$f":"[1]ACS_16_5YR_B18103_with_ann!W59","v":4},{"$f":"[1]ACS_16_5YR_B18103_with_ann!X59","v":79},{"$f":"[1]ACS_16_5YR_B18103_with_ann!Y59","v":29},{"$f":"[1]ACS_16_5YR_B18103_with_ann!Z59","v":279},{"$f":"[1]ACS_16_5YR_B18103_with_ann!AA59","v":49},{"$f":"[1]ACS_16_5YR_B18103_with_ann!AB59","v":0},{"$f":"[1]ACS_16_5YR_B18103_with_ann!AC59","v":12},{"$f":"[1]ACS_16_5YR_B18103_with_ann!AD59","v":279},{"$f":"[1]ACS_16_5YR_B18103_with_ann!AE59","v":49},{"$f":"[1]ACS_16_5YR_B18103_with_ann!AF59","v":68},{"$f":"[1]ACS_16_5YR_B18103_with_ann!AG59","v":17},{"$f":"[1]ACS_16_5YR_B18103_with_ann!AH59","v":0},{"$f":"[1]ACS_16_5YR_B18103_with_ann!AI59","v":12},{"$f":"[1]ACS_16_5YR_B18103_with_ann!AJ59","v":68},{"$f":"[1]ACS_16_5YR_B18103_with_ann!AK59","v":17},{"$f":"[1]ACS_16_5YR_B18103_with_ann!AL59","v":31},{"$f":"[1]ACS_16_5YR_B18103_with_ann!AM59","v":15},{"$f":"[1]ACS_16_5YR_B18103_with_ann!AN59","v":0},{"$f":"[1]ACS_16_5YR_B18103_with_ann!AO59","v":12},{"$f":"[1]ACS_16_5YR_B18103_with_ann!AP59","v":31},{"$f":"[1]ACS_16_5YR_B18103_with_ann!AQ59","v":15},{"$f":"[1]ACS_16_5YR_B18103_with_ann!AR59","v":613},{"$f":"[1]ACS_16_5YR_B18103_with_ann!AS59","v":91},{"$f":"[1]ACS_16_5YR_B18103_with_ann!AT59","v":29},{"$f":"[1]ACS_16_5YR_B18103_with_ann!AU59","v":23},{"$f":"[1]ACS_16_5YR_B18103_with_ann!AV59","v":0},{"$f":"[1]ACS_16_5YR_B18103_with_ann!AW59","v":12},{"$f":"[1]ACS_16_5YR_B18103_with_ann!AX59","v":29},{"$f":"[1]ACS_16_5YR_B18103_with_ann!AY59","v":23},{"$f":"[1]ACS_16_5YR_B18103_with_ann!AZ59","v":89},{"$f":"[1]ACS_16_5YR_B18103_with_ann!BA59","v":33},{"$f":"[1]ACS_16_5YR_B18103_with_ann!BB59","v":0},{"$f":"[1]ACS_16_5YR_B18103_with_ann!BC59","v":12},{"$f":"[1]ACS_16_5YR_B18103_with_ann!BD59","v":89},{"$f":"[1]ACS_16_5YR_B18103_with_ann!BE59","v":33},{"$f":"[1]ACS_16_5YR_B18103_with_ann!BF59","v":102},{"$f":"[1]ACS_16_5YR_B18103_with_ann!BG59","v":41},{"$f":"[1]ACS_16_5YR_B18103_with_ann!BH59","v":0},{"$f":"[1]ACS_16_5YR_B18103_with_ann!BI59","v":12},{"$f":"[1]ACS_16_5YR_B18103_with_ann!BJ59","v":102},{"$f":"[1]ACS_16_5YR_B18103_with_ann!BK59","v":41},{"$f":"[1]ACS_16_5YR_B18103_with_ann!BL59","v":257},{"$f":"[1]ACS_16_5YR_B18103_with_ann!BM59","v":49},{"$f":"[1]ACS_16_5YR_B18103_with_ann!BN59","v":0},{"$f":"[1]ACS_16_5YR_B18103_with_ann!BO59","v":12},{"$f":"[1]ACS_16_5YR_B18103_with_ann!BP59","v":257},{"$f":"[1]ACS_16_5YR_B18103_with_ann!BQ59","v":49},{"$f":"[1]ACS_16_5YR_B18103_with_ann!BR59","v":86},{"$f":"[1]ACS_16_5YR_B18103_with_ann!BS59","v":25},{"$f":"[1]ACS_16_5YR_B18103_with_ann!BT59","v":0},{"$f":"[1]ACS_16_5YR_B18103_with_ann!BU59","v":12},{"$f":"[1]ACS_16_5YR_B18103_with_ann!BV59","v":86},{"$f":"[1]ACS_16_5YR_B18103_with_ann!BW59","v":25},{"$f":"[1]ACS_16_5YR_B18103_with_ann!BX59","v":50},{"$f":"[1]ACS_16_5YR_B18103_with_ann!BY59","v":22},{"$f":"[1]ACS_16_5YR_B18103_with_ann!BZ59","v":5},{"$f":"[1]ACS_16_5YR_B18103_with_ann!CA59","v":8},{"$f":"[1]ACS_16_5YR_B18103_with_ann!CB59","v":45},{"$f":"[1]ACS_16_5YR_B18103_with_ann!CC59","v":20}]
["06000US3300574900","0600000US3300575300","060",{"$f":"[1]ACS_16_5YR_B18103_with_ann!C60","v":"Sullivan"},{"$f":"[1]ACS_16_5YR_B18103_with_ann!D60","v":681},{"$f":"[1]ACS_16_5YR_B18103_with_ann!E60","v":130},{"$f":"[1]ACS_16_5YR_B18103_with_ann!F60","v":342},{"$f":"[1]ACS_16_5YR_B18103_with_ann!G60","v":79},{"$f":"[1]ACS_16_5YR_B18103_with_ann!H60","v":35},{"$f":"[1]ACS_16_5YR_B18103_with_ann!I60","v":30},{"$f":"[1]ACS_16_5YR_B18103_with_ann!J60","v":0},{"$f":"[1]ACS_16_5YR_B18103_with_ann!K60","v":12},{"$f":"[1]ACS_16_5YR_B18103_with_ann!L60","v":35},{"$f":"[1]ACS_16_5YR_B18103_with_ann!M60","v":30},{"$f":"[1]ACS_16_5YR_B18103_with_ann!N60","v":18},{"$f":"[1]ACS_16_5YR_B18103_with_ann!O60","v":12},{"$f":"[1]ACS_16_5YR_B18103_with_ann!P60","v":0},{"$f":"[1]ACS_16_5YR_B18103_with_ann!Q60","v":12},{"$f":"[1]ACS_16_5YR_B18103_with_ann!R60","v":18},{"$f":"[1]ACS_16_5YR_B18103_with_ann!S60","v":12},{"$f":"[1]ACS_16_5YR_B18103_with_ann!T60","v":88},{"$f":"[1]ACS_16_5YR_B18103_with_ann!U60","v":36},{"$f":"[1]ACS_16_5YR_B18103_with_ann!V60","v":0},{"$f":"[1]ACS_16_5YR_B18103_with_ann!W60","v":12},{"$f":"[1]ACS_16_5YR_B18103_with_ann!X60","v":88},{"$f":"[1]ACS_16_5YR_B18103_with_ann!Y60","v":36},{"$f":"[1]ACS_16_5YR_B18103_with_ann!Z60","v":134},{"$f":"[1]ACS_16_5YR_B18103_with_ann!AA60","v":28},{"$f":"[1]ACS_16_5YR_B18103_with_ann!AB60","v":2},{"$f":"[1]ACS_16_5YR_B18103_with_ann!AC60","v":3},{"$f":"[1]ACS_16_5YR_B18103_with_ann!AD60","v":132},{"$f":"[1]ACS_16_5YR_B18103_with_ann!AE60","v":29},{"$f":"[1]ACS_16_5YR_B18103_with_ann!AF60","v":40},{"$f":"[1]ACS_16_5YR_B18103_with_ann!AG60","v":17},{"$f":"[1]ACS_16_5YR_B18103_with_ann!AH60","v":0},{"$f":"[1]ACS_16_5YR_B18103_with_ann!AI60","v":12},{"$f":"[1]ACS_16_5YR_B18103_with_ann!AJ60","v":40},{"$f":"[1]ACS_16_5YR_B18103_with_ann!AK60","v":17},{"$f":"[1]ACS_16_5YR_B18103_with_ann!AL60","v":27},{"$f":"[1]ACS_16_5YR_B18103_with_ann!AM60","v":14},{"$f":"[1]ACS_16_5YR_B18103_with_ann!AN60","v":0},{"$f":"[1]ACS_16_5YR_B18103_with_ann!AO60","v":12},{"$f":"[1]ACS_16_5YR_B18103_with_ann!AP60","v":27},{"$f":"[1]ACS_16_5YR_B18103_with_ann!AQ60","v":14},{"$f":"[1]ACS_16_5YR_B18103_with_ann!AR60","v":339},{"$f":"[1]ACS_16_5YR_B18103_with_ann!AS60","v":65},{"$f":"[1]ACS_16_5YR_B18103_with_ann!AT60","v":28},{"$f":"[1]ACS_16_5YR_B18103_with_ann!AU60","v":18},{"$f":"[1]ACS_16_5YR_B18103_with_ann!AV60","v":0},{"$f":"[1]ACS_16_5YR_B18103_with_ann!AW60","v":12},{"$f":"[1]ACS_16_5YR_B18103_with_ann!AX60","v":28},{"$f":"[1]ACS_16_5YR_B18103_with_ann!AY60","v":18},{"$f":"[1]ACS_16_5YR_B18103_with_ann!AZ60","v":30},{"$f":"[1]ACS_16_5YR_B18103_with_ann!BA60","v":15},{"$f":"[1]ACS_16_5YR_B18103_with_ann!BB60","v":0},{"$f":"[1]ACS_16_5YR_B18103_with_ann!BC60","v":12},{"$f":"[1]ACS_16_5YR_B18103_with_ann!BD60","v":30},{"$f":"[1]ACS_16_5YR_B18103_with_ann!BE60","v":15},{"$f":"[1]ACS_16_5YR_B18103_with_ann!BF60","v":74},{"$f":"[1]ACS_16_5YR_B18103_with_ann!BG60","v":37},{"$f":"[1]ACS_16_5YR_B18103_with_ann!BH60","v":0},{"$f":"[1]ACS_16_5YR_B18103_with_ann!BI60","v":12},{"$f":"[1]ACS_16_5YR_B18103_with_ann!BJ60","v":74},{"$f":"[1]ACS_16_5YR_B18103_with_ann!BK60","v":37},{"$f":"[1]ACS_16_5YR_B18103_with_ann!BL60","v":145},{"$f":"[1]ACS_16_5YR_B18103_with_ann!BM60","v":28},{"$f":"[1]ACS_16_5YR_B18103_with_ann!BN60","v":0},{"$f":"[1]ACS_16_5YR_B18103_with_ann!BO60","v":12},{"$f":"[1]ACS_16_5YR_B18103_with_ann!BP60","v":145},{"$f":"[1]ACS_16_5YR_B18103_with_ann!BQ60","v":28},{"$f":"[1]ACS_16_5YR_B18103_with_ann!BR60","v":40},{"$f":"[1]ACS_16_5YR_B18103_with_ann!BS60","v":14},{"$f":"[1]ACS_16_5YR_B18103_with_ann!BT60","v":5},{"$f":"[1]ACS_16_5YR_B18103_with_ann!BU60","v":8},{"$f":"[1]ACS_16_5YR_B18103_with_ann!BV60","v":35},{"$f":"[1]ACS_16_5YR_B18103_with_ann!BW60","v":13},{"$f":"[1]ACS_16_5YR_B18103_with_ann!BX60","v":22},{"$f":"[1]ACS_16_5YR_B18103_with_ann!BY60","v":13},{"$f":"[1]ACS_16_5YR_B18103_with_ann!BZ60","v":4},{"$f":"[1]ACS_16_5YR_B18103_with_ann!CA60","v":5},{"$f":"[1]ACS_16_5YR_B18103_with_ann!CB60","v":18},{"$f":"[1]ACS_16_5YR_B18103_with_ann!CC60","v":12}]
["06000US3300575300","0600000US3300575700","060",{"$f":"[1]ACS_16_5YR_B18103_with_ann!C61","v":"Surry"},{"$f":"[1]ACS_16_5YR_B18103_with_ann!D61","v":950},{"$f":"[1]ACS_16_5YR_B18103_with_ann!E61","v":245},{"$f":"[1]ACS_16_5YR_B18103_with_ann!F61","v":388},{"$f":"[1]ACS_16_5YR_B18103_with_ann!G61","v":72},{"$f":"[1]ACS_16_5YR_B18103_with_ann!H61","v":17},{"$f":"[1]ACS_16_5YR_B18103_with_ann!I61","v":13},{"$f":"[1]ACS_16_5YR_B18103_with_ann!J61","v":3},{"$f":"[1]ACS_16_5YR_B18103_with_ann!K61","v":4},{"$f":"[1]ACS_16_5YR_B18103_with_ann!L61","v":14},{"$f":"[1]ACS_16_5YR_B18103_with_ann!M61","v":12},{"$f":"[1]ACS_16_5YR_B18103_with_ann!N61","v":34},{"$f":"[1]ACS_16_5YR_B18103_with_ann!O61","v":16},{"$f":"[1]ACS_16_5YR_B18103_with_ann!P61","v":0},{"$f":"[1]ACS_16_5YR_B18103_with_ann!Q61","v":12},{"$f":"[1]ACS_16_5YR_B18103_with_ann!R61","v":34},{"$f":"[1]ACS_16_5YR_B18103_with_ann!S61","v":16},{"$f":"[1]ACS_16_5YR_B18103_with_ann!T61","v":49},{"$f":"[1]ACS_16_5YR_B18103_with_ann!U61","v":28},{"$f":"[1]ACS_16_5YR_B18103_with_ann!V61","v":2},{"$f":"[1]ACS_16_5YR_B18103_with_ann!W61","v":3},{"$f":"[1]ACS_16_5YR_B18103_with_ann!X61","v":47},{"$f":"[1]ACS_16_5YR_B18103_with_ann!Y61","v":28},{"$f":"[1]ACS_16_5YR_B18103_with_ann!Z61","v":164},{"$f":"[1]ACS_16_5YR_B18103_with_ann!AA61","v":44},{"$f":"[1]ACS_16_5YR_B18103_with_ann!AB61","v":0},{"$f":"[1]ACS_16_5YR_B18103_with_ann!AC61","v":12},{"$f":"[1]ACS_16_5YR_B18103_with_ann!AD61","v":164},{"$f":"[1]ACS_16_5YR_B18103_with_ann!AE61","v":44},{"$f":"[1]ACS_16_5YR_B18103_with_ann!AF61","v":80},{"$f":"[1]ACS_16_5YR_B18103_with_ann!AG61","v":34},{"$f":"[1]ACS_16_5YR_B18103_with_ann!AH61","v":0},{"$f":"[1]ACS_16_5YR_B18103_with_ann!AI61","v":12},{"$f":"[1]ACS_16_5YR_B18103_with_ann!AJ61","v":80},{"$f":"[1]ACS_16_5YR_B18103_with_ann!AK61","v":34},{"$f":"[1]ACS_16_5YR_B18103_with_ann!AL61","v":44},{"$f":"[1]ACS_16_5YR_B18103_with_ann!AM61","v":21},{"$f":"[1]ACS_16_5YR_B18103_with_ann!AN61","v":8},{"$f":"[1]ACS_16_5YR_B18103_with_ann!AO61","v":12},{"$f":"[1]ACS_16_5YR_B18103_with_ann!AP61","v":36},{"$f":"[1]ACS_16_5YR_B18103_with_ann!AQ61","v":17},{"$f":"[1]ACS_16_5YR_B18103_with_ann!AR61","v":562},{"$f":"[1]ACS_16_5YR_B18103_with_ann!AS61","v":203},{"$f":"[1]ACS_16_5YR_B18103_with_ann!AT61","v":47},{"$f":"[1]ACS_16_5YR_B18103_with_ann!AU61","v":47},{"$f":"[1]ACS_16_5YR_B18103_with_ann!AV61","v":0},{"$f":"[1]ACS_16_5YR_B18103_with_ann!AW61","v":12},{"$f":"[1]ACS_16_5YR_B18103_with_ann!AX61","v":47},{"$f":"[1]ACS_16_5YR_B18103_with_ann!AY61","v":47},{"$f":"[1]ACS_16_5YR_B18103_with_ann!AZ61","v":95},{"$f":"[1]ACS_16_5YR_B18103_with_ann!BA61","v":63},{"$f":"[1]ACS_16_5YR_B18103_with_ann!BB61","v":0},{"$f":"[1]ACS_16_5YR_B18103_with_ann!BC61","v":12},{"$f":"[1]ACS_16_5YR_B18103_with_ann!BD61","v":95},{"$f":"[1]ACS_16_5YR_B18103_with_ann!BE61","v":63},{"$f":"[1]ACS_16_5YR_B18103_with_ann!BF61","v":122},{"$f":"[1]ACS_16_5YR_B18103_with_ann!BG61","v":78},{"$f":"[1]ACS_16_5YR_B18103_with_ann!BH61","v":0},{"$f":"[1]ACS_16_5YR_B18103_with_ann!BI61","v":12},{"$f":"[1]ACS_16_5YR_B18103_with_ann!BJ61","v":122},{"$f":"[1]ACS_16_5YR_B18103_with_ann!BK61","v":78},{"$f":"[1]ACS_16_5YR_B18103_with_ann!BL61","v":179},{"$f":"[1]ACS_16_5YR_B18103_with_ann!BM61","v":54},{"$f":"[1]ACS_16_5YR_B18103_with_ann!BN61","v":0},{"$f":"[1]ACS_16_5YR_B18103_with_ann!BO61","v":12},{"$f":"[1]ACS_16_5YR_B18103_with_ann!BP61","v":179},{"$f":"[1]ACS_16_5YR_B18103_with_ann!BQ61","v":54},{"$f":"[1]ACS_16_5YR_B18103_with_ann!BR61","v":72},{"$f":"[1]ACS_16_5YR_B18103_with_ann!BS61","v":25},{"$f":"[1]ACS_16_5YR_B18103_with_ann!BT61","v":0},{"$f":"[1]ACS_16_5YR_B18103_with_ann!BU61","v":12},{"$f":"[1]ACS_16_5YR_B18103_with_ann!BV61","v":72},{"$f":"[1]ACS_16_5YR_B18103_with_ann!BW61","v":25},{"$f":"[1]ACS_16_5YR_B18103_with_ann!BX61","v":47},{"$f":"[1]ACS_16_5YR_B18103_with_ann!BY61","v":20},{"$f":"[1]ACS_16_5YR_B18103_with_ann!BZ61","v":6},{"$f":"[1]ACS_16_5YR_B18103_with_ann!CA61","v":6},{"$f":"[1]ACS_16_5YR_B18103_with_ann!CB61","v":41},{"$f":"[1]ACS_16_5YR_B18103_with_ann!CC61","v":20}]
["06000US3300575700","0600000US3300577380","060",{"$f":"[1]ACS_16_5YR_B18103_with_ann!C62","v":"Swanzey"},{"$f":"[1]ACS_16_5YR_B18103_with_ann!D62","v":7306},{"$f":"[1]ACS_16_5YR_B18103_with_ann!E62","v":22},{"$f":"[1]ACS_16_5YR_B18103_with_ann!F62","v":3563},{"$f":"[1]ACS_16_5YR_B18103_with_ann!G62","v":205},{"$f":"[1]ACS_16_5YR_B18103_with_ann!H62","v":125},{"$f":"[1]ACS_16_5YR_B18103_with_ann!I62","v":95},{"$f":"[1]ACS_16_5YR_B18103_with_ann!J62","v":0},{"$f":"[1]ACS_16_5YR_B18103_with_ann!K62","v":17},{"$f":"[1]ACS_16_5YR_B18103_with_ann!L62","v":125},{"$f":"[1]ACS_16_5YR_B18103_with_ann!M62","v":95},{"$f":"[1]ACS_16_5YR_B18103_with_ann!N62","v":425},{"$f":"[1]ACS_16_5YR_B18103_with_ann!O62","v":130},{"$f":"[1]ACS_16_5YR_B18103_with_ann!P62","v":0},{"$f":"[1]ACS_16_5YR_B18103_with_ann!Q62","v":17},{"$f":"[1]ACS_16_5YR_B18103_with_ann!R62","v":425},{"$f":"[1]ACS_16_5YR_B18103_with_ann!S62","v":130},{"$f":"[1]ACS_16_5YR_B18103_with_ann!T62","v":528},{"$f":"[1]ACS_16_5YR_B18103_with_ann!U62","v":182},{"$f":"[1]ACS_16_5YR_B18103_with_ann!V62","v":0},{"$f":"[1]ACS_16_5YR_B18103_with_ann!W62","v":17},{"$f":"[1]ACS_16_5YR_B18103_with_ann!X62","v":528},{"$f":"[1]ACS_16_5YR_B18103_with_ann!Y62","v":182},{"$f":"[1]ACS_16_5YR_B18103_with_ann!Z62","v":1568},{"$f":"[1]ACS_16_5YR_B18103_with_ann!AA62","v":216},{"$f":"[1]ACS_16_5YR_B18103_with_ann!AB62","v":84},{"$f":"[1]ACS_16_5YR_B18103_with_ann!AC62","v":119},{"$f":"[1]ACS_16_5YR_B18103_with_ann!AD62","v":1484},{"$f":"[1]ACS_16_5YR_B18103_with_ann!AE62","v":214},{"$f":"[1]ACS_16_5YR_B18103_with_ann!AF62","v":533},{"$f":"[1]ACS_16_5YR_B18103_with_ann!AG62","v":186},{"$f":"[1]ACS_16_5YR_B18103_with_ann!AH62","v":24},{"$f":"[1]ACS_16_5YR_B18103_with_ann!AI62","v":30},{"$f":"[1]ACS_16_5YR_B18103_with_ann!AJ62","v":509},{"$f":"[1]ACS_16_5YR_B18103_with_ann!AK62","v":181},{"$f":"[1]ACS_16_5YR_B18103_with_ann!AL62","v":384},{"$f":"[1]ACS_16_5YR_B18103_with_ann!AM62","v":157},{"$f":"[1]ACS_16_5YR_B18103_with_ann!AN62","v":26},{"$f":"[1]ACS_16_5YR_B18103_with_ann!AO62","v":39},{"$f":"[1]ACS_16_5YR_B18103_with_ann!AP62","v":358},{"$f":"[1]ACS_16_5YR_B18103_with_ann!AQ62","v":130},{"$f":"[1]ACS_16_5YR_B18103_with_ann!AR62","v":3743},{"$f":"[1]ACS_16_5YR_B18103_with_ann!AS62","v":209},{"$f":"[1]ACS_16_5YR_B18103_with_ann!AT62","v":110},{"$f":"[1]ACS_16_5YR_B18103_with_ann!AU62","v":82},{"$f":"[1]ACS_16_5YR_B18103_with_ann!AV62","v":0},{"$f":"[1]ACS_16_5YR_B18103_with_ann!AW62","v":17},{"$f":"[1]ACS_16_5YR_B18103_with_ann!AX62","v":110},{"$f":"[1]ACS_16_5YR_B18103_with_ann!AY62","v":82},{"$f":"[1]ACS_16_5YR_B18103_with_ann!AZ62","v":602},{"$f":"[1]ACS_16_5YR_B18103_with_ann!BA62","v":142},{"$f":"[1]ACS_16_5YR_B18103_with_ann!BB62","v":0},{"$f":"[1]ACS_16_5YR_B18103_with_ann!BC62","v":17},{"$f":"[1]ACS_16_5YR_B18103_with_ann!BD62","v":602},{"$f":"[1]ACS_16_5YR_B18103_with_ann!BE62","v":142},{"$f":"[1]ACS_16_5YR_B18103_with_ann!BF62","v":424},{"$f":"[1]ACS_16_5YR_B18103_with_ann!BG62","v":133},{"$f":"[1]ACS_16_5YR_B18103_with_ann!BH62","v":2},{"$f":"[1]ACS_16_5YR_B18103_with_ann!BI62","v":21},{"$f":"[1]ACS_16_5YR_B18103_with_ann!BJ62","v":422},{"$f":"[1]ACS_16_5YR_B18103_with_ann!BK62","v":133},{"$f":"[1]ACS_16_5YR_B18103_with_ann!BL62","v":1648},{"$f":"[1]ACS_16_5YR_B18103_with_ann!BM62","v":206},{"$f":"[1]ACS_16_5YR_B18103_with_ann!BN62","v":34},{"$f":"[1]ACS_16_5YR_B18103_with_ann!BO62","v":53},{"$f":"[1]ACS_16_5YR_B18103_with_ann!BP62","v":1614},{"$f":"[1]ACS_16_5YR_B18103_with_ann!BQ62","v":213},{"$f":"[1]ACS_16_5YR_B18103_with_ann!BR62","v":587},{"$f":"[1]ACS_16_5YR_B18103_with_ann!BS62","v":143},{"$f":"[1]ACS_16_5YR_B18103_with_ann!BT62","v":11},{"$f":"[1]ACS_16_5YR_B18103_with_ann!BU62","v":17},{"$f":"[1]ACS_16_5YR_B18103_with_ann!BV62","v":576},{"$f":"[1]ACS_16_5YR_B18103_with_ann!BW62","v":143},{"$f":"[1]ACS_16_5YR_B18103_with_ann!BX62","v":372},{"$f":"[1]ACS_16_5YR_B18103_with_ann!BY62","v":116},{"$f":"[1]ACS_16_5YR_B18103_with_ann!BZ62","v":82},{"$f":"[1]ACS_16_5YR_B18103_with_ann!CA62","v":89},{"$f":"[1]ACS_16_5YR_B18103_with_ann!CB62","v":290},{"$f":"[1]ACS_16_5YR_B18103_with_ann!CC62","v":113}]
["06000US3300577380","0600000US3300578420","060",{"$f":"[1]ACS_16_5YR_B18103_with_ann!C63","v":"Troy"},{"$f":"[1]ACS_16_5YR_B18103_with_ann!D63","v":1889},{"$f":"[1]ACS_16_5YR_B18103_with_ann!E63","v":275},{"$f":"[1]ACS_16_5YR_B18103_with_ann!F63","v":950},{"$f":"[1]ACS_16_5YR_B18103_with_ann!G63","v":177},{"$f":"[1]ACS_16_5YR_B18103_with_ann!H63","v":25},{"$f":"[1]ACS_16_5YR_B18103_with_ann!I63","v":22},{"$f":"[1]ACS_16_5YR_B18103_with_ann!J63","v":0},{"$f":"[1]ACS_16_5YR_B18103_with_ann!K63","v":12},{"$f":"[1]ACS_16_5YR_B18103_with_ann!L63","v":25},{"$f":"[1]ACS_16_5YR_B18103_with_ann!M63","v":22},{"$f":"[1]ACS_16_5YR_B18103_with_ann!N63","v":149},{"$f":"[1]ACS_16_5YR_B18103_with_ann!O63","v":79},{"$f":"[1]ACS_16_5YR_B18103_with_ann!P63","v":0},{"$f":"[1]ACS_16_5YR_B18103_with_ann!Q63","v":12},{"$f":"[1]ACS_16_5YR_B18103_with_ann!R63","v":149},{"$f":"[1]ACS_16_5YR_B18103_with_ann!S63","v":79},{"$f":"[1]ACS_16_5YR_B18103_with_ann!T63","v":191},{"$f":"[1]ACS_16_5YR_B18103_with_ann!U63","v":77},{"$f":"[1]ACS_16_5YR_B18103_with_ann!V63","v":0},{"$f":"[1]ACS_16_5YR_B18103_with_ann!W63","v":12},{"$f":"[1]ACS_16_5YR_B18103_with_ann!X63","v":191},{"$f":"[1]ACS_16_5YR_B18103_with_ann!Y63","v":77},{"$f":"[1]ACS_16_5YR_B18103_with_ann!Z63","v":419},{"$f":"[1]ACS_16_5YR_B18103_with_ann!AA63","v":95},{"$f":"[1]ACS_16_5YR_B18103_with_ann!AB63","v":0},{"$f":"[1]ACS_16_5YR_B18103_with_ann!AC63","v":12},{"$f":"[1]ACS_16_5YR_B18103_with_ann!AD63","v":419},{"$f":"[1]ACS_16_5YR_B18103_with_ann!AE63","v":95},{"$f":"[1]ACS_16_5YR_B18103_with_ann!AF63","v":121},{"$f":"[1]ACS_16_5YR_B18103_with_ann!AG63","v":49},{"$f":"[1]ACS_16_5YR_B18103_with_ann!AH63","v":19},{"$f":"[1]ACS_16_5YR_B18103_with_ann!AI63","v":23},{"$f":"[1]ACS_16_5YR_B18103_with_ann!AJ63","v":102},{"$f":"[1]ACS_16_5YR_B18103_with_ann!AK63","v":41},{"$f":"[1]ACS_16_5YR_B18103_with_ann!AL63","v":45},{"$f":"[1]ACS_16_5YR_B18103_with_ann!AM63","v":29},{"$f":"[1]ACS_16_5YR_B18103_with_ann!AN63","v":0},{"$f":"[1]ACS_16_5YR_B18103_with_ann!AO63","v":12},{"$f":"[1]ACS_16_5YR_B18103_with_ann!AP63","v":45},{"$f":"[1]ACS_16_5YR_B18103_with_ann!AQ63","v":29},{"$f":"[1]ACS_16_5YR_B18103_with_ann!AR63","v":939},{"$f":"[1]ACS_16_5YR_B18103_with_ann!AS63","v":136},{"$f":"[1]ACS_16_5YR_B18103_with_ann!AT63","v":106},{"$f":"[1]ACS_16_5YR_B18103_with_ann!AU63","v":55},{"$f":"[1]ACS_16_5YR_B18103_with_ann!AV63","v":0},{"$f":"[1]ACS_16_5YR_B18103_with_ann!AW63","v":12},{"$f":"[1]ACS_16_5YR_B18103_with_ann!AX63","v":106},{"$f":"[1]ACS_16_5YR_B18103_with_ann!AY63","v":55},{"$f":"[1]ACS_16_5YR_B18103_with_ann!AZ63","v":113},{"$f":"[1]ACS_16_5YR_B18103_with_ann!BA63","v":46},{"$f":"[1]ACS_16_5YR_B18103_with_ann!BB63","v":0},{"$f":"[1]ACS_16_5YR_B18103_with_ann!BC63","v":12},{"$f":"[1]ACS_16_5YR_B18103_with_ann!BD63","v":113},{"$f":"[1]ACS_16_5YR_B18103_with_ann!BE63","v":46},{"$f":"[1]ACS_16_5YR_B18103_with_ann!BF63","v":205},{"$f":"[1]ACS_16_5YR_B18103_with_ann!BG63","v":65},{"$f":"[1]ACS_16_5YR_B18103_with_ann!BH63","v":0},{"$f":"[1]ACS_16_5YR_B18103_with_ann!BI63","v":12},{"$f":"[1]ACS_16_5YR_B18103_with_ann!BJ63","v":205},{"$f":"[1]ACS_16_5YR_B18103_with_ann!BK63","v":65},{"$f":"[1]ACS_16_5YR_B18103_with_ann!BL63","v":352},{"$f":"[1]ACS_16_5YR_B18103_with_ann!BM63","v":89},{"$f":"[1]ACS_16_5YR_B18103_with_ann!BN63","v":0},{"$f":"[1]ACS_16_5YR_B18103_with_ann!BO63","v":12},{"$f":"[1]ACS_16_5YR_B18103_with_ann!BP63","v":352},{"$f":"[1]ACS_16_5YR_B18103_with_ann!BQ63","v":89},{"$f":"[1]ACS_16_5YR_B18103_with_ann!BR63","v":101},{"$f":"[1]ACS_16_5YR_B18103_with_ann!BS63","v":32},{"$f":"[1]ACS_16_5YR_B18103_with_ann!BT63","v":0},{"$f":"[1]ACS_16_5YR_B18103_with_ann!BU63","v":12},{"$f":"[1]ACS_16_5YR_B18103_with_ann!BV63","v":101},{"$f":"[1]ACS_16_5YR_B18103_with_ann!BW63","v":32},{"$f":"[1]ACS_16_5YR_B18103_with_ann!BX63","v":62},{"$f":"[1]ACS_16_5YR_B18103_with_ann!BY63","v":38},{"$f":"[1]ACS_16_5YR_B18103_with_ann!BZ63","v":11},{"$f":"[1]ACS_16_5YR_B18103_with_ann!CA63","v":17},{"$f":"[1]ACS_16_5YR_B18103_with_ann!CB63","v":51},{"$f":"[1]ACS_16_5YR_B18103_with_ann!CC63","v":33}]
["06000US3300578420","0600000US3300582660","060",{"$f":"[1]ACS_16_5YR_B18103_with_ann!C64","v":"Walpole"},{"$f":"[1]ACS_16_5YR_B18103_with_ann!D64","v":3651},{"$f":"[1]ACS_16_5YR_B18103_with_ann!E64","v":33},{"$f":"[1]ACS_16_5YR_B18103_with_ann!F64","v":1799},{"$f":"[1]ACS_16_5YR_B18103_with_ann!G64","v":162},{"$f":"[1]ACS_16_5YR_B18103_with_ann!H64","v":183},{"$f":"[1]ACS_16_5YR_B18103_with_ann!I64","v":89},{"$f":"[1]ACS_16_5YR_B18103_with_ann!J64","v":0},{"$f":"[1]ACS_16_5YR_B18103_with_ann!K64","v":12},{"$f":"[1]ACS_16_5YR_B18103_with_ann!L64","v":183},{"$f":"[1]ACS_16_5YR_B18103_with_ann!M64","v":89},{"$f":"[1]ACS_16_5YR_B18103_with_ann!N64","v":312},{"$f":"[1]ACS_16_5YR_B18103_with_ann!O64","v":115},{"$f":"[1]ACS_16_5YR_B18103_with_ann!P64","v":5},{"$f":"[1]ACS_16_5YR_B18103_with_ann!Q64","v":8},{"$f":"[1]ACS_16_5YR_B18103_with_ann!R64","v":307},{"$f":"[1]ACS_16_5YR_B18103_with_ann!S64","v":115},{"$f":"[1]ACS_16_5YR_B18103_with_ann!T64","v":366},{"$f":"[1]ACS_16_5YR_B18103_with_ann!U64","v":116},{"$f":"[1]ACS_16_5YR_B18103_with_ann!V64","v":7},{"$f":"[1]ACS_16_5YR_B18103_with_ann!W64","v":12},{"$f":"[1]ACS_16_5YR_B18103_with_ann!X64","v":359},{"$f":"[1]ACS_16_5YR_B18103_with_ann!Y64","v":116},{"$f":"[1]ACS_16_5YR_B18103_with_ann!Z64","v":571},{"$f":"[1]ACS_16_5YR_B18103_with_ann!AA64","v":100},{"$f":"[1]ACS_16_5YR_B18103_with_ann!AB64","v":0},{"$f":"[1]ACS_16_5YR_B18103_with_ann!AC64","v":12},{"$f":"[1]ACS_16_5YR_B18103_with_ann!AD64","v":571},{"$f":"[1]ACS_16_5YR_B18103_with_ann!AE64","v":100},{"$f":"[1]ACS_16_5YR_B18103_with_ann!AF64","v":271},{"$f":"[1]ACS_16_5YR_B18103_with_ann!AG64","v":74},{"$f":"[1]ACS_16_5YR_B18103_with_ann!AH64","v":0},{"$f":"[1]ACS_16_5YR_B18103_with_ann!AI64","v":12},{"$f":"[1]ACS_16_5YR_B18103_with_ann!AJ64","v":271},{"$f":"[1]ACS_16_5YR_B18103_with_ann!AK64","v":74},{"$f":"[1]ACS_16_5YR_B18103_with_ann!AL64","v":96},{"$f":"[1]ACS_16_5YR_B18103_with_ann!AM64","v":46},{"$f":"[1]ACS_16_5YR_B18103_with_ann!AN64","v":0},{"$f":"[1]ACS_16_5YR_B18103_with_ann!AO64","v":12},{"$f":"[1]ACS_16_5YR_B18103_with_ann!AP64","v":96},{"$f":"[1]ACS_16_5YR_B18103_with_ann!AQ64","v":46},{"$f":"[1]ACS_16_5YR_B18103_with_ann!AR64","v":1852},{"$f":"[1]ACS_16_5YR_B18103_with_ann!AS64","v":161},{"$f":"[1]ACS_16_5YR_B18103_with_ann!AT64","v":144},{"$f":"[1]ACS_16_5YR_B18103_with_ann!AU64","v":82},{"$f":"[1]ACS_16_5YR_B18103_with_ann!AV64","v":0},{"$f":"[1]ACS_16_5YR_B18103_with_ann!AW64","v":12},{"$f":"[1]ACS_16_5YR_B18103_with_ann!AX64","v":144},{"$f":"[1]ACS_16_5YR_B18103_with_ann!AY64","v":82},{"$f":"[1]ACS_16_5YR_B18103_with_ann!AZ64","v":287},{"$f":"[1]ACS_16_5YR_B18103_with_ann!BA64","v":98},{"$f":"[1]ACS_16_5YR_B18103_with_ann!BB64","v":0},{"$f":"[1]ACS_16_5YR_B18103_with_ann!BC64","v":12},{"$f":"[1]ACS_16_5YR_B18103_with_ann!BD64","v":287},{"$f":"[1]ACS_16_5YR_B18103_with_ann!BE64","v":98},{"$f":"[1]ACS_16_5YR_B18103_with_ann!BF64","v":318},{"$f":"[1]ACS_16_5YR_B18103_with_ann!BG64","v":144},{"$f":"[1]ACS_16_5YR_B18103_with_ann!BH64","v":0},{"$f":"[1]ACS_16_5YR_B18103_with_ann!BI64","v":12},{"$f":"[1]ACS_16_5YR_B18103_with_ann!BJ64","v":318},{"$f":"[1]ACS_16_5YR_B18103_with_ann!BK64","v":144},{"$f":"[1]ACS_16_5YR_B18103_with_ann!BL64","v":699},{"$f":"[1]ACS_16_5YR_B18103_with_ann!BM64","v":118},{"$f":"[1]ACS_16_5YR_B18103_with_ann!BN64","v":12},{"$f":"[1]ACS_16_5YR_B18103_with_ann!BO64","v":20},{"$f":"[1]ACS_16_5YR_B18103_with_ann!BP64","v":687},{"$f":"[1]ACS_16_5YR_B18103_with_ann!BQ64","v":115},{"$f":"[1]ACS_16_5YR_B18103_with_ann!BR64","v":182},{"$f":"[1]ACS_16_5YR_B18103_with_ann!BS64","v":50},{"$f":"[1]ACS_16_5YR_B18103_with_ann!BT64","v":0},{"$f":"[1]ACS_16_5YR_B18103_with_ann!BU64","v":12},{"$f":"[1]ACS_16_5YR_B18103_with_ann!BV64","v":182},{"$f":"[1]ACS_16_5YR_B18103_with_ann!BW64","v":50},{"$f":"[1]ACS_16_5YR_B18103_with_ann!BX64","v":222},{"$f":"[1]ACS_16_5YR_B18103_with_ann!BY64","v":100},{"$f":"[1]ACS_16_5YR_B18103_with_ann!BZ64","v":18},{"$f":"[1]ACS_16_5YR_B18103_with_ann!CA64","v":20},{"$f":"[1]ACS_16_5YR_B18103_with_ann!CB64","v":204},{"$f":"[1]ACS_16_5YR_B18103_with_ann!CC64","v":102}]
["06000US3300582660","0600000US3300585540","060",{"$f":"[1]ACS_16_5YR_B18103_with_ann!C65","v":"Westmoreland"},{"$f":"[1]ACS_16_5YR_B18103_with_ann!D65","v":1971},{"$f":"[1]ACS_16_5YR_B18103_with_ann!E65","v":342},{"$f":"[1]ACS_16_5YR_B18103_with_ann!F65","v":857},{"$f":"[1]ACS_16_5YR_B18103_with_ann!G65","v":162},{"$f":"[1]ACS_16_5YR_B18103_with_ann!H65","v":33},{"$f":"[1]ACS_16_5YR_B18103_with_ann!I65","v":31},{"$f":"[1]ACS_16_5YR_B18103_with_ann!J65","v":0},{"$f":"[1]ACS_16_5YR_B18103_with_ann!K65","v":12},{"$f":"[1]ACS_16_5YR_B18103_with_ann!L65","v":33},{"$f":"[1]ACS_16_5YR_B18103_with_ann!M65","v":31},{"$f":"[1]ACS_16_5YR_B18103_with_ann!N65","v":51},{"$f":"[1]ACS_16_5YR_B18103_with_ann!O65","v":27},{"$f":"[1]ACS_16_5YR_B18103_with_ann!P65","v":0},{"$f":"[1]ACS_16_5YR_B18103_with_ann!Q65","v":12},{"$f":"[1]ACS_16_5YR_B18103_with_ann!R65","v":51},{"$f":"[1]ACS_16_5YR_B18103_with_ann!S65","v":27},{"$f":"[1]ACS_16_5YR_B18103_with_ann!T65","v":117},{"$f":"[1]ACS_16_5YR_B18103_with_ann!U65","v":52},{"$f":"[1]ACS_16_5YR_B18103_with_ann!V65","v":3},{"$f":"[1]ACS_16_5YR_B18103_with_ann!W65","v":6},{"$f":"[1]ACS_16_5YR_B18103_with_ann!X65","v":114},{"$f":"[1]ACS_16_5YR_B18103_with_ann!Y65","v":51},{"$f":"[1]ACS_16_5YR_B18103_with_ann!Z65","v":395},{"$f":"[1]ACS_16_5YR_B18103_with_ann!AA65","v":97},{"$f":"[1]ACS_16_5YR_B18103_with_ann!AB65","v":3},{"$f":"[1]ACS_16_5YR_B18103_with_ann!AC65","v":5},{"$f":"[1]ACS_16_5YR_B18103_with_ann!AD65","v":392},{"$f":"[1]ACS_16_5YR_B18103_with_ann!AE65","v":98},{"$f":"[1]ACS_16_5YR_B18103_with_ann!AF65","v":156},{"$f":"[1]ACS_16_5YR_B18103_with_ann!AG65","v":50},{"$f":"[1]ACS_16_5YR_B18103_with_ann!AH65","v":0},{"$f":"[1]ACS_16_5YR_B18103_with_ann!AI65","v":12},{"$f":"[1]ACS_16_5YR_B18103_with_ann!AJ65","v":156},{"$f":"[1]ACS_16_5YR_B18103_with_ann!AK65","v":50},{"$f":"[1]ACS_16_5YR_B18103_with_ann!AL65","v":105},{"$f":"[1]ACS_16_5YR_B18103_with_ann!AM65","v":66},{"$f":"[1]ACS_16_5YR_B18103_with_ann!AN65","v":4},{"$f":"[1]ACS_16_5YR_B18103_with_ann!AO65","v":7},{"$f":"[1]ACS_16_5YR_B18103_with_ann!AP65","v":101},{"$f":"[1]ACS_16_5YR_B18103_with_ann!AQ65","v":61},{"$f":"[1]ACS_16_5YR_B18103_with_ann!AR65","v":1114},{"$f":"[1]ACS_16_5YR_B18103_with_ann!AS65","v":217},{"$f":"[1]ACS_16_5YR_B18103_with_ann!AT65","v":47},{"$f":"[1]ACS_16_5YR_B18103_with_ann!AU65","v":41},{"$f":"[1]ACS_16_5YR_B18103_with_ann!AV65","v":0},{"$f":"[1]ACS_16_5YR_B18103_with_ann!AW65","v":12},{"$f":"[1]ACS_16_5YR_B18103_with_ann!AX65","v":47},{"$f":"[1]ACS_16_5YR_B18103_with_ann!AY65","v":41},{"$f":"[1]ACS_16_5YR_B18103_with_ann!AZ65","v":180},{"$f":"[1]ACS_16_5YR_B18103_with_ann!BA65","v":81},{"$f":"[1]ACS_16_5YR_B18103_with_ann!BB65","v":0},{"$f":"[1]ACS_16_5YR_B18103_with_ann!BC65","v":12},{"$f":"[1]ACS_16_5YR_B18103_with_ann!BD65","v":180},{"$f":"[1]ACS_16_5YR_B18103_with_ann!BE65","v":81},{"$f":"[1]ACS_16_5YR_B18103_with_ann!BF65","v":119},{"$f":"[1]ACS_16_5YR_B18103_with_ann!BG65","v":67},{"$f":"[1]ACS_16_5YR_B18103_with_ann!BH65","v":0},{"$f":"[1]ACS_16_5YR_B18103_with_ann!BI65","v":12},{"$f":"[1]ACS_16_5YR_B18103_with_ann!BJ65","v":119},{"$f":"[1]ACS_16_5YR_B18103_with_ann!BK65","v":67},{"$f":"[1]ACS_16_5YR_B18103_with_ann!BL65","v":430},{"$f":"[1]ACS_16_5YR_B18103_with_ann!BM65","v":101},{"$f":"[1]ACS_16_5YR_B18103_with_ann!BN65","v":3},{"$f":"[1]ACS_16_5YR_B18103_with_ann!BO65","v":5},{"$f":"[1]ACS_16_5YR_B18103_with_ann!BP65","v":427},{"$f":"[1]ACS_16_5YR_B18103_with_ann!BQ65","v":102},{"$f":"[1]ACS_16_5YR_B18103_with_ann!BR65","v":215},{"$f":"[1]ACS_16_5YR_B18103_with_ann!BS65","v":110},{"$f":"[1]ACS_16_5YR_B18103_with_ann!BT65","v":0},{"$f":"[1]ACS_16_5YR_B18103_with_ann!BU65","v":12},{"$f":"[1]ACS_16_5YR_B18103_with_ann!BV65","v":215},{"$f":"[1]ACS_16_5YR_B18103_with_ann!BW65","v":110},{"$f":"[1]ACS_16_5YR_B18103_with_ann!BX65","v":123},{"$f":"[1]ACS_16_5YR_B18103_with_ann!BY65","v":45},{"$f":"[1]ACS_16_5YR_B18103_with_ann!BZ65","v":27},{"$f":"[1]ACS_16_5YR_B18103_with_ann!CA65","v":24},{"$f":"[1]ACS_16_5YR_B18103_with_ann!CB65","v":96},{"$f":"[1]ACS_16_5YR_B18103_with_ann!CC65","v":36}]
["06000US3300585540","0600000US3300500820","060",{"$f":"[1]ACS_16_5YR_B18103_with_ann!C66","v":"Winchester"},{"$f":"[1]ACS_16_5YR_B18103_with_ann!D66","v":4094},{"$f":"[1]ACS_16_5YR_B18103_with_ann!E66","v":24},{"$f":"[1]ACS_16_5YR_B18103_with_ann!F66","v":1968},{"$f":"[1]ACS_16_5YR_B18103_with_ann!G66","v":182},{"$f":"[1]ACS_16_5YR_B18103_with_ann!H66","v":102},{"$f":"[1]ACS_16_5YR_B18103_with_ann!I66","v":62},{"$f":"[1]ACS_16_5YR_B18103_with_ann!J66","v":0},{"$f":"[1]ACS_16_5YR_B18103_with_ann!K66","v":12},{"$f":"[1]ACS_16_5YR_B18103_with_ann!L66","v":102},{"$f":"[1]ACS_16_5YR_B18103_with_ann!M66","v":62},{"$f":"[1]ACS_16_5YR_B18103_with_ann!N66","v":311},{"$f":"[1]ACS_16_5YR_B18103_with_ann!O66","v":122},{"$f":"[1]ACS_16_5YR_B18103_with_ann!P66","v":0},{"$f":"[1]ACS_16_5YR_B18103_with_ann!Q66","v":12},{"$f":"[1]ACS_16_5YR_B18103_with_ann!R66","v":311},{"$f":"[1]ACS_16_5YR_B18103_with_ann!S66","v":122},{"$f":"[1]ACS_16_5YR_B18103_with_ann!T66","v":388},{"$f":"[1]ACS_16_5YR_B18103_with_ann!U66","v":118},{"$f":"[1]ACS_16_5YR_B18103_with_ann!V66","v":0},{"$f":"[1]ACS_16_5YR_B18103_with_ann!W66","v":12},{"$f":"[1]ACS_16_5YR_B18103_with_ann!X66","v":388},{"$f":"[1]ACS_16_5YR_B18103_with_ann!Y66","v":118},{"$f":"[1]ACS_16_5YR_B18103_with_ann!Z66","v":910},{"$f":"[1]ACS_16_5YR_B18103_with_ann!AA66","v":152},{"$f":"[1]ACS_16_5YR_B18103_with_ann!AB66","v":31},{"$f":"[1]ACS_16_5YR_B18103_with_ann!AC66","v":35},{"$f":"[1]ACS_16_5YR_B18103_with_ann!AD66","v":879},{"$f":"[1]ACS_16_5YR_B18103_with_ann!AE66","v":150},{"$f":"[1]ACS_16_5YR_B18103_with_ann!AF66","v":193},{"$f":"[1]ACS_16_5YR_B18103_with_ann!AG66","v":70},{"$f":"[1]ACS_16_5YR_B18103_with_ann!AH66","v":17},{"$f":"[1]ACS_16_5YR_B18103_with_ann!AI66","v":21},{"$f":"[1]ACS_16_5YR_B18103_with_ann!AJ66","v":176},{"$f":"[1]ACS_16_5YR_B18103_with_ann!AK66","v":65},{"$f":"[1]ACS_16_5YR_B18103_with_ann!AL66","v":64},{"$f":"[1]ACS_16_5YR_B18103_with_ann!AM66","v":35},{"$f":"[1]ACS_16_5YR_B18103_with_ann!AN66","v":8},{"$f":"[1]ACS_16_5YR_B18103_with_ann!AO66","v":11},{"$f":"[1]ACS_16_5YR_B18103_with_ann!AP66","v":56},{"$f":"[1]ACS_16_5YR_B18103_with_ann!AQ66","v":37},{"$f":"[1]ACS_16_5YR_B18103_with_ann!AR66","v":2126},{"$f":"[1]ACS_16_5YR_B18103_with_ann!AS66","v":181},{"$f":"[1]ACS_16_5YR_B18103_with_ann!AT66","v":237},{"$f":"[1]ACS_16_5YR_B18103_with_ann!AU66","v":122},{"$f":"[1]ACS_16_5YR_B18103_with_ann!AV66","v":0},{"$f":"[1]ACS_16_5YR_B18103_with_ann!AW66","v":12},{"$f":"[1]ACS_16_5YR_B18103_with_ann!AX66","v":237},{"$f":"[1]ACS_16_5YR_B18103_with_ann!AY66","v":122},{"$f":"[1]ACS_16_5YR_B18103_with_ann!AZ66","v":289},{"$f":"[1]ACS_16_5YR_B18103_with_ann!BA66","v":127},{"$f":"[1]ACS_16_5YR_B18103_with_ann!BB66","v":0},{"$f":"[1]ACS_16_5YR_B18103_with_ann!BC66","v":12},{"$f":"[1]ACS_16_5YR_B18103_with_ann!BD66","v":289},{"$f":"[1]ACS_16_5YR_B18103_with_ann!BE66","v":127},{"$f":"[1]ACS_16_5YR_B18103_with_ann!BF66","v":492},{"$f":"[1]ACS_16_5YR_B18103_with_ann!BG66","v":192},{"$f":"[1]ACS_16_5YR_B18103_with_ann!BH66","v":0},{"$f":"[1]ACS_16_5YR_B18103_with_ann!BI66","v":12},{"$f":"[1]ACS_16_5YR_B18103_with_ann!BJ66","v":492},{"$f":"[1]ACS_16_5YR_B18103_with_ann!BK66","v":192},{"$f":"[1]ACS_16_5YR_B18103_with_ann!BL66","v":753},{"$f":"[1]ACS_16_5YR_B18103_with_ann!BM66","v":132},{"$f":"[1]ACS_16_5YR_B18103_with_ann!BN66","v":34},{"$f":"[1]ACS_16_5YR_B18103_with_ann!BO66","v":33},{"$f":"[1]ACS_16_5YR_B18103_with_ann!BP66","v":719},{"$f":"[1]ACS_16_5YR_B18103_with_ann!BQ66","v":132},{"$f":"[1]ACS_16_5YR_B18103_with_ann!BR66","v":204},{"$f":"[1]ACS_16_5YR_B18103_with_ann!BS66","v":79},{"$f":"[1]ACS_16_5YR_B18103_with_ann!BT66","v":0},{"$f":"[1]ACS_16_5YR_B18103_with_ann!BU66","v":12},{"$f":"[1]ACS_16_5YR_B18103_with_ann!BV66","v":204},{"$f":"[1]ACS_16_5YR_B18103_with_ann!BW66","v":79},{"$f":"[1]ACS_16_5YR_B18103_with_ann!BX66","v":151},{"$f":"[1]ACS_16_5YR_B18103_with_ann!BY66","v":66},{"$f":"[1]ACS_16_5YR_B18103_with_ann!BZ66","v":27},{"$f":"[1]ACS_16_5YR_B18103_with_ann!CA66","v":37},{"$f":"[1]ACS_16_5YR_B18103_with_ann!CB66","v":124},{"$f":"[1]ACS_16_5YR_B18103_with_ann!CC66","v":54}]
[]
[]
[]
[null,null,null,null,{"$f":"$D$3","v":"Alstead"},null,{"$f":"$D$4","v":"Chesterfield"},null,{"$f":"$D$5","v":"Dublin"},null,{"$f":"$D$6","v":"Fitzwilliam"},null,{"$f":"$D$7","v":"Gilsum"},null,{"$f":"$D$8","v":"Harrisville"},null,{"$f":"$D$9","v":"Hinsdale"},null,{"$f":"$D$10","v":"Jaffrey"},null,{"$f":"$D$11","v":"Keene"},null,{"$f":"$D$12","v":"Marlborough"},null,{"$f":"$D$13","v":"Marlow"},null,{"$f":"$D$14","v":"Nelson"},null,{"$f":"$D$15","v":"Richmond"},null,{"$f":"$D$16","v":"Rindge"},null,{"$f":"$D$17","v":"Roxbury"},null,{"$f":"$D$18","v":"Stoddard"},null,{"$f":"$D$19","v":"Sullivan"},null,{"$f":"$D$20","v":"Surry"},null,{"$f":"$D$21","v":"Swanzey"},null,{"$f":"$D$22","v":"Troy"},null,{"$f":"$D$23","v":"Walpole"},null,{"$f":"$D$24","v":"Westmoreland"},null,{"$f":"$D$25","v":"Winchester"}]
[null,null,null,null,"Estimate","Margin of Error","Estimate","Margin of Error","Estimate","Margin of Error","Estimate","Margin of Error","Estimate","Margin of Error","Estimate","Margin of Error","Estimate","Margin of Error","Estimate","Margin of Error","Estimate","Margin of Error","Estimate","Margin of Error","Estimate","Margin of Error","Estimate","Margin of Error","Estimate","Margin of Error","Estimate","Margin of Error","Estimate","Margin of Error","Estimate","Margin of Error","Estimate","Margin of Error","Estimate","Margin of Error","Estimate","Margin of Error","Estimate","Margin of Error","Estimate","Margin of Error","Estimate","Margin of Error","Estimate","Margin of Error"]
[null,null,null,"Estimate!!Total:",1599,169,3577,15,1711,216,2287,368,871,144,977,197,3965,16,5299,31,22429,47,2253,391,803,175,550,106,1104,251,6443,18,295,142,1205,162,681,130,950,245,7306,22,1889,275,3651,33,1971,342,4094,24]
[null,null,null,"Estimate!!Total:!!Male:",770,116,2000,139,800,118,1203,216,452,88,461,95,2090,205,2731,216,10985,396,1005,199,364,80,252,50,595,161,3162,187,135,70,592,98,342,79,388,72,3563,205,950,177,1799,162,857,162,1968,182]
[null,null,null,"Estimate!!Total:!!Male:!!Under 5 years:",12,11,121,74,24,19,33,23,33,23,42,33,26,38,114,89,485,125,76,60,23,26,15,8,38,31,144,96,36,37,29,16,35,30,17,13,125,95,25,22,183,89,33,31,102,62]
[null,null,null,"Estimate!!Total:!!Male:!!Under 5 years:!!With a vision difficulty",0,12,0,12,0,12,0,12,0,12,0,12,0,12,0,17,0,22,0,12,0,12,0,12,0,12,0,17,0,12,0,12,0,12,3,4,0,17,0,12,0,12,0,12,0,12]
[null,null,null,"Estimate!!Total:!!Male:!!Under 5 years:!!No vision difficulty",12,11,121,74,24,19,33,23,33,23,42,33,26,38,114,89,485,125,76,60,23,26,15,8,38,31,144,96,36,37,29,16,35,30,14,12,125,95,25,22,183,89,33,31,102,62]
[null,null,null,"Estimate!!Total:!!Male:!!5 to 17 years:",96,55,452,132,97,40,101,36,52,31,47,26,277,125,566,154,1379,180,129,64,37,23,17,12,82,37,470,153,4,6,104,62,18,12,34,16,425,130,149,79,312,115,51,27,311,122]
[null,null,null,"Estimate!!Total:!!Male:!!5 to 17 years:!!With a vision difficulty",0,12,0,12,0,12,4,5,18,28,0,12,0,12,0,17,0,22,0,12,0,12,0,12,7,10,0,17,0,12,0,12,0,12,0,12,0,17,0,12,5,8,0,12,0,12]
[null,null,null,"Estimate!!Total:!!Male:!!5 to 17 years:!!No vision difficulty",96,55,452,132,97,40,97,35,34,16,47,26,277,125,566,154,1379,180,129,64,37,23,17,12,75,33,470,153,4,6,104,62,18,12,34,16,425,130,149,79,307,115,51,27,311,122]
[null,null,null,"Estimate!!Total:!!Male:!!18 to 34 years:",147,61,366,146,136,55,226,92,119,56,38,20,294,122,408,190,3702,372,175,92,53,32,25,15,110,61,941,135,17,10,81,29,88,36,49,28,528,182,191,77,366,116,117,52,388,118]
[null,null,null,"Estimate!!Total:!!Male:!!18 to 34 years:!!With a vision difficulty",19,26,0,12,0,12,4,6,2,3,0,12,0,12,0,17,39,45,0,12,0,12,0,12,0,12,0,17,8,11,2,4,0,12,2,3,0,17,0,12,7,12,3,6,0,12]
[null,null,null,"Estimate!!Total:!!Male:!!18 to 34 years:!!No vision difficulty",128,58,366,146,136,55,222,92,117,56,38,20,294,122,408,190,3663,378,175,92,53,32,25,15,110,61,941,135,9,6,79,29,88,36,47,28,528,182,191,77,359,116,114,51,388,118]
[null,null,null,"Estimate!!Total:!!Male:!!35 to 64 years:",357,76,537,175,338,83,605,177,158,38,190,52,878,165,1310,200,3790,283,440,108,153,41,116,30,192,53,983,154,65,37,279,49,134,28,164,44,1568,216,419,95,571,100,395,97,910,152]
[null,null,null,"Estimate!!Total:!!Male:!!35 to 64 years:!!With a vision difficulty",5,7,0,12,10,13,0,12,0,12,0,12,16,21,0,17,86,73,0,12,0,12,0,12,0,12,0,17,3,3,0,12,2,3,0,12,84,119,0,12,0,12,3,5,31,35]
[null,null,null,"Estimate!!Total:!!Male:!!35 to 64 years:!!No vision difficulty",352,77,537,175,328,78,605,177,158,38,190,52,862,166,1310,200,3704,282,440,108,153,41,116,30,192,53,983,154,62,35,279,49,132,29,164,44,1484,214,419,95,571,100,392,98,879,150]
[null,null,null,"Estimate!!Total:!!Male:!!65 to 74 years:",106,42,367,125,153,64,195,55,76,29,91,28,433,236,159,87,899,135,83,37,75,38,59,21,145,100,428,106,10,6,68,17,40,17,80,34,533,186,121,49,271,74,156,50,193,70]
[null,null,null,"Estimate!!Total:!!Male:!!65 to 74 years:!!With a vision difficulty",0,12,44,63,0,12,7,8,0,12,0,12,131,167,15,25,14,23,0,12,21,28,0,12,2,4,0,17,0,12,0,12,0,12,0,12,24,30,19,23,0,12,0,12,17,21]
[null,null,null,"Estimate!!Total:!!Male:!!65 to 74 years:!!No vision difficulty",106,42,323,119,153,64,188,55,76,29,91,28,302,122,144,84,885,136,83,37,54,26,59,21,143,100,428,106,10,6,68,17,40,17,80,34,509,181,102,41,271,74,156,50,176,65]
[null,null,null,"Estimate!!Total:!!Male:!!75 years and over:",52,33,157,80,52,26,43,19,14,10,53,20,182,113,174,110,730,148,102,43,23,13,20,10,28,16,196,97,3,3,31,15,27,14,44,21,384,157,45,29,96,46,105,66,64,35]
[null,null,null,"Estimate!!Total:!!Male:!!75 years and over:!!With a vision difficulty",0,12,17,27,0,12,0,12,0,12,0,12,0,12,0,17,105,77,0,12,0,12,0,12,8,11,0,17,0,12,0,12,0,12,8,12,26,39,0,12,0,12,4,7,8,11]
[null,null,null,"Estimate!!Total:!!Male:!!75 years and over:!!No vision difficulty",52,33,140,77,52,26,43,19,14,10,53,20,182,113,174,110,625,143,102,43,23,13,20,10,20,11,196,97,3,3,31,15,27,14,36,17,358,130,45,29,96,46,101,61,56,37]
[null,null,null,"Estimate!!Total:!!Female:",829,95,1577,140,911,135,1084,188,419,74,516,110,1875,204,2568,218,11444,392,1248,240,439,110,298,67,509,121,3281,187,160,78,613,91,339,65,562,203,3743,209,939,136,1852,161,1114,217,2126,181]
[null,null,null,"Estimate!!Total:!!Female:!!Under 5 years:",20,19,20,30,57,32,45,46,26,17,8,8,58,46,28,48,387,112,140,107,19,19,7,7,10,14,116,74,2,3,29,23,28,18,47,47,110,82,106,55,144,82,47,41,237,122]
[null,null,null,"Estimate!!Total:!!Female:!!Under 5 years:!!With a vision difficulty",0,12,0,12,0,12,0,12,0,12,0,12,0,12,0,17,5,23,0,12,0,12,0,12,0,12,0,17,0,12,0,12,0,12,0,12,0,17,0,12,0,12,0,12,0,12]
[null,null,null,"Estimate!!Total:!!Female:!!Under 5 years:!!No vision difficulty",20,19,20,30,57,32,45,46,26,17,8,8,58,46,28,48,382,112,140,107,19,19,7,7,10,14,116,74,2,3,29,23,28,18,47,47,110,82,106,55,144,82,47,41,237,122]
[null,null,null,"Estimate!!Total:!!Female:!!5 to 17 years:",100,34,144,80,149,44,106,53,38,29,52,39,225,70,617,129,1041,198,198,77,116,56,46,30,58,27,443,150,5,5,89,33,30,15,95,63,602,142,113,46,287,98,180,81,289,127]
[null,null,null,"Estimate!!Total:!!Female:!!5 to 17 years:!!With a vision difficulty",0,12,0,12,0,12,14,21,0,12,0,12,0,12,0,17,0,22,0,12,6,10,0,12,0,12,0,17,0,12,0,12,0,12,0,12,0,17,0,12,0,12,0,12,0,12]
[null,null,null,"Estimate!!Total:!!Female:!!5 to 17 years:!!No vision difficulty",100,34,144,80,149,44,92,39,38,29,52,39,225,70,617,129,1041,198,198,77,110,54,46,30,58,27,443,150,5,5,89,33,30,15,95,63,602,142,113,46,287,98,180,81,289,127]
[null,null,null,"Estimate!!Total:!!Female:!!18 to 34 years:",117,55,323,125,63,26,151,78,95,35,89,40,306,147,307,170,3991,285,117,53,72,40,27,18,69,47,1002,156,67,57,102,41,74,37,122,78,424,133,205,65,318,144,119,67,492,192]
[null,null,null,"Estimate!!Total:!!Female:!!18 to 34 years:!!With a vision difficulty",0,12,0,12,0,12,4,6,0,12,0,12,0,12,0,17,33,37,0,12,0,12,0,12,0,12,26,44,0,12,0,12,0,12,0,12,2,21,0,12,0,12,0,12,0,12]
[null,null,null,"Estimate!!Total:!!Female:!!18 to 34 years:!!No vision difficulty",117,55,323,125,63,26,147,77,95,35,89,40,306,147,307,170,3958,288,117,53,72,40,27,18,69,47,976,149,67,57,102,41,74,37,122,78,422,133,205,65,318,144,119,67,492,192]
[null,null,null,"Estimate!!Total:!!Female:!!35 to 64 years:",329,67,729,167,404,97,484,84,170,44,220,61,843,127,1144,160,3688,301,586,139,132,39,140,38,226,60,1067,134,66,30,257,49,145,28,179,54,1648,206,352,89,699,118,430,101,753,132]
[null,null,null,"Estimate!!Total:!!Female:!!35 to 64 years:!!With a vision difficulty",0,12,11,19,0,12,0,12,0,12,1,3,0,12,101,80,80,72,24,37,0,12,3,4,16,15,40,45,0,12,0,12,0,12,0,12,34,53,0,12,12,20,3,5,34,33]
[null,null,null,"Estimate!!Total:!!Female:!!35 to 64 years:!!No vision difficulty",329,67,718,166,404,97,484,84,170,44,219,60,843,127,1043,152,3608,295,562,130,132,39,137,38,210,58,1027,127,66,30,257,49,145,28,179,54,1614,213,352,89,687,115,427,102,719,132]
[null,null,null,"Estimate!!Total:!!Female:!!65 to 74 years:",173,71,244,110,162,54,251,106,58,25,107,30,214,97,276,101,1300,181,120,51,67,38,48,17,69,30,431,102,13,5,86,25,40,14,72,25,587,143,101,32,182,50,215,110,204,79]
[null,null,null,"Estimate!!Total:!!Female:!!65 to 74 years:!!With a vision difficulty",0,12,0,12,0,12,4,6,0,12,0,12,17,16,12,21,78,58,0,12,2,5,0,12,2,4,21,25,0,12,0,12,5,8,0,12,11,17,0,12,0,12,0,12,0,12]
[null,null,null,"Estimate!!Total:!!Female:!!65 to 74 years:!!No vision difficulty",173,71,244,110,162,54,247,105,58,25,107,30,197,98,264,100,1222,186,120,51,65,38,48,17,67,30,410,106,13,5,86,25,35,13,72,25,576,143,101,32,182,50,215,110,204,79]
[null,null,null,"Estimate!!Total:!!Female:!!75 years and over:",90,47,117,76,76,51,47,27,32,14,40,22,229,155,196,97,1037,197,87,42,33,18,30,21,77,40,222,107,7,7,50,22,22,13,47,20,372,116,62,38,222,100,123,45,151,66]
[null,null,null,"Estimate!!Total:!!Female:!!75 years and over:!!With a vision difficulty",6,7,0,12,2,3,4,7,3,5,0,12,45,51,0,17,65,62,0,12,0,12,4,7,27,33,17,30,0,12,5,8,4,5,6,6,82,89,11,17,18,20,27,24,27,37]
[null,null,null,"Estimate!!Total:!!Female:!!75 years and over:!!No vision difficulty",84,46,117,76,74,51,43,26,29,13,40,22,184,156,196,97,972,204,87,42,33,18,26,17,50,26,205,99,7,7,45,20,18,12,41,20,290,113,51,33,204,102,96,36,124,54]

{"sheet":"ACS_Table_B18103","index":44,"n_rows":156,"n_cols":48,"rows_kept":156,"cut":false,"hidden":true,"merged":[]}
["B18103. SEX BY AGE BY VISION DIFFICULTY\n\n\n"]
["Universe:  Civilian noninstitutionalized population"]
["Data Set: 2018-2022 American Community Survey 5-Year Estimates"]
[]
[null,null,"Alstead",null,"Chesterfield",null,"Dublin",null,"Fitzwilliam",null,"Gilsum",null,"Harrisville",null,"Hinsdale",null,"Jaffrey",null,"Keene",null,"Marlborough",null,"Marlow",null,"Nelson",null,"Richmond",null,"Rindge",null,"Roxbury",null,"Stoddard",null,"Sullivan",null,"Surry",null,"Swanzey",null,"Troy",null,"Walpole",null,"Westmoreland",null,"Winchester"]
[null," ","Estimate","Margin of Error","Estimate","Margin of Error","Estimate","Margin of Error","Estimate","Margin of Error","Estimate","Margin of Error","Estimate","Margin of Error","Estimate","Margin of Error","Estimate","Margin of Error","Estimate","Margin of Error","Estimate","Margin of Error","Estimate","Margin of Error","Estimate","Margin of Error","Estimate","Margin of Error","Estimate","Margin of Error","Estimate","Margin of Error","Estimate","Margin of Error","Estimate","Margin of Error","Estimate","Margin of Error","Estimate","Margin of Error","Estimate","Margin of Error","Estimate","Margin of Error","Estimate","Margin of Error","Estimate","Margin of Error"]
[null,"Total:",1599,169,3577,15,1711,216,2287,368,871,144,977,197,3965,16,5299,31,22429,47,2253,391,803,175,550,106,1104,251,6443,18,295,142,1205,162,681,130,950,245,7306,22,1889,275,3651,33,1971,342,4094,24]
[null,"Male:",770,116,2000,139,800,118,1203,216,452,88,461,95,2090,205,2731,216,10985,396,1005,199,364,80,252,50,595,161,3162,187,135,70,592,98,342,79,388,72,3563,205,950,177,1799,162,857,162,1968,182]
[null,"Under 5 years:",12,11,121,74,24,19,33,23,33,23,42,33,26,38,114,89,485,125,76,60,23,26,15,8,38,31,144,96,36,37,29,16,35,30,17,13,125,95,25,22,183,89,33,31,102,62]
[null,"With vision difficulty",0,12,0,12,0,12,0,12,0,12,0,12,0,12,0,17,0,22,0,12,0,12,0,12,0,12,0,17,0,12,0,12,0,12,3,4,0,17,0,12,0,12,0,12,0,12]
[null,"With no vision difficulty",12,11,121,74,24,19,33,23,33,23,42,33,26,38,114,89,485,125,76,60,23,26,15,8,38,31,144,96,36,37,29,16,35,30,14,12,125,95,25,22,183,89,33,31,102,62]
[null,"5 to 17  years:",96,55,452,132,97,40,101,36,52,31,47,26,277,125,566,154,1379,180,129,64,37,23,17,12,82,37,470,153,4,6,104,62,18,12,34,16,425,130,149,79,312,115,51,27,311,122]
[null,"With vision difficulty",0,12,0,12,0,12,4,5,18,28,0,12,0,12,0,17,0,22,0,12,0,12,0,12,7,10,0,17,0,12,0,12,0,12,0,12,0,17,0,12,5,8,0,12,0,12]
[null,"With no vision difficulty",96,55,452,132,97,40,97,35,34,16,47,26,277,125,566,154,1379,180,129,64,37,23,17,12,75,33,470,153,4,6,104,62,18,12,34,16,425,130,149,79,307,115,51,27,311,122]
[null,"18 to 34  years:",147,61,366,146,136,55,226,92,119,56,38,20,294,122,408,190,3702,372,175,92,53,32,25,15,110,61,941,135,17,10,81,29,88,36,49,28,528,182,191,77,366,116,117,52,388,118]
[null,"With vision difficulty",19,26,0,12,0,12,4,6,2,3,0,12,0,12,0,17,39,45,0,12,0,12,0,12,0,12,0,17,8,11,2,4,0,12,2,3,0,17,0,12,7,12,3,6,0,12]
[null,"With no vision difficulty",128,58,366,146,136,55,222,92,117,56,38,20,294,122,408,190,3663,378,175,92,53,32,25,15,110,61,941,135,9,6,79,29,88,36,47,28,528,182,191,77,359,116,114,51,388,118]
[null,"35 to 64  years:",357,76,537,175,338,83,605,177,158,38,190,52,878,165,1310,200,3790,283,440,108,153,41,116,30,192,53,983,154,65,37,279,49,134,28,164,44,1568,216,419,95,571,100,395,97,910,152]
[null,"With vision difficulty",5,7,0,12,10,13,0,12,0,12,0,12,16,21,0,17,86,73,0,12,0,12,0,12,0,12,0,17,3,3,0,12,2,3,0,12,84,119,0,12,0,12,3,5,31,35]
[null,"With no vision difficulty",352,77,537,175,328,78,605,177,158,38,190,52,862,166,1310,200,3704,282,440,108,153,41,116,30,192,53,983,154,62,35,279,49,132,29,164,44,1484,214,419,95,571,100,392,98,879,150]
[null,"65 to 74  years:",106,42,367,125,153,64,195,55,76,29,91,28,433,236,159,87,899,135,83,37,75,38,59,21,145,100,428,106,10,6,68,17,40,17,80,34,533,186,121,49,271,74,156,50,193,70]
[null,"With vision difficulty",0,12,44,63,0,12,7,8,0,12,0,12,131,167,15,25,14,23,0,12,21,28,0,12,2,4,0,17,0,12,0,12,0,12,0,12,24,30,19,23,0,12,0,12,17,21]
[null,"With no vision difficulty",106,42,323,119,153,64,188,55,76,29,91,28,302,122,144,84,885,136,83,37,54,26,59,21,143,100,428,106,10,6,68,17,40,17,80,34,509,181,102,41,271,74,156,50,176,65]
[null,"75  years and Older:",52,33,157,80,52,26,43,19,14,10,53,20,182,113,174,110,730,148,102,43,23,13,20,10,28,16,196,97,3,3,31,15,27,14,44,21,384,157,45,29,96,46,105,66,64,35]
[null,"With vision difficulty",0,12,17,27,0,12,0,12,0,12,0,12,0,12,0,17,105,77,0,12,0,12,0,12,8,11,0,17,0,12,0,12,0,12,8,12,26,39,0,12,0,12,4,7,8,11]
[null,"With no vision difficulty",52,33,140,77,52,26,43,19,14,10,53,20,182,113,174,110,625,143,102,43,23,13,20,10,20,11,196,97,3,3,31,15,27,14,36,17,358,130,45,29,96,46,101,61,56,37]
[null,"Female:",829,95,1577,140,911,135,1084,188,419,74,516,110,1875,204,2568,218,11444,392,1248,240,439,110,298,67,509,121,3281,187,160,78,613,91,339,65,562,203,3743,209,939,136,1852,161,1114,217,2126,181]
[null,"Under 5 years:",20,19,20,30,57,32,45,46,26,17,8,8,58,46,28,48,387,112,140,107,19,19,7,7,10,14,116,74,2,3,29,23,28,18,47,47,110,82,106,55,144,82,47,41,237,122]
[null,"With vision difficulty",0,12,0,12,0,12,0,12,0,12,0,12,0,12,0,17,5,23,0,12,0,12,0,12,0,12,0,17,0,12,0,12,0,12,0,12,0,17,0,12,0,12,0,12,0,12]
[null,"With no vision difficulty",20,19,20,30,57,32,45,46,26,17,8,8,58,46,28,48,382,112,140,107,19,19,7,7,10,14,116,74,2,3,29,23,28,18,47,47,110,82,106,55,144,82,47,41,237,122]
[null,"5 to 17  years:",100,34,144,80,149,44,106,53,38,29,52,39,225,70,617,129,1041,198,198,77,116,56,46,30,58,27,443,150,5,5,89,33,30,15,95,63,602,142,113,46,287,98,180,81,289,127]
[null,"With vision difficulty",0,12,0,12,0,12,14,21,0,12,0,12,0,12,0,17,0,22,0,12,6,10,0,12,0,12,0,17,0,12,0,12,0,12,0,12,0,17,0,12,0,12,0,12,0,12]
[null,"With no vision difficulty",100,34,144,80,149,44,92,39,38,29,52,39,225,70,617,129,1041,198,198,77,110,54,46,30,58,27,443,150,5,5,89,33,30,15,95,63,602,142,113,46,287,98,180,81,289,127]
[null,"18 to 34  years:",117,55,323,125,63,26,151,78,95,35,89,40,306,147,307,170,3991,285,117,53,72,40,27,18,69,47,1002,156,67,57,102,41,74,37,122,78,424,133,205,65,318,144,119,67,492,192]
[null,"With vision difficulty",0,12,0,12,0,12,4,6,0,12,0,12,0,12,0,17,33,37,0,12,0,12,0,12,0,12,26,44,0,12,0,12,0,12,0,12,2,21,0,12,0,12,0,12,0,12]
[null,"With no vision difficulty",117,55,323,125,63,26,147,77,95,35,89,40,306,147,307,170,3958,288,117,53,72,40,27,18,69,47,976,149,67,57,102,41,74,37,122,78,422,133,205,65,318,144,119,67,492,192]
[null,"35 to 64  years:",329,67,729,167,404,97,484,84,170,44,220,61,843,127,1144,160,3688,301,586,139,132,39,140,38,226,60,1067,134,66,30,257,49,145,28,179,54,1648,206,352,89,699,118,430,101,753,132]
[null,"With vision difficulty",0,12,11,19,0,12,0,12,0,12,1,3,0,12,101,80,80,72,24,37,0,12,3,4,16,15,40,45,0,12,0,12,0,12,0,12,34,53,0,12,12,20,3,5,34,33]
[null,"With no vision difficulty",329,67,718,166,404,97,484,84,170,44,219,60,843,127,1043,152,3608,295,562,130,132,39,137,38,210,58,1027,127,66,30,257,49,145,28,179,54,1614,213,352,89,687,115,427,102,719,132]
[null,"65 to 74  years:",173,71,244,110,162,54,251,106,58,25,107,30,214,97,276,101,1300,181,120,51,67,38,48,17,69,30,431,102,13,5,86,25,40,14,72,25,587,143,101,32,182,50,215,110,204,79]
[null,"With vision difficulty",0,12,0,12,0,12,4,6,0,12,0,12,17,16,12,21,78,58,0,12,2,5,0,12,2,4,21,25,0,12,0,12,5,8,0,12,11,17,0,12,0,12,0,12,0,12]
[null,"With no vision difficulty",173,71,244,110,162,54,247,105,58,25,107,30,197,98,264,100,1222,186,120,51,65,38,48,17,67,30,410,106,13,5,86,25,35,13,72,25,576,143,101,32,182,50,215,110,204,79]
[null,"75  years and Older:",90,47,117,76,76,51,47,27,32,14,40,22,229,155,196,97,1037,197,87,42,33,18,30,21,77,40,222,107,7,7,50,22,22,13,47,20,372,116,62,38,222,100,123,45,151,66]
[null,"With vision difficulty",6,7,0,12,2,3,4,7,3,5,0,12,45,51,0,17,65,62,0,12,0,12,4,7,27,33,17,30,0,12,5,8,4,5,6,6,82,89,11,17,18,20,27,24,27,37]
[null,"With no vision difficulty",84,46,117,76,74,51,43,26,29,13,40,22,184,156,196,97,972,204,87,42,33,18,26,17,50,26,205,99,7,7,45,20,18,12,41,20,290,113,51,33,204,102,96,36,124,54]
[]
[]
[{"$f":"A1& \"-Calculated\"","v":"B18103. SEX BY AGE BY VISION DIFFICULTY\n\n\n-Calculated"}]
[{"$f":"A2","v":"Universe:  Civilian noninstitutionalized population"}]
[{"$f":"A3","v":"Data Set: 2018-2022 American Community Survey 5-Year Estimates"}]
[]
[]
[null,null,"Alstead",null,"Chesterfield",null,"Dublin",null,"Fitzwilliam",null,"Gilsum",null,"Harrisville",null,"Hinsdale",null,"Jaffrey",null,"Keene",null,"Marlborough",null,"Marlow",null,"Nelson",null,"Richmond",null,"Rindge",null,"Roxbury",null,"Stoddard",null,"Sullivan",null,"Surry",null,"Swanzey",null,"Troy",null,"Walpole",null,"Westmoreland",null,"Winchester"]
[null," ","Estimate","Margin of Error","Estimate","Margin of Error","Estimate","Margin of Error","Estimate","Margin of Error","Estimate","Margin of Error","Estimate","Margin of Error","Estimate","Margin of Error","Estimate","Margin of Error","Estimate","Margin of Error","Estimate","Margin of Error","Estimate","Margin of Error","Estimate","Margin of Error","Estimate","Margin of Error","Estimate","Margin of Error","Estimate","Margin of Error","Estimate","Margin of Error","Estimate","Margin of Error","Estimate","Margin of Error","Estimate","Margin of Error","Estimate","Margin of Error","Estimate","Margin of Error","Estimate","Margin of Error","Estimate","Margin of Error"]
[null,"Total",{"$f":"C7","v":1599},169,3577,15,1711,216,2287,368,871,144,977,197,3965,16,5299,31,22429,47,2253,391,803,175,{"$f":"Y7","v":550},106,1104,251,6443,18,295,142,1205,162,681,130,950,245,7306,22,1889,275,3651,33,1971,342,4094,24]
[null,"Under 5 years:",{"$f":"C28+C9","v":32},{"$f":"SQRT((D28^2)+(D9^2))","v":21.95449840010015},{"$f":"E28+E9","v":141},{"$f":"SQRT((F28^2)+(F9^2))","v":79.849859110708522},{"$f":"G28+G9","v":81},{"$f":"SQRT((H28^2)+(H9^2))","v":37.215588131856791},{"$f":"I28+I9","v":78},{"$f":"SQRT((J28^2)+(J9^2))","v":51.429563482495162},{"$f":"K28+K9","v":59},{"$f":"SQRT((L28^2)+(L9^2))","v":28.600699292150182},{"$f":"M28+M9","v":50},{"$f":"SQRT((N28^2)+(N9^2))","v":33.955853692699293},{"$f":"O28+O9","v":84},{"$f":"SQRT((P28^2)+(P9^2))","v":59.665735560705194},{"$f":"Q28+Q9","v":142},{"$f":"SQRT((R28^2)+(R9^2))","v":101.11874208078342},{"$f":"S28+S9","v":872},{"$f":"SQRT((T28^2)+(T9^2))","v":167.83622970026465},{"$f":"U28+U9","v":216},{"$f":"SQRT((V28^2)+(V9^2))","v":122.67436570041843},{"$f":"W28+W9","v":42},{"$f":"SQRT((X28^2)+(X9^2))","v":32.202484376209235},{"$f":"Y28+Y9","v":22},{"$f":"SQRT((Z28^2)+(Z9^2))","v":10.63014581273465},{"$f":"AA28+AA9","v":48},{"$f":"SQRT((AB28^2)+(AB9^2))","v":34.014702703389901},{"$f":"AC28+AC9","v":260},{"$f":"SQRT((AD28^2)+(AD9^2))","v":121.21056059601408},{"$f":"AE28+AE9","v":38},{"$f":"SQRT((AF28^2)+(AF9^2))","v":37.12142238654117},{"$f":"AG28+AG9","v":58},{"$f":"SQRT((AH28^2)+(AH9^2))","v":28.0178514522438},{"$f":"AI28+AI9","v":63},{"$f":"SQRT((AJ28^2)+(AJ9^2))","v":34.985711369071801},{"$f":"AK28+AK9","v":64},{"$f":"SQRT((AL28^2)+(AL9^2))","v":48.764741360946438},{"$f":"AM28+AM9","v":235},{"$f":"SQRT((AN28^2)+(AN9^2))","v":125.49501982150527},{"$f":"AO28+AO9","v":131},59.236812878479547,{"$f":"AQ28+AQ9","v":327},121.01652779682617,{"$f":"AS28+AS9","v":80},51.400389103585589,{"$f":"AU28+AU9","v":339},136.85028315644803]
[null,"With vision difficulty",0,16.970562748477139,0,16.970562748477139,0,16.970562748477139,0,16.970562748477139,0,16.970562748477139,0,16.970562748477139,0,16.970562748477139,0,24.041630560342615,5,31.827660925679098,0,16.970562748477139,0,16.970562748477139,0,16.970562748477139,0,16.970562748477139,0,24.041630560342615,0,16.970562748477139,0,16.970562748477139,0,16.970562748477139,3,12.649110640673518,0,24.041630560342615,0,16.970562748477139,0,16.970562748477139,0,16.970562748477139,0,16.970562748477139]
[null,"With no vision difficulty",32,21.95449840010015,141,79.849859110708522,81,37.215588131856791,78,51.429563482495162,59,28.600699292150182,50,33.955853692699293,84,59.665735560705194,142,101.11874208078342,867,167.83622970026465,216,122.67436570041843,42,32.202484376209235,22,10.63014581273465,48,34.014702703389901,260,121.21056059601408,38,37.12142238654117,58,28.0178514522438,63,34.985711369071801,61,48.507731342539614,235,125.49501982150527,131,59.236812878479547,327,121.01652779682617,80,51.400389103585589,339,136.85028315644803]
[null,"5 to 17 years:",196,64.660652641308843,596,154.35025105259791,246,59.464274989274024,207,64.070273918565391,90,42.449970553582247,99,46.872166581031863,502,143.26548781894402,1183,200.89051744669283,2420,267.58923745173308,327,100.12492197250393,153,60.539243470661241,63,32.310988842807021,140,45.803929962395145,913,214.26385602802915,9,7.810249675906654,193,70.235318750611498,48,19.209372712298546,129,65,1027,192.52012881774206,262,91.4166286842826,599,151.09268678529745,231,85.381496824546247,600,176.10508226624239]
[null,"With vision difficulty",0,16.970562748477139,0,16.970562748477139,0,16.970562748477139,18,21.587033144922902,18,30.463092423455635,0,16.970562748477139,0,16.970562748477139,0,24.041630560342615,0,31.11269837220809,0,16.970562748477139,6,15.620499351813308,0,16.970562748477139,7,15.620499351813308,0,24.041630560342615,0,16.970562748477139,0,16.970562748477139,0,16.970562748477139,0,16.970562748477139,0,24.041630560342615,0,16.970562748477139,5,14.422205101855956,0,16.970562748477139,0,16.970562748477139]
[null,"With no vision difficulty",196,64.660652641308843,596,154.35025105259791,246,59.464274989274024,189,52.40229002629561,72,33.120990323358392,99,46.872166581031863,502,143.26548781894402,1183,200.89051744669283,2420,267.58923745173308,327,100.12492197250393,147,58.694122363316758,63,32.310988842807021,133,42.638011210655684,913,214.26385602802915,9,7.810249675906654,193,70.235318750611498,48,19.209372712298546,129,65,1027,192.52012881774206,262,91.4166286842826,594,151.09268678529745,231,85.381496824546247,600,176.10508226624239]
[null,"18 to 34 years:",264,82.134036793524274,689,192.20041623263984,199,60.835844697020519,377,120.61509026651682,214,66.037867924396224,127,44.721359549995796,600,191.03141102970474,715,254.95097567963924,7693,468.62458322200723,292,106.17438485811914,125,51.224993899462788,52,23.430749027719962,179,77.006493232713822,1943,206.30317496345035,84,57.870545184921149,183,50.219518117958877,162,51.623637996561229,171,82.87339742040264,952,225.41739063346466,396,100.7670581092849,684,184.91078930121952,236,84.811555816409836,880,225.36193112413639]
[null,"With vision difficulty",19,28.635642126552707,0,16.970562748477139,0,16.970562748477139,8,8.4852813742385695,2,12.369316876852981,0,16.970562748477139,0,16.970562748477139,0,24.041630560342615,72,58.258046654518033,0,16.970562748477139,0,16.970562748477139,0,16.970562748477139,0,16.970562748477139,26,47.169905660283021,8,16.278820596099706,2,12.649110640673518,0,16.970562748477139,2,12.369316876852981,2,27.018512172212592,0,16.970562748477139,7,16.970562748477139,3,13.416407864998739,0,16.970562748477139]
[null,"With no vision difficulty",245,79.93122043357026,689,192.20041623263984,199,60.835844697020519,369,119.97082978791136,212,66.037867924396224,127,44.721359549995796,600,191.03141102970474,715,254.95097567963924,7621,475.21363616798709,292,106.17438485811914,125,51.224993899462788,52,23.430749027719962,179,77.006493232713822,1917,201.06217943710845,76,57.314919523628397,181,50.219518117958877,162,51.623637996561229,169,82.87339742040264,950,225.41739063346466,396,100.7670581092849,677,184.91078930121952,233,84.202137740083529,880,225.36193112413639]
[null,"35 to 64 years:",686,101.31633629380802,1266,241.89667215569543,742,127.66362050325849,1089,195.92090240706835,328,58.137767414994535,410,80.156097709406993,1721,208.21623375712088,2454,256.12496949731394,7478,413.14646313383827,1026,176.02556632489498,285,56.586217403180434,256,48.414873747640819,418,80.05623023850174,2050,204.13720875920686,131,47.634021455258214,536,69.296464556281663,279,39.597979746446661,343,69.656299069071991,3216,298.48283032697208,771,130.17680284904833,1270,154.67385040788247,825,140.03570973148243,1663,201.31567251458591]
[null,"With vision difficulty",5,13.892443989449804,11,22.472205054244231,10,17.691806012954132,0,16.970562748477139,0,16.970562748477139,1,12.369316876852981,16,24.186773244895647,101,81.786306922369349,166,102.53292154230269,24,38.897300677553446,0,16.970562748477139,3,12.649110640673518,16,19.209372712298546,40,48.104053883222775,3,12.369316876852981,0,16.970562748477139,2,12.369316876852981,0,16.970562748477139,118,130.26895255585654,0,16.970562748477139,12,23.323807579381203,6,7.0710678118654755,65,48.104053883222775]
[null,"With no vision difficulty",681,102.06860437960343,1255,241.2073796549351,732,124.47088012864695,1089,195.92090240706835,328,58.137767414994535,409,79.39773296511683,1705,209.0095691589263,2353,251.20509548972132,7312,408.10415337264089,1002,169.00887550658396,285,56.586217403180434,253,48.414873747640819,402,78.568441501661468,2010,199.6121238802894,128,46.097722286464439,536,69.296464556281663,277,40.311288741492746,343,69.656299069071991,3098,301.93542355940946,771,130.17680284904833,1258,152.3975065412817,819,141.44963768069539,1598,199.80990966416056]
[null,"65 to 74 years:",279,82.492423894561369,611,166.50825805346713,315,83.737685661833282,446,119.41942890501528,134,38.288379438153292,198,41.036569057366385,647,255.15681452785068,435,133.30416347586447,2199,225.80079716422614,203,63.007936008093459,142,53.740115370177612,107,27.018512172212592,214,104.4030650891055,859,147.10540438746634,23,7.810249675906654,154,30.232432915661949,80,22.022715545545239,152,42.201895692018383,1120,234.61670869739862,222,58.523499553598128,453,89.308454247064432,371,120.83045973594572,397,105.55093557141026]
[null,"With vision difficulty",0,16.970562748477139,44,64.132674979295857,0,16.970562748477139,11,10,0,16.970562748477139,0,16.970562748477139,148,167.76471619503309,27,32.649655434629018,92,62.393909959225986,0,16.970562748477139,23,28.442925306655784,0,16.970562748477139,4,5.6568542494923806,21,30.232432915661949,0,16.970562748477139,0,16.970562748477139,5,14.422205101855956,0,16.970562748477139,35,34.481879299133332,19,25.942243542145693,0,16.970562748477139,0,16.970562748477139,17,24.186773244895647]
[null,"With no vision difficulty",279,82.492423894561369,567,162.05246064160829,315,83.737685661833282,435,118.53269591129698,134,38.288379438153292,198,41.036569057366385,499,156.48642113614844,408,130.59862173851607,2107,230.41701326073994,203,63.007936008093459,119,46.043457732885351,107,27.018512172212592,210,104.4030650891055,838,149.90663761154806,23,7.810249675906654,154,30.232432915661949,75,21.400934559032695,152,42.201895692018383,1085,230.67292862405853,203,52.009614495783374,453,89.308454247064432,371,120.83045973594572,380,102.30347012687302]
[null,"75 years and over:",142,57.428216061444921,274,110.34491379306978,128,57.245087125446844,90,33.015148038438355,46,17.204650534085253,93,29.732137494637012,411,191.81762171396036,370,146.65946952038249,1767,246.40008116881779,189,60.108235708594876,56,22.203603311174518,50,23.259406699226016,105,43.08131845707603,418,144.42298985964803,10,7.6157731058639087,81,26.627053911388696,49,19.104973174542799,91,29,756,195.20502042724209,107,47.801673610868477,318,110.07270324653611,228,79.881161734166085,215,74.706090782479038]
[null,"With vision difficulty",6,13.892443989449804,17,29.546573405388315,2,12.369316876852981,4,13.892443989449804,3,13,0,16.970562748477139,45,52.392747589718944,0,24.041630560342615,170,98.858484714262133,0,16.970562748477139,0,16.970562748477139,{"$f":"Y44+Y25","v":4},{"$f":"SQRT((Z44^2)+(Z25^2))","v":13.892443989449804},35,34.785054261852174,17,34.481879299133332,0,16.970562748477139,5,14.422205101855956,4,13,14,13.416407864998739,108,97.169954203961623,11,20.808652046684813,18,23.323807579381203,31,25,35,38.600518131237564]
[null,"With no vision difficulty",136,56.612719418872643,257,108.18964830333815,126,57.245087125446844,86,32.202484376209235,43,16.401219466856727,93,29.732137494637012,366,192.62658175859323,370,146.65946952038249,1597,249.12848090894786,189,60.108235708594876,56,22.203603311174518,46,19.723082923316021,70,28.231188426986208,401,138.60014430006919,10,7.6157731058639087,76,25,45,18.439088914585774,77,26.248809496813376,648,172.24691579241701,96,43.931765272977593,300,111.89280584559492,197,70.83078426785913,180,65.459911396212561]
[]
[]
[]
[]
[]
[]
[]
[]
[]
[]
[]
[]
[]
[]
[]
[]
[]
[]
[]
[]
[]
[]
[]
[]
[]
[]
["B18103. SEX BY AGE BY VISION DIFFICULTY\n\n\n-Calculated"]
["Universe:  Civilian noninstitutionalized population"]
["Data Set: 2013-2017 American Community Survey 5-Year Estimates"]
[]
[]
[null,null,"Alstead",null,"Chesterfield",null,"Dublin",null,"Fitzwilliam",null,"Gilsum",null,"Harrisville",null,"Hinsdale",null,"Jaffrey",null,"Keene",null,"Marlborough",null,"Marlow",null,"Nelson",null,"Richmond",null,"Rindge",null,"Roxbury",null,"Stoddard",null,"Sullivan",null,"Surry",null,"Swanzey",null,"Troy",null,"Walpole",null,"Westmoreland",null,"Winchester"]
[null," ","Estimate","Margin of Error","Estimate","Margin of Error","Estimate","Margin of Error","Estimate","Margin of Error","Estimate","Margin of Error","Estimate","Margin of Error","Estimate","Margin of Error","Estimate","Margin of Error","Estimate","Margin of Error","Estimate","Margin of Error","Estimate","Margin of Error","Estimate","Margin of Error","Estimate","Margin of Error","Estimate","Margin of Error","Estimate","Margin of Error","Estimate","Margin of Error","Estimate","Margin of Error","Estimate","Margin of Error","Estimate","Margin of Error","Estimate","Margin of Error","Estimate","Margin of Error","Estimate","Margin of Error","Estimate","Margin of Error"]
[null,"Total",1847,227,3566,15,1487,174,2294,213,702,80,913,140,3925,20,22723,148,23058,228,2119,295,708,115,575,94,1239,175,6000,44,216,57,1193,185,725,118,884,130,7169,37,2182,310,3809,18,1696,212,4146,122]
[null,"Under 5 years:",82,39.204591567825318,377,144.40221604947757,42,26.92582403567252,96,50.931326312987373,16,9.4339811320566032,15,11.401754250991379,139,103.81714694596457,898,203.8872237291979,923,180.40509970618902,86,45.343136195018538,45,25.238858928247925,38,19.313207915827967,69,62.649820430708338,403,112.64546151532249,17,8.6023252670426267,53,31.144823004794873,82,30.413812651491099,42,29.410882339705484,408,137.88763541376724,107,65.215028942721474,114,85.708809348864477,45,23.430749027719962,257,108.90362712049586]
[null,"With vision difficulty",0,15.556349186104045,0,15.556349186104045,0,15.556349186104045,0,15.556349186104045,0,15.556349186104045,0,15.556349186104045,0,15.556349186104045,0,29.698484809834994,0,28.284271247461902,0,15.556349186104045,0,15.556349186104045,0,15.556349186104045,18,30.083217912982647,0,22.627416997969522,0,15.556349186104045,2,11.704699910719626,0,15.556349186104045,0,15.556349186104045,0,22.627416997969522,0,15.556349186104045,0,15.556349186104045,0,15.556349186104045,0,15.556349186104045]
[null,"With no vision difficulty",82,39.204591567825318,377,144.40221604947757,42,26.92582403567252,96,50.931326312987373,16,9.4339811320566032,15,11.401754250991379,139,103.81714694596457,898,203.8872237291979,923,180.40509970618902,86,45.343136195018538,45,25.238858928247925,38,19.313207915827967,51,39.698866482558415,403,112.64546151532249,17,8.6023252670426267,51,31.144823004794873,82,30.413812651491099,42,29.410882339705484,408,137.88763541376724,107,65.215028942721474,114,85.708809348864477,45,23.430749027719962,257,108.90362712049586]
[null,"5 to 17 years:",234,89.050547443572739,467,154.76756766196203,234,62.433965115151864,278,75.166481891864535,100,25,81,30.528675044947494,617,137.2953021774598,2821,288.84597971929605,2791,291,266,90.686272390037075,101,31.906112267087632,62,22.671568097509269,161,52.201532544552748,849,190.31815467789718,19,12.083045973594572,158,51.088159097779204,92,42.544094772365298,124,42.544094772365298,894,221.29844102478444,363,106.10372283760829,579,141.79210133149166,243,65.36818798161687,637,146.21901381147393]
[null,"With vision difficulty",0,15.556349186104045,0,15.556349186104045,3,12.083045973594572,0,15.556349186104045,0,15.556349186104045,0,15.556349186104045,0,15.556349186104045,68,76.400261779656233,67,74.215901261117892,0,15.556349186104045,0,15.556349186104045,2,11.704699910719626,0,15.556349186104045,23,25.612496949731394,0,15.556349186104045,0,15.556349186104045,0,15.556349186104045,2,11.401754250991379,0,22.627416997969522,8,17.804493814764857,0,15.556349186104045,3,12.083045973594572,0,15.556349186104045]
[null,"With no vision difficulty",234,89.050547443572739,467,154.76756766196203,231,62.433965115151864,278,75.166481891864535,100,25,81,30.528675044947494,617,137.2953021774598,2753,290.7249559291393,2724,281.04448046528154,266,90.686272390037075,101,31.906112267087632,60,21.931712199461309,161,52.201532544552748,826,179.13402803487674,19,12.083045973594572,158,51.088159097779204,92,42.544094772365298,122,42.059481689626182,894,221.29844102478444,355,102.7277956543408,579,141.79210133149166,240,65.863495200300449,637,146.21901381147393]
[null,"18 to 34 years:",369,111.01801655587259,432,135.79396157414365,256,67.007462271003817,409,96.426137535421375,121,29,91,31.240998703626616,587,140.01428498549711,7744,445.31000437897194,8156,446.97762807549998,413,116.1077086157504,104,31.89043743820395,128,41.231056256176608,280,73.006848993775918,1973,237.26145915424192,50,17.691806012954132,208,55.605755097831377,129,39.66106403010388,126,37.483329627982627,1572,281.58480072617556,430,145.34441853748632,704,146.64924138910504,298,75.663729752107784,933,159.13830462839547]
[null,"With vision difficulty",0,15.556349186104045,0,15.556349186104045,0,15.556349186104045,13,15.231546211727817,0,15.556349186104045,0,15.556349186104045,0,15.556349186104045,124,95.341491492424225,112,100.30453628824571,0,15.556349186104045,1,11.401754250991379,0,15.556349186104045,0,15.556349186104045,0,22.627416997969522,0,15.556349186104045,0,15.556349186104045,0,15.556349186104045,4,12.083045973594572,9,22.627416997969522,0,15.556349186104045,0,15.556349186104045,0,15.556349186104045,21,35.735136770411273]
[null,"With no vision difficulty",369,111.01801655587259,432,135.79396157414365,256,67.007462271003817,396,94.111635837445732,121,29,91,31.240998703626616,587,140.01428498549711,7620,448.36257649362307,8044,451.20283687051437,413,116.1077086157504,103,31.89043743820395,128,41.231056256176608,280,73.006848993775918,1973,237.26145915424192,50,17.691806012954132,208,55.605755097831377,129,39.66106403010388,122,36.796738985948195,1563,280.95729212818094,430,145.34441853748632,704,146.64924138910504,298,75.663729752107784,912,160.58953888718904]
[null,"35 to 64 years:",801,101.11874208078342,1501,172.00290695217916,678,81.394102980498531,1011,126.62148316932637,349,45.967379738244816,441,63.655321851358195,1833,171.26587517658035,7687,334.67745666536911,7637,355.06900737743922,934,128.76334882255898,337,47.423622805517503,238,40.459856648287818,550,71.217975259059429,1949,153.52198539622916,99,25.80697580112788,510,82.800966177937809,296,40.311288741492746,409,52.801515129776341,3053,248.01814449753471,985,129.07362240210043,1685,150.86417732516887,800,86.278618440491968,1639,181.79383927955314]
[null,"With vision difficulty",8,14.866068747318506,32,34.669871646719429,3,11.704699910719626,5,13.038404810405298,5,12.083045973594572,3,12.083045973594572,13,21.95449840010015,132,89.067390216621931,180,92.195444572928878,5,13.601470508735444,2,11.704699910719626,3,11.704699910719626,8,16.278820596099706,32,28.301943396169811,0,15.556349186104045,18,11.401754250991379,0,15.556349186104045,4,5,9,21.931712199461309,38,30.463092423455635,43,45.310043036836767,10,14.212670403551895,34,31.304951684997057]
[null,"With no vision difficulty",793,99.03534722511958,1469,168.83423823383691,675,81.394102980498531,1006,127.34991166074674,344,45.967379738244816,438,63.655321851358195,1820,169.07099100673656,7555,323.86725675807367,7457,357.86310231707319,929,128.03515142334936,335,47.423622805517503,235,39.698866482558415,542,70.434366611761334,1917,152.16109883935513,99,25.80697580112788,492,83.408632646747066,296,40.311288741492746,405,51.400389103585589,3044,248.01814449753471,947,126.37246535539299,1642,154.80633061990716,790,84.852813742385706,1605,181.8378398463862]
[null,"65 to 74 years:",247,55.172456896534889,508,128.70120434556935,180,38.600518131237564,360,80.802227692063042,75,17.691806012954132,198,38.948684188300895,509,98.081598681913832,1908,174.77127910500627,1987,190.53608582103286,246,65.115282384398824,57,18.439088914585774,63,20.248456731316587,106,27.658633371878661,512,97.590983190046813,23,9.4339811320566032,150,38.897300677553446,80,24.041630560342615,123,30.232432915661949,614,129.52991932368366,184,51.855568649856693,364,98.270036124955197,213,54.488530903301111,435,88.600225733346747]
[null,"With vision difficulty",5,13.038404810405298,11,21.095023109728988,6,5.6568542494923806,13,12.206555615733702,2,11.401754250991379,3,11.704699910719626,9,17.029386365926403,61,40.36087214122113,21,31.240998703626616,0,15.556349186104045,2,12.083045973594572,0,15.556349186104045,10,16.278820596099706,18,24.839484696748443,0,15.556349186104045,3,11.704699910719626,9,16.278820596099706,8,9.4868329805051381,73,74.330343736592525,21,25,40,47.296934361541872,2,11.704699910719626,21,25.495097567963924]
[null,"With no vision difficulty",242,55.901699437494742,497,126.62148316932637,174,37.802116342871599,347,79.404030124421269,73,17.691806012954132,195,38.948684188300895,500,98.081598681913832,1847,176.18456232031227,1966,186.67886864881092,246,65.115282384398824,55,17.691806012954132,63,20.248456731316587,96,26.40075756488817,494,100.41912168506553,23,9.4339811320566032,147,38.183766184073569,71,20.808652046684813,115,28.600699292150182,541,124.03628501370073,163,46.141087980237309,324,88.232647019116456,211,54.488530903301111,414,90.426765949026404]
[null,"75 years and over:",114,45.793012567421243,281,121.75385004179539,97,31.11269837220809,140,48.104053883222775,41,15.811388300841896,87,55.108982933819419,240,90.210864090751286,1665,226.25870149013053,1564,202.94334184693028,174,56.727418414731339,64,19.849433241279208,46,16.401219466856727,73,27.658633371878661,314,95.268042910516428,8,11.180339887498949,114,38.209946349085598,46,16.970562748477139,60,18.357559750685819,628,147.75655653811103,113,52.497618993626752,363,95.524865872714003,97,32.802438933713454,245,76.478755219995577]
[null,"With vision difficulty",15,16.278820596099706,0,15.556349186104045,6,5.6568542494923806,17,23.706539182259394,1,11.704699910719626,9,7.2111025509279782,61,59.464274989274024,125,95.273291115611201,51,36.235341863986875,5,13.038404810405298,2,11.401754250991379,2,11.401754250991379,14,13.601470508735444,46,45.453272709454048,0,15.556349186104045,4,12.083045973594572,0,15.556349186104045,2,11.401754250991379,66,59.481089431852205,11,15.556349186104045,40,30.805843601498726,8,8.5440037453175304,35,29.410882339705484]
[null,"With no vision difficulty",99,45.793012567421243,281,121.75385004179539,91,30.413812651491099,123,43.600458713183279,40,15,78,55.108982933819419,179,73.53910524340094,1540,227.07047364199511,1513,198.60010070490901,169,55.97320787662612,62,19.849433241279208,44,16.401219466856727,59,23.853720883753127,268,85,8,11.180339887498949,110,37.536648758246919,46,16.970562748477139,58,17.888543819998318,562,130.90836489697671,102,49.51767361255979,323,90.509667991878089,89,31.622776601683793,210,72.498275841567434]
[]
[]
[]
[]
[]
["B18103. SEX BY AGE BY VISION DIFFICULTY\n\n\n-Calculated"]
["Universe:  Civilian noninstitutionalized population"]
["Data Set: 2008-2012 American Community Survey 5-Year Estimates"]
[]
[]
[null,null,"Alstead",null,"Chesterfield",null,"Dublin",null,"Fitzwilliam",null,"Gilsum",null,"Harrisville",null,"Hinsdale",null,"Jaffrey",null,"Keene",null,"Marlborough",null,"Marlow",null,"Nelson",null,"Richmond",null,"Rindge",null,"Roxbury",null,"Stoddard",null,"Sullivan",null,"Surry",null,"Swanzey",null,"Troy",null,"Walpole",null,"Westmoreland",null,"Winchester"]
[null," ","Estimate","Margin of Error","Estimate","Margin of Error","Estimate","Margin of Error","Estimate","Margin of Error","Estimate","Margin of Error","Estimate","Margin of Error","Estimate","Margin of Error","Estimate","Margin of Error","Estimate","Margin of Error","Estimate","Margin of Error","Estimate","Margin of Error","Estimate","Margin of Error","Estimate","Margin of Error","Estimate","Margin of Error","Estimate","Margin of Error","Estimate","Margin of Error","Estimate","Margin of Error","Estimate","Margin of Error","Estimate","Margin of Error","Estimate","Margin of Error","Estimate","Margin of Error","Estimate","Margin of Error","Estimate","Margin of Error"]
[null,"Total",1883,173,3617,22,1709,209,2576,268,542,75,923,139,4046,18,5394,77,23088,148,1977,269,890,185,729,156,992,145,5982,34,219,37,1045,181,691,108,821,110,7236,29,2112,274,3731,19,1919,226,4271,35]
[null,"Under 5 years:",103,53.225933528685054,206,113.14592347937243,37,15,148,58.051701094799967,18,11.313708498984761,49,26.248809496813376,275,114.05700329221349,272,117.37972567696688,788,181.738823590338,86,58.668560575490517,35,23.021728866442675,6,13.038404810405298,48,27.784887978899608,376,109.04127658827184,7,13.038404810405298,94,38.587562763149478,27,19.924858845171276,24,16.124515496597098,329,121.24768039018313,116,47.423622805517503,260,104.00480758118829,90,45.541190146942803,350,114.33722053644648]
[null,"With vision difficulty",0,15.556349186104045,0,15.556349186104045,0,15.556349186104045,0,15.556349186104045,0,15.556349186104045,0,15.556349186104045,0,15.556349186104045,0,22.627416997969522,0,29.698484809834994,0,15.556349186104045,0,15.556349186104045,0,15.556349186104045,4,13.038404810405298,0,22.627416997969522,0,15.556349186104045,0,15.556349186104045,0,15.556349186104045,0,15.556349186104045,0,22.627416997969522,0,15.556349186104045,0,15.556349186104045,0,15.556349186104045,26,43.416586692184822]
[null,"With no vision difficulty",103,53.225933528685054,206,113.14592347937243,37,15,148,58.051701094799967,18,11.313708498984761,49,26.248809496813376,275,114.05700329221349,272,117.37972567696688,788,181.738823590338,86,58.668560575490517,35,23.021728866442675,6,13.038404810405298,44,26.832815729997478,376,109.04127658827184,7,13.038404810405298,94,38.587562763149478,27,19.924858845171276,24,16.124515496597098,329,121.24768039018313,116,47.423622805517503,260,104.00480758118829,90,45.541190146942803,324,112.44554237496477]
[null,"5 to 17 years:",358,89.202017914394744,470,138.2931668593933,361,98.716766559688324,349,90.603531939985658,36,16.970562748477139,113,44.944410108488462,509,123.76186811776881,1030,206.92993983471797,2967,302.12083675244912,294,105.99056561788883,151,50.990195135927848,105,41.109609582188931,174,68.8839603971781,897,144.30869689661813,40,15.652475842498529,133,52.201532544552748,130,48.548944375753422,91,31.89043743820395,1194,194.74342094150447,360,94.047860156411858,658,130.91982279242512,350,89.044932477934978,588,138.70832707519762]
[null,"With vision difficulty",4,13.038404810405298,0,15.556349186104045,0,15.556349186104045,0,15.556349186104045,0,15.556349186104045,0,15.556349186104045,0,15.556349186104045,0,22.627416997969522,0,29.698484809834994,0,15.556349186104045,0,15.556349186104045,0,15.556349186104045,0,15.556349186104045,7,18.867962264113206,0,15.556349186104045,3,11.704699910719626,4,12.529964086141668,0,15.556349186104045,0,22.627416997969522,6,14.212670403551895,27,41.484937025383083,6,6.4031242374328485,0,15.556349186104045]
[null,"With no vision difficulty",354,89.202017914394744,470,138.2931668593933,361,98.716766559688324,349,90.603531939985658,36,16.970562748477139,113,44.944410108488462,509,123.76186811776881,1030,206.92993983471797,2967,302.12083675244912,294,105.99056561788883,151,50.990195135927848,105,41.109609582188931,174,68.8839603971781,890,146.21901381147393,40,15.652475842498529,130,51.400389103585589,126,48.548944375753422,91,31.89043743820395,1194,194.74342094150447,354,94.047860156411858,631,118.06777714516353,344,87.664131775772461,588,138.70832707519762]
[null,"18 to 34 years:",301,70.724818840347695,584,200.5617112013158,212,73.348483283568996,399,104.95713410721541,100,33.421549934136806,96,31.240998703626616,761,155.20631430454111,754,179.96110690924303,7934,476.76514134319848,307,98.290386101591849,110,47.413078364518789,108,44.407206622349037,164,44.654227123532216,2383,260.59930928534709,31,12.529964086141668,105,37.643060449437421,142,44.407206622349037,135,36.61966684720111,1376,220.86421167767313,520,105.38026380684383,671,129.5569372901351,300,75.690157880665041,704,148.52945835759317]
[null,"With vision difficulty",15,22.825424421026653,0,15.556349186104045,0,15.556349186104045,0,15.556349186104045,4,12.529964086141668,0,15.556349186104045,0,15.556349186104045,0,22.627416997969522,20,25.495097567963924,0,15.556349186104045,0,15.556349186104045,0,15.556349186104045,0,15.556349186104045,19,20.518284528683193,0,15.556349186104045,0,15.556349186104045,0,15.556349186104045,0,15.556349186104045,13,25.612496949731394,0,15.556349186104045,15,18.357559750685819,0,15.556349186104045,0,15.556349186104045]
[null,"With no vision difficulty",286,68.01470429252781,584,200.5617112013158,212,73.348483283568996,399,104.95713410721541,96,32.202484376209235,96,31.240998703626616,761,155.20631430454111,754,179.96110690924303,7914,478.92588153074377,307,98.290386101591849,110,47.413078364518789,108,44.407206622349037,164,44.654227123532216,2364,262.01145013147806,31,12.529964086141668,105,37.643060449437421,142,44.407206622349037,135,36.61966684720111,1363,220.86421167767313,520,105.38026380684383,656,126.62148316932637,300,75.690157880665041,704,148.52945835759317]
[null,"35 to 64 years:",852,86.556340033529608,1690,164.14932226482082,806,107.41508273980894,1319,123.3288287465668,293,40.80441152620633,520,70,1732,185.45619428857049,2558,156.63013758533191,8056,310.64449134018133,969,115.88356225108029,437,81.344944526380985,385,67.475921631349351,504,70.802542327235685,1798,165.55663683464942,99,22.203603311174518,544,85.428332536694171,311,41.725292090050132,425,57.982756057296896,3264,221.33458834985552,856,114.97825881443848,1614,140.73023839957068,921,102.53292154230269,2106,235.84952830141509]
[null,"With vision difficulty",19,23.706539182259394,29,32.893768406797051,0,15.556349186104045,0,15.556349186104045,6,14.866068747318506,3,11.704699910719626,37,28.653097563788805,28,33.120990323358392,171,104.23531071570709,0,15.556349186104045,3,11.704699910719626,0,15.556349186104045,5,5.8309518948453007,28,34.885527085024819,4,11.704699910719626,2,11.704699910719626,12,8.0622577482985491,0,15.556349186104045,17,31.384709652950431,42,40.311288741492746,34,41.593268686170845,11,8.9442719099991592,53,36.069377593742864]
[null,"With no vision difficulty",833,85.796270315206598,1661,162.60688792299052,806,107.41508273980894,1319,123.3288287465668,287,40.80441152620633,517,69.202601107183824,1695,190.37069102149101,2530,157.2895419282541,7885,333.17412864746865,969,115.88356225108029,434,81.344944526380985,385,67.475921631349351,499,70.802542327235685,1770,164.78470802838473,95,21.400934559032695,542,85.428332536694171,299,41.725292090050132,425,57.982756057296896,3247,221.33458834985552,814,109.98636279102969,1580,135.05924625881784,910,103.23759005323593,2053,235.84952830141509]
[null,"65 to 74 years:",158,45.967379738244816,402,145.04137340772803,194,66.211781428987393,263,75.432088662584434,65,22.022715545545239,66,24.041630560342615,416,95.524865872714003,414,112.43220179290273,1482,165.61400906928134,182,53.413481444294568,110,32.557641192199412,81,27.802877548915689,73,21.095023109728988,297,74.027022093286988,32,12.727922061357855,115,36.796738985948195,53,20,79,19.798989873223331,736,140.03570973148243,177,56.824290580701486,277,77.620873481300123,100,37.20215047547655,366,74.411020689142546]
[null,"With vision difficulty",0,15.556349186104045,17,28.231188426986208,0,15.556349186104045,0,15.556349186104045,0,15.556349186104045,0,15.556349186104045,28,35.735136770411273,0,22.627416997969522,83,53.758720222862451,18,31.953090617340916,3,12.083045973594572,0,15.556349186104045,0,15.556349186104045,0,22.627416997969522,0,15.556349186104045,0,15.556349186104045,4,12.083045973594572,3,11.704699910719626,11,24.083189157584592,9,10.63014581273465,8,17.029386365926403,7,9.2195444572928871,0,15.556349186104045]
[null,"With no vision difficulty",158,45.967379738244816,385,145.04137340772803,194,66.211781428987393,263,75.432088662584434,65,22.022715545545239,66,24.041630560342615,388,94.175368329515976,414,112.43220179290273,1399,173.00289014926889,164,45.967379738244816,107,31.89043743820395,81,27.802877548915689,73,21.095023109728988,297,74.027022093286988,32,12.727922061357855,115,36.796738985948195,49,18.439088914585774,76,19.798989873223331,725,139.34489585198304,168,55.946402922797461,269,76.05918747922567,93,35.805027579936315,366,74.411020689142546]
[null,"75 years and over:",111,37.735924528226413,265,104.00480758118829,99,35.510561809129406,98,43.56604182158393,30,15.556349186104045,79,34.828149534535996,353,120.42009799032718,366,107.71258050942797,1861,183.21571984958058,139,48.877397639399746,47,21.470910553583888,44,17.029386365926403,29,15,231,60.207972893961475,10,6.4031242374328485,54,23.323807579381203,28,19.646882704388499,67,30.232432915661949,337,111.36426715962351,83,34.985711369071801,251,74.202425836356596,158,48.918299234540036,157,58]
[null,"With vision difficulty",3,12.083045973594572,19,30.083217912982647,6,7.0710678118654755,23,30.594117081556711,2,11.401754250991379,0,15.556349186104045,14,25.495097567963924,61,52.345009313209601,233,87.681240867131891,11,16.278820596099706,7,13.601470508735444,0,15.556349186104045,7,6.7082039324993694,8,20,0,15.556349186104045,0,15.556349186104045,0,15.556349186104045,11,12.649110640673518,43,57.280013966478741,25,19.798989873223331,25,20.518284528683193,4,12.529964086141668,32,30.083217912982647]
[null,"With no vision difficulty",108,37.215588131856791,246,104.7377677822093,93,35.510561809129406,75,30,28,14.866068747318506,79,34.828149534535996,339,119.20151005754919,305,91.219515455849688,1628,187.21645226849054,128,48.020828814171878,40,19.646882704388499,44,17.029386365926403,22,12.529964086141668,223,60.207972893961475,10,6.4031242374328485,54,23.323807579381203,28,19.646882704388499,56,28.0178514522438,294,100.84641788382967,58,28.231188426986208,226,69.404610797842537,154,48.166378315169183,125,52.201532544552748]

{"sheet":"SData_B18104_CognitiveDisabil","index":45,"n_rows":63,"n_cols":70,"rows_kept":63,"cut":false,"hidden":true,"merged":[]}
["GEO_ID","GEO_ID2","SUMLEVEL",{"$f":"[1]ACS_16_5YR_B18104_with_ann!C1","v":"NAME"},{"$f":"[1]ACS_16_5YR_B18104_with_ann!D1","v":"B18104_001E"},{"$f":"[1]ACS_16_5YR_B18104_with_ann!E1","v":"B18104_001M"},{"$f":"[1]ACS_16_5YR_B18104_with_ann!F1","v":"B18104_002E"},{"$f":"[1]ACS_16_5YR_B18104_with_ann!G1","v":"B18104_002M"},{"$f":"[1]ACS_16_5YR_B18104_with_ann!H1","v":"B18104_003E"},{"$f":"[1]ACS_16_5YR_B18104_with_ann!I1","v":"B18104_003M"},{"$f":"[1]ACS_16_5YR_B18104_with_ann!J1","v":"B18104_004E"},{"$f":"[1]ACS_16_5YR_B18104_with_ann!K1","v":"B18104_004M"},{"$f":"[1]ACS_16_5YR_B18104_with_ann!L1","v":"B18104_005E"},{"$f":"[1]ACS_16_5YR_B18104_with_ann!M1","v":"B18104_005M"},{"$f":"[1]ACS_16_5YR_B18104_with_ann!N1","v":"B18104_006E"},{"$f":"[1]ACS_16_5YR_B18104_with_ann!O1","v":"B18104_006M"},{"$f":"[1]ACS_16_5YR_B18104_with_ann!P1","v":"B18104_007E"},{"$f":"[1]ACS_16_5YR_B18104_with_ann!Q1","v":"B18104_007M"},{"$f":"[1]ACS_16_5YR_B18104_with_ann!R1","v":"B18104_008E"},{"$f":"[1]ACS_16_5YR_B18104_with_ann!S1","v":"B18104_008M"},{"$f":"[1]ACS_16_5YR_B18104_with_ann!T1","v":"B18104_009E"},{"$f":"[1]ACS_16_5YR_B18104_with_ann!U1","v":"B18104_009M"},{"$f":"[1]ACS_16_5YR_B18104_with_ann!V1","v":"B18104_010E"},{"$f":"[1]ACS_16_5YR_B18104_with_ann!W1","v":"B18104_010M"},{"$f":"[1]ACS_16_5YR_B18104_with_ann!X1","v":"B18104_011E"},{"$f":"[1]ACS_16_5YR_B18104_with_ann!Y1","v":"B18104_011M"},{"$f":"[1]ACS_16_5YR_B18104_with_ann!Z1","v":"B18104_012E"},{"$f":"[1]ACS_16_5YR_B18104_with_ann!AA1","v":"B18104_012M"},{"$f":"[1]ACS_16_5YR_B18104_with_ann!AB1","v":"B18104_013E"},{"$f":"[1]ACS_16_5YR_B18104_with_ann!AC1","v":"B18104_013M"},{"$f":"[1]ACS_16_5YR_B18104_with_ann!AD1","v":"B18104_014E"},{"$f":"[1]ACS_16_5YR_B18104_with_ann!AE1","v":"B18104_014M"},{"$f":"[1]ACS_16_5YR_B18104_with_ann!AF1","v":"B18104_015E"},{"$f":"[1]ACS_16_5YR_B18104_with_ann!AG1","v":"B18104_015M"},{"$f":"[1]ACS_16_5YR_B18104_with_ann!AH1","v":"B18104_016E"},{"$f":"[1]ACS_16_5YR_B18104_with_ann!AI1","v":"B18104_016M"},{"$f":"[1]ACS_16_5YR_B18104_with_ann!AJ1","v":"B18104_017E"},{"$f":"[1]ACS_16_5YR_B18104_with_ann!AK1","v":"B18104_017M"},{"$f":"[1]ACS_16_5YR_B18104_with_ann!AL1","v":"B18104_018E"},{"$f":"[1]ACS_16_5YR_B18104_with_ann!AM1","v":"B18104_018M"},{"$f":"[1]ACS_16_5YR_B18104_with_ann!AN1","v":"B18104_019E"},{"$f":"[1]ACS_16_5YR_B18104_with_ann!AO1","v":"B18104_019M"},{"$f":"[1]ACS_16_5YR_B18104_with_ann!AP1","v":"B18104_020E"},{"$f":"[1]ACS_16_5YR_B18104_with_ann!AQ1","v":"B18104_020M"},{"$f":"[1]ACS_16_5YR_B18104_with_ann!AR1","v":"B18104_021E"},{"$f":"[1]ACS_16_5YR_B18104_with_ann!AS1","v":"B18104_021M"},{"$f":"[1]ACS_16_5YR_B18104_with_ann!AT1","v":"B18104_022E"},{"$f":"[1]ACS_16_5YR_B18104_with_ann!AU1","v":"B18104_022M"},{"$f":"[1]ACS_16_5YR_B18104_with_ann!AV1","v":"B18104_023E"},{"$f":"[1]ACS_16_5YR_B18104_with_ann!AW1","v":"B18104_023M"},{"$f":"[1]ACS_16_5YR_B18104_with_ann!AX1","v":"B18104_024E"},{"$f":"[1]ACS_16_5YR_B18104_with_ann!AY1","v":"B18104_024M"},{"$f":"[1]ACS_16_5YR_B18104_with_ann!AZ1","v":"B18104_025E"},{"$f":"[1]ACS_16_5YR_B18104_with_ann!BA1","v":"B18104_025M"},{"$f":"[1]ACS_16_5YR_B18104_with_ann!BB1","v":"B18104_026E"},{"$f":"[1]ACS_16_5YR_B18104_with_ann!BC1","v":"B18104_026M"},{"$f":"[1]ACS_16_5YR_B18104_with_ann!BD1","v":"B18104_027E"},{"$f":"[1]ACS_16_5YR_B18104_with_ann!BE1","v":"B18104_027M"},{"$f":"[1]ACS_16_5YR_B18104_with_ann!BF1","v":"B18104_028E"},{"$f":"[1]ACS_16_5YR_B18104_with_ann!BG1","v":"B18104_028M"},{"$f":"[1]ACS_16_5YR_B18104_with_ann!BH1","v":"B18104_029E"},{"$f":"[1]ACS_16_5YR_B18104_with_ann!BI1","v":"B18104_029M"},{"$f":"[1]ACS_16_5YR_B18104_with_ann!BJ1","v":"B18104_030E"},{"$f":"[1]ACS_16_5YR_B18104_with_ann!BK1","v":"B18104_030M"},{"$f":"[1]ACS_16_5YR_B18104_with_ann!BL1","v":"B18104_031E"},{"$f":"[1]ACS_16_5YR_B18104_with_ann!BM1","v":"B18104_031M"},{"$f":"[1]ACS_16_5YR_B18104_with_ann!BN1","v":"B18104_032E"},{"$f":"[1]ACS_16_5YR_B18104_with_ann!BO1","v":"B18104_032M"},{"$f":"[1]ACS_16_5YR_B18104_with_ann!BP1","v":"B18104_033E"},{"$f":"[1]ACS_16_5YR_B18104_with_ann!BQ1","v":"B18104_033M"}]
["Geography Identifier","Geography Identifier","Geographic Summary Level",{"$f":"[1]ACS_16_5YR_B18104_with_ann!C2","v":"Geographic Area Name"},{"$f":"[1]ACS_16_5YR_B18104_with_ann!D2","v":"Estimate!!Total:"},{"$f":"[1]ACS_16_5YR_B18104_with_ann!E2","v":"Margin of Error!!Total:"},{"$f":"[1]ACS_16_5YR_B18104_with_ann!F2","v":"Estimate!!Total:!!Male:"},{"$f":"[1]ACS_16_5YR_B18104_with_ann!G2","v":"Margin of Error!!Total:!!Male:"},{"$f":"[1]ACS_16_5YR_B18104_with_ann!H2","v":"Estimate!!Total:!!Male:!!5 to 17 years:"},{"$f":"[1]ACS_16_5YR_B18104_with_ann!I2","v":"Margin of Error!!Total:!!Male:!!5 to 17 years:"},{"$f":"[1]ACS_16_5YR_B18104_with_ann!J2","v":"Estimate!!Total:!!Male:!!5 to 17 years:!!With a cognitive difficulty"},{"$f":"[1]ACS_16_5YR_B18104_with_ann!K2","v":"Margin of Error!!Total:!!Male:!!5 to 17 years:!!With a cognitive difficulty"},{"$f":"[1]ACS_16_5YR_B18104_with_ann!L2","v":"Estimate!!Total:!!Male:!!5 to 17 years:!!No cognitive difficulty"},{"$f":"[1]ACS_16_5YR_B18104_with_ann!M2","v":"Margin of Error!!Total:!!Male:!!5 to 17 years:!!No cognitive difficulty"},{"$f":"[1]ACS_16_5YR_B18104_with_ann!N2","v":"Estimate!!Total:!!Male:!!18 to 34 years:"},{"$f":"[1]ACS_16_5YR_B18104_with_ann!O2","v":"Margin of Error!!Total:!!Male:!!18 to 34 years:"},{"$f":"[1]ACS_16_5YR_B18104_with_ann!P2","v":"Estimate!!Total:!!Male:!!18 to 34 years:!!With a cognitive difficulty"},{"$f":"[1]ACS_16_5YR_B18104_with_ann!Q2","v":"Margin of Error!!Total:!!Male:!!18 to 34 years:!!With a cognitive difficulty"},{"$f":"[1]ACS_16_5YR_B18104_with_ann!R2","v":"Estimate!!Total:!!Male:!!18 to 34 years:!!No cognitive difficulty"},{"$f":"[1]ACS_16_5YR_B18104_with_ann!S2","v":"Margin of Error!!Total:!!Male:!!18 to 34 years:!!No cognitive difficulty"},{"$f":"[1]ACS_16_5YR_B18104_with_ann!T2","v":"Estimate!!Total:!!Male:!!35 to 64 years:"},{"$f":"[1]ACS_16_5YR_B18104_with_ann!U2","v":"Margin of Error!!Total:!!Male:!!35 to 64 years:"},{"$f":"[1]ACS_16_5YR_B18104_with_ann!V2","v":"Estimate!!Total:!!Male:!!35 to 64 years:!!With a cognitive difficulty"},{"$f":"[1]ACS_16_5YR_B18104_with_ann!W2","v":"Margin of Error!!Total:!!Male:!!35 to 64 years:!!With a cognitive difficulty"},{"$f":"[1]ACS_16_5YR_B18104_with_ann!X2","v":"Estimate!!Total:!!Male:!!35 to 64 years:!!No cognitive difficulty"},{"$f":"[1]ACS_16_5YR_B18104_with_ann!Y2","v":"Margin of Error!!Total:!!Male:!!35 to 64 years:!!No cognitive difficulty"},{"$f":"[1]ACS_16_5YR_B18104_with_ann!Z2","v":"Estimate!!Total:!!Male:!!65 to 74 years:"},{"$f":"[1]ACS_16_5YR_B18104_with_ann!AA2","v":"Margin of Error!!Total:!!Male:!!65 to 74 years:"},{"$f":"[1]ACS_16_5YR_B18104_with_ann!AB2","v":"Estimate!!Total:!!Male:!!65 to 74 years:!!With a cognitive difficulty"},{"$f":"[1]ACS_16_5YR_B18104_with_ann!AC2","v":"Margin of Error!!Total:!!Male:!!65 to 74 years:!!With a cognitive difficulty"},{"$f":"[1]ACS_16_5YR_B18104_with_ann!AD2","v":"Estimate!!Total:!!Male:!!65 to 74 years:!!No cognitive difficulty"},{"$f":"[1]ACS_16_5YR_B18104_with_ann!AE2","v":"Margin of Error!!Total:!!Male:!!65 to 74 years:!!No cognitive difficulty"},{"$f":"[1]ACS_16_5YR_B18104_with_ann!AF2","v":"Estimate!!Total:!!Male:!!75 years and over:"},{"$f":"[1]ACS_16_5YR_B18104_with_ann!AG2","v":"Margin of Error!!Total:!!Male:!!75 years and over:"},{"$f":"[1]ACS_16_5YR_B18104_with_ann!AH2","v":"Estimate!!Total:!!Male:!!75 years and over:!!With a cognitive difficulty"},{"$f":"[1]ACS_16_5YR_B18104_with_ann!AI2","v":"Margin of Error!!Total:!!Male:!!75 years and over:!!With a cognitive difficulty"},{"$f":"[1]ACS_16_5YR_B18104_with_ann!AJ2","v":"Estimate!!Total:!!Male:!!75 years and over:!!No cognitive difficulty"},{"$f":"[1]ACS_16_5YR_B18104_with_ann!AK2","v":"Margin of Error!!Total:!!Male:!!75 years and over:!!No cognitive difficulty"},{"$f":"[1]ACS_16_5YR_B18104_with_ann!AL2","v":"Estimate!!Total:!!Female:"},{"$f":"[1]ACS_16_5YR_B18104_with_ann!AM2","v":"Margin of Error!!Total:!!Female:"},{"$f":"[1]ACS_16_5YR_B18104_with_ann!AN2","v":"Estimate!!Total:!!Female:!!5 to 17 years:"},{"$f":"[1]ACS_16_5YR_B18104_with_ann!AO2","v":"Margin of Error!!Total:!!Female:!!5 to 17 years:"},{"$f":"[1]ACS_16_5YR_B18104_with_ann!AP2","v":"Estimate!!Total:!!Female:!!5 to 17 years:!!With a cognitive difficulty"},{"$f":"[1]ACS_16_5YR_B18104_with_ann!AQ2","v":"Margin of Error!!Total:!!Female:!!5 to 17 years:!!With a cognitive difficulty"},{"$f":"[1]ACS_16_5YR_B18104_with_ann!AR2","v":"Estimate!!Total:!!Female:!!5 to 17 years:!!No cognitive difficulty"},{"$f":"[1]ACS_16_5YR_B18104_with_ann!AS2","v":"Margin of Error!!Total:!!Female:!!5 to 17 years:!!No cognitive difficulty"},{"$f":"[1]ACS_16_5YR_B18104_with_ann!AT2","v":"Estimate!!Total:!!Female:!!18 to 34 years:"},{"$f":"[1]ACS_16_5YR_B18104_with_ann!AU2","v":"Margin of Error!!Total:!!Female:!!18 to 34 years:"},{"$f":"[1]ACS_16_5YR_B18104_with_ann!AV2","v":"Estimate!!Total:!!Female:!!18 to 34 years:!!With a cognitive difficulty"},{"$f":"[1]ACS_16_5YR_B18104_with_ann!AW2","v":"Margin of Error!!Total:!!Female:!!18 to 34 years:!!With a cognitive difficulty"},{"$f":"[1]ACS_16_5YR_B18104_with_ann!AX2","v":"Estimate!!Total:!!Female:!!18 to 34 years:!!No cognitive difficulty"},{"$f":"[1]ACS_16_5YR_B18104_with_ann!AY2","v":"Margin of Error!!Total:!!Female:!!18 to 34 years:!!No cognitive difficulty"},{"$f":"[1]ACS_16_5YR_B18104_with_ann!AZ2","v":"Estimate!!Total:!!Female:!!35 to 64 years:"},{"$f":"[1]ACS_16_5YR_B18104_with_ann!BA2","v":"Margin of Error!!Total:!!Female:!!35 to 64 years:"},{"$f":"[1]ACS_16_5YR_B18104_with_ann!BB2","v":"Estimate!!Total:!!Female:!!35 to 64 years:!!With a cognitive difficulty"},{"$f":"[1]ACS_16_5YR_B18104_with_ann!BC2","v":"Margin of Error!!Total:!!Female:!!35 to 64 years:!!With a cognitive difficulty"},{"$f":"[1]ACS_16_5YR_B18104_with_ann!BD2","v":"Estimate!!Total:!!Female:!!35 to 64 years:!!No cognitive difficulty"},{"$f":"[1]ACS_16_5YR_B18104_with_ann!BE2","v":"Margin of Error!!Total:!!Female:!!35 to 64 years:!!No cognitive difficulty"},{"$f":"[1]ACS_16_5YR_B18104_with_ann!BF2","v":"Estimate!!Total:!!Female:!!65 to 74 years:"},{"$f":"[1]ACS_16_5YR_B18104_with_ann!BG2","v":"Margin of Error!!Total:!!Female:!!65 to 74 years:"},{"$f":"[1]ACS_16_5YR_B18104_with_ann!BH2","v":"Estimate!!Total:!!Female:!!65 to 74 years:!!With a cognitive difficulty"},{"$f":"[1]ACS_16_5YR_B18104_with_ann!BI2","v":"Margin of Error!!Total:!!Female:!!65 to 74 years:!!With a cognitive difficulty"},{"$f":"[1]ACS_16_5YR_B18104_with_ann!BJ2","v":"Estimate!!Total:!!Female:!!65 to 74 years:!!No cognitive difficulty"},{"$f":"[1]ACS_16_5YR_B18104_with_ann!BK2","v":"Margin of Error!!Total:!!Female:!!65 to 74 years:!!No cognitive difficulty"},{"$f":"[1]ACS_16_5YR_B18104_with_ann!BL2","v":"Estimate!!Total:!!Female:!!75 years and over:"},{"$f":"[1]ACS_16_5YR_B18104_with_ann!BM2","v":"Margin of Error!!Total:!!Female:!!75 years and over:"},{"$f":"[1]ACS_16_5YR_B18104_with_ann!BN2","v":"Estimate!!Total:!!Female:!!75 years and over:!!With a cognitive difficulty"},{"$f":"[1]ACS_16_5YR_B18104_with_ann!BO2","v":"Margin of Error!!Total:!!Female:!!75 years and over:!!With a cognitive difficulty"},{"$f":"[1]ACS_16_5YR_B18104_with_ann!BP2","v":"Estimate!!Total:!!Female:!!75 years and over:!!No cognitive difficulty"},{"$f":"[1]ACS_16_5YR_B18104_with_ann!BQ2","v":"Margin of Error!!Total:!!Female:!!75 years and over:!!No cognitive difficulty"}]
["06000US3300500820","0600000US3300512260","060",{"$f":"[1]ACS_16_5YR_B18104_with_ann!C44","v":"Alstead"},{"$f":"[1]ACS_16_5YR_B18104_with_ann!D44","v":1567},{"$f":"[1]ACS_16_5YR_B18104_with_ann!E44","v":172},{"$f":"[1]ACS_16_5YR_B18104_with_ann!F44","v":758},{"$f":"[1]ACS_16_5YR_B18104_with_ann!G44","v":116},{"$f":"[1]ACS_16_5YR_B18104_with_ann!H44","v":96},{"$f":"[1]ACS_16_5YR_B18104_with_ann!I44","v":55},{"$f":"[1]ACS_16_5YR_B18104_with_ann!J44","v":0},{"$f":"[1]ACS_16_5YR_B18104_with_ann!K44","v":12},{"$f":"[1]ACS_16_5YR_B18104_with_ann!L44","v":96},{"$f":"[1]ACS_16_5YR_B18104_with_ann!M44","v":55},{"$f":"[1]ACS_16_5YR_B18104_with_ann!N44","v":147},{"$f":"[1]ACS_16_5YR_B18104_with_ann!O44","v":61},{"$f":"[1]ACS_16_5YR_B18104_with_ann!P44","v":7},{"$f":"[1]ACS_16_5YR_B18104_with_ann!Q44","v":10},{"$f":"[1]ACS_16_5YR_B18104_with_ann!R44","v":140},{"$f":"[1]ACS_16_5YR_B18104_with_ann!S44","v":61},{"$f":"[1]ACS_16_5YR_B18104_with_ann!T44","v":357},{"$f":"[1]ACS_16_5YR_B18104_with_ann!U44","v":76},{"$f":"[1]ACS_16_5YR_B18104_with_ann!V44","v":10},{"$f":"[1]ACS_16_5YR_B18104_with_ann!W44","v":11},{"$f":"[1]ACS_16_5YR_B18104_with_ann!X44","v":347},{"$f":"[1]ACS_16_5YR_B18104_with_ann!Y44","v":79},{"$f":"[1]ACS_16_5YR_B18104_with_ann!Z44","v":106},{"$f":"[1]ACS_16_5YR_B18104_with_ann!AA44","v":42},{"$f":"[1]ACS_16_5YR_B18104_with_ann!AB44","v":0},{"$f":"[1]ACS_16_5YR_B18104_with_ann!AC44","v":12},{"$f":"[1]ACS_16_5YR_B18104_with_ann!AD44","v":106},{"$f":"[1]ACS_16_5YR_B18104_with_ann!AE44","v":42},{"$f":"[1]ACS_16_5YR_B18104_with_ann!AF44","v":52},{"$f":"[1]ACS_16_5YR_B18104_with_ann!AG44","v":33},{"$f":"[1]ACS_16_5YR_B18104_with_ann!AH44","v":5},{"$f":"[1]ACS_16_5YR_B18104_with_ann!AI44","v":8},{"$f":"[1]ACS_16_5YR_B18104_with_ann!AJ44","v":47},{"$f":"[1]ACS_16_5YR_B18104_with_ann!AK44","v":31},{"$f":"[1]ACS_16_5YR_B18104_with_ann!AL44","v":809},{"$f":"[1]ACS_16_5YR_B18104_with_ann!AM44","v":96},{"$f":"[1]ACS_16_5YR_B18104_with_ann!AN44","v":100},{"$f":"[1]ACS_16_5YR_B18104_with_ann!AO44","v":34},{"$f":"[1]ACS_16_5YR_B18104_with_ann!AP44","v":0},{"$f":"[1]ACS_16_5YR_B18104_with_ann!AQ44","v":12},{"$f":"[1]ACS_16_5YR_B18104_with_ann!AR44","v":100},{"$f":"[1]ACS_16_5YR_B18104_with_ann!AS44","v":34},{"$f":"[1]ACS_16_5YR_B18104_with_ann!AT44","v":117},{"$f":"[1]ACS_16_5YR_B18104_with_ann!AU44","v":55},{"$f":"[1]ACS_16_5YR_B18104_with_ann!AV44","v":13},{"$f":"[1]ACS_16_5YR_B18104_with_ann!AW44","v":12},{"$f":"[1]ACS_16_5YR_B18104_with_ann!AX44","v":104},{"$f":"[1]ACS_16_5YR_B18104_with_ann!AY44","v":54},{"$f":"[1]ACS_16_5YR_B18104_with_ann!AZ44","v":329},{"$f":"[1]ACS_16_5YR_B18104_with_ann!BA44","v":67},{"$f":"[1]ACS_16_5YR_B18104_with_ann!BB44","v":53},{"$f":"[1]ACS_16_5YR_B18104_with_ann!BC44","v":50},{"$f":"[1]ACS_16_5YR_B18104_with_ann!BD44","v":276},{"$f":"[1]ACS_16_5YR_B18104_with_ann!BE44","v":47},{"$f":"[1]ACS_16_5YR_B18104_with_ann!BF44","v":173},{"$f":"[1]ACS_16_5YR_B18104_with_ann!BG44","v":71},{"$f":"[1]ACS_16_5YR_B18104_with_ann!BH44","v":0},{"$f":"[1]ACS_16_5YR_B18104_with_ann!BI44","v":12},{"$f":"[1]ACS_16_5YR_B18104_with_ann!BJ44","v":173},{"$f":"[1]ACS_16_5YR_B18104_with_ann!BK44","v":71},{"$f":"[1]ACS_16_5YR_B18104_with_ann!BL44","v":90},{"$f":"[1]ACS_16_5YR_B18104_with_ann!BM44","v":47},{"$f":"[1]ACS_16_5YR_B18104_with_ann!BN44","v":6},{"$f":"[1]ACS_16_5YR_B18104_with_ann!BO44","v":8},{"$f":"[1]ACS_16_5YR_B18104_with_ann!BP44","v":84},{"$f":"[1]ACS_16_5YR_B18104_with_ann!BQ44","v":46}]
["06000US3300512260","0600000US3300519140","060",{"$f":"[1]ACS_16_5YR_B18104_with_ann!C45","v":"Chesterfield"},{"$f":"[1]ACS_16_5YR_B18104_with_ann!D45","v":3436},{"$f":"[1]ACS_16_5YR_B18104_with_ann!E45","v":73},{"$f":"[1]ACS_16_5YR_B18104_with_ann!F45","v":1879},{"$f":"[1]ACS_16_5YR_B18104_with_ann!G45","v":137},{"$f":"[1]ACS_16_5YR_B18104_with_ann!H45","v":452},{"$f":"[1]ACS_16_5YR_B18104_with_ann!I45","v":132},{"$f":"[1]ACS_16_5YR_B18104_with_ann!J45","v":37},{"$f":"[1]ACS_16_5YR_B18104_with_ann!K45","v":54},{"$f":"[1]ACS_16_5YR_B18104_with_ann!L45","v":415},{"$f":"[1]ACS_16_5YR_B18104_with_ann!M45","v":138},{"$f":"[1]ACS_16_5YR_B18104_with_ann!N45","v":366},{"$f":"[1]ACS_16_5YR_B18104_with_ann!O45","v":146},{"$f":"[1]ACS_16_5YR_B18104_with_ann!P45","v":25},{"$f":"[1]ACS_16_5YR_B18104_with_ann!Q45","v":38},{"$f":"[1]ACS_16_5YR_B18104_with_ann!R45","v":341},{"$f":"[1]ACS_16_5YR_B18104_with_ann!S45","v":142},{"$f":"[1]ACS_16_5YR_B18104_with_ann!T45","v":537},{"$f":"[1]ACS_16_5YR_B18104_with_ann!U45","v":175},{"$f":"[1]ACS_16_5YR_B18104_with_ann!V45","v":62},{"$f":"[1]ACS_16_5YR_B18104_with_ann!W45","v":94},{"$f":"[1]ACS_16_5YR_B18104_with_ann!X45","v":475},{"$f":"[1]ACS_16_5YR_B18104_with_ann!Y45","v":158},{"$f":"[1]ACS_16_5YR_B18104_with_ann!Z45","v":367},{"$f":"[1]ACS_16_5YR_B18104_with_ann!AA45","v":125},{"$f":"[1]ACS_16_5YR_B18104_with_ann!AB45","v":44},{"$f":"[1]ACS_16_5YR_B18104_with_ann!AC45","v":63},{"$f":"[1]ACS_16_5YR_B18104_with_ann!AD45","v":323},{"$f":"[1]ACS_16_5YR_B18104_with_ann!AE45","v":119},{"$f":"[1]ACS_16_5YR_B18104_with_ann!AF45","v":157},{"$f":"[1]ACS_16_5YR_B18104_with_ann!AG45","v":80},{"$f":"[1]ACS_16_5YR_B18104_with_ann!AH45","v":0},{"$f":"[1]ACS_16_5YR_B18104_with_ann!AI45","v":12},{"$f":"[1]ACS_16_5YR_B18104_with_ann!AJ45","v":157},{"$f":"[1]ACS_16_5YR_B18104_with_ann!AK45","v":80},{"$f":"[1]ACS_16_5YR_B18104_with_ann!AL45","v":1557},{"$f":"[1]ACS_16_5YR_B18104_with_ann!AM45","v":132},{"$f":"[1]ACS_16_5YR_B18104_with_ann!AN45","v":144},{"$f":"[1]ACS_16_5YR_B18104_with_ann!AO45","v":80},{"$f":"[1]ACS_16_5YR_B18104_with_ann!AP45","v":19},{"$f":"[1]ACS_16_5YR_B18104_with_ann!AQ45","v":28},{"$f":"[1]ACS_16_5YR_B18104_with_ann!AR45","v":125},{"$f":"[1]ACS_16_5YR_B18104_with_ann!AS45","v":68},{"$f":"[1]ACS_16_5YR_B18104_with_ann!AT45","v":323},{"$f":"[1]ACS_16_5YR_B18104_with_ann!AU45","v":125},{"$f":"[1]ACS_16_5YR_B18104_with_ann!AV45","v":0},{"$f":"[1]ACS_16_5YR_B18104_with_ann!AW45","v":12},{"$f":"[1]ACS_16_5YR_B18104_with_ann!AX45","v":323},{"$f":"[1]ACS_16_5YR_B18104_with_ann!AY45","v":125},{"$f":"[1]ACS_16_5YR_B18104_with_ann!AZ45","v":729},{"$f":"[1]ACS_16_5YR_B18104_with_ann!BA45","v":167},{"$f":"[1]ACS_16_5YR_B18104_with_ann!BB45","v":0},{"$f":"[1]ACS_16_5YR_B18104_with_ann!BC45","v":12},{"$f":"[1]ACS_16_5YR_B18104_with_ann!BD45","v":729},{"$f":"[1]ACS_16_5YR_B18104_with_ann!BE45","v":167},{"$f":"[1]ACS_16_5YR_B18104_with_ann!BF45","v":244},{"$f":"[1]ACS_16_5YR_B18104_with_ann!BG45","v":110},{"$f":"[1]ACS_16_5YR_B18104_with_ann!BH45","v":0},{"$f":"[1]ACS_16_5YR_B18104_with_ann!BI45","v":12},{"$f":"[1]ACS_16_5YR_B18104_with_ann!BJ45","v":244},{"$f":"[1]ACS_16_5YR_B18104_with_ann!BK45","v":110},{"$f":"[1]ACS_16_5YR_B18104_with_ann!BL45","v":117},{"$f":"[1]ACS_16_5YR_B18104_with_ann!BM45","v":76},{"$f":"[1]ACS_16_5YR_B18104_with_ann!BN45","v":0},{"$f":"[1]ACS_16_5YR_B18104_with_ann!BO45","v":12},{"$f":"[1]ACS_16_5YR_B18104_with_ann!BP45","v":117},{"$f":"[1]ACS_16_5YR_B18104_with_ann!BQ45","v":76}]
["06000US3300519140","0600000US3300526500","060",{"$f":"[1]ACS_16_5YR_B18104_with_ann!C46","v":"Dublin"},{"$f":"[1]ACS_16_5YR_B18104_with_ann!D46","v":1630},{"$f":"[1]ACS_16_5YR_B18104_with_ann!E46","v":209},{"$f":"[1]ACS_16_5YR_B18104_with_ann!F46","v":776},{"$f":"[1]ACS_16_5YR_B18104_with_ann!G46","v":113},{"$f":"[1]ACS_16_5YR_B18104_with_ann!H46","v":97},{"$f":"[1]ACS_16_5YR_B18104_with_ann!I46","v":40},{"$f":"[1]ACS_16_5YR_B18104_with_ann!J46","v":0},{"$f":"[1]ACS_16_5YR_B18104_with_ann!K46","v":12},{"$f":"[1]ACS_16_5YR_B18104_with_ann!L46","v":97},{"$f":"[1]ACS_16_5YR_B18104_with_ann!M46","v":40},{"$f":"[1]ACS_16_5YR_B18104_with_ann!N46","v":136},{"$f":"[1]ACS_16_5YR_B18104_with_ann!O46","v":55},{"$f":"[1]ACS_16_5YR_B18104_with_ann!P46","v":13},{"$f":"[1]ACS_16_5YR_B18104_with_ann!Q46","v":21},{"$f":"[1]ACS_16_5YR_B18104_with_ann!R46","v":123},{"$f":"[1]ACS_16_5YR_B18104_with_ann!S46","v":53},{"$f":"[1]ACS_16_5YR_B18104_with_ann!T46","v":338},{"$f":"[1]ACS_16_5YR_B18104_with_ann!U46","v":83},{"$f":"[1]ACS_16_5YR_B18104_with_ann!V46","v":2},{"$f":"[1]ACS_16_5YR_B18104_with_ann!W46","v":3},{"$f":"[1]ACS_16_5YR_B18104_with_ann!X46","v":336},{"$f":"[1]ACS_16_5YR_B18104_with_ann!Y46","v":82},{"$f":"[1]ACS_16_5YR_B18104_with_ann!Z46","v":153},{"$f":"[1]ACS_16_5YR_B18104_with_ann!AA46","v":64},{"$f":"[1]ACS_16_5YR_B18104_with_ann!AB46","v":0},{"$f":"[1]ACS_16_5YR_B18104_with_ann!AC46","v":12},{"$f":"[1]ACS_16_5YR_B18104_with_ann!AD46","v":153},{"$f":"[1]ACS_16_5YR_B18104_with_ann!AE46","v":64},{"$f":"[1]ACS_16_5YR_B18104_with_ann!AF46","v":52},{"$f":"[1]ACS_16_5YR_B18104_with_ann!AG46","v":26},{"$f":"[1]ACS_16_5YR_B18104_with_ann!AH46","v":0},{"$f":"[1]ACS_16_5YR_B18104_with_ann!AI46","v":12},{"$f":"[1]ACS_16_5YR_B18104_with_ann!AJ46","v":52},{"$f":"[1]ACS_16_5YR_B18104_with_ann!AK46","v":26},{"$f":"[1]ACS_16_5YR_B18104_with_ann!AL46","v":854},{"$f":"[1]ACS_16_5YR_B18104_with_ann!AM46","v":132},{"$f":"[1]ACS_16_5YR_B18104_with_ann!AN46","v":149},{"$f":"[1]ACS_16_5YR_B18104_with_ann!AO46","v":44},{"$f":"[1]ACS_16_5YR_B18104_with_ann!AP46","v":0},{"$f":"[1]ACS_16_5YR_B18104_with_ann!AQ46","v":12},{"$f":"[1]ACS_16_5YR_B18104_with_ann!AR46","v":149},{"$f":"[1]ACS_16_5YR_B18104_with_ann!AS46","v":44},{"$f":"[1]ACS_16_5YR_B18104_with_ann!AT46","v":63},{"$f":"[1]ACS_16_5YR_B18104_with_ann!AU46","v":26},{"$f":"[1]ACS_16_5YR_B18104_with_ann!AV46","v":0},{"$f":"[1]ACS_16_5YR_B18104_with_ann!AW46","v":12},{"$f":"[1]ACS_16_5YR_B18104_with_ann!AX46","v":63},{"$f":"[1]ACS_16_5YR_B18104_with_ann!AY46","v":26},{"$f":"[1]ACS_16_5YR_B18104_with_ann!AZ46","v":404},{"$f":"[1]ACS_16_5YR_B18104_with_ann!BA46","v":97},{"$f":"[1]ACS_16_5YR_B18104_with_ann!BB46","v":0},{"$f":"[1]ACS_16_5YR_B18104_with_ann!BC46","v":12},{"$f":"[1]ACS_16_5YR_B18104_with_ann!BD46","v":404},{"$f":"[1]ACS_16_5YR_B18104_with_ann!BE46","v":97},{"$f":"[1]ACS_16_5YR_B18104_with_ann!BF46","v":162},{"$f":"[1]ACS_16_5YR_B18104_with_ann!BG46","v":54},{"$f":"[1]ACS_16_5YR_B18104_with_ann!BH46","v":0},{"$f":"[1]ACS_16_5YR_B18104_with_ann!BI46","v":12},{"$f":"[1]ACS_16_5YR_B18104_with_ann!BJ46","v":162},{"$f":"[1]ACS_16_5YR_B18104_with_ann!BK46","v":54},{"$f":"[1]ACS_16_5YR_B18104_with_ann!BL46","v":76},{"$f":"[1]ACS_16_5YR_B18104_with_ann!BM46","v":51},{"$f":"[1]ACS_16_5YR_B18104_with_ann!BN46","v":3},{"$f":"[1]ACS_16_5YR_B18104_with_ann!BO46","v":4},{"$f":"[1]ACS_16_5YR_B18104_with_ann!BP46","v":73},{"$f":"[1]ACS_16_5YR_B18104_with_ann!BQ46","v":50}]
["06000US3300526500","0600000US3300529220","060",{"$f":"[1]ACS_16_5YR_B18104_with_ann!C47","v":"Fitzwilliam"},{"$f":"[1]ACS_16_5YR_B18104_with_ann!D47","v":2209},{"$f":"[1]ACS_16_5YR_B18104_with_ann!E47","v":360},{"$f":"[1]ACS_16_5YR_B18104_with_ann!F47","v":1170},{"$f":"[1]ACS_16_5YR_B18104_with_ann!G47","v":214},{"$f":"[1]ACS_16_5YR_B18104_with_ann!H47","v":101},{"$f":"[1]ACS_16_5YR_B18104_with_ann!I47","v":36},{"$f":"[1]ACS_16_5YR_B18104_with_ann!J47","v":4},{"$f":"[1]ACS_16_5YR_B18104_with_ann!K47","v":5},{"$f":"[1]ACS_16_5YR_B18104_with_ann!L47","v":97},{"$f":"[1]ACS_16_5YR_B18104_with_ann!M47","v":35},{"$f":"[1]ACS_16_5YR_B18104_with_ann!N47","v":226},{"$f":"[1]ACS_16_5YR_B18104_with_ann!O47","v":92},{"$f":"[1]ACS_16_5YR_B18104_with_ann!P47","v":0},{"$f":"[1]ACS_16_5YR_B18104_with_ann!Q47","v":12},{"$f":"[1]ACS_16_5YR_B18104_with_ann!R47","v":226},{"$f":"[1]ACS_16_5YR_B18104_with_ann!S47","v":92},{"$f":"[1]ACS_16_5YR_B18104_with_ann!T47","v":605},{"$f":"[1]ACS_16_5YR_B18104_with_ann!U47","v":177},{"$f":"[1]ACS_16_5YR_B18104_with_ann!V47","v":16},{"$f":"[1]ACS_16_5YR_B18104_with_ann!W47","v":21},{"$f":"[1]ACS_16_5YR_B18104_with_ann!X47","v":589},{"$f":"[1]ACS_16_5YR_B18104_with_ann!Y47","v":179},{"$f":"[1]ACS_16_5YR_B18104_with_ann!Z47","v":195},{"$f":"[1]ACS_16_5YR_B18104_with_ann!AA47","v":55},{"$f":"[1]ACS_16_5YR_B18104_with_ann!AB47","v":5},{"$f":"[1]ACS_16_5YR_B18104_with_ann!AC47","v":8},{"$f":"[1]ACS_16_5YR_B18104_with_ann!AD47","v":190},{"$f":"[1]ACS_16_5YR_B18104_with_ann!AE47","v":52},{"$f":"[1]ACS_16_5YR_B18104_with_ann!AF47","v":43},{"$f":"[1]ACS_16_5YR_B18104_with_ann!AG47","v":19},{"$f":"[1]ACS_16_5YR_B18104_with_ann!AH47","v":0},{"$f":"[1]ACS_16_5YR_B18104_with_ann!AI47","v":12},{"$f":"[1]ACS_16_5YR_B18104_with_ann!AJ47","v":43},{"$f":"[1]ACS_16_5YR_B18104_with_ann!AK47","v":19},{"$f":"[1]ACS_16_5YR_B18104_with_ann!AL47","v":1039},{"$f":"[1]ACS_16_5YR_B18104_with_ann!AM47","v":177},{"$f":"[1]ACS_16_5YR_B18104_with_ann!AN47","v":106},{"$f":"[1]ACS_16_5YR_B18104_with_ann!AO47","v":53},{"$f":"[1]ACS_16_5YR_B18104_with_ann!AP47","v":4},{"$f":"[1]ACS_16_5YR_B18104_with_ann!AQ47","v":6},{"$f":"[1]ACS_16_5YR_B18104_with_ann!AR47","v":102},{"$f":"[1]ACS_16_5YR_B18104_with_ann!AS47","v":52},{"$f":"[1]ACS_16_5YR_B18104_with_ann!AT47","v":151},{"$f":"[1]ACS_16_5YR_B18104_with_ann!AU47","v":78},{"$f":"[1]ACS_16_5YR_B18104_with_ann!AV47","v":0},{"$f":"[1]ACS_16_5YR_B18104_with_ann!AW47","v":12},{"$f":"[1]ACS_16_5YR_B18104_with_ann!AX47","v":151},{"$f":"[1]ACS_16_5YR_B18104_with_ann!AY47","v":78},{"$f":"[1]ACS_16_5YR_B18104_with_ann!AZ47","v":484},{"$f":"[1]ACS_16_5YR_B18104_with_ann!BA47","v":84},{"$f":"[1]ACS_16_5YR_B18104_with_ann!BB47","v":0},{"$f":"[1]ACS_16_5YR_B18104_with_ann!BC47","v":12},{"$f":"[1]ACS_16_5YR_B18104_with_ann!BD47","v":484},{"$f":"[1]ACS_16_5YR_B18104_with_ann!BE47","v":84},{"$f":"[1]ACS_16_5YR_B18104_with_ann!BF47","v":251},{"$f":"[1]ACS_16_5YR_B18104_with_ann!BG47","v":106},{"$f":"[1]ACS_16_5YR_B18104_with_ann!BH47","v":17},{"$f":"[1]ACS_16_5YR_B18104_with_ann!BI47","v":20},{"$f":"[1]ACS_16_5YR_B18104_with_ann!BJ47","v":234},{"$f":"[1]ACS_16_5YR_B18104_with_ann!BK47","v":104},{"$f":"[1]ACS_16_5YR_B18104_with_ann!BL47","v":47},{"$f":"[1]ACS_16_5YR_B18104_with_ann!BM47","v":27},{"$f":"[1]ACS_16_5YR_B18104_with_ann!BN47","v":7},{"$f":"[1]ACS_16_5YR_B18104_with_ann!BO47","v":9},{"$f":"[1]ACS_16_5YR_B18104_with_ann!BP47","v":40},{"$f":"[1]ACS_16_5YR_B18104_with_ann!BQ47","v":25}]
["06000US3300529220","0600000US3300534420","060",{"$f":"[1]ACS_16_5YR_B18104_with_ann!C48","v":"Gilsum"},{"$f":"[1]ACS_16_5YR_B18104_with_ann!D48","v":812},{"$f":"[1]ACS_16_5YR_B18104_with_ann!E48","v":136},{"$f":"[1]ACS_16_5YR_B18104_with_ann!F48","v":419},{"$f":"[1]ACS_16_5YR_B18104_with_ann!G48","v":80},{"$f":"[1]ACS_16_5YR_B18104_with_ann!H48","v":52},{"$f":"[1]ACS_16_5YR_B18104_with_ann!I48","v":31},{"$f":"[1]ACS_16_5YR_B18104_with_ann!J48","v":3},{"$f":"[1]ACS_16_5YR_B18104_with_ann!K48","v":5},{"$f":"[1]ACS_16_5YR_B18104_with_ann!L48","v":49},{"$f":"[1]ACS_16_5YR_B18104_with_ann!M48","v":30},{"$f":"[1]ACS_16_5YR_B18104_with_ann!N48","v":119},{"$f":"[1]ACS_16_5YR_B18104_with_ann!O48","v":56},{"$f":"[1]ACS_16_5YR_B18104_with_ann!P48","v":4},{"$f":"[1]ACS_16_5YR_B18104_with_ann!Q48","v":7},{"$f":"[1]ACS_16_5YR_B18104_with_ann!R48","v":115},{"$f":"[1]ACS_16_5YR_B18104_with_ann!S48","v":56},{"$f":"[1]ACS_16_5YR_B18104_with_ann!T48","v":158},{"$f":"[1]ACS_16_5YR_B18104_with_ann!U48","v":38},{"$f":"[1]ACS_16_5YR_B18104_with_ann!V48","v":24},{"$f":"[1]ACS_16_5YR_B18104_with_ann!W48","v":17},{"$f":"[1]ACS_16_5YR_B18104_with_ann!X48","v":134},{"$f":"[1]ACS_16_5YR_B18104_with_ann!Y48","v":32},{"$f":"[1]ACS_16_5YR_B18104_with_ann!Z48","v":76},{"$f":"[1]ACS_16_5YR_B18104_with_ann!AA48","v":29},{"$f":"[1]ACS_16_5YR_B18104_with_ann!AB48","v":6},{"$f":"[1]ACS_16_5YR_B18104_with_ann!AC48","v":7},{"$f":"[1]ACS_16_5YR_B18104_with_ann!AD48","v":70},{"$f":"[1]ACS_16_5YR_B18104_with_ann!AE48","v":28},{"$f":"[1]ACS_16_5YR_B18104_with_ann!AF48","v":14},{"$f":"[1]ACS_16_5YR_B18104_with_ann!AG48","v":10},{"$f":"[1]ACS_16_5YR_B18104_with_ann!AH48","v":5},{"$f":"[1]ACS_16_5YR_B18104_with_ann!AI48","v":8},{"$f":"[1]ACS_16_5YR_B18104_with_ann!AJ48","v":9},{"$f":"[1]ACS_16_5YR_B18104_with_ann!AK48","v":7},{"$f":"[1]ACS_16_5YR_B18104_with_ann!AL48","v":393},{"$f":"[1]ACS_16_5YR_B18104_with_ann!AM48","v":74},{"$f":"[1]ACS_16_5YR_B18104_with_ann!AN48","v":38},{"$f":"[1]ACS_16_5YR_B18104_with_ann!AO48","v":29},{"$f":"[1]ACS_16_5YR_B18104_with_ann!AP48","v":4},{"$f":"[1]ACS_16_5YR_B18104_with_ann!AQ48","v":4},{"$f":"[1]ACS_16_5YR_B18104_with_ann!AR48","v":34},{"$f":"[1]ACS_16_5YR_B18104_with_ann!AS48","v":29},{"$f":"[1]ACS_16_5YR_B18104_with_ann!AT48","v":95},{"$f":"[1]ACS_16_5YR_B18104_with_ann!AU48","v":35},{"$f":"[1]ACS_16_5YR_B18104_with_ann!AV48","v":0},{"$f":"[1]ACS_16_5YR_B18104_with_ann!AW48","v":12},{"$f":"[1]ACS_16_5YR_B18104_with_ann!AX48","v":95},{"$f":"[1]ACS_16_5YR_B18104_with_ann!AY48","v":35},{"$f":"[1]ACS_16_5YR_B18104_with_ann!AZ48","v":170},{"$f":"[1]ACS_16_5YR_B18104_with_ann!BA48","v":44},{"$f":"[1]ACS_16_5YR_B18104_with_ann!BB48","v":4},{"$f":"[1]ACS_16_5YR_B18104_with_ann!BC48","v":4},{"$f":"[1]ACS_16_5YR_B18104_with_ann!BD48","v":166},{"$f":"[1]ACS_16_5YR_B18104_with_ann!BE48","v":42},{"$f":"[1]ACS_16_5YR_B18104_with_ann!BF48","v":58},{"$f":"[1]ACS_16_5YR_B18104_with_ann!BG48","v":25},{"$f":"[1]ACS_16_5YR_B18104_with_ann!BH48","v":0},{"$f":"[1]ACS_16_5YR_B18104_with_ann!BI48","v":12},{"$f":"[1]ACS_16_5YR_B18104_with_ann!BJ48","v":58},{"$f":"[1]ACS_16_5YR_B18104_with_ann!BK48","v":25},{"$f":"[1]ACS_16_5YR_B18104_with_ann!BL48","v":32},{"$f":"[1]ACS_16_5YR_B18104_with_ann!BM48","v":14},{"$f":"[1]ACS_16_5YR_B18104_with_ann!BN48","v":9},{"$f":"[1]ACS_16_5YR_B18104_with_ann!BO48","v":10},{"$f":"[1]ACS_16_5YR_B18104_with_ann!BP48","v":23},{"$f":"[1]ACS_16_5YR_B18104_with_ann!BQ48","v":11}]
["06000US3300534420","0600000US3300536660","060",{"$f":"[1]ACS_16_5YR_B18104_with_ann!C49","v":"Harrisville"},{"$f":"[1]ACS_16_5YR_B18104_with_ann!D49","v":927},{"$f":"[1]ACS_16_5YR_B18104_with_ann!E49","v":174},{"$f":"[1]ACS_16_5YR_B18104_with_ann!F49","v":419},{"$f":"[1]ACS_16_5YR_B18104_with_ann!G49","v":76},{"$f":"[1]ACS_16_5YR_B18104_with_ann!H49","v":47},{"$f":"[1]ACS_16_5YR_B18104_with_ann!I49","v":26},{"$f":"[1]ACS_16_5YR_B18104_with_ann!J49","v":3},{"$f":"[1]ACS_16_5YR_B18104_with_ann!K49","v":5},{"$f":"[1]ACS_16_5YR_B18104_with_ann!L49","v":44},{"$f":"[1]ACS_16_5YR_B18104_with_ann!M49","v":26},{"$f":"[1]ACS_16_5YR_B18104_with_ann!N49","v":38},{"$f":"[1]ACS_16_5YR_B18104_with_ann!O49","v":20},{"$f":"[1]ACS_16_5YR_B18104_with_ann!P49","v":0},{"$f":"[1]ACS_16_5YR_B18104_with_ann!Q49","v":12},{"$f":"[1]ACS_16_5YR_B18104_with_ann!R49","v":38},{"$f":"[1]ACS_16_5YR_B18104_with_ann!S49","v":20},{"$f":"[1]ACS_16_5YR_B18104_with_ann!T49","v":190},{"$f":"[1]ACS_16_5YR_B18104_with_ann!U49","v":52},{"$f":"[1]ACS_16_5YR_B18104_with_ann!V49","v":17},{"$f":"[1]ACS_16_5YR_B18104_with_ann!W49","v":16},{"$f":"[1]ACS_16_5YR_B18104_with_ann!X49","v":173},{"$f":"[1]ACS_16_5YR_B18104_with_ann!Y49","v":50},{"$f":"[1]ACS_16_5YR_B18104_with_ann!Z49","v":91},{"$f":"[1]ACS_16_5YR_B18104_with_ann!AA49","v":28},{"$f":"[1]ACS_16_5YR_B18104_with_ann!AB49","v":3},{"$f":"[1]ACS_16_5YR_B18104_with_ann!AC49","v":4},{"$f":"[1]ACS_16_5YR_B18104_with_ann!AD49","v":88},{"$f":"[1]ACS_16_5YR_B18104_with_ann!AE49","v":28},{"$f":"[1]ACS_16_5YR_B18104_with_ann!AF49","v":53},{"$f":"[1]ACS_16_5YR_B18104_with_ann!AG49","v":20},{"$f":"[1]ACS_16_5YR_B18104_with_ann!AH49","v":4},{"$f":"[1]ACS_16_5YR_B18104_with_ann!AI49","v":6},{"$f":"[1]ACS_16_5YR_B18104_with_ann!AJ49","v":49},{"$f":"[1]ACS_16_5YR_B18104_with_ann!AK49","v":20},{"$f":"[1]ACS_16_5YR_B18104_with_ann!AL49","v":508},{"$f":"[1]ACS_16_5YR_B18104_with_ann!AM49","v":108},{"$f":"[1]ACS_16_5YR_B18104_with_ann!AN49","v":52},{"$f":"[1]ACS_16_5YR_B18104_with_ann!AO49","v":39},{"$f":"[1]ACS_16_5YR_B18104_with_ann!AP49","v":0},{"$f":"[1]ACS_16_5YR_B18104_with_ann!AQ49","v":12},{"$f":"[1]ACS_16_5YR_B18104_with_ann!AR49","v":52},{"$f":"[1]ACS_16_5YR_B18104_with_ann!AS49","v":39},{"$f":"[1]ACS_16_5YR_B18104_with_ann!AT49","v":89},{"$f":"[1]ACS_16_5YR_B18104_with_ann!AU49","v":40},{"$f":"[1]ACS_16_5YR_B18104_with_ann!AV49","v":4},{"$f":"[1]ACS_16_5YR_B18104_with_ann!AW49","v":7},{"$f":"[1]ACS_16_5YR_B18104_with_ann!AX49","v":85},{"$f":"[1]ACS_16_5YR_B18104_with_ann!AY49","v":40},{"$f":"[1]ACS_16_5YR_B18104_with_ann!AZ49","v":220},{"$f":"[1]ACS_16_5YR_B18104_with_ann!BA49","v":61},{"$f":"[1]ACS_16_5YR_B18104_with_ann!BB49","v":10},{"$f":"[1]ACS_16_5YR_B18104_with_ann!BC49","v":13},{"$f":"[1]ACS_16_5YR_B18104_with_ann!BD49","v":210},{"$f":"[1]ACS_16_5YR_B18104_with_ann!BE49","v":59},{"$f":"[1]ACS_16_5YR_B18104_with_ann!BF49","v":107},{"$f":"[1]ACS_16_5YR_B18104_with_ann!BG49","v":30},{"$f":"[1]ACS_16_5YR_B18104_with_ann!BH49","v":8},{"$f":"[1]ACS_16_5YR_B18104_with_ann!BI49","v":10},{"$f":"[1]ACS_16_5YR_B18104_with_ann!BJ49","v":99},{"$f":"[1]ACS_16_5YR_B18104_with_ann!BK49","v":29},{"$f":"[1]ACS_16_5YR_B18104_with_ann!BL49","v":40},{"$f":"[1]ACS_16_5YR_B18104_with_ann!BM49","v":22},{"$f":"[1]ACS_16_5YR_B18104_with_ann!BN49","v":0},{"$f":"[1]ACS_16_5YR_B18104_with_ann!BO49","v":12},{"$f":"[1]ACS_16_5YR_B18104_with_ann!BP49","v":40},{"$f":"[1]ACS_16_5YR_B18104_with_ann!BQ49","v":22}]
["06000US3300536660","0600000US3300538500","060",{"$f":"[1]ACS_16_5YR_B18104_with_ann!C50","v":"Hinsdale"},{"$f":"[1]ACS_16_5YR_B18104_with_ann!D50","v":3881},{"$f":"[1]ACS_16_5YR_B18104_with_ann!E50","v":59},{"$f":"[1]ACS_16_5YR_B18104_with_ann!F50","v":2064},{"$f":"[1]ACS_16_5YR_B18104_with_ann!G50","v":204},{"$f":"[1]ACS_16_5YR_B18104_with_ann!H50","v":277},{"$f":"[1]ACS_16_5YR_B18104_with_ann!I50","v":125},{"$f":"[1]ACS_16_5YR_B18104_with_ann!J50","v":18},{"$f":"[1]ACS_16_5YR_B18104_with_ann!K50","v":32},{"$f":"[1]ACS_16_5YR_B18104_with_ann!L50","v":259},{"$f":"[1]ACS_16_5YR_B18104_with_ann!M50","v":112},{"$f":"[1]ACS_16_5YR_B18104_with_ann!N50","v":294},{"$f":"[1]ACS_16_5YR_B18104_with_ann!O50","v":122},{"$f":"[1]ACS_16_5YR_B18104_with_ann!P50","v":50},{"$f":"[1]ACS_16_5YR_B18104_with_ann!Q50","v":64},{"$f":"[1]ACS_16_5YR_B18104_with_ann!R50","v":244},{"$f":"[1]ACS_16_5YR_B18104_with_ann!S50","v":107},{"$f":"[1]ACS_16_5YR_B18104_with_ann!T50","v":878},{"$f":"[1]ACS_16_5YR_B18104_with_ann!U50","v":165},{"$f":"[1]ACS_16_5YR_B18104_with_ann!V50","v":42},{"$f":"[1]ACS_16_5YR_B18104_with_ann!W50","v":47},{"$f":"[1]ACS_16_5YR_B18104_with_ann!X50","v":836},{"$f":"[1]ACS_16_5YR_B18104_with_ann!Y50","v":171},{"$f":"[1]ACS_16_5YR_B18104_with_ann!Z50","v":433},{"$f":"[1]ACS_16_5YR_B18104_with_ann!AA50","v":236},{"$f":"[1]ACS_16_5YR_B18104_with_ann!AB50","v":223},{"$f":"[1]ACS_16_5YR_B18104_with_ann!AC50","v":226},{"$f":"[1]ACS_16_5YR_B18104_with_ann!AD50","v":210},{"$f":"[1]ACS_16_5YR_B18104_with_ann!AE50","v":116},{"$f":"[1]ACS_16_5YR_B18104_with_ann!AF50","v":182},{"$f":"[1]ACS_16_5YR_B18104_with_ann!AG50","v":113},{"$f":"[1]ACS_16_5YR_B18104_with_ann!AH50","v":14},{"$f":"[1]ACS_16_5YR_B18104_with_ann!AI50","v":19},{"$f":"[1]ACS_16_5YR_B18104_with_ann!AJ50","v":168},{"$f":"[1]ACS_16_5YR_B18104_with_ann!AK50","v":113},{"$f":"[1]ACS_16_5YR_B18104_with_ann!AL50","v":1817},{"$f":"[1]ACS_16_5YR_B18104_with_ann!AM50","v":205},{"$f":"[1]ACS_16_5YR_B18104_with_ann!AN50","v":225},{"$f":"[1]ACS_16_5YR_B18104_with_ann!AO50","v":70},{"$f":"[1]ACS_16_5YR_B18104_with_ann!AP50","v":0},{"$f":"[1]ACS_16_5YR_B18104_with_ann!AQ50","v":12},{"$f":"[1]ACS_16_5YR_B18104_with_ann!AR50","v":225},{"$f":"[1]ACS_16_5YR_B18104_with_ann!AS50","v":70},{"$f":"[1]ACS_16_5YR_B18104_with_ann!AT50","v":306},{"$f":"[1]ACS_16_5YR_B18104_with_ann!AU50","v":147},{"$f":"[1]ACS_16_5YR_B18104_with_ann!AV50","v":0},{"$f":"[1]ACS_16_5YR_B18104_with_ann!AW50","v":12},{"$f":"[1]ACS_16_5YR_B18104_with_ann!AX50","v":306},{"$f":"[1]ACS_16_5YR_B18104_with_ann!AY50","v":147},{"$f":"[1]ACS_16_5YR_B18104_with_ann!AZ50","v":843},{"$f":"[1]ACS_16_5YR_B18104_with_ann!BA50","v":127},{"$f":"[1]ACS_16_5YR_B18104_with_ann!BB50","v":26},{"$f":"[1]ACS_16_5YR_B18104_with_ann!BC50","v":25},{"$f":"[1]ACS_16_5YR_B18104_with_ann!BD50","v":817},{"$f":"[1]ACS_16_5YR_B18104_with_ann!BE50","v":121},{"$f":"[1]ACS_16_5YR_B18104_with_ann!BF50","v":214},{"$f":"[1]ACS_16_5YR_B18104_with_ann!BG50","v":97},{"$f":"[1]ACS_16_5YR_B18104_with_ann!BH50","v":17},{"$f":"[1]ACS_16_5YR_B18104_with_ann!BI50","v":17},{"$f":"[1]ACS_16_5YR_B18104_with_ann!BJ50","v":197},{"$f":"[1]ACS_16_5YR_B18104_with_ann!BK50","v":97},{"$f":"[1]ACS_16_5YR_B18104_with_ann!BL50","v":229},{"$f":"[1]ACS_16_5YR_B18104_with_ann!BM50","v":155},{"$f":"[1]ACS_16_5YR_B18104_with_ann!BN50","v":0},{"$f":"[1]ACS_16_5YR_B18104_with_ann!BO50","v":12},{"$f":"[1]ACS_16_5YR_B18104_with_ann!BP50","v":229},{"$f":"[1]ACS_16_5YR_B18104_with_ann!BQ50","v":155}]
["06000US3300538500","0600000US3300539300","060",{"$f":"[1]ACS_16_5YR_B18104_with_ann!C51","v":"Jaffrey"},{"$f":"[1]ACS_16_5YR_B18104_with_ann!D51","v":5157},{"$f":"[1]ACS_16_5YR_B18104_with_ann!E51","v":101},{"$f":"[1]ACS_16_5YR_B18104_with_ann!F51","v":2617},{"$f":"[1]ACS_16_5YR_B18104_with_ann!G51","v":209},{"$f":"[1]ACS_16_5YR_B18104_with_ann!H51","v":566},{"$f":"[1]ACS_16_5YR_B18104_with_ann!I51","v":154},{"$f":"[1]ACS_16_5YR_B18104_with_ann!J51","v":34},{"$f":"[1]ACS_16_5YR_B18104_with_ann!K51","v":42},{"$f":"[1]ACS_16_5YR_B18104_with_ann!L51","v":532},{"$f":"[1]ACS_16_5YR_B18104_with_ann!M51","v":157},{"$f":"[1]ACS_16_5YR_B18104_with_ann!N51","v":408},{"$f":"[1]ACS_16_5YR_B18104_with_ann!O51","v":190},{"$f":"[1]ACS_16_5YR_B18104_with_ann!P51","v":31},{"$f":"[1]ACS_16_5YR_B18104_with_ann!Q51","v":56},{"$f":"[1]ACS_16_5YR_B18104_with_ann!R51","v":377},{"$f":"[1]ACS_16_5YR_B18104_with_ann!S51","v":187},{"$f":"[1]ACS_16_5YR_B18104_with_ann!T51","v":1310},{"$f":"[1]ACS_16_5YR_B18104_with_ann!U51","v":200},{"$f":"[1]ACS_16_5YR_B18104_with_ann!V51","v":113},{"$f":"[1]ACS_16_5YR_B18104_with_ann!W51","v":89},{"$f":"[1]ACS_16_5YR_B18104_with_ann!X51","v":1197},{"$f":"[1]ACS_16_5YR_B18104_with_ann!Y51","v":182},{"$f":"[1]ACS_16_5YR_B18104_with_ann!Z51","v":159},{"$f":"[1]ACS_16_5YR_B18104_with_ann!AA51","v":87},{"$f":"[1]ACS_16_5YR_B18104_with_ann!AB51","v":0},{"$f":"[1]ACS_16_5YR_B18104_with_ann!AC51","v":17},{"$f":"[1]ACS_16_5YR_B18104_with_ann!AD51","v":159},{"$f":"[1]ACS_16_5YR_B18104_with_ann!AE51","v":87},{"$f":"[1]ACS_16_5YR_B18104_with_ann!AF51","v":174},{"$f":"[1]ACS_16_5YR_B18104_with_ann!AG51","v":110},{"$f":"[1]ACS_16_5YR_B18104_with_ann!AH51","v":0},{"$f":"[1]ACS_16_5YR_B18104_with_ann!AI51","v":17},{"$f":"[1]ACS_16_5YR_B18104_with_ann!AJ51","v":174},{"$f":"[1]ACS_16_5YR_B18104_with_ann!AK51","v":110},{"$f":"[1]ACS_16_5YR_B18104_with_ann!AL51","v":2540},{"$f":"[1]ACS_16_5YR_B18104_with_ann!AM51","v":218},{"$f":"[1]ACS_16_5YR_B18104_with_ann!AN51","v":617},{"$f":"[1]ACS_16_5YR_B18104_with_ann!AO51","v":129},{"$f":"[1]ACS_16_5YR_B18104_with_ann!AP51","v":95},{"$f":"[1]ACS_16_5YR_B18104_with_ann!AQ51","v":95},{"$f":"[1]ACS_16_5YR_B18104_with_ann!AR51","v":522},{"$f":"[1]ACS_16_5YR_B18104_with_ann!AS51","v":148},{"$f":"[1]ACS_16_5YR_B18104_with_ann!AT51","v":307},{"$f":"[1]ACS_16_5YR_B18104_with_ann!AU51","v":170},{"$f":"[1]ACS_16_5YR_B18104_with_ann!AV51","v":0},{"$f":"[1]ACS_16_5YR_B18104_with_ann!AW51","v":17},{"$f":"[1]ACS_16_5YR_B18104_with_ann!AX51","v":307},{"$f":"[1]ACS_16_5YR_B18104_with_ann!AY51","v":170},{"$f":"[1]ACS_16_5YR_B18104_with_ann!AZ51","v":1144},{"$f":"[1]ACS_16_5YR_B18104_with_ann!BA51","v":160},{"$f":"[1]ACS_16_5YR_B18104_with_ann!BB51","v":65},{"$f":"[1]ACS_16_5YR_B18104_with_ann!BC51","v":74},{"$f":"[1]ACS_16_5YR_B18104_with_ann!BD51","v":1079},{"$f":"[1]ACS_16_5YR_B18104_with_ann!BE51","v":149},{"$f":"[1]ACS_16_5YR_B18104_with_ann!BF51","v":276},{"$f":"[1]ACS_16_5YR_B18104_with_ann!BG51","v":101},{"$f":"[1]ACS_16_5YR_B18104_with_ann!BH51","v":0},{"$f":"[1]ACS_16_5YR_B18104_with_ann!BI51","v":17},{"$f":"[1]ACS_16_5YR_B18104_with_ann!BJ51","v":276},{"$f":"[1]ACS_16_5YR_B18104_with_ann!BK51","v":101},{"$f":"[1]ACS_16_5YR_B18104_with_ann!BL51","v":196},{"$f":"[1]ACS_16_5YR_B18104_with_ann!BM51","v":97},{"$f":"[1]ACS_16_5YR_B18104_with_ann!BN51","v":69},{"$f":"[1]ACS_16_5YR_B18104_with_ann!BO51","v":82},{"$f":"[1]ACS_16_5YR_B18104_with_ann!BP51","v":127},{"$f":"[1]ACS_16_5YR_B18104_with_ann!BQ51","v":65}]
["06000US3300539300","0600000US3300545460","060",{"$f":"[1]ACS_16_5YR_B18104_with_ann!C52","v":"Keene"},{"$f":"[1]ACS_16_5YR_B18104_with_ann!D52","v":21557},{"$f":"[1]ACS_16_5YR_B18104_with_ann!E52","v":165},{"$f":"[1]ACS_16_5YR_B18104_with_ann!F52","v":10500},{"$f":"[1]ACS_16_5YR_B18104_with_ann!G52","v":345},{"$f":"[1]ACS_16_5YR_B18104_with_ann!H52","v":1379},{"$f":"[1]ACS_16_5YR_B18104_with_ann!I52","v":180},{"$f":"[1]ACS_16_5YR_B18104_with_ann!J52","v":102},{"$f":"[1]ACS_16_5YR_B18104_with_ann!K52","v":47},{"$f":"[1]ACS_16_5YR_B18104_with_ann!L52","v":1277},{"$f":"[1]ACS_16_5YR_B18104_with_ann!M52","v":172},{"$f":"[1]ACS_16_5YR_B18104_with_ann!N52","v":3702},{"$f":"[1]ACS_16_5YR_B18104_with_ann!O52","v":372},{"$f":"[1]ACS_16_5YR_B18104_with_ann!P52","v":315},{"$f":"[1]ACS_16_5YR_B18104_with_ann!Q52","v":143},{"$f":"[1]ACS_16_5YR_B18104_with_ann!R52","v":3387},{"$f":"[1]ACS_16_5YR_B18104_with_ann!S52","v":395},{"$f":"[1]ACS_16_5YR_B18104_with_ann!T52","v":3790},{"$f":"[1]ACS_16_5YR_B18104_with_ann!U52","v":283},{"$f":"[1]ACS_16_5YR_B18104_with_ann!V52","v":134},{"$f":"[1]ACS_16_5YR_B18104_with_ann!W52","v":106},{"$f":"[1]ACS_16_5YR_B18104_with_ann!X52","v":3656},{"$f":"[1]ACS_16_5YR_B18104_with_ann!Y52","v":313},{"$f":"[1]ACS_16_5YR_B18104_with_ann!Z52","v":899},{"$f":"[1]ACS_16_5YR_B18104_with_ann!AA52","v":135},{"$f":"[1]ACS_16_5YR_B18104_with_ann!AB52","v":15},{"$f":"[1]ACS_16_5YR_B18104_with_ann!AC52","v":24},{"$f":"[1]ACS_16_5YR_B18104_with_ann!AD52","v":884},{"$f":"[1]ACS_16_5YR_B18104_with_ann!AE52","v":137},{"$f":"[1]ACS_16_5YR_B18104_with_ann!AF52","v":730},{"$f":"[1]ACS_16_5YR_B18104_with_ann!AG52","v":148},{"$f":"[1]ACS_16_5YR_B18104_with_ann!AH52","v":90},{"$f":"[1]ACS_16_5YR_B18104_with_ann!AI52","v":67},{"$f":"[1]ACS_16_5YR_B18104_with_ann!AJ52","v":640},{"$f":"[1]ACS_16_5YR_B18104_with_ann!AK52","v":146},{"$f":"[1]ACS_16_5YR_B18104_with_ann!AL52","v":11057},{"$f":"[1]ACS_16_5YR_B18104_with_ann!AM52","v":383},{"$f":"[1]ACS_16_5YR_B18104_with_ann!AN52","v":1041},{"$f":"[1]ACS_16_5YR_B18104_with_ann!AO52","v":198},{"$f":"[1]ACS_16_5YR_B18104_with_ann!AP52","v":60},{"$f":"[1]ACS_16_5YR_B18104_with_ann!AQ52","v":72},{"$f":"[1]ACS_16_5YR_B18104_with_ann!AR52","v":981},{"$f":"[1]ACS_16_5YR_B18104_with_ann!AS52","v":190},{"$f":"[1]ACS_16_5YR_B18104_with_ann!AT52","v":3991},{"$f":"[1]ACS_16_5YR_B18104_with_ann!AU52","v":285},{"$f":"[1]ACS_16_5YR_B18104_with_ann!AV52","v":314},{"$f":"[1]ACS_16_5YR_B18104_with_ann!AW52","v":136},{"$f":"[1]ACS_16_5YR_B18104_with_ann!AX52","v":3677},{"$f":"[1]ACS_16_5YR_B18104_with_ann!AY52","v":325},{"$f":"[1]ACS_16_5YR_B18104_with_ann!AZ52","v":3688},{"$f":"[1]ACS_16_5YR_B18104_with_ann!BA52","v":301},{"$f":"[1]ACS_16_5YR_B18104_with_ann!BB52","v":250},{"$f":"[1]ACS_16_5YR_B18104_with_ann!BC52","v":118},{"$f":"[1]ACS_16_5YR_B18104_with_ann!BD52","v":3438},{"$f":"[1]ACS_16_5YR_B18104_with_ann!BE52","v":273},{"$f":"[1]ACS_16_5YR_B18104_with_ann!BF52","v":1300},{"$f":"[1]ACS_16_5YR_B18104_with_ann!BG52","v":181},{"$f":"[1]ACS_16_5YR_B18104_with_ann!BH52","v":92},{"$f":"[1]ACS_16_5YR_B18104_with_ann!BI52","v":52},{"$f":"[1]ACS_16_5YR_B18104_with_ann!BJ52","v":1208},{"$f":"[1]ACS_16_5YR_B18104_with_ann!BK52","v":178},{"$f":"[1]ACS_16_5YR_B18104_with_ann!BL52","v":1037},{"$f":"[1]ACS_16_5YR_B18104_with_ann!BM52","v":197},{"$f":"[1]ACS_16_5YR_B18104_with_ann!BN52","v":39},{"$f":"[1]ACS_16_5YR_B18104_with_ann!BO52","v":37},{"$f":"[1]ACS_16_5YR_B18104_with_ann!BP52","v":998},{"$f":"[1]ACS_16_5YR_B18104_with_ann!BQ52","v":194}]
["06000US3300545460","0600000US3300545700","060",{"$f":"[1]ACS_16_5YR_B18104_with_ann!C53","v":"Marlborough"},{"$f":"[1]ACS_16_5YR_B18104_with_ann!D53","v":2037},{"$f":"[1]ACS_16_5YR_B18104_with_ann!E53","v":334},{"$f":"[1]ACS_16_5YR_B18104_with_ann!F53","v":929},{"$f":"[1]ACS_16_5YR_B18104_with_ann!G53","v":184},{"$f":"[1]ACS_16_5YR_B18104_with_ann!H53","v":129},{"$f":"[1]ACS_16_5YR_B18104_with_ann!I53","v":64},{"$f":"[1]ACS_16_5YR_B18104_with_ann!J53","v":0},{"$f":"[1]ACS_16_5YR_B18104_with_ann!K53","v":12},{"$f":"[1]ACS_16_5YR_B18104_with_ann!L53","v":129},{"$f":"[1]ACS_16_5YR_B18104_with_ann!M53","v":64},{"$f":"[1]ACS_16_5YR_B18104_with_ann!N53","v":175},{"$f":"[1]ACS_16_5YR_B18104_with_ann!O53","v":92},{"$f":"[1]ACS_16_5YR_B18104_with_ann!P53","v":18},{"$f":"[1]ACS_16_5YR_B18104_with_ann!Q53","v":26},{"$f":"[1]ACS_16_5YR_B18104_with_ann!R53","v":157},{"$f":"[1]ACS_16_5YR_B18104_with_ann!S53","v":83},{"$f":"[1]ACS_16_5YR_B18104_with_ann!T53","v":440},{"$f":"[1]ACS_16_5YR_B18104_with_ann!U53","v":108},{"$f":"[1]ACS_16_5YR_B18104_with_ann!V53","v":25},{"$f":"[1]ACS_16_5YR_B18104_with_ann!W53","v":16},{"$f":"[1]ACS_16_5YR_B18104_with_ann!X53","v":415},{"$f":"[1]ACS_16_5YR_B18104_with_ann!Y53","v":105},{"$f":"[1]ACS_16_5YR_B18104_with_ann!Z53","v":83},{"$f":"[1]ACS_16_5YR_B18104_with_ann!AA53","v":37},{"$f":"[1]ACS_16_5YR_B18104_with_ann!AB53","v":0},{"$f":"[1]ACS_16_5YR_B18104_with_ann!AC53","v":12},{"$f":"[1]ACS_16_5YR_B18104_with_ann!AD53","v":83},{"$f":"[1]ACS_16_5YR_B18104_with_ann!AE53","v":37},{"$f":"[1]ACS_16_5YR_B18104_with_ann!AF53","v":102},{"$f":"[1]ACS_16_5YR_B18104_with_ann!AG53","v":43},{"$f":"[1]ACS_16_5YR_B18104_with_ann!AH53","v":1},{"$f":"[1]ACS_16_5YR_B18104_with_ann!AI53","v":4},{"$f":"[1]ACS_16_5YR_B18104_with_ann!AJ53","v":101},{"$f":"[1]ACS_16_5YR_B18104_with_ann!AK53","v":43},{"$f":"[1]ACS_16_5YR_B18104_with_ann!AL53","v":1108},{"$f":"[1]ACS_16_5YR_B18104_with_ann!AM53","v":189},{"$f":"[1]ACS_16_5YR_B18104_with_ann!AN53","v":198},{"$f":"[1]ACS_16_5YR_B18104_with_ann!AO53","v":77},{"$f":"[1]ACS_16_5YR_B18104_with_ann!AP53","v":0},{"$f":"[1]ACS_16_5YR_B18104_with_ann!AQ53","v":12},{"$f":"[1]ACS_16_5YR_B18104_with_ann!AR53","v":198},{"$f":"[1]ACS_16_5YR_B18104_with_ann!AS53","v":77},{"$f":"[1]ACS_16_5YR_B18104_with_ann!AT53","v":117},{"$f":"[1]ACS_16_5YR_B18104_with_ann!AU53","v":53},{"$f":"[1]ACS_16_5YR_B18104_with_ann!AV53","v":13},{"$f":"[1]ACS_16_5YR_B18104_with_ann!AW53","v":21},{"$f":"[1]ACS_16_5YR_B18104_with_ann!AX53","v":104},{"$f":"[1]ACS_16_5YR_B18104_with_ann!AY53","v":50},{"$f":"[1]ACS_16_5YR_B18104_with_ann!AZ53","v":586},{"$f":"[1]ACS_16_5YR_B18104_with_ann!BA53","v":139},{"$f":"[1]ACS_16_5YR_B18104_with_ann!BB53","v":53},{"$f":"[1]ACS_16_5YR_B18104_with_ann!BC53","v":51},{"$f":"[1]ACS_16_5YR_B18104_with_ann!BD53","v":533},{"$f":"[1]ACS_16_5YR_B18104_with_ann!BE53","v":131},{"$f":"[1]ACS_16_5YR_B18104_with_ann!BF53","v":120},{"$f":"[1]ACS_16_5YR_B18104_with_ann!BG53","v":51},{"$f":"[1]ACS_16_5YR_B18104_with_ann!BH53","v":11},{"$f":"[1]ACS_16_5YR_B18104_with_ann!BI53","v":12},{"$f":"[1]ACS_16_5YR_B18104_with_ann!BJ53","v":109},{"$f":"[1]ACS_16_5YR_B18104_with_ann!BK53","v":48},{"$f":"[1]ACS_16_5YR_B18104_with_ann!BL53","v":87},{"$f":"[1]ACS_16_5YR_B18104_with_ann!BM53","v":42},{"$f":"[1]ACS_16_5YR_B18104_with_ann!BN53","v":0},{"$f":"[1]ACS_16_5YR_B18104_with_ann!BO53","v":12},{"$f":"[1]ACS_16_5YR_B18104_with_ann!BP53","v":87},{"$f":"[1]ACS_16_5YR_B18104_with_ann!BQ53","v":42}]
["06000US3300545700","0600000US3300550580","060",{"$f":"[1]ACS_16_5YR_B18104_with_ann!C54","v":"Marlow"},{"$f":"[1]ACS_16_5YR_B18104_with_ann!D54","v":761},{"$f":"[1]ACS_16_5YR_B18104_with_ann!E54","v":165},{"$f":"[1]ACS_16_5YR_B18104_with_ann!F54","v":341},{"$f":"[1]ACS_16_5YR_B18104_with_ann!G54","v":73},{"$f":"[1]ACS_16_5YR_B18104_with_ann!H54","v":37},{"$f":"[1]ACS_16_5YR_B18104_with_ann!I54","v":23},{"$f":"[1]ACS_16_5YR_B18104_with_ann!J54","v":2},{"$f":"[1]ACS_16_5YR_B18104_with_ann!K54","v":3},{"$f":"[1]ACS_16_5YR_B18104_with_ann!L54","v":35},{"$f":"[1]ACS_16_5YR_B18104_with_ann!M54","v":23},{"$f":"[1]ACS_16_5YR_B18104_with_ann!N54","v":53},{"$f":"[1]ACS_16_5YR_B18104_with_ann!O54","v":32},{"$f":"[1]ACS_16_5YR_B18104_with_ann!P54","v":2},{"$f":"[1]ACS_16_5YR_B18104_with_ann!Q54","v":6},{"$f":"[1]ACS_16_5YR_B18104_with_ann!R54","v":51},{"$f":"[1]ACS_16_5YR_B18104_with_ann!S54","v":31},{"$f":"[1]ACS_16_5YR_B18104_with_ann!T54","v":153},{"$f":"[1]ACS_16_5YR_B18104_with_ann!U54","v":41},{"$f":"[1]ACS_16_5YR_B18104_with_ann!V54","v":0},{"$f":"[1]ACS_16_5YR_B18104_with_ann!W54","v":12},{"$f":"[1]ACS_16_5YR_B18104_with_ann!X54","v":153},{"$f":"[1]ACS_16_5YR_B18104_with_ann!Y54","v":41},{"$f":"[1]ACS_16_5YR_B18104_with_ann!Z54","v":75},{"$f":"[1]ACS_16_5YR_B18104_with_ann!AA54","v":38},{"$f":"[1]ACS_16_5YR_B18104_with_ann!AB54","v":0},{"$f":"[1]ACS_16_5YR_B18104_with_ann!AC54","v":12},{"$f":"[1]ACS_16_5YR_B18104_with_ann!AD54","v":75},{"$f":"[1]ACS_16_5YR_B18104_with_ann!AE54","v":38},{"$f":"[1]ACS_16_5YR_B18104_with_ann!AF54","v":23},{"$f":"[1]ACS_16_5YR_B18104_with_ann!AG54","v":13},{"$f":"[1]ACS_16_5YR_B18104_with_ann!AH54","v":2},{"$f":"[1]ACS_16_5YR_B18104_with_ann!AI54","v":3},{"$f":"[1]ACS_16_5YR_B18104_with_ann!AJ54","v":21},{"$f":"[1]ACS_16_5YR_B18104_with_ann!AK54","v":12},{"$f":"[1]ACS_16_5YR_B18104_with_ann!AL54","v":420},{"$f":"[1]ACS_16_5YR_B18104_with_ann!AM54","v":108},{"$f":"[1]ACS_16_5YR_B18104_with_ann!AN54","v":116},{"$f":"[1]ACS_16_5YR_B18104_with_ann!AO54","v":56},{"$f":"[1]ACS_16_5YR_B18104_with_ann!AP54","v":11},{"$f":"[1]ACS_16_5YR_B18104_with_ann!AQ54","v":13},{"$f":"[1]ACS_16_5YR_B18104_with_ann!AR54","v":105},{"$f":"[1]ACS_16_5YR_B18104_with_ann!AS54","v":53},{"$f":"[1]ACS_16_5YR_B18104_with_ann!AT54","v":72},{"$f":"[1]ACS_16_5YR_B18104_with_ann!AU54","v":40},{"$f":"[1]ACS_16_5YR_B18104_with_ann!AV54","v":0},{"$f":"[1]ACS_16_5YR_B18104_with_ann!AW54","v":12},{"$f":"[1]ACS_16_5YR_B18104_with_ann!AX54","v":72},{"$f":"[1]ACS_16_5YR_B18104_with_ann!AY54","v":40},{"$f":"[1]ACS_16_5YR_B18104_with_ann!AZ54","v":132},{"$f":"[1]ACS_16_5YR_B18104_with_ann!BA54","v":39},{"$f":"[1]ACS_16_5YR_B18104_with_ann!BB54","v":12},{"$f":"[1]ACS_16_5YR_B18104_with_ann!BC54","v":12},{"$f":"[1]ACS_16_5YR_B18104_with_ann!BD54","v":120},{"$f":"[1]ACS_16_5YR_B18104_with_ann!BE54","v":36},{"$f":"[1]ACS_16_5YR_B18104_with_ann!BF54","v":67},{"$f":"[1]ACS_16_5YR_B18104_with_ann!BG54","v":38},{"$f":"[1]ACS_16_5YR_B18104_with_ann!BH54","v":0},{"$f":"[1]ACS_16_5YR_B18104_with_ann!BI54","v":12},{"$f":"[1]ACS_16_5YR_B18104_with_ann!BJ54","v":67},{"$f":"[1]ACS_16_5YR_B18104_with_ann!BK54","v":38},{"$f":"[1]ACS_16_5YR_B18104_with_ann!BL54","v":33},{"$f":"[1]ACS_16_5YR_B18104_with_ann!BM54","v":18},{"$f":"[1]ACS_16_5YR_B18104_with_ann!BN54","v":3},{"$f":"[1]ACS_16_5YR_B18104_with_ann!BO54","v":4},{"$f":"[1]ACS_16_5YR_B18104_with_ann!BP54","v":30},{"$f":"[1]ACS_16_5YR_B18104_with_ann!BQ54","v":18}]
["06000US3300550580","0600000US3300564420","060",{"$f":"[1]ACS_16_5YR_B18104_with_ann!C55","v":"Nelson"},{"$f":"[1]ACS_16_5YR_B18104_with_ann!D55","v":528},{"$f":"[1]ACS_16_5YR_B18104_with_ann!E55","v":103},{"$f":"[1]ACS_16_5YR_B18104_with_ann!F55","v":237},{"$f":"[1]ACS_16_5YR_B18104_with_ann!G55","v":48},{"$f":"[1]ACS_16_5YR_B18104_with_ann!H55","v":17},{"$f":"[1]ACS_16_5YR_B18104_with_ann!I55","v":12},{"$f":"[1]ACS_16_5YR_B18104_with_ann!J55","v":0},{"$f":"[1]ACS_16_5YR_B18104_with_ann!K55","v":12},{"$f":"[1]ACS_16_5YR_B18104_with_ann!L55","v":17},{"$f":"[1]ACS_16_5YR_B18104_with_ann!M55","v":12},{"$f":"[1]ACS_16_5YR_B18104_with_ann!N55","v":25},{"$f":"[1]ACS_16_5YR_B18104_with_ann!O55","v":15},{"$f":"[1]ACS_16_5YR_B18104_with_ann!P55","v":2},{"$f":"[1]ACS_16_5YR_B18104_with_ann!Q55","v":3},{"$f":"[1]ACS_16_5YR_B18104_with_ann!R55","v":23},{"$f":"[1]ACS_16_5YR_B18104_with_ann!S55","v":14},{"$f":"[1]ACS_16_5YR_B18104_with_ann!T55","v":116},{"$f":"[1]ACS_16_5YR_B18104_with_ann!U55","v":30},{"$f":"[1]ACS_16_5YR_B18104_with_ann!V55","v":2},{"$f":"[1]ACS_16_5YR_B18104_with_ann!W55","v":4},{"$f":"[1]ACS_16_5YR_B18104_with_ann!X55","v":114},{"$f":"[1]ACS_16_5YR_B18104_with_ann!Y55","v":30},{"$f":"[1]ACS_16_5YR_B18104_with_ann!Z55","v":59},{"$f":"[1]ACS_16_5YR_B18104_with_ann!AA55","v":21},{"$f":"[1]ACS_16_5YR_B18104_with_ann!AB55","v":0},{"$f":"[1]ACS_16_5YR_B18104_with_ann!AC55","v":12},{"$f":"[1]ACS_16_5YR_B18104_with_ann!AD55","v":59},{"$f":"[1]ACS_16_5YR_B18104_with_ann!AE55","v":21},{"$f":"[1]ACS_16_5YR_B18104_with_ann!AF55","v":20},{"$f":"[1]ACS_16_5YR_B18104_with_ann!AG55","v":10},{"$f":"[1]ACS_16_5YR_B18104_with_ann!AH55","v":2},{"$f":"[1]ACS_16_5YR_B18104_with_ann!AI55","v":3},{"$f":"[1]ACS_16_5YR_B18104_with_ann!AJ55","v":18},{"$f":"[1]ACS_16_5YR_B18104_with_ann!AK55","v":10},{"$f":"[1]ACS_16_5YR_B18104_with_ann!AL55","v":291},{"$f":"[1]ACS_16_5YR_B18104_with_ann!AM55","v":67},{"$f":"[1]ACS_16_5YR_B18104_with_ann!AN55","v":46},{"$f":"[1]ACS_16_5YR_B18104_with_ann!AO55","v":30},{"$f":"[1]ACS_16_5YR_B18104_with_ann!AP55","v":0},{"$f":"[1]ACS_16_5YR_B18104_with_ann!AQ55","v":12},{"$f":"[1]ACS_16_5YR_B18104_with_ann!AR55","v":46},{"$f":"[1]ACS_16_5YR_B18104_with_ann!AS55","v":30},{"$f":"[1]ACS_16_5YR_B18104_with_ann!AT55","v":27},{"$f":"[1]ACS_16_5YR_B18104_with_ann!AU55","v":18},{"$f":"[1]ACS_16_5YR_B18104_with_ann!AV55","v":4},{"$f":"[1]ACS_16_5YR_B18104_with_ann!AW55","v":5},{"$f":"[1]ACS_16_5YR_B18104_with_ann!AX55","v":23},{"$f":"[1]ACS_16_5YR_B18104_with_ann!AY55","v":16},{"$f":"[1]ACS_16_5YR_B18104_with_ann!AZ55","v":140},{"$f":"[1]ACS_16_5YR_B18104_with_ann!BA55","v":38},{"$f":"[1]ACS_16_5YR_B18104_with_ann!BB55","v":0},{"$f":"[1]ACS_16_5YR_B18104_with_ann!BC55","v":12},{"$f":"[1]ACS_16_5YR_B18104_with_ann!BD55","v":140},{"$f":"[1]ACS_16_5YR_B18104_with_ann!BE55","v":38},{"$f":"[1]ACS_16_5YR_B18104_with_ann!BF55","v":48},{"$f":"[1]ACS_16_5YR_B18104_with_ann!BG55","v":17},{"$f":"[1]ACS_16_5YR_B18104_with_ann!BH55","v":0},{"$f":"[1]ACS_16_5YR_B18104_with_ann!BI55","v":12},{"$f":"[1]ACS_16_5YR_B18104_with_ann!BJ55","v":48},{"$f":"[1]ACS_16_5YR_B18104_with_ann!BK55","v":17},{"$f":"[1]ACS_16_5YR_B18104_with_ann!BL55","v":30},{"$f":"[1]ACS_16_5YR_B18104_with_ann!BM55","v":21},{"$f":"[1]ACS_16_5YR_B18104_with_ann!BN55","v":2},{"$f":"[1]ACS_16_5YR_B18104_with_ann!BO55","v":6},{"$f":"[1]ACS_16_5YR_B18104_with_ann!BP55","v":28},{"$f":"[1]ACS_16_5YR_B18104_with_ann!BQ55","v":18}]
["06000US3300564420","0600000US3300564580","060",{"$f":"[1]ACS_16_5YR_B18104_with_ann!C56","v":"Richmond"},{"$f":"[1]ACS_16_5YR_B18104_with_ann!D56","v":1056},{"$f":"[1]ACS_16_5YR_B18104_with_ann!E56","v":234},{"$f":"[1]ACS_16_5YR_B18104_with_ann!F56","v":557},{"$f":"[1]ACS_16_5YR_B18104_with_ann!G56","v":149},{"$f":"[1]ACS_16_5YR_B18104_with_ann!H56","v":82},{"$f":"[1]ACS_16_5YR_B18104_with_ann!I56","v":37},{"$f":"[1]ACS_16_5YR_B18104_with_ann!J56","v":13},{"$f":"[1]ACS_16_5YR_B18104_with_ann!K56","v":19},{"$f":"[1]ACS_16_5YR_B18104_with_ann!L56","v":69},{"$f":"[1]ACS_16_5YR_B18104_with_ann!M56","v":31},{"$f":"[1]ACS_16_5YR_B18104_with_ann!N56","v":110},{"$f":"[1]ACS_16_5YR_B18104_with_ann!O56","v":61},{"$f":"[1]ACS_16_5YR_B18104_with_ann!P56","v":3},{"$f":"[1]ACS_16_5YR_B18104_with_ann!Q56","v":6},{"$f":"[1]ACS_16_5YR_B18104_with_ann!R56","v":107},{"$f":"[1]ACS_16_5YR_B18104_with_ann!S56","v":60},{"$f":"[1]ACS_16_5YR_B18104_with_ann!T56","v":192},{"$f":"[1]ACS_16_5YR_B18104_with_ann!U56","v":53},{"$f":"[1]ACS_16_5YR_B18104_with_ann!V56","v":8},{"$f":"[1]ACS_16_5YR_B18104_with_ann!W56","v":7},{"$f":"[1]ACS_16_5YR_B18104_with_ann!X56","v":184},{"$f":"[1]ACS_16_5YR_B18104_with_ann!Y56","v":53},{"$f":"[1]ACS_16_5YR_B18104_with_ann!Z56","v":145},{"$f":"[1]ACS_16_5YR_B18104_with_ann!AA56","v":100},{"$f":"[1]ACS_16_5YR_B18104_with_ann!AB56","v":0},{"$f":"[1]ACS_16_5YR_B18104_with_ann!AC56","v":12},{"$f":"[1]ACS_16_5YR_B18104_with_ann!AD56","v":145},{"$f":"[1]ACS_16_5YR_B18104_with_ann!AE56","v":100},{"$f":"[1]ACS_16_5YR_B18104_with_ann!AF56","v":28},{"$f":"[1]ACS_16_5YR_B18104_with_ann!AG56","v":16},{"$f":"[1]ACS_16_5YR_B18104_with_ann!AH56","v":6},{"$f":"[1]ACS_16_5YR_B18104_with_ann!AI56","v":11},{"$f":"[1]ACS_16_5YR_B18104_with_ann!AJ56","v":22},{"$f":"[1]ACS_16_5YR_B18104_with_ann!AK56","v":12},{"$f":"[1]ACS_16_5YR_B18104_with_ann!AL56","v":499},{"$f":"[1]ACS_16_5YR_B18104_with_ann!AM56","v":117},{"$f":"[1]ACS_16_5YR_B18104_with_ann!AN56","v":58},{"$f":"[1]ACS_16_5YR_B18104_with_ann!AO56","v":27},{"$f":"[1]ACS_16_5YR_B18104_with_ann!AP56","v":0},{"$f":"[1]ACS_16_5YR_B18104_with_ann!AQ56","v":12},{"$f":"[1]ACS_16_5YR_B18104_with_ann!AR56","v":58},{"$f":"[1]ACS_16_5YR_B18104_with_ann!AS56","v":27},{"$f":"[1]ACS_16_5YR_B18104_with_ann!AT56","v":69},{"$f":"[1]ACS_16_5YR_B18104_with_ann!AU56","v":47},{"$f":"[1]ACS_16_5YR_B18104_with_ann!AV56","v":0},{"$f":"[1]ACS_16_5YR_B18104_with_ann!AW56","v":12},{"$f":"[1]ACS_16_5YR_B18104_with_ann!AX56","v":69},{"$f":"[1]ACS_16_5YR_B18104_with_ann!AY56","v":47},{"$f":"[1]ACS_16_5YR_B18104_with_ann!AZ56","v":226},{"$f":"[1]ACS_16_5YR_B18104_with_ann!BA56","v":60},{"$f":"[1]ACS_16_5YR_B18104_with_ann!BB56","v":2},{"$f":"[1]ACS_16_5YR_B18104_with_ann!BC56","v":4},{"$f":"[1]ACS_16_5YR_B18104_with_ann!BD56","v":224},{"$f":"[1]ACS_16_5YR_B18104_with_ann!BE56","v":59},{"$f":"[1]ACS_16_5YR_B18104_with_ann!BF56","v":69},{"$f":"[1]ACS_16_5YR_B18104_with_ann!BG56","v":30},{"$f":"[1]ACS_16_5YR_B18104_with_ann!BH56","v":2},{"$f":"[1]ACS_16_5YR_B18104_with_ann!BI56","v":4},{"$f":"[1]ACS_16_5YR_B18104_with_ann!BJ56","v":67},{"$f":"[1]ACS_16_5YR_B18104_with_ann!BK56","v":30},{"$f":"[1]ACS_16_5YR_B18104_with_ann!BL56","v":77},{"$f":"[1]ACS_16_5YR_B18104_with_ann!BM56","v":40},{"$f":"[1]ACS_16_5YR_B18104_with_ann!BN56","v":22},{"$f":"[1]ACS_16_5YR_B18104_with_ann!BO56","v":28},{"$f":"[1]ACS_16_5YR_B18104_with_ann!BP56","v":55},{"$f":"[1]ACS_16_5YR_B18104_with_ann!BQ56","v":26}]
["06000US3300564580","0600000US3300565700","060",{"$f":"[1]ACS_16_5YR_B18104_with_ann!C57","v":"Rindge"},{"$f":"[1]ACS_16_5YR_B18104_with_ann!D57","v":6183},{"$f":"[1]ACS_16_5YR_B18104_with_ann!E57","v":121},{"$f":"[1]ACS_16_5YR_B18104_with_ann!F57","v":3018},{"$f":"[1]ACS_16_5YR_B18104_with_ann!G57","v":206},{"$f":"[1]ACS_16_5YR_B18104_with_ann!H57","v":470},{"$f":"[1]ACS_16_5YR_B18104_with_ann!I57","v":153},{"$f":"[1]ACS_16_5YR_B18104_with_ann!J57","v":0},{"$f":"[1]ACS_16_5YR_B18104_with_ann!K57","v":17},{"$f":"[1]ACS_16_5YR_B18104_with_ann!L57","v":470},{"$f":"[1]ACS_16_5YR_B18104_with_ann!M57","v":153},{"$f":"[1]ACS_16_5YR_B18104_with_ann!N57","v":941},{"$f":"[1]ACS_16_5YR_B18104_with_ann!O57","v":135},{"$f":"[1]ACS_16_5YR_B18104_with_ann!P57","v":53},{"$f":"[1]ACS_16_5YR_B18104_with_ann!Q57","v":46},{"$f":"[1]ACS_16_5YR_B18104_with_ann!R57","v":888},{"$f":"[1]ACS_16_5YR_B18104_with_ann!S57","v":122},{"$f":"[1]ACS_16_5YR_B18104_with_ann!T57","v":983},{"$f":"[1]ACS_16_5YR_B18104_with_ann!U57","v":154},{"$f":"[1]ACS_16_5YR_B18104_with_ann!V57","v":9},{"$f":"[1]ACS_16_5YR_B18104_with_ann!W57","v":15},{"$f":"[1]ACS_16_5YR_B18104_with_ann!X57","v":974},{"$f":"[1]ACS_16_5YR_B18104_with_ann!Y57","v":153},{"$f":"[1]ACS_16_5YR_B18104_with_ann!Z57","v":428},{"$f":"[1]ACS_16_5YR_B18104_with_ann!AA57","v":106},{"$f":"[1]ACS_16_5YR_B18104_with_ann!AB57","v":0},{"$f":"[1]ACS_16_5YR_B18104_with_ann!AC57","v":17},{"$f":"[1]ACS_16_5YR_B18104_with_ann!AD57","v":428},{"$f":"[1]ACS_16_5YR_B18104_with_ann!AE57","v":106},{"$f":"[1]ACS_16_5YR_B18104_with_ann!AF57","v":196},{"$f":"[1]ACS_16_5YR_B18104_with_ann!AG57","v":97},{"$f":"[1]ACS_16_5YR_B18104_with_ann!AH57","v":0},{"$f":"[1]ACS_16_5YR_B18104_with_ann!AI57","v":17},{"$f":"[1]ACS_16_5YR_B18104_with_ann!AJ57","v":196},{"$f":"[1]ACS_16_5YR_B18104_with_ann!AK57","v":97},{"$f":"[1]ACS_16_5YR_B18104_with_ann!AL57","v":3165},{"$f":"[1]ACS_16_5YR_B18104_with_ann!AM57","v":194},{"$f":"[1]ACS_16_5YR_B18104_with_ann!AN57","v":443},{"$f":"[1]ACS_16_5YR_B18104_with_ann!AO57","v":150},{"$f":"[1]ACS_16_5YR_B18104_with_ann!AP57","v":0},{"$f":"[1]ACS_16_5YR_B18104_with_ann!AQ57","v":17},{"$f":"[1]ACS_16_5YR_B18104_with_ann!AR57","v":443},{"$f":"[1]ACS_16_5YR_B18104_with_ann!AS57","v":150},{"$f":"[1]ACS_16_5YR_B18104_with_ann!AT57","v":1002},{"$f":"[1]ACS_16_5YR_B18104_with_ann!AU57","v":156},{"$f":"[1]ACS_16_5YR_B18104_with_ann!AV57","v":123},{"$f":"[1]ACS_16_5YR_B18104_with_ann!AW57","v":78},{"$f":"[1]ACS_16_5YR_B18104_with_ann!AX57","v":879},{"$f":"[1]ACS_16_5YR_B18104_with_ann!AY57","v":155},{"$f":"[1]ACS_16_5YR_B18104_with_ann!AZ57","v":1067},{"$f":"[1]ACS_16_5YR_B18104_with_ann!BA57","v":134},{"$f":"[1]ACS_16_5YR_B18104_with_ann!BB57","v":36},{"$f":"[1]ACS_16_5YR_B18104_with_ann!BC57","v":49},{"$f":"[1]ACS_16_5YR_B18104_with_ann!BD57","v":1031},{"$f":"[1]ACS_16_5YR_B18104_with_ann!BE57","v":120},{"$f":"[1]ACS_16_5YR_B18104_with_ann!BF57","v":431},{"$f":"[1]ACS_16_5YR_B18104_with_ann!BG57","v":102},{"$f":"[1]ACS_16_5YR_B18104_with_ann!BH57","v":14},{"$f":"[1]ACS_16_5YR_B18104_with_ann!BI57","v":22},{"$f":"[1]ACS_16_5YR_B18104_with_ann!BJ57","v":417},{"$f":"[1]ACS_16_5YR_B18104_with_ann!BK57","v":106},{"$f":"[1]ACS_16_5YR_B18104_with_ann!BL57","v":222},{"$f":"[1]ACS_16_5YR_B18104_with_ann!BM57","v":107},{"$f":"[1]ACS_16_5YR_B18104_with_ann!BN57","v":45},{"$f":"[1]ACS_16_5YR_B18104_with_ann!BO57","v":60},{"$f":"[1]ACS_16_5YR_B18104_with_ann!BP57","v":177},{"$f":"[1]ACS_16_5YR_B18104_with_ann!BQ57","v":85}]
["06000US3300565700","0600000US3300573700","060",{"$f":"[1]ACS_16_5YR_B18104_with_ann!C58","v":"Roxbury"},{"$f":"[1]ACS_16_5YR_B18104_with_ann!D58","v":257},{"$f":"[1]ACS_16_5YR_B18104_with_ann!E58","v":112},{"$f":"[1]ACS_16_5YR_B18104_with_ann!F58","v":99},{"$f":"[1]ACS_16_5YR_B18104_with_ann!G58","v":40},{"$f":"[1]ACS_16_5YR_B18104_with_ann!H58","v":4},{"$f":"[1]ACS_16_5YR_B18104_with_ann!I58","v":6},{"$f":"[1]ACS_16_5YR_B18104_with_ann!J58","v":0},{"$f":"[1]ACS_16_5YR_B18104_with_ann!K58","v":12},{"$f":"[1]ACS_16_5YR_B18104_with_ann!L58","v":4},{"$f":"[1]ACS_16_5YR_B18104_with_ann!M58","v":6},{"$f":"[1]ACS_16_5YR_B18104_with_ann!N58","v":17},{"$f":"[1]ACS_16_5YR_B18104_with_ann!O58","v":10},{"$f":"[1]ACS_16_5YR_B18104_with_ann!P58","v":0},{"$f":"[1]ACS_16_5YR_B18104_with_ann!Q58","v":12},{"$f":"[1]ACS_16_5YR_B18104_with_ann!R58","v":17},{"$f":"[1]ACS_16_5YR_B18104_with_ann!S58","v":10},{"$f":"[1]ACS_16_5YR_B18104_with_ann!T58","v":65},{"$f":"[1]ACS_16_5YR_B18104_with_ann!U58","v":37},{"$f":"[1]ACS_16_5YR_B18104_with_ann!V58","v":1},{"$f":"[1]ACS_16_5YR_B18104_with_ann!W58","v":2},{"$f":"[1]ACS_16_5YR_B18104_with_ann!X58","v":64},{"$f":"[1]ACS_16_5YR_B18104_with_ann!Y58","v":37},{"$f":"[1]ACS_16_5YR_B18104_with_ann!Z58","v":10},{"$f":"[1]ACS_16_5YR_B18104_with_ann!AA58","v":6},{"$f":"[1]ACS_16_5YR_B18104_with_ann!AB58","v":2},{"$f":"[1]ACS_16_5YR_B18104_with_ann!AC58","v":4},{"$f":"[1]ACS_16_5YR_B18104_with_ann!AD58","v":8},{"$f":"[1]ACS_16_5YR_B18104_with_ann!AE58","v":7},{"$f":"[1]ACS_16_5YR_B18104_with_ann!AF58","v":3},{"$f":"[1]ACS_16_5YR_B18104_with_ann!AG58","v":3},{"$f":"[1]ACS_16_5YR_B18104_with_ann!AH58","v":0},{"$f":"[1]ACS_16_5YR_B18104_with_ann!AI58","v":12},{"$f":"[1]ACS_16_5YR_B18104_with_ann!AJ58","v":3},{"$f":"[1]ACS_16_5YR_B18104_with_ann!AK58","v":3},{"$f":"[1]ACS_16_5YR_B18104_with_ann!AL58","v":158},{"$f":"[1]ACS_16_5YR_B18104_with_ann!AM58","v":79},{"$f":"[1]ACS_16_5YR_B18104_with_ann!AN58","v":5},{"$f":"[1]ACS_16_5YR_B18104_with_ann!AO58","v":5},{"$f":"[1]ACS_16_5YR_B18104_with_ann!AP58","v":0},{"$f":"[1]ACS_16_5YR_B18104_with_ann!AQ58","v":12},{"$f":"[1]ACS_16_5YR_B18104_with_ann!AR58","v":5},{"$f":"[1]ACS_16_5YR_B18104_with_ann!AS58","v":5},{"$f":"[1]ACS_16_5YR_B18104_with_ann!AT58","v":67},{"$f":"[1]ACS_16_5YR_B18104_with_ann!AU58","v":57},{"$f":"[1]ACS_16_5YR_B18104_with_ann!AV58","v":0},{"$f":"[1]ACS_16_5YR_B18104_with_ann!AW58","v":12},{"$f":"[1]ACS_16_5YR_B18104_with_ann!AX58","v":67},{"$f":"[1]ACS_16_5YR_B18104_with_ann!AY58","v":57},{"$f":"[1]ACS_16_5YR_B18104_with_ann!AZ58","v":66},{"$f":"[1]ACS_16_5YR_B18104_with_ann!BA58","v":30},{"$f":"[1]ACS_16_5YR_B18104_with_ann!BB58","v":2},{"$f":"[1]ACS_16_5YR_B18104_with_ann!BC58","v":3},{"$f":"[1]ACS_16_5YR_B18104_with_ann!BD58","v":64},{"$f":"[1]ACS_16_5YR_B18104_with_ann!BE58","v":29},{"$f":"[1]ACS_16_5YR_B18104_with_ann!BF58","v":13},{"$f":"[1]ACS_16_5YR_B18104_with_ann!BG58","v":5},{"$f":"[1]ACS_16_5YR_B18104_with_ann!BH58","v":0},{"$f":"[1]ACS_16_5YR_B18104_with_ann!BI58","v":12},{"$f":"[1]ACS_16_5YR_B18104_with_ann!BJ58","v":13},{"$f":"[1]ACS_16_5YR_B18104_with_ann!BK58","v":5},{"$f":"[1]ACS_16_5YR_B18104_with_ann!BL58","v":7},{"$f":"[1]ACS_16_5YR_B18104_with_ann!BM58","v":7},{"$f":"[1]ACS_16_5YR_B18104_with_ann!BN58","v":1},{"$f":"[1]ACS_16_5YR_B18104_with_ann!BO58","v":2},{"$f":"[1]ACS_16_5YR_B18104_with_ann!BP58","v":6},{"$f":"[1]ACS_16_5YR_B18104_with_ann!BQ58","v":7}]
["06000US3300573700","0600000US3300574900","060",{"$f":"[1]ACS_16_5YR_B18104_with_ann!C59","v":"Stoddard"},{"$f":"[1]ACS_16_5YR_B18104_with_ann!D59","v":1147},{"$f":"[1]ACS_16_5YR_B18104_with_ann!E59","v":153},{"$f":"[1]ACS_16_5YR_B18104_with_ann!F59","v":563},{"$f":"[1]ACS_16_5YR_B18104_with_ann!G59","v":96},{"$f":"[1]ACS_16_5YR_B18104_with_ann!H59","v":104},{"$f":"[1]ACS_16_5YR_B18104_with_ann!I59","v":62},{"$f":"[1]ACS_16_5YR_B18104_with_ann!J59","v":0},{"$f":"[1]ACS_16_5YR_B18104_with_ann!K59","v":12},{"$f":"[1]ACS_16_5YR_B18104_with_ann!L59","v":104},{"$f":"[1]ACS_16_5YR_B18104_with_ann!M59","v":62},{"$f":"[1]ACS_16_5YR_B18104_with_ann!N59","v":81},{"$f":"[1]ACS_16_5YR_B18104_with_ann!O59","v":29},{"$f":"[1]ACS_16_5YR_B18104_with_ann!P59","v":8},{"$f":"[1]ACS_16_5YR_B18104_with_ann!Q59","v":11},{"$f":"[1]ACS_16_5YR_B18104_with_ann!R59","v":73},{"$f":"[1]ACS_16_5YR_B18104_with_ann!S59","v":30},{"$f":"[1]ACS_16_5YR_B18104_with_ann!T59","v":279},{"$f":"[1]ACS_16_5YR_B18104_with_ann!U59","v":49},{"$f":"[1]ACS_16_5YR_B18104_with_ann!V59","v":0},{"$f":"[1]ACS_16_5YR_B18104_with_ann!W59","v":12},{"$f":"[1]ACS_16_5YR_B18104_with_ann!X59","v":279},{"$f":"[1]ACS_16_5YR_B18104_with_ann!Y59","v":49},{"$f":"[1]ACS_16_5YR_B18104_with_ann!Z59","v":68},{"$f":"[1]ACS_16_5YR_B18104_with_ann!AA59","v":17},{"$f":"[1]ACS_16_5YR_B18104_with_ann!AB59","v":0},{"$f":"[1]ACS_16_5YR_B18104_with_ann!AC59","v":12},{"$f":"[1]ACS_16_5YR_B18104_with_ann!AD59","v":68},{"$f":"[1]ACS_16_5YR_B18104_with_ann!AE59","v":17},{"$f":"[1]ACS_16_5YR_B18104_with_ann!AF59","v":31},{"$f":"[1]ACS_16_5YR_B18104_with_ann!AG59","v":15},{"$f":"[1]ACS_16_5YR_B18104_with_ann!AH59","v":0},{"$f":"[1]ACS_16_5YR_B18104_with_ann!AI59","v":12},{"$f":"[1]ACS_16_5YR_B18104_with_ann!AJ59","v":31},{"$f":"[1]ACS_16_5YR_B18104_with_ann!AK59","v":15},{"$f":"[1]ACS_16_5YR_B18104_with_ann!AL59","v":584},{"$f":"[1]ACS_16_5YR_B18104_with_ann!AM59","v":81},{"$f":"[1]ACS_16_5YR_B18104_with_ann!AN59","v":89},{"$f":"[1]ACS_16_5YR_B18104_with_ann!AO59","v":33},{"$f":"[1]ACS_16_5YR_B18104_with_ann!AP59","v":3},{"$f":"[1]ACS_16_5YR_B18104_with_ann!AQ59","v":5},{"$f":"[1]ACS_16_5YR_B18104_with_ann!AR59","v":86},{"$f":"[1]ACS_16_5YR_B18104_with_ann!AS59","v":32},{"$f":"[1]ACS_16_5YR_B18104_with_ann!AT59","v":102},{"$f":"[1]ACS_16_5YR_B18104_with_ann!AU59","v":41},{"$f":"[1]ACS_16_5YR_B18104_with_ann!AV59","v":4},{"$f":"[1]ACS_16_5YR_B18104_with_ann!AW59","v":7},{"$f":"[1]ACS_16_5YR_B18104_with_ann!AX59","v":98},{"$f":"[1]ACS_16_5YR_B18104_with_ann!AY59","v":40},{"$f":"[1]ACS_16_5YR_B18104_with_ann!AZ59","v":257},{"$f":"[1]ACS_16_5YR_B18104_with_ann!BA59","v":49},{"$f":"[1]ACS_16_5YR_B18104_with_ann!BB59","v":3},{"$f":"[1]ACS_16_5YR_B18104_with_ann!BC59","v":4},{"$f":"[1]ACS_16_5YR_B18104_with_ann!BD59","v":254},{"$f":"[1]ACS_16_5YR_B18104_with_ann!BE59","v":49},{"$f":"[1]ACS_16_5YR_B18104_with_ann!BF59","v":86},{"$f":"[1]ACS_16_5YR_B18104_with_ann!BG59","v":25},{"$f":"[1]ACS_16_5YR_B18104_with_ann!BH59","v":2},{"$f":"[1]ACS_16_5YR_B18104_with_ann!BI59","v":5},{"$f":"[1]ACS_16_5YR_B18104_with_ann!BJ59","v":84},{"$f":"[1]ACS_16_5YR_B18104_with_ann!BK59","v":24},{"$f":"[1]ACS_16_5YR_B18104_with_ann!BL59","v":50},{"$f":"[1]ACS_16_5YR_B18104_with_ann!BM59","v":22},{"$f":"[1]ACS_16_5YR_B18104_with_ann!BN59","v":5},{"$f":"[1]ACS_16_5YR_B18104_with_ann!BO59","v":6},{"$f":"[1]ACS_16_5YR_B18104_with_ann!BP59","v":45},{"$f":"[1]ACS_16_5YR_B18104_with_ann!BQ59","v":20}]
["06000US3300574900","0600000US3300575300","060",{"$f":"[1]ACS_16_5YR_B18104_with_ann!C60","v":"Sullivan"},{"$f":"[1]ACS_16_5YR_B18104_with_ann!D60","v":618},{"$f":"[1]ACS_16_5YR_B18104_with_ann!E60","v":104},{"$f":"[1]ACS_16_5YR_B18104_with_ann!F60","v":307},{"$f":"[1]ACS_16_5YR_B18104_with_ann!G60","v":63},{"$f":"[1]ACS_16_5YR_B18104_with_ann!H60","v":18},{"$f":"[1]ACS_16_5YR_B18104_with_ann!I60","v":12},{"$f":"[1]ACS_16_5YR_B18104_with_ann!J60","v":7},{"$f":"[1]ACS_16_5YR_B18104_with_ann!K60","v":5},{"$f":"[1]ACS_16_5YR_B18104_with_ann!L60","v":11},{"$f":"[1]ACS_16_5YR_B18104_with_ann!M60","v":11},{"$f":"[1]ACS_16_5YR_B18104_with_ann!N60","v":88},{"$f":"[1]ACS_16_5YR_B18104_with_ann!O60","v":36},{"$f":"[1]ACS_16_5YR_B18104_with_ann!P60","v":2},{"$f":"[1]ACS_16_5YR_B18104_with_ann!Q60","v":4},{"$f":"[1]ACS_16_5YR_B18104_with_ann!R60","v":86},{"$f":"[1]ACS_16_5YR_B18104_with_ann!S60","v":36},{"$f":"[1]ACS_16_5YR_B18104_with_ann!T60","v":134},{"$f":"[1]ACS_16_5YR_B18104_with_ann!U60","v":28},{"$f":"[1]ACS_16_5YR_B18104_with_ann!V60","v":4},{"$f":"[1]ACS_16_5YR_B18104_with_ann!W60","v":4},{"$f":"[1]ACS_16_5YR_B18104_with_ann!X60","v":130},{"$f":"[1]ACS_16_5YR_B18104_with_ann!Y60","v":28},{"$f":"[1]ACS_16_5YR_B18104_with_ann!Z60","v":40},{"$f":"[1]ACS_16_5YR_B18104_with_ann!AA60","v":17},{"$f":"[1]ACS_16_5YR_B18104_with_ann!AB60","v":4},{"$f":"[1]ACS_16_5YR_B18104_with_ann!AC60","v":4},{"$f":"[1]ACS_16_5YR_B18104_with_ann!AD60","v":36},{"$f":"[1]ACS_16_5YR_B18104_with_ann!AE60","v":17},{"$f":"[1]ACS_16_5YR_B18104_with_ann!AF60","v":27},{"$f":"[1]ACS_16_5YR_B18104_with_ann!AG60","v":14},{"$f":"[1]ACS_16_5YR_B18104_with_ann!AH60","v":0},{"$f":"[1]ACS_16_5YR_B18104_with_ann!AI60","v":12},{"$f":"[1]ACS_16_5YR_B18104_with_ann!AJ60","v":27},{"$f":"[1]ACS_16_5YR_B18104_with_ann!AK60","v":14},{"$f":"[1]ACS_16_5YR_B18104_with_ann!AL60","v":311},{"$f":"[1]ACS_16_5YR_B18104_with_ann!AM60","v":57},{"$f":"[1]ACS_16_5YR_B18104_with_ann!AN60","v":30},{"$f":"[1]ACS_16_5YR_B18104_with_ann!AO60","v":15},{"$f":"[1]ACS_16_5YR_B18104_with_ann!AP60","v":3},{"$f":"[1]ACS_16_5YR_B18104_with_ann!AQ60","v":4},{"$f":"[1]ACS_16_5YR_B18104_with_ann!AR60","v":27},{"$f":"[1]ACS_16_5YR_B18104_with_ann!AS60","v":14},{"$f":"[1]ACS_16_5YR_B18104_with_ann!AT60","v":74},{"$f":"[1]ACS_16_5YR_B18104_with_ann!AU60","v":37},{"$f":"[1]ACS_16_5YR_B18104_with_ann!AV60","v":0},{"$f":"[1]ACS_16_5YR_B18104_with_ann!AW60","v":12},{"$f":"[1]ACS_16_5YR_B18104_with_ann!AX60","v":74},{"$f":"[1]ACS_16_5YR_B18104_with_ann!AY60","v":37},{"$f":"[1]ACS_16_5YR_B18104_with_ann!AZ60","v":145},{"$f":"[1]ACS_16_5YR_B18104_with_ann!BA60","v":28},{"$f":"[1]ACS_16_5YR_B18104_with_ann!BB60","v":4},{"$f":"[1]ACS_16_5YR_B18104_with_ann!BC60","v":4},{"$f":"[1]ACS_16_5YR_B18104_with_ann!BD60","v":141},{"$f":"[1]ACS_16_5YR_B18104_with_ann!BE60","v":28},{"$f":"[1]ACS_16_5YR_B18104_with_ann!BF60","v":40},{"$f":"[1]ACS_16_5YR_B18104_with_ann!BG60","v":14},{"$f":"[1]ACS_16_5YR_B18104_with_ann!BH60","v":0},{"$f":"[1]ACS_16_5YR_B18104_with_ann!BI60","v":12},{"$f":"[1]ACS_16_5YR_B18104_with_ann!BJ60","v":40},{"$f":"[1]ACS_16_5YR_B18104_with_ann!BK60","v":14},{"$f":"[1]ACS_16_5YR_B18104_with_ann!BL60","v":22},{"$f":"[1]ACS_16_5YR_B18104_with_ann!BM60","v":13},{"$f":"[1]ACS_16_5YR_B18104_with_ann!BN60","v":4},{"$f":"[1]ACS_16_5YR_B18104_with_ann!BO60","v":5},{"$f":"[1]ACS_16_5YR_B18104_with_ann!BP60","v":18},{"$f":"[1]ACS_16_5YR_B18104_with_ann!BQ60","v":12}]
["06000US3300575300","0600000US3300575700","060",{"$f":"[1]ACS_16_5YR_B18104_with_ann!C61","v":"Surry"},{"$f":"[1]ACS_16_5YR_B18104_with_ann!D61","v":886},{"$f":"[1]ACS_16_5YR_B18104_with_ann!E61","v":208},{"$f":"[1]ACS_16_5YR_B18104_with_ann!F61","v":371},{"$f":"[1]ACS_16_5YR_B18104_with_ann!G61","v":70},{"$f":"[1]ACS_16_5YR_B18104_with_ann!H61","v":34},{"$f":"[1]ACS_16_5YR_B18104_with_ann!I61","v":16},{"$f":"[1]ACS_16_5YR_B18104_with_ann!J61","v":5},{"$f":"[1]ACS_16_5YR_B18104_with_ann!K61","v":9},{"$f":"[1]ACS_16_5YR_B18104_with_ann!L61","v":29},{"$f":"[1]ACS_16_5YR_B18104_with_ann!M61","v":14},{"$f":"[1]ACS_16_5YR_B18104_with_ann!N61","v":49},{"$f":"[1]ACS_16_5YR_B18104_with_ann!O61","v":28},{"$f":"[1]ACS_16_5YR_B18104_with_ann!P61","v":0},{"$f":"[1]ACS_16_5YR_B18104_with_ann!Q61","v":12},{"$f":"[1]ACS_16_5YR_B18104_with_ann!R61","v":49},{"$f":"[1]ACS_16_5YR_B18104_with_ann!S61","v":28},{"$f":"[1]ACS_16_5YR_B18104_with_ann!T61","v":164},{"$f":"[1]ACS_16_5YR_B18104_with_ann!U61","v":44},{"$f":"[1]ACS_16_5YR_B18104_with_ann!V61","v":8},{"$f":"[1]ACS_16_5YR_B18104_with_ann!W61","v":8},{"$f":"[1]ACS_16_5YR_B18104_with_ann!X61","v":156},{"$f":"[1]ACS_16_5YR_B18104_with_ann!Y61","v":44},{"$f":"[1]ACS_16_5YR_B18104_with_ann!Z61","v":80},{"$f":"[1]ACS_16_5YR_B18104_with_ann!AA61","v":34},{"$f":"[1]ACS_16_5YR_B18104_with_ann!AB61","v":0},{"$f":"[1]ACS_16_5YR_B18104_with_ann!AC61","v":12},{"$f":"[1]ACS_16_5YR_B18104_with_ann!AD61","v":80},{"$f":"[1]ACS_16_5YR_B18104_with_ann!AE61","v":34},{"$f":"[1]ACS_16_5YR_B18104_with_ann!AF61","v":44},{"$f":"[1]ACS_16_5YR_B18104_with_ann!AG61","v":21},{"$f":"[1]ACS_16_5YR_B18104_with_ann!AH61","v":0},{"$f":"[1]ACS_16_5YR_B18104_with_ann!AI61","v":12},{"$f":"[1]ACS_16_5YR_B18104_with_ann!AJ61","v":44},{"$f":"[1]ACS_16_5YR_B18104_with_ann!AK61","v":21},{"$f":"[1]ACS_16_5YR_B18104_with_ann!AL61","v":515},{"$f":"[1]ACS_16_5YR_B18104_with_ann!AM61","v":163},{"$f":"[1]ACS_16_5YR_B18104_with_ann!AN61","v":95},{"$f":"[1]ACS_16_5YR_B18104_with_ann!AO61","v":63},{"$f":"[1]ACS_16_5YR_B18104_with_ann!AP61","v":2},{"$f":"[1]ACS_16_5YR_B18104_with_ann!AQ61","v":3},{"$f":"[1]ACS_16_5YR_B18104_with_ann!AR61","v":93},{"$f":"[1]ACS_16_5YR_B18104_with_ann!AS61","v":63},{"$f":"[1]ACS_16_5YR_B18104_with_ann!AT61","v":122},{"$f":"[1]ACS_16_5YR_B18104_with_ann!AU61","v":78},{"$f":"[1]ACS_16_5YR_B18104_with_ann!AV61","v":9},{"$f":"[1]ACS_16_5YR_B18104_with_ann!AW61","v":8},{"$f":"[1]ACS_16_5YR_B18104_with_ann!AX61","v":113},{"$f":"[1]ACS_16_5YR_B18104_with_ann!AY61","v":77},{"$f":"[1]ACS_16_5YR_B18104_with_ann!AZ61","v":179},{"$f":"[1]ACS_16_5YR_B18104_with_ann!BA61","v":54},{"$f":"[1]ACS_16_5YR_B18104_with_ann!BB61","v":0},{"$f":"[1]ACS_16_5YR_B18104_with_ann!BC61","v":12},{"$f":"[1]ACS_16_5YR_B18104_with_ann!BD61","v":179},{"$f":"[1]ACS_16_5YR_B18104_with_ann!BE61","v":54},{"$f":"[1]ACS_16_5YR_B18104_with_ann!BF61","v":72},{"$f":"[1]ACS_16_5YR_B18104_with_ann!BG61","v":25},{"$f":"[1]ACS_16_5YR_B18104_with_ann!BH61","v":0},{"$f":"[1]ACS_16_5YR_B18104_with_ann!BI61","v":12},{"$f":"[1]ACS_16_5YR_B18104_with_ann!BJ61","v":72},{"$f":"[1]ACS_16_5YR_B18104_with_ann!BK61","v":25},{"$f":"[1]ACS_16_5YR_B18104_with_ann!BL61","v":47},{"$f":"[1]ACS_16_5YR_B18104_with_ann!BM61","v":20},{"$f":"[1]ACS_16_5YR_B18104_with_ann!BN61","v":10},{"$f":"[1]ACS_16_5YR_B18104_with_ann!BO61","v":7},{"$f":"[1]ACS_16_5YR_B18104_with_ann!BP61","v":37},{"$f":"[1]ACS_16_5YR_B18104_with_ann!BQ61","v":20}]
["06000US3300575700","0600000US3300577380","060",{"$f":"[1]ACS_16_5YR_B18104_with_ann!C62","v":"Swanzey"},{"$f":"[1]ACS_16_5YR_B18104_with_ann!D62","v":7071},{"$f":"[1]ACS_16_5YR_B18104_with_ann!E62","v":107},{"$f":"[1]ACS_16_5YR_B18104_with_ann!F62","v":3438},{"$f":"[1]ACS_16_5YR_B18104_with_ann!G62","v":199},{"$f":"[1]ACS_16_5YR_B18104_with_ann!H62","v":425},{"$f":"[1]ACS_16_5YR_B18104_with_ann!I62","v":130},{"$f":"[1]ACS_16_5YR_B18104_with_ann!J62","v":6},{"$f":"[1]ACS_16_5YR_B18104_with_ann!K62","v":14},{"$f":"[1]ACS_16_5YR_B18104_with_ann!L62","v":419},{"$f":"[1]ACS_16_5YR_B18104_with_ann!M62","v":131},{"$f":"[1]ACS_16_5YR_B18104_with_ann!N62","v":528},{"$f":"[1]ACS_16_5YR_B18104_with_ann!O62","v":182},{"$f":"[1]ACS_16_5YR_B18104_with_ann!P62","v":61},{"$f":"[1]ACS_16_5YR_B18104_with_ann!Q62","v":68},{"$f":"[1]ACS_16_5YR_B18104_with_ann!R62","v":467},{"$f":"[1]ACS_16_5YR_B18104_with_ann!S62","v":184},{"$f":"[1]ACS_16_5YR_B18104_with_ann!T62","v":1568},{"$f":"[1]ACS_16_5YR_B18104_with_ann!U62","v":216},{"$f":"[1]ACS_16_5YR_B18104_with_ann!V62","v":42},{"$f":"[1]ACS_16_5YR_B18104_with_ann!W62","v":44},{"$f":"[1]ACS_16_5YR_B18104_with_ann!X62","v":1526},{"$f":"[1]ACS_16_5YR_B18104_with_ann!Y62","v":222},{"$f":"[1]ACS_16_5YR_B18104_with_ann!Z62","v":533},{"$f":"[1]ACS_16_5YR_B18104_with_ann!AA62","v":186},{"$f":"[1]ACS_16_5YR_B18104_with_ann!AB62","v":36},{"$f":"[1]ACS_16_5YR_B18104_with_ann!AC62","v":39},{"$f":"[1]ACS_16_5YR_B18104_with_ann!AD62","v":497},{"$f":"[1]ACS_16_5YR_B18104_with_ann!AE62","v":181},{"$f":"[1]ACS_16_5YR_B18104_with_ann!AF62","v":384},{"$f":"[1]ACS_16_5YR_B18104_with_ann!AG62","v":157},{"$f":"[1]ACS_16_5YR_B18104_with_ann!AH62","v":26},{"$f":"[1]ACS_16_5YR_B18104_with_ann!AI62","v":39},{"$f":"[1]ACS_16_5YR_B18104_with_ann!AJ62","v":358},{"$f":"[1]ACS_16_5YR_B18104_with_ann!AK62","v":130},{"$f":"[1]ACS_16_5YR_B18104_with_ann!AL62","v":3633},{"$f":"[1]ACS_16_5YR_B18104_with_ann!AM62","v":206},{"$f":"[1]ACS_16_5YR_B18104_with_ann!AN62","v":602},{"$f":"[1]ACS_16_5YR_B18104_with_ann!AO62","v":142},{"$f":"[1]ACS_16_5YR_B18104_with_ann!AP62","v":16},{"$f":"[1]ACS_16_5YR_B18104_with_ann!AQ62","v":25},{"$f":"[1]ACS_16_5YR_B18104_with_ann!AR62","v":586},{"$f":"[1]ACS_16_5YR_B18104_with_ann!AS62","v":145},{"$f":"[1]ACS_16_5YR_B18104_with_ann!AT62","v":424},{"$f":"[1]ACS_16_5YR_B18104_with_ann!AU62","v":133},{"$f":"[1]ACS_16_5YR_B18104_with_ann!AV62","v":18},{"$f":"[1]ACS_16_5YR_B18104_with_ann!AW62","v":28},{"$f":"[1]ACS_16_5YR_B18104_with_ann!AX62","v":406},{"$f":"[1]ACS_16_5YR_B18104_with_ann!AY62","v":130},{"$f":"[1]ACS_16_5YR_B18104_with_ann!AZ62","v":1648},{"$f":"[1]ACS_16_5YR_B18104_with_ann!BA62","v":206},{"$f":"[1]ACS_16_5YR_B18104_with_ann!BB62","v":61},{"$f":"[1]ACS_16_5YR_B18104_with_ann!BC62","v":49},{"$f":"[1]ACS_16_5YR_B18104_with_ann!BD62","v":1587},{"$f":"[1]ACS_16_5YR_B18104_with_ann!BE62","v":213},{"$f":"[1]ACS_16_5YR_B18104_with_ann!BF62","v":587},{"$f":"[1]ACS_16_5YR_B18104_with_ann!BG62","v":143},{"$f":"[1]ACS_16_5YR_B18104_with_ann!BH62","v":0},{"$f":"[1]ACS_16_5YR_B18104_with_ann!BI62","v":17},{"$f":"[1]ACS_16_5YR_B18104_with_ann!BJ62","v":587},{"$f":"[1]ACS_16_5YR_B18104_with_ann!BK62","v":143},{"$f":"[1]ACS_16_5YR_B18104_with_ann!BL62","v":372},{"$f":"[1]ACS_16_5YR_B18104_with_ann!BM62","v":116},{"$f":"[1]ACS_16_5YR_B18104_with_ann!BN62","v":7},{"$f":"[1]ACS_16_5YR_B18104_with_ann!BO62","v":14},{"$f":"[1]ACS_16_5YR_B18104_with_ann!BP62","v":365},{"$f":"[1]ACS_16_5YR_B18104_with_ann!BQ62","v":116}]
["06000US3300577380","0600000US3300578420","060",{"$f":"[1]ACS_16_5YR_B18104_with_ann!C63","v":"Troy"},{"$f":"[1]ACS_16_5YR_B18104_with_ann!D63","v":1758},{"$f":"[1]ACS_16_5YR_B18104_with_ann!E63","v":258},{"$f":"[1]ACS_16_5YR_B18104_with_ann!F63","v":925},{"$f":"[1]ACS_16_5YR_B18104_with_ann!G63","v":172},{"$f":"[1]ACS_16_5YR_B18104_with_ann!H63","v":149},{"$f":"[1]ACS_16_5YR_B18104_with_ann!I63","v":79},{"$f":"[1]ACS_16_5YR_B18104_with_ann!J63","v":0},{"$f":"[1]ACS_16_5YR_B18104_with_ann!K63","v":12},{"$f":"[1]ACS_16_5YR_B18104_with_ann!L63","v":149},{"$f":"[1]ACS_16_5YR_B18104_with_ann!M63","v":79},{"$f":"[1]ACS_16_5YR_B18104_with_ann!N63","v":191},{"$f":"[1]ACS_16_5YR_B18104_with_ann!O63","v":77},{"$f":"[1]ACS_16_5YR_B18104_with_ann!P63","v":9},{"$f":"[1]ACS_16_5YR_B18104_with_ann!Q63","v":13},{"$f":"[1]ACS_16_5YR_B18104_with_ann!R63","v":182},{"$f":"[1]ACS_16_5YR_B18104_with_ann!S63","v":75},{"$f":"[1]ACS_16_5YR_B18104_with_ann!T63","v":419},{"$f":"[1]ACS_16_5YR_B18104_with_ann!U63","v":95},{"$f":"[1]ACS_16_5YR_B18104_with_ann!V63","v":16},{"$f":"[1]ACS_16_5YR_B18104_with_ann!W63","v":23},{"$f":"[1]ACS_16_5YR_B18104_with_ann!X63","v":403},{"$f":"[1]ACS_16_5YR_B18104_with_ann!Y63","v":90},{"$f":"[1]ACS_16_5YR_B18104_with_ann!Z63","v":121},{"$f":"[1]ACS_16_5YR_B18104_with_ann!AA63","v":49},{"$f":"[1]ACS_16_5YR_B18104_with_ann!AB63","v":0},{"$f":"[1]ACS_16_5YR_B18104_with_ann!AC63","v":12},{"$f":"[1]ACS_16_5YR_B18104_with_ann!AD63","v":121},{"$f":"[1]ACS_16_5YR_B18104_with_ann!AE63","v":49},{"$f":"[1]ACS_16_5YR_B18104_with_ann!AF63","v":45},{"$f":"[1]ACS_16_5YR_B18104_with_ann!AG63","v":29},{"$f":"[1]ACS_16_5YR_B18104_with_ann!AH63","v":0},{"$f":"[1]ACS_16_5YR_B18104_with_ann!AI63","v":12},{"$f":"[1]ACS_16_5YR_B18104_with_ann!AJ63","v":45},{"$f":"[1]ACS_16_5YR_B18104_with_ann!AK63","v":29},{"$f":"[1]ACS_16_5YR_B18104_with_ann!AL63","v":833},{"$f":"[1]ACS_16_5YR_B18104_with_ann!AM63","v":124},{"$f":"[1]ACS_16_5YR_B18104_with_ann!AN63","v":113},{"$f":"[1]ACS_16_5YR_B18104_with_ann!AO63","v":46},{"$f":"[1]ACS_16_5YR_B18104_with_ann!AP63","v":0},{"$f":"[1]ACS_16_5YR_B18104_with_ann!AQ63","v":12},{"$f":"[1]ACS_16_5YR_B18104_with_ann!AR63","v":113},{"$f":"[1]ACS_16_5YR_B18104_with_ann!AS63","v":46},{"$f":"[1]ACS_16_5YR_B18104_with_ann!AT63","v":205},{"$f":"[1]ACS_16_5YR_B18104_with_ann!AU63","v":65},{"$f":"[1]ACS_16_5YR_B18104_with_ann!AV63","v":27},{"$f":"[1]ACS_16_5YR_B18104_with_ann!AW63","v":21},{"$f":"[1]ACS_16_5YR_B18104_with_ann!AX63","v":178},{"$f":"[1]ACS_16_5YR_B18104_with_ann!AY63","v":62},{"$f":"[1]ACS_16_5YR_B18104_with_ann!AZ63","v":352},{"$f":"[1]ACS_16_5YR_B18104_with_ann!BA63","v":89},{"$f":"[1]ACS_16_5YR_B18104_with_ann!BB63","v":12},{"$f":"[1]ACS_16_5YR_B18104_with_ann!BC63","v":14},{"$f":"[1]ACS_16_5YR_B18104_with_ann!BD63","v":340},{"$f":"[1]ACS_16_5YR_B18104_with_ann!BE63","v":88},{"$f":"[1]ACS_16_5YR_B18104_with_ann!BF63","v":101},{"$f":"[1]ACS_16_5YR_B18104_with_ann!BG63","v":32},{"$f":"[1]ACS_16_5YR_B18104_with_ann!BH63","v":0},{"$f":"[1]ACS_16_5YR_B18104_with_ann!BI63","v":12},{"$f":"[1]ACS_16_5YR_B18104_with_ann!BJ63","v":101},{"$f":"[1]ACS_16_5YR_B18104_with_ann!BK63","v":32},{"$f":"[1]ACS_16_5YR_B18104_with_ann!BL63","v":62},{"$f":"[1]ACS_16_5YR_B18104_with_ann!BM63","v":38},{"$f":"[1]ACS_16_5YR_B18104_with_ann!BN63","v":0},{"$f":"[1]ACS_16_5YR_B18104_with_ann!BO63","v":12},{"$f":"[1]ACS_16_5YR_B18104_with_ann!BP63","v":62},{"$f":"[1]ACS_16_5YR_B18104_with_ann!BQ63","v":38}]
["06000US3300578420","0600000US3300582660","060",{"$f":"[1]ACS_16_5YR_B18104_with_ann!C64","v":"Walpole"},{"$f":"[1]ACS_16_5YR_B18104_with_ann!D64","v":3324},{"$f":"[1]ACS_16_5YR_B18104_with_ann!E64","v":112},{"$f":"[1]ACS_16_5YR_B18104_with_ann!F64","v":1616},{"$f":"[1]ACS_16_5YR_B18104_with_ann!G64","v":159},{"$f":"[1]ACS_16_5YR_B18104_with_ann!H64","v":312},{"$f":"[1]ACS_16_5YR_B18104_with_ann!I64","v":115},{"$f":"[1]ACS_16_5YR_B18104_with_ann!J64","v":0},{"$f":"[1]ACS_16_5YR_B18104_with_ann!K64","v":12},{"$f":"[1]ACS_16_5YR_B18104_with_ann!L64","v":312},{"$f":"[1]ACS_16_5YR_B18104_with_ann!M64","v":115},{"$f":"[1]ACS_16_5YR_B18104_with_ann!N64","v":366},{"$f":"[1]ACS_16_5YR_B18104_with_ann!O64","v":116},{"$f":"[1]ACS_16_5YR_B18104_with_ann!P64","v":5},{"$f":"[1]ACS_16_5YR_B18104_with_ann!Q64","v":9},{"$f":"[1]ACS_16_5YR_B18104_with_ann!R64","v":361},{"$f":"[1]ACS_16_5YR_B18104_with_ann!S64","v":116},{"$f":"[1]ACS_16_5YR_B18104_with_ann!T64","v":571},{"$f":"[1]ACS_16_5YR_B18104_with_ann!U64","v":100},{"$f":"[1]ACS_16_5YR_B18104_with_ann!V64","v":0},{"$f":"[1]ACS_16_5YR_B18104_with_ann!W64","v":12},{"$f":"[1]ACS_16_5YR_B18104_with_ann!X64","v":571},{"$f":"[1]ACS_16_5YR_B18104_with_ann!Y64","v":100},{"$f":"[1]ACS_16_5YR_B18104_with_ann!Z64","v":271},{"$f":"[1]ACS_16_5YR_B18104_with_ann!AA64","v":74},{"$f":"[1]ACS_16_5YR_B18104_with_ann!AB64","v":22},{"$f":"[1]ACS_16_5YR_B18104_with_ann!AC64","v":23},{"$f":"[1]ACS_16_5YR_B18104_with_ann!AD64","v":249},{"$f":"[1]ACS_16_5YR_B18104_with_ann!AE64","v":68},{"$f":"[1]ACS_16_5YR_B18104_with_ann!AF64","v":96},{"$f":"[1]ACS_16_5YR_B18104_with_ann!AG64","v":46},{"$f":"[1]ACS_16_5YR_B18104_with_ann!AH64","v":0},{"$f":"[1]ACS_16_5YR_B18104_with_ann!AI64","v":12},{"$f":"[1]ACS_16_5YR_B18104_with_ann!AJ64","v":96},{"$f":"[1]ACS_16_5YR_B18104_with_ann!AK64","v":46},{"$f":"[1]ACS_16_5YR_B18104_with_ann!AL64","v":1708},{"$f":"[1]ACS_16_5YR_B18104_with_ann!AM64","v":137},{"$f":"[1]ACS_16_5YR_B18104_with_ann!AN64","v":287},{"$f":"[1]ACS_16_5YR_B18104_with_ann!AO64","v":98},{"$f":"[1]ACS_16_5YR_B18104_with_ann!AP64","v":35},{"$f":"[1]ACS_16_5YR_B18104_with_ann!AQ64","v":44},{"$f":"[1]ACS_16_5YR_B18104_with_ann!AR64","v":252},{"$f":"[1]ACS_16_5YR_B18104_with_ann!AS64","v":94},{"$f":"[1]ACS_16_5YR_B18104_with_ann!AT64","v":318},{"$f":"[1]ACS_16_5YR_B18104_with_ann!AU64","v":144},{"$f":"[1]ACS_16_5YR_B18104_with_ann!AV64","v":10},{"$f":"[1]ACS_16_5YR_B18104_with_ann!AW64","v":17},{"$f":"[1]ACS_16_5YR_B18104_with_ann!AX64","v":308},{"$f":"[1]ACS_16_5YR_B18104_with_ann!AY64","v":146},{"$f":"[1]ACS_16_5YR_B18104_with_ann!AZ64","v":699},{"$f":"[1]ACS_16_5YR_B18104_with_ann!BA64","v":118},{"$f":"[1]ACS_16_5YR_B18104_with_ann!BB64","v":28},{"$f":"[1]ACS_16_5YR_B18104_with_ann!BC64","v":26},{"$f":"[1]ACS_16_5YR_B18104_with_ann!BD64","v":671},{"$f":"[1]ACS_16_5YR_B18104_with_ann!BE64","v":119},{"$f":"[1]ACS_16_5YR_B18104_with_ann!BF64","v":182},{"$f":"[1]ACS_16_5YR_B18104_with_ann!BG64","v":50},{"$f":"[1]ACS_16_5YR_B18104_with_ann!BH64","v":6},{"$f":"[1]ACS_16_5YR_B18104_with_ann!BI64","v":8},{"$f":"[1]ACS_16_5YR_B18104_with_ann!BJ64","v":176},{"$f":"[1]ACS_16_5YR_B18104_with_ann!BK64","v":50},{"$f":"[1]ACS_16_5YR_B18104_with_ann!BL64","v":222},{"$f":"[1]ACS_16_5YR_B18104_with_ann!BM64","v":100},{"$f":"[1]ACS_16_5YR_B18104_with_ann!BN64","v":80},{"$f":"[1]ACS_16_5YR_B18104_with_ann!BO64","v":77},{"$f":"[1]ACS_16_5YR_B18104_with_ann!BP64","v":142},{"$f":"[1]ACS_16_5YR_B18104_with_ann!BQ64","v":81}]
["06000US3300582660","0600000US3300585540","060",{"$f":"[1]ACS_16_5YR_B18104_with_ann!C65","v":"Westmoreland"},{"$f":"[1]ACS_16_5YR_B18104_with_ann!D65","v":1891},{"$f":"[1]ACS_16_5YR_B18104_with_ann!E65","v":327},{"$f":"[1]ACS_16_5YR_B18104_with_ann!F65","v":824},{"$f":"[1]ACS_16_5YR_B18104_with_ann!G65","v":155},{"$f":"[1]ACS_16_5YR_B18104_with_ann!H65","v":51},{"$f":"[1]ACS_16_5YR_B18104_with_ann!I65","v":27},{"$f":"[1]ACS_16_5YR_B18104_with_ann!J65","v":0},{"$f":"[1]ACS_16_5YR_B18104_with_ann!K65","v":12},{"$f":"[1]ACS_16_5YR_B18104_with_ann!L65","v":51},{"$f":"[1]ACS_16_5YR_B18104_with_ann!M65","v":27},{"$f":"[1]ACS_16_5YR_B18104_with_ann!N65","v":117},{"$f":"[1]ACS_16_5YR_B18104_with_ann!O65","v":52},{"$f":"[1]ACS_16_5YR_B18104_with_ann!P65","v":3},{"$f":"[1]ACS_16_5YR_B18104_with_ann!Q65","v":6},{"$f":"[1]ACS_16_5YR_B18104_with_ann!R65","v":114},{"$f":"[1]ACS_16_5YR_B18104_with_ann!S65","v":51},{"$f":"[1]ACS_16_5YR_B18104_with_ann!T65","v":395},{"$f":"[1]ACS_16_5YR_B18104_with_ann!U65","v":97},{"$f":"[1]ACS_16_5YR_B18104_with_ann!V65","v":6},{"$f":"[1]ACS_16_5YR_B18104_with_ann!W65","v":7},{"$f":"[1]ACS_16_5YR_B18104_with_ann!X65","v":389},{"$f":"[1]ACS_16_5YR_B18104_with_ann!Y65","v":98},{"$f":"[1]ACS_16_5YR_B18104_with_ann!Z65","v":156},{"$f":"[1]ACS_16_5YR_B18104_with_ann!AA65","v":50},{"$f":"[1]ACS_16_5YR_B18104_with_ann!AB65","v":0},{"$f":"[1]ACS_16_5YR_B18104_with_ann!AC65","v":12},{"$f":"[1]ACS_16_5YR_B18104_with_ann!AD65","v":156},{"$f":"[1]ACS_16_5YR_B18104_with_ann!AE65","v":50},{"$f":"[1]ACS_16_5YR_B18104_with_ann!AF65","v":105},{"$f":"[1]ACS_16_5YR_B18104_with_ann!AG65","v":66},{"$f":"[1]ACS_16_5YR_B18104_with_ann!AH65","v":11},{"$f":"[1]ACS_16_5YR_B18104_with_ann!AI65","v":10},{"$f":"[1]ACS_16_5YR_B18104_with_ann!AJ65","v":94},{"$f":"[1]ACS_16_5YR_B18104_with_ann!AK65","v":60},{"$f":"[1]ACS_16_5YR_B18104_with_ann!AL65","v":1067},{"$f":"[1]ACS_16_5YR_B18104_with_ann!AM65","v":207},{"$f":"[1]ACS_16_5YR_B18104_with_ann!AN65","v":180},{"$f":"[1]ACS_16_5YR_B18104_with_ann!AO65","v":81},{"$f":"[1]ACS_16_5YR_B18104_with_ann!AP65","v":0},{"$f":"[1]ACS_16_5YR_B18104_with_ann!AQ65","v":12},{"$f":"[1]ACS_16_5YR_B18104_with_ann!AR65","v":180},{"$f":"[1]ACS_16_5YR_B18104_with_ann!AS65","v":81},{"$f":"[1]ACS_16_5YR_B18104_with_ann!AT65","v":119},{"$f":"[1]ACS_16_5YR_B18104_with_ann!AU65","v":67},{"$f":"[1]ACS_16_5YR_B18104_with_ann!AV65","v":0},{"$f":"[1]ACS_16_5YR_B18104_with_ann!AW65","v":12},{"$f":"[1]ACS_16_5YR_B18104_with_ann!AX65","v":119},{"$f":"[1]ACS_16_5YR_B18104_with_ann!AY65","v":67},{"$f":"[1]ACS_16_5YR_B18104_with_ann!AZ65","v":430},{"$f":"[1]ACS_16_5YR_B18104_with_ann!BA65","v":101},{"$f":"[1]ACS_16_5YR_B18104_with_ann!BB65","v":2},{"$f":"[1]ACS_16_5YR_B18104_with_ann!BC65","v":5},{"$f":"[1]ACS_16_5YR_B18104_with_ann!BD65","v":428},{"$f":"[1]ACS_16_5YR_B18104_with_ann!BE65","v":101},{"$f":"[1]ACS_16_5YR_B18104_with_ann!BF65","v":215},{"$f":"[1]ACS_16_5YR_B18104_with_ann!BG65","v":110},{"$f":"[1]ACS_16_5YR_B18104_with_ann!BH65","v":10},{"$f":"[1]ACS_16_5YR_B18104_with_ann!BI65","v":12},{"$f":"[1]ACS_16_5YR_B18104_with_ann!BJ65","v":205},{"$f":"[1]ACS_16_5YR_B18104_with_ann!BK65","v":109},{"$f":"[1]ACS_16_5YR_B18104_with_ann!BL65","v":123},{"$f":"[1]ACS_16_5YR_B18104_with_ann!BM65","v":45},{"$f":"[1]ACS_16_5YR_B18104_with_ann!BN65","v":10},{"$f":"[1]ACS_16_5YR_B18104_with_ann!BO65","v":10},{"$f":"[1]ACS_16_5YR_B18104_with_ann!BP65","v":113},{"$f":"[1]ACS_16_5YR_B18104_with_ann!BQ65","v":45}]
["06000US3300585540","0600000US3300500820","060",{"$f":"[1]ACS_16_5YR_B18104_with_ann!C66","v":"Winchester"},{"$f":"[1]ACS_16_5YR_B18104_with_ann!D66","v":3755},{"$f":"[1]ACS_16_5YR_B18104_with_ann!E66","v":135},{"$f":"[1]ACS_16_5YR_B18104_with_ann!F66","v":1866},{"$f":"[1]ACS_16_5YR_B18104_with_ann!G66","v":182},{"$f":"[1]ACS_16_5YR_B18104_with_ann!H66","v":311},{"$f":"[1]ACS_16_5YR_B18104_with_ann!I66","v":122},{"$f":"[1]ACS_16_5YR_B18104_with_ann!J66","v":6},{"$f":"[1]ACS_16_5YR_B18104_with_ann!K66","v":13},{"$f":"[1]ACS_16_5YR_B18104_with_ann!L66","v":305},{"$f":"[1]ACS_16_5YR_B18104_with_ann!M66","v":121},{"$f":"[1]ACS_16_5YR_B18104_with_ann!N66","v":388},{"$f":"[1]ACS_16_5YR_B18104_with_ann!O66","v":118},{"$f":"[1]ACS_16_5YR_B18104_with_ann!P66","v":0},{"$f":"[1]ACS_16_5YR_B18104_with_ann!Q66","v":12},{"$f":"[1]ACS_16_5YR_B18104_with_ann!R66","v":388},{"$f":"[1]ACS_16_5YR_B18104_with_ann!S66","v":118},{"$f":"[1]ACS_16_5YR_B18104_with_ann!T66","v":910},{"$f":"[1]ACS_16_5YR_B18104_with_ann!U66","v":152},{"$f":"[1]ACS_16_5YR_B18104_with_ann!V66","v":56},{"$f":"[1]ACS_16_5YR_B18104_with_ann!W66","v":44},{"$f":"[1]ACS_16_5YR_B18104_with_ann!X66","v":854},{"$f":"[1]ACS_16_5YR_B18104_with_ann!Y66","v":148},{"$f":"[1]ACS_16_5YR_B18104_with_ann!Z66","v":193},{"$f":"[1]ACS_16_5YR_B18104_with_ann!AA66","v":70},{"$f":"[1]ACS_16_5YR_B18104_with_ann!AB66","v":9},{"$f":"[1]ACS_16_5YR_B18104_with_ann!AC66","v":14},{"$f":"[1]ACS_16_5YR_B18104_with_ann!AD66","v":184},{"$f":"[1]ACS_16_5YR_B18104_with_ann!AE66","v":67},{"$f":"[1]ACS_16_5YR_B18104_with_ann!AF66","v":64},{"$f":"[1]ACS_16_5YR_B18104_with_ann!AG66","v":35},{"$f":"[1]ACS_16_5YR_B18104_with_ann!AH66","v":8},{"$f":"[1]ACS_16_5YR_B18104_with_ann!AI66","v":11},{"$f":"[1]ACS_16_5YR_B18104_with_ann!AJ66","v":56},{"$f":"[1]ACS_16_5YR_B18104_with_ann!AK66","v":37},{"$f":"[1]ACS_16_5YR_B18104_with_ann!AL66","v":1889},{"$f":"[1]ACS_16_5YR_B18104_with_ann!AM66","v":200},{"$f":"[1]ACS_16_5YR_B18104_with_ann!AN66","v":289},{"$f":"[1]ACS_16_5YR_B18104_with_ann!AO66","v":127},{"$f":"[1]ACS_16_5YR_B18104_with_ann!AP66","v":0},{"$f":"[1]ACS_16_5YR_B18104_with_ann!AQ66","v":12},{"$f":"[1]ACS_16_5YR_B18104_with_ann!AR66","v":289},{"$f":"[1]ACS_16_5YR_B18104_with_ann!AS66","v":127},{"$f":"[1]ACS_16_5YR_B18104_with_ann!AT66","v":492},{"$f":"[1]ACS_16_5YR_B18104_with_ann!AU66","v":192},{"$f":"[1]ACS_16_5YR_B18104_with_ann!AV66","v":33},{"$f":"[1]ACS_16_5YR_B18104_with_ann!AW66","v":31},{"$f":"[1]ACS_16_5YR_B18104_with_ann!AX66","v":459},{"$f":"[1]ACS_16_5YR_B18104_with_ann!AY66","v":199},{"$f":"[1]ACS_16_5YR_B18104_with_ann!AZ66","v":753},{"$f":"[1]ACS_16_5YR_B18104_with_ann!BA66","v":132},{"$f":"[1]ACS_16_5YR_B18104_with_ann!BB66","v":20},{"$f":"[1]ACS_16_5YR_B18104_with_ann!BC66","v":22},{"$f":"[1]ACS_16_5YR_B18104_with_ann!BD66","v":733},{"$f":"[1]ACS_16_5YR_B18104_with_ann!BE66","v":132},{"$f":"[1]ACS_16_5YR_B18104_with_ann!BF66","v":204},{"$f":"[1]ACS_16_5YR_B18104_with_ann!BG66","v":79},{"$f":"[1]ACS_16_5YR_B18104_with_ann!BH66","v":24},{"$f":"[1]ACS_16_5YR_B18104_with_ann!BI66","v":37},{"$f":"[1]ACS_16_5YR_B18104_with_ann!BJ66","v":180},{"$f":"[1]ACS_16_5YR_B18104_with_ann!BK66","v":72},{"$f":"[1]ACS_16_5YR_B18104_with_ann!BL66","v":151},{"$f":"[1]ACS_16_5YR_B18104_with_ann!BM66","v":66},{"$f":"[1]ACS_16_5YR_B18104_with_ann!BN66","v":0},{"$f":"[1]ACS_16_5YR_B18104_with_ann!BO66","v":12},{"$f":"[1]ACS_16_5YR_B18104_with_ann!BP66","v":151},{"$f":"[1]ACS_16_5YR_B18104_with_ann!BQ66","v":66}]
[]
[]
[]
[null,null,null,null,{"$f":"$D$3","v":"Alstead"},null,{"$f":"$D$4","v":"Chesterfield"},null,{"$f":"$D$5","v":"Dublin"},null,{"$f":"$D$6","v":"Fitzwilliam"},null,{"$f":"$D$7","v":"Gilsum"},null,{"$f":"$D$8","v":"Harrisville"},null,{"$f":"$D$9","v":"Hinsdale"},null,{"$f":"$D$10","v":"Jaffrey"},null,{"$f":"$D$11","v":"Keene"},null,{"$f":"$D$12","v":"Marlborough"},null,{"$f":"$D$13","v":"Marlow"},null,{"$f":"$D$14","v":"Nelson"},null,{"$f":"$D$15","v":"Richmond"},null,{"$f":"$D$16","v":"Rindge"},null,{"$f":"$D$17","v":"Roxbury"},null,{"$f":"$D$18","v":"Stoddard"},null,{"$f":"$D$19","v":"Sullivan"},null,{"$f":"$D$20","v":"Surry"},null,{"$f":"$D$21","v":"Swanzey"},null,{"$f":"$D$22","v":"Troy"},null,{"$f":"$D$23","v":"Walpole"},null,{"$f":"$D$24","v":"Westmoreland"},null,{"$f":"$D$25","v":"Winchester"}]
[null,null,null,null,"Estimate","Margin of Error","Estimate","Margin of Error","Estimate","Margin of Error","Estimate","Margin of Error","Estimate","Margin of Error","Estimate","Margin of Error","Estimate","Margin of Error","Estimate","Margin of Error","Estimate","Margin of Error","Estimate","Margin of Error","Estimate","Margin of Error","Estimate","Margin of Error","Estimate","Margin of Error","Estimate","Margin of Error","Estimate","Margin of Error","Estimate","Margin of Error","Estimate","Margin of Error","Estimate","Margin of Error","Estimate","Margin of Error","Estimate","Margin of Error","Estimate","Margin of Error","Estimate","Margin of Error","Estimate","Margin of Error"]
[null,null,null,"Estimate!!Total:",1567,172,3436,73,1630,209,2209,360,812,136,927,174,3881,59,5157,101,21557,165,2037,334,761,165,528,103,1056,234,6183,121,257,112,1147,153,618,104,886,208,7071,107,1758,258,3324,112,1891,327,3755,135]
[null,null,null,"Estimate!!Total:!!Male:",758,116,1879,137,776,113,1170,214,419,80,419,76,2064,204,2617,209,10500,345,929,184,341,73,237,48,557,149,3018,206,99,40,563,96,307,63,371,70,3438,199,925,172,1616,159,824,155,1866,182]
[null,null,null,"Estimate!!Total:!!Male:!!5 to 17 years:",96,55,452,132,97,40,101,36,52,31,47,26,277,125,566,154,1379,180,129,64,37,23,17,12,82,37,470,153,4,6,104,62,18,12,34,16,425,130,149,79,312,115,51,27,311,122]
[null,null,null,"Estimate!!Total:!!Male:!!5 to 17 years:!!With a cognitive difficulty",0,12,37,54,0,12,4,5,3,5,3,5,18,32,34,42,102,47,0,12,2,3,0,12,13,19,0,17,0,12,0,12,7,5,5,9,6,14,0,12,0,12,0,12,6,13]
[null,null,null,"Estimate!!Total:!!Male:!!5 to 17 years:!!No cognitive difficulty",96,55,415,138,97,40,97,35,49,30,44,26,259,112,532,157,1277,172,129,64,35,23,17,12,69,31,470,153,4,6,104,62,11,11,29,14,419,131,149,79,312,115,51,27,305,121]
[null,null,null,"Estimate!!Total:!!Male:!!18 to 34 years:",147,61,366,146,136,55,226,92,119,56,38,20,294,122,408,190,3702,372,175,92,53,32,25,15,110,61,941,135,17,10,81,29,88,36,49,28,528,182,191,77,366,116,117,52,388,118]
[null,null,null,"Estimate!!Total:!!Male:!!18 to 34 years:!!With a cognitive difficulty",7,10,25,38,13,21,0,12,4,7,0,12,50,64,31,56,315,143,18,26,2,6,2,3,3,6,53,46,0,12,8,11,2,4,0,12,61,68,9,13,5,9,3,6,0,12]
[null,null,null,"Estimate!!Total:!!Male:!!18 to 34 years:!!No cognitive difficulty",140,61,341,142,123,53,226,92,115,56,38,20,244,107,377,187,3387,395,157,83,51,31,23,14,107,60,888,122,17,10,73,30,86,36,49,28,467,184,182,75,361,116,114,51,388,118]
[null,null,null,"Estimate!!Total:!!Male:!!35 to 64 years:",357,76,537,175,338,83,605,177,158,38,190,52,878,165,1310,200,3790,283,440,108,153,41,116,30,192,53,983,154,65,37,279,49,134,28,164,44,1568,216,419,95,571,100,395,97,910,152]
[null,null,null,"Estimate!!Total:!!Male:!!35 to 64 years:!!With a cognitive difficulty",10,11,62,94,2,3,16,21,24,17,17,16,42,47,113,89,134,106,25,16,0,12,2,4,8,7,9,15,1,2,0,12,4,4,8,8,42,44,16,23,0,12,6,7,56,44]
[null,null,null,"Estimate!!Total:!!Male:!!35 to 64 years:!!No cognitive difficulty",347,79,475,158,336,82,589,179,134,32,173,50,836,171,1197,182,3656,313,415,105,153,41,114,30,184,53,974,153,64,37,279,49,130,28,156,44,1526,222,403,90,571,100,389,98,854,148]
[null,null,null,"Estimate!!Total:!!Male:!!65 to 74 years:",106,42,367,125,153,64,195,55,76,29,91,28,433,236,159,87,899,135,83,37,75,38,59,21,145,100,428,106,10,6,68,17,40,17,80,34,533,186,121,49,271,74,156,50,193,70]
[null,null,null,"Estimate!!Total:!!Male:!!65 to 74 years:!!With a cognitive difficulty",0,12,44,63,0,12,5,8,6,7,3,4,223,226,0,17,15,24,0,12,0,12,0,12,0,12,0,17,2,4,0,12,4,4,0,12,36,39,0,12,22,23,0,12,9,14]
[null,null,null,"Estimate!!Total:!!Male:!!65 to 74 years:!!No cognitive difficulty",106,42,323,119,153,64,190,52,70,28,88,28,210,116,159,87,884,137,83,37,75,38,59,21,145,100,428,106,8,7,68,17,36,17,80,34,497,181,121,49,249,68,156,50,184,67]
[null,null,null,"Estimate!!Total:!!Male:!!75 years and over:",52,33,157,80,52,26,43,19,14,10,53,20,182,113,174,110,730,148,102,43,23,13,20,10,28,16,196,97,3,3,31,15,27,14,44,21,384,157,45,29,96,46,105,66,64,35]
[null,null,null,"Estimate!!Total:!!Male:!!75 years and over:!!With a cognitive difficulty",5,8,0,12,0,12,0,12,5,8,4,6,14,19,0,17,90,67,1,4,2,3,2,3,6,11,0,17,0,12,0,12,0,12,0,12,26,39,0,12,0,12,11,10,8,11]
[null,null,null,"Estimate!!Total:!!Male:!!75 years and over:!!No cognitive difficulty",47,31,157,80,52,26,43,19,9,7,49,20,168,113,174,110,640,146,101,43,21,12,18,10,22,12,196,97,3,3,31,15,27,14,44,21,358,130,45,29,96,46,94,60,56,37]
[null,null,null,"Estimate!!Total:!!Female:",809,96,1557,132,854,132,1039,177,393,74,508,108,1817,205,2540,218,11057,383,1108,189,420,108,291,67,499,117,3165,194,158,79,584,81,311,57,515,163,3633,206,833,124,1708,137,1067,207,1889,200]
[null,null,null,"Estimate!!Total:!!Female:!!5 to 17 years:",100,34,144,80,149,44,106,53,38,29,52,39,225,70,617,129,1041,198,198,77,116,56,46,30,58,27,443,150,5,5,89,33,30,15,95,63,602,142,113,46,287,98,180,81,289,127]
[null,null,null,"Estimate!!Total:!!Female:!!5 to 17 years:!!With a cognitive difficulty",0,12,19,28,0,12,4,6,4,4,0,12,0,12,95,95,60,72,0,12,11,13,0,12,0,12,0,17,0,12,3,5,3,4,2,3,16,25,0,12,35,44,0,12,0,12]
[null,null,null,"Estimate!!Total:!!Female:!!5 to 17 years:!!No cognitive difficulty",100,34,125,68,149,44,102,52,34,29,52,39,225,70,522,148,981,190,198,77,105,53,46,30,58,27,443,150,5,5,86,32,27,14,93,63,586,145,113,46,252,94,180,81,289,127]
[null,null,null,"Estimate!!Total:!!Female:!!18 to 34 years:",117,55,323,125,63,26,151,78,95,35,89,40,306,147,307,170,3991,285,117,53,72,40,27,18,69,47,1002,156,67,57,102,41,74,37,122,78,424,133,205,65,318,144,119,67,492,192]
[null,null,null,"Estimate!!Total:!!Female:!!18 to 34 years:!!With a cognitive difficulty",13,12,0,12,0,12,0,12,0,12,4,7,0,12,0,17,314,136,13,21,0,12,4,5,0,12,123,78,0,12,4,7,0,12,9,8,18,28,27,21,10,17,0,12,33,31]
[null,null,null,"Estimate!!Total:!!Female:!!18 to 34 years:!!No cognitive difficulty",104,54,323,125,63,26,151,78,95,35,85,40,306,147,307,170,3677,325,104,50,72,40,23,16,69,47,879,155,67,57,98,40,74,37,113,77,406,130,178,62,308,146,119,67,459,199]
[null,null,null,"Estimate!!Total:!!Female:!!35 to 64 years:",329,67,729,167,404,97,484,84,170,44,220,61,843,127,1144,160,3688,301,586,139,132,39,140,38,226,60,1067,134,66,30,257,49,145,28,179,54,1648,206,352,89,699,118,430,101,753,132]
[null,null,null,"Estimate!!Total:!!Female:!!35 to 64 years:!!With a cognitive difficulty",53,50,0,12,0,12,0,12,4,4,10,13,26,25,65,74,250,118,53,51,12,12,0,12,2,4,36,49,2,3,3,4,4,4,0,12,61,49,12,14,28,26,2,5,20,22]
[null,null,null,"Estimate!!Total:!!Female:!!35 to 64 years:!!No cognitive difficulty",276,47,729,167,404,97,484,84,166,42,210,59,817,121,1079,149,3438,273,533,131,120,36,140,38,224,59,1031,120,64,29,254,49,141,28,179,54,1587,213,340,88,671,119,428,101,733,132]
[null,null,null,"Estimate!!Total:!!Female:!!65 to 74 years:",173,71,244,110,162,54,251,106,58,25,107,30,214,97,276,101,1300,181,120,51,67,38,48,17,69,30,431,102,13,5,86,25,40,14,72,25,587,143,101,32,182,50,215,110,204,79]
[null,null,null,"Estimate!!Total:!!Female:!!65 to 74 years:!!With a cognitive difficulty",0,12,0,12,0,12,17,20,0,12,8,10,17,17,0,17,92,52,11,12,0,12,0,12,2,4,14,22,0,12,2,5,0,12,0,12,0,17,0,12,6,8,10,12,24,37]
[null,null,null,"Estimate!!Total:!!Female:!!65 to 74 years:!!No cognitive difficulty",173,71,244,110,162,54,234,104,58,25,99,29,197,97,276,101,1208,178,109,48,67,38,48,17,67,30,417,106,13,5,84,24,40,14,72,25,587,143,101,32,176,50,205,109,180,72]
[null,null,null,"Estimate!!Total:!!Female:!!75 years and over:",90,47,117,76,76,51,47,27,32,14,40,22,229,155,196,97,1037,197,87,42,33,18,30,21,77,40,222,107,7,7,50,22,22,13,47,20,372,116,62,38,222,100,123,45,151,66]
[null,null,null,"Estimate!!Total:!!Female:!!75 years and over:!!With a cognitive difficulty",6,8,0,12,3,4,7,9,9,10,0,12,0,12,69,82,39,37,0,12,3,4,2,6,22,28,45,60,1,2,5,6,4,5,10,7,7,14,0,12,80,77,10,10,0,12]
[null,null,null,"Estimate!!Total:!!Female:!!75 years and over:!!No cognitive difficulty",84,46,117,76,73,50,40,25,23,11,40,22,229,155,127,65,998,194,87,42,30,18,28,18,55,26,177,85,6,7,45,20,18,12,37,20,365,116,62,38,142,81,113,45,151,66]

{"sheet":"ACS_Table_B18104","index":46,"n_rows":153,"n_cols":48,"rows_kept":153,"cut":false,"hidden":true,"merged":[]}
["B18104. SEX BY AGE BY COGNITIVE DIFFICULTY\n\n"]
["Universe:  Civilian noninstitutionalized population 5 years and over"]
["Data Set: 2018-2022 American Community Survey 5-Year Estimates"]
[]
[null,null,"Alstead",null,"Chesterfield",null,"Dublin",null,"Fitzwilliam",null,"Gilsum",null,"Harrisville",null,"Hinsdale",null,"Jaffrey",null,"Keene",null,"Marlborough",null,"Marlow",null,"Nelson",null,"Richmond",null,"Rindge",null,"Roxbury",null,"Stoddard",null,"Sullivan",null,"Surry",null,"Swanzey",null,"Troy",null,"Walpole",null,"Westmoreland",null,"Winchester"]
[null," ","Estimate","Margin of Error","Estimate","Margin of Error","Estimate","Margin of Error","Estimate","Margin of Error","Estimate","Margin of Error","Estimate","Margin of Error","Estimate","Margin of Error","Estimate","Margin of Error","Estimate","Margin of Error","Estimate","Margin of Error","Estimate","Margin of Error","Estimate","Margin of Error","Estimate","Margin of Error","Estimate","Margin of Error","Estimate","Margin of Error","Estimate","Margin of Error","Estimate","Margin of Error","Estimate","Margin of Error","Estimate","Margin of Error","Estimate","Margin of Error","Estimate","Margin of Error","Estimate","Margin of Error","Estimate","Margin of Error"]
[null,"Total:",1567,172,3436,73,1630,209,2209,360,812,136,927,174,3881,59,5157,101,21557,165,2037,334,761,165,528,103,1056,234,6183,121,257,112,1147,153,618,104,886,208,7071,107,1758,258,3324,112,1891,327,3755,135]
[null,"Male:",758,116,1879,137,776,113,1170,214,419,80,419,76,2064,204,2617,209,10500,345,929,184,341,73,237,48,557,149,3018,206,99,40,563,96,307,63,371,70,3438,199,925,172,1616,159,824,155,1866,182]
[null,"5 to 17  years:",96,55,452,132,97,40,101,36,52,31,47,26,277,125,566,154,1379,180,129,64,37,23,17,12,82,37,470,153,4,6,104,62,18,12,34,16,425,130,149,79,312,115,51,27,311,122]
[null,"With cognitive difficulty",0,12,37,54,0,12,4,5,3,5,3,5,18,32,34,42,102,47,0,12,2,3,0,12,13,19,0,17,0,12,0,12,7,5,5,9,6,14,0,12,0,12,0,12,6,13]
[null,"With no cognitive difficulty",96,55,415,138,97,40,97,35,49,30,44,26,259,112,532,157,1277,172,129,64,35,23,17,12,69,31,470,153,4,6,104,62,11,11,29,14,419,131,149,79,312,115,51,27,305,121]
[null,"18 to 34  years:",147,61,366,146,136,55,226,92,119,56,38,20,294,122,408,190,3702,372,175,92,53,32,25,15,110,61,941,135,17,10,81,29,88,36,49,28,528,182,191,77,366,116,117,52,388,118]
[null,"With cognitive difficulty",7,10,25,38,13,21,0,12,4,7,0,12,50,64,31,56,315,143,18,26,2,6,2,3,3,6,53,46,0,12,8,11,2,4,0,12,61,68,9,13,5,9,3,6,0,12]
[null,"With no cognitive difficulty",140,61,341,142,123,53,226,92,115,56,38,20,244,107,377,187,3387,395,157,83,51,31,23,14,107,60,888,122,17,10,73,30,86,36,49,28,467,184,182,75,361,116,114,51,388,118]
[null,"35 to 64  years:",357,76,537,175,338,83,605,177,158,38,190,52,878,165,1310,200,3790,283,440,108,153,41,116,30,192,53,983,154,65,37,279,49,134,28,164,44,1568,216,419,95,571,100,395,97,910,152]
[null,"With cognitive difficulty",10,11,62,94,2,3,16,21,24,17,17,16,42,47,113,89,134,106,25,16,0,12,2,4,8,7,9,15,1,2,0,12,4,4,8,8,42,44,16,23,0,12,6,7,56,44]
[null,"With no cognitive difficulty",347,79,475,158,336,82,589,179,134,32,173,50,836,171,1197,182,3656,313,415,105,153,41,114,30,184,53,974,153,64,37,279,49,130,28,156,44,1526,222,403,90,571,100,389,98,854,148]
[null,"65 to 74  years:",106,42,367,125,153,64,195,55,76,29,91,28,433,236,159,87,899,135,83,37,75,38,59,21,145,100,428,106,10,6,68,17,40,17,80,34,533,186,121,49,271,74,156,50,193,70]
[null,"With cognitive difficulty",0,12,44,63,0,12,5,8,6,7,3,4,223,226,0,17,15,24,0,12,0,12,0,12,0,12,0,17,2,4,0,12,4,4,0,12,36,39,0,12,22,23,0,12,9,14]
[null,"With no cognitive difficulty",106,42,323,119,153,64,190,52,70,28,88,28,210,116,159,87,884,137,83,37,75,38,59,21,145,100,428,106,8,7,68,17,36,17,80,34,497,181,121,49,249,68,156,50,184,67]
[null,"75  years and Older:",52,33,157,80,52,26,43,19,14,10,53,20,182,113,174,110,730,148,102,43,23,13,20,10,28,16,196,97,3,3,31,15,27,14,44,21,384,157,45,29,96,46,105,66,64,35]
[null,"With cognitive difficulty",5,8,0,12,0,12,0,12,5,8,4,6,14,19,0,17,90,67,1,4,2,3,2,3,6,11,0,17,0,12,0,12,0,12,0,12,26,39,0,12,0,12,11,10,8,11]
[null,"With no cognitive difficulty",47,31,157,80,52,26,43,19,9,7,49,20,168,113,174,110,640,146,101,43,21,12,18,10,22,12,196,97,3,3,31,15,27,14,44,21,358,130,45,29,96,46,94,60,56,37]
[null,"Female:",809,96,1557,132,854,132,1039,177,393,74,508,108,1817,205,2540,218,11057,383,1108,189,420,108,291,67,499,117,3165,194,158,79,584,81,311,57,515,163,3633,206,833,124,1708,137,1067,207,1889,200]
[null,"5 to 17  years:",100,34,144,80,149,44,106,53,38,29,52,39,225,70,617,129,1041,198,198,77,116,56,46,30,58,27,443,150,5,5,89,33,30,15,95,63,602,142,113,46,287,98,180,81,289,127]
[null,"With cognitive difficulty",0,12,19,28,0,12,4,6,4,4,0,12,0,12,95,95,60,72,0,12,11,13,0,12,0,12,0,17,0,12,3,5,3,4,2,3,16,25,0,12,35,44,0,12,0,12]
[null,"With no cognitive difficulty",100,34,125,68,149,44,102,52,34,29,52,39,225,70,522,148,981,190,198,77,105,53,46,30,58,27,443,150,5,5,86,32,27,14,93,63,586,145,113,46,252,94,180,81,289,127]
[null,"18 to 34  years:",117,55,323,125,63,26,151,78,95,35,89,40,306,147,307,170,3991,285,117,53,72,40,27,18,69,47,1002,156,67,57,102,41,74,37,122,78,424,133,205,65,318,144,119,67,492,192]
[null,"With cognitive difficulty",13,12,0,12,0,12,0,12,0,12,4,7,0,12,0,17,314,136,13,21,0,12,4,5,0,12,123,78,0,12,4,7,0,12,9,8,18,28,27,21,10,17,0,12,33,31]
[null,"With no cognitive difficulty",104,54,323,125,63,26,151,78,95,35,85,40,306,147,307,170,3677,325,104,50,72,40,23,16,69,47,879,155,67,57,98,40,74,37,113,77,406,130,178,62,308,146,119,67,459,199]
[null,"35 to 64  years:",329,67,729,167,404,97,484,84,170,44,220,61,843,127,1144,160,3688,301,586,139,132,39,140,38,226,60,1067,134,66,30,257,49,145,28,179,54,1648,206,352,89,699,118,430,101,753,132]
[null,"With cognitive difficulty",53,50,0,12,0,12,0,12,4,4,10,13,26,25,65,74,250,118,53,51,12,12,0,12,2,4,36,49,2,3,3,4,4,4,0,12,61,49,12,14,28,26,2,5,20,22]
[null,"With no cognitive difficulty",276,47,729,167,404,97,484,84,166,42,210,59,817,121,1079,149,3438,273,533,131,120,36,140,38,224,59,1031,120,64,29,254,49,141,28,179,54,1587,213,340,88,671,119,428,101,733,132]
[null,"65 to 74  years:",173,71,244,110,162,54,251,106,58,25,107,30,214,97,276,101,1300,181,120,51,67,38,48,17,69,30,431,102,13,5,86,25,40,14,72,25,587,143,101,32,182,50,215,110,204,79]
[null,"With cognitive difficulty",0,12,0,12,0,12,17,20,0,12,8,10,17,17,0,17,92,52,11,12,0,12,0,12,2,4,14,22,0,12,2,5,0,12,0,12,0,17,0,12,6,8,10,12,24,37]
[null,"With no cognitive difficulty",173,71,244,110,162,54,234,104,58,25,99,29,197,97,276,101,1208,178,109,48,67,38,48,17,67,30,417,106,13,5,84,24,40,14,72,25,587,143,101,32,176,50,205,109,180,72]
[null,"75  years and Older:",90,47,117,76,76,51,47,27,32,14,40,22,229,155,196,97,1037,197,87,42,33,18,30,21,77,40,222,107,7,7,50,22,22,13,47,20,372,116,62,38,222,100,123,45,151,66]
[null,"With cognitive difficulty",6,8,0,12,3,4,7,9,9,10,0,12,0,12,69,82,39,37,0,12,3,4,2,6,22,28,45,60,1,2,5,6,4,5,10,7,7,14,0,12,80,77,10,10,0,12]
[null,"With no cognitive difficulty",84,46,117,76,73,50,40,25,23,11,40,22,229,155,127,65,998,194,87,42,30,18,28,18,55,26,177,85,6,7,45,20,18,12,37,20,365,116,62,38,142,81,113,45,151,66]
[]
[]
[{"$f":"A1& \"-Calculated\"","v":"B18104. SEX BY AGE BY COGNITIVE DIFFICULTY\n\n-Calculated"}]
[{"$f":"A2","v":"Universe:  Civilian noninstitutionalized population 5 years and over"}]
[{"$f":"A3","v":"Data Set: 2018-2022 American Community Survey 5-Year Estimates"}]
[]
[]
[null,null,"Alstead",null,"Chesterfield",null,"Dublin",null,"Fitzwilliam",null,"Gilsum",null,"Harrisville",null,"Hinsdale",null,"Jaffrey",null,"Keene",null,"Marlborough",null,"Marlow",null,"Nelson",null,"Richmond",null,"Rindge",null,"Roxbury",null,"Stoddard",null,"Sullivan",null,"Surry",null,"Swanzey",null,"Troy",null,"Walpole",null,"Westmoreland",null,"Winchester"]
[null,null,"Estimate","Margin Of Error","Estimate","Margin Of Error","Estimate","Margin Of Error","Estimate","Margin Of Error","Estimate","Margin Of Error","Estimate","Margin Of Error","Estimate","Margin Of Error","Estimate","Margin Of Error","Estimate","Margin Of Error","Estimate","Margin Of Error","Estimate","Margin Of Error","Estimate","Margin Of Error","Estimate","Margin Of Error","Estimate","Margin Of Error","Estimate","Margin Of Error","Estimate","Margin Of Error","Estimate","Margin Of Error","Estimate","Margin Of Error","Estimate","Margin Of Error","Estimate","Margin Of Error","Estimate","Margin Of Error","Estimate","Margin Of Error","Estimate","Margin Of Error"]
[null,"Total:",{"$f":"C7","v":1567},172,3436,73,1630,209,2209,360,812,136,927,174,3881,59,5157,101,21557,165,2037,334,761,165,528,103,1056,234,6183,121,257,112,1147,153,618,104,886,208,7071,107,1758,258,3324,112,1891,327,3755,135]
[null,"5 to 17  years:",{"$f":"C25+C9","v":196},{"$f":"SQRT((D25^2)+(D9^2))","v":64.660652641308843},{"$f":"E25+E9","v":596},{"$f":"SQRT((F25^2)+(F9^2))","v":154.35025105259791},{"$f":"G25+G9","v":246},{"$f":"SQRT((H25^2)+(H9^2))","v":59.464274989274024},{"$f":"I25+I9","v":207},{"$f":"SQRT((J25^2)+(J9^2))","v":64.070273918565391},{"$f":"K25+K9","v":90},{"$f":"SQRT((L25^2)+(L9^2))","v":42.449970553582247},{"$f":"M25+M9","v":99},{"$f":"SQRT((N25^2)+(N9^2))","v":46.872166581031863},{"$f":"O25+O9","v":502},{"$f":"SQRT((P25^2)+(P9^2))","v":143.26548781894402},{"$f":"Q25+Q9","v":1183},{"$f":"SQRT((R25^2)+(R9^2))","v":200.89051744669283},{"$f":"S25+S9","v":2420},{"$f":"SQRT((T25^2)+(T9^2))","v":267.58923745173308},{"$f":"U25+U9","v":327},{"$f":"SQRT((V25^2)+(V9^2))","v":100.12492197250393},{"$f":"W25+W9","v":153},{"$f":"SQRT((X25^2)+(X9^2))","v":60.539243470661241},{"$f":"Y25+Y9","v":63},{"$f":"SQRT((Z25^2)+(Z9^2))","v":32.310988842807021},{"$f":"AA25+AA9","v":140},{"$f":"SQRT((AB25^2)+(AB9^2))","v":45.803929962395145},{"$f":"AC25+AC9","v":913},{"$f":"SQRT((AD25^2)+(AD9^2))","v":214.26385602802915},{"$f":"AE25+AE9","v":9},{"$f":"SQRT((AF25^2)+(AF9^2))","v":7.810249675906654},{"$f":"AG25+AG9","v":193},{"$f":"SQRT((AH25^2)+(AH9^2))","v":70.235318750611498},{"$f":"AI25+AI9","v":48},{"$f":"SQRT((AJ25^2)+(AJ9^2))","v":19.209372712298546},{"$f":"AK25+AK9","v":129},{"$f":"SQRT((AL25^2)+(AL9^2))","v":65},{"$f":"AM25+AM9","v":1027},{"$f":"SQRT((AN25^2)+(AN9^2))","v":192.52012881774206},{"$f":"AO25+AO9","v":262},{"$f":"SQRT((AP25^2)+(AP9^2))","v":91.4166286842826},{"$f":"AQ25+AQ9","v":599},{"$f":"SQRT((AR25^2)+(AR9^2))","v":151.09268678529745},{"$f":"AS25+AS9","v":231},{"$f":"SQRT((AT25^2)+(AT9^2))","v":85.381496824546247},{"$f":"AU25+AU9","v":600},{"$f":"SQRT((AV25^2)+(AV9^2))","v":176.10508226624239}]
[null,"With cognitive difficulty",0,16.970562748477139,56,60.827625302982199,0,16.970562748477139,8,7.810249675906654,7,6.4031242374328485,3,13,18,34.176014981270121,129,103.87011119662864,162,85.982556370463882,0,16.970562748477139,13,13.341664064126334,0,16.970562748477139,13,22.472205054244231,0,24.041630560342615,0,16.970562748477139,3,13,10,6.4031242374328485,7,9.4868329805051381,22,28.653097563788805,0,16.970562748477139,35,45.607017003965517,0,16.970562748477139,6,17.691806012954132]
[null,"With no cognitive difficulty",196,64.660652641308843,540,153.84407690905749,246,59.464274989274024,199,62.681735776859277,83,41.725292090050132,96,46.872166581031863,484,132.07573584879245,1054,215.76144233852349,2258,256.28889948649748,327,100.12492197250393,140,57.77542730261716,63,32.310988842807021,127,41.109609582188931,913,214.26385602802915,9,7.810249675906654,190,69.771054170049638,38,17.804493814764857,122,64.536811201050213,1005,195.41238445912276,262,91.4166286842826,564,148.52945835759317,231,85.381496824546247,594,175.41379649275024]
[null,"18 to 34  years:",264,82.134036793524274,689,192.20041623263984,199,60.835844697020519,377,120.61509026651682,214,66.037867924396224,127,44.721359549995796,600,191.03141102970474,715,254.95097567963924,7693,468.62458322200723,292,106.17438485811914,125,51.224993899462788,52,23.430749027719962,179,77.006493232713822,1943,206.30317496345035,84,57.870545184921149,183,50.219518117958877,162,51.623637996561229,171,82.87339742040264,952,225.41739063346466,396,100.7670581092849,684,184.91078930121952,236,84.811555816409836,880,225.36193112413639]
[null,"With cognitive difficulty",20,15.620499351813308,25,39.849717690342551,13,24.186773244895647,0,16.970562748477139,4,13.892443989449804,4,13.892443989449804,50,65.115282384398824,31,58.523499553598128,629,197.3448757885545,31,33.421549934136806,2,13.416407864998739,6,5.8309518948453007,3,13.416407864998739,176,90.553851381374173,0,16.970562748477139,12,13.038404810405298,2,12.649110640673518,9,14.422205101855956,79,73.53910524340094,36,24.698178070456937,15,19.235384061671343,3,13.416407864998739,33,33.241540277189323]
[null,"With no cognitive difficulty",244,81.467785044151043,664,189.17980864775183,186,59.033888572581766,377,120.61509026651682,210,66.037867924396224,123,44.721359549995796,550,181.81859090863068,684,252.7231687044146,7064,511.51735063436507,261,96.896852374058057,123,50.606323715519977,46,21.2602916254693,176,76.216796049164913,1767,197.25364381932212,84,57.870545184921149,171,50,160,51.623637996561229,162,81.93289937503738,873,225.29092303064499,360,97.308786859152647,669,186.47251808242416,233,84.202137740083529,847,231.35470602518549]
[null,"35 to 64  years:",686,101.31633629380802,1266,241.89667215569543,742,127.66362050325849,1089,195.92090240706835,328,58.137767414994535,410,80.156097709406993,1721,208.21623375712088,2454,256.12496949731394,7478,413.14646313383827,1026,176.02556632489498,285,56.586217403180434,256,48.414873747640819,418,80.05623023850174,2050,204.13720875920686,131,47.634021455258214,536,69.296464556281663,279,39.597979746446661,343,69.656299069071991,3216,298.48283032697208,771,130.17680284904833,1270,154.67385040788247,825,140.03570973148243,1663,201.31567251458591]
[null,"With cognitive difficulty",63,51.195702944680818,62,94.762861923857074,2,12.369316876852981,16,24.186773244895647,28,17.464249196572979,27,20.615528128088304,68,53.235326616824658,178,115.74541027617467,384,158.61904047118682,78,53.450912059571067,12,16.970562748477139,2,12.649110640673518,10,8.0622577482985491,45,51.244511901275828,3,3.6055512754639891,3,12.649110640673518,8,5.6568542494923806,8,14.422205101855956,103,65.855903304107827,28,26.92582403567252,28,28.635642126552707,8,8.6023252670426267,76,49.193495504995376]
[null,"With no cognitive difficulty",623,91.923881554251182,1204,229.8978033822855,740,127.01574705523721,1073,197.72961336127676,300,52.801515129776341,383,77.336925203941234,1653,209.48030933717851,2276,235.21266972678151,7094,415.32878542186307,948,167.88686666919483,273,54.561891462814962,254,48.414873747640819,408,79.309520235593411,2005,194.44536507718561,128,47.010637094172637,533,69.296464556281663,271,39.597979746446661,335,69.656299069071991,3113,307.65727685201921,743,125.8729518204765,1242,155.43809056984713,817,140.73023839957068,1587,198.31288409984865]
[null,"65 to 74  years:",279,82.492423894561369,611,166.50825805346713,315,83.737685661833282,446,119.41942890501528,134,38.288379438153292,198,41.036569057366385,647,255.15681452785068,435,133.30416347586447,2199,225.80079716422614,203,63.007936008093459,142,53.740115370177612,107,27.018512172212592,214,104.4030650891055,859,147.10540438746634,23,7.810249675906654,154,30.232432915661949,80,22.022715545545239,152,42.201895692018383,1120,234.61670869739862,222,58.523499553598128,453,89.308454247064432,371,120.83045973594572,397,105.55093557141026]
[null,"With cognitive difficulty",0,16.970562748477139,44,64.132674979295857,0,16.970562748477139,22,21.540659228538015,6,13.892443989449804,11,10.770329614269007,240,226.63847863944022,0,24.041630560342615,107,57.271284253105414,11,16.970562748477139,0,16.970562748477139,0,16.970562748477139,2,12.649110640673518,14,27.802877548915689,2,12.649110640673518,2,13,4,12.649110640673518,0,16.970562748477139,36,42.544094772365298,0,16.970562748477139,28,24.351591323771842,10,16.970562748477139,33,39.560080889704963]
[null,"With no cognitive difficulty",279,82.492423894561369,567,162.05246064160829,315,83.737685661833282,424,116.27553482998907,128,37.536648758246919,187,40.311288741492746,407,151.21177202850313,435,133.30416347586447,2092,224.61745257214542,192,60.605280298007038,142,53.740115370177612,107,27.018512172212592,212,104.4030650891055,845,149.90663761154806,21,8.6023252670426267,152,29.410882339705484,76,22.022715545545239,152,42.201895692018383,1084,230.67292862405853,222,58.523499553598128,425,84.403791384036765,361,119.92080720208649,364,98.35141076771599]
[null,"75  years and Older:",142,57.428216061444921,274,110.34491379306978,128,57.245087125446844,90,33.015148038438355,46,17.204650534085253,93,29.732137494637012,411,191.81762171396036,370,146.65946952038249,1767,246.40008116881779,189,60.108235708594876,56,22.203603311174518,50,23.259406699226016,105,43.08131845707603,418,144.42298985964803,10,7.6157731058639087,81,26.627053911388696,49,19.104973174542799,91,29,756,195.20502042724209,107,47.801673610868477,318,110.07270324653611,228,79.881161734166085,215,74.706090782479038]
[null,"With cognitive difficulty",11,11.313708498984761,0,16.970562748477139,3,12.649110640673518,7,15,14,12.806248474865697,4,13.416407864998739,14,22.472205054244231,69,83.74365647617735,129,76.53757247260981,1,12.649110640673518,5,5,4,6.7082039324993694,28,30.083217912982647,45,62.361847310675458,1,12.165525060596439,5,13.416407864998739,4,13,10,13.892443989449804,33,41.43669871020132,0,16.970562748477139,80,77.929455278476055,21,14.142135623730951,8,16.278820596099706]
[null,"With no cognitive difficulty",131,55.470712993434653,274,110.34491379306978,125,56.356011214421486,83,31.400636936215164,32,13.038404810405298,89,29.732137494637012,397,191.81762171396036,301,127.76932339180638,1638,242.80032948906802,188,60.108235708594876,51,21.633307652783937,46,20.591260281974002,77,28.635642126552707,373,128.97286536322281,9,7.6157731058639087,76,25,45,18.439088914585774,81,29,723,174.22973339817747,107,47.801673610868477,238,93.150415994776964,207,75,207,75.663729752107784]
[]
[]
[]
[]
[]
[]
[]
[]
[]
[]
[]
[]
[]
[]
[]
[]
[]
[]
[]
[]
[]
[]
[]
[]
[]
[]
[]
[]
[]
[]
[]
[]
[]
[]
[]
["B18104. SEX BY AGE BY COGNITIVE DIFFICULTY\n\n-Calculated"]
["Universe:  Civilian noninstitutionalized population 5 years and over"]
["Data Set: 2013-2017 American Community Survey 5-Year Estimates"]
[]
[]
[null,null,"Alstead",null,"Chesterfield",null,"Dublin",null,"Fitzwilliam",null,"Gilsum",null,"Harrisville",null,"Hinsdale",null,"Jaffrey",null,"Keene",null,"Marlborough",null,"Marlow",null,"Nelson",null,"Richmond",null,"Rindge",null,"Roxbury",null,"Stoddard",null,"Sullivan",null,"Surry",null,"Swanzey",null,"Troy",null,"Walpole",null,"Westmoreland",null,"Winchester"]
[null,null,"Estimate","Margin Of Error","Estimate","Margin Of Error","Estimate","Margin Of Error","Estimate","Margin Of Error","Estimate","Margin Of Error","Estimate","Margin Of Error","Estimate","Margin Of Error","Estimate","Margin Of Error","Estimate","Margin Of Error","Estimate","Margin Of Error","Estimate","Margin Of Error","Estimate","Margin Of Error","Estimate","Margin Of Error","Estimate","Margin Of Error","Estimate","Margin Of Error","Estimate","Margin Of Error","Estimate","Margin Of Error","Estimate","Margin Of Error","Estimate","Margin Of Error","Estimate","Margin Of Error","Estimate","Margin Of Error","Estimate","Margin Of Error","Estimate","Margin Of Error"]
[null,"Total:",1765,222,3189,160,1445,166,2198,197,686,77,898,140,3786,106,21825,258,22135,296,2033,292,663,102,537,86,1170,160,5597,126,199,55,1140,166,643,93,842,118,6761,152,2075,277,3695,85,1651,206,3889,159]
[null,"5 to 17  years:",234,89.050547443572739,467,154.76756766196203,234,62.433965115151864,278,75.166481891864535,100,25,81,30.528675044947494,617,137.2953021774598,2821,288.84597971929605,2791,291,266,90.686272390037075,101,31.906112267087632,62,22.671568097509269,161,52.201532544552748,849,190.31815467789718,19,12.083045973594572,158,51.088159097779204,92,42.544094772365298,124,42.544094772365298,894,221.29844102478444,363,106.10372283760829,579,141.79210133149166,243,65.36818798161687,637,146.21901381147393]
[null,"With cognitive difficulty",0,15.556349186104045,26,30.083217912982647,6,13.038404810405298,0,15.556349186104045,0,15.556349186104045,0,15.556349186104045,23,28.231188426986208,150,106.77546534667971,140,101.13851887386922,0,15.556349186104045,3,11.704699910719626,9,17.029386365926403,11,16.278820596099706,33,30.528675044947494,2,12.083045973594572,0,15.556349186104045,0,15.556349186104045,0,15.556349186104045,25,40.311288741492746,33,34,0,15.556349186104045,2,11.704699910719626,49,66.91038783328041]
[null,"With no cognitive difficulty",234,89.050547443572739,441,150.94369811290565,228,61.911226768656427,278,75.166481891864535,100,25,81,30.528675044947494,594,138.95682782792647,2671,278.87093789063067,2651,280.0321410124202,266,90.686272390037075,98,31.064449134018133,53,19.209372712298546,150,51.61395160225576,816,187.41664813991312,17,11.180339887498949,158,51.088159097779204,92,42.544094772365298,124,42.544094772365298,869,215.8008341040414,330,101.17806086301516,579,141.79210133149166,241,64.884512790033341,588,136.517398158623]
[null,"18 to 34  years:",369,111.01801655587259,432,135.79396157414365,256,67.007462271003817,409,96.426137535421375,121,29,91,31.240998703626616,587,140.01428498549711,7744,445.31000437897194,8156,446.97762807549998,413,116.1077086157504,104,31.89043743820395,128,41.231056256176608,280,73.006848993775918,1973,237.26145915424192,50,17.691806012954132,208,55.605755097831377,129,39.66106403010388,126,37.483329627982627,1572,281.58480072617556,430,145.34441853748632,704,146.64924138910504,298,75.663729752107784,933,159.13830462839547]
[null,"With cognitive difficulty",0,15.556349186104045,0,15.556349186104045,5,15.556349186104045,19,21.095023109728988,7,6.4031242374328485,0,15.556349186104045,87,68.658575575087482,415,157.63248396190426,360,139.18692467326088,48,44.10215414239989,0,15.556349186104045,0,15.556349186104045,29,20.615528128088304,24,34.885527085024819,0,15.556349186104045,3,11.704699910719626,2,11.704699910719626,3,5,159,97.324200484771509,17,30.083217912982647,18,21.931712199461309,6,14.212670403551895,58,54.037024344425184]
[null,"With no cognitive difficulty",369,111.01801655587259,432,135.79396157414365,251,65.80273550544841,390,91.241437954473298,114,27.586228448267445,91,31.240998703626616,500,132.54810447531869,7329,440.04772468449374,7796,445.82619931986949,365,108.04628637764465,104,31.89043743820395,128,41.231056256176608,251,73.81734213584231,1949,235.77319610167734,50,17.691806012954132,205,55,127,39.66106403010388,123,36.76955262170047,1413,276.17566873278321,413,140.00357138301865,686,142.43595051811886,292,74.249579123386283,875,155.21919984331836]
[null,"35 to 64  years:",801,101.11874208078342,1501,172.00290695217916,678,81.394102980498531,1011,126.62148316932637,349,45.967379738244816,441,63.655321851358195,1833,171.26587517658035,7687,334.67745666536911,7637,355.06900737743922,934,128.76334882255898,337,47.423622805517503,238,40.459856648287818,550,71.217975259059429,1949,153.52198539622916,99,25.80697580112788,510,82.800966177937809,296,40.311288741492746,409,52.801515129776341,3053,248.01814449753471,985,129.07362240210043,1685,150.86417732516887,800,86.278618440491968,1639,181.79383927955314]
[null,"With cognitive difficulty",21,14.317821063276353,17,28.231188426986208,3,12.083045973594572,51,38.209946349085598,32,17.464249196572979,18,17.888543819998318,75,63.134776470658387,392,129.63024338479042,396,129.0348790056394,36,33.241540277189323,7,6.4031242374328485,15,9.4339811320566032,25,23.769728648009426,70,41.725292090050132,7,13.601470508735444,14,9.8488578017961039,7,15.556349186104045,4,11.704699910719626,203,123.71337841963576,69,32.449961479175904,56,37.643060449437421,20,14.866068747318506,94,63.694583757176716]
[null,"With no cognitive difficulty",780,99.03534722511958,1484,170.20575783445165,675,81.394102980498531,960,126.58988901172162,317,45.967379738244816,423,62.289646009589745,1758,161.22654868228122,7295,338.74031351464504,7241,350.82759298550047,898,125.1758762701504,330,46.75467891024384,223,38.209946349085598,525,64.443773942872099,1879,154.15576538034509,92,23.430749027719962,496,80.802227692063042,289,40.311288741492746,405,52.009614495783374,2850,256.36302385484532,916,128.14444974324874,1629,151.64761785138597,780,84.864598037108507,1545,179.8054504179448]
[null,"65 to 74  years:",247,55.172456896534889,508,128.70120434556935,180,38.600518131237564,360,80.802227692063042,75,17.691806012954132,198,38.948684188300895,509,98.081598681913832,1908,174.77127910500627,1987,190.53608582103286,246,65.115282384398824,57,18.439088914585774,63,20.248456731316587,106,27.658633371878661,512,97.590983190046813,23,9.4339811320566032,150,38.897300677553446,80,24.041630560342615,123,30.232432915661949,614,129.52991932368366,184,51.855568649856693,364,98.270036124955197,213,54.488530903301111,435,88.600225733346747]
[null,"With cognitive difficulty",5,12.529964086141668,51,61.98386886924694,0,15.556349186104045,14,12.206555615733702,0,15.556349186104045,3,12.083045973594572,24,22.472205054244231,121,70.83078426785913,110,62.625873247404705,0,15.556349186104045,4,4.2426406871192848,0,15.556349186104045,0,15.556349186104045,33,42.154477816715982,4,11.704699910719626,0,15.556349186104045,12,15,4,4.2426406871192848,43,68.8839603971781,10,15.556349186104045,41,46.324939287601879,10,9.4339811320566032,31,48.270073544588683]
[null,"With no cognitive difficulty",242,55.172456896534889,457,122.42957159118053,180,38.600518131237564,346,79.404030124421269,75,17.691806012954132,195,38.948684188300895,485,100.00499987500625,1787,172.15400082484288,1877,187.97074240423694,246,65.115282384398824,53,17.691806012954132,63,20.248456731316587,106,27.658633371878661,479,92.849340331528467,19,7.810249675906654,150,38.897300677553446,68,19.209372712298546,119,30.232432915661949,571,127.06297651164952,174,52.497618993626752,323,86.608313688698502,203,53.075418038862395,404,82.328609851011095]
[null,"75  years and Older:",114,45.793012567421243,281,121.75385004179539,97,31.11269837220809,140,48.104053883222775,41,15.811388300841896,87,55.108982933819419,240,90.210864090751286,1665,226.25870149013053,1564,202.94334184693028,174,56.727418414731339,64,19.849433241279208,46,16.401219466856727,73,27.658633371878661,314,95.268042910516428,8,11.180339887498949,114,38.209946349085598,46,16.970562748477139,60,18.357559750685819,628,147.75655653811103,113,52.497618993626752,363,95.524865872714003,97,32.802438933713454,245,76.478755219995577]
[null,"With cognitive difficulty",16,12.206555615733702,0,15.556349186104045,9,13.601470508735444,17,22.825424421026653,4,5,3,11.704699910719626,9,17.804493814764857,118,72.47068372797375,152,95.078914592037705,9,14.866068747318506,2,11.401754250991379,0,15.556349186104045,9,13.038404810405298,52,34.176014981270121,2,5,4,12.083045973594572,2,11.401754250991379,11,11.401754250991379,54,43.863424398922618,41,36.674241641784498,15,20.248456731316587,13,15.556349186104045,0,15.556349186104045]
[null,"With no cognitive difficulty",98,45.276925690687087,281,121.75385004179539,88,31.11269837220809,123,43.600458713183279,37,13.601470508735444,84,55.108982933819419,231,89.358827208060418,1547,232.14219780126146,1412,200.0099997500125,165,55.97320787662612,62,19.849433241279208,46,16.401219466856727,64,27.018512172212592,262,86.313382508160345,6,7.6157731058639087,110,37.536648758246919,44,16.970562748477139,49,14.212670403551895,574,143.84018909887459,72,35.777087639996637,348,99.247166206396045,84,31.064449134018133,245,76.478755219995577]
[]
[]
[]
[]
[]
[]
[]
[]
["B18104. SEX BY AGE BY COGNITIVE DIFFICULTY\n\n-Calculated"]
["Universe:  Civilian noninstitutionalized population 5 years and over"]
["Data Set: 2008-2012 American Community Survey 5-Year Estimates"]
[]
[]
[null,null,"Alstead",null,"Chesterfield",null,"Dublin",null,"Fitzwilliam",null,"Gilsum",null,"Harrisville",null,"Hinsdale",null,"Jaffrey",null,"Keene",null,"Marlborough",null,"Marlow",null,"Nelson",null,"Richmond",null,"Rindge",null,"Roxbury",null,"Stoddard",null,"Sullivan",null,"Surry",null,"Swanzey",null,"Troy",null,"Walpole",null,"Westmoreland",null,"Winchester"]
[null," ","Estimate","Margin of Error","Estimate","Margin of Error","Estimate","Margin of Error","Estimate","Margin of Error","Estimate","Margin of Error","Estimate","Margin of Error","Estimate","Margin of Error","Estimate","Margin of Error","Estimate","Margin of Error","Estimate","Margin of Error","Estimate","Margin of Error","Estimate","Margin of Error","Estimate","Margin of Error","Estimate","Margin of Error","Estimate","Margin of Error","Estimate","Margin of Error","Estimate","Margin of Error","Estimate","Margin of Error","Estimate","Margin of Error","Estimate","Margin of Error","Estimate","Margin of Error","Estimate","Margin of Error","Estimate","Margin of Error"]
[null,"Total:",1780,162,3411,97,1672,208,2428,243,524,71,874,128,3771,115,5122,164,22300,238,1891,249,855,177,723,155,944,133,5606,116,212,36,951,160,664,105,797,109,6907,134,1996,272,3471,118,1829,213,3921,135]
[null,"5 to 17  years:",358,89.202017914394744,470,138.2931668593933,361,98.716766559688324,349,90.603531939985658,36,16.970562748477139,113,44.944410108488462,509,123.76186811776881,1030,206.92993983471797,2967,302.12083675244912,294,105.99056561788883,151,50.990195135927848,105,41.109609582188931,174,68.8839603971781,897,144.30869689661813,40,15.652475842498529,133,52.201532544552748,130,48.548944375753422,91,31.89043743820395,1194,194.74342094150447,360,94.047860156411858,658,130.91982279242512,350,89.044932477934978,588,138.70832707519762]
[null,"With cognitive difficulty",9,9.2195444572928871,17,27.313000567495326,24,21.377558326431949,15,21.095023109728988,0,15.556349186104045,0,15.556349186104045,155,89.10667763978185,29,35.735136770411273,78,49.396356140913873,0,15.556349186104045,11,10.440306508910551,19,17.691806012954132,10,14.866068747318506,23,31.384709652950431,0,15.556349186104045,19,16.15549442140351,24,20.615528128088304,0,15.556349186104045,115,82.969874050766165,17,21.95449840010015,71,80.752708932889675,8,8.6023252670426267,36,37.643060449437421]
[null,"With no cognitive difficulty",349,89.202017914394744,453,136.35981812836215,337,93.60021367496978,334,87.458561616344909,36,16.970562748477139,113,44.944410108488462,354,85.0411665018772,1001,210.62288574606512,2889,299.40774873072343,294,105.99056561788883,140,48.414873747640819,86,37.643060449437421,164,68.8839603971781,874,146.64924138910504,40,15.652475842498529,114,49.396356140913873,106,39.962482405376171,91,31.89043743820395,1079,186.6815470259447,343,94.868329805051374,587,118.06777714516353,342,86.821656284592962,552,135.07405376311175]
[null,"18 to 34  years:",301,70.724818840347695,584,200.5617112013158,212,73.348483283568996,399,104.95713410721541,100,33.421549934136806,96,31.240998703626616,761,155.20631430454111,754,179.96110690924303,7934,476.76514134319848,307,98.290386101591849,110,47.413078364518789,108,44.407206622349037,164,44.654227123532216,2383,260.59930928534709,31,12.529964086141668,105,37.643060449437421,142,44.407206622349037,135,36.61966684720111,1376,220.86421167767313,520,105.38026380684383,671,129.5569372901351,300,75.690157880665041,704,148.52945835759317]
[null,"With cognitive difficulty",21,21.540659228538015,0,15.556349186104045,0,15.556349186104045,7,14.866068747318506,6,12.529964086141668,0,15.556349186104045,87,56.089214649520635,0,22.627416997969522,233,115.76268828944843,10,19.416487838947599,3,4.2426406871192848,0,15.556349186104045,0,15.556349186104045,42,36.069377593742864,0,15.556349186104045,0,15.556349186104045,5,12.083045973594572,0,15.556349186104045,31,33.541019662496844,28,31.016124838541646,53,35.777087639996637,1,11.401754250991379,64,65.924198895398035]
[null,"With no cognitive difficulty",280,67.268120235368556,584,200.5617112013158,212,73.348483283568996,392,104.44615837837216,94,31.622776601683793,96,31.240998703626616,674,158.64740779476983,754,179.96110690924303,7701,498.72738043945412,297,94.111635837445732,107,47.413078364518789,108,44.407206622349037,164,44.654227123532216,2341,257.28777662376422,31,12.529964086141668,105,37.643060449437421,137,43.600458713183279,135,36.61966684720111,1345,219.20994502987313,492,103.23759005323593,618,126.62148316932637,299,74.966659255965254,640,144.20124826089406]
[null,"35 to 64  years:",852,86.556340033529608,1690,164.14932226482082,806,107.41508273980894,1319,123.3288287465668,293,40.80441152620633,520,70,1732,185.45619428857049,2558,156.63013758533191,8056,310.64449134018133,969,115.88356225108029,437,81.344944526380985,385,67.475921631349351,504,70.802542327235685,1798,165.55663683464942,99,22.203603311174518,544,85.428332536694171,311,41.725292090050132,425,57.982756057296896,3264,221.33458834985552,856,114.97825881443848,1614,140.73023839957068,921,102.53292154230269,2106,235.84952830141509]
[null,"With cognitive difficulty",48,28.460498941515414,25,28.231188426986208,41,59.665735560705194,11,16.278820596099706,17,15.231546211727817,6,12.529964086141668,223,103.47946656221224,56,39.623225512317902,510,132.27622613304328,24,18.601075237738275,29,19.104973174542799,0,15.556349186104045,13,10.816653826391969,25,28.844410203711913,4,5,20,22.825424421026653,17,15.231546211727817,0,15.556349186104045,126,74.303431953039691,67,37.643060449437421,39,36.400549446402593,15,11.661903789690601,63,41.593268686170845]
[null,"With no cognitive difficulty",804,83.630138108220294,1665,162.60688792299052,765,89.827612681179502,1308,124.08464852672147,276,41.617304093369626,514,70,1509,167.26027621644059,2502,158.79546593023366,7546,326.83329083800504,945,114.21471008587291,408,78.492037812761623,385,67.475921631349351,491,70.604532432415411,1773,166.33099530754933,95,20.808652046684813,524,82.328609851011095,294,42.426406871192853,425,57.982756057296896,3138,230.72927859289987,789,112.2007130102122,1575,146.57762448614045,906,101.83319694480774,2043,230.79428069170172]
[null,"65 to 74  years:",158,45.967379738244816,402,145.04137340772803,194,66.211781428987393,263,75.432088662584434,65,22.022715545545239,66,24.041630560342615,416,95.524865872714003,414,112.43220179290273,1482,165.61400906928134,182,53.413481444294568,110,32.557641192199412,81,27.802877548915689,73,21.095023109728988,297,74.027022093286988,32,12.727922061357855,115,36.796738985948195,53,20,79,19.798989873223331,736,140.03570973148243,177,56.824290580701486,277,77.620873481300123,100,37.20215047547655,366,74.411020689142546]
[null,"With cognitive difficulty",2,12.083045973594572,0,15.556349186104045,27,59.033888572581766,27,36.345563690772494,2,11.704699910719626,0,15.556349186104045,26,28.284271247461902,2,16.492422502470642,88,53.009433122794285,5,13.601470508735444,0,15.556349186104045,0,15.556349186104045,0,15.556349186104045,9,21.931712199461309,0,15.556349186104045,3,11.704699910719626,2,11.401754250991379,0,15.556349186104045,11,24.083189157584592,0,15.556349186104045,0,15.556349186104045,4,12.529964086141668,0,15.556349186104045]
[null,"With no cognitive difficulty",156,45.967379738244816,402,145.04137340772803,167,38.209946349085598,236,70.724818840347695,63,22.022715545545239,66,24.041630560342615,390,94.847245611035007,412,112.43220179290273,1394,172.00290695217916,177,51.855568649856693,110,32.557641192199412,81,27.802877548915689,73,21.095023109728988,288,71.61005515987263,32,12.727922061357855,112,36.124783736376884,51,20,79,19.798989873223331,725,138.65785228395831,177,56.824290580701486,277,77.620873481300123,96,37.20215047547655,366,74.411020689142546]
[null,"75  years and Older:",111,37.735924528226413,265,104.00480758118829,99,35.510561809129406,98,43.56604182158393,30,15.556349186104045,79,34.828149534535996,353,120.42009799032718,366,107.71258050942797,1861,183.21571984958058,139,48.877397639399746,47,21.470910553583888,44,17.029386365926403,29,15,231,60.207972893961475,10,6.4031242374328485,54,23.323807579381203,28,19.646882704388499,67,30.232432915661949,337,111.36426715962351,83,34.985711369071801,251,74.202425836356596,158,48.918299234540036,157,58]
[null,"With cognitive difficulty",10,8.6023252670426267,0,15.556349186104045,13,12.041594578792296,19,31.953090617340916,8,13.601470508735444,7,7.0710678118654755,72,60.539243470661241,15,29.681644159311659,259,105.43718509140881,0,15.556349186104045,5,13.601470508735444,6,6.4031242374328485,13,9.8994949366116654,15,26.40075756488817,0,15.556349186104045,0,15.556349186104045,0,15.556349186104045,3,11.704699910719626,99,70.83078426785913,0,15.556349186104045,13,19.416487838947599,18,13.45362404707371,33,29.154759474226502]
[null,"With no cognitive difficulty",101,36.359317925395686,265,104.00480758118829,86,33.286633954186478,79,29.206163733020468,22,13.601470508735444,72,33.421549934136806,281,103.27632836231156,351,107.71258050942797,1602,185.27007313648906,139,48.877397639399746,42,19.924858845171276,38,16.278820596099706,16,9.4339811320566032,216,59.464274989274024,10,6.4031242374328485,54,23.323807579381203,28,19.646882704388499,64,29.681644159311659,238,93.648278147545241,83,34.985711369071801,238,70.292247083159893,140,45.607017003965517,124,51.088159097779204]

{"sheet":"SData_B18105_AmbulatoryDisabil","index":47,"n_rows":64,"n_cols":70,"rows_kept":64,"cut":false,"hidden":true,"merged":[]}
["GEO_ID","GEO_ID2","SUMLEVEL",{"$f":"[1]ACS_16_5YR_B18104_with_ann!C1","v":"NAME"},{"$f":"[1]ACS_16_5YR_B18106_with_ann!D1","v":"B18106_001E"},{"$f":"[1]ACS_16_5YR_B18106_with_ann!E1","v":"B18106_001M"},{"$f":"[1]ACS_16_5YR_B18106_with_ann!F1","v":"B18106_002E"},{"$f":"[1]ACS_16_5YR_B18106_with_ann!G1","v":"B18106_002M"},{"$f":"[1]ACS_16_5YR_B18106_with_ann!H1","v":"B18106_003E"},{"$f":"[1]ACS_16_5YR_B18106_with_ann!I1","v":"B18106_003M"},{"$f":"[1]ACS_16_5YR_B18106_with_ann!J1","v":"B18106_004E"},{"$f":"[1]ACS_16_5YR_B18106_with_ann!K1","v":"B18106_004M"},{"$f":"[1]ACS_16_5YR_B18106_with_ann!L1","v":"B18106_005E"},{"$f":"[1]ACS_16_5YR_B18106_with_ann!M1","v":"B18106_005M"},{"$f":"[1]ACS_16_5YR_B18106_with_ann!N1","v":"B18106_006E"},{"$f":"[1]ACS_16_5YR_B18106_with_ann!O1","v":"B18106_006M"},{"$f":"[1]ACS_16_5YR_B18106_with_ann!P1","v":"B18106_007E"},{"$f":"[1]ACS_16_5YR_B18106_with_ann!Q1","v":"B18106_007M"},{"$f":"[1]ACS_16_5YR_B18106_with_ann!R1","v":"B18106_008E"},{"$f":"[1]ACS_16_5YR_B18106_with_ann!S1","v":"B18106_008M"},{"$f":"[1]ACS_16_5YR_B18106_with_ann!T1","v":"B18106_009E"},{"$f":"[1]ACS_16_5YR_B18106_with_ann!U1","v":"B18106_009M"},{"$f":"[1]ACS_16_5YR_B18106_with_ann!V1","v":"B18106_010E"},{"$f":"[1]ACS_16_5YR_B18106_with_ann!W1","v":"B18106_010M"},{"$f":"[1]ACS_16_5YR_B18106_with_ann!X1","v":"B18106_011E"},{"$f":"[1]ACS_16_5YR_B18106_with_ann!Y1","v":"B18106_011M"},{"$f":"[1]ACS_16_5YR_B18106_with_ann!Z1","v":"B18106_012E"},{"$f":"[1]ACS_16_5YR_B18106_with_ann!AA1","v":"B18106_012M"},{"$f":"[1]ACS_16_5YR_B18106_with_ann!AB1","v":"B18106_013E"},{"$f":"[1]ACS_16_5YR_B18106_with_ann!AC1","v":"B18106_013M"},{"$f":"[1]ACS_16_5YR_B18106_with_ann!AD1","v":"B18106_014E"},{"$f":"[1]ACS_16_5YR_B18106_with_ann!AE1","v":"B18106_014M"},{"$f":"[1]ACS_16_5YR_B18106_with_ann!AF1","v":"B18106_015E"},{"$f":"[1]ACS_16_5YR_B18106_with_ann!AG1","v":"B18106_015M"},{"$f":"[1]ACS_16_5YR_B18106_with_ann!AH1","v":"B18106_016E"},{"$f":"[1]ACS_16_5YR_B18106_with_ann!AI1","v":"B18106_016M"},{"$f":"[1]ACS_16_5YR_B18106_with_ann!AJ1","v":"B18106_017E"},{"$f":"[1]ACS_16_5YR_B18106_with_ann!AK1","v":"B18106_017M"},{"$f":"[1]ACS_16_5YR_B18106_with_ann!AL1","v":"B18106_018E"},{"$f":"[1]ACS_16_5YR_B18106_with_ann!AM1","v":"B18106_018M"},{"$f":"[1]ACS_16_5YR_B18106_with_ann!AN1","v":"B18106_019E"},{"$f":"[1]ACS_16_5YR_B18106_with_ann!AO1","v":"B18106_019M"},{"$f":"[1]ACS_16_5YR_B18106_with_ann!AP1","v":"B18106_020E"},{"$f":"[1]ACS_16_5YR_B18106_with_ann!AQ1","v":"B18106_020M"},{"$f":"[1]ACS_16_5YR_B18106_with_ann!AR1","v":"B18106_021E"},{"$f":"[1]ACS_16_5YR_B18106_with_ann!AS1","v":"B18106_021M"},{"$f":"[1]ACS_16_5YR_B18106_with_ann!AT1","v":"B18106_022E"},{"$f":"[1]ACS_16_5YR_B18106_with_ann!AU1","v":"B18106_022M"},{"$f":"[1]ACS_16_5YR_B18106_with_ann!AV1","v":"B18106_023E"},{"$f":"[1]ACS_16_5YR_B18106_with_ann!AW1","v":"B18106_023M"},{"$f":"[1]ACS_16_5YR_B18106_with_ann!AX1","v":"B18106_024E"},{"$f":"[1]ACS_16_5YR_B18106_with_ann!AY1","v":"B18106_024M"},{"$f":"[1]ACS_16_5YR_B18106_with_ann!AZ1","v":"B18106_025E"},{"$f":"[1]ACS_16_5YR_B18106_with_ann!BA1","v":"B18106_025M"},{"$f":"[1]ACS_16_5YR_B18106_with_ann!BB1","v":"B18106_026E"},{"$f":"[1]ACS_16_5YR_B18106_with_ann!BC1","v":"B18106_026M"},{"$f":"[1]ACS_16_5YR_B18106_with_ann!BD1","v":"B18106_027E"},{"$f":"[1]ACS_16_5YR_B18106_with_ann!BE1","v":"B18106_027M"},{"$f":"[1]ACS_16_5YR_B18106_with_ann!BF1","v":"B18106_028E"},{"$f":"[1]ACS_16_5YR_B18106_with_ann!BG1","v":"B18106_028M"},{"$f":"[1]ACS_16_5YR_B18106_with_ann!BH1","v":"B18106_029E"},{"$f":"[1]ACS_16_5YR_B18106_with_ann!BI1","v":"B18106_029M"},{"$f":"[1]ACS_16_5YR_B18106_with_ann!BJ1","v":"B18106_030E"},{"$f":"[1]ACS_16_5YR_B18106_with_ann!BK1","v":"B18106_030M"},{"$f":"[1]ACS_16_5YR_B18106_with_ann!BL1","v":"B18106_031E"},{"$f":"[1]ACS_16_5YR_B18106_with_ann!BM1","v":"B18106_031M"},{"$f":"[1]ACS_16_5YR_B18106_with_ann!BN1","v":"B18106_032E"},{"$f":"[1]ACS_16_5YR_B18106_with_ann!BO1","v":"B18106_032M"},{"$f":"[1]ACS_16_5YR_B18106_with_ann!BP1","v":"B18106_033E"},{"$f":"[1]ACS_16_5YR_B18106_with_ann!BQ1","v":"B18106_033M"}]
["Geography Identifier","Geography Identifier","Geographic Summary Level",{"$f":"[1]ACS_16_5YR_B18104_with_ann!C2","v":"Geographic Area Name"},{"$f":"[1]ACS_16_5YR_B18106_with_ann!D2","v":"Estimate!!Total:"},{"$f":"[1]ACS_16_5YR_B18106_with_ann!E2","v":"Margin of Error!!Total:"},{"$f":"[1]ACS_16_5YR_B18106_with_ann!F2","v":"Estimate!!Total:!!Male:"},{"$f":"[1]ACS_16_5YR_B18106_with_ann!G2","v":"Margin of Error!!Total:!!Male:"},{"$f":"[1]ACS_16_5YR_B18106_with_ann!H2","v":"Estimate!!Total:!!Male:!!5 to 17 years:"},{"$f":"[1]ACS_16_5YR_B18106_with_ann!I2","v":"Margin of Error!!Total:!!Male:!!5 to 17 years:"},{"$f":"[1]ACS_16_5YR_B18106_with_ann!J2","v":"Estimate!!Total:!!Male:!!5 to 17 years:!!With a self-care difficulty"},{"$f":"[1]ACS_16_5YR_B18106_with_ann!K2","v":"Margin of Error!!Total:!!Male:!!5 to 17 years:!!With a self-care difficulty"},{"$f":"[1]ACS_16_5YR_B18106_with_ann!L2","v":"Estimate!!Total:!!Male:!!5 to 17 years:!!No self-care difficulty"},{"$f":"[1]ACS_16_5YR_B18106_with_ann!M2","v":"Margin of Error!!Total:!!Male:!!5 to 17 years:!!No self-care difficulty"},{"$f":"[1]ACS_16_5YR_B18106_with_ann!N2","v":"Estimate!!Total:!!Male:!!18 to 34 years:"},{"$f":"[1]ACS_16_5YR_B18106_with_ann!O2","v":"Margin of Error!!Total:!!Male:!!18 to 34 years:"},{"$f":"[1]ACS_16_5YR_B18106_with_ann!P2","v":"Estimate!!Total:!!Male:!!18 to 34 years:!!With a self-care difficulty"},{"$f":"[1]ACS_16_5YR_B18106_with_ann!Q2","v":"Margin of Error!!Total:!!Male:!!18 to 34 years:!!With a self-care difficulty"},{"$f":"[1]ACS_16_5YR_B18106_with_ann!R2","v":"Estimate!!Total:!!Male:!!18 to 34 years:!!No self-care difficulty"},{"$f":"[1]ACS_16_5YR_B18106_with_ann!S2","v":"Margin of Error!!Total:!!Male:!!18 to 34 years:!!No self-care difficulty"},{"$f":"[1]ACS_16_5YR_B18106_with_ann!T2","v":"Estimate!!Total:!!Male:!!35 to 64 years:"},{"$f":"[1]ACS_16_5YR_B18106_with_ann!U2","v":"Margin of Error!!Total:!!Male:!!35 to 64 years:"},{"$f":"[1]ACS_16_5YR_B18106_with_ann!V2","v":"Estimate!!Total:!!Male:!!35 to 64 years:!!With a self-care difficulty"},{"$f":"[1]ACS_16_5YR_B18106_with_ann!W2","v":"Margin of Error!!Total:!!Male:!!35 to 64 years:!!With a self-care difficulty"},{"$f":"[1]ACS_16_5YR_B18106_with_ann!X2","v":"Estimate!!Total:!!Male:!!35 to 64 years:!!No self-care difficulty"},{"$f":"[1]ACS_16_5YR_B18106_with_ann!Y2","v":"Margin of Error!!Total:!!Male:!!35 to 64 years:!!No self-care difficulty"},{"$f":"[1]ACS_16_5YR_B18106_with_ann!Z2","v":"Estimate!!Total:!!Male:!!65 to 74 years:"},{"$f":"[1]ACS_16_5YR_B18106_with_ann!AA2","v":"Margin of Error!!Total:!!Male:!!65 to 74 years:"},{"$f":"[1]ACS_16_5YR_B18106_with_ann!AB2","v":"Estimate!!Total:!!Male:!!65 to 74 years:!!With a self-care difficulty"},{"$f":"[1]ACS_16_5YR_B18106_with_ann!AC2","v":"Margin of Error!!Total:!!Male:!!65 to 74 years:!!With a self-care difficulty"},{"$f":"[1]ACS_16_5YR_B18106_with_ann!AD2","v":"Estimate!!Total:!!Male:!!65 to 74 years:!!No self-care difficulty"},{"$f":"[1]ACS_16_5YR_B18106_with_ann!AE2","v":"Margin of Error!!Total:!!Male:!!65 to 74 years:!!No self-care difficulty"},{"$f":"[1]ACS_16_5YR_B18106_with_ann!AF2","v":"Estimate!!Total:!!Male:!!75 years and over:"},{"$f":"[1]ACS_16_5YR_B18106_with_ann!AG2","v":"Margin of Error!!Total:!!Male:!!75 years and over:"},{"$f":"[1]ACS_16_5YR_B18106_with_ann!AH2","v":"Estimate!!Total:!!Male:!!75 years and over:!!With a self-care difficulty"},{"$f":"[1]ACS_16_5YR_B18106_with_ann!AI2","v":"Margin of Error!!Total:!!Male:!!75 years and over:!!With a self-care difficulty"},{"$f":"[1]ACS_16_5YR_B18106_with_ann!AJ2","v":"Estimate!!Total:!!Male:!!75 years and over:!!No self-care difficulty"},{"$f":"[1]ACS_16_5YR_B18106_with_ann!AK2","v":"Margin of Error!!Total:!!Male:!!75 years and over:!!No self-care difficulty"},{"$f":"[1]ACS_16_5YR_B18106_with_ann!AL2","v":"Estimate!!Total:!!Female:"},{"$f":"[1]ACS_16_5YR_B18106_with_ann!AM2","v":"Margin of Error!!Total:!!Female:"},{"$f":"[1]ACS_16_5YR_B18106_with_ann!AN2","v":"Estimate!!Total:!!Female:!!5 to 17 years:"},{"$f":"[1]ACS_16_5YR_B18106_with_ann!AO2","v":"Margin of Error!!Total:!!Female:!!5 to 17 years:"},{"$f":"[1]ACS_16_5YR_B18106_with_ann!AP2","v":"Estimate!!Total:!!Female:!!5 to 17 years:!!With a self-care difficulty"},{"$f":"[1]ACS_16_5YR_B18106_with_ann!AQ2","v":"Margin of Error!!Total:!!Female:!!5 to 17 years:!!With a self-care difficulty"},{"$f":"[1]ACS_16_5YR_B18106_with_ann!AR2","v":"Estimate!!Total:!!Female:!!5 to 17 years:!!No self-care difficulty"},{"$f":"[1]ACS_16_5YR_B18106_with_ann!AS2","v":"Margin of Error!!Total:!!Female:!!5 to 17 years:!!No self-care difficulty"},{"$f":"[1]ACS_16_5YR_B18106_with_ann!AT2","v":"Estimate!!Total:!!Female:!!18 to 34 years:"},{"$f":"[1]ACS_16_5YR_B18106_with_ann!AU2","v":"Margin of Error!!Total:!!Female:!!18 to 34 years:"},{"$f":"[1]ACS_16_5YR_B18106_with_ann!AV2","v":"Estimate!!Total:!!Female:!!18 to 34 years:!!With a self-care difficulty"},{"$f":"[1]ACS_16_5YR_B18106_with_ann!AW2","v":"Margin of Error!!Total:!!Female:!!18 to 34 years:!!With a self-care difficulty"},{"$f":"[1]ACS_16_5YR_B18106_with_ann!AX2","v":"Estimate!!Total:!!Female:!!18 to 34 years:!!No self-care difficulty"},{"$f":"[1]ACS_16_5YR_B18106_with_ann!AY2","v":"Margin of Error!!Total:!!Female:!!18 to 34 years:!!No self-care difficulty"},{"$f":"[1]ACS_16_5YR_B18106_with_ann!AZ2","v":"Estimate!!Total:!!Female:!!35 to 64 years:"},{"$f":"[1]ACS_16_5YR_B18106_with_ann!BA2","v":"Margin of Error!!Total:!!Female:!!35 to 64 years:"},{"$f":"[1]ACS_16_5YR_B18106_with_ann!BB2","v":"Estimate!!Total:!!Female:!!35 to 64 years:!!With a self-care difficulty"},{"$f":"[1]ACS_16_5YR_B18106_with_ann!BC2","v":"Margin of Error!!Total:!!Female:!!35 to 64 years:!!With a self-care difficulty"},{"$f":"[1]ACS_16_5YR_B18106_with_ann!BD2","v":"Estimate!!Total:!!Female:!!35 to 64 years:!!No self-care difficulty"},{"$f":"[1]ACS_16_5YR_B18106_with_ann!BE2","v":"Margin of Error!!Total:!!Female:!!35 to 64 years:!!No self-care difficulty"},{"$f":"[1]ACS_16_5YR_B18106_with_ann!BF2","v":"Estimate!!Total:!!Female:!!65 to 74 years:"},{"$f":"[1]ACS_16_5YR_B18106_with_ann!BG2","v":"Margin of Error!!Total:!!Female:!!65 to 74 years:"},{"$f":"[1]ACS_16_5YR_B18106_with_ann!BH2","v":"Estimate!!Total:!!Female:!!65 to 74 years:!!With a self-care difficulty"},{"$f":"[1]ACS_16_5YR_B18106_with_ann!BI2","v":"Margin of Error!!Total:!!Female:!!65 to 74 years:!!With a self-care difficulty"},{"$f":"[1]ACS_16_5YR_B18106_with_ann!BJ2","v":"Estimate!!Total:!!Female:!!65 to 74 years:!!No self-care difficulty"},{"$f":"[1]ACS_16_5YR_B18106_with_ann!BK2","v":"Margin of Error!!Total:!!Female:!!65 to 74 years:!!No self-care difficulty"},{"$f":"[1]ACS_16_5YR_B18106_with_ann!BL2","v":"Estimate!!Total:!!Female:!!75 years and over:"},{"$f":"[1]ACS_16_5YR_B18106_with_ann!BM2","v":"Margin of Error!!Total:!!Female:!!75 years and over:"},{"$f":"[1]ACS_16_5YR_B18106_with_ann!BN2","v":"Estimate!!Total:!!Female:!!75 years and over:!!With a self-care difficulty"},{"$f":"[1]ACS_16_5YR_B18106_with_ann!BO2","v":"Margin of Error!!Total:!!Female:!!75 years and over:!!With a self-care difficulty"},{"$f":"[1]ACS_16_5YR_B18106_with_ann!BP2","v":"Estimate!!Total:!!Female:!!75 years and over:!!No self-care difficulty"},{"$f":"[1]ACS_16_5YR_B18106_with_ann!BQ2","v":"Margin of Error!!Total:!!Female:!!75 years and over:!!No self-care difficulty"}]
["06000US3300500820","0600000US3300512260","060",{"$f":"[1]ACS_16_5YR_B18106_with_ann!C44","v":"Alstead"},{"$f":"[1]ACS_16_5YR_B18106_with_ann!D44","v":1567},{"$f":"[1]ACS_16_5YR_B18106_with_ann!E44","v":172},{"$f":"[1]ACS_16_5YR_B18106_with_ann!F44","v":758},{"$f":"[1]ACS_16_5YR_B18106_with_ann!G44","v":116},{"$f":"[1]ACS_16_5YR_B18106_with_ann!H44","v":96},{"$f":"[1]ACS_16_5YR_B18106_with_ann!I44","v":55},{"$f":"[1]ACS_16_5YR_B18106_with_ann!J44","v":0},{"$f":"[1]ACS_16_5YR_B18106_with_ann!K44","v":12},{"$f":"[1]ACS_16_5YR_B18106_with_ann!L44","v":96},{"$f":"[1]ACS_16_5YR_B18106_with_ann!M44","v":55},{"$f":"[1]ACS_16_5YR_B18106_with_ann!N44","v":147},{"$f":"[1]ACS_16_5YR_B18106_with_ann!O44","v":61},{"$f":"[1]ACS_16_5YR_B18106_with_ann!P44","v":0},{"$f":"[1]ACS_16_5YR_B18106_with_ann!Q44","v":12},{"$f":"[1]ACS_16_5YR_B18106_with_ann!R44","v":147},{"$f":"[1]ACS_16_5YR_B18106_with_ann!S44","v":61},{"$f":"[1]ACS_16_5YR_B18106_with_ann!T44","v":357},{"$f":"[1]ACS_16_5YR_B18106_with_ann!U44","v":76},{"$f":"[1]ACS_16_5YR_B18106_with_ann!V44","v":15},{"$f":"[1]ACS_16_5YR_B18106_with_ann!W44","v":17},{"$f":"[1]ACS_16_5YR_B18106_with_ann!X44","v":342},{"$f":"[1]ACS_16_5YR_B18106_with_ann!Y44","v":78},{"$f":"[1]ACS_16_5YR_B18106_with_ann!Z44","v":106},{"$f":"[1]ACS_16_5YR_B18106_with_ann!AA44","v":42},{"$f":"[1]ACS_16_5YR_B18106_with_ann!AB44","v":0},{"$f":"[1]ACS_16_5YR_B18106_with_ann!AC44","v":12},{"$f":"[1]ACS_16_5YR_B18106_with_ann!AD44","v":106},{"$f":"[1]ACS_16_5YR_B18106_with_ann!AE44","v":42},{"$f":"[1]ACS_16_5YR_B18106_with_ann!AF44","v":52},{"$f":"[1]ACS_16_5YR_B18106_with_ann!AG44","v":33},{"$f":"[1]ACS_16_5YR_B18106_with_ann!AH44","v":0},{"$f":"[1]ACS_16_5YR_B18106_with_ann!AI44","v":12},{"$f":"[1]ACS_16_5YR_B18106_with_ann!AJ44","v":52},{"$f":"[1]ACS_16_5YR_B18106_with_ann!AK44","v":33},{"$f":"[1]ACS_16_5YR_B18106_with_ann!AL44","v":809},{"$f":"[1]ACS_16_5YR_B18106_with_ann!AM44","v":96},{"$f":"[1]ACS_16_5YR_B18106_with_ann!AN44","v":100},{"$f":"[1]ACS_16_5YR_B18106_with_ann!AO44","v":34},{"$f":"[1]ACS_16_5YR_B18106_with_ann!AP44","v":0},{"$f":"[1]ACS_16_5YR_B18106_with_ann!AQ44","v":12},{"$f":"[1]ACS_16_5YR_B18106_with_ann!AR44","v":100},{"$f":"[1]ACS_16_5YR_B18106_with_ann!AS44","v":34},{"$f":"[1]ACS_16_5YR_B18106_with_ann!AT44","v":117},{"$f":"[1]ACS_16_5YR_B18106_with_ann!AU44","v":55},{"$f":"[1]ACS_16_5YR_B18106_with_ann!AV44","v":6},{"$f":"[1]ACS_16_5YR_B18106_with_ann!AW44","v":8},{"$f":"[1]ACS_16_5YR_B18106_with_ann!AX44","v":111},{"$f":"[1]ACS_16_5YR_B18106_with_ann!AY44","v":55},{"$f":"[1]ACS_16_5YR_B18106_with_ann!AZ44","v":329},{"$f":"[1]ACS_16_5YR_B18106_with_ann!BA44","v":67},{"$f":"[1]ACS_16_5YR_B18106_with_ann!BB44","v":5},{"$f":"[1]ACS_16_5YR_B18106_with_ann!BC44","v":6},{"$f":"[1]ACS_16_5YR_B18106_with_ann!BD44","v":324},{"$f":"[1]ACS_16_5YR_B18106_with_ann!BE44","v":67},{"$f":"[1]ACS_16_5YR_B18106_with_ann!BF44","v":173},{"$f":"[1]ACS_16_5YR_B18106_with_ann!BG44","v":71},{"$f":"[1]ACS_16_5YR_B18106_with_ann!BH44","v":0},{"$f":"[1]ACS_16_5YR_B18106_with_ann!BI44","v":12},{"$f":"[1]ACS_16_5YR_B18106_with_ann!BJ44","v":173},{"$f":"[1]ACS_16_5YR_B18106_with_ann!BK44","v":71},{"$f":"[1]ACS_16_5YR_B18106_with_ann!BL44","v":90},{"$f":"[1]ACS_16_5YR_B18106_with_ann!BM44","v":47},{"$f":"[1]ACS_16_5YR_B18106_with_ann!BN44","v":5},{"$f":"[1]ACS_16_5YR_B18106_with_ann!BO44","v":7},{"$f":"[1]ACS_16_5YR_B18106_with_ann!BP44","v":85},{"$f":"[1]ACS_16_5YR_B18106_with_ann!BQ44","v":46}]
["06000US3300512260","0600000US3300519140","060",{"$f":"[1]ACS_16_5YR_B18106_with_ann!C45","v":"Chesterfield"},{"$f":"[1]ACS_16_5YR_B18106_with_ann!D45","v":3436},{"$f":"[1]ACS_16_5YR_B18106_with_ann!E45","v":73},{"$f":"[1]ACS_16_5YR_B18106_with_ann!F45","v":1879},{"$f":"[1]ACS_16_5YR_B18106_with_ann!G45","v":137},{"$f":"[1]ACS_16_5YR_B18106_with_ann!H45","v":452},{"$f":"[1]ACS_16_5YR_B18106_with_ann!I45","v":132},{"$f":"[1]ACS_16_5YR_B18106_with_ann!J45","v":0},{"$f":"[1]ACS_16_5YR_B18106_with_ann!K45","v":12},{"$f":"[1]ACS_16_5YR_B18106_with_ann!L45","v":452},{"$f":"[1]ACS_16_5YR_B18106_with_ann!M45","v":132},{"$f":"[1]ACS_16_5YR_B18106_with_ann!N45","v":366},{"$f":"[1]ACS_16_5YR_B18106_with_ann!O45","v":146},{"$f":"[1]ACS_16_5YR_B18106_with_ann!P45","v":0},{"$f":"[1]ACS_16_5YR_B18106_with_ann!Q45","v":12},{"$f":"[1]ACS_16_5YR_B18106_with_ann!R45","v":366},{"$f":"[1]ACS_16_5YR_B18106_with_ann!S45","v":146},{"$f":"[1]ACS_16_5YR_B18106_with_ann!T45","v":537},{"$f":"[1]ACS_16_5YR_B18106_with_ann!U45","v":175},{"$f":"[1]ACS_16_5YR_B18106_with_ann!V45","v":0},{"$f":"[1]ACS_16_5YR_B18106_with_ann!W45","v":12},{"$f":"[1]ACS_16_5YR_B18106_with_ann!X45","v":537},{"$f":"[1]ACS_16_5YR_B18106_with_ann!Y45","v":175},{"$f":"[1]ACS_16_5YR_B18106_with_ann!Z45","v":367},{"$f":"[1]ACS_16_5YR_B18106_with_ann!AA45","v":125},{"$f":"[1]ACS_16_5YR_B18106_with_ann!AB45","v":0},{"$f":"[1]ACS_16_5YR_B18106_with_ann!AC45","v":12},{"$f":"[1]ACS_16_5YR_B18106_with_ann!AD45","v":367},{"$f":"[1]ACS_16_5YR_B18106_with_ann!AE45","v":125},{"$f":"[1]ACS_16_5YR_B18106_with_ann!AF45","v":157},{"$f":"[1]ACS_16_5YR_B18106_with_ann!AG45","v":80},{"$f":"[1]ACS_16_5YR_B18106_with_ann!AH45","v":0},{"$f":"[1]ACS_16_5YR_B18106_with_ann!AI45","v":12},{"$f":"[1]ACS_16_5YR_B18106_with_ann!AJ45","v":157},{"$f":"[1]ACS_16_5YR_B18106_with_ann!AK45","v":80},{"$f":"[1]ACS_16_5YR_B18106_with_ann!AL45","v":1557},{"$f":"[1]ACS_16_5YR_B18106_with_ann!AM45","v":132},{"$f":"[1]ACS_16_5YR_B18106_with_ann!AN45","v":144},{"$f":"[1]ACS_16_5YR_B18106_with_ann!AO45","v":80},{"$f":"[1]ACS_16_5YR_B18106_with_ann!AP45","v":0},{"$f":"[1]ACS_16_5YR_B18106_with_ann!AQ45","v":12},{"$f":"[1]ACS_16_5YR_B18106_with_ann!AR45","v":144},{"$f":"[1]ACS_16_5YR_B18106_with_ann!AS45","v":80},{"$f":"[1]ACS_16_5YR_B18106_with_ann!AT45","v":323},{"$f":"[1]ACS_16_5YR_B18106_with_ann!AU45","v":125},{"$f":"[1]ACS_16_5YR_B18106_with_ann!AV45","v":0},{"$f":"[1]ACS_16_5YR_B18106_with_ann!AW45","v":12},{"$f":"[1]ACS_16_5YR_B18106_with_ann!AX45","v":323},{"$f":"[1]ACS_16_5YR_B18106_with_ann!AY45","v":125},{"$f":"[1]ACS_16_5YR_B18106_with_ann!AZ45","v":729},{"$f":"[1]ACS_16_5YR_B18106_with_ann!BA45","v":167},{"$f":"[1]ACS_16_5YR_B18106_with_ann!BB45","v":0},{"$f":"[1]ACS_16_5YR_B18106_with_ann!BC45","v":12},{"$f":"[1]ACS_16_5YR_B18106_with_ann!BD45","v":729},{"$f":"[1]ACS_16_5YR_B18106_with_ann!BE45","v":167},{"$f":"[1]ACS_16_5YR_B18106_with_ann!BF45","v":244},{"$f":"[1]ACS_16_5YR_B18106_with_ann!BG45","v":110},{"$f":"[1]ACS_16_5YR_B18106_with_ann!BH45","v":0},{"$f":"[1]ACS_16_5YR_B18106_with_ann!BI45","v":12},{"$f":"[1]ACS_16_5YR_B18106_with_ann!BJ45","v":244},{"$f":"[1]ACS_16_5YR_B18106_with_ann!BK45","v":110},{"$f":"[1]ACS_16_5YR_B18106_with_ann!BL45","v":117},{"$f":"[1]ACS_16_5YR_B18106_with_ann!BM45","v":76},{"$f":"[1]ACS_16_5YR_B18106_with_ann!BN45","v":19},{"$f":"[1]ACS_16_5YR_B18106_with_ann!BO45","v":30},{"$f":"[1]ACS_16_5YR_B18106_with_ann!BP45","v":98},{"$f":"[1]ACS_16_5YR_B18106_with_ann!BQ45","v":69}]
["06000US3300519140","0600000US3300526500","060",{"$f":"[1]ACS_16_5YR_B18106_with_ann!C46","v":"Dublin"},{"$f":"[1]ACS_16_5YR_B18106_with_ann!D46","v":1630},{"$f":"[1]ACS_16_5YR_B18106_with_ann!E46","v":209},{"$f":"[1]ACS_16_5YR_B18106_with_ann!F46","v":776},{"$f":"[1]ACS_16_5YR_B18106_with_ann!G46","v":113},{"$f":"[1]ACS_16_5YR_B18106_with_ann!H46","v":97},{"$f":"[1]ACS_16_5YR_B18106_with_ann!I46","v":40},{"$f":"[1]ACS_16_5YR_B18106_with_ann!J46","v":0},{"$f":"[1]ACS_16_5YR_B18106_with_ann!K46","v":12},{"$f":"[1]ACS_16_5YR_B18106_with_ann!L46","v":97},{"$f":"[1]ACS_16_5YR_B18106_with_ann!M46","v":40},{"$f":"[1]ACS_16_5YR_B18106_with_ann!N46","v":136},{"$f":"[1]ACS_16_5YR_B18106_with_ann!O46","v":55},{"$f":"[1]ACS_16_5YR_B18106_with_ann!P46","v":0},{"$f":"[1]ACS_16_5YR_B18106_with_ann!Q46","v":12},{"$f":"[1]ACS_16_5YR_B18106_with_ann!R46","v":136},{"$f":"[1]ACS_16_5YR_B18106_with_ann!S46","v":55},{"$f":"[1]ACS_16_5YR_B18106_with_ann!T46","v":338},{"$f":"[1]ACS_16_5YR_B18106_with_ann!U46","v":83},{"$f":"[1]ACS_16_5YR_B18106_with_ann!V46","v":0},{"$f":"[1]ACS_16_5YR_B18106_with_ann!W46","v":12},{"$f":"[1]ACS_16_5YR_B18106_with_ann!X46","v":338},{"$f":"[1]ACS_16_5YR_B18106_with_ann!Y46","v":83},{"$f":"[1]ACS_16_5YR_B18106_with_ann!Z46","v":153},{"$f":"[1]ACS_16_5YR_B18106_with_ann!AA46","v":64},{"$f":"[1]ACS_16_5YR_B18106_with_ann!AB46","v":0},{"$f":"[1]ACS_16_5YR_B18106_with_ann!AC46","v":12},{"$f":"[1]ACS_16_5YR_B18106_with_ann!AD46","v":153},{"$f":"[1]ACS_16_5YR_B18106_with_ann!AE46","v":64},{"$f":"[1]ACS_16_5YR_B18106_with_ann!AF46","v":52},{"$f":"[1]ACS_16_5YR_B18106_with_ann!AG46","v":26},{"$f":"[1]ACS_16_5YR_B18106_with_ann!AH46","v":2},{"$f":"[1]ACS_16_5YR_B18106_with_ann!AI46","v":3},{"$f":"[1]ACS_16_5YR_B18106_with_ann!AJ46","v":50},{"$f":"[1]ACS_16_5YR_B18106_with_ann!AK46","v":26},{"$f":"[1]ACS_16_5YR_B18106_with_ann!AL46","v":854},{"$f":"[1]ACS_16_5YR_B18106_with_ann!AM46","v":132},{"$f":"[1]ACS_16_5YR_B18106_with_ann!AN46","v":149},{"$f":"[1]ACS_16_5YR_B18106_with_ann!AO46","v":44},{"$f":"[1]ACS_16_5YR_B18106_with_ann!AP46","v":0},{"$f":"[1]ACS_16_5YR_B18106_with_ann!AQ46","v":12},{"$f":"[1]ACS_16_5YR_B18106_with_ann!AR46","v":149},{"$f":"[1]ACS_16_5YR_B18106_with_ann!AS46","v":44},{"$f":"[1]ACS_16_5YR_B18106_with_ann!AT46","v":63},{"$f":"[1]ACS_16_5YR_B18106_with_ann!AU46","v":26},{"$f":"[1]ACS_16_5YR_B18106_with_ann!AV46","v":0},{"$f":"[1]ACS_16_5YR_B18106_with_ann!AW46","v":12},{"$f":"[1]ACS_16_5YR_B18106_with_ann!AX46","v":63},{"$f":"[1]ACS_16_5YR_B18106_with_ann!AY46","v":26},{"$f":"[1]ACS_16_5YR_B18106_with_ann!AZ46","v":404},{"$f":"[1]ACS_16_5YR_B18106_with_ann!BA46","v":97},{"$f":"[1]ACS_16_5YR_B18106_with_ann!BB46","v":0},{"$f":"[1]ACS_16_5YR_B18106_with_ann!BC46","v":12},{"$f":"[1]ACS_16_5YR_B18106_with_ann!BD46","v":404},{"$f":"[1]ACS_16_5YR_B18106_with_ann!BE46","v":97},{"$f":"[1]ACS_16_5YR_B18106_with_ann!BF46","v":162},{"$f":"[1]ACS_16_5YR_B18106_with_ann!BG46","v":54},{"$f":"[1]ACS_16_5YR_B18106_with_ann!BH46","v":0},{"$f":"[1]ACS_16_5YR_B18106_with_ann!BI46","v":12},{"$f":"[1]ACS_16_5YR_B18106_with_ann!BJ46","v":162},{"$f":"[1]ACS_16_5YR_B18106_with_ann!BK46","v":54},{"$f":"[1]ACS_16_5YR_B18106_with_ann!BL46","v":76},{"$f":"[1]ACS_16_5YR_B18106_with_ann!BM46","v":51},{"$f":"[1]ACS_16_5YR_B18106_with_ann!BN46","v":5},{"$f":"[1]ACS_16_5YR_B18106_with_ann!BO46","v":5},{"$f":"[1]ACS_16_5YR_B18106_with_ann!BP46","v":71},{"$f":"[1]ACS_16_5YR_B18106_with_ann!BQ46","v":50}]
["06000US3300526500","0600000US3300529220","060",{"$f":"[1]ACS_16_5YR_B18106_with_ann!C47","v":"Fitzwilliam"},{"$f":"[1]ACS_16_5YR_B18106_with_ann!D47","v":2209},{"$f":"[1]ACS_16_5YR_B18106_with_ann!E47","v":360},{"$f":"[1]ACS_16_5YR_B18106_with_ann!F47","v":1170},{"$f":"[1]ACS_16_5YR_B18106_with_ann!G47","v":214},{"$f":"[1]ACS_16_5YR_B18106_with_ann!H47","v":101},{"$f":"[1]ACS_16_5YR_B18106_with_ann!I47","v":36},{"$f":"[1]ACS_16_5YR_B18106_with_ann!J47","v":0},{"$f":"[1]ACS_16_5YR_B18106_with_ann!K47","v":12},{"$f":"[1]ACS_16_5YR_B18106_with_ann!L47","v":101},{"$f":"[1]ACS_16_5YR_B18106_with_ann!M47","v":36},{"$f":"[1]ACS_16_5YR_B18106_with_ann!N47","v":226},{"$f":"[1]ACS_16_5YR_B18106_with_ann!O47","v":92},{"$f":"[1]ACS_16_5YR_B18106_with_ann!P47","v":6},{"$f":"[1]ACS_16_5YR_B18106_with_ann!Q47","v":9},{"$f":"[1]ACS_16_5YR_B18106_with_ann!R47","v":220},{"$f":"[1]ACS_16_5YR_B18106_with_ann!S47","v":92},{"$f":"[1]ACS_16_5YR_B18106_with_ann!T47","v":605},{"$f":"[1]ACS_16_5YR_B18106_with_ann!U47","v":177},{"$f":"[1]ACS_16_5YR_B18106_with_ann!V47","v":0},{"$f":"[1]ACS_16_5YR_B18106_with_ann!W47","v":12},{"$f":"[1]ACS_16_5YR_B18106_with_ann!X47","v":605},{"$f":"[1]ACS_16_5YR_B18106_with_ann!Y47","v":177},{"$f":"[1]ACS_16_5YR_B18106_with_ann!Z47","v":195},{"$f":"[1]ACS_16_5YR_B18106_with_ann!AA47","v":55},{"$f":"[1]ACS_16_5YR_B18106_with_ann!AB47","v":11},{"$f":"[1]ACS_16_5YR_B18106_with_ann!AC47","v":18},{"$f":"[1]ACS_16_5YR_B18106_with_ann!AD47","v":184},{"$f":"[1]ACS_16_5YR_B18106_with_ann!AE47","v":56},{"$f":"[1]ACS_16_5YR_B18106_with_ann!AF47","v":43},{"$f":"[1]ACS_16_5YR_B18106_with_ann!AG47","v":19},{"$f":"[1]ACS_16_5YR_B18106_with_ann!AH47","v":5},{"$f":"[1]ACS_16_5YR_B18106_with_ann!AI47","v":8},{"$f":"[1]ACS_16_5YR_B18106_with_ann!AJ47","v":38},{"$f":"[1]ACS_16_5YR_B18106_with_ann!AK47","v":18},{"$f":"[1]ACS_16_5YR_B18106_with_ann!AL47","v":1039},{"$f":"[1]ACS_16_5YR_B18106_with_ann!AM47","v":177},{"$f":"[1]ACS_16_5YR_B18106_with_ann!AN47","v":106},{"$f":"[1]ACS_16_5YR_B18106_with_ann!AO47","v":53},{"$f":"[1]ACS_16_5YR_B18106_with_ann!AP47","v":4},{"$f":"[1]ACS_16_5YR_B18106_with_ann!AQ47","v":6},{"$f":"[1]ACS_16_5YR_B18106_with_ann!AR47","v":102},{"$f":"[1]ACS_16_5YR_B18106_with_ann!AS47","v":52},{"$f":"[1]ACS_16_5YR_B18106_with_ann!AT47","v":151},{"$f":"[1]ACS_16_5YR_B18106_with_ann!AU47","v":78},{"$f":"[1]ACS_16_5YR_B18106_with_ann!AV47","v":0},{"$f":"[1]ACS_16_5YR_B18106_with_ann!AW47","v":12},{"$f":"[1]ACS_16_5YR_B18106_with_ann!AX47","v":151},{"$f":"[1]ACS_16_5YR_B18106_with_ann!AY47","v":78},{"$f":"[1]ACS_16_5YR_B18106_with_ann!AZ47","v":484},{"$f":"[1]ACS_16_5YR_B18106_with_ann!BA47","v":84},{"$f":"[1]ACS_16_5YR_B18106_with_ann!BB47","v":10},{"$f":"[1]ACS_16_5YR_B18106_with_ann!BC47","v":11},{"$f":"[1]ACS_16_5YR_B18106_with_ann!BD47","v":474},{"$f":"[1]ACS_16_5YR_B18106_with_ann!BE47","v":83},{"$f":"[1]ACS_16_5YR_B18106_with_ann!BF47","v":251},{"$f":"[1]ACS_16_5YR_B18106_with_ann!BG47","v":106},{"$f":"[1]ACS_16_5YR_B18106_with_ann!BH47","v":4},{"$f":"[1]ACS_16_5YR_B18106_with_ann!BI47","v":6},{"$f":"[1]ACS_16_5YR_B18106_with_ann!BJ47","v":247},{"$f":"[1]ACS_16_5YR_B18106_with_ann!BK47","v":105},{"$f":"[1]ACS_16_5YR_B18106_with_ann!BL47","v":47},{"$f":"[1]ACS_16_5YR_B18106_with_ann!BM47","v":27},{"$f":"[1]ACS_16_5YR_B18106_with_ann!BN47","v":12},{"$f":"[1]ACS_16_5YR_B18106_with_ann!BO47","v":16},{"$f":"[1]ACS_16_5YR_B18106_with_ann!BP47","v":35},{"$f":"[1]ACS_16_5YR_B18106_with_ann!BQ47","v":20}]
["06000US3300529220","0600000US3300534420","060",{"$f":"[1]ACS_16_5YR_B18106_with_ann!C48","v":"Gilsum"},{"$f":"[1]ACS_16_5YR_B18106_with_ann!D48","v":812},{"$f":"[1]ACS_16_5YR_B18106_with_ann!E48","v":136},{"$f":"[1]ACS_16_5YR_B18106_with_ann!F48","v":419},{"$f":"[1]ACS_16_5YR_B18106_with_ann!G48","v":80},{"$f":"[1]ACS_16_5YR_B18106_with_ann!H48","v":52},{"$f":"[1]ACS_16_5YR_B18106_with_ann!I48","v":31},{"$f":"[1]ACS_16_5YR_B18106_with_ann!J48","v":3},{"$f":"[1]ACS_16_5YR_B18106_with_ann!K48","v":5},{"$f":"[1]ACS_16_5YR_B18106_with_ann!L48","v":49},{"$f":"[1]ACS_16_5YR_B18106_with_ann!M48","v":30},{"$f":"[1]ACS_16_5YR_B18106_with_ann!N48","v":119},{"$f":"[1]ACS_16_5YR_B18106_with_ann!O48","v":56},{"$f":"[1]ACS_16_5YR_B18106_with_ann!P48","v":0},{"$f":"[1]ACS_16_5YR_B18106_with_ann!Q48","v":12},{"$f":"[1]ACS_16_5YR_B18106_with_ann!R48","v":119},{"$f":"[1]ACS_16_5YR_B18106_with_ann!S48","v":56},{"$f":"[1]ACS_16_5YR_B18106_with_ann!T48","v":158},{"$f":"[1]ACS_16_5YR_B18106_with_ann!U48","v":38},{"$f":"[1]ACS_16_5YR_B18106_with_ann!V48","v":0},{"$f":"[1]ACS_16_5YR_B18106_with_ann!W48","v":12},{"$f":"[1]ACS_16_5YR_B18106_with_ann!X48","v":158},{"$f":"[1]ACS_16_5YR_B18106_with_ann!Y48","v":38},{"$f":"[1]ACS_16_5YR_B18106_with_ann!Z48","v":76},{"$f":"[1]ACS_16_5YR_B18106_with_ann!AA48","v":29},{"$f":"[1]ACS_16_5YR_B18106_with_ann!AB48","v":1},{"$f":"[1]ACS_16_5YR_B18106_with_ann!AC48","v":2},{"$f":"[1]ACS_16_5YR_B18106_with_ann!AD48","v":75},{"$f":"[1]ACS_16_5YR_B18106_with_ann!AE48","v":28},{"$f":"[1]ACS_16_5YR_B18106_with_ann!AF48","v":14},{"$f":"[1]ACS_16_5YR_B18106_with_ann!AG48","v":10},{"$f":"[1]ACS_16_5YR_B18106_with_ann!AH48","v":0},{"$f":"[1]ACS_16_5YR_B18106_with_ann!AI48","v":12},{"$f":"[1]ACS_16_5YR_B18106_with_ann!AJ48","v":14},{"$f":"[1]ACS_16_5YR_B18106_with_ann!AK48","v":10},{"$f":"[1]ACS_16_5YR_B18106_with_ann!AL48","v":393},{"$f":"[1]ACS_16_5YR_B18106_with_ann!AM48","v":74},{"$f":"[1]ACS_16_5YR_B18106_with_ann!AN48","v":38},{"$f":"[1]ACS_16_5YR_B18106_with_ann!AO48","v":29},{"$f":"[1]ACS_16_5YR_B18106_with_ann!AP48","v":0},{"$f":"[1]ACS_16_5YR_B18106_with_ann!AQ48","v":12},{"$f":"[1]ACS_16_5YR_B18106_with_ann!AR48","v":38},{"$f":"[1]ACS_16_5YR_B18106_with_ann!AS48","v":29},{"$f":"[1]ACS_16_5YR_B18106_with_ann!AT48","v":95},{"$f":"[1]ACS_16_5YR_B18106_with_ann!AU48","v":35},{"$f":"[1]ACS_16_5YR_B18106_with_ann!AV48","v":0},{"$f":"[1]ACS_16_5YR_B18106_with_ann!AW48","v":12},{"$f":"[1]ACS_16_5YR_B18106_with_ann!AX48","v":95},{"$f":"[1]ACS_16_5YR_B18106_with_ann!AY48","v":35},{"$f":"[1]ACS_16_5YR_B18106_with_ann!AZ48","v":170},{"$f":"[1]ACS_16_5YR_B18106_with_ann!BA48","v":44},{"$f":"[1]ACS_16_5YR_B18106_with_ann!BB48","v":0},{"$f":"[1]ACS_16_5YR_B18106_with_ann!BC48","v":12},{"$f":"[1]ACS_16_5YR_B18106_with_ann!BD48","v":170},{"$f":"[1]ACS_16_5YR_B18106_with_ann!BE48","v":44},{"$f":"[1]ACS_16_5YR_B18106_with_ann!BF48","v":58},{"$f":"[1]ACS_16_5YR_B18106_with_ann!BG48","v":25},{"$f":"[1]ACS_16_5YR_B18106_with_ann!BH48","v":0},{"$f":"[1]ACS_16_5YR_B18106_with_ann!BI48","v":12},{"$f":"[1]ACS_16_5YR_B18106_with_ann!BJ48","v":58},{"$f":"[1]ACS_16_5YR_B18106_with_ann!BK48","v":25},{"$f":"[1]ACS_16_5YR_B18106_with_ann!BL48","v":32},{"$f":"[1]ACS_16_5YR_B18106_with_ann!BM48","v":14},{"$f":"[1]ACS_16_5YR_B18106_with_ann!BN48","v":0},{"$f":"[1]ACS_16_5YR_B18106_with_ann!BO48","v":12},{"$f":"[1]ACS_16_5YR_B18106_with_ann!BP48","v":32},{"$f":"[1]ACS_16_5YR_B18106_with_ann!BQ48","v":14}]
["06000US3300534420","0600000US3300536660","060",{"$f":"[1]ACS_16_5YR_B18106_with_ann!C49","v":"Harrisville"},{"$f":"[1]ACS_16_5YR_B18106_with_ann!D49","v":927},{"$f":"[1]ACS_16_5YR_B18106_with_ann!E49","v":174},{"$f":"[1]ACS_16_5YR_B18106_with_ann!F49","v":419},{"$f":"[1]ACS_16_5YR_B18106_with_ann!G49","v":76},{"$f":"[1]ACS_16_5YR_B18106_with_ann!H49","v":47},{"$f":"[1]ACS_16_5YR_B18106_with_ann!I49","v":26},{"$f":"[1]ACS_16_5YR_B18106_with_ann!J49","v":0},{"$f":"[1]ACS_16_5YR_B18106_with_ann!K49","v":12},{"$f":"[1]ACS_16_5YR_B18106_with_ann!L49","v":47},{"$f":"[1]ACS_16_5YR_B18106_with_ann!M49","v":26},{"$f":"[1]ACS_16_5YR_B18106_with_ann!N49","v":38},{"$f":"[1]ACS_16_5YR_B18106_with_ann!O49","v":20},{"$f":"[1]ACS_16_5YR_B18106_with_ann!P49","v":0},{"$f":"[1]ACS_16_5YR_B18106_with_ann!Q49","v":12},{"$f":"[1]ACS_16_5YR_B18106_with_ann!R49","v":38},{"$f":"[1]ACS_16_5YR_B18106_with_ann!S49","v":20},{"$f":"[1]ACS_16_5YR_B18106_with_ann!T49","v":190},{"$f":"[1]ACS_16_5YR_B18106_with_ann!U49","v":52},{"$f":"[1]ACS_16_5YR_B18106_with_ann!V49","v":16},{"$f":"[1]ACS_16_5YR_B18106_with_ann!W49","v":17},{"$f":"[1]ACS_16_5YR_B18106_with_ann!X49","v":174},{"$f":"[1]ACS_16_5YR_B18106_with_ann!Y49","v":50},{"$f":"[1]ACS_16_5YR_B18106_with_ann!Z49","v":91},{"$f":"[1]ACS_16_5YR_B18106_with_ann!AA49","v":28},{"$f":"[1]ACS_16_5YR_B18106_with_ann!AB49","v":0},{"$f":"[1]ACS_16_5YR_B18106_with_ann!AC49","v":12},{"$f":"[1]ACS_16_5YR_B18106_with_ann!AD49","v":91},{"$f":"[1]ACS_16_5YR_B18106_with_ann!AE49","v":28},{"$f":"[1]ACS_16_5YR_B18106_with_ann!AF49","v":53},{"$f":"[1]ACS_16_5YR_B18106_with_ann!AG49","v":20},{"$f":"[1]ACS_16_5YR_B18106_with_ann!AH49","v":0},{"$f":"[1]ACS_16_5YR_B18106_with_ann!AI49","v":12},{"$f":"[1]ACS_16_5YR_B18106_with_ann!AJ49","v":53},{"$f":"[1]ACS_16_5YR_B18106_with_ann!AK49","v":20},{"$f":"[1]ACS_16_5YR_B18106_with_ann!AL49","v":508},{"$f":"[1]ACS_16_5YR_B18106_with_ann!AM49","v":108},{"$f":"[1]ACS_16_5YR_B18106_with_ann!AN49","v":52},{"$f":"[1]ACS_16_5YR_B18106_with_ann!AO49","v":39},{"$f":"[1]ACS_16_5YR_B18106_with_ann!AP49","v":0},{"$f":"[1]ACS_16_5YR_B18106_with_ann!AQ49","v":12},{"$f":"[1]ACS_16_5YR_B18106_with_ann!AR49","v":52},{"$f":"[1]ACS_16_5YR_B18106_with_ann!AS49","v":39},{"$f":"[1]ACS_16_5YR_B18106_with_ann!AT49","v":89},{"$f":"[1]ACS_16_5YR_B18106_with_ann!AU49","v":40},{"$f":"[1]ACS_16_5YR_B18106_with_ann!AV49","v":0},{"$f":"[1]ACS_16_5YR_B18106_with_ann!AW49","v":12},{"$f":"[1]ACS_16_5YR_B18106_with_ann!AX49","v":89},{"$f":"[1]ACS_16_5YR_B18106_with_ann!AY49","v":40},{"$f":"[1]ACS_16_5YR_B18106_with_ann!AZ49","v":220},{"$f":"[1]ACS_16_5YR_B18106_with_ann!BA49","v":61},{"$f":"[1]ACS_16_5YR_B18106_with_ann!BB49","v":0},{"$f":"[1]ACS_16_5YR_B18106_with_ann!BC49","v":12},{"$f":"[1]ACS_16_5YR_B18106_with_ann!BD49","v":220},{"$f":"[1]ACS_16_5YR_B18106_with_ann!BE49","v":61},{"$f":"[1]ACS_16_5YR_B18106_with_ann!BF49","v":107},{"$f":"[1]ACS_16_5YR_B18106_with_ann!BG49","v":30},{"$f":"[1]ACS_16_5YR_B18106_with_ann!BH49","v":0},{"$f":"[1]ACS_16_5YR_B18106_with_ann!BI49","v":12},{"$f":"[1]ACS_16_5YR_B18106_with_ann!BJ49","v":107},{"$f":"[1]ACS_16_5YR_B18106_with_ann!BK49","v":30},{"$f":"[1]ACS_16_5YR_B18106_with_ann!BL49","v":40},{"$f":"[1]ACS_16_5YR_B18106_with_ann!BM49","v":22},{"$f":"[1]ACS_16_5YR_B18106_with_ann!BN49","v":0},{"$f":"[1]ACS_16_5YR_B18106_with_ann!BO49","v":12},{"$f":"[1]ACS_16_5YR_B18106_with_ann!BP49","v":40},{"$f":"[1]ACS_16_5YR_B18106_with_ann!BQ49","v":22}]
["06000US3300536660","0600000US3300538500","060",{"$f":"[1]ACS_16_5YR_B18106_with_ann!C50","v":"Hinsdale"},{"$f":"[1]ACS_16_5YR_B18106_with_ann!D50","v":3881},{"$f":"[1]ACS_16_5YR_B18106_with_ann!E50","v":59},{"$f":"[1]ACS_16_5YR_B18106_with_ann!F50","v":2064},{"$f":"[1]ACS_16_5YR_B18106_with_ann!G50","v":204},{"$f":"[1]ACS_16_5YR_B18106_with_ann!H50","v":277},{"$f":"[1]ACS_16_5YR_B18106_with_ann!I50","v":125},{"$f":"[1]ACS_16_5YR_B18106_with_ann!J50","v":0},{"$f":"[1]ACS_16_5YR_B18106_with_ann!K50","v":12},{"$f":"[1]ACS_16_5YR_B18106_with_ann!L50","v":277},{"$f":"[1]ACS_16_5YR_B18106_with_ann!M50","v":125},{"$f":"[1]ACS_16_5YR_B18106_with_ann!N50","v":294},{"$f":"[1]ACS_16_5YR_B18106_with_ann!O50","v":122},{"$f":"[1]ACS_16_5YR_B18106_with_ann!P50","v":0},{"$f":"[1]ACS_16_5YR_B18106_with_ann!Q50","v":12},{"$f":"[1]ACS_16_5YR_B18106_with_ann!R50","v":294},{"$f":"[1]ACS_16_5YR_B18106_with_ann!S50","v":122},{"$f":"[1]ACS_16_5YR_B18106_with_ann!T50","v":878},{"$f":"[1]ACS_16_5YR_B18106_with_ann!U50","v":165},{"$f":"[1]ACS_16_5YR_B18106_with_ann!V50","v":24},{"$f":"[1]ACS_16_5YR_B18106_with_ann!W50","v":26},{"$f":"[1]ACS_16_5YR_B18106_with_ann!X50","v":854},{"$f":"[1]ACS_16_5YR_B18106_with_ann!Y50","v":169},{"$f":"[1]ACS_16_5YR_B18106_with_ann!Z50","v":433},{"$f":"[1]ACS_16_5YR_B18106_with_ann!AA50","v":236},{"$f":"[1]ACS_16_5YR_B18106_with_ann!AB50","v":191},{"$f":"[1]ACS_16_5YR_B18106_with_ann!AC50","v":233},{"$f":"[1]ACS_16_5YR_B18106_with_ann!AD50","v":242},{"$f":"[1]ACS_16_5YR_B18106_with_ann!AE50","v":117},{"$f":"[1]ACS_16_5YR_B18106_with_ann!AF50","v":182},{"$f":"[1]ACS_16_5YR_B18106_with_ann!AG50","v":113},{"$f":"[1]ACS_16_5YR_B18106_with_ann!AH50","v":0},{"$f":"[1]ACS_16_5YR_B18106_with_ann!AI50","v":12},{"$f":"[1]ACS_16_5YR_B18106_with_ann!AJ50","v":182},{"$f":"[1]ACS_16_5YR_B18106_with_ann!AK50","v":113},{"$f":"[1]ACS_16_5YR_B18106_with_ann!AL50","v":1817},{"$f":"[1]ACS_16_5YR_B18106_with_ann!AM50","v":205},{"$f":"[1]ACS_16_5YR_B18106_with_ann!AN50","v":225},{"$f":"[1]ACS_16_5YR_B18106_with_ann!AO50","v":70},{"$f":"[1]ACS_16_5YR_B18106_with_ann!AP50","v":0},{"$f":"[1]ACS_16_5YR_B18106_with_ann!AQ50","v":12},{"$f":"[1]ACS_16_5YR_B18106_with_ann!AR50","v":225},{"$f":"[1]ACS_16_5YR_B18106_with_ann!AS50","v":70},{"$f":"[1]ACS_16_5YR_B18106_with_ann!AT50","v":306},{"$f":"[1]ACS_16_5YR_B18106_with_ann!AU50","v":147},{"$f":"[1]ACS_16_5YR_B18106_with_ann!AV50","v":0},{"$f":"[1]ACS_16_5YR_B18106_with_ann!AW50","v":12},{"$f":"[1]ACS_16_5YR_B18106_with_ann!AX50","v":306},{"$f":"[1]ACS_16_5YR_B18106_with_ann!AY50","v":147},{"$f":"[1]ACS_16_5YR_B18106_with_ann!AZ50","v":843},{"$f":"[1]ACS_16_5YR_B18106_with_ann!BA50","v":127},{"$f":"[1]ACS_16_5YR_B18106_with_ann!BB50","v":24},{"$f":"[1]ACS_16_5YR_B18106_with_ann!BC50","v":30},{"$f":"[1]ACS_16_5YR_B18106_with_ann!BD50","v":819},{"$f":"[1]ACS_16_5YR_B18106_with_ann!BE50","v":122},{"$f":"[1]ACS_16_5YR_B18106_with_ann!BF50","v":214},{"$f":"[1]ACS_16_5YR_B18106_with_ann!BG50","v":97},{"$f":"[1]ACS_16_5YR_B18106_with_ann!BH50","v":29},{"$f":"[1]ACS_16_5YR_B18106_with_ann!BI50","v":32},{"$f":"[1]ACS_16_5YR_B18106_with_ann!BJ50","v":185},{"$f":"[1]ACS_16_5YR_B18106_with_ann!BK50","v":96},{"$f":"[1]ACS_16_5YR_B18106_with_ann!BL50","v":229},{"$f":"[1]ACS_16_5YR_B18106_with_ann!BM50","v":155},{"$f":"[1]ACS_16_5YR_B18106_with_ann!BN50","v":0},{"$f":"[1]ACS_16_5YR_B18106_with_ann!BO50","v":12},{"$f":"[1]ACS_16_5YR_B18106_with_ann!BP50","v":229},{"$f":"[1]ACS_16_5YR_B18106_with_ann!BQ50","v":155}]
["06000US3300538500","0600000US3300539300","060",{"$f":"[1]ACS_16_5YR_B18106_with_ann!C51","v":"Jaffrey"},{"$f":"[1]ACS_16_5YR_B18106_with_ann!D51","v":5157},{"$f":"[1]ACS_16_5YR_B18106_with_ann!E51","v":101},{"$f":"[1]ACS_16_5YR_B18106_with_ann!F51","v":2617},{"$f":"[1]ACS_16_5YR_B18106_with_ann!G51","v":209},{"$f":"[1]ACS_16_5YR_B18106_with_ann!H51","v":566},{"$f":"[1]ACS_16_5YR_B18106_with_ann!I51","v":154},{"$f":"[1]ACS_16_5YR_B18106_with_ann!J51","v":19},{"$f":"[1]ACS_16_5YR_B18106_with_ann!K51","v":33},{"$f":"[1]ACS_16_5YR_B18106_with_ann!L51","v":547},{"$f":"[1]ACS_16_5YR_B18106_with_ann!M51","v":158},{"$f":"[1]ACS_16_5YR_B18106_with_ann!N51","v":408},{"$f":"[1]ACS_16_5YR_B18106_with_ann!O51","v":190},{"$f":"[1]ACS_16_5YR_B18106_with_ann!P51","v":0},{"$f":"[1]ACS_16_5YR_B18106_with_ann!Q51","v":17},{"$f":"[1]ACS_16_5YR_B18106_with_ann!R51","v":408},{"$f":"[1]ACS_16_5YR_B18106_with_ann!S51","v":190},{"$f":"[1]ACS_16_5YR_B18106_with_ann!T51","v":1310},{"$f":"[1]ACS_16_5YR_B18106_with_ann!U51","v":200},{"$f":"[1]ACS_16_5YR_B18106_with_ann!V51","v":24},{"$f":"[1]ACS_16_5YR_B18106_with_ann!W51","v":38},{"$f":"[1]ACS_16_5YR_B18106_with_ann!X51","v":1286},{"$f":"[1]ACS_16_5YR_B18106_with_ann!Y51","v":192},{"$f":"[1]ACS_16_5YR_B18106_with_ann!Z51","v":159},{"$f":"[1]ACS_16_5YR_B18106_with_ann!AA51","v":87},{"$f":"[1]ACS_16_5YR_B18106_with_ann!AB51","v":0},{"$f":"[1]ACS_16_5YR_B18106_with_ann!AC51","v":17},{"$f":"[1]ACS_16_5YR_B18106_with_ann!AD51","v":159},{"$f":"[1]ACS_16_5YR_B18106_with_ann!AE51","v":87},{"$f":"[1]ACS_16_5YR_B18106_with_ann!AF51","v":174},{"$f":"[1]ACS_16_5YR_B18106_with_ann!AG51","v":110},{"$f":"[1]ACS_16_5YR_B18106_with_ann!AH51","v":33},{"$f":"[1]ACS_16_5YR_B18106_with_ann!AI51","v":55},{"$f":"[1]ACS_16_5YR_B18106_with_ann!AJ51","v":141},{"$f":"[1]ACS_16_5YR_B18106_with_ann!AK51","v":98},{"$f":"[1]ACS_16_5YR_B18106_with_ann!AL51","v":2540},{"$f":"[1]ACS_16_5YR_B18106_with_ann!AM51","v":218},{"$f":"[1]ACS_16_5YR_B18106_with_ann!AN51","v":617},{"$f":"[1]ACS_16_5YR_B18106_with_ann!AO51","v":129},{"$f":"[1]ACS_16_5YR_B18106_with_ann!AP51","v":21},{"$f":"[1]ACS_16_5YR_B18106_with_ann!AQ51","v":33},{"$f":"[1]ACS_16_5YR_B18106_with_ann!AR51","v":596},{"$f":"[1]ACS_16_5YR_B18106_with_ann!AS51","v":124},{"$f":"[1]ACS_16_5YR_B18106_with_ann!AT51","v":307},{"$f":"[1]ACS_16_5YR_B18106_with_ann!AU51","v":170},{"$f":"[1]ACS_16_5YR_B18106_with_ann!AV51","v":0},{"$f":"[1]ACS_16_5YR_B18106_with_ann!AW51","v":17},{"$f":"[1]ACS_16_5YR_B18106_with_ann!AX51","v":307},{"$f":"[1]ACS_16_5YR_B18106_with_ann!AY51","v":170},{"$f":"[1]ACS_16_5YR_B18106_with_ann!AZ51","v":1144},{"$f":"[1]ACS_16_5YR_B18106_with_ann!BA51","v":160},{"$f":"[1]ACS_16_5YR_B18106_with_ann!BB51","v":67},{"$f":"[1]ACS_16_5YR_B18106_with_ann!BC51","v":77},{"$f":"[1]ACS_16_5YR_B18106_with_ann!BD51","v":1077},{"$f":"[1]ACS_16_5YR_B18106_with_ann!BE51","v":157},{"$f":"[1]ACS_16_5YR_B18106_with_ann!BF51","v":276},{"$f":"[1]ACS_16_5YR_B18106_with_ann!BG51","v":101},{"$f":"[1]ACS_16_5YR_B18106_with_ann!BH51","v":0},{"$f":"[1]ACS_16_5YR_B18106_with_ann!BI51","v":17},{"$f":"[1]ACS_16_5YR_B18106_with_ann!BJ51","v":276},{"$f":"[1]ACS_16_5YR_B18106_with_ann!BK51","v":101},{"$f":"[1]ACS_16_5YR_B18106_with_ann!BL51","v":196},{"$f":"[1]ACS_16_5YR_B18106_with_ann!BM51","v":97},{"$f":"[1]ACS_16_5YR_B18106_with_ann!BN51","v":49},{"$f":"[1]ACS_16_5YR_B18106_with_ann!BO51","v":63},{"$f":"[1]ACS_16_5YR_B18106_with_ann!BP51","v":147},{"$f":"[1]ACS_16_5YR_B18106_with_ann!BQ51","v":84}]
["06000US3300539300","0600000US3300545460","060",{"$f":"[1]ACS_16_5YR_B18106_with_ann!C52","v":"Keene"},{"$f":"[1]ACS_16_5YR_B18106_with_ann!D52","v":21557},{"$f":"[1]ACS_16_5YR_B18106_with_ann!E52","v":165},{"$f":"[1]ACS_16_5YR_B18106_with_ann!F52","v":10500},{"$f":"[1]ACS_16_5YR_B18106_with_ann!G52","v":345},{"$f":"[1]ACS_16_5YR_B18106_with_ann!H52","v":1379},{"$f":"[1]ACS_16_5YR_B18106_with_ann!I52","v":180},{"$f":"[1]ACS_16_5YR_B18106_with_ann!J52","v":21},{"$f":"[1]ACS_16_5YR_B18106_with_ann!K52","v":31},{"$f":"[1]ACS_16_5YR_B18106_with_ann!L52","v":1358},{"$f":"[1]ACS_16_5YR_B18106_with_ann!M52","v":177},{"$f":"[1]ACS_16_5YR_B18106_with_ann!N52","v":3702},{"$f":"[1]ACS_16_5YR_B18106_with_ann!O52","v":372},{"$f":"[1]ACS_16_5YR_B18106_with_ann!P52","v":10},{"$f":"[1]ACS_16_5YR_B18106_with_ann!Q52","v":15},{"$f":"[1]ACS_16_5YR_B18106_with_ann!R52","v":3692},{"$f":"[1]ACS_16_5YR_B18106_with_ann!S52","v":372},{"$f":"[1]ACS_16_5YR_B18106_with_ann!T52","v":3790},{"$f":"[1]ACS_16_5YR_B18106_with_ann!U52","v":283},{"$f":"[1]ACS_16_5YR_B18106_with_ann!V52","v":15},{"$f":"[1]ACS_16_5YR_B18106_with_ann!W52","v":18},{"$f":"[1]ACS_16_5YR_B18106_with_ann!X52","v":3775},{"$f":"[1]ACS_16_5YR_B18106_with_ann!Y52","v":284},{"$f":"[1]ACS_16_5YR_B18106_with_ann!Z52","v":899},{"$f":"[1]ACS_16_5YR_B18106_with_ann!AA52","v":135},{"$f":"[1]ACS_16_5YR_B18106_with_ann!AB52","v":0},{"$f":"[1]ACS_16_5YR_B18106_with_ann!AC52","v":22},{"$f":"[1]ACS_16_5YR_B18106_with_ann!AD52","v":899},{"$f":"[1]ACS_16_5YR_B18106_with_ann!AE52","v":135},{"$f":"[1]ACS_16_5YR_B18106_with_ann!AF52","v":730},{"$f":"[1]ACS_16_5YR_B18106_with_ann!AG52","v":148},{"$f":"[1]ACS_16_5YR_B18106_with_ann!AH52","v":65},{"$f":"[1]ACS_16_5YR_B18106_with_ann!AI52","v":48},{"$f":"[1]ACS_16_5YR_B18106_with_ann!AJ52","v":665},{"$f":"[1]ACS_16_5YR_B18106_with_ann!AK52","v":147},{"$f":"[1]ACS_16_5YR_B18106_with_ann!AL52","v":11057},{"$f":"[1]ACS_16_5YR_B18106_with_ann!AM52","v":383},{"$f":"[1]ACS_16_5YR_B18106_with_ann!AN52","v":1041},{"$f":"[1]ACS_16_5YR_B18106_with_ann!AO52","v":198},{"$f":"[1]ACS_16_5YR_B18106_with_ann!AP52","v":0},{"$f":"[1]ACS_16_5YR_B18106_with_ann!AQ52","v":22},{"$f":"[1]ACS_16_5YR_B18106_with_ann!AR52","v":1041},{"$f":"[1]ACS_16_5YR_B18106_with_ann!AS52","v":198},{"$f":"[1]ACS_16_5YR_B18106_with_ann!AT52","v":3991},{"$f":"[1]ACS_16_5YR_B18106_with_ann!AU52","v":285},{"$f":"[1]ACS_16_5YR_B18106_with_ann!AV52","v":42},{"$f":"[1]ACS_16_5YR_B18106_with_ann!AW52","v":55},{"$f":"[1]ACS_16_5YR_B18106_with_ann!AX52","v":3949},{"$f":"[1]ACS_16_5YR_B18106_with_ann!AY52","v":290},{"$f":"[1]ACS_16_5YR_B18106_with_ann!AZ52","v":3688},{"$f":"[1]ACS_16_5YR_B18106_with_ann!BA52","v":301},{"$f":"[1]ACS_16_5YR_B18106_with_ann!BB52","v":88},{"$f":"[1]ACS_16_5YR_B18106_with_ann!BC52","v":75},{"$f":"[1]ACS_16_5YR_B18106_with_ann!BD52","v":3600},{"$f":"[1]ACS_16_5YR_B18106_with_ann!BE52","v":292},{"$f":"[1]ACS_16_5YR_B18106_with_ann!BF52","v":1300},{"$f":"[1]ACS_16_5YR_B18106_with_ann!BG52","v":181},{"$f":"[1]ACS_16_5YR_B18106_with_ann!BH52","v":40},{"$f":"[1]ACS_16_5YR_B18106_with_ann!BI52","v":36},{"$f":"[1]ACS_16_5YR_B18106_with_ann!BJ52","v":1260},{"$f":"[1]ACS_16_5YR_B18106_with_ann!BK52","v":173},{"$f":"[1]ACS_16_5YR_B18106_with_ann!BL52","v":1037},{"$f":"[1]ACS_16_5YR_B18106_with_ann!BM52","v":197},{"$f":"[1]ACS_16_5YR_B18106_with_ann!BN52","v":36},{"$f":"[1]ACS_16_5YR_B18106_with_ann!BO52","v":37},{"$f":"[1]ACS_16_5YR_B18106_with_ann!BP52","v":1001},{"$f":"[1]ACS_16_5YR_B18106_with_ann!BQ52","v":198}]
["06000US3300545460","0600000US3300545700","060",{"$f":"[1]ACS_16_5YR_B18106_with_ann!C53","v":"Marlborough"},{"$f":"[1]ACS_16_5YR_B18106_with_ann!D53","v":2037},{"$f":"[1]ACS_16_5YR_B18106_with_ann!E53","v":334},{"$f":"[1]ACS_16_5YR_B18106_with_ann!F53","v":929},{"$f":"[1]ACS_16_5YR_B18106_with_ann!G53","v":184},{"$f":"[1]ACS_16_5YR_B18106_with_ann!H53","v":129},{"$f":"[1]ACS_16_5YR_B18106_with_ann!I53","v":64},{"$f":"[1]ACS_16_5YR_B18106_with_ann!J53","v":0},{"$f":"[1]ACS_16_5YR_B18106_with_ann!K53","v":12},{"$f":"[1]ACS_16_5YR_B18106_with_ann!L53","v":129},{"$f":"[1]ACS_16_5YR_B18106_with_ann!M53","v":64},{"$f":"[1]ACS_16_5YR_B18106_with_ann!N53","v":175},{"$f":"[1]ACS_16_5YR_B18106_with_ann!O53","v":92},{"$f":"[1]ACS_16_5YR_B18106_with_ann!P53","v":0},{"$f":"[1]ACS_16_5YR_B18106_with_ann!Q53","v":12},{"$f":"[1]ACS_16_5YR_B18106_with_ann!R53","v":175},{"$f":"[1]ACS_16_5YR_B18106_with_ann!S53","v":92},{"$f":"[1]ACS_16_5YR_B18106_with_ann!T53","v":440},{"$f":"[1]ACS_16_5YR_B18106_with_ann!U53","v":108},{"$f":"[1]ACS_16_5YR_B18106_with_ann!V53","v":9},{"$f":"[1]ACS_16_5YR_B18106_with_ann!W53","v":10},{"$f":"[1]ACS_16_5YR_B18106_with_ann!X53","v":431},{"$f":"[1]ACS_16_5YR_B18106_with_ann!Y53","v":108},{"$f":"[1]ACS_16_5YR_B18106_with_ann!Z53","v":83},{"$f":"[1]ACS_16_5YR_B18106_with_ann!AA53","v":37},{"$f":"[1]ACS_16_5YR_B18106_with_ann!AB53","v":5},{"$f":"[1]ACS_16_5YR_B18106_with_ann!AC53","v":8},{"$f":"[1]ACS_16_5YR_B18106_with_ann!AD53","v":78},{"$f":"[1]ACS_16_5YR_B18106_with_ann!AE53","v":37},{"$f":"[1]ACS_16_5YR_B18106_with_ann!AF53","v":102},{"$f":"[1]ACS_16_5YR_B18106_with_ann!AG53","v":43},{"$f":"[1]ACS_16_5YR_B18106_with_ann!AH53","v":1},{"$f":"[1]ACS_16_5YR_B18106_with_ann!AI53","v":4},{"$f":"[1]ACS_16_5YR_B18106_with_ann!AJ53","v":101},{"$f":"[1]ACS_16_5YR_B18106_with_ann!AK53","v":43},{"$f":"[1]ACS_16_5YR_B18106_with_ann!AL53","v":1108},{"$f":"[1]ACS_16_5YR_B18106_with_ann!AM53","v":189},{"$f":"[1]ACS_16_5YR_B18106_with_ann!AN53","v":198},{"$f":"[1]ACS_16_5YR_B18106_with_ann!AO53","v":77},{"$f":"[1]ACS_16_5YR_B18106_with_ann!AP53","v":0},{"$f":"[1]ACS_16_5YR_B18106_with_ann!AQ53","v":12},{"$f":"[1]ACS_16_5YR_B18106_with_ann!AR53","v":198},{"$f":"[1]ACS_16_5YR_B18106_with_ann!AS53","v":77},{"$f":"[1]ACS_16_5YR_B18106_with_ann!AT53","v":117},{"$f":"[1]ACS_16_5YR_B18106_with_ann!AU53","v":53},{"$f":"[1]ACS_16_5YR_B18106_with_ann!AV53","v":0},{"$f":"[1]ACS_16_5YR_B18106_with_ann!AW53","v":12},{"$f":"[1]ACS_16_5YR_B18106_with_ann!AX53","v":117},{"$f":"[1]ACS_16_5YR_B18106_with_ann!AY53","v":53},{"$f":"[1]ACS_16_5YR_B18106_with_ann!AZ53","v":586},{"$f":"[1]ACS_16_5YR_B18106_with_ann!BA53","v":139},{"$f":"[1]ACS_16_5YR_B18106_with_ann!BB53","v":41},{"$f":"[1]ACS_16_5YR_B18106_with_ann!BC53","v":41},{"$f":"[1]ACS_16_5YR_B18106_with_ann!BD53","v":545},{"$f":"[1]ACS_16_5YR_B18106_with_ann!BE53","v":127},{"$f":"[1]ACS_16_5YR_B18106_with_ann!BF53","v":120},{"$f":"[1]ACS_16_5YR_B18106_with_ann!BG53","v":51},{"$f":"[1]ACS_16_5YR_B18106_with_ann!BH53","v":11},{"$f":"[1]ACS_16_5YR_B18106_with_ann!BI53","v":12},{"$f":"[1]ACS_16_5YR_B18106_with_ann!BJ53","v":109},{"$f":"[1]ACS_16_5YR_B18106_with_ann!BK53","v":48},{"$f":"[1]ACS_16_5YR_B18106_with_ann!BL53","v":87},{"$f":"[1]ACS_16_5YR_B18106_with_ann!BM53","v":42},{"$f":"[1]ACS_16_5YR_B18106_with_ann!BN53","v":0},{"$f":"[1]ACS_16_5YR_B18106_with_ann!BO53","v":12},{"$f":"[1]ACS_16_5YR_B18106_with_ann!BP53","v":87},{"$f":"[1]ACS_16_5YR_B18106_with_ann!BQ53","v":42}]
["06000US3300545700","0600000US3300550580","060",{"$f":"[1]ACS_16_5YR_B18106_with_ann!C54","v":"Marlow"},{"$f":"[1]ACS_16_5YR_B18106_with_ann!D54","v":761},{"$f":"[1]ACS_16_5YR_B18106_with_ann!E54","v":165},{"$f":"[1]ACS_16_5YR_B18106_with_ann!F54","v":341},{"$f":"[1]ACS_16_5YR_B18106_with_ann!G54","v":73},{"$f":"[1]ACS_16_5YR_B18106_with_ann!H54","v":37},{"$f":"[1]ACS_16_5YR_B18106_with_ann!I54","v":23},{"$f":"[1]ACS_16_5YR_B18106_with_ann!J54","v":2},{"$f":"[1]ACS_16_5YR_B18106_with_ann!K54","v":3},{"$f":"[1]ACS_16_5YR_B18106_with_ann!L54","v":35},{"$f":"[1]ACS_16_5YR_B18106_with_ann!M54","v":23},{"$f":"[1]ACS_16_5YR_B18106_with_ann!N54","v":53},{"$f":"[1]ACS_16_5YR_B18106_with_ann!O54","v":32},{"$f":"[1]ACS_16_5YR_B18106_with_ann!P54","v":0},{"$f":"[1]ACS_16_5YR_B18106_with_ann!Q54","v":12},{"$f":"[1]ACS_16_5YR_B18106_with_ann!R54","v":53},{"$f":"[1]ACS_16_5YR_B18106_with_ann!S54","v":32},{"$f":"[1]ACS_16_5YR_B18106_with_ann!T54","v":153},{"$f":"[1]ACS_16_5YR_B18106_with_ann!U54","v":41},{"$f":"[1]ACS_16_5YR_B18106_with_ann!V54","v":2},{"$f":"[1]ACS_16_5YR_B18106_with_ann!W54","v":3},{"$f":"[1]ACS_16_5YR_B18106_with_ann!X54","v":151},{"$f":"[1]ACS_16_5YR_B18106_with_ann!Y54","v":41},{"$f":"[1]ACS_16_5YR_B18106_with_ann!Z54","v":75},{"$f":"[1]ACS_16_5YR_B18106_with_ann!AA54","v":38},{"$f":"[1]ACS_16_5YR_B18106_with_ann!AB54","v":0},{"$f":"[1]ACS_16_5YR_B18106_with_ann!AC54","v":12},{"$f":"[1]ACS_16_5YR_B18106_with_ann!AD54","v":75},{"$f":"[1]ACS_16_5YR_B18106_with_ann!AE54","v":38},{"$f":"[1]ACS_16_5YR_B18106_with_ann!AF54","v":23},{"$f":"[1]ACS_16_5YR_B18106_with_ann!AG54","v":13},{"$f":"[1]ACS_16_5YR_B18106_with_ann!AH54","v":2},{"$f":"[1]ACS_16_5YR_B18106_with_ann!AI54","v":4},{"$f":"[1]ACS_16_5YR_B18106_with_ann!AJ54","v":21},{"$f":"[1]ACS_16_5YR_B18106_with_ann!AK54","v":12},{"$f":"[1]ACS_16_5YR_B18106_with_ann!AL54","v":420},{"$f":"[1]ACS_16_5YR_B18106_with_ann!AM54","v":108},{"$f":"[1]ACS_16_5YR_B18106_with_ann!AN54","v":116},{"$f":"[1]ACS_16_5YR_B18106_with_ann!AO54","v":56},{"$f":"[1]ACS_16_5YR_B18106_with_ann!AP54","v":0},{"$f":"[1]ACS_16_5YR_B18106_with_ann!AQ54","v":12},{"$f":"[1]ACS_16_5YR_B18106_with_ann!AR54","v":116},{"$f":"[1]ACS_16_5YR_B18106_with_ann!AS54","v":56},{"$f":"[1]ACS_16_5YR_B18106_with_ann!AT54","v":72},{"$f":"[1]ACS_16_5YR_B18106_with_ann!AU54","v":40},{"$f":"[1]ACS_16_5YR_B18106_with_ann!AV54","v":0},{"$f":"[1]ACS_16_5YR_B18106_with_ann!AW54","v":12},{"$f":"[1]ACS_16_5YR_B18106_with_ann!AX54","v":72},{"$f":"[1]ACS_16_5YR_B18106_with_ann!AY54","v":40},{"$f":"[1]ACS_16_5YR_B18106_with_ann!AZ54","v":132},{"$f":"[1]ACS_16_5YR_B18106_with_ann!BA54","v":39},{"$f":"[1]ACS_16_5YR_B18106_with_ann!BB54","v":5},{"$f":"[1]ACS_16_5YR_B18106_with_ann!BC54","v":6},{"$f":"[1]ACS_16_5YR_B18106_with_ann!BD54","v":127},{"$f":"[1]ACS_16_5YR_B18106_with_ann!BE54","v":38},{"$f":"[1]ACS_16_5YR_B18106_with_ann!BF54","v":67},{"$f":"[1]ACS_16_5YR_B18106_with_ann!BG54","v":38},{"$f":"[1]ACS_16_5YR_B18106_with_ann!BH54","v":0},{"$f":"[1]ACS_16_5YR_B18106_with_ann!BI54","v":12},{"$f":"[1]ACS_16_5YR_B18106_with_ann!BJ54","v":67},{"$f":"[1]ACS_16_5YR_B18106_with_ann!BK54","v":38},{"$f":"[1]ACS_16_5YR_B18106_with_ann!BL54","v":33},{"$f":"[1]ACS_16_5YR_B18106_with_ann!BM54","v":18},{"$f":"[1]ACS_16_5YR_B18106_with_ann!BN54","v":3},{"$f":"[1]ACS_16_5YR_B18106_with_ann!BO54","v":4},{"$f":"[1]ACS_16_5YR_B18106_with_ann!BP54","v":30},{"$f":"[1]ACS_16_5YR_B18106_with_ann!BQ54","v":18}]
["06000US3300550580","0600000US3300564420","060",{"$f":"[1]ACS_16_5YR_B18106_with_ann!C55","v":"Nelson"},{"$f":"[1]ACS_16_5YR_B18106_with_ann!D55","v":528},{"$f":"[1]ACS_16_5YR_B18106_with_ann!E55","v":103},{"$f":"[1]ACS_16_5YR_B18106_with_ann!F55","v":237},{"$f":"[1]ACS_16_5YR_B18106_with_ann!G55","v":48},{"$f":"[1]ACS_16_5YR_B18106_with_ann!H55","v":17},{"$f":"[1]ACS_16_5YR_B18106_with_ann!I55","v":12},{"$f":"[1]ACS_16_5YR_B18106_with_ann!J55","v":0},{"$f":"[1]ACS_16_5YR_B18106_with_ann!K55","v":12},{"$f":"[1]ACS_16_5YR_B18106_with_ann!L55","v":17},{"$f":"[1]ACS_16_5YR_B18106_with_ann!M55","v":12},{"$f":"[1]ACS_16_5YR_B18106_with_ann!N55","v":25},{"$f":"[1]ACS_16_5YR_B18106_with_ann!O55","v":15},{"$f":"[1]ACS_16_5YR_B18106_with_ann!P55","v":0},{"$f":"[1]ACS_16_5YR_B18106_with_ann!Q55","v":12},{"$f":"[1]ACS_16_5YR_B18106_with_ann!R55","v":25},{"$f":"[1]ACS_16_5YR_B18106_with_ann!S55","v":15},{"$f":"[1]ACS_16_5YR_B18106_with_ann!T55","v":116},{"$f":"[1]ACS_16_5YR_B18106_with_ann!U55","v":30},{"$f":"[1]ACS_16_5YR_B18106_with_ann!V55","v":11},{"$f":"[1]ACS_16_5YR_B18106_with_ann!W55","v":14},{"$f":"[1]ACS_16_5YR_B18106_with_ann!X55","v":105},{"$f":"[1]ACS_16_5YR_B18106_with_ann!Y55","v":28},{"$f":"[1]ACS_16_5YR_B18106_with_ann!Z55","v":59},{"$f":"[1]ACS_16_5YR_B18106_with_ann!AA55","v":21},{"$f":"[1]ACS_16_5YR_B18106_with_ann!AB55","v":0},{"$f":"[1]ACS_16_5YR_B18106_with_ann!AC55","v":12},{"$f":"[1]ACS_16_5YR_B18106_with_ann!AD55","v":59},{"$f":"[1]ACS_16_5YR_B18106_with_ann!AE55","v":21},{"$f":"[1]ACS_16_5YR_B18106_with_ann!AF55","v":20},{"$f":"[1]ACS_16_5YR_B18106_with_ann!AG55","v":10},{"$f":"[1]ACS_16_5YR_B18106_with_ann!AH55","v":2},{"$f":"[1]ACS_16_5YR_B18106_with_ann!AI55","v":3},{"$f":"[1]ACS_16_5YR_B18106_with_ann!AJ55","v":18},{"$f":"[1]ACS_16_5YR_B18106_with_ann!AK55","v":10},{"$f":"[1]ACS_16_5YR_B18106_with_ann!AL55","v":291},{"$f":"[1]ACS_16_5YR_B18106_with_ann!AM55","v":67},{"$f":"[1]ACS_16_5YR_B18106_with_ann!AN55","v":46},{"$f":"[1]ACS_16_5YR_B18106_with_ann!AO55","v":30},{"$f":"[1]ACS_16_5YR_B18106_with_ann!AP55","v":0},{"$f":"[1]ACS_16_5YR_B18106_with_ann!AQ55","v":12},{"$f":"[1]ACS_16_5YR_B18106_with_ann!AR55","v":46},{"$f":"[1]ACS_16_5YR_B18106_with_ann!AS55","v":30},{"$f":"[1]ACS_16_5YR_B18106_with_ann!AT55","v":27},{"$f":"[1]ACS_16_5YR_B18106_with_ann!AU55","v":18},{"$f":"[1]ACS_16_5YR_B18106_with_ann!AV55","v":0},{"$f":"[1]ACS_16_5YR_B18106_with_ann!AW55","v":12},{"$f":"[1]ACS_16_5YR_B18106_with_ann!AX55","v":27},{"$f":"[1]ACS_16_5YR_B18106_with_ann!AY55","v":18},{"$f":"[1]ACS_16_5YR_B18106_with_ann!AZ55","v":140},{"$f":"[1]ACS_16_5YR_B18106_with_ann!BA55","v":38},{"$f":"[1]ACS_16_5YR_B18106_with_ann!BB55","v":0},{"$f":"[1]ACS_16_5YR_B18106_with_ann!BC55","v":12},{"$f":"[1]ACS_16_5YR_B18106_with_ann!BD55","v":140},{"$f":"[1]ACS_16_5YR_B18106_with_ann!BE55","v":38},{"$f":"[1]ACS_16_5YR_B18106_with_ann!BF55","v":48},{"$f":"[1]ACS_16_5YR_B18106_with_ann!BG55","v":17},{"$f":"[1]ACS_16_5YR_B18106_with_ann!BH55","v":2},{"$f":"[1]ACS_16_5YR_B18106_with_ann!BI55","v":3},{"$f":"[1]ACS_16_5YR_B18106_with_ann!BJ55","v":46},{"$f":"[1]ACS_16_5YR_B18106_with_ann!BK55","v":17},{"$f":"[1]ACS_16_5YR_B18106_with_ann!BL55","v":30},{"$f":"[1]ACS_16_5YR_B18106_with_ann!BM55","v":21},{"$f":"[1]ACS_16_5YR_B18106_with_ann!BN55","v":2},{"$f":"[1]ACS_16_5YR_B18106_with_ann!BO55","v":6},{"$f":"[1]ACS_16_5YR_B18106_with_ann!BP55","v":28},{"$f":"[1]ACS_16_5YR_B18106_with_ann!BQ55","v":18}]
["06000US3300564420","0600000US3300564580","060",{"$f":"[1]ACS_16_5YR_B18106_with_ann!C56","v":"Richmond"},{"$f":"[1]ACS_16_5YR_B18106_with_ann!D56","v":1056},{"$f":"[1]ACS_16_5YR_B18106_with_ann!E56","v":234},{"$f":"[1]ACS_16_5YR_B18106_with_ann!F56","v":557},{"$f":"[1]ACS_16_5YR_B18106_with_ann!G56","v":149},{"$f":"[1]ACS_16_5YR_B18106_with_ann!H56","v":82},{"$f":"[1]ACS_16_5YR_B18106_with_ann!I56","v":37},{"$f":"[1]ACS_16_5YR_B18106_with_ann!J56","v":0},{"$f":"[1]ACS_16_5YR_B18106_with_ann!K56","v":12},{"$f":"[1]ACS_16_5YR_B18106_with_ann!L56","v":82},{"$f":"[1]ACS_16_5YR_B18106_with_ann!M56","v":37},{"$f":"[1]ACS_16_5YR_B18106_with_ann!N56","v":110},{"$f":"[1]ACS_16_5YR_B18106_with_ann!O56","v":61},{"$f":"[1]ACS_16_5YR_B18106_with_ann!P56","v":3},{"$f":"[1]ACS_16_5YR_B18106_with_ann!Q56","v":6},{"$f":"[1]ACS_16_5YR_B18106_with_ann!R56","v":107},{"$f":"[1]ACS_16_5YR_B18106_with_ann!S56","v":60},{"$f":"[1]ACS_16_5YR_B18106_with_ann!T56","v":192},{"$f":"[1]ACS_16_5YR_B18106_with_ann!U56","v":53},{"$f":"[1]ACS_16_5YR_B18106_with_ann!V56","v":0},{"$f":"[1]ACS_16_5YR_B18106_with_ann!W56","v":12},{"$f":"[1]ACS_16_5YR_B18106_with_ann!X56","v":192},{"$f":"[1]ACS_16_5YR_B18106_with_ann!Y56","v":53},{"$f":"[1]ACS_16_5YR_B18106_with_ann!Z56","v":145},{"$f":"[1]ACS_16_5YR_B18106_with_ann!AA56","v":100},{"$f":"[1]ACS_16_5YR_B18106_with_ann!AB56","v":2},{"$f":"[1]ACS_16_5YR_B18106_with_ann!AC56","v":3},{"$f":"[1]ACS_16_5YR_B18106_with_ann!AD56","v":143},{"$f":"[1]ACS_16_5YR_B18106_with_ann!AE56","v":100},{"$f":"[1]ACS_16_5YR_B18106_with_ann!AF56","v":28},{"$f":"[1]ACS_16_5YR_B18106_with_ann!AG56","v":16},{"$f":"[1]ACS_16_5YR_B18106_with_ann!AH56","v":10},{"$f":"[1]ACS_16_5YR_B18106_with_ann!AI56","v":13},{"$f":"[1]ACS_16_5YR_B18106_with_ann!AJ56","v":18},{"$f":"[1]ACS_16_5YR_B18106_with_ann!AK56","v":12},{"$f":"[1]ACS_16_5YR_B18106_with_ann!AL56","v":499},{"$f":"[1]ACS_16_5YR_B18106_with_ann!AM56","v":117},{"$f":"[1]ACS_16_5YR_B18106_with_ann!AN56","v":58},{"$f":"[1]ACS_16_5YR_B18106_with_ann!AO56","v":27},{"$f":"[1]ACS_16_5YR_B18106_with_ann!AP56","v":0},{"$f":"[1]ACS_16_5YR_B18106_with_ann!AQ56","v":12},{"$f":"[1]ACS_16_5YR_B18106_with_ann!AR56","v":58},{"$f":"[1]ACS_16_5YR_B18106_with_ann!AS56","v":27},{"$f":"[1]ACS_16_5YR_B18106_with_ann!AT56","v":69},{"$f":"[1]ACS_16_5YR_B18106_with_ann!AU56","v":47},{"$f":"[1]ACS_16_5YR_B18106_with_ann!AV56","v":0},{"$f":"[1]ACS_16_5YR_B18106_with_ann!AW56","v":12},{"$f":"[1]ACS_16_5YR_B18106_with_ann!AX56","v":69},{"$f":"[1]ACS_16_5YR_B18106_with_ann!AY56","v":47},{"$f":"[1]ACS_16_5YR_B18106_with_ann!AZ56","v":226},{"$f":"[1]ACS_16_5YR_B18106_with_ann!BA56","v":60},{"$f":"[1]ACS_16_5YR_B18106_with_ann!BB56","v":4},{"$f":"[1]ACS_16_5YR_B18106_with_ann!BC56","v":6},{"$f":"[1]ACS_16_5YR_B18106_with_ann!BD56","v":222},{"$f":"[1]ACS_16_5YR_B18106_with_ann!BE56","v":61},{"$f":"[1]ACS_16_5YR_B18106_with_ann!BF56","v":69},{"$f":"[1]ACS_16_5YR_B18106_with_ann!BG56","v":30},{"$f":"[1]ACS_16_5YR_B18106_with_ann!BH56","v":0},{"$f":"[1]ACS_16_5YR_B18106_with_ann!BI56","v":12},{"$f":"[1]ACS_16_5YR_B18106_with_ann!BJ56","v":69},{"$f":"[1]ACS_16_5YR_B18106_with_ann!BK56","v":30},{"$f":"[1]ACS_16_5YR_B18106_with_ann!BL56","v":77},{"$f":"[1]ACS_16_5YR_B18106_with_ann!BM56","v":40},{"$f":"[1]ACS_16_5YR_B18106_with_ann!BN56","v":0},{"$f":"[1]ACS_16_5YR_B18106_with_ann!BO56","v":12},{"$f":"[1]ACS_16_5YR_B18106_with_ann!BP56","v":77},{"$f":"[1]ACS_16_5YR_B18106_with_ann!BQ56","v":40}]
["06000US3300564580","0600000US3300565700","060",{"$f":"[1]ACS_16_5YR_B18106_with_ann!C57","v":"Rindge"},{"$f":"[1]ACS_16_5YR_B18106_with_ann!D57","v":6183},{"$f":"[1]ACS_16_5YR_B18106_with_ann!E57","v":121},{"$f":"[1]ACS_16_5YR_B18106_with_ann!F57","v":3018},{"$f":"[1]ACS_16_5YR_B18106_with_ann!G57","v":206},{"$f":"[1]ACS_16_5YR_B18106_with_ann!H57","v":470},{"$f":"[1]ACS_16_5YR_B18106_with_ann!I57","v":153},{"$f":"[1]ACS_16_5YR_B18106_with_ann!J57","v":0},{"$f":"[1]ACS_16_5YR_B18106_with_ann!K57","v":17},{"$f":"[1]ACS_16_5YR_B18106_with_ann!L57","v":470},{"$f":"[1]ACS_16_5YR_B18106_with_ann!M57","v":153},{"$f":"[1]ACS_16_5YR_B18106_with_ann!N57","v":941},{"$f":"[1]ACS_16_5YR_B18106_with_ann!O57","v":135},{"$f":"[1]ACS_16_5YR_B18106_with_ann!P57","v":0},{"$f":"[1]ACS_16_5YR_B18106_with_ann!Q57","v":17},{"$f":"[1]ACS_16_5YR_B18106_with_ann!R57","v":941},{"$f":"[1]ACS_16_5YR_B18106_with_ann!S57","v":135},{"$f":"[1]ACS_16_5YR_B18106_with_ann!T57","v":983},{"$f":"[1]ACS_16_5YR_B18106_with_ann!U57","v":154},{"$f":"[1]ACS_16_5YR_B18106_with_ann!V57","v":11},{"$f":"[1]ACS_16_5YR_B18106_with_ann!W57","v":19},{"$f":"[1]ACS_16_5YR_B18106_with_ann!X57","v":972},{"$f":"[1]ACS_16_5YR_B18106_with_ann!Y57","v":152},{"$f":"[1]ACS_16_5YR_B18106_with_ann!Z57","v":428},{"$f":"[1]ACS_16_5YR_B18106_with_ann!AA57","v":106},{"$f":"[1]ACS_16_5YR_B18106_with_ann!AB57","v":0},{"$f":"[1]ACS_16_5YR_B18106_with_ann!AC57","v":17},{"$f":"[1]ACS_16_5YR_B18106_with_ann!AD57","v":428},{"$f":"[1]ACS_16_5YR_B18106_with_ann!AE57","v":106},{"$f":"[1]ACS_16_5YR_B18106_with_ann!AF57","v":196},{"$f":"[1]ACS_16_5YR_B18106_with_ann!AG57","v":97},{"$f":"[1]ACS_16_5YR_B18106_with_ann!AH57","v":0},{"$f":"[1]ACS_16_5YR_B18106_with_ann!AI57","v":17},{"$f":"[1]ACS_16_5YR_B18106_with_ann!AJ57","v":196},{"$f":"[1]ACS_16_5YR_B18106_with_ann!AK57","v":97},{"$f":"[1]ACS_16_5YR_B18106_with_ann!AL57","v":3165},{"$f":"[1]ACS_16_5YR_B18106_with_ann!AM57","v":194},{"$f":"[1]ACS_16_5YR_B18106_with_ann!AN57","v":443},{"$f":"[1]ACS_16_5YR_B18106_with_ann!AO57","v":150},{"$f":"[1]ACS_16_5YR_B18106_with_ann!AP57","v":0},{"$f":"[1]ACS_16_5YR_B18106_with_ann!AQ57","v":17},{"$f":"[1]ACS_16_5YR_B18106_with_ann!AR57","v":443},{"$f":"[1]ACS_16_5YR_B18106_with_ann!AS57","v":150},{"$f":"[1]ACS_16_5YR_B18106_with_ann!AT57","v":1002},{"$f":"[1]ACS_16_5YR_B18106_with_ann!AU57","v":156},{"$f":"[1]ACS_16_5YR_B18106_with_ann!AV57","v":26},{"$f":"[1]ACS_16_5YR_B18106_with_ann!AW57","v":44},{"$f":"[1]ACS_16_5YR_B18106_with_ann!AX57","v":976},{"$f":"[1]ACS_16_5YR_B18106_with_ann!AY57","v":149},{"$f":"[1]ACS_16_5YR_B18106_with_ann!AZ57","v":1067},{"$f":"[1]ACS_16_5YR_B18106_with_ann!BA57","v":134},{"$f":"[1]ACS_16_5YR_B18106_with_ann!BB57","v":29},{"$f":"[1]ACS_16_5YR_B18106_with_ann!BC57","v":45},{"$f":"[1]ACS_16_5YR_B18106_with_ann!BD57","v":1038},{"$f":"[1]ACS_16_5YR_B18106_with_ann!BE57","v":141},{"$f":"[1]ACS_16_5YR_B18106_with_ann!BF57","v":431},{"$f":"[1]ACS_16_5YR_B18106_with_ann!BG57","v":102},{"$f":"[1]ACS_16_5YR_B18106_with_ann!BH57","v":14},{"$f":"[1]ACS_16_5YR_B18106_with_ann!BI57","v":22},{"$f":"[1]ACS_16_5YR_B18106_with_ann!BJ57","v":417},{"$f":"[1]ACS_16_5YR_B18106_with_ann!BK57","v":106},{"$f":"[1]ACS_16_5YR_B18106_with_ann!BL57","v":222},{"$f":"[1]ACS_16_5YR_B18106_with_ann!BM57","v":107},{"$f":"[1]ACS_16_5YR_B18106_with_ann!BN57","v":45},{"$f":"[1]ACS_16_5YR_B18106_with_ann!BO57","v":60},{"$f":"[1]ACS_16_5YR_B18106_with_ann!BP57","v":177},{"$f":"[1]ACS_16_5YR_B18106_with_ann!BQ57","v":85}]
["06000US3300565700","0600000US3300573700","060",{"$f":"[1]ACS_16_5YR_B18106_with_ann!C58","v":"Roxbury"},{"$f":"[1]ACS_16_5YR_B18106_with_ann!D58","v":257},{"$f":"[1]ACS_16_5YR_B18106_with_ann!E58","v":112},{"$f":"[1]ACS_16_5YR_B18106_with_ann!F58","v":99},{"$f":"[1]ACS_16_5YR_B18106_with_ann!G58","v":40},{"$f":"[1]ACS_16_5YR_B18106_with_ann!H58","v":4},{"$f":"[1]ACS_16_5YR_B18106_with_ann!I58","v":6},{"$f":"[1]ACS_16_5YR_B18106_with_ann!J58","v":0},{"$f":"[1]ACS_16_5YR_B18106_with_ann!K58","v":12},{"$f":"[1]ACS_16_5YR_B18106_with_ann!L58","v":4},{"$f":"[1]ACS_16_5YR_B18106_with_ann!M58","v":6},{"$f":"[1]ACS_16_5YR_B18106_with_ann!N58","v":17},{"$f":"[1]ACS_16_5YR_B18106_with_ann!O58","v":10},{"$f":"[1]ACS_16_5YR_B18106_with_ann!P58","v":1},{"$f":"[1]ACS_16_5YR_B18106_with_ann!Q58","v":3},{"$f":"[1]ACS_16_5YR_B18106_with_ann!R58","v":16},{"$f":"[1]ACS_16_5YR_B18106_with_ann!S58","v":10},{"$f":"[1]ACS_16_5YR_B18106_with_ann!T58","v":65},{"$f":"[1]ACS_16_5YR_B18106_with_ann!U58","v":37},{"$f":"[1]ACS_16_5YR_B18106_with_ann!V58","v":0},{"$f":"[1]ACS_16_5YR_B18106_with_ann!W58","v":12},{"$f":"[1]ACS_16_5YR_B18106_with_ann!X58","v":65},{"$f":"[1]ACS_16_5YR_B18106_with_ann!Y58","v":37},{"$f":"[1]ACS_16_5YR_B18106_with_ann!Z58","v":10},{"$f":"[1]ACS_16_5YR_B18106_with_ann!AA58","v":6},{"$f":"[1]ACS_16_5YR_B18106_with_ann!AB58","v":0},{"$f":"[1]ACS_16_5YR_B18106_with_ann!AC58","v":12},{"$f":"[1]ACS_16_5YR_B18106_with_ann!AD58","v":10},{"$f":"[1]ACS_16_5YR_B18106_with_ann!AE58","v":6},{"$f":"[1]ACS_16_5YR_B18106_with_ann!AF58","v":3},{"$f":"[1]ACS_16_5YR_B18106_with_ann!AG58","v":3},{"$f":"[1]ACS_16_5YR_B18106_with_ann!AH58","v":0},{"$f":"[1]ACS_16_5YR_B18106_with_ann!AI58","v":12},{"$f":"[1]ACS_16_5YR_B18106_with_ann!AJ58","v":3},{"$f":"[1]ACS_16_5YR_B18106_with_ann!AK58","v":3},{"$f":"[1]ACS_16_5YR_B18106_with_ann!AL58","v":158},{"$f":"[1]ACS_16_5YR_B18106_with_ann!AM58","v":79},{"$f":"[1]ACS_16_5YR_B18106_with_ann!AN58","v":5},{"$f":"[1]ACS_16_5YR_B18106_with_ann!AO58","v":5},{"$f":"[1]ACS_16_5YR_B18106_with_ann!AP58","v":0},{"$f":"[1]ACS_16_5YR_B18106_with_ann!AQ58","v":12},{"$f":"[1]ACS_16_5YR_B18106_with_ann!AR58","v":5},{"$f":"[1]ACS_16_5YR_B18106_with_ann!AS58","v":5},{"$f":"[1]ACS_16_5YR_B18106_with_ann!AT58","v":67},{"$f":"[1]ACS_16_5YR_B18106_with_ann!AU58","v":57},{"$f":"[1]ACS_16_5YR_B18106_with_ann!AV58","v":0},{"$f":"[1]ACS_16_5YR_B18106_with_ann!AW58","v":12},{"$f":"[1]ACS_16_5YR_B18106_with_ann!AX58","v":67},{"$f":"[1]ACS_16_5YR_B18106_with_ann!AY58","v":57},{"$f":"[1]ACS_16_5YR_B18106_with_ann!AZ58","v":66},{"$f":"[1]ACS_16_5YR_B18106_with_ann!BA58","v":30},{"$f":"[1]ACS_16_5YR_B18106_with_ann!BB58","v":0},{"$f":"[1]ACS_16_5YR_B18106_with_ann!BC58","v":12},{"$f":"[1]ACS_16_5YR_B18106_with_ann!BD58","v":66},{"$f":"[1]ACS_16_5YR_B18106_with_ann!BE58","v":30},{"$f":"[1]ACS_16_5YR_B18106_with_ann!BF58","v":13},{"$f":"[1]ACS_16_5YR_B18106_with_ann!BG58","v":5},{"$f":"[1]ACS_16_5YR_B18106_with_ann!BH58","v":0},{"$f":"[1]ACS_16_5YR_B18106_with_ann!BI58","v":12},{"$f":"[1]ACS_16_5YR_B18106_with_ann!BJ58","v":13},{"$f":"[1]ACS_16_5YR_B18106_with_ann!BK58","v":5},{"$f":"[1]ACS_16_5YR_B18106_with_ann!BL58","v":7},{"$f":"[1]ACS_16_5YR_B18106_with_ann!BM58","v":7},{"$f":"[1]ACS_16_5YR_B18106_with_ann!BN58","v":4},{"$f":"[1]ACS_16_5YR_B18106_with_ann!BO58","v":6},{"$f":"[1]ACS_16_5YR_B18106_with_ann!BP58","v":3},{"$f":"[1]ACS_16_5YR_B18106_with_ann!BQ58","v":4}]
["06000US3300573700","0600000US3300574900","060",{"$f":"[1]ACS_16_5YR_B18106_with_ann!C59","v":"Stoddard"},{"$f":"[1]ACS_16_5YR_B18106_with_ann!D59","v":1147},{"$f":"[1]ACS_16_5YR_B18106_with_ann!E59","v":153},{"$f":"[1]ACS_16_5YR_B18106_with_ann!F59","v":563},{"$f":"[1]ACS_16_5YR_B18106_with_ann!G59","v":96},{"$f":"[1]ACS_16_5YR_B18106_with_ann!H59","v":104},{"$f":"[1]ACS_16_5YR_B18106_with_ann!I59","v":62},{"$f":"[1]ACS_16_5YR_B18106_with_ann!J59","v":0},{"$f":"[1]ACS_16_5YR_B18106_with_ann!K59","v":12},{"$f":"[1]ACS_16_5YR_B18106_with_ann!L59","v":104},{"$f":"[1]ACS_16_5YR_B18106_with_ann!M59","v":62},{"$f":"[1]ACS_16_5YR_B18106_with_ann!N59","v":81},{"$f":"[1]ACS_16_5YR_B18106_with_ann!O59","v":29},{"$f":"[1]ACS_16_5YR_B18106_with_ann!P59","v":0},{"$f":"[1]ACS_16_5YR_B18106_with_ann!Q59","v":12},{"$f":"[1]ACS_16_5YR_B18106_with_ann!R59","v":81},{"$f":"[1]ACS_16_5YR_B18106_with_ann!S59","v":29},{"$f":"[1]ACS_16_5YR_B18106_with_ann!T59","v":279},{"$f":"[1]ACS_16_5YR_B18106_with_ann!U59","v":49},{"$f":"[1]ACS_16_5YR_B18106_with_ann!V59","v":0},{"$f":"[1]ACS_16_5YR_B18106_with_ann!W59","v":12},{"$f":"[1]ACS_16_5YR_B18106_with_ann!X59","v":279},{"$f":"[1]ACS_16_5YR_B18106_with_ann!Y59","v":49},{"$f":"[1]ACS_16_5YR_B18106_with_ann!Z59","v":68},{"$f":"[1]ACS_16_5YR_B18106_with_ann!AA59","v":17},{"$f":"[1]ACS_16_5YR_B18106_with_ann!AB59","v":0},{"$f":"[1]ACS_16_5YR_B18106_with_ann!AC59","v":12},{"$f":"[1]ACS_16_5YR_B18106_with_ann!AD59","v":68},{"$f":"[1]ACS_16_5YR_B18106_with_ann!AE59","v":17},{"$f":"[1]ACS_16_5YR_B18106_with_ann!AF59","v":31},{"$f":"[1]ACS_16_5YR_B18106_with_ann!AG59","v":15},{"$f":"[1]ACS_16_5YR_B18106_with_ann!AH59","v":3},{"$f":"[1]ACS_16_5YR_B18106_with_ann!AI59","v":4},{"$f":"[1]ACS_16_5YR_B18106_with_ann!AJ59","v":28},{"$f":"[1]ACS_16_5YR_B18106_with_ann!AK59","v":14},{"$f":"[1]ACS_16_5YR_B18106_with_ann!AL59","v":584},{"$f":"[1]ACS_16_5YR_B18106_with_ann!AM59","v":81},{"$f":"[1]ACS_16_5YR_B18106_with_ann!AN59","v":89},{"$f":"[1]ACS_16_5YR_B18106_with_ann!AO59","v":33},{"$f":"[1]ACS_16_5YR_B18106_with_ann!AP59","v":0},{"$f":"[1]ACS_16_5YR_B18106_with_ann!AQ59","v":12},{"$f":"[1]ACS_16_5YR_B18106_with_ann!AR59","v":89},{"$f":"[1]ACS_16_5YR_B18106_with_ann!AS59","v":33},{"$f":"[1]ACS_16_5YR_B18106_with_ann!AT59","v":102},{"$f":"[1]ACS_16_5YR_B18106_with_ann!AU59","v":41},{"$f":"[1]ACS_16_5YR_B18106_with_ann!AV59","v":0},{"$f":"[1]ACS_16_5YR_B18106_with_ann!AW59","v":12},{"$f":"[1]ACS_16_5YR_B18106_with_ann!AX59","v":102},{"$f":"[1]ACS_16_5YR_B18106_with_ann!AY59","v":41},{"$f":"[1]ACS_16_5YR_B18106_with_ann!AZ59","v":257},{"$f":"[1]ACS_16_5YR_B18106_with_ann!BA59","v":49},{"$f":"[1]ACS_16_5YR_B18106_with_ann!BB59","v":0},{"$f":"[1]ACS_16_5YR_B18106_with_ann!BC59","v":12},{"$f":"[1]ACS_16_5YR_B18106_with_ann!BD59","v":257},{"$f":"[1]ACS_16_5YR_B18106_with_ann!BE59","v":49},{"$f":"[1]ACS_16_5YR_B18106_with_ann!BF59","v":86},{"$f":"[1]ACS_16_5YR_B18106_with_ann!BG59","v":25},{"$f":"[1]ACS_16_5YR_B18106_with_ann!BH59","v":5},{"$f":"[1]ACS_16_5YR_B18106_with_ann!BI59","v":6},{"$f":"[1]ACS_16_5YR_B18106_with_ann!BJ59","v":81},{"$f":"[1]ACS_16_5YR_B18106_with_ann!BK59","v":25},{"$f":"[1]ACS_16_5YR_B18106_with_ann!BL59","v":50},{"$f":"[1]ACS_16_5YR_B18106_with_ann!BM59","v":22},{"$f":"[1]ACS_16_5YR_B18106_with_ann!BN59","v":10},{"$f":"[1]ACS_16_5YR_B18106_with_ann!BO59","v":10},{"$f":"[1]ACS_16_5YR_B18106_with_ann!BP59","v":40},{"$f":"[1]ACS_16_5YR_B18106_with_ann!BQ59","v":19}]
["06000US3300574900","0600000US3300575300","060",{"$f":"[1]ACS_16_5YR_B18106_with_ann!C60","v":"Sullivan"},{"$f":"[1]ACS_16_5YR_B18106_with_ann!D60","v":618},{"$f":"[1]ACS_16_5YR_B18106_with_ann!E60","v":104},{"$f":"[1]ACS_16_5YR_B18106_with_ann!F60","v":307},{"$f":"[1]ACS_16_5YR_B18106_with_ann!G60","v":63},{"$f":"[1]ACS_16_5YR_B18106_with_ann!H60","v":18},{"$f":"[1]ACS_16_5YR_B18106_with_ann!I60","v":12},{"$f":"[1]ACS_16_5YR_B18106_with_ann!J60","v":3},{"$f":"[1]ACS_16_5YR_B18106_with_ann!K60","v":4},{"$f":"[1]ACS_16_5YR_B18106_with_ann!L60","v":15},{"$f":"[1]ACS_16_5YR_B18106_with_ann!M60","v":11},{"$f":"[1]ACS_16_5YR_B18106_with_ann!N60","v":88},{"$f":"[1]ACS_16_5YR_B18106_with_ann!O60","v":36},{"$f":"[1]ACS_16_5YR_B18106_with_ann!P60","v":15},{"$f":"[1]ACS_16_5YR_B18106_with_ann!Q60","v":19},{"$f":"[1]ACS_16_5YR_B18106_with_ann!R60","v":73},{"$f":"[1]ACS_16_5YR_B18106_with_ann!S60","v":31},{"$f":"[1]ACS_16_5YR_B18106_with_ann!T60","v":134},{"$f":"[1]ACS_16_5YR_B18106_with_ann!U60","v":28},{"$f":"[1]ACS_16_5YR_B18106_with_ann!V60","v":0},{"$f":"[1]ACS_16_5YR_B18106_with_ann!W60","v":12},{"$f":"[1]ACS_16_5YR_B18106_with_ann!X60","v":134},{"$f":"[1]ACS_16_5YR_B18106_with_ann!Y60","v":28},{"$f":"[1]ACS_16_5YR_B18106_with_ann!Z60","v":40},{"$f":"[1]ACS_16_5YR_B18106_with_ann!AA60","v":17},{"$f":"[1]ACS_16_5YR_B18106_with_ann!AB60","v":0},{"$f":"[1]ACS_16_5YR_B18106_with_ann!AC60","v":12},{"$f":"[1]ACS_16_5YR_B18106_with_ann!AD60","v":40},{"$f":"[1]ACS_16_5YR_B18106_with_ann!AE60","v":17},{"$f":"[1]ACS_16_5YR_B18106_with_ann!AF60","v":27},{"$f":"[1]ACS_16_5YR_B18106_with_ann!AG60","v":14},{"$f":"[1]ACS_16_5YR_B18106_with_ann!AH60","v":5},{"$f":"[1]ACS_16_5YR_B18106_with_ann!AI60","v":8},{"$f":"[1]ACS_16_5YR_B18106_with_ann!AJ60","v":22},{"$f":"[1]ACS_16_5YR_B18106_with_ann!AK60","v":13},{"$f":"[1]ACS_16_5YR_B18106_with_ann!AL60","v":311},{"$f":"[1]ACS_16_5YR_B18106_with_ann!AM60","v":57},{"$f":"[1]ACS_16_5YR_B18106_with_ann!AN60","v":30},{"$f":"[1]ACS_16_5YR_B18106_with_ann!AO60","v":15},{"$f":"[1]ACS_16_5YR_B18106_with_ann!AP60","v":0},{"$f":"[1]ACS_16_5YR_B18106_with_ann!AQ60","v":12},{"$f":"[1]ACS_16_5YR_B18106_with_ann!AR60","v":30},{"$f":"[1]ACS_16_5YR_B18106_with_ann!AS60","v":15},{"$f":"[1]ACS_16_5YR_B18106_with_ann!AT60","v":74},{"$f":"[1]ACS_16_5YR_B18106_with_ann!AU60","v":37},{"$f":"[1]ACS_16_5YR_B18106_with_ann!AV60","v":0},{"$f":"[1]ACS_16_5YR_B18106_with_ann!AW60","v":12},{"$f":"[1]ACS_16_5YR_B18106_with_ann!AX60","v":74},{"$f":"[1]ACS_16_5YR_B18106_with_ann!AY60","v":37},{"$f":"[1]ACS_16_5YR_B18106_with_ann!AZ60","v":145},{"$f":"[1]ACS_16_5YR_B18106_with_ann!BA60","v":28},{"$f":"[1]ACS_16_5YR_B18106_with_ann!BB60","v":5},{"$f":"[1]ACS_16_5YR_B18106_with_ann!BC60","v":7},{"$f":"[1]ACS_16_5YR_B18106_with_ann!BD60","v":140},{"$f":"[1]ACS_16_5YR_B18106_with_ann!BE60","v":28},{"$f":"[1]ACS_16_5YR_B18106_with_ann!BF60","v":40},{"$f":"[1]ACS_16_5YR_B18106_with_ann!BG60","v":14},{"$f":"[1]ACS_16_5YR_B18106_with_ann!BH60","v":0},{"$f":"[1]ACS_16_5YR_B18106_with_ann!BI60","v":12},{"$f":"[1]ACS_16_5YR_B18106_with_ann!BJ60","v":40},{"$f":"[1]ACS_16_5YR_B18106_with_ann!BK60","v":14},{"$f":"[1]ACS_16_5YR_B18106_with_ann!BL60","v":22},{"$f":"[1]ACS_16_5YR_B18106_with_ann!BM60","v":13},{"$f":"[1]ACS_16_5YR_B18106_with_ann!BN60","v":4},{"$f":"[1]ACS_16_5YR_B18106_with_ann!BO60","v":5},{"$f":"[1]ACS_16_5YR_B18106_with_ann!BP60","v":18},{"$f":"[1]ACS_16_5YR_B18106_with_ann!BQ60","v":12}]
["06000US3300575300","0600000US3300575700","060",{"$f":"[1]ACS_16_5YR_B18106_with_ann!C61","v":"Surry"},{"$f":"[1]ACS_16_5YR_B18106_with_ann!D61","v":886},{"$f":"[1]ACS_16_5YR_B18106_with_ann!E61","v":208},{"$f":"[1]ACS_16_5YR_B18106_with_ann!F61","v":371},{"$f":"[1]ACS_16_5YR_B18106_with_ann!G61","v":70},{"$f":"[1]ACS_16_5YR_B18106_with_ann!H61","v":34},{"$f":"[1]ACS_16_5YR_B18106_with_ann!I61","v":16},{"$f":"[1]ACS_16_5YR_B18106_with_ann!J61","v":0},{"$f":"[1]ACS_16_5YR_B18106_with_ann!K61","v":12},{"$f":"[1]ACS_16_5YR_B18106_with_ann!L61","v":34},{"$f":"[1]ACS_16_5YR_B18106_with_ann!M61","v":16},{"$f":"[1]ACS_16_5YR_B18106_with_ann!N61","v":49},{"$f":"[1]ACS_16_5YR_B18106_with_ann!O61","v":28},{"$f":"[1]ACS_16_5YR_B18106_with_ann!P61","v":0},{"$f":"[1]ACS_16_5YR_B18106_with_ann!Q61","v":12},{"$f":"[1]ACS_16_5YR_B18106_with_ann!R61","v":49},{"$f":"[1]ACS_16_5YR_B18106_with_ann!S61","v":28},{"$f":"[1]ACS_16_5YR_B18106_with_ann!T61","v":164},{"$f":"[1]ACS_16_5YR_B18106_with_ann!U61","v":44},{"$f":"[1]ACS_16_5YR_B18106_with_ann!V61","v":0},{"$f":"[1]ACS_16_5YR_B18106_with_ann!W61","v":12},{"$f":"[1]ACS_16_5YR_B18106_with_ann!X61","v":164},{"$f":"[1]ACS_16_5YR_B18106_with_ann!Y61","v":44},{"$f":"[1]ACS_16_5YR_B18106_with_ann!Z61","v":80},{"$f":"[1]ACS_16_5YR_B18106_with_ann!AA61","v":34},{"$f":"[1]ACS_16_5YR_B18106_with_ann!AB61","v":0},{"$f":"[1]ACS_16_5YR_B18106_with_ann!AC61","v":12},{"$f":"[1]ACS_16_5YR_B18106_with_ann!AD61","v":80},{"$f":"[1]ACS_16_5YR_B18106_with_ann!AE61","v":34},{"$f":"[1]ACS_16_5YR_B18106_with_ann!AF61","v":44},{"$f":"[1]ACS_16_5YR_B18106_with_ann!AG61","v":21},{"$f":"[1]ACS_16_5YR_B18106_with_ann!AH61","v":0},{"$f":"[1]ACS_16_5YR_B18106_with_ann!AI61","v":12},{"$f":"[1]ACS_16_5YR_B18106_with_ann!AJ61","v":44},{"$f":"[1]ACS_16_5YR_B18106_with_ann!AK61","v":21},{"$f":"[1]ACS_16_5YR_B18106_with_ann!AL61","v":515},{"$f":"[1]ACS_16_5YR_B18106_with_ann!AM61","v":163},{"$f":"[1]ACS_16_5YR_B18106_with_ann!AN61","v":95},{"$f":"[1]ACS_16_5YR_B18106_with_ann!AO61","v":63},{"$f":"[1]ACS_16_5YR_B18106_with_ann!AP61","v":0},{"$f":"[1]ACS_16_5YR_B18106_with_ann!AQ61","v":12},{"$f":"[1]ACS_16_5YR_B18106_with_ann!AR61","v":95},{"$f":"[1]ACS_16_5YR_B18106_with_ann!AS61","v":63},{"$f":"[1]ACS_16_5YR_B18106_with_ann!AT61","v":122},{"$f":"[1]ACS_16_5YR_B18106_with_ann!AU61","v":78},{"$f":"[1]ACS_16_5YR_B18106_with_ann!AV61","v":4},{"$f":"[1]ACS_16_5YR_B18106_with_ann!AW61","v":6},{"$f":"[1]ACS_16_5YR_B18106_with_ann!AX61","v":118},{"$f":"[1]ACS_16_5YR_B18106_with_ann!AY61","v":78},{"$f":"[1]ACS_16_5YR_B18106_with_ann!AZ61","v":179},{"$f":"[1]ACS_16_5YR_B18106_with_ann!BA61","v":54},{"$f":"[1]ACS_16_5YR_B18106_with_ann!BB61","v":0},{"$f":"[1]ACS_16_5YR_B18106_with_ann!BC61","v":12},{"$f":"[1]ACS_16_5YR_B18106_with_ann!BD61","v":179},{"$f":"[1]ACS_16_5YR_B18106_with_ann!BE61","v":54},{"$f":"[1]ACS_16_5YR_B18106_with_ann!BF61","v":72},{"$f":"[1]ACS_16_5YR_B18106_with_ann!BG61","v":25},{"$f":"[1]ACS_16_5YR_B18106_with_ann!BH61","v":0},{"$f":"[1]ACS_16_5YR_B18106_with_ann!BI61","v":12},{"$f":"[1]ACS_16_5YR_B18106_with_ann!BJ61","v":72},{"$f":"[1]ACS_16_5YR_B18106_with_ann!BK61","v":25},{"$f":"[1]ACS_16_5YR_B18106_with_ann!BL61","v":47},{"$f":"[1]ACS_16_5YR_B18106_with_ann!BM61","v":20},{"$f":"[1]ACS_16_5YR_B18106_with_ann!BN61","v":3},{"$f":"[1]ACS_16_5YR_B18106_with_ann!BO61","v":4},{"$f":"[1]ACS_16_5YR_B18106_with_ann!BP61","v":44},{"$f":"[1]ACS_16_5YR_B18106_with_ann!BQ61","v":20}]
["06000US3300575700","0600000US3300577380","060",{"$f":"[1]ACS_16_5YR_B18106_with_ann!C62","v":"Swanzey"},{"$f":"[1]ACS_16_5YR_B18106_with_ann!D62","v":7071},{"$f":"[1]ACS_16_5YR_B18106_with_ann!E62","v":107},{"$f":"[1]ACS_16_5YR_B18106_with_ann!F62","v":3438},{"$f":"[1]ACS_16_5YR_B18106_with_ann!G62","v":199},{"$f":"[1]ACS_16_5YR_B18106_with_ann!H62","v":425},{"$f":"[1]ACS_16_5YR_B18106_with_ann!I62","v":130},{"$f":"[1]ACS_16_5YR_B18106_with_ann!J62","v":0},{"$f":"[1]ACS_16_5YR_B18106_with_ann!K62","v":17},{"$f":"[1]ACS_16_5YR_B18106_with_ann!L62","v":425},{"$f":"[1]ACS_16_5YR_B18106_with_ann!M62","v":130},{"$f":"[1]ACS_16_5YR_B18106_with_ann!N62","v":528},{"$f":"[1]ACS_16_5YR_B18106_with_ann!O62","v":182},{"$f":"[1]ACS_16_5YR_B18106_with_ann!P62","v":0},{"$f":"[1]ACS_16_5YR_B18106_with_ann!Q62","v":17},{"$f":"[1]ACS_16_5YR_B18106_with_ann!R62","v":528},{"$f":"[1]ACS_16_5YR_B18106_with_ann!S62","v":182},{"$f":"[1]ACS_16_5YR_B18106_with_ann!T62","v":1568},{"$f":"[1]ACS_16_5YR_B18106_with_ann!U62","v":216},{"$f":"[1]ACS_16_5YR_B18106_with_ann!V62","v":0},{"$f":"[1]ACS_16_5YR_B18106_with_ann!W62","v":17},{"$f":"[1]ACS_16_5YR_B18106_with_ann!X62","v":1568},{"$f":"[1]ACS_16_5YR_B18106_with_ann!Y62","v":216},{"$f":"[1]ACS_16_5YR_B18106_with_ann!Z62","v":533},{"$f":"[1]ACS_16_5YR_B18106_with_ann!AA62","v":186},{"$f":"[1]ACS_16_5YR_B18106_with_ann!AB62","v":18},{"$f":"[1]ACS_16_5YR_B18106_with_ann!AC62","v":32},{"$f":"[1]ACS_16_5YR_B18106_with_ann!AD62","v":515},{"$f":"[1]ACS_16_5YR_B18106_with_ann!AE62","v":180},{"$f":"[1]ACS_16_5YR_B18106_with_ann!AF62","v":384},{"$f":"[1]ACS_16_5YR_B18106_with_ann!AG62","v":157},{"$f":"[1]ACS_16_5YR_B18106_with_ann!AH62","v":51},{"$f":"[1]ACS_16_5YR_B18106_with_ann!AI62","v":46},{"$f":"[1]ACS_16_5YR_B18106_with_ann!AJ62","v":333},{"$f":"[1]ACS_16_5YR_B18106_with_ann!AK62","v":129},{"$f":"[1]ACS_16_5YR_B18106_with_ann!AL62","v":3633},{"$f":"[1]ACS_16_5YR_B18106_with_ann!AM62","v":206},{"$f":"[1]ACS_16_5YR_B18106_with_ann!AN62","v":602},{"$f":"[1]ACS_16_5YR_B18106_with_ann!AO62","v":142},{"$f":"[1]ACS_16_5YR_B18106_with_ann!AP62","v":0},{"$f":"[1]ACS_16_5YR_B18106_with_ann!AQ62","v":17},{"$f":"[1]ACS_16_5YR_B18106_with_ann!AR62","v":602},{"$f":"[1]ACS_16_5YR_B18106_with_ann!AS62","v":142},{"$f":"[1]ACS_16_5YR_B18106_with_ann!AT62","v":424},{"$f":"[1]ACS_16_5YR_B18106_with_ann!AU62","v":133},{"$f":"[1]ACS_16_5YR_B18106_with_ann!AV62","v":0},{"$f":"[1]ACS_16_5YR_B18106_with_ann!AW62","v":17},{"$f":"[1]ACS_16_5YR_B18106_with_ann!AX62","v":424},{"$f":"[1]ACS_16_5YR_B18106_with_ann!AY62","v":133},{"$f":"[1]ACS_16_5YR_B18106_with_ann!AZ62","v":1648},{"$f":"[1]ACS_16_5YR_B18106_with_ann!BA62","v":206},{"$f":"[1]ACS_16_5YR_B18106_with_ann!BB62","v":86},{"$f":"[1]ACS_16_5YR_B18106_with_ann!BC62","v":88},{"$f":"[1]ACS_16_5YR_B18106_with_ann!BD62","v":1562},{"$f":"[1]ACS_16_5YR_B18106_with_ann!BE62","v":224},{"$f":"[1]ACS_16_5YR_B18106_with_ann!BF62","v":587},{"$f":"[1]ACS_16_5YR_B18106_with_ann!BG62","v":143},{"$f":"[1]ACS_16_5YR_B18106_with_ann!BH62","v":0},{"$f":"[1]ACS_16_5YR_B18106_with_ann!BI62","v":17},{"$f":"[1]ACS_16_5YR_B18106_with_ann!BJ62","v":587},{"$f":"[1]ACS_16_5YR_B18106_with_ann!BK62","v":143},{"$f":"[1]ACS_16_5YR_B18106_with_ann!BL62","v":372},{"$f":"[1]ACS_16_5YR_B18106_with_ann!BM62","v":116},{"$f":"[1]ACS_16_5YR_B18106_with_ann!BN62","v":34},{"$f":"[1]ACS_16_5YR_B18106_with_ann!BO62","v":35},{"$f":"[1]ACS_16_5YR_B18106_with_ann!BP62","v":338},{"$f":"[1]ACS_16_5YR_B18106_with_ann!BQ62","v":109}]
["06000US3300577380","0600000US3300578420","060",{"$f":"[1]ACS_16_5YR_B18106_with_ann!C63","v":"Troy"},{"$f":"[1]ACS_16_5YR_B18106_with_ann!D63","v":1758},{"$f":"[1]ACS_16_5YR_B18106_with_ann!E63","v":258},{"$f":"[1]ACS_16_5YR_B18106_with_ann!F63","v":925},{"$f":"[1]ACS_16_5YR_B18106_with_ann!G63","v":172},{"$f":"[1]ACS_16_5YR_B18106_with_ann!H63","v":149},{"$f":"[1]ACS_16_5YR_B18106_with_ann!I63","v":79},{"$f":"[1]ACS_16_5YR_B18106_with_ann!J63","v":0},{"$f":"[1]ACS_16_5YR_B18106_with_ann!K63","v":12},{"$f":"[1]ACS_16_5YR_B18106_with_ann!L63","v":149},{"$f":"[1]ACS_16_5YR_B18106_with_ann!M63","v":79},{"$f":"[1]ACS_16_5YR_B18106_with_ann!N63","v":191},{"$f":"[1]ACS_16_5YR_B18106_with_ann!O63","v":77},{"$f":"[1]ACS_16_5YR_B18106_with_ann!P63","v":0},{"$f":"[1]ACS_16_5YR_B18106_with_ann!Q63","v":12},{"$f":"[1]ACS_16_5YR_B18106_with_ann!R63","v":191},{"$f":"[1]ACS_16_5YR_B18106_with_ann!S63","v":77},{"$f":"[1]ACS_16_5YR_B18106_with_ann!T63","v":419},{"$f":"[1]ACS_16_5YR_B18106_with_ann!U63","v":95},{"$f":"[1]ACS_16_5YR_B18106_with_ann!V63","v":6},{"$f":"[1]ACS_16_5YR_B18106_with_ann!W63","v":8},{"$f":"[1]ACS_16_5YR_B18106_with_ann!X63","v":413},{"$f":"[1]ACS_16_5YR_B18106_with_ann!Y63","v":94},{"$f":"[1]ACS_16_5YR_B18106_with_ann!Z63","v":121},{"$f":"[1]ACS_16_5YR_B18106_with_ann!AA63","v":49},{"$f":"[1]ACS_16_5YR_B18106_with_ann!AB63","v":6},{"$f":"[1]ACS_16_5YR_B18106_with_ann!AC63","v":8},{"$f":"[1]ACS_16_5YR_B18106_with_ann!AD63","v":115},{"$f":"[1]ACS_16_5YR_B18106_with_ann!AE63","v":50},{"$f":"[1]ACS_16_5YR_B18106_with_ann!AF63","v":45},{"$f":"[1]ACS_16_5YR_B18106_with_ann!AG63","v":29},{"$f":"[1]ACS_16_5YR_B18106_with_ann!AH63","v":0},{"$f":"[1]ACS_16_5YR_B18106_with_ann!AI63","v":12},{"$f":"[1]ACS_16_5YR_B18106_with_ann!AJ63","v":45},{"$f":"[1]ACS_16_5YR_B18106_with_ann!AK63","v":29},{"$f":"[1]ACS_16_5YR_B18106_with_ann!AL63","v":833},{"$f":"[1]ACS_16_5YR_B18106_with_ann!AM63","v":124},{"$f":"[1]ACS_16_5YR_B18106_with_ann!AN63","v":113},{"$f":"[1]ACS_16_5YR_B18106_with_ann!AO63","v":46},{"$f":"[1]ACS_16_5YR_B18106_with_ann!AP63","v":0},{"$f":"[1]ACS_16_5YR_B18106_with_ann!AQ63","v":12},{"$f":"[1]ACS_16_5YR_B18106_with_ann!AR63","v":113},{"$f":"[1]ACS_16_5YR_B18106_with_ann!AS63","v":46},{"$f":"[1]ACS_16_5YR_B18106_with_ann!AT63","v":205},{"$f":"[1]ACS_16_5YR_B18106_with_ann!AU63","v":65},{"$f":"[1]ACS_16_5YR_B18106_with_ann!AV63","v":0},{"$f":"[1]ACS_16_5YR_B18106_with_ann!AW63","v":12},{"$f":"[1]ACS_16_5YR_B18106_with_ann!AX63","v":205},{"$f":"[1]ACS_16_5YR_B18106_with_ann!AY63","v":65},{"$f":"[1]ACS_16_5YR_B18106_with_ann!AZ63","v":352},{"$f":"[1]ACS_16_5YR_B18106_with_ann!BA63","v":89},{"$f":"[1]ACS_16_5YR_B18106_with_ann!BB63","v":4},{"$f":"[1]ACS_16_5YR_B18106_with_ann!BC63","v":7},{"$f":"[1]ACS_16_5YR_B18106_with_ann!BD63","v":348},{"$f":"[1]ACS_16_5YR_B18106_with_ann!BE63","v":88},{"$f":"[1]ACS_16_5YR_B18106_with_ann!BF63","v":101},{"$f":"[1]ACS_16_5YR_B18106_with_ann!BG63","v":32},{"$f":"[1]ACS_16_5YR_B18106_with_ann!BH63","v":0},{"$f":"[1]ACS_16_5YR_B18106_with_ann!BI63","v":12},{"$f":"[1]ACS_16_5YR_B18106_with_ann!BJ63","v":101},{"$f":"[1]ACS_16_5YR_B18106_with_ann!BK63","v":32},{"$f":"[1]ACS_16_5YR_B18106_with_ann!BL63","v":62},{"$f":"[1]ACS_16_5YR_B18106_with_ann!BM63","v":38},{"$f":"[1]ACS_16_5YR_B18106_with_ann!BN63","v":0},{"$f":"[1]ACS_16_5YR_B18106_with_ann!BO63","v":12},{"$f":"[1]ACS_16_5YR_B18106_with_ann!BP63","v":62},{"$f":"[1]ACS_16_5YR_B18106_with_ann!BQ63","v":38}]
["06000US3300578420","0600000US3300582660","060",{"$f":"[1]ACS_16_5YR_B18106_with_ann!C64","v":"Walpole"},{"$f":"[1]ACS_16_5YR_B18106_with_ann!D64","v":3324},{"$f":"[1]ACS_16_5YR_B18106_with_ann!E64","v":112},{"$f":"[1]ACS_16_5YR_B18106_with_ann!F64","v":1616},{"$f":"[1]ACS_16_5YR_B18106_with_ann!G64","v":159},{"$f":"[1]ACS_16_5YR_B18106_with_ann!H64","v":312},{"$f":"[1]ACS_16_5YR_B18106_with_ann!I64","v":115},{"$f":"[1]ACS_16_5YR_B18106_with_ann!J64","v":5},{"$f":"[1]ACS_16_5YR_B18106_with_ann!K64","v":8},{"$f":"[1]ACS_16_5YR_B18106_with_ann!L64","v":307},{"$f":"[1]ACS_16_5YR_B18106_with_ann!M64","v":115},{"$f":"[1]ACS_16_5YR_B18106_with_ann!N64","v":366},{"$f":"[1]ACS_16_5YR_B18106_with_ann!O64","v":116},{"$f":"[1]ACS_16_5YR_B18106_with_ann!P64","v":8},{"$f":"[1]ACS_16_5YR_B18106_with_ann!Q64","v":14},{"$f":"[1]ACS_16_5YR_B18106_with_ann!R64","v":358},{"$f":"[1]ACS_16_5YR_B18106_with_ann!S64","v":117},{"$f":"[1]ACS_16_5YR_B18106_with_ann!T64","v":571},{"$f":"[1]ACS_16_5YR_B18106_with_ann!U64","v":100},{"$f":"[1]ACS_16_5YR_B18106_with_ann!V64","v":0},{"$f":"[1]ACS_16_5YR_B18106_with_ann!W64","v":12},{"$f":"[1]ACS_16_5YR_B18106_with_ann!X64","v":571},{"$f":"[1]ACS_16_5YR_B18106_with_ann!Y64","v":100},{"$f":"[1]ACS_16_5YR_B18106_with_ann!Z64","v":271},{"$f":"[1]ACS_16_5YR_B18106_with_ann!AA64","v":74},{"$f":"[1]ACS_16_5YR_B18106_with_ann!AB64","v":10},{"$f":"[1]ACS_16_5YR_B18106_with_ann!AC64","v":17},{"$f":"[1]ACS_16_5YR_B18106_with_ann!AD64","v":261},{"$f":"[1]ACS_16_5YR_B18106_with_ann!AE64","v":69},{"$f":"[1]ACS_16_5YR_B18106_with_ann!AF64","v":96},{"$f":"[1]ACS_16_5YR_B18106_with_ann!AG64","v":46},{"$f":"[1]ACS_16_5YR_B18106_with_ann!AH64","v":0},{"$f":"[1]ACS_16_5YR_B18106_with_ann!AI64","v":12},{"$f":"[1]ACS_16_5YR_B18106_with_ann!AJ64","v":96},{"$f":"[1]ACS_16_5YR_B18106_with_ann!AK64","v":46},{"$f":"[1]ACS_16_5YR_B18106_with_ann!AL64","v":1708},{"$f":"[1]ACS_16_5YR_B18106_with_ann!AM64","v":137},{"$f":"[1]ACS_16_5YR_B18106_with_ann!AN64","v":287},{"$f":"[1]ACS_16_5YR_B18106_with_ann!AO64","v":98},{"$f":"[1]ACS_16_5YR_B18106_with_ann!AP64","v":7},{"$f":"[1]ACS_16_5YR_B18106_with_ann!AQ64","v":13},{"$f":"[1]ACS_16_5YR_B18106_with_ann!AR64","v":280},{"$f":"[1]ACS_16_5YR_B18106_with_ann!AS64","v":95},{"$f":"[1]ACS_16_5YR_B18106_with_ann!AT64","v":318},{"$f":"[1]ACS_16_5YR_B18106_with_ann!AU64","v":144},{"$f":"[1]ACS_16_5YR_B18106_with_ann!AV64","v":0},{"$f":"[1]ACS_16_5YR_B18106_with_ann!AW64","v":12},{"$f":"[1]ACS_16_5YR_B18106_with_ann!AX64","v":318},{"$f":"[1]ACS_16_5YR_B18106_with_ann!AY64","v":144},{"$f":"[1]ACS_16_5YR_B18106_with_ann!AZ64","v":699},{"$f":"[1]ACS_16_5YR_B18106_with_ann!BA64","v":118},{"$f":"[1]ACS_16_5YR_B18106_with_ann!BB64","v":12},{"$f":"[1]ACS_16_5YR_B18106_with_ann!BC64","v":19},{"$f":"[1]ACS_16_5YR_B18106_with_ann!BD64","v":687},{"$f":"[1]ACS_16_5YR_B18106_with_ann!BE64","v":119},{"$f":"[1]ACS_16_5YR_B18106_with_ann!BF64","v":182},{"$f":"[1]ACS_16_5YR_B18106_with_ann!BG64","v":50},{"$f":"[1]ACS_16_5YR_B18106_with_ann!BH64","v":6},{"$f":"[1]ACS_16_5YR_B18106_with_ann!BI64","v":8},{"$f":"[1]ACS_16_5YR_B18106_with_ann!BJ64","v":176},{"$f":"[1]ACS_16_5YR_B18106_with_ann!BK64","v":50},{"$f":"[1]ACS_16_5YR_B18106_with_ann!BL64","v":222},{"$f":"[1]ACS_16_5YR_B18106_with_ann!BM64","v":100},{"$f":"[1]ACS_16_5YR_B18106_with_ann!BN64","v":0},{"$f":"[1]ACS_16_5YR_B18106_with_ann!BO64","v":12},{"$f":"[1]ACS_16_5YR_B18106_with_ann!BP64","v":222},{"$f":"[1]ACS_16_5YR_B18106_with_ann!BQ64","v":100}]
["06000US3300582660","0600000US3300585540","060",{"$f":"[1]ACS_16_5YR_B18106_with_ann!C65","v":"Westmoreland"},{"$f":"[1]ACS_16_5YR_B18106_with_ann!D65","v":1891},{"$f":"[1]ACS_16_5YR_B18106_with_ann!E65","v":327},{"$f":"[1]ACS_16_5YR_B18106_with_ann!F65","v":824},{"$f":"[1]ACS_16_5YR_B18106_with_ann!G65","v":155},{"$f":"[1]ACS_16_5YR_B18106_with_ann!H65","v":51},{"$f":"[1]ACS_16_5YR_B18106_with_ann!I65","v":27},{"$f":"[1]ACS_16_5YR_B18106_with_ann!J65","v":0},{"$f":"[1]ACS_16_5YR_B18106_with_ann!K65","v":12},{"$f":"[1]ACS_16_5YR_B18106_with_ann!L65","v":51},{"$f":"[1]ACS_16_5YR_B18106_with_ann!M65","v":27},{"$f":"[1]ACS_16_5YR_B18106_with_ann!N65","v":117},{"$f":"[1]ACS_16_5YR_B18106_with_ann!O65","v":52},{"$f":"[1]ACS_16_5YR_B18106_with_ann!P65","v":0},{"$f":"[1]ACS_16_5YR_B18106_with_ann!Q65","v":12},{"$f":"[1]ACS_16_5YR_B18106_with_ann!R65","v":117},{"$f":"[1]ACS_16_5YR_B18106_with_ann!S65","v":52},{"$f":"[1]ACS_16_5YR_B18106_with_ann!T65","v":395},{"$f":"[1]ACS_16_5YR_B18106_with_ann!U65","v":97},{"$f":"[1]ACS_16_5YR_B18106_with_ann!V65","v":20},{"$f":"[1]ACS_16_5YR_B18106_with_ann!W65","v":17},{"$f":"[1]ACS_16_5YR_B18106_with_ann!X65","v":375},{"$f":"[1]ACS_16_5YR_B18106_with_ann!Y65","v":95},{"$f":"[1]ACS_16_5YR_B18106_with_ann!Z65","v":156},{"$f":"[1]ACS_16_5YR_B18106_with_ann!AA65","v":50},{"$f":"[1]ACS_16_5YR_B18106_with_ann!AB65","v":3},{"$f":"[1]ACS_16_5YR_B18106_with_ann!AC65","v":5},{"$f":"[1]ACS_16_5YR_B18106_with_ann!AD65","v":153},{"$f":"[1]ACS_16_5YR_B18106_with_ann!AE65","v":49},{"$f":"[1]ACS_16_5YR_B18106_with_ann!AF65","v":105},{"$f":"[1]ACS_16_5YR_B18106_with_ann!AG65","v":66},{"$f":"[1]ACS_16_5YR_B18106_with_ann!AH65","v":7},{"$f":"[1]ACS_16_5YR_B18106_with_ann!AI65","v":8},{"$f":"[1]ACS_16_5YR_B18106_with_ann!AJ65","v":98},{"$f":"[1]ACS_16_5YR_B18106_with_ann!AK65","v":66},{"$f":"[1]ACS_16_5YR_B18106_with_ann!AL65","v":1067},{"$f":"[1]ACS_16_5YR_B18106_with_ann!AM65","v":207},{"$f":"[1]ACS_16_5YR_B18106_with_ann!AN65","v":180},{"$f":"[1]ACS_16_5YR_B18106_with_ann!AO65","v":81},{"$f":"[1]ACS_16_5YR_B18106_with_ann!AP65","v":0},{"$f":"[1]ACS_16_5YR_B18106_with_ann!AQ65","v":12},{"$f":"[1]ACS_16_5YR_B18106_with_ann!AR65","v":180},{"$f":"[1]ACS_16_5YR_B18106_with_ann!AS65","v":81},{"$f":"[1]ACS_16_5YR_B18106_with_ann!AT65","v":119},{"$f":"[1]ACS_16_5YR_B18106_with_ann!AU65","v":67},{"$f":"[1]ACS_16_5YR_B18106_with_ann!AV65","v":0},{"$f":"[1]ACS_16_5YR_B18106_with_ann!AW65","v":12},{"$f":"[1]ACS_16_5YR_B18106_with_ann!AX65","v":119},{"$f":"[1]ACS_16_5YR_B18106_with_ann!AY65","v":67},{"$f":"[1]ACS_16_5YR_B18106_with_ann!AZ65","v":430},{"$f":"[1]ACS_16_5YR_B18106_with_ann!BA65","v":101},{"$f":"[1]ACS_16_5YR_B18106_with_ann!BB65","v":0},{"$f":"[1]ACS_16_5YR_B18106_with_ann!BC65","v":12},{"$f":"[1]ACS_16_5YR_B18106_with_ann!BD65","v":430},{"$f":"[1]ACS_16_5YR_B18106_with_ann!BE65","v":101},{"$f":"[1]ACS_16_5YR_B18106_with_ann!BF65","v":215},{"$f":"[1]ACS_16_5YR_B18106_with_ann!BG65","v":110},{"$f":"[1]ACS_16_5YR_B18106_with_ann!BH65","v":4},{"$f":"[1]ACS_16_5YR_B18106_with_ann!BI65","v":8},{"$f":"[1]ACS_16_5YR_B18106_with_ann!BJ65","v":211},{"$f":"[1]ACS_16_5YR_B18106_with_ann!BK65","v":109},{"$f":"[1]ACS_16_5YR_B18106_with_ann!BL65","v":123},{"$f":"[1]ACS_16_5YR_B18106_with_ann!BM65","v":45},{"$f":"[1]ACS_16_5YR_B18106_with_ann!BN65","v":17},{"$f":"[1]ACS_16_5YR_B18106_with_ann!BO65","v":19},{"$f":"[1]ACS_16_5YR_B18106_with_ann!BP65","v":106},{"$f":"[1]ACS_16_5YR_B18106_with_ann!BQ65","v":40}]
["06000US3300585540","0600000US3300500820","060",{"$f":"[1]ACS_16_5YR_B18106_with_ann!C66","v":"Winchester"},{"$f":"[1]ACS_16_5YR_B18106_with_ann!D66","v":3755},{"$f":"[1]ACS_16_5YR_B18106_with_ann!E66","v":135},{"$f":"[1]ACS_16_5YR_B18106_with_ann!F66","v":1866},{"$f":"[1]ACS_16_5YR_B18106_with_ann!G66","v":182},{"$f":"[1]ACS_16_5YR_B18106_with_ann!H66","v":311},{"$f":"[1]ACS_16_5YR_B18106_with_ann!I66","v":122},{"$f":"[1]ACS_16_5YR_B18106_with_ann!J66","v":0},{"$f":"[1]ACS_16_5YR_B18106_with_ann!K66","v":12},{"$f":"[1]ACS_16_5YR_B18106_with_ann!L66","v":311},{"$f":"[1]ACS_16_5YR_B18106_with_ann!M66","v":122},{"$f":"[1]ACS_16_5YR_B18106_with_ann!N66","v":388},{"$f":"[1]ACS_16_5YR_B18106_with_ann!O66","v":118},{"$f":"[1]ACS_16_5YR_B18106_with_ann!P66","v":0},{"$f":"[1]ACS_16_5YR_B18106_with_ann!Q66","v":12},{"$f":"[1]ACS_16_5YR_B18106_with_ann!R66","v":388},{"$f":"[1]ACS_16_5YR_B18106_with_ann!S66","v":118},{"$f":"[1]ACS_16_5YR_B18106_with_ann!T66","v":910},{"$f":"[1]ACS_16_5YR_B18106_with_ann!U66","v":152},{"$f":"[1]ACS_16_5YR_B18106_with_ann!V66","v":68},{"$f":"[1]ACS_16_5YR_B18106_with_ann!W66","v":57},{"$f":"[1]ACS_16_5YR_B18106_with_ann!X66","v":842},{"$f":"[1]ACS_16_5YR_B18106_with_ann!Y66","v":142},{"$f":"[1]ACS_16_5YR_B18106_with_ann!Z66","v":193},{"$f":"[1]ACS_16_5YR_B18106_with_ann!AA66","v":70},{"$f":"[1]ACS_16_5YR_B18106_with_ann!AB66","v":0},{"$f":"[1]ACS_16_5YR_B18106_with_ann!AC66","v":12},{"$f":"[1]ACS_16_5YR_B18106_with_ann!AD66","v":193},{"$f":"[1]ACS_16_5YR_B18106_with_ann!AE66","v":70},{"$f":"[1]ACS_16_5YR_B18106_with_ann!AF66","v":64},{"$f":"[1]ACS_16_5YR_B18106_with_ann!AG66","v":35},{"$f":"[1]ACS_16_5YR_B18106_with_ann!AH66","v":8},{"$f":"[1]ACS_16_5YR_B18106_with_ann!AI66","v":11},{"$f":"[1]ACS_16_5YR_B18106_with_ann!AJ66","v":56},{"$f":"[1]ACS_16_5YR_B18106_with_ann!AK66","v":37},{"$f":"[1]ACS_16_5YR_B18106_with_ann!AL66","v":1889},{"$f":"[1]ACS_16_5YR_B18106_with_ann!AM66","v":200},{"$f":"[1]ACS_16_5YR_B18106_with_ann!AN66","v":289},{"$f":"[1]ACS_16_5YR_B18106_with_ann!AO66","v":127},{"$f":"[1]ACS_16_5YR_B18106_with_ann!AP66","v":0},{"$f":"[1]ACS_16_5YR_B18106_with_ann!AQ66","v":12},{"$f":"[1]ACS_16_5YR_B18106_with_ann!AR66","v":289},{"$f":"[1]ACS_16_5YR_B18106_with_ann!AS66","v":127},{"$f":"[1]ACS_16_5YR_B18106_with_ann!AT66","v":492},{"$f":"[1]ACS_16_5YR_B18106_with_ann!AU66","v":192},{"$f":"[1]ACS_16_5YR_B18106_with_ann!AV66","v":0},{"$f":"[1]ACS_16_5YR_B18106_with_ann!AW66","v":12},{"$f":"[1]ACS_16_5YR_B18106_with_ann!AX66","v":492},{"$f":"[1]ACS_16_5YR_B18106_with_ann!AY66","v":192},{"$f":"[1]ACS_16_5YR_B18106_with_ann!AZ66","v":753},{"$f":"[1]ACS_16_5YR_B18106_with_ann!BA66","v":132},{"$f":"[1]ACS_16_5YR_B18106_with_ann!BB66","v":9},{"$f":"[1]ACS_16_5YR_B18106_with_ann!BC66","v":13},{"$f":"[1]ACS_16_5YR_B18106_with_ann!BD66","v":744},{"$f":"[1]ACS_16_5YR_B18106_with_ann!BE66","v":130},{"$f":"[1]ACS_16_5YR_B18106_with_ann!BF66","v":204},{"$f":"[1]ACS_16_5YR_B18106_with_ann!BG66","v":79},{"$f":"[1]ACS_16_5YR_B18106_with_ann!BH66","v":58},{"$f":"[1]ACS_16_5YR_B18106_with_ann!BI66","v":75},{"$f":"[1]ACS_16_5YR_B18106_with_ann!BJ66","v":146},{"$f":"[1]ACS_16_5YR_B18106_with_ann!BK66","v":61},{"$f":"[1]ACS_16_5YR_B18106_with_ann!BL66","v":151},{"$f":"[1]ACS_16_5YR_B18106_with_ann!BM66","v":66},{"$f":"[1]ACS_16_5YR_B18106_with_ann!BN66","v":13},{"$f":"[1]ACS_16_5YR_B18106_with_ann!BO66","v":17},{"$f":"[1]ACS_16_5YR_B18106_with_ann!BP66","v":138},{"$f":"[1]ACS_16_5YR_B18106_with_ann!BQ66","v":63}]
[]
[]
[]
[null,null,null,null,{"$f":"$D$3","v":"Alstead"},null,{"$f":"$D$4","v":"Chesterfield"},null,{"$f":"$D$5","v":"Dublin"},null,{"$f":"$D$6","v":"Fitzwilliam"},null,{"$f":"$D$7","v":"Gilsum"},null,{"$f":"$D$8","v":"Harrisville"},null,{"$f":"$D$9","v":"Hinsdale"},null,{"$f":"$D$10","v":"Jaffrey"},null,{"$f":"$D$11","v":"Keene"},null,{"$f":"$D$12","v":"Marlborough"},null,{"$f":"$D$13","v":"Marlow"},null,{"$f":"$D$14","v":"Nelson"},null,{"$f":"$D$15","v":"Richmond"},null,{"$f":"$D$16","v":"Rindge"},null,{"$f":"$D$17","v":"Roxbury"},null,{"$f":"$D$18","v":"Stoddard"},null,{"$f":"$D$19","v":"Sullivan"},null,{"$f":"$D$20","v":"Surry"},null,{"$f":"$D$21","v":"Swanzey"},null,{"$f":"$D$22","v":"Troy"},null,{"$f":"$D$23","v":"Walpole"},null,{"$f":"$D$24","v":"Westmoreland"},null,{"$f":"$D$25","v":"Winchester"}]
[null,null,null,null,"Estimate","Margin of Error","Estimate","Margin of Error","Estimate","Margin of Error","Estimate","Margin of Error","Estimate","Margin of Error","Estimate","Margin of Error","Estimate","Margin of Error","Estimate","Margin of Error","Estimate","Margin of Error","Estimate","Margin of Error","Estimate","Margin of Error","Estimate","Margin of Error","Estimate","Margin of Error","Estimate","Margin of Error","Estimate","Margin of Error","Estimate","Margin of Error","Estimate","Margin of Error","Estimate","Margin of Error","Estimate","Margin of Error","Estimate","Margin of Error","Estimate","Margin of Error","Estimate","Margin of Error","Estimate","Margin of Error"]
[null,null,null,"Estimate!!Total:",1567,172,3436,73,1630,209,2209,360,812,136,927,174,3881,59,5157,101,21557,165,2037,334,761,165,528,103,1056,234,6183,121,257,112,1147,153,618,104,886,208,7071,107,1758,258,3324,112,1891,327,3755,135]
[null,null,null,"Estimate!!Total:!!Male:",758,116,1879,137,776,113,1170,214,419,80,419,76,2064,204,2617,209,10500,345,929,184,341,73,237,48,557,149,3018,206,99,40,563,96,307,63,371,70,3438,199,925,172,1616,159,824,155,1866,182]
[null,null,null,"Estimate!!Total:!!Male:!!5 to 17 years:",96,55,452,132,97,40,101,36,52,31,47,26,277,125,566,154,1379,180,129,64,37,23,17,12,82,37,470,153,4,6,104,62,18,12,34,16,425,130,149,79,312,115,51,27,311,122]
[null,null,null,"Estimate!!Total:!!Male:!!5 to 17 years:!!With a self-care difficulty",0,12,0,12,0,12,0,12,3,5,0,12,0,12,19,33,21,31,0,12,2,3,0,12,0,12,0,17,0,12,0,12,3,4,0,12,0,17,0,12,5,8,0,12,0,12]
[null,null,null,"Estimate!!Total:!!Male:!!5 to 17 years:!!No self-care difficulty",96,55,452,132,97,40,101,36,49,30,47,26,277,125,547,158,1358,177,129,64,35,23,17,12,82,37,470,153,4,6,104,62,15,11,34,16,425,130,149,79,307,115,51,27,311,122]
[null,null,null,"Estimate!!Total:!!Male:!!18 to 34 years:",147,61,366,146,136,55,226,92,119,56,38,20,294,122,408,190,3702,372,175,92,53,32,25,15,110,61,941,135,17,10,81,29,88,36,49,28,528,182,191,77,366,116,117,52,388,118]
[null,null,null,"Estimate!!Total:!!Male:!!18 to 34 years:!!With a self-care difficulty",0,12,0,12,0,12,6,9,0,12,0,12,0,12,0,17,10,15,0,12,0,12,0,12,3,6,0,17,1,3,0,12,15,19,0,12,0,17,0,12,8,14,0,12,0,12]
[null,null,null,"Estimate!!Total:!!Male:!!18 to 34 years:!!No self-care difficulty",147,61,366,146,136,55,220,92,119,56,38,20,294,122,408,190,3692,372,175,92,53,32,25,15,107,60,941,135,16,10,81,29,73,31,49,28,528,182,191,77,358,117,117,52,388,118]
[null,null,null,"Estimate!!Total:!!Male:!!35 to 64 years:",357,76,537,175,338,83,605,177,158,38,190,52,878,165,1310,200,3790,283,440,108,153,41,116,30,192,53,983,154,65,37,279,49,134,28,164,44,1568,216,419,95,571,100,395,97,910,152]
[null,null,null,"Estimate!!Total:!!Male:!!35 to 64 years:!!With a self-care difficulty",15,17,0,12,0,12,0,12,0,12,16,17,24,26,24,38,15,18,9,10,2,3,11,14,0,12,11,19,0,12,0,12,0,12,0,12,0,17,6,8,0,12,20,17,68,57]
[null,null,null,"Estimate!!Total:!!Male:!!35 to 64 years:!!No self-care difficulty",342,78,537,175,338,83,605,177,158,38,174,50,854,169,1286,192,3775,284,431,108,151,41,105,28,192,53,972,152,65,37,279,49,134,28,164,44,1568,216,413,94,571,100,375,95,842,142]
[null,null,null,"Estimate!!Total:!!Male:!!65 to 74 years:",106,42,367,125,153,64,195,55,76,29,91,28,433,236,159,87,899,135,83,37,75,38,59,21,145,100,428,106,10,6,68,17,40,17,80,34,533,186,121,49,271,74,156,50,193,70]
[null,null,null,"Estimate!!Total:!!Male:!!65 to 74 years:!!With a self-care difficulty",0,12,0,12,0,12,11,18,1,2,0,12,191,233,0,17,0,22,5,8,0,12,0,12,2,3,0,17,0,12,0,12,0,12,0,12,18,32,6,8,10,17,3,5,0,12]
[null,null,null,"Estimate!!Total:!!Male:!!65 to 74 years:!!No self-care difficulty",106,42,367,125,153,64,184,56,75,28,91,28,242,117,159,87,899,135,78,37,75,38,59,21,143,100,428,106,10,6,68,17,40,17,80,34,515,180,115,50,261,69,153,49,193,70]
[null,null,null,"Estimate!!Total:!!Male:!!75 years and over:",52,33,157,80,52,26,43,19,14,10,53,20,182,113,174,110,730,148,102,43,23,13,20,10,28,16,196,97,3,3,31,15,27,14,44,21,384,157,45,29,96,46,105,66,64,35]
[null,null,null,"Estimate!!Total:!!Male:!!75 years and over:!!With a self-care difficulty",0,12,0,12,2,3,5,8,0,12,0,12,0,12,33,55,65,48,1,4,2,4,2,3,10,13,0,17,0,12,3,4,5,8,0,12,51,46,0,12,0,12,7,8,8,11]
[null,null,null,"Estimate!!Total:!!Male:!!75 years and over:!!No self-care difficulty",52,33,157,80,50,26,38,18,14,10,53,20,182,113,141,98,665,147,101,43,21,12,18,10,18,12,196,97,3,3,28,14,22,13,44,21,333,129,45,29,96,46,98,66,56,37]
[null,null,null,"Estimate!!Total:!!Female:",809,96,1557,132,854,132,1039,177,393,74,508,108,1817,205,2540,218,11057,383,1108,189,420,108,291,67,499,117,3165,194,158,79,584,81,311,57,515,163,3633,206,833,124,1708,137,1067,207,1889,200]
[null,null,null,"Estimate!!Total:!!Female:!!5 to 17 years:",100,34,144,80,149,44,106,53,38,29,52,39,225,70,617,129,1041,198,198,77,116,56,46,30,58,27,443,150,5,5,89,33,30,15,95,63,602,142,113,46,287,98,180,81,289,127]
[null,null,null,"Estimate!!Total:!!Female:!!5 to 17 years:!!With a self-care difficulty",0,12,0,12,0,12,4,6,0,12,0,12,0,12,21,33,0,22,0,12,0,12,0,12,0,12,0,17,0,12,0,12,0,12,0,12,0,17,0,12,7,13,0,12,0,12]
[null,null,null,"Estimate!!Total:!!Female:!!5 to 17 years:!!No self-care difficulty",100,34,144,80,149,44,102,52,38,29,52,39,225,70,596,124,1041,198,198,77,116,56,46,30,58,27,443,150,5,5,89,33,30,15,95,63,602,142,113,46,280,95,180,81,289,127]
[null,null,null,"Estimate!!Total:!!Female:!!18 to 34 years:",117,55,323,125,63,26,151,78,95,35,89,40,306,147,307,170,3991,285,117,53,72,40,27,18,69,47,1002,156,67,57,102,41,74,37,122,78,424,133,205,65,318,144,119,67,492,192]
[null,null,null,"Estimate!!Total:!!Female:!!18 to 34 years:!!With a self-care difficulty",6,8,0,12,0,12,0,12,0,12,0,12,0,12,0,17,42,55,0,12,0,12,0,12,0,12,26,44,0,12,0,12,0,12,4,6,0,17,0,12,0,12,0,12,0,12]
[null,null,null,"Estimate!!Total:!!Female:!!18 to 34 years:!!No self-care difficulty",111,55,323,125,63,26,151,78,95,35,89,40,306,147,307,170,3949,290,117,53,72,40,27,18,69,47,976,149,67,57,102,41,74,37,118,78,424,133,205,65,318,144,119,67,492,192]
[null,null,null,"Estimate!!Total:!!Female:!!35 to 64 years:",329,67,729,167,404,97,484,84,170,44,220,61,843,127,1144,160,3688,301,586,139,132,39,140,38,226,60,1067,134,66,30,257,49,145,28,179,54,1648,206,352,89,699,118,430,101,753,132]
[null,null,null,"Estimate!!Total:!!Female:!!35 to 64 years:!!With a self-care difficulty",5,6,0,12,0,12,10,11,0,12,0,12,24,30,67,77,88,75,41,41,5,6,0,12,4,6,29,45,0,12,0,12,5,7,0,12,86,88,4,7,12,19,0,12,9,13]
[null,null,null,"Estimate!!Total:!!Female:!!35 to 64 years:!!No self-care difficulty",324,67,729,167,404,97,474,83,170,44,220,61,819,122,1077,157,3600,292,545,127,127,38,140,38,222,61,1038,141,66,30,257,49,140,28,179,54,1562,224,348,88,687,119,430,101,744,130]
[null,null,null,"Estimate!!Total:!!Female:!!65 to 74 years:",173,71,244,110,162,54,251,106,58,25,107,30,214,97,276,101,1300,181,120,51,67,38,48,17,69,30,431,102,13,5,86,25,40,14,72,25,587,143,101,32,182,50,215,110,204,79]
[null,null,null,"Estimate!!Total:!!Female:!!65 to 74 years:!!With a self-care difficulty",0,12,0,12,0,12,4,6,0,12,0,12,29,32,0,17,40,36,11,12,0,12,2,3,0,12,14,22,0,12,5,6,0,12,0,12,0,17,0,12,6,8,4,8,58,75]
[null,null,null,"Estimate!!Total:!!Female:!!65 to 74 years:!!No self-care difficulty",173,71,244,110,162,54,247,105,58,25,107,30,185,96,276,101,1260,173,109,48,67,38,46,17,69,30,417,106,13,5,81,25,40,14,72,25,587,143,101,32,176,50,211,109,146,61]
[null,null,null,"Estimate!!Total:!!Female:!!75 years and over:",90,47,117,76,76,51,47,27,32,14,40,22,229,155,196,97,1037,197,87,42,33,18,30,21,77,40,222,107,7,7,50,22,22,13,47,20,372,116,62,38,222,100,123,45,151,66]
[null,null,null,"Estimate!!Total:!!Female:!!75 years and over:!!With a self-care difficulty",5,7,19,30,5,5,12,16,0,12,0,12,0,12,49,63,36,37,0,12,3,4,2,6,0,12,45,60,4,6,10,10,4,5,3,4,34,35,0,12,0,12,17,19,13,17]
[null,null,null,"Estimate!!Total:!!Female:!!75 years and over:!!No self-care difficulty",85,46,98,69,71,50,35,20,32,14,40,22,229,155,147,84,1001,198,87,42,30,18,28,18,77,40,177,85,3,4,40,19,18,12,44,20,338,109,62,38,222,100,106,40,138,63]
[null,null,null,21,21]

{"sheet":"ACS_Table_B18105","index":48,"n_rows":153,"n_cols":48,"rows_kept":153,"cut":false,"hidden":true,"merged":[]}
["B18105. SEX BY AGE BY AMBULATORY DIFFICULTY\n\n"]
["Universe:  Civilian noninstitutionalized population 5 years and over"]
["Data Set: 2018-2022 American Community Survey 5-Year Estimates"]
[]
[null,null,"Alstead",null,"Chesterfield",null,"Dublin",null,"Fitzwilliam",null,"Gilsum",null,"Harrisville",null,"Hinsdale",null,"Jaffrey",null,"Keene",null,"Marlborough",null,"Marlow",null,"Nelson",null,"Richmond",null,"Rindge",null,"Roxbury",null,"Stoddard",null,"Sullivan",null,"Surry",null,"Swanzey",null,"Troy",null,"Walpole",null,"Westmoreland",null,"Winchester"]
[null," ","Estimate","Margin of Error","Estimate","Margin of Error","Estimate","Margin of Error","Estimate","Margin of Error","Estimate","Margin of Error","Estimate","Margin of Error","Estimate","Margin of Error","Estimate","Margin of Error","Estimate","Margin of Error","Estimate","Margin of Error","Estimate","Margin of Error","Estimate","Margin of Error","Estimate","Margin of Error","Estimate","Margin of Error","Estimate","Margin of Error","Estimate","Margin of Error","Estimate","Margin of Error","Estimate","Margin of Error","Estimate","Margin of Error","Estimate","Margin of Error","Estimate","Margin of Error","Estimate","Margin of Error","Estimate","Margin of Error"]
[null,"Total:",1567,172,3436,73,1630,209,2209,360,812,136,927,174,3881,59,5157,101,21557,165,2037,334,761,165,528,103,1056,234,6183,121,257,112,1147,153,618,104,886,208,7071,107,1758,258,3324,112,1891,327,3755,135]
[null,"Male:",758,116,1879,137,776,113,1170,214,419,80,419,76,2064,204,2617,209,10500,345,929,184,341,73,237,48,557,149,3018,206,99,40,563,96,307,63,371,70,3438,199,925,172,1616,159,824,155,1866,182]
[null,"5 to 17  years:",96,55,452,132,97,40,101,36,52,31,47,26,277,125,566,154,1379,180,129,64,37,23,17,12,82,37,470,153,4,6,104,62,18,12,34,16,425,130,149,79,312,115,51,27,311,122]
[null,"With ambulatory difficulty",0,12,0,12,0,12,0,12,3,5,0,12,0,12,19,33,21,31,0,12,2,3,0,12,0,12,0,17,0,12,0,12,3,4,0,12,0,17,0,12,5,8,0,12,0,12]
[null,"With no ambulatory difficulty",96,55,452,132,97,40,101,36,49,30,47,26,277,125,547,158,1358,177,129,64,35,23,17,12,82,37,470,153,4,6,104,62,15,11,34,16,425,130,149,79,307,115,51,27,311,122]
[null,"18 to 34  years:",147,61,366,146,136,55,226,92,119,56,38,20,294,122,408,190,3702,372,175,92,53,32,25,15,110,61,941,135,17,10,81,29,88,36,49,28,528,182,191,77,366,116,117,52,388,118]
[null,"With ambulatory difficulty",0,12,0,12,0,12,6,9,0,12,0,12,0,12,0,17,10,15,0,12,0,12,0,12,3,6,0,17,1,3,0,12,15,19,0,12,0,17,0,12,8,14,0,12,0,12]
[null,"With no ambulatory difficulty",147,61,366,146,136,55,220,92,119,56,38,20,294,122,408,190,3692,372,175,92,53,32,25,15,107,60,941,135,16,10,81,29,73,31,49,28,528,182,191,77,358,117,117,52,388,118]
[null,"35 to 64  years:",357,76,537,175,338,83,605,177,158,38,190,52,878,165,1310,200,3790,283,440,108,153,41,116,30,192,53,983,154,65,37,279,49,134,28,164,44,1568,216,419,95,571,100,395,97,910,152]
[null,"With ambulatory difficulty",15,17,0,12,0,12,0,12,0,12,16,17,24,26,24,38,15,18,9,10,2,3,11,14,0,12,11,19,0,12,0,12,0,12,0,12,0,17,6,8,0,12,20,17,68,57]
[null,"With no ambulatory difficulty",342,78,537,175,338,83,605,177,158,38,174,50,854,169,1286,192,3775,284,431,108,151,41,105,28,192,53,972,152,65,37,279,49,134,28,164,44,1568,216,413,94,571,100,375,95,842,142]
[null,"65 to 74  years:",106,42,367,125,153,64,195,55,76,29,91,28,433,236,159,87,899,135,83,37,75,38,59,21,145,100,428,106,10,6,68,17,40,17,80,34,533,186,121,49,271,74,156,50,193,70]
[null,"With ambulatory difficulty",0,12,0,12,0,12,11,18,1,2,0,12,191,233,0,17,0,22,5,8,0,12,0,12,2,3,0,17,0,12,0,12,0,12,0,12,18,32,6,8,10,17,3,5,0,12]
[null,"With no ambulatory difficulty",106,42,367,125,153,64,184,56,75,28,91,28,242,117,159,87,899,135,78,37,75,38,59,21,143,100,428,106,10,6,68,17,40,17,80,34,515,180,115,50,261,69,153,49,193,70]
[null,"75  years and Older:",52,33,157,80,52,26,43,19,14,10,53,20,182,113,174,110,730,148,102,43,23,13,20,10,28,16,196,97,3,3,31,15,27,14,44,21,384,157,45,29,96,46,105,66,64,35]
[null,"With ambulatory difficulty",0,12,0,12,2,3,5,8,0,12,0,12,0,12,33,55,65,48,1,4,2,4,2,3,10,13,0,17,0,12,3,4,5,8,0,12,51,46,0,12,0,12,7,8,8,11]
[null,"With no ambulatory difficulty",52,33,157,80,50,26,38,18,14,10,53,20,182,113,141,98,665,147,101,43,21,12,18,10,18,12,196,97,3,3,28,14,22,13,44,21,333,129,45,29,96,46,98,66,56,37]
[null,"Female:",809,96,1557,132,854,132,1039,177,393,74,508,108,1817,205,2540,218,11057,383,1108,189,420,108,291,67,499,117,3165,194,158,79,584,81,311,57,515,163,3633,206,833,124,1708,137,1067,207,1889,200]
[null,"5 to 17  years:",100,34,144,80,149,44,106,53,38,29,52,39,225,70,617,129,1041,198,198,77,116,56,46,30,58,27,443,150,5,5,89,33,30,15,95,63,602,142,113,46,287,98,180,81,289,127]
[null,"With ambulatory difficulty",0,12,0,12,0,12,4,6,0,12,0,12,0,12,21,33,0,22,0,12,0,12,0,12,0,12,0,17,0,12,0,12,0,12,0,12,0,17,0,12,7,13,0,12,0,12]
[null,"With no ambulatory difficulty",100,34,144,80,149,44,102,52,38,29,52,39,225,70,596,124,1041,198,198,77,116,56,46,30,58,27,443,150,5,5,89,33,30,15,95,63,602,142,113,46,280,95,180,81,289,127]
[null,"18 to 34  years:",117,55,323,125,63,26,151,78,95,35,89,40,306,147,307,170,3991,285,117,53,72,40,27,18,69,47,1002,156,67,57,102,41,74,37,122,78,424,133,205,65,318,144,119,67,492,192]
[null,"With ambulatory difficulty",6,8,0,12,0,12,0,12,0,12,0,12,0,12,0,17,42,55,0,12,0,12,0,12,0,12,26,44,0,12,0,12,0,12,4,6,0,17,0,12,0,12,0,12,0,12]
[null,"With no ambulatory difficulty",111,55,323,125,63,26,151,78,95,35,89,40,306,147,307,170,3949,290,117,53,72,40,27,18,69,47,976,149,67,57,102,41,74,37,118,78,424,133,205,65,318,144,119,67,492,192]
[null,"35 to 64  years:",329,67,729,167,404,97,484,84,170,44,220,61,843,127,1144,160,3688,301,586,139,132,39,140,38,226,60,1067,134,66,30,257,49,145,28,179,54,1648,206,352,89,699,118,430,101,753,132]
[null,"With ambulatory difficulty",5,6,0,12,0,12,10,11,0,12,0,12,24,30,67,77,88,75,41,41,5,6,0,12,4,6,29,45,0,12,0,12,5,7,0,12,86,88,4,7,12,19,0,12,9,13]
[null,"With no ambulatory difficulty",324,67,729,167,404,97,474,83,170,44,220,61,819,122,1077,157,3600,292,545,127,127,38,140,38,222,61,1038,141,66,30,257,49,140,28,179,54,1562,224,348,88,687,119,430,101,744,130]
[null,"65 to 74  years:",173,71,244,110,162,54,251,106,58,25,107,30,214,97,276,101,1300,181,120,51,67,38,48,17,69,30,431,102,13,5,86,25,40,14,72,25,587,143,101,32,182,50,215,110,204,79]
[null,"With ambulatory difficulty",0,12,0,12,0,12,4,6,0,12,0,12,29,32,0,17,40,36,11,12,0,12,2,3,0,12,14,22,0,12,5,6,0,12,0,12,0,17,0,12,6,8,4,8,58,75]
[null,"With no ambulatory difficulty",173,71,244,110,162,54,247,105,58,25,107,30,185,96,276,101,1260,173,109,48,67,38,46,17,69,30,417,106,13,5,81,25,40,14,72,25,587,143,101,32,176,50,211,109,146,61]
[null,"75  years and Older:",90,47,117,76,76,51,47,27,32,14,40,22,229,155,196,97,1037,197,87,42,33,18,30,21,77,40,222,107,7,7,50,22,22,13,47,20,372,116,62,38,222,100,123,45,151,66]
[null,"With ambulatory difficulty",5,7,19,30,5,5,12,16,0,12,0,12,0,12,49,63,36,37,0,12,3,4,2,6,0,12,45,60,4,6,10,10,4,5,3,4,34,35,0,12,0,12,17,19,13,17]
[null,"With no ambulatory difficulty",85,46,98,69,71,50,35,20,32,14,40,22,229,155,147,84,1001,198,87,42,30,18,28,18,77,40,177,85,3,4,40,19,18,12,44,20,338,109,62,38,222,100,106,40,138,63]
[null,null,21]
[]
[{"$f":"A1& \"-Calculated\"","v":"B18105. SEX BY AGE BY AMBULATORY DIFFICULTY\n\n-Calculated"}]
[{"$f":"A2","v":"Universe:  Civilian noninstitutionalized population 5 years and over"}]
[{"$f":"A3","v":"Data Set: 2018-2022 American Community Survey 5-Year Estimates"}]
[]
[]
[null,null,"Alstead",null,"Chesterfield",null,"Dublin",null,"Fitzwilliam",null,"Gilsum",null,"Harrisville",null,"Hinsdale",null,"Jaffrey",null,"Keene",null,"Marlborough",null,"Marlow",null,"Nelson",null,"Richmond",null,"Rindge",null,"Roxbury",null,"Stoddard",null,"Sullivan",null,"Surry",null,"Swanzey",null,"Troy",null,"Walpole",null,"Westmoreland",null,"Winchester"]
[null," ","Estimate","Margin of Error","Estimate","Margin of Error","Estimate","Margin of Error","Estimate","Margin of Error","Estimate","Margin of Error","Estimate","Margin of Error","Estimate","Margin of Error","Estimate","Margin of Error","Estimate","Margin of Error","Estimate","Margin of Error","Estimate","Margin of Error","Estimate","Margin of Error","Estimate","Margin of Error","Estimate","Margin of Error","Estimate","Margin of Error","Estimate","Margin of Error","Estimate","Margin of Error","Estimate","Margin of Error","Estimate","Margin of Error","Estimate","Margin of Error","Estimate","Margin of Error","Estimate","Margin of Error","Estimate","Margin of Error"]
[null,"Total:",{"$f":"C7","v":1567},172,3436,73,1630,209,2209,360,812,136,927,174,3881,59,5157,101,21557,165,2037,334,761,165,{"$f":"Y7","v":528},103,1056,234,6183,121,257,112,1147,153,618,104,886,208,7071,107,1758,258,3324,112,1891,327,3755,135]
[null,"5 to 17  years:",{"$f":"C25+C9","v":196},{"$f":"SQRT((D25^2)+(D9^2))","v":64.660652641308843},{"$f":"E25+E9","v":596},{"$f":"SQRT((F25^2)+(F9^2))","v":154.35025105259791},{"$f":"G25+G9","v":246},{"$f":"SQRT((H25^2)+(H9^2))","v":59.464274989274024},{"$f":"I25+I9","v":207},{"$f":"SQRT((J25^2)+(J9^2))","v":64.070273918565391},{"$f":"K25+K9","v":90},{"$f":"SQRT((L25^2)+(L9^2))","v":42.449970553582247},{"$f":"M25+M9","v":99},{"$f":"SQRT((N25^2)+(N9^2))","v":46.872166581031863},{"$f":"O25+O9","v":502},{"$f":"SQRT((P25^2)+(P9^2))","v":143.26548781894402},{"$f":"Q25+Q9","v":1183},{"$f":"SQRT((R25^2)+(R9^2))","v":200.89051744669283},{"$f":"S25+S9","v":2420},{"$f":"SQRT((T25^2)+(T9^2))","v":267.58923745173308},{"$f":"U25+U9","v":327},{"$f":"SQRT((V25^2)+(V9^2))","v":100.12492197250393},{"$f":"W25+W9","v":153},{"$f":"SQRT((X25^2)+(X9^2))","v":60.539243470661241},{"$f":"Y25+Y9","v":63},{"$f":"SQRT((Z25^2)+(Z9^2))","v":32.310988842807021},{"$f":"AA25+AA9","v":140},{"$f":"SQRT((AB25^2)+(AB9^2))","v":45.803929962395145},{"$f":"AC25+AC9","v":913},{"$f":"SQRT((AD25^2)+(AD9^2))","v":214.26385602802915},{"$f":"AE25+AE9","v":9},{"$f":"SQRT((AF25^2)+(AF9^2))","v":7.810249675906654},{"$f":"AG25+AG9","v":193},{"$f":"SQRT((AH25^2)+(AH9^2))","v":70.235318750611498},{"$f":"AI25+AI9","v":48},{"$f":"SQRT((AJ25^2)+(AJ9^2))","v":19.209372712298546},{"$f":"AK25+AK9","v":129},{"$f":"SQRT((AL25^2)+(AL9^2))","v":65},{"$f":"AM25+AM9","v":1027},{"$f":"SQRT((AN25^2)+(AN9^2))","v":192.52012881774206},{"$f":"AO25+AO9","v":262},91.4166286842826,{"$f":"AQ25+AQ9","v":599},151.09268678529745,{"$f":"AS25+AS9","v":231},85.381496824546247,{"$f":"AU25+AU9","v":600},176.10508226624239]
[null,"With ambulatory difficulty",0,16.970562748477139,0,16.970562748477139,0,16.970562748477139,4,13.416407864998739,3,13,0,16.970562748477139,0,16.970562748477139,40,46.669047558312137,21,38.013155617496423,0,16.970562748477139,2,12.369316876852981,0,16.970562748477139,0,16.970562748477139,0,24.041630560342615,0,16.970562748477139,0,16.970562748477139,3,12.649110640673518,0,16.970562748477139,0,24.041630560342615,0,16.970562748477139,12,15.264337522473747,0,16.970562748477139,0,16.970562748477139]
[null,"With no ambulatory difficulty",196,64.660652641308843,596,154.35025105259791,246,59.464274989274024,203,63.245553203367585,87,41.725292090050132,99,46.872166581031863,502,143.26548781894402,1143,200.84820138602188,2399,265.58049627184596,327,100.12492197250393,151,60.539243470661241,63,32.310988842807021,140,45.803929962395145,913,214.26385602802915,9,7.810249675906654,193,70.235318750611498,45,18.601075237738275,129,65,1027,192.52012881774206,262,91.4166286842826,587,149.16433890176299,231,85.381496824546247,600,176.10508226624239]
[null,"18 to 34  years:",264,82.134036793524274,689,192.20041623263984,199,60.835844697020519,377,120.61509026651682,214,66.037867924396224,127,44.721359549995796,600,191.03141102970474,715,254.95097567963924,7693,468.62458322200723,292,106.17438485811914,125,51.224993899462788,52,23.430749027719962,179,77.006493232713822,1943,206.30317496345035,84,57.870545184921149,183,50.219518117958877,162,51.623637996561229,171,82.87339742040264,952,225.41739063346466,396,100.7670581092849,684,184.91078930121952,236,84.811555816409836,880,225.36193112413639]
[null,"With ambulatory difficulty",6,14.422205101855956,0,16.970562748477139,0,16.970562748477139,6,15,0,16.970562748477139,0,16.970562748477139,0,16.970562748477139,0,24.041630560342615,52,57.008771254956898,0,16.970562748477139,0,16.970562748477139,0,16.970562748477139,3,13.416407864998739,26,47.169905660283021,1,12.369316876852981,0,16.970562748477139,15,22.472205054244231,4,13.416407864998739,0,24.041630560342615,0,16.970562748477139,8,18.439088914585774,0,16.970562748477139,0,16.970562748477139]
[null,"With no ambulatory difficulty",258,82.134036793524274,689,192.20041623263984,199,60.835844697020519,371,120.61509026651682,214,66.037867924396224,127,44.721359549995796,600,191.03141102970474,715,254.95097567963924,7641,471.68209633184085,292,106.17438485811914,125,51.224993899462788,52,23.430749027719962,176,76.216796049164913,1917,201.06217943710845,83,57.870545184921149,183,50.219518117958877,147,48.270073544588683,167,82.87339742040264,952,225.41739063346466,396,100.7670581092849,676,185.53975315279473,236,84.811555816409836,880,225.36193112413639]
[null,"35 to 64  years:",686,101.31633629380802,1266,241.89667215569543,742,127.66362050325849,1089,195.92090240706835,328,58.137767414994535,410,80.156097709406993,1721,208.21623375712088,2454,256.12496949731394,7478,413.14646313383827,1026,176.02556632489498,285,56.586217403180434,256,48.414873747640819,418,80.05623023850174,2050,204.13720875920686,131,47.634021455258214,536,69.296464556281663,279,39.597979746446661,343,69.656299069071991,3216,298.48283032697208,771,130.17680284904833,1270,154.67385040788247,825,140.03570973148243,1663,201.31567251458591]
[null,"With ambulatory difficulty",20,18.027756377319946,0,16.970562748477139,0,16.970562748477139,10,16.278820596099706,0,16.970562748477139,16,20.808652046684813,48,39.698866482558415,91,85.866174946832231,103,77.129760793094647,50,42.201895692018383,7,6.7082039324993694,11,18.439088914585774,4,13.416407864998739,40,48.846698967279252,0,16.970562748477139,0,16.970562748477139,5,13.892443989449804,0,16.970562748477139,86,89.627004859026727,10,10.63014581273465,12,22.472205054244231,20,20.808652046684813,77,58.463663928973865]
[null,"With no ambulatory difficulty",666,102.82509421342633,1266,241.89667215569543,742,127.66362050325849,1079,195.49424543960367,328,58.137767414994535,394,78.87331614684399,1673,208.43464203437969,2363,248.01814449753471,7375,407.33278777923096,976,166.71232707871366,278,55.901699437494742,245,47.201694884823787,414,80.808415403347695,2010,207.32824216685964,131,47.634021455258214,536,69.296464556281663,274,39.597979746446661,343,69.656299069071991,3130,311.17840542042757,761,128.76334882255898,1258,155.43809056984713,805,138.65785228395831,1586,192.52012881774206]
[null,"65 to 74  years:",279,82.492423894561369,611,166.50825805346713,315,83.737685661833282,446,119.41942890501528,134,38.288379438153292,198,41.036569057366385,647,255.15681452785068,435,133.30416347586447,2199,225.80079716422614,203,63.007936008093459,142,53.740115370177612,107,27.018512172212592,214,104.4030650891055,859,147.10540438746634,23,7.810249675906654,154,30.232432915661949,80,22.022715545545239,152,42.201895692018383,1120,234.61670869739862,222,58.523499553598128,453,89.308454247064432,371,120.83045973594572,397,105.55093557141026]
[null,"With ambulatory difficulty",0,16.970562748477139,0,16.970562748477139,0,16.970562748477139,15,18.973665961010276,1,12.165525060596439,0,16.970562748477139,220,235.18715951343941,0,24.041630560342615,40,42.190046219457976,16,14.422205101855956,0,16.970562748477139,2,12.369316876852981,2,12.369316876852981,14,27.802877548915689,0,16.970562748477139,5,13.416407864998739,0,16.970562748477139,0,16.970562748477139,18,36.235341863986875,6,14.422205101855956,16,18.788294228055936,7,9.4339811320566032,58,75.953933407032977]
[null,"With no ambulatory difficulty",279,82.492423894561369,611,166.50825805346713,315,83.737685661833282,431,119,133,37.536648758246919,198,41.036569057366385,427,151.34397906755325,435,133.30416347586447,2159,219.44019686465833,187,60.605280298007038,142,53.740115370177612,105,27.018512172212592,212,104.4030650891055,845,149.90663761154806,23,7.810249675906654,149,30.232432915661949,80,22.022715545545239,152,42.201895692018383,1102,229.88910370002316,216,59.363288318623319,437,85.211501571090736,364,119.50732195141852,339,92.849340331528467]
[null,"75  years and Older:",142,57.428216061444921,274,110.34491379306978,128,57.245087125446844,90,33.015148038438355,46,17.204650534085253,93,29.732137494637012,411,191.81762171396036,370,146.65946952038249,1767,246.40008116881779,189,60.108235708594876,56,22.203603311174518,50,23.259406699226016,105,43.08131845707603,418,144.42298985964803,10,7.6157731058639087,81,26.627053911388696,49,19.104973174542799,91,29,756,195.20502042724209,107,47.801673610868477,318,110.07270324653611,228,79.881161734166085,215,74.706090782479038]
[null,"With ambulatory difficulty",5,13.892443989449804,19,32.310988842807021,7,5.8309518948453007,17,17.888543819998318,0,16.970562748477139,0,16.970562748477139,0,16.970562748477139,82,83.630138108220294,101,60.605280298007038,1,12.649110640673518,5,5.6568542494923806,4,6.7082039324993694,10,17.691806012954132,45,62.361847310675458,4,13.416407864998739,13,10.770329614269007,9,9.4339811320566032,3,12.649110640673518,85,57.801384066473702,0,16.970562748477139,0,16.970562748477139,24,20.615528128088304,21,20.248456731316587]
[null,"With no ambulatory difficulty",137,56.612719418872643,255,105.64563407921787,121,56.356011214421486,73,26.90724809414742,46,17.204650534085253,93,29.732137494637012,411,191.81762171396036,288,129.07362240210043,1666,246.60291969074495,188,60.108235708594876,51,21.633307652783937,46,20.591260281974002,95,41.761226035642203,373,128.97286536322281,6,5,68,23.600847442411894,40,17.691806012954132,88,29,671,168.88457596832222,107,47.801673610868477,318,110.07270324653611,204,77.175125526298956,194,73.061617830431317]
[]
[]
[]
[]
[]
[]
[]
[]
[]
[]
[]
[]
[]
[]
[]
[]
[]
[]
[]
[]
[]
[]
[]
[]
[]
[]
[]
[]
[]
[]
[]
[]
[]
[]
[]
["B18105. SEX BY AGE BY AMBULATORY DIFFICULTY\n\n-Calculated"]
["Universe:  Civilian noninstitutionalized population 5 years and over"]
["Data Set: 2013-2017 American Community Survey 5-Year Estimates"]
[]
[]
[null,null,"Alstead",null,"Chesterfield",null,"Dublin",null,"Fitzwilliam",null,"Gilsum",null,"Harrisville",null,"Hinsdale",null,"Jaffrey",null,"Keene",null,"Marlborough",null,"Marlow",null,"Nelson",null,"Richmond",null,"Rindge",null,"Roxbury",null,"Stoddard",null,"Sullivan",null,"Surry",null,"Swanzey",null,"Troy",null,"Walpole",null,"Westmoreland",null,"Winchester"]
[null," ","Estimate","Margin of Error","Estimate","Margin of Error","Estimate","Margin of Error","Estimate","Margin of Error","Estimate","Margin of Error","Estimate","Margin of Error","Estimate","Margin of Error","Estimate","Margin of Error","Estimate","Margin of Error","Estimate","Margin of Error","Estimate","Margin of Error","Estimate","Margin of Error","Estimate","Margin of Error","Estimate","Margin of Error","Estimate","Margin of Error","Estimate","Margin of Error","Estimate","Margin of Error","Estimate","Margin of Error","Estimate","Margin of Error","Estimate","Margin of Error","Estimate","Margin of Error","Estimate","Margin of Error","Estimate","Margin of Error"]
[null,"Total:",1765,222,3189,160,1445,166,2198,197,686,77,898,140,3786,106,21825,258,22135,296,2033,292,663,102,537,86,1170,160,5597,126,199,55,1140,166,643,93,842,118,6761,152,2075,277,3695,85,1651,206,3889,159]
[null,"5 to 17  years:",234,89.050547443572739,467,154.76756766196203,234,62.433965115151864,278,75.166481891864535,100,25,81,30.528675044947494,617,137.2953021774598,2821,288.84597971929605,2791,291,266,90.686272390037075,101,31.906112267087632,62,22.671568097509269,161,52.201532544552748,849,190.31815467789718,19,12.083045973594572,158,51.088159097779204,92,42.544094772365298,124,42.544094772365298,894,221.29844102478444,2191,106.10372283760829,579,141.79210133149166,243,65.36818798161687,637,146.21901381147393]
[null,"With ambulatory difficulty",0,15.556349186104045,0,15.556349186104045,3,12.083045973594572,0,15.556349186104045,0,15.556349186104045,0,15.556349186104045,0,15.556349186104045,0,29.698484809834994,0,28.284271247461902,0,15.556349186104045,0,15.556349186104045,0,15.556349186104045,5,13.601470508735444,0,22.627416997969522,0,15.556349186104045,0,15.556349186104045,0,15.556349186104045,0,15.556349186104045,0,22.627416997969522,0,15.556349186104045,0,15.556349186104045,0,15.556349186104045,0,15.556349186104045]
[null,"With no ambulatory difficulty",234,89.050547443572739,467,154.76756766196203,231,62.433965115151864,278,75.166481891864535,100,25,81,30.528675044947494,617,137.2953021774598,2821,288.84597971929605,2791,291,266,90.686272390037075,101,31.906112267087632,62,22.671568097509269,156,48.270073544588683,849,190.31815467789718,19,12.083045973594572,158,51.088159097779204,92,42.544094772365298,124,42.544094772365298,894,221.29844102478444,363,106.10372283760829,579,141.79210133149166,243,65.36818798161687,637,146.21901381147393]
[null,"18 to 34  years:",369,111.01801655587259,432,135.79396157414365,256,67.007462271003817,409,96.426137535421375,121,29,91,31.240998703626616,587,140.01428498549711,7744,445.31000437897194,8156,446.97762807549998,413,116.1077086157504,104,31.89043743820395,128,41.231056256176608,280,73.006848993775918,1973,237.26145915424192,50,17.691806012954132,208,55.605755097831377,129,39.66106403010388,126,37.483329627982627,1572,281.58480072617556,430,145.34441853748632,704,146.64924138910504,298,75.663729752107784,933,159.13830462839547]
[null,"With ambulatory difficulty",0,15.556349186104045,0,15.556349186104045,11,20.248456731316587,0,15.556349186104045,2,11.401754250991379,0,15.556349186104045,15,26.40075756488817,123,113.1591799192624,120,106.21205204683694,0,15.556349186104045,0,15.556349186104045,2,11.401754250991379,5,13.601470508735444,5,18.867962264113206,0,15.556349186104045,6,13.601470508735444,7,12.083045973594572,1,11.704699910719626,0,22.627416997969522,17,30.083217912982647,0,15.556349186104045,0,15.556349186104045,10,18.601075237738275]
[null,"With no ambulatory difficulty",369,111.01801655587259,432,135.79396157414365,245,65.80273550544841,409,96.426137535421375,119,28.284271247461902,91,31.240998703626616,572,140.01428498549711,7621,424.32299018554249,8036,450.34431272083361,413,116.1077086157504,104,31.89043743820395,126,40.607881008493905,275,73.006848993775918,1968,238.00840321299583,50,17.691806012954132,202,54.817880294662984,122,39.11521443121589,125,36.76955262170047,1572,281.58480072617556,413,140.00357138301865,704,146.64924138910504,298,75.663729752107784,923,156.40012787718558]
[null,"35 to 64  years:",801,101.11874208078342,1501,172.00290695217916,678,81.394102980498531,1011,126.62148316932637,349,45.967379738244816,441,63.655321851358195,1833,171.26587517658035,7687,334.67745666536911,7637,355.06900737743922,934,128.76334882255898,337,47.423622805517503,238,40.459856648287818,550,71.217975259059429,1949,153.52198539622916,99,25.80697580112788,510,82.800966177937809,296,40.311288741492746,409,52.801515129776341,3053,248.01814449753471,985,129.07362240210043,1685,150.86417732516887,800,86.278618440491968,1639,181.79383927955314]
[null,"With ambulatory difficulty",41,19.849433241279208,101,88.600225733346747,11,19.416487838947599,94,48.020828814171878,17,9.8994949366116654,19,17.888543819998318,95,47.853944456021594,340,127.4401820463232,308,115.97413504743201,56,31.32091952673165,24,14.422205101855956,14,9.4339811320566032,4,12.529964086141668,161,73.593477971896391,7,13.038404810405298,24,14.422205101855956,15,12.649110640673518,4,12.083045973594572,293,132.23085872821065,65,41.677331968349414,80,53.665631459994955,22,15.620499351813308,71,59.203040462462738]
[null,"With no ambulatory difficulty",760,96.896852374058057,1400,185.20529150107996,667,78.746428490440124,917,123.04470732217619,332,45.254833995939045,422,63.702433234531945,1738,169.01183390520322,7347,346.666987179339,7329,363.49690507623308,878,123.98790263570072,313,46.75467891024384,224,39.698866482558415,546,70,1788,170.66048165876012,92,25,486,79.630396206473819,281,41.725292090050132,405,52.009614495783374,2760,246.27220712049501,920,125.49501982150527,1605,156.64609794054877,778,84.852813742385706,1568,189.02116283633427]
[null,"65 to 74  years:",247,55.172456896534889,508,128.70120434556935,180,38.600518131237564,360,80.802227692063042,75,17.691806012954132,198,38.948684188300895,509,98.081598681913832,1908,174.77127910500627,1987,190.53608582103286,246,65.115282384398824,57,18.439088914585774,63,20.248456731316587,106,27.658633371878661,512,97.590983190046813,23,9.4339811320566032,150,38.897300677553446,80,24.041630560342615,123,30.232432915661949,614,129.52991932368366,184,51.855568649856693,364,98.270036124955197,213,54.488530903301111,435,88.600225733346747]
[null,"With ambulatory difficulty",46,22.803508501982758,113,78.600254452514335,20,13.892443989449804,67,42.379240200834182,6,5,3,12.083045973594572,101,54.083269131959838,282,100.20977996183805,350,111.51681487560519,27,27.202941017470888,12,7.6157731058639087,7,5.8309518948453007,8,7.0710678118654755,60,37.536648758246919,3,11.704699910719626,20,16.552945357246848,12,13,23,14.866068747318506,75,50.328918128646478,29,18.384776310850235,90,68.8839603971781,7,13.601470508735444,75,46.141087980237309]
[null,"With no ambulatory difficulty",201,54.561891462814962,395,113.86395390991831,160,37.013511046643494,293,67.208630398186216,69,17.691806012954132,195,38.948684188300895,408,82.879430499973878,1626,170.66048165876012,1637,178.91059219621403,219,57.314919523628397,45,15.811388300841896,56,18.601075237738275,98,26.172504656604801,452,99.085821387320593,20,8.6023252670426267,130,35.468295701936398,68,20,100,25.553864678361276,539,128.47178678604885,155,51.739733281106119,274,85,206,53.814496188294839,360,85.445889310135925]
[null,"75  years and Older:",114,45.793012567421243,281,121.75385004179539,97,31.11269837220809,140,48.104053883222775,41,15.811388300841896,87,55.108982933819419,240,90.210864090751286,1665,226.25870149013053,1564,202.94334184693028,174,56.727418414731339,64,19.849433241279208,46,16.401219466856727,73,27.658633371878661,314,95.268042910516428,8,11.180339887498949,114,38.209946349085598,46,16.970562748477139,60,18.357559750685819,628,147.75655653811103,113,52.497618993626752,363,95.524865872714003,97,32.802438933713454,245,76.478755219995577]
[null,"With ambulatory difficulty",31,30.083217912982647,16,26.40075756488817,14,14.866068747318506,38,24.596747752497688,7,8.0622577482985491,12,8.9442719099991592,81,60.415229867972862,539,168.88457596832222,490,156.70673246545599,14,12.206555615733702,10,8.0622577482985491,3,12.083045973594572,8,7.2111025509279782,125,68.410525505948286,3,4.2426406871192848,22,15.811388300841896,15,7.810249675906654,13,8.6023252670426267,186,93.085981758801893,19,26.40075756488817,88,53.310411741047361,27,17.804493814764857,105,57.870545184921149]
[null,"With no ambulatory difficulty",83,40,265,122.42957159118053,83,31.11269837220809,102,39.66106403010388,34,12.806248474865697,75,54.74486277268398,159,73.246160308919954,1126,201.20636172845033,1074,168.3864602632884,160,55.317266743757322,54,18.439088914585774,43,16.401219466856727,65,27.018512172212592,189,76.419892698171196,5,8.5440037453175304,92,34.655446902326915,31,14.866068747318506,47,18.357559750685819,442,114.62983904725679,94,48.083261120685229,275,84.958813551037778,70,26.627053911388696,140,59.908263203000637]
[]
[]
[]
[]
[]
[]
[]
[]
["B18105. SEX BY AGE BY AMBULATORY DIFFICULTY\n\n-Calculated"]
["Universe:  Civilian noninstitutionalized population 5 years and over"]
["Data Set: 2008-2012 American Community Survey 5-Year Estimates"]
[]
[]
[null,null,"Alstead",null,"Chesterfield",null,"Dublin",null,"Fitzwilliam",null,"Gilsum",null,"Harrisville",null,"Hinsdale",null,"Jaffrey",null,"Keene",null,"Marlborough",null,"Marlow",null,"Nelson",null,"Richmond",null,"Rindge",null,"Roxbury",null,"Stoddard",null,"Sullivan",null,"Surry",null,"Swanzey",null,"Troy",null,"Walpole",null,"Westmoreland",null,"Winchester"]
[null," ","Estimate","Margin of Error","Estimate","Margin of Error","Estimate","Margin of Error","Estimate","Margin of Error","Estimate","Margin of Error","Estimate","Margin of Error","Estimate","Margin of Error","Estimate","Margin of Error","Estimate","Margin of Error","Estimate","Margin of Error","Estimate","Margin of Error","Estimate","Margin of Error","Estimate","Margin of Error","Estimate","Margin of Error","Estimate","Margin of Error","Estimate","Margin of Error","Estimate","Margin of Error","Estimate","Margin of Error","Estimate","Margin of Error","Estimate","Margin of Error","Estimate","Margin of Error","Estimate","Margin of Error","Estimate","Margin of Error"]
[null,"Total:",1780,162,3411,97,1672,208,2428,243,524,71,874,128,3771,115,5122,164,22300,238,1891,249,855,177,723,155,944,133,5606,116,212,36,951,160,664,105,797,109,6907,134,1996,272,3471,118,1829,213,3921,135]
[null,"5 to 17  years:",358,89.202017914394744,470,138.2931668593933,361,98.716766559688324,349,90.603531939985658,36,16.970562748477139,113,44.944410108488462,509,123.76186811776881,1030,206.92993983471797,2967,302.12083675244912,294,105.99056561788883,151,50.990195135927848,105,41.109609582188931,174,68.8839603971781,897,144.30869689661813,40,15.652475842498529,133,52.201532544552748,130,48.548944375753422,91,31.89043743820395,1194,194.74342094150447,360,94.047860156411858,658,130.91982279242512,350,89.044932477934978,588,138.70832707519762]
[null,"With ambulatory difficulty",5,12.529964086141668,0,15.556349186104045,0,15.556349186104045,0,15.556349186104045,0,15.556349186104045,0,15.556349186104045,0,15.556349186104045,0,22.627416997969522,0,29.698484809834994,0,15.556349186104045,0,15.556349186104045,0,15.556349186104045,0,15.556349186104045,0,22.627416997969522,0,15.556349186104045,9,17.029386365926403,0,15.556349186104045,0,15.556349186104045,0,22.627416997969522,0,15.556349186104045,11,21.95449840010015,0,15.556349186104045,0,15.556349186104045]
[null,"With no ambulatory difficulty",353,89.202017914394744,470,138.2931668593933,361,98.716766559688324,349,90.603531939985658,36,16.970562748477139,113,44.944410108488462,509,123.76186811776881,1030,206.92993983471797,2967,302.12083675244912,294,105.99056561788883,151,50.990195135927848,105,41.109609582188931,174,68.8839603971781,897,144.30869689661813,40,15.652475842498529,124,50.47771785649585,130,48.548944375753422,91,31.89043743820395,1194,194.74342094150447,360,94.047860156411858,647,126.82665335015349,350,89.044932477934978,588,138.70832707519762]
[null,"18 to 34  years:",301,70.724818840347695,584,200.5617112013158,212,73.348483283568996,399,104.95713410721541,100,33.421549934136806,96,31.240998703626616,761,155.20631430454111,754,179.96110690924303,7934,476.76514134319848,307,98.290386101591849,110,47.413078364518789,108,44.407206622349037,164,44.654227123532216,2383,260.59930928534709,31,12.529964086141668,105,37.643060449437421,142,44.407206622349037,135,36.61966684720111,1376,220.86421167767313,520,105.38026380684383,671,129.5569372901351,300,75.690157880665041,704,148.52945835759317]
[null,"With ambulatory difficulty",19,22.825424421026653,0,15.556349186104045,0,15.556349186104045,0,15.556349186104045,0,15.556349186104045,0,15.556349186104045,60,45.793012567421243,0,22.627416997969522,108,85.615419172015976,0,15.556349186104045,0,15.556349186104045,0,15.556349186104045,9,14.866068747318506,3,16.763054614240211,0,15.556349186104045,0,15.556349186104045,0,15.556349186104045,0,15.556349186104045,0,22.627416997969522,0,15.556349186104045,33,33.120990323358392,5,13.038404810405298,0,15.556349186104045]
[null,"With no ambulatory difficulty",282,68.01470429252781,584,200.5617112013158,212,73.348483283568996,399,104.95713410721541,100,33.421549934136806,96,31.240998703626616,701,152.20052562327109,754,179.96110690924303,7826,480.52055106935853,307,98.290386101591849,110,47.413078364518789,108,44.407206622349037,155,43.56604182158393,2380,259.11387458027019,31,12.529964086141668,105,37.643060449437421,142,44.407206622349037,135,36.61966684720111,1376,220.86421167767313,520,105.38026380684383,638,123.90722335683259,295,74.966659255965254,704,148.52945835759317]
[null,"35 to 64  years:",852,86.556340033529608,1690,164.14932226482082,806,107.41508273980894,1319,123.3288287465668,293,40.80441152620633,520,70,1732,185.45619428857049,2558,156.63013758533191,8056,310.64449134018133,969,115.88356225108029,437,81.344944526380985,385,67.475921631349351,504,70.802542327235685,1798,165.55663683464942,99,22.203603311174518,544,85.428332536694171,311,41.725292090050132,425,57.982756057296896,3264,221.33458834985552,856,114.97825881443848,1614,140.73023839957068,921,102.53292154230269,2106,235.84952830141509]
[null,"With ambulatory difficulty",96,43.600458713183279,85,73.389372527635089,63,62.297672508690084,59,40.718546143004666,7,13.038404810405298,24,19.416487838947599,157,81.859635963031252,105,55.865910893853687,425,111.21151019566275,37,23.853720883753127,44,25.80697580112788,6,12.529964086141668,12,12.083045973594572,149,65.069193939989759,6,5.6568542494923806,36,28.442925306655784,21,12.727922061357855,7,12.529964086141668,186,95.524865872714003,102,47.423622805517503,98,53.851648071345039,7,13.038404810405298,77,48.270073544588683]
[null,"With no ambulatory difficulty",756,79.246451024635803,1605,165.55663683464942,743,86.313382508160345,1260,123.79418403139947,286,40.80441152620633,496,69.634761434214738,1575,183.85320231097418,2453,166.97305171793442,7631,316.42534664593478,932,116.51609330903607,393,74.411020689142546,379,67.475921631349351,492,70.604532432415411,1649,170.83617883809038,93,21.633307652783937,508,80.05623023850174,290,38.897300677553446,418,57.982756057296896,3078,224.93110056192762,754,108.85311203635843,1516,138.60014430006919,914,101.83319694480774,2029,238.8493248891443]
[null,"65 to 74  years:",158,45.967379738244816,402,145.04137340772803,194,66.211781428987393,263,75.432088662584434,65,22.022715545545239,66,24.041630560342615,416,95.524865872714003,414,112.43220179290273,1482,165.61400906928134,182,53.413481444294568,110,32.557641192199412,81,27.802877548915689,73,21.095023109728988,297,74.027022093286988,32,12.727922061357855,115,36.796738985948195,53,20,79,19.798989873223331,736,140.03570973148243,177,56.824290580701486,277,77.620873481300123,100,37.20215047547655,366,74.411020689142546]
[null,"With ambulatory difficulty",12,9.4868329805051381,62,76.922038454528746,47,59.304300012730948,48,35.735136770411273,6,13.038404810405298,9,17.804493814764857,30,32.893768406797051,35,51.156622249714651,288,99.403219263764285,25,24.166091947189145,6,14.866068747318506,3,11.704699910719626,7,12.529964086141668,79,47.707441767506253,3,4.2426406871192848,12,14.560219778561036,4,11.704699910719626,1,11.704699910719626,82,47.423622805517503,19,15.264337522473747,74,59.033888572581766,14,10.63014581273465,81,46.324939287601879]
[null,"With no ambulatory difficulty",146,46.010868281309364,340,133.843191832831,147,38.183766184073569,215,69.339743293438858,59,20.808652046684813,57,20.808652046684813,386,93.509357820487679,379,98.600202839547947,1194,165.46298679765212,157,49.648766349225639,104,30.610455730027933,78,28.42534080710379,66,20.591260281974002,218,71.61005515987263,29,12.806248474865697,103,33.241540277189323,49,19.209372712298546,78,19.798989873223331,654,140.0071426749364,158,55.009090157900268,203,67.882250993908556,86,36.61966684720111,285,66.843099868273612]
[null,"75  years and Older:",111,37.735924528226413,265,104.00480758118829,99,35.510561809129406,98,43.56604182158393,30,15.556349186104045,79,34.828149534535996,353,120.42009799032718,366,107.71258050942797,1861,183.21571984958058,139,48.877397639399746,47,21.470910553583888,44,17.029386365926403,29,15,231,60.207972893961475,10,6.4031242374328485,54,23.323807579381203,28,19.646882704388499,67,30.232432915661949,337,111.36426715962351,83,34.985711369071801,251,74.202425836356596,158,48.918299234540036,157,58]
[null,"With ambulatory difficulty",34,20.518284528683193,80,72.615425358528341,8,9.4339811320566032,34,32.984845004941285,9,13.601470508735444,17,15.524174696260024,168,70.83078426785913,28,28.284271247461902,494,136.69308687713507,23,17.804493814764857,18,11.661903789690601,13,8.0622577482985491,20,12.041594578792296,68,39.623225512317902,2,11.401754250991379,10,14.212670403551895,4,12.083045973594572,8,6.324555320336759,74,60.530983801686226,25,19.924858845171276,50,31.622776601683793,36,21.633307652783937,53,36.674241641784498]
[null,"With no ambulatory difficulty",77,34.014702703389901,185,84.172442046075858,91,34.669871646719429,64,26.627053911388696,21,13.038404810405298,62,31.064449134018133,185,99.724620831567975,338,102.44998779892558,1367,180.31361568112376,116,46.065171225124082,29,17.262676501632068,31,15.556349186104045,9,8.0622577482985491,163,53.263495942343098,8,5.6568542494923806,44,21.931712199461309,24,18.681541692269406,59,29.681644159311659,263,97.754795278799492,58,31.906112267087632,201,68.818602136341013,122,41.400483088968905,104,48.010415536631214]

{"sheet":"SData_B18106_SelfCareDisability","index":49,"n_rows":63,"n_cols":70,"rows_kept":63,"cut":false,"hidden":true,"merged":[]}
["GEO_ID","GEO_ID2","SUMLEVEL",{"$f":"[1]ACS_16_5YR_B18104_with_ann!C1","v":"NAME"},{"$f":"[1]ACS_16_5YR_B18106_with_ann!D1","v":"B18106_001E"},{"$f":"[1]ACS_16_5YR_B18106_with_ann!E1","v":"B18106_001M"},{"$f":"[1]ACS_16_5YR_B18106_with_ann!F1","v":"B18106_002E"},{"$f":"[1]ACS_16_5YR_B18106_with_ann!G1","v":"B18106_002M"},{"$f":"[1]ACS_16_5YR_B18106_with_ann!H1","v":"B18106_003E"},{"$f":"[1]ACS_16_5YR_B18106_with_ann!I1","v":"B18106_003M"},{"$f":"[1]ACS_16_5YR_B18106_with_ann!J1","v":"B18106_004E"},{"$f":"[1]ACS_16_5YR_B18106_with_ann!K1","v":"B18106_004M"},{"$f":"[1]ACS_16_5YR_B18106_with_ann!L1","v":"B18106_005E"},{"$f":"[1]ACS_16_5YR_B18106_with_ann!M1","v":"B18106_005M"},{"$f":"[1]ACS_16_5YR_B18106_with_ann!N1","v":"B18106_006E"},{"$f":"[1]ACS_16_5YR_B18106_with_ann!O1","v":"B18106_006M"},{"$f":"[1]ACS_16_5YR_B18106_with_ann!P1","v":"B18106_007E"},{"$f":"[1]ACS_16_5YR_B18106_with_ann!Q1","v":"B18106_007M"},{"$f":"[1]ACS_16_5YR_B18106_with_ann!R1","v":"B18106_008E"},{"$f":"[1]ACS_16_5YR_B18106_with_ann!S1","v":"B18106_008M"},{"$f":"[1]ACS_16_5YR_B18106_with_ann!T1","v":"B18106_009E"},{"$f":"[1]ACS_16_5YR_B18106_with_ann!U1","v":"B18106_009M"},{"$f":"[1]ACS_16_5YR_B18106_with_ann!V1","v":"B18106_010E"},{"$f":"[1]ACS_16_5YR_B18106_with_ann!W1","v":"B18106_010M"},{"$f":"[1]ACS_16_5YR_B18106_with_ann!X1","v":"B18106_011E"},{"$f":"[1]ACS_16_5YR_B18106_with_ann!Y1","v":"B18106_011M"},{"$f":"[1]ACS_16_5YR_B18106_with_ann!Z1","v":"B18106_012E"},{"$f":"[1]ACS_16_5YR_B18106_with_ann!AA1","v":"B18106_012M"},{"$f":"[1]ACS_16_5YR_B18106_with_ann!AB1","v":"B18106_013E"},{"$f":"[1]ACS_16_5YR_B18106_with_ann!AC1","v":"B18106_013M"},{"$f":"[1]ACS_16_5YR_B18106_with_ann!AD1","v":"B18106_014E"},{"$f":"[1]ACS_16_5YR_B18106_with_ann!AE1","v":"B18106_014M"},{"$f":"[1]ACS_16_5YR_B18106_with_ann!AF1","v":"B18106_015E"},{"$f":"[1]ACS_16_5YR_B18106_with_ann!AG1","v":"B18106_015M"},{"$f":"[1]ACS_16_5YR_B18106_with_ann!AH1","v":"B18106_016E"},{"$f":"[1]ACS_16_5YR_B18106_with_ann!AI1","v":"B18106_016M"},{"$f":"[1]ACS_16_5YR_B18106_with_ann!AJ1","v":"B18106_017E"},{"$f":"[1]ACS_16_5YR_B18106_with_ann!AK1","v":"B18106_017M"},{"$f":"[1]ACS_16_5YR_B18106_with_ann!AL1","v":"B18106_018E"},{"$f":"[1]ACS_16_5YR_B18106_with_ann!AM1","v":"B18106_018M"},{"$f":"[1]ACS_16_5YR_B18106_with_ann!AN1","v":"B18106_019E"},{"$f":"[1]ACS_16_5YR_B18106_with_ann!AO1","v":"B18106_019M"},{"$f":"[1]ACS_16_5YR_B18106_with_ann!AP1","v":"B18106_020E"},{"$f":"[1]ACS_16_5YR_B18106_with_ann!AQ1","v":"B18106_020M"},{"$f":"[1]ACS_16_5YR_B18106_with_ann!AR1","v":"B18106_021E"},{"$f":"[1]ACS_16_5YR_B18106_with_ann!AS1","v":"B18106_021M"},{"$f":"[1]ACS_16_5YR_B18106_with_ann!AT1","v":"B18106_022E"},{"$f":"[1]ACS_16_5YR_B18106_with_ann!AU1","v":"B18106_022M"},{"$f":"[1]ACS_16_5YR_B18106_with_ann!AV1","v":"B18106_023E"},{"$f":"[1]ACS_16_5YR_B18106_with_ann!AW1","v":"B18106_023M"},{"$f":"[1]ACS_16_5YR_B18106_with_ann!AX1","v":"B18106_024E"},{"$f":"[1]ACS_16_5YR_B18106_with_ann!AY1","v":"B18106_024M"},{"$f":"[1]ACS_16_5YR_B18106_with_ann!AZ1","v":"B18106_025E"},{"$f":"[1]ACS_16_5YR_B18106_with_ann!BA1","v":"B18106_025M"},{"$f":"[1]ACS_16_5YR_B18106_with_ann!BB1","v":"B18106_026E"},{"$f":"[1]ACS_16_5YR_B18106_with_ann!BC1","v":"B18106_026M"},{"$f":"[1]ACS_16_5YR_B18106_with_ann!BD1","v":"B18106_027E"},{"$f":"[1]ACS_16_5YR_B18106_with_ann!BE1","v":"B18106_027M"},{"$f":"[1]ACS_16_5YR_B18106_with_ann!BF1","v":"B18106_028E"},{"$f":"[1]ACS_16_5YR_B18106_with_ann!BG1","v":"B18106_028M"},{"$f":"[1]ACS_16_5YR_B18106_with_ann!BH1","v":"B18106_029E"},{"$f":"[1]ACS_16_5YR_B18106_with_ann!BI1","v":"B18106_029M"},{"$f":"[1]ACS_16_5YR_B18106_with_ann!BJ1","v":"B18106_030E"},{"$f":"[1]ACS_16_5YR_B18106_with_ann!BK1","v":"B18106_030M"},{"$f":"[1]ACS_16_5YR_B18106_with_ann!BL1","v":"B18106_031E"},{"$f":"[1]ACS_16_5YR_B18106_with_ann!BM1","v":"B18106_031M"},{"$f":"[1]ACS_16_5YR_B18106_with_ann!BN1","v":"B18106_032E"},{"$f":"[1]ACS_16_5YR_B18106_with_ann!BO1","v":"B18106_032M"},{"$f":"[1]ACS_16_5YR_B18106_with_ann!BP1","v":"B18106_033E"},{"$f":"[1]ACS_16_5YR_B18106_with_ann!BQ1","v":"B18106_033M"}]
["Geography Identifier","Geography Identifier","Geographic Summary Level",{"$f":"[1]ACS_16_5YR_B18104_with_ann!C2","v":"Geographic Area Name"},{"$f":"[1]ACS_16_5YR_B18106_with_ann!D2","v":"Estimate!!Total:"},{"$f":"[1]ACS_16_5YR_B18106_with_ann!E2","v":"Margin of Error!!Total:"},{"$f":"[1]ACS_16_5YR_B18106_with_ann!F2","v":"Estimate!!Total:!!Male:"},{"$f":"[1]ACS_16_5YR_B18106_with_ann!G2","v":"Margin of Error!!Total:!!Male:"},{"$f":"[1]ACS_16_5YR_B18106_with_ann!H2","v":"Estimate!!Total:!!Male:!!5 to 17 years:"},{"$f":"[1]ACS_16_5YR_B18106_with_ann!I2","v":"Margin of Error!!Total:!!Male:!!5 to 17 years:"},{"$f":"[1]ACS_16_5YR_B18106_with_ann!J2","v":"Estimate!!Total:!!Male:!!5 to 17 years:!!With a self-care difficulty"},{"$f":"[1]ACS_16_5YR_B18106_with_ann!K2","v":"Margin of Error!!Total:!!Male:!!5 to 17 years:!!With a self-care difficulty"},{"$f":"[1]ACS_16_5YR_B18106_with_ann!L2","v":"Estimate!!Total:!!Male:!!5 to 17 years:!!No self-care difficulty"},{"$f":"[1]ACS_16_5YR_B18106_with_ann!M2","v":"Margin of Error!!Total:!!Male:!!5 to 17 years:!!No self-care difficulty"},{"$f":"[1]ACS_16_5YR_B18106_with_ann!N2","v":"Estimate!!Total:!!Male:!!18 to 34 years:"},{"$f":"[1]ACS_16_5YR_B18106_with_ann!O2","v":"Margin of Error!!Total:!!Male:!!18 to 34 years:"},{"$f":"[1]ACS_16_5YR_B18106_with_ann!P2","v":"Estimate!!Total:!!Male:!!18 to 34 years:!!With a self-care difficulty"},{"$f":"[1]ACS_16_5YR_B18106_with_ann!Q2","v":"Margin of Error!!Total:!!Male:!!18 to 34 years:!!With a self-care difficulty"},{"$f":"[1]ACS_16_5YR_B18106_with_ann!R2","v":"Estimate!!Total:!!Male:!!18 to 34 years:!!No self-care difficulty"},{"$f":"[1]ACS_16_5YR_B18106_with_ann!S2","v":"Margin of Error!!Total:!!Male:!!18 to 34 years:!!No self-care difficulty"},{"$f":"[1]ACS_16_5YR_B18106_with_ann!T2","v":"Estimate!!Total:!!Male:!!35 to 64 years:"},{"$f":"[1]ACS_16_5YR_B18106_with_ann!U2","v":"Margin of Error!!Total:!!Male:!!35 to 64 years:"},{"$f":"[1]ACS_16_5YR_B18106_with_ann!V2","v":"Estimate!!Total:!!Male:!!35 to 64 years:!!With a self-care difficulty"},{"$f":"[1]ACS_16_5YR_B18106_with_ann!W2","v":"Margin of Error!!Total:!!Male:!!35 to 64 years:!!With a self-care difficulty"},{"$f":"[1]ACS_16_5YR_B18106_with_ann!X2","v":"Estimate!!Total:!!Male:!!35 to 64 years:!!No self-care difficulty"},{"$f":"[1]ACS_16_5YR_B18106_with_ann!Y2","v":"Margin of Error!!Total:!!Male:!!35 to 64 years:!!No self-care difficulty"},{"$f":"[1]ACS_16_5YR_B18106_with_ann!Z2","v":"Estimate!!Total:!!Male:!!65 to 74 years:"},{"$f":"[1]ACS_16_5YR_B18106_with_ann!AA2","v":"Margin of Error!!Total:!!Male:!!65 to 74 years:"},{"$f":"[1]ACS_16_5YR_B18106_with_ann!AB2","v":"Estimate!!Total:!!Male:!!65 to 74 years:!!With a self-care difficulty"},{"$f":"[1]ACS_16_5YR_B18106_with_ann!AC2","v":"Margin of Error!!Total:!!Male:!!65 to 74 years:!!With a self-care difficulty"},{"$f":"[1]ACS_16_5YR_B18106_with_ann!AD2","v":"Estimate!!Total:!!Male:!!65 to 74 years:!!No self-care difficulty"},{"$f":"[1]ACS_16_5YR_B18106_with_ann!AE2","v":"Margin of Error!!Total:!!Male:!!65 to 74 years:!!No self-care difficulty"},{"$f":"[1]ACS_16_5YR_B18106_with_ann!AF2","v":"Estimate!!Total:!!Male:!!75 years and over:"},{"$f":"[1]ACS_16_5YR_B18106_with_ann!AG2","v":"Margin of Error!!Total:!!Male:!!75 years and over:"},{"$f":"[1]ACS_16_5YR_B18106_with_ann!AH2","v":"Estimate!!Total:!!Male:!!75 years and over:!!With a self-care difficulty"},{"$f":"[1]ACS_16_5YR_B18106_with_ann!AI2","v":"Margin of Error!!Total:!!Male:!!75 years and over:!!With a self-care difficulty"},{"$f":"[1]ACS_16_5YR_B18106_with_ann!AJ2","v":"Estimate!!Total:!!Male:!!75 years and over:!!No self-care difficulty"},{"$f":"[1]ACS_16_5YR_B18106_with_ann!AK2","v":"Margin of Error!!Total:!!Male:!!75 years and over:!!No self-care difficulty"},{"$f":"[1]ACS_16_5YR_B18106_with_ann!AL2","v":"Estimate!!Total:!!Female:"},{"$f":"[1]ACS_16_5YR_B18106_with_ann!AM2","v":"Margin of Error!!Total:!!Female:"},{"$f":"[1]ACS_16_5YR_B18106_with_ann!AN2","v":"Estimate!!Total:!!Female:!!5 to 17 years:"},{"$f":"[1]ACS_16_5YR_B18106_with_ann!AO2","v":"Margin of Error!!Total:!!Female:!!5 to 17 years:"},{"$f":"[1]ACS_16_5YR_B18106_with_ann!AP2","v":"Estimate!!Total:!!Female:!!5 to 17 years:!!With a self-care difficulty"},{"$f":"[1]ACS_16_5YR_B18106_with_ann!AQ2","v":"Margin of Error!!Total:!!Female:!!5 to 17 years:!!With a self-care difficulty"},{"$f":"[1]ACS_16_5YR_B18106_with_ann!AR2","v":"Estimate!!Total:!!Female:!!5 to 17 years:!!No self-care difficulty"},{"$f":"[1]ACS_16_5YR_B18106_with_ann!AS2","v":"Margin of Error!!Total:!!Female:!!5 to 17 years:!!No self-care difficulty"},{"$f":"[1]ACS_16_5YR_B18106_with_ann!AT2","v":"Estimate!!Total:!!Female:!!18 to 34 years:"},{"$f":"[1]ACS_16_5YR_B18106_with_ann!AU2","v":"Margin of Error!!Total:!!Female:!!18 to 34 years:"},{"$f":"[1]ACS_16_5YR_B18106_with_ann!AV2","v":"Estimate!!Total:!!Female:!!18 to 34 years:!!With a self-care difficulty"},{"$f":"[1]ACS_16_5YR_B18106_with_ann!AW2","v":"Margin of Error!!Total:!!Female:!!18 to 34 years:!!With a self-care difficulty"},{"$f":"[1]ACS_16_5YR_B18106_with_ann!AX2","v":"Estimate!!Total:!!Female:!!18 to 34 years:!!No self-care difficulty"},{"$f":"[1]ACS_16_5YR_B18106_with_ann!AY2","v":"Margin of Error!!Total:!!Female:!!18 to 34 years:!!No self-care difficulty"},{"$f":"[1]ACS_16_5YR_B18106_with_ann!AZ2","v":"Estimate!!Total:!!Female:!!35 to 64 years:"},{"$f":"[1]ACS_16_5YR_B18106_with_ann!BA2","v":"Margin of Error!!Total:!!Female:!!35 to 64 years:"},{"$f":"[1]ACS_16_5YR_B18106_with_ann!BB2","v":"Estimate!!Total:!!Female:!!35 to 64 years:!!With a self-care difficulty"},{"$f":"[1]ACS_16_5YR_B18106_with_ann!BC2","v":"Margin of Error!!Total:!!Female:!!35 to 64 years:!!With a self-care difficulty"},{"$f":"[1]ACS_16_5YR_B18106_with_ann!BD2","v":"Estimate!!Total:!!Female:!!35 to 64 years:!!No self-care difficulty"},{"$f":"[1]ACS_16_5YR_B18106_with_ann!BE2","v":"Margin of Error!!Total:!!Female:!!35 to 64 years:!!No self-care difficulty"},{"$f":"[1]ACS_16_5YR_B18106_with_ann!BF2","v":"Estimate!!Total:!!Female:!!65 to 74 years:"},{"$f":"[1]ACS_16_5YR_B18106_with_ann!BG2","v":"Margin of Error!!Total:!!Female:!!65 to 74 years:"},{"$f":"[1]ACS_16_5YR_B18106_with_ann!BH2","v":"Estimate!!Total:!!Female:!!65 to 74 years:!!With a self-care difficulty"},{"$f":"[1]ACS_16_5YR_B18106_with_ann!BI2","v":"Margin of Error!!Total:!!Female:!!65 to 74 years:!!With a self-care difficulty"},{"$f":"[1]ACS_16_5YR_B18106_with_ann!BJ2","v":"Estimate!!Total:!!Female:!!65 to 74 years:!!No self-care difficulty"},{"$f":"[1]ACS_16_5YR_B18106_with_ann!BK2","v":"Margin of Error!!Total:!!Female:!!65 to 74 years:!!No self-care difficulty"},{"$f":"[1]ACS_16_5YR_B18106_with_ann!BL2","v":"Estimate!!Total:!!Female:!!75 years and over:"},{"$f":"[1]ACS_16_5YR_B18106_with_ann!BM2","v":"Margin of Error!!Total:!!Female:!!75 years and over:"},{"$f":"[1]ACS_16_5YR_B18106_with_ann!BN2","v":"Estimate!!Total:!!Female:!!75 years and over:!!With a self-care difficulty"},{"$f":"[1]ACS_16_5YR_B18106_with_ann!BO2","v":"Margin of Error!!Total:!!Female:!!75 years and over:!!With a self-care difficulty"},{"$f":"[1]ACS_16_5YR_B18106_with_ann!BP2","v":"Estimate!!Total:!!Female:!!75 years and over:!!No self-care difficulty"},{"$f":"[1]ACS_16_5YR_B18106_with_ann!BQ2","v":"Margin of Error!!Total:!!Female:!!75 years and over:!!No self-care difficulty"}]
["06000US3300500820","0600000US3300512260","060",{"$f":"[1]ACS_16_5YR_B18106_with_ann!C44","v":"Alstead"},{"$f":"[1]ACS_16_5YR_B18106_with_ann!D44","v":1567},{"$f":"[1]ACS_16_5YR_B18106_with_ann!E44","v":172},{"$f":"[1]ACS_16_5YR_B18106_with_ann!F44","v":758},{"$f":"[1]ACS_16_5YR_B18106_with_ann!G44","v":116},{"$f":"[1]ACS_16_5YR_B18106_with_ann!H44","v":96},{"$f":"[1]ACS_16_5YR_B18106_with_ann!I44","v":55},{"$f":"[1]ACS_16_5YR_B18106_with_ann!J44","v":0},{"$f":"[1]ACS_16_5YR_B18106_with_ann!K44","v":12},{"$f":"[1]ACS_16_5YR_B18106_with_ann!L44","v":96},{"$f":"[1]ACS_16_5YR_B18106_with_ann!M44","v":55},{"$f":"[1]ACS_16_5YR_B18106_with_ann!N44","v":147},{"$f":"[1]ACS_16_5YR_B18106_with_ann!O44","v":61},{"$f":"[1]ACS_16_5YR_B18106_with_ann!P44","v":0},{"$f":"[1]ACS_16_5YR_B18106_with_ann!Q44","v":12},{"$f":"[1]ACS_16_5YR_B18106_with_ann!R44","v":147},{"$f":"[1]ACS_16_5YR_B18106_with_ann!S44","v":61},{"$f":"[1]ACS_16_5YR_B18106_with_ann!T44","v":357},{"$f":"[1]ACS_16_5YR_B18106_with_ann!U44","v":76},{"$f":"[1]ACS_16_5YR_B18106_with_ann!V44","v":15},{"$f":"[1]ACS_16_5YR_B18106_with_ann!W44","v":17},{"$f":"[1]ACS_16_5YR_B18106_with_ann!X44","v":342},{"$f":"[1]ACS_16_5YR_B18106_with_ann!Y44","v":78},{"$f":"[1]ACS_16_5YR_B18106_with_ann!Z44","v":106},{"$f":"[1]ACS_16_5YR_B18106_with_ann!AA44","v":42},{"$f":"[1]ACS_16_5YR_B18106_with_ann!AB44","v":0},{"$f":"[1]ACS_16_5YR_B18106_with_ann!AC44","v":12},{"$f":"[1]ACS_16_5YR_B18106_with_ann!AD44","v":106},{"$f":"[1]ACS_16_5YR_B18106_with_ann!AE44","v":42},{"$f":"[1]ACS_16_5YR_B18106_with_ann!AF44","v":52},{"$f":"[1]ACS_16_5YR_B18106_with_ann!AG44","v":33},{"$f":"[1]ACS_16_5YR_B18106_with_ann!AH44","v":0},{"$f":"[1]ACS_16_5YR_B18106_with_ann!AI44","v":12},{"$f":"[1]ACS_16_5YR_B18106_with_ann!AJ44","v":52},{"$f":"[1]ACS_16_5YR_B18106_with_ann!AK44","v":33},{"$f":"[1]ACS_16_5YR_B18106_with_ann!AL44","v":809},{"$f":"[1]ACS_16_5YR_B18106_with_ann!AM44","v":96},{"$f":"[1]ACS_16_5YR_B18106_with_ann!AN44","v":100},{"$f":"[1]ACS_16_5YR_B18106_with_ann!AO44","v":34},{"$f":"[1]ACS_16_5YR_B18106_with_ann!AP44","v":0},{"$f":"[1]ACS_16_5YR_B18106_with_ann!AQ44","v":12},{"$f":"[1]ACS_16_5YR_B18106_with_ann!AR44","v":100},{"$f":"[1]ACS_16_5YR_B18106_with_ann!AS44","v":34},{"$f":"[1]ACS_16_5YR_B18106_with_ann!AT44","v":117},{"$f":"[1]ACS_16_5YR_B18106_with_ann!AU44","v":55},{"$f":"[1]ACS_16_5YR_B18106_with_ann!AV44","v":6},{"$f":"[1]ACS_16_5YR_B18106_with_ann!AW44","v":8},{"$f":"[1]ACS_16_5YR_B18106_with_ann!AX44","v":111},{"$f":"[1]ACS_16_5YR_B18106_with_ann!AY44","v":55},{"$f":"[1]ACS_16_5YR_B18106_with_ann!AZ44","v":329},{"$f":"[1]ACS_16_5YR_B18106_with_ann!BA44","v":67},{"$f":"[1]ACS_16_5YR_B18106_with_ann!BB44","v":5},{"$f":"[1]ACS_16_5YR_B18106_with_ann!BC44","v":6},{"$f":"[1]ACS_16_5YR_B18106_with_ann!BD44","v":324},{"$f":"[1]ACS_16_5YR_B18106_with_ann!BE44","v":67},{"$f":"[1]ACS_16_5YR_B18106_with_ann!BF44","v":173},{"$f":"[1]ACS_16_5YR_B18106_with_ann!BG44","v":71},{"$f":"[1]ACS_16_5YR_B18106_with_ann!BH44","v":0},{"$f":"[1]ACS_16_5YR_B18106_with_ann!BI44","v":12},{"$f":"[1]ACS_16_5YR_B18106_with_ann!BJ44","v":173},{"$f":"[1]ACS_16_5YR_B18106_with_ann!BK44","v":71},{"$f":"[1]ACS_16_5YR_B18106_with_ann!BL44","v":90},{"$f":"[1]ACS_16_5YR_B18106_with_ann!BM44","v":47},{"$f":"[1]ACS_16_5YR_B18106_with_ann!BN44","v":5},{"$f":"[1]ACS_16_5YR_B18106_with_ann!BO44","v":7},{"$f":"[1]ACS_16_5YR_B18106_with_ann!BP44","v":85},{"$f":"[1]ACS_16_5YR_B18106_with_ann!BQ44","v":46}]
["06000US3300512260","0600000US3300519140","060",{"$f":"[1]ACS_16_5YR_B18106_with_ann!C45","v":"Chesterfield"},{"$f":"[1]ACS_16_5YR_B18106_with_ann!D45","v":3436},{"$f":"[1]ACS_16_5YR_B18106_with_ann!E45","v":73},{"$f":"[1]ACS_16_5YR_B18106_with_ann!F45","v":1879},{"$f":"[1]ACS_16_5YR_B18106_with_ann!G45","v":137},{"$f":"[1]ACS_16_5YR_B18106_with_ann!H45","v":452},{"$f":"[1]ACS_16_5YR_B18106_with_ann!I45","v":132},{"$f":"[1]ACS_16_5YR_B18106_with_ann!J45","v":0},{"$f":"[1]ACS_16_5YR_B18106_with_ann!K45","v":12},{"$f":"[1]ACS_16_5YR_B18106_with_ann!L45","v":452},{"$f":"[1]ACS_16_5YR_B18106_with_ann!M45","v":132},{"$f":"[1]ACS_16_5YR_B18106_with_ann!N45","v":366},{"$f":"[1]ACS_16_5YR_B18106_with_ann!O45","v":146},{"$f":"[1]ACS_16_5YR_B18106_with_ann!P45","v":0},{"$f":"[1]ACS_16_5YR_B18106_with_ann!Q45","v":12},{"$f":"[1]ACS_16_5YR_B18106_with_ann!R45","v":366},{"$f":"[1]ACS_16_5YR_B18106_with_ann!S45","v":146},{"$f":"[1]ACS_16_5YR_B18106_with_ann!T45","v":537},{"$f":"[1]ACS_16_5YR_B18106_with_ann!U45","v":175},{"$f":"[1]ACS_16_5YR_B18106_with_ann!V45","v":0},{"$f":"[1]ACS_16_5YR_B18106_with_ann!W45","v":12},{"$f":"[1]ACS_16_5YR_B18106_with_ann!X45","v":537},{"$f":"[1]ACS_16_5YR_B18106_with_ann!Y45","v":175},{"$f":"[1]ACS_16_5YR_B18106_with_ann!Z45","v":367},{"$f":"[1]ACS_16_5YR_B18106_with_ann!AA45","v":125},{"$f":"[1]ACS_16_5YR_B18106_with_ann!AB45","v":0},{"$f":"[1]ACS_16_5YR_B18106_with_ann!AC45","v":12},{"$f":"[1]ACS_16_5YR_B18106_with_ann!AD45","v":367},{"$f":"[1]ACS_16_5YR_B18106_with_ann!AE45","v":125},{"$f":"[1]ACS_16_5YR_B18106_with_ann!AF45","v":157},{"$f":"[1]ACS_16_5YR_B18106_with_ann!AG45","v":80},{"$f":"[1]ACS_16_5YR_B18106_with_ann!AH45","v":0},{"$f":"[1]ACS_16_5YR_B18106_with_ann!AI45","v":12},{"$f":"[1]ACS_16_5YR_B18106_with_ann!AJ45","v":157},{"$f":"[1]ACS_16_5YR_B18106_with_ann!AK45","v":80},{"$f":"[1]ACS_16_5YR_B18106_with_ann!AL45","v":1557},{"$f":"[1]ACS_16_5YR_B18106_with_ann!AM45","v":132},{"$f":"[1]ACS_16_5YR_B18106_with_ann!AN45","v":144},{"$f":"[1]ACS_16_5YR_B18106_with_ann!AO45","v":80},{"$f":"[1]ACS_16_5YR_B18106_with_ann!AP45","v":0},{"$f":"[1]ACS_16_5YR_B18106_with_ann!AQ45","v":12},{"$f":"[1]ACS_16_5YR_B18106_with_ann!AR45","v":144},{"$f":"[1]ACS_16_5YR_B18106_with_ann!AS45","v":80},{"$f":"[1]ACS_16_5YR_B18106_with_ann!AT45","v":323},{"$f":"[1]ACS_16_5YR_B18106_with_ann!AU45","v":125},{"$f":"[1]ACS_16_5YR_B18106_with_ann!AV45","v":0},{"$f":"[1]ACS_16_5YR_B18106_with_ann!AW45","v":12},{"$f":"[1]ACS_16_5YR_B18106_with_ann!AX45","v":323},{"$f":"[1]ACS_16_5YR_B18106_with_ann!AY45","v":125},{"$f":"[1]ACS_16_5YR_B18106_with_ann!AZ45","v":729},{"$f":"[1]ACS_16_5YR_B18106_with_ann!BA45","v":167},{"$f":"[1]ACS_16_5YR_B18106_with_ann!BB45","v":0},{"$f":"[1]ACS_16_5YR_B18106_with_ann!BC45","v":12},{"$f":"[1]ACS_16_5YR_B18106_with_ann!BD45","v":729},{"$f":"[1]ACS_16_5YR_B18106_with_ann!BE45","v":167},{"$f":"[1]ACS_16_5YR_B18106_with_ann!BF45","v":244},{"$f":"[1]ACS_16_5YR_B18106_with_ann!BG45","v":110},{"$f":"[1]ACS_16_5YR_B18106_with_ann!BH45","v":0},{"$f":"[1]ACS_16_5YR_B18106_with_ann!BI45","v":12},{"$f":"[1]ACS_16_5YR_B18106_with_ann!BJ45","v":244},{"$f":"[1]ACS_16_5YR_B18106_with_ann!BK45","v":110},{"$f":"[1]ACS_16_5YR_B18106_with_ann!BL45","v":117},{"$f":"[1]ACS_16_5YR_B18106_with_ann!BM45","v":76},{"$f":"[1]ACS_16_5YR_B18106_with_ann!BN45","v":19},{"$f":"[1]ACS_16_5YR_B18106_with_ann!BO45","v":30},{"$f":"[1]ACS_16_5YR_B18106_with_ann!BP45","v":98},{"$f":"[1]ACS_16_5YR_B18106_with_ann!BQ45","v":69}]
["06000US3300519140","0600000US3300526500","060",{"$f":"[1]ACS_16_5YR_B18106_with_ann!C46","v":"Dublin"},{"$f":"[1]ACS_16_5YR_B18106_with_ann!D46","v":1630},{"$f":"[1]ACS_16_5YR_B18106_with_ann!E46","v":209},{"$f":"[1]ACS_16_5YR_B18106_with_ann!F46","v":776},{"$f":"[1]ACS_16_5YR_B18106_with_ann!G46","v":113},{"$f":"[1]ACS_16_5YR_B18106_with_ann!H46","v":97},{"$f":"[1]ACS_16_5YR_B18106_with_ann!I46","v":40},{"$f":"[1]ACS_16_5YR_B18106_with_ann!J46","v":0},{"$f":"[1]ACS_16_5YR_B18106_with_ann!K46","v":12},{"$f":"[1]ACS_16_5YR_B18106_with_ann!L46","v":97},{"$f":"[1]ACS_16_5YR_B18106_with_ann!M46","v":40},{"$f":"[1]ACS_16_5YR_B18106_with_ann!N46","v":136},{"$f":"[1]ACS_16_5YR_B18106_with_ann!O46","v":55},{"$f":"[1]ACS_16_5YR_B18106_with_ann!P46","v":0},{"$f":"[1]ACS_16_5YR_B18106_with_ann!Q46","v":12},{"$f":"[1]ACS_16_5YR_B18106_with_ann!R46","v":136},{"$f":"[1]ACS_16_5YR_B18106_with_ann!S46","v":55},{"$f":"[1]ACS_16_5YR_B18106_with_ann!T46","v":338},{"$f":"[1]ACS_16_5YR_B18106_with_ann!U46","v":83},{"$f":"[1]ACS_16_5YR_B18106_with_ann!V46","v":0},{"$f":"[1]ACS_16_5YR_B18106_with_ann!W46","v":12},{"$f":"[1]ACS_16_5YR_B18106_with_ann!X46","v":338},{"$f":"[1]ACS_16_5YR_B18106_with_ann!Y46","v":83},{"$f":"[1]ACS_16_5YR_B18106_with_ann!Z46","v":153},{"$f":"[1]ACS_16_5YR_B18106_with_ann!AA46","v":64},{"$f":"[1]ACS_16_5YR_B18106_with_ann!AB46","v":0},{"$f":"[1]ACS_16_5YR_B18106_with_ann!AC46","v":12},{"$f":"[1]ACS_16_5YR_B18106_with_ann!AD46","v":153},{"$f":"[1]ACS_16_5YR_B18106_with_ann!AE46","v":64},{"$f":"[1]ACS_16_5YR_B18106_with_ann!AF46","v":52},{"$f":"[1]ACS_16_5YR_B18106_with_ann!AG46","v":26},{"$f":"[1]ACS_16_5YR_B18106_with_ann!AH46","v":2},{"$f":"[1]ACS_16_5YR_B18106_with_ann!AI46","v":3},{"$f":"[1]ACS_16_5YR_B18106_with_ann!AJ46","v":50},{"$f":"[1]ACS_16_5YR_B18106_with_ann!AK46","v":26},{"$f":"[1]ACS_16_5YR_B18106_with_ann!AL46","v":854},{"$f":"[1]ACS_16_5YR_B18106_with_ann!AM46","v":132},{"$f":"[1]ACS_16_5YR_B18106_with_ann!AN46","v":149},{"$f":"[1]ACS_16_5YR_B18106_with_ann!AO46","v":44},{"$f":"[1]ACS_16_5YR_B18106_with_ann!AP46","v":0},{"$f":"[1]ACS_16_5YR_B18106_with_ann!AQ46","v":12},{"$f":"[1]ACS_16_5YR_B18106_with_ann!AR46","v":149},{"$f":"[1]ACS_16_5YR_B18106_with_ann!AS46","v":44},{"$f":"[1]ACS_16_5YR_B18106_with_ann!AT46","v":63},{"$f":"[1]ACS_16_5YR_B18106_with_ann!AU46","v":26},{"$f":"[1]ACS_16_5YR_B18106_with_ann!AV46","v":0},{"$f":"[1]ACS_16_5YR_B18106_with_ann!AW46","v":12},{"$f":"[1]ACS_16_5YR_B18106_with_ann!AX46","v":63},{"$f":"[1]ACS_16_5YR_B18106_with_ann!AY46","v":26},{"$f":"[1]ACS_16_5YR_B18106_with_ann!AZ46","v":404},{"$f":"[1]ACS_16_5YR_B18106_with_ann!BA46","v":97},{"$f":"[1]ACS_16_5YR_B18106_with_ann!BB46","v":0},{"$f":"[1]ACS_16_5YR_B18106_with_ann!BC46","v":12},{"$f":"[1]ACS_16_5YR_B18106_with_ann!BD46","v":404},{"$f":"[1]ACS_16_5YR_B18106_with_ann!BE46","v":97},{"$f":"[1]ACS_16_5YR_B18106_with_ann!BF46","v":162},{"$f":"[1]ACS_16_5YR_B18106_with_ann!BG46","v":54},{"$f":"[1]ACS_16_5YR_B18106_with_ann!BH46","v":0},{"$f":"[1]ACS_16_5YR_B18106_with_ann!BI46","v":12},{"$f":"[1]ACS_16_5YR_B18106_with_ann!BJ46","v":162},{"$f":"[1]ACS_16_5YR_B18106_with_ann!BK46","v":54},{"$f":"[1]ACS_16_5YR_B18106_with_ann!BL46","v":76},{"$f":"[1]ACS_16_5YR_B18106_with_ann!BM46","v":51},{"$f":"[1]ACS_16_5YR_B18106_with_ann!BN46","v":5},{"$f":"[1]ACS_16_5YR_B18106_with_ann!BO46","v":5},{"$f":"[1]ACS_16_5YR_B18106_with_ann!BP46","v":71},{"$f":"[1]ACS_16_5YR_B18106_with_ann!BQ46","v":50}]
["06000US3300526500","0600000US3300529220","060",{"$f":"[1]ACS_16_5YR_B18106_with_ann!C47","v":"Fitzwilliam"},{"$f":"[1]ACS_16_5YR_B18106_with_ann!D47","v":2209},{"$f":"[1]ACS_16_5YR_B18106_with_ann!E47","v":360},{"$f":"[1]ACS_16_5YR_B18106_with_ann!F47","v":1170},{"$f":"[1]ACS_16_5YR_B18106_with_ann!G47","v":214},{"$f":"[1]ACS_16_5YR_B18106_with_ann!H47","v":101},{"$f":"[1]ACS_16_5YR_B18106_with_ann!I47","v":36},{"$f":"[1]ACS_16_5YR_B18106_with_ann!J47","v":0},{"$f":"[1]ACS_16_5YR_B18106_with_ann!K47","v":12},{"$f":"[1]ACS_16_5YR_B18106_with_ann!L47","v":101},{"$f":"[1]ACS_16_5YR_B18106_with_ann!M47","v":36},{"$f":"[1]ACS_16_5YR_B18106_with_ann!N47","v":226},{"$f":"[1]ACS_16_5YR_B18106_with_ann!O47","v":92},{"$f":"[1]ACS_16_5YR_B18106_with_ann!P47","v":6},{"$f":"[1]ACS_16_5YR_B18106_with_ann!Q47","v":9},{"$f":"[1]ACS_16_5YR_B18106_with_ann!R47","v":220},{"$f":"[1]ACS_16_5YR_B18106_with_ann!S47","v":92},{"$f":"[1]ACS_16_5YR_B18106_with_ann!T47","v":605},{"$f":"[1]ACS_16_5YR_B18106_with_ann!U47","v":177},{"$f":"[1]ACS_16_5YR_B18106_with_ann!V47","v":0},{"$f":"[1]ACS_16_5YR_B18106_with_ann!W47","v":12},{"$f":"[1]ACS_16_5YR_B18106_with_ann!X47","v":605},{"$f":"[1]ACS_16_5YR_B18106_with_ann!Y47","v":177},{"$f":"[1]ACS_16_5YR_B18106_with_ann!Z47","v":195},{"$f":"[1]ACS_16_5YR_B18106_with_ann!AA47","v":55},{"$f":"[1]ACS_16_5YR_B18106_with_ann!AB47","v":11},{"$f":"[1]ACS_16_5YR_B18106_with_ann!AC47","v":18},{"$f":"[1]ACS_16_5YR_B18106_with_ann!AD47","v":184},{"$f":"[1]ACS_16_5YR_B18106_with_ann!AE47","v":56},{"$f":"[1]ACS_16_5YR_B18106_with_ann!AF47","v":43},{"$f":"[1]ACS_16_5YR_B18106_with_ann!AG47","v":19},{"$f":"[1]ACS_16_5YR_B18106_with_ann!AH47","v":5},{"$f":"[1]ACS_16_5YR_B18106_with_ann!AI47","v":8},{"$f":"[1]ACS_16_5YR_B18106_with_ann!AJ47","v":38},{"$f":"[1]ACS_16_5YR_B18106_with_ann!AK47","v":18},{"$f":"[1]ACS_16_5YR_B18106_with_ann!AL47","v":1039},{"$f":"[1]ACS_16_5YR_B18106_with_ann!AM47","v":177},{"$f":"[1]ACS_16_5YR_B18106_with_ann!AN47","v":106},{"$f":"[1]ACS_16_5YR_B18106_with_ann!AO47","v":53},{"$f":"[1]ACS_16_5YR_B18106_with_ann!AP47","v":4},{"$f":"[1]ACS_16_5YR_B18106_with_ann!AQ47","v":6},{"$f":"[1]ACS_16_5YR_B18106_with_ann!AR47","v":102},{"$f":"[1]ACS_16_5YR_B18106_with_ann!AS47","v":52},{"$f":"[1]ACS_16_5YR_B18106_with_ann!AT47","v":151},{"$f":"[1]ACS_16_5YR_B18106_with_ann!AU47","v":78},{"$f":"[1]ACS_16_5YR_B18106_with_ann!AV47","v":0},{"$f":"[1]ACS_16_5YR_B18106_with_ann!AW47","v":12},{"$f":"[1]ACS_16_5YR_B18106_with_ann!AX47","v":151},{"$f":"[1]ACS_16_5YR_B18106_with_ann!AY47","v":78},{"$f":"[1]ACS_16_5YR_B18106_with_ann!AZ47","v":484},{"$f":"[1]ACS_16_5YR_B18106_with_ann!BA47","v":84},{"$f":"[1]ACS_16_5YR_B18106_with_ann!BB47","v":10},{"$f":"[1]ACS_16_5YR_B18106_with_ann!BC47","v":11},{"$f":"[1]ACS_16_5YR_B18106_with_ann!BD47","v":474},{"$f":"[1]ACS_16_5YR_B18106_with_ann!BE47","v":83},{"$f":"[1]ACS_16_5YR_B18106_with_ann!BF47","v":251},{"$f":"[1]ACS_16_5YR_B18106_with_ann!BG47","v":106},{"$f":"[1]ACS_16_5YR_B18106_with_ann!BH47","v":4},{"$f":"[1]ACS_16_5YR_B18106_with_ann!BI47","v":6},{"$f":"[1]ACS_16_5YR_B18106_with_ann!BJ47","v":247},{"$f":"[1]ACS_16_5YR_B18106_with_ann!BK47","v":105},{"$f":"[1]ACS_16_5YR_B18106_with_ann!BL47","v":47},{"$f":"[1]ACS_16_5YR_B18106_with_ann!BM47","v":27},{"$f":"[1]ACS_16_5YR_B18106_with_ann!BN47","v":12},{"$f":"[1]ACS_16_5YR_B18106_with_ann!BO47","v":16},{"$f":"[1]ACS_16_5YR_B18106_with_ann!BP47","v":35},{"$f":"[1]ACS_16_5YR_B18106_with_ann!BQ47","v":20}]
["06000US3300529220","0600000US3300534420","060",{"$f":"[1]ACS_16_5YR_B18106_with_ann!C48","v":"Gilsum"},{"$f":"[1]ACS_16_5YR_B18106_with_ann!D48","v":812},{"$f":"[1]ACS_16_5YR_B18106_with_ann!E48","v":136},{"$f":"[1]ACS_16_5YR_B18106_with_ann!F48","v":419},{"$f":"[1]ACS_16_5YR_B18106_with_ann!G48","v":80},{"$f":"[1]ACS_16_5YR_B18106_with_ann!H48","v":52},{"$f":"[1]ACS_16_5YR_B18106_with_ann!I48","v":31},{"$f":"[1]ACS_16_5YR_B18106_with_ann!J48","v":3},{"$f":"[1]ACS_16_5YR_B18106_with_ann!K48","v":5},{"$f":"[1]ACS_16_5YR_B18106_with_ann!L48","v":49},{"$f":"[1]ACS_16_5YR_B18106_with_ann!M48","v":30},{"$f":"[1]ACS_16_5YR_B18106_with_ann!N48","v":119},{"$f":"[1]ACS_16_5YR_B18106_with_ann!O48","v":56},{"$f":"[1]ACS_16_5YR_B18106_with_ann!P48","v":0},{"$f":"[1]ACS_16_5YR_B18106_with_ann!Q48","v":12},{"$f":"[1]ACS_16_5YR_B18106_with_ann!R48","v":119},{"$f":"[1]ACS_16_5YR_B18106_with_ann!S48","v":56},{"$f":"[1]ACS_16_5YR_B18106_with_ann!T48","v":158},{"$f":"[1]ACS_16_5YR_B18106_with_ann!U48","v":38},{"$f":"[1]ACS_16_5YR_B18106_with_ann!V48","v":0},{"$f":"[1]ACS_16_5YR_B18106_with_ann!W48","v":12},{"$f":"[1]ACS_16_5YR_B18106_with_ann!X48","v":158},{"$f":"[1]ACS_16_5YR_B18106_with_ann!Y48","v":38},{"$f":"[1]ACS_16_5YR_B18106_with_ann!Z48","v":76},{"$f":"[1]ACS_16_5YR_B18106_with_ann!AA48","v":29},{"$f":"[1]ACS_16_5YR_B18106_with_ann!AB48","v":1},{"$f":"[1]ACS_16_5YR_B18106_with_ann!AC48","v":2},{"$f":"[1]ACS_16_5YR_B18106_with_ann!AD48","v":75},{"$f":"[1]ACS_16_5YR_B18106_with_ann!AE48","v":28},{"$f":"[1]ACS_16_5YR_B18106_with_ann!AF48","v":14},{"$f":"[1]ACS_16_5YR_B18106_with_ann!AG48","v":10},{"$f":"[1]ACS_16_5YR_B18106_with_ann!AH48","v":0},{"$f":"[1]ACS_16_5YR_B18106_with_ann!AI48","v":12},{"$f":"[1]ACS_16_5YR_B18106_with_ann!AJ48","v":14},{"$f":"[1]ACS_16_5YR_B18106_with_ann!AK48","v":10},{"$f":"[1]ACS_16_5YR_B18106_with_ann!AL48","v":393},{"$f":"[1]ACS_16_5YR_B18106_with_ann!AM48","v":74},{"$f":"[1]ACS_16_5YR_B18106_with_ann!AN48","v":38},{"$f":"[1]ACS_16_5YR_B18106_with_ann!AO48","v":29},{"$f":"[1]ACS_16_5YR_B18106_with_ann!AP48","v":0},{"$f":"[1]ACS_16_5YR_B18106_with_ann!AQ48","v":12},{"$f":"[1]ACS_16_5YR_B18106_with_ann!AR48","v":38},{"$f":"[1]ACS_16_5YR_B18106_with_ann!AS48","v":29},{"$f":"[1]ACS_16_5YR_B18106_with_ann!AT48","v":95},{"$f":"[1]ACS_16_5YR_B18106_with_ann!AU48","v":35},{"$f":"[1]ACS_16_5YR_B18106_with_ann!AV48","v":0},{"$f":"[1]ACS_16_5YR_B18106_with_ann!AW48","v":12},{"$f":"[1]ACS_16_5YR_B18106_with_ann!AX48","v":95},{"$f":"[1]ACS_16_5YR_B18106_with_ann!AY48","v":35},{"$f":"[1]ACS_16_5YR_B18106_with_ann!AZ48","v":170},{"$f":"[1]ACS_16_5YR_B18106_with_ann!BA48","v":44},{"$f":"[1]ACS_16_5YR_B18106_with_ann!BB48","v":0},{"$f":"[1]ACS_16_5YR_B18106_with_ann!BC48","v":12},{"$f":"[1]ACS_16_5YR_B18106_with_ann!BD48","v":170},{"$f":"[1]ACS_16_5YR_B18106_with_ann!BE48","v":44},{"$f":"[1]ACS_16_5YR_B18106_with_ann!BF48","v":58},{"$f":"[1]ACS_16_5YR_B18106_with_ann!BG48","v":25},{"$f":"[1]ACS_16_5YR_B18106_with_ann!BH48","v":0},{"$f":"[1]ACS_16_5YR_B18106_with_ann!BI48","v":12},{"$f":"[1]ACS_16_5YR_B18106_with_ann!BJ48","v":58},{"$f":"[1]ACS_16_5YR_B18106_with_ann!BK48","v":25},{"$f":"[1]ACS_16_5YR_B18106_with_ann!BL48","v":32},{"$f":"[1]ACS_16_5YR_B18106_with_ann!BM48","v":14},{"$f":"[1]ACS_16_5YR_B18106_with_ann!BN48","v":0},{"$f":"[1]ACS_16_5YR_B18106_with_ann!BO48","v":12},{"$f":"[1]ACS_16_5YR_B18106_with_ann!BP48","v":32},{"$f":"[1]ACS_16_5YR_B18106_with_ann!BQ48","v":14}]
["06000US3300534420","0600000US3300536660","060",{"$f":"[1]ACS_16_5YR_B18106_with_ann!C49","v":"Harrisville"},{"$f":"[1]ACS_16_5YR_B18106_with_ann!D49","v":927},{"$f":"[1]ACS_16_5YR_B18106_with_ann!E49","v":174},{"$f":"[1]ACS_16_5YR_B18106_with_ann!F49","v":419},{"$f":"[1]ACS_16_5YR_B18106_with_ann!G49","v":76},{"$f":"[1]ACS_16_5YR_B18106_with_ann!H49","v":47},{"$f":"[1]ACS_16_5YR_B18106_with_ann!I49","v":26},{"$f":"[1]ACS_16_5YR_B18106_with_ann!J49","v":0},{"$f":"[1]ACS_16_5YR_B18106_with_ann!K49","v":12},{"$f":"[1]ACS_16_5YR_B18106_with_ann!L49","v":47},{"$f":"[1]ACS_16_5YR_B18106_with_ann!M49","v":26},{"$f":"[1]ACS_16_5YR_B18106_with_ann!N49","v":38},{"$f":"[1]ACS_16_5YR_B18106_with_ann!O49","v":20},{"$f":"[1]ACS_16_5YR_B18106_with_ann!P49","v":0},{"$f":"[1]ACS_16_5YR_B18106_with_ann!Q49","v":12},{"$f":"[1]ACS_16_5YR_B18106_with_ann!R49","v":38},{"$f":"[1]ACS_16_5YR_B18106_with_ann!S49","v":20},{"$f":"[1]ACS_16_5YR_B18106_with_ann!T49","v":190},{"$f":"[1]ACS_16_5YR_B18106_with_ann!U49","v":52},{"$f":"[1]ACS_16_5YR_B18106_with_ann!V49","v":16},{"$f":"[1]ACS_16_5YR_B18106_with_ann!W49","v":17},{"$f":"[1]ACS_16_5YR_B18106_with_ann!X49","v":174},{"$f":"[1]ACS_16_5YR_B18106_with_ann!Y49","v":50},{"$f":"[1]ACS_16_5YR_B18106_with_ann!Z49","v":91},{"$f":"[1]ACS_16_5YR_B18106_with_ann!AA49","v":28},{"$f":"[1]ACS_16_5YR_B18106_with_ann!AB49","v":0},{"$f":"[1]ACS_16_5YR_B18106_with_ann!AC49","v":12},{"$f":"[1]ACS_16_5YR_B18106_with_ann!AD49","v":91},{"$f":"[1]ACS_16_5YR_B18106_with_ann!AE49","v":28},{"$f":"[1]ACS_16_5YR_B18106_with_ann!AF49","v":53},{"$f":"[1]ACS_16_5YR_B18106_with_ann!AG49","v":20},{"$f":"[1]ACS_16_5YR_B18106_with_ann!AH49","v":0},{"$f":"[1]ACS_16_5YR_B18106_with_ann!AI49","v":12},{"$f":"[1]ACS_16_5YR_B18106_with_ann!AJ49","v":53},{"$f":"[1]ACS_16_5YR_B18106_with_ann!AK49","v":20},{"$f":"[1]ACS_16_5YR_B18106_with_ann!AL49","v":508},{"$f":"[1]ACS_16_5YR_B18106_with_ann!AM49","v":108},{"$f":"[1]ACS_16_5YR_B18106_with_ann!AN49","v":52},{"$f":"[1]ACS_16_5YR_B18106_with_ann!AO49","v":39},{"$f":"[1]ACS_16_5YR_B18106_with_ann!AP49","v":0},{"$f":"[1]ACS_16_5YR_B18106_with_ann!AQ49","v":12},{"$f":"[1]ACS_16_5YR_B18106_with_ann!AR49","v":52},{"$f":"[1]ACS_16_5YR_B18106_with_ann!AS49","v":39},{"$f":"[1]ACS_16_5YR_B18106_with_ann!AT49","v":89},{"$f":"[1]ACS_16_5YR_B18106_with_ann!AU49","v":40},{"$f":"[1]ACS_16_5YR_B18106_with_ann!AV49","v":0},{"$f":"[1]ACS_16_5YR_B18106_with_ann!AW49","v":12},{"$f":"[1]ACS_16_5YR_B18106_with_ann!AX49","v":89},{"$f":"[1]ACS_16_5YR_B18106_with_ann!AY49","v":40},{"$f":"[1]ACS_16_5YR_B18106_with_ann!AZ49","v":220},{"$f":"[1]ACS_16_5YR_B18106_with_ann!BA49","v":61},{"$f":"[1]ACS_16_5YR_B18106_with_ann!BB49","v":0},{"$f":"[1]ACS_16_5YR_B18106_with_ann!BC49","v":12},{"$f":"[1]ACS_16_5YR_B18106_with_ann!BD49","v":220},{"$f":"[1]ACS_16_5YR_B18106_with_ann!BE49","v":61},{"$f":"[1]ACS_16_5YR_B18106_with_ann!BF49","v":107},{"$f":"[1]ACS_16_5YR_B18106_with_ann!BG49","v":30},{"$f":"[1]ACS_16_5YR_B18106_with_ann!BH49","v":0},{"$f":"[1]ACS_16_5YR_B18106_with_ann!BI49","v":12},{"$f":"[1]ACS_16_5YR_B18106_with_ann!BJ49","v":107},{"$f":"[1]ACS_16_5YR_B18106_with_ann!BK49","v":30},{"$f":"[1]ACS_16_5YR_B18106_with_ann!BL49","v":40},{"$f":"[1]ACS_16_5YR_B18106_with_ann!BM49","v":22},{"$f":"[1]ACS_16_5YR_B18106_with_ann!BN49","v":0},{"$f":"[1]ACS_16_5YR_B18106_with_ann!BO49","v":12},{"$f":"[1]ACS_16_5YR_B18106_with_ann!BP49","v":40},{"$f":"[1]ACS_16_5YR_B18106_with_ann!BQ49","v":22}]
["06000US3300536660","0600000US3300538500","060",{"$f":"[1]ACS_16_5YR_B18106_with_ann!C50","v":"Hinsdale"},{"$f":"[1]ACS_16_5YR_B18106_with_ann!D50","v":3881},{"$f":"[1]ACS_16_5YR_B18106_with_ann!E50","v":59},{"$f":"[1]ACS_16_5YR_B18106_with_ann!F50","v":2064},{"$f":"[1]ACS_16_5YR_B18106_with_ann!G50","v":204},{"$f":"[1]ACS_16_5YR_B18106_with_ann!H50","v":277},{"$f":"[1]ACS_16_5YR_B18106_with_ann!I50","v":125},{"$f":"[1]ACS_16_5YR_B18106_with_ann!J50","v":0},{"$f":"[1]ACS_16_5YR_B18106_with_ann!K50","v":12},{"$f":"[1]ACS_16_5YR_B18106_with_ann!L50","v":277},{"$f":"[1]ACS_16_5YR_B18106_with_ann!M50","v":125},{"$f":"[1]ACS_16_5YR_B18106_with_ann!N50","v":294},{"$f":"[1]ACS_16_5YR_B18106_with_ann!O50","v":122},{"$f":"[1]ACS_16_5YR_B18106_with_ann!P50","v":0},{"$f":"[1]ACS_16_5YR_B18106_with_ann!Q50","v":12},{"$f":"[1]ACS_16_5YR_B18106_with_ann!R50","v":294},{"$f":"[1]ACS_16_5YR_B18106_with_ann!S50","v":122},{"$f":"[1]ACS_16_5YR_B18106_with_ann!T50","v":878},{"$f":"[1]ACS_16_5YR_B18106_with_ann!U50","v":165},{"$f":"[1]ACS_16_5YR_B18106_with_ann!V50","v":24},{"$f":"[1]ACS_16_5YR_B18106_with_ann!W50","v":26},{"$f":"[1]ACS_16_5YR_B18106_with_ann!X50","v":854},{"$f":"[1]ACS_16_5YR_B18106_with_ann!Y50","v":169},{"$f":"[1]ACS_16_5YR_B18106_with_ann!Z50","v":433},{"$f":"[1]ACS_16_5YR_B18106_with_ann!AA50","v":236},{"$f":"[1]ACS_16_5YR_B18106_with_ann!AB50","v":191},{"$f":"[1]ACS_16_5YR_B18106_with_ann!AC50","v":233},{"$f":"[1]ACS_16_5YR_B18106_with_ann!AD50","v":242},{"$f":"[1]ACS_16_5YR_B18106_with_ann!AE50","v":117},{"$f":"[1]ACS_16_5YR_B18106_with_ann!AF50","v":182},{"$f":"[1]ACS_16_5YR_B18106_with_ann!AG50","v":113},{"$f":"[1]ACS_16_5YR_B18106_with_ann!AH50","v":0},{"$f":"[1]ACS_16_5YR_B18106_with_ann!AI50","v":12},{"$f":"[1]ACS_16_5YR_B18106_with_ann!AJ50","v":182},{"$f":"[1]ACS_16_5YR_B18106_with_ann!AK50","v":113},{"$f":"[1]ACS_16_5YR_B18106_with_ann!AL50","v":1817},{"$f":"[1]ACS_16_5YR_B18106_with_ann!AM50","v":205},{"$f":"[1]ACS_16_5YR_B18106_with_ann!AN50","v":225},{"$f":"[1]ACS_16_5YR_B18106_with_ann!AO50","v":70},{"$f":"[1]ACS_16_5YR_B18106_with_ann!AP50","v":0},{"$f":"[1]ACS_16_5YR_B18106_with_ann!AQ50","v":12},{"$f":"[1]ACS_16_5YR_B18106_with_ann!AR50","v":225},{"$f":"[1]ACS_16_5YR_B18106_with_ann!AS50","v":70},{"$f":"[1]ACS_16_5YR_B18106_with_ann!AT50","v":306},{"$f":"[1]ACS_16_5YR_B18106_with_ann!AU50","v":147},{"$f":"[1]ACS_16_5YR_B18106_with_ann!AV50","v":0},{"$f":"[1]ACS_16_5YR_B18106_with_ann!AW50","v":12},{"$f":"[1]ACS_16_5YR_B18106_with_ann!AX50","v":306},{"$f":"[1]ACS_16_5YR_B18106_with_ann!AY50","v":147},{"$f":"[1]ACS_16_5YR_B18106_with_ann!AZ50","v":843},{"$f":"[1]ACS_16_5YR_B18106_with_ann!BA50","v":127},{"$f":"[1]ACS_16_5YR_B18106_with_ann!BB50","v":24},{"$f":"[1]ACS_16_5YR_B18106_with_ann!BC50","v":30},{"$f":"[1]ACS_16_5YR_B18106_with_ann!BD50","v":819},{"$f":"[1]ACS_16_5YR_B18106_with_ann!BE50","v":122},{"$f":"[1]ACS_16_5YR_B18106_with_ann!BF50","v":214},{"$f":"[1]ACS_16_5YR_B18106_with_ann!BG50","v":97},{"$f":"[1]ACS_16_5YR_B18106_with_ann!BH50","v":29},{"$f":"[1]ACS_16_5YR_B18106_with_ann!BI50","v":32},{"$f":"[1]ACS_16_5YR_B18106_with_ann!BJ50","v":185},{"$f":"[1]ACS_16_5YR_B18106_with_ann!BK50","v":96},{"$f":"[1]ACS_16_5YR_B18106_with_ann!BL50","v":229},{"$f":"[1]ACS_16_5YR_B18106_with_ann!BM50","v":155},{"$f":"[1]ACS_16_5YR_B18106_with_ann!BN50","v":0},{"$f":"[1]ACS_16_5YR_B18106_with_ann!BO50","v":12},{"$f":"[1]ACS_16_5YR_B18106_with_ann!BP50","v":229},{"$f":"[1]ACS_16_5YR_B18106_with_ann!BQ50","v":155}]
["06000US3300538500","0600000US3300539300","060",{"$f":"[1]ACS_16_5YR_B18106_with_ann!C51","v":"Jaffrey"},{"$f":"[1]ACS_16_5YR_B18106_with_ann!D51","v":5157},{"$f":"[1]ACS_16_5YR_B18106_with_ann!E51","v":101},{"$f":"[1]ACS_16_5YR_B18106_with_ann!F51","v":2617},{"$f":"[1]ACS_16_5YR_B18106_with_ann!G51","v":209},{"$f":"[1]ACS_16_5YR_B18106_with_ann!H51","v":566},{"$f":"[1]ACS_16_5YR_B18106_with_ann!I51","v":154},{"$f":"[1]ACS_16_5YR_B18106_with_ann!J51","v":19},{"$f":"[1]ACS_16_5YR_B18106_with_ann!K51","v":33},{"$f":"[1]ACS_16_5YR_B18106_with_ann!L51","v":547},{"$f":"[1]ACS_16_5YR_B18106_with_ann!M51","v":158},{"$f":"[1]ACS_16_5YR_B18106_with_ann!N51","v":408},{"$f":"[1]ACS_16_5YR_B18106_with_ann!O51","v":190},{"$f":"[1]ACS_16_5YR_B18106_with_ann!P51","v":0},{"$f":"[1]ACS_16_5YR_B18106_with_ann!Q51","v":17},{"$f":"[1]ACS_16_5YR_B18106_with_ann!R51","v":408},{"$f":"[1]ACS_16_5YR_B18106_with_ann!S51","v":190},{"$f":"[1]ACS_16_5YR_B18106_with_ann!T51","v":1310},{"$f":"[1]ACS_16_5YR_B18106_with_ann!U51","v":200},{"$f":"[1]ACS_16_5YR_B18106_with_ann!V51","v":24},{"$f":"[1]ACS_16_5YR_B18106_with_ann!W51","v":38},{"$f":"[1]ACS_16_5YR_B18106_with_ann!X51","v":1286},{"$f":"[1]ACS_16_5YR_B18106_with_ann!Y51","v":192},{"$f":"[1]ACS_16_5YR_B18106_with_ann!Z51","v":159},{"$f":"[1]ACS_16_5YR_B18106_with_ann!AA51","v":87},{"$f":"[1]ACS_16_5YR_B18106_with_ann!AB51","v":0},{"$f":"[1]ACS_16_5YR_B18106_with_ann!AC51","v":17},{"$f":"[1]ACS_16_5YR_B18106_with_ann!AD51","v":159},{"$f":"[1]ACS_16_5YR_B18106_with_ann!AE51","v":87},{"$f":"[1]ACS_16_5YR_B18106_with_ann!AF51","v":174},{"$f":"[1]ACS_16_5YR_B18106_with_ann!AG51","v":110},{"$f":"[1]ACS_16_5YR_B18106_with_ann!AH51","v":33},{"$f":"[1]ACS_16_5YR_B18106_with_ann!AI51","v":55},{"$f":"[1]ACS_16_5YR_B18106_with_ann!AJ51","v":141},{"$f":"[1]ACS_16_5YR_B18106_with_ann!AK51","v":98},{"$f":"[1]ACS_16_5YR_B18106_with_ann!AL51","v":2540},{"$f":"[1]ACS_16_5YR_B18106_with_ann!AM51","v":218},{"$f":"[1]ACS_16_5YR_B18106_with_ann!AN51","v":617},{"$f":"[1]ACS_16_5YR_B18106_with_ann!AO51","v":129},{"$f":"[1]ACS_16_5YR_B18106_with_ann!AP51","v":21},{"$f":"[1]ACS_16_5YR_B18106_with_ann!AQ51","v":33},{"$f":"[1]ACS_16_5YR_B18106_with_ann!AR51","v":596},{"$f":"[1]ACS_16_5YR_B18106_with_ann!AS51","v":124},{"$f":"[1]ACS_16_5YR_B18106_with_ann!AT51","v":307},{"$f":"[1]ACS_16_5YR_B18106_with_ann!AU51","v":170},{"$f":"[1]ACS_16_5YR_B18106_with_ann!AV51","v":0},{"$f":"[1]ACS_16_5YR_B18106_with_ann!AW51","v":17},{"$f":"[1]ACS_16_5YR_B18106_with_ann!AX51","v":307},{"$f":"[1]ACS_16_5YR_B18106_with_ann!AY51","v":170},{"$f":"[1]ACS_16_5YR_B18106_with_ann!AZ51","v":1144},{"$f":"[1]ACS_16_5YR_B18106_with_ann!BA51","v":160},{"$f":"[1]ACS_16_5YR_B18106_with_ann!BB51","v":67},{"$f":"[1]ACS_16_5YR_B18106_with_ann!BC51","v":77},{"$f":"[1]ACS_16_5YR_B18106_with_ann!BD51","v":1077},{"$f":"[1]ACS_16_5YR_B18106_with_ann!BE51","v":157},{"$f":"[1]ACS_16_5YR_B18106_with_ann!BF51","v":276},{"$f":"[1]ACS_16_5YR_B18106_with_ann!BG51","v":101},{"$f":"[1]ACS_16_5YR_B18106_with_ann!BH51","v":0},{"$f":"[1]ACS_16_5YR_B18106_with_ann!BI51","v":17},{"$f":"[1]ACS_16_5YR_B18106_with_ann!BJ51","v":276},{"$f":"[1]ACS_16_5YR_B18106_with_ann!BK51","v":101},{"$f":"[1]ACS_16_5YR_B18106_with_ann!BL51","v":196},{"$f":"[1]ACS_16_5YR_B18106_with_ann!BM51","v":97},{"$f":"[1]ACS_16_5YR_B18106_with_ann!BN51","v":49},{"$f":"[1]ACS_16_5YR_B18106_with_ann!BO51","v":63},{"$f":"[1]ACS_16_5YR_B18106_with_ann!BP51","v":147},{"$f":"[1]ACS_16_5YR_B18106_with_ann!BQ51","v":84}]
["06000US3300539300","0600000US3300545460","060",{"$f":"[1]ACS_16_5YR_B18106_with_ann!C52","v":"Keene"},{"$f":"[1]ACS_16_5YR_B18106_with_ann!D52","v":21557},{"$f":"[1]ACS_16_5YR_B18106_with_ann!E52","v":165},{"$f":"[1]ACS_16_5YR_B18106_with_ann!F52","v":10500},{"$f":"[1]ACS_16_5YR_B18106_with_ann!G52","v":345},{"$f":"[1]ACS_16_5YR_B18106_with_ann!H52","v":1379},{"$f":"[1]ACS_16_5YR_B18106_with_ann!I52","v":180},{"$f":"[1]ACS_16_5YR_B18106_with_ann!J52","v":21},{"$f":"[1]ACS_16_5YR_B18106_with_ann!K52","v":31},{"$f":"[1]ACS_16_5YR_B18106_with_ann!L52","v":1358},{"$f":"[1]ACS_16_5YR_B18106_with_ann!M52","v":177},{"$f":"[1]ACS_16_5YR_B18106_with_ann!N52","v":3702},{"$f":"[1]ACS_16_5YR_B18106_with_ann!O52","v":372},{"$f":"[1]ACS_16_5YR_B18106_with_ann!P52","v":10},{"$f":"[1]ACS_16_5YR_B18106_with_ann!Q52","v":15},{"$f":"[1]ACS_16_5YR_B18106_with_ann!R52","v":3692},{"$f":"[1]ACS_16_5YR_B18106_with_ann!S52","v":372},{"$f":"[1]ACS_16_5YR_B18106_with_ann!T52","v":3790},{"$f":"[1]ACS_16_5YR_B18106_with_ann!U52","v":283},{"$f":"[1]ACS_16_5YR_B18106_with_ann!V52","v":15},{"$f":"[1]ACS_16_5YR_B18106_with_ann!W52","v":18},{"$f":"[1]ACS_16_5YR_B18106_with_ann!X52","v":3775},{"$f":"[1]ACS_16_5YR_B18106_with_ann!Y52","v":284},{"$f":"[1]ACS_16_5YR_B18106_with_ann!Z52","v":899},{"$f":"[1]ACS_16_5YR_B18106_with_ann!AA52","v":135},{"$f":"[1]ACS_16_5YR_B18106_with_ann!AB52","v":0},{"$f":"[1]ACS_16_5YR_B18106_with_ann!AC52","v":22},{"$f":"[1]ACS_16_5YR_B18106_with_ann!AD52","v":899},{"$f":"[1]ACS_16_5YR_B18106_with_ann!AE52","v":135},{"$f":"[1]ACS_16_5YR_B18106_with_ann!AF52","v":730},{"$f":"[1]ACS_16_5YR_B18106_with_ann!AG52","v":148},{"$f":"[1]ACS_16_5YR_B18106_with_ann!AH52","v":65},{"$f":"[1]ACS_16_5YR_B18106_with_ann!AI52","v":48},{"$f":"[1]ACS_16_5YR_B18106_with_ann!AJ52","v":665},{"$f":"[1]ACS_16_5YR_B18106_with_ann!AK52","v":147},{"$f":"[1]ACS_16_5YR_B18106_with_ann!AL52","v":11057},{"$f":"[1]ACS_16_5YR_B18106_with_ann!AM52","v":383},{"$f":"[1]ACS_16_5YR_B18106_with_ann!AN52","v":1041},{"$f":"[1]ACS_16_5YR_B18106_with_ann!AO52","v":198},{"$f":"[1]ACS_16_5YR_B18106_with_ann!AP52","v":0},{"$f":"[1]ACS_16_5YR_B18106_with_ann!AQ52","v":22},{"$f":"[1]ACS_16_5YR_B18106_with_ann!AR52","v":1041},{"$f":"[1]ACS_16_5YR_B18106_with_ann!AS52","v":198},{"$f":"[1]ACS_16_5YR_B18106_with_ann!AT52","v":3991},{"$f":"[1]ACS_16_5YR_B18106_with_ann!AU52","v":285},{"$f":"[1]ACS_16_5YR_B18106_with_ann!AV52","v":42},{"$f":"[1]ACS_16_5YR_B18106_with_ann!AW52","v":55},{"$f":"[1]ACS_16_5YR_B18106_with_ann!AX52","v":3949},{"$f":"[1]ACS_16_5YR_B18106_with_ann!AY52","v":290},{"$f":"[1]ACS_16_5YR_B18106_with_ann!AZ52","v":3688},{"$f":"[1]ACS_16_5YR_B18106_with_ann!BA52","v":301},{"$f":"[1]ACS_16_5YR_B18106_with_ann!BB52","v":88},{"$f":"[1]ACS_16_5YR_B18106_with_ann!BC52","v":75},{"$f":"[1]ACS_16_5YR_B18106_with_ann!BD52","v":3600},{"$f":"[1]ACS_16_5YR_B18106_with_ann!BE52","v":292},{"$f":"[1]ACS_16_5YR_B18106_with_ann!BF52","v":1300},{"$f":"[1]ACS_16_5YR_B18106_with_ann!BG52","v":181},{"$f":"[1]ACS_16_5YR_B18106_with_ann!BH52","v":40},{"$f":"[1]ACS_16_5YR_B18106_with_ann!BI52","v":36},{"$f":"[1]ACS_16_5YR_B18106_with_ann!BJ52","v":1260},{"$f":"[1]ACS_16_5YR_B18106_with_ann!BK52","v":173},{"$f":"[1]ACS_16_5YR_B18106_with_ann!BL52","v":1037},{"$f":"[1]ACS_16_5YR_B18106_with_ann!BM52","v":197},{"$f":"[1]ACS_16_5YR_B18106_with_ann!BN52","v":36},{"$f":"[1]ACS_16_5YR_B18106_with_ann!BO52","v":37},{"$f":"[1]ACS_16_5YR_B18106_with_ann!BP52","v":1001},{"$f":"[1]ACS_16_5YR_B18106_with_ann!BQ52","v":198}]
["06000US3300545460","0600000US3300545700","060",{"$f":"[1]ACS_16_5YR_B18106_with_ann!C53","v":"Marlborough"},{"$f":"[1]ACS_16_5YR_B18106_with_ann!D53","v":2037},{"$f":"[1]ACS_16_5YR_B18106_with_ann!E53","v":334},{"$f":"[1]ACS_16_5YR_B18106_with_ann!F53","v":929},{"$f":"[1]ACS_16_5YR_B18106_with_ann!G53","v":184},{"$f":"[1]ACS_16_5YR_B18106_with_ann!H53","v":129},{"$f":"[1]ACS_16_5YR_B18106_with_ann!I53","v":64},{"$f":"[1]ACS_16_5YR_B18106_with_ann!J53","v":0},{"$f":"[1]ACS_16_5YR_B18106_with_ann!K53","v":12},{"$f":"[1]ACS_16_5YR_B18106_with_ann!L53","v":129},{"$f":"[1]ACS_16_5YR_B18106_with_ann!M53","v":64},{"$f":"[1]ACS_16_5YR_B18106_with_ann!N53","v":175},{"$f":"[1]ACS_16_5YR_B18106_with_ann!O53","v":92},{"$f":"[1]ACS_16_5YR_B18106_with_ann!P53","v":0},{"$f":"[1]ACS_16_5YR_B18106_with_ann!Q53","v":12},{"$f":"[1]ACS_16_5YR_B18106_with_ann!R53","v":175},{"$f":"[1]ACS_16_5YR_B18106_with_ann!S53","v":92},{"$f":"[1]ACS_16_5YR_B18106_with_ann!T53","v":440},{"$f":"[1]ACS_16_5YR_B18106_with_ann!U53","v":108},{"$f":"[1]ACS_16_5YR_B18106_with_ann!V53","v":9},{"$f":"[1]ACS_16_5YR_B18106_with_ann!W53","v":10},{"$f":"[1]ACS_16_5YR_B18106_with_ann!X53","v":431},{"$f":"[1]ACS_16_5YR_B18106_with_ann!Y53","v":108},{"$f":"[1]ACS_16_5YR_B18106_with_ann!Z53","v":83},{"$f":"[1]ACS_16_5YR_B18106_with_ann!AA53","v":37},{"$f":"[1]ACS_16_5YR_B18106_with_ann!AB53","v":5},{"$f":"[1]ACS_16_5YR_B18106_with_ann!AC53","v":8},{"$f":"[1]ACS_16_5YR_B18106_with_ann!AD53","v":78},{"$f":"[1]ACS_16_5YR_B18106_with_ann!AE53","v":37},{"$f":"[1]ACS_16_5YR_B18106_with_ann!AF53","v":102},{"$f":"[1]ACS_16_5YR_B18106_with_ann!AG53","v":43},{"$f":"[1]ACS_16_5YR_B18106_with_ann!AH53","v":1},{"$f":"[1]ACS_16_5YR_B18106_with_ann!AI53","v":4},{"$f":"[1]ACS_16_5YR_B18106_with_ann!AJ53","v":101},{"$f":"[1]ACS_16_5YR_B18106_with_ann!AK53","v":43},{"$f":"[1]ACS_16_5YR_B18106_with_ann!AL53","v":1108},{"$f":"[1]ACS_16_5YR_B18106_with_ann!AM53","v":189},{"$f":"[1]ACS_16_5YR_B18106_with_ann!AN53","v":198},{"$f":"[1]ACS_16_5YR_B18106_with_ann!AO53","v":77},{"$f":"[1]ACS_16_5YR_B18106_with_ann!AP53","v":0},{"$f":"[1]ACS_16_5YR_B18106_with_ann!AQ53","v":12},{"$f":"[1]ACS_16_5YR_B18106_with_ann!AR53","v":198},{"$f":"[1]ACS_16_5YR_B18106_with_ann!AS53","v":77},{"$f":"[1]ACS_16_5YR_B18106_with_ann!AT53","v":117},{"$f":"[1]ACS_16_5YR_B18106_with_ann!AU53","v":53},{"$f":"[1]ACS_16_5YR_B18106_with_ann!AV53","v":0},{"$f":"[1]ACS_16_5YR_B18106_with_ann!AW53","v":12},{"$f":"[1]ACS_16_5YR_B18106_with_ann!AX53","v":117},{"$f":"[1]ACS_16_5YR_B18106_with_ann!AY53","v":53},{"$f":"[1]ACS_16_5YR_B18106_with_ann!AZ53","v":586},{"$f":"[1]ACS_16_5YR_B18106_with_ann!BA53","v":139},{"$f":"[1]ACS_16_5YR_B18106_with_ann!BB53","v":41},{"$f":"[1]ACS_16_5YR_B18106_with_ann!BC53","v":41},{"$f":"[1]ACS_16_5YR_B18106_with_ann!BD53","v":545},{"$f":"[1]ACS_16_5YR_B18106_with_ann!BE53","v":127},{"$f":"[1]ACS_16_5YR_B18106_with_ann!BF53","v":120},{"$f":"[1]ACS_16_5YR_B18106_with_ann!BG53","v":51},{"$f":"[1]ACS_16_5YR_B18106_with_ann!BH53","v":11},{"$f":"[1]ACS_16_5YR_B18106_with_ann!BI53","v":12},{"$f":"[1]ACS_16_5YR_B18106_with_ann!BJ53","v":109},{"$f":"[1]ACS_16_5YR_B18106_with_ann!BK53","v":48},{"$f":"[1]ACS_16_5YR_B18106_with_ann!BL53","v":87},{"$f":"[1]ACS_16_5YR_B18106_with_ann!BM53","v":42},{"$f":"[1]ACS_16_5YR_B18106_with_ann!BN53","v":0},{"$f":"[1]ACS_16_5YR_B18106_with_ann!BO53","v":12},{"$f":"[1]ACS_16_5YR_B18106_with_ann!BP53","v":87},{"$f":"[1]ACS_16_5YR_B18106_with_ann!BQ53","v":42}]
["06000US3300545700","0600000US3300550580","060",{"$f":"[1]ACS_16_5YR_B18106_with_ann!C54","v":"Marlow"},{"$f":"[1]ACS_16_5YR_B18106_with_ann!D54","v":761},{"$f":"[1]ACS_16_5YR_B18106_with_ann!E54","v":165},{"$f":"[1]ACS_16_5YR_B18106_with_ann!F54","v":341},{"$f":"[1]ACS_16_5YR_B18106_with_ann!G54","v":73},{"$f":"[1]ACS_16_5YR_B18106_with_ann!H54","v":37},{"$f":"[1]ACS_16_5YR_B18106_with_ann!I54","v":23},{"$f":"[1]ACS_16_5YR_B18106_with_ann!J54","v":2},{"$f":"[1]ACS_16_5YR_B18106_with_ann!K54","v":3},{"$f":"[1]ACS_16_5YR_B18106_with_ann!L54","v":35},{"$f":"[1]ACS_16_5YR_B18106_with_ann!M54","v":23},{"$f":"[1]ACS_16_5YR_B18106_with_ann!N54","v":53},{"$f":"[1]ACS_16_5YR_B18106_with_ann!O54","v":32},{"$f":"[1]ACS_16_5YR_B18106_with_ann!P54","v":0},{"$f":"[1]ACS_16_5YR_B18106_with_ann!Q54","v":12},{"$f":"[1]ACS_16_5YR_B18106_with_ann!R54","v":53},{"$f":"[1]ACS_16_5YR_B18106_with_ann!S54","v":32},{"$f":"[1]ACS_16_5YR_B18106_with_ann!T54","v":153},{"$f":"[1]ACS_16_5YR_B18106_with_ann!U54","v":41},{"$f":"[1]ACS_16_5YR_B18106_with_ann!V54","v":2},{"$f":"[1]ACS_16_5YR_B18106_with_ann!W54","v":3},{"$f":"[1]ACS_16_5YR_B18106_with_ann!X54","v":151},{"$f":"[1]ACS_16_5YR_B18106_with_ann!Y54","v":41},{"$f":"[1]ACS_16_5YR_B18106_with_ann!Z54","v":75},{"$f":"[1]ACS_16_5YR_B18106_with_ann!AA54","v":38},{"$f":"[1]ACS_16_5YR_B18106_with_ann!AB54","v":0},{"$f":"[1]ACS_16_5YR_B18106_with_ann!AC54","v":12},{"$f":"[1]ACS_16_5YR_B18106_with_ann!AD54","v":75},{"$f":"[1]ACS_16_5YR_B18106_with_ann!AE54","v":38},{"$f":"[1]ACS_16_5YR_B18106_with_ann!AF54","v":23},{"$f":"[1]ACS_16_5YR_B18106_with_ann!AG54","v":13},{"$f":"[1]ACS_16_5YR_B18106_with_ann!AH54","v":2},{"$f":"[1]ACS_16_5YR_B18106_with_ann!AI54","v":4},{"$f":"[1]ACS_16_5YR_B18106_with_ann!AJ54","v":21},{"$f":"[1]ACS_16_5YR_B18106_with_ann!AK54","v":12},{"$f":"[1]ACS_16_5YR_B18106_with_ann!AL54","v":420},{"$f":"[1]ACS_16_5YR_B18106_with_ann!AM54","v":108},{"$f":"[1]ACS_16_5YR_B18106_with_ann!AN54","v":116},{"$f":"[1]ACS_16_5YR_B18106_with_ann!AO54","v":56},{"$f":"[1]ACS_16_5YR_B18106_with_ann!AP54","v":0},{"$f":"[1]ACS_16_5YR_B18106_with_ann!AQ54","v":12},{"$f":"[1]ACS_16_5YR_B18106_with_ann!AR54","v":116},{"$f":"[1]ACS_16_5YR_B18106_with_ann!AS54","v":56},{"$f":"[1]ACS_16_5YR_B18106_with_ann!AT54","v":72},{"$f":"[1]ACS_16_5YR_B18106_with_ann!AU54","v":40},{"$f":"[1]ACS_16_5YR_B18106_with_ann!AV54","v":0},{"$f":"[1]ACS_16_5YR_B18106_with_ann!AW54","v":12},{"$f":"[1]ACS_16_5YR_B18106_with_ann!AX54","v":72},{"$f":"[1]ACS_16_5YR_B18106_with_ann!AY54","v":40},{"$f":"[1]ACS_16_5YR_B18106_with_ann!AZ54","v":132},{"$f":"[1]ACS_16_5YR_B18106_with_ann!BA54","v":39},{"$f":"[1]ACS_16_5YR_B18106_with_ann!BB54","v":5},{"$f":"[1]ACS_16_5YR_B18106_with_ann!BC54","v":6},{"$f":"[1]ACS_16_5YR_B18106_with_ann!BD54","v":127},{"$f":"[1]ACS_16_5YR_B18106_with_ann!BE54","v":38},{"$f":"[1]ACS_16_5YR_B18106_with_ann!BF54","v":67},{"$f":"[1]ACS_16_5YR_B18106_with_ann!BG54","v":38},{"$f":"[1]ACS_16_5YR_B18106_with_ann!BH54","v":0},{"$f":"[1]ACS_16_5YR_B18106_with_ann!BI54","v":12},{"$f":"[1]ACS_16_5YR_B18106_with_ann!BJ54","v":67},{"$f":"[1]ACS_16_5YR_B18106_with_ann!BK54","v":38},{"$f":"[1]ACS_16_5YR_B18106_with_ann!BL54","v":33},{"$f":"[1]ACS_16_5YR_B18106_with_ann!BM54","v":18},{"$f":"[1]ACS_16_5YR_B18106_with_ann!BN54","v":3},{"$f":"[1]ACS_16_5YR_B18106_with_ann!BO54","v":4},{"$f":"[1]ACS_16_5YR_B18106_with_ann!BP54","v":30},{"$f":"[1]ACS_16_5YR_B18106_with_ann!BQ54","v":18}]
["06000US3300550580","0600000US3300564420","060",{"$f":"[1]ACS_16_5YR_B18106_with_ann!C55","v":"Nelson"},{"$f":"[1]ACS_16_5YR_B18106_with_ann!D55","v":528},{"$f":"[1]ACS_16_5YR_B18106_with_ann!E55","v":103},{"$f":"[1]ACS_16_5YR_B18106_with_ann!F55","v":237},{"$f":"[1]ACS_16_5YR_B18106_with_ann!G55","v":48},{"$f":"[1]ACS_16_5YR_B18106_with_ann!H55","v":17},{"$f":"[1]ACS_16_5YR_B18106_with_ann!I55","v":12},{"$f":"[1]ACS_16_5YR_B18106_with_ann!J55","v":0},{"$f":"[1]ACS_16_5YR_B18106_with_ann!K55","v":12},{"$f":"[1]ACS_16_5YR_B18106_with_ann!L55","v":17},{"$f":"[1]ACS_16_5YR_B18106_with_ann!M55","v":12},{"$f":"[1]ACS_16_5YR_B18106_with_ann!N55","v":25},{"$f":"[1]ACS_16_5YR_B18106_with_ann!O55","v":15},{"$f":"[1]ACS_16_5YR_B18106_with_ann!P55","v":0},{"$f":"[1]ACS_16_5YR_B18106_with_ann!Q55","v":12},{"$f":"[1]ACS_16_5YR_B18106_with_ann!R55","v":25},{"$f":"[1]ACS_16_5YR_B18106_with_ann!S55","v":15},{"$f":"[1]ACS_16_5YR_B18106_with_ann!T55","v":116},{"$f":"[1]ACS_16_5YR_B18106_with_ann!U55","v":30},{"$f":"[1]ACS_16_5YR_B18106_with_ann!V55","v":11},{"$f":"[1]ACS_16_5YR_B18106_with_ann!W55","v":14},{"$f":"[1]ACS_16_5YR_B18106_with_ann!X55","v":105},{"$f":"[1]ACS_16_5YR_B18106_with_ann!Y55","v":28},{"$f":"[1]ACS_16_5YR_B18106_with_ann!Z55","v":59},{"$f":"[1]ACS_16_5YR_B18106_with_ann!AA55","v":21},{"$f":"[1]ACS_16_5YR_B18106_with_ann!AB55","v":0},{"$f":"[1]ACS_16_5YR_B18106_with_ann!AC55","v":12},{"$f":"[1]ACS_16_5YR_B18106_with_ann!AD55","v":59},{"$f":"[1]ACS_16_5YR_B18106_with_ann!AE55","v":21},{"$f":"[1]ACS_16_5YR_B18106_with_ann!AF55","v":20},{"$f":"[1]ACS_16_5YR_B18106_with_ann!AG55","v":10},{"$f":"[1]ACS_16_5YR_B18106_with_ann!AH55","v":2},{"$f":"[1]ACS_16_5YR_B18106_with_ann!AI55","v":3},{"$f":"[1]ACS_16_5YR_B18106_with_ann!AJ55","v":18},{"$f":"[1]ACS_16_5YR_B18106_with_ann!AK55","v":10},{"$f":"[1]ACS_16_5YR_B18106_with_ann!AL55","v":291},{"$f":"[1]ACS_16_5YR_B18106_with_ann!AM55","v":67},{"$f":"[1]ACS_16_5YR_B18106_with_ann!AN55","v":46},{"$f":"[1]ACS_16_5YR_B18106_with_ann!AO55","v":30},{"$f":"[1]ACS_16_5YR_B18106_with_ann!AP55","v":0},{"$f":"[1]ACS_16_5YR_B18106_with_ann!AQ55","v":12},{"$f":"[1]ACS_16_5YR_B18106_with_ann!AR55","v":46},{"$f":"[1]ACS_16_5YR_B18106_with_ann!AS55","v":30},{"$f":"[1]ACS_16_5YR_B18106_with_ann!AT55","v":27},{"$f":"[1]ACS_16_5YR_B18106_with_ann!AU55","v":18},{"$f":"[1]ACS_16_5YR_B18106_with_ann!AV55","v":0},{"$f":"[1]ACS_16_5YR_B18106_with_ann!AW55","v":12},{"$f":"[1]ACS_16_5YR_B18106_with_ann!AX55","v":27},{"$f":"[1]ACS_16_5YR_B18106_with_ann!AY55","v":18},{"$f":"[1]ACS_16_5YR_B18106_with_ann!AZ55","v":140},{"$f":"[1]ACS_16_5YR_B18106_with_ann!BA55","v":38},{"$f":"[1]ACS_16_5YR_B18106_with_ann!BB55","v":0},{"$f":"[1]ACS_16_5YR_B18106_with_ann!BC55","v":12},{"$f":"[1]ACS_16_5YR_B18106_with_ann!BD55","v":140},{"$f":"[1]ACS_16_5YR_B18106_with_ann!BE55","v":38},{"$f":"[1]ACS_16_5YR_B18106_with_ann!BF55","v":48},{"$f":"[1]ACS_16_5YR_B18106_with_ann!BG55","v":17},{"$f":"[1]ACS_16_5YR_B18106_with_ann!BH55","v":2},{"$f":"[1]ACS_16_5YR_B18106_with_ann!BI55","v":3},{"$f":"[1]ACS_16_5YR_B18106_with_ann!BJ55","v":46},{"$f":"[1]ACS_16_5YR_B18106_with_ann!BK55","v":17},{"$f":"[1]ACS_16_5YR_B18106_with_ann!BL55","v":30},{"$f":"[1]ACS_16_5YR_B18106_with_ann!BM55","v":21},{"$f":"[1]ACS_16_5YR_B18106_with_ann!BN55","v":2},{"$f":"[1]ACS_16_5YR_B18106_with_ann!BO55","v":6},{"$f":"[1]ACS_16_5YR_B18106_with_ann!BP55","v":28},{"$f":"[1]ACS_16_5YR_B18106_with_ann!BQ55","v":18}]
["06000US3300564420","0600000US3300564580","060",{"$f":"[1]ACS_16_5YR_B18106_with_ann!C56","v":"Richmond"},{"$f":"[1]ACS_16_5YR_B18106_with_ann!D56","v":1056},{"$f":"[1]ACS_16_5YR_B18106_with_ann!E56","v":234},{"$f":"[1]ACS_16_5YR_B18106_with_ann!F56","v":557},{"$f":"[1]ACS_16_5YR_B18106_with_ann!G56","v":149},{"$f":"[1]ACS_16_5YR_B18106_with_ann!H56","v":82},{"$f":"[1]ACS_16_5YR_B18106_with_ann!I56","v":37},{"$f":"[1]ACS_16_5YR_B18106_with_ann!J56","v":0},{"$f":"[1]ACS_16_5YR_B18106_with_ann!K56","v":12},{"$f":"[1]ACS_16_5YR_B18106_with_ann!L56","v":82},{"$f":"[1]ACS_16_5YR_B18106_with_ann!M56","v":37},{"$f":"[1]ACS_16_5YR_B18106_with_ann!N56","v":110},{"$f":"[1]ACS_16_5YR_B18106_with_ann!O56","v":61},{"$f":"[1]ACS_16_5YR_B18106_with_ann!P56","v":3},{"$f":"[1]ACS_16_5YR_B18106_with_ann!Q56","v":6},{"$f":"[1]ACS_16_5YR_B18106_with_ann!R56","v":107},{"$f":"[1]ACS_16_5YR_B18106_with_ann!S56","v":60},{"$f":"[1]ACS_16_5YR_B18106_with_ann!T56","v":192},{"$f":"[1]ACS_16_5YR_B18106_with_ann!U56","v":53},{"$f":"[1]ACS_16_5YR_B18106_with_ann!V56","v":0},{"$f":"[1]ACS_16_5YR_B18106_with_ann!W56","v":12},{"$f":"[1]ACS_16_5YR_B18106_with_ann!X56","v":192},{"$f":"[1]ACS_16_5YR_B18106_with_ann!Y56","v":53},{"$f":"[1]ACS_16_5YR_B18106_with_ann!Z56","v":145},{"$f":"[1]ACS_16_5YR_B18106_with_ann!AA56","v":100},{"$f":"[1]ACS_16_5YR_B18106_with_ann!AB56","v":2},{"$f":"[1]ACS_16_5YR_B18106_with_ann!AC56","v":3},{"$f":"[1]ACS_16_5YR_B18106_with_ann!AD56","v":143},{"$f":"[1]ACS_16_5YR_B18106_with_ann!AE56","v":100},{"$f":"[1]ACS_16_5YR_B18106_with_ann!AF56","v":28},{"$f":"[1]ACS_16_5YR_B18106_with_ann!AG56","v":16},{"$f":"[1]ACS_16_5YR_B18106_with_ann!AH56","v":10},{"$f":"[1]ACS_16_5YR_B18106_with_ann!AI56","v":13},{"$f":"[1]ACS_16_5YR_B18106_with_ann!AJ56","v":18},{"$f":"[1]ACS_16_5YR_B18106_with_ann!AK56","v":12},{"$f":"[1]ACS_16_5YR_B18106_with_ann!AL56","v":499},{"$f":"[1]ACS_16_5YR_B18106_with_ann!AM56","v":117},{"$f":"[1]ACS_16_5YR_B18106_with_ann!AN56","v":58},{"$f":"[1]ACS_16_5YR_B18106_with_ann!AO56","v":27},{"$f":"[1]ACS_16_5YR_B18106_with_ann!AP56","v":0},{"$f":"[1]ACS_16_5YR_B18106_with_ann!AQ56","v":12},{"$f":"[1]ACS_16_5YR_B18106_with_ann!AR56","v":58},{"$f":"[1]ACS_16_5YR_B18106_with_ann!AS56","v":27},{"$f":"[1]ACS_16_5YR_B18106_with_ann!AT56","v":69},{"$f":"[1]ACS_16_5YR_B18106_with_ann!AU56","v":47},{"$f":"[1]ACS_16_5YR_B18106_with_ann!AV56","v":0},{"$f":"[1]ACS_16_5YR_B18106_with_ann!AW56","v":12},{"$f":"[1]ACS_16_5YR_B18106_with_ann!AX56","v":69},{"$f":"[1]ACS_16_5YR_B18106_with_ann!AY56","v":47},{"$f":"[1]ACS_16_5YR_B18106_with_ann!AZ56","v":226},{"$f":"[1]ACS_16_5YR_B18106_with_ann!BA56","v":60},{"$f":"[1]ACS_16_5YR_B18106_with_ann!BB56","v":4},{"$f":"[1]ACS_16_5YR_B18106_with_ann!BC56","v":6},{"$f":"[1]ACS_16_5YR_B18106_with_ann!BD56","v":222},{"$f":"[1]ACS_16_5YR_B18106_with_ann!BE56","v":61},{"$f":"[1]ACS_16_5YR_B18106_with_ann!BF56","v":69},{"$f":"[1]ACS_16_5YR_B18106_with_ann!BG56","v":30},{"$f":"[1]ACS_16_5YR_B18106_with_ann!BH56","v":0},{"$f":"[1]ACS_16_5YR_B18106_with_ann!BI56","v":12},{"$f":"[1]ACS_16_5YR_B18106_with_ann!BJ56","v":69},{"$f":"[1]ACS_16_5YR_B18106_with_ann!BK56","v":30},{"$f":"[1]ACS_16_5YR_B18106_with_ann!BL56","v":77},{"$f":"[1]ACS_16_5YR_B18106_with_ann!BM56","v":40},{"$f":"[1]ACS_16_5YR_B18106_with_ann!BN56","v":0},{"$f":"[1]ACS_16_5YR_B18106_with_ann!BO56","v":12},{"$f":"[1]ACS_16_5YR_B18106_with_ann!BP56","v":77},{"$f":"[1]ACS_16_5YR_B18106_with_ann!BQ56","v":40}]
["06000US3300564580","0600000US3300565700","060",{"$f":"[1]ACS_16_5YR_B18106_with_ann!C57","v":"Rindge"},{"$f":"[1]ACS_16_5YR_B18106_with_ann!D57","v":6183},{"$f":"[1]ACS_16_5YR_B18106_with_ann!E57","v":121},{"$f":"[1]ACS_16_5YR_B18106_with_ann!F57","v":3018},{"$f":"[1]ACS_16_5YR_B18106_with_ann!G57","v":206},{"$f":"[1]ACS_16_5YR_B18106_with_ann!H57","v":470},{"$f":"[1]ACS_16_5YR_B18106_with_ann!I57","v":153},{"$f":"[1]ACS_16_5YR_B18106_with_ann!J57","v":0},{"$f":"[1]ACS_16_5YR_B18106_with_ann!K57","v":17},{"$f":"[1]ACS_16_5YR_B18106_with_ann!L57","v":470},{"$f":"[1]ACS_16_5YR_B18106_with_ann!M57","v":153},{"$f":"[1]ACS_16_5YR_B18106_with_ann!N57","v":941},{"$f":"[1]ACS_16_5YR_B18106_with_ann!O57","v":135},{"$f":"[1]ACS_16_5YR_B18106_with_ann!P57","v":0},{"$f":"[1]ACS_16_5YR_B18106_with_ann!Q57","v":17},{"$f":"[1]ACS_16_5YR_B18106_with_ann!R57","v":941},{"$f":"[1]ACS_16_5YR_B18106_with_ann!S57","v":135},{"$f":"[1]ACS_16_5YR_B18106_with_ann!T57","v":983},{"$f":"[1]ACS_16_5YR_B18106_with_ann!U57","v":154},{"$f":"[1]ACS_16_5YR_B18106_with_ann!V57","v":11},{"$f":"[1]ACS_16_5YR_B18106_with_ann!W57","v":19},{"$f":"[1]ACS_16_5YR_B18106_with_ann!X57","v":972},{"$f":"[1]ACS_16_5YR_B18106_with_ann!Y57","v":152},{"$f":"[1]ACS_16_5YR_B18106_with_ann!Z57","v":428},{"$f":"[1]ACS_16_5YR_B18106_with_ann!AA57","v":106},{"$f":"[1]ACS_16_5YR_B18106_with_ann!AB57","v":0},{"$f":"[1]ACS_16_5YR_B18106_with_ann!AC57","v":17},{"$f":"[1]ACS_16_5YR_B18106_with_ann!AD57","v":428},{"$f":"[1]ACS_16_5YR_B18106_with_ann!AE57","v":106},{"$f":"[1]ACS_16_5YR_B18106_with_ann!AF57","v":196},{"$f":"[1]ACS_16_5YR_B18106_with_ann!AG57","v":97},{"$f":"[1]ACS_16_5YR_B18106_with_ann!AH57","v":0},{"$f":"[1]ACS_16_5YR_B18106_with_ann!AI57","v":17},{"$f":"[1]ACS_16_5YR_B18106_with_ann!AJ57","v":196},{"$f":"[1]ACS_16_5YR_B18106_with_ann!AK57","v":97},{"$f":"[1]ACS_16_5YR_B18106_with_ann!AL57","v":3165},{"$f":"[1]ACS_16_5YR_B18106_with_ann!AM57","v":194},{"$f":"[1]ACS_16_5YR_B18106_with_ann!AN57","v":443},{"$f":"[1]ACS_16_5YR_B18106_with_ann!AO57","v":150},{"$f":"[1]ACS_16_5YR_B18106_with_ann!AP57","v":0},{"$f":"[1]ACS_16_5YR_B18106_with_ann!AQ57","v":17},{"$f":"[1]ACS_16_5YR_B18106_with_ann!AR57","v":443},{"$f":"[1]ACS_16_5YR_B18106_with_ann!AS57","v":150},{"$f":"[1]ACS_16_5YR_B18106_with_ann!AT57","v":1002},{"$f":"[1]ACS_16_5YR_B18106_with_ann!AU57","v":156},{"$f":"[1]ACS_16_5YR_B18106_with_ann!AV57","v":26},{"$f":"[1]ACS_16_5YR_B18106_with_ann!AW57","v":44},{"$f":"[1]ACS_16_5YR_B18106_with_ann!AX57","v":976},{"$f":"[1]ACS_16_5YR_B18106_with_ann!AY57","v":149},{"$f":"[1]ACS_16_5YR_B18106_with_ann!AZ57","v":1067},{"$f":"[1]ACS_16_5YR_B18106_with_ann!BA57","v":134},{"$f":"[1]ACS_16_5YR_B18106_with_ann!BB57","v":29},{"$f":"[1]ACS_16_5YR_B18106_with_ann!BC57","v":45},{"$f":"[1]ACS_16_5YR_B18106_with_ann!BD57","v":1038},{"$f":"[1]ACS_16_5YR_B18106_with_ann!BE57","v":141},{"$f":"[1]ACS_16_5YR_B18106_with_ann!BF57","v":431},{"$f":"[1]ACS_16_5YR_B18106_with_ann!BG57","v":102},{"$f":"[1]ACS_16_5YR_B18106_with_ann!BH57","v":14},{"$f":"[1]ACS_16_5YR_B18106_with_ann!BI57","v":22},{"$f":"[1]ACS_16_5YR_B18106_with_ann!BJ57","v":417},{"$f":"[1]ACS_16_5YR_B18106_with_ann!BK57","v":106},{"$f":"[1]ACS_16_5YR_B18106_with_ann!BL57","v":222},{"$f":"[1]ACS_16_5YR_B18106_with_ann!BM57","v":107},{"$f":"[1]ACS_16_5YR_B18106_with_ann!BN57","v":45},{"$f":"[1]ACS_16_5YR_B18106_with_ann!BO57","v":60},{"$f":"[1]ACS_16_5YR_B18106_with_ann!BP57","v":177},{"$f":"[1]ACS_16_5YR_B18106_with_ann!BQ57","v":85}]
["06000US3300565700","0600000US3300573700","060",{"$f":"[1]ACS_16_5YR_B18106_with_ann!C58","v":"Roxbury"},{"$f":"[1]ACS_16_5YR_B18106_with_ann!D58","v":257},{"$f":"[1]ACS_16_5YR_B18106_with_ann!E58","v":112},{"$f":"[1]ACS_16_5YR_B18106_with_ann!F58","v":99},{"$f":"[1]ACS_16_5YR_B18106_with_ann!G58","v":40},{"$f":"[1]ACS_16_5YR_B18106_with_ann!H58","v":4},{"$f":"[1]ACS_16_5YR_B18106_with_ann!I58","v":6},{"$f":"[1]ACS_16_5YR_B18106_with_ann!J58","v":0},{"$f":"[1]ACS_16_5YR_B18106_with_ann!K58","v":12},{"$f":"[1]ACS_16_5YR_B18106_with_ann!L58","v":4},{"$f":"[1]ACS_16_5YR_B18106_with_ann!M58","v":6},{"$f":"[1]ACS_16_5YR_B18106_with_ann!N58","v":17},{"$f":"[1]ACS_16_5YR_B18106_with_ann!O58","v":10},{"$f":"[1]ACS_16_5YR_B18106_with_ann!P58","v":1},{"$f":"[1]ACS_16_5YR_B18106_with_ann!Q58","v":3},{"$f":"[1]ACS_16_5YR_B18106_with_ann!R58","v":16},{"$f":"[1]ACS_16_5YR_B18106_with_ann!S58","v":10},{"$f":"[1]ACS_16_5YR_B18106_with_ann!T58","v":65},{"$f":"[1]ACS_16_5YR_B18106_with_ann!U58","v":37},{"$f":"[1]ACS_16_5YR_B18106_with_ann!V58","v":0},{"$f":"[1]ACS_16_5YR_B18106_with_ann!W58","v":12},{"$f":"[1]ACS_16_5YR_B18106_with_ann!X58","v":65},{"$f":"[1]ACS_16_5YR_B18106_with_ann!Y58","v":37},{"$f":"[1]ACS_16_5YR_B18106_with_ann!Z58","v":10},{"$f":"[1]ACS_16_5YR_B18106_with_ann!AA58","v":6},{"$f":"[1]ACS_16_5YR_B18106_with_ann!AB58","v":0},{"$f":"[1]ACS_16_5YR_B18106_with_ann!AC58","v":12},{"$f":"[1]ACS_16_5YR_B18106_with_ann!AD58","v":10},{"$f":"[1]ACS_16_5YR_B18106_with_ann!AE58","v":6},{"$f":"[1]ACS_16_5YR_B18106_with_ann!AF58","v":3},{"$f":"[1]ACS_16_5YR_B18106_with_ann!AG58","v":3},{"$f":"[1]ACS_16_5YR_B18106_with_ann!AH58","v":0},{"$f":"[1]ACS_16_5YR_B18106_with_ann!AI58","v":12},{"$f":"[1]ACS_16_5YR_B18106_with_ann!AJ58","v":3},{"$f":"[1]ACS_16_5YR_B18106_with_ann!AK58","v":3},{"$f":"[1]ACS_16_5YR_B18106_with_ann!AL58","v":158},{"$f":"[1]ACS_16_5YR_B18106_with_ann!AM58","v":79},{"$f":"[1]ACS_16_5YR_B18106_with_ann!AN58","v":5},{"$f":"[1]ACS_16_5YR_B18106_with_ann!AO58","v":5},{"$f":"[1]ACS_16_5YR_B18106_with_ann!AP58","v":0},{"$f":"[1]ACS_16_5YR_B18106_with_ann!AQ58","v":12},{"$f":"[1]ACS_16_5YR_B18106_with_ann!AR58","v":5},{"$f":"[1]ACS_16_5YR_B18106_with_ann!AS58","v":5},{"$f":"[1]ACS_16_5YR_B18106_with_ann!AT58","v":67},{"$f":"[1]ACS_16_5YR_B18106_with_ann!AU58","v":57},{"$f":"[1]ACS_16_5YR_B18106_with_ann!AV58","v":0},{"$f":"[1]ACS_16_5YR_B18106_with_ann!AW58","v":12},{"$f":"[1]ACS_16_5YR_B18106_with_ann!AX58","v":67},{"$f":"[1]ACS_16_5YR_B18106_with_ann!AY58","v":57},{"$f":"[1]ACS_16_5YR_B18106_with_ann!AZ58","v":66},{"$f":"[1]ACS_16_5YR_B18106_with_ann!BA58","v":30},{"$f":"[1]ACS_16_5YR_B18106_with_ann!BB58","v":0},{"$f":"[1]ACS_16_5YR_B18106_with_ann!BC58","v":12},{"$f":"[1]ACS_16_5YR_B18106_with_ann!BD58","v":66},{"$f":"[1]ACS_16_5YR_B18106_with_ann!BE58","v":30},{"$f":"[1]ACS_16_5YR_B18106_with_ann!BF58","v":13},{"$f":"[1]ACS_16_5YR_B18106_with_ann!BG58","v":5},{"$f":"[1]ACS_16_5YR_B18106_with_ann!BH58","v":0},{"$f":"[1]ACS_16_5YR_B18106_with_ann!BI58","v":12},{"$f":"[1]ACS_16_5YR_B18106_with_ann!BJ58","v":13},{"$f":"[1]ACS_16_5YR_B18106_with_ann!BK58","v":5},{"$f":"[1]ACS_16_5YR_B18106_with_ann!BL58","v":7},{"$f":"[1]ACS_16_5YR_B18106_with_ann!BM58","v":7},{"$f":"[1]ACS_16_5YR_B18106_with_ann!BN58","v":4},{"$f":"[1]ACS_16_5YR_B18106_with_ann!BO58","v":6},{"$f":"[1]ACS_16_5YR_B18106_with_ann!BP58","v":3},{"$f":"[1]ACS_16_5YR_B18106_with_ann!BQ58","v":4}]
["06000US3300573700","0600000US3300574900","060",{"$f":"[1]ACS_16_5YR_B18106_with_ann!C59","v":"Stoddard"},{"$f":"[1]ACS_16_5YR_B18106_with_ann!D59","v":1147},{"$f":"[1]ACS_16_5YR_B18106_with_ann!E59","v":153},{"$f":"[1]ACS_16_5YR_B18106_with_ann!F59","v":563},{"$f":"[1]ACS_16_5YR_B18106_with_ann!G59","v":96},{"$f":"[1]ACS_16_5YR_B18106_with_ann!H59","v":104},{"$f":"[1]ACS_16_5YR_B18106_with_ann!I59","v":62},{"$f":"[1]ACS_16_5YR_B18106_with_ann!J59","v":0},{"$f":"[1]ACS_16_5YR_B18106_with_ann!K59","v":12},{"$f":"[1]ACS_16_5YR_B18106_with_ann!L59","v":104},{"$f":"[1]ACS_16_5YR_B18106_with_ann!M59","v":62},{"$f":"[1]ACS_16_5YR_B18106_with_ann!N59","v":81},{"$f":"[1]ACS_16_5YR_B18106_with_ann!O59","v":29},{"$f":"[1]ACS_16_5YR_B18106_with_ann!P59","v":0},{"$f":"[1]ACS_16_5YR_B18106_with_ann!Q59","v":12},{"$f":"[1]ACS_16_5YR_B18106_with_ann!R59","v":81},{"$f":"[1]ACS_16_5YR_B18106_with_ann!S59","v":29},{"$f":"[1]ACS_16_5YR_B18106_with_ann!T59","v":279},{"$f":"[1]ACS_16_5YR_B18106_with_ann!U59","v":49},{"$f":"[1]ACS_16_5YR_B18106_with_ann!V59","v":0},{"$f":"[1]ACS_16_5YR_B18106_with_ann!W59","v":12},{"$f":"[1]ACS_16_5YR_B18106_with_ann!X59","v":279},{"$f":"[1]ACS_16_5YR_B18106_with_ann!Y59","v":49},{"$f":"[1]ACS_16_5YR_B18106_with_ann!Z59","v":68},{"$f":"[1]ACS_16_5YR_B18106_with_ann!AA59","v":17},{"$f":"[1]ACS_16_5YR_B18106_with_ann!AB59","v":0},{"$f":"[1]ACS_16_5YR_B18106_with_ann!AC59","v":12},{"$f":"[1]ACS_16_5YR_B18106_with_ann!AD59","v":68},{"$f":"[1]ACS_16_5YR_B18106_with_ann!AE59","v":17},{"$f":"[1]ACS_16_5YR_B18106_with_ann!AF59","v":31},{"$f":"[1]ACS_16_5YR_B18106_with_ann!AG59","v":15},{"$f":"[1]ACS_16_5YR_B18106_with_ann!AH59","v":3},{"$f":"[1]ACS_16_5YR_B18106_with_ann!AI59","v":4},{"$f":"[1]ACS_16_5YR_B18106_with_ann!AJ59","v":28},{"$f":"[1]ACS_16_5YR_B18106_with_ann!AK59","v":14},{"$f":"[1]ACS_16_5YR_B18106_with_ann!AL59","v":584},{"$f":"[1]ACS_16_5YR_B18106_with_ann!AM59","v":81},{"$f":"[1]ACS_16_5YR_B18106_with_ann!AN59","v":89},{"$f":"[1]ACS_16_5YR_B18106_with_ann!AO59","v":33},{"$f":"[1]ACS_16_5YR_B18106_with_ann!AP59","v":0},{"$f":"[1]ACS_16_5YR_B18106_with_ann!AQ59","v":12},{"$f":"[1]ACS_16_5YR_B18106_with_ann!AR59","v":89},{"$f":"[1]ACS_16_5YR_B18106_with_ann!AS59","v":33},{"$f":"[1]ACS_16_5YR_B18106_with_ann!AT59","v":102},{"$f":"[1]ACS_16_5YR_B18106_with_ann!AU59","v":41},{"$f":"[1]ACS_16_5YR_B18106_with_ann!AV59","v":0},{"$f":"[1]ACS_16_5YR_B18106_with_ann!AW59","v":12},{"$f":"[1]ACS_16_5YR_B18106_with_ann!AX59","v":102},{"$f":"[1]ACS_16_5YR_B18106_with_ann!AY59","v":41},{"$f":"[1]ACS_16_5YR_B18106_with_ann!AZ59","v":257},{"$f":"[1]ACS_16_5YR_B18106_with_ann!BA59","v":49},{"$f":"[1]ACS_16_5YR_B18106_with_ann!BB59","v":0},{"$f":"[1]ACS_16_5YR_B18106_with_ann!BC59","v":12},{"$f":"[1]ACS_16_5YR_B18106_with_ann!BD59","v":257},{"$f":"[1]ACS_16_5YR_B18106_with_ann!BE59","v":49},{"$f":"[1]ACS_16_5YR_B18106_with_ann!BF59","v":86},{"$f":"[1]ACS_16_5YR_B18106_with_ann!BG59","v":25},{"$f":"[1]ACS_16_5YR_B18106_with_ann!BH59","v":5},{"$f":"[1]ACS_16_5YR_B18106_with_ann!BI59","v":6},{"$f":"[1]ACS_16_5YR_B18106_with_ann!BJ59","v":81},{"$f":"[1]ACS_16_5YR_B18106_with_ann!BK59","v":25},{"$f":"[1]ACS_16_5YR_B18106_with_ann!BL59","v":50},{"$f":"[1]ACS_16_5YR_B18106_with_ann!BM59","v":22},{"$f":"[1]ACS_16_5YR_B18106_with_ann!BN59","v":10},{"$f":"[1]ACS_16_5YR_B18106_with_ann!BO59","v":10},{"$f":"[1]ACS_16_5YR_B18106_with_ann!BP59","v":40},{"$f":"[1]ACS_16_5YR_B18106_with_ann!BQ59","v":19}]
["06000US3300574900","0600000US3300575300","060",{"$f":"[1]ACS_16_5YR_B18106_with_ann!C60","v":"Sullivan"},{"$f":"[1]ACS_16_5YR_B18106_with_ann!D60","v":618},{"$f":"[1]ACS_16_5YR_B18106_with_ann!E60","v":104},{"$f":"[1]ACS_16_5YR_B18106_with_ann!F60","v":307},{"$f":"[1]ACS_16_5YR_B18106_with_ann!G60","v":63},{"$f":"[1]ACS_16_5YR_B18106_with_ann!H60","v":18},{"$f":"[1]ACS_16_5YR_B18106_with_ann!I60","v":12},{"$f":"[1]ACS_16_5YR_B18106_with_ann!J60","v":3},{"$f":"[1]ACS_16_5YR_B18106_with_ann!K60","v":4},{"$f":"[1]ACS_16_5YR_B18106_with_ann!L60","v":15},{"$f":"[1]ACS_16_5YR_B18106_with_ann!M60","v":11},{"$f":"[1]ACS_16_5YR_B18106_with_ann!N60","v":88},{"$f":"[1]ACS_16_5YR_B18106_with_ann!O60","v":36},{"$f":"[1]ACS_16_5YR_B18106_with_ann!P60","v":15},{"$f":"[1]ACS_16_5YR_B18106_with_ann!Q60","v":19},{"$f":"[1]ACS_16_5YR_B18106_with_ann!R60","v":73},{"$f":"[1]ACS_16_5YR_B18106_with_ann!S60","v":31},{"$f":"[1]ACS_16_5YR_B18106_with_ann!T60","v":134},{"$f":"[1]ACS_16_5YR_B18106_with_ann!U60","v":28},{"$f":"[1]ACS_16_5YR_B18106_with_ann!V60","v":0},{"$f":"[1]ACS_16_5YR_B18106_with_ann!W60","v":12},{"$f":"[1]ACS_16_5YR_B18106_with_ann!X60","v":134},{"$f":"[1]ACS_16_5YR_B18106_with_ann!Y60","v":28},{"$f":"[1]ACS_16_5YR_B18106_with_ann!Z60","v":40},{"$f":"[1]ACS_16_5YR_B18106_with_ann!AA60","v":17},{"$f":"[1]ACS_16_5YR_B18106_with_ann!AB60","v":0},{"$f":"[1]ACS_16_5YR_B18106_with_ann!AC60","v":12},{"$f":"[1]ACS_16_5YR_B18106_with_ann!AD60","v":40},{"$f":"[1]ACS_16_5YR_B18106_with_ann!AE60","v":17},{"$f":"[1]ACS_16_5YR_B18106_with_ann!AF60","v":27},{"$f":"[1]ACS_16_5YR_B18106_with_ann!AG60","v":14},{"$f":"[1]ACS_16_5YR_B18106_with_ann!AH60","v":5},{"$f":"[1]ACS_16_5YR_B18106_with_ann!AI60","v":8},{"$f":"[1]ACS_16_5YR_B18106_with_ann!AJ60","v":22},{"$f":"[1]ACS_16_5YR_B18106_with_ann!AK60","v":13},{"$f":"[1]ACS_16_5YR_B18106_with_ann!AL60","v":311},{"$f":"[1]ACS_16_5YR_B18106_with_ann!AM60","v":57},{"$f":"[1]ACS_16_5YR_B18106_with_ann!AN60","v":30},{"$f":"[1]ACS_16_5YR_B18106_with_ann!AO60","v":15},{"$f":"[1]ACS_16_5YR_B18106_with_ann!AP60","v":0},{"$f":"[1]ACS_16_5YR_B18106_with_ann!AQ60","v":12},{"$f":"[1]ACS_16_5YR_B18106_with_ann!AR60","v":30},{"$f":"[1]ACS_16_5YR_B18106_with_ann!AS60","v":15},{"$f":"[1]ACS_16_5YR_B18106_with_ann!AT60","v":74},{"$f":"[1]ACS_16_5YR_B18106_with_ann!AU60","v":37},{"$f":"[1]ACS_16_5YR_B18106_with_ann!AV60","v":0},{"$f":"[1]ACS_16_5YR_B18106_with_ann!AW60","v":12},{"$f":"[1]ACS_16_5YR_B18106_with_ann!AX60","v":74},{"$f":"[1]ACS_16_5YR_B18106_with_ann!AY60","v":37},{"$f":"[1]ACS_16_5YR_B18106_with_ann!AZ60","v":145},{"$f":"[1]ACS_16_5YR_B18106_with_ann!BA60","v":28},{"$f":"[1]ACS_16_5YR_B18106_with_ann!BB60","v":5},{"$f":"[1]ACS_16_5YR_B18106_with_ann!BC60","v":7},{"$f":"[1]ACS_16_5YR_B18106_with_ann!BD60","v":140},{"$f":"[1]ACS_16_5YR_B18106_with_ann!BE60","v":28},{"$f":"[1]ACS_16_5YR_B18106_with_ann!BF60","v":40},{"$f":"[1]ACS_16_5YR_B18106_with_ann!BG60","v":14},{"$f":"[1]ACS_16_5YR_B18106_with_ann!BH60","v":0},{"$f":"[1]ACS_16_5YR_B18106_with_ann!BI60","v":12},{"$f":"[1]ACS_16_5YR_B18106_with_ann!BJ60","v":40},{"$f":"[1]ACS_16_5YR_B18106_with_ann!BK60","v":14},{"$f":"[1]ACS_16_5YR_B18106_with_ann!BL60","v":22},{"$f":"[1]ACS_16_5YR_B18106_with_ann!BM60","v":13},{"$f":"[1]ACS_16_5YR_B18106_with_ann!BN60","v":4},{"$f":"[1]ACS_16_5YR_B18106_with_ann!BO60","v":5},{"$f":"[1]ACS_16_5YR_B18106_with_ann!BP60","v":18},{"$f":"[1]ACS_16_5YR_B18106_with_ann!BQ60","v":12}]
["06000US3300575300","0600000US3300575700","060",{"$f":"[1]ACS_16_5YR_B18106_with_ann!C61","v":"Surry"},{"$f":"[1]ACS_16_5YR_B18106_with_ann!D61","v":886},{"$f":"[1]ACS_16_5YR_B18106_with_ann!E61","v":208},{"$f":"[1]ACS_16_5YR_B18106_with_ann!F61","v":371},{"$f":"[1]ACS_16_5YR_B18106_with_ann!G61","v":70},{"$f":"[1]ACS_16_5YR_B18106_with_ann!H61","v":34},{"$f":"[1]ACS_16_5YR_B18106_with_ann!I61","v":16},{"$f":"[1]ACS_16_5YR_B18106_with_ann!J61","v":0},{"$f":"[1]ACS_16_5YR_B18106_with_ann!K61","v":12},{"$f":"[1]ACS_16_5YR_B18106_with_ann!L61","v":34},{"$f":"[1]ACS_16_5YR_B18106_with_ann!M61","v":16},{"$f":"[1]ACS_16_5YR_B18106_with_ann!N61","v":49},{"$f":"[1]ACS_16_5YR_B18106_with_ann!O61","v":28},{"$f":"[1]ACS_16_5YR_B18106_with_ann!P61","v":0},{"$f":"[1]ACS_16_5YR_B18106_with_ann!Q61","v":12},{"$f":"[1]ACS_16_5YR_B18106_with_ann!R61","v":49},{"$f":"[1]ACS_16_5YR_B18106_with_ann!S61","v":28},{"$f":"[1]ACS_16_5YR_B18106_with_ann!T61","v":164},{"$f":"[1]ACS_16_5YR_B18106_with_ann!U61","v":44},{"$f":"[1]ACS_16_5YR_B18106_with_ann!V61","v":0},{"$f":"[1]ACS_16_5YR_B18106_with_ann!W61","v":12},{"$f":"[1]ACS_16_5YR_B18106_with_ann!X61","v":164},{"$f":"[1]ACS_16_5YR_B18106_with_ann!Y61","v":44},{"$f":"[1]ACS_16_5YR_B18106_with_ann!Z61","v":80},{"$f":"[1]ACS_16_5YR_B18106_with_ann!AA61","v":34},{"$f":"[1]ACS_16_5YR_B18106_with_ann!AB61","v":0},{"$f":"[1]ACS_16_5YR_B18106_with_ann!AC61","v":12},{"$f":"[1]ACS_16_5YR_B18106_with_ann!AD61","v":80},{"$f":"[1]ACS_16_5YR_B18106_with_ann!AE61","v":34},{"$f":"[1]ACS_16_5YR_B18106_with_ann!AF61","v":44},{"$f":"[1]ACS_16_5YR_B18106_with_ann!AG61","v":21},{"$f":"[1]ACS_16_5YR_B18106_with_ann!AH61","v":0},{"$f":"[1]ACS_16_5YR_B18106_with_ann!AI61","v":12},{"$f":"[1]ACS_16_5YR_B18106_with_ann!AJ61","v":44},{"$f":"[1]ACS_16_5YR_B18106_with_ann!AK61","v":21},{"$f":"[1]ACS_16_5YR_B18106_with_ann!AL61","v":515},{"$f":"[1]ACS_16_5YR_B18106_with_ann!AM61","v":163},{"$f":"[1]ACS_16_5YR_B18106_with_ann!AN61","v":95},{"$f":"[1]ACS_16_5YR_B18106_with_ann!AO61","v":63},{"$f":"[1]ACS_16_5YR_B18106_with_ann!AP61","v":0},{"$f":"[1]ACS_16_5YR_B18106_with_ann!AQ61","v":12},{"$f":"[1]ACS_16_5YR_B18106_with_ann!AR61","v":95},{"$f":"[1]ACS_16_5YR_B18106_with_ann!AS61","v":63},{"$f":"[1]ACS_16_5YR_B18106_with_ann!AT61","v":122},{"$f":"[1]ACS_16_5YR_B18106_with_ann!AU61","v":78},{"$f":"[1]ACS_16_5YR_B18106_with_ann!AV61","v":4},{"$f":"[1]ACS_16_5YR_B18106_with_ann!AW61","v":6},{"$f":"[1]ACS_16_5YR_B18106_with_ann!AX61","v":118},{"$f":"[1]ACS_16_5YR_B18106_with_ann!AY61","v":78},{"$f":"[1]ACS_16_5YR_B18106_with_ann!AZ61","v":179},{"$f":"[1]ACS_16_5YR_B18106_with_ann!BA61","v":54},{"$f":"[1]ACS_16_5YR_B18106_with_ann!BB61","v":0},{"$f":"[1]ACS_16_5YR_B18106_with_ann!BC61","v":12},{"$f":"[1]ACS_16_5YR_B18106_with_ann!BD61","v":179},{"$f":"[1]ACS_16_5YR_B18106_with_ann!BE61","v":54},{"$f":"[1]ACS_16_5YR_B18106_with_ann!BF61","v":72},{"$f":"[1]ACS_16_5YR_B18106_with_ann!BG61","v":25},{"$f":"[1]ACS_16_5YR_B18106_with_ann!BH61","v":0},{"$f":"[1]ACS_16_5YR_B18106_with_ann!BI61","v":12},{"$f":"[1]ACS_16_5YR_B18106_with_ann!BJ61","v":72},{"$f":"[1]ACS_16_5YR_B18106_with_ann!BK61","v":25},{"$f":"[1]ACS_16_5YR_B18106_with_ann!BL61","v":47},{"$f":"[1]ACS_16_5YR_B18106_with_ann!BM61","v":20},{"$f":"[1]ACS_16_5YR_B18106_with_ann!BN61","v":3},{"$f":"[1]ACS_16_5YR_B18106_with_ann!BO61","v":4},{"$f":"[1]ACS_16_5YR_B18106_with_ann!BP61","v":44},{"$f":"[1]ACS_16_5YR_B18106_with_ann!BQ61","v":20}]
["06000US3300575700","0600000US3300577380","060",{"$f":"[1]ACS_16_5YR_B18106_with_ann!C62","v":"Swanzey"},{"$f":"[1]ACS_16_5YR_B18106_with_ann!D62","v":7071},{"$f":"[1]ACS_16_5YR_B18106_with_ann!E62","v":107},{"$f":"[1]ACS_16_5YR_B18106_with_ann!F62","v":3438},{"$f":"[1]ACS_16_5YR_B18106_with_ann!G62","v":199},{"$f":"[1]ACS_16_5YR_B18106_with_ann!H62","v":425},{"$f":"[1]ACS_16_5YR_B18106_with_ann!I62","v":130},{"$f":"[1]ACS_16_5YR_B18106_with_ann!J62","v":0},{"$f":"[1]ACS_16_5YR_B18106_with_ann!K62","v":17},{"$f":"[1]ACS_16_5YR_B18106_with_ann!L62","v":425},{"$f":"[1]ACS_16_5YR_B18106_with_ann!M62","v":130},{"$f":"[1]ACS_16_5YR_B18106_with_ann!N62","v":528},{"$f":"[1]ACS_16_5YR_B18106_with_ann!O62","v":182},{"$f":"[1]ACS_16_5YR_B18106_with_ann!P62","v":0},{"$f":"[1]ACS_16_5YR_B18106_with_ann!Q62","v":17},{"$f":"[1]ACS_16_5YR_B18106_with_ann!R62","v":528},{"$f":"[1]ACS_16_5YR_B18106_with_ann!S62","v":182},{"$f":"[1]ACS_16_5YR_B18106_with_ann!T62","v":1568},{"$f":"[1]ACS_16_5YR_B18106_with_ann!U62","v":216},{"$f":"[1]ACS_16_5YR_B18106_with_ann!V62","v":0},{"$f":"[1]ACS_16_5YR_B18106_with_ann!W62","v":17},{"$f":"[1]ACS_16_5YR_B18106_with_ann!X62","v":1568},{"$f":"[1]ACS_16_5YR_B18106_with_ann!Y62","v":216},{"$f":"[1]ACS_16_5YR_B18106_with_ann!Z62","v":533},{"$f":"[1]ACS_16_5YR_B18106_with_ann!AA62","v":186},{"$f":"[1]ACS_16_5YR_B18106_with_ann!AB62","v":18},{"$f":"[1]ACS_16_5YR_B18106_with_ann!AC62","v":32},{"$f":"[1]ACS_16_5YR_B18106_with_ann!AD62","v":515},{"$f":"[1]ACS_16_5YR_B18106_with_ann!AE62","v":180},{"$f":"[1]ACS_16_5YR_B18106_with_ann!AF62","v":384},{"$f":"[1]ACS_16_5YR_B18106_with_ann!AG62","v":157},{"$f":"[1]ACS_16_5YR_B18106_with_ann!AH62","v":51},{"$f":"[1]ACS_16_5YR_B18106_with_ann!AI62","v":46},{"$f":"[1]ACS_16_5YR_B18106_with_ann!AJ62","v":333},{"$f":"[1]ACS_16_5YR_B18106_with_ann!AK62","v":129},{"$f":"[1]ACS_16_5YR_B18106_with_ann!AL62","v":3633},{"$f":"[1]ACS_16_5YR_B18106_with_ann!AM62","v":206},{"$f":"[1]ACS_16_5YR_B18106_with_ann!AN62","v":602},{"$f":"[1]ACS_16_5YR_B18106_with_ann!AO62","v":142},{"$f":"[1]ACS_16_5YR_B18106_with_ann!AP62","v":0},{"$f":"[1]ACS_16_5YR_B18106_with_ann!AQ62","v":17},{"$f":"[1]ACS_16_5YR_B18106_with_ann!AR62","v":602},{"$f":"[1]ACS_16_5YR_B18106_with_ann!AS62","v":142},{"$f":"[1]ACS_16_5YR_B18106_with_ann!AT62","v":424},{"$f":"[1]ACS_16_5YR_B18106_with_ann!AU62","v":133},{"$f":"[1]ACS_16_5YR_B18106_with_ann!AV62","v":0},{"$f":"[1]ACS_16_5YR_B18106_with_ann!AW62","v":17},{"$f":"[1]ACS_16_5YR_B18106_with_ann!AX62","v":424},{"$f":"[1]ACS_16_5YR_B18106_with_ann!AY62","v":133},{"$f":"[1]ACS_16_5YR_B18106_with_ann!AZ62","v":1648},{"$f":"[1]ACS_16_5YR_B18106_with_ann!BA62","v":206},{"$f":"[1]ACS_16_5YR_B18106_with_ann!BB62","v":86},{"$f":"[1]ACS_16_5YR_B18106_with_ann!BC62","v":88},{"$f":"[1]ACS_16_5YR_B18106_with_ann!BD62","v":1562},{"$f":"[1]ACS_16_5YR_B18106_with_ann!BE62","v":224},{"$f":"[1]ACS_16_5YR_B18106_with_ann!BF62","v":587},{"$f":"[1]ACS_16_5YR_B18106_with_ann!BG62","v":143},{"$f":"[1]ACS_16_5YR_B18106_with_ann!BH62","v":0},{"$f":"[1]ACS_16_5YR_B18106_with_ann!BI62","v":17},{"$f":"[1]ACS_16_5YR_B18106_with_ann!BJ62","v":587},{"$f":"[1]ACS_16_5YR_B18106_with_ann!BK62","v":143},{"$f":"[1]ACS_16_5YR_B18106_with_ann!BL62","v":372},{"$f":"[1]ACS_16_5YR_B18106_with_ann!BM62","v":116},{"$f":"[1]ACS_16_5YR_B18106_with_ann!BN62","v":34},{"$f":"[1]ACS_16_5YR_B18106_with_ann!BO62","v":35},{"$f":"[1]ACS_16_5YR_B18106_with_ann!BP62","v":338},{"$f":"[1]ACS_16_5YR_B18106_with_ann!BQ62","v":109}]
["06000US3300577380","0600000US3300578420","060",{"$f":"[1]ACS_16_5YR_B18106_with_ann!C63","v":"Troy"},{"$f":"[1]ACS_16_5YR_B18106_with_ann!D63","v":1758},{"$f":"[1]ACS_16_5YR_B18106_with_ann!E63","v":258},{"$f":"[1]ACS_16_5YR_B18106_with_ann!F63","v":925},{"$f":"[1]ACS_16_5YR_B18106_with_ann!G63","v":172},{"$f":"[1]ACS_16_5YR_B18106_with_ann!H63","v":149},{"$f":"[1]ACS_16_5YR_B18106_with_ann!I63","v":79},{"$f":"[1]ACS_16_5YR_B18106_with_ann!J63","v":0},{"$f":"[1]ACS_16_5YR_B18106_with_ann!K63","v":12},{"$f":"[1]ACS_16_5YR_B18106_with_ann!L63","v":149},{"$f":"[1]ACS_16_5YR_B18106_with_ann!M63","v":79},{"$f":"[1]ACS_16_5YR_B18106_with_ann!N63","v":191},{"$f":"[1]ACS_16_5YR_B18106_with_ann!O63","v":77},{"$f":"[1]ACS_16_5YR_B18106_with_ann!P63","v":0},{"$f":"[1]ACS_16_5YR_B18106_with_ann!Q63","v":12},{"$f":"[1]ACS_16_5YR_B18106_with_ann!R63","v":191},{"$f":"[1]ACS_16_5YR_B18106_with_ann!S63","v":77},{"$f":"[1]ACS_16_5YR_B18106_with_ann!T63","v":419},{"$f":"[1]ACS_16_5YR_B18106_with_ann!U63","v":95},{"$f":"[1]ACS_16_5YR_B18106_with_ann!V63","v":6},{"$f":"[1]ACS_16_5YR_B18106_with_ann!W63","v":8},{"$f":"[1]ACS_16_5YR_B18106_with_ann!X63","v":413},{"$f":"[1]ACS_16_5YR_B18106_with_ann!Y63","v":94},{"$f":"[1]ACS_16_5YR_B18106_with_ann!Z63","v":121},{"$f":"[1]ACS_16_5YR_B18106_with_ann!AA63","v":49},{"$f":"[1]ACS_16_5YR_B18106_with_ann!AB63","v":6},{"$f":"[1]ACS_16_5YR_B18106_with_ann!AC63","v":8},{"$f":"[1]ACS_16_5YR_B18106_with_ann!AD63","v":115},{"$f":"[1]ACS_16_5YR_B18106_with_ann!AE63","v":50},{"$f":"[1]ACS_16_5YR_B18106_with_ann!AF63","v":45},{"$f":"[1]ACS_16_5YR_B18106_with_ann!AG63","v":29},{"$f":"[1]ACS_16_5YR_B18106_with_ann!AH63","v":0},{"$f":"[1]ACS_16_5YR_B18106_with_ann!AI63","v":12},{"$f":"[1]ACS_16_5YR_B18106_with_ann!AJ63","v":45},{"$f":"[1]ACS_16_5YR_B18106_with_ann!AK63","v":29},{"$f":"[1]ACS_16_5YR_B18106_with_ann!AL63","v":833},{"$f":"[1]ACS_16_5YR_B18106_with_ann!AM63","v":124},{"$f":"[1]ACS_16_5YR_B18106_with_ann!AN63","v":113},{"$f":"[1]ACS_16_5YR_B18106_with_ann!AO63","v":46},{"$f":"[1]ACS_16_5YR_B18106_with_ann!AP63","v":0},{"$f":"[1]ACS_16_5YR_B18106_with_ann!AQ63","v":12},{"$f":"[1]ACS_16_5YR_B18106_with_ann!AR63","v":113},{"$f":"[1]ACS_16_5YR_B18106_with_ann!AS63","v":46},{"$f":"[1]ACS_16_5YR_B18106_with_ann!AT63","v":205},{"$f":"[1]ACS_16_5YR_B18106_with_ann!AU63","v":65},{"$f":"[1]ACS_16_5YR_B18106_with_ann!AV63","v":0},{"$f":"[1]ACS_16_5YR_B18106_with_ann!AW63","v":12},{"$f":"[1]ACS_16_5YR_B18106_with_ann!AX63","v":205},{"$f":"[1]ACS_16_5YR_B18106_with_ann!AY63","v":65},{"$f":"[1]ACS_16_5YR_B18106_with_ann!AZ63","v":352},{"$f":"[1]ACS_16_5YR_B18106_with_ann!BA63","v":89},{"$f":"[1]ACS_16_5YR_B18106_with_ann!BB63","v":4},{"$f":"[1]ACS_16_5YR_B18106_with_ann!BC63","v":7},{"$f":"[1]ACS_16_5YR_B18106_with_ann!BD63","v":348},{"$f":"[1]ACS_16_5YR_B18106_with_ann!BE63","v":88},{"$f":"[1]ACS_16_5YR_B18106_with_ann!BF63","v":101},{"$f":"[1]ACS_16_5YR_B18106_with_ann!BG63","v":32},{"$f":"[1]ACS_16_5YR_B18106_with_ann!BH63","v":0},{"$f":"[1]ACS_16_5YR_B18106_with_ann!BI63","v":12},{"$f":"[1]ACS_16_5YR_B18106_with_ann!BJ63","v":101},{"$f":"[1]ACS_16_5YR_B18106_with_ann!BK63","v":32},{"$f":"[1]ACS_16_5YR_B18106_with_ann!BL63","v":62},{"$f":"[1]ACS_16_5YR_B18106_with_ann!BM63","v":38},{"$f":"[1]ACS_16_5YR_B18106_with_ann!BN63","v":0},{"$f":"[1]ACS_16_5YR_B18106_with_ann!BO63","v":12},{"$f":"[1]ACS_16_5YR_B18106_with_ann!BP63","v":62},{"$f":"[1]ACS_16_5YR_B18106_with_ann!BQ63","v":38}]
["06000US3300578420","0600000US3300582660","060",{"$f":"[1]ACS_16_5YR_B18106_with_ann!C64","v":"Walpole"},{"$f":"[1]ACS_16_5YR_B18106_with_ann!D64","v":3324},{"$f":"[1]ACS_16_5YR_B18106_with_ann!E64","v":112},{"$f":"[1]ACS_16_5YR_B18106_with_ann!F64","v":1616},{"$f":"[1]ACS_16_5YR_B18106_with_ann!G64","v":159},{"$f":"[1]ACS_16_5YR_B18106_with_ann!H64","v":312},{"$f":"[1]ACS_16_5YR_B18106_with_ann!I64","v":115},{"$f":"[1]ACS_16_5YR_B18106_with_ann!J64","v":5},{"$f":"[1]ACS_16_5YR_B18106_with_ann!K64","v":8},{"$f":"[1]ACS_16_5YR_B18106_with_ann!L64","v":307},{"$f":"[1]ACS_16_5YR_B18106_with_ann!M64","v":115},{"$f":"[1]ACS_16_5YR_B18106_with_ann!N64","v":366},{"$f":"[1]ACS_16_5YR_B18106_with_ann!O64","v":116},{"$f":"[1]ACS_16_5YR_B18106_with_ann!P64","v":8},{"$f":"[1]ACS_16_5YR_B18106_with_ann!Q64","v":14},{"$f":"[1]ACS_16_5YR_B18106_with_ann!R64","v":358},{"$f":"[1]ACS_16_5YR_B18106_with_ann!S64","v":117},{"$f":"[1]ACS_16_5YR_B18106_with_ann!T64","v":571},{"$f":"[1]ACS_16_5YR_B18106_with_ann!U64","v":100},{"$f":"[1]ACS_16_5YR_B18106_with_ann!V64","v":0},{"$f":"[1]ACS_16_5YR_B18106_with_ann!W64","v":12},{"$f":"[1]ACS_16_5YR_B18106_with_ann!X64","v":571},{"$f":"[1]ACS_16_5YR_B18106_with_ann!Y64","v":100},{"$f":"[1]ACS_16_5YR_B18106_with_ann!Z64","v":271},{"$f":"[1]ACS_16_5YR_B18106_with_ann!AA64","v":74},{"$f":"[1]ACS_16_5YR_B18106_with_ann!AB64","v":10},{"$f":"[1]ACS_16_5YR_B18106_with_ann!AC64","v":17},{"$f":"[1]ACS_16_5YR_B18106_with_ann!AD64","v":261},{"$f":"[1]ACS_16_5YR_B18106_with_ann!AE64","v":69},{"$f":"[1]ACS_16_5YR_B18106_with_ann!AF64","v":96},{"$f":"[1]ACS_16_5YR_B18106_with_ann!AG64","v":46},{"$f":"[1]ACS_16_5YR_B18106_with_ann!AH64","v":0},{"$f":"[1]ACS_16_5YR_B18106_with_ann!AI64","v":12},{"$f":"[1]ACS_16_5YR_B18106_with_ann!AJ64","v":96},{"$f":"[1]ACS_16_5YR_B18106_with_ann!AK64","v":46},{"$f":"[1]ACS_16_5YR_B18106_with_ann!AL64","v":1708},{"$f":"[1]ACS_16_5YR_B18106_with_ann!AM64","v":137},{"$f":"[1]ACS_16_5YR_B18106_with_ann!AN64","v":287},{"$f":"[1]ACS_16_5YR_B18106_with_ann!AO64","v":98},{"$f":"[1]ACS_16_5YR_B18106_with_ann!AP64","v":7},{"$f":"[1]ACS_16_5YR_B18106_with_ann!AQ64","v":13},{"$f":"[1]ACS_16_5YR_B18106_with_ann!AR64","v":280},{"$f":"[1]ACS_16_5YR_B18106_with_ann!AS64","v":95},{"$f":"[1]ACS_16_5YR_B18106_with_ann!AT64","v":318},{"$f":"[1]ACS_16_5YR_B18106_with_ann!AU64","v":144},{"$f":"[1]ACS_16_5YR_B18106_with_ann!AV64","v":0},{"$f":"[1]ACS_16_5YR_B18106_with_ann!AW64","v":12},{"$f":"[1]ACS_16_5YR_B18106_with_ann!AX64","v":318},{"$f":"[1]ACS_16_5YR_B18106_with_ann!AY64","v":144},{"$f":"[1]ACS_16_5YR_B18106_with_ann!AZ64","v":699},{"$f":"[1]ACS_16_5YR_B18106_with_ann!BA64","v":118},{"$f":"[1]ACS_16_5YR_B18106_with_ann!BB64","v":12},{"$f":"[1]ACS_16_5YR_B18106_with_ann!BC64","v":19},{"$f":"[1]ACS_16_5YR_B18106_with_ann!BD64","v":687},{"$f":"[1]ACS_16_5YR_B18106_with_ann!BE64","v":119},{"$f":"[1]ACS_16_5YR_B18106_with_ann!BF64","v":182},{"$f":"[1]ACS_16_5YR_B18106_with_ann!BG64","v":50},{"$f":"[1]ACS_16_5YR_B18106_with_ann!BH64","v":6},{"$f":"[1]ACS_16_5YR_B18106_with_ann!BI64","v":8},{"$f":"[1]ACS_16_5YR_B18106_with_ann!BJ64","v":176},{"$f":"[1]ACS_16_5YR_B18106_with_ann!BK64","v":50},{"$f":"[1]ACS_16_5YR_B18106_with_ann!BL64","v":222},{"$f":"[1]ACS_16_5YR_B18106_with_ann!BM64","v":100},{"$f":"[1]ACS_16_5YR_B18106_with_ann!BN64","v":0},{"$f":"[1]ACS_16_5YR_B18106_with_ann!BO64","v":12},{"$f":"[1]ACS_16_5YR_B18106_with_ann!BP64","v":222},{"$f":"[1]ACS_16_5YR_B18106_with_ann!BQ64","v":100}]
["06000US3300582660","0600000US3300585540","060",{"$f":"[1]ACS_16_5YR_B18106_with_ann!C65","v":"Westmoreland"},{"$f":"[1]ACS_16_5YR_B18106_with_ann!D65","v":1891},{"$f":"[1]ACS_16_5YR_B18106_with_ann!E65","v":327},{"$f":"[1]ACS_16_5YR_B18106_with_ann!F65","v":824},{"$f":"[1]ACS_16_5YR_B18106_with_ann!G65","v":155},{"$f":"[1]ACS_16_5YR_B18106_with_ann!H65","v":51},{"$f":"[1]ACS_16_5YR_B18106_with_ann!I65","v":27},{"$f":"[1]ACS_16_5YR_B18106_with_ann!J65","v":0},{"$f":"[1]ACS_16_5YR_B18106_with_ann!K65","v":12},{"$f":"[1]ACS_16_5YR_B18106_with_ann!L65","v":51},{"$f":"[1]ACS_16_5YR_B18106_with_ann!M65","v":27},{"$f":"[1]ACS_16_5YR_B18106_with_ann!N65","v":117},{"$f":"[1]ACS_16_5YR_B18106_with_ann!O65","v":52},{"$f":"[1]ACS_16_5YR_B18106_with_ann!P65","v":0},{"$f":"[1]ACS_16_5YR_B18106_with_ann!Q65","v":12},{"$f":"[1]ACS_16_5YR_B18106_with_ann!R65","v":117},{"$f":"[1]ACS_16_5YR_B18106_with_ann!S65","v":52},{"$f":"[1]ACS_16_5YR_B18106_with_ann!T65","v":395},{"$f":"[1]ACS_16_5YR_B18106_with_ann!U65","v":97},{"$f":"[1]ACS_16_5YR_B18106_with_ann!V65","v":20},{"$f":"[1]ACS_16_5YR_B18106_with_ann!W65","v":17},{"$f":"[1]ACS_16_5YR_B18106_with_ann!X65","v":375},{"$f":"[1]ACS_16_5YR_B18106_with_ann!Y65","v":95},{"$f":"[1]ACS_16_5YR_B18106_with_ann!Z65","v":156},{"$f":"[1]ACS_16_5YR_B18106_with_ann!AA65","v":50},{"$f":"[1]ACS_16_5YR_B18106_with_ann!AB65","v":3},{"$f":"[1]ACS_16_5YR_B18106_with_ann!AC65","v":5},{"$f":"[1]ACS_16_5YR_B18106_with_ann!AD65","v":153},{"$f":"[1]ACS_16_5YR_B18106_with_ann!AE65","v":49},{"$f":"[1]ACS_16_5YR_B18106_with_ann!AF65","v":105},{"$f":"[1]ACS_16_5YR_B18106_with_ann!AG65","v":66},{"$f":"[1]ACS_16_5YR_B18106_with_ann!AH65","v":7},{"$f":"[1]ACS_16_5YR_B18106_with_ann!AI65","v":8},{"$f":"[1]ACS_16_5YR_B18106_with_ann!AJ65","v":98},{"$f":"[1]ACS_16_5YR_B18106_with_ann!AK65","v":66},{"$f":"[1]ACS_16_5YR_B18106_with_ann!AL65","v":1067},{"$f":"[1]ACS_16_5YR_B18106_with_ann!AM65","v":207},{"$f":"[1]ACS_16_5YR_B18106_with_ann!AN65","v":180},{"$f":"[1]ACS_16_5YR_B18106_with_ann!AO65","v":81},{"$f":"[1]ACS_16_5YR_B18106_with_ann!AP65","v":0},{"$f":"[1]ACS_16_5YR_B18106_with_ann!AQ65","v":12},{"$f":"[1]ACS_16_5YR_B18106_with_ann!AR65","v":180},{"$f":"[1]ACS_16_5YR_B18106_with_ann!AS65","v":81},{"$f":"[1]ACS_16_5YR_B18106_with_ann!AT65","v":119},{"$f":"[1]ACS_16_5YR_B18106_with_ann!AU65","v":67},{"$f":"[1]ACS_16_5YR_B18106_with_ann!AV65","v":0},{"$f":"[1]ACS_16_5YR_B18106_with_ann!AW65","v":12},{"$f":"[1]ACS_16_5YR_B18106_with_ann!AX65","v":119},{"$f":"[1]ACS_16_5YR_B18106_with_ann!AY65","v":67},{"$f":"[1]ACS_16_5YR_B18106_with_ann!AZ65","v":430},{"$f":"[1]ACS_16_5YR_B18106_with_ann!BA65","v":101},{"$f":"[1]ACS_16_5YR_B18106_with_ann!BB65","v":0},{"$f":"[1]ACS_16_5YR_B18106_with_ann!BC65","v":12},{"$f":"[1]ACS_16_5YR_B18106_with_ann!BD65","v":430},{"$f":"[1]ACS_16_5YR_B18106_with_ann!BE65","v":101},{"$f":"[1]ACS_16_5YR_B18106_with_ann!BF65","v":215},{"$f":"[1]ACS_16_5YR_B18106_with_ann!BG65","v":110},{"$f":"[1]ACS_16_5YR_B18106_with_ann!BH65","v":4},{"$f":"[1]ACS_16_5YR_B18106_with_ann!BI65","v":8},{"$f":"[1]ACS_16_5YR_B18106_with_ann!BJ65","v":211},{"$f":"[1]ACS_16_5YR_B18106_with_ann!BK65","v":109},{"$f":"[1]ACS_16_5YR_B18106_with_ann!BL65","v":123},{"$f":"[1]ACS_16_5YR_B18106_with_ann!BM65","v":45},{"$f":"[1]ACS_16_5YR_B18106_with_ann!BN65","v":17},{"$f":"[1]ACS_16_5YR_B18106_with_ann!BO65","v":19},{"$f":"[1]ACS_16_5YR_B18106_with_ann!BP65","v":106},{"$f":"[1]ACS_16_5YR_B18106_with_ann!BQ65","v":40}]
["06000US3300585540","0600000US3300500820","060",{"$f":"[1]ACS_16_5YR_B18106_with_ann!C66","v":"Winchester"},{"$f":"[1]ACS_16_5YR_B18106_with_ann!D66","v":3755},{"$f":"[1]ACS_16_5YR_B18106_with_ann!E66","v":135},{"$f":"[1]ACS_16_5YR_B18106_with_ann!F66","v":1866},{"$f":"[1]ACS_16_5YR_B18106_with_ann!G66","v":182},{"$f":"[1]ACS_16_5YR_B18106_with_ann!H66","v":311},{"$f":"[1]ACS_16_5YR_B18106_with_ann!I66","v":122},{"$f":"[1]ACS_16_5YR_B18106_with_ann!J66","v":0},{"$f":"[1]ACS_16_5YR_B18106_with_ann!K66","v":12},{"$f":"[1]ACS_16_5YR_B18106_with_ann!L66","v":311},{"$f":"[1]ACS_16_5YR_B18106_with_ann!M66","v":122},{"$f":"[1]ACS_16_5YR_B18106_with_ann!N66","v":388},{"$f":"[1]ACS_16_5YR_B18106_with_ann!O66","v":118},{"$f":"[1]ACS_16_5YR_B18106_with_ann!P66","v":0},{"$f":"[1]ACS_16_5YR_B18106_with_ann!Q66","v":12},{"$f":"[1]ACS_16_5YR_B18106_with_ann!R66","v":388},{"$f":"[1]ACS_16_5YR_B18106_with_ann!S66","v":118},{"$f":"[1]ACS_16_5YR_B18106_with_ann!T66","v":910},{"$f":"[1]ACS_16_5YR_B18106_with_ann!U66","v":152},{"$f":"[1]ACS_16_5YR_B18106_with_ann!V66","v":68},{"$f":"[1]ACS_16_5YR_B18106_with_ann!W66","v":57},{"$f":"[1]ACS_16_5YR_B18106_with_ann!X66","v":842},{"$f":"[1]ACS_16_5YR_B18106_with_ann!Y66","v":142},{"$f":"[1]ACS_16_5YR_B18106_with_ann!Z66","v":193},{"$f":"[1]ACS_16_5YR_B18106_with_ann!AA66","v":70},{"$f":"[1]ACS_16_5YR_B18106_with_ann!AB66","v":0},{"$f":"[1]ACS_16_5YR_B18106_with_ann!AC66","v":12},{"$f":"[1]ACS_16_5YR_B18106_with_ann!AD66","v":193},{"$f":"[1]ACS_16_5YR_B18106_with_ann!AE66","v":70},{"$f":"[1]ACS_16_5YR_B18106_with_ann!AF66","v":64},{"$f":"[1]ACS_16_5YR_B18106_with_ann!AG66","v":35},{"$f":"[1]ACS_16_5YR_B18106_with_ann!AH66","v":8},{"$f":"[1]ACS_16_5YR_B18106_with_ann!AI66","v":11},{"$f":"[1]ACS_16_5YR_B18106_with_ann!AJ66","v":56},{"$f":"[1]ACS_16_5YR_B18106_with_ann!AK66","v":37},{"$f":"[1]ACS_16_5YR_B18106_with_ann!AL66","v":1889},{"$f":"[1]ACS_16_5YR_B18106_with_ann!AM66","v":200},{"$f":"[1]ACS_16_5YR_B18106_with_ann!AN66","v":289},{"$f":"[1]ACS_16_5YR_B18106_with_ann!AO66","v":127},{"$f":"[1]ACS_16_5YR_B18106_with_ann!AP66","v":0},{"$f":"[1]ACS_16_5YR_B18106_with_ann!AQ66","v":12},{"$f":"[1]ACS_16_5YR_B18106_with_ann!AR66","v":289},{"$f":"[1]ACS_16_5YR_B18106_with_ann!AS66","v":127},{"$f":"[1]ACS_16_5YR_B18106_with_ann!AT66","v":492},{"$f":"[1]ACS_16_5YR_B18106_with_ann!AU66","v":192},{"$f":"[1]ACS_16_5YR_B18106_with_ann!AV66","v":0},{"$f":"[1]ACS_16_5YR_B18106_with_ann!AW66","v":12},{"$f":"[1]ACS_16_5YR_B18106_with_ann!AX66","v":492},{"$f":"[1]ACS_16_5YR_B18106_with_ann!AY66","v":192},{"$f":"[1]ACS_16_5YR_B18106_with_ann!AZ66","v":753},{"$f":"[1]ACS_16_5YR_B18106_with_ann!BA66","v":132},{"$f":"[1]ACS_16_5YR_B18106_with_ann!BB66","v":9},{"$f":"[1]ACS_16_5YR_B18106_with_ann!BC66","v":13},{"$f":"[1]ACS_16_5YR_B18106_with_ann!BD66","v":744},{"$f":"[1]ACS_16_5YR_B18106_with_ann!BE66","v":130},{"$f":"[1]ACS_16_5YR_B18106_with_ann!BF66","v":204},{"$f":"[1]ACS_16_5YR_B18106_with_ann!BG66","v":79},{"$f":"[1]ACS_16_5YR_B18106_with_ann!BH66","v":58},{"$f":"[1]ACS_16_5YR_B18106_with_ann!BI66","v":75},{"$f":"[1]ACS_16_5YR_B18106_with_ann!BJ66","v":146},{"$f":"[1]ACS_16_5YR_B18106_with_ann!BK66","v":61},{"$f":"[1]ACS_16_5YR_B18106_with_ann!BL66","v":151},{"$f":"[1]ACS_16_5YR_B18106_with_ann!BM66","v":66},{"$f":"[1]ACS_16_5YR_B18106_with_ann!BN66","v":13},{"$f":"[1]ACS_16_5YR_B18106_with_ann!BO66","v":17},{"$f":"[1]ACS_16_5YR_B18106_with_ann!BP66","v":138},{"$f":"[1]ACS_16_5YR_B18106_with_ann!BQ66","v":63}]
[]
[]
[]
[null,null,null,null,{"$f":"$D$3","v":"Alstead"},null,{"$f":"$D$4","v":"Chesterfield"},null,{"$f":"$D$5","v":"Dublin"},null,{"$f":"$D$6","v":"Fitzwilliam"},null,{"$f":"$D$7","v":"Gilsum"},null,{"$f":"$D$8","v":"Harrisville"},null,{"$f":"$D$9","v":"Hinsdale"},null,{"$f":"$D$10","v":"Jaffrey"},null,{"$f":"$D$11","v":"Keene"},null,{"$f":"$D$12","v":"Marlborough"},null,{"$f":"$D$13","v":"Marlow"},null,{"$f":"$D$14","v":"Nelson"},null,{"$f":"$D$15","v":"Richmond"},null,{"$f":"$D$16","v":"Rindge"},null,{"$f":"$D$17","v":"Roxbury"},null,{"$f":"$D$18","v":"Stoddard"},null,{"$f":"$D$19","v":"Sullivan"},null,{"$f":"$D$20","v":"Surry"},null,{"$f":"$D$21","v":"Swanzey"},null,{"$f":"$D$22","v":"Troy"},null,{"$f":"$D$23","v":"Walpole"},null,{"$f":"$D$24","v":"Westmoreland"},null,{"$f":"$D$25","v":"Winchester"}]
[null,null,null,null,"Estimate","Margin of Error","Estimate","Margin of Error","Estimate","Margin of Error","Estimate","Margin of Error","Estimate","Margin of Error","Estimate","Margin of Error","Estimate","Margin of Error","Estimate","Margin of Error","Estimate","Margin of Error","Estimate","Margin of Error","Estimate","Margin of Error","Estimate","Margin of Error","Estimate","Margin of Error","Estimate","Margin of Error","Estimate","Margin of Error","Estimate","Margin of Error","Estimate","Margin of Error","Estimate","Margin of Error","Estimate","Margin of Error","Estimate","Margin of Error","Estimate","Margin of Error","Estimate","Margin of Error","Estimate","Margin of Error"]
[null,null,null,"Estimate!!Total:",1567,172,3436,73,1630,209,2209,360,812,136,927,174,3881,59,5157,101,21557,165,2037,334,761,165,528,103,1056,234,6183,121,257,112,1147,153,618,104,886,208,7071,107,1758,258,3324,112,1891,327,3755,135]
[null,null,null,"Estimate!!Total:!!Male:",758,116,1879,137,776,113,1170,214,419,80,419,76,2064,204,2617,209,10500,345,929,184,341,73,237,48,557,149,3018,206,99,40,563,96,307,63,371,70,3438,199,925,172,1616,159,824,155,1866,182]
[null,null,null,"Estimate!!Total:!!Male:!!5 to 17 years:",96,55,452,132,97,40,101,36,52,31,47,26,277,125,566,154,1379,180,129,64,37,23,17,12,82,37,470,153,4,6,104,62,18,12,34,16,425,130,149,79,312,115,51,27,311,122]
[null,null,null,"Estimate!!Total:!!Male:!!5 to 17 years:!!With a self-care difficulty",0,12,0,12,0,12,0,12,3,5,0,12,0,12,19,33,21,31,0,12,2,3,0,12,0,12,0,17,0,12,0,12,3,4,0,12,0,17,0,12,5,8,0,12,0,12]
[null,null,null,"Estimate!!Total:!!Male:!!5 to 17 years:!!No self-care difficulty",96,55,452,132,97,40,101,36,49,30,47,26,277,125,547,158,1358,177,129,64,35,23,17,12,82,37,470,153,4,6,104,62,15,11,34,16,425,130,149,79,307,115,51,27,311,122]
[null,null,null,"Estimate!!Total:!!Male:!!18 to 34 years:",147,61,366,146,136,55,226,92,119,56,38,20,294,122,408,190,3702,372,175,92,53,32,25,15,110,61,941,135,17,10,81,29,88,36,49,28,528,182,191,77,366,116,117,52,388,118]
[null,null,null,"Estimate!!Total:!!Male:!!18 to 34 years:!!With a self-care difficulty",0,12,0,12,0,12,6,9,0,12,0,12,0,12,0,17,10,15,0,12,0,12,0,12,3,6,0,17,1,3,0,12,15,19,0,12,0,17,0,12,8,14,0,12,0,12]
[null,null,null,"Estimate!!Total:!!Male:!!18 to 34 years:!!No self-care difficulty",147,61,366,146,136,55,220,92,119,56,38,20,294,122,408,190,3692,372,175,92,53,32,25,15,107,60,941,135,16,10,81,29,73,31,49,28,528,182,191,77,358,117,117,52,388,118]
[null,null,null,"Estimate!!Total:!!Male:!!35 to 64 years:",357,76,537,175,338,83,605,177,158,38,190,52,878,165,1310,200,3790,283,440,108,153,41,116,30,192,53,983,154,65,37,279,49,134,28,164,44,1568,216,419,95,571,100,395,97,910,152]
[null,null,null,"Estimate!!Total:!!Male:!!35 to 64 years:!!With a self-care difficulty",15,17,0,12,0,12,0,12,0,12,16,17,24,26,24,38,15,18,9,10,2,3,11,14,0,12,11,19,0,12,0,12,0,12,0,12,0,17,6,8,0,12,20,17,68,57]
[null,null,null,"Estimate!!Total:!!Male:!!35 to 64 years:!!No self-care difficulty",342,78,537,175,338,83,605,177,158,38,174,50,854,169,1286,192,3775,284,431,108,151,41,105,28,192,53,972,152,65,37,279,49,134,28,164,44,1568,216,413,94,571,100,375,95,842,142]
[null,null,null,"Estimate!!Total:!!Male:!!65 to 74 years:",106,42,367,125,153,64,195,55,76,29,91,28,433,236,159,87,899,135,83,37,75,38,59,21,145,100,428,106,10,6,68,17,40,17,80,34,533,186,121,49,271,74,156,50,193,70]
[null,null,null,"Estimate!!Total:!!Male:!!65 to 74 years:!!With a self-care difficulty",0,12,0,12,0,12,11,18,1,2,0,12,191,233,0,17,0,22,5,8,0,12,0,12,2,3,0,17,0,12,0,12,0,12,0,12,18,32,6,8,10,17,3,5,0,12]
[null,null,null,"Estimate!!Total:!!Male:!!65 to 74 years:!!No self-care difficulty",106,42,367,125,153,64,184,56,75,28,91,28,242,117,159,87,899,135,78,37,75,38,59,21,143,100,428,106,10,6,68,17,40,17,80,34,515,180,115,50,261,69,153,49,193,70]
[null,null,null,"Estimate!!Total:!!Male:!!75 years and over:",52,33,157,80,52,26,43,19,14,10,53,20,182,113,174,110,730,148,102,43,23,13,20,10,28,16,196,97,3,3,31,15,27,14,44,21,384,157,45,29,96,46,105,66,64,35]
[null,null,null,"Estimate!!Total:!!Male:!!75 years and over:!!With a self-care difficulty",0,12,0,12,2,3,5,8,0,12,0,12,0,12,33,55,65,48,1,4,2,4,2,3,10,13,0,17,0,12,3,4,5,8,0,12,51,46,0,12,0,12,7,8,8,11]
[null,null,null,"Estimate!!Total:!!Male:!!75 years and over:!!No self-care difficulty",52,33,157,80,50,26,38,18,14,10,53,20,182,113,141,98,665,147,101,43,21,12,18,10,18,12,196,97,3,3,28,14,22,13,44,21,333,129,45,29,96,46,98,66,56,37]
[null,null,null,"Estimate!!Total:!!Female:",809,96,1557,132,854,132,1039,177,393,74,508,108,1817,205,2540,218,11057,383,1108,189,420,108,291,67,499,117,3165,194,158,79,584,81,311,57,515,163,3633,206,833,124,1708,137,1067,207,1889,200]
[null,null,null,"Estimate!!Total:!!Female:!!5 to 17 years:",100,34,144,80,149,44,106,53,38,29,52,39,225,70,617,129,1041,198,198,77,116,56,46,30,58,27,443,150,5,5,89,33,30,15,95,63,602,142,113,46,287,98,180,81,289,127]
[null,null,null,"Estimate!!Total:!!Female:!!5 to 17 years:!!With a self-care difficulty",0,12,0,12,0,12,4,6,0,12,0,12,0,12,21,33,0,22,0,12,0,12,0,12,0,12,0,17,0,12,0,12,0,12,0,12,0,17,0,12,7,13,0,12,0,12]
[null,null,null,"Estimate!!Total:!!Female:!!5 to 17 years:!!No self-care difficulty",100,34,144,80,149,44,102,52,38,29,52,39,225,70,596,124,1041,198,198,77,116,56,46,30,58,27,443,150,5,5,89,33,30,15,95,63,602,142,113,46,280,95,180,81,289,127]
[null,null,null,"Estimate!!Total:!!Female:!!18 to 34 years:",117,55,323,125,63,26,151,78,95,35,89,40,306,147,307,170,3991,285,117,53,72,40,27,18,69,47,1002,156,67,57,102,41,74,37,122,78,424,133,205,65,318,144,119,67,492,192]
[null,null,null,"Estimate!!Total:!!Female:!!18 to 34 years:!!With a self-care difficulty",6,8,0,12,0,12,0,12,0,12,0,12,0,12,0,17,42,55,0,12,0,12,0,12,0,12,26,44,0,12,0,12,0,12,4,6,0,17,0,12,0,12,0,12,0,12]
[null,null,null,"Estimate!!Total:!!Female:!!18 to 34 years:!!No self-care difficulty",111,55,323,125,63,26,151,78,95,35,89,40,306,147,307,170,3949,290,117,53,72,40,27,18,69,47,976,149,67,57,102,41,74,37,118,78,424,133,205,65,318,144,119,67,492,192]
[null,null,null,"Estimate!!Total:!!Female:!!35 to 64 years:",329,67,729,167,404,97,484,84,170,44,220,61,843,127,1144,160,3688,301,586,139,132,39,140,38,226,60,1067,134,66,30,257,49,145,28,179,54,1648,206,352,89,699,118,430,101,753,132]
[null,null,null,"Estimate!!Total:!!Female:!!35 to 64 years:!!With a self-care difficulty",5,6,0,12,0,12,10,11,0,12,0,12,24,30,67,77,88,75,41,41,5,6,0,12,4,6,29,45,0,12,0,12,5,7,0,12,86,88,4,7,12,19,0,12,9,13]
[null,null,null,"Estimate!!Total:!!Female:!!35 to 64 years:!!No self-care difficulty",324,67,729,167,404,97,474,83,170,44,220,61,819,122,1077,157,3600,292,545,127,127,38,140,38,222,61,1038,141,66,30,257,49,140,28,179,54,1562,224,348,88,687,119,430,101,744,130]
[null,null,null,"Estimate!!Total:!!Female:!!65 to 74 years:",173,71,244,110,162,54,251,106,58,25,107,30,214,97,276,101,1300,181,120,51,67,38,48,17,69,30,431,102,13,5,86,25,40,14,72,25,587,143,101,32,182,50,215,110,204,79]
[null,null,null,"Estimate!!Total:!!Female:!!65 to 74 years:!!With a self-care difficulty",0,12,0,12,0,12,4,6,0,12,0,12,29,32,0,17,40,36,11,12,0,12,2,3,0,12,14,22,0,12,5,6,0,12,0,12,0,17,0,12,6,8,4,8,58,75]
[null,null,null,"Estimate!!Total:!!Female:!!65 to 74 years:!!No self-care difficulty",173,71,244,110,162,54,247,105,58,25,107,30,185,96,276,101,1260,173,109,48,67,38,46,17,69,30,417,106,13,5,81,25,40,14,72,25,587,143,101,32,176,50,211,109,146,61]
[null,null,null,"Estimate!!Total:!!Female:!!75 years and over:",90,47,117,76,76,51,47,27,32,14,40,22,229,155,196,97,1037,197,87,42,33,18,30,21,77,40,222,107,7,7,50,22,22,13,47,20,372,116,62,38,222,100,123,45,151,66]
[null,null,null,"Estimate!!Total:!!Female:!!75 years and over:!!With a self-care difficulty",5,7,19,30,5,5,12,16,0,12,0,12,0,12,49,63,36,37,0,12,3,4,2,6,0,12,45,60,4,6,10,10,4,5,3,4,34,35,0,12,0,12,17,19,13,17]
[null,null,null,"Estimate!!Total:!!Female:!!75 years and over:!!No self-care difficulty",85,46,98,69,71,50,35,20,32,14,40,22,229,155,147,84,1001,198,87,42,30,18,28,18,77,40,177,85,3,4,40,19,18,12,44,20,338,109,62,38,222,100,106,40,138,63]

{"sheet":"ACS_Table_B18106","index":50,"n_rows":153,"n_cols":48,"rows_kept":153,"cut":false,"hidden":true,"merged":[]}
["B18106. SEX BY AGE BY SELF-CARE DIFFICULTY\n\n\n\n"]
["Universe:  Civilian noninstitutionalized population 5 years and over"]
["Data Set: 2018-2022 American Community Survey 5-Year Estimates"]
[]
[null,null,"Alstead",null,"Chesterfield",null,"Dublin",null,"Fitzwilliam",null,"Gilsum",null,"Harrisville",null,"Hinsdale",null,"Jaffrey",null,"Keene",null,"Marlborough",null,"Marlow",null,"Nelson",null,"Richmond",null,"Rindge",null,"Roxbury",null,"Stoddard",null,"Sullivan",null,"Surry",null,"Swanzey",null,"Troy",null,"Walpole",null,"Westmoreland",null,"Winchester"]
[null," ","Estimate","Margin of Error","Estimate","Margin of Error","Estimate","Margin of Error","Estimate","Margin of Error","Estimate","Margin of Error","Estimate","Margin of Error","Estimate","Margin of Error","Estimate","Margin of Error","Estimate","Margin of Error","Estimate","Margin of Error","Estimate","Margin of Error","Estimate","Margin of Error","Estimate","Margin of Error","Estimate","Margin of Error","Estimate","Margin of Error","Estimate","Margin of Error","Estimate","Margin of Error","Estimate","Margin of Error","Estimate","Margin of Error","Estimate","Margin of Error","Estimate","Margin of Error","Estimate","Margin of Error","Estimate","Margin of Error"]
[null,"Total:",1567,172,3436,73,1630,209,2209,360,812,136,927,174,3881,59,5157,101,21557,165,2037,334,761,165,528,103,1056,234,6183,121,257,112,1147,153,618,104,886,208,7071,107,1758,258,3324,112,1891,327,3755,135]
[null,"Male:",758,116,1879,137,776,113,1170,214,419,80,419,76,2064,204,2617,209,10500,345,929,184,341,73,237,48,557,149,3018,206,99,40,563,96,307,63,371,70,3438,199,925,172,1616,159,824,155,1866,182]
[null,"5 to 17  years:",96,55,452,132,97,40,101,36,52,31,47,26,277,125,566,154,1379,180,129,64,37,23,17,12,82,37,470,153,4,6,104,62,18,12,34,16,425,130,149,79,312,115,51,27,311,122]
[null,"With self care difficulty",0,12,0,12,0,12,0,12,3,5,0,12,0,12,19,33,21,31,0,12,2,3,0,12,0,12,0,17,0,12,0,12,3,4,0,12,0,17,0,12,5,8,0,12,0,12]
[null,"With no self care difficulty",96,55,452,132,97,40,101,36,49,30,47,26,277,125,547,158,1358,177,129,64,35,23,17,12,82,37,470,153,4,6,104,62,15,11,34,16,425,130,149,79,307,115,51,27,311,122]
[null,"18 to 34  years:",147,61,366,146,136,55,226,92,119,56,38,20,294,122,408,190,3702,372,175,92,53,32,25,15,110,61,941,135,17,10,81,29,88,36,49,28,528,182,191,77,366,116,117,52,388,118]
[null,"With self care difficulty",0,12,0,12,0,12,6,9,0,12,0,12,0,12,0,17,10,15,0,12,0,12,0,12,3,6,0,17,1,3,0,12,15,19,0,12,0,17,0,12,8,14,0,12,0,12]
[null,"With no self care difficulty",147,61,366,146,136,55,220,92,119,56,38,20,294,122,408,190,3692,372,175,92,53,32,25,15,107,60,941,135,16,10,81,29,73,31,49,28,528,182,191,77,358,117,117,52,388,118]
[null,"35 to 64  years:",357,76,537,175,338,83,605,177,158,38,190,52,878,165,1310,200,3790,283,440,108,153,41,116,30,192,53,983,154,65,37,279,49,134,28,164,44,1568,216,419,95,571,100,395,97,910,152]
[null,"With self care difficulty",15,17,0,12,0,12,0,12,0,12,16,17,24,26,24,38,15,18,9,10,2,3,11,14,0,12,11,19,0,12,0,12,0,12,0,12,0,17,6,8,0,12,20,17,68,57]
[null,"With no self care difficulty",342,78,537,175,338,83,605,177,158,38,174,50,854,169,1286,192,3775,284,431,108,151,41,105,28,192,53,972,152,65,37,279,49,134,28,164,44,1568,216,413,94,571,100,375,95,842,142]
[null,"65 to 74  years:",106,42,367,125,153,64,195,55,76,29,91,28,433,236,159,87,899,135,83,37,75,38,59,21,145,100,428,106,10,6,68,17,40,17,80,34,533,186,121,49,271,74,156,50,193,70]
[null,"With self care difficulty",0,12,0,12,0,12,11,18,1,2,0,12,191,233,0,17,0,22,5,8,0,12,0,12,2,3,0,17,0,12,0,12,0,12,0,12,18,32,6,8,10,17,3,5,0,12]
[null,"With no self care difficulty",106,42,367,125,153,64,184,56,75,28,91,28,242,117,159,87,899,135,78,37,75,38,59,21,143,100,428,106,10,6,68,17,40,17,80,34,515,180,115,50,261,69,153,49,193,70]
[null,"75  years and Older:",52,33,157,80,52,26,43,19,14,10,53,20,182,113,174,110,730,148,102,43,23,13,20,10,28,16,196,97,3,3,31,15,27,14,44,21,384,157,45,29,96,46,105,66,64,35]
[null,"With self care difficulty",0,12,0,12,2,3,5,8,0,12,0,12,0,12,33,55,65,48,1,4,2,4,2,3,10,13,0,17,0,12,3,4,5,8,0,12,51,46,0,12,0,12,7,8,8,11]
[null,"With no self care difficulty",52,33,157,80,50,26,38,18,14,10,53,20,182,113,141,98,665,147,101,43,21,12,18,10,18,12,196,97,3,3,28,14,22,13,44,21,333,129,45,29,96,46,98,66,56,37]
[null,"Female:",809,96,1557,132,854,132,1039,177,393,74,508,108,1817,205,2540,218,11057,383,1108,189,420,108,291,67,499,117,3165,194,158,79,584,81,311,57,515,163,3633,206,833,124,1708,137,1067,207,1889,200]
[null,"5 to 17  years:",100,34,144,80,149,44,106,53,38,29,52,39,225,70,617,129,1041,198,198,77,116,56,46,30,58,27,443,150,5,5,89,33,30,15,95,63,602,142,113,46,287,98,180,81,289,127]
[null,"With self care difficulty",0,12,0,12,0,12,4,6,0,12,0,12,0,12,21,33,0,22,0,12,0,12,0,12,0,12,0,17,0,12,0,12,0,12,0,12,0,17,0,12,7,13,0,12,0,12]
[null,"With no self care difficulty",100,34,144,80,149,44,102,52,38,29,52,39,225,70,596,124,1041,198,198,77,116,56,46,30,58,27,443,150,5,5,89,33,30,15,95,63,602,142,113,46,280,95,180,81,289,127]
[null,"18 to 34  years:",117,55,323,125,63,26,151,78,95,35,89,40,306,147,307,170,3991,285,117,53,72,40,27,18,69,47,1002,156,67,57,102,41,74,37,122,78,424,133,205,65,318,144,119,67,492,192]
[null,"With self care difficulty",6,8,0,12,0,12,0,12,0,12,0,12,0,12,0,17,42,55,0,12,0,12,0,12,0,12,26,44,0,12,0,12,0,12,4,6,0,17,0,12,0,12,0,12,0,12]
[null,"With no self care difficulty",111,55,323,125,63,26,151,78,95,35,89,40,306,147,307,170,3949,290,117,53,72,40,27,18,69,47,976,149,67,57,102,41,74,37,118,78,424,133,205,65,318,144,119,67,492,192]
[null,"35 to 64  years:",329,67,729,167,404,97,484,84,170,44,220,61,843,127,1144,160,3688,301,586,139,132,39,140,38,226,60,1067,134,66,30,257,49,145,28,179,54,1648,206,352,89,699,118,430,101,753,132]
[null,"With self care difficulty",5,6,0,12,0,12,10,11,0,12,0,12,24,30,67,77,88,75,41,41,5,6,0,12,4,6,29,45,0,12,0,12,5,7,0,12,86,88,4,7,12,19,0,12,9,13]
[null,"With no self care difficulty",324,67,729,167,404,97,474,83,170,44,220,61,819,122,1077,157,3600,292,545,127,127,38,140,38,222,61,1038,141,66,30,257,49,140,28,179,54,1562,224,348,88,687,119,430,101,744,130]
[null,"65 to 74  years:",173,71,244,110,162,54,251,106,58,25,107,30,214,97,276,101,1300,181,120,51,67,38,48,17,69,30,431,102,13,5,86,25,40,14,72,25,587,143,101,32,182,50,215,110,204,79]
[null,"With self care difficulty",0,12,0,12,0,12,4,6,0,12,0,12,29,32,0,17,40,36,11,12,0,12,2,3,0,12,14,22,0,12,5,6,0,12,0,12,0,17,0,12,6,8,4,8,58,75]
[null,"With no self care difficulty",173,71,244,110,162,54,247,105,58,25,107,30,185,96,276,101,1260,173,109,48,67,38,46,17,69,30,417,106,13,5,81,25,40,14,72,25,587,143,101,32,176,50,211,109,146,61]
[null,"75  years and Older:",90,47,117,76,76,51,47,27,32,14,40,22,229,155,196,97,1037,197,87,42,33,18,30,21,77,40,222,107,7,7,50,22,22,13,47,20,372,116,62,38,222,100,123,45,151,66]
[null,"With self care difficulty",5,7,19,30,5,5,12,16,0,12,0,12,0,12,49,63,36,37,0,12,3,4,2,6,0,12,45,60,4,6,10,10,4,5,3,4,34,35,0,12,0,12,17,19,13,17]
[null,"With no self care difficulty",85,46,98,69,71,50,35,20,32,14,40,22,229,155,147,84,1001,198,87,42,30,18,28,18,77,40,177,85,3,4,40,19,18,12,44,20,338,109,62,38,222,100,106,40,138,63]
[]
[]
[{"$f":"A1& \"-Calculated\"","v":"B18106. SEX BY AGE BY SELF-CARE DIFFICULTY\n\n\n\n-Calculated"}]
[{"$f":"A2","v":"Universe:  Civilian noninstitutionalized population 5 years and over"}]
[{"$f":"A3","v":"Data Set: 2018-2022 American Community Survey 5-Year Estimates"}]
[]
[]
[null,null,"Alstead",null,"Chesterfield",null,"Dublin",null,"Fitzwilliam",null,"Gilsum",null,"Harrisville",null,"Hinsdale",null,"Jaffrey",null,"Keene",null,"Marlborough",null,"Marlow",null,"Nelson",null,"Richmond",null,"Rindge",null,"Roxbury",null,"Stoddard",null,"Sullivan",null,"Surry",null,"Swanzey",null,"Troy",null,"Walpole",null,"Westmoreland",null,"Winchester"]
[null," ","Estimate","Margin of Error","Estimate","Margin of Error","Estimate","Margin of Error","Estimate","Margin of Error","Estimate","Margin of Error","Estimate","Margin of Error","Estimate","Margin of Error","Estimate","Margin of Error","Estimate","Margin of Error","Estimate","Margin of Error","Estimate","Margin of Error","Estimate","Margin of Error","Estimate","Margin of Error","Estimate","Margin of Error","Estimate","Margin of Error","Estimate","Margin of Error","Estimate","Margin of Error","Estimate","Margin of Error","Estimate","Margin of Error","Estimate","Margin of Error","Estimate","Margin of Error","Estimate","Margin of Error","Estimate","Margin of Error"]
[null,"Total:",{"$f":"C7","v":1567},172,3436,73,1630,209,2209,360,812,136,927,174,3881,59,5157,101,21557,165,2037,334,761,165,{"$f":"Y7","v":528},103,1056,234,6183,121,257,112,1147,153,618,104,886,208,7071,107,1758,258,3324,112,1891,327,3755,135]
[null,"5 to 17  years:",{"$f":"C25+C9","v":196},{"$f":"SQRT((D25^2)+(D9^2))","v":64.660652641308843},{"$f":"E25+E9","v":596},{"$f":"SQRT((F25^2)+(F9^2))","v":154.35025105259791},{"$f":"G25+G9","v":246},{"$f":"SQRT((H25^2)+(H9^2))","v":59.464274989274024},{"$f":"I25+I9","v":207},{"$f":"SQRT((J25^2)+(J9^2))","v":64.070273918565391},{"$f":"K25+K9","v":90},{"$f":"SQRT((L25^2)+(L9^2))","v":42.449970553582247},{"$f":"M25+M9","v":99},{"$f":"SQRT((N25^2)+(N9^2))","v":46.872166581031863},{"$f":"O25+O9","v":502},{"$f":"SQRT((P25^2)+(P9^2))","v":143.26548781894402},{"$f":"Q25+Q9","v":1183},{"$f":"SQRT((R25^2)+(R9^2))","v":200.89051744669283},{"$f":"S25+S9","v":2420},{"$f":"SQRT((T25^2)+(T9^2))","v":267.58923745173308},{"$f":"U25+U9","v":327},{"$f":"SQRT((V25^2)+(V9^2))","v":100.12492197250393},{"$f":"W25+W9","v":153},{"$f":"SQRT((X25^2)+(X9^2))","v":60.539243470661241},{"$f":"Y25+Y9","v":63},{"$f":"SQRT((Z25^2)+(Z9^2))","v":32.310988842807021},{"$f":"AA25+AA9","v":140},{"$f":"SQRT((AB25^2)+(AB9^2))","v":45.803929962395145},{"$f":"AC25+AC9","v":913},{"$f":"SQRT((AD25^2)+(AD9^2))","v":214.26385602802915},{"$f":"AE25+AE9","v":9},{"$f":"SQRT((AF25^2)+(AF9^2))","v":7.810249675906654},{"$f":"AG25+AG9","v":193},{"$f":"SQRT((AH25^2)+(AH9^2))","v":70.235318750611498},{"$f":"AI25+AI9","v":48},{"$f":"SQRT((AJ25^2)+(AJ9^2))","v":19.209372712298546},{"$f":"AK25+AK9","v":129},{"$f":"SQRT((AL25^2)+(AL9^2))","v":65},{"$f":"AM25+AM9","v":1027},{"$f":"SQRT((AN25^2)+(AN9^2))","v":192.52012881774206},{"$f":"AO25+AO9","v":262},91.4166286842826,{"$f":"AQ25+AQ9","v":599},151.09268678529745,{"$f":"AS25+AS9","v":231},85.381496824546247,{"$f":"AU25+AU9","v":600},176.10508226624239]
[null,"With self care difficulty",0,16.970562748477139,0,16.970562748477139,0,16.970562748477139,4,13.416407864998739,3,13,0,16.970562748477139,0,16.970562748477139,40,46.669047558312137,21,38.013155617496423,0,16.970562748477139,2,12.369316876852981,0,16.970562748477139,0,16.970562748477139,0,24.041630560342615,0,16.970562748477139,0,16.970562748477139,3,12.649110640673518,0,16.970562748477139,0,24.041630560342615,0,16.970562748477139,12,15.264337522473747,0,16.970562748477139,0,16.970562748477139]
[null,"With no self care difficulty",196,64.660652641308843,596,154.35025105259791,246,59.464274989274024,203,63.245553203367585,87,41.725292090050132,99,46.872166581031863,502,143.26548781894402,1143,200.84820138602188,2399,265.58049627184596,327,100.12492197250393,151,60.539243470661241,63,32.310988842807021,140,45.803929962395145,913,214.26385602802915,9,7.810249675906654,193,70.235318750611498,45,18.601075237738275,129,65,1027,192.52012881774206,262,91.4166286842826,587,149.16433890176299,231,85.381496824546247,600,176.10508226624239]
[null,"18 to 34  years:",264,82.134036793524274,689,192.20041623263984,199,60.835844697020519,377,120.61509026651682,214,66.037867924396224,127,44.721359549995796,600,191.03141102970474,715,254.95097567963924,7693,468.62458322200723,292,106.17438485811914,125,51.224993899462788,52,23.430749027719962,179,77.006493232713822,1943,206.30317496345035,84,57.870545184921149,183,50.219518117958877,162,51.623637996561229,171,82.87339742040264,952,225.41739063346466,396,100.7670581092849,684,184.91078930121952,236,84.811555816409836,880,225.36193112413639]
[null,"With self care difficulty",6,14.422205101855956,0,16.970562748477139,0,16.970562748477139,6,15,0,16.970562748477139,0,16.970562748477139,0,16.970562748477139,0,24.041630560342615,52,57.008771254956898,0,16.970562748477139,0,16.970562748477139,0,16.970562748477139,3,13.416407864998739,26,47.169905660283021,1,12.369316876852981,0,16.970562748477139,15,22.472205054244231,4,13.416407864998739,0,24.041630560342615,0,16.970562748477139,8,18.439088914585774,0,16.970562748477139,0,16.970562748477139]
[null,"With no self care difficulty",258,82.134036793524274,689,192.20041623263984,199,60.835844697020519,371,120.61509026651682,214,66.037867924396224,127,44.721359549995796,600,191.03141102970474,715,254.95097567963924,7641,471.68209633184085,292,106.17438485811914,125,51.224993899462788,52,23.430749027719962,176,76.216796049164913,1917,201.06217943710845,83,57.870545184921149,183,50.219518117958877,147,48.270073544588683,167,82.87339742040264,952,225.41739063346466,396,100.7670581092849,676,185.53975315279473,236,84.811555816409836,880,225.36193112413639]
[null,"35 to 64  years:",686,101.31633629380802,1266,241.89667215569543,742,127.66362050325849,1089,195.92090240706835,328,58.137767414994535,410,80.156097709406993,1721,208.21623375712088,2454,256.12496949731394,7478,413.14646313383827,1026,176.02556632489498,285,56.586217403180434,256,48.414873747640819,418,80.05623023850174,2050,204.13720875920686,131,47.634021455258214,536,69.296464556281663,279,39.597979746446661,343,69.656299069071991,3216,298.48283032697208,771,130.17680284904833,1270,154.67385040788247,825,140.03570973148243,1663,201.31567251458591]
[null,"With self care difficulty",20,18.027756377319946,0,16.970562748477139,0,16.970562748477139,10,16.278820596099706,0,16.970562748477139,16,20.808652046684813,48,39.698866482558415,91,85.866174946832231,103,77.129760793094647,50,42.201895692018383,7,6.7082039324993694,11,18.439088914585774,4,13.416407864998739,40,48.846698967279252,0,16.970562748477139,0,16.970562748477139,5,13.892443989449804,0,16.970562748477139,86,89.627004859026727,10,10.63014581273465,12,22.472205054244231,20,20.808652046684813,77,58.463663928973865]
[null,"With no self care difficulty",666,102.82509421342633,1266,241.89667215569543,742,127.66362050325849,1079,195.49424543960367,328,58.137767414994535,394,78.87331614684399,1673,208.43464203437969,2363,248.01814449753471,7375,407.33278777923096,976,166.71232707871366,278,55.901699437494742,245,47.201694884823787,414,80.808415403347695,2010,207.32824216685964,131,47.634021455258214,536,69.296464556281663,274,39.597979746446661,343,69.656299069071991,3130,311.17840542042757,761,128.76334882255898,1258,155.43809056984713,805,138.65785228395831,1586,192.52012881774206]
[null,"65 to 74  years:",279,82.492423894561369,611,166.50825805346713,315,83.737685661833282,446,119.41942890501528,134,38.288379438153292,198,41.036569057366385,647,255.15681452785068,435,133.30416347586447,2199,225.80079716422614,203,63.007936008093459,142,53.740115370177612,107,27.018512172212592,214,104.4030650891055,859,147.10540438746634,23,7.810249675906654,154,30.232432915661949,80,22.022715545545239,152,42.201895692018383,1120,234.61670869739862,222,58.523499553598128,453,89.308454247064432,371,120.83045973594572,397,105.55093557141026]
[null,"With self care difficulty",0,16.970562748477139,0,16.970562748477139,0,16.970562748477139,15,18.973665961010276,1,12.165525060596439,0,16.970562748477139,220,235.18715951343941,0,24.041630560342615,40,42.190046219457976,16,14.422205101855956,0,16.970562748477139,2,12.369316876852981,2,12.369316876852981,14,27.802877548915689,0,16.970562748477139,5,13.416407864998739,0,16.970562748477139,0,16.970562748477139,18,36.235341863986875,6,14.422205101855956,16,18.788294228055936,7,9.4339811320566032,58,75.953933407032977]
[null,"With no self care difficulty",279,82.492423894561369,611,166.50825805346713,315,83.737685661833282,431,119,133,37.536648758246919,198,41.036569057366385,427,151.34397906755325,435,133.30416347586447,2159,219.44019686465833,187,60.605280298007038,142,53.740115370177612,105,27.018512172212592,212,104.4030650891055,845,149.90663761154806,23,7.810249675906654,149,30.232432915661949,80,22.022715545545239,152,42.201895692018383,1102,229.88910370002316,216,59.363288318623319,437,85.211501571090736,364,119.50732195141852,339,92.849340331528467]
[null,"75  years and Older:",142,57.428216061444921,274,110.34491379306978,128,57.245087125446844,90,33.015148038438355,46,17.204650534085253,93,29.732137494637012,411,191.81762171396036,370,146.65946952038249,1767,246.40008116881779,189,60.108235708594876,56,22.203603311174518,50,23.259406699226016,105,43.08131845707603,418,144.42298985964803,10,7.6157731058639087,81,26.627053911388696,49,19.104973174542799,91,29,756,195.20502042724209,107,47.801673610868477,318,110.07270324653611,228,79.881161734166085,215,74.706090782479038]
[null,"With self care difficulty",5,13.892443989449804,19,32.310988842807021,7,5.8309518948453007,17,17.888543819998318,0,16.970562748477139,0,16.970562748477139,0,16.970562748477139,82,83.630138108220294,101,60.605280298007038,1,12.649110640673518,5,5.6568542494923806,4,6.7082039324993694,10,17.691806012954132,45,62.361847310675458,4,13.416407864998739,13,10.770329614269007,9,9.4339811320566032,3,12.649110640673518,85,57.801384066473702,0,16.970562748477139,0,16.970562748477139,24,20.615528128088304,21,20.248456731316587]
[null,"With no self care difficulty",137,56.612719418872643,255,105.64563407921787,121,56.356011214421486,73,26.90724809414742,46,17.204650534085253,93,29.732137494637012,411,191.81762171396036,288,129.07362240210043,1666,246.60291969074495,188,60.108235708594876,51,21.633307652783937,46,20.591260281974002,95,41.761226035642203,373,128.97286536322281,6,5,68,23.600847442411894,40,17.691806012954132,88,29,671,168.88457596832222,107,47.801673610868477,318,110.07270324653611,204,77.175125526298956,194,73.061617830431317]
[]
[]
[]
[]
[]
[]
[]
[]
[]
[]
[]
[]
[]
[]
[]
[]
[]
[]
[]
[]
[]
[]
[]
[]
[]
[]
[]
[]
[]
[]
[]
[]
[]
[]
[]
["B18106. SEX BY AGE BY SELF-CARE DIFFICULTY\n\n\n\n-Calculated"]
["Universe:  Civilian noninstitutionalized population 5 years and over"]
["Data Set: 2013-2017 American Community Survey 5-Year Estimates"]
[]
[]
[null,null,"Alstead",null,"Chesterfield",null,"Dublin",null,"Fitzwilliam",null,"Gilsum",null,"Harrisville",null,"Hinsdale",null,"Jaffrey",null,"Keene",null,"Marlborough",null,"Marlow",null,"Nelson",null,"Richmond",null,"Rindge",null,"Roxbury",null,"Stoddard",null,"Sullivan",null,"Surry",null,"Swanzey",null,"Troy",null,"Walpole",null,"Westmoreland",null,"Winchester"]
[null," ","Estimate","Margin of Error","Estimate","Margin of Error","Estimate","Margin of Error","Estimate","Margin of Error","Estimate","Margin of Error","Estimate","Margin of Error","Estimate","Margin of Error","Estimate","Margin of Error","Estimate","Margin of Error","Estimate","Margin of Error","Estimate","Margin of Error","Estimate","Margin of Error","Estimate","Margin of Error","Estimate","Margin of Error","Estimate","Margin of Error","Estimate","Margin of Error","Estimate","Margin of Error","Estimate","Margin of Error","Estimate","Margin of Error","Estimate","Margin of Error","Estimate","Margin of Error","Estimate","Margin of Error","Estimate","Margin of Error"]
[null,"Total:",1765,222,3189,160,1445,166,2198,197,686,77,898,140,3786,106,21825,258,22135,296,2033,292,663,102,537,86,1170,160,5597,126,199,55,1140,166,643,93,842,118,6761,152,2075,277,3695,85,1651,206,3889,159]
[null,"5 to 17  years:",234,89.050547443572739,467,154.76756766196203,234,62.433965115151864,278,75.166481891864535,100,25,81,30.528675044947494,617,137.2953021774598,2821,288.84597971929605,2791,291,266,90.686272390037075,101,31.906112267087632,62,22.671568097509269,161,52.201532544552748,849,190.31815467789718,19,12.083045973594572,158,51.088159097779204,92,42.544094772365298,124,42.544094772365298,894,221.29844102478444,363,106.10372283760829,579,141.79210133149166,243,65.36818798161687,637,146.21901381147393]
[null,"With self care difficulty",0,15.556349186104045,0,15.556349186104045,3,12.083045973594572,0,15.556349186104045,0,15.556349186104045,0,15.556349186104045,0,15.556349186104045,0,29.698484809834994,0,28.284271247461902,0,15.556349186104045,0,15.556349186104045,0,15.556349186104045,5,13.601470508735444,11,22.627416997969522,0,15.556349186104045,0,15.556349186104045,0,15.556349186104045,0,15.556349186104045,0,22.627416997969522,10,20.248456731316587,0,15.556349186104045,0,15.556349186104045,19,33.837848631377263]
[null,"With no self care difficulty",234,89.050547443572739,467,154.76756766196203,231,62.433965115151864,278,75.166481891864535,100,25,81,30.528675044947494,617,137.2953021774598,2821,288.84597971929605,2791,291,266,90.686272390037075,101,31.906112267087632,62,22.671568097509269,156,48.270073544588683,838,190.31815467789718,19,12.083045973594572,158,51.088159097779204,92,42.544094772365298,124,42.544094772365298,894,221.29844102478444,353,103.39245620450265,579,141.79210133149166,243,65.36818798161687,618,137.97463535012514]
[null,"18 to 34  years:",369,111.01801655587259,432,135.79396157414365,256,67.007462271003817,409,96.426137535421375,121,29,91,31.240998703626616,587,140.01428498549711,7744,445.31000437897194,8156,446.97762807549998,413,116.1077086157504,104,31.89043743820395,128,41.231056256176608,280,73.006848993775918,1973,237.26145915424192,50,17.691806012954132,208,55.605755097831377,129,39.66106403010388,126,37.483329627982627,1572,281.58480072617556,430,145.34441853748632,704,146.64924138910504,298,75.663729752107784,933,159.13830462839547]
[null,"With self care difficulty",0,15.556349186104045,0,15.556349186104045,0,15.556349186104045,0,15.556349186104045,2,11.401754250991379,0,15.556349186104045,24,30.083217912982647,83,102.59142264341595,66,84.723078319900537,0,15.556349186104045,0,15.556349186104045,0,15.556349186104045,3,12.083045973594572,0,22.627416997969522,0,15.556349186104045,6,13.601470508735444,2,11.401754250991379,0,15.556349186104045,0,22.627416997969522,17,30.083217912982647,0,15.556349186104045,0,15.556349186104045,10,18.601075237738275]
[null,"With no self care difficulty",369,111.01801655587259,432,135.79396157414365,256,67.007462271003817,409,96.426137535421375,119,28.284271247461902,91,31.240998703626616,563,138.62178760930766,7661,428.52771205605831,8090,447.7153113307607,413,116.1077086157504,104,31.89043743820395,128,41.231056256176608,277,72.201108024738787,1973,237.26145915424192,50,17.691806012954132,202,54.817880294662984,127,39.66106403010388,126,37.483329627982627,1572,281.58480072617556,413,140.00357138301865,704,146.64924138910504,298,75.663729752107784,923,156.40012787718558]
[null,"35 to 64  years:",801,101.11874208078342,1501,172.00290695217916,678,81.394102980498531,1011,126.62148316932637,349,45.967379738244816,441,63.655321851358195,1833,171.26587517658035,7687,334.67745666536911,7637,355.06900737743922,934,128.76334882255898,337,47.423622805517503,238,40.459856648287818,550,71.217975259059429,1949,153.52198539622916,99,25.80697580112788,510,82.800966177937809,296,40.311288741492746,409,52.801515129776341,3053,248.01814449753471,985,129.07362240210043,1685,150.86417732516887,800,86.278618440491968,1639,181.79383927955314]
[null,"With self care difficulty",16,17.029386365926403,0,15.556349186104045,3,12.083045973594572,31,26.40075756488817,7,6.7082039324993694,3,12.083045973594572,34,34.785054261852174,64,44.294469180700204,90,62.169124169478209,12,12.727922061357855,7,14.866068747318506,3,11.704699910719626,0,15.556349186104045,32,29.732137494637012,1,11.401754250991379,0,15.556349186104045,0,15.556349186104045,0,15.556349186104045,114,83.240615086627031,13,19.416487838947599,47,48.383881613611777,10,10.816653826391969,48,54.12947441089743]
[null,"With no self care difficulty",785,99.704563586628268,1501,172.00290695217916,675,80.721744282442259,980,127.40486646906389,342,46.669047558312137,438,63.655321851358195,1799,166.90116836020053,7623,338.18633916821653,7547,358.55961847369258,922,128.72451204024819,330,46.75467891024384,235,40.459856648287818,550,71.217975259059429,1917,152.74161188098023,98,25.80697580112788,510,82.800966177937809,296,40.311288741492746,409,52.801515129776341,2939,260.04999519323201,972,128.31601614763451,1638,157.8005069700348,790,85.562842402528915,1591,183.98369492974098]
[null,"65 to 74  years:",247,55.172456896534889,508,128.70120434556935,180,38.600518131237564,360,80.802227692063042,75,17.691806012954132,198,38.948684188300895,509,98.081598681913832,1908,174.77127910500627,1987,190.53608582103286,246,65.115282384398824,57,18.439088914585774,63,20.248456731316587,106,27.658633371878661,512,97.590983190046813,23,9.4339811320566032,150,38.897300677553446,80,24.041630560342615,123,30.232432915661949,614,129.52991932368366,184,51.855568649856693,364,98.270036124955197,213,54.488530903301111,435,88.600225733346747]
[null,"With self care difficulty",4,12.529964086141668,19,22.803508501982758,6,5.6568542494923806,8,8.4852813742385695,0,15.556349186104045,3,12.083045973594572,9,17.804493814764857,146,73.246160308919954,139,67.623960250786851,5,14.212670403551895,2,11.401754250991379,2,11.401754250991379,4,12.083045973594572,18,26.40075756488817,0,15.556349186104045,0,15.556349186104045,2,11.401754250991379,0,15.556349186104045,0,22.627416997969522,15,14.422205101855956,41,46.324939287601879,0,15.556349186104045,19,23.706539182259394]
[null,"With no self care difficulty",243,55.901699437494742,489,125.1758762701504,174,38.600518131237564,352,80.802227692063042,75,17.691806012954132,195,38.948684188300895,500,96.829747495281637,1762,177.45985461506498,1848,188.21530224718711,241,64.443773942872099,55,17.804493814764857,61,20.248456731316587,102,26.172504656604801,494,99.704563586628268,23,9.4339811320566032,150,38.897300677553446,78,24.041630560342615,123,30.232432915661949,614,129.52991932368366,169,51.855568649856693,323,86.608313688698502,213,54.488530903301111,416,90.426765949026404]
[null,"75  years and Older:",114,45.793012567421243,281,121.75385004179539,97,31.11269837220809,140,48.104053883222775,41,15.811388300841896,87,55.108982933819419,240,90.210864090751286,1665,226.25870149013053,1564,202.94334184693028,174,56.727418414731339,64,19.849433241279208,46,16.401219466856727,73,27.658633371878661,314,95.268042910516428,8,11.180339887498949,114,38.209946349085598,46,16.970562748477139,60,18.357559750685819,628,147.75655653811103,113,52.497618993626752,363,95.524865872714003,97,32.802438933713454,245,76.478755219995577]
[null,"With self care difficulty",11,14.866068747318506,16,26.40075756488817,9,13.601470508735444,17,22.825424421026653,2,11.704699910719626,6,13.038404810405298,60,58.051701094799967,128,94.244363226667303,55,34.481879299133332,14,12.206555615733702,4,11.704699910719626,2,11.401754250991379,9,13.601470508735444,35,38.327535793473601,2,5,3,11.704699910719626,4,11.704699910719626,8,6.4031242374328485,164,89.872131386765275,5,13.038404810405298,6,14.866068747318506,12,14.317821063276353,44,45.617978911828175]
[null,"With no self care difficulty",103,45.793012567421243,265,122.42957159118053,88,31.11269837220809,123,43.600458713183279,39,14.212670403551895,81,54.918120870983927,180,76.216796049164913,1537,227.13872413131145,1509,203.06649157357302,160,55.317266743757322,60,19.209372712298546,44,16.401219466856727,64,27.018512172212592,279,91.35097153287424,6,7.6157731058639087,111,37.536648758246919,42,16.278820596099706,52,18.357559750685819,464,114.21471008587291,108,51.224993899462788,357,94.847245611035007,85,29.832867780352597,201,71.175838597096984]
[]
[]
[]
[]
[]
[]
[]
[]
["B18106. SEX BY AGE BY SELF-CARE DIFFICULTY\n\n\n\n-Calculated"]
["Universe:  Civilian noninstitutionalized population 5 years and over"]
["Data Set: 2008-2012 American Community Survey 5-Year Estimates"]
[]
[]
[null,null,"Alstead",null,"Chesterfield",null,"Dublin",null,"Fitzwilliam",null,"Gilsum",null,"Harrisville",null,"Hinsdale",null,"Jaffrey",null,"Keene",null,"Marlborough",null,"Marlow",null,"Nelson",null,"Richmond",null,"Rindge",null,"Roxbury",null,"Stoddard",null,"Sullivan",null,"Surry",null,"Swanzey",null,"Troy",null,"Walpole",null,"Westmoreland",null,"Winchester"]
[null," ","Estimate","Margin of Error","Estimate","Margin of Error","Estimate","Margin of Error","Estimate","Margin of Error","Estimate","Margin of Error","Estimate","Margin of Error","Estimate","Margin of Error","Estimate","Margin of Error","Estimate","Margin of Error","Estimate","Margin of Error","Estimate","Margin of Error","Estimate","Margin of Error","Estimate","Margin of Error","Estimate","Margin of Error","Estimate","Margin of Error","Estimate","Margin of Error","Estimate","Margin of Error","Estimate","Margin of Error","Estimate","Margin of Error","Estimate","Margin of Error","Estimate","Margin of Error","Estimate","Margin of Error","Estimate","Margin of Error"]
[null,"Total:",1780,162,3411,97,1672,208,2428,243,524,71,874,128,3771,115,5122,164,22300,238,1891,249,855,177,723,155,944,133,5606,116,212,36,951,160,664,105,797,109,6907,134,1996,272,3471,118,1829,213,3921,135]
[null,"5 to 17  years:",358,89.202017914394744,470,138.2931668593933,361,98.716766559688324,349,90.603531939985658,36,16.970562748477139,113,44.944410108488462,509,123.76186811776881,1030,206.92993983471797,2967,302.12083675244912,294,105.99056561788883,151,50.990195135927848,105,41.109609582188931,174,68.8839603971781,897,144.30869689661813,40,15.652475842498529,133,52.201532544552748,130,48.548944375753422,91,31.89043743820395,1194,194.74342094150447,360,94.047860156411858,658,130.91982279242512,350,89.044932477934978,588,138.70832707519762]
[null,"With self care difficulty",5,12.529964086141668,0,15.556349186104045,0,15.556349186104045,0,15.556349186104045,0,15.556349186104045,0,15.556349186104045,0,15.556349186104045,0,22.627416997969522,27,30.479501308256342,0,15.556349186104045,0,15.556349186104045,0,15.556349186104045,4,12.529964086141668,0,22.627416997969522,0,15.556349186104045,0,15.556349186104045,0,15.556349186104045,0,15.556349186104045,5,18.867962264113206,0,15.556349186104045,0,15.556349186104045,0,15.556349186104045,7,17.029386365926403]
[null,"With no self care difficulty",353,89.202017914394744,470,138.2931668593933,361,98.716766559688324,349,90.603531939985658,36,16.970562748477139,113,44.944410108488462,509,123.76186811776881,1030,206.92993983471797,2940,302.12083675244912,294,105.99056561788883,151,50.990195135927848,105,41.109609582188931,170,69.656299069071991,897,144.30869689661813,40,15.652475842498529,133,52.201532544552748,130,48.548944375753422,91,31.89043743820395,1189,195.41238445912276,360,94.047860156411858,658,130.91982279242512,350,89.044932477934978,581,138.70832707519762]
[null,"18 to 34  years:",301,70.724818840347695,584,200.5617112013158,212,73.348483283568996,399,104.95713410721541,100,33.421549934136806,96,31.240998703626616,761,155.20631430454111,754,179.96110690924303,7934,476.76514134319848,307,98.290386101591849,110,47.413078364518789,108,44.407206622349037,164,44.654227123532216,2383,260.59930928534709,31,12.529964086141668,105,37.643060449437421,142,44.407206622349037,135,36.61966684720111,1376,220.86421167767313,520,105.38026380684383,671,129.5569372901351,300,75.690157880665041,704,148.52945835759317]
[null,"With self care difficulty",0,15.556349186104045,0,15.556349186104045,3,11.704699910719626,0,15.556349186104045,0,15.556349186104045,0,15.556349186104045,20,32.893768406797051,0,22.627416997969522,42,57.008771254956898,0,15.556349186104045,0,15.556349186104045,0,15.556349186104045,3,12.083045973594572,0,22.627416997969522,0,15.556349186104045,0,15.556349186104045,0,15.556349186104045,0,15.556349186104045,0,22.627416997969522,0,15.556349186104045,26,25,0,15.556349186104045,9,21.095023109728988]
[null,"With no self care difficulty",301,70.724818840347695,584,200.5617112013158,209,72.917761896536561,399,104.95713410721541,100,33.421549934136806,96,31.240998703626616,741,153.18289721767243,754,179.96110690924303,7892,484.29846169485199,307,98.290386101591849,110,47.413078364518789,108,44.407206622349037,161,44.10215414239989,2383,260.59930928534709,31,12.529964086141668,105,37.643060449437421,142,44.407206622349037,135,36.61966684720111,1376,220.86421167767313,520,105.38026380684383,645,127.40486646906389,300,75.690157880665041,695,149.16433890176299]
[null,"35 to 64  years:",852,86.556340033529608,1690,164.14932226482082,806,107.41508273980894,1319,123.3288287465668,293,40.80441152620633,520,70,1732,185.45619428857049,2558,156.63013758533191,8056,310.64449134018133,969,115.88356225108029,437,81.344944526380985,385,67.475921631349351,504,70.802542327235685,1798,165.55663683464942,99,22.203603311174518,544,85.428332536694171,311,41.725292090050132,425,57.982756057296896,3264,221.33458834985552,856,114.97825881443848,1614,140.73023839957068,921,102.53292154230269,2106,235.84952830141509]
[null,"With self care difficulty",40,26.570660511172846,0,15.556349186104045,33,58.54912467321779,24,29.154759474226502,4,12.083045973594572,7,13.601470508735444,104,50.990195135927848,13,26.40075756488817,138,70.235318750611498,0,15.556349186104045,19,14.212670403551895,6,12.529964086141668,0,15.556349186104045,25,28.844410203711913,0,15.556349186104045,7,9.4339811320566032,0,15.556349186104045,3,11.704699910719626,44,38.832975677895199,57,42.449970553582247,34,36.138621999185304,6,13.038404810405298,15,17.029386365926403]
[null,"With no self care difficulty",812,84.219950130595535,1690,164.14932226482082,773,90.520715861066847,1295,126.37246535539299,289,41.617304093369626,513,70,1628,193.14502323383846,2545,157.2895419282541,7918,306.36089828827699,969,115.88356225108029,418,79.195959492893323,379,67.475921631349351,504,70.802542327235685,1773,166.19265928433782,99,22.203603311174518,537,83.868945385047027,311,41.725292090050132,422,57.982756057296896,3220,224.16288720481811,799,111.66467659918243,1580,133.00375934536586,915,102.53292154230269,2091,235.10423220350586]
[null,"65 to 74  years:",158,45.967379738244816,402,145.04137340772803,194,66.211781428987393,263,75.432088662584434,65,22.022715545545239,66,24.041630560342615,416,95.524865872714003,414,112.43220179290273,1482,165.61400906928134,182,53.413481444294568,110,32.557641192199412,81,27.802877548915689,73,21.095023109728988,297,74.027022093286988,32,12.727922061357855,115,36.796738985948195,53,20,79,19.798989873223331,736,140.03570973148243,177,56.824290580701486,277,77.620873481300123,100,37.20215047547655,366,74.411020689142546]
[null,"With self care difficulty",4,5.8309518948453007,47,74.813100457072352,27,59.033888572581766,29,34.785054261852174,0,15.556349186104045,0,15.556349186104045,13,22.825424421026653,35,51.156622249714651,48,33.600595232822883,0,15.556349186104045,0,15.556349186104045,0,15.556349186104045,0,15.556349186104045,40,31.064449134018133,1,11.401754250991379,3,11.704699910719626,2,11.401754250991379,0,15.556349186104045,0,22.627416997969522,5,13.601470508735444,18,29.154759474226502,4,12.529964086141668,0,15.556349186104045]
[null,"With no self care difficulty",154,46.690470119715009,355,134.6291201783626,167,38.209946349085598,234,70.178344238091,65,22.022715545545239,66,24.041630560342615,403,94.847245611035007,379,98.600202839547947,1434,169.17742166140255,182,53.413481444294568,110,32.557641192199412,81,27.802877548915689,73,21.095023109728988,257,74.652528423356159,31,13.45362404707371,112,36.124783736376884,51,20,79,19.798989873223331,736,140.03570973148243,172,56.824290580701486,259,78.87331614684399,96,37.20215047547655,366,74.411020689142546]
[null,"75  years and Older:",111,37.735924528226413,265,104.00480758118829,99,35.510561809129406,98,43.56604182158393,30,15.556349186104045,79,34.828149534535996,353,120.42009799032718,366,107.71258050942797,1861,183.21571984958058,139,48.877397639399746,47,21.470910553583888,44,17.029386365926403,29,15,231,60.207972893961475,10,6.4031242374328485,54,23.323807579381203,28,19.646882704388499,67,30.232432915661949,337,111.36426715962351,83,34.985711369071801,251,74.202425836356596,158,48.918299234540036,157,58]
[null,"With self care difficulty",0,15.556349186104045,36,36.235341863986875,8,9.4339811320566032,4,12.529964086141668,3,12.083045973594572,18,16.763054614240211,28,31.144823004794873,10,22.627416997969522,174,87,0,15.556349186104045,0,15.556349186104045,6,6.4031242374328485,16,10.63014581273465,30,30.413812651491099,0,15.556349186104045,3,11.704699910719626,0,15.556349186104045,6,12.529964086141668,10,22.627416997969522,0,15.556349186104045,6,14.212670403551895,17,12.041594578792296,25,27.202941017470888]
[null,"With no self care difficulty",111,37.735924528226413,229,104.7377677822093,91,34.669871646719429,94,41.880783182743848,27,14.866068747318506,61,29.698484809834994,325,121.03718436910205,356,106.40488710580919,1687,184.1738309315414,139,48.877397639399746,47,21.470910553583888,38,16.278820596099706,13,9.8994949366116654,201,57.489129407219238,10,6.4031242374328485,51,22.825424421026653,28,19.646882704388499,61,29.681644159311659,327,109.59014554237986,83,34.985711369071801,245,73.600271738628791,141,45.607017003965517,132,53.075418038862395]

{"sheet":"SData_B18107_IndependantLivDis","index":51,"n_rows":57,"n_cols":58,"rows_kept":57,"cut":false,"hidden":true,"merged":[]}
["GEO_ID","GEO_ID2","SUMLEVEL",null,{"$f":"[1]ACS_16_5YR_B18107_with_ann!D1","v":"B18107_001E"},{"$f":"[1]ACS_16_5YR_B18107_with_ann!E1","v":"B18107_001M"},{"$f":"[1]ACS_16_5YR_B18107_with_ann!F1","v":"B18107_002E"},{"$f":"[1]ACS_16_5YR_B18107_with_ann!G1","v":"B18107_002M"},{"$f":"[1]ACS_16_5YR_B18107_with_ann!H1","v":"B18107_003E"},{"$f":"[1]ACS_16_5YR_B18107_with_ann!I1","v":"B18107_003M"},{"$f":"[1]ACS_16_5YR_B18107_with_ann!J1","v":"B18107_004E"},{"$f":"[1]ACS_16_5YR_B18107_with_ann!K1","v":"B18107_004M"},{"$f":"[1]ACS_16_5YR_B18107_with_ann!L1","v":"B18107_005E"},{"$f":"[1]ACS_16_5YR_B18107_with_ann!M1","v":"B18107_005M"},{"$f":"[1]ACS_16_5YR_B18107_with_ann!N1","v":"B18107_006E"},{"$f":"[1]ACS_16_5YR_B18107_with_ann!O1","v":"B18107_006M"},{"$f":"[1]ACS_16_5YR_B18107_with_ann!P1","v":"B18107_007E"},{"$f":"[1]ACS_16_5YR_B18107_with_ann!Q1","v":"B18107_007M"},{"$f":"[1]ACS_16_5YR_B18107_with_ann!R1","v":"B18107_008E"},{"$f":"[1]ACS_16_5YR_B18107_with_ann!S1","v":"B18107_008M"},{"$f":"[1]ACS_16_5YR_B18107_with_ann!T1","v":"B18107_009E"},{"$f":"[1]ACS_16_5YR_B18107_with_ann!U1","v":"B18107_009M"},{"$f":"[1]ACS_16_5YR_B18107_with_ann!V1","v":"B18107_010E"},{"$f":"[1]ACS_16_5YR_B18107_with_ann!W1","v":"B18107_010M"},{"$f":"[1]ACS_16_5YR_B18107_with_ann!X1","v":"B18107_011E"},{"$f":"[1]ACS_16_5YR_B18107_with_ann!Y1","v":"B18107_011M"},{"$f":"[1]ACS_16_5YR_B18107_with_ann!Z1","v":"B18107_012E"},{"$f":"[1]ACS_16_5YR_B18107_with_ann!AA1","v":"B18107_012M"},{"$f":"[1]ACS_16_5YR_B18107_with_ann!AB1","v":"B18107_013E"},{"$f":"[1]ACS_16_5YR_B18107_with_ann!AC1","v":"B18107_013M"},{"$f":"[1]ACS_16_5YR_B18107_with_ann!AD1","v":"B18107_014E"},{"$f":"[1]ACS_16_5YR_B18107_with_ann!AE1","v":"B18107_014M"},{"$f":"[1]ACS_16_5YR_B18107_with_ann!AF1","v":"B18107_015E"},{"$f":"[1]ACS_16_5YR_B18107_with_ann!AG1","v":"B18107_015M"},{"$f":"[1]ACS_16_5YR_B18107_with_ann!AH1","v":"B18107_016E"},{"$f":"[1]ACS_16_5YR_B18107_with_ann!AI1","v":"B18107_016M"},{"$f":"[1]ACS_16_5YR_B18107_with_ann!AJ1","v":"B18107_017E"},{"$f":"[1]ACS_16_5YR_B18107_with_ann!AK1","v":"B18107_017M"},{"$f":"[1]ACS_16_5YR_B18107_with_ann!AL1","v":"B18107_018E"},{"$f":"[1]ACS_16_5YR_B18107_with_ann!AM1","v":"B18107_018M"},{"$f":"[1]ACS_16_5YR_B18107_with_ann!AN1","v":"B18107_019E"},{"$f":"[1]ACS_16_5YR_B18107_with_ann!AO1","v":"B18107_019M"},{"$f":"[1]ACS_16_5YR_B18107_with_ann!AP1","v":"B18107_020E"},{"$f":"[1]ACS_16_5YR_B18107_with_ann!AQ1","v":"B18107_020M"},{"$f":"[1]ACS_16_5YR_B18107_with_ann!AR1","v":"B18107_021E"},{"$f":"[1]ACS_16_5YR_B18107_with_ann!AS1","v":"B18107_021M"},{"$f":"[1]ACS_16_5YR_B18107_with_ann!AT1","v":"B18107_022E"},{"$f":"[1]ACS_16_5YR_B18107_with_ann!AU1","v":"B18107_022M"},{"$f":"[1]ACS_16_5YR_B18107_with_ann!AV1","v":"B18107_023E"},{"$f":"[1]ACS_16_5YR_B18107_with_ann!AW1","v":"B18107_023M"},{"$f":"[1]ACS_16_5YR_B18107_with_ann!AX1","v":"B18107_024E"},{"$f":"[1]ACS_16_5YR_B18107_with_ann!AY1","v":"B18107_024M"},{"$f":"[1]ACS_16_5YR_B18107_with_ann!AZ1","v":"B18107_025E"},{"$f":"[1]ACS_16_5YR_B18107_with_ann!BA1","v":"B18107_025M"},{"$f":"[1]ACS_16_5YR_B18107_with_ann!BB1","v":"B18107_026E"},{"$f":"[1]ACS_16_5YR_B18107_with_ann!BC1","v":"B18107_026M"},{"$f":"[1]ACS_16_5YR_B18107_with_ann!BD1","v":"B18107_027E"},{"$f":"[1]ACS_16_5YR_B18107_with_ann!BE1","v":"B18107_027M"}]
["Geography Identifier","Geography Identifier","Geographic Summary Level",null,{"$f":"[1]ACS_16_5YR_B18107_with_ann!D2","v":"Estimate!!Total:"},{"$f":"[1]ACS_16_5YR_B18107_with_ann!E2","v":"Margin of Error!!Total:"},{"$f":"[1]ACS_16_5YR_B18107_with_ann!F2","v":"Estimate!!Total:!!Male:"},{"$f":"[1]ACS_16_5YR_B18107_with_ann!G2","v":"Margin of Error!!Total:!!Male:"},{"$f":"[1]ACS_16_5YR_B18107_with_ann!H2","v":"Estimate!!Total:!!Male:!!18 to 34 years:"},{"$f":"[1]ACS_16_5YR_B18107_with_ann!I2","v":"Margin of Error!!Total:!!Male:!!18 to 34 years:"},{"$f":"[1]ACS_16_5YR_B18107_with_ann!J2","v":"Estimate!!Total:!!Male:!!18 to 34 years:!!With an independent living difficulty"},{"$f":"[1]ACS_16_5YR_B18107_with_ann!K2","v":"Margin of Error!!Total:!!Male:!!18 to 34 years:!!With an independent living difficulty"},{"$f":"[1]ACS_16_5YR_B18107_with_ann!L2","v":"Estimate!!Total:!!Male:!!18 to 34 years:!!No independent living difficulty"},{"$f":"[1]ACS_16_5YR_B18107_with_ann!M2","v":"Margin of Error!!Total:!!Male:!!18 to 34 years:!!No independent living difficulty"},{"$f":"[1]ACS_16_5YR_B18107_with_ann!N2","v":"Estimate!!Total:!!Male:!!35 to 64 years:"},{"$f":"[1]ACS_16_5YR_B18107_with_ann!O2","v":"Margin of Error!!Total:!!Male:!!35 to 64 years:"},{"$f":"[1]ACS_16_5YR_B18107_with_ann!P2","v":"Estimate!!Total:!!Male:!!35 to 64 years:!!With an independent living difficulty"},{"$f":"[1]ACS_16_5YR_B18107_with_ann!Q2","v":"Margin of Error!!Total:!!Male:!!35 to 64 years:!!With an independent living difficulty"},{"$f":"[1]ACS_16_5YR_B18107_with_ann!R2","v":"Estimate!!Total:!!Male:!!35 to 64 years:!!No independent living difficulty"},{"$f":"[1]ACS_16_5YR_B18107_with_ann!S2","v":"Margin of Error!!Total:!!Male:!!35 to 64 years:!!No independent living difficulty"},{"$f":"[1]ACS_16_5YR_B18107_with_ann!T2","v":"Estimate!!Total:!!Male:!!65 to 74 years:"},{"$f":"[1]ACS_16_5YR_B18107_with_ann!U2","v":"Margin of Error!!Total:!!Male:!!65 to 74 years:"},{"$f":"[1]ACS_16_5YR_B18107_with_ann!V2","v":"Estimate!!Total:!!Male:!!65 to 74 years:!!With an independent living difficulty"},{"$f":"[1]ACS_16_5YR_B18107_with_ann!W2","v":"Margin of Error!!Total:!!Male:!!65 to 74 years:!!With an independent living difficulty"},{"$f":"[1]ACS_16_5YR_B18107_with_ann!X2","v":"Estimate!!Total:!!Male:!!65 to 74 years:!!No independent living difficulty"},{"$f":"[1]ACS_16_5YR_B18107_with_ann!Y2","v":"Margin of Error!!Total:!!Male:!!65 to 74 years:!!No independent living difficulty"},{"$f":"[1]ACS_16_5YR_B18107_with_ann!Z2","v":"Estimate!!Total:!!Male:!!75 years and over:"},{"$f":"[1]ACS_16_5YR_B18107_with_ann!AA2","v":"Margin of Error!!Total:!!Male:!!75 years and over:"},{"$f":"[1]ACS_16_5YR_B18107_with_ann!AB2","v":"Estimate!!Total:!!Male:!!75 years and over:!!With an independent living difficulty"},{"$f":"[1]ACS_16_5YR_B18107_with_ann!AC2","v":"Margin of Error!!Total:!!Male:!!75 years and over:!!With an independent living difficulty"},{"$f":"[1]ACS_16_5YR_B18107_with_ann!AD2","v":"Estimate!!Total:!!Male:!!75 years and over:!!No independent living difficulty"},{"$f":"[1]ACS_16_5YR_B18107_with_ann!AE2","v":"Margin of Error!!Total:!!Male:!!75 years and over:!!No independent living difficulty"},{"$f":"[1]ACS_16_5YR_B18107_with_ann!AF2","v":"Estimate!!Total:!!Female:"},{"$f":"[1]ACS_16_5YR_B18107_with_ann!AG2","v":"Margin of Error!!Total:!!Female:"},{"$f":"[1]ACS_16_5YR_B18107_with_ann!AH2","v":"Estimate!!Total:!!Female:!!18 to 34 years:"},{"$f":"[1]ACS_16_5YR_B18107_with_ann!AI2","v":"Margin of Error!!Total:!!Female:!!18 to 34 years:"},{"$f":"[1]ACS_16_5YR_B18107_with_ann!AJ2","v":"Estimate!!Total:!!Female:!!18 to 34 years:!!With an independent living difficulty"},{"$f":"[1]ACS_16_5YR_B18107_with_ann!AK2","v":"Margin of Error!!Total:!!Female:!!18 to 34 years:!!With an independent living difficulty"},{"$f":"[1]ACS_16_5YR_B18107_with_ann!AL2","v":"Estimate!!Total:!!Female:!!18 to 34 years:!!No independent living difficulty"},{"$f":"[1]ACS_16_5YR_B18107_with_ann!AM2","v":"Margin of Error!!Total:!!Female:!!18 to 34 years:!!No independent living difficulty"},{"$f":"[1]ACS_16_5YR_B18107_with_ann!AN2","v":"Estimate!!Total:!!Female:!!35 to 64 years:"},{"$f":"[1]ACS_16_5YR_B18107_with_ann!AO2","v":"Margin of Error!!Total:!!Female:!!35 to 64 years:"},{"$f":"[1]ACS_16_5YR_B18107_with_ann!AP2","v":"Estimate!!Total:!!Female:!!35 to 64 years:!!With an independent living difficulty"},{"$f":"[1]ACS_16_5YR_B18107_with_ann!AQ2","v":"Margin of Error!!Total:!!Female:!!35 to 64 years:!!With an independent living difficulty"},{"$f":"[1]ACS_16_5YR_B18107_with_ann!AR2","v":"Estimate!!Total:!!Female:!!35 to 64 years:!!No independent living difficulty"},{"$f":"[1]ACS_16_5YR_B18107_with_ann!AS2","v":"Margin of Error!!Total:!!Female:!!35 to 64 years:!!No independent living difficulty"},{"$f":"[1]ACS_16_5YR_B18107_with_ann!AT2","v":"Estimate!!Total:!!Female:!!65 to 74 years:"},{"$f":"[1]ACS_16_5YR_B18107_with_ann!AU2","v":"Margin of Error!!Total:!!Female:!!65 to 74 years:"},{"$f":"[1]ACS_16_5YR_B18107_with_ann!AV2","v":"Estimate!!Total:!!Female:!!65 to 74 years:!!With an independent living difficulty"},{"$f":"[1]ACS_16_5YR_B18107_with_ann!AW2","v":"Margin of Error!!Total:!!Female:!!65 to 74 years:!!With an independent living difficulty"},{"$f":"[1]ACS_16_5YR_B18107_with_ann!AX2","v":"Estimate!!Total:!!Female:!!65 to 74 years:!!No independent living difficulty"},{"$f":"[1]ACS_16_5YR_B18107_with_ann!AY2","v":"Margin of Error!!Total:!!Female:!!65 to 74 years:!!No independent living difficulty"},{"$f":"[1]ACS_16_5YR_B18107_with_ann!AZ2","v":"Estimate!!Total:!!Female:!!75 years and over:"},{"$f":"[1]ACS_16_5YR_B18107_with_ann!BA2","v":"Margin of Error!!Total:!!Female:!!75 years and over:"},{"$f":"[1]ACS_16_5YR_B18107_with_ann!BB2","v":"Estimate!!Total:!!Female:!!75 years and over:!!With an independent living difficulty"},{"$f":"[1]ACS_16_5YR_B18107_with_ann!BC2","v":"Margin of Error!!Total:!!Female:!!75 years and over:!!With an independent living difficulty"},{"$f":"[1]ACS_16_5YR_B18107_with_ann!BD2","v":"Estimate!!Total:!!Female:!!75 years and over:!!No independent living difficulty"},{"$f":"[1]ACS_16_5YR_B18107_with_ann!BE2","v":"Margin of Error!!Total:!!Female:!!75 years and over:!!No independent living difficulty"}]
["06000US3300500820","0600000US3300512260","060",{"$f":"[1]ACS_16_5YR_B18107_with_ann!C44","v":"Alstead"},{"$f":"[1]ACS_16_5YR_B18107_with_ann!D44","v":1371},{"$f":"[1]ACS_16_5YR_B18107_with_ann!E44","v":145},{"$f":"[1]ACS_16_5YR_B18107_with_ann!F44","v":662},{"$f":"[1]ACS_16_5YR_B18107_with_ann!G44","v":90},{"$f":"[1]ACS_16_5YR_B18107_with_ann!H44","v":147},{"$f":"[1]ACS_16_5YR_B18107_with_ann!I44","v":61},{"$f":"[1]ACS_16_5YR_B18107_with_ann!J44","v":35},{"$f":"[1]ACS_16_5YR_B18107_with_ann!K44","v":40},{"$f":"[1]ACS_16_5YR_B18107_with_ann!L44","v":112},{"$f":"[1]ACS_16_5YR_B18107_with_ann!M44","v":48},{"$f":"[1]ACS_16_5YR_B18107_with_ann!N44","v":357},{"$f":"[1]ACS_16_5YR_B18107_with_ann!O44","v":76},{"$f":"[1]ACS_16_5YR_B18107_with_ann!P44","v":23},{"$f":"[1]ACS_16_5YR_B18107_with_ann!Q44","v":19},{"$f":"[1]ACS_16_5YR_B18107_with_ann!R44","v":334},{"$f":"[1]ACS_16_5YR_B18107_with_ann!S44","v":79},{"$f":"[1]ACS_16_5YR_B18107_with_ann!T44","v":106},{"$f":"[1]ACS_16_5YR_B18107_with_ann!U44","v":42},{"$f":"[1]ACS_16_5YR_B18107_with_ann!V44","v":6},{"$f":"[1]ACS_16_5YR_B18107_with_ann!W44","v":8},{"$f":"[1]ACS_16_5YR_B18107_with_ann!X44","v":100},{"$f":"[1]ACS_16_5YR_B18107_with_ann!Y44","v":41},{"$f":"[1]ACS_16_5YR_B18107_with_ann!Z44","v":52},{"$f":"[1]ACS_16_5YR_B18107_with_ann!AA44","v":33},{"$f":"[1]ACS_16_5YR_B18107_with_ann!AB44","v":5},{"$f":"[1]ACS_16_5YR_B18107_with_ann!AC44","v":8},{"$f":"[1]ACS_16_5YR_B18107_with_ann!AD44","v":47},{"$f":"[1]ACS_16_5YR_B18107_with_ann!AE44","v":31},{"$f":"[1]ACS_16_5YR_B18107_with_ann!AF44","v":709},{"$f":"[1]ACS_16_5YR_B18107_with_ann!AG44","v":93},{"$f":"[1]ACS_16_5YR_B18107_with_ann!AH44","v":117},{"$f":"[1]ACS_16_5YR_B18107_with_ann!AI44","v":55},{"$f":"[1]ACS_16_5YR_B18107_with_ann!AJ44","v":13},{"$f":"[1]ACS_16_5YR_B18107_with_ann!AK44","v":12},{"$f":"[1]ACS_16_5YR_B18107_with_ann!AL44","v":104},{"$f":"[1]ACS_16_5YR_B18107_with_ann!AM44","v":54},{"$f":"[1]ACS_16_5YR_B18107_with_ann!AN44","v":329},{"$f":"[1]ACS_16_5YR_B18107_with_ann!AO44","v":67},{"$f":"[1]ACS_16_5YR_B18107_with_ann!AP44","v":66},{"$f":"[1]ACS_16_5YR_B18107_with_ann!AQ44","v":51},{"$f":"[1]ACS_16_5YR_B18107_with_ann!AR44","v":263},{"$f":"[1]ACS_16_5YR_B18107_with_ann!AS44","v":47},{"$f":"[1]ACS_16_5YR_B18107_with_ann!AT44","v":173},{"$f":"[1]ACS_16_5YR_B18107_with_ann!AU44","v":71},{"$f":"[1]ACS_16_5YR_B18107_with_ann!AV44","v":0},{"$f":"[1]ACS_16_5YR_B18107_with_ann!AW44","v":12},{"$f":"[1]ACS_16_5YR_B18107_with_ann!AX44","v":173},{"$f":"[1]ACS_16_5YR_B18107_with_ann!AY44","v":71},{"$f":"[1]ACS_16_5YR_B18107_with_ann!AZ44","v":90},{"$f":"[1]ACS_16_5YR_B18107_with_ann!BA44","v":47},{"$f":"[1]ACS_16_5YR_B18107_with_ann!BB44","v":5},{"$f":"[1]ACS_16_5YR_B18107_with_ann!BC44","v":7},{"$f":"[1]ACS_16_5YR_B18107_with_ann!BD44","v":85},{"$f":"[1]ACS_16_5YR_B18107_with_ann!BE44","v":46}]
["06000US3300512260","0600000US3300519140","060",{"$f":"[1]ACS_16_5YR_B18107_with_ann!C45","v":"Chesterfield"},{"$f":"[1]ACS_16_5YR_B18107_with_ann!D45","v":2840},{"$f":"[1]ACS_16_5YR_B18107_with_ann!E45","v":158},{"$f":"[1]ACS_16_5YR_B18107_with_ann!F45","v":1427},{"$f":"[1]ACS_16_5YR_B18107_with_ann!G45","v":146},{"$f":"[1]ACS_16_5YR_B18107_with_ann!H45","v":366},{"$f":"[1]ACS_16_5YR_B18107_with_ann!I45","v":146},{"$f":"[1]ACS_16_5YR_B18107_with_ann!J45","v":0},{"$f":"[1]ACS_16_5YR_B18107_with_ann!K45","v":12},{"$f":"[1]ACS_16_5YR_B18107_with_ann!L45","v":366},{"$f":"[1]ACS_16_5YR_B18107_with_ann!M45","v":146},{"$f":"[1]ACS_16_5YR_B18107_with_ann!N45","v":537},{"$f":"[1]ACS_16_5YR_B18107_with_ann!O45","v":175},{"$f":"[1]ACS_16_5YR_B18107_with_ann!P45","v":0},{"$f":"[1]ACS_16_5YR_B18107_with_ann!Q45","v":12},{"$f":"[1]ACS_16_5YR_B18107_with_ann!R45","v":537},{"$f":"[1]ACS_16_5YR_B18107_with_ann!S45","v":175},{"$f":"[1]ACS_16_5YR_B18107_with_ann!T45","v":367},{"$f":"[1]ACS_16_5YR_B18107_with_ann!U45","v":125},{"$f":"[1]ACS_16_5YR_B18107_with_ann!V45","v":0},{"$f":"[1]ACS_16_5YR_B18107_with_ann!W45","v":12},{"$f":"[1]ACS_16_5YR_B18107_with_ann!X45","v":367},{"$f":"[1]ACS_16_5YR_B18107_with_ann!Y45","v":125},{"$f":"[1]ACS_16_5YR_B18107_with_ann!Z45","v":157},{"$f":"[1]ACS_16_5YR_B18107_with_ann!AA45","v":80},{"$f":"[1]ACS_16_5YR_B18107_with_ann!AB45","v":0},{"$f":"[1]ACS_16_5YR_B18107_with_ann!AC45","v":12},{"$f":"[1]ACS_16_5YR_B18107_with_ann!AD45","v":157},{"$f":"[1]ACS_16_5YR_B18107_with_ann!AE45","v":80},{"$f":"[1]ACS_16_5YR_B18107_with_ann!AF45","v":1413},{"$f":"[1]ACS_16_5YR_B18107_with_ann!AG45","v":126},{"$f":"[1]ACS_16_5YR_B18107_with_ann!AH45","v":323},{"$f":"[1]ACS_16_5YR_B18107_with_ann!AI45","v":125},{"$f":"[1]ACS_16_5YR_B18107_with_ann!AJ45","v":0},{"$f":"[1]ACS_16_5YR_B18107_with_ann!AK45","v":12},{"$f":"[1]ACS_16_5YR_B18107_with_ann!AL45","v":323},{"$f":"[1]ACS_16_5YR_B18107_with_ann!AM45","v":125},{"$f":"[1]ACS_16_5YR_B18107_with_ann!AN45","v":729},{"$f":"[1]ACS_16_5YR_B18107_with_ann!AO45","v":167},{"$f":"[1]ACS_16_5YR_B18107_with_ann!AP45","v":22},{"$f":"[1]ACS_16_5YR_B18107_with_ann!AQ45","v":34},{"$f":"[1]ACS_16_5YR_B18107_with_ann!AR45","v":707},{"$f":"[1]ACS_16_5YR_B18107_with_ann!AS45","v":169},{"$f":"[1]ACS_16_5YR_B18107_with_ann!AT45","v":244},{"$f":"[1]ACS_16_5YR_B18107_with_ann!AU45","v":110},{"$f":"[1]ACS_16_5YR_B18107_with_ann!AV45","v":20},{"$f":"[1]ACS_16_5YR_B18107_with_ann!AW45","v":30},{"$f":"[1]ACS_16_5YR_B18107_with_ann!AX45","v":224},{"$f":"[1]ACS_16_5YR_B18107_with_ann!AY45","v":111},{"$f":"[1]ACS_16_5YR_B18107_with_ann!AZ45","v":117},{"$f":"[1]ACS_16_5YR_B18107_with_ann!BA45","v":76},{"$f":"[1]ACS_16_5YR_B18107_with_ann!BB45","v":19},{"$f":"[1]ACS_16_5YR_B18107_with_ann!BC45","v":30},{"$f":"[1]ACS_16_5YR_B18107_with_ann!BD45","v":98},{"$f":"[1]ACS_16_5YR_B18107_with_ann!BE45","v":69}]
["06000US3300519140","0600000US3300526500","060",{"$f":"[1]ACS_16_5YR_B18107_with_ann!C46","v":"Dublin"},{"$f":"[1]ACS_16_5YR_B18107_with_ann!D46","v":1384},{"$f":"[1]ACS_16_5YR_B18107_with_ann!E46","v":184},{"$f":"[1]ACS_16_5YR_B18107_with_ann!F46","v":679},{"$f":"[1]ACS_16_5YR_B18107_with_ann!G46","v":102},{"$f":"[1]ACS_16_5YR_B18107_with_ann!H46","v":136},{"$f":"[1]ACS_16_5YR_B18107_with_ann!I46","v":55},{"$f":"[1]ACS_16_5YR_B18107_with_ann!J46","v":13},{"$f":"[1]ACS_16_5YR_B18107_with_ann!K46","v":21},{"$f":"[1]ACS_16_5YR_B18107_with_ann!L46","v":123},{"$f":"[1]ACS_16_5YR_B18107_with_ann!M46","v":53},{"$f":"[1]ACS_16_5YR_B18107_with_ann!N46","v":338},{"$f":"[1]ACS_16_5YR_B18107_with_ann!O46","v":83},{"$f":"[1]ACS_16_5YR_B18107_with_ann!P46","v":5},{"$f":"[1]ACS_16_5YR_B18107_with_ann!Q46","v":7},{"$f":"[1]ACS_16_5YR_B18107_with_ann!R46","v":333},{"$f":"[1]ACS_16_5YR_B18107_with_ann!S46","v":82},{"$f":"[1]ACS_16_5YR_B18107_with_ann!T46","v":153},{"$f":"[1]ACS_16_5YR_B18107_with_ann!U46","v":64},{"$f":"[1]ACS_16_5YR_B18107_with_ann!V46","v":0},{"$f":"[1]ACS_16_5YR_B18107_with_ann!W46","v":12},{"$f":"[1]ACS_16_5YR_B18107_with_ann!X46","v":153},{"$f":"[1]ACS_16_5YR_B18107_with_ann!Y46","v":64},{"$f":"[1]ACS_16_5YR_B18107_with_ann!Z46","v":52},{"$f":"[1]ACS_16_5YR_B18107_with_ann!AA46","v":26},{"$f":"[1]ACS_16_5YR_B18107_with_ann!AB46","v":4},{"$f":"[1]ACS_16_5YR_B18107_with_ann!AC46","v":5},{"$f":"[1]ACS_16_5YR_B18107_with_ann!AD46","v":48},{"$f":"[1]ACS_16_5YR_B18107_with_ann!AE46","v":26},{"$f":"[1]ACS_16_5YR_B18107_with_ann!AF46","v":705},{"$f":"[1]ACS_16_5YR_B18107_with_ann!AG46","v":115},{"$f":"[1]ACS_16_5YR_B18107_with_ann!AH46","v":63},{"$f":"[1]ACS_16_5YR_B18107_with_ann!AI46","v":26},{"$f":"[1]ACS_16_5YR_B18107_with_ann!AJ46","v":0},{"$f":"[1]ACS_16_5YR_B18107_with_ann!AK46","v":12},{"$f":"[1]ACS_16_5YR_B18107_with_ann!AL46","v":63},{"$f":"[1]ACS_16_5YR_B18107_with_ann!AM46","v":26},{"$f":"[1]ACS_16_5YR_B18107_with_ann!AN46","v":404},{"$f":"[1]ACS_16_5YR_B18107_with_ann!AO46","v":97},{"$f":"[1]ACS_16_5YR_B18107_with_ann!AP46","v":2},{"$f":"[1]ACS_16_5YR_B18107_with_ann!AQ46","v":3},{"$f":"[1]ACS_16_5YR_B18107_with_ann!AR46","v":402},{"$f":"[1]ACS_16_5YR_B18107_with_ann!AS46","v":97},{"$f":"[1]ACS_16_5YR_B18107_with_ann!AT46","v":162},{"$f":"[1]ACS_16_5YR_B18107_with_ann!AU46","v":54},{"$f":"[1]ACS_16_5YR_B18107_with_ann!AV46","v":0},{"$f":"[1]ACS_16_5YR_B18107_with_ann!AW46","v":12},{"$f":"[1]ACS_16_5YR_B18107_with_ann!AX46","v":162},{"$f":"[1]ACS_16_5YR_B18107_with_ann!AY46","v":54},{"$f":"[1]ACS_16_5YR_B18107_with_ann!AZ46","v":76},{"$f":"[1]ACS_16_5YR_B18107_with_ann!BA46","v":51},{"$f":"[1]ACS_16_5YR_B18107_with_ann!BB46","v":18},{"$f":"[1]ACS_16_5YR_B18107_with_ann!BC46","v":43},{"$f":"[1]ACS_16_5YR_B18107_with_ann!BD46","v":58},{"$f":"[1]ACS_16_5YR_B18107_with_ann!BE46","v":27}]
["06000US3300526500","0600000US3300529220","060",{"$f":"[1]ACS_16_5YR_B18107_with_ann!C47","v":"Fitzwilliam"},{"$f":"[1]ACS_16_5YR_B18107_with_ann!D47","v":2002},{"$f":"[1]ACS_16_5YR_B18107_with_ann!E47","v":335},{"$f":"[1]ACS_16_5YR_B18107_with_ann!F47","v":1069},{"$f":"[1]ACS_16_5YR_B18107_with_ann!G47","v":205},{"$f":"[1]ACS_16_5YR_B18107_with_ann!H47","v":226},{"$f":"[1]ACS_16_5YR_B18107_with_ann!I47","v":92},{"$f":"[1]ACS_16_5YR_B18107_with_ann!J47","v":6},{"$f":"[1]ACS_16_5YR_B18107_with_ann!K47","v":9},{"$f":"[1]ACS_16_5YR_B18107_with_ann!L47","v":220},{"$f":"[1]ACS_16_5YR_B18107_with_ann!M47","v":92},{"$f":"[1]ACS_16_5YR_B18107_with_ann!N47","v":605},{"$f":"[1]ACS_16_5YR_B18107_with_ann!O47","v":177},{"$f":"[1]ACS_16_5YR_B18107_with_ann!P47","v":8},{"$f":"[1]ACS_16_5YR_B18107_with_ann!Q47","v":15},{"$f":"[1]ACS_16_5YR_B18107_with_ann!R47","v":597},{"$f":"[1]ACS_16_5YR_B18107_with_ann!S47","v":179},{"$f":"[1]ACS_16_5YR_B18107_with_ann!T47","v":195},{"$f":"[1]ACS_16_5YR_B18107_with_ann!U47","v":55},{"$f":"[1]ACS_16_5YR_B18107_with_ann!V47","v":31},{"$f":"[1]ACS_16_5YR_B18107_with_ann!W47","v":25},{"$f":"[1]ACS_16_5YR_B18107_with_ann!X47","v":164},{"$f":"[1]ACS_16_5YR_B18107_with_ann!Y47","v":50},{"$f":"[1]ACS_16_5YR_B18107_with_ann!Z47","v":43},{"$f":"[1]ACS_16_5YR_B18107_with_ann!AA47","v":19},{"$f":"[1]ACS_16_5YR_B18107_with_ann!AB47","v":0},{"$f":"[1]ACS_16_5YR_B18107_with_ann!AC47","v":12},{"$f":"[1]ACS_16_5YR_B18107_with_ann!AD47","v":43},{"$f":"[1]ACS_16_5YR_B18107_with_ann!AE47","v":19},{"$f":"[1]ACS_16_5YR_B18107_with_ann!AF47","v":933},{"$f":"[1]ACS_16_5YR_B18107_with_ann!AG47","v":159},{"$f":"[1]ACS_16_5YR_B18107_with_ann!AH47","v":151},{"$f":"[1]ACS_16_5YR_B18107_with_ann!AI47","v":78},{"$f":"[1]ACS_16_5YR_B18107_with_ann!AJ47","v":0},{"$f":"[1]ACS_16_5YR_B18107_with_ann!AK47","v":12},{"$f":"[1]ACS_16_5YR_B18107_with_ann!AL47","v":151},{"$f":"[1]ACS_16_5YR_B18107_with_ann!AM47","v":78},{"$f":"[1]ACS_16_5YR_B18107_with_ann!AN47","v":484},{"$f":"[1]ACS_16_5YR_B18107_with_ann!AO47","v":84},{"$f":"[1]ACS_16_5YR_B18107_with_ann!AP47","v":10},{"$f":"[1]ACS_16_5YR_B18107_with_ann!AQ47","v":11},{"$f":"[1]ACS_16_5YR_B18107_with_ann!AR47","v":474},{"$f":"[1]ACS_16_5YR_B18107_with_ann!AS47","v":83},{"$f":"[1]ACS_16_5YR_B18107_with_ann!AT47","v":251},{"$f":"[1]ACS_16_5YR_B18107_with_ann!AU47","v":106},{"$f":"[1]ACS_16_5YR_B18107_with_ann!AV47","v":4},{"$f":"[1]ACS_16_5YR_B18107_with_ann!AW47","v":6},{"$f":"[1]ACS_16_5YR_B18107_with_ann!AX47","v":247},{"$f":"[1]ACS_16_5YR_B18107_with_ann!AY47","v":105},{"$f":"[1]ACS_16_5YR_B18107_with_ann!AZ47","v":47},{"$f":"[1]ACS_16_5YR_B18107_with_ann!BA47","v":27},{"$f":"[1]ACS_16_5YR_B18107_with_ann!BB47","v":17},{"$f":"[1]ACS_16_5YR_B18107_with_ann!BC47","v":17},{"$f":"[1]ACS_16_5YR_B18107_with_ann!BD47","v":30},{"$f":"[1]ACS_16_5YR_B18107_with_ann!BE47","v":18}]
["06000US3300529220","0600000US3300534420","060",{"$f":"[1]ACS_16_5YR_B18107_with_ann!C48","v":"Gilsum"},{"$f":"[1]ACS_16_5YR_B18107_with_ann!D48","v":722},{"$f":"[1]ACS_16_5YR_B18107_with_ann!E48","v":127},{"$f":"[1]ACS_16_5YR_B18107_with_ann!F48","v":367},{"$f":"[1]ACS_16_5YR_B18107_with_ann!G48","v":81},{"$f":"[1]ACS_16_5YR_B18107_with_ann!H48","v":119},{"$f":"[1]ACS_16_5YR_B18107_with_ann!I48","v":56},{"$f":"[1]ACS_16_5YR_B18107_with_ann!J48","v":4},{"$f":"[1]ACS_16_5YR_B18107_with_ann!K48","v":7},{"$f":"[1]ACS_16_5YR_B18107_with_ann!L48","v":115},{"$f":"[1]ACS_16_5YR_B18107_with_ann!M48","v":56},{"$f":"[1]ACS_16_5YR_B18107_with_ann!N48","v":158},{"$f":"[1]ACS_16_5YR_B18107_with_ann!O48","v":38},{"$f":"[1]ACS_16_5YR_B18107_with_ann!P48","v":10},{"$f":"[1]ACS_16_5YR_B18107_with_ann!Q48","v":9},{"$f":"[1]ACS_16_5YR_B18107_with_ann!R48","v":148},{"$f":"[1]ACS_16_5YR_B18107_with_ann!S48","v":37},{"$f":"[1]ACS_16_5YR_B18107_with_ann!T48","v":76},{"$f":"[1]ACS_16_5YR_B18107_with_ann!U48","v":29},{"$f":"[1]ACS_16_5YR_B18107_with_ann!V48","v":0},{"$f":"[1]ACS_16_5YR_B18107_with_ann!W48","v":12},{"$f":"[1]ACS_16_5YR_B18107_with_ann!X48","v":76},{"$f":"[1]ACS_16_5YR_B18107_with_ann!Y48","v":29},{"$f":"[1]ACS_16_5YR_B18107_with_ann!Z48","v":14},{"$f":"[1]ACS_16_5YR_B18107_with_ann!AA48","v":10},{"$f":"[1]ACS_16_5YR_B18107_with_ann!AB48","v":4},{"$f":"[1]ACS_16_5YR_B18107_with_ann!AC48","v":6},{"$f":"[1]ACS_16_5YR_B18107_with_ann!AD48","v":10},{"$f":"[1]ACS_16_5YR_B18107_with_ann!AE48","v":7},{"$f":"[1]ACS_16_5YR_B18107_with_ann!AF48","v":355},{"$f":"[1]ACS_16_5YR_B18107_with_ann!AG48","v":64},{"$f":"[1]ACS_16_5YR_B18107_with_ann!AH48","v":95},{"$f":"[1]ACS_16_5YR_B18107_with_ann!AI48","v":35},{"$f":"[1]ACS_16_5YR_B18107_with_ann!AJ48","v":0},{"$f":"[1]ACS_16_5YR_B18107_with_ann!AK48","v":12},{"$f":"[1]ACS_16_5YR_B18107_with_ann!AL48","v":95},{"$f":"[1]ACS_16_5YR_B18107_with_ann!AM48","v":35},{"$f":"[1]ACS_16_5YR_B18107_with_ann!AN48","v":170},{"$f":"[1]ACS_16_5YR_B18107_with_ann!AO48","v":44},{"$f":"[1]ACS_16_5YR_B18107_with_ann!AP48","v":7},{"$f":"[1]ACS_16_5YR_B18107_with_ann!AQ48","v":9},{"$f":"[1]ACS_16_5YR_B18107_with_ann!AR48","v":163},{"$f":"[1]ACS_16_5YR_B18107_with_ann!AS48","v":42},{"$f":"[1]ACS_16_5YR_B18107_with_ann!AT48","v":58},{"$f":"[1]ACS_16_5YR_B18107_with_ann!AU48","v":25},{"$f":"[1]ACS_16_5YR_B18107_with_ann!AV48","v":0},{"$f":"[1]ACS_16_5YR_B18107_with_ann!AW48","v":12},{"$f":"[1]ACS_16_5YR_B18107_with_ann!AX48","v":58},{"$f":"[1]ACS_16_5YR_B18107_with_ann!AY48","v":25},{"$f":"[1]ACS_16_5YR_B18107_with_ann!AZ48","v":32},{"$f":"[1]ACS_16_5YR_B18107_with_ann!BA48","v":14},{"$f":"[1]ACS_16_5YR_B18107_with_ann!BB48","v":9},{"$f":"[1]ACS_16_5YR_B18107_with_ann!BC48","v":10},{"$f":"[1]ACS_16_5YR_B18107_with_ann!BD48","v":23},{"$f":"[1]ACS_16_5YR_B18107_with_ann!BE48","v":11}]
["06000US3300534420","0600000US3300536660","060",{"$f":"[1]ACS_16_5YR_B18107_with_ann!C49","v":"Harrisville"},{"$f":"[1]ACS_16_5YR_B18107_with_ann!D49","v":828},{"$f":"[1]ACS_16_5YR_B18107_with_ann!E49","v":147},{"$f":"[1]ACS_16_5YR_B18107_with_ann!F49","v":372},{"$f":"[1]ACS_16_5YR_B18107_with_ann!G49","v":67},{"$f":"[1]ACS_16_5YR_B18107_with_ann!H49","v":38},{"$f":"[1]ACS_16_5YR_B18107_with_ann!I49","v":20},{"$f":"[1]ACS_16_5YR_B18107_with_ann!J49","v":0},{"$f":"[1]ACS_16_5YR_B18107_with_ann!K49","v":12},{"$f":"[1]ACS_16_5YR_B18107_with_ann!L49","v":38},{"$f":"[1]ACS_16_5YR_B18107_with_ann!M49","v":20},{"$f":"[1]ACS_16_5YR_B18107_with_ann!N49","v":190},{"$f":"[1]ACS_16_5YR_B18107_with_ann!O49","v":52},{"$f":"[1]ACS_16_5YR_B18107_with_ann!P49","v":22},{"$f":"[1]ACS_16_5YR_B18107_with_ann!Q49","v":19},{"$f":"[1]ACS_16_5YR_B18107_with_ann!R49","v":168},{"$f":"[1]ACS_16_5YR_B18107_with_ann!S49","v":49},{"$f":"[1]ACS_16_5YR_B18107_with_ann!T49","v":91},{"$f":"[1]ACS_16_5YR_B18107_with_ann!U49","v":28},{"$f":"[1]ACS_16_5YR_B18107_with_ann!V49","v":3},{"$f":"[1]ACS_16_5YR_B18107_with_ann!W49","v":4},{"$f":"[1]ACS_16_5YR_B18107_with_ann!X49","v":88},{"$f":"[1]ACS_16_5YR_B18107_with_ann!Y49","v":28},{"$f":"[1]ACS_16_5YR_B18107_with_ann!Z49","v":53},{"$f":"[1]ACS_16_5YR_B18107_with_ann!AA49","v":20},{"$f":"[1]ACS_16_5YR_B18107_with_ann!AB49","v":0},{"$f":"[1]ACS_16_5YR_B18107_with_ann!AC49","v":12},{"$f":"[1]ACS_16_5YR_B18107_with_ann!AD49","v":53},{"$f":"[1]ACS_16_5YR_B18107_with_ann!AE49","v":20},{"$f":"[1]ACS_16_5YR_B18107_with_ann!AF49","v":456},{"$f":"[1]ACS_16_5YR_B18107_with_ann!AG49","v":89},{"$f":"[1]ACS_16_5YR_B18107_with_ann!AH49","v":89},{"$f":"[1]ACS_16_5YR_B18107_with_ann!AI49","v":40},{"$f":"[1]ACS_16_5YR_B18107_with_ann!AJ49","v":0},{"$f":"[1]ACS_16_5YR_B18107_with_ann!AK49","v":12},{"$f":"[1]ACS_16_5YR_B18107_with_ann!AL49","v":89},{"$f":"[1]ACS_16_5YR_B18107_with_ann!AM49","v":40},{"$f":"[1]ACS_16_5YR_B18107_with_ann!AN49","v":220},{"$f":"[1]ACS_16_5YR_B18107_with_ann!AO49","v":61},{"$f":"[1]ACS_16_5YR_B18107_with_ann!AP49","v":10},{"$f":"[1]ACS_16_5YR_B18107_with_ann!AQ49","v":13},{"$f":"[1]ACS_16_5YR_B18107_with_ann!AR49","v":210},{"$f":"[1]ACS_16_5YR_B18107_with_ann!AS49","v":59},{"$f":"[1]ACS_16_5YR_B18107_with_ann!AT49","v":107},{"$f":"[1]ACS_16_5YR_B18107_with_ann!AU49","v":30},{"$f":"[1]ACS_16_5YR_B18107_with_ann!AV49","v":2},{"$f":"[1]ACS_16_5YR_B18107_with_ann!AW49","v":3},{"$f":"[1]ACS_16_5YR_B18107_with_ann!AX49","v":105},{"$f":"[1]ACS_16_5YR_B18107_with_ann!AY49","v":30},{"$f":"[1]ACS_16_5YR_B18107_with_ann!AZ49","v":40},{"$f":"[1]ACS_16_5YR_B18107_with_ann!BA49","v":22},{"$f":"[1]ACS_16_5YR_B18107_with_ann!BB49","v":0},{"$f":"[1]ACS_16_5YR_B18107_with_ann!BC49","v":12},{"$f":"[1]ACS_16_5YR_B18107_with_ann!BD49","v":40},{"$f":"[1]ACS_16_5YR_B18107_with_ann!BE49","v":22}]
["06000US3300536660","0600000US3300538500","060",{"$f":"[1]ACS_16_5YR_B18107_with_ann!C50","v":"Hinsdale"},{"$f":"[1]ACS_16_5YR_B18107_with_ann!D50","v":3379},{"$f":"[1]ACS_16_5YR_B18107_with_ann!E50","v":113},{"$f":"[1]ACS_16_5YR_B18107_with_ann!F50","v":1787},{"$f":"[1]ACS_16_5YR_B18107_with_ann!G50","v":203},{"$f":"[1]ACS_16_5YR_B18107_with_ann!H50","v":294},{"$f":"[1]ACS_16_5YR_B18107_with_ann!I50","v":122},{"$f":"[1]ACS_16_5YR_B18107_with_ann!J50","v":0},{"$f":"[1]ACS_16_5YR_B18107_with_ann!K50","v":12},{"$f":"[1]ACS_16_5YR_B18107_with_ann!L50","v":294},{"$f":"[1]ACS_16_5YR_B18107_with_ann!M50","v":122},{"$f":"[1]ACS_16_5YR_B18107_with_ann!N50","v":878},{"$f":"[1]ACS_16_5YR_B18107_with_ann!O50","v":165},{"$f":"[1]ACS_16_5YR_B18107_with_ann!P50","v":24},{"$f":"[1]ACS_16_5YR_B18107_with_ann!Q50","v":26},{"$f":"[1]ACS_16_5YR_B18107_with_ann!R50","v":854},{"$f":"[1]ACS_16_5YR_B18107_with_ann!S50","v":169},{"$f":"[1]ACS_16_5YR_B18107_with_ann!T50","v":433},{"$f":"[1]ACS_16_5YR_B18107_with_ann!U50","v":236},{"$f":"[1]ACS_16_5YR_B18107_with_ann!V50","v":204},{"$f":"[1]ACS_16_5YR_B18107_with_ann!W50","v":238},{"$f":"[1]ACS_16_5YR_B18107_with_ann!X50","v":229},{"$f":"[1]ACS_16_5YR_B18107_with_ann!Y50","v":118},{"$f":"[1]ACS_16_5YR_B18107_with_ann!Z50","v":182},{"$f":"[1]ACS_16_5YR_B18107_with_ann!AA50","v":113},{"$f":"[1]ACS_16_5YR_B18107_with_ann!AB50","v":0},{"$f":"[1]ACS_16_5YR_B18107_with_ann!AC50","v":12},{"$f":"[1]ACS_16_5YR_B18107_with_ann!AD50","v":182},{"$f":"[1]ACS_16_5YR_B18107_with_ann!AE50","v":113},{"$f":"[1]ACS_16_5YR_B18107_with_ann!AF50","v":1592},{"$f":"[1]ACS_16_5YR_B18107_with_ann!AG50","v":189},{"$f":"[1]ACS_16_5YR_B18107_with_ann!AH50","v":306},{"$f":"[1]ACS_16_5YR_B18107_with_ann!AI50","v":147},{"$f":"[1]ACS_16_5YR_B18107_with_ann!AJ50","v":0},{"$f":"[1]ACS_16_5YR_B18107_with_ann!AK50","v":12},{"$f":"[1]ACS_16_5YR_B18107_with_ann!AL50","v":306},{"$f":"[1]ACS_16_5YR_B18107_with_ann!AM50","v":147},{"$f":"[1]ACS_16_5YR_B18107_with_ann!AN50","v":843},{"$f":"[1]ACS_16_5YR_B18107_with_ann!AO50","v":127},{"$f":"[1]ACS_16_5YR_B18107_with_ann!AP50","v":40},{"$f":"[1]ACS_16_5YR_B18107_with_ann!AQ50","v":34},{"$f":"[1]ACS_16_5YR_B18107_with_ann!AR50","v":803},{"$f":"[1]ACS_16_5YR_B18107_with_ann!AS50","v":121},{"$f":"[1]ACS_16_5YR_B18107_with_ann!AT50","v":214},{"$f":"[1]ACS_16_5YR_B18107_with_ann!AU50","v":97},{"$f":"[1]ACS_16_5YR_B18107_with_ann!AV50","v":11},{"$f":"[1]ACS_16_5YR_B18107_with_ann!AW50","v":13},{"$f":"[1]ACS_16_5YR_B18107_with_ann!AX50","v":203},{"$f":"[1]ACS_16_5YR_B18107_with_ann!AY50","v":99},{"$f":"[1]ACS_16_5YR_B18107_with_ann!AZ50","v":229},{"$f":"[1]ACS_16_5YR_B18107_with_ann!BA50","v":155},{"$f":"[1]ACS_16_5YR_B18107_with_ann!BB50","v":29},{"$f":"[1]ACS_16_5YR_B18107_with_ann!BC50","v":47},{"$f":"[1]ACS_16_5YR_B18107_with_ann!BD50","v":200},{"$f":"[1]ACS_16_5YR_B18107_with_ann!BE50","v":156}]
["06000US3300538500","0600000US3300539300","060",{"$f":"[1]ACS_16_5YR_B18107_with_ann!C51","v":"Jaffrey"},{"$f":"[1]ACS_16_5YR_B18107_with_ann!D51","v":3974},{"$f":"[1]ACS_16_5YR_B18107_with_ann!E51","v":247},{"$f":"[1]ACS_16_5YR_B18107_with_ann!F51","v":2051},{"$f":"[1]ACS_16_5YR_B18107_with_ann!G51","v":227},{"$f":"[1]ACS_16_5YR_B18107_with_ann!H51","v":408},{"$f":"[1]ACS_16_5YR_B18107_with_ann!I51","v":190},{"$f":"[1]ACS_16_5YR_B18107_with_ann!J51","v":31},{"$f":"[1]ACS_16_5YR_B18107_with_ann!K51","v":56},{"$f":"[1]ACS_16_5YR_B18107_with_ann!L51","v":377},{"$f":"[1]ACS_16_5YR_B18107_with_ann!M51","v":187},{"$f":"[1]ACS_16_5YR_B18107_with_ann!N51","v":1310},{"$f":"[1]ACS_16_5YR_B18107_with_ann!O51","v":200},{"$f":"[1]ACS_16_5YR_B18107_with_ann!P51","v":64},{"$f":"[1]ACS_16_5YR_B18107_with_ann!Q51","v":62},{"$f":"[1]ACS_16_5YR_B18107_with_ann!R51","v":1246},{"$f":"[1]ACS_16_5YR_B18107_with_ann!S51","v":191},{"$f":"[1]ACS_16_5YR_B18107_with_ann!T51","v":159},{"$f":"[1]ACS_16_5YR_B18107_with_ann!U51","v":87},{"$f":"[1]ACS_16_5YR_B18107_with_ann!V51","v":0},{"$f":"[1]ACS_16_5YR_B18107_with_ann!W51","v":17},{"$f":"[1]ACS_16_5YR_B18107_with_ann!X51","v":159},{"$f":"[1]ACS_16_5YR_B18107_with_ann!Y51","v":87},{"$f":"[1]ACS_16_5YR_B18107_with_ann!Z51","v":174},{"$f":"[1]ACS_16_5YR_B18107_with_ann!AA51","v":110},{"$f":"[1]ACS_16_5YR_B18107_with_ann!AB51","v":0},{"$f":"[1]ACS_16_5YR_B18107_with_ann!AC51","v":17},{"$f":"[1]ACS_16_5YR_B18107_with_ann!AD51","v":174},{"$f":"[1]ACS_16_5YR_B18107_with_ann!AE51","v":110},{"$f":"[1]ACS_16_5YR_B18107_with_ann!AF51","v":1923},{"$f":"[1]ACS_16_5YR_B18107_with_ann!AG51","v":204},{"$f":"[1]ACS_16_5YR_B18107_with_ann!AH51","v":307},{"$f":"[1]ACS_16_5YR_B18107_with_ann!AI51","v":170},{"$f":"[1]ACS_16_5YR_B18107_with_ann!AJ51","v":0},{"$f":"[1]ACS_16_5YR_B18107_with_ann!AK51","v":17},{"$f":"[1]ACS_16_5YR_B18107_with_ann!AL51","v":307},{"$f":"[1]ACS_16_5YR_B18107_with_ann!AM51","v":170},{"$f":"[1]ACS_16_5YR_B18107_with_ann!AN51","v":1144},{"$f":"[1]ACS_16_5YR_B18107_with_ann!AO51","v":160},{"$f":"[1]ACS_16_5YR_B18107_with_ann!AP51","v":88},{"$f":"[1]ACS_16_5YR_B18107_with_ann!AQ51","v":85},{"$f":"[1]ACS_16_5YR_B18107_with_ann!AR51","v":1056},{"$f":"[1]ACS_16_5YR_B18107_with_ann!AS51","v":156},{"$f":"[1]ACS_16_5YR_B18107_with_ann!AT51","v":276},{"$f":"[1]ACS_16_5YR_B18107_with_ann!AU51","v":101},{"$f":"[1]ACS_16_5YR_B18107_with_ann!AV51","v":9},{"$f":"[1]ACS_16_5YR_B18107_with_ann!AW51","v":17},{"$f":"[1]ACS_16_5YR_B18107_with_ann!AX51","v":267},{"$f":"[1]ACS_16_5YR_B18107_with_ann!AY51","v":103},{"$f":"[1]ACS_16_5YR_B18107_with_ann!AZ51","v":196},{"$f":"[1]ACS_16_5YR_B18107_with_ann!BA51","v":97},{"$f":"[1]ACS_16_5YR_B18107_with_ann!BB51","v":84},{"$f":"[1]ACS_16_5YR_B18107_with_ann!BC51","v":84},{"$f":"[1]ACS_16_5YR_B18107_with_ann!BD51","v":112},{"$f":"[1]ACS_16_5YR_B18107_with_ann!BE51","v":63}]
["06000US3300539300","0600000US3300545460","060",{"$f":"[1]ACS_16_5YR_B18107_with_ann!C52","v":"Keene"},{"$f":"[1]ACS_16_5YR_B18107_with_ann!D52","v":19137},{"$f":"[1]ACS_16_5YR_B18107_with_ann!E52","v":284},{"$f":"[1]ACS_16_5YR_B18107_with_ann!F52","v":9121},{"$f":"[1]ACS_16_5YR_B18107_with_ann!G52","v":357},{"$f":"[1]ACS_16_5YR_B18107_with_ann!H52","v":3702},{"$f":"[1]ACS_16_5YR_B18107_with_ann!I52","v":372},{"$f":"[1]ACS_16_5YR_B18107_with_ann!J52","v":78},{"$f":"[1]ACS_16_5YR_B18107_with_ann!K52","v":59},{"$f":"[1]ACS_16_5YR_B18107_with_ann!L52","v":3624},{"$f":"[1]ACS_16_5YR_B18107_with_ann!M52","v":370},{"$f":"[1]ACS_16_5YR_B18107_with_ann!N52","v":3790},{"$f":"[1]ACS_16_5YR_B18107_with_ann!O52","v":283},{"$f":"[1]ACS_16_5YR_B18107_with_ann!P52","v":47},{"$f":"[1]ACS_16_5YR_B18107_with_ann!Q52","v":36},{"$f":"[1]ACS_16_5YR_B18107_with_ann!R52","v":3743},{"$f":"[1]ACS_16_5YR_B18107_with_ann!S52","v":284},{"$f":"[1]ACS_16_5YR_B18107_with_ann!T52","v":899},{"$f":"[1]ACS_16_5YR_B18107_with_ann!U52","v":135},{"$f":"[1]ACS_16_5YR_B18107_with_ann!V52","v":32},{"$f":"[1]ACS_16_5YR_B18107_with_ann!W52","v":37},{"$f":"[1]ACS_16_5YR_B18107_with_ann!X52","v":867},{"$f":"[1]ACS_16_5YR_B18107_with_ann!Y52","v":141},{"$f":"[1]ACS_16_5YR_B18107_with_ann!Z52","v":730},{"$f":"[1]ACS_16_5YR_B18107_with_ann!AA52","v":148},{"$f":"[1]ACS_16_5YR_B18107_with_ann!AB52","v":86},{"$f":"[1]ACS_16_5YR_B18107_with_ann!AC52","v":58},{"$f":"[1]ACS_16_5YR_B18107_with_ann!AD52","v":644},{"$f":"[1]ACS_16_5YR_B18107_with_ann!AE52","v":152},{"$f":"[1]ACS_16_5YR_B18107_with_ann!AF52","v":10016},{"$f":"[1]ACS_16_5YR_B18107_with_ann!AG52","v":347},{"$f":"[1]ACS_16_5YR_B18107_with_ann!AH52","v":3991},{"$f":"[1]ACS_16_5YR_B18107_with_ann!AI52","v":285},{"$f":"[1]ACS_16_5YR_B18107_with_ann!AJ52","v":162},{"$f":"[1]ACS_16_5YR_B18107_with_ann!AK52","v":104},{"$f":"[1]ACS_16_5YR_B18107_with_ann!AL52","v":3829},{"$f":"[1]ACS_16_5YR_B18107_with_ann!AM52","v":295},{"$f":"[1]ACS_16_5YR_B18107_with_ann!AN52","v":3688},{"$f":"[1]ACS_16_5YR_B18107_with_ann!AO52","v":301},{"$f":"[1]ACS_16_5YR_B18107_with_ann!AP52","v":176},{"$f":"[1]ACS_16_5YR_B18107_with_ann!AQ52","v":103},{"$f":"[1]ACS_16_5YR_B18107_with_ann!AR52","v":3512},{"$f":"[1]ACS_16_5YR_B18107_with_ann!AS52","v":295},{"$f":"[1]ACS_16_5YR_B18107_with_ann!AT52","v":1300},{"$f":"[1]ACS_16_5YR_B18107_with_ann!AU52","v":181},{"$f":"[1]ACS_16_5YR_B18107_with_ann!AV52","v":125},{"$f":"[1]ACS_16_5YR_B18107_with_ann!AW52","v":61},{"$f":"[1]ACS_16_5YR_B18107_with_ann!AX52","v":1175},{"$f":"[1]ACS_16_5YR_B18107_with_ann!AY52","v":181},{"$f":"[1]ACS_16_5YR_B18107_with_ann!AZ52","v":1037},{"$f":"[1]ACS_16_5YR_B18107_with_ann!BA52","v":197},{"$f":"[1]ACS_16_5YR_B18107_with_ann!BB52","v":281},{"$f":"[1]ACS_16_5YR_B18107_with_ann!BC52","v":179},{"$f":"[1]ACS_16_5YR_B18107_with_ann!BD52","v":756},{"$f":"[1]ACS_16_5YR_B18107_with_ann!BE52","v":181}]
["06000US3300545460","0600000US3300545700","060",{"$f":"[1]ACS_16_5YR_B18107_with_ann!C53","v":"Marlborough"},{"$f":"[1]ACS_16_5YR_B18107_with_ann!D53","v":1710},{"$f":"[1]ACS_16_5YR_B18107_with_ann!E53","v":278},{"$f":"[1]ACS_16_5YR_B18107_with_ann!F53","v":800},{"$f":"[1]ACS_16_5YR_B18107_with_ann!G53","v":161},{"$f":"[1]ACS_16_5YR_B18107_with_ann!H53","v":175},{"$f":"[1]ACS_16_5YR_B18107_with_ann!I53","v":92},{"$f":"[1]ACS_16_5YR_B18107_with_ann!J53","v":0},{"$f":"[1]ACS_16_5YR_B18107_with_ann!K53","v":12},{"$f":"[1]ACS_16_5YR_B18107_with_ann!L53","v":175},{"$f":"[1]ACS_16_5YR_B18107_with_ann!M53","v":92},{"$f":"[1]ACS_16_5YR_B18107_with_ann!N53","v":440},{"$f":"[1]ACS_16_5YR_B18107_with_ann!O53","v":108},{"$f":"[1]ACS_16_5YR_B18107_with_ann!P53","v":17},{"$f":"[1]ACS_16_5YR_B18107_with_ann!Q53","v":13},{"$f":"[1]ACS_16_5YR_B18107_with_ann!R53","v":423},{"$f":"[1]ACS_16_5YR_B18107_with_ann!S53","v":108},{"$f":"[1]ACS_16_5YR_B18107_with_ann!T53","v":83},{"$f":"[1]ACS_16_5YR_B18107_with_ann!U53","v":37},{"$f":"[1]ACS_16_5YR_B18107_with_ann!V53","v":5},{"$f":"[1]ACS_16_5YR_B18107_with_ann!W53","v":8},{"$f":"[1]ACS_16_5YR_B18107_with_ann!X53","v":78},{"$f":"[1]ACS_16_5YR_B18107_with_ann!Y53","v":37},{"$f":"[1]ACS_16_5YR_B18107_with_ann!Z53","v":102},{"$f":"[1]ACS_16_5YR_B18107_with_ann!AA53","v":43},{"$f":"[1]ACS_16_5YR_B18107_with_ann!AB53","v":6},{"$f":"[1]ACS_16_5YR_B18107_with_ann!AC53","v":8},{"$f":"[1]ACS_16_5YR_B18107_with_ann!AD53","v":96},{"$f":"[1]ACS_16_5YR_B18107_with_ann!AE53","v":44},{"$f":"[1]ACS_16_5YR_B18107_with_ann!AF53","v":910},{"$f":"[1]ACS_16_5YR_B18107_with_ann!AG53","v":157},{"$f":"[1]ACS_16_5YR_B18107_with_ann!AH53","v":117},{"$f":"[1]ACS_16_5YR_B18107_with_ann!AI53","v":53},{"$f":"[1]ACS_16_5YR_B18107_with_ann!AJ53","v":13},{"$f":"[1]ACS_16_5YR_B18107_with_ann!AK53","v":21},{"$f":"[1]ACS_16_5YR_B18107_with_ann!AL53","v":104},{"$f":"[1]ACS_16_5YR_B18107_with_ann!AM53","v":50},{"$f":"[1]ACS_16_5YR_B18107_with_ann!AN53","v":586},{"$f":"[1]ACS_16_5YR_B18107_with_ann!AO53","v":139},{"$f":"[1]ACS_16_5YR_B18107_with_ann!AP53","v":43},{"$f":"[1]ACS_16_5YR_B18107_with_ann!AQ53","v":42},{"$f":"[1]ACS_16_5YR_B18107_with_ann!AR53","v":543},{"$f":"[1]ACS_16_5YR_B18107_with_ann!AS53","v":130},{"$f":"[1]ACS_16_5YR_B18107_with_ann!AT53","v":120},{"$f":"[1]ACS_16_5YR_B18107_with_ann!AU53","v":51},{"$f":"[1]ACS_16_5YR_B18107_with_ann!AV53","v":11},{"$f":"[1]ACS_16_5YR_B18107_with_ann!AW53","v":12},{"$f":"[1]ACS_16_5YR_B18107_with_ann!AX53","v":109},{"$f":"[1]ACS_16_5YR_B18107_with_ann!AY53","v":48},{"$f":"[1]ACS_16_5YR_B18107_with_ann!AZ53","v":87},{"$f":"[1]ACS_16_5YR_B18107_with_ann!BA53","v":42},{"$f":"[1]ACS_16_5YR_B18107_with_ann!BB53","v":15},{"$f":"[1]ACS_16_5YR_B18107_with_ann!BC53","v":17},{"$f":"[1]ACS_16_5YR_B18107_with_ann!BD53","v":72},{"$f":"[1]ACS_16_5YR_B18107_with_ann!BE53","v":38}]
["06000US3300545700","0600000US3300550580","060",{"$f":"[1]ACS_16_5YR_B18107_with_ann!C54","v":"Marlow"},{"$f":"[1]ACS_16_5YR_B18107_with_ann!D54","v":608},{"$f":"[1]ACS_16_5YR_B18107_with_ann!E54","v":123},{"$f":"[1]ACS_16_5YR_B18107_with_ann!F54","v":304},{"$f":"[1]ACS_16_5YR_B18107_with_ann!G54","v":62},{"$f":"[1]ACS_16_5YR_B18107_with_ann!H54","v":53},{"$f":"[1]ACS_16_5YR_B18107_with_ann!I54","v":32},{"$f":"[1]ACS_16_5YR_B18107_with_ann!J54","v":0},{"$f":"[1]ACS_16_5YR_B18107_with_ann!K54","v":12},{"$f":"[1]ACS_16_5YR_B18107_with_ann!L54","v":53},{"$f":"[1]ACS_16_5YR_B18107_with_ann!M54","v":32},{"$f":"[1]ACS_16_5YR_B18107_with_ann!N54","v":153},{"$f":"[1]ACS_16_5YR_B18107_with_ann!O54","v":41},{"$f":"[1]ACS_16_5YR_B18107_with_ann!P54","v":0},{"$f":"[1]ACS_16_5YR_B18107_with_ann!Q54","v":12},{"$f":"[1]ACS_16_5YR_B18107_with_ann!R54","v":153},{"$f":"[1]ACS_16_5YR_B18107_with_ann!S54","v":41},{"$f":"[1]ACS_16_5YR_B18107_with_ann!T54","v":75},{"$f":"[1]ACS_16_5YR_B18107_with_ann!U54","v":38},{"$f":"[1]ACS_16_5YR_B18107_with_ann!V54","v":0},{"$f":"[1]ACS_16_5YR_B18107_with_ann!W54","v":12},{"$f":"[1]ACS_16_5YR_B18107_with_ann!X54","v":75},{"$f":"[1]ACS_16_5YR_B18107_with_ann!Y54","v":38},{"$f":"[1]ACS_16_5YR_B18107_with_ann!Z54","v":23},{"$f":"[1]ACS_16_5YR_B18107_with_ann!AA54","v":13},{"$f":"[1]ACS_16_5YR_B18107_with_ann!AB54","v":2},{"$f":"[1]ACS_16_5YR_B18107_with_ann!AC54","v":3},{"$f":"[1]ACS_16_5YR_B18107_with_ann!AD54","v":21},{"$f":"[1]ACS_16_5YR_B18107_with_ann!AE54","v":12},{"$f":"[1]ACS_16_5YR_B18107_with_ann!AF54","v":304},{"$f":"[1]ACS_16_5YR_B18107_with_ann!AG54","v":69},{"$f":"[1]ACS_16_5YR_B18107_with_ann!AH54","v":72},{"$f":"[1]ACS_16_5YR_B18107_with_ann!AI54","v":40},{"$f":"[1]ACS_16_5YR_B18107_with_ann!AJ54","v":0},{"$f":"[1]ACS_16_5YR_B18107_with_ann!AK54","v":12},{"$f":"[1]ACS_16_5YR_B18107_with_ann!AL54","v":72},{"$f":"[1]ACS_16_5YR_B18107_with_ann!AM54","v":40},{"$f":"[1]ACS_16_5YR_B18107_with_ann!AN54","v":132},{"$f":"[1]ACS_16_5YR_B18107_with_ann!AO54","v":39},{"$f":"[1]ACS_16_5YR_B18107_with_ann!AP54","v":13},{"$f":"[1]ACS_16_5YR_B18107_with_ann!AQ54","v":13},{"$f":"[1]ACS_16_5YR_B18107_with_ann!AR54","v":119},{"$f":"[1]ACS_16_5YR_B18107_with_ann!AS54","v":36},{"$f":"[1]ACS_16_5YR_B18107_with_ann!AT54","v":67},{"$f":"[1]ACS_16_5YR_B18107_with_ann!AU54","v":38},{"$f":"[1]ACS_16_5YR_B18107_with_ann!AV54","v":2},{"$f":"[1]ACS_16_5YR_B18107_with_ann!AW54","v":5},{"$f":"[1]ACS_16_5YR_B18107_with_ann!AX54","v":65},{"$f":"[1]ACS_16_5YR_B18107_with_ann!AY54","v":38},{"$f":"[1]ACS_16_5YR_B18107_with_ann!AZ54","v":33},{"$f":"[1]ACS_16_5YR_B18107_with_ann!BA54","v":18},{"$f":"[1]ACS_16_5YR_B18107_with_ann!BB54","v":8},{"$f":"[1]ACS_16_5YR_B18107_with_ann!BC54","v":9},{"$f":"[1]ACS_16_5YR_B18107_with_ann!BD54","v":25},{"$f":"[1]ACS_16_5YR_B18107_with_ann!BE54","v":15}]
["06000US3300550580","0600000US3300564420","060",{"$f":"[1]ACS_16_5YR_B18107_with_ann!C55","v":"Nelson"},{"$f":"[1]ACS_16_5YR_B18107_with_ann!D55","v":465},{"$f":"[1]ACS_16_5YR_B18107_with_ann!E55","v":88},{"$f":"[1]ACS_16_5YR_B18107_with_ann!F55","v":220},{"$f":"[1]ACS_16_5YR_B18107_with_ann!G55","v":43},{"$f":"[1]ACS_16_5YR_B18107_with_ann!H55","v":25},{"$f":"[1]ACS_16_5YR_B18107_with_ann!I55","v":15},{"$f":"[1]ACS_16_5YR_B18107_with_ann!J55","v":2},{"$f":"[1]ACS_16_5YR_B18107_with_ann!K55","v":3},{"$f":"[1]ACS_16_5YR_B18107_with_ann!L55","v":23},{"$f":"[1]ACS_16_5YR_B18107_with_ann!M55","v":14},{"$f":"[1]ACS_16_5YR_B18107_with_ann!N55","v":116},{"$f":"[1]ACS_16_5YR_B18107_with_ann!O55","v":30},{"$f":"[1]ACS_16_5YR_B18107_with_ann!P55","v":11},{"$f":"[1]ACS_16_5YR_B18107_with_ann!Q55","v":14},{"$f":"[1]ACS_16_5YR_B18107_with_ann!R55","v":105},{"$f":"[1]ACS_16_5YR_B18107_with_ann!S55","v":28},{"$f":"[1]ACS_16_5YR_B18107_with_ann!T55","v":59},{"$f":"[1]ACS_16_5YR_B18107_with_ann!U55","v":21},{"$f":"[1]ACS_16_5YR_B18107_with_ann!V55","v":3},{"$f":"[1]ACS_16_5YR_B18107_with_ann!W55","v":4},{"$f":"[1]ACS_16_5YR_B18107_with_ann!X55","v":56},{"$f":"[1]ACS_16_5YR_B18107_with_ann!Y55","v":21},{"$f":"[1]ACS_16_5YR_B18107_with_ann!Z55","v":20},{"$f":"[1]ACS_16_5YR_B18107_with_ann!AA55","v":10},{"$f":"[1]ACS_16_5YR_B18107_with_ann!AB55","v":4},{"$f":"[1]ACS_16_5YR_B18107_with_ann!AC55","v":4},{"$f":"[1]ACS_16_5YR_B18107_with_ann!AD55","v":16},{"$f":"[1]ACS_16_5YR_B18107_with_ann!AE55","v":9},{"$f":"[1]ACS_16_5YR_B18107_with_ann!AF55","v":245},{"$f":"[1]ACS_16_5YR_B18107_with_ann!AG55","v":54},{"$f":"[1]ACS_16_5YR_B18107_with_ann!AH55","v":27},{"$f":"[1]ACS_16_5YR_B18107_with_ann!AI55","v":18},{"$f":"[1]ACS_16_5YR_B18107_with_ann!AJ55","v":0},{"$f":"[1]ACS_16_5YR_B18107_with_ann!AK55","v":12},{"$f":"[1]ACS_16_5YR_B18107_with_ann!AL55","v":27},{"$f":"[1]ACS_16_5YR_B18107_with_ann!AM55","v":18},{"$f":"[1]ACS_16_5YR_B18107_with_ann!AN55","v":140},{"$f":"[1]ACS_16_5YR_B18107_with_ann!AO55","v":38},{"$f":"[1]ACS_16_5YR_B18107_with_ann!AP55","v":0},{"$f":"[1]ACS_16_5YR_B18107_with_ann!AQ55","v":12},{"$f":"[1]ACS_16_5YR_B18107_with_ann!AR55","v":140},{"$f":"[1]ACS_16_5YR_B18107_with_ann!AS55","v":38},{"$f":"[1]ACS_16_5YR_B18107_with_ann!AT55","v":48},{"$f":"[1]ACS_16_5YR_B18107_with_ann!AU55","v":17},{"$f":"[1]ACS_16_5YR_B18107_with_ann!AV55","v":3},{"$f":"[1]ACS_16_5YR_B18107_with_ann!AW55","v":4},{"$f":"[1]ACS_16_5YR_B18107_with_ann!AX55","v":45},{"$f":"[1]ACS_16_5YR_B18107_with_ann!AY55","v":17},{"$f":"[1]ACS_16_5YR_B18107_with_ann!AZ55","v":30},{"$f":"[1]ACS_16_5YR_B18107_with_ann!BA55","v":21},{"$f":"[1]ACS_16_5YR_B18107_with_ann!BB55","v":2},{"$f":"[1]ACS_16_5YR_B18107_with_ann!BC55","v":6},{"$f":"[1]ACS_16_5YR_B18107_with_ann!BD55","v":28},{"$f":"[1]ACS_16_5YR_B18107_with_ann!BE55","v":18}]
["06000US3300564420","0600000US3300564580","060",{"$f":"[1]ACS_16_5YR_B18107_with_ann!C56","v":"Richmond"},{"$f":"[1]ACS_16_5YR_B18107_with_ann!D56","v":916},{"$f":"[1]ACS_16_5YR_B18107_with_ann!E56","v":208},{"$f":"[1]ACS_16_5YR_B18107_with_ann!F56","v":475},{"$f":"[1]ACS_16_5YR_B18107_with_ann!G56","v":136},{"$f":"[1]ACS_16_5YR_B18107_with_ann!H56","v":110},{"$f":"[1]ACS_16_5YR_B18107_with_ann!I56","v":61},{"$f":"[1]ACS_16_5YR_B18107_with_ann!J56","v":3},{"$f":"[1]ACS_16_5YR_B18107_with_ann!K56","v":6},{"$f":"[1]ACS_16_5YR_B18107_with_ann!L56","v":107},{"$f":"[1]ACS_16_5YR_B18107_with_ann!M56","v":60},{"$f":"[1]ACS_16_5YR_B18107_with_ann!N56","v":192},{"$f":"[1]ACS_16_5YR_B18107_with_ann!O56","v":53},{"$f":"[1]ACS_16_5YR_B18107_with_ann!P56","v":0},{"$f":"[1]ACS_16_5YR_B18107_with_ann!Q56","v":12},{"$f":"[1]ACS_16_5YR_B18107_with_ann!R56","v":192},{"$f":"[1]ACS_16_5YR_B18107_with_ann!S56","v":53},{"$f":"[1]ACS_16_5YR_B18107_with_ann!T56","v":145},{"$f":"[1]ACS_16_5YR_B18107_with_ann!U56","v":100},{"$f":"[1]ACS_16_5YR_B18107_with_ann!V56","v":2},{"$f":"[1]ACS_16_5YR_B18107_with_ann!W56","v":3},{"$f":"[1]ACS_16_5YR_B18107_with_ann!X56","v":143},{"$f":"[1]ACS_16_5YR_B18107_with_ann!Y56","v":100},{"$f":"[1]ACS_16_5YR_B18107_with_ann!Z56","v":28},{"$f":"[1]ACS_16_5YR_B18107_with_ann!AA56","v":16},{"$f":"[1]ACS_16_5YR_B18107_with_ann!AB56","v":14},{"$f":"[1]ACS_16_5YR_B18107_with_ann!AC56","v":14},{"$f":"[1]ACS_16_5YR_B18107_with_ann!AD56","v":14},{"$f":"[1]ACS_16_5YR_B18107_with_ann!AE56","v":11},{"$f":"[1]ACS_16_5YR_B18107_with_ann!AF56","v":441},{"$f":"[1]ACS_16_5YR_B18107_with_ann!AG56","v":108},{"$f":"[1]ACS_16_5YR_B18107_with_ann!AH56","v":69},{"$f":"[1]ACS_16_5YR_B18107_with_ann!AI56","v":47},{"$f":"[1]ACS_16_5YR_B18107_with_ann!AJ56","v":0},{"$f":"[1]ACS_16_5YR_B18107_with_ann!AK56","v":12},{"$f":"[1]ACS_16_5YR_B18107_with_ann!AL56","v":69},{"$f":"[1]ACS_16_5YR_B18107_with_ann!AM56","v":47},{"$f":"[1]ACS_16_5YR_B18107_with_ann!AN56","v":226},{"$f":"[1]ACS_16_5YR_B18107_with_ann!AO56","v":60},{"$f":"[1]ACS_16_5YR_B18107_with_ann!AP56","v":2},{"$f":"[1]ACS_16_5YR_B18107_with_ann!AQ56","v":4},{"$f":"[1]ACS_16_5YR_B18107_with_ann!AR56","v":224},{"$f":"[1]ACS_16_5YR_B18107_with_ann!AS56","v":59},{"$f":"[1]ACS_16_5YR_B18107_with_ann!AT56","v":69},{"$f":"[1]ACS_16_5YR_B18107_with_ann!AU56","v":30},{"$f":"[1]ACS_16_5YR_B18107_with_ann!AV56","v":4},{"$f":"[1]ACS_16_5YR_B18107_with_ann!AW56","v":6},{"$f":"[1]ACS_16_5YR_B18107_with_ann!AX56","v":65},{"$f":"[1]ACS_16_5YR_B18107_with_ann!AY56","v":30},{"$f":"[1]ACS_16_5YR_B18107_with_ann!AZ56","v":77},{"$f":"[1]ACS_16_5YR_B18107_with_ann!BA56","v":40},{"$f":"[1]ACS_16_5YR_B18107_with_ann!BB56","v":25},{"$f":"[1]ACS_16_5YR_B18107_with_ann!BC56","v":18},{"$f":"[1]ACS_16_5YR_B18107_with_ann!BD56","v":52},{"$f":"[1]ACS_16_5YR_B18107_with_ann!BE56","v":35}]
["06000US3300564580","0600000US3300565700","060",{"$f":"[1]ACS_16_5YR_B18107_with_ann!C57","v":"Rindge"},{"$f":"[1]ACS_16_5YR_B18107_with_ann!D57","v":5270},{"$f":"[1]ACS_16_5YR_B18107_with_ann!E57","v":159},{"$f":"[1]ACS_16_5YR_B18107_with_ann!F57","v":2548},{"$f":"[1]ACS_16_5YR_B18107_with_ann!G57","v":161},{"$f":"[1]ACS_16_5YR_B18107_with_ann!H57","v":941},{"$f":"[1]ACS_16_5YR_B18107_with_ann!I57","v":135},{"$f":"[1]ACS_16_5YR_B18107_with_ann!J57","v":0},{"$f":"[1]ACS_16_5YR_B18107_with_ann!K57","v":17},{"$f":"[1]ACS_16_5YR_B18107_with_ann!L57","v":941},{"$f":"[1]ACS_16_5YR_B18107_with_ann!M57","v":135},{"$f":"[1]ACS_16_5YR_B18107_with_ann!N57","v":983},{"$f":"[1]ACS_16_5YR_B18107_with_ann!O57","v":154},{"$f":"[1]ACS_16_5YR_B18107_with_ann!P57","v":11},{"$f":"[1]ACS_16_5YR_B18107_with_ann!Q57","v":19},{"$f":"[1]ACS_16_5YR_B18107_with_ann!R57","v":972},{"$f":"[1]ACS_16_5YR_B18107_with_ann!S57","v":152},{"$f":"[1]ACS_16_5YR_B18107_with_ann!T57","v":428},{"$f":"[1]ACS_16_5YR_B18107_with_ann!U57","v":106},{"$f":"[1]ACS_16_5YR_B18107_with_ann!V57","v":29},{"$f":"[1]ACS_16_5YR_B18107_with_ann!W57","v":46},{"$f":"[1]ACS_16_5YR_B18107_with_ann!X57","v":399},{"$f":"[1]ACS_16_5YR_B18107_with_ann!Y57","v":114},{"$f":"[1]ACS_16_5YR_B18107_with_ann!Z57","v":196},{"$f":"[1]ACS_16_5YR_B18107_with_ann!AA57","v":97},{"$f":"[1]ACS_16_5YR_B18107_with_ann!AB57","v":7},{"$f":"[1]ACS_16_5YR_B18107_with_ann!AC57","v":11},{"$f":"[1]ACS_16_5YR_B18107_with_ann!AD57","v":189},{"$f":"[1]ACS_16_5YR_B18107_with_ann!AE57","v":96},{"$f":"[1]ACS_16_5YR_B18107_with_ann!AF57","v":2722},{"$f":"[1]ACS_16_5YR_B18107_with_ann!AG57","v":157},{"$f":"[1]ACS_16_5YR_B18107_with_ann!AH57","v":1002},{"$f":"[1]ACS_16_5YR_B18107_with_ann!AI57","v":156},{"$f":"[1]ACS_16_5YR_B18107_with_ann!AJ57","v":55},{"$f":"[1]ACS_16_5YR_B18107_with_ann!AK57","v":56},{"$f":"[1]ACS_16_5YR_B18107_with_ann!AL57","v":947},{"$f":"[1]ACS_16_5YR_B18107_with_ann!AM57","v":151},{"$f":"[1]ACS_16_5YR_B18107_with_ann!AN57","v":1067},{"$f":"[1]ACS_16_5YR_B18107_with_ann!AO57","v":134},{"$f":"[1]ACS_16_5YR_B18107_with_ann!AP57","v":48},{"$f":"[1]ACS_16_5YR_B18107_with_ann!AQ57","v":50},{"$f":"[1]ACS_16_5YR_B18107_with_ann!AR57","v":1019},{"$f":"[1]ACS_16_5YR_B18107_with_ann!AS57","v":138},{"$f":"[1]ACS_16_5YR_B18107_with_ann!AT57","v":431},{"$f":"[1]ACS_16_5YR_B18107_with_ann!AU57","v":102},{"$f":"[1]ACS_16_5YR_B18107_with_ann!AV57","v":14},{"$f":"[1]ACS_16_5YR_B18107_with_ann!AW57","v":22},{"$f":"[1]ACS_16_5YR_B18107_with_ann!AX57","v":417},{"$f":"[1]ACS_16_5YR_B18107_with_ann!AY57","v":106},{"$f":"[1]ACS_16_5YR_B18107_with_ann!AZ57","v":222},{"$f":"[1]ACS_16_5YR_B18107_with_ann!BA57","v":107},{"$f":"[1]ACS_16_5YR_B18107_with_ann!BB57","v":52},{"$f":"[1]ACS_16_5YR_B18107_with_ann!BC57","v":61},{"$f":"[1]ACS_16_5YR_B18107_with_ann!BD57","v":170},{"$f":"[1]ACS_16_5YR_B18107_with_ann!BE57","v":85}]
["06000US3300565700","0600000US3300573700","060",{"$f":"[1]ACS_16_5YR_B18107_with_ann!C58","v":"Roxbury"},{"$f":"[1]ACS_16_5YR_B18107_with_ann!D58","v":248},{"$f":"[1]ACS_16_5YR_B18107_with_ann!E58","v":112},{"$f":"[1]ACS_16_5YR_B18107_with_ann!F58","v":95},{"$f":"[1]ACS_16_5YR_B18107_with_ann!G58","v":40},{"$f":"[1]ACS_16_5YR_B18107_with_ann!H58","v":17},{"$f":"[1]ACS_16_5YR_B18107_with_ann!I58","v":10},{"$f":"[1]ACS_16_5YR_B18107_with_ann!J58","v":1},{"$f":"[1]ACS_16_5YR_B18107_with_ann!K58","v":3},{"$f":"[1]ACS_16_5YR_B18107_with_ann!L58","v":16},{"$f":"[1]ACS_16_5YR_B18107_with_ann!M58","v":10},{"$f":"[1]ACS_16_5YR_B18107_with_ann!N58","v":65},{"$f":"[1]ACS_16_5YR_B18107_with_ann!O58","v":37},{"$f":"[1]ACS_16_5YR_B18107_with_ann!P58","v":0},{"$f":"[1]ACS_16_5YR_B18107_with_ann!Q58","v":12},{"$f":"[1]ACS_16_5YR_B18107_with_ann!R58","v":65},{"$f":"[1]ACS_16_5YR_B18107_with_ann!S58","v":37},{"$f":"[1]ACS_16_5YR_B18107_with_ann!T58","v":10},{"$f":"[1]ACS_16_5YR_B18107_with_ann!U58","v":6},{"$f":"[1]ACS_16_5YR_B18107_with_ann!V58","v":2},{"$f":"[1]ACS_16_5YR_B18107_with_ann!W58","v":4},{"$f":"[1]ACS_16_5YR_B18107_with_ann!X58","v":8},{"$f":"[1]ACS_16_5YR_B18107_with_ann!Y58","v":7},{"$f":"[1]ACS_16_5YR_B18107_with_ann!Z58","v":3},{"$f":"[1]ACS_16_5YR_B18107_with_ann!AA58","v":3},{"$f":"[1]ACS_16_5YR_B18107_with_ann!AB58","v":0},{"$f":"[1]ACS_16_5YR_B18107_with_ann!AC58","v":12},{"$f":"[1]ACS_16_5YR_B18107_with_ann!AD58","v":3},{"$f":"[1]ACS_16_5YR_B18107_with_ann!AE58","v":3},{"$f":"[1]ACS_16_5YR_B18107_with_ann!AF58","v":153},{"$f":"[1]ACS_16_5YR_B18107_with_ann!AG58","v":78},{"$f":"[1]ACS_16_5YR_B18107_with_ann!AH58","v":67},{"$f":"[1]ACS_16_5YR_B18107_with_ann!AI58","v":57},{"$f":"[1]ACS_16_5YR_B18107_with_ann!AJ58","v":0},{"$f":"[1]ACS_16_5YR_B18107_with_ann!AK58","v":12},{"$f":"[1]ACS_16_5YR_B18107_with_ann!AL58","v":67},{"$f":"[1]ACS_16_5YR_B18107_with_ann!AM58","v":57},{"$f":"[1]ACS_16_5YR_B18107_with_ann!AN58","v":66},{"$f":"[1]ACS_16_5YR_B18107_with_ann!AO58","v":30},{"$f":"[1]ACS_16_5YR_B18107_with_ann!AP58","v":12},{"$f":"[1]ACS_16_5YR_B18107_with_ann!AQ58","v":12},{"$f":"[1]ACS_16_5YR_B18107_with_ann!AR58","v":54},{"$f":"[1]ACS_16_5YR_B18107_with_ann!AS58","v":28},{"$f":"[1]ACS_16_5YR_B18107_with_ann!AT58","v":13},{"$f":"[1]ACS_16_5YR_B18107_with_ann!AU58","v":5},{"$f":"[1]ACS_16_5YR_B18107_with_ann!AV58","v":0},{"$f":"[1]ACS_16_5YR_B18107_with_ann!AW58","v":12},{"$f":"[1]ACS_16_5YR_B18107_with_ann!AX58","v":13},{"$f":"[1]ACS_16_5YR_B18107_with_ann!AY58","v":5},{"$f":"[1]ACS_16_5YR_B18107_with_ann!AZ58","v":7},{"$f":"[1]ACS_16_5YR_B18107_with_ann!BA58","v":7},{"$f":"[1]ACS_16_5YR_B18107_with_ann!BB58","v":4},{"$f":"[1]ACS_16_5YR_B18107_with_ann!BC58","v":6},{"$f":"[1]ACS_16_5YR_B18107_with_ann!BD58","v":3},{"$f":"[1]ACS_16_5YR_B18107_with_ann!BE58","v":4}]
["06000US3300573700","0600000US3300574900","060",{"$f":"[1]ACS_16_5YR_B18107_with_ann!C59","v":"Stoddard"},{"$f":"[1]ACS_16_5YR_B18107_with_ann!D59","v":954},{"$f":"[1]ACS_16_5YR_B18107_with_ann!E59","v":111},{"$f":"[1]ACS_16_5YR_B18107_with_ann!F59","v":459},{"$f":"[1]ACS_16_5YR_B18107_with_ann!G59","v":59},{"$f":"[1]ACS_16_5YR_B18107_with_ann!H59","v":81},{"$f":"[1]ACS_16_5YR_B18107_with_ann!I59","v":29},{"$f":"[1]ACS_16_5YR_B18107_with_ann!J59","v":8},{"$f":"[1]ACS_16_5YR_B18107_with_ann!K59","v":11},{"$f":"[1]ACS_16_5YR_B18107_with_ann!L59","v":73},{"$f":"[1]ACS_16_5YR_B18107_with_ann!M59","v":30},{"$f":"[1]ACS_16_5YR_B18107_with_ann!N59","v":279},{"$f":"[1]ACS_16_5YR_B18107_with_ann!O59","v":49},{"$f":"[1]ACS_16_5YR_B18107_with_ann!P59","v":0},{"$f":"[1]ACS_16_5YR_B18107_with_ann!Q59","v":12},{"$f":"[1]ACS_16_5YR_B18107_with_ann!R59","v":279},{"$f":"[1]ACS_16_5YR_B18107_with_ann!S59","v":49},{"$f":"[1]ACS_16_5YR_B18107_with_ann!T59","v":68},{"$f":"[1]ACS_16_5YR_B18107_with_ann!U59","v":17},{"$f":"[1]ACS_16_5YR_B18107_with_ann!V59","v":0},{"$f":"[1]ACS_16_5YR_B18107_with_ann!W59","v":12},{"$f":"[1]ACS_16_5YR_B18107_with_ann!X59","v":68},{"$f":"[1]ACS_16_5YR_B18107_with_ann!Y59","v":17},{"$f":"[1]ACS_16_5YR_B18107_with_ann!Z59","v":31},{"$f":"[1]ACS_16_5YR_B18107_with_ann!AA59","v":15},{"$f":"[1]ACS_16_5YR_B18107_with_ann!AB59","v":3},{"$f":"[1]ACS_16_5YR_B18107_with_ann!AC59","v":4},{"$f":"[1]ACS_16_5YR_B18107_with_ann!AD59","v":28},{"$f":"[1]ACS_16_5YR_B18107_with_ann!AE59","v":14},{"$f":"[1]ACS_16_5YR_B18107_with_ann!AF59","v":495},{"$f":"[1]ACS_16_5YR_B18107_with_ann!AG59","v":69},{"$f":"[1]ACS_16_5YR_B18107_with_ann!AH59","v":102},{"$f":"[1]ACS_16_5YR_B18107_with_ann!AI59","v":41},{"$f":"[1]ACS_16_5YR_B18107_with_ann!AJ59","v":4},{"$f":"[1]ACS_16_5YR_B18107_with_ann!AK59","v":7},{"$f":"[1]ACS_16_5YR_B18107_with_ann!AL59","v":98},{"$f":"[1]ACS_16_5YR_B18107_with_ann!AM59","v":40},{"$f":"[1]ACS_16_5YR_B18107_with_ann!AN59","v":257},{"$f":"[1]ACS_16_5YR_B18107_with_ann!AO59","v":49},{"$f":"[1]ACS_16_5YR_B18107_with_ann!AP59","v":3},{"$f":"[1]ACS_16_5YR_B18107_with_ann!AQ59","v":4},{"$f":"[1]ACS_16_5YR_B18107_with_ann!AR59","v":254},{"$f":"[1]ACS_16_5YR_B18107_with_ann!AS59","v":49},{"$f":"[1]ACS_16_5YR_B18107_with_ann!AT59","v":86},{"$f":"[1]ACS_16_5YR_B18107_with_ann!AU59","v":25},{"$f":"[1]ACS_16_5YR_B18107_with_ann!AV59","v":2},{"$f":"[1]ACS_16_5YR_B18107_with_ann!AW59","v":5},{"$f":"[1]ACS_16_5YR_B18107_with_ann!AX59","v":84},{"$f":"[1]ACS_16_5YR_B18107_with_ann!AY59","v":24},{"$f":"[1]ACS_16_5YR_B18107_with_ann!AZ59","v":50},{"$f":"[1]ACS_16_5YR_B18107_with_ann!BA59","v":22},{"$f":"[1]ACS_16_5YR_B18107_with_ann!BB59","v":10},{"$f":"[1]ACS_16_5YR_B18107_with_ann!BC59","v":10},{"$f":"[1]ACS_16_5YR_B18107_with_ann!BD59","v":40},{"$f":"[1]ACS_16_5YR_B18107_with_ann!BE59","v":19}]
["06000US3300574900","0600000US3300575300","060",{"$f":"[1]ACS_16_5YR_B18107_with_ann!C60","v":"Sullivan"},{"$f":"[1]ACS_16_5YR_B18107_with_ann!D60","v":570},{"$f":"[1]ACS_16_5YR_B18107_with_ann!E60","v":96},{"$f":"[1]ACS_16_5YR_B18107_with_ann!F60","v":289},{"$f":"[1]ACS_16_5YR_B18107_with_ann!G60","v":61},{"$f":"[1]ACS_16_5YR_B18107_with_ann!H60","v":88},{"$f":"[1]ACS_16_5YR_B18107_with_ann!I60","v":36},{"$f":"[1]ACS_16_5YR_B18107_with_ann!J60","v":15},{"$f":"[1]ACS_16_5YR_B18107_with_ann!K60","v":19},{"$f":"[1]ACS_16_5YR_B18107_with_ann!L60","v":73},{"$f":"[1]ACS_16_5YR_B18107_with_ann!M60","v":31},{"$f":"[1]ACS_16_5YR_B18107_with_ann!N60","v":134},{"$f":"[1]ACS_16_5YR_B18107_with_ann!O60","v":28},{"$f":"[1]ACS_16_5YR_B18107_with_ann!P60","v":2},{"$f":"[1]ACS_16_5YR_B18107_with_ann!Q60","v":4},{"$f":"[1]ACS_16_5YR_B18107_with_ann!R60","v":132},{"$f":"[1]ACS_16_5YR_B18107_with_ann!S60","v":28},{"$f":"[1]ACS_16_5YR_B18107_with_ann!T60","v":40},{"$f":"[1]ACS_16_5YR_B18107_with_ann!U60","v":17},{"$f":"[1]ACS_16_5YR_B18107_with_ann!V60","v":0},{"$f":"[1]ACS_16_5YR_B18107_with_ann!W60","v":12},{"$f":"[1]ACS_16_5YR_B18107_with_ann!X60","v":40},{"$f":"[1]ACS_16_5YR_B18107_with_ann!Y60","v":17},{"$f":"[1]ACS_16_5YR_B18107_with_ann!Z60","v":27},{"$f":"[1]ACS_16_5YR_B18107_with_ann!AA60","v":14},{"$f":"[1]ACS_16_5YR_B18107_with_ann!AB60","v":5},{"$f":"[1]ACS_16_5YR_B18107_with_ann!AC60","v":6},{"$f":"[1]ACS_16_5YR_B18107_with_ann!AD60","v":22},{"$f":"[1]ACS_16_5YR_B18107_with_ann!AE60","v":13},{"$f":"[1]ACS_16_5YR_B18107_with_ann!AF60","v":281},{"$f":"[1]ACS_16_5YR_B18107_with_ann!AG60","v":51},{"$f":"[1]ACS_16_5YR_B18107_with_ann!AH60","v":74},{"$f":"[1]ACS_16_5YR_B18107_with_ann!AI60","v":37},{"$f":"[1]ACS_16_5YR_B18107_with_ann!AJ60","v":0},{"$f":"[1]ACS_16_5YR_B18107_with_ann!AK60","v":12},{"$f":"[1]ACS_16_5YR_B18107_with_ann!AL60","v":74},{"$f":"[1]ACS_16_5YR_B18107_with_ann!AM60","v":37},{"$f":"[1]ACS_16_5YR_B18107_with_ann!AN60","v":145},{"$f":"[1]ACS_16_5YR_B18107_with_ann!AO60","v":28},{"$f":"[1]ACS_16_5YR_B18107_with_ann!AP60","v":3},{"$f":"[1]ACS_16_5YR_B18107_with_ann!AQ60","v":4},{"$f":"[1]ACS_16_5YR_B18107_with_ann!AR60","v":142},{"$f":"[1]ACS_16_5YR_B18107_with_ann!AS60","v":28},{"$f":"[1]ACS_16_5YR_B18107_with_ann!AT60","v":40},{"$f":"[1]ACS_16_5YR_B18107_with_ann!AU60","v":14},{"$f":"[1]ACS_16_5YR_B18107_with_ann!AV60","v":2},{"$f":"[1]ACS_16_5YR_B18107_with_ann!AW60","v":3},{"$f":"[1]ACS_16_5YR_B18107_with_ann!AX60","v":38},{"$f":"[1]ACS_16_5YR_B18107_with_ann!AY60","v":14},{"$f":"[1]ACS_16_5YR_B18107_with_ann!AZ60","v":22},{"$f":"[1]ACS_16_5YR_B18107_with_ann!BA60","v":13},{"$f":"[1]ACS_16_5YR_B18107_with_ann!BB60","v":4},{"$f":"[1]ACS_16_5YR_B18107_with_ann!BC60","v":5},{"$f":"[1]ACS_16_5YR_B18107_with_ann!BD60","v":18},{"$f":"[1]ACS_16_5YR_B18107_with_ann!BE60","v":12}]
["06000US3300575300","0600000US3300575700","060",{"$f":"[1]ACS_16_5YR_B18107_with_ann!C61","v":"Surry"},{"$f":"[1]ACS_16_5YR_B18107_with_ann!D61","v":757},{"$f":"[1]ACS_16_5YR_B18107_with_ann!E61","v":151},{"$f":"[1]ACS_16_5YR_B18107_with_ann!F61","v":337},{"$f":"[1]ACS_16_5YR_B18107_with_ann!G61","v":62},{"$f":"[1]ACS_16_5YR_B18107_with_ann!H61","v":49},{"$f":"[1]ACS_16_5YR_B18107_with_ann!I61","v":28},{"$f":"[1]ACS_16_5YR_B18107_with_ann!J61","v":0},{"$f":"[1]ACS_16_5YR_B18107_with_ann!K61","v":12},{"$f":"[1]ACS_16_5YR_B18107_with_ann!L61","v":49},{"$f":"[1]ACS_16_5YR_B18107_with_ann!M61","v":28},{"$f":"[1]ACS_16_5YR_B18107_with_ann!N61","v":164},{"$f":"[1]ACS_16_5YR_B18107_with_ann!O61","v":44},{"$f":"[1]ACS_16_5YR_B18107_with_ann!P61","v":0},{"$f":"[1]ACS_16_5YR_B18107_with_ann!Q61","v":12},{"$f":"[1]ACS_16_5YR_B18107_with_ann!R61","v":164},{"$f":"[1]ACS_16_5YR_B18107_with_ann!S61","v":44},{"$f":"[1]ACS_16_5YR_B18107_with_ann!T61","v":80},{"$f":"[1]ACS_16_5YR_B18107_with_ann!U61","v":34},{"$f":"[1]ACS_16_5YR_B18107_with_ann!V61","v":0},{"$f":"[1]ACS_16_5YR_B18107_with_ann!W61","v":12},{"$f":"[1]ACS_16_5YR_B18107_with_ann!X61","v":80},{"$f":"[1]ACS_16_5YR_B18107_with_ann!Y61","v":34},{"$f":"[1]ACS_16_5YR_B18107_with_ann!Z61","v":44},{"$f":"[1]ACS_16_5YR_B18107_with_ann!AA61","v":21},{"$f":"[1]ACS_16_5YR_B18107_with_ann!AB61","v":15},{"$f":"[1]ACS_16_5YR_B18107_with_ann!AC61","v":14},{"$f":"[1]ACS_16_5YR_B18107_with_ann!AD61","v":29},{"$f":"[1]ACS_16_5YR_B18107_with_ann!AE61","v":16},{"$f":"[1]ACS_16_5YR_B18107_with_ann!AF61","v":420},{"$f":"[1]ACS_16_5YR_B18107_with_ann!AG61","v":110},{"$f":"[1]ACS_16_5YR_B18107_with_ann!AH61","v":122},{"$f":"[1]ACS_16_5YR_B18107_with_ann!AI61","v":78},{"$f":"[1]ACS_16_5YR_B18107_with_ann!AJ61","v":9},{"$f":"[1]ACS_16_5YR_B18107_with_ann!AK61","v":8},{"$f":"[1]ACS_16_5YR_B18107_with_ann!AL61","v":113},{"$f":"[1]ACS_16_5YR_B18107_with_ann!AM61","v":77},{"$f":"[1]ACS_16_5YR_B18107_with_ann!AN61","v":179},{"$f":"[1]ACS_16_5YR_B18107_with_ann!AO61","v":54},{"$f":"[1]ACS_16_5YR_B18107_with_ann!AP61","v":2},{"$f":"[1]ACS_16_5YR_B18107_with_ann!AQ61","v":4},{"$f":"[1]ACS_16_5YR_B18107_with_ann!AR61","v":177},{"$f":"[1]ACS_16_5YR_B18107_with_ann!AS61","v":55},{"$f":"[1]ACS_16_5YR_B18107_with_ann!AT61","v":72},{"$f":"[1]ACS_16_5YR_B18107_with_ann!AU61","v":25},{"$f":"[1]ACS_16_5YR_B18107_with_ann!AV61","v":0},{"$f":"[1]ACS_16_5YR_B18107_with_ann!AW61","v":12},{"$f":"[1]ACS_16_5YR_B18107_with_ann!AX61","v":72},{"$f":"[1]ACS_16_5YR_B18107_with_ann!AY61","v":25},{"$f":"[1]ACS_16_5YR_B18107_with_ann!AZ61","v":47},{"$f":"[1]ACS_16_5YR_B18107_with_ann!BA61","v":20},{"$f":"[1]ACS_16_5YR_B18107_with_ann!BB61","v":13},{"$f":"[1]ACS_16_5YR_B18107_with_ann!BC61","v":9},{"$f":"[1]ACS_16_5YR_B18107_with_ann!BD61","v":34},{"$f":"[1]ACS_16_5YR_B18107_with_ann!BE61","v":20}]
["06000US3300575700","0600000US3300577380","060",{"$f":"[1]ACS_16_5YR_B18107_with_ann!C62","v":"Swanzey"},{"$f":"[1]ACS_16_5YR_B18107_with_ann!D62","v":6044},{"$f":"[1]ACS_16_5YR_B18107_with_ann!E62","v":174},{"$f":"[1]ACS_16_5YR_B18107_with_ann!F62","v":3013},{"$f":"[1]ACS_16_5YR_B18107_with_ann!G62","v":214},{"$f":"[1]ACS_16_5YR_B18107_with_ann!H62","v":528},{"$f":"[1]ACS_16_5YR_B18107_with_ann!I62","v":182},{"$f":"[1]ACS_16_5YR_B18107_with_ann!J62","v":43},{"$f":"[1]ACS_16_5YR_B18107_with_ann!K62","v":64},{"$f":"[1]ACS_16_5YR_B18107_with_ann!L62","v":485},{"$f":"[1]ACS_16_5YR_B18107_with_ann!M62","v":183},{"$f":"[1]ACS_16_5YR_B18107_with_ann!N62","v":1568},{"$f":"[1]ACS_16_5YR_B18107_with_ann!O62","v":216},{"$f":"[1]ACS_16_5YR_B18107_with_ann!P62","v":72},{"$f":"[1]ACS_16_5YR_B18107_with_ann!Q62","v":69},{"$f":"[1]ACS_16_5YR_B18107_with_ann!R62","v":1496},{"$f":"[1]ACS_16_5YR_B18107_with_ann!S62","v":227},{"$f":"[1]ACS_16_5YR_B18107_with_ann!T62","v":533},{"$f":"[1]ACS_16_5YR_B18107_with_ann!U62","v":186},{"$f":"[1]ACS_16_5YR_B18107_with_ann!V62","v":38},{"$f":"[1]ACS_16_5YR_B18107_with_ann!W62","v":43},{"$f":"[1]ACS_16_5YR_B18107_with_ann!X62","v":495},{"$f":"[1]ACS_16_5YR_B18107_with_ann!Y62","v":180},{"$f":"[1]ACS_16_5YR_B18107_with_ann!Z62","v":384},{"$f":"[1]ACS_16_5YR_B18107_with_ann!AA62","v":157},{"$f":"[1]ACS_16_5YR_B18107_with_ann!AB62","v":60},{"$f":"[1]ACS_16_5YR_B18107_with_ann!AC62","v":47},{"$f":"[1]ACS_16_5YR_B18107_with_ann!AD62","v":324},{"$f":"[1]ACS_16_5YR_B18107_with_ann!AE62","v":129},{"$f":"[1]ACS_16_5YR_B18107_with_ann!AF62","v":3031},{"$f":"[1]ACS_16_5YR_B18107_with_ann!AG62","v":176},{"$f":"[1]ACS_16_5YR_B18107_with_ann!AH62","v":424},{"$f":"[1]ACS_16_5YR_B18107_with_ann!AI62","v":133},{"$f":"[1]ACS_16_5YR_B18107_with_ann!AJ62","v":18},{"$f":"[1]ACS_16_5YR_B18107_with_ann!AK62","v":28},{"$f":"[1]ACS_16_5YR_B18107_with_ann!AL62","v":406},{"$f":"[1]ACS_16_5YR_B18107_with_ann!AM62","v":130},{"$f":"[1]ACS_16_5YR_B18107_with_ann!AN62","v":1648},{"$f":"[1]ACS_16_5YR_B18107_with_ann!AO62","v":206},{"$f":"[1]ACS_16_5YR_B18107_with_ann!AP62","v":179},{"$f":"[1]ACS_16_5YR_B18107_with_ann!AQ62","v":105},{"$f":"[1]ACS_16_5YR_B18107_with_ann!AR62","v":1469},{"$f":"[1]ACS_16_5YR_B18107_with_ann!AS62","v":228},{"$f":"[1]ACS_16_5YR_B18107_with_ann!AT62","v":587},{"$f":"[1]ACS_16_5YR_B18107_with_ann!AU62","v":143},{"$f":"[1]ACS_16_5YR_B18107_with_ann!AV62","v":0},{"$f":"[1]ACS_16_5YR_B18107_with_ann!AW62","v":17},{"$f":"[1]ACS_16_5YR_B18107_with_ann!AX62","v":587},{"$f":"[1]ACS_16_5YR_B18107_with_ann!AY62","v":143},{"$f":"[1]ACS_16_5YR_B18107_with_ann!AZ62","v":372},{"$f":"[1]ACS_16_5YR_B18107_with_ann!BA62","v":116},{"$f":"[1]ACS_16_5YR_B18107_with_ann!BB62","v":46},{"$f":"[1]ACS_16_5YR_B18107_with_ann!BC62","v":40},{"$f":"[1]ACS_16_5YR_B18107_with_ann!BD62","v":326},{"$f":"[1]ACS_16_5YR_B18107_with_ann!BE62","v":112}]
["06000US3300577380","0600000US3300578420","060",{"$f":"[1]ACS_16_5YR_B18107_with_ann!C63","v":"Troy"},{"$f":"[1]ACS_16_5YR_B18107_with_ann!D63","v":1496},{"$f":"[1]ACS_16_5YR_B18107_with_ann!E63","v":216},{"$f":"[1]ACS_16_5YR_B18107_with_ann!F63","v":776},{"$f":"[1]ACS_16_5YR_B18107_with_ann!G63","v":139},{"$f":"[1]ACS_16_5YR_B18107_with_ann!H63","v":191},{"$f":"[1]ACS_16_5YR_B18107_with_ann!I63","v":77},{"$f":"[1]ACS_16_5YR_B18107_with_ann!J63","v":9},{"$f":"[1]ACS_16_5YR_B18107_with_ann!K63","v":13},{"$f":"[1]ACS_16_5YR_B18107_with_ann!L63","v":182},{"$f":"[1]ACS_16_5YR_B18107_with_ann!M63","v":75},{"$f":"[1]ACS_16_5YR_B18107_with_ann!N63","v":419},{"$f":"[1]ACS_16_5YR_B18107_with_ann!O63","v":95},{"$f":"[1]ACS_16_5YR_B18107_with_ann!P63","v":7},{"$f":"[1]ACS_16_5YR_B18107_with_ann!Q63","v":9},{"$f":"[1]ACS_16_5YR_B18107_with_ann!R63","v":412},{"$f":"[1]ACS_16_5YR_B18107_with_ann!S63","v":95},{"$f":"[1]ACS_16_5YR_B18107_with_ann!T63","v":121},{"$f":"[1]ACS_16_5YR_B18107_with_ann!U63","v":49},{"$f":"[1]ACS_16_5YR_B18107_with_ann!V63","v":9},{"$f":"[1]ACS_16_5YR_B18107_with_ann!W63","v":12},{"$f":"[1]ACS_16_5YR_B18107_with_ann!X63","v":112},{"$f":"[1]ACS_16_5YR_B18107_with_ann!Y63","v":50},{"$f":"[1]ACS_16_5YR_B18107_with_ann!Z63","v":45},{"$f":"[1]ACS_16_5YR_B18107_with_ann!AA63","v":29},{"$f":"[1]ACS_16_5YR_B18107_with_ann!AB63","v":0},{"$f":"[1]ACS_16_5YR_B18107_with_ann!AC63","v":12},{"$f":"[1]ACS_16_5YR_B18107_with_ann!AD63","v":45},{"$f":"[1]ACS_16_5YR_B18107_with_ann!AE63","v":29},{"$f":"[1]ACS_16_5YR_B18107_with_ann!AF63","v":720},{"$f":"[1]ACS_16_5YR_B18107_with_ann!AG63","v":106},{"$f":"[1]ACS_16_5YR_B18107_with_ann!AH63","v":205},{"$f":"[1]ACS_16_5YR_B18107_with_ann!AI63","v":65},{"$f":"[1]ACS_16_5YR_B18107_with_ann!AJ63","v":27},{"$f":"[1]ACS_16_5YR_B18107_with_ann!AK63","v":24},{"$f":"[1]ACS_16_5YR_B18107_with_ann!AL63","v":178},{"$f":"[1]ACS_16_5YR_B18107_with_ann!AM63","v":65},{"$f":"[1]ACS_16_5YR_B18107_with_ann!AN63","v":352},{"$f":"[1]ACS_16_5YR_B18107_with_ann!AO63","v":89},{"$f":"[1]ACS_16_5YR_B18107_with_ann!AP63","v":16},{"$f":"[1]ACS_16_5YR_B18107_with_ann!AQ63","v":25},{"$f":"[1]ACS_16_5YR_B18107_with_ann!AR63","v":336},{"$f":"[1]ACS_16_5YR_B18107_with_ann!AS63","v":83},{"$f":"[1]ACS_16_5YR_B18107_with_ann!AT63","v":101},{"$f":"[1]ACS_16_5YR_B18107_with_ann!AU63","v":32},{"$f":"[1]ACS_16_5YR_B18107_with_ann!AV63","v":0},{"$f":"[1]ACS_16_5YR_B18107_with_ann!AW63","v":12},{"$f":"[1]ACS_16_5YR_B18107_with_ann!AX63","v":101},{"$f":"[1]ACS_16_5YR_B18107_with_ann!AY63","v":32},{"$f":"[1]ACS_16_5YR_B18107_with_ann!AZ63","v":62},{"$f":"[1]ACS_16_5YR_B18107_with_ann!BA63","v":38},{"$f":"[1]ACS_16_5YR_B18107_with_ann!BB63","v":0},{"$f":"[1]ACS_16_5YR_B18107_with_ann!BC63","v":12},{"$f":"[1]ACS_16_5YR_B18107_with_ann!BD63","v":62},{"$f":"[1]ACS_16_5YR_B18107_with_ann!BE63","v":38}]
["06000US3300578420","0600000US3300582660","060",{"$f":"[1]ACS_16_5YR_B18107_with_ann!C64","v":"Walpole"},{"$f":"[1]ACS_16_5YR_B18107_with_ann!D64","v":2725},{"$f":"[1]ACS_16_5YR_B18107_with_ann!E64","v":130},{"$f":"[1]ACS_16_5YR_B18107_with_ann!F64","v":1304},{"$f":"[1]ACS_16_5YR_B18107_with_ann!G64","v":140},{"$f":"[1]ACS_16_5YR_B18107_with_ann!H64","v":366},{"$f":"[1]ACS_16_5YR_B18107_with_ann!I64","v":116},{"$f":"[1]ACS_16_5YR_B18107_with_ann!J64","v":5},{"$f":"[1]ACS_16_5YR_B18107_with_ann!K64","v":9},{"$f":"[1]ACS_16_5YR_B18107_with_ann!L64","v":361},{"$f":"[1]ACS_16_5YR_B18107_with_ann!M64","v":116},{"$f":"[1]ACS_16_5YR_B18107_with_ann!N64","v":571},{"$f":"[1]ACS_16_5YR_B18107_with_ann!O64","v":100},{"$f":"[1]ACS_16_5YR_B18107_with_ann!P64","v":0},{"$f":"[1]ACS_16_5YR_B18107_with_ann!Q64","v":12},{"$f":"[1]ACS_16_5YR_B18107_with_ann!R64","v":571},{"$f":"[1]ACS_16_5YR_B18107_with_ann!S64","v":100},{"$f":"[1]ACS_16_5YR_B18107_with_ann!T64","v":271},{"$f":"[1]ACS_16_5YR_B18107_with_ann!U64","v":74},{"$f":"[1]ACS_16_5YR_B18107_with_ann!V64","v":42},{"$f":"[1]ACS_16_5YR_B18107_with_ann!W64","v":30},{"$f":"[1]ACS_16_5YR_B18107_with_ann!X64","v":229},{"$f":"[1]ACS_16_5YR_B18107_with_ann!Y64","v":66},{"$f":"[1]ACS_16_5YR_B18107_with_ann!Z64","v":96},{"$f":"[1]ACS_16_5YR_B18107_with_ann!AA64","v":46},{"$f":"[1]ACS_16_5YR_B18107_with_ann!AB64","v":6},{"$f":"[1]ACS_16_5YR_B18107_with_ann!AC64","v":10},{"$f":"[1]ACS_16_5YR_B18107_with_ann!AD64","v":90},{"$f":"[1]ACS_16_5YR_B18107_with_ann!AE64","v":46},{"$f":"[1]ACS_16_5YR_B18107_with_ann!AF64","v":1421},{"$f":"[1]ACS_16_5YR_B18107_with_ann!AG64","v":135},{"$f":"[1]ACS_16_5YR_B18107_with_ann!AH64","v":318},{"$f":"[1]ACS_16_5YR_B18107_with_ann!AI64","v":144},{"$f":"[1]ACS_16_5YR_B18107_with_ann!AJ64","v":10},{"$f":"[1]ACS_16_5YR_B18107_with_ann!AK64","v":17},{"$f":"[1]ACS_16_5YR_B18107_with_ann!AL64","v":308},{"$f":"[1]ACS_16_5YR_B18107_with_ann!AM64","v":146},{"$f":"[1]ACS_16_5YR_B18107_with_ann!AN64","v":699},{"$f":"[1]ACS_16_5YR_B18107_with_ann!AO64","v":118},{"$f":"[1]ACS_16_5YR_B18107_with_ann!AP64","v":34},{"$f":"[1]ACS_16_5YR_B18107_with_ann!AQ64","v":28},{"$f":"[1]ACS_16_5YR_B18107_with_ann!AR64","v":665},{"$f":"[1]ACS_16_5YR_B18107_with_ann!AS64","v":119},{"$f":"[1]ACS_16_5YR_B18107_with_ann!AT64","v":182},{"$f":"[1]ACS_16_5YR_B18107_with_ann!AU64","v":50},{"$f":"[1]ACS_16_5YR_B18107_with_ann!AV64","v":6},{"$f":"[1]ACS_16_5YR_B18107_with_ann!AW64","v":8},{"$f":"[1]ACS_16_5YR_B18107_with_ann!AX64","v":176},{"$f":"[1]ACS_16_5YR_B18107_with_ann!AY64","v":50},{"$f":"[1]ACS_16_5YR_B18107_with_ann!AZ64","v":222},{"$f":"[1]ACS_16_5YR_B18107_with_ann!BA64","v":100},{"$f":"[1]ACS_16_5YR_B18107_with_ann!BB64","v":21},{"$f":"[1]ACS_16_5YR_B18107_with_ann!BC64","v":24},{"$f":"[1]ACS_16_5YR_B18107_with_ann!BD64","v":201},{"$f":"[1]ACS_16_5YR_B18107_with_ann!BE64","v":97}]
["06000US3300582660","0600000US3300585540","060",{"$f":"[1]ACS_16_5YR_B18107_with_ann!C65","v":"Westmoreland"},{"$f":"[1]ACS_16_5YR_B18107_with_ann!D65","v":1660},{"$f":"[1]ACS_16_5YR_B18107_with_ann!E65","v":296},{"$f":"[1]ACS_16_5YR_B18107_with_ann!F65","v":773},{"$f":"[1]ACS_16_5YR_B18107_with_ann!G65","v":150},{"$f":"[1]ACS_16_5YR_B18107_with_ann!H65","v":117},{"$f":"[1]ACS_16_5YR_B18107_with_ann!I65","v":52},{"$f":"[1]ACS_16_5YR_B18107_with_ann!J65","v":3},{"$f":"[1]ACS_16_5YR_B18107_with_ann!K65","v":6},{"$f":"[1]ACS_16_5YR_B18107_with_ann!L65","v":114},{"$f":"[1]ACS_16_5YR_B18107_with_ann!M65","v":51},{"$f":"[1]ACS_16_5YR_B18107_with_ann!N65","v":395},{"$f":"[1]ACS_16_5YR_B18107_with_ann!O65","v":97},{"$f":"[1]ACS_16_5YR_B18107_with_ann!P65","v":23},{"$f":"[1]ACS_16_5YR_B18107_with_ann!Q65","v":18},{"$f":"[1]ACS_16_5YR_B18107_with_ann!R65","v":372},{"$f":"[1]ACS_16_5YR_B18107_with_ann!S65","v":95},{"$f":"[1]ACS_16_5YR_B18107_with_ann!T65","v":156},{"$f":"[1]ACS_16_5YR_B18107_with_ann!U65","v":50},{"$f":"[1]ACS_16_5YR_B18107_with_ann!V65","v":3},{"$f":"[1]ACS_16_5YR_B18107_with_ann!W65","v":5},{"$f":"[1]ACS_16_5YR_B18107_with_ann!X65","v":153},{"$f":"[1]ACS_16_5YR_B18107_with_ann!Y65","v":50},{"$f":"[1]ACS_16_5YR_B18107_with_ann!Z65","v":105},{"$f":"[1]ACS_16_5YR_B18107_with_ann!AA65","v":66},{"$f":"[1]ACS_16_5YR_B18107_with_ann!AB65","v":54},{"$f":"[1]ACS_16_5YR_B18107_with_ann!AC65","v":63},{"$f":"[1]ACS_16_5YR_B18107_with_ann!AD65","v":51},{"$f":"[1]ACS_16_5YR_B18107_with_ann!AE65","v":23},{"$f":"[1]ACS_16_5YR_B18107_with_ann!AF65","v":887},{"$f":"[1]ACS_16_5YR_B18107_with_ann!AG65","v":171},{"$f":"[1]ACS_16_5YR_B18107_with_ann!AH65","v":119},{"$f":"[1]ACS_16_5YR_B18107_with_ann!AI65","v":67},{"$f":"[1]ACS_16_5YR_B18107_with_ann!AJ65","v":0},{"$f":"[1]ACS_16_5YR_B18107_with_ann!AK65","v":12},{"$f":"[1]ACS_16_5YR_B18107_with_ann!AL65","v":119},{"$f":"[1]ACS_16_5YR_B18107_with_ann!AM65","v":67},{"$f":"[1]ACS_16_5YR_B18107_with_ann!AN65","v":430},{"$f":"[1]ACS_16_5YR_B18107_with_ann!AO65","v":101},{"$f":"[1]ACS_16_5YR_B18107_with_ann!AP65","v":2},{"$f":"[1]ACS_16_5YR_B18107_with_ann!AQ65","v":5},{"$f":"[1]ACS_16_5YR_B18107_with_ann!AR65","v":428},{"$f":"[1]ACS_16_5YR_B18107_with_ann!AS65","v":101},{"$f":"[1]ACS_16_5YR_B18107_with_ann!AT65","v":215},{"$f":"[1]ACS_16_5YR_B18107_with_ann!AU65","v":110},{"$f":"[1]ACS_16_5YR_B18107_with_ann!AV65","v":4},{"$f":"[1]ACS_16_5YR_B18107_with_ann!AW65","v":8},{"$f":"[1]ACS_16_5YR_B18107_with_ann!AX65","v":211},{"$f":"[1]ACS_16_5YR_B18107_with_ann!AY65","v":109},{"$f":"[1]ACS_16_5YR_B18107_with_ann!AZ65","v":123},{"$f":"[1]ACS_16_5YR_B18107_with_ann!BA65","v":45},{"$f":"[1]ACS_16_5YR_B18107_with_ann!BB65","v":43},{"$f":"[1]ACS_16_5YR_B18107_with_ann!BC65","v":29},{"$f":"[1]ACS_16_5YR_B18107_with_ann!BD65","v":80},{"$f":"[1]ACS_16_5YR_B18107_with_ann!BE65","v":36}]
["06000US3300585540","0600000US3300500820","060",{"$f":"[1]ACS_16_5YR_B18107_with_ann!C66","v":"Winchester"},{"$f":"[1]ACS_16_5YR_B18107_with_ann!D66","v":3155},{"$f":"[1]ACS_16_5YR_B18107_with_ann!E66","v":197},{"$f":"[1]ACS_16_5YR_B18107_with_ann!F66","v":1555},{"$f":"[1]ACS_16_5YR_B18107_with_ann!G66","v":183},{"$f":"[1]ACS_16_5YR_B18107_with_ann!H66","v":388},{"$f":"[1]ACS_16_5YR_B18107_with_ann!I66","v":118},{"$f":"[1]ACS_16_5YR_B18107_with_ann!J66","v":0},{"$f":"[1]ACS_16_5YR_B18107_with_ann!K66","v":12},{"$f":"[1]ACS_16_5YR_B18107_with_ann!L66","v":388},{"$f":"[1]ACS_16_5YR_B18107_with_ann!M66","v":118},{"$f":"[1]ACS_16_5YR_B18107_with_ann!N66","v":910},{"$f":"[1]ACS_16_5YR_B18107_with_ann!O66","v":152},{"$f":"[1]ACS_16_5YR_B18107_with_ann!P66","v":67},{"$f":"[1]ACS_16_5YR_B18107_with_ann!Q66","v":52},{"$f":"[1]ACS_16_5YR_B18107_with_ann!R66","v":843},{"$f":"[1]ACS_16_5YR_B18107_with_ann!S66","v":154},{"$f":"[1]ACS_16_5YR_B18107_with_ann!T66","v":193},{"$f":"[1]ACS_16_5YR_B18107_with_ann!U66","v":70},{"$f":"[1]ACS_16_5YR_B18107_with_ann!V66","v":14},{"$f":"[1]ACS_16_5YR_B18107_with_ann!W66","v":16},{"$f":"[1]ACS_16_5YR_B18107_with_ann!X66","v":179},{"$f":"[1]ACS_16_5YR_B18107_with_ann!Y66","v":68},{"$f":"[1]ACS_16_5YR_B18107_with_ann!Z66","v":64},{"$f":"[1]ACS_16_5YR_B18107_with_ann!AA66","v":35},{"$f":"[1]ACS_16_5YR_B18107_with_ann!AB66","v":8},{"$f":"[1]ACS_16_5YR_B18107_with_ann!AC66","v":11},{"$f":"[1]ACS_16_5YR_B18107_with_ann!AD66","v":56},{"$f":"[1]ACS_16_5YR_B18107_with_ann!AE66","v":37},{"$f":"[1]ACS_16_5YR_B18107_with_ann!AF66","v":1600},{"$f":"[1]ACS_16_5YR_B18107_with_ann!AG66","v":199},{"$f":"[1]ACS_16_5YR_B18107_with_ann!AH66","v":492},{"$f":"[1]ACS_16_5YR_B18107_with_ann!AI66","v":192},{"$f":"[1]ACS_16_5YR_B18107_with_ann!AJ66","v":8},{"$f":"[1]ACS_16_5YR_B18107_with_ann!AK66","v":17},{"$f":"[1]ACS_16_5YR_B18107_with_ann!AL66","v":484},{"$f":"[1]ACS_16_5YR_B18107_with_ann!AM66","v":197},{"$f":"[1]ACS_16_5YR_B18107_with_ann!AN66","v":753},{"$f":"[1]ACS_16_5YR_B18107_with_ann!AO66","v":132},{"$f":"[1]ACS_16_5YR_B18107_with_ann!AP66","v":62},{"$f":"[1]ACS_16_5YR_B18107_with_ann!AQ66","v":57},{"$f":"[1]ACS_16_5YR_B18107_with_ann!AR66","v":691},{"$f":"[1]ACS_16_5YR_B18107_with_ann!AS66","v":143},{"$f":"[1]ACS_16_5YR_B18107_with_ann!AT66","v":204},{"$f":"[1]ACS_16_5YR_B18107_with_ann!AU66","v":79},{"$f":"[1]ACS_16_5YR_B18107_with_ann!AV66","v":58},{"$f":"[1]ACS_16_5YR_B18107_with_ann!AW66","v":75},{"$f":"[1]ACS_16_5YR_B18107_with_ann!AX66","v":146},{"$f":"[1]ACS_16_5YR_B18107_with_ann!AY66","v":61},{"$f":"[1]ACS_16_5YR_B18107_with_ann!AZ66","v":151},{"$f":"[1]ACS_16_5YR_B18107_with_ann!BA66","v":66},{"$f":"[1]ACS_16_5YR_B18107_with_ann!BB66","v":17},{"$f":"[1]ACS_16_5YR_B18107_with_ann!BC66","v":21},{"$f":"[1]ACS_16_5YR_B18107_with_ann!BD66","v":134},{"$f":"[1]ACS_16_5YR_B18107_with_ann!BE66","v":63}]
[]
[]
[]
[null,null,null,null,{"$f":"$D$3","v":"Alstead"},null,{"$f":"$D$4","v":"Chesterfield"},null,{"$f":"$D$5","v":"Dublin"},null,{"$f":"$D$6","v":"Fitzwilliam"},null,{"$f":"$D$7","v":"Gilsum"},null,{"$f":"$D$8","v":"Harrisville"},null,{"$f":"$D$9","v":"Hinsdale"},null,{"$f":"$D$10","v":"Jaffrey"},null,{"$f":"$D$11","v":"Keene"},null,{"$f":"$D$12","v":"Marlborough"},null,{"$f":"$D$13","v":"Marlow"},null,{"$f":"$D$14","v":"Nelson"},null,{"$f":"$D$15","v":"Richmond"},null,{"$f":"$D$16","v":"Rindge"},null,{"$f":"$D$17","v":"Roxbury"},null,{"$f":"$D$18","v":"Stoddard"},null,{"$f":"$D$19","v":"Sullivan"},null,{"$f":"$D$20","v":"Surry"},null,{"$f":"$D$21","v":"Swanzey"},null,{"$f":"$D$22","v":"Troy"},null,{"$f":"$D$23","v":"Walpole"},null,{"$f":"$D$24","v":"Westmoreland"},null,{"$f":"$D$25","v":"Winchester"}]
[null,null,null,null,"Estimate","Margin of Error","Estimate","Margin of Error","Estimate","Margin of Error","Estimate","Margin of Error","Estimate","Margin of Error","Estimate","Margin of Error","Estimate","Margin of Error","Estimate","Margin of Error","Estimate","Margin of Error","Estimate","Margin of Error","Estimate","Margin of Error","Estimate","Margin of Error","Estimate","Margin of Error","Estimate","Margin of Error","Estimate","Margin of Error","Estimate","Margin of Error","Estimate","Margin of Error","Estimate","Margin of Error","Estimate","Margin of Error","Estimate","Margin of Error","Estimate","Margin of Error","Estimate","Margin of Error","Estimate","Margin of Error"]
[null,null,null,"Estimate!!Total:",1371,145,2840,158,1384,184,2002,335,722,127,828,147,3379,113,3974,247,19137,284,1710,278,608,123,465,88,916,208,5270,159,248,112,954,111,570,96,757,151,6044,174,1496,216,2725,130,1660,296,3155,197]
[null,null,null,"Estimate!!Total:!!Male:",662,90,1427,146,679,102,1069,205,367,81,372,67,1787,203,2051,227,9121,357,800,161,304,62,220,43,475,136,2548,161,95,40,459,59,289,61,337,62,3013,214,776,139,1304,140,773,150,1555,183]
[null,null,null,"Estimate!!Total:!!Male:!!18 to 34 years:",147,61,366,146,136,55,226,92,119,56,38,20,294,122,408,190,3702,372,175,92,53,32,25,15,110,61,941,135,17,10,81,29,88,36,49,28,528,182,191,77,366,116,117,52,388,118]
[null,null,null,"Estimate!!Total:!!Male:!!18 to 34 years:!!With an independent living difficulty",35,40,0,12,13,21,6,9,4,7,0,12,0,12,31,56,78,59,0,12,0,12,2,3,3,6,0,17,1,3,8,11,15,19,0,12,43,64,9,13,5,9,3,6,0,12]
[null,null,null,"Estimate!!Total:!!Male:!!18 to 34 years:!!No independent living difficulty",112,48,366,146,123,53,220,92,115,56,38,20,294,122,377,187,3624,370,175,92,53,32,23,14,107,60,941,135,16,10,73,30,73,31,49,28,485,183,182,75,361,116,114,51,388,118]
[null,null,null,"Estimate!!Total:!!Male:!!35 to 64 years:",357,76,537,175,338,83,605,177,158,38,190,52,878,165,1310,200,3790,283,440,108,153,41,116,30,192,53,983,154,65,37,279,49,134,28,164,44,1568,216,419,95,571,100,395,97,910,152]
[null,null,null,"Estimate!!Total:!!Male:!!35 to 64 years:!!With an independent living difficulty",23,19,0,12,5,7,8,15,10,9,22,19,24,26,64,62,47,36,17,13,0,12,11,14,0,12,11,19,0,12,0,12,2,4,0,12,72,69,7,9,0,12,23,18,67,52]
[null,null,null,"Estimate!!Total:!!Male:!!35 to 64 years:!!No independent living difficulty",334,79,537,175,333,82,597,179,148,37,168,49,854,169,1246,191,3743,284,423,108,153,41,105,28,192,53,972,152,65,37,279,49,132,28,164,44,1496,227,412,95,571,100,372,95,843,154]
[null,null,null,"Estimate!!Total:!!Male:!!65 to 74 years:",106,42,367,125,153,64,195,55,76,29,91,28,433,236,159,87,899,135,83,37,75,38,59,21,145,100,428,106,10,6,68,17,40,17,80,34,533,186,121,49,271,74,156,50,193,70]
[null,null,null,"Estimate!!Total:!!Male:!!65 to 74 years:!!With an independent living difficulty",6,8,0,12,0,12,31,25,0,12,3,4,204,238,0,17,32,37,5,8,0,12,3,4,2,3,29,46,2,4,0,12,0,12,0,12,38,43,9,12,42,30,3,5,14,16]
[null,null,null,"Estimate!!Total:!!Male:!!65 to 74 years:!!No independent living difficulty",100,41,367,125,153,64,164,50,76,29,88,28,229,118,159,87,867,141,78,37,75,38,56,21,143,100,399,114,8,7,68,17,40,17,80,34,495,180,112,50,229,66,153,50,179,68]
[null,null,null,"Estimate!!Total:!!Male:!!75 years and over:",52,33,157,80,52,26,43,19,14,10,53,20,182,113,174,110,730,148,102,43,23,13,20,10,28,16,196,97,3,3,31,15,27,14,44,21,384,157,45,29,96,46,105,66,64,35]
[null,null,null,"Estimate!!Total:!!Male:!!75 years and over:!!With an independent living difficulty",5,8,0,12,4,5,0,12,4,6,0,12,0,12,0,17,86,58,6,8,2,3,4,4,14,14,7,11,0,12,3,4,5,6,15,14,60,47,0,12,6,10,54,63,8,11]
[null,null,null,"Estimate!!Total:!!Male:!!75 years and over:!!No independent living difficulty",47,31,157,80,48,26,43,19,10,7,53,20,182,113,174,110,644,152,96,44,21,12,16,9,14,11,189,96,3,3,28,14,22,13,29,16,324,129,45,29,90,46,51,23,56,37]
[null,null,null,"Estimate!!Total:!!Female:",709,93,1413,126,705,115,933,159,355,64,456,89,1592,189,1923,204,10016,347,910,157,304,69,245,54,441,108,2722,157,153,78,495,69,281,51,420,110,3031,176,720,106,1421,135,887,171,1600,199]
[null,null,null,"Estimate!!Total:!!Female:!!18 to 34 years:",117,55,323,125,63,26,151,78,95,35,89,40,306,147,307,170,3991,285,117,53,72,40,27,18,69,47,1002,156,67,57,102,41,74,37,122,78,424,133,205,65,318,144,119,67,492,192]
[null,null,null,"Estimate!!Total:!!Female:!!18 to 34 years:!!With an independent living difficulty",13,12,0,12,0,12,0,12,0,12,0,12,0,12,0,17,162,104,13,21,0,12,0,12,0,12,55,56,0,12,4,7,0,12,9,8,18,28,27,24,10,17,0,12,8,17]
[null,null,null,"Estimate!!Total:!!Female:!!18 to 34 years:!!No independent living difficulty",104,54,323,125,63,26,151,78,95,35,89,40,306,147,307,170,3829,295,104,50,72,40,27,18,69,47,947,151,67,57,98,40,74,37,113,77,406,130,178,65,308,146,119,67,484,197]
[null,null,null,"Estimate!!Total:!!Female:!!35 to 64 years:",329,67,729,167,404,97,484,84,170,44,220,61,843,127,1144,160,3688,301,586,139,132,39,140,38,226,60,1067,134,66,30,257,49,145,28,179,54,1648,206,352,89,699,118,430,101,753,132]
[null,null,null,"Estimate!!Total:!!Female:!!35 to 64 years:!!With an independent living difficulty",66,51,22,34,2,3,10,11,7,9,10,13,40,34,88,85,176,103,43,42,13,13,0,12,2,4,48,50,12,12,3,4,3,4,2,4,179,105,16,25,34,28,2,5,62,57]
[null,null,null,"Estimate!!Total:!!Female:!!35 to 64 years:!!No independent living difficulty",263,47,707,169,402,97,474,83,163,42,210,59,803,121,1056,156,3512,295,543,130,119,36,140,38,224,59,1019,138,54,28,254,49,142,28,177,55,1469,228,336,83,665,119,428,101,691,143]
[null,null,null,"Estimate!!Total:!!Female:!!65 to 74 years:",173,71,244,110,162,54,251,106,58,25,107,30,214,97,276,101,1300,181,120,51,67,38,48,17,69,30,431,102,13,5,86,25,40,14,72,25,587,143,101,32,182,50,215,110,204,79]
[null,null,null,"Estimate!!Total:!!Female:!!65 to 74 years:!!With an independent living difficulty",0,12,20,30,0,12,4,6,0,12,2,3,11,13,9,17,125,61,11,12,2,5,3,4,4,6,14,22,0,12,2,5,2,3,0,12,0,17,0,12,6,8,4,8,58,75]
[null,null,null,"Estimate!!Total:!!Female:!!65 to 74 years:!!No independent living difficulty",173,71,224,111,162,54,247,105,58,25,105,30,203,99,267,103,1175,181,109,48,65,38,45,17,65,30,417,106,13,5,84,24,38,14,72,25,587,143,101,32,176,50,211,109,146,61]
[null,null,null,"Estimate!!Total:!!Female:!!75 years and over:",90,47,117,76,76,51,47,27,32,14,40,22,229,155,196,97,1037,197,87,42,33,18,30,21,77,40,222,107,7,7,50,22,22,13,47,20,372,116,62,38,222,100,123,45,151,66]
[null,null,null,"Estimate!!Total:!!Female:!!75 years and over:!!With an independent living difficulty",5,7,19,30,18,43,17,17,9,10,0,12,29,47,84,84,281,179,15,17,8,9,2,6,25,18,52,61,4,6,10,10,4,5,13,9,46,40,0,12,21,24,43,29,17,21]
[null,null,null,"Estimate!!Total:!!Female:!!75 years and over:!!No independent living difficulty",85,46,98,69,58,27,30,18,23,11,40,22,200,156,112,63,756,181,72,38,25,15,28,18,52,35,170,85,3,4,40,19,18,12,34,20,326,112,62,38,201,97,80,36,134,63]

{"sheet":"ACS_Table_B18107","index":52,"n_rows":150,"n_cols":48,"rows_kept":150,"cut":false,"hidden":true,"merged":[]}
["B18107. SEX BY AGE BY INDEPENDENT LIVING DIFFICULTY\n\n\n"]
["Universe:  Civilian noninstitutionalized population 18 years and over"]
["Data Set: 2018-2022 American Community Survey 5-Year Estimates"]
[]
[null,null,"Alstead",null,"Chesterfield",null,"Dublin",null,"Fitzwilliam",null,"Gilsum",null,"Harrisville",null,"Hinsdale",null,"Jaffrey",null,"Keene",null,"Marlborough",null,"Marlow",null,"Nelson",null,"Richmond",null,"Rindge",null,"Roxbury",null,"Stoddard",null,"Sullivan",null,"Surry",null,"Swanzey",null,"Troy",null,"Walpole",null,"Westmoreland",null,"Winchester"]
[null," ","Estimate","Margin of Error","Estimate","Margin of Error","Estimate","Margin of Error","Estimate","Margin of Error","Estimate","Margin of Error","Estimate","Margin of Error","Estimate","Margin of Error","Estimate","Margin of Error","Estimate","Margin of Error","Estimate","Margin of Error","Estimate","Margin of Error","Estimate","Margin of Error","Estimate","Margin of Error","Estimate","Margin of Error","Estimate","Margin of Error","Estimate","Margin of Error","Estimate","Margin of Error","Estimate","Margin of Error","Estimate","Margin of Error","Estimate","Margin of Error","Estimate","Margin of Error","Estimate","Margin of Error","Estimate","Margin of Error"]
[null,"Total:",1371,145,2840,158,1384,184,2002,335,722,127,828,147,3379,113,3974,247,19137,284,1710,278,608,123,465,88,916,208,5270,159,248,112,954,111,570,96,757,151,6044,174,1496,216,2725,130,1660,296,3155,197]
[null,"Male:",662,90,1427,146,679,102,1069,205,367,81,372,67,1787,203,2051,227,9121,357,800,161,304,62,220,43,475,136,2548,161,95,40,459,59,289,61,337,62,3013,214,776,139,1304,140,773,150,1555,183]
[null,"18 to 34  years:",147,61,366,146,136,55,226,92,119,56,38,20,294,122,408,190,3702,372,175,92,53,32,25,15,110,61,941,135,17,10,81,29,88,36,49,28,528,182,191,77,366,116,117,52,388,118]
[null,"With independent living difficulty",35,40,0,12,13,21,6,9,4,7,0,12,0,12,31,56,78,59,0,12,0,12,2,3,3,6,0,17,1,3,8,11,15,19,0,12,43,64,9,13,5,9,3,6,0,12]
[null,"With no independent living difficulty",112,48,366,146,123,53,220,92,115,56,38,20,294,122,377,187,3624,370,175,92,53,32,23,14,107,60,941,135,16,10,73,30,73,31,49,28,485,183,182,75,361,116,114,51,388,118]
[null,"35 to 64  years:",357,76,537,175,338,83,605,177,158,38,190,52,878,165,1310,200,3790,283,440,108,153,41,116,30,192,53,983,154,65,37,279,49,134,28,164,44,1568,216,419,95,571,100,395,97,910,152]
[null,"With independent living difficulty",23,19,0,12,5,7,8,15,10,9,22,19,24,26,64,62,47,36,17,13,0,12,11,14,0,12,11,19,0,12,0,12,2,4,0,12,72,69,7,9,0,12,23,18,67,52]
[null,"With no independent living difficulty",334,79,537,175,333,82,597,179,148,37,168,49,854,169,1246,191,3743,284,423,108,153,41,105,28,192,53,972,152,65,37,279,49,132,28,164,44,1496,227,412,95,571,100,372,95,843,154]
[null,"65 to 74  years:",106,42,367,125,153,64,195,55,76,29,91,28,433,236,159,87,899,135,83,37,75,38,59,21,145,100,428,106,10,6,68,17,40,17,80,34,533,186,121,49,271,74,156,50,193,70]
[null,"With independent living difficulty",6,8,0,12,0,12,31,25,0,12,3,4,204,238,0,17,32,37,5,8,0,12,3,4,2,3,29,46,2,4,0,12,0,12,0,12,38,43,9,12,42,30,3,5,14,16]
[null,"With no independent living difficulty",100,41,367,125,153,64,164,50,76,29,88,28,229,118,159,87,867,141,78,37,75,38,56,21,143,100,399,114,8,7,68,17,40,17,80,34,495,180,112,50,229,66,153,50,179,68]
[null,"75  years and Older:",52,33,157,80,52,26,43,19,14,10,53,20,182,113,174,110,730,148,102,43,23,13,20,10,28,16,196,97,3,3,31,15,27,14,44,21,384,157,45,29,96,46,105,66,64,35]
[null,"With independent living difficulty",5,8,0,12,4,5,0,12,4,6,0,12,0,12,0,17,86,58,6,8,2,3,4,4,14,14,7,11,0,12,3,4,5,6,15,14,60,47,0,12,6,10,54,63,8,11]
[null,"With no independent living difficulty",47,31,157,80,48,26,43,19,10,7,53,20,182,113,174,110,644,152,96,44,21,12,16,9,14,11,189,96,3,3,28,14,22,13,29,16,324,129,45,29,90,46,51,23,56,37]
[null,"Female:",709,93,1413,126,705,115,933,159,355,64,456,89,1592,189,1923,204,10016,347,910,157,304,69,245,54,441,108,2722,157,153,78,495,69,281,51,420,110,3031,176,720,106,1421,135,887,171,1600,199]
[null,"18 to 34  years:",117,55,323,125,63,26,151,78,95,35,89,40,306,147,307,170,3991,285,117,53,72,40,27,18,69,47,1002,156,67,57,102,41,74,37,122,78,424,133,205,65,318,144,119,67,492,192]
[null,"With independent living difficulty",13,12,0,12,0,12,0,12,0,12,0,12,0,12,0,17,162,104,13,21,0,12,0,12,0,12,55,56,0,12,4,7,0,12,9,8,18,28,27,24,10,17,0,12,8,17]
[null,"With no independent living difficulty",104,54,323,125,63,26,151,78,95,35,89,40,306,147,307,170,3829,295,104,50,72,40,27,18,69,47,947,151,67,57,98,40,74,37,113,77,406,130,178,65,308,146,119,67,484,197]
[null,"35 to 64  years:",329,67,729,167,404,97,484,84,170,44,220,61,843,127,1144,160,3688,301,586,139,132,39,140,38,226,60,1067,134,66,30,257,49,145,28,179,54,1648,206,352,89,699,118,430,101,753,132]
[null,"With independent living difficulty",66,51,22,34,2,3,10,11,7,9,10,13,40,34,88,85,176,103,43,42,13,13,0,12,2,4,48,50,12,12,3,4,3,4,2,4,179,105,16,25,34,28,2,5,62,57]
[null,"With no independent living difficulty",263,47,707,169,402,97,474,83,163,42,210,59,803,121,1056,156,3512,295,543,130,119,36,140,38,224,59,1019,138,54,28,254,49,142,28,177,55,1469,228,336,83,665,119,428,101,691,143]
[null,"65 to 74  years:",173,71,244,110,162,54,251,106,58,25,107,30,214,97,276,101,1300,181,120,51,67,38,48,17,69,30,431,102,13,5,86,25,40,14,72,25,587,143,101,32,182,50,215,110,204,79]
[null,"With independent living difficulty",0,12,20,30,0,12,4,6,0,12,2,3,11,13,9,17,125,61,11,12,2,5,3,4,4,6,14,22,0,12,2,5,2,3,0,12,0,17,0,12,6,8,4,8,58,75]
[null,"With no independent living difficulty",173,71,224,111,162,54,247,105,58,25,105,30,203,99,267,103,1175,181,109,48,65,38,45,17,65,30,417,106,13,5,84,24,38,14,72,25,587,143,101,32,176,50,211,109,146,61]
[null,"75  years and Older:",90,47,117,76,76,51,47,27,32,14,40,22,229,155,196,97,1037,197,87,42,33,18,30,21,77,40,222,107,7,7,50,22,22,13,47,20,372,116,62,38,222,100,123,45,151,66]
[null,"With independent living difficulty",5,7,19,30,18,43,17,17,9,10,0,12,29,47,84,84,281,179,15,17,8,9,2,6,25,18,52,61,4,6,10,10,4,5,13,9,46,40,0,12,21,24,43,29,17,21]
[null,"With no independent living difficulty",85,46,98,69,58,27,30,18,23,11,40,22,200,156,112,63,756,181,72,38,25,15,28,18,52,35,170,85,3,4,40,19,18,12,34,20,326,112,62,38,201,97,80,36,134,63]
[]
[]
[{"$f":"A1& \"-Calculated\"","v":"B18107. SEX BY AGE BY INDEPENDENT LIVING DIFFICULTY\n\n\n-Calculated"}]
[{"$f":"A2","v":"Universe:  Civilian noninstitutionalized population 18 years and over"}]
[{"$f":"A3","v":"Data Set: 2018-2022 American Community Survey 5-Year Estimates"}]
[]
[]
[null,null,"Alstead",null,"Chesterfield",null,"Dublin",null,"Fitzwilliam",null,"Gilsum",null,"Harrisville",null,"Hinsdale",null,"Jaffrey",null,"Keene",null,"Marlborough",null,"Marlow",null,"Nelson",null,"Richmond",null,"Rindge",null,"Roxbury",null,"Stoddard",null,"Sullivan",null,"Surry",null,"Swanzey",null,"Troy",null,"Walpole",null,"Westmoreland",null,"Winchester"]
[null," ","Estimate","Margin of Error","Estimate","Margin of Error","Estimate","Margin of Error","Estimate","Margin of Error","Estimate","Margin of Error","Estimate","Margin of Error","Estimate","Margin of Error","Estimate","Margin of Error","Estimate","Margin of Error","Estimate","Margin of Error","Estimate","Margin of Error","Estimate","Margin of Error","Estimate","Margin of Error","Estimate","Margin of Error","Estimate","Margin of Error","Estimate","Margin of Error","Estimate","Margin of Error","Estimate","Margin of Error","Estimate","Margin of Error","Estimate","Margin of Error","Estimate","Margin of Error","Estimate","Margin of Error","Estimate","Margin of Error"]
[null,"Total:",{"$f":"C7","v":1371},145,2840,158,1384,184,2002,335,722,127,828,147,3379,113,3974,247,19137,284,1710,278,608,123,{"$f":"Y7","v":465},88,916,208,5270,159,248,112,954,111,570,96,757,151,6044,174,1496,216,2725,130,1660,296,3155,197]
[null,"18 to 34  years:",{"$f":"C22+C9","v":264},{"$f":"SQRT((D22^2)+(D9^2))","v":82.134036793524274},{"$f":"E22+E9","v":689},{"$f":"SQRT((F22^2)+(F9^2))","v":192.20041623263984},{"$f":"G22+G9","v":199},{"$f":"SQRT((H22^2)+(H9^2))","v":60.835844697020519},{"$f":"I22+I9","v":377},{"$f":"SQRT((J22^2)+(J9^2))","v":120.61509026651682},{"$f":"K22+K9","v":214},{"$f":"SQRT((L22^2)+(L9^2))","v":66.037867924396224},{"$f":"M22+M9","v":127},{"$f":"SQRT((N22^2)+(N9^2))","v":44.721359549995796},{"$f":"O22+O9","v":600},{"$f":"SQRT((P22^2)+(P9^2))","v":191.03141102970474},{"$f":"Q22+Q9","v":715},{"$f":"SQRT((R22^2)+(R9^2))","v":254.95097567963924},{"$f":"S22+S9","v":7693},{"$f":"SQRT((T22^2)+(T9^2))","v":468.62458322200723},{"$f":"U22+U9","v":292},{"$f":"SQRT((V22^2)+(V9^2))","v":106.17438485811914},{"$f":"W22+W9","v":125},{"$f":"SQRT((X22^2)+(X9^2))","v":51.224993899462788},{"$f":"Y22+Y9","v":52},{"$f":"SQRT((Z22^2)+(Z9^2))","v":23.430749027719962},{"$f":"AA22+AA9","v":179},{"$f":"SQRT((AB22^2)+(AB9^2))","v":77.006493232713822},{"$f":"AC22+AC9","v":1943},{"$f":"SQRT((AD22^2)+(AD9^2))","v":206.30317496345035},{"$f":"AE22+AE9","v":84},{"$f":"SQRT((AF22^2)+(AF9^2))","v":57.870545184921149},{"$f":"AG22+AG9","v":183},{"$f":"SQRT((AH22^2)+(AH9^2))","v":50.219518117958877},{"$f":"AI22+AI9","v":162},{"$f":"SQRT((AJ22^2)+(AJ9^2))","v":51.623637996561229},{"$f":"AK22+AK9","v":171},{"$f":"SQRT((AL22^2)+(AL9^2))","v":82.87339742040264},{"$f":"AM22+AM9","v":952},{"$f":"SQRT((AN22^2)+(AN9^2))","v":225.41739063346466},{"$f":"AO22+AO9","v":396},{"$f":"SQRT((AP22^2)+(AP9^2))","v":100.7670581092849},{"$f":"AQ22+AQ9","v":684},{"$f":"SQRT((AR22^2)+(AR9^2))","v":184.91078930121952},{"$f":"AS22+AS9","v":236},{"$f":"SQRT((AT22^2)+(AT9^2))","v":84.811555816409836},{"$f":"AU22+AU9","v":880},{"$f":"SQRT((AV22^2)+(AV9^2))","v":225.36193112413639}]
[null,"With independent living difficulty",48,41.761226035642203,0,16.970562748477139,13,24.186773244895647,6,15,4,13.892443989449804,0,16.970562748477139,0,16.970562748477139,31,58.523499553598128,240,119.57006314291216,13,24.186773244895647,0,16.970562748477139,2,12.369316876852981,3,13.416407864998739,55,58.523499553598128,1,12.369316876852981,12,13.038404810405298,15,22.472205054244231,9,14.422205101855956,61,69.856996786291916,36,27.294688127912362,15,19.235384061671343,3,13.416407864998739,8,20.808652046684813]
[null,"With no independent living difficulty",216,72.249567472753768,689,192.20041623263984,186,59.033888572581766,371,120.61509026651682,210,66.037867924396224,127,44.721359549995796,600,191.03141102970474,684,252.7231687044146,7453,473.20714280323369,279,104.70912090166739,125,51.224993899462788,50,22.803508501982758,176,76.216796049164913,1888,202.54875956174109,83,57.870545184921149,171,50,147,48.270073544588683,162,81.93289937503738,891,224.47494292236718,360,99.247166206396045,669,186.47251808242416,233,84.202137740083529,872,229.63666954561069]
[null,"35 to 64  years:",686,101.31633629380802,1266,241.89667215569543,742,127.66362050325849,1089,195.92090240706835,328,58.137767414994535,410,80.156097709406993,1721,208.21623375712088,2454,256.12496949731394,7478,413.14646313383827,1026,176.02556632489498,285,56.586217403180434,256,48.414873747640819,418,80.05623023850174,2050,204.13720875920686,131,47.634021455258214,536,69.296464556281663,279,39.597979746446661,343,69.656299069071991,3216,298.48283032697208,771,130.17680284904833,1270,154.67385040788247,825,140.03570973148243,1663,201.31567251458591]
[null,"With independent living difficulty",89,54.42425929675111,22,36.055512754639892,7,7.6157731058639087,18,18.601075237738275,17,12.727922061357855,32,23.021728866442675,64,42.80186911806539,152,105.20931517693668,223,109.11003620199197,60,43.965895873961216,13,17.691806012954132,11,18.439088914585774,2,12.649110640673518,59,53.488316481265329,12,16.970562748477139,3,12.649110640673518,5,5.6568542494923806,2,12.649110640673518,251,125.64234954823155,23,26.570660511172846,34,30.463092423455635,25,18.681541692269406,129,77.155686763841331]
[null,"With no independent living difficulty",597,91.923881554251182,1244,243.28172968803062,735,127.01574705523721,1071,197.3068675946177,311,55.97320787662612,378,76.694197955256044,1657,207.85090810482401,2302,246.61102976144437,7255,409.4887055829501,966,169.00887550658396,272,54.561891462814962,245,47.201694884823787,416,79.309520235593411,1991,205.29978080845581,119,46.400431032480725,533,69.296464556281663,274,39.597979746446661,341,70.434366611761334,2965,321.73436247935967,748,126.15070352558483,1236,155.43809056984713,800,138.65785228395831,1534,210.15470491997081]
[null,"65 to 74  years:",279,82.492423894561369,611,166.50825805346713,315,83.737685661833282,446,119.41942890501528,134,38.288379438153292,198,41.036569057366385,647,255.15681452785068,435,133.30416347586447,2199,225.80079716422614,203,63.007936008093459,142,53.740115370177612,107,27.018512172212592,214,104.4030650891055,859,147.10540438746634,23,7.810249675906654,154,30.232432915661949,80,22.022715545545239,152,42.201895692018383,1120,234.61670869739862,222,58.523499553598128,453,89.308454247064432,371,120.83045973594572,397,105.55093557141026]
[null,"With independent living difficulty",6,14.422205101855956,20,32.310988842807021,0,16.970562748477139,35,25.709920264364882,0,16.970562748477139,5,5,215,238.35477759004539,9,24.041630560342615,157,71.344235926947874,16,14.422205101855956,2,13,6,5.6568542494923806,6,6.7082039324993694,43,50.990195135927848,2,12.649110640673518,2,13,2,12.369316876852981,0,16.970562748477139,38,46.238512086787566,9,16.970562748477139,48,31.048349392520048,7,9.4339811320566032,72,76.687678280151374]
[null,"With no independent living difficulty",273,81.987803971078534,591,167.17057157286985,315,83.737685661833282,411,116.29703349613007,134,38.288379438153292,193,41.036569057366385,432,154.02921800749363,426,134.82581355215328,2042,229.43844490407443,187,60.605280298007038,140,53.740115370177612,101,27.018512172212592,208,104.4030650891055,816,155.66630977832037,21,8.6023252670426267,152,29.410882339705484,78,22.022715545545239,152,42.201895692018383,1082,229.88910370002316,213,59.363288318623319,405,82.800966177937809,364,119.92080720208649,325,91.35097153287424]
[null,"75  years and Older:",142,57.428216061444921,274,110.34491379306978,128,57.245087125446844,90,33.015148038438355,46,17.204650534085253,93,29.732137494637012,411,191.81762171396036,370,146.65946952038249,1767,246.40008116881779,189,60.108235708594876,56,22.203603311174518,50,23.259406699226016,105,43.08131845707603,418,144.42298985964803,10,7.6157731058639087,81,26.627053911388696,49,19.104973174542799,91,29,756,195.20502042724209,107,47.801673610868477,318,110.07270324653611,228,79.881161734166085,215,74.706090782479038]
[null,"With independent living difficulty",10,10.63014581273465,19,32.310988842807021,22,43.289721643826724,17,20.808652046684813,13,11.661903789690601,0,16.970562748477139,29,48.507731342539614,84,85.702975444263316,367,188.16216410320115,21,18.788294228055936,10,9.4868329805051381,6,7.2111025509279782,39,22.803508501982758,59,61.98386886924694,4,13.416407864998739,13,10.770329614269007,9,7.810249675906654,28,16.643316977093239,106,61.71709649683789,0,16.970562748477139,27,26,97,69.354163537598808,25,23.706539182259394]
[null,"With no independent living difficulty",132,55.470712993434653,255,105.64563407921787,106,37.483329627982627,73,26.172504656604801,33,13.038404810405298,93,29.732137494637012,382,192.62658175859323,286,126.763559432512,1400,236.35777964771967,168,58.137767414994535,46,19.209372712298546,44,20.124611797498108,66,36.687872655688281,359,128.22246293064254,6,5,68,23.600847442411894,40,17.691806012954132,63,25.612496949731394,650,170.83617883809038,107,47.801673610868477,291,107.35455276791944,131,42.720018726587654,190,73.061617830431317]
[]
[]
[]
[]
[]
[]
[]
[]
[]
[]
[]
[]
[]
[]
[]
[]
[]
[]
[]
[]
[]
[]
[]
[]
[]
[]
[]
[]
[]
[]
[]
[]
[]
[]
[]
[]
[]
[]
[]
[]
[]
[]
[]
[]
["B18107. SEX BY AGE BY INDEPENDENT LIVING DIFFICULTY\n\n\n-Calculated"]
["Universe:  Civilian noninstitutionalized population 18 years and over"]
["Data Set: 2013-2017 American Community Survey 5-Year Estimates"]
[]
[]
[null,null,"Alstead",null,"Chesterfield",null,"Dublin",null,"Fitzwilliam",null,"Gilsum",null,"Harrisville",null,"Hinsdale",null,"Jaffrey",null,"Keene",null,"Marlborough",null,"Marlow",null,"Nelson",null,"Richmond",null,"Rindge",null,"Roxbury",null,"Stoddard",null,"Sullivan",null,"Surry",null,"Swanzey",null,"Troy",null,"Walpole",null,"Westmoreland",null,"Winchester"]
[null," ","Estimate","Margin of Error","Estimate","Margin of Error","Estimate","Margin of Error","Estimate","Margin of Error","Estimate","Margin of Error","Estimate","Margin of Error","Estimate","Margin of Error","Estimate","Margin of Error","Estimate","Margin of Error","Estimate","Margin of Error","Estimate","Margin of Error","Estimate","Margin of Error","Estimate","Margin of Error","Estimate","Margin of Error","Estimate","Margin of Error","Estimate","Margin of Error","Estimate","Margin of Error","Estimate","Margin of Error","Estimate","Margin of Error","Estimate","Margin of Error","Estimate","Margin of Error","Estimate","Margin of Error","Estimate","Margin of Error"]
[null,"Total:",1531,185,2722,194,1211,136,1920,169,586,71,817,128,3169,124,19004,302,19344,353,1767,226,562,80,475,77,1009,140,4748,202,180,47,982,143,551,71,718,93,5867,261,1712,219,3116,153,1408,184,3252,181]
[null,"18 to 34  years:",369,111.01801655587259,432,135.79396157414365,256,67.007462271003817,409,96.426137535421375,121,29,91,31.240998703626616,587,140.01428498549711,7744,445.31000437897194,8156,446.97762807549998,413,116.1077086157504,104,31.89043743820395,128,41.231056256176608,280,73.006848993775918,1973,237.26145915424192,50,17.691806012954132,208,55.605755097831377,129,39.66106403010388,126,37.483329627982627,1572,281.58480072617556,2162,145.34441853748632,704,146.64924138910504,298,75.663729752107784,933,159.13830462839547]
[null,"With independent living difficulty",6,14.212670403551895,0,15.556349186104045,0,15.556349186104045,19,21.095023109728988,10,8.0622577482985491,0,15.556349186104045,42,41.484937025383083,172,91.285267157411553,142,73.061617830431317,0,15.556349186104045,2,11.704699910719626,0,15.556349186104045,17,13.928388277184119,0,22.627416997969522,0,15.556349186104045,6,13.601470508735444,0,15.556349186104045,0,15.556349186104045,41,50.596442562694072,0,15.556349186104045,9,18.601075237738275,0,15.556349186104045,75,59.396969619669989]
[null,"With no independent living difficulty",363,109.62207806824317,432,135.79396157414365,256,67.007462271003817,390,91.241437954473298,111,28.319604517012593,91,31.240998703626616,545,136.56134152826706,7572,448.52870588179746,8014,450.24548859483309,413,116.1077086157504,102,31.89043743820395,128,41.231056256176608,263,71.400280111495363,1973,237.26145915424192,50,17.691806012954132,202,54.817880294662984,129,39.66106403010388,126,37.483329627982627,1531,279.25794527640568,430,145.34441853748632,695,144.80676779764127,298,75.663729752107784,858,155.97435686676192]
[null,"35 to 64  years:",801,101.11874208078342,1501,172.00290695217916,678,81.394102980498531,1011,126.62148316932637,349,45.967379738244816,441,63.655321851358195,1833,171.26587517658035,7687,334.67745666536911,7637,355.06900737743922,934,128.76334882255898,337,47.423622805517503,238,40.459856648287818,550,71.217975259059429,1949,153.52198539622916,99,25.80697580112788,510,82.800966177937809,296,40.311288741492746,409,52.801515129776341,3053,248.01814449753471,985,129.07362240210043,1685,150.86417732516887,800,86.278618440491968,1639,181.79383927955314]
[null,"With independent living difficulty",20,14.212670403551895,51,80.752708932889675,8,14.866068747318506,46,30.232432915661949,14,10.770329614269007,16,16.763054614240211,69,44.204072210600685,356,122.28654872879518,344,123.42204017111368,17,15.811388300841896,8,6.4031242374328485,5,12.083045973594572,7,13.038404810405298,114,63.253458403473878,5,13.038404810405298,6,7.0710678118654755,0,15.556349186104045,2,11.401754250991379,217,128.03515142334936,37,25,94,60.835844697020519,10,10.816653826391969,119,75.802374632988901]
[null,"With no independent living difficulty",781,98.310731865854805,1450,180.06943105369106,670,80.05623023850174,965,125.99206324209474,335,44.553338819890925,425,62.968245965724662,1764,167.76471619503309,7331,351.95028057951595,7293,362.04972034238614,917,128.03515142334936,329,46.75467891024384,233,41.109609582188931,543,70,1835,164.7573974060042,94,24.207436873820409,504,81.60882305241266,296,40.311288741492746,407,52.801515129776341,2836,271.82715096178305,948,128.31601614763451,1591,155.60205654167942,790,85.562842402528915,1520,191.637678967368]
[null,"65 to 74  years:",247,55.172456896534889,508,128.70120434556935,180,38.600518131237564,360,80.802227692063042,75,17.691806012954132,198,38.948684188300895,509,98.081598681913832,1908,174.77127910500627,1987,190.53608582103286,246,65.115282384398824,57,18.439088914585774,63,20.248456731316587,106,27.658633371878661,512,97.590983190046813,23,9.4339811320566032,150,38.897300677553446,80,24.041630560342615,123,30.232432915661949,614,129.52991932368366,184,51.855568649856693,364,98.270036124955197,213,54.488530903301111,435,88.600225733346747]
[null,"With independent living difficulty",9,9.2195444572928871,70,64.560049566275893,6,12.529964086141668,13,10.816653826391969,2,11.401754250991379,3,12.083045973594572,44,30.413812651491099,174,79.630396206473819,136,70,5,14.212670403551895,4,11.704699910719626,4,4.2426406871192848,4,12.083045973594572,26,24.186773244895647,1,11.401754250991379,0,15.556349186104045,9,12.369316876852981,7,5.8309518948453007,23,28.178005607210743,16,14.212670403551895,41,46.324939287601879,0,15.556349186104045,10,18.601075237738275]
[null,"With no independent living difficulty",238,55.172456896534889,438,118.86967653695369,174,38.600518131237564,347,80.802227692063042,73,17.691806012954132,195,38.948684188300895,465,95.268042910516428,1734,172.62676501632069,1851,187.1095935541521,241,64.443773942872099,53,17.204650534085253,59,20.248456731316587,102,26.172504656604801,486,99.005050376230813,22,10.295630140987001,150,38.897300677553446,71,20.808652046684813,116,29.410882339705484,591,130.6330739131557,168,51.088159097779204,323,86.608313688698502,213,54.488530903301111,425,91.049437120720299]
[null,"75  years and Older:",114,45.793012567421243,281,121.75385004179539,97,31.11269837220809,140,48.104053883222775,41,15.811388300841896,87,55.108982933819419,240,90.210864090751286,1665,226.25870149013053,1564,202.94334184693028,174,56.727418414731339,64,19.849433241279208,46,16.401219466856727,73,27.658633371878661,314,95.268042910516428,8,11.180339887498949,114,38.209946349085598,46,16.970562748477139,60,18.357559750685819,628,147.75655653811103,113,52.497618993626752,363,95.524865872714003,97,32.802438933713454,245,76.478755219995577]
[null,"With independent living difficulty",11,14.866068747318506,16,26.40075756488817,9,13.601470508735444,27,22.847319317591726,7,8.0622577482985491,6,13.038404810405298,43,47.296934361541872,355,138.59292911256333,310,123.4382436686459,28,16.643316977093239,3,5,2,11.401754250991379,9,13.601470508735444,89,54.451813560247928,2,5,10,13.601470508735444,9,7.6157731058639087,19,12.649110640673518,142,79.32212806020776,27,29.832867780352597,42,29.732137494637012,23,17.804493814764857,25,25.238858928247925]
[null,"With no independent living difficulty",103,45.793012567421243,265,122.42957159118053,88,31.11269837220809,113,42.80186911806539,34,12.806248474865697,81,54.918120870983927,197,81.841309862440497,1310,208.8276801575883,1254,205.91503102007877,146,53.814496188294839,61,19.849433241279208,44,16.401219466856727,64,27.018512172212592,225,81.344944526380985,6,7.6157731058639087,104,36.878177829171548,37,15.620499351813308,41,14.212670403551895,486,125.39936203984452,86,41.868842830916641,321,96.332756630338366,74,28.600699292150182,220,71.554175279993274]
[]
[]
[]
[]
[]
[]
[]
[]
[]
[]
[]
["B18107. SEX BY AGE BY INDEPENDENT LIVING DIFFICULTY\n\n\n-Calculated"]
["Universe:  Civilian noninstitutionalized population 18 years and over"]
["Data Set: 2008-2012 American Community Survey 5-Year Estimates"]
[]
[]
[null,null,"Alstead",null,"Chesterfield",null,"Dublin",null,"Fitzwilliam",null,"Gilsum",null,"Harrisville",null,"Hinsdale",null,"Jaffrey",null,"Keene",null,"Marlborough",null,"Marlow",null,"Nelson",null,"Richmond",null,"Rindge",null,"Roxbury",null,"Stoddard",null,"Sullivan",null,"Surry",null,"Swanzey",null,"Troy",null,"Walpole",null,"Westmoreland",null,"Winchester"]
[null," ","Estimate","Margin of Error","Estimate","Margin of Error","Estimate","Margin of Error","Estimate","Margin of Error","Estimate","Margin of Error","Estimate","Margin of Error","Estimate",null,"Estimate","Margin of Error","Estimate","Margin of Error","Estimate","Margin of Error","Estimate","Margin of Error"]
[null,"Total:",1422,139,2941,130,1311,156,2079,188,488,65,761,105,3262,148,4092,192,19333,344,1597,177,704,156,618,119,770,94,4709,147,172,29,818,131,534,76,706,90,5713,152,1636,213,2813,129,1479,167,3333,132]
[null,"18 to 34  years:",301,70.724818840347695,584,200.5617112013158,212,73.348483283568996,399,104.95713410721541,100,33.421549934136806,96,31.240998703626616,761,155.20631430454111,754,179.96110690924303,7934,476.76514134319848,307,98.290386101591849,110,47.413078364518789,108,44.407206622349037,164,44.654227123532216,2383,260.59930928534709,31,12.529964086141668,105,37.643060449437421,142,44.407206622349037,135,36.61966684720111,1376,220.86421167767313,520,105.38026380684383,671,129.5569372901351,300,75.690157880665041,704,148.52945835759317]
[null,"With independent living difficulty",0,15.556349186104045,0,15.556349186104045,0,15.556349186104045,7,14.866068747318506,0,15.556349186104045,0,15.556349186104045,52,43.840620433565945,0,22.627416997969522,135,78.492037812761623,0,15.556349186104045,2,11.401754250991379,0,15.556349186104045,3,12.083045973594572,0,22.627416997969522,0,15.556349186104045,0,15.556349186104045,0,15.556349186104045,0,15.556349186104045,0,22.627416997969522,22,29.154759474226502,19,21.931712199461309,6,14.212670403551895,0,15.556349186104045]
[null,"With no independent living difficulty",301,70.724818840347695,584,200.5617112013158,212,73.348483283568996,392,104.44615837837216,100,33.421549934136806,96,31.240998703626616,709,148.86235252742716,754,179.96110690924303,7799,487.67202093210147,307,98.290386101591849,108,47.413078364518789,108,44.407206622349037,161,44.10215414239989,2383,260.59930928534709,31,12.529964086141668,105,37.643060449437421,142,44.407206622349037,135,36.61966684720111,1376,220.86421167767313,498,103.23759005323593,652,125.93649193144932,294,74.330343736592525,704,148.52945835759317]
[null,"35 to 64  years:",852,86.556340033529608,1690,164.14932226482082,806,107.41508273980894,1319,123.3288287465668,293,40.80441152620633,520,70,1732,185.45619428857049,2558,156.63013758533191,8056,310.64449134018133,969,115.88356225108029,437,81.344944526380985,385,67.475921631349351,504,70.802542327235685,1798,165.55663683464942,99,22.203603311174518,544,85.428332536694171,311,41.725292090050132,425,57.982756057296896,3264,221.33458834985552,856,114.97825881443848,1614,140.73023839957068,921,102.53292154230269,2106,235.84952830141509]
[null,"With independent living difficulty",48,27.658633371878661,25,28.231188426986208,52,61.1310068623117,44,31.906112267087632,25,15.652475842498529,3,11.704699910719626,178,87.464278422679513,38,35.227829907617071,399,120.7393887677091,0,15.556349186104045,17,11.401754250991379,5,5.8309518948453007,10,9.2195444572928871,35,29.832867780352597,2,11.401754250991379,12,17.804493814764857,6,5.6568542494923806,3,11.704699910719626,146,79.39773296511683,63,45,18,18.357559750685819,7,13.038404810405298,62,43.600458713183279]
[null,"With no independent living difficulty",804,83.486525858967212,1665,162.60688792299052,754,88.391176030189797,1275,128.97286536322281,268,39.204591567825318,517,70,1554,178.93294833540301,2520,162.93557008830209,7657,319.99062486266689,969,115.88356225108029,420,81.344944526380985,380,68.249542123006222,494,70.604532432415411,1763,168.37161280928564,97,21.400934559032695,532,83.868945385047027,305,40.311288741492746,422,57.982756057296896,3118,229.8978033822855,793,107.44766167767449,1596,141.48498153514387,914,101.83319694480774,2044,231.40656861895687]
[null,"65 to 74  years:",158,45.967379738244816,402,145.04137340772803,194,66.211781428987393,263,75.432088662584434,65,22.022715545545239,66,24.041630560342615,416,95.524865872714003,414,112.43220179290273,1482,165.61400906928134,182,53.413481444294568,110,32.557641192199412,81,27.802877548915689,73,21.095023109728988,297,74.027022093286988,32,12.727922061357855,115,36.796738985948195,53,20,79,19.798989873223331,736,140.03570973148243,177,56.824290580701486,277,77.620873481300123,100,37.20215047547655,366,74.411020689142546]
[null,"With independent living difficulty",11,8.4852813742385695,0,15.556349186104045,36,60.016664352494629,29,34.785054261852174,3,11.704699910719626,0,15.556349186104045,13,25.495097567963924,16,25.612496949731394,95,52.497618993626752,10,15.556349186104045,0,15.556349186104045,0,15.556349186104045,0,15.556349186104045,27,24.596747752497688,1,11.401754250991379,3,11.704699910719626,2,11.401754250991379,1,11.704699910719626,23,26.90724809414742,9,14.866068747318506,18,29.154759474226502,11,10,0,15.556349186104045]
[null,"With no independent living difficulty",147,45.276925690687087,402,145.04137340772803,158,38.897300677553446,234,70.178344238091,62,21.400934559032695,66,24.041630560342615,403,94.847245611035007,398,111.73182178770737,1387,176.47946056127893,172,51.855568649856693,110,32.557641192199412,81,27.802877548915689,73,21.095023109728988,270,72.201108024738787,31,13.45362404707371,112,36.124783736376884,51,20,78,19.798989873223331,713,137.90213921473443,168,56.356011214421486,259,78.87331614684399,89,36.61966684720111,366,74.411020689142546]
[null,"75  years and Older:",111,37.735924528226413,265,104.00480758118829,99,35.510561809129406,98,43.56604182158393,30,15.556349186104045,79,34.828149534535996,353,120.42009799032718,366,107.71258050942797,1861,183.21571984958058,139,48.877397639399746,47,21.470910553583888,44,17.029386365926403,29,15,231,60.207972893961475,10,6.4031242374328485,54,23.323807579381203,28,19.646882704388499,67,30.232432915661949,337,111.36426715962351,83,34.985711369071801,251,74.202425836356596,158,48.918299234540036,157,58]
[null,"With independent living difficulty",20,15.652475842498529,61,67.896980787071826,16,13,8,8.4852813742385695,7,13.038404810405298,28,21.931712199461309,132,64.884512790033341,94,60.440052945046304,344,111.66467659918243,5,13.038404810405298,4,4.2426406871192848,8,7.2111025509279782,15,10,46,33.97057550292606,2,11.401754250991379,3,11.704699910719626,4,12.083045973594572,8,6.324555320336759,99,70.83078426785913,11,17.804493814764857,21,21.95449840010015,20,14.422205101855956,32,31.256999216175569]
[null,"With no independent living difficulty",91,36.359317925395686,204,83.258633185994597,83,33.837848631377263,90,42.43819034784589,23,14.212670403551895,51,27.018512172212592,221,101.83319694480774,272,91.241437954473298,1517,174.18381095842403,134,48.877397639399746,43,21.470910553583888,36,15.556349186104045,14,9.2195444572928871,185,57.489129407219238,8,5.6568542494923806,51,22.825424421026653,24,18.681541692269406,59,29.681644159311659,238,93.648278147545241,72,31.622776601683793,230,71.28113354878694,138,45,125,53.907327887774215]

{"sheet":"SData_B18108_MultipleDisability","index":53,"n_rows":43,"n_cols":50,"rows_kept":43,"cut":false,"hidden":true,"merged":[]}
["GEO_ID","GEO_ID2","SUMLEVEL",null,{"$f":"[1]ACS_16_5YR_C18108_with_ann!D1","v":"C18108_001E"},{"$f":"[1]ACS_16_5YR_C18108_with_ann!E1","v":"C18108_001M"},{"$f":"[1]ACS_16_5YR_C18108_with_ann!F1","v":"C18108_002E"},{"$f":"[1]ACS_16_5YR_C18108_with_ann!G1","v":"C18108_002M"},{"$f":"[1]ACS_16_5YR_C18108_with_ann!H1","v":"C18108_003E"},{"$f":"[1]ACS_16_5YR_C18108_with_ann!I1","v":"C18108_003M"},{"$f":"[1]ACS_16_5YR_C18108_with_ann!J1","v":"C18108_004E"},{"$f":"[1]ACS_16_5YR_C18108_with_ann!K1","v":"C18108_004M"},{"$f":"[1]ACS_16_5YR_C18108_with_ann!L1","v":"C18108_005E"},{"$f":"[1]ACS_16_5YR_C18108_with_ann!M1","v":"C18108_005M"},{"$f":"[1]ACS_16_5YR_C18108_with_ann!N1","v":"C18108_006E"},{"$f":"[1]ACS_16_5YR_C18108_with_ann!O1","v":"C18108_006M"},{"$f":"[1]ACS_16_5YR_C18108_with_ann!P1","v":"C18108_007E"},{"$f":"[1]ACS_16_5YR_C18108_with_ann!Q1","v":"C18108_007M"},{"$f":"[1]ACS_16_5YR_C18108_with_ann!R1","v":"C18108_008E"},{"$f":"[1]ACS_16_5YR_C18108_with_ann!S1","v":"C18108_008M"},{"$f":"[1]ACS_16_5YR_C18108_with_ann!T1","v":"C18108_009E"},{"$f":"[1]ACS_16_5YR_C18108_with_ann!U1","v":"C18108_009M"},{"$f":"[1]ACS_16_5YR_C18108_with_ann!V1","v":"C18108_010E"},{"$f":"[1]ACS_16_5YR_C18108_with_ann!W1","v":"C18108_010M"},{"$f":"[1]ACS_16_5YR_C18108_with_ann!X1","v":"C18108_011E"},{"$f":"[1]ACS_16_5YR_C18108_with_ann!Y1","v":"C18108_011M"},{"$f":"[1]ACS_16_5YR_C18108_with_ann!Z1","v":"C18108_012E"},{"$f":"[1]ACS_16_5YR_C18108_with_ann!AA1","v":"C18108_012M"},{"$f":"[1]ACS_16_5YR_C18108_with_ann!AB1","v":"C18108_013E"},{"$f":"[1]ACS_16_5YR_C18108_with_ann!AC1","v":"C18108_013M"}]
["Geography Identifier","Geography Identifier","Geographic Summary Level",null,{"$f":"[1]ACS_16_5YR_C18108_with_ann!D2","v":"Estimate!!Total:"},{"$f":"[1]ACS_16_5YR_C18108_with_ann!E2","v":"Margin of Error!!Total:"},{"$f":"[1]ACS_16_5YR_C18108_with_ann!F2","v":"Estimate!!Total:!!Under 18 years:"},{"$f":"[1]ACS_16_5YR_C18108_with_ann!G2","v":"Margin of Error!!Total:!!Under 18 years:"},{"$f":"[1]ACS_16_5YR_C18108_with_ann!H2","v":"Estimate!!Total:!!Under 18 years:!!With one type of disability"},{"$f":"[1]ACS_16_5YR_C18108_with_ann!I2","v":"Margin of Error!!Total:!!Under 18 years:!!With one type of disability"},{"$f":"[1]ACS_16_5YR_C18108_with_ann!J2","v":"Estimate!!Total:!!Under 18 years:!!With two or more types of disability"},{"$f":"[1]ACS_16_5YR_C18108_with_ann!K2","v":"Margin of Error!!Total:!!Under 18 years:!!With two or more types of disability"},{"$f":"[1]ACS_16_5YR_C18108_with_ann!L2","v":"Estimate!!Total:!!Under 18 years:!!No disability"},{"$f":"[1]ACS_16_5YR_C18108_with_ann!M2","v":"Margin of Error!!Total:!!Under 18 years:!!No disability"},{"$f":"[1]ACS_16_5YR_C18108_with_ann!N2","v":"Estimate!!Total:!!18 to 64 years:"},{"$f":"[1]ACS_16_5YR_C18108_with_ann!O2","v":"Margin of Error!!Total:!!18 to 64 years:"},{"$f":"[1]ACS_16_5YR_C18108_with_ann!P2","v":"Estimate!!Total:!!18 to 64 years:!!With one type of disability"},{"$f":"[1]ACS_16_5YR_C18108_with_ann!Q2","v":"Margin of Error!!Total:!!18 to 64 years:!!With one type of disability"},{"$f":"[1]ACS_16_5YR_C18108_with_ann!R2","v":"Estimate!!Total:!!18 to 64 years:!!With two or more types of disability"},{"$f":"[1]ACS_16_5YR_C18108_with_ann!S2","v":"Margin of Error!!Total:!!18 to 64 years:!!With two or more types of disability"},{"$f":"[1]ACS_16_5YR_C18108_with_ann!T2","v":"Estimate!!Total:!!18 to 64 years:!!No disability"},{"$f":"[1]ACS_16_5YR_C18108_with_ann!U2","v":"Margin of Error!!Total:!!18 to 64 years:!!No disability"},{"$f":"[1]ACS_16_5YR_C18108_with_ann!V2","v":"Estimate!!Total:!!65 years and over:"},{"$f":"[1]ACS_16_5YR_C18108_with_ann!W2","v":"Margin of Error!!Total:!!65 years and over:"},{"$f":"[1]ACS_16_5YR_C18108_with_ann!X2","v":"Estimate!!Total:!!65 years and over:!!With one type of disability"},{"$f":"[1]ACS_16_5YR_C18108_with_ann!Y2","v":"Margin of Error!!Total:!!65 years and over:!!With one type of disability"},{"$f":"[1]ACS_16_5YR_C18108_with_ann!Z2","v":"Estimate!!Total:!!65 years and over:!!With two or more types of disability"},{"$f":"[1]ACS_16_5YR_C18108_with_ann!AA2","v":"Margin of Error!!Total:!!65 years and over:!!With two or more types of disability"},{"$f":"[1]ACS_16_5YR_C18108_with_ann!AB2","v":"Estimate!!Total:!!65 years and over:!!No disability"},{"$f":"[1]ACS_16_5YR_C18108_with_ann!AC2","v":"Margin of Error!!Total:!!65 years and over:!!No disability"}]
["06000US3300500820","0600000US3300512260","060",{"$f":"[1]ACS_16_5YR_C18108_with_ann!C44","v":"Alstead"},{"$f":"[1]ACS_16_5YR_C18108_with_ann!D44","v":1599},{"$f":"[1]ACS_16_5YR_C18108_with_ann!E44","v":169},{"$f":"[1]ACS_16_5YR_C18108_with_ann!F44","v":228},{"$f":"[1]ACS_16_5YR_C18108_with_ann!G44","v":74},{"$f":"[1]ACS_16_5YR_C18108_with_ann!H44","v":0},{"$f":"[1]ACS_16_5YR_C18108_with_ann!I44","v":12},{"$f":"[1]ACS_16_5YR_C18108_with_ann!J44","v":0},{"$f":"[1]ACS_16_5YR_C18108_with_ann!K44","v":12},{"$f":"[1]ACS_16_5YR_C18108_with_ann!L44","v":228},{"$f":"[1]ACS_16_5YR_C18108_with_ann!M44","v":74},{"$f":"[1]ACS_16_5YR_C18108_with_ann!N44","v":950},{"$f":"[1]ACS_16_5YR_C18108_with_ann!O44","v":143},{"$f":"[1]ACS_16_5YR_C18108_with_ann!P44","v":99},{"$f":"[1]ACS_16_5YR_C18108_with_ann!Q44","v":53},{"$f":"[1]ACS_16_5YR_C18108_with_ann!R44","v":109},{"$f":"[1]ACS_16_5YR_C18108_with_ann!S44","v":64},{"$f":"[1]ACS_16_5YR_C18108_with_ann!T44","v":742},{"$f":"[1]ACS_16_5YR_C18108_with_ann!U44","v":115},{"$f":"[1]ACS_16_5YR_C18108_with_ann!V44","v":421},{"$f":"[1]ACS_16_5YR_C18108_with_ann!W44","v":114},{"$f":"[1]ACS_16_5YR_C18108_with_ann!X44","v":43},{"$f":"[1]ACS_16_5YR_C18108_with_ann!Y44","v":25},{"$f":"[1]ACS_16_5YR_C18108_with_ann!Z44","v":22},{"$f":"[1]ACS_16_5YR_C18108_with_ann!AA44","v":18},{"$f":"[1]ACS_16_5YR_C18108_with_ann!AB44","v":356},{"$f":"[1]ACS_16_5YR_C18108_with_ann!AC44","v":107}]
["06000US3300512260","0600000US3300519140","060",{"$f":"[1]ACS_16_5YR_C18108_with_ann!C45","v":"Chesterfield"},{"$f":"[1]ACS_16_5YR_C18108_with_ann!D45","v":3577},{"$f":"[1]ACS_16_5YR_C18108_with_ann!E45","v":15},{"$f":"[1]ACS_16_5YR_C18108_with_ann!F45","v":737},{"$f":"[1]ACS_16_5YR_C18108_with_ann!G45","v":158},{"$f":"[1]ACS_16_5YR_C18108_with_ann!H45","v":56},{"$f":"[1]ACS_16_5YR_C18108_with_ann!I45","v":59},{"$f":"[1]ACS_16_5YR_C18108_with_ann!J45","v":0},{"$f":"[1]ACS_16_5YR_C18108_with_ann!K45","v":12},{"$f":"[1]ACS_16_5YR_C18108_with_ann!L45","v":681},{"$f":"[1]ACS_16_5YR_C18108_with_ann!M45","v":157},{"$f":"[1]ACS_16_5YR_C18108_with_ann!N45","v":1955},{"$f":"[1]ACS_16_5YR_C18108_with_ann!O45","v":195},{"$f":"[1]ACS_16_5YR_C18108_with_ann!P45","v":120},{"$f":"[1]ACS_16_5YR_C18108_with_ann!Q45","v":109},{"$f":"[1]ACS_16_5YR_C18108_with_ann!R45","v":0},{"$f":"[1]ACS_16_5YR_C18108_with_ann!S45","v":12},{"$f":"[1]ACS_16_5YR_C18108_with_ann!T45","v":1835},{"$f":"[1]ACS_16_5YR_C18108_with_ann!U45","v":198},{"$f":"[1]ACS_16_5YR_C18108_with_ann!V45","v":885},{"$f":"[1]ACS_16_5YR_C18108_with_ann!W45","v":203},{"$f":"[1]ACS_16_5YR_C18108_with_ann!X45","v":200},{"$f":"[1]ACS_16_5YR_C18108_with_ann!Y45","v":103},{"$f":"[1]ACS_16_5YR_C18108_with_ann!Z45","v":100},{"$f":"[1]ACS_16_5YR_C18108_with_ann!AA45","v":76},{"$f":"[1]ACS_16_5YR_C18108_with_ann!AB45","v":585},{"$f":"[1]ACS_16_5YR_C18108_with_ann!AC45","v":173}]
["06000US3300519140","0600000US3300526500","060",{"$f":"[1]ACS_16_5YR_C18108_with_ann!C46","v":"Dublin"},{"$f":"[1]ACS_16_5YR_C18108_with_ann!D46","v":1711},{"$f":"[1]ACS_16_5YR_C18108_with_ann!E46","v":216},{"$f":"[1]ACS_16_5YR_C18108_with_ann!F46","v":327},{"$f":"[1]ACS_16_5YR_C18108_with_ann!G46","v":85},{"$f":"[1]ACS_16_5YR_C18108_with_ann!H46","v":0},{"$f":"[1]ACS_16_5YR_C18108_with_ann!I46","v":12},{"$f":"[1]ACS_16_5YR_C18108_with_ann!J46","v":0},{"$f":"[1]ACS_16_5YR_C18108_with_ann!K46","v":12},{"$f":"[1]ACS_16_5YR_C18108_with_ann!L46","v":327},{"$f":"[1]ACS_16_5YR_C18108_with_ann!M46","v":85},{"$f":"[1]ACS_16_5YR_C18108_with_ann!N46","v":941},{"$f":"[1]ACS_16_5YR_C18108_with_ann!O46","v":155},{"$f":"[1]ACS_16_5YR_C18108_with_ann!P46","v":56},{"$f":"[1]ACS_16_5YR_C18108_with_ann!Q46","v":36},{"$f":"[1]ACS_16_5YR_C18108_with_ann!R46","v":15},{"$f":"[1]ACS_16_5YR_C18108_with_ann!S46","v":21},{"$f":"[1]ACS_16_5YR_C18108_with_ann!T46","v":870},{"$f":"[1]ACS_16_5YR_C18108_with_ann!U46","v":151},{"$f":"[1]ACS_16_5YR_C18108_with_ann!V46","v":443},{"$f":"[1]ACS_16_5YR_C18108_with_ann!W46","v":100},{"$f":"[1]ACS_16_5YR_C18108_with_ann!X46","v":32},{"$f":"[1]ACS_16_5YR_C18108_with_ann!Y46","v":31},{"$f":"[1]ACS_16_5YR_C18108_with_ann!Z46","v":23},{"$f":"[1]ACS_16_5YR_C18108_with_ann!AA46","v":43},{"$f":"[1]ACS_16_5YR_C18108_with_ann!AB46","v":388},{"$f":"[1]ACS_16_5YR_C18108_with_ann!AC46","v":91}]
["06000US3300526500","0600000US3300529220","060",{"$f":"[1]ACS_16_5YR_C18108_with_ann!C47","v":"Fitzwilliam"},{"$f":"[1]ACS_16_5YR_C18108_with_ann!D47","v":2287},{"$f":"[1]ACS_16_5YR_C18108_with_ann!E47","v":368},{"$f":"[1]ACS_16_5YR_C18108_with_ann!F47","v":285},{"$f":"[1]ACS_16_5YR_C18108_with_ann!G47","v":87},{"$f":"[1]ACS_16_5YR_C18108_with_ann!H47","v":14},{"$f":"[1]ACS_16_5YR_C18108_with_ann!I47","v":21},{"$f":"[1]ACS_16_5YR_C18108_with_ann!J47","v":8},{"$f":"[1]ACS_16_5YR_C18108_with_ann!K47","v":8},{"$f":"[1]ACS_16_5YR_C18108_with_ann!L47","v":263},{"$f":"[1]ACS_16_5YR_C18108_with_ann!M47","v":77},{"$f":"[1]ACS_16_5YR_C18108_with_ann!N47","v":1466},{"$f":"[1]ACS_16_5YR_C18108_with_ann!O47","v":264},{"$f":"[1]ACS_16_5YR_C18108_with_ann!P47","v":63},{"$f":"[1]ACS_16_5YR_C18108_with_ann!Q47","v":37},{"$f":"[1]ACS_16_5YR_C18108_with_ann!R47","v":41},{"$f":"[1]ACS_16_5YR_C18108_with_ann!S47","v":34},{"$f":"[1]ACS_16_5YR_C18108_with_ann!T47","v":1362},{"$f":"[1]ACS_16_5YR_C18108_with_ann!U47","v":268},{"$f":"[1]ACS_16_5YR_C18108_with_ann!V47","v":536},{"$f":"[1]ACS_16_5YR_C18108_with_ann!W47","v":133},{"$f":"[1]ACS_16_5YR_C18108_with_ann!X47","v":76},{"$f":"[1]ACS_16_5YR_C18108_with_ann!Y47","v":37},{"$f":"[1]ACS_16_5YR_C18108_with_ann!Z47","v":56},{"$f":"[1]ACS_16_5YR_C18108_with_ann!AA47","v":34},{"$f":"[1]ACS_16_5YR_C18108_with_ann!AB47","v":404},{"$f":"[1]ACS_16_5YR_C18108_with_ann!AC47","v":110}]
["06000US3300529220","0600000US3300534420","060",{"$f":"[1]ACS_16_5YR_C18108_with_ann!C48","v":"Gilsum"},{"$f":"[1]ACS_16_5YR_C18108_with_ann!D48","v":871},{"$f":"[1]ACS_16_5YR_C18108_with_ann!E48","v":144},{"$f":"[1]ACS_16_5YR_C18108_with_ann!F48","v":149},{"$f":"[1]ACS_16_5YR_C18108_with_ann!G48","v":63},{"$f":"[1]ACS_16_5YR_C18108_with_ann!H48","v":22},{"$f":"[1]ACS_16_5YR_C18108_with_ann!I48","v":28},{"$f":"[1]ACS_16_5YR_C18108_with_ann!J48","v":3},{"$f":"[1]ACS_16_5YR_C18108_with_ann!K48","v":5},{"$f":"[1]ACS_16_5YR_C18108_with_ann!L48","v":124},{"$f":"[1]ACS_16_5YR_C18108_with_ann!M48","v":44},{"$f":"[1]ACS_16_5YR_C18108_with_ann!N48","v":542},{"$f":"[1]ACS_16_5YR_C18108_with_ann!O48","v":118},{"$f":"[1]ACS_16_5YR_C18108_with_ann!P48","v":36},{"$f":"[1]ACS_16_5YR_C18108_with_ann!Q48","v":22},{"$f":"[1]ACS_16_5YR_C18108_with_ann!R48","v":30},{"$f":"[1]ACS_16_5YR_C18108_with_ann!S48","v":19},{"$f":"[1]ACS_16_5YR_C18108_with_ann!T48","v":476},{"$f":"[1]ACS_16_5YR_C18108_with_ann!U48","v":109},{"$f":"[1]ACS_16_5YR_C18108_with_ann!V48","v":180},{"$f":"[1]ACS_16_5YR_C18108_with_ann!W48","v":51},{"$f":"[1]ACS_16_5YR_C18108_with_ann!X48","v":29},{"$f":"[1]ACS_16_5YR_C18108_with_ann!Y48","v":18},{"$f":"[1]ACS_16_5YR_C18108_with_ann!Z48","v":15},{"$f":"[1]ACS_16_5YR_C18108_with_ann!AA48","v":13},{"$f":"[1]ACS_16_5YR_C18108_with_ann!AB48","v":136},{"$f":"[1]ACS_16_5YR_C18108_with_ann!AC48","v":46}]
["06000US3300534420","0600000US3300536660","060",{"$f":"[1]ACS_16_5YR_C18108_with_ann!C49","v":"Harrisville"},{"$f":"[1]ACS_16_5YR_C18108_with_ann!D49","v":977},{"$f":"[1]ACS_16_5YR_C18108_with_ann!E49","v":197},{"$f":"[1]ACS_16_5YR_C18108_with_ann!F49","v":149},{"$f":"[1]ACS_16_5YR_C18108_with_ann!G49","v":80},{"$f":"[1]ACS_16_5YR_C18108_with_ann!H49","v":0},{"$f":"[1]ACS_16_5YR_C18108_with_ann!I49","v":12},{"$f":"[1]ACS_16_5YR_C18108_with_ann!J49","v":3},{"$f":"[1]ACS_16_5YR_C18108_with_ann!K49","v":5},{"$f":"[1]ACS_16_5YR_C18108_with_ann!L49","v":146},{"$f":"[1]ACS_16_5YR_C18108_with_ann!M49","v":80},{"$f":"[1]ACS_16_5YR_C18108_with_ann!N49","v":537},{"$f":"[1]ACS_16_5YR_C18108_with_ann!O49","v":138},{"$f":"[1]ACS_16_5YR_C18108_with_ann!P49","v":29},{"$f":"[1]ACS_16_5YR_C18108_with_ann!Q49","v":21},{"$f":"[1]ACS_16_5YR_C18108_with_ann!R49","v":36},{"$f":"[1]ACS_16_5YR_C18108_with_ann!S49","v":30},{"$f":"[1]ACS_16_5YR_C18108_with_ann!T49","v":472},{"$f":"[1]ACS_16_5YR_C18108_with_ann!U49","v":128},{"$f":"[1]ACS_16_5YR_C18108_with_ann!V49","v":291},{"$f":"[1]ACS_16_5YR_C18108_with_ann!W49","v":64},{"$f":"[1]ACS_16_5YR_C18108_with_ann!X49","v":40},{"$f":"[1]ACS_16_5YR_C18108_with_ann!Y49","v":19},{"$f":"[1]ACS_16_5YR_C18108_with_ann!Z49","v":12},{"$f":"[1]ACS_16_5YR_C18108_with_ann!AA49","v":9},{"$f":"[1]ACS_16_5YR_C18108_with_ann!AB49","v":239},{"$f":"[1]ACS_16_5YR_C18108_with_ann!AC49","v":52}]
["06000US3300536660","0600000US3300538500","060",{"$f":"[1]ACS_16_5YR_C18108_with_ann!C50","v":"Hinsdale"},{"$f":"[1]ACS_16_5YR_C18108_with_ann!D50","v":3965},{"$f":"[1]ACS_16_5YR_C18108_with_ann!E50","v":16},{"$f":"[1]ACS_16_5YR_C18108_with_ann!F50","v":586},{"$f":"[1]ACS_16_5YR_C18108_with_ann!G50","v":114},{"$f":"[1]ACS_16_5YR_C18108_with_ann!H50","v":18},{"$f":"[1]ACS_16_5YR_C18108_with_ann!I50","v":32},{"$f":"[1]ACS_16_5YR_C18108_with_ann!J50","v":0},{"$f":"[1]ACS_16_5YR_C18108_with_ann!K50","v":12},{"$f":"[1]ACS_16_5YR_C18108_with_ann!L50","v":568},{"$f":"[1]ACS_16_5YR_C18108_with_ann!M50","v":105},{"$f":"[1]ACS_16_5YR_C18108_with_ann!N50","v":2321},{"$f":"[1]ACS_16_5YR_C18108_with_ann!O50","v":247},{"$f":"[1]ACS_16_5YR_C18108_with_ann!P50","v":152},{"$f":"[1]ACS_16_5YR_C18108_with_ann!Q50","v":113},{"$f":"[1]ACS_16_5YR_C18108_with_ann!R50","v":98},{"$f":"[1]ACS_16_5YR_C18108_with_ann!S50","v":54},{"$f":"[1]ACS_16_5YR_C18108_with_ann!T50","v":2071},{"$f":"[1]ACS_16_5YR_C18108_with_ann!U50","v":260},{"$f":"[1]ACS_16_5YR_C18108_with_ann!V50","v":1058},{"$f":"[1]ACS_16_5YR_C18108_with_ann!W50","v":304},{"$f":"[1]ACS_16_5YR_C18108_with_ann!X50","v":230},{"$f":"[1]ACS_16_5YR_C18108_with_ann!Y50","v":121},{"$f":"[1]ACS_16_5YR_C18108_with_ann!Z50","v":292},{"$f":"[1]ACS_16_5YR_C18108_with_ann!AA50","v":225},{"$f":"[1]ACS_16_5YR_C18108_with_ann!AB50","v":536},{"$f":"[1]ACS_16_5YR_C18108_with_ann!AC50","v":187}]
["06000US3300538500","0600000US3300539300","060",{"$f":"[1]ACS_16_5YR_C18108_with_ann!C51","v":"Jaffrey"},{"$f":"[1]ACS_16_5YR_C18108_with_ann!D51","v":5299},{"$f":"[1]ACS_16_5YR_C18108_with_ann!E51","v":31},{"$f":"[1]ACS_16_5YR_C18108_with_ann!F51","v":1325},{"$f":"[1]ACS_16_5YR_C18108_with_ann!G51","v":243},{"$f":"[1]ACS_16_5YR_C18108_with_ann!H51","v":89},{"$f":"[1]ACS_16_5YR_C18108_with_ann!I51","v":91},{"$f":"[1]ACS_16_5YR_C18108_with_ann!J51","v":40},{"$f":"[1]ACS_16_5YR_C18108_with_ann!K51","v":47},{"$f":"[1]ACS_16_5YR_C18108_with_ann!L51","v":1196},{"$f":"[1]ACS_16_5YR_C18108_with_ann!M51","v":263},{"$f":"[1]ACS_16_5YR_C18108_with_ann!N51","v":3169},{"$f":"[1]ACS_16_5YR_C18108_with_ann!O51","v":243},{"$f":"[1]ACS_16_5YR_C18108_with_ann!P51","v":189},{"$f":"[1]ACS_16_5YR_C18108_with_ann!Q51","v":137},{"$f":"[1]ACS_16_5YR_C18108_with_ann!R51","v":183},{"$f":"[1]ACS_16_5YR_C18108_with_ann!S51","v":133},{"$f":"[1]ACS_16_5YR_C18108_with_ann!T51","v":2797},{"$f":"[1]ACS_16_5YR_C18108_with_ann!U51","v":287},{"$f":"[1]ACS_16_5YR_C18108_with_ann!V51","v":805},{"$f":"[1]ACS_16_5YR_C18108_with_ann!W51","v":203},{"$f":"[1]ACS_16_5YR_C18108_with_ann!X51","v":79},{"$f":"[1]ACS_16_5YR_C18108_with_ann!Y51","v":66},{"$f":"[1]ACS_16_5YR_C18108_with_ann!Z51","v":154},{"$f":"[1]ACS_16_5YR_C18108_with_ann!AA51","v":132},{"$f":"[1]ACS_16_5YR_C18108_with_ann!AB51","v":572},{"$f":"[1]ACS_16_5YR_C18108_with_ann!AC51","v":173}]
["06000US3300539300","0600000US3300545460","060",{"$f":"[1]ACS_16_5YR_C18108_with_ann!C52","v":"Keene"},{"$f":"[1]ACS_16_5YR_C18108_with_ann!D52","v":22429},{"$f":"[1]ACS_16_5YR_C18108_with_ann!E52","v":47},{"$f":"[1]ACS_16_5YR_C18108_with_ann!F52","v":3292},{"$f":"[1]ACS_16_5YR_C18108_with_ann!G52","v":270},{"$f":"[1]ACS_16_5YR_C18108_with_ann!H52","v":167},{"$f":"[1]ACS_16_5YR_C18108_with_ann!I52","v":90},{"$f":"[1]ACS_16_5YR_C18108_with_ann!J52","v":31},{"$f":"[1]ACS_16_5YR_C18108_with_ann!K52","v":36},{"$f":"[1]ACS_16_5YR_C18108_with_ann!L52","v":3094},{"$f":"[1]ACS_16_5YR_C18108_with_ann!M52","v":257},{"$f":"[1]ACS_16_5YR_C18108_with_ann!N52","v":15171},{"$f":"[1]ACS_16_5YR_C18108_with_ann!O52","v":394},{"$f":"[1]ACS_16_5YR_C18108_with_ann!P52","v":1286},{"$f":"[1]ACS_16_5YR_C18108_with_ann!Q52","v":315},{"$f":"[1]ACS_16_5YR_C18108_with_ann!R52","v":545},{"$f":"[1]ACS_16_5YR_C18108_with_ann!S52","v":181},{"$f":"[1]ACS_16_5YR_C18108_with_ann!T52","v":13340},{"$f":"[1]ACS_16_5YR_C18108_with_ann!U52","v":523},{"$f":"[1]ACS_16_5YR_C18108_with_ann!V52","v":3966},{"$f":"[1]ACS_16_5YR_C18108_with_ann!W52","v":301},{"$f":"[1]ACS_16_5YR_C18108_with_ann!X52","v":723},{"$f":"[1]ACS_16_5YR_C18108_with_ann!Y52","v":172},{"$f":"[1]ACS_16_5YR_C18108_with_ann!Z52","v":642},{"$f":"[1]ACS_16_5YR_C18108_with_ann!AA52","v":216},{"$f":"[1]ACS_16_5YR_C18108_with_ann!AB52","v":2601},{"$f":"[1]ACS_16_5YR_C18108_with_ann!AC52","v":297}]
["06000US3300545460","0600000US3300545700","060",{"$f":"[1]ACS_16_5YR_C18108_with_ann!C53","v":"Marlborough"},{"$f":"[1]ACS_16_5YR_C18108_with_ann!D53","v":2253},{"$f":"[1]ACS_16_5YR_C18108_with_ann!E53","v":391},{"$f":"[1]ACS_16_5YR_C18108_with_ann!F53","v":543},{"$f":"[1]ACS_16_5YR_C18108_with_ann!G53","v":183},{"$f":"[1]ACS_16_5YR_C18108_with_ann!H53","v":0},{"$f":"[1]ACS_16_5YR_C18108_with_ann!I53","v":12},{"$f":"[1]ACS_16_5YR_C18108_with_ann!J53","v":0},{"$f":"[1]ACS_16_5YR_C18108_with_ann!K53","v":12},{"$f":"[1]ACS_16_5YR_C18108_with_ann!L53","v":543},{"$f":"[1]ACS_16_5YR_C18108_with_ann!M53","v":183},{"$f":"[1]ACS_16_5YR_C18108_with_ann!N53","v":1318},{"$f":"[1]ACS_16_5YR_C18108_with_ann!O53","v":260},{"$f":"[1]ACS_16_5YR_C18108_with_ann!P53","v":88},{"$f":"[1]ACS_16_5YR_C18108_with_ann!Q53","v":52},{"$f":"[1]ACS_16_5YR_C18108_with_ann!R53","v":89},{"$f":"[1]ACS_16_5YR_C18108_with_ann!S53","v":51},{"$f":"[1]ACS_16_5YR_C18108_with_ann!T53","v":1141},{"$f":"[1]ACS_16_5YR_C18108_with_ann!U53","v":230},{"$f":"[1]ACS_16_5YR_C18108_with_ann!V53","v":392},{"$f":"[1]ACS_16_5YR_C18108_with_ann!W53","v":87},{"$f":"[1]ACS_16_5YR_C18108_with_ann!X53","v":52},{"$f":"[1]ACS_16_5YR_C18108_with_ann!Y53","v":32},{"$f":"[1]ACS_16_5YR_C18108_with_ann!Z53","v":43},{"$f":"[1]ACS_16_5YR_C18108_with_ann!AA53","v":27},{"$f":"[1]ACS_16_5YR_C18108_with_ann!AB53","v":297},{"$f":"[1]ACS_16_5YR_C18108_with_ann!AC53","v":78}]
["06000US3300545700","0600000US3300550580","060",{"$f":"[1]ACS_16_5YR_C18108_with_ann!C54","v":"Marlow"},{"$f":"[1]ACS_16_5YR_C18108_with_ann!D54","v":803},{"$f":"[1]ACS_16_5YR_C18108_with_ann!E54","v":175},{"$f":"[1]ACS_16_5YR_C18108_with_ann!F54","v":195},{"$f":"[1]ACS_16_5YR_C18108_with_ann!G54","v":77},{"$f":"[1]ACS_16_5YR_C18108_with_ann!H54","v":17},{"$f":"[1]ACS_16_5YR_C18108_with_ann!I54","v":16},{"$f":"[1]ACS_16_5YR_C18108_with_ann!J54","v":2},{"$f":"[1]ACS_16_5YR_C18108_with_ann!K54","v":3},{"$f":"[1]ACS_16_5YR_C18108_with_ann!L54","v":176},{"$f":"[1]ACS_16_5YR_C18108_with_ann!M54","v":69},{"$f":"[1]ACS_16_5YR_C18108_with_ann!N54","v":410},{"$f":"[1]ACS_16_5YR_C18108_with_ann!O54","v":95},{"$f":"[1]ACS_16_5YR_C18108_with_ann!P54","v":12},{"$f":"[1]ACS_16_5YR_C18108_with_ann!Q54","v":13},{"$f":"[1]ACS_16_5YR_C18108_with_ann!R54","v":12},{"$f":"[1]ACS_16_5YR_C18108_with_ann!S54","v":12},{"$f":"[1]ACS_16_5YR_C18108_with_ann!T54","v":386},{"$f":"[1]ACS_16_5YR_C18108_with_ann!U54","v":92},{"$f":"[1]ACS_16_5YR_C18108_with_ann!V54","v":198},{"$f":"[1]ACS_16_5YR_C18108_with_ann!W54","v":73},{"$f":"[1]ACS_16_5YR_C18108_with_ann!X54","v":44},{"$f":"[1]ACS_16_5YR_C18108_with_ann!Y54","v":32},{"$f":"[1]ACS_16_5YR_C18108_with_ann!Z54","v":30},{"$f":"[1]ACS_16_5YR_C18108_with_ann!AA54","v":27},{"$f":"[1]ACS_16_5YR_C18108_with_ann!AB54","v":124},{"$f":"[1]ACS_16_5YR_C18108_with_ann!AC54","v":50}]
["06000US3300550580","0600000US3300564420","060",{"$f":"[1]ACS_16_5YR_C18108_with_ann!C55","v":"Nelson"},{"$f":"[1]ACS_16_5YR_C18108_with_ann!D55","v":550},{"$f":"[1]ACS_16_5YR_C18108_with_ann!E55","v":106},{"$f":"[1]ACS_16_5YR_C18108_with_ann!F55","v":85},{"$f":"[1]ACS_16_5YR_C18108_with_ann!G55","v":35},{"$f":"[1]ACS_16_5YR_C18108_with_ann!H55","v":0},{"$f":"[1]ACS_16_5YR_C18108_with_ann!I55","v":12},{"$f":"[1]ACS_16_5YR_C18108_with_ann!J55","v":0},{"$f":"[1]ACS_16_5YR_C18108_with_ann!K55","v":12},{"$f":"[1]ACS_16_5YR_C18108_with_ann!L55","v":85},{"$f":"[1]ACS_16_5YR_C18108_with_ann!M55","v":35},{"$f":"[1]ACS_16_5YR_C18108_with_ann!N55","v":308},{"$f":"[1]ACS_16_5YR_C18108_with_ann!O55","v":74},{"$f":"[1]ACS_16_5YR_C18108_with_ann!P55","v":14},{"$f":"[1]ACS_16_5YR_C18108_with_ann!Q55","v":11},{"$f":"[1]ACS_16_5YR_C18108_with_ann!R55","v":14},{"$f":"[1]ACS_16_5YR_C18108_with_ann!S55","v":14},{"$f":"[1]ACS_16_5YR_C18108_with_ann!T55","v":280},{"$f":"[1]ACS_16_5YR_C18108_with_ann!U55","v":68},{"$f":"[1]ACS_16_5YR_C18108_with_ann!V55","v":157},{"$f":"[1]ACS_16_5YR_C18108_with_ann!W55","v":36},{"$f":"[1]ACS_16_5YR_C18108_with_ann!X55","v":29},{"$f":"[1]ACS_16_5YR_C18108_with_ann!Y55","v":16},{"$f":"[1]ACS_16_5YR_C18108_with_ann!Z55","v":11},{"$f":"[1]ACS_16_5YR_C18108_with_ann!AA55","v":8},{"$f":"[1]ACS_16_5YR_C18108_with_ann!AB55","v":117},{"$f":"[1]ACS_16_5YR_C18108_with_ann!AC55","v":30}]
["06000US3300564420","0600000US3300564580","060",{"$f":"[1]ACS_16_5YR_C18108_with_ann!C56","v":"Richmond"},{"$f":"[1]ACS_16_5YR_C18108_with_ann!D56","v":1104},{"$f":"[1]ACS_16_5YR_C18108_with_ann!E56","v":251},{"$f":"[1]ACS_16_5YR_C18108_with_ann!F56","v":188},{"$f":"[1]ACS_16_5YR_C18108_with_ann!G56","v":90},{"$f":"[1]ACS_16_5YR_C18108_with_ann!H56","v":6},{"$f":"[1]ACS_16_5YR_C18108_with_ann!I56","v":9},{"$f":"[1]ACS_16_5YR_C18108_with_ann!J56","v":7},{"$f":"[1]ACS_16_5YR_C18108_with_ann!K56","v":10},{"$f":"[1]ACS_16_5YR_C18108_with_ann!L56","v":175},{"$f":"[1]ACS_16_5YR_C18108_with_ann!M56","v":76},{"$f":"[1]ACS_16_5YR_C18108_with_ann!N56","v":597},{"$f":"[1]ACS_16_5YR_C18108_with_ann!O56","v":168},{"$f":"[1]ACS_16_5YR_C18108_with_ann!P56","v":25},{"$f":"[1]ACS_16_5YR_C18108_with_ann!Q56","v":19},{"$f":"[1]ACS_16_5YR_C18108_with_ann!R56","v":27},{"$f":"[1]ACS_16_5YR_C18108_with_ann!S56","v":17},{"$f":"[1]ACS_16_5YR_C18108_with_ann!T56","v":545},{"$f":"[1]ACS_16_5YR_C18108_with_ann!U56","v":166},{"$f":"[1]ACS_16_5YR_C18108_with_ann!V56","v":319},{"$f":"[1]ACS_16_5YR_C18108_with_ann!W56","v":119},{"$f":"[1]ACS_16_5YR_C18108_with_ann!X56","v":40},{"$f":"[1]ACS_16_5YR_C18108_with_ann!Y56","v":20},{"$f":"[1]ACS_16_5YR_C18108_with_ann!Z56","v":73},{"$f":"[1]ACS_16_5YR_C18108_with_ann!AA56","v":44},{"$f":"[1]ACS_16_5YR_C18108_with_ann!AB56","v":206},{"$f":"[1]ACS_16_5YR_C18108_with_ann!AC56","v":107}]
["06000US3300564580","0600000US3300565700","060",{"$f":"[1]ACS_16_5YR_C18108_with_ann!C57","v":"Rindge"},{"$f":"[1]ACS_16_5YR_C18108_with_ann!D57","v":6443},{"$f":"[1]ACS_16_5YR_C18108_with_ann!E57","v":18},{"$f":"[1]ACS_16_5YR_C18108_with_ann!F57","v":1173},{"$f":"[1]ACS_16_5YR_C18108_with_ann!G57","v":160},{"$f":"[1]ACS_16_5YR_C18108_with_ann!H57","v":9},{"$f":"[1]ACS_16_5YR_C18108_with_ann!I57","v":16},{"$f":"[1]ACS_16_5YR_C18108_with_ann!J57","v":0},{"$f":"[1]ACS_16_5YR_C18108_with_ann!K57","v":17},{"$f":"[1]ACS_16_5YR_C18108_with_ann!L57","v":1164},{"$f":"[1]ACS_16_5YR_C18108_with_ann!M57","v":161},{"$f":"[1]ACS_16_5YR_C18108_with_ann!N57","v":3993},{"$f":"[1]ACS_16_5YR_C18108_with_ann!O57","v":217},{"$f":"[1]ACS_16_5YR_C18108_with_ann!P57","v":202},{"$f":"[1]ACS_16_5YR_C18108_with_ann!Q57","v":80},{"$f":"[1]ACS_16_5YR_C18108_with_ann!R57","v":158},{"$f":"[1]ACS_16_5YR_C18108_with_ann!S57","v":105},{"$f":"[1]ACS_16_5YR_C18108_with_ann!T57","v":3633},{"$f":"[1]ACS_16_5YR_C18108_with_ann!U57","v":236},{"$f":"[1]ACS_16_5YR_C18108_with_ann!V57","v":1277},{"$f":"[1]ACS_16_5YR_C18108_with_ann!W57","v":193},{"$f":"[1]ACS_16_5YR_C18108_with_ann!X57","v":182},{"$f":"[1]ACS_16_5YR_C18108_with_ann!Y57","v":120},{"$f":"[1]ACS_16_5YR_C18108_with_ann!Z57","v":73},{"$f":"[1]ACS_16_5YR_C18108_with_ann!AA57","v":66},{"$f":"[1]ACS_16_5YR_C18108_with_ann!AB57","v":1022},{"$f":"[1]ACS_16_5YR_C18108_with_ann!AC57","v":227}]
["06000US3300565700","0600000US3300573700","060",{"$f":"[1]ACS_16_5YR_C18108_with_ann!C58","v":"Roxbury"},{"$f":"[1]ACS_16_5YR_C18108_with_ann!D58","v":295},{"$f":"[1]ACS_16_5YR_C18108_with_ann!E58","v":142},{"$f":"[1]ACS_16_5YR_C18108_with_ann!F58","v":47},{"$f":"[1]ACS_16_5YR_C18108_with_ann!G58","v":36},{"$f":"[1]ACS_16_5YR_C18108_with_ann!H58","v":0},{"$f":"[1]ACS_16_5YR_C18108_with_ann!I58","v":12},{"$f":"[1]ACS_16_5YR_C18108_with_ann!J58","v":0},{"$f":"[1]ACS_16_5YR_C18108_with_ann!K58","v":12},{"$f":"[1]ACS_16_5YR_C18108_with_ann!L58","v":47},{"$f":"[1]ACS_16_5YR_C18108_with_ann!M58","v":36},{"$f":"[1]ACS_16_5YR_C18108_with_ann!N58","v":215},{"$f":"[1]ACS_16_5YR_C18108_with_ann!O58","v":114},{"$f":"[1]ACS_16_5YR_C18108_with_ann!P58","v":31},{"$f":"[1]ACS_16_5YR_C18108_with_ann!Q58","v":26},{"$f":"[1]ACS_16_5YR_C18108_with_ann!R58","v":13},{"$f":"[1]ACS_16_5YR_C18108_with_ann!S58","v":13},{"$f":"[1]ACS_16_5YR_C18108_with_ann!T58","v":171},{"$f":"[1]ACS_16_5YR_C18108_with_ann!U58","v":92},{"$f":"[1]ACS_16_5YR_C18108_with_ann!V58","v":33},{"$f":"[1]ACS_16_5YR_C18108_with_ann!W58","v":11},{"$f":"[1]ACS_16_5YR_C18108_with_ann!X58","v":4},{"$f":"[1]ACS_16_5YR_C18108_with_ann!Y58","v":3},{"$f":"[1]ACS_16_5YR_C18108_with_ann!Z58","v":7},{"$f":"[1]ACS_16_5YR_C18108_with_ann!AA58","v":7},{"$f":"[1]ACS_16_5YR_C18108_with_ann!AB58","v":22},{"$f":"[1]ACS_16_5YR_C18108_with_ann!AC58","v":11}]
["06000US3300573700","0600000US3300574900","060",{"$f":"[1]ACS_16_5YR_C18108_with_ann!C59","v":"Stoddard"},{"$f":"[1]ACS_16_5YR_C18108_with_ann!D59","v":1205},{"$f":"[1]ACS_16_5YR_C18108_with_ann!E59","v":162},{"$f":"[1]ACS_16_5YR_C18108_with_ann!F59","v":251},{"$f":"[1]ACS_16_5YR_C18108_with_ann!G59","v":90},{"$f":"[1]ACS_16_5YR_C18108_with_ann!H59","v":3},{"$f":"[1]ACS_16_5YR_C18108_with_ann!I59","v":5},{"$f":"[1]ACS_16_5YR_C18108_with_ann!J59","v":0},{"$f":"[1]ACS_16_5YR_C18108_with_ann!K59","v":12},{"$f":"[1]ACS_16_5YR_C18108_with_ann!L59","v":248},{"$f":"[1]ACS_16_5YR_C18108_with_ann!M59","v":90},{"$f":"[1]ACS_16_5YR_C18108_with_ann!N59","v":719},{"$f":"[1]ACS_16_5YR_C18108_with_ann!O59","v":106},{"$f":"[1]ACS_16_5YR_C18108_with_ann!P59","v":22},{"$f":"[1]ACS_16_5YR_C18108_with_ann!Q59","v":15},{"$f":"[1]ACS_16_5YR_C18108_with_ann!R59","v":15},{"$f":"[1]ACS_16_5YR_C18108_with_ann!S59","v":17},{"$f":"[1]ACS_16_5YR_C18108_with_ann!T59","v":682},{"$f":"[1]ACS_16_5YR_C18108_with_ann!U59","v":106},{"$f":"[1]ACS_16_5YR_C18108_with_ann!V59","v":235},{"$f":"[1]ACS_16_5YR_C18108_with_ann!W59","v":41},{"$f":"[1]ACS_16_5YR_C18108_with_ann!X59","v":43},{"$f":"[1]ACS_16_5YR_C18108_with_ann!Y59","v":17},{"$f":"[1]ACS_16_5YR_C18108_with_ann!Z59","v":24},{"$f":"[1]ACS_16_5YR_C18108_with_ann!AA59","v":13},{"$f":"[1]ACS_16_5YR_C18108_with_ann!AB59","v":168},{"$f":"[1]ACS_16_5YR_C18108_with_ann!AC59","v":35}]
["06000US3300574900","0600000US3300575300","060",{"$f":"[1]ACS_16_5YR_C18108_with_ann!C60","v":"Sullivan"},{"$f":"[1]ACS_16_5YR_C18108_with_ann!D60","v":681},{"$f":"[1]ACS_16_5YR_C18108_with_ann!E60","v":130},{"$f":"[1]ACS_16_5YR_C18108_with_ann!F60","v":111},{"$f":"[1]ACS_16_5YR_C18108_with_ann!G60","v":47},{"$f":"[1]ACS_16_5YR_C18108_with_ann!H60","v":7},{"$f":"[1]ACS_16_5YR_C18108_with_ann!I60","v":6},{"$f":"[1]ACS_16_5YR_C18108_with_ann!J60","v":3},{"$f":"[1]ACS_16_5YR_C18108_with_ann!K60","v":4},{"$f":"[1]ACS_16_5YR_C18108_with_ann!L60","v":101},{"$f":"[1]ACS_16_5YR_C18108_with_ann!M60","v":45},{"$f":"[1]ACS_16_5YR_C18108_with_ann!N60","v":441},{"$f":"[1]ACS_16_5YR_C18108_with_ann!O60","v":89},{"$f":"[1]ACS_16_5YR_C18108_with_ann!P60","v":21},{"$f":"[1]ACS_16_5YR_C18108_with_ann!Q60","v":12},{"$f":"[1]ACS_16_5YR_C18108_with_ann!R60","v":23},{"$f":"[1]ACS_16_5YR_C18108_with_ann!S60","v":21},{"$f":"[1]ACS_16_5YR_C18108_with_ann!T60","v":397},{"$f":"[1]ACS_16_5YR_C18108_with_ann!U60","v":88},{"$f":"[1]ACS_16_5YR_C18108_with_ann!V60","v":129},{"$f":"[1]ACS_16_5YR_C18108_with_ann!W60","v":30},{"$f":"[1]ACS_16_5YR_C18108_with_ann!X60","v":15},{"$f":"[1]ACS_16_5YR_C18108_with_ann!Y60","v":8},{"$f":"[1]ACS_16_5YR_C18108_with_ann!Z60","v":21},{"$f":"[1]ACS_16_5YR_C18108_with_ann!AA60","v":17},{"$f":"[1]ACS_16_5YR_C18108_with_ann!AB60","v":93},{"$f":"[1]ACS_16_5YR_C18108_with_ann!AC60","v":28}]
["06000US3300575300","0600000US3300575700","060",{"$f":"[1]ACS_16_5YR_C18108_with_ann!C61","v":"Surry"},{"$f":"[1]ACS_16_5YR_C18108_with_ann!D61","v":950},{"$f":"[1]ACS_16_5YR_C18108_with_ann!E61","v":245},{"$f":"[1]ACS_16_5YR_C18108_with_ann!F61","v":193},{"$f":"[1]ACS_16_5YR_C18108_with_ann!G61","v":106},{"$f":"[1]ACS_16_5YR_C18108_with_ann!H61","v":42},{"$f":"[1]ACS_16_5YR_C18108_with_ann!I61","v":48},{"$f":"[1]ACS_16_5YR_C18108_with_ann!J61","v":0},{"$f":"[1]ACS_16_5YR_C18108_with_ann!K61","v":12},{"$f":"[1]ACS_16_5YR_C18108_with_ann!L61","v":151},{"$f":"[1]ACS_16_5YR_C18108_with_ann!M61","v":65},{"$f":"[1]ACS_16_5YR_C18108_with_ann!N61","v":514},{"$f":"[1]ACS_16_5YR_C18108_with_ann!O61","v":128},{"$f":"[1]ACS_16_5YR_C18108_with_ann!P61","v":12},{"$f":"[1]ACS_16_5YR_C18108_with_ann!Q61","v":8},{"$f":"[1]ACS_16_5YR_C18108_with_ann!R61","v":19},{"$f":"[1]ACS_16_5YR_C18108_with_ann!S61","v":10},{"$f":"[1]ACS_16_5YR_C18108_with_ann!T61","v":483},{"$f":"[1]ACS_16_5YR_C18108_with_ann!U61","v":127},{"$f":"[1]ACS_16_5YR_C18108_with_ann!V61","v":243},{"$f":"[1]ACS_16_5YR_C18108_with_ann!W61","v":55},{"$f":"[1]ACS_16_5YR_C18108_with_ann!X61","v":27},{"$f":"[1]ACS_16_5YR_C18108_with_ann!Y61","v":16},{"$f":"[1]ACS_16_5YR_C18108_with_ann!Z61","v":32},{"$f":"[1]ACS_16_5YR_C18108_with_ann!AA61","v":18},{"$f":"[1]ACS_16_5YR_C18108_with_ann!AB61","v":184},{"$f":"[1]ACS_16_5YR_C18108_with_ann!AC61","v":46}]
["06000US3300575700","0600000US3300577380","060",{"$f":"[1]ACS_16_5YR_C18108_with_ann!C62","v":"Swanzey"},{"$f":"[1]ACS_16_5YR_C18108_with_ann!D62","v":7306},{"$f":"[1]ACS_16_5YR_C18108_with_ann!E62","v":22},{"$f":"[1]ACS_16_5YR_C18108_with_ann!F62","v":1262},{"$f":"[1]ACS_16_5YR_C18108_with_ann!G62","v":172},{"$f":"[1]ACS_16_5YR_C18108_with_ann!H62","v":13},{"$f":"[1]ACS_16_5YR_C18108_with_ann!I62","v":28},{"$f":"[1]ACS_16_5YR_C18108_with_ann!J62","v":9},{"$f":"[1]ACS_16_5YR_C18108_with_ann!K62","v":17},{"$f":"[1]ACS_16_5YR_C18108_with_ann!L62","v":1240},{"$f":"[1]ACS_16_5YR_C18108_with_ann!M62","v":176},{"$f":"[1]ACS_16_5YR_C18108_with_ann!N62","v":4168},{"$f":"[1]ACS_16_5YR_C18108_with_ann!O62","v":267},{"$f":"[1]ACS_16_5YR_C18108_with_ann!P62","v":259},{"$f":"[1]ACS_16_5YR_C18108_with_ann!Q62","v":147},{"$f":"[1]ACS_16_5YR_C18108_with_ann!R62","v":323},{"$f":"[1]ACS_16_5YR_C18108_with_ann!S62","v":150},{"$f":"[1]ACS_16_5YR_C18108_with_ann!T62","v":3586},{"$f":"[1]ACS_16_5YR_C18108_with_ann!U62","v":310},{"$f":"[1]ACS_16_5YR_C18108_with_ann!V62","v":1876},{"$f":"[1]ACS_16_5YR_C18108_with_ann!W62","v":275},{"$f":"[1]ACS_16_5YR_C18108_with_ann!X62","v":254},{"$f":"[1]ACS_16_5YR_C18108_with_ann!Y62","v":126},{"$f":"[1]ACS_16_5YR_C18108_with_ann!Z62","v":438},{"$f":"[1]ACS_16_5YR_C18108_with_ann!AA62","v":196},{"$f":"[1]ACS_16_5YR_C18108_with_ann!AB62","v":1184},{"$f":"[1]ACS_16_5YR_C18108_with_ann!AC62","v":217}]
["06000US3300577380","0600000US3300578420","060",{"$f":"[1]ACS_16_5YR_C18108_with_ann!C63","v":"Troy"},{"$f":"[1]ACS_16_5YR_C18108_with_ann!D63","v":1889},{"$f":"[1]ACS_16_5YR_C18108_with_ann!E63","v":275},{"$f":"[1]ACS_16_5YR_C18108_with_ann!F63","v":393},{"$f":"[1]ACS_16_5YR_C18108_with_ann!G63","v":111},{"$f":"[1]ACS_16_5YR_C18108_with_ann!H63","v":0},{"$f":"[1]ACS_16_5YR_C18108_with_ann!I63","v":12},{"$f":"[1]ACS_16_5YR_C18108_with_ann!J63","v":0},{"$f":"[1]ACS_16_5YR_C18108_with_ann!K63","v":12},{"$f":"[1]ACS_16_5YR_C18108_with_ann!L63","v":393},{"$f":"[1]ACS_16_5YR_C18108_with_ann!M63","v":111},{"$f":"[1]ACS_16_5YR_C18108_with_ann!N63","v":1167},{"$f":"[1]ACS_16_5YR_C18108_with_ann!O63","v":219},{"$f":"[1]ACS_16_5YR_C18108_with_ann!P63","v":56},{"$f":"[1]ACS_16_5YR_C18108_with_ann!Q63","v":37},{"$f":"[1]ACS_16_5YR_C18108_with_ann!R63","v":56},{"$f":"[1]ACS_16_5YR_C18108_with_ann!S63","v":36},{"$f":"[1]ACS_16_5YR_C18108_with_ann!T63","v":1055},{"$f":"[1]ACS_16_5YR_C18108_with_ann!U63","v":207},{"$f":"[1]ACS_16_5YR_C18108_with_ann!V63","v":329},{"$f":"[1]ACS_16_5YR_C18108_with_ann!W63","v":81},{"$f":"[1]ACS_16_5YR_C18108_with_ann!X63","v":46},{"$f":"[1]ACS_16_5YR_C18108_with_ann!Y63","v":40},{"$f":"[1]ACS_16_5YR_C18108_with_ann!Z63","v":46},{"$f":"[1]ACS_16_5YR_C18108_with_ann!AA63","v":35},{"$f":"[1]ACS_16_5YR_C18108_with_ann!AB63","v":237},{"$f":"[1]ACS_16_5YR_C18108_with_ann!AC63","v":63}]
["06000US3300578420","0600000US3300582660","060",{"$f":"[1]ACS_16_5YR_C18108_with_ann!C64","v":"Walpole"},{"$f":"[1]ACS_16_5YR_C18108_with_ann!D64","v":3651},{"$f":"[1]ACS_16_5YR_C18108_with_ann!E64","v":33},{"$f":"[1]ACS_16_5YR_C18108_with_ann!F64","v":926},{"$f":"[1]ACS_16_5YR_C18108_with_ann!G64","v":125},{"$f":"[1]ACS_16_5YR_C18108_with_ann!H64","v":28},{"$f":"[1]ACS_16_5YR_C18108_with_ann!I64","v":41},{"$f":"[1]ACS_16_5YR_C18108_with_ann!J64","v":12},{"$f":"[1]ACS_16_5YR_C18108_with_ann!K64","v":15},{"$f":"[1]ACS_16_5YR_C18108_with_ann!L64","v":886},{"$f":"[1]ACS_16_5YR_C18108_with_ann!M64","v":137},{"$f":"[1]ACS_16_5YR_C18108_with_ann!N64","v":1954},{"$f":"[1]ACS_16_5YR_C18108_with_ann!O64","v":157},{"$f":"[1]ACS_16_5YR_C18108_with_ann!P64","v":129},{"$f":"[1]ACS_16_5YR_C18108_with_ann!Q64","v":81},{"$f":"[1]ACS_16_5YR_C18108_with_ann!R64","v":61},{"$f":"[1]ACS_16_5YR_C18108_with_ann!S64","v":39},{"$f":"[1]ACS_16_5YR_C18108_with_ann!T64","v":1764},{"$f":"[1]ACS_16_5YR_C18108_with_ann!U64","v":175},{"$f":"[1]ACS_16_5YR_C18108_with_ann!V64","v":771},{"$f":"[1]ACS_16_5YR_C18108_with_ann!W64","v":114},{"$f":"[1]ACS_16_5YR_C18108_with_ann!X64","v":173},{"$f":"[1]ACS_16_5YR_C18108_with_ann!Y64","v":95},{"$f":"[1]ACS_16_5YR_C18108_with_ann!Z64","v":99},{"$f":"[1]ACS_16_5YR_C18108_with_ann!AA64","v":48},{"$f":"[1]ACS_16_5YR_C18108_with_ann!AB64","v":499},{"$f":"[1]ACS_16_5YR_C18108_with_ann!AC64","v":84}]
["06000US3300582660","0600000US3300585540","060",{"$f":"[1]ACS_16_5YR_C18108_with_ann!C65","v":"Westmoreland"},{"$f":"[1]ACS_16_5YR_C18108_with_ann!D65","v":1971},{"$f":"[1]ACS_16_5YR_C18108_with_ann!E65","v":342},{"$f":"[1]ACS_16_5YR_C18108_with_ann!F65","v":311},{"$f":"[1]ACS_16_5YR_C18108_with_ann!G65","v":113},{"$f":"[1]ACS_16_5YR_C18108_with_ann!H65","v":0},{"$f":"[1]ACS_16_5YR_C18108_with_ann!I65","v":12},{"$f":"[1]ACS_16_5YR_C18108_with_ann!J65","v":0},{"$f":"[1]ACS_16_5YR_C18108_with_ann!K65","v":12},{"$f":"[1]ACS_16_5YR_C18108_with_ann!L65","v":311},{"$f":"[1]ACS_16_5YR_C18108_with_ann!M65","v":113},{"$f":"[1]ACS_16_5YR_C18108_with_ann!N65","v":1061},{"$f":"[1]ACS_16_5YR_C18108_with_ann!O65","v":215},{"$f":"[1]ACS_16_5YR_C18108_with_ann!P65","v":59},{"$f":"[1]ACS_16_5YR_C18108_with_ann!Q65","v":45},{"$f":"[1]ACS_16_5YR_C18108_with_ann!R65","v":28},{"$f":"[1]ACS_16_5YR_C18108_with_ann!S65","v":19},{"$f":"[1]ACS_16_5YR_C18108_with_ann!T65","v":974},{"$f":"[1]ACS_16_5YR_C18108_with_ann!U65","v":209},{"$f":"[1]ACS_16_5YR_C18108_with_ann!V65","v":599},{"$f":"[1]ACS_16_5YR_C18108_with_ann!W65","v":208},{"$f":"[1]ACS_16_5YR_C18108_with_ann!X65","v":63},{"$f":"[1]ACS_16_5YR_C18108_with_ann!Y65","v":30},{"$f":"[1]ACS_16_5YR_C18108_with_ann!Z65","v":89},{"$f":"[1]ACS_16_5YR_C18108_with_ann!AA65","v":72},{"$f":"[1]ACS_16_5YR_C18108_with_ann!AB65","v":447},{"$f":"[1]ACS_16_5YR_C18108_with_ann!AC65","v":143}]
["06000US3300585540","0600000US3300500820","060",{"$f":"[1]ACS_16_5YR_C18108_with_ann!C66","v":"Winchester"},{"$f":"[1]ACS_16_5YR_C18108_with_ann!D66","v":4094},{"$f":"[1]ACS_16_5YR_C18108_with_ann!E66","v":24},{"$f":"[1]ACS_16_5YR_C18108_with_ann!F66","v":939},{"$f":"[1]ACS_16_5YR_C18108_with_ann!G66","v":199},{"$f":"[1]ACS_16_5YR_C18108_with_ann!H66","v":6},{"$f":"[1]ACS_16_5YR_C18108_with_ann!I66","v":13},{"$f":"[1]ACS_16_5YR_C18108_with_ann!J66","v":0},{"$f":"[1]ACS_16_5YR_C18108_with_ann!K66","v":12},{"$f":"[1]ACS_16_5YR_C18108_with_ann!L66","v":933},{"$f":"[1]ACS_16_5YR_C18108_with_ann!M66","v":200},{"$f":"[1]ACS_16_5YR_C18108_with_ann!N66","v":2543},{"$f":"[1]ACS_16_5YR_C18108_with_ann!O66","v":164},{"$f":"[1]ACS_16_5YR_C18108_with_ann!P66","v":173},{"$f":"[1]ACS_16_5YR_C18108_with_ann!Q66","v":87},{"$f":"[1]ACS_16_5YR_C18108_with_ann!R66","v":130},{"$f":"[1]ACS_16_5YR_C18108_with_ann!S66","v":67},{"$f":"[1]ACS_16_5YR_C18108_with_ann!T66","v":2240},{"$f":"[1]ACS_16_5YR_C18108_with_ann!U66","v":179},{"$f":"[1]ACS_16_5YR_C18108_with_ann!V66","v":612},{"$f":"[1]ACS_16_5YR_C18108_with_ann!W66","v":114},{"$f":"[1]ACS_16_5YR_C18108_with_ann!X66","v":119},{"$f":"[1]ACS_16_5YR_C18108_with_ann!Y66","v":58},{"$f":"[1]ACS_16_5YR_C18108_with_ann!Z66","v":159},{"$f":"[1]ACS_16_5YR_C18108_with_ann!AA66","v":78},{"$f":"[1]ACS_16_5YR_C18108_with_ann!AB66","v":334},{"$f":"[1]ACS_16_5YR_C18108_with_ann!AC66","v":90}]
[]
[]
[]
[null,null,null,null,{"$f":"$D$3","v":"Alstead"},null,{"$f":"$D$4","v":"Chesterfield"},null,{"$f":"$D$5","v":"Dublin"},null,{"$f":"$D$6","v":"Fitzwilliam"},null,{"$f":"$D$7","v":"Gilsum"},null,{"$f":"$D$8","v":"Harrisville"},null,{"$f":"$D$9","v":"Hinsdale"},null,{"$f":"$D$10","v":"Jaffrey"},null,{"$f":"$D$11","v":"Keene"},null,{"$f":"$D$12","v":"Marlborough"},null,{"$f":"$D$13","v":"Marlow"},null,{"$f":"$D$14","v":"Nelson"},null,{"$f":"$D$15","v":"Richmond"},null,{"$f":"$D$16","v":"Rindge"},null,{"$f":"$D$17","v":"Roxbury"},null,{"$f":"$D$18","v":"Stoddard"},null,{"$f":"$D$19","v":"Sullivan"},null,{"$f":"$D$20","v":"Surry"},null,{"$f":"$D$21","v":"Swanzey"},null,{"$f":"$D$22","v":"Troy"},null,{"$f":"$D$23","v":"Walpole"},null,{"$f":"$D$24","v":"Westmoreland"},null,{"$f":"$D$25","v":"Winchester"}]
[null,null,null,null,"Estimate","Margin of Error","Estimate","Margin of Error","Estimate","Margin of Error","Estimate","Margin of Error","Estimate","Margin of Error","Estimate","Margin of Error","Estimate","Margin of Error","Estimate","Margin of Error","Estimate","Margin of Error","Estimate","Margin of Error","Estimate","Margin of Error","Estimate","Margin of Error","Estimate","Margin of Error","Estimate","Margin of Error","Estimate","Margin of Error","Estimate","Margin of Error","Estimate","Margin of Error","Estimate","Margin of Error","Estimate","Margin of Error","Estimate","Margin of Error","Estimate","Margin of Error","Estimate","Margin of Error","Estimate","Margin of Error"]
[null,null,null,"Estimate!!Total:",1599,169,3577,15,1711,216,2287,368,871,144,977,197,3965,16,5299,31,22429,47,2253,391,803,175,550,106,1104,251,6443,18,295,142,1205,162,681,130,950,245,7306,22,1889,275,3651,33,1971,342,4094,24]
[null,null,null,"Estimate!!Total:!!Under 18 years:",228,74,737,158,327,85,285,87,149,63,149,80,586,114,1325,243,3292,270,543,183,195,77,85,35,188,90,1173,160,47,36,251,90,111,47,193,106,1262,172,393,111,926,125,311,113,939,199]
[null,null,null,"Estimate!!Total:!!Under 18 years:!!With one type of disability",0,12,56,59,0,12,14,21,22,28,0,12,18,32,89,91,167,90,0,12,17,16,0,12,6,9,9,16,0,12,3,5,7,6,42,48,13,28,0,12,28,41,0,12,6,13]
[null,null,null,"Estimate!!Total:!!Under 18 years:!!With two or more types of disability",0,12,0,12,0,12,8,8,3,5,3,5,0,12,40,47,31,36,0,12,2,3,0,12,7,10,0,17,0,12,0,12,3,4,0,12,9,17,0,12,12,15,0,12,0,12]
[null,null,null,"Estimate!!Total:!!Under 18 years:!!No disability",228,74,681,157,327,85,263,77,124,44,146,80,568,105,1196,263,3094,257,543,183,176,69,85,35,175,76,1164,161,47,36,248,90,101,45,151,65,1240,176,393,111,886,137,311,113,933,200]
[null,null,null,"Estimate!!Total:!!18 to 64 years:",950,143,1955,195,941,155,1466,264,542,118,537,138,2321,247,3169,243,15171,394,1318,260,410,95,308,74,597,168,3993,217,215,114,719,106,441,89,514,128,4168,267,1167,219,1954,157,1061,215,2543,164]
[null,null,null,"Estimate!!Total:!!18 to 64 years:!!With one type of disability",99,53,120,109,56,36,63,37,36,22,29,21,152,113,189,137,1286,315,88,52,12,13,14,11,25,19,202,80,31,26,22,15,21,12,12,8,259,147,56,37,129,81,59,45,173,87]
[null,null,null,"Estimate!!Total:!!18 to 64 years:!!With two or more types of disability",109,64,0,12,15,21,41,34,30,19,36,30,98,54,183,133,545,181,89,51,12,12,14,14,27,17,158,105,13,13,15,17,23,21,19,10,323,150,56,36,61,39,28,19,130,67]
[null,null,null,"Estimate!!Total:!!18 to 64 years:!!No disability",742,115,1835,198,870,151,1362,268,476,109,472,128,2071,260,2797,287,13340,523,1141,230,386,92,280,68,545,166,3633,236,171,92,682,106,397,88,483,127,3586,310,1055,207,1764,175,974,209,2240,179]
[null,null,null,"Estimate!!Total:!!65 years and over:",421,114,885,203,443,100,536,133,180,51,291,64,1058,304,805,203,3966,301,392,87,198,73,157,36,319,119,1277,193,33,11,235,41,129,30,243,55,1876,275,329,81,771,114,599,208,612,114]
[null,null,null,"Estimate!!Total:!!65 years and over:!!With one type of disability",43,25,200,103,32,31,76,37,29,18,40,19,230,121,79,66,723,172,52,32,44,32,29,16,40,20,182,120,4,3,43,17,15,8,27,16,254,126,46,40,173,95,63,30,119,58]
[null,null,null,"Estimate!!Total:!!65 years and over:!!With two or more types of disability",22,18,100,76,23,43,56,34,15,13,12,9,292,225,154,132,642,216,43,27,30,27,11,8,73,44,73,66,7,7,24,13,21,17,32,18,438,196,46,35,99,48,89,72,159,78]
[null,null,null,"Estimate!!Total:!!65 years and over:!!No disability",356,107,585,173,388,91,404,110,136,46,239,52,536,187,572,173,2601,297,297,78,124,50,117,30,206,107,1022,227,22,11,168,35,93,28,184,46,1184,217,237,63,499,84,447,143,334,90]

{"sheet":"ACS_Table_C18108","index":54,"n_rows":149,"n_cols":48,"rows_kept":149,"cut":false,"hidden":true,"merged":[]}
["B18108. AGE BY NUMBER OF DISABILITIES\n\n"]
["Universe:  Civilian noninstitutionalized population"]
["Data Set: 2018-2022 American Community Survey 5-Year Estimates"]
[]
[null,null,"Alstead",null,"Chesterfield",null,"Dublin",null,"Fitzwilliam",null,"Gilsum",null,"Harrisville",null,"Hinsdale",null,"Jaffrey",null,"Keene",null,"Marlborough",null,"Marlow",null,"Nelson",null,"Richmond",null,"Rindge",null,"Roxbury",null,"Stoddard",null,"Sullivan",null,"Surry",null,"Swanzey",null,"Troy",null,"Walpole",null,"Westmoreland",null,"Winchester"]
[null," ","Estimate","Margin of Error","Estimate","Margin of Error","Estimate","Margin of Error","Estimate","Margin of Error","Estimate","Margin of Error","Estimate","Margin of Error","Estimate","Margin of Error","Estimate","Margin of Error","Estimate","Margin of Error","Estimate","Margin of Error","Estimate","Margin of Error","Estimate","Margin of Error","Estimate","Margin of Error","Estimate","Margin of Error","Estimate","Margin of Error","Estimate","Margin of Error","Estimate","Margin of Error","Estimate","Margin of Error","Estimate","Margin of Error","Estimate","Margin of Error","Estimate","Margin of Error","Estimate","Margin of Error","Estimate","Margin of Error"]
[null,"Total:",1599,169,3577,15,1711,216,2287,368,871,144,977,197,3965,16,5299,31,22429,47,2253,391,803,175,550,106,1104,251,6443,18,295,142,1205,162,681,130,950,245,7306,22,1889,275,3651,33,1971,342,4094,24]
[null,"Under 18 years:",228,74,737,158,327,85,285,87,149,63,149,80,586,114,1325,243,3292,270,543,183,195,77,85,35,188,90,1173,160,47,36,251,90,111,47,193,106,1262,172,393,111,926,125,311,113,939,199]
[null,"With one type of disability",0,12,56,59,0,12,14,21,22,28,0,12,18,32,89,91,167,90,0,12,17,16,0,12,6,9,9,16,0,12,3,5,7,6,42,48,13,28,0,12,28,41,0,12,6,13]
[null,"With two or more types of disability",0,12,0,12,0,12,8,8,3,5,3,5,0,12,40,47,31,36,0,12,2,3,0,12,7,10,0,17,0,12,0,12,3,4,0,12,9,17,0,12,12,15,0,12,0,12]
[null,"No disability",228,74,681,157,327,85,263,77,124,44,146,80,568,105,1196,263,3094,257,543,183,176,69,85,35,175,76,1164,161,47,36,248,90,101,45,151,65,1240,176,393,111,886,137,311,113,933,200]
[null,"18 to 64  years:",950,143,1955,195,941,155,1466,264,542,118,537,138,2321,247,3169,243,15171,394,1318,260,410,95,308,74,597,168,3993,217,215,114,719,106,441,89,514,128,4168,267,1167,219,1954,157,1061,215,2543,164]
[null,"With one type of disability",99,53,120,109,56,36,63,37,36,22,29,21,152,113,189,137,1286,315,88,52,12,13,14,11,25,19,202,80,31,26,22,15,21,12,12,8,259,147,56,37,129,81,59,45,173,87]
[null,"With two or more types of disability",109,64,0,12,15,21,41,34,30,19,36,30,98,54,183,133,545,181,89,51,12,12,14,14,27,17,158,105,13,13,15,17,23,21,19,10,323,150,56,36,61,39,28,19,130,67]
[null,"No disability",742,115,1835,198,870,151,1362,268,476,109,472,128,2071,260,2797,287,13340,523,1141,230,386,92,280,68,545,166,3633,236,171,92,682,106,397,88,483,127,3586,310,1055,207,1764,175,974,209,2240,179]
[null,"65 years and over:",421,114,885,203,443,100,536,133,180,51,291,64,1058,304,805,203,3966,301,392,87,198,73,157,36,319,119,1277,193,33,11,235,41,129,30,243,55,1876,275,329,81,771,114,599,208,612,114]
[null,"With one type of disability",43,25,200,103,32,31,76,37,29,18,40,19,230,121,79,66,723,172,52,32,44,32,29,16,40,20,182,120,4,3,43,17,15,8,27,16,254,126,46,40,173,95,63,30,119,58]
[null,"With two or more types of disability",22,18,100,76,23,43,56,34,15,13,12,9,292,225,154,132,642,216,43,27,30,27,11,8,73,44,73,66,7,7,24,13,21,17,32,18,438,196,46,35,99,48,89,72,159,78]
[null,"No disability",356,107,585,173,388,91,404,110,136,46,239,52,536,187,572,173,2601,297,297,78,124,50,117,30,206,107,1022,227,22,11,168,35,93,28,184,46,1184,217,237,63,499,84,447,143,334,90]
[]
[]
[]
[]
[]
[]
[]
[]
[]
[]
[]
[]
[]
[]
[]
[]
[]
[]
[]
[]
[]
[]
[]
[]
[]
[]
[]
[]
[]
[]
[]
[]
[]
[]
[]
[]
[]
[]
[]
[]
[]
[]
[]
[]
[]
[]
[]
[]
[]
[]
[]
[]
[]
[]
[]
[]
[]
[]
[]
[]
[]
[]
[]
[]
[]
[]
[]
[]
[]
[]
[]
[]
[]
[]
[]
[]
[]
[]
[]
[]
["B18108. AGE BY NUMBER OF DISABILITIES\n\n"]
["Universe:  Civilian noninstitutionalized population"]
["Data Set: 2013-2017 American Community Survey 5-Year Estimates"]
[]
[null,null,"Alstead",null,"Chesterfield",null,"Dublin",null,"Fitzwilliam",null,"Gilsum",null,"Harrisville",null,"Hinsdale",null,"Jaffrey",null,"Keene",null,"Marlborough",null,"Marlow",null,"Nelson",null,"Richmond",null,"Rindge",null,"Roxbury",null,"Stoddard",null,"Sullivan",null,"Surry",null,"Swanzey",null,"Troy",null,"Walpole",null,"Westmoreland",null,"Winchester"]
[null," ","Estimate","Margin of Error","Estimate","Margin of Error","Estimate","Margin of Error","Estimate","Margin of Error","Estimate","Margin of Error","Estimate","Margin of Error","Estimate","Margin of Error","Estimate","Margin of Error","Estimate","Margin of Error","Estimate","Margin of Error","Estimate","Margin of Error","Estimate","Margin of Error","Estimate","Margin of Error","Estimate","Margin of Error","Estimate","Margin of Error","Estimate","Margin of Error","Estimate","Margin of Error","Estimate","Margin of Error","Estimate","Margin of Error","Estimate","Margin of Error","Estimate","Margin of Error","Estimate","Margin of Error","Estimate","Margin of Error"]
[null,"Total:",1847,227,3566,15,1487,174,2294,213,702,80,913,140,3925,20,22723,148,23058,228,2119,295,708,115,575,94,1239,175,6000,44,216,57,1193,185,725,118,884,130,7169,37,2182,310,3809,18,1696,212,4146,122]
[null,"Under 18 years:",316,99,844,193,276,76,374,109,116,31,96,28,756,123,3719,251,3714,315,352,107,146,51,100,36,230,79,1252,198,36,17,211,80,174,63,166,54,1302,256,470,166,693,153,288,81,894,169]
[null,"With one type of disability",5,6,13,21,14,18,0,11,0,11,0,11,11,17,207,134,192,126,0,11,3,4,11,13,40,34,45,44,2,5,5,6,0,11,2,3,0,16,1997,23,0,11,11,13,10,16]
[null,"With two or more types of disability",0,11,13,19,3,5,0,11,0,11,0,11,12,19,25,27,21,24,0,11,0,11,0,11,7,9,11,16,0,11,0,11,0,11,0,11,25,37,18,29,0,11,3,5,39,64]
[null,"No disability",311,99,818,184,259,82,374,109,116,31,96,28,733,127,3487,263,3501,318,352,107,143,50,89,33,183,56,1196,182,34,16,206,79,174,63,164,54,1277,251,437,159,693,153,274,80,845,153]
[null,"18 to 64  years:",1170,183,1933,152,934,139,1420,184,470,72,532,99,2420,165,15431,322,15793,364,1347,221,441,71,366,72,830,134,3922,197,149,41,718,136,425,63,535,85,4625,267,1415,212,2389,148,1098,153,2572,143]
[null,"With one type of disability",51,40,100,70,42,29,104,50,48,19,9,8,171,86,900,191,846,206,145,75,32,17,27,16,54,36,176,80,7,6,44,21,25,14,15,12,444,181,105,52,111,73,30,17,126,60]
[null,"With two or more types of disability",28,17,87,90,3,5,75,37,28,17,19,18,122,73,659,200,638,162,17,16,16,12,13,8,24,18,121,57,5,7,28,17,9,12,4,4,277,142,71,44,122,73,20,17,153,86]
[null,"No disability",1091,175,1746,184,889,133,1241,173,394,68,504,99,2127,145,13872,381,14309,444,1185,208,393,70,326,66,752,126,3625,240,137,38,646,128,391,62,516,83,3904,279,1239,218,2156,160,1048,151,2293,176]
[null,"65 years and over:",361,88,789,196,277,57,500,107,116,28,285,72,749,143,3573,247,3551,283,420,94,121,31,109,34,179,42,826,122,31,15,264,66,126,28,183,40,1242,195,297,79,727,105,310,87,680,103]
[null,"With one type of disability",82,29,88,61,37,19,63,36,27,11,46,57,129,63,602,172,638,139,54,31,18,10,19,11,50,23,123,62,5,5,62,35,16,12,26,14,173,85,11,12,125,67,20,15,149,61]
[null,"With two or more types of disability",35,17,86,66,21,16,71,41,11,10,12,10,167,104,793,160,666,176,28,18,15,10,6,5,26,19,172,82,6,7,15,9,27,15,31,17,309,151,92,49,139,66,33,21,125,66]
[null,"No disability",244,80,615,188,219,55,366,90,78,22,227,51,453,100,2178,243,2247,232,338,80,88,26,84,29,103,33,531,110,20,9,187,49,83,21,126,34,760,167,194,66,463,92,257,82,406,83]
[]
[]
[]
[]
[]
[]
[]
[]
[]
[]
[]
[]
["B18108. AGE BY NUMBER OF DISABILITIES\n\n"]
["Universe:  Civilian noninstitutionalized population"]
["Data Set: 2008-2012 American Community Survey 5-Year Estimates"]
[]
[null,null,"Alstead",null,"Chesterfield",null,"Dublin",null,"Fitzwilliam",null,"Gilsum",null,"Harrisville",null,"Hinsdale",null,"Jaffrey",null,"Keene",null,"Marlborough",null,"Marlow",null,"Nelson",null,"Richmond",null,"Rindge",null,"Roxbury",null,"Stoddard",null,"Sullivan",null,"Surry",null,"Swanzey",null,"Troy",null,"Walpole",null,"Westmoreland",null,"Winchester"]
[null," ","Estimate","Margin of Error","Estimate","Margin of Error","Estimate","Margin of Error","Estimate","Margin of Error","Estimate","Margin of Error","Estimate","Margin of Error","Estimate","Margin of Error","Estimate","Margin of Error","Estimate","Margin of Error","Estimate","Margin of Error","Estimate","Margin of Error","Estimate","Margin of Error","Estimate","Margin of Error","Estimate","Margin of Error","Estimate","Margin of Error","Estimate","Margin of Error","Estimate","Margin of Error","Estimate","Margin of Error","Estimate","Margin of Error","Estimate","Margin of Error","Estimate","Margin of Error","Estimate","Margin of Error","Estimate","Margin of Error"]
[null,"Total:",1883,173,3617,22,1709,209,2576,268,542,75,923,139,4046,18,5394,77,23088,148,1977,269,890,185,729,156,992,145,5982,34,219,37,1045,181,691,108,821,110,7236,29,2112,274,3731,19,1919,226,4271,35]
[null,"Under 5 years:",461,116,676,129,398,118,497,146,54,25,162,62,784,148,1302,184,3755,312,380,124,186,70,111,49,222,85,1273,151,47,20,227,87,157,55,115,35,1523,150,476,114,918,130,440,110,938,132]
[null,"With either a vision or hearing difficulty but not both",0,11,17,25,24,22,15,18,0,11,0,11,155,120,29,35,146,76,0,11,11,11,19,25,9,8,15,16,0,11,13,11,22,27,0,11,134,105,23,22,55,48,8,10,43,48]
[null,"With both hearing and vision difficulty",9,9,0,11,0,11,0,11,0,11,0,11,0,11,0,16,0,21,0,11,0,11,0,11,8,9,15,24,0,11,9,13,4,6,0,11,5,10,0,11,27,40,3,5,19,23]
[null,"No disability",452,117,659,131,374,113,482,144,54,25,162,62,629,122,1273,185,3609,329,380,124,175,66,92,42,205,82,1243,155,47,20,205,81,131,46,115,35,1384,175,453,114,836,143,429,108,876,140]
[null,"5 to 17  years:",1153,121,2274,201,1018,158,1718,165,393,65,616,89,2493,153,3312,179,15990,334,1276,197,547,147,493,112,668,91,4181,151,130,27,649,126,453,74,560,88,4640,176,1376,202,2285,113,1221,176,2810,137]
[null,"With one type of disability",87,37,126,84,45,22,58,34,30,16,31,20,301,107,109,61,721,185,48,29,32,20,19,16,43,27,154,67,7,5,34,24,39,18,21,14,137,77,46,30,131,61,47,27,243,100]
[null,"With two or more types of disability",69,45,25,26,55,64,51,35,19,14,10,9,223,123,72,48,619,188,12,13,32,19,6,6,15,11,102,53,4,7,21,17,11,10,3,4,203,106,114,61,105,50,7,7,84,50]
[null,"No disability",997,109,2123,219,918,139,1609,167,344,61,575,84,1969,166,3131,192,14650,444,1216,195,483,139,468,111,610,88,3925,163,119,26,594,120,403,66,536,85,4300,227,1216,195,2049,135,1167,172,2483,187]
[null,"18 to 34  years:",269,70,667,222,293,81,361,84,95,28,145,46,769,128,780,135,3343,193,321,72,157,49,125,41,102,28,528,88,42,19,169,50,81,31,146,37,1073,138,260,73,528,110,258,90,523,85]
[null,"With one type of disability",42,17,81,51,31,17,44,23,17,12,16,15,196,87,119,51,493,119,102,41,37,21,33,18,24,16,50,37,2,3,26,28,10,8,19,25,174,76,73,41,112,65,26,20,84,49]
[null,"With two or more types of disability",27,17,127,97,56,60,64,45,16,10,31,31,158,62,137,78,713,154,34,25,12,10,9,7,23,12,115,52,3,4,13,9,10,8,9,8,138,79,25,20,70,41,41,24,92,58]
[null,"No disability",200,68,459,164,206,55,253,62,62,22,98,34,415,138,524,123,2137,206,185,62,108,38,83,33,55,21,363,79,37,20,130,45,61,27,118,29,761,157,162,56,346,85,191,67,347,73]

{"sheet":"SData_B19001HseHldInc","index":55,"n_rows":47,"n_cols":50,"rows_kept":47,"cut":false,"hidden":true,"merged":[]}
["GEO_ID","GEO_ID2","SUMLEVEL",{"$f":"[1]ACS_16_5YR_B19001_with_ann!C1","v":"NAME"},{"$f":"[1]ACS_16_5YR_B19001_with_ann!D1","v":"B19001_001E"},{"$f":"[1]ACS_16_5YR_B19001_with_ann!E1","v":"B19001_001M"},{"$f":"[1]ACS_16_5YR_B19001_with_ann!F1","v":"B19001_002E"},{"$f":"[1]ACS_16_5YR_B19001_with_ann!G1","v":"B19001_002M"},{"$f":"[1]ACS_16_5YR_B19001_with_ann!H1","v":"B19001_003E"},{"$f":"[1]ACS_16_5YR_B19001_with_ann!I1","v":"B19001_003M"},{"$f":"[1]ACS_16_5YR_B19001_with_ann!J1","v":"B19001_004E"},{"$f":"[1]ACS_16_5YR_B19001_with_ann!K1","v":"B19001_004M"},{"$f":"[1]ACS_16_5YR_B19001_with_ann!L1","v":"B19001_005E"},{"$f":"[1]ACS_16_5YR_B19001_with_ann!M1","v":"B19001_005M"},{"$f":"[1]ACS_16_5YR_B19001_with_ann!N1","v":"B19001_006E"},{"$f":"[1]ACS_16_5YR_B19001_with_ann!O1","v":"B19001_006M"},{"$f":"[1]ACS_16_5YR_B19001_with_ann!P1","v":"B19001_007E"},{"$f":"[1]ACS_16_5YR_B19001_with_ann!Q1","v":"B19001_007M"},{"$f":"[1]ACS_16_5YR_B19001_with_ann!R1","v":"B19001_008E"},{"$f":"[1]ACS_16_5YR_B19001_with_ann!S1","v":"B19001_008M"},{"$f":"[1]ACS_16_5YR_B19001_with_ann!T1","v":"B19001_009E"},{"$f":"[1]ACS_16_5YR_B19001_with_ann!U1","v":"B19001_009M"},{"$f":"[1]ACS_16_5YR_B19001_with_ann!V1","v":"B19001_010E"},{"$f":"[1]ACS_16_5YR_B19001_with_ann!W1","v":"B19001_010M"},{"$f":"[1]ACS_16_5YR_B19001_with_ann!X1","v":"B19001_011E"},{"$f":"[1]ACS_16_5YR_B19001_with_ann!Y1","v":"B19001_011M"},{"$f":"[1]ACS_16_5YR_B19001_with_ann!Z1","v":"B19001_012E"},{"$f":"[1]ACS_16_5YR_B19001_with_ann!AA1","v":"B19001_012M"},{"$f":"[1]ACS_16_5YR_B19001_with_ann!AB1","v":"B19001_013E"},{"$f":"[1]ACS_16_5YR_B19001_with_ann!AC1","v":"B19001_013M"},{"$f":"[1]ACS_16_5YR_B19001_with_ann!AD1","v":"B19001_014E"},{"$f":"[1]ACS_16_5YR_B19001_with_ann!AE1","v":"B19001_014M"},{"$f":"[1]ACS_16_5YR_B19001_with_ann!AF1","v":"B19001_015E"},{"$f":"[1]ACS_16_5YR_B19001_with_ann!AG1","v":"B19001_015M"},{"$f":"[1]ACS_16_5YR_B19001_with_ann!AH1","v":"B19001_016E"},{"$f":"[1]ACS_16_5YR_B19001_with_ann!AI1","v":"B19001_016M"},{"$f":"[1]ACS_16_5YR_B19001_with_ann!AJ1","v":"B19001_017E"},{"$f":"[1]ACS_16_5YR_B19001_with_ann!AK1","v":"B19001_017M"}]
["Geography Identifier","Geography Identifier","Geographic Summary Level",{"$f":"[1]ACS_16_5YR_B19001_with_ann!C2","v":"Geographic Area Name"},{"$f":"[1]ACS_16_5YR_B19001_with_ann!D2","v":"Estimate!!Total:"},{"$f":"[1]ACS_16_5YR_B19001_with_ann!E2","v":"Margin of Error!!Total:"},{"$f":"[1]ACS_16_5YR_B19001_with_ann!F2","v":"Estimate!!Total:!!Less than $10,000"},{"$f":"[1]ACS_16_5YR_B19001_with_ann!G2","v":"Margin of Error!!Total:!!Less than $10,000"},{"$f":"[1]ACS_16_5YR_B19001_with_ann!H2","v":"Estimate!!Total:!!$10,000 to $14,999"},{"$f":"[1]ACS_16_5YR_B19001_with_ann!I2","v":"Margin of Error!!Total:!!$10,000 to $14,999"},{"$f":"[1]ACS_16_5YR_B19001_with_ann!J2","v":"Estimate!!Total:!!$15,000 to $19,999"},{"$f":"[1]ACS_16_5YR_B19001_with_ann!K2","v":"Margin of Error!!Total:!!$15,000 to $19,999"},{"$f":"[1]ACS_16_5YR_B19001_with_ann!L2","v":"Estimate!!Total:!!$20,000 to $24,999"},{"$f":"[1]ACS_16_5YR_B19001_with_ann!M2","v":"Margin of Error!!Total:!!$20,000 to $24,999"},{"$f":"[1]ACS_16_5YR_B19001_with_ann!N2","v":"Estimate!!Total:!!$25,000 to $29,999"},{"$f":"[1]ACS_16_5YR_B19001_with_ann!O2","v":"Margin of Error!!Total:!!$25,000 to $29,999"},{"$f":"[1]ACS_16_5YR_B19001_with_ann!P2","v":"Estimate!!Total:!!$30,000 to $34,999"},{"$f":"[1]ACS_16_5YR_B19001_with_ann!Q2","v":"Margin of Error!!Total:!!$30,000 to $34,999"},{"$f":"[1]ACS_16_5YR_B19001_with_ann!R2","v":"Estimate!!Total:!!$35,000 to $39,999"},{"$f":"[1]ACS_16_5YR_B19001_with_ann!S2","v":"Margin of Error!!Total:!!$35,000 to $39,999"},{"$f":"[1]ACS_16_5YR_B19001_with_ann!T2","v":"Estimate!!Total:!!$40,000 to $44,999"},{"$f":"[1]ACS_16_5YR_B19001_with_ann!U2","v":"Margin of Error!!Total:!!$40,000 to $44,999"},{"$f":"[1]ACS_16_5YR_B19001_with_ann!V2","v":"Estimate!!Total:!!$45,000 to $49,999"},{"$f":"[1]ACS_16_5YR_B19001_with_ann!W2","v":"Margin of Error!!Total:!!$45,000 to $49,999"},{"$f":"[1]ACS_16_5YR_B19001_with_ann!X2","v":"Estimate!!Total:!!$50,000 to $59,999"},{"$f":"[1]ACS_16_5YR_B19001_with_ann!Y2","v":"Margin of Error!!Total:!!$50,000 to $59,999"},{"$f":"[1]ACS_16_5YR_B19001_with_ann!Z2","v":"Estimate!!Total:!!$60,000 to $74,999"},{"$f":"[1]ACS_16_5YR_B19001_with_ann!AA2","v":"Margin of Error!!Total:!!$60,000 to $74,999"},{"$f":"[1]ACS_16_5YR_B19001_with_ann!AB2","v":"Estimate!!Total:!!$75,000 to $99,999"},{"$f":"[1]ACS_16_5YR_B19001_with_ann!AC2","v":"Margin of Error!!Total:!!$75,000 to $99,999"},{"$f":"[1]ACS_16_5YR_B19001_with_ann!AD2","v":"Estimate!!Total:!!$100,000 to $124,999"},{"$f":"[1]ACS_16_5YR_B19001_with_ann!AE2","v":"Margin of Error!!Total:!!$100,000 to $124,999"},{"$f":"[1]ACS_16_5YR_B19001_with_ann!AF2","v":"Estimate!!Total:!!$125,000 to $149,999"},{"$f":"[1]ACS_16_5YR_B19001_with_ann!AG2","v":"Margin of Error!!Total:!!$125,000 to $149,999"},{"$f":"[1]ACS_16_5YR_B19001_with_ann!AH2","v":"Estimate!!Total:!!$150,000 to $199,999"},{"$f":"[1]ACS_16_5YR_B19001_with_ann!AI2","v":"Margin of Error!!Total:!!$150,000 to $199,999"},{"$f":"[1]ACS_16_5YR_B19001_with_ann!AJ2","v":"Estimate!!Total:!!$200,000 or more"},{"$f":"[1]ACS_16_5YR_B19001_with_ann!AK2","v":"Margin of Error!!Total:!!$200,000 or more"}]
["06000US3300500820","0600000US3300512260","060",{"$f":"[1]ACS_16_5YR_B19001_with_ann!C44","v":"Alstead"},{"$f":"[1]ACS_16_5YR_B19001_with_ann!D44","v":723},{"$f":"[1]ACS_16_5YR_B19001_with_ann!E44","v":97},{"$f":"[1]ACS_16_5YR_B19001_with_ann!F44","v":54},{"$f":"[1]ACS_16_5YR_B19001_with_ann!G44","v":45},{"$f":"[1]ACS_16_5YR_B19001_with_ann!H44","v":47},{"$f":"[1]ACS_16_5YR_B19001_with_ann!I44","v":48},{"$f":"[1]ACS_16_5YR_B19001_with_ann!J44","v":23},{"$f":"[1]ACS_16_5YR_B19001_with_ann!K44","v":13},{"$f":"[1]ACS_16_5YR_B19001_with_ann!L44","v":73},{"$f":"[1]ACS_16_5YR_B19001_with_ann!M44","v":57},{"$f":"[1]ACS_16_5YR_B19001_with_ann!N44","v":6},{"$f":"[1]ACS_16_5YR_B19001_with_ann!O44","v":7},{"$f":"[1]ACS_16_5YR_B19001_with_ann!P44","v":29},{"$f":"[1]ACS_16_5YR_B19001_with_ann!Q44","v":23},{"$f":"[1]ACS_16_5YR_B19001_with_ann!R44","v":27},{"$f":"[1]ACS_16_5YR_B19001_with_ann!S44","v":15},{"$f":"[1]ACS_16_5YR_B19001_with_ann!T44","v":11},{"$f":"[1]ACS_16_5YR_B19001_with_ann!U44","v":12},{"$f":"[1]ACS_16_5YR_B19001_with_ann!V44","v":32},{"$f":"[1]ACS_16_5YR_B19001_with_ann!W44","v":25},{"$f":"[1]ACS_16_5YR_B19001_with_ann!X44","v":120},{"$f":"[1]ACS_16_5YR_B19001_with_ann!Y44","v":59},{"$f":"[1]ACS_16_5YR_B19001_with_ann!Z44","v":24},{"$f":"[1]ACS_16_5YR_B19001_with_ann!AA44","v":16},{"$f":"[1]ACS_16_5YR_B19001_with_ann!AB44","v":74},{"$f":"[1]ACS_16_5YR_B19001_with_ann!AC44","v":30},{"$f":"[1]ACS_16_5YR_B19001_with_ann!AD44","v":70},{"$f":"[1]ACS_16_5YR_B19001_with_ann!AE44","v":29},{"$f":"[1]ACS_16_5YR_B19001_with_ann!AF44","v":34},{"$f":"[1]ACS_16_5YR_B19001_with_ann!AG44","v":18},{"$f":"[1]ACS_16_5YR_B19001_with_ann!AH44","v":75},{"$f":"[1]ACS_16_5YR_B19001_with_ann!AI44","v":32},{"$f":"[1]ACS_16_5YR_B19001_with_ann!AJ44","v":24},{"$f":"[1]ACS_16_5YR_B19001_with_ann!AK44","v":14}]
["06000US3300512260","0600000US3300519140","060",{"$f":"[1]ACS_16_5YR_B19001_with_ann!C45","v":"Chesterfield"},{"$f":"[1]ACS_16_5YR_B19001_with_ann!D45","v":1366},{"$f":"[1]ACS_16_5YR_B19001_with_ann!E45","v":158},{"$f":"[1]ACS_16_5YR_B19001_with_ann!F45","v":0},{"$f":"[1]ACS_16_5YR_B19001_with_ann!G45","v":12},{"$f":"[1]ACS_16_5YR_B19001_with_ann!H45","v":18},{"$f":"[1]ACS_16_5YR_B19001_with_ann!I45","v":29},{"$f":"[1]ACS_16_5YR_B19001_with_ann!J45","v":39},{"$f":"[1]ACS_16_5YR_B19001_with_ann!K45","v":39},{"$f":"[1]ACS_16_5YR_B19001_with_ann!L45","v":33},{"$f":"[1]ACS_16_5YR_B19001_with_ann!M45","v":38},{"$f":"[1]ACS_16_5YR_B19001_with_ann!N45","v":86},{"$f":"[1]ACS_16_5YR_B19001_with_ann!O45","v":90},{"$f":"[1]ACS_16_5YR_B19001_with_ann!P45","v":37},{"$f":"[1]ACS_16_5YR_B19001_with_ann!Q45","v":56},{"$f":"[1]ACS_16_5YR_B19001_with_ann!R45","v":46},{"$f":"[1]ACS_16_5YR_B19001_with_ann!S45","v":44},{"$f":"[1]ACS_16_5YR_B19001_with_ann!T45","v":73},{"$f":"[1]ACS_16_5YR_B19001_with_ann!U45","v":88},{"$f":"[1]ACS_16_5YR_B19001_with_ann!V45","v":16},{"$f":"[1]ACS_16_5YR_B19001_with_ann!W45","v":24},{"$f":"[1]ACS_16_5YR_B19001_with_ann!X45","v":15},{"$f":"[1]ACS_16_5YR_B19001_with_ann!Y45","v":24},{"$f":"[1]ACS_16_5YR_B19001_with_ann!Z45","v":126},{"$f":"[1]ACS_16_5YR_B19001_with_ann!AA45","v":97},{"$f":"[1]ACS_16_5YR_B19001_with_ann!AB45","v":108},{"$f":"[1]ACS_16_5YR_B19001_with_ann!AC45","v":78},{"$f":"[1]ACS_16_5YR_B19001_with_ann!AD45","v":206},{"$f":"[1]ACS_16_5YR_B19001_with_ann!AE45","v":134},{"$f":"[1]ACS_16_5YR_B19001_with_ann!AF45","v":184},{"$f":"[1]ACS_16_5YR_B19001_with_ann!AG45","v":96},{"$f":"[1]ACS_16_5YR_B19001_with_ann!AH45","v":247},{"$f":"[1]ACS_16_5YR_B19001_with_ann!AI45","v":132},{"$f":"[1]ACS_16_5YR_B19001_with_ann!AJ45","v":132},{"$f":"[1]ACS_16_5YR_B19001_with_ann!AK45","v":80}]
["06000US3300519140","0600000US3300526500","060",{"$f":"[1]ACS_16_5YR_B19001_with_ann!C46","v":"Dublin"},{"$f":"[1]ACS_16_5YR_B19001_with_ann!D46","v":635},{"$f":"[1]ACS_16_5YR_B19001_with_ann!E46","v":101},{"$f":"[1]ACS_16_5YR_B19001_with_ann!F46","v":24},{"$f":"[1]ACS_16_5YR_B19001_with_ann!G46","v":17},{"$f":"[1]ACS_16_5YR_B19001_with_ann!H46","v":41},{"$f":"[1]ACS_16_5YR_B19001_with_ann!I46","v":53},{"$f":"[1]ACS_16_5YR_B19001_with_ann!J46","v":3},{"$f":"[1]ACS_16_5YR_B19001_with_ann!K46","v":3},{"$f":"[1]ACS_16_5YR_B19001_with_ann!L46","v":9},{"$f":"[1]ACS_16_5YR_B19001_with_ann!M46","v":8},{"$f":"[1]ACS_16_5YR_B19001_with_ann!N46","v":18},{"$f":"[1]ACS_16_5YR_B19001_with_ann!O46","v":14},{"$f":"[1]ACS_16_5YR_B19001_with_ann!P46","v":7},{"$f":"[1]ACS_16_5YR_B19001_with_ann!Q46","v":7},{"$f":"[1]ACS_16_5YR_B19001_with_ann!R46","v":16},{"$f":"[1]ACS_16_5YR_B19001_with_ann!S46","v":19},{"$f":"[1]ACS_16_5YR_B19001_with_ann!T46","v":3},{"$f":"[1]ACS_16_5YR_B19001_with_ann!U46","v":4},{"$f":"[1]ACS_16_5YR_B19001_with_ann!V46","v":19},{"$f":"[1]ACS_16_5YR_B19001_with_ann!W46","v":16},{"$f":"[1]ACS_16_5YR_B19001_with_ann!X46","v":58},{"$f":"[1]ACS_16_5YR_B19001_with_ann!Y46","v":27},{"$f":"[1]ACS_16_5YR_B19001_with_ann!Z46","v":33},{"$f":"[1]ACS_16_5YR_B19001_with_ann!AA46","v":27},{"$f":"[1]ACS_16_5YR_B19001_with_ann!AB46","v":109},{"$f":"[1]ACS_16_5YR_B19001_with_ann!AC46","v":65},{"$f":"[1]ACS_16_5YR_B19001_with_ann!AD46","v":72},{"$f":"[1]ACS_16_5YR_B19001_with_ann!AE46","v":29},{"$f":"[1]ACS_16_5YR_B19001_with_ann!AF46","v":43},{"$f":"[1]ACS_16_5YR_B19001_with_ann!AG46","v":20},{"$f":"[1]ACS_16_5YR_B19001_with_ann!AH46","v":72},{"$f":"[1]ACS_16_5YR_B19001_with_ann!AI46","v":31},{"$f":"[1]ACS_16_5YR_B19001_with_ann!AJ46","v":108},{"$f":"[1]ACS_16_5YR_B19001_with_ann!AK46","v":40}]
["06000US3300526500","0600000US3300529220","060",{"$f":"[1]ACS_16_5YR_B19001_with_ann!C47","v":"Fitzwilliam"},{"$f":"[1]ACS_16_5YR_B19001_with_ann!D47","v":1013},{"$f":"[1]ACS_16_5YR_B19001_with_ann!E47","v":154},{"$f":"[1]ACS_16_5YR_B19001_with_ann!F47","v":59},{"$f":"[1]ACS_16_5YR_B19001_with_ann!G47","v":36},{"$f":"[1]ACS_16_5YR_B19001_with_ann!H47","v":44},{"$f":"[1]ACS_16_5YR_B19001_with_ann!I47","v":33},{"$f":"[1]ACS_16_5YR_B19001_with_ann!J47","v":29},{"$f":"[1]ACS_16_5YR_B19001_with_ann!K47","v":29},{"$f":"[1]ACS_16_5YR_B19001_with_ann!L47","v":19},{"$f":"[1]ACS_16_5YR_B19001_with_ann!M47","v":21},{"$f":"[1]ACS_16_5YR_B19001_with_ann!N47","v":46},{"$f":"[1]ACS_16_5YR_B19001_with_ann!O47","v":32},{"$f":"[1]ACS_16_5YR_B19001_with_ann!P47","v":19},{"$f":"[1]ACS_16_5YR_B19001_with_ann!Q47","v":19},{"$f":"[1]ACS_16_5YR_B19001_with_ann!R47","v":26},{"$f":"[1]ACS_16_5YR_B19001_with_ann!S47","v":27},{"$f":"[1]ACS_16_5YR_B19001_with_ann!T47","v":40},{"$f":"[1]ACS_16_5YR_B19001_with_ann!U47","v":23},{"$f":"[1]ACS_16_5YR_B19001_with_ann!V47","v":30},{"$f":"[1]ACS_16_5YR_B19001_with_ann!W47","v":16},{"$f":"[1]ACS_16_5YR_B19001_with_ann!X47","v":94},{"$f":"[1]ACS_16_5YR_B19001_with_ann!Y47","v":51},{"$f":"[1]ACS_16_5YR_B19001_with_ann!Z47","v":64},{"$f":"[1]ACS_16_5YR_B19001_with_ann!AA47","v":37},{"$f":"[1]ACS_16_5YR_B19001_with_ann!AB47","v":186},{"$f":"[1]ACS_16_5YR_B19001_with_ann!AC47","v":103},{"$f":"[1]ACS_16_5YR_B19001_with_ann!AD47","v":110},{"$f":"[1]ACS_16_5YR_B19001_with_ann!AE47","v":51},{"$f":"[1]ACS_16_5YR_B19001_with_ann!AF47","v":66},{"$f":"[1]ACS_16_5YR_B19001_with_ann!AG47","v":32},{"$f":"[1]ACS_16_5YR_B19001_with_ann!AH47","v":77},{"$f":"[1]ACS_16_5YR_B19001_with_ann!AI47","v":45},{"$f":"[1]ACS_16_5YR_B19001_with_ann!AJ47","v":104},{"$f":"[1]ACS_16_5YR_B19001_with_ann!AK47","v":46}]
["06000US3300529220","0600000US3300534420","060",{"$f":"[1]ACS_16_5YR_B19001_with_ann!C48","v":"Gilsum"},{"$f":"[1]ACS_16_5YR_B19001_with_ann!D48","v":310},{"$f":"[1]ACS_16_5YR_B19001_with_ann!E48","v":51},{"$f":"[1]ACS_16_5YR_B19001_with_ann!F48","v":2},{"$f":"[1]ACS_16_5YR_B19001_with_ann!G48","v":4},{"$f":"[1]ACS_16_5YR_B19001_with_ann!H48","v":12},{"$f":"[1]ACS_16_5YR_B19001_with_ann!I48","v":12},{"$f":"[1]ACS_16_5YR_B19001_with_ann!J48","v":8},{"$f":"[1]ACS_16_5YR_B19001_with_ann!K48","v":6},{"$f":"[1]ACS_16_5YR_B19001_with_ann!L48","v":4},{"$f":"[1]ACS_16_5YR_B19001_with_ann!M48","v":5},{"$f":"[1]ACS_16_5YR_B19001_with_ann!N48","v":11},{"$f":"[1]ACS_16_5YR_B19001_with_ann!O48","v":7},{"$f":"[1]ACS_16_5YR_B19001_with_ann!P48","v":2},{"$f":"[1]ACS_16_5YR_B19001_with_ann!Q48","v":3},{"$f":"[1]ACS_16_5YR_B19001_with_ann!R48","v":13},{"$f":"[1]ACS_16_5YR_B19001_with_ann!S48","v":12},{"$f":"[1]ACS_16_5YR_B19001_with_ann!T48","v":22},{"$f":"[1]ACS_16_5YR_B19001_with_ann!U48","v":26},{"$f":"[1]ACS_16_5YR_B19001_with_ann!V48","v":21},{"$f":"[1]ACS_16_5YR_B19001_with_ann!W48","v":14},{"$f":"[1]ACS_16_5YR_B19001_with_ann!X48","v":24},{"$f":"[1]ACS_16_5YR_B19001_with_ann!Y48","v":12},{"$f":"[1]ACS_16_5YR_B19001_with_ann!Z48","v":52},{"$f":"[1]ACS_16_5YR_B19001_with_ann!AA48","v":25},{"$f":"[1]ACS_16_5YR_B19001_with_ann!AB48","v":38},{"$f":"[1]ACS_16_5YR_B19001_with_ann!AC48","v":17},{"$f":"[1]ACS_16_5YR_B19001_with_ann!AD48","v":26},{"$f":"[1]ACS_16_5YR_B19001_with_ann!AE48","v":13},{"$f":"[1]ACS_16_5YR_B19001_with_ann!AF48","v":16},{"$f":"[1]ACS_16_5YR_B19001_with_ann!AG48","v":13},{"$f":"[1]ACS_16_5YR_B19001_with_ann!AH48","v":44},{"$f":"[1]ACS_16_5YR_B19001_with_ann!AI48","v":22},{"$f":"[1]ACS_16_5YR_B19001_with_ann!AJ48","v":15},{"$f":"[1]ACS_16_5YR_B19001_with_ann!AK48","v":8}]
["06000US3300534420","0600000US3300536660","060",{"$f":"[1]ACS_16_5YR_B19001_with_ann!C49","v":"Harrisville"},{"$f":"[1]ACS_16_5YR_B19001_with_ann!D49","v":416},{"$f":"[1]ACS_16_5YR_B19001_with_ann!E49","v":75},{"$f":"[1]ACS_16_5YR_B19001_with_ann!F49","v":7},{"$f":"[1]ACS_16_5YR_B19001_with_ann!G49","v":9},{"$f":"[1]ACS_16_5YR_B19001_with_ann!H49","v":3},{"$f":"[1]ACS_16_5YR_B19001_with_ann!I49","v":4},{"$f":"[1]ACS_16_5YR_B19001_with_ann!J49","v":3},{"$f":"[1]ACS_16_5YR_B19001_with_ann!K49","v":4},{"$f":"[1]ACS_16_5YR_B19001_with_ann!L49","v":7},{"$f":"[1]ACS_16_5YR_B19001_with_ann!M49","v":7},{"$f":"[1]ACS_16_5YR_B19001_with_ann!N49","v":5},{"$f":"[1]ACS_16_5YR_B19001_with_ann!O49","v":6},{"$f":"[1]ACS_16_5YR_B19001_with_ann!P49","v":10},{"$f":"[1]ACS_16_5YR_B19001_with_ann!Q49","v":10},{"$f":"[1]ACS_16_5YR_B19001_with_ann!R49","v":0},{"$f":"[1]ACS_16_5YR_B19001_with_ann!S49","v":12},{"$f":"[1]ACS_16_5YR_B19001_with_ann!T49","v":21},{"$f":"[1]ACS_16_5YR_B19001_with_ann!U49","v":13},{"$f":"[1]ACS_16_5YR_B19001_with_ann!V49","v":30},{"$f":"[1]ACS_16_5YR_B19001_with_ann!W49","v":19},{"$f":"[1]ACS_16_5YR_B19001_with_ann!X49","v":25},{"$f":"[1]ACS_16_5YR_B19001_with_ann!Y49","v":23},{"$f":"[1]ACS_16_5YR_B19001_with_ann!Z49","v":51},{"$f":"[1]ACS_16_5YR_B19001_with_ann!AA49","v":25},{"$f":"[1]ACS_16_5YR_B19001_with_ann!AB49","v":81},{"$f":"[1]ACS_16_5YR_B19001_with_ann!AC49","v":33},{"$f":"[1]ACS_16_5YR_B19001_with_ann!AD49","v":50},{"$f":"[1]ACS_16_5YR_B19001_with_ann!AE49","v":25},{"$f":"[1]ACS_16_5YR_B19001_with_ann!AF49","v":13},{"$f":"[1]ACS_16_5YR_B19001_with_ann!AG49","v":10},{"$f":"[1]ACS_16_5YR_B19001_with_ann!AH49","v":43},{"$f":"[1]ACS_16_5YR_B19001_with_ann!AI49","v":20},{"$f":"[1]ACS_16_5YR_B19001_with_ann!AJ49","v":67},{"$f":"[1]ACS_16_5YR_B19001_with_ann!AK49","v":38}]
["06000US3300536660","0600000US3300538500","060",{"$f":"[1]ACS_16_5YR_B19001_with_ann!C50","v":"Hinsdale"},{"$f":"[1]ACS_16_5YR_B19001_with_ann!D50","v":1594},{"$f":"[1]ACS_16_5YR_B19001_with_ann!E50","v":139},{"$f":"[1]ACS_16_5YR_B19001_with_ann!F50","v":29},{"$f":"[1]ACS_16_5YR_B19001_with_ann!G50","v":47},{"$f":"[1]ACS_16_5YR_B19001_with_ann!H50","v":14},{"$f":"[1]ACS_16_5YR_B19001_with_ann!I50","v":21},{"$f":"[1]ACS_16_5YR_B19001_with_ann!J50","v":3},{"$f":"[1]ACS_16_5YR_B19001_with_ann!K50","v":5},{"$f":"[1]ACS_16_5YR_B19001_with_ann!L50","v":67},{"$f":"[1]ACS_16_5YR_B19001_with_ann!M50","v":50},{"$f":"[1]ACS_16_5YR_B19001_with_ann!N50","v":48},{"$f":"[1]ACS_16_5YR_B19001_with_ann!O50","v":36},{"$f":"[1]ACS_16_5YR_B19001_with_ann!P50","v":61},{"$f":"[1]ACS_16_5YR_B19001_with_ann!Q50","v":38},{"$f":"[1]ACS_16_5YR_B19001_with_ann!R50","v":62},{"$f":"[1]ACS_16_5YR_B19001_with_ann!S50","v":48},{"$f":"[1]ACS_16_5YR_B19001_with_ann!T50","v":96},{"$f":"[1]ACS_16_5YR_B19001_with_ann!U50","v":93},{"$f":"[1]ACS_16_5YR_B19001_with_ann!V50","v":10},{"$f":"[1]ACS_16_5YR_B19001_with_ann!W50","v":15},{"$f":"[1]ACS_16_5YR_B19001_with_ann!X50","v":168},{"$f":"[1]ACS_16_5YR_B19001_with_ann!Y50","v":130},{"$f":"[1]ACS_16_5YR_B19001_with_ann!Z50","v":339},{"$f":"[1]ACS_16_5YR_B19001_with_ann!AA50","v":191},{"$f":"[1]ACS_16_5YR_B19001_with_ann!AB50","v":185},{"$f":"[1]ACS_16_5YR_B19001_with_ann!AC50","v":84},{"$f":"[1]ACS_16_5YR_B19001_with_ann!AD50","v":118},{"$f":"[1]ACS_16_5YR_B19001_with_ann!AE50","v":67},{"$f":"[1]ACS_16_5YR_B19001_with_ann!AF50","v":136},{"$f":"[1]ACS_16_5YR_B19001_with_ann!AG50","v":72},{"$f":"[1]ACS_16_5YR_B19001_with_ann!AH50","v":165},{"$f":"[1]ACS_16_5YR_B19001_with_ann!AI50","v":93},{"$f":"[1]ACS_16_5YR_B19001_with_ann!AJ50","v":93},{"$f":"[1]ACS_16_5YR_B19001_with_ann!AK50","v":79}]
["06000US3300538500","0600000US3300539300","060",{"$f":"[1]ACS_16_5YR_B19001_with_ann!C51","v":"Jaffrey"},{"$f":"[1]ACS_16_5YR_B19001_with_ann!D51","v":2026},{"$f":"[1]ACS_16_5YR_B19001_with_ann!E51","v":225},{"$f":"[1]ACS_16_5YR_B19001_with_ann!F51","v":40},{"$f":"[1]ACS_16_5YR_B19001_with_ann!G51","v":38},{"$f":"[1]ACS_16_5YR_B19001_with_ann!H51","v":28},{"$f":"[1]ACS_16_5YR_B19001_with_ann!I51","v":42},{"$f":"[1]ACS_16_5YR_B19001_with_ann!J51","v":34},{"$f":"[1]ACS_16_5YR_B19001_with_ann!K51","v":34},{"$f":"[1]ACS_16_5YR_B19001_with_ann!L51","v":54},{"$f":"[1]ACS_16_5YR_B19001_with_ann!M51","v":49},{"$f":"[1]ACS_16_5YR_B19001_with_ann!N51","v":62},{"$f":"[1]ACS_16_5YR_B19001_with_ann!O51","v":50},{"$f":"[1]ACS_16_5YR_B19001_with_ann!P51","v":111},{"$f":"[1]ACS_16_5YR_B19001_with_ann!Q51","v":90},{"$f":"[1]ACS_16_5YR_B19001_with_ann!R51","v":23},{"$f":"[1]ACS_16_5YR_B19001_with_ann!S51","v":29},{"$f":"[1]ACS_16_5YR_B19001_with_ann!T51","v":22},{"$f":"[1]ACS_16_5YR_B19001_with_ann!U51","v":28},{"$f":"[1]ACS_16_5YR_B19001_with_ann!V51","v":15},{"$f":"[1]ACS_16_5YR_B19001_with_ann!W51","v":24},{"$f":"[1]ACS_16_5YR_B19001_with_ann!X51","v":111},{"$f":"[1]ACS_16_5YR_B19001_with_ann!Y51","v":77},{"$f":"[1]ACS_16_5YR_B19001_with_ann!Z51","v":435},{"$f":"[1]ACS_16_5YR_B19001_with_ann!AA51","v":258},{"$f":"[1]ACS_16_5YR_B19001_with_ann!AB51","v":183},{"$f":"[1]ACS_16_5YR_B19001_with_ann!AC51","v":107},{"$f":"[1]ACS_16_5YR_B19001_with_ann!AD51","v":397},{"$f":"[1]ACS_16_5YR_B19001_with_ann!AE51","v":164},{"$f":"[1]ACS_16_5YR_B19001_with_ann!AF51","v":186},{"$f":"[1]ACS_16_5YR_B19001_with_ann!AG51","v":119},{"$f":"[1]ACS_16_5YR_B19001_with_ann!AH51","v":115},{"$f":"[1]ACS_16_5YR_B19001_with_ann!AI51","v":71},{"$f":"[1]ACS_16_5YR_B19001_with_ann!AJ51","v":210},{"$f":"[1]ACS_16_5YR_B19001_with_ann!AK51","v":130}]
["06000US3300539300","0600000US3300545460","060",{"$f":"[1]ACS_16_5YR_B19001_with_ann!C52","v":"Keene"},{"$f":"[1]ACS_16_5YR_B19001_with_ann!D52","v":9259},{"$f":"[1]ACS_16_5YR_B19001_with_ann!E52","v":370},{"$f":"[1]ACS_16_5YR_B19001_with_ann!F52","v":224},{"$f":"[1]ACS_16_5YR_B19001_with_ann!G52","v":124},{"$f":"[1]ACS_16_5YR_B19001_with_ann!H52","v":492},{"$f":"[1]ACS_16_5YR_B19001_with_ann!I52","v":158},{"$f":"[1]ACS_16_5YR_B19001_with_ann!J52","v":634},{"$f":"[1]ACS_16_5YR_B19001_with_ann!K52","v":198},{"$f":"[1]ACS_16_5YR_B19001_with_ann!L52","v":191},{"$f":"[1]ACS_16_5YR_B19001_with_ann!M52","v":94},{"$f":"[1]ACS_16_5YR_B19001_with_ann!N52","v":288},{"$f":"[1]ACS_16_5YR_B19001_with_ann!O52","v":137},{"$f":"[1]ACS_16_5YR_B19001_with_ann!P52","v":536},{"$f":"[1]ACS_16_5YR_B19001_with_ann!Q52","v":195},{"$f":"[1]ACS_16_5YR_B19001_with_ann!R52","v":388},{"$f":"[1]ACS_16_5YR_B19001_with_ann!S52","v":114},{"$f":"[1]ACS_16_5YR_B19001_with_ann!T52","v":299},{"$f":"[1]ACS_16_5YR_B19001_with_ann!U52","v":152},{"$f":"[1]ACS_16_5YR_B19001_with_ann!V52","v":333},{"$f":"[1]ACS_16_5YR_B19001_with_ann!W52","v":147},{"$f":"[1]ACS_16_5YR_B19001_with_ann!X52","v":769},{"$f":"[1]ACS_16_5YR_B19001_with_ann!Y52","v":184},{"$f":"[1]ACS_16_5YR_B19001_with_ann!Z52","v":714},{"$f":"[1]ACS_16_5YR_B19001_with_ann!AA52","v":174},{"$f":"[1]ACS_16_5YR_B19001_with_ann!AB52","v":1456},{"$f":"[1]ACS_16_5YR_B19001_with_ann!AC52","v":259},{"$f":"[1]ACS_16_5YR_B19001_with_ann!AD52","v":873},{"$f":"[1]ACS_16_5YR_B19001_with_ann!AE52","v":201},{"$f":"[1]ACS_16_5YR_B19001_with_ann!AF52","v":814},{"$f":"[1]ACS_16_5YR_B19001_with_ann!AG52","v":221},{"$f":"[1]ACS_16_5YR_B19001_with_ann!AH52","v":648},{"$f":"[1]ACS_16_5YR_B19001_with_ann!AI52","v":189},{"$f":"[1]ACS_16_5YR_B19001_with_ann!AJ52","v":600},{"$f":"[1]ACS_16_5YR_B19001_with_ann!AK52","v":167}]
["06000US3300545460","0600000US3300545700","060",{"$f":"[1]ACS_16_5YR_B19001_with_ann!C53","v":"Marlborough"},{"$f":"[1]ACS_16_5YR_B19001_with_ann!D53","v":942},{"$f":"[1]ACS_16_5YR_B19001_with_ann!E53","v":130},{"$f":"[1]ACS_16_5YR_B19001_with_ann!F53","v":20},{"$f":"[1]ACS_16_5YR_B19001_with_ann!G53","v":18},{"$f":"[1]ACS_16_5YR_B19001_with_ann!H53","v":38},{"$f":"[1]ACS_16_5YR_B19001_with_ann!I53","v":30},{"$f":"[1]ACS_16_5YR_B19001_with_ann!J53","v":29},{"$f":"[1]ACS_16_5YR_B19001_with_ann!K53","v":27},{"$f":"[1]ACS_16_5YR_B19001_with_ann!L53","v":109},{"$f":"[1]ACS_16_5YR_B19001_with_ann!M53","v":74},{"$f":"[1]ACS_16_5YR_B19001_with_ann!N53","v":32},{"$f":"[1]ACS_16_5YR_B19001_with_ann!O53","v":20},{"$f":"[1]ACS_16_5YR_B19001_with_ann!P53","v":50},{"$f":"[1]ACS_16_5YR_B19001_with_ann!Q53","v":31},{"$f":"[1]ACS_16_5YR_B19001_with_ann!R53","v":48},{"$f":"[1]ACS_16_5YR_B19001_with_ann!S53","v":30},{"$f":"[1]ACS_16_5YR_B19001_with_ann!T53","v":5},{"$f":"[1]ACS_16_5YR_B19001_with_ann!U53","v":7},{"$f":"[1]ACS_16_5YR_B19001_with_ann!V53","v":11},{"$f":"[1]ACS_16_5YR_B19001_with_ann!W53","v":13},{"$f":"[1]ACS_16_5YR_B19001_with_ann!X53","v":56},{"$f":"[1]ACS_16_5YR_B19001_with_ann!Y53","v":32},{"$f":"[1]ACS_16_5YR_B19001_with_ann!Z53","v":98},{"$f":"[1]ACS_16_5YR_B19001_with_ann!AA53","v":49},{"$f":"[1]ACS_16_5YR_B19001_with_ann!AB53","v":106},{"$f":"[1]ACS_16_5YR_B19001_with_ann!AC53","v":66},{"$f":"[1]ACS_16_5YR_B19001_with_ann!AD53","v":110},{"$f":"[1]ACS_16_5YR_B19001_with_ann!AE53","v":46},{"$f":"[1]ACS_16_5YR_B19001_with_ann!AF53","v":84},{"$f":"[1]ACS_16_5YR_B19001_with_ann!AG53","v":51},{"$f":"[1]ACS_16_5YR_B19001_with_ann!AH53","v":86},{"$f":"[1]ACS_16_5YR_B19001_with_ann!AI53","v":56},{"$f":"[1]ACS_16_5YR_B19001_with_ann!AJ53","v":60},{"$f":"[1]ACS_16_5YR_B19001_with_ann!AK53","v":39}]
["06000US3300545700","0600000US3300550580","060",{"$f":"[1]ACS_16_5YR_B19001_with_ann!C54","v":"Marlow"},{"$f":"[1]ACS_16_5YR_B19001_with_ann!D54","v":314},{"$f":"[1]ACS_16_5YR_B19001_with_ann!E54","v":61},{"$f":"[1]ACS_16_5YR_B19001_with_ann!F54","v":2},{"$f":"[1]ACS_16_5YR_B19001_with_ann!G54","v":3},{"$f":"[1]ACS_16_5YR_B19001_with_ann!H54","v":12},{"$f":"[1]ACS_16_5YR_B19001_with_ann!I54","v":12},{"$f":"[1]ACS_16_5YR_B19001_with_ann!J54","v":11},{"$f":"[1]ACS_16_5YR_B19001_with_ann!K54","v":10},{"$f":"[1]ACS_16_5YR_B19001_with_ann!L54","v":7},{"$f":"[1]ACS_16_5YR_B19001_with_ann!M54","v":6},{"$f":"[1]ACS_16_5YR_B19001_with_ann!N54","v":16},{"$f":"[1]ACS_16_5YR_B19001_with_ann!O54","v":14},{"$f":"[1]ACS_16_5YR_B19001_with_ann!P54","v":6},{"$f":"[1]ACS_16_5YR_B19001_with_ann!Q54","v":6},{"$f":"[1]ACS_16_5YR_B19001_with_ann!R54","v":9},{"$f":"[1]ACS_16_5YR_B19001_with_ann!S54","v":8},{"$f":"[1]ACS_16_5YR_B19001_with_ann!T54","v":5},{"$f":"[1]ACS_16_5YR_B19001_with_ann!U54","v":5},{"$f":"[1]ACS_16_5YR_B19001_with_ann!V54","v":8},{"$f":"[1]ACS_16_5YR_B19001_with_ann!W54","v":11},{"$f":"[1]ACS_16_5YR_B19001_with_ann!X54","v":12},{"$f":"[1]ACS_16_5YR_B19001_with_ann!Y54","v":8},{"$f":"[1]ACS_16_5YR_B19001_with_ann!Z54","v":24},{"$f":"[1]ACS_16_5YR_B19001_with_ann!AA54","v":16},{"$f":"[1]ACS_16_5YR_B19001_with_ann!AB54","v":42},{"$f":"[1]ACS_16_5YR_B19001_with_ann!AC54","v":22},{"$f":"[1]ACS_16_5YR_B19001_with_ann!AD54","v":76},{"$f":"[1]ACS_16_5YR_B19001_with_ann!AE54","v":48},{"$f":"[1]ACS_16_5YR_B19001_with_ann!AF54","v":33},{"$f":"[1]ACS_16_5YR_B19001_with_ann!AG54","v":26},{"$f":"[1]ACS_16_5YR_B19001_with_ann!AH54","v":35},{"$f":"[1]ACS_16_5YR_B19001_with_ann!AI54","v":21},{"$f":"[1]ACS_16_5YR_B19001_with_ann!AJ54","v":16},{"$f":"[1]ACS_16_5YR_B19001_with_ann!AK54","v":13}]
["06000US3300550580","0600000US3300564420","060",{"$f":"[1]ACS_16_5YR_B19001_with_ann!C55","v":"Nelson"},{"$f":"[1]ACS_16_5YR_B19001_with_ann!D55","v":246},{"$f":"[1]ACS_16_5YR_B19001_with_ann!E55","v":41},{"$f":"[1]ACS_16_5YR_B19001_with_ann!F55","v":3},{"$f":"[1]ACS_16_5YR_B19001_with_ann!G55","v":5},{"$f":"[1]ACS_16_5YR_B19001_with_ann!H55","v":2},{"$f":"[1]ACS_16_5YR_B19001_with_ann!I55","v":2},{"$f":"[1]ACS_16_5YR_B19001_with_ann!J55","v":3},{"$f":"[1]ACS_16_5YR_B19001_with_ann!K55","v":3},{"$f":"[1]ACS_16_5YR_B19001_with_ann!L55","v":2},{"$f":"[1]ACS_16_5YR_B19001_with_ann!M55","v":3},{"$f":"[1]ACS_16_5YR_B19001_with_ann!N55","v":2},{"$f":"[1]ACS_16_5YR_B19001_with_ann!O55","v":5},{"$f":"[1]ACS_16_5YR_B19001_with_ann!P55","v":18},{"$f":"[1]ACS_16_5YR_B19001_with_ann!Q55","v":15},{"$f":"[1]ACS_16_5YR_B19001_with_ann!R55","v":3},{"$f":"[1]ACS_16_5YR_B19001_with_ann!S55","v":4},{"$f":"[1]ACS_16_5YR_B19001_with_ann!T55","v":4},{"$f":"[1]ACS_16_5YR_B19001_with_ann!U55","v":4},{"$f":"[1]ACS_16_5YR_B19001_with_ann!V55","v":6},{"$f":"[1]ACS_16_5YR_B19001_with_ann!W55","v":5},{"$f":"[1]ACS_16_5YR_B19001_with_ann!X55","v":15},{"$f":"[1]ACS_16_5YR_B19001_with_ann!Y55","v":11},{"$f":"[1]ACS_16_5YR_B19001_with_ann!Z55","v":30},{"$f":"[1]ACS_16_5YR_B19001_with_ann!AA55","v":12},{"$f":"[1]ACS_16_5YR_B19001_with_ann!AB55","v":42},{"$f":"[1]ACS_16_5YR_B19001_with_ann!AC55","v":18},{"$f":"[1]ACS_16_5YR_B19001_with_ann!AD55","v":31},{"$f":"[1]ACS_16_5YR_B19001_with_ann!AE55","v":17},{"$f":"[1]ACS_16_5YR_B19001_with_ann!AF55","v":31},{"$f":"[1]ACS_16_5YR_B19001_with_ann!AG55","v":17},{"$f":"[1]ACS_16_5YR_B19001_with_ann!AH55","v":18},{"$f":"[1]ACS_16_5YR_B19001_with_ann!AI55","v":11},{"$f":"[1]ACS_16_5YR_B19001_with_ann!AJ55","v":36},{"$f":"[1]ACS_16_5YR_B19001_with_ann!AK55","v":16}]
["06000US3300564420","0600000US3300564580","060",{"$f":"[1]ACS_16_5YR_B19001_with_ann!C56","v":"Richmond"},{"$f":"[1]ACS_16_5YR_B19001_with_ann!D56","v":393},{"$f":"[1]ACS_16_5YR_B19001_with_ann!E56","v":73},{"$f":"[1]ACS_16_5YR_B19001_with_ann!F56","v":0},{"$f":"[1]ACS_16_5YR_B19001_with_ann!G56","v":12},{"$f":"[1]ACS_16_5YR_B19001_with_ann!H56","v":3},{"$f":"[1]ACS_16_5YR_B19001_with_ann!I56","v":5},{"$f":"[1]ACS_16_5YR_B19001_with_ann!J56","v":31},{"$f":"[1]ACS_16_5YR_B19001_with_ann!K56","v":25},{"$f":"[1]ACS_16_5YR_B19001_with_ann!L56","v":0},{"$f":"[1]ACS_16_5YR_B19001_with_ann!M56","v":12},{"$f":"[1]ACS_16_5YR_B19001_with_ann!N56","v":7},{"$f":"[1]ACS_16_5YR_B19001_with_ann!O56","v":7},{"$f":"[1]ACS_16_5YR_B19001_with_ann!P56","v":18},{"$f":"[1]ACS_16_5YR_B19001_with_ann!Q56","v":14},{"$f":"[1]ACS_16_5YR_B19001_with_ann!R56","v":2},{"$f":"[1]ACS_16_5YR_B19001_with_ann!S56","v":4},{"$f":"[1]ACS_16_5YR_B19001_with_ann!T56","v":9},{"$f":"[1]ACS_16_5YR_B19001_with_ann!U56","v":8},{"$f":"[1]ACS_16_5YR_B19001_with_ann!V56","v":26},{"$f":"[1]ACS_16_5YR_B19001_with_ann!W56","v":18},{"$f":"[1]ACS_16_5YR_B19001_with_ann!X56","v":12},{"$f":"[1]ACS_16_5YR_B19001_with_ann!Y56","v":10},{"$f":"[1]ACS_16_5YR_B19001_with_ann!Z56","v":57},{"$f":"[1]ACS_16_5YR_B19001_with_ann!AA56","v":30},{"$f":"[1]ACS_16_5YR_B19001_with_ann!AB56","v":67},{"$f":"[1]ACS_16_5YR_B19001_with_ann!AC56","v":29},{"$f":"[1]ACS_16_5YR_B19001_with_ann!AD56","v":50},{"$f":"[1]ACS_16_5YR_B19001_with_ann!AE56","v":33},{"$f":"[1]ACS_16_5YR_B19001_with_ann!AF56","v":40},{"$f":"[1]ACS_16_5YR_B19001_with_ann!AG56","v":28},{"$f":"[1]ACS_16_5YR_B19001_with_ann!AH56","v":53},{"$f":"[1]ACS_16_5YR_B19001_with_ann!AI56","v":32},{"$f":"[1]ACS_16_5YR_B19001_with_ann!AJ56","v":18},{"$f":"[1]ACS_16_5YR_B19001_with_ann!AK56","v":13}]
["06000US3300564580","0600000US3300565700","060",{"$f":"[1]ACS_16_5YR_B19001_with_ann!C57","v":"Rindge"},{"$f":"[1]ACS_16_5YR_B19001_with_ann!D57","v":1972},{"$f":"[1]ACS_16_5YR_B19001_with_ann!E57","v":144},{"$f":"[1]ACS_16_5YR_B19001_with_ann!F57","v":0},{"$f":"[1]ACS_16_5YR_B19001_with_ann!G57","v":17},{"$f":"[1]ACS_16_5YR_B19001_with_ann!H57","v":43},{"$f":"[1]ACS_16_5YR_B19001_with_ann!I57","v":40},{"$f":"[1]ACS_16_5YR_B19001_with_ann!J57","v":48},{"$f":"[1]ACS_16_5YR_B19001_with_ann!K57","v":42},{"$f":"[1]ACS_16_5YR_B19001_with_ann!L57","v":67},{"$f":"[1]ACS_16_5YR_B19001_with_ann!M57","v":52},{"$f":"[1]ACS_16_5YR_B19001_with_ann!N57","v":32},{"$f":"[1]ACS_16_5YR_B19001_with_ann!O57","v":25},{"$f":"[1]ACS_16_5YR_B19001_with_ann!P57","v":32},{"$f":"[1]ACS_16_5YR_B19001_with_ann!Q57","v":33},{"$f":"[1]ACS_16_5YR_B19001_with_ann!R57","v":77},{"$f":"[1]ACS_16_5YR_B19001_with_ann!S57","v":82},{"$f":"[1]ACS_16_5YR_B19001_with_ann!T57","v":64},{"$f":"[1]ACS_16_5YR_B19001_with_ann!U57","v":54},{"$f":"[1]ACS_16_5YR_B19001_with_ann!V57","v":43},{"$f":"[1]ACS_16_5YR_B19001_with_ann!W57","v":40},{"$f":"[1]ACS_16_5YR_B19001_with_ann!X57","v":176},{"$f":"[1]ACS_16_5YR_B19001_with_ann!Y57","v":87},{"$f":"[1]ACS_16_5YR_B19001_with_ann!Z57","v":192},{"$f":"[1]ACS_16_5YR_B19001_with_ann!AA57","v":89},{"$f":"[1]ACS_16_5YR_B19001_with_ann!AB57","v":242},{"$f":"[1]ACS_16_5YR_B19001_with_ann!AC57","v":94},{"$f":"[1]ACS_16_5YR_B19001_with_ann!AD57","v":305},{"$f":"[1]ACS_16_5YR_B19001_with_ann!AE57","v":109},{"$f":"[1]ACS_16_5YR_B19001_with_ann!AF57","v":238},{"$f":"[1]ACS_16_5YR_B19001_with_ann!AG57","v":103},{"$f":"[1]ACS_16_5YR_B19001_with_ann!AH57","v":200},{"$f":"[1]ACS_16_5YR_B19001_with_ann!AI57","v":83},{"$f":"[1]ACS_16_5YR_B19001_with_ann!AJ57","v":213},{"$f":"[1]ACS_16_5YR_B19001_with_ann!AK57","v":93}]
["06000US3300565700","0600000US3300573700","060",{"$f":"[1]ACS_16_5YR_B19001_with_ann!C58","v":"Roxbury"},{"$f":"[1]ACS_16_5YR_B19001_with_ann!D58","v":95},{"$f":"[1]ACS_16_5YR_B19001_with_ann!E58","v":37},{"$f":"[1]ACS_16_5YR_B19001_with_ann!F58","v":0},{"$f":"[1]ACS_16_5YR_B19001_with_ann!G58","v":12},{"$f":"[1]ACS_16_5YR_B19001_with_ann!H58","v":1},{"$f":"[1]ACS_16_5YR_B19001_with_ann!I58","v":2},{"$f":"[1]ACS_16_5YR_B19001_with_ann!J58","v":0},{"$f":"[1]ACS_16_5YR_B19001_with_ann!K58","v":12},{"$f":"[1]ACS_16_5YR_B19001_with_ann!L58","v":4},{"$f":"[1]ACS_16_5YR_B19001_with_ann!M58","v":6},{"$f":"[1]ACS_16_5YR_B19001_with_ann!N58","v":4},{"$f":"[1]ACS_16_5YR_B19001_with_ann!O58","v":4},{"$f":"[1]ACS_16_5YR_B19001_with_ann!P58","v":4},{"$f":"[1]ACS_16_5YR_B19001_with_ann!Q58","v":5},{"$f":"[1]ACS_16_5YR_B19001_with_ann!R58","v":3},{"$f":"[1]ACS_16_5YR_B19001_with_ann!S58","v":3},{"$f":"[1]ACS_16_5YR_B19001_with_ann!T58","v":3},{"$f":"[1]ACS_16_5YR_B19001_with_ann!U58","v":4},{"$f":"[1]ACS_16_5YR_B19001_with_ann!V58","v":3},{"$f":"[1]ACS_16_5YR_B19001_with_ann!W58","v":3},{"$f":"[1]ACS_16_5YR_B19001_with_ann!X58","v":5},{"$f":"[1]ACS_16_5YR_B19001_with_ann!Y58","v":5},{"$f":"[1]ACS_16_5YR_B19001_with_ann!Z58","v":22},{"$f":"[1]ACS_16_5YR_B19001_with_ann!AA58","v":36},{"$f":"[1]ACS_16_5YR_B19001_with_ann!AB58","v":10},{"$f":"[1]ACS_16_5YR_B19001_with_ann!AC58","v":8},{"$f":"[1]ACS_16_5YR_B19001_with_ann!AD58","v":14},{"$f":"[1]ACS_16_5YR_B19001_with_ann!AE58","v":11},{"$f":"[1]ACS_16_5YR_B19001_with_ann!AF58","v":1},{"$f":"[1]ACS_16_5YR_B19001_with_ann!AG58","v":3},{"$f":"[1]ACS_16_5YR_B19001_with_ann!AH58","v":11},{"$f":"[1]ACS_16_5YR_B19001_with_ann!AI58","v":11},{"$f":"[1]ACS_16_5YR_B19001_with_ann!AJ58","v":10},{"$f":"[1]ACS_16_5YR_B19001_with_ann!AK58","v":6}]
["06000US3300573700","0600000US3300574900","060",{"$f":"[1]ACS_16_5YR_B19001_with_ann!C59","v":"Stoddard"},{"$f":"[1]ACS_16_5YR_B19001_with_ann!D59","v":436},{"$f":"[1]ACS_16_5YR_B19001_with_ann!E59","v":52},{"$f":"[1]ACS_16_5YR_B19001_with_ann!F59","v":10},{"$f":"[1]ACS_16_5YR_B19001_with_ann!G59","v":13},{"$f":"[1]ACS_16_5YR_B19001_with_ann!H59","v":2},{"$f":"[1]ACS_16_5YR_B19001_with_ann!I59","v":4},{"$f":"[1]ACS_16_5YR_B19001_with_ann!J59","v":0},{"$f":"[1]ACS_16_5YR_B19001_with_ann!K59","v":12},{"$f":"[1]ACS_16_5YR_B19001_with_ann!L59","v":8},{"$f":"[1]ACS_16_5YR_B19001_with_ann!M59","v":9},{"$f":"[1]ACS_16_5YR_B19001_with_ann!N59","v":9},{"$f":"[1]ACS_16_5YR_B19001_with_ann!O59","v":7},{"$f":"[1]ACS_16_5YR_B19001_with_ann!P59","v":15},{"$f":"[1]ACS_16_5YR_B19001_with_ann!Q59","v":8},{"$f":"[1]ACS_16_5YR_B19001_with_ann!R59","v":16},{"$f":"[1]ACS_16_5YR_B19001_with_ann!S59","v":14},{"$f":"[1]ACS_16_5YR_B19001_with_ann!T59","v":5},{"$f":"[1]ACS_16_5YR_B19001_with_ann!U59","v":5},{"$f":"[1]ACS_16_5YR_B19001_with_ann!V59","v":5},{"$f":"[1]ACS_16_5YR_B19001_with_ann!W59","v":5},{"$f":"[1]ACS_16_5YR_B19001_with_ann!X59","v":34},{"$f":"[1]ACS_16_5YR_B19001_with_ann!Y59","v":14},{"$f":"[1]ACS_16_5YR_B19001_with_ann!Z59","v":68},{"$f":"[1]ACS_16_5YR_B19001_with_ann!AA59","v":31},{"$f":"[1]ACS_16_5YR_B19001_with_ann!AB59","v":65},{"$f":"[1]ACS_16_5YR_B19001_with_ann!AC59","v":26},{"$f":"[1]ACS_16_5YR_B19001_with_ann!AD59","v":54},{"$f":"[1]ACS_16_5YR_B19001_with_ann!AE59","v":26},{"$f":"[1]ACS_16_5YR_B19001_with_ann!AF59","v":59},{"$f":"[1]ACS_16_5YR_B19001_with_ann!AG59","v":21},{"$f":"[1]ACS_16_5YR_B19001_with_ann!AH59","v":41},{"$f":"[1]ACS_16_5YR_B19001_with_ann!AI59","v":20},{"$f":"[1]ACS_16_5YR_B19001_with_ann!AJ59","v":45},{"$f":"[1]ACS_16_5YR_B19001_with_ann!AK59","v":21}]
["06000US3300574900","0600000US3300575300","060",{"$f":"[1]ACS_16_5YR_B19001_with_ann!C60","v":"Sullivan"},{"$f":"[1]ACS_16_5YR_B19001_with_ann!D60","v":281},{"$f":"[1]ACS_16_5YR_B19001_with_ann!E60","v":53},{"$f":"[1]ACS_16_5YR_B19001_with_ann!F60","v":0},{"$f":"[1]ACS_16_5YR_B19001_with_ann!G60","v":12},{"$f":"[1]ACS_16_5YR_B19001_with_ann!H60","v":8},{"$f":"[1]ACS_16_5YR_B19001_with_ann!I60","v":9},{"$f":"[1]ACS_16_5YR_B19001_with_ann!J60","v":9},{"$f":"[1]ACS_16_5YR_B19001_with_ann!K60","v":9},{"$f":"[1]ACS_16_5YR_B19001_with_ann!L60","v":9},{"$f":"[1]ACS_16_5YR_B19001_with_ann!M60","v":9},{"$f":"[1]ACS_16_5YR_B19001_with_ann!N60","v":2},{"$f":"[1]ACS_16_5YR_B19001_with_ann!O60","v":3},{"$f":"[1]ACS_16_5YR_B19001_with_ann!P60","v":4},{"$f":"[1]ACS_16_5YR_B19001_with_ann!Q60","v":4},{"$f":"[1]ACS_16_5YR_B19001_with_ann!R60","v":11},{"$f":"[1]ACS_16_5YR_B19001_with_ann!S60","v":7},{"$f":"[1]ACS_16_5YR_B19001_with_ann!T60","v":3},{"$f":"[1]ACS_16_5YR_B19001_with_ann!U60","v":4},{"$f":"[1]ACS_16_5YR_B19001_with_ann!V60","v":8},{"$f":"[1]ACS_16_5YR_B19001_with_ann!W60","v":7},{"$f":"[1]ACS_16_5YR_B19001_with_ann!X60","v":17},{"$f":"[1]ACS_16_5YR_B19001_with_ann!Y60","v":10},{"$f":"[1]ACS_16_5YR_B19001_with_ann!Z60","v":36},{"$f":"[1]ACS_16_5YR_B19001_with_ann!AA60","v":22},{"$f":"[1]ACS_16_5YR_B19001_with_ann!AB60","v":36},{"$f":"[1]ACS_16_5YR_B19001_with_ann!AC60","v":16},{"$f":"[1]ACS_16_5YR_B19001_with_ann!AD60","v":53},{"$f":"[1]ACS_16_5YR_B19001_with_ann!AE60","v":26},{"$f":"[1]ACS_16_5YR_B19001_with_ann!AF60","v":27},{"$f":"[1]ACS_16_5YR_B19001_with_ann!AG60","v":15},{"$f":"[1]ACS_16_5YR_B19001_with_ann!AH60","v":42},{"$f":"[1]ACS_16_5YR_B19001_with_ann!AI60","v":23},{"$f":"[1]ACS_16_5YR_B19001_with_ann!AJ60","v":16},{"$f":"[1]ACS_16_5YR_B19001_with_ann!AK60","v":14}]
["06000US3300575300","0600000US3300575700","060",{"$f":"[1]ACS_16_5YR_B19001_with_ann!C61","v":"Surry"},{"$f":"[1]ACS_16_5YR_B19001_with_ann!D61","v":344},{"$f":"[1]ACS_16_5YR_B19001_with_ann!E61","v":58},{"$f":"[1]ACS_16_5YR_B19001_with_ann!F61","v":0},{"$f":"[1]ACS_16_5YR_B19001_with_ann!G61","v":12},{"$f":"[1]ACS_16_5YR_B19001_with_ann!H61","v":4},{"$f":"[1]ACS_16_5YR_B19001_with_ann!I61","v":5},{"$f":"[1]ACS_16_5YR_B19001_with_ann!J61","v":4},{"$f":"[1]ACS_16_5YR_B19001_with_ann!K61","v":5},{"$f":"[1]ACS_16_5YR_B19001_with_ann!L61","v":14},{"$f":"[1]ACS_16_5YR_B19001_with_ann!M61","v":13},{"$f":"[1]ACS_16_5YR_B19001_with_ann!N61","v":5},{"$f":"[1]ACS_16_5YR_B19001_with_ann!O61","v":7},{"$f":"[1]ACS_16_5YR_B19001_with_ann!P61","v":2},{"$f":"[1]ACS_16_5YR_B19001_with_ann!Q61","v":3},{"$f":"[1]ACS_16_5YR_B19001_with_ann!R61","v":15},{"$f":"[1]ACS_16_5YR_B19001_with_ann!S61","v":10},{"$f":"[1]ACS_16_5YR_B19001_with_ann!T61","v":0},{"$f":"[1]ACS_16_5YR_B19001_with_ann!U61","v":12},{"$f":"[1]ACS_16_5YR_B19001_with_ann!V61","v":32},{"$f":"[1]ACS_16_5YR_B19001_with_ann!W61","v":28},{"$f":"[1]ACS_16_5YR_B19001_with_ann!X61","v":35},{"$f":"[1]ACS_16_5YR_B19001_with_ann!Y61","v":20},{"$f":"[1]ACS_16_5YR_B19001_with_ann!Z61","v":12},{"$f":"[1]ACS_16_5YR_B19001_with_ann!AA61","v":9},{"$f":"[1]ACS_16_5YR_B19001_with_ann!AB61","v":52},{"$f":"[1]ACS_16_5YR_B19001_with_ann!AC61","v":20},{"$f":"[1]ACS_16_5YR_B19001_with_ann!AD61","v":45},{"$f":"[1]ACS_16_5YR_B19001_with_ann!AE61","v":20},{"$f":"[1]ACS_16_5YR_B19001_with_ann!AF61","v":28},{"$f":"[1]ACS_16_5YR_B19001_with_ann!AG61","v":16},{"$f":"[1]ACS_16_5YR_B19001_with_ann!AH61","v":51},{"$f":"[1]ACS_16_5YR_B19001_with_ann!AI61","v":39},{"$f":"[1]ACS_16_5YR_B19001_with_ann!AJ61","v":45},{"$f":"[1]ACS_16_5YR_B19001_with_ann!AK61","v":21}]
["06000US3300575700","0600000US3300577380","060",{"$f":"[1]ACS_16_5YR_B19001_with_ann!C62","v":"Swanzey"},{"$f":"[1]ACS_16_5YR_B19001_with_ann!D62","v":3255},{"$f":"[1]ACS_16_5YR_B19001_with_ann!E62","v":171},{"$f":"[1]ACS_16_5YR_B19001_with_ann!F62","v":32},{"$f":"[1]ACS_16_5YR_B19001_with_ann!G62","v":34},{"$f":"[1]ACS_16_5YR_B19001_with_ann!H62","v":127},{"$f":"[1]ACS_16_5YR_B19001_with_ann!I62","v":88},{"$f":"[1]ACS_16_5YR_B19001_with_ann!J62","v":208},{"$f":"[1]ACS_16_5YR_B19001_with_ann!K62","v":118},{"$f":"[1]ACS_16_5YR_B19001_with_ann!L62","v":98},{"$f":"[1]ACS_16_5YR_B19001_with_ann!M62","v":69},{"$f":"[1]ACS_16_5YR_B19001_with_ann!N62","v":114},{"$f":"[1]ACS_16_5YR_B19001_with_ann!O62","v":83},{"$f":"[1]ACS_16_5YR_B19001_with_ann!P62","v":145},{"$f":"[1]ACS_16_5YR_B19001_with_ann!Q62","v":154},{"$f":"[1]ACS_16_5YR_B19001_with_ann!R62","v":77},{"$f":"[1]ACS_16_5YR_B19001_with_ann!S62","v":48},{"$f":"[1]ACS_16_5YR_B19001_with_ann!T62","v":162},{"$f":"[1]ACS_16_5YR_B19001_with_ann!U62","v":104},{"$f":"[1]ACS_16_5YR_B19001_with_ann!V62","v":113},{"$f":"[1]ACS_16_5YR_B19001_with_ann!W62","v":65},{"$f":"[1]ACS_16_5YR_B19001_with_ann!X62","v":189},{"$f":"[1]ACS_16_5YR_B19001_with_ann!Y62","v":87},{"$f":"[1]ACS_16_5YR_B19001_with_ann!Z62","v":406},{"$f":"[1]ACS_16_5YR_B19001_with_ann!AA62","v":155},{"$f":"[1]ACS_16_5YR_B19001_with_ann!AB62","v":400},{"$f":"[1]ACS_16_5YR_B19001_with_ann!AC62","v":135},{"$f":"[1]ACS_16_5YR_B19001_with_ann!AD62","v":497},{"$f":"[1]ACS_16_5YR_B19001_with_ann!AE62","v":178},{"$f":"[1]ACS_16_5YR_B19001_with_ann!AF62","v":321},{"$f":"[1]ACS_16_5YR_B19001_with_ann!AG62","v":166},{"$f":"[1]ACS_16_5YR_B19001_with_ann!AH62","v":185},{"$f":"[1]ACS_16_5YR_B19001_with_ann!AI62","v":103},{"$f":"[1]ACS_16_5YR_B19001_with_ann!AJ62","v":181},{"$f":"[1]ACS_16_5YR_B19001_with_ann!AK62","v":94}]
["06000US3300577380","0600000US3300578420","060",{"$f":"[1]ACS_16_5YR_B19001_with_ann!C63","v":"Troy"},{"$f":"[1]ACS_16_5YR_B19001_with_ann!D63","v":758},{"$f":"[1]ACS_16_5YR_B19001_with_ann!E63","v":101},{"$f":"[1]ACS_16_5YR_B19001_with_ann!F63","v":33},{"$f":"[1]ACS_16_5YR_B19001_with_ann!G63","v":31},{"$f":"[1]ACS_16_5YR_B19001_with_ann!H63","v":22},{"$f":"[1]ACS_16_5YR_B19001_with_ann!I63","v":19},{"$f":"[1]ACS_16_5YR_B19001_with_ann!J63","v":11},{"$f":"[1]ACS_16_5YR_B19001_with_ann!K63","v":17},{"$f":"[1]ACS_16_5YR_B19001_with_ann!L63","v":49},{"$f":"[1]ACS_16_5YR_B19001_with_ann!M63","v":39},{"$f":"[1]ACS_16_5YR_B19001_with_ann!N63","v":89},{"$f":"[1]ACS_16_5YR_B19001_with_ann!O63","v":48},{"$f":"[1]ACS_16_5YR_B19001_with_ann!P63","v":42},{"$f":"[1]ACS_16_5YR_B19001_with_ann!Q63","v":40},{"$f":"[1]ACS_16_5YR_B19001_with_ann!R63","v":20},{"$f":"[1]ACS_16_5YR_B19001_with_ann!S63","v":25},{"$f":"[1]ACS_16_5YR_B19001_with_ann!T63","v":11},{"$f":"[1]ACS_16_5YR_B19001_with_ann!U63","v":11},{"$f":"[1]ACS_16_5YR_B19001_with_ann!V63","v":13},{"$f":"[1]ACS_16_5YR_B19001_with_ann!W63","v":12},{"$f":"[1]ACS_16_5YR_B19001_with_ann!X63","v":111},{"$f":"[1]ACS_16_5YR_B19001_with_ann!Y63","v":45},{"$f":"[1]ACS_16_5YR_B19001_with_ann!Z63","v":50},{"$f":"[1]ACS_16_5YR_B19001_with_ann!AA63","v":25},{"$f":"[1]ACS_16_5YR_B19001_with_ann!AB63","v":89},{"$f":"[1]ACS_16_5YR_B19001_with_ann!AC63","v":35},{"$f":"[1]ACS_16_5YR_B19001_with_ann!AD63","v":69},{"$f":"[1]ACS_16_5YR_B19001_with_ann!AE63","v":31},{"$f":"[1]ACS_16_5YR_B19001_with_ann!AF63","v":45},{"$f":"[1]ACS_16_5YR_B19001_with_ann!AG63","v":30},{"$f":"[1]ACS_16_5YR_B19001_with_ann!AH63","v":61},{"$f":"[1]ACS_16_5YR_B19001_with_ann!AI63","v":45},{"$f":"[1]ACS_16_5YR_B19001_with_ann!AJ63","v":43},{"$f":"[1]ACS_16_5YR_B19001_with_ann!AK63","v":25}]
["06000US3300578420","0600000US3300582660","060",{"$f":"[1]ACS_16_5YR_B19001_with_ann!C64","v":"Walpole"},{"$f":"[1]ACS_16_5YR_B19001_with_ann!D64","v":1427},{"$f":"[1]ACS_16_5YR_B19001_with_ann!E64","v":121},{"$f":"[1]ACS_16_5YR_B19001_with_ann!F64","v":182},{"$f":"[1]ACS_16_5YR_B19001_with_ann!G64","v":120},{"$f":"[1]ACS_16_5YR_B19001_with_ann!H64","v":0},{"$f":"[1]ACS_16_5YR_B19001_with_ann!I64","v":12},{"$f":"[1]ACS_16_5YR_B19001_with_ann!J64","v":35},{"$f":"[1]ACS_16_5YR_B19001_with_ann!K64","v":34},{"$f":"[1]ACS_16_5YR_B19001_with_ann!L64","v":7},{"$f":"[1]ACS_16_5YR_B19001_with_ann!M64","v":11},{"$f":"[1]ACS_16_5YR_B19001_with_ann!N64","v":37},{"$f":"[1]ACS_16_5YR_B19001_with_ann!O64","v":30},{"$f":"[1]ACS_16_5YR_B19001_with_ann!P64","v":19},{"$f":"[1]ACS_16_5YR_B19001_with_ann!Q64","v":23},{"$f":"[1]ACS_16_5YR_B19001_with_ann!R64","v":51},{"$f":"[1]ACS_16_5YR_B19001_with_ann!S64","v":57},{"$f":"[1]ACS_16_5YR_B19001_with_ann!T64","v":7},{"$f":"[1]ACS_16_5YR_B19001_with_ann!U64","v":11},{"$f":"[1]ACS_16_5YR_B19001_with_ann!V64","v":83},{"$f":"[1]ACS_16_5YR_B19001_with_ann!W64","v":63},{"$f":"[1]ACS_16_5YR_B19001_with_ann!X64","v":139},{"$f":"[1]ACS_16_5YR_B19001_with_ann!Y64","v":73},{"$f":"[1]ACS_16_5YR_B19001_with_ann!Z64","v":96},{"$f":"[1]ACS_16_5YR_B19001_with_ann!AA64","v":47},{"$f":"[1]ACS_16_5YR_B19001_with_ann!AB64","v":133},{"$f":"[1]ACS_16_5YR_B19001_with_ann!AC64","v":62},{"$f":"[1]ACS_16_5YR_B19001_with_ann!AD64","v":173},{"$f":"[1]ACS_16_5YR_B19001_with_ann!AE64","v":105},{"$f":"[1]ACS_16_5YR_B19001_with_ann!AF64","v":141},{"$f":"[1]ACS_16_5YR_B19001_with_ann!AG64","v":73},{"$f":"[1]ACS_16_5YR_B19001_with_ann!AH64","v":162},{"$f":"[1]ACS_16_5YR_B19001_with_ann!AI64","v":75},{"$f":"[1]ACS_16_5YR_B19001_with_ann!AJ64","v":162},{"$f":"[1]ACS_16_5YR_B19001_with_ann!AK64","v":81}]
["06000US3300582660","0600000US3300585540","060",{"$f":"[1]ACS_16_5YR_B19001_with_ann!C65","v":"Westmoreland"},{"$f":"[1]ACS_16_5YR_B19001_with_ann!D65","v":885},{"$f":"[1]ACS_16_5YR_B19001_with_ann!E65","v":182},{"$f":"[1]ACS_16_5YR_B19001_with_ann!F65","v":72},{"$f":"[1]ACS_16_5YR_B19001_with_ann!G65","v":99},{"$f":"[1]ACS_16_5YR_B19001_with_ann!H65","v":0},{"$f":"[1]ACS_16_5YR_B19001_with_ann!I65","v":12},{"$f":"[1]ACS_16_5YR_B19001_with_ann!J65","v":47},{"$f":"[1]ACS_16_5YR_B19001_with_ann!K65","v":47},{"$f":"[1]ACS_16_5YR_B19001_with_ann!L65","v":27},{"$f":"[1]ACS_16_5YR_B19001_with_ann!M65","v":30},{"$f":"[1]ACS_16_5YR_B19001_with_ann!N65","v":26},{"$f":"[1]ACS_16_5YR_B19001_with_ann!O65","v":16},{"$f":"[1]ACS_16_5YR_B19001_with_ann!P65","v":17},{"$f":"[1]ACS_16_5YR_B19001_with_ann!Q65","v":19},{"$f":"[1]ACS_16_5YR_B19001_with_ann!R65","v":12},{"$f":"[1]ACS_16_5YR_B19001_with_ann!S65","v":12},{"$f":"[1]ACS_16_5YR_B19001_with_ann!T65","v":21},{"$f":"[1]ACS_16_5YR_B19001_with_ann!U65","v":18},{"$f":"[1]ACS_16_5YR_B19001_with_ann!V65","v":17},{"$f":"[1]ACS_16_5YR_B19001_with_ann!W65","v":18},{"$f":"[1]ACS_16_5YR_B19001_with_ann!X65","v":79},{"$f":"[1]ACS_16_5YR_B19001_with_ann!Y65","v":64},{"$f":"[1]ACS_16_5YR_B19001_with_ann!Z65","v":50},{"$f":"[1]ACS_16_5YR_B19001_with_ann!AA65","v":22},{"$f":"[1]ACS_16_5YR_B19001_with_ann!AB65","v":89},{"$f":"[1]ACS_16_5YR_B19001_with_ann!AC65","v":33},{"$f":"[1]ACS_16_5YR_B19001_with_ann!AD65","v":141},{"$f":"[1]ACS_16_5YR_B19001_with_ann!AE65","v":82},{"$f":"[1]ACS_16_5YR_B19001_with_ann!AF65","v":42},{"$f":"[1]ACS_16_5YR_B19001_with_ann!AG65","v":20},{"$f":"[1]ACS_16_5YR_B19001_with_ann!AH65","v":130},{"$f":"[1]ACS_16_5YR_B19001_with_ann!AI65","v":53},{"$f":"[1]ACS_16_5YR_B19001_with_ann!AJ65","v":115},{"$f":"[1]ACS_16_5YR_B19001_with_ann!AK65","v":44}]
["06000US3300585540","0600000US3300500820","060",{"$f":"[1]ACS_16_5YR_B19001_with_ann!C66","v":"Winchester"},{"$f":"[1]ACS_16_5YR_B19001_with_ann!D66","v":1617},{"$f":"[1]ACS_16_5YR_B19001_with_ann!E66","v":146},{"$f":"[1]ACS_16_5YR_B19001_with_ann!F66","v":65},{"$f":"[1]ACS_16_5YR_B19001_with_ann!G66","v":46},{"$f":"[1]ACS_16_5YR_B19001_with_ann!H66","v":25},{"$f":"[1]ACS_16_5YR_B19001_with_ann!I66","v":17},{"$f":"[1]ACS_16_5YR_B19001_with_ann!J66","v":145},{"$f":"[1]ACS_16_5YR_B19001_with_ann!K66","v":71},{"$f":"[1]ACS_16_5YR_B19001_with_ann!L66","v":101},{"$f":"[1]ACS_16_5YR_B19001_with_ann!M66","v":73},{"$f":"[1]ACS_16_5YR_B19001_with_ann!N66","v":58},{"$f":"[1]ACS_16_5YR_B19001_with_ann!O66","v":50},{"$f":"[1]ACS_16_5YR_B19001_with_ann!P66","v":71},{"$f":"[1]ACS_16_5YR_B19001_with_ann!Q66","v":44},{"$f":"[1]ACS_16_5YR_B19001_with_ann!R66","v":95},{"$f":"[1]ACS_16_5YR_B19001_with_ann!S66","v":61},{"$f":"[1]ACS_16_5YR_B19001_with_ann!T66","v":96},{"$f":"[1]ACS_16_5YR_B19001_with_ann!U66","v":58},{"$f":"[1]ACS_16_5YR_B19001_with_ann!V66","v":97},{"$f":"[1]ACS_16_5YR_B19001_with_ann!W66","v":66},{"$f":"[1]ACS_16_5YR_B19001_with_ann!X66","v":89},{"$f":"[1]ACS_16_5YR_B19001_with_ann!Y66","v":62},{"$f":"[1]ACS_16_5YR_B19001_with_ann!Z66","v":194},{"$f":"[1]ACS_16_5YR_B19001_with_ann!AA66","v":99},{"$f":"[1]ACS_16_5YR_B19001_with_ann!AB66","v":155},{"$f":"[1]ACS_16_5YR_B19001_with_ann!AC66","v":87},{"$f":"[1]ACS_16_5YR_B19001_with_ann!AD66","v":90},{"$f":"[1]ACS_16_5YR_B19001_with_ann!AE66","v":48},{"$f":"[1]ACS_16_5YR_B19001_with_ann!AF66","v":163},{"$f":"[1]ACS_16_5YR_B19001_with_ann!AG66","v":82},{"$f":"[1]ACS_16_5YR_B19001_with_ann!AH66","v":92},{"$f":"[1]ACS_16_5YR_B19001_with_ann!AI66","v":60},{"$f":"[1]ACS_16_5YR_B19001_with_ann!AJ66","v":81},{"$f":"[1]ACS_16_5YR_B19001_with_ann!AK66","v":69}]
[]
[]
[null,null,null,null,null,null,null,null,null,null,null,null,null,null,null,null,null,null,null,null,null,null,null,null,null,null,null,null,null,null,null,null,null,null,null,null,null,null,null,null,null,null,{"$f":"$D$22","v":"Troy"},null,{"$f":"$D$23","v":"Walpole"},null,{"$f":"$D$24","v":"Westmoreland"},null,{"$f":"$D$25","v":"Winchester"}]
[null,null,null,null,{"$f":"$D$3","v":"Alstead"},null,{"$f":"$D$4","v":"Chesterfield"},null,{"$f":"$D$5","v":"Dublin"},null,{"$f":"$D$6","v":"Fitzwilliam"},null,{"$f":"$D$7","v":"Gilsum"},null,{"$f":"$D$8","v":"Harrisville"},null,{"$f":"$D$9","v":"Hinsdale"},null,{"$f":"$D$10","v":"Jaffrey"},null,{"$f":"$D$11","v":"Keene"},null,{"$f":"$D$12","v":"Marlborough"},null,{"$f":"$D$13","v":"Marlow"},null,{"$f":"$D$14","v":"Nelson"},null,{"$f":"$D$15","v":"Richmond"},null,{"$f":"$D$16","v":"Rindge"},null,{"$f":"$D$17","v":"Roxbury"},null,{"$f":"$D$18","v":"Stoddard"},null,{"$f":"$D$19","v":"Sullivan"},null,{"$f":"$D$20","v":"Surry"},null,{"$f":"$D$21","v":"Swanzey"},null,{"$f":"$D$21","v":"Swanzey"},null,{"$f":"$D$21","v":"Swanzey"},null,{"$f":"$D$21","v":"Swanzey"},null,{"$f":"$D$21","v":"Swanzey"}]
[null,null,null,null,"Estimate","Margin of Error","Estimate","Margin of Error","Estimate","Margin of Error","Estimate","Margin of Error","Estimate","Margin of Error","Estimate","Margin of Error","Estimate","Margin of Error","Estimate","Margin of Error","Estimate","Margin of Error","Estimate","Margin of Error","Estimate","Margin of Error","Estimate","Margin of Error","Estimate","Margin of Error","Estimate","Margin of Error","Estimate","Margin of Error","Estimate","Margin of Error","Estimate","Margin of Error","Estimate","Margin of Error","Estimate","Margin of Error"]
[null,null,null,"Estimate!!Total:",723,97,1366,158,635,101,1013,154,310,51,416,75,1594,139,2026,225,9259,370,942,130,314,61,246,41,393,73,1972,144,95,37,436,52,281,53,344,58,3255,171,758,101,1427,121,885,182,1617,146]
[null,null,null,"Estimate!!Total:!!Less than $10,000",54,45,0,12,24,17,59,36,2,4,7,9,29,47,40,38,224,124,20,18,2,3,3,5,0,12,0,17,0,12,10,13,0,12,0,12,32,34,33,31,182,120,72,99,65,46]
[null,null,null,"Estimate!!Total:!!$10,000 to $14,999",47,48,18,29,41,53,44,33,12,12,3,4,14,21,28,42,492,158,38,30,12,12,2,2,3,5,43,40,1,2,2,4,8,9,4,5,127,88,22,19,0,12,0,12,25,17]
[null,null,null,"Estimate!!Total:!!$15,000 to $19,999",23,13,39,39,3,3,29,29,8,6,3,4,3,5,34,34,634,198,29,27,11,10,3,3,31,25,48,42,0,12,0,12,9,9,4,5,208,118,11,17,35,34,47,47,145,71]
[null,null,null,"Estimate!!Total:!!$20,000 to $24,999",73,57,33,38,9,8,19,21,4,5,7,7,67,50,54,49,191,94,109,74,7,6,2,3,0,12,67,52,4,6,8,9,9,9,14,13,98,69,49,39,7,11,27,30,101,73]
[null,null,null,"Estimate!!Total:!!$25,000 to $29,999",6,7,86,90,18,14,46,32,11,7,5,6,48,36,62,50,288,137,32,20,16,14,2,5,7,7,32,25,4,4,9,7,2,3,5,7,114,83,89,48,37,30,26,16,58,50]
[null,null,null,"Estimate!!Total:!!$30,000 to $34,999",29,23,37,56,7,7,19,19,2,3,10,10,61,38,111,90,536,195,50,31,6,6,18,15,18,14,32,33,4,5,15,8,4,4,2,3,145,154,42,40,19,23,17,19,71,44]
[null,null,null,"Estimate!!Total:!!$35,000 to $39,999",27,15,46,44,16,19,26,27,13,12,0,12,62,48,23,29,388,114,48,30,9,8,3,4,2,4,77,82,3,3,16,14,11,7,15,10,77,48,20,25,51,57,12,12,95,61]
[null,null,null,"Estimate!!Total:!!$40,000 to $44,999",11,12,73,88,3,4,40,23,22,26,21,13,96,93,22,28,299,152,5,7,5,5,4,4,9,8,64,54,3,4,5,5,3,4,0,12,162,104,11,11,7,11,21,18,96,58]
[null,null,null,"Estimate!!Total:!!$45,000 to $49,999",32,25,16,24,19,16,30,16,21,14,30,19,10,15,15,24,333,147,11,13,8,11,6,5,26,18,43,40,3,3,5,5,8,7,32,28,113,65,13,12,83,63,17,18,97,66]
[null,null,null,"Estimate!!Total:!!$50,000 to $59,999",120,59,15,24,58,27,94,51,24,12,25,23,168,130,111,77,769,184,56,32,12,8,15,11,12,10,176,87,5,5,34,14,17,10,35,20,189,87,111,45,139,73,79,64,89,62]
[null,null,null,"Estimate!!Total:!!$60,000 to $74,999",24,16,126,97,33,27,64,37,52,25,51,25,339,191,435,258,714,174,98,49,24,16,30,12,57,30,192,89,22,36,68,31,36,22,12,9,406,155,50,25,96,47,50,22,194,99]
[null,null,null,"Estimate!!Total:!!$75,000 to $99,999",74,30,108,78,109,65,186,103,38,17,81,33,185,84,183,107,1456,259,106,66,42,22,42,18,67,29,242,94,10,8,65,26,36,16,52,20,400,135,89,35,133,62,89,33,155,87]
[null,null,null,"Estimate!!Total:!!$100,000 to $124,999",70,29,206,134,72,29,110,51,26,13,50,25,118,67,397,164,873,201,110,46,76,48,31,17,50,33,305,109,14,11,54,26,53,26,45,20,497,178,69,31,173,105,141,82,90,48]
[null,null,null,"Estimate!!Total:!!$125,000 to $149,999",34,18,184,96,43,20,66,32,16,13,13,10,136,72,186,119,814,221,84,51,33,26,31,17,40,28,238,103,1,3,59,21,27,15,28,16,321,166,45,30,141,73,42,20,163,82]
[null,null,null,"Estimate!!Total:!!$150,000 to $199,999",75,32,247,132,72,31,77,45,44,22,43,20,165,93,115,71,648,189,86,56,35,21,18,11,53,32,200,83,11,11,41,20,42,23,51,39,185,103,61,45,162,75,130,53,92,60]
[null,null,null,"Estimate!!Total:!!$200,000 or more",24,14,132,80,108,40,104,46,15,8,67,38,93,79,210,130,600,167,60,39,16,13,36,16,18,13,213,93,10,6,45,21,16,14,45,21,181,94,43,25,162,81,115,44,81,69]

{"sheet":"SData_B19037IncomeByAgeofHH","index":56,"n_rows":99,"n_cols":256,"rows_kept":99,"cut":false,"hidden":true,"merged":[]}
["GEO_ID","GEO_ID2","SUMLEVEL",{"$f":"[1]ACS_16_5YR_B19037_with_ann!C1","v":"NAME"},{"$f":"[1]ACS_16_5YR_B19037_with_ann!D1","v":"B19037_001E"},{"$f":"[1]ACS_16_5YR_B19037_with_ann!E1","v":"B19037_001M"},{"$f":"[1]ACS_16_5YR_B19037_with_ann!F1","v":"B19037_002E"},{"$f":"[1]ACS_16_5YR_B19037_with_ann!G1","v":"B19037_002M"},{"$f":"[1]ACS_16_5YR_B19037_with_ann!H1","v":"B19037_003E"},{"$f":"[1]ACS_16_5YR_B19037_with_ann!I1","v":"B19037_003M"},{"$f":"[1]ACS_16_5YR_B19037_with_ann!J1","v":"B19037_004E"},{"$f":"[1]ACS_16_5YR_B19037_with_ann!K1","v":"B19037_004M"},{"$f":"[1]ACS_16_5YR_B19037_with_ann!L1","v":"B19037_005E"},{"$f":"[1]ACS_16_5YR_B19037_with_ann!M1","v":"B19037_005M"},{"$f":"[1]ACS_16_5YR_B19037_with_ann!N1","v":"B19037_006E"},{"$f":"[1]ACS_16_5YR_B19037_with_ann!O1","v":"B19037_006M"},{"$f":"[1]ACS_16_5YR_B19037_with_ann!P1","v":"B19037_007E"},{"$f":"[1]ACS_16_5YR_B19037_with_ann!Q1","v":"B19037_007M"},{"$f":"[1]ACS_16_5YR_B19037_with_ann!R1","v":"B19037_008E"},{"$f":"[1]ACS_16_5YR_B19037_with_ann!S1","v":"B19037_008M"},{"$f":"[1]ACS_16_5YR_B19037_with_ann!T1","v":"B19037_009E"},{"$f":"[1]ACS_16_5YR_B19037_with_ann!U1","v":"B19037_009M"},{"$f":"[1]ACS_16_5YR_B19037_with_ann!V1","v":"B19037_010E"},{"$f":"[1]ACS_16_5YR_B19037_with_ann!W1","v":"B19037_010M"},{"$f":"[1]ACS_16_5YR_B19037_with_ann!X1","v":"B19037_011E"},{"$f":"[1]ACS_16_5YR_B19037_with_ann!Y1","v":"B19037_011M"},{"$f":"[1]ACS_16_5YR_B19037_with_ann!Z1","v":"B19037_012E"},{"$f":"[1]ACS_16_5YR_B19037_with_ann!AA1","v":"B19037_012M"},{"$f":"[1]ACS_16_5YR_B19037_with_ann!AB1","v":"B19037_013E"},{"$f":"[1]ACS_16_5YR_B19037_with_ann!AC1","v":"B19037_013M"},{"$f":"[1]ACS_16_5YR_B19037_with_ann!AD1","v":"B19037_014E"},{"$f":"[1]ACS_16_5YR_B19037_with_ann!AE1","v":"B19037_014M"},{"$f":"[1]ACS_16_5YR_B19037_with_ann!AF1","v":"B19037_015E"},{"$f":"[1]ACS_16_5YR_B19037_with_ann!AG1","v":"B19037_015M"},{"$f":"[1]ACS_16_5YR_B19037_with_ann!AH1","v":"B19037_016E"},{"$f":"[1]ACS_16_5YR_B19037_with_ann!AI1","v":"B19037_016M"},{"$f":"[1]ACS_16_5YR_B19037_with_ann!AJ1","v":"B19037_017E"},{"$f":"[1]ACS_16_5YR_B19037_with_ann!AK1","v":"B19037_017M"},{"$f":"[1]ACS_16_5YR_B19037_with_ann!AL1","v":"B19037_018E"},{"$f":"[1]ACS_16_5YR_B19037_with_ann!AM1","v":"B19037_018M"},{"$f":"[1]ACS_16_5YR_B19037_with_ann!AN1","v":"B19037_019E"},{"$f":"[1]ACS_16_5YR_B19037_with_ann!AO1","v":"B19037_019M"},{"$f":"[1]ACS_16_5YR_B19037_with_ann!AP1","v":"B19037_020E"},{"$f":"[1]ACS_16_5YR_B19037_with_ann!AQ1","v":"B19037_020M"},{"$f":"[1]ACS_16_5YR_B19037_with_ann!AR1","v":"B19037_021E"},{"$f":"[1]ACS_16_5YR_B19037_with_ann!AS1","v":"B19037_021M"},{"$f":"[1]ACS_16_5YR_B19037_with_ann!AT1","v":"B19037_022E"},{"$f":"[1]ACS_16_5YR_B19037_with_ann!AU1","v":"B19037_022M"},{"$f":"[1]ACS_16_5YR_B19037_with_ann!AV1","v":"B19037_023E"},{"$f":"[1]ACS_16_5YR_B19037_with_ann!AW1","v":"B19037_023M"},{"$f":"[1]ACS_16_5YR_B19037_with_ann!AX1","v":"B19037_024E"},{"$f":"[1]ACS_16_5YR_B19037_with_ann!AY1","v":"B19037_024M"},{"$f":"[1]ACS_16_5YR_B19037_with_ann!AZ1","v":"B19037_025E"},{"$f":"[1]ACS_16_5YR_B19037_with_ann!BA1","v":"B19037_025M"},{"$f":"[1]ACS_16_5YR_B19037_with_ann!BB1","v":"B19037_026E"},{"$f":"[1]ACS_16_5YR_B19037_with_ann!BC1","v":"B19037_026M"},{"$f":"[1]ACS_16_5YR_B19037_with_ann!BD1","v":"B19037_027E"},{"$f":"[1]ACS_16_5YR_B19037_with_ann!BE1","v":"B19037_027M"},{"$f":"[1]ACS_16_5YR_B19037_with_ann!BF1","v":"B19037_028E"},{"$f":"[1]ACS_16_5YR_B19037_with_ann!BG1","v":"B19037_028M"},{"$f":"[1]ACS_16_5YR_B19037_with_ann!BH1","v":"B19037_029E"},{"$f":"[1]ACS_16_5YR_B19037_with_ann!BI1","v":"B19037_029M"},{"$f":"[1]ACS_16_5YR_B19037_with_ann!BJ1","v":"B19037_030E"},{"$f":"[1]ACS_16_5YR_B19037_with_ann!BK1","v":"B19037_030M"},{"$f":"[1]ACS_16_5YR_B19037_with_ann!BL1","v":"B19037_031E"},{"$f":"[1]ACS_16_5YR_B19037_with_ann!BM1","v":"B19037_031M"},{"$f":"[1]ACS_16_5YR_B19037_with_ann!BN1","v":"B19037_032E"},{"$f":"[1]ACS_16_5YR_B19037_with_ann!BO1","v":"B19037_032M"},{"$f":"[1]ACS_16_5YR_B19037_with_ann!BP1","v":"B19037_033E"},{"$f":"[1]ACS_16_5YR_B19037_with_ann!BQ1","v":"B19037_033M"},{"$f":"[1]ACS_16_5YR_B19037_with_ann!BR1","v":"B19037_034E"},{"$f":"[1]ACS_16_5YR_B19037_with_ann!BS1","v":"B19037_034M"},{"$f":"[1]ACS_16_5YR_B19037_with_ann!BT1","v":"B19037_035E"},{"$f":"[1]ACS_16_5YR_B19037_with_ann!BU1","v":"B19037_035M"},{"$f":"[1]ACS_16_5YR_B19037_with_ann!BV1","v":"B19037_036E"},{"$f":"[1]ACS_16_5YR_B19037_with_ann!BW1","v":"B19037_036M"},{"$f":"[1]ACS_16_5YR_B19037_with_ann!BX1","v":"B19037_037E"},{"$f":"[1]ACS_16_5YR_B19037_with_ann!BY1","v":"B19037_037M"},{"$f":"[1]ACS_16_5YR_B19037_with_ann!BZ1","v":"B19037_038E"},{"$f":"[1]ACS_16_5YR_B19037_with_ann!CA1","v":"B19037_038M"},{"$f":"[1]ACS_16_5YR_B19037_with_ann!CB1","v":"B19037_039E"},{"$f":"[1]ACS_16_5YR_B19037_with_ann!CC1","v":"B19037_039M"},{"$f":"[1]ACS_16_5YR_B19037_with_ann!CD1","v":"B19037_040E"},{"$f":"[1]ACS_16_5YR_B19037_with_ann!CE1","v":"B19037_040M"},{"$f":"[1]ACS_16_5YR_B19037_with_ann!CF1","v":"B19037_041E"},{"$f":"[1]ACS_16_5YR_B19037_with_ann!CG1","v":"B19037_041M"},{"$f":"[1]ACS_16_5YR_B19037_with_ann!CH1","v":"B19037_042E"},{"$f":"[1]ACS_16_5YR_B19037_with_ann!CI1","v":"B19037_042M"},{"$f":"[1]ACS_16_5YR_B19037_with_ann!CJ1","v":"B19037_043E"},{"$f":"[1]ACS_16_5YR_B19037_with_ann!CK1","v":"B19037_043M"},{"$f":"[1]ACS_16_5YR_B19037_with_ann!CL1","v":"B19037_044E"},{"$f":"[1]ACS_16_5YR_B19037_with_ann!CM1","v":"B19037_044M"},{"$f":"[1]ACS_16_5YR_B19037_with_ann!CN1","v":"B19037_045E"},{"$f":"[1]ACS_16_5YR_B19037_with_ann!CO1","v":"B19037_045M"},{"$f":"[1]ACS_16_5YR_B19037_with_ann!CP1","v":"B19037_046E"},{"$f":"[1]ACS_16_5YR_B19037_with_ann!CQ1","v":"B19037_046M"},{"$f":"[1]ACS_16_5YR_B19037_with_ann!CR1","v":"B19037_047E"},{"$f":"[1]ACS_16_5YR_B19037_with_ann!CS1","v":"B19037_047M"},{"$f":"[1]ACS_16_5YR_B19037_with_ann!CT1","v":"B19037_048E"},{"$f":"[1]ACS_16_5YR_B19037_with_ann!CU1","v":"B19037_048M"},{"$f":"[1]ACS_16_5YR_B19037_with_ann!CV1","v":"B19037_049E"},{"$f":"[1]ACS_16_5YR_B19037_with_ann!CW1","v":"B19037_049M"},{"$f":"[1]ACS_16_5YR_B19037_with_ann!CX1","v":"B19037_050E"},{"$f":"[1]ACS_16_5YR_B19037_with_ann!CY1","v":"B19037_050M"},{"$f":"[1]ACS_16_5YR_B19037_with_ann!CZ1","v":"B19037_051E"},{"$f":"[1]ACS_16_5YR_B19037_with_ann!DA1","v":"B19037_051M"},{"$f":"[1]ACS_16_5YR_B19037_with_ann!DB1","v":"B19037_052E"},{"$f":"[1]ACS_16_5YR_B19037_with_ann!DC1","v":"B19037_052M"},{"$f":"[1]ACS_16_5YR_B19037_with_ann!DD1","v":"B19037_053E"},{"$f":"[1]ACS_16_5YR_B19037_with_ann!DE1","v":"B19037_053M"},{"$f":"[1]ACS_16_5YR_B19037_with_ann!DF1","v":"B19037_054E"},{"$f":"[1]ACS_16_5YR_B19037_with_ann!DG1","v":"B19037_054M"},{"$f":"[1]ACS_16_5YR_B19037_with_ann!DH1","v":"B19037_055E"},{"$f":"[1]ACS_16_5YR_B19037_with_ann!DI1","v":"B19037_055M"},{"$f":"[1]ACS_16_5YR_B19037_with_ann!DJ1","v":"B19037_056E"},{"$f":"[1]ACS_16_5YR_B19037_with_ann!DK1","v":"B19037_056M"},{"$f":"[1]ACS_16_5YR_B19037_with_ann!DL1","v":"B19037_057E"},{"$f":"[1]ACS_16_5YR_B19037_with_ann!DM1","v":"B19037_057M"},{"$f":"[1]ACS_16_5YR_B19037_with_ann!DN1","v":"B19037_058E"},{"$f":"[1]ACS_16_5YR_B19037_with_ann!DO1","v":"B19037_058M"},{"$f":"[1]ACS_16_5YR_B19037_with_ann!DP1","v":"B19037_059E"},{"$f":"[1]ACS_16_5YR_B19037_with_ann!DQ1","v":"B19037_059M"},{"$f":"[1]ACS_16_5YR_B19037_with_ann!DR1","v":"B19037_060E"},{"$f":"[1]ACS_16_5YR_B19037_with_ann!DS1","v":"B19037_060M"},{"$f":"[1]ACS_16_5YR_B19037_with_ann!DT1","v":"B19037_061E"},{"$f":"[1]ACS_16_5YR_B19037_with_ann!DU1","v":"B19037_061M"},{"$f":"[1]ACS_16_5YR_B19037_with_ann!DV1","v":"B19037_062E"},{"$f":"[1]ACS_16_5YR_B19037_with_ann!DW1","v":"B19037_062M"},{"$f":"[1]ACS_16_5YR_B19037_with_ann!DX1","v":"B19037_063E"},{"$f":"[1]ACS_16_5YR_B19037_with_ann!DY1","v":"B19037_063M"},{"$f":"[1]ACS_16_5YR_B19037_with_ann!DZ1","v":"B19037_064E"},{"$f":"[1]ACS_16_5YR_B19037_with_ann!EA1","v":"B19037_064M"},{"$f":"[1]ACS_16_5YR_B19037_with_ann!EB1","v":"B19037_065E"},{"$f":"[1]ACS_16_5YR_B19037_with_ann!EC1","v":"B19037_065M"},{"$f":"[1]ACS_16_5YR_B19037_with_ann!ED1","v":"B19037_066E"},{"$f":"[1]ACS_16_5YR_B19037_with_ann!EE1","v":"B19037_066M"},{"$f":"[1]ACS_16_5YR_B19037_with_ann!EF1","v":"B19037_067E"},{"$f":"[1]ACS_16_5YR_B19037_with_ann!EG1","v":"B19037_067M"},{"$f":"[1]ACS_16_5YR_B19037_with_ann!EH1","v":"B19037_068E"},{"$f":"[1]ACS_16_5YR_B19037_with_ann!EI1","v":"B19037_068M"},{"$f":"[1]ACS_16_5YR_B19037_with_ann!EJ1","v":"B19037_069E"},{"$f":"[1]ACS_16_5YR_B19037_with_ann!EK1","v":"B19037_069M"}]
["Geography Identifier","Geography Identifier","Geographic Summary Level",{"$f":"[1]ACS_16_5YR_B19037_with_ann!C2","v":"Geographic Area Name"},{"$f":"[1]ACS_16_5YR_B19037_with_ann!D2","v":"Estimate!!Total:"},{"$f":"[1]ACS_16_5YR_B19037_with_ann!E2","v":"Margin of Error!!Total:"},{"$f":"[1]ACS_16_5YR_B19037_with_ann!F2","v":"Estimate!!Total:!!Householder under 25 years:"},{"$f":"[1]ACS_16_5YR_B19037_with_ann!G2","v":"Margin of Error!!Total:!!Householder under 25 years:"},{"$f":"[1]ACS_16_5YR_B19037_with_ann!H2","v":"Estimate!!Total:!!Householder under 25 years:!!Less than $10,000"},{"$f":"[1]ACS_16_5YR_B19037_with_ann!I2","v":"Margin of Error!!Total:!!Householder under 25 years:!!Less than $10,000"},{"$f":"[1]ACS_16_5YR_B19037_with_ann!J2","v":"Estimate!!Total:!!Householder under 25 years:!!$10,000 to $14,999"},{"$f":"[1]ACS_16_5YR_B19037_with_ann!K2","v":"Margin of Error!!Total:!!Householder under 25 years:!!$10,000 to $14,999"},{"$f":"[1]ACS_16_5YR_B19037_with_ann!L2","v":"Estimate!!Total:!!Householder under 25 years:!!$15,000 to $19,999"},{"$f":"[1]ACS_16_5YR_B19037_with_ann!M2","v":"Margin of Error!!Total:!!Householder under 25 years:!!$15,000 to $19,999"},{"$f":"[1]ACS_16_5YR_B19037_with_ann!N2","v":"Estimate!!Total:!!Householder under 25 years:!!$20,000 to $24,999"},{"$f":"[1]ACS_16_5YR_B19037_with_ann!O2","v":"Margin of Error!!Total:!!Householder under 25 years:!!$20,000 to $24,999"},{"$f":"[1]ACS_16_5YR_B19037_with_ann!P2","v":"Estimate!!Total:!!Householder under 25 years:!!$25,000 to $29,999"},{"$f":"[1]ACS_16_5YR_B19037_with_ann!Q2","v":"Margin of Error!!Total:!!Householder under 25 years:!!$25,000 to $29,999"},{"$f":"[1]ACS_16_5YR_B19037_with_ann!R2","v":"Estimate!!Total:!!Householder under 25 years:!!$30,000 to $34,999"},{"$f":"[1]ACS_16_5YR_B19037_with_ann!S2","v":"Margin of Error!!Total:!!Householder under 25 years:!!$30,000 to $34,999"},{"$f":"[1]ACS_16_5YR_B19037_with_ann!T2","v":"Estimate!!Total:!!Householder under 25 years:!!$35,000 to $39,999"},{"$f":"[1]ACS_16_5YR_B19037_with_ann!U2","v":"Margin of Error!!Total:!!Householder under 25 years:!!$35,000 to $39,999"},{"$f":"[1]ACS_16_5YR_B19037_with_ann!V2","v":"Estimate!!Total:!!Householder under 25 years:!!$40,000 to $44,999"},{"$f":"[1]ACS_16_5YR_B19037_with_ann!W2","v":"Margin of Error!!Total:!!Householder under 25 years:!!$40,000 to $44,999"},{"$f":"[1]ACS_16_5YR_B19037_with_ann!X2","v":"Estimate!!Total:!!Householder under 25 years:!!$45,000 to $49,999"},{"$f":"[1]ACS_16_5YR_B19037_with_ann!Y2","v":"Margin of Error!!Total:!!Householder under 25 years:!!$45,000 to $49,999"},{"$f":"[1]ACS_16_5YR_B19037_with_ann!Z2","v":"Estimate!!Total:!!Householder under 25 years:!!$50,000 to $59,999"},{"$f":"[1]ACS_16_5YR_B19037_with_ann!AA2","v":"Margin of Error!!Total:!!Householder under 25 years:!!$50,000 to $59,999"},{"$f":"[1]ACS_16_5YR_B19037_with_ann!AB2","v":"Estimate!!Total:!!Householder under 25 years:!!$60,000 to $74,999"},{"$f":"[1]ACS_16_5YR_B19037_with_ann!AC2","v":"Margin of Error!!Total:!!Householder under 25 years:!!$60,000 to $74,999"},{"$f":"[1]ACS_16_5YR_B19037_with_ann!AD2","v":"Estimate!!Total:!!Householder under 25 years:!!$75,000 to $99,999"},{"$f":"[1]ACS_16_5YR_B19037_with_ann!AE2","v":"Margin of Error!!Total:!!Householder under 25 years:!!$75,000 to $99,999"},{"$f":"[1]ACS_16_5YR_B19037_with_ann!AF2","v":"Estimate!!Total:!!Householder under 25 years:!!$100,000 to $124,999"},{"$f":"[1]ACS_16_5YR_B19037_with_ann!AG2","v":"Margin of Error!!Total:!!Householder under 25 years:!!$100,000 to $124,999"},{"$f":"[1]ACS_16_5YR_B19037_with_ann!AH2","v":"Estimate!!Total:!!Householder under 25 years:!!$125,000 to $149,999"},{"$f":"[1]ACS_16_5YR_B19037_with_ann!AI2","v":"Margin of Error!!Total:!!Householder under 25 years:!!$125,000 to $149,999"},{"$f":"[1]ACS_16_5YR_B19037_with_ann!AJ2","v":"Estimate!!Total:!!Householder under 25 years:!!$150,000 to $199,999"},{"$f":"[1]ACS_16_5YR_B19037_with_ann!AK2","v":"Margin of Error!!Total:!!Householder under 25 years:!!$150,000 to $199,999"},{"$f":"[1]ACS_16_5YR_B19037_with_ann!AL2","v":"Estimate!!Total:!!Householder under 25 years:!!$200,000 or more"},{"$f":"[1]ACS_16_5YR_B19037_with_ann!AM2","v":"Margin of Error!!Total:!!Householder under 25 years:!!$200,000 or more"},{"$f":"[1]ACS_16_5YR_B19037_with_ann!AN2","v":"Estimate!!Total:!!Householder 25 to 44 years:"},{"$f":"[1]ACS_16_5YR_B19037_with_ann!AO2","v":"Margin of Error!!Total:!!Householder 25 to 44 years:"},{"$f":"[1]ACS_16_5YR_B19037_with_ann!AP2","v":"Estimate!!Total:!!Householder 25 to 44 years:!!Less than $10,000"},{"$f":"[1]ACS_16_5YR_B19037_with_ann!AQ2","v":"Margin of Error!!Total:!!Householder 25 to 44 years:!!Less than $10,000"},{"$f":"[1]ACS_16_5YR_B19037_with_ann!AR2","v":"Estimate!!Total:!!Householder 25 to 44 years:!!$10,000 to $14,999"},{"$f":"[1]ACS_16_5YR_B19037_with_ann!AS2","v":"Margin of Error!!Total:!!Householder 25 to 44 years:!!$10,000 to $14,999"},{"$f":"[1]ACS_16_5YR_B19037_with_ann!AT2","v":"Estimate!!Total:!!Householder 25 to 44 years:!!$15,000 to $19,999"},{"$f":"[1]ACS_16_5YR_B19037_with_ann!AU2","v":"Margin of Error!!Total:!!Householder 25 to 44 years:!!$15,000 to $19,999"},{"$f":"[1]ACS_16_5YR_B19037_with_ann!AV2","v":"Estimate!!Total:!!Householder 25 to 44 years:!!$20,000 to $24,999"},{"$f":"[1]ACS_16_5YR_B19037_with_ann!AW2","v":"Margin of Error!!Total:!!Householder 25 to 44 years:!!$20,000 to $24,999"},{"$f":"[1]ACS_16_5YR_B19037_with_ann!AX2","v":"Estimate!!Total:!!Householder 25 to 44 years:!!$25,000 to $29,999"},{"$f":"[1]ACS_16_5YR_B19037_with_ann!AY2","v":"Margin of Error!!Total:!!Householder 25 to 44 years:!!$25,000 to $29,999"},{"$f":"[1]ACS_16_5YR_B19037_with_ann!AZ2","v":"Estimate!!Total:!!Householder 25 to 44 years:!!$30,000 to $34,999"},{"$f":"[1]ACS_16_5YR_B19037_with_ann!BA2","v":"Margin of Error!!Total:!!Householder 25 to 44 years:!!$30,000 to $34,999"},{"$f":"[1]ACS_16_5YR_B19037_with_ann!BB2","v":"Estimate!!Total:!!Householder 25 to 44 years:!!$35,000 to $39,999"},{"$f":"[1]ACS_16_5YR_B19037_with_ann!BC2","v":"Margin of Error!!Total:!!Householder 25 to 44 years:!!$35,000 to $39,999"},{"$f":"[1]ACS_16_5YR_B19037_with_ann!BD2","v":"Estimate!!Total:!!Householder 25 to 44 years:!!$40,000 to $44,999"},{"$f":"[1]ACS_16_5YR_B19037_with_ann!BE2","v":"Margin of Error!!Total:!!Householder 25 to 44 years:!!$40,000 to $44,999"},{"$f":"[1]ACS_16_5YR_B19037_with_ann!BF2","v":"Estimate!!Total:!!Householder 25 to 44 years:!!$45,000 to $49,999"},{"$f":"[1]ACS_16_5YR_B19037_with_ann!BG2","v":"Margin of Error!!Total:!!Householder 25 to 44 years:!!$45,000 to $49,999"},{"$f":"[1]ACS_16_5YR_B19037_with_ann!BH2","v":"Estimate!!Total:!!Householder 25 to 44 years:!!$50,000 to $59,999"},{"$f":"[1]ACS_16_5YR_B19037_with_ann!BI2","v":"Margin of Error!!Total:!!Householder 25 to 44 years:!!$50,000 to $59,999"},{"$f":"[1]ACS_16_5YR_B19037_with_ann!BJ2","v":"Estimate!!Total:!!Householder 25 to 44 years:!!$60,000 to $74,999"},{"$f":"[1]ACS_16_5YR_B19037_with_ann!BK2","v":"Margin of Error!!Total:!!Householder 25 to 44 years:!!$60,000 to $74,999"},{"$f":"[1]ACS_16_5YR_B19037_with_ann!BL2","v":"Estimate!!Total:!!Householder 25 to 44 years:!!$75,000 to $99,999"},{"$f":"[1]ACS_16_5YR_B19037_with_ann!BM2","v":"Margin of Error!!Total:!!Householder 25 to 44 years:!!$75,000 to $99,999"},{"$f":"[1]ACS_16_5YR_B19037_with_ann!BN2","v":"Estimate!!Total:!!Householder 25 to 44 years:!!$100,000 to $124,999"},{"$f":"[1]ACS_16_5YR_B19037_with_ann!BO2","v":"Margin of Error!!Total:!!Householder 25 to 44 years:!!$100,000 to $124,999"},{"$f":"[1]ACS_16_5YR_B19037_with_ann!BP2","v":"Estimate!!Total:!!Householder 25 to 44 years:!!$125,000 to $149,999"},{"$f":"[1]ACS_16_5YR_B19037_with_ann!BQ2","v":"Margin of Error!!Total:!!Householder 25 to 44 years:!!$125,000 to $149,999"},{"$f":"[1]ACS_16_5YR_B19037_with_ann!BR2","v":"Estimate!!Total:!!Householder 25 to 44 years:!!$150,000 to $199,999"},{"$f":"[1]ACS_16_5YR_B19037_with_ann!BS2","v":"Margin of Error!!Total:!!Householder 25 to 44 years:!!$150,000 to $199,999"},{"$f":"[1]ACS_16_5YR_B19037_with_ann!BT2","v":"Estimate!!Total:!!Householder 25 to 44 years:!!$200,000 or more"},{"$f":"[1]ACS_16_5YR_B19037_with_ann!BU2","v":"Margin of Error!!Total:!!Householder 25 to 44 years:!!$200,000 or more"},{"$f":"[1]ACS_16_5YR_B19037_with_ann!BV2","v":"Estimate!!Total:!!Householder 45 to 64 years:"},{"$f":"[1]ACS_16_5YR_B19037_with_ann!BW2","v":"Margin of Error!!Total:!!Householder 45 to 64 years:"},{"$f":"[1]ACS_16_5YR_B19037_with_ann!BX2","v":"Estimate!!Total:!!Householder 45 to 64 years:!!Less than $10,000"},{"$f":"[1]ACS_16_5YR_B19037_with_ann!BY2","v":"Margin of Error!!Total:!!Householder 45 to 64 years:!!Less than $10,000"},{"$f":"[1]ACS_16_5YR_B19037_with_ann!BZ2","v":"Estimate!!Total:!!Householder 45 to 64 years:!!$10,000 to $14,999"},{"$f":"[1]ACS_16_5YR_B19037_with_ann!CA2","v":"Margin of Error!!Total:!!Householder 45 to 64 years:!!$10,000 to $14,999"},{"$f":"[1]ACS_16_5YR_B19037_with_ann!CB2","v":"Estimate!!Total:!!Householder 45 to 64 years:!!$15,000 to $19,999"},{"$f":"[1]ACS_16_5YR_B19037_with_ann!CC2","v":"Margin of Error!!Total:!!Householder 45 to 64 years:!!$15,000 to $19,999"},{"$f":"[1]ACS_16_5YR_B19037_with_ann!CD2","v":"Estimate!!Total:!!Householder 45 to 64 years:!!$20,000 to $24,999"},{"$f":"[1]ACS_16_5YR_B19037_with_ann!CE2","v":"Margin of Error!!Total:!!Householder 45 to 64 years:!!$20,000 to $24,999"},{"$f":"[1]ACS_16_5YR_B19037_with_ann!CF2","v":"Estimate!!Total:!!Householder 45 to 64 years:!!$25,000 to $29,999"},{"$f":"[1]ACS_16_5YR_B19037_with_ann!CG2","v":"Margin of Error!!Total:!!Householder 45 to 64 years:!!$25,000 to $29,999"},{"$f":"[1]ACS_16_5YR_B19037_with_ann!CH2","v":"Estimate!!Total:!!Householder 45 to 64 years:!!$30,000 to $34,999"},{"$f":"[1]ACS_16_5YR_B19037_with_ann!CI2","v":"Margin of Error!!Total:!!Householder 45 to 64 years:!!$30,000 to $34,999"},{"$f":"[1]ACS_16_5YR_B19037_with_ann!CJ2","v":"Estimate!!Total:!!Householder 45 to 64 years:!!$35,000 to $39,999"},{"$f":"[1]ACS_16_5YR_B19037_with_ann!CK2","v":"Margin of Error!!Total:!!Householder 45 to 64 years:!!$35,000 to $39,999"},{"$f":"[1]ACS_16_5YR_B19037_with_ann!CL2","v":"Estimate!!Total:!!Householder 45 to 64 years:!!$40,000 to $44,999"},{"$f":"[1]ACS_16_5YR_B19037_with_ann!CM2","v":"Margin of Error!!Total:!!Householder 45 to 64 years:!!$40,000 to $44,999"},{"$f":"[1]ACS_16_5YR_B19037_with_ann!CN2","v":"Estimate!!Total:!!Householder 45 to 64 years:!!$45,000 to $49,999"},{"$f":"[1]ACS_16_5YR_B19037_with_ann!CO2","v":"Margin of Error!!Total:!!Householder 45 to 64 years:!!$45,000 to $49,999"},{"$f":"[1]ACS_16_5YR_B19037_with_ann!CP2","v":"Estimate!!Total:!!Householder 45 to 64 years:!!$50,000 to $59,999"},{"$f":"[1]ACS_16_5YR_B19037_with_ann!CQ2","v":"Margin of Error!!Total:!!Householder 45 to 64 years:!!$50,000 to $59,999"},{"$f":"[1]ACS_16_5YR_B19037_with_ann!CR2","v":"Estimate!!Total:!!Householder 45 to 64 years:!!$60,000 to $74,999"},{"$f":"[1]ACS_16_5YR_B19037_with_ann!CS2","v":"Margin of Error!!Total:!!Householder 45 to 64 years:!!$60,000 to $74,999"},{"$f":"[1]ACS_16_5YR_B19037_with_ann!CT2","v":"Estimate!!Total:!!Householder 45 to 64 years:!!$75,000 to $99,999"},{"$f":"[1]ACS_16_5YR_B19037_with_ann!CU2","v":"Margin of Error!!Total:!!Householder 45 to 64 years:!!$75,000 to $99,999"},{"$f":"[1]ACS_16_5YR_B19037_with_ann!CV2","v":"Estimate!!Total:!!Householder 45 to 64 years:!!$100,000 to $124,999"},{"$f":"[1]ACS_16_5YR_B19037_with_ann!CW2","v":"Margin of Error!!Total:!!Householder 45 to 64 years:!!$100,000 to $124,999"},{"$f":"[1]ACS_16_5YR_B19037_with_ann!CX2","v":"Estimate!!Total:!!Householder 45 to 64 years:!!$125,000 to $149,999"},{"$f":"[1]ACS_16_5YR_B19037_with_ann!CY2","v":"Margin of Error!!Total:!!Householder 45 to 64 years:!!$125,000 to $149,999"},{"$f":"[1]ACS_16_5YR_B19037_with_ann!CZ2","v":"Estimate!!Total:!!Householder 45 to 64 years:!!$150,000 to $199,999"},{"$f":"[1]ACS_16_5YR_B19037_with_ann!DA2","v":"Margin of Error!!Total:!!Householder 45 to 64 years:!!$150,000 to $199,999"},{"$f":"[1]ACS_16_5YR_B19037_with_ann!DB2","v":"Estimate!!Total:!!Householder 45 to 64 years:!!$200,000 or more"},{"$f":"[1]ACS_16_5YR_B19037_with_ann!DC2","v":"Margin of Error!!Total:!!Householder 45 to 64 years:!!$200,000 or more"},{"$f":"[1]ACS_16_5YR_B19037_with_ann!DD2","v":"Estimate!!Total:!!Householder 65 years and over:"},{"$f":"[1]ACS_16_5YR_B19037_with_ann!DE2","v":"Margin of Error!!Total:!!Householder 65 years and over:"},{"$f":"[1]ACS_16_5YR_B19037_with_ann!DF2","v":"Estimate!!Total:!!Householder 65 years and over:!!Less than $10,000"},{"$f":"[1]ACS_16_5YR_B19037_with_ann!DG2","v":"Margin of Error!!Total:!!Householder 65 years and over:!!Less than $10,000"},{"$f":"[1]ACS_16_5YR_B19037_with_ann!DH2","v":"Estimate!!Total:!!Householder 65 years and over:!!$10,000 to $14,999"},{"$f":"[1]ACS_16_5YR_B19037_with_ann!DI2","v":"Margin of Error!!Total:!!Householder 65 years and over:!!$10,000 to $14,999"},{"$f":"[1]ACS_16_5YR_B19037_with_ann!DJ2","v":"Estimate!!Total:!!Householder 65 years and over:!!$15,000 to $19,999"},{"$f":"[1]ACS_16_5YR_B19037_with_ann!DK2","v":"Margin of Error!!Total:!!Householder 65 years and over:!!$15,000 to $19,999"},{"$f":"[1]ACS_16_5YR_B19037_with_ann!DL2","v":"Estimate!!Total:!!Householder 65 years and over:!!$20,000 to $24,999"},{"$f":"[1]ACS_16_5YR_B19037_with_ann!DM2","v":"Margin of Error!!Total:!!Householder 65 years and over:!!$20,000 to $24,999"},{"$f":"[1]ACS_16_5YR_B19037_with_ann!DN2","v":"Estimate!!Total:!!Householder 65 years and over:!!$25,000 to $29,999"},{"$f":"[1]ACS_16_5YR_B19037_with_ann!DO2","v":"Margin of Error!!Total:!!Householder 65 years and over:!!$25,000 to $29,999"},{"$f":"[1]ACS_16_5YR_B19037_with_ann!DP2","v":"Estimate!!Total:!!Householder 65 years and over:!!$30,000 to $34,999"},{"$f":"[1]ACS_16_5YR_B19037_with_ann!DQ2","v":"Margin of Error!!Total:!!Householder 65 years and over:!!$30,000 to $34,999"},{"$f":"[1]ACS_16_5YR_B19037_with_ann!DR2","v":"Estimate!!Total:!!Householder 65 years and over:!!$35,000 to $39,999"},{"$f":"[1]ACS_16_5YR_B19037_with_ann!DS2","v":"Margin of Error!!Total:!!Householder 65 years and over:!!$35,000 to $39,999"},{"$f":"[1]ACS_16_5YR_B19037_with_ann!DT2","v":"Estimate!!Total:!!Householder 65 years and over:!!$40,000 to $44,999"},{"$f":"[1]ACS_16_5YR_B19037_with_ann!DU2","v":"Margin of Error!!Total:!!Householder 65 years and over:!!$40,000 to $44,999"},{"$f":"[1]ACS_16_5YR_B19037_with_ann!DV2","v":"Estimate!!Total:!!Householder 65 years and over:!!$45,000 to $49,999"},{"$f":"[1]ACS_16_5YR_B19037_with_ann!DW2","v":"Margin of Error!!Total:!!Householder 65 years and over:!!$45,000 to $49,999"},{"$f":"[1]ACS_16_5YR_B19037_with_ann!DX2","v":"Estimate!!Total:!!Householder 65 years and over:!!$50,000 to $59,999"},{"$f":"[1]ACS_16_5YR_B19037_with_ann!DY2","v":"Margin of Error!!Total:!!Householder 65 years and over:!!$50,000 to $59,999"},{"$f":"[1]ACS_16_5YR_B19037_with_ann!DZ2","v":"Estimate!!Total:!!Householder 65 years and over:!!$60,000 to $74,999"},{"$f":"[1]ACS_16_5YR_B19037_with_ann!EA2","v":"Margin of Error!!Total:!!Householder 65 years and over:!!$60,000 to $74,999"},{"$f":"[1]ACS_16_5YR_B19037_with_ann!EB2","v":"Estimate!!Total:!!Householder 65 years and over:!!$75,000 to $99,999"},{"$f":"[1]ACS_16_5YR_B19037_with_ann!EC2","v":"Margin of Error!!Total:!!Householder 65 years and over:!!$75,000 to $99,999"},{"$f":"[1]ACS_16_5YR_B19037_with_ann!ED2","v":"Estimate!!Total:!!Householder 65 years and over:!!$100,000 to $124,999"},{"$f":"[1]ACS_16_5YR_B19037_with_ann!EE2","v":"Margin of Error!!Total:!!Householder 65 years and over:!!$100,000 to $124,999"},{"$f":"[1]ACS_16_5YR_B19037_with_ann!EF2","v":"Estimate!!Total:!!Householder 65 years and over:!!$125,000 to $149,999"},{"$f":"[1]ACS_16_5YR_B19037_with_ann!EG2","v":"Margin of Error!!Total:!!Householder 65 years and over:!!$125,000 to $149,999"},{"$f":"[1]ACS_16_5YR_B19037_with_ann!EH2","v":"Estimate!!Total:!!Householder 65 years and over:!!$150,000 to $199,999"},{"$f":"[1]ACS_16_5YR_B19037_with_ann!EI2","v":"Margin of Error!!Total:!!Householder 65 years and over:!!$150,000 to $199,999"},{"$f":"[1]ACS_16_5YR_B19037_with_ann!EJ2","v":"Estimate!!Total:!!Householder 65 years and over:!!$200,000 or more"},{"$f":"[1]ACS_16_5YR_B19037_with_ann!EK2","v":"Margin of Error!!Total:!!Householder 65 years and over:!!$200,000 or more"}]
["06000US3300500820","0600000US3300512260","060",{"$f":"[1]ACS_16_5YR_B19037_with_ann!C44","v":"Alstead"},{"$f":"[1]ACS_16_5YR_B19037_with_ann!D44","v":723},{"$f":"[1]ACS_16_5YR_B19037_with_ann!E44","v":97},{"$f":"[1]ACS_16_5YR_B19037_with_ann!F44","v":0},{"$f":"[1]ACS_16_5YR_B19037_with_ann!G44","v":12},{"$f":"[1]ACS_16_5YR_B19037_with_ann!H44","v":0},{"$f":"[1]ACS_16_5YR_B19037_with_ann!I44","v":12},{"$f":"[1]ACS_16_5YR_B19037_with_ann!J44","v":0},{"$f":"[1]ACS_16_5YR_B19037_with_ann!K44","v":12},{"$f":"[1]ACS_16_5YR_B19037_with_ann!L44","v":0},{"$f":"[1]ACS_16_5YR_B19037_with_ann!M44","v":12},{"$f":"[1]ACS_16_5YR_B19037_with_ann!N44","v":0},{"$f":"[1]ACS_16_5YR_B19037_with_ann!O44","v":12},{"$f":"[1]ACS_16_5YR_B19037_with_ann!P44","v":0},{"$f":"[1]ACS_16_5YR_B19037_with_ann!Q44","v":12},{"$f":"[1]ACS_16_5YR_B19037_with_ann!R44","v":0},{"$f":"[1]ACS_16_5YR_B19037_with_ann!S44","v":12},{"$f":"[1]ACS_16_5YR_B19037_with_ann!T44","v":0},{"$f":"[1]ACS_16_5YR_B19037_with_ann!U44","v":12},{"$f":"[1]ACS_16_5YR_B19037_with_ann!V44","v":0},{"$f":"[1]ACS_16_5YR_B19037_with_ann!W44","v":12},{"$f":"[1]ACS_16_5YR_B19037_with_ann!X44","v":0},{"$f":"[1]ACS_16_5YR_B19037_with_ann!Y44","v":12},{"$f":"[1]ACS_16_5YR_B19037_with_ann!Z44","v":0},{"$f":"[1]ACS_16_5YR_B19037_with_ann!AA44","v":12},{"$f":"[1]ACS_16_5YR_B19037_with_ann!AB44","v":0},{"$f":"[1]ACS_16_5YR_B19037_with_ann!AC44","v":12},{"$f":"[1]ACS_16_5YR_B19037_with_ann!AD44","v":0},{"$f":"[1]ACS_16_5YR_B19037_with_ann!AE44","v":12},{"$f":"[1]ACS_16_5YR_B19037_with_ann!AF44","v":0},{"$f":"[1]ACS_16_5YR_B19037_with_ann!AG44","v":12},{"$f":"[1]ACS_16_5YR_B19037_with_ann!AH44","v":0},{"$f":"[1]ACS_16_5YR_B19037_with_ann!AI44","v":12},{"$f":"[1]ACS_16_5YR_B19037_with_ann!AJ44","v":0},{"$f":"[1]ACS_16_5YR_B19037_with_ann!AK44","v":12},{"$f":"[1]ACS_16_5YR_B19037_with_ann!AL44","v":0},{"$f":"[1]ACS_16_5YR_B19037_with_ann!AM44","v":12},{"$f":"[1]ACS_16_5YR_B19037_with_ann!AN44","v":145},{"$f":"[1]ACS_16_5YR_B19037_with_ann!AO44","v":54},{"$f":"[1]ACS_16_5YR_B19037_with_ann!AP44","v":28},{"$f":"[1]ACS_16_5YR_B19037_with_ann!AQ44","v":38},{"$f":"[1]ACS_16_5YR_B19037_with_ann!AR44","v":0},{"$f":"[1]ACS_16_5YR_B19037_with_ann!AS44","v":12},{"$f":"[1]ACS_16_5YR_B19037_with_ann!AT44","v":0},{"$f":"[1]ACS_16_5YR_B19037_with_ann!AU44","v":12},{"$f":"[1]ACS_16_5YR_B19037_with_ann!AV44","v":0},{"$f":"[1]ACS_16_5YR_B19037_with_ann!AW44","v":12},{"$f":"[1]ACS_16_5YR_B19037_with_ann!AX44","v":0},{"$f":"[1]ACS_16_5YR_B19037_with_ann!AY44","v":12},{"$f":"[1]ACS_16_5YR_B19037_with_ann!AZ44","v":9},{"$f":"[1]ACS_16_5YR_B19037_with_ann!BA44","v":8},{"$f":"[1]ACS_16_5YR_B19037_with_ann!BB44","v":10},{"$f":"[1]ACS_16_5YR_B19037_with_ann!BC44","v":10},{"$f":"[1]ACS_16_5YR_B19037_with_ann!BD44","v":0},{"$f":"[1]ACS_16_5YR_B19037_with_ann!BE44","v":12},{"$f":"[1]ACS_16_5YR_B19037_with_ann!BF44","v":0},{"$f":"[1]ACS_16_5YR_B19037_with_ann!BG44","v":12},{"$f":"[1]ACS_16_5YR_B19037_with_ann!BH44","v":24},{"$f":"[1]ACS_16_5YR_B19037_with_ann!BI44","v":22},{"$f":"[1]ACS_16_5YR_B19037_with_ann!BJ44","v":0},{"$f":"[1]ACS_16_5YR_B19037_with_ann!BK44","v":12},{"$f":"[1]ACS_16_5YR_B19037_with_ann!BL44","v":8},{"$f":"[1]ACS_16_5YR_B19037_with_ann!BM44","v":9},{"$f":"[1]ACS_16_5YR_B19037_with_ann!BN44","v":15},{"$f":"[1]ACS_16_5YR_B19037_with_ann!BO44","v":15},{"$f":"[1]ACS_16_5YR_B19037_with_ann!BP44","v":4},{"$f":"[1]ACS_16_5YR_B19037_with_ann!BQ44","v":7},{"$f":"[1]ACS_16_5YR_B19037_with_ann!BR44","v":47},{"$f":"[1]ACS_16_5YR_B19037_with_ann!BS44","v":27},{"$f":"[1]ACS_16_5YR_B19037_with_ann!BT44","v":0},{"$f":"[1]ACS_16_5YR_B19037_with_ann!BU44","v":12},{"$f":"[1]ACS_16_5YR_B19037_with_ann!BV44","v":294},{"$f":"[1]ACS_16_5YR_B19037_with_ann!BW44","v":75},{"$f":"[1]ACS_16_5YR_B19037_with_ann!BX44","v":0},{"$f":"[1]ACS_16_5YR_B19037_with_ann!BY44","v":12},{"$f":"[1]ACS_16_5YR_B19037_with_ann!BZ44","v":5},{"$f":"[1]ACS_16_5YR_B19037_with_ann!CA44","v":6},{"$f":"[1]ACS_16_5YR_B19037_with_ann!CB44","v":11},{"$f":"[1]ACS_16_5YR_B19037_with_ann!CC44","v":7},{"$f":"[1]ACS_16_5YR_B19037_with_ann!CD44","v":47},{"$f":"[1]ACS_16_5YR_B19037_with_ann!CE44","v":55},{"$f":"[1]ACS_16_5YR_B19037_with_ann!CF44","v":4},{"$f":"[1]ACS_16_5YR_B19037_with_ann!CG44","v":7},{"$f":"[1]ACS_16_5YR_B19037_with_ann!CH44","v":0},{"$f":"[1]ACS_16_5YR_B19037_with_ann!CI44","v":12},{"$f":"[1]ACS_16_5YR_B19037_with_ann!CJ44","v":5},{"$f":"[1]ACS_16_5YR_B19037_with_ann!CK44","v":6},{"$f":"[1]ACS_16_5YR_B19037_with_ann!CL44","v":0},{"$f":"[1]ACS_16_5YR_B19037_with_ann!CM44","v":12},{"$f":"[1]ACS_16_5YR_B19037_with_ann!CN44","v":32},{"$f":"[1]ACS_16_5YR_B19037_with_ann!CO44","v":25},{"$f":"[1]ACS_16_5YR_B19037_with_ann!CP44","v":40},{"$f":"[1]ACS_16_5YR_B19037_with_ann!CQ44","v":47},{"$f":"[1]ACS_16_5YR_B19037_with_ann!CR44","v":13},{"$f":"[1]ACS_16_5YR_B19037_with_ann!CS44","v":11},{"$f":"[1]ACS_16_5YR_B19037_with_ann!CT44","v":35},{"$f":"[1]ACS_16_5YR_B19037_with_ann!CU44","v":25},{"$f":"[1]ACS_16_5YR_B19037_with_ann!CV44","v":31},{"$f":"[1]ACS_16_5YR_B19037_with_ann!CW44","v":18},{"$f":"[1]ACS_16_5YR_B19037_with_ann!CX44","v":26},{"$f":"[1]ACS_16_5YR_B19037_with_ann!CY44","v":16},{"$f":"[1]ACS_16_5YR_B19037_with_ann!CZ44","v":21},{"$f":"[1]ACS_16_5YR_B19037_with_ann!DA44","v":14},{"$f":"[1]ACS_16_5YR_B19037_with_ann!DB44","v":24},{"$f":"[1]ACS_16_5YR_B19037_with_ann!DC44","v":14},{"$f":"[1]ACS_16_5YR_B19037_with_ann!DD44","v":284},{"$f":"[1]ACS_16_5YR_B19037_with_ann!DE44","v":81},{"$f":"[1]ACS_16_5YR_B19037_with_ann!DF44","v":26},{"$f":"[1]ACS_16_5YR_B19037_with_ann!DG44","v":27},{"$f":"[1]ACS_16_5YR_B19037_with_ann!DH44","v":42},{"$f":"[1]ACS_16_5YR_B19037_with_ann!DI44","v":47},{"$f":"[1]ACS_16_5YR_B19037_with_ann!DJ44","v":12},{"$f":"[1]ACS_16_5YR_B19037_with_ann!DK44","v":11},{"$f":"[1]ACS_16_5YR_B19037_with_ann!DL44","v":26},{"$f":"[1]ACS_16_5YR_B19037_with_ann!DM44","v":30},{"$f":"[1]ACS_16_5YR_B19037_with_ann!DN44","v":2},{"$f":"[1]ACS_16_5YR_B19037_with_ann!DO44","v":3},{"$f":"[1]ACS_16_5YR_B19037_with_ann!DP44","v":20},{"$f":"[1]ACS_16_5YR_B19037_with_ann!DQ44","v":21},{"$f":"[1]ACS_16_5YR_B19037_with_ann!DR44","v":12},{"$f":"[1]ACS_16_5YR_B19037_with_ann!DS44","v":11},{"$f":"[1]ACS_16_5YR_B19037_with_ann!DT44","v":11},{"$f":"[1]ACS_16_5YR_B19037_with_ann!DU44","v":12},{"$f":"[1]ACS_16_5YR_B19037_with_ann!DV44","v":0},{"$f":"[1]ACS_16_5YR_B19037_with_ann!DW44","v":12},{"$f":"[1]ACS_16_5YR_B19037_with_ann!DX44","v":56},{"$f":"[1]ACS_16_5YR_B19037_with_ann!DY44","v":44},{"$f":"[1]ACS_16_5YR_B19037_with_ann!DZ44","v":11},{"$f":"[1]ACS_16_5YR_B19037_with_ann!EA44","v":10},{"$f":"[1]ACS_16_5YR_B19037_with_ann!EB44","v":31},{"$f":"[1]ACS_16_5YR_B19037_with_ann!EC44","v":18},{"$f":"[1]ACS_16_5YR_B19037_with_ann!ED44","v":24},{"$f":"[1]ACS_16_5YR_B19037_with_ann!EE44","v":16},{"$f":"[1]ACS_16_5YR_B19037_with_ann!EF44","v":4},{"$f":"[1]ACS_16_5YR_B19037_with_ann!EG44","v":8},{"$f":"[1]ACS_16_5YR_B19037_with_ann!EH44","v":7},{"$f":"[1]ACS_16_5YR_B19037_with_ann!EI44","v":9},{"$f":"[1]ACS_16_5YR_B19037_with_ann!EJ44","v":0},{"$f":"[1]ACS_16_5YR_B19037_with_ann!EK44","v":12}]
["06000US3300512260","0600000US3300519140","060",{"$f":"[1]ACS_16_5YR_B19037_with_ann!C45","v":"Chesterfield"},{"$f":"[1]ACS_16_5YR_B19037_with_ann!D45","v":1366},{"$f":"[1]ACS_16_5YR_B19037_with_ann!E45","v":158},{"$f":"[1]ACS_16_5YR_B19037_with_ann!F45","v":26},{"$f":"[1]ACS_16_5YR_B19037_with_ann!G45","v":41},{"$f":"[1]ACS_16_5YR_B19037_with_ann!H45","v":0},{"$f":"[1]ACS_16_5YR_B19037_with_ann!I45","v":12},{"$f":"[1]ACS_16_5YR_B19037_with_ann!J45","v":0},{"$f":"[1]ACS_16_5YR_B19037_with_ann!K45","v":12},{"$f":"[1]ACS_16_5YR_B19037_with_ann!L45","v":0},{"$f":"[1]ACS_16_5YR_B19037_with_ann!M45","v":12},{"$f":"[1]ACS_16_5YR_B19037_with_ann!N45","v":0},{"$f":"[1]ACS_16_5YR_B19037_with_ann!O45","v":12},{"$f":"[1]ACS_16_5YR_B19037_with_ann!P45","v":0},{"$f":"[1]ACS_16_5YR_B19037_with_ann!Q45","v":12},{"$f":"[1]ACS_16_5YR_B19037_with_ann!R45","v":0},{"$f":"[1]ACS_16_5YR_B19037_with_ann!S45","v":12},{"$f":"[1]ACS_16_5YR_B19037_with_ann!T45","v":0},{"$f":"[1]ACS_16_5YR_B19037_with_ann!U45","v":12},{"$f":"[1]ACS_16_5YR_B19037_with_ann!V45","v":0},{"$f":"[1]ACS_16_5YR_B19037_with_ann!W45","v":12},{"$f":"[1]ACS_16_5YR_B19037_with_ann!X45","v":0},{"$f":"[1]ACS_16_5YR_B19037_with_ann!Y45","v":12},{"$f":"[1]ACS_16_5YR_B19037_with_ann!Z45","v":0},{"$f":"[1]ACS_16_5YR_B19037_with_ann!AA45","v":12},{"$f":"[1]ACS_16_5YR_B19037_with_ann!AB45","v":0},{"$f":"[1]ACS_16_5YR_B19037_with_ann!AC45","v":12},{"$f":"[1]ACS_16_5YR_B19037_with_ann!AD45","v":26},{"$f":"[1]ACS_16_5YR_B19037_with_ann!AE45","v":41},{"$f":"[1]ACS_16_5YR_B19037_with_ann!AF45","v":0},{"$f":"[1]ACS_16_5YR_B19037_with_ann!AG45","v":12},{"$f":"[1]ACS_16_5YR_B19037_with_ann!AH45","v":0},{"$f":"[1]ACS_16_5YR_B19037_with_ann!AI45","v":12},{"$f":"[1]ACS_16_5YR_B19037_with_ann!AJ45","v":0},{"$f":"[1]ACS_16_5YR_B19037_with_ann!AK45","v":12},{"$f":"[1]ACS_16_5YR_B19037_with_ann!AL45","v":0},{"$f":"[1]ACS_16_5YR_B19037_with_ann!AM45","v":12},{"$f":"[1]ACS_16_5YR_B19037_with_ann!AN45","v":274},{"$f":"[1]ACS_16_5YR_B19037_with_ann!AO45","v":143},{"$f":"[1]ACS_16_5YR_B19037_with_ann!AP45","v":0},{"$f":"[1]ACS_16_5YR_B19037_with_ann!AQ45","v":12},{"$f":"[1]ACS_16_5YR_B19037_with_ann!AR45","v":0},{"$f":"[1]ACS_16_5YR_B19037_with_ann!AS45","v":12},{"$f":"[1]ACS_16_5YR_B19037_with_ann!AT45","v":0},{"$f":"[1]ACS_16_5YR_B19037_with_ann!AU45","v":12},{"$f":"[1]ACS_16_5YR_B19037_with_ann!AV45","v":0},{"$f":"[1]ACS_16_5YR_B19037_with_ann!AW45","v":12},{"$f":"[1]ACS_16_5YR_B19037_with_ann!AX45","v":33},{"$f":"[1]ACS_16_5YR_B19037_with_ann!AY45","v":45},{"$f":"[1]ACS_16_5YR_B19037_with_ann!AZ45","v":37},{"$f":"[1]ACS_16_5YR_B19037_with_ann!BA45","v":56},{"$f":"[1]ACS_16_5YR_B19037_with_ann!BB45","v":0},{"$f":"[1]ACS_16_5YR_B19037_with_ann!BC45","v":12},{"$f":"[1]ACS_16_5YR_B19037_with_ann!BD45","v":0},{"$f":"[1]ACS_16_5YR_B19037_with_ann!BE45","v":12},{"$f":"[1]ACS_16_5YR_B19037_with_ann!BF45","v":0},{"$f":"[1]ACS_16_5YR_B19037_with_ann!BG45","v":12},{"$f":"[1]ACS_16_5YR_B19037_with_ann!BH45","v":0},{"$f":"[1]ACS_16_5YR_B19037_with_ann!BI45","v":12},{"$f":"[1]ACS_16_5YR_B19037_with_ann!BJ45","v":14},{"$f":"[1]ACS_16_5YR_B19037_with_ann!BK45","v":23},{"$f":"[1]ACS_16_5YR_B19037_with_ann!BL45","v":0},{"$f":"[1]ACS_16_5YR_B19037_with_ann!BM45","v":12},{"$f":"[1]ACS_16_5YR_B19037_with_ann!BN45","v":81},{"$f":"[1]ACS_16_5YR_B19037_with_ann!BO45","v":67},{"$f":"[1]ACS_16_5YR_B19037_with_ann!BP45","v":69},{"$f":"[1]ACS_16_5YR_B19037_with_ann!BQ45","v":75},{"$f":"[1]ACS_16_5YR_B19037_with_ann!BR45","v":19},{"$f":"[1]ACS_16_5YR_B19037_with_ann!BS45","v":30},{"$f":"[1]ACS_16_5YR_B19037_with_ann!BT45","v":21},{"$f":"[1]ACS_16_5YR_B19037_with_ann!BU45","v":32},{"$f":"[1]ACS_16_5YR_B19037_with_ann!BV45","v":466},{"$f":"[1]ACS_16_5YR_B19037_with_ann!BW45","v":165},{"$f":"[1]ACS_16_5YR_B19037_with_ann!BX45","v":0},{"$f":"[1]ACS_16_5YR_B19037_with_ann!BY45","v":12},{"$f":"[1]ACS_16_5YR_B19037_with_ann!BZ45","v":18},{"$f":"[1]ACS_16_5YR_B19037_with_ann!CA45","v":29},{"$f":"[1]ACS_16_5YR_B19037_with_ann!CB45","v":0},{"$f":"[1]ACS_16_5YR_B19037_with_ann!CC45","v":12},{"$f":"[1]ACS_16_5YR_B19037_with_ann!CD45","v":0},{"$f":"[1]ACS_16_5YR_B19037_with_ann!CE45","v":12},{"$f":"[1]ACS_16_5YR_B19037_with_ann!CF45","v":0},{"$f":"[1]ACS_16_5YR_B19037_with_ann!CG45","v":12},{"$f":"[1]ACS_16_5YR_B19037_with_ann!CH45","v":0},{"$f":"[1]ACS_16_5YR_B19037_with_ann!CI45","v":12},{"$f":"[1]ACS_16_5YR_B19037_with_ann!CJ45","v":30},{"$f":"[1]ACS_16_5YR_B19037_with_ann!CK45","v":36},{"$f":"[1]ACS_16_5YR_B19037_with_ann!CL45","v":0},{"$f":"[1]ACS_16_5YR_B19037_with_ann!CM45","v":12},{"$f":"[1]ACS_16_5YR_B19037_with_ann!CN45","v":0},{"$f":"[1]ACS_16_5YR_B19037_with_ann!CO45","v":12},{"$f":"[1]ACS_16_5YR_B19037_with_ann!CP45","v":0},{"$f":"[1]ACS_16_5YR_B19037_with_ann!CQ45","v":12},{"$f":"[1]ACS_16_5YR_B19037_with_ann!CR45","v":76},{"$f":"[1]ACS_16_5YR_B19037_with_ann!CS45","v":84},{"$f":"[1]ACS_16_5YR_B19037_with_ann!CT45","v":9},{"$f":"[1]ACS_16_5YR_B19037_with_ann!CU45","v":19},{"$f":"[1]ACS_16_5YR_B19037_with_ann!CV45","v":83},{"$f":"[1]ACS_16_5YR_B19037_with_ann!CW45","v":100},{"$f":"[1]ACS_16_5YR_B19037_with_ann!CX45","v":59},{"$f":"[1]ACS_16_5YR_B19037_with_ann!CY45","v":62},{"$f":"[1]ACS_16_5YR_B19037_with_ann!CZ45","v":130},{"$f":"[1]ACS_16_5YR_B19037_with_ann!DA45","v":100},{"$f":"[1]ACS_16_5YR_B19037_with_ann!DB45","v":61},{"$f":"[1]ACS_16_5YR_B19037_with_ann!DC45","v":55},{"$f":"[1]ACS_16_5YR_B19037_with_ann!DD45","v":600},{"$f":"[1]ACS_16_5YR_B19037_with_ann!DE45","v":141},{"$f":"[1]ACS_16_5YR_B19037_with_ann!DF45","v":0},{"$f":"[1]ACS_16_5YR_B19037_with_ann!DG45","v":12},{"$f":"[1]ACS_16_5YR_B19037_with_ann!DH45","v":0},{"$f":"[1]ACS_16_5YR_B19037_with_ann!DI45","v":12},{"$f":"[1]ACS_16_5YR_B19037_with_ann!DJ45","v":39},{"$f":"[1]ACS_16_5YR_B19037_with_ann!DK45","v":39},{"$f":"[1]ACS_16_5YR_B19037_with_ann!DL45","v":33},{"$f":"[1]ACS_16_5YR_B19037_with_ann!DM45","v":38},{"$f":"[1]ACS_16_5YR_B19037_with_ann!DN45","v":53},{"$f":"[1]ACS_16_5YR_B19037_with_ann!DO45","v":80},{"$f":"[1]ACS_16_5YR_B19037_with_ann!DP45","v":0},{"$f":"[1]ACS_16_5YR_B19037_with_ann!DQ45","v":12},{"$f":"[1]ACS_16_5YR_B19037_with_ann!DR45","v":16},{"$f":"[1]ACS_16_5YR_B19037_with_ann!DS45","v":25},{"$f":"[1]ACS_16_5YR_B19037_with_ann!DT45","v":73},{"$f":"[1]ACS_16_5YR_B19037_with_ann!DU45","v":88},{"$f":"[1]ACS_16_5YR_B19037_with_ann!DV45","v":16},{"$f":"[1]ACS_16_5YR_B19037_with_ann!DW45","v":24},{"$f":"[1]ACS_16_5YR_B19037_with_ann!DX45","v":15},{"$f":"[1]ACS_16_5YR_B19037_with_ann!DY45","v":24},{"$f":"[1]ACS_16_5YR_B19037_with_ann!DZ45","v":36},{"$f":"[1]ACS_16_5YR_B19037_with_ann!EA45","v":38},{"$f":"[1]ACS_16_5YR_B19037_with_ann!EB45","v":73},{"$f":"[1]ACS_16_5YR_B19037_with_ann!EC45","v":69},{"$f":"[1]ACS_16_5YR_B19037_with_ann!ED45","v":42},{"$f":"[1]ACS_16_5YR_B19037_with_ann!EE45","v":66},{"$f":"[1]ACS_16_5YR_B19037_with_ann!EF45","v":56},{"$f":"[1]ACS_16_5YR_B19037_with_ann!EG45","v":43},{"$f":"[1]ACS_16_5YR_B19037_with_ann!EH45","v":98},{"$f":"[1]ACS_16_5YR_B19037_with_ann!EI45","v":87},{"$f":"[1]ACS_16_5YR_B19037_with_ann!EJ45","v":50},{"$f":"[1]ACS_16_5YR_B19037_with_ann!EK45","v":43}]
["06000US3300519140","0600000US3300526500","060",{"$f":"[1]ACS_16_5YR_B19037_with_ann!C46","v":"Dublin"},{"$f":"[1]ACS_16_5YR_B19037_with_ann!D46","v":635},{"$f":"[1]ACS_16_5YR_B19037_with_ann!E46","v":101},{"$f":"[1]ACS_16_5YR_B19037_with_ann!F46","v":3},{"$f":"[1]ACS_16_5YR_B19037_with_ann!G46","v":4},{"$f":"[1]ACS_16_5YR_B19037_with_ann!H46","v":0},{"$f":"[1]ACS_16_5YR_B19037_with_ann!I46","v":12},{"$f":"[1]ACS_16_5YR_B19037_with_ann!J46","v":0},{"$f":"[1]ACS_16_5YR_B19037_with_ann!K46","v":12},{"$f":"[1]ACS_16_5YR_B19037_with_ann!L46","v":0},{"$f":"[1]ACS_16_5YR_B19037_with_ann!M46","v":12},{"$f":"[1]ACS_16_5YR_B19037_with_ann!N46","v":0},{"$f":"[1]ACS_16_5YR_B19037_with_ann!O46","v":12},{"$f":"[1]ACS_16_5YR_B19037_with_ann!P46","v":0},{"$f":"[1]ACS_16_5YR_B19037_with_ann!Q46","v":12},{"$f":"[1]ACS_16_5YR_B19037_with_ann!R46","v":0},{"$f":"[1]ACS_16_5YR_B19037_with_ann!S46","v":12},{"$f":"[1]ACS_16_5YR_B19037_with_ann!T46","v":3},{"$f":"[1]ACS_16_5YR_B19037_with_ann!U46","v":4},{"$f":"[1]ACS_16_5YR_B19037_with_ann!V46","v":0},{"$f":"[1]ACS_16_5YR_B19037_with_ann!W46","v":12},{"$f":"[1]ACS_16_5YR_B19037_with_ann!X46","v":0},{"$f":"[1]ACS_16_5YR_B19037_with_ann!Y46","v":12},{"$f":"[1]ACS_16_5YR_B19037_with_ann!Z46","v":0},{"$f":"[1]ACS_16_5YR_B19037_with_ann!AA46","v":12},{"$f":"[1]ACS_16_5YR_B19037_with_ann!AB46","v":0},{"$f":"[1]ACS_16_5YR_B19037_with_ann!AC46","v":12},{"$f":"[1]ACS_16_5YR_B19037_with_ann!AD46","v":0},{"$f":"[1]ACS_16_5YR_B19037_with_ann!AE46","v":12},{"$f":"[1]ACS_16_5YR_B19037_with_ann!AF46","v":0},{"$f":"[1]ACS_16_5YR_B19037_with_ann!AG46","v":12},{"$f":"[1]ACS_16_5YR_B19037_with_ann!AH46","v":0},{"$f":"[1]ACS_16_5YR_B19037_with_ann!AI46","v":12},{"$f":"[1]ACS_16_5YR_B19037_with_ann!AJ46","v":0},{"$f":"[1]ACS_16_5YR_B19037_with_ann!AK46","v":12},{"$f":"[1]ACS_16_5YR_B19037_with_ann!AL46","v":0},{"$f":"[1]ACS_16_5YR_B19037_with_ann!AM46","v":12},{"$f":"[1]ACS_16_5YR_B19037_with_ann!AN46","v":101},{"$f":"[1]ACS_16_5YR_B19037_with_ann!AO46","v":37},{"$f":"[1]ACS_16_5YR_B19037_with_ann!AP46","v":3},{"$f":"[1]ACS_16_5YR_B19037_with_ann!AQ46","v":4},{"$f":"[1]ACS_16_5YR_B19037_with_ann!AR46","v":4},{"$f":"[1]ACS_16_5YR_B19037_with_ann!AS46","v":5},{"$f":"[1]ACS_16_5YR_B19037_with_ann!AT46","v":0},{"$f":"[1]ACS_16_5YR_B19037_with_ann!AU46","v":12},{"$f":"[1]ACS_16_5YR_B19037_with_ann!AV46","v":3},{"$f":"[1]ACS_16_5YR_B19037_with_ann!AW46","v":4},{"$f":"[1]ACS_16_5YR_B19037_with_ann!AX46","v":0},{"$f":"[1]ACS_16_5YR_B19037_with_ann!AY46","v":12},{"$f":"[1]ACS_16_5YR_B19037_with_ann!AZ46","v":0},{"$f":"[1]ACS_16_5YR_B19037_with_ann!BA46","v":12},{"$f":"[1]ACS_16_5YR_B19037_with_ann!BB46","v":0},{"$f":"[1]ACS_16_5YR_B19037_with_ann!BC46","v":12},{"$f":"[1]ACS_16_5YR_B19037_with_ann!BD46","v":0},{"$f":"[1]ACS_16_5YR_B19037_with_ann!BE46","v":12},{"$f":"[1]ACS_16_5YR_B19037_with_ann!BF46","v":0},{"$f":"[1]ACS_16_5YR_B19037_with_ann!BG46","v":12},{"$f":"[1]ACS_16_5YR_B19037_with_ann!BH46","v":18},{"$f":"[1]ACS_16_5YR_B19037_with_ann!BI46","v":16},{"$f":"[1]ACS_16_5YR_B19037_with_ann!BJ46","v":16},{"$f":"[1]ACS_16_5YR_B19037_with_ann!BK46","v":23},{"$f":"[1]ACS_16_5YR_B19037_with_ann!BL46","v":9},{"$f":"[1]ACS_16_5YR_B19037_with_ann!BM46","v":9},{"$f":"[1]ACS_16_5YR_B19037_with_ann!BN46","v":25},{"$f":"[1]ACS_16_5YR_B19037_with_ann!BO46","v":19},{"$f":"[1]ACS_16_5YR_B19037_with_ann!BP46","v":10},{"$f":"[1]ACS_16_5YR_B19037_with_ann!BQ46","v":8},{"$f":"[1]ACS_16_5YR_B19037_with_ann!BR46","v":13},{"$f":"[1]ACS_16_5YR_B19037_with_ann!BS46","v":14},{"$f":"[1]ACS_16_5YR_B19037_with_ann!BT46","v":0},{"$f":"[1]ACS_16_5YR_B19037_with_ann!BU46","v":12},{"$f":"[1]ACS_16_5YR_B19037_with_ann!BV46","v":301},{"$f":"[1]ACS_16_5YR_B19037_with_ann!BW46","v":79},{"$f":"[1]ACS_16_5YR_B19037_with_ann!BX46","v":18},{"$f":"[1]ACS_16_5YR_B19037_with_ann!BY46","v":15},{"$f":"[1]ACS_16_5YR_B19037_with_ann!BZ46","v":0},{"$f":"[1]ACS_16_5YR_B19037_with_ann!CA46","v":12},{"$f":"[1]ACS_16_5YR_B19037_with_ann!CB46","v":0},{"$f":"[1]ACS_16_5YR_B19037_with_ann!CC46","v":12},{"$f":"[1]ACS_16_5YR_B19037_with_ann!CD46","v":6},{"$f":"[1]ACS_16_5YR_B19037_with_ann!CE46","v":6},{"$f":"[1]ACS_16_5YR_B19037_with_ann!CF46","v":15},{"$f":"[1]ACS_16_5YR_B19037_with_ann!CG46","v":12},{"$f":"[1]ACS_16_5YR_B19037_with_ann!CH46","v":5},{"$f":"[1]ACS_16_5YR_B19037_with_ann!CI46","v":6},{"$f":"[1]ACS_16_5YR_B19037_with_ann!CJ46","v":13},{"$f":"[1]ACS_16_5YR_B19037_with_ann!CK46","v":19},{"$f":"[1]ACS_16_5YR_B19037_with_ann!CL46","v":0},{"$f":"[1]ACS_16_5YR_B19037_with_ann!CM46","v":12},{"$f":"[1]ACS_16_5YR_B19037_with_ann!CN46","v":3},{"$f":"[1]ACS_16_5YR_B19037_with_ann!CO46","v":4},{"$f":"[1]ACS_16_5YR_B19037_with_ann!CP46","v":12},{"$f":"[1]ACS_16_5YR_B19037_with_ann!CQ46","v":10},{"$f":"[1]ACS_16_5YR_B19037_with_ann!CR46","v":6},{"$f":"[1]ACS_16_5YR_B19037_with_ann!CS46","v":8},{"$f":"[1]ACS_16_5YR_B19037_with_ann!CT46","v":76},{"$f":"[1]ACS_16_5YR_B19037_with_ann!CU46","v":66},{"$f":"[1]ACS_16_5YR_B19037_with_ann!CV46","v":24},{"$f":"[1]ACS_16_5YR_B19037_with_ann!CW46","v":19},{"$f":"[1]ACS_16_5YR_B19037_with_ann!CX46","v":12},{"$f":"[1]ACS_16_5YR_B19037_with_ann!CY46","v":9},{"$f":"[1]ACS_16_5YR_B19037_with_ann!CZ46","v":34},{"$f":"[1]ACS_16_5YR_B19037_with_ann!DA46","v":22},{"$f":"[1]ACS_16_5YR_B19037_with_ann!DB46","v":77},{"$f":"[1]ACS_16_5YR_B19037_with_ann!DC46","v":33},{"$f":"[1]ACS_16_5YR_B19037_with_ann!DD46","v":230},{"$f":"[1]ACS_16_5YR_B19037_with_ann!DE46","v":62},{"$f":"[1]ACS_16_5YR_B19037_with_ann!DF46","v":3},{"$f":"[1]ACS_16_5YR_B19037_with_ann!DG46","v":4},{"$f":"[1]ACS_16_5YR_B19037_with_ann!DH46","v":37},{"$f":"[1]ACS_16_5YR_B19037_with_ann!DI46","v":53},{"$f":"[1]ACS_16_5YR_B19037_with_ann!DJ46","v":3},{"$f":"[1]ACS_16_5YR_B19037_with_ann!DK46","v":3},{"$f":"[1]ACS_16_5YR_B19037_with_ann!DL46","v":0},{"$f":"[1]ACS_16_5YR_B19037_with_ann!DM46","v":12},{"$f":"[1]ACS_16_5YR_B19037_with_ann!DN46","v":3},{"$f":"[1]ACS_16_5YR_B19037_with_ann!DO46","v":4},{"$f":"[1]ACS_16_5YR_B19037_with_ann!DP46","v":2},{"$f":"[1]ACS_16_5YR_B19037_with_ann!DQ46","v":3},{"$f":"[1]ACS_16_5YR_B19037_with_ann!DR46","v":0},{"$f":"[1]ACS_16_5YR_B19037_with_ann!DS46","v":12},{"$f":"[1]ACS_16_5YR_B19037_with_ann!DT46","v":3},{"$f":"[1]ACS_16_5YR_B19037_with_ann!DU46","v":4},{"$f":"[1]ACS_16_5YR_B19037_with_ann!DV46","v":16},{"$f":"[1]ACS_16_5YR_B19037_with_ann!DW46","v":15},{"$f":"[1]ACS_16_5YR_B19037_with_ann!DX46","v":28},{"$f":"[1]ACS_16_5YR_B19037_with_ann!DY46","v":20},{"$f":"[1]ACS_16_5YR_B19037_with_ann!DZ46","v":11},{"$f":"[1]ACS_16_5YR_B19037_with_ann!EA46","v":11},{"$f":"[1]ACS_16_5YR_B19037_with_ann!EB46","v":24},{"$f":"[1]ACS_16_5YR_B19037_with_ann!EC46","v":11},{"$f":"[1]ACS_16_5YR_B19037_with_ann!ED46","v":23},{"$f":"[1]ACS_16_5YR_B19037_with_ann!EE46","v":14},{"$f":"[1]ACS_16_5YR_B19037_with_ann!EF46","v":21},{"$f":"[1]ACS_16_5YR_B19037_with_ann!EG46","v":17},{"$f":"[1]ACS_16_5YR_B19037_with_ann!EH46","v":25},{"$f":"[1]ACS_16_5YR_B19037_with_ann!EI46","v":18},{"$f":"[1]ACS_16_5YR_B19037_with_ann!EJ46","v":31},{"$f":"[1]ACS_16_5YR_B19037_with_ann!EK46","v":21}]
["06000US3300526500","0600000US3300529220","060",{"$f":"[1]ACS_16_5YR_B19037_with_ann!C47","v":"Fitzwilliam"},{"$f":"[1]ACS_16_5YR_B19037_with_ann!D47","v":1013},{"$f":"[1]ACS_16_5YR_B19037_with_ann!E47","v":154},{"$f":"[1]ACS_16_5YR_B19037_with_ann!F47","v":26},{"$f":"[1]ACS_16_5YR_B19037_with_ann!G47","v":30},{"$f":"[1]ACS_16_5YR_B19037_with_ann!H47","v":0},{"$f":"[1]ACS_16_5YR_B19037_with_ann!I47","v":12},{"$f":"[1]ACS_16_5YR_B19037_with_ann!J47","v":0},{"$f":"[1]ACS_16_5YR_B19037_with_ann!K47","v":12},{"$f":"[1]ACS_16_5YR_B19037_with_ann!L47","v":0},{"$f":"[1]ACS_16_5YR_B19037_with_ann!M47","v":12},{"$f":"[1]ACS_16_5YR_B19037_with_ann!N47","v":0},{"$f":"[1]ACS_16_5YR_B19037_with_ann!O47","v":12},{"$f":"[1]ACS_16_5YR_B19037_with_ann!P47","v":0},{"$f":"[1]ACS_16_5YR_B19037_with_ann!Q47","v":12},{"$f":"[1]ACS_16_5YR_B19037_with_ann!R47","v":0},{"$f":"[1]ACS_16_5YR_B19037_with_ann!S47","v":12},{"$f":"[1]ACS_16_5YR_B19037_with_ann!T47","v":0},{"$f":"[1]ACS_16_5YR_B19037_with_ann!U47","v":12},{"$f":"[1]ACS_16_5YR_B19037_with_ann!V47","v":0},{"$f":"[1]ACS_16_5YR_B19037_with_ann!W47","v":12},{"$f":"[1]ACS_16_5YR_B19037_with_ann!X47","v":0},{"$f":"[1]ACS_16_5YR_B19037_with_ann!Y47","v":12},{"$f":"[1]ACS_16_5YR_B19037_with_ann!Z47","v":0},{"$f":"[1]ACS_16_5YR_B19037_with_ann!AA47","v":12},{"$f":"[1]ACS_16_5YR_B19037_with_ann!AB47","v":4},{"$f":"[1]ACS_16_5YR_B19037_with_ann!AC47","v":6},{"$f":"[1]ACS_16_5YR_B19037_with_ann!AD47","v":22},{"$f":"[1]ACS_16_5YR_B19037_with_ann!AE47","v":30},{"$f":"[1]ACS_16_5YR_B19037_with_ann!AF47","v":0},{"$f":"[1]ACS_16_5YR_B19037_with_ann!AG47","v":12},{"$f":"[1]ACS_16_5YR_B19037_with_ann!AH47","v":0},{"$f":"[1]ACS_16_5YR_B19037_with_ann!AI47","v":12},{"$f":"[1]ACS_16_5YR_B19037_with_ann!AJ47","v":0},{"$f":"[1]ACS_16_5YR_B19037_with_ann!AK47","v":12},{"$f":"[1]ACS_16_5YR_B19037_with_ann!AL47","v":0},{"$f":"[1]ACS_16_5YR_B19037_with_ann!AM47","v":12},{"$f":"[1]ACS_16_5YR_B19037_with_ann!AN47","v":176},{"$f":"[1]ACS_16_5YR_B19037_with_ann!AO47","v":58},{"$f":"[1]ACS_16_5YR_B19037_with_ann!AP47","v":0},{"$f":"[1]ACS_16_5YR_B19037_with_ann!AQ47","v":12},{"$f":"[1]ACS_16_5YR_B19037_with_ann!AR47","v":0},{"$f":"[1]ACS_16_5YR_B19037_with_ann!AS47","v":12},{"$f":"[1]ACS_16_5YR_B19037_with_ann!AT47","v":0},{"$f":"[1]ACS_16_5YR_B19037_with_ann!AU47","v":12},{"$f":"[1]ACS_16_5YR_B19037_with_ann!AV47","v":13},{"$f":"[1]ACS_16_5YR_B19037_with_ann!AW47","v":19},{"$f":"[1]ACS_16_5YR_B19037_with_ann!AX47","v":0},{"$f":"[1]ACS_16_5YR_B19037_with_ann!AY47","v":12},{"$f":"[1]ACS_16_5YR_B19037_with_ann!AZ47","v":0},{"$f":"[1]ACS_16_5YR_B19037_with_ann!BA47","v":12},{"$f":"[1]ACS_16_5YR_B19037_with_ann!BB47","v":3},{"$f":"[1]ACS_16_5YR_B19037_with_ann!BC47","v":5},{"$f":"[1]ACS_16_5YR_B19037_with_ann!BD47","v":4},{"$f":"[1]ACS_16_5YR_B19037_with_ann!BE47","v":6},{"$f":"[1]ACS_16_5YR_B19037_with_ann!BF47","v":0},{"$f":"[1]ACS_16_5YR_B19037_with_ann!BG47","v":12},{"$f":"[1]ACS_16_5YR_B19037_with_ann!BH47","v":34},{"$f":"[1]ACS_16_5YR_B19037_with_ann!BI47","v":35},{"$f":"[1]ACS_16_5YR_B19037_with_ann!BJ47","v":13},{"$f":"[1]ACS_16_5YR_B19037_with_ann!BK47","v":11},{"$f":"[1]ACS_16_5YR_B19037_with_ann!BL47","v":16},{"$f":"[1]ACS_16_5YR_B19037_with_ann!BM47","v":15},{"$f":"[1]ACS_16_5YR_B19037_with_ann!BN47","v":30},{"$f":"[1]ACS_16_5YR_B19037_with_ann!BO47","v":28},{"$f":"[1]ACS_16_5YR_B19037_with_ann!BP47","v":39},{"$f":"[1]ACS_16_5YR_B19037_with_ann!BQ47","v":22},{"$f":"[1]ACS_16_5YR_B19037_with_ann!BR47","v":16},{"$f":"[1]ACS_16_5YR_B19037_with_ann!BS47","v":12},{"$f":"[1]ACS_16_5YR_B19037_with_ann!BT47","v":8},{"$f":"[1]ACS_16_5YR_B19037_with_ann!BU47","v":9},{"$f":"[1]ACS_16_5YR_B19037_with_ann!BV47","v":469},{"$f":"[1]ACS_16_5YR_B19037_with_ann!BW47","v":86},{"$f":"[1]ACS_16_5YR_B19037_with_ann!BX47","v":45},{"$f":"[1]ACS_16_5YR_B19037_with_ann!BY47","v":34},{"$f":"[1]ACS_16_5YR_B19037_with_ann!BZ47","v":13},{"$f":"[1]ACS_16_5YR_B19037_with_ann!CA47","v":13},{"$f":"[1]ACS_16_5YR_B19037_with_ann!CB47","v":29},{"$f":"[1]ACS_16_5YR_B19037_with_ann!CC47","v":29},{"$f":"[1]ACS_16_5YR_B19037_with_ann!CD47","v":0},{"$f":"[1]ACS_16_5YR_B19037_with_ann!CE47","v":12},{"$f":"[1]ACS_16_5YR_B19037_with_ann!CF47","v":20},{"$f":"[1]ACS_16_5YR_B19037_with_ann!CG47","v":32},{"$f":"[1]ACS_16_5YR_B19037_with_ann!CH47","v":12},{"$f":"[1]ACS_16_5YR_B19037_with_ann!CI47","v":20},{"$f":"[1]ACS_16_5YR_B19037_with_ann!CJ47","v":6},{"$f":"[1]ACS_16_5YR_B19037_with_ann!CK47","v":9},{"$f":"[1]ACS_16_5YR_B19037_with_ann!CL47","v":23},{"$f":"[1]ACS_16_5YR_B19037_with_ann!CM47","v":20},{"$f":"[1]ACS_16_5YR_B19037_with_ann!CN47","v":16},{"$f":"[1]ACS_16_5YR_B19037_with_ann!CO47","v":13},{"$f":"[1]ACS_16_5YR_B19037_with_ann!CP47","v":36},{"$f":"[1]ACS_16_5YR_B19037_with_ann!CQ47","v":35},{"$f":"[1]ACS_16_5YR_B19037_with_ann!CR47","v":21},{"$f":"[1]ACS_16_5YR_B19037_with_ann!CS47","v":27},{"$f":"[1]ACS_16_5YR_B19037_with_ann!CT47","v":52},{"$f":"[1]ACS_16_5YR_B19037_with_ann!CU47","v":26},{"$f":"[1]ACS_16_5YR_B19037_with_ann!CV47","v":63},{"$f":"[1]ACS_16_5YR_B19037_with_ann!CW47","v":42},{"$f":"[1]ACS_16_5YR_B19037_with_ann!CX47","v":19},{"$f":"[1]ACS_16_5YR_B19037_with_ann!CY47","v":16},{"$f":"[1]ACS_16_5YR_B19037_with_ann!CZ47","v":30},{"$f":"[1]ACS_16_5YR_B19037_with_ann!DA47","v":35},{"$f":"[1]ACS_16_5YR_B19037_with_ann!DB47","v":84},{"$f":"[1]ACS_16_5YR_B19037_with_ann!DC47","v":42},{"$f":"[1]ACS_16_5YR_B19037_with_ann!DD47","v":342},{"$f":"[1]ACS_16_5YR_B19037_with_ann!DE47","v":108},{"$f":"[1]ACS_16_5YR_B19037_with_ann!DF47","v":14},{"$f":"[1]ACS_16_5YR_B19037_with_ann!DG47","v":12},{"$f":"[1]ACS_16_5YR_B19037_with_ann!DH47","v":31},{"$f":"[1]ACS_16_5YR_B19037_with_ann!DI47","v":31},{"$f":"[1]ACS_16_5YR_B19037_with_ann!DJ47","v":0},{"$f":"[1]ACS_16_5YR_B19037_with_ann!DK47","v":12},{"$f":"[1]ACS_16_5YR_B19037_with_ann!DL47","v":6},{"$f":"[1]ACS_16_5YR_B19037_with_ann!DM47","v":9},{"$f":"[1]ACS_16_5YR_B19037_with_ann!DN47","v":26},{"$f":"[1]ACS_16_5YR_B19037_with_ann!DO47","v":14},{"$f":"[1]ACS_16_5YR_B19037_with_ann!DP47","v":7},{"$f":"[1]ACS_16_5YR_B19037_with_ann!DQ47","v":9},{"$f":"[1]ACS_16_5YR_B19037_with_ann!DR47","v":17},{"$f":"[1]ACS_16_5YR_B19037_with_ann!DS47","v":25},{"$f":"[1]ACS_16_5YR_B19037_with_ann!DT47","v":13},{"$f":"[1]ACS_16_5YR_B19037_with_ann!DU47","v":11},{"$f":"[1]ACS_16_5YR_B19037_with_ann!DV47","v":14},{"$f":"[1]ACS_16_5YR_B19037_with_ann!DW47","v":10},{"$f":"[1]ACS_16_5YR_B19037_with_ann!DX47","v":24},{"$f":"[1]ACS_16_5YR_B19037_with_ann!DY47","v":17},{"$f":"[1]ACS_16_5YR_B19037_with_ann!DZ47","v":26},{"$f":"[1]ACS_16_5YR_B19037_with_ann!EA47","v":20},{"$f":"[1]ACS_16_5YR_B19037_with_ann!EB47","v":96},{"$f":"[1]ACS_16_5YR_B19037_with_ann!EC47","v":96},{"$f":"[1]ACS_16_5YR_B19037_with_ann!ED47","v":17},{"$f":"[1]ACS_16_5YR_B19037_with_ann!EE47","v":8},{"$f":"[1]ACS_16_5YR_B19037_with_ann!EF47","v":8},{"$f":"[1]ACS_16_5YR_B19037_with_ann!EG47","v":8},{"$f":"[1]ACS_16_5YR_B19037_with_ann!EH47","v":31},{"$f":"[1]ACS_16_5YR_B19037_with_ann!EI47","v":25},{"$f":"[1]ACS_16_5YR_B19037_with_ann!EJ47","v":12},{"$f":"[1]ACS_16_5YR_B19037_with_ann!EK47","v":11}]
["06000US3300529220","0600000US3300534420","060",{"$f":"[1]ACS_16_5YR_B19037_with_ann!C48","v":"Gilsum"},{"$f":"[1]ACS_16_5YR_B19037_with_ann!D48","v":310},{"$f":"[1]ACS_16_5YR_B19037_with_ann!E48","v":51},{"$f":"[1]ACS_16_5YR_B19037_with_ann!F48","v":3},{"$f":"[1]ACS_16_5YR_B19037_with_ann!G48","v":4},{"$f":"[1]ACS_16_5YR_B19037_with_ann!H48","v":0},{"$f":"[1]ACS_16_5YR_B19037_with_ann!I48","v":12},{"$f":"[1]ACS_16_5YR_B19037_with_ann!J48","v":0},{"$f":"[1]ACS_16_5YR_B19037_with_ann!K48","v":12},{"$f":"[1]ACS_16_5YR_B19037_with_ann!L48","v":0},{"$f":"[1]ACS_16_5YR_B19037_with_ann!M48","v":12},{"$f":"[1]ACS_16_5YR_B19037_with_ann!N48","v":0},{"$f":"[1]ACS_16_5YR_B19037_with_ann!O48","v":12},{"$f":"[1]ACS_16_5YR_B19037_with_ann!P48","v":0},{"$f":"[1]ACS_16_5YR_B19037_with_ann!Q48","v":12},{"$f":"[1]ACS_16_5YR_B19037_with_ann!R48","v":0},{"$f":"[1]ACS_16_5YR_B19037_with_ann!S48","v":12},{"$f":"[1]ACS_16_5YR_B19037_with_ann!T48","v":0},{"$f":"[1]ACS_16_5YR_B19037_with_ann!U48","v":12},{"$f":"[1]ACS_16_5YR_B19037_with_ann!V48","v":0},{"$f":"[1]ACS_16_5YR_B19037_with_ann!W48","v":12},{"$f":"[1]ACS_16_5YR_B19037_with_ann!X48","v":0},{"$f":"[1]ACS_16_5YR_B19037_with_ann!Y48","v":12},{"$f":"[1]ACS_16_5YR_B19037_with_ann!Z48","v":0},{"$f":"[1]ACS_16_5YR_B19037_with_ann!AA48","v":12},{"$f":"[1]ACS_16_5YR_B19037_with_ann!AB48","v":3},{"$f":"[1]ACS_16_5YR_B19037_with_ann!AC48","v":4},{"$f":"[1]ACS_16_5YR_B19037_with_ann!AD48","v":0},{"$f":"[1]ACS_16_5YR_B19037_with_ann!AE48","v":12},{"$f":"[1]ACS_16_5YR_B19037_with_ann!AF48","v":0},{"$f":"[1]ACS_16_5YR_B19037_with_ann!AG48","v":12},{"$f":"[1]ACS_16_5YR_B19037_with_ann!AH48","v":0},{"$f":"[1]ACS_16_5YR_B19037_with_ann!AI48","v":12},{"$f":"[1]ACS_16_5YR_B19037_with_ann!AJ48","v":0},{"$f":"[1]ACS_16_5YR_B19037_with_ann!AK48","v":12},{"$f":"[1]ACS_16_5YR_B19037_with_ann!AL48","v":0},{"$f":"[1]ACS_16_5YR_B19037_with_ann!AM48","v":12},{"$f":"[1]ACS_16_5YR_B19037_with_ann!AN48","v":72},{"$f":"[1]ACS_16_5YR_B19037_with_ann!AO48","v":26},{"$f":"[1]ACS_16_5YR_B19037_with_ann!AP48","v":1},{"$f":"[1]ACS_16_5YR_B19037_with_ann!AQ48","v":2},{"$f":"[1]ACS_16_5YR_B19037_with_ann!AR48","v":0},{"$f":"[1]ACS_16_5YR_B19037_with_ann!AS48","v":12},{"$f":"[1]ACS_16_5YR_B19037_with_ann!AT48","v":2},{"$f":"[1]ACS_16_5YR_B19037_with_ann!AU48","v":3},{"$f":"[1]ACS_16_5YR_B19037_with_ann!AV48","v":0},{"$f":"[1]ACS_16_5YR_B19037_with_ann!AW48","v":12},{"$f":"[1]ACS_16_5YR_B19037_with_ann!AX48","v":1},{"$f":"[1]ACS_16_5YR_B19037_with_ann!AY48","v":4},{"$f":"[1]ACS_16_5YR_B19037_with_ann!AZ48","v":0},{"$f":"[1]ACS_16_5YR_B19037_with_ann!BA48","v":12},{"$f":"[1]ACS_16_5YR_B19037_with_ann!BB48","v":7},{"$f":"[1]ACS_16_5YR_B19037_with_ann!BC48","v":10},{"$f":"[1]ACS_16_5YR_B19037_with_ann!BD48","v":4},{"$f":"[1]ACS_16_5YR_B19037_with_ann!BE48","v":5},{"$f":"[1]ACS_16_5YR_B19037_with_ann!BF48","v":0},{"$f":"[1]ACS_16_5YR_B19037_with_ann!BG48","v":12},{"$f":"[1]ACS_16_5YR_B19037_with_ann!BH48","v":4},{"$f":"[1]ACS_16_5YR_B19037_with_ann!BI48","v":4},{"$f":"[1]ACS_16_5YR_B19037_with_ann!BJ48","v":23},{"$f":"[1]ACS_16_5YR_B19037_with_ann!BK48","v":16},{"$f":"[1]ACS_16_5YR_B19037_with_ann!BL48","v":5},{"$f":"[1]ACS_16_5YR_B19037_with_ann!BM48","v":5},{"$f":"[1]ACS_16_5YR_B19037_with_ann!BN48","v":6},{"$f":"[1]ACS_16_5YR_B19037_with_ann!BO48","v":7},{"$f":"[1]ACS_16_5YR_B19037_with_ann!BP48","v":4},{"$f":"[1]ACS_16_5YR_B19037_with_ann!BQ48","v":4},{"$f":"[1]ACS_16_5YR_B19037_with_ann!BR48","v":7},{"$f":"[1]ACS_16_5YR_B19037_with_ann!BS48","v":7},{"$f":"[1]ACS_16_5YR_B19037_with_ann!BT48","v":8},{"$f":"[1]ACS_16_5YR_B19037_with_ann!BU48","v":7},{"$f":"[1]ACS_16_5YR_B19037_with_ann!BV48","v":133},{"$f":"[1]ACS_16_5YR_B19037_with_ann!BW48","v":41},{"$f":"[1]ACS_16_5YR_B19037_with_ann!BX48","v":0},{"$f":"[1]ACS_16_5YR_B19037_with_ann!BY48","v":12},{"$f":"[1]ACS_16_5YR_B19037_with_ann!BZ48","v":2},{"$f":"[1]ACS_16_5YR_B19037_with_ann!CA48","v":3},{"$f":"[1]ACS_16_5YR_B19037_with_ann!CB48","v":0},{"$f":"[1]ACS_16_5YR_B19037_with_ann!CC48","v":12},{"$f":"[1]ACS_16_5YR_B19037_with_ann!CD48","v":2},{"$f":"[1]ACS_16_5YR_B19037_with_ann!CE48","v":3},{"$f":"[1]ACS_16_5YR_B19037_with_ann!CF48","v":3},{"$f":"[1]ACS_16_5YR_B19037_with_ann!CG48","v":4},{"$f":"[1]ACS_16_5YR_B19037_with_ann!CH48","v":0},{"$f":"[1]ACS_16_5YR_B19037_with_ann!CI48","v":12},{"$f":"[1]ACS_16_5YR_B19037_with_ann!CJ48","v":4},{"$f":"[1]ACS_16_5YR_B19037_with_ann!CK48","v":4},{"$f":"[1]ACS_16_5YR_B19037_with_ann!CL48","v":18},{"$f":"[1]ACS_16_5YR_B19037_with_ann!CM48","v":26},{"$f":"[1]ACS_16_5YR_B19037_with_ann!CN48","v":9},{"$f":"[1]ACS_16_5YR_B19037_with_ann!CO48","v":9},{"$f":"[1]ACS_16_5YR_B19037_with_ann!CP48","v":12},{"$f":"[1]ACS_16_5YR_B19037_with_ann!CQ48","v":8},{"$f":"[1]ACS_16_5YR_B19037_with_ann!CR48","v":18},{"$f":"[1]ACS_16_5YR_B19037_with_ann!CS48","v":16},{"$f":"[1]ACS_16_5YR_B19037_with_ann!CT48","v":14},{"$f":"[1]ACS_16_5YR_B19037_with_ann!CU48","v":10},{"$f":"[1]ACS_16_5YR_B19037_with_ann!CV48","v":15},{"$f":"[1]ACS_16_5YR_B19037_with_ann!CW48","v":11},{"$f":"[1]ACS_16_5YR_B19037_with_ann!CX48","v":4},{"$f":"[1]ACS_16_5YR_B19037_with_ann!CY48","v":4},{"$f":"[1]ACS_16_5YR_B19037_with_ann!CZ48","v":25},{"$f":"[1]ACS_16_5YR_B19037_with_ann!DA48","v":16},{"$f":"[1]ACS_16_5YR_B19037_with_ann!DB48","v":7},{"$f":"[1]ACS_16_5YR_B19037_with_ann!DC48","v":6},{"$f":"[1]ACS_16_5YR_B19037_with_ann!DD48","v":102},{"$f":"[1]ACS_16_5YR_B19037_with_ann!DE48","v":27},{"$f":"[1]ACS_16_5YR_B19037_with_ann!DF48","v":1},{"$f":"[1]ACS_16_5YR_B19037_with_ann!DG48","v":3},{"$f":"[1]ACS_16_5YR_B19037_with_ann!DH48","v":10},{"$f":"[1]ACS_16_5YR_B19037_with_ann!DI48","v":12},{"$f":"[1]ACS_16_5YR_B19037_with_ann!DJ48","v":6},{"$f":"[1]ACS_16_5YR_B19037_with_ann!DK48","v":5},{"$f":"[1]ACS_16_5YR_B19037_with_ann!DL48","v":2},{"$f":"[1]ACS_16_5YR_B19037_with_ann!DM48","v":4},{"$f":"[1]ACS_16_5YR_B19037_with_ann!DN48","v":7},{"$f":"[1]ACS_16_5YR_B19037_with_ann!DO48","v":5},{"$f":"[1]ACS_16_5YR_B19037_with_ann!DP48","v":2},{"$f":"[1]ACS_16_5YR_B19037_with_ann!DQ48","v":3},{"$f":"[1]ACS_16_5YR_B19037_with_ann!DR48","v":2},{"$f":"[1]ACS_16_5YR_B19037_with_ann!DS48","v":4},{"$f":"[1]ACS_16_5YR_B19037_with_ann!DT48","v":0},{"$f":"[1]ACS_16_5YR_B19037_with_ann!DU48","v":12},{"$f":"[1]ACS_16_5YR_B19037_with_ann!DV48","v":12},{"$f":"[1]ACS_16_5YR_B19037_with_ann!DW48","v":12},{"$f":"[1]ACS_16_5YR_B19037_with_ann!DX48","v":8},{"$f":"[1]ACS_16_5YR_B19037_with_ann!DY48","v":10},{"$f":"[1]ACS_16_5YR_B19037_with_ann!DZ48","v":8},{"$f":"[1]ACS_16_5YR_B19037_with_ann!EA48","v":6},{"$f":"[1]ACS_16_5YR_B19037_with_ann!EB48","v":19},{"$f":"[1]ACS_16_5YR_B19037_with_ann!EC48","v":12},{"$f":"[1]ACS_16_5YR_B19037_with_ann!ED48","v":5},{"$f":"[1]ACS_16_5YR_B19037_with_ann!EE48","v":5},{"$f":"[1]ACS_16_5YR_B19037_with_ann!EF48","v":8},{"$f":"[1]ACS_16_5YR_B19037_with_ann!EG48","v":12},{"$f":"[1]ACS_16_5YR_B19037_with_ann!EH48","v":12},{"$f":"[1]ACS_16_5YR_B19037_with_ann!EI48","v":13},{"$f":"[1]ACS_16_5YR_B19037_with_ann!EJ48","v":0},{"$f":"[1]ACS_16_5YR_B19037_with_ann!EK48","v":12}]
["06000US3300534420","0600000US3300536660","060",{"$f":"[1]ACS_16_5YR_B19037_with_ann!C49","v":"Harrisville"},{"$f":"[1]ACS_16_5YR_B19037_with_ann!D49","v":416},{"$f":"[1]ACS_16_5YR_B19037_with_ann!E49","v":75},{"$f":"[1]ACS_16_5YR_B19037_with_ann!F49","v":0},{"$f":"[1]ACS_16_5YR_B19037_with_ann!G49","v":12},{"$f":"[1]ACS_16_5YR_B19037_with_ann!H49","v":0},{"$f":"[1]ACS_16_5YR_B19037_with_ann!I49","v":12},{"$f":"[1]ACS_16_5YR_B19037_with_ann!J49","v":0},{"$f":"[1]ACS_16_5YR_B19037_with_ann!K49","v":12},{"$f":"[1]ACS_16_5YR_B19037_with_ann!L49","v":0},{"$f":"[1]ACS_16_5YR_B19037_with_ann!M49","v":12},{"$f":"[1]ACS_16_5YR_B19037_with_ann!N49","v":0},{"$f":"[1]ACS_16_5YR_B19037_with_ann!O49","v":12},{"$f":"[1]ACS_16_5YR_B19037_with_ann!P49","v":0},{"$f":"[1]ACS_16_5YR_B19037_with_ann!Q49","v":12},{"$f":"[1]ACS_16_5YR_B19037_with_ann!R49","v":0},{"$f":"[1]ACS_16_5YR_B19037_with_ann!S49","v":12},{"$f":"[1]ACS_16_5YR_B19037_with_ann!T49","v":0},{"$f":"[1]ACS_16_5YR_B19037_with_ann!U49","v":12},{"$f":"[1]ACS_16_5YR_B19037_with_ann!V49","v":0},{"$f":"[1]ACS_16_5YR_B19037_with_ann!W49","v":12},{"$f":"[1]ACS_16_5YR_B19037_with_ann!X49","v":0},{"$f":"[1]ACS_16_5YR_B19037_with_ann!Y49","v":12},{"$f":"[1]ACS_16_5YR_B19037_with_ann!Z49","v":0},{"$f":"[1]ACS_16_5YR_B19037_with_ann!AA49","v":12},{"$f":"[1]ACS_16_5YR_B19037_with_ann!AB49","v":0},{"$f":"[1]ACS_16_5YR_B19037_with_ann!AC49","v":12},{"$f":"[1]ACS_16_5YR_B19037_with_ann!AD49","v":0},{"$f":"[1]ACS_16_5YR_B19037_with_ann!AE49","v":12},{"$f":"[1]ACS_16_5YR_B19037_with_ann!AF49","v":0},{"$f":"[1]ACS_16_5YR_B19037_with_ann!AG49","v":12},{"$f":"[1]ACS_16_5YR_B19037_with_ann!AH49","v":0},{"$f":"[1]ACS_16_5YR_B19037_with_ann!AI49","v":12},{"$f":"[1]ACS_16_5YR_B19037_with_ann!AJ49","v":0},{"$f":"[1]ACS_16_5YR_B19037_with_ann!AK49","v":12},{"$f":"[1]ACS_16_5YR_B19037_with_ann!AL49","v":0},{"$f":"[1]ACS_16_5YR_B19037_with_ann!AM49","v":12},{"$f":"[1]ACS_16_5YR_B19037_with_ann!AN49","v":87},{"$f":"[1]ACS_16_5YR_B19037_with_ann!AO49","v":50},{"$f":"[1]ACS_16_5YR_B19037_with_ann!AP49","v":0},{"$f":"[1]ACS_16_5YR_B19037_with_ann!AQ49","v":12},{"$f":"[1]ACS_16_5YR_B19037_with_ann!AR49","v":0},{"$f":"[1]ACS_16_5YR_B19037_with_ann!AS49","v":12},{"$f":"[1]ACS_16_5YR_B19037_with_ann!AT49","v":0},{"$f":"[1]ACS_16_5YR_B19037_with_ann!AU49","v":12},{"$f":"[1]ACS_16_5YR_B19037_with_ann!AV49","v":0},{"$f":"[1]ACS_16_5YR_B19037_with_ann!AW49","v":12},{"$f":"[1]ACS_16_5YR_B19037_with_ann!AX49","v":0},{"$f":"[1]ACS_16_5YR_B19037_with_ann!AY49","v":12},{"$f":"[1]ACS_16_5YR_B19037_with_ann!AZ49","v":0},{"$f":"[1]ACS_16_5YR_B19037_with_ann!BA49","v":12},{"$f":"[1]ACS_16_5YR_B19037_with_ann!BB49","v":0},{"$f":"[1]ACS_16_5YR_B19037_with_ann!BC49","v":12},{"$f":"[1]ACS_16_5YR_B19037_with_ann!BD49","v":0},{"$f":"[1]ACS_16_5YR_B19037_with_ann!BE49","v":12},{"$f":"[1]ACS_16_5YR_B19037_with_ann!BF49","v":3},{"$f":"[1]ACS_16_5YR_B19037_with_ann!BG49","v":5},{"$f":"[1]ACS_16_5YR_B19037_with_ann!BH49","v":17},{"$f":"[1]ACS_16_5YR_B19037_with_ann!BI49","v":22},{"$f":"[1]ACS_16_5YR_B19037_with_ann!BJ49","v":3},{"$f":"[1]ACS_16_5YR_B19037_with_ann!BK49","v":4},{"$f":"[1]ACS_16_5YR_B19037_with_ann!BL49","v":18},{"$f":"[1]ACS_16_5YR_B19037_with_ann!BM49","v":16},{"$f":"[1]ACS_16_5YR_B19037_with_ann!BN49","v":10},{"$f":"[1]ACS_16_5YR_B19037_with_ann!BO49","v":12},{"$f":"[1]ACS_16_5YR_B19037_with_ann!BP49","v":0},{"$f":"[1]ACS_16_5YR_B19037_with_ann!BQ49","v":12},{"$f":"[1]ACS_16_5YR_B19037_with_ann!BR49","v":12},{"$f":"[1]ACS_16_5YR_B19037_with_ann!BS49","v":9},{"$f":"[1]ACS_16_5YR_B19037_with_ann!BT49","v":24},{"$f":"[1]ACS_16_5YR_B19037_with_ann!BU49","v":34},{"$f":"[1]ACS_16_5YR_B19037_with_ann!BV49","v":150},{"$f":"[1]ACS_16_5YR_B19037_with_ann!BW49","v":47},{"$f":"[1]ACS_16_5YR_B19037_with_ann!BX49","v":7},{"$f":"[1]ACS_16_5YR_B19037_with_ann!BY49","v":9},{"$f":"[1]ACS_16_5YR_B19037_with_ann!BZ49","v":0},{"$f":"[1]ACS_16_5YR_B19037_with_ann!CA49","v":12},{"$f":"[1]ACS_16_5YR_B19037_with_ann!CB49","v":0},{"$f":"[1]ACS_16_5YR_B19037_with_ann!CC49","v":12},{"$f":"[1]ACS_16_5YR_B19037_with_ann!CD49","v":4},{"$f":"[1]ACS_16_5YR_B19037_with_ann!CE49","v":5},{"$f":"[1]ACS_16_5YR_B19037_with_ann!CF49","v":0},{"$f":"[1]ACS_16_5YR_B19037_with_ann!CG49","v":12},{"$f":"[1]ACS_16_5YR_B19037_with_ann!CH49","v":7},{"$f":"[1]ACS_16_5YR_B19037_with_ann!CI49","v":9},{"$f":"[1]ACS_16_5YR_B19037_with_ann!CJ49","v":0},{"$f":"[1]ACS_16_5YR_B19037_with_ann!CK49","v":12},{"$f":"[1]ACS_16_5YR_B19037_with_ann!CL49","v":0},{"$f":"[1]ACS_16_5YR_B19037_with_ann!CM49","v":12},{"$f":"[1]ACS_16_5YR_B19037_with_ann!CN49","v":13},{"$f":"[1]ACS_16_5YR_B19037_with_ann!CO49","v":15},{"$f":"[1]ACS_16_5YR_B19037_with_ann!CP49","v":0},{"$f":"[1]ACS_16_5YR_B19037_with_ann!CQ49","v":12},{"$f":"[1]ACS_16_5YR_B19037_with_ann!CR49","v":6},{"$f":"[1]ACS_16_5YR_B19037_with_ann!CS49","v":7},{"$f":"[1]ACS_16_5YR_B19037_with_ann!CT49","v":38},{"$f":"[1]ACS_16_5YR_B19037_with_ann!CU49","v":23},{"$f":"[1]ACS_16_5YR_B19037_with_ann!CV49","v":25},{"$f":"[1]ACS_16_5YR_B19037_with_ann!CW49","v":18},{"$f":"[1]ACS_16_5YR_B19037_with_ann!CX49","v":3},{"$f":"[1]ACS_16_5YR_B19037_with_ann!CY49","v":4},{"$f":"[1]ACS_16_5YR_B19037_with_ann!CZ49","v":28},{"$f":"[1]ACS_16_5YR_B19037_with_ann!DA49","v":17},{"$f":"[1]ACS_16_5YR_B19037_with_ann!DB49","v":19},{"$f":"[1]ACS_16_5YR_B19037_with_ann!DC49","v":10},{"$f":"[1]ACS_16_5YR_B19037_with_ann!DD49","v":179},{"$f":"[1]ACS_16_5YR_B19037_with_ann!DE49","v":38},{"$f":"[1]ACS_16_5YR_B19037_with_ann!DF49","v":0},{"$f":"[1]ACS_16_5YR_B19037_with_ann!DG49","v":12},{"$f":"[1]ACS_16_5YR_B19037_with_ann!DH49","v":3},{"$f":"[1]ACS_16_5YR_B19037_with_ann!DI49","v":4},{"$f":"[1]ACS_16_5YR_B19037_with_ann!DJ49","v":3},{"$f":"[1]ACS_16_5YR_B19037_with_ann!DK49","v":4},{"$f":"[1]ACS_16_5YR_B19037_with_ann!DL49","v":3},{"$f":"[1]ACS_16_5YR_B19037_with_ann!DM49","v":4},{"$f":"[1]ACS_16_5YR_B19037_with_ann!DN49","v":5},{"$f":"[1]ACS_16_5YR_B19037_with_ann!DO49","v":6},{"$f":"[1]ACS_16_5YR_B19037_with_ann!DP49","v":3},{"$f":"[1]ACS_16_5YR_B19037_with_ann!DQ49","v":4},{"$f":"[1]ACS_16_5YR_B19037_with_ann!DR49","v":0},{"$f":"[1]ACS_16_5YR_B19037_with_ann!DS49","v":12},{"$f":"[1]ACS_16_5YR_B19037_with_ann!DT49","v":21},{"$f":"[1]ACS_16_5YR_B19037_with_ann!DU49","v":13},{"$f":"[1]ACS_16_5YR_B19037_with_ann!DV49","v":14},{"$f":"[1]ACS_16_5YR_B19037_with_ann!DW49","v":9},{"$f":"[1]ACS_16_5YR_B19037_with_ann!DX49","v":8},{"$f":"[1]ACS_16_5YR_B19037_with_ann!DY49","v":8},{"$f":"[1]ACS_16_5YR_B19037_with_ann!DZ49","v":42},{"$f":"[1]ACS_16_5YR_B19037_with_ann!EA49","v":24},{"$f":"[1]ACS_16_5YR_B19037_with_ann!EB49","v":25},{"$f":"[1]ACS_16_5YR_B19037_with_ann!EC49","v":18},{"$f":"[1]ACS_16_5YR_B19037_with_ann!ED49","v":15},{"$f":"[1]ACS_16_5YR_B19037_with_ann!EE49","v":10},{"$f":"[1]ACS_16_5YR_B19037_with_ann!EF49","v":10},{"$f":"[1]ACS_16_5YR_B19037_with_ann!EG49","v":9},{"$f":"[1]ACS_16_5YR_B19037_with_ann!EH49","v":3},{"$f":"[1]ACS_16_5YR_B19037_with_ann!EI49","v":5},{"$f":"[1]ACS_16_5YR_B19037_with_ann!EJ49","v":24},{"$f":"[1]ACS_16_5YR_B19037_with_ann!EK49","v":13}]
["06000US3300536660","0600000US3300538500","060",{"$f":"[1]ACS_16_5YR_B19037_with_ann!C50","v":"Hinsdale"},{"$f":"[1]ACS_16_5YR_B19037_with_ann!D50","v":1594},{"$f":"[1]ACS_16_5YR_B19037_with_ann!E50","v":139},{"$f":"[1]ACS_16_5YR_B19037_with_ann!F50","v":9},{"$f":"[1]ACS_16_5YR_B19037_with_ann!G50","v":14},{"$f":"[1]ACS_16_5YR_B19037_with_ann!H50","v":0},{"$f":"[1]ACS_16_5YR_B19037_with_ann!I50","v":12},{"$f":"[1]ACS_16_5YR_B19037_with_ann!J50","v":0},{"$f":"[1]ACS_16_5YR_B19037_with_ann!K50","v":12},{"$f":"[1]ACS_16_5YR_B19037_with_ann!L50","v":0},{"$f":"[1]ACS_16_5YR_B19037_with_ann!M50","v":12},{"$f":"[1]ACS_16_5YR_B19037_with_ann!N50","v":0},{"$f":"[1]ACS_16_5YR_B19037_with_ann!O50","v":12},{"$f":"[1]ACS_16_5YR_B19037_with_ann!P50","v":0},{"$f":"[1]ACS_16_5YR_B19037_with_ann!Q50","v":12},{"$f":"[1]ACS_16_5YR_B19037_with_ann!R50","v":0},{"$f":"[1]ACS_16_5YR_B19037_with_ann!S50","v":12},{"$f":"[1]ACS_16_5YR_B19037_with_ann!T50","v":0},{"$f":"[1]ACS_16_5YR_B19037_with_ann!U50","v":12},{"$f":"[1]ACS_16_5YR_B19037_with_ann!V50","v":0},{"$f":"[1]ACS_16_5YR_B19037_with_ann!W50","v":12},{"$f":"[1]ACS_16_5YR_B19037_with_ann!X50","v":0},{"$f":"[1]ACS_16_5YR_B19037_with_ann!Y50","v":12},{"$f":"[1]ACS_16_5YR_B19037_with_ann!Z50","v":0},{"$f":"[1]ACS_16_5YR_B19037_with_ann!AA50","v":12},{"$f":"[1]ACS_16_5YR_B19037_with_ann!AB50","v":9},{"$f":"[1]ACS_16_5YR_B19037_with_ann!AC50","v":14},{"$f":"[1]ACS_16_5YR_B19037_with_ann!AD50","v":0},{"$f":"[1]ACS_16_5YR_B19037_with_ann!AE50","v":12},{"$f":"[1]ACS_16_5YR_B19037_with_ann!AF50","v":0},{"$f":"[1]ACS_16_5YR_B19037_with_ann!AG50","v":12},{"$f":"[1]ACS_16_5YR_B19037_with_ann!AH50","v":0},{"$f":"[1]ACS_16_5YR_B19037_with_ann!AI50","v":12},{"$f":"[1]ACS_16_5YR_B19037_with_ann!AJ50","v":0},{"$f":"[1]ACS_16_5YR_B19037_with_ann!AK50","v":12},{"$f":"[1]ACS_16_5YR_B19037_with_ann!AL50","v":0},{"$f":"[1]ACS_16_5YR_B19037_with_ann!AM50","v":12},{"$f":"[1]ACS_16_5YR_B19037_with_ann!AN50","v":284},{"$f":"[1]ACS_16_5YR_B19037_with_ann!AO50","v":87},{"$f":"[1]ACS_16_5YR_B19037_with_ann!AP50","v":0},{"$f":"[1]ACS_16_5YR_B19037_with_ann!AQ50","v":12},{"$f":"[1]ACS_16_5YR_B19037_with_ann!AR50","v":0},{"$f":"[1]ACS_16_5YR_B19037_with_ann!AS50","v":12},{"$f":"[1]ACS_16_5YR_B19037_with_ann!AT50","v":0},{"$f":"[1]ACS_16_5YR_B19037_with_ann!AU50","v":12},{"$f":"[1]ACS_16_5YR_B19037_with_ann!AV50","v":0},{"$f":"[1]ACS_16_5YR_B19037_with_ann!AW50","v":12},{"$f":"[1]ACS_16_5YR_B19037_with_ann!AX50","v":0},{"$f":"[1]ACS_16_5YR_B19037_with_ann!AY50","v":12},{"$f":"[1]ACS_16_5YR_B19037_with_ann!AZ50","v":25},{"$f":"[1]ACS_16_5YR_B19037_with_ann!BA50","v":29},{"$f":"[1]ACS_16_5YR_B19037_with_ann!BB50","v":0},{"$f":"[1]ACS_16_5YR_B19037_with_ann!BC50","v":12},{"$f":"[1]ACS_16_5YR_B19037_with_ann!BD50","v":0},{"$f":"[1]ACS_16_5YR_B19037_with_ann!BE50","v":12},{"$f":"[1]ACS_16_5YR_B19037_with_ann!BF50","v":10},{"$f":"[1]ACS_16_5YR_B19037_with_ann!BG50","v":15},{"$f":"[1]ACS_16_5YR_B19037_with_ann!BH50","v":13},{"$f":"[1]ACS_16_5YR_B19037_with_ann!BI50","v":22},{"$f":"[1]ACS_16_5YR_B19037_with_ann!BJ50","v":28},{"$f":"[1]ACS_16_5YR_B19037_with_ann!BK50","v":42},{"$f":"[1]ACS_16_5YR_B19037_with_ann!BL50","v":93},{"$f":"[1]ACS_16_5YR_B19037_with_ann!BM50","v":62},{"$f":"[1]ACS_16_5YR_B19037_with_ann!BN50","v":21},{"$f":"[1]ACS_16_5YR_B19037_with_ann!BO50","v":24},{"$f":"[1]ACS_16_5YR_B19037_with_ann!BP50","v":38},{"$f":"[1]ACS_16_5YR_B19037_with_ann!BQ50","v":36},{"$f":"[1]ACS_16_5YR_B19037_with_ann!BR50","v":32},{"$f":"[1]ACS_16_5YR_B19037_with_ann!BS50","v":43},{"$f":"[1]ACS_16_5YR_B19037_with_ann!BT50","v":24},{"$f":"[1]ACS_16_5YR_B19037_with_ann!BU50","v":31},{"$f":"[1]ACS_16_5YR_B19037_with_ann!BV50","v":677},{"$f":"[1]ACS_16_5YR_B19037_with_ann!BW50","v":122},{"$f":"[1]ACS_16_5YR_B19037_with_ann!BX50","v":0},{"$f":"[1]ACS_16_5YR_B19037_with_ann!BY50","v":12},{"$f":"[1]ACS_16_5YR_B19037_with_ann!BZ50","v":14},{"$f":"[1]ACS_16_5YR_B19037_with_ann!CA50","v":21},{"$f":"[1]ACS_16_5YR_B19037_with_ann!CB50","v":3},{"$f":"[1]ACS_16_5YR_B19037_with_ann!CC50","v":5},{"$f":"[1]ACS_16_5YR_B19037_with_ann!CD50","v":31},{"$f":"[1]ACS_16_5YR_B19037_with_ann!CE50","v":34},{"$f":"[1]ACS_16_5YR_B19037_with_ann!CF50","v":14},{"$f":"[1]ACS_16_5YR_B19037_with_ann!CG50","v":24},{"$f":"[1]ACS_16_5YR_B19037_with_ann!CH50","v":11},{"$f":"[1]ACS_16_5YR_B19037_with_ann!CI50","v":17},{"$f":"[1]ACS_16_5YR_B19037_with_ann!CJ50","v":43},{"$f":"[1]ACS_16_5YR_B19037_with_ann!CK50","v":38},{"$f":"[1]ACS_16_5YR_B19037_with_ann!CL50","v":15},{"$f":"[1]ACS_16_5YR_B19037_with_ann!CM50","v":24},{"$f":"[1]ACS_16_5YR_B19037_with_ann!CN50","v":0},{"$f":"[1]ACS_16_5YR_B19037_with_ann!CO50","v":12},{"$f":"[1]ACS_16_5YR_B19037_with_ann!CP50","v":32},{"$f":"[1]ACS_16_5YR_B19037_with_ann!CQ50","v":31},{"$f":"[1]ACS_16_5YR_B19037_with_ann!CR50","v":97},{"$f":"[1]ACS_16_5YR_B19037_with_ann!CS50","v":62},{"$f":"[1]ACS_16_5YR_B19037_with_ann!CT50","v":59},{"$f":"[1]ACS_16_5YR_B19037_with_ann!CU50","v":53},{"$f":"[1]ACS_16_5YR_B19037_with_ann!CV50","v":69},{"$f":"[1]ACS_16_5YR_B19037_with_ann!CW50","v":57},{"$f":"[1]ACS_16_5YR_B19037_with_ann!CX50","v":93},{"$f":"[1]ACS_16_5YR_B19037_with_ann!CY50","v":65},{"$f":"[1]ACS_16_5YR_B19037_with_ann!CZ50","v":127},{"$f":"[1]ACS_16_5YR_B19037_with_ann!DA50","v":85},{"$f":"[1]ACS_16_5YR_B19037_with_ann!DB50","v":69},{"$f":"[1]ACS_16_5YR_B19037_with_ann!DC50","v":68},{"$f":"[1]ACS_16_5YR_B19037_with_ann!DD50","v":624},{"$f":"[1]ACS_16_5YR_B19037_with_ann!DE50","v":172},{"$f":"[1]ACS_16_5YR_B19037_with_ann!DF50","v":29},{"$f":"[1]ACS_16_5YR_B19037_with_ann!DG50","v":47},{"$f":"[1]ACS_16_5YR_B19037_with_ann!DH50","v":0},{"$f":"[1]ACS_16_5YR_B19037_with_ann!DI50","v":12},{"$f":"[1]ACS_16_5YR_B19037_with_ann!DJ50","v":0},{"$f":"[1]ACS_16_5YR_B19037_with_ann!DK50","v":12},{"$f":"[1]ACS_16_5YR_B19037_with_ann!DL50","v":36},{"$f":"[1]ACS_16_5YR_B19037_with_ann!DM50","v":32},{"$f":"[1]ACS_16_5YR_B19037_with_ann!DN50","v":34},{"$f":"[1]ACS_16_5YR_B19037_with_ann!DO50","v":28},{"$f":"[1]ACS_16_5YR_B19037_with_ann!DP50","v":25},{"$f":"[1]ACS_16_5YR_B19037_with_ann!DQ50","v":19},{"$f":"[1]ACS_16_5YR_B19037_with_ann!DR50","v":19},{"$f":"[1]ACS_16_5YR_B19037_with_ann!DS50","v":31},{"$f":"[1]ACS_16_5YR_B19037_with_ann!DT50","v":81},{"$f":"[1]ACS_16_5YR_B19037_with_ann!DU50","v":90},{"$f":"[1]ACS_16_5YR_B19037_with_ann!DV50","v":0},{"$f":"[1]ACS_16_5YR_B19037_with_ann!DW50","v":12},{"$f":"[1]ACS_16_5YR_B19037_with_ann!DX50","v":123},{"$f":"[1]ACS_16_5YR_B19037_with_ann!DY50","v":116},{"$f":"[1]ACS_16_5YR_B19037_with_ann!DZ50","v":205},{"$f":"[1]ACS_16_5YR_B19037_with_ann!EA50","v":164},{"$f":"[1]ACS_16_5YR_B19037_with_ann!EB50","v":33},{"$f":"[1]ACS_16_5YR_B19037_with_ann!EC50","v":26},{"$f":"[1]ACS_16_5YR_B19037_with_ann!ED50","v":28},{"$f":"[1]ACS_16_5YR_B19037_with_ann!EE50","v":24},{"$f":"[1]ACS_16_5YR_B19037_with_ann!EF50","v":5},{"$f":"[1]ACS_16_5YR_B19037_with_ann!EG50","v":9},{"$f":"[1]ACS_16_5YR_B19037_with_ann!EH50","v":6},{"$f":"[1]ACS_16_5YR_B19037_with_ann!EI50","v":9},{"$f":"[1]ACS_16_5YR_B19037_with_ann!EJ50","v":0},{"$f":"[1]ACS_16_5YR_B19037_with_ann!EK50","v":12}]
["06000US3300538500","0600000US3300539300","060",{"$f":"[1]ACS_16_5YR_B19037_with_ann!C51","v":"Jaffrey"},{"$f":"[1]ACS_16_5YR_B19037_with_ann!D51","v":2026},{"$f":"[1]ACS_16_5YR_B19037_with_ann!E51","v":225},{"$f":"[1]ACS_16_5YR_B19037_with_ann!F51","v":49},{"$f":"[1]ACS_16_5YR_B19037_with_ann!G51","v":74},{"$f":"[1]ACS_16_5YR_B19037_with_ann!H51","v":0},{"$f":"[1]ACS_16_5YR_B19037_with_ann!I51","v":17},{"$f":"[1]ACS_16_5YR_B19037_with_ann!J51","v":0},{"$f":"[1]ACS_16_5YR_B19037_with_ann!K51","v":17},{"$f":"[1]ACS_16_5YR_B19037_with_ann!L51","v":0},{"$f":"[1]ACS_16_5YR_B19037_with_ann!M51","v":17},{"$f":"[1]ACS_16_5YR_B19037_with_ann!N51","v":0},{"$f":"[1]ACS_16_5YR_B19037_with_ann!O51","v":17},{"$f":"[1]ACS_16_5YR_B19037_with_ann!P51","v":0},{"$f":"[1]ACS_16_5YR_B19037_with_ann!Q51","v":17},{"$f":"[1]ACS_16_5YR_B19037_with_ann!R51","v":0},{"$f":"[1]ACS_16_5YR_B19037_with_ann!S51","v":17},{"$f":"[1]ACS_16_5YR_B19037_with_ann!T51","v":0},{"$f":"[1]ACS_16_5YR_B19037_with_ann!U51","v":17},{"$f":"[1]ACS_16_5YR_B19037_with_ann!V51","v":0},{"$f":"[1]ACS_16_5YR_B19037_with_ann!W51","v":17},{"$f":"[1]ACS_16_5YR_B19037_with_ann!X51","v":0},{"$f":"[1]ACS_16_5YR_B19037_with_ann!Y51","v":17},{"$f":"[1]ACS_16_5YR_B19037_with_ann!Z51","v":0},{"$f":"[1]ACS_16_5YR_B19037_with_ann!AA51","v":17},{"$f":"[1]ACS_16_5YR_B19037_with_ann!AB51","v":0},{"$f":"[1]ACS_16_5YR_B19037_with_ann!AC51","v":17},{"$f":"[1]ACS_16_5YR_B19037_with_ann!AD51","v":0},{"$f":"[1]ACS_16_5YR_B19037_with_ann!AE51","v":17},{"$f":"[1]ACS_16_5YR_B19037_with_ann!AF51","v":49},{"$f":"[1]ACS_16_5YR_B19037_with_ann!AG51","v":74},{"$f":"[1]ACS_16_5YR_B19037_with_ann!AH51","v":0},{"$f":"[1]ACS_16_5YR_B19037_with_ann!AI51","v":17},{"$f":"[1]ACS_16_5YR_B19037_with_ann!AJ51","v":0},{"$f":"[1]ACS_16_5YR_B19037_with_ann!AK51","v":17},{"$f":"[1]ACS_16_5YR_B19037_with_ann!AL51","v":0},{"$f":"[1]ACS_16_5YR_B19037_with_ann!AM51","v":17},{"$f":"[1]ACS_16_5YR_B19037_with_ann!AN51","v":447},{"$f":"[1]ACS_16_5YR_B19037_with_ann!AO51","v":128},{"$f":"[1]ACS_16_5YR_B19037_with_ann!AP51","v":0},{"$f":"[1]ACS_16_5YR_B19037_with_ann!AQ51","v":17},{"$f":"[1]ACS_16_5YR_B19037_with_ann!AR51","v":0},{"$f":"[1]ACS_16_5YR_B19037_with_ann!AS51","v":17},{"$f":"[1]ACS_16_5YR_B19037_with_ann!AT51","v":33},{"$f":"[1]ACS_16_5YR_B19037_with_ann!AU51","v":34},{"$f":"[1]ACS_16_5YR_B19037_with_ann!AV51","v":0},{"$f":"[1]ACS_16_5YR_B19037_with_ann!AW51","v":17},{"$f":"[1]ACS_16_5YR_B19037_with_ann!AX51","v":11},{"$f":"[1]ACS_16_5YR_B19037_with_ann!AY51","v":20},{"$f":"[1]ACS_16_5YR_B19037_with_ann!AZ51","v":0},{"$f":"[1]ACS_16_5YR_B19037_with_ann!BA51","v":17},{"$f":"[1]ACS_16_5YR_B19037_with_ann!BB51","v":10},{"$f":"[1]ACS_16_5YR_B19037_with_ann!BC51","v":19},{"$f":"[1]ACS_16_5YR_B19037_with_ann!BD51","v":0},{"$f":"[1]ACS_16_5YR_B19037_with_ann!BE51","v":17},{"$f":"[1]ACS_16_5YR_B19037_with_ann!BF51","v":0},{"$f":"[1]ACS_16_5YR_B19037_with_ann!BG51","v":17},{"$f":"[1]ACS_16_5YR_B19037_with_ann!BH51","v":0},{"$f":"[1]ACS_16_5YR_B19037_with_ann!BI51","v":17},{"$f":"[1]ACS_16_5YR_B19037_with_ann!BJ51","v":76},{"$f":"[1]ACS_16_5YR_B19037_with_ann!BK51","v":68},{"$f":"[1]ACS_16_5YR_B19037_with_ann!BL51","v":30},{"$f":"[1]ACS_16_5YR_B19037_with_ann!BM51","v":32},{"$f":"[1]ACS_16_5YR_B19037_with_ann!BN51","v":98},{"$f":"[1]ACS_16_5YR_B19037_with_ann!BO51","v":96},{"$f":"[1]ACS_16_5YR_B19037_with_ann!BP51","v":61},{"$f":"[1]ACS_16_5YR_B19037_with_ann!BQ51","v":58},{"$f":"[1]ACS_16_5YR_B19037_with_ann!BR51","v":29},{"$f":"[1]ACS_16_5YR_B19037_with_ann!BS51","v":38},{"$f":"[1]ACS_16_5YR_B19037_with_ann!BT51","v":99},{"$f":"[1]ACS_16_5YR_B19037_with_ann!BU51","v":103},{"$f":"[1]ACS_16_5YR_B19037_with_ann!BV51","v":1065},{"$f":"[1]ACS_16_5YR_B19037_with_ann!BW51","v":226},{"$f":"[1]ACS_16_5YR_B19037_with_ann!BX51","v":0},{"$f":"[1]ACS_16_5YR_B19037_with_ann!BY51","v":17},{"$f":"[1]ACS_16_5YR_B19037_with_ann!BZ51","v":28},{"$f":"[1]ACS_16_5YR_B19037_with_ann!CA51","v":42},{"$f":"[1]ACS_16_5YR_B19037_with_ann!CB51","v":0},{"$f":"[1]ACS_16_5YR_B19037_with_ann!CC51","v":17},{"$f":"[1]ACS_16_5YR_B19037_with_ann!CD51","v":41},{"$f":"[1]ACS_16_5YR_B19037_with_ann!CE51","v":43},{"$f":"[1]ACS_16_5YR_B19037_with_ann!CF51","v":21},{"$f":"[1]ACS_16_5YR_B19037_with_ann!CG51","v":33},{"$f":"[1]ACS_16_5YR_B19037_with_ann!CH51","v":58},{"$f":"[1]ACS_16_5YR_B19037_with_ann!CI51","v":75},{"$f":"[1]ACS_16_5YR_B19037_with_ann!CJ51","v":0},{"$f":"[1]ACS_16_5YR_B19037_with_ann!CK51","v":17},{"$f":"[1]ACS_16_5YR_B19037_with_ann!CL51","v":22},{"$f":"[1]ACS_16_5YR_B19037_with_ann!CM51","v":28},{"$f":"[1]ACS_16_5YR_B19037_with_ann!CN51","v":0},{"$f":"[1]ACS_16_5YR_B19037_with_ann!CO51","v":17},{"$f":"[1]ACS_16_5YR_B19037_with_ann!CP51","v":33},{"$f":"[1]ACS_16_5YR_B19037_with_ann!CQ51","v":36},{"$f":"[1]ACS_16_5YR_B19037_with_ann!CR51","v":329},{"$f":"[1]ACS_16_5YR_B19037_with_ann!CS51","v":253},{"$f":"[1]ACS_16_5YR_B19037_with_ann!CT51","v":105},{"$f":"[1]ACS_16_5YR_B19037_with_ann!CU51","v":77},{"$f":"[1]ACS_16_5YR_B19037_with_ann!CV51","v":156},{"$f":"[1]ACS_16_5YR_B19037_with_ann!CW51","v":140},{"$f":"[1]ACS_16_5YR_B19037_with_ann!CX51","v":125},{"$f":"[1]ACS_16_5YR_B19037_with_ann!CY51","v":100},{"$f":"[1]ACS_16_5YR_B19037_with_ann!CZ51","v":70},{"$f":"[1]ACS_16_5YR_B19037_with_ann!DA51","v":55},{"$f":"[1]ACS_16_5YR_B19037_with_ann!DB51","v":77},{"$f":"[1]ACS_16_5YR_B19037_with_ann!DC51","v":66},{"$f":"[1]ACS_16_5YR_B19037_with_ann!DD51","v":465},{"$f":"[1]ACS_16_5YR_B19037_with_ann!DE51","v":116},{"$f":"[1]ACS_16_5YR_B19037_with_ann!DF51","v":40},{"$f":"[1]ACS_16_5YR_B19037_with_ann!DG51","v":38},{"$f":"[1]ACS_16_5YR_B19037_with_ann!DH51","v":0},{"$f":"[1]ACS_16_5YR_B19037_with_ann!DI51","v":17},{"$f":"[1]ACS_16_5YR_B19037_with_ann!DJ51","v":1},{"$f":"[1]ACS_16_5YR_B19037_with_ann!DK51","v":4},{"$f":"[1]ACS_16_5YR_B19037_with_ann!DL51","v":13},{"$f":"[1]ACS_16_5YR_B19037_with_ann!DM51","v":21},{"$f":"[1]ACS_16_5YR_B19037_with_ann!DN51","v":30},{"$f":"[1]ACS_16_5YR_B19037_with_ann!DO51","v":32},{"$f":"[1]ACS_16_5YR_B19037_with_ann!DP51","v":53},{"$f":"[1]ACS_16_5YR_B19037_with_ann!DQ51","v":51},{"$f":"[1]ACS_16_5YR_B19037_with_ann!DR51","v":13},{"$f":"[1]ACS_16_5YR_B19037_with_ann!DS51","v":20},{"$f":"[1]ACS_16_5YR_B19037_with_ann!DT51","v":0},{"$f":"[1]ACS_16_5YR_B19037_with_ann!DU51","v":17},{"$f":"[1]ACS_16_5YR_B19037_with_ann!DV51","v":15},{"$f":"[1]ACS_16_5YR_B19037_with_ann!DW51","v":24},{"$f":"[1]ACS_16_5YR_B19037_with_ann!DX51","v":78},{"$f":"[1]ACS_16_5YR_B19037_with_ann!DY51","v":71},{"$f":"[1]ACS_16_5YR_B19037_with_ann!DZ51","v":30},{"$f":"[1]ACS_16_5YR_B19037_with_ann!EA51","v":30},{"$f":"[1]ACS_16_5YR_B19037_with_ann!EB51","v":48},{"$f":"[1]ACS_16_5YR_B19037_with_ann!EC51","v":60},{"$f":"[1]ACS_16_5YR_B19037_with_ann!ED51","v":94},{"$f":"[1]ACS_16_5YR_B19037_with_ann!EE51","v":74},{"$f":"[1]ACS_16_5YR_B19037_with_ann!EF51","v":0},{"$f":"[1]ACS_16_5YR_B19037_with_ann!EG51","v":17},{"$f":"[1]ACS_16_5YR_B19037_with_ann!EH51","v":16},{"$f":"[1]ACS_16_5YR_B19037_with_ann!EI51","v":26},{"$f":"[1]ACS_16_5YR_B19037_with_ann!EJ51","v":34},{"$f":"[1]ACS_16_5YR_B19037_with_ann!EK51","v":36}]
["06000US3300539300","0600000US3300545460","060",{"$f":"[1]ACS_16_5YR_B19037_with_ann!C52","v":"Keene"},{"$f":"[1]ACS_16_5YR_B19037_with_ann!D52","v":9259},{"$f":"[1]ACS_16_5YR_B19037_with_ann!E52","v":370},{"$f":"[1]ACS_16_5YR_B19037_with_ann!F52","v":642},{"$f":"[1]ACS_16_5YR_B19037_with_ann!G52","v":165},{"$f":"[1]ACS_16_5YR_B19037_with_ann!H52","v":45},{"$f":"[1]ACS_16_5YR_B19037_with_ann!I52","v":51},{"$f":"[1]ACS_16_5YR_B19037_with_ann!J52","v":99},{"$f":"[1]ACS_16_5YR_B19037_with_ann!K52","v":71},{"$f":"[1]ACS_16_5YR_B19037_with_ann!L52","v":101},{"$f":"[1]ACS_16_5YR_B19037_with_ann!M52","v":99},{"$f":"[1]ACS_16_5YR_B19037_with_ann!N52","v":0},{"$f":"[1]ACS_16_5YR_B19037_with_ann!O52","v":22},{"$f":"[1]ACS_16_5YR_B19037_with_ann!P52","v":11},{"$f":"[1]ACS_16_5YR_B19037_with_ann!Q52","v":18},{"$f":"[1]ACS_16_5YR_B19037_with_ann!R52","v":36},{"$f":"[1]ACS_16_5YR_B19037_with_ann!S52","v":43},{"$f":"[1]ACS_16_5YR_B19037_with_ann!T52","v":49},{"$f":"[1]ACS_16_5YR_B19037_with_ann!U52","v":44},{"$f":"[1]ACS_16_5YR_B19037_with_ann!V52","v":0},{"$f":"[1]ACS_16_5YR_B19037_with_ann!W52","v":22},{"$f":"[1]ACS_16_5YR_B19037_with_ann!X52","v":39},{"$f":"[1]ACS_16_5YR_B19037_with_ann!Y52","v":43},{"$f":"[1]ACS_16_5YR_B19037_with_ann!Z52","v":69},{"$f":"[1]ACS_16_5YR_B19037_with_ann!AA52","v":77},{"$f":"[1]ACS_16_5YR_B19037_with_ann!AB52","v":46},{"$f":"[1]ACS_16_5YR_B19037_with_ann!AC52","v":50},{"$f":"[1]ACS_16_5YR_B19037_with_ann!AD52","v":75},{"$f":"[1]ACS_16_5YR_B19037_with_ann!AE52","v":61},{"$f":"[1]ACS_16_5YR_B19037_with_ann!AF52","v":72},{"$f":"[1]ACS_16_5YR_B19037_with_ann!AG52","v":54},{"$f":"[1]ACS_16_5YR_B19037_with_ann!AH52","v":0},{"$f":"[1]ACS_16_5YR_B19037_with_ann!AI52","v":22},{"$f":"[1]ACS_16_5YR_B19037_with_ann!AJ52","v":0},{"$f":"[1]ACS_16_5YR_B19037_with_ann!AK52","v":22},{"$f":"[1]ACS_16_5YR_B19037_with_ann!AL52","v":0},{"$f":"[1]ACS_16_5YR_B19037_with_ann!AM52","v":22},{"$f":"[1]ACS_16_5YR_B19037_with_ann!AN52","v":2976},{"$f":"[1]ACS_16_5YR_B19037_with_ann!AO52","v":333},{"$f":"[1]ACS_16_5YR_B19037_with_ann!AP52","v":75},{"$f":"[1]ACS_16_5YR_B19037_with_ann!AQ52","v":86},{"$f":"[1]ACS_16_5YR_B19037_with_ann!AR52","v":89},{"$f":"[1]ACS_16_5YR_B19037_with_ann!AS52","v":62},{"$f":"[1]ACS_16_5YR_B19037_with_ann!AT52","v":98},{"$f":"[1]ACS_16_5YR_B19037_with_ann!AU52","v":79},{"$f":"[1]ACS_16_5YR_B19037_with_ann!AV52","v":55},{"$f":"[1]ACS_16_5YR_B19037_with_ann!AW52","v":48},{"$f":"[1]ACS_16_5YR_B19037_with_ann!AX52","v":61},{"$f":"[1]ACS_16_5YR_B19037_with_ann!AY52","v":73},{"$f":"[1]ACS_16_5YR_B19037_with_ann!AZ52","v":208},{"$f":"[1]ACS_16_5YR_B19037_with_ann!BA52","v":122},{"$f":"[1]ACS_16_5YR_B19037_with_ann!BB52","v":107},{"$f":"[1]ACS_16_5YR_B19037_with_ann!BC52","v":69},{"$f":"[1]ACS_16_5YR_B19037_with_ann!BD52","v":63},{"$f":"[1]ACS_16_5YR_B19037_with_ann!BE52","v":59},{"$f":"[1]ACS_16_5YR_B19037_with_ann!BF52","v":127},{"$f":"[1]ACS_16_5YR_B19037_with_ann!BG52","v":95},{"$f":"[1]ACS_16_5YR_B19037_with_ann!BH52","v":238},{"$f":"[1]ACS_16_5YR_B19037_with_ann!BI52","v":114},{"$f":"[1]ACS_16_5YR_B19037_with_ann!BJ52","v":224},{"$f":"[1]ACS_16_5YR_B19037_with_ann!BK52","v":99},{"$f":"[1]ACS_16_5YR_B19037_with_ann!BL52","v":642},{"$f":"[1]ACS_16_5YR_B19037_with_ann!BM52","v":216},{"$f":"[1]ACS_16_5YR_B19037_with_ann!BN52","v":376},{"$f":"[1]ACS_16_5YR_B19037_with_ann!BO52","v":140},{"$f":"[1]ACS_16_5YR_B19037_with_ann!BP52","v":246},{"$f":"[1]ACS_16_5YR_B19037_with_ann!BQ52","v":110},{"$f":"[1]ACS_16_5YR_B19037_with_ann!BR52","v":259},{"$f":"[1]ACS_16_5YR_B19037_with_ann!BS52","v":133},{"$f":"[1]ACS_16_5YR_B19037_with_ann!BT52","v":108},{"$f":"[1]ACS_16_5YR_B19037_with_ann!BU52","v":94},{"$f":"[1]ACS_16_5YR_B19037_with_ann!BV52","v":3036},{"$f":"[1]ACS_16_5YR_B19037_with_ann!BW52","v":266},{"$f":"[1]ACS_16_5YR_B19037_with_ann!BX52","v":56},{"$f":"[1]ACS_16_5YR_B19037_with_ann!BY52","v":43},{"$f":"[1]ACS_16_5YR_B19037_with_ann!BZ52","v":137},{"$f":"[1]ACS_16_5YR_B19037_with_ann!CA52","v":109},{"$f":"[1]ACS_16_5YR_B19037_with_ann!CB52","v":60},{"$f":"[1]ACS_16_5YR_B19037_with_ann!CC52","v":56},{"$f":"[1]ACS_16_5YR_B19037_with_ann!CD52","v":28},{"$f":"[1]ACS_16_5YR_B19037_with_ann!CE52","v":30},{"$f":"[1]ACS_16_5YR_B19037_with_ann!CF52","v":40},{"$f":"[1]ACS_16_5YR_B19037_with_ann!CG52","v":34},{"$f":"[1]ACS_16_5YR_B19037_with_ann!CH52","v":186},{"$f":"[1]ACS_16_5YR_B19037_with_ann!CI52","v":131},{"$f":"[1]ACS_16_5YR_B19037_with_ann!CJ52","v":80},{"$f":"[1]ACS_16_5YR_B19037_with_ann!CK52","v":54},{"$f":"[1]ACS_16_5YR_B19037_with_ann!CL52","v":77},{"$f":"[1]ACS_16_5YR_B19037_with_ann!CM52","v":101},{"$f":"[1]ACS_16_5YR_B19037_with_ann!CN52","v":68},{"$f":"[1]ACS_16_5YR_B19037_with_ann!CO52","v":71},{"$f":"[1]ACS_16_5YR_B19037_with_ann!CP52","v":240},{"$f":"[1]ACS_16_5YR_B19037_with_ann!CQ52","v":107},{"$f":"[1]ACS_16_5YR_B19037_with_ann!CR52","v":279},{"$f":"[1]ACS_16_5YR_B19037_with_ann!CS52","v":117},{"$f":"[1]ACS_16_5YR_B19037_with_ann!CT52","v":525},{"$f":"[1]ACS_16_5YR_B19037_with_ann!CU52","v":186},{"$f":"[1]ACS_16_5YR_B19037_with_ann!CV52","v":297},{"$f":"[1]ACS_16_5YR_B19037_with_ann!CW52","v":118},{"$f":"[1]ACS_16_5YR_B19037_with_ann!CX52","v":355},{"$f":"[1]ACS_16_5YR_B19037_with_ann!CY52","v":144},{"$f":"[1]ACS_16_5YR_B19037_with_ann!CZ52","v":295},{"$f":"[1]ACS_16_5YR_B19037_with_ann!DA52","v":136},{"$f":"[1]ACS_16_5YR_B19037_with_ann!DB52","v":313},{"$f":"[1]ACS_16_5YR_B19037_with_ann!DC52","v":105},{"$f":"[1]ACS_16_5YR_B19037_with_ann!DD52","v":2605},{"$f":"[1]ACS_16_5YR_B19037_with_ann!DE52","v":293},{"$f":"[1]ACS_16_5YR_B19037_with_ann!DF52","v":48},{"$f":"[1]ACS_16_5YR_B19037_with_ann!DG52","v":41},{"$f":"[1]ACS_16_5YR_B19037_with_ann!DH52","v":167},{"$f":"[1]ACS_16_5YR_B19037_with_ann!DI52","v":82},{"$f":"[1]ACS_16_5YR_B19037_with_ann!DJ52","v":375},{"$f":"[1]ACS_16_5YR_B19037_with_ann!DK52","v":138},{"$f":"[1]ACS_16_5YR_B19037_with_ann!DL52","v":108},{"$f":"[1]ACS_16_5YR_B19037_with_ann!DM52","v":73},{"$f":"[1]ACS_16_5YR_B19037_with_ann!DN52","v":176},{"$f":"[1]ACS_16_5YR_B19037_with_ann!DO52","v":108},{"$f":"[1]ACS_16_5YR_B19037_with_ann!DP52","v":106},{"$f":"[1]ACS_16_5YR_B19037_with_ann!DQ52","v":85},{"$f":"[1]ACS_16_5YR_B19037_with_ann!DR52","v":152},{"$f":"[1]ACS_16_5YR_B19037_with_ann!DS52","v":79},{"$f":"[1]ACS_16_5YR_B19037_with_ann!DT52","v":159},{"$f":"[1]ACS_16_5YR_B19037_with_ann!DU52","v":100},{"$f":"[1]ACS_16_5YR_B19037_with_ann!DV52","v":99},{"$f":"[1]ACS_16_5YR_B19037_with_ann!DW52","v":59},{"$f":"[1]ACS_16_5YR_B19037_with_ann!DX52","v":222},{"$f":"[1]ACS_16_5YR_B19037_with_ann!DY52","v":106},{"$f":"[1]ACS_16_5YR_B19037_with_ann!DZ52","v":165},{"$f":"[1]ACS_16_5YR_B19037_with_ann!EA52","v":80},{"$f":"[1]ACS_16_5YR_B19037_with_ann!EB52","v":214},{"$f":"[1]ACS_16_5YR_B19037_with_ann!EC52","v":84},{"$f":"[1]ACS_16_5YR_B19037_with_ann!ED52","v":128},{"$f":"[1]ACS_16_5YR_B19037_with_ann!EE52","v":69},{"$f":"[1]ACS_16_5YR_B19037_with_ann!EF52","v":213},{"$f":"[1]ACS_16_5YR_B19037_with_ann!EG52","v":163},{"$f":"[1]ACS_16_5YR_B19037_with_ann!EH52","v":94},{"$f":"[1]ACS_16_5YR_B19037_with_ann!EI52","v":46},{"$f":"[1]ACS_16_5YR_B19037_with_ann!EJ52","v":179},{"$f":"[1]ACS_16_5YR_B19037_with_ann!EK52","v":102}]
["06000US3300545460","0600000US3300545700","060",{"$f":"[1]ACS_16_5YR_B19037_with_ann!C53","v":"Marlborough"},{"$f":"[1]ACS_16_5YR_B19037_with_ann!D53","v":942},{"$f":"[1]ACS_16_5YR_B19037_with_ann!E53","v":130},{"$f":"[1]ACS_16_5YR_B19037_with_ann!F53","v":0},{"$f":"[1]ACS_16_5YR_B19037_with_ann!G53","v":12},{"$f":"[1]ACS_16_5YR_B19037_with_ann!H53","v":0},{"$f":"[1]ACS_16_5YR_B19037_with_ann!I53","v":12},{"$f":"[1]ACS_16_5YR_B19037_with_ann!J53","v":0},{"$f":"[1]ACS_16_5YR_B19037_with_ann!K53","v":12},{"$f":"[1]ACS_16_5YR_B19037_with_ann!L53","v":0},{"$f":"[1]ACS_16_5YR_B19037_with_ann!M53","v":12},{"$f":"[1]ACS_16_5YR_B19037_with_ann!N53","v":0},{"$f":"[1]ACS_16_5YR_B19037_with_ann!O53","v":12},{"$f":"[1]ACS_16_5YR_B19037_with_ann!P53","v":0},{"$f":"[1]ACS_16_5YR_B19037_with_ann!Q53","v":12},{"$f":"[1]ACS_16_5YR_B19037_with_ann!R53","v":0},{"$f":"[1]ACS_16_5YR_B19037_with_ann!S53","v":12},{"$f":"[1]ACS_16_5YR_B19037_with_ann!T53","v":0},{"$f":"[1]ACS_16_5YR_B19037_with_ann!U53","v":12},{"$f":"[1]ACS_16_5YR_B19037_with_ann!V53","v":0},{"$f":"[1]ACS_16_5YR_B19037_with_ann!W53","v":12},{"$f":"[1]ACS_16_5YR_B19037_with_ann!X53","v":0},{"$f":"[1]ACS_16_5YR_B19037_with_ann!Y53","v":12},{"$f":"[1]ACS_16_5YR_B19037_with_ann!Z53","v":0},{"$f":"[1]ACS_16_5YR_B19037_with_ann!AA53","v":12},{"$f":"[1]ACS_16_5YR_B19037_with_ann!AB53","v":0},{"$f":"[1]ACS_16_5YR_B19037_with_ann!AC53","v":12},{"$f":"[1]ACS_16_5YR_B19037_with_ann!AD53","v":0},{"$f":"[1]ACS_16_5YR_B19037_with_ann!AE53","v":12},{"$f":"[1]ACS_16_5YR_B19037_with_ann!AF53","v":0},{"$f":"[1]ACS_16_5YR_B19037_with_ann!AG53","v":12},{"$f":"[1]ACS_16_5YR_B19037_with_ann!AH53","v":0},{"$f":"[1]ACS_16_5YR_B19037_with_ann!AI53","v":12},{"$f":"[1]ACS_16_5YR_B19037_with_ann!AJ53","v":0},{"$f":"[1]ACS_16_5YR_B19037_with_ann!AK53","v":12},{"$f":"[1]ACS_16_5YR_B19037_with_ann!AL53","v":0},{"$f":"[1]ACS_16_5YR_B19037_with_ann!AM53","v":12},{"$f":"[1]ACS_16_5YR_B19037_with_ann!AN53","v":339},{"$f":"[1]ACS_16_5YR_B19037_with_ann!AO53","v":97},{"$f":"[1]ACS_16_5YR_B19037_with_ann!AP53","v":0},{"$f":"[1]ACS_16_5YR_B19037_with_ann!AQ53","v":12},{"$f":"[1]ACS_16_5YR_B19037_with_ann!AR53","v":21},{"$f":"[1]ACS_16_5YR_B19037_with_ann!AS53","v":24},{"$f":"[1]ACS_16_5YR_B19037_with_ann!AT53","v":7},{"$f":"[1]ACS_16_5YR_B19037_with_ann!AU53","v":10},{"$f":"[1]ACS_16_5YR_B19037_with_ann!AV53","v":73},{"$f":"[1]ACS_16_5YR_B19037_with_ann!AW53","v":70},{"$f":"[1]ACS_16_5YR_B19037_with_ann!AX53","v":0},{"$f":"[1]ACS_16_5YR_B19037_with_ann!AY53","v":12},{"$f":"[1]ACS_16_5YR_B19037_with_ann!AZ53","v":20},{"$f":"[1]ACS_16_5YR_B19037_with_ann!BA53","v":23},{"$f":"[1]ACS_16_5YR_B19037_with_ann!BB53","v":0},{"$f":"[1]ACS_16_5YR_B19037_with_ann!BC53","v":12},{"$f":"[1]ACS_16_5YR_B19037_with_ann!BD53","v":0},{"$f":"[1]ACS_16_5YR_B19037_with_ann!BE53","v":12},{"$f":"[1]ACS_16_5YR_B19037_with_ann!BF53","v":6},{"$f":"[1]ACS_16_5YR_B19037_with_ann!BG53","v":9},{"$f":"[1]ACS_16_5YR_B19037_with_ann!BH53","v":16},{"$f":"[1]ACS_16_5YR_B19037_with_ann!BI53","v":23},{"$f":"[1]ACS_16_5YR_B19037_with_ann!BJ53","v":52},{"$f":"[1]ACS_16_5YR_B19037_with_ann!BK53","v":36},{"$f":"[1]ACS_16_5YR_B19037_with_ann!BL53","v":27},{"$f":"[1]ACS_16_5YR_B19037_with_ann!BM53","v":22},{"$f":"[1]ACS_16_5YR_B19037_with_ann!BN53","v":24},{"$f":"[1]ACS_16_5YR_B19037_with_ann!BO53","v":22},{"$f":"[1]ACS_16_5YR_B19037_with_ann!BP53","v":58},{"$f":"[1]ACS_16_5YR_B19037_with_ann!BQ53","v":43},{"$f":"[1]ACS_16_5YR_B19037_with_ann!BR53","v":35},{"$f":"[1]ACS_16_5YR_B19037_with_ann!BS53","v":27},{"$f":"[1]ACS_16_5YR_B19037_with_ann!BT53","v":0},{"$f":"[1]ACS_16_5YR_B19037_with_ann!BU53","v":12},{"$f":"[1]ACS_16_5YR_B19037_with_ann!BV53","v":325},{"$f":"[1]ACS_16_5YR_B19037_with_ann!BW53","v":86},{"$f":"[1]ACS_16_5YR_B19037_with_ann!BX53","v":14},{"$f":"[1]ACS_16_5YR_B19037_with_ann!BY53","v":16},{"$f":"[1]ACS_16_5YR_B19037_with_ann!BZ53","v":7},{"$f":"[1]ACS_16_5YR_B19037_with_ann!CA53","v":10},{"$f":"[1]ACS_16_5YR_B19037_with_ann!CB53","v":11},{"$f":"[1]ACS_16_5YR_B19037_with_ann!CC53","v":17},{"$f":"[1]ACS_16_5YR_B19037_with_ann!CD53","v":12},{"$f":"[1]ACS_16_5YR_B19037_with_ann!CE53","v":12},{"$f":"[1]ACS_16_5YR_B19037_with_ann!CF53","v":9},{"$f":"[1]ACS_16_5YR_B19037_with_ann!CG53","v":11},{"$f":"[1]ACS_16_5YR_B19037_with_ann!CH53","v":11},{"$f":"[1]ACS_16_5YR_B19037_with_ann!CI53","v":12},{"$f":"[1]ACS_16_5YR_B19037_with_ann!CJ53","v":10},{"$f":"[1]ACS_16_5YR_B19037_with_ann!CK53","v":11},{"$f":"[1]ACS_16_5YR_B19037_with_ann!CL53","v":5},{"$f":"[1]ACS_16_5YR_B19037_with_ann!CM53","v":7},{"$f":"[1]ACS_16_5YR_B19037_with_ann!CN53","v":5},{"$f":"[1]ACS_16_5YR_B19037_with_ann!CO53","v":9},{"$f":"[1]ACS_16_5YR_B19037_with_ann!CP53","v":3},{"$f":"[1]ACS_16_5YR_B19037_with_ann!CQ53","v":5},{"$f":"[1]ACS_16_5YR_B19037_with_ann!CR53","v":34},{"$f":"[1]ACS_16_5YR_B19037_with_ann!CS53","v":32},{"$f":"[1]ACS_16_5YR_B19037_with_ann!CT53","v":62},{"$f":"[1]ACS_16_5YR_B19037_with_ann!CU53","v":63},{"$f":"[1]ACS_16_5YR_B19037_with_ann!CV53","v":57},{"$f":"[1]ACS_16_5YR_B19037_with_ann!CW53","v":38},{"$f":"[1]ACS_16_5YR_B19037_with_ann!CX53","v":7},{"$f":"[1]ACS_16_5YR_B19037_with_ann!CY53","v":10},{"$f":"[1]ACS_16_5YR_B19037_with_ann!CZ53","v":45},{"$f":"[1]ACS_16_5YR_B19037_with_ann!DA53","v":36},{"$f":"[1]ACS_16_5YR_B19037_with_ann!DB53","v":33},{"$f":"[1]ACS_16_5YR_B19037_with_ann!DC53","v":22},{"$f":"[1]ACS_16_5YR_B19037_with_ann!DD53","v":278},{"$f":"[1]ACS_16_5YR_B19037_with_ann!DE53","v":62},{"$f":"[1]ACS_16_5YR_B19037_with_ann!DF53","v":6},{"$f":"[1]ACS_16_5YR_B19037_with_ann!DG53","v":9},{"$f":"[1]ACS_16_5YR_B19037_with_ann!DH53","v":10},{"$f":"[1]ACS_16_5YR_B19037_with_ann!DI53","v":16},{"$f":"[1]ACS_16_5YR_B19037_with_ann!DJ53","v":11},{"$f":"[1]ACS_16_5YR_B19037_with_ann!DK53","v":17},{"$f":"[1]ACS_16_5YR_B19037_with_ann!DL53","v":24},{"$f":"[1]ACS_16_5YR_B19037_with_ann!DM53","v":23},{"$f":"[1]ACS_16_5YR_B19037_with_ann!DN53","v":23},{"$f":"[1]ACS_16_5YR_B19037_with_ann!DO53","v":18},{"$f":"[1]ACS_16_5YR_B19037_with_ann!DP53","v":19},{"$f":"[1]ACS_16_5YR_B19037_with_ann!DQ53","v":15},{"$f":"[1]ACS_16_5YR_B19037_with_ann!DR53","v":38},{"$f":"[1]ACS_16_5YR_B19037_with_ann!DS53","v":29},{"$f":"[1]ACS_16_5YR_B19037_with_ann!DT53","v":0},{"$f":"[1]ACS_16_5YR_B19037_with_ann!DU53","v":12},{"$f":"[1]ACS_16_5YR_B19037_with_ann!DV53","v":0},{"$f":"[1]ACS_16_5YR_B19037_with_ann!DW53","v":12},{"$f":"[1]ACS_16_5YR_B19037_with_ann!DX53","v":37},{"$f":"[1]ACS_16_5YR_B19037_with_ann!DY53","v":22},{"$f":"[1]ACS_16_5YR_B19037_with_ann!DZ53","v":12},{"$f":"[1]ACS_16_5YR_B19037_with_ann!EA53","v":13},{"$f":"[1]ACS_16_5YR_B19037_with_ann!EB53","v":17},{"$f":"[1]ACS_16_5YR_B19037_with_ann!EC53","v":15},{"$f":"[1]ACS_16_5YR_B19037_with_ann!ED53","v":29},{"$f":"[1]ACS_16_5YR_B19037_with_ann!EE53","v":18},{"$f":"[1]ACS_16_5YR_B19037_with_ann!EF53","v":19},{"$f":"[1]ACS_16_5YR_B19037_with_ann!EG53","v":24},{"$f":"[1]ACS_16_5YR_B19037_with_ann!EH53","v":6},{"$f":"[1]ACS_16_5YR_B19037_with_ann!EI53","v":10},{"$f":"[1]ACS_16_5YR_B19037_with_ann!EJ53","v":27},{"$f":"[1]ACS_16_5YR_B19037_with_ann!EK53","v":32}]
["06000US3300545700","0600000US3300550580","060",{"$f":"[1]ACS_16_5YR_B19037_with_ann!C54","v":"Marlow"},{"$f":"[1]ACS_16_5YR_B19037_with_ann!D54","v":314},{"$f":"[1]ACS_16_5YR_B19037_with_ann!E54","v":61},{"$f":"[1]ACS_16_5YR_B19037_with_ann!F54","v":3},{"$f":"[1]ACS_16_5YR_B19037_with_ann!G54","v":4},{"$f":"[1]ACS_16_5YR_B19037_with_ann!H54","v":0},{"$f":"[1]ACS_16_5YR_B19037_with_ann!I54","v":12},{"$f":"[1]ACS_16_5YR_B19037_with_ann!J54","v":0},{"$f":"[1]ACS_16_5YR_B19037_with_ann!K54","v":12},{"$f":"[1]ACS_16_5YR_B19037_with_ann!L54","v":0},{"$f":"[1]ACS_16_5YR_B19037_with_ann!M54","v":12},{"$f":"[1]ACS_16_5YR_B19037_with_ann!N54","v":0},{"$f":"[1]ACS_16_5YR_B19037_with_ann!O54","v":12},{"$f":"[1]ACS_16_5YR_B19037_with_ann!P54","v":0},{"$f":"[1]ACS_16_5YR_B19037_with_ann!Q54","v":12},{"$f":"[1]ACS_16_5YR_B19037_with_ann!R54","v":0},{"$f":"[1]ACS_16_5YR_B19037_with_ann!S54","v":12},{"$f":"[1]ACS_16_5YR_B19037_with_ann!T54","v":0},{"$f":"[1]ACS_16_5YR_B19037_with_ann!U54","v":12},{"$f":"[1]ACS_16_5YR_B19037_with_ann!V54","v":0},{"$f":"[1]ACS_16_5YR_B19037_with_ann!W54","v":12},{"$f":"[1]ACS_16_5YR_B19037_with_ann!X54","v":0},{"$f":"[1]ACS_16_5YR_B19037_with_ann!Y54","v":12},{"$f":"[1]ACS_16_5YR_B19037_with_ann!Z54","v":0},{"$f":"[1]ACS_16_5YR_B19037_with_ann!AA54","v":12},{"$f":"[1]ACS_16_5YR_B19037_with_ann!AB54","v":0},{"$f":"[1]ACS_16_5YR_B19037_with_ann!AC54","v":12},{"$f":"[1]ACS_16_5YR_B19037_with_ann!AD54","v":3},{"$f":"[1]ACS_16_5YR_B19037_with_ann!AE54","v":4},{"$f":"[1]ACS_16_5YR_B19037_with_ann!AF54","v":0},{"$f":"[1]ACS_16_5YR_B19037_with_ann!AG54","v":12},{"$f":"[1]ACS_16_5YR_B19037_with_ann!AH54","v":0},{"$f":"[1]ACS_16_5YR_B19037_with_ann!AI54","v":12},{"$f":"[1]ACS_16_5YR_B19037_with_ann!AJ54","v":0},{"$f":"[1]ACS_16_5YR_B19037_with_ann!AK54","v":12},{"$f":"[1]ACS_16_5YR_B19037_with_ann!AL54","v":0},{"$f":"[1]ACS_16_5YR_B19037_with_ann!AM54","v":12},{"$f":"[1]ACS_16_5YR_B19037_with_ann!AN54","v":70},{"$f":"[1]ACS_16_5YR_B19037_with_ann!AO54","v":33},{"$f":"[1]ACS_16_5YR_B19037_with_ann!AP54","v":0},{"$f":"[1]ACS_16_5YR_B19037_with_ann!AQ54","v":12},{"$f":"[1]ACS_16_5YR_B19037_with_ann!AR54","v":0},{"$f":"[1]ACS_16_5YR_B19037_with_ann!AS54","v":12},{"$f":"[1]ACS_16_5YR_B19037_with_ann!AT54","v":0},{"$f":"[1]ACS_16_5YR_B19037_with_ann!AU54","v":12},{"$f":"[1]ACS_16_5YR_B19037_with_ann!AV54","v":0},{"$f":"[1]ACS_16_5YR_B19037_with_ann!AW54","v":12},{"$f":"[1]ACS_16_5YR_B19037_with_ann!AX54","v":7},{"$f":"[1]ACS_16_5YR_B19037_with_ann!AY54","v":10},{"$f":"[1]ACS_16_5YR_B19037_with_ann!AZ54","v":0},{"$f":"[1]ACS_16_5YR_B19037_with_ann!BA54","v":12},{"$f":"[1]ACS_16_5YR_B19037_with_ann!BB54","v":4},{"$f":"[1]ACS_16_5YR_B19037_with_ann!BC54","v":6},{"$f":"[1]ACS_16_5YR_B19037_with_ann!BD54","v":0},{"$f":"[1]ACS_16_5YR_B19037_with_ann!BE54","v":12},{"$f":"[1]ACS_16_5YR_B19037_with_ann!BF54","v":0},{"$f":"[1]ACS_16_5YR_B19037_with_ann!BG54","v":12},{"$f":"[1]ACS_16_5YR_B19037_with_ann!BH54","v":2},{"$f":"[1]ACS_16_5YR_B19037_with_ann!BI54","v":3},{"$f":"[1]ACS_16_5YR_B19037_with_ann!BJ54","v":9},{"$f":"[1]ACS_16_5YR_B19037_with_ann!BK54","v":11},{"$f":"[1]ACS_16_5YR_B19037_with_ann!BL54","v":4},{"$f":"[1]ACS_16_5YR_B19037_with_ann!BM54","v":4},{"$f":"[1]ACS_16_5YR_B19037_with_ann!BN54","v":26},{"$f":"[1]ACS_16_5YR_B19037_with_ann!BO54","v":25},{"$f":"[1]ACS_16_5YR_B19037_with_ann!BP54","v":13},{"$f":"[1]ACS_16_5YR_B19037_with_ann!BQ54","v":15},{"$f":"[1]ACS_16_5YR_B19037_with_ann!BR54","v":2},{"$f":"[1]ACS_16_5YR_B19037_with_ann!BS54","v":3},{"$f":"[1]ACS_16_5YR_B19037_with_ann!BT54","v":3},{"$f":"[1]ACS_16_5YR_B19037_with_ann!BU54","v":5},{"$f":"[1]ACS_16_5YR_B19037_with_ann!BV54","v":129},{"$f":"[1]ACS_16_5YR_B19037_with_ann!BW54","v":39},{"$f":"[1]ACS_16_5YR_B19037_with_ann!BX54","v":0},{"$f":"[1]ACS_16_5YR_B19037_with_ann!BY54","v":12},{"$f":"[1]ACS_16_5YR_B19037_with_ann!BZ54","v":9},{"$f":"[1]ACS_16_5YR_B19037_with_ann!CA54","v":11},{"$f":"[1]ACS_16_5YR_B19037_with_ann!CB54","v":7},{"$f":"[1]ACS_16_5YR_B19037_with_ann!CC54","v":9},{"$f":"[1]ACS_16_5YR_B19037_with_ann!CD54","v":2},{"$f":"[1]ACS_16_5YR_B19037_with_ann!CE54","v":4},{"$f":"[1]ACS_16_5YR_B19037_with_ann!CF54","v":2},{"$f":"[1]ACS_16_5YR_B19037_with_ann!CG54","v":3},{"$f":"[1]ACS_16_5YR_B19037_with_ann!CH54","v":2},{"$f":"[1]ACS_16_5YR_B19037_with_ann!CI54","v":5},{"$f":"[1]ACS_16_5YR_B19037_with_ann!CJ54","v":3},{"$f":"[1]ACS_16_5YR_B19037_with_ann!CK54","v":4},{"$f":"[1]ACS_16_5YR_B19037_with_ann!CL54","v":0},{"$f":"[1]ACS_16_5YR_B19037_with_ann!CM54","v":12},{"$f":"[1]ACS_16_5YR_B19037_with_ann!CN54","v":8},{"$f":"[1]ACS_16_5YR_B19037_with_ann!CO54","v":11},{"$f":"[1]ACS_16_5YR_B19037_with_ann!CP54","v":2},{"$f":"[1]ACS_16_5YR_B19037_with_ann!CQ54","v":3},{"$f":"[1]ACS_16_5YR_B19037_with_ann!CR54","v":5},{"$f":"[1]ACS_16_5YR_B19037_with_ann!CS54","v":5},{"$f":"[1]ACS_16_5YR_B19037_with_ann!CT54","v":20},{"$f":"[1]ACS_16_5YR_B19037_with_ann!CU54","v":17},{"$f":"[1]ACS_16_5YR_B19037_with_ann!CV54","v":10},{"$f":"[1]ACS_16_5YR_B19037_with_ann!CW54","v":7},{"$f":"[1]ACS_16_5YR_B19037_with_ann!CX54","v":19},{"$f":"[1]ACS_16_5YR_B19037_with_ann!CY54","v":22},{"$f":"[1]ACS_16_5YR_B19037_with_ann!CZ54","v":30},{"$f":"[1]ACS_16_5YR_B19037_with_ann!DA54","v":20},{"$f":"[1]ACS_16_5YR_B19037_with_ann!DB54","v":10},{"$f":"[1]ACS_16_5YR_B19037_with_ann!DC54","v":12},{"$f":"[1]ACS_16_5YR_B19037_with_ann!DD54","v":112},{"$f":"[1]ACS_16_5YR_B19037_with_ann!DE54","v":40},{"$f":"[1]ACS_16_5YR_B19037_with_ann!DF54","v":2},{"$f":"[1]ACS_16_5YR_B19037_with_ann!DG54","v":3},{"$f":"[1]ACS_16_5YR_B19037_with_ann!DH54","v":3},{"$f":"[1]ACS_16_5YR_B19037_with_ann!DI54","v":4},{"$f":"[1]ACS_16_5YR_B19037_with_ann!DJ54","v":4},{"$f":"[1]ACS_16_5YR_B19037_with_ann!DK54","v":5},{"$f":"[1]ACS_16_5YR_B19037_with_ann!DL54","v":5},{"$f":"[1]ACS_16_5YR_B19037_with_ann!DM54","v":5},{"$f":"[1]ACS_16_5YR_B19037_with_ann!DN54","v":7},{"$f":"[1]ACS_16_5YR_B19037_with_ann!DO54","v":11},{"$f":"[1]ACS_16_5YR_B19037_with_ann!DP54","v":4},{"$f":"[1]ACS_16_5YR_B19037_with_ann!DQ54","v":5},{"$f":"[1]ACS_16_5YR_B19037_with_ann!DR54","v":2},{"$f":"[1]ACS_16_5YR_B19037_with_ann!DS54","v":4},{"$f":"[1]ACS_16_5YR_B19037_with_ann!DT54","v":5},{"$f":"[1]ACS_16_5YR_B19037_with_ann!DU54","v":5},{"$f":"[1]ACS_16_5YR_B19037_with_ann!DV54","v":0},{"$f":"[1]ACS_16_5YR_B19037_with_ann!DW54","v":12},{"$f":"[1]ACS_16_5YR_B19037_with_ann!DX54","v":8},{"$f":"[1]ACS_16_5YR_B19037_with_ann!DY54","v":6},{"$f":"[1]ACS_16_5YR_B19037_with_ann!DZ54","v":10},{"$f":"[1]ACS_16_5YR_B19037_with_ann!EA54","v":8},{"$f":"[1]ACS_16_5YR_B19037_with_ann!EB54","v":15},{"$f":"[1]ACS_16_5YR_B19037_with_ann!EC54","v":14},{"$f":"[1]ACS_16_5YR_B19037_with_ann!ED54","v":40},{"$f":"[1]ACS_16_5YR_B19037_with_ann!EE54","v":32},{"$f":"[1]ACS_16_5YR_B19037_with_ann!EF54","v":1},{"$f":"[1]ACS_16_5YR_B19037_with_ann!EG54","v":2},{"$f":"[1]ACS_16_5YR_B19037_with_ann!EH54","v":3},{"$f":"[1]ACS_16_5YR_B19037_with_ann!EI54","v":4},{"$f":"[1]ACS_16_5YR_B19037_with_ann!EJ54","v":3},{"$f":"[1]ACS_16_5YR_B19037_with_ann!EK54","v":4}]
["06000US3300550580","0600000US3300564420","060",{"$f":"[1]ACS_16_5YR_B19037_with_ann!C55","v":"Nelson"},{"$f":"[1]ACS_16_5YR_B19037_with_ann!D55","v":246},{"$f":"[1]ACS_16_5YR_B19037_with_ann!E55","v":41},{"$f":"[1]ACS_16_5YR_B19037_with_ann!F55","v":0},{"$f":"[1]ACS_16_5YR_B19037_with_ann!G55","v":12},{"$f":"[1]ACS_16_5YR_B19037_with_ann!H55","v":0},{"$f":"[1]ACS_16_5YR_B19037_with_ann!I55","v":12},{"$f":"[1]ACS_16_5YR_B19037_with_ann!J55","v":0},{"$f":"[1]ACS_16_5YR_B19037_with_ann!K55","v":12},{"$f":"[1]ACS_16_5YR_B19037_with_ann!L55","v":0},{"$f":"[1]ACS_16_5YR_B19037_with_ann!M55","v":12},{"$f":"[1]ACS_16_5YR_B19037_with_ann!N55","v":0},{"$f":"[1]ACS_16_5YR_B19037_with_ann!O55","v":12},{"$f":"[1]ACS_16_5YR_B19037_with_ann!P55","v":0},{"$f":"[1]ACS_16_5YR_B19037_with_ann!Q55","v":12},{"$f":"[1]ACS_16_5YR_B19037_with_ann!R55","v":0},{"$f":"[1]ACS_16_5YR_B19037_with_ann!S55","v":12},{"$f":"[1]ACS_16_5YR_B19037_with_ann!T55","v":0},{"$f":"[1]ACS_16_5YR_B19037_with_ann!U55","v":12},{"$f":"[1]ACS_16_5YR_B19037_with_ann!V55","v":0},{"$f":"[1]ACS_16_5YR_B19037_with_ann!W55","v":12},{"$f":"[1]ACS_16_5YR_B19037_with_ann!X55","v":0},{"$f":"[1]ACS_16_5YR_B19037_with_ann!Y55","v":12},{"$f":"[1]ACS_16_5YR_B19037_with_ann!Z55","v":0},{"$f":"[1]ACS_16_5YR_B19037_with_ann!AA55","v":12},{"$f":"[1]ACS_16_5YR_B19037_with_ann!AB55","v":0},{"$f":"[1]ACS_16_5YR_B19037_with_ann!AC55","v":12},{"$f":"[1]ACS_16_5YR_B19037_with_ann!AD55","v":0},{"$f":"[1]ACS_16_5YR_B19037_with_ann!AE55","v":12},{"$f":"[1]ACS_16_5YR_B19037_with_ann!AF55","v":0},{"$f":"[1]ACS_16_5YR_B19037_with_ann!AG55","v":12},{"$f":"[1]ACS_16_5YR_B19037_with_ann!AH55","v":0},{"$f":"[1]ACS_16_5YR_B19037_with_ann!AI55","v":12},{"$f":"[1]ACS_16_5YR_B19037_with_ann!AJ55","v":0},{"$f":"[1]ACS_16_5YR_B19037_with_ann!AK55","v":12},{"$f":"[1]ACS_16_5YR_B19037_with_ann!AL55","v":0},{"$f":"[1]ACS_16_5YR_B19037_with_ann!AM55","v":12},{"$f":"[1]ACS_16_5YR_B19037_with_ann!AN55","v":54},{"$f":"[1]ACS_16_5YR_B19037_with_ann!AO55","v":18},{"$f":"[1]ACS_16_5YR_B19037_with_ann!AP55","v":0},{"$f":"[1]ACS_16_5YR_B19037_with_ann!AQ55","v":12},{"$f":"[1]ACS_16_5YR_B19037_with_ann!AR55","v":0},{"$f":"[1]ACS_16_5YR_B19037_with_ann!AS55","v":12},{"$f":"[1]ACS_16_5YR_B19037_with_ann!AT55","v":2},{"$f":"[1]ACS_16_5YR_B19037_with_ann!AU55","v":3},{"$f":"[1]ACS_16_5YR_B19037_with_ann!AV55","v":0},{"$f":"[1]ACS_16_5YR_B19037_with_ann!AW55","v":12},{"$f":"[1]ACS_16_5YR_B19037_with_ann!AX55","v":0},{"$f":"[1]ACS_16_5YR_B19037_with_ann!AY55","v":12},{"$f":"[1]ACS_16_5YR_B19037_with_ann!AZ55","v":2},{"$f":"[1]ACS_16_5YR_B19037_with_ann!BA55","v":3},{"$f":"[1]ACS_16_5YR_B19037_with_ann!BB55","v":0},{"$f":"[1]ACS_16_5YR_B19037_with_ann!BC55","v":12},{"$f":"[1]ACS_16_5YR_B19037_with_ann!BD55","v":0},{"$f":"[1]ACS_16_5YR_B19037_with_ann!BE55","v":12},{"$f":"[1]ACS_16_5YR_B19037_with_ann!BF55","v":2},{"$f":"[1]ACS_16_5YR_B19037_with_ann!BG55","v":3},{"$f":"[1]ACS_16_5YR_B19037_with_ann!BH55","v":0},{"$f":"[1]ACS_16_5YR_B19037_with_ann!BI55","v":12},{"$f":"[1]ACS_16_5YR_B19037_with_ann!BJ55","v":7},{"$f":"[1]ACS_16_5YR_B19037_with_ann!BK55","v":5},{"$f":"[1]ACS_16_5YR_B19037_with_ann!BL55","v":10},{"$f":"[1]ACS_16_5YR_B19037_with_ann!BM55","v":10},{"$f":"[1]ACS_16_5YR_B19037_with_ann!BN55","v":13},{"$f":"[1]ACS_16_5YR_B19037_with_ann!BO55","v":13},{"$f":"[1]ACS_16_5YR_B19037_with_ann!BP55","v":13},{"$f":"[1]ACS_16_5YR_B19037_with_ann!BQ55","v":12},{"$f":"[1]ACS_16_5YR_B19037_with_ann!BR55","v":3},{"$f":"[1]ACS_16_5YR_B19037_with_ann!BS55","v":4},{"$f":"[1]ACS_16_5YR_B19037_with_ann!BT55","v":2},{"$f":"[1]ACS_16_5YR_B19037_with_ann!BU55","v":3},{"$f":"[1]ACS_16_5YR_B19037_with_ann!BV55","v":88},{"$f":"[1]ACS_16_5YR_B19037_with_ann!BW55","v":29},{"$f":"[1]ACS_16_5YR_B19037_with_ann!BX55","v":2},{"$f":"[1]ACS_16_5YR_B19037_with_ann!BY55","v":3},{"$f":"[1]ACS_16_5YR_B19037_with_ann!BZ55","v":0},{"$f":"[1]ACS_16_5YR_B19037_with_ann!CA55","v":12},{"$f":"[1]ACS_16_5YR_B19037_with_ann!CB55","v":0},{"$f":"[1]ACS_16_5YR_B19037_with_ann!CC55","v":12},{"$f":"[1]ACS_16_5YR_B19037_with_ann!CD55","v":0},{"$f":"[1]ACS_16_5YR_B19037_with_ann!CE55","v":12},{"$f":"[1]ACS_16_5YR_B19037_with_ann!CF55","v":0},{"$f":"[1]ACS_16_5YR_B19037_with_ann!CG55","v":12},{"$f":"[1]ACS_16_5YR_B19037_with_ann!CH55","v":5},{"$f":"[1]ACS_16_5YR_B19037_with_ann!CI55","v":5},{"$f":"[1]ACS_16_5YR_B19037_with_ann!CJ55","v":0},{"$f":"[1]ACS_16_5YR_B19037_with_ann!CK55","v":12},{"$f":"[1]ACS_16_5YR_B19037_with_ann!CL55","v":0},{"$f":"[1]ACS_16_5YR_B19037_with_ann!CM55","v":12},{"$f":"[1]ACS_16_5YR_B19037_with_ann!CN55","v":2},{"$f":"[1]ACS_16_5YR_B19037_with_ann!CO55","v":3},{"$f":"[1]ACS_16_5YR_B19037_with_ann!CP55","v":1},{"$f":"[1]ACS_16_5YR_B19037_with_ann!CQ55","v":2},{"$f":"[1]ACS_16_5YR_B19037_with_ann!CR55","v":19},{"$f":"[1]ACS_16_5YR_B19037_with_ann!CS55","v":12},{"$f":"[1]ACS_16_5YR_B19037_with_ann!CT55","v":14},{"$f":"[1]ACS_16_5YR_B19037_with_ann!CU55","v":11},{"$f":"[1]ACS_16_5YR_B19037_with_ann!CV55","v":5},{"$f":"[1]ACS_16_5YR_B19037_with_ann!CW55","v":5},{"$f":"[1]ACS_16_5YR_B19037_with_ann!CX55","v":6},{"$f":"[1]ACS_16_5YR_B19037_with_ann!CY55","v":5},{"$f":"[1]ACS_16_5YR_B19037_with_ann!CZ55","v":11},{"$f":"[1]ACS_16_5YR_B19037_with_ann!DA55","v":8},{"$f":"[1]ACS_16_5YR_B19037_with_ann!DB55","v":23},{"$f":"[1]ACS_16_5YR_B19037_with_ann!DC55","v":14},{"$f":"[1]ACS_16_5YR_B19037_with_ann!DD55","v":104},{"$f":"[1]ACS_16_5YR_B19037_with_ann!DE55","v":28},{"$f":"[1]ACS_16_5YR_B19037_with_ann!DF55","v":1},{"$f":"[1]ACS_16_5YR_B19037_with_ann!DG55","v":4},{"$f":"[1]ACS_16_5YR_B19037_with_ann!DH55","v":2},{"$f":"[1]ACS_16_5YR_B19037_with_ann!DI55","v":2},{"$f":"[1]ACS_16_5YR_B19037_with_ann!DJ55","v":1},{"$f":"[1]ACS_16_5YR_B19037_with_ann!DK55","v":3},{"$f":"[1]ACS_16_5YR_B19037_with_ann!DL55","v":2},{"$f":"[1]ACS_16_5YR_B19037_with_ann!DM55","v":3},{"$f":"[1]ACS_16_5YR_B19037_with_ann!DN55","v":2},{"$f":"[1]ACS_16_5YR_B19037_with_ann!DO55","v":5},{"$f":"[1]ACS_16_5YR_B19037_with_ann!DP55","v":11},{"$f":"[1]ACS_16_5YR_B19037_with_ann!DQ55","v":13},{"$f":"[1]ACS_16_5YR_B19037_with_ann!DR55","v":3},{"$f":"[1]ACS_16_5YR_B19037_with_ann!DS55","v":4},{"$f":"[1]ACS_16_5YR_B19037_with_ann!DT55","v":4},{"$f":"[1]ACS_16_5YR_B19037_with_ann!DU55","v":4},{"$f":"[1]ACS_16_5YR_B19037_with_ann!DV55","v":2},{"$f":"[1]ACS_16_5YR_B19037_with_ann!DW55","v":3},{"$f":"[1]ACS_16_5YR_B19037_with_ann!DX55","v":14},{"$f":"[1]ACS_16_5YR_B19037_with_ann!DY55","v":10},{"$f":"[1]ACS_16_5YR_B19037_with_ann!DZ55","v":4},{"$f":"[1]ACS_16_5YR_B19037_with_ann!EA55","v":4},{"$f":"[1]ACS_16_5YR_B19037_with_ann!EB55","v":18},{"$f":"[1]ACS_16_5YR_B19037_with_ann!EC55","v":13},{"$f":"[1]ACS_16_5YR_B19037_with_ann!ED55","v":13},{"$f":"[1]ACS_16_5YR_B19037_with_ann!EE55","v":8},{"$f":"[1]ACS_16_5YR_B19037_with_ann!EF55","v":12},{"$f":"[1]ACS_16_5YR_B19037_with_ann!EG55","v":10},{"$f":"[1]ACS_16_5YR_B19037_with_ann!EH55","v":4},{"$f":"[1]ACS_16_5YR_B19037_with_ann!EI55","v":4},{"$f":"[1]ACS_16_5YR_B19037_with_ann!EJ55","v":11},{"$f":"[1]ACS_16_5YR_B19037_with_ann!EK55","v":9}]
["06000US3300564420","0600000US3300564580","060",{"$f":"[1]ACS_16_5YR_B19037_with_ann!C56","v":"Richmond"},{"$f":"[1]ACS_16_5YR_B19037_with_ann!D56","v":393},{"$f":"[1]ACS_16_5YR_B19037_with_ann!E56","v":73},{"$f":"[1]ACS_16_5YR_B19037_with_ann!F56","v":0},{"$f":"[1]ACS_16_5YR_B19037_with_ann!G56","v":12},{"$f":"[1]ACS_16_5YR_B19037_with_ann!H56","v":0},{"$f":"[1]ACS_16_5YR_B19037_with_ann!I56","v":12},{"$f":"[1]ACS_16_5YR_B19037_with_ann!J56","v":0},{"$f":"[1]ACS_16_5YR_B19037_with_ann!K56","v":12},{"$f":"[1]ACS_16_5YR_B19037_with_ann!L56","v":0},{"$f":"[1]ACS_16_5YR_B19037_with_ann!M56","v":12},{"$f":"[1]ACS_16_5YR_B19037_with_ann!N56","v":0},{"$f":"[1]ACS_16_5YR_B19037_with_ann!O56","v":12},{"$f":"[1]ACS_16_5YR_B19037_with_ann!P56","v":0},{"$f":"[1]ACS_16_5YR_B19037_with_ann!Q56","v":12},{"$f":"[1]ACS_16_5YR_B19037_with_ann!R56","v":0},{"$f":"[1]ACS_16_5YR_B19037_with_ann!S56","v":12},{"$f":"[1]ACS_16_5YR_B19037_with_ann!T56","v":0},{"$f":"[1]ACS_16_5YR_B19037_with_ann!U56","v":12},{"$f":"[1]ACS_16_5YR_B19037_with_ann!V56","v":0},{"$f":"[1]ACS_16_5YR_B19037_with_ann!W56","v":12},{"$f":"[1]ACS_16_5YR_B19037_with_ann!X56","v":0},{"$f":"[1]ACS_16_5YR_B19037_with_ann!Y56","v":12},{"$f":"[1]ACS_16_5YR_B19037_with_ann!Z56","v":0},{"$f":"[1]ACS_16_5YR_B19037_with_ann!AA56","v":12},{"$f":"[1]ACS_16_5YR_B19037_with_ann!AB56","v":0},{"$f":"[1]ACS_16_5YR_B19037_with_ann!AC56","v":12},{"$f":"[1]ACS_16_5YR_B19037_with_ann!AD56","v":0},{"$f":"[1]ACS_16_5YR_B19037_with_ann!AE56","v":12},{"$f":"[1]ACS_16_5YR_B19037_with_ann!AF56","v":0},{"$f":"[1]ACS_16_5YR_B19037_with_ann!AG56","v":12},{"$f":"[1]ACS_16_5YR_B19037_with_ann!AH56","v":0},{"$f":"[1]ACS_16_5YR_B19037_with_ann!AI56","v":12},{"$f":"[1]ACS_16_5YR_B19037_with_ann!AJ56","v":0},{"$f":"[1]ACS_16_5YR_B19037_with_ann!AK56","v":12},{"$f":"[1]ACS_16_5YR_B19037_with_ann!AL56","v":0},{"$f":"[1]ACS_16_5YR_B19037_with_ann!AM56","v":12},{"$f":"[1]ACS_16_5YR_B19037_with_ann!AN56","v":67},{"$f":"[1]ACS_16_5YR_B19037_with_ann!AO56","v":29},{"$f":"[1]ACS_16_5YR_B19037_with_ann!AP56","v":0},{"$f":"[1]ACS_16_5YR_B19037_with_ann!AQ56","v":12},{"$f":"[1]ACS_16_5YR_B19037_with_ann!AR56","v":0},{"$f":"[1]ACS_16_5YR_B19037_with_ann!AS56","v":12},{"$f":"[1]ACS_16_5YR_B19037_with_ann!AT56","v":0},{"$f":"[1]ACS_16_5YR_B19037_with_ann!AU56","v":12},{"$f":"[1]ACS_16_5YR_B19037_with_ann!AV56","v":0},{"$f":"[1]ACS_16_5YR_B19037_with_ann!AW56","v":12},{"$f":"[1]ACS_16_5YR_B19037_with_ann!AX56","v":0},{"$f":"[1]ACS_16_5YR_B19037_with_ann!AY56","v":12},{"$f":"[1]ACS_16_5YR_B19037_with_ann!AZ56","v":3},{"$f":"[1]ACS_16_5YR_B19037_with_ann!BA56","v":5},{"$f":"[1]ACS_16_5YR_B19037_with_ann!BB56","v":2},{"$f":"[1]ACS_16_5YR_B19037_with_ann!BC56","v":4},{"$f":"[1]ACS_16_5YR_B19037_with_ann!BD56","v":0},{"$f":"[1]ACS_16_5YR_B19037_with_ann!BE56","v":12},{"$f":"[1]ACS_16_5YR_B19037_with_ann!BF56","v":3},{"$f":"[1]ACS_16_5YR_B19037_with_ann!BG56","v":5},{"$f":"[1]ACS_16_5YR_B19037_with_ann!BH56","v":0},{"$f":"[1]ACS_16_5YR_B19037_with_ann!BI56","v":12},{"$f":"[1]ACS_16_5YR_B19037_with_ann!BJ56","v":10},{"$f":"[1]ACS_16_5YR_B19037_with_ann!BK56","v":9},{"$f":"[1]ACS_16_5YR_B19037_with_ann!BL56","v":15},{"$f":"[1]ACS_16_5YR_B19037_with_ann!BM56","v":17},{"$f":"[1]ACS_16_5YR_B19037_with_ann!BN56","v":6},{"$f":"[1]ACS_16_5YR_B19037_with_ann!BO56","v":7},{"$f":"[1]ACS_16_5YR_B19037_with_ann!BP56","v":13},{"$f":"[1]ACS_16_5YR_B19037_with_ann!BQ56","v":14},{"$f":"[1]ACS_16_5YR_B19037_with_ann!BR56","v":7},{"$f":"[1]ACS_16_5YR_B19037_with_ann!BS56","v":10},{"$f":"[1]ACS_16_5YR_B19037_with_ann!BT56","v":8},{"$f":"[1]ACS_16_5YR_B19037_with_ann!BU56","v":9},{"$f":"[1]ACS_16_5YR_B19037_with_ann!BV56","v":173},{"$f":"[1]ACS_16_5YR_B19037_with_ann!BW56","v":48},{"$f":"[1]ACS_16_5YR_B19037_with_ann!BX56","v":0},{"$f":"[1]ACS_16_5YR_B19037_with_ann!BY56","v":12},{"$f":"[1]ACS_16_5YR_B19037_with_ann!BZ56","v":0},{"$f":"[1]ACS_16_5YR_B19037_with_ann!CA56","v":12},{"$f":"[1]ACS_16_5YR_B19037_with_ann!CB56","v":16},{"$f":"[1]ACS_16_5YR_B19037_with_ann!CC56","v":21},{"$f":"[1]ACS_16_5YR_B19037_with_ann!CD56","v":0},{"$f":"[1]ACS_16_5YR_B19037_with_ann!CE56","v":12},{"$f":"[1]ACS_16_5YR_B19037_with_ann!CF56","v":4},{"$f":"[1]ACS_16_5YR_B19037_with_ann!CG56","v":6},{"$f":"[1]ACS_16_5YR_B19037_with_ann!CH56","v":4},{"$f":"[1]ACS_16_5YR_B19037_with_ann!CI56","v":6},{"$f":"[1]ACS_16_5YR_B19037_with_ann!CJ56","v":0},{"$f":"[1]ACS_16_5YR_B19037_with_ann!CK56","v":12},{"$f":"[1]ACS_16_5YR_B19037_with_ann!CL56","v":4},{"$f":"[1]ACS_16_5YR_B19037_with_ann!CM56","v":6},{"$f":"[1]ACS_16_5YR_B19037_with_ann!CN56","v":9},{"$f":"[1]ACS_16_5YR_B19037_with_ann!CO56","v":8},{"$f":"[1]ACS_16_5YR_B19037_with_ann!CP56","v":8},{"$f":"[1]ACS_16_5YR_B19037_with_ann!CQ56","v":9},{"$f":"[1]ACS_16_5YR_B19037_with_ann!CR56","v":22},{"$f":"[1]ACS_16_5YR_B19037_with_ann!CS56","v":16},{"$f":"[1]ACS_16_5YR_B19037_with_ann!CT56","v":21},{"$f":"[1]ACS_16_5YR_B19037_with_ann!CU56","v":16},{"$f":"[1]ACS_16_5YR_B19037_with_ann!CV56","v":12},{"$f":"[1]ACS_16_5YR_B19037_with_ann!CW56","v":11},{"$f":"[1]ACS_16_5YR_B19037_with_ann!CX56","v":25},{"$f":"[1]ACS_16_5YR_B19037_with_ann!CY56","v":23},{"$f":"[1]ACS_16_5YR_B19037_with_ann!CZ56","v":40},{"$f":"[1]ACS_16_5YR_B19037_with_ann!DA56","v":32},{"$f":"[1]ACS_16_5YR_B19037_with_ann!DB56","v":8},{"$f":"[1]ACS_16_5YR_B19037_with_ann!DC56","v":8},{"$f":"[1]ACS_16_5YR_B19037_with_ann!DD56","v":153},{"$f":"[1]ACS_16_5YR_B19037_with_ann!DE56","v":46},{"$f":"[1]ACS_16_5YR_B19037_with_ann!DF56","v":0},{"$f":"[1]ACS_16_5YR_B19037_with_ann!DG56","v":12},{"$f":"[1]ACS_16_5YR_B19037_with_ann!DH56","v":3},{"$f":"[1]ACS_16_5YR_B19037_with_ann!DI56","v":5},{"$f":"[1]ACS_16_5YR_B19037_with_ann!DJ56","v":15},{"$f":"[1]ACS_16_5YR_B19037_with_ann!DK56","v":15},{"$f":"[1]ACS_16_5YR_B19037_with_ann!DL56","v":0},{"$f":"[1]ACS_16_5YR_B19037_with_ann!DM56","v":12},{"$f":"[1]ACS_16_5YR_B19037_with_ann!DN56","v":3},{"$f":"[1]ACS_16_5YR_B19037_with_ann!DO56","v":5},{"$f":"[1]ACS_16_5YR_B19037_with_ann!DP56","v":11},{"$f":"[1]ACS_16_5YR_B19037_with_ann!DQ56","v":12},{"$f":"[1]ACS_16_5YR_B19037_with_ann!DR56","v":0},{"$f":"[1]ACS_16_5YR_B19037_with_ann!DS56","v":12},{"$f":"[1]ACS_16_5YR_B19037_with_ann!DT56","v":5},{"$f":"[1]ACS_16_5YR_B19037_with_ann!DU56","v":5},{"$f":"[1]ACS_16_5YR_B19037_with_ann!DV56","v":14},{"$f":"[1]ACS_16_5YR_B19037_with_ann!DW56","v":14},{"$f":"[1]ACS_16_5YR_B19037_with_ann!DX56","v":4},{"$f":"[1]ACS_16_5YR_B19037_with_ann!DY56","v":7},{"$f":"[1]ACS_16_5YR_B19037_with_ann!DZ56","v":25},{"$f":"[1]ACS_16_5YR_B19037_with_ann!EA56","v":23},{"$f":"[1]ACS_16_5YR_B19037_with_ann!EB56","v":31},{"$f":"[1]ACS_16_5YR_B19037_with_ann!EC56","v":17},{"$f":"[1]ACS_16_5YR_B19037_with_ann!ED56","v":32},{"$f":"[1]ACS_16_5YR_B19037_with_ann!EE56","v":30},{"$f":"[1]ACS_16_5YR_B19037_with_ann!EF56","v":2},{"$f":"[1]ACS_16_5YR_B19037_with_ann!EG56","v":4},{"$f":"[1]ACS_16_5YR_B19037_with_ann!EH56","v":6},{"$f":"[1]ACS_16_5YR_B19037_with_ann!EI56","v":8},{"$f":"[1]ACS_16_5YR_B19037_with_ann!EJ56","v":2},{"$f":"[1]ACS_16_5YR_B19037_with_ann!EK56","v":4}]
["06000US3300564580","0600000US3300565700","060",{"$f":"[1]ACS_16_5YR_B19037_with_ann!C57","v":"Rindge"},{"$f":"[1]ACS_16_5YR_B19037_with_ann!D57","v":1972},{"$f":"[1]ACS_16_5YR_B19037_with_ann!E57","v":144},{"$f":"[1]ACS_16_5YR_B19037_with_ann!F57","v":41},{"$f":"[1]ACS_16_5YR_B19037_with_ann!G57","v":39},{"$f":"[1]ACS_16_5YR_B19037_with_ann!H57","v":0},{"$f":"[1]ACS_16_5YR_B19037_with_ann!I57","v":17},{"$f":"[1]ACS_16_5YR_B19037_with_ann!J57","v":0},{"$f":"[1]ACS_16_5YR_B19037_with_ann!K57","v":17},{"$f":"[1]ACS_16_5YR_B19037_with_ann!L57","v":20},{"$f":"[1]ACS_16_5YR_B19037_with_ann!M57","v":31},{"$f":"[1]ACS_16_5YR_B19037_with_ann!N57","v":0},{"$f":"[1]ACS_16_5YR_B19037_with_ann!O57","v":17},{"$f":"[1]ACS_16_5YR_B19037_with_ann!P57","v":0},{"$f":"[1]ACS_16_5YR_B19037_with_ann!Q57","v":17},{"$f":"[1]ACS_16_5YR_B19037_with_ann!R57","v":0},{"$f":"[1]ACS_16_5YR_B19037_with_ann!S57","v":17},{"$f":"[1]ACS_16_5YR_B19037_with_ann!T57","v":14},{"$f":"[1]ACS_16_5YR_B19037_with_ann!U57","v":23},{"$f":"[1]ACS_16_5YR_B19037_with_ann!V57","v":0},{"$f":"[1]ACS_16_5YR_B19037_with_ann!W57","v":17},{"$f":"[1]ACS_16_5YR_B19037_with_ann!X57","v":0},{"$f":"[1]ACS_16_5YR_B19037_with_ann!Y57","v":17},{"$f":"[1]ACS_16_5YR_B19037_with_ann!Z57","v":0},{"$f":"[1]ACS_16_5YR_B19037_with_ann!AA57","v":17},{"$f":"[1]ACS_16_5YR_B19037_with_ann!AB57","v":0},{"$f":"[1]ACS_16_5YR_B19037_with_ann!AC57","v":17},{"$f":"[1]ACS_16_5YR_B19037_with_ann!AD57","v":7},{"$f":"[1]ACS_16_5YR_B19037_with_ann!AE57","v":11},{"$f":"[1]ACS_16_5YR_B19037_with_ann!AF57","v":0},{"$f":"[1]ACS_16_5YR_B19037_with_ann!AG57","v":17},{"$f":"[1]ACS_16_5YR_B19037_with_ann!AH57","v":0},{"$f":"[1]ACS_16_5YR_B19037_with_ann!AI57","v":17},{"$f":"[1]ACS_16_5YR_B19037_with_ann!AJ57","v":0},{"$f":"[1]ACS_16_5YR_B19037_with_ann!AK57","v":17},{"$f":"[1]ACS_16_5YR_B19037_with_ann!AL57","v":0},{"$f":"[1]ACS_16_5YR_B19037_with_ann!AM57","v":17},{"$f":"[1]ACS_16_5YR_B19037_with_ann!AN57","v":583},{"$f":"[1]ACS_16_5YR_B19037_with_ann!AO57","v":114},{"$f":"[1]ACS_16_5YR_B19037_with_ann!AP57","v":0},{"$f":"[1]ACS_16_5YR_B19037_with_ann!AQ57","v":17},{"$f":"[1]ACS_16_5YR_B19037_with_ann!AR57","v":0},{"$f":"[1]ACS_16_5YR_B19037_with_ann!AS57","v":17},{"$f":"[1]ACS_16_5YR_B19037_with_ann!AT57","v":6},{"$f":"[1]ACS_16_5YR_B19037_with_ann!AU57","v":10},{"$f":"[1]ACS_16_5YR_B19037_with_ann!AV57","v":14},{"$f":"[1]ACS_16_5YR_B19037_with_ann!AW57","v":22},{"$f":"[1]ACS_16_5YR_B19037_with_ann!AX57","v":0},{"$f":"[1]ACS_16_5YR_B19037_with_ann!AY57","v":17},{"$f":"[1]ACS_16_5YR_B19037_with_ann!AZ57","v":14},{"$f":"[1]ACS_16_5YR_B19037_with_ann!BA57","v":24},{"$f":"[1]ACS_16_5YR_B19037_with_ann!BB57","v":10},{"$f":"[1]ACS_16_5YR_B19037_with_ann!BC57","v":18},{"$f":"[1]ACS_16_5YR_B19037_with_ann!BD57","v":42},{"$f":"[1]ACS_16_5YR_B19037_with_ann!BE57","v":44},{"$f":"[1]ACS_16_5YR_B19037_with_ann!BF57","v":0},{"$f":"[1]ACS_16_5YR_B19037_with_ann!BG57","v":17},{"$f":"[1]ACS_16_5YR_B19037_with_ann!BH57","v":56},{"$f":"[1]ACS_16_5YR_B19037_with_ann!BI57","v":61},{"$f":"[1]ACS_16_5YR_B19037_with_ann!BJ57","v":79},{"$f":"[1]ACS_16_5YR_B19037_with_ann!BK57","v":63},{"$f":"[1]ACS_16_5YR_B19037_with_ann!BL57","v":88},{"$f":"[1]ACS_16_5YR_B19037_with_ann!BM57","v":55},{"$f":"[1]ACS_16_5YR_B19037_with_ann!BN57","v":87},{"$f":"[1]ACS_16_5YR_B19037_with_ann!BO57","v":53},{"$f":"[1]ACS_16_5YR_B19037_with_ann!BP57","v":40},{"$f":"[1]ACS_16_5YR_B19037_with_ann!BQ57","v":42},{"$f":"[1]ACS_16_5YR_B19037_with_ann!BR57","v":66},{"$f":"[1]ACS_16_5YR_B19037_with_ann!BS57","v":47},{"$f":"[1]ACS_16_5YR_B19037_with_ann!BT57","v":81},{"$f":"[1]ACS_16_5YR_B19037_with_ann!BU57","v":53},{"$f":"[1]ACS_16_5YR_B19037_with_ann!BV57","v":766},{"$f":"[1]ACS_16_5YR_B19037_with_ann!BW57","v":126},{"$f":"[1]ACS_16_5YR_B19037_with_ann!BX57","v":0},{"$f":"[1]ACS_16_5YR_B19037_with_ann!BY57","v":17},{"$f":"[1]ACS_16_5YR_B19037_with_ann!BZ57","v":29},{"$f":"[1]ACS_16_5YR_B19037_with_ann!CA57","v":36},{"$f":"[1]ACS_16_5YR_B19037_with_ann!CB57","v":0},{"$f":"[1]ACS_16_5YR_B19037_with_ann!CC57","v":17},{"$f":"[1]ACS_16_5YR_B19037_with_ann!CD57","v":21},{"$f":"[1]ACS_16_5YR_B19037_with_ann!CE57","v":33},{"$f":"[1]ACS_16_5YR_B19037_with_ann!CF57","v":11},{"$f":"[1]ACS_16_5YR_B19037_with_ann!CG57","v":19},{"$f":"[1]ACS_16_5YR_B19037_with_ann!CH57","v":0},{"$f":"[1]ACS_16_5YR_B19037_with_ann!CI57","v":17},{"$f":"[1]ACS_16_5YR_B19037_with_ann!CJ57","v":0},{"$f":"[1]ACS_16_5YR_B19037_with_ann!CK57","v":17},{"$f":"[1]ACS_16_5YR_B19037_with_ann!CL57","v":16},{"$f":"[1]ACS_16_5YR_B19037_with_ann!CM57","v":16},{"$f":"[1]ACS_16_5YR_B19037_with_ann!CN57","v":30},{"$f":"[1]ACS_16_5YR_B19037_with_ann!CO57","v":37},{"$f":"[1]ACS_16_5YR_B19037_with_ann!CP57","v":57},{"$f":"[1]ACS_16_5YR_B19037_with_ann!CQ57","v":51},{"$f":"[1]ACS_16_5YR_B19037_with_ann!CR57","v":23},{"$f":"[1]ACS_16_5YR_B19037_with_ann!CS57","v":27},{"$f":"[1]ACS_16_5YR_B19037_with_ann!CT57","v":75},{"$f":"[1]ACS_16_5YR_B19037_with_ann!CU57","v":53},{"$f":"[1]ACS_16_5YR_B19037_with_ann!CV57","v":167},{"$f":"[1]ACS_16_5YR_B19037_with_ann!CW57","v":83},{"$f":"[1]ACS_16_5YR_B19037_with_ann!CX57","v":165},{"$f":"[1]ACS_16_5YR_B19037_with_ann!CY57","v":79},{"$f":"[1]ACS_16_5YR_B19037_with_ann!CZ57","v":76},{"$f":"[1]ACS_16_5YR_B19037_with_ann!DA57","v":47},{"$f":"[1]ACS_16_5YR_B19037_with_ann!DB57","v":96},{"$f":"[1]ACS_16_5YR_B19037_with_ann!DC57","v":66},{"$f":"[1]ACS_16_5YR_B19037_with_ann!DD57","v":582},{"$f":"[1]ACS_16_5YR_B19037_with_ann!DE57","v":132},{"$f":"[1]ACS_16_5YR_B19037_with_ann!DF57","v":0},{"$f":"[1]ACS_16_5YR_B19037_with_ann!DG57","v":17},{"$f":"[1]ACS_16_5YR_B19037_with_ann!DH57","v":14},{"$f":"[1]ACS_16_5YR_B19037_with_ann!DI57","v":17},{"$f":"[1]ACS_16_5YR_B19037_with_ann!DJ57","v":22},{"$f":"[1]ACS_16_5YR_B19037_with_ann!DK57","v":20},{"$f":"[1]ACS_16_5YR_B19037_with_ann!DL57","v":32},{"$f":"[1]ACS_16_5YR_B19037_with_ann!DM57","v":33},{"$f":"[1]ACS_16_5YR_B19037_with_ann!DN57","v":21},{"$f":"[1]ACS_16_5YR_B19037_with_ann!DO57","v":23},{"$f":"[1]ACS_16_5YR_B19037_with_ann!DP57","v":18},{"$f":"[1]ACS_16_5YR_B19037_with_ann!DQ57","v":22},{"$f":"[1]ACS_16_5YR_B19037_with_ann!DR57","v":53},{"$f":"[1]ACS_16_5YR_B19037_with_ann!DS57","v":68},{"$f":"[1]ACS_16_5YR_B19037_with_ann!DT57","v":6},{"$f":"[1]ACS_16_5YR_B19037_with_ann!DU57","v":9},{"$f":"[1]ACS_16_5YR_B19037_with_ann!DV57","v":13},{"$f":"[1]ACS_16_5YR_B19037_with_ann!DW57","v":15},{"$f":"[1]ACS_16_5YR_B19037_with_ann!DX57","v":63},{"$f":"[1]ACS_16_5YR_B19037_with_ann!DY57","v":50},{"$f":"[1]ACS_16_5YR_B19037_with_ann!DZ57","v":90},{"$f":"[1]ACS_16_5YR_B19037_with_ann!EA57","v":68},{"$f":"[1]ACS_16_5YR_B19037_with_ann!EB57","v":72},{"$f":"[1]ACS_16_5YR_B19037_with_ann!EC57","v":48},{"$f":"[1]ACS_16_5YR_B19037_with_ann!ED57","v":51},{"$f":"[1]ACS_16_5YR_B19037_with_ann!EE57","v":65},{"$f":"[1]ACS_16_5YR_B19037_with_ann!EF57","v":33},{"$f":"[1]ACS_16_5YR_B19037_with_ann!EG57","v":26},{"$f":"[1]ACS_16_5YR_B19037_with_ann!EH57","v":58},{"$f":"[1]ACS_16_5YR_B19037_with_ann!EI57","v":50},{"$f":"[1]ACS_16_5YR_B19037_with_ann!EJ57","v":36},{"$f":"[1]ACS_16_5YR_B19037_with_ann!EK57","v":49}]
["06000US3300565700","0600000US3300573700","060",{"$f":"[1]ACS_16_5YR_B19037_with_ann!C58","v":"Roxbury"},{"$f":"[1]ACS_16_5YR_B19037_with_ann!D58","v":95},{"$f":"[1]ACS_16_5YR_B19037_with_ann!E58","v":37},{"$f":"[1]ACS_16_5YR_B19037_with_ann!F58","v":0},{"$f":"[1]ACS_16_5YR_B19037_with_ann!G58","v":12},{"$f":"[1]ACS_16_5YR_B19037_with_ann!H58","v":0},{"$f":"[1]ACS_16_5YR_B19037_with_ann!I58","v":12},{"$f":"[1]ACS_16_5YR_B19037_with_ann!J58","v":0},{"$f":"[1]ACS_16_5YR_B19037_with_ann!K58","v":12},{"$f":"[1]ACS_16_5YR_B19037_with_ann!L58","v":0},{"$f":"[1]ACS_16_5YR_B19037_with_ann!M58","v":12},{"$f":"[1]ACS_16_5YR_B19037_with_ann!N58","v":0},{"$f":"[1]ACS_16_5YR_B19037_with_ann!O58","v":12},{"$f":"[1]ACS_16_5YR_B19037_with_ann!P58","v":0},{"$f":"[1]ACS_16_5YR_B19037_with_ann!Q58","v":12},{"$f":"[1]ACS_16_5YR_B19037_with_ann!R58","v":0},{"$f":"[1]ACS_16_5YR_B19037_with_ann!S58","v":12},{"$f":"[1]ACS_16_5YR_B19037_with_ann!T58","v":0},{"$f":"[1]ACS_16_5YR_B19037_with_ann!U58","v":12},{"$f":"[1]ACS_16_5YR_B19037_with_ann!V58","v":0},{"$f":"[1]ACS_16_5YR_B19037_with_ann!W58","v":12},{"$f":"[1]ACS_16_5YR_B19037_with_ann!X58","v":0},{"$f":"[1]ACS_16_5YR_B19037_with_ann!Y58","v":12},{"$f":"[1]ACS_16_5YR_B19037_with_ann!Z58","v":0},{"$f":"[1]ACS_16_5YR_B19037_with_ann!AA58","v":12},{"$f":"[1]ACS_16_5YR_B19037_with_ann!AB58","v":0},{"$f":"[1]ACS_16_5YR_B19037_with_ann!AC58","v":12},{"$f":"[1]ACS_16_5YR_B19037_with_ann!AD58","v":0},{"$f":"[1]ACS_16_5YR_B19037_with_ann!AE58","v":12},{"$f":"[1]ACS_16_5YR_B19037_with_ann!AF58","v":0},{"$f":"[1]ACS_16_5YR_B19037_with_ann!AG58","v":12},{"$f":"[1]ACS_16_5YR_B19037_with_ann!AH58","v":0},{"$f":"[1]ACS_16_5YR_B19037_with_ann!AI58","v":12},{"$f":"[1]ACS_16_5YR_B19037_with_ann!AJ58","v":0},{"$f":"[1]ACS_16_5YR_B19037_with_ann!AK58","v":12},{"$f":"[1]ACS_16_5YR_B19037_with_ann!AL58","v":0},{"$f":"[1]ACS_16_5YR_B19037_with_ann!AM58","v":12},{"$f":"[1]ACS_16_5YR_B19037_with_ann!AN58","v":16},{"$f":"[1]ACS_16_5YR_B19037_with_ann!AO58","v":9},{"$f":"[1]ACS_16_5YR_B19037_with_ann!AP58","v":0},{"$f":"[1]ACS_16_5YR_B19037_with_ann!AQ58","v":12},{"$f":"[1]ACS_16_5YR_B19037_with_ann!AR58","v":0},{"$f":"[1]ACS_16_5YR_B19037_with_ann!AS58","v":12},{"$f":"[1]ACS_16_5YR_B19037_with_ann!AT58","v":0},{"$f":"[1]ACS_16_5YR_B19037_with_ann!AU58","v":12},{"$f":"[1]ACS_16_5YR_B19037_with_ann!AV58","v":0},{"$f":"[1]ACS_16_5YR_B19037_with_ann!AW58","v":12},{"$f":"[1]ACS_16_5YR_B19037_with_ann!AX58","v":0},{"$f":"[1]ACS_16_5YR_B19037_with_ann!AY58","v":12},{"$f":"[1]ACS_16_5YR_B19037_with_ann!AZ58","v":4},{"$f":"[1]ACS_16_5YR_B19037_with_ann!BA58","v":5},{"$f":"[1]ACS_16_5YR_B19037_with_ann!BB58","v":0},{"$f":"[1]ACS_16_5YR_B19037_with_ann!BC58","v":12},{"$f":"[1]ACS_16_5YR_B19037_with_ann!BD58","v":1},{"$f":"[1]ACS_16_5YR_B19037_with_ann!BE58","v":3},{"$f":"[1]ACS_16_5YR_B19037_with_ann!BF58","v":1},{"$f":"[1]ACS_16_5YR_B19037_with_ann!BG58","v":2},{"$f":"[1]ACS_16_5YR_B19037_with_ann!BH58","v":2},{"$f":"[1]ACS_16_5YR_B19037_with_ann!BI58","v":3},{"$f":"[1]ACS_16_5YR_B19037_with_ann!BJ58","v":0},{"$f":"[1]ACS_16_5YR_B19037_with_ann!BK58","v":12},{"$f":"[1]ACS_16_5YR_B19037_with_ann!BL58","v":3},{"$f":"[1]ACS_16_5YR_B19037_with_ann!BM58","v":5},{"$f":"[1]ACS_16_5YR_B19037_with_ann!BN58","v":2},{"$f":"[1]ACS_16_5YR_B19037_with_ann!BO58","v":3},{"$f":"[1]ACS_16_5YR_B19037_with_ann!BP58","v":0},{"$f":"[1]ACS_16_5YR_B19037_with_ann!BQ58","v":12},{"$f":"[1]ACS_16_5YR_B19037_with_ann!BR58","v":1},{"$f":"[1]ACS_16_5YR_B19037_with_ann!BS58","v":3},{"$f":"[1]ACS_16_5YR_B19037_with_ann!BT58","v":2},{"$f":"[1]ACS_16_5YR_B19037_with_ann!BU58","v":4},{"$f":"[1]ACS_16_5YR_B19037_with_ann!BV58","v":57},{"$f":"[1]ACS_16_5YR_B19037_with_ann!BW58","v":37},{"$f":"[1]ACS_16_5YR_B19037_with_ann!BX58","v":0},{"$f":"[1]ACS_16_5YR_B19037_with_ann!BY58","v":12},{"$f":"[1]ACS_16_5YR_B19037_with_ann!BZ58","v":0},{"$f":"[1]ACS_16_5YR_B19037_with_ann!CA58","v":12},{"$f":"[1]ACS_16_5YR_B19037_with_ann!CB58","v":0},{"$f":"[1]ACS_16_5YR_B19037_with_ann!CC58","v":12},{"$f":"[1]ACS_16_5YR_B19037_with_ann!CD58","v":0},{"$f":"[1]ACS_16_5YR_B19037_with_ann!CE58","v":12},{"$f":"[1]ACS_16_5YR_B19037_with_ann!CF58","v":0},{"$f":"[1]ACS_16_5YR_B19037_with_ann!CG58","v":12},{"$f":"[1]ACS_16_5YR_B19037_with_ann!CH58","v":0},{"$f":"[1]ACS_16_5YR_B19037_with_ann!CI58","v":12},{"$f":"[1]ACS_16_5YR_B19037_with_ann!CJ58","v":2},{"$f":"[1]ACS_16_5YR_B19037_with_ann!CK58","v":3},{"$f":"[1]ACS_16_5YR_B19037_with_ann!CL58","v":1},{"$f":"[1]ACS_16_5YR_B19037_with_ann!CM58","v":2},{"$f":"[1]ACS_16_5YR_B19037_with_ann!CN58","v":2},{"$f":"[1]ACS_16_5YR_B19037_with_ann!CO58","v":3},{"$f":"[1]ACS_16_5YR_B19037_with_ann!CP58","v":3},{"$f":"[1]ACS_16_5YR_B19037_with_ann!CQ58","v":4},{"$f":"[1]ACS_16_5YR_B19037_with_ann!CR58","v":21},{"$f":"[1]ACS_16_5YR_B19037_with_ann!CS58","v":36},{"$f":"[1]ACS_16_5YR_B19037_with_ann!CT58","v":5},{"$f":"[1]ACS_16_5YR_B19037_with_ann!CU58","v":5},{"$f":"[1]ACS_16_5YR_B19037_with_ann!CV58","v":9},{"$f":"[1]ACS_16_5YR_B19037_with_ann!CW58","v":9},{"$f":"[1]ACS_16_5YR_B19037_with_ann!CX58","v":1},{"$f":"[1]ACS_16_5YR_B19037_with_ann!CY58","v":3},{"$f":"[1]ACS_16_5YR_B19037_with_ann!CZ58","v":8},{"$f":"[1]ACS_16_5YR_B19037_with_ann!DA58","v":10},{"$f":"[1]ACS_16_5YR_B19037_with_ann!DB58","v":5},{"$f":"[1]ACS_16_5YR_B19037_with_ann!DC58","v":5},{"$f":"[1]ACS_16_5YR_B19037_with_ann!DD58","v":22},{"$f":"[1]ACS_16_5YR_B19037_with_ann!DE58","v":9},{"$f":"[1]ACS_16_5YR_B19037_with_ann!DF58","v":0},{"$f":"[1]ACS_16_5YR_B19037_with_ann!DG58","v":12},{"$f":"[1]ACS_16_5YR_B19037_with_ann!DH58","v":1},{"$f":"[1]ACS_16_5YR_B19037_with_ann!DI58","v":2},{"$f":"[1]ACS_16_5YR_B19037_with_ann!DJ58","v":0},{"$f":"[1]ACS_16_5YR_B19037_with_ann!DK58","v":12},{"$f":"[1]ACS_16_5YR_B19037_with_ann!DL58","v":4},{"$f":"[1]ACS_16_5YR_B19037_with_ann!DM58","v":6},{"$f":"[1]ACS_16_5YR_B19037_with_ann!DN58","v":4},{"$f":"[1]ACS_16_5YR_B19037_with_ann!DO58","v":4},{"$f":"[1]ACS_16_5YR_B19037_with_ann!DP58","v":0},{"$f":"[1]ACS_16_5YR_B19037_with_ann!DQ58","v":12},{"$f":"[1]ACS_16_5YR_B19037_with_ann!DR58","v":1},{"$f":"[1]ACS_16_5YR_B19037_with_ann!DS58","v":2},{"$f":"[1]ACS_16_5YR_B19037_with_ann!DT58","v":1},{"$f":"[1]ACS_16_5YR_B19037_with_ann!DU58","v":2},{"$f":"[1]ACS_16_5YR_B19037_with_ann!DV58","v":0},{"$f":"[1]ACS_16_5YR_B19037_with_ann!DW58","v":12},{"$f":"[1]ACS_16_5YR_B19037_with_ann!DX58","v":0},{"$f":"[1]ACS_16_5YR_B19037_with_ann!DY58","v":12},{"$f":"[1]ACS_16_5YR_B19037_with_ann!DZ58","v":1},{"$f":"[1]ACS_16_5YR_B19037_with_ann!EA58","v":2},{"$f":"[1]ACS_16_5YR_B19037_with_ann!EB58","v":2},{"$f":"[1]ACS_16_5YR_B19037_with_ann!EC58","v":3},{"$f":"[1]ACS_16_5YR_B19037_with_ann!ED58","v":3},{"$f":"[1]ACS_16_5YR_B19037_with_ann!EE58","v":3},{"$f":"[1]ACS_16_5YR_B19037_with_ann!EF58","v":0},{"$f":"[1]ACS_16_5YR_B19037_with_ann!EG58","v":12},{"$f":"[1]ACS_16_5YR_B19037_with_ann!EH58","v":2},{"$f":"[1]ACS_16_5YR_B19037_with_ann!EI58","v":3},{"$f":"[1]ACS_16_5YR_B19037_with_ann!EJ58","v":3},{"$f":"[1]ACS_16_5YR_B19037_with_ann!EK58","v":3}]
["06000US3300573700","0600000US3300574900","060",{"$f":"[1]ACS_16_5YR_B19037_with_ann!C59","v":"Stoddard"},{"$f":"[1]ACS_16_5YR_B19037_with_ann!D59","v":436},{"$f":"[1]ACS_16_5YR_B19037_with_ann!E59","v":52},{"$f":"[1]ACS_16_5YR_B19037_with_ann!F59","v":5},{"$f":"[1]ACS_16_5YR_B19037_with_ann!G59","v":9},{"$f":"[1]ACS_16_5YR_B19037_with_ann!H59","v":0},{"$f":"[1]ACS_16_5YR_B19037_with_ann!I59","v":12},{"$f":"[1]ACS_16_5YR_B19037_with_ann!J59","v":0},{"$f":"[1]ACS_16_5YR_B19037_with_ann!K59","v":12},{"$f":"[1]ACS_16_5YR_B19037_with_ann!L59","v":0},{"$f":"[1]ACS_16_5YR_B19037_with_ann!M59","v":12},{"$f":"[1]ACS_16_5YR_B19037_with_ann!N59","v":0},{"$f":"[1]ACS_16_5YR_B19037_with_ann!O59","v":12},{"$f":"[1]ACS_16_5YR_B19037_with_ann!P59","v":0},{"$f":"[1]ACS_16_5YR_B19037_with_ann!Q59","v":12},{"$f":"[1]ACS_16_5YR_B19037_with_ann!R59","v":0},{"$f":"[1]ACS_16_5YR_B19037_with_ann!S59","v":12},{"$f":"[1]ACS_16_5YR_B19037_with_ann!T59","v":0},{"$f":"[1]ACS_16_5YR_B19037_with_ann!U59","v":12},{"$f":"[1]ACS_16_5YR_B19037_with_ann!V59","v":0},{"$f":"[1]ACS_16_5YR_B19037_with_ann!W59","v":12},{"$f":"[1]ACS_16_5YR_B19037_with_ann!X59","v":0},{"$f":"[1]ACS_16_5YR_B19037_with_ann!Y59","v":12},{"$f":"[1]ACS_16_5YR_B19037_with_ann!Z59","v":0},{"$f":"[1]ACS_16_5YR_B19037_with_ann!AA59","v":12},{"$f":"[1]ACS_16_5YR_B19037_with_ann!AB59","v":5},{"$f":"[1]ACS_16_5YR_B19037_with_ann!AC59","v":9},{"$f":"[1]ACS_16_5YR_B19037_with_ann!AD59","v":0},{"$f":"[1]ACS_16_5YR_B19037_with_ann!AE59","v":12},{"$f":"[1]ACS_16_5YR_B19037_with_ann!AF59","v":0},{"$f":"[1]ACS_16_5YR_B19037_with_ann!AG59","v":12},{"$f":"[1]ACS_16_5YR_B19037_with_ann!AH59","v":0},{"$f":"[1]ACS_16_5YR_B19037_with_ann!AI59","v":12},{"$f":"[1]ACS_16_5YR_B19037_with_ann!AJ59","v":0},{"$f":"[1]ACS_16_5YR_B19037_with_ann!AK59","v":12},{"$f":"[1]ACS_16_5YR_B19037_with_ann!AL59","v":0},{"$f":"[1]ACS_16_5YR_B19037_with_ann!AM59","v":12},{"$f":"[1]ACS_16_5YR_B19037_with_ann!AN59","v":81},{"$f":"[1]ACS_16_5YR_B19037_with_ann!AO59","v":29},{"$f":"[1]ACS_16_5YR_B19037_with_ann!AP59","v":0},{"$f":"[1]ACS_16_5YR_B19037_with_ann!AQ59","v":12},{"$f":"[1]ACS_16_5YR_B19037_with_ann!AR59","v":0},{"$f":"[1]ACS_16_5YR_B19037_with_ann!AS59","v":12},{"$f":"[1]ACS_16_5YR_B19037_with_ann!AT59","v":0},{"$f":"[1]ACS_16_5YR_B19037_with_ann!AU59","v":12},{"$f":"[1]ACS_16_5YR_B19037_with_ann!AV59","v":0},{"$f":"[1]ACS_16_5YR_B19037_with_ann!AW59","v":12},{"$f":"[1]ACS_16_5YR_B19037_with_ann!AX59","v":0},{"$f":"[1]ACS_16_5YR_B19037_with_ann!AY59","v":12},{"$f":"[1]ACS_16_5YR_B19037_with_ann!AZ59","v":0},{"$f":"[1]ACS_16_5YR_B19037_with_ann!BA59","v":12},{"$f":"[1]ACS_16_5YR_B19037_with_ann!BB59","v":0},{"$f":"[1]ACS_16_5YR_B19037_with_ann!BC59","v":12},{"$f":"[1]ACS_16_5YR_B19037_with_ann!BD59","v":0},{"$f":"[1]ACS_16_5YR_B19037_with_ann!BE59","v":12},{"$f":"[1]ACS_16_5YR_B19037_with_ann!BF59","v":0},{"$f":"[1]ACS_16_5YR_B19037_with_ann!BG59","v":12},{"$f":"[1]ACS_16_5YR_B19037_with_ann!BH59","v":6},{"$f":"[1]ACS_16_5YR_B19037_with_ann!BI59","v":8},{"$f":"[1]ACS_16_5YR_B19037_with_ann!BJ59","v":12},{"$f":"[1]ACS_16_5YR_B19037_with_ann!BK59","v":14},{"$f":"[1]ACS_16_5YR_B19037_with_ann!BL59","v":15},{"$f":"[1]ACS_16_5YR_B19037_with_ann!BM59","v":9},{"$f":"[1]ACS_16_5YR_B19037_with_ann!BN59","v":16},{"$f":"[1]ACS_16_5YR_B19037_with_ann!BO59","v":16},{"$f":"[1]ACS_16_5YR_B19037_with_ann!BP59","v":20},{"$f":"[1]ACS_16_5YR_B19037_with_ann!BQ59","v":10},{"$f":"[1]ACS_16_5YR_B19037_with_ann!BR59","v":7},{"$f":"[1]ACS_16_5YR_B19037_with_ann!BS59","v":7},{"$f":"[1]ACS_16_5YR_B19037_with_ann!BT59","v":5},{"$f":"[1]ACS_16_5YR_B19037_with_ann!BU59","v":5},{"$f":"[1]ACS_16_5YR_B19037_with_ann!BV59","v":220},{"$f":"[1]ACS_16_5YR_B19037_with_ann!BW59","v":42},{"$f":"[1]ACS_16_5YR_B19037_with_ann!BX59","v":8},{"$f":"[1]ACS_16_5YR_B19037_with_ann!BY59","v":12},{"$f":"[1]ACS_16_5YR_B19037_with_ann!BZ59","v":2},{"$f":"[1]ACS_16_5YR_B19037_with_ann!CA59","v":4},{"$f":"[1]ACS_16_5YR_B19037_with_ann!CB59","v":0},{"$f":"[1]ACS_16_5YR_B19037_with_ann!CC59","v":12},{"$f":"[1]ACS_16_5YR_B19037_with_ann!CD59","v":0},{"$f":"[1]ACS_16_5YR_B19037_with_ann!CE59","v":12},{"$f":"[1]ACS_16_5YR_B19037_with_ann!CF59","v":6},{"$f":"[1]ACS_16_5YR_B19037_with_ann!CG59","v":5},{"$f":"[1]ACS_16_5YR_B19037_with_ann!CH59","v":0},{"$f":"[1]ACS_16_5YR_B19037_with_ann!CI59","v":12},{"$f":"[1]ACS_16_5YR_B19037_with_ann!CJ59","v":9},{"$f":"[1]ACS_16_5YR_B19037_with_ann!CK59","v":13},{"$f":"[1]ACS_16_5YR_B19037_with_ann!CL59","v":0},{"$f":"[1]ACS_16_5YR_B19037_with_ann!CM59","v":12},{"$f":"[1]ACS_16_5YR_B19037_with_ann!CN59","v":0},{"$f":"[1]ACS_16_5YR_B19037_with_ann!CO59","v":12},{"$f":"[1]ACS_16_5YR_B19037_with_ann!CP59","v":20},{"$f":"[1]ACS_16_5YR_B19037_with_ann!CQ59","v":12},{"$f":"[1]ACS_16_5YR_B19037_with_ann!CR59","v":24},{"$f":"[1]ACS_16_5YR_B19037_with_ann!CS59","v":20},{"$f":"[1]ACS_16_5YR_B19037_with_ann!CT59","v":35},{"$f":"[1]ACS_16_5YR_B19037_with_ann!CU59","v":21},{"$f":"[1]ACS_16_5YR_B19037_with_ann!CV59","v":30},{"$f":"[1]ACS_16_5YR_B19037_with_ann!CW59","v":19},{"$f":"[1]ACS_16_5YR_B19037_with_ann!CX59","v":29},{"$f":"[1]ACS_16_5YR_B19037_with_ann!CY59","v":19},{"$f":"[1]ACS_16_5YR_B19037_with_ann!CZ59","v":30},{"$f":"[1]ACS_16_5YR_B19037_with_ann!DA59","v":18},{"$f":"[1]ACS_16_5YR_B19037_with_ann!DB59","v":27},{"$f":"[1]ACS_16_5YR_B19037_with_ann!DC59","v":17},{"$f":"[1]ACS_16_5YR_B19037_with_ann!DD59","v":130},{"$f":"[1]ACS_16_5YR_B19037_with_ann!DE59","v":22},{"$f":"[1]ACS_16_5YR_B19037_with_ann!DF59","v":2},{"$f":"[1]ACS_16_5YR_B19037_with_ann!DG59","v":4},{"$f":"[1]ACS_16_5YR_B19037_with_ann!DH59","v":0},{"$f":"[1]ACS_16_5YR_B19037_with_ann!DI59","v":12},{"$f":"[1]ACS_16_5YR_B19037_with_ann!DJ59","v":0},{"$f":"[1]ACS_16_5YR_B19037_with_ann!DK59","v":12},{"$f":"[1]ACS_16_5YR_B19037_with_ann!DL59","v":8},{"$f":"[1]ACS_16_5YR_B19037_with_ann!DM59","v":9},{"$f":"[1]ACS_16_5YR_B19037_with_ann!DN59","v":3},{"$f":"[1]ACS_16_5YR_B19037_with_ann!DO59","v":4},{"$f":"[1]ACS_16_5YR_B19037_with_ann!DP59","v":15},{"$f":"[1]ACS_16_5YR_B19037_with_ann!DQ59","v":8},{"$f":"[1]ACS_16_5YR_B19037_with_ann!DR59","v":7},{"$f":"[1]ACS_16_5YR_B19037_with_ann!DS59","v":6},{"$f":"[1]ACS_16_5YR_B19037_with_ann!DT59","v":5},{"$f":"[1]ACS_16_5YR_B19037_with_ann!DU59","v":5},{"$f":"[1]ACS_16_5YR_B19037_with_ann!DV59","v":5},{"$f":"[1]ACS_16_5YR_B19037_with_ann!DW59","v":5},{"$f":"[1]ACS_16_5YR_B19037_with_ann!DX59","v":8},{"$f":"[1]ACS_16_5YR_B19037_with_ann!DY59","v":6},{"$f":"[1]ACS_16_5YR_B19037_with_ann!DZ59","v":27},{"$f":"[1]ACS_16_5YR_B19037_with_ann!EA59","v":14},{"$f":"[1]ACS_16_5YR_B19037_with_ann!EB59","v":15},{"$f":"[1]ACS_16_5YR_B19037_with_ann!EC59","v":14},{"$f":"[1]ACS_16_5YR_B19037_with_ann!ED59","v":8},{"$f":"[1]ACS_16_5YR_B19037_with_ann!EE59","v":6},{"$f":"[1]ACS_16_5YR_B19037_with_ann!EF59","v":10},{"$f":"[1]ACS_16_5YR_B19037_with_ann!EG59","v":7},{"$f":"[1]ACS_16_5YR_B19037_with_ann!EH59","v":4},{"$f":"[1]ACS_16_5YR_B19037_with_ann!EI59","v":4},{"$f":"[1]ACS_16_5YR_B19037_with_ann!EJ59","v":13},{"$f":"[1]ACS_16_5YR_B19037_with_ann!EK59","v":11}]
["06000US3300574900","0600000US3300575300","060",{"$f":"[1]ACS_16_5YR_B19037_with_ann!C60","v":"Sullivan"},{"$f":"[1]ACS_16_5YR_B19037_with_ann!D60","v":281},{"$f":"[1]ACS_16_5YR_B19037_with_ann!E60","v":53},{"$f":"[1]ACS_16_5YR_B19037_with_ann!F60","v":0},{"$f":"[1]ACS_16_5YR_B19037_with_ann!G60","v":12},{"$f":"[1]ACS_16_5YR_B19037_with_ann!H60","v":0},{"$f":"[1]ACS_16_5YR_B19037_with_ann!I60","v":12},{"$f":"[1]ACS_16_5YR_B19037_with_ann!J60","v":0},{"$f":"[1]ACS_16_5YR_B19037_with_ann!K60","v":12},{"$f":"[1]ACS_16_5YR_B19037_with_ann!L60","v":0},{"$f":"[1]ACS_16_5YR_B19037_with_ann!M60","v":12},{"$f":"[1]ACS_16_5YR_B19037_with_ann!N60","v":0},{"$f":"[1]ACS_16_5YR_B19037_with_ann!O60","v":12},{"$f":"[1]ACS_16_5YR_B19037_with_ann!P60","v":0},{"$f":"[1]ACS_16_5YR_B19037_with_ann!Q60","v":12},{"$f":"[1]ACS_16_5YR_B19037_with_ann!R60","v":0},{"$f":"[1]ACS_16_5YR_B19037_with_ann!S60","v":12},{"$f":"[1]ACS_16_5YR_B19037_with_ann!T60","v":0},{"$f":"[1]ACS_16_5YR_B19037_with_ann!U60","v":12},{"$f":"[1]ACS_16_5YR_B19037_with_ann!V60","v":0},{"$f":"[1]ACS_16_5YR_B19037_with_ann!W60","v":12},{"$f":"[1]ACS_16_5YR_B19037_with_ann!X60","v":0},{"$f":"[1]ACS_16_5YR_B19037_with_ann!Y60","v":12},{"$f":"[1]ACS_16_5YR_B19037_with_ann!Z60","v":0},{"$f":"[1]ACS_16_5YR_B19037_with_ann!AA60","v":12},{"$f":"[1]ACS_16_5YR_B19037_with_ann!AB60","v":0},{"$f":"[1]ACS_16_5YR_B19037_with_ann!AC60","v":12},{"$f":"[1]ACS_16_5YR_B19037_with_ann!AD60","v":0},{"$f":"[1]ACS_16_5YR_B19037_with_ann!AE60","v":12},{"$f":"[1]ACS_16_5YR_B19037_with_ann!AF60","v":0},{"$f":"[1]ACS_16_5YR_B19037_with_ann!AG60","v":12},{"$f":"[1]ACS_16_5YR_B19037_with_ann!AH60","v":0},{"$f":"[1]ACS_16_5YR_B19037_with_ann!AI60","v":12},{"$f":"[1]ACS_16_5YR_B19037_with_ann!AJ60","v":0},{"$f":"[1]ACS_16_5YR_B19037_with_ann!AK60","v":12},{"$f":"[1]ACS_16_5YR_B19037_with_ann!AL60","v":0},{"$f":"[1]ACS_16_5YR_B19037_with_ann!AM60","v":12},{"$f":"[1]ACS_16_5YR_B19037_with_ann!AN60","v":84},{"$f":"[1]ACS_16_5YR_B19037_with_ann!AO60","v":38},{"$f":"[1]ACS_16_5YR_B19037_with_ann!AP60","v":0},{"$f":"[1]ACS_16_5YR_B19037_with_ann!AQ60","v":12},{"$f":"[1]ACS_16_5YR_B19037_with_ann!AR60","v":0},{"$f":"[1]ACS_16_5YR_B19037_with_ann!AS60","v":12},{"$f":"[1]ACS_16_5YR_B19037_with_ann!AT60","v":0},{"$f":"[1]ACS_16_5YR_B19037_with_ann!AU60","v":12},{"$f":"[1]ACS_16_5YR_B19037_with_ann!AV60","v":0},{"$f":"[1]ACS_16_5YR_B19037_with_ann!AW60","v":12},{"$f":"[1]ACS_16_5YR_B19037_with_ann!AX60","v":0},{"$f":"[1]ACS_16_5YR_B19037_with_ann!AY60","v":12},{"$f":"[1]ACS_16_5YR_B19037_with_ann!AZ60","v":0},{"$f":"[1]ACS_16_5YR_B19037_with_ann!BA60","v":12},{"$f":"[1]ACS_16_5YR_B19037_with_ann!BB60","v":0},{"$f":"[1]ACS_16_5YR_B19037_with_ann!BC60","v":12},{"$f":"[1]ACS_16_5YR_B19037_with_ann!BD60","v":3},{"$f":"[1]ACS_16_5YR_B19037_with_ann!BE60","v":4},{"$f":"[1]ACS_16_5YR_B19037_with_ann!BF60","v":1},{"$f":"[1]ACS_16_5YR_B19037_with_ann!BG60","v":4},{"$f":"[1]ACS_16_5YR_B19037_with_ann!BH60","v":7},{"$f":"[1]ACS_16_5YR_B19037_with_ann!BI60","v":10},{"$f":"[1]ACS_16_5YR_B19037_with_ann!BJ60","v":19},{"$f":"[1]ACS_16_5YR_B19037_with_ann!BK60","v":19},{"$f":"[1]ACS_16_5YR_B19037_with_ann!BL60","v":7},{"$f":"[1]ACS_16_5YR_B19037_with_ann!BM60","v":5},{"$f":"[1]ACS_16_5YR_B19037_with_ann!BN60","v":15},{"$f":"[1]ACS_16_5YR_B19037_with_ann!BO60","v":17},{"$f":"[1]ACS_16_5YR_B19037_with_ann!BP60","v":22},{"$f":"[1]ACS_16_5YR_B19037_with_ann!BQ60","v":15},{"$f":"[1]ACS_16_5YR_B19037_with_ann!BR60","v":5},{"$f":"[1]ACS_16_5YR_B19037_with_ann!BS60","v":5},{"$f":"[1]ACS_16_5YR_B19037_with_ann!BT60","v":5},{"$f":"[1]ACS_16_5YR_B19037_with_ann!BU60","v":7},{"$f":"[1]ACS_16_5YR_B19037_with_ann!BV60","v":113},{"$f":"[1]ACS_16_5YR_B19037_with_ann!BW60","v":27},{"$f":"[1]ACS_16_5YR_B19037_with_ann!BX60","v":0},{"$f":"[1]ACS_16_5YR_B19037_with_ann!BY60","v":12},{"$f":"[1]ACS_16_5YR_B19037_with_ann!BZ60","v":0},{"$f":"[1]ACS_16_5YR_B19037_with_ann!CA60","v":12},{"$f":"[1]ACS_16_5YR_B19037_with_ann!CB60","v":3},{"$f":"[1]ACS_16_5YR_B19037_with_ann!CC60","v":4},{"$f":"[1]ACS_16_5YR_B19037_with_ann!CD60","v":2},{"$f":"[1]ACS_16_5YR_B19037_with_ann!CE60","v":3},{"$f":"[1]ACS_16_5YR_B19037_with_ann!CF60","v":0},{"$f":"[1]ACS_16_5YR_B19037_with_ann!CG60","v":12},{"$f":"[1]ACS_16_5YR_B19037_with_ann!CH60","v":0},{"$f":"[1]ACS_16_5YR_B19037_with_ann!CI60","v":12},{"$f":"[1]ACS_16_5YR_B19037_with_ann!CJ60","v":5},{"$f":"[1]ACS_16_5YR_B19037_with_ann!CK60","v":5},{"$f":"[1]ACS_16_5YR_B19037_with_ann!CL60","v":0},{"$f":"[1]ACS_16_5YR_B19037_with_ann!CM60","v":12},{"$f":"[1]ACS_16_5YR_B19037_with_ann!CN60","v":5},{"$f":"[1]ACS_16_5YR_B19037_with_ann!CO60","v":5},{"$f":"[1]ACS_16_5YR_B19037_with_ann!CP60","v":2},{"$f":"[1]ACS_16_5YR_B19037_with_ann!CQ60","v":3},{"$f":"[1]ACS_16_5YR_B19037_with_ann!CR60","v":8},{"$f":"[1]ACS_16_5YR_B19037_with_ann!CS60","v":7},{"$f":"[1]ACS_16_5YR_B19037_with_ann!CT60","v":22},{"$f":"[1]ACS_16_5YR_B19037_with_ann!CU60","v":12},{"$f":"[1]ACS_16_5YR_B19037_with_ann!CV60","v":31},{"$f":"[1]ACS_16_5YR_B19037_with_ann!CW60","v":17},{"$f":"[1]ACS_16_5YR_B19037_with_ann!CX60","v":5},{"$f":"[1]ACS_16_5YR_B19037_with_ann!CY60","v":5},{"$f":"[1]ACS_16_5YR_B19037_with_ann!CZ60","v":25},{"$f":"[1]ACS_16_5YR_B19037_with_ann!DA60","v":17},{"$f":"[1]ACS_16_5YR_B19037_with_ann!DB60","v":5},{"$f":"[1]ACS_16_5YR_B19037_with_ann!DC60","v":6},{"$f":"[1]ACS_16_5YR_B19037_with_ann!DD60","v":84},{"$f":"[1]ACS_16_5YR_B19037_with_ann!DE60","v":24},{"$f":"[1]ACS_16_5YR_B19037_with_ann!DF60","v":0},{"$f":"[1]ACS_16_5YR_B19037_with_ann!DG60","v":12},{"$f":"[1]ACS_16_5YR_B19037_with_ann!DH60","v":8},{"$f":"[1]ACS_16_5YR_B19037_with_ann!DI60","v":9},{"$f":"[1]ACS_16_5YR_B19037_with_ann!DJ60","v":6},{"$f":"[1]ACS_16_5YR_B19037_with_ann!DK60","v":8},{"$f":"[1]ACS_16_5YR_B19037_with_ann!DL60","v":7},{"$f":"[1]ACS_16_5YR_B19037_with_ann!DM60","v":9},{"$f":"[1]ACS_16_5YR_B19037_with_ann!DN60","v":2},{"$f":"[1]ACS_16_5YR_B19037_with_ann!DO60","v":3},{"$f":"[1]ACS_16_5YR_B19037_with_ann!DP60","v":4},{"$f":"[1]ACS_16_5YR_B19037_with_ann!DQ60","v":4},{"$f":"[1]ACS_16_5YR_B19037_with_ann!DR60","v":6},{"$f":"[1]ACS_16_5YR_B19037_with_ann!DS60","v":5},{"$f":"[1]ACS_16_5YR_B19037_with_ann!DT60","v":0},{"$f":"[1]ACS_16_5YR_B19037_with_ann!DU60","v":12},{"$f":"[1]ACS_16_5YR_B19037_with_ann!DV60","v":2},{"$f":"[1]ACS_16_5YR_B19037_with_ann!DW60","v":3},{"$f":"[1]ACS_16_5YR_B19037_with_ann!DX60","v":8},{"$f":"[1]ACS_16_5YR_B19037_with_ann!DY60","v":6},{"$f":"[1]ACS_16_5YR_B19037_with_ann!DZ60","v":9},{"$f":"[1]ACS_16_5YR_B19037_with_ann!EA60","v":5},{"$f":"[1]ACS_16_5YR_B19037_with_ann!EB60","v":7},{"$f":"[1]ACS_16_5YR_B19037_with_ann!EC60","v":8},{"$f":"[1]ACS_16_5YR_B19037_with_ann!ED60","v":7},{"$f":"[1]ACS_16_5YR_B19037_with_ann!EE60","v":9},{"$f":"[1]ACS_16_5YR_B19037_with_ann!EF60","v":0},{"$f":"[1]ACS_16_5YR_B19037_with_ann!EG60","v":12},{"$f":"[1]ACS_16_5YR_B19037_with_ann!EH60","v":12},{"$f":"[1]ACS_16_5YR_B19037_with_ann!EI60","v":14},{"$f":"[1]ACS_16_5YR_B19037_with_ann!EJ60","v":6},{"$f":"[1]ACS_16_5YR_B19037_with_ann!EK60","v":7}]
["06000US3300575300","0600000US3300575700","060",{"$f":"[1]ACS_16_5YR_B19037_with_ann!C61","v":"Surry"},{"$f":"[1]ACS_16_5YR_B19037_with_ann!D61","v":344},{"$f":"[1]ACS_16_5YR_B19037_with_ann!E61","v":58},{"$f":"[1]ACS_16_5YR_B19037_with_ann!F61","v":4},{"$f":"[1]ACS_16_5YR_B19037_with_ann!G61","v":5},{"$f":"[1]ACS_16_5YR_B19037_with_ann!H61","v":0},{"$f":"[1]ACS_16_5YR_B19037_with_ann!I61","v":12},{"$f":"[1]ACS_16_5YR_B19037_with_ann!J61","v":0},{"$f":"[1]ACS_16_5YR_B19037_with_ann!K61","v":12},{"$f":"[1]ACS_16_5YR_B19037_with_ann!L61","v":0},{"$f":"[1]ACS_16_5YR_B19037_with_ann!M61","v":12},{"$f":"[1]ACS_16_5YR_B19037_with_ann!N61","v":0},{"$f":"[1]ACS_16_5YR_B19037_with_ann!O61","v":12},{"$f":"[1]ACS_16_5YR_B19037_with_ann!P61","v":0},{"$f":"[1]ACS_16_5YR_B19037_with_ann!Q61","v":12},{"$f":"[1]ACS_16_5YR_B19037_with_ann!R61","v":2},{"$f":"[1]ACS_16_5YR_B19037_with_ann!S61","v":3},{"$f":"[1]ACS_16_5YR_B19037_with_ann!T61","v":0},{"$f":"[1]ACS_16_5YR_B19037_with_ann!U61","v":12},{"$f":"[1]ACS_16_5YR_B19037_with_ann!V61","v":0},{"$f":"[1]ACS_16_5YR_B19037_with_ann!W61","v":12},{"$f":"[1]ACS_16_5YR_B19037_with_ann!X61","v":0},{"$f":"[1]ACS_16_5YR_B19037_with_ann!Y61","v":12},{"$f":"[1]ACS_16_5YR_B19037_with_ann!Z61","v":0},{"$f":"[1]ACS_16_5YR_B19037_with_ann!AA61","v":12},{"$f":"[1]ACS_16_5YR_B19037_with_ann!AB61","v":0},{"$f":"[1]ACS_16_5YR_B19037_with_ann!AC61","v":12},{"$f":"[1]ACS_16_5YR_B19037_with_ann!AD61","v":2},{"$f":"[1]ACS_16_5YR_B19037_with_ann!AE61","v":4},{"$f":"[1]ACS_16_5YR_B19037_with_ann!AF61","v":0},{"$f":"[1]ACS_16_5YR_B19037_with_ann!AG61","v":12},{"$f":"[1]ACS_16_5YR_B19037_with_ann!AH61","v":0},{"$f":"[1]ACS_16_5YR_B19037_with_ann!AI61","v":12},{"$f":"[1]ACS_16_5YR_B19037_with_ann!AJ61","v":0},{"$f":"[1]ACS_16_5YR_B19037_with_ann!AK61","v":12},{"$f":"[1]ACS_16_5YR_B19037_with_ann!AL61","v":0},{"$f":"[1]ACS_16_5YR_B19037_with_ann!AM61","v":12},{"$f":"[1]ACS_16_5YR_B19037_with_ann!AN61","v":81},{"$f":"[1]ACS_16_5YR_B19037_with_ann!AO61","v":35},{"$f":"[1]ACS_16_5YR_B19037_with_ann!AP61","v":0},{"$f":"[1]ACS_16_5YR_B19037_with_ann!AQ61","v":12},{"$f":"[1]ACS_16_5YR_B19037_with_ann!AR61","v":0},{"$f":"[1]ACS_16_5YR_B19037_with_ann!AS61","v":12},{"$f":"[1]ACS_16_5YR_B19037_with_ann!AT61","v":0},{"$f":"[1]ACS_16_5YR_B19037_with_ann!AU61","v":12},{"$f":"[1]ACS_16_5YR_B19037_with_ann!AV61","v":0},{"$f":"[1]ACS_16_5YR_B19037_with_ann!AW61","v":12},{"$f":"[1]ACS_16_5YR_B19037_with_ann!AX61","v":0},{"$f":"[1]ACS_16_5YR_B19037_with_ann!AY61","v":12},{"$f":"[1]ACS_16_5YR_B19037_with_ann!AZ61","v":0},{"$f":"[1]ACS_16_5YR_B19037_with_ann!BA61","v":12},{"$f":"[1]ACS_16_5YR_B19037_with_ann!BB61","v":0},{"$f":"[1]ACS_16_5YR_B19037_with_ann!BC61","v":12},{"$f":"[1]ACS_16_5YR_B19037_with_ann!BD61","v":0},{"$f":"[1]ACS_16_5YR_B19037_with_ann!BE61","v":12},{"$f":"[1]ACS_16_5YR_B19037_with_ann!BF61","v":0},{"$f":"[1]ACS_16_5YR_B19037_with_ann!BG61","v":12},{"$f":"[1]ACS_16_5YR_B19037_with_ann!BH61","v":0},{"$f":"[1]ACS_16_5YR_B19037_with_ann!BI61","v":12},{"$f":"[1]ACS_16_5YR_B19037_with_ann!BJ61","v":0},{"$f":"[1]ACS_16_5YR_B19037_with_ann!BK61","v":12},{"$f":"[1]ACS_16_5YR_B19037_with_ann!BL61","v":14},{"$f":"[1]ACS_16_5YR_B19037_with_ann!BM61","v":10},{"$f":"[1]ACS_16_5YR_B19037_with_ann!BN61","v":11},{"$f":"[1]ACS_16_5YR_B19037_with_ann!BO61","v":8},{"$f":"[1]ACS_16_5YR_B19037_with_ann!BP61","v":16},{"$f":"[1]ACS_16_5YR_B19037_with_ann!BQ61","v":12},{"$f":"[1]ACS_16_5YR_B19037_with_ann!BR61","v":25},{"$f":"[1]ACS_16_5YR_B19037_with_ann!BS61","v":29},{"$f":"[1]ACS_16_5YR_B19037_with_ann!BT61","v":15},{"$f":"[1]ACS_16_5YR_B19037_with_ann!BU61","v":12},{"$f":"[1]ACS_16_5YR_B19037_with_ann!BV61","v":107},{"$f":"[1]ACS_16_5YR_B19037_with_ann!BW61","v":34},{"$f":"[1]ACS_16_5YR_B19037_with_ann!BX61","v":0},{"$f":"[1]ACS_16_5YR_B19037_with_ann!BY61","v":12},{"$f":"[1]ACS_16_5YR_B19037_with_ann!BZ61","v":0},{"$f":"[1]ACS_16_5YR_B19037_with_ann!CA61","v":12},{"$f":"[1]ACS_16_5YR_B19037_with_ann!CB61","v":0},{"$f":"[1]ACS_16_5YR_B19037_with_ann!CC61","v":12},{"$f":"[1]ACS_16_5YR_B19037_with_ann!CD61","v":7},{"$f":"[1]ACS_16_5YR_B19037_with_ann!CE61","v":11},{"$f":"[1]ACS_16_5YR_B19037_with_ann!CF61","v":0},{"$f":"[1]ACS_16_5YR_B19037_with_ann!CG61","v":12},{"$f":"[1]ACS_16_5YR_B19037_with_ann!CH61","v":0},{"$f":"[1]ACS_16_5YR_B19037_with_ann!CI61","v":12},{"$f":"[1]ACS_16_5YR_B19037_with_ann!CJ61","v":3},{"$f":"[1]ACS_16_5YR_B19037_with_ann!CK61","v":4},{"$f":"[1]ACS_16_5YR_B19037_with_ann!CL61","v":0},{"$f":"[1]ACS_16_5YR_B19037_with_ann!CM61","v":12},{"$f":"[1]ACS_16_5YR_B19037_with_ann!CN61","v":13},{"$f":"[1]ACS_16_5YR_B19037_with_ann!CO61","v":14},{"$f":"[1]ACS_16_5YR_B19037_with_ann!CP61","v":11},{"$f":"[1]ACS_16_5YR_B19037_with_ann!CQ61","v":9},{"$f":"[1]ACS_16_5YR_B19037_with_ann!CR61","v":0},{"$f":"[1]ACS_16_5YR_B19037_with_ann!CS61","v":12},{"$f":"[1]ACS_16_5YR_B19037_with_ann!CT61","v":16},{"$f":"[1]ACS_16_5YR_B19037_with_ann!CU61","v":10},{"$f":"[1]ACS_16_5YR_B19037_with_ann!CV61","v":16},{"$f":"[1]ACS_16_5YR_B19037_with_ann!CW61","v":12},{"$f":"[1]ACS_16_5YR_B19037_with_ann!CX61","v":10},{"$f":"[1]ACS_16_5YR_B19037_with_ann!CY61","v":8},{"$f":"[1]ACS_16_5YR_B19037_with_ann!CZ61","v":23},{"$f":"[1]ACS_16_5YR_B19037_with_ann!DA61","v":25},{"$f":"[1]ACS_16_5YR_B19037_with_ann!DB61","v":8},{"$f":"[1]ACS_16_5YR_B19037_with_ann!DC61","v":6},{"$f":"[1]ACS_16_5YR_B19037_with_ann!DD61","v":152},{"$f":"[1]ACS_16_5YR_B19037_with_ann!DE61","v":38},{"$f":"[1]ACS_16_5YR_B19037_with_ann!DF61","v":0},{"$f":"[1]ACS_16_5YR_B19037_with_ann!DG61","v":12},{"$f":"[1]ACS_16_5YR_B19037_with_ann!DH61","v":4},{"$f":"[1]ACS_16_5YR_B19037_with_ann!DI61","v":5},{"$f":"[1]ACS_16_5YR_B19037_with_ann!DJ61","v":4},{"$f":"[1]ACS_16_5YR_B19037_with_ann!DK61","v":5},{"$f":"[1]ACS_16_5YR_B19037_with_ann!DL61","v":7},{"$f":"[1]ACS_16_5YR_B19037_with_ann!DM61","v":6},{"$f":"[1]ACS_16_5YR_B19037_with_ann!DN61","v":5},{"$f":"[1]ACS_16_5YR_B19037_with_ann!DO61","v":7},{"$f":"[1]ACS_16_5YR_B19037_with_ann!DP61","v":0},{"$f":"[1]ACS_16_5YR_B19037_with_ann!DQ61","v":12},{"$f":"[1]ACS_16_5YR_B19037_with_ann!DR61","v":12},{"$f":"[1]ACS_16_5YR_B19037_with_ann!DS61","v":9},{"$f":"[1]ACS_16_5YR_B19037_with_ann!DT61","v":0},{"$f":"[1]ACS_16_5YR_B19037_with_ann!DU61","v":12},{"$f":"[1]ACS_16_5YR_B19037_with_ann!DV61","v":19},{"$f":"[1]ACS_16_5YR_B19037_with_ann!DW61","v":24},{"$f":"[1]ACS_16_5YR_B19037_with_ann!DX61","v":24},{"$f":"[1]ACS_16_5YR_B19037_with_ann!DY61","v":17},{"$f":"[1]ACS_16_5YR_B19037_with_ann!DZ61","v":12},{"$f":"[1]ACS_16_5YR_B19037_with_ann!EA61","v":9},{"$f":"[1]ACS_16_5YR_B19037_with_ann!EB61","v":20},{"$f":"[1]ACS_16_5YR_B19037_with_ann!EC61","v":11},{"$f":"[1]ACS_16_5YR_B19037_with_ann!ED61","v":18},{"$f":"[1]ACS_16_5YR_B19037_with_ann!EE61","v":16},{"$f":"[1]ACS_16_5YR_B19037_with_ann!EF61","v":2},{"$f":"[1]ACS_16_5YR_B19037_with_ann!EG61","v":4},{"$f":"[1]ACS_16_5YR_B19037_with_ann!EH61","v":3},{"$f":"[1]ACS_16_5YR_B19037_with_ann!EI61","v":4},{"$f":"[1]ACS_16_5YR_B19037_with_ann!EJ61","v":22},{"$f":"[1]ACS_16_5YR_B19037_with_ann!EK61","v":16}]
["06000US3300575700","0600000US3300577380","060",{"$f":"[1]ACS_16_5YR_B19037_with_ann!C62","v":"Swanzey"},{"$f":"[1]ACS_16_5YR_B19037_with_ann!D62","v":3255},{"$f":"[1]ACS_16_5YR_B19037_with_ann!E62","v":171},{"$f":"[1]ACS_16_5YR_B19037_with_ann!F62","v":51},{"$f":"[1]ACS_16_5YR_B19037_with_ann!G62","v":51},{"$f":"[1]ACS_16_5YR_B19037_with_ann!H62","v":0},{"$f":"[1]ACS_16_5YR_B19037_with_ann!I62","v":17},{"$f":"[1]ACS_16_5YR_B19037_with_ann!J62","v":0},{"$f":"[1]ACS_16_5YR_B19037_with_ann!K62","v":17},{"$f":"[1]ACS_16_5YR_B19037_with_ann!L62","v":0},{"$f":"[1]ACS_16_5YR_B19037_with_ann!M62","v":17},{"$f":"[1]ACS_16_5YR_B19037_with_ann!N62","v":0},{"$f":"[1]ACS_16_5YR_B19037_with_ann!O62","v":17},{"$f":"[1]ACS_16_5YR_B19037_with_ann!P62","v":0},{"$f":"[1]ACS_16_5YR_B19037_with_ann!Q62","v":17},{"$f":"[1]ACS_16_5YR_B19037_with_ann!R62","v":0},{"$f":"[1]ACS_16_5YR_B19037_with_ann!S62","v":17},{"$f":"[1]ACS_16_5YR_B19037_with_ann!T62","v":0},{"$f":"[1]ACS_16_5YR_B19037_with_ann!U62","v":17},{"$f":"[1]ACS_16_5YR_B19037_with_ann!V62","v":0},{"$f":"[1]ACS_16_5YR_B19037_with_ann!W62","v":17},{"$f":"[1]ACS_16_5YR_B19037_with_ann!X62","v":0},{"$f":"[1]ACS_16_5YR_B19037_with_ann!Y62","v":17},{"$f":"[1]ACS_16_5YR_B19037_with_ann!Z62","v":25},{"$f":"[1]ACS_16_5YR_B19037_with_ann!AA62","v":37},{"$f":"[1]ACS_16_5YR_B19037_with_ann!AB62","v":0},{"$f":"[1]ACS_16_5YR_B19037_with_ann!AC62","v":17},{"$f":"[1]ACS_16_5YR_B19037_with_ann!AD62","v":26},{"$f":"[1]ACS_16_5YR_B19037_with_ann!AE62","v":40},{"$f":"[1]ACS_16_5YR_B19037_with_ann!AF62","v":0},{"$f":"[1]ACS_16_5YR_B19037_with_ann!AG62","v":17},{"$f":"[1]ACS_16_5YR_B19037_with_ann!AH62","v":0},{"$f":"[1]ACS_16_5YR_B19037_with_ann!AI62","v":17},{"$f":"[1]ACS_16_5YR_B19037_with_ann!AJ62","v":0},{"$f":"[1]ACS_16_5YR_B19037_with_ann!AK62","v":17},{"$f":"[1]ACS_16_5YR_B19037_with_ann!AL62","v":0},{"$f":"[1]ACS_16_5YR_B19037_with_ann!AM62","v":17},{"$f":"[1]ACS_16_5YR_B19037_with_ann!AN62","v":831},{"$f":"[1]ACS_16_5YR_B19037_with_ann!AO62","v":175},{"$f":"[1]ACS_16_5YR_B19037_with_ann!AP62","v":0},{"$f":"[1]ACS_16_5YR_B19037_with_ann!AQ62","v":17},{"$f":"[1]ACS_16_5YR_B19037_with_ann!AR62","v":100},{"$f":"[1]ACS_16_5YR_B19037_with_ann!AS62","v":83},{"$f":"[1]ACS_16_5YR_B19037_with_ann!AT62","v":30},{"$f":"[1]ACS_16_5YR_B19037_with_ann!AU62","v":46},{"$f":"[1]ACS_16_5YR_B19037_with_ann!AV62","v":17},{"$f":"[1]ACS_16_5YR_B19037_with_ann!AW62","v":37},{"$f":"[1]ACS_16_5YR_B19037_with_ann!AX62","v":0},{"$f":"[1]ACS_16_5YR_B19037_with_ann!AY62","v":17},{"$f":"[1]ACS_16_5YR_B19037_with_ann!AZ62","v":0},{"$f":"[1]ACS_16_5YR_B19037_with_ann!BA62","v":17},{"$f":"[1]ACS_16_5YR_B19037_with_ann!BB62","v":0},{"$f":"[1]ACS_16_5YR_B19037_with_ann!BC62","v":17},{"$f":"[1]ACS_16_5YR_B19037_with_ann!BD62","v":52},{"$f":"[1]ACS_16_5YR_B19037_with_ann!BE62","v":64},{"$f":"[1]ACS_16_5YR_B19037_with_ann!BF62","v":39},{"$f":"[1]ACS_16_5YR_B19037_with_ann!BG62","v":37},{"$f":"[1]ACS_16_5YR_B19037_with_ann!BH62","v":47},{"$f":"[1]ACS_16_5YR_B19037_with_ann!BI62","v":66},{"$f":"[1]ACS_16_5YR_B19037_with_ann!BJ62","v":98},{"$f":"[1]ACS_16_5YR_B19037_with_ann!BK62","v":80},{"$f":"[1]ACS_16_5YR_B19037_with_ann!BL62","v":103},{"$f":"[1]ACS_16_5YR_B19037_with_ann!BM62","v":82},{"$f":"[1]ACS_16_5YR_B19037_with_ann!BN62","v":151},{"$f":"[1]ACS_16_5YR_B19037_with_ann!BO62","v":116},{"$f":"[1]ACS_16_5YR_B19037_with_ann!BP62","v":83},{"$f":"[1]ACS_16_5YR_B19037_with_ann!BQ62","v":106},{"$f":"[1]ACS_16_5YR_B19037_with_ann!BR62","v":64},{"$f":"[1]ACS_16_5YR_B19037_with_ann!BS62","v":70},{"$f":"[1]ACS_16_5YR_B19037_with_ann!BT62","v":47},{"$f":"[1]ACS_16_5YR_B19037_with_ann!BU62","v":53},{"$f":"[1]ACS_16_5YR_B19037_with_ann!BV62","v":1231},{"$f":"[1]ACS_16_5YR_B19037_with_ann!BW62","v":190},{"$f":"[1]ACS_16_5YR_B19037_with_ann!BX62","v":12},{"$f":"[1]ACS_16_5YR_B19037_with_ann!BY62","v":21},{"$f":"[1]ACS_16_5YR_B19037_with_ann!BZ62","v":27},{"$f":"[1]ACS_16_5YR_B19037_with_ann!CA62","v":33},{"$f":"[1]ACS_16_5YR_B19037_with_ann!CB62","v":49},{"$f":"[1]ACS_16_5YR_B19037_with_ann!CC62","v":67},{"$f":"[1]ACS_16_5YR_B19037_with_ann!CD62","v":25},{"$f":"[1]ACS_16_5YR_B19037_with_ann!CE62","v":34},{"$f":"[1]ACS_16_5YR_B19037_with_ann!CF62","v":94},{"$f":"[1]ACS_16_5YR_B19037_with_ann!CG62","v":81},{"$f":"[1]ACS_16_5YR_B19037_with_ann!CH62","v":134},{"$f":"[1]ACS_16_5YR_B19037_with_ann!CI62","v":154},{"$f":"[1]ACS_16_5YR_B19037_with_ann!CJ62","v":0},{"$f":"[1]ACS_16_5YR_B19037_with_ann!CK62","v":17},{"$f":"[1]ACS_16_5YR_B19037_with_ann!CL62","v":51},{"$f":"[1]ACS_16_5YR_B19037_with_ann!CM62","v":59},{"$f":"[1]ACS_16_5YR_B19037_with_ann!CN62","v":32},{"$f":"[1]ACS_16_5YR_B19037_with_ann!CO62","v":37},{"$f":"[1]ACS_16_5YR_B19037_with_ann!CP62","v":43},{"$f":"[1]ACS_16_5YR_B19037_with_ann!CQ62","v":38},{"$f":"[1]ACS_16_5YR_B19037_with_ann!CR62","v":99},{"$f":"[1]ACS_16_5YR_B19037_with_ann!CS62","v":95},{"$f":"[1]ACS_16_5YR_B19037_with_ann!CT62","v":142},{"$f":"[1]ACS_16_5YR_B19037_with_ann!CU62","v":77},{"$f":"[1]ACS_16_5YR_B19037_with_ann!CV62","v":182},{"$f":"[1]ACS_16_5YR_B19037_with_ann!CW62","v":102},{"$f":"[1]ACS_16_5YR_B19037_with_ann!CX62","v":159},{"$f":"[1]ACS_16_5YR_B19037_with_ann!CY62","v":102},{"$f":"[1]ACS_16_5YR_B19037_with_ann!CZ62","v":108},{"$f":"[1]ACS_16_5YR_B19037_with_ann!DA62","v":64},{"$f":"[1]ACS_16_5YR_B19037_with_ann!DB62","v":74},{"$f":"[1]ACS_16_5YR_B19037_with_ann!DC62","v":66},{"$f":"[1]ACS_16_5YR_B19037_with_ann!DD62","v":1142},{"$f":"[1]ACS_16_5YR_B19037_with_ann!DE62","v":174},{"$f":"[1]ACS_16_5YR_B19037_with_ann!DF62","v":20},{"$f":"[1]ACS_16_5YR_B19037_with_ann!DG62","v":28},{"$f":"[1]ACS_16_5YR_B19037_with_ann!DH62","v":0},{"$f":"[1]ACS_16_5YR_B19037_with_ann!DI62","v":17},{"$f":"[1]ACS_16_5YR_B19037_with_ann!DJ62","v":129},{"$f":"[1]ACS_16_5YR_B19037_with_ann!DK62","v":85},{"$f":"[1]ACS_16_5YR_B19037_with_ann!DL62","v":56},{"$f":"[1]ACS_16_5YR_B19037_with_ann!DM62","v":43},{"$f":"[1]ACS_16_5YR_B19037_with_ann!DN62","v":20},{"$f":"[1]ACS_16_5YR_B19037_with_ann!DO62","v":23},{"$f":"[1]ACS_16_5YR_B19037_with_ann!DP62","v":11},{"$f":"[1]ACS_16_5YR_B19037_with_ann!DQ62","v":19},{"$f":"[1]ACS_16_5YR_B19037_with_ann!DR62","v":77},{"$f":"[1]ACS_16_5YR_B19037_with_ann!DS62","v":48},{"$f":"[1]ACS_16_5YR_B19037_with_ann!DT62","v":59},{"$f":"[1]ACS_16_5YR_B19037_with_ann!DU62","v":48},{"$f":"[1]ACS_16_5YR_B19037_with_ann!DV62","v":42},{"$f":"[1]ACS_16_5YR_B19037_with_ann!DW62","v":44},{"$f":"[1]ACS_16_5YR_B19037_with_ann!DX62","v":74},{"$f":"[1]ACS_16_5YR_B19037_with_ann!DY62","v":52},{"$f":"[1]ACS_16_5YR_B19037_with_ann!DZ62","v":209},{"$f":"[1]ACS_16_5YR_B19037_with_ann!EA62","v":121},{"$f":"[1]ACS_16_5YR_B19037_with_ann!EB62","v":129},{"$f":"[1]ACS_16_5YR_B19037_with_ann!EC62","v":64},{"$f":"[1]ACS_16_5YR_B19037_with_ann!ED62","v":164},{"$f":"[1]ACS_16_5YR_B19037_with_ann!EE62","v":116},{"$f":"[1]ACS_16_5YR_B19037_with_ann!EF62","v":79},{"$f":"[1]ACS_16_5YR_B19037_with_ann!EG62","v":84},{"$f":"[1]ACS_16_5YR_B19037_with_ann!EH62","v":13},{"$f":"[1]ACS_16_5YR_B19037_with_ann!EI62","v":15},{"$f":"[1]ACS_16_5YR_B19037_with_ann!EJ62","v":60},{"$f":"[1]ACS_16_5YR_B19037_with_ann!EK62","v":52}]
["06000US3300577380","0600000US3300578420","060",{"$f":"[1]ACS_16_5YR_B19037_with_ann!C63","v":"Troy"},{"$f":"[1]ACS_16_5YR_B19037_with_ann!D63","v":758},{"$f":"[1]ACS_16_5YR_B19037_with_ann!E63","v":101},{"$f":"[1]ACS_16_5YR_B19037_with_ann!F63","v":11},{"$f":"[1]ACS_16_5YR_B19037_with_ann!G63","v":12},{"$f":"[1]ACS_16_5YR_B19037_with_ann!H63","v":0},{"$f":"[1]ACS_16_5YR_B19037_with_ann!I63","v":12},{"$f":"[1]ACS_16_5YR_B19037_with_ann!J63","v":0},{"$f":"[1]ACS_16_5YR_B19037_with_ann!K63","v":12},{"$f":"[1]ACS_16_5YR_B19037_with_ann!L63","v":0},{"$f":"[1]ACS_16_5YR_B19037_with_ann!M63","v":12},{"$f":"[1]ACS_16_5YR_B19037_with_ann!N63","v":0},{"$f":"[1]ACS_16_5YR_B19037_with_ann!O63","v":12},{"$f":"[1]ACS_16_5YR_B19037_with_ann!P63","v":0},{"$f":"[1]ACS_16_5YR_B19037_with_ann!Q63","v":12},{"$f":"[1]ACS_16_5YR_B19037_with_ann!R63","v":0},{"$f":"[1]ACS_16_5YR_B19037_with_ann!S63","v":12},{"$f":"[1]ACS_16_5YR_B19037_with_ann!T63","v":0},{"$f":"[1]ACS_16_5YR_B19037_with_ann!U63","v":12},{"$f":"[1]ACS_16_5YR_B19037_with_ann!V63","v":0},{"$f":"[1]ACS_16_5YR_B19037_with_ann!W63","v":12},{"$f":"[1]ACS_16_5YR_B19037_with_ann!X63","v":0},{"$f":"[1]ACS_16_5YR_B19037_with_ann!Y63","v":12},{"$f":"[1]ACS_16_5YR_B19037_with_ann!Z63","v":0},{"$f":"[1]ACS_16_5YR_B19037_with_ann!AA63","v":12},{"$f":"[1]ACS_16_5YR_B19037_with_ann!AB63","v":5},{"$f":"[1]ACS_16_5YR_B19037_with_ann!AC63","v":7},{"$f":"[1]ACS_16_5YR_B19037_with_ann!AD63","v":6},{"$f":"[1]ACS_16_5YR_B19037_with_ann!AE63","v":10},{"$f":"[1]ACS_16_5YR_B19037_with_ann!AF63","v":0},{"$f":"[1]ACS_16_5YR_B19037_with_ann!AG63","v":12},{"$f":"[1]ACS_16_5YR_B19037_with_ann!AH63","v":0},{"$f":"[1]ACS_16_5YR_B19037_with_ann!AI63","v":12},{"$f":"[1]ACS_16_5YR_B19037_with_ann!AJ63","v":0},{"$f":"[1]ACS_16_5YR_B19037_with_ann!AK63","v":12},{"$f":"[1]ACS_16_5YR_B19037_with_ann!AL63","v":0},{"$f":"[1]ACS_16_5YR_B19037_with_ann!AM63","v":12},{"$f":"[1]ACS_16_5YR_B19037_with_ann!AN63","v":288},{"$f":"[1]ACS_16_5YR_B19037_with_ann!AO63","v":77},{"$f":"[1]ACS_16_5YR_B19037_with_ann!AP63","v":7},{"$f":"[1]ACS_16_5YR_B19037_with_ann!AQ63","v":10},{"$f":"[1]ACS_16_5YR_B19037_with_ann!AR63","v":0},{"$f":"[1]ACS_16_5YR_B19037_with_ann!AS63","v":12},{"$f":"[1]ACS_16_5YR_B19037_with_ann!AT63","v":0},{"$f":"[1]ACS_16_5YR_B19037_with_ann!AU63","v":12},{"$f":"[1]ACS_16_5YR_B19037_with_ann!AV63","v":7},{"$f":"[1]ACS_16_5YR_B19037_with_ann!AW63","v":11},{"$f":"[1]ACS_16_5YR_B19037_with_ann!AX63","v":34},{"$f":"[1]ACS_16_5YR_B19037_with_ann!AY63","v":33},{"$f":"[1]ACS_16_5YR_B19037_with_ann!AZ63","v":12},{"$f":"[1]ACS_16_5YR_B19037_with_ann!BA63","v":19},{"$f":"[1]ACS_16_5YR_B19037_with_ann!BB63","v":0},{"$f":"[1]ACS_16_5YR_B19037_with_ann!BC63","v":12},{"$f":"[1]ACS_16_5YR_B19037_with_ann!BD63","v":0},{"$f":"[1]ACS_16_5YR_B19037_with_ann!BE63","v":12},{"$f":"[1]ACS_16_5YR_B19037_with_ann!BF63","v":0},{"$f":"[1]ACS_16_5YR_B19037_with_ann!BG63","v":12},{"$f":"[1]ACS_16_5YR_B19037_with_ann!BH63","v":73},{"$f":"[1]ACS_16_5YR_B19037_with_ann!BI63","v":39},{"$f":"[1]ACS_16_5YR_B19037_with_ann!BJ63","v":4},{"$f":"[1]ACS_16_5YR_B19037_with_ann!BK63","v":6},{"$f":"[1]ACS_16_5YR_B19037_with_ann!BL63","v":44},{"$f":"[1]ACS_16_5YR_B19037_with_ann!BM63","v":31},{"$f":"[1]ACS_16_5YR_B19037_with_ann!BN63","v":24},{"$f":"[1]ACS_16_5YR_B19037_with_ann!BO63","v":25},{"$f":"[1]ACS_16_5YR_B19037_with_ann!BP63","v":20},{"$f":"[1]ACS_16_5YR_B19037_with_ann!BQ63","v":22},{"$f":"[1]ACS_16_5YR_B19037_with_ann!BR63","v":43},{"$f":"[1]ACS_16_5YR_B19037_with_ann!BS63","v":40},{"$f":"[1]ACS_16_5YR_B19037_with_ann!BT63","v":20},{"$f":"[1]ACS_16_5YR_B19037_with_ann!BU63","v":14},{"$f":"[1]ACS_16_5YR_B19037_with_ann!BV63","v":234},{"$f":"[1]ACS_16_5YR_B19037_with_ann!BW63","v":73},{"$f":"[1]ACS_16_5YR_B19037_with_ann!BX63","v":26},{"$f":"[1]ACS_16_5YR_B19037_with_ann!BY63","v":29},{"$f":"[1]ACS_16_5YR_B19037_with_ann!BZ63","v":7},{"$f":"[1]ACS_16_5YR_B19037_with_ann!CA63","v":11},{"$f":"[1]ACS_16_5YR_B19037_with_ann!CB63","v":0},{"$f":"[1]ACS_16_5YR_B19037_with_ann!CC63","v":12},{"$f":"[1]ACS_16_5YR_B19037_with_ann!CD63","v":36},{"$f":"[1]ACS_16_5YR_B19037_with_ann!CE63","v":36},{"$f":"[1]ACS_16_5YR_B19037_with_ann!CF63","v":4},{"$f":"[1]ACS_16_5YR_B19037_with_ann!CG63","v":6},{"$f":"[1]ACS_16_5YR_B19037_with_ann!CH63","v":15},{"$f":"[1]ACS_16_5YR_B19037_with_ann!CI63","v":24},{"$f":"[1]ACS_16_5YR_B19037_with_ann!CJ63","v":4},{"$f":"[1]ACS_16_5YR_B19037_with_ann!CK63","v":7},{"$f":"[1]ACS_16_5YR_B19037_with_ann!CL63","v":7},{"$f":"[1]ACS_16_5YR_B19037_with_ann!CM63","v":9},{"$f":"[1]ACS_16_5YR_B19037_with_ann!CN63","v":5},{"$f":"[1]ACS_16_5YR_B19037_with_ann!CO63","v":7},{"$f":"[1]ACS_16_5YR_B19037_with_ann!CP63","v":24},{"$f":"[1]ACS_16_5YR_B19037_with_ann!CQ63","v":15},{"$f":"[1]ACS_16_5YR_B19037_with_ann!CR63","v":14},{"$f":"[1]ACS_16_5YR_B19037_with_ann!CS63","v":13},{"$f":"[1]ACS_16_5YR_B19037_with_ann!CT63","v":28},{"$f":"[1]ACS_16_5YR_B19037_with_ann!CU63","v":18},{"$f":"[1]ACS_16_5YR_B19037_with_ann!CV63","v":28},{"$f":"[1]ACS_16_5YR_B19037_with_ann!CW63","v":19},{"$f":"[1]ACS_16_5YR_B19037_with_ann!CX63","v":13},{"$f":"[1]ACS_16_5YR_B19037_with_ann!CY63","v":14},{"$f":"[1]ACS_16_5YR_B19037_with_ann!CZ63","v":0},{"$f":"[1]ACS_16_5YR_B19037_with_ann!DA63","v":12},{"$f":"[1]ACS_16_5YR_B19037_with_ann!DB63","v":23},{"$f":"[1]ACS_16_5YR_B19037_with_ann!DC63","v":21},{"$f":"[1]ACS_16_5YR_B19037_with_ann!DD63","v":225},{"$f":"[1]ACS_16_5YR_B19037_with_ann!DE63","v":54},{"$f":"[1]ACS_16_5YR_B19037_with_ann!DF63","v":0},{"$f":"[1]ACS_16_5YR_B19037_with_ann!DG63","v":12},{"$f":"[1]ACS_16_5YR_B19037_with_ann!DH63","v":15},{"$f":"[1]ACS_16_5YR_B19037_with_ann!DI63","v":14},{"$f":"[1]ACS_16_5YR_B19037_with_ann!DJ63","v":11},{"$f":"[1]ACS_16_5YR_B19037_with_ann!DK63","v":17},{"$f":"[1]ACS_16_5YR_B19037_with_ann!DL63","v":6},{"$f":"[1]ACS_16_5YR_B19037_with_ann!DM63","v":8},{"$f":"[1]ACS_16_5YR_B19037_with_ann!DN63","v":51},{"$f":"[1]ACS_16_5YR_B19037_with_ann!DO63","v":36},{"$f":"[1]ACS_16_5YR_B19037_with_ann!DP63","v":15},{"$f":"[1]ACS_16_5YR_B19037_with_ann!DQ63","v":25},{"$f":"[1]ACS_16_5YR_B19037_with_ann!DR63","v":16},{"$f":"[1]ACS_16_5YR_B19037_with_ann!DS63","v":24},{"$f":"[1]ACS_16_5YR_B19037_with_ann!DT63","v":4},{"$f":"[1]ACS_16_5YR_B19037_with_ann!DU63","v":6},{"$f":"[1]ACS_16_5YR_B19037_with_ann!DV63","v":8},{"$f":"[1]ACS_16_5YR_B19037_with_ann!DW63","v":9},{"$f":"[1]ACS_16_5YR_B19037_with_ann!DX63","v":14},{"$f":"[1]ACS_16_5YR_B19037_with_ann!DY63","v":13},{"$f":"[1]ACS_16_5YR_B19037_with_ann!DZ63","v":27},{"$f":"[1]ACS_16_5YR_B19037_with_ann!EA63","v":18},{"$f":"[1]ACS_16_5YR_B19037_with_ann!EB63","v":11},{"$f":"[1]ACS_16_5YR_B19037_with_ann!EC63","v":11},{"$f":"[1]ACS_16_5YR_B19037_with_ann!ED63","v":17},{"$f":"[1]ACS_16_5YR_B19037_with_ann!EE63","v":15},{"$f":"[1]ACS_16_5YR_B19037_with_ann!EF63","v":12},{"$f":"[1]ACS_16_5YR_B19037_with_ann!EG63","v":17},{"$f":"[1]ACS_16_5YR_B19037_with_ann!EH63","v":18},{"$f":"[1]ACS_16_5YR_B19037_with_ann!EI63","v":19},{"$f":"[1]ACS_16_5YR_B19037_with_ann!EJ63","v":0},{"$f":"[1]ACS_16_5YR_B19037_with_ann!EK63","v":12}]
["06000US3300578420","0600000US3300582660","060",{"$f":"[1]ACS_16_5YR_B19037_with_ann!C64","v":"Walpole"},{"$f":"[1]ACS_16_5YR_B19037_with_ann!D64","v":1427},{"$f":"[1]ACS_16_5YR_B19037_with_ann!E64","v":121},{"$f":"[1]ACS_16_5YR_B19037_with_ann!F64","v":5},{"$f":"[1]ACS_16_5YR_B19037_with_ann!G64","v":9},{"$f":"[1]ACS_16_5YR_B19037_with_ann!H64","v":0},{"$f":"[1]ACS_16_5YR_B19037_with_ann!I64","v":12},{"$f":"[1]ACS_16_5YR_B19037_with_ann!J64","v":0},{"$f":"[1]ACS_16_5YR_B19037_with_ann!K64","v":12},{"$f":"[1]ACS_16_5YR_B19037_with_ann!L64","v":0},{"$f":"[1]ACS_16_5YR_B19037_with_ann!M64","v":12},{"$f":"[1]ACS_16_5YR_B19037_with_ann!N64","v":0},{"$f":"[1]ACS_16_5YR_B19037_with_ann!O64","v":12},{"$f":"[1]ACS_16_5YR_B19037_with_ann!P64","v":0},{"$f":"[1]ACS_16_5YR_B19037_with_ann!Q64","v":12},{"$f":"[1]ACS_16_5YR_B19037_with_ann!R64","v":0},{"$f":"[1]ACS_16_5YR_B19037_with_ann!S64","v":12},{"$f":"[1]ACS_16_5YR_B19037_with_ann!T64","v":0},{"$f":"[1]ACS_16_5YR_B19037_with_ann!U64","v":12},{"$f":"[1]ACS_16_5YR_B19037_with_ann!V64","v":0},{"$f":"[1]ACS_16_5YR_B19037_with_ann!W64","v":12},{"$f":"[1]ACS_16_5YR_B19037_with_ann!X64","v":0},{"$f":"[1]ACS_16_5YR_B19037_with_ann!Y64","v":12},{"$f":"[1]ACS_16_5YR_B19037_with_ann!Z64","v":0},{"$f":"[1]ACS_16_5YR_B19037_with_ann!AA64","v":12},{"$f":"[1]ACS_16_5YR_B19037_with_ann!AB64","v":5},{"$f":"[1]ACS_16_5YR_B19037_with_ann!AC64","v":9},{"$f":"[1]ACS_16_5YR_B19037_with_ann!AD64","v":0},{"$f":"[1]ACS_16_5YR_B19037_with_ann!AE64","v":12},{"$f":"[1]ACS_16_5YR_B19037_with_ann!AF64","v":0},{"$f":"[1]ACS_16_5YR_B19037_with_ann!AG64","v":12},{"$f":"[1]ACS_16_5YR_B19037_with_ann!AH64","v":0},{"$f":"[1]ACS_16_5YR_B19037_with_ann!AI64","v":12},{"$f":"[1]ACS_16_5YR_B19037_with_ann!AJ64","v":0},{"$f":"[1]ACS_16_5YR_B19037_with_ann!AK64","v":12},{"$f":"[1]ACS_16_5YR_B19037_with_ann!AL64","v":0},{"$f":"[1]ACS_16_5YR_B19037_with_ann!AM64","v":12},{"$f":"[1]ACS_16_5YR_B19037_with_ann!AN64","v":313},{"$f":"[1]ACS_16_5YR_B19037_with_ann!AO64","v":96},{"$f":"[1]ACS_16_5YR_B19037_with_ann!AP64","v":0},{"$f":"[1]ACS_16_5YR_B19037_with_ann!AQ64","v":12},{"$f":"[1]ACS_16_5YR_B19037_with_ann!AR64","v":0},{"$f":"[1]ACS_16_5YR_B19037_with_ann!AS64","v":12},{"$f":"[1]ACS_16_5YR_B19037_with_ann!AT64","v":0},{"$f":"[1]ACS_16_5YR_B19037_with_ann!AU64","v":12},{"$f":"[1]ACS_16_5YR_B19037_with_ann!AV64","v":0},{"$f":"[1]ACS_16_5YR_B19037_with_ann!AW64","v":12},{"$f":"[1]ACS_16_5YR_B19037_with_ann!AX64","v":0},{"$f":"[1]ACS_16_5YR_B19037_with_ann!AY64","v":12},{"$f":"[1]ACS_16_5YR_B19037_with_ann!AZ64","v":12},{"$f":"[1]ACS_16_5YR_B19037_with_ann!BA64","v":19},{"$f":"[1]ACS_16_5YR_B19037_with_ann!BB64","v":0},{"$f":"[1]ACS_16_5YR_B19037_with_ann!BC64","v":12},{"$f":"[1]ACS_16_5YR_B19037_with_ann!BD64","v":0},{"$f":"[1]ACS_16_5YR_B19037_with_ann!BE64","v":12},{"$f":"[1]ACS_16_5YR_B19037_with_ann!BF64","v":7},{"$f":"[1]ACS_16_5YR_B19037_with_ann!BG64","v":12},{"$f":"[1]ACS_16_5YR_B19037_with_ann!BH64","v":26},{"$f":"[1]ACS_16_5YR_B19037_with_ann!BI64","v":26},{"$f":"[1]ACS_16_5YR_B19037_with_ann!BJ64","v":7},{"$f":"[1]ACS_16_5YR_B19037_with_ann!BK64","v":10},{"$f":"[1]ACS_16_5YR_B19037_with_ann!BL64","v":65},{"$f":"[1]ACS_16_5YR_B19037_with_ann!BM64","v":46},{"$f":"[1]ACS_16_5YR_B19037_with_ann!BN64","v":77},{"$f":"[1]ACS_16_5YR_B19037_with_ann!BO64","v":75},{"$f":"[1]ACS_16_5YR_B19037_with_ann!BP64","v":45},{"$f":"[1]ACS_16_5YR_B19037_with_ann!BQ64","v":37},{"$f":"[1]ACS_16_5YR_B19037_with_ann!BR64","v":49},{"$f":"[1]ACS_16_5YR_B19037_with_ann!BS64","v":41},{"$f":"[1]ACS_16_5YR_B19037_with_ann!BT64","v":25},{"$f":"[1]ACS_16_5YR_B19037_with_ann!BU64","v":42},{"$f":"[1]ACS_16_5YR_B19037_with_ann!BV64","v":584},{"$f":"[1]ACS_16_5YR_B19037_with_ann!BW64","v":105},{"$f":"[1]ACS_16_5YR_B19037_with_ann!BX64","v":32},{"$f":"[1]ACS_16_5YR_B19037_with_ann!BY64","v":38},{"$f":"[1]ACS_16_5YR_B19037_with_ann!BZ64","v":0},{"$f":"[1]ACS_16_5YR_B19037_with_ann!CA64","v":12},{"$f":"[1]ACS_16_5YR_B19037_with_ann!CB64","v":26},{"$f":"[1]ACS_16_5YR_B19037_with_ann!CC64","v":31},{"$f":"[1]ACS_16_5YR_B19037_with_ann!CD64","v":7},{"$f":"[1]ACS_16_5YR_B19037_with_ann!CE64","v":11},{"$f":"[1]ACS_16_5YR_B19037_with_ann!CF64","v":0},{"$f":"[1]ACS_16_5YR_B19037_with_ann!CG64","v":12},{"$f":"[1]ACS_16_5YR_B19037_with_ann!CH64","v":0},{"$f":"[1]ACS_16_5YR_B19037_with_ann!CI64","v":12},{"$f":"[1]ACS_16_5YR_B19037_with_ann!CJ64","v":45},{"$f":"[1]ACS_16_5YR_B19037_with_ann!CK64","v":56},{"$f":"[1]ACS_16_5YR_B19037_with_ann!CL64","v":7},{"$f":"[1]ACS_16_5YR_B19037_with_ann!CM64","v":11},{"$f":"[1]ACS_16_5YR_B19037_with_ann!CN64","v":70},{"$f":"[1]ACS_16_5YR_B19037_with_ann!CO64","v":61},{"$f":"[1]ACS_16_5YR_B19037_with_ann!CP64","v":70},{"$f":"[1]ACS_16_5YR_B19037_with_ann!CQ64","v":57},{"$f":"[1]ACS_16_5YR_B19037_with_ann!CR64","v":39},{"$f":"[1]ACS_16_5YR_B19037_with_ann!CS64","v":34},{"$f":"[1]ACS_16_5YR_B19037_with_ann!CT64","v":28},{"$f":"[1]ACS_16_5YR_B19037_with_ann!CU64","v":20},{"$f":"[1]ACS_16_5YR_B19037_with_ann!CV64","v":41},{"$f":"[1]ACS_16_5YR_B19037_with_ann!CW64","v":38},{"$f":"[1]ACS_16_5YR_B19037_with_ann!CX64","v":81},{"$f":"[1]ACS_16_5YR_B19037_with_ann!CY64","v":56},{"$f":"[1]ACS_16_5YR_B19037_with_ann!CZ64","v":70},{"$f":"[1]ACS_16_5YR_B19037_with_ann!DA64","v":50},{"$f":"[1]ACS_16_5YR_B19037_with_ann!DB64","v":68},{"$f":"[1]ACS_16_5YR_B19037_with_ann!DC64","v":44},{"$f":"[1]ACS_16_5YR_B19037_with_ann!DD64","v":525},{"$f":"[1]ACS_16_5YR_B19037_with_ann!DE64","v":99},{"$f":"[1]ACS_16_5YR_B19037_with_ann!DF64","v":150},{"$f":"[1]ACS_16_5YR_B19037_with_ann!DG64","v":107},{"$f":"[1]ACS_16_5YR_B19037_with_ann!DH64","v":0},{"$f":"[1]ACS_16_5YR_B19037_with_ann!DI64","v":12},{"$f":"[1]ACS_16_5YR_B19037_with_ann!DJ64","v":9},{"$f":"[1]ACS_16_5YR_B19037_with_ann!DK64","v":12},{"$f":"[1]ACS_16_5YR_B19037_with_ann!DL64","v":0},{"$f":"[1]ACS_16_5YR_B19037_with_ann!DM64","v":12},{"$f":"[1]ACS_16_5YR_B19037_with_ann!DN64","v":37},{"$f":"[1]ACS_16_5YR_B19037_with_ann!DO64","v":30},{"$f":"[1]ACS_16_5YR_B19037_with_ann!DP64","v":7},{"$f":"[1]ACS_16_5YR_B19037_with_ann!DQ64","v":11},{"$f":"[1]ACS_16_5YR_B19037_with_ann!DR64","v":6},{"$f":"[1]ACS_16_5YR_B19037_with_ann!DS64","v":11},{"$f":"[1]ACS_16_5YR_B19037_with_ann!DT64","v":0},{"$f":"[1]ACS_16_5YR_B19037_with_ann!DU64","v":12},{"$f":"[1]ACS_16_5YR_B19037_with_ann!DV64","v":6},{"$f":"[1]ACS_16_5YR_B19037_with_ann!DW64","v":11},{"$f":"[1]ACS_16_5YR_B19037_with_ann!DX64","v":43},{"$f":"[1]ACS_16_5YR_B19037_with_ann!DY64","v":28},{"$f":"[1]ACS_16_5YR_B19037_with_ann!DZ64","v":45},{"$f":"[1]ACS_16_5YR_B19037_with_ann!EA64","v":31},{"$f":"[1]ACS_16_5YR_B19037_with_ann!EB64","v":40},{"$f":"[1]ACS_16_5YR_B19037_with_ann!EC64","v":28},{"$f":"[1]ACS_16_5YR_B19037_with_ann!ED64","v":55},{"$f":"[1]ACS_16_5YR_B19037_with_ann!EE64","v":39},{"$f":"[1]ACS_16_5YR_B19037_with_ann!EF64","v":15},{"$f":"[1]ACS_16_5YR_B19037_with_ann!EG64","v":12},{"$f":"[1]ACS_16_5YR_B19037_with_ann!EH64","v":43},{"$f":"[1]ACS_16_5YR_B19037_with_ann!EI64","v":37},{"$f":"[1]ACS_16_5YR_B19037_with_ann!EJ64","v":69},{"$f":"[1]ACS_16_5YR_B19037_with_ann!EK64","v":48}]
["06000US3300582660","0600000US3300585540","060",{"$f":"[1]ACS_16_5YR_B19037_with_ann!C65","v":"Westmoreland"},{"$f":"[1]ACS_16_5YR_B19037_with_ann!D65","v":885},{"$f":"[1]ACS_16_5YR_B19037_with_ann!E65","v":182},{"$f":"[1]ACS_16_5YR_B19037_with_ann!F65","v":5},{"$f":"[1]ACS_16_5YR_B19037_with_ann!G65","v":6},{"$f":"[1]ACS_16_5YR_B19037_with_ann!H65","v":0},{"$f":"[1]ACS_16_5YR_B19037_with_ann!I65","v":12},{"$f":"[1]ACS_16_5YR_B19037_with_ann!J65","v":0},{"$f":"[1]ACS_16_5YR_B19037_with_ann!K65","v":12},{"$f":"[1]ACS_16_5YR_B19037_with_ann!L65","v":0},{"$f":"[1]ACS_16_5YR_B19037_with_ann!M65","v":12},{"$f":"[1]ACS_16_5YR_B19037_with_ann!N65","v":0},{"$f":"[1]ACS_16_5YR_B19037_with_ann!O65","v":12},{"$f":"[1]ACS_16_5YR_B19037_with_ann!P65","v":0},{"$f":"[1]ACS_16_5YR_B19037_with_ann!Q65","v":12},{"$f":"[1]ACS_16_5YR_B19037_with_ann!R65","v":0},{"$f":"[1]ACS_16_5YR_B19037_with_ann!S65","v":12},{"$f":"[1]ACS_16_5YR_B19037_with_ann!T65","v":0},{"$f":"[1]ACS_16_5YR_B19037_with_ann!U65","v":12},{"$f":"[1]ACS_16_5YR_B19037_with_ann!V65","v":0},{"$f":"[1]ACS_16_5YR_B19037_with_ann!W65","v":12},{"$f":"[1]ACS_16_5YR_B19037_with_ann!X65","v":0},{"$f":"[1]ACS_16_5YR_B19037_with_ann!Y65","v":12},{"$f":"[1]ACS_16_5YR_B19037_with_ann!Z65","v":0},{"$f":"[1]ACS_16_5YR_B19037_with_ann!AA65","v":12},{"$f":"[1]ACS_16_5YR_B19037_with_ann!AB65","v":0},{"$f":"[1]ACS_16_5YR_B19037_with_ann!AC65","v":12},{"$f":"[1]ACS_16_5YR_B19037_with_ann!AD65","v":2},{"$f":"[1]ACS_16_5YR_B19037_with_ann!AE65","v":3},{"$f":"[1]ACS_16_5YR_B19037_with_ann!AF65","v":0},{"$f":"[1]ACS_16_5YR_B19037_with_ann!AG65","v":12},{"$f":"[1]ACS_16_5YR_B19037_with_ann!AH65","v":0},{"$f":"[1]ACS_16_5YR_B19037_with_ann!AI65","v":12},{"$f":"[1]ACS_16_5YR_B19037_with_ann!AJ65","v":3},{"$f":"[1]ACS_16_5YR_B19037_with_ann!AK65","v":5},{"$f":"[1]ACS_16_5YR_B19037_with_ann!AL65","v":0},{"$f":"[1]ACS_16_5YR_B19037_with_ann!AM65","v":12},{"$f":"[1]ACS_16_5YR_B19037_with_ann!AN65","v":168},{"$f":"[1]ACS_16_5YR_B19037_with_ann!AO65","v":74},{"$f":"[1]ACS_16_5YR_B19037_with_ann!AP65","v":0},{"$f":"[1]ACS_16_5YR_B19037_with_ann!AQ65","v":12},{"$f":"[1]ACS_16_5YR_B19037_with_ann!AR65","v":0},{"$f":"[1]ACS_16_5YR_B19037_with_ann!AS65","v":12},{"$f":"[1]ACS_16_5YR_B19037_with_ann!AT65","v":0},{"$f":"[1]ACS_16_5YR_B19037_with_ann!AU65","v":12},{"$f":"[1]ACS_16_5YR_B19037_with_ann!AV65","v":0},{"$f":"[1]ACS_16_5YR_B19037_with_ann!AW65","v":12},{"$f":"[1]ACS_16_5YR_B19037_with_ann!AX65","v":0},{"$f":"[1]ACS_16_5YR_B19037_with_ann!AY65","v":12},{"$f":"[1]ACS_16_5YR_B19037_with_ann!AZ65","v":0},{"$f":"[1]ACS_16_5YR_B19037_with_ann!BA65","v":12},{"$f":"[1]ACS_16_5YR_B19037_with_ann!BB65","v":0},{"$f":"[1]ACS_16_5YR_B19037_with_ann!BC65","v":12},{"$f":"[1]ACS_16_5YR_B19037_with_ann!BD65","v":8},{"$f":"[1]ACS_16_5YR_B19037_with_ann!BE65","v":15},{"$f":"[1]ACS_16_5YR_B19037_with_ann!BF65","v":0},{"$f":"[1]ACS_16_5YR_B19037_with_ann!BG65","v":12},{"$f":"[1]ACS_16_5YR_B19037_with_ann!BH65","v":45},{"$f":"[1]ACS_16_5YR_B19037_with_ann!BI65","v":57},{"$f":"[1]ACS_16_5YR_B19037_with_ann!BJ65","v":0},{"$f":"[1]ACS_16_5YR_B19037_with_ann!BK65","v":12},{"$f":"[1]ACS_16_5YR_B19037_with_ann!BL65","v":33},{"$f":"[1]ACS_16_5YR_B19037_with_ann!BM65","v":25},{"$f":"[1]ACS_16_5YR_B19037_with_ann!BN65","v":6},{"$f":"[1]ACS_16_5YR_B19037_with_ann!BO65","v":7},{"$f":"[1]ACS_16_5YR_B19037_with_ann!BP65","v":10},{"$f":"[1]ACS_16_5YR_B19037_with_ann!BQ65","v":8},{"$f":"[1]ACS_16_5YR_B19037_with_ann!BR65","v":47},{"$f":"[1]ACS_16_5YR_B19037_with_ann!BS65","v":39},{"$f":"[1]ACS_16_5YR_B19037_with_ann!BT65","v":19},{"$f":"[1]ACS_16_5YR_B19037_with_ann!BU65","v":21},{"$f":"[1]ACS_16_5YR_B19037_with_ann!BV65","v":374},{"$f":"[1]ACS_16_5YR_B19037_with_ann!BW65","v":95},{"$f":"[1]ACS_16_5YR_B19037_with_ann!BX65","v":0},{"$f":"[1]ACS_16_5YR_B19037_with_ann!BY65","v":12},{"$f":"[1]ACS_16_5YR_B19037_with_ann!BZ65","v":0},{"$f":"[1]ACS_16_5YR_B19037_with_ann!CA65","v":12},{"$f":"[1]ACS_16_5YR_B19037_with_ann!CB65","v":36},{"$f":"[1]ACS_16_5YR_B19037_with_ann!CC65","v":44},{"$f":"[1]ACS_16_5YR_B19037_with_ann!CD65","v":0},{"$f":"[1]ACS_16_5YR_B19037_with_ann!CE65","v":12},{"$f":"[1]ACS_16_5YR_B19037_with_ann!CF65","v":7},{"$f":"[1]ACS_16_5YR_B19037_with_ann!CG65","v":8},{"$f":"[1]ACS_16_5YR_B19037_with_ann!CH65","v":0},{"$f":"[1]ACS_16_5YR_B19037_with_ann!CI65","v":12},{"$f":"[1]ACS_16_5YR_B19037_with_ann!CJ65","v":0},{"$f":"[1]ACS_16_5YR_B19037_with_ann!CK65","v":12},{"$f":"[1]ACS_16_5YR_B19037_with_ann!CL65","v":4},{"$f":"[1]ACS_16_5YR_B19037_with_ann!CM65","v":6},{"$f":"[1]ACS_16_5YR_B19037_with_ann!CN65","v":14},{"$f":"[1]ACS_16_5YR_B19037_with_ann!CO65","v":17},{"$f":"[1]ACS_16_5YR_B19037_with_ann!CP65","v":15},{"$f":"[1]ACS_16_5YR_B19037_with_ann!CQ65","v":20},{"$f":"[1]ACS_16_5YR_B19037_with_ann!CR65","v":25},{"$f":"[1]ACS_16_5YR_B19037_with_ann!CS65","v":18},{"$f":"[1]ACS_16_5YR_B19037_with_ann!CT65","v":18},{"$f":"[1]ACS_16_5YR_B19037_with_ann!CU65","v":14},{"$f":"[1]ACS_16_5YR_B19037_with_ann!CV65","v":113},{"$f":"[1]ACS_16_5YR_B19037_with_ann!CW65","v":78},{"$f":"[1]ACS_16_5YR_B19037_with_ann!CX65","v":20},{"$f":"[1]ACS_16_5YR_B19037_with_ann!CY65","v":14},{"$f":"[1]ACS_16_5YR_B19037_with_ann!CZ65","v":58},{"$f":"[1]ACS_16_5YR_B19037_with_ann!DA65","v":29},{"$f":"[1]ACS_16_5YR_B19037_with_ann!DB65","v":64},{"$f":"[1]ACS_16_5YR_B19037_with_ann!DC65","v":33},{"$f":"[1]ACS_16_5YR_B19037_with_ann!DD65","v":338},{"$f":"[1]ACS_16_5YR_B19037_with_ann!DE65","v":127},{"$f":"[1]ACS_16_5YR_B19037_with_ann!DF65","v":72},{"$f":"[1]ACS_16_5YR_B19037_with_ann!DG65","v":99},{"$f":"[1]ACS_16_5YR_B19037_with_ann!DH65","v":0},{"$f":"[1]ACS_16_5YR_B19037_with_ann!DI65","v":12},{"$f":"[1]ACS_16_5YR_B19037_with_ann!DJ65","v":11},{"$f":"[1]ACS_16_5YR_B19037_with_ann!DK65","v":14},{"$f":"[1]ACS_16_5YR_B19037_with_ann!DL65","v":27},{"$f":"[1]ACS_16_5YR_B19037_with_ann!DM65","v":30},{"$f":"[1]ACS_16_5YR_B19037_with_ann!DN65","v":19},{"$f":"[1]ACS_16_5YR_B19037_with_ann!DO65","v":15},{"$f":"[1]ACS_16_5YR_B19037_with_ann!DP65","v":17},{"$f":"[1]ACS_16_5YR_B19037_with_ann!DQ65","v":19},{"$f":"[1]ACS_16_5YR_B19037_with_ann!DR65","v":12},{"$f":"[1]ACS_16_5YR_B19037_with_ann!DS65","v":12},{"$f":"[1]ACS_16_5YR_B19037_with_ann!DT65","v":9},{"$f":"[1]ACS_16_5YR_B19037_with_ann!DU65","v":8},{"$f":"[1]ACS_16_5YR_B19037_with_ann!DV65","v":3},{"$f":"[1]ACS_16_5YR_B19037_with_ann!DW65","v":5},{"$f":"[1]ACS_16_5YR_B19037_with_ann!DX65","v":19},{"$f":"[1]ACS_16_5YR_B19037_with_ann!DY65","v":13},{"$f":"[1]ACS_16_5YR_B19037_with_ann!DZ65","v":25},{"$f":"[1]ACS_16_5YR_B19037_with_ann!EA65","v":15},{"$f":"[1]ACS_16_5YR_B19037_with_ann!EB65","v":36},{"$f":"[1]ACS_16_5YR_B19037_with_ann!EC65","v":21},{"$f":"[1]ACS_16_5YR_B19037_with_ann!ED65","v":22},{"$f":"[1]ACS_16_5YR_B19037_with_ann!EE65","v":18},{"$f":"[1]ACS_16_5YR_B19037_with_ann!EF65","v":12},{"$f":"[1]ACS_16_5YR_B19037_with_ann!EG65","v":9},{"$f":"[1]ACS_16_5YR_B19037_with_ann!EH65","v":22},{"$f":"[1]ACS_16_5YR_B19037_with_ann!EI65","v":18},{"$f":"[1]ACS_16_5YR_B19037_with_ann!EJ65","v":32},{"$f":"[1]ACS_16_5YR_B19037_with_ann!EK65","v":25}]
["06000US3300585540","0600000US3300500820","060",{"$f":"[1]ACS_16_5YR_B19037_with_ann!C66","v":"Winchester"},{"$f":"[1]ACS_16_5YR_B19037_with_ann!D66","v":1617},{"$f":"[1]ACS_16_5YR_B19037_with_ann!E66","v":146},{"$f":"[1]ACS_16_5YR_B19037_with_ann!F66","v":114},{"$f":"[1]ACS_16_5YR_B19037_with_ann!G66","v":82},{"$f":"[1]ACS_16_5YR_B19037_with_ann!H66","v":0},{"$f":"[1]ACS_16_5YR_B19037_with_ann!I66","v":12},{"$f":"[1]ACS_16_5YR_B19037_with_ann!J66","v":0},{"$f":"[1]ACS_16_5YR_B19037_with_ann!K66","v":12},{"$f":"[1]ACS_16_5YR_B19037_with_ann!L66","v":26},{"$f":"[1]ACS_16_5YR_B19037_with_ann!M66","v":44},{"$f":"[1]ACS_16_5YR_B19037_with_ann!N66","v":0},{"$f":"[1]ACS_16_5YR_B19037_with_ann!O66","v":12},{"$f":"[1]ACS_16_5YR_B19037_with_ann!P66","v":0},{"$f":"[1]ACS_16_5YR_B19037_with_ann!Q66","v":12},{"$f":"[1]ACS_16_5YR_B19037_with_ann!R66","v":0},{"$f":"[1]ACS_16_5YR_B19037_with_ann!S66","v":12},{"$f":"[1]ACS_16_5YR_B19037_with_ann!T66","v":0},{"$f":"[1]ACS_16_5YR_B19037_with_ann!U66","v":12},{"$f":"[1]ACS_16_5YR_B19037_with_ann!V66","v":25},{"$f":"[1]ACS_16_5YR_B19037_with_ann!W66","v":38},{"$f":"[1]ACS_16_5YR_B19037_with_ann!X66","v":0},{"$f":"[1]ACS_16_5YR_B19037_with_ann!Y66","v":12},{"$f":"[1]ACS_16_5YR_B19037_with_ann!Z66","v":0},{"$f":"[1]ACS_16_5YR_B19037_with_ann!AA66","v":12},{"$f":"[1]ACS_16_5YR_B19037_with_ann!AB66","v":24},{"$f":"[1]ACS_16_5YR_B19037_with_ann!AC66","v":34},{"$f":"[1]ACS_16_5YR_B19037_with_ann!AD66","v":0},{"$f":"[1]ACS_16_5YR_B19037_with_ann!AE66","v":12},{"$f":"[1]ACS_16_5YR_B19037_with_ann!AF66","v":0},{"$f":"[1]ACS_16_5YR_B19037_with_ann!AG66","v":12},{"$f":"[1]ACS_16_5YR_B19037_with_ann!AH66","v":39},{"$f":"[1]ACS_16_5YR_B19037_with_ann!AI66","v":49},{"$f":"[1]ACS_16_5YR_B19037_with_ann!AJ66","v":0},{"$f":"[1]ACS_16_5YR_B19037_with_ann!AK66","v":12},{"$f":"[1]ACS_16_5YR_B19037_with_ann!AL66","v":0},{"$f":"[1]ACS_16_5YR_B19037_with_ann!AM66","v":12},{"$f":"[1]ACS_16_5YR_B19037_with_ann!AN66","v":440},{"$f":"[1]ACS_16_5YR_B19037_with_ann!AO66","v":83},{"$f":"[1]ACS_16_5YR_B19037_with_ann!AP66","v":32},{"$f":"[1]ACS_16_5YR_B19037_with_ann!AQ66","v":37},{"$f":"[1]ACS_16_5YR_B19037_with_ann!AR66","v":0},{"$f":"[1]ACS_16_5YR_B19037_with_ann!AS66","v":12},{"$f":"[1]ACS_16_5YR_B19037_with_ann!AT66","v":8},{"$f":"[1]ACS_16_5YR_B19037_with_ann!AU66","v":15},{"$f":"[1]ACS_16_5YR_B19037_with_ann!AV66","v":9},{"$f":"[1]ACS_16_5YR_B19037_with_ann!AW66","v":13},{"$f":"[1]ACS_16_5YR_B19037_with_ann!AX66","v":27},{"$f":"[1]ACS_16_5YR_B19037_with_ann!AY66","v":37},{"$f":"[1]ACS_16_5YR_B19037_with_ann!AZ66","v":16},{"$f":"[1]ACS_16_5YR_B19037_with_ann!BA66","v":25},{"$f":"[1]ACS_16_5YR_B19037_with_ann!BB66","v":49},{"$f":"[1]ACS_16_5YR_B19037_with_ann!BC66","v":56},{"$f":"[1]ACS_16_5YR_B19037_with_ann!BD66","v":35},{"$f":"[1]ACS_16_5YR_B19037_with_ann!BE66","v":33},{"$f":"[1]ACS_16_5YR_B19037_with_ann!BF66","v":38},{"$f":"[1]ACS_16_5YR_B19037_with_ann!BG66","v":41},{"$f":"[1]ACS_16_5YR_B19037_with_ann!BH66","v":29},{"$f":"[1]ACS_16_5YR_B19037_with_ann!BI66","v":32},{"$f":"[1]ACS_16_5YR_B19037_with_ann!BJ66","v":92},{"$f":"[1]ACS_16_5YR_B19037_with_ann!BK66","v":72},{"$f":"[1]ACS_16_5YR_B19037_with_ann!BL66","v":49},{"$f":"[1]ACS_16_5YR_B19037_with_ann!BM66","v":48},{"$f":"[1]ACS_16_5YR_B19037_with_ann!BN66","v":19},{"$f":"[1]ACS_16_5YR_B19037_with_ann!BO66","v":18},{"$f":"[1]ACS_16_5YR_B19037_with_ann!BP66","v":23},{"$f":"[1]ACS_16_5YR_B19037_with_ann!BQ66","v":34},{"$f":"[1]ACS_16_5YR_B19037_with_ann!BR66","v":14},{"$f":"[1]ACS_16_5YR_B19037_with_ann!BS66","v":24},{"$f":"[1]ACS_16_5YR_B19037_with_ann!BT66","v":0},{"$f":"[1]ACS_16_5YR_B19037_with_ann!BU66","v":12},{"$f":"[1]ACS_16_5YR_B19037_with_ann!BV66","v":633},{"$f":"[1]ACS_16_5YR_B19037_with_ann!BW66","v":113},{"$f":"[1]ACS_16_5YR_B19037_with_ann!BX66","v":10},{"$f":"[1]ACS_16_5YR_B19037_with_ann!BY66","v":16},{"$f":"[1]ACS_16_5YR_B19037_with_ann!BZ66","v":11},{"$f":"[1]ACS_16_5YR_B19037_with_ann!CA66","v":16},{"$f":"[1]ACS_16_5YR_B19037_with_ann!CB66","v":84},{"$f":"[1]ACS_16_5YR_B19037_with_ann!CC66","v":51},{"$f":"[1]ACS_16_5YR_B19037_with_ann!CD66","v":6},{"$f":"[1]ACS_16_5YR_B19037_with_ann!CE66","v":11},{"$f":"[1]ACS_16_5YR_B19037_with_ann!CF66","v":23},{"$f":"[1]ACS_16_5YR_B19037_with_ann!CG66","v":27},{"$f":"[1]ACS_16_5YR_B19037_with_ann!CH66","v":19},{"$f":"[1]ACS_16_5YR_B19037_with_ann!CI66","v":21},{"$f":"[1]ACS_16_5YR_B19037_with_ann!CJ66","v":19},{"$f":"[1]ACS_16_5YR_B19037_with_ann!CK66","v":22},{"$f":"[1]ACS_16_5YR_B19037_with_ann!CL66","v":8},{"$f":"[1]ACS_16_5YR_B19037_with_ann!CM66","v":15},{"$f":"[1]ACS_16_5YR_B19037_with_ann!CN66","v":35},{"$f":"[1]ACS_16_5YR_B19037_with_ann!CO66","v":33},{"$f":"[1]ACS_16_5YR_B19037_with_ann!CP66","v":26},{"$f":"[1]ACS_16_5YR_B19037_with_ann!CQ66","v":31},{"$f":"[1]ACS_16_5YR_B19037_with_ann!CR66","v":54},{"$f":"[1]ACS_16_5YR_B19037_with_ann!CS66","v":43},{"$f":"[1]ACS_16_5YR_B19037_with_ann!CT66","v":77},{"$f":"[1]ACS_16_5YR_B19037_with_ann!CU66","v":71},{"$f":"[1]ACS_16_5YR_B19037_with_ann!CV66","v":55},{"$f":"[1]ACS_16_5YR_B19037_with_ann!CW66","v":45},{"$f":"[1]ACS_16_5YR_B19037_with_ann!CX66","v":74},{"$f":"[1]ACS_16_5YR_B19037_with_ann!CY66","v":53},{"$f":"[1]ACS_16_5YR_B19037_with_ann!CZ66","v":60},{"$f":"[1]ACS_16_5YR_B19037_with_ann!DA66","v":45},{"$f":"[1]ACS_16_5YR_B19037_with_ann!DB66","v":72},{"$f":"[1]ACS_16_5YR_B19037_with_ann!DC66","v":66},{"$f":"[1]ACS_16_5YR_B19037_with_ann!DD66","v":430},{"$f":"[1]ACS_16_5YR_B19037_with_ann!DE66","v":78},{"$f":"[1]ACS_16_5YR_B19037_with_ann!DF66","v":23},{"$f":"[1]ACS_16_5YR_B19037_with_ann!DG66","v":22},{"$f":"[1]ACS_16_5YR_B19037_with_ann!DH66","v":14},{"$f":"[1]ACS_16_5YR_B19037_with_ann!DI66","v":17},{"$f":"[1]ACS_16_5YR_B19037_with_ann!DJ66","v":27},{"$f":"[1]ACS_16_5YR_B19037_with_ann!DK66","v":24},{"$f":"[1]ACS_16_5YR_B19037_with_ann!DL66","v":86},{"$f":"[1]ACS_16_5YR_B19037_with_ann!DM66","v":71},{"$f":"[1]ACS_16_5YR_B19037_with_ann!DN66","v":8},{"$f":"[1]ACS_16_5YR_B19037_with_ann!DO66","v":13},{"$f":"[1]ACS_16_5YR_B19037_with_ann!DP66","v":36},{"$f":"[1]ACS_16_5YR_B19037_with_ann!DQ66","v":29},{"$f":"[1]ACS_16_5YR_B19037_with_ann!DR66","v":27},{"$f":"[1]ACS_16_5YR_B19037_with_ann!DS66","v":25},{"$f":"[1]ACS_16_5YR_B19037_with_ann!DT66","v":28},{"$f":"[1]ACS_16_5YR_B19037_with_ann!DU66","v":26},{"$f":"[1]ACS_16_5YR_B19037_with_ann!DV66","v":24},{"$f":"[1]ACS_16_5YR_B19037_with_ann!DW66","v":26},{"$f":"[1]ACS_16_5YR_B19037_with_ann!DX66","v":34},{"$f":"[1]ACS_16_5YR_B19037_with_ann!DY66","v":40},{"$f":"[1]ACS_16_5YR_B19037_with_ann!DZ66","v":24},{"$f":"[1]ACS_16_5YR_B19037_with_ann!EA66","v":18},{"$f":"[1]ACS_16_5YR_B19037_with_ann!EB66","v":29},{"$f":"[1]ACS_16_5YR_B19037_with_ann!EC66","v":23},{"$f":"[1]ACS_16_5YR_B19037_with_ann!ED66","v":16},{"$f":"[1]ACS_16_5YR_B19037_with_ann!EE66","v":18},{"$f":"[1]ACS_16_5YR_B19037_with_ann!EF66","v":27},{"$f":"[1]ACS_16_5YR_B19037_with_ann!EG66","v":27},{"$f":"[1]ACS_16_5YR_B19037_with_ann!EH66","v":18},{"$f":"[1]ACS_16_5YR_B19037_with_ann!EI66","v":19},{"$f":"[1]ACS_16_5YR_B19037_with_ann!EJ66","v":9},{"$f":"[1]ACS_16_5YR_B19037_with_ann!EK66","v":14}]
[]
[]
[null,null,null,null,null,null,null,null,null,null,null,null,null,null,null,null,null,null,null,null,null,null,null,null,null,null,null,null,null,null,null,null,null,null,null,null,null,null,null,null,null,null,{"$f":"$D$22","v":"Troy"},null,{"$f":"$D$23","v":"Walpole"},null,{"$f":"$D$24","v":"Westmoreland"},null,{"$f":"$D$25","v":"Winchester"}]
[null,null,null,null,{"$f":"$D$3","v":"Alstead"},null,{"$f":"$D$4","v":"Chesterfield"},null,{"$f":"$D$5","v":"Dublin"},null,{"$f":"$D$6","v":"Fitzwilliam"},null,{"$f":"$D$7","v":"Gilsum"},null,{"$f":"$D$8","v":"Harrisville"},null,{"$f":"$D$9","v":"Hinsdale"},null,{"$f":"$D$10","v":"Jaffrey"},null,{"$f":"$D$11","v":"Keene"},null,{"$f":"$D$12","v":"Marlborough"},null,{"$f":"$D$13","v":"Marlow"},null,{"$f":"$D$14","v":"Nelson"},null,{"$f":"$D$15","v":"Richmond"},null,{"$f":"$D$16","v":"Rindge"},null,{"$f":"$D$17","v":"Roxbury"},null,{"$f":"$D$18","v":"Stoddard"},null,{"$f":"$D$19","v":"Sullivan"},null,{"$f":"$D$20","v":"Surry"},null,{"$f":"$D$21","v":"Swanzey"},null,{"$f":"$D$21","v":"Swanzey"},null,{"$f":"$D$21","v":"Swanzey"},null,{"$f":"$D$21","v":"Swanzey"},null,{"$f":"$D$21","v":"Swanzey"}]
[null,null,null,null,"Estimate","Margin of Error","Estimate","Margin of Error","Estimate","Margin of Error","Estimate","Margin of Error","Estimate","Margin of Error","Estimate","Margin of Error","Estimate","Margin of Error","Estimate","Margin of Error","Estimate","Margin of Error","Estimate","Margin of Error","Estimate","Margin of Error","Estimate","Margin of Error","Estimate","Margin of Error","Estimate","Margin of Error","Estimate","Margin of Error","Estimate","Margin of Error","Estimate","Margin of Error","Estimate","Margin of Error","Estimate","Margin of Error"]
[null,null,null,"Estimate!!Total:",723,97,1366,158,635,101,1013,154,310,51,416,75,1594,139,2026,225,9259,370,942,130,314,61,246,41,393,73,1972,144,95,37,436,52,281,53,344,58,3255,171,758,101,1427,121,885,182,1617,146]
[null,null,null,"Estimate!!Total:!!Householder under 25 years:",0,12,26,41,3,4,26,30,3,4,0,12,9,14,49,74,642,165,0,12,3,4,0,12,0,12,41,39,0,12,5,9,0,12,4,5,51,51,11,12,5,9,5,6,114,82]
[null,null,null,"Estimate!!Total:!!Householder under 25 years:!!Less than $10,000",0,12,0,12,0,12,0,12,0,12,0,12,0,12,0,17,45,51,0,12,0,12,0,12,0,12,0,17,0,12,0,12,0,12,0,12,0,17,0,12,0,12,0,12,0,12]
[null,null,null,"Estimate!!Total:!!Householder under 25 years:!!$10,000 to $14,999",0,12,0,12,0,12,0,12,0,12,0,12,0,12,0,17,99,71,0,12,0,12,0,12,0,12,0,17,0,12,0,12,0,12,0,12,0,17,0,12,0,12,0,12,0,12]
[null,null,null,"Estimate!!Total:!!Householder under 25 years:!!$15,000 to $19,999",0,12,0,12,0,12,0,12,0,12,0,12,0,12,0,17,101,99,0,12,0,12,0,12,0,12,20,31,0,12,0,12,0,12,0,12,0,17,0,12,0,12,0,12,26,44]
[null,null,null,"Estimate!!Total:!!Householder under 25 years:!!$20,000 to $24,999",0,12,0,12,0,12,0,12,0,12,0,12,0,12,0,17,0,22,0,12,0,12,0,12,0,12,0,17,0,12,0,12,0,12,0,12,0,17,0,12,0,12,0,12,0,12]
[null,null,null,"Estimate!!Total:!!Householder under 25 years:!!$25,000 to $29,999",0,12,0,12,0,12,0,12,0,12,0,12,0,12,0,17,11,18,0,12,0,12,0,12,0,12,0,17,0,12,0,12,0,12,0,12,0,17,0,12,0,12,0,12,0,12]
[null,null,null,"Estimate!!Total:!!Householder under 25 years:!!$30,000 to $34,999",0,12,0,12,0,12,0,12,0,12,0,12,0,12,0,17,36,43,0,12,0,12,0,12,0,12,0,17,0,12,0,12,0,12,2,3,0,17,0,12,0,12,0,12,0,12]
[null,null,null,"Estimate!!Total:!!Householder under 25 years:!!$35,000 to $39,999",0,12,0,12,3,4,0,12,0,12,0,12,0,12,0,17,49,44,0,12,0,12,0,12,0,12,14,23,0,12,0,12,0,12,0,12,0,17,0,12,0,12,0,12,0,12]
[null,null,null,"Estimate!!Total:!!Householder under 25 years:!!$40,000 to $44,999",0,12,0,12,0,12,0,12,0,12,0,12,0,12,0,17,0,22,0,12,0,12,0,12,0,12,0,17,0,12,0,12,0,12,0,12,0,17,0,12,0,12,0,12,25,38]
[null,null,null,"Estimate!!Total:!!Householder under 25 years:!!$45,000 to $49,999",0,12,0,12,0,12,0,12,0,12,0,12,0,12,0,17,39,43,0,12,0,12,0,12,0,12,0,17,0,12,0,12,0,12,0,12,0,17,0,12,0,12,0,12,0,12]
[null,null,null,"Estimate!!Total:!!Householder under 25 years:!!$50,000 to $59,999",0,12,0,12,0,12,0,12,0,12,0,12,0,12,0,17,69,77,0,12,0,12,0,12,0,12,0,17,0,12,0,12,0,12,0,12,25,37,0,12,0,12,0,12,0,12]
[null,null,null,"Estimate!!Total:!!Householder under 25 years:!!$60,000 to $74,999",0,12,0,12,0,12,4,6,3,4,0,12,9,14,0,17,46,50,0,12,0,12,0,12,0,12,0,17,0,12,5,9,0,12,0,12,0,17,5,7,5,9,0,12,24,34]
[null,null,null,"Estimate!!Total:!!Householder under 25 years:!!$75,000 to $99,999",0,12,26,41,0,12,22,30,0,12,0,12,0,12,0,17,75,61,0,12,3,4,0,12,0,12,7,11,0,12,0,12,0,12,2,4,26,40,6,10,0,12,2,3,0,12]
[null,null,null,"Estimate!!Total:!!Householder under 25 years:!!$100,000 to $124,999",0,12,0,12,0,12,0,12,0,12,0,12,0,12,49,74,72,54,0,12,0,12,0,12,0,12,0,17,0,12,0,12,0,12,0,12,0,17,0,12,0,12,0,12,0,12]
[null,null,null,"Estimate!!Total:!!Householder under 25 years:!!$125,000 to $149,999",0,12,0,12,0,12,0,12,0,12,0,12,0,12,0,17,0,22,0,12,0,12,0,12,0,12,0,17,0,12,0,12,0,12,0,12,0,17,0,12,0,12,0,12,39,49]
[null,null,null,"Estimate!!Total:!!Householder under 25 years:!!$150,000 to $199,999",0,12,0,12,0,12,0,12,0,12,0,12,0,12,0,17,0,22,0,12,0,12,0,12,0,12,0,17,0,12,0,12,0,12,0,12,0,17,0,12,0,12,3,5,0,12]
[null,null,null,"Estimate!!Total:!!Householder under 25 years:!!$200,000 or more",0,12,0,12,0,12,0,12,0,12,0,12,0,12,0,17,0,22,0,12,0,12,0,12,0,12,0,17,0,12,0,12,0,12,0,12,0,17,0,12,0,12,0,12,0,12]
[null,null,null,"Estimate!!Total:!!Householder 25 to 44 years:",145,54,274,143,101,37,176,58,72,26,87,50,284,87,447,128,2976,333,339,97,70,33,54,18,67,29,583,114,16,9,81,29,84,38,81,35,831,175,288,77,313,96,168,74,440,83]
[null,null,null,"Estimate!!Total:!!Householder 25 to 44 years:!!Less than $10,000",28,38,0,12,3,4,0,12,1,2,0,12,0,12,0,17,75,86,0,12,0,12,0,12,0,12,0,17,0,12,0,12,0,12,0,12,0,17,7,10,0,12,0,12,32,37]
[null,null,null,"Estimate!!Total:!!Householder 25 to 44 years:!!$10,000 to $14,999",0,12,0,12,4,5,0,12,0,12,0,12,0,12,0,17,89,62,21,24,0,12,0,12,0,12,0,17,0,12,0,12,0,12,0,12,100,83,0,12,0,12,0,12,0,12]
[null,null,null,"Estimate!!Total:!!Householder 25 to 44 years:!!$15,000 to $19,999",0,12,0,12,0,12,0,12,2,3,0,12,0,12,33,34,98,79,7,10,0,12,2,3,0,12,6,10,0,12,0,12,0,12,0,12,30,46,0,12,0,12,0,12,8,15]
[null,null,null,"Estimate!!Total:!!Householder 25 to 44 years:!!$20,000 to $24,999",0,12,0,12,3,4,13,19,0,12,0,12,0,12,0,17,55,48,73,70,0,12,0,12,0,12,14,22,0,12,0,12,0,12,0,12,17,37,7,11,0,12,0,12,9,13]
[null,null,null,"Estimate!!Total:!!Householder 25 to 44 years:!!$25,000 to $29,999",0,12,33,45,0,12,0,12,1,4,0,12,0,12,11,20,61,73,0,12,7,10,0,12,0,12,0,17,0,12,0,12,0,12,0,12,0,17,34,33,0,12,0,12,27,37]
[null,null,null,"Estimate!!Total:!!Householder 25 to 44 years:!!$30,000 to $34,999",9,8,37,56,0,12,0,12,0,12,0,12,25,29,0,17,208,122,20,23,0,12,2,3,3,5,14,24,4,5,0,12,0,12,0,12,0,17,12,19,12,19,0,12,16,25]
[null,null,null,"Estimate!!Total:!!Householder 25 to 44 years:!!$35,000 to $39,999",10,10,0,12,0,12,3,5,7,10,0,12,0,12,10,19,107,69,0,12,4,6,0,12,2,4,10,18,0,12,0,12,0,12,0,12,0,17,0,12,0,12,0,12,49,56]
[null,null,null,"Estimate!!Total:!!Householder 25 to 44 years:!!$40,000 to $44,999",0,12,0,12,0,12,4,6,4,5,0,12,0,12,0,17,63,59,0,12,0,12,0,12,0,12,42,44,1,3,0,12,3,4,0,12,52,64,0,12,0,12,8,15,35,33]
[null,null,null,"Estimate!!Total:!!Householder 25 to 44 years:!!$45,000 to $49,999",0,12,0,12,0,12,0,12,0,12,3,5,10,15,0,17,127,95,6,9,0,12,2,3,3,5,0,17,1,2,0,12,1,4,0,12,39,37,0,12,7,12,0,12,38,41]
[null,null,null,"Estimate!!Total:!!Householder 25 to 44 years:!!$50,000 to $59,999",24,22,0,12,18,16,34,35,4,4,17,22,13,22,0,17,238,114,16,23,2,3,0,12,0,12,56,61,2,3,6,8,7,10,0,12,47,66,73,39,26,26,45,57,29,32]
[null,null,null,"Estimate!!Total:!!Householder 25 to 44 years:!!$60,000 to $74,999",0,12,14,23,16,23,13,11,23,16,3,4,28,42,76,68,224,99,52,36,9,11,7,5,10,9,79,63,0,12,12,14,19,19,0,12,98,80,4,6,7,10,0,12,92,72]
[null,null,null,"Estimate!!Total:!!Householder 25 to 44 years:!!$75,000 to $99,999",8,9,0,12,9,9,16,15,5,5,18,16,93,62,30,32,642,216,27,22,4,4,10,10,15,17,88,55,3,5,15,9,7,5,14,10,103,82,44,31,65,46,33,25,49,48]
[null,null,null,"Estimate!!Total:!!Householder 25 to 44 years:!!$100,000 to $124,999",15,15,81,67,25,19,30,28,6,7,10,12,21,24,98,96,376,140,24,22,26,25,13,13,6,7,87,53,2,3,16,16,15,17,11,8,151,116,24,25,77,75,6,7,19,18]
[null,null,null,"Estimate!!Total:!!Householder 25 to 44 years:!!$125,000 to $149,999",4,7,69,75,10,8,39,22,4,4,0,12,38,36,61,58,246,110,58,43,13,15,13,12,13,14,40,42,0,12,20,10,22,15,16,12,83,106,20,22,45,37,10,8,23,34,null,null,null,null,null,null,null,null,null,null,null,null,null,null,null,null,null,null,null,null,null,null,null,null,null,null,null,null,null,null,null,null,null,null,null,null,null,null,null,null,null,null,null,null,null,null,null,null,null,null,null,null,{"$f":"LEFT(#REF!,LEN(#REF!)-10)","v":{"$error":"#REF!"}},{"$f":"LEFT(#REF!,LEN(#REF!)-10)","v":{"$error":"#REF!"}},{"$f":"LEFT(#REF!,LEN(#REF!)-10)","v":{"$error":"#REF!"}},{"$f":"LEFT(#REF!,LEN(#REF!)-10)","v":{"$error":"#REF!"}},{"$f":"LEFT(#REF!,LEN(#REF!)-10)","v":{"$error":"#REF!"}},{"$f":"LEFT(#REF!,LEN(#REF!)-10)","v":{"$error":"#REF!"}},{"$f":"LEFT(#REF!,LEN(#REF!)-10)","v":{"$error":"#REF!"}},{"$f":"LEFT(#REF!,LEN(#REF!)-10)","v":{"$error":"#REF!"}},{"$f":"LEFT(#REF!,LEN(#REF!)-10)","v":{"$error":"#REF!"}},{"$f":"LEFT(#REF!,LEN(#REF!)-10)","v":{"$error":"#REF!"}},{"$f":"LEFT(#REF!,LEN(#REF!)-10)","v":{"$error":"#REF!"}},{"$f":"LEFT(#REF!,LEN(#REF!)-10)","v":{"$error":"#REF!"}},{"$f":"LEFT(#REF!,LEN(#REF!)-10)","v":{"$error":"#REF!"}},{"$f":"LEFT(#REF!,LEN(#REF!)-10)","v":{"$error":"#REF!"}},{"$f":"LEFT(#REF!,LEN(#REF!)-10)","v":{"$error":"#REF!"}},{"$f":"LEFT(#REF!,LEN(#REF!)-10)","v":{"$error":"#REF!"}},{"$f":"LEFT(#REF!,LEN(#REF!)-10)","v":{"$error":"#REF!"}},{"$f":"LEFT(#REF!,LEN(#REF!)-10)","v":{"$error":"#REF!"}},{"$f":"LEFT(#REF!,LEN(#REF!)-10)","v":{"$error":"#REF!"}},{"$f":"LEFT(#REF!,LEN(#REF!)-10)","v":{"$error":"#REF!"}},{"$f":"LEFT(#REF!,LEN(#REF!)-10)","v":{"$error":"#REF!"}},{"$f":"LEFT(#REF!,LEN(#REF!)-10)","v":{"$error":"#REF!"}},{"$f":"LEFT(#REF!,LEN(#REF!)-10)","v":{"$error":"#REF!"}},{"$f":"LEFT(#REF!,LEN(#REF!)-10)","v":{"$error":"#REF!"}},{"$f":"LEFT(#REF!,LEN(#REF!)-10)","v":{"$error":"#REF!"}},{"$f":"LEFT(#REF!,LEN(#REF!)-10)","v":{"$error":"#REF!"}},{"$f":"LEFT(#REF!,LEN(#REF!)-10)","v":{"$error":"#REF!"}},{"$f":"LEFT(#REF!,LEN(#REF!)-10)","v":{"$error":"#REF!"}},{"$f":"LEFT(#REF!,LEN(#REF!)-10)","v":{"$error":"#REF!"}},{"$f":"LEFT(#REF!,LEN(#REF!)-10)","v":{"$error":"#REF!"}},{"$f":"LEFT(#REF!,LEN(#REF!)-10)","v":{"$error":"#REF!"}},{"$f":"LEFT(#REF!,LEN(#REF!)-10)","v":{"$error":"#REF!"}},{"$f":"LEFT(#REF!,LEN(#REF!)-10)","v":{"$error":"#REF!"}},{"$f":"LEFT(#REF!,LEN(#REF!)-10)","v":{"$error":"#REF!"}},{"$f":"LEFT(#REF!,LEN(#REF!)-10)","v":{"$error":"#REF!"}},{"$f":"LEFT(#REF!,LEN(#REF!)-10)","v":{"$error":"#REF!"}},{"$f":"LEFT(#REF!,LEN(#REF!)-10)","v":{"$error":"#REF!"}},{"$f":"LEFT(#REF!,LEN(#REF!)-10)","v":{"$error":"#REF!"}},{"$f":"LEFT(#REF!,LEN(#REF!)-10)","v":{"$error":"#REF!"}},{"$f":"LEFT(#REF!,LEN(#REF!)-10)","v":{"$error":"#REF!"}},{"$f":"LEFT(#REF!,LEN(#REF!)-10)","v":{"$error":"#REF!"}},{"$f":"LEFT(#REF!,LEN(#REF!)-10)","v":{"$error":"#REF!"}},{"$f":"LEFT(#REF!,LEN(#REF!)-10)","v":{"$error":"#REF!"}},{"$f":"LEFT(#REF!,LEN(#REF!)-10)","v":{"$error":"#REF!"}},{"$f":"LEFT(#REF!,LEN(#REF!)-10)","v":{"$error":"#REF!"}},{"$f":"LEFT(#REF!,LEN(#REF!)-10)","v":{"$error":"#REF!"}},{"$f":"LEFT(#REF!,LEN(#REF!)-10)","v":{"$error":"#REF!"}},{"$f":"LEFT(#REF!,LEN(#REF!)-10)","v":{"$error":"#REF!"}},{"$f":"LEFT(#REF!,LEN(#REF!)-10)","v":{"$error":"#REF!"}},{"$f":"LEFT(#REF!,LEN(#REF!)-10)","v":{"$error":"#REF!"}},{"$f":"LEFT(#REF!,LEN(#REF!)-10)","v":{"$error":"#REF!"}},{"$f":"LEFT(#REF!,LEN(#REF!)-10)","v":{"$error":"#REF!"}},{"$f":"LEFT(#REF!,LEN(#REF!)-10)","v":{"$error":"#REF!"}},{"$f":"LEFT(#REF!,LEN(#REF!)-10)","v":{"$error":"#REF!"}},{"$f":"LEFT(#REF!,LEN(#REF!)-10)","v":{"$error":"#REF!"}},{"$f":"LEFT(#REF!,LEN(#REF!)-10)","v":{"$error":"#REF!"}},{"$f":"LEFT(#REF!,LEN(#REF!)-10)","v":{"$error":"#REF!"}},{"$f":"LEFT(#REF!,LEN(#REF!)-10)","v":{"$error":"#REF!"}},{"$f":"LEFT(#REF!,LEN(#REF!)-10)","v":{"$error":"#REF!"}},{"$f":"LEFT(#REF!,LEN(#REF!)-10)","v":{"$error":"#REF!"}},{"$f":"LEFT(#REF!,LEN(#REF!)-10)","v":{"$error":"#REF!"}},{"$f":"LEFT(#REF!,LEN(#REF!)-10)","v":{"$error":"#REF!"}},{"$f":"LEFT(#REF!,LEN(#REF!)-10)","v":{"$error":"#REF!"}},{"$f":"LEFT(#REF!,LEN(#REF!)-10)","v":{"$error":"#REF!"}},{"$f":"LEFT(#REF!,LEN(#REF!)-10)","v":{"$error":"#REF!"}},{"$f":"LEFT(#REF!,LEN(#REF!)-10)","v":{"$error":"#REF!"}},{"$f":"LEFT(#REF!,LEN(#REF!)-10)","v":{"$error":"#REF!"}},{"$f":"LEFT(#REF!,LEN(#REF!)-10)","v":{"$error":"#REF!"}},{"$f":"LEFT(#REF!,LEN(#REF!)-10)","v":{"$error":"#REF!"}},{"$f":"LEFT(#REF!,LEN(#REF!)-10)","v":{"$error":"#REF!"}},{"$f":"LEFT(#REF!,LEN(#REF!)-10)","v":{"$error":"#REF!"}},{"$f":"LEFT(#REF!,LEN(#REF!)-10)","v":{"$error":"#REF!"}},{"$f":"LEFT(#REF!,LEN(#REF!)-10)","v":{"$error":"#REF!"}},{"$f":"LEFT(#REF!,LEN(#REF!)-10)","v":{"$error":"#REF!"}},{"$f":"LEFT(#REF!,LEN(#REF!)-10)","v":{"$error":"#REF!"}},{"$f":"LEFT(#REF!,LEN(#REF!)-10)","v":{"$error":"#REF!"}},{"$f":"LEFT(#REF!,LEN(#REF!)-10)","v":{"$error":"#REF!"}},{"$f":"LEFT(#REF!,LEN(#REF!)-10)","v":{"$error":"#REF!"}},{"$f":"LEFT(#REF!,LEN(#REF!)-10)","v":{"$error":"#REF!"}},{"$f":"LEFT(#REF!,LEN(#REF!)-10)","v":{"$error":"#REF!"}},{"$f":"LEFT(#REF!,LEN(#REF!)-10)","v":{"$error":"#REF!"}},{"$f":"LEFT(#REF!,LEN(#REF!)-10)","v":{"$error":"#REF!"}},{"$f":"LEFT(#REF!,LEN(#REF!)-10)","v":{"$error":"#REF!"}},{"$f":"LEFT(#REF!,LEN(#REF!)-10)","v":{"$error":"#REF!"}},{"$f":"LEFT(#REF!,LEN(#REF!)-10)","v":{"$error":"#REF!"}},{"$f":"LEFT(#REF!,LEN(#REF!)-10)","v":{"$error":"#REF!"}},{"$f":"LEFT(#REF!,LEN(#REF!)-10)","v":{"$error":"#REF!"}},{"$f":"LEFT(#REF!,LEN(#REF!)-10)","v":{"$error":"#REF!"}},{"$f":"LEFT(#REF!,LEN(#REF!)-10)","v":{"$error":"#REF!"}},{"$f":"LEFT(#REF!,LEN(#REF!)-10)","v":{"$error":"#REF!"}},{"$f":"LEFT(#REF!,LEN(#REF!)-10)","v":{"$error":"#REF!"}},{"$f":"LEFT(#REF!,LEN(#REF!)-10)","v":{"$error":"#REF!"}},{"$f":"LEFT(#REF!,LEN(#REF!)-10)","v":{"$error":"#REF!"}},{"$f":"LEFT(#REF!,LEN(#REF!)-10)","v":{"$error":"#REF!"}},{"$f":"LEFT(#REF!,LEN(#REF!)-10)","v":{"$error":"#REF!"}},{"$f":"LEFT(#REF!,LEN(#REF!)-10)","v":{"$error":"#REF!"}},{"$f":"LEFT(#REF!,LEN(#REF!)-10)","v":{"$error":"#REF!"}},{"$f":"LEFT(#REF!,LEN(#REF!)-10)","v":{"$error":"#REF!"}},{"$f":"LEFT(#REF!,LEN(#REF!)-10)","v":{"$error":"#REF!"}},{"$f":"LEFT(#REF!,LEN(#REF!)-10)","v":{"$error":"#REF!"}},{"$f":"LEFT(#REF!,LEN(#REF!)-10)","v":{"$error":"#REF!"}},{"$f":"LEFT(#REF!,LEN(#REF!)-10)","v":{"$error":"#REF!"}},{"$f":"LEFT(#REF!,LEN(#REF!)-10)","v":{"$error":"#REF!"}},{"$f":"LEFT(#REF!,LEN(#REF!)-10)","v":{"$error":"#REF!"}},{"$f":"LEFT(#REF!,LEN(#REF!)-10)","v":{"$error":"#REF!"}},{"$f":"LEFT(#REF!,LEN(#REF!)-10)","v":{"$error":"#REF!"}},{"$f":"LEFT(#REF!,LEN(#REF!)-10)","v":{"$error":"#REF!"}},{"$f":"LEFT(#REF!,LEN(#REF!)-10)","v":{"$error":"#REF!"}},{"$f":"LEFT(#REF!,LEN(#REF!)-10)","v":{"$error":"#REF!"}},{"$f":"LEFT(#REF!,LEN(#REF!)-10)","v":{"$error":"#REF!"}},{"$f":"LEFT(#REF!,LEN(#REF!)-10)","v":{"$error":"#REF!"}},{"$f":"LEFT(#REF!,LEN(#REF!)-10)","v":{"$error":"#REF!"}},{"$f":"LEFT(#REF!,LEN(#REF!)-10)","v":{"$error":"#REF!"}},{"$f":"LEFT(#REF!,LEN(#REF!)-10)","v":{"$error":"#REF!"}},{"$f":"LEFT(#REF!,LEN(#REF!)-10)","v":{"$error":"#REF!"}},{"$f":"LEFT(#REF!,LEN(#REF!)-10)","v":{"$error":"#REF!"}},{"$f":"LEFT(#REF!,LEN(#REF!)-10)","v":{"$error":"#REF!"}},{"$f":"LEFT(#REF!,LEN(#REF!)-10)","v":{"$error":"#REF!"}},{"$f":"LEFT(#REF!,LEN(#REF!)-10)","v":{"$error":"#REF!"}},{"$f":"LEFT(#REF!,LEN(#REF!)-10)","v":{"$error":"#REF!"}},{"$f":"LEFT(#REF!,LEN(#REF!)-10)","v":{"$error":"#REF!"}},{"$f":"LEFT(#REF!,LEN(#REF!)-10)","v":{"$error":"#REF!"}},{"$f":"LEFT(#REF!,LEN(#REF!)-10)","v":{"$error":"#REF!"}},{"$f":"LEFT(#REF!,LEN(#REF!)-10)","v":{"$error":"#REF!"}},{"$f":"LEFT(#REF!,LEN(#REF!)-10)","v":{"$error":"#REF!"}},{"$f":"LEFT(#REF!,LEN(#REF!)-10)","v":{"$error":"#REF!"}},{"$f":"LEFT(#REF!,LEN(#REF!)-10)","v":{"$error":"#REF!"}},{"$f":"LEFT(#REF!,LEN(#REF!)-10)","v":{"$error":"#REF!"}},{"$f":"LEFT(#REF!,LEN(#REF!)-10)","v":{"$error":"#REF!"}},{"$f":"LEFT(#REF!,LEN(#REF!)-10)","v":{"$error":"#REF!"}},{"$f":"LEFT(#REF!,LEN(#REF!)-10)","v":{"$error":"#REF!"}},{"$f":"LEFT(#REF!,LEN(#REF!)-10)","v":{"$error":"#REF!"}},{"$f":"LEFT(#REF!,LEN(#REF!)-10)","v":{"$error":"#REF!"}},{"$f":"LEFT(#REF!,LEN(#REF!)-10)","v":{"$error":"#REF!"}},{"$f":"LEFT(#REF!,LEN(#REF!)-10)","v":{"$error":"#REF!"}},{"$f":"LEFT(#REF!,LEN(#REF!)-10)","v":{"$error":"#REF!"}},{"$f":"LEFT(#REF!,LEN(#REF!)-10)","v":{"$error":"#REF!"}},{"$f":"LEFT(#REF!,LEN(#REF!)-10)","v":{"$error":"#REF!"}},{"$f":"LEFT(#REF!,LEN(#REF!)-10)","v":{"$error":"#REF!"}},{"$f":"LEFT(#REF!,LEN(#REF!)-10)","v":{"$error":"#REF!"}},{"$f":"LEFT(#REF!,LEN(#REF!)-10)","v":{"$error":"#REF!"}},{"$f":"LEFT(#REF!,LEN(#REF!)-10)","v":{"$error":"#REF!"}},{"$f":"LEFT(#REF!,LEN(#REF!)-10)","v":{"$error":"#REF!"}},{"$f":"LEFT(#REF!,LEN(#REF!)-10)","v":{"$error":"#REF!"}},{"$f":"LEFT(#REF!,LEN(#REF!)-10)","v":{"$error":"#REF!"}},{"$f":"LEFT(#REF!,LEN(#REF!)-10)","v":{"$error":"#REF!"}},{"$f":"LEFT(#REF!,LEN(#REF!)-10)","v":{"$error":"#REF!"}},{"$f":"LEFT(#REF!,LEN(#REF!)-10)","v":{"$error":"#REF!"}},{"$f":"LEFT(#REF!,LEN(#REF!)-10)","v":{"$error":"#REF!"}},{"$f":"LEFT(#REF!,LEN(#REF!)-10)","v":{"$error":"#REF!"}},{"$f":"LEFT(#REF!,LEN(#REF!)-10)","v":{"$error":"#REF!"}},{"$f":"LEFT(#REF!,LEN(#REF!)-10)","v":{"$error":"#REF!"}},{"$f":"LEFT(#REF!,LEN(#REF!)-10)","v":{"$error":"#REF!"}},{"$f":"LEFT(#REF!,LEN(#REF!)-10)","v":{"$error":"#REF!"}}]
[null,null,null,"Estimate!!Total:!!Householder 25 to 44 years:!!$150,000 to $199,999",47,27,19,30,13,14,16,12,7,7,12,9,32,43,29,38,259,133,35,27,2,3,3,4,7,10,66,47,1,3,7,7,5,5,25,29,64,70,43,40,49,41,47,39,14,24,null,null,null,null,null,null,null,null,null,null,null,null,null,null,null,null,null,null,null,null,null,null,null,null,null,null,null,null,null,null,null,null,null,null,null,null,null,null,null,null,null,null,null,null,null,null,null,null,null,null,null,null,{"$f":"LEFT(#REF!,LEN(#REF!)-10)","v":{"$error":"#REF!"}},{"$f":"LEFT(#REF!,LEN(#REF!)-10)","v":{"$error":"#REF!"}},{"$f":"LEFT(#REF!,LEN(#REF!)-10)","v":{"$error":"#REF!"}},{"$f":"LEFT(#REF!,LEN(#REF!)-10)","v":{"$error":"#REF!"}},{"$f":"LEFT(#REF!,LEN(#REF!)-10)","v":{"$error":"#REF!"}},{"$f":"LEFT(#REF!,LEN(#REF!)-10)","v":{"$error":"#REF!"}},{"$f":"LEFT(#REF!,LEN(#REF!)-10)","v":{"$error":"#REF!"}},{"$f":"LEFT(#REF!,LEN(#REF!)-10)","v":{"$error":"#REF!"}},{"$f":"LEFT(#REF!,LEN(#REF!)-10)","v":{"$error":"#REF!"}},{"$f":"LEFT(#REF!,LEN(#REF!)-10)","v":{"$error":"#REF!"}},{"$f":"LEFT(#REF!,LEN(#REF!)-10)","v":{"$error":"#REF!"}},{"$f":"LEFT(#REF!,LEN(#REF!)-10)","v":{"$error":"#REF!"}},{"$f":"LEFT(#REF!,LEN(#REF!)-10)","v":{"$error":"#REF!"}},{"$f":"LEFT(#REF!,LEN(#REF!)-10)","v":{"$error":"#REF!"}},{"$f":"LEFT(#REF!,LEN(#REF!)-10)","v":{"$error":"#REF!"}},{"$f":"LEFT(#REF!,LEN(#REF!)-10)","v":{"$error":"#REF!"}},{"$f":"LEFT(#REF!,LEN(#REF!)-10)","v":{"$error":"#REF!"}},{"$f":"LEFT(#REF!,LEN(#REF!)-10)","v":{"$error":"#REF!"}},{"$f":"LEFT(#REF!,LEN(#REF!)-10)","v":{"$error":"#REF!"}},{"$f":"LEFT(#REF!,LEN(#REF!)-10)","v":{"$error":"#REF!"}},{"$f":"LEFT(#REF!,LEN(#REF!)-10)","v":{"$error":"#REF!"}},{"$f":"LEFT(#REF!,LEN(#REF!)-10)","v":{"$error":"#REF!"}},{"$f":"LEFT(#REF!,LEN(#REF!)-10)","v":{"$error":"#REF!"}},{"$f":"LEFT(#REF!,LEN(#REF!)-10)","v":{"$error":"#REF!"}},{"$f":"LEFT(#REF!,LEN(#REF!)-10)","v":{"$error":"#REF!"}},{"$f":"LEFT(#REF!,LEN(#REF!)-10)","v":{"$error":"#REF!"}},{"$f":"LEFT(#REF!,LEN(#REF!)-10)","v":{"$error":"#REF!"}},{"$f":"LEFT(#REF!,LEN(#REF!)-10)","v":{"$error":"#REF!"}},{"$f":"LEFT(#REF!,LEN(#REF!)-10)","v":{"$error":"#REF!"}},{"$f":"LEFT(#REF!,LEN(#REF!)-10)","v":{"$error":"#REF!"}},{"$f":"LEFT(#REF!,LEN(#REF!)-10)","v":{"$error":"#REF!"}},{"$f":"LEFT(#REF!,LEN(#REF!)-10)","v":{"$error":"#REF!"}},{"$f":"LEFT(#REF!,LEN(#REF!)-10)","v":{"$error":"#REF!"}},{"$f":"LEFT(#REF!,LEN(#REF!)-10)","v":{"$error":"#REF!"}},{"$f":"LEFT(#REF!,LEN(#REF!)-10)","v":{"$error":"#REF!"}},{"$f":"LEFT(#REF!,LEN(#REF!)-10)","v":{"$error":"#REF!"}},{"$f":"LEFT(#REF!,LEN(#REF!)-10)","v":{"$error":"#REF!"}},{"$f":"LEFT(#REF!,LEN(#REF!)-10)","v":{"$error":"#REF!"}},{"$f":"LEFT(#REF!,LEN(#REF!)-10)","v":{"$error":"#REF!"}},{"$f":"LEFT(#REF!,LEN(#REF!)-10)","v":{"$error":"#REF!"}},{"$f":"LEFT(#REF!,LEN(#REF!)-10)","v":{"$error":"#REF!"}},{"$f":"LEFT(#REF!,LEN(#REF!)-10)","v":{"$error":"#REF!"}},{"$f":"LEFT(#REF!,LEN(#REF!)-10)","v":{"$error":"#REF!"}},{"$f":"LEFT(#REF!,LEN(#REF!)-10)","v":{"$error":"#REF!"}},{"$f":"LEFT(#REF!,LEN(#REF!)-10)","v":{"$error":"#REF!"}},{"$f":"LEFT(#REF!,LEN(#REF!)-10)","v":{"$error":"#REF!"}},{"$f":"LEFT(#REF!,LEN(#REF!)-10)","v":{"$error":"#REF!"}},{"$f":"LEFT(#REF!,LEN(#REF!)-10)","v":{"$error":"#REF!"}},{"$f":"LEFT(#REF!,LEN(#REF!)-10)","v":{"$error":"#REF!"}},{"$f":"LEFT(#REF!,LEN(#REF!)-10)","v":{"$error":"#REF!"}},{"$f":"LEFT(#REF!,LEN(#REF!)-10)","v":{"$error":"#REF!"}},{"$f":"LEFT(#REF!,LEN(#REF!)-10)","v":{"$error":"#REF!"}},{"$f":"LEFT(#REF!,LEN(#REF!)-10)","v":{"$error":"#REF!"}},{"$f":"LEFT(#REF!,LEN(#REF!)-10)","v":{"$error":"#REF!"}},{"$f":"LEFT(#REF!,LEN(#REF!)-10)","v":{"$error":"#REF!"}},{"$f":"LEFT(#REF!,LEN(#REF!)-10)","v":{"$error":"#REF!"}},{"$f":"LEFT(#REF!,LEN(#REF!)-10)","v":{"$error":"#REF!"}},{"$f":"LEFT(#REF!,LEN(#REF!)-10)","v":{"$error":"#REF!"}},{"$f":"LEFT(#REF!,LEN(#REF!)-10)","v":{"$error":"#REF!"}},{"$f":"LEFT(#REF!,LEN(#REF!)-10)","v":{"$error":"#REF!"}},{"$f":"LEFT(#REF!,LEN(#REF!)-10)","v":{"$error":"#REF!"}},{"$f":"LEFT(#REF!,LEN(#REF!)-10)","v":{"$error":"#REF!"}},{"$f":"LEFT(#REF!,LEN(#REF!)-10)","v":{"$error":"#REF!"}},{"$f":"LEFT(#REF!,LEN(#REF!)-10)","v":{"$error":"#REF!"}},{"$f":"LEFT(#REF!,LEN(#REF!)-10)","v":{"$error":"#REF!"}},{"$f":"LEFT(#REF!,LEN(#REF!)-10)","v":{"$error":"#REF!"}},{"$f":"LEFT(#REF!,LEN(#REF!)-10)","v":{"$error":"#REF!"}},{"$f":"LEFT(#REF!,LEN(#REF!)-10)","v":{"$error":"#REF!"}},{"$f":"LEFT(#REF!,LEN(#REF!)-10)","v":{"$error":"#REF!"}},{"$f":"LEFT(#REF!,LEN(#REF!)-10)","v":{"$error":"#REF!"}},{"$f":"LEFT(#REF!,LEN(#REF!)-10)","v":{"$error":"#REF!"}},{"$f":"LEFT(#REF!,LEN(#REF!)-10)","v":{"$error":"#REF!"}},{"$f":"LEFT(#REF!,LEN(#REF!)-10)","v":{"$error":"#REF!"}},{"$f":"LEFT(#REF!,LEN(#REF!)-10)","v":{"$error":"#REF!"}},{"$f":"LEFT(#REF!,LEN(#REF!)-10)","v":{"$error":"#REF!"}},{"$f":"LEFT(#REF!,LEN(#REF!)-10)","v":{"$error":"#REF!"}},{"$f":"LEFT(#REF!,LEN(#REF!)-10)","v":{"$error":"#REF!"}},{"$f":"LEFT(#REF!,LEN(#REF!)-10)","v":{"$error":"#REF!"}},{"$f":"LEFT(#REF!,LEN(#REF!)-10)","v":{"$error":"#REF!"}},{"$f":"LEFT(#REF!,LEN(#REF!)-10)","v":{"$error":"#REF!"}},{"$f":"LEFT(#REF!,LEN(#REF!)-10)","v":{"$error":"#REF!"}},{"$f":"LEFT(#REF!,LEN(#REF!)-10)","v":{"$error":"#REF!"}},{"$f":"LEFT(#REF!,LEN(#REF!)-10)","v":{"$error":"#REF!"}},{"$f":"LEFT(#REF!,LEN(#REF!)-10)","v":{"$error":"#REF!"}},{"$f":"LEFT(#REF!,LEN(#REF!)-10)","v":{"$error":"#REF!"}},{"$f":"LEFT(#REF!,LEN(#REF!)-10)","v":{"$error":"#REF!"}},{"$f":"LEFT(#REF!,LEN(#REF!)-10)","v":{"$error":"#REF!"}},{"$f":"LEFT(#REF!,LEN(#REF!)-10)","v":{"$error":"#REF!"}},{"$f":"LEFT(#REF!,LEN(#REF!)-10)","v":{"$error":"#REF!"}},{"$f":"LEFT(#REF!,LEN(#REF!)-10)","v":{"$error":"#REF!"}},{"$f":"LEFT(#REF!,LEN(#REF!)-10)","v":{"$error":"#REF!"}},{"$f":"LEFT(#REF!,LEN(#REF!)-10)","v":{"$error":"#REF!"}},{"$f":"LEFT(#REF!,LEN(#REF!)-10)","v":{"$error":"#REF!"}},{"$f":"LEFT(#REF!,LEN(#REF!)-10)","v":{"$error":"#REF!"}},{"$f":"LEFT(#REF!,LEN(#REF!)-10)","v":{"$error":"#REF!"}},{"$f":"LEFT(#REF!,LEN(#REF!)-10)","v":{"$error":"#REF!"}},{"$f":"LEFT(#REF!,LEN(#REF!)-10)","v":{"$error":"#REF!"}},{"$f":"LEFT(#REF!,LEN(#REF!)-10)","v":{"$error":"#REF!"}},{"$f":"LEFT(#REF!,LEN(#REF!)-10)","v":{"$error":"#REF!"}},{"$f":"LEFT(#REF!,LEN(#REF!)-10)","v":{"$error":"#REF!"}},{"$f":"LEFT(#REF!,LEN(#REF!)-10)","v":{"$error":"#REF!"}},{"$f":"LEFT(#REF!,LEN(#REF!)-10)","v":{"$error":"#REF!"}},{"$f":"LEFT(#REF!,LEN(#REF!)-10)","v":{"$error":"#REF!"}},{"$f":"LEFT(#REF!,LEN(#REF!)-10)","v":{"$error":"#REF!"}},{"$f":"LEFT(#REF!,LEN(#REF!)-10)","v":{"$error":"#REF!"}},{"$f":"LEFT(#REF!,LEN(#REF!)-10)","v":{"$error":"#REF!"}},{"$f":"LEFT(#REF!,LEN(#REF!)-10)","v":{"$error":"#REF!"}},{"$f":"LEFT(#REF!,LEN(#REF!)-10)","v":{"$error":"#REF!"}},{"$f":"LEFT(#REF!,LEN(#REF!)-10)","v":{"$error":"#REF!"}},{"$f":"LEFT(#REF!,LEN(#REF!)-10)","v":{"$error":"#REF!"}},{"$f":"LEFT(#REF!,LEN(#REF!)-10)","v":{"$error":"#REF!"}},{"$f":"LEFT(#REF!,LEN(#REF!)-10)","v":{"$error":"#REF!"}},{"$f":"LEFT(#REF!,LEN(#REF!)-10)","v":{"$error":"#REF!"}},{"$f":"LEFT(#REF!,LEN(#REF!)-10)","v":{"$error":"#REF!"}},{"$f":"LEFT(#REF!,LEN(#REF!)-10)","v":{"$error":"#REF!"}},{"$f":"LEFT(#REF!,LEN(#REF!)-10)","v":{"$error":"#REF!"}},{"$f":"LEFT(#REF!,LEN(#REF!)-10)","v":{"$error":"#REF!"}},{"$f":"LEFT(#REF!,LEN(#REF!)-10)","v":{"$error":"#REF!"}},{"$f":"LEFT(#REF!,LEN(#REF!)-10)","v":{"$error":"#REF!"}},{"$f":"LEFT(#REF!,LEN(#REF!)-10)","v":{"$error":"#REF!"}},{"$f":"LEFT(#REF!,LEN(#REF!)-10)","v":{"$error":"#REF!"}},{"$f":"LEFT(#REF!,LEN(#REF!)-10)","v":{"$error":"#REF!"}},{"$f":"LEFT(#REF!,LEN(#REF!)-10)","v":{"$error":"#REF!"}},{"$f":"LEFT(#REF!,LEN(#REF!)-10)","v":{"$error":"#REF!"}},{"$f":"LEFT(#REF!,LEN(#REF!)-10)","v":{"$error":"#REF!"}},{"$f":"LEFT(#REF!,LEN(#REF!)-10)","v":{"$error":"#REF!"}},{"$f":"LEFT(#REF!,LEN(#REF!)-10)","v":{"$error":"#REF!"}},{"$f":"LEFT(#REF!,LEN(#REF!)-10)","v":{"$error":"#REF!"}},{"$f":"LEFT(#REF!,LEN(#REF!)-10)","v":{"$error":"#REF!"}},{"$f":"LEFT(#REF!,LEN(#REF!)-10)","v":{"$error":"#REF!"}},{"$f":"LEFT(#REF!,LEN(#REF!)-10)","v":{"$error":"#REF!"}},{"$f":"LEFT(#REF!,LEN(#REF!)-10)","v":{"$error":"#REF!"}},{"$f":"LEFT(#REF!,LEN(#REF!)-10)","v":{"$error":"#REF!"}},{"$f":"LEFT(#REF!,LEN(#REF!)-10)","v":{"$error":"#REF!"}},{"$f":"LEFT(#REF!,LEN(#REF!)-10)","v":{"$error":"#REF!"}},{"$f":"LEFT(#REF!,LEN(#REF!)-10)","v":{"$error":"#REF!"}},{"$f":"LEFT(#REF!,LEN(#REF!)-10)","v":{"$error":"#REF!"}},{"$f":"LEFT(#REF!,LEN(#REF!)-10)","v":{"$error":"#REF!"}},{"$f":"LEFT(#REF!,LEN(#REF!)-10)","v":{"$error":"#REF!"}},{"$f":"LEFT(#REF!,LEN(#REF!)-10)","v":{"$error":"#REF!"}},{"$f":"LEFT(#REF!,LEN(#REF!)-10)","v":{"$error":"#REF!"}},{"$f":"LEFT(#REF!,LEN(#REF!)-10)","v":{"$error":"#REF!"}},{"$f":"LEFT(#REF!,LEN(#REF!)-10)","v":{"$error":"#REF!"}},{"$f":"LEFT(#REF!,LEN(#REF!)-10)","v":{"$error":"#REF!"}},{"$f":"LEFT(#REF!,LEN(#REF!)-10)","v":{"$error":"#REF!"}},{"$f":"LEFT(#REF!,LEN(#REF!)-10)","v":{"$error":"#REF!"}},{"$f":"LEFT(#REF!,LEN(#REF!)-10)","v":{"$error":"#REF!"}},{"$f":"LEFT(#REF!,LEN(#REF!)-10)","v":{"$error":"#REF!"}},{"$f":"LEFT(#REF!,LEN(#REF!)-10)","v":{"$error":"#REF!"}},{"$f":"LEFT(#REF!,LEN(#REF!)-10)","v":{"$error":"#REF!"}},{"$f":"LEFT(#REF!,LEN(#REF!)-10)","v":{"$error":"#REF!"}},{"$f":"LEFT(#REF!,LEN(#REF!)-10)","v":{"$error":"#REF!"}},{"$f":"LEFT(#REF!,LEN(#REF!)-10)","v":{"$error":"#REF!"}},{"$f":"LEFT(#REF!,LEN(#REF!)-10)","v":{"$error":"#REF!"}}]
[null,null,null,"Estimate!!Total:!!Householder 25 to 44 years:!!$200,000 or more",0,12,21,32,0,12,8,9,8,7,24,34,24,31,99,103,108,94,0,12,3,5,2,3,8,9,81,53,2,4,5,5,5,7,15,12,47,53,20,14,25,42,19,21,0,12,null,null,null,null,null,null,null,null,null,null,null,null,null,null,null,null,null,null,null,null,null,null,null,null,null,null,null,null,null,null,null,null,null,null,null,null,null,null,null,null,null,null,null,null,null,null,null,null,null,null,null,null,{"$f":"LEFT(#REF!,LEN(#REF!)-10)","v":{"$error":"#REF!"}},{"$f":"LEFT(#REF!,LEN(#REF!)-10)","v":{"$error":"#REF!"}},{"$f":"LEFT(#REF!,LEN(#REF!)-10)","v":{"$error":"#REF!"}},{"$f":"LEFT(#REF!,LEN(#REF!)-10)","v":{"$error":"#REF!"}},{"$f":"LEFT(#REF!,LEN(#REF!)-10)","v":{"$error":"#REF!"}},{"$f":"LEFT(#REF!,LEN(#REF!)-10)","v":{"$error":"#REF!"}},{"$f":"LEFT(#REF!,LEN(#REF!)-10)","v":{"$error":"#REF!"}},{"$f":"LEFT(#REF!,LEN(#REF!)-10)","v":{"$error":"#REF!"}},{"$f":"LEFT(#REF!,LEN(#REF!)-10)","v":{"$error":"#REF!"}},{"$f":"LEFT(#REF!,LEN(#REF!)-10)","v":{"$error":"#REF!"}},{"$f":"LEFT(#REF!,LEN(#REF!)-10)","v":{"$error":"#REF!"}},{"$f":"LEFT(#REF!,LEN(#REF!)-10)","v":{"$error":"#REF!"}},{"$f":"LEFT(#REF!,LEN(#REF!)-10)","v":{"$error":"#REF!"}},{"$f":"LEFT(#REF!,LEN(#REF!)-10)","v":{"$error":"#REF!"}},{"$f":"LEFT(#REF!,LEN(#REF!)-10)","v":{"$error":"#REF!"}},{"$f":"LEFT(#REF!,LEN(#REF!)-10)","v":{"$error":"#REF!"}},{"$f":"LEFT(#REF!,LEN(#REF!)-10)","v":{"$error":"#REF!"}},{"$f":"LEFT(#REF!,LEN(#REF!)-10)","v":{"$error":"#REF!"}},{"$f":"LEFT(#REF!,LEN(#REF!)-10)","v":{"$error":"#REF!"}},{"$f":"LEFT(#REF!,LEN(#REF!)-10)","v":{"$error":"#REF!"}},{"$f":"LEFT(#REF!,LEN(#REF!)-10)","v":{"$error":"#REF!"}},{"$f":"LEFT(#REF!,LEN(#REF!)-10)","v":{"$error":"#REF!"}},{"$f":"LEFT(#REF!,LEN(#REF!)-10)","v":{"$error":"#REF!"}},{"$f":"LEFT(#REF!,LEN(#REF!)-10)","v":{"$error":"#REF!"}},{"$f":"LEFT(#REF!,LEN(#REF!)-10)","v":{"$error":"#REF!"}},{"$f":"LEFT(#REF!,LEN(#REF!)-10)","v":{"$error":"#REF!"}},{"$f":"LEFT(#REF!,LEN(#REF!)-10)","v":{"$error":"#REF!"}},{"$f":"LEFT(#REF!,LEN(#REF!)-10)","v":{"$error":"#REF!"}},{"$f":"LEFT(#REF!,LEN(#REF!)-10)","v":{"$error":"#REF!"}},{"$f":"LEFT(#REF!,LEN(#REF!)-10)","v":{"$error":"#REF!"}},{"$f":"LEFT(#REF!,LEN(#REF!)-10)","v":{"$error":"#REF!"}},{"$f":"LEFT(#REF!,LEN(#REF!)-10)","v":{"$error":"#REF!"}},{"$f":"LEFT(#REF!,LEN(#REF!)-10)","v":{"$error":"#REF!"}},{"$f":"LEFT(#REF!,LEN(#REF!)-10)","v":{"$error":"#REF!"}},{"$f":"LEFT(#REF!,LEN(#REF!)-10)","v":{"$error":"#REF!"}},{"$f":"LEFT(#REF!,LEN(#REF!)-10)","v":{"$error":"#REF!"}},{"$f":"LEFT(#REF!,LEN(#REF!)-10)","v":{"$error":"#REF!"}},{"$f":"LEFT(#REF!,LEN(#REF!)-10)","v":{"$error":"#REF!"}},{"$f":"LEFT(#REF!,LEN(#REF!)-10)","v":{"$error":"#REF!"}},{"$f":"LEFT(#REF!,LEN(#REF!)-10)","v":{"$error":"#REF!"}},{"$f":"LEFT(#REF!,LEN(#REF!)-10)","v":{"$error":"#REF!"}},{"$f":"LEFT(#REF!,LEN(#REF!)-10)","v":{"$error":"#REF!"}},{"$f":"LEFT(#REF!,LEN(#REF!)-10)","v":{"$error":"#REF!"}},{"$f":"LEFT(#REF!,LEN(#REF!)-10)","v":{"$error":"#REF!"}},{"$f":"LEFT(#REF!,LEN(#REF!)-10)","v":{"$error":"#REF!"}},{"$f":"LEFT(#REF!,LEN(#REF!)-10)","v":{"$error":"#REF!"}},{"$f":"LEFT(#REF!,LEN(#REF!)-10)","v":{"$error":"#REF!"}},{"$f":"LEFT(#REF!,LEN(#REF!)-10)","v":{"$error":"#REF!"}},{"$f":"LEFT(#REF!,LEN(#REF!)-10)","v":{"$error":"#REF!"}},{"$f":"LEFT(#REF!,LEN(#REF!)-10)","v":{"$error":"#REF!"}},{"$f":"LEFT(#REF!,LEN(#REF!)-10)","v":{"$error":"#REF!"}},{"$f":"LEFT(#REF!,LEN(#REF!)-10)","v":{"$error":"#REF!"}},{"$f":"LEFT(#REF!,LEN(#REF!)-10)","v":{"$error":"#REF!"}},{"$f":"LEFT(#REF!,LEN(#REF!)-10)","v":{"$error":"#REF!"}},{"$f":"LEFT(#REF!,LEN(#REF!)-10)","v":{"$error":"#REF!"}},{"$f":"LEFT(#REF!,LEN(#REF!)-10)","v":{"$error":"#REF!"}},{"$f":"LEFT(#REF!,LEN(#REF!)-10)","v":{"$error":"#REF!"}},{"$f":"LEFT(#REF!,LEN(#REF!)-10)","v":{"$error":"#REF!"}},{"$f":"LEFT(#REF!,LEN(#REF!)-10)","v":{"$error":"#REF!"}},{"$f":"LEFT(#REF!,LEN(#REF!)-10)","v":{"$error":"#REF!"}},{"$f":"LEFT(#REF!,LEN(#REF!)-10)","v":{"$error":"#REF!"}},{"$f":"LEFT(#REF!,LEN(#REF!)-10)","v":{"$error":"#REF!"}},{"$f":"LEFT(#REF!,LEN(#REF!)-10)","v":{"$error":"#REF!"}},{"$f":"LEFT(#REF!,LEN(#REF!)-10)","v":{"$error":"#REF!"}},{"$f":"LEFT(#REF!,LEN(#REF!)-10)","v":{"$error":"#REF!"}},{"$f":"LEFT(#REF!,LEN(#REF!)-10)","v":{"$error":"#REF!"}},{"$f":"LEFT(#REF!,LEN(#REF!)-10)","v":{"$error":"#REF!"}},{"$f":"LEFT(#REF!,LEN(#REF!)-10)","v":{"$error":"#REF!"}},{"$f":"LEFT(#REF!,LEN(#REF!)-10)","v":{"$error":"#REF!"}},{"$f":"LEFT(#REF!,LEN(#REF!)-10)","v":{"$error":"#REF!"}},{"$f":"LEFT(#REF!,LEN(#REF!)-10)","v":{"$error":"#REF!"}},{"$f":"LEFT(#REF!,LEN(#REF!)-10)","v":{"$error":"#REF!"}},{"$f":"LEFT(#REF!,LEN(#REF!)-10)","v":{"$error":"#REF!"}},{"$f":"LEFT(#REF!,LEN(#REF!)-10)","v":{"$error":"#REF!"}},{"$f":"LEFT(#REF!,LEN(#REF!)-10)","v":{"$error":"#REF!"}},{"$f":"LEFT(#REF!,LEN(#REF!)-10)","v":{"$error":"#REF!"}},{"$f":"LEFT(#REF!,LEN(#REF!)-10)","v":{"$error":"#REF!"}},{"$f":"LEFT(#REF!,LEN(#REF!)-10)","v":{"$error":"#REF!"}},{"$f":"LEFT(#REF!,LEN(#REF!)-10)","v":{"$error":"#REF!"}},{"$f":"LEFT(#REF!,LEN(#REF!)-10)","v":{"$error":"#REF!"}},{"$f":"LEFT(#REF!,LEN(#REF!)-10)","v":{"$error":"#REF!"}},{"$f":"LEFT(#REF!,LEN(#REF!)-10)","v":{"$error":"#REF!"}},{"$f":"LEFT(#REF!,LEN(#REF!)-10)","v":{"$error":"#REF!"}},{"$f":"LEFT(#REF!,LEN(#REF!)-10)","v":{"$error":"#REF!"}},{"$f":"LEFT(#REF!,LEN(#REF!)-10)","v":{"$error":"#REF!"}},{"$f":"LEFT(#REF!,LEN(#REF!)-10)","v":{"$error":"#REF!"}},{"$f":"LEFT(#REF!,LEN(#REF!)-10)","v":{"$error":"#REF!"}},{"$f":"LEFT(#REF!,LEN(#REF!)-10)","v":{"$error":"#REF!"}},{"$f":"LEFT(#REF!,LEN(#REF!)-10)","v":{"$error":"#REF!"}},{"$f":"LEFT(#REF!,LEN(#REF!)-10)","v":{"$error":"#REF!"}},{"$f":"LEFT(#REF!,LEN(#REF!)-10)","v":{"$error":"#REF!"}},{"$f":"LEFT(#REF!,LEN(#REF!)-10)","v":{"$error":"#REF!"}},{"$f":"LEFT(#REF!,LEN(#REF!)-10)","v":{"$error":"#REF!"}},{"$f":"LEFT(#REF!,LEN(#REF!)-10)","v":{"$error":"#REF!"}},{"$f":"LEFT(#REF!,LEN(#REF!)-10)","v":{"$error":"#REF!"}},{"$f":"LEFT(#REF!,LEN(#REF!)-10)","v":{"$error":"#REF!"}},{"$f":"LEFT(#REF!,LEN(#REF!)-10)","v":{"$error":"#REF!"}},{"$f":"LEFT(#REF!,LEN(#REF!)-10)","v":{"$error":"#REF!"}},{"$f":"LEFT(#REF!,LEN(#REF!)-10)","v":{"$error":"#REF!"}},{"$f":"LEFT(#REF!,LEN(#REF!)-10)","v":{"$error":"#REF!"}},{"$f":"LEFT(#REF!,LEN(#REF!)-10)","v":{"$error":"#REF!"}},{"$f":"LEFT(#REF!,LEN(#REF!)-10)","v":{"$error":"#REF!"}},{"$f":"LEFT(#REF!,LEN(#REF!)-10)","v":{"$error":"#REF!"}},{"$f":"LEFT(#REF!,LEN(#REF!)-10)","v":{"$error":"#REF!"}},{"$f":"LEFT(#REF!,LEN(#REF!)-10)","v":{"$error":"#REF!"}},{"$f":"LEFT(#REF!,LEN(#REF!)-10)","v":{"$error":"#REF!"}},{"$f":"LEFT(#REF!,LEN(#REF!)-10)","v":{"$error":"#REF!"}},{"$f":"LEFT(#REF!,LEN(#REF!)-10)","v":{"$error":"#REF!"}},{"$f":"LEFT(#REF!,LEN(#REF!)-10)","v":{"$error":"#REF!"}},{"$f":"LEFT(#REF!,LEN(#REF!)-10)","v":{"$error":"#REF!"}},{"$f":"LEFT(#REF!,LEN(#REF!)-10)","v":{"$error":"#REF!"}},{"$f":"LEFT(#REF!,LEN(#REF!)-10)","v":{"$error":"#REF!"}},{"$f":"LEFT(#REF!,LEN(#REF!)-10)","v":{"$error":"#REF!"}},{"$f":"LEFT(#REF!,LEN(#REF!)-10)","v":{"$error":"#REF!"}},{"$f":"LEFT(#REF!,LEN(#REF!)-10)","v":{"$error":"#REF!"}},{"$f":"LEFT(#REF!,LEN(#REF!)-10)","v":{"$error":"#REF!"}},{"$f":"LEFT(#REF!,LEN(#REF!)-10)","v":{"$error":"#REF!"}},{"$f":"LEFT(#REF!,LEN(#REF!)-10)","v":{"$error":"#REF!"}},{"$f":"LEFT(#REF!,LEN(#REF!)-10)","v":{"$error":"#REF!"}},{"$f":"LEFT(#REF!,LEN(#REF!)-10)","v":{"$error":"#REF!"}},{"$f":"LEFT(#REF!,LEN(#REF!)-10)","v":{"$error":"#REF!"}},{"$f":"LEFT(#REF!,LEN(#REF!)-10)","v":{"$error":"#REF!"}},{"$f":"LEFT(#REF!,LEN(#REF!)-10)","v":{"$error":"#REF!"}},{"$f":"LEFT(#REF!,LEN(#REF!)-10)","v":{"$error":"#REF!"}},{"$f":"LEFT(#REF!,LEN(#REF!)-10)","v":{"$error":"#REF!"}},{"$f":"LEFT(#REF!,LEN(#REF!)-10)","v":{"$error":"#REF!"}},{"$f":"LEFT(#REF!,LEN(#REF!)-10)","v":{"$error":"#REF!"}},{"$f":"LEFT(#REF!,LEN(#REF!)-10)","v":{"$error":"#REF!"}},{"$f":"LEFT(#REF!,LEN(#REF!)-10)","v":{"$error":"#REF!"}},{"$f":"LEFT(#REF!,LEN(#REF!)-10)","v":{"$error":"#REF!"}},{"$f":"LEFT(#REF!,LEN(#REF!)-10)","v":{"$error":"#REF!"}},{"$f":"LEFT(#REF!,LEN(#REF!)-10)","v":{"$error":"#REF!"}},{"$f":"LEFT(#REF!,LEN(#REF!)-10)","v":{"$error":"#REF!"}},{"$f":"LEFT(#REF!,LEN(#REF!)-10)","v":{"$error":"#REF!"}},{"$f":"LEFT(#REF!,LEN(#REF!)-10)","v":{"$error":"#REF!"}},{"$f":"LEFT(#REF!,LEN(#REF!)-10)","v":{"$error":"#REF!"}},{"$f":"LEFT(#REF!,LEN(#REF!)-10)","v":{"$error":"#REF!"}},{"$f":"LEFT(#REF!,LEN(#REF!)-10)","v":{"$error":"#REF!"}},{"$f":"LEFT(#REF!,LEN(#REF!)-10)","v":{"$error":"#REF!"}},{"$f":"LEFT(#REF!,LEN(#REF!)-10)","v":{"$error":"#REF!"}},{"$f":"LEFT(#REF!,LEN(#REF!)-10)","v":{"$error":"#REF!"}},{"$f":"LEFT(#REF!,LEN(#REF!)-10)","v":{"$error":"#REF!"}},{"$f":"LEFT(#REF!,LEN(#REF!)-10)","v":{"$error":"#REF!"}},{"$f":"LEFT(#REF!,LEN(#REF!)-10)","v":{"$error":"#REF!"}},{"$f":"LEFT(#REF!,LEN(#REF!)-10)","v":{"$error":"#REF!"}},{"$f":"LEFT(#REF!,LEN(#REF!)-10)","v":{"$error":"#REF!"}},{"$f":"LEFT(#REF!,LEN(#REF!)-10)","v":{"$error":"#REF!"}},{"$f":"LEFT(#REF!,LEN(#REF!)-10)","v":{"$error":"#REF!"}},{"$f":"LEFT(#REF!,LEN(#REF!)-10)","v":{"$error":"#REF!"}},{"$f":"LEFT(#REF!,LEN(#REF!)-10)","v":{"$error":"#REF!"}},{"$f":"LEFT(#REF!,LEN(#REF!)-10)","v":{"$error":"#REF!"}},{"$f":"LEFT(#REF!,LEN(#REF!)-10)","v":{"$error":"#REF!"}},{"$f":"LEFT(#REF!,LEN(#REF!)-10)","v":{"$error":"#REF!"}},{"$f":"LEFT(#REF!,LEN(#REF!)-10)","v":{"$error":"#REF!"}}]
[null,null,null,"Estimate!!Total:!!Householder 45 to 64 years:",294,75,466,165,301,79,469,86,133,41,150,47,677,122,1065,226,3036,266,325,86,129,39,88,29,173,48,766,126,57,37,220,42,113,27,107,34,1231,190,234,73,584,105,374,95,633,113,null,null,null,null,null,null,null,null,null,null,null,null,null,null,null,null,null,null,null,null,null,null,null,null,null,null,null,null,null,null,null,null,null,null,null,null,null,null,null,null,null,null,null,null,null,null,null,null,null,null,null,null,{"$f":"LEFT(#REF!,LEN(#REF!)-10)","v":{"$error":"#REF!"}},{"$f":"LEFT(#REF!,LEN(#REF!)-10)","v":{"$error":"#REF!"}},{"$f":"LEFT(#REF!,LEN(#REF!)-10)","v":{"$error":"#REF!"}},{"$f":"LEFT(#REF!,LEN(#REF!)-10)","v":{"$error":"#REF!"}},{"$f":"LEFT(#REF!,LEN(#REF!)-10)","v":{"$error":"#REF!"}},{"$f":"LEFT(#REF!,LEN(#REF!)-10)","v":{"$error":"#REF!"}},{"$f":"LEFT(#REF!,LEN(#REF!)-10)","v":{"$error":"#REF!"}},{"$f":"LEFT(#REF!,LEN(#REF!)-10)","v":{"$error":"#REF!"}},{"$f":"LEFT(#REF!,LEN(#REF!)-10)","v":{"$error":"#REF!"}},{"$f":"LEFT(#REF!,LEN(#REF!)-10)","v":{"$error":"#REF!"}},{"$f":"LEFT(#REF!,LEN(#REF!)-10)","v":{"$error":"#REF!"}},{"$f":"LEFT(#REF!,LEN(#REF!)-10)","v":{"$error":"#REF!"}},{"$f":"LEFT(#REF!,LEN(#REF!)-10)","v":{"$error":"#REF!"}},{"$f":"LEFT(#REF!,LEN(#REF!)-10)","v":{"$error":"#REF!"}},{"$f":"LEFT(#REF!,LEN(#REF!)-10)","v":{"$error":"#REF!"}},{"$f":"LEFT(#REF!,LEN(#REF!)-10)","v":{"$error":"#REF!"}},{"$f":"LEFT(#REF!,LEN(#REF!)-10)","v":{"$error":"#REF!"}},{"$f":"LEFT(#REF!,LEN(#REF!)-10)","v":{"$error":"#REF!"}},{"$f":"LEFT(#REF!,LEN(#REF!)-10)","v":{"$error":"#REF!"}},{"$f":"LEFT(#REF!,LEN(#REF!)-10)","v":{"$error":"#REF!"}},{"$f":"LEFT(#REF!,LEN(#REF!)-10)","v":{"$error":"#REF!"}},{"$f":"LEFT(#REF!,LEN(#REF!)-10)","v":{"$error":"#REF!"}},{"$f":"LEFT(#REF!,LEN(#REF!)-10)","v":{"$error":"#REF!"}},{"$f":"LEFT(#REF!,LEN(#REF!)-10)","v":{"$error":"#REF!"}},{"$f":"LEFT(#REF!,LEN(#REF!)-10)","v":{"$error":"#REF!"}},{"$f":"LEFT(#REF!,LEN(#REF!)-10)","v":{"$error":"#REF!"}},{"$f":"LEFT(#REF!,LEN(#REF!)-10)","v":{"$error":"#REF!"}},{"$f":"LEFT(#REF!,LEN(#REF!)-10)","v":{"$error":"#REF!"}},{"$f":"LEFT(#REF!,LEN(#REF!)-10)","v":{"$error":"#REF!"}},{"$f":"LEFT(#REF!,LEN(#REF!)-10)","v":{"$error":"#REF!"}},{"$f":"LEFT(#REF!,LEN(#REF!)-10)","v":{"$error":"#REF!"}},{"$f":"LEFT(#REF!,LEN(#REF!)-10)","v":{"$error":"#REF!"}},{"$f":"LEFT(#REF!,LEN(#REF!)-10)","v":{"$error":"#REF!"}},{"$f":"LEFT(#REF!,LEN(#REF!)-10)","v":{"$error":"#REF!"}},{"$f":"LEFT(#REF!,LEN(#REF!)-10)","v":{"$error":"#REF!"}},{"$f":"LEFT(#REF!,LEN(#REF!)-10)","v":{"$error":"#REF!"}},{"$f":"LEFT(#REF!,LEN(#REF!)-10)","v":{"$error":"#REF!"}},{"$f":"LEFT(#REF!,LEN(#REF!)-10)","v":{"$error":"#REF!"}},{"$f":"LEFT(#REF!,LEN(#REF!)-10)","v":{"$error":"#REF!"}},{"$f":"LEFT(#REF!,LEN(#REF!)-10)","v":{"$error":"#REF!"}},{"$f":"LEFT(#REF!,LEN(#REF!)-10)","v":{"$error":"#REF!"}},{"$f":"LEFT(#REF!,LEN(#REF!)-10)","v":{"$error":"#REF!"}},{"$f":"LEFT(#REF!,LEN(#REF!)-10)","v":{"$error":"#REF!"}},{"$f":"LEFT(#REF!,LEN(#REF!)-10)","v":{"$error":"#REF!"}},{"$f":"LEFT(#REF!,LEN(#REF!)-10)","v":{"$error":"#REF!"}},{"$f":"LEFT(#REF!,LEN(#REF!)-10)","v":{"$error":"#REF!"}},{"$f":"LEFT(#REF!,LEN(#REF!)-10)","v":{"$error":"#REF!"}},{"$f":"LEFT(#REF!,LEN(#REF!)-10)","v":{"$error":"#REF!"}},{"$f":"LEFT(#REF!,LEN(#REF!)-10)","v":{"$error":"#REF!"}},{"$f":"LEFT(#REF!,LEN(#REF!)-10)","v":{"$error":"#REF!"}},{"$f":"LEFT(#REF!,LEN(#REF!)-10)","v":{"$error":"#REF!"}},{"$f":"LEFT(#REF!,LEN(#REF!)-10)","v":{"$error":"#REF!"}},{"$f":"LEFT(#REF!,LEN(#REF!)-10)","v":{"$error":"#REF!"}},{"$f":"LEFT(#REF!,LEN(#REF!)-10)","v":{"$error":"#REF!"}},{"$f":"LEFT(#REF!,LEN(#REF!)-10)","v":{"$error":"#REF!"}},{"$f":"LEFT(#REF!,LEN(#REF!)-10)","v":{"$error":"#REF!"}},{"$f":"LEFT(#REF!,LEN(#REF!)-10)","v":{"$error":"#REF!"}},{"$f":"LEFT(#REF!,LEN(#REF!)-10)","v":{"$error":"#REF!"}},{"$f":"LEFT(#REF!,LEN(#REF!)-10)","v":{"$error":"#REF!"}},{"$f":"LEFT(#REF!,LEN(#REF!)-10)","v":{"$error":"#REF!"}},{"$f":"LEFT(#REF!,LEN(#REF!)-10)","v":{"$error":"#REF!"}},{"$f":"LEFT(#REF!,LEN(#REF!)-10)","v":{"$error":"#REF!"}},{"$f":"LEFT(#REF!,LEN(#REF!)-10)","v":{"$error":"#REF!"}},{"$f":"LEFT(#REF!,LEN(#REF!)-10)","v":{"$error":"#REF!"}},{"$f":"LEFT(#REF!,LEN(#REF!)-10)","v":{"$error":"#REF!"}},{"$f":"LEFT(#REF!,LEN(#REF!)-10)","v":{"$error":"#REF!"}},{"$f":"LEFT(#REF!,LEN(#REF!)-10)","v":{"$error":"#REF!"}},{"$f":"LEFT(#REF!,LEN(#REF!)-10)","v":{"$error":"#REF!"}},{"$f":"LEFT(#REF!,LEN(#REF!)-10)","v":{"$error":"#REF!"}},{"$f":"LEFT(#REF!,LEN(#REF!)-10)","v":{"$error":"#REF!"}},{"$f":"LEFT(#REF!,LEN(#REF!)-10)","v":{"$error":"#REF!"}},{"$f":"LEFT(#REF!,LEN(#REF!)-10)","v":{"$error":"#REF!"}},{"$f":"LEFT(#REF!,LEN(#REF!)-10)","v":{"$error":"#REF!"}},{"$f":"LEFT(#REF!,LEN(#REF!)-10)","v":{"$error":"#REF!"}},{"$f":"LEFT(#REF!,LEN(#REF!)-10)","v":{"$error":"#REF!"}},{"$f":"LEFT(#REF!,LEN(#REF!)-10)","v":{"$error":"#REF!"}},{"$f":"LEFT(#REF!,LEN(#REF!)-10)","v":{"$error":"#REF!"}},{"$f":"LEFT(#REF!,LEN(#REF!)-10)","v":{"$error":"#REF!"}},{"$f":"LEFT(#REF!,LEN(#REF!)-10)","v":{"$error":"#REF!"}},{"$f":"LEFT(#REF!,LEN(#REF!)-10)","v":{"$error":"#REF!"}},{"$f":"LEFT(#REF!,LEN(#REF!)-10)","v":{"$error":"#REF!"}},{"$f":"LEFT(#REF!,LEN(#REF!)-10)","v":{"$error":"#REF!"}},{"$f":"LEFT(#REF!,LEN(#REF!)-10)","v":{"$error":"#REF!"}},{"$f":"LEFT(#REF!,LEN(#REF!)-10)","v":{"$error":"#REF!"}},{"$f":"LEFT(#REF!,LEN(#REF!)-10)","v":{"$error":"#REF!"}},{"$f":"LEFT(#REF!,LEN(#REF!)-10)","v":{"$error":"#REF!"}},{"$f":"LEFT(#REF!,LEN(#REF!)-10)","v":{"$error":"#REF!"}},{"$f":"LEFT(#REF!,LEN(#REF!)-10)","v":{"$error":"#REF!"}},{"$f":"LEFT(#REF!,LEN(#REF!)-10)","v":{"$error":"#REF!"}},{"$f":"LEFT(#REF!,LEN(#REF!)-10)","v":{"$error":"#REF!"}},{"$f":"LEFT(#REF!,LEN(#REF!)-10)","v":{"$error":"#REF!"}},{"$f":"LEFT(#REF!,LEN(#REF!)-10)","v":{"$error":"#REF!"}},{"$f":"LEFT(#REF!,LEN(#REF!)-10)","v":{"$error":"#REF!"}},{"$f":"LEFT(#REF!,LEN(#REF!)-10)","v":{"$error":"#REF!"}},{"$f":"LEFT(#REF!,LEN(#REF!)-10)","v":{"$error":"#REF!"}},{"$f":"LEFT(#REF!,LEN(#REF!)-10)","v":{"$error":"#REF!"}},{"$f":"LEFT(#REF!,LEN(#REF!)-10)","v":{"$error":"#REF!"}},{"$f":"LEFT(#REF!,LEN(#REF!)-10)","v":{"$error":"#REF!"}},{"$f":"LEFT(#REF!,LEN(#REF!)-10)","v":{"$error":"#REF!"}},{"$f":"LEFT(#REF!,LEN(#REF!)-10)","v":{"$error":"#REF!"}},{"$f":"LEFT(#REF!,LEN(#REF!)-10)","v":{"$error":"#REF!"}},{"$f":"LEFT(#REF!,LEN(#REF!)-10)","v":{"$error":"#REF!"}},{"$f":"LEFT(#REF!,LEN(#REF!)-10)","v":{"$error":"#REF!"}},{"$f":"LEFT(#REF!,LEN(#REF!)-10)","v":{"$error":"#REF!"}},{"$f":"LEFT(#REF!,LEN(#REF!)-10)","v":{"$error":"#REF!"}},{"$f":"LEFT(#REF!,LEN(#REF!)-10)","v":{"$error":"#REF!"}},{"$f":"LEFT(#REF!,LEN(#REF!)-10)","v":{"$error":"#REF!"}},{"$f":"LEFT(#REF!,LEN(#REF!)-10)","v":{"$error":"#REF!"}},{"$f":"LEFT(#REF!,LEN(#REF!)-10)","v":{"$error":"#REF!"}},{"$f":"LEFT(#REF!,LEN(#REF!)-10)","v":{"$error":"#REF!"}},{"$f":"LEFT(#REF!,LEN(#REF!)-10)","v":{"$error":"#REF!"}},{"$f":"LEFT(#REF!,LEN(#REF!)-10)","v":{"$error":"#REF!"}},{"$f":"LEFT(#REF!,LEN(#REF!)-10)","v":{"$error":"#REF!"}},{"$f":"LEFT(#REF!,LEN(#REF!)-10)","v":{"$error":"#REF!"}},{"$f":"LEFT(#REF!,LEN(#REF!)-10)","v":{"$error":"#REF!"}},{"$f":"LEFT(#REF!,LEN(#REF!)-10)","v":{"$error":"#REF!"}},{"$f":"LEFT(#REF!,LEN(#REF!)-10)","v":{"$error":"#REF!"}},{"$f":"LEFT(#REF!,LEN(#REF!)-10)","v":{"$error":"#REF!"}},{"$f":"LEFT(#REF!,LEN(#REF!)-10)","v":{"$error":"#REF!"}},{"$f":"LEFT(#REF!,LEN(#REF!)-10)","v":{"$error":"#REF!"}},{"$f":"LEFT(#REF!,LEN(#REF!)-10)","v":{"$error":"#REF!"}},{"$f":"LEFT(#REF!,LEN(#REF!)-10)","v":{"$error":"#REF!"}},{"$f":"LEFT(#REF!,LEN(#REF!)-10)","v":{"$error":"#REF!"}},{"$f":"LEFT(#REF!,LEN(#REF!)-10)","v":{"$error":"#REF!"}},{"$f":"LEFT(#REF!,LEN(#REF!)-10)","v":{"$error":"#REF!"}},{"$f":"LEFT(#REF!,LEN(#REF!)-10)","v":{"$error":"#REF!"}},{"$f":"LEFT(#REF!,LEN(#REF!)-10)","v":{"$error":"#REF!"}},{"$f":"LEFT(#REF!,LEN(#REF!)-10)","v":{"$error":"#REF!"}},{"$f":"LEFT(#REF!,LEN(#REF!)-10)","v":{"$error":"#REF!"}},{"$f":"LEFT(#REF!,LEN(#REF!)-10)","v":{"$error":"#REF!"}},{"$f":"LEFT(#REF!,LEN(#REF!)-10)","v":{"$error":"#REF!"}},{"$f":"LEFT(#REF!,LEN(#REF!)-10)","v":{"$error":"#REF!"}},{"$f":"LEFT(#REF!,LEN(#REF!)-10)","v":{"$error":"#REF!"}},{"$f":"LEFT(#REF!,LEN(#REF!)-10)","v":{"$error":"#REF!"}},{"$f":"LEFT(#REF!,LEN(#REF!)-10)","v":{"$error":"#REF!"}},{"$f":"LEFT(#REF!,LEN(#REF!)-10)","v":{"$error":"#REF!"}},{"$f":"LEFT(#REF!,LEN(#REF!)-10)","v":{"$error":"#REF!"}},{"$f":"LEFT(#REF!,LEN(#REF!)-10)","v":{"$error":"#REF!"}},{"$f":"LEFT(#REF!,LEN(#REF!)-10)","v":{"$error":"#REF!"}},{"$f":"LEFT(#REF!,LEN(#REF!)-10)","v":{"$error":"#REF!"}},{"$f":"LEFT(#REF!,LEN(#REF!)-10)","v":{"$error":"#REF!"}},{"$f":"LEFT(#REF!,LEN(#REF!)-10)","v":{"$error":"#REF!"}},{"$f":"LEFT(#REF!,LEN(#REF!)-10)","v":{"$error":"#REF!"}},{"$f":"LEFT(#REF!,LEN(#REF!)-10)","v":{"$error":"#REF!"}},{"$f":"LEFT(#REF!,LEN(#REF!)-10)","v":{"$error":"#REF!"}},{"$f":"LEFT(#REF!,LEN(#REF!)-10)","v":{"$error":"#REF!"}},{"$f":"LEFT(#REF!,LEN(#REF!)-10)","v":{"$error":"#REF!"}},{"$f":"LEFT(#REF!,LEN(#REF!)-10)","v":{"$error":"#REF!"}},{"$f":"LEFT(#REF!,LEN(#REF!)-10)","v":{"$error":"#REF!"}},{"$f":"LEFT(#REF!,LEN(#REF!)-10)","v":{"$error":"#REF!"}},{"$f":"LEFT(#REF!,LEN(#REF!)-10)","v":{"$error":"#REF!"}},{"$f":"LEFT(#REF!,LEN(#REF!)-10)","v":{"$error":"#REF!"}},{"$f":"LEFT(#REF!,LEN(#REF!)-10)","v":{"$error":"#REF!"}},{"$f":"LEFT(#REF!,LEN(#REF!)-10)","v":{"$error":"#REF!"}}]
[null,null,null,"Estimate!!Total:!!Householder 45 to 64 years:!!Less than $10,000",0,12,0,12,18,15,45,34,0,12,7,9,0,12,0,17,56,43,14,16,0,12,2,3,0,12,0,17,0,12,8,12,0,12,0,12,12,21,26,29,32,38,0,12,10,16,null,null,null,null,null,null,null,null,null,null,null,null,null,null,null,null,null,null,null,null,null,null,null,null,null,null,null,null,null,null,null,null,null,null,null,null,null,null,null,null,null,null,null,null,null,null,null,null,null,null,null,null,{"$f":"LEFT(#REF!,LEN(#REF!)-10)","v":{"$error":"#REF!"}},{"$f":"LEFT(#REF!,LEN(#REF!)-10)","v":{"$error":"#REF!"}},{"$f":"LEFT(#REF!,LEN(#REF!)-10)","v":{"$error":"#REF!"}},{"$f":"LEFT(#REF!,LEN(#REF!)-10)","v":{"$error":"#REF!"}},{"$f":"LEFT(#REF!,LEN(#REF!)-10)","v":{"$error":"#REF!"}},{"$f":"LEFT(#REF!,LEN(#REF!)-10)","v":{"$error":"#REF!"}},{"$f":"LEFT(#REF!,LEN(#REF!)-10)","v":{"$error":"#REF!"}},{"$f":"LEFT(#REF!,LEN(#REF!)-10)","v":{"$error":"#REF!"}},{"$f":"LEFT(#REF!,LEN(#REF!)-10)","v":{"$error":"#REF!"}},{"$f":"LEFT(#REF!,LEN(#REF!)-10)","v":{"$error":"#REF!"}},{"$f":"LEFT(#REF!,LEN(#REF!)-10)","v":{"$error":"#REF!"}},{"$f":"LEFT(#REF!,LEN(#REF!)-10)","v":{"$error":"#REF!"}},{"$f":"LEFT(#REF!,LEN(#REF!)-10)","v":{"$error":"#REF!"}},{"$f":"LEFT(#REF!,LEN(#REF!)-10)","v":{"$error":"#REF!"}},{"$f":"LEFT(#REF!,LEN(#REF!)-10)","v":{"$error":"#REF!"}},{"$f":"LEFT(#REF!,LEN(#REF!)-10)","v":{"$error":"#REF!"}},{"$f":"LEFT(#REF!,LEN(#REF!)-10)","v":{"$error":"#REF!"}},{"$f":"LEFT(#REF!,LEN(#REF!)-10)","v":{"$error":"#REF!"}},{"$f":"LEFT(#REF!,LEN(#REF!)-10)","v":{"$error":"#REF!"}},{"$f":"LEFT(#REF!,LEN(#REF!)-10)","v":{"$error":"#REF!"}},{"$f":"LEFT(#REF!,LEN(#REF!)-10)","v":{"$error":"#REF!"}},{"$f":"LEFT(#REF!,LEN(#REF!)-10)","v":{"$error":"#REF!"}},{"$f":"LEFT(#REF!,LEN(#REF!)-10)","v":{"$error":"#REF!"}},{"$f":"LEFT(#REF!,LEN(#REF!)-10)","v":{"$error":"#REF!"}},{"$f":"LEFT(#REF!,LEN(#REF!)-10)","v":{"$error":"#REF!"}},{"$f":"LEFT(#REF!,LEN(#REF!)-10)","v":{"$error":"#REF!"}},{"$f":"LEFT(#REF!,LEN(#REF!)-10)","v":{"$error":"#REF!"}},{"$f":"LEFT(#REF!,LEN(#REF!)-10)","v":{"$error":"#REF!"}},{"$f":"LEFT(#REF!,LEN(#REF!)-10)","v":{"$error":"#REF!"}},{"$f":"LEFT(#REF!,LEN(#REF!)-10)","v":{"$error":"#REF!"}},{"$f":"LEFT(#REF!,LEN(#REF!)-10)","v":{"$error":"#REF!"}},{"$f":"LEFT(#REF!,LEN(#REF!)-10)","v":{"$error":"#REF!"}},{"$f":"LEFT(#REF!,LEN(#REF!)-10)","v":{"$error":"#REF!"}},{"$f":"LEFT(#REF!,LEN(#REF!)-10)","v":{"$error":"#REF!"}},{"$f":"LEFT(#REF!,LEN(#REF!)-10)","v":{"$error":"#REF!"}},{"$f":"LEFT(#REF!,LEN(#REF!)-10)","v":{"$error":"#REF!"}},{"$f":"LEFT(#REF!,LEN(#REF!)-10)","v":{"$error":"#REF!"}},{"$f":"LEFT(#REF!,LEN(#REF!)-10)","v":{"$error":"#REF!"}},{"$f":"LEFT(#REF!,LEN(#REF!)-10)","v":{"$error":"#REF!"}},{"$f":"LEFT(#REF!,LEN(#REF!)-10)","v":{"$error":"#REF!"}},{"$f":"LEFT(#REF!,LEN(#REF!)-10)","v":{"$error":"#REF!"}},{"$f":"LEFT(#REF!,LEN(#REF!)-10)","v":{"$error":"#REF!"}},{"$f":"LEFT(#REF!,LEN(#REF!)-10)","v":{"$error":"#REF!"}},{"$f":"LEFT(#REF!,LEN(#REF!)-10)","v":{"$error":"#REF!"}},{"$f":"LEFT(#REF!,LEN(#REF!)-10)","v":{"$error":"#REF!"}},{"$f":"LEFT(#REF!,LEN(#REF!)-10)","v":{"$error":"#REF!"}},{"$f":"LEFT(#REF!,LEN(#REF!)-10)","v":{"$error":"#REF!"}},{"$f":"LEFT(#REF!,LEN(#REF!)-10)","v":{"$error":"#REF!"}},{"$f":"LEFT(#REF!,LEN(#REF!)-10)","v":{"$error":"#REF!"}},{"$f":"LEFT(#REF!,LEN(#REF!)-10)","v":{"$error":"#REF!"}},{"$f":"LEFT(#REF!,LEN(#REF!)-10)","v":{"$error":"#REF!"}},{"$f":"LEFT(#REF!,LEN(#REF!)-10)","v":{"$error":"#REF!"}},{"$f":"LEFT(#REF!,LEN(#REF!)-10)","v":{"$error":"#REF!"}},{"$f":"LEFT(#REF!,LEN(#REF!)-10)","v":{"$error":"#REF!"}},{"$f":"LEFT(#REF!,LEN(#REF!)-10)","v":{"$error":"#REF!"}},{"$f":"LEFT(#REF!,LEN(#REF!)-10)","v":{"$error":"#REF!"}},{"$f":"LEFT(#REF!,LEN(#REF!)-10)","v":{"$error":"#REF!"}},{"$f":"LEFT(#REF!,LEN(#REF!)-10)","v":{"$error":"#REF!"}},{"$f":"LEFT(#REF!,LEN(#REF!)-10)","v":{"$error":"#REF!"}},{"$f":"LEFT(#REF!,LEN(#REF!)-10)","v":{"$error":"#REF!"}},{"$f":"LEFT(#REF!,LEN(#REF!)-10)","v":{"$error":"#REF!"}},{"$f":"LEFT(#REF!,LEN(#REF!)-10)","v":{"$error":"#REF!"}},{"$f":"LEFT(#REF!,LEN(#REF!)-10)","v":{"$error":"#REF!"}},{"$f":"LEFT(#REF!,LEN(#REF!)-10)","v":{"$error":"#REF!"}},{"$f":"LEFT(#REF!,LEN(#REF!)-10)","v":{"$error":"#REF!"}},{"$f":"LEFT(#REF!,LEN(#REF!)-10)","v":{"$error":"#REF!"}},{"$f":"LEFT(#REF!,LEN(#REF!)-10)","v":{"$error":"#REF!"}},{"$f":"LEFT(#REF!,LEN(#REF!)-10)","v":{"$error":"#REF!"}},{"$f":"LEFT(#REF!,LEN(#REF!)-10)","v":{"$error":"#REF!"}},{"$f":"LEFT(#REF!,LEN(#REF!)-10)","v":{"$error":"#REF!"}},{"$f":"LEFT(#REF!,LEN(#REF!)-10)","v":{"$error":"#REF!"}},{"$f":"LEFT(#REF!,LEN(#REF!)-10)","v":{"$error":"#REF!"}},{"$f":"LEFT(#REF!,LEN(#REF!)-10)","v":{"$error":"#REF!"}},{"$f":"LEFT(#REF!,LEN(#REF!)-10)","v":{"$error":"#REF!"}},{"$f":"LEFT(#REF!,LEN(#REF!)-10)","v":{"$error":"#REF!"}},{"$f":"LEFT(#REF!,LEN(#REF!)-10)","v":{"$error":"#REF!"}},{"$f":"LEFT(#REF!,LEN(#REF!)-10)","v":{"$error":"#REF!"}},{"$f":"LEFT(#REF!,LEN(#REF!)-10)","v":{"$error":"#REF!"}},{"$f":"LEFT(#REF!,LEN(#REF!)-10)","v":{"$error":"#REF!"}},{"$f":"LEFT(#REF!,LEN(#REF!)-10)","v":{"$error":"#REF!"}},{"$f":"LEFT(#REF!,LEN(#REF!)-10)","v":{"$error":"#REF!"}},{"$f":"LEFT(#REF!,LEN(#REF!)-10)","v":{"$error":"#REF!"}},{"$f":"LEFT(#REF!,LEN(#REF!)-10)","v":{"$error":"#REF!"}},{"$f":"LEFT(#REF!,LEN(#REF!)-10)","v":{"$error":"#REF!"}},{"$f":"LEFT(#REF!,LEN(#REF!)-10)","v":{"$error":"#REF!"}},{"$f":"LEFT(#REF!,LEN(#REF!)-10)","v":{"$error":"#REF!"}},{"$f":"LEFT(#REF!,LEN(#REF!)-10)","v":{"$error":"#REF!"}},{"$f":"LEFT(#REF!,LEN(#REF!)-10)","v":{"$error":"#REF!"}},{"$f":"LEFT(#REF!,LEN(#REF!)-10)","v":{"$error":"#REF!"}},{"$f":"LEFT(#REF!,LEN(#REF!)-10)","v":{"$error":"#REF!"}},{"$f":"LEFT(#REF!,LEN(#REF!)-10)","v":{"$error":"#REF!"}},{"$f":"LEFT(#REF!,LEN(#REF!)-10)","v":{"$error":"#REF!"}},{"$f":"LEFT(#REF!,LEN(#REF!)-10)","v":{"$error":"#REF!"}},{"$f":"LEFT(#REF!,LEN(#REF!)-10)","v":{"$error":"#REF!"}},{"$f":"LEFT(#REF!,LEN(#REF!)-10)","v":{"$error":"#REF!"}},{"$f":"LEFT(#REF!,LEN(#REF!)-10)","v":{"$error":"#REF!"}},{"$f":"LEFT(#REF!,LEN(#REF!)-10)","v":{"$error":"#REF!"}},{"$f":"LEFT(#REF!,LEN(#REF!)-10)","v":{"$error":"#REF!"}},{"$f":"LEFT(#REF!,LEN(#REF!)-10)","v":{"$error":"#REF!"}},{"$f":"LEFT(#REF!,LEN(#REF!)-10)","v":{"$error":"#REF!"}},{"$f":"LEFT(#REF!,LEN(#REF!)-10)","v":{"$error":"#REF!"}},{"$f":"LEFT(#REF!,LEN(#REF!)-10)","v":{"$error":"#REF!"}},{"$f":"LEFT(#REF!,LEN(#REF!)-10)","v":{"$error":"#REF!"}},{"$f":"LEFT(#REF!,LEN(#REF!)-10)","v":{"$error":"#REF!"}},{"$f":"LEFT(#REF!,LEN(#REF!)-10)","v":{"$error":"#REF!"}},{"$f":"LEFT(#REF!,LEN(#REF!)-10)","v":{"$error":"#REF!"}},{"$f":"LEFT(#REF!,LEN(#REF!)-10)","v":{"$error":"#REF!"}},{"$f":"LEFT(#REF!,LEN(#REF!)-10)","v":{"$error":"#REF!"}},{"$f":"LEFT(#REF!,LEN(#REF!)-10)","v":{"$error":"#REF!"}},{"$f":"LEFT(#REF!,LEN(#REF!)-10)","v":{"$error":"#REF!"}},{"$f":"LEFT(#REF!,LEN(#REF!)-10)","v":{"$error":"#REF!"}},{"$f":"LEFT(#REF!,LEN(#REF!)-10)","v":{"$error":"#REF!"}},{"$f":"LEFT(#REF!,LEN(#REF!)-10)","v":{"$error":"#REF!"}},{"$f":"LEFT(#REF!,LEN(#REF!)-10)","v":{"$error":"#REF!"}},{"$f":"LEFT(#REF!,LEN(#REF!)-10)","v":{"$error":"#REF!"}},{"$f":"LEFT(#REF!,LEN(#REF!)-10)","v":{"$error":"#REF!"}},{"$f":"LEFT(#REF!,LEN(#REF!)-10)","v":{"$error":"#REF!"}},{"$f":"LEFT(#REF!,LEN(#REF!)-10)","v":{"$error":"#REF!"}},{"$f":"LEFT(#REF!,LEN(#REF!)-10)","v":{"$error":"#REF!"}},{"$f":"LEFT(#REF!,LEN(#REF!)-10)","v":{"$error":"#REF!"}},{"$f":"LEFT(#REF!,LEN(#REF!)-10)","v":{"$error":"#REF!"}},{"$f":"LEFT(#REF!,LEN(#REF!)-10)","v":{"$error":"#REF!"}},{"$f":"LEFT(#REF!,LEN(#REF!)-10)","v":{"$error":"#REF!"}},{"$f":"LEFT(#REF!,LEN(#REF!)-10)","v":{"$error":"#REF!"}},{"$f":"LEFT(#REF!,LEN(#REF!)-10)","v":{"$error":"#REF!"}},{"$f":"LEFT(#REF!,LEN(#REF!)-10)","v":{"$error":"#REF!"}},{"$f":"LEFT(#REF!,LEN(#REF!)-10)","v":{"$error":"#REF!"}},{"$f":"LEFT(#REF!,LEN(#REF!)-10)","v":{"$error":"#REF!"}},{"$f":"LEFT(#REF!,LEN(#REF!)-10)","v":{"$error":"#REF!"}},{"$f":"LEFT(#REF!,LEN(#REF!)-10)","v":{"$error":"#REF!"}},{"$f":"LEFT(#REF!,LEN(#REF!)-10)","v":{"$error":"#REF!"}},{"$f":"LEFT(#REF!,LEN(#REF!)-10)","v":{"$error":"#REF!"}},{"$f":"LEFT(#REF!,LEN(#REF!)-10)","v":{"$error":"#REF!"}},{"$f":"LEFT(#REF!,LEN(#REF!)-10)","v":{"$error":"#REF!"}},{"$f":"LEFT(#REF!,LEN(#REF!)-10)","v":{"$error":"#REF!"}},{"$f":"LEFT(#REF!,LEN(#REF!)-10)","v":{"$error":"#REF!"}},{"$f":"LEFT(#REF!,LEN(#REF!)-10)","v":{"$error":"#REF!"}},{"$f":"LEFT(#REF!,LEN(#REF!)-10)","v":{"$error":"#REF!"}},{"$f":"LEFT(#REF!,LEN(#REF!)-10)","v":{"$error":"#REF!"}},{"$f":"LEFT(#REF!,LEN(#REF!)-10)","v":{"$error":"#REF!"}},{"$f":"LEFT(#REF!,LEN(#REF!)-10)","v":{"$error":"#REF!"}},{"$f":"LEFT(#REF!,LEN(#REF!)-10)","v":{"$error":"#REF!"}},{"$f":"LEFT(#REF!,LEN(#REF!)-10)","v":{"$error":"#REF!"}},{"$f":"LEFT(#REF!,LEN(#REF!)-10)","v":{"$error":"#REF!"}},{"$f":"LEFT(#REF!,LEN(#REF!)-10)","v":{"$error":"#REF!"}},{"$f":"LEFT(#REF!,LEN(#REF!)-10)","v":{"$error":"#REF!"}},{"$f":"LEFT(#REF!,LEN(#REF!)-10)","v":{"$error":"#REF!"}},{"$f":"LEFT(#REF!,LEN(#REF!)-10)","v":{"$error":"#REF!"}},{"$f":"LEFT(#REF!,LEN(#REF!)-10)","v":{"$error":"#REF!"}},{"$f":"LEFT(#REF!,LEN(#REF!)-10)","v":{"$error":"#REF!"}},{"$f":"LEFT(#REF!,LEN(#REF!)-10)","v":{"$error":"#REF!"}},{"$f":"LEFT(#REF!,LEN(#REF!)-10)","v":{"$error":"#REF!"}},{"$f":"LEFT(#REF!,LEN(#REF!)-10)","v":{"$error":"#REF!"}},{"$f":"LEFT(#REF!,LEN(#REF!)-10)","v":{"$error":"#REF!"}}]
[null,null,null,"Estimate!!Total:!!Householder 45 to 64 years:!!$10,000 to $14,999",5,6,18,29,0,12,13,13,2,3,0,12,14,21,28,42,137,109,7,10,9,11,0,12,0,12,29,36,0,12,2,4,0,12,0,12,27,33,7,11,0,12,0,12,11,16,null,null,null,null,null,null,null,null,null,null,null,null,null,null,null,null,null,null,null,null,null,null,null,null,null,null,null,null,null,null,null,null,null,null,null,null,null,null,null,null,null,null,null,null,null,null,null,null,null,null,null,null,{"$f":"LEFT(#REF!,LEN(#REF!)-10)","v":{"$error":"#REF!"}},{"$f":"LEFT(#REF!,LEN(#REF!)-10)","v":{"$error":"#REF!"}},{"$f":"LEFT(#REF!,LEN(#REF!)-10)","v":{"$error":"#REF!"}},{"$f":"LEFT(#REF!,LEN(#REF!)-10)","v":{"$error":"#REF!"}},{"$f":"LEFT(#REF!,LEN(#REF!)-10)","v":{"$error":"#REF!"}},{"$f":"LEFT(#REF!,LEN(#REF!)-10)","v":{"$error":"#REF!"}},{"$f":"LEFT(#REF!,LEN(#REF!)-10)","v":{"$error":"#REF!"}},{"$f":"LEFT(#REF!,LEN(#REF!)-10)","v":{"$error":"#REF!"}},{"$f":"LEFT(#REF!,LEN(#REF!)-10)","v":{"$error":"#REF!"}},{"$f":"LEFT(#REF!,LEN(#REF!)-10)","v":{"$error":"#REF!"}},{"$f":"LEFT(#REF!,LEN(#REF!)-10)","v":{"$error":"#REF!"}},{"$f":"LEFT(#REF!,LEN(#REF!)-10)","v":{"$error":"#REF!"}},{"$f":"LEFT(#REF!,LEN(#REF!)-10)","v":{"$error":"#REF!"}},{"$f":"LEFT(#REF!,LEN(#REF!)-10)","v":{"$error":"#REF!"}},{"$f":"LEFT(#REF!,LEN(#REF!)-10)","v":{"$error":"#REF!"}},{"$f":"LEFT(#REF!,LEN(#REF!)-10)","v":{"$error":"#REF!"}},{"$f":"LEFT(#REF!,LEN(#REF!)-10)","v":{"$error":"#REF!"}},{"$f":"LEFT(#REF!,LEN(#REF!)-10)","v":{"$error":"#REF!"}},{"$f":"LEFT(#REF!,LEN(#REF!)-10)","v":{"$error":"#REF!"}},{"$f":"LEFT(#REF!,LEN(#REF!)-10)","v":{"$error":"#REF!"}},{"$f":"LEFT(#REF!,LEN(#REF!)-10)","v":{"$error":"#REF!"}},{"$f":"LEFT(#REF!,LEN(#REF!)-10)","v":{"$error":"#REF!"}},{"$f":"LEFT(#REF!,LEN(#REF!)-10)","v":{"$error":"#REF!"}},{"$f":"LEFT(#REF!,LEN(#REF!)-10)","v":{"$error":"#REF!"}},{"$f":"LEFT(#REF!,LEN(#REF!)-10)","v":{"$error":"#REF!"}},{"$f":"LEFT(#REF!,LEN(#REF!)-10)","v":{"$error":"#REF!"}},{"$f":"LEFT(#REF!,LEN(#REF!)-10)","v":{"$error":"#REF!"}},{"$f":"LEFT(#REF!,LEN(#REF!)-10)","v":{"$error":"#REF!"}},{"$f":"LEFT(#REF!,LEN(#REF!)-10)","v":{"$error":"#REF!"}},{"$f":"LEFT(#REF!,LEN(#REF!)-10)","v":{"$error":"#REF!"}},{"$f":"LEFT(#REF!,LEN(#REF!)-10)","v":{"$error":"#REF!"}},{"$f":"LEFT(#REF!,LEN(#REF!)-10)","v":{"$error":"#REF!"}},{"$f":"LEFT(#REF!,LEN(#REF!)-10)","v":{"$error":"#REF!"}},{"$f":"LEFT(#REF!,LEN(#REF!)-10)","v":{"$error":"#REF!"}},{"$f":"LEFT(#REF!,LEN(#REF!)-10)","v":{"$error":"#REF!"}},{"$f":"LEFT(#REF!,LEN(#REF!)-10)","v":{"$error":"#REF!"}},{"$f":"LEFT(#REF!,LEN(#REF!)-10)","v":{"$error":"#REF!"}},{"$f":"LEFT(#REF!,LEN(#REF!)-10)","v":{"$error":"#REF!"}},{"$f":"LEFT(#REF!,LEN(#REF!)-10)","v":{"$error":"#REF!"}},{"$f":"LEFT(#REF!,LEN(#REF!)-10)","v":{"$error":"#REF!"}},{"$f":"LEFT(#REF!,LEN(#REF!)-10)","v":{"$error":"#REF!"}},{"$f":"LEFT(#REF!,LEN(#REF!)-10)","v":{"$error":"#REF!"}},{"$f":"LEFT(#REF!,LEN(#REF!)-10)","v":{"$error":"#REF!"}},{"$f":"LEFT(#REF!,LEN(#REF!)-10)","v":{"$error":"#REF!"}},{"$f":"LEFT(#REF!,LEN(#REF!)-10)","v":{"$error":"#REF!"}},{"$f":"LEFT(#REF!,LEN(#REF!)-10)","v":{"$error":"#REF!"}},{"$f":"LEFT(#REF!,LEN(#REF!)-10)","v":{"$error":"#REF!"}},{"$f":"LEFT(#REF!,LEN(#REF!)-10)","v":{"$error":"#REF!"}},{"$f":"LEFT(#REF!,LEN(#REF!)-10)","v":{"$error":"#REF!"}},{"$f":"LEFT(#REF!,LEN(#REF!)-10)","v":{"$error":"#REF!"}},{"$f":"LEFT(#REF!,LEN(#REF!)-10)","v":{"$error":"#REF!"}},{"$f":"LEFT(#REF!,LEN(#REF!)-10)","v":{"$error":"#REF!"}},{"$f":"LEFT(#REF!,LEN(#REF!)-10)","v":{"$error":"#REF!"}},{"$f":"LEFT(#REF!,LEN(#REF!)-10)","v":{"$error":"#REF!"}},{"$f":"LEFT(#REF!,LEN(#REF!)-10)","v":{"$error":"#REF!"}},{"$f":"LEFT(#REF!,LEN(#REF!)-10)","v":{"$error":"#REF!"}},{"$f":"LEFT(#REF!,LEN(#REF!)-10)","v":{"$error":"#REF!"}},{"$f":"LEFT(#REF!,LEN(#REF!)-10)","v":{"$error":"#REF!"}},{"$f":"LEFT(#REF!,LEN(#REF!)-10)","v":{"$error":"#REF!"}},{"$f":"LEFT(#REF!,LEN(#REF!)-10)","v":{"$error":"#REF!"}},{"$f":"LEFT(#REF!,LEN(#REF!)-10)","v":{"$error":"#REF!"}},{"$f":"LEFT(#REF!,LEN(#REF!)-10)","v":{"$error":"#REF!"}},{"$f":"LEFT(#REF!,LEN(#REF!)-10)","v":{"$error":"#REF!"}},{"$f":"LEFT(#REF!,LEN(#REF!)-10)","v":{"$error":"#REF!"}},{"$f":"LEFT(#REF!,LEN(#REF!)-10)","v":{"$error":"#REF!"}},{"$f":"LEFT(#REF!,LEN(#REF!)-10)","v":{"$error":"#REF!"}},{"$f":"LEFT(#REF!,LEN(#REF!)-10)","v":{"$error":"#REF!"}},{"$f":"LEFT(#REF!,LEN(#REF!)-10)","v":{"$error":"#REF!"}},{"$f":"LEFT(#REF!,LEN(#REF!)-10)","v":{"$error":"#REF!"}},{"$f":"LEFT(#REF!,LEN(#REF!)-10)","v":{"$error":"#REF!"}},{"$f":"LEFT(#REF!,LEN(#REF!)-10)","v":{"$error":"#REF!"}},{"$f":"LEFT(#REF!,LEN(#REF!)-10)","v":{"$error":"#REF!"}},{"$f":"LEFT(#REF!,LEN(#REF!)-10)","v":{"$error":"#REF!"}},{"$f":"LEFT(#REF!,LEN(#REF!)-10)","v":{"$error":"#REF!"}},{"$f":"LEFT(#REF!,LEN(#REF!)-10)","v":{"$error":"#REF!"}},{"$f":"LEFT(#REF!,LEN(#REF!)-10)","v":{"$error":"#REF!"}},{"$f":"LEFT(#REF!,LEN(#REF!)-10)","v":{"$error":"#REF!"}},{"$f":"LEFT(#REF!,LEN(#REF!)-10)","v":{"$error":"#REF!"}},{"$f":"LEFT(#REF!,LEN(#REF!)-10)","v":{"$error":"#REF!"}},{"$f":"LEFT(#REF!,LEN(#REF!)-10)","v":{"$error":"#REF!"}},{"$f":"LEFT(#REF!,LEN(#REF!)-10)","v":{"$error":"#REF!"}},{"$f":"LEFT(#REF!,LEN(#REF!)-10)","v":{"$error":"#REF!"}},{"$f":"LEFT(#REF!,LEN(#REF!)-10)","v":{"$error":"#REF!"}},{"$f":"LEFT(#REF!,LEN(#REF!)-10)","v":{"$error":"#REF!"}},{"$f":"LEFT(#REF!,LEN(#REF!)-10)","v":{"$error":"#REF!"}},{"$f":"LEFT(#REF!,LEN(#REF!)-10)","v":{"$error":"#REF!"}},{"$f":"LEFT(#REF!,LEN(#REF!)-10)","v":{"$error":"#REF!"}},{"$f":"LEFT(#REF!,LEN(#REF!)-10)","v":{"$error":"#REF!"}},{"$f":"LEFT(#REF!,LEN(#REF!)-10)","v":{"$error":"#REF!"}},{"$f":"LEFT(#REF!,LEN(#REF!)-10)","v":{"$error":"#REF!"}},{"$f":"LEFT(#REF!,LEN(#REF!)-10)","v":{"$error":"#REF!"}},{"$f":"LEFT(#REF!,LEN(#REF!)-10)","v":{"$error":"#REF!"}},{"$f":"LEFT(#REF!,LEN(#REF!)-10)","v":{"$error":"#REF!"}},{"$f":"LEFT(#REF!,LEN(#REF!)-10)","v":{"$error":"#REF!"}},{"$f":"LEFT(#REF!,LEN(#REF!)-10)","v":{"$error":"#REF!"}},{"$f":"LEFT(#REF!,LEN(#REF!)-10)","v":{"$error":"#REF!"}},{"$f":"LEFT(#REF!,LEN(#REF!)-10)","v":{"$error":"#REF!"}},{"$f":"LEFT(#REF!,LEN(#REF!)-10)","v":{"$error":"#REF!"}},{"$f":"LEFT(#REF!,LEN(#REF!)-10)","v":{"$error":"#REF!"}},{"$f":"LEFT(#REF!,LEN(#REF!)-10)","v":{"$error":"#REF!"}},{"$f":"LEFT(#REF!,LEN(#REF!)-10)","v":{"$error":"#REF!"}},{"$f":"LEFT(#REF!,LEN(#REF!)-10)","v":{"$error":"#REF!"}},{"$f":"LEFT(#REF!,LEN(#REF!)-10)","v":{"$error":"#REF!"}},{"$f":"LEFT(#REF!,LEN(#REF!)-10)","v":{"$error":"#REF!"}},{"$f":"LEFT(#REF!,LEN(#REF!)-10)","v":{"$error":"#REF!"}},{"$f":"LEFT(#REF!,LEN(#REF!)-10)","v":{"$error":"#REF!"}},{"$f":"LEFT(#REF!,LEN(#REF!)-10)","v":{"$error":"#REF!"}},{"$f":"LEFT(#REF!,LEN(#REF!)-10)","v":{"$error":"#REF!"}},{"$f":"LEFT(#REF!,LEN(#REF!)-10)","v":{"$error":"#REF!"}},{"$f":"LEFT(#REF!,LEN(#REF!)-10)","v":{"$error":"#REF!"}},{"$f":"LEFT(#REF!,LEN(#REF!)-10)","v":{"$error":"#REF!"}},{"$f":"LEFT(#REF!,LEN(#REF!)-10)","v":{"$error":"#REF!"}},{"$f":"LEFT(#REF!,LEN(#REF!)-10)","v":{"$error":"#REF!"}},{"$f":"LEFT(#REF!,LEN(#REF!)-10)","v":{"$error":"#REF!"}},{"$f":"LEFT(#REF!,LEN(#REF!)-10)","v":{"$error":"#REF!"}},{"$f":"LEFT(#REF!,LEN(#REF!)-10)","v":{"$error":"#REF!"}},{"$f":"LEFT(#REF!,LEN(#REF!)-10)","v":{"$error":"#REF!"}},{"$f":"LEFT(#REF!,LEN(#REF!)-10)","v":{"$error":"#REF!"}},{"$f":"LEFT(#REF!,LEN(#REF!)-10)","v":{"$error":"#REF!"}},{"$f":"LEFT(#REF!,LEN(#REF!)-10)","v":{"$error":"#REF!"}},{"$f":"LEFT(#REF!,LEN(#REF!)-10)","v":{"$error":"#REF!"}},{"$f":"LEFT(#REF!,LEN(#REF!)-10)","v":{"$error":"#REF!"}},{"$f":"LEFT(#REF!,LEN(#REF!)-10)","v":{"$error":"#REF!"}},{"$f":"LEFT(#REF!,LEN(#REF!)-10)","v":{"$error":"#REF!"}},{"$f":"LEFT(#REF!,LEN(#REF!)-10)","v":{"$error":"#REF!"}},{"$f":"LEFT(#REF!,LEN(#REF!)-10)","v":{"$error":"#REF!"}},{"$f":"LEFT(#REF!,LEN(#REF!)-10)","v":{"$error":"#REF!"}},{"$f":"LEFT(#REF!,LEN(#REF!)-10)","v":{"$error":"#REF!"}},{"$f":"LEFT(#REF!,LEN(#REF!)-10)","v":{"$error":"#REF!"}},{"$f":"LEFT(#REF!,LEN(#REF!)-10)","v":{"$error":"#REF!"}},{"$f":"LEFT(#REF!,LEN(#REF!)-10)","v":{"$error":"#REF!"}},{"$f":"LEFT(#REF!,LEN(#REF!)-10)","v":{"$error":"#REF!"}},{"$f":"LEFT(#REF!,LEN(#REF!)-10)","v":{"$error":"#REF!"}},{"$f":"LEFT(#REF!,LEN(#REF!)-10)","v":{"$error":"#REF!"}},{"$f":"LEFT(#REF!,LEN(#REF!)-10)","v":{"$error":"#REF!"}},{"$f":"LEFT(#REF!,LEN(#REF!)-10)","v":{"$error":"#REF!"}},{"$f":"LEFT(#REF!,LEN(#REF!)-10)","v":{"$error":"#REF!"}},{"$f":"LEFT(#REF!,LEN(#REF!)-10)","v":{"$error":"#REF!"}},{"$f":"LEFT(#REF!,LEN(#REF!)-10)","v":{"$error":"#REF!"}},{"$f":"LEFT(#REF!,LEN(#REF!)-10)","v":{"$error":"#REF!"}},{"$f":"LEFT(#REF!,LEN(#REF!)-10)","v":{"$error":"#REF!"}},{"$f":"LEFT(#REF!,LEN(#REF!)-10)","v":{"$error":"#REF!"}},{"$f":"LEFT(#REF!,LEN(#REF!)-10)","v":{"$error":"#REF!"}},{"$f":"LEFT(#REF!,LEN(#REF!)-10)","v":{"$error":"#REF!"}},{"$f":"LEFT(#REF!,LEN(#REF!)-10)","v":{"$error":"#REF!"}},{"$f":"LEFT(#REF!,LEN(#REF!)-10)","v":{"$error":"#REF!"}},{"$f":"LEFT(#REF!,LEN(#REF!)-10)","v":{"$error":"#REF!"}},{"$f":"LEFT(#REF!,LEN(#REF!)-10)","v":{"$error":"#REF!"}},{"$f":"LEFT(#REF!,LEN(#REF!)-10)","v":{"$error":"#REF!"}},{"$f":"LEFT(#REF!,LEN(#REF!)-10)","v":{"$error":"#REF!"}},{"$f":"LEFT(#REF!,LEN(#REF!)-10)","v":{"$error":"#REF!"}},{"$f":"LEFT(#REF!,LEN(#REF!)-10)","v":{"$error":"#REF!"}},{"$f":"LEFT(#REF!,LEN(#REF!)-10)","v":{"$error":"#REF!"}},{"$f":"LEFT(#REF!,LEN(#REF!)-10)","v":{"$error":"#REF!"}}]
[null,null,null,"Estimate!!Total:!!Householder 45 to 64 years:!!$15,000 to $19,999",11,7,0,12,0,12,29,29,0,12,0,12,3,5,0,17,60,56,11,17,7,9,0,12,16,21,0,17,0,12,0,12,3,4,0,12,49,67,0,12,26,31,36,44,84,51,null,null,null,null,null,null,null,null,null,null,null,null,null,null,null,null,null,null,null,null,null,null,null,null,null,null,null,null,null,null,null,null,null,null,null,null,null,null,null,null,null,null,null,null,null,null,null,null,null,null,null,null,{"$f":"LEFT(#REF!,LEN(#REF!)-10)","v":{"$error":"#REF!"}},{"$f":"LEFT(#REF!,LEN(#REF!)-10)","v":{"$error":"#REF!"}},{"$f":"LEFT(#REF!,LEN(#REF!)-10)","v":{"$error":"#REF!"}},{"$f":"LEFT(#REF!,LEN(#REF!)-10)","v":{"$error":"#REF!"}},{"$f":"LEFT(#REF!,LEN(#REF!)-10)","v":{"$error":"#REF!"}},{"$f":"LEFT(#REF!,LEN(#REF!)-10)","v":{"$error":"#REF!"}},{"$f":"LEFT(#REF!,LEN(#REF!)-10)","v":{"$error":"#REF!"}},{"$f":"LEFT(#REF!,LEN(#REF!)-10)","v":{"$error":"#REF!"}},{"$f":"LEFT(#REF!,LEN(#REF!)-10)","v":{"$error":"#REF!"}},{"$f":"LEFT(#REF!,LEN(#REF!)-10)","v":{"$error":"#REF!"}},{"$f":"LEFT(#REF!,LEN(#REF!)-10)","v":{"$error":"#REF!"}},{"$f":"LEFT(#REF!,LEN(#REF!)-10)","v":{"$error":"#REF!"}},{"$f":"LEFT(#REF!,LEN(#REF!)-10)","v":{"$error":"#REF!"}},{"$f":"LEFT(#REF!,LEN(#REF!)-10)","v":{"$error":"#REF!"}},{"$f":"LEFT(#REF!,LEN(#REF!)-10)","v":{"$error":"#REF!"}},{"$f":"LEFT(#REF!,LEN(#REF!)-10)","v":{"$error":"#REF!"}},{"$f":"LEFT(#REF!,LEN(#REF!)-10)","v":{"$error":"#REF!"}},{"$f":"LEFT(#REF!,LEN(#REF!)-10)","v":{"$error":"#REF!"}},{"$f":"LEFT(#REF!,LEN(#REF!)-10)","v":{"$error":"#REF!"}},{"$f":"LEFT(#REF!,LEN(#REF!)-10)","v":{"$error":"#REF!"}},{"$f":"LEFT(#REF!,LEN(#REF!)-10)","v":{"$error":"#REF!"}},{"$f":"LEFT(#REF!,LEN(#REF!)-10)","v":{"$error":"#REF!"}},{"$f":"LEFT(#REF!,LEN(#REF!)-10)","v":{"$error":"#REF!"}},{"$f":"LEFT(#REF!,LEN(#REF!)-10)","v":{"$error":"#REF!"}},{"$f":"LEFT(#REF!,LEN(#REF!)-10)","v":{"$error":"#REF!"}},{"$f":"LEFT(#REF!,LEN(#REF!)-10)","v":{"$error":"#REF!"}},{"$f":"LEFT(#REF!,LEN(#REF!)-10)","v":{"$error":"#REF!"}},{"$f":"LEFT(#REF!,LEN(#REF!)-10)","v":{"$error":"#REF!"}},{"$f":"LEFT(#REF!,LEN(#REF!)-10)","v":{"$error":"#REF!"}},{"$f":"LEFT(#REF!,LEN(#REF!)-10)","v":{"$error":"#REF!"}},{"$f":"LEFT(#REF!,LEN(#REF!)-10)","v":{"$error":"#REF!"}},{"$f":"LEFT(#REF!,LEN(#REF!)-10)","v":{"$error":"#REF!"}},{"$f":"LEFT(#REF!,LEN(#REF!)-10)","v":{"$error":"#REF!"}},{"$f":"LEFT(#REF!,LEN(#REF!)-10)","v":{"$error":"#REF!"}},{"$f":"LEFT(#REF!,LEN(#REF!)-10)","v":{"$error":"#REF!"}},{"$f":"LEFT(#REF!,LEN(#REF!)-10)","v":{"$error":"#REF!"}},{"$f":"LEFT(#REF!,LEN(#REF!)-10)","v":{"$error":"#REF!"}},{"$f":"LEFT(#REF!,LEN(#REF!)-10)","v":{"$error":"#REF!"}},{"$f":"LEFT(#REF!,LEN(#REF!)-10)","v":{"$error":"#REF!"}},{"$f":"LEFT(#REF!,LEN(#REF!)-10)","v":{"$error":"#REF!"}},{"$f":"LEFT(#REF!,LEN(#REF!)-10)","v":{"$error":"#REF!"}},{"$f":"LEFT(#REF!,LEN(#REF!)-10)","v":{"$error":"#REF!"}},{"$f":"LEFT(#REF!,LEN(#REF!)-10)","v":{"$error":"#REF!"}},{"$f":"LEFT(#REF!,LEN(#REF!)-10)","v":{"$error":"#REF!"}},{"$f":"LEFT(#REF!,LEN(#REF!)-10)","v":{"$error":"#REF!"}},{"$f":"LEFT(#REF!,LEN(#REF!)-10)","v":{"$error":"#REF!"}},{"$f":"LEFT(#REF!,LEN(#REF!)-10)","v":{"$error":"#REF!"}},{"$f":"LEFT(#REF!,LEN(#REF!)-10)","v":{"$error":"#REF!"}},{"$f":"LEFT(#REF!,LEN(#REF!)-10)","v":{"$error":"#REF!"}},{"$f":"LEFT(#REF!,LEN(#REF!)-10)","v":{"$error":"#REF!"}},{"$f":"LEFT(#REF!,LEN(#REF!)-10)","v":{"$error":"#REF!"}},{"$f":"LEFT(#REF!,LEN(#REF!)-10)","v":{"$error":"#REF!"}},{"$f":"LEFT(#REF!,LEN(#REF!)-10)","v":{"$error":"#REF!"}},{"$f":"LEFT(#REF!,LEN(#REF!)-10)","v":{"$error":"#REF!"}},{"$f":"LEFT(#REF!,LEN(#REF!)-10)","v":{"$error":"#REF!"}},{"$f":"LEFT(#REF!,LEN(#REF!)-10)","v":{"$error":"#REF!"}},{"$f":"LEFT(#REF!,LEN(#REF!)-10)","v":{"$error":"#REF!"}},{"$f":"LEFT(#REF!,LEN(#REF!)-10)","v":{"$error":"#REF!"}},{"$f":"LEFT(#REF!,LEN(#REF!)-10)","v":{"$error":"#REF!"}},{"$f":"LEFT(#REF!,LEN(#REF!)-10)","v":{"$error":"#REF!"}},{"$f":"LEFT(#REF!,LEN(#REF!)-10)","v":{"$error":"#REF!"}},{"$f":"LEFT(#REF!,LEN(#REF!)-10)","v":{"$error":"#REF!"}},{"$f":"LEFT(#REF!,LEN(#REF!)-10)","v":{"$error":"#REF!"}},{"$f":"LEFT(#REF!,LEN(#REF!)-10)","v":{"$error":"#REF!"}},{"$f":"LEFT(#REF!,LEN(#REF!)-10)","v":{"$error":"#REF!"}},{"$f":"LEFT(#REF!,LEN(#REF!)-10)","v":{"$error":"#REF!"}},{"$f":"LEFT(#REF!,LEN(#REF!)-10)","v":{"$error":"#REF!"}},{"$f":"LEFT(#REF!,LEN(#REF!)-10)","v":{"$error":"#REF!"}},{"$f":"LEFT(#REF!,LEN(#REF!)-10)","v":{"$error":"#REF!"}},{"$f":"LEFT(#REF!,LEN(#REF!)-10)","v":{"$error":"#REF!"}},{"$f":"LEFT(#REF!,LEN(#REF!)-10)","v":{"$error":"#REF!"}},{"$f":"LEFT(#REF!,LEN(#REF!)-10)","v":{"$error":"#REF!"}},{"$f":"LEFT(#REF!,LEN(#REF!)-10)","v":{"$error":"#REF!"}},{"$f":"LEFT(#REF!,LEN(#REF!)-10)","v":{"$error":"#REF!"}},{"$f":"LEFT(#REF!,LEN(#REF!)-10)","v":{"$error":"#REF!"}},{"$f":"LEFT(#REF!,LEN(#REF!)-10)","v":{"$error":"#REF!"}},{"$f":"LEFT(#REF!,LEN(#REF!)-10)","v":{"$error":"#REF!"}},{"$f":"LEFT(#REF!,LEN(#REF!)-10)","v":{"$error":"#REF!"}},{"$f":"LEFT(#REF!,LEN(#REF!)-10)","v":{"$error":"#REF!"}},{"$f":"LEFT(#REF!,LEN(#REF!)-10)","v":{"$error":"#REF!"}},{"$f":"LEFT(#REF!,LEN(#REF!)-10)","v":{"$error":"#REF!"}},{"$f":"LEFT(#REF!,LEN(#REF!)-10)","v":{"$error":"#REF!"}},{"$f":"LEFT(#REF!,LEN(#REF!)-10)","v":{"$error":"#REF!"}},{"$f":"LEFT(#REF!,LEN(#REF!)-10)","v":{"$error":"#REF!"}},{"$f":"LEFT(#REF!,LEN(#REF!)-10)","v":{"$error":"#REF!"}},{"$f":"LEFT(#REF!,LEN(#REF!)-10)","v":{"$error":"#REF!"}},{"$f":"LEFT(#REF!,LEN(#REF!)-10)","v":{"$error":"#REF!"}},{"$f":"LEFT(#REF!,LEN(#REF!)-10)","v":{"$error":"#REF!"}},{"$f":"LEFT(#REF!,LEN(#REF!)-10)","v":{"$error":"#REF!"}},{"$f":"LEFT(#REF!,LEN(#REF!)-10)","v":{"$error":"#REF!"}},{"$f":"LEFT(#REF!,LEN(#REF!)-10)","v":{"$error":"#REF!"}},{"$f":"LEFT(#REF!,LEN(#REF!)-10)","v":{"$error":"#REF!"}},{"$f":"LEFT(#REF!,LEN(#REF!)-10)","v":{"$error":"#REF!"}},{"$f":"LEFT(#REF!,LEN(#REF!)-10)","v":{"$error":"#REF!"}},{"$f":"LEFT(#REF!,LEN(#REF!)-10)","v":{"$error":"#REF!"}},{"$f":"LEFT(#REF!,LEN(#REF!)-10)","v":{"$error":"#REF!"}},{"$f":"LEFT(#REF!,LEN(#REF!)-10)","v":{"$error":"#REF!"}},{"$f":"LEFT(#REF!,LEN(#REF!)-10)","v":{"$error":"#REF!"}},{"$f":"LEFT(#REF!,LEN(#REF!)-10)","v":{"$error":"#REF!"}},{"$f":"LEFT(#REF!,LEN(#REF!)-10)","v":{"$error":"#REF!"}},{"$f":"LEFT(#REF!,LEN(#REF!)-10)","v":{"$error":"#REF!"}},{"$f":"LEFT(#REF!,LEN(#REF!)-10)","v":{"$error":"#REF!"}},{"$f":"LEFT(#REF!,LEN(#REF!)-10)","v":{"$error":"#REF!"}},{"$f":"LEFT(#REF!,LEN(#REF!)-10)","v":{"$error":"#REF!"}},{"$f":"LEFT(#REF!,LEN(#REF!)-10)","v":{"$error":"#REF!"}},{"$f":"LEFT(#REF!,LEN(#REF!)-10)","v":{"$error":"#REF!"}},{"$f":"LEFT(#REF!,LEN(#REF!)-10)","v":{"$error":"#REF!"}},{"$f":"LEFT(#REF!,LEN(#REF!)-10)","v":{"$error":"#REF!"}},{"$f":"LEFT(#REF!,LEN(#REF!)-10)","v":{"$error":"#REF!"}},{"$f":"LEFT(#REF!,LEN(#REF!)-10)","v":{"$error":"#REF!"}},{"$f":"LEFT(#REF!,LEN(#REF!)-10)","v":{"$error":"#REF!"}},{"$f":"LEFT(#REF!,LEN(#REF!)-10)","v":{"$error":"#REF!"}},{"$f":"LEFT(#REF!,LEN(#REF!)-10)","v":{"$error":"#REF!"}},{"$f":"LEFT(#REF!,LEN(#REF!)-10)","v":{"$error":"#REF!"}},{"$f":"LEFT(#REF!,LEN(#REF!)-10)","v":{"$error":"#REF!"}},{"$f":"LEFT(#REF!,LEN(#REF!)-10)","v":{"$error":"#REF!"}},{"$f":"LEFT(#REF!,LEN(#REF!)-10)","v":{"$error":"#REF!"}},{"$f":"LEFT(#REF!,LEN(#REF!)-10)","v":{"$error":"#REF!"}},{"$f":"LEFT(#REF!,LEN(#REF!)-10)","v":{"$error":"#REF!"}},{"$f":"LEFT(#REF!,LEN(#REF!)-10)","v":{"$error":"#REF!"}},{"$f":"LEFT(#REF!,LEN(#REF!)-10)","v":{"$error":"#REF!"}},{"$f":"LEFT(#REF!,LEN(#REF!)-10)","v":{"$error":"#REF!"}},{"$f":"LEFT(#REF!,LEN(#REF!)-10)","v":{"$error":"#REF!"}},{"$f":"LEFT(#REF!,LEN(#REF!)-10)","v":{"$error":"#REF!"}},{"$f":"LEFT(#REF!,LEN(#REF!)-10)","v":{"$error":"#REF!"}},{"$f":"LEFT(#REF!,LEN(#REF!)-10)","v":{"$error":"#REF!"}},{"$f":"LEFT(#REF!,LEN(#REF!)-10)","v":{"$error":"#REF!"}},{"$f":"LEFT(#REF!,LEN(#REF!)-10)","v":{"$error":"#REF!"}},{"$f":"LEFT(#REF!,LEN(#REF!)-10)","v":{"$error":"#REF!"}},{"$f":"LEFT(#REF!,LEN(#REF!)-10)","v":{"$error":"#REF!"}},{"$f":"LEFT(#REF!,LEN(#REF!)-10)","v":{"$error":"#REF!"}},{"$f":"LEFT(#REF!,LEN(#REF!)-10)","v":{"$error":"#REF!"}},{"$f":"LEFT(#REF!,LEN(#REF!)-10)","v":{"$error":"#REF!"}},{"$f":"LEFT(#REF!,LEN(#REF!)-10)","v":{"$error":"#REF!"}},{"$f":"LEFT(#REF!,LEN(#REF!)-10)","v":{"$error":"#REF!"}},{"$f":"LEFT(#REF!,LEN(#REF!)-10)","v":{"$error":"#REF!"}},{"$f":"LEFT(#REF!,LEN(#REF!)-10)","v":{"$error":"#REF!"}},{"$f":"LEFT(#REF!,LEN(#REF!)-10)","v":{"$error":"#REF!"}},{"$f":"LEFT(#REF!,LEN(#REF!)-10)","v":{"$error":"#REF!"}},{"$f":"LEFT(#REF!,LEN(#REF!)-10)","v":{"$error":"#REF!"}},{"$f":"LEFT(#REF!,LEN(#REF!)-10)","v":{"$error":"#REF!"}},{"$f":"LEFT(#REF!,LEN(#REF!)-10)","v":{"$error":"#REF!"}},{"$f":"LEFT(#REF!,LEN(#REF!)-10)","v":{"$error":"#REF!"}},{"$f":"LEFT(#REF!,LEN(#REF!)-10)","v":{"$error":"#REF!"}},{"$f":"LEFT(#REF!,LEN(#REF!)-10)","v":{"$error":"#REF!"}},{"$f":"LEFT(#REF!,LEN(#REF!)-10)","v":{"$error":"#REF!"}},{"$f":"LEFT(#REF!,LEN(#REF!)-10)","v":{"$error":"#REF!"}},{"$f":"LEFT(#REF!,LEN(#REF!)-10)","v":{"$error":"#REF!"}},{"$f":"LEFT(#REF!,LEN(#REF!)-10)","v":{"$error":"#REF!"}},{"$f":"LEFT(#REF!,LEN(#REF!)-10)","v":{"$error":"#REF!"}},{"$f":"LEFT(#REF!,LEN(#REF!)-10)","v":{"$error":"#REF!"}},{"$f":"LEFT(#REF!,LEN(#REF!)-10)","v":{"$error":"#REF!"}},{"$f":"LEFT(#REF!,LEN(#REF!)-10)","v":{"$error":"#REF!"}},{"$f":"LEFT(#REF!,LEN(#REF!)-10)","v":{"$error":"#REF!"}}]
[null,null,null,"Estimate!!Total:!!Householder 45 to 64 years:!!$20,000 to $24,999",47,55,0,12,6,6,0,12,2,3,4,5,31,34,41,43,28,30,12,12,2,4,0,12,0,12,21,33,0,12,0,12,2,3,7,11,25,34,36,36,7,11,0,12,6,11,null,null,null,null,null,null,null,null,null,null,null,null,null,null,null,null,null,null,null,null,null,null,null,null,null,null,null,null,null,null,null,null,null,null,null,null,null,null,null,null,null,null,null,null,null,null,null,null,null,null,null,null,{"$f":"LEFT(#REF!,LEN(#REF!)-10)","v":{"$error":"#REF!"}},{"$f":"LEFT(#REF!,LEN(#REF!)-10)","v":{"$error":"#REF!"}},{"$f":"LEFT(#REF!,LEN(#REF!)-10)","v":{"$error":"#REF!"}},{"$f":"LEFT(#REF!,LEN(#REF!)-10)","v":{"$error":"#REF!"}},{"$f":"LEFT(#REF!,LEN(#REF!)-10)","v":{"$error":"#REF!"}},{"$f":"LEFT(#REF!,LEN(#REF!)-10)","v":{"$error":"#REF!"}},{"$f":"LEFT(#REF!,LEN(#REF!)-10)","v":{"$error":"#REF!"}},{"$f":"LEFT(#REF!,LEN(#REF!)-10)","v":{"$error":"#REF!"}},{"$f":"LEFT(#REF!,LEN(#REF!)-10)","v":{"$error":"#REF!"}},{"$f":"LEFT(#REF!,LEN(#REF!)-10)","v":{"$error":"#REF!"}},{"$f":"LEFT(#REF!,LEN(#REF!)-10)","v":{"$error":"#REF!"}},{"$f":"LEFT(#REF!,LEN(#REF!)-10)","v":{"$error":"#REF!"}},{"$f":"LEFT(#REF!,LEN(#REF!)-10)","v":{"$error":"#REF!"}},{"$f":"LEFT(#REF!,LEN(#REF!)-10)","v":{"$error":"#REF!"}},{"$f":"LEFT(#REF!,LEN(#REF!)-10)","v":{"$error":"#REF!"}},{"$f":"LEFT(#REF!,LEN(#REF!)-10)","v":{"$error":"#REF!"}},{"$f":"LEFT(#REF!,LEN(#REF!)-10)","v":{"$error":"#REF!"}},{"$f":"LEFT(#REF!,LEN(#REF!)-10)","v":{"$error":"#REF!"}},{"$f":"LEFT(#REF!,LEN(#REF!)-10)","v":{"$error":"#REF!"}},{"$f":"LEFT(#REF!,LEN(#REF!)-10)","v":{"$error":"#REF!"}},{"$f":"LEFT(#REF!,LEN(#REF!)-10)","v":{"$error":"#REF!"}},{"$f":"LEFT(#REF!,LEN(#REF!)-10)","v":{"$error":"#REF!"}},{"$f":"LEFT(#REF!,LEN(#REF!)-10)","v":{"$error":"#REF!"}},{"$f":"LEFT(#REF!,LEN(#REF!)-10)","v":{"$error":"#REF!"}},{"$f":"LEFT(#REF!,LEN(#REF!)-10)","v":{"$error":"#REF!"}},{"$f":"LEFT(#REF!,LEN(#REF!)-10)","v":{"$error":"#REF!"}},{"$f":"LEFT(#REF!,LEN(#REF!)-10)","v":{"$error":"#REF!"}},{"$f":"LEFT(#REF!,LEN(#REF!)-10)","v":{"$error":"#REF!"}},{"$f":"LEFT(#REF!,LEN(#REF!)-10)","v":{"$error":"#REF!"}},{"$f":"LEFT(#REF!,LEN(#REF!)-10)","v":{"$error":"#REF!"}},{"$f":"LEFT(#REF!,LEN(#REF!)-10)","v":{"$error":"#REF!"}},{"$f":"LEFT(#REF!,LEN(#REF!)-10)","v":{"$error":"#REF!"}},{"$f":"LEFT(#REF!,LEN(#REF!)-10)","v":{"$error":"#REF!"}},{"$f":"LEFT(#REF!,LEN(#REF!)-10)","v":{"$error":"#REF!"}},{"$f":"LEFT(#REF!,LEN(#REF!)-10)","v":{"$error":"#REF!"}},{"$f":"LEFT(#REF!,LEN(#REF!)-10)","v":{"$error":"#REF!"}},{"$f":"LEFT(#REF!,LEN(#REF!)-10)","v":{"$error":"#REF!"}},{"$f":"LEFT(#REF!,LEN(#REF!)-10)","v":{"$error":"#REF!"}},{"$f":"LEFT(#REF!,LEN(#REF!)-10)","v":{"$error":"#REF!"}},{"$f":"LEFT(#REF!,LEN(#REF!)-10)","v":{"$error":"#REF!"}},{"$f":"LEFT(#REF!,LEN(#REF!)-10)","v":{"$error":"#REF!"}},{"$f":"LEFT(#REF!,LEN(#REF!)-10)","v":{"$error":"#REF!"}},{"$f":"LEFT(#REF!,LEN(#REF!)-10)","v":{"$error":"#REF!"}},{"$f":"LEFT(#REF!,LEN(#REF!)-10)","v":{"$error":"#REF!"}},{"$f":"LEFT(#REF!,LEN(#REF!)-10)","v":{"$error":"#REF!"}},{"$f":"LEFT(#REF!,LEN(#REF!)-10)","v":{"$error":"#REF!"}},{"$f":"LEFT(#REF!,LEN(#REF!)-10)","v":{"$error":"#REF!"}},{"$f":"LEFT(#REF!,LEN(#REF!)-10)","v":{"$error":"#REF!"}},{"$f":"LEFT(#REF!,LEN(#REF!)-10)","v":{"$error":"#REF!"}},{"$f":"LEFT(#REF!,LEN(#REF!)-10)","v":{"$error":"#REF!"}},{"$f":"LEFT(#REF!,LEN(#REF!)-10)","v":{"$error":"#REF!"}},{"$f":"LEFT(#REF!,LEN(#REF!)-10)","v":{"$error":"#REF!"}},{"$f":"LEFT(#REF!,LEN(#REF!)-10)","v":{"$error":"#REF!"}},{"$f":"LEFT(#REF!,LEN(#REF!)-10)","v":{"$error":"#REF!"}},{"$f":"LEFT(#REF!,LEN(#REF!)-10)","v":{"$error":"#REF!"}},{"$f":"LEFT(#REF!,LEN(#REF!)-10)","v":{"$error":"#REF!"}},{"$f":"LEFT(#REF!,LEN(#REF!)-10)","v":{"$error":"#REF!"}},{"$f":"LEFT(#REF!,LEN(#REF!)-10)","v":{"$error":"#REF!"}},{"$f":"LEFT(#REF!,LEN(#REF!)-10)","v":{"$error":"#REF!"}},{"$f":"LEFT(#REF!,LEN(#REF!)-10)","v":{"$error":"#REF!"}},{"$f":"LEFT(#REF!,LEN(#REF!)-10)","v":{"$error":"#REF!"}},{"$f":"LEFT(#REF!,LEN(#REF!)-10)","v":{"$error":"#REF!"}},{"$f":"LEFT(#REF!,LEN(#REF!)-10)","v":{"$error":"#REF!"}},{"$f":"LEFT(#REF!,LEN(#REF!)-10)","v":{"$error":"#REF!"}},{"$f":"LEFT(#REF!,LEN(#REF!)-10)","v":{"$error":"#REF!"}},{"$f":"LEFT(#REF!,LEN(#REF!)-10)","v":{"$error":"#REF!"}},{"$f":"LEFT(#REF!,LEN(#REF!)-10)","v":{"$error":"#REF!"}},{"$f":"LEFT(#REF!,LEN(#REF!)-10)","v":{"$error":"#REF!"}},{"$f":"LEFT(#REF!,LEN(#REF!)-10)","v":{"$error":"#REF!"}},{"$f":"LEFT(#REF!,LEN(#REF!)-10)","v":{"$error":"#REF!"}},{"$f":"LEFT(#REF!,LEN(#REF!)-10)","v":{"$error":"#REF!"}},{"$f":"LEFT(#REF!,LEN(#REF!)-10)","v":{"$error":"#REF!"}},{"$f":"LEFT(#REF!,LEN(#REF!)-10)","v":{"$error":"#REF!"}},{"$f":"LEFT(#REF!,LEN(#REF!)-10)","v":{"$error":"#REF!"}},{"$f":"LEFT(#REF!,LEN(#REF!)-10)","v":{"$error":"#REF!"}},{"$f":"LEFT(#REF!,LEN(#REF!)-10)","v":{"$error":"#REF!"}},{"$f":"LEFT(#REF!,LEN(#REF!)-10)","v":{"$error":"#REF!"}},{"$f":"LEFT(#REF!,LEN(#REF!)-10)","v":{"$error":"#REF!"}},{"$f":"LEFT(#REF!,LEN(#REF!)-10)","v":{"$error":"#REF!"}},{"$f":"LEFT(#REF!,LEN(#REF!)-10)","v":{"$error":"#REF!"}},{"$f":"LEFT(#REF!,LEN(#REF!)-10)","v":{"$error":"#REF!"}},{"$f":"LEFT(#REF!,LEN(#REF!)-10)","v":{"$error":"#REF!"}},{"$f":"LEFT(#REF!,LEN(#REF!)-10)","v":{"$error":"#REF!"}},{"$f":"LEFT(#REF!,LEN(#REF!)-10)","v":{"$error":"#REF!"}},{"$f":"LEFT(#REF!,LEN(#REF!)-10)","v":{"$error":"#REF!"}},{"$f":"LEFT(#REF!,LEN(#REF!)-10)","v":{"$error":"#REF!"}},{"$f":"LEFT(#REF!,LEN(#REF!)-10)","v":{"$error":"#REF!"}},{"$f":"LEFT(#REF!,LEN(#REF!)-10)","v":{"$error":"#REF!"}},{"$f":"LEFT(#REF!,LEN(#REF!)-10)","v":{"$error":"#REF!"}},{"$f":"LEFT(#REF!,LEN(#REF!)-10)","v":{"$error":"#REF!"}},{"$f":"LEFT(#REF!,LEN(#REF!)-10)","v":{"$error":"#REF!"}},{"$f":"LEFT(#REF!,LEN(#REF!)-10)","v":{"$error":"#REF!"}},{"$f":"LEFT(#REF!,LEN(#REF!)-10)","v":{"$error":"#REF!"}},{"$f":"LEFT(#REF!,LEN(#REF!)-10)","v":{"$error":"#REF!"}},{"$f":"LEFT(#REF!,LEN(#REF!)-10)","v":{"$error":"#REF!"}},{"$f":"LEFT(#REF!,LEN(#REF!)-10)","v":{"$error":"#REF!"}},{"$f":"LEFT(#REF!,LEN(#REF!)-10)","v":{"$error":"#REF!"}},{"$f":"LEFT(#REF!,LEN(#REF!)-10)","v":{"$error":"#REF!"}},{"$f":"LEFT(#REF!,LEN(#REF!)-10)","v":{"$error":"#REF!"}},{"$f":"LEFT(#REF!,LEN(#REF!)-10)","v":{"$error":"#REF!"}},{"$f":"LEFT(#REF!,LEN(#REF!)-10)","v":{"$error":"#REF!"}},{"$f":"LEFT(#REF!,LEN(#REF!)-10)","v":{"$error":"#REF!"}},{"$f":"LEFT(#REF!,LEN(#REF!)-10)","v":{"$error":"#REF!"}},{"$f":"LEFT(#REF!,LEN(#REF!)-10)","v":{"$error":"#REF!"}},{"$f":"LEFT(#REF!,LEN(#REF!)-10)","v":{"$error":"#REF!"}},{"$f":"LEFT(#REF!,LEN(#REF!)-10)","v":{"$error":"#REF!"}},{"$f":"LEFT(#REF!,LEN(#REF!)-10)","v":{"$error":"#REF!"}},{"$f":"LEFT(#REF!,LEN(#REF!)-10)","v":{"$error":"#REF!"}},{"$f":"LEFT(#REF!,LEN(#REF!)-10)","v":{"$error":"#REF!"}},{"$f":"LEFT(#REF!,LEN(#REF!)-10)","v":{"$error":"#REF!"}},{"$f":"LEFT(#REF!,LEN(#REF!)-10)","v":{"$error":"#REF!"}},{"$f":"LEFT(#REF!,LEN(#REF!)-10)","v":{"$error":"#REF!"}},{"$f":"LEFT(#REF!,LEN(#REF!)-10)","v":{"$error":"#REF!"}},{"$f":"LEFT(#REF!,LEN(#REF!)-10)","v":{"$error":"#REF!"}},{"$f":"LEFT(#REF!,LEN(#REF!)-10)","v":{"$error":"#REF!"}},{"$f":"LEFT(#REF!,LEN(#REF!)-10)","v":{"$error":"#REF!"}},{"$f":"LEFT(#REF!,LEN(#REF!)-10)","v":{"$error":"#REF!"}},{"$f":"LEFT(#REF!,LEN(#REF!)-10)","v":{"$error":"#REF!"}},{"$f":"LEFT(#REF!,LEN(#REF!)-10)","v":{"$error":"#REF!"}},{"$f":"LEFT(#REF!,LEN(#REF!)-10)","v":{"$error":"#REF!"}},{"$f":"LEFT(#REF!,LEN(#REF!)-10)","v":{"$error":"#REF!"}},{"$f":"LEFT(#REF!,LEN(#REF!)-10)","v":{"$error":"#REF!"}},{"$f":"LEFT(#REF!,LEN(#REF!)-10)","v":{"$error":"#REF!"}},{"$f":"LEFT(#REF!,LEN(#REF!)-10)","v":{"$error":"#REF!"}},{"$f":"LEFT(#REF!,LEN(#REF!)-10)","v":{"$error":"#REF!"}},{"$f":"LEFT(#REF!,LEN(#REF!)-10)","v":{"$error":"#REF!"}},{"$f":"LEFT(#REF!,LEN(#REF!)-10)","v":{"$error":"#REF!"}},{"$f":"LEFT(#REF!,LEN(#REF!)-10)","v":{"$error":"#REF!"}},{"$f":"LEFT(#REF!,LEN(#REF!)-10)","v":{"$error":"#REF!"}},{"$f":"LEFT(#REF!,LEN(#REF!)-10)","v":{"$error":"#REF!"}},{"$f":"LEFT(#REF!,LEN(#REF!)-10)","v":{"$error":"#REF!"}},{"$f":"LEFT(#REF!,LEN(#REF!)-10)","v":{"$error":"#REF!"}},{"$f":"LEFT(#REF!,LEN(#REF!)-10)","v":{"$error":"#REF!"}},{"$f":"LEFT(#REF!,LEN(#REF!)-10)","v":{"$error":"#REF!"}},{"$f":"LEFT(#REF!,LEN(#REF!)-10)","v":{"$error":"#REF!"}},{"$f":"LEFT(#REF!,LEN(#REF!)-10)","v":{"$error":"#REF!"}},{"$f":"LEFT(#REF!,LEN(#REF!)-10)","v":{"$error":"#REF!"}},{"$f":"LEFT(#REF!,LEN(#REF!)-10)","v":{"$error":"#REF!"}},{"$f":"LEFT(#REF!,LEN(#REF!)-10)","v":{"$error":"#REF!"}},{"$f":"LEFT(#REF!,LEN(#REF!)-10)","v":{"$error":"#REF!"}},{"$f":"LEFT(#REF!,LEN(#REF!)-10)","v":{"$error":"#REF!"}},{"$f":"LEFT(#REF!,LEN(#REF!)-10)","v":{"$error":"#REF!"}},{"$f":"LEFT(#REF!,LEN(#REF!)-10)","v":{"$error":"#REF!"}},{"$f":"LEFT(#REF!,LEN(#REF!)-10)","v":{"$error":"#REF!"}},{"$f":"LEFT(#REF!,LEN(#REF!)-10)","v":{"$error":"#REF!"}},{"$f":"LEFT(#REF!,LEN(#REF!)-10)","v":{"$error":"#REF!"}},{"$f":"LEFT(#REF!,LEN(#REF!)-10)","v":{"$error":"#REF!"}},{"$f":"LEFT(#REF!,LEN(#REF!)-10)","v":{"$error":"#REF!"}},{"$f":"LEFT(#REF!,LEN(#REF!)-10)","v":{"$error":"#REF!"}},{"$f":"LEFT(#REF!,LEN(#REF!)-10)","v":{"$error":"#REF!"}},{"$f":"LEFT(#REF!,LEN(#REF!)-10)","v":{"$error":"#REF!"}},{"$f":"LEFT(#REF!,LEN(#REF!)-10)","v":{"$error":"#REF!"}},{"$f":"LEFT(#REF!,LEN(#REF!)-10)","v":{"$error":"#REF!"}},{"$f":"LEFT(#REF!,LEN(#REF!)-10)","v":{"$error":"#REF!"}}]
[null,null,null,"Estimate!!Total:!!Householder 45 to 64 years:!!$25,000 to $29,999",4,7,0,12,15,12,20,32,3,4,0,12,14,24,21,33,40,34,9,11,2,3,0,12,4,6,11,19,0,12,6,5,0,12,0,12,94,81,4,6,0,12,7,8,23,27,null,null,null,null,null,null,null,null,null,null,null,null,null,null,null,null,null,null,null,null,null,null,null,null,null,null,null,null,null,null,null,null,null,null,null,null,null,null,null,null,null,null,null,null,null,null,null,null,null,null,null,null,{"$f":"LEFT(#REF!,LEN(#REF!)-10)","v":{"$error":"#REF!"}},{"$f":"LEFT(#REF!,LEN(#REF!)-10)","v":{"$error":"#REF!"}},{"$f":"LEFT(#REF!,LEN(#REF!)-10)","v":{"$error":"#REF!"}},{"$f":"LEFT(#REF!,LEN(#REF!)-10)","v":{"$error":"#REF!"}},{"$f":"LEFT(#REF!,LEN(#REF!)-10)","v":{"$error":"#REF!"}},{"$f":"LEFT(#REF!,LEN(#REF!)-10)","v":{"$error":"#REF!"}},{"$f":"LEFT(#REF!,LEN(#REF!)-10)","v":{"$error":"#REF!"}},{"$f":"LEFT(#REF!,LEN(#REF!)-10)","v":{"$error":"#REF!"}},{"$f":"LEFT(#REF!,LEN(#REF!)-10)","v":{"$error":"#REF!"}},{"$f":"LEFT(#REF!,LEN(#REF!)-10)","v":{"$error":"#REF!"}},{"$f":"LEFT(#REF!,LEN(#REF!)-10)","v":{"$error":"#REF!"}},{"$f":"LEFT(#REF!,LEN(#REF!)-10)","v":{"$error":"#REF!"}},{"$f":"LEFT(#REF!,LEN(#REF!)-10)","v":{"$error":"#REF!"}},{"$f":"LEFT(#REF!,LEN(#REF!)-10)","v":{"$error":"#REF!"}},{"$f":"LEFT(#REF!,LEN(#REF!)-10)","v":{"$error":"#REF!"}},{"$f":"LEFT(#REF!,LEN(#REF!)-10)","v":{"$error":"#REF!"}},{"$f":"LEFT(#REF!,LEN(#REF!)-10)","v":{"$error":"#REF!"}},{"$f":"LEFT(#REF!,LEN(#REF!)-10)","v":{"$error":"#REF!"}},{"$f":"LEFT(#REF!,LEN(#REF!)-10)","v":{"$error":"#REF!"}},{"$f":"LEFT(#REF!,LEN(#REF!)-10)","v":{"$error":"#REF!"}},{"$f":"LEFT(#REF!,LEN(#REF!)-10)","v":{"$error":"#REF!"}},{"$f":"LEFT(#REF!,LEN(#REF!)-10)","v":{"$error":"#REF!"}},{"$f":"LEFT(#REF!,LEN(#REF!)-10)","v":{"$error":"#REF!"}},{"$f":"LEFT(#REF!,LEN(#REF!)-10)","v":{"$error":"#REF!"}},{"$f":"LEFT(#REF!,LEN(#REF!)-10)","v":{"$error":"#REF!"}},{"$f":"LEFT(#REF!,LEN(#REF!)-10)","v":{"$error":"#REF!"}},{"$f":"LEFT(#REF!,LEN(#REF!)-10)","v":{"$error":"#REF!"}},{"$f":"LEFT(#REF!,LEN(#REF!)-10)","v":{"$error":"#REF!"}},{"$f":"LEFT(#REF!,LEN(#REF!)-10)","v":{"$error":"#REF!"}},{"$f":"LEFT(#REF!,LEN(#REF!)-10)","v":{"$error":"#REF!"}},{"$f":"LEFT(#REF!,LEN(#REF!)-10)","v":{"$error":"#REF!"}},{"$f":"LEFT(#REF!,LEN(#REF!)-10)","v":{"$error":"#REF!"}},{"$f":"LEFT(#REF!,LEN(#REF!)-10)","v":{"$error":"#REF!"}},{"$f":"LEFT(#REF!,LEN(#REF!)-10)","v":{"$error":"#REF!"}},{"$f":"LEFT(#REF!,LEN(#REF!)-10)","v":{"$error":"#REF!"}},{"$f":"LEFT(#REF!,LEN(#REF!)-10)","v":{"$error":"#REF!"}},{"$f":"LEFT(#REF!,LEN(#REF!)-10)","v":{"$error":"#REF!"}},{"$f":"LEFT(#REF!,LEN(#REF!)-10)","v":{"$error":"#REF!"}},{"$f":"LEFT(#REF!,LEN(#REF!)-10)","v":{"$error":"#REF!"}},{"$f":"LEFT(#REF!,LEN(#REF!)-10)","v":{"$error":"#REF!"}},{"$f":"LEFT(#REF!,LEN(#REF!)-10)","v":{"$error":"#REF!"}},{"$f":"LEFT(#REF!,LEN(#REF!)-10)","v":{"$error":"#REF!"}},{"$f":"LEFT(#REF!,LEN(#REF!)-10)","v":{"$error":"#REF!"}},{"$f":"LEFT(#REF!,LEN(#REF!)-10)","v":{"$error":"#REF!"}},{"$f":"LEFT(#REF!,LEN(#REF!)-10)","v":{"$error":"#REF!"}},{"$f":"LEFT(#REF!,LEN(#REF!)-10)","v":{"$error":"#REF!"}},{"$f":"LEFT(#REF!,LEN(#REF!)-10)","v":{"$error":"#REF!"}},{"$f":"LEFT(#REF!,LEN(#REF!)-10)","v":{"$error":"#REF!"}},{"$f":"LEFT(#REF!,LEN(#REF!)-10)","v":{"$error":"#REF!"}},{"$f":"LEFT(#REF!,LEN(#REF!)-10)","v":{"$error":"#REF!"}},{"$f":"LEFT(#REF!,LEN(#REF!)-10)","v":{"$error":"#REF!"}},{"$f":"LEFT(#REF!,LEN(#REF!)-10)","v":{"$error":"#REF!"}},{"$f":"LEFT(#REF!,LEN(#REF!)-10)","v":{"$error":"#REF!"}},{"$f":"LEFT(#REF!,LEN(#REF!)-10)","v":{"$error":"#REF!"}},{"$f":"LEFT(#REF!,LEN(#REF!)-10)","v":{"$error":"#REF!"}},{"$f":"LEFT(#REF!,LEN(#REF!)-10)","v":{"$error":"#REF!"}},{"$f":"LEFT(#REF!,LEN(#REF!)-10)","v":{"$error":"#REF!"}},{"$f":"LEFT(#REF!,LEN(#REF!)-10)","v":{"$error":"#REF!"}},{"$f":"LEFT(#REF!,LEN(#REF!)-10)","v":{"$error":"#REF!"}},{"$f":"LEFT(#REF!,LEN(#REF!)-10)","v":{"$error":"#REF!"}},{"$f":"LEFT(#REF!,LEN(#REF!)-10)","v":{"$error":"#REF!"}},{"$f":"LEFT(#REF!,LEN(#REF!)-10)","v":{"$error":"#REF!"}},{"$f":"LEFT(#REF!,LEN(#REF!)-10)","v":{"$error":"#REF!"}},{"$f":"LEFT(#REF!,LEN(#REF!)-10)","v":{"$error":"#REF!"}},{"$f":"LEFT(#REF!,LEN(#REF!)-10)","v":{"$error":"#REF!"}},{"$f":"LEFT(#REF!,LEN(#REF!)-10)","v":{"$error":"#REF!"}},{"$f":"LEFT(#REF!,LEN(#REF!)-10)","v":{"$error":"#REF!"}},{"$f":"LEFT(#REF!,LEN(#REF!)-10)","v":{"$error":"#REF!"}},{"$f":"LEFT(#REF!,LEN(#REF!)-10)","v":{"$error":"#REF!"}},{"$f":"LEFT(#REF!,LEN(#REF!)-10)","v":{"$error":"#REF!"}},{"$f":"LEFT(#REF!,LEN(#REF!)-10)","v":{"$error":"#REF!"}},{"$f":"LEFT(#REF!,LEN(#REF!)-10)","v":{"$error":"#REF!"}},{"$f":"LEFT(#REF!,LEN(#REF!)-10)","v":{"$error":"#REF!"}},{"$f":"LEFT(#REF!,LEN(#REF!)-10)","v":{"$error":"#REF!"}},{"$f":"LEFT(#REF!,LEN(#REF!)-10)","v":{"$error":"#REF!"}},{"$f":"LEFT(#REF!,LEN(#REF!)-10)","v":{"$error":"#REF!"}},{"$f":"LEFT(#REF!,LEN(#REF!)-10)","v":{"$error":"#REF!"}},{"$f":"LEFT(#REF!,LEN(#REF!)-10)","v":{"$error":"#REF!"}},{"$f":"LEFT(#REF!,LEN(#REF!)-10)","v":{"$error":"#REF!"}},{"$f":"LEFT(#REF!,LEN(#REF!)-10)","v":{"$error":"#REF!"}},{"$f":"LEFT(#REF!,LEN(#REF!)-10)","v":{"$error":"#REF!"}},{"$f":"LEFT(#REF!,LEN(#REF!)-10)","v":{"$error":"#REF!"}},{"$f":"LEFT(#REF!,LEN(#REF!)-10)","v":{"$error":"#REF!"}},{"$f":"LEFT(#REF!,LEN(#REF!)-10)","v":{"$error":"#REF!"}},{"$f":"LEFT(#REF!,LEN(#REF!)-10)","v":{"$error":"#REF!"}},{"$f":"LEFT(#REF!,LEN(#REF!)-10)","v":{"$error":"#REF!"}},{"$f":"LEFT(#REF!,LEN(#REF!)-10)","v":{"$error":"#REF!"}},{"$f":"LEFT(#REF!,LEN(#REF!)-10)","v":{"$error":"#REF!"}},{"$f":"LEFT(#REF!,LEN(#REF!)-10)","v":{"$error":"#REF!"}},{"$f":"LEFT(#REF!,LEN(#REF!)-10)","v":{"$error":"#REF!"}},{"$f":"LEFT(#REF!,LEN(#REF!)-10)","v":{"$error":"#REF!"}},{"$f":"LEFT(#REF!,LEN(#REF!)-10)","v":{"$error":"#REF!"}},{"$f":"LEFT(#REF!,LEN(#REF!)-10)","v":{"$error":"#REF!"}},{"$f":"LEFT(#REF!,LEN(#REF!)-10)","v":{"$error":"#REF!"}},{"$f":"LEFT(#REF!,LEN(#REF!)-10)","v":{"$error":"#REF!"}},{"$f":"LEFT(#REF!,LEN(#REF!)-10)","v":{"$error":"#REF!"}},{"$f":"LEFT(#REF!,LEN(#REF!)-10)","v":{"$error":"#REF!"}},{"$f":"LEFT(#REF!,LEN(#REF!)-10)","v":{"$error":"#REF!"}},{"$f":"LEFT(#REF!,LEN(#REF!)-10)","v":{"$error":"#REF!"}},{"$f":"LEFT(#REF!,LEN(#REF!)-10)","v":{"$error":"#REF!"}},{"$f":"LEFT(#REF!,LEN(#REF!)-10)","v":{"$error":"#REF!"}},{"$f":"LEFT(#REF!,LEN(#REF!)-10)","v":{"$error":"#REF!"}},{"$f":"LEFT(#REF!,LEN(#REF!)-10)","v":{"$error":"#REF!"}},{"$f":"LEFT(#REF!,LEN(#REF!)-10)","v":{"$error":"#REF!"}},{"$f":"LEFT(#REF!,LEN(#REF!)-10)","v":{"$error":"#REF!"}},{"$f":"LEFT(#REF!,LEN(#REF!)-10)","v":{"$error":"#REF!"}},{"$f":"LEFT(#REF!,LEN(#REF!)-10)","v":{"$error":"#REF!"}},{"$f":"LEFT(#REF!,LEN(#REF!)-10)","v":{"$error":"#REF!"}},{"$f":"LEFT(#REF!,LEN(#REF!)-10)","v":{"$error":"#REF!"}},{"$f":"LEFT(#REF!,LEN(#REF!)-10)","v":{"$error":"#REF!"}},{"$f":"LEFT(#REF!,LEN(#REF!)-10)","v":{"$error":"#REF!"}},{"$f":"LEFT(#REF!,LEN(#REF!)-10)","v":{"$error":"#REF!"}},{"$f":"LEFT(#REF!,LEN(#REF!)-10)","v":{"$error":"#REF!"}},{"$f":"LEFT(#REF!,LEN(#REF!)-10)","v":{"$error":"#REF!"}},{"$f":"LEFT(#REF!,LEN(#REF!)-10)","v":{"$error":"#REF!"}},{"$f":"LEFT(#REF!,LEN(#REF!)-10)","v":{"$error":"#REF!"}},{"$f":"LEFT(#REF!,LEN(#REF!)-10)","v":{"$error":"#REF!"}},{"$f":"LEFT(#REF!,LEN(#REF!)-10)","v":{"$error":"#REF!"}},{"$f":"LEFT(#REF!,LEN(#REF!)-10)","v":{"$error":"#REF!"}},{"$f":"LEFT(#REF!,LEN(#REF!)-10)","v":{"$error":"#REF!"}},{"$f":"LEFT(#REF!,LEN(#REF!)-10)","v":{"$error":"#REF!"}},{"$f":"LEFT(#REF!,LEN(#REF!)-10)","v":{"$error":"#REF!"}},{"$f":"LEFT(#REF!,LEN(#REF!)-10)","v":{"$error":"#REF!"}},{"$f":"LEFT(#REF!,LEN(#REF!)-10)","v":{"$error":"#REF!"}},{"$f":"LEFT(#REF!,LEN(#REF!)-10)","v":{"$error":"#REF!"}},{"$f":"LEFT(#REF!,LEN(#REF!)-10)","v":{"$error":"#REF!"}},{"$f":"LEFT(#REF!,LEN(#REF!)-10)","v":{"$error":"#REF!"}},{"$f":"LEFT(#REF!,LEN(#REF!)-10)","v":{"$error":"#REF!"}},{"$f":"LEFT(#REF!,LEN(#REF!)-10)","v":{"$error":"#REF!"}},{"$f":"LEFT(#REF!,LEN(#REF!)-10)","v":{"$error":"#REF!"}},{"$f":"LEFT(#REF!,LEN(#REF!)-10)","v":{"$error":"#REF!"}},{"$f":"LEFT(#REF!,LEN(#REF!)-10)","v":{"$error":"#REF!"}},{"$f":"LEFT(#REF!,LEN(#REF!)-10)","v":{"$error":"#REF!"}},{"$f":"LEFT(#REF!,LEN(#REF!)-10)","v":{"$error":"#REF!"}},{"$f":"LEFT(#REF!,LEN(#REF!)-10)","v":{"$error":"#REF!"}},{"$f":"LEFT(#REF!,LEN(#REF!)-10)","v":{"$error":"#REF!"}},{"$f":"LEFT(#REF!,LEN(#REF!)-10)","v":{"$error":"#REF!"}},{"$f":"LEFT(#REF!,LEN(#REF!)-10)","v":{"$error":"#REF!"}},{"$f":"LEFT(#REF!,LEN(#REF!)-10)","v":{"$error":"#REF!"}},{"$f":"LEFT(#REF!,LEN(#REF!)-10)","v":{"$error":"#REF!"}},{"$f":"LEFT(#REF!,LEN(#REF!)-10)","v":{"$error":"#REF!"}},{"$f":"LEFT(#REF!,LEN(#REF!)-10)","v":{"$error":"#REF!"}},{"$f":"LEFT(#REF!,LEN(#REF!)-10)","v":{"$error":"#REF!"}},{"$f":"LEFT(#REF!,LEN(#REF!)-10)","v":{"$error":"#REF!"}},{"$f":"LEFT(#REF!,LEN(#REF!)-10)","v":{"$error":"#REF!"}},{"$f":"LEFT(#REF!,LEN(#REF!)-10)","v":{"$error":"#REF!"}},{"$f":"LEFT(#REF!,LEN(#REF!)-10)","v":{"$error":"#REF!"}},{"$f":"LEFT(#REF!,LEN(#REF!)-10)","v":{"$error":"#REF!"}},{"$f":"LEFT(#REF!,LEN(#REF!)-10)","v":{"$error":"#REF!"}},{"$f":"LEFT(#REF!,LEN(#REF!)-10)","v":{"$error":"#REF!"}},{"$f":"LEFT(#REF!,LEN(#REF!)-10)","v":{"$error":"#REF!"}},{"$f":"LEFT(#REF!,LEN(#REF!)-10)","v":{"$error":"#REF!"}},{"$f":"LEFT(#REF!,LEN(#REF!)-10)","v":{"$error":"#REF!"}},{"$f":"LEFT(#REF!,LEN(#REF!)-10)","v":{"$error":"#REF!"}}]
[null,null,null,"Estimate!!Total:!!Householder 45 to 64 years:!!$30,000 to $34,999",0,12,0,12,5,6,12,20,0,12,7,9,11,17,58,75,186,131,11,12,2,5,5,5,4,6,0,17,0,12,0,12,0,12,0,12,134,154,15,24,0,12,0,12,19,21,null,null,null,null,null,null,null,null,null,null,null,null,null,null,null,null,null,null,null,null,null,null,null,null,null,null,null,null,null,null,null,null,null,null,null,null,null,null,null,null,null,null,null,null,null,null,null,null,null,null,null,null,{"$f":"LEFT(#REF!,LEN(#REF!)-10)","v":{"$error":"#REF!"}},{"$f":"LEFT(#REF!,LEN(#REF!)-10)","v":{"$error":"#REF!"}},{"$f":"LEFT(#REF!,LEN(#REF!)-10)","v":{"$error":"#REF!"}},{"$f":"LEFT(#REF!,LEN(#REF!)-10)","v":{"$error":"#REF!"}},{"$f":"LEFT(#REF!,LEN(#REF!)-10)","v":{"$error":"#REF!"}},{"$f":"LEFT(#REF!,LEN(#REF!)-10)","v":{"$error":"#REF!"}},{"$f":"LEFT(#REF!,LEN(#REF!)-10)","v":{"$error":"#REF!"}},{"$f":"LEFT(#REF!,LEN(#REF!)-10)","v":{"$error":"#REF!"}},{"$f":"LEFT(#REF!,LEN(#REF!)-10)","v":{"$error":"#REF!"}},{"$f":"LEFT(#REF!,LEN(#REF!)-10)","v":{"$error":"#REF!"}},{"$f":"LEFT(#REF!,LEN(#REF!)-10)","v":{"$error":"#REF!"}},{"$f":"LEFT(#REF!,LEN(#REF!)-10)","v":{"$error":"#REF!"}},{"$f":"LEFT(#REF!,LEN(#REF!)-10)","v":{"$error":"#REF!"}},{"$f":"LEFT(#REF!,LEN(#REF!)-10)","v":{"$error":"#REF!"}},{"$f":"LEFT(#REF!,LEN(#REF!)-10)","v":{"$error":"#REF!"}},{"$f":"LEFT(#REF!,LEN(#REF!)-10)","v":{"$error":"#REF!"}},{"$f":"LEFT(#REF!,LEN(#REF!)-10)","v":{"$error":"#REF!"}},{"$f":"LEFT(#REF!,LEN(#REF!)-10)","v":{"$error":"#REF!"}},{"$f":"LEFT(#REF!,LEN(#REF!)-10)","v":{"$error":"#REF!"}},{"$f":"LEFT(#REF!,LEN(#REF!)-10)","v":{"$error":"#REF!"}},{"$f":"LEFT(#REF!,LEN(#REF!)-10)","v":{"$error":"#REF!"}},{"$f":"LEFT(#REF!,LEN(#REF!)-10)","v":{"$error":"#REF!"}},{"$f":"LEFT(#REF!,LEN(#REF!)-10)","v":{"$error":"#REF!"}},{"$f":"LEFT(#REF!,LEN(#REF!)-10)","v":{"$error":"#REF!"}},{"$f":"LEFT(#REF!,LEN(#REF!)-10)","v":{"$error":"#REF!"}},{"$f":"LEFT(#REF!,LEN(#REF!)-10)","v":{"$error":"#REF!"}},{"$f":"LEFT(#REF!,LEN(#REF!)-10)","v":{"$error":"#REF!"}},{"$f":"LEFT(#REF!,LEN(#REF!)-10)","v":{"$error":"#REF!"}},{"$f":"LEFT(#REF!,LEN(#REF!)-10)","v":{"$error":"#REF!"}},{"$f":"LEFT(#REF!,LEN(#REF!)-10)","v":{"$error":"#REF!"}},{"$f":"LEFT(#REF!,LEN(#REF!)-10)","v":{"$error":"#REF!"}},{"$f":"LEFT(#REF!,LEN(#REF!)-10)","v":{"$error":"#REF!"}},{"$f":"LEFT(#REF!,LEN(#REF!)-10)","v":{"$error":"#REF!"}},{"$f":"LEFT(#REF!,LEN(#REF!)-10)","v":{"$error":"#REF!"}},{"$f":"LEFT(#REF!,LEN(#REF!)-10)","v":{"$error":"#REF!"}},{"$f":"LEFT(#REF!,LEN(#REF!)-10)","v":{"$error":"#REF!"}},{"$f":"LEFT(#REF!,LEN(#REF!)-10)","v":{"$error":"#REF!"}},{"$f":"LEFT(#REF!,LEN(#REF!)-10)","v":{"$error":"#REF!"}},{"$f":"LEFT(#REF!,LEN(#REF!)-10)","v":{"$error":"#REF!"}},{"$f":"LEFT(#REF!,LEN(#REF!)-10)","v":{"$error":"#REF!"}},{"$f":"LEFT(#REF!,LEN(#REF!)-10)","v":{"$error":"#REF!"}},{"$f":"LEFT(#REF!,LEN(#REF!)-10)","v":{"$error":"#REF!"}},{"$f":"LEFT(#REF!,LEN(#REF!)-10)","v":{"$error":"#REF!"}},{"$f":"LEFT(#REF!,LEN(#REF!)-10)","v":{"$error":"#REF!"}},{"$f":"LEFT(#REF!,LEN(#REF!)-10)","v":{"$error":"#REF!"}},{"$f":"LEFT(#REF!,LEN(#REF!)-10)","v":{"$error":"#REF!"}},{"$f":"LEFT(#REF!,LEN(#REF!)-10)","v":{"$error":"#REF!"}},{"$f":"LEFT(#REF!,LEN(#REF!)-10)","v":{"$error":"#REF!"}},{"$f":"LEFT(#REF!,LEN(#REF!)-10)","v":{"$error":"#REF!"}},{"$f":"LEFT(#REF!,LEN(#REF!)-10)","v":{"$error":"#REF!"}},{"$f":"LEFT(#REF!,LEN(#REF!)-10)","v":{"$error":"#REF!"}},{"$f":"LEFT(#REF!,LEN(#REF!)-10)","v":{"$error":"#REF!"}},{"$f":"LEFT(#REF!,LEN(#REF!)-10)","v":{"$error":"#REF!"}},{"$f":"LEFT(#REF!,LEN(#REF!)-10)","v":{"$error":"#REF!"}},{"$f":"LEFT(#REF!,LEN(#REF!)-10)","v":{"$error":"#REF!"}},{"$f":"LEFT(#REF!,LEN(#REF!)-10)","v":{"$error":"#REF!"}},{"$f":"LEFT(#REF!,LEN(#REF!)-10)","v":{"$error":"#REF!"}},{"$f":"LEFT(#REF!,LEN(#REF!)-10)","v":{"$error":"#REF!"}},{"$f":"LEFT(#REF!,LEN(#REF!)-10)","v":{"$error":"#REF!"}},{"$f":"LEFT(#REF!,LEN(#REF!)-10)","v":{"$error":"#REF!"}},{"$f":"LEFT(#REF!,LEN(#REF!)-10)","v":{"$error":"#REF!"}},{"$f":"LEFT(#REF!,LEN(#REF!)-10)","v":{"$error":"#REF!"}},{"$f":"LEFT(#REF!,LEN(#REF!)-10)","v":{"$error":"#REF!"}},{"$f":"LEFT(#REF!,LEN(#REF!)-10)","v":{"$error":"#REF!"}},{"$f":"LEFT(#REF!,LEN(#REF!)-10)","v":{"$error":"#REF!"}},{"$f":"LEFT(#REF!,LEN(#REF!)-10)","v":{"$error":"#REF!"}},{"$f":"LEFT(#REF!,LEN(#REF!)-10)","v":{"$error":"#REF!"}},{"$f":"LEFT(#REF!,LEN(#REF!)-10)","v":{"$error":"#REF!"}},{"$f":"LEFT(#REF!,LEN(#REF!)-10)","v":{"$error":"#REF!"}},{"$f":"LEFT(#REF!,LEN(#REF!)-10)","v":{"$error":"#REF!"}},{"$f":"LEFT(#REF!,LEN(#REF!)-10)","v":{"$error":"#REF!"}},{"$f":"LEFT(#REF!,LEN(#REF!)-10)","v":{"$error":"#REF!"}},{"$f":"LEFT(#REF!,LEN(#REF!)-10)","v":{"$error":"#REF!"}},{"$f":"LEFT(#REF!,LEN(#REF!)-10)","v":{"$error":"#REF!"}},{"$f":"LEFT(#REF!,LEN(#REF!)-10)","v":{"$error":"#REF!"}},{"$f":"LEFT(#REF!,LEN(#REF!)-10)","v":{"$error":"#REF!"}},{"$f":"LEFT(#REF!,LEN(#REF!)-10)","v":{"$error":"#REF!"}},{"$f":"LEFT(#REF!,LEN(#REF!)-10)","v":{"$error":"#REF!"}},{"$f":"LEFT(#REF!,LEN(#REF!)-10)","v":{"$error":"#REF!"}},{"$f":"LEFT(#REF!,LEN(#REF!)-10)","v":{"$error":"#REF!"}},{"$f":"LEFT(#REF!,LEN(#REF!)-10)","v":{"$error":"#REF!"}},{"$f":"LEFT(#REF!,LEN(#REF!)-10)","v":{"$error":"#REF!"}},{"$f":"LEFT(#REF!,LEN(#REF!)-10)","v":{"$error":"#REF!"}},{"$f":"LEFT(#REF!,LEN(#REF!)-10)","v":{"$error":"#REF!"}},{"$f":"LEFT(#REF!,LEN(#REF!)-10)","v":{"$error":"#REF!"}},{"$f":"LEFT(#REF!,LEN(#REF!)-10)","v":{"$error":"#REF!"}},{"$f":"LEFT(#REF!,LEN(#REF!)-10)","v":{"$error":"#REF!"}},{"$f":"LEFT(#REF!,LEN(#REF!)-10)","v":{"$error":"#REF!"}},{"$f":"LEFT(#REF!,LEN(#REF!)-10)","v":{"$error":"#REF!"}},{"$f":"LEFT(#REF!,LEN(#REF!)-10)","v":{"$error":"#REF!"}},{"$f":"LEFT(#REF!,LEN(#REF!)-10)","v":{"$error":"#REF!"}},{"$f":"LEFT(#REF!,LEN(#REF!)-10)","v":{"$error":"#REF!"}},{"$f":"LEFT(#REF!,LEN(#REF!)-10)","v":{"$error":"#REF!"}},{"$f":"LEFT(#REF!,LEN(#REF!)-10)","v":{"$error":"#REF!"}},{"$f":"LEFT(#REF!,LEN(#REF!)-10)","v":{"$error":"#REF!"}},{"$f":"LEFT(#REF!,LEN(#REF!)-10)","v":{"$error":"#REF!"}},{"$f":"LEFT(#REF!,LEN(#REF!)-10)","v":{"$error":"#REF!"}},{"$f":"LEFT(#REF!,LEN(#REF!)-10)","v":{"$error":"#REF!"}},{"$f":"LEFT(#REF!,LEN(#REF!)-10)","v":{"$error":"#REF!"}},{"$f":"LEFT(#REF!,LEN(#REF!)-10)","v":{"$error":"#REF!"}},{"$f":"LEFT(#REF!,LEN(#REF!)-10)","v":{"$error":"#REF!"}},{"$f":"LEFT(#REF!,LEN(#REF!)-10)","v":{"$error":"#REF!"}},{"$f":"LEFT(#REF!,LEN(#REF!)-10)","v":{"$error":"#REF!"}},{"$f":"LEFT(#REF!,LEN(#REF!)-10)","v":{"$error":"#REF!"}},{"$f":"LEFT(#REF!,LEN(#REF!)-10)","v":{"$error":"#REF!"}},{"$f":"LEFT(#REF!,LEN(#REF!)-10)","v":{"$error":"#REF!"}},{"$f":"LEFT(#REF!,LEN(#REF!)-10)","v":{"$error":"#REF!"}},{"$f":"LEFT(#REF!,LEN(#REF!)-10)","v":{"$error":"#REF!"}},{"$f":"LEFT(#REF!,LEN(#REF!)-10)","v":{"$error":"#REF!"}},{"$f":"LEFT(#REF!,LEN(#REF!)-10)","v":{"$error":"#REF!"}},{"$f":"LEFT(#REF!,LEN(#REF!)-10)","v":{"$error":"#REF!"}},{"$f":"LEFT(#REF!,LEN(#REF!)-10)","v":{"$error":"#REF!"}},{"$f":"LEFT(#REF!,LEN(#REF!)-10)","v":{"$error":"#REF!"}},{"$f":"LEFT(#REF!,LEN(#REF!)-10)","v":{"$error":"#REF!"}},{"$f":"LEFT(#REF!,LEN(#REF!)-10)","v":{"$error":"#REF!"}},{"$f":"LEFT(#REF!,LEN(#REF!)-10)","v":{"$error":"#REF!"}},{"$f":"LEFT(#REF!,LEN(#REF!)-10)","v":{"$error":"#REF!"}},{"$f":"LEFT(#REF!,LEN(#REF!)-10)","v":{"$error":"#REF!"}},{"$f":"LEFT(#REF!,LEN(#REF!)-10)","v":{"$error":"#REF!"}},{"$f":"LEFT(#REF!,LEN(#REF!)-10)","v":{"$error":"#REF!"}},{"$f":"LEFT(#REF!,LEN(#REF!)-10)","v":{"$error":"#REF!"}},{"$f":"LEFT(#REF!,LEN(#REF!)-10)","v":{"$error":"#REF!"}},{"$f":"LEFT(#REF!,LEN(#REF!)-10)","v":{"$error":"#REF!"}},{"$f":"LEFT(#REF!,LEN(#REF!)-10)","v":{"$error":"#REF!"}},{"$f":"LEFT(#REF!,LEN(#REF!)-10)","v":{"$error":"#REF!"}},{"$f":"LEFT(#REF!,LEN(#REF!)-10)","v":{"$error":"#REF!"}},{"$f":"LEFT(#REF!,LEN(#REF!)-10)","v":{"$error":"#REF!"}},{"$f":"LEFT(#REF!,LEN(#REF!)-10)","v":{"$error":"#REF!"}},{"$f":"LEFT(#REF!,LEN(#REF!)-10)","v":{"$error":"#REF!"}},{"$f":"LEFT(#REF!,LEN(#REF!)-10)","v":{"$error":"#REF!"}},{"$f":"LEFT(#REF!,LEN(#REF!)-10)","v":{"$error":"#REF!"}},{"$f":"LEFT(#REF!,LEN(#REF!)-10)","v":{"$error":"#REF!"}},{"$f":"LEFT(#REF!,LEN(#REF!)-10)","v":{"$error":"#REF!"}},{"$f":"LEFT(#REF!,LEN(#REF!)-10)","v":{"$error":"#REF!"}},{"$f":"LEFT(#REF!,LEN(#REF!)-10)","v":{"$error":"#REF!"}},{"$f":"LEFT(#REF!,LEN(#REF!)-10)","v":{"$error":"#REF!"}},{"$f":"LEFT(#REF!,LEN(#REF!)-10)","v":{"$error":"#REF!"}},{"$f":"LEFT(#REF!,LEN(#REF!)-10)","v":{"$error":"#REF!"}},{"$f":"LEFT(#REF!,LEN(#REF!)-10)","v":{"$error":"#REF!"}},{"$f":"LEFT(#REF!,LEN(#REF!)-10)","v":{"$error":"#REF!"}},{"$f":"LEFT(#REF!,LEN(#REF!)-10)","v":{"$error":"#REF!"}},{"$f":"LEFT(#REF!,LEN(#REF!)-10)","v":{"$error":"#REF!"}},{"$f":"LEFT(#REF!,LEN(#REF!)-10)","v":{"$error":"#REF!"}},{"$f":"LEFT(#REF!,LEN(#REF!)-10)","v":{"$error":"#REF!"}},{"$f":"LEFT(#REF!,LEN(#REF!)-10)","v":{"$error":"#REF!"}},{"$f":"LEFT(#REF!,LEN(#REF!)-10)","v":{"$error":"#REF!"}},{"$f":"LEFT(#REF!,LEN(#REF!)-10)","v":{"$error":"#REF!"}},{"$f":"LEFT(#REF!,LEN(#REF!)-10)","v":{"$error":"#REF!"}},{"$f":"LEFT(#REF!,LEN(#REF!)-10)","v":{"$error":"#REF!"}},{"$f":"LEFT(#REF!,LEN(#REF!)-10)","v":{"$error":"#REF!"}},{"$f":"LEFT(#REF!,LEN(#REF!)-10)","v":{"$error":"#REF!"}},{"$f":"LEFT(#REF!,LEN(#REF!)-10)","v":{"$error":"#REF!"}},{"$f":"LEFT(#REF!,LEN(#REF!)-10)","v":{"$error":"#REF!"}},{"$f":"LEFT(#REF!,LEN(#REF!)-10)","v":{"$error":"#REF!"}}]
[null,null,null,"Estimate!!Total:!!Householder 45 to 64 years:!!$35,000 to $39,999",5,6,30,36,13,19,6,9,4,4,0,12,43,38,0,17,80,54,10,11,3,4,0,12,0,12,0,17,2,3,9,13,5,5,3,4,0,17,4,7,45,56,0,12,19,22]
[null,null,null,"Estimate!!Total:!!Householder 45 to 64 years:!!$40,000 to $44,999",0,12,0,12,0,12,23,20,18,26,0,12,15,24,22,28,77,101,5,7,0,12,0,12,4,6,16,16,1,2,0,12,0,12,0,12,51,59,7,9,7,11,4,6,8,15]
[null,null,null,"Estimate!!Total:!!Householder 45 to 64 years:!!$45,000 to $49,999",32,25,0,12,3,4,16,13,9,9,13,15,0,12,0,17,68,71,5,9,8,11,2,3,9,8,30,37,2,3,0,12,5,5,13,14,32,37,5,7,70,61,14,17,35,33]
[null,null,null,"Estimate!!Total:!!Householder 45 to 64 years:!!$50,000 to $59,999",40,47,0,12,12,10,36,35,12,8,0,12,32,31,33,36,240,107,3,5,2,3,1,2,8,9,57,51,3,4,20,12,2,3,11,9,43,38,24,15,70,57,15,20,26,31]
[null,null,null,"Estimate!!Total:!!Householder 45 to 64 years:!!$60,000 to $74,999",13,11,76,84,6,8,21,27,18,16,6,7,97,62,329,253,279,117,34,32,5,5,19,12,22,16,23,27,21,36,24,20,8,7,0,12,99,95,14,13,39,34,25,18,54,43]
[null,null,null,"Estimate!!Total:!!Householder 45 to 64 years:!!$75,000 to $99,999",35,25,9,19,76,66,52,26,14,10,38,23,59,53,105,77,525,186,62,63,20,17,14,11,21,16,75,53,5,5,35,21,22,12,16,10,142,77,28,18,28,20,18,14,77,71]
[null,null,null,"Estimate!!Total:!!Householder 45 to 64 years:!!$100,000 to $124,999",31,18,83,100,24,19,63,42,15,11,25,18,69,57,156,140,297,118,57,38,10,7,5,5,12,11,167,83,9,9,30,19,31,17,16,12,182,102,28,19,41,38,113,78,55,45]
[null,null,null,"Estimate!!Total:!!Householder 45 to 64 years:!!$125,000 to $149,999",26,16,59,62,12,9,19,16,4,4,3,4,93,65,125,100,355,144,7,10,19,22,6,5,25,23,165,79,1,3,29,19,5,5,10,8,159,102,13,14,81,56,20,14,74,53]
[null,null,null,"Estimate!!Total:!!Householder 45 to 64 years:!!$150,000 to $199,999",21,14,130,100,34,22,30,35,25,16,28,17,127,85,70,55,295,136,45,36,30,20,11,8,40,32,76,47,8,10,30,18,25,17,23,25,108,64,0,12,70,50,58,29,60,45]
[null,null,null,"Estimate!!Total:!!Householder 45 to 64 years:!!$200,000 or more",24,14,61,55,77,33,84,42,7,6,19,10,69,68,77,66,313,105,33,22,10,12,23,14,8,8,96,66,5,5,27,17,5,6,8,6,74,66,23,21,68,44,64,33,72,66]
[null,null,null,"Estimate!!Total:!!Householder 65 years and over:",284,81,600,141,230,62,342,108,102,27,179,38,624,172,465,116,2605,293,278,62,112,40,104,28,153,46,582,132,22,9,130,22,84,24,152,38,1142,174,225,54,525,99,338,127,430,78]
[null,null,null,"Estimate!!Total:!!Householder 65 years and over:!!Less than $10,000",26,27,0,12,3,4,14,12,1,3,0,12,29,47,40,38,48,41,6,9,2,3,1,4,0,12,0,17,0,12,2,4,0,12,0,12,20,28,0,12,150,107,72,99,23,22]
[null,null,null,"Estimate!!Total:!!Householder 65 years and over:!!$10,000 to $14,999",42,47,0,12,37,53,31,31,10,12,3,4,0,12,0,17,167,82,10,16,3,4,2,2,3,5,14,17,1,2,0,12,8,9,4,5,0,17,15,14,0,12,0,12,14,17]
[null,null,null,"Estimate!!Total:!!Householder 65 years and over:!!$15,000 to $19,999",12,11,39,39,3,3,0,12,6,5,3,4,0,12,1,4,375,138,11,17,4,5,1,3,15,15,22,20,0,12,0,12,6,8,4,5,129,85,11,17,9,12,11,14,27,24]
[null,null,null,"Estimate!!Total:!!Householder 65 years and over:!!$20,000 to $24,999",26,30,33,38,0,12,6,9,2,4,3,4,36,32,13,21,108,73,24,23,5,5,2,3,0,12,32,33,4,6,8,9,7,9,7,6,56,43,6,8,0,12,27,30,86,71]
[null,null,null,"Estimate!!Total:!!Householder 65 years and over:!!$25,000 to $29,999",2,3,53,80,3,4,26,14,7,5,5,6,34,28,30,32,176,108,23,18,7,11,2,5,3,5,21,23,4,4,3,4,2,3,5,7,20,23,51,36,37,30,19,15,8,13]
[null,null,null,"Estimate!!Total:!!Householder 65 years and over:!!$30,000 to $34,999",20,21,0,12,2,3,7,9,2,3,3,4,25,19,53,51,106,85,19,15,4,5,11,13,11,12,18,22,0,12,15,8,4,4,0,12,11,19,15,25,7,11,17,19,36,29]
[null,null,null,"Estimate!!Total:!!Householder 65 years and over:!!$35,000 to $39,999",12,11,16,25,0,12,17,25,2,4,0,12,19,31,13,20,152,79,38,29,2,4,3,4,0,12,53,68,1,2,7,6,6,5,12,9,77,48,16,24,6,11,12,12,27,25]
[null,null,null,"Estimate!!Total:!!Householder 65 years and over:!!$40,000 to $44,999",11,12,73,88,3,4,13,11,0,12,21,13,81,90,0,17,159,100,0,12,5,5,4,4,5,5,6,9,1,2,5,5,0,12,0,12,59,48,4,6,0,12,9,8,28,26]
[null,null,null,"Estimate!!Total:!!Householder 65 years and over:!!$45,000 to $49,999",0,12,16,24,16,15,14,10,12,12,14,9,0,12,15,24,99,59,0,12,0,12,2,3,14,14,13,15,0,12,5,5,2,3,19,24,42,44,8,9,6,11,3,5,24,26]
[null,null,null,"Estimate!!Total:!!Householder 65 years and over:!!$50,000 to $59,999",56,44,15,24,28,20,24,17,8,10,8,8,123,116,78,71,222,106,37,22,8,6,14,10,4,7,63,50,0,12,8,6,8,6,24,17,74,52,14,13,43,28,19,13,34,40]
[null,null,null,"Estimate!!Total:!!Householder 65 years and over:!!$60,000 to $74,999",11,10,36,38,11,11,26,20,8,6,42,24,205,164,30,30,165,80,12,13,10,8,4,4,25,23,90,68,1,2,27,14,9,5,12,9,209,121,27,18,45,31,25,15,24,18]
[null,null,null,"Estimate!!Total:!!Householder 65 years and over:!!$75,000 to $99,999",31,18,73,69,24,11,96,96,19,12,25,18,33,26,48,60,214,84,17,15,15,14,18,13,31,17,72,48,2,3,15,14,7,8,20,11,129,64,11,11,40,28,36,21,29,23]
[null,null,null,"Estimate!!Total:!!Householder 65 years and over:!!$100,000 to $124,999",24,16,42,66,23,14,17,8,5,5,15,10,28,24,94,74,128,69,29,18,40,32,13,8,32,30,51,65,3,3,8,6,7,9,18,16,164,116,17,15,55,39,22,18,16,18]
[null,null,null,"Estimate!!Total:!!Householder 65 years and over:!!$125,000 to $149,999",4,8,56,43,21,17,8,8,8,12,10,9,5,9,0,17,213,163,19,24,1,2,12,10,2,4,33,26,0,12,10,7,0,12,2,4,79,84,12,17,15,12,12,9,27,27]
[null,null,null,"Estimate!!Total:!!Householder 65 years and over:!!$150,000 to $199,999",7,9,98,87,25,18,31,25,12,13,3,5,6,9,16,26,94,46,6,10,3,4,4,4,6,8,58,50,2,3,4,4,12,14,3,4,13,15,18,19,43,37,22,18,18,19]
[null,null,null,"Estimate!!Total:!!Householder 65 years and over:!!$200,000 or more",0,12,50,43,31,21,12,11,0,12,24,13,0,12,34,36,179,102,27,32,3,4,11,9,2,4,36,49,3,3,13,11,6,7,22,16,60,52,0,12,69,48,32,25,9,14]

{"sheet":"SData_B19049MedianIncomeByAge","index":57,"n_rows":35,"n_cols":50,"rows_kept":35,"cut":false,"hidden":true,"merged":[]}
["GEO_ID","GEO_ID2","SUMLEVEL",{"$f":"[1]ACS_16_5YR_B19049_with_ann!C1","v":"NAME"},{"$f":"[1]ACS_16_5YR_B19049_with_ann!D1","v":"B19049_001E"},{"$f":"[1]ACS_16_5YR_B19049_with_ann!E1","v":"B19049_001M"},{"$f":"[1]ACS_16_5YR_B19049_with_ann!F1","v":"B19049_002E"},{"$f":"[1]ACS_16_5YR_B19049_with_ann!G1","v":"B19049_002M"},{"$f":"[1]ACS_16_5YR_B19049_with_ann!H1","v":"B19049_003E"},{"$f":"[1]ACS_16_5YR_B19049_with_ann!I1","v":"B19049_003M"},{"$f":"[1]ACS_16_5YR_B19049_with_ann!J1","v":"B19049_004E"},{"$f":"[1]ACS_16_5YR_B19049_with_ann!K1","v":"B19049_004M"},{"$f":"[1]ACS_16_5YR_B19049_with_ann!L1","v":"B19049_005E"},{"$f":"[1]ACS_16_5YR_B19049_with_ann!M1","v":"B19049_005M"}]
["Geography Identifier","Geography Identifier","Geographic Summary Level",{"$f":"[1]ACS_16_5YR_B19049_with_ann!C2","v":"Geographic Area Name"},{"$f":"[1]ACS_16_5YR_B19049_with_ann!D2","v":"Estimate!!Median household income in the past 12 months (in 2022 inflation-adjusted dollars) --!!Total:"},{"$f":"[1]ACS_16_5YR_B19049_with_ann!E2","v":"Margin of Error!!Median household income in the past 12 months (in 2022 inflation-adjusted dollars) --!!Total:"},{"$f":"[1]ACS_16_5YR_B19049_with_ann!F2","v":"Estimate!!Median household income in the past 12 months (in 2022 inflation-adjusted dollars) --!!Total:!!Householder under 25 years"},{"$f":"[1]ACS_16_5YR_B19049_with_ann!G2","v":"Margin of Error!!Median household income in the past 12 months (in 2022 inflation-adjusted dollars) --!!Total:!!Householder under 25 years"},{"$f":"[1]ACS_16_5YR_B19049_with_ann!H2","v":"Estimate!!Median household income in the past 12 months (in 2022 inflation-adjusted dollars) --!!Total:!!Householder 25 to 44 years"},{"$f":"[1]ACS_16_5YR_B19049_with_ann!I2","v":"Margin of Error!!Median household income in the past 12 months (in 2022 inflation-adjusted dollars) --!!Total:!!Householder 25 to 44 years"},{"$f":"[1]ACS_16_5YR_B19049_with_ann!J2","v":"Estimate!!Median household income in the past 12 months (in 2022 inflation-adjusted dollars) --!!Total:!!Householder 45 to 64 years"},{"$f":"[1]ACS_16_5YR_B19049_with_ann!K2","v":"Margin of Error!!Median household income in the past 12 months (in 2022 inflation-adjusted dollars) --!!Total:!!Householder 45 to 64 years"},{"$f":"[1]ACS_16_5YR_B19049_with_ann!L2","v":"Estimate!!Median household income in the past 12 months (in 2022 inflation-adjusted dollars) --!!Total:!!Householder 65 years and over"},{"$f":"[1]ACS_16_5YR_B19049_with_ann!M2","v":"Margin of Error!!Median household income in the past 12 months (in 2022 inflation-adjusted dollars) --!!Total:!!Householder 65 years and over"}]
["06000US3300500820","0600000US3300512260","060",{"$f":"[1]ACS_16_5YR_B19049_with_ann!C44","v":"Alstead"},{"$f":"[1]ACS_16_5YR_B19049_with_ann!D44","v":52957},{"$f":"[1]ACS_16_5YR_B19049_with_ann!E44","v":3261},{"$f":"[1]ACS_16_5YR_B19049_with_ann!F44","v":"-"},{"$f":"[1]ACS_16_5YR_B19049_with_ann!G44","v":"**"},{"$f":"[1]ACS_16_5YR_B19049_with_ann!H44","v":78438},{"$f":"[1]ACS_16_5YR_B19049_with_ann!I44","v":65044},{"$f":"[1]ACS_16_5YR_B19049_with_ann!J44","v":61875},{"$f":"[1]ACS_16_5YR_B19049_with_ann!K44","v":40929},{"$f":"[1]ACS_16_5YR_B19049_with_ann!L44","v":40455},{"$f":"[1]ACS_16_5YR_B19049_with_ann!M44","v":19852}]
["06000US3300512260","0600000US3300519140","060",{"$f":"[1]ACS_16_5YR_B19049_with_ann!C45","v":"Chesterfield"},{"$f":"[1]ACS_16_5YR_B19049_with_ann!D45","v":109500},{"$f":"[1]ACS_16_5YR_B19049_with_ann!E45","v":14674},{"$f":"[1]ACS_16_5YR_B19049_with_ann!F45","v":"-"},{"$f":"[1]ACS_16_5YR_B19049_with_ann!G45","v":"**"},{"$f":"[1]ACS_16_5YR_B19049_with_ann!H45","v":109909},{"$f":"[1]ACS_16_5YR_B19049_with_ann!I45","v":27578},{"$f":"[1]ACS_16_5YR_B19049_with_ann!J45","v":132614},{"$f":"[1]ACS_16_5YR_B19049_with_ann!K45","v":35520},{"$f":"[1]ACS_16_5YR_B19049_with_ann!L45","v":82917},{"$f":"[1]ACS_16_5YR_B19049_with_ann!M45","v":42846}]
["06000US3300519140","0600000US3300526500","060",{"$f":"[1]ACS_16_5YR_B19049_with_ann!C46","v":"Dublin"},{"$f":"[1]ACS_16_5YR_B19049_with_ann!D46","v":96463},{"$f":"[1]ACS_16_5YR_B19049_with_ann!E46","v":5718},{"$f":"[1]ACS_16_5YR_B19049_with_ann!F46","v":"-"},{"$f":"[1]ACS_16_5YR_B19049_with_ann!G46","v":"**"},{"$f":"[1]ACS_16_5YR_B19049_with_ann!H46","v":92917},{"$f":"[1]ACS_16_5YR_B19049_with_ann!I46","v":28767},{"$f":"[1]ACS_16_5YR_B19049_with_ann!J46","v":97473},{"$f":"[1]ACS_16_5YR_B19049_with_ann!K46","v":21349},{"$f":"[1]ACS_16_5YR_B19049_with_ann!L46","v":81071},{"$f":"[1]ACS_16_5YR_B19049_with_ann!M46","v":36511}]
["06000US3300526500","0600000US3300529220","060",{"$f":"[1]ACS_16_5YR_B19049_with_ann!C47","v":"Fitzwilliam"},{"$f":"[1]ACS_16_5YR_B19049_with_ann!D47","v":85733},{"$f":"[1]ACS_16_5YR_B19049_with_ann!E47","v":19127},{"$f":"[1]ACS_16_5YR_B19049_with_ann!F47","v":86250},{"$f":"[1]ACS_16_5YR_B19049_with_ann!G47","v":4648},{"$f":"[1]ACS_16_5YR_B19049_with_ann!H47","v":105000},{"$f":"[1]ACS_16_5YR_B19049_with_ann!I47","v":34311},{"$f":"[1]ACS_16_5YR_B19049_with_ann!J47","v":85568},{"$f":"[1]ACS_16_5YR_B19049_with_ann!K47","v":41685},{"$f":"[1]ACS_16_5YR_B19049_with_ann!L47","v":71154},{"$f":"[1]ACS_16_5YR_B19049_with_ann!M47","v":31180}]
["06000US3300529220","0600000US3300534420","060",{"$f":"[1]ACS_16_5YR_B19049_with_ann!C48","v":"Gilsum"},{"$f":"[1]ACS_16_5YR_B19049_with_ann!D48","v":70000},{"$f":"[1]ACS_16_5YR_B19049_with_ann!E48","v":10396},{"$f":"[1]ACS_16_5YR_B19049_with_ann!F48","v":"-"},{"$f":"[1]ACS_16_5YR_B19049_with_ann!G48","v":"**"},{"$f":"[1]ACS_16_5YR_B19049_with_ann!H48","v":72857},{"$f":"[1]ACS_16_5YR_B19049_with_ann!I48","v":15785},{"$f":"[1]ACS_16_5YR_B19049_with_ann!J48","v":71563},{"$f":"[1]ACS_16_5YR_B19049_with_ann!K48","v":24651},{"$f":"[1]ACS_16_5YR_B19049_with_ann!L48","v":63333},{"$f":"[1]ACS_16_5YR_B19049_with_ann!M48","v":25115}]
["06000US3300534420","0600000US3300536660","060",{"$f":"[1]ACS_16_5YR_B19049_with_ann!C49","v":"Harrisville"},{"$f":"[1]ACS_16_5YR_B19049_with_ann!D49","v":89737},{"$f":"[1]ACS_16_5YR_B19049_with_ann!E49","v":9021},{"$f":"[1]ACS_16_5YR_B19049_with_ann!F49","v":"-"},{"$f":"[1]ACS_16_5YR_B19049_with_ann!G49","v":"**"},{"$f":"[1]ACS_16_5YR_B19049_with_ann!H49","v":113125},{"$f":"[1]ACS_16_5YR_B19049_with_ann!I49","v":59275},{"$f":"[1]ACS_16_5YR_B19049_with_ann!J49","v":98750},{"$f":"[1]ACS_16_5YR_B19049_with_ann!K49","v":8930},{"$f":"[1]ACS_16_5YR_B19049_with_ann!L49","v":70313},{"$f":"[1]ACS_16_5YR_B19049_with_ann!M49","v":9954}]
["06000US3300536660","0600000US3300538500","060",{"$f":"[1]ACS_16_5YR_B19049_with_ann!C50","v":"Hinsdale"},{"$f":"[1]ACS_16_5YR_B19049_with_ann!D50","v":67054},{"$f":"[1]ACS_16_5YR_B19049_with_ann!E50","v":11035},{"$f":"[1]ACS_16_5YR_B19049_with_ann!F50","v":"-"},{"$f":"[1]ACS_16_5YR_B19049_with_ann!G50","v":"**"},{"$f":"[1]ACS_16_5YR_B19049_with_ann!H50","v":91645},{"$f":"[1]ACS_16_5YR_B19049_with_ann!I50","v":20728},{"$f":"[1]ACS_16_5YR_B19049_with_ann!J50","v":117782},{"$f":"[1]ACS_16_5YR_B19049_with_ann!K50","v":41828},{"$f":"[1]ACS_16_5YR_B19049_with_ann!L50","v":58491},{"$f":"[1]ACS_16_5YR_B19049_with_ann!M50","v":11159}]
["06000US3300538500","0600000US3300539300","060",{"$f":"[1]ACS_16_5YR_B19049_with_ann!C51","v":"Jaffrey"},{"$f":"[1]ACS_16_5YR_B19049_with_ann!D51","v":82167},{"$f":"[1]ACS_16_5YR_B19049_with_ann!E51","v":25777},{"$f":"[1]ACS_16_5YR_B19049_with_ann!F51","v":"-"},{"$f":"[1]ACS_16_5YR_B19049_with_ann!G51","v":"**"},{"$f":"[1]ACS_16_5YR_B19049_with_ann!H51","v":123609},{"$f":"[1]ACS_16_5YR_B19049_with_ann!I51","v":29961},{"$f":"[1]ACS_16_5YR_B19049_with_ann!J51","v":75066},{"$f":"[1]ACS_16_5YR_B19049_with_ann!K51","v":34420},{"$f":"[1]ACS_16_5YR_B19049_with_ann!L51","v":58125},{"$f":"[1]ACS_16_5YR_B19049_with_ann!M51","v":25106}]
["06000US3300539300","0600000US3300545460","060",{"$f":"[1]ACS_16_5YR_B19049_with_ann!C52","v":"Keene"},{"$f":"[1]ACS_16_5YR_B19049_with_ann!D52","v":69381},{"$f":"[1]ACS_16_5YR_B19049_with_ann!E52","v":8852},{"$f":"[1]ACS_16_5YR_B19049_with_ann!F52","v":38571},{"$f":"[1]ACS_16_5YR_B19049_with_ann!G52","v":18874},{"$f":"[1]ACS_16_5YR_B19049_with_ann!H52","v":81205},{"$f":"[1]ACS_16_5YR_B19049_with_ann!I52","v":4023},{"$f":"[1]ACS_16_5YR_B19049_with_ann!J52","v":87798},{"$f":"[1]ACS_16_5YR_B19049_with_ann!K52","v":11284},{"$f":"[1]ACS_16_5YR_B19049_with_ann!L52","v":45355},{"$f":"[1]ACS_16_5YR_B19049_with_ann!M52","v":8743}]
["06000US3300545460","0600000US3300545700","060",{"$f":"[1]ACS_16_5YR_B19049_with_ann!C53","v":"Marlborough"},{"$f":"[1]ACS_16_5YR_B19049_with_ann!D53","v":70800},{"$f":"[1]ACS_16_5YR_B19049_with_ann!E53","v":15162},{"$f":"[1]ACS_16_5YR_B19049_with_ann!F53","v":"-"},{"$f":"[1]ACS_16_5YR_B19049_with_ann!G53","v":"**"},{"$f":"[1]ACS_16_5YR_B19049_with_ann!H53","v":68194},{"$f":"[1]ACS_16_5YR_B19049_with_ann!I53","v":26089},{"$f":"[1]ACS_16_5YR_B19049_with_ann!J53","v":89299},{"$f":"[1]ACS_16_5YR_B19049_with_ann!K53","v":19541},{"$f":"[1]ACS_16_5YR_B19049_with_ann!L53","v":51667},{"$f":"[1]ACS_16_5YR_B19049_with_ann!M53","v":22078}]
["06000US3300545700","0600000US3300550580","060",{"$f":"[1]ACS_16_5YR_B19049_with_ann!C54","v":"Marlow"},{"$f":"[1]ACS_16_5YR_B19049_with_ann!D54","v":103333},{"$f":"[1]ACS_16_5YR_B19049_with_ann!E54","v":19217},{"$f":"[1]ACS_16_5YR_B19049_with_ann!F54","v":"-"},{"$f":"[1]ACS_16_5YR_B19049_with_ann!G54","v":"**"},{"$f":"[1]ACS_16_5YR_B19049_with_ann!H54","v":113750},{"$f":"[1]ACS_16_5YR_B19049_with_ann!I54","v":25494},{"$f":"[1]ACS_16_5YR_B19049_with_ann!J54","v":110625},{"$f":"[1]ACS_16_5YR_B19049_with_ann!K54","v":40938},{"$f":"[1]ACS_16_5YR_B19049_with_ann!L54","v":77143},{"$f":"[1]ACS_16_5YR_B19049_with_ann!M54","v":40800}]
["06000US3300550580","0600000US3300564420","060",{"$f":"[1]ACS_16_5YR_B19049_with_ann!C55","v":"Nelson"},{"$f":"[1]ACS_16_5YR_B19049_with_ann!D55","v":91786},{"$f":"[1]ACS_16_5YR_B19049_with_ann!E55","v":15185},{"$f":"[1]ACS_16_5YR_B19049_with_ann!F55","v":"-"},{"$f":"[1]ACS_16_5YR_B19049_with_ann!G55","v":"**"},{"$f":"[1]ACS_16_5YR_B19049_with_ann!H55","v":106429},{"$f":"[1]ACS_16_5YR_B19049_with_ann!I55","v":21370},{"$f":"[1]ACS_16_5YR_B19049_with_ann!J55","v":116250},{"$f":"[1]ACS_16_5YR_B19049_with_ann!K55","v":67986},{"$f":"[1]ACS_16_5YR_B19049_with_ann!L55","v":78409},{"$f":"[1]ACS_16_5YR_B19049_with_ann!M55","v":14957}]
["06000US3300564420","0600000US3300564580","060",{"$f":"[1]ACS_16_5YR_B19049_with_ann!C56","v":"Richmond"},{"$f":"[1]ACS_16_5YR_B19049_with_ann!D56","v":88125},{"$f":"[1]ACS_16_5YR_B19049_with_ann!E56","v":15891},{"$f":"[1]ACS_16_5YR_B19049_with_ann!F56","v":"-"},{"$f":"[1]ACS_16_5YR_B19049_with_ann!G56","v":"**"},{"$f":"[1]ACS_16_5YR_B19049_with_ann!H56","v":100625},{"$f":"[1]ACS_16_5YR_B19049_with_ann!I56","v":43625},{"$f":"[1]ACS_16_5YR_B19049_with_ann!J56","v":91964},{"$f":"[1]ACS_16_5YR_B19049_with_ann!K56","v":46402},{"$f":"[1]ACS_16_5YR_B19049_with_ann!L56","v":69375},{"$f":"[1]ACS_16_5YR_B19049_with_ann!M56","v":24749}]
["06000US3300564580","0600000US3300565700","060",{"$f":"[1]ACS_16_5YR_B19049_with_ann!C57","v":"Rindge"},{"$f":"[1]ACS_16_5YR_B19049_with_ann!D57","v":97794},{"$f":"[1]ACS_16_5YR_B19049_with_ann!E57","v":12003},{"$f":"[1]ACS_16_5YR_B19049_with_ann!F57","v":"-"},{"$f":"[1]ACS_16_5YR_B19049_with_ann!G57","v":"**"},{"$f":"[1]ACS_16_5YR_B19049_with_ann!H57","v":96181},{"$f":"[1]ACS_16_5YR_B19049_with_ann!I57","v":23710},{"$f":"[1]ACS_16_5YR_B19049_with_ann!J57","v":115787},{"$f":"[1]ACS_16_5YR_B19049_with_ann!K57","v":7259},{"$f":"[1]ACS_16_5YR_B19049_with_ann!L57","v":64559},{"$f":"[1]ACS_16_5YR_B19049_with_ann!M57","v":13600}]
["06000US3300565700","0600000US3300573700","060",{"$f":"[1]ACS_16_5YR_B19049_with_ann!C58","v":"Roxbury"},{"$f":"[1]ACS_16_5YR_B19049_with_ann!D58","v":67440},{"$f":"[1]ACS_16_5YR_B19049_with_ann!E58","v":41668},{"$f":"[1]ACS_16_5YR_B19049_with_ann!F58","v":"-"},{"$f":"[1]ACS_16_5YR_B19049_with_ann!G58","v":"**"},{"$f":"[1]ACS_16_5YR_B19049_with_ann!H58","v":"-"},{"$f":"[1]ACS_16_5YR_B19049_with_ann!I58","v":"**"},{"$f":"[1]ACS_16_5YR_B19049_with_ann!J58","v":"-"},{"$f":"[1]ACS_16_5YR_B19049_with_ann!K58","v":"**"},{"$f":"[1]ACS_16_5YR_B19049_with_ann!L58","v":"-"},{"$f":"[1]ACS_16_5YR_B19049_with_ann!M58","v":"**"}]
["06000US3300573700","0600000US3300574900","060",{"$f":"[1]ACS_16_5YR_B19049_with_ann!C59","v":"Stoddard"},{"$f":"[1]ACS_16_5YR_B19049_with_ann!D59","v":88750},{"$f":"[1]ACS_16_5YR_B19049_with_ann!E59","v":13242},{"$f":"[1]ACS_16_5YR_B19049_with_ann!F59","v":"-"},{"$f":"[1]ACS_16_5YR_B19049_with_ann!G59","v":"**"},{"$f":"[1]ACS_16_5YR_B19049_with_ann!H59","v":112083},{"$f":"[1]ACS_16_5YR_B19049_with_ann!I59","v":23304},{"$f":"[1]ACS_16_5YR_B19049_with_ann!J59","v":104167},{"$f":"[1]ACS_16_5YR_B19049_with_ann!K59","v":26648},{"$f":"[1]ACS_16_5YR_B19049_with_ann!L59","v":66667},{"$f":"[1]ACS_16_5YR_B19049_with_ann!M59","v":6907}]
["06000US3300574900","0600000US3300575300","060",{"$f":"[1]ACS_16_5YR_B19049_with_ann!C60","v":"Sullivan"},{"$f":"[1]ACS_16_5YR_B19049_with_ann!D60","v":97250},{"$f":"[1]ACS_16_5YR_B19049_with_ann!E60","v":12400},{"$f":"[1]ACS_16_5YR_B19049_with_ann!F60","v":"-"},{"$f":"[1]ACS_16_5YR_B19049_with_ann!G60","v":"**"},{"$f":"[1]ACS_16_5YR_B19049_with_ann!H60","v":101389},{"$f":"[1]ACS_16_5YR_B19049_with_ann!I60","v":30838},{"$f":"[1]ACS_16_5YR_B19049_with_ann!J60","v":101979},{"$f":"[1]ACS_16_5YR_B19049_with_ann!K60","v":11060},{"$f":"[1]ACS_16_5YR_B19049_with_ann!L60","v":59375},{"$f":"[1]ACS_16_5YR_B19049_with_ann!M60","v":18444}]
["06000US3300575300","0600000US3300575700","060",{"$f":"[1]ACS_16_5YR_B19049_with_ann!C61","v":"Surry"},{"$f":"[1]ACS_16_5YR_B19049_with_ann!D61","v":93750},{"$f":"[1]ACS_16_5YR_B19049_with_ann!E61","v":26737},{"$f":"[1]ACS_16_5YR_B19049_with_ann!F61","v":"-"},{"$f":"[1]ACS_16_5YR_B19049_with_ann!G61","v":"**"},{"$f":"[1]ACS_16_5YR_B19049_with_ann!H61","v":134375},{"$f":"[1]ACS_16_5YR_B19049_with_ann!I61","v":58939},{"$f":"[1]ACS_16_5YR_B19049_with_ann!J61","v":103750},{"$f":"[1]ACS_16_5YR_B19049_with_ann!K61","v":40862},{"$f":"[1]ACS_16_5YR_B19049_with_ann!L61","v":65417},{"$f":"[1]ACS_16_5YR_B19049_with_ann!M61","v":26956}]
["06000US3300575700","0600000US3300577380","060",{"$f":"[1]ACS_16_5YR_B19049_with_ann!C62","v":"Swanzey"},{"$f":"[1]ACS_16_5YR_B19049_with_ann!D62","v":71875},{"$f":"[1]ACS_16_5YR_B19049_with_ann!E62","v":14009},{"$f":"[1]ACS_16_5YR_B19049_with_ann!F62","v":"-"},{"$f":"[1]ACS_16_5YR_B19049_with_ann!G62","v":"**"},{"$f":"[1]ACS_16_5YR_B19049_with_ann!H62","v":88309},{"$f":"[1]ACS_16_5YR_B19049_with_ann!I62","v":35889},{"$f":"[1]ACS_16_5YR_B19049_with_ann!J62","v":79063},{"$f":"[1]ACS_16_5YR_B19049_with_ann!K62","v":31755},{"$f":"[1]ACS_16_5YR_B19049_with_ann!L62","v":65273},{"$f":"[1]ACS_16_5YR_B19049_with_ann!M62","v":7942}]
["06000US3300577380","0600000US3300578420","060",{"$f":"[1]ACS_16_5YR_B19049_with_ann!C63","v":"Troy"},{"$f":"[1]ACS_16_5YR_B19049_with_ann!D63","v":57500},{"$f":"[1]ACS_16_5YR_B19049_with_ann!E63","v":10628},{"$f":"[1]ACS_16_5YR_B19049_with_ann!F63","v":"-"},{"$f":"[1]ACS_16_5YR_B19049_with_ann!G63","v":"**"},{"$f":"[1]ACS_16_5YR_B19049_with_ann!H63","v":80729},{"$f":"[1]ACS_16_5YR_B19049_with_ann!I63","v":36738},{"$f":"[1]ACS_16_5YR_B19049_with_ann!J63","v":54583},{"$f":"[1]ACS_16_5YR_B19049_with_ann!K63","v":23563},{"$f":"[1]ACS_16_5YR_B19049_with_ann!L63","v":37266},{"$f":"[1]ACS_16_5YR_B19049_with_ann!M63","v":22637}]
["06000US3300578420","0600000US3300582660","060",{"$f":"[1]ACS_16_5YR_B19049_with_ann!C64","v":"Walpole"},{"$f":"[1]ACS_16_5YR_B19049_with_ann!D64","v":83750},{"$f":"[1]ACS_16_5YR_B19049_with_ann!E64","v":25480},{"$f":"[1]ACS_16_5YR_B19049_with_ann!F64","v":"-"},{"$f":"[1]ACS_16_5YR_B19049_with_ann!G64","v":"**"},{"$f":"[1]ACS_16_5YR_B19049_with_ann!H64","v":108773},{"$f":"[1]ACS_16_5YR_B19049_with_ann!I64","v":11814},{"$f":"[1]ACS_16_5YR_B19049_with_ann!J64","v":74583},{"$f":"[1]ACS_16_5YR_B19049_with_ann!K64","v":54923},{"$f":"[1]ACS_16_5YR_B19049_with_ann!L64","v":62250},{"$f":"[1]ACS_16_5YR_B19049_with_ann!M64","v":22650}]
["06000US3300582660","0600000US3300585540","060",{"$f":"[1]ACS_16_5YR_B19049_with_ann!C65","v":"Westmoreland"},{"$f":"[1]ACS_16_5YR_B19049_with_ann!D65","v":94609},{"$f":"[1]ACS_16_5YR_B19049_with_ann!E65","v":21805},{"$f":"[1]ACS_16_5YR_B19049_with_ann!F65","v":"-"},{"$f":"[1]ACS_16_5YR_B19049_with_ann!G65","v":"**"},{"$f":"[1]ACS_16_5YR_B19049_with_ann!H65","v":94643},{"$f":"[1]ACS_16_5YR_B19049_with_ann!I65","v":81221},{"$f":"[1]ACS_16_5YR_B19049_with_ann!J65","v":115455},{"$f":"[1]ACS_16_5YR_B19049_with_ann!K65","v":11154},{"$f":"[1]ACS_16_5YR_B19049_with_ann!L65","v":49167},{"$f":"[1]ACS_16_5YR_B19049_with_ann!M65","v":31390}]
["06000US3300585540","0600000US3300500820","060",{"$f":"[1]ACS_16_5YR_B19049_with_ann!C66","v":"Winchester"},{"$f":"[1]ACS_16_5YR_B19049_with_ann!D66","v":56645},{"$f":"[1]ACS_16_5YR_B19049_with_ann!E66","v":12560},{"$f":"[1]ACS_16_5YR_B19049_with_ann!F66","v":"-"},{"$f":"[1]ACS_16_5YR_B19049_with_ann!G66","v":"**"},{"$f":"[1]ACS_16_5YR_B19049_with_ann!H66","v":55000},{"$f":"[1]ACS_16_5YR_B19049_with_ann!I66","v":17213},{"$f":"[1]ACS_16_5YR_B19049_with_ann!J66","v":87582},{"$f":"[1]ACS_16_5YR_B19049_with_ann!K66","v":20985},{"$f":"[1]ACS_16_5YR_B19049_with_ann!L66","v":36944},{"$f":"[1]ACS_16_5YR_B19049_with_ann!M66","v":11856}]
[]
[]
[null,null,null,null,null,null,null,null,null,null,null,null,null,null,null,null,null,null,null,null,null,null,null,null,null,null,null,null,null,null,null,null,null,null,null,null,null,null,null,null,null,null,{"$f":"$D$22","v":"Troy"},null,{"$f":"$D$23","v":"Walpole"},null,{"$f":"$D$24","v":"Westmoreland"},null,{"$f":"$D$25","v":"Winchester"}]
[null,null,null,null,{"$f":"$D$3","v":"Alstead"},null,{"$f":"$D$4","v":"Chesterfield"},null,{"$f":"$D$5","v":"Dublin"},null,{"$f":"$D$6","v":"Fitzwilliam"},null,{"$f":"$D$7","v":"Gilsum"},null,{"$f":"$D$8","v":"Harrisville"},null,{"$f":"$D$9","v":"Hinsdale"},null,{"$f":"$D$10","v":"Jaffrey"},null,{"$f":"$D$11","v":"Keene"},null,{"$f":"$D$12","v":"Marlborough"},null,{"$f":"$D$13","v":"Marlow"},null,{"$f":"$D$14","v":"Nelson"},null,{"$f":"$D$15","v":"Richmond"},null,{"$f":"$D$16","v":"Rindge"},null,{"$f":"$D$17","v":"Roxbury"},null,{"$f":"$D$18","v":"Stoddard"},null,{"$f":"$D$19","v":"Sullivan"},null,{"$f":"$D$20","v":"Surry"},null,{"$f":"$D$21","v":"Swanzey"},null,{"$f":"$D$21","v":"Swanzey"},null,{"$f":"$D$21","v":"Swanzey"},null,{"$f":"$D$21","v":"Swanzey"},null,{"$f":"$D$21","v":"Swanzey"}]
[null,null,null,null,"Estimate","Margin of Error","Estimate","Margin of Error","Estimate","Margin of Error","Estimate","Margin of Error","Estimate","Margin of Error","Estimate","Margin of Error","Estimate","Margin of Error","Estimate","Margin of Error","Estimate","Margin of Error","Estimate","Margin of Error","Estimate","Margin of Error","Estimate","Margin of Error","Estimate","Margin of Error","Estimate","Margin of Error","Estimate","Margin of Error","Estimate","Margin of Error","Estimate","Margin of Error","Estimate","Margin of Error","Estimate","Margin of Error"]
[null,null,null,"Estimate!!Median household income in the past 12 months (in 2022 inflation-adjusted dollars) --!!Total:",52957,3261,109500,14674,96463,5718,85733,19127,70000,10396,89737,9021,67054,11035,82167,25777,69381,8852,70800,15162,103333,19217,91786,15185,88125,15891,97794,12003,67440,41668,88750,13242,97250,12400,93750,26737,71875,14009,57500,10628,83750,25480,94609,21805,56645,12560]
[null,null,null,"Estimate!!Median household income in the past 12 months (in 2022 inflation-adjusted dollars) --!!Total:!!Householder under 25 years","-","**","-","**","-","**",86250,4648,"-","**","-","**","-","**","-","**",38571,18874,"-","**","-","**","-","**","-","**","-","**","-","**","-","**","-","**","-","**","-","**","-","**","-","**","-","**","-","**"]
[null,null,null,"Estimate!!Median household income in the past 12 months (in 2022 inflation-adjusted dollars) --!!Total:!!Householder 25 to 44 years",78438,65044,109909,27578,92917,28767,105000,34311,72857,15785,113125,59275,91645,20728,123609,29961,81205,4023,68194,26089,113750,25494,106429,21370,100625,43625,96181,23710,"-","**",112083,23304,101389,30838,134375,58939,88309,35889,80729,36738,108773,11814,94643,81221,55000,17213]
[null,null,null,"Estimate!!Median household income in the past 12 months (in 2022 inflation-adjusted dollars) --!!Total:!!Householder 45 to 64 years",61875,40929,132614,35520,97473,21349,85568,41685,71563,24651,98750,8930,117782,41828,75066,34420,87798,11284,89299,19541,110625,40938,116250,67986,91964,46402,115787,7259,"-","**",104167,26648,101979,11060,103750,40862,79063,31755,54583,23563,74583,54923,115455,11154,87582,20985]
[null,null,null,"Estimate!!Median household income in the past 12 months (in 2022 inflation-adjusted dollars) --!!Total:!!Householder 65 years and over",40455,19852,82917,42846,81071,36511,71154,31180,63333,25115,70313,9954,58491,11159,58125,25106,45355,8743,51667,22078,77143,40800,78409,14957,69375,24749,64559,13600,"-","**",66667,6907,59375,18444,65417,26956,65273,7942,37266,22637,62250,22650,49167,31390,36944,11856]

{"sheet":"SData_Tables_B19101_B19113","index":58,"n_rows":49,"n_cols":50,"rows_kept":49,"cut":false,"hidden":true,"merged":[]}
["GEO_ID","GEO_ID2","SUMLEVEL",{"$f":"[1]ACS_16_5YR_B19101_with_ann!C1","v":"NAME"},{"$f":"[1]ACS_16_5YR_B19101_with_ann!D1","v":"B19101_001E"},{"$f":"[1]ACS_16_5YR_B19101_with_ann!E1","v":"B19101_001M"},{"$f":"[1]ACS_16_5YR_B19101_with_ann!F1","v":"B19101_002E"},{"$f":"[1]ACS_16_5YR_B19101_with_ann!G1","v":"B19101_002M"},{"$f":"[1]ACS_16_5YR_B19101_with_ann!H1","v":"B19101_003E"},{"$f":"[1]ACS_16_5YR_B19101_with_ann!I1","v":"B19101_003M"},{"$f":"[1]ACS_16_5YR_B19101_with_ann!J1","v":"B19101_004E"},{"$f":"[1]ACS_16_5YR_B19101_with_ann!K1","v":"B19101_004M"},{"$f":"[1]ACS_16_5YR_B19101_with_ann!L1","v":"B19101_005E"},{"$f":"[1]ACS_16_5YR_B19101_with_ann!M1","v":"B19101_005M"},{"$f":"[1]ACS_16_5YR_B19101_with_ann!N1","v":"B19101_006E"},{"$f":"[1]ACS_16_5YR_B19101_with_ann!O1","v":"B19101_006M"},{"$f":"[1]ACS_16_5YR_B19101_with_ann!P1","v":"B19101_007E"},{"$f":"[1]ACS_16_5YR_B19101_with_ann!Q1","v":"B19101_007M"},{"$f":"[1]ACS_16_5YR_B19101_with_ann!R1","v":"B19101_008E"},{"$f":"[1]ACS_16_5YR_B19101_with_ann!S1","v":"B19101_008M"},{"$f":"[1]ACS_16_5YR_B19101_with_ann!T1","v":"B19101_009E"},{"$f":"[1]ACS_16_5YR_B19101_with_ann!U1","v":"B19101_009M"},{"$f":"[1]ACS_16_5YR_B19101_with_ann!V1","v":"B19101_010E"},{"$f":"[1]ACS_16_5YR_B19101_with_ann!W1","v":"B19101_010M"},{"$f":"[1]ACS_16_5YR_B19101_with_ann!X1","v":"B19101_011E"},{"$f":"[1]ACS_16_5YR_B19101_with_ann!Y1","v":"B19101_011M"},{"$f":"[1]ACS_16_5YR_B19101_with_ann!Z1","v":"B19101_012E"},{"$f":"[1]ACS_16_5YR_B19101_with_ann!AA1","v":"B19101_012M"},{"$f":"[1]ACS_16_5YR_B19101_with_ann!AB1","v":"B19101_013E"},{"$f":"[1]ACS_16_5YR_B19101_with_ann!AC1","v":"B19101_013M"},{"$f":"[1]ACS_16_5YR_B19101_with_ann!AD1","v":"B19101_014E"},{"$f":"[1]ACS_16_5YR_B19101_with_ann!AE1","v":"B19101_014M"},{"$f":"[1]ACS_16_5YR_B19101_with_ann!AF1","v":"B19101_015E"},{"$f":"[1]ACS_16_5YR_B19101_with_ann!AG1","v":"B19101_015M"},{"$f":"[1]ACS_16_5YR_B19101_with_ann!AH1","v":"B19101_016E"},{"$f":"[1]ACS_16_5YR_B19101_with_ann!AI1","v":"B19101_016M"},{"$f":"[1]ACS_16_5YR_B19101_with_ann!AJ1","v":"B19101_017E"},{"$f":"[1]ACS_16_5YR_B19101_with_ann!AK1","v":"B19101_017M"},{"$f":"[1]ACS_16_5YR_B19113_with_ann!D1","v":"B19113_001E"},{"$f":"[1]ACS_16_5YR_B19113_with_ann!E1","v":"B19113_001M"}]
["Geography Identifier","Geography Identifier","Geographic Summary Level",{"$f":"[1]ACS_16_5YR_B19101_with_ann!C2","v":"Geographic Area Name"},{"$f":"[1]ACS_16_5YR_B19101_with_ann!D2","v":"Estimate!!Total:"},{"$f":"[1]ACS_16_5YR_B19101_with_ann!E2","v":"Margin of Error!!Total:"},{"$f":"[1]ACS_16_5YR_B19101_with_ann!F2","v":"Estimate!!Total:!!Less than $10,000"},{"$f":"[1]ACS_16_5YR_B19101_with_ann!G2","v":"Margin of Error!!Total:!!Less than $10,000"},{"$f":"[1]ACS_16_5YR_B19101_with_ann!H2","v":"Estimate!!Total:!!$10,000 to $14,999"},{"$f":"[1]ACS_16_5YR_B19101_with_ann!I2","v":"Margin of Error!!Total:!!$10,000 to $14,999"},{"$f":"[1]ACS_16_5YR_B19101_with_ann!J2","v":"Estimate!!Total:!!$15,000 to $19,999"},{"$f":"[1]ACS_16_5YR_B19101_with_ann!K2","v":"Margin of Error!!Total:!!$15,000 to $19,999"},{"$f":"[1]ACS_16_5YR_B19101_with_ann!L2","v":"Estimate!!Total:!!$20,000 to $24,999"},{"$f":"[1]ACS_16_5YR_B19101_with_ann!M2","v":"Margin of Error!!Total:!!$20,000 to $24,999"},{"$f":"[1]ACS_16_5YR_B19101_with_ann!N2","v":"Estimate!!Total:!!$25,000 to $29,999"},{"$f":"[1]ACS_16_5YR_B19101_with_ann!O2","v":"Margin of Error!!Total:!!$25,000 to $29,999"},{"$f":"[1]ACS_16_5YR_B19101_with_ann!P2","v":"Estimate!!Total:!!$30,000 to $34,999"},{"$f":"[1]ACS_16_5YR_B19101_with_ann!Q2","v":"Margin of Error!!Total:!!$30,000 to $34,999"},{"$f":"[1]ACS_16_5YR_B19101_with_ann!R2","v":"Estimate!!Total:!!$35,000 to $39,999"},{"$f":"[1]ACS_16_5YR_B19101_with_ann!S2","v":"Margin of Error!!Total:!!$35,000 to $39,999"},{"$f":"[1]ACS_16_5YR_B19101_with_ann!T2","v":"Estimate!!Total:!!$40,000 to $44,999"},{"$f":"[1]ACS_16_5YR_B19101_with_ann!U2","v":"Margin of Error!!Total:!!$40,000 to $44,999"},{"$f":"[1]ACS_16_5YR_B19101_with_ann!V2","v":"Estimate!!Total:!!$45,000 to $49,999"},{"$f":"[1]ACS_16_5YR_B19101_with_ann!W2","v":"Margin of Error!!Total:!!$45,000 to $49,999"},{"$f":"[1]ACS_16_5YR_B19101_with_ann!X2","v":"Estimate!!Total:!!$50,000 to $59,999"},{"$f":"[1]ACS_16_5YR_B19101_with_ann!Y2","v":"Margin of Error!!Total:!!$50,000 to $59,999"},{"$f":"[1]ACS_16_5YR_B19101_with_ann!Z2","v":"Estimate!!Total:!!$60,000 to $74,999"},{"$f":"[1]ACS_16_5YR_B19101_with_ann!AA2","v":"Margin of Error!!Total:!!$60,000 to $74,999"},{"$f":"[1]ACS_16_5YR_B19101_with_ann!AB2","v":"Estimate!!Total:!!$75,000 to $99,999"},{"$f":"[1]ACS_16_5YR_B19101_with_ann!AC2","v":"Margin of Error!!Total:!!$75,000 to $99,999"},{"$f":"[1]ACS_16_5YR_B19101_with_ann!AD2","v":"Estimate!!Total:!!$100,000 to $124,999"},{"$f":"[1]ACS_16_5YR_B19101_with_ann!AE2","v":"Margin of Error!!Total:!!$100,000 to $124,999"},{"$f":"[1]ACS_16_5YR_B19101_with_ann!AF2","v":"Estimate!!Total:!!$125,000 to $149,999"},{"$f":"[1]ACS_16_5YR_B19101_with_ann!AG2","v":"Margin of Error!!Total:!!$125,000 to $149,999"},{"$f":"[1]ACS_16_5YR_B19101_with_ann!AH2","v":"Estimate!!Total:!!$150,000 to $199,999"},{"$f":"[1]ACS_16_5YR_B19101_with_ann!AI2","v":"Margin of Error!!Total:!!$150,000 to $199,999"},{"$f":"[1]ACS_16_5YR_B19101_with_ann!AJ2","v":"Estimate!!Total:!!$200,000 or more"},{"$f":"[1]ACS_16_5YR_B19101_with_ann!AK2","v":"Margin of Error!!Total:!!$200,000 or more"},{"$f":"[1]ACS_16_5YR_B19113_with_ann!D2","v":"Estimate!!Median family income in the past 12 months (in 2022 inflation-adjusted dollars)"},{"$f":"[1]ACS_16_5YR_B19113_with_ann!E2","v":"Margin of Error!!Median family income in the past 12 months (in 2022 inflation-adjusted dollars)"}]
["06000US3300500820","0600000US3300512260","060",{"$f":"[1]ACS_16_5YR_B19101_with_ann!C44","v":"Alstead"},{"$f":"[1]ACS_16_5YR_B19101_with_ann!D44","v":454},{"$f":"[1]ACS_16_5YR_B19101_with_ann!E44","v":72},{"$f":"[1]ACS_16_5YR_B19101_with_ann!F44","v":0},{"$f":"[1]ACS_16_5YR_B19101_with_ann!G44","v":12},{"$f":"[1]ACS_16_5YR_B19101_with_ann!H44","v":0},{"$f":"[1]ACS_16_5YR_B19101_with_ann!I44","v":12},{"$f":"[1]ACS_16_5YR_B19101_with_ann!J44","v":10},{"$f":"[1]ACS_16_5YR_B19101_with_ann!K44","v":10},{"$f":"[1]ACS_16_5YR_B19101_with_ann!L44","v":52},{"$f":"[1]ACS_16_5YR_B19101_with_ann!M44","v":55},{"$f":"[1]ACS_16_5YR_B19101_with_ann!N44","v":11},{"$f":"[1]ACS_16_5YR_B19101_with_ann!O44","v":11},{"$f":"[1]ACS_16_5YR_B19101_with_ann!P44","v":13},{"$f":"[1]ACS_16_5YR_B19101_with_ann!Q44","v":10},{"$f":"[1]ACS_16_5YR_B19101_with_ann!R44","v":17},{"$f":"[1]ACS_16_5YR_B19101_with_ann!S44","v":13},{"$f":"[1]ACS_16_5YR_B19101_with_ann!T44","v":11},{"$f":"[1]ACS_16_5YR_B19101_with_ann!U44","v":12},{"$f":"[1]ACS_16_5YR_B19101_with_ann!V44","v":27},{"$f":"[1]ACS_16_5YR_B19101_with_ann!W44","v":24},{"$f":"[1]ACS_16_5YR_B19101_with_ann!X44","v":73},{"$f":"[1]ACS_16_5YR_B19101_with_ann!Y44","v":47},{"$f":"[1]ACS_16_5YR_B19101_with_ann!Z44","v":18},{"$f":"[1]ACS_16_5YR_B19101_with_ann!AA44","v":13},{"$f":"[1]ACS_16_5YR_B19101_with_ann!AB44","v":65},{"$f":"[1]ACS_16_5YR_B19101_with_ann!AC44","v":28},{"$f":"[1]ACS_16_5YR_B19101_with_ann!AD44","v":50},{"$f":"[1]ACS_16_5YR_B19101_with_ann!AE44","v":22},{"$f":"[1]ACS_16_5YR_B19101_with_ann!AF44","v":30},{"$f":"[1]ACS_16_5YR_B19101_with_ann!AG44","v":16},{"$f":"[1]ACS_16_5YR_B19101_with_ann!AH44","v":57},{"$f":"[1]ACS_16_5YR_B19101_with_ann!AI44","v":28},{"$f":"[1]ACS_16_5YR_B19101_with_ann!AJ44","v":20},{"$f":"[1]ACS_16_5YR_B19101_with_ann!AK44","v":13},{"$f":"[1]ACS_16_5YR_B19113_with_ann!D44","v":72000},{"$f":"[1]ACS_16_5YR_B19113_with_ann!E44","v":27987},null,{"$f":"D3","v":"Alstead"}]
["06000US3300512260","0600000US3300519140","060",{"$f":"[1]ACS_16_5YR_B19101_with_ann!C45","v":"Chesterfield"},{"$f":"[1]ACS_16_5YR_B19101_with_ann!D45","v":1003},{"$f":"[1]ACS_16_5YR_B19101_with_ann!E45","v":131},{"$f":"[1]ACS_16_5YR_B19101_with_ann!F45","v":0},{"$f":"[1]ACS_16_5YR_B19101_with_ann!G45","v":12},{"$f":"[1]ACS_16_5YR_B19101_with_ann!H45","v":0},{"$f":"[1]ACS_16_5YR_B19101_with_ann!I45","v":12},{"$f":"[1]ACS_16_5YR_B19101_with_ann!J45","v":0},{"$f":"[1]ACS_16_5YR_B19101_with_ann!K45","v":12},{"$f":"[1]ACS_16_5YR_B19101_with_ann!L45","v":14},{"$f":"[1]ACS_16_5YR_B19101_with_ann!M45","v":22},{"$f":"[1]ACS_16_5YR_B19101_with_ann!N45","v":33},{"$f":"[1]ACS_16_5YR_B19101_with_ann!O45","v":45},{"$f":"[1]ACS_16_5YR_B19101_with_ann!P45","v":37},{"$f":"[1]ACS_16_5YR_B19101_with_ann!Q45","v":56},{"$f":"[1]ACS_16_5YR_B19101_with_ann!R45","v":10},{"$f":"[1]ACS_16_5YR_B19101_with_ann!S45","v":19},{"$f":"[1]ACS_16_5YR_B19101_with_ann!T45","v":0},{"$f":"[1]ACS_16_5YR_B19101_with_ann!U45","v":12},{"$f":"[1]ACS_16_5YR_B19101_with_ann!V45","v":25},{"$f":"[1]ACS_16_5YR_B19101_with_ann!W45","v":31},{"$f":"[1]ACS_16_5YR_B19101_with_ann!X45","v":15},{"$f":"[1]ACS_16_5YR_B19101_with_ann!Y45","v":24},{"$f":"[1]ACS_16_5YR_B19101_with_ann!Z45","v":32},{"$f":"[1]ACS_16_5YR_B19101_with_ann!AA45","v":37},{"$f":"[1]ACS_16_5YR_B19101_with_ann!AB45","v":96},{"$f":"[1]ACS_16_5YR_B19101_with_ann!AC45","v":76},{"$f":"[1]ACS_16_5YR_B19101_with_ann!AD45","v":235},{"$f":"[1]ACS_16_5YR_B19101_with_ann!AE45","v":134},{"$f":"[1]ACS_16_5YR_B19101_with_ann!AF45","v":162},{"$f":"[1]ACS_16_5YR_B19101_with_ann!AG45","v":100},{"$f":"[1]ACS_16_5YR_B19101_with_ann!AH45","v":233},{"$f":"[1]ACS_16_5YR_B19101_with_ann!AI45","v":133},{"$f":"[1]ACS_16_5YR_B19101_with_ann!AJ45","v":111},{"$f":"[1]ACS_16_5YR_B19101_with_ann!AK45","v":71},{"$f":"[1]ACS_16_5YR_B19113_with_ann!D45","v":125865},{"$f":"[1]ACS_16_5YR_B19113_with_ann!E45","v":26733},null,"Chesterfield"]
["06000US3300519140","0600000US3300526500","060",{"$f":"[1]ACS_16_5YR_B19101_with_ann!C46","v":"Dublin"},{"$f":"[1]ACS_16_5YR_B19101_with_ann!D46","v":527},{"$f":"[1]ACS_16_5YR_B19101_with_ann!E46","v":93},{"$f":"[1]ACS_16_5YR_B19101_with_ann!F46","v":12},{"$f":"[1]ACS_16_5YR_B19101_with_ann!G46","v":13},{"$f":"[1]ACS_16_5YR_B19101_with_ann!H46","v":38},{"$f":"[1]ACS_16_5YR_B19101_with_ann!I46","v":53},{"$f":"[1]ACS_16_5YR_B19101_with_ann!J46","v":0},{"$f":"[1]ACS_16_5YR_B19101_with_ann!K46","v":12},{"$f":"[1]ACS_16_5YR_B19101_with_ann!L46","v":4},{"$f":"[1]ACS_16_5YR_B19101_with_ann!M46","v":5},{"$f":"[1]ACS_16_5YR_B19101_with_ann!N46","v":14},{"$f":"[1]ACS_16_5YR_B19101_with_ann!O46","v":12},{"$f":"[1]ACS_16_5YR_B19101_with_ann!P46","v":2},{"$f":"[1]ACS_16_5YR_B19101_with_ann!Q46","v":3},{"$f":"[1]ACS_16_5YR_B19101_with_ann!R46","v":20},{"$f":"[1]ACS_16_5YR_B19101_with_ann!S46","v":20},{"$f":"[1]ACS_16_5YR_B19101_with_ann!T46","v":3},{"$f":"[1]ACS_16_5YR_B19101_with_ann!U46","v":4},{"$f":"[1]ACS_16_5YR_B19101_with_ann!V46","v":7},{"$f":"[1]ACS_16_5YR_B19101_with_ann!W46","v":11},{"$f":"[1]ACS_16_5YR_B19101_with_ann!X46","v":54},{"$f":"[1]ACS_16_5YR_B19101_with_ann!Y46","v":27},{"$f":"[1]ACS_16_5YR_B19101_with_ann!Z46","v":28},{"$f":"[1]ACS_16_5YR_B19101_with_ann!AA46","v":26},{"$f":"[1]ACS_16_5YR_B19101_with_ann!AB46","v":101},{"$f":"[1]ACS_16_5YR_B19101_with_ann!AC46","v":67},{"$f":"[1]ACS_16_5YR_B19101_with_ann!AD46","v":56},{"$f":"[1]ACS_16_5YR_B19101_with_ann!AE46","v":27},{"$f":"[1]ACS_16_5YR_B19101_with_ann!AF46","v":37},{"$f":"[1]ACS_16_5YR_B19101_with_ann!AG46","v":20},{"$f":"[1]ACS_16_5YR_B19101_with_ann!AH46","v":62},{"$f":"[1]ACS_16_5YR_B19101_with_ann!AI46","v":30},{"$f":"[1]ACS_16_5YR_B19101_with_ann!AJ46","v":89},{"$f":"[1]ACS_16_5YR_B19101_with_ann!AK46","v":36},{"$f":"[1]ACS_16_5YR_B19113_with_ann!D46","v":96763},{"$f":"[1]ACS_16_5YR_B19113_with_ann!E46","v":6705},null,"Dublin"]
["06000US3300526500","0600000US3300529220","060",{"$f":"[1]ACS_16_5YR_B19101_with_ann!C47","v":"Fitzwilliam"},{"$f":"[1]ACS_16_5YR_B19101_with_ann!D47","v":619},{"$f":"[1]ACS_16_5YR_B19101_with_ann!E47","v":124},{"$f":"[1]ACS_16_5YR_B19101_with_ann!F47","v":21},{"$f":"[1]ACS_16_5YR_B19101_with_ann!G47","v":20},{"$f":"[1]ACS_16_5YR_B19101_with_ann!H47","v":6},{"$f":"[1]ACS_16_5YR_B19101_with_ann!I47","v":8},{"$f":"[1]ACS_16_5YR_B19101_with_ann!J47","v":0},{"$f":"[1]ACS_16_5YR_B19101_with_ann!K47","v":12},{"$f":"[1]ACS_16_5YR_B19101_with_ann!L47","v":7},{"$f":"[1]ACS_16_5YR_B19101_with_ann!M47","v":12},{"$f":"[1]ACS_16_5YR_B19101_with_ann!N47","v":13},{"$f":"[1]ACS_16_5YR_B19101_with_ann!O47","v":11},{"$f":"[1]ACS_16_5YR_B19101_with_ann!P47","v":12},{"$f":"[1]ACS_16_5YR_B19101_with_ann!Q47","v":20},{"$f":"[1]ACS_16_5YR_B19101_with_ann!R47","v":26},{"$f":"[1]ACS_16_5YR_B19101_with_ann!S47","v":27},{"$f":"[1]ACS_16_5YR_B19101_with_ann!T47","v":23},{"$f":"[1]ACS_16_5YR_B19101_with_ann!U47","v":17},{"$f":"[1]ACS_16_5YR_B19101_with_ann!V47","v":12},{"$f":"[1]ACS_16_5YR_B19101_with_ann!W47","v":11},{"$f":"[1]ACS_16_5YR_B19101_with_ann!X47","v":40},{"$f":"[1]ACS_16_5YR_B19101_with_ann!Y47","v":37},{"$f":"[1]ACS_16_5YR_B19101_with_ann!Z47","v":43},{"$f":"[1]ACS_16_5YR_B19101_with_ann!AA47","v":24},{"$f":"[1]ACS_16_5YR_B19101_with_ann!AB47","v":152},{"$f":"[1]ACS_16_5YR_B19101_with_ann!AC47","v":103},{"$f":"[1]ACS_16_5YR_B19101_with_ann!AD47","v":77},{"$f":"[1]ACS_16_5YR_B19101_with_ann!AE47","v":36},{"$f":"[1]ACS_16_5YR_B19101_with_ann!AF47","v":66},{"$f":"[1]ACS_16_5YR_B19101_with_ann!AG47","v":32},{"$f":"[1]ACS_16_5YR_B19101_with_ann!AH47","v":51},{"$f":"[1]ACS_16_5YR_B19101_with_ann!AI47","v":37},{"$f":"[1]ACS_16_5YR_B19101_with_ann!AJ47","v":70},{"$f":"[1]ACS_16_5YR_B19101_with_ann!AK47","v":35},{"$f":"[1]ACS_16_5YR_B19113_with_ann!D47","v":93896},{"$f":"[1]ACS_16_5YR_B19113_with_ann!E47","v":7757},null,"Fitzwilliam"]
["06000US3300529220","0600000US3300534420","060",{"$f":"[1]ACS_16_5YR_B19101_with_ann!C48","v":"Gilsum"},{"$f":"[1]ACS_16_5YR_B19101_with_ann!D48","v":230},{"$f":"[1]ACS_16_5YR_B19101_with_ann!E48","v":43},{"$f":"[1]ACS_16_5YR_B19101_with_ann!F48","v":1},{"$f":"[1]ACS_16_5YR_B19101_with_ann!G48","v":3},{"$f":"[1]ACS_16_5YR_B19101_with_ann!H48","v":0},{"$f":"[1]ACS_16_5YR_B19101_with_ann!I48","v":12},{"$f":"[1]ACS_16_5YR_B19101_with_ann!J48","v":2},{"$f":"[1]ACS_16_5YR_B19101_with_ann!K48","v":3},{"$f":"[1]ACS_16_5YR_B19101_with_ann!L48","v":5},{"$f":"[1]ACS_16_5YR_B19101_with_ann!M48","v":5},{"$f":"[1]ACS_16_5YR_B19101_with_ann!N48","v":2},{"$f":"[1]ACS_16_5YR_B19101_with_ann!O48","v":3},{"$f":"[1]ACS_16_5YR_B19101_with_ann!P48","v":2},{"$f":"[1]ACS_16_5YR_B19101_with_ann!Q48","v":3},{"$f":"[1]ACS_16_5YR_B19101_with_ann!R48","v":4},{"$f":"[1]ACS_16_5YR_B19101_with_ann!S48","v":5},{"$f":"[1]ACS_16_5YR_B19101_with_ann!T48","v":18},{"$f":"[1]ACS_16_5YR_B19101_with_ann!U48","v":26},{"$f":"[1]ACS_16_5YR_B19101_with_ann!V48","v":21},{"$f":"[1]ACS_16_5YR_B19101_with_ann!W48","v":14},{"$f":"[1]ACS_16_5YR_B19101_with_ann!X48","v":16},{"$f":"[1]ACS_16_5YR_B19101_with_ann!Y48","v":10},{"$f":"[1]ACS_16_5YR_B19101_with_ann!Z48","v":34},{"$f":"[1]ACS_16_5YR_B19101_with_ann!AA48","v":19},{"$f":"[1]ACS_16_5YR_B19101_with_ann!AB48","v":32},{"$f":"[1]ACS_16_5YR_B19101_with_ann!AC48","v":15},{"$f":"[1]ACS_16_5YR_B19101_with_ann!AD48","v":22},{"$f":"[1]ACS_16_5YR_B19101_with_ann!AE48","v":13},{"$f":"[1]ACS_16_5YR_B19101_with_ann!AF48","v":14},{"$f":"[1]ACS_16_5YR_B19101_with_ann!AG48","v":12},{"$f":"[1]ACS_16_5YR_B19101_with_ann!AH48","v":46},{"$f":"[1]ACS_16_5YR_B19101_with_ann!AI48","v":22},{"$f":"[1]ACS_16_5YR_B19101_with_ann!AJ48","v":11},{"$f":"[1]ACS_16_5YR_B19101_with_ann!AK48","v":7},{"$f":"[1]ACS_16_5YR_B19113_with_ann!D48","v":85208},{"$f":"[1]ACS_16_5YR_B19113_with_ann!E48","v":23428},null,"Gilsum"]
["06000US3300534420","0600000US3300536660","060",{"$f":"[1]ACS_16_5YR_B19101_with_ann!C49","v":"Harrisville"},{"$f":"[1]ACS_16_5YR_B19101_with_ann!D49","v":313},{"$f":"[1]ACS_16_5YR_B19101_with_ann!E49","v":70},{"$f":"[1]ACS_16_5YR_B19101_with_ann!F49","v":0},{"$f":"[1]ACS_16_5YR_B19101_with_ann!G49","v":12},{"$f":"[1]ACS_16_5YR_B19101_with_ann!H49","v":0},{"$f":"[1]ACS_16_5YR_B19101_with_ann!I49","v":12},{"$f":"[1]ACS_16_5YR_B19101_with_ann!J49","v":0},{"$f":"[1]ACS_16_5YR_B19101_with_ann!K49","v":12},{"$f":"[1]ACS_16_5YR_B19101_with_ann!L49","v":0},{"$f":"[1]ACS_16_5YR_B19101_with_ann!M49","v":12},{"$f":"[1]ACS_16_5YR_B19101_with_ann!N49","v":5},{"$f":"[1]ACS_16_5YR_B19101_with_ann!O49","v":6},{"$f":"[1]ACS_16_5YR_B19101_with_ann!P49","v":6},{"$f":"[1]ACS_16_5YR_B19101_with_ann!Q49","v":6},{"$f":"[1]ACS_16_5YR_B19101_with_ann!R49","v":4},{"$f":"[1]ACS_16_5YR_B19101_with_ann!S49","v":6},{"$f":"[1]ACS_16_5YR_B19101_with_ann!T49","v":10},{"$f":"[1]ACS_16_5YR_B19101_with_ann!U49","v":9},{"$f":"[1]ACS_16_5YR_B19101_with_ann!V49","v":20},{"$f":"[1]ACS_16_5YR_B19101_with_ann!W49","v":17},{"$f":"[1]ACS_16_5YR_B19101_with_ann!X49","v":24},{"$f":"[1]ACS_16_5YR_B19101_with_ann!Y49","v":23},{"$f":"[1]ACS_16_5YR_B19101_with_ann!Z49","v":28},{"$f":"[1]ACS_16_5YR_B19101_with_ann!AA49","v":23},{"$f":"[1]ACS_16_5YR_B19101_with_ann!AB49","v":74},{"$f":"[1]ACS_16_5YR_B19101_with_ann!AC49","v":32},{"$f":"[1]ACS_16_5YR_B19101_with_ann!AD49","v":31},{"$f":"[1]ACS_16_5YR_B19101_with_ann!AE49","v":17},{"$f":"[1]ACS_16_5YR_B19101_with_ann!AF49","v":13},{"$f":"[1]ACS_16_5YR_B19101_with_ann!AG49","v":9},{"$f":"[1]ACS_16_5YR_B19101_with_ann!AH49","v":39},{"$f":"[1]ACS_16_5YR_B19101_with_ann!AI49","v":19},{"$f":"[1]ACS_16_5YR_B19101_with_ann!AJ49","v":59},{"$f":"[1]ACS_16_5YR_B19101_with_ann!AK49","v":37},{"$f":"[1]ACS_16_5YR_B19113_with_ann!D49","v":94957},{"$f":"[1]ACS_16_5YR_B19113_with_ann!E49","v":9075},null,"Harrisville"]
["06000US3300536660","0600000US3300538500","060",{"$f":"[1]ACS_16_5YR_B19101_with_ann!C50","v":"Hinsdale"},{"$f":"[1]ACS_16_5YR_B19101_with_ann!D50","v":1049},{"$f":"[1]ACS_16_5YR_B19101_with_ann!E50","v":141},{"$f":"[1]ACS_16_5YR_B19101_with_ann!F50","v":0},{"$f":"[1]ACS_16_5YR_B19101_with_ann!G50","v":12},{"$f":"[1]ACS_16_5YR_B19101_with_ann!H50","v":0},{"$f":"[1]ACS_16_5YR_B19101_with_ann!I50","v":12},{"$f":"[1]ACS_16_5YR_B19101_with_ann!J50","v":0},{"$f":"[1]ACS_16_5YR_B19101_with_ann!K50","v":12},{"$f":"[1]ACS_16_5YR_B19101_with_ann!L50","v":20},{"$f":"[1]ACS_16_5YR_B19101_with_ann!M50","v":29},{"$f":"[1]ACS_16_5YR_B19101_with_ann!N50","v":0},{"$f":"[1]ACS_16_5YR_B19101_with_ann!O50","v":12},{"$f":"[1]ACS_16_5YR_B19101_with_ann!P50","v":42},{"$f":"[1]ACS_16_5YR_B19101_with_ann!Q50","v":30},{"$f":"[1]ACS_16_5YR_B19101_with_ann!R50","v":28},{"$f":"[1]ACS_16_5YR_B19101_with_ann!S50","v":34},{"$f":"[1]ACS_16_5YR_B19101_with_ann!T50","v":27},{"$f":"[1]ACS_16_5YR_B19101_with_ann!U50","v":29},{"$f":"[1]ACS_16_5YR_B19101_with_ann!V50","v":48},{"$f":"[1]ACS_16_5YR_B19101_with_ann!W50","v":53},{"$f":"[1]ACS_16_5YR_B19101_with_ann!X50","v":120},{"$f":"[1]ACS_16_5YR_B19101_with_ann!Y50","v":115},{"$f":"[1]ACS_16_5YR_B19101_with_ann!Z50","v":210},{"$f":"[1]ACS_16_5YR_B19101_with_ann!AA50","v":163},{"$f":"[1]ACS_16_5YR_B19101_with_ann!AB50","v":130},{"$f":"[1]ACS_16_5YR_B19101_with_ann!AC50","v":61},{"$f":"[1]ACS_16_5YR_B19101_with_ann!AD50","v":107},{"$f":"[1]ACS_16_5YR_B19101_with_ann!AE50","v":63},{"$f":"[1]ACS_16_5YR_B19101_with_ann!AF50","v":110},{"$f":"[1]ACS_16_5YR_B19101_with_ann!AG50","v":62},{"$f":"[1]ACS_16_5YR_B19101_with_ann!AH50","v":133},{"$f":"[1]ACS_16_5YR_B19101_with_ann!AI50","v":89},{"$f":"[1]ACS_16_5YR_B19101_with_ann!AJ50","v":74},{"$f":"[1]ACS_16_5YR_B19101_with_ann!AK50","v":70},{"$f":"[1]ACS_16_5YR_B19113_with_ann!D50","v":76715},{"$f":"[1]ACS_16_5YR_B19113_with_ann!E50","v":20454},null,"Hinsdale"]
["06000US3300538500","0600000US3300539300","060",{"$f":"[1]ACS_16_5YR_B19101_with_ann!C51","v":"Jaffrey"},{"$f":"[1]ACS_16_5YR_B19101_with_ann!D51","v":1374},{"$f":"[1]ACS_16_5YR_B19101_with_ann!E51","v":156},{"$f":"[1]ACS_16_5YR_B19101_with_ann!F51","v":0},{"$f":"[1]ACS_16_5YR_B19101_with_ann!G51","v":17},{"$f":"[1]ACS_16_5YR_B19101_with_ann!H51","v":0},{"$f":"[1]ACS_16_5YR_B19101_with_ann!I51","v":17},{"$f":"[1]ACS_16_5YR_B19101_with_ann!J51","v":23},{"$f":"[1]ACS_16_5YR_B19101_with_ann!K51","v":39},{"$f":"[1]ACS_16_5YR_B19101_with_ann!L51","v":26},{"$f":"[1]ACS_16_5YR_B19101_with_ann!M51","v":31},{"$f":"[1]ACS_16_5YR_B19101_with_ann!N51","v":15},{"$f":"[1]ACS_16_5YR_B19101_with_ann!O51","v":23},{"$f":"[1]ACS_16_5YR_B19101_with_ann!P51","v":9},{"$f":"[1]ACS_16_5YR_B19101_with_ann!Q51","v":17},{"$f":"[1]ACS_16_5YR_B19101_with_ann!R51","v":10},{"$f":"[1]ACS_16_5YR_B19101_with_ann!S51","v":19},{"$f":"[1]ACS_16_5YR_B19101_with_ann!T51","v":11},{"$f":"[1]ACS_16_5YR_B19101_with_ann!U51","v":20},{"$f":"[1]ACS_16_5YR_B19101_with_ann!V51","v":0},{"$f":"[1]ACS_16_5YR_B19101_with_ann!W51","v":17},{"$f":"[1]ACS_16_5YR_B19101_with_ann!X51","v":43},{"$f":"[1]ACS_16_5YR_B19101_with_ann!Y51","v":41},{"$f":"[1]ACS_16_5YR_B19101_with_ann!Z51","v":285},{"$f":"[1]ACS_16_5YR_B19101_with_ann!AA51","v":155},{"$f":"[1]ACS_16_5YR_B19101_with_ann!AB51","v":159},{"$f":"[1]ACS_16_5YR_B19101_with_ann!AC51","v":103},{"$f":"[1]ACS_16_5YR_B19101_with_ann!AD51","v":338},{"$f":"[1]ACS_16_5YR_B19101_with_ann!AE51","v":172},{"$f":"[1]ACS_16_5YR_B19101_with_ann!AF51","v":165},{"$f":"[1]ACS_16_5YR_B19101_with_ann!AG51","v":123},{"$f":"[1]ACS_16_5YR_B19101_with_ann!AH51","v":80},{"$f":"[1]ACS_16_5YR_B19101_with_ann!AI51","v":56},{"$f":"[1]ACS_16_5YR_B19101_with_ann!AJ51","v":210},{"$f":"[1]ACS_16_5YR_B19101_with_ann!AK51","v":130},{"$f":"[1]ACS_16_5YR_B19113_with_ann!D51","v":113229},{"$f":"[1]ACS_16_5YR_B19113_with_ann!E51","v":22726},null,"Jaffrey"]
["06000US3300539300","0600000US3300545460","060",{"$f":"[1]ACS_16_5YR_B19101_with_ann!C52","v":"Keene"},{"$f":"[1]ACS_16_5YR_B19101_with_ann!D52","v":4541},{"$f":"[1]ACS_16_5YR_B19101_with_ann!E52","v":311},{"$f":"[1]ACS_16_5YR_B19101_with_ann!F52","v":70},{"$f":"[1]ACS_16_5YR_B19101_with_ann!G52","v":55},{"$f":"[1]ACS_16_5YR_B19101_with_ann!H52","v":40},{"$f":"[1]ACS_16_5YR_B19101_with_ann!I52","v":31},{"$f":"[1]ACS_16_5YR_B19101_with_ann!J52","v":45},{"$f":"[1]ACS_16_5YR_B19101_with_ann!K52","v":42},{"$f":"[1]ACS_16_5YR_B19101_with_ann!L52","v":87},{"$f":"[1]ACS_16_5YR_B19101_with_ann!M52","v":72},{"$f":"[1]ACS_16_5YR_B19101_with_ann!N52","v":38},{"$f":"[1]ACS_16_5YR_B19101_with_ann!O52","v":39},{"$f":"[1]ACS_16_5YR_B19101_with_ann!P52","v":171},{"$f":"[1]ACS_16_5YR_B19101_with_ann!Q52","v":84},{"$f":"[1]ACS_16_5YR_B19101_with_ann!R52","v":103},{"$f":"[1]ACS_16_5YR_B19101_with_ann!S52","v":60},{"$f":"[1]ACS_16_5YR_B19101_with_ann!T52","v":188},{"$f":"[1]ACS_16_5YR_B19101_with_ann!U52","v":131},{"$f":"[1]ACS_16_5YR_B19101_with_ann!V52","v":138},{"$f":"[1]ACS_16_5YR_B19101_with_ann!W52","v":82},{"$f":"[1]ACS_16_5YR_B19101_with_ann!X52","v":334},{"$f":"[1]ACS_16_5YR_B19101_with_ann!Y52","v":120},{"$f":"[1]ACS_16_5YR_B19101_with_ann!Z52","v":461},{"$f":"[1]ACS_16_5YR_B19101_with_ann!AA52","v":152},{"$f":"[1]ACS_16_5YR_B19101_with_ann!AB52","v":831},{"$f":"[1]ACS_16_5YR_B19101_with_ann!AC52","v":233},{"$f":"[1]ACS_16_5YR_B19101_with_ann!AD52","v":561},{"$f":"[1]ACS_16_5YR_B19101_with_ann!AE52","v":183},{"$f":"[1]ACS_16_5YR_B19101_with_ann!AF52","v":480},{"$f":"[1]ACS_16_5YR_B19101_with_ann!AG52","v":145},{"$f":"[1]ACS_16_5YR_B19101_with_ann!AH52","v":500},{"$f":"[1]ACS_16_5YR_B19101_with_ann!AI52","v":148},{"$f":"[1]ACS_16_5YR_B19101_with_ann!AJ52","v":494},{"$f":"[1]ACS_16_5YR_B19101_with_ann!AK52","v":149},{"$f":"[1]ACS_16_5YR_B19113_with_ann!D52","v":93196},{"$f":"[1]ACS_16_5YR_B19113_with_ann!E52","v":6828},null,"Keene"]
["06000US3300545460","0600000US3300545700","060",{"$f":"[1]ACS_16_5YR_B19101_with_ann!C53","v":"Marlborough"},{"$f":"[1]ACS_16_5YR_B19101_with_ann!D53","v":557},{"$f":"[1]ACS_16_5YR_B19101_with_ann!E53","v":107},{"$f":"[1]ACS_16_5YR_B19101_with_ann!F53","v":0},{"$f":"[1]ACS_16_5YR_B19101_with_ann!G53","v":12},{"$f":"[1]ACS_16_5YR_B19101_with_ann!H53","v":0},{"$f":"[1]ACS_16_5YR_B19101_with_ann!I53","v":12},{"$f":"[1]ACS_16_5YR_B19101_with_ann!J53","v":18},{"$f":"[1]ACS_16_5YR_B19101_with_ann!K53","v":19},{"$f":"[1]ACS_16_5YR_B19101_with_ann!L53","v":56},{"$f":"[1]ACS_16_5YR_B19101_with_ann!M53","v":64},{"$f":"[1]ACS_16_5YR_B19101_with_ann!N53","v":15},{"$f":"[1]ACS_16_5YR_B19101_with_ann!O53","v":14},{"$f":"[1]ACS_16_5YR_B19101_with_ann!P53","v":24},{"$f":"[1]ACS_16_5YR_B19101_with_ann!Q53","v":23},{"$f":"[1]ACS_16_5YR_B19101_with_ann!R53","v":5},{"$f":"[1]ACS_16_5YR_B19101_with_ann!S53","v":7},{"$f":"[1]ACS_16_5YR_B19101_with_ann!T53","v":5},{"$f":"[1]ACS_16_5YR_B19101_with_ann!U53","v":7},{"$f":"[1]ACS_16_5YR_B19101_with_ann!V53","v":5},{"$f":"[1]ACS_16_5YR_B19101_with_ann!W53","v":9},{"$f":"[1]ACS_16_5YR_B19101_with_ann!X53","v":22},{"$f":"[1]ACS_16_5YR_B19101_with_ann!Y53","v":16},{"$f":"[1]ACS_16_5YR_B19101_with_ann!Z53","v":70},{"$f":"[1]ACS_16_5YR_B19101_with_ann!AA53","v":43},{"$f":"[1]ACS_16_5YR_B19101_with_ann!AB53","v":100},{"$f":"[1]ACS_16_5YR_B19101_with_ann!AC53","v":66},{"$f":"[1]ACS_16_5YR_B19101_with_ann!AD53","v":93},{"$f":"[1]ACS_16_5YR_B19101_with_ann!AE53","v":42},{"$f":"[1]ACS_16_5YR_B19101_with_ann!AF53","v":46},{"$f":"[1]ACS_16_5YR_B19101_with_ann!AG53","v":34},{"$f":"[1]ACS_16_5YR_B19101_with_ann!AH53","v":65},{"$f":"[1]ACS_16_5YR_B19101_with_ann!AI53","v":42},{"$f":"[1]ACS_16_5YR_B19101_with_ann!AJ53","v":33},{"$f":"[1]ACS_16_5YR_B19101_with_ann!AK53","v":22},{"$f":"[1]ACS_16_5YR_B19113_with_ann!D53","v":89970},{"$f":"[1]ACS_16_5YR_B19113_with_ann!E53","v":15039},null,"Marlborough"]
["06000US3300545700","0600000US3300550580","060",{"$f":"[1]ACS_16_5YR_B19101_with_ann!C54","v":"Marlow"},{"$f":"[1]ACS_16_5YR_B19101_with_ann!D54","v":247},{"$f":"[1]ACS_16_5YR_B19101_with_ann!E54","v":59},{"$f":"[1]ACS_16_5YR_B19101_with_ann!F54","v":7},{"$f":"[1]ACS_16_5YR_B19101_with_ann!G54","v":10},{"$f":"[1]ACS_16_5YR_B19101_with_ann!H54","v":0},{"$f":"[1]ACS_16_5YR_B19101_with_ann!I54","v":12},{"$f":"[1]ACS_16_5YR_B19101_with_ann!J54","v":7},{"$f":"[1]ACS_16_5YR_B19101_with_ann!K54","v":9},{"$f":"[1]ACS_16_5YR_B19101_with_ann!L54","v":4},{"$f":"[1]ACS_16_5YR_B19101_with_ann!M54","v":6},{"$f":"[1]ACS_16_5YR_B19101_with_ann!N54","v":0},{"$f":"[1]ACS_16_5YR_B19101_with_ann!O54","v":12},{"$f":"[1]ACS_16_5YR_B19101_with_ann!P54","v":3},{"$f":"[1]ACS_16_5YR_B19101_with_ann!Q54","v":4},{"$f":"[1]ACS_16_5YR_B19101_with_ann!R54","v":7},{"$f":"[1]ACS_16_5YR_B19101_with_ann!S54","v":7},{"$f":"[1]ACS_16_5YR_B19101_with_ann!T54","v":5},{"$f":"[1]ACS_16_5YR_B19101_with_ann!U54","v":5},{"$f":"[1]ACS_16_5YR_B19101_with_ann!V54","v":10},{"$f":"[1]ACS_16_5YR_B19101_with_ann!W54","v":11},{"$f":"[1]ACS_16_5YR_B19101_with_ann!X54","v":8},{"$f":"[1]ACS_16_5YR_B19101_with_ann!Y54","v":7},{"$f":"[1]ACS_16_5YR_B19101_with_ann!Z54","v":22},{"$f":"[1]ACS_16_5YR_B19101_with_ann!AA54","v":16},{"$f":"[1]ACS_16_5YR_B19101_with_ann!AB54","v":25},{"$f":"[1]ACS_16_5YR_B19101_with_ann!AC54","v":19},{"$f":"[1]ACS_16_5YR_B19101_with_ann!AD54","v":68},{"$f":"[1]ACS_16_5YR_B19101_with_ann!AE54","v":47},{"$f":"[1]ACS_16_5YR_B19101_with_ann!AF54","v":32},{"$f":"[1]ACS_16_5YR_B19101_with_ann!AG54","v":26},{"$f":"[1]ACS_16_5YR_B19101_with_ann!AH54","v":35},{"$f":"[1]ACS_16_5YR_B19101_with_ann!AI54","v":21},{"$f":"[1]ACS_16_5YR_B19101_with_ann!AJ54","v":14},{"$f":"[1]ACS_16_5YR_B19101_with_ann!AK54","v":13},{"$f":"[1]ACS_16_5YR_B19113_with_ann!D54","v":114875},{"$f":"[1]ACS_16_5YR_B19113_with_ann!E54","v":10505},null,"Marlow"]
["06000US3300550580","0600000US3300564420","060",{"$f":"[1]ACS_16_5YR_B19101_with_ann!C55","v":"Nelson"},{"$f":"[1]ACS_16_5YR_B19101_with_ann!D55","v":167},{"$f":"[1]ACS_16_5YR_B19101_with_ann!E55","v":39},{"$f":"[1]ACS_16_5YR_B19101_with_ann!F55","v":2},{"$f":"[1]ACS_16_5YR_B19101_with_ann!G55","v":3},{"$f":"[1]ACS_16_5YR_B19101_with_ann!H55","v":2},{"$f":"[1]ACS_16_5YR_B19101_with_ann!I55","v":2},{"$f":"[1]ACS_16_5YR_B19101_with_ann!J55","v":0},{"$f":"[1]ACS_16_5YR_B19101_with_ann!K55","v":12},{"$f":"[1]ACS_16_5YR_B19101_with_ann!L55","v":0},{"$f":"[1]ACS_16_5YR_B19101_with_ann!M55","v":12},{"$f":"[1]ACS_16_5YR_B19101_with_ann!N55","v":3},{"$f":"[1]ACS_16_5YR_B19101_with_ann!O55","v":6},{"$f":"[1]ACS_16_5YR_B19101_with_ann!P55","v":11},{"$f":"[1]ACS_16_5YR_B19101_with_ann!Q55","v":13},{"$f":"[1]ACS_16_5YR_B19101_with_ann!R55","v":0},{"$f":"[1]ACS_16_5YR_B19101_with_ann!S55","v":12},{"$f":"[1]ACS_16_5YR_B19101_with_ann!T55","v":0},{"$f":"[1]ACS_16_5YR_B19101_with_ann!U55","v":12},{"$f":"[1]ACS_16_5YR_B19101_with_ann!V55","v":2},{"$f":"[1]ACS_16_5YR_B19101_with_ann!W55","v":3},{"$f":"[1]ACS_16_5YR_B19101_with_ann!X55","v":8},{"$f":"[1]ACS_16_5YR_B19101_with_ann!Y55","v":8},{"$f":"[1]ACS_16_5YR_B19101_with_ann!Z55","v":19},{"$f":"[1]ACS_16_5YR_B19101_with_ann!AA55","v":11},{"$f":"[1]ACS_16_5YR_B19101_with_ann!AB55","v":31},{"$f":"[1]ACS_16_5YR_B19101_with_ann!AC55","v":15},{"$f":"[1]ACS_16_5YR_B19101_with_ann!AD55","v":36},{"$f":"[1]ACS_16_5YR_B19101_with_ann!AE55","v":20},{"$f":"[1]ACS_16_5YR_B19101_with_ann!AF55","v":14},{"$f":"[1]ACS_16_5YR_B19101_with_ann!AG55","v":9},{"$f":"[1]ACS_16_5YR_B19101_with_ann!AH55","v":16},{"$f":"[1]ACS_16_5YR_B19101_with_ann!AI55","v":11},{"$f":"[1]ACS_16_5YR_B19101_with_ann!AJ55","v":23},{"$f":"[1]ACS_16_5YR_B19101_with_ann!AK55","v":11},{"$f":"[1]ACS_16_5YR_B19113_with_ann!D55","v":104464},{"$f":"[1]ACS_16_5YR_B19113_with_ann!E55","v":17792},null,"Nelson"]
["06000US3300564420","0600000US3300564580","060",{"$f":"[1]ACS_16_5YR_B19101_with_ann!C56","v":"Richmond"},{"$f":"[1]ACS_16_5YR_B19101_with_ann!D56","v":316},{"$f":"[1]ACS_16_5YR_B19101_with_ann!E56","v":68},{"$f":"[1]ACS_16_5YR_B19101_with_ann!F56","v":0},{"$f":"[1]ACS_16_5YR_B19101_with_ann!G56","v":12},{"$f":"[1]ACS_16_5YR_B19101_with_ann!H56","v":0},{"$f":"[1]ACS_16_5YR_B19101_with_ann!I56","v":12},{"$f":"[1]ACS_16_5YR_B19101_with_ann!J56","v":12},{"$f":"[1]ACS_16_5YR_B19101_with_ann!K56","v":20},{"$f":"[1]ACS_16_5YR_B19101_with_ann!L56","v":0},{"$f":"[1]ACS_16_5YR_B19101_with_ann!M56","v":12},{"$f":"[1]ACS_16_5YR_B19101_with_ann!N56","v":4},{"$f":"[1]ACS_16_5YR_B19101_with_ann!O56","v":6},{"$f":"[1]ACS_16_5YR_B19101_with_ann!P56","v":12},{"$f":"[1]ACS_16_5YR_B19101_with_ann!Q56","v":12},{"$f":"[1]ACS_16_5YR_B19101_with_ann!R56","v":2},{"$f":"[1]ACS_16_5YR_B19101_with_ann!S56","v":4},{"$f":"[1]ACS_16_5YR_B19101_with_ann!T56","v":3},{"$f":"[1]ACS_16_5YR_B19101_with_ann!U56","v":4},{"$f":"[1]ACS_16_5YR_B19101_with_ann!V56","v":26},{"$f":"[1]ACS_16_5YR_B19101_with_ann!W56","v":18},{"$f":"[1]ACS_16_5YR_B19101_with_ann!X56","v":11},{"$f":"[1]ACS_16_5YR_B19101_with_ann!Y56","v":9},{"$f":"[1]ACS_16_5YR_B19101_with_ann!Z56","v":52},{"$f":"[1]ACS_16_5YR_B19101_with_ann!AA56","v":26},{"$f":"[1]ACS_16_5YR_B19101_with_ann!AB56","v":54},{"$f":"[1]ACS_16_5YR_B19101_with_ann!AC56","v":28},{"$f":"[1]ACS_16_5YR_B19101_with_ann!AD56","v":50},{"$f":"[1]ACS_16_5YR_B19101_with_ann!AE56","v":34},{"$f":"[1]ACS_16_5YR_B19101_with_ann!AF56","v":21},{"$f":"[1]ACS_16_5YR_B19101_with_ann!AG56","v":21},{"$f":"[1]ACS_16_5YR_B19101_with_ann!AH56","v":51},{"$f":"[1]ACS_16_5YR_B19101_with_ann!AI56","v":32},{"$f":"[1]ACS_16_5YR_B19101_with_ann!AJ56","v":18},{"$f":"[1]ACS_16_5YR_B19101_with_ann!AK56","v":13},{"$f":"[1]ACS_16_5YR_B19113_with_ann!D56","v":93333},{"$f":"[1]ACS_16_5YR_B19113_with_ann!E56","v":13353},null,"Richmond"]
["06000US3300564580","0600000US3300565700","060",{"$f":"[1]ACS_16_5YR_B19101_with_ann!C57","v":"Rindge"},{"$f":"[1]ACS_16_5YR_B19101_with_ann!D57","v":1451},{"$f":"[1]ACS_16_5YR_B19101_with_ann!E57","v":123},{"$f":"[1]ACS_16_5YR_B19101_with_ann!F57","v":0},{"$f":"[1]ACS_16_5YR_B19101_with_ann!G57","v":17},{"$f":"[1]ACS_16_5YR_B19101_with_ann!H57","v":29},{"$f":"[1]ACS_16_5YR_B19101_with_ann!I57","v":36},{"$f":"[1]ACS_16_5YR_B19101_with_ann!J57","v":26},{"$f":"[1]ACS_16_5YR_B19101_with_ann!K57","v":37},{"$f":"[1]ACS_16_5YR_B19101_with_ann!L57","v":20},{"$f":"[1]ACS_16_5YR_B19101_with_ann!M57","v":25},{"$f":"[1]ACS_16_5YR_B19101_with_ann!N57","v":0},{"$f":"[1]ACS_16_5YR_B19101_with_ann!O57","v":17},{"$f":"[1]ACS_16_5YR_B19101_with_ann!P57","v":25},{"$f":"[1]ACS_16_5YR_B19101_with_ann!Q57","v":31},{"$f":"[1]ACS_16_5YR_B19101_with_ann!R57","v":63},{"$f":"[1]ACS_16_5YR_B19101_with_ann!S57","v":78},{"$f":"[1]ACS_16_5YR_B19101_with_ann!T57","v":16},{"$f":"[1]ACS_16_5YR_B19101_with_ann!U57","v":16},{"$f":"[1]ACS_16_5YR_B19101_with_ann!V57","v":30},{"$f":"[1]ACS_16_5YR_B19101_with_ann!W57","v":37},{"$f":"[1]ACS_16_5YR_B19101_with_ann!X57","v":73},{"$f":"[1]ACS_16_5YR_B19101_with_ann!Y57","v":52},{"$f":"[1]ACS_16_5YR_B19101_with_ann!Z57","v":100},{"$f":"[1]ACS_16_5YR_B19101_with_ann!AA57","v":49},{"$f":"[1]ACS_16_5YR_B19101_with_ann!AB57","v":201},{"$f":"[1]ACS_16_5YR_B19101_with_ann!AC57","v":84},{"$f":"[1]ACS_16_5YR_B19101_with_ann!AD57","v":270},{"$f":"[1]ACS_16_5YR_B19101_with_ann!AE57","v":109},{"$f":"[1]ACS_16_5YR_B19101_with_ann!AF57","v":217},{"$f":"[1]ACS_16_5YR_B19101_with_ann!AG57","v":95},{"$f":"[1]ACS_16_5YR_B19101_with_ann!AH57","v":186},{"$f":"[1]ACS_16_5YR_B19101_with_ann!AI57","v":79},{"$f":"[1]ACS_16_5YR_B19101_with_ann!AJ57","v":195},{"$f":"[1]ACS_16_5YR_B19101_with_ann!AK57","v":88},{"$f":"[1]ACS_16_5YR_B19113_with_ann!D57","v":114047},{"$f":"[1]ACS_16_5YR_B19113_with_ann!E57","v":6029},null,"Rindge"]
["06000US3300565700","0600000US3300573700","060",{"$f":"[1]ACS_16_5YR_B19101_with_ann!C58","v":"Roxbury"},{"$f":"[1]ACS_16_5YR_B19101_with_ann!D58","v":66},{"$f":"[1]ACS_16_5YR_B19101_with_ann!E58","v":37},{"$f":"[1]ACS_16_5YR_B19101_with_ann!F58","v":0},{"$f":"[1]ACS_16_5YR_B19101_with_ann!G58","v":12},{"$f":"[1]ACS_16_5YR_B19101_with_ann!H58","v":0},{"$f":"[1]ACS_16_5YR_B19101_with_ann!I58","v":12},{"$f":"[1]ACS_16_5YR_B19101_with_ann!J58","v":0},{"$f":"[1]ACS_16_5YR_B19101_with_ann!K58","v":12},{"$f":"[1]ACS_16_5YR_B19101_with_ann!L58","v":0},{"$f":"[1]ACS_16_5YR_B19101_with_ann!M58","v":12},{"$f":"[1]ACS_16_5YR_B19101_with_ann!N58","v":0},{"$f":"[1]ACS_16_5YR_B19101_with_ann!O58","v":12},{"$f":"[1]ACS_16_5YR_B19101_with_ann!P58","v":2},{"$f":"[1]ACS_16_5YR_B19101_with_ann!Q58","v":3},{"$f":"[1]ACS_16_5YR_B19101_with_ann!R58","v":0},{"$f":"[1]ACS_16_5YR_B19101_with_ann!S58","v":12},{"$f":"[1]ACS_16_5YR_B19101_with_ann!T58","v":2},{"$f":"[1]ACS_16_5YR_B19101_with_ann!U58","v":3},{"$f":"[1]ACS_16_5YR_B19101_with_ann!V58","v":0},{"$f":"[1]ACS_16_5YR_B19101_with_ann!W58","v":12},{"$f":"[1]ACS_16_5YR_B19101_with_ann!X58","v":3},{"$f":"[1]ACS_16_5YR_B19101_with_ann!Y58","v":4},{"$f":"[1]ACS_16_5YR_B19101_with_ann!Z58","v":22},{"$f":"[1]ACS_16_5YR_B19101_with_ann!AA58","v":36},{"$f":"[1]ACS_16_5YR_B19101_with_ann!AB58","v":7},{"$f":"[1]ACS_16_5YR_B19101_with_ann!AC58","v":5},{"$f":"[1]ACS_16_5YR_B19101_with_ann!AD58","v":16},{"$f":"[1]ACS_16_5YR_B19101_with_ann!AE58","v":14},{"$f":"[1]ACS_16_5YR_B19101_with_ann!AF58","v":1},{"$f":"[1]ACS_16_5YR_B19101_with_ann!AG58","v":3},{"$f":"[1]ACS_16_5YR_B19101_with_ann!AH58","v":3},{"$f":"[1]ACS_16_5YR_B19101_with_ann!AI58","v":4},{"$f":"[1]ACS_16_5YR_B19101_with_ann!AJ58","v":10},{"$f":"[1]ACS_16_5YR_B19101_with_ann!AK58","v":6},{"$f":"[1]ACS_16_5YR_B19113_with_ann!D58","v":90000},{"$f":"[1]ACS_16_5YR_B19113_with_ann!E58","v":43903},null,"Roxbury"]
["06000US3300573700","0600000US3300574900","060",{"$f":"[1]ACS_16_5YR_B19101_with_ann!C59","v":"Stoddard"},{"$f":"[1]ACS_16_5YR_B19101_with_ann!D59","v":297},{"$f":"[1]ACS_16_5YR_B19101_with_ann!E59","v":45},{"$f":"[1]ACS_16_5YR_B19101_with_ann!F59","v":5},{"$f":"[1]ACS_16_5YR_B19101_with_ann!G59","v":8},{"$f":"[1]ACS_16_5YR_B19101_with_ann!H59","v":0},{"$f":"[1]ACS_16_5YR_B19101_with_ann!I59","v":12},{"$f":"[1]ACS_16_5YR_B19101_with_ann!J59","v":0},{"$f":"[1]ACS_16_5YR_B19101_with_ann!K59","v":12},{"$f":"[1]ACS_16_5YR_B19101_with_ann!L59","v":0},{"$f":"[1]ACS_16_5YR_B19101_with_ann!M59","v":12},{"$f":"[1]ACS_16_5YR_B19101_with_ann!N59","v":3},{"$f":"[1]ACS_16_5YR_B19101_with_ann!O59","v":4},{"$f":"[1]ACS_16_5YR_B19101_with_ann!P59","v":2},{"$f":"[1]ACS_16_5YR_B19101_with_ann!Q59","v":5},{"$f":"[1]ACS_16_5YR_B19101_with_ann!R59","v":2},{"$f":"[1]ACS_16_5YR_B19101_with_ann!S59","v":4},{"$f":"[1]ACS_16_5YR_B19101_with_ann!T59","v":2},{"$f":"[1]ACS_16_5YR_B19101_with_ann!U59","v":3},{"$f":"[1]ACS_16_5YR_B19101_with_ann!V59","v":15},{"$f":"[1]ACS_16_5YR_B19101_with_ann!W59","v":14},{"$f":"[1]ACS_16_5YR_B19101_with_ann!X59","v":27},{"$f":"[1]ACS_16_5YR_B19101_with_ann!Y59","v":14},{"$f":"[1]ACS_16_5YR_B19101_with_ann!Z59","v":41},{"$f":"[1]ACS_16_5YR_B19101_with_ann!AA59","v":23},{"$f":"[1]ACS_16_5YR_B19101_with_ann!AB59","v":60},{"$f":"[1]ACS_16_5YR_B19101_with_ann!AC59","v":27},{"$f":"[1]ACS_16_5YR_B19101_with_ann!AD59","v":31},{"$f":"[1]ACS_16_5YR_B19101_with_ann!AE59","v":20},{"$f":"[1]ACS_16_5YR_B19101_with_ann!AF59","v":42},{"$f":"[1]ACS_16_5YR_B19101_with_ann!AG59","v":16},{"$f":"[1]ACS_16_5YR_B19101_with_ann!AH59","v":34},{"$f":"[1]ACS_16_5YR_B19101_with_ann!AI59","v":17},{"$f":"[1]ACS_16_5YR_B19101_with_ann!AJ59","v":33},{"$f":"[1]ACS_16_5YR_B19101_with_ann!AK59","v":15},{"$f":"[1]ACS_16_5YR_B19113_with_ann!D59","v":92250},{"$f":"[1]ACS_16_5YR_B19113_with_ann!E59","v":13509},null,"Stoddard"]
["06000US3300574900","0600000US3300575300","060",{"$f":"[1]ACS_16_5YR_B19101_with_ann!C60","v":"Sullivan"},{"$f":"[1]ACS_16_5YR_B19101_with_ann!D60","v":196},{"$f":"[1]ACS_16_5YR_B19101_with_ann!E60","v":45},{"$f":"[1]ACS_16_5YR_B19101_with_ann!F60","v":0},{"$f":"[1]ACS_16_5YR_B19101_with_ann!G60","v":12},{"$f":"[1]ACS_16_5YR_B19101_with_ann!H60","v":0},{"$f":"[1]ACS_16_5YR_B19101_with_ann!I60","v":12},{"$f":"[1]ACS_16_5YR_B19101_with_ann!J60","v":3},{"$f":"[1]ACS_16_5YR_B19101_with_ann!K60","v":4},{"$f":"[1]ACS_16_5YR_B19101_with_ann!L60","v":0},{"$f":"[1]ACS_16_5YR_B19101_with_ann!M60","v":12},{"$f":"[1]ACS_16_5YR_B19101_with_ann!N60","v":4},{"$f":"[1]ACS_16_5YR_B19101_with_ann!O60","v":7},{"$f":"[1]ACS_16_5YR_B19101_with_ann!P60","v":0},{"$f":"[1]ACS_16_5YR_B19101_with_ann!Q60","v":12},{"$f":"[1]ACS_16_5YR_B19101_with_ann!R60","v":2},{"$f":"[1]ACS_16_5YR_B19101_with_ann!S60","v":3},{"$f":"[1]ACS_16_5YR_B19101_with_ann!T60","v":3},{"$f":"[1]ACS_16_5YR_B19101_with_ann!U60","v":4},{"$f":"[1]ACS_16_5YR_B19101_with_ann!V60","v":0},{"$f":"[1]ACS_16_5YR_B19101_with_ann!W60","v":12},{"$f":"[1]ACS_16_5YR_B19101_with_ann!X60","v":10},{"$f":"[1]ACS_16_5YR_B19101_with_ann!Y60","v":6},{"$f":"[1]ACS_16_5YR_B19101_with_ann!Z60","v":32},{"$f":"[1]ACS_16_5YR_B19101_with_ann!AA60","v":21},{"$f":"[1]ACS_16_5YR_B19101_with_ann!AB60","v":38},{"$f":"[1]ACS_16_5YR_B19101_with_ann!AC60","v":16},{"$f":"[1]ACS_16_5YR_B19101_with_ann!AD60","v":36},{"$f":"[1]ACS_16_5YR_B19101_with_ann!AE60","v":21},{"$f":"[1]ACS_16_5YR_B19101_with_ann!AF60","v":12},{"$f":"[1]ACS_16_5YR_B19101_with_ann!AG60","v":15},{"$f":"[1]ACS_16_5YR_B19101_with_ann!AH60","v":42},{"$f":"[1]ACS_16_5YR_B19101_with_ann!AI60","v":23},{"$f":"[1]ACS_16_5YR_B19101_with_ann!AJ60","v":14},{"$f":"[1]ACS_16_5YR_B19101_with_ann!AK60","v":12},{"$f":"[1]ACS_16_5YR_B19113_with_ann!D60","v":100833},{"$f":"[1]ACS_16_5YR_B19113_with_ann!E60","v":8266},null,"Sullivan"]
["06000US3300575300","0600000US3300575700","060",{"$f":"[1]ACS_16_5YR_B19101_with_ann!C61","v":"Surry"},{"$f":"[1]ACS_16_5YR_B19101_with_ann!D61","v":262},{"$f":"[1]ACS_16_5YR_B19101_with_ann!E61","v":60},{"$f":"[1]ACS_16_5YR_B19101_with_ann!F61","v":0},{"$f":"[1]ACS_16_5YR_B19101_with_ann!G61","v":12},{"$f":"[1]ACS_16_5YR_B19101_with_ann!H61","v":2},{"$f":"[1]ACS_16_5YR_B19101_with_ann!I61","v":3},{"$f":"[1]ACS_16_5YR_B19101_with_ann!J61","v":2},{"$f":"[1]ACS_16_5YR_B19101_with_ann!K61","v":3},{"$f":"[1]ACS_16_5YR_B19101_with_ann!L61","v":7},{"$f":"[1]ACS_16_5YR_B19101_with_ann!M61","v":11},{"$f":"[1]ACS_16_5YR_B19101_with_ann!N61","v":2},{"$f":"[1]ACS_16_5YR_B19101_with_ann!O61","v":3},{"$f":"[1]ACS_16_5YR_B19101_with_ann!P61","v":0},{"$f":"[1]ACS_16_5YR_B19101_with_ann!Q61","v":12},{"$f":"[1]ACS_16_5YR_B19101_with_ann!R61","v":6},{"$f":"[1]ACS_16_5YR_B19101_with_ann!S61","v":6},{"$f":"[1]ACS_16_5YR_B19101_with_ann!T61","v":0},{"$f":"[1]ACS_16_5YR_B19101_with_ann!U61","v":12},{"$f":"[1]ACS_16_5YR_B19101_with_ann!V61","v":19},{"$f":"[1]ACS_16_5YR_B19101_with_ann!W61","v":24},{"$f":"[1]ACS_16_5YR_B19101_with_ann!X61","v":30},{"$f":"[1]ACS_16_5YR_B19101_with_ann!Y61","v":19},{"$f":"[1]ACS_16_5YR_B19101_with_ann!Z61","v":10},{"$f":"[1]ACS_16_5YR_B19101_with_ann!AA61","v":8},{"$f":"[1]ACS_16_5YR_B19101_with_ann!AB61","v":38},{"$f":"[1]ACS_16_5YR_B19101_with_ann!AC61","v":16},{"$f":"[1]ACS_16_5YR_B19101_with_ann!AD61","v":33},{"$f":"[1]ACS_16_5YR_B19101_with_ann!AE61","v":18},{"$f":"[1]ACS_16_5YR_B19101_with_ann!AF61","v":26},{"$f":"[1]ACS_16_5YR_B19101_with_ann!AG61","v":15},{"$f":"[1]ACS_16_5YR_B19101_with_ann!AH61","v":46},{"$f":"[1]ACS_16_5YR_B19101_with_ann!AI61","v":39},{"$f":"[1]ACS_16_5YR_B19101_with_ann!AJ61","v":41},{"$f":"[1]ACS_16_5YR_B19101_with_ann!AK61","v":20},{"$f":"[1]ACS_16_5YR_B19113_with_ann!D61","v":104808},{"$f":"[1]ACS_16_5YR_B19113_with_ann!E61","v":32992},null,"Surry"]
["06000US3300575700","0600000US3300577380","060",{"$f":"[1]ACS_16_5YR_B19101_with_ann!C62","v":"Swanzey"},{"$f":"[1]ACS_16_5YR_B19101_with_ann!D62","v":2089},{"$f":"[1]ACS_16_5YR_B19101_with_ann!E62","v":223},{"$f":"[1]ACS_16_5YR_B19101_with_ann!F62","v":21},{"$f":"[1]ACS_16_5YR_B19101_with_ann!G62","v":34},{"$f":"[1]ACS_16_5YR_B19101_with_ann!H62","v":21},{"$f":"[1]ACS_16_5YR_B19101_with_ann!I62","v":31},{"$f":"[1]ACS_16_5YR_B19101_with_ann!J62","v":94},{"$f":"[1]ACS_16_5YR_B19101_with_ann!K62","v":83},{"$f":"[1]ACS_16_5YR_B19101_with_ann!L62","v":42},{"$f":"[1]ACS_16_5YR_B19101_with_ann!M62","v":51},{"$f":"[1]ACS_16_5YR_B19101_with_ann!N62","v":19},{"$f":"[1]ACS_16_5YR_B19101_with_ann!O62","v":24},{"$f":"[1]ACS_16_5YR_B19101_with_ann!P62","v":0},{"$f":"[1]ACS_16_5YR_B19101_with_ann!Q62","v":17},{"$f":"[1]ACS_16_5YR_B19101_with_ann!R62","v":21},{"$f":"[1]ACS_16_5YR_B19101_with_ann!S62","v":24},{"$f":"[1]ACS_16_5YR_B19101_with_ann!T62","v":133},{"$f":"[1]ACS_16_5YR_B19101_with_ann!U62","v":97},{"$f":"[1]ACS_16_5YR_B19101_with_ann!V62","v":158},{"$f":"[1]ACS_16_5YR_B19101_with_ann!W62","v":103},{"$f":"[1]ACS_16_5YR_B19101_with_ann!X62","v":157},{"$f":"[1]ACS_16_5YR_B19101_with_ann!Y62","v":115},{"$f":"[1]ACS_16_5YR_B19101_with_ann!Z62","v":206},{"$f":"[1]ACS_16_5YR_B19101_with_ann!AA62","v":118},{"$f":"[1]ACS_16_5YR_B19101_with_ann!AB62","v":200},{"$f":"[1]ACS_16_5YR_B19101_with_ann!AC62","v":89},{"$f":"[1]ACS_16_5YR_B19101_with_ann!AD62","v":394},{"$f":"[1]ACS_16_5YR_B19101_with_ann!AE62","v":163},{"$f":"[1]ACS_16_5YR_B19101_with_ann!AF62","v":270},{"$f":"[1]ACS_16_5YR_B19101_with_ann!AG62","v":159},{"$f":"[1]ACS_16_5YR_B19101_with_ann!AH62","v":184},{"$f":"[1]ACS_16_5YR_B19101_with_ann!AI62","v":106},{"$f":"[1]ACS_16_5YR_B19101_with_ann!AJ62","v":169},{"$f":"[1]ACS_16_5YR_B19101_with_ann!AK62","v":89},{"$f":"[1]ACS_16_5YR_B19113_with_ann!D62","v":97782},{"$f":"[1]ACS_16_5YR_B19113_with_ann!E62","v":18966},null,"Swanzey"]
["06000US3300577380","0600000US3300578420","060",{"$f":"[1]ACS_16_5YR_B19101_with_ann!C63","v":"Troy"},{"$f":"[1]ACS_16_5YR_B19101_with_ann!D63","v":497},{"$f":"[1]ACS_16_5YR_B19101_with_ann!E63","v":87},{"$f":"[1]ACS_16_5YR_B19101_with_ann!F63","v":4},{"$f":"[1]ACS_16_5YR_B19101_with_ann!G63","v":7},{"$f":"[1]ACS_16_5YR_B19101_with_ann!H63","v":13},{"$f":"[1]ACS_16_5YR_B19101_with_ann!I63","v":15},{"$f":"[1]ACS_16_5YR_B19101_with_ann!J63","v":0},{"$f":"[1]ACS_16_5YR_B19101_with_ann!K63","v":12},{"$f":"[1]ACS_16_5YR_B19101_with_ann!L63","v":23},{"$f":"[1]ACS_16_5YR_B19101_with_ann!M63","v":27},{"$f":"[1]ACS_16_5YR_B19101_with_ann!N63","v":40},{"$f":"[1]ACS_16_5YR_B19101_with_ann!O63","v":30},{"$f":"[1]ACS_16_5YR_B19101_with_ann!P63","v":27},{"$f":"[1]ACS_16_5YR_B19101_with_ann!Q63","v":31},{"$f":"[1]ACS_16_5YR_B19101_with_ann!R63","v":0},{"$f":"[1]ACS_16_5YR_B19101_with_ann!S63","v":12},{"$f":"[1]ACS_16_5YR_B19101_with_ann!T63","v":21},{"$f":"[1]ACS_16_5YR_B19101_with_ann!U63","v":22},{"$f":"[1]ACS_16_5YR_B19101_with_ann!V63","v":13},{"$f":"[1]ACS_16_5YR_B19101_with_ann!W63","v":12},{"$f":"[1]ACS_16_5YR_B19101_with_ann!X63","v":72},{"$f":"[1]ACS_16_5YR_B19101_with_ann!Y63","v":36},{"$f":"[1]ACS_16_5YR_B19101_with_ann!Z63","v":30},{"$f":"[1]ACS_16_5YR_B19101_with_ann!AA63","v":20},{"$f":"[1]ACS_16_5YR_B19101_with_ann!AB63","v":80},{"$f":"[1]ACS_16_5YR_B19101_with_ann!AC63","v":35},{"$f":"[1]ACS_16_5YR_B19101_with_ann!AD63","v":47},{"$f":"[1]ACS_16_5YR_B19101_with_ann!AE63","v":23},{"$f":"[1]ACS_16_5YR_B19101_with_ann!AF63","v":32},{"$f":"[1]ACS_16_5YR_B19101_with_ann!AG63","v":24},{"$f":"[1]ACS_16_5YR_B19101_with_ann!AH63","v":56},{"$f":"[1]ACS_16_5YR_B19101_with_ann!AI63","v":44},{"$f":"[1]ACS_16_5YR_B19101_with_ann!AJ63","v":39},{"$f":"[1]ACS_16_5YR_B19101_with_ann!AK63","v":26},{"$f":"[1]ACS_16_5YR_B19113_with_ann!D63","v":80430},{"$f":"[1]ACS_16_5YR_B19113_with_ann!E63","v":25668},null,"Troy"]
["06000US3300578420","0600000US3300582660","060",{"$f":"[1]ACS_16_5YR_B19101_with_ann!C64","v":"Walpole"},{"$f":"[1]ACS_16_5YR_B19101_with_ann!D64","v":883},{"$f":"[1]ACS_16_5YR_B19101_with_ann!E64","v":94},{"$f":"[1]ACS_16_5YR_B19101_with_ann!F64","v":19},{"$f":"[1]ACS_16_5YR_B19101_with_ann!G64","v":29},{"$f":"[1]ACS_16_5YR_B19101_with_ann!H64","v":0},{"$f":"[1]ACS_16_5YR_B19101_with_ann!I64","v":12},{"$f":"[1]ACS_16_5YR_B19101_with_ann!J64","v":9},{"$f":"[1]ACS_16_5YR_B19101_with_ann!K64","v":11},{"$f":"[1]ACS_16_5YR_B19101_with_ann!L64","v":0},{"$f":"[1]ACS_16_5YR_B19101_with_ann!M64","v":12},{"$f":"[1]ACS_16_5YR_B19101_with_ann!N64","v":7},{"$f":"[1]ACS_16_5YR_B19101_with_ann!O64","v":11},{"$f":"[1]ACS_16_5YR_B19101_with_ann!P64","v":0},{"$f":"[1]ACS_16_5YR_B19101_with_ann!Q64","v":12},{"$f":"[1]ACS_16_5YR_B19101_with_ann!R64","v":45},{"$f":"[1]ACS_16_5YR_B19101_with_ann!S64","v":56},{"$f":"[1]ACS_16_5YR_B19101_with_ann!T64","v":0},{"$f":"[1]ACS_16_5YR_B19101_with_ann!U64","v":12},{"$f":"[1]ACS_16_5YR_B19101_with_ann!V64","v":48},{"$f":"[1]ACS_16_5YR_B19101_with_ann!W64","v":53},{"$f":"[1]ACS_16_5YR_B19101_with_ann!X64","v":69},{"$f":"[1]ACS_16_5YR_B19101_with_ann!Y64","v":46},{"$f":"[1]ACS_16_5YR_B19101_with_ann!Z64","v":67},{"$f":"[1]ACS_16_5YR_B19101_with_ann!AA64","v":37},{"$f":"[1]ACS_16_5YR_B19101_with_ann!AB64","v":86},{"$f":"[1]ACS_16_5YR_B19101_with_ann!AC64","v":44},{"$f":"[1]ACS_16_5YR_B19101_with_ann!AD64","v":158},{"$f":"[1]ACS_16_5YR_B19101_with_ann!AE64","v":114},{"$f":"[1]ACS_16_5YR_B19101_with_ann!AF64","v":117},{"$f":"[1]ACS_16_5YR_B19101_with_ann!AG64","v":67},{"$f":"[1]ACS_16_5YR_B19101_with_ann!AH64","v":121},{"$f":"[1]ACS_16_5YR_B19101_with_ann!AI64","v":68},{"$f":"[1]ACS_16_5YR_B19101_with_ann!AJ64","v":137},{"$f":"[1]ACS_16_5YR_B19101_with_ann!AK64","v":72},{"$f":"[1]ACS_16_5YR_B19113_with_ann!D64","v":109823},{"$f":"[1]ACS_16_5YR_B19113_with_ann!E64","v":15301},null,"Walpole"]
["06000US3300582660","0600000US3300585540","060",{"$f":"[1]ACS_16_5YR_B19101_with_ann!C65","v":"Westmoreland"},{"$f":"[1]ACS_16_5YR_B19101_with_ann!D65","v":669},{"$f":"[1]ACS_16_5YR_B19101_with_ann!E65","v":155},{"$f":"[1]ACS_16_5YR_B19101_with_ann!F65","v":69},{"$f":"[1]ACS_16_5YR_B19101_with_ann!G65","v":99},{"$f":"[1]ACS_16_5YR_B19101_with_ann!H65","v":0},{"$f":"[1]ACS_16_5YR_B19101_with_ann!I65","v":12},{"$f":"[1]ACS_16_5YR_B19101_with_ann!J65","v":2},{"$f":"[1]ACS_16_5YR_B19101_with_ann!K65","v":5},{"$f":"[1]ACS_16_5YR_B19101_with_ann!L65","v":0},{"$f":"[1]ACS_16_5YR_B19101_with_ann!M65","v":12},{"$f":"[1]ACS_16_5YR_B19101_with_ann!N65","v":9},{"$f":"[1]ACS_16_5YR_B19101_with_ann!O65","v":11},{"$f":"[1]ACS_16_5YR_B19101_with_ann!P65","v":11},{"$f":"[1]ACS_16_5YR_B19101_with_ann!Q65","v":15},{"$f":"[1]ACS_16_5YR_B19101_with_ann!R65","v":12},{"$f":"[1]ACS_16_5YR_B19101_with_ann!S65","v":12},{"$f":"[1]ACS_16_5YR_B19101_with_ann!T65","v":9},{"$f":"[1]ACS_16_5YR_B19101_with_ann!U65","v":8},{"$f":"[1]ACS_16_5YR_B19101_with_ann!V65","v":3},{"$f":"[1]ACS_16_5YR_B19101_with_ann!W65","v":5},{"$f":"[1]ACS_16_5YR_B19101_with_ann!X65","v":63},{"$f":"[1]ACS_16_5YR_B19101_with_ann!Y65","v":59},{"$f":"[1]ACS_16_5YR_B19101_with_ann!Z65","v":34},{"$f":"[1]ACS_16_5YR_B19101_with_ann!AA65","v":19},{"$f":"[1]ACS_16_5YR_B19101_with_ann!AB65","v":74},{"$f":"[1]ACS_16_5YR_B19101_with_ann!AC65","v":28},{"$f":"[1]ACS_16_5YR_B19101_with_ann!AD65","v":134},{"$f":"[1]ACS_16_5YR_B19101_with_ann!AE65","v":80},{"$f":"[1]ACS_16_5YR_B19101_with_ann!AF65","v":39},{"$f":"[1]ACS_16_5YR_B19101_with_ann!AG65","v":20},{"$f":"[1]ACS_16_5YR_B19101_with_ann!AH65","v":104},{"$f":"[1]ACS_16_5YR_B19101_with_ann!AI65","v":42},{"$f":"[1]ACS_16_5YR_B19101_with_ann!AJ65","v":106},{"$f":"[1]ACS_16_5YR_B19101_with_ann!AK65","v":41},{"$f":"[1]ACS_16_5YR_B19113_with_ann!D65","v":109659},{"$f":"[1]ACS_16_5YR_B19113_with_ann!E65","v":14643},null,"Westmoreland"]
["06000US3300585540","0600000US3300500820","060",{"$f":"[1]ACS_16_5YR_B19101_with_ann!C66","v":"Winchester"},{"$f":"[1]ACS_16_5YR_B19101_with_ann!D66","v":909},{"$f":"[1]ACS_16_5YR_B19101_with_ann!E66","v":104},{"$f":"[1]ACS_16_5YR_B19101_with_ann!F66","v":72},{"$f":"[1]ACS_16_5YR_B19101_with_ann!G66","v":54},{"$f":"[1]ACS_16_5YR_B19101_with_ann!H66","v":19},{"$f":"[1]ACS_16_5YR_B19101_with_ann!I66","v":20},{"$f":"[1]ACS_16_5YR_B19101_with_ann!J66","v":43},{"$f":"[1]ACS_16_5YR_B19101_with_ann!K66","v":49},{"$f":"[1]ACS_16_5YR_B19101_with_ann!L66","v":0},{"$f":"[1]ACS_16_5YR_B19101_with_ann!M66","v":12},{"$f":"[1]ACS_16_5YR_B19101_with_ann!N66","v":39},{"$f":"[1]ACS_16_5YR_B19101_with_ann!O66","v":33},{"$f":"[1]ACS_16_5YR_B19101_with_ann!P66","v":44},{"$f":"[1]ACS_16_5YR_B19101_with_ann!Q66","v":37},{"$f":"[1]ACS_16_5YR_B19101_with_ann!R66","v":47},{"$f":"[1]ACS_16_5YR_B19101_with_ann!S66","v":57},{"$f":"[1]ACS_16_5YR_B19101_with_ann!T66","v":27},{"$f":"[1]ACS_16_5YR_B19101_with_ann!U66","v":29},{"$f":"[1]ACS_16_5YR_B19101_with_ann!V66","v":50},{"$f":"[1]ACS_16_5YR_B19101_with_ann!W66","v":41},{"$f":"[1]ACS_16_5YR_B19101_with_ann!X66","v":46},{"$f":"[1]ACS_16_5YR_B19101_with_ann!Y66","v":45},{"$f":"[1]ACS_16_5YR_B19101_with_ann!Z66","v":122},{"$f":"[1]ACS_16_5YR_B19101_with_ann!AA66","v":74},{"$f":"[1]ACS_16_5YR_B19101_with_ann!AB66","v":80},{"$f":"[1]ACS_16_5YR_B19101_with_ann!AC66","v":55},{"$f":"[1]ACS_16_5YR_B19101_with_ann!AD66","v":75},{"$f":"[1]ACS_16_5YR_B19101_with_ann!AE66","v":47},{"$f":"[1]ACS_16_5YR_B19101_with_ann!AF66","v":89},{"$f":"[1]ACS_16_5YR_B19101_with_ann!AG66","v":54},{"$f":"[1]ACS_16_5YR_B19101_with_ann!AH66","v":92},{"$f":"[1]ACS_16_5YR_B19101_with_ann!AI66","v":60},{"$f":"[1]ACS_16_5YR_B19101_with_ann!AJ66","v":64},{"$f":"[1]ACS_16_5YR_B19101_with_ann!AK66","v":65},{"$f":"[1]ACS_16_5YR_B19113_with_ann!D66","v":66813},{"$f":"[1]ACS_16_5YR_B19113_with_ann!E66","v":14185},null,"Winchester"]
[]
[]
[null,null,null,null,null,null,null,null,null,null,null,null,null,null,null,null,null,null,null,null,null,null,null,null,null,null,null,null,null,null,null,null,null,null,null,null,null,null,null,null,null,null,{"$f":"$D$22","v":"Troy"},null,{"$f":"$D$23","v":"Walpole"},null,{"$f":"$D$24","v":"Westmoreland"},null,{"$f":"$D$25","v":"Winchester"}]
[null,null,null,null,{"$f":"$D$3","v":"Alstead"},null,{"$f":"$D$4","v":"Chesterfield"},null,{"$f":"$D$5","v":"Dublin"},null,{"$f":"$D$6","v":"Fitzwilliam"},null,{"$f":"$D$7","v":"Gilsum"},null,{"$f":"$D$8","v":"Harrisville"},null,{"$f":"$D$9","v":"Hinsdale"},null,{"$f":"$D$10","v":"Jaffrey"},null,{"$f":"$D$11","v":"Keene"},null,{"$f":"$D$12","v":"Marlborough"},null,{"$f":"$D$13","v":"Marlow"},null,{"$f":"$D$14","v":"Nelson"},null,{"$f":"$D$15","v":"Richmond"},null,{"$f":"$D$16","v":"Rindge"},null,{"$f":"$D$17","v":"Roxbury"},null,{"$f":"$D$18","v":"Stoddard"},null,{"$f":"$D$19","v":"Sullivan"},null,{"$f":"$D$20","v":"Surry"},null,{"$f":"$D$21","v":"Swanzey"},null,{"$f":"$D$21","v":"Swanzey"},null,{"$f":"$D$21","v":"Swanzey"},null,{"$f":"$D$21","v":"Swanzey"},null,{"$f":"$D$21","v":"Swanzey"}]
[null,null,null,null,"Estimate","Margin of Error","Estimate","Margin of Error","Estimate","Margin of Error","Estimate","Margin of Error","Estimate","Margin of Error","Estimate","Margin of Error","Estimate","Margin of Error","Estimate","Margin of Error","Estimate","Margin of Error","Estimate","Margin of Error","Estimate","Margin of Error","Estimate","Margin of Error","Estimate","Margin of Error","Estimate","Margin of Error","Estimate","Margin of Error","Estimate","Margin of Error","Estimate","Margin of Error","Estimate","Margin of Error","Estimate","Margin of Error"]
["Table B19101",null,null,"Estimate!!Total:",454,72,1003,131,527,93,619,124,230,43,313,70,1049,141,1374,156,4541,311,557,107,247,59,167,39,316,68,1451,123,66,37,297,45,196,45,262,60,2089,223,497,87,883,94,669,155,909,104]
[null,null,null,"Estimate!!Total:!!Less than $10,000",0,12,0,12,12,13,21,20,1,3,0,12,0,12,0,17,70,55,0,12,7,10,2,3,0,12,0,17,0,12,5,8,0,12,0,12,21,34,4,7,19,29,69,99,72,54]
[null,null,null,"Estimate!!Total:!!$10,000 to $14,999",0,12,0,12,38,53,6,8,0,12,0,12,0,12,0,17,40,31,0,12,0,12,2,2,0,12,29,36,0,12,0,12,0,12,2,3,21,31,13,15,0,12,0,12,19,20]
[null,null,null,"Estimate!!Total:!!$15,000 to $19,999",10,10,0,12,0,12,0,12,2,3,0,12,0,12,23,39,45,42,18,19,7,9,0,12,12,20,26,37,0,12,0,12,3,4,2,3,94,83,0,12,9,11,2,5,43,49]
[null,null,null,"Estimate!!Total:!!$20,000 to $24,999",52,55,14,22,4,5,7,12,5,5,0,12,20,29,26,31,87,72,56,64,4,6,0,12,0,12,20,25,0,12,0,12,0,12,7,11,42,51,23,27,0,12,0,12,0,12]
[null,null,null,"Estimate!!Total:!!$25,000 to $29,999",11,11,33,45,14,12,13,11,2,3,5,6,0,12,15,23,38,39,15,14,0,12,3,6,4,6,0,17,0,12,3,4,4,7,2,3,19,24,40,30,7,11,9,11,39,33]
[null,null,null,"Estimate!!Total:!!$30,000 to $34,999",13,10,37,56,2,3,12,20,2,3,6,6,42,30,9,17,171,84,24,23,3,4,11,13,12,12,25,31,2,3,2,5,0,12,0,12,0,17,27,31,0,12,11,15,44,37]
[null,null,null,"Estimate!!Total:!!$35,000 to $39,999",17,13,10,19,20,20,26,27,4,5,4,6,28,34,10,19,103,60,5,7,7,7,0,12,2,4,63,78,0,12,2,4,2,3,6,6,21,24,0,12,45,56,12,12,47,57]
[null,null,null,"Estimate!!Total:!!$40,000 to $44,999",11,12,0,12,3,4,23,17,18,26,10,9,27,29,11,20,188,131,5,7,5,5,0,12,3,4,16,16,2,3,2,3,3,4,0,12,133,97,21,22,0,12,9,8,27,29]
[null,null,null,"Estimate!!Total:!!$45,000 to $49,999",27,24,25,31,7,11,12,11,21,14,20,17,48,53,0,17,138,82,5,9,10,11,2,3,26,18,30,37,0,12,15,14,0,12,19,24,158,103,13,12,48,53,3,5,50,41]
[null,null,null,"Estimate!!Total:!!$50,000 to $59,999",73,47,15,24,54,27,40,37,16,10,24,23,120,115,43,41,334,120,22,16,8,7,8,8,11,9,73,52,3,4,27,14,10,6,30,19,157,115,72,36,69,46,63,59,46,45]
[null,null,null,"Estimate!!Total:!!$60,000 to $74,999",18,13,32,37,28,26,43,24,34,19,28,23,210,163,285,155,461,152,70,43,22,16,19,11,52,26,100,49,22,36,41,23,32,21,10,8,206,118,30,20,67,37,34,19,122,74]
[null,null,null,"Estimate!!Total:!!$75,000 to $99,999",65,28,96,76,101,67,152,103,32,15,74,32,130,61,159,103,831,233,100,66,25,19,31,15,54,28,201,84,7,5,60,27,38,16,38,16,200,89,80,35,86,44,74,28,80,55]
[null,null,null,"Estimate!!Total:!!$100,000 to $124,999",50,22,235,134,56,27,77,36,22,13,31,17,107,63,338,172,561,183,93,42,68,47,36,20,50,34,270,109,16,14,31,20,36,21,33,18,394,163,47,23,158,114,134,80,75,47]
[null,null,null,"Estimate!!Total:!!$125,000 to $149,999",30,16,162,100,37,20,66,32,14,12,13,9,110,62,165,123,480,145,46,34,32,26,14,9,21,21,217,95,1,3,42,16,12,15,26,15,270,159,32,24,117,67,39,20,89,54]
[null,null,null,"Universe:  FAMILIES: $150,000 to $199,999 ",33,20,165,90,23,14,47,27,10,9,5,7,26,25,45,47,254,80,11,13,0,114,10,12,6,7,57,40,7,5,6,8,9,7,9,9,28,32,9,10,40,32,31,18,49,48]
[null,null,null,"Estimate!!Total:!!$150,000 to $199,999",57,28,233,133,62,30,51,37,46,22,39,19,133,89,80,56,500,148,65,42,35,21,16,11,51,32,186,79,3,4,34,17,42,23,46,39,184,106,56,44,121,68,104,42,92,60]
[null,null,null,"Estimate!!Total:!!$200,000 or more",20,13,111,71,89,36,70,35,11,7,59,37,74,70,210,130,494,149,33,22,14,13,23,11,18,13,195,88,10,6,33,15,14,12,41,20,169,89,39,26,137,72,106,41,64,65]
["Table B19113",null,null,"Estimate!!Median family income in the past 12 months (in 2022 inflation-adjusted dollars)",72000,27987,125865,26733,96763,6705,93896,7757,85208,23428,94957,9075,76715,20454,113229,22726,93196,6828,89970,15039,114875,10505,104464,17792,93333,13353,114047,6029,90000,43903,92250,13509,100833,8266,104808,32992,97782,18966,80430,25668,109823,15301,109659,14643,66813,14185]

{"sheet":"SData_Tables_B19201_B19202","index":59,"n_rows":49,"n_cols":50,"rows_kept":49,"cut":false,"hidden":true,"merged":[]}
["GEO_ID","GEO_ID2","SUMLEVEL",{"$f":"[1]ACS_16_5YR_B19101_with_ann!C1","v":"NAME"},{"$f":"[1]ACS_16_5YR_B19201_with_ann!D1","v":"B19201_001E"},{"$f":"[1]ACS_16_5YR_B19201_with_ann!E1","v":"B19201_001M"},{"$f":"[1]ACS_16_5YR_B19201_with_ann!F1","v":"B19201_002E"},{"$f":"[1]ACS_16_5YR_B19201_with_ann!G1","v":"B19201_002M"},{"$f":"[1]ACS_16_5YR_B19201_with_ann!H1","v":"B19201_003E"},{"$f":"[1]ACS_16_5YR_B19201_with_ann!I1","v":"B19201_003M"},{"$f":"[1]ACS_16_5YR_B19201_with_ann!J1","v":"B19201_004E"},{"$f":"[1]ACS_16_5YR_B19201_with_ann!K1","v":"B19201_004M"},{"$f":"[1]ACS_16_5YR_B19201_with_ann!L1","v":"B19201_005E"},{"$f":"[1]ACS_16_5YR_B19201_with_ann!M1","v":"B19201_005M"},{"$f":"[1]ACS_16_5YR_B19201_with_ann!N1","v":"B19201_006E"},{"$f":"[1]ACS_16_5YR_B19201_with_ann!O1","v":"B19201_006M"},{"$f":"[1]ACS_16_5YR_B19201_with_ann!P1","v":"B19201_007E"},{"$f":"[1]ACS_16_5YR_B19201_with_ann!Q1","v":"B19201_007M"},{"$f":"[1]ACS_16_5YR_B19201_with_ann!R1","v":"B19201_008E"},{"$f":"[1]ACS_16_5YR_B19201_with_ann!S1","v":"B19201_008M"},{"$f":"[1]ACS_16_5YR_B19201_with_ann!T1","v":"B19201_009E"},{"$f":"[1]ACS_16_5YR_B19201_with_ann!U1","v":"B19201_009M"},{"$f":"[1]ACS_16_5YR_B19201_with_ann!V1","v":"B19201_010E"},{"$f":"[1]ACS_16_5YR_B19201_with_ann!W1","v":"B19201_010M"},{"$f":"[1]ACS_16_5YR_B19201_with_ann!X1","v":"B19201_011E"},{"$f":"[1]ACS_16_5YR_B19201_with_ann!Y1","v":"B19201_011M"},{"$f":"[1]ACS_16_5YR_B19201_with_ann!Z1","v":"B19201_012E"},{"$f":"[1]ACS_16_5YR_B19201_with_ann!AA1","v":"B19201_012M"},{"$f":"[1]ACS_16_5YR_B19201_with_ann!AB1","v":"B19201_013E"},{"$f":"[1]ACS_16_5YR_B19201_with_ann!AC1","v":"B19201_013M"},{"$f":"[1]ACS_16_5YR_B19201_with_ann!AD1","v":"B19201_014E"},{"$f":"[1]ACS_16_5YR_B19201_with_ann!AE1","v":"B19201_014M"},{"$f":"[1]ACS_16_5YR_B19201_with_ann!AF1","v":"B19201_015E"},{"$f":"[1]ACS_16_5YR_B19201_with_ann!AG1","v":"B19201_015M"},{"$f":"[1]ACS_16_5YR_B19201_with_ann!AH1","v":"B19201_016E"},{"$f":"[1]ACS_16_5YR_B19201_with_ann!AI1","v":"B19201_016M"},{"$f":"[1]ACS_16_5YR_B19201_with_ann!AJ1","v":"B19201_017E"},{"$f":"[1]ACS_16_5YR_B19201_with_ann!AK1","v":"B19201_017M"},{"$f":"[1]ACS_16_5YR_B19202_with_ann!D1","v":"B19202_001E"},{"$f":"[1]ACS_16_5YR_B19202_with_ann!E1","v":"B19202_001M"}]
["Geography Identifier","Geography Identifier","Geographic Summary Level",{"$f":"[1]ACS_16_5YR_B19101_with_ann!C2","v":"Geographic Area Name"},{"$f":"[1]ACS_16_5YR_B19201_with_ann!D2","v":"Estimate!!Total:"},{"$f":"[1]ACS_16_5YR_B19201_with_ann!E2","v":"Margin of Error!!Total:"},{"$f":"[1]ACS_16_5YR_B19201_with_ann!F2","v":"Estimate!!Total:!!Less than $10,000"},{"$f":"[1]ACS_16_5YR_B19201_with_ann!G2","v":"Margin of Error!!Total:!!Less than $10,000"},{"$f":"[1]ACS_16_5YR_B19201_with_ann!H2","v":"Estimate!!Total:!!$10,000 to $14,999"},{"$f":"[1]ACS_16_5YR_B19201_with_ann!I2","v":"Margin of Error!!Total:!!$10,000 to $14,999"},{"$f":"[1]ACS_16_5YR_B19201_with_ann!J2","v":"Estimate!!Total:!!$15,000 to $19,999"},{"$f":"[1]ACS_16_5YR_B19201_with_ann!K2","v":"Margin of Error!!Total:!!$15,000 to $19,999"},{"$f":"[1]ACS_16_5YR_B19201_with_ann!L2","v":"Estimate!!Total:!!$20,000 to $24,999"},{"$f":"[1]ACS_16_5YR_B19201_with_ann!M2","v":"Margin of Error!!Total:!!$20,000 to $24,999"},{"$f":"[1]ACS_16_5YR_B19201_with_ann!N2","v":"Estimate!!Total:!!$25,000 to $29,999"},{"$f":"[1]ACS_16_5YR_B19201_with_ann!O2","v":"Margin of Error!!Total:!!$25,000 to $29,999"},{"$f":"[1]ACS_16_5YR_B19201_with_ann!P2","v":"Estimate!!Total:!!$30,000 to $34,999"},{"$f":"[1]ACS_16_5YR_B19201_with_ann!Q2","v":"Margin of Error!!Total:!!$30,000 to $34,999"},{"$f":"[1]ACS_16_5YR_B19201_with_ann!R2","v":"Estimate!!Total:!!$35,000 to $39,999"},{"$f":"[1]ACS_16_5YR_B19201_with_ann!S2","v":"Margin of Error!!Total:!!$35,000 to $39,999"},{"$f":"[1]ACS_16_5YR_B19201_with_ann!T2","v":"Estimate!!Total:!!$40,000 to $44,999"},{"$f":"[1]ACS_16_5YR_B19201_with_ann!U2","v":"Margin of Error!!Total:!!$40,000 to $44,999"},{"$f":"[1]ACS_16_5YR_B19201_with_ann!V2","v":"Estimate!!Total:!!$45,000 to $49,999"},{"$f":"[1]ACS_16_5YR_B19201_with_ann!W2","v":"Margin of Error!!Total:!!$45,000 to $49,999"},{"$f":"[1]ACS_16_5YR_B19201_with_ann!X2","v":"Estimate!!Total:!!$50,000 to $59,999"},{"$f":"[1]ACS_16_5YR_B19201_with_ann!Y2","v":"Margin of Error!!Total:!!$50,000 to $59,999"},{"$f":"[1]ACS_16_5YR_B19201_with_ann!Z2","v":"Estimate!!Total:!!$60,000 to $74,999"},{"$f":"[1]ACS_16_5YR_B19201_with_ann!AA2","v":"Margin of Error!!Total:!!$60,000 to $74,999"},{"$f":"[1]ACS_16_5YR_B19201_with_ann!AB2","v":"Estimate!!Total:!!$75,000 to $99,999"},{"$f":"[1]ACS_16_5YR_B19201_with_ann!AC2","v":"Margin of Error!!Total:!!$75,000 to $99,999"},{"$f":"[1]ACS_16_5YR_B19201_with_ann!AD2","v":"Estimate!!Total:!!$100,000 to $124,999"},{"$f":"[1]ACS_16_5YR_B19201_with_ann!AE2","v":"Margin of Error!!Total:!!$100,000 to $124,999"},{"$f":"[1]ACS_16_5YR_B19201_with_ann!AF2","v":"Estimate!!Total:!!$125,000 to $149,999"},{"$f":"[1]ACS_16_5YR_B19201_with_ann!AG2","v":"Margin of Error!!Total:!!$125,000 to $149,999"},{"$f":"[1]ACS_16_5YR_B19201_with_ann!AH2","v":"Estimate!!Total:!!$150,000 to $199,999"},{"$f":"[1]ACS_16_5YR_B19201_with_ann!AI2","v":"Margin of Error!!Total:!!$150,000 to $199,999"},{"$f":"[1]ACS_16_5YR_B19201_with_ann!AJ2","v":"Estimate!!Total:!!$200,000 or more"},{"$f":"[1]ACS_16_5YR_B19201_with_ann!AK2","v":"Margin of Error!!Total:!!$200,000 or more"},{"$f":"[1]ACS_16_5YR_B19202_with_ann!D2","v":"Estimate!!Median nonfamily household income in the past 12 months (in 2022 inflation-adjusted dollars)"},{"$f":"[1]ACS_16_5YR_B19202_with_ann!E2","v":"Margin of Error!!Median nonfamily household income in the past 12 months (in 2022 inflation-adjusted dollars)"}]
["06000US3300500820","0600000US3300512260","060",{"$f":"[1]ACS_16_5YR_B19201_with_ann!C44","v":"Alstead"},{"$f":"[1]ACS_16_5YR_B19201_with_ann!D44","v":269},{"$f":"[1]ACS_16_5YR_B19201_with_ann!E44","v":84},{"$f":"[1]ACS_16_5YR_B19201_with_ann!F44","v":54},{"$f":"[1]ACS_16_5YR_B19201_with_ann!G44","v":45},{"$f":"[1]ACS_16_5YR_B19201_with_ann!H44","v":47},{"$f":"[1]ACS_16_5YR_B19201_with_ann!I44","v":48},{"$f":"[1]ACS_16_5YR_B19201_with_ann!J44","v":13},{"$f":"[1]ACS_16_5YR_B19201_with_ann!K44","v":12},{"$f":"[1]ACS_16_5YR_B19201_with_ann!L44","v":26},{"$f":"[1]ACS_16_5YR_B19201_with_ann!M44","v":30},{"$f":"[1]ACS_16_5YR_B19201_with_ann!N44","v":0},{"$f":"[1]ACS_16_5YR_B19201_with_ann!O44","v":12},{"$f":"[1]ACS_16_5YR_B19201_with_ann!P44","v":20},{"$f":"[1]ACS_16_5YR_B19201_with_ann!Q44","v":21},{"$f":"[1]ACS_16_5YR_B19201_with_ann!R44","v":5},{"$f":"[1]ACS_16_5YR_B19201_with_ann!S44","v":6},{"$f":"[1]ACS_16_5YR_B19201_with_ann!T44","v":0},{"$f":"[1]ACS_16_5YR_B19201_with_ann!U44","v":12},{"$f":"[1]ACS_16_5YR_B19201_with_ann!V44","v":5},{"$f":"[1]ACS_16_5YR_B19201_with_ann!W44","v":7},{"$f":"[1]ACS_16_5YR_B19201_with_ann!X44","v":46},{"$f":"[1]ACS_16_5YR_B19201_with_ann!Y44","v":40},{"$f":"[1]ACS_16_5YR_B19201_with_ann!Z44","v":6},{"$f":"[1]ACS_16_5YR_B19201_with_ann!AA44","v":8},{"$f":"[1]ACS_16_5YR_B19201_with_ann!AB44","v":9},{"$f":"[1]ACS_16_5YR_B19201_with_ann!AC44","v":10},{"$f":"[1]ACS_16_5YR_B19201_with_ann!AD44","v":20},{"$f":"[1]ACS_16_5YR_B19201_with_ann!AE44","v":17},{"$f":"[1]ACS_16_5YR_B19201_with_ann!AF44","v":0},{"$f":"[1]ACS_16_5YR_B19201_with_ann!AG44","v":12},{"$f":"[1]ACS_16_5YR_B19201_with_ann!AH44","v":18},{"$f":"[1]ACS_16_5YR_B19201_with_ann!AI44","v":16},{"$f":"[1]ACS_16_5YR_B19201_with_ann!AJ44","v":0},{"$f":"[1]ACS_16_5YR_B19201_with_ann!AK44","v":12},{"$f":"[1]ACS_16_5YR_B19202_with_ann!D44","v":"-"},{"$f":"[1]ACS_16_5YR_B19202_with_ann!E44","v":"**"},null,{"$f":"D3","v":"Alstead"}]
["06000US3300512260","0600000US3300519140","060",{"$f":"[1]ACS_16_5YR_B19201_with_ann!C45","v":"Chesterfield"},{"$f":"[1]ACS_16_5YR_B19201_with_ann!D45","v":363},{"$f":"[1]ACS_16_5YR_B19201_with_ann!E45","v":168},{"$f":"[1]ACS_16_5YR_B19201_with_ann!F45","v":0},{"$f":"[1]ACS_16_5YR_B19201_with_ann!G45","v":12},{"$f":"[1]ACS_16_5YR_B19201_with_ann!H45","v":18},{"$f":"[1]ACS_16_5YR_B19201_with_ann!I45","v":29},{"$f":"[1]ACS_16_5YR_B19201_with_ann!J45","v":39},{"$f":"[1]ACS_16_5YR_B19201_with_ann!K45","v":39},{"$f":"[1]ACS_16_5YR_B19201_with_ann!L45","v":19},{"$f":"[1]ACS_16_5YR_B19201_with_ann!M45","v":30},{"$f":"[1]ACS_16_5YR_B19201_with_ann!N45","v":53},{"$f":"[1]ACS_16_5YR_B19201_with_ann!O45","v":80},{"$f":"[1]ACS_16_5YR_B19201_with_ann!P45","v":0},{"$f":"[1]ACS_16_5YR_B19201_with_ann!Q45","v":12},{"$f":"[1]ACS_16_5YR_B19201_with_ann!R45","v":36},{"$f":"[1]ACS_16_5YR_B19201_with_ann!S45","v":41},{"$f":"[1]ACS_16_5YR_B19201_with_ann!T45","v":73},{"$f":"[1]ACS_16_5YR_B19201_with_ann!U45","v":88},{"$f":"[1]ACS_16_5YR_B19201_with_ann!V45","v":0},{"$f":"[1]ACS_16_5YR_B19201_with_ann!W45","v":12},{"$f":"[1]ACS_16_5YR_B19201_with_ann!X45","v":0},{"$f":"[1]ACS_16_5YR_B19201_with_ann!Y45","v":12},{"$f":"[1]ACS_16_5YR_B19201_with_ann!Z45","v":94},{"$f":"[1]ACS_16_5YR_B19201_with_ann!AA45","v":89},{"$f":"[1]ACS_16_5YR_B19201_with_ann!AB45","v":12},{"$f":"[1]ACS_16_5YR_B19201_with_ann!AC45","v":18},{"$f":"[1]ACS_16_5YR_B19201_with_ann!AD45","v":0},{"$f":"[1]ACS_16_5YR_B19201_with_ann!AE45","v":12},{"$f":"[1]ACS_16_5YR_B19201_with_ann!AF45","v":0},{"$f":"[1]ACS_16_5YR_B19201_with_ann!AG45","v":12},{"$f":"[1]ACS_16_5YR_B19201_with_ann!AH45","v":19},{"$f":"[1]ACS_16_5YR_B19201_with_ann!AI45","v":30},{"$f":"[1]ACS_16_5YR_B19201_with_ann!AJ45","v":0},{"$f":"[1]ACS_16_5YR_B19201_with_ann!AK45","v":12},{"$f":"[1]ACS_16_5YR_B19202_with_ann!D45","v":40778},{"$f":"[1]ACS_16_5YR_B19202_with_ann!E45","v":11183},null,"Chesterfield"]
["06000US3300519140","0600000US3300526500","060",{"$f":"[1]ACS_16_5YR_B19201_with_ann!C46","v":"Dublin"},{"$f":"[1]ACS_16_5YR_B19201_with_ann!D46","v":108},{"$f":"[1]ACS_16_5YR_B19201_with_ann!E46","v":32},{"$f":"[1]ACS_16_5YR_B19201_with_ann!F46","v":12},{"$f":"[1]ACS_16_5YR_B19201_with_ann!G46","v":10},{"$f":"[1]ACS_16_5YR_B19201_with_ann!H46","v":3},{"$f":"[1]ACS_16_5YR_B19201_with_ann!I46","v":4},{"$f":"[1]ACS_16_5YR_B19201_with_ann!J46","v":3},{"$f":"[1]ACS_16_5YR_B19201_with_ann!K46","v":3},{"$f":"[1]ACS_16_5YR_B19201_with_ann!L46","v":5},{"$f":"[1]ACS_16_5YR_B19201_with_ann!M46","v":5},{"$f":"[1]ACS_16_5YR_B19201_with_ann!N46","v":4},{"$f":"[1]ACS_16_5YR_B19201_with_ann!O46","v":6},{"$f":"[1]ACS_16_5YR_B19201_with_ann!P46","v":5},{"$f":"[1]ACS_16_5YR_B19201_with_ann!Q46","v":6},{"$f":"[1]ACS_16_5YR_B19201_with_ann!R46","v":0},{"$f":"[1]ACS_16_5YR_B19201_with_ann!S46","v":12},{"$f":"[1]ACS_16_5YR_B19201_with_ann!T46","v":0},{"$f":"[1]ACS_16_5YR_B19201_with_ann!U46","v":12},{"$f":"[1]ACS_16_5YR_B19201_with_ann!V46","v":12},{"$f":"[1]ACS_16_5YR_B19201_with_ann!W46","v":13},{"$f":"[1]ACS_16_5YR_B19201_with_ann!X46","v":0},{"$f":"[1]ACS_16_5YR_B19201_with_ann!Y46","v":12},{"$f":"[1]ACS_16_5YR_B19201_with_ann!Z46","v":5},{"$f":"[1]ACS_16_5YR_B19201_with_ann!AA46","v":6},{"$f":"[1]ACS_16_5YR_B19201_with_ann!AB46","v":17},{"$f":"[1]ACS_16_5YR_B19201_with_ann!AC46","v":10},{"$f":"[1]ACS_16_5YR_B19201_with_ann!AD46","v":16},{"$f":"[1]ACS_16_5YR_B19201_with_ann!AE46","v":13},{"$f":"[1]ACS_16_5YR_B19201_with_ann!AF46","v":6},{"$f":"[1]ACS_16_5YR_B19201_with_ann!AG46","v":5},{"$f":"[1]ACS_16_5YR_B19201_with_ann!AH46","v":6},{"$f":"[1]ACS_16_5YR_B19201_with_ann!AI46","v":6},{"$f":"[1]ACS_16_5YR_B19201_with_ann!AJ46","v":14},{"$f":"[1]ACS_16_5YR_B19201_with_ann!AK46","v":18},{"$f":"[1]ACS_16_5YR_B19202_with_ann!D46","v":81071},{"$f":"[1]ACS_16_5YR_B19202_with_ann!E46","v":22886},null,"Dublin"]
["06000US3300526500","0600000US3300529220","060",{"$f":"[1]ACS_16_5YR_B19201_with_ann!C47","v":"Fitzwilliam"},{"$f":"[1]ACS_16_5YR_B19201_with_ann!D47","v":394},{"$f":"[1]ACS_16_5YR_B19201_with_ann!E47","v":89},{"$f":"[1]ACS_16_5YR_B19201_with_ann!F47","v":38},{"$f":"[1]ACS_16_5YR_B19201_with_ann!G47","v":29},{"$f":"[1]ACS_16_5YR_B19201_with_ann!H47","v":38},{"$f":"[1]ACS_16_5YR_B19201_with_ann!I47","v":32},{"$f":"[1]ACS_16_5YR_B19201_with_ann!J47","v":29},{"$f":"[1]ACS_16_5YR_B19201_with_ann!K47","v":29},{"$f":"[1]ACS_16_5YR_B19201_with_ann!L47","v":19},{"$f":"[1]ACS_16_5YR_B19201_with_ann!M47","v":21},{"$f":"[1]ACS_16_5YR_B19201_with_ann!N47","v":33},{"$f":"[1]ACS_16_5YR_B19201_with_ann!O47","v":33},{"$f":"[1]ACS_16_5YR_B19201_with_ann!P47","v":7},{"$f":"[1]ACS_16_5YR_B19201_with_ann!Q47","v":9},{"$f":"[1]ACS_16_5YR_B19201_with_ann!R47","v":0},{"$f":"[1]ACS_16_5YR_B19201_with_ann!S47","v":12},{"$f":"[1]ACS_16_5YR_B19201_with_ann!T47","v":25},{"$f":"[1]ACS_16_5YR_B19201_with_ann!U47","v":21},{"$f":"[1]ACS_16_5YR_B19201_with_ann!V47","v":11},{"$f":"[1]ACS_16_5YR_B19201_with_ann!W47","v":12},{"$f":"[1]ACS_16_5YR_B19201_with_ann!X47","v":54},{"$f":"[1]ACS_16_5YR_B19201_with_ann!Y47","v":37},{"$f":"[1]ACS_16_5YR_B19201_with_ann!Z47","v":21},{"$f":"[1]ACS_16_5YR_B19201_with_ann!AA47","v":28},{"$f":"[1]ACS_16_5YR_B19201_with_ann!AB47","v":26},{"$f":"[1]ACS_16_5YR_B19201_with_ann!AC47","v":17},{"$f":"[1]ACS_16_5YR_B19201_with_ann!AD47","v":48},{"$f":"[1]ACS_16_5YR_B19201_with_ann!AE47","v":45},{"$f":"[1]ACS_16_5YR_B19201_with_ann!AF47","v":0},{"$f":"[1]ACS_16_5YR_B19201_with_ann!AG47","v":12},{"$f":"[1]ACS_16_5YR_B19201_with_ann!AH47","v":11},{"$f":"[1]ACS_16_5YR_B19201_with_ann!AI47","v":11},{"$f":"[1]ACS_16_5YR_B19201_with_ann!AJ47","v":34},{"$f":"[1]ACS_16_5YR_B19201_with_ann!AK47","v":28},{"$f":"[1]ACS_16_5YR_B19202_with_ann!D47","v":48750},{"$f":"[1]ACS_16_5YR_B19202_with_ann!E47","v":16585},null,"Fitzwilliam"]
["06000US3300529220","0600000US3300534420","060",{"$f":"[1]ACS_16_5YR_B19201_with_ann!C48","v":"Gilsum"},{"$f":"[1]ACS_16_5YR_B19201_with_ann!D48","v":80},{"$f":"[1]ACS_16_5YR_B19201_with_ann!E48","v":29},{"$f":"[1]ACS_16_5YR_B19201_with_ann!F48","v":1},{"$f":"[1]ACS_16_5YR_B19201_with_ann!G48","v":2},{"$f":"[1]ACS_16_5YR_B19201_with_ann!H48","v":12},{"$f":"[1]ACS_16_5YR_B19201_with_ann!I48","v":12},{"$f":"[1]ACS_16_5YR_B19201_with_ann!J48","v":6},{"$f":"[1]ACS_16_5YR_B19201_with_ann!K48","v":5},{"$f":"[1]ACS_16_5YR_B19201_with_ann!L48","v":2},{"$f":"[1]ACS_16_5YR_B19201_with_ann!M48","v":4},{"$f":"[1]ACS_16_5YR_B19201_with_ann!N48","v":9},{"$f":"[1]ACS_16_5YR_B19201_with_ann!O48","v":7},{"$f":"[1]ACS_16_5YR_B19201_with_ann!P48","v":2},{"$f":"[1]ACS_16_5YR_B19201_with_ann!Q48","v":3},{"$f":"[1]ACS_16_5YR_B19201_with_ann!R48","v":7},{"$f":"[1]ACS_16_5YR_B19201_with_ann!S48","v":10},{"$f":"[1]ACS_16_5YR_B19201_with_ann!T48","v":4},{"$f":"[1]ACS_16_5YR_B19201_with_ann!U48","v":5},{"$f":"[1]ACS_16_5YR_B19201_with_ann!V48","v":0},{"$f":"[1]ACS_16_5YR_B19201_with_ann!W48","v":12},{"$f":"[1]ACS_16_5YR_B19201_with_ann!X48","v":8},{"$f":"[1]ACS_16_5YR_B19201_with_ann!Y48","v":7},{"$f":"[1]ACS_16_5YR_B19201_with_ann!Z48","v":15},{"$f":"[1]ACS_16_5YR_B19201_with_ann!AA48","v":13},{"$f":"[1]ACS_16_5YR_B19201_with_ann!AB48","v":6},{"$f":"[1]ACS_16_5YR_B19201_with_ann!AC48","v":7},{"$f":"[1]ACS_16_5YR_B19201_with_ann!AD48","v":4},{"$f":"[1]ACS_16_5YR_B19201_with_ann!AE48","v":5},{"$f":"[1]ACS_16_5YR_B19201_with_ann!AF48","v":2},{"$f":"[1]ACS_16_5YR_B19201_with_ann!AG48","v":3},{"$f":"[1]ACS_16_5YR_B19201_with_ann!AH48","v":0},{"$f":"[1]ACS_16_5YR_B19201_with_ann!AI48","v":12},{"$f":"[1]ACS_16_5YR_B19201_with_ann!AJ48","v":2},{"$f":"[1]ACS_16_5YR_B19201_with_ann!AK48","v":4},{"$f":"[1]ACS_16_5YR_B19202_with_ann!D48","v":40625},{"$f":"[1]ACS_16_5YR_B19202_with_ann!E48","v":16316},null,"Gilsum"]
["06000US3300534420","0600000US3300536660","060",{"$f":"[1]ACS_16_5YR_B19201_with_ann!C49","v":"Harrisville"},{"$f":"[1]ACS_16_5YR_B19201_with_ann!D49","v":103},{"$f":"[1]ACS_16_5YR_B19201_with_ann!E49","v":30},{"$f":"[1]ACS_16_5YR_B19201_with_ann!F49","v":7},{"$f":"[1]ACS_16_5YR_B19201_with_ann!G49","v":9},{"$f":"[1]ACS_16_5YR_B19201_with_ann!H49","v":3},{"$f":"[1]ACS_16_5YR_B19201_with_ann!I49","v":4},{"$f":"[1]ACS_16_5YR_B19201_with_ann!J49","v":3},{"$f":"[1]ACS_16_5YR_B19201_with_ann!K49","v":4},{"$f":"[1]ACS_16_5YR_B19201_with_ann!L49","v":7},{"$f":"[1]ACS_16_5YR_B19201_with_ann!M49","v":7},{"$f":"[1]ACS_16_5YR_B19201_with_ann!N49","v":0},{"$f":"[1]ACS_16_5YR_B19201_with_ann!O49","v":12},{"$f":"[1]ACS_16_5YR_B19201_with_ann!P49","v":7},{"$f":"[1]ACS_16_5YR_B19201_with_ann!Q49","v":9},{"$f":"[1]ACS_16_5YR_B19201_with_ann!R49","v":0},{"$f":"[1]ACS_16_5YR_B19201_with_ann!S49","v":12},{"$f":"[1]ACS_16_5YR_B19201_with_ann!T49","v":11},{"$f":"[1]ACS_16_5YR_B19201_with_ann!U49","v":12},{"$f":"[1]ACS_16_5YR_B19201_with_ann!V49","v":7},{"$f":"[1]ACS_16_5YR_B19201_with_ann!W49","v":7},{"$f":"[1]ACS_16_5YR_B19201_with_ann!X49","v":0},{"$f":"[1]ACS_16_5YR_B19201_with_ann!Y49","v":12},{"$f":"[1]ACS_16_5YR_B19201_with_ann!Z49","v":23},{"$f":"[1]ACS_16_5YR_B19201_with_ann!AA49","v":12},{"$f":"[1]ACS_16_5YR_B19201_with_ann!AB49","v":20},{"$f":"[1]ACS_16_5YR_B19201_with_ann!AC49","v":17},{"$f":"[1]ACS_16_5YR_B19201_with_ann!AD49","v":3},{"$f":"[1]ACS_16_5YR_B19201_with_ann!AE49","v":4},{"$f":"[1]ACS_16_5YR_B19201_with_ann!AF49","v":4},{"$f":"[1]ACS_16_5YR_B19201_with_ann!AG49","v":5},{"$f":"[1]ACS_16_5YR_B19201_with_ann!AH49","v":0},{"$f":"[1]ACS_16_5YR_B19201_with_ann!AI49","v":12},{"$f":"[1]ACS_16_5YR_B19201_with_ann!AJ49","v":8},{"$f":"[1]ACS_16_5YR_B19201_with_ann!AK49","v":9},{"$f":"[1]ACS_16_5YR_B19202_with_ann!D49","v":62321},{"$f":"[1]ACS_16_5YR_B19202_with_ann!E49","v":20573},null,"Harrisville"]
["06000US3300536660","0600000US3300538500","060",{"$f":"[1]ACS_16_5YR_B19201_with_ann!C50","v":"Hinsdale"},{"$f":"[1]ACS_16_5YR_B19201_with_ann!D50","v":545},{"$f":"[1]ACS_16_5YR_B19201_with_ann!E50","v":133},{"$f":"[1]ACS_16_5YR_B19201_with_ann!F50","v":29},{"$f":"[1]ACS_16_5YR_B19201_with_ann!G50","v":47},{"$f":"[1]ACS_16_5YR_B19201_with_ann!H50","v":14},{"$f":"[1]ACS_16_5YR_B19201_with_ann!I50","v":21},{"$f":"[1]ACS_16_5YR_B19201_with_ann!J50","v":3},{"$f":"[1]ACS_16_5YR_B19201_with_ann!K50","v":5},{"$f":"[1]ACS_16_5YR_B19201_with_ann!L50","v":47},{"$f":"[1]ACS_16_5YR_B19201_with_ann!M50","v":38},{"$f":"[1]ACS_16_5YR_B19201_with_ann!N50","v":48},{"$f":"[1]ACS_16_5YR_B19201_with_ann!O50","v":36},{"$f":"[1]ACS_16_5YR_B19201_with_ann!P50","v":34},{"$f":"[1]ACS_16_5YR_B19201_with_ann!Q50","v":31},{"$f":"[1]ACS_16_5YR_B19201_with_ann!R50","v":19},{"$f":"[1]ACS_16_5YR_B19201_with_ann!S50","v":26},{"$f":"[1]ACS_16_5YR_B19201_with_ann!T50","v":69},{"$f":"[1]ACS_16_5YR_B19201_with_ann!U50","v":92},{"$f":"[1]ACS_16_5YR_B19201_with_ann!V50","v":0},{"$f":"[1]ACS_16_5YR_B19201_with_ann!W50","v":12},{"$f":"[1]ACS_16_5YR_B19201_with_ann!X50","v":48},{"$f":"[1]ACS_16_5YR_B19201_with_ann!Y50","v":39},{"$f":"[1]ACS_16_5YR_B19201_with_ann!Z50","v":91},{"$f":"[1]ACS_16_5YR_B19201_with_ann!AA50","v":71},{"$f":"[1]ACS_16_5YR_B19201_with_ann!AB50","v":90},{"$f":"[1]ACS_16_5YR_B19201_with_ann!AC50","v":67},{"$f":"[1]ACS_16_5YR_B19201_with_ann!AD50","v":11},{"$f":"[1]ACS_16_5YR_B19201_with_ann!AE50","v":18},{"$f":"[1]ACS_16_5YR_B19201_with_ann!AF50","v":13},{"$f":"[1]ACS_16_5YR_B19201_with_ann!AG50","v":21},{"$f":"[1]ACS_16_5YR_B19201_with_ann!AH50","v":10},{"$f":"[1]ACS_16_5YR_B19201_with_ann!AI50","v":18},{"$f":"[1]ACS_16_5YR_B19201_with_ann!AJ50","v":19},{"$f":"[1]ACS_16_5YR_B19201_with_ann!AK50","v":30},{"$f":"[1]ACS_16_5YR_B19202_with_ann!D50","v":51080},{"$f":"[1]ACS_16_5YR_B19202_with_ann!E50","v":17017},null,"Hinsdale"]
["06000US3300538500","0600000US3300539300","060",{"$f":"[1]ACS_16_5YR_B19201_with_ann!C51","v":"Jaffrey"},{"$f":"[1]ACS_16_5YR_B19201_with_ann!D51","v":652},{"$f":"[1]ACS_16_5YR_B19201_with_ann!E51","v":266},{"$f":"[1]ACS_16_5YR_B19201_with_ann!F51","v":40},{"$f":"[1]ACS_16_5YR_B19201_with_ann!G51","v":38},{"$f":"[1]ACS_16_5YR_B19201_with_ann!H51","v":28},{"$f":"[1]ACS_16_5YR_B19201_with_ann!I51","v":42},{"$f":"[1]ACS_16_5YR_B19201_with_ann!J51","v":11},{"$f":"[1]ACS_16_5YR_B19201_with_ann!K51","v":17},{"$f":"[1]ACS_16_5YR_B19201_with_ann!L51","v":28},{"$f":"[1]ACS_16_5YR_B19201_with_ann!M51","v":34},{"$f":"[1]ACS_16_5YR_B19201_with_ann!N51","v":47},{"$f":"[1]ACS_16_5YR_B19201_with_ann!O51","v":46},{"$f":"[1]ACS_16_5YR_B19201_with_ann!P51","v":102},{"$f":"[1]ACS_16_5YR_B19201_with_ann!Q51","v":88},{"$f":"[1]ACS_16_5YR_B19201_with_ann!R51","v":13},{"$f":"[1]ACS_16_5YR_B19201_with_ann!S51","v":20},{"$f":"[1]ACS_16_5YR_B19201_with_ann!T51","v":11},{"$f":"[1]ACS_16_5YR_B19201_with_ann!U51","v":18},{"$f":"[1]ACS_16_5YR_B19201_with_ann!V51","v":15},{"$f":"[1]ACS_16_5YR_B19201_with_ann!W51","v":24},{"$f":"[1]ACS_16_5YR_B19201_with_ann!X51","v":68},{"$f":"[1]ACS_16_5YR_B19201_with_ann!Y51","v":62},{"$f":"[1]ACS_16_5YR_B19201_with_ann!Z51","v":174},{"$f":"[1]ACS_16_5YR_B19201_with_ann!AA51","v":205},{"$f":"[1]ACS_16_5YR_B19201_with_ann!AB51","v":0},{"$f":"[1]ACS_16_5YR_B19201_with_ann!AC51","v":17},{"$f":"[1]ACS_16_5YR_B19201_with_ann!AD51","v":77},{"$f":"[1]ACS_16_5YR_B19201_with_ann!AE51","v":80},{"$f":"[1]ACS_16_5YR_B19201_with_ann!AF51","v":21},{"$f":"[1]ACS_16_5YR_B19201_with_ann!AG51","v":36},{"$f":"[1]ACS_16_5YR_B19201_with_ann!AH51","v":17},{"$f":"[1]ACS_16_5YR_B19201_with_ann!AI51","v":28},{"$f":"[1]ACS_16_5YR_B19201_with_ann!AJ51","v":0},{"$f":"[1]ACS_16_5YR_B19201_with_ann!AK51","v":17},{"$f":"[1]ACS_16_5YR_B19202_with_ann!D51","v":54096},{"$f":"[1]ACS_16_5YR_B19202_with_ann!E51","v":26489},null,"Jaffrey"]
["06000US3300539300","0600000US3300545460","060",{"$f":"[1]ACS_16_5YR_B19201_with_ann!C52","v":"Keene"},{"$f":"[1]ACS_16_5YR_B19201_with_ann!D52","v":4718},{"$f":"[1]ACS_16_5YR_B19201_with_ann!E52","v":494},{"$f":"[1]ACS_16_5YR_B19201_with_ann!F52","v":189},{"$f":"[1]ACS_16_5YR_B19201_with_ann!G52","v":113},{"$f":"[1]ACS_16_5YR_B19201_with_ann!H52","v":465},{"$f":"[1]ACS_16_5YR_B19201_with_ann!I52","v":163},{"$f":"[1]ACS_16_5YR_B19201_with_ann!J52","v":595},{"$f":"[1]ACS_16_5YR_B19201_with_ann!K52","v":202},{"$f":"[1]ACS_16_5YR_B19201_with_ann!L52","v":169},{"$f":"[1]ACS_16_5YR_B19201_with_ann!M52","v":90},{"$f":"[1]ACS_16_5YR_B19201_with_ann!N52","v":253},{"$f":"[1]ACS_16_5YR_B19201_with_ann!O52","v":127},{"$f":"[1]ACS_16_5YR_B19201_with_ann!P52","v":382},{"$f":"[1]ACS_16_5YR_B19201_with_ann!Q52","v":170},{"$f":"[1]ACS_16_5YR_B19201_with_ann!R52","v":261},{"$f":"[1]ACS_16_5YR_B19201_with_ann!S52","v":94},{"$f":"[1]ACS_16_5YR_B19201_with_ann!T52","v":118},{"$f":"[1]ACS_16_5YR_B19201_with_ann!U52","v":73},{"$f":"[1]ACS_16_5YR_B19201_with_ann!V52","v":221},{"$f":"[1]ACS_16_5YR_B19201_with_ann!W52","v":128},{"$f":"[1]ACS_16_5YR_B19201_with_ann!X52","v":446},{"$f":"[1]ACS_16_5YR_B19201_with_ann!Y52","v":128},{"$f":"[1]ACS_16_5YR_B19201_with_ann!Z52","v":181},{"$f":"[1]ACS_16_5YR_B19201_with_ann!AA52","v":82},{"$f":"[1]ACS_16_5YR_B19201_with_ann!AB52","v":639},{"$f":"[1]ACS_16_5YR_B19201_with_ann!AC52","v":215},{"$f":"[1]ACS_16_5YR_B19201_with_ann!AD52","v":267},{"$f":"[1]ACS_16_5YR_B19201_with_ann!AE52","v":108},{"$f":"[1]ACS_16_5YR_B19201_with_ann!AF52","v":308},{"$f":"[1]ACS_16_5YR_B19201_with_ann!AG52","v":181},{"$f":"[1]ACS_16_5YR_B19201_with_ann!AH52","v":118},{"$f":"[1]ACS_16_5YR_B19201_with_ann!AI52","v":122},{"$f":"[1]ACS_16_5YR_B19201_with_ann!AJ52","v":106},{"$f":"[1]ACS_16_5YR_B19201_with_ann!AK52","v":72},{"$f":"[1]ACS_16_5YR_B19202_with_ann!D52","v":41654},{"$f":"[1]ACS_16_5YR_B19202_with_ann!E52","v":8469},null,"Keene"]
["06000US3300545460","0600000US3300545700","060",{"$f":"[1]ACS_16_5YR_B19201_with_ann!C53","v":"Marlborough"},{"$f":"[1]ACS_16_5YR_B19201_with_ann!D53","v":385},{"$f":"[1]ACS_16_5YR_B19201_with_ann!E53","v":81},{"$f":"[1]ACS_16_5YR_B19201_with_ann!F53","v":20},{"$f":"[1]ACS_16_5YR_B19201_with_ann!G53","v":18},{"$f":"[1]ACS_16_5YR_B19201_with_ann!H53","v":38},{"$f":"[1]ACS_16_5YR_B19201_with_ann!I53","v":30},{"$f":"[1]ACS_16_5YR_B19201_with_ann!J53","v":11},{"$f":"[1]ACS_16_5YR_B19201_with_ann!K53","v":17},{"$f":"[1]ACS_16_5YR_B19201_with_ann!L53","v":53},{"$f":"[1]ACS_16_5YR_B19201_with_ann!M53","v":40},{"$f":"[1]ACS_16_5YR_B19201_with_ann!N53","v":17},{"$f":"[1]ACS_16_5YR_B19201_with_ann!O53","v":15},{"$f":"[1]ACS_16_5YR_B19201_with_ann!P53","v":26},{"$f":"[1]ACS_16_5YR_B19201_with_ann!Q53","v":20},{"$f":"[1]ACS_16_5YR_B19201_with_ann!R53","v":43},{"$f":"[1]ACS_16_5YR_B19201_with_ann!S53","v":29},{"$f":"[1]ACS_16_5YR_B19201_with_ann!T53","v":0},{"$f":"[1]ACS_16_5YR_B19201_with_ann!U53","v":12},{"$f":"[1]ACS_16_5YR_B19201_with_ann!V53","v":6},{"$f":"[1]ACS_16_5YR_B19201_with_ann!W53","v":9},{"$f":"[1]ACS_16_5YR_B19201_with_ann!X53","v":34},{"$f":"[1]ACS_16_5YR_B19201_with_ann!Y53","v":28},{"$f":"[1]ACS_16_5YR_B19201_with_ann!Z53","v":40},{"$f":"[1]ACS_16_5YR_B19201_with_ann!AA53","v":31},{"$f":"[1]ACS_16_5YR_B19201_with_ann!AB53","v":6},{"$f":"[1]ACS_16_5YR_B19201_with_ann!AC53","v":12},{"$f":"[1]ACS_16_5YR_B19201_with_ann!AD53","v":5},{"$f":"[1]ACS_16_5YR_B19201_with_ann!AE53","v":7},{"$f":"[1]ACS_16_5YR_B19201_with_ann!AF53","v":38},{"$f":"[1]ACS_16_5YR_B19201_with_ann!AG53","v":40},{"$f":"[1]ACS_16_5YR_B19201_with_ann!AH53","v":21},{"$f":"[1]ACS_16_5YR_B19201_with_ann!AI53","v":22},{"$f":"[1]ACS_16_5YR_B19201_with_ann!AJ53","v":27},{"$f":"[1]ACS_16_5YR_B19201_with_ann!AK53","v":32},{"$f":"[1]ACS_16_5YR_B19202_with_ann!D53","v":37083},{"$f":"[1]ACS_16_5YR_B19202_with_ann!E53","v":16531},null,"Marlborough"]
["06000US3300545700","0600000US3300550580","060",{"$f":"[1]ACS_16_5YR_B19201_with_ann!C54","v":"Marlow"},{"$f":"[1]ACS_16_5YR_B19201_with_ann!D54","v":67},{"$f":"[1]ACS_16_5YR_B19201_with_ann!E54","v":22},{"$f":"[1]ACS_16_5YR_B19201_with_ann!F54","v":2},{"$f":"[1]ACS_16_5YR_B19201_with_ann!G54","v":3},{"$f":"[1]ACS_16_5YR_B19201_with_ann!H54","v":12},{"$f":"[1]ACS_16_5YR_B19201_with_ann!I54","v":12},{"$f":"[1]ACS_16_5YR_B19201_with_ann!J54","v":4},{"$f":"[1]ACS_16_5YR_B19201_with_ann!K54","v":5},{"$f":"[1]ACS_16_5YR_B19201_with_ann!L54","v":3},{"$f":"[1]ACS_16_5YR_B19201_with_ann!M54","v":4},{"$f":"[1]ACS_16_5YR_B19201_with_ann!N54","v":9},{"$f":"[1]ACS_16_5YR_B19201_with_ann!O54","v":11},{"$f":"[1]ACS_16_5YR_B19201_with_ann!P54","v":3},{"$f":"[1]ACS_16_5YR_B19201_with_ann!Q54","v":5},{"$f":"[1]ACS_16_5YR_B19201_with_ann!R54","v":2},{"$f":"[1]ACS_16_5YR_B19201_with_ann!S54","v":4},{"$f":"[1]ACS_16_5YR_B19201_with_ann!T54","v":0},{"$f":"[1]ACS_16_5YR_B19201_with_ann!U54","v":12},{"$f":"[1]ACS_16_5YR_B19201_with_ann!V54","v":0},{"$f":"[1]ACS_16_5YR_B19201_with_ann!W54","v":12},{"$f":"[1]ACS_16_5YR_B19201_with_ann!X54","v":4},{"$f":"[1]ACS_16_5YR_B19201_with_ann!Y54","v":4},{"$f":"[1]ACS_16_5YR_B19201_with_ann!Z54","v":2},{"$f":"[1]ACS_16_5YR_B19201_with_ann!AA54","v":3},{"$f":"[1]ACS_16_5YR_B19201_with_ann!AB54","v":17},{"$f":"[1]ACS_16_5YR_B19201_with_ann!AC54","v":14},{"$f":"[1]ACS_16_5YR_B19201_with_ann!AD54","v":7},{"$f":"[1]ACS_16_5YR_B19201_with_ann!AE54","v":6},{"$f":"[1]ACS_16_5YR_B19201_with_ann!AF54","v":0},{"$f":"[1]ACS_16_5YR_B19201_with_ann!AG54","v":12},{"$f":"[1]ACS_16_5YR_B19201_with_ann!AH54","v":0},{"$f":"[1]ACS_16_5YR_B19201_with_ann!AI54","v":12},{"$f":"[1]ACS_16_5YR_B19201_with_ann!AJ54","v":2},{"$f":"[1]ACS_16_5YR_B19201_with_ann!AK54","v":3},{"$f":"[1]ACS_16_5YR_B19202_with_ann!D54","v":"-"},{"$f":"[1]ACS_16_5YR_B19202_with_ann!E54","v":"**"},null,"Marlow"]
["06000US3300550580","0600000US3300564420","060",{"$f":"[1]ACS_16_5YR_B19201_with_ann!C55","v":"Nelson"},{"$f":"[1]ACS_16_5YR_B19201_with_ann!D55","v":79},{"$f":"[1]ACS_16_5YR_B19201_with_ann!E55","v":24},{"$f":"[1]ACS_16_5YR_B19201_with_ann!F55","v":1},{"$f":"[1]ACS_16_5YR_B19201_with_ann!G55","v":4},{"$f":"[1]ACS_16_5YR_B19201_with_ann!H55","v":0},{"$f":"[1]ACS_16_5YR_B19201_with_ann!I55","v":12},{"$f":"[1]ACS_16_5YR_B19201_with_ann!J55","v":3},{"$f":"[1]ACS_16_5YR_B19201_with_ann!K55","v":3},{"$f":"[1]ACS_16_5YR_B19201_with_ann!L55","v":2},{"$f":"[1]ACS_16_5YR_B19201_with_ann!M55","v":3},{"$f":"[1]ACS_16_5YR_B19201_with_ann!N55","v":2},{"$f":"[1]ACS_16_5YR_B19201_with_ann!O55","v":5},{"$f":"[1]ACS_16_5YR_B19201_with_ann!P55","v":7},{"$f":"[1]ACS_16_5YR_B19201_with_ann!Q55","v":6},{"$f":"[1]ACS_16_5YR_B19201_with_ann!R55","v":3},{"$f":"[1]ACS_16_5YR_B19201_with_ann!S55","v":4},{"$f":"[1]ACS_16_5YR_B19201_with_ann!T55","v":4},{"$f":"[1]ACS_16_5YR_B19201_with_ann!U55","v":4},{"$f":"[1]ACS_16_5YR_B19201_with_ann!V55","v":4},{"$f":"[1]ACS_16_5YR_B19201_with_ann!W55","v":4},{"$f":"[1]ACS_16_5YR_B19201_with_ann!X55","v":7},{"$f":"[1]ACS_16_5YR_B19201_with_ann!Y55","v":5},{"$f":"[1]ACS_16_5YR_B19201_with_ann!Z55","v":11},{"$f":"[1]ACS_16_5YR_B19201_with_ann!AA55","v":7},{"$f":"[1]ACS_16_5YR_B19201_with_ann!AB55","v":12},{"$f":"[1]ACS_16_5YR_B19201_with_ann!AC55","v":11},{"$f":"[1]ACS_16_5YR_B19201_with_ann!AD55","v":0},{"$f":"[1]ACS_16_5YR_B19201_with_ann!AE55","v":12},{"$f":"[1]ACS_16_5YR_B19201_with_ann!AF55","v":8},{"$f":"[1]ACS_16_5YR_B19201_with_ann!AG55","v":9},{"$f":"[1]ACS_16_5YR_B19201_with_ann!AH55","v":2},{"$f":"[1]ACS_16_5YR_B19201_with_ann!AI55","v":3},{"$f":"[1]ACS_16_5YR_B19201_with_ann!AJ55","v":13},{"$f":"[1]ACS_16_5YR_B19201_with_ann!AK55","v":11},{"$f":"[1]ACS_16_5YR_B19202_with_ann!D55","v":64583},{"$f":"[1]ACS_16_5YR_B19202_with_ann!E55","v":15588},null,"Nelson"]
["06000US3300564420","0600000US3300564580","060",{"$f":"[1]ACS_16_5YR_B19201_with_ann!C56","v":"Richmond"},{"$f":"[1]ACS_16_5YR_B19201_with_ann!D56","v":77},{"$f":"[1]ACS_16_5YR_B19201_with_ann!E56","v":29},{"$f":"[1]ACS_16_5YR_B19201_with_ann!F56","v":0},{"$f":"[1]ACS_16_5YR_B19201_with_ann!G56","v":12},{"$f":"[1]ACS_16_5YR_B19201_with_ann!H56","v":3},{"$f":"[1]ACS_16_5YR_B19201_with_ann!I56","v":5},{"$f":"[1]ACS_16_5YR_B19201_with_ann!J56","v":19},{"$f":"[1]ACS_16_5YR_B19201_with_ann!K56","v":16},{"$f":"[1]ACS_16_5YR_B19201_with_ann!L56","v":0},{"$f":"[1]ACS_16_5YR_B19201_with_ann!M56","v":12},{"$f":"[1]ACS_16_5YR_B19201_with_ann!N56","v":3},{"$f":"[1]ACS_16_5YR_B19201_with_ann!O56","v":5},{"$f":"[1]ACS_16_5YR_B19201_with_ann!P56","v":6},{"$f":"[1]ACS_16_5YR_B19201_with_ann!Q56","v":7},{"$f":"[1]ACS_16_5YR_B19201_with_ann!R56","v":0},{"$f":"[1]ACS_16_5YR_B19201_with_ann!S56","v":12},{"$f":"[1]ACS_16_5YR_B19201_with_ann!T56","v":6},{"$f":"[1]ACS_16_5YR_B19201_with_ann!U56","v":6},{"$f":"[1]ACS_16_5YR_B19201_with_ann!V56","v":0},{"$f":"[1]ACS_16_5YR_B19201_with_ann!W56","v":12},{"$f":"[1]ACS_16_5YR_B19201_with_ann!X56","v":1},{"$f":"[1]ACS_16_5YR_B19201_with_ann!Y56","v":3},{"$f":"[1]ACS_16_5YR_B19201_with_ann!Z56","v":16},{"$f":"[1]ACS_16_5YR_B19201_with_ann!AA56","v":20},{"$f":"[1]ACS_16_5YR_B19201_with_ann!AB56","v":13},{"$f":"[1]ACS_16_5YR_B19201_with_ann!AC56","v":9},{"$f":"[1]ACS_16_5YR_B19201_with_ann!AD56","v":8},{"$f":"[1]ACS_16_5YR_B19201_with_ann!AE56","v":7},{"$f":"[1]ACS_16_5YR_B19201_with_ann!AF56","v":0},{"$f":"[1]ACS_16_5YR_B19201_with_ann!AG56","v":12},{"$f":"[1]ACS_16_5YR_B19201_with_ann!AH56","v":2},{"$f":"[1]ACS_16_5YR_B19201_with_ann!AI56","v":5},{"$f":"[1]ACS_16_5YR_B19201_with_ann!AJ56","v":0},{"$f":"[1]ACS_16_5YR_B19201_with_ann!AK56","v":12},{"$f":"[1]ACS_16_5YR_B19202_with_ann!D56","v":60104},{"$f":"[1]ACS_16_5YR_B19202_with_ann!E56","v":39839},null,"Richmond"]
["06000US3300564580","0600000US3300565700","060",{"$f":"[1]ACS_16_5YR_B19201_with_ann!C57","v":"Rindge"},{"$f":"[1]ACS_16_5YR_B19201_with_ann!D57","v":521},{"$f":"[1]ACS_16_5YR_B19201_with_ann!E57","v":144},{"$f":"[1]ACS_16_5YR_B19201_with_ann!F57","v":0},{"$f":"[1]ACS_16_5YR_B19201_with_ann!G57","v":17},{"$f":"[1]ACS_16_5YR_B19201_with_ann!H57","v":14},{"$f":"[1]ACS_16_5YR_B19201_with_ann!I57","v":17},{"$f":"[1]ACS_16_5YR_B19201_with_ann!J57","v":22},{"$f":"[1]ACS_16_5YR_B19201_with_ann!K57","v":20},{"$f":"[1]ACS_16_5YR_B19201_with_ann!L57","v":47},{"$f":"[1]ACS_16_5YR_B19201_with_ann!M57","v":46},{"$f":"[1]ACS_16_5YR_B19201_with_ann!N57","v":32},{"$f":"[1]ACS_16_5YR_B19201_with_ann!O57","v":25},{"$f":"[1]ACS_16_5YR_B19201_with_ann!P57","v":7},{"$f":"[1]ACS_16_5YR_B19201_with_ann!Q57","v":11},{"$f":"[1]ACS_16_5YR_B19201_with_ann!R57","v":14},{"$f":"[1]ACS_16_5YR_B19201_with_ann!S57","v":23},{"$f":"[1]ACS_16_5YR_B19201_with_ann!T57","v":48},{"$f":"[1]ACS_16_5YR_B19201_with_ann!U57","v":46},{"$f":"[1]ACS_16_5YR_B19201_with_ann!V57","v":13},{"$f":"[1]ACS_16_5YR_B19201_with_ann!W57","v":15},{"$f":"[1]ACS_16_5YR_B19201_with_ann!X57","v":103},{"$f":"[1]ACS_16_5YR_B19201_with_ann!Y57","v":75},{"$f":"[1]ACS_16_5YR_B19201_with_ann!Z57","v":92},{"$f":"[1]ACS_16_5YR_B19201_with_ann!AA57","v":72},{"$f":"[1]ACS_16_5YR_B19201_with_ann!AB57","v":57},{"$f":"[1]ACS_16_5YR_B19201_with_ann!AC57","v":41},{"$f":"[1]ACS_16_5YR_B19201_with_ann!AD57","v":37},{"$f":"[1]ACS_16_5YR_B19201_with_ann!AE57","v":37},{"$f":"[1]ACS_16_5YR_B19201_with_ann!AF57","v":21},{"$f":"[1]ACS_16_5YR_B19201_with_ann!AG57","v":23},{"$f":"[1]ACS_16_5YR_B19201_with_ann!AH57","v":14},{"$f":"[1]ACS_16_5YR_B19201_with_ann!AI57","v":16},{"$f":"[1]ACS_16_5YR_B19201_with_ann!AJ57","v":0},{"$f":"[1]ACS_16_5YR_B19201_with_ann!AK57","v":17},{"$f":"[1]ACS_16_5YR_B19202_with_ann!D57","v":56580},{"$f":"[1]ACS_16_5YR_B19202_with_ann!E57","v":4224},null,"Rindge"]
["06000US3300565700","0600000US3300573700","060",{"$f":"[1]ACS_16_5YR_B19201_with_ann!C58","v":"Roxbury"},{"$f":"[1]ACS_16_5YR_B19201_with_ann!D58","v":29},{"$f":"[1]ACS_16_5YR_B19201_with_ann!E58","v":13},{"$f":"[1]ACS_16_5YR_B19201_with_ann!F58","v":0},{"$f":"[1]ACS_16_5YR_B19201_with_ann!G58","v":12},{"$f":"[1]ACS_16_5YR_B19201_with_ann!H58","v":1},{"$f":"[1]ACS_16_5YR_B19201_with_ann!I58","v":2},{"$f":"[1]ACS_16_5YR_B19201_with_ann!J58","v":0},{"$f":"[1]ACS_16_5YR_B19201_with_ann!K58","v":12},{"$f":"[1]ACS_16_5YR_B19201_with_ann!L58","v":4},{"$f":"[1]ACS_16_5YR_B19201_with_ann!M58","v":6},{"$f":"[1]ACS_16_5YR_B19201_with_ann!N58","v":4},{"$f":"[1]ACS_16_5YR_B19201_with_ann!O58","v":4},{"$f":"[1]ACS_16_5YR_B19201_with_ann!P58","v":2},{"$f":"[1]ACS_16_5YR_B19201_with_ann!Q58","v":3},{"$f":"[1]ACS_16_5YR_B19201_with_ann!R58","v":3},{"$f":"[1]ACS_16_5YR_B19201_with_ann!S58","v":3},{"$f":"[1]ACS_16_5YR_B19201_with_ann!T58","v":1},{"$f":"[1]ACS_16_5YR_B19201_with_ann!U58","v":3},{"$f":"[1]ACS_16_5YR_B19201_with_ann!V58","v":3},{"$f":"[1]ACS_16_5YR_B19201_with_ann!W58","v":3},{"$f":"[1]ACS_16_5YR_B19201_with_ann!X58","v":2},{"$f":"[1]ACS_16_5YR_B19201_with_ann!Y58","v":3},{"$f":"[1]ACS_16_5YR_B19201_with_ann!Z58","v":0},{"$f":"[1]ACS_16_5YR_B19201_with_ann!AA58","v":12},{"$f":"[1]ACS_16_5YR_B19201_with_ann!AB58","v":3},{"$f":"[1]ACS_16_5YR_B19201_with_ann!AC58","v":5},{"$f":"[1]ACS_16_5YR_B19201_with_ann!AD58","v":5},{"$f":"[1]ACS_16_5YR_B19201_with_ann!AE58","v":8},{"$f":"[1]ACS_16_5YR_B19201_with_ann!AF58","v":0},{"$f":"[1]ACS_16_5YR_B19201_with_ann!AG58","v":12},{"$f":"[1]ACS_16_5YR_B19201_with_ann!AH58","v":1},{"$f":"[1]ACS_16_5YR_B19201_with_ann!AI58","v":3},{"$f":"[1]ACS_16_5YR_B19201_with_ann!AJ58","v":0},{"$f":"[1]ACS_16_5YR_B19201_with_ann!AK58","v":12},{"$f":"[1]ACS_16_5YR_B19202_with_ann!D58","v":43750},{"$f":"[1]ACS_16_5YR_B19202_with_ann!E58","v":21996},null,"Roxbury"]
["06000US3300573700","0600000US3300574900","060",{"$f":"[1]ACS_16_5YR_B19201_with_ann!C59","v":"Stoddard"},{"$f":"[1]ACS_16_5YR_B19201_with_ann!D59","v":139},{"$f":"[1]ACS_16_5YR_B19201_with_ann!E59","v":39},{"$f":"[1]ACS_16_5YR_B19201_with_ann!F59","v":10},{"$f":"[1]ACS_16_5YR_B19201_with_ann!G59","v":13},{"$f":"[1]ACS_16_5YR_B19201_with_ann!H59","v":2},{"$f":"[1]ACS_16_5YR_B19201_with_ann!I59","v":4},{"$f":"[1]ACS_16_5YR_B19201_with_ann!J59","v":0},{"$f":"[1]ACS_16_5YR_B19201_with_ann!K59","v":12},{"$f":"[1]ACS_16_5YR_B19201_with_ann!L59","v":8},{"$f":"[1]ACS_16_5YR_B19201_with_ann!M59","v":9},{"$f":"[1]ACS_16_5YR_B19201_with_ann!N59","v":6},{"$f":"[1]ACS_16_5YR_B19201_with_ann!O59","v":6},{"$f":"[1]ACS_16_5YR_B19201_with_ann!P59","v":13},{"$f":"[1]ACS_16_5YR_B19201_with_ann!Q59","v":7},{"$f":"[1]ACS_16_5YR_B19201_with_ann!R59","v":14},{"$f":"[1]ACS_16_5YR_B19201_with_ann!S59","v":14},{"$f":"[1]ACS_16_5YR_B19201_with_ann!T59","v":3},{"$f":"[1]ACS_16_5YR_B19201_with_ann!U59","v":4},{"$f":"[1]ACS_16_5YR_B19201_with_ann!V59","v":3},{"$f":"[1]ACS_16_5YR_B19201_with_ann!W59","v":4},{"$f":"[1]ACS_16_5YR_B19201_with_ann!X59","v":7},{"$f":"[1]ACS_16_5YR_B19201_with_ann!Y59","v":6},{"$f":"[1]ACS_16_5YR_B19201_with_ann!Z59","v":30},{"$f":"[1]ACS_16_5YR_B19201_with_ann!AA59","v":21},{"$f":"[1]ACS_16_5YR_B19201_with_ann!AB59","v":11},{"$f":"[1]ACS_16_5YR_B19201_with_ann!AC59","v":8},{"$f":"[1]ACS_16_5YR_B19201_with_ann!AD59","v":3},{"$f":"[1]ACS_16_5YR_B19201_with_ann!AE59","v":4},{"$f":"[1]ACS_16_5YR_B19201_with_ann!AF59","v":16},{"$f":"[1]ACS_16_5YR_B19201_with_ann!AG59","v":14},{"$f":"[1]ACS_16_5YR_B19201_with_ann!AH59","v":10},{"$f":"[1]ACS_16_5YR_B19201_with_ann!AI59","v":14},{"$f":"[1]ACS_16_5YR_B19201_with_ann!AJ59","v":3},{"$f":"[1]ACS_16_5YR_B19201_with_ann!AK59","v":4},{"$f":"[1]ACS_16_5YR_B19202_with_ann!D59","v":65083},{"$f":"[1]ACS_16_5YR_B19202_with_ann!E59","v":19125},null,"Stoddard"]
["06000US3300574900","0600000US3300575300","060",{"$f":"[1]ACS_16_5YR_B19201_with_ann!C60","v":"Sullivan"},{"$f":"[1]ACS_16_5YR_B19201_with_ann!D60","v":85},{"$f":"[1]ACS_16_5YR_B19201_with_ann!E60","v":24},{"$f":"[1]ACS_16_5YR_B19201_with_ann!F60","v":0},{"$f":"[1]ACS_16_5YR_B19201_with_ann!G60","v":12},{"$f":"[1]ACS_16_5YR_B19201_with_ann!H60","v":8},{"$f":"[1]ACS_16_5YR_B19201_with_ann!I60","v":9},{"$f":"[1]ACS_16_5YR_B19201_with_ann!J60","v":6},{"$f":"[1]ACS_16_5YR_B19201_with_ann!K60","v":8},{"$f":"[1]ACS_16_5YR_B19201_with_ann!L60","v":9},{"$f":"[1]ACS_16_5YR_B19201_with_ann!M60","v":9},{"$f":"[1]ACS_16_5YR_B19201_with_ann!N60","v":2},{"$f":"[1]ACS_16_5YR_B19201_with_ann!O60","v":3},{"$f":"[1]ACS_16_5YR_B19201_with_ann!P60","v":4},{"$f":"[1]ACS_16_5YR_B19201_with_ann!Q60","v":4},{"$f":"[1]ACS_16_5YR_B19201_with_ann!R60","v":9},{"$f":"[1]ACS_16_5YR_B19201_with_ann!S60","v":6},{"$f":"[1]ACS_16_5YR_B19201_with_ann!T60","v":3},{"$f":"[1]ACS_16_5YR_B19201_with_ann!U60","v":4},{"$f":"[1]ACS_16_5YR_B19201_with_ann!V60","v":8},{"$f":"[1]ACS_16_5YR_B19201_with_ann!W60","v":7},{"$f":"[1]ACS_16_5YR_B19201_with_ann!X60","v":7},{"$f":"[1]ACS_16_5YR_B19201_with_ann!Y60","v":9},{"$f":"[1]ACS_16_5YR_B19201_with_ann!Z60","v":4},{"$f":"[1]ACS_16_5YR_B19201_with_ann!AA60","v":4},{"$f":"[1]ACS_16_5YR_B19201_with_ann!AB60","v":7},{"$f":"[1]ACS_16_5YR_B19201_with_ann!AC60","v":6},{"$f":"[1]ACS_16_5YR_B19201_with_ann!AD60","v":10},{"$f":"[1]ACS_16_5YR_B19201_with_ann!AE60","v":12},{"$f":"[1]ACS_16_5YR_B19201_with_ann!AF60","v":6},{"$f":"[1]ACS_16_5YR_B19201_with_ann!AG60","v":7},{"$f":"[1]ACS_16_5YR_B19201_with_ann!AH60","v":0},{"$f":"[1]ACS_16_5YR_B19201_with_ann!AI60","v":12},{"$f":"[1]ACS_16_5YR_B19201_with_ann!AJ60","v":2},{"$f":"[1]ACS_16_5YR_B19201_with_ann!AK60","v":4},{"$f":"[1]ACS_16_5YR_B19202_with_ann!D60","v":47679},{"$f":"[1]ACS_16_5YR_B19202_with_ann!E60","v":14378},null,"Sullivan"]
["06000US3300575300","0600000US3300575700","060",{"$f":"[1]ACS_16_5YR_B19201_with_ann!C61","v":"Surry"},{"$f":"[1]ACS_16_5YR_B19201_with_ann!D61","v":82},{"$f":"[1]ACS_16_5YR_B19201_with_ann!E61","v":23},{"$f":"[1]ACS_16_5YR_B19201_with_ann!F61","v":0},{"$f":"[1]ACS_16_5YR_B19201_with_ann!G61","v":12},{"$f":"[1]ACS_16_5YR_B19201_with_ann!H61","v":2},{"$f":"[1]ACS_16_5YR_B19201_with_ann!I61","v":4},{"$f":"[1]ACS_16_5YR_B19201_with_ann!J61","v":2},{"$f":"[1]ACS_16_5YR_B19201_with_ann!K61","v":4},{"$f":"[1]ACS_16_5YR_B19201_with_ann!L61","v":7},{"$f":"[1]ACS_16_5YR_B19201_with_ann!M61","v":6},{"$f":"[1]ACS_16_5YR_B19201_with_ann!N61","v":3},{"$f":"[1]ACS_16_5YR_B19201_with_ann!O61","v":6},{"$f":"[1]ACS_16_5YR_B19201_with_ann!P61","v":2},{"$f":"[1]ACS_16_5YR_B19201_with_ann!Q61","v":3},{"$f":"[1]ACS_16_5YR_B19201_with_ann!R61","v":9},{"$f":"[1]ACS_16_5YR_B19201_with_ann!S61","v":7},{"$f":"[1]ACS_16_5YR_B19201_with_ann!T61","v":0},{"$f":"[1]ACS_16_5YR_B19201_with_ann!U61","v":12},{"$f":"[1]ACS_16_5YR_B19201_with_ann!V61","v":13},{"$f":"[1]ACS_16_5YR_B19201_with_ann!W61","v":14},{"$f":"[1]ACS_16_5YR_B19201_with_ann!X61","v":5},{"$f":"[1]ACS_16_5YR_B19201_with_ann!Y61","v":5},{"$f":"[1]ACS_16_5YR_B19201_with_ann!Z61","v":2},{"$f":"[1]ACS_16_5YR_B19201_with_ann!AA61","v":4},{"$f":"[1]ACS_16_5YR_B19201_with_ann!AB61","v":17},{"$f":"[1]ACS_16_5YR_B19201_with_ann!AC61","v":12},{"$f":"[1]ACS_16_5YR_B19201_with_ann!AD61","v":9},{"$f":"[1]ACS_16_5YR_B19201_with_ann!AE61","v":6},{"$f":"[1]ACS_16_5YR_B19201_with_ann!AF61","v":2},{"$f":"[1]ACS_16_5YR_B19201_with_ann!AG61","v":4},{"$f":"[1]ACS_16_5YR_B19201_with_ann!AH61","v":5},{"$f":"[1]ACS_16_5YR_B19201_with_ann!AI61","v":6},{"$f":"[1]ACS_16_5YR_B19201_with_ann!AJ61","v":4},{"$f":"[1]ACS_16_5YR_B19201_with_ann!AK61","v":5},{"$f":"[1]ACS_16_5YR_B19202_with_ann!D61","v":54000},{"$f":"[1]ACS_16_5YR_B19202_with_ann!E61","v":43391},null,"Surry"]
["06000US3300575700","0600000US3300577380","060",{"$f":"[1]ACS_16_5YR_B19201_with_ann!C62","v":"Swanzey"},{"$f":"[1]ACS_16_5YR_B19201_with_ann!D62","v":1166},{"$f":"[1]ACS_16_5YR_B19201_with_ann!E62","v":251},{"$f":"[1]ACS_16_5YR_B19201_with_ann!F62","v":32},{"$f":"[1]ACS_16_5YR_B19201_with_ann!G62","v":34},{"$f":"[1]ACS_16_5YR_B19201_with_ann!H62","v":85},{"$f":"[1]ACS_16_5YR_B19201_with_ann!I62","v":77},{"$f":"[1]ACS_16_5YR_B19201_with_ann!J62","v":114},{"$f":"[1]ACS_16_5YR_B19201_with_ann!K62","v":94},{"$f":"[1]ACS_16_5YR_B19201_with_ann!L62","v":56},{"$f":"[1]ACS_16_5YR_B19201_with_ann!M62","v":43},{"$f":"[1]ACS_16_5YR_B19201_with_ann!N62","v":95},{"$f":"[1]ACS_16_5YR_B19201_with_ann!O62","v":81},{"$f":"[1]ACS_16_5YR_B19201_with_ann!P62","v":145},{"$f":"[1]ACS_16_5YR_B19201_with_ann!Q62","v":154},{"$f":"[1]ACS_16_5YR_B19201_with_ann!R62","v":56},{"$f":"[1]ACS_16_5YR_B19201_with_ann!S62","v":41},{"$f":"[1]ACS_16_5YR_B19201_with_ann!T62","v":29},{"$f":"[1]ACS_16_5YR_B19201_with_ann!U62","v":32},{"$f":"[1]ACS_16_5YR_B19201_with_ann!V62","v":30},{"$f":"[1]ACS_16_5YR_B19201_with_ann!W62","v":34},{"$f":"[1]ACS_16_5YR_B19201_with_ann!X62","v":125},{"$f":"[1]ACS_16_5YR_B19201_with_ann!Y62","v":57},{"$f":"[1]ACS_16_5YR_B19201_with_ann!Z62","v":137},{"$f":"[1]ACS_16_5YR_B19201_with_ann!AA62","v":94},{"$f":"[1]ACS_16_5YR_B19201_with_ann!AB62","v":208},{"$f":"[1]ACS_16_5YR_B19201_with_ann!AC62","v":105},{"$f":"[1]ACS_16_5YR_B19201_with_ann!AD62","v":5},{"$f":"[1]ACS_16_5YR_B19201_with_ann!AE62","v":8},{"$f":"[1]ACS_16_5YR_B19201_with_ann!AF62","v":37},{"$f":"[1]ACS_16_5YR_B19201_with_ann!AG62","v":41},{"$f":"[1]ACS_16_5YR_B19201_with_ann!AH62","v":0},{"$f":"[1]ACS_16_5YR_B19201_with_ann!AI62","v":17},{"$f":"[1]ACS_16_5YR_B19201_with_ann!AJ62","v":12},{"$f":"[1]ACS_16_5YR_B19201_with_ann!AK62","v":21},{"$f":"[1]ACS_16_5YR_B19202_with_ann!D62","v":41250},{"$f":"[1]ACS_16_5YR_B19202_with_ann!E62","v":17807},null,"Swanzey"]
["06000US3300577380","0600000US3300578420","060",{"$f":"[1]ACS_16_5YR_B19201_with_ann!C63","v":"Troy"},{"$f":"[1]ACS_16_5YR_B19201_with_ann!D63","v":261},{"$f":"[1]ACS_16_5YR_B19201_with_ann!E63","v":80},{"$f":"[1]ACS_16_5YR_B19201_with_ann!F63","v":33},{"$f":"[1]ACS_16_5YR_B19201_with_ann!G63","v":31},{"$f":"[1]ACS_16_5YR_B19201_with_ann!H63","v":9},{"$f":"[1]ACS_16_5YR_B19201_with_ann!I63","v":10},{"$f":"[1]ACS_16_5YR_B19201_with_ann!J63","v":11},{"$f":"[1]ACS_16_5YR_B19201_with_ann!K63","v":17},{"$f":"[1]ACS_16_5YR_B19201_with_ann!L63","v":22},{"$f":"[1]ACS_16_5YR_B19201_with_ann!M63","v":26},{"$f":"[1]ACS_16_5YR_B19201_with_ann!N63","v":49},{"$f":"[1]ACS_16_5YR_B19201_with_ann!O63","v":38},{"$f":"[1]ACS_16_5YR_B19201_with_ann!P63","v":15},{"$f":"[1]ACS_16_5YR_B19201_with_ann!Q63","v":24},{"$f":"[1]ACS_16_5YR_B19201_with_ann!R63","v":20},{"$f":"[1]ACS_16_5YR_B19201_with_ann!S63","v":25},{"$f":"[1]ACS_16_5YR_B19201_with_ann!T63","v":4},{"$f":"[1]ACS_16_5YR_B19201_with_ann!U63","v":6},{"$f":"[1]ACS_16_5YR_B19201_with_ann!V63","v":0},{"$f":"[1]ACS_16_5YR_B19201_with_ann!W63","v":12},{"$f":"[1]ACS_16_5YR_B19201_with_ann!X63","v":25},{"$f":"[1]ACS_16_5YR_B19201_with_ann!Y63","v":18},{"$f":"[1]ACS_16_5YR_B19201_with_ann!Z63","v":20},{"$f":"[1]ACS_16_5YR_B19201_with_ann!AA63","v":13},{"$f":"[1]ACS_16_5YR_B19201_with_ann!AB63","v":9},{"$f":"[1]ACS_16_5YR_B19201_with_ann!AC63","v":9},{"$f":"[1]ACS_16_5YR_B19201_with_ann!AD63","v":22},{"$f":"[1]ACS_16_5YR_B19201_with_ann!AE63","v":23},{"$f":"[1]ACS_16_5YR_B19201_with_ann!AF63","v":13},{"$f":"[1]ACS_16_5YR_B19201_with_ann!AG63","v":19},{"$f":"[1]ACS_16_5YR_B19201_with_ann!AH63","v":5},{"$f":"[1]ACS_16_5YR_B19201_with_ann!AI63","v":9},{"$f":"[1]ACS_16_5YR_B19201_with_ann!AJ63","v":4},{"$f":"[1]ACS_16_5YR_B19201_with_ann!AK63","v":6},{"$f":"[1]ACS_16_5YR_B19202_with_ann!D63","v":31083},{"$f":"[1]ACS_16_5YR_B19202_with_ann!E63","v":9285},null,"Troy"]
["06000US3300578420","0600000US3300582660","060",{"$f":"[1]ACS_16_5YR_B19201_with_ann!C64","v":"Walpole"},{"$f":"[1]ACS_16_5YR_B19201_with_ann!D64","v":544},{"$f":"[1]ACS_16_5YR_B19201_with_ann!E64","v":145},{"$f":"[1]ACS_16_5YR_B19201_with_ann!F64","v":175},{"$f":"[1]ACS_16_5YR_B19201_with_ann!G64","v":118},{"$f":"[1]ACS_16_5YR_B19201_with_ann!H64","v":0},{"$f":"[1]ACS_16_5YR_B19201_with_ann!I64","v":12},{"$f":"[1]ACS_16_5YR_B19201_with_ann!J64","v":26},{"$f":"[1]ACS_16_5YR_B19201_with_ann!K64","v":32},{"$f":"[1]ACS_16_5YR_B19201_with_ann!L64","v":7},{"$f":"[1]ACS_16_5YR_B19201_with_ann!M64","v":11},{"$f":"[1]ACS_16_5YR_B19201_with_ann!N64","v":30},{"$f":"[1]ACS_16_5YR_B19201_with_ann!O64","v":29},{"$f":"[1]ACS_16_5YR_B19201_with_ann!P64","v":19},{"$f":"[1]ACS_16_5YR_B19201_with_ann!Q64","v":23},{"$f":"[1]ACS_16_5YR_B19201_with_ann!R64","v":6},{"$f":"[1]ACS_16_5YR_B19201_with_ann!S64","v":11},{"$f":"[1]ACS_16_5YR_B19201_with_ann!T64","v":7},{"$f":"[1]ACS_16_5YR_B19201_with_ann!U64","v":11},{"$f":"[1]ACS_16_5YR_B19201_with_ann!V64","v":35},{"$f":"[1]ACS_16_5YR_B19201_with_ann!W64","v":36},{"$f":"[1]ACS_16_5YR_B19201_with_ann!X64","v":70},{"$f":"[1]ACS_16_5YR_B19201_with_ann!Y64","v":53},{"$f":"[1]ACS_16_5YR_B19201_with_ann!Z64","v":29},{"$f":"[1]ACS_16_5YR_B19201_with_ann!AA64","v":29},{"$f":"[1]ACS_16_5YR_B19201_with_ann!AB64","v":47},{"$f":"[1]ACS_16_5YR_B19201_with_ann!AC64","v":40},{"$f":"[1]ACS_16_5YR_B19201_with_ann!AD64","v":22},{"$f":"[1]ACS_16_5YR_B19201_with_ann!AE64","v":22},{"$f":"[1]ACS_16_5YR_B19201_with_ann!AF64","v":24},{"$f":"[1]ACS_16_5YR_B19201_with_ann!AG64","v":31},{"$f":"[1]ACS_16_5YR_B19201_with_ann!AH64","v":22},{"$f":"[1]ACS_16_5YR_B19201_with_ann!AI64","v":25},{"$f":"[1]ACS_16_5YR_B19201_with_ann!AJ64","v":25},{"$f":"[1]ACS_16_5YR_B19201_with_ann!AK64","v":39},{"$f":"[1]ACS_16_5YR_B19202_with_ann!D64","v":45714},{"$f":"[1]ACS_16_5YR_B19202_with_ann!E64","v":29396},null,"Walpole"]
["06000US3300582660","0600000US3300585540","060",{"$f":"[1]ACS_16_5YR_B19201_with_ann!C65","v":"Westmoreland"},{"$f":"[1]ACS_16_5YR_B19201_with_ann!D65","v":216},{"$f":"[1]ACS_16_5YR_B19201_with_ann!E65","v":94},{"$f":"[1]ACS_16_5YR_B19201_with_ann!F65","v":3},{"$f":"[1]ACS_16_5YR_B19201_with_ann!G65","v":4},{"$f":"[1]ACS_16_5YR_B19201_with_ann!H65","v":0},{"$f":"[1]ACS_16_5YR_B19201_with_ann!I65","v":12},{"$f":"[1]ACS_16_5YR_B19201_with_ann!J65","v":45},{"$f":"[1]ACS_16_5YR_B19201_with_ann!K65","v":46},{"$f":"[1]ACS_16_5YR_B19201_with_ann!L65","v":27},{"$f":"[1]ACS_16_5YR_B19201_with_ann!M65","v":30},{"$f":"[1]ACS_16_5YR_B19201_with_ann!N65","v":17},{"$f":"[1]ACS_16_5YR_B19201_with_ann!O65","v":11},{"$f":"[1]ACS_16_5YR_B19201_with_ann!P65","v":14},{"$f":"[1]ACS_16_5YR_B19201_with_ann!Q65","v":18},{"$f":"[1]ACS_16_5YR_B19201_with_ann!R65","v":0},{"$f":"[1]ACS_16_5YR_B19201_with_ann!S65","v":12},{"$f":"[1]ACS_16_5YR_B19201_with_ann!T65","v":12},{"$f":"[1]ACS_16_5YR_B19201_with_ann!U65","v":16},{"$f":"[1]ACS_16_5YR_B19201_with_ann!V65","v":14},{"$f":"[1]ACS_16_5YR_B19201_with_ann!W65","v":17},{"$f":"[1]ACS_16_5YR_B19201_with_ann!X65","v":19},{"$f":"[1]ACS_16_5YR_B19201_with_ann!Y65","v":22},{"$f":"[1]ACS_16_5YR_B19201_with_ann!Z65","v":16},{"$f":"[1]ACS_16_5YR_B19201_with_ann!AA65","v":18},{"$f":"[1]ACS_16_5YR_B19201_with_ann!AB65","v":10},{"$f":"[1]ACS_16_5YR_B19201_with_ann!AC65","v":10},{"$f":"[1]ACS_16_5YR_B19201_with_ann!AD65","v":4},{"$f":"[1]ACS_16_5YR_B19201_with_ann!AE65","v":6},{"$f":"[1]ACS_16_5YR_B19201_with_ann!AF65","v":3},{"$f":"[1]ACS_16_5YR_B19201_with_ann!AG65","v":4},{"$f":"[1]ACS_16_5YR_B19201_with_ann!AH65","v":32},{"$f":"[1]ACS_16_5YR_B19201_with_ann!AI65","v":33},{"$f":"[1]ACS_16_5YR_B19201_with_ann!AJ65","v":0},{"$f":"[1]ACS_16_5YR_B19201_with_ann!AK65","v":12},{"$f":"[1]ACS_16_5YR_B19202_with_ann!D65","v":40417},{"$f":"[1]ACS_16_5YR_B19202_with_ann!E65","v":21721},null,"Westmoreland"]
["06000US3300585540","0600000US3300500820","060",{"$f":"[1]ACS_16_5YR_B19201_with_ann!C66","v":"Winchester"},{"$f":"[1]ACS_16_5YR_B19201_with_ann!D66","v":708},{"$f":"[1]ACS_16_5YR_B19201_with_ann!E66","v":172},{"$f":"[1]ACS_16_5YR_B19201_with_ann!F66","v":41},{"$f":"[1]ACS_16_5YR_B19201_with_ann!G66","v":38},{"$f":"[1]ACS_16_5YR_B19201_with_ann!H66","v":25},{"$f":"[1]ACS_16_5YR_B19201_with_ann!I66","v":17},{"$f":"[1]ACS_16_5YR_B19201_with_ann!J66","v":102},{"$f":"[1]ACS_16_5YR_B19201_with_ann!K66","v":54},{"$f":"[1]ACS_16_5YR_B19201_with_ann!L66","v":92},{"$f":"[1]ACS_16_5YR_B19201_with_ann!M66","v":72},{"$f":"[1]ACS_16_5YR_B19201_with_ann!N66","v":28},{"$f":"[1]ACS_16_5YR_B19201_with_ann!O66","v":38},{"$f":"[1]ACS_16_5YR_B19201_with_ann!P66","v":25},{"$f":"[1]ACS_16_5YR_B19201_with_ann!Q66","v":24},{"$f":"[1]ACS_16_5YR_B19201_with_ann!R66","v":39},{"$f":"[1]ACS_16_5YR_B19201_with_ann!S66","v":31},{"$f":"[1]ACS_16_5YR_B19201_with_ann!T66","v":36},{"$f":"[1]ACS_16_5YR_B19201_with_ann!U66","v":30},{"$f":"[1]ACS_16_5YR_B19201_with_ann!V66","v":52},{"$f":"[1]ACS_16_5YR_B19201_with_ann!W66","v":51},{"$f":"[1]ACS_16_5YR_B19201_with_ann!X66","v":20},{"$f":"[1]ACS_16_5YR_B19201_with_ann!Y66","v":26},{"$f":"[1]ACS_16_5YR_B19201_with_ann!Z66","v":72},{"$f":"[1]ACS_16_5YR_B19201_with_ann!AA66","v":59},{"$f":"[1]ACS_16_5YR_B19201_with_ann!AB66","v":75},{"$f":"[1]ACS_16_5YR_B19201_with_ann!AC66","v":74},{"$f":"[1]ACS_16_5YR_B19201_with_ann!AD66","v":10},{"$f":"[1]ACS_16_5YR_B19201_with_ann!AE66","v":17},{"$f":"[1]ACS_16_5YR_B19201_with_ann!AF66","v":74},{"$f":"[1]ACS_16_5YR_B19201_with_ann!AG66","v":66},{"$f":"[1]ACS_16_5YR_B19201_with_ann!AH66","v":0},{"$f":"[1]ACS_16_5YR_B19201_with_ann!AI66","v":12},{"$f":"[1]ACS_16_5YR_B19201_with_ann!AJ66","v":17},{"$f":"[1]ACS_16_5YR_B19201_with_ann!AK66","v":19},{"$f":"[1]ACS_16_5YR_B19202_with_ann!D66","v":40263},{"$f":"[1]ACS_16_5YR_B19202_with_ann!E66","v":11823},null,"Winchester"]
[]
[]
[]
[null,null,null,null,{"$f":"$D$3","v":"Alstead"},null,{"$f":"$D$4","v":"Chesterfield"},null,{"$f":"$D$5","v":"Dublin"},null,{"$f":"$D$6","v":"Fitzwilliam"},null,{"$f":"$D$7","v":"Gilsum"},null,{"$f":"$D$8","v":"Harrisville"},null,{"$f":"$D$9","v":"Hinsdale"},null,{"$f":"$D$10","v":"Jaffrey"},null,{"$f":"$D$11","v":"Keene"},null,{"$f":"$D$12","v":"Marlborough"},null,{"$f":"$D$13","v":"Marlow"},null,{"$f":"$D$14","v":"Nelson"},null,{"$f":"$D$15","v":"Richmond"},null,{"$f":"$D$16","v":"Rindge"},null,{"$f":"$D$17","v":"Roxbury"},null,{"$f":"$D$18","v":"Stoddard"},null,{"$f":"$D$19","v":"Sullivan"},null,{"$f":"$D$20","v":"Surry"},null,{"$f":"$D$21","v":"Swanzey"},null,{"$f":"$D$22","v":"Troy"},null,{"$f":"$D$23","v":"Walpole"},null,{"$f":"$D$24","v":"Westmoreland"},null,{"$f":"$D$25","v":"Winchester"}]
[null,null,null,null,"Estimate","Margin of Error","Estimate","Margin of Error","Estimate","Margin of Error","Estimate","Margin of Error","Estimate","Margin of Error","Estimate","Margin of Error","Estimate","Margin of Error","Estimate","Margin of Error","Estimate","Margin of Error","Estimate","Margin of Error","Estimate","Margin of Error","Estimate","Margin of Error","Estimate","Margin of Error","Estimate","Margin of Error","Estimate","Margin of Error","Estimate","Margin of Error","Estimate","Margin of Error","Estimate","Margin of Error","Estimate","Margin of Error","Estimate","Margin of Error","Estimate","Margin of Error","Estimate","Margin of Error","Estimate","Margin of Error"]
["Table B19201",null,null,"Estimate!!Total:",269,84,363,168,108,32,394,89,80,29,103,30,545,133,652,266,4718,494,385,81,67,22,79,24,77,29,521,144,29,13,139,39,85,24,82,23,1166,251,261,80,544,145,216,94,708,172]
[null,null,null,"Estimate!!Total:!!Less than $10,000",54,45,0,12,12,10,38,29,1,2,7,9,29,47,40,38,189,113,20,18,2,3,1,4,0,12,0,17,0,12,10,13,0,12,0,12,32,34,33,31,175,118,3,4,41,38]
[null,null,null,"Estimate!!Total:!!$10,000 to $14,999",47,48,18,29,3,4,38,32,12,12,3,4,14,21,28,42,465,163,38,30,12,12,0,12,3,5,14,17,1,2,2,4,8,9,2,4,85,77,9,10,0,12,0,12,25,17]
[null,null,null,"Estimate!!Total:!!$15,000 to $19,999",13,12,39,39,3,3,29,29,6,5,3,4,3,5,11,17,595,202,11,17,4,5,3,3,19,16,22,20,0,12,0,12,6,8,2,4,114,94,11,17,26,32,45,46,102,54]
[null,null,null,"Estimate!!Total:!!$20,000 to $24,999",26,30,19,30,5,5,19,21,2,4,7,7,47,38,28,34,169,90,53,40,3,4,2,3,0,12,47,46,4,6,8,9,9,9,7,6,56,43,22,26,7,11,27,30,92,72]
[null,null,null,"Estimate!!Total:!!$25,000 to $29,999",0,12,53,80,4,6,33,33,9,7,0,12,48,36,47,46,253,127,17,15,9,11,2,5,3,5,32,25,4,4,6,6,2,3,3,6,95,81,49,38,30,29,17,11,28,38]
[null,null,null,"Estimate!!Total:!!$30,000 to $34,999",20,21,0,12,5,6,7,9,2,3,7,9,34,31,102,88,382,170,26,20,3,5,7,6,6,7,7,11,2,3,13,7,4,4,2,3,145,154,15,24,19,23,14,18,25,24]
[null,null,null,"Estimate!!Total:!!$35,000 to $39,999",5,6,36,41,0,12,0,12,7,10,0,12,19,26,13,20,261,94,43,29,2,4,3,4,0,12,14,23,3,3,14,14,9,6,9,7,56,41,20,25,6,11,0,12,39,31]
[null,null,null,"Estimate!!Total:!!$40,000 to $44,999",0,12,73,88,0,12,25,21,4,5,11,12,69,92,11,18,118,73,0,12,0,12,4,4,6,6,48,46,1,3,3,4,3,4,0,12,29,32,4,6,7,11,12,16,36,30]
[null,null,null,"Estimate!!Total:!!$45,000 to $49,999",5,7,0,12,12,13,11,12,0,12,7,7,0,12,15,24,221,128,6,9,0,12,4,4,0,12,13,15,3,3,3,4,8,7,13,14,30,34,0,12,35,36,14,17,52,51]
[null,null,null,"Estimate!!Total:!!$50,000 to $59,999",46,40,0,12,0,12,54,37,8,7,0,12,48,39,68,62,446,128,34,28,4,4,7,5,1,3,103,75,2,3,7,6,7,9,5,5,125,57,25,18,70,53,19,22,20,26]
[null,null,null,"Estimate!!Total:!!$60,000 to $74,999",6,8,94,89,5,6,21,28,15,13,23,12,91,71,174,205,181,82,40,31,2,3,11,7,16,20,92,72,0,12,30,21,4,4,2,4,137,94,20,13,29,29,16,18,72,59]
[null,null,null,"Estimate!!Total:!!$75,000 to $99,999",9,10,12,18,17,10,26,17,6,7,20,17,90,67,0,17,639,215,6,12,17,14,12,11,13,9,57,41,3,5,11,8,7,6,17,12,208,105,9,9,47,40,10,10,75,74]
[null,null,null,"Estimate!!Total:!!$100,000 to $124,999",20,17,0,12,16,13,48,45,4,5,3,4,11,18,77,80,267,108,5,7,7,6,0,12,8,7,37,37,5,8,3,4,10,12,9,6,5,8,22,23,22,22,4,6,10,17]
[null,null,null,"Estimate!!Total:!!$125,000 to $149,999",0,12,0,12,6,5,0,12,2,3,4,5,13,21,21,36,308,181,38,40,0,12,8,9,0,12,21,23,0,12,16,14,6,7,2,4,37,41,13,19,24,31,3,4,74,66]
[null,null,null,"Estimate!!Total:!!$150,000 to $199,999",18,16,19,30,6,6,11,11,0,12,0,12,10,18,17,28,118,122,21,22,0,12,2,3,2,5,14,16,1,3,10,14,0,12,5,6,0,17,5,9,22,25,32,33,0,12]
[null,null,null,"Estimate!!Total:!!$200,000 or more",0,12,0,12,14,18,34,28,2,4,8,9,19,30,0,17,106,72,27,32,2,3,13,11,0,12,0,17,0,12,3,4,2,4,4,5,12,21,4,6,25,39,0,12,17,19]
["Table B19202"]
[null,null,null,"Estimate!!Median nonfamily household income in the past 12 months (in 2022 inflation-adjusted dollars)","-","**",40778,11183,81071,22886,48750,16585,40625,16316,62321,20573,51080,17017,54096,26489,41654,8469,37083,16531,"-","**",64583,15588,60104,39839,56580,4224,43750,21996,65083,19125,47679,14378,54000,43391,41250,17807,31083,9285,45714,29396,40417,21721,40263,11823]

{"sheet":"ACS_Table_B19049","index":60,"n_rows":56,"n_cols":48,"rows_kept":56,"cut":false,"hidden":true,"merged":[]}
[null,"B19049. MEDIAN HOUSEHOLD INCOME IN THE PAST 12 MONTHS (IN 2022 INFLATION-ADJUSTED DOLLARS) BY AGE OF HOUSEHOLDER "]
[null,"Universe:  HOUSEHOLDS"]
[null,"Data Set: 2018-2022 American Community Survey 5-Year Estimates"]
[]
[null,null,"Alstead",null,"Chesterfield",null,"Dublin",null,"Fitzwilliam",null,"Gilsum",null,"Harrisville",null,"Hinsdale",null,"Jaffrey",null,"Keene",null,"Marlborough",null,"Marlow",null,"Nelson",null,"Richmond",null,"Rindge",null,"Roxbury",null,"Stoddard",null,"Sullivan",null,"Surry",null,"Swanzey",null,"Troy",null,"Walpole",null,"Westmoreland",null,"Winchester"]
[null," ","Estimate","Margin of Error","Estimate","Margin of Error","Estimate","Margin of Error","Estimate","Margin of Error","Estimate","Margin of Error","Estimate","Margin of Error","Estimate","Margin of Error","Estimate","Margin of Error","Estimate","Margin of Error","Estimate","Margin of Error","Estimate","Margin of Error","Estimate","Margin of Error","Estimate","Margin of Error","Estimate","Margin of Error","Estimate","Margin of Error","Estimate","Margin of Error","Estimate","Margin of Error","Estimate","Margin of Error","Estimate","Margin of Error","Estimate","Margin of Error","Estimate","Margin of Error","Estimate","Margin of Error","Estimate","Margin of Error"]
[null,"Median household income in the past 12 months"]
[null,"Total:",52957,3261,109500,14674,96463,5718,85733,19127,70000,10396,89737,9021,67054,11035,82167,25777,69381,8852,70800,15162,103333,19217,91786,15185,88125,15891,97794,12003,67440,41668,88750,13242,97250,12400,93750,26737,71875,14009,57500,10628,83750,25480,94609,21805,56645,12560]
[null,"Householder under 25 years","-","**","-","**","-","**",86250,4648,"-","**","-","**","-","**","-","**",38571,18874,"-","**","-","**","-","**","-","**","-","**","-","**","-","**","-","**","-","**","-","**","-","**","-","**","-","**","-","**"]
[null,"Householder 25 to 44 years",78438,65044,109909,27578,92917,28767,105000,34311,72857,15785,113125,59275,91645,20728,123609,29961,81205,4023,68194,26089,113750,25494,106429,21370,100625,43625,96181,23710,"-","**",112083,23304,101389,30838,134375,58939,88309,35889,80729,36738,108773,11814,94643,81221,55000,17213]
[null,"Householder 45 to 64 years",61875,40929,132614,35520,97473,21349,85568,41685,71563,24651,98750,8930,117782,41828,75066,34420,87798,11284,89299,19541,110625,40938,116250,67986,91964,46402,115787,7259,"-","**",104167,26648,101979,11060,103750,40862,79063,31755,54583,23563,74583,54923,115455,11154,87582,20985]
[null,"Householder 65 years and over",40455,19852,82917,42846,81071,36511,71154,31180,63333,25115,70313,9954,58491,11159,58125,25106,45355,8743,51667,22078,77143,40800,78409,14957,69375,24749,64559,13600,"-","**",66667,6907,59375,18444,65417,26956,65273,7942,37266,22637,62250,22650,49167,31390,36944,11856]
[]
[]
[]
[]
[]
[]
[]
[]
[]
[]
[]
[]
[]
[]
[]
[]
[]
[null,"B19049. MEDIAN HOUSEHOLD INCOME IN THE PAST 12 MONTHS (IN 2017 INFLATION-ADJUSTED DOLLARS) BY AGE OF HOUSEHOLDER "]
[null,"Universe:  HOUSEHOLDS"]
[null,"Data Set: 2013-2017 American Community Survey 5-Year Estimates"]
[]
[null,null,"Alstead",null,"Chesterfield",null,"Dublin",null,"Fitzwilliam",null,"Gilsum",null,"Harrisville",null,"Hinsdale",null,"Jaffrey",null,"Keene",null,"Marlborough",null,"Marlow",null,"Nelson",null,"Richmond",null,"Rindge",null,"Roxbury",null,"Stoddard",null,"Sullivan",null,"Surry",null,"Swanzey",null,"Troy",null,"Walpole",null,"Westmoreland",null,"Winchester"]
[null," ","Estimate","Margin of Error","Estimate","Margin of Error","Estimate","Margin of Error","Estimate","Margin of Error","Estimate","Margin of Error","Estimate","Margin of Error","Estimate","Margin of Error","Estimate","Margin of Error","Estimate","Margin of Error","Estimate","Margin of Error","Estimate","Margin of Error","Estimate","Margin of Error","Estimate","Margin of Error","Estimate","Margin of Error","Estimate","Margin of Error","Estimate","Margin of Error","Estimate","Margin of Error","Estimate","Margin of Error","Estimate","Margin of Error","Estimate","Margin of Error","Estimate","Margin of Error","Estimate","Margin of Error","Estimate","Margin of Error"]
[null,"Median household income in the past 12 months"]
[null,"Total:",57097,8064,76217,17580,69375,13698,51638,12598,59750,12333,67266,11198,57340,6696,55398,4513,53499,3182,56689,10451,60833,7637,71500,16887,65813,6977,68250,10701,67500,17389,78182,13446,60625,19701,80163,7283,57326,6116,60200,12564,70991,11871,90500,7697,49578,10806]
[null,"Householder under 25 years","-","**","-","**","-","**","-","**","-","**",44250,5137,25673,17151,22673,3990,23870,6002,31250,26947,"-","**","-","**","-","**","-","**","-","**","-","**","-","**","-","**",13450,10617,"-","**","-","**","-","**",102938,62826]
[null,"Householder 25 to 44 years",53988,11491,91771,28091,62708,6041,67727,14911,91250,16650,75329,24875,72151,10102,65486,3850,62463,6003,60185,10467,67813,22496,95938,61556,74167,19058,80542,15031,64063,46071,85833,19387,66250,39876,95208,36704,60625,23193,53293,8036,80515,17498,92813,29714,68587,11107]
[null,"Householder 45 to 64 years",76696,14259,101190,41990,81354,17673,62440,29857,59500,17556,79167,47600,60547,10422,75274,10514,74924,8581,69135,29628,76250,14926,85625,30655,63438,9853,88906,23768,91667,17455,103750,22721,80179,15929,86607,6445,69924,15270,75417,11386,81818,18760,95962,20865,53864,16015]
[null,"Householder 65 years and over",38750,14209,49766,18449,59063,27184,32148,12157,38750,3902,54911,26067,31389,15871,36361,7561,35957,5270,34414,21412,48125,14856,65278,11858,58393,7140,43625,28770,53750,21330,48269,9677,42273,3096,52750,7690,43661,10775,33359,11659,42813,31805,62083,16770,33824,7311]
[]
[]
[]
[null,"B19049. MEDIAN HOUSEHOLD INCOME IN THE PAST 12 MONTHS (IN 2012 INFLATION-ADJUSTED DOLLARS) BY AGE OF HOUSEHOLDER "]
[null,"Universe:  HOUSEHOLDS"]
[null,"Data Set: 2008-2012 American Community Survey 5-Year Estimates"]
[]
[null,null,"Alstead",null,"Chesterfield",null,"Dublin",null,"Fitzwilliam",null,"Gilsum",null,"Harrisville",null,"Hinsdale",null,"Jaffrey",null,"Keene",null,"Marlborough",null,"Marlow",null,"Nelson",null,"Richmond",null,"Rindge",null,"Roxbury",null,"Stoddard",null,"Sullivan",null,"Surry",null,"Swanzey",null,"Troy",null,"Walpole",null,"Westmoreland",null,"Winchester"]
[null," ","Estimate","Margin of Error","Estimate","Margin of Error","Estimate","Margin of Error","Estimate","Margin of Error","Estimate","Margin of Error","Estimate","Margin of Error","Estimate","Margin of Error","Estimate","Margin of Error","Estimate","Margin of Error","Estimate","Margin of Error","Estimate","Margin of Error","Estimate","Margin of Error","Estimate","Margin of Error","Estimate","Margin of Error","Estimate","Margin of Error","Estimate","Margin of Error","Estimate","Margin of Error","Estimate","Margin of Error","Estimate","Margin of Error","Estimate","Margin of Error","Estimate","Margin of Error","Estimate","Margin of Error","Estimate","Margin of Error"]
[null,"Median household income in the past 12 months"]
[null,"Total:",56122,4054,80778,15922,58125,11278,63750,16270,46696,8937,52679,6615,45398,6084,60893,6147,50530,3235,62628,8011,63636,11134,78125,20338,61932,9459,69152,11641,58750,17490,62303,8718,63056,18539,75547,12091,56444,2886,50125,10540,53828,12502,78047,7975,43706,9065]
[null,"Householder under 25 years",12000,24445,"-","**","-","**","-","**","-","**","-","**","-","**","-","**",22222,7982,"-","**","-","**","-","**","-","**",12788,9114,"-","**","250,000+","***","-","**",90417,36259,12339,42804,30476,18362,36875,12162,57857,39400,"-","**"]
[null,"Householder 25 to 44 years",55556,16605,103833,34380,64583,22370,58438,28897,62500,39425,74250,25248,53398,7358,82712,14251,61953,6170,59773,8983,67292,26735,95250,59685,78558,19280,73295,11301,42083,65051,73125,7667,68333,16082,59250,22205,79464,19709,44046,11093,63259,16701,78750,17688,38510,10692]
[null,"Householder 45 to 64 years",61957,8551,83116,17165,63646,12542,72981,12702,47292,15086,78333,39054,53500,9387,59730,9543,67242,9792,84191,18113,66094,27496,87727,15179,62000,22945,77656,12053,66250,19620,66250,13349,81528,18024,98571,15569,65848,12886,82574,14591,72577,4134,86719,10787,53816,11177]
[null,"Householder 65 years and over",48250,12747,51701,9989,50114,5611,38447,3153,38750,14895,38155,2540,24018,5692,30571,11577,33848,2540,43125,10257,38750,8614,49167,33610,42500,14531,56630,11004,24792,34410,30417,7684,35417,14599,53036,9512,36087,15727,37321,20392,40550,4336,50938,8986,29526,4930]

{"sheet":"ACS_Table_B25118","index":61,"n_rows":191,"n_cols":48,"rows_kept":191,"cut":false,"hidden":true,"merged":[]}
[null,"B25118. TENURE BY HOUSEHOLD INCOME IN THE PAST 12 MONTHS (IN 2022 INFLATION-ADJUSTED DOLLARS) "]
[null,"Universe:  OCCUPIED HOUSING UNITS"]
[null,"Data Set: 2018-2022 American Community Survey 5-Year Estimates"]
[]
[null,null,"Alstead",null,"Chesterfield",null,"Dublin",null,"Fitzwilliam",null,"Gilsum",null,"Harrisville",null,"Hinsdale",null,"Jaffrey",null,"Keene",null,"Marlborough",null,"Marlow",null,"Nelson",null,"Richmond",null,"Rindge",null,"Roxbury",null,"Stoddard",null,"Sullivan",null,"Surry",null,"Swanzey",null,"Troy",null,"Walpole",null,"Westmoreland",null,"Winchester"]
[null," ","Estimate","Margin of Error","Estimate","Margin of Error","Estimate","Margin of Error","Estimate","Margin of Error","Estimate","Margin of Error","Estimate","Margin of Error","Estimate","Margin of Error","Estimate","Margin of Error","Estimate","Margin of Error","Estimate","Margin of Error","Estimate","Margin of Error","Estimate","Margin of Error","Estimate","Margin of Error","Estimate","Margin of Error","Estimate","Margin of Error","Estimate","Margin of Error","Estimate","Margin of Error","Estimate","Margin of Error","Estimate","Margin of Error","Estimate","Margin of Error","Estimate","Margin of Error","Estimate","Margin of Error","Estimate","Margin of Error"]
[null,"Total:",723,97,1366,158,635,101,1013,154,310,51,416,75,1594,139,2026,225,9259,370,942,130,314,61,246,41,393,73,1972,144,95,37,436,52,281,53,344,58,3255,171,758,101,1427,121,885,182,1617,146]
[null,"Owner occupied:",507,86,1227,184,530,99,957,154,285,50,386,73,1373,192,1580,229,4762,346,608,113,279,56,225,42,383,72,1711,137,94,38,405,49,240,46,324,59,2237,250,525,81,945,130,787,179,1052,163]
[null,"Less than $5,000",6,8,0,12,12,10,37,33,0,12,7,9,0,12,12,19,53,46,6,9,2,3,2,3,0,12,0,17,0,12,2,4,0,12,0,12,12,21,26,29,27,40,72,99,18,20]
[null,"$5,000 to $9,999",20,26,0,12,0,12,9,10,2,4,0,12,0,12,16,26,36,37,0,12,0,12,1,4,0,12,0,17,0,12,8,12,0,12,0,12,0,17,0,12,65,77,0,12,0,12]
[null,"$10,000 to $14,999",7,9,18,29,34,53,37,32,12,12,3,4,0,12,0,17,55,44,10,16,12,12,2,2,3,5,43,40,1,2,2,4,8,9,4,5,13,21,15,14,0,12,0,12,5,9]
[null,"$15,000 to $19,999",17,13,39,39,3,3,29,29,8,6,3,4,3,5,1,4,195,95,18,19,9,10,3,3,31,25,21,20,0,12,0,12,9,9,4,5,61,72,0,12,15,15,38,45,41,34]
[null,"$20,000 to $24,999",49,52,33,38,0,12,19,21,4,5,3,4,67,50,39,39,88,60,13,14,7,6,2,3,0,12,53,47,4,6,8,9,4,7,14,13,31,31,11,13,0,12,24,29,43,32]
[null,"$25,000 to $34,999",26,23,53,80,8,8,61,37,10,7,15,11,71,45,93,84,274,128,38,22,15,12,16,15,25,15,25,28,8,6,24,10,4,4,5,7,64,52,70,44,37,30,23,16,73,51]
[null,"$35,000 to $49,999",42,22,115,101,26,23,93,43,48,30,51,23,159,100,39,35,362,155,33,29,16,13,11,7,34,19,184,115,9,7,26,15,18,9,45,32,230,98,39,29,74,59,42,24,156,76]
[null,"$50,000 to $74,999",94,49,119,97,69,28,158,59,64,23,66,34,458,212,379,232,620,170,109,50,36,18,41,17,69,32,269,98,27,35,87,28,34,14,44,21,445,162,130,48,130,61,110,57,182,84]
[null,"$75,000 to $99,999",68,30,99,78,106,65,179,103,36,17,76,32,185,84,183,107,866,228,97,65,39,22,33,16,64,28,193,84,10,8,62,24,36,16,46,19,277,107,59,24,111,52,84,31,155,87]
[null,"$100,000 to $149,999",84,29,390,151,92,29,154,51,42,19,61,26,254,93,510,183,1264,216,148,55,92,43,60,23,86,43,516,143,15,11,100,33,74,30,71,24,755,225,76,35,207,68,180,86,214,74]
[null,"$150,000 or more",94,30,361,143,180,47,181,53,59,23,101,44,176,97,308,125,949,196,136,64,51,22,54,21,71,35,407,115,20,12,86,27,53,26,91,44,349,149,99,49,279,81,214,56,165,81]
[null,"Renter occupied:",216,81,139,90,105,41,56,29,25,14,30,15,221,105,446,167,4497,356,334,92,35,29,21,11,10,9,261,119,1,3,31,18,41,21,20,9,1018,252,233,73,482,141,98,54,565,145]
[null,"Less than $5,000",28,38,0,12,12,13,13,13,0,12,0,12,29,47,12,21,62,81,5,8,0,12,0,12,0,12,0,17,0,12,0,12,0,12,0,12,0,17,0,12,21,32,0,12,16,26]
[null,"$5,000 to $9,999",0,12,0,12,0,12,0,12,0,12,0,12,0,12,0,17,73,59,9,13,0,12,0,12,0,12,0,17,0,12,0,12,0,12,0,12,20,28,7,10,69,80,0,12,31,30]
[null,"$10,000 to $14,999",40,48,0,12,7,7,7,10,0,12,0,12,14,21,28,42,437,158,28,25,0,12,0,12,0,12,0,17,0,12,0,12,0,12,0,12,114,84,7,11,0,12,0,12,20,15]
[null,"$15,000 to $19,999",6,8,0,12,0,12,0,12,0,12,0,12,0,12,33,34,439,167,11,17,2,3,0,12,0,12,27,33,0,12,0,12,0,12,0,12,147,96,11,17,20,31,9,14,104,67]
[null,"$20,000 to $24,999",24,30,0,12,9,8,0,12,0,12,4,5,0,12,15,27,103,63,96,74,0,12,0,12,0,12,14,22,0,12,0,12,5,6,0,12,67,62,38,35,7,11,3,5,58,74]
[null,"$25,000 to $34,999",9,9,70,71,17,13,4,6,3,4,0,12,38,33,80,61,550,182,44,30,7,10,4,5,0,12,39,35,0,12,0,12,2,3,2,3,195,171,61,48,19,21,20,20,56,40]
[null,"$35,000 to $49,999",28,22,20,32,12,13,3,5,8,7,0,12,9,14,21,27,658,188,31,20,6,7,2,3,3,6,0,17,0,12,0,12,4,4,2,4,122,88,5,7,67,64,8,15,132,72]
[null,"$50,000 to $74,999",50,40,22,34,22,24,0,12,12,11,10,8,49,50,167,124,863,212,45,29,0,12,4,4,0,12,99,82,0,12,15,16,19,19,3,4,150,93,31,24,105,68,19,22,101,78]
[null,"$75,000 to $99,999",6,8,9,19,3,4,7,7,2,3,5,6,0,12,0,17,590,156,9,10,3,4,9,9,3,4,49,41,0,12,3,4,0,12,6,5,123,88,30,29,22,34,5,6,0,12]
[null,"$100,000 to $149,999",20,18,0,12,23,21,22,22,0,12,2,3,0,12,73,80,423,183,46,39,17,24,2,2,4,6,27,27,0,12,13,10,6,5,2,3,63,79,38,31,107,67,3,5,39,49]
[null,"$150,000 or more",5,8,18,27,0,12,0,12,0,12,9,12,82,80,17,28,299,140,10,11,0,12,0,12,0,12,6,8,1,3,0,12,5,7,5,5,17,20,5,9,45,43,31,33,8,14]
[]
[]
[]
[]
[]
[null,"Calculated B25118. TENURE BY HOUSEHOLD INCOME IN THE PAST 12 MONTHS (IN 2020 INFLATION-ADJUSTED DOLLARS) "]
[null,"Universe:  OCCUPIED HOUSING UNITS"]
[null,{"$f":"B3","v":"Data Set: 2018-2022 American Community Survey 5-Year Estimates"}]
[null,null,"Alstead",null,"Chesterfield",null,"Dublin",null,"Fitzwilliam",null,"Gilsum",null,"Harrisville",null,"Hinsdale",null,"Jaffrey",null,"Keene",null,"Marlborough",null,"Marlow",null,"Nelson",null,"Richmond",null,"Rindge",null,"Roxbury",null,"Stoddard",null,"Sullivan",null,"Surry",null,"Swanzey",null,"Troy",null,"Walpole",null,"Westmoreland",null,"Winchester"]
[null," ","Estimate","Margin of Error","Estimate","Margin of Error","Estimate","Margin of Error","Estimate","Margin of Error","Estimate","Margin of Error","Estimate","Margin of Error","Estimate","Margin of Error","Estimate","Margin of Error","Estimate","Margin of Error","Estimate","Margin of Error","Estimate","Margin of Error","Estimate","Margin of Error","Estimate","Margin of Error","Estimate","Margin of Error","Estimate","Margin of Error","Estimate","Margin of Error","Estimate","Margin of Error","Estimate","Margin of Error","Estimate","Margin of Error","Estimate","Margin of Error","Estimate","Margin of Error","Estimate","Margin of Error","Estimate","Margin of Error"]
[null,{"$f":"B7","v":"Total:"},723,97,1366,158,635,101,1013,154,310,51,416,75,1594,139,2026,225,9259,370,942,130,314,61,{"$f":"Y7","v":246},41,393,73,1972,144,95,37,436,52,281,53,344,58,3255,171,{"$f":"AO7","v":758},101,1427,121,885,182,1617,146]
[null,"Less than $5,000",{"$f":"C9+C21","v":34},{"$f":"SQRT((D9^2)+(D21^2))","v":38.832975677895199},{"$f":"E9+E21","v":0},{"$f":"SQRT((F9^2)+(F21^2))","v":16.970562748477139},{"$f":"G9+G21","v":24},{"$f":"SQRT((H9^2)+(H21^2))","v":16.401219466856727},{"$f":"I9+I21","v":50},{"$f":"SQRT((J9^2)+(J21^2))","v":35.468295701936398},{"$f":"K9+K21","v":0},{"$f":"SQRT((L9^2)+(L21^2))","v":16.970562748477139},{"$f":"M9+M21","v":7},{"$f":"SQRT((N9^2)+(N21^2))","v":15},{"$f":"O9+O21","v":29},{"$f":"SQRT((P9^2)+(P21^2))","v":48.507731342539614},{"$f":"Q9+Q21","v":24},{"$f":"SQRT((R9^2)+(R21^2))","v":28.319604517012593},{"$f":"S9+S21","v":115},{"$f":"SQRT((T9^2)+(T21^2))","v":93.150415994776964},{"$f":"U9+U21","v":11},{"$f":"SQRT((V9^2)+(V21^2))","v":12.041594578792296},{"$f":"W9+W21","v":2},{"$f":"SQRT((X9^2)+(X21^2))","v":12.369316876852981},{"$f":"Y9+Y21","v":2},{"$f":"SQRT((Z9^2)+(Z21^2))","v":12.369316876852981},{"$f":"AA9+AA21","v":0},{"$f":"SQRT((AB9^2)+(AB21^2))","v":16.970562748477139},{"$f":"AC9+AC21","v":0},{"$f":"SQRT((AD9^2)+(AD21^2))","v":24.041630560342615},{"$f":"AE9+AE21","v":0},{"$f":"SQRT((AF9^2)+(AF21^2))","v":16.970562748477139},{"$f":"AG9+AG21","v":2},{"$f":"SQRT((AH9^2)+(AH21^2))","v":12.649110640673518},{"$f":"AI9+AI21","v":0},{"$f":"SQRT((AJ9^2)+(AJ21^2))","v":16.970562748477139},{"$f":"AK9+AK21","v":0},{"$f":"SQRT((AL9^2)+(AL21^2))","v":16.970562748477139},{"$f":"AM9+AM21","v":12},{"$f":"SQRT((AN9^2)+(AN21^2))","v":27.018512172212592},26,31.384709652950431,48,51.224993899462788,72,99.724620831567975,34,32.802438933713454]
[null,"$5,000 to $9,999",{"$f":"C10+C22","v":20},{"$f":"SQRT((D10^2)+(D22^2))","v":28.635642126552707},{"$f":"E10+E22","v":0},16.970562748477139,{"$f":"G10+G22","v":0},16.970562748477139,{"$f":"I10+I22","v":9},15.620499351813308,{"$f":"K10+K22","v":2},12.649110640673518,{"$f":"M10+M22","v":0},16.970562748477139,{"$f":"O10+O22","v":0},16.970562748477139,{"$f":"Q10+Q22","v":16},31.064449134018133,109,69.641941385920603,9,17.691806012954132,0,16.970562748477139,1,12.649110640673518,0,16.970562748477139,0,24.041630560342615,0,16.970562748477139,8,16.970562748477139,0,16.970562748477139,0,16.970562748477139,20,32.756678708318397,7,15.620499351813308,134,111.03603018840326,0,16.970562748477139,31,32.310988842807021]
[null,"$10,000 to $14,999",{"$f":"C11+C23","v":47},48.836461788299118,{"$f":"E11+E23","v":18},31.384709652950431,{"$f":"G11+G23","v":41},53.460265618494638,{"$f":"I11+I23","v":44},33.526109228480422,{"$f":"K11+K23","v":12},16.970562748477139,{"$f":"M11+M23","v":3},12.649110640673518,{"$f":"O11+O23","v":14},24.186773244895647,{"$f":"Q11+Q23","v":28},45.310043036836767,492,164.01219466856725,38,29.681644159311659,12,16.970562748477139,2,12.165525060596439,3,13,43,43.46262762420146,1,12.165525060596439,2,12.649110640673518,8,15,4,13,127,86.58521813797087,22,17.804493814764857,0,16.970562748477139,0,16.970562748477139,25,17.4928556845359]
[null,"$15,000 to $19,999",{"$f":"C12+C24","v":23},15.264337522473747,39,40.80441152620633,3,12.369316876852981,29,31.384709652950431,8,13.416407864998739,3,12.649110640673518,3,13,34,34.23448553724738,634,192.13016421166145,29,25.495097567963924,11,10.440306508910551,3,12.369316876852981,31,27.730849247724095,48,38.587562763149478,0,16.970562748477139,0,16.970562748477139,9,15,4,13,208,120,11,20.808652046684813,35,34.438350715445125,47,47.127486671792717,145,75.133215025047349]
[null,"$20,000 to $24,999",73,60.033324079214538,33,39.849717690342551,9,14.422205101855956,19,24.186773244895647,4,13,7,6.4031242374328485,67,51.419840528729765,54,47.434164902525687,191,87,109,75.312681535050928,7,13.416407864998739,2,12.369316876852981,0,16.970562748477139,67,51.894122981316485,4,13.416407864998739,8,15,9,9.2195444572928871,14,17.691806012954132,98,69.318107302493488,49,37.336309405188942,7,16.278820596099706,27,29.427877939124322,101,80.622577482985491]
[null,"$25,000 to $34,999",35,24.698178070456937,123,106.96261028976434,25,15.264337522473747,65,37.483329627982627,13,8.0622577482985491,15,16.278820596099706,109,55.803225713214822,173,103.81233067415451,824,222.50393254951697,82,37.20215047547655,22,15.620499351813308,20,15.811388300841896,25,19.209372712298546,64,44.82186966202994,8,13.416407864998739,24,15.620499351813308,6,5,7,7.6157731058639087,259,178.73164241398331,131,65.115282384398824,56,36.61966684720111,43,25.612496949731394,129,64.815121692395209]
[null,"$35,000 to $49,999",70,31.11269837220809,135,105.94810050208545,38,26.419689627245813,96,43.289721643826724,56,30.805843601498726,51,25.942243542145693,168,100.9752444909147,60,44.204072210600685,1020,243.65754656894993,64,35.227829907617071,22,14.7648230602334,13,7.6157731058639087,37,19.924858845171276,184,116.24973118248489,9,13.892443989449804,26,19.209372712298546,22,9.8488578017961039,47,32.249030993194197,352,131.71180660821565,44,29.832867780352597,141,87.045964869142551,50,28.301943396169811,288,104.6900186264192]
[null,"$50,000 to $74,999",144,63.253458403473878,141,102.7861858422619,91,36.878177829171548,158,60.207972893961475,76,25.495097567963924,76,34.928498393145958,507,217.81643647805828,546,263.05892875931812,1483,271.74252519618642,154,57.801384066473702,36,21.633307652783937,45,17.464249196572979,69,34.176014981270121,368,127.7810627597063,27,37,102,32.249030993194197,53,23.600847442411894,47,21.377558326431949,595,186.79668091269716,161,53.665631459994955,235,91.35097153287424,129,61.098281481560512,283,114.62983904725679]
[null,"$75,000 to $99,999",74,31.048349392520048,108,80.280757345705197,109,65.12296062065974,186,103.23759005323593,38,17.262676501632068,81,32.557641192199412,185,84.852813742385706,183,108.34205093129813,1456,276.26074639731212,106,65.76473218982953,42,22.360679774997898,42,18.357559750685819,67,28.284271247461902,242,93.471920917460551,10,14.422205101855956,65,24.331050121192877,36,20,52,19.646882704388499,400,138.53880322855397,89,37.643060449437421,133,62.128898268036266,89,31.575306807693888,155,87.823687009826685]
[null,"$100,000 to $149,999",104,34.132096331752024,390,151.47607071745688,115,35.805027579936315,176,55.542776307995261,42,22.472205054244231,63,26.172504656604801,254,93.770997648526702,583,199.7223072167954,1687,283.09892264012592,194,67.424031324150292,109,49.244289008980523,62,23.086792761230392,90,43.416586692184822,543,145.52662986546483,15,16.278820596099706,113,34.481879299133332,80,30.413812651491099,73,24.186773244895647,818,238.4659304806454,114,46.75467891024384,314,95.462034338264544,183,86.145226217127089,253,88.75246475450696]
[null,"$150,000 or more",99,31.048349392520048,{"$f":"E19+E31","v":379},145.52662986546483,180,48.507731342539614,181,54.341512676774101,59,25.942243542145693,110,45.607017003965517,258,125.73384588089239,325,128.09761902549164,1248,240.86510747719356,146,64.938432380216881,51,25.059928172283335,54,24.186773244895647,71,37,413,115.27792503337315,21,12.369316876852981,86,29.546573405388315,58,26.92582403567252,96,44.283179650969061,366,150.33628969746459,104,49.819674828324601,324,91.706052144883003,245,65,173,82.200973230248309]
[]
[]
[]
[]
[]
[]
[]
[]
[]
[]
[]
[]
[]
[]
[]
[]
[null,"B25118. TENURE BY HOUSEHOLD INCOME IN THE PAST 12 MONTHS (IN 2017 INFLATION-ADJUSTED DOLLARS) "]
[null,"Universe:  OCCUPIED HOUSING UNITS"]
[null,"Data Set: 2013-2017 American Community Survey 5-Year Estimates"]
[]
[null,null,"Alstead",null,"Chesterfield",null,"Dublin",null,"Fitzwilliam",null,"Gilsum",null,"Harrisville",null,"Hinsdale",null,"Jaffrey",null,"Keene",null,"Marlborough",null,"Marlow",null,"Nelson",null,"Richmond",null,"Rindge",null,"Roxbury",null,"Stoddard",null,"Sullivan",null,"Surry",null,"Swanzey",null,"Troy",null,"Walpole",null,"Westmoreland",null,"Winchester"]
[null," ","Estimate","Margin of Error","Estimate","Margin of Error","Estimate","Margin of Error","Estimate","Margin of Error","Estimate","Margin of Error","Estimate","Margin of Error","Estimate","Margin of Error","Estimate","Margin of Error","Estimate","Margin of Error","Estimate","Margin of Error","Estimate","Margin of Error","Estimate","Margin of Error","Estimate","Margin of Error","Estimate","Margin of Error","Estimate","Margin of Error","Estimate","Margin of Error","Estimate","Margin of Error","Estimate","Margin of Error","Estimate","Margin of Error","Estimate","Margin of Error","Estimate","Margin of Error","Estimate","Margin of Error","Estimate","Margin of Error"]
[null,"Total:",776,79,1443,147,584,63,1002,92,283,34,437,53,1749,117,9391,370,9449,367,906,99,282,42,226,33,439,50,1883,144,84,27,484,60,293,50,371,45,2828,180,888,87,1631,93,656,77,1718,160]
[null,"Owner occupied:",552,75,1218,141,462,54,873,93,257,35,374,47,1316,134,5072,283,4950,273,610,90,255,40,186,35,391,53,1483,153,72,27,440,57,232,46,341,45,2124,201,663,75,1301,105,602,81,1225,174]
[null,"Less than $5,000",18,18,14,20,6,6,18,13,15,13,3,4,18,20,75,70,104,76,0,11,2,4,3,5,20,21,0,16,0,11,3,5,6,4,2,3,0,16,17,26,8,14,7,8,27,27]
[null,"$5,000 to $9,999",12,19,0,11,2,3,4,6,2,3,0,11,41,44,56,39,82,48,5,7,8,6,11,13,0,11,30,36,2,5,0,11,10,9,0,11,38,56,5,7,20,19,0,11,9,14]
[null,"$10,000 to $14,999",12,10,26,28,9,7,43,35,6,6,4,5,88,58,109,65,90,51,21,26,7,7,0,11,11,8,24,21,1,3,3,4,1,4,12,10,9,14,33,27,32,38,6,6,37,36]
[null,"$15,000 to $19,999",5,8,0,11,11,10,58,37,7,6,0,11,92,71,125,63,157,74,5,7,8,8,2,3,0,11,53,50,1,3,0,11,12,10,11,11,130,103,31,31,44,44,2,4,71,64]
[null,"$20,000 to $24,999",20,13,24,26,28,23,38,26,12,8,13,15,55,38,235,116,189,84,36,22,8,7,4,5,23,14,32,24,1,2,3,4,16,11,7,6,83,54,13,11,19,22,16,11,84,60]
[null,"$25,000 to $34,999",18,12,49,50,53,31,125,50,19,13,20,11,35,26,273,124,273,94,59,31,10,12,7,6,21,17,112,60,3,3,70,30,14,12,12,8,93,62,65,38,112,57,17,11,151,70]
[null,"$35,000 to $49,999",84,40,246,108,44,29,116,53,39,13,64,22,178,64,486,157,537,157,44,34,41,18,19,11,61,24,145,68,7,5,55,21,38,16,17,13,293,109,83,43,189,70,33,16,208,88]
[null,"$50,000 to $74,999",135,45,166,94,48,25,121,42,66,20,96,30,316,104,1091,215,1028,207,99,44,66,27,35,13,117,42,268,84,20,11,61,22,24,12,89,31,456,145,110,50,168,79,120,37,212,98]
[null,"$75,000 to $99,999",112,44,180,98,60,29,104,43,38,13,36,19,238,97,820,172,715,146,84,33,36,17,22,14,50,21,301,100,12,9,63,26,42,15,68,25,430,146,120,50,171,64,117,32,249,85]
[null,"$100,000 to $149,999",94,34,255,102,127,36,148,47,39,14,79,27,189,73,1028,173,1028,185,162,59,58,20,48,17,68,33,292,88,14,8,128,45,46,23,89,27,392,125,132,49,301,109,187,53,137,81]
[null,"$150,000 or more",42,28,258,95,74,22,98,40,14,8,59,22,66,39,774,140,747,129,95,50,11,8,35,21,20,11,226,76,11,10,54,25,23,11,34,19,200,94,54,41,237,96,97,30,40,31]
[null,"Renter occupied:",224,62,225,122,122,41,129,48,26,15,63,29,433,127,4319,404,4499,341,296,85,27,13,40,15,48,30,400,99,12,9,44,26,61,23,30,18,704,165,225,63,330,108,54,28,493,124]
[null,"Less than $5,000",20,24,49,80,0,11,0,11,2,4,8,12,9,16,242,111,234,114,5,9,0,11,2,3,0,11,54,47,0,11,0,11,0,11,0,11,73,62,0,11,43,62,0,11,4,7]
[null,"$5,000 to $9,999",16,17,0,11,6,6,6,8,5,5,0,11,42,54,339,163,341,157,0,11,2,5,2,3,0,11,21,33,0,11,0,11,0,11,3,5,0,16,0,11,15,18,9,14,44,53]
[null,"$10,000 to $14,999",30,25,0,11,0,11,0,11,2,3,2,4,54,62,313,106,435,138,28,28,0,11,0,11,3,4,47,46,2,3,0,11,0,11,2,3,102,85,32,35,9,13,8,13,13,20]
[null,"$15,000 to $19,999",3,4,0,11,23,23,0,11,2,3,9,13,29,27,372,122,392,155,14,13,2,3,3,4,0,11,25,40,0,11,0,11,5,8,3,7,74,74,6,9,18,20,0,11,58,61]
[null,"$20,000 to $24,999",6,8,40,63,6,6,19,23,1,4,0,11,56,54,454,166,383,147,36,37,0,11,6,4,0,11,26,23,0,11,0,11,0,11,0,11,44,45,5,8,0,11,5,6,109,77]
[null,"$25,000 to $34,999",48,38,17,26,23,19,16,20,2,3,3,4,93,54,650,185,671,219,83,50,2,4,12,10,9,14,57,31,4,7,9,14,10,11,0,11,121,91,26,27,18,20,0,11,35,37]
[null,"$35,000 to $49,999",35,19,28,32,8,8,39,30,2,3,8,6,0,11,480,144,488,163,77,56,15,11,5,5,6,11,47,36,1,3,11,13,22,13,2,2,149,112,33,31,120,69,0,11,22,26]
[null,"$50,000 to $74,999",53,33,44,52,47,27,27,25,6,6,10,8,112,86,1020,225,950,203,43,35,4,4,4,4,6,8,56,42,5,4,17,16,12,10,13,9,85,54,94,46,44,44,19,16,145,73]
[null,"$75,000 to $99,999",0,11,18,28,9,8,4,7,2,3,13,13,38,33,345,157,400,136,10,11,0,11,3,4,16,18,26,25,0,11,7,7,12,13,6,10,20,25,24,21,46,37,10,9,23,25]
[null,"$100,000 to $149,999",9,14,13,19,0,11,13,13,2,3,10,16,0,11,65,44,135,102,0,11,2,4,0,11,8,8,29,38,0,11,0,11,0,11,1,3,23,33,0,11,8,11,3,5,40,64]
[null,"$150,000 or more",4,6,16,25,0,11,5,7,0,11,0,11,0,11,39,37,70,53,0,11,0,11,3,4,0,11,12,17,0,11,0,11,0,11,0,11,13,21,5,7,9,13,0,11,0,11]
[]
[]
[]
[]
[]
[null,{"$f":"\"Calculated \"&B70","v":"Calculated B25118. TENURE BY HOUSEHOLD INCOME IN THE PAST 12 MONTHS (IN 2017 INFLATION-ADJUSTED DOLLARS) "}]
[null,"Universe:  OCCUPIED HOUSING UNITS"]
[null,{"$f":"B72","v":"Data Set: 2013-2017 American Community Survey 5-Year Estimates"}]
[null,null,"Alstead",null,"Chesterfield",null,"Dublin",null,"Fitzwilliam",null,"Gilsum",null,"Harrisville",null,"Hinsdale",null,"Jaffrey",null,"Keene",null,"Marlborough",null,"Marlow",null,"Nelson",null,"Richmond",null,"Rindge",null,"Roxbury",null,"Stoddard",null,"Sullivan",null,"Surry",null,"Swanzey",null,"Troy",null,"Walpole",null,"Westmoreland",null,"Winchester"]
[null," ","Estimate","Margin of Error","Estimate","Margin of Error","Estimate","Margin of Error","Estimate","Margin of Error","Estimate","Margin of Error","Estimate","Margin of Error","Estimate","Margin of Error","Estimate","Margin of Error","Estimate","Margin of Error","Estimate","Margin of Error","Estimate","Margin of Error","Estimate","Margin of Error","Estimate","Margin of Error","Estimate","Margin of Error","Estimate","Margin of Error","Estimate","Margin of Error","Estimate","Margin of Error","Estimate","Margin of Error","Estimate","Margin of Error","Estimate","Margin of Error","Estimate","Margin of Error","Estimate","Margin of Error","Estimate","Margin of Error"]
[null,{"$f":"B76","v":"Total:"},776,79,1443,147,584,63,1002,92,283,34,437,53,1749,117,9391,370,9449,367,906,99,282,42,226,33,439,50,1883,144,84,27,484,60,293,50,371,45,2828,180,888,87,1631,93,656,77,1718,160]
[null,"Less than $5,000",{"$f":"C78+C90","v":38},{"$f":"SQRT((D78^2)+(D90^2))","v":30},{"$f":"E78+E90","v":63},{"$f":"SQRT((F78^2)+(F90^2))","v":82.462112512353215},{"$f":"G78+G90","v":6},{"$f":"SQRT((H78^2)+(H90^2))","v":12.529964086141668},{"$f":"I78+I90","v":18},{"$f":"SQRT((J78^2)+(J90^2))","v":17.029386365926403},{"$f":"K78+K90","v":17},{"$f":"SQRT((L78^2)+(L90^2))","v":13.601470508735444},{"$f":"M78+M90","v":11},{"$f":"SQRT((N78^2)+(N90^2))","v":12.649110640673518},{"$f":"O78+O90","v":27},{"$f":"SQRT((P78^2)+(P90^2))","v":25.612496949731394},{"$f":"Q78+Q90","v":317},{"$f":"SQRT((R78^2)+(R90^2))","v":131.22880781291889},{"$f":"S78+S90","v":338},{"$f":"SQRT((T78^2)+(T90^2))","v":137.01094846763161},{"$f":"U78+U90","v":5},{"$f":"SQRT((V78^2)+(V90^2))","v":14.212670403551895},{"$f":"W78+W90","v":2},{"$f":"SQRT((X78^2)+(X90^2))","v":11.704699910719626},{"$f":"Y78+Y90","v":5},{"$f":"SQRT((Z78^2)+(Z90^2))","v":5.8309518948453007},{"$f":"AA78+AA90","v":20},{"$f":"SQRT((AB78^2)+(AB90^2))","v":23.706539182259394},{"$f":"AC78+AC90","v":54},{"$f":"SQRT((AD78^2)+(AD90^2))","v":49.648766349225639},{"$f":"AE78+AE90","v":0},{"$f":"SQRT((AF78^2)+(AF90^2))","v":15.556349186104045},{"$f":"AG78+AG90","v":3},{"$f":"SQRT((AH78^2)+(AH90^2))","v":12.083045973594572},{"$f":"AI78+AI90","v":6},{"$f":"SQRT((AJ78^2)+(AJ90^2))","v":11.704699910719626},{"$f":"AK78+AK90","v":2},{"$f":"SQRT((AL78^2)+(AL90^2))","v":11.401754250991379},{"$f":"AM78+AM90","v":73},{"$f":"SQRT((AN78^2)+(AN90^2))","v":64.031242374328485},17,28.231188426986208,51,63.560994328282817,7,13.601470508735444,31,27.892651361962706]
[null,"$5,000 to $9,999",{"$f":"C79+C91","v":28},{"$f":"SQRT((D79^2)+(D91^2))","v":25.495097567963924},{"$f":"E79+E91","v":0},15.556349186104045,{"$f":"G79+G91","v":8},6.7082039324993694,{"$f":"I79+I91","v":10},10,{"$f":"K79+K91","v":7},5.8309518948453007,{"$f":"M79+M91","v":0},15.556349186104045,{"$f":"O79+O91","v":83},69.656299069071991,{"$f":"Q79+Q91","v":395},167.60071598892409,423,164.17368851311102,5,13.038404810405298,10,7.810249675906654,13,13.341664064126334,0,15.556349186104045,51,48.836461788299118,2,12.083045973594572,0,15.556349186104045,10,14.212670403551895,3,12.083045973594572,38,58.240879114244144,5,13.038404810405298,35,26.172504656604801,9,17.804493814764857,53,54.817880294662984]
[null,"$10,000 to $14,999",{"$f":"C80+C92","v":42},26.92582403567252,{"$f":"E80+E92","v":26},30.083217912982647,{"$f":"G80+G92","v":9},13.038404810405298,{"$f":"I80+I92","v":43},36.687872655688281,{"$f":"K80+K92","v":8},6.7082039324993694,{"$f":"M80+M92","v":6},6.4031242374328485,{"$f":"O80+O92","v":142},84.899941107164494,{"$f":"Q80+Q92","v":422},124.34226956268733,525,147.12239802287073,49,38.209946349085598,7,13.038404810405298,0,15.556349186104045,14,8.9442719099991592,71,50.566787519082126,3,4.2426406871192848,3,11.704699910719626,1,11.704699910719626,14,10.440306508910551,111,86.145226217127089,65,44.204072210600685,41,40.162171256046406,14,14.317821063276353,50,41.182520563948003]
[null,"$15,000 to $19,999",{"$f":"C81+C93","v":8},8.9442719099991592,0,15.556349186104045,34,25.079872407968907,58,38.600518131237564,9,6.7082039324993694,9,17.029386365926403,121,75.960516059331766,497,137.30622709840949,549,171.75855146105536,19,14.7648230602334,10,8.5440037453175304,5,5,0,15.556349186104045,78,64.031242374328485,1,11.401754250991379,0,15.556349186104045,17,12.806248474865697,14,13.038404810405298,204,126.82665335015349,37,32.280024783137947,62,48.332183894378289,2,11.704699910719626,129,88.41379982785493]
[null,"$20,000 to $24,999",26,15.264337522473747,64,68.154236845554948,34,23.769728648009426,57,34.713109915419565,13,8.9442719099991592,13,18.601075237738275,111,66.030296076876709,689,202.51419703319567,572,169.30741271426953,72,43.046486500061768,8,13.038404810405298,10,6.4031242374328485,23,17.804493814764857,58,33.241540277189323,1,11.180339887498949,3,11.704699910719626,16,15.556349186104045,7,12.529964086141668,127,70.292247083159893,18,13.601470508735444,19,24.596747752497688,21,12.529964086141668,193,97.616596949494195]
[null,"$25,000 to $34,999",66,39.849717690342551,66,56.356011214421486,76,36.359317925395686,141,53.851648071345039,21,13.341664064126334,23,11.704699910719626,128,59.933296255086788,923,222.71281956816046,944,238.32121181296472,142,58.830264320330912,12,12.649110640673518,19,11.661903789690601,30,22.022715545545239,169,67.53517601961218,7,7.6157731058639087,79,33.105890714493697,24,16.278820596099706,12,13.601470508735444,214,110.11357772772621,91,46.61544808322666,130,60.406953242155822,17,15.556349186104045,186,79.177016867270268]
[null,"$35,000 to $49,999",119,44.283179650969061,274,112.64102272262978,52,30.083217912982647,155,60.901559914340453,41,13.341664064126334,72,22.803508501982758,178,64.938432380216881,966,213.03755537463343,1025,226.31394124092313,121,65.513357416636794,56,21.095023109728988,24,12.083045973594572,67,26.40075756488817,192,76.941536246685374,8,5.8309518948453007,66,24.698178070456937,60,20.615528128088304,19,13.152946437965905,442,156.28499608087785,116,53.009433122794285,309,98.290386101591849,33,19.416487838947599,230,91.760557975635692]
[null,"$50,000 to $74,999",188,55.803225713214822,210,107.42439201596628,95,36.796738985948195,148,48.877397639399746,72,20.880613017821101,106,31.048349392520048,428,134.9518432626987,2111,311.20732639190874,1978,289.9275771636772,142,56.222771187482387,70,27.294688127912362,39,13.601470508735444,123,42.755116652863897,324,93.914855054991165,25,11.704699910719626,78,27.202941017470888,36,15.620499351813308,102,32.280024783137947,541,154.72879499304582,204,67.94115100585212,212,90.426765949026404,139,40.311288741492746,357,122.20065466273084]
[null,"$75,000 to $99,999",112,45.354161881794269,198,101.92153844992725,69,30.083217912982647,108,43.56604182158393,40,13.341664064126334,49,23.021728866442675,276,102.45974819410792,1165,232.87979732042021,1115,199.52944644838766,94,34.785054261852174,36,20.248456731316587,25,14.560219778561036,66,27.658633371878661,327,103.07764064044152,12,14.212670403551895,70,26.92582403567252,54,19.849433241279208,74,26.92582403567252,450,148.12494725737457,144,54.230987451824994,217,73.925638313104884,127,33.241540277189323,272,88.600225733346747]
[null,"$100,000 to $149,999",103,36.76955262170047,268,103.75451797391764,127,37.643060449437421,161,48.764741360946438,41,14.317821063276353,89,31.384709652950431,189,73.824115301166998,1093,178.50770291502829,1163,211.25576915199264,162,60.016664352494629,60,20.396078054371138,48,20.248456731316587,76,33.955853692699293,321,95.854055730574075,14,13.601470508735444,128,46.324939287601879,46,25.495097567963924,90,27.166155414412248,415,129.28263611173776,132,50.219518117958877,309,109.55363982999378,190,53.235326616824658,177,103.23274674249446]
[null,"$150,000 or more",46,28.635642126552707,{"$f":"E88+E100","v":274},98.2344135219425,74,24.596747752497688,103,40.607881008493905,14,13.601470508735444,59,24.596747752497688,66,40.521599178709621,813,144.80676779764127,817,139.46325680981354,95,51.195702944680818,11,13.601470508735444,38,21.377558326431949,20,15.556349186104045,238,77.878109889750149,11,14.866068747318506,54,27.313000567495326,23,15.556349186104045,34,21.95449840010015,213,96.317184344227996,59,41.593268686170845,246,96.876209669866839,97,31.953090617340916,40,32.893768406797051]
[]
[]
[]
[]
[]
[]
[]
[]
[]
[]
[]
[]
[]
[]
[]
[]
[null,"B25118. TENURE BY HOUSEHOLD INCOME IN THE PAST 12 MONTHS (IN 20121 INFLATION-ADJUSTED DOLLARS) "]
[null,"Universe:  OCCUPIED HOUSING UNITS"]
[null,"Data Set: 2008-2012 American Community Survey 5-Year Estimates"]
[]
[null,null,"Alstead",null,"Chesterfield",null,"Dublin",null,"Fitzwilliam",null,"Gilsum",null,"Harrisville",null,"Hinsdale",null,"Jaffrey",null,"Keene",null,"Marlborough",null,"Marlow",null,"Nelson",null,"Richmond",null,"Rindge",null,"Roxbury",null,"Stoddard",null,"Sullivan",null,"Surry",null,"Swanzey",null,"Troy",null,"Walpole",null,"Westmoreland",null,"Winchester"]
[null," ","Estimate","Margin of Error","Estimate","Margin of Error","Estimate","Margin of Error","Estimate","Margin of Error","Estimate","Margin of Error","Estimate","Margin of Error","Estimate","Margin of Error","Estimate","Margin of Error","Estimate","Margin of Error","Estimate","Margin of Error","Estimate","Margin of Error","Estimate","Margin of Error","Estimate","Margin of Error","Estimate","Margin of Error","Estimate","Margin of Error","Estimate","Margin of Error","Estimate","Margin of Error","Estimate","Margin of Error","Estimate","Margin of Error","Estimate","Margin of Error","Estimate","Margin of Error","Estimate","Margin of Error","Estimate","Margin of Error"]
[null,"Total:",730,81,1414,96,585,68,1075,101,244,40,407,55,1835,138,2314,194,9028,446,870,92,358,66,339,58,415,55,1868,171,101,22,432,73,258,46,335,48,2921,163,770,92,1414,121,707,81,1721,134]
[null,"Owner occupied:",599,75,1259,129,477,65,918,106,232,41,348,54,1314,168,1628,178,5115,354,586,80,306,59,258,47,378,60,1378,186,83,19,376,60,217,44,294,44,2328,176,540,66,1015,123,607,79,1085,144]
[null,"Less than $5,000",3,4,9,15,11,13,0,85,0,85,10,15,9,14,6,10,80,63,9,12,0,85,2,4,0,85,31,28,5,8,10,14,0,85,3,4,0,85,3,6,5,7,3,5,0,85]
[null,"$5,000 to $9,999",3,5,27,29,0,85,0,85,5,8,3,4,25,29,33,32,107,75,16,14,16,19,4,5,3,4,0,85,0,85,3,5,0,85,2,4,85,67,12,11,15,17,0,85,23,27]
[null,"$10,000 to $14,999",28,21,16,25,4,6,43,35,8,6,13,16,78,51,84,55,161,75,22,24,18,11,0,85,7,7,50,48,2,3,14,16,6,8,3,4,62,49,11,12,7,11,20,12,65,37]
[null,"$15,000 to $19,999",25,16,23,25,9,13,36,27,12,12,14,13,82,71,15,24,135,56,12,12,13,16,12,14,4,6,46,48,2,3,2,4,3,5,3,4,54,46,14,17,32,35,25,21,25,28]
[null,"$20,000 to $24,999",17,17,16,23,13,12,57,43,3,4,10,8,14,22,33,31,204,79,0,85,8,7,5,6,6,7,60,56,4,4,17,16,2,3,8,6,99,75,38,32,13,14,8,9,120,58]
[null,"$25,000 to $34,999",55,26,42,38,56,32,91,46,13,15,41,22,102,62,135,79,461,137,34,21,6,9,25,13,38,23,136,78,5,6,57,29,24,13,37,21,146,60,34,27,101,60,13,10,122,50]
[null,"$35,000 to $49,999",78,32,232,107,55,25,108,47,64,31,31,16,265,113,177,70,591,158,103,47,67,46,27,18,70,34,130,65,16,13,40,26,25,13,38,17,398,145,62,31,102,51,92,30,145,71]
[null,"$50,000 to $74,999",186,47,202,92,135,41,152,49,65,28,56,25,385,123,470,154,1023,214,151,59,61,28,42,22,76,26,245,78,19,9,77,25,34,19,65,25,531,133,117,43,308,96,108,38,244,84]
[null,"$75,000 to $99,999",90,31,242,126,43,26,201,74,32,15,71,25,232,84,237,107,864,187,135,43,50,23,47,26,72,30,264,77,9,8,73,35,68,31,37,15,341,158,154,46,149,64,148,39,152,74]
[null,"$100,000 to $149,999",61,24,224,82,95,30,137,53,19,14,73,27,83,51,246,132,893,161,79,31,51,25,40,19,82,31,280,87,8,8,56,23,45,18,73,27,473,160,71,33,170,58,120,45,110,67]
[null,"$150,000 or more",53,31,226,99,56,29,93,42,11,10,26,14,39,33,192,80,596,142,25,22,16,20,54,28,20,11,136,54,13,9,27,16,10,8,25,16,139,74,24,20,113,69,70,26,79,56]
[null,"Renter occupied:",131,46,155,101,108,38,157,79,12,10,59,26,521,134,686,194,3913,356,284,93,52,35,81,37,37,24,490,112,18,14,56,37,41,29,41,21,593,159,230,73,399,136,100,39,636,125]
[null,"Less than $5,000",0,85,0,85,5,7,0,85,0,85,0,85,0,85,0,85,180,108,0,85,0,85,0,85,3,4,87,45,0,85,2,5,0,85,0,85,19,23,0,85,0,85,0,85,0,85]
[null,"$5,000 to $9,999",9,14,13,19,10,7,0,85,0,85,0,85,26,31,38,38,333,143,7,10,0,85,0,85,0,85,26,23,0,85,6,9,0,85,3,4,6,12,0,85,55,63,0,85,45,48]
[null,"$10,000 to $14,999",6,9,11,17,5,7,22,25,0,85,0,85,24,20,39,57,334,122,6,9,0,85,16,18,2,5,53,47,0,85,0,85,12,16,0,85,55,44,7,10,22,25,3,5,64,56]
[null,"$15,000 to $19,999",13,16,0,85,0,85,0,85,2,3,3,4,80,76,145,83,359,123,0,85,0,85,0,85,9,10,37,31,0,85,0,85,10,12,0,85,88,55,36,33,25,25,5,8,58,60]
[null,"$20,000 to $24,999",16,17,0,85,13,17,52,54,0,85,11,17,45,41,114,68,393,125,61,48,0,85,2,3,0,85,28,26,0,85,0,85,0,85,4,6,48,37,0,85,9,17,10,18,85,62]
[null,"$25,000 to $34,999",52,32,0,85,12,14,7,10,4,5,16,16,79,83,103,80,606,179,22,27,11,16,20,17,0,85,26,40,6,7,7,9,5,9,0,85,121,98,60,35,69,38,19,19,175,86]
[null,"$35,000 to $49,999",10,9,0,85,25,20,45,48,0,85,10,14,177,106,69,48,777,201,57,34,6,11,23,25,20,21,80,63,5,6,0,85,2,3,19,17,59,50,74,62,120,74,25,19,48,38]
[null,"$50,000 to $74,999",14,13,76,91,17,17,0,85,4,6,8,9,56,38,131,104,527,180,89,71,35,30,7,12,0,85,85,55,5,9,30,29,2,5,7,7,65,47,22,20,99,78,17,16,120,82]
[null,"$75,000 to $99,999",0,85,41,66,12,11,21,25,2,3,11,12,25,28,47,46,238,125,42,43,0,85,5,7,0,85,28,22,0,85,3,5,8,13,8,10,37,35,15,18,0,85,13,14,41,49]
[null,"$100,000 to $149,999",11,14,14,20,9,14,10,14,0,85,0,85,0,85,0,85,144,100,0,85,0,85,2,3,3,5,40,46,2,5,8,13,0,85,0,85,95,75,16,24,0,85,8,9,0,85]
[null,"$150,000 or more",0,85,0,85,0,85,0,85,0,85,0,85,9,18,0,85,22,24,0,85,0,85,6,8,0,85,0,85,0,85,0,85,2,5,0,85,0,85,0,85,0,85,0,85,0,85]
[]
[]
[]
[]
[]
[null,{"$f":"\"Calculated \"&B139","v":"Calculated B25118. TENURE BY HOUSEHOLD INCOME IN THE PAST 12 MONTHS (IN 20121 INFLATION-ADJUSTED DOLLARS) "}]
[null,"Universe:  OCCUPIED HOUSING UNITS"]
[null,{"$f":"$B$141","v":"Data Set: 2008-2012 American Community Survey 5-Year Estimates"}]
[null,null,"Alstead",null,"Chesterfield",null,"Dublin",null,"Fitzwilliam",null,"Gilsum",null,"Harrisville",null,"Hinsdale",null,"Jaffrey",null,"Keene",null,"Marlborough",null,"Marlow",null,"Nelson",null,"Richmond",null,"Rindge",null,"Roxbury",null,"Stoddard",null,"Sullivan",null,"Surry",null,"Swanzey",null,"Troy",null,"Walpole",null,"Westmoreland",null,"Winchester"]
[null," ","Estimate","Margin of Error","Estimate","Margin of Error","Estimate","Margin of Error","Estimate","Margin of Error","Estimate","Margin of Error","Estimate","Margin of Error","Estimate","Margin of Error","Estimate","Margin of Error","Estimate","Margin of Error","Estimate","Margin of Error","Estimate","Margin of Error","Estimate","Margin of Error","Estimate","Margin of Error","Estimate","Margin of Error","Estimate","Margin of Error","Estimate","Margin of Error","Estimate","Margin of Error","Estimate","Margin of Error","Estimate","Margin of Error","Estimate","Margin of Error","Estimate","Margin of Error","Estimate","Margin of Error","Estimate","Margin of Error"]
[null,"Total:",{"$f":"C145","v":730},81,1414,96,585,68,1075,101,244,40,407,55,1835,138,2314,194,9028,446,870,92,358,66,339,58,415,55,1868,171,101,22,432,73,258,46,335,48,2921,163,770,92,1414,121,707,81,1721,134]
[null,"Less than $5,000",{"$f":"C147+C159","v":3},{"$f":"SQRT((D147^2)+(D159^2))","v":85.094065598019228},{"$f":"E147+E159","v":9},{"$f":"SQRT((F147^2)+(F159^2))","v":86.313382508160345},{"$f":"G147+G159","v":16},{"$f":"SQRT((H147^2)+(H159^2))","v":14.7648230602334},{"$f":"I147+I159","v":0},{"$f":"SQRT((J147^2)+(J159^2))","v":120.20815280171308},{"$f":"K147+K159","v":0},{"$f":"SQRT((L147^2)+(L159^2))","v":120.20815280171308},{"$f":"M147+M159","v":10},{"$f":"SQRT((N147^2)+(N159^2))","v":86.313382508160345},{"$f":"O147+O159","v":9},{"$f":"SQRT((P147^2)+(P159^2))","v":86.145226217127089},{"$f":"Q147+Q159","v":6},{"$f":"SQRT((R147^2)+(R159^2))","v":85.586213843118443},{"$f":"S147+S159","v":260},{"$f":"SQRT((T147^2)+(T159^2))","v":125.03199590504823},{"$f":"U147+U159","v":9},{"$f":"SQRT((V147^2)+(V159^2))","v":85.84287972802403},{"$f":"W147+W159","v":0},{"$f":"SQRT((X147^2)+(X159^2))","v":120.20815280171308},{"$f":"Y147+Y159","v":2},{"$f":"SQRT((Z147^2)+(Z159^2))","v":85.094065598019228},{"$f":"AA147+AA159","v":3},{"$f":"SQRT((AB147^2)+(AB159^2))","v":85.094065598019228},{"$f":"AC147+AC159","v":118},{"$f":"SQRT((AD147^2)+(AD159^2))","v":53},{"$f":"AE147+AE159","v":5},{"$f":"SQRT((AF147^2)+(AF159^2))","v":85.37564055396598},{"$f":"AG147+AG159","v":12},{"$f":"SQRT((AH147^2)+(AH159^2))","v":14.866068747318506},{"$f":"AI147+AI159","v":0},{"$f":"SQRT((AJ147^2)+(AJ159^2))","v":120.20815280171308},{"$f":"AK147+AK159","v":3},{"$f":"SQRT((AL147^2)+(AL159^2))","v":85.094065598019228},{"$f":"AM147+AM159","v":19},{"$f":"SQRT((AN147^2)+(AN159^2))","v":88.056799851005266},{"$f":"AO147+AO159","v":3},{"$f":"SQRT((AP147^2)+(AP159^2))","v":85.211501571090736},{"$f":"AQ147+AQ159","v":5},{"$f":"SQRT((AR147^2)+(AR159^2))","v":85.287748240881584},{"$f":"AS147+AS159","v":3},{"$f":"SQRT((AT147^2)+(AT159^2))","v":85.14693182963201},{"$f":"AU147+AU159","v":0},{"$f":"SQRT((AV147^2)+(AV159^2))","v":120.20815280171308}]
[null,"$5,000 to $9,999",{"$f":"C148+C160","v":12},{"$f":"SQRT((D148^2)+(D160^2))","v":14.866068747318506},{"$f":"E148+E160","v":40},{"$f":"SQRT((F148^2)+(F160^2))","v":34.669871646719429},{"$f":"G148+G160","v":10},{"$f":"SQRT((H148^2)+(H160^2))","v":85.287748240881584},{"$f":"I148+I160","v":0},{"$f":"SQRT((J148^2)+(J160^2))","v":120.20815280171308},{"$f":"K148+K160","v":5},{"$f":"SQRT((L148^2)+(L160^2))","v":85.37564055396598},{"$f":"M148+M160","v":3},{"$f":"SQRT((N148^2)+(N160^2))","v":85.094065598019228},{"$f":"O148+O160","v":51},{"$f":"SQRT((P148^2)+(P160^2))","v":42.449970553582247},{"$f":"Q148+Q160","v":71},{"$f":"SQRT((R148^2)+(R160^2))","v":49.678969393496885},440,{"$f":"SQRT((T148^2)+(T160^2))","v":161.47445618425226},23,{"$f":"SQRT((V148^2)+(V160^2))","v":17.204650534085253},16,{"$f":"SQRT((X148^2)+(X160^2))","v":87.097646351666697},4,85.14693182963201,3,85.094065598019228,26,88.056799851005266,0,120.20815280171308,9,10.295630140987001,0,120.20815280171308,5,5.6568542494923806,{"$f":"AM148+AM160","v":91},{"$f":"SQRT((AN148^2)+(AN160^2))","v":68.066144300966542},{"$f":"AO148+AO160","v":12},{"$f":"SQRT((AP148^2)+(AP160^2))","v":85.708809348864477},{"$f":"AQ148+AQ160","v":70},{"$f":"SQRT((AR148^2)+(AR160^2))","v":65.253352404301808},{"$f":"AS148+AS160","v":0},{"$f":"SQRT((AT148^2)+(AT160^2))","v":120.20815280171308},{"$f":"AU148+AU160","v":68},{"$f":"SQRT((AV148^2)+(AV160^2))","v":55.072679252057455}]
[null,"$10,000 to $14,999",{"$f":"C149+C161","v":34},{"$f":"SQRT((D149^2)+(D161^2))","v":22.847319317591726},{"$f":"E149+E161","v":27},{"$f":"SQRT((F149^2)+(F161^2))","v":30.232432915661949},{"$f":"G149+G161","v":9},{"$f":"SQRT((H149^2)+(H161^2))","v":9.2195444572928871},{"$f":"I149+I161","v":65},{"$f":"SQRT((J149^2)+(J161^2))","v":43.011626335213137},{"$f":"K149+K161","v":8},{"$f":"SQRT((L149^2)+(L161^2))","v":85.211501571090736},{"$f":"M149+M161","v":13},{"$f":"SQRT((N149^2)+(N161^2))","v":86.49277426467485},{"$f":"O149+O161","v":102},{"$f":"SQRT((P149^2)+(P161^2))","v":54.78138369920935},{"$f":"Q149+Q161","v":123},{"$f":"SQRT((R149^2)+(R161^2))","v":79.208585393251411},495,{"$f":"SQRT((T149^2)+(T161^2))","v":143.20963654726592},28,{"$f":"SQRT((V149^2)+(V161^2))","v":25.632011235952593},18,{"$f":"SQRT((X149^2)+(X161^2))","v":85.708809348864477},16,86.884981440983225,9,8.6023252670426267,103,67.178865724273734,2,85.052924699859673,14,86.49277426467485,18,17.888543819998318,3,85.094065598019228,{"$f":"AM149+AM161","v":117},{"$f":"SQRT((AN149^2)+(AN161^2))","v":65.855903304107827},{"$f":"AO149+AO161","v":18},{"$f":"SQRT((AP149^2)+(AP161^2))","v":15.620499351813308},{"$f":"AQ149+AQ161","v":29},{"$f":"SQRT((AR149^2)+(AR161^2))","v":27.313000567495326},{"$f":"AS149+AS161","v":23},{"$f":"SQRT((AT149^2)+(AT161^2))","v":13},{"$f":"AU149+AU161","v":129},{"$f":"SQRT((AV149^2)+(AV161^2))","v":67.119296778199342}]
[null,"$15,000 to $19,999",{"$f":"C150+C162","v":38},{"$f":"SQRT((D150^2)+(D162^2))","v":22.627416997969522},{"$f":"E150+E162","v":23},{"$f":"SQRT((F150^2)+(F162^2))","v":88.600225733346747},{"$f":"G150+G162","v":9},{"$f":"SQRT((H150^2)+(H162^2))","v":85.988371306822643},{"$f":"I150+I162","v":36},{"$f":"SQRT((J150^2)+(J162^2))","v":89.185200566013194},{"$f":"K150+K162","v":14},{"$f":"SQRT((L150^2)+(L162^2))","v":12.369316876852981},{"$f":"M150+M162","v":17},{"$f":"SQRT((N150^2)+(N162^2))","v":13.601470508735444},{"$f":"O150+O162","v":162},{"$f":"SQRT((P150^2)+(P162^2))","v":104.00480758118829},{"$f":"Q150+Q162","v":160},{"$f":"SQRT((R150^2)+(R162^2))","v":86.400231481171389},494,{"$f":"SQRT((T150^2)+(T162^2))","v":135.14806694880988},12,{"$f":"SQRT((V150^2)+(V162^2))","v":85.84287972802403},13,{"$f":"SQRT((X150^2)+(X162^2))","v":86.49277426467485},12,86.145226217127089,13,11.661903789690601,83,57.140178508646613,2,85.052924699859673,2,85.094065598019228,13,13,3,85.094065598019228,{"$f":"AM150+AM162","v":142},{"$f":"SQRT((AN150^2)+(AN162^2))","v":71.700767080973407},{"$f":"AO150+AO162","v":50},{"$f":"SQRT((AP150^2)+(AP162^2))","v":37.12142238654117},{"$f":"AQ150+AQ162","v":57},{"$f":"SQRT((AR150^2)+(AR162^2))","v":43.011626335213137},{"$f":"AS150+AS162","v":30},{"$f":"SQRT((AT150^2)+(AT162^2))","v":22.472205054244231},{"$f":"AU150+AU162","v":83},{"$f":"SQRT((AV150^2)+(AV162^2))","v":66.211781428987393}]
[null,"$20,000 to $24,999",{"$f":"C151+C163","v":33},{"$f":"SQRT((D151^2)+(D163^2))","v":24.041630560342615},{"$f":"E151+E163","v":16},{"$f":"SQRT((F151^2)+(F163^2))","v":88.056799851005266},{"$f":"G151+G163","v":26},{"$f":"SQRT((H151^2)+(H163^2))","v":20.808652046684813},{"$f":"I151+I163","v":109},{"$f":"SQRT((J151^2)+(J163^2))","v":69.028979421689272},{"$f":"K151+K163","v":3},{"$f":"SQRT((L151^2)+(L163^2))","v":85.094065598019228},{"$f":"M151+M163","v":21},{"$f":"SQRT((N151^2)+(N163^2))","v":18.788294228055936},{"$f":"O151+O163","v":59},{"$f":"SQRT((P151^2)+(P163^2))","v":46.529560496527367},{"$f":"Q151+Q163","v":147},{"$f":"SQRT((R151^2)+(R163^2))","v":74.732857566133518},597,{"$f":"SQRT((T151^2)+(T163^2))","v":147.87156589419075},61,{"$f":"SQRT((V151^2)+(V163^2))","v":97.616596949494195},8,{"$f":"SQRT((X151^2)+(X163^2))","v":85.287748240881584},7,6.7082039324993694,6,85.287748240881584,88,61.741396161732524,4,85.094065598019228,17,86.49277426467485,2,85.052924699859673,12,8.4852813742385695,{"$f":"AM151+AM163","v":147},{"$f":"SQRT((AN151^2)+(AN163^2))","v":83.630138108220294},{"$f":"AO151+AO163","v":38},{"$f":"SQRT((AP151^2)+(AP163^2))","v":90.824005637276315},{"$f":"AQ151+AQ163","v":22},{"$f":"SQRT((AR151^2)+(AR163^2))","v":22.022715545545239},{"$f":"AS151+AS163","v":18},{"$f":"SQRT((AT151^2)+(AT163^2))","v":20.124611797498108},{"$f":"AU151+AU163","v":205},{"$f":"SQRT((AV151^2)+(AV163^2))","v":84.899941107164494}]
[null,"$25,000 to $34,999",{"$f":"C152+C164","v":107},{"$f":"SQRT((D152^2)+(D164^2))","v":41.231056256176608},{"$f":"E152+E164","v":42},{"$f":"SQRT((F152^2)+(F164^2))","v":93.107464792034804},{"$f":"G152+G164","v":68},{"$f":"SQRT((H152^2)+(H164^2))","v":34.928498393145958},{"$f":"I152+I164","v":98},{"$f":"SQRT((J152^2)+(J164^2))","v":47.074409183759279},{"$f":"K152+K164","v":17},{"$f":"SQRT((L152^2)+(L164^2))","v":15.811388300841896},{"$f":"M152+M164","v":57},{"$f":"SQRT((N152^2)+(N164^2))","v":27.202941017470888},{"$f":"O152+O164","v":181},{"$f":"SQRT((P152^2)+(P164^2))","v":103.60019305001319},{"$f":"Q152+Q164","v":238},{"$f":"SQRT((R152^2)+(R164^2))","v":112.43220179290273},1067,{"$f":"SQRT((T152^2)+(T164^2))","v":225.41073621280776},56,{"$f":"SQRT((V152^2)+(V164^2))","v":34.205262752974143},17,{"$f":"SQRT((X152^2)+(X164^2))","v":18.357559750685819},45,21.400934559032695,38,88.056799851005266,162,87.658428003244509,11,9.2195444572928871,64,30.364452901377952,29,15.811388300841896,37,87.555696559390128,{"$f":"AM152+AM164","v":267},{"$f":"SQRT((AN152^2)+(AN164^2))","v":114.9086593777858},{"$f":"AO152+AO164","v":94},{"$f":"SQRT((AP152^2)+(AP164^2))","v":44.204072210600685},{"$f":"AQ152+AQ164","v":170},{"$f":"SQRT((AR152^2)+(AR164^2))","v":71.021123618258812},{"$f":"AS152+AS164","v":32},{"$f":"SQRT((AT152^2)+(AT164^2))","v":21.470910553583888},{"$f":"AU152+AU164","v":297},{"$f":"SQRT((AV152^2)+(AV164^2))","v":99.478640923567099}]
[null,"$35,000 to $49,999",{"$f":"C153+C165","v":88},{"$f":"SQRT((D153^2)+(D165^2))","v":33.241540277189323},{"$f":"E153+E165","v":232},{"$f":"SQRT((F153^2)+(F165^2))","v":136.65284482951682},{"$f":"G153+G165","v":80},{"$f":"SQRT((H153^2)+(H165^2))","v":32.015621187164243},{"$f":"I153+I165","v":153},{"$f":"SQRT((J153^2)+(J165^2))","v":67.178865724273734},{"$f":"K153+K165","v":64},{"$f":"SQRT((L153^2)+(L165^2))","v":90.476516290140168},{"$f":"M153+M165","v":41},{"$f":"SQRT((N153^2)+(N165^2))","v":21.2602916254693},{"$f":"O153+O165","v":442},{"$f":"SQRT((P153^2)+(P165^2))","v":154.93547043850222},{"$f":"Q153+Q165","v":246},{"$f":"SQRT((R153^2)+(R165^2))","v":84.876380695691779},1368,{"$f":"SQRT((T153^2)+(T165^2))","v":255.66579747787932},160,{"$f":"SQRT((V153^2)+(V165^2))","v":58.008620049092706},73,{"$f":"SQRT((X153^2)+(X165^2))","v":47.296934361541872},50,30.805843601498726,90,39.962482405376171,210,90.520715861066847,21,14.317821063276353,40,88.887569434651553,27,13.341664064126334,57,24.041630560342615,{"$f":"AM153+AM165","v":457},{"$f":"SQRT((AN153^2)+(AN165^2))","v":153.37861650177967},{"$f":"AO153+AO165","v":136},{"$f":"SQRT((AP153^2)+(AP165^2))","v":69.318107302493488},{"$f":"AQ153+AQ165","v":222},{"$f":"SQRT((AR153^2)+(AR165^2))","v":89.872131386765275},{"$f":"AS153+AS165","v":117},{"$f":"SQRT((AT153^2)+(AT165^2))","v":35.510561809129406},{"$f":"AU153+AU165","v":193},{"$f":"SQRT((AV153^2)+(AV165^2))","v":80.529497701152962}]
[null,"$50,000 to $74,999",{"$f":"C154+C166","v":200},{"$f":"SQRT((D154^2)+(D166^2))","v":48.764741360946438},{"$f":"E154+E166","v":278},{"$f":"SQRT((F154^2)+(F166^2))","v":129.40247292845683},{"$f":"G154+G166","v":152},{"$f":"SQRT((H154^2)+(H166^2))","v":44.384682042344295},{"$f":"I154+I166","v":152},{"$f":"SQRT((J154^2)+(J166^2))","v":98.112180691288273},{"$f":"K154+K166","v":69},{"$f":"SQRT((L154^2)+(L166^2))","v":28.635642126552707},{"$f":"M154+M166","v":64},{"$f":"SQRT((N154^2)+(N166^2))","v":26.570660511172846},{"$f":"O154+O166","v":441},{"$f":"SQRT((P154^2)+(P166^2))","v":128.73616430513999},{"$f":"Q154+Q166","v":601},{"$f":"SQRT((R154^2)+(R166^2))","v":185.82787734890587},1550,{"$f":"SQRT((T154^2)+(T166^2))","v":279.6354770053328},240,{"$f":"SQRT((V154^2)+(V166^2))","v":92.314679222754165},96,{"$f":"SQRT((X154^2)+(X166^2))","v":41.036569057366385},49,25.059928172283335,76,88.887569434651553,330,95.44108130150245,24,12.727922061357855,107,38.288379438153292,36,19.646882704388499,72,25.96150997149434,{"$f":"AM154+AM166","v":596},{"$f":"SQRT((AN154^2)+(AN166^2))","v":141.06027080648894},{"$f":"AO154+AO166","v":139},{"$f":"SQRT((AP154^2)+(AP166^2))","v":47.423622805517503},{"$f":"AQ154+AQ166","v":407},{"$f":"SQRT((AR154^2)+(AR166^2))","v":123.69316876852982},{"$f":"AS154+AS166","v":125},{"$f":"SQRT((AT154^2)+(AT166^2))","v":41.231056256176608},{"$f":"AU154+AU166","v":364},{"$f":"SQRT((AV154^2)+(AV166^2))","v":117.38824472663352}]
[null,"$75,000 to $99,999",{"$f":"C155+C167","v":90},{"$f":"SQRT((D155^2)+(D167^2))","v":90.476516290140168},{"$f":"E155+E167","v":283},{"$f":"SQRT((F155^2)+(F167^2))","v":142.23923509355637},{"$f":"G155+G167","v":55},{"$f":"SQRT((H155^2)+(H167^2))","v":28.231188426986208},{"$f":"I155+I167","v":222},{"$f":"SQRT((J155^2)+(J167^2))","v":78.108898340714035},{"$f":"K155+K167","v":34},{"$f":"SQRT((L155^2)+(L167^2))","v":15.297058540778355},{"$f":"M155+M167","v":82},{"$f":"SQRT((N155^2)+(N167^2))","v":27.730849247724095},{"$f":"O155+O167","v":257},{"$f":"SQRT((P155^2)+(P167^2))","v":88.543774484714618},{"$f":"Q155+Q167","v":284},{"$f":"SQRT((R155^2)+(R167^2))","v":116.46887996370532},1102,{"$f":"SQRT((T155^2)+(T167^2))","v":224.93110056192762},177,{"$f":"SQRT((V155^2)+(V167^2))","v":60.811183182043088},50,{"$f":"SQRT((X155^2)+(X167^2))","v":88.056799851005266},52,26.92582403567252,72,90.13878188659973,292,80.081208782085696,9,85.37564055396598,76,35.355339059327378,76,33.61547262794322,45,18.027756377319946,{"$f":"AM155+AM167","v":378},{"$f":"SQRT((AN155^2)+(AN167^2))","v":161.83015788165073},{"$f":"AO155+AO167","v":169},{"$f":"SQRT((AP155^2)+(AP167^2))","v":49.396356140913873},{"$f":"AQ155+AQ167","v":149},{"$f":"SQRT((AR155^2)+(AR167^2))","v":106.40018796975878},{"$f":"AS155+AS167","v":161},{"$f":"SQRT((AT155^2)+(AT167^2))","v":41.43669871020132},{"$f":"AU155+AU167","v":193},{"$f":"SQRT((AV155^2)+(AV167^2))","v":88.75246475450696}]
[null,"$100,000 to $149,999",{"$f":"C156+C168","v":72},{"$f":"SQRT((D156^2)+(D168^2))","v":27.784887978899608},{"$f":"E156+E168","v":238},{"$f":"SQRT((F156^2)+(F168^2))","v":84.403791384036765},{"$f":"G156+G168","v":104},{"$f":"SQRT((H156^2)+(H168^2))","v":33.105890714493697},{"$f":"I156+I168","v":147},{"$f":"SQRT((J156^2)+(J168^2))","v":54.817880294662984},{"$f":"K156+K168","v":19},{"$f":"SQRT((L156^2)+(L168^2))","v":86.145226217127089},{"$f":"M156+M168","v":73},{"$f":"SQRT((N156^2)+(N168^2))","v":89.185200566013194},{"$f":"O156+O168","v":83},{"$f":"SQRT((P156^2)+(P168^2))","v":99.126182212370111},{"$f":"Q156+Q168","v":246},{"$f":"SQRT((R156^2)+(R168^2))","v":157},1037,{"$f":"SQRT((T156^2)+(T168^2))","v":189.52836199366047},79,{"$f":"SQRT((V156^2)+(V168^2))","v":90.476516290140168},51,{"$f":"SQRT((X156^2)+(X168^2))","v":88.600225733346747},42,19.235384061671343,85,31.400636936215164,320,98.412397592986224,10,9.4339811320566032,64,26.419689627245813,45,86.884981440983225,73,89.185200566013194,{"$f":"AM156+AM168","v":568},{"$f":"SQRT((AN156^2)+(AN168^2))","v":176.70597047072292},{"$f":"AO156+AO168","v":87},{"$f":"SQRT((AP156^2)+(AP168^2))","v":40.80441152620633},{"$f":"AQ156+AQ168","v":170},{"$f":"SQRT((AR156^2)+(AR168^2))","v":102.90286682109493},{"$f":"AS156+AS168","v":128},{"$f":"SQRT((AT156^2)+(AT168^2))","v":45.891175622335062},{"$f":"AU156+AU168","v":110},{"$f":"SQRT((AV156^2)+(AV168^2))","v":108.23123393919151}]
[null,"$150,000 or more",{"$f":"C157+C169","v":53},{"$f":"SQRT((D157^2)+(D169^2))","v":90.476516290140168},{"$f":"E157+E169","v":226},{"$f":"SQRT((F157^2)+(F169^2))","v":130.48371545905641},{"$f":"G157+G169","v":56},{"$f":"SQRT((H157^2)+(H169^2))","v":89.810912477270818},{"$f":"I157+I169","v":93},{"$f":"SQRT((J157^2)+(J169^2))","v":94.810336989170125},{"$f":"K157+K169","v":11},{"$f":"SQRT((L157^2)+(L169^2))","v":85.586213843118443},{"$f":"M157+M169","v":26},{"$f":"SQRT((N157^2)+(N169^2))","v":86.145226217127089},{"$f":"O157+O169","v":48},{"$f":"SQRT((P157^2)+(P169^2))","v":37.589892258425003},{"$f":"Q157+Q169","v":192},{"$f":"SQRT((R157^2)+(R169^2))","v":116.72617529928752},618,{"$f":"SQRT((T157^2)+(T169^2))","v":144.01388821915754},25,{"$f":"SQRT((V157^2)+(V169^2))","v":87.80091115700337},16,{"$f":"SQRT((X157^2)+(X169^2))","v":87.321245982864909},60,29.120439557122072,20,85.708809348864477,136,100.70253224224304,13,85.475142585432408,27,86.49277426467485,12,9.4339811320566032,25,86.49277426467485,{"$f":"AM157+AM169","v":139},{"$f":"SQRT((AN157^2)+(AN169^2))","v":112.69871339105873},{"$f":"AO157+AO169","v":24},{"$f":"SQRT((AP157^2)+(AP169^2))","v":87.321245982864909},{"$f":"AQ157+AQ169","v":113},{"$f":"SQRT((AR157^2)+(AR169^2))","v":109.48059188732951},{"$f":"AS157+AS169","v":70},{"$f":"SQRT((AT157^2)+(AT169^2))","v":88.887569434651553},{"$f":"AU157+AU169","v":79},{"$f":"SQRT((AV157^2)+(AV169^2))","v":101.78899744078434}]

{"sheet":"ACS_TableB19101_ACS_Tbl_B19113","index":62,"n_rows":130,"n_cols":48,"rows_kept":130,"cut":false,"hidden":true,"merged":[]}
[null,"B19101. FAMILY INCOME IN THE PAST 12 MONTHS (IN 2022 INFLATION-ADJUSTED DOLLARS)"]
[null,"Universe:  FAMILIES"]
[null,"Data Set: 2018-2022 American Community Survey 5-Year Estimates"]
[]
[null,null,"Alstead",null,"Chesterfield",null,"Dublin",null,"Fitzwilliam",null,"Gilsum",null,"Harrisville",null,"Hinsdale",null,"Jaffrey",null,"Keene",null,"Marlborough",null,"Marlow",null,"Nelson",null,"Richmond",null,"Rindge",null,"Roxbury",null,"Stoddard",null,"Sullivan",null,"Surry",null,"Swanzey",null,"Troy",null,"Walpole",null,"Westmoreland",null,"Winchester"]
[null," ","Estimate","Margin of Error","Estimate","Margin of Error","Estimate","Margin of Error","Estimate","Margin of Error","Estimate","Margin of Error","Estimate","Margin of Error","Estimate","Margin of Error","Estimate","Margin of Error","Estimate","Margin of Error","Estimate","Margin of Error","Estimate","Margin of Error","Estimate","Margin of Error","Estimate","Margin of Error","Estimate","Margin of Error","Estimate","Margin of Error","Estimate","Margin of Error","Estimate","Margin of Error","Estimate","Margin of Error","Estimate","Margin of Error","Estimate","Margin of Error","Estimate","Margin of Error","Estimate","Margin of Error","Estimate","Margin of Error"]
[null,"Total:",454,72,1003,131,527,93,619,124,230,43,313,70,1049,141,1374,156,4541,311,557,107,247,59,167,39,316,68,1451,123,66,37,297,45,196,45,262,60,2089,223,497,87,883,94,669,155,909,104]
[null,"Less than $10,000",0,12,0,12,12,13,21,20,1,3,0,12,0,12,0,17,70,55,0,12,7,10,2,3,0,12,0,17,0,12,5,8,0,12,0,12,21,34,4,7,19,29,69,99,72,54]
[null,"$10,000 to $14,999",0,12,0,12,38,53,6,8,0,12,0,12,0,12,0,17,40,31,0,12,0,12,2,2,0,12,29,36,0,12,0,12,0,12,2,3,21,31,13,15,0,12,0,12,19,20]
[null,"$15,000 to $19,999",10,10,0,12,0,12,0,12,2,3,0,12,0,12,23,39,45,42,18,19,7,9,0,12,12,20,26,37,0,12,0,12,3,4,2,3,94,83,0,12,9,11,2,5,43,49]
[null,"$20,000 to $24,999",52,55,14,22,4,5,7,12,5,5,0,12,20,29,26,31,87,72,56,64,4,6,0,12,0,12,20,25,0,12,0,12,0,12,7,11,42,51,23,27,0,12,0,12,0,12]
[null,"$25,000 to $29,999",11,11,33,45,14,12,13,11,2,3,5,6,0,12,15,23,38,39,15,14,0,12,3,6,4,6,0,17,0,12,3,4,4,7,2,3,19,24,40,30,7,11,9,11,39,33]
[null,"$30,000 to $34,999",13,10,37,56,2,3,12,20,2,3,6,6,42,30,9,17,171,84,24,23,3,4,11,13,12,12,25,31,2,3,2,5,0,12,0,12,0,17,27,31,0,12,11,15,44,37]
[null,"$35,000 to $39,999",17,13,10,19,20,20,26,27,4,5,4,6,28,34,10,19,103,60,5,7,7,7,0,12,2,4,63,78,0,12,2,4,2,3,6,6,21,24,0,12,45,56,12,12,47,57]
[null,"$40,000 to $44,999",11,12,0,12,3,4,23,17,18,26,10,9,27,29,11,20,188,131,5,7,5,5,0,12,3,4,16,16,2,3,2,3,3,4,0,12,133,97,21,22,0,12,9,8,27,29]
[null,"$45,000 to $49,999",27,24,25,31,7,11,12,11,21,14,20,17,48,53,0,17,138,82,5,9,10,11,2,3,26,18,30,37,0,12,15,14,0,12,19,24,158,103,13,12,48,53,3,5,50,41]
[null,"$50,000 to $59,999",73,47,15,24,54,27,40,37,16,10,24,23,120,115,43,41,334,120,22,16,8,7,8,8,11,9,73,52,3,4,27,14,10,6,30,19,157,115,72,36,69,46,63,59,46,45]
[null,"$60,000 to $74,999",18,13,32,37,28,26,43,24,34,19,28,23,210,163,285,155,461,152,70,43,22,16,19,11,52,26,100,49,22,36,41,23,32,21,10,8,206,118,30,20,67,37,34,19,122,74]
[null,"$75,000 to $99,999",65,28,96,76,101,67,152,103,32,15,74,32,130,61,159,103,831,233,100,66,25,19,31,15,54,28,201,84,7,5,60,27,38,16,38,16,200,89,80,35,86,44,74,28,80,55]
[null,"$100,000 to $124,999",50,22,235,134,56,27,77,36,22,13,31,17,107,63,338,172,561,183,93,42,68,47,36,20,50,34,270,109,16,14,31,20,36,21,33,18,394,163,47,23,158,114,134,80,75,47]
[null,"$125,000 to $149,999",30,16,162,100,37,20,66,32,14,12,13,9,110,62,165,123,480,145,46,34,32,26,14,9,21,21,217,95,1,3,42,16,12,15,26,15,270,159,32,24,117,67,39,20,89,54]
[null,"$150,000 to $199,999",57,28,233,133,62,30,51,37,46,22,39,19,133,89,80,56,500,148,65,42,35,21,16,11,51,32,186,79,3,4,34,17,42,23,46,39,184,106,56,44,121,68,104,42,92,60]
[null,"$200,000 or more",20,13,111,71,89,36,70,35,11,7,59,37,74,70,210,130,494,149,33,22,14,13,23,11,18,13,195,88,10,6,33,15,14,12,41,20,169,89,39,26,137,72,106,41,64,65]
[]
[]
[null,"B19113. MEDIAN FAMILY INCOME IN THE PAST 12 MONTHS (IN 2022 INFLATION-ADJUSTED DOLLARS)"]
[null,"Universe:  FAMILIES"]
[null,{"$f":"B3","v":"Data Set: 2018-2022 American Community Survey 5-Year Estimates"}]
[]
[null,null,"Alstead",null,"Chesterfield",null,"Dublin",null,"Fitzwilliam",null,"Gilsum",null,"Harrisville",null,"Hinsdale",null,"Jaffrey",null,"Keene",null,"Marlborough",null,"Marlow",null,"Nelson",null,"Richmond",null,"Rindge",null,"Roxbury",null,"Stoddard",null,"Sullivan",null,"Surry",null,"Swanzey",null,"Troy",null,"Walpole",null,"Westmoreland",null,"Winchester"]
[null," ","Estimate","Margin of Error","Estimate","Margin of Error","Estimate","Margin of Error","Estimate","Margin of Error","Estimate","Margin of Error","Estimate","Margin of Error","Estimate","Margin of Error","Estimate","Margin of Error","Estimate","Margin of Error","Estimate","Margin of Error","Estimate","Margin of Error","Estimate","Margin of Error","Estimate","Margin of Error","Estimate","Margin of Error","Estimate","Margin of Error","Estimate","Margin of Error","Estimate","Margin of Error","Estimate","Margin of Error","Estimate","Margin of Error","Estimate","Margin of Error","Estimate","Margin of Error","Estimate","Margin of Error","Estimate","Margin of Error"]
[null,"Median family income in the past 12 months",72000,27987,125865,26733,96763,6705,93896,7757,85208,23428,94957,9075,76715,20454,113229,22726,93196,6828,89970,15039,114875,10505,104464,17792,93333,13353,114047,6029,90000,43903,92250,13509,100833,8266,104808,32992,97782,18966,80430,25668,109823,15301,109659,14643,66813,14185]
[]
[]
[]
[]
[]
[]
[]
[]
[]
[]
[]
[]
[]
[]
[]
[]
[]
[null,"B19101. FAMILY INCOME IN THE PAST 12 MONTHS (IN 2017  INFLATION-ADJUSTED DOLLARS)"]
[null,"Universe:  FAMILIES"]
[null,"Data Set: 2013-2017 American Community Survey 5-Year Estimates"]
[]
[null,null,"Alstead",null,"Chesterfield",null,"Dublin",null,"Fitzwilliam",null,"Gilsum",null,"Harrisville",null,"Hinsdale",null,"Jaffrey",null,"Keene",null,"Marlborough",null,"Marlow",null,"Nelson",null,"Richmond",null,"Rindge",null,"Roxbury",null,"Stoddard",null,"Sullivan",null,"Surry",null,"Swanzey",null,"Troy",null,"Walpole",null,"Westmoreland",null,"Winchester"]
[null," ","Estimate","Margin of Error","Estimate","Margin of Error","Estimate","Margin of Error","Estimate","Margin of Error","Estimate","Margin of Error","Estimate","Margin of Error","Estimate","Margin of Error","Estimate","Margin of Error","Estimate","Margin of Error","Estimate","Margin of Error","Estimate","Margin of Error","Estimate","Margin of Error","Estimate","Margin of Error","Estimate","Margin of Error","Estimate","Margin of Error","Estimate","Margin of Error","Estimate","Margin of Error","Estimate","Margin of Error","Estimate","Margin of Error","Estimate","Margin of Error","Estimate","Margin of Error","Estimate","Margin of Error","Estimate","Margin of Error"]
[null,"Total:",468,72,1063,126,416,56,629,72,197,29,273,48,1096,79,5100,275,5116,300,527,93,204,37,161,26,328,48,1336,117,65,24,368,53,182,36,286,43,1998,167,567,94,1029,88,538,77,1086,140]
[null,"Less than $10,000",35,32,0,11,3,4,4,6,2,2,8,12,9,14,99,52,96,54,13,21,6,5,9,13,15,17,0,16,0,11,0,11,5,5,0,11,68,75,0,11,43,62,17,17,22,26]
[null,"$10,000 to $14,999",9,11,0,11,3,4,0,11,0,11,0,11,64,67,83,47,126,70,16,25,4,5,0,11,0,11,19,21,0,11,0,11,0,11,2,3,103,92,0,11,0,11,0,11,0,11]
[null,"$15,000 to $19,999",8,9,0,11,6,6,36,31,2,3,9,13,37,30,190,107,126,74,0,11,4,6,3,4,15,22,31,41,1,3,2,5,4,5,2,3,54,54,23,24,39,46,0,11,50,59]
[null,"$20,000 to $24,999",6,8,40,63,8,14,28,26,9,7,3,4,53,45,254,132,244,112,39,35,10,9,2,3,6,10,26,25,0,11,0,11,2,3,5,5,77,77,9,9,0,11,10,8,89,77]
[null,"$25,000 to $29,999",5,7,49,50,17,16,33,23,2,3,2,5,8,12,268,140,321,152,14,12,4,4,7,7,4,7,38,38,1,3,4,6,8,12,7,6,92,73,28,31,18,20,4,6,89,54]
[null,"$30,000 to $34,999",29,26,0,11,30,22,19,16,6,6,9,7,82,74,78,40,92,49,14,12,2,4,9,6,0,11,50,33,4,7,15,14,13,11,13,14,49,58,12,13,10,17,7,8,69,46]
[null,"$35,000 to $39,999",33,26,66,59,17,21,15,12,12,8,0,11,44,35,177,115,224,102,17,13,4,4,2,3,15,11,59,50,5,6,22,17,18,12,2,3,54,43,27,18,44,36,6,8,60,47]
[null,"$40,000 to $44,999",11,12,37,38,12,10,44,38,14,11,3,5,82,74,103,67,84,47,25,30,2,3,3,5,17,15,59,43,0,11,20,11,14,10,0,11,135,93,62,45,62,47,3,5,23,28]
[null,"$45,000 to $49,999",13,11,66,73,15,15,28,27,9,5,9,7,44,30,143,75,203,94,16,24,30,17,7,5,11,9,24,27,0,11,13,12,10,7,10,7,114,78,15,15,37,36,6,8,43,36]
[null,"$50,000 to $59,999",37,17,68,63,11,13,49,33,20,10,27,19,87,55,422,131,443,131,21,15,27,21,9,6,37,22,140,67,3,6,23,11,13,6,36,22,176,117,71,40,20,20,64,29,99,86]
[null,"$60,000 to $74,999",50,31,99,68,58,29,45,22,41,17,40,19,182,68,792,175,721,162,62,42,21,15,17,12,57,28,152,67,18,11,36,22,10,10,42,19,203,88,51,32,133,68,49,22,113,47]
[null,"$75,000 to $99,999",106,45,163,97,57,27,99,37,33,12,38,20,190,73,882,185,846,189,70,30,28,14,22,12,60,28,246,94,12,9,74,31,32,15,54,23,302,95,137,53,164,62,128,34,242,84]
[null,"$100,000 to $124,999",59,27,163,86,65,29,82,33,10,7,57,25,107,62,553,143,563,163,93,50,35,17,15,8,40,23,201,72,6,5,66,33,20,14,44,23,261,106,48,28,196,91,87,37,136,111]
[null,"$125,000 to $149,999",31,21,73,54,50,26,71,35,23,11,9,7,49,38,310,109,307,99,32,19,16,9,32,17,31,23,101,66,6,5,39,25,14,11,35,15,152,84,41,31,61,44,72,30,24,27]
[null,"$150,000 to $199,999",28,23,55,35,29,12,20,13,9,6,34,17,19,29,351,91,354,93,62,43,5,6,4,3,1,3,153,56,5,5,45,24,12,8,30,20,94,59,12,13,84,66,27,21,27,27]
[null,"$200,000 or more",8,8,184,91,35,17,56,34,5,5,25,13,39,35,395,113,366,106,33,19,6,6,20,17,19,11,37,28,4,5,9,8,7,6,4,4,64,54,31,37,118,67,58,25,0,11]
[]
[]
[null,"B19113. MEDIAN FAMILY INCOME IN THE PAST 12 MONTHS (IN 2017 INFLATION-ADJUSTED DOLLARS)"]
[null,"Universe:  FAMILIES"]
[null,"Data Set: 2013-2017 American Community Survey 5-Year Estimates"]
[]
[null,null,"Alstead",null,"Chesterfield",null,"Dublin",null,"Fitzwilliam",null,"Gilsum",null,"Harrisville",null,"Hinsdale",null,"Jaffrey",null,"Keene",null,"Marlborough",null,"Marlow",null,"Nelson",null,"Richmond",null,"Rindge",null,"Roxbury",null,"Stoddard",null,"Sullivan",null,"Surry",null,"Swanzey",null,"Troy",null,"Walpole",null,"Westmoreland",null,"Winchester"]
[null," ","Estimate","Margin of Error","Estimate","Margin of Error","Estimate","Margin of Error","Estimate","Margin of Error","Estimate","Margin of Error","Estimate","Margin of Error","Estimate","Margin of Error","Estimate","Margin of Error","Estimate","Margin of Error","Estimate","Margin of Error","Estimate","Margin of Error","Estimate","Margin of Error","Estimate","Margin of Error","Estimate","Margin of Error","Estimate","Margin of Error","Estimate","Margin of Error","Estimate","Margin of Error","Estimate","Margin of Error","Estimate","Margin of Error","Estimate","Margin of Error","Estimate","Margin of Error","Estimate","Margin of Error","Estimate","Margin of Error"]
[null,"Median family income in the past 12 months",74286,12288,88935,18465,88333,13101,79792,18467,70938,1972,83125,23692,61792,9613,74207,4709,72980,5264,83875,20679,67885,13908,90313,16488,72679,12097,82917,12738,82750,22692,90833,5447,70000,32938,85417,10624,64792,12926,70521,14576,90469,14838,93529,6469,59940,13916]
[]
[]
[]
[]
[]
[]
[]
[]
[]
[]
[]
[]
[]
[]
[]
[]
[]
[null,"B19101. FAMILY INCOME IN THE PAST 12 MONTHS (IN 2012 INFLATION-ADJUSTED DOLLARS)"]
[null,"Universe:  FAMILIES"]
[null,"Data Set: 2008-2012 American Community Survey 5-Year Estimates"]
[]
[null,null,"Alstead",null,"Chesterfield",null,"Dublin",null,"Fitzwilliam",null,"Gilsum",null,"Harrisville",null,"Hinsdale",null,"Jaffrey",null,"Keene",null,"Marlborough",null,"Marlow",null,"Nelson",null,"Richmond",null,"Rindge",null,"Roxbury",null,"Stoddard",null,"Sullivan",null,"Surry",null,"Swanzey",null,"Troy",null,"Walpole",null,"Westmoreland",null,"Winchester"]
[null," ","Estimate","Margin of Error","Estimate","Margin of Error","Estimate","Margin of Error","Estimate","Margin of Error","Estimate","Margin of Error","Estimate","Margin of Error","Estimate","Margin of Error","Estimate","Margin of Error","Estimate","Margin of Error","Estimate","Margin of Error","Estimate","Margin of Error","Estimate","Margin of Error","Estimate","Margin of Error","Estimate","Margin of Error","Estimate","Margin of Error","Estimate","Margin of Error","Estimate","Margin of Error","Estimate","Margin of Error","Estimate","Margin of Error","Estimate","Margin of Error","Estimate","Margin of Error","Estimate","Margin of Error","Estimate","Margin of Error"]
[null,"Total:",501,55,1146,130,450,60,702,98,164,26,270,48,1075,112,1399,95,4801,266,568,84,272,59,210,42,277,46,1240,103,67,14,325,61,185,36,272,46,1888,130,592,96,965,82,576,73,1152,107]
[null,"Less than $10,000",0,11,11,18,8,13,0,11,5,6,3,4,0,11,37,32,192,104,0,11,5,7,6,6,4,6,59,51,0,11,3,4,8,11,6,10,5,10,31,32,19,25,0,11,99,65]
[null,"$10,000 to $14,999",16,13,0,11,4,5,21,26,2,5,0,11,42,38,44,53,80,50,0,11,0,11,0,11,0,11,52,42,0,11,0,11,0,11,2,3,0,16,5,7,9,12,7,9,23,24]
[null,"$15,000 to $19,999",0,11,0,11,13,15,12,14,13,12,0,11,32,28,14,23,56,49,7,10,2,4,2,3,9,11,19,15,4,5,0,11,9,12,2,3,55,52,0,11,29,31,8,9,78,69]
[null,"$20,000 to $24,999",8,8,16,23,18,20,32,34,9,10,16,15,22,26,33,51,197,93,49,49,8,7,11,8,3,5,46,45,4,4,22,20,5,5,3,4,10,19,61,44,34,36,6,7,98,51]
[null,"$25,000 to $29,999",25,23,14,22,21,18,15,15,0,11,6,7,101,77,0,16,191,102,8,8,2,3,4,4,18,10,15,12,0,11,34,22,5,5,4,5,48,37,20,18,53,43,13,12,52,53]
[null,"$30,000 to $34,999",33,22,38,41,13,15,21,27,3,5,14,15,65,43,31,37,164,72,14,14,13,15,5,6,16,15,23,30,7,7,27,19,6,6,23,16,63,54,24,24,58,53,10,9,91,70]
[null,"$35,000 to $39,999",16,14,63,77,6,6,27,24,3,5,35,26,135,88,0,16,180,74,30,22,24,19,2,5,5,6,68,38,0,11,0,11,16,10,17,16,44,43,7,9,10,18,16,14,75,54]
[null,"$40,000 to $44,999",22,12,24,33,20,13,33,24,15,11,10,12,36,34,49,40,127,67,26,20,32,43,0,11,14,13,13,14,5,6,5,7,5,5,8,8,184,83,51,36,33,27,35,19,24,27]
[null,"$45,000 to $49,999",27,19,129,76,25,20,20,18,14,15,13,15,17,20,32,37,173,96,44,33,5,6,7,7,23,26,13,15,0,11,11,11,9,13,10,9,127,130,29,25,47,36,36,22,41,33]
[null,"$50,000 to $59,999",57,27,86,58,67,32,24,18,25,13,24,14,148,76,177,95,506,174,35,23,27,18,3,4,11,9,130,55,9,6,16,15,3,6,22,17,238,100,64,37,63,34,33,17,88,53]
[null,"$60,000 to $74,999",94,42,85,60,69,27,88,46,15,10,6,6,157,77,274,123,545,143,87,47,58,26,28,19,39,17,150,70,6,5,84,35,28,19,24,15,263,100,70,36,255,95,66,32,189,72]
[null,"$75,000 to $99,999",96,28,232,103,39,23,193,67,40,14,49,16,178,61,255,105,848,165,166,49,32,15,34,17,47,23,306,75,14,8,35,19,42,21,65,27,297,118,116,52,166,66,166,45,187,86]
[null,"$100,000 to $124,999",56,26,210,91,69,27,89,37,10,8,47,25,99,61,188,109,617,154,58,29,31,20,24,14,46,20,168,58,4,4,48,24,21,15,16,9,190,103,63,34,70,38,78,27,19,27]
[null,"$125,000 to $149,999",24,23,31,32,17,15,56,29,2,3,19,13,15,19,132,79,349,116,26,20,15,11,22,18,29,22,67,37,5,7,20,16,15,9,45,25,199,106,16,17,19,22,22,20,26,31]
[null,"$150,000 to $199,999",11,10,144,63,39,23,56,38,8,6,6,6,28,28,48,36,300,97,18,16,16,19,27,19,6,7,43,31,3,4,12,14,2,4,10,8,89,70,12,15,64,53,30,18,47,38]
[null,"$200,000 or more",16,12,63,71,22,18,15,15,0,11,22,13,0,11,85,58,276,93,0,11,2,3,35,23,7,7,68,39,6,5,8,13,11,7,15,10,76,59,23,17,36,28,50,27,15,20]
[]
[]
[null,"B19113. MEDIAN FAMILY INCOME IN THE PAST 12 MONTHS (IN 2012 INFLATION-ADJUSTED DOLLARS)"]
[null,"Universe:  FAMILIES"]
[null,"Data Set: 2008-2012 American Community Survey 5-Year Estimates"]
[]
[null,null,"Alstead",null,"Chesterfield",null,"Dublin",null,"Fitzwilliam",null,"Gilsum",null,"Harrisville",null,"Hinsdale",null,"Jaffrey",null,"Keene",null,"Marlborough",null,"Marlow",null,"Nelson",null,"Richmond",null,"Rindge",null,"Roxbury",null,"Stoddard",null,"Sullivan",null,"Surry",null,"Swanzey",null,"Troy",null,"Walpole",null,"Westmoreland",null,"Winchester"]
[null," ","Estimate","Margin of Error","Estimate","Margin of Error","Estimate","Margin of Error","Estimate","Margin of Error","Estimate","Margin of Error","Estimate","Margin of Error","Estimate","Margin of Error","Estimate","Margin of Error","Estimate","Margin of Error","Estimate","Margin of Error","Estimate","Margin of Error","Estimate","Margin of Error","Estimate","Margin of Error","Estimate","Margin of Error","Estimate","Margin of Error","Estimate","Margin of Error","Estimate","Margin of Error","Estimate","Margin of Error","Estimate","Margin of Error","Estimate","Margin of Error","Estimate","Margin of Error","Estimate","Margin of Error","Estimate","Margin of Error"]
[null,"Median family income in the past 12 months",65917,9525,83694,6605,65978,4946,81346,6120,57273,4509,79167,27350,53877,6259,78466,14423,74712,6558,67500,13545,66250,8921,100938,16913,72188,15227,77286,11851,71250,19740,71797,5698,74063,25437,79000,15119,67470,10084,60435,10071,68875,3196,83796,7517,47195,15546]

{"sheet":"ACS_TableB19201_ACS_Tbl_B19202","index":63,"n_rows":115,"n_cols":48,"rows_kept":115,"cut":false,"hidden":true,"merged":[]}
[null,"B19102. NON-FAMILY INCOME IN THE PAST 12 MONTHS (IN 2022 INFLATION-ADJUSTED DOLLARS)"]
[null,"Universe:  FAMILIES"]
[null,"Data Set: 2018-2022 American Community Survey 5-Year Estimates"]
[]
[null,null,"Alstead",null,"Chesterfield",null,"Dublin",null,"Fitzwilliam",null,"Gilsum",null,"Harrisville",null,"Hinsdale",null,"Jaffrey",null,"Keene",null,"Marlborough",null,"Marlow",null,"Nelson",null,"Richmond",null,"Rindge",null,"Roxbury",null,"Stoddard",null,"Sullivan",null,"Surry",null,"Swanzey",null,"Troy",null,"Walpole",null,"Westmoreland",null,"Winchester"]
[null," ","Estimate","Margin of Error","Estimate","Margin of Error","Estimate","Margin of Error","Estimate","Margin of Error","Estimate","Margin of Error","Estimate","Margin of Error","Estimate","Margin of Error","Estimate","Margin of Error","Estimate","Margin of Error","Estimate","Margin of Error","Estimate","Margin of Error","Estimate","Margin of Error","Estimate","Margin of Error","Estimate","Margin of Error","Estimate","Margin of Error","Estimate","Margin of Error","Estimate","Margin of Error","Estimate","Margin of Error","Estimate","Margin of Error","Estimate","Margin of Error","Estimate","Margin of Error","Estimate","Margin of Error","Estimate","Margin of Error"]
[null,"Total:",269,84,363,168,108,32,394,89,80,29,103,30,545,133,652,266,4718,494,385,81,67,22,79,24,77,29,521,144,29,13,139,39,85,24,82,23,1166,251,261,80,544,145,216,94,708,172]
[null,"Less than $10,000",54,45,0,12,12,10,38,29,1,2,7,9,29,47,40,38,189,113,20,18,2,3,1,4,0,12,0,17,0,12,10,13,0,12,0,12,32,34,33,31,175,118,3,4,41,38]
[null,"$10,000 to $14,999",47,48,18,29,3,4,38,32,12,12,3,4,14,21,28,42,465,163,38,30,12,12,0,12,3,5,14,17,1,2,2,4,8,9,2,4,85,77,9,10,0,12,0,12,25,17]
[null,"$15,000 to $19,999",13,12,39,39,3,3,29,29,6,5,3,4,3,5,11,17,595,202,11,17,4,5,3,3,19,16,22,20,0,12,0,12,6,8,2,4,114,94,11,17,26,32,45,46,102,54]
[null,"$20,000 to $24,999",26,30,19,30,5,5,19,21,2,4,7,7,47,38,28,34,169,90,53,40,3,4,2,3,0,12,47,46,4,6,8,9,9,9,7,6,56,43,22,26,7,11,27,30,92,72]
[null,"$25,000 to $29,999",0,12,53,80,4,6,33,33,9,7,0,12,48,36,47,46,253,127,17,15,9,11,2,5,3,5,32,25,4,4,6,6,2,3,3,6,95,81,49,38,30,29,17,11,28,38]
[null,"$30,000 to $34,999",20,21,0,12,5,6,7,9,2,3,7,9,34,31,102,88,382,170,26,20,3,5,7,6,6,7,7,11,2,3,13,7,4,4,2,3,145,154,15,24,19,23,14,18,25,24]
[null,"$35,000 to $39,999",5,6,36,41,0,12,0,12,7,10,0,12,19,26,13,20,261,94,43,29,2,4,3,4,0,12,14,23,3,3,14,14,9,6,9,7,56,41,20,25,6,11,0,12,39,31]
[null,"$40,000 to $44,999",0,12,73,88,0,12,25,21,4,5,11,12,69,92,11,18,118,73,0,12,0,12,4,4,6,6,48,46,1,3,3,4,3,4,0,12,29,32,4,6,7,11,12,16,36,30]
[null,"$45,000 to $49,999",5,7,0,12,12,13,11,12,0,12,7,7,0,12,15,24,221,128,6,9,0,12,4,4,0,12,13,15,3,3,3,4,8,7,13,14,30,34,0,12,35,36,14,17,52,51]
[null,"$50,000 to $59,999",46,40,0,12,0,12,54,37,8,7,0,12,48,39,68,62,446,128,34,28,4,4,7,5,1,3,103,75,2,3,7,6,7,9,5,5,125,57,25,18,70,53,19,22,20,26]
[null,"$60,000 to $74,999",6,8,94,89,5,6,21,28,15,13,23,12,91,71,174,205,181,82,40,31,2,3,11,7,16,20,92,72,0,12,30,21,4,4,2,4,137,94,20,13,29,29,16,18,72,59]
[null,"$75,000 to $99,999",9,10,12,18,17,10,26,17,6,7,20,17,90,67,0,17,639,215,6,12,17,14,12,11,13,9,57,41,3,5,11,8,7,6,17,12,208,105,9,9,47,40,10,10,75,74]
[null,"$100,000 to $124,999",20,17,0,12,16,13,48,45,4,5,3,4,11,18,77,80,267,108,5,7,7,6,0,12,8,7,37,37,5,8,3,4,10,12,9,6,5,8,22,23,22,22,4,6,10,17]
[null,"$125,000 to $149,999",0,12,0,12,6,5,0,12,2,3,4,5,13,21,21,36,308,181,38,40,0,12,8,9,0,12,21,23,0,12,16,14,6,7,2,4,37,41,13,19,24,31,3,4,74,66]
[null,"$150,000 to $199,999",18,16,19,30,6,6,11,11,0,12,0,12,10,18,17,28,118,122,21,22,0,12,2,3,2,5,14,16,1,3,10,14,0,12,5,6,0,17,5,9,22,25,32,33,0,12]
[null,"$200,000 or more",0,12,0,12,14,18,34,28,2,4,8,9,19,30,0,17,106,72,27,32,2,3,13,11,0,12,0,17,0,12,3,4,2,4,4,5,12,21,4,6,25,39,0,12,17,19]
[]
[]
[null,"B19112. MEDIAN NON-FAMILY INCOME IN THE PAST 12 MONTHS (IN 2022 INFLATION-ADJUSTED DOLLARS)"]
[null,"Universe:  FAMILIES"]
[null,{"$f":"B3","v":"Data Set: 2018-2022 American Community Survey 5-Year Estimates"}]
[]
[null,null,"Alstead",null,"Chesterfield",null,"Dublin",null,"Fitzwilliam",null,"Gilsum",null,"Harrisville",null,"Hinsdale",null,"Jaffrey",null,"Keene",null,"Marlborough",null,"Marlow",null,"Nelson",null,"Richmond",null,"Rindge",null,"Roxbury",null,"Stoddard",null,"Sullivan",null,"Surry",null,"Swanzey",null,"Troy",null,"Walpole",null,"Westmoreland",null,"Winchester"]
[null," ","Estimate","Margin of Error","Estimate","Margin of Error","Estimate","Margin of Error","Estimate","Margin of Error","Estimate","Margin of Error","Estimate","Margin of Error","Estimate","Margin of Error","Estimate","Margin of Error","Estimate","Margin of Error","Estimate","Margin of Error","Estimate","Margin of Error","Estimate","Margin of Error","Estimate","Margin of Error","Estimate","Margin of Error","Estimate","Margin of Error","Estimate","Margin of Error","Estimate","Margin of Error","Estimate","Margin of Error","Estimate","Margin of Error","Estimate","Margin of Error","Estimate","Margin of Error","Estimate","Margin of Error","Estimate","Margin of Error"]
[null,"Median family income in the past 12 months","-","**",40778,11183,81071,22886,48750,16585,40625,16316,62321,20573,51080,17017,54096,26489,41654,8469,37083,16531,"-","**",64583,15588,60104,39839,56580,4224,43750,21996,65083,19125,47679,14378,54000,43391,41250,17807,31083,9285,45714,29396,40417,21721,40263,11823]
[]
[]
[]
[]
[]
[]
[]
[]
[]
[]
[]
[]
[]
[]
[]
[]
[]
[null,"B19102. NON-FAMILY INCOME IN THE PAST 12 MONTHS (IN 2017 INFLATION-ADJUSTED DOLLARS)"]
[null,"Universe:  FAMILIES"]
[null,"Data Set: 2013-2017 American Community Survey 5-Year Estimates"]
[]
[null,null,"Alstead",null,"Chesterfield",null,"Dublin",null,"Fitzwilliam",null,"Gilsum",null,"Harrisville",null,"Hinsdale",null,"Jaffrey",null,"Keene",null,"Marlborough",null,"Marlow",null,"Nelson",null,"Richmond",null,"Rindge",null,"Roxbury",null,"Stoddard",null,"Sullivan",null,"Surry",null,"Swanzey",null,"Troy",null,"Walpole",null,"Westmoreland",null,"Winchester"]
[null," ","Estimate","Margin of Error","Estimate","Margin of Error","Estimate","Margin of Error","Estimate","Margin of Error","Estimate","Margin of Error","Estimate","Margin of Error","Estimate","Margin of Error","Estimate","Margin of Error","Estimate","Margin of Error","Estimate","Margin of Error","Estimate","Margin of Error","Estimate","Margin of Error","Estimate","Margin of Error","Estimate","Margin of Error","Estimate","Margin of Error","Estimate","Margin of Error","Estimate","Margin of Error","Estimate","Margin of Error","Estimate","Margin of Error","Estimate","Margin of Error","Estimate","Margin of Error","Estimate","Margin of Error","Estimate","Margin of Error"]
[null,"Total:",308,71,380,146,168,50,373,85,86,24,164,38,653,140,4291,390,4333,361,379,93,78,27,65,22,111,36,547,126,19,9,116,34,111,33,85,27,830,204,321,78,602,114,118,37,632,170]
[null,"Less than $10,000",42,33,63,73,11,8,24,15,22,15,3,4,101,82,621,204,673,222,10,11,8,8,9,7,10,13,105,66,2,5,3,5,11,9,5,6,43,39,22,27,43,31,3,4,62,58]
[null,"$10,000 to $14,999",33,28,26,28,6,5,43,35,8,8,6,6,78,60,356,114,411,135,33,29,3,5,0,11,9,8,52,51,3,3,3,4,1,4,12,10,61,45,65,43,41,40,14,15,50,42]
[null,"$15,000 to $19,999",0,11,0,11,28,25,27,23,7,6,0,11,84,70,307,90,423,146,19,15,6,7,2,3,0,11,47,49,0,11,0,11,15,14,12,12,139,114,14,22,23,20,2,4,79,63]
[null,"$20,000 to $24,999",20,13,24,26,26,19,29,28,4,4,10,15,58,48,464,174,343,136,33,25,2,3,8,7,17,12,38,23,1,2,3,4,14,11,2,3,95,62,9,11,19,22,11,10,104,71]
[null,"$25,000 to $29,999",4,7,0,11,16,16,25,22,13,12,14,10,37,36,311,101,292,111,55,41,0,11,4,6,13,15,38,35,0,11,42,25,0,11,0,11,17,25,15,13,26,23,6,6,0,11]
[null,"$30,000 to $34,999",31,31,17,26,17,18,64,41,0,11,0,11,56,46,260,124,239,114,46,36,6,12,3,4,13,14,43,46,3,3,22,14,3,6,2,3,56,58,36,27,76,45,0,11,64,44]
[null,"$35,000 to $39,999",16,12,48,48,0,11,28,24,4,4,18,11,16,18,192,94,192,90,28,30,10,12,4,3,5,7,17,19,0,11,9,7,5,5,7,10,37,36,5,8,29,36,3,4,19,21]
[null,"$40,000 to $44,999",23,23,45,42,8,12,32,29,0,11,21,14,37,29,180,122,186,82,18,28,6,6,5,5,2,3,26,23,2,3,2,5,9,7,0,11,15,26,16,13,96,57,8,9,30,29]
[null,"$45,000 to $49,999",23,18,29,33,0,11,3,5,4,4,19,15,19,21,238,115,185,110,17,27,2,3,3,5,17,20,7,12,1,2,0,11,2,3,0,11,20,32,0,11,49,36,7,8,77,58]
[null,"$50,000 to $59,999",38,30,19,27,6,6,17,14,4,4,29,22,53,35,438,167,341,140,45,36,6,8,3,5,6,8,19,21,1,3,4,5,2,3,4,6,120,67,26,27,40,38,6,7,0,11]
[null,"$60,000 to $74,999",49,28,24,27,16,16,37,19,5,6,16,8,32,31,463,176,483,163,14,13,12,8,8,8,8,8,24,29,3,3,13,10,11,11,12,13,32,33,74,48,27,26,16,14,87,59]
[null,"$75,000 to $99,999",6,8,18,28,12,9,18,16,9,7,15,9,64,59,236,101,271,105,24,15,8,9,1,4,11,12,70,47,0,11,3,4,22,13,18,13,138,103,9,10,56,41,9,10,30,25]
[null,"$100,000 to $124,999",13,11,32,35,3,5,8,6,4,4,3,5,0,11,107,62,194,113,7,10,6,6,1,4,0,11,31,38,1,2,3,4,12,12,8,7,0,16,15,14,7,12,12,12,11,16]
[null,"$125,000 to $149,999",0,11,0,11,9,8,5,7,2,5,10,16,10,16,55,35,35,29,30,31,3,4,0,11,0,11,7,13,0,11,9,14,0,11,3,5,12,20,5,7,26,25,9,7,6,11]
[null,"$150,000 to $199,999",5,8,19,28,7,8,0,11,0,11,0,11,8,13,14,25,15,24,0,11,0,11,2,3,0,11,16,17,2,4,0,11,2,2,0,11,0,16,0,11,44,48,9,9,13,19]
[null,"$200,000 or more",5,6,16,25,3,4,13,11,0,11,0,11,0,11,49,41,50,37,0,11,0,11,12,11,0,11,7,12,0,11,0,11,2,3,0,11,45,46,10,10,0,11,3,5,0,11]
[]
[]
[null,"B19112. MEDIAN NON-FAMILY INCOME IN THE PAST 12 MONTHS (IN 2015 INFLATION-ADJUSTED DOLLARS)"]
[null,"Universe:  FAMILIES"]
[null,"Data Set: 2013-2017 American Community Survey 5-Year Estimates"]
[]
[null,null,"Alstead",null,"Chesterfield",null,"Dublin",null,"Fitzwilliam",null,"Gilsum",null,"Harrisville",null,"Hinsdale",null,"Jaffrey",null,"Keene",null,"Marlborough",null,"Marlow",null,"Nelson",null,"Richmond",null,"Rindge",null,"Roxbury",null,"Stoddard",null,"Sullivan",null,"Surry",null,"Swanzey",null,"Troy",null,"Walpole",null,"Westmoreland",null,"Winchester"]
[null," ","Estimate","Margin of Error","Estimate","Margin of Error","Estimate","Margin of Error","Estimate","Margin of Error","Estimate","Margin of Error","Estimate","Margin of Error","Estimate","Margin of Error","Estimate","Margin of Error","Estimate","Margin of Error","Estimate","Margin of Error","Estimate","Margin of Error","Estimate","Margin of Error","Estimate","Margin of Error","Estimate","Margin of Error","Estimate","Margin of Error","Estimate","Margin of Error","Estimate","Margin of Error","Estimate","Margin of Error","Estimate","Margin of Error","Estimate","Margin of Error","Estimate","Margin of Error","Estimate","Margin of Error","Estimate","Margin of Error"]
[null,"Median family income in the past 12 months",43026,9985,40909,5175,29318,6010,31816,4146,27500,8593,47273,8809,25372,9037,31833,4719,30422,4080,34323,6075,42500,11378,42083,18094,31250,14270,27386,9104,40625,16776,31750,4534,41806,24058,55625,30500,35400,15698,34922,19445,41571,2323,59583,23185,31750,11025]
[]
[]
[null,"B19102. NON-FAMILY INCOME IN THE PAST 12 MONTHS (IN 2012 INFLATION-ADJUSTED DOLLARS)"]
[null,"Universe:  FAMILIES"]
[null,"Data Set: 2008-2012 American Community Survey 5-Year Estimates"]
[]
[null,null,"Alstead",null,"Chesterfield",null,"Dublin",null,"Fitzwilliam",null,"Gilsum",null,"Harrisville",null,"Hinsdale",null,"Jaffrey",null,"Keene",null,"Marlborough",null,"Marlow",null,"Nelson",null,"Richmond",null,"Rindge",null,"Roxbury",null,"Stoddard",null,"Sullivan",null,"Surry",null,"Swanzey",null,"Troy",null,"Walpole",null,"Westmoreland",null,"Winchester"]
[null," ","Estimate","Margin of Error","Estimate","Margin of Error","Estimate","Margin of Error","Estimate","Margin of Error","Estimate","Margin of Error","Estimate","Margin of Error","Estimate","Margin of Error","Estimate","Margin of Error","Estimate","Margin of Error","Estimate","Margin of Error","Estimate","Margin of Error","Estimate","Margin of Error","Estimate","Margin of Error","Estimate","Margin of Error","Estimate","Margin of Error","Estimate","Margin of Error","Estimate","Margin of Error","Estimate","Margin of Error","Estimate","Margin of Error","Estimate","Margin of Error","Estimate","Margin of Error","Estimate","Margin of Error","Estimate","Margin of Error"]
[null,"Total:",252,61,310,148,170,49,419,95,83,32,158,53,762,174,810,167,4163,421,260,73,66,25,109,44,98,41,545,125,21,12,136,36,73,26,73,21,1025,185,245,80,550,138,111,37,637,132]
[null,"Less than $10,000",15,15,56,45,13,8,7,10,13,13,15,16,105,74,38,37,476,149,27,19,12,16,0,11,13,15,111,49,5,7,11,10,0,11,5,5,97,80,23,23,60,50,3,4,26,24]
[null,"$10,000 to $14,999",36,20,28,29,0,11,25,23,5,5,0,11,53,36,94,58,428,144,25,28,16,12,6,9,7,7,56,53,2,3,12,14,25,20,0,11,136,94,21,20,33,28,4,6,74,44]
[null,"$15,000 to $19,999",31,21,13,20,3,4,12,14,0,11,14,13,122,81,76,53,442,141,24,29,5,6,10,14,2,5,76,40,2,3,4,5,3,4,0,11,109,69,40,33,82,56,11,17,18,21]
[null,"$20,000 to $24,999",20,17,0,11,23,20,78,58,0,11,28,35,112,94,120,61,399,130,7,11,0,11,2,3,0,11,32,22,3,4,12,9,10,11,6,7,99,87,25,19,21,19,14,18,66,38]
[null,"$25,000 to $29,999",17,21,0,11,12,14,23,20,15,16,4,7,19,30,206,88,265,104,30,33,0,11,22,14,0,11,47,43,2,3,14,10,3,5,3,5,70,54,8,12,39,31,0,11,40,28]
[null,"$30,000 to $34,999",18,15,0,11,33,25,48,45,0,11,16,17,15,17,39,35,320,130,11,12,0,11,12,9,2,5,15,17,1,3,5,7,8,9,6,9,88,97,35,39,75,58,4,6,101,61]
[null,"$35,000 to $39,999",13,15,0,11,0,11,52,37,15,17,3,4,95,87,39,37,230,101,5,7,7,10,26,36,16,11,31,34,0,11,3,5,2,5,0,11,73,57,22,35,79,68,8,9,41,35]
[null,"$40,000 to $44,999",7,7,0,11,15,18,11,11,18,16,15,13,31,30,12,20,209,104,31,34,2,3,5,6,16,17,33,27,6,8,32,25,5,6,5,5,54,50,29,28,39,37,4,5,27,29]
[null,"$45,000 to $49,999",0,11,0,11,17,17,57,52,2,5,3,4,62,66,13,20,334,150,14,22,0,11,6,6,24,26,7,11,0,11,13,16,3,5,2,3,15,25,0,11,18,21,20,20,19,21]
[null,"$50,000 to $59,999",47,31,17,24,5,8,30,22,6,8,26,20,60,43,47,39,267,116,28,22,7,8,2,4,4,6,11,17,0,11,8,8,4,7,16,12,87,64,4,7,24,22,18,12,110,81]
[null,"$60,000 to $74,999",27,22,104,111,3,4,46,39,4,4,8,9,43,34,53,52,257,100,20,17,7,8,3,4,8,7,39,30,0,11,10,9,6,5,5,5,60,46,4,7,25,22,0,11,28,30]
[null,"$75,000 to $99,999",0,11,26,40,26,17,12,13,2,3,17,12,39,60,11,18,323,140,0,11,5,6,10,9,3,5,28,27,0,11,0,11,4,5,12,7,30,38,10,13,9,15,13,15,25,27]
[null,"$100,000 to $124,999",17,20,11,16,12,9,9,14,0,11,9,8,0,11,27,30,116,83,7,10,3,4,3,5,0,11,54,48,0,11,6,6,0,11,2,3,79,64,24,28,46,33,3,6,12,18]
[null,"$125,000 to $149,999",0,11,55,68,3,4,0,11,0,11,0,11,0,11,10,15,41,37,20,20,2,4,0,11,0,11,5,9,0,11,0,11,0,11,2,3,9,13,0,11,0,11,2,5,34,42]
[null,"$150,000 to $199,999",0,11,0,11,0,11,9,10,3,5,0,11,0,11,14,22,26,26,0,11,0,11,0,11,3,4,0,16,0,11,2,4,0,11,9,7,19,30,0,11,0,11,7,8,0,11]
[null,"$200,000 or more",4,7,0,11,5,6,0,11,0,11,0,11,6,10,11,18,30,25,11,17,0,11,2,4,0,11,0,16,0,11,4,5,0,11,0,11,0,16,0,11,0,11,0,11,16,24]
[]
[]
[null,"B19112. MEDIAN NON-FAMILY INCOME IN THE PAST 12 MONTHS (IN 2012 INFLATION-ADJUSTED DOLLARS)"]
[null,"Universe:  FAMILIES"]
[null,"Data Set: 2008-2012 American Community Survey 5-Year Estimates"]
[]
[null,null,"Alstead",null,"Chesterfield",null,"Dublin",null,"Fitzwilliam",null,"Gilsum",null,"Harrisville",null,"Hinsdale",null,"Jaffrey",null,"Keene",null,"Marlborough",null,"Marlow",null,"Nelson",null,"Richmond",null,"Rindge",null,"Roxbury",null,"Stoddard",null,"Sullivan",null,"Surry",null,"Swanzey",null,"Troy",null,"Walpole",null,"Westmoreland",null,"Winchester"]
[null," ","Estimate","Margin of Error","Estimate","Margin of Error","Estimate","Margin of Error","Estimate","Margin of Error","Estimate","Margin of Error","Estimate","Margin of Error","Estimate","Margin of Error","Estimate","Margin of Error","Estimate","Margin of Error","Estimate","Margin of Error","Estimate","Margin of Error","Estimate","Margin of Error","Estimate","Margin of Error","Estimate","Margin of Error","Estimate","Margin of Error","Estimate","Margin of Error","Estimate","Margin of Error","Estimate","Margin of Error","Estimate","Margin of Error","Estimate","Margin of Error","Estimate","Margin of Error","Estimate","Margin of Error","Estimate","Margin of Error"]
[null,"Median family income in the past 12 months",31167,8179,65986,5948,40250,17662,37664,6507,37125,7841,39167,17760,23036,17230,26405,1319,31477,4185,40100,15745,28750,36375,35240,5529,41406,4150,24702,6865,23125,10885,41029,8490,23125,15694,53875,6193,32543,11171,30393,10794,32273,5307,47083,4495,34188,5392]

{"sheet":"ACS_Table_B25119","index":64,"n_rows":68,"n_cols":48,"rows_kept":68,"cut":false,"hidden":true,"merged":[[48917,12,48917,13],[48917,14,48917,15],[48917,16,48917,17],[48917,18,48917,19],[48917,20,48917,21],[48917,22,48917,23],[48911,14,48911,15],[48911,16,48911,17],[48911,18,48911,19],[48911,20,48911,21],[48911,22,48911,23],[48917,2,48917,3],[48917,4,48917,5],[48917,6,48917,7],[48917,8,48917,9],[48917,10,48917,11],[48911,2,48911,3],[48911,4,48911,5],[48911,6,48911,7],[48911,8,48911,9],[48911,10,48911,11],[48911,12,48911,13],[48905,12,48905,13],[48905,14,48905,15],[48905,16,48905,17],[48905,18,48905,19],[48905,20,48905,21],[48905,22,48905,23],[48899,14,48899,15],[48899,16,48899,17],[48899,18,48899,19],[48899,20,48899,21],[48899,22,48899,23],[48905,2,48905,3],[48905,4,48905,5],[48905,6,48905,7],[48905,8,48905,9],[48905,10,48905,11],[48899,2,48899,3],[48899,4,48899,5],[48899,6,48899,7],[48899,8,48899,9],[48899,10,48899,11],[48899,12,48899,13],[48893,12,48893,13],[48893,14,48893,15],[48893,16,48893,17],[48893,18,48893,19],[48893,20,48893,21],[48893,22,48893,23],[48887,14,48887,15],[48887,16,48887,17],[48887,18,48887,19],[48887,20,48887,21],[48887,22,48887,23],[48893,2,48893,3],[48893,4,48893,5],[48893,6,48893,7],[48893,8,48893,9],[48893,10,48893,11],[48887,2,48887,3],[48887,4,48887,5],[48887,6,48887,7],[48887,8,48887,9],[48887,10,48887,11],[48887,12,48887,13],[48881,12,48881,13],[48881,14,48881,15],[48881,16,48881,17],[48881,18,48881,19],[48881,20,48881,21],[48881,22,48881,23],[48875,14,48875,15],[48875,16,48875,17],[48875,18,48875,19],[48875,20,48875,21],[48875,22,48875,23],[48881,2,48881,3],[48881,4,48881,5],[48881,6,48881,7],[48881,8,48881,9],[48881,10,48881,11],[48875,2,48875,3],[48875,4,48875,5],[48875,6,48875,7],[48875,8,48875,9],[48875,10,48875,11],[48875,12,48875,13],[48869,12,48869,13],[48869,14,48869,15],[48869,16,48869,17],[48869,18,48869,19],[48869,20,48869,21],[48869,22,48869,23],[48863,14,48863,15],[48863,16,48863,17],[48863,18,48863,19],[48863,20,48863,21],[48863,22,48863,23],[48869,2,48869,3],[48869,4,48869,5],[48869,6,48869,7],[48869,8,48869,9],[48869,10,48869,11],[48863,2,48863,3],[48863,4,48863,5],[48863,6,48863,7],[48863,8,48863,9],[48863,10,48863,11],[48863,12,48863,13],[48857,12,48857,13],[48857,14,48857,15],[48857,16,48857,17],[48857,18,48857,19],[48857,20,48857,21],[48857,22,48857,23],[48851,14,48851,15],[48851,16,48851,17],[48851,18,48851,19],[48851,20,48851,21],[48851,22,48851,23],[48857,2,48857,3],[48857,4,48857,5],[48857,6,48857,7],[48857,8,48857,9],[48857,10,48857,11],[48851,2,48851,3],[48851,4,48851,5],[48851,6,48851,7],[48851,8,48851,9],[48851,10,48851,11],[48851,12,48851,13],[48845,12,48845,13],[48845,14,48845,15],[48845,16,48845,17],[48845,18,48845,19],[48845,20,48845,21],[48845,22,48845,23],[48839,14,48839,15],[48839,16,48839,17],[48839,18,48839,19],[48839,20,48839,21],[48839,22,48839,23],[48845,2,48845,3],[48845,4,48845,5],[48845,6,48845,7],[48845,8,48845,9],[48845,10,48845,11],[48839,2,48839,3],[48839,4,48839,5],[48839,6,48839,7],[48839,8,48839,9],[48839,10,48839,11],[48839,12,48839,13],[48833,12,48833,13],[48833,14,48833,15],[48833,16,48833,17],[48833,18,48833,19],[48833,20,48833,21],[48833,22,48833,23],[48827,14,48827,15],[48827,16,48827,17],[48827,18,48827,19],[48827,20,48827,21],[48827,22,48827,23],[48833,2,48833,3],[48833,4,48833,5],[48833,6,48833,7],[48833,8,48833,9],[48833,10,48833,11],[48827,2,48827,3],[48827,4,48827,5],[48827,6,48827,7],[48827,8,48827,9],[48827,10,48827,11],[48827,12,48827,13],[48821,12,48821,13],[48821,14,48821,15],[48821,16,48821,17],[48821,18,48821,19],[48821,20,48821,21],[48821,22,48821,23],[48815,14,48815,15],[48815,16,48815,17],[48815,18,48815,19],[48815,20,48815,21],[48815,22,48815,23],[48821,2,48821,3],[48821,4,48821,5],[48821,6,48821,7],[48821,8,48821,9],[48821,10,48821,11],[48815,2,48815,3],[48815,4,48815,5],[48815,6,48815,7],[48815,8,48815,9],[48815,10,48815,11],[48815,12,48815,13],[48809,12,48809,13],[48809,14,48809,15],[48809,16,48809,17],[48809,18,48809,19],[48809,20,48809,21],[48809,22,48809,23],[48803,14,48803,15],[48803,16,48803,17],[48803,18,48803,19],[48803,20,48803,21],[48803,22,48803,23],[48809,2,48809,3],[48809,4,48809,5],[48809,6,48809,7],[48809,8,48809,9],[48809,10,48809,11],[48803,2,48803,3],[48803,4,48803,5],[48803,6,48803,7],[48803,8,48803,9],[48803,10,48803,11],[48803,12,48803,13],[48797,12,48797,13],[48797,14,48797,15],[48797,16,48797,17],[48797,18,48797,19],[48797,20,48797,21],[48797,22,48797,23],[48791,14,48791,15],[48791,16,48791,17],[48791,18,48791,19],[48791,20,48791,21],[48791,22,48791,23],[48797,2,48797,3],[48797,4,48797,5],[48797,6,48797,7],[48797,8,48797,9],[48797,10,48797,11],[48791,2,48791,3],[48791,4,48791,5],[48791,6,48791,7],[48791,8,48791,9],[48791,10,48791,11],[48791,12,48791,13],[48785,12,48785,13],[48785,14,48785,15],[48785,16,48785,17],[48785,18,48785,19],[48785,20,48785,21],[48785,22,48785,23],[48779,14,48779,15],[48779,16,48779,17],[48779,18,48779,19],[48779,20,48779,21],[48779,22,48779,23],[48785,2,48785,3],[48785,4,48785,5],[48785,6,48785,7],[48785,8,48785,9],[48785,10,48785,11],[48779,2,48779,3],[48779,4,48779,5],[48779,6,48779,7],[48779,8,48779,9],[48779,10,48779,11],[48779,12,48779,13],[48773,12,48773,13],[48773,14,48773,15],[48773,16,48773,17],[48773,18,48773,19],[48773,20,48773,21],[48773,22,48773,23],[48767,14,48767,15],[48767,16,48767,17],[48767,18,48767,19],[48767,20,48767,21],[48767,22,48767,23],[48773,2,48773,3],[48773,4,48773,5],[48773,6,48773,7],[48773,8,48773,9],[48773,10,48773,11],[48767,2,48767,3],[48767,4,48767,5],[48767,6,48767,7],[48767,8,48767,9],[48767,10,48767,11],[48767,12,48767,13],[48761,12,48761,13],[48761,14,48761,15],[48761,16,48761,17],[48761,18,48761,19],[48761,20,48761,21],[48761,22,48761,23],[48755,14,48755,15],[48755,16,48755,17],[48755,18,48755,19],[48755,20,48755,21],[48755,22,48755,23],[48761,2,48761,3],[48761,4,48761,5],[48761,6,48761,7],[48761,8,48761,9],[48761,10,48761,11],[48755,2,48755,3],[48755,4,48755,5],[48755,6,48755,7],[48755,8,48755,9],[48755,10,48755,11],[48755,12,48755,13],[48749,12,48749,13],[48749,14,48749,15],[48749,16,48749,17],[48749,18,48749,19],[48749,20,48749,21],[48749,22,48749,23],[48743,14,48743,15],[48743,16,48743,17],[48743,18,48743,19],[48743,20,48743,21],[48743,22,48743,23],[48749,2,48749,3],[48749,4,48749,5],[48749,6,48749,7],[48749,8,48749,9],[48749,10,48749,11],[48743,2,48743,3],[48743,4,48743,5],[48743,6,48743,7],[48743,8,48743,9],[48743,10,48743,11],[48743,12,48743,13],[48737,12,48737,13],[48737,14,48737,15],[48737,16,48737,17],[48737,18,48737,19],[48737,20,48737,21],[48737,22,48737,23],[48731,14,48731,15],[48731,16,48731,17],[48731,18,48731,19],[48731,20,48731,21],[48731,22,48731,23],[48737,2,48737,3],[48737,4,48737,5],[48737,6,48737,7],[48737,8,48737,9],[48737,10,48737,11],[48731,2,48731,3],[48731,4,48731,5],[48731,6,48731,7],[48731,8,48731,9],[48731,10,48731,11],[48731,12,48731,13],[48725,12,48725,13],[48725,14,48725,15],[48725,16,48725,17],[48725,18,48725,19],[48725,20,48725,21],[48725,22,48725,23],[48719,14,48719,15],[48719,16,48719,17],[48719,18,48719,19],[48719,20,48719,21],[48719,22,48719,23],[48725,2,48725,3],[48725,4,48725,5],[48725,6,48725,7],[48725,8,48725,9],[48725,10,48725,11],[48719,2,48719,3],[48719,4,48719,5],[48719,6,48719,7],[48719,8,48719,9],[48719,10,48719,11],[48719,12,48719,13],[48713,12,48713,13],[48713,14,48713,15],[48713,16,48713,17],[48713,18,48713,19],[48713,20,48713,21],[48713,22,48713,23],[48707,14,48707,15],[48707,16,48707,17],[48707,18,48707,19],[48707,20,48707,21],[48707,22,48707,23],[48713,2,48713,3],[48713,4,48713,5],[48713,6,48713,7],[48713,8,48713,9],[48713,10,48713,11],[48707,2,48707,3],[48707,4,48707,5],[48707,6,48707,7],[48707,8,48707,9],[48707,10,48707,11],[48707,12,48707,13],[48701,12,48701,13],[48701,14,48701,15],[48701,16,48701,17],[48701,18,48701,19],[48701,20,48701,21],[48701,22,48701,23],[48695,14,48695,15],[48695,16,48695,17],[48695,18,48695,19],[48695,20,48695,21],[48695,22,48695,23],[48701,2,48701,3],[48701,4,48701,5],[48701,6,48701,7],[48701,8,48701,9],[48701,10,48701,11],[48695,2,48695,3],[48695,4,48695,5],[48695,6,48695,7],[48695,8,48695,9],[48695,10,48695,11],[48695,12,48695,13],[48689,12,48689,13],[48689,14,48689,15],[48689,16,48689,17],[48689,18,48689,19],[48689,20,48689,21],[48689,22,48689,23],[48683,14,48683,15],[48683,16,48683,17],[48683,18,48683,19],[48683,20,48683,21],[48683,22,48683,23],[48689,2,48689,3],[48689,4,48689,5],[48689,6,48689,7],[48689,8,48689,9],[48689,10,48689,11],[48683,2,48683,3],[48683,4,48683,5],[48683,6,48683,7],[48683,8,48683,9],[48683,10,48683,11],[48683,12,48683,13],[48677,12,48677,13],[48677,14,48677,15],[48677,16,48677,17],[48677,18,48677,19],[48677,20,48677,21],[48677,22,48677,23],[48671,14,48671,15],[48671,16,48671,17],[48671,18,48671,19],[48671,20,48671,21],[48671,22,48671,23],[48677,2,48677,3],[48677,4,48677,5],[48677,6,48677,7],[48677,8,48677,9],[48677,10,48677,11],[48671,2,48671,3],[48671,4,48671,5],[48671,6,48671,7],[48671,8,48671,9],[48671,10,48671,11],[48671,12,48671,13],[48665,12,48665,13],[48665,14,48665,15],[48665,16,48665,17],[48665,18,48665,19],[48665,20,48665,21],[48665,22,48665,23],[48659,14,48659,15],[48659,16,48659,17],[48659,18,48659,19],[48659,20,48659,21],[48659,22,48659,23],[48665,2,48665,3],[48665,4,48665,5],[48665,6,48665,7],[48665,8,48665,9],[48665,10,48665,11],[48659,2,48659,3],[48659,4,48659,5],[48659,6,48659,7],[48659,8,48659,9],[48659,10,48659,11],[48659,12,48659,13],[48653,12,48653,13],[48653,14,48653,15],[48653,16,48653,17],[48653,18,48653,19],[48653,20,48653,21],[48653,22,48653,23],[48647,14,48647,15],[48647,16,48647,17],[48647,18,48647,19],[48647,20,48647,21],[48647,22,48647,23],[48653,2,48653,3],[48653,4,48653,5],[48653,6,48653,7],[48653,8,48653,9],[48653,10,48653,11],[48647,2,48647,3],[48647,4,48647,5],[48647,6,48647,7],[48647,8,48647,9],[48647,10,48647,11],[48647,12,48647,13],[48641,12,48641,13],[48641,14,48641,15],[48641,16,48641,17],[48641,18,48641,19],[48641,20,48641,21],[48641,22,48641,23],[48635,14,48635,15],[48635,16,48635,17],[48635,18,48635,19],[48635,20,48635,21],[48635,22,48635,23],[48641,2,48641,3],[48641,4,48641,5],[48641,6,48641,7],[48641,8,48641,9],[48641,10,48641,11],[48635,2,48635,3],[48635,4,48635,5],[48635,6,48635,7],[48635,8,48635,9],[48635,10,48635,11],[48635,12,48635,13],[48629,12,48629,13],[48629,14,48629,15],[48629,16,48629,17],[48629,18,48629,19],[48629,20,48629,21],[48629,22,48629,23],[48623,14,48623,15],[48623,16,48623,17],[48623,18,48623,19],[48623,20,48623,21],[48623,22,48623,23],[48629,2,48629,3],[48629,4,48629,5],[48629,6,48629,7],[48629,8,48629,9],[48629,10,48629,11],[48623,2,48623,3],[48623,4,48623,5],[48623,6,48623,7],[48623,8,48623,9],[48623,10,48623,11],[48623,12,48623,13],[48617,12,48617,13],[48617,14,48617,15],[48617,16,48617,17],[48617,18,48617,19],[48617,20,48617,21],[48617,22,48617,23],[48611,14,48611,15],[48611,16,48611,17],[48611,18,48611,19],[48611,20,48611,21],[48611,22,48611,23],[48617,2,48617,3],[48617,4,48617,5],[48617,6,48617,7],[48617,8,48617,9],[48617,10,48617,11],[48611,2,48611,3],[48611,4,48611,5],[48611,6,48611,7],[48611,8,48611,9],[48611,10,48611,11],[48611,12,48611,13],[48605,12,48605,13],[48605,14,48605,15],[48605,16,48605,17],[48605,18,48605,19],[48605,20,48605,21],[48605,22,48605,23],[48599,14,48599,15],[48599,16,48599,17],[48599,18,48599,19],[48599,20,48599,21],[48599,22,48599,23],[48605,2,48605,3],[48605,4,48605,5],[48605,6,48605,7],[48605,8,48605,9],[48605,10,48605,11],[48599,2,48599,3],[48599,4,48599,5],[48599,6,48599,7],[48599,8,48599,9],[48599,10,48599,11],[48599,12,48599,13],[48593,12,48593,13],[48593,14,48593,15],[48593,16,48593,17],[48593,18,48593,19],[48593,20,48593,21],[48593,22,48593,23],[48587,14,48587,15],[48587,16,48587,17],[48587,18,48587,19],[48587,20,48587,21],[48587,22,48587,23],[48593,2,48593,3],[48593,4,48593,5],[48593,6,48593,7],[48593,8,48593,9],[48593,10,48593,11],[48587,2,48587,3],[48587,4,48587,5],[48587,6,48587,7],[48587,8,48587,9],[48587,10,48587,11],[48587,12,48587,13],[48581,12,48581,13],[48581,14,48581,15],[48581,16,48581,17],[48581,18,48581,19],[48581,20,48581,21],[48581,22,48581,23],[48575,14,48575,15],[48575,16,48575,17],[48575,18,48575,19],[48575,20,48575,21],[48575,22,48575,23],[48581,2,48581,3],[48581,4,48581,5],[48581,6,48581,7],[48581,8,48581,9],[48581,10,48581,11],[48575,2,48575,3],[48575,4,48575,5],[48575,6,48575,7],[48575,8,48575,9],[48575,10,48575,11],[48575,12,48575,13],[48569,12,48569,13],[48569,14,48569,15],[48569,16,48569,17],[48569,18,48569,19],[48569,20,48569,21],[48569,22,48569,23],[48563,14,48563,15],[48563,16,48563,17],[48563,18,48563,19],[48563,20,48563,21],[48563,22,48563,23],[48569,2,48569,3],[48569,4,48569,5],[48569,6,48569,7],[48569,8,48569,9],[48569,10,48569,11],[48563,2,48563,3],[48563,4,48563,5],[48563,6,48563,7],[48563,8,48563,9],[48563,10,48563,11],[48563,12,48563,13],[48557,12,48557,13],[48557,14,48557,15],[48557,16,48557,17],[48557,18,48557,19],[48557,20,48557,21],[48557,22,48557,23],[48551,14,48551,15],[48551,16,48551,17],[48551,18,48551,19],[48551,20,48551,21],[48551,22,48551,23],[48557,2,48557,3],[48557,4,48557,5],[48557,6,48557,7],[48557,8,48557,9],[48557,10,48557,11],[48551,2,48551,3],[48551,4,48551,5],[48551,6,48551,7],[48551,8,48551,9],[48551,10,48551,11],[48551,12,48551,13],[48545,12,48545,13],[48545,14,48545,15],[48545,16,48545,17],[48545,18,48545,19],[48545,20,48545,21],[48545,22,48545,23],[48539,14,48539,15],[48539,16,48539,17],[48539,18,48539,19],[48539,20,48539,21],[48539,22,48539,23],[48545,2,48545,3],[48545,4,48545,5],[48545,6,48545,7],[48545,8,48545,9],[48545,10,48545,11],[48539,2,48539,3],[48539,4,48539,5],[48539,6,48539,7],[48539,8,48539,9],[48539,10,48539,11],[48539,12,48539,13],[48533,12,48533,13],[48533,14,48533,15],[48533,16,48533,17],[48533,18,48533,19],[48533,20,48533,21],[48533,22,48533,23],[48527,14,48527,15],[48527,16,48527,17],[48527,18,48527,19],[48527,20,48527,21],[48527,22,48527,23],[48533,2,48533,3],[48533,4,48533,5],[48533,6,48533,7],[48533,8,48533,9],[48533,10,48533,11],[48527,2,48527,3],[48527,4,48527,5],[48527,6,48527,7],[48527,8,48527,9],[48527,10,48527,11],[48527,12,48527,13],[48521,12,48521,13],[48521,14,48521,15],[48521,16,48521,17],[48521,18,48521,19],[48521,20,48521,21],[48521,22,48521,23],[48515,14,48515,15],[48515,16,48515,17],[48515,18,48515,19],[48515,20,48515,21],[48515,22,48515,23],[48521,2,48521,3],[48521,4,48521,5],[48521,6,48521,7],[48521,8,48521,9],[48521,10,48521,11],[48515,2,48515,3],[48515,4,48515,5],[48515,6,48515,7],[48515,8,48515,9],[48515,10,48515,11],[48515,12,48515,13],[48509,12,48509,13],[48509,14,48509,15],[48509,16,48509,17],[48509,18,48509,19],[48509,20,48509,21],[48509,22,48509,23],[48503,14,48503,15],[48503,16,48503,17],[48503,18,48503,19],[48503,20,48503,21],[48503,22,48503,23],[48509,2,48509,3],[48509,4,48509,5],[48509,6,48509,7],[48509,8,48509,9],[48509,10,48509,11],[48503,2,48503,3],[48503,4,48503,5],[48503,6,48503,7],[48503,8,48503,9],[48503,10,48503,11],[48503,12,48503,13],[48497,12,48497,13],[48497,14,48497,15],[48497,16,48497,17],[48497,18,48497,19],[48497,20,48497,21],[48497,22,48497,23],[48491,14,48491,15],[48491,16,48491,17],[48491,18,48491,19],[48491,20,48491,21],[48491,22,48491,23],[48497,2,48497,3],[48497,4,48497,5],[48497,6,48497,7],[48497,8,48497,9],[48497,10,48497,11],[48491,2,48491,3],[48491,4,48491,5],[48491,6,48491,7],[48491,8,48491,9],[48491,10,48491,11],[48491,12,48491,13],[48485,12,48485,13],[48485,14,48485,15],[48485,16,48485,17],[48485,18,48485,19],[48485,20,48485,21],[48485,22,48485,23],[48479,14,48479,15],[48479,16,48479,17],[48479,18,48479,19],[48479,20,48479,21],[48479,22,48479,23],[48485,2,48485,3],[48485,4,48485,5],[48485,6,48485,7],[48485,8,48485,9],[48485,10,48485,11],[48479,2,48479,3],[48479,4,48479,5],[48479,6,48479,7],[48479,8,48479,9],[48479,10,48479,11],[48479,12,48479,13],[48473,12,48473,13],[48473,14,48473,15],[48473,16,48473,17],[48473,18,48473,19],[48473,20,48473,21],[48473,22,48473,23],[48467,14,48467,15],[48467,16,48467,17],[48467,18,48467,19],[48467,20,48467,21],[48467,22,48467,23],[48473,2,48473,3],[48473,4,48473,5],[48473,6,48473,7],[48473,8,48473,9],[48473,10,48473,11],[48467,2,48467,3],[48467,4,48467,5],[48467,6,48467,7],[48467,8,48467,9],[48467,10,48467,11],[48467,12,48467,13],[48461,12,48461,13],[48461,14,48461,15],[48461,16,48461,17],[48461,18,48461,19],[48461,20,48461,21],[48461,22,48461,23],[48455,14,48455,15],[48455,16,48455,17],[48455,18,48455,19],[48455,20,48455,21],[48455,22,48455,23],[48461,2,48461,3],[48461,4,48461,5],[48461,6,48461,7],[48461,8,48461,9],[48461,10,48461,11],[48455,2,48455,3],[48455,4,48455,5],[48455,6,48455,7],[48455,8,48455,9],[48455,10,48455,11],[48455,12,48455,13],[48449,12,48449,13],[48449,14,48449,15],[48449,16,48449,17],[48449,18,48449,19],[48449,20,48449,21],[48449,22,48449,23],[48443,14,48443,15],[48443,16,48443,17],[48443,18,48443,19],[48443,20,48443,21],[48443,22,48443,23],[48449,2,48449,3],[48449,4,48449,5],[48449,6,48449,7],[48449,8,48449,9],[48449,10,48449,11],[48443,2,48443,3],[48443,4,48443,5],[48443,6,48443,7],[48443,8,48443,9],[48443,10,48443,11],[48443,12,48443,13],[48437,12,48437,13],[48437,14,48437,15],[48437,16,48437,17],[48437,18,48437,19],[48437,20,48437,21],[48437,22,48437,23],[48431,14,48431,15],[48431,16,48431,17],[48431,18,48431,19],[48431,20,48431,21],[48431,22,48431,23],[48437,2,48437,3],[48437,4,48437,5],[48437,6,48437,7],[48437,8,48437,9],[48437,10,48437,11],[48431,2,48431,3],[48431,4,48431,5],[48431,6,48431,7],[48431,8,48431,9],[48431,10,48431,11],[48431,12,48431,13],[48425,12,48425,13],[48425,14,48425,15],[48425,16,48425,17],[48425,18,48425,19],[48425,20,48425,21],[48425,22,48425,23],[48419,14,48419,15],[48419,16,48419,17],[48419,18,48419,19],[48419,20,48419,21],[48419,22,48419,23],[48425,2,48425,3],[48425,4,48425,5],[48425,6,48425,7],[48425,8,48425,9],[48425,10,48425,11],[48419,2,48419,3],[48419,4,48419,5],[48419,6,48419,7],[48419,8,48419,9],[48419,10,48419,11],[48419,12,48419,13],[48413,12,48413,13],[48413,14,48413,15],[48413,16,48413,17],[48413,18,48413,19],[48413,20,48413,21],[48413,22,48413,23],[48407,14,48407,15],[48407,16,48407,17],[48407,18,48407,19],[48407,20,48407,21],[48407,22,48407,23],[48413,2,48413,3],[48413,4,48413,5],[48413,6,48413,7],[48413,8,48413,9],[48413,10,48413,11],[48407,2,48407,3],[48407,4,48407,5],[48407,6,48407,7],[48407,8,48407,9],[48407,10,48407,11],[48407,12,48407,13],[48401,12,48401,13],[48401,14,48401,15],[48401,16,48401,17],[48401,18,48401,19],[48401,20,48401,21],[48401,22,48401,23],[48395,14,48395,15],[48395,16,48395,17],[48395,18,48395,19],[48395,20,48395,21],[48395,22,48395,23],[48401,2,48401,3],[48401,4,48401,5],[48401,6,48401,7],[48401,8,48401,9],[48401,10,48401,11],[48395,2,48395,3],[48395,4,48395,5],[48395,6,48395,7],[48395,8,48395,9],[48395,10,48395,11],[48395,12,48395,13],[48389,12,48389,13],[48389,14,48389,15],[48389,16,48389,17],[48389,18,48389,19],[48389,20,48389,21],[48389,22,48389,23],[48383,14,48383,15],[48383,16,48383,17],[48383,18,48383,19],[48383,20,48383,21],[48383,22,48383,23],[48389,2,48389,3],[48389,4,48389,5],[48389,6,48389,7],[48389,8,48389,9],[48389,10,48389,11],[48383,2,48383,3],[48383,4,48383,5],[48383,6,48383,7],[48383,8,48383,9],[48383,10,48383,11],[48383,12,48383,13],[48377,12,48377,13],[48377,14,48377,15],[48377,16,48377,17],[48377,18,48377,19],[48377,20,48377,21],[48377,22,48377,23],[48371,14,48371,15],[48371,16,48371,17],[48371,18,48371,19],[48371,20,48371,21]],"merged_total":89628,"flags":["merged_cut"]}
[null,"B25119. MEDIAN HOUSEHOLD INCOME THE PAST 12 MONTHS (IN 20220 INFLATION-ADJUSTED DOLLARS) BY TENURE"]
[null," Universe:  OCCUPIED HOUSING UNITS"]
[null,"Data Set: 2018-2022 American Community Survey 5-Year Estimates"]
[]
[null,null,"Alstead",null,"Chesterfield",null,"Dublin",null,"Fitzwilliam",null,"Gilsum",null,"Harrisville",null,"Hinsdale",null,"Jaffrey",null,"Keene",null,"Marlborough",null,"Marlow",null,"Nelson",null,"Richmond",null,"Rindge",null,"Roxbury",null,"Stoddard",null,"Sullivan",null,"Surry",null,"Swanzey",null,"Troy",null,"Walpole",null,"Westmoreland",null,"Winchester"]
[null," ","Estimate","Margin of Error","Estimate","Margin of Error","Estimate","Margin of Error","Estimate","Margin of Error","Estimate","Margin of Error","Estimate","Margin of Error","Estimate","Margin of Error","Estimate","Margin of Error","Estimate","Margin of Error","Estimate","Margin of Error","Estimate","Margin of Error","Estimate","Margin of Error","Estimate","Margin of Error","Estimate","Margin of Error","Estimate","Margin of Error","Estimate","Margin of Error","Estimate","Margin of Error","Estimate","Margin of Error","Estimate","Margin of Error","Estimate","Margin of Error","Estimate","Margin of Error","Estimate","Margin of Error","Estimate","Margin of Error"]
[null,"Median household income in the past 12 months"]
[null,"Total:",52957,3261,109500,14674,96463,5718,85733,19127,70000,10396,89737,9021,67054,11035,82167,25777,69381,8852,70800,15162,103333,19217,91786,15185,88125,15891,97794,12003,67440,41668,88750,13242,97250,12400,93750,26737,71875,14009,57500,10628,83750,25480,94609,21805,56645,12560]
[null,"Owner occupied (dollars)",70750,30611,111607,21913,101250,15206,85905,19580,73854,10906,89868,9808,68563,12877,101458,32070,93214,7298,95962,18162,105375,17857,105536,32806,89375,16454,104875,17820,67381,35722,89028,14293,100833,6467,98750,24968,98831,18563,64063,19188,102411,23198,100104,21980,76250,19094]
[null,"Renter occupied (dollars)",37727,31230,34966,31691,48750,34676,"-","**",51875,10280,86250,38850,"-","**",65278,28183,48250,4581,30625,11516,"-","**",75417,23451,79167,57992,56161,2312,"-","**",87917,53953,66397,11980,84375,27858,31866,11877,31806,27222,58380,12321,58542,43213,34740,13783]
[]
[]
[]
[]
[]
[]
[]
[]
[]
[]
[]
[]
[]
[]
[]
[]
[]
[]
[]
[null,"B25119. MEDIAN HOUSEHOLD INCOME THE PAST 12 MONTHS (IN 2017 INFLATION-ADJUSTED DOLLARS) BY TENURE"]
[null," Universe:  OCCUPIED HOUSING UNITS"]
[null,"Data Set: 2013-2017 American Community Survey 5-Year Estimates"]
[]
[null,null,"Alstead",null,"Chesterfield",null,"Dublin",null,"Fitzwilliam",null,"Gilsum",null,"Harrisville",null,"Hinsdale",null,"Jaffrey",null,"Keene",null,"Marlborough",null,"Marlow",null,"Nelson",null,"Richmond",null,"Rindge",null,"Roxbury",null,"Stoddard",null,"Sullivan",null,"Surry",null,"Swanzey",null,"Troy",null,"Walpole",null,"Westmoreland",null,"Winchester"]
[null," ","Estimate","Margin of Error","Estimate","Margin of Error","Estimate","Margin of Error","Estimate","Margin of Error","Estimate","Margin of Error","Estimate","Margin of Error","Estimate","Margin of Error","Estimate","Margin of Error","Estimate","Margin of Error","Estimate","Margin of Error","Estimate","Margin of Error","Estimate","Margin of Error","Estimate","Margin of Error","Estimate","Margin of Error","Estimate","Margin of Error","Estimate","Margin of Error","Estimate","Margin of Error","Estimate","Margin of Error","Estimate","Margin of Error","Estimate","Margin of Error","Estimate","Margin of Error","Estimate","Margin of Error","Estimate","Margin of Error"]
[null,"Median household income in the past 12 months"]
[null,"Total:",57097,8064,76217,17580,69375,13698,51638,12598,59750,12333,67266,11198,57340,6696,55398,4513,53499,3182,56689,10451,60833,7637,71500,16887,65813,6977,68250,10701,67500,17389,78182,13446,60625,19701,80163,7283,57326,6116,60200,12564,70991,11871,90500,7697,49578,10806]
[null,"Owner occupied (dollars)",71524,4632,81000,16895,87917,11902,55781,15499,64688,11648,71111,9928,62206,11668,78233,7211,75403,6183,86786,18717,67574,15981,90625,21664,65188,8267,81125,6778,83000,19592,86154,12940,68438,12812,81397,9023,71702,13202,63375,18323,87960,15723,95156,10309,53674,12199]
[null,"Renter occupied (dollars)",33281,6314,"-","**",40833,31569,44750,15944,28750,19714,53125,27035,26791,11881,29912,4629,29917,4088,32632,5803,39464,14623,27500,4474,76250,43658,26607,13462,36250,21300,56250,33581,37153,7948,58750,21988,30221,7767,51010,11168,40708,6131,56250,41898,"-","**"]
[]
[]
[]
[]
[]
[]
[]
[]
[]
[]
[]
[]
[]
[]
[]
[]
[]
[]
[]
[null,"B25119. MEDIAN HOUSEHOLD INCOME THE PAST 12 MONTHS (IN 2012 INFLATION-ADJUSTED DOLLARS) BY TENURE"]
[null," Universe:  OCCUPIED HOUSING UNITS"]
[null,"Data Set: 2008-2012 American Community Survey 5-Year Estimates"]
[]
[null,null,"Alstead",null,"Chesterfield",null,"Dublin",null,"Fitzwilliam",null,"Gilsum",null,"Harrisville",null,"Hinsdale",null,"Jaffrey",null,"Keene",null,"Marlborough",null,"Marlow",null,"Nelson",null,"Richmond",null,"Rindge",null,"Roxbury",null,"Stoddard",null,"Sullivan",null,"Surry",null,"Swanzey",null,"Troy",null,"Walpole",null,"Westmoreland",null,"Winchester"]
[null," ","Estimate","Margin of Error","Estimate","Margin of Error","Estimate","Margin of Error","Estimate","Margin of Error","Estimate","Margin of Error","Estimate","Margin of Error","Estimate","Margin of Error","Estimate","Margin of Error","Estimate","Margin of Error","Estimate","Margin of Error","Estimate","Margin of Error","Estimate","Margin of Error","Estimate","Margin of Error","Estimate","Margin of Error","Estimate","Margin of Error","Estimate","Margin of Error","Estimate","Margin of Error","Estimate","Margin of Error","Estimate","Margin of Error","Estimate","Margin of Error","Estimate","Margin of Error","Estimate","Margin of Error","Estimate","Margin of Error"]
[null,"Median household income in the past 12 months"]
[null,"Total:",56122,4054,80778,15922,58125,11278,63750,16270,46696,8937,52679,6615,45398,6084,60893,6147,50530,3235,62628,8011,63636,11134,78125,20338,61932,9459,69152,11641,58750,17490,62303,8718,63056,18539,75547,12091,56444,2886,50125,10540,53828,12502,78047,7975,43706,9065]
[null,"Owner occupied (dollars)",62326,8718,84011,13064,67391,5757,71250,7254,49375,11585,56250,11421,55938,8263,71295,11141,71689,9046,75950,13248,66484,10838,88864,11345,64167,10309,76190,10019,66250,15865,61711,8806,69722,14037,76458,12306,61068,6201,61359,12055,70953,3904,83490,8324,52321,11022]
[null,"Renter occupied (dollars)",25909,3388,66702,15042,31346,12917,35469,31896,35000,32389,30750,23638,26832,7038,24539,3787,32662,4246,40688,20285,56875,23941,36587,6810,45865,29174,34926,17445,37500,9709,66125,46338,19444,12257,49750,21058,38750,11856,34444,6253,37188,7629,47813,10681,29111,3640]

{"sheet":"ACS_Table_B25001","index":65,"n_rows":29,"n_cols":48,"rows_kept":29,"cut":false,"hidden":true,"merged":[]}
[null,"B25001. HOUSING UNITS"]
[null,"Universe:  HOUSING UNITS"]
[null,"Data Set: 2018-2022 American Community Survey 5-Year Estimates"]
[]
[null,null,"Alstead",null,"Chesterfield",null,"Dublin",null,"Fitzwilliam",null,"Gilsum",null,"Harrisville",null,"Hinsdale",null,"Jaffrey",null,"Keene",null,"Marlborough",null,"Marlow",null,"Nelson",null,"Richmond",null,"Rindge",null,"Roxbury",null,"Stoddard",null,"Sullivan",null,"Surry",null,"Swanzey",null,"Troy",null,"Walpole",null,"Westmoreland",null,"Winchester"]
[null," ","Estimate","Margin of Error","Estimate","Margin of Error","Estimate","Margin of Error","Estimate","Margin of Error","Estimate","Margin of Error","Estimate","Margin of Error","Estimate","Margin of Error","Estimate","Margin of Error","Estimate","Margin of Error","Estimate","Margin of Error","Estimate","Margin of Error","Estimate","Margin of Error","Estimate","Margin of Error","Estimate","Margin of Error","Estimate","Margin of Error","Estimate","Margin of Error","Estimate","Margin of Error","Estimate","Margin of Error","Estimate","Margin of Error","Estimate","Margin of Error","Estimate","Margin of Error","Estimate","Margin of Error","Estimate","Margin of Error"]
[null,"Total",986,109,1792,170,797,112,1317,149,360,57,690,92,1789,178,2474,208,10313,317,1009,129,417,72,429,50,456,82,2449,168,101,38,1020,86,301,55,364,60,3388,169,815,105,1618,160,936,184,1885,173]
[]
[]
[]
[]
[null,"B25001. HOUSING UNITS"]
[null,"Universe:  HOUSING UNITS"]
[null,"Data Set: 2013-2017 American Community Survey 5-Year Estimates"]
[]
[null,null,"Alstead",null,"Chesterfield",null,"Dublin",null,"Fitzwilliam",null,"Gilsum",null,"Harrisville",null,"Hinsdale",null,"Jaffrey",null,"Keene",null,"Marlborough",null,"Marlow",null,"Nelson",null,"Richmond",null,"Rindge",null,"Roxbury",null,"Stoddard",null,"Sullivan",null,"Surry",null,"Swanzey",null,"Troy",null,"Walpole",null,"Westmoreland",null,"Winchester"]
[null," ","Estimate","Margin of Error","Estimate","Margin of Error","Estimate","Margin of Error","Estimate","Margin of Error","Estimate","Margin of Error","Estimate","Margin of Error","Estimate","Margin of Error","Estimate","Margin of Error","Estimate","Margin of Error","Estimate","Margin of Error","Estimate","Margin of Error","Estimate","Margin of Error","Estimate","Margin of Error","Estimate","Margin of Error","Estimate","Margin of Error","Estimate","Margin of Error","Estimate","Margin of Error","Estimate","Margin of Error","Estimate","Margin of Error","Estimate","Margin of Error","Estimate","Margin of Error","Estimate","Margin of Error","Estimate","Margin of Error"]
[null,"Total",919,77,1836,215,770,65,1221,72,343,37,728,67,1979,142,10092,336,10110,344,983,95,418,49,429,48,494,55,2262,152,94,27,1057,89,313,47,379,46,3082,206,892,87,1758,111,714,83,2002,182]
[]
[]
[]
[]
[null,"B25001. HOUSING UNITS"]
[null,"Universe:  HOUSING UNITS"]
[null,"Data Set: 2008-2012 American Community Survey 5-Year Estimates"]
[]
[null,null,"Alstead",null,"Chesterfield",null,"Dublin",null,"Fitzwilliam",null,"Gilsum",null,"Harrisville",null,"Hinsdale",null,"Jaffrey",null,"Keene",null,"Marlborough",null,"Marlow",null,"Nelson",null,"Richmond",null,"Rindge",null,"Roxbury",null,"Stoddard",null,"Sullivan",null,"Surry",null,"Swanzey",null,"Troy",null,"Walpole",null,"Westmoreland",null,"Winchester"]
[null," ","Estimate","Margin of Error","Estimate","Margin of Error","Estimate","Margin of Error","Estimate","Margin of Error","Estimate","Margin of Error","Estimate","Margin of Error","Estimate","Margin of Error","Estimate","Margin of Error","Estimate","Margin of Error","Estimate","Margin of Error","Estimate","Margin of Error","Estimate","Margin of Error","Estimate","Margin of Error","Estimate","Margin of Error","Estimate","Margin of Error","Estimate","Margin of Error","Estimate","Margin of Error","Estimate","Margin of Error","Estimate","Margin of Error","Estimate","Margin of Error","Estimate","Margin of Error","Estimate","Margin of Error","Estimate","Margin of Error"]
[null,"Total",960,76,1782,150,839,76,1236,75,300,37,748,76,2016,154,2356,164,9717,318,960,95,439,61,469,62,495,60,2185,169,90,17,1082,89,285,40,371,45,3137,171,868,103,1626,135,755,82,1984,155]

{"sheet":"ACS_Table_B25003","index":66,"n_rows":42,"n_cols":48,"rows_kept":42,"cut":false,"hidden":true,"merged":[]}
[null,"B25003. TENURE"]
[null,"Universe:  OCCUPIED HOUSING UNITS"]
[null,"Data Set: 2018-2022 American Community Survey 5-Year Estimates"]
[]
[null,null,"Alstead",null,"Chesterfield",null,"Dublin",null,"Fitzwilliam",null,"Gilsum",null,"Harrisville",null,"Hinsdale",null,"Jaffrey",null,"Keene",null,"Marlborough",null,"Marlow",null,"Nelson",null,"Richmond",null,"Rindge",null,"Roxbury",null,"Stoddard",null,"Sullivan",null,"Surry",null,"Swanzey",null,"Troy",null,"Walpole",null,"Westmoreland",null,"Winchester"]
[null," ","Estimate","Margin of Error","Estimate","Margin of Error","Estimate","Margin of Error","Estimate","Margin of Error","Estimate","Margin of Error","Estimate","Margin of Error","Estimate","Margin of Error","Estimate","Margin of Error","Estimate","Margin of Error","Estimate","Margin of Error","Estimate","Margin of Error","Estimate","Margin of Error","Estimate","Margin of Error","Estimate","Margin of Error","Estimate","Margin of Error","Estimate","Margin of Error","Estimate","Margin of Error","Estimate","Margin of Error","Estimate","Margin of Error","Estimate","Margin of Error","Estimate","Margin of Error","Estimate","Margin of Error","Estimate","Margin of Error"]
[null,"Total:",723,97,1366,158,635,101,1013,154,310,51,416,75,1594,139,2026,225,9259,370,942,130,314,61,246,41,393,73,1972,144,95,37,436,52,281,53,344,58,3255,171,758,101,1427,121,885,182,1617,146]
[null,"Owner occupied",507,86,1227,184,530,99,957,154,285,50,386,73,1373,192,1580,229,4762,346,608,113,279,56,225,42,383,72,1711,137,94,38,405,49,240,46,324,59,2237,250,525,81,945,130,787,179,1052,163]
[null,"Renter occupied",216,81,139,90,105,41,56,29,25,14,30,15,221,105,446,167,4497,356,334,92,35,29,21,11,10,9,261,119,1,3,31,18,41,21,20,9,1018,252,233,73,482,141,98,54,565,145]
[]
[]
[]
[]
[]
[]
[]
[]
[]
[]
[]
[]
[null,"B25003. TENURE"]
[null,"Universe:  OCCUPIED HOUSING UNITS"]
[null,"Data Set: 2013-2017 American Community Survey 5-Year Estimates"]
[]
[null,null,"Alstead",null,"Chesterfield",null,"Dublin",null,"Fitzwilliam",null,"Gilsum",null,"Harrisville",null,"Hinsdale",null,"Jaffrey",null,"Keene",null,"Marlborough",null,"Marlow",null,"Nelson",null,"Richmond",null,"Rindge",null,"Roxbury",null,"Stoddard",null,"Sullivan",null,"Surry",null,"Swanzey",null,"Troy",null,"Walpole",null,"Westmoreland",null,"Winchester"]
[null," ","Estimate","Margin of Error","Estimate","Margin of Error","Estimate","Margin of Error","Estimate","Margin of Error","Estimate","Margin of Error","Estimate","Margin of Error","Estimate","Margin of Error","Estimate","Margin of Error","Estimate","Margin of Error","Estimate","Margin of Error","Estimate","Margin of Error","Estimate","Margin of Error","Estimate","Margin of Error","Estimate","Margin of Error","Estimate","Margin of Error","Estimate","Margin of Error","Estimate","Margin of Error","Estimate","Margin of Error","Estimate","Margin of Error","Estimate","Margin of Error","Estimate","Margin of Error","Estimate","Margin of Error","Estimate","Margin of Error"]
[null,"Total:",776,79,1443,147,584,63,1002,92,283,34,437,53,1749,117,9391,370,9449,367,906,99,282,42,226,33,439,50,1883,144,84,27,484,60,293,50,371,45,2828,180,888,87,1631,93,656,77,1718,160]
[null,"Owner occupied",552,75,1218,141,462,54,873,93,257,35,374,47,1316,134,5072,283,4950,273,610,90,255,40,186,35,391,53,1483,153,72,27,440,57,232,46,341,45,2124,201,663,75,1301,105,602,81,1225,174]
[null,"Renter occupied",224,62,225,122,122,41,129,48,26,15,63,29,433,127,4319,404,4499,341,296,85,27,13,40,15,48,30,400,99,12,9,44,26,61,23,30,18,704,165,225,63,330,108,54,28,493,124]
[]
[]
[]
[null,"B25003. TENURE"]
[null,"Universe:  OCCUPIED HOUSING UNITS"]
[null,"Data Set: 2008-2012 American Community Survey 5-Year Estimates"]
[]
[null,null,"Alstead",null,"Chesterfield",null,"Dublin",null,"Fitzwilliam",null,"Gilsum",null,"Harrisville",null,"Hinsdale",null,"Jaffrey",null,"Keene",null,"Marlborough",null,"Marlow",null,"Nelson",null,"Richmond",null,"Rindge",null,"Roxbury",null,"Stoddard",null,"Sullivan",null,"Surry",null,"Swanzey",null,"Troy",null,"Walpole",null,"Westmoreland",null,"Winchester"]
[null," ","Estimate","Margin of Error","Estimate","Margin of Error","Estimate","Margin of Error","Estimate","Margin of Error","Estimate","Margin of Error","Estimate","Margin of Error","Estimate","Margin of Error","Estimate","Margin of Error","Estimate","Margin of Error","Estimate","Margin of Error","Estimate","Margin of Error","Estimate","Margin of Error","Estimate","Margin of Error","Estimate","Margin of Error","Estimate","Margin of Error","Estimate","Margin of Error","Estimate","Margin of Error","Estimate","Margin of Error","Estimate","Margin of Error","Estimate","Margin of Error","Estimate","Margin of Error","Estimate","Margin of Error","Estimate","Margin of Error"]
[null,"Total:",753,73,1456,99,620,67,1121,88,247,34,428,65,1837,141,2209,134,8964,376,828,90,338,62,319,58,375,50,1785,129,88,16,461,67,258,36,345,43,2913,162,837,103,1515,123,687,79,1789,148]
[null,"Owner occupied",621,69,1263,141,480,54,944,104,217,33,360,55,1308,157,1661,123,5098,324,597,70,297,64,236,42,342,48,1354,134,76,15,408,64,218,35,322,44,2256,207,577,81,1049,110,601,73,1218,181]
[null,"Renter occupied",132,44,193,127,140,49,177,79,30,19,68,40,529,121,548,126,3866,378,231,89,41,24,83,43,33,24,431,119,12,9,53,28,40,25,23,14,657,173,260,77,466,132,86,32,571,128]

{"sheet":"ACS_Table_B25004","index":67,"n_rows":56,"n_cols":48,"rows_kept":56,"cut":false,"hidden":true,"merged":[]}
[null,"B25004. VACANCY STATUS"]
[null,"Universe:  VACANT HOUSING UNITS"]
[null,"Data Set: 2018-2022 American Community Survey 5-Year Estimates"]
[]
[null,null,"Alstead",null,"Chesterfield",null,"Dublin",null,"Fitzwilliam",null,"Gilsum",null,"Harrisville",null,"Hinsdale",null,"Jaffrey",null,"Keene",null,"Marlborough",null,"Marlow",null,"Nelson",null,"Richmond",null,"Rindge",null,"Roxbury",null,"Stoddard",null,"Sullivan",null,"Surry",null,"Swanzey",null,"Troy",null,"Walpole",null,"Westmoreland",null,"Winchester"]
[null," ","Estimate","Margin of Error","Estimate","Margin of Error","Estimate","Margin of Error","Estimate","Margin of Error","Estimate","Margin of Error","Estimate","Margin of Error","Estimate","Margin of Error","Estimate","Margin of Error","Estimate","Margin of Error","Estimate","Margin of Error","Estimate","Margin of Error","Estimate","Margin of Error","Estimate","Margin of Error","Estimate","Margin of Error","Estimate","Margin of Error","Estimate","Margin of Error","Estimate","Margin of Error","Estimate","Margin of Error","Estimate","Margin of Error","Estimate","Margin of Error","Estimate","Margin of Error","Estimate","Margin of Error","Estimate","Margin of Error"]
[null,"Total:",263,77,426,182,162,52,304,90,50,30,274,68,195,102,448,172,1054,274,67,47,103,36,183,44,63,35,477,114,6,7,584,78,20,16,20,17,133,111,57,46,191,111,51,34,268,135]
[null,"For rent",35,39,0,12,0,12,18,23,0,12,0,12,0,12,0,17,164,132,0,12,0,12,0,12,0,12,0,17,0,12,0,12,0,12,0,12,0,17,0,12,0,12,11,17,0,12]
[null,"Rented, not occupied",0,12,58,93,0,12,0,12,6,9,8,12,0,12,72,85,333,164,0,12,0,12,8,9,3,5,0,17,2,3,0,12,0,12,0,12,0,17,15,23,49,56,9,15,55,62]
[null,"For sale only",14,23,0,12,0,12,0,12,5,13,0,12,0,12,0,17,60,74,0,12,0,12,4,14,0,12,0,17,0,12,0,12,0,12,0,12,0,17,0,12,0,12,0,12,10,17]
[null,"Sold, not occupied",14,22,0,12,12,17,33,38,0,12,0,12,32,52,0,17,176,141,0,12,0,12,6,9,6,9,23,31,0,12,0,12,0,12,0,12,0,17,13,21,0,12,0,12,0,12]
[null,"For seasonal, recreational, or occasional use",187,59,300,169,146,48,208,73,39,23,258,63,0,12,325,160,121,105,38,31,86,34,156,41,45,29,419,108,4,8,563,81,17,15,13,15,31,47,0,12,88,62,28,23,176,110]
[null,"For migrant workers",0,12,0,12,0,12,0,12,0,12,0,12,0,12,0,17,0,22,0,12,0,12,0,12,0,12,0,17,0,12,0,12,0,12,0,12,0,17,0,12,0,12,0,12,27,43]
[null,"Other vacant",13,20,68,106,4,8,45,41,0,12,8,14,163,97,51,73,200,128,29,30,17,17,9,11,9,13,35,39,0,12,21,19,3,5,7,9,102,111,29,33,54,64,3,4,0,12]
[]
[]
[]
[]
[]
[]
[]
[null,"B25004. VACANCY STATUS"]
[null,"Universe:  VACANT HOUSING UNITS"]
[null,"Data Set: 2013-2017 American Community Survey 5-Year Estimates"]
[]
[null,null,"Alstead",null,"Chesterfield",null,"Dublin",null,"Fitzwilliam",null,"Gilsum",null,"Harrisville",null,"Hinsdale",null,"Jaffrey",null,"Keene",null,"Marlborough",null,"Marlow",null,"Nelson",null,"Richmond",null,"Rindge",null,"Roxbury",null,"Stoddard",null,"Sullivan",null,"Surry",null,"Swanzey",null,"Troy",null,"Walpole",null,"Westmoreland",null,"Winchester"]
[null," ","Estimate","Margin of Error","Estimate","Margin of Error","Estimate","Margin of Error","Estimate","Margin of Error","Estimate","Margin of Error","Estimate","Margin of Error","Estimate","Margin of Error","Estimate","Margin of Error","Estimate","Margin of Error","Estimate","Margin of Error","Estimate","Margin of Error","Estimate","Margin of Error","Estimate","Margin of Error","Estimate","Margin of Error","Estimate","Margin of Error","Estimate","Margin of Error","Estimate","Margin of Error","Estimate","Margin of Error","Estimate","Margin of Error","Estimate","Margin of Error","Estimate","Margin of Error","Estimate","Margin of Error","Estimate","Margin of Error"]
[null,"Total:",143,51,393,147,186,50,219,74,60,27,291,51,230,114,701,254,661,193,77,41,136,41,203,45,55,28,379,87,10,8,573,80,20,17,8,10,254,136,4,8,127,93,58,33,284,124]
[null,"For rent",0,11,58,83,0,11,0,11,6,10,3,4,0,11,112,84,147,93,0,11,0,11,2,4,0,11,0,16,1,2,0,11,6,9,0,11,0,16,0,11,24,40,16,18,0,11]
[null,"Rented, not occupied",0,11,0,11,0,11,0,11,0,11,0,11,33,51,82,76,68,77,0,11,0,11,0,11,0,11,0,16,0,11,0,11,0,11,0,11,0,16,0,11,0,11,0,11,0,11]
[null,"For sale only",21,24,0,11,8,12,13,20,3,5,8,12,91,73,68,76,29,44,0,11,0,11,0,11,4,6,0,16,1,3,0,11,0,11,0,11,33,53,0,11,84,84,7,11,54,68]
[null,"Sold, not occupied",0,11,0,11,0,11,11,18,0,11,0,11,0,11,46,49,41,44,0,11,0,11,6,10,0,11,0,16,0,11,0,11,0,11,0,11,0,16,0,11,0,11,0,11,0,11]
[null,"For seasonal, recreational, or occasional use",58,35,335,132,127,42,152,63,42,24,258,48,24,38,105,89,145,129,42,29,102,35,175,42,35,25,379,87,8,7,553,78,14,14,8,10,38,61,4,8,19,32,15,18,85,68]
[null,"For migrant workers",0,11,0,11,0,11,0,11,0,11,0,11,0,11,0,21,0,20,0,11,0,11,0,11,0,11,0,16,0,11,0,11,0,11,0,11,0,16,0,11,0,11,0,11,0,11]
[null,"Other vacant",64,43,0,11,51,26,43,36,9,10,22,20,82,70,288,181,231,140,35,29,34,23,20,15,16,16,0,16,0,11,20,19,0,11,0,11,183,126,0,11,0,11,20,20,145,98]
[]
[]
[]
[]
[]
[]
[]
[null,"B25004. VACANCY STATUS"]
[null,"Universe:  VACANT HOUSING UNITS"]
[null,"Data Set: 2008-2012 American Community Survey 5-Year Estimates"]
[]
[null,null,"Alstead",null,"Chesterfield",null,"Dublin",null,"Fitzwilliam",null,"Gilsum",null,"Harrisville",null,"Hinsdale",null,"Jaffrey",null,"Keene",null,"Marlborough",null,"Marlow",null,"Nelson",null,"Richmond",null,"Rindge",null,"Roxbury",null,"Stoddard",null,"Sullivan",null,"Surry",null,"Swanzey",null,"Troy",null,"Walpole",null,"Westmoreland",null,"Winchester"]
[null," ","Estimate","Margin of Error","Estimate","Margin of Error","Estimate","Margin of Error","Estimate","Margin of Error","Estimate","Margin of Error","Estimate","Margin of Error","Estimate","Margin of Error","Estimate","Margin of Error","Estimate","Margin of Error","Estimate","Margin of Error","Estimate","Margin of Error","Estimate","Margin of Error","Estimate","Margin of Error","Estimate","Margin of Error","Estimate","Margin of Error","Estimate","Margin of Error","Estimate","Margin of Error","Estimate","Margin of Error","Estimate","Margin of Error","Estimate","Margin of Error","Estimate","Margin of Error","Estimate","Margin of Error","Estimate","Margin of Error"]
[null,"Total:",207,62,326,135,219,50,115,51,53,28,320,54,179,108,147,91,753,239,132,64,101,31,150,44,120,50,400,112,2,3,621,75,27,20,26,24,224,122,31,32,111,71,68,38,195,80]
[null,"For rent",0,11,0,11,0,11,15,25,9,10,0,11,17,27,0,16,195,122,0,11,4,8,0,11,0,11,32,36,0,11,0,11,0,11,0,11,20,32,0,11,24,38,0,11,10,16]
[null,"Rented, not occupied",0,11,0,11,0,11,23,36,0,11,0,11,0,11,14,22,76,70,0,11,0,11,0,11,0,11,0,16,0,11,0,11,0,11,0,11,0,16,0,11,0,11,0,11,0,11]
[null,"For sale only",16,24,31,49,0,11,6,8,0,11,18,21,56,60,0,16,0,21,0,11,5,8,15,15,31,26,38,41,0,11,0,11,0,11,0,11,44,67,14,24,0,11,12,16,38,47]
[null,"Sold, not occupied",0,11,0,11,7,11,0,11,0,11,0,11,0,11,0,16,0,21,0,11,0,11,0,11,0,11,16,25,0,11,0,11,0,11,0,11,0,16,0,11,0,11,0,11,0,11]
[null,"For seasonal, recreational, or occasional use",148,51,247,139,185,50,53,44,29,22,264,52,0,11,133,92,203,123,99,60,82,28,125,37,36,24,209,76,2,3,593,77,12,11,12,17,84,72,7,11,58,54,27,21,76,51]
[null,"For migrant workers",0,11,0,11,0,11,0,11,0,11,0,11,0,11,0,16,0,21,0,11,0,11,0,11,0,11,0,16,0,11,0,11,0,11,0,11,0,16,0,11,0,11,0,11,0,11]
[null,"Other vacant",43,31,48,74,27,22,18,29,15,14,38,22,106,85,0,16,279,140,33,39,10,13,10,14,53,35,105,68,0,11,28,20,15,17,14,17,76,83,10,17,29,32,29,27,71,51]

{"sheet":"ACS_Table_B25008","index":68,"n_rows":51,"n_cols":48,"rows_kept":51,"cut":false,"hidden":true,"merged":[]}
[null,"B25008. TOTAL POPULATION IN OCCUPIED HOUSING UNITS BY TENURE"]
[null,"Universe:  TOTAL POPULATION IN OCCUPIED HOUSING UNITS"]
[null,"Data Set: 2018-2022 American Community Survey 5-Year Estimates"]
[]
[null,null,"Alstead",null,"Chesterfield",null,"Dublin",null,"Fitzwilliam",null,"Gilsum",null,"Harrisville",null,"Hinsdale",null,"Jaffrey",null,"Keene",null,"Marlborough",null,"Marlow",null,"Nelson",null,"Richmond",null,"Rindge",null,"Roxbury",null,"Stoddard",null,"Sullivan",null,"Surry",null,"Swanzey",null,"Troy",null,"Walpole",null,"Westmoreland",null,"Winchester"]
[null," ","Estimate","Margin of Error","Estimate","Margin of Error","Estimate","Margin of Error","Estimate","Margin of Error","Estimate","Margin of Error","Estimate","Margin of Error","Estimate","Margin of Error","Estimate","Margin of Error","Estimate","Margin of Error","Estimate","Margin of Error","Estimate","Margin of Error","Estimate","Margin of Error","Estimate","Margin of Error","Estimate","Margin of Error","Estimate","Margin of Error","Estimate","Margin of Error","Estimate","Margin of Error","Estimate","Margin of Error","Estimate","Margin of Error","Estimate","Margin of Error","Estimate","Margin of Error","Estimate","Margin of Error","Estimate","Margin of Error"]
[null,"Total:",1599,169,3577,15,1617,217,2287,368,863,144,977,197,3965,16,5280,31,20239,48,2248,391,798,175,550,106,1102,251,5437,37,295,142,1205,162,681,130,950,245,7306,22,1889,275,3651,33,1971,342,4094,24]
[null,"Owner occupied",1155,163,3174,273,1324,197,2192,365,799,140,894,191,3350,376,4313,457,11596,704,1589,362,668,143,515,101,1072,248,4820,275,292,143,1081,150,585,106,903,243,5317,506,1377,211,2672,330,1780,341,2743,386]
[null,"Renter occupied",444,178,403,272,293,144,95,52,64,36,83,47,615,377,967,458,8643,706,659,260,130,108,35,21,30,25,617,277,3,5,124,72,96,62,47,21,1989,505,512,189,979,325,191,133,1351,383]
[]
[]
[]
[]
[]
[]
[]
[]
[]
[]
[]
[]
[null,"B25008. TOTAL POPULATION IN OCCUPIED HOUSING UNITS BY TENURE"]
[null,"Universe:  TOTAL POPULATION IN OCCUPIED HOUSING UNITS"]
[null,"Data Set: 2013-2017 American Community Survey 5-Year Estimates"]
[]
[null,null,"Alstead",null,"Chesterfield",null,"Dublin",null,"Fitzwilliam",null,"Gilsum",null,"Harrisville",null,"Hinsdale",null,"Jaffrey",null,"Keene",null,"Marlborough",null,"Marlow",null,"Nelson",null,"Richmond",null,"Rindge",null,"Roxbury",null,"Stoddard",null,"Sullivan",null,"Surry",null,"Swanzey",null,"Troy",null,"Walpole",null,"Westmoreland",null,"Winchester"]
[null," ","Estimate","Margin of Error","Estimate","Margin of Error","Estimate","Margin of Error","Estimate","Margin of Error","Estimate","Margin of Error","Estimate","Margin of Error","Estimate","Margin of Error","Estimate","Margin of Error","Estimate","Margin of Error","Estimate","Margin of Error","Estimate","Margin of Error","Estimate","Margin of Error","Estimate","Margin of Error","Estimate","Margin of Error","Estimate","Margin of Error","Estimate","Margin of Error","Estimate","Margin of Error","Estimate","Margin of Error","Estimate","Margin of Error","Estimate","Margin of Error","Estimate","Margin of Error","Estimate","Margin of Error","Estimate","Margin of Error"]
[null,"Total:",1847,227,3566,15,1411,167,2294,213,692,79,888,124,3925,20,20081,326,20328,379,2120,297,708,115,575,94,1238,175,4991,219,216,57,1193,185,725,118,884,130,7169,37,2182,310,3809,18,1696,212,4146,122]
[null,"Owner occupied",1413,221,3067,282,1100,164,1962,221,635,80,763,127,3034,318,12055,650,11510,672,1578,280,663,115,491,91,1070,193,3936,343,191,53,1052,173,517,92,816,129,5750,388,1704,281,3185,216,1583,217,2862,378]
[null,"Renter occupied",434,139,499,281,311,117,332,165,57,32,125,59,891,318,8026,680,8818,656,542,197,45,22,84,34,168,114,1055,297,25,20,141,77,208,86,68,32,1419,386,478,145,624,216,113,61,1284,365]
[]
[]
[]
[]
[]
[]
[]
[]
[]
[]
[]
[]
[null,"B25008. TOTAL POPULATION IN OCCUPIED HOUSING UNITS BY TENURE"]
[null,"Universe:  TOTAL POPULATION IN OCCUPIED HOUSING UNITS"]
[null,"Data Set: 2008-2012 American Community Survey 5-Year Estimates"]
[]
[null,null,"Alstead",null,"Chesterfield",null,"Dublin",null,"Fitzwilliam",null,"Gilsum",null,"Harrisville",null,"Hinsdale",null,"Jaffrey",null,"Keene",null,"Marlborough",null,"Marlow",null,"Nelson",null,"Richmond",null,"Rindge",null,"Roxbury",null,"Stoddard",null,"Sullivan",null,"Surry",null,"Swanzey",null,"Troy",null,"Walpole",null,"Westmoreland",null,"Winchester"]
[null," ","Estimate","Margin of Error","Estimate","Margin of Error","Estimate","Margin of Error","Estimate","Margin of Error","Estimate","Margin of Error","Estimate","Margin of Error","Estimate","Margin of Error","Estimate","Margin of Error","Estimate","Margin of Error","Estimate","Margin of Error","Estimate","Margin of Error","Estimate","Margin of Error","Estimate","Margin of Error","Estimate","Margin of Error","Estimate","Margin of Error","Estimate","Margin of Error","Estimate","Margin of Error","Estimate","Margin of Error","Estimate","Margin of Error","Estimate","Margin of Error","Estimate","Margin of Error","Estimate","Margin of Error","Estimate","Margin of Error"]
[null,"Total:",1883,173,3617,22,1584,194,2576,268,539,74,923,139,4046,18,5380,78,20149,407,1973,270,890,185,729,156,971,143,4795,234,219,37,1045,181,691,108,821,110,7230,28,2112,274,3728,24,1913,227,4261,36]
[null,"Owner occupied",1637,181,3187,295,1256,149,2289,301,480,71,793,124,3112,242,4321,363,12279,725,1465,219,777,182,556,141,868,127,3580,383,201,38,890,158,596,108,762,114,5965,421,1521,229,2682,312,1670,224,2787,441]
[null,"Renter occupied",246,94,430,293,328,149,287,136,59,37,130,82,934,241,1059,365,7870,761,508,249,113,73,173,86,103,77,1215,385,18,14,155,107,95,71,59,40,1265,422,591,187,1046,312,243,81,1474,443]

{"sheet":"ACS_Table_B25024","index":69,"n_rows":78,"n_cols":48,"rows_kept":78,"cut":false,"hidden":true,"merged":[]}
[null,"B25024. UNITS IN STRUCTURE "]
[null,"Universe:  HOUSING UNITS"]
[null,"Data Set: 2018-2022 American Community Survey 5-Year Estimates"]
[]
[null,null,"Alstead",null,"Chesterfield",null,"Dublin",null,"Fitzwilliam",null,"Gilsum",null,"Harrisville",null,"Hinsdale",null,"Jaffrey",null,"Keene",null,"Marlborough",null,"Marlow",null,"Nelson",null,"Richmond",null,"Rindge",null,"Roxbury",null,"Stoddard",null,"Sullivan",null,"Surry",null,"Swanzey",null,"Troy",null,"Walpole",null,"Westmoreland",null,"Winchester"]
[null," ","Estimate","Margin of Error","Estimate","Margin of Error","Estimate","Margin of Error","Estimate","Margin of Error","Estimate","Margin of Error","Estimate","Margin of Error","Estimate","Margin of Error","Estimate","Margin of Error","Estimate","Margin of Error","Estimate","Margin of Error","Estimate","Margin of Error","Estimate","Margin of Error","Estimate","Margin of Error","Estimate","Margin of Error","Estimate","Margin of Error","Estimate","Margin of Error","Estimate","Margin of Error","Estimate","Margin of Error","Estimate","Margin of Error","Estimate","Margin of Error","Estimate","Margin of Error","Estimate","Margin of Error","Estimate","Margin of Error"]
[null,"Total:",986,109,1792,170,797,112,1317,149,360,57,690,92,1789,178,2474,208,10313,317,1009,129,417,72,429,50,456,82,2449,168,101,38,1020,86,301,55,364,60,3388,169,815,105,1618,160,936,184,1885,173]
[null,"1, detached",708,110,1733,184,742,110,1109,124,319,60,645,96,1028,222,2084,244,4863,322,645,110,384,65,371,49,422,73,2120,184,96,38,980,89,254,52,356,59,2139,243,530,85,1132,163,891,182,1146,151]
[null,"1, attached",5,7,0,12,13,10,0,12,2,5,4,5,28,30,49,74,499,199,18,15,10,17,8,8,0,12,38,33,0,12,9,7,2,3,2,3,182,100,0,12,27,27,7,8,19,22]
[null,2,53,40,10,16,3,4,59,42,17,12,3,4,118,148,52,51,1235,290,85,49,0,12,14,12,19,29,58,58,0,12,5,5,10,7,4,5,148,85,109,59,158,84,3,4,121,72]
[null,"3 or 4",40,38,29,38,19,12,0,12,0,12,3,4,77,66,46,45,669,191,86,52,0,12,0,12,0,12,0,17,0,12,0,12,13,8,0,12,45,46,54,37,159,95,8,15,92,69]
[null,"5 to 9",17,26,0,12,0,12,0,12,0,12,0,12,29,47,95,70,891,188,70,33,0,12,0,12,0,12,64,49,0,12,3,4,0,12,0,12,238,155,28,28,7,11,0,12,165,96]
[null,"10 to 19",0,12,0,12,0,12,0,12,0,12,0,12,0,12,57,69,631,194,5,8,0,12,0,12,0,12,7,11,0,12,0,12,0,12,0,12,170,107,20,26,57,78,3,5,74,64]
[null,"20 to 49",55,54,0,12,8,10,0,12,0,12,0,12,14,22,44,42,629,222,73,25,0,12,0,12,0,12,53,60,0,12,8,13,0,12,0,12,131,97,0,12,12,19,12,16,29,26]
[null,"50 or more",0,12,0,12,0,12,0,12,0,12,0,12,0,12,0,17,504,181,0,12,0,12,0,12,0,12,0,17,0,12,0,12,0,12,0,12,90,74,0,12,0,12,10,17,0,12]
[null,"Mobile home",108,46,20,30,12,14,149,105,22,14,35,23,495,125,47,49,392,160,27,17,23,17,36,23,15,12,109,56,5,5,15,19,22,10,2,3,245,118,74,47,66,50,2,5,239,113]
[null,"Boat, RV, van, etc.",0,12,0,12,0,12,0,12,0,12,0,12,0,12,0,17,0,22,0,12,0,12,0,12,0,12,0,17,0,12,0,12,0,12,0,12,0,17,0,12,0,12,0,12,0,12]
[]
[]
[null,"Calculated B25024. UNITS IN STRUCTURE "]
[null,"Universe:  HOUSING UNITS"]
[null,"Data Set: 2018-2022 American Community Survey 5-Year Estimates"]
[]
[null,null,"Alstead",null,"Chesterfield",null,"Dublin",null,"Fitzwilliam",null,"Gilsum",null,"Harrisville",null,"Hinsdale",null,"Jaffrey",null,"Keene",null,"Marlborough",null,"Marlow",null,"Nelson",null,"Richmond",null,"Rindge",null,"Roxbury",null,"Stoddard",null,"Sullivan",null,"Surry",null,"Swanzey",null,"Troy",null,"Walpole",null,"Westmoreland",null,"Winchester"]
[null," ","Estimate","Margin of Error","Estimate","Margin of Error","Estimate","Margin of Error","Estimate","Margin of Error","Estimate","Margin of Error","Estimate","Margin of Error","Estimate","Margin of Error","Estimate","Margin of Error","Estimate","Margin of Error","Estimate","Margin of Error","Estimate","Margin of Error","Estimate","Margin of Error","Estimate","Margin of Error","Estimate","Margin of Error","Estimate","Margin of Error","Estimate","Margin of Error","Estimate","Margin of Error","Estimate","Margin of Error","Estimate","Margin of Error","Estimate","Margin of Error","Estimate","Margin of Error","Estimate","Margin of Error","Estimate","Margin of Error"]
[null,"Total:",{"$f":"C7","v":986},109,1792,170,797,112,1317,149,360,57,690,92,1789,178,2474,208,10313,317,1009,129,417,72,{"$f":"Y7","v":429},50,456,82,2449,168,101,38,1020,86,301,55,364,60,3388,169,{"$f":"AO7","v":815},105,1618,160,936,184,1885,173]
[null,"Single Family",{"$f":"C8","v":708},110,1733,184,742,110,1109,124,319,60,645,96,1028,222,2084,244,4863,322,645,110,384,65,{"$f":"Y8","v":371},49,422,73,2120,184,96,38,980,89,254,52,356,59,2139,243,{"$f":"AO8","v":530},85,1132,163,891,182,1146,151]
[null,"Multi-Family",{"$f":"C9+C10+C11+C12+C13+C14+C15","v":170},{"$f":"SQRT((D9^2)+(D10^2)+(D11^2)+(D12^2)+(D13^2)+(D14^2)+(D15^2))","v":83.504490897196661},{"$f":"E9+E10+E11+E12+E13+E14+E15","v":39},{"$f":"SQRT((F9^2)+(F10^2)+(F11^2)+(F12^2)+(F13^2)+(F14^2)+(F15^2))","v":49.193495504995376},{"$f":"G9+G10+G11+G12+G13+G14+G15","v":43},{"$f":"SQRT((H9^2)+(H10^2)+(H11^2)+(H12^2)+(H13^2)+(H14^2)+(H15^2))","v":28.142494558940577},{"$f":"I9+I10+I11+I12+I13+I14+I15","v":59},{"$f":"SQRT((J9^2)+(J10^2)+(J11^2)+(J12^2)+(J13^2)+(J14^2)+(J15^2))","v":51.264022471905186},{"$f":"K9+K10+K11+K12+K13+K14+K15","v":19},{"$f":"SQRT((L9^2)+(L10^2)+(L11^2)+(L12^2)+(L13^2)+(L14^2)+(L15^2))","v":29.816103031751148},{"$f":"M9+M10+M11+M12+M13+M14+M15","v":10},{"$f":"SQRT((N9^2)+(N10^2)+(N11^2)+(N12^2)+(N13^2)+(N14^2)+(N15^2))","v":25.159491250818249},{"$f":"O9+O10+O11+O12+O13+O14+O15","v":266},{"$f":"SQRT((P9^2)+(P10^2)+(P11^2)+(P12^2)+(P13^2)+(P14^2)+(P15^2))","v":173.61163555476344},{"$f":"Q9+Q10+Q11+Q12+Q13+Q14+Q15","v":343},{"$f":"SQRT((R9^2)+(R10^2)+(R11^2)+(R12^2)+(R13^2)+(R14^2)+(R15^2))","v":147.70240350109404},{"$f":"S9+S10+S11+S12+S13+S14+S15","v":5058},{"$f":"SQRT((T9^2)+(T10^2)+(T11^2)+(T12^2)+(T13^2)+(T14^2)+(T15^2))","v":561.43298798699027},{"$f":"U9+U10+U11+U12+U13+U14+U15","v":337},{"$f":"SQRT((V9^2)+(V10^2)+(V11^2)+(V12^2)+(V13^2)+(V14^2)+(V15^2))","v":85.158675424175073},{"$f":"W9+W10+W11+W12+W13+W14+W15","v":10},{"$f":"SQRT((X9^2)+(X10^2)+(X11^2)+(X12^2)+(X13^2)+(X14^2)+(X15^2))","v":33.955853692699293},{"$f":"Y9+Y10+Y11+Y12+Y13+Y14+Y15","v":22},{"$f":"SQRT((Z9^2)+(Z10^2)+(Z11^2)+(Z12^2)+(Z13^2)+(Z14^2)+(Z15^2))","v":30.463092423455635},{"$f":"AA9+AA10+AA11+AA12+AA13+AA14+AA15","v":19},{"$f":"SQRT((AB9^2)+(AB10^2)+(AB11^2)+(AB12^2)+(AB13^2)+(AB14^2)+(AB15^2))","v":41.291645644125154},{"$f":"AC9+AC10+AC11+AC12+AC13+AC14+AC15","v":220},{"$f":"SQRT((AD9^2)+(AD10^2)+(AD11^2)+(AD12^2)+(AD13^2)+(AD14^2)+(AD15^2))","v":105.60776486603625},{"$f":"AE9+AE10+AE11+AE12+AE13+AE14+AE15","v":0},{"$f":"SQRT((AF9^2)+(AF10^2)+(AF11^2)+(AF12^2)+(AF13^2)+(AF14^2)+(AF15^2))","v":31.749015732775089},{"$f":"AG9+AG10+AG11+AG12+AG13+AG14+AG15","v":25},{"$f":"SQRT((AH9^2)+(AH10^2)+(AH11^2)+(AH12^2)+(AH13^2)+(AH14^2)+(AH15^2))","v":26.28687885618983},{"$f":"AI9+AI10+AI11+AI12+AI13+AI14+AI15","v":25},{"$f":"SQRT((AJ9^2)+(AJ10^2)+(AJ11^2)+(AJ12^2)+(AJ13^2)+(AJ14^2)+(AJ15^2))","v":26.419689627245813},{"$f":"AK9+AK10+AK11+AK12+AK13+AK14+AK15","v":6},{"$f":"SQRT((AL9^2)+(AL10^2)+(AL11^2)+(AL12^2)+(AL13^2)+(AL14^2)+(AL15^2))","v":27.459060435491963},{"$f":"AM9+AM10+AM11+AM12+AM13+AM14+AM15","v":1004},{"$f":"SQRT((AN9^2)+(AN10^2)+(AN11^2)+(AN12^2)+(AN13^2)+(AN14^2)+(AN15^2))","v":264.0075756488817},{"$f":"AO9+AO10+AO11+AO12+AO13+AO14+AO15","v":211},{"$f":"SQRT((AP9^2)+(AP10^2)+(AP11^2)+(AP12^2)+(AP13^2)+(AP14^2)+(AP15^2))","v":82.109682742049372},{"$f":"AQ9+AQ10+AQ11+AQ12+AQ13+AQ14+AQ15","v":420},{"$f":"SQRT((AR9^2)+(AR10^2)+(AR11^2)+(AR12^2)+(AR13^2)+(AR14^2)+(AR15^2))","v":153.36231610144651},{"$f":"AS9+AS10+AS11+AS12+AS13+AS14+AS15","v":43},{"$f":"SQRT((AT9^2)+(AT10^2)+(AT11^2)+(AT12^2)+(AT13^2)+(AT14^2)+(AT15^2))","v":31.921779399024736},{"$f":"AU9+AU10+AU11+AU12+AU13+AU14+AU15","v":500},{"$f":"SQRT((AV9^2)+(AV10^2)+(AV11^2)+(AV12^2)+(AV13^2)+(AV14^2)+(AV15^2))","v":156.71949463930773}]
[null,"Mobile Home & Other",{"$f":"C16+C17","v":108},{"$f":"SQRT((D16^2)+(D17^2))","v":47.539457296018853},{"$f":"E16+E17","v":20},{"$f":"SQRT((F16^2)+(F17^2))","v":32.310988842807021},{"$f":"G16+G17","v":12},{"$f":"SQRT((H16^2)+(H17^2))","v":18.439088914585774},{"$f":"I16+I17","v":149},{"$f":"SQRT((J16^2)+(J17^2))","v":105.68348972285122},{"$f":"K16+K17","v":22},{"$f":"SQRT((L16^2)+(L17^2))","v":18.439088914585774},{"$f":"M16+M17","v":35},{"$f":"SQRT((N16^2)+(N17^2))","v":25.942243542145693},{"$f":"O16+O17","v":495},{"$f":"SQRT((P16^2)+(P17^2))","v":125.57467897629681},{"$f":"Q16+Q17","v":47},{"$f":"SQRT((R16^2)+(R17^2))","v":51.86520991955976},{"$f":"S16+S17","v":392},{"$f":"SQRT((T16^2)+(T17^2))","v":161.50541786577935},{"$f":"U16+U17","v":27},{"$f":"SQRT((V16^2)+(V17^2))","v":20.808652046684813},{"$f":"W16+W17","v":23},{"$f":"SQRT((X16^2)+(X17^2))","v":20.808652046684813},{"$f":"Y16+Y17","v":36},{"$f":"SQRT((Z16^2)+(Z17^2))","v":25.942243542145693},{"$f":"AA16+AA17","v":15},{"$f":"SQRT((AB16^2)+(AB17^2))","v":16.970562748477139},{"$f":"AC16+AC17","v":109},{"$f":"SQRT((AD16^2)+(AD17^2))","v":58.523499553598128},{"$f":"AE16+AE17","v":5},{"$f":"SQRT((AF16^2)+(AF17^2))","v":13},{"$f":"AG16+AG17","v":15},{"$f":"SQRT((AH16^2)+(AH17^2))","v":22.472205054244231},{"$f":"AI16+AI17","v":22},{"$f":"SQRT((AJ16^2)+(AJ17^2))","v":15.620499351813308},{"$f":"AK16+AK17","v":2},{"$f":"SQRT((AL16^2)+(AL17^2))","v":12.369316876852981},{"$f":"AM16+AM17","v":245},{"$f":"SQRT((AN16^2)+(AN17^2))","v":119.21828718783037},{"$f":"AO16+AO17","v":74},{"$f":"SQRT((AP16^2)+(AP17^2))","v":48.507731342539614},{"$f":"AQ16+AQ17","v":66},{"$f":"SQRT((AR16^2)+(AR17^2))","v":51.419840528729765},{"$f":"AS16+AS17","v":2},{"$f":"SQRT((AT16^2)+(AT17^2))","v":13},{"$f":"AU16+AU17","v":239},{"$f":"SQRT((AV16^2)+(AV17^2))","v":113.63538181394033}]
[]
[]
[]
[]
[]
[]
[]
[]
[]
[]
[]
[]
[]
[]
[]
[]
[]
[]
[]
[]
[]
[]
[]
[]
[]
[]
[]
[null,"Calculated B25024. UNITS IN STRUCTURE "]
[null,"Universe:  HOUSING UNITS"]
[null,"Data Set: 2013-2017 American Community Survey 5-Year Estimates"]
[]
[null,null,"Alstead",null,"Chesterfield",null,"Dublin",null,"Fitzwilliam",null,"Gilsum",null,"Harrisville",null,"Hinsdale",null,"Jaffrey",null,"Keene",null,"Marlborough",null,"Marlow",null,"Nelson",null,"Richmond",null,"Rindge",null,"Roxbury",null,"Stoddard",null,"Sullivan",null,"Surry",null,"Swanzey",null,"Troy",null,"Walpole",null,"Westmoreland",null,"Winchester"]
[null," ","Estimate","Margin of Error","Estimate","Margin of Error","Estimate","Margin of Error","Estimate","Margin of Error","Estimate","Margin of Error","Estimate","Margin of Error","Estimate","Margin of Error","Estimate","Margin of Error","Estimate","Margin of Error","Estimate","Margin of Error","Estimate","Margin of Error","Estimate","Margin of Error","Estimate","Margin of Error","Estimate","Margin of Error","Estimate","Margin of Error","Estimate","Margin of Error","Estimate","Margin of Error","Estimate","Margin of Error","Estimate","Margin of Error","Estimate","Margin of Error","Estimate","Margin of Error","Estimate","Margin of Error","Estimate","Margin of Error"]
[null,"Total:",919,77,1836,215,770,65,1221,72,343,37,728,67,1979,142,10092,336,10110,344,983,95,418,49,429,48,494,55,2262,152,94,27,1057,89,313,47,379,46,3082,206,892,87,1758,111,714,83,2002,182]
[null,"Single Family",741,83,1501,219,676,62,1027,88,290,36,664,65,1134,152,4783,278,4561,256,550,76,383,50,385,49,462,53,1864,157,85,22,1021,86,257,35,362,46,2220,201,575,84,1360,141,686,80,1161,170]
[null,"Multi-Family",82,46.786750261158339,304,159.83741739655329,84,44.260591952661457,93,47.864391775097282,25,23,30,33.421549934136806,342,129.61095632700193,4919,441.313947207654,5125,480.77541534483646,323,92.817024300502112,2,27.404379212089442,37,28.460498941515414,0,29.103264421710495,346,111.39569111954016,2,24.859605789312106,11,27.820855486487112,28,29.614185789921695,5,28.106938645110393,621,183.54018633530913,210,82.595399387617221,389,131.52946437965906,26,30.166206257996713,364,122.37646832622684]
[null,"Mobile Home & Other",96,40.521599178709621,31,35.735136770411273,10,18.601075237738275,101,52.172789842982326,28,17.029386365926403,34,26.40075756488817,503,119.50732195141852,390,118.86967653695369,424,116.72617529928752,110,57.070132293521098,33,20.248456731316587,7,12.529964086141668,32,23.706539182259394,52,41.231056256176608,7,14.866068747318506,25,21.95449840010015,28,18.248287590894659,12,13.038404810405298,241,111.15754585272202,107,44.384682042344295,9,17.804493814764857,2,11.401754250991379,477,135.44740676735012]
[]
[]
[null,"Calculated B25024. UNITS IN STRUCTURE "]
[null,"Universe:  HOUSING UNITS"]
[null,"Data Set: 2008-2012 American Community Survey 5-Year Estimates"]
[]
[null,null,"Alstead",null,"Chesterfield",null,"Dublin",null,"Fitzwilliam",null,"Gilsum",null,"Harrisville",null,"Hinsdale",null,"Jaffrey",null,"Keene",null,"Marlborough",null,"Marlow",null,"Nelson",null,"Richmond",null,"Rindge",null,"Roxbury",null,"Stoddard",null,"Sullivan",null,"Surry",null,"Swanzey",null,"Troy",null,"Walpole",null,"Westmoreland",null,"Winchester"]
[null," ","Estimate","Margin of Error","Estimate","Margin of Error","Estimate","Margin of Error","Estimate","Margin of Error","Estimate","Margin of Error","Estimate","Margin of Error","Estimate","Margin of Error","Estimate","Margin of Error","Estimate","Margin of Error","Estimate","Margin of Error","Estimate","Margin of Error","Estimate","Margin of Error","Estimate","Margin of Error","Estimate","Margin of Error","Estimate","Margin of Error","Estimate","Margin of Error","Estimate","Margin of Error","Estimate","Margin of Error","Estimate","Margin of Error","Estimate","Margin of Error","Estimate","Margin of Error","Estimate","Margin of Error","Estimate","Margin of Error"]
[null,"Total:",960,76,1782,150,839,76,1236,75,300,37,748,76,2016,154,2356,164,9717,318,960,95,439,61,469,62,495,60,2185,169,90,17,1082,89,285,40,371,45,3137,171,868,103,1626,135,755,82,1984,155]
[null,"Single Family",800,79,1582,195,763,74,1003,100,277,38,669,56,1052,168,1613,158,4727,263,625,83,407,61,406,50,476,60,1709,171,79,16,1042,91,242,37,354,45,2234,204,505,75,1224,129,700,82,1098,170]
[null,"Multi-Family",71,40.2119385257662,165,131.293564198707,64,39.05124837953327,161,81.09870529176159,3,27.239676943752471,51,42.579337712087536,458,155.00645147864009,506,156.99363044404063,4636,433.61734282659864,317,105.75443253121828,3,27.239676943752471,52,44.877611344633749,9,24.372115213907882,377,102.73266277090262,6,25.278449319529077,2,27.239676943752471,14,28.583211855912904,6,25.278449319529077,627,183.25119372053214,263,90.332718325089715,376,113.92980294900892,40,34.510867853474792,457,148.39811319555247]
[null,"Mobile Home & Other",89,37.643060449437421,35,39.560080889704963,12,15.556349186104045,72,45.354161881794269,20,17.804493814764857,28,22.825424421026653,506,115.52488909321661,237,111.15754585272202,354,98.270036124955197,18,22.825424421026653,29,20.248456731316587,11,16.278820596099706,10,14.212670403551895,99,49.648766349225639,5,12.083045973594572,38,23.706539182259394,29,20.248456731316587,11,14.212670403551895,276,90.426765949026404,100,43.416586692184822,26,33.837848631377263,15,21.095023109728988,429,127.47548783981962]

{"sheet":"ACS_Table_B25032","index":70,"n_rows":119,"n_cols":48,"rows_kept":119,"cut":false,"hidden":true,"merged":[]}
[null,"B25032. TENURE BY UNITS IN STRUCTURE "]
[null,"Universe:  OCCUPIED HOUSING UNITS"]
[null,"Data Set: 2018-2022 American Community Survey 5-Year Estimates"]
[]
[null,null,"Alstead",null,"Chesterfield",null,"Dublin",null,"Fitzwilliam",null,"Gilsum",null,"Harrisville",null,"Hinsdale",null,"Jaffrey",null,"Keene",null,"Marlborough",null,"Marlow",null,"Nelson",null,"Richmond",null,"Rindge",null,"Roxbury",null,"Stoddard",null,"Sullivan",null,"Surry",null,"Swanzey",null,"Troy",null,"Walpole",null,"Westmoreland",null,"Winchester"]
[null," ","Estimate","Margin of Error","Estimate","Margin of Error","Estimate","Margin of Error","Estimate","Margin of Error","Estimate","Margin of Error","Estimate","Margin of Error","Estimate","Margin of Error","Estimate","Margin of Error","Estimate","Margin of Error","Estimate","Margin of Error","Estimate","Margin of Error","Estimate","Margin of Error","Estimate","Margin of Error","Estimate","Margin of Error","Estimate","Margin of Error","Estimate","Margin of Error","Estimate","Margin of Error","Estimate","Margin of Error","Estimate","Margin of Error","Estimate","Margin of Error","Estimate","Margin of Error","Estimate","Margin of Error","Estimate","Margin of Error"]
[null,"Total:",723,97,1366,158,635,101,1013,154,310,51,416,75,1594,139,2026,225,9259,370,942,130,314,61,246,41,393,73,1972,144,95,37,436,52,281,53,344,58,3255,171,758,101,1427,121,885,182,1617,146]
[null,"Owner-occupied housing units:",507,86,1227,184,530,99,957,154,285,50,386,73,1373,192,1580,229,4762,346,608,113,279,56,225,42,383,72,1711,137,94,38,405,49,240,46,324,59,2237,250,525,81,945,130,787,179,1052,163]
[null,"1, detached",418,91,1197,196,516,98,838,110,264,52,372,73,832,182,1558,236,3755,320,516,106,246,49,211,38,349,67,1598,130,89,37,391,50,210,43,320,58,1843,256,495,78,843,141,782,178,864,138]
[null,"1, attached",5,7,0,12,9,10,0,12,0,12,4,5,13,21,0,17,341,165,13,14,10,17,8,8,0,12,24,26,0,12,9,7,2,3,0,12,149,98,0,12,7,13,3,5,0,12]
[null,2,11,11,10,16,0,12,30,32,2,4,0,12,118,148,2,5,252,137,25,34,0,12,0,12,19,29,0,17,0,12,2,4,6,5,2,3,0,17,6,9,29,22,0,12,17,19]
[null,"3 or 4",0,12,0,12,0,12,0,12,0,12,0,12,0,12,0,17,0,22,14,19,0,12,0,12,0,12,0,17,0,12,0,12,0,12,0,12,0,17,0,12,0,12,0,12,0,12]
[null,"5 to 9",0,12,0,12,0,12,0,12,0,12,0,12,0,12,0,17,57,41,18,21,0,12,0,12,0,12,0,17,0,12,3,4,0,12,0,12,0,17,0,12,0,12,0,12,0,12]
[null,"10 to 19",0,12,0,12,0,12,0,12,0,12,0,12,0,12,0,17,27,32,0,12,0,12,0,12,0,12,0,17,0,12,0,12,0,12,0,12,0,17,0,12,0,12,0,12,0,12]
[null,"20 to 49",0,12,0,12,0,12,0,12,0,12,0,12,0,12,0,17,0,22,0,12,0,12,0,12,0,12,0,17,0,12,0,12,0,12,0,12,0,17,0,12,0,12,0,12,0,12]
[null,"50 or more",0,12,0,12,0,12,0,12,0,12,0,12,0,12,0,17,37,42,0,12,0,12,0,12,0,12,0,17,0,12,0,12,0,12,0,12,0,17,0,12,0,12,0,12,0,12]
[null,"Mobile home",73,38,20,30,5,6,89,92,19,14,10,8,410,125,20,24,293,149,22,17,23,17,6,8,15,12,89,46,5,5,0,12,22,10,2,3,245,118,24,26,66,50,2,5,171,88]
[null,"Boat, RV, van, etc.",0,12,0,12,0,12,0,12,0,12,0,12,0,12,0,17,0,22,0,12,0,12,0,12,0,12,0,17,0,12,0,12,0,12,0,12,0,17,0,12,0,12,0,12,0,12]
[null,"Renter-occupied housing units:",216,81,139,90,105,41,56,29,25,14,30,15,221,105,446,167,4497,356,334,92,35,29,21,11,10,9,261,119,1,3,31,18,41,21,20,9,1018,252,233,73,482,141,98,54,565,145]
[null,"1, detached",104,55,110,81,78,38,28,16,11,9,24,16,68,76,114,107,541,169,83,65,35,29,13,8,10,9,65,43,1,3,28,18,24,20,18,8,218,167,19,16,156,85,67,48,130,74]
[null,"1, attached",0,12,0,12,4,5,0,12,2,5,0,12,15,23,49,74,111,60,5,7,0,12,0,12,0,12,14,22,0,12,0,12,0,12,0,12,33,37,0,12,20,23,4,6,10,16]
[null,2,11,14,0,12,3,4,7,10,9,8,3,4,0,12,50,50,824,243,45,27,0,12,8,7,0,12,58,58,0,12,3,4,4,5,2,4,148,85,90,54,91,68,3,4,104,66]
[null,"3 or 4",26,33,29,38,12,9,0,12,0,12,3,4,41,33,46,45,660,192,72,44,0,12,0,12,0,12,0,17,0,12,0,12,13,8,0,12,45,46,39,26,139,88,8,15,92,69]
[null,"5 to 9",0,12,0,12,0,12,0,12,0,12,0,12,29,47,95,70,805,187,46,29,0,12,0,12,0,12,64,49,0,12,0,12,0,12,0,12,238,155,28,28,7,11,0,12,165,96]
[null,"10 to 19",0,12,0,12,0,12,0,12,0,12,0,12,0,12,21,33,541,180,5,8,0,12,0,12,0,12,7,11,0,12,0,12,0,12,0,12,115,79,20,26,57,78,3,5,19,21]
[null,"20 to 49",55,54,0,12,8,10,0,12,0,12,0,12,14,22,44,42,588,216,73,25,0,12,0,12,0,12,53,60,0,12,0,12,0,12,0,12,131,97,0,12,12,19,3,5,29,26]
[null,"50 or more",0,12,0,12,0,12,0,12,0,12,0,12,0,12,0,17,427,168,0,12,0,12,0,12,0,12,0,17,0,12,0,12,0,12,0,12,90,74,0,12,0,12,10,17,0,12]
[null,"Mobile home",20,14,0,12,0,12,21,26,3,4,0,12,54,50,27,43,0,22,5,8,0,12,0,12,0,12,0,17,0,12,0,12,0,12,0,12,0,17,37,31,0,12,0,12,16,22]
[null,"Boat, RV, van, etc.",0,12,0,12,0,12,0,12,0,12,0,12,0,12,0,17,0,22,0,12,0,12,0,12,0,12,0,17,0,12,0,12,0,12,0,12,0,17,0,12,0,12,0,12,0,12]
[]
[]
[null,"Calculated B25032. TENURE BY UNITS IN STRUCTURE "]
[null,"Universe:  OCCUPIED HOUSING UNITS"]
[null,"Data Set: 2018-2022 American Community Survey 5-Year Estimates"]
[]
[null,null,"Alstead",null,"Chesterfield",null,"Dublin",null,"Fitzwilliam",null,"Gilsum",null,"Harrisville",null,"Hinsdale",null,"Jaffrey",null,"Keene",null,"Marlborough",null,"Marlow",null,"Nelson",null,"Richmond",null,"Rindge",null,"Roxbury",null,"Stoddard",null,"Sullivan",null,"Surry",null,"Swanzey",null,"Troy",null,"Walpole",null,"Westmoreland",null,"Winchester"]
[null," ","Estimate","Margin of Error","Estimate","Margin of Error","Estimate","Margin of Error","Estimate","Margin of Error","Estimate","Margin of Error","Estimate","Margin of Error","Estimate","Margin of Error","Estimate","Margin of Error","Estimate","Margin of Error","Estimate","Margin of Error","Estimate","Margin of Error","Estimate","Margin of Error","Estimate","Margin of Error","Estimate","Margin of Error","Estimate","Margin of Error","Estimate","Margin of Error","Estimate","Margin of Error","Estimate","Margin of Error","Estimate","Margin of Error","Estimate","Margin of Error","Estimate","Margin of Error","Estimate","Margin of Error","Estimate","Margin of Error"]
[null,"Total:",{"$f":"C7","v":723},97,1366,158,635,101,1013,154,310,51,416,75,1594,139,2026,225,{"$f":"S7","v":9259},370,942,130,314,61,246,41,393,73,1972,144,95,37,436,52,281,53,344,58,3255,171,758,101,1427,121,885,182,1617,146]
[null,"Owner-occupied housing units:",{"$f":"C8","v":507},{"$f":"D8","v":86},1227,184,530,99,957,154,285,50,386,73,1373,192,1580,229,4762,346,608,113,279,56,225,42,383,72,1711,137,94,38,405,49,240,46,324,59,2237,250,525,81,945,130,787,179,1052,163]
[null,"Single Family",{"$f":"C9","v":418},{"$f":"D9","v":91},{"$f":"E9","v":1197},196,{"$f":"G9","v":516},98,{"$f":"I9","v":838},110,{"$f":"K9","v":264},52,{"$f":"M9","v":372},73,{"$f":"O9","v":832},182,{"$f":"Q9","v":1558},236,{"$f":"S9","v":3755},320,{"$f":"U9","v":516},106,{"$f":"W9","v":246},49,{"$f":"Y9","v":211},38,{"$f":"AA9","v":349},67,{"$f":"AC9","v":1598},130,{"$f":"AE9","v":89},37,{"$f":"AG9","v":391},50,{"$f":"AI9","v":210},43,{"$f":"AK9","v":320},58,{"$f":"AM9","v":1843},256,{"$f":"AO9","v":495},78,{"$f":"AQ9","v":843},141,{"$f":"AS9","v":782},178,{"$f":"AU9","v":864},138]
[null,"Multi-Family",{"$f":"C10+C11+C12+C13+C14+C15+C16","v":16},{"$f":"SQRT((D10^2)+(D11^2)+(D12^2)+(D13^2)+(D14^2)+(D15^2)+(D16^2))","v":29.832867780352597},{"$f":"E10+E11+E12+E13+E14+E15+E16","v":10},{"$f":"SQRT((F10^2)+(F11^2)+(F12^2)+(F13^2)+(F14^2)+(F15^2)+(F16^2))","v":33.466401061363023},{"$f":"G10+G11+G12+G13+G14+G15+G16","v":9},{"$f":"SQRT((H10^2)+(H11^2)+(H12^2)+(H13^2)+(H14^2)+(H15^2)+(H16^2))","v":31.048349392520048},{"$f":"I10+I11+I12+I13+I14+I15+I16","v":30},{"$f":"SQRT((J10^2)+(J11^2)+(J12^2)+(J13^2)+(J14^2)+(J15^2)+(J16^2))","v":43.451121964800862},{"$f":"K10+K11+K12+K13+K14+K15+K16","v":2},{"$f":"SQRT((L10^2)+(L11^2)+(L12^2)+(L13^2)+(L14^2)+(L15^2)+(L16^2))","v":29.664793948382652},{"$f":"M10+M11+M12+M13+M14+M15+M16","v":4},{"$f":"SQRT((N10^2)+(N11^2)+(N12^2)+(N13^2)+(N14^2)+(N15^2)+(N16^2))","v":29.816103031751148},{"$f":"O10+O11+O12+O13+O14+O15+O16","v":131},{"$f":"SQRT((P10^2)+(P11^2)+(P12^2)+(P13^2)+(P14^2)+(P15^2)+(P16^2))","v":151.87165634179408},{"$f":"Q10+Q11+Q12+Q13+Q14+Q15+Q16","v":2},{"$f":"SQRT((R10^2)+(R11^2)+(R12^2)+(R13^2)+(R14^2)+(R15^2)+(R16^2))","v":41.940433951021539},{"$f":"S10+S11+S12+S13+S14+S15+S16","v":714},{"$f":"SQRT((T10^2)+(T11^2)+(T12^2)+(T13^2)+(T14^2)+(T15^2)+(T16^2))","v":226.78403823902599},{"$f":"U10+U11+U12+U13+U14+U15+U16","v":70},{"$f":"SQRT((V10^2)+(V11^2)+(V12^2)+(V13^2)+(V14^2)+(V15^2)+(V16^2))","v":50.852728540364481},{"$f":"W10+W11+W12+W13+W14+W15+W16","v":10},{"$f":"SQRT((X10^2)+(X11^2)+(X12^2)+(X13^2)+(X14^2)+(X15^2)+(X16^2))","v":33.955853692699293},{"$f":"Y10+Y11+Y12+Y13+Y14+Y15+Y16","v":8},{"$f":"SQRT((Z10^2)+(Z11^2)+(Z12^2)+(Z13^2)+(Z14^2)+(Z15^2)+(Z16^2))","v":30.463092423455635},{"$f":"AA10+AA11+AA12+AA13+AA14+AA15+AA16","v":19},{"$f":"SQRT((AB10^2)+(AB11^2)+(AB12^2)+(AB13^2)+(AB14^2)+(AB15^2)+(AB16^2))","v":41.291645644125154},{"$f":"AC10+AC11+AC12+AC13+AC14+AC15+AC16","v":24},{"$f":"SQRT((AD10^2)+(AD11^2)+(AD12^2)+(AD13^2)+(AD14^2)+(AD15^2)+(AD16^2))","v":49.091750834534309},{"$f":"AE10+AE11+AE12+AE13+AE14+AE15+AE16","v":0},{"$f":"SQRT((AF10^2)+(AF11^2)+(AF12^2)+(AF13^2)+(AF14^2)+(AF15^2)+(AF16^2))","v":31.749015732775089},{"$f":"AG10+AG11+AG12+AG13+AG14+AG15+AG16","v":14},{"$f":"SQRT((AH10^2)+(AH11^2)+(AH12^2)+(AH13^2)+(AH14^2)+(AH15^2)+(AH16^2))","v":25.632011235952593},{"$f":"AI10+AI11+AI12+AI13+AI14+AI15+AI16","v":8},{"$f":"SQRT((AJ10^2)+(AJ11^2)+(AJ12^2)+(AJ13^2)+(AJ14^2)+(AJ15^2)+(AJ16^2))","v":27.459060435491963},{"$f":"AK10+AK11+AK12+AK13+AK14+AK15+AK16","v":2},{"$f":"SQRT((AL10^2)+(AL11^2)+(AL12^2)+(AL13^2)+(AL14^2)+(AL15^2)+(AL16^2))","v":29.546573405388315},{"$f":"AM10+AM11+AM12+AM13+AM14+AM15+AM16","v":149},{"$f":"SQRT((AN10^2)+(AN11^2)+(AN12^2)+(AN13^2)+(AN14^2)+(AN15^2)+(AN16^2))","v":106.48004507887852},{"$f":"AO10+AO11+AO12+AO13+AO14+AO15+AO16","v":6},{"$f":"SQRT((AP10^2)+(AP11^2)+(AP12^2)+(AP13^2)+(AP14^2)+(AP15^2)+(AP16^2))","v":30.740852297878796},{"$f":"AQ10+AQ11+AQ12+AQ13+AQ14+AQ15+AQ16","v":36},{"$f":"SQRT((AR10^2)+(AR11^2)+(AR12^2)+(AR13^2)+(AR14^2)+(AR15^2)+(AR16^2))","v":37.054014627297811},{"$f":"AS10+AS11+AS12+AS13+AS14+AS15+AS16","v":3},{"$f":"SQRT((AT10^2)+(AT11^2)+(AT12^2)+(AT13^2)+(AT14^2)+(AT15^2)+(AT16^2))","v":29.816103031751148},{"$f":"AU10+AU11+AU12+AU13+AU14+AU15+AU16","v":17},{"$f":"SQRT((AV10^2)+(AV11^2)+(AV12^2)+(AV13^2)+(AV14^2)+(AV15^2)+(AV16^2))","v":35}]
[null,"Mobile Home & Other",{"$f":"C17+C18","v":73},{"$f":"SQRT((D17^2)+(D18^2))","v":39.849717690342551},{"$f":"E17+E18","v":20},{"$f":"SQRT((F17^2)+(F18^2))","v":32.310988842807021},{"$f":"G17+G18","v":5},{"$f":"SQRT((H17^2)+(H18^2))","v":13.416407864998739},{"$f":"I17+I18","v":89},{"$f":"SQRT((J17^2)+(J18^2))","v":92.779308037945611},{"$f":"K17+K18","v":19},{"$f":"SQRT((L17^2)+(L18^2))","v":18.439088914585774},{"$f":"M17+M18","v":10},{"$f":"SQRT((N17^2)+(N18^2))","v":14.422205101855956},{"$f":"O17+O18","v":410},{"$f":"SQRT((P17^2)+(P18^2))","v":125.57467897629681},{"$f":"Q17+Q18","v":20},{"$f":"SQRT((R17^2)+(R18^2))","v":29.410882339705484},{"$f":"S17+S18","v":293},{"$f":"SQRT((T17^2)+(T18^2))","v":150.61540425866141},{"$f":"U17+U18","v":22},{"$f":"SQRT((V17^2)+(V18^2))","v":20.808652046684813},{"$f":"W17+W18","v":23},{"$f":"SQRT((X17^2)+(X18^2))","v":20.808652046684813},{"$f":"Y17+Y18","v":6},{"$f":"SQRT((Z17^2)+(Z18^2))","v":14.422205101855956},{"$f":"AA17+AA18","v":15},{"$f":"SQRT((AB17^2)+(AB18^2))","v":16.970562748477139},{"$f":"AC17+AC18","v":89},{"$f":"SQRT((AD17^2)+(AD18^2))","v":49.040799340956916},{"$f":"AE17+AE18","v":5},{"$f":"SQRT((AF17^2)+(AF18^2))","v":13},{"$f":"AG17+AG18","v":0},{"$f":"SQRT((AH17^2)+(AH18^2))","v":16.970562748477139},{"$f":"AI17+AI18","v":22},{"$f":"SQRT((AJ17^2)+(AJ18^2))","v":15.620499351813308},{"$f":"AK17+AK18","v":2},{"$f":"SQRT((AL17^2)+(AL18^2))","v":12.369316876852981},{"$f":"AM17+AM18","v":245},{"$f":"SQRT((AN17^2)+(AN18^2))","v":119.21828718783037},{"$f":"AO17+AO18","v":24},{"$f":"SQRT((AP17^2)+(AP18^2))","v":28.635642126552707},{"$f":"AQ17+AQ18","v":66},{"$f":"SQRT((AR17^2)+(AR18^2))","v":51.419840528729765},{"$f":"AS17+AS18","v":2},{"$f":"SQRT((AT17^2)+(AT18^2))","v":13},{"$f":"AU17+AU18","v":171},{"$f":"SQRT((AV17^2)+(AV18^2))","v":88.814413244698073}]
[null,"Renter-occupied housing units:",{"$f":"C19","v":216},81,139,90,105,41,56,29,25,14,30,15,221,105,446,167,{"$f":"S19","v":4497},356,334,92,35,29,21,11,10,9,261,119,1,3,31,18,41,21,20,9,1018,252,233,73,482,141,98,54,565,145]
[null,"Single Family",104,55,110,81,78,38,28,16,11,9,24,16,68,76,114,107,541,169,83,65,35,29,13,8,10,9,65,43,1,3,28,18,24,20,18,8,218,167,19,16,156,85,67,48,130,74]
[null,"Multi-Family",{"$f":"C21+C22+C23+C24+C25+C26+C27","v":92},{"$f":"SQRT((D21^2)+(D22^2)+(D23^2)+(D24^2)+(D25^2)+(D26^2)+(D27^2))","v":69.115844782509896},{"$f":"E21+E22+E23+E24+E25+E26+E27","v":29},{"$f":"SQRT((F21^2)+(F22^2)+(F23^2)+(F24^2)+(F25^2)+(F26^2)+(F27^2))","v":48.041648597857254},{"$f":"G21+G22+G23+G24+G25+G26+G27","v":27},{"$f":"SQRT((H21^2)+(H22^2)+(H23^2)+(H24^2)+(H25^2)+(H26^2)+(H27^2))","v":25.573423705088842},{"$f":"I21+I22+I23+I24+I25+I26+I27","v":7},{"$f":"SQRT((J21^2)+(J22^2)+(J23^2)+(J24^2)+(J25^2)+(J26^2)+(J27^2))","v":31.048349392520048},{"$f":"K21+K22+K23+K24+K25+K26+K27","v":11},{"$f":"SQRT((L21^2)+(L22^2)+(L23^2)+(L24^2)+(L25^2)+(L26^2)+(L27^2))","v":28.442925306655784},{"$f":"M21+M22+M23+M24+M25+M26+M27","v":6},{"$f":"SQRT((N21^2)+(N22^2)+(N23^2)+(N24^2)+(N25^2)+(N26^2)+(N27^2))","v":27.422618401604176},{"$f":"O21+O22+O23+O24+O25+O26+O27","v":99},{"$f":"SQRT((P21^2)+(P22^2)+(P23^2)+(P24^2)+(P25^2)+(P26^2)+(P27^2))","v":68.869441699493976},{"$f":"Q21+Q22+Q23+Q24+Q25+Q26+Q27","v":305},{"$f":"SQRT((R21^2)+(R22^2)+(R23^2)+(R24^2)+(R25^2)+(R26^2)+(R27^2))","v":134.32423459673984},{"$f":"S21+S22+S23+S24+S25+S26+S27","v":3956},{"$f":"SQRT((T21^2)+(T22^2)+(T23^2)+(T24^2)+(T25^2)+(T26^2)+(T27^2))","v":491.69299364542508},{"$f":"U21+U22+U23+U24+U25+U26+U27","v":246},{"$f":"SQRT((V21^2)+(V22^2)+(V23^2)+(V24^2)+(V25^2)+(V26^2)+(V27^2))","v":66.241980646716783},{"$f":"W21+W22+W23+W24+W25+W26+W27","v":0},{"$f":"SQRT((X21^2)+(X22^2)+(X23^2)+(X24^2)+(X25^2)+(X26^2)+(X27^2))","v":31.749015732775089},{"$f":"Y21+Y22+Y23+Y24+Y25+Y26+Y27","v":8},{"$f":"SQRT((Z21^2)+(Z22^2)+(Z23^2)+(Z24^2)+(Z25^2)+(Z26^2)+(Z27^2))","v":30.215889859476256},{"$f":"AA21+AA22+AA23+AA24+AA25+AA26+AA27","v":0},{"$f":"SQRT((AB21^2)+(AB22^2)+(AB23^2)+(AB24^2)+(AB25^2)+(AB26^2)+(AB27^2))","v":31.749015732775089},{"$f":"AC21+AC22+AC23+AC24+AC25+AC26+AC27","v":196},{"$f":"SQRT((AD21^2)+(AD22^2)+(AD23^2)+(AD24^2)+(AD25^2)+(AD26^2)+(AD27^2))","v":102.70345661174214},{"$f":"AE21+AE22+AE23+AE24+AE25+AE26+AE27","v":0},{"$f":"SQRT((AF21^2)+(AF22^2)+(AF23^2)+(AF24^2)+(AF25^2)+(AF26^2)+(AF27^2))","v":31.749015732775089},{"$f":"AG21+AG22+AG23+AG24+AG25+AG26+AG27","v":3},{"$f":"SQRT((AH21^2)+(AH22^2)+(AH23^2)+(AH24^2)+(AH25^2)+(AH26^2)+(AH27^2))","v":29.664793948382652},{"$f":"AI21+AI22+AI23+AI24+AI25+AI26+AI27","v":17},{"$f":"SQRT((AJ21^2)+(AJ22^2)+(AJ23^2)+(AJ24^2)+(AJ25^2)+(AJ26^2)+(AJ27^2))","v":28.442925306655784},{"$f":"AK21+AK22+AK23+AK24+AK25+AK26+AK27","v":2},{"$f":"SQRT((AL21^2)+(AL22^2)+(AL23^2)+(AL24^2)+(AL25^2)+(AL26^2)+(AL27^2))","v":29.664793948382652},{"$f":"AM21+AM22+AM23+AM24+AM25+AM26+AM27","v":800},{"$f":"SQRT((AN21^2)+(AN22^2)+(AN23^2)+(AN24^2)+(AN25^2)+(AN26^2)+(AN27^2))","v":236.34931774811622},{"$f":"AO21+AO22+AO23+AO24+AO25+AO26+AO27","v":177},{"$f":"SQRT((AP21^2)+(AP22^2)+(AP23^2)+(AP24^2)+(AP25^2)+(AP26^2)+(AP27^2))","v":74.05403432629447},{"$f":"AQ21+AQ22+AQ23+AQ24+AQ25+AQ26+AQ27","v":326},{"$f":"SQRT((AR21^2)+(AR22^2)+(AR23^2)+(AR24^2)+(AR25^2)+(AR26^2)+(AR27^2))","v":140.02499776825564},{"$f":"AS21+AS22+AS23+AS24+AS25+AS26+AS27","v":31},{"$f":"SQRT((AT21^2)+(AT22^2)+(AT23^2)+(AT24^2)+(AT25^2)+(AT26^2)+(AT27^2))","v":27.568097504180443},{"$f":"AU21+AU22+AU23+AU24+AU25+AU26+AU27","v":419},{"$f":"SQRT((AV21^2)+(AV22^2)+(AV23^2)+(AV24^2)+(AV25^2)+(AV26^2)+(AV27^2))","v":140.89002803605371}]
[null,"Mobile Home & Other",{"$f":"C28+C29","v":20},{"$f":"SQRT((D28^2)+(D29^2))","v":18.439088914585774},{"$f":"E28+E29","v":0},{"$f":"SQRT((F28^2)+(F29^2))","v":16.970562748477139},{"$f":"G28+G29","v":0},{"$f":"SQRT((H28^2)+(H29^2))","v":16.970562748477139},{"$f":"I28+I29","v":21},{"$f":"SQRT((J28^2)+(J29^2))","v":28.635642126552707},{"$f":"K28+K29","v":3},{"$f":"SQRT((L28^2)+(L29^2))","v":12.649110640673518},{"$f":"M28+M29","v":0},{"$f":"SQRT((N28^2)+(N29^2))","v":16.970562748477139},{"$f":"O28+O29","v":54},{"$f":"SQRT((P28^2)+(P29^2))","v":51.419840528729765},{"$f":"Q28+Q29","v":27},{"$f":"SQRT((R28^2)+(R29^2))","v":46.238512086787566},{"$f":"S28+S29","v":0},{"$f":"SQRT((T28^2)+(T29^2))","v":31.11269837220809},{"$f":"U28+U29","v":5},{"$f":"SQRT((V28^2)+(V29^2))","v":14.422205101855956},{"$f":"W28+W29","v":0},{"$f":"SQRT((X28^2)+(X29^2))","v":16.970562748477139},{"$f":"Y28+Y29","v":0},{"$f":"SQRT((Z28^2)+(Z29^2))","v":16.970562748477139},{"$f":"AA28+AA29","v":0},{"$f":"SQRT((AB28^2)+(AB29^2))","v":16.970562748477139},{"$f":"AC28+AC29","v":0},{"$f":"SQRT((AD28^2)+(AD29^2))","v":24.041630560342615},{"$f":"AE28+AE29","v":0},{"$f":"SQRT((AF28^2)+(AF29^2))","v":16.970562748477139},{"$f":"AG28+AG29","v":0},{"$f":"SQRT((AH28^2)+(AH29^2))","v":16.970562748477139},{"$f":"AI28+AI29","v":0},{"$f":"SQRT((AJ28^2)+(AJ29^2))","v":16.970562748477139},{"$f":"AK28+AK29","v":0},{"$f":"SQRT((AL28^2)+(AL29^2))","v":16.970562748477139},{"$f":"AM28+AM29","v":0},{"$f":"SQRT((AN28^2)+(AN29^2))","v":24.041630560342615},{"$f":"AO28+AO29","v":37},{"$f":"SQRT((AP28^2)+(AP29^2))","v":33.241540277189323},{"$f":"AQ28+AQ29","v":0},{"$f":"SQRT((AR28^2)+(AR29^2))","v":16.970562748477139},{"$f":"AS28+AS29","v":0},{"$f":"SQRT((AT28^2)+(AT29^2))","v":16.970562748477139},{"$f":"AU28+AU29","v":16},{"$f":"SQRT((AV28^2)+(AV29^2))","v":25.059928172283335}]
[]
[]
[]
[]
[]
[]
[]
[]
[]
[]
[]
[]
[]
[]
[]
[]
[]
[]
[]
[]
[]
[]
[]
[]
[]
[]
[]
[]
[]
[]
[]
[]
[]
[]
[]
[]
[]
[]
[]
[]
[null,"Calculated B25032. TENURE BY UNITS IN STRUCTURE "]
[null,"Universe:  OCCUPIED HOUSING UNITS"]
[null,"Data Set: 2013-2017 American Community Survey 5-Year Estimates"]
[]
[null,null,"Alstead",null,"Chesterfield",null,"Dublin",null,"Fitzwilliam",null,"Gilsum",null,"Harrisville",null,"Hinsdale",null,"Jaffrey",null,"Keene",null,"Marlborough",null,"Marlow",null,"Nelson",null,"Richmond",null,"Rindge",null,"Roxbury",null,"Stoddard",null,"Sullivan",null,"Surry",null,"Swanzey",null,"Troy",null,"Walpole",null,"Westmoreland",null,"Winchester"]
[null," ","Estimate","Margin of Error","Estimate","Margin of Error","Estimate","Margin of Error","Estimate","Margin of Error","Estimate","Margin of Error","Estimate","Margin of Error","Estimate","Margin of Error","Estimate","Margin of Error","Estimate","Margin of Error","Estimate","Margin of Error","Estimate","Margin of Error","Estimate","Margin of Error","Estimate","Margin of Error","Estimate","Margin of Error","Estimate","Margin of Error","Estimate","Margin of Error","Estimate","Margin of Error","Estimate","Margin of Error","Estimate","Margin of Error","Estimate","Margin of Error","Estimate","Margin of Error","Estimate","Margin of Error","Estimate","Margin of Error"]
[null,"Total:",776,79,1443,147,584,63,1002,92,283,34,437,53,1749,117,9391,370,9449,367,906,99,282,42,226,33,439,50,1883,144,84,27,484,60,293,50,371,45,2828,180,888,87,1631,93,656,77,1718,160]
[null,"Owner-occupied housing units:",552,75,1218,141,462,54,873,93,257,35,374,47,1316,134,5072,283,4950,273,610,90,255,40,186,35,391,53,1483,153,72,27,440,57,232,46,341,45,2124,201,663,75,1301,105,602,81,1225,174]
[null,"Single Family",509,75,1119,165,447,54,765,90,230,34,364,45,904,156,4131,254,3947,268,480,69,231,40,165,34,371,51,1407,149,69,24,437,56,197,38,332,45,1798,171,522,82,1201,105,602,81,832,141]
[null,"Multi-Family",5,27.838821814150108,68,72.318738927058178,5,25.238858928247925,13,24.939927826679853,8,25.179356624028344,3,27.239676943752471,26,36.755951898978211,551,139.83204210766573,579,143.20614511954437,67,47.381430961928537,0,29.103264421710495,14,25.495097567963924,0,29.103264421710495,41,48.548944375753422,1,27.018512172212592,3,27.404379212089442,18,28.106938645110393,0,29.103264421710495,85,55.632724182804495,48,46.151923036857305,91,66.708320320631671,0,29.103264421710495,8,29.916550603303182]
[null,"Mobile Home & Other",38,25.495097567963924,31,35.735136770411273,10,18.601075237738275,95,54.12947441089743,19,14.866068747318506,7,12.529964086141668,386,107.56393447619885,390,118.86967653695369,424,116.72617529928752,63,49.244289008980523,24,17.029386365926403,7,12.529964086141668,20,21.95449840010015,35,32.249030993194197,2,12.083045973594572,0,15.556349186104045,17,12.369316876852981,9,12.529964086141668,241,111.15754585272202,93,43.416586692184822,9,17.804493814764857,0,15.556349186104045,385,126.4792473095883]
[null,"Renter-occupied housing units:",224,62,225,122,122,41,129,48,26,15,63,29,433,127,4319,404,4499,341,296,85,27,13,40,15,48,30,400,99,12,9,44,26,61,23,30,18,704,165,225,63,330,108,54,28,493,124]
[null,"Single Family",111,52,60,53,64,26,54,30,11,9,37,19,99,73,381,133,478,125,36,26,25,11,26,14,40,28,95,49,6,6,38,25,46,21,22,17,208,109,49,31,56,33,44,23,128,64]
[null,"Multi-Family",77,46.303347611160902,165,121.2311841070605,58,42.249260348555218,75,48.124837662063861,9,25.495097567963924,18,31.701734968294716,296,124.70364870363657,3938,419.34711159134031,4021,430.26503460076788,228,79.448096264164818,2,27.404379212089442,14,28.106938645110393,0,29.103264421710495,305,104.82366145102927,1,27.110883423451916,0,29.103264421710495,4,27.110883423451916,5,28.106938645110393,496,168.84016109918872,162,69.115844782509896,274,110.45361017187261,10,30.364452901377952,292,109.06878563548784]
[null,"Mobile Home & Other",36,29.154759474226502,0,15.556349186104045,0,15.556349186104045,0,15.556349186104045,6,12.529964086141668,8,15.556349186104045,38,32.893768406797051,0,29.698484809834994,0,28.284271247461902,32,38.600518131237564,0,15.556349186104045,0,15.556349186104045,8,13.601470508735444,0,22.627416997969522,5,13.038404810405298,6,13.601470508735444,11,16.278820596099706,3,12.083045973594572,0,22.627416997969522,14,19.416487838947599,0,15.556349186104045,0,15.556349186104045,73,79.762146410437069]
[]
[]
[]
[null,"Calculated B25032. TENURE BY UNITS IN STRUCTURE "]
[null,"Universe:  OCCUPIED HOUSING UNITS"]
[null,"Data Set: 2008-2012 American Community Survey 5-Year Estimates"]
[]
[null,null,"Alstead",null,"Chesterfield",null,"Dublin",null,"Fitzwilliam",null,"Gilsum",null,"Harrisville",null,"Hinsdale",null,"Jaffrey",null,"Keene",null,"Marlborough",null,"Marlow",null,"Nelson",null,"Richmond",null,"Rindge",null,"Roxbury",null,"Stoddard",null,"Sullivan",null,"Surry",null,"Swanzey",null,"Troy",null,"Walpole",null,"Westmoreland",null,"Winchester"]
[null," ","Estimate","Margin of Error","Estimate","Margin of Error","Estimate","Margin of Error","Estimate","Margin of Error","Estimate","Margin of Error","Estimate","Margin of Error","Estimate","Margin of Error","Estimate","Margin of Error","Estimate","Margin of Error","Estimate","Margin of Error","Estimate","Margin of Error","Estimate","Margin of Error","Estimate","Margin of Error","Estimate","Margin of Error","Estimate","Margin of Error","Estimate","Margin of Error","Estimate","Margin of Error","Estimate","Margin of Error","Estimate","Margin of Error","Estimate","Margin of Error","Estimate","Margin of Error","Estimate","Margin of Error","Estimate","Margin of Error"]
[null,"Total:",753,73,1456,99,620,67,1121,88,247,34,428,65,1837,141,2209,134,8964,376,828,90,338,62,319,58,375,50,1785,129,88,16,461,67,258,36,345,43,2913,162,837,103,1515,123,687,79,1789,148]
[null,"Owner-occupied housing units:",621,69,1263,141,480,54,944,104,217,33,360,55,1308,157,1661,123,5098,324,597,70,297,64,236,42,342,48,1354,134,76,15,408,64,218,35,322,44,2256,207,577,81,1049,110,601,73,1218,181]
[null,"Single Family",544,65,1213,146,475,55,854,101,199,33,335,50,875,127,1429,142,3981,287,482,60,265,63,221,38,332,47,1223,137,69,15,396,66,184,32,314,43,1891,206,470,70,1006,114,575,74,795,168]
[null,"Multi-Family",19,34.612136599753562,15,35.425979167836701,5,25.238858928247925,36,39.484174044799268,0,29.103264421710495,6,25.238858928247925,65,70.014284256857181,35,52.545218621678607,763,183.5619786339208,97,47.180504448341793,3,27.239676943752471,4,24.959967948697368,0,29.103264421710495,38,51.166395221864128,2,27.110883423451916,0,29.103264421710495,11,30.364452901377952,2,27.110883423451916,133,86.463865284869144,12,29.916550603303182,43,44.530888156424638,19,32.03123475609393,65,47.592016137163178]
[null,"Mobile Home & Other",58,30.083217912982647,35,39.560080889704963,0,15.556349186104045,54,30.083217912982647,18,17.029386365926403,19,19.416487838947599,368,80.752708932889675,197,91.411159056211517,354,98.270036124955197,18,22.825424421026653,29,20.248456731316587,11,16.278820596099706,10,14.212670403551895,93,49.648766349225639,5,12.083045973594572,12,14.866068747318506,23,17.804493814764857,6,14.212670403551895,232,75.709972922990801,95,43.416586692184822,0,15.556349186104045,7,14.866068747318506,358,108.55873986004075]
[null,"Renter-occupied housing units:",132,44,193,127,140,49,177,79,30,19,68,40,529,121,548,126,3866,378,231,89,41,24,83,43,33,24,431,119,12,9,53,28,40,25,23,14,657,173,260,77,466,132,86,32,571,128]
[null,"Single Family",68,36,43,40,78,34,67,51,28,19,23,16,64,45,91,64,639,174,76,48,41,24,41,21,27,22,118,65,8,9,48,27,37,24,19,13,234,102,4,6,131,68,68,29,139,87]
[null,"Multi-Family",47,31.128764832546761,150,128.05467582247826,50,36.945906403822335,110,72.194182591120182,0,29.103264421710495,45,44.977772288098038,353,134.53252394867198,457,150.52574530624321,3227,362.44171945293493,155,81.578183358052286,0,29.103264421710495,42,44.966654311834233,6,26.057628441590765,307,93.096723895097398,4,24.959967948697368,0,29.103264421710495,3,27.239676943752471,4,27.404379212089442,423,159.31415505221122,251,90.835015274947793,309,101.6021653312566,10,26.664583251946766,361,131.93559034619886]
[null,"Mobile Home & Other",17,17.804493814764857,0,15.556349186104045,12,15.556349186104045,0,15.556349186104045,2,11.704699910719626,0,15.556349186104045,112,75.802374632988901,0,22.627416997969522,0,29.698484809834994,0,15.556349186104045,0,15.556349186104045,0,15.556349186104045,0,15.556349186104045,6,18.867962264113206,0,15.556349186104045,5,13.601470508735444,0,15.556349186104045,0,15.556349186104045,0,22.627416997969522,5,13.601470508735444,26,33.837848631377263,8,17.804493814764857,71,64.938432380216881]

{"sheet":"ACS_Table_B25034","index":71,"n_rows":58,"n_cols":48,"rows_kept":58,"cut":false,"hidden":true,"merged":[]}
[null,"B25034. YEAR STRUCTURE BUILT"]
[null,"Universe:  HOUSING UNITS"]
[null,"Data Set: 2018-2022 American Community Survey 5-Year Estimates"]
[]
[null,null,"Alstead",null,"Chesterfield",null,"Dublin",null,"Fitzwilliam",null,"Gilsum",null,"Harrisville",null,"Hinsdale",null,"Jaffrey",null,"Keene",null,"Marlborough",null,"Marlow",null,"Nelson",null,"Richmond",null,"Rindge",null,"Roxbury",null,"Stoddard",null,"Sullivan",null,"Surry",null,"Swanzey",null,"Troy",null,"Walpole",null,"Westmoreland",null,"Winchester"]
[null," ","Estimate","Margin of Error","Estimate","Margin of Error","Estimate","Margin of Error","Estimate","Margin of Error","Estimate","Margin of Error","Estimate","Margin of Error","Estimate","Margin of Error","Estimate","Margin of Error","Estimate","Margin of Error","Estimate","Margin of Error","Estimate","Margin of Error","Estimate","Margin of Error","Estimate","Margin of Error","Estimate","Margin of Error","Estimate","Margin of Error","Estimate","Margin of Error","Estimate","Margin of Error","Estimate","Margin of Error","Estimate","Margin of Error","Estimate","Margin of Error","Estimate","Margin of Error","Estimate","Margin of Error","Estimate","Margin of Error"]
[null,"Total:",986,109,1792,170,797,112,1317,149,360,57,690,92,1789,178,2474,208,10313,317,1009,129,417,72,429,50,456,82,2449,168,101,38,1020,86,301,55,364,60,3388,169,815,105,1618,160,936,184,1885,173]
[null,"Built 2014 or later",0,12,0,12,4,5,5,7,0,12,0,12,15,24,0,17,0,22,0,12,0,12,3,4,3,5,18,30,0,12,3,4,2,4,5,10,0,17,0,12,0,12,0,12,0,12]
[null,"Built 2010 or 2013",30,17,137,128,34,24,66,39,10,8,3,4,14,22,43,57,408,145,42,29,12,13,7,5,5,6,183,96,0,12,51,22,13,9,17,11,180,96,23,27,123,93,38,32,10,15]
[null,"Built 2000 to 2009",120,62,225,103,96,40,186,101,34,21,69,28,164,69,145,84,412,136,57,30,81,32,67,27,61,32,402,120,6,5,210,57,53,33,50,21,620,195,78,38,141,88,100,36,195,92]
[null,"Built 1990 to 1999",107,56,200,123,89,58,73,37,30,19,34,17,157,87,81,82,376,132,142,73,50,20,63,24,78,42,136,75,25,35,116,43,29,17,56,36,352,177,73,44,138,58,60,53,212,102]
[null,"Built 1980 to 1989",143,40,226,104,105,37,206,60,78,28,79,32,226,86,493,243,1585,248,144,45,74,36,25,13,104,39,571,163,12,8,82,35,41,16,47,22,462,169,128,51,138,69,111,41,463,146]
[null,"Built 1970 to 1979",112,53,344,162,79,30,151,78,33,14,70,33,402,158,462,168,1178,250,187,85,39,19,44,21,68,34,401,152,7,6,186,47,67,24,45,22,399,157,102,46,175,81,207,108,337,109]
[null,"Built 1960 to 1969",130,61,181,154,96,72,103,43,24,16,90,45,238,110,197,135,1011,246,45,28,11,9,31,19,17,15,134,65,6,5,175,53,23,12,26,15,283,119,37,30,103,63,48,22,70,43]
[null,"Built 1950 to 1959",145,67,65,44,75,32,172,75,18,15,52,35,33,32,76,81,1066,240,11,14,47,30,31,18,20,15,170,94,13,11,106,41,5,5,34,22,259,93,41,32,127,55,68,38,132,52]
[null,"Built 1940 to 1949",68,51,69,58,4,6,24,21,8,7,71,31,107,72,82,62,394,149,29,20,11,7,24,18,6,7,118,78,6,7,14,14,7,5,11,9,107,72,38,26,119,85,14,11,8,11]
[null,"Built 1939 or earlier",131,40,345,190,215,51,331,81,125,40,222,61,433,183,895,199,3883,365,352,89,92,28,134,39,94,44,316,112,26,15,77,31,61,23,73,34,726,224,295,65,554,148,290,108,458,133]
[]
[]
[]
[]
[null,"B25034. YEAR STRUCTURE BUILT"]
[null,"Universe:  HOUSING UNITS"]
[null,"Data Set: 2013-2017 American Community Survey 5-Year Estimates"]
[]
[null,null,"Alstead",null,"Chesterfield",null,"Dublin",null,"Fitzwilliam",null,"Gilsum",null,"Harrisville",null,"Hinsdale",null,"Jaffrey",null,"Keene",null,"Marlborough",null,"Marlow",null,"Nelson",null,"Richmond",null,"Rindge",null,"Roxbury",null,"Stoddard",null,"Sullivan",null,"Surry",null,"Swanzey",null,"Troy",null,"Walpole",null,"Westmoreland",null,"Winchester"]
[null," ","Estimate","Margin of Error","Estimate","Margin of Error","Estimate","Margin of Error","Estimate","Margin of Error","Estimate","Margin of Error","Estimate","Margin of Error","Estimate","Margin of Error","Estimate","Margin of Error","Estimate","Margin of Error","Estimate","Margin of Error","Estimate","Margin of Error","Estimate","Margin of Error","Estimate","Margin of Error","Estimate","Margin of Error","Estimate","Margin of Error","Estimate","Margin of Error","Estimate","Margin of Error","Estimate","Margin of Error","Estimate","Margin of Error","Estimate","Margin of Error","Estimate","Margin of Error","Estimate","Margin of Error","Estimate","Margin of Error"]
[null,"Total:",919,77,1836,215,770,65,1221,72,343,37,728,67,1979,142,10092,336,10110,344,983,95,418,49,429,48,494,55,2262,152,94,27,1057,89,313,47,379,46,3082,206,892,87,1758,111,714,83,2002,182]
[null,"Built 2014 or later",0,11,0,11,3,4,0,11,0,11,0,11,9,15,119,114,53,75,15,11,2,3,0,11,0,11,7,11,0,11,3,4,0,11,2,3,13,21,0,11,19,26,2,3,38,51]
[null,"Built 2010 or 2013",33,21,0,11,0,11,0,11,2,3,8,13,0,11,383,145,379,135,14,16,12,13,0,11,2,3,37,26,2,3,16,11,2,3,12,11,57,37,12,13,42,36,7,8,0,11]
[null,"Built 2000 to 2009",227,64,228,113,81,35,105,46,24,13,69,31,106,47,596,183,595,178,98,37,30,16,103,28,62,26,491,119,5,4,237,49,47,20,75,26,368,137,51,40,183,84,104,34,155,78]
[null,"Built 1990 to 1999",67,34,393,145,86,36,54,26,44,21,81,37,196,80,617,152,554,160,99,42,38,18,56,16,99,43,207,78,4,4,113,49,31,16,26,10,352,129,43,25,70,37,79,28,316,113]
[null,"Built 1980 to 1989",101,37,206,86,102,33,166,43,75,31,107,29,368,120,1359,208,1336,231,143,53,95,29,67,31,151,41,417,98,14,6,170,54,59,21,40,18,509,182,145,58,219,80,86,32,364,133]
[null,"Built 1970 to 1979",168,58,233,113,124,34,184,64,44,19,67,30,259,82,983,196,1036,193,137,52,28,14,40,21,45,21,241,71,14,11,111,37,67,28,67,23,412,137,125,52,167,63,100,29,290,110]
[null,"Built 1960 to 1969",68,40,159,85,106,41,119,48,11,7,82,32,286,106,1033,171,1159,185,32,28,47,22,30,17,34,24,162,63,12,9,133,43,17,11,48,22,240,110,78,59,125,60,74,34,177,91]
[null,"Built 1950 to 1959",18,13,146,79,30,21,121,56,13,11,46,22,126,62,991,223,1055,188,95,55,33,16,19,14,2,4,157,69,20,10,131,44,11,7,46,24,409,138,72,45,77,50,36,24,115,66]
[null,"Built 1940 to 1949",23,15,127,85,44,24,80,42,6,7,49,23,100,58,433,130,427,131,27,20,12,11,0,11,6,7,122,53,6,5,45,26,6,5,9,7,151,93,46,32,81,47,19,14,46,37]
[null,"Built 1939 or earlier",214,49,344,165,194,47,392,77,124,31,219,51,529,158,3578,354,3516,298,323,90,121,35,114,27,93,28,421,112,17,16,98,36,73,25,54,20,571,159,320,81,775,138,207,44,501,140]
[]
[]
[]
[]
[null,"B25034. YEAR STRUCTURE BUILT"]
[null,"Universe:  HOUSING UNITS"]
[null,"Data Set: 2008-2012 American Community Survey 5-Year Estimates"]
[]
[null,null,"Alstead",null,"Chesterfield",null,"Dublin",null,"Fitzwilliam",null,"Gilsum",null,"Harrisville",null,"Hinsdale",null,"Jaffrey",null,"Keene",null,"Marlborough",null,"Marlow",null,"Nelson",null,"Richmond",null,"Rindge",null,"Roxbury",null,"Stoddard",null,"Sullivan",null,"Surry",null,"Swanzey",null,"Troy",null,"Walpole",null,"Westmoreland",null,"Winchester"]
[null," ","Estimate","Margin of Error","Estimate","Margin of Error","Estimate","Margin of Error","Estimate","Margin of Error","Estimate","Margin of Error","Estimate","Margin of Error","Estimate","Margin of Error","Estimate","Margin of Error","Estimate","Margin of Error","Estimate","Margin of Error","Estimate","Margin of Error","Estimate","Margin of Error","Estimate","Margin of Error","Estimate","Margin of Error","Estimate","Margin of Error","Estimate","Margin of Error","Estimate","Margin of Error","Estimate","Margin of Error","Estimate","Margin of Error","Estimate","Margin of Error","Estimate","Margin of Error","Estimate","Margin of Error","Estimate","Margin of Error"]
[null,"Total:",960,76,1782,150,839,76,1236,75,300,37,748,76,2016,154,2356,164,9717,318,960,95,439,61,469,62,495,60,2185,169,90,17,1082,89,285,40,371,45,3137,171,868,103,1626,135,755,82,1984,155]
[null,"Built 2010 or later",6,8,0,11,0,11,0,11,7,10,3,4,0,11,0,16,42,45,0,11,0,11,0,11,0,11,15,18,0,11,13,17,0,11,0,11,0,16,0,11,0,11,0,11,0,11]
[null,"Built 2000 to 2009",108,38,142,90,32,18,121,38,19,13,85,35,137,59,199,95,685,179,38,24,68,48,75,30,72,37,496,116,2,3,190,47,73,33,56,22,315,118,52,33,125,62,115,41,239,104]
[null,"Built 1990 to 1999",126,41,288,127,103,39,59,29,30,18,138,37,144,64,171,103,493,156,80,43,28,18,34,17,93,36,234,68,6,5,161,56,21,13,39,21,471,159,55,51,84,60,82,30,191,88]
[null,"Built 1980 to 1989",213,64,286,117,94,30,237,65,57,24,109,34,328,128,338,124,1015,194,108,39,81,32,49,23,145,55,304,82,16,11,258,62,84,27,29,14,623,173,104,44,133,55,132,43,335,108]
[null,"Built 1970 to 1979",114,46,346,117,147,45,163,64,50,26,88,45,538,156,347,122,1132,233,111,53,70,30,85,48,63,34,361,100,13,10,113,38,42,17,79,30,317,136,166,54,159,65,117,40,231,85]
[null,"Built 1960 to 1969",71,31,69,48,83,33,69,42,13,8,45,27,162,68,185,89,1176,226,14,17,51,23,19,14,12,11,82,43,14,8,153,44,7,9,63,30,308,129,70,44,55,35,50,24,135,79]
[null,"Built 1950 to 1959",73,33,173,102,59,33,103,52,32,21,52,28,68,43,266,98,1210,254,52,29,23,18,35,20,3,5,177,82,10,7,62,30,5,6,34,16,422,132,45,26,117,65,38,19,66,51]
[null,"Built 1940 to 1949",28,20,79,78,29,20,31,21,7,6,42,25,110,85,93,50,383,135,76,52,12,11,33,22,5,5,131,62,3,3,51,29,6,8,7,7,72,53,25,20,63,41,27,14,38,32]
[null,"Built 1939 or earlier",221,56,399,137,292,63,453,110,85,20,186,43,529,148,757,182,3581,290,481,101,106,32,139,36,102,27,385,101,26,15,81,37,47,21,64,24,609,166,351,89,890,132,194,45,749,138]

{"sheet":"ACS_Table_B25041","index":72,"n_rows":73,"n_cols":48,"rows_kept":73,"cut":false,"hidden":true,"merged":[]}
[null,"B25041. BEDROOMS "]
[null,"Universe:  HOUSING UNITS"]
[null,"Data Set: 2018-2022 American Community Survey 5-Year Estimates"]
[]
[null,null,"Alstead",null,"Chesterfield",null,"Dublin",null,"Fitzwilliam",null,"Gilsum",null,"Harrisville",null,"Hinsdale",null,"Jaffrey",null,"Keene",null,"Marlborough",null,"Marlow",null,"Nelson",null,"Richmond",null,"Rindge",null,"Roxbury",null,"Stoddard",null,"Sullivan",null,"Surry",null,"Swanzey",null,"Troy",null,"Walpole",null,"Westmoreland",null,"Winchester"]
[null," ","Estimate","Margin of Error","Estimate","Margin of Error","Estimate","Margin of Error","Estimate","Margin of Error","Estimate","Margin of Error","Estimate","Margin of Error","Estimate","Margin of Error","Estimate","Margin of Error","Estimate","Margin of Error","Estimate","Margin of Error","Estimate","Margin of Error","Estimate","Margin of Error","Estimate","Margin of Error","Estimate","Margin of Error","Estimate","Margin of Error","Estimate","Margin of Error","Estimate","Margin of Error","Estimate","Margin of Error","Estimate","Margin of Error","Estimate","Margin of Error","Estimate","Margin of Error","Estimate","Margin of Error","Estimate","Margin of Error"]
[null,"Total:",986,109,1792,170,797,112,1317,149,360,57,690,92,1789,178,2474,208,10313,317,1009,129,417,72,429,50,456,82,2449,168,101,38,1020,86,301,55,364,60,3388,169,815,105,1618,160,936,184,1885,173]
[null,"No bedroom",45,35,13,21,0,12,54,45,13,11,8,8,0,12,22,28,247,115,28,24,9,11,2,3,3,5,25,25,0,12,0,12,5,6,0,12,78,84,0,12,39,43,45,48,23,37]
[null,"1 bedroom",182,77,10,16,64,28,96,51,25,17,91,42,191,112,381,147,1773,281,149,48,32,20,44,19,26,15,149,78,1,3,77,35,23,12,13,13,461,155,104,41,250,114,76,52,399,137]
[null,"2 bedrooms",274,71,280,169,116,39,425,92,108,29,176,57,502,190,833,282,3156,366,255,86,117,40,118,35,109,39,558,137,22,13,470,73,99,37,60,24,900,244,291,81,366,142,170,52,595,143]
[null,"3 bedrooms",311,68,991,245,378,110,501,129,152,34,268,64,857,161,644,204,3072,361,437,109,197,56,144,37,231,59,1284,162,65,40,388,63,123,33,201,50,1317,266,315,75,723,123,493,143,703,140]
[null,"4 bedrooms",150,58,391,159,141,38,210,80,30,16,76,38,207,109,536,171,1618,330,85,36,58,28,76,28,74,38,356,108,5,4,62,29,32,17,72,31,438,191,105,43,160,73,119,56,154,63]
[null,"5 or more bedrooms",24,26,107,76,98,38,31,30,32,26,71,33,32,31,58,57,447,145,55,39,4,4,45,18,13,17,77,58,8,6,23,18,19,13,18,16,194,161,0,12,80,48,33,26,11,18]
[]
[]
[null,"Calculated B25041. BEDROOMS "]
[null,"Universe:  HOUSING UNITS"]
[null,"Data Set: 2018-2022 American Community Survey 5-Year Estimates"]
[]
[null,null,"Alstead",null,"Chesterfield",null,"Dublin",null,"Fitzwilliam",null,"Gilsum",null,"Harrisville",null,"Hinsdale",null,"Jaffrey",null,"Keene",null,"Marlborough",null,"Marlow",null,"Nelson",null,"Richmond",null,"Rindge",null,"Roxbury",null,"Stoddard",null,"Sullivan",null,"Surry",null,"Swanzey",null,"Troy",null,"Walpole",null,"Westmoreland",null,"Winchester"]
[null," ","Estimate","Margin of Error","Estimate","Margin of Error","Estimate","Margin of Error","Estimate","Margin of Error","Estimate","Margin of Error","Estimate","Margin of Error","Estimate","Margin of Error","Estimate","Margin of Error","Estimate","Margin of Error","Estimate","Margin of Error","Estimate","Margin of Error","Estimate","Margin of Error","Estimate","Margin of Error","Estimate","Margin of Error","Estimate","Margin of Error","Estimate","Margin of Error","Estimate","Margin of Error","Estimate","Margin of Error","Estimate","Margin of Error","Estimate","Margin of Error","Estimate","Margin of Error","Estimate","Margin of Error","Estimate","Margin of Error"]
[null,"Total:",{"$f":"C7","v":986},{"$f":"D7","v":109},1792,170,797,112,1317,149,360,57,690,92,1789,178,2474,208,10313,317,1009,129,417,72,429,50,456,82,2449,168,101,38,1020,86,301,55,364,60,3388,169,815,105,1618,160,936,184,1885,173]
[null,"No bedroom",{"$f":"C8","v":45},35,13,21,0,12,54,45,13,11,8,8,0,12,22,28,247,115,28,24,9,11,2,3,3,5,25,25,0,12,0,12,5,6,0,12,78,84,0,12,39,43,45,48,23,37]
[null,"1 bedroom",{"$f":"C9","v":182},77,10,16,64,28,96,51,25,17,91,42,191,112,381,147,1773,281,149,48,32,20,44,19,26,15,149,78,1,3,77,35,23,12,13,13,461,155,104,41,250,114,76,52,399,137]
[null,"2 bedrooms",{"$f":"C10","v":274},71,280,169,116,39,425,92,108,29,176,57,502,190,833,282,3156,366,255,86,117,40,118,35,109,39,558,137,22,13,470,73,99,37,60,24,900,244,291,81,366,142,170,52,595,143]
[null,"3 bedrooms",{"$f":"C11","v":311},68,991,245,378,110,501,129,152,34,268,64,857,161,644,204,3072,361,437,109,197,56,144,37,231,59,1284,162,65,40,388,63,123,33,201,50,1317,266,315,75,723,123,493,143,703,140]
[null,"4 + bedrooms",{"$f":"C12+C13","v":174},{"$f":"SQRT((D12^2)+(D13^2))","v":63.560994328282817},{"$f":"E12+E13","v":498},{"$f":"SQRT((F12^2)+(F13^2))","v":176.22996340009834},{"$f":"G12+G13","v":239},{"$f":"SQRT((H12^2)+(H13^2))","v":53.740115370177612},{"$f":"I12+I13","v":241},{"$f":"SQRT((J12^2)+(J13^2))","v":85.440037453175307},{"$f":"K12+K13","v":62},{"$f":"SQRT((L12^2)+(L13^2))","v":30.528675044947494},{"$f":"M12+M13","v":147},{"$f":"SQRT((N12^2)+(N13^2))","v":50.328918128646478},{"$f":"O12+O13","v":239},{"$f":"SQRT((P12^2)+(P13^2))","v":113.3225485064645},{"$f":"Q12+Q13","v":594},{"$f":"SQRT((R12^2)+(R13^2))","v":180.24982662959764},{"$f":"S12+S13","v":2065},{"$f":"SQRT((T12^2)+(T13^2))","v":360.45110625437121},{"$f":"U12+U13","v":140},{"$f":"SQRT((V12^2)+(V13^2))","v":53.075418038862395},{"$f":"W12+W13","v":62},{"$f":"SQRT((X12^2)+(X13^2))","v":28.284271247461902},{"$f":"Y12+Y13","v":121},{"$f":"SQRT((Z12^2)+(Z13^2))","v":33.286633954186478},{"$f":"AA12+AA13","v":87},{"$f":"SQRT((AB12^2)+(AB13^2))","v":41.629316592997299},{"$f":"AC12+AC13","v":433},{"$f":"SQRT((AD12^2)+(AD13^2))","v":122.58874336577564},{"$f":"AE12+AE13","v":13},{"$f":"SQRT((AF12^2)+(AF13^2))","v":7.2111025509279782},{"$f":"AG12+AG13","v":85},{"$f":"SQRT((AH12^2)+(AH13^2))","v":34.132096331752024},{"$f":"AI12+AI13","v":51},{"$f":"SQRT((AJ12^2)+(AJ13^2))","v":21.400934559032695},{"$f":"AK12+AK13","v":90},{"$f":"SQRT((AL12^2)+(AL13^2))","v":34.885527085024819},{"$f":"AM12+AM13","v":632},{"$f":"SQRT((AN12^2)+(AN13^2))","v":249.80392310770461},{"$f":"AO12+AO13","v":105},{"$f":"SQRT((AP12^2)+(AP13^2))","v":44.643028571099428},{"$f":"AQ12+AQ13","v":240},{"$f":"SQRT((AR12^2)+(AR13^2))","v":87.367041840730764},{"$f":"AS12+AS13","v":152},{"$f":"SQRT((AT12^2)+(AT13^2))","v":61.741396161732524},{"$f":"AU12+AU13","v":165},{"$f":"SQRT((AV12^2)+(AV13^2))","v":65.520989003524662}]
[]
[]
[]
[]
[]
[]
[]
[]
[]
[]
[]
[]
[]
[]
[]
[]
[]
[]
[]
[null,"Calculated B25041. BEDROOMS "]
[null,"Universe:  HOUSING UNITS"]
[null,"Data Set: 2013-2017 American Community Survey 5-Year Estimates"]
[]
[null,null,"Alstead",null,"Chesterfield",null,"Dublin",null,"Fitzwilliam",null,"Gilsum",null,"Harrisville",null,"Hinsdale",null,"Jaffrey",null,"Keene",null,"Marlborough",null,"Marlow",null,"Nelson",null,"Richmond",null,"Rindge",null,"Roxbury",null,"Stoddard",null,"Sullivan",null,"Surry",null,"Swanzey",null,"Troy",null,"Walpole",null,"Westmoreland",null,"Winchester"]
[null," ","Estimate","Margin of Error","Estimate","Margin of Error","Estimate","Margin of Error","Estimate","Margin of Error","Estimate","Margin of Error","Estimate","Margin of Error","Estimate","Margin of Error","Estimate","Margin of Error","Estimate","Margin of Error","Estimate","Margin of Error","Estimate","Margin of Error","Estimate","Margin of Error","Estimate","Margin of Error","Estimate","Margin of Error","Estimate","Margin of Error","Estimate","Margin of Error","Estimate","Margin of Error","Estimate","Margin of Error","Estimate","Margin of Error","Estimate","Margin of Error","Estimate","Margin of Error","Estimate","Margin of Error","Estimate","Margin of Error"]
[null,"Total:",919,77,1836,215,770,65,1221,72,343,37,728,67,1979,142,10092,336,10110,344,983,95,418,49,429,48,494,55,2262,152,94,27,1057,89,313,47,379,46,3082,206,892,87,1758,111,714,83,2002,182]
[null,"No bedroom",12,14,0,11,2,4,6,10,9,10,15,17,0,11,164,74,203,76,36,35,16,13,32,21,4,7,0,16,0,11,24,21,0,11,0,11,97,93,5,7,39,45,15,18,13,20]
[null,"1 bedroom",143,60,118,106,77,39,137,57,17,9,86,38,256,102,1711,279,1679,287,129,60,28,17,39,16,16,11,125,50,3,3,159,51,20,12,11,8,329,141,143,55,140,76,14,16,289,106]
[null,"2 bedrooms",333,76,463,174,119,38,399,92,113,29,222,47,568,150,3056,380,3242,392,338,76,101,33,79,30,97,34,391,131,40,17,321,69,90,25,104,30,960,183,273,67,365,104,167,47,625,180]
[null,"3 bedrooms",298,65,749,187,381,63,538,84,147,27,308,55,934,132,3628,351,3509,338,303,68,204,36,154,32,288,52,1243,153,38,17,408,61,165,37,206,38,1316,210,343,79,778,152,326,64,767,155]
[null,"4 bedrooms",98,36,407,146,141,44,101,36,51,19,66,25,202,94,1322,206,1278,202,120,51,64,26,83,30,67,24,428,121,8,5,111,34,27,14,52,21,343,118,119,49,301,94,155,45,213,94]
[null,"5 or more bedrooms",35,27,99,73,50,24,40,25,6,6,31,17,19,22,211,81,199,81,57,37,5,5,42,20,22,13,75,49,5,6,34,20,11,7,6,6,37,44,9,9,135,78,37,19,95,59]
[]
[]
[null,"Calculated B25041. BEDROOMS "]
[null,"Universe:  HOUSING UNITS"]
[null,"Data Set: 2008-2012 American Community Survey 5-Year Estimates"]
[]
[null,null,"Alstead",null,"Chesterfield",null,"Dublin",null,"Fitzwilliam",null,"Gilsum",null,"Harrisville",null,"Hinsdale",null,"Jaffrey",null,"Keene",null,"Marlborough",null,"Marlow",null,"Nelson",null,"Richmond",null,"Rindge",null,"Roxbury",null,"Stoddard",null,"Sullivan",null,"Surry",null,"Swanzey",null,"Troy",null,"Walpole",null,"Westmoreland",null,"Winchester"]
[null," ","Estimate","Margin of Error","Estimate","Margin of Error","Estimate","Margin of Error","Estimate","Margin of Error","Estimate","Margin of Error","Estimate","Margin of Error","Estimate","Margin of Error","Estimate","Margin of Error","Estimate","Margin of Error","Estimate","Margin of Error","Estimate","Margin of Error","Estimate","Margin of Error","Estimate","Margin of Error","Estimate","Margin of Error","Estimate","Margin of Error","Estimate","Margin of Error","Estimate","Margin of Error","Estimate","Margin of Error","Estimate","Margin of Error","Estimate","Margin of Error","Estimate","Margin of Error","Estimate","Margin of Error","Estimate","Margin of Error"]
[null,"Total:",960,76,1782,150,839,76,1236,75,300,37,748,76,2016,154,2356,164,9717,318,960,95,439,61,469,62,495,60,2185,169,90,17,1082,89,285,40,371,45,3137,171]
[null,"No bedroom",14,16,0,11,0,11,0,11,6,11,9,14,11,16,26,29,277,131,0,11,0,11,0,11,0,11,28,24,0,11,3,4,4,6,0,11,0,16]
[null,"1 bedroom",83,35,152,119,59,34,170,78,26,16,99,49,369,98,204,93,1399,251,102,49,66,24,62,26,11,10,142,59,4,6,97,38,21,17,12,10,238,83]
[null,"2 bedrooms",327,63,318,113,193,53,367,89,107,31,327,58,529,153,720,152,3180,351,306,86,117,34,94,44,181,56,565,141,19,10,377,71,80,29,93,28,978,194]
[null,"3 bedrooms",293,54,816,189,271,52,543,89,112,30,208,47,753,171,746,180,3252,318,404,84,208,62,208,42,208,43,1053,147,47,17,510,77,142,32,192,41,1418,215]
[null,"4 + bedrooms",243,70.682388188289167,496,146.16771189288008,316,74.249579123386283,156,49.040799340956916,49,18.601075237738275,105,38.418745424597091,354,118.10588469674151,660,182.78402556022229,1609,264.24609741678307,148,43.174066289845804,48,21.540659228538015,105,36.796738985948195,95,34.438350715445125,397,89.872131386765275,20,9.4868329805051381,95,41.43669871020132,38,19.924858845171276,74,25.45584412271571,503,146.8945199794737]

{"sheet":"PovertyCharacteristics","index":73,"n_rows":82,"n_cols":17,"rows_kept":82,"cut":false,"hidden":true,"merged":[[77,2,78,3],[77,6,78,9],[77,11,78,13],[21,15,21,16],[49,15,49,16],[64,15,64,16],[21,11,21,13],[30,2,31,4],[30,7,31,9],[30,11,31,13],[49,11,49,14],[21,3,21,5],[21,7,21,9],[64,3,64,5],[64,7,64,9],[64,11,64,14]]}
[]
[null,null,{"$f":"CntyDataLink!A35","v":"Dublin"}]
[null,null,"POVERTY CHARACTERISTICS"]
[]
[]
[]
[]
[]
[]
[]
[]
[]
[]
[]
[]
[]
[]
[null,null,null,null,null,null,null,null,null,null,null,null,"2012 Income (2008-2012 ACS)"]
[null,null,null,null,null,null,null,null,null,null,null,null,"2017 Income (2013-2017 ACS) "]
[null,null,null,null,null,null,null,null,null,null,null,null,"2022 Income (2018-2022 ACS)"]
[]
[null,null,null,"2012 Inc below Poverty Level",null,null,null,"2017 Inc below Poverty Level",null,null,null,"2022 Inc below Poverty Level",null,null,null,"Statistically Significant Change"]
[null,null,"Population","Estimate","Margin of Error","% of Population in Poverty",null,"Estimate","Margin of Error","% of Population in Poverty",null,"Estimate","Margin of Error","% of Population in Poverty",null,"2012-2022","2017-2022"]
[null,null," Total Individuals living Poverty",{"$f":"CntyDataLinkPrior10YearEstimate!$D$124","v":3511},{"$f":"CntyDataLinkPrior10YearEstimate!$E$124","v":663},{"$f":"D24/CntyDataLinkPrior10YearEstimate!$B$124","v":0.17401001139911781},null,{"$f":"CntyDataLinkPrior5YearEstimates!$D$124","v":3167},{"$f":"CntyDataLinkPrior5YearEstimates!$E$124","v":626},{"$f":"H24/CntyDataLinkPrior5YearEstimates!$B$124","v":0.15577197383306282},null,{"$f":"CntyDataLink!$D$124","v":2320},{"$f":"CntyDataLink!$E$124","v":438},{"$f":"L24/CntyDataLink!$B$124","v":0.11634321247680658},null,{"$f":"StatisticallySignificantCalcs!$A112","v":"Y"},{"$f":"StatisticallySignificantCalcs!$J$112","v":"Y"}]
[null,null,"Under 5 yrs.",{"$f":"CntyDataLinkPrior10YearEstimate!$F$124","v":142},{"$f":"CntyDataLinkPrior10YearEstimate!$G$124","v":91.4166286842826},{"$f":"D25/(CntyDataLinkPrior10YearEstimate!$F$124+CntyDataLinkPrior10YearEstimate!$R$124)","v":0.18205128205128204},null,{"$f":"CntyDataLinkPrior5YearEstimates!$F$124","v":202},{"$f":"CntyDataLinkPrior5YearEstimates!$G$124","v":110.42191811411355},{"$f":"H25/(CntyDataLinkPrior5YearEstimates!$F$124+CntyDataLinkPrior5YearEstimates!$R$124)","v":0.22519509476031216},null,{"$f":"CntyDataLink!$F$124","v":148},{"$f":"CntyDataLink!$G$124","v":108.00462953040486},{"$f":"L25/(CntyDataLink!$F$124+CntyDataLink!$R$124)","v":0.22188905547226387},null,{"$f":"StatisticallySignificantCalcs!$A113","v":"N"},{"$f":"StatisticallySignificantCalcs!$J$113","v":"N"}]
[null,null,"5 to 17 yrs.",{"$f":"CntyDataLinkPrior10YearEstimate!$H$124","v":521},{"$f":"CntyDataLinkPrior10YearEstimate!$I$124","v":219.69751933055593},{"$f":"D26/(CntyDataLinkPrior10YearEstimate!$H$124+CntyDataLinkPrior10YearEstimate!$T$124)","v":0.18274289722904244},null,{"$f":"CntyDataLinkPrior5YearEstimates!$H$124","v":459},{"$f":"CntyDataLinkPrior5YearEstimates!$I$124","v":214.0023364358436},{"$f":"H26/(CntyDataLinkPrior5YearEstimates!$H$124+CntyDataLinkPrior5YearEstimates!$T$124)","v":0.17197452229299362},null,{"$f":"CntyDataLink!$H$124","v":261},{"$f":"CntyDataLink!$I$124","v":106.52229813517918},{"$f":"L26/(CntyDataLink!$H$124+CntyDataLink!$T$124)","v":0.10852390852390853},null,{"$f":"StatisticallySignificantCalcs!$A114","v":"N"},{"$f":"StatisticallySignificantCalcs!$J$114","v":"N"}]
[null,null,"18 to 64 yrs.",{"$f":"CntyDataLinkPrior10YearEstimate!$J$124","v":2486},{"$f":"CntyDataLinkPrior10YearEstimate!$K$124","v":471.01804636340631},{"$f":"D27/(CntyDataLinkPrior10YearEstimate!$J$124+CntyDataLinkPrior10YearEstimate!$V$124)","v":0.18829054002878134},null,{"$f":"CntyDataLinkPrior5YearEstimates!$J$124","v":2108},{"$f":"CntyDataLinkPrior5YearEstimates!$K$124","v":399.82621224727126},{"$f":"H27/(CntyDataLinkPrior5YearEstimates!$J$124+CntyDataLinkPrior5YearEstimates!$V$124)","v":0.15952777357348266},null,{"$f":"CntyDataLink!$J$124","v":1650},{"$f":"CntyDataLink!$K$124","v":324.2637815112875},{"$f":"L27/(CntyDataLink!$J$124+CntyDataLink!$V$124)","v":0.12752144678877811},null,{"$f":"StatisticallySignificantCalcs!$A115","v":"N"},{"$f":"StatisticallySignificantCalcs!$J$115","v":"N"}]
[null,null,"65 to 74 yrs.",{"$f":"CntyDataLinkPrior10YearEstimate!$L$124","v":140},{"$f":"CntyDataLinkPrior10YearEstimate!$M$124","v":71.196910045310247},{"$f":"D28/(CntyDataLinkPrior10YearEstimate!$L$124+CntyDataLinkPrior10YearEstimate!$X$124)","v":9.4466936572199733E-2},null,{"$f":"CntyDataLinkPrior5YearEstimates!$L$124","v":141},{"$f":"CntyDataLinkPrior5YearEstimates!$M$124","v":74.242844773082339},{"$f":"H28/(CntyDataLinkPrior5YearEstimates!$L$124+CntyDataLinkPrior5YearEstimates!$X$124)","v":7.0961248112732758E-2},null,{"$f":"CntyDataLink!$L$124","v":205},{"$f":"CntyDataLink!$M$124","v":98.600202839547947},{"$f":"L28/(CntyDataLink!$L$124+CntyDataLink!$X$124)","v":9.9033816425120769E-2},null,{"$f":"StatisticallySignificantCalcs!$A116","v":"N"},{"$f":"StatisticallySignificantCalcs!$J$116","v":"N"}]
[null,null,"75 yrs. & Over",{"$f":"CntyDataLinkPrior10YearEstimate!$N$124","v":222},{"$f":"CntyDataLinkPrior10YearEstimate!$O$124","v":93.085981758801893},{"$f":"D29/(CntyDataLinkPrior10YearEstimate!$N$124+CntyDataLinkPrior10YearEstimate!$Z$124)","v":0.11929070392262224},null,{"$f":"CntyDataLinkPrior5YearEstimates!$N$124","v":257},{"$f":"CntyDataLinkPrior5YearEstimates!$O$124","v":123.43419299367578},{"$f":"H29/(CntyDataLinkPrior5YearEstimates!$N$124+CntyDataLinkPrior5YearEstimates!$Z$124)","v":0.16432225063938619},null,{"$f":"CntyDataLink!$N$124","v":56},{"$f":"CntyDataLink!$O$124","v":37.20215047547655},{"$f":"L29/(CntyDataLink!$N$124+CntyDataLink!$Z$124)","v":3.0107526881720432E-2},null,{"$f":"StatisticallySignificantCalcs!$A117","v":"Y"},{"$f":"StatisticallySignificantCalcs!$J$117","v":"Y"}]
[]
[null,null,"Source: 2008-2012 American Community Survey  Table B1701",null,null,null,null,"Source: 2013-2017 American Community Survey  Table B1701",null,null,null,"Source: 2018-2022 American Community Survey  Table B1701"]
[]
[]
[]
[]
[]
[]
[]
[]
[]
[]
[]
[]
[]
[]
[]
[]
[]
[]
[null,null,null,{"$f":"D22","v":"2012 Inc below Poverty Level"},null,null,null,{"$f":"H22","v":"2017 Inc below Poverty Level"},null,null,null,{"$f":"L22","v":"2022 Inc below Poverty Level"},null,null,null,"Statistically Significant Change"]
[null,null,null,"Estimate","Margin of Error","% of Family Type in Poverty",null,"Estimate","Margin of Error ","% of Family Type in Poverty",null,"Estimate","Margin of Error ","% of Family Type in Poverty",null,{"$f":"P23","v":"2012-2022"},"2017-2022"]
[]
[]
[null,null,"Total Households",{"$f":"CntyDataLinkPrior10YearEstimate!$AD$124","v":1390},{"$f":"CntyDataLinkPrior10YearEstimate!$AE$124","v":297},{"$f":"$D54/($D54+$D68)","v":0.15396544085068675},null,{"$f":"CntyDataLinkPrior5YearEstimates!$AD$124","v":1460},{"$f":"CntyDataLinkPrior5YearEstimates!$AE$124","v":291},{"$f":"$H54/($H54+$H68)","v":0.15451370515398455},null,{"$f":"CntyDataLink!$AD$124","v":974},{"$f":"CntyDataLink!$AE$124","v":228},{"$f":"$L54/($L54+$L68)","v":0.10668127053669223},null,{"$f":"StatisticallySignificantCalcs!$A$94","v":"Y"},{"$f":"StatisticallySignificantCalcs!$J$94","v":"Y"}]
[null,null,"Family Households",{"$f":"CntyDataLinkPrior10YearEstimate!$AF$124","v":339},{"$f":"CntyDataLinkPrior10YearEstimate!$AG$124","v":134},{"$f":"$D55/($D55+$D69)","v":7.1943972835314091E-2},null,{"$f":"CntyDataLinkPrior5YearEstimates!$AF$124","v":307},{"$f":"CntyDataLinkPrior5YearEstimates!$AG$124","v":95},{"$f":"$H55/($H55+$H69)","v":6.0007818608287723E-2},null,{"$f":"CntyDataLink!$AF$124","v":264},{"$f":"CntyDataLink!$AG$124","v":106},{"$f":"$L55/($L55+$L69)","v":5.818823010800088E-2},null,{"$f":"StatisticallySignificantCalcs!$A$95","v":"N"},{"$f":"StatisticallySignificantCalcs!$J$95","v":"N"}]
[null,null,"Married Couple Fam HH",{"$f":"CntyDataLinkPrior10YearEstimate!$AH$124","v":165},{"$f":"CntyDataLinkPrior10YearEstimate!$AI$124","v":86},{"$f":"$D56/($D56+$D70)","v":4.5871559633027525E-2},null,{"$f":"CntyDataLinkPrior5YearEstimates!$AH$124","v":104},{"$f":"CntyDataLinkPrior5YearEstimates!$AI$124","v":70},2.9345372460496615E-2,null,{"$f":"CntyDataLink!$AH$124","v":57},{"$f":"CntyDataLink!$AI$124","v":53},1.7346317711503346E-2,null,{"$f":"StatisticallySignificantCalcs!$A$96","v":"Y"},{"$f":"StatisticallySignificantCalcs!$J$96","v":"N"}]
[null,null,"M C Fam HH w/Children",{"$f":"CntyDataLinkPrior10YearEstimate!$BN$124","v":97},{"$f":"CntyDataLinkPrior10YearEstimate!$BO$124","v":80},7.1218795888399411E-2,null,{"$f":"CntyDataLinkPrior5YearEstimates!$BN$124","v":48},{"$f":"CntyDataLinkPrior5YearEstimates!$BO$124","v":54},4.1379310344827586E-2,null,{"$f":"CntyDataLink!$BN$124","v":28},{"$f":"CntyDataLink!$BO$124","v":38},2.9850746268656716E-2,null,{"$f":"StatisticallySignificantCalcs!$A$97","v":"N"},{"$f":"StatisticallySignificantCalcs!$J$97","v":"N"}]
[null,null,"Male Head of Family HH ",{"$f":"CntyDataLinkPrior10YearEstimate!$AL$124","v":13},{"$f":"CntyDataLinkPrior10YearEstimate!$AM$124","v":21},3.125E-2,null,{"$f":"CntyDataLinkPrior5YearEstimates!$AL$124","v":59},{"$f":"CntyDataLinkPrior5YearEstimates!$AM$124","v":63},0.13882352941176471,null,{"$f":"CntyDataLink!$AL$124","v":26},{"$f":"CntyDataLink!$AM$124","v":30},6.4837905236907731E-2,null,{"$f":"StatisticallySignificantCalcs!$A$98","v":"N"},{"$f":"StatisticallySignificantCalcs!$J$98","v":"N"}]
[null,null,"Male Head of HH w/Children",{"$f":"CntyDataLinkPrior10YearEstimate!$BP$124","v":0},{"$f":"CntyDataLinkPrior10YearEstimate!$BQ$124","v":21},0,null,{"$f":"CntyDataLinkPrior5YearEstimates!$BP$124","v":46},{"$f":"CntyDataLinkPrior5YearEstimates!$BQ$124","v":59},0.14465408805031446,null,{"$f":"CntyDataLink!$BP$124","v":26},{"$f":"CntyDataLink!$BQ$124","v":30},8.6378737541528236E-2,null,{"$f":"StatisticallySignificantCalcs!$A$99","v":"N"},{"$f":"StatisticallySignificantCalcs!$J$99","v":"N"}]
[null,null,"Female Head of Family HH ",{"$f":"CntyDataLinkPrior10YearEstimate!$AN$124","v":161},{"$f":"CntyDataLinkPrior10YearEstimate!$AO$124","v":87},0.23032904148783978,null,{"$f":"CntyDataLinkPrior5YearEstimates!$AN$124","v":144},{"$f":"CntyDataLinkPrior5YearEstimates!$AO$124","v":72},0.12554489973844812,null,{"$f":"CntyDataLink!$AN$124","v":181},{"$f":"CntyDataLink!$AO$124","v":92},0.21294117647058824,null,{"$f":"StatisticallySignificantCalcs!$A$100","v":"N"},{"$f":"StatisticallySignificantCalcs!$J$100","v":"N"}]
[null,null,"Female Head of HH w/Children",{"$f":"CntyDataLinkPrior10YearEstimate!$BR$124","v":147},{"$f":"CntyDataLinkPrior10YearEstimate!$BS$124","v":88},0.3983739837398374,null,{"$f":"CntyDataLinkPrior5YearEstimates!$BR$124","v":144},{"$f":"CntyDataLinkPrior5YearEstimates!$BS$124","v":72},0.19591836734693877,null,{"$f":"CntyDataLink!$BR$124","v":152},{"$f":"CntyDataLink!$BS$124","v":84},0.33628318584070799,null,{"$f":"StatisticallySignificantCalcs!$A$101","v":"N"},{"$f":"StatisticallySignificantCalcs!$J$101","v":"N"}]
[null,null,"Non-Family HH ",{"$f":"CntyDataLinkPrior10YearEstimate!$AP$124","v":1051},{"$f":"CntyDataLinkPrior10YearEstimate!$AQ$124","v":245},0.24351251158480075,null,{"$f":"CntyDataLinkPrior5YearEstimates!$AP$124","v":1153},{"$f":"CntyDataLinkPrior5YearEstimates!$AQ$124","v":266},0.26609739210708516,null,{"$f":"CntyDataLink!$AP$124","v":710},{"$f":"CntyDataLink!$AQ$124","v":201},0.1545830611800566,null,{"$f":"StatisticallySignificantCalcs!$A$102","v":"Y"},{"$f":"StatisticallySignificantCalcs!$J$102","v":"Y"}]
[]
[]
[null,null,null,"2011  Inc at or Above Poverty Level",null,null,null,"2016 Inc at or Above Poverty Level",null,null,null,"2021 Inc at or above Poverty Level",null,null,null,"Statistically Significant Change"]
[null,null,"Households","Estimate","Margin of Error",null,null,"Estimate","Margin of Error",null,null,"Estimate","Margin of Error",null,null,{"$f":"P51","v":"2012-2022"},"2017-2022"]
[]
[null,null,"Total Households",{"$f":"CntyDataLinkPrior10YearEstimate!$AV$124","v":7638},{"$f":"CntyDataLinkPrior10YearEstimate!$AW$124","v":440},{"$f":"$D68/($D68+$D54)","v":0.84603455914931325},null,{"$f":"CntyDataLinkPrior5YearEstimates!$AV$124","v":7989},{"$f":"CntyDataLinkPrior5YearEstimates!$AW$124","v":421},{"$f":"$H68/($H68+$H54)","v":0.84548629484601545},null,{"$f":"CntyDataLink!$AV$124","v":8156},{"$f":"CntyDataLink!$AW$124","v":433},{"$f":"$L68/($L68+$L54)","v":0.89331872946330781},null,{"$f":"StatisticallySignificantCalcs!$A$103","v":"N"},{"$f":"StatisticallySignificantCalcs!$J$103","v":"N"}]
[null,null,"Family Households",{"$f":"CntyDataLinkPrior10YearEstimate!$AX$124","v":4373},{"$f":"CntyDataLinkPrior10YearEstimate!$AY$124","v":249},{"$f":"$D69/($D69+$D55)","v":0.92805602716468594},null,{"$f":"CntyDataLinkPrior5YearEstimates!$AX$124","v":4809},{"$f":"CntyDataLinkPrior5YearEstimates!$AY$124","v":312},{"$f":"$H69/($H69+$H55)","v":0.93999218139171226},null,{"$f":"CntyDataLink!$AX$124","v":4273},{"$f":"CntyDataLink!$AY$124","v":282},{"$f":"$L69/($L69+$L55)","v":0.94181176989199911},null,{"$f":"StatisticallySignificantCalcs!$A$104","v":"N"},{"$f":"StatisticallySignificantCalcs!$J$104","v":"Y"}]
[null,null,"Married Couple Fam HH",{"$f":"CntyDataLinkPrior10YearEstimate!$AZ$124","v":3432},{"$f":"CntyDataLinkPrior10YearEstimate!$BA$124","v":237},{"$f":"$D70/($D70+$D56)","v":0.95412844036697253},null,{"$f":"CntyDataLinkPrior5YearEstimates!$AZ$124","v":3440},{"$f":"CntyDataLinkPrior5YearEstimates!$BA$124","v":257},{"$f":"$H70/($H70+$H56)","v":0.97065462753950338},null,{"$f":"CntyDataLink!$AZ$124","v":3229},{"$f":"CntyDataLink!$BA$124","v":335},0.9826536822884967,null,{"$f":"StatisticallySignificantCalcs!$A$105","v":"N"},{"$f":"StatisticallySignificantCalcs!$J$105","v":"N"}]
[null,null,"M C Fam HH w/Children",{"$f":"CntyDataLinkPrior10YearEstimate!$BT$124","v":1265},{"$f":"CntyDataLinkPrior10YearEstimate!$BU$124","v":163},0.92878120411160059,null,{"$f":"CntyDataLinkPrior5YearEstimates!$BT$124","v":1112},{"$f":"CntyDataLinkPrior5YearEstimates!$BU$124","v":186},0.95862068965517244,null,{"$f":"CntyDataLink!$BT$124","v":910},{"$f":"CntyDataLink!$BU$124","v":159},0.97014925373134331,null,{"$f":"StatisticallySignificantCalcs!$A$106","v":"Y"},{"$f":"StatisticallySignificantCalcs!$J$106","v":"N"}]
[null,null,"Male Head of Family HH ",{"$f":"CntyDataLinkPrior10YearEstimate!$BD$124","v":403},{"$f":"CntyDataLinkPrior10YearEstimate!$BE$124","v":134},0.96875,null,{"$f":"CntyDataLinkPrior5YearEstimates!$BD$124","v":366},{"$f":"CntyDataLinkPrior5YearEstimates!$BE$124","v":155},0.86117647058823532,null,{"$f":"CntyDataLink!$BD$124","v":375},{"$f":"CntyDataLink!$BE$124","v":149},0.93516209476309231,null,{"$f":"StatisticallySignificantCalcs!$A$107","v":"N"},{"$f":"StatisticallySignificantCalcs!$J$107","v":"N"}]
[null,null,"Male Head of HH w/Children",{"$f":"CntyDataLinkPrior10YearEstimate!$BV$124","v":265},{"$f":"CntyDataLinkPrior10YearEstimate!$BW$124","v":145},1,null,{"$f":"CntyDataLinkPrior5YearEstimates!$BV$124","v":272},{"$f":"CntyDataLinkPrior5YearEstimates!$BW$124","v":151},0.85534591194968557,null,{"$f":"CntyDataLink!$BV$124","v":275},{"$f":"CntyDataLink!$BW$124","v":145},0.91362126245847175,null,{"$f":"StatisticallySignificantCalcs!$A$108","v":"N"},{"$f":"StatisticallySignificantCalcs!$J$108","v":"N"}]
[null,null,"Female Head of Family HH ",{"$f":"CntyDataLinkPrior10YearEstimate!$BF$124","v":538},{"$f":"CntyDataLinkPrior10YearEstimate!$BG$124","v":125},0.76967095851216027,null,{"$f":"CntyDataLinkPrior5YearEstimates!$BF$124","v":1003},{"$f":"CntyDataLinkPrior5YearEstimates!$BG$124","v":197},0.87445510026155182,null,{"$f":"CntyDataLink!$BF$124","v":669},{"$f":"CntyDataLink!$BG$124","v":185},0.78705882352941181,null,{"$f":"StatisticallySignificantCalcs!$A$109","v":"N"},{"$f":"StatisticallySignificantCalcs!$J$109","v":"Y"}]
[null,null,"Female Head of HH w/Children",{"$f":"CntyDataLinkPrior10YearEstimate!$BX$124","v":222},{"$f":"CntyDataLinkPrior10YearEstimate!$BY$124","v":120},0.60162601626016265,null,{"$f":"CntyDataLinkPrior5YearEstimates!$BX$124","v":591},{"$f":"CntyDataLinkPrior5YearEstimates!$BY$124","v":172},0.80408163265306121,null,{"$f":"CntyDataLink!$BX$124","v":300},{"$f":"CntyDataLink!$BY$124","v":125},0.66371681415929207,null,{"$f":"StatisticallySignificantCalcs!$A$110","v":"N"},{"$f":"StatisticallySignificantCalcs!$J$110","v":"Y"}]
[null,null,"Non-Family HH ",{"$f":"CntyDataLinkPrior10YearEstimate!$BH$124","v":3265},{"$f":"CntyDataLinkPrior10YearEstimate!$BI$124","v":367},0.75648748841519931,null,{"$f":"CntyDataLinkPrior5YearEstimates!$BH$124","v":3180},{"$f":"CntyDataLinkPrior5YearEstimates!$BI$124","v":328},0.73390260789291484,null,{"$f":"CntyDataLink!$BH$124","v":3883},{"$f":"CntyDataLink!$BI$124","v":471},0.8454169388199434,null,{"$f":"StatisticallySignificantCalcs!$A$111","v":"Y"},{"$f":"StatisticallySignificantCalcs!$J$111","v":"Y"}]
[]
[null,null,"Source: 2008-2012 American Community Survey ",null,null,null,"Source: 2013-2017 American Community Survey",null,null,null,null,"Source: 2018-2022 American Community Survey"]
[]
[null,null,"Tables B17010; and B17017",null,null,null,"Tables B17010; and B17017",null,null,null,null,"Tables B17010; and B17017"]
[]
[null,null,"Data from the American Community Survey are estimates."]

{"sheet":"ACS_Table_ B17001","index":74,"n_rows":209,"n_cols":48,"rows_kept":209,"cut":false,"hidden":true,"merged":[]}
[null,"B17001. POVERTY STATUS IN THE PAST 12 MONTHS BY SEX BY AGE"]
[null,"Universe:  POPULATION FOR WHOM POVERTY STATUS IS DETERMINED"]
[null,"Data Set: 2018-2022 American Community Survey 5-Year Estimates"]
[]
[null,null,"Alstead",null,"Chesterfield",null,"Dublin",null,"Fitzwilliam",null,"Gilsum",null,"Harrisville",null,"Hinsdale",null,"Jaffrey",null,"Keene",null,"Marlborough",null,"Marlow",null,"Nelson",null,"Richmond",null,"Rindge",null,"Roxbury",null,"Stoddard",null,"Sullivan",null,"Surry",null,"Swanzey",null,"Troy",null,"Walpole",null,"Westmoreland",null,"Winchester"]
[null,null,"Estimate","Margin of Error","Estimate","Margin of Error","Estimate","Margin of Error","Estimate","Margin of Error","Estimate","Margin of Error","Estimate","Margin of Error","Estimate","Margin of Error","Estimate","Margin of Error","Estimate","Margin of Error","Estimate","Margin of Error","Estimate","Margin of Error","Estimate","Margin of Error","Estimate","Margin of Error","Estimate","Margin of Error","Estimate","Margin of Error","Estimate","Margin of Error","Estimate","Margin of Error","Estimate","Margin of Error","Estimate","Margin of Error","Estimate","Margin of Error","Estimate","Margin of Error","Estimate","Margin of Error","Estimate","Margin of Error"]
[null,"Total:",1599,169,3577,15,1675,216,2282,370,871,144,977,197,3965,16,5291,36,20295,127,2249,391,803,175,541,104,1107,251,5461,37,264,111,1205,162,681,130,950,245,7251,64,1889,275,3651,33,1971,342,4060,58]
[null,"Income in the past 12 months below poverty level:",171,78,227,212,164,89,214,100,59,35,42,25,245,198,235,156,2263,410,329,226,100,65,15,8,35,48,298,177,2,3,75,51,22,14,18,12,695,308,140,67,300,159,127,157,762,291]
[null,"Male:",50,39,140,178,86,56,87,42,27,18,24,19,130,124,59,45,1061,245,156,111,48,34,6,5,0,12,111,79,1,3,25,20,8,6,11,10,241,161,51,31,91,73,53,60,345,164]
[null,"Under 5 years",0,12,0,12,0,12,0,12,0,12,0,12,26,38,0,17,67,74,42,57,15,22,0,12,0,12,13,23,0,12,0,12,0,12,0,12,11,21,0,12,15,25,0,12,53,44]
[null,"5 years",0,12,0,12,0,12,0,12,0,12,0,12,0,12,19,33,1,3,0,12,3,6,0,12,0,12,0,17,0,12,4,6,0,12,0,12,0,17,0,12,0,12,0,12,0,12]
[null,"6 to 11 years",0,12,57,74,6,6,0,12,0,12,0,12,0,12,0,17,62,64,0,12,3,4,0,12,0,12,30,35,0,12,0,12,0,12,0,12,10,16,6,9,0,12,0,12,26,30]
[null,"12 to 14 years",0,12,30,39,4,7,0,12,0,12,0,12,7,17,0,17,12,19,31,45,3,4,0,12,0,12,0,17,0,12,0,12,0,12,0,12,0,17,0,12,0,12,0,12,8,12]
[null,"15 years",0,12,0,12,5,6,0,12,3,5,0,12,6,24,0,17,14,24,0,12,0,12,0,12,0,12,0,17,0,12,0,12,0,12,0,12,0,17,0,12,0,12,0,12,11,18]
[null,"16 and 17 years",0,12,0,12,9,9,10,16,0,12,0,12,6,24,0,17,50,54,9,14,0,12,0,12,0,12,0,17,0,12,0,12,0,12,0,12,0,17,0,12,0,12,0,12,0,12]
[null,"18 to 24 years",0,12,0,12,0,12,6,9,2,4,0,12,26,40,0,17,342,174,45,46,0,12,0,12,0,12,12,20,0,12,0,12,0,12,0,12,0,17,5,9,0,12,0,12,35,46]
[null,"25 to 34 years",28,38,53,69,0,12,0,12,4,7,0,12,10,15,7,12,208,115,0,12,4,6,2,3,0,12,18,29,1,3,2,5,0,12,0,12,71,73,5,9,8,14,0,12,28,32]
[null,"35 to 44 years",0,12,0,12,8,12,5,8,6,9,5,7,0,12,3,10,87,77,8,12,0,12,0,12,0,12,10,18,0,12,0,12,0,12,0,12,15,25,0,12,0,12,0,12,63,47]
[null,"45 to 54 years",4,6,0,12,7,7,23,21,9,8,7,9,43,53,1,5,38,43,7,10,5,5,0,12,0,12,0,17,0,12,9,10,0,12,4,5,0,17,0,12,0,12,5,8,14,24]
[null,"55 to 64 years",18,12,0,12,11,13,24,27,2,3,12,15,6,11,11,16,119,79,4,7,13,14,0,12,0,12,20,27,0,12,10,13,8,6,3,4,106,121,25,25,26,33,0,12,75,96]
[null,"65 to 74 years",0,12,0,12,34,53,10,13,0,12,0,12,0,12,0,17,61,42,10,16,0,12,4,4,0,12,8,13,0,12,0,12,0,12,0,12,28,34,6,10,21,33,8,9,26,24]
[null,"75 years and over",0,12,0,12,2,5,9,9,1,3,0,12,0,12,18,30,0,22,0,12,2,3,0,12,0,12,0,17,0,12,0,12,0,12,4,5,0,17,4,8,21,32,40,59,6,9]
[null,"Female:",121,64,87,56,78,46,127,72,32,26,18,14,115,94,176,125,1202,296,173,130,52,33,9,6,35,48,187,107,1,2,50,34,14,11,7,7,454,218,89,47,209,125,74,99,417,171]
[null,"Under 5 years",0,12,0,12,4,6,0,12,5,8,0,12,0,12,28,48,37,46,0,12,0,12,0,12,0,12,0,17,0,12,12,17,0,12,0,12,0,17,0,12,0,12,0,12,155,128]
[null,"5 years",0,12,0,12,0,12,0,12,0,12,0,12,10,15,0,17,0,22,0,12,0,12,0,12,0,12,0,17,0,12,0,12,0,12,0,12,20,33,0,12,0,12,0,12,0,12]
[null,"6 to 11 years",0,12,0,12,3,4,0,12,2,3,0,12,10,14,0,17,29,25,0,12,18,17,0,12,0,12,10,17,0,12,4,6,0,12,0,12,82,68,0,12,0,12,0,12,14,22]
[null,"12 to 14 years",0,12,0,12,10,11,15,17,2,3,0,12,0,12,0,17,0,22,6,9,5,7,0,12,0,12,28,33,0,12,0,12,0,12,0,12,15,34,0,12,0,12,0,12,21,28]
[null,"15 years",0,12,0,12,0,12,0,12,0,12,0,12,5,21,0,17,13,23,51,61,0,12,0,12,0,12,0,17,0,12,0,12,0,12,0,12,0,17,0,12,0,12,0,12,25,34]
[null,"16 and 17 years",0,12,0,12,0,12,0,12,0,12,0,12,0,12,0,17,0,22,0,12,0,12,0,12,0,12,0,17,0,12,0,12,3,4,0,12,0,17,0,12,0,12,0,12,0,12]
[null,"18 to 24 years",16,22,0,12,0,12,4,8,0,12,0,12,17,26,46,71,367,176,0,12,0,12,0,12,0,12,46,54,0,12,0,12,0,12,3,5,0,17,9,11,0,12,3,5,29,39]
[null,"25 to 34 years",18,13,50,39,8,15,16,31,0,12,0,12,12,18,0,17,229,103,13,21,10,10,4,5,1,3,18,28,0,12,0,12,0,12,0,12,22,39,44,34,26,27,0,12,90,57]
[null,"35 to 44 years",0,12,0,12,5,4,0,12,3,4,0,12,0,12,23,39,124,85,56,64,0,12,0,12,1,3,42,35,0,12,3,4,0,12,0,12,68,66,7,11,21,23,0,12,25,28]
[null,"45 to 54 years",4,6,0,12,12,13,32,35,4,4,5,7,18,24,28,42,53,48,5,8,9,10,0,12,12,20,8,13,0,12,7,12,3,4,0,12,116,122,4,7,25,29,0,12,10,16]
[null,"55 to 64 years",15,11,18,29,5,7,29,29,0,12,10,13,14,24,11,18,163,93,36,34,0,12,2,3,1,3,21,28,0,12,0,12,0,12,0,12,52,39,13,19,20,36,0,12,9,14]
[null,"65 to 74 years",62,53,0,12,25,38,26,29,16,15,3,4,0,12,12,21,127,81,6,9,0,12,3,3,0,12,14,17,0,12,12,14,2,3,2,4,0,17,12,12,6,8,71,98,30,23]
[null,"75 years and over",6,8,19,28,6,6,5,8,0,12,0,12,29,47,28,32,60,45,0,12,10,9,0,12,20,28,0,17,1,2,12,14,6,9,2,3,79,80,0,12,111,92,0,12,9,14]
[null,"Income in the past 12 months at or above poverty level:",1428,156,3350,213,1511,201,2068,349,812,144,935,193,3720,201,5056,159,18032,425,1920,387,703,166,526,105,1072,251,5163,185,262,111,1130,167,659,130,932,246,6556,303,1749,260,3351,162,1844,296,3298,282]
[null,"Male:",720,111,1860,165,696,98,1116,210,425,88,437,93,1960,213,2664,225,9035,426,846,171,316,72,244,50,598,161,2619,190,103,40,567,101,334,78,377,72,3267,248,899,171,1708,149,804,144,1589,222]
[null,"Under 5 years",12,11,121,74,24,19,33,23,33,23,42,33,0,12,114,89,418,105,34,32,8,13,15,8,38,31,131,99,5,5,29,16,35,30,17,13,114,96,25,22,168,87,33,31,49,45]
[null,"5 years",3,4,17,26,4,6,8,13,5,7,3,4,35,38,105,72,63,48,3,5,0,12,0,12,0,12,45,42,0,12,0,12,0,12,0,12,62,40,0,12,29,28,7,6,28,41]
[null,"6 to 11 years",32,20,191,85,28,16,42,19,12,10,20,15,153,78,184,78,643,141,22,16,4,5,12,9,51,28,215,95,3,5,39,25,13,8,14,10,92,76,61,45,81,74,24,19,82,64]
[null,"12 to 14 years",22,13,62,50,28,20,11,10,2,3,17,21,19,22,138,95,230,84,43,31,7,6,0,12,19,14,118,78,1,2,31,19,0,12,17,14,155,92,50,33,80,53,4,6,54,37]
[null,"15 years",13,13,32,36,8,10,0,12,0,12,3,5,0,12,0,17,56,51,8,14,0,12,3,6,2,4,10,18,0,12,18,16,0,12,3,4,18,31,17,27,39,49,6,7,19,32]
[null,"16 and 17 years",26,27,63,79,5,9,30,25,30,29,4,6,51,79,112,92,214,106,13,16,17,20,0,12,10,10,48,47,0,12,12,15,5,7,0,12,33,52,15,22,83,85,10,10,49,45]
[null,"18 to 24 years",52,34,92,68,55,28,55,34,54,36,9,10,108,83,37,54,992,239,47,38,17,13,7,11,56,42,107,63,9,11,36,19,13,11,12,16,186,155,28,20,136,91,48,35,103,59]
[null,"25 to 34 years",67,39,221,108,63,45,165,80,59,32,29,17,150,90,364,177,1305,280,80,45,32,27,16,9,57,34,376,101,7,6,43,23,75,35,37,23,271,101,153,77,222,87,69,38,222,105]
[null,"35 to 44 years",75,30,208,104,61,24,114,40,34,19,49,35,246,92,388,135,1240,242,119,53,33,20,29,15,38,17,274,95,6,5,56,28,27,12,59,33,362,160,152,57,133,51,25,15,182,83]
[null,"45 to 54 years",98,34,124,112,130,34,213,154,51,24,28,16,298,130,443,146,1281,190,140,74,35,18,36,20,48,27,261,100,43,37,99,36,43,20,47,25,376,175,123,52,228,77,144,57,156,65]
[null,"55 to 64 years",162,73,205,132,121,58,226,61,56,21,89,38,285,115,464,207,1025,235,162,57,67,31,51,23,106,42,418,103,16,12,105,34,56,18,51,21,709,187,119,46,184,84,221,81,420,105]
[null,"65 to 74 years",106,42,367,125,119,36,185,51,76,29,91,28,433,236,159,87,838,144,73,33,75,38,55,22,145,100,420,109,10,6,68,17,40,17,80,34,505,186,115,47,250,74,148,50,167,67]
[null,"75 years and over",52,33,157,80,50,26,34,17,13,9,53,20,182,113,156,99,730,148,102,43,21,12,20,10,28,16,196,97,3,3,31,15,27,14,40,20,384,157,41,28,75,39,65,26,58,32]
[null,"Female:",708,84,1490,161,815,126,952,172,387,72,498,110,1760,224,2392,248,8997,412,1074,255,387,109,282,66,474,116,2544,206,159,78,563,90,325,65,555,203,3289,284,850,129,1643,210,1040,195,1709,223]
[null,"Under 5 years",20,19,20,30,53,32,40,44,21,15,8,8,58,46,0,17,345,108,140,107,19,19,7,7,10,14,116,74,2,3,17,15,28,18,47,47,110,82,106,55,144,82,47,41,82,66]
[null,"5 years",0,12,0,12,2,3,7,9,7,8,5,6,34,28,19,27,48,39,11,12,0,12,1,3,2,3,32,61,1,2,0,12,2,3,2,3,40,56,26,24,31,31,0,12,30,36]
[null,"6 to 11 years",46,23,89,58,55,18,43,29,25,28,43,37,86,56,249,92,289,118,22,19,55,44,30,22,34,25,268,133,2,3,35,20,23,12,54,57,177,93,53,35,79,51,114,68,58,53]
[null,"12 to 14 years",25,18,55,46,44,21,36,24,0,12,0,12,45,44,185,101,288,106,28,23,27,17,0,12,12,11,59,42,0,12,38,21,0,12,31,26,128,95,4,6,89,57,39,25,54,78]
[null,"15 years",12,11,0,12,16,17,0,12,2,3,0,12,33,46,99,75,114,74,9,12,8,8,0,12,0,12,32,54,0,12,0,12,2,4,5,5,92,83,12,15,7,13,18,17,27,40]
[null,"16 and 17 years",17,12,0,12,19,14,5,7,0,12,4,6,2,8,65,60,189,109,71,50,3,4,8,12,10,9,14,19,2,4,12,7,0,12,3,3,48,46,18,22,81,62,9,12,60,65]
[null,"18 to 24 years",22,30,54,55,15,14,40,33,41,23,27,23,184,133,111,109,692,231,30,31,21,16,10,13,38,39,152,71,58,58,23,17,14,10,19,13,108,78,40,33,60,50,56,60,193,133]
[null,"25 to 34 years",61,37,219,121,22,16,91,57,54,26,62,36,93,57,150,112,1534,193,73,38,41,32,13,10,30,18,236,96,9,8,79,36,60,36,100,79,294,91,112,46,232,130,60,35,180,97]
[null,"35 to 44 years",52,23,128,79,93,40,91,28,35,17,59,39,235,80,297,117,973,174,202,107,33,18,46,22,40,21,270,82,21,13,68,30,40,20,61,32,337,102,134,58,197,60,123,67,245,96]
[null,"45 to 54 years",109,36,259,97,135,46,61,40,55,30,27,19,207,83,409,131,1168,239,115,51,27,19,20,15,38,21,345,102,26,24,76,26,37,17,47,31,405,150,72,36,265,81,92,37,168,61]
[null,"55 to 64 years",149,56,324,148,154,77,271,71,73,24,119,42,369,98,376,154,1207,212,172,57,63,28,72,27,134,52,381,115,19,16,103,32,65,18,71,39,670,161,122,49,171,78,215,83,296,85]
[null,"65 to 74 years",111,42,244,110,137,42,225,102,42,20,104,30,214,97,264,100,1173,175,114,48,67,38,45,18,69,30,417,105,13,5,74,21,38,14,70,25,587,143,89,31,176,50,144,51,174,80]
[null,"75 years and over",84,45,98,71,70,51,42,26,32,14,40,22,200,156,168,90,977,202,87,42,23,15,30,21,57,28,222,107,6,6,38,16,16,10,45,20,293,112,62,38,111,51,123,45,142,65]
[]
[]
[]
[null,"Calculated Table B17001. POVERTY STATUS IN THE PAST 12 MONTHS BY SEX BY AGE"]
[null,"Universe:  POPULATION FOR WHOM POVERTY STATUS IS DETERMINED"]
[null,{"$f":"B3","v":"Data Set: 2018-2022 American Community Survey 5-Year Estimates"}]
[]
[null,null,"Alstead",null,"Chesterfield",null,"Dublin",null,"Fitzwilliam",null,"Gilsum",null,"Harrisville",null,"Hinsdale",null,"Jaffrey",null,"Keene",null,"Marlborough",null,"Marlow",null,"Nelson",null,"Richmond",null,"Rindge",null,"Roxbury",null,"Stoddard",null,"Sullivan",null,"Surry",null,"Swanzey",null,"Troy",null,"Walpole",null,"Westmoreland",null,"Winchester"]
[null," ","Estimate","Margin of Error","Estimate","Margin of Error","Estimate","Margin of Error","Estimate","Margin of Error","Estimate","Margin of Error","Estimate","Margin of Error","Estimate","Margin of Error","Estimate","Margin of Error","Estimate","Margin of Error","Estimate","Margin of Error","Estimate","Margin of Error","Estimate","Margin of Error","Estimate","Margin of Error","Estimate","Margin of Error","Estimate","Margin of Error","Estimate","Margin of Error","Estimate","Margin of Error","Estimate","Margin of Error","Estimate","Margin of Error","Estimate","Margin of Error","Estimate","Margin of Error","Estimate","Margin of Error","Estimate","Margin of Error"]
[null,"Total:",{"$f":"C7","v":1599},{"$f":"D7","v":169},3577,15,1675,216,2282,370,871,144,977,197,3965,16,5291,36,20295,127,2249,391,803,175,{"$f":"Y7","v":541},104,1107,251,5461,37,264,111,1205,162,681,130,950,245,7251,64,{"$f":"AO7","v":1889},275,3651,33,1971,342,4060,58]
[null,"Income in the past 12 months below poverty level:",{"$f":"C8","v":171},{"$f":"D8","v":78},227,212,164,89,214,100,59,35,42,25,245,198,235,156,2263,410,329,226,100,65,{"$f":"Y8","v":15},8,35,48,298,177,2,3,75,51,22,14,18,12,695,308,{"$f":"AO8","v":140},67,300,159,127,157,762,291]
[null,"Under 5 years",{"$f":"C10+C24","v":0},{"$f":"SQRT(((D10^2))+((D34^2)))","v":16.278820596099706},{"$f":"E10+E24","v":0},{"$f":"SQRT(((F10^2))+((F34^2)))","v":31.384709652950431},{"$f":"G10+G24","v":4},{"$f":"SQRT(((H10^2))+((H34^2)))","v":13.892443989449804},{"$f":"I10+I24","v":0},{"$f":"SQRT(((J10^2))+((J34^2)))","v":31.384709652950431},{"$f":"K10+K24","v":5},{"$f":"SQRT(((L10^2))+((L34^2)))","v":16.970562748477139},{"$f":"M10+M24","v":0},{"$f":"SQRT(((N10^2))+((N34^2)))","v":17.691806012954132},{"$f":"O10+O24","v":26},{"$f":"SQRT(((P10^2))+((P34^2)))","v":44.944410108488462},{"$f":"Q10+Q24","v":28},{"$f":"SQRT(((R10^2))+((R34^2)))","v":24.758836806279895},{"$f":"S10+S24","v":104},{"$f":"SQRT(((T10^2))+((T34^2)))","v":118.84864324004712},{"$f":"U10+U24","v":42},{"$f":"SQRT(((V10^2))+((V34^2)))","v":66.370174024180471},{"$f":"W10+W24","v":15},{"$f":"SQRT(((X10^2))+((X34^2)))","v":25.059928172283335},{"$f":"Y10+Y24","v":0},{"$f":"SQRT(((Z10^2))+((Z34^2)))","v":12.369316876852981},{"$f":"AA10+AA24","v":0},{"$f":"SQRT(((AB10^2))+((AB34^2)))","v":12.369316876852981},{"$f":"AC10+AC24","v":13},{"$f":"SQRT(((AD10^2))+((AD34^2)))","v":36.235341863986875},{"$f":"AE10+AE24","v":0},{"$f":"SQRT(((AF10^2))+((AF34^2)))","v":16.970562748477139},{"$f":"AG10+AG24","v":12},{"$f":"SQRT(((AH10^2))+((AH34^2)))","v":16.970562748477139},{"$f":"AI10+AI24","v":0},{"$f":"SQRT(((AJ10^2))+((AJ34^2)))","v":16.970562748477139},{"$f":"AK10+AK24","v":0},{"$f":"SQRT(((AL10^2))+((AL34^2)))","v":16.970562748477139},{"$f":"AM10+AM24","v":11},{"$f":"SQRT(((AN10^2))+((AN34^2)))","v":44.294469180700204},{"$f":"AO10+AO24","v":0},{"$f":"SQRT(((AP10^2))+((AP34^2)))","v":22.472205054244231},{"$f":"AQ10+AQ24","v":15},{"$f":"SQRT(((AR10^2))+((AR34^2)))","v":43.829214001622255},{"$f":"AS10+AS24","v":0},{"$f":"SQRT(((AT10^2))+((AT34^2)))","v":16.970562748477139},{"$f":"AU10+AU24","v":208},{"$f":"SQRT(((AV10^2))+((AV34^2)))","v":46.173585522460783}]
[null,"5 to 17 years",{"$f":"C11+C12+C13+C14+C15+C25+C26+C27+C28+C29","v":0},{"$f":"SQRT((D11^2)+(D12^2)+(D13^2)+(D14^2)+(D15^2)+(D25^2)+(D26^2)+(D27^2)+(D28)+(D29^2))","v":36.166282640050248},{"$f":"E11+E12+E13+E14+E15+E25+E26+E27+E28+E29","v":87},{"$f":"SQRT((F11^2)+(F12^2)+(F13^2)+(F14^2)+(F15^2)+(F25^2)+(F26^2)+(F27^2)+(F28)+(F29^2))","v":89.537701556383496},{"$f":"G11+G12+G13+G14+G15+G25+G26+G27+G28+G29","v":37},{"$f":"SQRT((H11^2)+(H12^2)+(H13^2)+(H14^2)+(H15^2)+(H25^2)+(H26^2)+(H27^2)+(H28)+(H29^2))","v":27.982137159266443},{"$f":"I11+I12+I13+I14+I15+I25+I26+I27+I28+I29","v":25},{"$f":"SQRT((J11^2)+(J12^2)+(J13^2)+(J14^2)+(J15^2)+(J25^2)+(J26^2)+(J27^2)+(J28)+(J29^2))","v":39.560080889704963},{"$f":"K11+K12+K13+K14+K15+K25+K26+K27+K28+K29","v":7},{"$f":"SQRT((L11^2)+(L12^2)+(L13^2)+(L14^2)+(L15^2)+(L25^2)+(L26^2)+(L27^2)+(L28)+(L29^2))","v":30.315012782448235},{"$f":"M11+M12+M13+M14+M15+M25+M26+M27+M28+M29","v":0},{"$f":"SQRT((N11^2)+(N12^2)+(N13^2)+(N14^2)+(N15^2)+(N25^2)+(N26^2)+(N27^2)+(N28)+(N29^2))","v":36.166282640050248},{"$f":"O11+O12+O13+O14+O15+O25+O26+O27+O28+O29","v":44},{"$f":"SQRT((P11^2)+(P12^2)+(P13^2)+(P14^2)+(P15^2)+(P25^2)+(P26^2)+(P27^2)+(P28)+(P29^2))","v":49.588305072869751},{"$f":"Q11+Q12+Q13+Q14+Q15+Q25+Q26+Q27+Q28+Q29","v":19},{"$f":"SQRT((R11^2)+(R12^2)+(R13^2)+(R14^2)+(R15^2)+(R25^2)+(R26^2)+(R27^2)+(R28)+(R29^2))","v":58.463663928973865},{"$f":"S11+S12+S13+S14+S15+S25+S26+S27+S28+S29","v":181},{"$f":"SQRT((T11^2)+(T12^2)+(T13^2)+(T14^2)+(T15^2)+(T25^2)+(T26^2)+(T27^2)+(T28)+(T29^2))","v":100.28958071504736},{"$f":"U11+U12+U13+U14+U15+U25+U26+U27+U28+U29","v":97},{"$f":"SQRT((V11^2)+(V12^2)+(V13^2)+(V14^2)+(V15^2)+(V25^2)+(V26^2)+(V27^2)+(V28)+(V29^2))","v":56.806689746895124},{"$f":"W11+W12+W13+W14+W15+W25+W26+W27+W28+W29","v":32},{"$f":"SQRT((X11^2)+(X12^2)+(X13^2)+(X14^2)+(X15^2)+(X25^2)+(X26^2)+(X27^2)+(X28)+(X29^2))","v":31.527765540868891},{"$f":"Y11+Y12+Y13+Y14+Y15+Y25+Y26+Y27+Y28+Y29","v":0},{"$f":"SQRT((Z11^2)+(Z12^2)+(Z13^2)+(Z14^2)+(Z15^2)+(Z25^2)+(Z26^2)+(Z27^2)+(Z28)+(Z29^2))","v":36.166282640050248},{"$f":"AA11+AA12+AA13+AA14+AA15+AA25+AA26+AA27+AA28+AA29","v":0},{"$f":"SQRT((AB11^2)+(AB12^2)+(AB13^2)+(AB14^2)+(AB15^2)+(AB25^2)+(AB26^2)+(AB27^2)+(AB28)+(AB29^2))","v":36.166282640050248},{"$f":"AC11+AC12+AC13+AC14+AC15+AC25+AC26+AC27+AC28+AC29","v":68},{"$f":"SQRT((AD11^2)+(AD12^2)+(AD13^2)+(AD14^2)+(AD15^2)+(AD25^2)+(AD26^2)+(AD27^2)+(AD28)+(AD29^2))","v":65.98484674529449},{"$f":"AE11+AE12+AE13+AE14+AE15+AE25+AE26+AE27+AE28+AE29","v":0},{"$f":"SQRT((AF11^2)+(AF12^2)+(AF13^2)+(AF14^2)+(AF15^2)+(AF25^2)+(AF26^2)+(AF27^2)+(AF28)+(AF29^2))","v":36.166282640050248},{"$f":"AG11+AG12+AG13+AG14+AG15+AG25+AG26+AG27+AG28+AG29","v":8},{"$f":"SQRT((AH11^2)+(AH12^2)+(AH13^2)+(AH14^2)+(AH15^2)+(AH25^2)+(AH26^2)+(AH27^2)+(AH28)+(AH29^2))","v":33.045423283716609},{"$f":"AI11+AI12+AI13+AI14+AI15+AI25+AI26+AI27+AI28+AI29","v":3},{"$f":"SQRT((AJ11^2)+(AJ12^2)+(AJ13^2)+(AJ14^2)+(AJ15^2)+(AJ25^2)+(AJ26^2)+(AJ27^2)+(AJ28)+(AJ29^2))","v":34.351128074635334},{"$f":"AK11+AK12+AK13+AK14+AK15+AK25+AK26+AK27+AK28+AK29","v":0},{"$f":"SQRT((AL11^2)+(AL12^2)+(AL13^2)+(AL14^2)+(AL15^2)+(AL25^2)+(AL26^2)+(AL27^2)+(AL28)+(AL29^2))","v":36.166282640050248},{"$f":"AM11+AM12+AM13+AM14+AM15+AM25+AM26+AM27+AM28+AM29","v":127},{"$f":"SQRT((AN11^2)+(AN12^2)+(AN13^2)+(AN14^2)+(AN15^2)+(AN25^2)+(AN26^2)+(AN27^2)+(AN28)+(AN29^2))","v":92.666067144343614},{"$f":"AO11+AO12+AO13+AO14+AO15+AO25+AO26+AO27+AO28+AO29","v":6},{"$f":"SQRT((AP11^2)+(AP12^2)+(AP13^2)+(AP14^2)+(AP15^2)+(AP25^2)+(AP26^2)+(AP27^2)+(AP28)+(AP29^2))","v":35.284557528754704},{"$f":"AQ11+AQ12+AQ13+AQ14+AQ15+AQ25+AQ26+AQ27+AQ28+AQ29","v":0},{"$f":"SQRT((AR11^2)+(AR12^2)+(AR13^2)+(AR14^2)+(AR15^2)+(AR25^2)+(AR26^2)+(AR27^2)+(AR28)+(AR29^2))","v":36.166282640050248},{"$f":"AS11+AS12+AS13+AS14+AS15+AS25+AS26+AS27+AS28+AS29","v":0},{"$f":"SQRT((AT11^2)+(AT12^2)+(AT13^2)+(AT14^2)+(AT15^2)+(AT25^2)+(AT26^2)+(AT27^2)+(AT28)+(AT29^2))","v":36.166282640050248},{"$f":"AU11+AU12+AU13+AU14+AU15+AU25+AU26+AU27+AU28+AU29","v":105},{"$f":"SQRT((AV11^2)+(AV12^2)+(AV13^2)+(AV14^2)+(AV15^2)+(AV25^2)+(AV26^2)+(AV27^2)+(AV28)+(AV29^2))","v":56.97367813297646}]
[null,"18 to 64 years",{"$f":"C16+C17+C18+C19+C20+C30+C31+C32+C33+C34","v":103},{"$f":"SQRT((D16^2)+(D17^2)+(D18^2)+(D19^2)+(D20^2)+(D30^2)+(D31^2)+(D32^2)+(D33^2)+(D34^2))","v":53.535035257296691},{"$f":"E16+E17+E18+E19+E20+E30+E31+E32+E33+E34","v":121},{"$f":"SQRT((F16^2)+(F17^2)+(F18^2)+(F19^2)+(F20^2)+(F30^2)+(F31^2)+(F32^2)+(F33^2)+(F34^2))","v":90.172057756269481},{"$f":"G16+G17+G18+G19+G20+G30+G31+G32+G33+G34","v":56},{"$f":"SQRT((H16^2)+(H17^2)+(H18^2)+(H19^2)+(H20^2)+(H30^2)+(H31^2)+(H32^2)+(H33^2)+(H34^2))","v":35.397740040855716},{"$f":"I16+I17+I18+I19+I20+I30+I31+I32+I33+I34","v":139},{"$f":"SQRT((J16^2)+(J17^2)+(J18^2)+(J19^2)+(J20^2)+(J30^2)+(J31^2)+(J32^2)+(J33^2)+(J34^2))","v":68.512772531842558},{"$f":"K16+K17+K18+K19+K20+K30+K31+K32+K33+K34","v":30},{"$f":"SQRT((L16^2)+(L17^2)+(L18^2)+(L19^2)+(L20^2)+(L30^2)+(L31^2)+(L32^2)+(L33^2)+(L34^2))","v":26.134268690743959},{"$f":"M16+M17+M18+M19+M20+M30+M31+M32+M33+M34","v":39},{"$f":"SQRT((N16^2)+(N17^2)+(N18^2)+(N19^2)+(N20^2)+(N30^2)+(N31^2)+(N32^2)+(N33^2)+(N34^2))","v":35.958309192730404},{"$f":"O16+O17+O18+O19+O20+O30+O31+O32+O33+O34","v":146},{"$f":"SQRT((P16^2)+(P17^2)+(P18^2)+(P19^2)+(P20^2)+(P30^2)+(P31^2)+(P32^2)+(P33^2)+(P34^2))","v":84.823345842993007},{"$f":"Q16+Q17+Q18+Q19+Q20+Q30+Q31+Q32+Q33+Q34","v":130},{"$f":"SQRT((R16^2)+(R17^2)+(R18^2)+(R19^2)+(R20^2)+(R30^2)+(R31^2)+(R32^2)+(R33^2)+(R34^2))","v":98.75727821279807},{"$f":"S16+S17+S18+S19+S20+S30+S31+S32+S33+S34","v":1730},{"$f":"SQRT((T16^2)+(T17^2)+(T18^2)+(T19^2)+(T20^2)+(T30^2)+(T31^2)+(T32^2)+(T33^2)+(T34^2))","v":342.46605671219447},{"$f":"U16+U17+U18+U19+U20+U30+U31+U32+U33+U34","v":174},{"$f":"SQRT((V16^2)+(V17^2)+(V18^2)+(V19^2)+(V20^2)+(V30^2)+(V31^2)+(V32^2)+(V33^2)+(V34^2))","v":91.945636111780743},{"$f":"W16+W17+W18+W19+W20+W30+W31+W32+W33+W34","v":41},{"$f":"SQRT((X16^2)+(X17^2)+(X18^2)+(X19^2)+(X20^2)+(X30^2)+(X31^2)+(X32^2)+(X33^2)+(X34^2))","v":34.307433596816885},{"$f":"Y16+Y17+Y18+Y19+Y20+Y30+Y31+Y32+Y33+Y34","v":8},{"$f":"SQRT((Z16^2)+(Z17^2)+(Z18^2)+(Z19^2)+(Z20^2)+(Z30^2)+(Z31^2)+(Z32^2)+(Z33^2)+(Z34^2))","v":32.419130154894653},{"$f":"AA16+AA17+AA18+AA19+AA20+AA30+AA31+AA32+AA33+AA34","v":15},{"$f":"SQRT((AB16^2)+(AB17^2)+(AB18^2)+(AB19^2)+(AB20^2)+(AB30^2)+(AB31^2)+(AB32^2)+(AB33^2)+(AB34^2))","v":35.930488446443363},{"$f":"AC16+AC17+AC18+AC19+AC20+AC30+AC31+AC32+AC33+AC34","v":195},{"$f":"SQRT((AD16^2)+(AD17^2)+(AD18^2)+(AD19^2)+(AD20^2)+(AD30^2)+(AD31^2)+(AD32^2)+(AD33^2)+(AD34^2))","v":91.983694207180008},{"$f":"AE16+AE17+AE18+AE19+AE20+AE30+AE31+AE32+AE33+AE34","v":1},{"$f":"SQRT((AF16^2)+(AF17^2)+(AF18^2)+(AF19^2)+(AF20^2)+(AF30^2)+(AF31^2)+(AF32^2)+(AF33^2)+(AF34^2))","v":36.124783736376884},{"$f":"AG16+AG17+AG18+AG19+AG20+AG30+AG31+AG32+AG33+AG34","v":31},{"$f":"SQRT((AH16^2)+(AH17^2)+(AH18^2)+(AH19^2)+(AH20^2)+(AH30^2)+(AH31^2)+(AH32^2)+(AH33^2)+(AH34^2))","v":34.26368339802363},{"$f":"AI16+AI17+AI18+AI19+AI20+AI30+AI31+AI32+AI33+AI34","v":11},{"$f":"SQRT((AJ16^2)+(AJ17^2)+(AJ18^2)+(AJ19^2)+(AJ20^2)+(AJ30^2)+(AJ31^2)+(AJ32^2)+(AJ33^2)+(AJ34^2))","v":34.698703145794944},{"$f":"AK16+AK17+AK18+AK19+AK20+AK30+AK31+AK32+AK33+AK34","v":10},{"$f":"SQRT((AL16^2)+(AL17^2)+(AL18^2)+(AL19^2)+(AL20^2)+(AL30^2)+(AL31^2)+(AL32^2)+(AL33^2)+(AL34^2))","v":32.771939216347882},{"$f":"AM16+AM17+AM18+AM19+AM20+AM30+AM31+AM32+AM33+AM34","v":450},{"$f":"SQRT((AN16^2)+(AN17^2)+(AN18^2)+(AN19^2)+(AN20^2)+(AN30^2)+(AN31^2)+(AN32^2)+(AN33^2)+(AN34^2))","v":209.15066339842195},{"$f":"AO16+AO17+AO18+AO19+AO20+AO30+AO31+AO32+AO33+AO34","v":112},{"$f":"SQRT((AP16^2)+(AP17^2)+(AP18^2)+(AP19^2)+(AP20^2)+(AP30^2)+(AP31^2)+(AP32^2)+(AP33^2)+(AP34^2))","v":53.693575034635195},{"$f":"AQ16+AQ17+AQ18+AQ19+AQ20+AQ30+AQ31+AQ32+AQ33+AQ34","v":126},{"$f":"SQRT((AR16^2)+(AR17^2)+(AR18^2)+(AR19^2)+(AR20^2)+(AR30^2)+(AR31^2)+(AR32^2)+(AR33^2)+(AR34^2))","v":72.498275841567434},{"$f":"AS16+AS17+AS18+AS19+AS20+AS30+AS31+AS32+AS33+AS34","v":8},{"$f":"SQRT((AT16^2)+(AT17^2)+(AT18^2)+(AT19^2)+(AT20^2)+(AT30^2)+(AT31^2)+(AT32^2)+(AT33^2)+(AT34^2))","v":35.227829907617071},{"$f":"AU16+AU17+AU18+AU19+AU20+AU30+AU31+AU32+AU33+AU34","v":378},{"$f":"SQRT((AV16^2)+(AV17^2)+(AV18^2)+(AV19^2)+(AV20^2)+(AV30^2)+(AV31^2)+(AV32^2)+(AV33^2)+(AV34^2))","v":145.42008114424914}]
[null,"65 to 74 years",{"$f":"C21+C35","v":62},{"$f":"SQRT((D21^2)+(D35^2))","v":54.341512676774101},{"$f":"E21+E35","v":0},{"$f":"SQRT((F21^2)+(F35^2))","v":16.970562748477139},{"$f":"G21+G35","v":59},{"$f":"SQRT((H21^2)+(H35^2))","v":65.215028942721474},{"$f":"I21+I35","v":36},{"$f":"SQRT((J21^2)+(J35^2))","v":31.780497164141408},{"$f":"K21+K35","v":16},{"$f":"SQRT((L21^2)+(L35^2))","v":19.209372712298546},{"$f":"M21+M35","v":3},{"$f":"SQRT((N21^2)+(N35^2))","v":12.649110640673518},{"$f":"O21+O35","v":0},{"$f":"SQRT((P21^2)+(P35^2))","v":16.970562748477139},{"$f":"Q21+Q35","v":12},{"$f":"SQRT((R21^2)+(R35^2))","v":27.018512172212592},{"$f":"S21+S35","v":188},{"$f":"SQRT((T21^2)+(T35^2))","v":91.241437954473298},{"$f":"U21+U35","v":16},{"$f":"SQRT((V21^2)+(V35^2))","v":18.357559750685819},{"$f":"W21+W35","v":0},{"$f":"SQRT((X21^2)+(X35^2))","v":16.970562748477139},{"$f":"Y21+Y35","v":7},{"$f":"SQRT((Z21^2)+(Z35^2))","v":5},{"$f":"AA21+AA35","v":0},{"$f":"SQRT((AB21^2)+(AB35^2))","v":16.970562748477139},{"$f":"AC21+AC35","v":22},{"$f":"SQRT((AD21^2)+(AD35^2))","v":21.400934559032695},{"$f":"AE21+AE35","v":0},{"$f":"SQRT((AF21^2)+(AF35^2))","v":16.970562748477139},{"$f":"AG21+AG35","v":12},{"$f":"SQRT((AH21^2)+(AH35^2))","v":18.439088914585774},{"$f":"AI21+AI35","v":2},{"$f":"SQRT((AJ21^2)+(AJ35^2))","v":12.369316876852981},{"$f":"AK21+AK35","v":2},{"$f":"SQRT((AL21^2)+(AL35^2))","v":12.649110640673518},{"$f":"AM21+AM35","v":28},{"$f":"SQRT((AN21^2)+(AN35^2))","v":38.013155617496423},{"$f":"AO21+AO35","v":18},{"$f":"SQRT((AP21^2)+(AP35^2))","v":15.620499351813308},{"$f":"AQ21+AQ35","v":27},{"$f":"SQRT((AR21^2)+(AR35^2))","v":33.955853692699293},{"$f":"AS21+AS35","v":79},{"$f":"SQRT((AT21^2)+(AT35^2))","v":98.412397592986224},{"$f":"AU21+AU35","v":56},{"$f":"SQRT((AV21^2)+(AV35^2))","v":33.241540277189323}]
[null,"75 years and over",{"$f":"C22+C36","v":6},{"$f":"SQRT((D22^2)+(D36^2))","v":14.422205101855956},{"$f":"E22+E36","v":19},{"$f":"SQRT((F22^2)+(F36^2))","v":30.463092423455635},{"$f":"G22+G36","v":8},{"$f":"SQRT((H22^2)+(H36^2))","v":7.810249675906654},{"$f":"I22+I36","v":14},{"$f":"SQRT((J22^2)+(J36^2))","v":12.041594578792296},{"$f":"K22+K36","v":1},{"$f":"SQRT((L22^2)+(L36^2))","v":12.369316876852981},{"$f":"M22+M36","v":0},{"$f":"SQRT((N22^2)+(N36^2))","v":16.970562748477139},{"$f":"O22+O36","v":29},{"$f":"SQRT((P22^2)+(P36^2))","v":48.507731342539614},{"$f":"Q22+Q36","v":46},{"$f":"SQRT((R22^2)+(R36^2))","v":43.863424398922618},{"$f":"S22+S36","v":60},{"$f":"SQRT((T22^2)+(T36^2))","v":50.089919145472777},{"$f":"U22+U36","v":0},{"$f":"SQRT((V22^2)+(V36^2))","v":16.970562748477139},{"$f":"W22+W36","v":12},{"$f":"SQRT((X22^2)+(X36^2))","v":9.4868329805051381},{"$f":"Y22+Y36","v":0},{"$f":"SQRT((Z22^2)+(Z36^2))","v":16.970562748477139},{"$f":"AA22+AA36","v":20},{"$f":"SQRT((AB22^2)+(AB36^2))","v":30.463092423455635},{"$f":"AC22+AC36","v":0},{"$f":"SQRT((AD22^2)+(AD36^2))","v":24.041630560342615},{"$f":"AE22+AE36","v":1},{"$f":"SQRT((AF22^2)+(AF36^2))","v":12.165525060596439},{"$f":"AG22+AG36","v":12},{"$f":"SQRT((AH22^2)+(AH36^2))","v":18.439088914585774},{"$f":"AI22+AI36","v":6},{"$f":"SQRT((AJ22^2)+(AJ36^2))","v":15},{"$f":"AK22+AK36","v":6},{"$f":"SQRT((AL22^2)+(AL36^2))","v":5.8309518948453007},{"$f":"AM22+AM36","v":79},{"$f":"SQRT((AN22^2)+(AN36^2))","v":81.786306922369349},{"$f":"AO22+AO36","v":4},{"$f":"SQRT((AP22^2)+(AP36^2))","v":14.422205101855956},{"$f":"AQ22+AQ36","v":132},{"$f":"SQRT((AR22^2)+(AR36^2))","v":97.406365295087369},{"$f":"AS22+AS36","v":40},{"$f":"SQRT((AT22^2)+(AT36^2))","v":60.207972893961475},{"$f":"AU22+AU36","v":15},{"$f":"SQRT((AV22^2)+(AV36^2))","v":16.643316977093239}]
[null," Income in the past 12 months at or above poverty level ",{"$f":"C37","v":1428},156,3350,213,1511,201,2068,349,812,144,935,193,3720,201,5056,159,18032,425,1920,387,703,166,{"$f":"Y37","v":526},105,1072,251,5163,185,262,111,1130,167,659,130,932,246,6556,303,{"$f":"AO37","v":1749},260,3351,162,1844,296,3298,282]
[null,"Under 5 years",{"$f":"C39+C53","v":32},{"$f":"SQRT(((D39))^2+((D53))^2)","v":21.95449840010015},{"$f":"E39+E53","v":141},{"$f":"SQRT(((F39))^2+((F53))^2)","v":79.849859110708522},{"$f":"G39+G53","v":77},{"$f":"SQRT(((H39))^2+((H53))^2)","v":37.215588131856791},{"$f":"I39+I53","v":73},{"$f":"SQRT(((J39))^2+((J53))^2)","v":49.648766349225639},{"$f":"K39+K53","v":54},{"$f":"SQRT(((L39))^2+((L53))^2)","v":27.459060435491963},{"$f":"M39+M53","v":50},{"$f":"SQRT(((N39))^2+((N53))^2)","v":33.955853692699293},{"$f":"O39+O53","v":58},{"$f":"SQRT(((P39))^2+((P53))^2)","v":47.539457296018853},{"$f":"Q39+Q53","v":114},{"$f":"SQRT(((R39))^2+((R53))^2)","v":90.609050320594349},{"$f":"S39+S53","v":763},{"$f":"SQRT(((T39))^2+((T53))^2)","v":150.6286825275983},{"$f":"U39+U53","v":174},{"$f":"SQRT(((V39))^2+((V53))^2)","v":111.68258592994702},{"$f":"W39+W53","v":27},{"$f":"SQRT(((X39))^2+((X53))^2)","v":23.021728866442675},{"$f":"Y39+Y53","v":22},{"$f":"SQRT(((Z39))^2+((Z53))^2)","v":10.63014581273465},{"$f":"AA39+AA53","v":48},{"$f":"SQRT(((AB39))^2+((AB53))^2)","v":34.014702703389901},{"$f":"AC39+AC53","v":247},{"$f":"SQRT(((AD39))^2+((AD53))^2)","v":123.60016181219181},{"$f":"AE39+AE53","v":7},{"$f":"SQRT(((AF39))^2+((AF53))^2)","v":5.8309518948453007},{"$f":"AG39+AG53","v":46},{"$f":"SQRT(((AH39))^2+((AH53))^2)","v":21.931712199461309},{"$f":"AI39+AI53","v":63},{"$f":"SQRT(((AJ39))^2+((AJ53))^2)","v":34.985711369071801},{"$f":"AK39+AK53","v":64},{"$f":"SQRT(((AL39))^2+((AL53))^2)","v":48.764741360946438},{"$f":"AM39+AM53","v":224},{"$f":"SQRT(((AN39))^2+((AN53))^2)","v":126.25371281669304},{"$f":"AO39+AO53","v":131},{"$f":"SQRT(((AP39))^2+((AP53))^2)","v":59.236812878479547},{"$f":"AQ39+AQ53","v":312},{"$f":"SQRT(((AR39))^2+((AR53))^2)","v":119.55333537798099},{"$f":"AS39+AS53","v":80},{"$f":"SQRT(((AT39))^2+((AT53))^2)","v":51.400389103585589},{"$f":"AU39+AU53","v":131},{"$f":"SQRT(((AV39))^2+((AV53))^2)","v":79.881161734166085}]
[null,"5 to 17 years",{"$f":"((C40)+(C41)+(C42)+(C43)+(C44)+(C54)+(C55)+(C56)+(C57)+(C58))","v":196},{"$f":"SQRT((D40^2)+(D41^2)+(D42^2)+(D43^2)+(D44^2)+(D54^2)+(D55^2)+(D56^2)+(D57^2)+(D58^2))","v":52.392747589718944},{"$f":"((E40)+(E41)+(E42)+(E43)+(E44)+(E54)+(E55)+(E56)+(E57)+(E58))","v":509},{"$f":"SQRT((F40^2)+(F41^2)+(F42^2)+(F43^2)+(F44^2)+(F54^2)+(F55^2)+(F56^2)+(F57^2)+(F58^2))","v":154.434452114805},{"$f":"((G40)+(G41)+(G42)+(G43)+(G44)+(G54)+(G55)+(G56)+(G57)+(G58))","v":209},{"$f":"SQRT((H40^2)+(H41^2)+(H42^2)+(H43^2)+(H44^2)+(H54^2)+(H55^2)+(H56^2)+(H57^2)+(H58^2))","v":46.173585522460783},{"$f":"((I40)+(I41)+(I42)+(I43)+(I44)+(I54)+(I55)+(I56)+(I57)+(I58))","v":182},{"$f":"SQRT((J40^2)+(J41^2)+(J42^2)+(J43^2)+(J44^2)+(J54^2)+(J55^2)+(J56^2)+(J57^2)+(J58^2))","v":55.587768438749187},{"$f":"((K40)+(K41)+(K42)+(K43)+(K44)+(K54)+(K55)+(K56)+(K57)+(K58))","v":83},{"$f":"SQRT((L40^2)+(L41^2)+(L42^2)+(L43^2)+(L44^2)+(L54^2)+(L55^2)+(L56^2)+(L57^2)+(L58^2))","v":47.833042972405593},{"$f":"((M40)+(M41)+(M42)+(M43)+(M44)+(M54)+(M55)+(M56)+(M57)+(M58))","v":99},{"$f":"SQRT((N40^2)+(N41^2)+(N42^2)+(N43^2)+(N44^2)+(N54^2)+(N55^2)+(N56^2)+(N57^2)+(N58^2))","v":49.719211578624211},{"$f":"((O40)+(O41)+(O42)+(O43)+(O44)+(O54)+(O55)+(O56)+(O57)+(O58))","v":458},{"$f":"SQRT((P40^2)+(P41^2)+(P42^2)+(P43^2)+(P44^2)+(P54^2)+(P55^2)+(P56^2)+(P57^2)+(P58^2))","v":149.77650015940418},{"$f":"((Q40)+(Q41)+(Q42)+(Q43)+(Q44)+(Q54)+(Q55)+(Q56)+(Q57)+(Q58))","v":1156},{"$f":"SQRT((R40^2)+(R41^2)+(R42^2)+(R43^2)+(R44^2)+(R54^2)+(R55^2)+(R56^2)+(R57^2)+(R58^2))","v":240.13537848472058},{"$f":"((S40)+(S41)+(S42)+(S43)+(S44)+(S54)+(S55)+(S56)+(S57)+(S58))","v":2134},{"$f":"SQRT((T40^2)+(T41^2)+(T42^2)+(T43^2)+(T44^2)+(T54^2)+(T55^2)+(T56^2)+(T57^2)+(T58^2))","v":295.1541969886249},{"$f":"((U40)+(U41)+(U42)+(U43)+(U44)+(U54)+(U55)+(U56)+(U57)+(U58))","v":230},{"$f":"SQRT((V40^2)+(V41^2)+(V42^2)+(V43^2)+(V44^2)+(V54^2)+(V55^2)+(V56^2)+(V57^2)+(V58^2))","v":73.293928807234778},{"$f":"((W40)+(W41)+(W42)+(W43)+(W44)+(W54)+(W55)+(W56)+(W57)+(W58))","v":121},{"$f":"SQRT((X40^2)+(X41^2)+(X42^2)+(X43^2)+(X44^2)+(X54^2)+(X55^2)+(X56^2)+(X57^2)+(X58^2))","v":56.550862062394771},{"$f":"((Y40)+(Y41)+(Y42)+(Y43)+(Y44)+(Y54)+(Y55)+(Y56)+(Y57)+(Y58))","v":54},{"$f":"SQRT((Z40^2)+(Z41^2)+(Z42^2)+(Z43^2)+(Z44^2)+(Z54^2)+(Z55^2)+(Z56^2)+(Z57^2)+(Z58^2))","v":38.392707640904931},{"$f":"((AA40)+(AA41)+(AA42)+(AA43)+(AA44)+(AA54)+(AA55)+(AA56)+(AA57)+(AA58))","v":140},{"$f":"SQRT((AB40^2)+(AB41^2)+(AB42^2)+(AB43^2)+(AB44^2)+(AB54^2)+(AB55^2)+(AB56^2)+(AB57^2)+(AB58^2))","v":47.116875957558989},{"$f":"((AC40)+(AC41)+(AC42)+(AC43)+(AC44)+(AC54)+(AC55)+(AC56)+(AC57)+(AC58))","v":841},{"$f":"SQRT((AD40^2)+(AD41^2)+(AD42^2)+(AD43^2)+(AD44^2)+(AD54^2)+(AD55^2)+(AD56^2)+(AD57^2)+(AD58^2))","v":214.14247593599922},{"$f":"((AE40)+(AE41)+(AE42)+(AE43)+(AE44)+(AE54)+(AE55)+(AE56)+(AE57)+(AE58))","v":9},{"$f":"SQRT((AF40^2)+(AF41^2)+(AF42^2)+(AF43^2)+(AF44^2)+(AF54^2)+(AF55^2)+(AF56^2)+(AF57^2)+(AF58^2))","v":27.892651361962706},{"$f":"((AG40)+(AG41)+(AG42)+(AG43)+(AG44)+(AG54)+(AG55)+(AG56)+(AG57)+(AG58))","v":185},{"$f":"SQRT((AH40^2)+(AH41^2)+(AH42^2)+(AH43^2)+(AH44^2)+(AH54^2)+(AH55^2)+(AH56^2)+(AH57^2)+(AH58^2))","v":52.810983706043572},{"$f":"((AI40)+(AI41)+(AI42)+(AI43)+(AI44)+(AI54)+(AI55)+(AI56)+(AI57)+(AI58))","v":45},{"$f":"SQRT((AJ40^2)+(AJ41^2)+(AJ42^2)+(AJ43^2)+(AJ44^2)+(AJ54^2)+(AJ55^2)+(AJ56^2)+(AJ57^2)+(AJ58^2))","v":31.654383582688826},{"$f":"((AK40)+(AK41)+(AK42)+(AK43)+(AK44)+(AK54)+(AK55)+(AK56)+(AK57)+(AK58))","v":129},{"$f":"SQRT((AL40^2)+(AL41^2)+(AL42^2)+(AL43^2)+(AL44^2)+(AL54^2)+(AL55^2)+(AL56^2)+(AL57^2)+(AL58^2))","v":67.586980994863211},{"$f":"((AM40)+(AM41)+(AM42)+(AM43)+(AM44)+(AM54)+(AM55)+(AM56)+(AM57)+(AM58))","v":845},{"$f":"SQRT((AN40^2)+(AN41^2)+(AN42^2)+(AN43^2)+(AN44^2)+(AN54^2)+(AN55^2)+(AN56^2)+(AN57^2)+(AN58^2))","v":222.08106627986098},{"$f":"((AO40)+(AO41)+(AO42)+(AO43)+(AO44)+(AO54)+(AO55)+(AO56)+(AO57)+(AO58))","v":256},{"$f":"SQRT((AP40^2)+(AP41^2)+(AP42^2)+(AP43^2)+(AP44^2)+(AP54^2)+(AP55^2)+(AP56^2)+(AP57^2)+(AP58^2))","v":83.767535477653865},{"$f":"((AQ40)+(AQ41)+(AQ42)+(AQ43)+(AQ44)+(AQ54)+(AQ55)+(AQ56)+(AQ57)+(AQ58))","v":599},{"$f":"SQRT((AR40^2)+(AR41^2)+(AR42^2)+(AR43^2)+(AR44^2)+(AR54^2)+(AR55^2)+(AR56^2)+(AR57^2)+(AR58^2))","v":171.81094260843807},{"$f":"((AS40)+(AS41)+(AS42)+(AS43)+(AS44)+(AS54)+(AS55)+(AS56)+(AS57)+(AS58))","v":231},{"$f":"SQRT((AT40^2)+(AT41^2)+(AT42^2)+(AT43^2)+(AT44^2)+(AT54^2)+(AT55^2)+(AT56^2)+(AT57^2)+(AT58^2))","v":80.049984384758005},{"$f":"((AU40)+(AU41)+(AU42)+(AU43)+(AU44)+(AU54)+(AU55)+(AU56)+(AU57)+(AU58))","v":461},{"$f":"SQRT((AV40^2)+(AV41^2)+(AV42^2)+(AV43^2)+(AV44^2)+(AV54^2)+(AV55^2)+(AV56^2)+(AV57^2)+(AV58^2))","v":161.89193926814269}]
[null,"18 to 64 years",{"$f":"((C45)+(C46)+(C47)+(C48)+(C49)+(C59)+(C60)+(C61)+(C62)+(C63))","v":847},{"$f":"SQRT((D45^2)+(D46^2)+(D47^2)+(D48^2)+(D49^2)+(D59^2)+(D60^2)+(D61^2)+(D62^2)+(D63^2))","v":131.49904942622209},{"$f":"((E45)+(E46)+(E47)+(E48)+(E49)+(E59)+(E60)+(E61)+(E62)+(E63))","v":1834},{"$f":"SQRT((F45^2)+(F46^2)+(F47^2)+(F48^2)+(F49^2)+(F59^2)+(F60^2)+(F61^2)+(F62^2)+(F63^2))","v":335.09998507908051},{"$f":"((G45)+(G46)+(G47)+(G48)+(G49)+(G59)+(G60)+(G61)+(G62)+(G63))","v":849},{"$f":"SQRT((H45^2)+(H46^2)+(H47^2)+(H48^2)+(H49^2)+(H59^2)+(H60^2)+(H61^2)+(H62^2)+(H63^2))","v":134.17153200288055},{"$f":"((I45)+(I46)+(I47)+(I48)+(I49)+(I59)+(I60)+(I61)+(I62)+(I63))","v":1327},{"$f":"SQRT((J45^2)+(J46^2)+(J47^2)+(J48^2)+(J49^2)+(J59^2)+(J60^2)+(J61^2)+(J62^2)+(J63^2))","v":219.89997726239082},{"$f":"((K45)+(K46)+(K47)+(K48)+(K49)+(K59)+(K60)+(K61)+(K62)+(K63))","v":512},{"$f":"SQRT((L45^2)+(L46^2)+(L47^2)+(L48^2)+(L49^2)+(L59^2)+(L60^2)+(L61^2)+(L62^2)+(L63^2))","v":81.657822650374413},{"$f":"((M45)+(M46)+(M47)+(M48)+(M49)+(M59)+(M60)+(M61)+(M62)+(M63))","v":498},{"$f":"SQRT((N45^2)+(N46^2)+(N47^2)+(N48^2)+(N49^2)+(N59^2)+(N60^2)+(N61^2)+(N62^2)+(N63^2))","v":93.728330829050833},{"$f":"((O45)+(O46)+(O47)+(O48)+(O49)+(O59)+(O60)+(O61)+(O62)+(O63))","v":2175},{"$f":"SQRT((P45^2)+(P46^2)+(P47^2)+(P48^2)+(P49^2)+(P59^2)+(P60^2)+(P61^2)+(P62^2)+(P63^2))","v":312.10414928353646},{"$f":"((Q45)+(Q46)+(Q47)+(Q48)+(Q49)+(Q59)+(Q60)+(Q61)+(Q62)+(Q63))","v":3039},{"$f":"SQRT((R45^2)+(R46^2)+(R47^2)+(R48^2)+(R49^2)+(R59^2)+(R60^2)+(R61^2)+(R62^2)+(R63^2))","v":442.29628078924651},{"$f":"((S45)+(S46)+(S47)+(S48)+(S49)+(S59)+(S60)+(S61)+(S62)+(S63))","v":11417},{"$f":"SQRT((T45^2)+(T46^2)+(T47^2)+(T48^2)+(T49^2)+(T59^2)+(T60^2)+(T61^2)+(T62^2)+(T63^2))","v":712.99438987975213},{"$f":"((U45)+(U46)+(U47)+(U48)+(U49)+(U59)+(U60)+(U61)+(U62)+(U63))","v":1140},{"$f":"SQRT((V45^2)+(V46^2)+(V47^2)+(V48^2)+(V49^2)+(V59^2)+(V60^2)+(V61^2)+(V62^2)+(V63^2))","v":186.29814813894421},{"$f":"((W45)+(W46)+(W47)+(W48)+(W49)+(W59)+(W60)+(W61)+(W62)+(W63))","v":369},{"$f":"SQRT((X45^2)+(X46^2)+(X47^2)+(X48^2)+(X49^2)+(X59^2)+(X60^2)+(X61^2)+(X62^2)+(X63^2))","v":73.020545054114734},{"$f":"((Y45)+(Y46)+(Y47)+(Y48)+(Y49)+(Y59)+(Y60)+(Y61)+(Y62)+(Y63))","v":300},{"$f":"SQRT((Z45^2)+(Z46^2)+(Z47^2)+(Z48^2)+(Z49^2)+(Z59^2)+(Z60^2)+(Z61^2)+(Z62^2)+(Z63^2))","v":55.344376408086845},{"$f":"((AA45)+(AA46)+(AA47)+(AA48)+(AA49)+(AA59)+(AA60)+(AA61)+(AA62)+(AA63))","v":585},{"$f":"SQRT((AB45^2)+(AB46^2)+(AB47^2)+(AB48^2)+(AB49^2)+(AB59^2)+(AB60^2)+(AB61^2)+(AB62^2)+(AB63^2))","v":105.51303237041384},{"$f":"((AC45)+(AC46)+(AC47)+(AC48)+(AC49)+(AC59)+(AC60)+(AC61)+(AC62)+(AC63))","v":2820},{"$f":"SQRT((AD45^2)+(AD46^2)+(AD47^2)+(AD48^2)+(AD49^2)+(AD59^2)+(AD60^2)+(AD61^2)+(AD62^2)+(AD63^2))","v":297.34491756207973},{"$f":"((AE45)+(AE46)+(AE47)+(AE48)+(AE49)+(AE59)+(AE60)+(AE61)+(AE62)+(AE63))","v":214},{"$f":"SQRT((AF45^2)+(AF46^2)+(AF47^2)+(AF48^2)+(AF49^2)+(AF59^2)+(AF60^2)+(AF61^2)+(AF62^2)+(AF63^2))","v":78.255990186055399},{"$f":"((AG45)+(AG46)+(AG47)+(AG48)+(AG49)+(AG59)+(AG60)+(AG61)+(AG62)+(AG63))","v":688},{"$f":"SQRT((AH45^2)+(AH46^2)+(AH47^2)+(AH48^2)+(AH49^2)+(AH59^2)+(AH60^2)+(AH61^2)+(AH62^2)+(AH63^2))","v":91.164686145458759},{"$f":"((AI45)+(AI46)+(AI47)+(AI48)+(AI49)+(AI59)+(AI60)+(AI61)+(AI62)+(AI63))","v":430},{"$f":"SQRT((AJ45^2)+(AJ46^2)+(AJ47^2)+(AJ48^2)+(AJ49^2)+(AJ59^2)+(AJ60^2)+(AJ61^2)+(AJ62^2)+(AJ63^2))","v":67.992646661238297},{"$f":"((AK45)+(AK46)+(AK47)+(AK48)+(AK49)+(AK59)+(AK60)+(AK61)+(AK62)+(AK63))","v":504},{"$f":"SQRT((AL45^2)+(AL46^2)+(AL47^2)+(AL48^2)+(AL49^2)+(AL59^2)+(AL60^2)+(AL61^2)+(AL62^2)+(AL63^2))","v":113.38430226446692},{"$f":"((AM45)+(AM46)+(AM47)+(AM48)+(AM49)+(AM59)+(AM60)+(AM61)+(AM62)+(AM63))","v":3718},{"$f":"SQRT((AN45^2)+(AN46^2)+(AN47^2)+(AN48^2)+(AN49^2)+(AN59^2)+(AN60^2)+(AN61^2)+(AN62^2)+(AN63^2))","v":445.65681863963442},{"$f":"((AO45)+(AO46)+(AO47)+(AO48)+(AO49)+(AO59)+(AO60)+(AO61)+(AO62)+(AO63))","v":1055},{"$f":"SQRT((AP45^2)+(AP46^2)+(AP47^2)+(AP48^2)+(AP49^2)+(AP59^2)+(AP60^2)+(AP61^2)+(AP62^2)+(AP63^2))","v":157.04776343520464},{"$f":"((AQ45)+(AQ46)+(AQ47)+(AQ48)+(AQ49)+(AQ59)+(AQ60)+(AQ61)+(AQ62)+(AQ63))","v":1828},{"$f":"SQRT((AR45^2)+(AR46^2)+(AR47^2)+(AR48^2)+(AR49^2)+(AR59^2)+(AR60^2)+(AR61^2)+(AR62^2)+(AR63^2))","v":259},{"$f":"((AS45)+(AS46)+(AS47)+(AS48)+(AS49)+(AS59)+(AS60)+(AS61)+(AS62)+(AS63))","v":1053},{"$f":"SQRT((AT45^2)+(AT46^2)+(AT47^2)+(AT48^2)+(AT49^2)+(AT59^2)+(AT60^2)+(AT61^2)+(AT62^2)+(AT63^2))","v":174},{"$f":"((AU45)+(AU46)+(AU47)+(AU48)+(AU49)+(AU59)+(AU60)+(AU61)+(AU62)+(AU63))","v":2165},{"$f":"SQRT((AV45^2)+(AV46^2)+(AV47^2)+(AV48^2)+(AV49^2)+(AV59^2)+(AV60^2)+(AV61^2)+(AV62^2)+(AV63^2))","v":289.66359798911566}]
[null,"65 to 74 years",{"$f":"((C50)+(C64))","v":217},{"$f":"SQRT((D50^2)+(D64^2))","v":59.396969619669989},{"$f":"((E50)+(E64))","v":611},{"$f":"SQRT((F50^2)+(F64^2))","v":166.50825805346713},{"$f":"((G50)+(G64))","v":256},{"$f":"SQRT((H50^2)+(H64^2))","v":55.317266743757322},{"$f":"((I50)+(I64))","v":410},{"$f":"SQRT((J50^2)+(J64^2))","v":114.03946685248927},{"$f":"((K50)+(K64))","v":118},{"$f":"SQRT((L50^2)+(L64^2))","v":35.227829907617071},{"$f":"((M50)+(M64))","v":195},{"$f":"SQRT((N50^2)+(N64^2))","v":41.036569057366385},{"$f":"((O50)+(O64))","v":647},{"$f":"SQRT((P50^2)+(P64^2))","v":255.15681452785068},{"$f":"((Q50)+(Q64))","v":423},{"$f":"SQRT((R50^2)+(R64^2))","v":132.54810447531869},{"$f":"((S50)+(S64))","v":2011},{"$f":"SQRT((T50^2)+(T64^2))","v":226.62965384079817},{"$f":"((U50)+(U64))","v":187},{"$f":"SQRT((V50^2)+(V64^2))","v":58.249463516842795},{"$f":"((W50)+(W64))","v":142},{"$f":"SQRT((X50^2)+(X64^2))","v":53.740115370177612},{"$f":"((Y50)+(Y64))","v":100},{"$f":"SQRT((Z50^2)+(Z64^2))","v":28.42534080710379},{"$f":"((AA50)+(AA64))","v":214},{"$f":"SQRT((AB50^2)+(AB64^2))","v":104.4030650891055},{"$f":"((AC50)+(AC64))","v":837},{"$f":"SQRT((AD50^2)+(AD64^2))","v":151.34728276384746},{"$f":"((AE50)+(AE64))","v":23},{"$f":"SQRT((AF50^2)+(AF64^2))","v":7.810249675906654},{"$f":"((AG50)+(AG64))","v":142},{"$f":"SQRT((AH50^2)+(AH64^2))","v":27.018512172212592},{"$f":"((AI50)+(AI64))","v":78},{"$f":"SQRT((AJ50^2)+(AJ64^2))","v":22.022715545545239},{"$f":"((AK50)+(AK64))","v":150},{"$f":"SQRT((AL50^2)+(AL64^2))","v":42.201895692018383},{"$f":"((AM50)+(AM64))","v":1092},{"$f":"SQRT((AN50^2)+(AN64^2))","v":234.61670869739862},{"$f":"((AO50)+(AO64))","v":204},{"$f":"SQRT((AP50^2)+(AP64^2))","v":56.302753041036986},{"$f":"((AQ50)+(AQ64))","v":426},{"$f":"SQRT((AR50^2)+(AR64^2))","v":89.308454247064432},{"$f":"((AS50)+(AS64))","v":292},{"$f":"SQRT((AT50^2)+(AT64^2))","v":71.421285342676384},{"$f":"((AU50)+(AU64))","v":341},{"$f":"SQRT((AV50^2)+(AV64^2))","v":104.35037134576953}]
[null,"75 years and over",{"$f":"((C51)+(C65))","v":136},{"$f":"SQRT((D51^2)+(D65^2))","v":55.803225713214822},{"$f":"((E51)+(E65))","v":255},{"$f":"SQRT((F51^2)+(F65^2))","v":106.96261028976434},{"$f":"((G51)+(G65))","v":120},{"$f":"SQRT((H51^2)+(H65^2))","v":57.245087125446844},{"$f":"((I51)+(I65))","v":76},{"$f":"SQRT((J51^2)+(J65^2))","v":31.064449134018133},{"$f":"((K51)+(K65))","v":45},{"$f":"SQRT((L51^2)+(L65^2))","v":16.643316977093239},{"$f":"((M51)+(M65))","v":93},{"$f":"SQRT((N51^2)+(N65^2))","v":29.732137494637012},{"$f":"((O51)+(O65))","v":382},{"$f":"SQRT((P51^2)+(P65^2))","v":192.62658175859323},{"$f":"((Q51)+(Q65))","v":324},{"$f":"SQRT((R51^2)+(R65^2))","v":133.79461872586654},{"$f":"((S51)+(S65))","v":1707},{"$f":"SQRT((T51^2)+(T65^2))","v":250.4156544627352},{"$f":"((U51)+(U65))","v":189},{"$f":"SQRT((V51^2)+(V65^2))","v":60.108235708594876},{"$f":"((W51)+(W65))","v":44},{"$f":"SQRT((X51^2)+(X65^2))","v":19.209372712298546},{"$f":"((Y51)+(Y65))","v":50},{"$f":"SQRT((Z51^2)+(Z65^2))","v":23.259406699226016},{"$f":"((AA51)+(AA65))","v":85},{"$f":"SQRT((AB51^2)+(AB65^2))","v":32.249030993194197},{"$f":"((AC51)+(AC65))","v":418},{"$f":"SQRT((AD51^2)+(AD65^2))","v":144.42298985964803},{"$f":"((AE51)+(AE65))","v":9},{"$f":"SQRT((AF51^2)+(AF65^2))","v":6.7082039324993694},{"$f":"((AG51)+(AG65))","v":69},{"$f":"SQRT((AH51^2)+(AH65^2))","v":21.931712199461309},{"$f":"((AI51)+(AI65))","v":43},{"$f":"SQRT((AJ51^2)+(AJ65^2))","v":17.204650534085253},{"$f":"((AK51)+(AK65))","v":85},{"$f":"SQRT((AL51^2)+(AL65^2))","v":28.284271247461902},{"$f":"((AM51)+(AM65))","v":677},{"$f":"SQRT((AN51^2)+(AN65^2))","v":192.85486771144772},{"$f":"((AO51)+(AO65))","v":103},{"$f":"SQRT((AP51^2)+(AP65^2))","v":47.201694884823787},{"$f":"((AQ51)+(AQ65))","v":186},{"$f":"SQRT((AR51^2)+(AR65^2))","v":64.202803677098089},{"$f":"((AS51)+(AS65))","v":188},{"$f":"SQRT((AT51^2)+(AT65^2))","v":51.97114584074513},{"$f":"((AU51)+(AU65))","v":200},{"$f":"SQRT((AV51^2)+(AV65^2))","v":72.449982746719826}]
[]
[]
[]
[]
[]
[]
[]
[]
[]
[]
[]
[]
[]
[]
[]
[]
[]
[]
[]
[]
[]
[]
[]
[]
[]
[]
[]
[]
[]
[]
[]
[]
[null,{"$f":"VALUE([2]CntyDataLink!$AQ$25)","v":20338}]
[]
[]
[]
[]
[]
[]
[]
[]
[]
[null,"Calculated Table B17001. POVERTY STATUS IN THE PAST 12 MONTHS BY SEX BY AGE"]
[null,"Universe:  POPULATION FOR WHOM POVERTY STATUS IS DETERMINED"]
[null,"Data Set: 2013-2017 American Community Survey 5-Year Estimates"]
[]
[null,null,"Alstead",null,"Chesterfield",null,"Dublin",null,"Fitzwilliam",null,"Gilsum",null,"Harrisville",null,"Hinsdale",null,"Jaffrey",null,"Keene",null,"Marlborough",null,"Marlow",null,"Nelson",null,"Richmond",null,"Rindge",null,"Roxbury",null,"Stoddard",null,"Sullivan",null,"Surry",null,"Swanzey",null,"Troy",null,"Walpole",null,"Westmoreland",null,"Winchester"]
[null," ","Estimate","Margin of Error","Estimate","Margin of Error","Estimate","Margin of Error","Estimate","Margin of Error","Estimate","Margin of Error","Estimate","Margin of Error","Estimate","Margin of Error","Estimate","Margin of Error","Estimate","Margin of Error","Estimate","Margin of Error","Estimate","Margin of Error","Estimate","Margin of Error","Estimate","Margin of Error","Estimate","Margin of Error","Estimate","Margin of Error","Estimate","Margin of Error","Estimate","Margin of Error","Estimate","Margin of Error","Estimate","Margin of Error","Estimate","Margin of Error","Estimate","Margin of Error","Estimate","Margin of Error","Estimate","Margin of Error"]
[null,"Total:",1835,224,3566,15,1439,169,2286,210,702,80,913,140,3913,28,20085,325,20331,375,2120,297,706,115,575,94,1243,176,5015,220,216,57,1193,185,725,118,884,130,7116,62,2182,310,3803,21,1692,211,4102,141]
[null,"Income in the past 12 months below poverty level:",330,169,119,98,76,41,137,73,77,30,51,60,379,179,2752,471,3167,626,192,110,48,22,76,71,138,91,482,228,5,6,52,33,53,24,21,14,856,426,107,72,174,142,110,64,333,192]
[null,"Under 5 years",29,12.083045973594572,0,80.752708932889675,5,8.4852813742385695,0,15.556349186104045,2,11.401754250991379,0,15.556349186104045,55,79.05694150420949,196,88.526832090615329,202,110.42191811411355,7,13.45362404707371,2,13.601470508735444,0,15.556349186104045,36,59.808026217222718,0,60.166435825965294,0,11.704699910719626,0,24.596747752497688,0,11.704699910719626,0,15.556349186104045,195,109.17875251164945,0,15.556349186104045,49,19.416487838947599,4,14.212670403551895,0,61.98386886924694]
[null,"5 to 17 years",54,39.749213828703581,19,41.98809355043403,16,29.782545223670862,18,35.042830935870462,18,21.118712081942874,0,33.166247903554002,30,39.635842365212831,287,127.7654100294755,459,214.0023364358436,76,54.790510127210901,5,27.766886753829642,18,29.427877939124322,4,31.859064644147981,50,58.017238817441147,0,33.166247903554002,8,31.048349392520048,7,27.892651361962706,0,33.166247903554002,195,116.75615615461139,32,40.779897008207364,0,33.166247903554002,37,41.340053217188775,48,67.134193969988203]
[null,"18 to 64 years",220,89.98888820293314,86,94.058492439545304,44,29.765752132274432,86,49.79959839195493,50,24.474476501040833,23,34.655446902326915,213,112.10263154805956,1878,329.78781056915977,2108,399.82621224727126,87,54.890800686453829,27,28.124722220850465,58,43.806392227619021,96,50.259327492516249,415,147.10880327159214,4,31.511902513177461,40,34.97141690009142,31,32.726136343907143,10,33.241540277189323,441,185.19989200860783,50,44.147480109288232,93,71.965269401288282,50,36.276714294434107,252,121.4454610102823]
[null,"65 to 74 years",15,12.806248474865697,0,15.556349186104045,8,6.4031242374328485,12,10.816653826391969,5,5,3,11.704699910719626,71,55.226805085936306,140,76.609398901179219,141,74.242844773082339,17,28.231188426986208,10,8.6023252670426267,0,15.556349186104045,0,15.556349186104045,10,22.627416997969522,0,15.556349186104045,4,12.083045973594572,11,8.9442719099991592,7,6.7082039324993694,13,27.202941017470888,19,26.40075756488817,18,20.518284528683193,4,12.529964086141668,17,18.027756377319946]
[null,"75 years and over",12,21.95449840010015,14,22.825424421026653,3,11.704699910719626,21,20.880613017821101,2,11.180339887498949,25,54.12947441089743,10,18.601075237738275,251,131.40015220691336,257,123.43419299367578,5,13.038404810405298,4,4.2426406871192848,0,15.556349186104045,2,12.083045973594572,7,20,1,11.180339887498949,0,15.556349186104045,4,4.2426406871192848,4,11.704699910719626,12,24.839484696748443,6,13.601470508735444,14,17.204650534085253,15,15.231546211727817,16,17.204650534085253]
[null," Income in the past 12 months at or above poverty level ",1505,223,3447,99,1363,166,2149,199,625,77,862,120,3534,182,17333,453,17164,692,1928,286,658,112,499,83,1105,155,4533,308,211,55,1141,169,672,112,863,127,6260,447,2075,310,3629,141,1582,218,3769,203]
[null,"Under 5 years",53,30.479501308256342,377,144.40221604947757,37,25.238858928247925,96,50.931326312987373,14,8.6023252670426267,15,11.401754250991379,84,80.950602221354728,686,171.86331778480246,695,170.23806859806652,79,44.598206241955516,43,25.238858928247925,38,19.313207915827967,33,28.231188426986208,403,112.64546151532249,17,8.6023252670426267,53,31.144823004794873,82,30.413812651491099,42,29.410882339705484,181,98.493654617949886,107,65.215028942721474,65,51.195702944680818,37,21.400934559032695,213,94.493386011932074]
[null,"5 to 17 years",168,62.22539674441618,448,140.25334220616634,217,58.283788483591216,252,66.865536713616535,82,22.06807649071391,81,37.296112397943034,575,147.78024225179766,2403,337.74842708738112,2210,319.29453487336735,190,74.128267212986984,94,28.653097563788805,44,27.313000567495326,157,47.244047244070863,790,170.36725037400822,19,24.979991993593593,150,49.355850717012267,85,36.755951898978211,124,41.012193308819754,678,180.47160441465576,331,94.530418384771792,573,136.42580401082486,206,54.323107422164284,589,159.05030650709227]
[null,"18 to 64 years",950,138.93523671121017,1847,267.53317551286983,843,102.95630140987001,1334,157.29272074701996,420,53.842362503887216,509,73.287106642300998,2207,264.34258075459582,11062,612.4287713685568,11106,589.59562413572917,1261,165.55059649545211,414,59.143892330484981,308,49.345719165901315,738,95.739229159211433,2531,273.87770993638748,145,29.949958263743873,678,99.368002898317329,394,56.471231613981999,525,70.342021580275897,4184,429.96162619471056,1365,200.11996402158383,2296,242.06817221601025,1048,129.22461065911554,2320,279.68374997486001]
[null,"65 to 74 years",232,55.172456896534889,508,128.70120434556935,172,38.600518131237564,348,78.600254452514335,70,18.439088914585774,195,39.623225512317902,438,86.683331731077345,1768,162.68988905276197,1846,191.80198122021577,229,62.22539674441618,47,16.278820596099706,63,20.248456731316587,106,27.658633371878661,502,96.876209669866839,23,9.4339811320566032,146,38.897300677553446,69,22.022715545545239,116,31.064449134018133,601,127.88275880665071,165,47.381430961928537,346,97.416631023660429,209,52.32590180780452,418,90.443352436760108]
[null,"75 years and over",102,41.617304093369626,267,121.75385004179539,94,30.413812651491099,119,44.407206622349037,39,15.811388300841896,62,19.416487838947599,230,89.358827208060418,1414,209.99047597450701,1307,183.60010893242955,169,55.226805085936306,60,19.849433241279208,46,16.401219466856727,71,27.658633371878661,307,94.641428560646744,7,10.295630140987001,114,38.209946349085598,42,16.970562748477139,56,17.888543819998318,616,145.45446022724775,107,50.24937810560445,349,97.082439194738001,82,27.802877548915689,229,73.79024325749306]
[]
[]
[]
[]
[]
[]
[]
[]
[]
[]
[]
[]
[]
[]
[]
[]
[]
[]
[]
[]
[]
[]
[]
[]
[]
[]
[]
[]
[]
[]
[]
[]
[]
[]
[]
[]
[]
[]
[]
[]
[]
[]
[null,"Calculated Table B17001. POVERTY STATUS IN THE PAST 12 MONTHS BY SEX BY AGE"]
[null,"Universe:  POPULATION FOR WHOM POVERTY STATUS IS DETERMINED"]
[null,"Data Set: 2008-2012 American Community Survey 5-Year Estimates"]
[]
[null,null,"Alstead",null,"Chesterfield",null,"Dublin",null,"Fitzwilliam",null,"Gilsum",null,"Harrisville",null,"Hinsdale",null,"Jaffrey",null,"Keene",null,"Marlborough",null,"Marlow",null,"Nelson",null,"Richmond",null,"Rindge",null,"Roxbury",null,"Stoddard",null,"Sullivan",null,"Surry",null,"Swanzey",null,"Troy",null,"Walpole",null,"Westmoreland",null,"Winchester"]
[null," ","Estimate","Margin of Error","Estimate","Margin of Error","Estimate","Margin of Error","Estimate","Margin of Error","Estimate","Margin of Error","Estimate","Margin of Error","Estimate","Margin of Error","Estimate","Margin of Error","Estimate","Margin of Error","Estimate","Margin of Error","Estimate","Margin of Error","Estimate","Margin of Error","Estimate","Margin of Error","Estimate","Margin of Error","Estimate","Margin of Error","Estimate","Margin of Error","Estimate","Margin of Error","Estimate","Margin of Error","Estimate","Margin of Error","Estimate","Margin of Error","Estimate","Margin of Error","Estimate","Margin of Error","Estimate","Margin of Error"]
[null,"Total:",1871,173,3596,39,1639,194,2576,268,540,74,915,137,4032,27,5394,77,20177,405,1973,270,890,185,729,156,981,144,4776,243,219,37,1045,181,680,103,821,110,7236,29,2112,274,3670,97,1919,226,4265,36]
[null,"Income in the past 12 months below poverty level:",81,44,92,59,124,67,82,81,57,34,21,18,384,171,345,186,3511,663,66,33,45,35,33,18,71,46,775,257,15,13,36,21,92,71,27,20,248,122,267,148,350,122,66,32,853,276]
[null,"Under 5 years",15,10.770329614269007,13,31.240998703626616,0,17.029386365926403,0,15.556349186104045,4,12.083045973594572,0,15.556349186104045,15,28.0178514522438,54,44.721359549995796,142,91.4166286842826,0,17.029386365926403,0,15.556349186104045,0,15.556349186104045,0,15.556349186104045,91,70,0,15.556349186104045,0,11.704699910719626,0,15.556349186104045,0,14.866068747318506,0,28.844410203711913,28,14.212670403551895,76,58.796258384356399,0,11.401754250991379,115,38.078865529319543]
[null,"5 to 17 years",9,30.708305065568176,0,33.166247903554002,4,33.105890714493697,0,33.166247903554002,11,28.089143810376278,0,33.166247903554002,39,44.519658579104131,37,54.313902456001081,521,219.69751933055593,0,33.166247903554002,12,33.436506994600975,8,28.178005607210743,32,24.083189157584592,112,69.985712827690762,5,33.105890714493697,0,33.166247903554002,37,36.373066958946424,0,33.166247903554002,5,46.518813398452032,64,55.172456896534889,6,32.557641192199412,15,28.319604517012593,233,114.35908359199107]
[null,"18 to 64 years",48,28.670542373662901,63,51.884487084291386,93,67.542579163073128,75,54.918120870983927,39,28.861739379323623,0,34.785054261852174,204,110.81064930772673,175,98.93937537704592,2486,471.01804636340631,57,41.484937025383083,12,33.421549934136806,22,23.473389188611005,28,33.060550509633082,545,160.40573555830227,10,28.354893757515651,27,31.272991542223778,47,32.756678708318397,24,26.962937525425527,143,93.370230801899595,138,67.838042424586519,246,94.720641889716944,41,26.038433132583073,459,148.97315194356329]
[null,"65 to 74 years",9,17.804493814764857,0,15.556349186104045,27,59.033888572581766,0,15.556349186104045,3,12.083045973594572,3,11.704699910719626,65,45.803929962395145,45,39.395431207184416,140,71.196910045310247,0,15.556349186104045,5,12.083045973594572,3,12.083045973594572,5,6.324555320336759,0,22.627416997969522,0,15.556349186104045,2,11.704699910719626,8,15.556349186104045,3,11.704699910719626,26,34,9,9.8994949366116654,0,15.556349186104045,8,8.4852813742385695,34,27.658633371878661]
[null,"75 years and over",0,15.556349186104045,16,25.495097567963924,0,15.556349186104045,7,14.212670403551895,0,15.556349186104045,18,16.492422502470642,61,40.224370722237531,34,31.144823004794873,222,93.085981758801893,9,14.212670403551895,16,16.278820596099706,0,15.556349186104045,6,12.083045973594572,27,30.528675044947494,0,15.556349186104045,7,6.4031242374328485,0,15.556349186104045,0,15.556349186104045,74,74.732857566133518,28,26.92582403567252,22,19.209372712298546,2,11.704699910719626,12,14.317821063276353]
[null," Income in the past 12 months at or above poverty level ",1790,170,3504,70,1515,191,2494,268,483,67,894,136,3648,177,5049,188,16666,709,1907,263,845,183,696,155,910,143,4001,287,204,36,1009,177,588,97,794,108,6988,126,1845,238,3320,141,1853,224,3412,276]
[null,"Under 5 years",88,52.392747589718944,193,110.57124400132251,37,15,148,58.051701094799967,12,7.810249675906654,49,26.248809496813376,260,115.76268828944843,218,106.7941945987702,638,179.87773625437919,86,58.668560575490517,35,23.021728866442675,6,13.038404810405298,40,26.076809620810597,285,96.400207468656419,7,13.038404810405298,94,38.587562763149478,27,19.924858845171276,24,16.124515496597098,329,121.24768039018313,88,39.824615503479755,165,82.758685344802331,90,45.541190146942803,235,109.34349546269316]
[null,"5 to 17 years",337,70.114192571832419,449,130.621590864604,353,80.678373806119822,349,97.734333782964924,25,30,105,47.770283649984748,456,140.3388755833536,993,243.87906839251292,2330,310.48671469162736,294,91.329075326535531,139,46.497311750250681,97,41.243181254602561,139,49.889878733065686,752,147.05441169852742,35,18.814887722226779,133,51.730068625510249,82,32.233522922572398,91,35.972211497209898,1189,229.93259881974109,296,89.582364335844588,610,158.86472232689044,335,71.449282711584999,349,135.18135966175217]
[null,"18 to 64 years",1105,118.7349990525119,2211,299.12204866910093,859,109.21996154549771,1643,180.38846969803808,354,55.982140009113621,616,82.897527104250827,2289,255.44275288212816,3137,307.77101877857183,10717,542.94106494167488,1215,154.92256130079957,535,99.473614592011288,471,82.243540779808356,640,88.447724673956429,2463,237.93486503663141,120,24.939927826679853,622,92.655275079188016,406,62.136945531623937,536,71.267103210387333,4497,389.05912147127458,1238,161.44348856488452,2039,211.8678833613061,1180,129.00775170508166,2351,287.33255993708752]
[null,"65 to 74 years",149,43.278170016764804,402,145.04137340772803,167,38.209946349085598,263,75.432088662584434,62,21.400934559032695,63,23.345235059857504,351,97.621718894926246,369,111.73182178770737,1342,159.90622251807463,182,53.413481444294568,105,31.89043743820395,78,27.202941017470888,68,20.248456731316587,297,74.027022093286988,32,12.727922061357855,113,36.069377593742864,45,16.278820596099706,76,19.798989873223331,710,137.2953021774598,168,55.946402922797461,277,77.620873481300123,92,36.61966684720111,332,76.419892698171196]
[null,"75 years and over",111,37.735924528226413,249,104.00480758118829,99,35.510561809129406,91,43.56604182158393,30,15.556349186104045,61,30.528675044947494,292,118.40608092492548,332,100.65783625729296,1639,187.00267377767625,130,48.877397639399746,31,15.620499351813308,44,17.029386365926403,23,13.45362404707371,204,59.464274989274024,10,6.4031242374328485,47,21.95449840010015,28,19.646882704388499,67,30.232432915661949,263,95.718336801262907,55,25.495097567963924,229,70,156,48.166378315169183,145,57.982756057296896]

{"sheet":"ACS_Table_B17010","index":75,"n_rows":156,"n_cols":48,"rows_kept":156,"cut":false,"hidden":true,"merged":[]}
[null,"B17010. POVERTY STATUS IN THE PAST 12 MONTHS OF FAMILIES BY FAMILY TYPE BY PRESENCE OF RELATED CHILDREN UNDER 18 YEARS"]
[null,"Universe: FAMILIES"]
[null,"Data Set: 2018-2022 American Community Survey 5-Year Estimates"]
[]
[null,null,"Alstead",null,"Chesterfield",null,"Dublin",null,"Fitzwilliam",null,"Gilsum",null,"Harrisville",null,"Hinsdale",null,"Jaffrey",null,"Keene",null,"Marlborough",null,"Marlow",null,"Nelson",null,"Richmond",null,"Rindge",null,"Roxbury",null,"Stoddard",null,"Sullivan",null,"Surry",null,"Swanzey",null,"Troy",null,"Walpole",null,"Westmoreland",null,"Winchester"]
[null," ","Estimate","Margin of Error","Estimate","Margin of Error","Estimate","Margin of Error","Estimate","Margin of Error","Estimate","Margin of Error","Estimate","Margin of Error","Estimate","Margin of Error","Estimate","Margin of Error","Estimate","Margin of Error","Estimate","Margin of Error","Estimate","Margin of Error","Estimate","Margin of Error","Estimate","Margin of Error","Estimate","Margin of Error","Estimate","Margin of Error","Estimate","Margin of Error","Estimate","Margin of Error","Estimate","Margin of Error","Estimate","Margin of Error","Estimate","Margin of Error","Estimate","Margin of Error","Estimate","Margin of Error","Estimate","Margin of Error"]
[null,"Total:",454,72,1003,131,527,93,619,124,230,43,313,70,1049,141,1374,156,4541,311,557,107,247,59,167,39,316,68,1451,123,66,37,297,45,196,45,262,60,2089,223,497,87,883,94,669,155,909,104]
[null,"Income in the past 12 months below poverty level:",9,9,33,45,57,52,34,27,5,6,0,12,19,25,23,39,174,92,56,64,20,15,4,4,12,20,79,55,0,12,5,8,3,4,4,5,164,97,24,21,28,32,69,99,159,74]
[null,"Married-couple family:",9,9,33,45,44,52,6,8,3,4,0,12,10,15,0,17,48,48,7,10,13,12,4,4,0,12,59,48,0,12,0,12,3,4,2,3,11,21,6,10,6,9,69,99,49,38]
[null,"With related children under 18 years:",0,12,33,45,7,7,0,12,2,3,0,12,10,15,0,17,28,40,7,10,6,7,0,12,0,12,10,18,0,12,0,12,0,12,0,12,11,21,0,12,0,12,0,12,32,35]
[null,"Under 5 years only",0,12,0,12,0,12,0,12,0,12,0,12,0,12,0,17,28,40,0,12,0,12,0,12,0,12,0,17,0,12,0,12,0,12,0,12,11,21,0,12,0,12,0,12,0,12]
[null,"Under 5 years and 5 to 17 years",0,12,0,12,0,12,0,12,2,3,0,12,10,15,0,17,0,22,0,12,0,12,0,12,0,12,10,18,0,12,0,12,0,12,0,12,0,17,0,12,0,12,0,12,32,35]
[null,"5 to 17 years only",0,12,33,45,7,7,0,12,0,12,0,12,0,12,0,17,0,22,7,10,6,7,0,12,0,12,0,17,0,12,0,12,0,12,0,12,0,17,0,12,0,12,0,12,0,12]
[null,"No related children under 18 years",9,9,0,12,37,53,6,8,1,3,0,12,0,12,0,17,20,26,0,12,7,9,4,4,0,12,49,45,0,12,0,12,3,4,2,3,0,17,6,10,6,9,69,99,17,19]
[null,"Other family:",0,12,0,12,13,13,28,24,2,3,0,12,9,24,23,39,126,79,49,64,7,10,0,12,12,20,20,24,0,12,5,8,0,12,2,3,153,94,18,18,22,31,0,12,110,68]
[null,"Male householder, no spouse present:",0,12,0,12,0,12,16,18,0,12,0,12,5,20,0,17,26,30,0,12,0,12,0,12,0,12,0,17,0,12,5,8,0,12,2,3,21,34,7,11,0,12,0,12,26,44]
[null,"With related children under 18 years:",0,12,0,12,0,12,16,18,0,12,0,12,5,20,0,17,26,30,0,12,0,12,0,12,0,12,0,17,0,12,5,8,0,12,0,12,21,34,0,12,0,12,0,12,26,44]
[null,"Under 5 years only",0,12,0,12,0,12,0,12,0,12,0,12,0,12,0,17,0,22,0,12,0,12,0,12,0,12,0,17,0,12,0,12,0,12,0,12,0,17,0,12,0,12,0,12,26,44]
[null,"Under 5 years and 5 to 17 years",0,12,0,12,0,12,0,12,0,12,0,12,0,12,0,17,0,22,0,12,0,12,0,12,0,12,0,17,0,12,5,8,0,12,0,12,0,17,0,12,0,12,0,12,0,12]
[null,"5 to 17 years only",0,12,0,12,0,12,16,18,0,12,0,12,5,20,0,17,26,30,0,12,0,12,0,12,0,12,0,17,0,12,0,12,0,12,0,12,21,34,0,12,0,12,0,12,0,12]
[null,"No related children under 18 years",0,12,0,12,0,12,0,12,0,12,0,12,0,12,0,17,0,22,0,12,0,12,0,12,0,12,0,17,0,12,0,12,0,12,2,3,0,17,7,11,0,12,0,12,0,12]
[null,"Female householder, no spouse present:",0,12,0,12,13,13,12,15,2,3,0,12,4,10,23,39,100,71,49,64,7,10,0,12,12,20,20,24,0,12,0,12,0,12,0,12,132,87,11,13,22,31,0,12,84,57]
[null,"With related children under 18 years:",0,12,0,12,13,13,7,12,2,3,0,12,4,10,23,39,79,66,49,64,7,10,0,12,0,12,14,22,0,12,0,12,0,12,0,12,80,69,7,11,12,20,0,12,84,57]
[null,"Under 5 years only",0,12,0,12,4,5,0,12,0,12,0,12,0,12,0,17,17,29,0,12,0,12,0,12,0,12,0,17,0,12,0,12,0,12,0,12,0,17,0,12,12,20,0,12,34,39]
[null,"Under 5 years and 5 to 17 years",0,12,0,12,0,12,0,12,0,12,0,12,0,12,23,39,27,38,49,64,7,10,0,12,0,12,0,17,0,12,0,12,0,12,0,12,0,17,0,12,0,12,0,12,31,33]
[null,"5 to 17 years only",0,12,0,12,9,12,7,12,2,3,0,12,4,10,0,17,35,31,0,12,0,12,0,12,0,12,14,22,0,12,0,12,0,12,0,12,80,69,7,11,0,12,0,12,19,21]
[null,"No related children under 18 years",0,12,0,12,0,12,5,8,0,12,0,12,0,12,0,17,21,24,0,12,0,12,0,12,12,20,6,10,0,12,0,12,0,12,0,12,52,77,4,7,10,16,0,12,0,12]
[null,"Income in the past 12 months at or above poverty level:",445,73,970,146,470,81,585,122,225,44,313,70,1030,147,1351,165,4367,293,501,112,227,58,163,39,304,67,1372,129,66,37,292,46,193,45,258,60,1925,218,473,87,855,100,600,113,750,121]
[null,"Married-couple family:",380,74,815,161,410,82,475,78,190,37,271,66,874,154,1202,191,3345,288,439,100,214,55,132,32,245,57,1309,127,57,37,259,45,164,45,231,60,1572,259,353,72,711,99,540,101,664,114]
[null,"With related children under 18 years:",75,33,242,85,111,38,144,53,58,21,61,43,262,86,431,122,972,156,197,86,74,35,27,14,66,27,383,88,11,11,74,27,63,32,89,46,342,150,163,50,385,109,130,48,319,100]
[null,"Under 5 years only",8,9,41,33,4,6,52,45,28,15,16,22,8,14,0,17,180,82,70,70,6,11,6,6,2,4,13,16,2,3,22,11,42,28,17,11,0,17,33,21,98,95,25,23,61,49]
[null,"Under 5 years and 5 to 17 years",10,9,0,12,47,28,12,11,4,4,30,34,22,32,92,91,203,63,16,14,15,15,3,4,15,12,70,45,4,5,4,5,7,6,18,24,123,116,34,28,95,48,25,19,72,60]
[null,"5 to 17 years only",57,32,201,88,60,31,80,30,26,13,15,14,232,87,339,118,589,140,111,53,53,30,18,13,49,26,300,93,5,6,48,22,14,11,54,35,219,110,96,50,192,78,80,37,186,95]
[null,"No related children under 18 years",305,81,573,158,299,80,331,76,132,30,210,50,612,170,771,188,2373,292,242,67,140,46,105,31,179,49,926,139,46,40,185,42,101,28,142,41,1230,243,190,56,326,87,410,99,345,98]
[null,"Other family:",65,21,155,87,60,26,110,97,35,27,42,22,156,92,149,74,1022,212,62,30,13,13,31,18,59,36,63,41,9,11,33,20,29,19,27,16,353,180,120,49,144,70,60,58,86,45]
[null,"Male householder, no spouse present:",13,11,18,29,35,22,39,28,10,12,12,10,76,71,36,38,308,149,21,22,8,12,10,10,41,37,35,38,8,11,14,15,21,17,4,4,126,108,50,33,43,30,11,9,0,12]
[null,"With related children under 18 years:",9,9,18,29,8,6,8,12,0,12,9,8,25,28,36,38,242,138,16,21,8,12,9,10,8,13,35,38,1,2,14,15,4,7,2,3,126,108,22,23,29,27,8,8,0,12]
[null,"Under 5 years only",0,12,0,12,0,12,0,12,0,12,4,6,0,12,8,17,67,66,0,12,0,12,2,3,8,13,35,38,1,2,2,4,0,12,0,12,20,32,22,23,22,24,3,5,0,12]
[null,"Under 5 years and 5 to 17 years",5,7,0,12,0,12,0,12,0,12,0,12,15,24,0,17,0,22,0,12,0,12,0,12,0,12,0,17,0,12,0,12,0,12,0,12,0,17,0,12,0,12,0,12,0,12]
[null,"5 to 17 years only",4,6,18,29,8,6,8,12,0,12,5,6,10,17,28,35,175,113,16,21,8,12,7,10,0,12,0,17,0,12,12,15,4,7,2,3,106,106,0,12,7,13,5,7,0,12]
[null,"No related children under 18 years",4,6,0,12,27,19,31,25,10,12,3,4,51,69,0,17,66,59,5,8,0,12,1,2,33,34,0,17,7,10,0,12,17,15,2,3,0,17,28,24,14,15,3,5,0,12]
[null,"Female householder, no spouse present:",52,20,137,81,25,15,71,91,25,26,30,19,80,59,113,75,714,163,41,26,5,5,21,14,18,14,28,32,1,2,19,13,8,7,23,15,227,127,70,35,101,62,49,58,86,45]
[null,"With related children under 18 years:",31,18,82,65,6,7,0,12,20,25,11,8,28,33,60,50,361,120,21,24,2,3,7,7,4,6,20,30,0,12,16,12,6,6,3,4,180,121,32,26,72,63,46,58,28,29]
[null,"Under 5 years only",0,12,0,12,0,12,0,12,3,4,3,5,0,12,0,17,58,70,14,21,0,12,3,3,0,12,0,17,0,12,6,9,0,12,3,4,48,52,0,12,0,12,8,15,0,12]
[null,"Under 5 years and 5 to 17 years",0,12,36,38,0,12,0,12,0,12,0,12,0,12,0,17,32,37,0,12,0,12,0,12,0,12,0,17,0,12,4,5,3,4,0,12,42,65,0,12,7,11,0,12,0,12]
[null,"5 to 17 years only",31,18,46,56,6,7,0,12,17,25,8,8,28,33,60,50,271,103,7,13,2,3,4,6,4,6,20,30,0,12,6,7,3,4,0,12,90,94,32,26,65,62,38,57,28,29]
[null,"No related children under 18 years",21,14,55,50,19,15,71,91,5,7,19,17,52,50,53,54,353,133,20,16,3,4,14,11,14,11,8,13,1,2,3,4,2,3,20,14,47,46,38,23,29,24,3,4,58,38]
[]
[]
[]
[]
[]
[]
[]
[]
[]
[]
[]
[]
[null,"B17010. POVERTY STATUS IN THE PAST 12 MONTHS OF FAMILIES BY FAMILY TYPE BY PRESENCE OF RELATED CHILDREN UNDER 18 YEARS"]
[null,"Universe: FAMILIES"]
[null,"Data Set: 2013-2017 American Community Survey 5-Year Estimates"]
[]
[null,null,"Alstead",null,"Chesterfield",null,"Dublin",null,"Fitzwilliam",null,"Gilsum",null,"Harrisville",null,"Hinsdale",null,"Jaffrey",null,"Keene",null,"Marlborough",null,"Marlow",null,"Nelson",null,"Richmond",null,"Rindge",null,"Roxbury",null,"Stoddard",null,"Sullivan",null,"Surry",null,"Swanzey",null,"Troy",null,"Walpole",null,"Westmoreland",null,"Winchester"]
[null," ","Estimate","Margin of Error","Estimate","Margin of Error","Estimate","Margin of Error","Estimate","Margin of Error","Estimate","Margin of Error","Estimate","Margin of Error","Estimate","Margin of Error","Estimate","Margin of Error","Estimate","Margin of Error","Estimate","Margin of Error","Estimate","Margin of Error","Estimate","Margin of Error","Estimate","Margin of Error","Estimate","Margin of Error","Estimate","Margin of Error","Estimate","Margin of Error","Estimate","Margin of Error","Estimate","Margin of Error","Estimate","Margin of Error","Estimate","Margin of Error","Estimate","Margin of Error","Estimate","Margin of Error","Estimate","Margin of Error"]
[null,"Total:",468,72,1063,126,416,56,629,72,197,29,273,48,1096,79,5100,275,5116,300,527,93,204,37,161,26,328,48,1336,117,65,24,368,53,182,36,286,43,1998,167,567,94,1029,88,538,77,1086,140]
[null,"Income in the past 12 months below poverty level:",47,33,0,11,9,8,15,13,6,5,8,12,73,68,299,103,307,95,35,32,10,7,12,14,30,28,50,47,0,11,2,5,7,5,2,3,171,110,20,24,43,62,21,18,66,62]
[null,"Married-couple family:",8,9,0,11,6,7,15,13,4,4,8,12,19,20,64,45,104,70,0,11,8,7,0,11,0,11,10,15,0,11,0,11,5,5,2,3,0,16,1997,9,0,11,4,6,16,17]
[null,"With related children under 18 years:",3,4,0,11,3,6,6,10,4,4,0,11,10,15,14,18,48,54,0,11,2,4,0,11,0,11,0,16,0,11,0,11,0,11,0,11,0,16,6,9,0,11,4,6,0,11]
[null,"Under 5 years only",3,4,0,11,0,11,0,11,0,11,0,11,10,15,0,21,0,20,0,11,0,11,0,11,0,11,0,16,0,11,0,11,0,11,0,11,0,16,0,11,0,11,0,11,0,11]
[null,"Under 5 years and 5 to 17 years",0,11,0,11,3,6,0,11,2,3,0,11,0,11,4,8,40,52,0,11,0,11,0,11,0,11,0,16,0,11,0,11,0,11,0,11,0,16,0,11,0,11,4,6,0,11]
[null,"5 to 17 years only",0,11,0,11,0,11,6,10,2,3,0,11,0,11,10,15,8,12,0,11,2,4,0,11,0,11,0,16,0,11,0,11,0,11,0,11,0,16,6,9,0,11,0,11,0,11]
[null,"No related children under 18 years",5,8,0,11,3,4,9,9,0,11,8,12,9,14,50,41,56,43,0,11,6,5,0,11,0,11,10,15,0,11,0,11,5,5,2,3,0,16,0,11,0,11,0,11,16,17]
[null,"Other family:",39,32,0,11,3,4,0,11,2,2,0,11,54,63,235,95,203,83,35,32,2,3,12,14,30,28,40,44,0,11,2,5,2,4,0,11,171,110,14,22,43,62,17,17,50,60]
[null,"Male householder, no wife present:",0,11,0,11,0,11,0,11,0,11,0,11,9,14,51,43,59,63,13,21,0,11,0,11,5,7,25,40,0,11,2,5,0,11,0,11,0,16,14,22,0,11,0,11,0,11]
[null,"With related children under 18 years:",0,11,0,11,0,11,0,11,0,11,0,11,0,11,37,39,46,59,13,21,0,11,0,11,5,7,25,40,0,11,2,5,0,11,0,11,0,16,14,22,0,11,0,11,0,11]
[null,"Under 5 years only",0,11,0,11,0,11,0,11,0,11,0,11,0,11,0,21,0,20,0,11,0,11,0,11,0,11,0,16,0,11,0,11,0,11,0,11,0,16,0,11,0,11,0,11,0,11]
[null,"Under 5 years and 5 to 17 years",0,11,0,11,0,11,0,11,0,11,0,11,0,11,0,21,0,20,0,11,0,11,0,11,0,11,0,16,0,11,0,11,0,11,0,11,0,16,0,11,0,11,0,11,0,11]
[null,"5 to 17 years only",0,11,0,11,0,11,0,11,0,11,0,11,0,11,37,39,46,59,13,21,0,11,0,11,5,7,25,40,0,11,2,5,0,11,0,11,0,16,14,22,0,11,0,11,0,11]
[null,"No related children under 18 years",0,11,0,11,0,11,0,11,0,11,0,11,9,14,14,21,13,20,0,11,0,11,0,11,0,11,0,16,0,11,0,11,0,11,0,11,0,16,0,11,0,11,0,11,0,11]
[null,"Female householder, no husband present:",39,32,0,11,3,4,0,11,2,2,0,11,45,62,184,91,144,72,22,26,2,3,12,14,25,27,15,20,0,11,0,11,2,4,0,11,171,110,0,11,43,62,17,17,50,60]
[null,"With related children under 18 years:",39,32,0,11,0,11,0,11,2,2,0,11,45,62,173,89,144,72,22,26,2,3,12,14,15,22,15,20,0,11,0,11,2,4,0,11,160,108,0,11,43,62,17,17,50,60]
[null,"Under 5 years only",23,25,0,11,0,11,0,11,0,11,0,11,35,60,49,47,41,42,0,11,0,11,0,11,15,22,0,16,0,11,0,11,0,11,0,11,80,86,0,11,43,62,0,11,0,11]
[null,"Under 5 years and 5 to 17 years",0,11,0,11,0,11,0,11,0,11,0,11,0,11,46,47,27,31,6,9,2,3,0,11,0,11,0,16,0,11,0,11,0,11,0,11,42,58,0,11,0,11,0,11,0,11]
[null,"5 to 17 years only",16,17,0,11,0,11,0,11,2,2,0,11,10,16,78,55,76,53,16,25,0,11,12,14,0,11,15,20,0,11,0,11,2,4,0,11,38,56,0,11,0,11,17,17,50,60]
[null,"No related children under 18 years",0,11,0,11,3,4,0,11,0,11,0,11,0,11,11,18,0,20,0,11,0,11,0,11,10,16,0,16,0,11,0,11,0,11,0,11,11,19,0,11,0,11,0,11,0,11]
[null,"Income in the past 12 months at or above poverty level:",421,78,1063,126,407,56,614,73,191,29,265,46,1023,77,4801,268,4809,312,492,87,194,37,149,28,298,44,1286,123,65,24,366,51,175,36,284,43,1827,197,547,91,986,102,517,80,1020,140]
[null,"Married-couple family:",357,69,991,119,373,54,589,72,165,27,233,42,765,106,3470,323,3440,257,435,83,166,34,123,25,263,43,1160,125,59,20,340,52,147,34,237,36,1516,196,391,79,793,107,489,81,688,129]
[null,"With related children under 18 years:",81,32,389,87,104,25,180,57,44,14,42,19,254,77,1160,181,1112,186,140,54,65,26,35,18,83,27,413,67,22,12,105,35,71,25,61,24,425,131,142,65,301,77,144,40,221,79]
[null,"Under 5 years only",18,14,131,77,3,4,24,27,11,9,4,6,0,11,224,104,214,95,28,26,27,22,12,15,3,4,101,49,9,6,10,8,29,18,9,13,32,33,23,29,27,26,19,15,17,25]
[null,"Under 5 years and 5 to 17 years",14,14,75,67,14,14,41,21,0,11,3,4,0,11,116,77,123,61,10,10,5,7,16,11,10,10,101,48,1,3,17,18,16,13,4,5,88,65,26,26,19,30,9,10,62,54]
[null,"5 to 17 years only",49,30,183,89,87,26,115,49,33,10,35,21,254,77,820,186,775,161,102,50,33,15,7,6,70,26,211,65,12,10,78,28,26,13,48,20,305,115,93,47,255,87,116,39,142,68]
[null,"No related children under 18 years",276,69,602,157,269,50,409,67,121,24,191,40,511,84,2310,269,2328,219,295,66,101,24,88,21,180,41,747,126,37,19,235,49,76,28,176,34,1091,204,249,59,492,106,345,70,467,114]
[null,"Other family:",64,37,72,69,34,24,25,15,26,11,32,18,258,96,1331,294,1369,250,57,31,28,12,26,13,35,21,126,60,6,7,26,18,28,13,47,22,311,139,156,63,193,82,28,18,332,112]
[null,"Male householder, no wife present:",34,28,17,24,8,14,7,10,11,8,20,16,90,75,382,154,366,155,21,20,4,5,12,11,13,17,42,35,3,6,5,6,10,6,28,20,113,101,89,52,57,51,11,12,155,79]
[null,"With related children under 18 years:",5,8,17,24,0,11,0,11,7,7,20,16,78,74,294,140,272,151,15,18,2,3,2,3,0,11,32,34,0,11,0,11,8,5,15,14,113,101,50,34,13,22,5,8,103,85]
[null,"Under 5 years only",0,11,0,11,0,11,0,11,0,11,0,11,15,26,26,34,29,35,0,11,0,11,0,11,0,11,0,16,0,11,0,11,0,11,7,11,0,16,6,10,0,11,0,11,12,19]
[null,"Under 5 years and 5 to 17 years",0,11,0,11,0,11,0,11,2,3,0,11,50,69,0,21,0,20,7,11,0,11,0,11,0,11,21,28,0,11,0,11,0,11,0,11,11,21,4,8,0,11,0,11,0,11]
[null,"5 to 17 years only",5,8,17,24,0,11,0,11,5,5,20,16,13,20,268,137,243,146,8,12,2,3,2,3,0,11,11,20,0,11,0,11,8,5,8,9,102,96,40,31,13,22,5,8,91,83]
[null,"No related children under 18 years",29,26,0,11,8,14,7,10,4,4,0,11,12,18,88,61,94,75,6,9,2,4,10,12,13,17,10,16,3,6,5,6,2,3,13,11,0,16,39,38,44,46,6,9,52,54]
[null,"Female householder, no husband present:",30,20,55,65,26,18,18,13,15,8,12,9,168,91,949,262,1003,197,36,28,24,11,14,8,22,14,84,53,3,4,21,17,18,13,19,13,198,106,67,42,136,63,17,13,177,84]
[null,"With related children under 18 years:",25,18,17,26,11,10,7,11,0,11,12,9,88,71,536,177,591,172,21,25,14,9,9,7,8,11,66,50,3,4,10,8,10,12,11,13,38,36,46,33,28,25,12,10,129,74]
[null,"Under 5 years only",0,11,17,26,0,11,0,11,0,11,2,5,14,22,118,88,88,79,5,7,0,11,4,5,0,11,25,32,0,11,0,11,0,11,0,11,0,16,16,18,0,11,2,4,17,26]
[null,"Under 5 years and 5 to 17 years",10,15,0,11,0,11,0,11,0,11,0,11,0,11,31,48,24,38,0,11,4,5,2,3,6,11,0,16,0,11,4,6,0,11,3,4,0,16,6,8,0,11,0,11,34,37]
[null,"5 to 17 years only",15,12,0,11,11,10,7,11,0,11,10,9,74,70,387,150,479,156,16,24,10,7,3,4,2,3,41,38,3,4,6,6,10,12,8,13,38,36,24,25,28,25,10,9,78,60]
[null,"No related children under 18 years",5,8,38,60,15,16,11,11,15,8,0,11,80,51,413,148,412,133,15,13,10,7,5,5,14,10,18,19,0,11,11,14,8,6,8,5,160,99,21,26,108,59,5,8,48,35]
[]
[]
[]
[null,"B17010. POVERTY STATUS IN THE PAST 12 MONTHS OF FAMILIES BY FAMILY TYPE BY PRESENCE OF RELATED CHILDREN UNDER 18 YEARS"]
[null,"Universe: FAMILIES"]
[null,"Data Set: 2008-2012 American Community Survey 5-Year Estimates"]
[]
[null,null,"Alstead",null,"Chesterfield",null,"Dublin",null,"Fitzwilliam",null,"Gilsum",null,"Harrisville",null,"Hinsdale",null,"Jaffrey",null,"Keene",null,"Marlborough",null,"Marlow",null,"Nelson",null,"Richmond",null,"Rindge",null,"Roxbury",null,"Stoddard",null,"Sullivan",null,"Surry",null,"Swanzey",null,"Troy",null,"Walpole",null,"Westmoreland",null,"Winchester"]
[null," ","Estimate","Margin of Error","Estimate","Margin of Error","Estimate","Margin of Error","Estimate","Margin of Error","Estimate","Margin of Error","Estimate","Margin of Error","Estimate","Margin of Error","Estimate","Margin of Error","Estimate","Margin of Error","Estimate","Margin of Error","Estimate","Margin of Error","Estimate","Margin of Error","Estimate","Margin of Error","Estimate","Margin of Error","Estimate","Margin of Error","Estimate","Margin of Error","Estimate","Margin of Error","Estimate","Margin of Error","Estimate","Margin of Error","Estimate","Margin of Error","Estimate","Margin of Error","Estimate","Margin of Error","Estimate","Margin of Error"]
[null,"Total:",501,55,1146,130,450,60,702,98,164,26,270,48,1075,112,1399,95,4801,266,568,84,272,59,210,42,277,46,1240,103,67,14,325,61,185,36,272,46,1888,130,592,96,965,82,576,73,1152,107]
[null,"Income in the past 12 months below poverty level:",16,13,11,18,13,15,21,26,7,8,3,4,55,42,81,63,354,137,0,11,5,7,8,7,9,10,126,63,2,4,3,4,17,17,10,11,5,10,53,43,33,26,10,10,179,83]
[null,"Married-couple family:",11,11,0,11,8,13,17,25,2,4,3,4,28,31,16,23,194,93,0,11,0,11,5,6,0,11,41,27,0,11,3,4,0,11,8,10,0,16,26,28,5,9,7,9,63,68]
[null,"With related children under 18 years:",11,11,0,11,0,11,0,11,2,4,0,11,0,11,0,16,97,80,0,11,0,11,2,3,0,11,35,29,0,11,0,11,0,11,0,11,0,16,22,27,5,9,0,11,48,65]
[null,"Under 5 years only",11,11,0,11,0,11,0,11,0,11,0,11,0,11,0,16,0,21,0,11,0,11,0,11,0,11,6,10,0,11,0,11,0,11,0,11,0,16,0,11,0,11,0,11,0,11]
[null,"Under 5 years and 5 to 17 years",0,11,0,11,0,11,0,11,0,11,0,11,0,11,0,16,65,68,0,11,0,11,0,11,0,11,9,14,0,11,0,11,0,11,0,11,0,16,5,7,5,9,0,11,48,65]
[null,"5 to 17 years only",0,11,0,11,0,11,0,11,2,4,0,11,0,11,0,16,32,40,0,11,0,11,2,3,0,11,20,24,0,11,0,11,0,11,0,11,0,16,17,26,0,11,0,11,0,11]
[null,"No related children under 18 years",0,11,0,11,8,13,17,25,0,11,3,4,28,31,16,23,97,55,0,11,0,11,3,5,0,11,6,10,0,11,3,4,0,11,8,10,0,16,4,7,0,11,7,9,15,19]
[null,"Other family:",5,7,11,18,5,7,4,6,5,7,0,11,27,29,65,61,160,90,0,11,5,7,3,4,9,10,85,56,2,4,0,11,17,17,2,3,5,10,27,31,28,25,3,5,116,65]
[null,"Male householder, no wife present:",0,11,0,11,0,11,4,6,2,5,0,11,0,11,0,16,13,21,0,11,5,7,3,4,0,11,7,12,0,11,0,11,8,11,0,11,0,16,0,11,0,11,0,11,8,15]
[null,"With related children under 18 years:",0,11,0,11,0,11,0,11,0,11,0,11,0,11,0,16,0,21,0,11,5,7,3,4,0,11,7,12,0,11,0,11,8,11,0,11,0,16,0,11,0,11,0,11,8,15]
[null,"Under 5 years only",0,11,0,11,0,11,0,11,0,11,0,11,0,11,0,16,0,21,0,11,0,11,0,11,0,11,0,16,0,11,0,11,0,11,0,11,0,16,0,11,0,11,0,11,0,11]
[null,"Under 5 years and 5 to 17 years",0,11,0,11,0,11,0,11,0,11,0,11,0,11,0,16,0,21,0,11,0,11,0,11,0,11,0,16,0,11,0,11,0,11,0,11,0,16,0,11,0,11,0,11,8,15]
[null,"5 to 17 years only",0,11,0,11,0,11,0,11,0,11,0,11,0,11,0,16,0,21,0,11,5,7,3,4,0,11,7,12,0,11,0,11,8,11,0,11,0,16,0,11,0,11,0,11,0,11]
[null,"No related children under 18 years",0,11,0,11,0,11,4,6,2,5,0,11,0,11,0,16,13,21,0,11,0,11,0,11,0,11,0,16,0,11,0,11,0,11,0,11,0,16,0,11,0,11,0,11,0,11]
[null,"Female householder, no husband present:",5,7,11,18,5,7,0,11,3,4,0,11,27,29,65,61,147,88,0,11,0,11,0,11,9,10,78,55,2,4,0,11,9,12,2,3,5,10,27,31,28,25,3,5,108,65]
[null,"With related children under 18 years:",5,7,11,18,5,7,0,11,3,4,0,11,27,29,65,61,147,88,0,11,0,11,0,11,9,10,70,53,2,4,0,11,9,12,0,11,5,10,27,31,24,25,3,5,99,65]
[null,"Under 5 years only",0,11,11,18,0,11,0,11,0,11,0,11,0,11,22,38,23,37,0,11,0,11,0,11,0,11,17,26,0,11,0,11,0,11,0,11,0,16,0,11,24,25,0,11,11,16]
[null,"Under 5 years and 5 to 17 years",5,7,0,11,0,11,0,11,3,4,0,11,13,20,22,35,27,31,0,11,0,11,0,11,0,11,25,41,0,11,0,11,0,11,0,11,0,16,11,16,0,11,0,11,48,52]
[null,"5 to 17 years only",0,11,0,11,5,7,0,11,0,11,0,11,14,22,21,27,97,66,0,11,0,11,0,11,9,10,28,27,2,4,0,11,9,12,0,11,5,10,16,26,0,11,3,5,40,45]
[null,"No related children under 18 years",0,11,0,11,0,11,0,11,0,11,0,11,0,11,0,16,0,21,0,11,0,11,0,11,0,11,8,13,0,11,0,11,0,11,2,3,0,16,0,11,4,10,0,11,9,14]
[null,"Income in the past 12 months at or above poverty level:",485,53,1135,128,437,60,681,97,157,27,267,48,1020,113,1318,99,4447,290,568,84,267,58,202,42,268,46,1114,119,65,14,322,62,168,37,262,44,1883,130,539,88,932,82,566,73,973,136]
[null,"Married-couple family:",399,55,922,154,379,57,629,93,132,26,224,42,706,117,1166,112,3447,271,506,80,253,60,172,35,229,37,941,112,52,14,249,53,139,32,229,44,1611,148,422,78,693,102,524,76,702,115]
[null,"With related children under 18 years:",150,43,235,94,115,39,227,54,21,12,69,28,282,75,549,99,1265,163,189,69,88,35,60,28,73,32,463,86,15,9,62,28,49,17,69,28,736,133,149,45,287,92,187,54,200,84]
[null,"Under 5 years only",4,6,79,75,7,9,25,20,10,7,12,11,86,63,89,74,163,72,39,40,4,6,5,8,12,11,125,54,2,3,26,20,12,9,16,12,90,59,21,18,20,21,30,21,48,43]
[null,"Under 5 years and 5 to 17 years",34,25,29,22,24,13,61,36,0,11,19,18,59,43,67,54,212,110,16,23,23,16,0,11,22,20,56,41,2,3,10,10,0,11,3,4,116,65,33,22,30,38,18,14,66,65]
[null,"5 to 17 years only",112,43,127,56,84,37,141,50,11,9,38,17,137,62,393,116,890,153,134,52,61,29,55,27,39,22,282,76,11,8,26,20,37,14,50,27,530,149,95,40,237,83,139,46,86,47]
[null,"No related children under 18 years",249,54,687,159,264,58,402,80,111,26,155,35,424,111,617,122,2182,247,317,69,165,58,112,26,156,37,478,94,37,12,187,47,90,27,160,32,875,178,273,64,406,81,337,61,502,107]
[null,"Other family:",86,35,213,91,58,28,52,38,25,14,43,25,314,119,152,104,1000,265,62,40,14,11,30,17,39,28,173,76,13,9,73,34,29,23,33,18,272,108,117,54,239,88,42,23,271,111]
[null,"Male householder, no wife present:",34,28,38,44,20,16,29,26,14,12,9,7,163,98,70,75,372,162,5,7,3,4,2,3,13,10,86,44,4,5,35,25,11,14,3,4,131,85,42,32,70,48,14,12,110,71]
[null,"With related children under 18 years:",10,10,38,44,17,15,0,11,2,4,3,4,126,96,37,55,265,145,0,11,0,11,2,3,13,10,29,24,2,4,18,16,8,13,0,11,38,45,28,24,51,40,11,10,39,46]
[null,"Under 5 years only",0,11,0,11,0,11,0,11,0,11,0,11,44,49,0,16,72,93,0,11,0,11,2,3,0,11,0,16,0,11,0,11,8,13,0,11,0,16,17,19,0,11,5,8,0,11]
[null,"Under 5 years and 5 to 17 years",5,7,0,11,5,6,0,11,0,11,0,11,8,15,0,16,0,21,0,11,0,11,0,11,0,11,0,16,0,11,0,11,0,11,0,11,0,16,0,11,17,25,0,11,0,11]
[null,"5 to 17 years only",5,7,38,44,12,14,0,11,2,4,3,4,74,74,37,55,193,112,0,11,0,11,0,11,13,10,29,24,2,4,18,16,0,11,0,11,38,45,11,15,34,33,6,7,39,46]
[null,"No related children under 18 years",24,26,0,11,3,4,29,26,12,11,6,6,37,33,33,51,107,86,5,7,3,4,0,11,0,11,57,40,2,3,17,18,3,4,3,4,93,71,14,22,19,32,3,5,71,54]
[null,"Female householder, no husband present:",52,21,175,79,38,25,23,28,11,8,34,24,151,79,82,72,628,180,57,40,11,10,28,17,26,26,87,55,9,8,38,24,18,17,30,18,141,80,75,50,169,81,28,17,161,84]
[null,"With related children under 18 years:",26,20,130,80,38,25,0,11,6,6,22,18,78,49,31,37,222,120,41,38,0,11,9,7,24,25,64,49,9,8,35,22,14,16,13,13,84,63,56,44,134,76,15,12,81,61]
[null,"Under 5 years only",3,4,52,73,0,11,0,11,0,11,3,4,26,29,0,16,16,26,0,11,0,11,0,11,0,11,0,16,4,6,13,14,0,11,0,11,0,16,0,11,46,40,4,7,31,36]
[null,"Under 5 years and 5 to 17 years",0,11,0,11,0,11,0,11,0,11,5,7,0,11,0,16,19,30,0,11,0,11,0,11,5,9,24,27,0,11,0,11,0,11,0,11,0,16,0,11,0,11,4,6,9,15]
[null,"5 to 17 years only",23,19,78,65,38,25,0,11,6,6,14,17,52,41,31,37,187,111,41,38,0,11,9,7,19,23,40,44,5,5,22,19,14,16,13,13,84,63,56,44,88,61,7,9,41,38]
[null,"No related children under 18 years",26,15,45,46,0,11,23,28,5,5,12,14,73,59,51,63,406,130,16,16,11,10,19,16,2,4,23,21,0,11,3,4,4,5,17,14,57,57,19,20,35,26,13,11,80,59]

{"sheet":"ACS_Table_B17017","index":76,"n_rows":213,"n_cols":48,"rows_kept":213,"cut":false,"hidden":true,"merged":[]}
[null,"B17017. POVERTY STATUS IN THE PAST 12 MONTHS BY HOUSEHOLD TYPE BY AGE OF HOUSEHOLDER"]
[null,"Universe: HOUSEHOLDS"]
[null,"Data Set: 2018-2022 American Community Survey 5-Year Estimates"]
[]
[null,null,"Alstead",null,"Chesterfield",null,"Dublin",null,"Fitzwilliam",null,"Gilsum",null,"Harrisville",null,"Hinsdale",null,"Jaffrey",null,"Keene",null,"Marlborough",null,"Marlow",null,"Nelson",null,"Richmond",null,"Rindge",null,"Roxbury",null,"Stoddard",null,"Sullivan",null,"Surry",null,"Swanzey",null,"Troy",null,"Walpole",null,"Westmoreland",null,"Winchester"]
[null," ","Estimate","Margin of Error","Estimate","Margin of Error","Estimate","Margin of Error","Estimate","Margin of Error","Estimate","Margin of Error","Estimate","Margin of Error","Estimate","Margin of Error","Estimate","Margin of Error","Estimate","Margin of Error","Estimate","Margin of Error","Estimate","Margin of Error","Estimate","Margin of Error","Estimate","Margin of Error","Estimate","Margin of Error","Estimate","Margin of Error","Estimate","Margin of Error","Estimate","Margin of Error","Estimate","Margin of Error","Estimate","Margin of Error","Estimate","Margin of Error","Estimate","Margin of Error","Estimate","Margin of Error","Estimate","Margin of Error"]
[null,"Total:",723,97,1366,158,635,101,1013,154,310,51,416,75,1594,139,2026,225,9259,370,942,130,314,61,246,41,393,73,1972,144,95,37,436,52,281,53,344,58,3255,171,758,101,1427,121,885,182,1617,146]
[null,"Income in the past 12 months below poverty level:",110,64,51,53,72,55,133,58,18,15,10,10,68,62,102,70,970,199,114,71,34,21,7,5,15,21,93,56,2,3,17,15,14,11,6,6,281,130,71,35,203,125,72,99,235,91]
[null,"Family households:",9,9,33,45,57,52,34,27,5,6,0,12,19,25,23,39,174,92,56,64,20,15,4,4,12,20,79,55,0,12,5,8,3,4,4,5,164,97,24,21,28,32,69,99,159,74]
[null,"Married-couple family:",9,9,33,45,44,52,6,8,3,4,0,12,10,15,0,17,48,48,7,10,13,12,4,4,0,12,59,48,0,12,0,12,3,4,2,3,11,21,6,10,6,9,69,99,49,38]
[null,"Householder under 25 years",0,12,0,12,0,12,0,12,0,12,0,12,0,12,0,17,22,39,0,12,0,12,0,12,0,12,20,31,0,12,0,12,0,12,0,12,0,17,0,12,0,12,0,12,0,12]
[null,"Householder 25 to 44 years",0,12,33,45,0,12,0,12,2,3,0,12,10,15,0,17,6,10,7,10,4,6,0,12,0,12,10,18,0,12,0,12,0,12,0,12,0,17,0,12,0,12,0,12,32,35]
[null,"Householder 45 to 64 years",9,9,0,12,7,7,6,8,0,12,0,12,0,12,0,17,0,22,0,12,9,10,2,3,0,12,29,36,0,12,0,12,3,4,0,12,11,21,0,12,6,9,0,12,0,12]
[null,"Householder 65 years and over",0,12,0,12,37,53,0,12,1,3,0,12,0,12,0,17,20,26,0,12,0,12,2,2,0,12,0,17,0,12,0,12,0,12,2,3,0,17,6,10,0,12,69,99,17,19]
[null,"Other family:",0,12,0,12,13,13,28,24,2,3,0,12,9,24,23,39,126,79,49,64,7,10,0,12,12,20,20,24,0,12,5,8,0,12,2,3,153,94,18,18,22,31,0,12,110,68]
[null,"Male householder, no spouse present:",0,12,0,12,0,12,16,18,0,12,0,12,5,20,0,17,26,30,0,12,0,12,0,12,0,12,0,17,0,12,5,8,0,12,2,3,21,34,7,11,0,12,0,12,26,44]
[null,"Householder under 25 years",0,12,0,12,0,12,0,12,0,12,0,12,0,12,0,17,0,22,0,12,0,12,0,12,0,12,0,17,0,12,0,12,0,12,0,12,0,17,0,12,0,12,0,12,26,44]
[null,"Householder 25 to 44 years",0,12,0,12,0,12,0,12,0,12,0,12,0,12,0,17,26,30,0,12,0,12,0,12,0,12,0,17,0,12,0,12,0,12,0,12,21,34,0,12,0,12,0,12,0,12]
[null,"Householder 45 to 64 years",0,12,0,12,0,12,16,18,0,12,0,12,5,20,0,17,0,22,0,12,0,12,0,12,0,12,0,17,0,12,5,8,0,12,0,12,0,17,7,11,0,12,0,12,0,12]
[null,"Householder 65 years and over",0,12,0,12,0,12,0,12,0,12,0,12,0,12,0,17,0,22,0,12,0,12,0,12,0,12,0,17,0,12,0,12,0,12,2,3,0,17,0,12,0,12,0,12,0,12]
[null,"Female householder, no spouse present:",0,12,0,12,13,13,12,15,2,3,0,12,4,10,23,39,100,71,49,64,7,10,0,12,12,20,20,24,0,12,0,12,0,12,0,12,132,87,11,13,22,31,0,12,84,57]
[null,"Householder under 25 years",0,12,0,12,0,12,0,12,0,12,0,12,0,12,0,17,11,18,0,12,0,12,0,12,0,12,0,17,0,12,0,12,0,12,0,12,0,17,0,12,0,12,0,12,25,38]
[null,"Householder 25 to 44 years",0,12,0,12,4,5,0,12,0,12,0,12,0,12,23,39,89,66,49,64,7,10,0,12,0,12,20,24,0,12,0,12,0,12,0,12,68,66,7,11,12,20,0,12,40,36]
[null,"Householder 45 to 64 years",0,12,0,12,9,12,12,15,2,3,0,12,4,10,0,17,0,22,0,12,0,12,0,12,12,20,0,17,0,12,0,12,0,12,0,12,0,17,4,7,0,12,0,12,19,21]
[null,"Householder 65 years and over",0,12,0,12,0,12,0,12,0,12,0,12,0,12,0,17,0,22,0,12,0,12,0,12,0,12,0,17,0,12,0,12,0,12,0,12,64,75,0,12,10,16,0,12,0,12]
[null,"Nonfamily households:",101,64,18,29,15,11,99,50,13,13,10,10,49,54,79,58,796,194,58,33,14,12,3,4,3,5,14,17,2,3,12,14,11,10,2,4,117,81,47,31,175,118,3,4,76,41]
[null,"Male householder:",33,38,0,12,4,5,45,31,3,5,7,9,6,11,0,17,395,128,22,20,11,11,2,3,0,12,0,17,1,3,10,13,3,4,0,12,90,74,17,20,62,63,3,4,62,42]
[null,"Householder under 25 years",0,12,0,12,0,12,0,12,0,12,0,12,0,12,0,17,149,81,0,12,0,12,0,12,0,12,0,17,0,12,0,12,0,12,0,12,0,17,0,12,0,12,0,12,0,12]
[null,"Householder 25 to 44 years",28,38,0,12,0,12,0,12,1,4,0,12,0,12,0,17,114,89,8,12,0,12,2,3,0,12,0,17,1,3,0,12,0,12,0,12,58,70,0,12,0,12,0,12,26,29]
[null,"Householder 45 to 64 years",5,6,0,12,4,5,31,29,2,3,7,9,6,11,0,17,91,64,4,7,9,11,0,12,0,12,0,17,0,12,10,13,3,4,0,12,12,21,13,22,20,32,0,12,21,23]
[null,"Householder 65 years and over",0,12,0,12,0,12,14,12,0,12,0,12,0,12,0,17,41,34,10,16,2,3,0,12,0,12,0,17,0,12,0,12,0,12,0,12,20,28,4,8,42,55,3,4,15,18]
[null,"Female householder:",68,53,18,29,11,9,54,39,10,12,3,4,43,52,79,58,401,151,36,29,3,4,1,4,3,5,14,17,1,2,2,4,8,9,2,4,27,33,30,24,113,94,0,12,14,17]
[null,"Householder under 25 years",0,12,0,12,0,12,0,12,0,12,0,12,0,12,0,17,51,36,0,12,0,12,0,12,0,12,0,17,0,12,0,12,0,12,0,12,0,17,5,7,0,12,0,12,0,12]
[null,"Householder 25 to 44 years",0,12,0,12,3,4,0,12,1,2,0,12,0,12,0,17,96,88,13,21,0,12,0,12,0,12,0,17,0,12,0,12,0,12,0,12,0,17,7,10,0,12,0,12,0,12]
[null,"Householder 45 to 64 years",0,12,18,29,5,7,23,28,0,12,0,12,14,21,39,48,124,91,17,18,0,12,0,12,0,12,0,17,0,12,0,12,0,12,0,12,27,33,13,19,12,20,0,12,0,12]
[null,"Householder 65 years and over",68,53,0,12,3,4,31,30,9,12,3,4,29,47,40,38,130,86,6,9,3,4,1,4,3,5,14,17,1,2,2,4,8,9,2,4,0,17,5,7,101,92,0,12,14,17]
[null,"Income in the past 12 months at or above poverty level:",613,80,1315,175,563,79,880,144,292,53,406,73,1526,155,1924,249,8289,374,828,135,280,60,239,43,378,72,1879,156,93,37,419,53,267,53,338,59,2974,182,687,96,1224,116,813,144,1382,172]
[null,"Family households:",445,73,970,146,470,81,585,122,225,44,313,70,1030,147,1351,165,4367,293,501,112,227,58,163,39,304,67,1372,129,66,37,292,46,193,45,258,60,1925,218,473,87,855,100,600,113,750,121]
[null,"Married-couple family:",380,74,815,161,410,82,475,78,190,37,271,66,874,154,1202,191,3345,288,439,100,214,55,132,32,245,57,1309,127,57,37,259,45,164,45,231,60,1572,259,353,72,711,99,540,101,664,114]
[null,"Householder under 25 years",0,12,26,41,3,4,22,28,0,12,0,12,0,12,0,17,0,22,0,12,0,12,0,12,0,12,7,11,0,12,5,9,0,12,2,4,0,17,6,10,0,12,0,12,24,34]
[null,"Householder 25 to 44 years",51,27,155,101,67,33,116,43,45,18,70,49,154,65,282,131,918,169,108,47,57,32,28,14,54,25,369,78,8,5,53,23,60,38,71,35,312,149,135,43,197,91,87,38,210,96]
[null,"Householder 45 to 64 years",200,70,298,147,205,75,178,55,79,26,91,39,410,113,718,163,1480,281,212,73,81,32,54,23,125,43,548,113,39,36,131,35,74,23,64,31,608,160,117,49,312,67,276,75,297,73]
[null,"Householder 65 years and over",129,48,336,103,135,38,159,46,66,24,110,34,310,159,202,85,947,163,119,40,76,37,50,21,66,24,385,108,10,6,70,23,30,10,94,36,652,170,95,39,202,51,177,50,133,61]
[null,"Other family:",65,21,155,87,60,26,110,97,35,27,42,22,156,92,149,74,1022,212,62,30,13,13,31,18,59,36,63,41,9,11,33,20,29,19,27,16,353,180,120,49,144,70,60,58,86,45]
[null,"Male householder, no spouse present:",13,11,18,29,35,22,39,28,10,12,12,10,76,71,36,38,308,149,21,22,8,12,10,10,41,37,35,38,8,11,14,15,21,17,4,4,126,108,50,33,43,30,11,9,0,12]
[null,"Householder under 25 years",0,12,0,12,0,12,0,12,0,12,0,12,0,12,0,17,27,43,0,12,0,12,0,12,0,12,0,17,0,12,0,12,0,12,0,12,0,17,0,12,0,12,3,5,0,12]
[null,"Householder 25 to 44 years",5,7,0,12,9,13,8,12,7,11,4,6,10,17,18,24,94,86,12,19,0,12,7,10,8,13,35,38,0,12,11,14,4,5,2,3,43,65,37,33,29,27,0,12,0,12]
[null,"Householder 45 to 64 years",8,8,18,29,25,16,29,26,0,12,6,7,15,24,18,29,169,108,9,11,8,12,0,12,11,15,0,17,7,10,3,4,2,3,2,3,83,89,7,9,7,10,6,6,0,12]
[null,"Householder 65 years and over",0,12,0,12,1,2,2,3,3,5,2,5,51,69,0,17,18,28,0,12,0,12,3,3,22,30,0,17,1,2,0,12,15,15,0,12,0,17,6,8,7,11,2,4,0,12]
[null,"Female householder, no spouse present:",52,20,137,81,25,15,71,91,25,26,30,19,80,59,113,75,714,163,41,26,5,5,21,14,18,14,28,32,1,2,19,13,8,7,23,15,227,127,70,35,101,62,49,58,86,45]
[null,"Householder under 25 years",0,12,0,12,0,12,0,12,3,4,0,12,0,12,0,17,41,65,0,12,0,12,0,12,0,12,0,17,0,12,0,12,0,12,0,12,0,17,0,12,0,12,0,12,0,12]
[null,"Householder 25 to 44 years",13,11,67,64,0,12,0,12,0,12,7,7,13,21,46,46,230,99,19,21,0,12,7,9,0,12,0,17,0,12,4,5,3,4,0,12,178,119,32,26,7,12,46,58,30,31]
[null,"Householder 45 to 64 years",28,15,36,39,6,7,6,9,22,26,23,18,53,55,14,21,382,125,12,13,2,3,7,6,11,10,28,32,0,12,13,11,3,4,11,8,25,30,13,15,65,59,0,12,20,20]
[null,"Householder 65 years and over",11,10,34,38,19,15,65,91,0,12,0,12,14,15,53,54,61,48,10,12,3,4,7,8,7,8,0,17,1,2,2,5,2,3,12,13,24,32,25,19,29,24,3,4,36,31]
[null,"Nonfamily households:",168,56,345,164,93,30,295,75,67,28,93,28,496,131,573,276,3922,453,327,80,53,17,76,23,74,28,507,144,27,12,127,39,74,24,80,24,1049,244,214,72,369,115,213,94,632,167]
[null,"Male householder:",64,41,210,118,57,26,119,58,26,15,45,21,331,119,339,236,1641,308,153,69,30,13,36,19,48,24,290,110,13,10,64,29,27,14,45,22,614,193,109,50,222,95,106,68,363,134]
[null,"Householder under 25 years",0,12,0,12,0,12,0,12,0,12,0,12,9,14,0,17,210,105,0,12,0,12,0,12,0,12,14,23,0,12,0,12,0,12,0,12,51,51,0,12,5,9,0,12,0,12]
[null,"Householder 25 to 44 years",24,23,19,30,12,12,9,9,6,9,6,6,69,52,61,59,687,242,63,41,0,12,4,4,3,5,115,87,5,7,7,6,10,10,6,5,31,33,49,35,39,40,31,31,96,73]
[null,"Householder 45 to 64 years",35,33,0,12,33,23,79,53,13,9,12,11,91,61,255,228,397,141,34,33,18,13,15,12,14,12,96,65,7,8,37,27,6,5,23,19,353,195,4,6,95,57,58,46,181,92]
[null,"Householder 65 years and over",5,6,191,124,12,7,31,16,7,6,27,17,162,107,23,26,347,137,56,40,12,7,17,12,31,20,65,44,1,2,20,12,11,8,16,9,179,85,56,37,83,57,17,19,86,49]
[null,"Female householder:",104,44,135,103,36,17,176,62,41,18,48,22,165,64,234,143,2281,327,174,53,23,10,40,15,26,16,217,96,14,9,63,24,47,19,35,15,435,151,105,51,147,70,107,54,269,105]
[null,"Householder under 25 years",0,12,0,12,0,12,4,7,0,12,0,12,0,12,49,74,131,78,0,12,3,4,0,12,0,12,0,17,0,12,0,12,0,12,2,3,0,17,0,12,0,12,2,3,39,49]
[null,"Householder 25 to 44 years",24,21,0,12,6,7,43,35,10,11,0,12,28,31,17,28,716,193,60,41,2,3,6,5,2,4,34,41,2,3,6,6,7,6,2,3,120,79,21,23,29,30,4,6,6,11]
[null,"Householder 45 to 64 years",9,9,96,90,7,8,89,46,15,11,11,9,79,50,21,33,393,136,37,26,2,4,10,8,0,12,65,47,4,4,21,16,22,14,7,6,112,72,56,41,67,51,34,34,95,60]
[null,"Householder 65 years and over",71,37,39,44,23,12,40,22,16,9,37,20,58,36,147,89,1041,260,77,29,16,11,24,14,24,16,118,76,8,7,36,15,18,9,24,13,203,92,28,22,51,35,67,40,129,81]
[]
[]
[]
[]
[]
[]
[]
[]
[]
[null,"B17017. POVERTY STATUS IN THE PAST 12 MONTHS BY HOUSEHOLD TYPE BY AGE OF HOUSEHOLDER"]
[null,"Universe: HOUSEHOLDS"]
[null,"Data Set: 2013-2017 American Community Survey 5-Year Estimates"]
[]
[null,null,"Alstead",null,"Chesterfield",null,"Dublin",null,"Fitzwilliam",null,"Gilsum",null,"Harrisville",null,"Hinsdale",null,"Jaffrey",null,"Keene",null,"Marlborough",null,"Marlow",null,"Nelson",null,"Richmond",null,"Rindge",null,"Roxbury",null,"Stoddard",null,"Sullivan",null,"Surry",null,"Swanzey",null,"Troy",null,"Walpole",null,"Westmoreland",null,"Winchester"]
[null," ","Estimate","Margin of Error","Estimate","Margin of Error","Estimate","Margin of Error","Estimate","Margin of Error","Estimate","Margin of Error","Estimate","Margin of Error","Estimate","Margin of Error","Estimate","Margin of Error","Estimate","Margin of Error","Estimate","Margin of Error","Estimate","Margin of Error","Estimate","Margin of Error","Estimate","Margin of Error","Estimate","Margin of Error","Estimate","Margin of Error","Estimate","Margin of Error","Estimate","Margin of Error","Estimate","Margin of Error","Estimate","Margin of Error","Estimate","Margin of Error","Estimate","Margin of Error","Estimate","Margin of Error","Estimate","Margin of Error"]
[null,"Total:",776,79,1443,147,584,63,1002,92,283,34,437,53,1749,117,9391,370,9449,367,906,99,282,42,226,33,439,50,1883,144,84,27,484,60,293,50,371,45,2828,180,888,87,1631,93,656,77,1718,160]
[null,"Income in the past 12 months below poverty level:",136,62,63,73,23,12,78,43,34,16,15,14,197,107,1378,263,1460,291,68,43,23,14,21,16,45,32,208,92,4,4,9,9,23,12,9,7,226,112,63,43,95,76,32,23,145,88]
[null,"Family households:",47,33,0,11,9,8,15,13,6,5,8,12,73,68,299,103,307,95,35,32,10,7,12,14,30,28,50,47,0,11,2,5,7,5,2,3,171,110,20,24,43,62,21,18,66,62]
[null,"Married-couple family:",8,9,0,11,6,7,15,13,4,4,8,12,19,20,64,45,104,70,0,11,8,7,0,11,0,11,10,15,0,11,0,11,5,5,2,3,0,16,6,9,0,11,4,6,16,17]
[null,"Householder under 25 years",3,4,0,11,0,11,0,11,2,3,0,11,0,11,0,21,0,20,0,11,0,11,0,11,0,11,0,16,0,11,0,11,0,11,0,11,0,16,0,11,0,11,0,11,0,11]
[null,"Householder 25 to 44 years",0,11,0,11,3,6,0,11,2,3,0,11,10,15,49,42,77,64,0,11,0,11,0,11,0,11,0,16,0,11,0,11,0,11,0,11,0,16,6,9,0,11,0,11,0,11]
[null,"Householder 45 to 64 years",0,11,0,11,0,11,11,12,0,11,8,12,0,11,10,15,10,15,0,11,4,5,0,11,0,11,10,15,0,11,0,11,3,4,0,11,0,16,0,11,0,11,0,11,0,11]
[null,"Householder 65 years and over",5,8,0,11,3,4,4,6,0,11,0,11,9,14,5,12,17,23,0,11,4,4,0,11,0,11,0,16,0,11,0,11,2,3,2,3,0,16,0,11,0,11,4,6,16,17]
[null,"Other family:",39,32,0,11,3,4,0,11,2,2,0,11,54,63,235,95,203,83,35,32,2,3,12,14,30,28,40,44,0,11,2,5,2,4,0,11,171,110,14,22,43,62,17,17,50,60]
[null,"Male householder, no wife present:",0,11,0,11,0,11,0,11,0,11,0,11,9,14,51,43,59,63,13,21,0,11,0,11,5,7,25,40,0,11,2,5,0,11,0,11,0,16,14,22,0,11,0,11,0,11]
[null,"Householder under 25 years",0,11,0,11,0,11,0,11,0,11,0,11,0,11,14,21,13,20,0,11,0,11,0,11,0,11,25,40,0,11,0,11,0,11,0,11,0,16,0,11,0,11,0,11,0,11]
[null,"Householder 25 to 44 years",0,11,0,11,0,11,0,11,0,11,0,11,0,11,37,39,46,59,13,21,0,11,0,11,0,11,0,16,0,11,2,5,0,11,0,11,0,16,14,22,0,11,0,11,0,11]
[null,"Householder 45 to 64 years",0,11,0,11,0,11,0,11,0,11,0,11,0,11,0,21,0,20,0,11,0,11,0,11,5,7,0,16,0,11,0,11,0,11,0,11,0,16,0,11,0,11,0,11,0,11]
[null,"Householder 65 years and over",0,11,0,11,0,11,0,11,0,11,0,11,9,14,0,21,0,20,0,11,0,11,0,11,0,11,0,16,0,11,0,11,0,11,0,11,0,16,0,11,0,11,0,11,0,11]
[null,"Female householder, no husband present:",39,32,0,11,3,4,0,11,2,2,0,11,45,62,184,91,144,72,22,26,2,3,12,14,25,27,15,20,0,11,0,11,2,4,0,11,171,110,0,11,43,62,17,17,50,60]
[null,"Householder under 25 years",0,11,0,11,0,11,0,11,0,11,0,11,35,60,49,47,41,42,0,11,0,11,0,11,0,11,0,16,0,11,0,11,0,11,0,11,80,86,0,11,43,62,0,11,0,11]
[null,"Householder 25 to 44 years",39,32,0,11,0,11,0,11,0,11,0,11,10,16,97,64,76,52,22,26,2,3,12,14,15,22,6,11,0,11,0,11,2,4,0,11,42,58,0,11,0,11,9,14,13,22]
[null,"Householder 45 to 64 years",0,11,0,11,3,4,0,11,0,11,0,11,0,11,38,35,27,31,0,11,0,11,0,11,10,16,9,15,0,11,0,11,0,11,0,11,49,59,0,11,0,11,8,9,37,57]
[null,"Householder 65 years and over",0,11,0,11,0,11,0,11,2,2,0,11,0,11,0,21,0,20,0,11,0,11,0,11,0,11,0,16,0,11,0,11,0,11,0,11,0,16,0,11,0,11,0,11,0,11]
[null,"Nonfamily households:",89,50,63,73,14,9,63,38,28,16,7,6,124,87,1079,234,1153,266,33,33,13,13,9,7,15,15,158,83,4,4,7,7,16,11,7,6,55,39,43,36,52,33,11,14,79,62]
[null,"Male householder:",28,23,14,20,8,7,21,14,12,8,7,6,41,31,341,134,429,178,18,30,7,11,9,7,4,6,65,53,2,3,0,11,4,4,7,6,17,27,17,26,32,26,0,11,26,25]
[null,"Householder under 25 years",0,11,0,11,0,11,0,11,0,11,0,11,0,11,143,97,152,106,0,11,0,11,0,11,0,11,21,33,0,11,0,11,0,11,0,11,0,16,0,11,0,11,0,11,0,11]
[null,"Householder 25 to 44 years",19,24,0,11,0,11,11,11,4,5,0,11,0,11,51,52,74,69,0,11,0,11,0,11,0,11,44,44,2,3,0,11,2,4,0,11,0,16,0,11,0,11,0,11,0,11]
[null,"Householder 45 to 64 years",5,7,0,11,6,6,6,8,5,5,7,6,21,22,51,46,106,67,18,30,5,9,9,7,4,6,0,16,0,11,0,11,0,11,0,11,17,27,17,26,15,17,0,11,26,25]
[null,"Householder 65 years and over",4,5,14,20,2,3,4,6,3,4,0,11,20,22,96,75,97,88,0,11,2,5,0,11,0,11,0,16,0,11,0,11,2,3,7,6,0,16,0,11,17,19,0,11,0,11]
[null,"Female householder:",61,45,49,80,6,6,42,36,16,14,0,11,83,79,738,203,724,190,15,14,6,5,0,11,11,13,93,61,2,5,7,7,12,11,0,11,38,28,26,25,20,20,11,14,53,56]
[null,"Householder under 25 years",0,11,0,11,0,11,0,11,2,4,0,11,0,11,359,134,299,125,5,8,0,11,0,11,0,11,0,16,0,11,0,11,5,8,0,11,0,16,0,11,0,11,0,11,0,11]
[null,"Householder 25 to 44 years",22,22,0,11,0,11,0,11,0,11,0,11,0,11,97,60,130,101,0,11,0,11,0,11,0,11,7,14,0,11,0,11,0,11,0,11,13,20,0,11,0,11,0,11,5,11]
[null,"Householder 45 to 64 years",27,31,49,80,3,4,25,30,12,12,0,11,48,68,47,46,58,49,5,9,2,4,0,11,11,13,69,56,1,4,7,7,0,11,0,11,0,16,1,4,11,13,0,11,48,55]
[null,"Householder 65 years and over",12,19,0,11,3,4,17,20,2,3,0,11,35,43,235,115,237,110,5,7,4,4,0,11,0,11,17,20,1,2,0,11,7,8,0,11,25,29,25,25,9,15,11,14,0,11]
[null,"Income in the past 12 months at or above poverty level:",640,89,1380,133,561,67,924,83,249,30,422,50,1552,90,8013,341,7989,421,838,104,259,39,205,33,394,49,1675,146,80,26,475,58,270,46,362,45,2602,203,825,87,1536,102,624,81,1573,146]
[null,"Family households:",421,78,1063,126,407,56,614,73,191,29,265,46,1023,77,4801,268,4809,312,492,87,194,37,149,28,298,44,1286,123,65,24,366,51,175,36,284,43,1827,197,547,91,986,102,517,80,1020,140]
[null,"Married-couple family:",357,69,991,119,373,54,589,72,165,27,233,42,765,106,3470,323,3440,257,435,83,166,34,123,25,263,43,1160,125,59,20,340,52,147,34,237,36,1516,196,391,79,793,107,489,81,688,129]
[null,"Householder under 25 years",0,11,0,11,0,11,0,11,1,2,0,11,0,11,27,35,24,30,39,43,0,11,0,11,3,4,13,21,0,11,0,11,6,9,0,11,0,16,0,11,6,11,0,11,0,11]
[null,"Householder 25 to 44 years",68,31,280,95,67,29,145,40,35,14,36,19,206,82,1031,200,960,169,88,36,48,23,32,18,54,24,412,65,19,13,101,35,41,19,53,23,398,106,118,59,233,68,88,37,203,80]
[null,"Householder 45 to 64 years",191,47,372,97,212,46,284,60,91,24,109,27,355,77,1593,201,1590,196,198,64,78,22,57,17,150,36,453,76,29,13,130,38,76,24,112,29,711,140,200,57,343,74,294,61,301,108]
[null,"Householder 65 years and over",98,38,339,97,94,30,160,50,38,13,88,28,204,64,819,127,866,142,110,31,40,12,34,16,56,20,282,67,11,7,109,32,24,13,72,23,407,99,73,31,211,58,107,40,184,43]
[null,"Other family:",64,37,72,69,34,24,25,15,26,11,32,18,258,96,1331,294,1369,250,57,31,28,12,26,13,35,21,126,60,6,7,26,18,28,13,47,22,311,139,156,63,193,82,28,18,332,112]
[null,"Male householder, no wife present:",34,28,17,24,8,14,7,10,11,8,20,16,90,75,382,154,366,155,21,20,4,5,12,11,13,17,42,35,3,6,5,6,10,6,28,20,113,101,89,52,57,51,11,12,155,79]
[null,"Householder under 25 years",0,11,0,11,0,11,0,11,0,11,0,11,0,11,24,39,19,29,0,11,0,11,0,11,0,11,0,16,0,11,0,11,0,11,3,5,0,16,6,10,0,11,0,11,40,64]
[null,"Householder 25 to 44 years",6,8,0,11,0,11,0,11,0,11,9,13,65,71,189,83,180,94,15,18,2,3,0,11,0,11,11,17,1,3,0,11,0,11,13,14,93,93,45,32,0,11,0,11,48,51]
[null,"Householder 45 to 64 years",28,26,17,24,8,14,7,10,9,7,11,8,25,26,143,110,149,119,6,9,2,4,10,10,4,6,11,20,1,3,5,6,8,5,5,5,20,30,38,37,28,26,11,12,54,56]
[null,"Householder 65 years and over",0,11,0,11,0,11,0,11,2,3,0,11,0,11,26,22,18,18,0,11,0,11,2,3,9,16,20,23,1,2,0,11,2,3,7,9,0,16,0,11,29,44,0,11,13,21]
[null,"Female householder, no husband present:",30,20,55,65,26,18,18,13,15,8,12,9,168,91,949,262,1003,197,36,28,24,11,14,8,22,14,84,53,3,4,21,17,18,13,19,13,198,106,67,42,136,63,17,13,177,84]
[null,"Householder under 25 years",0,11,0,11,0,11,0,11,0,11,2,5,0,11,73,79,49,71,0,11,0,11,0,11,0,11,0,16,0,11,0,11,0,11,0,11,0,16,0,11,0,11,0,11,0,11]
[null,"Householder 25 to 44 years",16,17,17,26,4,6,0,11,0,11,4,5,56,64,335,138,401,147,16,24,6,6,5,5,11,12,41,38,2,3,7,6,0,11,11,13,38,40,25,26,0,11,8,8,95,64]
[null,"Householder 45 to 64 years",9,9,0,11,16,16,12,10,11,8,3,4,54,38,440,168,412,122,15,13,10,7,7,5,11,9,25,33,1,3,14,14,10,12,6,5,97,75,42,33,98,51,9,9,59,45]
[null,"Householder 65 years and over",5,8,38,60,6,6,6,9,4,3,3,4,58,42,101,55,141,62,5,7,8,5,2,3,0,11,18,19,0,11,0,11,8,6,2,3,63,48,0,11,38,32,0,11,23,21]
[null,"Nonfamily households:",219,59,317,120,154,52,310,78,58,19,157,38,529,108,3212,354,3180,328,346,89,65,23,56,19,96,34,389,105,15,9,109,35,95,29,78,26,775,197,278,67,550,110,107,34,553,154]
[null,"Male householder:",122,44,164,83,61,29,204,63,15,11,58,27,216,84,1508,268,1481,281,174,59,54,22,24,14,46,25,217,72,10,7,67,31,42,17,40,19,260,142,161,53,313,93,53,26,189,80]
[null,"Householder under 25 years",0,11,0,11,0,11,6,9,3,6,0,11,12,18,144,110,223,140,6,9,0,11,0,11,0,11,39,40,2,3,0,11,0,11,0,11,0,16,0,11,43,38,5,8,14,22]
[null,"Householder 25 to 44 years",35,25,35,37,10,9,34,28,4,5,4,5,70,52,578,159,523,168,45,37,14,13,0,11,9,14,57,48,0,11,24,22,5,5,16,12,97,104,15,18,78,54,6,10,0,11]
[null,"Householder 45 to 64 years",49,28,117,69,37,26,97,45,6,5,35,24,99,57,413,133,481,137,61,43,20,10,12,12,22,14,51,38,5,6,20,15,25,14,16,13,130,90,85,44,89,60,34,19,148,75]
[null,"Householder 65 years and over",38,26,12,20,14,11,67,37,2,3,19,12,35,28,373,140,254,95,62,39,20,15,12,7,15,13,70,46,3,4,23,16,12,6,8,9,33,31,61,36,103,49,8,10,27,25]
[null,"Female householder:",97,39,153,62,93,38,106,39,43,17,99,28,313,100,1704,285,1699,214,172,67,11,7,32,13,50,26,172,75,5,6,42,21,53,24,38,18,515,163,117,53,237,77,54,22,364,129]
[null,"Householder under 25 years",4,6,0,11,5,6,0,11,0,11,5,5,61,59,88,83,109,81,4,7,0,11,0,11,0,11,0,16,1,2,0,11,0,11,0,11,18,32,0,11,0,11,0,11,12,19]
[null,"Householder 25 to 44 years",14,11,16,23,16,17,0,11,12,8,0,11,0,11,211,94,239,86,13,13,1,3,6,6,7,11,17,20,0,11,0,11,3,4,2,3,152,100,37,36,38,34,0,11,58,43]
[null,"Householder 45 to 64 years",22,13,85,47,32,24,33,25,20,14,37,17,84,42,458,142,432,121,84,45,3,4,8,7,15,18,58,46,1,3,12,9,27,18,15,14,168,80,46,33,134,53,20,14,103,70]
[null,"Householder 65 years and over",57,30,52,40,40,22,73,28,11,8,57,24,168,80,947,185,919,179,71,44,7,6,18,12,28,19,97,54,3,4,30,18,23,13,21,13,177,83,34,27,65,44,34,16,191,87]
[]
[]
[]
[]
[]
[]
[]
[]
[]
[null,"B17017. POVERTY STATUS IN THE PAST 12 MONTHS BY HOUSEHOLD TYPE BY AGE OF HOUSEHOLDER"]
[null,"Universe: HOUSEHOLDS"]
[null,"Data Set: 2008-2012 American Community Survey 5-Year Estimates"]
[]
[null,null,"Alstead",null,"Chesterfield",null,"Dublin",null,"Fitzwilliam",null,"Gilsum",null,"Harrisville",null,"Hinsdale",null,"Jaffrey",null,"Keene",null,"Marlborough",null,"Marlow",null,"Nelson",null,"Richmond",null,"Rindge",null,"Roxbury",null,"Stoddard",null,"Sullivan",null,"Surry",null,"Swanzey",null,"Troy",null,"Walpole",null,"Westmoreland",null,"Winchester"]
[null," ","Estimate","Margin of Error","Estimate","Margin of Error","Estimate","Margin of Error","Estimate","Margin of Error","Estimate","Margin of Error","Estimate","Margin of Error","Estimate","Margin of Error","Estimate","Margin of Error","Estimate","Margin of Error","Estimate","Margin of Error","Estimate","Margin of Error","Estimate","Margin of Error","Estimate","Margin of Error","Estimate","Margin of Error","Estimate","Margin of Error","Estimate","Margin of Error","Estimate","Margin of Error","Estimate","Margin of Error","Estimate","Margin of Error","Estimate","Margin of Error","Estimate","Margin of Error","Estimate","Margin of Error","Estimate","Margin of Error"]
[null,"Total:",730,81,1414,96,585,68,1075,101,244,40,407,55,1835,138,2314,194,9028,446,870,92,358,66,339,58,415,55,1868,171,101,22,432,73,258,46,335,48,2921,163,770,92,1414,121,707,81,1721,134]
[null,"Income in the past 12 months below poverty level:",27,18,60,46,31,15,44,33,11,10,23,22,114,61,167,104,1390,297,46,24,30,23,34,23,16,12,346,102,9,9,23,17,14,13,13,9,161,65,54,36,164,79,20,11,341,103]
[null,"Family households:",6,9,9,15,13,10,20,24,6,6,0,85,40,36,48,60,339,134,5,8,8,9,27,21,7,7,146,70,2,4,12,15,8,12,5,6,17,22,35,31,30,28,14,11,221,84]
[null,"Married-couple family:",6,9,0,85,8,12,16,23,0,85,0,85,29,31,0,85,165,86,5,8,4,5,7,7,0,85,44,32,0,85,2,5,0,85,3,4,0,85,26,28,5,8,6,7,105,78]
[null,"Householder under 25 years",6,9,0,85,0,85,0,85,0,85,0,85,0,85,0,85,0,85,0,85,0,85,0,85,0,85,0,85,0,85,0,85,0,85,0,85,0,85,0,85,0,85,0,85,27,34]
[null,"Householder 25 to 44 years",0,85,0,85,0,85,0,85,0,85,0,85,0,85,0,85,50,50,0,85,0,85,0,85,0,85,37,30,0,85,0,85,0,85,0,85,0,85,22,28,5,8,0,85,41,57]
[null,"Householder 45 to 64 years",0,85,0,85,8,12,16,23,0,85,0,85,0,85,0,85,43,40,0,85,4,5,3,4,0,85,7,11,0,85,0,85,0,85,3,4,0,85,4,7,0,85,6,7,37,47]
[null,"Householder 65 years and over",0,85,0,85,0,85,0,85,0,85,0,85,29,31,0,85,72,44,5,8,0,85,4,5,0,85,0,85,0,85,2,5,0,85,0,85,0,85,0,85,0,85,0,85,0,85]
[null,"Other family:",0,85,9,15,5,7,4,6,6,6,0,85,11,17,48,60,174,90,0,85,4,7,20,20,7,7,102,67,2,4,10,14,8,12,2,3,17,22,9,11,25,27,8,8,116,59]
[null,"Male householder, no wife present:",0,85,0,85,0,85,4,6,3,4,0,85,0,85,0,85,13,21,0,85,4,7,20,20,0,85,9,14,0,85,10,14,0,85,0,85,0,85,0,85,0,85,3,5,26,43]
[null,"Householder under 25 years",0,85,0,85,0,85,0,85,0,85,0,85,0,85,0,85,13,21,0,85,0,85,0,85,0,85,0,85,0,85,0,85,0,85,0,85,0,85,0,85,0,85,0,85,0,85]
[null,"Householder 25 to 44 years",0,85,0,85,0,85,4,6,3,4,0,85,0,85,0,85,0,85,0,85,4,7,18,20,0,85,9,14,0,85,0,85,0,85,0,85,0,85,0,85,0,85,0,85,26,43]
[null,"Householder 45 to 64 years",0,85,0,85,0,85,0,85,0,85,0,85,0,85,0,85,0,85,0,85,0,85,2,4,0,85,0,85,0,85,10,14,0,85,0,85,0,85,0,85,0,85,0,85,0,85]
[null,"Householder 65 years and over",0,85,0,85,0,85,0,85,0,85,0,85,0,85,0,85,0,85,0,85,0,85,0,85,0,85,0,85,0,85,0,85,0,85,0,85,0,85,0,85,0,85,3,5,0,85]
[null,"Female householder, no husband present:",0,85,9,15,5,7,0,85,3,5,0,85,11,17,48,60,161,87,0,85,0,85,0,85,7,7,93,65,2,4,0,85,8,12,2,3,17,22,9,11,25,27,5,7,90,51]
[null,"Householder under 25 years",0,85,0,85,0,85,0,85,0,85,0,85,0,85,27,51,24,40,0,85,0,85,0,85,0,85,0,85,0,85,0,85,0,85,0,85,11,17,0,85,18,25,0,85,0,85]
[null,"Householder 25 to 44 years",0,85,9,15,5,7,0,85,3,5,0,85,11,17,0,85,110,60,0,85,0,85,0,85,0,85,55,59,0,85,0,85,8,12,0,85,6,12,6,9,0,85,5,7,50,40]
[null,"Householder 45 to 64 years",0,85,0,85,0,85,0,85,0,85,0,85,0,85,21,25,0,85,0,85,0,85,0,85,7,7,29,29,2,4,0,85,0,85,2,3,0,85,3,6,7,11,0,85,31,45]
[null,"Householder 65 years and over",0,85,0,85,0,85,0,85,0,85,0,85,0,85,0,85,27,44,0,85,0,85,0,85,0,85,9,14,0,85,0,85,0,85,0,85,0,85,0,85,0,85,0,85,9,14]
[null,"Nonfamily households:",21,17,51,43,18,10,24,24,5,8,23,22,74,53,119,78,1051,245,41,22,22,21,7,11,9,9,200,81,7,8,11,11,6,6,8,7,144,62,19,15,134,77,6,7,120,66]
[null,"Male householder:",3,4,51,43,6,4,11,18,5,8,10,15,13,20,24,40,520,183,9,12,16,20,7,11,4,6,92,52,7,8,8,10,6,6,2,4,68,46,4,7,48,36,3,5,69,51]
[null,"Householder under 25 years",0,85,0,85,0,85,0,85,0,85,0,85,0,85,0,85,293,134,0,85,0,85,0,85,0,85,84,51,0,85,0,85,0,85,0,85,17,25,0,85,0,85,0,85,0,85]
[null,"Householder 25 to 44 years",3,4,13,19,0,85,0,85,0,85,0,85,0,85,24,40,142,89,0,85,0,85,7,11,0,85,0,85,0,85,0,85,0,85,0,85,8,14,0,85,17,23,0,85,10,14]
[null,"Householder 45 to 64 years",0,85,22,22,6,4,11,18,5,8,0,85,0,85,0,85,72,57,9,12,6,11,0,85,0,85,8,13,7,8,8,10,6,6,2,4,20,34,0,85,24,29,3,5,59,50]
[null,"Householder 65 years and over",0,85,16,24,0,85,0,85,0,85,10,15,13,20,0,85,13,20,0,85,10,17,0,85,4,6,0,85,0,85,0,85,0,85,0,85,23,29,4,7,7,12,0,85,0,85]
[null,"Female householder:",18,17,0,85,12,10,13,15,0,85,13,15,61,48,95,63,531,175,32,19,6,7,0,85,5,5,108,59,0,85,3,5,0,85,6,6,76,65,15,13,86,72,3,6,51,43]
[null,"Householder under 25 years",3,4,0,85,0,85,0,85,0,85,0,85,0,85,0,85,199,93,0,85,0,85,0,85,0,85,71,39,0,85,0,85,0,85,0,85,0,85,0,85,0,85,0,85,0,85]
[null,"Householder 25 to 44 years",0,85,0,85,4,5,0,85,0,85,0,85,11,17,12,20,117,93,9,13,0,85,0,85,0,85,0,85,0,85,0,85,0,85,0,85,0,85,4,6,35,41,0,85,33,37]
[null,"Householder 45 to 64 years",6,7,0,85,3,4,7,12,0,85,0,85,0,85,55,43,92,51,8,11,0,85,0,85,0,85,25,40,0,85,3,5,0,85,0,85,0,85,0,85,22,38,0,85,18,21]
[null,"Householder 65 years and over",9,14,0,85,5,7,6,9,0,85,13,15,50,43,28,32,123,75,15,13,6,7,0,85,5,5,12,18,0,85,0,85,0,85,6,6,76,65,11,12,29,35,3,6,0,85]
[null,"Income in the past 12 months at or above poverty level:",703,82,1354,97,554,69,1031,105,233,40,384,50,1721,142,2147,172,7638,440,824,92,328,60,305,54,399,54,1522,196,92,21,409,71,244,47,322,48,2760,163,716,97,1250,114,687,83,1380,156]
[null,"Family households:",469,62,1101,113,429,61,622,95,164,35,239,41,1058,124,1430,123,4373,249,640,95,279,56,218,48,295,49,1121,148,78,19,317,67,189,40,259,46,1904,125,530,88,940,87,550,69,934,126]
[null,"Married-couple family:",390,60,895,141,377,56,564,91,143,34,209,43,797,143,1212,141,3432,237,532,85,262,58,189,49,263,51,952,151,65,19,252,56,158,33,223,40,1567,139,421,79,752,105,507,68,695,107]
[null,"Householder under 25 years",0,85,0,85,0,85,0,85,0,85,2,4,16,25,0,85,8,12,0,85,0,85,0,85,0,85,0,85,1,2,0,85,0,85,4,7,15,29,0,85,9,16,4,6,0,85]
[null,"Householder 25 to 44 years",140,35,242,84,70,30,93,37,22,17,46,23,242,84,490,123,1115,157,182,79,73,35,31,20,88,35,317,81,15,12,56,31,69,23,66,23,499,101,132,51,232,91,99,34,174,86]
[null,"Householder 45 to 64 years",170,37,387,95,217,51,346,73,104,30,124,32,364,77,539,92,1639,162,229,55,130,49,131,43,138,36,414,96,36,13,142,45,65,23,110,34,736,111,229,55,374,91,283,63,395,78]
[null,"Householder 65 years and over",80,27,266,113,90,30,125,45,17,9,37,18,175,95,183,72,670,109,121,32,59,29,27,14,37,15,221,72,13,7,54,22,24,12,43,18,317,91,60,32,137,45,121,37,126,36]
[null,"Other family:",79,31,206,78,52,30,58,37,21,12,30,19,261,103,218,119,941,166,108,58,17,14,29,21,32,21,169,69,13,10,65,35,31,25,36,21,337,113,109,51,188,74,43,20,239,90]
[null,"Male householder, no wife present:",30,17,35,39,16,16,27,26,11,10,8,7,131,81,103,95,403,134,35,43,4,6,2,3,11,9,92,56,5,6,29,27,10,13,2,4,134,73,25,21,48,41,17,14,52,45]
[null,"Householder under 25 years",6,9,0,85,0,85,0,85,0,85,0,85,0,85,0,85,0,85,0,85,0,85,0,85,0,85,0,85,0,85,7,10,0,85,0,85,0,85,0,85,0,85,0,85,0,85]
[null,"Householder 25 to 44 years",10,11,0,85,9,14,17,23,8,9,0,85,0,85,0,85,130,101,0,85,0,85,2,3,3,6,42,39,3,5,14,16,0,85,0,85,20,32,16,18,25,32,5,8,32,39]
[null,"Householder 45 to 64 years",14,12,35,39,0,85,10,12,3,5,8,7,91,74,41,65,201,88,35,43,4,6,0,85,6,6,50,39,0,85,8,13,10,13,0,85,98,71,6,9,23,27,12,12,11,20]
[null,"Householder 65 years and over",0,85,0,85,7,9,0,85,0,85,0,85,40,35,62,67,72,50,0,85,0,85,0,85,2,4,0,85,2,3,0,85,0,85,2,4,16,21,3,6,0,85,0,85,9,14]
[null,"Female householder, no husband present:",49,26,171,71,36,25,31,27,10,8,22,18,130,80,115,68,538,125,73,43,13,12,27,21,21,19,77,54,8,9,36,23,21,22,34,20,203,93,84,48,140,68,26,16,187,87]
[null,"Householder under 25 years",0,85,0,85,0,85,0,85,0,85,0,85,0,85,27,43,0,85,0,85,0,85,7,12,0,85,0,85,0,85,0,85,0,85,9,14,0,85,8,13,16,28,2,4,0,85]
[null,"Householder 25 to 44 years",18,20,36,38,22,21,0,85,2,4,5,8,41,32,25,38,107,59,55,39,4,7,9,14,6,8,29,46,8,9,34,23,18,21,9,9,49,44,52,46,92,62,12,11,118,73]
[null,"Householder 45 to 64 years",17,12,103,64,9,10,25,24,5,6,14,16,50,38,36,43,286,92,6,9,9,10,9,10,15,18,48,31,0,85,2,4,0,85,5,5,77,61,20,22,12,14,8,8,53,37]
[null,"Householder 65 years and over",14,10,32,25,5,8,6,9,3,4,3,4,39,59,27,43,145,66,12,13,0,85,2,5,0,85,0,85,0,85,0,85,3,4,11,11,77,63,4,6,20,19,4,6,16,24]
[null,"Nonfamily households:",234,61,253,133,125,41,409,91,69,27,145,40,663,180,717,191,3265,367,184,63,49,24,87,31,104,38,401,129,14,8,92,34,55,28,63,21,856,182,186,73,310,95,137,44,446,130]
[null,"Male householder:",127,46,156,93,72,31,210,79,38,25,89,31,288,134,255,106,1321,257,97,42,31,21,45,29,55,25,262,111,7,7,28,17,33,24,26,17,409,131,117,70,235,87,69,34,206,88]
[null,"Householder under 25 years",0,85,0,85,0,85,0,85,4,6,0,85,0,85,0,85,60,59,0,85,11,18,0,85,0,85,14,22,0,85,0,85,0,85,0,85,11,19,31,32,22,31,12,19,0,85]
[null,"Householder 25 to 44 years",46,33,36,41,22,15,98,70,12,12,6,7,146,107,28,38,595,202,28,26,5,7,8,8,7,8,88,49,5,6,3,4,10,14,5,7,156,83,51,51,62,50,28,24,62,55]
[null,"Householder 45 to 64 years",46,22,68,54,40,23,74,35,22,21,71,34,80,73,128,77,389,144,47,31,5,7,28,25,45,25,60,61,0,85,10,9,10,10,12,11,145,83,27,25,106,64,20,13,78,54]
[null,"Householder 65 years and over",35,23,52,56,10,16,38,32,0,85,12,10,62,68,99,61,277,94,22,26,10,7,9,14,3,5,100,80,2,3,15,16,13,16,9,9,97,57,8,10,45,33,9,9,66,37]
[null,"Female householder:",107,39,97,94,53,30,199,70,31,14,56,23,375,122,462,149,1944,278,87,48,18,14,42,18,49,27,139,59,7,6,64,29,22,14,37,16,447,122,69,40,75,46,68,30,240,86]
[null,"Householder under 25 years",0,85,0,85,2,3,0,85,0,85,0,85,0,85,0,85,119,93,0,85,0,85,0,85,0,85,0,85,0,85,2,4,0,85,6,7,9,14,23,31,0,85,3,5,0,85]
[null,"Householder 25 to 44 years",15,17,66,88,13,15,52,36,10,10,15,13,14,23,44,52,361,147,0,85,4,6,7,7,14,10,27,42,4,5,12,17,5,9,7,7,69,45,14,16,0,85,6,9,36,29]
[null,"Householder 45 to 64 years",56,27,15,22,22,17,102,57,7,7,21,17,217,96,213,95,530,122,46,36,8,9,19,12,26,26,77,40,3,4,33,20,13,9,12,8,215,92,7,11,36,34,25,15,95,51]
[null,"Householder 65 years and over",36,22,16,25,16,13,45,21,14,11,20,14,144,71,205,89,934,162,41,30,6,9,16,13,9,8,35,36,0,85,17,11,4,5,12,9,154,65,25,17,39,27,34,23,109,53]

{"sheet":"ACS_Table_B03002","index":77,"n_rows":108,"n_cols":48,"rows_kept":108,"cut":false,"hidden":true,"merged":[]}
[null,"B03002. HISPANIC OR LATINO ORIGIN BY RACE"]
[null,"Universe:  TOTAL POPULATION"]
[null,"Data Set: 2018-2022 American Community Survey 5-Year Estimates"]
[]
[null,null,"Alstead",null,"Chesterfield",null,"Dublin",null,"Fitzwilliam",null,"Gilsum",null,"Harrisville",null,"Hinsdale",null,"Jaffrey",null,"Keene",null,"Marlborough",null,"Marlow",null,"Nelson",null,"Richmond",null,"Rindge",null,"Roxbury",null,"Stoddard",null,"Sullivan",null,"Surry",null,"Swanzey",null,"Troy",null,"Walpole",null,"Westmoreland",null,"Winchester"]
[null," ","Estimate","Margin of Error","Estimate","Margin of Error","Estimate","Margin of Error","Estimate","Margin of Error","Estimate","Margin of Error","Estimate","Margin of Error","Estimate","Margin of Error","Estimate","Margin of Error","Estimate","Margin of Error","Estimate","Margin of Error","Estimate","Margin of Error","Estimate","Margin of Error","Estimate","Margin of Error","Estimate","Margin of Error","Estimate","Margin of Error","Estimate","Margin of Error","Estimate","Margin of Error","Estimate","Margin of Error","Estimate","Margin of Error","Estimate","Margin of Error","Estimate","Margin of Error","Estimate","Margin of Error","Estimate","Margin of Error"]
[null,"Total:",1599,169,3577,15,1711,216,2287,368,871,144,977,197,3965,16,5363,32,22907,27,2253,391,803,175,550,106,1107,251,6446,21,295,142,1205,162,681,130,950,245,7306,22,1889,275,3651,33,2042,341,4175,25]
[null,"Not Hispanic or Latino:",1566,170,3577,15,1689,212,2248,375,806,152,954,192,3939,45,5316,86,22383,183,2252,390,800,174,540,106,1069,247,6079,175,295,142,1201,163,668,131,945,245,7097,114,1869,277,3458,225,2042,341,4155,43]
[null,"White alone",1523,174,3427,112,1602,229,2186,368,800,150,893,187,3827,106,4971,235,21127,330,2180,392,780,172,514,104,1050,246,5517,240,295,142,1161,156,615,126,913,240,6862,221,1842,269,3257,258,1985,333,4009,108]
[null,"Black or African American alone",0,12,9,20,7,9,0,12,0,12,17,29,0,12,30,44,233,108,0,12,0,12,0,12,0,12,65,44,0,12,0,12,0,12,0,12,15,22,0,12,98,126,0,12,3,8]
[null,"American Indian and Alaska Native alone",1,3,0,12,2,3,0,12,5,8,5,6,0,12,0,17,22,27,10,17,0,12,0,12,0,12,0,17,0,12,6,8,0,12,5,8,0,17,4,6,0,12,6,6,32,27]
[null,"Asian alone",19,19,79,92,25,22,13,39,0,12,12,17,0,12,53,64,148,132,1,2,0,12,0,12,7,11,83,87,0,12,6,8,26,24,0,12,20,42,0,12,0,12,5,9,15,22]
[null,"Native Hawaiian and Other Pacific Islander alone",0,12,0,12,0,12,0,12,0,12,0,12,7,8,0,17,7,15,0,12,0,12,0,12,0,12,0,17,0,12,0,12,0,12,0,12,0,17,0,12,0,12,0,12,0,12]
[null,"Some other race alone",0,12,0,12,3,4,3,5,0,12,0,12,0,12,0,17,66,111,0,12,9,12,2,3,3,4,0,17,0,12,0,12,5,7,0,12,40,59,0,12,13,23,10,17,0,12]
[null,"Two or more races:",23,23,62,62,50,45,46,35,1,2,27,24,105,102,262,162,780,247,61,45,11,9,24,24,9,11,414,211,0,12,28,22,22,18,27,19,160,145,23,26,90,61,36,27,96,94]
[null,"Two races including Some other race",13,19,0,12,28,39,25,28,0,12,0,12,0,12,0,17,101,70,17,20,5,7,3,4,3,4,8,13,0,12,0,12,5,7,0,12,45,77,5,7,7,13,9,14,48,79]
[null,"Two races excluding Some other race, and three or more races",10,13,62,62,22,24,21,21,1,2,27,24,105,102,262,162,679,249,44,40,6,6,21,24,6,10,406,211,0,12,28,22,17,18,27,19,115,144,18,25,83,58,27,23,48,51]
[null,"Hispanic or Latino:",33,37,0,12,22,22,39,51,65,81,23,27,26,40,47,81,524,186,1,5,3,4,10,9,38,36,367,179,0,12,4,5,13,14,5,7,209,111,20,29,193,224,0,12,20,34]
[null,"White alone",0,12,0,12,11,18,21,39,55,79,19,22,0,12,0,17,153,88,0,12,3,4,0,12,3,5,78,100,0,12,0,12,5,7,0,12,75,80,0,12,36,58,0,12,0,12]
[null,"Black or African American alone",0,12,0,12,0,12,0,12,0,12,0,12,0,12,31,56,7,7,0,12,0,12,0,12,0,12,2,6,0,12,0,12,0,12,0,12,0,17,0,12,0,12,0,12,0,12]
[null,"American Indian and Alaska Native alone",0,12,0,12,0,12,0,12,0,12,4,6,0,12,0,17,0,22,0,12,0,12,0,12,0,12,0,17,0,12,0,12,0,12,0,12,0,17,0,12,0,12,0,12,0,12]
[null,"Asian alone",0,12,0,12,0,12,0,12,0,12,0,12,0,12,0,17,0,22,0,12,0,12,0,12,0,12,0,17,0,12,0,12,0,12,0,12,0,17,0,12,0,12,0,12,0,12]
[null,"Native Hawaiian and Other Pacific Islander alone",0,12,0,12,0,12,0,12,0,12,0,12,0,12,0,17,0,22,0,12,0,12,0,12,0,12,0,17,0,12,0,12,0,12,0,12,0,17,0,12,0,12,0,12,0,12]
[null,"Some other race alone",15,23,0,12,0,12,0,12,10,14,0,12,26,40,16,28,65,52,0,12,0,12,0,12,4,10,69,64,0,12,0,12,8,12,0,12,0,17,8,13,157,216,0,12,0,12]
[null,"Two or more races:",18,26,0,12,11,11,18,32,0,12,0,12,0,12,0,17,299,128,1,5,0,12,10,9,31,32,218,155,0,12,4,5,0,12,5,7,134,87,12,25,0,12,0,12,20,34]
[null,"Two races including Some other race",18,26,0,12,11,11,0,12,0,12,0,12,0,12,0,17,233,114,1,5,0,12,10,9,31,32,57,59,0,12,4,5,0,12,5,7,134,87,12,25,0,12,0,12,20,34]
[null,"Two races excluding Some other race, and three or more races",0,12,0,12,0,12,18,32,0,12,0,12,0,12,0,17,66,82,0,12,0,12,0,12,0,12,161,166,0,12,0,12,0,12,0,12,0,17,0,12,0,12,0,12,0,12]
[]
[null,{"$f":"\"Caculated \"&B1","v":"Caculated B03002. HISPANIC OR LATINO ORIGIN BY RACE"}]
[null,"Data Set: 2018-2022 American Community Survey 5-Year Estimates"]
[null,null,"Alstead",null,"Chesterfield",null,"Dublin",null,"Fitzwilliam",null,"Gilsum",null,"Harrisville",null,"Hinsdale",null,"Jaffrey",null,"Keene",null,"Marlborough",null,"Marlow",null,"Nelson",null,"Richmond",null,"Rindge",null,"Roxbury",null,"Stoddard",null,"Sullivan",null,"Surry",null,"Swanzey",null,"Troy",null,"Walpole",null,"Westmoreland",null,"Winchester"]
[null," ","Estimate","Margin of Error","Estimate","Margin of Error","Estimate","Margin of Error","Estimate","Margin of Error","Estimate","Margin of Error","Estimate","Margin of Error","Estimate","Margin of Error","Estimate","Margin of Error","Estimate","Margin of Error","Estimate","Margin of Error","Estimate","Margin of Error","Estimate","Margin of Error","Estimate","Margin of Error","Estimate","Margin of Error","Estimate","Margin of Error","Estimate","Margin of Error","Estimate","Margin of Error","Estimate","Margin of Error","Estimate","Margin of Error","Estimate","Margin of Error","Estimate","Margin of Error","Estimate","Margin of Error","Estimate","Margin of Error"]
[null,"Total:",{"$f":"C7","v":1599},169,3577,15,1711,216,2287,368,871,144,977,197,3965,16,5363,32,22907,27,2253,391,803,175,{"$f":"Y7","v":550},106,1107,251,6446,21,295,142,1205,162,681,130,950,245,7306,22,{"$f":"AO7","v":1889},275,3651,33,2042,341,4175,25]
[null,"Not Hispanic or Latino:",{"$f":"C8","v":1566},170,3577,15,1689,212,2248,375,806,152,954,192,3939,45,5316,86,{"$f":"S8","v":22383},183,2252,390,800,174,{"$f":"Y8","v":540},106,1069,247,6079,175,295,142,1201,163,668,131,945,245,7097,114,{"$f":"AO8","v":1869},277,3458,225,2042,341,4155,43]
[null,"White",1523,174,3427,112,1602,229,2186,368,800,150,893,187,3827,106,4971,235,21127,330,2180,392,780,172,{"$f":"Y9","v":514},104,1050,246,5517,240,295,142,1161,156,615,126,913,240,6862,221,{"$f":"AO9","v":1842},269,3257,258,1985,333,4009,108]
[null,"Black",0,12,9,20,7,9,0,12,0,12,17,29,0,12,30,44,233,108,0,12,0,12,{"$f":"Y10","v":0},12,0,12,65,44,0,12,0,12,0,12,0,12,15,22,{"$f":"AO10","v":0},12,98,126,0,12,3,8]
[null,"American Indian",{"$f":"$C$11","v":1},{"$f":"D11","v":3},{"$f":"E11","v":0},12,2,3,0,12,5,8,5,6,0,12,0,17,22,27,10,17,0,12,{"$f":"Y11","v":0},12,0,12,0,17,0,12,6,8,0,12,5,8,0,17,{"$f":"AO11","v":4},6,0,12,6,6,32,27]
[null,"Asian &Pacific Is.",{"$f":"C12+C13","v":19},{"$f":"SQRT((D12^2)+(D13^2))","v":22.472205054244231},{"$f":"E12+E13","v":79},{"$f":"SQRT((F12^2)+(F13^2))","v":92.779308037945611},{"$f":"G12+G13","v":25},{"$f":"SQRT((H12^2)+(H13^2))","v":25.059928172283335},{"$f":"I12+I13","v":13},{"$f":"SQRT((J12^2)+(J13^2))","v":40.80441152620633},{"$f":"K12+K13","v":0},{"$f":"SQRT((L12^2)+(L13^2))","v":16.970562748477139},{"$f":"M12+M13","v":12},{"$f":"SQRT((N12^2)+(N13^2))","v":20.808652046684813},{"$f":"O12+O13","v":7},{"$f":"SQRT((P12^2)+(P13^2))","v":14.422205101855956},{"$f":"Q12+Q13","v":53},{"$f":"SQRT((R12^2)+(R13^2))","v":66.219332524573218},{"$f":"S12+S13","v":155},{"$f":"SQRT((T12^2)+(T13^2))","v":132.84953895290718},{"$f":"U12+U13","v":1},{"$f":"SQRT((V12^2)+(V13^2))","v":12.165525060596439},{"$f":"W12+W13","v":0},{"$f":"SQRT((X12^2)+(X13^2))","v":16.970562748477139},{"$f":"Y12+Y13","v":0},{"$f":"SQRT((Z12^2)+(Z13^2))","v":16.970562748477139},{"$f":"AA12+AA13","v":7},{"$f":"SQRT((AB12^2)+(AB13^2))","v":16.278820596099706},{"$f":"AC12+AC13","v":83},{"$f":"SQRT((AD12^2)+(AD13^2))","v":88.645360848721239},{"$f":"AE12+AE13","v":0},{"$f":"SQRT((AF12^2)+(AF13^2))","v":16.970562748477139},{"$f":"AG12+AG13","v":6},{"$f":"SQRT((AH12^2)+(AH13^2))","v":14.422205101855956},{"$f":"AI12+AI13","v":26},{"$f":"SQRT((AJ12^2)+(AJ13^2))","v":26.832815729997478},{"$f":"AK12+AK13","v":0},{"$f":"SQRT((AL12^2)+(AL13^2))","v":16.970562748477139},{"$f":"AM12+AM13","v":20},{"$f":"SQRT((AN12^2)+(AN13^2))","v":45.310043036836767},{"$f":"AO12+AO13","v":0},{"$f":"SQRT((AP12^2)+(AP13^2))","v":16.970562748477139},{"$f":"AQ12+AQ13","v":0},{"$f":"SQRT((AR12^2)+(AR13^2))","v":16.970562748477139},{"$f":"AS12+AS13","v":5},{"$f":"SQRT((AT12^2)+(AT13^2))","v":15},{"$f":"AU12+AU13","v":15},{"$f":"SQRT((AV12^2)+(AV13^2))","v":25.059928172283335}]
[null,"Other*",{"$f":"C14+C15","v":23},{"$f":"SQRT((D14^2)+(D15^2))","v":25.942243542145693},{"$f":"E14+E15","v":62},{"$f":"SQRT((F14^2)+(F15^2))","v":63.150613615387776},{"$f":"G14+G15","v":53},{"$f":"SQRT((H14^2)+(H15^2))","v":45.177427992306072},{"$f":"I14+I15","v":49},{"$f":"SQRT((J14^2)+(J15^2))","v":35.355339059327378},{"$f":"K14+K15","v":1},{"$f":"SQRT((L14^2)+(L15^2))","v":12.165525060596439},{"$f":"M14+M15","v":27},{"$f":"SQRT((N14^2)+(N15^2))","v":26.832815729997478},{"$f":"O14+O15","v":105},{"$f":"SQRT((P14^2)+(P15^2))","v":102.70345661174214},{"$f":"Q14+Q15","v":262},{"$f":"SQRT((R14^2)+(R15^2))","v":162.88953311984167},{"$f":"S14+S15","v":846},{"$f":"SQRT((T14^2)+(T15^2))","v":270.79512551004314},{"$f":"U14+U15","v":61},{"$f":"SQRT((V14^2)+(V15^2))","v":46.572524088780071},{"$f":"W14+W15","v":20},{"$f":"SQRT((X14^2)+(X15^2))","v":15},{"$f":"Y14+Y15","v":26},{"$f":"SQRT((Z14^2)+(Z15^2))","v":24.186773244895647},{"$f":"AA14+AA15","v":12},{"$f":"SQRT((AB14^2)+(AB15^2))","v":11.704699910719626},{"$f":"AC14+AC15","v":414},{"$f":"SQRT((AD14^2)+(AD15^2))","v":211.68372634664195},{"$f":"AE14+AE15","v":0},{"$f":"SQRT((AF14^2)+(AF15^2))","v":16.970562748477139},{"$f":"AG14+AG15","v":28},{"$f":"SQRT((AH14^2)+(AH15^2))","v":25.059928172283335},{"$f":"AI14+AI15","v":27},{"$f":"SQRT((AJ14^2)+(AJ15^2))","v":19.313207915827967},{"$f":"AK14+AK15","v":27},{"$f":"SQRT((AL14^2)+(AL15^2))","v":22.472205054244231},{"$f":"AM14+AM15","v":200},{"$f":"SQRT((AN14^2)+(AN15^2))","v":156.54392354863219},{"$f":"AO14+AO15","v":23},{"$f":"SQRT((AP14^2)+(AP15^2))","v":28.635642126552707},{"$f":"AQ14+AQ15","v":103},{"$f":"SQRT((AR14^2)+(AR15^2))","v":65.192024052026483},{"$f":"AS14+AS15","v":46},{"$f":"SQRT((AT14^2)+(AT15^2))","v":31.906112267087632},{"$f":"AU14+AU15","v":96},{"$f":"SQRT((AV14^2)+(AV15^2))","v":94.762861923857074}]
[null,"Hispanic or Latino:",{"$f":"C18","v":33},{"$f":"D18","v":37},{"$f":"E18","v":0},12,22,22,39,51,65,81,23,27,26,40,47,81,524,186,1,5,3,4,{"$f":"Y18","v":10},9,38,36,367,179,0,12,4,5,13,14,5,7,209,111,{"$f":"AO18","v":20},29,193,224,0,12,20,34]
[]
[]
[]
[]
[]
[]
[]
[]
[]
[]
[]
[]
[]
[]
[]
[]
[]
[]
[]
[]
[]
[]
[]
[]
[]
[]
[]
[]
[]
[]
[]
[]
[]
[]
[]
[]
[]
["C03002. HISPANIC OR LATINO ORIGIN BY RACE"]
["Universe:  TOTAL POPULATION"]
["Data Set: 2013-2017 American Community Survey 5-Year Estimates"]
[]
[null,null,"Alstead",null,"Chesterfield",null,"Dublin",null,"Fitzwilliam",null,"Gilsum",null,"Harrisville",null,"Hinsdale",null,"Jaffrey",null,"Keene",null,"Marlborough",null,"Marlow",null,"Nelson",null,"Richmond",null,"Rindge",null,"Roxbury",null,"Stoddard",null,"Sullivan",null,"Surry",null,"Swanzey",null,"Troy",null,"Walpole",null,"Westmoreland",null,"Winchester"]
[null," ","Estimate","Margin of Error","Estimate","Margin of Error","Estimate","Margin of Error","Estimate","Margin of Error","Estimate","Margin of Error","Estimate","Margin of Error","Estimate","Margin of Error","Estimate","Margin of Error","Estimate","Margin of Error","Estimate","Margin of Error","Estimate","Margin of Error","Estimate","Margin of Error","Estimate","Margin of Error","Estimate","Margin of Error","Estimate","Margin of Error","Estimate","Margin of Error","Estimate","Margin of Error","Estimate","Margin of Error","Estimate","Margin of Error","Estimate","Margin of Error","Estimate","Margin of Error","Estimate","Margin of Error","Estimate","Margin of Error"]
[null,"Total:",1847,227,3566,15,1487,174,2294,213,702,80,913,140,3925,20,23204,40,23537,32,2125,297,708,115,575,94,1243,176,6005,33,216,57,1193,185,725,118,884,130,7169,37,2182,310,3809,18,1802,235,4221,15]
[null,"Not Hispanic or Latino:",1830,225,3529,59,1450,181,2294,213,694,80,894,141,3856,65,22622,168,22983,142,2091,294,688,110,531,80,1221,172,5894,89,216,57,1184,183,719,116,884,130,6990,143,2168,309,3800,23,1799,234,4177,65]
[null,"White",1798,228,3501,64,1437,183,2246,212,663,79,867,140,3813,72,21170,318,21565,241,2023,291,680,109,514,77,1213,172,5591,197,216,57,1148,183,717,116,867,130,6711,206,1997,304,3747,49,1772,231,4093,84]
[null,"Black",0,11,0,11,0,11,0,11,8,12,2,3,30,38,316,77,247,80,1,3,0,11,0,11,0,11,67,40,0,11,21,27,0,11,1,3,0,16,38,52,0,11,5,6,17,28]
[null,"American Indian",0,11,0,11,0,11,3,4,0,11,3,4,0,11,25,22,33,31,4,6,0,11,0,11,1,2,0,16,0,11,0,11,0,11,9,16,22,24,10,13,22,35,0,11,18,26]
[null,"Asian &Pacific Is.",0,15.556349186104045,20,31.016124838541646,7,15.556349186104045,8,14.212670403551895,3,11.704699910719626,4,12.529964086141668,0,15.556349186104045,410,163.35544068074378,495,166.20770138594662,36,46.324939287601879,6,13.601470508735444,3,11.704699910719626,7,14.866068747318506,120,121.06196760337245,0,15.556349186104045,4,12.083045973594572,2,11.704699910719626,3,11.704699910719626,161,125.02799686470227,47,37.363083384538811,12,23.706539182259394,15,21.95449840010015,23,34.785054261852174]
[null,"Other*",32,35.735136770411273,8,17.804493814764857,6,12.529964086141668,37,39.560080889704963,20,18.867962264113206,18,18.601075237738275,13,22.825424421026653,701,207.44637861384805,643,160.25604512778918,27,25.495097567963924,2,11.704699910719626,14,17.804493814764857,0,15.556349186104045,116,68.8839603971781,0,15.556349186104045,11,12.806248474865697,0,15.556349186104045,4,13.038404810405298,96,94.36630754670864,76,75.802374632988901,19,21.95449840010015,7,17.804493814764857,26,26.40075756488817]
[null,"Hispanic or Latino:",17,21,37,56,37,33,0,11,8,11,19,14,69,59,582,165,554,144,34,30,20,19,44,42,22,27,111,82,0,11,9,13,6,11,0,11,179,139,14,19,9,13,3,5,44,62]
[]
[]
[]
["C03002. HISPANIC OR LATINO ORIGIN BY RACE"]
["Universe:  TOTAL POPULATION"]
["Data Set: 2008-2012 American Community Survey 5-Year Estimates"]
[]
[null,null,"Alstead",null,"Chesterfield",null,"Dublin",null,"Fitzwilliam",null,"Gilsum",null,"Harrisville",null,"Hinsdale",null,"Jaffrey",null,"Keene",null,"Marlborough",null,"Marlow",null,"Nelson",null,"Richmond",null,"Rindge",null,"Roxbury",null,"Stoddard",null,"Sullivan",null,"Surry",null,"Swanzey",null,"Troy",null,"Walpole",null,"Westmoreland",null,"Winchester"]
[null," ","Estimate","Margin of Error","Estimate","Margin of Error","Estimate","Margin of Error","Estimate","Margin of Error","Estimate","Margin of Error","Estimate","Margin of Error","Estimate","Margin of Error","Estimate","Margin of Error","Estimate","Margin of Error","Estimate","Margin of Error","Estimate","Margin of Error","Estimate","Margin of Error","Estimate","Margin of Error","Estimate","Margin of Error","Estimate","Margin of Error","Estimate","Margin of Error","Estimate","Margin of Error","Estimate","Margin of Error","Estimate","Margin of Error","Estimate","Margin of Error","Estimate","Margin of Error","Estimate","Margin of Error","Estimate","Margin of Error"]
[null,"Total:",1883,173,3617,22,1709,209,2576,268,542,75,923,139,4046,18,5462,21,23389,22,1977,269,890,185,729,156,992,145,6001,19,219,37,1045,181,691,108,821,110,7236,29,2112,274,3731,19,2183,246,4332,18]
[null,"Not Hispanic or Latino:",1834,184,3570,73,1691,206,2576,268,535,73,894,135,3987,73,5431,52,22981,133,1977,269,890,185,703,151,967,141,5889,85,219,37,1038,181,679,104,813,112,7150,110,2084,271,3598,99,2149,236,4332,18]
[null,"White",1809,184,3488,121,1656,203,2467,260,511,72,884,135,3878,111,5293,107,22157,227,1939,262,886,185,696,149,958,141,5555,137,217,37,1009,176,679,104,795,110,6881,194,2035,273,3456,127,2110,235,4141,105]
[null,"Black",4,5,0,11,3,7,17,19,0,11,7,12,24,25,0,16,154,68,30,33,1,2,0,11,5,7,175,101,0,11,0,11,0,11,3,4,0,16,0,11,0,11,0,11,6,12]
[null,"American Indian",0,11,17,25,21,29,9,13,0,11,0,11,9,17,26,38,54,33,0,11,0,11,0,11,0,11,8,13,0,11,6,9,0,11,0,11,0,16,0,11,21,31,3,6,60,43]
[null,"Asian &Pacific Is.",11,15.556349186104045,26,39.560080889704963,11,17.804493814764857,14,23.706539182259394,13,17.029386365926403,0,15.556349186104045,12,21.095023109728988,8,19.416487838947599,470,177.24841325100769,0,15.556349186104045,0,15.556349186104045,0,15.556349186104045,0,15.556349186104045,41,35.777087639996637,2,11.401754250991379,0,15.556349186104045,0,15.556349186104045,5,14.212670403551895,216,154.82893786369524,7,15.556349186104045,55,63.953107821277925,22,25.495097567963924,50,60.016664352494629]
[null,"Other*",10,16.278820596099706,39,44.283179650969061,0,15.556349186104045,69,47.296934361541872,11,20.248456731316587,3,11.704699910719626,64,61,104,79.555012412795207,146,87.555696559390128,8,17.029386365926403,3,11.704699910719626,7,14.866068747318506,4,12.529964086141668,110,77.665951355790398,0,15.556349186104045,23,22.825424421026653,0,15.556349186104045,10,11.313708498984761,53,49.648766349225639,42,33.837848631377263,66,48.270073544588683,14,20.248456731316587,75,65.924198895398035]
[null,"Hispanic or Latino:",49,57,47,70,18,16,0,11,7,11,29,35,59,70,31,49,408,135,0,11,0,11,26,36,25,22,112,81,0,11,7,12,12,13,8,15,86,105,28,35,133,98,34,35,0,11]

{"sheet":"RentalHousingCost","index":78,"n_rows":124,"n_cols":21,"rows_kept":124,"cut":false,"hidden":true,"merged":[]}
[]
[null,null,"HIDE THIS COLUMN",{"$f":"CntyDataLink!A70","v":"Dublin"}]
[]
[null,null,null,"RENTAL HOUSING COST CHARACTERISTICS"]
[]
[]
[]
[]
[]
[]
[]
[]
[]
[]
[]
[]
[]
[]
[]
[]
[]
[]
[]
[]
[]
[]
[]
[]
[]
[]
[]
[]
[]
[]
[]
[]
[]
[]
[null,null,null,"Source:  2018-2022 American Community Survey Table B25074"]
[]
[null,null,null,"Income in 2022 Inflation Adjusted Dollars"]
[null,null,null,"Data from the American Community Survey are estimates"]
[null,null,null,{"$f":"CntyDataLink!A70","v":"Dublin"}]
[]
[null,null,null,{"$f":"D4","v":"RENTAL HOUSING COST CHARACTERISTICS"}]
[]
[null,null,null,"Renter Households by "]
[null,null,null,"Gross Rent as a Percent of 2022 Household Income"]
[null,null,null,null,null,null,"By Household Income"]
[null,null,{"$f":"CntyDataLink!AO$69","v":"H73RenterOccHU"},null,"Specified Renter Occ Housing Units",{"$f":"\"Margin of Error Renter Occupied Units\"","v":"Margin of Error Renter Occupied Units"},null,"Less than $10,000",{"$f":"\"Margin of Error \"&H50","v":"Margin of Error Less than $10,000"},"$10,000 to $19,999",{"$f":"\"Margin of Error \"&J50","v":"Margin of Error $10,000 to $19,999"},"$20,000 to $34,999",{"$f":"\"Margin of Error \"&L50","v":"Margin of Error $20,000 to $34,999"},"$35,000 to $49,999",{"$f":"\"Margin of Error \"&N50","v":"Margin of Error $35,000 to $49,999"},"$50,000 to $74,999",{"$f":"\"Margin of Error \"&P50","v":"Margin of Error $50,000 to $74,999"},"$75,000 to $99,999",{"$f":"\"Margin of Error \"&R50","v":"Margin of Error $75,000 to $99,999"},"$100,000 or More",{"$f":"\"Margin of Error \"&T50","v":"Margin of Error $100,000 or More"}]
[]
[null,null,null,"All Renter Households",{"$f":"CntyDataLink!$B$156","v":568},{"$f":"CntyDataLink!$C$156","v":122},null,{"$f":"CntyDataLink!$BH$148","v":46},{"$f":"CntyDataLink!$BI$148","v":40},{"$f":"CntyDataLink!$BZ$148","v":98},{"$f":"CntyDataLink!$CA$148","v":62},{"$f":"CntyDataLink!$CR$148","v":117},{"$f":"CntyDataLink!$CS$148","v":61},{"$f":"CntyDataLink!$DJ$148","v":150},{"$f":"CntyDataLink!$DK$148","v":67},{"$f":"CntyDataLink!$EB$148","v":106},{"$f":"CntyDataLink!$EC$148","v":61},{"$f":"CntyDataLink!$ET$148","v":7},{"$f":"CntyDataLink!$EU$148","v":12},{"$f":"CntyDataLink!$FL$148","v":44},{"$f":"CntyDataLink!$FM$148","v":47}]
[null,null,null,"Rent Less than 20% of HH Income",{"$f":"CntyDataLink!$D$156","v":97},{"$f":"CntyDataLink!$E$156","v":66.340033162487941},null,{"$f":"CntyDataLink!$BJ$148","v":0},{"$f":"CntyDataLink!$BK$148","v":12},{"$f":"CntyDataLink!$CB$148","v":0},{"$f":"CntyDataLink!$CC$148","v":12},{"$f":"CntyDataLink!$CT$148","v":0},{"$f":"CntyDataLink!$CU$148","v":12},{"$f":"CntyDataLink!$DL$148","v":0},{"$f":"CntyDataLink!$DM$148","v":12},{"$f":"CntyDataLink!$ED$148","v":53},{"$f":"CntyDataLink!$EE$148","v":46},{"$f":"CntyDataLink!$EV$148","v":0},{"$f":"CntyDataLink!$EW$148","v":12},{"$f":"CntyDataLink!$FN$148","v":44},{"$f":"CntyDataLink!$FO$148","v":47}]
[null,null,null,"Rent 20% to 24.9% of HH Income",{"$f":"CntyDataLink!$F$156","v":7},{"$f":"CntyDataLink!$G$156","v":12},null,{"$f":"CntyDataLink!$BL$148","v":0},{"$f":"CntyDataLink!$BM$148","v":12},{"$f":"CntyDataLink!$CD$148","v":0},{"$f":"CntyDataLink!$CE$148","v":12},{"$f":"CntyDataLink!$CV$148","v":0},{"$f":"CntyDataLink!$CW$148","v":12},{"$f":"CntyDataLink!$DN$148","v":0},{"$f":"CntyDataLink!$DO$148","v":12},{"$f":"CntyDataLink!$EF$148","v":0},{"$f":"CntyDataLink!$EG$148","v":12},{"$f":"CntyDataLink!$EX$148","v":7},{"$f":"CntyDataLink!$EY$148","v":12},{"$f":"CntyDataLink!$FP$148","v":0},{"$f":"CntyDataLink!$FQ$148","v":12}]
[null,null,null,"Rent 25% to 29.9% of HH Income",{"$f":"CntyDataLink!$H$156","v":134},{"$f":"CntyDataLink!$I$156","v":66},null,{"$f":"CntyDataLink!$BN$148","v":0},{"$f":"CntyDataLink!$BO$148","v":12},{"$f":"CntyDataLink!$CF$148","v":22},{"$f":"CntyDataLink!$CG$148","v":36},{"$f":"CntyDataLink!$CX$148","v":0},{"$f":"CntyDataLink!$CY$148","v":12},{"$f":"CntyDataLink!$DP$148","v":77},{"$f":"CntyDataLink!$DQ$148","v":53},{"$f":"CntyDataLink!$EH$148","v":35},{"$f":"CntyDataLink!$EI$148","v":40},{"$f":"CntyDataLink!$EZ$148","v":0},{"$f":"CntyDataLink!$FA$148","v":12},{"$f":"CntyDataLink!$FR$148","v":0},{"$f":"CntyDataLink!$FS$148","v":12}]
[null,null,null,"Rent Less Than 30% of HH Income",{"$f":"CntyDataLink!$J$156","v":238},{"$f":"CntyDataLink!$K$156","v":94.34511116109833},null,{"$f":"SUM(H53:H55)","v":0},{"$f":"SQRT((I53^2)+(I54^2)+(I55^2))","v":20.784609690826528},{"$f":"SUM(J53:J55)","v":22},{"$f":"SQRT((K53^2)+(K54^2)+(K55^2))","v":39.799497484264798},{"$f":"SUM(L53:L55)","v":0},{"$f":"SQRT((M53^2)+(M54^2)+(M55^2))","v":20.784609690826528},{"$f":"SUM(N53:N55)","v":77},{"$f":"SQRT((O53^2)+(O54^2)+(O55^2))","v":55.65069631190611},{"$f":"SUM(P53:P55)","v":88},{"$f":"SQRT((Q53^2)+(Q54^2)+(Q55^2))","v":62.128898268036266},{"$f":"SUM(R53:R55)","v":7},{"$f":"SQRT((S53^2)+(S54^2)+(S55^2))","v":20.784609690826528},{"$f":"SUM(T53:T55)","v":44},{"$f":"SQRT((U53^2)+(U54^2)+(U55^2))","v":49.969990994595946}]
[null,null,null,"Rent 30% or More of HH Income",{"$f":"CntyDataLink!$L$156","v":287},{"$f":"CntyDataLink!$M$156","v":105.32331175955302},null,{"$f":"H60+H58","v":14},{"$f":"SQRT((I58^2)+(I60^2))","v":25.632011235952593},{"$f":"J60+J58","v":65},{"$f":"SQRT((K58^2)+(K60^2))","v":43.874821936960608},{"$f":"L60+L58","v":117},{"$f":"SQRT((M58^2)+(M60^2))","v":66.783231428256002},{"$f":"N60+N58","v":73},{"$f":"SQRT((O58^2)+(O60^2))","v":62.136945531623937},18,{"$f":"SQRT((Q58^2)+(Q60^2))","v":34.871191548325392},{"$f":"R60+R58","v":0},{"$f":"SQRT((S58^2)+(S60^2))","v":24},0,{"$f":"SQRT((U58^2)+(U60^2))","v":24}]
[null,null,null,"Rent 30% to 34.9% of HH Income",{"$f":"CntyDataLink!$N$156","v":88},{"$f":"CntyDataLink!$O$156","v":64},null,{"$f":"CntyDataLink!$BP$148","v":0},{"$f":"CntyDataLink!$BQ$148","v":12},{"$f":"CntyDataLink!$CH$148","v":0},{"$f":"CntyDataLink!$CI$148","v":12},{"$f":"CntyDataLink!$CZ$148","v":27},{"$f":"CntyDataLink!$DA$148","v":33},{"$f":"CntyDataLink!$DR$148","v":61},{"$f":"CntyDataLink!$DS$148","v":57},{"$f":"CntyDataLink!$EJ$148","v":0},{"$f":"CntyDataLink!$EK$148","v":12},{"$f":"CntyDataLink!$FB$148","v":0},{"$f":"CntyDataLink!$FC$148","v":12},{"$f":"CntyDataLink!$FT$148","v":0},{"$f":"CntyDataLink!$FU$148","v":12}]
[null,null,null,"Rent Less Than 35% of HH Income",{"$f":"CntyDataLink!$P$156","v":326},{"$f":"CntyDataLink!$Q$156","v":114.00438588054409},null,{"$f":"SUM(H56,H58)","v":0},{"$f":"SQRT((I56^2)+(I58^2))","v":24},{"$f":"SUM(J56,J58)","v":22},{"$f":"SQRT((K56^2)+(K58^2))","v":41.569219381653056},{"$f":"SUM(L56,L58)","v":27},{"$f":"SQRT((M56^2)+(M58^2))","v":39},138,112.6506963119061,88,{"$f":"SQRT((Q58^2)+(Q56^2))","v":63.2771680782255},{"$f":"SUM(R56,R58)","v":7},{"$f":"SQRT((S58^2)+(S56^2))","v":24},44,{"$f":"SQRT((U58^2)+(U56^2))","v":51.39066063011839}]
[null,null,null,"Rent 35% or More of HH Income",{"$f":"CntyDataLink!$R$156","v":199},{"$f":"CntyDataLink!$S$156","v":83.648072302952684},null,{"$f":"CntyDataLink!$BR$148+CntyDataLink!$BT$148+CntyDataLink!$BV$148","v":14},{"$f":"SQRT((CntyDataLink!$BS$148^2)+(CntyDataLink!$BU$148^2)+(CntyDataLink!$BW$148^2))","v":22.649503305812249},{"$f":"CntyDataLink!$CJ$148+CntyDataLink!$CL$148+CntyDataLink!$CN$148","v":65},{"$f":"SQRT((CntyDataLink!$CK$148^2)+(CntyDataLink!$CM$148^2)+(CntyDataLink!$CO$148^2))","v":42.201895692018383},{"$f":"CntyDataLink!$DB$148+CntyDataLink!$DD$148+CntyDataLink!$DF$148","v":90},{"$f":"SQRT((CntyDataLink!$DC$148^2)+(CntyDataLink!$DE$148^2)+(CntyDataLink!$DG$148^2))","v":58.060313467979142},{"$f":"CntyDataLink!$DT$148+CntyDataLink!$DV$148+CntyDataLink!$DX$148","v":12},{"$f":"SQRT((CntyDataLink!$DU$148^2)+(CntyDataLink!$DW$148^2)+(CntyDataLink!$DY$148^2))","v":24.738633753705962},{"$f":"CntyDataLink!$EL$148+CntyDataLink!$EN$148+CntyDataLink!$EP$148","v":18},{"$f":"SQRT((CntyDataLink!$EM$148^2)+(CntyDataLink!$EO$148^2)+(CntyDataLink!$EQ$148^2))","v":32.741411087489801},{"$f":"CntyDataLink!$FD$148+CntyDataLink!$FF$148+CntyDataLink!$FH$148","v":0},{"$f":"SQRT((CntyDataLink!$FE$148^2)+(CntyDataLink!$FG$148^2)+(CntyDataLink!$FI$148^2))","v":20.784609690826528},{"$f":"CntyDataLink!$FV$148+CntyDataLink!$FX$148+CntyDataLink!$FZ$148","v":0},{"$f":"SQRT((CntyDataLink!$FW$148^2)+(CntyDataLink!$FY$148^2)+(CntyDataLink!$GA$148^2))","v":20.784609690826528}]
[null,null,null,"Rent 50% or More of HH Income",{"$f":"CntyDataLink!$T$156","v":98},{"$f":"CntyDataLink!$U$156","v":63},null,{"$f":"CntyDataLink!$BV$148","v":14},{"$f":"CntyDataLink!$BW$148","v":15},{"$f":"CntyDataLink!$CN$148","v":45},{"$f":"CntyDataLink!$CO$148","v":36},{"$f":"CntyDataLink!$DF$148","v":39},{"$f":"CntyDataLink!$DG$148","v":45},{"$f":"CntyDataLink!$DX$148","v":0},{"$f":"CntyDataLink!$DY$148","v":12},{"$f":"CntyDataLink!$EP$148","v":0},{"$f":"CntyDataLink!$EQ$148","v":12},{"$f":"CntyDataLink!$FH$148","v":0},{"$f":"CntyDataLink!$FI$148","v":12},{"$f":"CntyDataLink!$FZ$148","v":0},{"$f":"CntyDataLink!$GA$148","v":12}]
[null,null,null,"Percent not computed",{"$f":"CntyDataLink!$V$156","v":43},{"$f":"CntyDataLink!$W$156","v":36},null,{"$f":"CntyDataLink!$BX$148","v":32},{"$f":"CntyDataLink!$BY$148","v":37},{"$f":"CntyDataLink!$CP$148","v":11},{"$f":"CntyDataLink!$CQ$148","v":19},{"$f":"CntyDataLink!$DH$148","v":0},{"$f":"CntyDataLink!$DI$148","v":12},{"$f":"CntyDataLink!$DZ$148","v":0},{"$f":"CntyDataLink!$EA$148","v":12},{"$f":"CntyDataLink!$ER$148","v":0},{"$f":"CntyDataLink!$ES$148","v":12},{"$f":"CntyDataLink!$FJ$148","v":0},{"$f":"CntyDataLink!$FK$148","v":12},{"$f":"CntyDataLink!$GB$148","v":0},{"$f":"CntyDataLink!$GC148","v":12}]
[]
[]
[]
[null,null,null,"Percent of Households Paying ",null,null,null,"By Household Income"]
[null,null,null,{"$f":"D56","v":"Rent Less Than 30% of HH Income"},{"$f":"E56/E$52","v":0.41901408450704225},null,null,{"$f":"H56/H$52","v":0},null,{"$f":"J56/J$52","v":0.22448979591836735},null,{"$f":"L56/L$52","v":0},null,{"$f":"N56/N$52","v":0.51333333333333331},null,{"$f":"P56/P$52","v":0.83018867924528306},null,{"$f":"R56/R$52","v":1},null,{"$f":"T56/T$52","v":1}]
[null,null,null,{"$f":"D57","v":"Rent 30% or More of HH Income"},{"$f":"E57/E$52","v":0.50528169014084512},null,null,{"$f":"H57/H$52","v":0.30434782608695654},null,{"$f":"J57/J$52","v":0.66326530612244894},null,{"$f":"L57/L$52","v":1},null,{"$f":"N57/N$52","v":0.48666666666666669},null,{"$f":"P57/P$52","v":0.16981132075471697},null,{"$f":"R57/R$52","v":0},null,{"$f":"T57/T$52","v":0}]
[null,null,null,{"$f":"D59","v":"Rent Less Than 35% of HH Income"},{"$f":"E59/E$52","v":0.573943661971831},null,null,{"$f":"H59/H$52","v":0},null,{"$f":"J59/J$52","v":0.22448979591836735},null,{"$f":"L59/L$52","v":0.23076923076923078},null,{"$f":"N59/N$52","v":0.92},null,{"$f":"P59/P$52","v":0.83018867924528306},null,{"$f":"R59/R$52","v":1},null,{"$f":"T59/T$52","v":1}]
[null,null,null,{"$f":"D60","v":"Rent 35% or More of HH Income"},{"$f":"E60/E$52","v":0.35035211267605632},null,null,{"$f":"H60/H$52","v":0.30434782608695654},null,{"$f":"J60/J$52","v":0.66326530612244894},null,{"$f":"L60/L$52","v":0.76923076923076927},null,{"$f":"N60/N$52","v":0.08},null,{"$f":"P60/P$52","v":0.16981132075471697},null,{"$f":"R60/R$52","v":0},null,{"$f":"T60/T$52","v":0}]
[null,null,null,"Rent 50% or More of HH Income",{"$f":"E61/E$52","v":0.17253521126760563},null,null,{"$f":"H61/H$52","v":0.30434782608695654},null,{"$f":"J61/J$52","v":0.45918367346938777},null,{"$f":"L61/L$52","v":0.33333333333333331},null,{"$f":"N61/N$52","v":0},null,{"$f":"P61/P$52","v":0},null,{"$f":"R61/R$52","v":0},null,{"$f":"T61/T$52","v":0}]
[null,null,null,"Percent not computed",{"$f":"E62/E$52","v":7.5704225352112672E-2},null,null,{"$f":"H62/H$52","v":0.69565217391304346},null,{"$f":"J62/J$52","v":0.11224489795918367},null,{"$f":"L62/L$52","v":0},null,{"$f":"N62/N$52","v":0},null,{"$f":"P62/P$52","v":0},null,{"$f":"R62/R$52","v":0},null,{"$f":"T62/T$52","v":0}]
[]
[]
[null,null,null,"Source:  2018-2022 American Community Survey Table B25070; B25074"]
[]
[null,null,null,{"$f":"D41","v":"Income in 2022 Inflation Adjusted Dollars"}]
[null,null,null,"Data from the American Community Survey are estimates"]
[]
[null,null,null,{"$f":"CntyDataLink!A70","v":"Dublin"}]
[null,null,null,{"$f":"D4","v":"RENTAL HOUSING COST CHARACTERISTICS"}]
[]
[null,null,null,"Rental Housing Costs"]
[]
[null,null,null,"Renter Occupied Housing Units By Gross Rent "]
[]
[null,null,null,null,"Units","Margin of Error"]
[null,null,{"$f":"CntyDataLink!E$69","v":"H62RntrOccHU"},"Specified Renter Occ Housing Units",{"$f":"CntyDataLink!$B$148","v":568},{"$f":"CntyDataLink!$C$148","v":122}]
[null,null,{"$f":"CntyDataLink!F$69","v":"H62RntrOccHUwRent"},"Renter Occ. Housing Units w/ Cash Rent",{"$f":"CntyDataLink!$D$148","v":544},{"$f":"CntyDataLink!$E$148","v":121}]
[]
[null,null,{"$f":"CntyDataLink!G$69","v":"H62ROHUGRent<100"},"Gross Rent","Units","Margin of Error 2018-2022"]
[null,null,{"$f":"CntyDataLink!H$69","v":"H62ROHUGRent100to149"},"Less than $100",{"$f":"CntyDataLink!$F$148","v":0},{"$f":"CntyDataLink!$G$148","v":12}]
[null,null,{"$f":"CntyDataLink!I$69","v":"H62ROHUGRent150to199"},"$100 to $149",{"$f":"CntyDataLink!$H$148","v":0},{"$f":"CntyDataLink!$I$148","v":12}]
[null,null,{"$f":"CntyDataLink!J$69","v":"H62ROHUGRent200to249"},"$150 to $199",{"$f":"CntyDataLink!J$148","v":0},{"$f":"CntyDataLink!$K$148","v":12}]
[null,null,{"$f":"CntyDataLink!K$69","v":"H62ROHUGRent250to299"},"$200 to $249",{"$f":"CntyDataLink!$L$148","v":0},{"$f":"CntyDataLink!$M$148","v":12}]
[null,null,{"$f":"CntyDataLink!L$69","v":"H62ROHUGRent300to349"},"$250 to $299",{"$f":"CntyDataLink!$N$148","v":0},{"$f":"CntyDataLink!$O$148","v":12}]
[null,null,{"$f":"CntyDataLink!M$69","v":"H62ROHUGRent350to399"},"$300 to $349",{"$f":"CntyDataLink!$P$148","v":0},{"$f":"CntyDataLink!$Q$148","v":12}]
[null,null,{"$f":"CntyDataLink!N$69","v":"H62ROHUGRent400to449"},"$350 to $399",{"$f":"CntyDataLink!$R$148","v":22},{"$f":"CntyDataLink!$S$148","v":36}]
[null,null,{"$f":"CntyDataLink!O$69","v":"H62ROHUGRent450to499"},"$400 to $449",{"$f":"CntyDataLink!$T$148","v":0},{"$f":"CntyDataLink!$U$148","v":12}]
[null,null,{"$f":"CntyDataLink!P$69","v":"H62ROHUGRent500to549"},"$450 to $499",{"$f":"CntyDataLink!$V$148","v":17},{"$f":"CntyDataLink!$W$148","v":23}]
[null,null,{"$f":"CntyDataLink!Q$69","v":"H62ROHUGRent550to599"},"$500 to $549",{"$f":"CntyDataLink!$X$148","v":8},{"$f":"CntyDataLink!$Y$148","v":14}]
[null,null,{"$f":"CntyDataLink!R$69","v":"H62ROHUGRent600to649"},"$550 to $599",{"$f":"CntyDataLink!$Z$148","v":0},{"$f":"CntyDataLink!$AA$148","v":12}]
[null,null,{"$f":"CntyDataLink!S$69","v":"H62ROHUGRent650to699"},"$600 to $649",{"$f":"CntyDataLink!$AB$148","v":9},{"$f":"CntyDataLink!$AC$148","v":14}]
[null,null,{"$f":"CntyDataLink!T$69","v":"H62ROHUGRent700to749"},"$650 to $699",{"$f":"CntyDataLink!$AD$148","v":0},{"$f":"CntyDataLink!$AE$148","v":12}]
[null,null,{"$f":"CntyDataLink!U$69","v":"H62ROHUGRent750to799"},"$700 to $749",{"$f":"CntyDataLink!$AF$148","v":26},{"$f":"CntyDataLink!$AG$148","v":34}]
[null,null,{"$f":"CntyDataLink!V$69","v":"H62ROHUGRent800to899"},"$750 to $799",{"$f":"CntyDataLink!$AH$148","v":29},{"$f":"CntyDataLink!$AI$148","v":35}]
[null,null,{"$f":"CntyDataLink!W$69","v":"H62ROHUGRent900to999"},"$800 to $899",{"$f":"CntyDataLink!$AJ$148","v":112},{"$f":"CntyDataLink!$AK$148","v":70}]
[null,null,{"$f":"CntyDataLink!X$69","v":"H62ROHUGRent1000to1249"},"$900 to $999",{"$f":"CntyDataLink!$AL$148","v":81},{"$f":"CntyDataLink!$AM$148","v":53}]
[null,null,{"$f":"CntyDataLink!Y$69","v":"H62ROHUGRent1250to1499"},"$1000 to $1249",{"$f":"CntyDataLink!$AN$148","v":85},{"$f":"CntyDataLink!$AO$148","v":68}]
[null,null,{"$f":"CntyDataLink!Z$69","v":"H62ROHUGRent1500to1999"},"$1250 to $1499",{"$f":"CntyDataLink!$AP$148","v":79},{"$f":"CntyDataLink!$AQ$148","v":56}]
[null,null,{"$f":"CntyDataLink!AA$69","v":"H62ROHUGRent2000>"},"$1500 to $1999",{"$f":"CntyDataLink!$AR$148","v":45},{"$f":"CntyDataLink!$AS$148","v":45}]
[null,null,{"$f":"CntyDataLink!AB$69","v":"H62ROHUNoGRent"},"$2,000 to $2,499",{"$f":"CntyDataLink!$AT$148","v":31},{"$f":"CntyDataLink!$AU$148","v":36}]
[null,null,{"$f":"CntyDataLink!AC$69","v":"H63MedianGrossRnt"},"$2,500 to $2,999",{"$f":"CntyDataLink!$AV$148","v":0},{"$f":"CntyDataLink!$AW$148","v":12}]
[null,null,null,"$3,000 to $3,499",{"$f":"CntyDataLink!$AX$148","v":0},{"$f":"CntyDataLink!$AY$148","v":12}]
[null,null,null,"$3,500 or more",{"$f":"CntyDataLink!$AZ$148","v":0},{"$f":"CntyDataLink!$BA$148","v":12}]
[null,null,null,"Renter Occ. Housing Units w/ No Cash Rent",{"$f":"CntyDataLink!$BB$148","v":24},{"$f":"CntyDataLink!$BC$148","v":29}]
[]
[null,null,null,"Median Gross Rent",{"$f":"CntyDataLink!$BD$148","v":960},{"$f":"CntyDataLink!$BE$148","v":123}]
[]
[]
[]
[]
[null,null,null,"Source: 2018-2022 American Community Survey Table B25063; B25064"]
[null,null,null,"Data from the American Community Survey are estimates"]

{"sheet":"RentalHousingCost-Prior5Yr","index":79,"n_rows":124,"n_cols":21,"rows_kept":124,"cut":false,"hidden":true,"merged":[]}
[]
[null,null,"HIDE THIS COLUMN",{"$f":"CntyDataLink!A70","v":"Dublin"}]
[]
[null,null,null,"RENTAL HOUSING COST CHARACTERISTICS"]
[]
[]
[]
[]
[]
[]
[]
[]
[]
[]
[]
[]
[]
[]
[]
[]
[]
[]
[]
[]
[]
[]
[]
[]
[]
[]
[]
[]
[]
[]
[]
[]
[]
[]
[null,null,null,"Source:  2013-2017 American Community Survey Table B25074"]
[]
[null,null,null,"Income in 2017 Inflation Adjusted Dollars"]
[null,null,null,"Data from the American Community Survey are estimates"]
[null,null,null,{"$f":"CntyDataLinkPrior5YearEstimates!A120","v":"Dublin"}]
[]
[null,null,null,{"$f":"D4","v":"RENTAL HOUSING COST CHARACTERISTICS"}]
[]
[null,null,null,"Renter Households by "]
[null,null,null,"Gross Rent as a Percent of 2017 Household Income"]
[null,null,null,null,null,null,"By Household Income"]
[null,null,{"$f":"CntyDataLinkPrior5YearEstimates!AO$69","v":0},null,"Specified Renter Occ Housing Units",{"$f":"\"Margin of Error Renter Occupied Units\"","v":"Margin of Error Renter Occupied Units"},null,"Less than $10,000",{"$f":"\"Margin of Error \"&H50","v":"Margin of Error Less than $10,000"},"$10,000 to $19,999",{"$f":"\"Margin of Error \"&J50","v":"Margin of Error $10,000 to $19,999"},"$20,000 to $34,999",{"$f":"\"Margin of Error \"&L50","v":"Margin of Error $20,000 to $34,999"},"$35,000 to $49,999",{"$f":"\"Margin of Error \"&N50","v":"Margin of Error $35,000 to $49,999"},"$50,000 to $74,999",{"$f":"\"Margin of Error \"&P50","v":"Margin of Error $50,000 to $74,999"},"$75,000 to $99,999",{"$f":"\"Margin of Error \"&R50","v":"Margin of Error $75,000 to $99,999"},"$100,000 or More",{"$f":"\"Margin of Error \"&T50","v":"Margin of Error $100,000 or More"}]
[]
[null,null,null,"All Renter Households",{"$f":"CntyDataLinkPrior5YearEstimates!$B$156","v":493},{"$f":"CntyDataLinkPrior5YearEstimates!$C$156","v":124},null,{"$f":"CntyDataLinkPrior5YearEstimates!$BH$148","v":48},{"$f":"CntyDataLinkPrior5YearEstimates!$BI$148","v":55},{"$f":"CntyDataLinkPrior5YearEstimates!$BZ$148","v":71},{"$f":"CntyDataLinkPrior5YearEstimates!$CA$148","v":64},{"$f":"CntyDataLinkPrior5YearEstimates!$CR$148","v":144},{"$f":"CntyDataLinkPrior5YearEstimates!$CS$148","v":81},{"$f":"CntyDataLinkPrior5YearEstimates!$DJ$148","v":22},{"$f":"CntyDataLinkPrior5YearEstimates!$DK$148","v":26},{"$f":"CntyDataLinkPrior5YearEstimates!$EB$148","v":145},{"$f":"CntyDataLinkPrior5YearEstimates!$EC$148","v":73},{"$f":"CntyDataLinkPrior5YearEstimates!$ET$148","v":23},{"$f":"CntyDataLinkPrior5YearEstimates!$EU$148","v":25},{"$f":"CntyDataLinkPrior5YearEstimates!$FL$148","v":40},{"$f":"CntyDataLinkPrior5YearEstimates!$FM$148","v":64}]
[null,null,null,"Rent Less than 20% of HH Income",{"$f":"CntyDataLinkPrior5YearEstimates!$D$156","v":93},{"$f":"CntyDataLinkPrior5YearEstimates!$E$156","v":78.057670987546118},null,{"$f":"CntyDataLinkPrior5YearEstimates!$BJ$148","v":0},{"$f":"CntyDataLinkPrior5YearEstimates!$BK$148","v":11},{"$f":"CntyDataLinkPrior5YearEstimates!$CB$148","v":0},{"$f":"CntyDataLinkPrior5YearEstimates!$CC$148","v":11},{"$f":"CntyDataLinkPrior5YearEstimates!$CT$148","v":18},{"$f":"CntyDataLinkPrior5YearEstimates!$CU$148","v":17},{"$f":"CntyDataLinkPrior5YearEstimates!$DL$148","v":0},{"$f":"CntyDataLinkPrior5YearEstimates!$DM$148","v":11},{"$f":"CntyDataLinkPrior5YearEstimates!$ED$148","v":23},{"$f":"CntyDataLinkPrior5YearEstimates!$EE$148","v":25},{"$f":"CntyDataLinkPrior5YearEstimates!$EV$148","v":12},{"$f":"CntyDataLinkPrior5YearEstimates!$EW$148","v":19},{"$f":"CntyDataLinkPrior5YearEstimates!$FN$148","v":40},{"$f":"CntyDataLinkPrior5YearEstimates!$FO$148","v":64}]
[null,null,null,"Rent 20% to 24.9% of HH Income",{"$f":"CntyDataLinkPrior5YearEstimates!$F$156","v":120},{"$f":"CntyDataLinkPrior5YearEstimates!$G$156","v":85},null,{"$f":"CntyDataLinkPrior5YearEstimates!$BL$148","v":0},{"$f":"CntyDataLinkPrior5YearEstimates!$BM$148","v":11},{"$f":"CntyDataLinkPrior5YearEstimates!$CD$148","v":0},{"$f":"CntyDataLinkPrior5YearEstimates!$CE$148","v":11},{"$f":"CntyDataLinkPrior5YearEstimates!$CV$148","v":34},{"$f":"CntyDataLinkPrior5YearEstimates!$CW$148","v":50},{"$f":"CntyDataLinkPrior5YearEstimates!$DN$148","v":10},{"$f":"CntyDataLinkPrior5YearEstimates!$DO$148","v":16},{"$f":"CntyDataLinkPrior5YearEstimates!$EF$148","v":65},{"$f":"CntyDataLinkPrior5YearEstimates!$EG$148","v":58},{"$f":"CntyDataLinkPrior5YearEstimates!$EX$148","v":11},{"$f":"CntyDataLinkPrior5YearEstimates!$EY$148","v":17},{"$f":"CntyDataLinkPrior5YearEstimates!$FP$148","v":0},{"$f":"CntyDataLinkPrior5YearEstimates!$FQ$148","v":11}]
[null,null,null,"Rent 25% to 29.9% of HH Income",{"$f":"CntyDataLinkPrior5YearEstimates!$H$156","v":22},{"$f":"CntyDataLinkPrior5YearEstimates!$I$156","v":34},null,{"$f":"CntyDataLinkPrior5YearEstimates!$BN$148","v":0},{"$f":"CntyDataLinkPrior5YearEstimates!$BO$148","v":11},{"$f":"CntyDataLinkPrior5YearEstimates!$CF$148","v":0},{"$f":"CntyDataLinkPrior5YearEstimates!$CG$148","v":11},{"$f":"CntyDataLinkPrior5YearEstimates!$CX$148","v":0},{"$f":"CntyDataLinkPrior5YearEstimates!$CY$148","v":11},{"$f":"CntyDataLinkPrior5YearEstimates!$DP$148","v":0},{"$f":"CntyDataLinkPrior5YearEstimates!$DQ$148","v":11},{"$f":"CntyDataLinkPrior5YearEstimates!$EH$148","v":22},{"$f":"CntyDataLinkPrior5YearEstimates!$EI$148","v":34},{"$f":"CntyDataLinkPrior5YearEstimates!$EZ$148","v":0},{"$f":"CntyDataLinkPrior5YearEstimates!$FA$148","v":11},{"$f":"CntyDataLinkPrior5YearEstimates!$FR$148","v":0},{"$f":"CntyDataLinkPrior5YearEstimates!$FS$148","v":11}]
[null,null,null,"Rent Less Than 30% of HH Income",{"$f":"CntyDataLinkPrior5YearEstimates!$J$156","v":235},{"$f":"CntyDataLinkPrior5YearEstimates!$K$156","v":120.30793822520607},null,{"$f":"SUM(H53:H55)","v":0},{"$f":"SQRT((I53^2)+(I54^2)+(I55^2))","v":19.05255888325765},{"$f":"SUM(J53:J55)","v":0},{"$f":"SQRT((K53^2)+(K54^2)+(K55^2))","v":19.05255888325765},{"$f":"SUM(L53:L55)","v":52},{"$f":"SQRT((M53^2)+(M54^2)+(M55^2))","v":53.944415837044708},{"$f":"SUM(N53:N55)","v":10},{"$f":"SQRT((O53^2)+(O54^2)+(O55^2))","v":22.315913604421397},{"$f":"SUM(P53:P55)","v":110},{"$f":"SQRT((Q53^2)+(Q54^2)+(Q55^2))","v":71.728655361717188},{"$f":"SUM(R53:R55)","v":23},{"$f":"SQRT((S53^2)+(S54^2)+(S55^2))","v":27.766886753829642},{"$f":"SUM(T53:T55)","v":40},{"$f":"SQRT((U53^2)+(U54^2)+(U55^2))","v":65.863495200300449}]
[null,null,null,"Rent 30% or More of HH Income",{"$f":"CntyDataLinkPrior5YearEstimates!$L$156","v":223},{"$f":"CntyDataLinkPrior5YearEstimates!$M$156","v":109.35264057168442},null,{"$f":"H60+H58","v":48},{"$f":"SQRT((I58^2)+(I60^2))","v":58.20652884342099},{"$f":"J60+J58","v":64},{"$f":"SQRT((K58^2)+(K60^2))","v":64.420493633625625},{"$f":"L60+L58","v":92},{"$f":"SQRT((M58^2)+(M60^2))","v":67.860150309294184},{"$f":"N60+N58","v":0},{"$f":"SQRT((O58^2)+(O60^2))","v":22},19,{"$f":"SQRT((Q58^2)+(Q60^2))","v":35.538711287833721},{"$f":"R60+R58","v":0},{"$f":"SQRT((S58^2)+(S60^2))","v":22},0,{"$f":"SQRT((U58^2)+(U60^2))","v":22}]
[null,null,null,"Rent 30% to 34.9% of HH Income",{"$f":"CntyDataLinkPrior5YearEstimates!$N$156","v":50},{"$f":"CntyDataLinkPrior5YearEstimates!$O$156","v":37},null,{"$f":"CntyDataLinkPrior5YearEstimates!$BP$148","v":0},{"$f":"CntyDataLinkPrior5YearEstimates!$BQ$148","v":11},{"$f":"CntyDataLinkPrior5YearEstimates!$CH$148","v":4},{"$f":"CntyDataLinkPrior5YearEstimates!$CI$148","v":8},{"$f":"CntyDataLinkPrior5YearEstimates!$CZ$148","v":27},{"$f":"CntyDataLinkPrior5YearEstimates!$DA$148","v":28},{"$f":"CntyDataLinkPrior5YearEstimates!$DR$148","v":0},{"$f":"CntyDataLinkPrior5YearEstimates!$DS$148","v":11},{"$f":"CntyDataLinkPrior5YearEstimates!$EJ$148","v":19},{"$f":"CntyDataLinkPrior5YearEstimates!$EK$148","v":30},{"$f":"CntyDataLinkPrior5YearEstimates!$FB$148","v":0},{"$f":"CntyDataLinkPrior5YearEstimates!$FC$148","v":11},{"$f":"CntyDataLinkPrior5YearEstimates!$FT$148","v":0},{"$f":"CntyDataLinkPrior5YearEstimates!$FU$148","v":11}]
[null,null,null,"Rent Less Than 35% of HH Income",{"$f":"CntyDataLinkPrior5YearEstimates!$P$156","v":285},{"$f":"CntyDataLinkPrior5YearEstimates!$Q$156","v":125.86897949852458},null,{"$f":"SUM(H56,H58)","v":0},{"$f":"SQRT((I56^2)+(I58^2))","v":22},{"$f":"SUM(J56,J58)","v":4},{"$f":"SQRT((K56^2)+(K58^2))","v":20.663978319771825},{"$f":"SUM(L56,L58)","v":79},{"$f":"SQRT((M56^2)+(M58^2))","v":60.778285596090974},10,33.315913604421397,129,{"$f":"SQRT((Q58^2)+(Q56^2))","v":77.749598069700653},{"$f":"SUM(R56,R58)","v":23},{"$f":"SQRT((S58^2)+(S56^2))","v":29.866369046136157},40,{"$f":"SQRT((U58^2)+(U56^2))","v":66.775744099186198}]
[null,null,null,"Rent 35% or More of HH Income",{"$f":"CntyDataLinkPrior5YearEstimates!$R$156","v":173},{"$f":"CntyDataLinkPrior5YearEstimates!$S$156","v":102.90286682109493},null,{"$f":"CntyDataLinkPrior5YearEstimates!$BR$148+CntyDataLinkPrior5YearEstimates!$BT$148+CntyDataLinkPrior5YearEstimates!$BV$148","v":48},{"$f":"SQRT((CntyDataLinkPrior5YearEstimates!$BS$148^2)+(CntyDataLinkPrior5YearEstimates!$BU$148^2)+(CntyDataLinkPrior5YearEstimates!$BW$148^2))","v":57.157676649772952},{"$f":"CntyDataLinkPrior5YearEstimates!$CJ$148+CntyDataLinkPrior5YearEstimates!$CL$148+CntyDataLinkPrior5YearEstimates!$CN$148","v":60},{"$f":"SQRT((CntyDataLinkPrior5YearEstimates!$CK$148^2)+(CntyDataLinkPrior5YearEstimates!$CM$148^2)+(CntyDataLinkPrior5YearEstimates!$CO$148^2))","v":63.921827257987552},{"$f":"CntyDataLinkPrior5YearEstimates!$DB$148+CntyDataLinkPrior5YearEstimates!$DD$148+CntyDataLinkPrior5YearEstimates!$DF$148","v":65},{"$f":"SQRT((CntyDataLinkPrior5YearEstimates!$DC$148^2)+(CntyDataLinkPrior5YearEstimates!$DE$148^2)+(CntyDataLinkPrior5YearEstimates!$DG$148^2))","v":61.814237842102365},{"$f":"CntyDataLinkPrior5YearEstimates!$DT$148+CntyDataLinkPrior5YearEstimates!$DV$148+CntyDataLinkPrior5YearEstimates!$DX$148","v":0},{"$f":"SQRT((CntyDataLinkPrior5YearEstimates!$DU$148^2)+(CntyDataLinkPrior5YearEstimates!$DW$148^2)+(CntyDataLinkPrior5YearEstimates!$DY$148^2))","v":19.05255888325765},{"$f":"CntyDataLinkPrior5YearEstimates!$EL$148+CntyDataLinkPrior5YearEstimates!$EN$148+CntyDataLinkPrior5YearEstimates!$EP$148","v":0},{"$f":"SQRT((CntyDataLinkPrior5YearEstimates!$EM$148^2)+(CntyDataLinkPrior5YearEstimates!$EO$148^2)+(CntyDataLinkPrior5YearEstimates!$EQ$148^2))","v":19.05255888325765},{"$f":"CntyDataLinkPrior5YearEstimates!$FD$148+CntyDataLinkPrior5YearEstimates!$FF$148+CntyDataLinkPrior5YearEstimates!$FH$148","v":0},{"$f":"SQRT((CntyDataLinkPrior5YearEstimates!$FE$148^2)+(CntyDataLinkPrior5YearEstimates!$FG$148^2)+(CntyDataLinkPrior5YearEstimates!$FI$148^2))","v":19.05255888325765},{"$f":"CntyDataLinkPrior5YearEstimates!$FV$148+CntyDataLinkPrior5YearEstimates!$FX$148+CntyDataLinkPrior5YearEstimates!$FZ$148","v":0},{"$f":"SQRT((CntyDataLinkPrior5YearEstimates!$FW$148^2)+(CntyDataLinkPrior5YearEstimates!$FY$148^2)+(CntyDataLinkPrior5YearEstimates!$GA$148^2))","v":19.05255888325765}]
[null,null,null,"Rent 50% or More of HH Income",{"$f":"CntyDataLinkPrior5YearEstimates!$T$156","v":108},{"$f":"CntyDataLinkPrior5YearEstimates!$U$156","v":83},null,{"$f":"CntyDataLinkPrior5YearEstimates!$BV$148","v":48},{"$f":"CntyDataLinkPrior5YearEstimates!$BW$148","v":55},{"$f":"CntyDataLinkPrior5YearEstimates!$CN$148","v":60},{"$f":"CntyDataLinkPrior5YearEstimates!$CO$148","v":62},{"$f":"CntyDataLinkPrior5YearEstimates!$DF$148","v":0},{"$f":"CntyDataLinkPrior5YearEstimates!$DG$148","v":11},{"$f":"CntyDataLinkPrior5YearEstimates!$DX$148","v":0},{"$f":"CntyDataLinkPrior5YearEstimates!$DY$148","v":11},{"$f":"CntyDataLinkPrior5YearEstimates!$EP$148","v":0},{"$f":"CntyDataLinkPrior5YearEstimates!$EQ$148","v":11},{"$f":"CntyDataLinkPrior5YearEstimates!$FH$148","v":0},{"$f":"CntyDataLinkPrior5YearEstimates!$FI$148","v":11},{"$f":"CntyDataLinkPrior5YearEstimates!$FZ$148","v":0},{"$f":"CntyDataLinkPrior5YearEstimates!$GA$148","v":11}]
[null,null,null,"Percent not computed",{"$f":"CntyDataLinkPrior5YearEstimates!$V$156","v":35},{"$f":"CntyDataLinkPrior5YearEstimates!$W$156","v":28},null,{"$f":"CntyDataLinkPrior5YearEstimates!$BX$148","v":0},{"$f":"CntyDataLinkPrior5YearEstimates!$BY$148","v":11},{"$f":"CntyDataLinkPrior5YearEstimates!$CP$148","v":7},{"$f":"CntyDataLinkPrior5YearEstimates!$CQ$148","v":12},{"$f":"CntyDataLinkPrior5YearEstimates!$DH$148","v":0},{"$f":"CntyDataLinkPrior5YearEstimates!$DI$148","v":11},{"$f":"CntyDataLinkPrior5YearEstimates!$DZ$148","v":12},{"$f":"CntyDataLinkPrior5YearEstimates!$EA$148","v":20},{"$f":"CntyDataLinkPrior5YearEstimates!$ER$148","v":16},{"$f":"CntyDataLinkPrior5YearEstimates!$ES$148","v":17},{"$f":"CntyDataLinkPrior5YearEstimates!$FJ$148","v":0},{"$f":"CntyDataLinkPrior5YearEstimates!$FK$148","v":11},{"$f":"CntyDataLinkPrior5YearEstimates!$GB$148","v":0},{"$f":"CntyDataLinkPrior5YearEstimates!$GC148","v":11}]
[]
[]
[null,null,null,"Percent of Households Paying ",null,null,null,"By Household Income"]
[null,null,null,{"$f":"D56","v":"Rent Less Than 30% of HH Income"},{"$f":"E56/E$52","v":0.47667342799188639},null,null,{"$f":"H56/H$52","v":0},null,{"$f":"J56/J$52","v":0},null,{"$f":"L56/L$52","v":0.3611111111111111},null,{"$f":"N56/N$52","v":0.45454545454545453},null,{"$f":"P56/P$52","v":0.75862068965517238},null,{"$f":"R56/R$52","v":1},null,{"$f":"T56/T$52","v":1}]
[null,null,null,{"$f":"D57","v":"Rent 30% or More of HH Income"},{"$f":"E57/E$52","v":0.45233265720081134},null,null,{"$f":"H57/H$52","v":1},null,{"$f":"J57/J$52","v":0.90140845070422537},null,{"$f":"L57/L$52","v":0.63888888888888884},null,{"$f":"N57/N$52","v":0},null,{"$f":"P57/P$52","v":0.1310344827586207},null,{"$f":"R57/R$52","v":0},null,{"$f":"T57/T$52","v":0}]
[null,null,null,{"$f":"D59","v":"Rent Less Than 35% of HH Income"},{"$f":"E59/E$52","v":0.57809330628803246},null,null,{"$f":"H59/H$52","v":0},null,{"$f":"J59/J$52","v":5.6338028169014086E-2},null,{"$f":"L59/L$52","v":0.54861111111111116},null,{"$f":"N59/N$52","v":0.45454545454545453},null,{"$f":"P59/P$52","v":0.8896551724137931},null,{"$f":"R59/R$52","v":1},null,{"$f":"T59/T$52","v":1}]
[null,null,null,{"$f":"D60","v":"Rent 35% or More of HH Income"},{"$f":"E60/E$52","v":0.35091277890466532},null,null,{"$f":"H60/H$52","v":1},null,{"$f":"J60/J$52","v":0.84507042253521125},null,{"$f":"L60/L$52","v":0.4513888888888889},null,{"$f":"N60/N$52","v":0},null,{"$f":"P60/P$52","v":0},null,{"$f":"R60/R$52","v":0},null,{"$f":"T60/T$52","v":0}]
[null,null,null,"Rent 50% or More of HH Income",{"$f":"E61/E$52","v":0.21906693711967545},null,null,{"$f":"H61/H$52","v":1},null,{"$f":"J61/J$52","v":0.84507042253521125},null,{"$f":"L61/L$52","v":0},null,{"$f":"N61/N$52","v":0},null,{"$f":"P61/P$52","v":0},null,{"$f":"R61/R$52","v":0},null,{"$f":"T61/T$52","v":0}]
[null,null,null,"Percent not computed",{"$f":"E62/E$52","v":7.099391480730223E-2},null,null,{"$f":"H62/H$52","v":0},null,{"$f":"J62/J$52","v":9.8591549295774641E-2},null,{"$f":"L62/L$52","v":0},null,{"$f":"N62/N$52","v":0.54545454545454541},null,{"$f":"P62/P$52","v":0.1103448275862069},null,{"$f":"R62/R$52","v":0},null,{"$f":"T62/T$52","v":0}]
[]
[null,null,null,"Source:  2013-2017 American Community Survey Table B25070; B25074"]
[]
[null,null,null,{"$f":"D41","v":"Income in 2017 Inflation Adjusted Dollars"}]
[null,null,null,"Data from the American Community Survey are estimates"]
[]
[]
[]
[null,null,null,{"$f":"D2","v":"Dublin"}]
[null,null,null,{"$f":"D4","v":"RENTAL HOUSING COST CHARACTERISTICS"}]
[]
[null,null,null,"Rental Housing Costs"]
[]
[null,null,null,"Renter Occupied Housing Units By Gross Rent "]
[]
[]
[null,null,{"$f":"CntyDataLink!E$69","v":"H62RntrOccHU"},"Specified Renter Occ Housing Units","Units","Margin of Error"]
[null,null,{"$f":"CntyDataLink!F$69","v":"H62RntrOccHUwRent"},"Renter Occ. Housing Units w/ Cash Rent",{"$f":"CntyDataLinkPrior5YearEstimates!$B$148","v":493},{"$f":"CntyDataLinkPrior5YearEstimates!$C$148","v":124}]
[null,null,null,null,{"$f":"CntyDataLinkPrior5YearEstimates!$D$148","v":458},{"$f":"CntyDataLinkPrior5YearEstimates!$E$148","v":130}]
[null,null,{"$f":"CntyDataLink!G$69","v":"H62ROHUGRent<100"},"Gross Rent"]
[null,null,{"$f":"CntyDataLink!H$69","v":"H62ROHUGRent100to149"},"Less than $100","Units","Margin of Error 2013-2017"]
[null,null,{"$f":"CntyDataLink!I$69","v":"H62ROHUGRent150to199"},"$100 to $149",{"$f":"CntyDataLinkPrior5YearEstimates!$F$148","v":0},{"$f":"CntyDataLinkPrior5YearEstimates!$G$148","v":11}]
[null,null,{"$f":"CntyDataLink!J$69","v":"H62ROHUGRent200to249"},"$150 to $199",{"$f":"CntyDataLinkPrior5YearEstimates!$H$148","v":0},{"$f":"CntyDataLinkPrior5YearEstimates!$I$148","v":11}]
[null,null,{"$f":"CntyDataLink!K$69","v":"H62ROHUGRent250to299"},"$200 to $249",{"$f":"CntyDataLinkPrior5YearEstimates!J$148","v":0},{"$f":"CntyDataLinkPrior5YearEstimates!$K$148","v":11}]
[null,null,{"$f":"CntyDataLink!L$69","v":"H62ROHUGRent300to349"},"$250 to $299",{"$f":"CntyDataLinkPrior5YearEstimates!$L$148","v":0},{"$f":"CntyDataLinkPrior5YearEstimates!$M$148","v":11}]
[null,null,{"$f":"CntyDataLink!M$69","v":"H62ROHUGRent350to399"},"$300 to $349",{"$f":"CntyDataLinkPrior5YearEstimates!$N$148","v":0},{"$f":"CntyDataLinkPrior5YearEstimates!$O$148","v":11}]
[null,null,{"$f":"CntyDataLink!N$69","v":"H62ROHUGRent400to449"},"$350 to $399",{"$f":"CntyDataLinkPrior5YearEstimates!$P$148","v":8},{"$f":"CntyDataLinkPrior5YearEstimates!$Q$148","v":14}]
[null,null,{"$f":"CntyDataLink!O$69","v":"H62ROHUGRent450to499"},"$400 to $449",{"$f":"CntyDataLinkPrior5YearEstimates!$R$148","v":10},{"$f":"CntyDataLinkPrior5YearEstimates!$S$148","v":17}]
[null,null,{"$f":"CntyDataLink!P$69","v":"H62ROHUGRent500to549"},"$450 to $499",{"$f":"CntyDataLinkPrior5YearEstimates!$T$148","v":34},{"$f":"CntyDataLinkPrior5YearEstimates!$U$148","v":50}]
[null,null,{"$f":"CntyDataLink!Q$69","v":"H62ROHUGRent550to599"},"$500 to $549",{"$f":"CntyDataLinkPrior5YearEstimates!$V$148","v":4},{"$f":"CntyDataLinkPrior5YearEstimates!$W$148","v":8}]
[null,null,{"$f":"CntyDataLink!R$69","v":"H62ROHUGRent600to649"},"$550 to $599",{"$f":"CntyDataLinkPrior5YearEstimates!$X$148","v":0},{"$f":"CntyDataLinkPrior5YearEstimates!$Y$148","v":11}]
[null,null,{"$f":"CntyDataLink!S$69","v":"H62ROHUGRent650to699"},"$600 to $649",{"$f":"CntyDataLinkPrior5YearEstimates!$Z$148","v":0},{"$f":"CntyDataLinkPrior5YearEstimates!$AA$148","v":11}]
[null,null,{"$f":"CntyDataLink!T$69","v":"H62ROHUGRent700to749"},"$650 to $699",{"$f":"CntyDataLinkPrior5YearEstimates!$AB$148","v":0},{"$f":"CntyDataLinkPrior5YearEstimates!$AC$148","v":11}]
[null,null,{"$f":"CntyDataLink!U$69","v":"H62ROHUGRent750to799"},"$700 to $749",{"$f":"CntyDataLinkPrior5YearEstimates!$AD$148","v":88},{"$f":"CntyDataLinkPrior5YearEstimates!$AE$148","v":63}]
[null,null,{"$f":"CntyDataLink!V$69","v":"H62ROHUGRent800to899"},"$750 to $799",{"$f":"CntyDataLinkPrior5YearEstimates!$AF$148","v":0},{"$f":"CntyDataLinkPrior5YearEstimates!$AG$148","v":11}]
[null,null,{"$f":"CntyDataLink!W$69","v":"H62ROHUGRent900to999"},"$800 to $899",{"$f":"CntyDataLinkPrior5YearEstimates!$AH$148","v":11},{"$f":"CntyDataLinkPrior5YearEstimates!$AI$148","v":15}]
[null,null,{"$f":"CntyDataLink!X$69","v":"H62ROHUGRent1000to1249"},"$900 to $999",{"$f":"CntyDataLinkPrior5YearEstimates!$AJ$148","v":43},{"$f":"CntyDataLinkPrior5YearEstimates!$AK$148","v":35}]
[null,null,{"$f":"CntyDataLink!Y$69","v":"H62ROHUGRent1250to1499"},"$1000 to $1249",{"$f":"CntyDataLinkPrior5YearEstimates!$AL$148","v":17},{"$f":"CntyDataLinkPrior5YearEstimates!$AM$148","v":27}]
[null,null,{"$f":"CntyDataLink!Z$69","v":"H62ROHUGRent1500to1999"},"$1250 to $1499",{"$f":"CntyDataLinkPrior5YearEstimates!$AN$148","v":78},{"$f":"CntyDataLinkPrior5YearEstimates!$AO$148","v":64}]
[null,null,{"$f":"CntyDataLink!AA$69","v":"H62ROHUGRent2000>"},"$1500 to $1999",{"$f":"CntyDataLinkPrior5YearEstimates!$AP$148","v":124},{"$f":"CntyDataLinkPrior5YearEstimates!$AQ$148","v":91}]
[null,null,{"$f":"CntyDataLink!AB$69","v":"H62ROHUNoGRent"},"$2,000 to $2,499",{"$f":"CntyDataLinkPrior5YearEstimates!$AR$148","v":41},{"$f":"CntyDataLinkPrior5YearEstimates!$AS$148","v":42}]
[null,null,{"$f":"CntyDataLink!AC$69","v":"H63MedianGrossRnt"},"$2,500 to $2,999",{"$f":"CntyDataLinkPrior5YearEstimates!$AT$148","v":0},{"$f":"CntyDataLinkPrior5YearEstimates!$AU$148","v":11}]
[null,null,null,"$3,000 to $3,499",{"$f":"CntyDataLinkPrior5YearEstimates!$AV$148","v":0},{"$f":"CntyDataLinkPrior5YearEstimates!$AW$148","v":11}]
[null,null,null,"$3,500 or more",{"$f":"CntyDataLinkPrior5YearEstimates!$AX$148","v":0},{"$f":"CntyDataLinkPrior5YearEstimates!$AY$148","v":11}]
[null,null,null,"Renter Occ. Housing Units w/ No Cash Rent",{"$f":"CntyDataLinkPrior5YearEstimates!$AZ$148","v":0},{"$f":"CntyDataLinkPrior5YearEstimates!$BA$148","v":11}]
[null,null,null,null,{"$f":"CntyDataLinkPrior5YearEstimates!$BB$148","v":35},{"$f":"CntyDataLinkPrior5YearEstimates!$BC$148","v":28}]
[null,null,null,"Median Gross Rent"]
[null,null,null,null,{"$f":"CntyDataLinkPrior5YearEstimates!$BD$148","v":1045},{"$f":"CntyDataLinkPrior5YearEstimates!$BE$148","v":260}]
[]
[]
[]
[null,null,null,"Source: 2018-2022 American Community Survey Table B25063; B25064"]
[null,null,null,"Data from the American Community Survey are estimates"]

{"sheet":"RentalHousingCost-Prior10Yr","index":80,"n_rows":124,"n_cols":21,"rows_kept":124,"cut":false,"hidden":true,"merged":[]}
[]
[null,null,"HIDE THIS COLUMN",{"$f":"CntyDataLink!A70","v":"Dublin"}]
[]
[null,null,null,"RENTAL HOUSING COST CHARACTERISTICS"]
[]
[]
[]
[]
[]
[]
[]
[]
[]
[]
[]
[]
[]
[]
[]
[]
[]
[]
[]
[]
[]
[]
[]
[]
[]
[]
[]
[]
[]
[]
[]
[]
[]
[]
[null,null,null,"Source:  2008-2012 American Community Survey Table B25074"]
[]
[null,null,null,"Income in 2012 Inflation Adjusted Dollars"]
[null,null,null,"Data from the American Community Survey are estimates"]
[null,null,null,{"$f":"CntyDataLinkPrior10YearEstimate!A120","v":"Dublin"}]
[]
[null,null,null,{"$f":"D4","v":"RENTAL HOUSING COST CHARACTERISTICS"}]
[]
[null,null,null,"Renter Households by "]
[null,null,null,"Gross Rent as a Percent of 2012 Household Income"]
[null,null,null,null,null,null,"By Household Income"]
[null,null,{"$f":"CntyDataLinkPrior10YearEstimate!AO$69","v":0},null,"Specified Renter Occ Housing Units",{"$f":"\"Margin of Error Renter Occupied Units\"","v":"Margin of Error Renter Occupied Units"},null,"Less than $10,000",{"$f":"\"Margin of Error \"&H50","v":"Margin of Error Less than $10,000"},"$10,000 to $19,999",{"$f":"\"Margin of Error \"&J50","v":"Margin of Error $10,000 to $19,999"},"$20,000 to $34,999",{"$f":"\"Margin of Error \"&L50","v":"Margin of Error $20,000 to $34,999"},"$35,000 to $49,999",{"$f":"\"Margin of Error \"&N50","v":"Margin of Error $35,000 to $49,999"},"$50,000 to $74,999",{"$f":"\"Margin of Error \"&P50","v":"Margin of Error $50,000 to $74,999"},"$75,000 to $99,999",{"$f":"\"Margin of Error \"&R50","v":"Margin of Error $75,000 to $99,999"},"$100,000 or More",{"$f":"\"Margin of Error \"&T50","v":"Margin of Error $100,000 or More"}]
[]
[null,null,null,"All Renter Households",{"$f":"CntyDataLinkPrior10YearEstimate!$B$156","v":571},{"$f":"CntyDataLinkPrior10YearEstimate!$C$156","v":128},null,{"$f":"CntyDataLinkPrior10YearEstimate!$BH$148","v":50},{"$f":"CntyDataLinkPrior10YearEstimate!$BI$148","v":43},{"$f":"CntyDataLinkPrior10YearEstimate!$BZ$148","v":93},{"$f":"CntyDataLinkPrior10YearEstimate!$CA$148","v":70},{"$f":"CntyDataLinkPrior10YearEstimate!$CR$148","v":238},{"$f":"CntyDataLinkPrior10YearEstimate!$CS$148","v":98},{"$f":"CntyDataLinkPrior10YearEstimate!$DJ$148","v":33},{"$f":"CntyDataLinkPrior10YearEstimate!$DK$148","v":31},{"$f":"CntyDataLinkPrior10YearEstimate!$EB$148","v":133},{"$f":"CntyDataLinkPrior10YearEstimate!$EC$148","v":83},{"$f":"CntyDataLinkPrior10YearEstimate!$ET$148","v":24},{"$f":"CntyDataLinkPrior10YearEstimate!$EU$148","v":27},{"$f":"CntyDataLinkPrior10YearEstimate!$FL$148","v":0},{"$f":"CntyDataLinkPrior10YearEstimate!$FM$148","v":11}]
[null,null,null,"Rent Less than 20% of HH Income",{"$f":"CntyDataLinkPrior10YearEstimate!$D$156","v":69},{"$f":"CntyDataLinkPrior10YearEstimate!$E$156","v":48.559242168715933},null,{"$f":"CntyDataLinkPrior10YearEstimate!$BJ$148","v":0},{"$f":"CntyDataLinkPrior10YearEstimate!$BK$148","v":11},{"$f":"CntyDataLinkPrior10YearEstimate!$CB$148","v":0},{"$f":"CntyDataLinkPrior10YearEstimate!$CC$148","v":11},{"$f":"CntyDataLinkPrior10YearEstimate!$CT$148","v":17},{"$f":"CntyDataLinkPrior10YearEstimate!$CU$148","v":19},{"$f":"CntyDataLinkPrior10YearEstimate!$DL$148","v":10},{"$f":"CntyDataLinkPrior10YearEstimate!$DM$148","v":17},{"$f":"CntyDataLinkPrior10YearEstimate!$ED$148","v":27},{"$f":"CntyDataLinkPrior10YearEstimate!$EE$148","v":36},{"$f":"CntyDataLinkPrior10YearEstimate!$EV$148","v":15},{"$f":"CntyDataLinkPrior10YearEstimate!$EW$148","v":23},{"$f":"CntyDataLinkPrior10YearEstimate!$FN$148","v":0},{"$f":"CntyDataLinkPrior10YearEstimate!$FO$148","v":11}]
[null,null,null,"Rent 20% to 24.9% of HH Income",{"$f":"CntyDataLinkPrior10YearEstimate!$F$156","v":62},{"$f":"CntyDataLinkPrior10YearEstimate!$G$156","v":55},null,{"$f":"CntyDataLinkPrior10YearEstimate!$BL$148","v":0},{"$f":"CntyDataLinkPrior10YearEstimate!$BM$148","v":11},{"$f":"CntyDataLinkPrior10YearEstimate!$CD$148","v":0},{"$f":"CntyDataLinkPrior10YearEstimate!$CE$148","v":11},{"$f":"CntyDataLinkPrior10YearEstimate!$CV$148","v":0},{"$f":"CntyDataLinkPrior10YearEstimate!$CW$148","v":11},{"$f":"CntyDataLinkPrior10YearEstimate!$DN$148","v":13},{"$f":"CntyDataLinkPrior10YearEstimate!$DO$148","v":20},{"$f":"CntyDataLinkPrior10YearEstimate!$EF$148","v":40},{"$f":"CntyDataLinkPrior10YearEstimate!$EG$148","v":51},{"$f":"CntyDataLinkPrior10YearEstimate!$EX$148","v":9},{"$f":"CntyDataLinkPrior10YearEstimate!$EY$148","v":13},{"$f":"CntyDataLinkPrior10YearEstimate!$FP$148","v":0},{"$f":"CntyDataLinkPrior10YearEstimate!$FQ$148","v":11}]
[null,null,null,"Rent 25% to 29.9% of HH Income",{"$f":"CntyDataLinkPrior10YearEstimate!$H$156","v":70},{"$f":"CntyDataLinkPrior10YearEstimate!$I$156","v":61},null,{"$f":"CntyDataLinkPrior10YearEstimate!$BN$148","v":0},{"$f":"CntyDataLinkPrior10YearEstimate!$BO$148","v":11},{"$f":"CntyDataLinkPrior10YearEstimate!$CF$148","v":0},{"$f":"CntyDataLinkPrior10YearEstimate!$CG$148","v":11},{"$f":"CntyDataLinkPrior10YearEstimate!$CX$148","v":9},{"$f":"CntyDataLinkPrior10YearEstimate!$CY$148","v":15},{"$f":"CntyDataLinkPrior10YearEstimate!$DP$148","v":0},{"$f":"CntyDataLinkPrior10YearEstimate!$DQ$148","v":11},{"$f":"CntyDataLinkPrior10YearEstimate!$EH$148","v":61},{"$f":"CntyDataLinkPrior10YearEstimate!$EI$148","v":59},{"$f":"CntyDataLinkPrior10YearEstimate!$EZ$148","v":0},{"$f":"CntyDataLinkPrior10YearEstimate!$FA$148","v":11},{"$f":"CntyDataLinkPrior10YearEstimate!$FR$148","v":0},{"$f":"CntyDataLinkPrior10YearEstimate!$FS$148","v":11}]
[null,null,null,"Rent Less Than 30% of HH Income",{"$f":"CntyDataLinkPrior10YearEstimate!$J$156","v":201},{"$f":"CntyDataLinkPrior10YearEstimate!$K$156","v":95.414883535012507},null,{"$f":"SUM(H53:H55)","v":0},{"$f":"SQRT((I53^2)+(I54^2)+(I55^2))","v":19.05255888325765},{"$f":"SUM(J53:J55)","v":0},{"$f":"SQRT((K53^2)+(K54^2)+(K55^2))","v":19.05255888325765},{"$f":"SUM(L53:L55)","v":26},{"$f":"SQRT((M53^2)+(M54^2)+(M55^2))","v":26.589471600616662},{"$f":"SUM(N53:N55)","v":23},{"$f":"SQRT((O53^2)+(O54^2)+(O55^2))","v":28.460498941515414},{"$f":"SUM(P53:P55)","v":128},{"$f":"SQRT((Q53^2)+(Q54^2)+(Q55^2))","v":85.895285085969647},{"$f":"SUM(R53:R55)","v":24},{"$f":"SQRT((S53^2)+(S54^2)+(S55^2))","v":28.61817604250837},{"$f":"SUM(T53:T55)","v":0},{"$f":"SQRT((U53^2)+(U54^2)+(U55^2))","v":19.05255888325765}]
[null,null,null,"Rent 30% or More of HH Income",{"$f":"CntyDataLinkPrior10YearEstimate!$L$156","v":342},{"$f":"CntyDataLinkPrior10YearEstimate!$M$156","v":127.73409881468612},null,{"$f":"H60+H58","v":27},{"$f":"SQRT((I58^2)+(I60^2))","v":21.95449840010015},{"$f":"J60+J58","v":93},{"$f":"SQRT((K58^2)+(K60^2))","v":70.859014952227497},{"$f":"L60+L58","v":212},{"$f":"SQRT((M58^2)+(M60^2))","v":93.471920917460551},{"$f":"N60+N58","v":10},{"$f":"SQRT((O58^2)+(O60^2))","v":20.248456731316587},0,{"$f":"SQRT((Q58^2)+(Q60^2))","v":15.556349186104045},{"$f":"R60+R58","v":0},{"$f":"SQRT((S58^2)+(S60^2))","v":15.556349186104045},0,{"$f":"SQRT((U58^2)+(U60^2))","v":15.556349186104045}]
[null,null,null,"Rent 30% to 34.9% of HH Income",{"$f":"CntyDataLinkPrior10YearEstimate!$N$156","v":49},{"$f":"CntyDataLinkPrior10YearEstimate!$O$156","v":45},null,{"$f":"CntyDataLinkPrior10YearEstimate!$BP$148","v":0},{"$f":"CntyDataLinkPrior10YearEstimate!$BQ$148","v":11},{"$f":"CntyDataLinkPrior10YearEstimate!$CH$148","v":0},{"$f":"CntyDataLinkPrior10YearEstimate!$CI$148","v":11},{"$f":"CntyDataLinkPrior10YearEstimate!$CZ$148","v":39},{"$f":"CntyDataLinkPrior10YearEstimate!$DA$148","v":41},{"$f":"CntyDataLinkPrior10YearEstimate!$DR$148","v":10},{"$f":"CntyDataLinkPrior10YearEstimate!$DS$148","v":17},{"$f":"CntyDataLinkPrior10YearEstimate!$EJ$148","v":0},{"$f":"CntyDataLinkPrior10YearEstimate!$EK$148","v":11},{"$f":"CntyDataLinkPrior10YearEstimate!$FB$148","v":0},{"$f":"CntyDataLinkPrior10YearEstimate!$FC$148","v":11},{"$f":"CntyDataLinkPrior10YearEstimate!$FT$148","v":0},{"$f":"CntyDataLinkPrior10YearEstimate!$FU$148","v":11}]
[null,null,null,"Rent Less Than 35% of HH Income",{"$f":"CntyDataLinkPrior10YearEstimate!$P$156","v":250},{"$f":"CntyDataLinkPrior10YearEstimate!$Q$156","v":105.49407566304374},null,{"$f":"SUM(H56,H58)","v":0},{"$f":"SQRT((I56^2)+(I58^2))","v":22},{"$f":"SUM(J56,J58)","v":0},{"$f":"SQRT((K56^2)+(K58^2))","v":22},{"$f":"SUM(L56,L58)","v":65},{"$f":"SQRT((M56^2)+(M58^2))","v":48.867166891482462},33,45.460498941515411,128,{"$f":"SQRT((Q58^2)+(Q56^2))","v":86.596766683289047},{"$f":"SUM(R56,R58)","v":24},{"$f":"SQRT((S58^2)+(S56^2))","v":30.659419433511783},0,{"$f":"SQRT((U58^2)+(U56^2))","v":22}]
[null,null,null,"Rent 35% or More of HH Income",{"$f":"CntyDataLinkPrior10YearEstimate!$R$156","v":293},{"$f":"CntyDataLinkPrior10YearEstimate!$S$156","v":119.5449706177554},null,{"$f":"CntyDataLinkPrior10YearEstimate!$BR$148+CntyDataLinkPrior10YearEstimate!$BT$148+CntyDataLinkPrior10YearEstimate!$BV$148","v":27},{"$f":"SQRT((CntyDataLinkPrior10YearEstimate!$BS$148^2)+(CntyDataLinkPrior10YearEstimate!$BU$148^2)+(CntyDataLinkPrior10YearEstimate!$BW$148^2))","v":19},{"$f":"CntyDataLinkPrior10YearEstimate!$CJ$148+CntyDataLinkPrior10YearEstimate!$CL$148+CntyDataLinkPrior10YearEstimate!$CN$148","v":93},{"$f":"SQRT((CntyDataLinkPrior10YearEstimate!$CK$148^2)+(CntyDataLinkPrior10YearEstimate!$CM$148^2)+(CntyDataLinkPrior10YearEstimate!$CO$148^2))","v":70},{"$f":"CntyDataLinkPrior10YearEstimate!$DB$148+CntyDataLinkPrior10YearEstimate!$DD$148+CntyDataLinkPrior10YearEstimate!$DF$148","v":173},{"$f":"SQRT((CntyDataLinkPrior10YearEstimate!$DC$148^2)+(CntyDataLinkPrior10YearEstimate!$DE$148^2)+(CntyDataLinkPrior10YearEstimate!$DG$148^2))","v":84},{"$f":"CntyDataLinkPrior10YearEstimate!$DT$148+CntyDataLinkPrior10YearEstimate!$DV$148+CntyDataLinkPrior10YearEstimate!$DX$148","v":0},{"$f":"SQRT((CntyDataLinkPrior10YearEstimate!$DU$148^2)+(CntyDataLinkPrior10YearEstimate!$DW$148^2)+(CntyDataLinkPrior10YearEstimate!$DY$148^2))","v":11},{"$f":"CntyDataLinkPrior10YearEstimate!$EL$148+CntyDataLinkPrior10YearEstimate!$EN$148+CntyDataLinkPrior10YearEstimate!$EP$148","v":0},{"$f":"SQRT((CntyDataLinkPrior10YearEstimate!$EM$148^2)+(CntyDataLinkPrior10YearEstimate!$EO$148^2)+(CntyDataLinkPrior10YearEstimate!$EQ$148^2))","v":11},{"$f":"CntyDataLinkPrior10YearEstimate!$FD$148+CntyDataLinkPrior10YearEstimate!$FF$148+CntyDataLinkPrior10YearEstimate!$FH$148","v":0},{"$f":"SQRT((CntyDataLinkPrior10YearEstimate!$FE$148^2)+(CntyDataLinkPrior10YearEstimate!$FG$148^2)+(CntyDataLinkPrior10YearEstimate!$FI$148^2))","v":11},{"$f":"CntyDataLinkPrior10YearEstimate!$FV$148+CntyDataLinkPrior10YearEstimate!$FX$148+CntyDataLinkPrior10YearEstimate!$FZ$148","v":0},{"$f":"SQRT((CntyDataLinkPrior10YearEstimate!$FW$148^2)+(CntyDataLinkPrior10YearEstimate!$FY$148^2)+(CntyDataLinkPrior10YearEstimate!$GA$148^2))","v":11}]
[null,null,null,"Rent 50% or More of HH Income",{"$f":"CntyDataLinkPrior10YearEstimate!$T$156","v":145},{"$f":"CntyDataLinkPrior10YearEstimate!$U$156","v":81},null,{"$f":"CntyDataLinkPrior10YearEstimate!$BV$148","v":0},{"$f":"CntyDataLinkPrior10YearEstimate!$BW$148","v":0},{"$f":"CntyDataLinkPrior10YearEstimate!$CN$148","v":0},{"$f":"CntyDataLinkPrior10YearEstimate!$CO$148","v":0},{"$f":"CntyDataLinkPrior10YearEstimate!$DF$148","v":0},{"$f":"CntyDataLinkPrior10YearEstimate!$DG$148","v":0},{"$f":"CntyDataLinkPrior10YearEstimate!$DX$148","v":0},{"$f":"CntyDataLinkPrior10YearEstimate!$DY$148","v":0},{"$f":"CntyDataLinkPrior10YearEstimate!$EP$148","v":0},{"$f":"CntyDataLinkPrior10YearEstimate!$EQ$148","v":0},{"$f":"CntyDataLinkPrior10YearEstimate!$FH$148","v":0},{"$f":"CntyDataLinkPrior10YearEstimate!$FI$148","v":0},{"$f":"CntyDataLinkPrior10YearEstimate!$FZ$148","v":0},{"$f":"CntyDataLinkPrior10YearEstimate!$GA$148","v":0}]
[null,null,null,"Percent not computed",{"$f":"CntyDataLinkPrior10YearEstimate!$V$156","v":0},{"$f":"CntyDataLinkPrior10YearEstimate!$W$156","v":0},null,{"$f":"CntyDataLinkPrior10YearEstimate!$BX$148","v":23},{"$f":"CntyDataLinkPrior10YearEstimate!$BY$148","v":38},{"$f":"CntyDataLinkPrior10YearEstimate!$CP$148","v":0},{"$f":"CntyDataLinkPrior10YearEstimate!$CQ$148","v":11},{"$f":"CntyDataLinkPrior10YearEstimate!$DH$148","v":0},{"$f":"CntyDataLinkPrior10YearEstimate!$DI$148","v":11},{"$f":"CntyDataLinkPrior10YearEstimate!$DZ$148","v":0},{"$f":"CntyDataLinkPrior10YearEstimate!$EA$148","v":11},{"$f":"CntyDataLinkPrior10YearEstimate!$ER$148","v":5},{"$f":"CntyDataLinkPrior10YearEstimate!$ES$148","v":9},{"$f":"CntyDataLinkPrior10YearEstimate!$FJ$148","v":0},{"$f":"CntyDataLinkPrior10YearEstimate!$FK$148","v":11},{"$f":"CntyDataLinkPrior10YearEstimate!$GB$148","v":0},{"$f":"CntyDataLinkPrior10YearEstimate!$GC148","v":11}]
[]
[]
[null,null,null,"Percent of Households Paying ",null,null,null,"By Household Income"]
[null,null,null,{"$f":"D56","v":"Rent Less Than 30% of HH Income"},{"$f":"E56/E$52","v":0.35201401050788089},null,null,{"$f":"H56/H$52","v":0},null,{"$f":"J56/J$52","v":0},null,{"$f":"L56/L$52","v":0.1092436974789916},null,{"$f":"N56/N$52","v":0.69696969696969702},null,{"$f":"P56/P$52","v":0.96240601503759393},null,{"$f":"R56/R$52","v":1},null,{"$f":"T56/T$52","v":{"$error":"#DIV/0!"}}]
[null,null,null,{"$f":"D57","v":"Rent 30% or More of HH Income"},{"$f":"E57/E$52","v":0.59894921190893169},null,null,{"$f":"H57/H$52","v":0.54},null,{"$f":"J57/J$52","v":1},null,{"$f":"L57/L$52","v":0.89075630252100846},null,{"$f":"N57/N$52","v":0.30303030303030304},null,{"$f":"P57/P$52","v":0},null,{"$f":"R57/R$52","v":0},null,{"$f":"T57/T$52","v":{"$error":"#DIV/0!"}}]
[null,null,null,{"$f":"D59","v":"Rent Less Than 35% of HH Income"},{"$f":"E59/E$52","v":0.43782837127845886},null,null,{"$f":"H59/H$52","v":0},null,{"$f":"J59/J$52","v":0},null,{"$f":"L59/L$52","v":0.27310924369747897},null,{"$f":"N59/N$52","v":1},null,{"$f":"P59/P$52","v":0.96240601503759393},null,{"$f":"R59/R$52","v":1},null,{"$f":"T59/T$52","v":{"$error":"#DIV/0!"}}]
[null,null,null,{"$f":"D60","v":"Rent 35% or More of HH Income"},{"$f":"E60/E$52","v":0.51313485113835378},null,null,{"$f":"H60/H$52","v":0.54},null,{"$f":"J60/J$52","v":1},null,{"$f":"L60/L$52","v":0.72689075630252098},null,{"$f":"N60/N$52","v":0},null,{"$f":"P60/P$52","v":0},null,{"$f":"R60/R$52","v":0},null,{"$f":"T60/T$52","v":{"$error":"#DIV/0!"}}]
[null,null,null,"Rent 50% or More of HH Income",{"$f":"E61/E$52","v":0.25394045534150611},null,null,{"$f":"H61/H$52","v":0},null,{"$f":"J61/J$52","v":0},null,{"$f":"L61/L$52","v":0},null,{"$f":"N61/N$52","v":0},null,{"$f":"P61/P$52","v":0},null,{"$f":"R61/R$52","v":0},null,{"$f":"T61/T$52","v":{"$error":"#DIV/0!"}}]
[null,null,null,"Percent not computed",{"$f":"E62/E$52","v":0},null,null,{"$f":"H62/H$52","v":0.46},null,{"$f":"J62/J$52","v":0},null,{"$f":"L62/L$52","v":0},null,{"$f":"N62/N$52","v":0},null,{"$f":"P62/P$52","v":3.7593984962406013E-2},null,{"$f":"R62/R$52","v":0},null,{"$f":"T62/T$52","v":{"$error":"#DIV/0!"}}]
[]
[null,null,null,"Source:  2008-2012 American Community Survey Table B25070; B25074"]
[]
[null,null,null,{"$f":"D41","v":"Income in 2012 Inflation Adjusted Dollars"}]
[null,null,null,"Data from the American Community Survey are estimates"]
[]
[]
[]
[null,null,null,{"$f":"D2","v":"Dublin"}]
[null,null,null,{"$f":"D4","v":"RENTAL HOUSING COST CHARACTERISTICS"}]
[]
[null,null,null,"Rental Housing Costs"]
[]
[null,null,null,"Renter Occupied Housing Units By Gross Rent "]
[]
[]
[null,null,{"$f":"CntyDataLink!E$69","v":"H62RntrOccHU"},"Specified Renter Occ Housing Units","Units","Margin of Error"]
[null,null,{"$f":"CntyDataLink!F$69","v":"H62RntrOccHUwRent"},"Renter Occ. Housing Units w/ Cash Rent",{"$f":"CntyDataLinkPrior10YearEstimate!$B$148","v":571},{"$f":"CntyDataLinkPrior10YearEstimate!$C$148","v":128}]
[null,null,null,null,{"$f":"CntyDataLinkPrior10YearEstimate!$D$148","v":566},{"$f":"CntyDataLinkPrior10YearEstimate!$E$148","v":128}]
[null,null,{"$f":"CntyDataLink!G$69","v":"H62ROHUGRent<100"},"Gross Rent"]
[null,null,{"$f":"CntyDataLink!H$69","v":"H62ROHUGRent100to149"},"Less than $100","Units","Margin of Error 2008-2012"]
[null,null,{"$f":"CntyDataLink!I$69","v":"H62ROHUGRent150to199"},"$100 to $149",{"$f":"CntyDataLinkPrior10YearEstimate!$F$148","v":0},{"$f":"CntyDataLinkPrior10YearEstimate!$G$148","v":11}]
[null,null,{"$f":"CntyDataLink!J$69","v":"H62ROHUGRent200to249"},"$150 to $199",{"$f":"CntyDataLinkPrior10YearEstimate!$H$148","v":0},{"$f":"CntyDataLinkPrior10YearEstimate!$I$148","v":11}]
[null,null,{"$f":"CntyDataLink!K$69","v":"H62ROHUGRent250to299"},"$200 to $249",{"$f":"CntyDataLinkPrior10YearEstimate!J$148","v":0},{"$f":"CntyDataLinkPrior10YearEstimate!$K$148","v":11}]
[null,null,{"$f":"CntyDataLink!L$69","v":"H62ROHUGRent300to349"},"$250 to $299",{"$f":"CntyDataLinkPrior10YearEstimate!$L$148","v":0},{"$f":"CntyDataLinkPrior10YearEstimate!$M$148","v":11}]
[null,null,{"$f":"CntyDataLink!M$69","v":"H62ROHUGRent350to399"},"$300 to $349",{"$f":"CntyDataLinkPrior10YearEstimate!$N$148","v":0},{"$f":"CntyDataLinkPrior10YearEstimate!$O$148","v":11}]
[null,null,{"$f":"CntyDataLink!N$69","v":"H62ROHUGRent400to449"},"$350 to $399",{"$f":"CntyDataLinkPrior10YearEstimate!$P$148","v":0},{"$f":"CntyDataLinkPrior10YearEstimate!$Q$148","v":11}]
[null,null,{"$f":"CntyDataLink!O$69","v":"H62ROHUGRent450to499"},"$400 to $449",{"$f":"CntyDataLinkPrior10YearEstimate!$R$148","v":16},{"$f":"CntyDataLinkPrior10YearEstimate!$S$148","v":13}]
[null,null,{"$f":"CntyDataLink!P$69","v":"H62ROHUGRent500to549"},"$450 to $499",{"$f":"CntyDataLinkPrior10YearEstimate!$T$148","v":8},{"$f":"CntyDataLinkPrior10YearEstimate!$U$148","v":13}]
[null,null,{"$f":"CntyDataLink!Q$69","v":"H62ROHUGRent550to599"},"$500 to $549",{"$f":"CntyDataLinkPrior10YearEstimate!$V$148","v":18},{"$f":"CntyDataLinkPrior10YearEstimate!$W$148","v":20}]
[null,null,{"$f":"CntyDataLink!R$69","v":"H62ROHUGRent600to649"},"$550 to $599",{"$f":"CntyDataLinkPrior10YearEstimate!$X$148","v":9},{"$f":"CntyDataLinkPrior10YearEstimate!$Y$148","v":14}]
[null,null,{"$f":"CntyDataLink!S$69","v":"H62ROHUGRent650to699"},"$600 to $649",{"$f":"CntyDataLinkPrior10YearEstimate!$Z$148","v":0},{"$f":"CntyDataLinkPrior10YearEstimate!$AA$148","v":11}]
[null,null,{"$f":"CntyDataLink!T$69","v":"H62ROHUGRent700to749"},"$650 to $699",{"$f":"CntyDataLinkPrior10YearEstimate!$AB$148","v":8},{"$f":"CntyDataLinkPrior10YearEstimate!$AC$148","v":13}]
[null,null,{"$f":"CntyDataLink!U$69","v":"H62ROHUGRent750to799"},"$700 to $749",{"$f":"CntyDataLinkPrior10YearEstimate!$AD$148","v":13},{"$f":"CntyDataLinkPrior10YearEstimate!$AE$148","v":20}]
[null,null,{"$f":"CntyDataLink!V$69","v":"H62ROHUGRent800to899"},"$750 to $799",{"$f":"CntyDataLinkPrior10YearEstimate!$AF$148","v":33},{"$f":"CntyDataLinkPrior10YearEstimate!$AG$148","v":43}]
[null,null,{"$f":"CntyDataLink!W$69","v":"H62ROHUGRent900to999"},"$800 to $899",{"$f":"CntyDataLinkPrior10YearEstimate!$AH$148","v":33},{"$f":"CntyDataLinkPrior10YearEstimate!$AI$148","v":36}]
[null,null,{"$f":"CntyDataLink!X$69","v":"H62ROHUGRent1000to1249"},"$900 to $999",{"$f":"CntyDataLinkPrior10YearEstimate!$AJ$148","v":113},{"$f":"CntyDataLinkPrior10YearEstimate!$AK$148","v":85}]
[null,null,{"$f":"CntyDataLink!Y$69","v":"H62ROHUGRent1250to1499"},"$1000 to $1249",{"$f":"CntyDataLinkPrior10YearEstimate!$AL$148","v":98},{"$f":"CntyDataLinkPrior10YearEstimate!$AM$148","v":83}]
[null,null,{"$f":"CntyDataLink!Z$69","v":"H62ROHUGRent1500to1999"},"$1250 to $1499",{"$f":"CntyDataLinkPrior10YearEstimate!$AN$148","v":145},{"$f":"CntyDataLinkPrior10YearEstimate!$AO$148","v":79}]
[null,null,{"$f":"CntyDataLink!AA$69","v":"H62ROHUGRent2000>"},"$1500 to $1999",{"$f":"CntyDataLinkPrior10YearEstimate!$AP$148","v":37},{"$f":"CntyDataLinkPrior10YearEstimate!$AQ$148","v":40}]
[null,null,{"$f":"CntyDataLink!AB$69","v":"H62ROHUNoGRent"},"$2,000 to $2,499",{"$f":"CntyDataLinkPrior10YearEstimate!$AR$148","v":35},{"$f":"CntyDataLinkPrior10YearEstimate!$AS$148","v":34}]
[null,null,{"$f":"CntyDataLink!AC$69","v":"H63MedianGrossRnt"},"$2,500 to $2,999",{"$f":"CntyDataLinkPrior10YearEstimate!$AT$148","v":0},{"$f":"CntyDataLinkPrior10YearEstimate!$AU$148","v":11}]
[null,null,null,"$3,000 to $3,499",{"$f":"CntyDataLinkPrior10YearEstimate!$AV$148","v":0},{"$f":"CntyDataLinkPrior10YearEstimate!$AW$148","v":0}]
[null,null,null,"$3,500 or more",{"$f":"CntyDataLinkPrior10YearEstimate!$AX$148","v":0},{"$f":"CntyDataLinkPrior10YearEstimate!$AY$148","v":0}]
[null,null,null,"Renter Occ. Housing Units w/ No Cash Rent",{"$f":"CntyDataLinkPrior10YearEstimate!$AZ$148","v":5},{"$f":"CntyDataLinkPrior10YearEstimate!$BA$148","v":9}]
[null,null,null,null,{"$f":"CntyDataLinkPrior10YearEstimate!$BB$148","v":0},{"$f":"CntyDataLinkPrior10YearEstimate!$BC$148","v":0}]
[null,null,null,"Median Gross Rent"]
[null,null,null,null,{"$f":"CntyDataLinkPrior10YearEstimate!$BD$148","v":933},{"$f":"CntyDataLinkPrior10YearEstimate!$BE$148","v":84}]
[]
[]
[]
[null,null,null,"Source: 2016-2020 American Community Survey Table B25063; B25064"]
[null,null,null,"Data from the American Community Survey are estimates"]

{"sheet":"ACS_Table_B25063_&_B25064","index":81,"n_rows":159,"n_cols":48,"rows_kept":159,"cut":false,"hidden":true,"merged":[]}
[null,"B25063. GROSS RENT"]
[null,"Universe:  RENTER-OCCUPIED HOUSING UNITS"]
[null,"Data Set: 2018-2022 American Community Survey 5-Year Estimates"]
[]
[null,null,"Alstead",null,"Chesterfield",null,"Dublin",null,"Fitzwilliam",null,"Gilsum",null,"Harrisville",null,"Hinsdale",null,"Jaffrey",null,"Keene",null,"Marlborough",null,"Marlow",null,"Nelson",null,"Richmond",null,"Rindge",null,"Roxbury",null,"Stoddard",null,"Sullivan",null,"Surry",null,"Swanzey",null,"Troy",null,"Walpole",null,"Westmoreland",null,"Winchester"]
[null," ","Estimate","Margin of Error","Estimate","Margin of Error","Estimate","Margin of Error","Estimate","Margin of Error","Estimate","Margin of Error","Estimate","Margin of Error","Estimate","Margin of Error","Estimate","Margin of Error","Estimate","Margin of Error","Estimate","Margin of Error","Estimate","Margin of Error","Estimate","Margin of Error","Estimate","Margin of Error","Estimate","Margin of Error","Estimate","Margin of Error","Estimate","Margin of Error","Estimate","Margin of Error","Estimate","Margin of Error","Estimate","Margin of Error","Estimate","Margin of Error","Estimate","Margin of Error","Estimate","Margin of Error","Estimate","Margin of Error"]
[null,"Total:",216,81,139,90,105,41,56,29,25,14,30,15,221,105,446,167,4497,356,334,92,35,29,21,11,10,9,261,119,1,3,31,18,41,21,20,9,1018,252,233,73,482,141,98,54,565,145]
[null,"With cash rent:",167,71,80,62,73,34,41,30,25,14,28,15,193,98,429,168,4444,355,318,93,27,26,21,11,7,8,240,109,0,12,23,16,40,21,16,8,983,254,222,72,455,133,79,51,523,136]
[null,"Less than $100",0,12,0,12,0,12,0,12,0,12,0,12,0,12,0,17,0,22,0,12,0,12,0,12,0,12,0,17,0,12,0,12,0,12,0,12,0,17,7,11,21,32,0,12,0,12]
[null,"$100 to $149",0,12,0,12,0,12,0,12,0,12,0,12,0,12,0,17,46,71,0,12,0,12,0,12,0,12,0,17,0,12,0,12,0,12,0,12,0,17,0,12,0,12,0,12,0,12]
[null,"$150 to $199",0,12,0,12,0,12,0,12,0,12,0,12,0,12,28,42,14,24,6,11,0,12,0,12,0,12,0,17,0,12,0,12,0,12,0,12,0,17,0,12,0,12,0,12,0,12]
[null,"$200 to $249",0,12,0,12,0,12,0,12,0,12,0,12,0,12,0,17,10,16,8,12,0,12,0,12,0,12,0,17,0,12,0,12,0,12,0,12,0,17,0,12,0,12,0,12,0,12]
[null,"$250 to $299",0,12,0,12,0,12,0,12,0,12,0,12,0,12,0,17,122,87,0,12,2,3,0,12,0,12,0,17,0,12,0,12,0,12,0,12,34,36,0,12,0,12,0,12,0,12]
[null,"$300 to $349",35,47,0,12,0,12,0,12,0,12,0,12,15,23,0,17,52,42,11,17,0,12,0,12,0,12,0,17,0,12,0,12,0,12,0,12,15,25,0,12,0,12,0,12,30,50]
[null,"$350 to $399",20,29,0,12,0,12,0,12,0,12,0,12,0,12,0,17,53,50,6,9,0,12,0,12,0,12,0,17,0,12,0,12,0,12,0,12,52,77,0,12,0,12,0,12,0,12]
[null,"$400 to $449",0,12,0,12,0,12,0,12,0,12,0,12,0,12,0,17,37,39,16,22,0,12,0,12,0,12,0,17,0,12,0,12,0,12,0,12,32,41,0,12,20,31,0,12,16,26]
[null,"$450 to $499",0,12,0,12,0,12,0,12,0,12,0,12,29,47,27,43,105,77,0,12,0,12,0,12,0,12,0,17,0,12,0,12,0,12,0,12,18,32,0,12,0,12,0,12,9,14]
[null,"$500 to $549",0,12,0,12,0,12,0,12,0,12,9,12,0,12,0,17,44,44,5,8,0,12,0,12,0,12,0,17,0,12,0,12,0,12,0,12,21,31,0,12,57,78,0,12,6,9]
[null,"$550 to $599",0,12,0,12,0,12,0,12,0,12,0,12,0,12,21,33,65,59,17,21,0,12,0,12,0,12,0,17,0,12,0,12,0,12,0,12,25,34,0,12,0,12,0,12,0,12]
[null,"$600 to $649",0,12,0,12,0,12,0,12,0,12,0,12,22,25,10,17,110,83,0,12,0,12,0,12,0,12,0,17,0,12,0,12,0,12,0,12,0,17,0,12,0,12,0,12,0,12]
[null,"$650 to $699",0,12,0,12,5,5,0,12,0,12,0,12,0,12,0,17,14,19,5,8,0,12,3,6,0,12,0,17,0,12,0,12,0,12,0,12,0,17,0,12,4,8,0,12,10,16]
[null,"$700 to $749",0,12,0,12,4,6,0,12,0,12,0,12,0,12,0,17,80,57,17,14,0,12,0,12,0,12,0,17,0,12,0,12,0,12,0,12,0,17,6,8,0,12,0,12,0,12]
[null,"$750 to $799",15,21,0,12,3,6,0,12,3,4,0,12,0,12,27,35,61,46,4,7,0,12,0,12,0,12,7,10,0,12,0,12,0,12,0,12,5,9,19,21,7,11,10,17,0,12]
[null,"$800 to $899",14,12,29,38,0,12,7,10,0,12,3,4,9,14,43,38,374,127,18,17,0,12,4,5,0,12,46,58,0,12,0,12,2,3,3,4,58,69,35,34,42,40,0,12,11,19]
[null,"$900 to $999",11,14,0,12,4,5,7,10,2,4,0,12,14,22,102,107,466,175,39,36,0,12,1,2,0,12,46,44,0,12,3,4,17,19,0,12,40,40,15,25,32,38,0,12,123,70]
[null,"$1,000 to $1,249",37,25,0,12,22,25,17,25,2,5,0,12,72,70,43,40,930,201,25,26,21,25,9,6,3,4,71,64,0,12,0,12,5,5,0,12,128,94,75,43,80,61,48,43,177,93]
[null,"$1,250 to $1,499",8,9,33,45,17,15,0,12,10,9,9,8,0,12,21,27,585,149,70,51,0,12,0,12,4,6,8,12,0,12,3,4,4,5,5,5,184,110,54,37,88,74,9,11,17,27]
[null,"$1,500 to $1,999",21,31,0,12,15,13,10,9,8,8,7,6,32,43,33,36,1023,284,63,65,4,6,2,3,0,12,62,46,0,12,6,9,5,6,2,3,353,183,11,12,88,68,3,5,100,67]
[null,"$2,000 to $2,499",0,12,18,27,3,4,0,12,0,12,0,12,0,12,74,91,190,102,3,6,0,12,2,2,0,12,0,17,0,12,11,14,7,7,6,5,18,30,0,12,16,28,9,14,24,28]
[null," $2,500 to $2,999",6,8,0,12,0,12,0,12,0,12,0,12,0,12,0,17,31,41,5,7,0,12,0,12,0,12,0,17,0,12,0,12,0,12,0,12,0,17,0,12,0,12,0,12,0,12]
[null,"$3,000 to $3,499",0,12,0,12,0,12,0,12,0,12,0,12,0,12,0,17,0,22,0,12,0,12,0,12,0,12,0,17,0,12,0,12,0,12,0,12,0,17,0,12,0,12,0,12,0,12]
[null,"$3,500 or more",0,12,0,12,0,12,0,12,0,12,0,12,0,12,0,17,32,37,0,12,0,12,0,12,0,12,0,17,0,12,0,12,0,12,0,12,0,17,0,12,0,12,0,12,0,12]
[null,"No cash rent",49,40,59,66,32,19,15,15,0,12,2,3,28,42,17,28,53,58,16,13,8,6,0,12,3,6,21,27,1,3,8,9,1,4,4,5,35,34,11,17,27,30,19,19,42,51]
[]
[]
[]
[null,"B25064. MEDIAN GROSS RENT (DOLLARS)"]
[null,"Universe:  RENTER-OCCUPIED HOUSING UNITS PAYING CASH RENT"]
[null,"Data Set: 2018-2022 American Community Survey 5-Year Estimates"]
[null,{"$f":"RentalHousingCost!D41","v":"Income in 2022 Inflation Adjusted Dollars"}]
[null,null,"Alstead",null,"Chesterfield",null,"Dublin",null,"Fitzwilliam",null,"Gilsum",null,"Harrisville",null,"Hinsdale",null,"Jaffrey",null,"Keene",null,"Marlborough",null,"Marlow",null,"Nelson",null,"Richmond",null,"Rindge",null,"Roxbury",null,"Stoddard",null,"Sullivan",null,"Surry",null,"Swanzey",null,"Troy",null,"Walpole",null,"Westmoreland",null,"Winchester"]
[null," ","Estimate","Margin of Error","Estimate","Margin of Error","Estimate","Margin of Error","Estimate","Margin of Error","Estimate","Margin of Error","Estimate","Margin of Error","Estimate","Margin of Error","Estimate","Margin of Error","Estimate","Margin of Error","Estimate","Margin of Error","Estimate","Margin of Error","Estimate","Margin of Error","Estimate","Margin of Error","Estimate","Margin of Error","Estimate","Margin of Error","Estimate","Margin of Error","Estimate","Margin of Error","Estimate","Margin of Error","Estimate","Margin of Error","Estimate","Margin of Error","Estimate","Margin of Error","Estimate","Margin of Error","Estimate","Margin of Error"]
[null,"Median gross rent",896,265,1333,643,1233,184,1096,201,1388,142,1306,659,1026,330,957,102,1153,58,1070,336,1137,59,1069,181,"-","**",1074,182,"-","**",1958,558,1050,519,1500,828,1336,191,1097,98,1139,228,1154,81,1080,83]
[]
[]
[]
[]
[]
[]
[]
[]
[]
[]
[]
[]
[]
[]
[]
[]
[]
[]
[]
[]
[]
[]
[]
[]
[]
[]
[null,"B25063. GROSS RENT"]
[null,"Universe:  RENTER-OCCUPIED HOUSING UNITS"]
[null,"Data Set: 2013-2017 American Community Survey 5-Year Estimates"]
[]
[null,null,"Alstead",null,"Chesterfield",null,"Dublin",null,"Fitzwilliam",null,"Gilsum",null,"Harrisville",null,"Hinsdale",null,"Jaffrey",null,"Keene",null,"Marlborough",null,"Marlow",null,"Nelson",null,"Richmond",null,"Rindge",null,"Roxbury",null,"Stoddard",null,"Sullivan",null,"Surry",null,"Swanzey",null,"Troy",null,"Walpole",null,"Westmoreland",null,"Winchester"]
[null," ","Estimate","Margin of Error","Estimate","Margin of Error","Estimate","Margin of Error","Estimate","Margin of Error","Estimate","Margin of Error","Estimate","Margin of Error","Estimate","Margin of Error","Estimate","Margin of Error","Estimate","Margin of Error","Estimate","Margin of Error","Estimate","Margin of Error","Estimate","Margin of Error","Estimate","Margin of Error","Estimate","Margin of Error","Estimate","Margin of Error","Estimate","Margin of Error","Estimate","Margin of Error","Estimate","Margin of Error","Estimate","Margin of Error","Estimate","Margin of Error","Estimate","Margin of Error","Estimate","Margin of Error","Estimate","Margin of Error"]
[null,"Total:",224,62,225,122,122,41,129,48,26,15,63,29,433,127,4319,404,4499,341,296,85,27,13,40,15,48,30,400,99,12,9,44,26,61,23,30,18,704,165,225,63,330,108,54,28,493,124]
[null,"With cash rent:",179,59,212,119,86,35,115,45,17,12,56,28,360,114,4255,403,4456,336,283,86,19,13,40,15,40,30,377,98,10,9,42,27,55,21,27,18,620,162,219,64,304,107,51,27,458,130]
[null,"Less than $100",0,11,0,11,0,11,0,11,0,11,0,11,0,11,7,10,8,13,0,11,0,11,0,11,0,11,0,16,0,11,0,11,0,11,0,11,30,50,0,11,0,11,3,5,0,11]
[null,"$100 to $149",0,11,0,11,0,11,0,11,0,11,0,11,0,11,9,14,9,14,0,11,0,11,0,11,0,11,0,16,0,11,0,11,0,11,0,11,0,16,0,11,0,11,0,11,0,11]
[null,"$150 to $199",0,11,0,11,0,11,0,11,0,11,0,11,0,11,52,39,70,45,0,11,0,11,0,11,0,11,0,16,0,11,0,11,0,11,0,11,15,26,17,27,0,11,0,11,0,11]
[null,"$200 to $249",36,37,0,11,0,11,0,11,0,11,0,11,42,54,112,80,103,88,0,11,7,11,0,11,0,11,0,16,0,11,0,11,0,11,0,11,0,16,0,11,0,11,0,11,0,11]
[null,"$250 to $299",0,11,0,11,0,11,0,11,0,11,0,11,9,13,64,43,82,54,18,30,0,11,0,11,0,11,0,16,0,11,0,11,0,11,0,11,0,16,5,7,0,11,0,11,0,11]
[null,"$300 to $349",5,8,0,11,0,11,0,11,2,3,0,11,10,15,108,89,89,80,6,9,0,11,5,6,0,11,0,16,0,11,0,11,0,11,0,11,25,22,21,25,0,11,0,11,8,14]
[null,"$350 to $399",0,11,0,11,0,11,0,11,0,11,0,11,25,39,142,84,173,91,0,11,0,11,0,11,0,11,0,16,0,11,0,11,0,11,0,11,0,16,0,11,0,11,3,5,10,17]
[null,"$400 to $449",0,11,0,11,0,11,0,11,0,11,0,11,0,11,97,65,72,55,0,11,0,11,0,11,0,11,0,16,0,11,0,11,0,11,0,11,43,67,0,11,0,11,0,11,34,50]
[null,"$450 to $499",16,26,0,11,0,11,0,11,0,11,0,11,0,11,86,63,112,73,0,11,0,11,0,11,0,11,0,16,0,11,0,11,0,11,0,11,9,15,0,11,7,11,0,11,4,8]
[null,"$500 to $549",0,11,0,11,0,11,0,11,0,11,0,11,0,11,21,23,43,38,5,7,0,11,0,11,0,11,0,16,0,11,0,11,0,11,0,11,8,13,0,11,0,11,0,11,0,11]
[null,"$550 to $599",0,11,12,20,7,8,0,11,0,11,0,11,11,18,13,17,45,37,18,22,0,11,2,3,0,11,20,16,0,11,0,11,0,11,0,11,0,16,0,11,8,12,0,11,0,11]
[null,"$600 to $649",15,16,0,11,11,13,6,8,0,11,0,11,51,58,51,51,17,19,5,7,0,11,5,5,0,11,11,16,0,11,4,5,0,11,0,11,44,68,0,11,17,18,0,11,0,11]
[null,"$650 to $699",4,5,49,80,10,16,0,11,0,11,0,11,0,11,132,93,102,65,15,11,0,11,0,11,0,11,52,46,0,11,0,11,0,11,0,11,0,16,0,11,9,13,0,11,88,63]
[null,"$700 to $749",10,9,40,63,0,11,0,11,0,11,0,11,31,49,169,91,252,125,18,17,0,11,5,5,0,11,7,12,0,11,0,11,0,11,0,11,0,16,0,11,28,36,0,11,0,11]
[null,"$750 to $799",15,22,0,11,0,11,12,18,0,11,0,11,26,42,161,86,121,74,31,35,2,3,0,11,0,11,0,16,0,11,0,11,0,11,0,11,12,19,16,25,25,28,0,11,11,15]
[null,"$800 to $899",33,26,16,25,22,22,24,25,3,4,19,21,37,45,484,151,466,156,58,43,0,11,0,11,0,11,55,36,0,11,0,11,19,16,0,11,59,47,24,19,109,69,8,13,43,35]
[null,"$900 to $999",12,11,66,62,3,4,24,20,2,3,12,13,13,20,548,207,575,172,44,41,4,5,7,5,0,11,19,29,6,8,0,11,2,3,6,9,132,107,72,42,43,62,6,10,17,27]
[null,"$1,000 to $1,249",8,8,16,23,3,4,24,22,7,8,13,13,7,11,999,218,891,196,44,42,2,3,10,7,13,15,37,40,1,3,21,22,14,11,8,6,88,62,37,34,20,24,15,16,78,64]
[null,"$1,250 to $1,499",6,8,0,11,17,15,5,7,3,5,9,7,24,28,527,157,615,147,5,7,2,3,4,6,22,21,44,46,0,11,6,6,20,16,11,13,20,23,13,14,33,24,3,5,124,91]
[null,"$1,500 to $1,999",19,22,13,19,10,7,20,19,0,11,3,6,74,73,329,135,425,135,16,24,2,4,0,11,5,7,132,62,3,4,11,13,0,11,2,3,135,100,14,13,5,10,13,10,41,42]
[null,"$2,000 to $2,499",0,11,0,11,3,4,0,11,0,11,0,11,0,11,67,77,47,76,0,11,0,11,2,4,0,11,0,16,0,11,0,11,0,11,0,11,0,16,0,11,0,11,0,11,0,11]
[null," $2,500 to $2,999",0,11,0,11,0,11,0,11,0,11,0,11,0,11,0,21,58,72,0,11,0,11,0,11,0,11,0,16,0,11,0,11,0,11,0,11,0,16,0,11,0,11,0,11,0,11]
[null,"$3,000 to $3,499",0,11,0,11,0,11,0,11,0,11,0,11,0,11,15,12,13,11,0,11,0,11,0,11,0,11,0,16,0,11,0,11,0,11,0,11,0,16,0,11,0,11,0,11,0,11]
[null,"$3,500 or more",0,11,0,11,0,11,0,11,0,11,0,11,0,11,62,73,68,84,0,11,0,11,0,11,0,11,0,16,0,11,0,11,0,11,0,11,0,16,0,11,0,11,0,11,0,11]
[null,"No cash rent",45,22,13,20,36,19,14,21,9,7,7,8,73,65,64,46,43,38,13,22,8,9,0,11,8,7,23,23,2,3,2,5,6,11,3,5,84,54,6,9,26,22,3,5,35,28]
[]
[]
[]
[null,"B25064. MEDIAN GROSS RENT (DOLLARS)"]
[null,"Universe:  RENTER-OCCUPIED HOUSING UNITS PAYING CASH RENT"]
[null,{"$f":"B72","v":"Data Set: 2013-2017 American Community Survey 5-Year Estimates"}]
[null,{"$f":"'RentalHousingCost-Prior5Yr'!D41","v":"Income in 2017 Inflation Adjusted Dollars"}]
[null,null,"Alstead",null,"Chesterfield",null,"Dublin",null,"Fitzwilliam",null,"Gilsum",null,"Harrisville",null,"Hinsdale",null,"Jaffrey",null,"Keene",null,"Marlborough",null,"Marlow",null,"Nelson",null,"Richmond",null,"Rindge",null,"Roxbury",null,"Stoddard",null,"Sullivan",null,"Surry",null,"Swanzey",null,"Troy",null,"Walpole",null,"Westmoreland",null,"Winchester"]
[null," ","Estimate","Margin of Error","Estimate","Margin of Error","Estimate","Margin of Error","Estimate","Margin of Error","Estimate","Margin of Error","Estimate","Margin of Error","Estimate","Margin of Error","Estimate","Margin of Error","Estimate","Margin of Error","Estimate","Margin of Error","Estimate","Margin of Error","Estimate","Margin of Error","Estimate","Margin of Error","Estimate","Margin of Error","Estimate","Margin of Error","Estimate","Margin of Error","Estimate","Margin of Error","Estimate","Margin of Error","Estimate","Margin of Error","Estimate","Margin of Error","Estimate","Margin of Error","Estimate","Margin of Error","Estimate","Margin of Error"]
[null,"Median gross rent",762,113,831,269,868,78,965,119,1054,165,975,171,752,147,977,39,981,41,844,71,913,633,943,164,1330,102,1166,311,983,630,1202,182,1116,279,1234,169,949,74,937,45,853,45,1092,206,1045,260]
[]
[]
[]
[]
[null,"B25063. GROSS RENT"]
[null,"Universe:  RENTER-OCCUPIED HOUSING UNITS"]
[null,"Data Set: 2008-2012 American Community Survey 5-Year Estimates"]
[]
[null,null,"Alstead",null,"Chesterfield",null,"Dublin",null,"Fitzwilliam",null,"Gilsum",null,"Harrisville",null,"Hinsdale",null,"Jaffrey",null,"Keene",null,"Marlborough",null,"Marlow",null,"Nelson",null,"Richmond",null,"Rindge",null,"Roxbury",null,"Stoddard",null,"Sullivan",null,"Surry",null,"Swanzey",null,"Troy",null,"Walpole",null,"Westmoreland",null,"Winchester"]
[null," ","Estimate","Margin of Error","Estimate","Margin of Error","Estimate","Margin of Error","Estimate","Margin of Error","Estimate","Margin of Error","Estimate","Margin of Error","Estimate","Margin of Error","Estimate","Margin of Error","Estimate","Margin of Error","Estimate","Margin of Error","Estimate","Margin of Error","Estimate","Margin of Error","Estimate","Margin of Error","Estimate","Margin of Error","Estimate","Margin of Error","Estimate","Margin of Error","Estimate","Margin of Error","Estimate","Margin of Error","Estimate","Margin of Error","Estimate","Margin of Error","Estimate","Margin of Error","Estimate","Margin of Error","Estimate","Margin of Error"]
[null,"Total:",132,44,193,127,140,49,177,79,30,19,68,40,529,121,548,126,3866,378,231,89,41,24,83,43,33,24,431,119,12,9,53,28,40,25,23,14,657,173,260,77,466,132,86,32,571,128]
[null,"With cash rent:",125,42,193,127,105,44,177,79,30,19,68,40,529,121,516,123,3735,365,208,89,34,21,78,42,31,25,356,111,8,8,44,26,24,18,16,11,607,172,254,78,381,124,67,31,566,128]
[null,"Less than $100",0,11,0,11,0,11,0,11,0,11,0,11,0,11,0,16,0,21,0,11,0,11,0,11,0,11,0,16,0,11,0,11,0,11,0,11,0,16,0,11,0,11,0,11,0,11]
[null,"$100 to $149",0,11,0,11,0,11,0,11,0,11,0,11,0,11,13,22,21,23,0,11,0,11,0,11,0,11,0,16,0,11,0,11,0,11,0,11,0,16,0,11,0,11,0,11,0,11]
[null,"$150 to $199",0,11,0,11,0,11,0,11,0,11,0,11,0,11,0,16,89,61,0,11,0,11,0,11,0,11,0,16,0,11,0,11,0,11,0,11,0,16,23,37,12,20,0,11,0,11]
[null,"$200 to $249",0,11,0,11,0,11,0,11,0,11,0,11,51,42,12,19,141,93,5,8,0,11,0,11,0,11,0,16,0,11,0,11,2,3,0,11,14,22,0,11,0,11,0,11,0,11]
[null,"$250 to $299",0,11,0,11,10,15,0,11,0,11,0,11,13,20,13,21,12,19,0,11,0,11,0,11,0,11,0,16,0,11,0,11,0,11,0,11,26,30,0,11,0,11,0,11,0,11]
[null,"$300 to $349",10,13,0,11,0,11,0,11,0,11,0,11,13,20,0,16,44,33,26,31,0,11,2,4,0,11,0,16,0,11,0,11,0,11,0,11,0,16,16,26,0,11,0,11,0,11]
[null,"$350 to $399",9,13,0,11,0,11,0,11,0,11,0,11,10,16,12,19,71,45,0,11,0,11,0,11,0,11,0,16,0,11,0,11,0,11,0,11,0,16,5,8,0,11,0,11,16,13]
[null,"$400 to $449",0,11,0,11,0,11,3,7,0,11,0,11,11,16,0,16,69,60,0,11,0,11,0,11,0,11,0,16,0,11,0,11,0,11,0,11,0,16,5,8,0,11,0,11,8,13]
[null,"$450 to $499",5,8,0,11,0,11,0,11,6,11,0,11,14,23,0,16,100,87,0,11,0,11,0,11,0,11,0,16,0,11,0,11,0,11,0,11,0,16,0,11,9,16,10,16,18,20]
[null,"$500 to $549",20,16,0,11,3,5,0,11,7,10,0,11,0,11,13,21,54,51,0,11,0,11,0,11,0,11,27,18,0,11,0,11,0,11,0,11,24,27,0,11,20,34,0,11,9,14]
[null,"$550 to $599",0,11,0,11,0,11,0,11,4,5,0,11,19,30,0,16,109,72,0,11,0,11,0,11,0,11,13,15,0,11,0,11,0,11,0,11,11,17,8,12,6,9,0,11,0,11]
[null,"$600 to $649",0,11,0,11,0,11,0,11,0,11,10,15,0,11,60,70,24,23,0,11,0,11,3,4,2,5,0,16,0,11,0,11,0,11,0,11,0,16,11,19,22,35,0,11,8,13]
[null,"$650 to $699",0,11,12,17,20,22,11,18,0,11,0,11,44,70,70,48,140,74,0,11,0,11,3,4,0,11,13,15,0,11,0,11,5,8,0,11,29,36,6,10,32,29,2,4,13,20]
[null,"$700 to $749",0,11,0,11,4,7,8,11,2,4,0,11,49,54,50,47,156,91,7,11,0,11,0,11,0,11,0,16,0,11,5,7,0,11,1,3,0,16,18,29,51,50,0,11,33,43]
[null,"$750 to $799",31,26,13,21,0,11,0,11,0,11,0,11,34,43,63,52,135,74,20,32,0,11,4,5,4,6,9,15,0,11,9,13,0,11,0,11,30,38,22,27,26,33,0,11,33,36]
[null,"$800 to $899",8,8,125,121,0,11,17,27,0,11,29,35,39,35,75,55,342,149,13,22,0,11,8,12,0,11,72,45,0,11,0,11,0,11,0,11,79,69,42,39,58,38,2,5,113,85]
[null,"$900 to $999",17,16,10,16,6,7,79,63,6,8,14,16,158,106,11,19,393,164,29,37,5,8,40,40,4,7,8,12,0,11,17,20,0,11,4,5,92,69,59,47,31,35,18,15,98,83]
[null,"$1,000 to $1,249",25,20,0,11,32,28,7,10,2,3,10,10,23,26,34,40,905,205,89,61,11,14,7,10,0,11,78,64,2,3,0,11,5,5,7,8,196,118,34,21,94,59,17,17,145,79]
[null,"$1,250 to $1,499",0,11,33,37,23,19,31,35,3,4,3,5,25,29,68,53,527,191,13,15,18,16,2,3,13,21,32,34,0,11,3,4,12,13,4,4,57,44,0,11,20,21,8,11,37,40]
[null,"$1,500 to $1,999",0,11,0,11,4,5,5,7,0,11,2,5,8,14,22,36,237,99,6,10,0,11,7,9,8,8,99,67,6,8,10,14,0,11,0,11,37,42,0,11,0,11,10,11,35,34]
[null,"$2,000 or more",0,11,0,11,3,4,16,23,0,11,0,11,18,27,0,16,166,106,0,11,0,11,2,3,0,11,5,9,0,11,0,11,0,11,0,11,12,19,5,8,0,11,0,11,0,11]
[]
[]
[null,"No cash rent",7,7,0,11,35,18,0,11,0,11,0,11,0,11,32,36,131,79,23,28,7,10,5,5,2,5,75,39,4,6,9,10,16,17,7,7,50,40,6,10,85,54,19,14,5,9]
[]
[]
[]
[]
[null,"B25064. MEDIAN GROSS RENT (DOLLARS)"]
[null,"Universe:  RENTER-OCCUPIED HOUSING UNITS PAYING CASH RENT"]
[null,{"$f":"B119","v":"Data Set: 2008-2012 American Community Survey 5-Year Estimates"}]
[null,{"$f":"'RentalHousingCost-Prior10Yr'!D75","v":"Income in 2012 Inflation Adjusted Dollars"}]
[null,null,"Alstead",null,"Chesterfield",null,"Dublin",null,"Fitzwilliam",null,"Gilsum",null,"Harrisville",null,"Hinsdale",null,"Jaffrey",null,"Keene",null,"Marlborough",null,"Marlow",null,"Nelson",null,"Richmond",null,"Rindge",null,"Roxbury",null,"Stoddard",null,"Sullivan",null,"Surry",null,"Swanzey",null,"Troy",null,"Walpole",null,"Westmoreland",null,"Winchester"]
[null," ","Estimate","Margin of Error","Estimate","Margin of Error","Estimate","Margin of Error","Estimate","Margin of Error","Estimate","Margin of Error","Estimate","Margin of Error","Estimate","Margin of Error","Estimate","Margin of Error","Estimate","Margin of Error","Estimate","Margin of Error","Estimate","Margin of Error","Estimate","Margin of Error","Estimate","Margin of Error","Estimate","Margin of Error","Estimate","Margin of Error","Estimate","Margin of Error","Estimate","Margin of Error","Estimate","Margin of Error","Estimate","Margin of Error","Estimate","Margin of Error","Estimate","Margin of Error","Estimate","Margin of Error","Estimate","Margin of Error"]
[null,"Median gross rent",780,46,857,22,1074,220,963,42,575,326,883,91,817,172,762,64,992,54,1011,133,1264,161,948,35,1356,438,1115,159,1667,170,947,336,1250,399,1107,156,998,104,831,103,822,101,1022,157,933,84]

{"sheet":"ACS_Table_B25070","index":82,"n_rows":141,"n_cols":48,"rows_kept":141,"cut":false,"hidden":true,"merged":[]}
[null,"B25070. GROSS RENT AS A PERCENTAGE OF HOUSEHOLD INCOME IN THE PAST 12 MONTHS"]
[null,"Universe:  RENTER-OCCUPIED HOUSING UNITS"]
[null,"Data Set: 2018-2022 American Community Survey 5-Year Estimates"]
[]
[null,null,"Alstead",null,"Chesterfield",null,"Dublin",null,"Fitzwilliam",null,"Gilsum",null,"Harrisville",null,"Hinsdale",null,"Jaffrey",null,"Keene",null,"Marlborough",null,"Marlow",null,"Nelson",null,"Richmond",null,"Rindge",null,"Roxbury",null,"Stoddard",null,"Sullivan",null,"Surry",null,"Swanzey",null,"Troy",null,"Walpole",null,"Westmoreland",null,"Winchester"]
[null," ","Estimate","Margin of Error","Estimate","Margin of Error","Estimate","Margin of Error","Estimate","Margin of Error","Estimate","Margin of Error","Estimate","Margin of Error","Estimate","Margin of Error","Estimate","Margin of Error","Estimate","Margin of Error","Estimate","Margin of Error","Estimate","Margin of Error","Estimate","Margin of Error","Estimate","Margin of Error","Estimate","Margin of Error","Estimate","Margin of Error","Estimate","Margin of Error","Estimate","Margin of Error","Estimate","Margin of Error","Estimate","Margin of Error","Estimate","Margin of Error","Estimate","Margin of Error","Estimate","Margin of Error","Estimate","Margin of Error"]
[null,"Total:",216,81,192,114,112,39,81,30,27,15,29,18,241,100,521,169,4173,379,340,92,45,29,25,13,14,12,295,111,2,3,32,20,42,20,31,16,1180,250,197,58,523,152,80,39,568,122]
[null,"Less than 10.0 percent",10,11,0,12,3,6,6,8,0,12,9,12,44,54,33,57,108,76,16,22,8,11,0,12,0,12,5,8,0,12,0,12,0,12,5,5,0,17,6,11,33,37,18,27,8,13]
[null,"10.0 to 14.9 percent",11,14,15,22,6,10,16,23,0,12,2,4,15,24,13,21,334,170,21,25,14,22,8,7,6,7,32,31,0,12,3,4,13,10,0,12,27,33,23,23,22,29,0,12,36,46]
[null,"15.0 to 19.9 percent",21,26,17,25,6,7,0,12,0,12,0,12,21,31,18,29,643,221,22,17,0,12,0,12,1,4,45,55,1,2,5,9,16,16,0,12,6,9,19,20,154,103,6,6,53,46]
[null,"20.0 to 24.9 percent",28,30,0,12,18,23,4,6,6,6,9,7,13,22,90,59,503,166,18,14,0,12,6,6,0,12,73,61,0,12,6,6,0,12,10,12,255,94,39,29,59,47,18,20,7,12]
[null,"25.0 to 29.9 percent",5,7,19,29,8,6,9,10,9,10,0,12,12,19,99,89,667,174,72,34,0,12,8,7,0,12,14,24,0,12,0,12,0,12,10,11,258,134,0,12,57,49,9,16,134,66]
[null,"30.0 to 34.9 percent",52,51,0,12,3,5,0,12,6,6,5,8,0,12,0,17,356,140,17,22,2,3,0,12,0,12,0,17,0,12,0,12,0,12,0,12,56,58,4,7,36,37,0,12,88,64]
[null,"35.0 to 39.9 percent",0,12,48,72,0,12,0,12,3,4,0,12,13,20,76,88,356,136,26,17,0,12,0,12,0,12,15,17,0,12,9,13,5,5,0,12,77,78,22,25,5,8,0,12,84,52]
[null,"40.0 to 49.9 percent",26,32,0,12,17,17,16,22,0,12,0,12,16,27,93,107,317,122,22,29,7,10,0,12,4,7,15,16,0,12,0,12,3,4,0,12,84,84,62,45,7,11,3,4,17,18]
[null,"50.0 percent or more",14,11,34,48,25,20,18,15,3,4,3,5,63,75,81,60,760,202,101,70,4,6,3,5,0,12,81,59,0,12,0,12,5,7,2,3,273,165,11,11,116,94,9,8,98,63]
[null,"Not computed",49,40,59,64,26,15,12,10,0,12,1,3,44,62,18,33,129,104,25,28,10,7,0,12,3,5,15,18,1,3,9,10,0,12,4,4,144,108,11,16,34,39,17,19,43,36]
[]
[]
[]
[]
[]
[]
[]
[]
[]
[]
[]
[]
[]
[]
[]
[]
[]
[null,"Calculated B25070. GROSS RENT AS A PERCENTAGE OF HOUSEHOLD INCOME IN THE PAST 12 MONTHS"]
[null,"Universe:  RENTER-OCCUPIED HOUSING UNITS"]
[null,"Data Set: 2018-2022 American Community Survey 5-Year Estimates"]
[]
[null,null,"Alstead",null,"Chesterfield",null,"Dublin",null,"Fitzwilliam",null,"Gilsum",null,"Harrisville",null,"Hinsdale",null,"Jaffrey",null,"Keene",null,"Marlborough",null,"Marlow",null,"Nelson",null,"Richmond",null,"Rindge",null,"Roxbury",null,"Stoddard",null,"Sullivan",null,"Surry",null,"Swanzey",null,"Troy",null,"Walpole",null,"Westmoreland",null,"Winchester"]
[null," ","Estimate","Margin of Error","Estimate","Margin of Error","Estimate","Margin of Error","Estimate","Margin of Error","Estimate","Margin of Error","Estimate","Margin of Error","Estimate","Margin of Error","Estimate","Margin of Error","Estimate","Margin of Error","Estimate","Margin of Error","Estimate","Margin of Error","Estimate","Margin of Error","Estimate","Margin of Error","Estimate","Margin of Error","Estimate","Margin of Error","Estimate","Margin of Error","Estimate","Margin of Error","Estimate","Margin of Error","Estimate","Margin of Error","Estimate","Margin of Error","Estimate","Margin of Error","Estimate","Margin of Error","Estimate","Margin of Error"]
[null,{"$f":"B7","v":"Total:"},{"$f":"C7","v":216},{"$f":"D7","v":81},{"$f":"E7","v":192},114,112,39,81,30,27,15,29,18,241,100,521,169,4173,379,340,92,45,29,{"$f":"Y7","v":25},13,14,12,295,111,2,3,32,20,42,20,31,16,1180,250,197,58,523,152,80,39,{"$f":"AU7","v":568},122]
[null,"Less than 20% of HH Income",{"$f":"C8+C9+C10","v":42},{"$f":"SQRT((D8^2)+(D9^2)+(D10^2))","v":31.511902513177461},{"$f":"E8+E9+E10","v":32},{"$f":"SQRT((F8^2)+(F9^2)+(F10^2))","v":35.397740040855716},{"$f":"G8+G9+G10","v":15},{"$f":"SQRT((H8^2)+(H9^2)+(H10^2))","v":13.601470508735444},{"$f":"I8+I9+I10","v":22},{"$f":"SQRT((J8^2)+(J9^2)+(J10^2))","v":27.147743920996454},{"$f":"K8+K9+K10","v":0},{"$f":"SQRT((L8^2)+(L9^2)+(L10^2))","v":20.784609690826528},{"$f":"M8+M9+M10","v":11},{"$f":"SQRT((N8^2)+(N9^2)+(N10^2))","v":17.435595774162696},{"$f":"O8+O9+O10","v":80},{"$f":"SQRT((P8^2)+(P9^2)+(P10^2))","v":66.730802482811484},{"$f":"Q8+Q9+Q10","v":64},{"$f":"SQRT((R8^2)+(R9^2)+(R10^2))","v":67.31270311018568},{"$f":"S8+S9+S10","v":1085},{"$f":"SQRT((T8^2)+(T9^2)+(T10^2))","v":288.99307950191474},{"$f":"U8+U9+U10","v":59},{"$f":"SQRT((V8^2)+(V9^2)+(V10^2))","v":37.389838191679836},{"$f":"W8+W9+W10","v":22},{"$f":"SQRT((X8^2)+(X9^2)+(X10^2))","v":27.367864366808018},{"$f":"Y8+Y9+Y10","v":8},{"$f":"SQRT((Z8^2)+(Z9^2)+(Z10^2))","v":18.357559750685819},{"$f":"AA8+AA9+AA10","v":7},{"$f":"SQRT((AB8^2)+(AB9^2)+(AB10^2))","v":14.456832294800961},{"$f":"AC8+AC9+AC10","v":82},{"$f":"SQRT((AD8^2)+(AD9^2)+(AD10^2))","v":63.63961030678928},{"$f":"AE8+AE9+AE10","v":1},{"$f":"SQRT((AF8^2)+(AF9^2)+(AF10^2))","v":17.088007490635061},{"$f":"AG8+AG9+AG10","v":8},{"$f":"SQRT((AH8^2)+(AH9^2)+(AH10^2))","v":15.524174696260024},{"$f":"AI8+AI9+AI10","v":29},{"$f":"SQRT((AJ8^2)+(AJ9^2)+(AJ10^2))","v":22.360679774997898},{"$f":"AK8+AK9+AK10","v":5},{"$f":"SQRT((AL8^2)+(AL9^2)+(AL10^2))","v":17.691806012954132},{"$f":"AM8+AM9+AM10","v":33},{"$f":"SQRT((AN8^2)+(AN9^2)+(AN10^2))","v":38.196858509568557},{"$f":"AO8+AO9+AO10","v":48},{"$f":"SQRT((AP8^2)+(AP9^2)+(AP10^2))","v":32.403703492039298},{"$f":"AQ8+AQ9+AQ10","v":209},{"$f":"SQRT((AR8^2)+(AR9^2)+(AR10^2))","v":113.22102278287367},{"$f":"AS8+AS9+AS10","v":24},{"$f":"SQRT((AT8^2)+(AT9^2)+(AT10^2))","v":30.14962686336267},{"$f":"AU8+AU9+AU10","v":97},{"$f":"SQRT((AV8^2)+(AV9^2)+(AV10^2))","v":66.340033162487941}]
[null," 20% to 24.9% of HH Income",{"$f":"C11","v":28},{"$f":"D11","v":30},{"$f":"E11","v":0},12,18,23,4,6,6,6,9,7,13,22,90,59,503,166,18,14,0,12,{"$f":"Y11","v":6},6,0,12,73,61,0,12,6,6,0,12,10,12,255,94,39,29,59,47,18,20,7,12]
[null," 25% to 29.9% of HH Income",{"$f":"C12","v":5},{"$f":"D12","v":7},19,29,8,6,9,10,9,10,0,12,12,19,99,89,667,174,72,34,0,12,{"$f":"Y12","v":8},7,0,12,14,24,0,12,0,12,0,12,10,11,258,134,0,12,57,49,9,16,134,66]
[null," Less Than 30% of HH Income",{"$f":"C12+C11+C10+C9+C8","v":75},{"$f":"SQRT((D12^2)+(D11^2)+(D10^2)+(D9^2)+(D8^2))","v":44.068129073061407},{"$f":"E12+E11+E10+E9+E8","v":51},{"$f":"SQRT((F12^2)+(F11^2)+(F10^2)+(F9^2)+(F8^2))","v":47.307504690059481},{"$f":"G12+G11+G10+G9+G8","v":41},{"$f":"SQRT((H12^2)+(H11^2)+(H10^2)+(H9^2)+(H8^2))","v":27.386127875258307},{"$f":"I12+I11+I10+I9+I8","v":35},{"$f":"SQRT((J12^2)+(J11^2)+(J10^2)+(J9^2)+(J8^2))","v":29.546573405388315},{"$f":"K12+K11+K10+K9+K8","v":15},{"$f":"SQRT((L12^2)+(L11^2)+(L10^2)+(L9^2)+(L8^2))","v":23.832750575625969},{"$f":"M12+M11+M10+M9+M8","v":20},{"$f":"SQRT((N12^2)+(N11^2)+(N10^2)+(N9^2)+(N8^2))","v":22.293496809607955},{"$f":"O12+O11+O10+O9+O8","v":105},{"$f":"SQRT((P12^2)+(P11^2)+(P10^2)+(P9^2)+(P8^2))","v":72.78736154031138},{"$f":"Q12+Q11+Q10+Q9+Q8","v":253},{"$f":"SQRT((R12^2)+(R11^2)+(R10^2)+(R9^2)+(R8^2))","v":126.22598781550494},{"$f":"S12+S11+S10+S9+S8","v":2255},{"$f":"SQRT((T12^2)+(T11^2)+(T10^2)+(T9^2)+(T8^2))","v":375.96409403026774},{"$f":"U12+U11+U10+U9+U8","v":149},{"$f":"SQRT((V12^2)+(V11^2)+(V10^2)+(V9^2)+(V8^2))","v":52.440442408507579},{"$f":"W12+W11+W10+W9+W8","v":22},{"$f":"SQRT((X12^2)+(X11^2)+(X10^2)+(X9^2)+(X8^2))","v":32.202484376209235},{"$f":"Y12+Y11+Y10+Y9+Y8","v":22},{"$f":"SQRT((Z12^2)+(Z11^2)+(Z10^2)+(Z9^2)+(Z8^2))","v":20.542638584174139},{"$f":"AA12+AA11+AA10+AA9+AA8","v":7},{"$f":"SQRT((AB12^2)+(AB11^2)+(AB10^2)+(AB9^2)+(AB8^2))","v":22.293496809607955},{"$f":"AC12+AC11+AC10+AC9+AC8","v":169},{"$f":"SQRT((AD12^2)+(AD11^2)+(AD10^2)+(AD9^2)+(AD8^2))","v":91.361917668140038},{"$f":"AE12+AE11+AE10+AE9+AE8","v":1},{"$f":"SQRT((AF12^2)+(AF11^2)+(AF10^2)+(AF9^2)+(AF8^2))","v":24.083189157584592},{"$f":"AG12+AG11+AG10+AG9+AG8","v":14},{"$f":"SQRT((AH12^2)+(AH11^2)+(AH10^2)+(AH9^2)+(AH8^2))","v":20.518284528683193},{"$f":"AI12+AI11+AI10+AI9+AI8","v":29},{"$f":"SQRT((AJ12^2)+(AJ11^2)+(AJ10^2)+(AJ9^2)+(AJ8^2))","v":28.071337695236398},{"$f":"AK12+AK11+AK10+AK9+AK8","v":25},{"$f":"SQRT((AL12^2)+(AL11^2)+(AL10^2)+(AL9^2)+(AL8^2))","v":24.041630560342615},{"$f":"AM12+AM11+AM10+AM9+AM8","v":546},{"$f":"SQRT((AN12^2)+(AN11^2)+(AN10^2)+(AN9^2)+(AN8^2))","v":168.08033793397726},{"$f":"AO12+AO11+AO10+AO9+AO8","v":87},{"$f":"SQRT((AP12^2)+(AP11^2)+(AP10^2)+(AP9^2)+(AP8^2))","v":45.110974274559844},{"$f":"AQ12+AQ11+AQ10+AQ9+AQ8","v":325},{"$f":"SQRT((AR12^2)+(AR11^2)+(AR10^2)+(AR9^2)+(AR8^2))","v":132.01893803541975},{"$f":"AS12+AS11+AS10+AS9+AS8","v":51},{"$f":"SQRT((AT12^2)+(AT11^2)+(AT10^2)+(AT9^2)+(AT8^2))","v":39.560080889704963},{"$f":"AU12+AU11+AU10+AU9+AU8","v":238},{"$f":"SQRT((AV12^2)+(AV11^2)+(AV10^2)+(AV9^2)+(AV8^2))","v":94.34511116109833}]
[null," 30% or More of HH Income",{"$f":"C13+C14+C15+C16","v":92},{"$f":"SQRT((D13^2)+(D14^2)+(D15^2)+(D16^2))","v":62.369864518050704},{"$f":"E13+E14+E15+E16","v":82},{"$f":"SQRT((F13^2)+(F14^2)+(F15^2)+(F16^2))","v":88.181630740194407},{"$f":"G13+G14+G15+G16","v":45},{"$f":"SQRT((H13^2)+(H14^2)+(H15^2)+(H16^2))","v":29.29163703175362},{"$f":"I13+I14+I15+I16","v":34},{"$f":"SQRT((J13^2)+(J14^2)+(J15^2)+(J16^2))","v":31.575306807693888},{"$f":"K13+K14+K15+K16","v":12},{"$f":"SQRT((L13^2)+(L14^2)+(L15^2)+(L16^2))","v":14.560219778561036},{"$f":"M13+M14+M15+M16","v":8},{"$f":"SQRT((N13^2)+(N14^2)+(N15^2)+(N16^2))","v":19.416487838947599},{"$f":"O13+O14+O15+O16","v":92},{"$f":"SQRT((P13^2)+(P14^2)+(P15^2)+(P16^2))","v":83.054199171384468},{"$f":"Q13+Q14+Q15+Q16","v":250},{"$f":"SQRT((R13^2)+(R14^2)+(R15^2)+(R16^2))","v":151.92761434314698},{"$f":"S13+S14+S15+S16","v":1789},{"$f":"SQRT((T13^2)+(T14^2)+(T15^2)+(T16^2))","v":306.2417345823394},{"$f":"U13+U14+U15+U16","v":166},{"$f":"SQRT((V13^2)+(V14^2)+(V15^2)+(V16^2))","v":80.709355095924295},{"$f":"W13+W14+W15+W16","v":13},{"$f":"SQRT((X13^2)+(X14^2)+(X15^2)+(X16^2))","v":17},{"$f":"Y13+Y14+Y15+Y16","v":3},{"$f":"SQRT((Z13^2)+(Z14^2)+(Z15^2)+(Z16^2))","v":21.377558326431949},{"$f":"AA13+AA14+AA15+AA16","v":4},{"$f":"SQRT((AB13^2)+(AB14^2)+(AB15^2)+(AB16^2))","v":21.931712199461309},{"$f":"AC13+AC14+AC15+AC16","v":111},{"$f":"SQRT((AD13^2)+(AD14^2)+(AD15^2)+(AD16^2))","v":65.688659599659971},{"$f":"AE13+AE14+AE15+AE16","v":0},{"$f":"SQRT((AF13^2)+(AF14^2)+(AF15^2)+(AF16^2))","v":24},{"$f":"AG13+AG14+AG15+AG16","v":9},{"$f":"SQRT((AH13^2)+(AH14^2)+(AH15^2)+(AH16^2))","v":24.515301344262525},{"$f":"AI13+AI14+AI15+AI16","v":13},{"$f":"SQRT((AJ13^2)+(AJ14^2)+(AJ15^2)+(AJ16^2))","v":15.297058540778355},{"$f":"AK13+AK14+AK15+AK16","v":2},{"$f":"SQRT((AL13^2)+(AL14^2)+(AL15^2)+(AL16^2))","v":21},{"$f":"AM13+AM14+AM15+AM16","v":490},{"$f":"SQRT((AN13^2)+(AN14^2)+(AN15^2)+(AN16^2))","v":209.11480100652847},{"$f":"AO13+AO14+AO15+AO16","v":99},{"$f":"SQRT((AP13^2)+(AP14^2)+(AP15^2)+(AP16^2))","v":53.103672189407014},{"$f":"AQ13+AQ14+AQ15+AQ16","v":164},{"$f":"SQRT((AR13^2)+(AR14^2)+(AR15^2)+(AR16^2))","v":101.93134944657605},{"$f":"AS13+AS14+AS15+AS16","v":12},{"$f":"SQRT((AT13^2)+(AT14^2)+(AT15^2)+(AT16^2))","v":19.183326093250876},{"$f":"AU13+AU14+AU15+AU16","v":287},{"$f":"SQRT((AV13^2)+(AV14^2)+(AV15^2)+(AV16^2))","v":105.32331175955302}]
[null," 30% to 34.9% of HH Income",{"$f":"C13","v":52},{"$f":"D13","v":51},{"$f":"E13","v":0},12,3,5,0,12,6,6,5,8,0,12,0,17,356,140,17,22,2,3,{"$f":"Y13","v":0},12,0,12,0,17,0,12,0,12,0,12,0,12,56,58,4,7,36,37,0,12,88,64]
[null," Less Than 35% of HH Income",{"$f":"C13+C12+C11+C10+C9+C8","v":127},{"$f":"SQRT((D13^2)+(D12^2)+(D11^2)+(D10^2)+(D9^2)+(D8^2))","v":67.401780391915466},{"$f":"E13+E12+E11+E10+E9+E8","v":51},{"$f":"SQRT((F13^2)+(F12^2)+(F11^2)+(F10^2)+(F9^2)+(F8^2))","v":48.805737367649719},{"$f":"G13+G12+G11+G10+G9+G8","v":44},{"$f":"SQRT((H13^2)+(H12^2)+(H11^2)+(H10^2)+(H9^2)+(H8^2))","v":27.838821814150108},{"$f":"I13+I12+I11+I10+I9+I8","v":35},{"$f":"SQRT((J13^2)+(J12^2)+(J11^2)+(J10^2)+(J9^2)+(J8^2))","v":31.89043743820395},{"$f":"K13+K12+K11+K10+K9+K8","v":21},{"$f":"SQRT((L13^2)+(L12^2)+(L11^2)+(L10^2)+(L9^2)+(L8^2))","v":24.576411454889016},{"$f":"M13+M12+M11+M10+M9+M8","v":25},{"$f":"SQRT((N13^2)+(N12^2)+(N11^2)+(N10^2)+(N9^2)+(N8^2))","v":23.685438564654021},{"$f":"O13+O12+O11+O10+O9+O8","v":105},{"$f":"SQRT((P13^2)+(P12^2)+(P11^2)+(P10^2)+(P9^2)+(P8^2))","v":73.769912566031962},{"$f":"Q13+Q12+Q11+Q10+Q9+Q8","v":253},{"$f":"SQRT((R13^2)+(R12^2)+(R11^2)+(R10^2)+(R9^2)+(R8^2))","v":127.36561545409342},{"$f":"S13+S12+S11+S10+S9+S8","v":2611},{"$f":"SQRT((T13^2)+(T12^2)+(T11^2)+(T10^2)+(T9^2)+(T8^2))","v":401.18449621090792},{"$f":"U13+U12+U11+U10+U9+U8","v":166},{"$f":"SQRT((V13^2)+(V12^2)+(V11^2)+(V10^2)+(V9^2)+(V8^2))","v":56.868268832451726},{"$f":"W13+W12+W11+W10+W9+W8","v":24},{"$f":"SQRT((X13^2)+(X12^2)+(X11^2)+(X10^2)+(X9^2)+(X8^2))","v":32.341923257592455},{"$f":"Y13+Y12+Y11+Y10+Y9+Y8","v":22},{"$f":"SQRT((Z13^2)+(Z12^2)+(Z11^2)+(Z10^2)+(Z9^2)+(Z8^2))","v":23.790754506740637},{"$f":"AA13+AA12+AA11+AA10+AA9+AA8","v":7},{"$f":"SQRT((AB13^2)+(AB12^2)+(AB11^2)+(AB10^2)+(AB9^2)+(AB8^2))","v":25.317977802344327},{"$f":"AC13+AC12+AC11+AC10+AC9+AC8","v":169},{"$f":"SQRT((AD13^2)+(AD12^2)+(AD11^2)+(AD10^2)+(AD9^2)+(AD8^2))","v":92.930081243911545},{"$f":"AE13+AE12+AE11+AE10+AE9+AE8","v":1},{"$f":"SQRT((AF13^2)+(AF12^2)+(AF11^2)+(AF10^2)+(AF9^2)+(AF8^2))","v":26.90724809414742},{"$f":"AG13+AG12+AG11+AG10+AG9+AG8","v":14},{"$f":"SQRT((AH13^2)+(AH12^2)+(AH11^2)+(AH10^2)+(AH9^2)+(AH8^2))","v":23.769728648009426},{"$f":"AI13+AI12+AI11+AI10+AI9+AI8","v":29},{"$f":"SQRT((AJ13^2)+(AJ12^2)+(AJ11^2)+(AJ10^2)+(AJ9^2)+(AJ8^2))","v":30.528675044947494},{"$f":"AK13+AK12+AK11+AK10+AK9+AK8","v":25},{"$f":"SQRT((AL13^2)+(AL12^2)+(AL11^2)+(AL10^2)+(AL9^2)+(AL8^2))","v":26.870057685088806},{"$f":"AM13+AM12+AM11+AM10+AM9+AM8","v":602},{"$f":"SQRT((AN13^2)+(AN12^2)+(AN11^2)+(AN10^2)+(AN9^2)+(AN8^2))","v":177.80607413696529},{"$f":"AO13+AO12+AO11+AO10+AO9+AO8","v":91},{"$f":"SQRT((AP13^2)+(AP12^2)+(AP11^2)+(AP10^2)+(AP9^2)+(AP8^2))","v":45.650848842053307},{"$f":"AQ13+AQ12+AQ11+AQ10+AQ9+AQ8","v":361},{"$f":"SQRT((AR13^2)+(AR12^2)+(AR11^2)+(AR10^2)+(AR9^2)+(AR8^2))","v":137.10579856446626},{"$f":"AS13+AS12+AS11+AS10+AS9+AS8","v":51},{"$f":"SQRT((AT13^2)+(AT12^2)+(AT11^2)+(AT10^2)+(AT9^2)+(AT8^2))","v":41.340053217188775},{"$f":"AU13+AU12+AU11+AU10+AU9+AU8","v":326},{"$f":"SQRT((AV13^2)+(AV12^2)+(AV11^2)+(AV10^2)+(AV9^2)+(AV8^2))","v":114.00438588054409}]
[null," 35% or More of HH Income",{"$f":"C14+C15+C16","v":40},{"$f":"SQRT((D14^2)+(D15^2)+(D16^2))","v":35.902646142032481},{"$f":"E14+E15+E16","v":82},{"$f":"SQRT((F14^2)+(F15^2)+(F16^2))","v":87.36131867136622},{"$f":"G14+G15+G16","v":42},{"$f":"SQRT((H14^2)+(H15^2)+(H16^2))","v":28.861739379323623},{"$f":"I14+I15+I16","v":34},{"$f":"SQRT((J14^2)+(J15^2)+(J16^2))","v":29.206163733020468},{"$f":"K14+K15+K16","v":6},{"$f":"SQRT((L14^2)+(L15^2)+(L16^2))","v":13.266499161421599},{"$f":"M14+M15+M16","v":3},{"$f":"SQRT((N14^2)+(N15^2)+(N16^2))","v":17.691806012954132},{"$f":"O14+O15+O16","v":92},{"$f":"SQRT((P14^2)+(P15^2)+(P16^2))","v":82.182723245217417},{"$f":"Q14+Q15+Q16","v":250},{"$f":"SQRT((R14^2)+(R15^2)+(R16^2))","v":150.97350760977901},{"$f":"S14+S15+S16","v":1433},{"$f":"SQRT((T14^2)+(T15^2)+(T16^2))","v":272.36739893019501},{"$f":"U14+U15+U16","v":149},{"$f":"SQRT((V14^2)+(V15^2)+(V16^2))","v":77.653074633268702},{"$f":"W14+W15+W16","v":11},{"$f":"SQRT((X14^2)+(X15^2)+(X16^2))","v":16.733200530681511},{"$f":"Y14+Y15+Y16","v":3},{"$f":"SQRT((Z14^2)+(Z15^2)+(Z16^2))","v":17.691806012954132},{"$f":"AA14+AA15+AA16","v":4},{"$f":"SQRT((AB14^2)+(AB15^2)+(AB16^2))","v":18.357559750685819},{"$f":"AC14+AC15+AC16","v":111},{"$f":"SQRT((AD14^2)+(AD15^2)+(AD16^2))","v":63.450768316861222},{"$f":"AE14+AE15+AE16","v":0},{"$f":"SQRT((AF14^2)+(AF15^2)+(AF16^2))","v":20.784609690826528},{"$f":"AG14+AG15+AG16","v":9},{"$f":"SQRT((AH14^2)+(AH15^2)+(AH16^2))","v":21.377558326431949},{"$f":"AI14+AI15+AI16","v":13},{"$f":"SQRT((AJ14^2)+(AJ15^2)+(AJ16^2))","v":9.4868329805051381},{"$f":"AK14+AK15+AK16","v":2},{"$f":"SQRT((AL14^2)+(AL15^2)+(AL16^2))","v":17.233687939614086},{"$f":"AM14+AM15+AM16","v":434},{"$f":"SQRT((AN14^2)+(AN15^2)+(AN16^2))","v":200.91042780303863},{"$f":"AO14+AO15+AO16","v":95},{"$f":"SQRT((AP14^2)+(AP15^2)+(AP16^2))","v":52.640288753007425},{"$f":"AQ14+AQ15+AQ16","v":128},{"$f":"SQRT((AR14^2)+(AR15^2)+(AR16^2))","v":94.978945035202401},{"$f":"AS14+AS15+AS16","v":12},{"$f":"SQRT((AT14^2)+(AT15^2)+(AT16^2))","v":14.966629547095765},{"$f":"AU14+AU15+AU16","v":199},{"$f":"SQRT((AV14^2)+(AV15^2)+(AV16^2))","v":83.648072302952684}]
[null," 50% or More of HH Income",{"$f":"C16","v":14},{"$f":"D16","v":11},{"$f":"E16","v":34},48,25,20,18,15,3,4,3,5,63,75,81,60,760,202,101,70,4,6,{"$f":"Y16","v":3},5,0,12,81,59,0,12,0,12,5,7,2,3,273,165,11,11,116,94,9,8,98,63]
[null,"Not computed",{"$f":"C17","v":49},{"$f":"D17","v":40},59,64,26,15,12,10,0,12,1,3,44,62,18,33,129,104,25,28,10,7,{"$f":"Y17","v":0},12,3,5,15,18,1,3,9,10,0,12,4,4,144,108,11,16,34,39,17,19,43,36]
[]
[]
[]
[]
[]
[]
[]
[]
[]
[]
[]
[]
[]
[]
[]
[]
[]
[]
[]
[]
[]
[]
[]
[]
[]
[]
[]
[]
[]
[]
[]
[]
[]
[]
[]
[]
[]
[]
[]
[]
[]
[]
[]
[]
[]
[]
[]
[]
[]
[]
[]
[]
[null,"Calculated B25070. GROSS RENT AS A PERCENTAGE OF HOUSEHOLD INCOME IN THE PAST 12 MONTHS"]
[null,"Universe:  RENTER-OCCUPIED HOUSING UNITS"]
[null,"Data Set: 2013-2017 American Community Survey 5-Year Estimates"]
[]
[null,null,"Alstead",null,"Chesterfield",null,"Dublin",null,"Fitzwilliam",null,"Gilsum",null,"Harrisville",null,"Hinsdale",null,"Jaffrey",null,"Keene",null,"Marlborough",null,"Marlow",null,"Nelson",null,"Richmond",null,"Rindge",null,"Roxbury",null,"Stoddard",null,"Sullivan",null,"Surry",null,"Swanzey",null,"Troy",null,"Walpole",null,"Westmoreland",null,"Winchester"]
[null," ","Estimate","Margin of Error","Estimate","Margin of Error","Estimate","Margin of Error","Estimate","Margin of Error","Estimate","Margin of Error","Estimate","Margin of Error","Estimate","Margin of Error","Estimate","Margin of Error","Estimate","Margin of Error","Estimate","Margin of Error","Estimate","Margin of Error","Estimate","Margin of Error","Estimate","Margin of Error","Estimate","Margin of Error","Estimate","Margin of Error","Estimate","Margin of Error","Estimate","Margin of Error","Estimate","Margin of Error","Estimate","Margin of Error","Estimate","Margin of Error","Estimate","Margin of Error","Estimate","Margin of Error","Estimate","Margin of Error"]
[null,"Total:",224,62,225,122,122,41,129,48,26,15,63,29,433,127,4319,404,4499,341,296,85,27,13,40,15,48,30,400,99,12,9,44,26,61,23,30,18,704,165,225,63,330,108,54,28,493,124]
[null,"Less than 20% of HH Income",61,42.836899981207793,90,65.76473218982953,22,23.53720459187964,18,18.601075237738275,3,16.06237840420901,20,22.825424421026653,54,52.211109928826453,779,237.61733943464648,833,222.7420032234603,34,29.34280150224242,9,16.06237840420901,13,8.7749643873921226,19,21.470910553583888,54,51.166395221864128,2,15.842979517754859,11,13.964240043768941,12,16.822603841260722,3,12.083045973594572,87,81.400245699874887,121,55.263007518592396,75,54.589376255824725,9,15.684387141358123,93,78.057670987546118]
[null," 20% to 24.9% of HH Income",9,10,0,11,6,6,40,33,3,6,5,6,49,48,461,140,504,124,47,36,2,3,2,3,1,3,44,31,0,11,11,15,10,10,13,13,62,44,15,13,89,58,14,10,120,85]
[null," 25% to 29.9% of HH Income",5,8,0,11,10,10,4,7,0,11,7,7,143,104,765,206,746,203,71,52,0,11,3,4,5,7,20,18,1,3,0,11,14,15,4,4,140,108,51,38,55,50,5,7,22,34]
[null," Less Than 30% of HH Income",75,44.710177812216315,90,67.57958271549181,38,26.267851073127396,62,38.522720568516448,6,20.371548787463361,32,24.617067250182341,246,125.88089608832628,2005,344.23538458444392,2083,325.88188044136484,152,69.72087205421343,11,19.697715603592208,18,10.099504938362077,25,22.781571499789035,118,62.473994589749104,3,19.519221295943137,22,23.259406699226016,36,24.657656011875904,20,18.193405398660254,289,142.21814230259091,187,68.315444813014281,219,94.042543564069973,28,19.874606914351791,235,120.30793822520607]
[null," 30% or More of HH Income",104,50.576674465607169,122,108.04628637764465,48,31.144823004794873,53,34.365680554879162,11,13.820274961085254,24,22.869193252058544,114,74.665922615340392,2226,361.58678073181824,2340,358.11171441325399,131,66.264621028117261,8,12.727922061357855,20,19.157244060668017,15,23.643180835073778,259,98.762341001011109,7,17.320508075688775,20,24.124676163629637,19,13.74772708486752,7,17.320508075688775,318,134.94813818648998,32,28.24889378365107,85,74.215901261117892,23,26.038433132583073,223,109.35264057168442]
[null," 30% to 34.9% of HH Income",26,24,16,23,9,8,19,21,4,5,2,5,69,57,442,138,445,163,19,23,4,4,0,11,0,11,44,34,6,7,0,11,2,3,2,3,34,40,0,11,0,11,0,11,50,37]
[null," Less Than 35% of HH Income",101,50.744457825461097,106,71.386273190298994,47,27.459060435491963,81,43.874821936960608,10,20.976176963403031,34,25.119713374160941,315,138.18465906170627,2447,370.86655281920474,2528,364.37343481653545,171,73.416619371910613,15,20.09975124224178,18,14.933184523068078,25,25.298221281347036,162,71.12664760833313,9,20.73644135332772,22,25.729360660537214,38,24.839484696748443,22,18.439088914585774,323,147.7362514753911,187,69.195375568024772,219,94.683683916501693,28,22.715633383201094,285,125.86897949852458]
[null," 35% or More of HH Income",78,44.519658579104131,106,105.56988206870366,39,30.099833886584822,34,27.202941017470888,7,12.884098726725126,22,22.315913604421397,45,48.228622207149975,1784,334.21699537875088,1895,318.86517527005049,112,62.144991753157392,4,12.083045973594572,20,15.684387141358123,15,20.928449536456348,215,92.72540105062906,1,15.842979517754859,20,21.470910553583888,17,13.416407864998739,5,17.058722109231979,284,128.88366847665378,32,26.019223662515376,85,73.396185186970044,23,23.600847442411894,173,102.90286682109493]
[null," 50% or More of HH Income",35,30,49,80,29,23,20,24,5,6,19,19,19,21,1086,254,1216,247,38,37,2,3,16,10,9,14,145,83,0,11,8,12,5,8,5,7,170,101,13,14,69,71,19,20,108,83]
[null,"Not computed",45,22,13,20,36,19,14,21,9,7,7,8,73,65,88,58,76,54,13,22,8,9,2,3,8,7,23,23,2,3,2,5,6,11,3,5,97,56,6,9,26,22,3,5,35,28]
[]
[]
[]
[]
[null,"B25070. GROSS RENT AS A PERCENTAGE OF HOUSEHOLD INCOME IN THE PAST 12 MONTHS"]
[null,"Universe:  RENTER-OCCUPIED HOUSING UNITS"]
[null,"Data Set: 2008-2012 American Community Survey 3-Year Estimates"]
[]
[null,null,"Alstead",null,"Chesterfield",null,"Dublin",null,"Fitzwilliam",null,"Gilsum",null,"Harrisville",null,"Hinsdale",null,"Jaffrey",null,"Keene",null,"Marlborough",null,"Marlow",null,"Nelson",null,"Richmond",null,"Rindge",null,"Roxbury",null,"Stoddard",null,"Sullivan",null,"Surry",null,"Swanzey",null,"Troy",null,"Walpole",null,"Westmoreland",null,"Winchester"]
[null," ","Estimate","Margin of Error","Estimate","Margin of Error","Estimate","Margin of Error","Estimate","Margin of Error","Estimate","Margin of Error","Estimate","Margin of Error","Estimate","Margin of Error","Estimate","Margin of Error","Estimate","Margin of Error","Estimate","Margin of Error","Estimate","Margin of Error","Estimate","Margin of Error","Estimate","Margin of Error","Estimate","Margin of Error","Estimate","Margin of Error","Estimate","Margin of Error","Estimate","Margin of Error","Estimate","Margin of Error","Estimate","Margin of Error","Estimate","Margin of Error","Estimate","Margin of Error","Estimate","Margin of Error","Estimate","Margin of Error"]
[null,"Total:",132,44,193,127,140,49,177,79,30,19,68,40,529,121,548,126,3866,378,231,89,41,24,83,43,33,24,431,119,12,9,53,28,40,25,23,14,657,173,260,77,466,132,86,32,571,128]
[null,"Less than 10.0 percent",18,19.748417658131498,135,125.58264211267415,38,28.390139133156779,9,20.928449536456348,9,16.06237840420901,13,16.822603841260722,43,37.696153649941529,90,57.428216061444921,721,207.94470418839717,52,53.319789947073126,10,14.491376746189438,29,18.248287590894659,4,16.673332000533065,80,57.86190456595773,0,19.05255888325765,21,24.779023386727733,5,16.340134638368191,8,17.058722109231979,168,88.532479915565446,58,52.516664022003532,135,78.778169564924525,7,14.7648230602334,69,48.559242168715933]
[null,"10.0 to 14.9 percent",9,9,18,28,3,5,38,39,6,8,14,15,101,74,12,20,522,167,62,48,9,13,3,4,2,5,33,30,0,11,0,11,0,11,3,4,96,64,17,21,33,35,13,13,62,55]
[null,"15.0 to 19.9 percent",9,13,0,11,5,8,8,11,4,5,10,15,156,85,38,59,506,165,15,15,0,11,3,5,0,11,42,42,0,11,15,12,7,9,0,11,62,56,50,39,46,32,21,20,70,61]
[null,"20.0 to 24.9 percent",36,25.298221281347036,153,129.13558765886341,46,29.916550603303182,55,45.607017003965517,19,18.627936010197157,37,27.073972741361768,300,118.83602147497197,140,84.728979694081062,1749,313.61600724452825,129,73.293928807234778,19,22.360679774997898,35,19.339079605813716,6,20.591260281974002,155,77.537087899920508,0,24.596747752497688,36,29.647934160747187,12,21.656407827707714,11,20.688160865577203,326,122.75992831539125,125,68.702256149270667,214,91.951073946963774,41,28.053520278211074,201,95.414883535012507]
[null,"25.0 to 29.9 percent",89,38.353617821530214,40,36.386810797320507,59,35.986108430893161,122,75.438716850169186,4,19.467922333931785,31,36.905284174491868,229,122.43365550370535,376,129.9961537892564,1966,301.53606749442099,79,53.169540152233779,15,23.409399821439251,43,39.344631145812002,25,28.407745422683583,188,87.988635629835741,8,13.711309200802088,8,17.944358444926362,12,20.049937655763422,5,20.663978319771825,281,134.39494038095333,129,63.35613624582863,167,77.06490770772389,26,21.840329667841555,342,127.73409881468612]
[null,"30.0 to 34.9 percent",11,13,0,11,0,11,0,11,0,11,0,11,21,24,73,53,367,149,16,17,6,9,33,35,17,22,0,16,2,3,0,11,0,11,5,8,86,54,53,39,82,59,18,16,49,45]
[null,"35.0 to 39.9 percent",47,28.442925306655784,153,129.60324070022324,46,31.874754901018456,55,46.914816422959603,19,21.633307652783937,37,29.223278392404914,321,121.23530838827442,213,99.939981989191892,2116,347.21175095321877,145,75.23961722390672,25,24.103941586387901,68,39.987498046264413,23,30.133038346638727,155,79.170701651557948,2,24.779023386727733,36,31.622776601683793,12,24.289915602982237,16,22.181073012818835,412,134.1118935814419,178,79,296,109.2520022699813,59,32.295510523910288,250,105.49407566304374]
[null,"40.0 to 49.9 percent",78,36.083237105337432,40,34.684290392049249,59,34.26368339802363,122,74.632432628181164,4,16.06237840420901,31,35.227829907617071,208,120.05831916198061,303,118.70130580579136,1599,262.15072000664043,63,50.378566871239997,9,21.61018278497431,10,17.972200755611428,8,17.972200755611428,188,86.521673585293073,6,13.379088160259652,8,14.177446878757825,12,16.763054614240211,0,19.05255888325765,195,123.0690862889621,76,49.929950931279713,85,49.578221024962161,8,14.866068747318506,293,119.5449706177554]
[null,"50.0 percent or more",36,22,40,31,38,27,35,32,4,4,5,6,127,93,142,81,989,189,21,32,9,15,10,9,8,9,111,66,2,3,3,4,9,12,0,11,88,64,17,16,40,35,5,8,145,81]
[null,"Not computed",7,7,0,11,35,18,0,11,7,10,0,11,0,11,32,36,151,80,23,28,7,10,5,5,2,5,88,41,4,6,9,10,16,17,7,7,50,40,6,10,85,54,19,14,28,40]

{"sheet":"ACS_Table_B25074","index":83,"n_rows":485,"n_cols":48,"rows_kept":485,"cut":false,"hidden":true,"merged":[]}
[null,"B25074. HOUSEHOLD INCOME BY GROSS RENT AS A PERCENTAGE OF HOUSEHOLD INCOME IN THE PAST 12 MONTHS"]
[null,"Universe:  RENTER-OCCUPIED HOUSING UNITS",null,null,null,null,{"$f":"RentalHousingCost!D41","v":"Income in 2022 Inflation Adjusted Dollars"}]
[null,"Data Set: 2018-2022 American Community Survey 5-Year Estimates"]
[]
[null,null,"Alstead",null,"Chesterfield",null,"Dublin",null,"Fitzwilliam",null,"Gilsum",null,"Harrisville",null,"Hinsdale",null,"Jaffrey",null,"Keene",null,"Marlborough",null,"Marlow",null,"Nelson",null,"Richmond",null,"Rindge",null,"Roxbury",null,"Stoddard",null,"Sullivan",null,"Surry",null,"Swanzey",null,"Troy",null,"Walpole",null,"Westmoreland",null,"Winchester"]
[null," ","Estimate","Margin of Error","Estimate","Margin of Error","Estimate","Margin of Error","Estimate","Margin of Error","Estimate","Margin of Error","Estimate","Margin of Error","Estimate","Margin of Error","Estimate","Margin of Error","Estimate","Margin of Error","Estimate","Margin of Error","Estimate","Margin of Error","Estimate","Margin of Error","Estimate","Margin of Error","Estimate","Margin of Error","Estimate","Margin of Error","Estimate","Margin of Error","Estimate","Margin of Error","Estimate","Margin of Error","Estimate","Margin of Error","Estimate","Margin of Error","Estimate","Margin of Error","Estimate","Margin of Error","Estimate","Margin of Error"]
[null,"Total:",216,81,192,114,112,39,81,30,27,15,29,18,241,100,521,169,4173,379,340,92,45,29,25,13,14,12,295,111,2,3,32,20,42,20,31,16,1180,250,197,58,523,152,80,39,568,122]
[null,"Less than $10,000:",28,38,0,12,9,12,16,11,2,2,0,12,55,73,18,28,205,117,6,9,3,5,0,12,0,12,0,17,0,12,0,12,0,12,0,12,92,93,6,9,92,85,0,12,46,40]
[null,"Less than 20.0 percent",0,12,0,12,0,12,0,12,0,12,0,12,0,12,0,17,0,22,0,12,0,12,0,12,0,12,0,17,0,12,0,12,0,12,0,12,0,17,0,12,0,12,0,12,0,12]
[null,"20.0 to 24.9 percent",0,12,0,12,0,12,0,12,0,12,0,12,0,12,0,17,0,22,0,12,0,12,0,12,0,12,0,17,0,12,0,12,0,12,0,12,0,17,0,12,19,31,0,12,0,12]
[null,"25.0 to 29.9 percent",0,12,0,12,0,12,0,12,0,12,0,12,0,12,0,17,0,22,0,12,0,12,0,12,0,12,0,17,0,12,0,12,0,12,0,12,0,17,0,12,0,12,0,12,0,12]
[null,"30.0 to 34.9 percent",0,12,0,12,0,12,0,12,0,12,0,12,0,12,0,17,0,22,0,12,0,12,0,12,0,12,0,17,0,12,0,12,0,12,0,12,0,17,0,12,0,12,0,12,0,12]
[null,"35.0 to 39.9 percent",0,12,0,12,0,12,0,12,0,12,0,12,0,12,0,17,0,22,0,12,0,12,0,12,0,12,0,17,0,12,0,12,0,12,0,12,13,19,0,12,0,12,0,12,0,12]
[null,"40.0 to 49.9 percent",0,12,0,12,0,12,0,12,0,12,0,12,0,12,0,17,0,22,0,12,0,12,0,12,0,12,0,17,0,12,0,12,0,12,0,12,0,17,0,12,0,12,0,12,0,12]
[null,"50.0 percent or more",0,12,0,12,0,12,12,12,2,2,0,12,55,73,18,28,152,91,6,9,0,12,0,12,0,12,0,17,0,12,0,12,0,12,0,12,0,17,6,9,73,80,0,12,14,15]
[null,"Not computed",28,38,0,12,9,12,4,6,0,12,0,12,0,12,0,17,53,80,0,12,3,5,0,12,0,12,0,17,0,12,0,12,0,12,0,12,79,91,0,12,0,12,0,12,32,37]
[null,"$10,000 to $19,999:",46,48,0,12,0,12,6,9,0,12,0,12,44,62,56,46,732,211,78,39,2,3,0,12,0,12,67,55,0,12,0,12,0,12,2,3,255,134,33,32,28,30,0,12,98,62]
[null,"Less than 20.0 percent",0,12,0,12,0,12,0,12,0,12,0,12,0,12,0,17,38,47,0,12,0,12,0,12,0,12,0,17,0,12,0,12,0,12,0,12,0,17,6,11,0,12,0,12,0,12]
[null,"20.0 to 24.9 percent",0,12,0,12,0,12,0,12,0,12,0,12,0,12,0,17,45,44,0,12,0,12,0,12,0,12,0,17,0,12,0,12,0,12,0,12,0,17,0,12,0,12,0,12,0,12]
[null,"25.0 to 29.9 percent",0,12,0,12,0,12,0,12,0,12,0,12,0,12,0,17,145,82,32,31,0,12,0,12,0,12,0,17,0,12,0,12,0,12,0,12,92,84,0,12,0,12,0,12,22,36]
[null,"30.0 to 34.9 percent",35,47,0,12,0,12,0,12,0,12,0,12,0,12,0,17,14,16,12,21,0,12,0,12,0,12,0,17,0,12,0,12,0,12,0,12,22,39,0,12,16,25,0,12,0,12]
[null,"35.0 to 39.9 percent",0,12,0,12,0,12,0,12,0,12,0,12,0,12,0,17,52,57,0,12,0,12,0,12,0,12,0,17,0,12,0,12,0,12,0,12,0,17,0,12,5,8,0,12,11,17]
[null,"40.0 to 49.9 percent",0,12,0,12,0,12,0,12,0,12,0,12,0,12,0,17,56,52,22,29,0,12,0,12,0,12,0,17,0,12,0,12,0,12,0,12,0,17,16,26,7,11,0,12,9,14]
[null,"50.0 percent or more",6,8,0,12,0,12,6,9,0,12,0,12,0,12,56,46,382,148,12,12,0,12,0,12,0,12,67,55,0,12,0,12,0,12,2,3,141,90,0,12,0,12,0,12,45,36]
[null,"Not computed",5,6,0,12,0,12,0,12,0,12,0,12,44,62,0,17,0,22,0,12,2,3,0,12,0,12,0,17,0,12,0,12,0,12,0,12,0,17,11,16,0,12,0,12,11,19]
[null,"$20,000 to $34,999:",33,30,121,99,49,25,19,22,4,5,3,5,64,49,114,95,788,200,125,74,7,10,6,6,0,12,47,31,0,12,0,12,8,8,0,12,245,174,71,45,64,56,24,16,117,61]
[null,"Less than 20.0 percent",0,12,0,12,0,12,0,12,0,12,0,12,15,24,13,21,12,20,0,12,0,12,0,12,0,12,0,17,0,12,0,12,0,12,0,12,16,27,5,9,0,12,0,12,0,12]
[null,"20.0 to 24.9 percent",20,29,0,12,0,12,0,12,0,12,0,12,0,12,15,23,28,39,9,11,0,12,0,12,0,12,0,17,0,12,0,12,0,12,0,12,0,17,0,12,0,12,0,12,0,12]
[null,"25.0 to 29.9 percent",0,12,0,12,5,5,0,12,0,12,0,12,12,19,15,24,72,59,9,11,0,12,3,4,0,12,0,17,0,12,0,12,0,12,0,12,39,62,0,12,0,12,9,16,0,12]
[null,"30.0 to 34.9 percent",0,12,0,12,0,12,0,12,3,4,0,12,0,12,0,17,146,98,0,12,0,12,0,12,0,12,0,17,0,12,0,12,0,12,0,12,0,17,0,12,15,28,0,12,27,33]
[null,"35.0 to 39.9 percent",0,12,48,72,0,12,0,12,0,12,0,12,13,20,58,84,192,120,15,16,0,12,0,12,0,12,9,15,0,12,0,12,0,12,0,12,0,17,15,23,0,12,0,12,43,35]
[null,"40.0 to 49.9 percent",5,6,0,12,10,15,16,22,0,12,0,12,16,27,6,12,164,94,0,12,7,10,0,12,0,12,15,16,0,12,0,12,3,4,0,12,46,71,46,38,0,12,3,4,8,11]
[null,"50.0 percent or more",8,9,34,48,25,20,0,12,1,3,3,5,8,13,7,14,160,86,83,71,0,12,3,5,0,12,14,22,0,12,0,12,5,7,0,12,132,152,5,7,43,51,9,8,39,45]
[null,"Not computed",0,12,39,57,9,7,3,4,0,12,0,12,0,12,0,17,14,16,9,10,0,12,0,12,0,12,9,14,0,12,0,12,0,12,0,12,12,21,0,12,6,9,3,5,0,12]
[null,"$35,000 to $49,999:",28,22,19,29,9,10,0,12,6,6,0,12,0,12,116,99,692,232,33,27,14,13,3,4,7,8,25,29,0,12,0,12,2,3,2,3,156,99,8,9,36,44,0,12,150,67]
[null,"Less than 20.0 percent",0,12,0,12,0,12,0,12,0,12,0,12,0,12,0,17,105,83,0,12,8,11,0,12,0,12,0,17,0,12,0,12,0,12,0,12,0,17,0,12,0,12,0,12,0,12]
[null,"20.0 to 24.9 percent",0,12,0,12,2,3,0,12,0,12,0,12,0,12,14,23,125,91,0,12,0,12,1,2,0,12,25,29,0,12,0,12,0,12,0,12,24,28,8,9,24,38,0,12,0,12]
[null,"25.0 to 29.9 percent",5,7,19,29,0,12,0,12,0,12,0,12,0,12,67,85,111,71,22,25,0,12,2,2,0,12,0,17,0,12,0,12,0,12,0,12,9,9,0,12,12,27,0,12,77,53]
[null,"30.0 to 34.9 percent",17,19,0,12,0,12,0,12,3,4,0,12,0,12,0,17,127,94,5,7,2,3,0,12,0,12,0,17,0,12,0,12,0,12,0,12,16,25,0,12,0,12,0,12,61,57]
[null,"35.0 to 39.9 percent",0,12,0,12,0,12,0,12,3,4,0,12,0,12,18,28,98,74,6,9,0,12,0,12,0,12,0,17,0,12,0,12,2,3,0,12,64,73,0,12,0,12,0,12,12,18]
[null,"40.0 to 49.9 percent",0,12,0,12,7,10,0,12,0,12,0,12,0,12,17,26,76,53,0,12,0,12,0,12,4,7,0,17,0,12,0,12,0,12,0,12,21,38,0,12,0,12,0,12,0,12]
[null,"50.0 percent or more",0,12,0,12,0,12,0,12,0,12,0,12,0,12,0,17,50,77,0,12,4,6,0,12,0,12,0,17,0,12,0,12,0,12,0,12,0,17,0,12,0,12,0,12,0,12]
[null,"Not computed",6,7,0,12,0,12,0,12,0,12,0,12,0,12,0,17,0,22,0,12,0,12,0,12,3,5,0,17,0,12,0,12,0,12,2,3,22,33,0,12,0,12,0,12,0,12]
[null,"$50,000 to $74,999:",50,40,20,29,19,23,3,5,12,11,11,10,13,22,174,130,797,200,18,15,0,12,7,7,1,4,81,74,1,2,15,15,19,16,8,10,188,101,14,13,127,75,15,20,106,61]
[null,"Less than 20.0 percent",15,21,0,12,0,12,0,12,0,12,2,4,0,12,40,59,182,92,5,8,0,12,4,5,1,4,38,55,1,2,0,12,16,16,0,12,0,17,0,12,45,47,0,12,53,46]
[null,"20.0 to 24.9 percent",8,8,0,12,16,23,0,12,3,4,4,5,13,22,47,47,144,82,4,6,0,12,3,5,0,12,31,49,0,12,0,12,0,12,0,12,35,33,3,5,8,10,15,20,0,12]
[null,"25.0 to 29.9 percent",0,12,0,12,0,12,3,5,9,10,0,12,0,12,17,26,304,120,4,7,0,12,0,12,0,12,0,17,0,12,0,12,0,12,8,10,118,91,0,12,45,43,0,12,35,40]
[null,"30.0 to 34.9 percent",0,12,0,12,0,12,0,12,0,12,5,8,0,12,0,17,69,69,0,12,0,12,0,12,0,12,0,17,0,12,0,12,0,12,0,12,18,31,4,7,5,9,0,12,0,12]
[null,"35.0 to 39.9 percent",0,12,0,12,0,12,0,12,0,12,0,12,0,12,0,17,14,19,5,7,0,12,0,12,0,12,6,9,0,12,9,13,3,4,0,12,0,17,7,9,0,12,0,12,18,28]
[null,"40.0 to 49.9 percent",21,31,0,12,0,12,0,12,0,12,0,12,0,12,70,93,21,32,0,12,0,12,0,12,0,12,0,17,0,12,0,12,0,12,0,12,17,30,0,12,0,12,0,12,0,12]
[null,"50.0 percent or more",0,12,0,12,0,12,0,12,0,12,0,12,0,12,0,17,1,3,0,12,0,12,0,12,0,12,0,17,0,12,0,12,0,12,0,12,0,17,0,12,0,12,0,12,0,12]
[null,"Not computed",6,8,20,29,3,4,0,12,0,12,0,12,0,12,0,17,62,61,0,12,0,12,0,12,0,12,6,10,0,12,6,9,0,12,0,12,0,17,0,12,24,37,0,12,0,12]
[null,"$75,000 to $99,999:",6,8,15,22,14,11,10,11,3,4,5,6,0,12,25,31,378,137,28,28,5,5,7,7,0,12,46,37,0,12,12,11,0,12,14,12,202,88,33,27,84,85,9,7,7,12]
[null,"Less than 20.0 percent",6,8,15,22,3,6,0,12,0,12,0,12,0,12,11,24,218,115,12,13,0,12,4,5,0,12,21,26,0,12,5,9,0,12,0,12,6,9,5,9,72,85,6,6,0,12]
[null,"20.0 to 24.9 percent",0,12,0,12,0,12,4,6,3,4,5,6,0,12,14,23,129,91,0,12,0,12,0,12,0,12,11,18,0,12,4,6,0,12,10,12,196,88,28,26,8,14,3,4,7,12]
[null,"25.0 to 29.9 percent",0,12,0,12,3,4,6,8,0,12,0,12,0,12,0,17,31,32,0,12,0,12,3,4,0,12,14,24,0,12,0,12,0,12,2,3,0,17,0,12,0,12,0,12,0,12]
[null,"30.0 to 34.9 percent",0,12,0,12,3,5,0,12,0,12,0,12,0,12,0,17,0,22,0,12,0,12,0,12,0,12,0,17,0,12,0,12,0,12,0,12,0,17,0,12,0,12,0,12,0,12]
[null,"35.0 to 39.9 percent",0,12,0,12,0,12,0,12,0,12,0,12,0,12,0,17,0,22,0,12,0,12,0,12,0,12,0,17,0,12,0,12,0,12,0,12,0,17,0,12,0,12,0,12,0,12]
[null,"40.0 to 49.9 percent",0,12,0,12,0,12,0,12,0,12,0,12,0,12,0,17,0,22,0,12,0,12,0,12,0,12,0,17,0,12,0,12,0,12,0,12,0,17,0,12,0,12,0,12,0,12]
[null,"50.0 percent or more",0,12,0,12,0,12,0,12,0,12,0,12,0,12,0,17,0,22,0,12,0,12,0,12,0,12,0,17,0,12,0,12,0,12,0,12,0,17,0,12,0,12,0,12,0,12]
[null,"Not computed",0,12,0,12,5,6,0,12,0,12,0,12,0,12,0,17,0,22,16,25,5,5,0,12,0,12,0,17,0,12,3,4,0,12,2,3,0,17,0,12,4,7,0,12,0,12]
[null,"$100,000 or more:",25,19,17,25,12,12,27,26,0,12,10,12,65,61,18,33,581,259,52,37,14,22,2,3,6,7,29,26,1,3,5,5,13,10,5,5,42,46,32,28,92,76,32,32,44,47]
[null,"Less than 20.0 percent",21,18,17,25,12,12,22,25,0,12,9,12,65,61,0,17,530,259,42,34,14,22,0,12,6,7,23,21,0,12,3,4,13,10,5,5,11,18,32,28,92,76,18,27,44,47]
[null,"20.0 to 24.9 percent",0,12,0,12,0,12,0,12,0,12,0,12,0,12,0,17,32,54,5,7,0,12,2,3,0,12,6,13,0,12,2,3,0,12,0,12,0,17,0,12,0,12,0,12,0,12]
[null,"25.0 to 29.9 percent",0,12,0,12,0,12,0,12,0,12,0,12,0,12,0,17,4,10,5,8,0,12,0,12,0,12,0,17,0,12,0,12,0,12,0,12,0,17,0,12,0,12,0,12,0,12]
[null,"30.0 to 34.9 percent",0,12,0,12,0,12,0,12,0,12,0,12,0,12,0,17,0,22,0,12,0,12,0,12,0,12,0,17,0,12,0,12,0,12,0,12,0,17,0,12,0,12,0,12,0,12]
[null,"35.0 to 39.9 percent",0,12,0,12,0,12,0,12,0,12,0,12,0,12,0,17,0,22,0,12,0,12,0,12,0,12,0,17,0,12,0,12,0,12,0,12,0,17,0,12,0,12,0,12,0,12]
[null,"40.0 to 49.9 percent",0,12,0,12,0,12,0,12,0,12,0,12,0,12,0,17,0,22,0,12,0,12,0,12,0,12,0,17,0,12,0,12,0,12,0,12,0,17,0,12,0,12,0,12,0,12]
[null,"50.0 percent or more",0,12,0,12,0,12,0,12,0,12,0,12,0,12,0,17,15,25,0,12,0,12,0,12,0,12,0,17,0,12,0,12,0,12,0,12,0,17,0,12,0,12,0,12,0,12]
[null,"Not computed",4,6,0,12,0,12,5,9,0,12,1,3,0,12,18,33,0,22,0,12,0,12,0,12,0,12,0,17,1,3,0,12,0,12,0,12,31,43,0,12,0,12,14,18,0,12]
[]
[]
[]
[]
[]
[]
[]
[]
[]
[]
[]
[]
[]
[]
[]
[null,"Calculated B25074. HOUSEHOLD INCOME BY GROSS RENT AS A PERCENTAGE OF HOUSEHOLD INCOME IN THE PAST 12 MONTHS"]
[null,"Universe:  RENTER-OCCUPIED HOUSING UNITS"]
[null,"Data Set: 2018-2022 American Community Survey 5-Year Estimates"]
[]
[null,null,"Alstead",null,"Chesterfield",null,"Dublin",null,"Fitzwilliam",null,"Gilsum",null,"Harrisville",null,"Hinsdale",null,"Jaffrey",null,"Keene",null,"Marlborough",null,"Marlow",null,"Nelson",null,"Richmond",null,"Rindge",null,"Roxbury",null,"Stoddard",null,"Sullivan",null,"Surry",null,"Swanzey",null,"Troy",null,"Walpole",null,"Westmoreland",null,"Winchester"]
[null," ","Estimate","Margin of Error","Estimate","Margin of Error","Estimate","Margin of Error","Estimate","Margin of Error","Estimate","Margin of Error","Estimate","Margin of Error","Estimate","Margin of Error","Estimate","Margin of Error","Estimate","Margin of Error","Estimate","Margin of Error","Estimate","Margin of Error","Estimate","Margin of Error","Estimate","Margin of Error","Estimate","Margin of Error","Estimate","Margin of Error","Estimate","Margin of Error","Estimate","Margin of Error","Estimate","Margin of Error","Estimate","Margin of Error","Estimate","Margin of Error","Estimate","Margin of Error","Estimate","Margin of Error","Estimate","Margin of Error"]
[null,"Total:",{"$f":"C7","v":216},{"$f":"D7","v":81},{"$f":"E7","v":192},114,112,39,81,30,27,15,29,18,241,100,521,169,{"$f":"S7","v":4173},379,340,92,45,29,25,13,14,12,295,111,2,3,32,20,42,20,31,16,1180,250,197,58,523,152,80,39,568,122]
[null,"Less than $10,000:",{"$f":"C8","v":28},{"$f":"D8","v":38},0,12,9,12,16,11,2,2,0,12,55,73,18,28,205,117,6,9,3,5,0,12,0,12,0,17,0,12,0,12,0,12,0,12,92,93,6,9,92,85,0,12,46,40]
[null,"Less than 30.0 percent",{"$f":"C9+C10+C11","v":0},{"$f":"SQRT((D9^2)+(D10^2)+(D11^2))","v":20.784609690826528},{"$f":"E9+E10+E11","v":0},{"$f":"SQRT((F9^2)+(F10^2)+(F11^2))","v":20.784609690826528},{"$f":"G9+G10+G11","v":0},{"$f":"SQRT((H9^2)+(H10^2)+(H11^2))","v":20.784609690826528},{"$f":"I9+I10+I11","v":0},{"$f":"SQRT((J9^2)+(J10^2)+(J11^2))","v":20.784609690826528},{"$f":"K9+K10+K11","v":0},{"$f":"SQRT((L9^2)+(L10^2)+(L11^2))","v":20.784609690826528},{"$f":"M9+M10+M11","v":0},{"$f":"SQRT((N9^2)+(N10^2)+(N11^2))","v":20.784609690826528},{"$f":"O9+O10+O11","v":0},{"$f":"SQRT((P9^2)+(P10^2)+(P11^2))","v":20.784609690826528},{"$f":"Q9+Q10+Q11","v":0},{"$f":"SQRT((R9^2)+(R10^2)+(R11^2))","v":29.444863728670914},{"$f":"S9+S10+S11","v":0},{"$f":"SQRT((T9^2)+(T10^2)+(T11^2))","v":38.105117766515299},{"$f":"U9+U10+U11","v":0},{"$f":"SQRT((V9^2)+(V10^2)+(V11^2))","v":20.784609690826528},{"$f":"W9+W10+W11","v":0},{"$f":"SQRT((X9^2)+(X10^2)+(X11^2))","v":20.784609690826528},{"$f":"Y9+Y10+Y11","v":0},{"$f":"SQRT((Z9^2)+(Z10^2)+(Z11^2))","v":20.784609690826528},{"$f":"AA9+AA10+AA11","v":0},{"$f":"SQRT((AB9^2)+(AB10^2)+(AB11^2))","v":20.784609690826528},{"$f":"AC9+AC10+AC11","v":0},{"$f":"SQRT((AD9^2)+(AD10^2)+(AD11^2))","v":29.444863728670914},{"$f":"AE9+AE10+AE11","v":0},{"$f":"SQRT((AF9^2)+(AF10^2)+(AF11^2))","v":20.784609690826528},{"$f":"AG9+AG10+AG11","v":0},{"$f":"SQRT((AH9^2)+(AH10^2)+(AH11^2))","v":20.784609690826528},{"$f":"AI9+AI10+AI11","v":0},{"$f":"SQRT((AJ9^2)+(AJ10^2)+(AJ11^2))","v":20.784609690826528},{"$f":"AK9+AK10+AK11","v":0},{"$f":"SQRT((AL9^2)+(AL10^2)+(AL11^2))","v":20.784609690826528},{"$f":"AM9+AM10+AM11","v":0},{"$f":"SQRT((AN9^2)+(AN10^2)+(AN11^2))","v":29.444863728670914},{"$f":"AO9+AO10+AO11","v":0},{"$f":"SQRT((AP9^2)+(AP10^2)+(AP11^2))","v":20.784609690826528},{"$f":"AQ9+AQ10+AQ11","v":19},{"$f":"SQRT((AR9^2)+(AR10^2)+(AR11^2))","v":35.341194094144583},{"$f":"AS9+AS10+AS11","v":0},{"$f":"SQRT((AT9^2)+(AT10^2)+(AT11^2))","v":20.784609690826528},{"$f":"AU9+AU10+AU11","v":0},{"$f":"SQRT((AV9^2)+(AV10^2)+(AV11^2))","v":20.784609690826528}]
[null,"More than 30.0 percent",{"$f":"C12+C13+C14+C15","v":0},{"$f":"SQRT((D12^2)+(D13^2)+(D14^2)+(D15^2))","v":24},{"$f":"E12+E13+E14+E15","v":0},{"$f":"SQRT((F12^2)+(F13^2)+(F14^2)+(F15^2))","v":24},{"$f":"G12+G13+G14+G15","v":0},{"$f":"SQRT((H12^2)+(H13^2)+(H14^2)+(H15^2))","v":24},{"$f":"I12+I13+I14+I15","v":12},{"$f":"SQRT((J12^2)+(J13^2)+(J14^2)+(J15^2))","v":24},{"$f":"K12+K13+K14+K15","v":2},{"$f":"SQRT((L12^2)+(L13^2)+(L14^2)+(L15^2))","v":20.880613017821101},{"$f":"M12+M13+M14+M15","v":0},{"$f":"SQRT((N12^2)+(N13^2)+(N14^2)+(N15^2))","v":24},{"$f":"O12+O13+O14+O15","v":55},{"$f":"SQRT((P12^2)+(P13^2)+(P14^2)+(P15^2))","v":75.901251636583694},{"$f":"Q12+Q13+Q14+Q15","v":18},{"$f":"SQRT((R12^2)+(R13^2)+(R14^2)+(R15^2))","v":40.63249930782009},{"$f":"S12+S13+S14+S15","v":152},{"$f":"SQRT((T12^2)+(T13^2)+(T14^2)+(T15^2))","v":98.655967888415148},{"$f":"U12+U13+U14+U15","v":6},{"$f":"SQRT((V12^2)+(V13^2)+(V14^2)+(V15^2))","v":22.649503305812249},{"$f":"W12+W13+W14+W15","v":0},{"$f":"SQRT((X12^2)+(X13^2)+(X14^2)+(X15^2))","v":24},{"$f":"Y12+Y13+Y14+Y15","v":0},{"$f":"SQRT((Z12^2)+(Z13^2)+(Z14^2)+(Z15^2))","v":24},{"$f":"AA12+AA13+AA14+AA15","v":0},{"$f":"SQRT((AB12^2)+(AB13^2)+(AB14^2)+(AB15^2))","v":24},{"$f":"AC12+AC13+AC14+AC15","v":0},{"$f":"SQRT((AD12^2)+(AD13^2)+(AD14^2)+(AD15^2))","v":34},{"$f":"AE12+AE13+AE14+AE15","v":0},{"$f":"SQRT((AF12^2)+(AF13^2)+(AF14^2)+(AF15^2))","v":24},{"$f":"AG12+AG13+AG14+AG15","v":0},{"$f":"SQRT((AH12^2)+(AH13^2)+(AH14^2)+(AH15^2))","v":24},{"$f":"AI12+AI13+AI14+AI15","v":0},{"$f":"SQRT((AJ12^2)+(AJ13^2)+(AJ14^2)+(AJ15^2))","v":24},{"$f":"AK12+AK13+AK14+AK15","v":0},{"$f":"SQRT((AL12^2)+(AL13^2)+(AL14^2)+(AL15^2))","v":24},{"$f":"AM12+AM13+AM14+AM15","v":13},{"$f":"SQRT((AN12^2)+(AN13^2)+(AN14^2)+(AN15^2))","v":35.042830935870462},{"$f":"AO12+AO13+AO14+AO15","v":6},{"$f":"SQRT((AP12^2)+(AP13^2)+(AP14^2)+(AP15^2))","v":22.649503305812249},{"$f":"AQ12+AQ13+AQ14+AQ15","v":73},{"$f":"SQRT((AR12^2)+(AR13^2)+(AR14^2)+(AR15^2))","v":82.655913279087301},{"$f":"AS12+AS13+AS14+AS15","v":0},{"$f":"SQRT((AT12^2)+(AT13^2)+(AT14^2)+(AT15^2))","v":24},{"$f":"AU12+AU13+AU14+AU15","v":14},{"$f":"SQRT((AV12^2)+(AV13^2)+(AV14^2)+(AV15^2))","v":25.632011235952593}]
[null,"Less Than 35% of HH Income",{"$f":"C9+C10+C11+C12","v":0},{"$f":"SQRT((D9^2)+(D10^2)+(D11^2)+(D12^2))","v":24},{"$f":"E9+E10+E11+E12","v":0},{"$f":"SQRT((F9^2)+(F10^2)+(F11^2)+(F12^2))","v":24},{"$f":"G9+G10+G11+G12","v":0},{"$f":"SQRT((H9^2)+(H10^2)+(H11^2)+(H12^2))","v":24},{"$f":"I9+I10+I11+I12","v":0},{"$f":"SQRT((J9^2)+(J10^2)+(J11^2)+(J12^2))","v":24},{"$f":"K9+K10+K11+K12","v":0},{"$f":"SQRT((L9^2)+(L10^2)+(L11^2)+(L12^2))","v":24},{"$f":"M9+M10+M11+M12","v":0},{"$f":"SQRT((N9^2)+(N10^2)+(N11^2)+(N12^2))","v":24},{"$f":"O9+O10+O11+O12","v":0},{"$f":"SQRT((P9^2)+(P10^2)+(P11^2)+(P12^2))","v":24},{"$f":"Q9+Q10+Q11+Q12","v":0},{"$f":"SQRT((R9^2)+(R10^2)+(R11^2)+(R12^2))","v":34},{"$f":"S9+S10+S11+S12","v":0},{"$f":"SQRT((T9^2)+(T10^2)+(T11^2)+(T12^2))","v":44},{"$f":"U9+U10+U11+U12","v":0},{"$f":"SQRT((V9^2)+(V10^2)+(V11^2)+(V12^2))","v":24},{"$f":"W9+W10+W11+W12","v":0},{"$f":"SQRT((X9^2)+(X10^2)+(X11^2)+(X12^2))","v":24},{"$f":"Y9+Y10+Y11+Y12","v":0},{"$f":"SQRT((Z9^2)+(Z10^2)+(Z11^2)+(Z12^2))","v":24},{"$f":"AA9+AA10+AA11+AA12","v":0},{"$f":"SQRT((AB9^2)+(AB10^2)+(AB11^2)+(AB12^2))","v":24},{"$f":"AC9+AC10+AC11+AC12","v":0},{"$f":"SQRT((AD9^2)+(AD10^2)+(AD11^2)+(AD12^2))","v":34},{"$f":"AE9+AE10+AE11+AE12","v":0},{"$f":"SQRT((AF9^2)+(AF10^2)+(AF11^2)+(AF12^2))","v":24},{"$f":"AG9+AG10+AG11+AG12","v":0},{"$f":"SQRT((AH9^2)+(AH10^2)+(AH11^2)+(AH12^2))","v":24},{"$f":"AI9+AI10+AI11+AI12","v":0},{"$f":"SQRT((AJ9^2)+(AJ10^2)+(AJ11^2)+(AJ12^2))","v":24},{"$f":"AK9+AK10+AK11+AK12","v":0},{"$f":"SQRT((AL9^2)+(AL10^2)+(AL11^2)+(AL12^2))","v":24},{"$f":"AM9+AM10+AM11+AM12","v":0},{"$f":"SQRT((AN9^2)+(AN10^2)+(AN11^2)+(AN12^2))","v":34},{"$f":"AO9+AO10+AO11+AO12","v":0},{"$f":"SQRT((AP9^2)+(AP10^2)+(AP11^2)+(AP12^2))","v":24},{"$f":"AQ9+AQ10+AQ11+AQ12","v":19},{"$f":"SQRT((AR9^2)+(AR10^2)+(AR11^2)+(AR12^2))","v":37.322915213043046},{"$f":"AS9+AS10+AS11+AS12","v":0},{"$f":"SQRT((AT9^2)+(AT10^2)+(AT11^2)+(AT12^2))","v":24},{"$f":"AU9+AU10+AU11+AU12","v":0},{"$f":"SQRT((AV9^2)+(AV10^2)+(AV11^2)+(AV12^2))","v":24}]
[null,"35.0 percent or more",{"$f":"C13+C14++C15","v":0},{"$f":"SQRT((D13^2)+(D14^2)+(D15^2))","v":20.784609690826528},{"$f":"E13+E14++E15","v":0},{"$f":"SQRT((F13^2)+(F14^2)+(F15^2))","v":20.784609690826528},{"$f":"G13+G14++G15","v":0},{"$f":"SQRT((H13^2)+(H14^2)+(H15^2))","v":20.784609690826528},{"$f":"I13+I14++I15","v":12},{"$f":"SQRT((J13^2)+(J14^2)+(J15^2))","v":20.784609690826528},{"$f":"K13+K14++K15","v":2},{"$f":"SQRT((L13^2)+(L14^2)+(L15^2))","v":17.088007490635061},{"$f":"M13+M14++M15","v":0},{"$f":"SQRT((N13^2)+(N14^2)+(N15^2))","v":20.784609690826528},{"$f":"O13+O14++O15","v":55},{"$f":"SQRT((P13^2)+(P14^2)+(P15^2))","v":74.94664769020693},{"$f":"Q13+Q14++Q15","v":18},{"$f":"SQRT((R13^2)+(R14^2)+(R15^2))","v":36.905284174491868},{"$f":"S13+S14++S15","v":152},{"$f":"SQRT((T13^2)+(T14^2)+(T15^2))","v":96.171721415393208},{"$f":"U13+U14++U15","v":6},{"$f":"SQRT((V13^2)+(V14^2)+(V15^2))","v":19.209372712298546},{"$f":"W13+W14++W15","v":0},{"$f":"SQRT((X13^2)+(X14^2)+(X15^2))","v":20.784609690826528},{"$f":"Y13+Y14++Y15","v":0},{"$f":"SQRT((Z13^2)+(Z14^2)+(Z15^2))","v":20.784609690826528},{"$f":"AA13+AA14++AA15","v":0},{"$f":"SQRT((AB13^2)+(AB14^2)+(AB15^2))","v":20.784609690826528},{"$f":"AC13+AC14++AC15","v":0},{"$f":"SQRT((AD13^2)+(AD14^2)+(AD15^2))","v":29.444863728670914},{"$f":"AE13+AE14++AE15","v":0},{"$f":"SQRT((AF13^2)+(AF14^2)+(AF15^2))","v":20.784609690826528},{"$f":"AG13+AG14++AG15","v":0},{"$f":"SQRT((AH13^2)+(AH14^2)+(AH15^2))","v":20.784609690826528},{"$f":"AI13+AI14++AI15","v":0},{"$f":"SQRT((AJ13^2)+(AJ14^2)+(AJ15^2))","v":20.784609690826528},{"$f":"AK13+AK14++AK15","v":0},{"$f":"SQRT((AL13^2)+(AL14^2)+(AL15^2))","v":20.784609690826528},{"$f":"AM13+AM14++AM15","v":13},{"$f":"SQRT((AN13^2)+(AN14^2)+(AN15^2))","v":30.643106892089126},{"$f":"AO13+AO14++AO15","v":6},{"$f":"SQRT((AP13^2)+(AP14^2)+(AP15^2))","v":19.209372712298546},{"$f":"AQ13+AQ14++AQ15","v":73},{"$f":"SQRT((AR13^2)+(AR14^2)+(AR15^2))","v":81.780193201043488},{"$f":"AS13+AS14++AS15","v":0},{"$f":"SQRT((AT13^2)+(AT14^2)+(AT15^2))","v":20.784609690826528},{"$f":"AU13+AU14++AU15","v":14},{"$f":"SQRT((AV13^2)+(AV14^2)+(AV15^2))","v":22.649503305812249}]
[null,"50.0 percent or more",{"$f":"C15","v":0},12,0,12,0,12,12,12,2,2,0,12,55,73,18,28,152,91,6,9,0,12,0,12,0,12,0,17,0,12,0,12,0,12,0,12,0,17,6,9,73,80,0,12,14,15]
[null,"Not Computed",{"$f":"C16","v":28},38,0,12,9,12,4,6,0,12,0,12,0,12,0,17,53,80,0,12,3,5,0,12,0,12,0,17,0,12,0,12,0,12,0,12,79,91,0,12,0,12,0,12,32,37]
[null,"$10,000 to $19,999:",{"$f":"C17","v":46},{"$f":"D17","v":48},{"$f":"E17","v":0},12,0,12,6,9,0,12,0,12,44,62,56,46,732,211,78,39,2,3,0,12,0,12,67,55,0,12,0,12,0,12,2,3,255,134,33,32,28,30,0,12,98,62]
[null,"Less than 30.0 percent",{"$f":"C18+C19+C20","v":0},{"$f":"SQRT((D18^2)+(D19^2)+(D20^2))","v":20.784609690826528},{"$f":"E18+E19+E20","v":0},{"$f":"SQRT((F18^2)+(F19^2)+(F20^2))","v":20.784609690826528},{"$f":"G18+G19+G20","v":0},{"$f":"SQRT((H18^2)+(H19^2)+(H20^2))","v":20.784609690826528},{"$f":"I18+I19+I20","v":0},{"$f":"SQRT((J18^2)+(J19^2)+(J20^2))","v":20.784609690826528},{"$f":"K18+K19+K20","v":0},{"$f":"SQRT((L18^2)+(L19^2)+(L20^2))","v":20.784609690826528},{"$f":"M18+M19+M20","v":0},{"$f":"SQRT((N18^2)+(N19^2)+(N20^2))","v":20.784609690826528},{"$f":"O18+O19+O20","v":0},{"$f":"SQRT((P18^2)+(P19^2)+(P20^2))","v":20.784609690826528},{"$f":"Q18+Q19+Q20","v":0},{"$f":"SQRT((R18^2)+(R19^2)+(R20^2))","v":29.444863728670914},{"$f":"S18+S19+S20","v":228},{"$f":"SQRT((T18^2)+(T19^2)+(T20^2))","v":104.25449630591478},{"$f":"U18+U19+U20","v":32},{"$f":"SQRT((V18^2)+(V19^2)+(V20^2))","v":35.341194094144583},{"$f":"W18+W19+W20","v":0},{"$f":"SQRT((X18^2)+(X19^2)+(X20^2))","v":20.784609690826528},{"$f":"Y18+Y19+Y20","v":0},{"$f":"SQRT((Z18^2)+(Z19^2)+(Z20^2))","v":20.784609690826528},{"$f":"AA18+AA19+AA20","v":0},{"$f":"SQRT((AB18^2)+(AB19^2)+(AB20^2))","v":20.784609690826528},{"$f":"AC18+AC19+AC20","v":0},{"$f":"SQRT((AD18^2)+(AD19^2)+(AD20^2))","v":29.444863728670914},{"$f":"AE18+AE19+AE20","v":0},{"$f":"SQRT((AF18^2)+(AF19^2)+(AF20^2))","v":20.784609690826528},{"$f":"AG18+AG19+AG20","v":0},{"$f":"SQRT((AH18^2)+(AH19^2)+(AH20^2))","v":20.784609690826528},{"$f":"AI18+AI19+AI20","v":0},{"$f":"SQRT((AJ18^2)+(AJ19^2)+(AJ20^2))","v":20.784609690826528},{"$f":"AK18+AK19+AK20","v":0},{"$f":"SQRT((AL18^2)+(AL19^2)+(AL20^2))","v":20.784609690826528},{"$f":"AM18+AM19+AM20","v":92},{"$f":"SQRT((AN18^2)+(AN19^2)+(AN20^2))","v":87.372764635211126},{"$f":"AO18+AO19+AO20","v":6},{"$f":"SQRT((AP18^2)+(AP19^2)+(AP20^2))","v":20.223748416156685},{"$f":"AQ18+AQ19+AQ20","v":0},{"$f":"SQRT((AR18^2)+(AR19^2)+(AR20^2))","v":20.784609690826528},{"$f":"AS18+AS19+AS20","v":0},{"$f":"SQRT((AT18^2)+(AT19^2)+(AT20^2))","v":20.784609690826528},{"$f":"AU18+AU19+AU20","v":22},{"$f":"SQRT((AV18^2)+(AV19^2)+(AV20^2))","v":39.799497484264798}]
[null,"More than 30.0 percent",{"$f":"C21+C22+C23+C24","v":41},{"$f":"SQRT((D21^2)+(D22^2)+(D23^2)+(D24^2))","v":50.606323715519977},{"$f":"E21+E22+E23+E24","v":0},{"$f":"SQRT((F21^2)+(F22^2)+(F23^2)+(F24^2))","v":24},{"$f":"G21+G22+G23+G24","v":0},{"$f":"SQRT((H21^2)+(H22^2)+(H23^2)+(H24^2))","v":24},{"$f":"I21+I22+I23+I24","v":6},{"$f":"SQRT((J21^2)+(J22^2)+(J23^2)+(J24^2))","v":22.649503305812249},{"$f":"K21+K22+K23+K24","v":0},{"$f":"SQRT((L21^2)+(L22^2)+(L23^2)+(L24^2))","v":24},{"$f":"M21+M22+M23+M24","v":0},{"$f":"SQRT((N21^2)+(N22^2)+(N23^2)+(N24^2))","v":24},{"$f":"O21+O22+O23+O24","v":0},{"$f":"SQRT((P21^2)+(P22^2)+(P23^2)+(P24^2))","v":24},{"$f":"Q21+Q22+Q23+Q24","v":56},{"$f":"SQRT((R21^2)+(R22^2)+(R23^2)+(R24^2))","v":54.616847217685496},{"$f":"S21+S22+S23+S24","v":504},{"$f":"SQRT((T21^2)+(T22^2)+(T23^2)+(T24^2))","v":167.6693174078072},{"$f":"U21+U22+U23+U24","v":46},{"$f":"SQRT((V21^2)+(V22^2)+(V23^2)+(V24^2))","v":39.623225512317902},{"$f":"W21+W22+W23+W24","v":0},{"$f":"SQRT((X21^2)+(X22^2)+(X23^2)+(X24^2))","v":24},{"$f":"Y21+Y22+Y23+Y24","v":0},{"$f":"SQRT((Z21^2)+(Z22^2)+(Z23^2)+(Z24^2))","v":24},{"$f":"AA21+AA22+AA23+AA24","v":0},{"$f":"SQRT((AB21^2)+(AB22^2)+(AB23^2)+(AB24^2))","v":24},{"$f":"AC21+AC22+AC23+AC24","v":67},{"$f":"SQRT((AD21^2)+(AD22^2)+(AD23^2)+(AD24^2))","v":62.385895841928885},{"$f":"AE21+AE22+AE23+AE24","v":0},{"$f":"SQRT((AF21^2)+(AF22^2)+(AF23^2)+(AF24^2))","v":24},{"$f":"AG21+AG22+AG23+AG24","v":0},{"$f":"SQRT((AH21^2)+(AH22^2)+(AH23^2)+(AH24^2))","v":24},{"$f":"AI21+AI22+AI23+AI24","v":0},{"$f":"SQRT((AJ21^2)+(AJ22^2)+(AJ23^2)+(AJ24^2))","v":24},{"$f":"AK21+AK22+AK23+AK24","v":2},{"$f":"SQRT((AL21^2)+(AL22^2)+(AL23^2)+(AL24^2))","v":21},{"$f":"AM21+AM22+AM23+AM24","v":163},{"$f":"SQRT((AN21^2)+(AN22^2)+(AN23^2)+(AN24^2))","v":100.99009852455833},{"$f":"AO21+AO22+AO23+AO24","v":16},{"$f":"SQRT((AP21^2)+(AP22^2)+(AP23^2)+(AP24^2))","v":33.286633954186478},{"$f":"AQ21+AQ22+AQ23+AQ24","v":28},{"$f":"SQRT((AR21^2)+(AR22^2)+(AR23^2)+(AR24^2))","v":30.886890422961002},{"$f":"AS21+AS22+AS23+AS24","v":0},{"$f":"SQRT((AT21^2)+(AT22^2)+(AT23^2)+(AT24^2))","v":24},{"$f":"AU21+AU22+AU23+AU24","v":65},{"$f":"SQRT((AV21^2)+(AV22^2)+(AV23^2)+(AV24^2))","v":43.874821936960608}]
[null,"Less Than 35% of HH Income",{"$f":"C18+C19+C20+C21","v":35},{"$f":"SQRT((D18^2)+(D19^2)+(D20^2)+(D21^2))","v":51.39066063011839},{"$f":"E18+E19+E20+E21","v":0},{"$f":"SQRT((F18^2)+(F19^2)+(F20^2)+(F21^2))","v":24},{"$f":"G18+G19+G20+G21","v":0},{"$f":"SQRT((H18^2)+(H19^2)+(H20^2)+(H21^2))","v":24},{"$f":"I18+I19+I20+I21","v":0},{"$f":"SQRT((J18^2)+(J19^2)+(J20^2)+(J21^2))","v":24},{"$f":"K18+K19+K20+K21","v":0},{"$f":"SQRT((L18^2)+(L19^2)+(L20^2)+(L21^2))","v":24},{"$f":"M18+M19+M20+M21","v":0},{"$f":"SQRT((N18^2)+(N19^2)+(N20^2)+(N21^2))","v":24},{"$f":"O18+O19+O20+O21","v":0},{"$f":"SQRT((P18^2)+(P19^2)+(P20^2)+(P21^2))","v":24},{"$f":"Q18+Q19+Q20+Q21","v":0},{"$f":"SQRT((R18^2)+(R19^2)+(R20^2)+(R21^2))","v":34},{"$f":"S18+S19+S20+S21","v":242},{"$f":"SQRT((T18^2)+(T19^2)+(T20^2)+(T21^2))","v":105.47511554864494},{"$f":"U18+U19+U20+U21","v":44},{"$f":"SQRT((V18^2)+(V19^2)+(V20^2)+(V21^2))","v":41.109609582188931},{"$f":"W18+W19+W20+W21","v":0},{"$f":"SQRT((X18^2)+(X19^2)+(X20^2)+(X21^2))","v":24},{"$f":"Y18+Y19+Y20+Y21","v":0},{"$f":"SQRT((Z18^2)+(Z19^2)+(Z20^2)+(Z21^2))","v":24},{"$f":"AA18+AA19+AA20+AA21","v":0},{"$f":"SQRT((AB18^2)+(AB19^2)+(AB20^2)+(AB21^2))","v":24},{"$f":"AC18+AC19+AC20+AC21","v":0},{"$f":"SQRT((AD18^2)+(AD19^2)+(AD20^2)+(AD21^2))","v":34},{"$f":"AE18+AE19+AE20+AE21","v":0},{"$f":"SQRT((AF18^2)+(AF19^2)+(AF20^2)+(AF21^2))","v":24},{"$f":"AG18+AG19+AG20+AG21","v":0},{"$f":"SQRT((AH18^2)+(AH19^2)+(AH20^2)+(AH21^2))","v":24},{"$f":"AI18+AI19+AI20+AI21","v":0},{"$f":"SQRT((AJ18^2)+(AJ19^2)+(AJ20^2)+(AJ21^2))","v":24},{"$f":"AK18+AK19+AK20+AK21","v":0},{"$f":"SQRT((AL18^2)+(AL19^2)+(AL20^2)+(AL21^2))","v":24},{"$f":"AM18+AM19+AM20+AM21","v":114},{"$f":"SQRT((AN18^2)+(AN19^2)+(AN20^2)+(AN21^2))","v":95.681764197782229},{"$f":"AO18+AO19+AO20+AO21","v":6},{"$f":"SQRT((AP18^2)+(AP19^2)+(AP20^2)+(AP21^2))","v":23.515952032609693},{"$f":"AQ18+AQ19+AQ20+AQ21","v":16},{"$f":"SQRT((AR18^2)+(AR19^2)+(AR20^2)+(AR21^2))","v":32.511536414017719},{"$f":"AS18+AS19+AS20+AS21","v":0},{"$f":"SQRT((AT18^2)+(AT19^2)+(AT20^2)+(AT21^2))","v":24},{"$f":"AU18+AU19+AU20+AU21","v":22},{"$f":"SQRT((AV18^2)+(AV19^2)+(AV20^2)+(AV21^2))","v":41.569219381653056}]
[null,"35.0 percent or more",{"$f":"C22+C23++C24","v":6},{"$f":"SQRT((D22^2)+(D23^2)+(D24^2))","v":18.761663039293719},{"$f":"E22+E23++E24","v":0},{"$f":"SQRT((F22^2)+(F23^2)+(F24^2))","v":20.784609690826528},{"$f":"G22+G23++G24","v":0},{"$f":"SQRT((H22^2)+(H23^2)+(H24^2))","v":20.784609690826528},{"$f":"I22+I23++I24","v":6},{"$f":"SQRT((J22^2)+(J23^2)+(J24^2))","v":19.209372712298546},{"$f":"K22+K23++K24","v":0},{"$f":"SQRT((L22^2)+(L23^2)+(L24^2))","v":20.784609690826528},{"$f":"M22+M23++M24","v":0},{"$f":"SQRT((N22^2)+(N23^2)+(N24^2))","v":20.784609690826528},{"$f":"O22+O23++O24","v":0},{"$f":"SQRT((P22^2)+(P23^2)+(P24^2))","v":20.784609690826528},{"$f":"Q22+Q23++Q24","v":56},{"$f":"SQRT((R22^2)+(R23^2)+(R24^2))","v":51.903757089443921},{"$f":"S22+S23++S24","v":490},{"$f":"SQRT((T22^2)+(T23^2)+(T24^2))","v":166.90416411821485},{"$f":"U22+U23++U24","v":34},{"$f":"SQRT((V22^2)+(V23^2)+(V24^2))","v":33.600595232822883},{"$f":"W22+W23++W24","v":0},{"$f":"SQRT((X22^2)+(X23^2)+(X24^2))","v":20.784609690826528},{"$f":"Y22+Y23++Y24","v":0},{"$f":"SQRT((Z22^2)+(Z23^2)+(Z24^2))","v":20.784609690826528},{"$f":"AA22+AA23++AA24","v":0},{"$f":"SQRT((AB22^2)+(AB23^2)+(AB24^2))","v":20.784609690826528},{"$f":"AC22+AC23++AC24","v":67},{"$f":"SQRT((AD22^2)+(AD23^2)+(AD24^2))","v":60.024994793835674},{"$f":"AE22+AE23++AE24","v":0},{"$f":"SQRT((AF22^2)+(AF23^2)+(AF24^2))","v":20.784609690826528},{"$f":"AG22+AG23++AG24","v":0},{"$f":"SQRT((AH22^2)+(AH23^2)+(AH24^2))","v":20.784609690826528},{"$f":"AI22+AI23++AI24","v":0},{"$f":"SQRT((AJ22^2)+(AJ23^2)+(AJ24^2))","v":20.784609690826528},{"$f":"AK22+AK23++AK24","v":2},{"$f":"SQRT((AL22^2)+(AL23^2)+(AL24^2))","v":17.233687939614086},{"$f":"AM22+AM23++AM24","v":141},{"$f":"SQRT((AN22^2)+(AN23^2)+(AN24^2))","v":93.155783502689729},{"$f":"AO22+AO23++AO24","v":16},{"$f":"SQRT((AP22^2)+(AP23^2)+(AP24^2))","v":31.048349392520048},{"$f":"AQ22+AQ23++AQ24","v":12},{"$f":"SQRT((AR22^2)+(AR23^2)+(AR24^2))","v":18.138357147217054},{"$f":"AS22+AS23++AS24","v":0},{"$f":"SQRT((AT22^2)+(AT23^2)+(AT24^2))","v":20.784609690826528},{"$f":"AU22+AU23++AU24","v":65},{"$f":"SQRT((AV22^2)+(AV23^2)+(AV24^2))","v":42.201895692018383}]
[null,"50.0 percent or more",{"$f":"C24","v":6},{"$f":"D24","v":8},{"$f":"E24","v":0},{"$f":"F24","v":12},{"$f":"G24","v":0},12,{"$f":"I24","v":6},9,{"$f":"K24","v":0},12,{"$f":"M24","v":0},12,{"$f":"O24","v":0},12,{"$f":"Q24","v":56},46,{"$f":"S24","v":382},148,{"$f":"U24","v":12},12,{"$f":"W24","v":0},12,{"$f":"Y24","v":0},12,{"$f":"AA24","v":0},12,{"$f":"AC24","v":67},55,{"$f":"AE24","v":0},12,{"$f":"AG24","v":0},12,{"$f":"AI24","v":0},12,{"$f":"AK24","v":2},3,{"$f":"AM24","v":141},90,{"$f":"AO24","v":0},12,{"$f":"AQ24","v":0},12,{"$f":"AS24","v":0},12,{"$f":"AU24","v":45},36]
[null,"Not Computed",{"$f":"C25","v":5},{"$f":"D25","v":6},{"$f":"E25","v":0},12,0,12,0,12,0,12,0,12,44,62,0,17,{"$f":"S25","v":0},22,0,12,2,3,0,12,0,12,0,17,0,12,0,12,0,12,0,12,0,17,11,16,0,12,0,12,11,19]
[null,"$20,000 to $34,999:",{"$f":"C26","v":33},{"$f":"D26","v":30},121,99,49,25,19,22,4,5,3,5,64,49,114,95,788,200,125,74,7,10,6,6,0,12,47,31,0,12,0,12,8,8,0,12,245,174,71,45,64,56,24,16,117,61]
[null,"Less than 30.0 percent",{"$f":"C27+C28+C29","v":20},{"$f":"SQRT((D27^2)+(D28^2)+(D29^2))","v":33.600595232822883},{"$f":"E27+E28+E29","v":0},{"$f":"SQRT((F27^2)+(F28^2)+(F29^2))","v":20.784609690826528},{"$f":"G27+G28+G29","v":5},{"$f":"SQRT((H27^2)+(H28^2)+(H29^2))","v":17.691806012954132},{"$f":"I27+I28+I29","v":0},{"$f":"SQRT((J27^2)+(J28^2)+(J29^2))","v":20.784609690826528},{"$f":"K27+K28+K29","v":0},{"$f":"SQRT((L27^2)+(L28^2)+(L29^2))","v":20.784609690826528},{"$f":"M27+M28+M29","v":0},{"$f":"SQRT((N27^2)+(N28^2)+(N29^2))","v":20.784609690826528},{"$f":"O27+O28+O29","v":27},{"$f":"SQRT((P27^2)+(P28^2)+(P29^2))","v":32.878564445547191},{"$f":"Q27+Q28+Q29","v":43},{"$f":"SQRT((R27^2)+(R28^2)+(R29^2))","v":39.319206502675002},{"$f":"S27+S28+S29","v":112},{"$f":"SQRT((T27^2)+(T28^2)+(T29^2))","v":73.498299300051841},{"$f":"U27+U28+U29","v":18},{"$f":"SQRT((V27^2)+(V28^2)+(V29^2))","v":19.646882704388499},{"$f":"W27+W28+W29","v":0},{"$f":"SQRT((X27^2)+(X28^2)+(X29^2))","v":20.784609690826528},{"$f":"Y27+Y28+Y29","v":3},{"$f":"SQRT((Z27^2)+(Z28^2)+(Z29^2))","v":17.435595774162696},{"$f":"AA27+AA28+AA29","v":0},{"$f":"SQRT((AB27^2)+(AB28^2)+(AB29^2))","v":20.784609690826528},{"$f":"AC27+AC28+AC29","v":0},{"$f":"SQRT((AD27^2)+(AD28^2)+(AD29^2))","v":29.444863728670914},{"$f":"AE27+AE28+AE29","v":0},{"$f":"SQRT((AF27^2)+(AF28^2)+(AF29^2))","v":20.784609690826528},{"$f":"AG27+AG28+AG29","v":0},{"$f":"SQRT((AH27^2)+(AH28^2)+(AH29^2))","v":20.784609690826528},{"$f":"AI27+AI28+AI29","v":0},{"$f":"SQRT((AJ27^2)+(AJ28^2)+(AJ29^2))","v":20.784609690826528},{"$f":"AK27+AK28+AK29","v":0},{"$f":"SQRT((AL27^2)+(AL28^2)+(AL29^2))","v":20.784609690826528},{"$f":"AM27+AM28+AM29","v":55},{"$f":"SQRT((AN27^2)+(AN28^2)+(AN29^2))","v":69.728043139041262},{"$f":"AO27+AO28+AO29","v":5},{"$f":"SQRT((AP27^2)+(AP28^2)+(AP29^2))","v":19.209372712298546},{"$f":"AQ27+AQ28+AQ29","v":0},{"$f":"SQRT((AR27^2)+(AR28^2)+(AR29^2))","v":20.784609690826528},{"$f":"AS27+AS28+AS29","v":9},{"$f":"SQRT((AT27^2)+(AT28^2)+(AT29^2))","v":23.323807579381203},{"$f":"AU27+AU28+AU29","v":0},{"$f":"SQRT((AV27^2)+(AV28^2)+(AV29^2))","v":20.784609690826528}]
[null,"More than 30.0 percent",{"$f":"C30+C31+C32+C33","v":13},{"$f":"SQRT((D30^2)+(D31^2)+(D32^2)+(D33^2))","v":20.124611797498108},{"$f":"E30+E31+E32+E33","v":82},{"$f":"SQRT((F30^2)+(F31^2)+(F32^2)+(F33^2))","v":88.181630740194407},{"$f":"G30+G31+G32+G33","v":35},{"$f":"SQRT((H30^2)+(H31^2)+(H32^2)+(H33^2))","v":30.215889859476256},{"$f":"I30+I31+I32+I33","v":16},{"$f":"SQRT((J30^2)+(J31^2)+(J32^2)+(J33^2))","v":30.265491900843113},{"$f":"K30+K31+K32+K33","v":4},{"$f":"SQRT((L30^2)+(L31^2)+(L32^2)+(L33^2))","v":17.691806012954132},{"$f":"M30+M31+M32+M33","v":3},{"$f":"SQRT((N30^2)+(N31^2)+(N32^2)+(N33^2))","v":21.377558326431949},{"$f":"O30+O31+O32+O33","v":37},{"$f":"SQRT((P30^2)+(P31^2)+(P32^2)+(P33^2))","v":37.97367509209505},{"$f":"Q30+Q31+Q32+Q33","v":71},{"$f":"SQRT((R30^2)+(R31^2)+(R32^2)+(R33^2))","v":87.664131775772461},{"$f":"S30+S31+S32+S33","v":662},{"$f":"SQRT((T30^2)+(T31^2)+(T32^2)+(T33^2))","v":200.58913230780973},{"$f":"U30+U31+U32+U33","v":98},{"$f":"SQRT((V30^2)+(V31^2)+(V32^2)+(V33^2))","v":74.732857566133518},{"$f":"W30+W31+W32+W33","v":7},{"$f":"SQRT((X30^2)+(X31^2)+(X32^2)+(X33^2))","v":23.065125189341593},{"$f":"Y30+Y31+Y32+Y33","v":3},{"$f":"SQRT((Z30^2)+(Z31^2)+(Z32^2)+(Z33^2))","v":21.377558326431949},{"$f":"AA30+AA31+AA32+AA33","v":0},{"$f":"SQRT((AB30^2)+(AB31^2)+(AB32^2)+(AB33^2))","v":24},{"$f":"AC30+AC31+AC32+AC33","v":38},{"$f":"SQRT((AD30^2)+(AD31^2)+(AD32^2)+(AD33^2))","v":35.411862419251548},{"$f":"AE30+AE31+AE32+AE33","v":0},{"$f":"SQRT((AF30^2)+(AF31^2)+(AF32^2)+(AF33^2))","v":24},{"$f":"AG30+AG31+AG32+AG33","v":0},{"$f":"SQRT((AH30^2)+(AH31^2)+(AH32^2)+(AH33^2))","v":24},{"$f":"AI30+AI31+AI32+AI33","v":8},{"$f":"SQRT((AJ30^2)+(AJ31^2)+(AJ32^2)+(AJ33^2))","v":18.788294228055936},{"$f":"AK30+AK31+AK32+AK33","v":0},{"$f":"SQRT((AL30^2)+(AL31^2)+(AL32^2)+(AL33^2))","v":24},{"$f":"AM30+AM31+AM32+AM33","v":178},{"$f":"SQRT((AN30^2)+(AN31^2)+(AN32^2)+(AN33^2))","v":169.47861221994944},{"$f":"AO30+AO31+AO32+AO33","v":66},{"$f":"SQRT((AP30^2)+(AP31^2)+(AP32^2)+(AP33^2))","v":46.540305112880382},{"$f":"AQ30+AQ31+AQ32+AQ33","v":58},{"$f":"SQRT((AR30^2)+(AR31^2)+(AR32^2)+(AR33^2))","v":60.605280298007038},{"$f":"AS30+AS31+AS32+AS33","v":12},{"$f":"SQRT((AT30^2)+(AT31^2)+(AT32^2)+(AT33^2))","v":19.183326093250876},{"$f":"AU30+AU31+AU32+AU33","v":117},{"$f":"SQRT((AV30^2)+(AV31^2)+(AV32^2)+(AV33^2))","v":66.783231428256002}]
[null,"Less Than 35% of HH Income",{"$f":"C27+C28+C29+C30","v":20},{"$f":"SQRT((D27^2)+(D28^2)+(D29^2)+(D30^2))","v":35.679125549822544},{"$f":"E27+E28+E29+E30","v":0},{"$f":"SQRT((F27^2)+(F28^2)+(F29^2)+(F30^2))","v":24},{"$f":"G27+G28+G29+G30","v":5},{"$f":"SQRT((H27^2)+(H28^2)+(H29^2)+(H30^2))","v":21.377558326431949},{"$f":"I27+I28+I29+I30","v":0},{"$f":"SQRT((J27^2)+(J28^2)+(J29^2)+(J30^2))","v":24},{"$f":"K27+K28+K29+K30","v":3},{"$f":"SQRT((L27^2)+(L28^2)+(L29^2)+(L30^2))","v":21.166010488516726},{"$f":"M27+M28+M29+M30","v":0},{"$f":"SQRT((N27^2)+(N28^2)+(N29^2)+(N30^2))","v":24},{"$f":"O27+O28+O29+O30","v":27},{"$f":"SQRT((P27^2)+(P28^2)+(P29^2)+(P30^2))","v":35},{"$f":"Q27+Q28+Q29+Q30","v":43},{"$f":"SQRT((R27^2)+(R28^2)+(R29^2)+(R30^2))","v":42.836899981207793},{"$f":"S27+S28+S29+S30","v":258},{"$f":"SQRT((T27^2)+(T28^2)+(T29^2)+(T30^2))","v":122.49897958758677},{"$f":"U27+U28+U29+U30","v":18},{"$f":"SQRT((V27^2)+(V28^2)+(V29^2)+(V30^2))","v":23.021728866442675},{"$f":"W27+W28+W29+W30","v":0},{"$f":"SQRT((X27^2)+(X28^2)+(X29^2)+(X30^2))","v":24},{"$f":"Y27+Y28+Y29+Y30","v":3},{"$f":"SQRT((Z27^2)+(Z28^2)+(Z29^2)+(Z30^2))","v":21.166010488516726},{"$f":"AA27+AA28+AA29+AA30","v":0},{"$f":"SQRT((AB27^2)+(AB28^2)+(AB29^2)+(AB30^2))","v":24},{"$f":"AC27+AC28+AC29+AC30","v":0},{"$f":"SQRT((AD27^2)+(AD28^2)+(AD29^2)+(AD30^2))","v":34},{"$f":"AE27+AE28+AE29+AE30","v":0},{"$f":"SQRT((AF27^2)+(AF28^2)+(AF29^2)+(AF30^2))","v":24},{"$f":"AG27+AG28+AG29+AG30","v":0},{"$f":"SQRT((AH27^2)+(AH28^2)+(AH29^2)+(AH30^2))","v":24},{"$f":"AI27+AI28+AI29+AI30","v":0},{"$f":"SQRT((AJ27^2)+(AJ28^2)+(AJ29^2)+(AJ30^2))","v":24},{"$f":"AK27+AK28+AK29+AK30","v":0},{"$f":"SQRT((AL27^2)+(AL28^2)+(AL29^2)+(AL30^2))","v":24},{"$f":"AM27+AM28+AM29+AM30","v":55},{"$f":"SQRT((AN27^2)+(AN28^2)+(AN29^2)+(AN30^2))","v":71.77046746399246},{"$f":"AO27+AO28+AO29+AO30","v":5},{"$f":"SQRT((AP27^2)+(AP28^2)+(AP29^2)+(AP30^2))","v":22.649503305812249},{"$f":"AQ27+AQ28+AQ29+AQ30","v":15},{"$f":"SQRT((AR27^2)+(AR28^2)+(AR29^2)+(AR30^2))","v":34.871191548325392},{"$f":"AS27+AS28+AS29+AS30","v":9},{"$f":"SQRT((AT27^2)+(AT28^2)+(AT29^2)+(AT30^2))","v":26.229754097208001},{"$f":"AU27+AU28+AU29+AU30","v":27},{"$f":"SQRT((AV27^2)+(AV28^2)+(AV29^2)+(AV30^2))","v":39}]
[null,"35.0 percent or more",{"$f":"C31+C32+C33","v":13},{"$f":"SQRT((D31^2)+(D32^2)+(D33^2))","v":16.15549442140351},{"$f":"E31+E32+E33","v":82},{"$f":"SQRT((F31^2)+(F32^2)+(F33^2))","v":87.36131867136622},{"$f":"G31+G32+G33","v":35},{"$f":"SQRT((H31^2)+(H32^2)+(H33^2))","v":27.730849247724095},{"$f":"I31+I32+I33","v":16},{"$f":"SQRT((J31^2)+(J32^2)+(J33^2))","v":27.784887978899608},{"$f":"K31+K32+K33","v":1},{"$f":"SQRT((L31^2)+(L32^2)+(L33^2))","v":17.233687939614086},{"$f":"M31+M32+M33","v":3},{"$f":"SQRT((N31^2)+(N32^2)+(N33^2))","v":17.691806012954132},{"$f":"O31+O32+O33","v":37},{"$f":"SQRT((P31^2)+(P32^2)+(P33^2))","v":36.027767069303643},{"$f":"Q31+Q32+Q33","v":71},{"$f":"SQRT((R31^2)+(R32^2)+(R33^2))","v":86},{"$f":"S31+S32+S33","v":516},{"$f":"SQRT((T31^2)+(T32^2)+(T33^2))","v":175.01999885727346},{"$f":"U31+U32+U33","v":98},{"$f":"SQRT((V31^2)+(V32^2)+(V33^2))","v":73.763134423640111},{"$f":"W31+W32+W33","v":7},{"$f":"SQRT((X31^2)+(X32^2)+(X33^2))","v":19.697715603592208},{"$f":"Y31+Y32+Y33","v":3},{"$f":"SQRT((Z31^2)+(Z32^2)+(Z33^2))","v":17.691806012954132},{"$f":"AA31+AA32+AA33","v":0},{"$f":"SQRT((AB31^2)+(AB32^2)+(AB33^2))","v":20.784609690826528},{"$f":"AC31+AC32+AC33","v":38},{"$f":"SQRT((AD31^2)+(AD32^2)+(AD33^2))","v":31.064449134018133},{"$f":"AE31+AE32+AE33","v":0},{"$f":"SQRT((AF31^2)+(AF32^2)+(AF33^2))","v":20.784609690826528},{"$f":"AG31+AG32+AG33","v":0},{"$f":"SQRT((AH31^2)+(AH32^2)+(AH33^2))","v":20.784609690826528},{"$f":"AI31+AI32+AI33","v":8},{"$f":"SQRT((AJ31^2)+(AJ32^2)+(AJ33^2))","v":14.456832294800961},{"$f":"AK31+AK32+AK33","v":0},{"$f":"SQRT((AL31^2)+(AL32^2)+(AL33^2))","v":20.784609690826528},{"$f":"AM31+AM32+AM33","v":178},{"$f":"SQRT((AN31^2)+(AN32^2)+(AN33^2))","v":168.62384173064021},{"$f":"AO31+AO32+AO33","v":66},{"$f":"SQRT((AP31^2)+(AP32^2)+(AP33^2))","v":44.966654311834233},{"$f":"AQ31+AQ32+AQ33","v":43},{"$f":"SQRT((AR31^2)+(AR32^2)+(AR33^2))","v":53.749418601506754},{"$f":"AS31+AS32+AS33","v":12},{"$f":"SQRT((AT31^2)+(AT32^2)+(AT33^2))","v":14.966629547095765},{"$f":"AU31+AU32+AU33","v":90},{"$f":"SQRT((AV31^2)+(AV32^2)+(AV33^2))","v":58.060313467979142}]
[null,"50.0 percent or more",{"$f":"C33","v":8},9,{"$f":"E33","v":34},48,25,20,0,12,1,3,3,5,8,13,7,14,{"$f":"S33","v":160},86,83,71,0,12,3,5,0,12,14,22,0,12,0,12,5,7,0,12,132,152,5,7,43,51,9,8,39,45]
[null,"Not Computed",0,12,39,57,9,7,3,4,0,12,0,12,0,12,0,17,14,16,9,10,0,12,0,12,0,12,9,14,0,12,0,12,0,12,0,12,12,21,0,12,6,9,3,5,0,12]
[null,"$35,000 to $49,999:",28,22,19,29,9,10,0,12,6,6,0,12,0,12,116,99,692,232,33,27,14,13,3,4,7,8,25,29,0,12,0,12,2,3,2,3,156,99,8,9,36,44,0,12,150,67]
[null,"Less than 30.0 percent",{"$f":"C36+C37+C38","v":5},{"$f":"SQRT((D36^2)+(D37^2)+(D38^2))","v":18.357559750685819},{"$f":"E36+E37+E38","v":19},{"$f":"SQRT((F36^2)+(F37^2)+(F38^2))","v":33.600595232822883},{"$f":"G36+G37+G38","v":2},{"$f":"SQRT((H36^2)+(H37^2)+(H38^2))","v":17.233687939614086},{"$f":"I36+I37+I38","v":0},{"$f":"SQRT((J36^2)+(J37^2)+(J38^2))","v":20.784609690826528},{"$f":"K36+K37+K38","v":0},{"$f":"SQRT((L36^2)+(L37^2)+(L38^2))","v":20.784609690826528},{"$f":"M36+M37+M38","v":0},{"$f":"SQRT((N36^2)+(N37^2)+(N38^2))","v":20.784609690826528},{"$f":"O36+O37+O38","v":0},{"$f":"SQRT((P36^2)+(P37^2)+(P38^2))","v":20.784609690826528},{"$f":"Q36+Q37+Q38","v":81},{"$f":"SQRT((R36^2)+(R37^2)+(R38^2))","v":89.682774265741799},{"$f":"S36+S37+S38","v":341},{"$f":"SQRT((T36^2)+(T37^2)+(T38^2))","v":142.16539663363938},{"$f":"U36+U37+U38","v":22},{"$f":"SQRT((V36^2)+(V37^2)+(V38^2))","v":30.215889859476256},{"$f":"W36+W37+W38","v":8},{"$f":"SQRT((X36^2)+(X37^2)+(X38^2))","v":20.223748416156685},{"$f":"Y36+Y37+Y38","v":3},{"$f":"SQRT((Z36^2)+(Z37^2)+(Z38^2))","v":12.328828005937952},{"$f":"AA36+AA37+AA38","v":0},{"$f":"SQRT((AB36^2)+(AB37^2)+(AB38^2))","v":20.784609690826528},{"$f":"AC36+AC37+AC38","v":25},{"$f":"SQRT((AD36^2)+(AD37^2)+(AD38^2))","v":37.669616403674723},{"$f":"AE36+AE37+AE38","v":0},{"$f":"SQRT((AF36^2)+(AF37^2)+(AF38^2))","v":20.784609690826528},{"$f":"AG36+AG37+AG38","v":0},{"$f":"SQRT((AH36^2)+(AH37^2)+(AH38^2))","v":20.784609690826528},{"$f":"AI36+AI37+AI38","v":0},{"$f":"SQRT((AJ36^2)+(AJ37^2)+(AJ38^2))","v":20.784609690826528},{"$f":"AK36+AK37+AK38","v":0},{"$f":"SQRT((AL36^2)+(AL37^2)+(AL38^2))","v":20.784609690826528},{"$f":"AM36+AM37+AM38","v":33},{"$f":"SQRT((AN36^2)+(AN37^2)+(AN38^2))","v":33.97057550292606},{"$f":"AO36+AO37+AO38","v":8},{"$f":"SQRT((AP36^2)+(AP37^2)+(AP38^2))","v":19.209372712298546},{"$f":"AQ36+AQ37+AQ38","v":36},{"$f":"SQRT((AR36^2)+(AR37^2)+(AR38^2))","v":48.135226186234959},{"$f":"AS36+AS37+AS38","v":0},{"$f":"SQRT((AT36^2)+(AT37^2)+(AT38^2))","v":20.784609690826528},{"$f":"AU36+AU37+AU38","v":77},{"$f":"SQRT((AV36^2)+(AV37^2)+(AV38^2))","v":55.65069631190611}]
[null,"More than 30.0 percent",{"$f":"C39+C40+C41+C42","v":17},{"$f":"SQRT((D39^2)+(D40^2)+(D41^2)+(D42^2))","v":28.160255680657446},{"$f":"E39+E40+E41+E42","v":0},{"$f":"SQRT((F39^2)+(F40^2)+(F41^2)+(F42^2))","v":24},{"$f":"G39+G40+G41+G42","v":7},{"$f":"SQRT((H39^2)+(H40^2)+(H41^2)+(H42^2))","v":23.065125189341593},{"$f":"I39+I40+I41+I42","v":0},{"$f":"SQRT((J39^2)+(J40^2)+(J41^2)+(J42^2))","v":24},{"$f":"K39+K40+K41+K42","v":6},{"$f":"SQRT((L39^2)+(L40^2)+(L41^2)+(L42^2))","v":17.888543819998318},{"$f":"M39+M40+M41+M42","v":0},{"$f":"SQRT((N39^2)+(N40^2)+(N41^2)+(N42^2))","v":24},{"$f":"O39+O40+O41+O42","v":0},{"$f":"SQRT((P39^2)+(P40^2)+(P41^2)+(P42^2))","v":24},{"$f":"Q39+Q40+Q41+Q42","v":35},{"$f":"SQRT((R39^2)+(R40^2)+(R41^2)+(R42^2))","v":45.14421336118285},{"$f":"S39+S40+S41+S42","v":351},{"$f":"SQRT((T39^2)+(T40^2)+(T41^2)+(T42^2))","v":151.82226450688975},{"$f":"U39+U40+U41+U42","v":11},{"$f":"SQRT((V39^2)+(V40^2)+(V41^2)+(V42^2))","v":20.445048300260872},{"$f":"W39+W40+W41+W42","v":6},{"$f":"SQRT((X39^2)+(X40^2)+(X41^2)+(X42^2))","v":18.248287590894659},{"$f":"Y39+Y40+Y41+Y42","v":0},{"$f":"SQRT((Z39^2)+(Z40^2)+(Z41^2)+(Z42^2))","v":24},{"$f":"AA39+AA40+AA41+AA42","v":4},{"$f":"SQRT((AB39^2)+(AB40^2)+(AB41^2)+(AB42^2))","v":21.931712199461309},{"$f":"AC39+AC40+AC41+AC42","v":0},{"$f":"SQRT((AD39^2)+(AD40^2)+(AD41^2)+(AD42^2))","v":34},{"$f":"AE39+AE40+AE41+AE42","v":0},{"$f":"SQRT((AF39^2)+(AF40^2)+(AF41^2)+(AF42^2))","v":24},{"$f":"AG39+AG40+AG41+AG42","v":0},{"$f":"SQRT((AH39^2)+(AH40^2)+(AH41^2)+(AH42^2))","v":24},{"$f":"AI39+AI40+AI41+AI42","v":2},{"$f":"SQRT((AJ39^2)+(AJ40^2)+(AJ41^2)+(AJ42^2))","v":21},{"$f":"AK39+AK40+AK41+AK42","v":0},{"$f":"SQRT((AL39^2)+(AL40^2)+(AL41^2)+(AL42^2))","v":24},{"$f":"AM39+AM40+AM41+AM42","v":101},{"$f":"SQRT((AN39^2)+(AN40^2)+(AN41^2)+(AN42^2))","v":87.675538207643754},{"$f":"AO39+AO40+AO41+AO42","v":0},{"$f":"SQRT((AP39^2)+(AP40^2)+(AP41^2)+(AP42^2))","v":24},{"$f":"AQ39+AQ40+AQ41+AQ42","v":0},{"$f":"SQRT((AR39^2)+(AR40^2)+(AR41^2)+(AR42^2))","v":24},{"$f":"AS39+AS40+AS41+AS42","v":0},{"$f":"SQRT((AT39^2)+(AT40^2)+(AT41^2)+(AT42^2))","v":24},{"$f":"AU39+AU40+AU41+AU42","v":73},{"$f":"SQRT((AV39^2)+(AV40^2)+(AV41^2)+(AV42^2))","v":62.136945531623937}]
[null,"Less Than 35% of HH Income",{"$f":"C36+C37+C38+C39","v":22},{"$f":"SQRT((D36^2)+(D37^2)+(D38^2)+(D39^2))","v":26.419689627245813},{"$f":"E36+E37+E38+E39","v":19},{"$f":"SQRT((F36^2)+(F37^2)+(F38^2)+(F39^2))","v":35.679125549822544},{"$f":"G36+G37+G38+G39","v":2},{"$f":"SQRT((H36^2)+(H37^2)+(H38^2)+(H39^2))","v":21},{"$f":"I36+I37+I38+I39","v":0},{"$f":"SQRT((J36^2)+(J37^2)+(J38^2)+(J39^2))","v":24},{"$f":"K36+K37+K38+K39","v":3},{"$f":"SQRT((L36^2)+(L37^2)+(L38^2)+(L39^2))","v":21.166010488516726},{"$f":"M36+M37+M38+M39","v":0},{"$f":"SQRT((N36^2)+(N37^2)+(N38^2)+(N39^2))","v":24},{"$f":"O36+O37+O38+O39","v":0},{"$f":"SQRT((P36^2)+(P37^2)+(P38^2)+(P39^2))","v":24},{"$f":"Q36+Q37+Q38+Q39","v":81},{"$f":"SQRT((R36^2)+(R37^2)+(R38^2)+(R39^2))","v":91.279789657952207},{"$f":"S36+S37+S38+S39","v":468},{"$f":"SQRT((T36^2)+(T37^2)+(T38^2)+(T39^2))","v":170.43180454363556},{"$f":"U36+U37+U38+U39","v":27},{"$f":"SQRT((V36^2)+(V37^2)+(V38^2)+(V39^2))","v":31.016124838541646},{"$f":"W36+W37+W38+W39","v":10},{"$f":"SQRT((X36^2)+(X37^2)+(X38^2)+(X39^2))","v":20.445048300260872},{"$f":"Y36+Y37+Y38+Y39","v":3},{"$f":"SQRT((Z36^2)+(Z37^2)+(Z38^2)+(Z39^2))","v":17.204650534085253},{"$f":"AA36+AA37+AA38+AA39","v":0},{"$f":"SQRT((AB36^2)+(AB37^2)+(AB38^2)+(AB39^2))","v":24},{"$f":"AC36+AC37+AC38+AC39","v":25},{"$f":"SQRT((AD36^2)+(AD37^2)+(AD38^2)+(AD39^2))","v":41.32795663954365},{"$f":"AE36+AE37+AE38+AE39","v":0},{"$f":"SQRT((AF36^2)+(AF37^2)+(AF38^2)+(AF39^2))","v":24},{"$f":"AG36+AG37+AG38+AG39","v":0},{"$f":"SQRT((AH36^2)+(AH37^2)+(AH38^2)+(AH39^2))","v":24},{"$f":"AI36+AI37+AI38+AI39","v":0},{"$f":"SQRT((AJ36^2)+(AJ37^2)+(AJ38^2)+(AJ39^2))","v":24},{"$f":"AK36+AK37+AK38+AK39","v":0},{"$f":"SQRT((AL36^2)+(AL37^2)+(AL38^2)+(AL39^2))","v":24},{"$f":"AM36+AM37+AM38+AM39","v":49},{"$f":"SQRT((AN36^2)+(AN37^2)+(AN38^2)+(AN39^2))","v":42.178193417926281},{"$f":"AO36+AO37+AO38+AO39","v":8},{"$f":"SQRT((AP36^2)+(AP37^2)+(AP38^2)+(AP39^2))","v":22.649503305812249},{"$f":"AQ36+AQ37+AQ38+AQ39","v":36},{"$f":"SQRT((AR36^2)+(AR37^2)+(AR38^2)+(AR39^2))","v":49.608467019249851},{"$f":"AS36+AS37+AS38+AS39","v":0},{"$f":"SQRT((AT36^2)+(AT37^2)+(AT38^2)+(AT39^2))","v":24},{"$f":"AU36+AU37+AU38+AU39","v":138},{"$f":"SQRT((AV36^2)+(AV37^2)+(AV38^2)+(AV39^2))","v":79.661785066617739}]
[null,"35.0 percent or more",{"$f":"C40+C41+C42","v":0},{"$f":"SQRT((D40^2)+(D41^2)+(D42^2))","v":20.784609690826528},{"$f":"E40+E41+E42","v":0},{"$f":"SQRT((F40^2)+(F41^2)+(F42^2))","v":20.784609690826528},{"$f":"G40+G41+G42","v":7},{"$f":"SQRT((H40^2)+(H41^2)+(H42^2))","v":19.697715603592208},{"$f":"I40+I41+I42","v":0},{"$f":"SQRT((J40^2)+(J41^2)+(J42^2))","v":20.784609690826528},{"$f":"K40+K41+K42","v":3},{"$f":"SQRT((L40^2)+(L41^2)+(L42^2))","v":17.435595774162696},{"$f":"M40+M41+M42","v":0},{"$f":"SQRT((N40^2)+(N41^2)+(N42^2))","v":20.784609690826528},{"$f":"O40+O41+O42","v":0},{"$f":"SQRT((P40^2)+(P41^2)+(P42^2))","v":20.784609690826528},{"$f":"Q40+Q41+Q42","v":35},{"$f":"SQRT((R40^2)+(R41^2)+(R42^2))","v":41.821047332652967},{"$f":"S40+S41+S42","v":224},{"$f":"SQRT((T40^2)+(T41^2)+(T42^2))","v":119.22248110151038},{"$f":"U40+U41+U42","v":6},{"$f":"SQRT((V40^2)+(V41^2)+(V42^2))","v":19.209372712298546},{"$f":"W40+W41+W42","v":4},{"$f":"SQRT((X40^2)+(X41^2)+(X42^2))","v":18},{"$f":"Y40+Y41+Y42","v":0},{"$f":"SQRT((Z40^2)+(Z41^2)+(Z42^2))","v":20.784609690826528},{"$f":"AA40+AA41+AA42","v":4},{"$f":"SQRT((AB40^2)+(AB41^2)+(AB42^2))","v":18.357559750685819},{"$f":"AC40+AC41+AC42","v":0},{"$f":"SQRT((AD40^2)+(AD41^2)+(AD42^2))","v":29.444863728670914},{"$f":"AE40+AE41+AE42","v":0},{"$f":"SQRT((AF40^2)+(AF41^2)+(AF42^2))","v":20.784609690826528},{"$f":"AG40+AG41+AG42","v":0},{"$f":"SQRT((AH40^2)+(AH41^2)+(AH42^2))","v":20.784609690826528},{"$f":"AI40+AI41+AI42","v":2},{"$f":"SQRT((AJ40^2)+(AJ41^2)+(AJ42^2))","v":17.233687939614086},{"$f":"AK40+AK41+AK42","v":0},{"$f":"SQRT((AL40^2)+(AL41^2)+(AL42^2))","v":20.784609690826528},{"$f":"AM40+AM41+AM42","v":85},{"$f":"SQRT((AN40^2)+(AN41^2)+(AN42^2))","v":84.03570669661795},{"$f":"AO40+AO41+AO42","v":0},{"$f":"SQRT((AP40^2)+(AP41^2)+(AP42^2))","v":20.784609690826528},{"$f":"AQ40+AQ41+AQ42","v":0},{"$f":"SQRT((AR40^2)+(AR41^2)+(AR42^2))","v":20.784609690826528},{"$f":"AS40+AS41+AS42","v":0},{"$f":"SQRT((AT40^2)+(AT41^2)+(AT42^2))","v":20.784609690826528},{"$f":"AU40+AU41+AU42","v":12},{"$f":"SQRT((AV40^2)+(AV41^2)+(AV42^2))","v":24.738633753705962}]
[null,"50.0 percent or more",{"$f":"C42","v":0},12,0,{"$f":"F42","v":12},{"$f":"G42","v":0},12,{"$f":"I42","v":0},12,{"$f":"K42","v":0},12,{"$f":"M42","v":0},12,{"$f":"O42","v":0},12,{"$f":"Q42","v":0},17,{"$f":"S42","v":50},77,{"$f":"U42","v":0},12,{"$f":"W42","v":4},6,{"$f":"Y42","v":0},12,{"$f":"AA42","v":0},12,{"$f":"AC42","v":0},17,{"$f":"AE42","v":0},12,{"$f":"AG42","v":0},12,{"$f":"AI42","v":0},12,{"$f":"AK42","v":0},12,{"$f":"AM42","v":0},17,{"$f":"AO42","v":0},12,{"$f":"AQ42","v":0},12,{"$f":"AS42","v":0},12,{"$f":"AU42","v":0},12]
[null,"Not Computed",6,7,0,12,{"$f":"G43","v":0},12,{"$f":"I43","v":0},12,{"$f":"K43","v":0},12,{"$f":"M43","v":0},12,{"$f":"O43","v":0},12,{"$f":"Q43","v":0},17,{"$f":"S43","v":0},22,{"$f":"U43","v":0},12,{"$f":"W43","v":0},12,{"$f":"Y43","v":0},12,{"$f":"AA43","v":3},5,{"$f":"AC43","v":0},17,{"$f":"AE43","v":0},12,{"$f":"AG43","v":0},12,{"$f":"AI43","v":0},12,{"$f":"AK43","v":2},3,{"$f":"AM43","v":22},33,{"$f":"AO43","v":0},12,{"$f":"AQ43","v":0},12,{"$f":"AS43","v":0},12,{"$f":"AU43","v":0},12]
[null,"$50,000 to $74,999:",{"$f":"C44","v":50},{"$f":"D44","v":40},{"$f":"E44","v":20},29,19,23,3,5,12,11,11,10,13,22,174,130,797,200,18,15,0,12,7,7,1,4,81,74,1,2,15,15,19,16,8,10,188,101,14,13,127,75,15,20,106,61]
[null,"Less than 30.0 percent",{"$f":"C45+C46+C47","v":23},{"$f":"SQRT((D45^2)+(D46^2)+(D47^2))","v":25.475478405713993},{"$f":"E45+E46+E47","v":0},{"$f":"SQRT((F45^2)+(F46^2)+(F47^2))","v":20.784609690826528},{"$f":"G45+G46+G47","v":16},{"$f":"SQRT((H45^2)+(H46^2)+(H47^2))","v":28.583211855912904},{"$f":"I45+I46+I47","v":3},{"$f":"SQRT((J45^2)+(J46^2)+(J47^2))","v":17.691806012954132},{"$f":"K45+K46+K47","v":12},{"$f":"SQRT((L45^2)+(L46^2)+(L47^2))","v":16.124515496597098},{"$f":"M45+M46+M47","v":6},{"$f":"SQRT((N45^2)+(N46^2)+(N47^2))","v":13.601470508735444},{"$f":"O45+O46+O47","v":13},{"$f":"SQRT((P45^2)+(P46^2)+(P47^2))","v":27.784887978899608},{"$f":"Q45+Q46+Q47","v":104},{"$f":"SQRT((R45^2)+(R46^2)+(R47^2))","v":79.787217021274785},{"$f":"S45+S46+S47","v":630},{"$f":"SQRT((T45^2)+(T46^2)+(T47^2))","v":172.01162751395617},{"$f":"U45+U46+U47","v":13},{"$f":"SQRT((V45^2)+(V46^2)+(V47^2))","v":12.206555615733702},{"$f":"W45+W46+W47","v":0},{"$f":"SQRT((X45^2)+(X46^2)+(X47^2))","v":20.784609690826528},{"$f":"Y45+Y46+Y47","v":7},{"$f":"SQRT((Z45^2)+(Z46^2)+(Z47^2))","v":13.928388277184119},{"$f":"AA45+AA46+AA47","v":1},{"$f":"SQRT((AB45^2)+(AB46^2)+(AB47^2))","v":17.435595774162696},{"$f":"AC45+AC46+AC47","v":69},{"$f":"SQRT((AD45^2)+(AD46^2)+(AD47^2))","v":75.597619010124916},{"$f":"AE45+AE46+AE47","v":1},{"$f":"SQRT((AF45^2)+(AF46^2)+(AF47^2))","v":17.088007490635061},{"$f":"AG45+AG46+AG47","v":0},{"$f":"SQRT((AH45^2)+(AH46^2)+(AH47^2))","v":20.784609690826528},{"$f":"AI45+AI46+AI47","v":16},{"$f":"SQRT((AJ45^2)+(AJ46^2)+(AJ47^2))","v":23.323807579381203},{"$f":"AK45+AK46+AK47","v":8},{"$f":"SQRT((AL45^2)+(AL46^2)+(AL47^2))","v":19.697715603592208},{"$f":"AM45+AM46+AM47","v":153},{"$f":"SQRT((AN45^2)+(AN46^2)+(AN47^2))","v":98.280211639983762},{"$f":"AO45+AO46+AO47","v":3},{"$f":"SQRT((AP45^2)+(AP46^2)+(AP47^2))","v":17.691806012954132},{"$f":"AQ45+AQ46+AQ47","v":98},{"$f":"SQRT((AR45^2)+(AR46^2)+(AR47^2))","v":64.482555780614035},{"$f":"AS45+AS46+AS47","v":15},{"$f":"SQRT((AT45^2)+(AT46^2)+(AT47^2))","v":26.229754097208001},{"$f":"AU45+AU46+AU47","v":88},{"$f":"SQRT((AV45^2)+(AV46^2)+(AV47^2))","v":62.128898268036266}]
[null,"More than 30.0 percent",{"$f":"C48+C49+C50+C51","v":21},{"$f":"SQRT((D48^2)+(D49^2)+(D50^2)+(D51^2))","v":37.322915213043046},{"$f":"E48+E49+E50+E51","v":0},{"$f":"SQRT((F48^2)+(F49^2)+(F50^2)+(F51^2))","v":24},{"$f":"G48+G49+G50+G51","v":0},{"$f":"SQRT((H48^2)+(H49^2)+(H50^2)+(H51^2))","v":24},{"$f":"I48+I49+I50+I51","v":0},{"$f":"SQRT((J48^2)+(J49^2)+(J50^2)+(J51^2))","v":24},{"$f":"K48+K49+K50+K51","v":0},{"$f":"SQRT((L48^2)+(L49^2)+(L50^2)+(L51^2))","v":24},{"$f":"M48+M49+M50+M51","v":5},{"$f":"SQRT((N48^2)+(N49^2)+(N50^2)+(N51^2))","v":22.271057451320086},{"$f":"O48+O49+O50+O51","v":0},{"$f":"SQRT((P48^2)+(P49^2)+(P50^2)+(P51^2))","v":24},{"$f":"Q48+Q49+Q50+Q51","v":70},{"$f":"SQRT((R48^2)+(R49^2)+(R50^2)+(R51^2))","v":97.549987186057592},{"$f":"S48+S49+S50+S51","v":105},{"$f":"SQRT((T48^2)+(T49^2)+(T50^2)+(T51^2))","v":78.453808065638214},{"$f":"U48+U49+U50+U51","v":5},{"$f":"SQRT((V48^2)+(V49^2)+(V50^2)+(V51^2))","v":21.931712199461309},{"$f":"W48+W49+W50+W51","v":0},{"$f":"SQRT((X48^2)+(X49^2)+(X50^2)+(X51^2))","v":24},{"$f":"Y48+Y49+Y50+Y51","v":0},{"$f":"SQRT((Z48^2)+(Z49^2)+(Z50^2)+(Z51^2))","v":24},{"$f":"AA48+AA49+AA50+AA51","v":0},{"$f":"SQRT((AB48^2)+(AB49^2)+(AB50^2)+(AB51^2))","v":24},{"$f":"AC48+AC49+AC50+AC51","v":6},{"$f":"SQRT((AD48^2)+(AD49^2)+(AD50^2)+(AD51^2))","v":30.789608636681304},{"$f":"AE48+AE49+AE50+AE51","v":0},{"$f":"SQRT((AF48^2)+(AF49^2)+(AF50^2)+(AF51^2))","v":24},{"$f":"AG48+AG49+AG50+AG51","v":9},{"$f":"SQRT((AH48^2)+(AH49^2)+(AH50^2)+(AH51^2))","v":24.515301344262525},{"$f":"AI48+AI49+AI50+AI51","v":3},{"$f":"SQRT((AJ48^2)+(AJ49^2)+(AJ50^2)+(AJ51^2))","v":21.166010488516726},{"$f":"AK48+AK49+AK50+AK51","v":0},{"$f":"SQRT((AL48^2)+(AL49^2)+(AL50^2)+(AL51^2))","v":24},{"$f":"AM48+AM49+AM50+AM51","v":35},{"$f":"SQRT((AN48^2)+(AN49^2)+(AN50^2)+(AN51^2))","v":49.386232899462982},{"$f":"AO48+AO49+AO50+AO51","v":11},{"$f":"SQRT((AP48^2)+(AP49^2)+(AP50^2)+(AP51^2))","v":20.445048300260872},{"$f":"AQ48+AQ49+AQ50+AQ51","v":5},{"$f":"SQRT((AR48^2)+(AR49^2)+(AR50^2)+(AR51^2))","v":22.649503305812249},{"$f":"AS48+AS49+AS50+AS51","v":0},{"$f":"SQRT((AT48^2)+(AT49^2)+(AT50^2)+(AT51^2))","v":24},{"$f":"AU48+AU49+AU50+AU51","v":18},{"$f":"SQRT((AV48^2)+(AV49^2)+(AV50^2)+(AV51^2))","v":34.871191548325392}]
[null,"Less Than 35% of HH Income",{"$f":"C48+C47+C46+C45","v":23},{"$f":"SQRT((D48^2)+(D47^2)+(D46^2)+(D45^2))","v":28.160255680657446},{"$f":"E48+E47+E46+E45","v":0},{"$f":"SQRT((F48^2)+(F47^2)+(F46^2)+(F45^2))","v":24},{"$f":"G48+G47+G46+G45","v":16},{"$f":"SQRT((H48^2)+(H47^2)+(H46^2)+(H45^2))","v":31},{"$f":"I48+I47+I46+I45","v":3},{"$f":"SQRT((J48^2)+(J47^2)+(J46^2)+(J45^2))","v":21.377558326431949},{"$f":"K48+K47+K46+K45","v":12},{"$f":"SQRT((L48^2)+(L47^2)+(L46^2)+(L45^2))","v":20.09975124224178},{"$f":"M48+M47+M46+M45","v":11},{"$f":"SQRT((N48^2)+(N47^2)+(N46^2)+(N45^2))","v":15.779733838059499},{"$f":"O48+O47+O46+O45","v":13},{"$f":"SQRT((P48^2)+(P47^2)+(P46^2)+(P45^2))","v":30.265491900843113},{"$f":"Q48+Q47+Q46+Q45","v":104},{"$f":"SQRT((R48^2)+(R47^2)+(R46^2)+(R45^2))","v":81.578183358052286},{"$f":"S48+S47+S46+S45","v":699},{"$f":"SQRT((T48^2)+(T47^2)+(T46^2)+(T45^2))","v":185.33483212823216},{"$f":"U48+U47+U46+U45","v":13},{"$f":"SQRT((V48^2)+(V47^2)+(V46^2)+(V45^2))","v":17.11724276862369},{"$f":"W48+W47+W46+W45","v":0},{"$f":"SQRT((X48^2)+(X47^2)+(X46^2)+(X45^2))","v":24},{"$f":"Y48+Y47+Y46+Y45","v":7},{"$f":"SQRT((Z48^2)+(Z47^2)+(Z46^2)+(Z45^2))","v":18.384776310850235},{"$f":"AA48+AA47+AA46+AA45","v":1},{"$f":"SQRT((AB48^2)+(AB47^2)+(AB46^2)+(AB45^2))","v":21.166010488516726},{"$f":"AC48+AC47+AC46+AC45","v":69},{"$f":"SQRT((AD48^2)+(AD47^2)+(AD46^2)+(AD45^2))","v":77.485482511242068},{"$f":"AE48+AE47+AE46+AE45","v":1},{"$f":"SQRT((AF48^2)+(AF47^2)+(AF46^2)+(AF45^2))","v":20.880613017821101},{"$f":"AG48+AG47+AG46+AG45","v":0},{"$f":"SQRT((AH48^2)+(AH47^2)+(AH46^2)+(AH45^2))","v":24},{"$f":"AI48+AI47+AI46+AI45","v":16},{"$f":"SQRT((AJ48^2)+(AJ47^2)+(AJ46^2)+(AJ45^2))","v":26.229754097208001},{"$f":"AK48+AK47+AK46+AK45","v":8},{"$f":"SQRT((AL48^2)+(AL47^2)+(AL46^2)+(AL45^2))","v":23.065125189341593},{"$f":"AM48+AM47+AM46+AM45","v":171},{"$f":"SQRT((AN48^2)+(AN47^2)+(AN46^2)+(AN45^2))","v":103.05338422390601},{"$f":"AO48+AO47+AO46+AO45","v":7},{"$f":"SQRT((AP48^2)+(AP47^2)+(AP46^2)+(AP45^2))","v":19.026297590440446},{"$f":"AQ48+AQ47+AQ46+AQ45","v":103},{"$f":"SQRT((AR48^2)+(AR47^2)+(AR46^2)+(AR45^2))","v":65.107603242632109},{"$f":"AS48+AS47+AS46+AS45","v":15},{"$f":"SQRT((AT48^2)+(AT47^2)+(AT46^2)+(AT45^2))","v":28.844410203711913},{"$f":"AU48+AU47+AU46+AU45","v":88},{"$f":"SQRT((AV48^2)+(AV47^2)+(AV46^2)+(AV45^2))","v":63.2771680782255}]
[null,"35.0 percent or more",{"$f":"C49+C50+C51","v":21},{"$f":"SQRT((D49^2)+(D50^2)+(D51^2))","v":35.341194094144583},{"$f":"E49+E50+E51","v":0},{"$f":"SQRT((F49^2)+(F50^2)+(F51^2))","v":20.784609690826528},{"$f":"G49+G50+G51","v":0},{"$f":"SQRT((H49^2)+(H50^2)+(H51^2))","v":20.784609690826528},{"$f":"I49+I50+I51","v":0},{"$f":"SQRT((J49^2)+(J50^2)+(J51^2))","v":20.784609690826528},{"$f":"K49+K50+K51","v":0},{"$f":"SQRT((L49^2)+(L50^2)+(L51^2))","v":20.784609690826528},{"$f":"M49+M50+M51","v":0},{"$f":"SQRT((N49^2)+(N50^2)+(N51^2))","v":20.784609690826528},{"$f":"O49+O50+O51","v":0},{"$f":"SQRT((P49^2)+(P50^2)+(P51^2))","v":20.784609690826528},{"$f":"Q49+Q50+Q51","v":70},{"$f":"SQRT((R49^2)+(R50^2)+(R51^2))","v":96.0572745813663},{"$f":"S49+S50+S51","v":36},{"$f":"SQRT((T49^2)+(T50^2)+(T51^2))","v":37.336309405188942},{"$f":"U49+U50+U51","v":5},{"$f":"SQRT((V49^2)+(V50^2)+(V51^2))","v":18.357559750685819},{"$f":"W49+W50+W51","v":0},{"$f":"SQRT((X49^2)+(X50^2)+(X51^2))","v":20.784609690826528},{"$f":"Y49+Y50+Y51","v":0},{"$f":"SQRT((Z49^2)+(Z50^2)+(Z51^2))","v":20.784609690826528},{"$f":"AA49+AA50+AA51","v":0},{"$f":"SQRT((AB49^2)+(AB50^2)+(AB51^2))","v":20.784609690826528},{"$f":"AC49+AC50+AC51","v":6},{"$f":"SQRT((AD49^2)+(AD50^2)+(AD51^2))","v":25.670995305986871},{"$f":"AE49+AE50+AE51","v":0},{"$f":"SQRT((AF49^2)+(AF50^2)+(AF51^2))","v":20.784609690826528},{"$f":"AG49+AG50+AG51","v":9},{"$f":"SQRT((AH49^2)+(AH50^2)+(AH51^2))","v":21.377558326431949},{"$f":"AI49+AI50+AI51","v":3},{"$f":"SQRT((AJ49^2)+(AJ50^2)+(AJ51^2))","v":17.435595774162696},{"$f":"AK49+AK50+AK51","v":0},{"$f":"SQRT((AL49^2)+(AL50^2)+(AL51^2))","v":20.784609690826528},{"$f":"AM49+AM50+AM51","v":17},{"$f":"SQRT((AN49^2)+(AN50^2)+(AN51^2))","v":38.444765573482172},{"$f":"AO49+AO50+AO51","v":7},{"$f":"SQRT((AP49^2)+(AP50^2)+(AP51^2))","v":19.209372712298546},{"$f":"AQ49+AQ50+AQ51","v":0},{"$f":"SQRT((AR49^2)+(AR50^2)+(AR51^2))","v":20.784609690826528},{"$f":"AS49+AS50+AS51","v":0},{"$f":"SQRT((AT49^2)+(AT50^2)+(AT51^2))","v":20.784609690826528},{"$f":"AU49+AU50+AU51","v":18},{"$f":"SQRT((AV49^2)+(AV50^2)+(AV51^2))","v":32.741411087489801}]
[null,"50.0 percent or more",{"$f":"C51","v":0},12,0,{"$f":"F51","v":12},{"$f":"G51","v":0},12,{"$f":"I51","v":0},12,{"$f":"K51","v":0},12,{"$f":"M51","v":0},12,{"$f":"O51","v":0},12,{"$f":"Q51","v":0},17,{"$f":"S51","v":1},3,{"$f":"U51","v":0},12,{"$f":"W51","v":0},12,{"$f":"Y51","v":0},12,{"$f":"AA51","v":0},12,{"$f":"AC51","v":0},17,{"$f":"AE51","v":0},12,{"$f":"AG51","v":0},12,{"$f":"AI51","v":0},12,{"$f":"AK51","v":0},12,{"$f":"AM51","v":0},17,{"$f":"AO51","v":0},12,{"$f":"AQ51","v":0},12,{"$f":"AS51","v":0},12,{"$f":"AU51","v":0},12]
[null,"Not Computed",6,8,20,29,{"$f":"G52","v":3},4,{"$f":"I52","v":0},12,{"$f":"K52","v":0},12,{"$f":"M52","v":0},12,{"$f":"O52","v":0},12,{"$f":"Q52","v":0},17,{"$f":"S52","v":62},61,{"$f":"U52","v":0},12,{"$f":"W52","v":0},12,{"$f":"Y52","v":0},12,{"$f":"AA52","v":0},12,{"$f":"AC52","v":6},10,{"$f":"AE52","v":0},12,{"$f":"AG52","v":6},9,{"$f":"AI52","v":0},12,{"$f":"AK52","v":0},12,{"$f":"AM52","v":0},17,{"$f":"AO52","v":0},12,{"$f":"AQ52","v":24},37,{"$f":"AS52","v":0},12,{"$f":"AU52","v":0},12]
[null,"$75,000 to $99,999:",6,8,15,22,{"$f":"G53","v":14},11,{"$f":"I53","v":10},11,{"$f":"K53","v":3},4,{"$f":"M53","v":5},6,{"$f":"O53","v":0},12,{"$f":"Q53","v":25},31,{"$f":"S53","v":378},137,{"$f":"U53","v":28},28,{"$f":"W53","v":5},5,{"$f":"Y53","v":7},7,{"$f":"AA53","v":0},12,{"$f":"AC53","v":46},37,{"$f":"AE53","v":0},12,{"$f":"AG53","v":12},11,{"$f":"AI53","v":0},12,{"$f":"AK53","v":14},12,{"$f":"AM53","v":202},88,{"$f":"AO53","v":33},27,{"$f":"AQ53","v":84},85,{"$f":"AS53","v":9},7,{"$f":"AU53","v":7},12]
[null,"Less than 30.0 percent",{"$f":"C54+C55+C56","v":6},{"$f":"SQRT((D54^2)+(D55^2)+(D56^2))","v":18.761663039293719},{"$f":"E54+E55+E56","v":15},{"$f":"SQRT((F54^2)+(F55^2)+(F56^2))","v":27.784887978899608},{"$f":"G54+G55+G56","v":6},{"$f":"SQRT((H54^2)+(H55^2)+(H56^2))","v":14},{"$f":"I54+I55+I56","v":10},{"$f":"SQRT((J54^2)+(J55^2)+(J56^2))","v":15.620499351813308},{"$f":"K54+K55+K56","v":3},{"$f":"SQRT((L54^2)+(L55^2)+(L56^2))","v":17.435595774162696},{"$f":"M54+M55+M56","v":5},{"$f":"SQRT((N54^2)+(N55^2)+(N56^2))","v":18},{"$f":"O54+O55+O56","v":0},{"$f":"SQRT((P54^2)+(P55^2)+(P56^2))","v":20.784609690826528},{"$f":"Q54+Q55+Q56","v":25},{"$f":"SQRT((R54^2)+(R55^2)+(R56^2))","v":37.336309405188942},{"$f":"S54+S55+S56","v":378},{"$f":"SQRT((T54^2)+(T55^2)+(T56^2))","v":150.09996668887038},{"$f":"U54+U55+U56","v":12},{"$f":"SQRT((V54^2)+(V55^2)+(V56^2))","v":21.377558326431949},{"$f":"W54+W55+W56","v":0},{"$f":"SQRT((X54^2)+(X55^2)+(X56^2))","v":20.784609690826528},{"$f":"Y54+Y55+Y56","v":7},{"$f":"SQRT((Z54^2)+(Z55^2)+(Z56^2))","v":13.601470508735444},{"$f":"AA54+AA55+AA56","v":0},{"$f":"SQRT((AB54^2)+(AB55^2)+(AB56^2))","v":20.784609690826528},{"$f":"AC54+AC55+AC56","v":46},{"$f":"SQRT((AD54^2)+(AD55^2)+(AD56^2))","v":39.698866482558415},{"$f":"AE54+AE55+AE56","v":0},{"$f":"SQRT((AF54^2)+(AF55^2)+(AF56^2))","v":20.784609690826528},{"$f":"AG54+AG55+AG56","v":9},{"$f":"SQRT((AH54^2)+(AH55^2)+(AH56^2))","v":16.15549442140351},{"$f":"AI54+AI55+AI56","v":0},{"$f":"SQRT((AJ54^2)+(AJ55^2)+(AJ56^2))","v":20.784609690826528},{"$f":"AK54+AK55+AK56","v":12},{"$f":"SQRT((AL54^2)+(AL55^2)+(AL56^2))","v":17.233687939614086},{"$f":"AM54+AM55+AM56","v":202},{"$f":"SQRT((AN54^2)+(AN55^2)+(AN56^2))","v":90.077744199108366},{"$f":"AO54+AO55+AO56","v":33},{"$f":"SQRT((AP54^2)+(AP55^2)+(AP56^2))","v":30.016662039607269},{"$f":"AQ54+AQ55+AQ56","v":80},{"$f":"SQRT((AR54^2)+(AR55^2)+(AR56^2))","v":86.977008456258133},{"$f":"AS54+AS55+AS56","v":9},{"$f":"SQRT((AT54^2)+(AT55^2)+(AT56^2))","v":14},{"$f":"AU54+AU55+AU56","v":7},{"$f":"SQRT((AV54^2)+(AV55^2)+(AV56^2))","v":20.784609690826528}]
[null,"More than 30.0 percent",{"$f":"C57+C58+C59+C60","v":0},{"$f":"SQRT((D57^2)+(D58^2)+(D59^2)+(D60^2))","v":24},{"$f":"E57+E58+E59+E60","v":0},{"$f":"SQRT((F57^2)+(F58^2)+(F59^2)+(F60^2))","v":24},{"$f":"G57+G58+G59+G60","v":3},{"$f":"SQRT((H57^2)+(H58^2)+(H59^2)+(H60^2))","v":21.377558326431949},{"$f":"I57+I58+I59+I60","v":0},{"$f":"SQRT((J57^2)+(J58^2)+(J59^2)+(J60^2))","v":24},{"$f":"K57+K58+K59+K60","v":0},{"$f":"SQRT((L57^2)+(L58^2)+(L59^2)+(L60^2))","v":24},{"$f":"M57+M58+M59+M60","v":0},{"$f":"SQRT((N57^2)+(N58^2)+(N59^2)+(N60^2))","v":24},{"$f":"O57+O58+O59+O60","v":0},{"$f":"SQRT((P57^2)+(P58^2)+(P59^2)+(P60^2))","v":24},{"$f":"Q57+Q58+Q59+Q60","v":0},{"$f":"SQRT((R57^2)+(R58^2)+(R59^2)+(R60^2))","v":34},{"$f":"S57+S58+S59+S60","v":0},{"$f":"SQRT((T57^2)+(T58^2)+(T59^2)+(T60^2))","v":44},{"$f":"U57+U58+U59+U60","v":0},{"$f":"SQRT((V57^2)+(V58^2)+(V59^2)+(V60^2))","v":24},{"$f":"W57+W58+W59+W60","v":0},{"$f":"SQRT((X57^2)+(X58^2)+(X59^2)+(X60^2))","v":24},{"$f":"Y57+Y58+Y59+Y60","v":0},{"$f":"SQRT((Z57^2)+(Z58^2)+(Z59^2)+(Z60^2))","v":24},{"$f":"AA57+AA58+AA59+AA60","v":0},{"$f":"SQRT((AB57^2)+(AB58^2)+(AB59^2)+(AB60^2))","v":24},{"$f":"AC57+AC58+AC59+AC60","v":0},{"$f":"SQRT((AD57^2)+(AD58^2)+(AD59^2)+(AD60^2))","v":34},{"$f":"AE57+AE58+AE59+AE60","v":0},{"$f":"SQRT((AF57^2)+(AF58^2)+(AF59^2)+(AF60^2))","v":24},{"$f":"AG57+AG58+AG59+AG60","v":0},{"$f":"SQRT((AH57^2)+(AH58^2)+(AH59^2)+(AH60^2))","v":24},{"$f":"AI57+AI58+AI59+AI60","v":0},{"$f":"SQRT((AJ57^2)+(AJ58^2)+(AJ59^2)+(AJ60^2))","v":24},{"$f":"AK57+AK58+AK59+AK60","v":0},{"$f":"SQRT((AL57^2)+(AL58^2)+(AL59^2)+(AL60^2))","v":24},{"$f":"AM57+AM58+AM59+AM60","v":0},{"$f":"SQRT((AN57^2)+(AN58^2)+(AN59^2)+(AN60^2))","v":34},{"$f":"AO57+AO58+AO59+AO60","v":0},{"$f":"SQRT((AP57^2)+(AP58^2)+(AP59^2)+(AP60^2))","v":24},{"$f":"AQ57+AQ58+AQ59+AQ60","v":0},{"$f":"SQRT((AR57^2)+(AR58^2)+(AR59^2)+(AR60^2))","v":24},{"$f":"AS57+AS58+AS59+AS60","v":0},{"$f":"SQRT((AT57^2)+(AT58^2)+(AT59^2)+(AT60^2))","v":24},{"$f":"AU57+AU58+AU59+AU60","v":0},{"$f":"SQRT((AV57^2)+(AV58^2)+(AV59^2)+(AV60^2))","v":24}]
[null,"Less Than 35% of HH Income",{"$f":"C54+C55+C56+C57","v":6},{"$f":"SQRT((D54^2)+(D55^2)+(D56^2)+(D57^2))","v":22.271057451320086},{"$f":"E54+E55+E56+E57","v":15},{"$f":"SQRT((F54^2)+(F55^2)+(F56^2)+(F57^2))","v":30.265491900843113},{"$f":"G54+G55+G56+G57","v":9},{"$f":"SQRT((H54^2)+(H55^2)+(H56^2)+(H57^2))","v":14.866068747318506},{"$f":"I54+I55+I56+I57","v":10},{"$f":"SQRT((J54^2)+(J55^2)+(J56^2)+(J57^2))","v":19.697715603592208},{"$f":"K54+K55+K56+K57","v":3},{"$f":"SQRT((L54^2)+(L55^2)+(L56^2)+(L57^2))","v":21.166010488516726},{"$f":"M54+M55+M56+M57","v":5},{"$f":"SQRT((N54^2)+(N55^2)+(N56^2)+(N57^2))","v":21.633307652783937},{"$f":"O54+O55+O56+O57","v":0},{"$f":"SQRT((P54^2)+(P55^2)+(P56^2)+(P57^2))","v":24},{"$f":"Q54+Q55+Q56+Q57","v":25},{"$f":"SQRT((R54^2)+(R55^2)+(R56^2)+(R57^2))","v":41.024382993532029},{"$f":"S54+S55+S56+S57","v":378},{"$f":"SQRT((T54^2)+(T55^2)+(T56^2)+(T57^2))","v":151.70365849247011},{"$f":"U54+U55+U56+U57","v":12},{"$f":"SQRT((V54^2)+(V55^2)+(V56^2)+(V57^2))","v":24.515301344262525},{"$f":"W54+W55+W56+W57","v":0},{"$f":"SQRT((X54^2)+(X55^2)+(X56^2)+(X57^2))","v":24},{"$f":"Y54+Y55+Y56+Y57","v":7},{"$f":"SQRT((Z54^2)+(Z55^2)+(Z56^2)+(Z57^2))","v":18.138357147217054},{"$f":"AA54+AA55+AA56+AA57","v":0},{"$f":"SQRT((AB54^2)+(AB55^2)+(AB56^2)+(AB57^2))","v":24},{"$f":"AC54+AC55+AC56+AC57","v":46},{"$f":"SQRT((AD54^2)+(AD55^2)+(AD56^2)+(AD57^2))","v":43.185645763378368},{"$f":"AE54+AE55+AE56+AE57","v":0},{"$f":"SQRT((AF54^2)+(AF55^2)+(AF56^2)+(AF57^2))","v":24},{"$f":"AG54+AG55+AG56+AG57","v":9},{"$f":"SQRT((AH54^2)+(AH55^2)+(AH56^2)+(AH57^2))","v":20.124611797498108},{"$f":"AI54+AI55+AI56+AI57","v":0},{"$f":"SQRT((AJ54^2)+(AJ55^2)+(AJ56^2)+(AJ57^2))","v":24},{"$f":"AK54+AK55+AK56+AK57","v":12},{"$f":"SQRT((AL54^2)+(AL55^2)+(AL56^2)+(AL57^2))","v":21},{"$f":"AM54+AM55+AM56+AM57","v":202},{"$f":"SQRT((AN54^2)+(AN55^2)+(AN56^2)+(AN57^2))","v":91.667878779864864},{"$f":"AO54+AO55+AO56+AO57","v":33},{"$f":"SQRT((AP54^2)+(AP55^2)+(AP56^2)+(AP57^2))","v":32.326459750489228},{"$f":"AQ54+AQ55+AQ56+AQ57","v":80},{"$f":"SQRT((AR54^2)+(AR55^2)+(AR56^2)+(AR57^2))","v":87.80091115700337},{"$f":"AS54+AS55+AS56+AS57","v":9},{"$f":"SQRT((AT54^2)+(AT55^2)+(AT56^2)+(AT57^2))","v":18.439088914585774},{"$f":"AU54+AU55+AU56+AU57","v":7},{"$f":"SQRT((AV54^2)+(AV55^2)+(AV56^2)+(AV57^2))","v":24}]
[null,"35.0 percent or more",{"$f":"C58+C59+C60","v":0},{"$f":"SQRT((D58^2)+(D59^2)+(D60^2))","v":20.784609690826528},{"$f":"E58+E59+E60","v":0},{"$f":"SQRT((F58^2)+(F59^2)+(F60^2))","v":20.784609690826528},{"$f":"G58+G59+G60","v":0},{"$f":"SQRT((H58^2)+(H59^2)+(H60^2))","v":20.784609690826528},{"$f":"I58+I59+I60","v":0},{"$f":"SQRT((J58^2)+(J59^2)+(J60^2))","v":20.784609690826528},{"$f":"K58+K59+K60","v":0},{"$f":"SQRT((L58^2)+(L59^2)+(L60^2))","v":20.784609690826528},{"$f":"M58+M59+M60","v":0},{"$f":"SQRT((N58^2)+(N59^2)+(N60^2))","v":20.784609690826528},{"$f":"O58+O59+O60","v":0},{"$f":"SQRT((P58^2)+(P59^2)+(P60^2))","v":20.784609690826528},{"$f":"Q58+Q59+Q60","v":0},{"$f":"SQRT((R58^2)+(R59^2)+(R60^2))","v":29.444863728670914},{"$f":"S58+S59+S60","v":0},{"$f":"SQRT((T58^2)+(T59^2)+(T60^2))","v":38.105117766515299},{"$f":"U58+U59+U60","v":0},{"$f":"SQRT((V58^2)+(V59^2)+(V60^2))","v":20.784609690826528},{"$f":"W58+W59+W60","v":0},{"$f":"SQRT((X58^2)+(X59^2)+(X60^2))","v":20.784609690826528},{"$f":"Y58+Y59+Y60","v":0},{"$f":"SQRT((Z58^2)+(Z59^2)+(Z60^2))","v":20.784609690826528},{"$f":"AA58+AA59+AA60","v":0},{"$f":"SQRT((AB58^2)+(AB59^2)+(AB60^2))","v":20.784609690826528},{"$f":"AC58+AC59+AC60","v":0},{"$f":"SQRT((AD58^2)+(AD59^2)+(AD60^2))","v":29.444863728670914},{"$f":"AE58+AE59+AE60","v":0},{"$f":"SQRT((AF58^2)+(AF59^2)+(AF60^2))","v":20.784609690826528},{"$f":"AG58+AG59+AG60","v":0},{"$f":"SQRT((AH58^2)+(AH59^2)+(AH60^2))","v":20.784609690826528},{"$f":"AI58+AI59+AI60","v":0},{"$f":"SQRT((AJ58^2)+(AJ59^2)+(AJ60^2))","v":20.784609690826528},{"$f":"AK58+AK59+AK60","v":0},{"$f":"SQRT((AL58^2)+(AL59^2)+(AL60^2))","v":20.784609690826528},{"$f":"AM58+AM59+AM60","v":0},{"$f":"SQRT((AN58^2)+(AN59^2)+(AN60^2))","v":29.444863728670914},{"$f":"AO58+AO59+AO60","v":0},{"$f":"SQRT((AP58^2)+(AP59^2)+(AP60^2))","v":20.784609690826528},{"$f":"AQ58+AQ59+AQ60","v":0},{"$f":"SQRT((AR58^2)+(AR59^2)+(AR60^2))","v":20.784609690826528},{"$f":"AS58+AS59+AS60","v":0},{"$f":"SQRT((AT58^2)+(AT59^2)+(AT60^2))","v":20.784609690826528},{"$f":"AU58+AU59+AU60","v":0},{"$f":"SQRT((AV58^2)+(AV59^2)+(AV60^2))","v":20.784609690826528}]
[null,"50.0 percent or more",{"$f":"C60","v":0},12,{"$f":"E60","v":0},12,0,12,0,12,0,12,0,12,0,12,0,17,{"$f":"S60","v":0},22,0,12,0,12,0,12,0,12,0,17,0,12,0,12,0,12,0,12,0,17,0,12,0,12,0,12,0,12]
[null,"Not Computed",0,12,0,12,5,6,0,12,0,12,0,12,0,12,0,17,0,22,16,25,5,5,0,12,0,12,0,17,0,12,3,4,0,12,2,3,0,17,0,12,4,7,0,12,0,12]
[null,"$100,000 or more:",25,19,17,25,12,12,27,26,0,12,10,12,65,61,18,33,581,259,52,37,14,22,2,3,6,7,29,26,1,3,5,5,13,10,5,5,42,46,32,28,92,76,32,32,44,47]
[null,"Less than 30.0 percent",{"$f":"C63+C64+C65","v":21},{"$f":"SQRT((D63^2)+(D64^2)+(D65^2))","v":24.738633753705962},{"$f":"E63+E64+E65","v":17},{"$f":"SQRT((F63^2)+(F64^2)+(F65^2))","v":30.215889859476256},{"$f":"G63+G64+G65","v":12},{"$f":"SQRT((H63^2)+(H64^2)+(H65^2))","v":20.784609690826528},{"$f":"I63+I64+I65","v":22},{"$f":"SQRT((J63^2)+(J64^2)+(J65^2))","v":30.215889859476256},{"$f":"K63+K64+K65","v":0},{"$f":"SQRT((L63^2)+(L64^2)+(L65^2))","v":20.784609690826528},{"$f":"M63+M64+M65","v":9},{"$f":"SQRT((N63^2)+(N64^2)+(N65^2))","v":20.784609690826528},{"$f":"O63+O64+O65","v":65},{"$f":"SQRT((P63^2)+(P64^2)+(P65^2))","v":63.316664473106918},{"$f":"Q63+Q64+Q65","v":0},{"$f":"SQRT((R63^2)+(R64^2)+(R65^2))","v":29.444863728670914},{"$f":"S63+S64+S65","v":566},{"$f":"SQRT((T63^2)+(T64^2)+(T65^2))","v":264.75838041504937},{"$f":"U63+U64+U65","v":52},{"$f":"SQRT((V63^2)+(V64^2)+(V65^2))","v":35.62302626111375},{"$f":"W63+W64+W65","v":14},{"$f":"SQRT((X63^2)+(X64^2)+(X65^2))","v":27.784887978899608},{"$f":"Y63+Y64+Y65","v":2},{"$f":"SQRT((Z63^2)+(Z64^2)+(Z65^2))","v":17.233687939614086},{"$f":"AA63+AA64+AA65","v":6},{"$f":"SQRT((AB63^2)+(AB64^2)+(AB65^2))","v":18.357559750685819},{"$f":"AC63+AC64+AC65","v":29},{"$f":"SQRT((AD63^2)+(AD64^2)+(AD65^2))","v":29.983328701129899},{"$f":"AE63+AE64+AE65","v":0},{"$f":"SQRT((AF63^2)+(AF64^2)+(AF65^2))","v":20.784609690826528},{"$f":"AG63+AG64+AG65","v":5},{"$f":"SQRT((AH63^2)+(AH64^2)+(AH65^2))","v":13},{"$f":"AI63+AI64+AI65","v":13},{"$f":"SQRT((AJ63^2)+(AJ64^2)+(AJ65^2))","v":19.697715603592208},{"$f":"AK63+AK64+AK65","v":5},{"$f":"SQRT((AL63^2)+(AL64^2)+(AL65^2))","v":17.691806012954132},{"$f":"AM63+AM64+AM65","v":11},{"$f":"SQRT((AN63^2)+(AN64^2)+(AN65^2))","v":30.033314835362415},{"$f":"AO63+AO64+AO65","v":32},{"$f":"SQRT((AP63^2)+(AP64^2)+(AP65^2))","v":32.741411087489801},{"$f":"AQ63+AQ64+AQ65","v":92},{"$f":"SQRT((AR63^2)+(AR64^2)+(AR65^2))","v":77.87168933572714},{"$f":"AS63+AS64+AS65","v":18},{"$f":"SQRT((AT63^2)+(AT64^2)+(AT65^2))","v":31.89043743820395},{"$f":"AU63+AU64+AU65","v":44},{"$f":"SQRT((AV63^2)+(AV64^2)+(AV65^2))","v":49.969990994595946}]
[null,"More than 30.0 percent",{"$f":"C66+C67+C68+C69","v":0},{"$f":"SQRT((D66^2)+(D67^2)+(D68^2)+(D69^2))","v":24},{"$f":"E66+E67+E68+E69","v":0},{"$f":"SQRT((F66^2)+(F67^2)+(F68^2)+(F69^2))","v":24},{"$f":"G66+G67+G68+G69","v":0},{"$f":"SQRT((H66^2)+(H67^2)+(H68^2)+(H69^2))","v":24},{"$f":"I66+I67+I68+I69","v":0},{"$f":"SQRT((J66^2)+(J67^2)+(J68^2)+(J69^2))","v":24},{"$f":"K66+K67+K68+K69","v":0},{"$f":"SQRT((L66^2)+(L67^2)+(L68^2)+(L69^2))","v":24},{"$f":"M66+M67+M68+M69","v":0},{"$f":"SQRT((N66^2)+(N67^2)+(N68^2)+(N69^2))","v":24},{"$f":"O66+O67+O68+O69","v":0},{"$f":"SQRT((P66^2)+(P67^2)+(P68^2)+(P69^2))","v":24},{"$f":"Q66+Q67+Q68+Q69","v":0},{"$f":"SQRT((R66^2)+(R67^2)+(R68^2)+(R69^2))","v":34},{"$f":"S66+S67+S68+S69","v":15},{"$f":"SQRT((T66^2)+(T67^2)+(T68^2)+(T69^2))","v":45.574115460423364},{"$f":"U66+U67+U68+U69","v":0},{"$f":"SQRT((V66^2)+(V67^2)+(V68^2)+(V69^2))","v":24},{"$f":"W66+W67+W68+W69","v":0},{"$f":"SQRT((X66^2)+(X67^2)+(X68^2)+(X69^2))","v":24},{"$f":"Y66+Y67+Y68+Y69","v":0},{"$f":"SQRT((Z66^2)+(Z67^2)+(Z68^2)+(Z69^2))","v":24},{"$f":"AA66+AA67+AA68+AA69","v":0},{"$f":"SQRT((AB66^2)+(AB67^2)+(AB68^2)+(AB69^2))","v":24},{"$f":"AC66+AC67+AC68+AC69","v":0},{"$f":"SQRT((AD66^2)+(AD67^2)+(AD68^2)+(AD69^2))","v":34},{"$f":"AE66+AE67+AE68+AE69","v":0},{"$f":"SQRT((AF66^2)+(AF67^2)+(AF68^2)+(AF69^2))","v":24},{"$f":"AG66+AG67+AG68+AG69","v":0},{"$f":"SQRT((AH66^2)+(AH67^2)+(AH68^2)+(AH69^2))","v":24},{"$f":"AI66+AI67+AI68+AI69","v":0},{"$f":"SQRT((AJ66^2)+(AJ67^2)+(AJ68^2)+(AJ69^2))","v":24},{"$f":"AK66+AK67+AK68+AK69","v":0},{"$f":"SQRT((AL66^2)+(AL67^2)+(AL68^2)+(AL69^2))","v":24},{"$f":"AM66+AM67+AM68+AM69","v":0},{"$f":"SQRT((AN66^2)+(AN67^2)+(AN68^2)+(AN69^2))","v":34},{"$f":"AO66+AO67+AO68+AO69","v":0},{"$f":"SQRT((AP66^2)+(AP67^2)+(AP68^2)+(AP69^2))","v":24},{"$f":"AQ66+AQ67+AQ68+AQ69","v":0},{"$f":"SQRT((AR66^2)+(AR67^2)+(AR68^2)+(AR69^2))","v":24},{"$f":"AS66+AS67+AS68+AS69","v":0},{"$f":"SQRT((AT66^2)+(AT67^2)+(AT68^2)+(AT69^2))","v":24},{"$f":"AU66+AU67+AU68+AU69","v":0},{"$f":"SQRT((AV66^2)+(AV67^2)+(AV68^2)+(AV69^2))","v":24}]
[null,"Less Than 35% of HH Income",{"$f":"C63+C64+C65+C66","v":21},{"$f":"SQRT(((D63^2)+(D64^2)+(D65^2)+(D66^2)))","v":27.495454169735041},{"$f":"E63+E64+E65+E66","v":17},{"$f":"SQRT(((F63^2)+(F64^2)+(F65^2)+(F66^2)))","v":32.511536414017719},{"$f":"G63+G64+G65+G66","v":12},{"$f":"SQRT(((H63^2)+(H64^2)+(H65^2)+(H66^2)))","v":24},{"$f":"I63+I64+I65+I66","v":22},{"$f":"SQRT(((J63^2)+(J64^2)+(J65^2)+(J66^2)))","v":32.511536414017719},{"$f":"K63+K64+K65+K66","v":0},{"$f":"SQRT(((L63^2)+(L64^2)+(L65^2)+(L66^2)))","v":24},{"$f":"M63+M64+M65+M66","v":9},{"$f":"SQRT(((N63^2)+(N64^2)+(N65^2)+(N66^2)))","v":24},{"$f":"O63+O64+O65+O66","v":65},{"$f":"SQRT(((P63^2)+(P64^2)+(P65^2)+(P66^2)))","v":64.443773942872099},{"$f":"Q63+Q64+Q65+Q66","v":0},{"$f":"SQRT(((R63^2)+(R64^2)+(R65^2)+(R66^2)))","v":34},{"$f":"S63+S64+S65+S66","v":566},{"$f":"SQRT(((T63^2)+(T64^2)+(T65^2)+(T66^2)))","v":265.67084898422712},{"$f":"U63+U64+U65+U66","v":52},{"$f":"SQRT(((V63^2)+(V64^2)+(V65^2)+(V66^2)))","v":37.589892258425003},{"$f":"W63+W64+W65+W66","v":14},{"$f":"SQRT(((X63^2)+(X64^2)+(X65^2)+(X66^2)))","v":30.265491900843113},{"$f":"Y63+Y64+Y65+Y66","v":2},{"$f":"SQRT(((Z63^2)+(Z64^2)+(Z65^2)+(Z66^2)))","v":21},{"$f":"AA63+AA64+AA65+AA66","v":6},{"$f":"SQRT(((AB63^2)+(AB64^2)+(AB65^2)+(AB66^2)))","v":21.931712199461309},{"$f":"AC63+AC64+AC65+AC66","v":29},{"$f":"SQRT(((AD63^2)+(AD64^2)+(AD65^2)+(AD66^2)))","v":34.467375879228172},{"$f":"AE63+AE64+AE65+AE66","v":0},{"$f":"SQRT(((AF63^2)+(AF64^2)+(AF65^2)+(AF66^2)))","v":24},{"$f":"AG63+AG64+AG65+AG66","v":5},{"$f":"SQRT(((AH63^2)+(AH64^2)+(AH65^2)+(AH66^2)))","v":17.691806012954132},{"$f":"AI63+AI64+AI65+AI66","v":13},{"$f":"SQRT(((AJ63^2)+(AJ64^2)+(AJ65^2)+(AJ66^2)))","v":23.065125189341593},{"$f":"AK63+AK64+AK65+AK66","v":5},{"$f":"SQRT(((AL63^2)+(AL64^2)+(AL65^2)+(AL66^2)))","v":21.377558326431949},{"$f":"AM63+AM64+AM65+AM66","v":11},{"$f":"SQRT(((AN63^2)+(AN64^2)+(AN65^2)+(AN66^2)))","v":34.510867853474792},{"$f":"AO63+AO64+AO65+AO66","v":32},{"$f":"SQRT(((AP63^2)+(AP64^2)+(AP65^2)+(AP66^2)))","v":34.871191548325392},{"$f":"AQ63+AQ64+AQ65+AQ66","v":92},{"$f":"SQRT(((AR63^2)+(AR64^2)+(AR65^2)+(AR66^2)))","v":78.790862414368831},{"$f":"AS63+AS64+AS65+AS66","v":18},{"$f":"SQRT(((AT63^2)+(AT64^2)+(AT65^2)+(AT66^2)))","v":34.073450074801642},{"$f":"AU63+AU64+AU65+AU66","v":44},{"$f":"SQRT(((AV63^2)+(AV64^2)+(AV65^2)+(AV66^2)))","v":51.39066063011839}]
[null,"35.0 percent or more",{"$f":"C67+C68+C69","v":0},{"$f":"SQRT((D67^2)+(D68^2)+(D69^2))","v":20.784609690826528},{"$f":"E67+E68+E69","v":0},{"$f":"SQRT((F67^2)+(F68^2)+(F69^2))","v":20.784609690826528},{"$f":"G67+G68+G69","v":0},{"$f":"SQRT((H67^2)+(H68^2)+(H69^2))","v":20.784609690826528},{"$f":"I67+I68+I69","v":0},{"$f":"SQRT((J67^2)+(J68^2)+(J69^2))","v":20.784609690826528},{"$f":"K67+K68+K69","v":0},{"$f":"SQRT((L67^2)+(L68^2)+(L69^2))","v":20.784609690826528},{"$f":"M67+M68+M69","v":0},{"$f":"SQRT((N67^2)+(N68^2)+(N69^2))","v":20.784609690826528},{"$f":"O67+O68+O69","v":0},{"$f":"SQRT((P67^2)+(P68^2)+(P69^2))","v":20.784609690826528},{"$f":"Q67+Q68+Q69","v":0},{"$f":"SQRT((R67^2)+(R68^2)+(R69^2))","v":29.444863728670914},{"$f":"S67+S68+S69","v":15},{"$f":"SQRT((T67^2)+(T68^2)+(T69^2))","v":39.912404086950211},{"$f":"U67+U68+U69","v":0},{"$f":"SQRT((V67^2)+(V68^2)+(V69^2))","v":20.784609690826528},{"$f":"W67+W68+W69","v":0},{"$f":"SQRT((X67^2)+(X68^2)+(X69^2))","v":20.784609690826528},{"$f":"Y67+Y68+Y69","v":0},{"$f":"SQRT((Z67^2)+(Z68^2)+(Z69^2))","v":20.784609690826528},{"$f":"AA67+AA68+AA69","v":0},{"$f":"SQRT((AB67^2)+(AB68^2)+(AB69^2))","v":20.784609690826528},{"$f":"AC67+AC68+AC69","v":0},{"$f":"SQRT((AD67^2)+(AD68^2)+(AD69^2))","v":29.444863728670914},{"$f":"AE67+AE68+AE69","v":0},{"$f":"SQRT((AF67^2)+(AF68^2)+(AF69^2))","v":20.784609690826528},{"$f":"AG67+AG68+AG69","v":0},{"$f":"SQRT((AH67^2)+(AH68^2)+(AH69^2))","v":20.784609690826528},{"$f":"AI67+AI68+AI69","v":0},{"$f":"SQRT((AJ67^2)+(AJ68^2)+(AJ69^2))","v":20.784609690826528},{"$f":"AK67+AK68+AK69","v":0},{"$f":"SQRT((AL67^2)+(AL68^2)+(AL69^2))","v":20.784609690826528},{"$f":"AM67+AM68+AM69","v":0},{"$f":"SQRT((AN67^2)+(AN68^2)+(AN69^2))","v":29.444863728670914},{"$f":"AO67+AO68+AO69","v":0},{"$f":"SQRT((AP67^2)+(AP68^2)+(AP69^2))","v":20.784609690826528},{"$f":"AQ67+AQ68+AQ69","v":0},{"$f":"SQRT((AR67^2)+(AR68^2)+(AR69^2))","v":20.784609690826528},{"$f":"AS67+AS68+AS69","v":0},{"$f":"SQRT((AT67^2)+(AT68^2)+(AT69^2))","v":20.784609690826528},{"$f":"AU67+AU68+AU69","v":0},{"$f":"SQRT((AV67^2)+(AV68^2)+(AV69^2))","v":20.784609690826528}]
[null,"50.0 percent or more",{"$f":"C69","v":0},12,0,{"$f":"F69","v":12},{"$f":"G69","v":0},12,{"$f":"I69","v":0},12,{"$f":"K69","v":0},12,{"$f":"M69","v":0},12,{"$f":"O69","v":0},12,{"$f":"Q69","v":0},17,{"$f":"S69","v":15},25,{"$f":"U69","v":0},12,{"$f":"W69","v":0},12,{"$f":"Y69","v":0},12,{"$f":"AA69","v":0},12,{"$f":"AC69","v":0},17,{"$f":"AE69","v":0},12,{"$f":"AG69","v":0},12,{"$f":"AI69","v":0},12,{"$f":"AK69","v":0},12,{"$f":"AM69","v":0},17,{"$f":"AO69","v":0},12,{"$f":"AQ69","v":0},12,{"$f":"AS69","v":0},12,{"$f":"AU69","v":0},12]
[null,"Not Computed",4,6,0,12,{"$f":"G70","v":0},12,{"$f":"I70","v":5},9,{"$f":"K70","v":0},12,{"$f":"M70","v":1},3,{"$f":"O70","v":0},12,{"$f":"Q70","v":18},33,{"$f":"S70","v":0},22,{"$f":"U70","v":0},12,{"$f":"W70","v":0},12,{"$f":"Y70","v":0},12,{"$f":"AA70","v":0},12,{"$f":"AC70","v":0},17,{"$f":"AE70","v":1},3,{"$f":"AG70","v":0},12,{"$f":"AI70","v":0},12,{"$f":"AK70","v":0},12,{"$f":"AM70","v":31},43,{"$f":"AO70","v":0},12,{"$f":"AQ70","v":0},12,{"$f":"AS70","v":14},18,{"$f":"AU70","v":0},12]
[]
[]
[null,"Calculated GROSS RENT AS A PERCENTAGE OF HOUSEHOLD INCOME IN THE PAST 12 MONTHS"]
[null,"Universe:  RENTER-OCCUPIED HOUSING UNITS"]
[null,"Data Set: 2018-2022 American Community Survey 5-Year Estimates"]
[]
[null,null,"Alstead",null,"Chesterfield",null,"Dublin",null,"Fitzwilliam",null,"Gilsum",null,"Harrisville",null,"Hinsdale",null,"Jaffrey",null,"Keene",null,"Marlborough",null,"Marlow",null,"Nelson",null,"Richmond",null,"Rindge",null,"Roxbury",null,"Stoddard",null,"Sullivan",null,"Surry",null,"Swanzey",null,"Troy",null,"Walpole",null,"Westmoreland",null,"Winchester"]
[null," ","Estimate","Margin of Error","Estimate","Margin of Error","Estimate","Margin of Error","Estimate","Margin of Error","Estimate","Margin of Error","Estimate","Margin of Error","Estimate","Margin of Error","Estimate","Margin of Error","Estimate","Margin of Error","Estimate","Margin of Error","Estimate","Margin of Error","Estimate","Margin of Error","Estimate","Margin of Error","Estimate","Margin of Error","Estimate","Margin of Error","Estimate","Margin of Error","Estimate","Margin of Error","Estimate","Margin of Error","Estimate","Margin of Error","Estimate","Margin of Error","Estimate","Margin of Error","Estimate","Margin of Error","Estimate","Margin of Error"]
[null,{"$f":"B92","v":"Total:"},{"$f":"C92","v":216},{"$f":"D92","v":81},{"$f":"E92","v":192},114,112,39,81,30,27,15,29,18,241,100,521,169,4173,379,340,92,45,29,25,13,14,12,295,111,2,3,32,20,42,20,31,16,1180,250,197,58,523,152,80,39,568,122]
[null,"Less than 30.0 percent",{"$f":"C136+C129+C122+C115+C108+C101+C94","v":75},{"$f":"SQRT((D136^2)+(D129^2)+(D122^2)+(D115^2)+(D108^2)+(D101^2)+(D94^2))","v":62.793311745758402},{"$f":"E136+E129+E122+E115+E108+E101+E94","v":51},{"$f":"SQRT((F136^2)+(F129^2)+(F122^2)+(F115^2)+(F108^2)+(F101^2)+(F94^2))","v":67.394361781976983},{"$f":"G136+G129+G122+G115+G108+G101+G94","v":41},{"$f":"SQRT((H136^2)+(H129^2)+(H122^2)+(H115^2)+(H108^2)+(H101^2)+(H94^2))","v":54.027770636960398},{"$f":"I136+I129+I122+I115+I108+I101+I94","v":35},{"$f":"SQRT((J136^2)+(J129^2)+(J122^2)+(J115^2)+(J108^2)+(J101^2)+(J94^2))","v":56.550862062394771},{"$f":"K136+K129+K122+K115+K108+K101+K94","v":15},{"$f":"SQRT((L136^2)+(L129^2)+(L122^2)+(L115^2)+(L108^2)+(L101^2)+(L94^2))","v":52.191953402799555},{"$f":"M136+M129+M122+M115+M108+M101+M94","v":20},{"$f":"SQRT((N136^2)+(N129^2)+(N122^2)+(N115^2)+(N108^2)+(N101^2)+(N94^2))","v":51.662365412357957},{"$f":"O136+O129+O122+O115+O108+O101+O94","v":105},{"$f":"SQRT((P136^2)+(P129^2)+(P122^2)+(P115^2)+(P108^2)+(P101^2)+(P94^2))","v":87.120606058498012},{"$f":"Q136+Q129+Q122+Q115+Q108+Q101+Q94","v":253},{"$f":"SQRT((R136^2)+(R129^2)+(R122^2)+(R115^2)+(R108^2)+(R101^2)+(R94^2))","v":141.24446891825534},{"$f":"S136+S129+S122+S115+S108+S101+S94","v":2255},{"$f":"SQRT((T136^2)+(T129^2)+(T122^2)+(T115^2)+(T108^2)+(T101^2)+(T94^2))","v":400.18620665885027},{"$f":"U136+U129+U122+U115+U108+U101+U94","v":149},{"$f":"SQRT((V136^2)+(V129^2)+(V122^2)+(V115^2)+(V108^2)+(V101^2)+(V94^2))","v":69.677830046579373},{"$f":"W136+W129+W122+W115+W108+W101+W94","v":22},{"$f":"SQRT((X136^2)+(X129^2)+(X122^2)+(X115^2)+(X108^2)+(X101^2)+(X94^2))","v":57.801384066473702},{"$f":"Y136+Y129+Y122+Y115+Y108+Y101+Y94","v":22},{"$f":"SQRT((Z136^2)+(Z129^2)+(Z122^2)+(Z115^2)+(Z108^2)+(Z101^2)+(Z94^2))","v":44.676615807377352},{"$f":"AA136+AA129+AA122+AA115+AA108+AA101+AA94","v":7},{"$f":"SQRT((AB136^2)+(AB129^2)+(AB122^2)+(AB115^2)+(AB108^2)+(AB101^2)+(AB94^2))","v":52.924474489596967},{"$f":"AC136+AC129+AC122+AC115+AC108+AC101+AC94","v":169},{"$f":"SQRT((AD136^2)+(AD129^2)+(AD122^2)+(AD115^2)+(AD108^2)+(AD101^2)+(AD94^2))","v":110.49886877249016},{"$f":"AE136+AE129+AE122+AE115+AE108+AE101+AE94","v":1},{"$f":"SQRT((AF136^2)+(AF129^2)+(AF122^2)+(AF115^2)+(AF108^2)+(AF101^2)+(AF94^2))","v":53.702886328390207},{"$f":"AG136+AG129+AG122+AG115+AG108+AG101+AG94","v":14},{"$f":"SQRT((AH136^2)+(AH129^2)+(AH122^2)+(AH115^2)+(AH108^2)+(AH101^2)+(AH94^2))","v":50.892042599997893},{"$f":"AI136+AI129+AI122+AI115+AI108+AI101+AI94","v":29},{"$f":"SQRT((AJ136^2)+(AJ129^2)+(AJ122^2)+(AJ115^2)+(AJ108^2)+(AJ101^2)+(AJ94^2))","v":55.605755097831377},{"$f":"AK136+AK129+AK122+AK115+AK108+AK101+AK94","v":25},{"$f":"SQRT((AL136^2)+(AL129^2)+(AL122^2)+(AL115^2)+(AL108^2)+(AL101^2)+(AL94^2))","v":52.211109928826453},{"$f":"AM136+AM129+AM122+AM115+AM108+AM101+AM94","v":546},{"$f":"SQRT((AN136^2)+(AN129^2)+(AN122^2)+(AN115^2)+(AN108^2)+(AN101^2)+(AN94^2))","v":182.18671740826773},{"$f":"AO136+AO129+AO122+AO115+AO108+AO101+AO94","v":87},{"$f":"SQRT((AP136^2)+(AP129^2)+(AP122^2)+(AP115^2)+(AP108^2)+(AP101^2)+(AP94^2))","v":62.169124169478209},{"$f":"AQ136+AQ129+AQ122+AQ115+AQ108+AQ101+AQ94","v":325},{"$f":"SQRT((AR136^2)+(AR129^2)+(AR122^2)+(AR115^2)+(AR108^2)+(AR101^2)+(AR94^2))","v":149.05368160498418},{"$f":"AS136+AS129+AS122+AS115+AS108+AS101+AS94","v":51},{"$f":"SQRT((AT136^2)+(AT129^2)+(AT122^2)+(AT115^2)+(AT108^2)+(AT101^2)+(AT94^2))","v":61.163714733492114},{"$f":"AU136+AU129+AU122+AU115+AU108+AU101+AU94","v":238},{"$f":"SQRT((AV136^2)+(AV129^2)+(AV122^2)+(AV115^2)+(AV108^2)+(AV101^2)+(AV94^2))","v":111.05854312028409}]
[null,"More than 30.0 percent",{"$f":"C137+C130+C123+C116+C109+C102+C95","v":92},{"$f":"SQRT((D137^2)+(D130^2)+(D123^2)+(D116^2)+(D109^2)+(D102^2)+(D95^2))","v":82.94576541331088},{"$f":"E137+E130+E123+E116+E109+E102+E95","v":82},{"$f":"SQRT((F137^2)+(F130^2)+(F123^2)+(F116^2)+(F109^2)+(F102^2)+(F95^2))","v":105.98113039593416},{"$f":"G137+G130+G123+G116+G109+G102+G95","v":45},{"$f":"SQRT((H137^2)+(H130^2)+(H123^2)+(H116^2)+(H109^2)+(H102^2)+(H95^2))","v":64.853681468363845},{"$f":"I137+I130+I123+I116+I109+I102+I95","v":34},{"$f":"SQRT((J137^2)+(J130^2)+(J123^2)+(J116^2)+(J109^2)+(J102^2)+(J95^2))","v":65.642973729105236},{"$f":"K137+K130+K123+K116+K109+K102+K95","v":12},{"$f":"SQRT((L137^2)+(L130^2)+(L123^2)+(L116^2)+(L109^2)+(L102^2)+(L95^2))","v":58.077534382926416},{"$f":"M137+M130+M123+M116+M109+M102+M95","v":8},{"$f":"SQRT((N137^2)+(N130^2)+(N123^2)+(N116^2)+(N109^2)+(N102^2)+(N95^2))","v":61.911226768656427},{"$f":"O137+O130+O123+O116+O109+O102+O95","v":92},{"$f":"SQRT((P137^2)+(P130^2)+(P123^2)+(P116^2)+(P109^2)+(P102^2)+(P95^2))","v":100.41414243023739},{"$f":"Q137+Q130+Q123+Q116+Q109+Q102+Q95","v":250},{"$f":"SQRT((R137^2)+(R130^2)+(R123^2)+(R116^2)+(R109^2)+(R102^2)+(R95^2))","v":161.81779877380609},{"$f":"S137+S130+S123+S116+S109+S102+S95","v":1789},{"$f":"SQRT((T137^2)+(T130^2)+(T123^2)+(T116^2)+(T109^2)+(T102^2)+(T95^2))","v":333.61654635224556},{"$f":"U137+U130+U123+U116+U109+U102+U95","v":166},{"$f":"SQRT((V137^2)+(V130^2)+(V123^2)+(V116^2)+(V109^2)+(V102^2)+(V95^2))","v":98.58498871532116},{"$f":"W137+W130+W123+W116+W109+W102+W95","v":13},{"$f":"SQRT((X137^2)+(X130^2)+(X123^2)+(X116^2)+(X109^2)+(X102^2)+(X95^2))","v":61.196405123176966},{"$f":"Y137+Y130+Y123+Y116+Y109+Y102+Y95","v":3},{"$f":"SQRT((Z137^2)+(Z130^2)+(Z123^2)+(Z116^2)+(Z109^2)+(Z102^2)+(Z95^2))","v":62.553976692133652},{"$f":"AA137+AA130+AA123+AA116+AA109+AA102+AA95","v":4},{"$f":"SQRT((AB137^2)+(AB130^2)+(AB123^2)+(AB116^2)+(AB109^2)+(AB102^2)+(AB95^2))","v":62.745517768203968},{"$f":"AC137+AC130+AC123+AC116+AC109+AC102+AC95","v":111},{"$f":"SQRT((AD137^2)+(AD130^2)+(AD123^2)+(AD116^2)+(AD109^2)+(AD102^2)+(AD95^2))","v":103.52777405121778},{"$f":"AE137+AE130+AE123+AE116+AE109+AE102+AE95","v":0},{"$f":"SQRT((AF137^2)+(AF130^2)+(AF123^2)+(AF116^2)+(AF109^2)+(AF102^2)+(AF95^2))","v":63.498031465550177},{"$f":"AG137+AG130+AG123+AG116+AG109+AG102+AG95","v":9},{"$f":"SQRT((AH137^2)+(AH130^2)+(AH123^2)+(AH116^2)+(AH109^2)+(AH102^2)+(AH95^2))","v":63.694583757176716},{"$f":"AI137+AI130+AI123+AI116+AI109+AI102+AI95","v":13},{"$f":"SQRT((AJ137^2)+(AJ130^2)+(AJ123^2)+(AJ116^2)+(AJ109^2)+(AJ102^2)+(AJ95^2))","v":59.548299723837623},{"$f":"AK137+AK130+AK123+AK116+AK109+AK102+AK95","v":2},{"$f":"SQRT((AL137^2)+(AL130^2)+(AL123^2)+(AL116^2)+(AL109^2)+(AL102^2)+(AL95^2))","v":62.425956140054431},{"$f":"AM137+AM130+AM123+AM116+AM109+AM102+AM95","v":490},{"$f":"SQRT((AN137^2)+(AN130^2)+(AN123^2)+(AN116^2)+(AN109^2)+(AN102^2)+(AN95^2))","v":229.32073608812615},{"$f":"AO137+AO130+AO123+AO116+AO109+AO102+AO95","v":99},{"$f":"SQRT((AP137^2)+(AP130^2)+(AP123^2)+(AP116^2)+(AP109^2)+(AP102^2)+(AP95^2))","v":77.025969646606853},{"$f":"AQ137+AQ130+AQ123+AQ116+AQ109+AQ102+AQ95","v":164},{"$f":"SQRT((AR137^2)+(AR130^2)+(AR123^2)+(AR116^2)+(AR109^2)+(AR102^2)+(AR95^2))","v":117.04699910719626},{"$f":"AS137+AS130+AS123+AS116+AS109+AS102+AS95","v":12},{"$f":"SQRT((AT137^2)+(AT130^2)+(AT123^2)+(AT116^2)+(AT109^2)+(AT102^2)+(AT95^2))","v":61.838499334961227},{"$f":"AU137+AU130+AU123+AU116+AU109+AU102+AU95","v":287},{"$f":"SQRT((AV137^2)+(AV130^2)+(AV123^2)+(AV116^2)+(AV109^2)+(AV102^2)+(AV95^2))","v":115.19982638875807}]
[null,"Less Than 35% of HH Income",{"$f":"C138+C131+C124+C117+C110+C103+C96","v":127},{"$f":"SQRT((D138^2)+(D131^2)+(D124^2)+(D117^2)+(D110^2)+(D103^2)+(D96^2))","v":85.047045804072468},{"$f":"E138+E131+E124+E117+E110+E103+E96","v":51},{"$f":"SQRT((F138^2)+(F131^2)+(F124^2)+(F117^2)+(F110^2)+(F103^2)+(F96^2))","v":74.498322128756698},{"$f":"G138+G131+G124+G117+G110+G103+G96","v":44},{"$f":"SQRT((H138^2)+(H131^2)+(H124^2)+(H117^2)+(H110^2)+(H103^2)+(H96^2))","v":61.708994482166048},{"$f":"I138+I131+I124+I117+I110+I103+I96","v":35},{"$f":"SQRT((J138^2)+(J131^2)+(J124^2)+(J117^2)+(J110^2)+(J103^2)+(J96^2))","v":64.853681468363845},{"$f":"K138+K131+K124+K117+K110+K103+K96","v":21},{"$f":"SQRT((L138^2)+(L131^2)+(L124^2)+(L117^2)+(L110^2)+(L103^2)+(L96^2))","v":58.957611891934704},{"$f":"M138+M131+M124+M117+M110+M103+M96","v":25},{"$f":"SQRT((N138^2)+(N131^2)+(N124^2)+(N117^2)+(N110^2)+(N103^2)+(N96^2))","v":59.974994789495398},{"$f":"O138+O131+O124+O117+O110+O103+O96","v":105},{"$f":"SQRT((P138^2)+(P131^2)+(P124^2)+(P117^2)+(P110^2)+(P103^2)+(P96^2))","v":92.72540105062906},{"$f":"Q138+Q131+Q124+Q117+Q110+Q103+Q96","v":253},{"$f":"SQRT((R138^2)+(R131^2)+(R124^2)+(R117^2)+(R110^2)+(R103^2)+(R96^2))","v":148.2329248176666},{"$f":"S138+S131+S124+S117+S110+S103+S96","v":2611},{"$f":"SQRT((T138^2)+(T131^2)+(T124^2)+(T117^2)+(T110^2)+(T103^2)+(T96^2))","v":430.18368169887617},{"$f":"U138+U131+U124+U117+U110+U103+U96","v":166},{"$f":"SQRT((V138^2)+(V131^2)+(V124^2)+(V117^2)+(V110^2)+(V103^2)+(V96^2))","v":77.878109889750149},{"$f":"W138+W131+W124+W117+W110+W103+W96","v":24},{"$f":"SQRT((X138^2)+(X131^2)+(X124^2)+(X117^2)+(X110^2)+(X103^2)+(X96^2))","v":64.91532946846992},{"$f":"Y138+Y131+Y124+Y117+Y110+Y103+Y96","v":22},{"$f":"SQRT((Z138^2)+(Z131^2)+(Z124^2)+(Z117^2)+(Z110^2)+(Z103^2)+(Z96^2))","v":54.808758424178883},{"$f":"AA138+AA131+AA124+AA117+AA110+AA103+AA96","v":7},{"$f":"SQRT((AB138^2)+(AB131^2)+(AB124^2)+(AB117^2)+(AB110^2)+(AB103^2)+(AB96^2))","v":61.71709649683789},{"$f":"AC138+AC131+AC124+AC117+AC110+AC103+AC96","v":169},{"$f":"SQRT((AD138^2)+(AD131^2)+(AD124^2)+(AD117^2)+(AD110^2)+(AD103^2)+(AD96^2))","v":119.30213744941874},{"$f":"AE138+AE131+AE124+AE117+AE110+AE103+AE96","v":1},{"$f":"SQRT((AF138^2)+(AF131^2)+(AF124^2)+(AF117^2)+(AF110^2)+(AF103^2)+(AF96^2))","v":62.385895841928885},{"$f":"AG138+AG131+AG124+AG117+AG110+AG103+AG96","v":14},{"$f":"SQRT((AH138^2)+(AH131^2)+(AH124^2)+(AH117^2)+(AH110^2)+(AH103^2)+(AH96^2))","v":59.983331017875294},{"$f":"AI138+AI131+AI124+AI117+AI110+AI103+AI96","v":29},{"$f":"SQRT((AJ138^2)+(AJ131^2)+(AJ124^2)+(AJ117^2)+(AJ110^2)+(AJ103^2)+(AJ96^2))","v":64.031242374328485},{"$f":"AK138+AK131+AK124+AK117+AK110+AK103+AK96","v":25},{"$f":"SQRT((AL138^2)+(AL131^2)+(AL124^2)+(AL117^2)+(AL110^2)+(AL103^2)+(AL96^2))","v":61.106464469808756},{"$f":"AM138+AM131+AM124+AM117+AM110+AM103+AM96","v":602},{"$f":"SQRT((AN138^2)+(AN131^2)+(AN124^2)+(AN117^2)+(AN110^2)+(AN103^2)+(AN96^2))","v":193.53294293220469},{"$f":"AO138+AO131+AO124+AO117+AO110+AO103+AO96","v":91},{"$f":"SQRT((AP138^2)+(AP131^2)+(AP124^2)+(AP117^2)+(AP110^2)+(AP103^2)+(AP96^2))","v":69.123078635141823},{"$f":"AQ138+AQ131+AQ124+AQ117+AQ110+AQ103+AQ96","v":361},{"$f":"SQRT((AR138^2)+(AR131^2)+(AR124^2)+(AR117^2)+(AR110^2)+(AR103^2)+(AR96^2))","v":155.83003561573102},{"$f":"AS138+AS131+AS124+AS117+AS110+AS103+AS96","v":51},{"$f":"SQRT((AT138^2)+(AT131^2)+(AT124^2)+(AT117^2)+(AT110^2)+(AT103^2)+(AT96^2))","v":68.912988616080199},{"$f":"AU138+AU131+AU124+AU117+AU110+AU103+AU96","v":326},{"$f":"SQRT((AV138^2)+(AV131^2)+(AV124^2)+(AV117^2)+(AV110^2)+(AV103^2)+(AV96^2))","v":131.87873217467629}]
[null,"35.0 percent or more",{"$f":"C139+C132+C125+C118+C111+C104+C97","v":40},{"$f":"SQRT((D139^2)+(D132^2)+(D125^2)+(D118^2)+(D111^2)+(D104^2)+(D97^2))","v":59.916608715780967},{"$f":"E139+E132+E125+E118+E111+E104+E97","v":82},{"$f":"SQRT((F139^2)+(F132^2)+(F125^2)+(F118^2)+(F111^2)+(F104^2)+(F97^2))","v":101.11379727811631},{"$f":"G139+G132+G125+G118+G111+G104+G97","v":42},{"$f":"SQRT((H139^2)+(H132^2)+(H125^2)+(H118^2)+(H111^2)+(H104^2)+(H97^2))","v":57.593402399927719},{"$f":"I139+I132+I125+I118+I111+I104+I97","v":34},{"$f":"SQRT((J139^2)+(J132^2)+(J125^2)+(J118^2)+(J111^2)+(J104^2)+(J97^2))","v":57.454329688892898},{"$f":"K139+K132+K125+K118+K111+K104+K97","v":6},{"$f":"SQRT((L139^2)+(L132^2)+(L125^2)+(L118^2)+(L111^2)+(L104^2)+(L97^2))","v":51.195702944680818},{"$f":"M139+M132+M125+M118+M111+M104+M97","v":3},{"$f":"SQRT((N139^2)+(N132^2)+(N125^2)+(N118^2)+(N111^2)+(N104^2)+(N97^2))","v":53.898051912847464},{"$f":"O139+O132+O125+O118+O111+O104+O97","v":92},{"$f":"SQRT((P139^2)+(P132^2)+(P125^2)+(P118^2)+(P111^2)+(P104^2)+(P97^2))","v":95.262794416288244},{"$f":"Q139+Q132+Q125+Q118+Q111+Q104+Q97","v":250},{"$f":"SQRT((R139^2)+(R132^2)+(R125^2)+(R118^2)+(R111^2)+(R104^2)+(R97^2))","v":155.44130725132234},{"$f":"S139+S132+S125+S118+S111+S104+S97","v":1433},{"$f":"SQRT((T139^2)+(T132^2)+(T125^2)+(T118^2)+(T111^2)+(T104^2)+(T97^2))","v":293.92345942438823},{"$f":"U139+U132+U125+U118+U111+U104+U97","v":149},{"$f":"SQRT((V139^2)+(V132^2)+(V125^2)+(V118^2)+(V111^2)+(V104^2)+(V97^2))","v":92.244241012650761},{"$f":"W139+W132+W125+W118+W111+W104+W97","v":11},{"$f":"SQRT((X139^2)+(X132^2)+(X125^2)+(X118^2)+(X111^2)+(X104^2)+(X97^2))","v":53.591044027897048},{"$f":"Y139+Y132+Y125+Y118+Y111+Y104+Y97","v":3},{"$f":"SQRT((Z139^2)+(Z132^2)+(Z125^2)+(Z118^2)+(Z111^2)+(Z104^2)+(Z97^2))","v":53.898051912847464},{"$f":"AA139+AA132+AA125+AA118+AA111+AA104+AA97","v":4},{"$f":"SQRT((AB139^2)+(AB132^2)+(AB125^2)+(AB118^2)+(AB111^2)+(AB104^2)+(AB97^2))","v":54.120236510939236},{"$f":"AC139+AC132+AC125+AC118+AC111+AC104+AC97","v":111},{"$f":"SQRT((AD139^2)+(AD132^2)+(AD125^2)+(AD118^2)+(AD111^2)+(AD104^2)+(AD97^2))","v":93.246983865431275},{"$f":"AE139+AE132+AE125+AE118+AE111+AE104+AE97","v":0},{"$f":"SQRT((AF139^2)+(AF132^2)+(AF125^2)+(AF118^2)+(AF111^2)+(AF104^2)+(AF97^2))","v":54.990908339470082},{"$f":"AG139+AG132+AG125+AG118+AG111+AG104+AG97","v":9},{"$f":"SQRT((AH139^2)+(AH132^2)+(AH125^2)+(AH118^2)+(AH111^2)+(AH104^2)+(AH97^2))","v":55.21775076911409},{"$f":"AI139+AI132+AI125+AI118+AI111+AI104+AI97","v":13},{"$f":"SQRT((AJ139^2)+(AJ132^2)+(AJ125^2)+(AJ118^2)+(AJ111^2)+(AJ104^2)+(AJ97^2))","v":50.378566871239997},{"$f":"AK139+AK132+AK125+AK118+AK111+AK104+AK97","v":2},{"$f":"SQRT((AL139^2)+(AL132^2)+(AL125^2)+(AL118^2)+(AL111^2)+(AL104^2)+(AL97^2))","v":53.749418601506754},{"$f":"AM139+AM132+AM125+AM118+AM111+AM104+AM97","v":434},{"$f":"SQRT((AN139^2)+(AN132^2)+(AN125^2)+(AN118^2)+(AN111^2)+(AN104^2)+(AN97^2))","v":219.82947936980608},{"$f":"AO139+AO132+AO125+AO118+AO111+AO104+AO97","v":95},{"$f":"SQRT((AP139^2)+(AP132^2)+(AP125^2)+(AP118^2)+(AP111^2)+(AP104^2)+(AP97^2))","v":70.851958335673402},{"$f":"AQ139+AQ132+AQ125+AQ118+AQ111+AQ104+AQ97","v":128},{"$f":"SQRT((AR139^2)+(AR132^2)+(AR125^2)+(AR118^2)+(AR111^2)+(AR104^2)+(AR97^2))","v":107.86102168995063},{"$f":"AS139+AS132+AS125+AS118+AS111+AS104+AS97","v":12},{"$f":"SQRT((AT139^2)+(AT132^2)+(AT125^2)+(AT118^2)+(AT111^2)+(AT104^2)+(AT97^2))","v":53.065996645686397},{"$f":"AU139+AU132+AU125+AU118+AU111+AU104+AU97","v":199},{"$f":"SQRT((AV139^2)+(AV132^2)+(AV125^2)+(AV118^2)+(AV111^2)+(AV104^2)+(AV97^2))","v":90.62560344626678}]
[null,"50.0 percent or more",{"$f":"C140+C133+C126+C119+C112+C105+C98","v":14},{"$f":"SQRT((D140^2)+(D133^2)+(D126^2)+(D119^2)+(D112^2)+(D105^2)+(D98^2))","v":29.410882339705484},{"$f":"E140+E133+E126+E119+E112+E105+E98","v":34},{"$f":"SQRT((F140^2)+(F133^2)+(F126^2)+(F119^2)+(F112^2)+(F105^2)+(F98^2))","v":56.284989117881153},{"$f":"G140+G133+G126+G119+G112+G105+G98","v":25},{"$f":"SQRT((H140^2)+(H133^2)+(H126^2)+(H119^2)+(H112^2)+(H105^2)+(H98^2))","v":35.552777669262355},{"$f":"I140+I133+I126+I119+I112+I105+I98","v":18},{"$f":"SQRT((J140^2)+(J133^2)+(J126^2)+(J119^2)+(J112^2)+(J105^2)+(J98^2))","v":30.740852297878796},{"$f":"K140+K133+K126+K119+K112+K105+K98","v":3},{"$f":"SQRT((L140^2)+(L133^2)+(L126^2)+(L119^2)+(L112^2)+(L105^2)+(L98^2))","v":27.073972741361768},{"$f":"M140+M133+M126+M119+M112+M105+M98","v":3},{"$f":"SQRT((N140^2)+(N133^2)+(N126^2)+(N119^2)+(N112^2)+(N105^2)+(N98^2))","v":29.816103031751148},{"$f":"O140+O133+O126+O119+O112+O105+O98","v":63},{"$f":"SQRT((P140^2)+(P133^2)+(P126^2)+(P119^2)+(P112^2)+(P105^2)+(P98^2))","v":78.854296014865284},{"$f":"Q140+Q133+Q126+Q119+Q112+Q105+Q98","v":81},{"$f":"SQRT((R140^2)+(R133^2)+(R126^2)+(R119^2)+(R112^2)+(R105^2)+(R98^2))","v":65.207361547604421},{"$f":"S140+S133+S126+S119+S112+S105+S98","v":760},{"$f":"SQRT((T140^2)+(T133^2)+(T126^2)+(T119^2)+(T112^2)+(T105^2)+(T98^2))","v":211.25340233946528},{"$f":"U140+U133+U126+U119+U112+U105+U98","v":101},{"$f":"SQRT((V140^2)+(V133^2)+(V126^2)+(V119^2)+(V112^2)+(V105^2)+(V98^2))","v":76.432977176085458},{"$f":"W140+W133+W126+W119+W112+W105+W98","v":4},{"$f":"SQRT((X140^2)+(X133^2)+(X126^2)+(X119^2)+(X112^2)+(X105^2)+(X98^2))","v":30},{"$f":"Y140+Y133+Y126+Y119+Y112+Y105+Y98","v":3},{"$f":"SQRT((Z140^2)+(Z133^2)+(Z126^2)+(Z119^2)+(Z112^2)+(Z105^2)+(Z98^2))","v":29.816103031751148},{"$f":"AA140+AA133+AA126+AA119+AA112+AA105+AA98","v":0},{"$f":"SQRT((AB140^2)+(AB133^2)+(AB126^2)+(AB119^2)+(AB112^2)+(AB105^2)+(AB98^2))","v":31.749015732775089},{"$f":"AC140+AC133+AC126+AC119+AC112+AC105+AC98","v":81},{"$f":"SQRT((AD140^2)+(AD133^2)+(AD126^2)+(AD119^2)+(AD112^2)+(AD105^2)+(AD98^2))","v":70.384657419071104},{"$f":"AE140+AE133+AE126+AE119+AE112+AE105+AE98","v":0},{"$f":"SQRT((AF140^2)+(AF133^2)+(AF126^2)+(AF119^2)+(AF112^2)+(AF105^2)+(AF98^2))","v":31.749015732775089},{"$f":"AG140+AG133+AG126+AG119+AG112+AG105+AG98","v":0},{"$f":"SQRT((AH140^2)+(AH133^2)+(AH126^2)+(AH119^2)+(AH112^2)+(AH105^2)+(AH98^2))","v":31.749015732775089},{"$f":"AI140+AI133+AI126+AI119+AI112+AI105+AI98","v":5},{"$f":"SQRT((AJ140^2)+(AJ133^2)+(AJ126^2)+(AJ119^2)+(AJ112^2)+(AJ105^2)+(AJ98^2))","v":30.215889859476256},{"$f":"AK140+AK133+AK126+AK119+AK112+AK105+AK98","v":2},{"$f":"SQRT((AL140^2)+(AL133^2)+(AL126^2)+(AL119^2)+(AL112^2)+(AL105^2)+(AL98^2))","v":29.546573405388315},{"$f":"AM140+AM133+AM126+AM119+AM112+AM105+AM98","v":273},{"$f":"SQRT((AN140^2)+(AN133^2)+(AN126^2)+(AN119^2)+(AN112^2)+(AN105^2)+(AN98^2))","v":180.69034285207385},{"$f":"AO140+AO133+AO126+AO119+AO112+AO105+AO98","v":11},{"$f":"SQRT((AP140^2)+(AP133^2)+(AP126^2)+(AP119^2)+(AP112^2)+(AP105^2)+(AP98^2))","v":29.154759474226502},{"$f":"AQ140+AQ133+AQ126+AQ119+AQ112+AQ105+AQ98","v":116},{"$f":"SQRT((AR140^2)+(AR133^2)+(AR126^2)+(AR119^2)+(AR112^2)+(AR105^2)+(AR98^2))","v":98.595131725658746},{"$f":"AS140+AS133+AS126+AS119+AS112+AS105+AS98","v":9},{"$f":"SQRT((AT140^2)+(AT133^2)+(AT126^2)+(AT119^2)+(AT112^2)+(AT105^2)+(AT98^2))","v":30.463092423455635},{"$f":"AU140+AU133+AU126+AU119+AU112+AU105+AU98","v":98},{"$f":"SQRT((AV140^2)+(AV133^2)+(AV126^2)+(AV119^2)+(AV112^2)+(AV105^2)+(AV98^2))","v":64.202803677098089}]
[null,"Not Computed",{"$f":"C140+C134+C127+C120+C113+C106+C99","v":45},{"$f":"SQRT((D140^2)+(D134^2)+(D127^2)+(D120^2)+(D113^2)+(D106^2)+(D99^2))","v":45},{"$f":"E140+E134+E127+E120+E113+E106+E99","v":59},{"$f":"SQRT((F140^2)+(F134^2)+(F127^2)+(F120^2)+(F113^2)+(F106^2)+(F99^2))","v":69.354163537598808},{"$f":"G140+G134+G127+G120+G113+G106+G99","v":26},{"$f":"SQRT((H140^2)+(H134^2)+(H127^2)+(H120^2)+(H113^2)+(H106^2)+(H99^2))","v":26.019223662515376},{"$f":"I140+I134+I127+I120+I113+I106+I99","v":7},{"$f":"SQRT((J140^2)+(J134^2)+(J127^2)+(J120^2)+(J113^2)+(J106^2)+(J99^2))","v":27.784887978899608},{"$f":"K140+K134+K127+K120+K113+K106+K99","v":0},{"$f":"SQRT((L140^2)+(L134^2)+(L127^2)+(L120^2)+(L113^2)+(L106^2)+(L99^2))","v":31.749015732775089},{"$f":"M140+M134+M127+M120+M113+M106+M99","v":0},{"$f":"SQRT((N140^2)+(N134^2)+(N127^2)+(N120^2)+(N113^2)+(N106^2)+(N99^2))","v":31.749015732775089},{"$f":"O140+O134+O127+O120+O113+O106+O99","v":44},{"$f":"SQRT((P140^2)+(P134^2)+(P127^2)+(P120^2)+(P113^2)+(P106^2)+(P99^2))","v":68.614867193633771},{"$f":"Q140+Q134+Q127+Q120+Q113+Q106+Q99","v":0},{"$f":"SQRT((R140^2)+(R134^2)+(R127^2)+(R120^2)+(R113^2)+(R106^2)+(R99^2))","v":44.977772288098038},{"$f":"S140+S134+S127+S120+S113+S106+S99","v":144},{"$f":"SQRT((T140^2)+(T134^2)+(T127^2)+(T120^2)+(T113^2)+(T106^2)+(T99^2))","v":111.59749101122301},{"$f":"U140+U134+U127+U120+U113+U106+U99","v":25},{"$f":"SQRT((V140^2)+(V134^2)+(V127^2)+(V120^2)+(V113^2)+(V106^2)+(V99^2))","v":38.013155617496423},{"$f":"W140+W134+W127+W120+W113+W106+W99","v":10},{"$f":"SQRT((X140^2)+(X134^2)+(X127^2)+(X120^2)+(X113^2)+(X106^2)+(X99^2))","v":25.199206336708304},{"$f":"Y140+Y134+Y127+Y120+Y113+Y106+Y99","v":0},{"$f":"SQRT((Z140^2)+(Z134^2)+(Z127^2)+(Z120^2)+(Z113^2)+(Z106^2)+(Z99^2))","v":31.749015732775089},{"$f":"AA140+AA134+AA127+AA120+AA113+AA106+AA99","v":3},{"$f":"SQRT((AB140^2)+(AB134^2)+(AB127^2)+(AB120^2)+(AB113^2)+(AB106^2)+(AB99^2))","v":29.816103031751148},{"$f":"AC140+AC134+AC127+AC120+AC113+AC106+AC99","v":15},{"$f":"SQRT((AD140^2)+(AD134^2)+(AD127^2)+(AD120^2)+(AD113^2)+(AD106^2)+(AD99^2))","v":41.725292090050132},{"$f":"AE140+AE134+AE127+AE120+AE113+AE106+AE99","v":0},{"$f":"SQRT((AF140^2)+(AF134^2)+(AF127^2)+(AF120^2)+(AF113^2)+(AF106^2)+(AF99^2))","v":31.749015732775089},{"$f":"AG140+AG134+AG127+AG120+AG113+AG106+AG99","v":9},{"$f":"SQRT((AH140^2)+(AH134^2)+(AH127^2)+(AH120^2)+(AH113^2)+(AH106^2)+(AH99^2))","v":28.583211855912904},{"$f":"AI140+AI134+AI127+AI120+AI113+AI106+AI99","v":0},{"$f":"SQRT((AJ140^2)+(AJ134^2)+(AJ127^2)+(AJ120^2)+(AJ113^2)+(AJ106^2)+(AJ99^2))","v":31.749015732775089},{"$f":"AK140+AK134+AK127+AK120+AK113+AK106+AK99","v":4},{"$f":"SQRT((AL140^2)+(AL134^2)+(AL127^2)+(AL120^2)+(AL113^2)+(AL106^2)+(AL99^2))","v":27.166155414412248},{"$f":"AM140+AM134+AM127+AM120+AM113+AM106+AM99","v":113},{"$f":"SQRT((AN140^2)+(AN134^2)+(AN127^2)+(AN120^2)+(AN113^2)+(AN106^2)+(AN99^2))","v":104.72344532147517},{"$f":"AO140+AO134+AO127+AO120+AO113+AO106+AO99","v":11},{"$f":"SQRT((AP140^2)+(AP134^2)+(AP127^2)+(AP120^2)+(AP113^2)+(AP106^2)+(AP99^2))","v":33.466401061363023},{"$f":"AQ140+AQ134+AQ127+AQ120+AQ113+AQ106+AQ99","v":34},{"$f":"SQRT((AR140^2)+(AR134^2)+(AR127^2)+(AR120^2)+(AR113^2)+(AR106^2)+(AR99^2))","v":45.552167895721496},{"$f":"AS140+AS134+AS127+AS120+AS113+AS106+AS99","v":3},{"$f":"SQRT((AT140^2)+(AT134^2)+(AT127^2)+(AT120^2)+(AT113^2)+(AT106^2)+(AT99^2))","v":29.816103031751148},{"$f":"AU140+AU134+AU127+AU120+AU113+AU106+AU99","v":43},{"$f":"SQRT((AV140^2)+(AV134^2)+(AV127^2)+(AV120^2)+(AV113^2)+(AV106^2)+(AV99^2))","v":49.497474683058329}]
[]
[]
[]
[]
[]
[]
[]
[]
[]
[]
[]
[null,"B25074. HOUSEHOLD INCOME BY GROSS RENT AS A PERCENTAGE OF HOUSEHOLD INCOME IN THE PAST 12 MONTHS"]
[null,"Universe:  RENTER-OCCUPIED HOUSING UNITS"]
[null,"Data Set: 2013-2017 American Community Survey 5-Year Estimates",null,null,null,null,{"$f":"'RentalHousingCost-Prior5Yr'!D41","v":"Income in 2017 Inflation Adjusted Dollars"}]
[]
[null,null,"Alstead",null,"Chesterfield",null,"Dublin",null,"Fitzwilliam",null,"Gilsum",null,"Harrisville",null,"Hinsdale",null,"Jaffrey",null,"Keene",null,"Marlborough",null,"Marlow",null,"Nelson",null,"Richmond",null,"Rindge",null,"Roxbury",null,"Stoddard",null,"Sullivan",null,"Surry",null,"Swanzey",null,"Troy",null,"Walpole",null,"Westmoreland",null,"Winchester"]
[null," ","Estimate","Margin of Error","Estimate","Margin of Error","Estimate","Margin of Error","Estimate","Margin of Error","Estimate","Margin of Error","Estimate","Margin of Error","Estimate","Margin of Error","Estimate","Margin of Error","Estimate","Margin of Error","Estimate","Margin of Error","Estimate","Margin of Error","Estimate","Margin of Error","Estimate","Margin of Error","Estimate","Margin of Error","Estimate","Margin of Error","Estimate","Margin of Error","Estimate","Margin of Error","Estimate","Margin of Error","Estimate","Margin of Error","Estimate","Margin of Error","Estimate","Margin of Error","Estimate","Margin of Error","Estimate","Margin of Error"]
[null,"Total:",224,62,225,122,122,41,129,48,26,15,63,29,433,127,4319,404,4499,341,296,85,27,13,40,15,48,30,400,99,12,9,44,26,61,23,30,18,704,165,225,63,330,108,54,28,493,124]
[null,"Less than $10,000:",36,28,49,80,6,6,6,8,7,6,8,12,51,56,581,170,575,203,5,9,2,5,4,4,0,11,75,55,0,11,0,11,0,11,3,5,73,62,0,11,58,65,9,14,48,55]
[null,"Less than 20.0 percent",0,11,0,11,0,11,0,11,0,11,0,11,0,11,16,20,17,18,0,11,0,11,0,11,0,11,0,16,0,11,0,11,0,11,0,11,0,16,0,11,0,11,0,11,0,11]
[null,"20.0 to 24.9 percent",0,11,0,11,0,11,0,11,0,11,0,11,0,11,0,21,0,20,0,11,0,11,0,11,0,11,0,16,0,11,0,11,0,11,0,11,0,16,0,11,0,11,0,11,0,11]
[null,"25.0 to 29.9 percent",0,11,0,11,0,11,0,11,0,11,0,11,42,54,63,81,76,80,0,11,0,11,0,11,0,11,0,16,0,11,0,11,0,11,0,11,30,50,0,11,0,11,0,11,0,11]
[null,"30.0 to 34.9 percent",0,11,0,11,0,11,0,11,0,11,0,11,0,11,0,21,0,20,0,11,0,11,0,11,0,11,0,16,0,11,0,11,0,11,0,11,0,16,0,11,0,11,0,11,0,11]
[null,"35.0 to 39.9 percent",0,11,0,11,0,11,0,11,0,11,0,11,0,11,0,21,0,20,0,11,0,11,0,11,0,11,0,16,0,11,0,11,0,11,0,11,0,16,0,11,0,11,0,11,0,11]
[null,"40.0 to 49.9 percent",0,11,0,11,0,11,0,11,0,11,0,11,0,11,17,23,14,17,0,11,0,11,0,11,0,11,0,16,0,11,0,11,0,11,0,11,0,16,0,11,0,11,0,11,0,11]
[null,"50.0 percent or more",27,29,49,80,3,4,6,8,2,2,8,12,0,11,453,151,428,170,5,9,0,11,2,3,0,11,65,53,0,11,0,11,0,11,0,11,13,22,0,11,49,63,9,14,48,55]
[null,"Not computed",9,8,0,11,3,4,0,11,5,6,0,11,9,16,32,35,40,39,0,11,2,5,2,3,0,11,10,16,0,11,0,11,0,11,3,5,30,34,0,11,9,15,0,11,0,11]
[null,"$10,000 to $19,999:",33,25,0,11,23,23,0,11,4,5,11,14,83,67,685,159,827,198,42,28,2,3,3,4,3,4,72,62,2,3,0,11,5,8,5,7,176,105,38,36,27,24,8,13,71,64]
[null,"Less than 20.0 percent",0,11,0,11,0,11,0,11,0,11,0,11,0,11,39,37,21,24,0,11,0,11,0,11,0,11,0,16,0,11,0,11,0,11,0,11,15,26,17,27,0,11,0,11,0,11]
[null,"20.0 to 24.9 percent",0,11,0,11,0,11,0,11,0,11,0,11,0,11,62,42,73,47,0,11,0,11,0,11,0,11,0,16,0,11,0,11,0,11,0,11,0,16,0,11,0,11,0,11,0,11]
[null,"25.0 to 29.9 percent",5,8,0,11,0,11,0,11,0,11,0,11,9,13,72,38,96,54,18,30,0,11,0,11,0,11,0,16,0,11,0,11,0,11,0,11,52,69,15,23,0,11,0,11,0,11]
[null,"30.0 to 34.9 percent",0,11,0,11,0,11,0,11,2,3,0,11,10,15,89,55,84,55,0,11,0,11,0,11,0,11,0,16,0,11,0,11,0,11,0,11,12,20,0,11,0,11,0,11,4,8]
[null,"35.0 to 39.9 percent",16,26,0,11,0,11,0,11,0,11,0,11,0,11,66,55,53,50,0,11,0,11,0,11,0,11,0,16,0,11,0,11,0,11,0,11,8,13,0,11,7,11,0,11,0,11]
[null,"40.0 to 49.9 percent",0,11,0,11,10,16,0,11,0,11,0,11,0,11,10,17,21,27,10,11,0,11,0,11,0,11,0,16,0,11,0,11,0,11,0,11,0,16,0,11,0,11,0,11,0,11]
[null,"50.0 percent or more",8,8,0,11,10,15,0,11,2,3,11,14,12,18,330,121,460,164,14,13,2,3,3,4,0,11,72,62,0,11,0,11,5,8,5,7,89,81,0,11,20,20,8,13,60,62]
[null,"Not computed",4,6,0,11,3,6,0,11,0,11,0,11,52,60,17,27,19,30,0,11,0,11,0,11,3,4,0,16,2,3,0,11,0,11,0,11,0,16,6,9,0,11,0,11,7,12]
[null,"$20,000 to $34,999:",54,37,57,68,29,20,35,31,3,6,3,4,149,75,1104,259,1054,239,119,64,2,4,18,9,9,14,83,35,4,7,9,14,10,11,0,11,165,93,31,27,18,20,5,6,144,81]
[null,"Less than 20.0 percent",21,30,0,11,0,11,0,11,0,11,0,11,0,11,86,85,82,80,6,9,0,11,2,4,0,11,0,16,0,11,0,11,0,11,0,11,0,16,5,7,0,11,0,11,18,17]
[null,"20.0 to 24.9 percent",0,11,0,11,0,11,0,11,0,11,0,11,25,39,24,29,30,34,18,22,0,11,0,11,0,11,10,15,0,11,0,11,0,11,0,11,0,16,0,11,0,11,3,5,34,50]
[null,"25.0 to 29.9 percent",0,11,0,11,2,4,0,11,0,11,0,11,42,52,68,45,89,71,9,10,0,11,3,4,0,11,5,9,0,11,0,11,0,11,0,11,0,16,0,11,9,13,0,11,0,11]
[null,"30.0 to 34.9 percent",12,11,0,11,3,5,12,18,0,11,0,11,49,58,140,95,156,104,19,23,0,11,0,11,0,11,20,22,4,7,0,11,2,3,0,11,0,16,0,11,0,11,0,11,27,28]
[null,"35.0 to 39.9 percent",11,16,57,68,0,11,4,8,0,11,0,11,26,42,227,133,187,103,6,9,2,4,0,11,0,11,26,30,0,11,0,11,0,11,0,11,0,16,0,11,0,11,0,11,48,54]
[null,"40.0 to 49.9 percent",0,11,0,11,0,11,5,7,2,3,0,11,0,11,274,151,232,137,42,40,0,11,2,3,0,11,14,16,0,11,9,14,2,2,0,11,68,57,13,20,9,15,0,11,17,28]
[null,"50.0 percent or more",0,11,0,11,13,16,14,23,1,4,0,11,7,11,267,130,270,143,19,32,0,11,11,8,9,14,8,12,0,11,0,11,0,11,0,11,68,71,13,14,0,11,2,4,0,11]
[null,"Not computed",10,15,0,11,11,12,0,11,0,11,3,4,0,11,18,20,8,14,0,11,0,11,0,11,0,11,0,16,0,11,0,11,6,11,0,11,29,32,0,11,0,11,0,11,0,11]
[null,"$35,000 to $49,999:",35,19,28,32,8,8,39,30,2,3,8,6,0,11,480,144,488,163,77,56,15,11,5,5,6,11,47,36,1,3,11,13,22,13,2,2,149,112,33,31,120,69,0,11,22,26]
[null,"Less than 20.0 percent",5,6,12,20,2,4,0,11,0,11,0,11,0,11,46,41,39,38,0,11,7,11,5,5,0,11,0,16,0,11,0,11,0,11,0,11,44,68,6,9,8,12,0,11,0,11]
[null,"20.0 to 24.9 percent",9,10,0,11,0,11,20,25,0,11,0,11,0,11,99,68,80,50,17,27,0,11,0,11,0,11,15,17,0,11,0,11,0,11,0,11,12,19,0,11,66,50,0,11,10,16]
[null,"25.0 to 29.9 percent",0,11,0,11,0,11,0,11,0,11,3,4,0,11,132,100,160,120,44,42,0,11,0,11,0,11,8,12,0,11,0,11,12,14,2,2,45,66,27,30,46,44,0,11,0,11]
[null,"30.0 to 34.9 percent",0,11,16,23,0,11,0,11,2,3,2,5,0,11,118,70,77,56,0,11,2,3,0,11,0,11,0,16,0,11,0,11,0,11,0,11,0,16,0,11,0,11,0,11,0,11]
[null,"35.0 to 39.9 percent",5,7,0,11,0,11,0,11,0,11,0,11,0,11,49,40,72,46,16,24,0,11,0,11,0,11,14,22,0,11,0,11,4,4,0,11,0,16,0,11,0,11,0,11,0,11]
[null,"40.0 to 49.9 percent",11,11,0,11,0,11,5,7,0,11,3,4,0,11,25,27,24,27,0,11,0,11,0,11,6,11,10,17,1,3,3,4,6,10,0,11,38,58,0,11,0,11,0,11,0,11]
[null,"50.0 percent or more",0,11,0,11,3,5,0,11,0,11,0,11,0,11,11,17,36,39,0,11,0,11,0,11,0,11,0,16,0,11,8,12,0,11,0,11,0,16,0,11,0,11,0,11,0,11]
[null,"Not computed",5,7,0,11,3,4,14,21,0,11,0,11,0,11,0,21,0,20,0,11,6,9,0,11,0,11,0,16,0,11,0,11,0,11,0,11,10,19,0,11,0,11,0,11,12,20]
[null,"$50,000 to $74,999:",53,33,44,52,47,27,27,25,6,6,10,8,112,86,1020,225,950,203,43,35,4,4,4,4,6,8,56,42,5,4,17,16,12,10,13,9,85,54,94,46,44,44,19,16,145,73]
[null,"Less than 20.0 percent",26,24,31,49,20,20,0,11,3,4,0,11,40,46,290,162,259,117,18,23,0,11,0,11,0,11,19,29,2,3,4,5,0,11,2,4,0,16,74,44,26,41,9,11,23,25]
[null,"20.0 to 24.9 percent",0,11,0,11,3,4,20,23,3,6,2,3,0,11,199,87,216,87,12,14,2,3,2,3,1,3,0,16,0,11,11,15,10,10,7,7,50,40,5,7,18,20,6,7,65,58]
[null,"25.0 to 29.9 percent",0,11,0,11,8,10,0,11,0,11,4,5,50,69,372,153,268,104,0,11,0,11,0,11,5,7,0,16,1,3,0,11,2,3,2,3,13,20,9,11,0,11,0,11,22,34]
[null,"30.0 to 34.9 percent",14,21,0,11,3,4,7,9,0,11,0,11,10,15,95,85,128,95,0,11,2,3,0,11,0,11,24,26,2,3,0,11,0,11,2,3,22,35,0,11,0,11,0,11,19,30]
[null,"35.0 to 39.9 percent",0,11,0,11,0,11,0,11,0,11,0,11,0,11,19,23,18,21,0,11,0,11,0,11,0,11,6,10,0,11,0,11,0,11,0,11,0,16,6,9,0,11,4,6,0,11]
[null,"40.0 to 49.9 percent",0,11,0,11,0,11,0,11,0,11,0,11,0,11,11,16,45,70,0,11,0,11,2,4,0,11,0,16,0,11,0,11,0,11,0,11,0,16,0,11,0,11,0,11,0,11]
[null,"50.0 percent or more",0,11,0,11,0,11,0,11,0,11,0,11,0,11,18,29,16,24,0,11,0,11,0,11,0,11,0,16,0,11,0,11,0,11,0,11,0,16,0,11,0,11,0,11,0,11]
[null,"Not computed",13,11,13,20,13,14,0,11,0,11,4,6,12,18,16,26,0,20,13,22,0,11,0,11,0,11,7,11,0,11,2,5,0,11,0,11,0,16,0,11,0,11,0,11,16,17]
[null,"$75,000 to $99,999:",0,11,18,28,9,8,4,7,2,3,13,13,38,33,345,157,400,136,10,11,0,11,3,4,16,18,26,25,0,11,7,7,12,13,6,10,20,25,24,21,46,37,10,9,23,25]
[null,"Less than 20.0 percent",0,11,18,28,0,11,0,11,0,11,10,12,14,22,223,117,231,110,10,11,0,11,3,4,16,18,0,16,0,11,7,7,12,13,0,11,8,15,14,18,33,34,0,11,12,19]
[null,"20.0 to 24.9 percent",0,11,0,11,3,5,0,11,0,11,3,6,24,26,57,48,93,70,0,11,0,11,0,11,0,11,19,22,0,11,0,11,0,11,6,10,0,16,10,10,5,10,5,6,11,17]
[null,"25.0 to 29.9 percent",0,11,0,11,0,11,4,7,0,11,0,11,0,11,58,76,57,78,0,11,0,11,0,11,0,11,7,11,0,11,0,11,0,11,0,11,0,16,0,11,0,11,5,7,0,11]
[null,"30.0 to 34.9 percent",0,11,0,11,3,4,0,11,0,11,0,11,0,11,0,21,0,20,0,11,0,11,0,11,0,11,0,16,0,11,0,11,0,11,0,11,0,16,0,11,0,11,0,11,0,11]
[null,"35.0 to 39.9 percent",0,11,0,11,0,11,0,11,0,11,0,11,0,11,0,21,13,21,0,11,0,11,0,11,0,11,0,16,0,11,0,11,0,11,0,11,0,16,0,11,0,11,0,11,0,11]
[null,"40.0 to 49.9 percent",0,11,0,11,0,11,0,11,0,11,0,11,0,11,0,21,0,20,0,11,0,11,0,11,0,11,0,16,0,11,0,11,0,11,0,11,0,16,0,11,0,11,0,11,0,11]
[null,"50.0 percent or more",0,11,0,11,0,11,0,11,0,11,0,11,0,11,7,12,6,11,0,11,0,11,0,11,0,11,0,16,0,11,0,11,0,11,0,11,0,16,0,11,0,11,0,11,0,11]
[null,"Not computed",0,11,0,11,3,4,0,11,2,3,0,11,0,11,0,21,0,20,0,11,0,11,0,11,0,11,0,16,0,11,0,11,0,11,0,11,12,19,0,11,8,12,0,11,0,11]
[null,"$100,000 or more:",13,15,29,37,0,11,18,15,2,3,10,16,0,11,104,50,205,115,0,11,2,4,3,4,8,8,41,41,0,11,0,11,0,11,1,3,36,32,5,7,17,17,3,5,40,64]
[null,"Less than 20.0 percent",9,14,29,37,0,11,18,15,0,11,10,16,0,11,79,46,184,111,0,11,2,4,3,4,3,4,35,39,0,11,0,11,0,11,1,3,20,25,5,7,8,11,0,11,40,64]
[null,"20.0 to 24.9 percent",0,11,0,11,0,11,0,11,0,11,0,11,0,11,20,26,12,19,0,11,0,11,0,11,0,11,0,16,0,11,0,11,0,11,0,11,0,16,0,11,0,11,0,11,0,11]
[null,"25.0 to 29.9 percent",0,11,0,11,0,11,0,11,0,11,0,11,0,11,0,21,0,20,0,11,0,11,0,11,0,11,0,16,0,11,0,11,0,11,0,11,0,16,0,11,0,11,0,11,0,11]
[null,"30.0 to 34.9 percent",0,11,0,11,0,11,0,11,0,11,0,11,0,11,0,21,0,20,0,11,0,11,0,11,0,11,0,16,0,11,0,11,0,11,0,11,0,16,0,11,0,11,0,11,0,11]
[null,"35.0 to 39.9 percent",0,11,0,11,0,11,0,11,0,11,0,11,0,11,0,21,0,20,0,11,0,11,0,11,0,11,0,16,0,11,0,11,0,11,0,11,0,16,0,11,0,11,0,11,0,11]
[null,"40.0 to 49.9 percent",0,11,0,11,0,11,0,11,0,11,0,11,0,11,0,21,0,20,0,11,0,11,0,11,0,11,0,16,0,11,0,11,0,11,0,11,0,16,0,11,0,11,0,11,0,11]
[null,"50.0 percent or more",0,11,0,11,0,11,0,11,0,11,0,11,0,11,0,21,0,20,0,11,0,11,0,11,0,11,0,16,0,11,0,11,0,11,0,11,0,16,0,11,0,11,0,11,0,11]
[null,"Not computed",4,6,0,11,0,11,0,11,2,3,0,11,0,11,5,9,9,14,0,11,0,11,0,11,5,7,6,11,0,11,0,11,0,11,0,11,16,31,0,11,9,13,3,5,0,11]
[]
[]
[]
[]
[]
[]
[]
[]
[]
[]
[]
[]
[]
[]
[]
[null,"Calculated B25074. HOUSEHOLD INCOME BY GROSS RENT AS A PERCENTAGE OF HOUSEHOLD INCOME IN THE PAST 12 MONTHS"]
[null,"Universe:  RENTER-OCCUPIED HOUSING UNITS"]
[null,{"$f":"B170","v":"Data Set: 2013-2017 American Community Survey 5-Year Estimates"}]
[]
[null,null,"Alstead",null,"Chesterfield",null,"Dublin",null,"Fitzwilliam",null,"Gilsum",null,"Harrisville",null,"Hinsdale",null,"Jaffrey",null,"Keene",null,"Marlborough",null,"Marlow",null,"Nelson",null,"Richmond",null,"Rindge",null,"Roxbury",null,"Stoddard",null,"Sullivan",null,"Surry",null,"Swanzey",null,"Troy",null,"Walpole",null,"Westmoreland",null,"Winchester"]
[null," ","Estimate","Margin of Error","Estimate","Margin of Error","Estimate","Margin of Error","Estimate","Margin of Error","Estimate","Margin of Error","Estimate","Margin of Error","Estimate","Margin of Error","Estimate","Margin of Error","Estimate","Margin of Error","Estimate","Margin of Error","Estimate","Margin of Error","Estimate","Margin of Error","Estimate","Margin of Error","Estimate","Margin of Error","Estimate","Margin of Error","Estimate","Margin of Error","Estimate","Margin of Error","Estimate","Margin of Error","Estimate","Margin of Error","Estimate","Margin of Error","Estimate","Margin of Error","Estimate","Margin of Error","Estimate","Margin of Error"]
[null,"Total:",{"$f":"C174","v":224},62,225,122,122,41,129,48,26,15,63,29,433,127,4319,404,4499,341,296,85,27,13,40,15,48,30,400,99,12,9,44,26,61,23,30,18,704,165,{"$f":"AO174","v":225},63,330,108,54,28,493,124]
[null,"Less than $10,000:",36,28,49,80,6,6,6,8,7,6,8,12,51,56,581,170,575,203,5,9,2,5,4,4,0,11,75,55,0,11,0,11,0,11,3,5,73,62,0,11,58,65,9,14,48,55]
[null,"Less than 30.0 percent",{"$f":"C176+C177+C178","v":0},{"$f":"SQRT((D176^2)+(D177^2)+(D178^2))","v":19.05255888325765},{"$f":"E176+E177+E178","v":0},{"$f":"SQRT((F176^2)+(F177^2)+(F178^2))","v":19.05255888325765},{"$f":"G176+G177+G178","v":0},{"$f":"SQRT((H176^2)+(H177^2)+(H178^2))","v":19.05255888325765},{"$f":"I176+I177+I178","v":0},{"$f":"SQRT((J176^2)+(J177^2)+(J178^2))","v":19.05255888325765},{"$f":"K176+K177+K178","v":0},{"$f":"SQRT((L176^2)+(L177^2)+(L178^2))","v":19.05255888325765},{"$f":"M176+M177+M178","v":0},{"$f":"SQRT((N176^2)+(N177^2)+(N178^2))","v":19.05255888325765},{"$f":"O176+O177+O178","v":42},{"$f":"SQRT((P176^2)+(P177^2)+(P178^2))","v":56.196085272908469},{"$f":"Q176+Q177+Q178","v":79},{"$f":"SQRT((R176^2)+(R177^2)+(R178^2))","v":86.034876648949762},{"$f":"S176+S177+S178","v":93},{"$f":"SQRT((T176^2)+(T177^2)+(T178^2))","v":84.403791384036765},{"$f":"U176+U177+U178","v":0},{"$f":"SQRT((V176^2)+(V177^2)+(V178^2))","v":19.05255888325765},{"$f":"W176+W177+W178","v":0},{"$f":"SQRT((X176^2)+(X177^2)+(X178^2))","v":19.05255888325765},{"$f":"Y176+Y177+Y178","v":0},{"$f":"SQRT((Z176^2)+(Z177^2)+(Z178^2))","v":19.05255888325765},{"$f":"AA176+AA177+AA178","v":0},{"$f":"SQRT((AB176^2)+(AB177^2)+(AB178^2))","v":19.05255888325765},{"$f":"AC176+AC177+AC178","v":0},{"$f":"SQRT((AD176^2)+(AD177^2)+(AD178^2))","v":27.712812921102035},{"$f":"AE176+AE177+AE178","v":0},{"$f":"SQRT((AF176^2)+(AF177^2)+(AF178^2))","v":19.05255888325765},{"$f":"AG176+AG177+AG178","v":0},{"$f":"SQRT((AH176^2)+(AH177^2)+(AH178^2))","v":19.05255888325765},{"$f":"AI176+AI177+AI178","v":0},{"$f":"SQRT((AJ176^2)+(AJ177^2)+(AJ178^2))","v":19.05255888325765},{"$f":"AK176+AK177+AK178","v":0},{"$f":"SQRT((AL176^2)+(AL177^2)+(AL178^2))","v":19.05255888325765},{"$f":"AM176+AM177+AM178","v":30},{"$f":"SQRT((AN176^2)+(AN177^2)+(AN178^2))","v":54.881690936048976},{"$f":"AO176+AO177+AO178","v":0},{"$f":"SQRT((AP176^2)+(AP177^2)+(AP178^2))","v":19.05255888325765},{"$f":"AQ176+AQ177+AQ178","v":0},{"$f":"SQRT((AR176^2)+(AR177^2)+(AR178^2))","v":19.05255888325765},{"$f":"AS176+AS177+AS178","v":0},{"$f":"SQRT((AT176^2)+(AT177^2)+(AT178^2))","v":19.05255888325765},{"$f":"AU176+AU177+AU178","v":0},{"$f":"SQRT((AV176^2)+(AV177^2)+(AV178^2))","v":19.05255888325765}]
[null,"More than 30.0 percent",{"$f":"C179+C180+C181+C182","v":27},{"$f":"SQRT((D179^2)+(D180^2)+(D181^2)+(D182^2))","v":34.698703145794944},{"$f":"E179+E180+E181+E182","v":49},{"$f":"SQRT((F179^2)+(F180^2)+(F181^2)+(F182^2))","v":82.237461050302372},{"$f":"G179+G180+G181+G182","v":3},{"$f":"SQRT((H179^2)+(H180^2)+(H181^2)+(H182^2))","v":19.467922333931785},{"$f":"I179+I180+I181+I182","v":6},{"$f":"SQRT((J179^2)+(J180^2)+(J181^2)+(J182^2))","v":20.663978319771825},{"$f":"K179+K180+K181+K182","v":2},{"$f":"SQRT((L179^2)+(L180^2)+(L181^2)+(L182^2))","v":19.157244060668017},{"$f":"M179+M180+M181+M182","v":8},{"$f":"SQRT((N179^2)+(N180^2)+(N181^2)+(N182^2))","v":22.516660498395403},{"$f":"O179+O180+O181+O182","v":0},{"$f":"SQRT((P179^2)+(P180^2)+(P181^2)+(P182^2))","v":22},{"$f":"Q179+Q180+Q181+Q182","v":470},{"$f":"SQRT((R179^2)+(R180^2)+(R181^2)+(R182^2))","v":155.60205654167942},{"$f":"S179+S180+S181+S182","v":442},{"$f":"SQRT((T179^2)+(T180^2)+(T181^2)+(T182^2))","v":173.17332358074091},{"$f":"U179+U180+U181+U182","v":5},{"$f":"SQRT((V179^2)+(V180^2)+(V181^2)+(V182^2))","v":21.071307505705477},{"$f":"W179+W180+W181+W182","v":0},{"$f":"SQRT((X179^2)+(X180^2)+(X181^2)+(X182^2))","v":22},{"$f":"Y179+Y180+Y181+Y182","v":2},{"$f":"SQRT((Z179^2)+(Z180^2)+(Z181^2)+(Z182^2))","v":19.28730152198591},{"$f":"AA179+AA180+AA181+AA182","v":0},{"$f":"SQRT((AB179^2)+(AB180^2)+(AB181^2)+(AB182^2))","v":22},{"$f":"AC179+AC180+AC181+AC182","v":65},{"$f":"SQRT((AD179^2)+(AD180^2)+(AD181^2)+(AD182^2))","v":59.808026217222718},{"$f":"AE179+AE180+AE181+AE182","v":0},{"$f":"SQRT((AF179^2)+(AF180^2)+(AF181^2)+(AF182^2))","v":22},{"$f":"AG179+AG180+AG181+AG182","v":0},{"$f":"SQRT((AH179^2)+(AH180^2)+(AH181^2)+(AH182^2))","v":22},{"$f":"AI179+AI180+AI181+AI182","v":0},{"$f":"SQRT((AJ179^2)+(AJ180^2)+(AJ181^2)+(AJ182^2))","v":22},{"$f":"AK179+AK180+AK181+AK182","v":0},{"$f":"SQRT((AL179^2)+(AL180^2)+(AL181^2)+(AL182^2))","v":22},{"$f":"AM179+AM180+AM181+AM182","v":13},{"$f":"SQRT((AN179^2)+(AN180^2)+(AN181^2)+(AN182^2))","v":35.383612025908263},{"$f":"AO179+AO180+AO181+AO182","v":0},{"$f":"SQRT((AP179^2)+(AP180^2)+(AP181^2)+(AP182^2))","v":22},{"$f":"AQ179+AQ180+AQ181+AQ182","v":49},{"$f":"SQRT((AR179^2)+(AR180^2)+(AR181^2)+(AR182^2))","v":65.817930687617334},{"$f":"AS179+AS180+AS181+AS182","v":9},{"$f":"SQRT((AT179^2)+(AT180^2)+(AT181^2)+(AT182^2))","v":23.643180835073778},{"$f":"AU179+AU180+AU181+AU182","v":48},{"$f":"SQRT((AV179^2)+(AV180^2)+(AV181^2)+(AV182^2))","v":58.20652884342099}]
[null,"Less Than 35% of HH Income",{"$f":"C176+C177+C178+C179","v":0},{"$f":"SQRT((D176^2)+(D177^2)+(D178^2)+(D179^2))","v":22},{"$f":"E176+E177+E178+E179","v":0},{"$f":"SQRT((F176^2)+(F177^2)+(F178^2)+(F179^2))","v":22},{"$f":"G176+G177+G178+G179","v":0},{"$f":"SQRT((H176^2)+(H177^2)+(H178^2)+(H179^2))","v":22},{"$f":"I176+I177+I178+I179","v":0},{"$f":"SQRT((J176^2)+(J177^2)+(J178^2)+(J179^2))","v":22},{"$f":"K176+K177+K178+K179","v":0},{"$f":"SQRT((L176^2)+(L177^2)+(L178^2)+(L179^2))","v":22},{"$f":"M176+M177+M178+M179","v":0},{"$f":"SQRT((N176^2)+(N177^2)+(N178^2)+(N179^2))","v":22},{"$f":"O176+O177+O178+O179","v":42},{"$f":"SQRT((P176^2)+(P177^2)+(P178^2)+(P179^2))","v":57.262553208881634},{"$f":"Q176+Q177+Q178+Q179","v":79},{"$f":"SQRT((R176^2)+(R177^2)+(R178^2)+(R179^2))","v":88.560713637594404},{"$f":"S176+S177+S178+S179","v":93},{"$f":"SQRT((T176^2)+(T177^2)+(T178^2)+(T179^2))","v":86.740993768805765},{"$f":"U176+U177+U178+U179","v":0},{"$f":"SQRT((V176^2)+(V177^2)+(V178^2)+(V179^2))","v":22},{"$f":"W176+W177+W178+W179","v":0},{"$f":"SQRT((X176^2)+(X177^2)+(X178^2)+(X179^2))","v":22},{"$f":"Y176+Y177+Y178+Y179","v":0},{"$f":"SQRT((Z176^2)+(Z177^2)+(Z178^2)+(Z179^2))","v":22},{"$f":"AA176+AA177+AA178+AA179","v":0},{"$f":"SQRT((AB176^2)+(AB177^2)+(AB178^2)+(AB179^2))","v":22},{"$f":"AC176+AC177+AC178+AC179","v":0},{"$f":"SQRT((AD176^2)+(AD177^2)+(AD178^2)+(AD179^2))","v":32},{"$f":"AE176+AE177+AE178+AE179","v":0},{"$f":"SQRT((AF176^2)+(AF177^2)+(AF178^2)+(AF179^2))","v":22},{"$f":"AG176+AG177+AG178+AG179","v":0},{"$f":"SQRT((AH176^2)+(AH177^2)+(AH178^2)+(AH179^2))","v":22},{"$f":"AI176+AI177+AI178+AI179","v":0},{"$f":"SQRT((AJ176^2)+(AJ177^2)+(AJ178^2)+(AJ179^2))","v":22},{"$f":"AK176+AK177+AK178+AK179","v":0},{"$f":"SQRT((AL176^2)+(AL177^2)+(AL178^2)+(AL179^2))","v":22},{"$f":"AM176+AM177+AM178+AM179","v":30},{"$f":"SQRT((AN176^2)+(AN177^2)+(AN178^2)+(AN179^2))","v":57.166423711825807},{"$f":"AO176+AO177+AO178+AO179","v":0},{"$f":"SQRT((AP176^2)+(AP177^2)+(AP178^2)+(AP179^2))","v":22},{"$f":"AQ176+AQ177+AQ178+AQ179","v":0},{"$f":"SQRT((AR176^2)+(AR177^2)+(AR178^2)+(AR179^2))","v":22},{"$f":"AS176+AS177+AS178+AS179","v":0},{"$f":"SQRT((AT176^2)+(AT177^2)+(AT178^2)+(AT179^2))","v":22},{"$f":"AU176+AU177+AU178+AU179","v":0},{"$f":"SQRT((AV176^2)+(AV177^2)+(AV178^2)+(AV179^2))","v":22}]
[null,"35.0 percent or more",{"$f":"C180+C181++C182","v":27},{"$f":"SQRT((D180^2)+(D181^2)+(D182^2))","v":32.908965343808667},{"$f":"E180+E181++E182","v":49},{"$f":"SQRT((F180^2)+(F181^2)+(F182^2))","v":81.498466243236749},{"$f":"G180+G181++G182","v":3},{"$f":"SQRT((H180^2)+(H181^2)+(H182^2))","v":16.06237840420901},{"$f":"I180+I181++I182","v":6},{"$f":"SQRT((J180^2)+(J181^2)+(J182^2))","v":17.4928556845359},{"$f":"K180+K181++K182","v":2},{"$f":"SQRT((L180^2)+(L181^2)+(L182^2))","v":15.684387141358123},{"$f":"M180+M181++M182","v":8},{"$f":"SQRT((N180^2)+(N181^2)+(N182^2))","v":19.646882704388499},{"$f":"O180+O181++O182","v":0},{"$f":"SQRT((P180^2)+(P181^2)+(P182^2))","v":19.05255888325765},{"$f":"Q180+Q181++Q182","v":470},{"$f":"SQRT((R180^2)+(R181^2)+(R182^2))","v":154.17846801677592},{"$f":"S180+S181++S182","v":442},{"$f":"SQRT((T180^2)+(T181^2)+(T182^2))","v":172.01453426963664},{"$f":"U180+U181++U182","v":5},{"$f":"SQRT((V180^2)+(V181^2)+(V182^2))","v":17.972200755611428},{"$f":"W180+W181++W182","v":0},{"$f":"SQRT((X180^2)+(X181^2)+(X182^2))","v":19.05255888325765},{"$f":"Y180+Y181++Y182","v":2},{"$f":"SQRT((Z180^2)+(Z181^2)+(Z182^2))","v":15.842979517754859},{"$f":"AA180+AA181++AA182","v":0},{"$f":"SQRT((AB180^2)+(AB181^2)+(AB182^2))","v":19.05255888325765},{"$f":"AC180+AC181++AC182","v":65},{"$f":"SQRT((AD180^2)+(AD181^2)+(AD182^2))","v":57.628118136895637},{"$f":"AE180+AE181++AE182","v":0},{"$f":"SQRT((AF180^2)+(AF181^2)+(AF182^2))","v":19.05255888325765},{"$f":"AG180+AG181++AG182","v":0},{"$f":"SQRT((AH180^2)+(AH181^2)+(AH182^2))","v":19.05255888325765},{"$f":"AI180+AI181++AI182","v":0},{"$f":"SQRT((AJ180^2)+(AJ181^2)+(AJ182^2))","v":19.05255888325765},{"$f":"AK180+AK181++AK182","v":0},{"$f":"SQRT((AL180^2)+(AL181^2)+(AL182^2))","v":19.05255888325765},{"$f":"AM180+AM181++AM182","v":13},{"$f":"SQRT((AN180^2)+(AN181^2)+(AN182^2))","v":31.559467676118999},{"$f":"AO180+AO181++AO182","v":0},{"$f":"SQRT((AP180^2)+(AP181^2)+(AP182^2))","v":19.05255888325765},{"$f":"AQ180+AQ181++AQ182","v":49},{"$f":"SQRT((AR180^2)+(AR181^2)+(AR182^2))","v":64.892218331630488},{"$f":"AS180+AS181++AS182","v":9},{"$f":"SQRT((AT180^2)+(AT181^2)+(AT182^2))","v":20.928449536456348},{"$f":"AU180+AU181++AU182","v":48},{"$f":"SQRT((AV180^2)+(AV181^2)+(AV182^2))","v":57.157676649772952}]
[null,"50.0 percent or more",{"$f":"C182","v":27},29,49,80,3,4,6,8,2,2,8,12,0,11,453,151,428,170,5,9,0,11,2,3,0,11,65,53,0,11,0,11,0,11,0,11,13,22,{"$f":"AO182","v":0},11,49,63,9,14,48,55]
[null,"Not Computed",9,8,0,11,3,4,0,11,5,6,0,11,9,16,32,35,40,39,0,11,2,5,2,3,0,11,10,16,0,11,0,11,0,11,3,5,30,34,0,11,9,15,0,11,0,11]
[null,"$10,000 to $19,999:",33,25,0,11,23,23,0,11,4,5,11,14,83,67,685,159,827,198,42,28,2,3,3,4,3,4,72,62,2,3,0,11,5,8,5,7,176,105,38,36,27,24,8,13,71,64]
[null,"Less than 30.0 percent",{"$f":"C185+C186+C187","v":5},{"$f":"SQRT((D185^2)+(D186^2)+(D187^2))","v":17.4928556845359},{"$f":"E185+E186+E187","v":0},{"$f":"SQRT((F185^2)+(F186^2)+(F187^2))","v":19.05255888325765},{"$f":"G185+G186+G187","v":0},{"$f":"SQRT((H185^2)+(H186^2)+(H187^2))","v":19.05255888325765},{"$f":"I185+I186+I187","v":0},{"$f":"SQRT((J185^2)+(J186^2)+(J187^2))","v":19.05255888325765},{"$f":"K185+K186+K187","v":0},{"$f":"SQRT((L185^2)+(L186^2)+(L187^2))","v":19.05255888325765},{"$f":"M185+M186+M187","v":0},{"$f":"SQRT((N185^2)+(N186^2)+(N187^2))","v":19.05255888325765},{"$f":"O185+O186+O187","v":9},{"$f":"SQRT((P185^2)+(P186^2)+(P187^2))","v":20.273134932713294},{"$f":"Q185+Q186+Q187","v":173},{"$f":"SQRT((R185^2)+(R186^2)+(R187^2))","v":67.65352910233139},{"$f":"S185+S186+S187","v":190},{"$f":"SQRT((T185^2)+(T186^2)+(T187^2))","v":75.504966724050675},{"$f":"U185+U186+U187","v":18},{"$f":"SQRT((V185^2)+(V186^2)+(V187^2))","v":33.793490497431605},{"$f":"W185+W186+W187","v":0},{"$f":"SQRT((X185^2)+(X186^2)+(X187^2))","v":19.05255888325765},{"$f":"Y185+Y186+Y187","v":0},{"$f":"SQRT((Z185^2)+(Z186^2)+(Z187^2))","v":19.05255888325765},{"$f":"AA185+AA186+AA187","v":0},{"$f":"SQRT((AB185^2)+(AB186^2)+(AB187^2))","v":19.05255888325765},{"$f":"AC185+AC186+AC187","v":0},{"$f":"SQRT((AD185^2)+(AD186^2)+(AD187^2))","v":27.712812921102035},{"$f":"AE185+AE186+AE187","v":0},{"$f":"SQRT((AF185^2)+(AF186^2)+(AF187^2))","v":19.05255888325765},{"$f":"AG185+AG186+AG187","v":0},{"$f":"SQRT((AH185^2)+(AH186^2)+(AH187^2))","v":19.05255888325765},{"$f":"AI185+AI186+AI187","v":0},{"$f":"SQRT((AJ185^2)+(AJ186^2)+(AJ187^2))","v":19.05255888325765},{"$f":"AK185+AK186+AK187","v":0},{"$f":"SQRT((AL185^2)+(AL186^2)+(AL187^2))","v":19.05255888325765},{"$f":"AM185+AM186+AM187","v":67},{"$f":"SQRT((AN185^2)+(AN186^2)+(AN187^2))","v":75.451971478550519},{"$f":"AO185+AO186+AO187","v":32},{"$f":"SQRT((AP185^2)+(AP186^2)+(AP187^2))","v":37.134889255254286},{"$f":"AQ185+AQ186+AQ187","v":0},{"$f":"SQRT((AR185^2)+(AR186^2)+(AR187^2))","v":19.05255888325765},{"$f":"AS185+AS186+AS187","v":0},{"$f":"SQRT((AT185^2)+(AT186^2)+(AT187^2))","v":19.05255888325765},{"$f":"AU185+AU186+AU187","v":0},{"$f":"SQRT((AV185^2)+(AV186^2)+(AV187^2))","v":19.05255888325765}]
[null,"More than 30.0 percent",{"$f":"C188+C189+C190+C191","v":24},{"$f":"SQRT((D188^2)+(D189^2)+(D190^2)+(D191^2))","v":31.336879231984796},{"$f":"E188+E189+E190+E191","v":0},{"$f":"SQRT((F188^2)+(F189^2)+(F190^2)+(F191^2))","v":22},{"$f":"G188+G189+G190+G191","v":20},{"$f":"SQRT((H188^2)+(H189^2)+(H190^2)+(H191^2))","v":26.888659319497503},{"$f":"I188+I189+I190+I191","v":0},{"$f":"SQRT((J188^2)+(J189^2)+(J190^2)+(J191^2))","v":22},{"$f":"K188+K189+K190+K191","v":4},{"$f":"SQRT((L188^2)+(L189^2)+(L190^2)+(L191^2))","v":16.124515496597098},{"$f":"M188+M189+M190+M191","v":11},{"$f":"SQRT((N188^2)+(N189^2)+(N190^2)+(N191^2))","v":23.643180835073778},{"$f":"O188+O189+O190+O191","v":22},{"$f":"SQRT((P188^2)+(P189^2)+(P190^2)+(P191^2))","v":28.124722220850465},{"$f":"Q188+Q189+Q190+Q191","v":495},{"$f":"SQRT((R188^2)+(R189^2)+(R190^2)+(R191^2))","v":144.84474446799925},{"$f":"S188+S189+S190+S191","v":618},{"$f":"SQRT((T188^2)+(T189^2)+(T190^2)+(T191^2))","v":182.07141456033125},{"$f":"U188+U189+U190+U191","v":24},{"$f":"SQRT((V188^2)+(V189^2)+(V190^2)+(V191^2))","v":23.065125189341593},{"$f":"W188+W189+W190+W191","v":2},{"$f":"SQRT((X188^2)+(X189^2)+(X190^2)+(X191^2))","v":19.28730152198591},{"$f":"Y188+Y189+Y190+Y191","v":3},{"$f":"SQRT((Z188^2)+(Z189^2)+(Z190^2)+(Z191^2))","v":19.467922333931785},{"$f":"AA188+AA189+AA190+AA191","v":0},{"$f":"SQRT((AB188^2)+(AB189^2)+(AB190^2)+(AB191^2))","v":22},{"$f":"AC188+AC189+AC190+AC191","v":72},{"$f":"SQRT((AD188^2)+(AD189^2)+(AD190^2)+(AD191^2))","v":67.911707385398586},{"$f":"AE188+AE189+AE190+AE191","v":0},{"$f":"SQRT((AF188^2)+(AF189^2)+(AF190^2)+(AF191^2))","v":22},{"$f":"AG188+AG189+AG190+AG191","v":0},{"$f":"SQRT((AH188^2)+(AH189^2)+(AH190^2)+(AH191^2))","v":22},{"$f":"AI188+AI189+AI190+AI191","v":5},{"$f":"SQRT((AJ188^2)+(AJ189^2)+(AJ190^2)+(AJ191^2))","v":20.663978319771825},{"$f":"AK188+AK189+AK190+AK191","v":5},{"$f":"SQRT((AL188^2)+(AL189^2)+(AL190^2)+(AL191^2))","v":20.297783130184438},{"$f":"AM188+AM189+AM190+AM191","v":109},{"$f":"SQRT((AN188^2)+(AN189^2)+(AN190^2)+(AN191^2))","v":85.941840799461588},{"$f":"AO188+AO189+AO190+AO191","v":0},{"$f":"SQRT((AP188^2)+(AP189^2)+(AP190^2)+(AP191^2))","v":22},{"$f":"AQ188+AQ189+AQ190+AQ191","v":27},{"$f":"SQRT((AR188^2)+(AR189^2)+(AR190^2)+(AR191^2))","v":27.622454633866266},{"$f":"AS188+AS189+AS190+AS191","v":8},{"$f":"SQRT((AT188^2)+(AT189^2)+(AT190^2)+(AT191^2))","v":23.065125189341593},{"$f":"AU188+AU189+AU190+AU191","v":64},{"$f":"SQRT((AV188^2)+(AV189^2)+(AV190^2)+(AV191^2))","v":64.420493633625625}]
[null,"Less Than 35% of HH Income",{"$f":"C185+C186+C187+C188","v":5},{"$f":"SQRT((D185^2)+(D186^2)+(D187^2)+(D188^2))","v":20.663978319771825},{"$f":"E185+E186+E187+E188","v":0},{"$f":"SQRT((F185^2)+(F186^2)+(F187^2)+(F188^2))","v":22},{"$f":"G185+G186+G187+G188","v":0},{"$f":"SQRT((H185^2)+(H186^2)+(H187^2)+(H188^2))","v":22},{"$f":"I185+I186+I187+I188","v":0},{"$f":"SQRT((J185^2)+(J186^2)+(J187^2)+(J188^2))","v":22},{"$f":"K185+K186+K187+K188","v":2},{"$f":"SQRT((L185^2)+(L186^2)+(L187^2)+(L188^2))","v":19.28730152198591},{"$f":"M185+M186+M187+M188","v":0},{"$f":"SQRT((N185^2)+(N186^2)+(N187^2)+(N188^2))","v":22},{"$f":"O185+O186+O187+O188","v":19},{"$f":"SQRT((P185^2)+(P186^2)+(P187^2)+(P188^2))","v":25.219040425836983},{"$f":"Q185+Q186+Q187+Q188","v":262},{"$f":"SQRT((R185^2)+(R186^2)+(R187^2)+(R188^2))","v":87.189448902949266},{"$f":"S185+S186+S187+S188","v":274},{"$f":"SQRT((T185^2)+(T186^2)+(T187^2)+(T188^2))","v":93.413061185253966},{"$f":"U185+U186+U187+U188","v":18},{"$f":"SQRT((V185^2)+(V186^2)+(V187^2)+(V188^2))","v":35.538711287833721},{"$f":"W185+W186+W187+W188","v":0},{"$f":"SQRT((X185^2)+(X186^2)+(X187^2)+(X188^2))","v":22},{"$f":"Y185+Y186+Y187+Y188","v":0},{"$f":"SQRT((Z185^2)+(Z186^2)+(Z187^2)+(Z188^2))","v":22},{"$f":"AA185+AA186+AA187+AA188","v":0},{"$f":"SQRT((AB185^2)+(AB186^2)+(AB187^2)+(AB188^2))","v":22},{"$f":"AC185+AC186+AC187+AC188","v":0},{"$f":"SQRT((AD185^2)+(AD186^2)+(AD187^2)+(AD188^2))","v":32},{"$f":"AE185+AE186+AE187+AE188","v":0},{"$f":"SQRT((AF185^2)+(AF186^2)+(AF187^2)+(AF188^2))","v":22},{"$f":"AG185+AG186+AG187+AG188","v":0},{"$f":"SQRT((AH185^2)+(AH186^2)+(AH187^2)+(AH188^2))","v":22},{"$f":"AI185+AI186+AI187+AI188","v":0},{"$f":"SQRT((AJ185^2)+(AJ186^2)+(AJ187^2)+(AJ188^2))","v":22},{"$f":"AK185+AK186+AK187+AK188","v":0},{"$f":"SQRT((AL185^2)+(AL186^2)+(AL187^2)+(AL188^2))","v":22},{"$f":"AM185+AM186+AM187+AM188","v":79},{"$f":"SQRT((AN185^2)+(AN186^2)+(AN187^2)+(AN188^2))","v":78.057670987546118},{"$f":"AO185+AO186+AO187+AO188","v":32},{"$f":"SQRT((AP185^2)+(AP186^2)+(AP187^2)+(AP188^2))","v":38.729833462074168},{"$f":"AQ185+AQ186+AQ187+AQ188","v":0},{"$f":"SQRT((AR185^2)+(AR186^2)+(AR187^2)+(AR188^2))","v":22},{"$f":"AS185+AS186+AS187+AS188","v":0},{"$f":"SQRT((AT185^2)+(AT186^2)+(AT187^2)+(AT188^2))","v":22},{"$f":"AU185+AU186+AU187+AU188","v":4},{"$f":"SQRT((AV185^2)+(AV186^2)+(AV187^2)+(AV188^2))","v":20.663978319771825}]
[null,"35.0 percent or more",{"$f":"C189+C190++C191","v":24},{"$f":"SQRT((D189^2)+(D190^2)+(D191^2))","v":29.34280150224242},{"$f":"E189+E190++E191","v":0},{"$f":"SQRT((F189^2)+(F190^2)+(F191^2))","v":19.05255888325765},{"$f":"G189+G190++G191","v":20},{"$f":"SQRT((H189^2)+(H190^2)+(H191^2))","v":24.535688292770594},{"$f":"I189+I190++I191","v":0},{"$f":"SQRT((J189^2)+(J190^2)+(J191^2))","v":19.05255888325765},{"$f":"K189+K190++K191","v":2},{"$f":"SQRT((L189^2)+(L190^2)+(L191^2))","v":15.842979517754859},{"$f":"M189+M190++M191","v":11},{"$f":"SQRT((N189^2)+(N190^2)+(N191^2))","v":20.928449536456348},{"$f":"O189+O190++O191","v":12},{"$f":"SQRT((P189^2)+(P190^2)+(P191^2))","v":23.790754506740637},{"$f":"Q189+Q190++Q191","v":406},{"$f":"SQRT((R189^2)+(R190^2)+(R191^2))","v":133.99626860476377},{"$f":"S189+S190++S191","v":534},{"$f":"SQRT((T189^2)+(T190^2)+(T191^2))","v":173.56554957709781},{"$f":"U189+U190++U191","v":24},{"$f":"SQRT((V189^2)+(V190^2)+(V191^2))","v":20.273134932713294},{"$f":"W189+W190++W191","v":2},{"$f":"SQRT((X189^2)+(X190^2)+(X191^2))","v":15.842979517754859},{"$f":"Y189+Y190++Y191","v":3},{"$f":"SQRT((Z189^2)+(Z190^2)+(Z191^2))","v":16.06237840420901},{"$f":"AA189+AA190++AA191","v":0},{"$f":"SQRT((AB189^2)+(AB190^2)+(AB191^2))","v":19.05255888325765},{"$f":"AC189+AC190++AC191","v":72},{"$f":"SQRT((AD189^2)+(AD190^2)+(AD191^2))","v":66},{"$f":"AE189+AE190++AE191","v":0},{"$f":"SQRT((AF189^2)+(AF190^2)+(AF191^2))","v":19.05255888325765},{"$f":"AG189+AG190++AG191","v":0},{"$f":"SQRT((AH189^2)+(AH190^2)+(AH191^2))","v":19.05255888325765},{"$f":"AI189+AI190++AI191","v":5},{"$f":"SQRT((AJ189^2)+(AJ190^2)+(AJ191^2))","v":17.4928556845359},{"$f":"AK189+AK190++AK191","v":5},{"$f":"SQRT((AL189^2)+(AL190^2)+(AL191^2))","v":17.058722109231979},{"$f":"AM189+AM190++AM191","v":97},{"$f":"SQRT((AN189^2)+(AN190^2)+(AN191^2))","v":83.582294775867453},{"$f":"AO189+AO190++AO191","v":0},{"$f":"SQRT((AP189^2)+(AP190^2)+(AP191^2))","v":19.05255888325765},{"$f":"AQ189+AQ190++AQ191","v":27},{"$f":"SQRT((AR189^2)+(AR190^2)+(AR191^2))","v":25.337718918639855},{"$f":"AS189+AS190++AS191","v":8},{"$f":"SQRT((AT189^2)+(AT190^2)+(AT191^2))","v":20.273134932713294},{"$f":"AU189+AU190++AU191","v":60},{"$f":"SQRT((AV189^2)+(AV190^2)+(AV191^2))","v":63.921827257987552}]
[null,"50.0 percent or more",{"$f":"C191","v":8},8,0,11,10,15,0,11,2,3,11,14,12,18,330,121,460,164,14,13,2,3,3,4,0,11,72,62,0,11,0,11,5,8,5,7,89,81,{"$f":"AO191","v":0},{"$f":"AP191","v":11},{"$f":"AQ191","v":20},20,{"$f":"AS191","v":8},13,{"$f":"AU191","v":60},62]
[null,"Not Computed",4,6,0,11,3,6,0,11,0,11,0,11,52,60,17,27,19,30,0,11,0,11,0,11,3,4,0,16,2,3,0,11,0,11,0,11,0,16,{"$f":"AO192","v":6},9,0,11,0,11,7,12]
[null,"$20,000 to $34,999:",54,37,57,68,29,20,35,31,3,6,3,4,149,75,1104,259,1054,239,119,64,2,4,18,9,9,14,83,35,4,7,9,14,10,11,0,11,165,93,31,27,18,20,5,6,144,81]
[null,"Less than 30.0 percent",{"$f":"C194+C195+C196","v":21},{"$f":"SQRT((D194^2)+(D195^2)+(D196^2))","v":33.793490497431605},{"$f":"E194+E195+E196","v":0},{"$f":"SQRT((F194^2)+(F195^2)+(F196^2))","v":19.05255888325765},{"$f":"G194+G195+G196","v":2},{"$f":"SQRT((H194^2)+(H195^2)+(H196^2))","v":16.06237840420901},{"$f":"I194+I195+I196","v":0},{"$f":"SQRT((J194^2)+(J195^2)+(J196^2))","v":19.05255888325765},{"$f":"K194+K195+K196","v":0},{"$f":"SQRT((L194^2)+(L195^2)+(L196^2))","v":19.05255888325765},{"$f":"M194+M195+M196","v":0},{"$f":"SQRT((N194^2)+(N195^2)+(N196^2))","v":19.05255888325765},{"$f":"O194+O195+O196","v":67},{"$f":"SQRT((P194^2)+(P195^2)+(P196^2))","v":65.924198895398035},{"$f":"Q194+Q195+Q196","v":178},{"$f":"SQRT((R194^2)+(R195^2)+(R196^2))","v":100.45396955820114},{"$f":"S194+S195+S196","v":201},{"$f":"SQRT((T194^2)+(T195^2)+(T196^2))","v":112.23635774560755},{"$f":"U194+U195+U196","v":33},{"$f":"SQRT((V194^2)+(V195^2)+(V196^2))","v":25.787593916455254},{"$f":"W194+W195+W196","v":0},{"$f":"SQRT((X194^2)+(X195^2)+(X196^2))","v":19.05255888325765},{"$f":"Y194+Y195+Y196","v":5},{"$f":"SQRT((Z194^2)+(Z195^2)+(Z196^2))","v":12.369316876852981},{"$f":"AA194+AA195+AA196","v":0},{"$f":"SQRT((AB194^2)+(AB195^2)+(AB196^2))","v":19.05255888325765},{"$f":"AC194+AC195+AC196","v":15},{"$f":"SQRT((AD194^2)+(AD195^2)+(AD196^2))","v":23.706539182259394},{"$f":"AE194+AE195+AE196","v":0},{"$f":"SQRT((AF194^2)+(AF195^2)+(AF196^2))","v":19.05255888325765},{"$f":"AG194+AG195+AG196","v":0},{"$f":"SQRT((AH194^2)+(AH195^2)+(AH196^2))","v":19.05255888325765},{"$f":"AI194+AI195+AI196","v":0},{"$f":"SQRT((AJ194^2)+(AJ195^2)+(AJ196^2))","v":19.05255888325765},{"$f":"AK194+AK195+AK196","v":0},{"$f":"SQRT((AL194^2)+(AL195^2)+(AL196^2))","v":19.05255888325765},{"$f":"AM194+AM195+AM196","v":0},{"$f":"SQRT((AN194^2)+(AN195^2)+(AN196^2))","v":27.712812921102035},{"$f":"AO194+AO195+AO196","v":5},{"$f":"SQRT((AP194^2)+(AP195^2)+(AP196^2))","v":17.058722109231979},{"$f":"AQ194+AQ195+AQ196","v":9},{"$f":"SQRT((AR194^2)+(AR195^2)+(AR196^2))","v":20.273134932713294},{"$f":"AS194+AS195+AS196","v":3},{"$f":"SQRT((AT194^2)+(AT195^2)+(AT196^2))","v":16.340134638368191},{"$f":"AU194+AU195+AU196","v":52},{"$f":"SQRT((AV194^2)+(AV195^2)+(AV196^2))","v":53.944415837044708}]
[null,"More than 30.0 percent",{"$f":"C197+C198+C199+C200","v":23},{"$f":"SQRT((D197^2)+(D198^2)+(D199^2)+(D200^2))","v":24.879710609249457},{"$f":"E197+E198+E199+E200","v":57},{"$f":"SQRT((F197^2)+(F198^2)+(F199^2)+(F200^2))","v":70.618694408775355},{"$f":"G197+G198+G199+G200","v":16},{"$f":"SQRT((H197^2)+(H198^2)+(H199^2)+(H200^2))","v":22.869193252058544},{"$f":"I197+I198+I199+I200","v":35},{"$f":"SQRT((J197^2)+(J198^2)+(J199^2)+(J200^2))","v":31.080540535840107},{"$f":"K197+K198+K199+K200","v":3},{"$f":"SQRT((L197^2)+(L198^2)+(L199^2)+(L200^2))","v":16.340134638368191},{"$f":"M197+M198+M199+M200","v":0},{"$f":"SQRT((N197^2)+(N198^2)+(N199^2)+(N200^2))","v":22},{"$f":"O197+O198+O199+O200","v":82},{"$f":"SQRT((P197^2)+(P198^2)+(P199^2)+(P200^2))","v":73.280283842245041},{"$f":"Q197+Q198+Q199+Q200","v":908},{"$f":"SQRT((R197^2)+(R198^2)+(R199^2)+(R200^2))","v":257.71107853563456},{"$f":"S197+S198+S199+S200","v":845},{"$f":"SQRT((T197^2)+(T198^2)+(T199^2)+(T200^2))","v":246.25799479407769},{"$f":"U197+U198+U199+U200","v":86},{"$f":"SQRT((V197^2)+(V198^2)+(V199^2)+(V200^2))","v":56.868268832451726},{"$f":"W197+W198+W199+W200","v":2},{"$f":"SQRT((X197^2)+(X198^2)+(X199^2)+(X200^2))","v":19.467922333931785},{"$f":"Y197+Y198+Y199+Y200","v":13},{"$f":"SQRT((Z197^2)+(Z198^2)+(Z199^2)+(Z200^2))","v":17.748239349298849},{"$f":"AA197+AA198+AA199+AA200","v":9},{"$f":"SQRT((AB197^2)+(AB198^2)+(AB199^2)+(AB200^2))","v":23.643180835073778},{"$f":"AC197+AC198+AC199+AC200","v":68},{"$f":"SQRT((AD197^2)+(AD198^2)+(AD199^2)+(AD200^2))","v":42.237424163885748},{"$f":"AE197+AE198+AE199+AE200","v":4},{"$f":"SQRT((AF197^2)+(AF198^2)+(AF199^2)+(AF200^2))","v":20.297783130184438},{"$f":"AG197+AG198+AG199+AG200","v":9},{"$f":"SQRT((AH197^2)+(AH198^2)+(AH199^2)+(AH200^2))","v":23.643180835073778},{"$f":"AI197+AI198+AI199+AI200","v":4},{"$f":"SQRT((AJ197^2)+(AJ198^2)+(AJ199^2)+(AJ200^2))","v":15.968719422671311},{"$f":"AK197+AK198+AK199+AK200","v":0},{"$f":"SQRT((AL197^2)+(AL198^2)+(AL199^2)+(AL200^2))","v":22},{"$f":"AM197+AM198+AM199+AM200","v":136},{"$f":"SQRT((AN197^2)+(AN198^2)+(AN199^2)+(AN200^2))","v":93.818974626671334},{"$f":"AO197+AO198+AO199+AO200","v":26},{"$f":"SQRT((AP197^2)+(AP198^2)+(AP199^2)+(AP200^2))","v":28.948229652260256},{"$f":"AQ197+AQ198+AQ199+AQ200","v":9},{"$f":"SQRT((AR197^2)+(AR198^2)+(AR199^2)+(AR200^2))","v":24.248711305964282},{"$f":"AS197+AS198+AS199+AS200","v":2},{"$f":"SQRT((AT197^2)+(AT198^2)+(AT199^2)+(AT200^2))","v":19.467922333931785},{"$f":"AU197+AU198+AU199+AU200","v":92},{"$f":"SQRT((AV197^2)+(AV198^2)+(AV199^2)+(AV200^2))","v":67.860150309294184}]
[null,"Less Than 35% of HH Income",{"$f":"C194+C195+C196+C197","v":33},{"$f":"SQRT((D194^2)+(D195^2)+(D196^2)+(D197^2))","v":35.538711287833721},{"$f":"E194+E195+E196+E197","v":0},{"$f":"SQRT((F194^2)+(F195^2)+(F196^2)+(F197^2))","v":22},{"$f":"G194+G195+G196+G197","v":5},{"$f":"SQRT((H194^2)+(H195^2)+(H196^2)+(H197^2))","v":16.822603841260722},{"$f":"I194+I195+I196+I197","v":12},{"$f":"SQRT((J194^2)+(J195^2)+(J196^2)+(J197^2))","v":26.210684844162312},{"$f":"K194+K195+K196+K197","v":0},{"$f":"SQRT((L194^2)+(L195^2)+(L196^2)+(L197^2))","v":22},{"$f":"M194+M195+M196+M197","v":0},{"$f":"SQRT((N194^2)+(N195^2)+(N196^2)+(N197^2))","v":22},{"$f":"O194+O195+O196+O197","v":116},{"$f":"SQRT((P194^2)+(P195^2)+(P196^2)+(P197^2))","v":87.806605674060762},{"$f":"Q194+Q195+Q196+Q197","v":318},{"$f":"SQRT((R194^2)+(R195^2)+(R196^2)+(R197^2))","v":138.26062346163494},{"$f":"S194+S195+S196+S197","v":357},{"$f":"SQRT((T194^2)+(T195^2)+(T196^2)+(T197^2))","v":153.0130713370593},{"$f":"U194+U195+U196+U197","v":52},{"$f":"SQRT((V194^2)+(V195^2)+(V196^2)+(V197^2))","v":34.554305086341991},{"$f":"W194+W195+W196+W197","v":0},{"$f":"SQRT((X194^2)+(X195^2)+(X196^2)+(X197^2))","v":22},{"$f":"Y194+Y195+Y196+Y197","v":5},{"$f":"SQRT((Z194^2)+(Z195^2)+(Z196^2)+(Z197^2))","v":16.552945357246848},{"$f":"AA194+AA195+AA196+AA197","v":0},{"$f":"SQRT((AB194^2)+(AB195^2)+(AB196^2)+(AB197^2))","v":22},{"$f":"AC194+AC195+AC196+AC197","v":35},{"$f":"SQRT((AD194^2)+(AD195^2)+(AD196^2)+(AD197^2))","v":32.341923257592455},{"$f":"AE194+AE195+AE196+AE197","v":4},{"$f":"SQRT((AF194^2)+(AF195^2)+(AF196^2)+(AF197^2))","v":20.297783130184438},{"$f":"AG194+AG195+AG196+AG197","v":0},{"$f":"SQRT((AH194^2)+(AH195^2)+(AH196^2)+(AH197^2))","v":22},{"$f":"AI194+AI195+AI196+AI197","v":2},{"$f":"SQRT((AJ194^2)+(AJ195^2)+(AJ196^2)+(AJ197^2))","v":19.28730152198591},{"$f":"AK194+AK195+AK196+AK197","v":0},{"$f":"SQRT((AL194^2)+(AL195^2)+(AL196^2)+(AL197^2))","v":22},{"$f":"AM194+AM195+AM196+AM197","v":0},{"$f":"SQRT((AN194^2)+(AN195^2)+(AN196^2)+(AN197^2))","v":32},{"$f":"AO194+AO195+AO196+AO197","v":5},{"$f":"SQRT((AP194^2)+(AP195^2)+(AP196^2)+(AP197^2))","v":20.297783130184438},{"$f":"AQ194+AQ195+AQ196+AQ197","v":9},{"$f":"SQRT((AR194^2)+(AR195^2)+(AR196^2)+(AR197^2))","v":23.065125189341593},{"$f":"AS194+AS195+AS196+AS197","v":3},{"$f":"SQRT((AT194^2)+(AT195^2)+(AT196^2)+(AT197^2))","v":19.697715603592208},{"$f":"AU194+AU195+AU196+AU197","v":79},{"$f":"SQRT((AV194^2)+(AV195^2)+(AV196^2)+(AV197^2))","v":60.778285596090974}]
[null,"35.0 percent or more",{"$f":"C198+C199+C200","v":11},{"$f":"SQRT((D198^2)+(D199^2)+(D200^2))","v":22.315913604421397},{"$f":"E198+E199+E200","v":57},{"$f":"SQRT((F198^2)+(F199^2)+(F200^2))","v":69.756720106381152},{"$f":"G198+G199+G200","v":13},{"$f":"SQRT((H198^2)+(H199^2)+(H200^2))","v":22.315913604421397},{"$f":"I198+I199+I200","v":23},{"$f":"SQRT((J198^2)+(J199^2)+(J200^2))","v":25.337718918639855},{"$f":"K198+K199+K200","v":3},{"$f":"SQRT((L198^2)+(L199^2)+(L200^2))","v":12.083045973594572},{"$f":"M198+M199+M200","v":0},{"$f":"SQRT((N198^2)+(N199^2)+(N200^2))","v":19.05255888325765},{"$f":"O198+O199+O200","v":33},{"$f":"SQRT((P198^2)+(P199^2)+(P200^2))","v":44.788391353117383},{"$f":"Q198+Q199+Q200","v":768},{"$f":"SQRT((R198^2)+(R199^2)+(R200^2))","v":239.56210050840679},{"$f":"S198+S199+S200","v":689},{"$f":"SQRT((T198^2)+(T199^2)+(T200^2))","v":223.21962279333778},{"$f":"U198+U199+U200","v":67},{"$f":"SQRT((V198^2)+(V199^2)+(V200^2))","v":52.009614495783374},{"$f":"W198+W199+W200","v":2},{"$f":"SQRT((X198^2)+(X199^2)+(X200^2))","v":16.06237840420901},{"$f":"Y198+Y199+Y200","v":13},{"$f":"SQRT((Z198^2)+(Z199^2)+(Z200^2))","v":13.928388277184119},{"$f":"AA198+AA199+AA200","v":9},{"$f":"SQRT((AB198^2)+(AB199^2)+(AB200^2))","v":20.928449536456348},{"$f":"AC198+AC199+AC200","v":48},{"$f":"SQRT((AD198^2)+(AD199^2)+(AD200^2))","v":36.055512754639892},{"$f":"AE198+AE199+AE200","v":0},{"$f":"SQRT((AF198^2)+(AF199^2)+(AF200^2))","v":19.05255888325765},{"$f":"AG198+AG199+AG200","v":9},{"$f":"SQRT((AH198^2)+(AH199^2)+(AH200^2))","v":20.928449536456348},{"$f":"AI198+AI199+AI200","v":2},{"$f":"SQRT((AJ198^2)+(AJ199^2)+(AJ200^2))","v":15.684387141358123},{"$f":"AK198+AK199+AK200","v":0},{"$f":"SQRT((AL198^2)+(AL199^2)+(AL200^2))","v":19.05255888325765},{"$f":"AM198+AM199+AM200","v":136},{"$f":"SQRT((AN198^2)+(AN199^2)+(AN200^2))","v":92.444577991356525},{"$f":"AO198+AO199+AO200","v":26},{"$f":"SQRT((AP198^2)+(AP199^2)+(AP200^2))","v":26.776855677991769},{"$f":"AQ198+AQ199+AQ200","v":9},{"$f":"SQRT((AR198^2)+(AR199^2)+(AR200^2))","v":21.61018278497431},{"$f":"AS198+AS199+AS200","v":2},{"$f":"SQRT((AT198^2)+(AT199^2)+(AT200^2))","v":16.06237840420901},{"$f":"AU198+AU199+AU200","v":65},{"$f":"SQRT((AV198^2)+(AV199^2)+(AV200^2))","v":61.814237842102365}]
[null,"50.0 percent or more",{"$f":"C200","v":0},11,0,11,13,16,14,23,1,4,0,11,7,11,267,130,270,143,19,32,0,11,11,8,9,14,8,12,0,11,0,11,0,11,0,11,68,71,{"$f":"AO200","v":13},14,0,11,2,4,0,11]
[null,"Not Computed",10,15,0,11,11,12,0,11,0,11,3,4,0,11,18,20,8,14,0,11,0,11,0,11,0,11,0,16,0,11,0,11,6,11,0,11,29,32,0,11,0,11,0,11,0,11]
[null,"$35,000 to $49,999:",35,19,28,32,8,8,39,30,2,3,8,6,0,11,480,144,488,163,77,56,15,11,5,5,6,11,47,36,1,3,11,13,22,13,2,2,149,112,33,31,120,69,0,11,22,26]
[null,"Less than 30.0 percent",{"$f":"C203+C204+C205","v":14},{"$f":"SQRT((D203^2)+(D204^2)+(D205^2))","v":16.031219541881399},{"$f":"E203+E204+E205","v":12},{"$f":"SQRT((F203^2)+(F204^2)+(F205^2))","v":25.337718918639855},{"$f":"G203+G204+G205","v":2},{"$f":"SQRT((H203^2)+(H204^2)+(H205^2))","v":16.06237840420901},{"$f":"I203+I204+I205","v":20},{"$f":"SQRT((J203^2)+(J204^2)+(J205^2))","v":29.444863728670914},{"$f":"K203+K204+K205","v":0},{"$f":"SQRT((L203^2)+(L204^2)+(L205^2))","v":19.05255888325765},{"$f":"M203+M204+M205","v":3},{"$f":"SQRT((N203^2)+(N204^2)+(N205^2))","v":16.06237840420901},{"$f":"O203+O204+O205","v":0},{"$f":"SQRT((P203^2)+(P204^2)+(P205^2))","v":19.05255888325765},{"$f":"Q203+Q204+Q205","v":277},{"$f":"SQRT((R203^2)+(R204^2)+(R205^2))","v":127.69103335786738},{"$f":"S203+S204+S205","v":279},{"$f":"SQRT((T203^2)+(T204^2)+(T205^2))","v":135.4400236266961},{"$f":"U203+U204+U205","v":61},{"$f":"SQRT((V203^2)+(V204^2)+(V205^2))","v":51.127292124656869},{"$f":"W203+W204+W205","v":7},{"$f":"SQRT((X203^2)+(X204^2)+(X205^2))","v":19.05255888325765},{"$f":"Y203+Y204+Y205","v":5},{"$f":"SQRT((Z203^2)+(Z204^2)+(Z205^2))","v":16.340134638368191},{"$f":"AA203+AA204+AA205","v":0},{"$f":"SQRT((AB203^2)+(AB204^2)+(AB205^2))","v":19.05255888325765},{"$f":"AC203+AC204+AC205","v":23},{"$f":"SQRT((AD203^2)+(AD204^2)+(AD205^2))","v":26.248809496813376},{"$f":"AE203+AE204+AE205","v":0},{"$f":"SQRT((AF203^2)+(AF204^2)+(AF205^2))","v":19.05255888325765},{"$f":"AG203+AG204+AG205","v":0},{"$f":"SQRT((AH203^2)+(AH204^2)+(AH205^2))","v":19.05255888325765},{"$f":"AI203+AI204+AI205","v":12},{"$f":"SQRT((AJ203^2)+(AJ204^2)+(AJ205^2))","v":20.928449536456348},{"$f":"AK203+AK204+AK205","v":2},{"$f":"SQRT((AL203^2)+(AL204^2)+(AL205^2))","v":15.684387141358123},{"$f":"AM203+AM204+AM205","v":101},{"$f":"SQRT((AN203^2)+(AN204^2)+(AN205^2))","v":96.648848932617923},{"$f":"AO203+AO204+AO205","v":33},{"$f":"SQRT((AP203^2)+(AP204^2)+(AP205^2))","v":33.196385345395662},{"$f":"AQ203+AQ204+AQ205","v":120},{"$f":"SQRT((AR203^2)+(AR204^2)+(AR205^2))","v":67.675697262754525},{"$f":"AS203+AS204+AS205","v":0},{"$f":"SQRT((AT203^2)+(AT204^2)+(AT205^2))","v":19.05255888325765},{"$f":"AU203+AU204+AU205","v":10},{"$f":"SQRT((AV203^2)+(AV204^2)+(AV205^2))","v":22.315913604421397}]
[null,"More than 30.0 percent",{"$f":"C206+C207+C208+C209","v":16},{"$f":"SQRT((D206^2)+(D207^2)+(D208^2)+(D209^2))","v":20.297783130184438},{"$f":"E206+E207+E208+E209","v":16},{"$f":"SQRT((F206^2)+(F207^2)+(F208^2)+(F209^2))","v":29.866369046136157},{"$f":"G206+G207+G208+G209","v":3},{"$f":"SQRT((H206^2)+(H207^2)+(H208^2)+(H209^2))","v":19.697715603592208},{"$f":"I206+I207+I208+I209","v":5},{"$f":"SQRT((J206^2)+(J207^2)+(J208^2)+(J209^2))","v":20.297783130184438},{"$f":"K206+K207+K208+K209","v":2},{"$f":"SQRT((L206^2)+(L207^2)+(L208^2)+(L209^2))","v":19.28730152198591},{"$f":"M206+M207+M208+M209","v":5},{"$f":"SQRT((N206^2)+(N207^2)+(N208^2)+(N209^2))","v":16.822603841260722},{"$f":"O206+O207+O208+O209","v":0},{"$f":"SQRT((P206^2)+(P207^2)+(P208^2)+(P209^2))","v":22},{"$f":"Q206+Q207+Q208+Q209","v":203},{"$f":"SQRT((R206^2)+(R207^2)+(R208^2)+(R209^2))","v":86.706401147781477},{"$f":"S206+S207+S208+S209","v":209},{"$f":"SQRT((T206^2)+(T207^2)+(T208^2)+(T209^2))","v":86.614086614129917},{"$f":"U206+U207+U208+U209","v":16},{"$f":"SQRT((V206^2)+(V207^2)+(V208^2)+(V209^2))","v":30.643106892089126},{"$f":"W206+W207+W208+W209","v":2},{"$f":"SQRT((X206^2)+(X207^2)+(X208^2)+(X209^2))","v":19.28730152198591},{"$f":"Y206+Y207+Y208+Y209","v":0},{"$f":"SQRT((Z206^2)+(Z207^2)+(Z208^2)+(Z209^2))","v":22},{"$f":"AA206+AA207+AA208+AA209","v":6},{"$f":"SQRT((AB206^2)+(AB207^2)+(AB208^2)+(AB209^2))","v":22},{"$f":"AC206+AC207+AC208+AC209","v":24},{"$f":"SQRT((AD206^2)+(AD207^2)+(AD208^2)+(AD209^2))","v":35.846896657869841},{"$f":"AE206+AE207+AE208+AE209","v":1},{"$f":"SQRT((AF206^2)+(AF207^2)+(AF208^2)+(AF209^2))","v":19.28730152198591},{"$f":"AG206+AG207+AG208+AG209","v":11},{"$f":"SQRT((AH206^2)+(AH207^2)+(AH208^2)+(AH209^2))","v":20.049937655763422},{"$f":"AI206+AI207+AI208+AI209","v":10},{"$f":"SQRT((AJ206^2)+(AJ207^2)+(AJ208^2)+(AJ209^2))","v":18.920887928424502},{"$f":"AK206+AK207+AK208+AK209","v":0},{"$f":"SQRT((AL206^2)+(AL207^2)+(AL208^2)+(AL209^2))","v":22},{"$f":"AM206+AM207+AM208+AM209","v":38},{"$f":"SQRT((AN206^2)+(AN207^2)+(AN208^2)+(AN209^2))","v":64.280634719952786},{"$f":"AO206+AO207+AO208+AO209","v":0},{"$f":"SQRT((AP206^2)+(AP207^2)+(AP208^2)+(AP209^2))","v":22},{"$f":"AQ206+AQ207+AQ208+AQ209","v":0},{"$f":"SQRT((AR206^2)+(AR207^2)+(AR208^2)+(AR209^2))","v":22},{"$f":"AS206+AS207+AS208+AS209","v":0},{"$f":"SQRT((AT206^2)+(AT207^2)+(AT208^2)+(AT209^2))","v":22},{"$f":"AU206+AU207+AU208+AU209","v":0},{"$f":"SQRT((AV206^2)+(AV207^2)+(AV208^2)+(AV209^2))","v":22}]
[null,"Less Than 35% of HH Income",{"$f":"C203+C204+C205+C206","v":14},{"$f":"SQRT((D203^2)+(D204^2)+(D205^2)+(D206^2))","v":19.442222095223581},{"$f":"E203+E204+E205+E206","v":28},{"$f":"SQRT((F203^2)+(F204^2)+(F205^2)+(F206^2))","v":34.219877264537345},{"$f":"G203+G204+G205+G206","v":2},{"$f":"SQRT((H203^2)+(H204^2)+(H205^2)+(H206^2))","v":19.467922333931785},{"$f":"I203+I204+I205+I206","v":20},{"$f":"SQRT((J203^2)+(J204^2)+(J205^2)+(J206^2))","v":31.432467291003423},{"$f":"K203+K204+K205+K206","v":2},{"$f":"SQRT((L203^2)+(L204^2)+(L205^2)+(L206^2))","v":19.28730152198591},{"$f":"M203+M204+M205+M206","v":5},{"$f":"SQRT((N203^2)+(N204^2)+(N205^2)+(N206^2))","v":16.822603841260722},{"$f":"O203+O204+O205+O206","v":0},{"$f":"SQRT((P203^2)+(P204^2)+(P205^2)+(P206^2))","v":22},{"$f":"Q203+Q204+Q205+Q206","v":395},{"$f":"SQRT((R203^2)+(R204^2)+(R205^2)+(R206^2))","v":145.6193668438371},{"$f":"S203+S204+S205+S206","v":356},{"$f":"SQRT((T203^2)+(T204^2)+(T205^2)+(T206^2))","v":146.56056768449008},{"$f":"U203+U204+U205+U206","v":61},{"$f":"SQRT((V203^2)+(V204^2)+(V205^2)+(V206^2))","v":52.297227459971531},{"$f":"W203+W204+W205+W206","v":9},{"$f":"SQRT((X203^2)+(X204^2)+(X205^2)+(X206^2))","v":19.28730152198591},{"$f":"Y203+Y204+Y205+Y206","v":5},{"$f":"SQRT((Z203^2)+(Z204^2)+(Z205^2)+(Z206^2))","v":19.697715603592208},{"$f":"AA203+AA204+AA205+AA206","v":0},{"$f":"SQRT((AB203^2)+(AB204^2)+(AB205^2)+(AB206^2))","v":22},{"$f":"AC203+AC204+AC205+AC206","v":23},{"$f":"SQRT((AD203^2)+(AD204^2)+(AD205^2)+(AD206^2))","v":30.740852297878796},{"$f":"AE203+AE204+AE205+AE206","v":0},{"$f":"SQRT((AF203^2)+(AF204^2)+(AF205^2)+(AF206^2))","v":22},{"$f":"AG203+AG204+AG205+AG206","v":0},{"$f":"SQRT((AH203^2)+(AH204^2)+(AH205^2)+(AH206^2))","v":22},{"$f":"AI203+AI204+AI205+AI206","v":12},{"$f":"SQRT((AJ203^2)+(AJ204^2)+(AJ205^2)+(AJ206^2))","v":23.643180835073778},{"$f":"AK203+AK204+AK205+AK206","v":2},{"$f":"SQRT((AL203^2)+(AL204^2)+(AL205^2)+(AL206^2))","v":19.157244060668017},{"$f":"AM203+AM204+AM205+AM206","v":101},{"$f":"SQRT((AN203^2)+(AN204^2)+(AN205^2)+(AN206^2))","v":97.964279204207898},{"$f":"AO203+AO204+AO205+AO206","v":33},{"$f":"SQRT((AP203^2)+(AP204^2)+(AP205^2)+(AP206^2))","v":34.97141690009142},{"$f":"AQ203+AQ204+AQ205+AQ206","v":120},{"$f":"SQRT((AR203^2)+(AR204^2)+(AR205^2)+(AR206^2))","v":68.563838865687799},{"$f":"AS203+AS204+AS205+AS206","v":0},{"$f":"SQRT((AT203^2)+(AT204^2)+(AT205^2)+(AT206^2))","v":22},{"$f":"AU203+AU204+AU205+AU206","v":10},{"$f":"SQRT((AV203^2)+(AV204^2)+(AV205^2)+(AV206^2))","v":24.879710609249457}]
[null,"35.0 percent or more",{"$f":"C207+C208+C209","v":16},{"$f":"SQRT((D207^2)+(D208^2)+(D209^2))","v":17.058722109231979},{"$f":"E207+E208+E209","v":0},{"$f":"SQRT((F207^2)+(F208^2)+(F209^2))","v":19.05255888325765},{"$f":"G207+G208+G209","v":3},{"$f":"SQRT((H207^2)+(H208^2)+(H209^2))","v":16.340134638368191},{"$f":"I207+I208+I209","v":5},{"$f":"SQRT((J207^2)+(J208^2)+(J209^2))","v":17.058722109231979},{"$f":"K207+K208+K209","v":0},{"$f":"SQRT((L207^2)+(L208^2)+(L209^2))","v":19.05255888325765},{"$f":"M207+M208+M209","v":3},{"$f":"SQRT((N207^2)+(N208^2)+(N209^2))","v":16.06237840420901},{"$f":"O207+O208+O209","v":0},{"$f":"SQRT((P207^2)+(P208^2)+(P209^2))","v":19.05255888325765},{"$f":"Q207+Q208+Q209","v":85},{"$f":"SQRT((R207^2)+(R208^2)+(R209^2))","v":51.166395221864128},{"$f":"S207+S208+S209","v":132},{"$f":"SQRT((T207^2)+(T208^2)+(T209^2))","v":66.075714146727165},{"$f":"U207+U208+U209","v":16},{"$f":"SQRT((V207^2)+(V208^2)+(V209^2))","v":28.600699292150182},{"$f":"W207+W208+W209","v":0},{"$f":"SQRT((X207^2)+(X208^2)+(X209^2))","v":19.05255888325765},{"$f":"Y207+Y208+Y209","v":0},{"$f":"SQRT((Z207^2)+(Z208^2)+(Z209^2))","v":19.05255888325765},{"$f":"AA207+AA208+AA209","v":6},{"$f":"SQRT((AB207^2)+(AB208^2)+(AB209^2))","v":19.05255888325765},{"$f":"AC207+AC208+AC209","v":24},{"$f":"SQRT((AD207^2)+(AD208^2)+(AD209^2))","v":32.078029864690883},{"$f":"AE207+AE208+AE209","v":1},{"$f":"SQRT((AF207^2)+(AF208^2)+(AF209^2))","v":15.842979517754859},{"$f":"AG207+AG208+AG209","v":11},{"$f":"SQRT((AH207^2)+(AH208^2)+(AH209^2))","v":16.763054614240211},{"$f":"AI207+AI208+AI209","v":10},{"$f":"SQRT((AJ207^2)+(AJ208^2)+(AJ209^2))","v":15.394804318340652},{"$f":"AK207+AK208+AK209","v":0},{"$f":"SQRT((AL207^2)+(AL208^2)+(AL209^2))","v":19.05255888325765},{"$f":"AM207+AM208+AM209","v":38},{"$f":"SQRT((AN207^2)+(AN208^2)+(AN209^2))","v":62.257529665093521},{"$f":"AO207+AO208+AO209","v":0},{"$f":"SQRT((AP207^2)+(AP208^2)+(AP209^2))","v":19.05255888325765},{"$f":"AQ207+AQ208+AQ209","v":0},{"$f":"SQRT((AR207^2)+(AR208^2)+(AR209^2))","v":19.05255888325765},{"$f":"AS207+AS208+AS209","v":0},{"$f":"SQRT((AT207^2)+(AT208^2)+(AT209^2))","v":19.05255888325765},{"$f":"AU207+AU208+AU209","v":0},{"$f":"SQRT((AV207^2)+(AV208^2)+(AV209^2))","v":19.05255888325765}]
[null,"50.0 percent or more",{"$f":"C209","v":0},11,0,11,3,5,0,11,0,11,0,11,0,11,11,17,36,39,0,11,0,11,0,11,0,11,0,16,0,11,8,12,0,11,0,11,0,16,{"$f":"AO209","v":0},{"$f":"AP209","v":11},{"$f":"AQ209","v":0},11,{"$f":"AS209","v":0},11,{"$f":"AU209","v":0},11]
[null,"Not Computed",5,7,0,11,3,4,14,21,0,11,0,11,0,11,0,21,0,20,0,11,6,9,0,11,0,11,0,16,0,11,0,11,0,11,0,11,10,19,{"$f":"AO210","v":0},11,{"$f":"AQ210","v":0},11,{"$f":"AS210","v":0},11,{"$f":"AU210","v":12},20]
[null,"$50,000 to $74,999:",53,33,44,52,47,27,27,25,6,6,10,8,112,86,1020,225,950,203,43,35,4,4,4,4,6,8,56,42,5,4,17,16,12,10,13,9,85,54,94,46,44,44,19,16,145,73]
[null,"Less than 30.0 percent",{"$f":"C212+C213+C214","v":26},{"$f":"SQRT((D212^2)+(D213^2)+(D214^2))","v":28.600699292150182},{"$f":"E212+E213+E214","v":31},{"$f":"SQRT((F212^2)+(F213^2)+(F214^2))","v":51.410115736107812},{"$f":"G212+G213+G214","v":31},{"$f":"SQRT((H212^2)+(H213^2)+(H214^2))","v":22.715633383201094},{"$f":"I212+I213+I214","v":20},{"$f":"SQRT((J212^2)+(J213^2)+(J214^2))","v":27.766886753829642},{"$f":"K212+K213+K214","v":6},{"$f":"SQRT((L212^2)+(L213^2)+(L214^2))","v":13.152946437965905},{"$f":"M212+M213+M214","v":6},{"$f":"SQRT((N212^2)+(N213^2)+(N214^2))","v":12.449899597988733},{"$f":"O212+O213+O214","v":90},{"$f":"SQRT((P212^2)+(P213^2)+(P214^2))","v":83.654049513457508},{"$f":"Q212+Q213+Q214","v":861},{"$f":"SQRT((R212^2)+(R213^2)+(R214^2))","v":239.21120375099491},{"$f":"S212+S213+S214","v":743},{"$f":"SQRT((T212^2)+(T213^2)+(T214^2))","v":179.09215504873461},{"$f":"U212+U213+U214","v":30},{"$f":"SQRT((V212^2)+(V213^2)+(V214^2))","v":29.086079144497972},{"$f":"W212+W213+W214","v":2},{"$f":"SQRT((X212^2)+(X213^2)+(X214^2))","v":15.842979517754859},{"$f":"Y212+Y213+Y214","v":2},{"$f":"SQRT((Z212^2)+(Z213^2)+(Z214^2))","v":15.842979517754859},{"$f":"AA212+AA213+AA214","v":6},{"$f":"SQRT((AB212^2)+(AB213^2)+(AB214^2))","v":13.379088160259652},{"$f":"AC212+AC213+AC214","v":19},{"$f":"SQRT((AD212^2)+(AD213^2)+(AD214^2))","v":36.783148315499041},{"$f":"AE212+AE213+AE214","v":3},{"$f":"SQRT((AF212^2)+(AF213^2)+(AF214^2))","v":11.789826122551595},{"$f":"AG212+AG213+AG214","v":15},{"$f":"SQRT((AH212^2)+(AH213^2)+(AH214^2))","v":19.261360284258224},{"$f":"AI212+AI213+AI214","v":12},{"$f":"SQRT((AJ212^2)+(AJ213^2)+(AJ214^2))","v":15.165750888103101},{"$f":"AK212+AK213+AK214","v":11},{"$f":"SQRT((AL212^2)+(AL213^2)+(AL214^2))","v":8.6023252670426267},{"$f":"AM212+AM213+AM214","v":63},{"$f":"SQRT((AN212^2)+(AN213^2)+(AN214^2))","v":47.497368348151667},{"$f":"AO212+AO213+AO214","v":88},{"$f":"SQRT((AP212^2)+(AP213^2)+(AP214^2))","v":45.891175622335062},{"$f":"AQ212+AQ213+AQ214","v":44},{"$f":"SQRT((AR212^2)+(AR213^2)+(AR214^2))","v":46.925472826600263},{"$f":"AS212+AS213+AS214","v":15},{"$f":"SQRT((AT212^2)+(AT213^2)+(AT214^2))","v":17.058722109231979},{"$f":"AU212+AU213+AU214","v":110},{"$f":"SQRT((AV212^2)+(AV213^2)+(AV214^2))","v":71.728655361717188}]
[null,"More than 30.0 percent",{"$f":"C215+C216+C217+C218","v":14},{"$f":"SQRT((D215^2)+(D216^2)+(D217^2)+(D218^2))","v":28.354893757515651},{"$f":"E215+E216+E217+E218","v":0},{"$f":"SQRT((F215^2)+(F216^2)+(F217^2)+(F218^2))","v":22},{"$f":"G215+G216+G217+G218","v":3},{"$f":"SQRT((H215^2)+(H216^2)+(H217^2)+(H218^2))","v":19.467922333931785},{"$f":"I215+I216+I217+I218","v":7},{"$f":"SQRT((J215^2)+(J216^2)+(J217^2)+(J218^2))","v":21.071307505705477},{"$f":"K215+K216+K217+K218","v":0},{"$f":"SQRT((L215^2)+(L216^2)+(L217^2)+(L218^2))","v":22},{"$f":"M215+M216+M217+M218","v":0},{"$f":"SQRT((N215^2)+(N216^2)+(N217^2)+(N218^2))","v":22},{"$f":"O215+O216+O217+O218","v":10},{"$f":"SQRT((P215^2)+(P216^2)+(P217^2)+(P218^2))","v":24.248711305964282},{"$f":"Q215+Q216+Q217+Q218","v":143},{"$f":"SQRT((R215^2)+(R216^2)+(R217^2)+(R218^2))","v":94.079753401037351},{"$f":"S215+S216+S217+S218","v":207},{"$f":"SQRT((T215^2)+(T216^2)+(T217^2)+(T218^2))","v":122.23747379588634},{"$f":"U215+U216+U217+U218","v":0},{"$f":"SQRT((V215^2)+(V216^2)+(V217^2)+(V218^2))","v":22},{"$f":"W215+W216+W217+W218","v":2},{"$f":"SQRT((X215^2)+(X216^2)+(X217^2)+(X218^2))","v":19.28730152198591},{"$f":"Y215+Y216+Y217+Y218","v":2},{"$f":"SQRT((Z215^2)+(Z216^2)+(Z217^2)+(Z218^2))","v":19.467922333931785},{"$f":"AA215+AA216+AA217+AA218","v":0},{"$f":"SQRT((AB215^2)+(AB216^2)+(AB217^2)+(AB218^2))","v":22},{"$f":"AC215+AC216+AC217+AC218","v":30},{"$f":"SQRT((AD215^2)+(AD216^2)+(AD217^2)+(AD218^2))","v":35.888716889852724},{"$f":"AE215+AE216+AE217+AE218","v":2},{"$f":"SQRT((AF215^2)+(AF216^2)+(AF217^2)+(AF218^2))","v":19.28730152198591},{"$f":"AG215+AG216+AG217+AG218","v":0},{"$f":"SQRT((AH215^2)+(AH216^2)+(AH217^2)+(AH218^2))","v":22},{"$f":"AI215+AI216+AI217+AI218","v":0},{"$f":"SQRT((AJ215^2)+(AJ216^2)+(AJ217^2)+(AJ218^2))","v":22},{"$f":"AK215+AK216+AK217+AK218","v":2},{"$f":"SQRT((AL215^2)+(AL216^2)+(AL217^2)+(AL218^2))","v":19.28730152198591},{"$f":"AM215+AM216+AM217+AM218","v":22},{"$f":"SQRT((AN215^2)+(AN216^2)+(AN217^2)+(AN218^2))","v":44.643028571099428},{"$f":"AO215+AO216+AO217+AO218","v":6},{"$f":"SQRT((AP215^2)+(AP216^2)+(AP217^2)+(AP218^2))","v":21.071307505705477},{"$f":"AQ215+AQ216+AQ217+AQ218","v":0},{"$f":"SQRT((AR215^2)+(AR216^2)+(AR217^2)+(AR218^2))","v":22},{"$f":"AS215+AS216+AS217+AS218","v":4},{"$f":"SQRT((AT215^2)+(AT216^2)+(AT217^2)+(AT218^2))","v":19.974984355438178},{"$f":"AU215+AU216+AU217+AU218","v":19},{"$f":"SQRT((AV215^2)+(AV216^2)+(AV217^2)+(AV218^2))","v":35.538711287833721}]
[null,"Less Than 35% of HH Income",{"$f":"C215+C214+C213+C212","v":40},{"$f":"SQRT((D215^2)+(D214^2)+(D213^2)+(D212^2))","v":35.482389998420345},{"$f":"E215+E214+E213+E212","v":31},{"$f":"SQRT((F215^2)+(F214^2)+(F213^2)+(F212^2))","v":52.57375771237966},{"$f":"G215+G214+G213+G212","v":34},{"$f":"SQRT((H215^2)+(H214^2)+(H213^2)+(H212^2))","v":23.065125189341593},{"$f":"I215+I214+I213+I212","v":27},{"$f":"SQRT((J215^2)+(J214^2)+(J213^2)+(J212^2))","v":29.189039038652847},{"$f":"K215+K214+K213+K212","v":6},{"$f":"SQRT((L215^2)+(L214^2)+(L213^2)+(L212^2))","v":17.146428199482248},{"$f":"M215+M214+M213+M212","v":6},{"$f":"SQRT((N215^2)+(N214^2)+(N213^2)+(N212^2))","v":16.61324772583615},{"$f":"O215+O214+O213+O212","v":100},{"$f":"SQRT((P215^2)+(P214^2)+(P213^2)+(P212^2))","v":84.988234479838439},{"$f":"Q215+Q214+Q213+Q212","v":956},{"$f":"SQRT((R215^2)+(R214^2)+(R213^2)+(R212^2))","v":253.86413689215735},{"$f":"S215+S214+S213+S212","v":871},{"$f":"SQRT((T215^2)+(T214^2)+(T213^2)+(T212^2))","v":202.72888299401248},{"$f":"U215+U214+U213+U212","v":30},{"$f":"SQRT((V215^2)+(V214^2)+(V213^2)+(V212^2))","v":31.096623610932426},{"$f":"W215+W214+W213+W212","v":4},{"$f":"SQRT((X215^2)+(X214^2)+(X213^2)+(X212^2))","v":16.124515496597098},{"$f":"Y215+Y214+Y213+Y212","v":2},{"$f":"SQRT((Z215^2)+(Z214^2)+(Z213^2)+(Z212^2))","v":19.28730152198591},{"$f":"AA215+AA214+AA213+AA212","v":6},{"$f":"SQRT((AB215^2)+(AB214^2)+(AB213^2)+(AB212^2))","v":17.320508075688775},{"$f":"AC215+AC214+AC213+AC212","v":43},{"$f":"SQRT((AD215^2)+(AD214^2)+(AD213^2)+(AD212^2))","v":45.044422518220834},{"$f":"AE215+AE214+AE213+AE212","v":5},{"$f":"SQRT((AF215^2)+(AF214^2)+(AF213^2)+(AF212^2))","v":12.165525060596439},{"$f":"AG215+AG214+AG213+AG212","v":15},{"$f":"SQRT((AH215^2)+(AH214^2)+(AH213^2)+(AH212^2))","v":22.181073012818835},{"$f":"AI215+AI214+AI213+AI212","v":12},{"$f":"SQRT((AJ215^2)+(AJ214^2)+(AJ213^2)+(AJ212^2))","v":18.734993995195193},{"$f":"AK215+AK214+AK213+AK212","v":13},{"$f":"SQRT((AL215^2)+(AL214^2)+(AL213^2)+(AL212^2))","v":9.1104335791442992},{"$f":"AM215+AM214+AM213+AM212","v":85},{"$f":"SQRT((AN215^2)+(AN214^2)+(AN213^2)+(AN212^2))","v":59},{"$f":"AO215+AO214+AO213+AO212","v":88},{"$f":"SQRT((AP215^2)+(AP214^2)+(AP213^2)+(AP212^2))","v":47.191100855987671},{"$f":"AQ215+AQ214+AQ213+AQ212","v":44},{"$f":"SQRT((AR215^2)+(AR214^2)+(AR213^2)+(AR212^2))","v":48.19751030914356},{"$f":"AS215+AS214+AS213+AS212","v":15},{"$f":"SQRT((AT215^2)+(AT214^2)+(AT213^2)+(AT212^2))","v":20.297783130184438},{"$f":"AU215+AU214+AU213+AU212","v":129},{"$f":"SQRT((AV215^2)+(AV214^2)+(AV213^2)+(AV212^2))","v":77.749598069700653}]
[null,"35.0 percent or more",{"$f":"C216+C217+C218","v":0},{"$f":"SQRT((D216^2)+(D217^2)+(D218^2))","v":19.05255888325765},{"$f":"E216+E217+E218","v":0},{"$f":"SQRT((F216^2)+(F217^2)+(F218^2))","v":19.05255888325765},{"$f":"G216+G217+G218","v":0},{"$f":"SQRT((H216^2)+(H217^2)+(H218^2))","v":19.05255888325765},{"$f":"I216+I217+I218","v":0},{"$f":"SQRT((J216^2)+(J217^2)+(J218^2))","v":19.05255888325765},{"$f":"K216+K217+K218","v":0},{"$f":"SQRT((L216^2)+(L217^2)+(L218^2))","v":19.05255888325765},{"$f":"M216+M217+M218","v":0},{"$f":"SQRT((N216^2)+(N217^2)+(N218^2))","v":19.05255888325765},{"$f":"O216+O217+O218","v":0},{"$f":"SQRT((P216^2)+(P217^2)+(P218^2))","v":19.05255888325765},{"$f":"Q216+Q217+Q218","v":48},{"$f":"SQRT((R216^2)+(R217^2)+(R218^2))","v":40.323690307311907},{"$f":"S216+S217+S218","v":79},{"$f":"SQRT((T216^2)+(T217^2)+(T218^2))","v":76.922038454528746},{"$f":"U216+U217+U218","v":0},{"$f":"SQRT((V216^2)+(V217^2)+(V218^2))","v":19.05255888325765},{"$f":"W216+W217+W218","v":0},{"$f":"SQRT((X216^2)+(X217^2)+(X218^2))","v":19.05255888325765},{"$f":"Y216+Y217+Y218","v":2},{"$f":"SQRT((Z216^2)+(Z217^2)+(Z218^2))","v":16.06237840420901},{"$f":"AA216+AA217+AA218","v":0},{"$f":"SQRT((AB216^2)+(AB217^2)+(AB218^2))","v":19.05255888325765},{"$f":"AC216+AC217+AC218","v":6},{"$f":"SQRT((AD216^2)+(AD217^2)+(AD218^2))","v":24.738633753705962},{"$f":"AE216+AE217+AE218","v":0},{"$f":"SQRT((AF216^2)+(AF217^2)+(AF218^2))","v":19.05255888325765},{"$f":"AG216+AG217+AG218","v":0},{"$f":"SQRT((AH216^2)+(AH217^2)+(AH218^2))","v":19.05255888325765},{"$f":"AI216+AI217+AI218","v":0},{"$f":"SQRT((AJ216^2)+(AJ217^2)+(AJ218^2))","v":19.05255888325765},{"$f":"AK216+AK217+AK218","v":0},{"$f":"SQRT((AL216^2)+(AL217^2)+(AL218^2))","v":19.05255888325765},{"$f":"AM216+AM217+AM218","v":0},{"$f":"SQRT((AN216^2)+(AN217^2)+(AN218^2))","v":27.712812921102035},{"$f":"AO216+AO217+AO218","v":6},{"$f":"SQRT((AP216^2)+(AP217^2)+(AP218^2))","v":17.972200755611428},{"$f":"AQ216+AQ217+AQ218","v":0},{"$f":"SQRT((AR216^2)+(AR217^2)+(AR218^2))","v":19.05255888325765},{"$f":"AS216+AS217+AS218","v":4},{"$f":"SQRT((AT216^2)+(AT217^2)+(AT218^2))","v":16.673332000533065},{"$f":"AU216+AU217+AU218","v":0},{"$f":"SQRT((AV216^2)+(AV217^2)+(AV218^2))","v":19.05255888325765}]
[null,"50.0 percent or more",{"$f":"C218","v":0},11,0,11,0,11,0,11,0,11,0,11,0,11,18,29,16,24,0,11,0,11,0,11,0,11,0,16,0,11,0,11,0,11,0,11,0,16,{"$f":"AO218","v":0},{"$f":"AP218","v":11},{"$f":"AQ218","v":0},11,{"$f":"AS218","v":0},11,{"$f":"AU218","v":0},11]
[null,"Not Computed",13,11,13,20,13,14,0,11,0,11,4,6,12,18,16,26,0,20,13,22,0,11,0,11,0,11,7,11,0,11,2,5,0,11,0,11,0,16,{"$f":"AO219","v":0},11,{"$f":"AQ219","v":0},11,{"$f":"AS219","v":0},11,{"$f":"AU219","v":16},17]
[null,"$75,000 to $99,999:",0,11,18,28,9,8,4,7,2,3,13,13,38,33,345,157,400,136,10,11,0,11,3,4,16,18,26,25,0,11,7,7,12,13,6,10,20,25,{"$f":"AO220","v":24},21,{"$f":"AQ220","v":46},37,{"$f":"AS220","v":10},9,{"$f":"AU220","v":23},25]
[null,"Less than 30.0 percent",{"$f":"C221+C222+C223","v":0},{"$f":"SQRT((D221^2)+(D222^2)+(D223^2))","v":19.05255888325765},{"$f":"E221+E222+E223","v":18},{"$f":"SQRT((F221^2)+(F222^2)+(F223^2))","v":32.03123475609393},{"$f":"G221+G222+G223","v":3},{"$f":"SQRT((H221^2)+(H222^2)+(H223^2))","v":16.340134638368191},{"$f":"I221+I222+I223","v":4},{"$f":"SQRT((J221^2)+(J222^2)+(J223^2))","v":17.058722109231979},{"$f":"K221+K222+K223","v":0},{"$f":"SQRT((L221^2)+(L222^2)+(L223^2))","v":19.05255888325765},{"$f":"M221+M222+M223","v":13},{"$f":"SQRT((N221^2)+(N222^2)+(N223^2))","v":17.349351572897472},{"$f":"O221+O222+O223","v":38},{"$f":"SQRT((P221^2)+(P222^2)+(P223^2))","v":35.791060336346561},{"$f":"Q221+Q222+Q223","v":338},{"$f":"SQRT((R221^2)+(R222^2)+(R223^2))","v":147.54321400864222},{"$f":"S221+S222+S223","v":381},{"$f":"SQRT((T221^2)+(T222^2)+(T223^2))","v":151.9341962824696},{"$f":"U221+U222+U223","v":10},{"$f":"SQRT((V221^2)+(V222^2)+(V223^2))","v":19.05255888325765},{"$f":"W221+W222+W223","v":0},{"$f":"SQRT((X221^2)+(X222^2)+(X223^2))","v":19.05255888325765},{"$f":"Y221+Y222+Y223","v":3},{"$f":"SQRT((Z221^2)+(Z222^2)+(Z223^2))","v":16.06237840420901},{"$f":"AA221+AA222+AA223","v":16},{"$f":"SQRT((AB221^2)+(AB222^2)+(AB223^2))","v":23.790754506740637},{"$f":"AC221+AC222+AC223","v":26},{"$f":"SQRT((AD221^2)+(AD222^2)+(AD223^2))","v":29.34280150224242},{"$f":"AE221+AE222+AE223","v":0},{"$f":"SQRT((AF221^2)+(AF222^2)+(AF223^2))","v":19.05255888325765},{"$f":"AG221+AG222+AG223","v":7},{"$f":"SQRT((AH221^2)+(AH222^2)+(AH223^2))","v":17.058722109231979},{"$f":"AI221+AI222+AI223","v":12},{"$f":"SQRT((AJ221^2)+(AJ222^2)+(AJ223^2))","v":20.273134932713294},{"$f":"AK221+AK222+AK223","v":6},{"$f":"SQRT((AL221^2)+(AL222^2)+(AL223^2))","v":18.493242008906929},{"$f":"AM221+AM222+AM223","v":8},{"$f":"SQRT((AN221^2)+(AN222^2)+(AN223^2))","v":27.147743920996454},{"$f":"AO221+AO222+AO223","v":24},{"$f":"SQRT((AP221^2)+(AP222^2)+(AP223^2))","v":23.345235059857504},{"$f":"AQ221+AQ222+AQ223","v":38},{"$f":"SQRT((AR221^2)+(AR222^2)+(AR223^2))","v":37.107950630558946},{"$f":"AS221+AS222+AS223","v":10},{"$f":"SQRT((AT221^2)+(AT222^2)+(AT223^2))","v":14.352700094407323},{"$f":"AU221+AU222+AU223","v":23},{"$f":"SQRT((AV221^2)+(AV222^2)+(AV223^2))","v":27.766886753829642}]
[null,"More than 30.0 percent",{"$f":"C224+C225+C226+C227","v":0},{"$f":"SQRT((D224^2)+(D225^2)+(D226^2)+(D227^2))","v":22},{"$f":"E224+E225+E226+E227","v":0},{"$f":"SQRT((F224^2)+(F225^2)+(F226^2)+(F227^2))","v":22},{"$f":"G224+G225+G226+G227","v":3},{"$f":"SQRT((H224^2)+(H225^2)+(H226^2)+(H227^2))","v":19.467922333931785},{"$f":"I224+I225+I226+I227","v":0},{"$f":"SQRT((J224^2)+(J225^2)+(J226^2)+(J227^2))","v":22},{"$f":"K224+K225+K226+K227","v":0},{"$f":"SQRT((L224^2)+(L225^2)+(L226^2)+(L227^2))","v":22},{"$f":"M224+M225+M226+M227","v":0},{"$f":"SQRT((N224^2)+(N225^2)+(N226^2)+(N227^2))","v":22},{"$f":"O224+O225+O226+O227","v":0},{"$f":"SQRT((P224^2)+(P225^2)+(P226^2)+(P227^2))","v":22},{"$f":"Q224+Q225+Q226+Q227","v":7},{"$f":"SQRT((R224^2)+(R225^2)+(R226^2)+(R227^2))","v":38.301436004411116},{"$f":"S224+S225+S226+S227","v":19},{"$f":"SQRT((T224^2)+(T225^2)+(T226^2)+(T227^2))","v":36.905284174491868},{"$f":"U224+U225+U226+U227","v":0},{"$f":"SQRT((V224^2)+(V225^2)+(V226^2)+(V227^2))","v":22},{"$f":"W224+W225+W226+W227","v":0},{"$f":"SQRT((X224^2)+(X225^2)+(X226^2)+(X227^2))","v":22},{"$f":"Y224+Y225+Y226+Y227","v":0},{"$f":"SQRT((Z224^2)+(Z225^2)+(Z226^2)+(Z227^2))","v":22},{"$f":"AA224+AA225+AA226+AA227","v":0},{"$f":"SQRT((AB224^2)+(AB225^2)+(AB226^2)+(AB227^2))","v":22},{"$f":"AC224+AC225+AC226+AC227","v":0},{"$f":"SQRT((AD224^2)+(AD225^2)+(AD226^2)+(AD227^2))","v":32},{"$f":"AE224+AE225+AE226+AE227","v":0},{"$f":"SQRT((AF224^2)+(AF225^2)+(AF226^2)+(AF227^2))","v":22},{"$f":"AG224+AG225+AG226+AG227","v":0},{"$f":"SQRT((AH224^2)+(AH225^2)+(AH226^2)+(AH227^2))","v":22},{"$f":"AI224+AI225+AI226+AI227","v":0},{"$f":"SQRT((AJ224^2)+(AJ225^2)+(AJ226^2)+(AJ227^2))","v":22},{"$f":"AK224+AK225+AK226+AK227","v":0},{"$f":"SQRT((AL224^2)+(AL225^2)+(AL226^2)+(AL227^2))","v":22},{"$f":"AM224+AM225+AM226+AM227","v":0},{"$f":"SQRT((AN224^2)+(AN225^2)+(AN226^2)+(AN227^2))","v":32},{"$f":"AO224+AO225+AO226+AO227","v":0},{"$f":"SQRT((AP224^2)+(AP225^2)+(AP226^2)+(AP227^2))","v":22},{"$f":"AQ224+AQ225+AQ226+AQ227","v":0},{"$f":"SQRT((AR224^2)+(AR225^2)+(AR226^2)+(AR227^2))","v":22},{"$f":"AS224+AS225+AS226+AS227","v":0},{"$f":"SQRT((AT224^2)+(AT225^2)+(AT226^2)+(AT227^2))","v":22},{"$f":"AU224+AU225+AU226+AU227","v":0},{"$f":"SQRT((AV224^2)+(AV225^2)+(AV226^2)+(AV227^2))","v":22}]
[null,"Less Than 35% of HH Income",{"$f":"C221+C222+C223+C224","v":0},{"$f":"SQRT((D221^2)+(D222^2)+(D223^2)+(D224^2))","v":22},{"$f":"E221+E222+E223+E224","v":18},{"$f":"SQRT((F221^2)+(F222^2)+(F223^2)+(F224^2))","v":33.867388443752198},{"$f":"G221+G222+G223+G224","v":6},{"$f":"SQRT((H221^2)+(H222^2)+(H223^2)+(H224^2))","v":16.822603841260722},{"$f":"I221+I222+I223+I224","v":4},{"$f":"SQRT((J221^2)+(J222^2)+(J223^2)+(J224^2))","v":20.297783130184438},{"$f":"K221+K222+K223+K224","v":0},{"$f":"SQRT((L221^2)+(L222^2)+(L223^2)+(L224^2))","v":22},{"$f":"M221+M222+M223+M224","v":13},{"$f":"SQRT((N221^2)+(N222^2)+(N223^2)+(N224^2))","v":20.542638584174139},{"$f":"O221+O222+O223+O224","v":38},{"$f":"SQRT((P221^2)+(P222^2)+(P223^2)+(P224^2))","v":37.443290453698111},{"$f":"Q221+Q222+Q223+Q224","v":338},{"$f":"SQRT((R221^2)+(R222^2)+(R223^2)+(R224^2))","v":149.03019828209315},{"$f":"S221+S222+S223+S224","v":381},{"$f":"SQRT((T221^2)+(T222^2)+(T223^2)+(T224^2))","v":153.24490203592418},{"$f":"U221+U222+U223+U224","v":10},{"$f":"SQRT((V221^2)+(V222^2)+(V223^2)+(V224^2))","v":22},{"$f":"W221+W222+W223+W224","v":0},{"$f":"SQRT((X221^2)+(X222^2)+(X223^2)+(X224^2))","v":22},{"$f":"Y221+Y222+Y223+Y224","v":3},{"$f":"SQRT((Z221^2)+(Z222^2)+(Z223^2)+(Z224^2))","v":19.467922333931785},{"$f":"AA221+AA222+AA223+AA224","v":16},{"$f":"SQRT((AB221^2)+(AB222^2)+(AB223^2)+(AB224^2))","v":26.210684844162312},{"$f":"AC221+AC222+AC223+AC224","v":26},{"$f":"SQRT((AD221^2)+(AD222^2)+(AD223^2)+(AD224^2))","v":33.421549934136806},{"$f":"AE221+AE222+AE223+AE224","v":0},{"$f":"SQRT((AF221^2)+(AF222^2)+(AF223^2)+(AF224^2))","v":22},{"$f":"AG221+AG222+AG223+AG224","v":7},{"$f":"SQRT((AH221^2)+(AH222^2)+(AH223^2)+(AH224^2))","v":20.297783130184438},{"$f":"AI221+AI222+AI223+AI224","v":12},{"$f":"SQRT((AJ221^2)+(AJ222^2)+(AJ223^2)+(AJ224^2))","v":23.065125189341593},{"$f":"AK221+AK222+AK223+AK224","v":6},{"$f":"SQRT((AL221^2)+(AL222^2)+(AL223^2)+(AL224^2))","v":21.517434791350013},{"$f":"AM221+AM222+AM223+AM224","v":8},{"$f":"SQRT((AN221^2)+(AN222^2)+(AN223^2)+(AN224^2))","v":31.511902513177461},{"$f":"AO221+AO222+AO223+AO224","v":24},{"$f":"SQRT((AP221^2)+(AP222^2)+(AP223^2)+(AP224^2))","v":25.80697580112788},{"$f":"AQ221+AQ222+AQ223+AQ224","v":38},{"$f":"SQRT((AR221^2)+(AR222^2)+(AR223^2)+(AR224^2))","v":38.704004960727254},{"$f":"AS221+AS222+AS223+AS224","v":10},{"$f":"SQRT((AT221^2)+(AT222^2)+(AT223^2)+(AT224^2))","v":18.083141320025124},{"$f":"AU221+AU222+AU223+AU224","v":23},{"$f":"SQRT((AV221^2)+(AV222^2)+(AV223^2)+(AV224^2))","v":29.866369046136157}]
[null,"35.0 percent or more",{"$f":"C225+C226+C227","v":0},{"$f":"SQRT((D225^2)+(D226^2)+(D227^2))","v":19.05255888325765},{"$f":"E225+E226+E227","v":0},{"$f":"SQRT((F225^2)+(F226^2)+(F227^2))","v":19.05255888325765},{"$f":"G225+G226+G227","v":0},{"$f":"SQRT((H225^2)+(H226^2)+(H227^2))","v":19.05255888325765},{"$f":"I225+I226+I227","v":0},{"$f":"SQRT((J225^2)+(J226^2)+(J227^2))","v":19.05255888325765},{"$f":"K225+K226+K227","v":0},{"$f":"SQRT((L225^2)+(L226^2)+(L227^2))","v":19.05255888325765},{"$f":"M225+M226+M227","v":0},{"$f":"SQRT((N225^2)+(N226^2)+(N227^2))","v":19.05255888325765},{"$f":"O225+O226+O227","v":0},{"$f":"SQRT((P225^2)+(P226^2)+(P227^2))","v":19.05255888325765},{"$f":"Q225+Q226+Q227","v":7},{"$f":"SQRT((R225^2)+(R226^2)+(R227^2))","v":32.03123475609393},{"$f":"S225+S226+S227","v":19},{"$f":"SQRT((T225^2)+(T226^2)+(T227^2))","v":31.016124838541646},{"$f":"U225+U226+U227","v":0},{"$f":"SQRT((V225^2)+(V226^2)+(V227^2))","v":19.05255888325765},{"$f":"W225+W226+W227","v":0},{"$f":"SQRT((X225^2)+(X226^2)+(X227^2))","v":19.05255888325765},{"$f":"Y225+Y226+Y227","v":0},{"$f":"SQRT((Z225^2)+(Z226^2)+(Z227^2))","v":19.05255888325765},{"$f":"AA225+AA226+AA227","v":0},{"$f":"SQRT((AB225^2)+(AB226^2)+(AB227^2))","v":19.05255888325765},{"$f":"AC225+AC226+AC227","v":0},{"$f":"SQRT((AD225^2)+(AD226^2)+(AD227^2))","v":27.712812921102035},{"$f":"AE225+AE226+AE227","v":0},{"$f":"SQRT((AF225^2)+(AF226^2)+(AF227^2))","v":19.05255888325765},{"$f":"AG225+AG226+AG227","v":0},{"$f":"SQRT((AH225^2)+(AH226^2)+(AH227^2))","v":19.05255888325765},{"$f":"AI225+AI226+AI227","v":0},{"$f":"SQRT((AJ225^2)+(AJ226^2)+(AJ227^2))","v":19.05255888325765},{"$f":"AK225+AK226+AK227","v":0},{"$f":"SQRT((AL225^2)+(AL226^2)+(AL227^2))","v":19.05255888325765},{"$f":"AM225+AM226+AM227","v":0},{"$f":"SQRT((AN225^2)+(AN226^2)+(AN227^2))","v":27.712812921102035},{"$f":"AO225+AO226+AO227","v":0},{"$f":"SQRT((AP225^2)+(AP226^2)+(AP227^2))","v":19.05255888325765},{"$f":"AQ225+AQ226+AQ227","v":0},{"$f":"SQRT((AR225^2)+(AR226^2)+(AR227^2))","v":19.05255888325765},{"$f":"AS225+AS226+AS227","v":0},{"$f":"SQRT((AT225^2)+(AT226^2)+(AT227^2))","v":19.05255888325765},{"$f":"AU225+AU226+AU227","v":0},{"$f":"SQRT((AV225^2)+(AV226^2)+(AV227^2))","v":19.05255888325765}]
[null,"50.0 percent or more",{"$f":"C227","v":0},11,0,11,0,11,0,11,0,11,0,11,0,11,7,12,6,11,0,11,0,11,0,11,0,11,0,16,0,11,0,11,0,11,0,11,0,16,{"$f":"AO227","v":0},11,0,11,0,11,0,11]
[null,"Not Computed",0,11,0,11,3,4,0,11,2,3,0,11,0,11,0,21,0,20,0,11,0,11,0,11,0,11,0,16,0,11,0,11,0,11,0,11,12,19,0,11,8,12,0,11,0,11]
[null,"$100,000 or more:",13,15,29,37,0,11,18,15,2,3,10,16,0,11,104,50,205,115,0,11,2,4,3,4,8,8,41,41,0,11,0,11,0,11,1,3,36,32,5,7,17,17,3,5,40,64]
[null,"Less than 30.0 percent",{"$f":"C230+C231+C232","v":9},{"$f":"SQRT((D230^2)+(D231^2)+(D232^2))","v":20.928449536456348},{"$f":"E230+E231+E232","v":29},{"$f":"SQRT((F230^2)+(F231^2)+(F232^2))","v":40.137264480778953},{"$f":"G230+G231+G232","v":0},{"$f":"SQRT((H230^2)+(H231^2)+(H232^2))","v":19.05255888325765},{"$f":"I230+I231+I232","v":18},{"$f":"SQRT((J230^2)+(J231^2)+(J232^2))","v":21.61018278497431},{"$f":"K230+K231+K232","v":0},{"$f":"SQRT((L230^2)+(L231^2)+(L232^2))","v":19.05255888325765},{"$f":"M230+M231+M232","v":10},{"$f":"SQRT((N230^2)+(N231^2)+(N232^2))","v":22.315913604421397},{"$f":"O230+O231+O232","v":0},{"$f":"SQRT((P230^2)+(P231^2)+(P232^2))","v":19.05255888325765},{"$f":"Q230+Q231+Q232","v":99},{"$f":"SQRT((R230^2)+(R231^2)+(R232^2))","v":56.859475903318},{"$f":"S230+S231+S232","v":196},{"$f":"SQRT((T230^2)+(T231^2)+(T232^2))","v":114.37657102746174},{"$f":"U230+U231+U232","v":0},{"$f":"SQRT((V230^2)+(V231^2)+(V232^2))","v":19.05255888325765},{"$f":"W230+W231+W232","v":2},{"$f":"SQRT((X230^2)+(X231^2)+(X232^2))","v":16.06237840420901},{"$f":"Y230+Y231+Y232","v":3},{"$f":"SQRT((Z230^2)+(Z231^2)+(Z232^2))","v":16.06237840420901},{"$f":"AA230+AA231+AA232","v":3},{"$f":"SQRT((AB230^2)+(AB231^2)+(AB232^2))","v":16.06237840420901},{"$f":"AC230+AC231+AC232","v":35},{"$f":"SQRT((AD230^2)+(AD231^2)+(AD232^2))","v":45.088801270381985},{"$f":"AE230+AE231+AE232","v":0},{"$f":"SQRT((AF230^2)+(AF231^2)+(AF232^2))","v":19.05255888325765},{"$f":"AG230+AG231+AG232","v":0},{"$f":"SQRT((AH230^2)+(AH231^2)+(AH232^2))","v":19.05255888325765},{"$f":"AI230+AI231+AI232","v":0},{"$f":"SQRT((AJ230^2)+(AJ231^2)+(AJ232^2))","v":19.05255888325765},{"$f":"AK230+AK231+AK232","v":1},{"$f":"SQRT((AL230^2)+(AL231^2)+(AL232^2))","v":15.842979517754859},{"$f":"AM230+AM231+AM232","v":20},{"$f":"SQRT((AN230^2)+(AN231^2)+(AN232^2))","v":33.719430600174732},{"$f":"AO230+AO231+AO232","v":5},{"$f":"SQRT((AP230^2)+(AP231^2)+(AP232^2))","v":17.058722109231979},{"$f":"AQ230+AQ231+AQ232","v":8},{"$f":"SQRT((AR230^2)+(AR231^2)+(AR232^2))","v":19.05255888325765},{"$f":"AS230+AS231+AS232","v":0},{"$f":"SQRT((AT230^2)+(AT231^2)+(AT232^2))","v":19.05255888325765},{"$f":"AU230+AU231+AU232","v":40},{"$f":"SQRT((AV230^2)+(AV231^2)+(AV232^2))","v":65.863495200300449}]
[null,"More than 30.0 percent",{"$f":"C233+C234+C235+C236","v":0},{"$f":"SQRT((D233^2)+(D234^2)+(D235^2)+(D236^2))","v":22},{"$f":"E233+E234+E235+E236","v":0},{"$f":"SQRT((F233^2)+(F234^2)+(F235^2)+(F236^2))","v":22},{"$f":"G233+G234+G235+G236","v":0},{"$f":"SQRT((H233^2)+(H234^2)+(H235^2)+(H236^2))","v":22},{"$f":"I233+I234+I235+I236","v":0},{"$f":"SQRT((J233^2)+(J234^2)+(J235^2)+(J236^2))","v":22},{"$f":"K233+K234+K235+K236","v":0},{"$f":"SQRT((L233^2)+(L234^2)+(L235^2)+(L236^2))","v":22},{"$f":"M233+M234+M235+M236","v":0},{"$f":"SQRT((N233^2)+(N234^2)+(N235^2)+(N236^2))","v":22},{"$f":"O233+O234+O235+O236","v":0},{"$f":"SQRT((P233^2)+(P234^2)+(P235^2)+(P236^2))","v":22},{"$f":"Q233+Q234+Q235+Q236","v":0},{"$f":"SQRT((R233^2)+(R234^2)+(R235^2)+(R236^2))","v":42},{"$f":"S233+S234+S235+S236","v":0},{"$f":"SQRT((T233^2)+(T234^2)+(T235^2)+(T236^2))","v":40},{"$f":"U233+U234+U235+U236","v":0},{"$f":"SQRT((V233^2)+(V234^2)+(V235^2)+(V236^2))","v":22},{"$f":"W233+W234+W235+W236","v":0},{"$f":"SQRT((X233^2)+(X234^2)+(X235^2)+(X236^2))","v":22},{"$f":"Y233+Y234+Y235+Y236","v":0},{"$f":"SQRT((Z233^2)+(Z234^2)+(Z235^2)+(Z236^2))","v":22},{"$f":"AA233+AA234+AA235+AA236","v":0},{"$f":"SQRT((AB233^2)+(AB234^2)+(AB235^2)+(AB236^2))","v":22},{"$f":"AC233+AC234+AC235+AC236","v":0},{"$f":"SQRT((AD233^2)+(AD234^2)+(AD235^2)+(AD236^2))","v":32},{"$f":"AE233+AE234+AE235+AE236","v":0},{"$f":"SQRT((AF233^2)+(AF234^2)+(AF235^2)+(AF236^2))","v":22},{"$f":"AG233+AG234+AG235+AG236","v":0},{"$f":"SQRT((AH233^2)+(AH234^2)+(AH235^2)+(AH236^2))","v":22},{"$f":"AI233+AI234+AI235+AI236","v":0},{"$f":"SQRT((AJ233^2)+(AJ234^2)+(AJ235^2)+(AJ236^2))","v":22},{"$f":"AK233+AK234+AK235+AK236","v":0},{"$f":"SQRT((AL233^2)+(AL234^2)+(AL235^2)+(AL236^2))","v":22},{"$f":"AM233+AM234+AM235+AM236","v":0},{"$f":"SQRT((AN233^2)+(AN234^2)+(AN235^2)+(AN236^2))","v":32},{"$f":"AO233+AO234+AO235+AO236","v":0},{"$f":"SQRT((AP233^2)+(AP234^2)+(AP235^2)+(AP236^2))","v":22},{"$f":"AQ233+AQ234+AQ235+AQ236","v":0},{"$f":"SQRT((AR233^2)+(AR234^2)+(AR235^2)+(AR236^2))","v":22},{"$f":"AS233+AS234+AS235+AS236","v":0},{"$f":"SQRT((AT233^2)+(AT234^2)+(AT235^2)+(AT236^2))","v":22},{"$f":"AU233+AU234+AU235+AU236","v":0},{"$f":"SQRT((AV233^2)+(AV234^2)+(AV235^2)+(AV236^2))","v":22}]
[null,"Less Than 35% of HH Income",{"$f":"C230+C231+C232+C233","v":9},{"$f":"SQRT(((D230^2)+(D231^2)+(D232^2)+(D233^2)))","v":23.643180835073778},{"$f":"E230+E231+E232+E233","v":29},{"$f":"SQRT(((F230^2)+(F231^2)+(F232^2)+(F233^2)))","v":41.617304093369626},{"$f":"G230+G231+G232+G233","v":0},{"$f":"SQRT(((H230^2)+(H231^2)+(H232^2)+(H233^2)))","v":22},{"$f":"I230+I231+I232+I233","v":18},{"$f":"SQRT(((J230^2)+(J231^2)+(J232^2)+(J233^2)))","v":24.248711305964282},{"$f":"K230+K231+K232+K233","v":0},{"$f":"SQRT(((L230^2)+(L231^2)+(L232^2)+(L233^2)))","v":22},{"$f":"M230+M231+M232+M233","v":10},{"$f":"SQRT(((N230^2)+(N231^2)+(N232^2)+(N233^2)))","v":24.879710609249457},{"$f":"O230+O231+O232+O233","v":0},{"$f":"SQRT(((P230^2)+(P231^2)+(P232^2)+(P233^2)))","v":22},{"$f":"Q230+Q231+Q232+Q233","v":99},{"$f":"SQRT(((R230^2)+(R231^2)+(R232^2)+(R233^2)))","v":60.613529842766951},{"$f":"S230+S231+S232+S233","v":196},{"$f":"SQRT(((T230^2)+(T231^2)+(T232^2)+(T233^2)))","v":116.11201488218177},{"$f":"U230+U231+U232+U233","v":0},{"$f":"SQRT(((V230^2)+(V231^2)+(V232^2)+(V233^2)))","v":22},{"$f":"W230+W231+W232+W233","v":2},{"$f":"SQRT(((X230^2)+(X231^2)+(X232^2)+(X233^2)))","v":19.467922333931785},{"$f":"Y230+Y231+Y232+Y233","v":3},{"$f":"SQRT(((Z230^2)+(Z231^2)+(Z232^2)+(Z233^2)))","v":19.467922333931785},{"$f":"AA230+AA231+AA232+AA233","v":3},{"$f":"SQRT(((AB230^2)+(AB231^2)+(AB232^2)+(AB233^2)))","v":19.467922333931785},{"$f":"AC230+AC231+AC232+AC233","v":35},{"$f":"SQRT(((AD230^2)+(AD231^2)+(AD232^2)+(AD233^2)))","v":47.843494855622744},{"$f":"AE230+AE231+AE232+AE233","v":0},{"$f":"SQRT(((AF230^2)+(AF231^2)+(AF232^2)+(AF233^2)))","v":22},{"$f":"AG230+AG231+AG232+AG233","v":0},{"$f":"SQRT(((AH230^2)+(AH231^2)+(AH232^2)+(AH233^2)))","v":22},{"$f":"AI230+AI231+AI232+AI233","v":0},{"$f":"SQRT(((AJ230^2)+(AJ231^2)+(AJ232^2)+(AJ233^2)))","v":22},{"$f":"AK230+AK231+AK232+AK233","v":1},{"$f":"SQRT(((AL230^2)+(AL231^2)+(AL232^2)+(AL233^2)))","v":19.28730152198591},{"$f":"AM230+AM231+AM232+AM233","v":20},{"$f":"SQRT(((AN230^2)+(AN231^2)+(AN232^2)+(AN233^2)))","v":37.322915213043046},{"$f":"AO230+AO231+AO232+AO233","v":5},{"$f":"SQRT(((AP230^2)+(AP231^2)+(AP232^2)+(AP233^2)))","v":20.297783130184438},{"$f":"AQ230+AQ231+AQ232+AQ233","v":8},{"$f":"SQRT(((AR230^2)+(AR231^2)+(AR232^2)+(AR233^2)))","v":22},{"$f":"AS230+AS231+AS232+AS233","v":0},{"$f":"SQRT(((AT230^2)+(AT231^2)+(AT232^2)+(AT233^2)))","v":22},{"$f":"AU230+AU231+AU232+AU233","v":40},{"$f":"SQRT(((AV230^2)+(AV231^2)+(AV232^2)+(AV233^2)))","v":66.775744099186198}]
[null,"35.0 percent or more",{"$f":"C234+C235+C236","v":0},{"$f":"SQRT((D234^2)+(D235^2)+(D236^2))","v":19.05255888325765},{"$f":"E234+E235+E236","v":0},{"$f":"SQRT((F234^2)+(F235^2)+(F236^2))","v":19.05255888325765},{"$f":"G234+G235+G236","v":0},{"$f":"SQRT((H234^2)+(H235^2)+(H236^2))","v":19.05255888325765},{"$f":"I234+I235+I236","v":0},{"$f":"SQRT((J234^2)+(J235^2)+(J236^2))","v":19.05255888325765},{"$f":"K234+K235+K236","v":0},{"$f":"SQRT((L234^2)+(L235^2)+(L236^2))","v":19.05255888325765},{"$f":"M234+M235+M236","v":0},{"$f":"SQRT((N234^2)+(N235^2)+(N236^2))","v":19.05255888325765},{"$f":"O234+O235+O236","v":0},{"$f":"SQRT((P234^2)+(P235^2)+(P236^2))","v":19.05255888325765},{"$f":"Q234+Q235+Q236","v":0},{"$f":"SQRT((R234^2)+(R235^2)+(R236^2))","v":36.373066958946424},{"$f":"S234+S235+S236","v":0},{"$f":"SQRT((T234^2)+(T235^2)+(T236^2))","v":34.641016151377549},{"$f":"U234+U235+U236","v":0},{"$f":"SQRT((V234^2)+(V235^2)+(V236^2))","v":19.05255888325765},{"$f":"W234+W235+W236","v":0},{"$f":"SQRT((X234^2)+(X235^2)+(X236^2))","v":19.05255888325765},{"$f":"Y234+Y235+Y236","v":0},{"$f":"SQRT((Z234^2)+(Z235^2)+(Z236^2))","v":19.05255888325765},{"$f":"AA234+AA235+AA236","v":0},{"$f":"SQRT((AB234^2)+(AB235^2)+(AB236^2))","v":19.05255888325765},{"$f":"AC234+AC235+AC236","v":0},{"$f":"SQRT((AD234^2)+(AD235^2)+(AD236^2))","v":27.712812921102035},{"$f":"AE234+AE235+AE236","v":0},{"$f":"SQRT((AF234^2)+(AF235^2)+(AF236^2))","v":19.05255888325765},{"$f":"AG234+AG235+AG236","v":0},{"$f":"SQRT((AH234^2)+(AH235^2)+(AH236^2))","v":19.05255888325765},{"$f":"AI234+AI235+AI236","v":0},{"$f":"SQRT((AJ234^2)+(AJ235^2)+(AJ236^2))","v":19.05255888325765},{"$f":"AK234+AK235+AK236","v":0},{"$f":"SQRT((AL234^2)+(AL235^2)+(AL236^2))","v":19.05255888325765},{"$f":"AM234+AM235+AM236","v":0},{"$f":"SQRT((AN234^2)+(AN235^2)+(AN236^2))","v":27.712812921102035},{"$f":"AO234+AO235+AO236","v":0},{"$f":"SQRT((AP234^2)+(AP235^2)+(AP236^2))","v":19.05255888325765},{"$f":"AQ234+AQ235+AQ236","v":0},{"$f":"SQRT((AR234^2)+(AR235^2)+(AR236^2))","v":19.05255888325765},{"$f":"AS234+AS235+AS236","v":0},{"$f":"SQRT((AT234^2)+(AT235^2)+(AT236^2))","v":19.05255888325765},{"$f":"AU234+AU235+AU236","v":0},{"$f":"SQRT((AV234^2)+(AV235^2)+(AV236^2))","v":19.05255888325765}]
[null,"50.0 percent or more",{"$f":"C236","v":0},11,0,11,0,11,0,11,0,11,0,11,0,11,0,21,0,20,0,11,0,11,0,11,0,11,0,16,0,11,0,11,0,11,0,11,0,16,{"$f":"AO236","v":0},{"$f":"AP236","v":11},{"$f":"AQ236","v":0},11,{"$f":"AS236","v":0},11,{"$f":"AU236","v":0},11]
[null,"Not Computed",4,6,0,11,0,11,0,11,2,3,0,11,0,11,5,9,9,14,0,11,0,11,0,11,5,7,6,11,0,11,0,11,0,11,0,11,16,31,{"$f":"AO237","v":0},11,{"$f":"AQ237","v":9},13,{"$f":"AS237","v":3},5,{"$f":"AU237","v":0},11]
[]
[]
[null,"Calculated GROSS RENT AS A PERCENTAGE OF HOUSEHOLD INCOME IN THE PAST 12 MONTHS"]
[null,"Universe:  RENTER-OCCUPIED HOUSING UNITS"]
[null,{"$f":"B170","v":"Data Set: 2013-2017 American Community Survey 5-Year Estimates"}]
[]
[null,null,"Alstead",null,"Chesterfield",null,"Dublin",null,"Fitzwilliam",null,"Gilsum",null,"Harrisville",null,"Hinsdale",null,"Jaffrey",null,"Keene",null,"Marlborough",null,"Marlow",null,"Nelson",null,"Richmond",null,"Rindge",null,"Roxbury",null,"Stoddard",null,"Sullivan",null,"Surry",null,"Swanzey",null,"Troy",null,"Walpole",null,"Westmoreland",null,"Winchester"]
[null," ","Estimate","Margin of Error","Estimate","Margin of Error","Estimate","Margin of Error","Estimate","Margin of Error","Estimate","Margin of Error","Estimate","Margin of Error","Estimate","Margin of Error","Estimate","Margin of Error","Estimate","Margin of Error","Estimate","Margin of Error","Estimate","Margin of Error","Estimate","Margin of Error","Estimate","Margin of Error","Estimate","Margin of Error","Estimate","Margin of Error","Estimate","Margin of Error","Estimate","Margin of Error","Estimate","Margin of Error","Estimate","Margin of Error","Estimate","Margin of Error","Estimate","Margin of Error","Estimate","Margin of Error","Estimate","Margin of Error"]
[null,{"$f":"B259","v":"Total:"},{"$f":"C259","v":224},{"$f":"D259","v":62},{"$f":"E259","v":225},122,122,41,129,48,26,15,63,29,433,127,4319,404,4499,341,296,85,27,13,40,15,48,30,400,99,12,9,44,26,61,23,30,18,704,165,225,63,330,108,54,28,493,124]
[null,"Less than 30.0 percent",{"$f":"C303+C296+C289+C282+C275+C268+C261","v":75},{"$f":"SQRT((D303^2)+(D296^2)+(D289^2)+(D282^2)+(D275^2)+(D268^2)+(D261^2))","v":60.720671933041061},{"$f":"E303+E296+E289+E282+E275+E268+E261","v":90},{"$f":"SQRT((F303^2)+(F296^2)+(F289^2)+(F282^2)+(F275^2)+(F268^2)+(F261^2))","v":83.731714421717172},{"$f":"G303+G296+G289+G282+G275+G268+G261","v":38},{"$f":"SQRT((H303^2)+(H296^2)+(H289^2)+(H282^2)+(H275^2)+(H268^2)+(H261^2))","v":48.867166891482462},{"$f":"I303+I296+I289+I282+I275+I268+I261","v":62},{"$f":"SQRT((J303^2)+(J296^2)+(J289^2)+(J282^2)+(J275^2)+(J268^2)+(J261^2))","v":59.033888572581766},{"$f":"K303+K296+K289+K282+K275+K268+K261","v":6},{"$f":"SQRT((L303^2)+(L296^2)+(L289^2)+(L282^2)+(L275^2)+(L268^2)+(L261^2))","v":48.487111689602628},{"$f":"M303+M296+M289+M282+M275+M268+M261","v":32},{"$f":"SQRT((N303^2)+(N296^2)+(N289^2)+(N282^2)+(N275^2)+(N268^2)+(N261^2))","v":47.968739820845826},{"$f":"O303+O296+O289+O282+O275+O268+O261","v":246},{"$f":"SQRT((P303^2)+(P296^2)+(P289^2)+(P282^2)+(P275^2)+(P268^2)+(P261^2))","v":130.0769003320728},{"$f":"Q303+Q296+Q289+Q282+Q275+Q268+Q261","v":2005},{"$f":"SQRT((R303^2)+(R296^2)+(R289^2)+(R282^2)+(R275^2)+(R268^2)+(R261^2))","v":347.27366730001285},{"$f":"S303+S296+S289+S282+S275+S268+S261","v":2083},{"$f":"SQRT((T303^2)+(T296^2)+(T289^2)+(T282^2)+(T275^2)+(T268^2)+(T261^2))","v":334.67297470814702},{"$f":"U303+U296+U289+U282+U275+U268+U261","v":152},{"$f":"SQRT((V303^2)+(V296^2)+(V289^2)+(V282^2)+(V275^2)+(V268^2)+(V261^2))","v":79.724525711978998},{"$f":"W303+W296+W289+W282+W275+W268+W261","v":11},{"$f":"SQRT((X303^2)+(X296^2)+(X289^2)+(X282^2)+(X275^2)+(X268^2)+(X261^2))","v":48.207883172775801},{"$f":"Y303+Y296+Y289+Y282+Y275+Y268+Y261","v":18},{"$f":"SQRT((Z303^2)+(Z296^2)+(Z289^2)+(Z282^2)+(Z275^2)+(Z268^2)+(Z261^2))","v":43.737855457258078},{"$f":"AA303+AA296+AA289+AA282+AA275+AA268+AA261","v":25},{"$f":"SQRT((AB303^2)+(AB296^2)+(AB289^2)+(AB282^2)+(AB275^2)+(AB268^2)+(AB261^2))","v":49.547956567349978},{"$f":"AC303+AC296+AC289+AC282+AC275+AC268+AC261","v":118},{"$f":"SQRT((AD303^2)+(AD296^2)+(AD289^2)+(AD282^2)+(AD275^2)+(AD268^2)+(AD261^2))","v":83.868945385047027},{"$f":"AE303+AE296+AE289+AE282+AE275+AE268+AE261","v":3},{"$f":"SQRT((AF303^2)+(AF296^2)+(AF289^2)+(AF282^2)+(AF275^2)+(AF268^2)+(AF261^2))","v":48.135226186234959},{"$f":"AG303+AG296+AG289+AG282+AG275+AG268+AG261","v":22},{"$f":"SQRT((AH303^2)+(AH296^2)+(AH289^2)+(AH282^2)+(AH275^2)+(AH268^2)+(AH261^2))","v":49.769468552517218},{"$f":"AI303+AI296+AI289+AI282+AI275+AI268+AI261","v":36},{"$f":"SQRT((AJ303^2)+(AJ296^2)+(AJ289^2)+(AJ282^2)+(AJ275^2)+(AJ268^2)+(AJ261^2))","v":50.309044912421065},{"$f":"AK303+AK296+AK289+AK282+AK275+AK268+AK261","v":20},{"$f":"SQRT((AL303^2)+(AL296^2)+(AL289^2)+(AL282^2)+(AL275^2)+(AL268^2)+(AL261^2))","v":44.743714642394188},{"$f":"AM303+AM296+AM289+AM282+AM275+AM268+AM261","v":289},{"$f":"SQRT((AN303^2)+(AN296^2)+(AN289^2)+(AN282^2)+(AN275^2)+(AN268^2)+(AN261^2))","v":151.47276983009189},{"$f":"AO303+AO296+AO289+AO282+AO275+AO268+AO261","v":187},{"$f":"SQRT((AP303^2)+(AP296^2)+(AP289^2)+(AP282^2)+(AP275^2)+(AP268^2)+(AP261^2))","v":77.955115290787688},{"$f":"AQ303+AQ296+AQ289+AQ282+AQ275+AQ268+AQ261","v":219},{"$f":"SQRT((AR303^2)+(AR296^2)+(AR289^2)+(AR282^2)+(AR275^2)+(AR268^2)+(AR261^2))","v":98.280211639983762},{"$f":"AS303+AS296+AS289+AS282+AS275+AS268+AS261","v":28},{"$f":"SQRT((AT303^2)+(AT296^2)+(AT289^2)+(AT282^2)+(AT275^2)+(AT268^2)+(AT261^2))","v":47.074409183759279},{"$f":"AU303+AU296+AU289+AU282+AU275+AU268+AU261","v":235},{"$f":"SQRT((AV303^2)+(AV296^2)+(AV289^2)+(AV282^2)+(AV275^2)+(AV268^2)+(AV261^2))","v":119.9499895789908}]
[null,"More than 30.0 percent",{"$f":"C304+C297+C290+C283+C276+C269+C262","v":104},{"$f":"SQRT((D304^2)+(D297^2)+(D290^2)+(D283^2)+(D276^2)+(D269^2)+(D262^2))","v":70.632853545641211},{"$f":"E304+E297+E290+E283+E276+E269+E262","v":122},{"$f":"SQRT((F304^2)+(F297^2)+(F290^2)+(F283^2)+(F276^2)+(F269^2)+(F262^2))","v":120.7393887677091},{"$f":"G304+G297+G290+G283+G276+G269+G262","v":48},{"$f":"SQRT((H304^2)+(H297^2)+(H290^2)+(H283^2)+(H276^2)+(H269^2)+(H262^2))","v":57.052607302383649},{"$f":"I304+I297+I290+I283+I276+I269+I262","v":53},{"$f":"SQRT((J304^2)+(J297^2)+(J290^2)+(J283^2)+(J276^2)+(J269^2)+(J262^2))","v":60.835844697020519},{"$f":"K304+K297+K290+K283+K276+K269+K262","v":11},{"$f":"SQRT((L304^2)+(L297^2)+(L290^2)+(L283^2)+(L276^2)+(L269^2)+(L262^2))","v":52.134441590948299},{"$f":"M304+M297+M290+M283+M276+M269+M262","v":24},{"$f":"SQRT((N304^2)+(N297^2)+(N290^2)+(N283^2)+(N276^2)+(N269^2)+(N262^2))","v":57.314919523628397},{"$f":"O304+O297+O290+O283+O276+O269+O262","v":114},{"$f":"SQRT((P304^2)+(P297^2)+(P290^2)+(P283^2)+(P276^2)+(P269^2)+(P262^2))","v":93.1933474020544},{"$f":"Q304+Q297+Q290+Q283+Q276+Q269+Q262","v":2226},{"$f":"SQRT((R304^2)+(R297^2)+(R290^2)+(R283^2)+(R276^2)+(R269^2)+(R262^2))","v":362.22506815514578},{"$f":"S304+S297+S290+S283+S276+S269+S262","v":2340},{"$f":"SQRT((T304^2)+(T297^2)+(T290^2)+(T283^2)+(T276^2)+(T269^2)+(T262^2))","v":386.24862459302039},{"$f":"U304+U297+U290+U283+U276+U269+U262","v":131},{"$f":"SQRT((V304^2)+(V297^2)+(V290^2)+(V283^2)+(V276^2)+(V269^2)+(V262^2))","v":81.24653838779841},{"$f":"W304+W297+W290+W283+W276+W269+W262","v":8},{"$f":"SQRT((X304^2)+(X297^2)+(X290^2)+(X283^2)+(X276^2)+(X269^2)+(X262^2))","v":54.286278192559855},{"$f":"Y304+Y297+Y290+Y283+Y276+Y269+Y262","v":20},{"$f":"SQRT((Z304^2)+(Z297^2)+(Z290^2)+(Z283^2)+(Z276^2)+(Z269^2)+(Z262^2))","v":53.823786563191554},{"$f":"AA304+AA297+AA290+AA283+AA276+AA269+AA262","v":15},{"$f":"SQRT((AB304^2)+(AB297^2)+(AB290^2)+(AB283^2)+(AB276^2)+(AB269^2)+(AB262^2))","v":58.84725991921799},{"$f":"AC304+AC297+AC290+AC283+AC276+AC269+AC262","v":259},{"$f":"SQRT((AD304^2)+(AD297^2)+(AD290^2)+(AD283^2)+(AD276^2)+(AD269^2)+(AD262^2))","v":120.8056290079233},{"$f":"AE304+AE297+AE290+AE283+AE276+AE269+AE262","v":7},{"$f":"SQRT((AF304^2)+(AF297^2)+(AF290^2)+(AF283^2)+(AF276^2)+(AF269^2)+(AF262^2))","v":55.605755097831377},{"$f":"AG304+AG297+AG290+AG283+AG276+AG269+AG262","v":20},{"$f":"SQRT((AH304^2)+(AH297^2)+(AH290^2)+(AH283^2)+(AH276^2)+(AH269^2)+(AH262^2))","v":58.146367040426526},{"$f":"AI304+AI297+AI290+AI283+AI276+AI269+AI262","v":19},{"$f":"SQRT((AJ304^2)+(AJ297^2)+(AJ290^2)+(AJ283^2)+(AJ276^2)+(AJ269^2)+(AJ262^2))","v":54.552726787943421},{"$f":"AK304+AK297+AK290+AK283+AK276+AK269+AK262","v":7},{"$f":"SQRT((AL304^2)+(AL297^2)+(AL290^2)+(AL283^2)+(AL276^2)+(AL269^2)+(AL262^2))","v":56.603886792339623},{"$f":"AM304+AM297+AM290+AM283+AM276+AM269+AM262","v":318},{"$f":"SQRT((AN304^2)+(AN297^2)+(AN290^2)+(AN283^2)+(AN276^2)+(AN269^2)+(AN262^2))","v":160.04061984383839},{"$f":"AO304+AO297+AO290+AO283+AO276+AO269+AO262","v":32},{"$f":"SQRT((AP304^2)+(AP297^2)+(AP290^2)+(AP283^2)+(AP276^2)+(AP269^2)+(AP262^2))","v":60.844062980705026},{"$f":"AQ304+AQ297+AQ290+AQ283+AQ276+AQ269+AQ262","v":85},{"$f":"SQRT((AR304^2)+(AR297^2)+(AR290^2)+(AR283^2)+(AR276^2)+(AR269^2)+(AR262^2))","v":87.286883321607945},{"$f":"AS304+AS297+AS290+AS283+AS276+AS269+AS262","v":23},{"$f":"SQRT((AT304^2)+(AT297^2)+(AT290^2)+(AT283^2)+(AT276^2)+(AT269^2)+(AT262^2))","v":57.628118136895637},{"$f":"AU304+AU297+AU290+AU283+AU276+AU269+AU262","v":223},{"$f":"SQRT((AV304^2)+(AV297^2)+(AV290^2)+(AV283^2)+(AV276^2)+(AV269^2)+(AV262^2))","v":121.89339604752999}]
[null,"Less Than 35% of HH Income",{"$f":"C305+C298+C291+C284+C277+C270+C263","v":101},{"$f":"SQRT((D305^2)+(D298^2)+(D291^2)+(D284^2)+(D277^2)+(D270^2)+(D263^2))","v":69.670653793401428},{"$f":"E305+E298+E291+E284+E277+E270+E263","v":106},{"$f":"SQRT((F305^2)+(F298^2)+(F291^2)+(F284^2)+(F277^2)+(F270^2)+(F263^2))","v":90.917545061445651},{"$f":"G305+G298+G291+G284+G277+G270+G263","v":47},{"$f":"SQRT((H305^2)+(H298^2)+(H291^2)+(H284^2)+(H277^2)+(H270^2)+(H263^2))","v":54.120236510939236},{"$f":"I305+I298+I291+I284+I277+I270+I263","v":81},{"$f":"SQRT((J305^2)+(J298^2)+(J291^2)+(J284^2)+(J277^2)+(J270^2)+(J263^2))","v":67.044761167446936},{"$f":"K305+K298+K291+K284+K277+K270+K263","v":10},{"$f":"SQRT((L305^2)+(L298^2)+(L291^2)+(L284^2)+(L277^2)+(L270^2)+(L263^2))","v":54.534392817743921},{"$f":"M305+M298+M291+M284+M277+M270+M263","v":34},{"$f":"SQRT((N305^2)+(N298^2)+(N291^2)+(N284^2)+(N277^2)+(N270^2)+(N263^2))","v":55.244909267732531},{"$f":"O305+O298+O291+O284+O277+O270+O263","v":315},{"$f":"SQRT((P305^2)+(P298^2)+(P291^2)+(P284^2)+(P277^2)+(P270^2)+(P263^2))","v":145.6639969244288},{"$f":"Q305+Q298+Q291+Q284+Q277+Q270+Q263","v":2447},{"$f":"SQRT((R305^2)+(R298^2)+(R291^2)+(R284^2)+(R277^2)+(R270^2)+(R263^2))","v":382.2263727164833},{"$f":"S305+S298+S291+S284+S277+S270+S263","v":2528},{"$f":"SQRT((T305^2)+(T298^2)+(T291^2)+(T284^2)+(T277^2)+(T270^2)+(T263^2))","v":373.10588309486627},{"$f":"U305+U298+U291+U284+U277+U270+U263","v":171},{"$f":"SQRT((V305^2)+(V298^2)+(V291^2)+(V284^2)+(V277^2)+(V270^2)+(V263^2))","v":87.241045385758653},{"$f":"W305+W298+W291+W284+W277+W270+W263","v":15},{"$f":"SQRT((X305^2)+(X298^2)+(X291^2)+(X284^2)+(X277^2)+(X270^2)+(X263^2))","v":54.286278192559855},{"$f":"Y305+Y298+Y291+Y284+Y277+Y270+Y263","v":18},{"$f":"SQRT((Z305^2)+(Z298^2)+(Z291^2)+(Z284^2)+(Z277^2)+(Z270^2)+(Z263^2))","v":52.535702146254792},{"$f":"AA305+AA298+AA291+AA284+AA277+AA270+AA263","v":25},{"$f":"SQRT((AB305^2)+(AB298^2)+(AB291^2)+(AB284^2)+(AB277^2)+(AB270^2)+(AB263^2))","v":57.463031594234565},{"$f":"AC305+AC298+AC291+AC284+AC277+AC270+AC263","v":162},{"$f":"SQRT((AD305^2)+(AD298^2)+(AD291^2)+(AD284^2)+(AD277^2)+(AD270^2)+(AD263^2))","v":97.334474879150605},{"$f":"AE305+AE298+AE291+AE284+AE277+AE270+AE263","v":9},{"$f":"SQRT((AF305^2)+(AF298^2)+(AF291^2)+(AF284^2)+(AF277^2)+(AF270^2)+(AF263^2))","v":54.589376255824725},{"$f":"AG305+AG298+AG291+AG284+AG277+AG270+AG263","v":22},{"$f":"SQRT((AH305^2)+(AH298^2)+(AH291^2)+(AH284^2)+(AH277^2)+(AH270^2)+(AH263^2))","v":57.654141221598294},{"$f":"AI305+AI298+AI291+AI284+AI277+AI270+AI263","v":38},{"$f":"SQRT((AJ305^2)+(AJ298^2)+(AJ291^2)+(AJ284^2)+(AJ277^2)+(AJ270^2)+(AJ263^2))","v":57.148928248918196},{"$f":"AK305+AK298+AK291+AK284+AK277+AK270+AK263","v":22},{"$f":"SQRT((AL305^2)+(AL298^2)+(AL291^2)+(AL284^2)+(AL277^2)+(AL270^2)+(AL263^2))","v":52.316345438113316},{"$f":"AM305+AM298+AM291+AM284+AM277+AM270+AM263","v":323},{"$f":"SQRT((AN305^2)+(AN298^2)+(AN291^2)+(AN284^2)+(AN277^2)+(AN270^2)+(AN263^2))","v":160.77624202599088},{"$f":"AO305+AO298+AO291+AO284+AO277+AO270+AO263","v":187},{"$f":"SQRT((AP305^2)+(AP298^2)+(AP291^2)+(AP284^2)+(AP277^2)+(AP270^2)+(AP263^2))","v":83.210576250858878},{"$f":"AQ305+AQ298+AQ291+AQ284+AQ277+AQ270+AQ263","v":219},{"$f":"SQRT((AR305^2)+(AR298^2)+(AR291^2)+(AR284^2)+(AR277^2)+(AR270^2)+(AR263^2))","v":102.49878048055011},{"$f":"AS305+AS298+AS291+AS284+AS277+AS270+AS263","v":28},{"$f":"SQRT((AT305^2)+(AT298^2)+(AT291^2)+(AT284^2)+(AT277^2)+(AT270^2)+(AT263^2))","v":55.344376408086845},{"$f":"AU305+AU298+AU291+AU284+AU277+AU270+AU263","v":285},{"$f":"SQRT((AV305^2)+(AV298^2)+(AV291^2)+(AV284^2)+(AV277^2)+(AV270^2)+(AV263^2))","v":128.91857895586656}]
[null,"35.0 percent or more",{"$f":"C306+C299+C292+C285+C278+C271+C264","v":78},{"$f":"SQRT((D306^2)+(D299^2)+(D292^2)+(D285^2)+(D278^2)+(D271^2)+(D264^2))","v":61.822326064294927},{"$f":"E306+E299+E292+E285+E278+E271+E264","v":106},{"$f":"SQRT((F306^2)+(F299^2)+(F292^2)+(F285^2)+(F278^2)+(F271^2)+(F264^2))","v":115.42530051942686},{"$f":"G306+G299+G292+G285+G278+G271+G264","v":39},{"$f":"SQRT((H306^2)+(H299^2)+(H292^2)+(H285^2)+(H278^2)+(H271^2)+(H264^2))","v":52.096065110524421},{"$f":"I306+I299+I292+I285+I278+I271+I264","v":34},{"$f":"SQRT((J306^2)+(J299^2)+(J292^2)+(J285^2)+(J278^2)+(J271^2)+(J264^2))","v":51.874849397371747},{"$f":"K306+K299+K292+K285+K278+K271+K264","v":7},{"$f":"SQRT((L306^2)+(L299^2)+(L292^2)+(L285^2)+(L278^2)+(L271^2)+(L264^2))","v":45.77116996538323},{"$f":"M306+M299+M292+M285+M278+M271+M264","v":22},{"$f":"SQRT((N306^2)+(N299^2)+(N292^2)+(N285^2)+(N278^2)+(N271^2)+(N264^2))","v":50.338851794612879},{"$f":"O306+O299+O292+O285+O278+O271+O264","v":45},{"$f":"SQRT((P306^2)+(P299^2)+(P292^2)+(P285^2)+(P278^2)+(P271^2)+(P264^2))","v":66.234432133143557},{"$f":"Q306+Q299+Q292+Q285+Q278+Q271+Q264","v":1784},{"$f":"SQRT((R306^2)+(R299^2)+(R292^2)+(R285^2)+(R278^2)+(R271^2)+(R264^2))","v":325.12920508622415},{"$f":"S306+S299+S292+S285+S278+S271+S264","v":1895},{"$f":"SQRT((T306^2)+(T299^2)+(T292^2)+(T285^2)+(T278^2)+(T271^2)+(T264^2))","v":349.26494241478059},{"$f":"U306+U299+U292+U285+U278+U271+U264","v":112},{"$f":"SQRT((V306^2)+(V299^2)+(V292^2)+(V285^2)+(V278^2)+(V271^2)+(V264^2))","v":73.11634564172364},{"$f":"W306+W299+W292+W285+W278+W271+W264","v":4},{"$f":"SQRT((X306^2)+(X299^2)+(X292^2)+(X285^2)+(X278^2)+(X271^2)+(X264^2))","v":48.207883172775801},{"$f":"Y306+Y299+Y292+Y285+Y278+Y271+Y264","v":20},{"$f":"SQRT((Z306^2)+(Z299^2)+(Z292^2)+(Z285^2)+(Z278^2)+(Z271^2)+(Z264^2))","v":45.276925690687087},{"$f":"AA306+AA299+AA292+AA285+AA278+AA271+AA264","v":15},{"$f":"SQRT((AB306^2)+(AB299^2)+(AB292^2)+(AB285^2)+(AB278^2)+(AB271^2)+(AB264^2))","v":51.146847410177685},{"$f":"AC306+AC299+AC292+AC285+AC278+AC271+AC264","v":215},{"$f":"SQRT((AD306^2)+(AD299^2)+(AD292^2)+(AD285^2)+(AD278^2)+(AD271^2)+(AD264^2))","v":110.24518130059019},{"$f":"AE306+AE299+AE292+AE285+AE278+AE271+AE264","v":1},{"$f":"SQRT((AF306^2)+(AF299^2)+(AF292^2)+(AF285^2)+(AF278^2)+(AF271^2)+(AF264^2))","v":49.28488612140643},{"$f":"AG306+AG299+AG292+AG285+AG278+AG271+AG264","v":20},{"$f":"SQRT((AH306^2)+(AH299^2)+(AH292^2)+(AH285^2)+(AH278^2)+(AH271^2)+(AH264^2))","v":50.338851794612879},{"$f":"AI306+AI299+AI292+AI285+AI278+AI271+AI264","v":17},{"$f":"SQRT((AJ306^2)+(AJ299^2)+(AJ292^2)+(AJ285^2)+(AJ278^2)+(AJ271^2)+(AJ264^2))","v":47.339201514178498},{"$f":"AK306+AK299+AK292+AK285+AK278+AK271+AK264","v":5},{"$f":"SQRT((AL306^2)+(AL299^2)+(AL292^2)+(AL285^2)+(AL278^2)+(AL271^2)+(AL264^2))","v":49.689032995219378},{"$f":"AM306+AM299+AM292+AM285+AM278+AM271+AM264","v":284},{"$f":"SQRT((AN306^2)+(AN299^2)+(AN292^2)+(AN285^2)+(AN278^2)+(AN271^2)+(AN264^2))","v":150.69173832695674},{"$f":"AO306+AO299+AO292+AO285+AO278+AO271+AO264","v":32},{"$f":"SQRT((AP306^2)+(AP299^2)+(AP292^2)+(AP285^2)+(AP278^2)+(AP271^2)+(AP264^2))","v":53.432200029570183},{"$f":"AQ306+AQ299+AQ292+AQ285+AQ278+AQ271+AQ264","v":85},{"$f":"SQRT((AR306^2)+(AR299^2)+(AR292^2)+(AR285^2)+(AR278^2)+(AR271^2)+(AR264^2))","v":82.292162445763935},{"$f":"AS306+AS299+AS292+AS285+AS278+AS271+AS264","v":23},{"$f":"SQRT((AT306^2)+(AT299^2)+(AT292^2)+(AT285^2)+(AT278^2)+(AT271^2)+(AT264^2))","v":49.739320461783549},{"$f":"AU306+AU299+AU292+AU285+AU278+AU271+AU264","v":173},{"$f":"SQRT((AV306^2)+(AV299^2)+(AV292^2)+(AV285^2)+(AV278^2)+(AV271^2)+(AV264^2))","v":112.36547512470189}]
[null,"50.0 percent or more",{"$f":"C307+C300+C293+C286+C279+C272+C265","v":35},{"$f":"SQRT((D307^2)+(D300^2)+(D293^2)+(D286^2)+(D279^2)+(D272^2)+(D265^2))","v":38.858718455450898},{"$f":"E307+E300+E293+E286+E279+E272+E265","v":49},{"$f":"SQRT((F307^2)+(F300^2)+(F293^2)+(F286^2)+(F279^2)+(F272^2)+(F265^2))","v":84.41563836162112},{"$f":"G307+G300+G293+G286+G279+G272+G265","v":29},{"$f":"SQRT((H307^2)+(H300^2)+(H293^2)+(H286^2)+(H279^2)+(H272^2)+(H265^2))","v":29.748949561287034},{"$f":"I307+I300+I293+I286+I279+I272+I265","v":20},{"$f":"SQRT((J307^2)+(J300^2)+(J293^2)+(J286^2)+(J279^2)+(J272^2)+(J265^2))","v":34.612136599753562},{"$f":"K307+K300+K293+K286+K279+K272+K265","v":5},{"$f":"SQRT((L307^2)+(L300^2)+(L293^2)+(L286^2)+(L279^2)+(L272^2)+(L265^2))","v":22.649503305812249},{"$f":"M307+M300+M293+M286+M279+M272+M265","v":19},{"$f":"SQRT((N307^2)+(N300^2)+(N293^2)+(N286^2)+(N279^2)+(N272^2)+(N265^2))","v":30.740852297878796},{"$f":"O307+O300+O293+O286+O279+O272+O265","v":19},{"$f":"SQRT((P307^2)+(P300^2)+(P293^2)+(P286^2)+(P279^2)+(P272^2)+(P265^2))","v":32.403703492039298},{"$f":"Q307+Q300+Q293+Q286+Q279+Q272+Q265","v":1086},{"$f":"SQRT((R307^2)+(R300^2)+(R293^2)+(R286^2)+(R279^2)+(R272^2)+(R265^2))","v":236.76359517459605},{"$f":"S307+S300+S293+S286+S279+S272+S265","v":1216},{"$f":"SQRT((T307^2)+(T300^2)+(T293^2)+(T286^2)+(T279^2)+(T272^2)+(T265^2))","v":280.82556863647585},{"$f":"U307+U300+U293+U286+U279+U272+U265","v":38},{"$f":"SQRT((V307^2)+(V300^2)+(V293^2)+(V286^2)+(V279^2)+(V272^2)+(V265^2))","v":41.928510586473259},{"$f":"W307+W300+W293+W286+W279+W272+W265","v":2},{"$f":"SQRT((X307^2)+(X300^2)+(X293^2)+(X286^2)+(X279^2)+(X272^2)+(X265^2))","v":27.110883423451916},{"$f":"Y307+Y300+Y293+Y286+Y279+Y272+Y265","v":16},{"$f":"SQRT((Z307^2)+(Z300^2)+(Z293^2)+(Z286^2)+(Z279^2)+(Z272^2)+(Z265^2))","v":23.937418407171648},{"$f":"AA307+AA300+AA293+AA286+AA279+AA272+AA265","v":9},{"$f":"SQRT((AB307^2)+(AB300^2)+(AB293^2)+(AB286^2)+(AB279^2)+(AB272^2)+(AB265^2))","v":30.364452901377952},{"$f":"AC307+AC300+AC293+AC286+AC279+AC272+AC265","v":145},{"$f":"SQRT((AD307^2)+(AD300^2)+(AD293^2)+(AD286^2)+(AD279^2)+(AD272^2)+(AD265^2))","v":88.436417837902056},{"$f":"AE307+AE300+AE293+AE286+AE279+AE272+AE265","v":0},{"$f":"SQRT((AF307^2)+(AF300^2)+(AF293^2)+(AF286^2)+(AF279^2)+(AF272^2)+(AF265^2))","v":29.103264421710495},{"$f":"AG307+AG300+AG293+AG286+AG279+AG272+AG265","v":8},{"$f":"SQRT((AH307^2)+(AH300^2)+(AH293^2)+(AH286^2)+(AH279^2)+(AH272^2)+(AH265^2))","v":29.49576240750525},{"$f":"AI307+AI300+AI293+AI286+AI279+AI272+AI265","v":5},{"$f":"SQRT((AJ307^2)+(AJ300^2)+(AJ293^2)+(AJ286^2)+(AJ279^2)+(AJ272^2)+(AJ265^2))","v":28.106938645110393},{"$f":"AK307+AK300+AK293+AK286+AK279+AK272+AK265","v":5},{"$f":"SQRT((AL307^2)+(AL300^2)+(AL293^2)+(AL286^2)+(AL279^2)+(AL272^2)+(AL265^2))","v":27.838821814150108},{"$f":"AM307+AM300+AM293+AM286+AM279+AM272+AM265","v":170},{"$f":"SQRT((AN307^2)+(AN300^2)+(AN293^2)+(AN286^2)+(AN279^2)+(AN272^2)+(AN265^2))","v":114.49890829173874},{"$f":"AO307+AO300+AO293+AO286+AO279+AO272+AO265","v":13},{"$f":"SQRT((AP307^2)+(AP300^2)+(AP293^2)+(AP286^2)+(AP279^2)+(AP272^2)+(AP265^2))","v":30.364452901377952},{"$f":"AQ307+AQ300+AQ293+AQ286+AQ279+AQ272+AQ265","v":69},{"$f":"SQRT((AR307^2)+(AR300^2)+(AR293^2)+(AR286^2)+(AR279^2)+(AR272^2)+(AR265^2))","v":70.526590730021823},{"$f":"AS307+AS300+AS293+AS286+AS279+AS272+AS265","v":19},{"$f":"SQRT((AT307^2)+(AT300^2)+(AT293^2)+(AT286^2)+(AT279^2)+(AT272^2)+(AT265^2))","v":29.410882339705484},{"$f":"AU307+AU300+AU293+AU286+AU279+AU272+AU265","v":108},{"$f":"SQRT((AV307^2)+(AV300^2)+(AV293^2)+(AV286^2)+(AV279^2)+(AV272^2)+(AV265^2))","v":86.452298986203942}]
[null,"Not Computed",{"$f":"C307+C301+C294+C287+C280+C273+C266","v":41},{"$f":"SQRT((D307^2)+(D301^2)+(D294^2)+(D287^2)+(D280^2)+(D273^2)+(D266^2))","v":27.147743920996454},{"$f":"E307+E301+E294+E287+E280+E273+E266","v":13},{"$f":"SQRT((F307^2)+(F301^2)+(F294^2)+(F287^2)+(F280^2)+(F273^2)+(F266^2))","v":33.555923471125034},{"$f":"G307+G301+G294+G287+G280+G273+G266","v":36},{"$f":"SQRT((H307^2)+(H301^2)+(H294^2)+(H287^2)+(H280^2)+(H273^2)+(H266^2))","v":23.345235059857504},{"$f":"I307+I301+I294+I287+I280+I273+I266","v":14},{"$f":"SQRT((J307^2)+(J301^2)+(J294^2)+(J287^2)+(J280^2)+(J273^2)+(J266^2))","v":34.161381705077446},{"$f":"K307+K301+K294+K287+K280+K273+K266","v":7},{"$f":"SQRT((L307^2)+(L301^2)+(L294^2)+(L287^2)+(L280^2)+(L273^2)+(L266^2))","v":25.495097567963924},{"$f":"M307+M301+M294+M287+M280+M273+M266","v":7},{"$f":"SQRT((N307^2)+(N301^2)+(N294^2)+(N287^2)+(N280^2)+(N273^2)+(N266^2))","v":25.632011235952593},{"$f":"O307+O301+O294+O287+O280+O273+O266","v":73},{"$f":"SQRT((P307^2)+(P301^2)+(P294^2)+(P287^2)+(P280^2)+(P273^2)+(P266^2))","v":68.293484315855494},{"$f":"Q307+Q301+Q294+Q287+Q280+Q273+Q266","v":83},{"$f":"SQRT((R307^2)+(R301^2)+(R294^2)+(R287^2)+(R280^2)+(R273^2)+(R266^2))","v":65.977268812826736},{"$f":"S307+S301+S294+S287+S280+S273+S266","v":67},{"$f":"SQRT((T307^2)+(T301^2)+(T294^2)+(T287^2)+(T280^2)+(T273^2)+(T266^2))","v":64.938432380216881},{"$f":"U307+U301+U294+U287+U280+U273+U266","v":13},{"$f":"SQRT((V307^2)+(V301^2)+(V294^2)+(V287^2)+(V280^2)+(V273^2)+(V266^2))","v":34.785054261852174},{"$f":"W307+W301+W294+W287+W280+W273+W266","v":8},{"$f":"SQRT((X307^2)+(X301^2)+(X294^2)+(X287^2)+(X280^2)+(X273^2)+(X266^2))","v":26.664583251946766},{"$f":"Y307+Y301+Y294+Y287+Y280+Y273+Y266","v":2},{"$f":"SQRT((Z307^2)+(Z301^2)+(Z294^2)+(Z287^2)+(Z280^2)+(Z273^2)+(Z266^2))","v":27.110883423451916},{"$f":"AA307+AA301+AA294+AA287+AA280+AA273+AA266","v":3},{"$f":"SQRT((AB307^2)+(AB301^2)+(AB294^2)+(AB287^2)+(AB280^2)+(AB273^2)+(AB266^2))","v":27.239676943752471},{"$f":"AC307+AC301+AC294+AC287+AC280+AC273+AC266","v":17},{"$f":"SQRT((AD307^2)+(AD301^2)+(AD294^2)+(AD287^2)+(AD280^2)+(AD273^2)+(AD266^2))","v":40.70626487409524},{"$f":"AE307+AE301+AE294+AE287+AE280+AE273+AE266","v":2},{"$f":"SQRT((AF307^2)+(AF301^2)+(AF294^2)+(AF287^2)+(AF280^2)+(AF273^2)+(AF266^2))","v":27.110883423451916},{"$f":"AG307+AG301+AG294+AG287+AG280+AG273+AG266","v":2},{"$f":"SQRT((AH307^2)+(AH301^2)+(AH294^2)+(AH287^2)+(AH280^2)+(AH273^2)+(AH266^2))","v":27.404379212089442},{"$f":"AI307+AI301+AI294+AI287+AI280+AI273+AI266","v":6},{"$f":"SQRT((AJ307^2)+(AJ301^2)+(AJ294^2)+(AJ287^2)+(AJ280^2)+(AJ273^2)+(AJ266^2))","v":29.103264421710495},{"$f":"AK307+AK301+AK294+AK287+AK280+AK273+AK266","v":3},{"$f":"SQRT((AL307^2)+(AL301^2)+(AL294^2)+(AL287^2)+(AL280^2)+(AL273^2)+(AL266^2))","v":27.404379212089442},{"$f":"AM307+AM301+AM294+AM287+AM280+AM273+AM266","v":81},{"$f":"SQRT((AN307^2)+(AN301^2)+(AN294^2)+(AN287^2)+(AN280^2)+(AN273^2)+(AN266^2))","v":60.580524923443839},{"$f":"AO307+AO301+AO294+AO287+AO280+AO273+AO266","v":6},{"$f":"SQRT((AP307^2)+(AP301^2)+(AP294^2)+(AP287^2)+(AP280^2)+(AP273^2)+(AP266^2))","v":28.407745422683583},{"$f":"AQ307+AQ301+AQ294+AQ287+AQ280+AQ273+AQ266","v":17},{"$f":"SQRT((AR307^2)+(AR301^2)+(AR294^2)+(AR287^2)+(AR280^2)+(AR273^2)+(AR266^2))","v":31.208973068654469},{"$f":"AS307+AS301+AS294+AS287+AS280+AS273+AS266","v":0},{"$f":"SQRT((AT307^2)+(AT301^2)+(AT294^2)+(AT287^2)+(AT280^2)+(AT273^2)+(AT266^2))","v":29.103264421710495},{"$f":"AU307+AU301+AU294+AU287+AU280+AU273+AU266","v":35},{"$f":"SQRT((AV307^2)+(AV301^2)+(AV294^2)+(AV287^2)+(AV280^2)+(AV273^2)+(AV266^2))","v":36.290494623248108}]
[]
[]
[]
[]
[]
[]
[]
[]
[]
[]
[]
[]
[]
[]
[]
[]
[]
[]
[]
[]
[null,"B25074. HOUSEHOLD INCOME BY GROSS RENT AS A PERCENTAGE OF HOUSEHOLD INCOME IN THE PAST 12 MONTHS"]
[null,"Universe:  RENTER OCCUPIED HOUSING UNITS"]
[null,"Data Set: 2008-2012 American Community Survey 5-Year Estimates",null,null,null,null,null,{"$f":"'RentalHousingCost-Prior10Yr'!D41","v":"Income in 2012 Inflation Adjusted Dollars"}]
[]
[null,null,"Alstead",null,"Chesterfield",null,"Dublin",null,"Fitzwilliam",null,"Gilsum",null,"Harrisville",null,"Hinsdale",null,"Jaffrey",null,"Keene",null,"Marlborough",null,"Marlow",null,"Nelson",null,"Richmond",null,"Rindge",null,"Roxbury",null,"Stoddard",null,"Sullivan",null,"Surry",null,"Swanzey",null,"Troy",null,"Walpole",null,"Westmoreland",null,"Winchester"]
[null," ","Estimate","Margin of Error","Estimate","Margin of Error","Estimate","Margin of Error","Estimate","Margin of Error","Estimate","Margin of Error","Estimate","Margin of Error","Estimate","Margin of Error","Estimate","Margin of Error","Estimate","Margin of Error","Estimate","Margin of Error","Estimate","Margin of Error","Estimate","Margin of Error","Estimate","Margin of Error","Estimate","Margin of Error","Estimate","Margin of Error","Estimate","Margin of Error","Estimate","Margin of Error","Estimate","Margin of Error","Estimate","Margin of Error","Estimate","Margin of Error","Estimate","Margin of Error","Estimate","Margin of Error","Estimate","Margin of Error"]
[null,"Total:",132,44,193,127,140,49,177,79,30,19,68,40,529,121,548,126,3866,378,231,89,41,24,83,43,33,24,431,119,12,9,53,28,40,25,23,14,657,173,260,77,466,132,86,32,571,128]
[null,"Less than $10,000:",9,14,28,32,10,7,0,11,9,10,0,11,56,61,25,30,445,145,5,8,0,11,0,11,4,6,78,39,0,11,9,10,0,11,0,11,17,21,21,27,36,44,0,11,50,43]
[null,"Less than 20.0 percent",0,11,0,11,0,11,0,11,0,11,0,11,0,11,0,16,0,21,0,11,0,11,0,11,0,11,0,16,0,11,0,11,0,11,0,11,0,16,0,11,0,11,0,11,0,11]
[null,"20.0 to 24.9 percent",0,11,0,11,0,11,0,11,0,11,0,11,0,11,0,16,0,21,0,11,0,11,0,11,0,11,0,16,0,11,0,11,0,11,0,11,0,16,0,11,0,11,0,11,0,11]
[null,"25.0 to 29.9 percent",0,11,0,11,0,11,0,11,0,11,0,11,26,36,0,16,58,49,5,8,0,11,0,11,0,11,0,16,0,11,0,11,0,11,0,11,0,16,0,11,12,20,0,11,0,11]
[null,"30.0 to 34.9 percent",0,11,0,11,0,11,0,11,0,11,0,11,0,11,0,16,15,25,0,11,0,11,0,11,0,11,0,16,0,11,0,11,0,11,0,11,0,16,0,11,0,11,0,11,0,11]
[null,"35.0 percent or more",9,14,28,32,3,5,0,11,2,4,0,11,30,48,25,30,291,115,0,11,0,11,0,11,4,6,31,23,0,11,0,11,0,11,0,11,5,10,21,27,0,11,0,11,27,19]
[]
[]
[null,"Not computed",0,11,0,11,7,5,0,11,7,10,0,11,0,11,0,16,81,54,0,11,0,11,0,11,0,11,47,29,0,11,9,10,0,11,0,11,12,19,0,11,24,38,0,11,23,38]
[null,"$10,000 to $19,999:",34,21,12,17,5,7,35,32,2,3,0,11,113,75,133,73,680,167,25,28,0,11,8,9,6,9,98,46,0,11,0,11,22,21,0,11,150,81,41,33,84,60,2,5,93,70]
[null,"Less than 20.0 percent",0,11,0,11,0,11,0,11,0,11,0,11,0,11,13,22,56,45,0,11,0,11,0,11,0,11,0,16,0,11,0,11,0,11,0,11,14,22,0,11,0,11,0,11,0,11]
[null,"20.0 to 24.9 percent",0,11,0,11,0,11,0,11,0,11,0,11,38,36,0,16,37,37,0,11,0,11,0,11,0,11,0,16,0,11,0,11,0,11,0,11,11,18,0,11,0,11,0,11,0,11]
[null,"25.0 to 29.9 percent",9,13,0,11,0,11,0,11,0,11,0,11,0,11,0,16,29,26,0,11,0,11,0,11,0,11,0,16,0,11,0,11,2,3,0,11,0,16,0,11,0,11,0,11,0,11]
[null,"30.0 to 34.9 percent",0,11,0,11,0,11,0,11,0,11,0,11,21,24,12,19,8,12,8,11,0,11,0,11,0,11,0,16,0,11,0,11,0,11,0,11,25,28,5,8,20,34,0,11,0,11]
[null,"35.0 percent or more",22,15,12,17,0,11,35,32,2,3,0,11,54,69,94,68,509,150,0,11,0,11,8,9,4,7,76,45,0,11,0,11,9,12,0,11,85,62,30,31,46,42,2,5,93,70]
[]
[]
[null,"Not computed",3,5,0,11,5,7,0,11,0,11,0,11,0,11,14,21,41,51,17,26,0,11,0,11,2,5,22,19,0,11,0,11,11,16,0,11,15,24,6,10,18,23,0,11,0,11]
[null,"$20,000 to $34,999:",69,36,0,11,61,33,52,56,4,5,41,37,141,75,240,93,1010,198,75,61,9,15,17,11,2,5,40,37,6,7,13,11,7,9,4,6,145,117,72,48,99,52,17,19,238,98]
[null,"Less than 20.0 percent",10,13,0,11,10,15,0,11,0,11,0,11,13,20,25,29,53,37,18,30,0,11,0,11,0,11,0,16,0,11,0,11,0,11,0,11,0,16,0,11,0,11,0,11,17,19]
[null,"20.0 to 24.9 percent",5,8,0,11,3,5,3,7,0,11,0,11,0,11,0,16,89,64,0,11,0,11,3,4,2,5,0,16,0,11,0,11,0,11,0,11,0,16,11,19,6,9,0,11,0,11]
[null,"25.0 to 29.9 percent",0,11,0,11,0,11,0,11,4,5,10,15,40,40,38,59,184,94,0,11,0,11,0,11,0,11,0,16,0,11,5,7,5,8,0,11,28,34,8,12,12,20,10,16,9,15]
[null,"30.0 to 34.9 percent",11,13,0,11,0,11,0,11,0,11,0,11,0,11,27,29,79,51,0,11,0,11,7,7,0,11,0,16,0,11,0,11,0,11,0,11,12,18,28,33,27,33,0,11,39,41]
[null,"35.0 percent or more",43,30,0,11,48,30,49,55,0,11,31,35,88,77,150,78,583,165,51,50,9,15,2,3,0,11,29,30,2,3,8,9,0,11,0,11,105,102,25,31,39,29,0,11,173,84]
[]
[]
[null,"Not computed",0,11,0,11,0,11,0,11,0,11,0,11,0,11,0,16,22,25,6,9,0,11,5,5,0,11,11,17,4,6,0,11,2,3,4,6,0,16,0,11,15,21,7,9,0,11]
[null,"$35,000 to $49,999:",4,5,0,11,27,20,53,49,6,11,9,14,157,96,32,37,611,177,44,37,7,10,29,36,13,21,72,52,6,8,0,11,6,7,8,10,76,57,67,55,129,67,31,24,33,31]
[null,"Less than 20.0 percent",0,11,0,11,10,16,0,11,6,11,0,11,0,11,0,16,43,58,0,11,0,11,0,11,0,11,0,16,0,11,0,11,0,11,0,11,0,16,23,37,22,35,0,11,10,17]
[null,"20.0 to 24.9 percent",0,11,0,11,0,11,23,37,0,11,9,14,57,71,0,16,156,85,20,32,0,11,0,11,0,11,15,11,0,11,0,11,0,11,0,11,12,20,0,11,27,34,8,14,13,20]
[null,"25.0 to 29.9 percent",0,11,0,11,5,8,8,11,0,11,0,11,90,69,0,16,146,99,4,6,0,11,3,5,0,11,5,7,0,11,0,11,0,11,0,11,34,40,29,37,22,23,3,6,0,11]
[null,"30.0 to 34.9 percent",0,11,0,11,0,11,0,11,0,11,0,11,0,11,20,31,112,86,8,12,0,11,26,36,13,21,0,16,2,3,0,11,0,11,5,8,30,34,15,19,35,37,14,14,10,17]
[null,"35.0 percent or more",4,5,0,11,5,8,22,33,0,11,0,11,10,17,12,19,147,77,12,13,0,11,0,11,0,11,52,51,4,7,0,11,3,4,0,11,0,16,0,11,0,11,6,8,0,11]
[]
[]
[null,"Not computed",0,11,0,11,7,8,0,11,0,11,0,11,0,11,0,16,7,12,0,11,7,10,0,11,0,11,0,16,0,11,0,11,3,4,3,4,0,16,0,11,23,37,0,11,0,11]
[null,"$50,000 to $74,999:",8,8,83,106,16,15,7,10,6,8,8,9,49,41,100,57,611,155,70,53,20,18,8,12,4,6,67,59,0,11,22,23,0,11,3,4,127,72,23,18,84,50,16,12,133,83]
[null,"Less than 20.0 percent",0,11,65,101,0,11,0,11,0,11,8,9,17,21,52,46,196,89,28,37,5,8,8,12,0,11,22,34,0,11,12,18,0,11,1,3,12,19,4,6,84,50,2,4,27,36]
[null,"20.0 to 24.9 percent",4,5,18,28,0,11,7,10,6,8,0,11,6,11,12,20,117,65,42,37,9,13,0,11,0,11,0,16,0,11,0,11,0,11,2,3,73,62,6,9,0,11,5,7,40,51]
[null,"25.0 to 29.9 percent",0,11,0,11,0,11,0,11,0,11,0,11,0,11,0,16,89,60,0,11,0,11,0,11,0,11,37,42,0,11,10,14,0,11,0,11,0,16,13,14,0,11,5,8,61,59]
[null,"30.0 to 34.9 percent",0,11,0,11,0,11,0,11,0,11,0,11,0,11,14,21,153,92,0,11,6,9,0,11,4,6,0,16,0,11,0,11,0,11,0,11,19,32,0,11,0,11,4,7,0,11]
[null,"35.0 percent or more",0,11,0,11,0,11,0,11,0,11,0,11,26,31,22,36,56,70,0,11,0,11,0,11,0,11,0,16,0,11,0,11,0,11,0,11,0,16,0,11,0,11,0,11,0,11]
[]
[]
[null,"Not computed",4,5,0,11,16,15,0,11,0,11,0,11,0,11,0,16,0,21,0,11,0,11,0,11,0,11,8,13,0,11,0,11,0,11,0,11,23,26,0,11,0,11,0,11,5,9]
[null,"$75,000 to $99,999:",0,11,45,70,12,11,21,24,3,4,5,7,13,20,18,30,305,173,12,14,0,11,5,8,0,11,40,30,0,11,0,11,0,11,8,6,43,44,5,8,19,32,8,11,24,27]
[null,"Less than 20.0 percent",0,11,45,70,9,11,0,11,3,4,0,11,13,20,0,16,180,126,6,10,0,11,5,8,0,11,22,21,0,11,0,11,0,11,7,7,43,44,0,11,19,32,5,9,15,23]
[null,"20.0 to 24.9 percent",0,11,0,11,0,11,5,7,0,11,5,7,0,11,0,16,112,111,0,11,0,11,0,11,0,11,18,28,0,11,0,11,0,11,1,3,0,16,0,11,0,11,0,11,9,13]
[null,"25.0 to 29.9 percent",0,11,0,11,0,11,0,11,0,11,0,11,0,11,0,16,0,21,6,10,0,11,0,11,0,11,0,16,0,11,0,11,0,11,0,11,0,16,0,11,0,11,3,5,0,11]
[null,"30.0 to 34.9 percent",0,11,0,11,0,11,0,11,0,11,0,11,0,11,0,16,0,21,0,11,0,11,0,11,0,11,0,16,0,11,0,11,0,11,0,11,0,16,5,8,0,11,0,11,0,11]
[null,"35.0 percent or more",0,11,0,11,3,4,16,23,0,11,0,11,0,11,0,16,13,22,0,11,0,11,0,11,0,11,0,16,0,11,0,11,0,11,0,11,0,16,0,11,0,11,0,11,0,11]
[]
[]
[null,"Not computed",0,11,0,11,0,11,0,11,0,11,0,11,0,11,18,30,0,21,0,11,0,11,0,11,0,11,0,16,0,11,0,11,0,11,0,11,0,16,0,11,0,11,0,11,0,11]
[null,"$100,000 or more:",8,10,25,28,9,13,9,14,0,11,5,9,0,11,0,16,204,106,0,11,5,5,16,13,4,6,36,42,0,11,9,13,5,5,0,11,99,75,31,35,15,21,12,10,0,11]
[null,"Less than 20.0 percent",8,10,25,28,9,13,9,14,0,11,5,9,0,11,0,16,193,105,0,11,5,5,16,13,4,6,36,42,0,11,9,13,5,5,0,11,99,75,31,35,10,15,0,11,0,11]
[null,"20.0 to 24.9 percent",0,11,0,11,0,11,0,11,0,11,0,11,0,11,0,16,11,17,0,11,0,11,0,11,0,11,0,16,0,11,0,11,0,11,0,11,0,16,0,11,0,11,0,11,0,11]
[null,"25.0 to 29.9 percent",0,11,0,11,0,11,0,11,0,11,0,11,0,11,0,16,0,21,0,11,0,11,0,11,0,11,0,16,0,11,0,11,0,11,0,11,0,16,0,11,0,11,0,11,0,11]
[null,"30.0 to 34.9 percent",0,11,0,11,0,11,0,11,0,11,0,11,0,11,0,16,0,21,0,11,0,11,0,11,0,11,0,16,0,11,0,11,0,11,0,11,0,16,0,11,0,11,0,11,0,11]
[null,"35.0 percent or more",0,11,0,11,0,11,0,11,0,11,0,11,0,11,0,16,0,21,0,11,0,11,0,11,0,11,0,16,0,11,0,11,0,11,0,11,0,16,0,11,0,11,0,11,0,11]
[]
[]
[null,"Not computed",0,11,0,11,0,11,0,11,0,11,0,11,0,11,0,16,0,21,0,11,0,11,0,11,0,11,0,16,0,11,0,11,0,11,0,11,0,16,0,11,5,9,12,10,0,11]
[]
[null,"Calculated B25074. HOUSEHOLD INCOME BY GROSS RENT AS A PERCENTAGE OF HOUSEHOLD INCOME IN THE PAST 12 MONTHS"]
[null,"Universe:  RENTEROCCUPIED HOUSING UNITS"]
[null,{"$f":"B346","v":"Data Set: 2008-2012 American Community Survey 5-Year Estimates"}]
[]
[null,null,"Albany",null,"Bartlett",null,"Brookfield",null,"Chatham",null,"Conway",null,"Eaton",null,"Effingham",null,"Freedom",null,"Hale's Location",null,"Hart's Location",null,"Jackson",null,"Madison",null,"Moultonborough",null,"Ossipee",null,"Sandwich",null,"Tamworth",null,"Tuftonboro",null,"Wakefield",null,"Wolfeboro"]
[null,null,"Estimate","Margin of Error","Estimate","Margin of Error","Estimate","Margin of Error","Estimate","Margin of Error","Estimate","Margin of Error","Estimate","Margin of Error","Estimate","Margin of Error","Estimate","Margin of Error","Estimate","Margin of Error","Estimate","Margin of Error","Estimate","Margin of Error","Estimate","Margin of Error","Estimate","Margin of Error","Estimate","Margin of Error","Estimate","Margin of Error","Estimate","Margin of Error","Estimate","Margin of Error","Estimate","Margin of Error","Estimate","Margin of Error"]
[null,"Total:",{"$f":"C350","v":132},{"$f":"D350","v":44},{"$f":"E350","v":193},127,140,49,177,79,30,19,68,40,529,121,548,126,3866,378,231,89,41,24,83,43,33,24,431,119,12,9,53,28,40,25,23,14,657,173]
[null,"Less than $10,000:",{"$f":"C351","v":9},{"$f":"D351","v":14},{"$f":"E351","v":28},32,10,7,0,11,9,10,0,11,56,61,25,30,445,145,5,8,0,11,0,11,4,6,78,39,0,11,9,10,0,11,0,11,17,21]
[null,"Less than 30.0 percent",{"$f":"C352+C353+C354","v":0},{"$f":"SQRT((D352^2)+(D353^2)+(D354^2))","v":19.05255888325765},{"$f":"E352+E353+E354","v":0},{"$f":"SQRT((F352^2)+(F353^2)+(F354^2))","v":19.05255888325765},{"$f":"G352+G353+G354","v":0},{"$f":"SQRT((H352^2)+(H353^2)+(H354^2))","v":19.05255888325765},{"$f":"I352+I353+I354","v":0},{"$f":"SQRT((J352^2)+(J353^2)+(J354^2))","v":19.05255888325765},{"$f":"K352+K353+K354","v":0},{"$f":"SQRT((L352^2)+(L353^2)+(L354^2))","v":19.05255888325765},{"$f":"M352+M353+M354","v":0},{"$f":"SQRT((N352^2)+(N353^2)+(N354^2))","v":19.05255888325765},{"$f":"O352+O353+O354","v":26},{"$f":"SQRT((P352^2)+(P353^2)+(P354^2))","v":39.217343102255157},{"$f":"Q352+Q353+Q354","v":0},{"$f":"SQRT((R352^2)+(R353^2)+(R354^2))","v":27.712812921102035},{"$f":"S352+S353+S354","v":58},{"$f":"SQRT((T352^2)+(T353^2)+(T354^2))","v":57.297469403107151},{"$f":"U352+U353+U354","v":5},{"$f":"SQRT((V352^2)+(V353^2)+(V354^2))","v":17.4928556845359},{"$f":"W352+W353+W354","v":0},{"$f":"SQRT((X352^2)+(X353^2)+(X354^2))","v":19.05255888325765},{"$f":"Y352+Y353+Y354","v":0},{"$f":"SQRT((Z352^2)+(Z353^2)+(Z354^2))","v":19.05255888325765},{"$f":"AA352+AA353+AA354","v":0},{"$f":"SQRT((AB352^2)+(AB353^2)+(AB354^2))","v":19.05255888325765},{"$f":"AC352+AC353+AC354","v":0},{"$f":"SQRT((AD352^2)+(AD353^2)+(AD354^2))","v":27.712812921102035},{"$f":"AE352+AE353+AE354","v":0},{"$f":"SQRT((AF352^2)+(AF353^2)+(AF354^2))","v":19.05255888325765},{"$f":"AG352+AG353+AG354","v":0},{"$f":"SQRT((AH352^2)+(AH353^2)+(AH354^2))","v":19.05255888325765},{"$f":"AI352+AI353+AI354","v":0},{"$f":"SQRT((AJ352^2)+(AJ353^2)+(AJ354^2))","v":19.05255888325765},{"$f":"AK352+AK353+AK354","v":0},{"$f":"SQRT((AL352^2)+(AL353^2)+(AL354^2))","v":19.05255888325765},{"$f":"AM352+AM353+AM354","v":0},{"$f":"SQRT((AN352^2)+(AN353^2)+(AN354^2))","v":27.712812921102035}]
[null,"More than 30.0 percent",{"$f":"C355+C356+C357+C358","v":9},{"$f":"SQRT((D355^2)+(D356^2+(D357^2+(D358^2))))","v":17.804493814764857},{"$f":"E355+E356+E357+E358","v":28},{"$f":"SQRT((F355^2)+(F356^2+(F357^2+(F358^2))))","v":33.837848631377263},{"$f":"G355+G356+G357+G358","v":3},{"$f":"SQRT((H355^2)+(H356^2+(H357^2+(H358^2))))","v":12.083045973594572},{"$f":"I355+I356+I357+I358","v":0},{"$f":"SQRT((J355^2)+(J356^2+(J357^2+(J358^2))))","v":15.556349186104045},{"$f":"K355+K356+K357+K358","v":2},{"$f":"SQRT((L355^2)+(L356^2+(L357^2+(L358^2))))","v":11.704699910719626},{"$f":"M355+M356+M357+M358","v":0},{"$f":"SQRT((N355^2)+(N356^2+(N357^2+(N358^2))))","v":15.556349186104045},{"$f":"O355+O356+O357+O358","v":30},{"$f":"SQRT((P355^2)+(P356^2+(P357^2+(P358^2))))","v":49.244289008980523},{"$f":"Q355+Q356+Q357+Q358","v":25},{"$f":"SQRT((R355^2)+(R356^2+(R357^2+(R358^2))))","v":34},{"$f":"S355+S356+S357+S358","v":306},{"$f":"SQRT((T355^2)+(T356^2+(T357^2+(T358^2))))","v":117.6860229593982},{"$f":"U355+U356+U357+U358","v":0},{"$f":"SQRT((V355^2)+(V356^2+(V357^2+(V358^2))))","v":15.556349186104045},{"$f":"W355+W356+W357+W358","v":0},{"$f":"SQRT((X355^2)+(X356^2+(X357^2+(X358^2))))","v":15.556349186104045},{"$f":"Y355+Y356+Y357+Y358","v":0},{"$f":"SQRT((Z355^2)+(Z356^2+(Z357^2+(Z358^2))))","v":15.556349186104045},{"$f":"AA355+AA356+AA357+AA358","v":4},{"$f":"SQRT((AB355^2)+(AB356^2+(AB357^2+(AB358^2))))","v":12.529964086141668},{"$f":"AC355+AC356+AC357+AC358","v":31},{"$f":"SQRT((AD355^2)+(AD356^2+(AD357^2+(AD358^2))))","v":28.0178514522438},{"$f":"AE355+AE356+AE357+AE358","v":0},{"$f":"SQRT((AF355^2)+(AF356^2+(AF357^2+(AF358^2))))","v":15.556349186104045},{"$f":"AG355+AG356+AG357+AG358","v":0},{"$f":"SQRT((AH355^2)+(AH356^2+(AH357^2+(AH358^2))))","v":15.556349186104045},{"$f":"AI355+AI356+AI357+AI358","v":0},{"$f":"SQRT((AJ355^2)+(AJ356^2+(AJ357^2+(AJ358^2))))","v":15.556349186104045},{"$f":"AK355+AK356+AK357+AK358","v":0},{"$f":"SQRT((AL355^2)+(AL356^2+(AL357^2+(AL358^2))))","v":15.556349186104045},{"$f":"AM355+AM356+AM357+AM358","v":5},{"$f":"SQRT((AN355^2)+(AN356^2+(AN357^2+(AN358^2))))","v":18.867962264113206}]
[null,"Less Than 35% of HH Income",{"$f":"C352+C353+C354+C355","v":0},{"$f":"SQRT((D352^2)+(D353^2)+(D354^2)+(D355^2))","v":22},{"$f":"E352+E353+E354+E355","v":0},{"$f":"SQRT((F352^2)+(F353^2)+(F354^2)+(F355^2))","v":22},{"$f":"G352+G353+G354+G355","v":0},{"$f":"SQRT((H352^2)+(H353^2)+(H354^2)+(H355^2))","v":22},{"$f":"I352+I353+I354+I355","v":0},{"$f":"SQRT((J352^2)+(J353^2)+(J354^2)+(J355^2))","v":22},{"$f":"K352+K353+K354+K355","v":0},{"$f":"SQRT((L352^2)+(L353^2)+(L354^2)+(L355^2))","v":22},{"$f":"M352+M353+M354+M355","v":0},{"$f":"SQRT((N352^2)+(N353^2)+(N354^2)+(N355^2))","v":22},{"$f":"O352+O353+O354+O355","v":26},{"$f":"SQRT((P352^2)+(P353^2)+(P354^2)+(P355^2))","v":40.730823708832602},{"$f":"Q352+Q353+Q354+Q355","v":0},{"$f":"SQRT((R352^2)+(R353^2)+(R354^2)+(R355^2))","v":32},{"$f":"S352+S353+S354+S355","v":73},{"$f":"SQRT((T352^2)+(T353^2)+(T354^2)+(T355^2))","v":62.513998432351137},{"$f":"U352+U353+U354+U355","v":5},{"$f":"SQRT((V352^2)+(V353^2)+(V354^2)+(V355^2))","v":20.663978319771825},{"$f":"W352+W353+W354+W355","v":0},{"$f":"SQRT((X352^2)+(X353^2)+(X354^2)+(X355^2))","v":22},{"$f":"Y352+Y353+Y354+Y355","v":0},{"$f":"SQRT((Z352^2)+(Z353^2)+(Z354^2)+(Z355^2))","v":22},{"$f":"AA352+AA353+AA354+AA355","v":0},{"$f":"SQRT((AB352^2)+(AB353^2)+(AB354^2)+(AB355^2))","v":22},{"$f":"AC352+AC353+AC354+AC355","v":0},{"$f":"SQRT((AD352^2)+(AD353^2)+(AD354^2)+(AD355^2))","v":32},{"$f":"AE352+AE353+AE354+AE355","v":0},{"$f":"SQRT((AF352^2)+(AF353^2)+(AF354^2)+(AF355^2))","v":22},{"$f":"AG352+AG353+AG354+AG355","v":0},{"$f":"SQRT((AH352^2)+(AH353^2)+(AH354^2)+(AH355^2))","v":22},{"$f":"AI352+AI353+AI354+AI355","v":0},{"$f":"SQRT((AJ352^2)+(AJ353^2)+(AJ354^2)+(AJ355^2))","v":22},{"$f":"AK352+AK353+AK354+AK355","v":0},{"$f":"SQRT((AL352^2)+(AL353^2)+(AL354^2)+(AL355^2))","v":22},{"$f":"AM352+AM353+AM354+AM355","v":0},{"$f":"SQRT((AN352^2)+(AN353^2)+(AN354^2)+(AN355^2))","v":32}]
[null,"35.0 percent or more",{"$f":"C356+C357+C358","v":9},{"$f":"SQRT((D356^2)+(D357^2)+(D358^2))","v":14},{"$f":"E356+E357+E358","v":28},{"$f":"SQRT((F356^2)+(F357^2)+(F358^2))","v":32},{"$f":"G356+G357+G358","v":3},{"$f":"SQRT((H356^2)+(H357^2)+(H358^2))","v":5},{"$f":"I356+I357+I358","v":0},{"$f":"SQRT((J356^2)+(J357^2)+(J358^2))","v":11},{"$f":"K356+K357+K358","v":2},{"$f":"SQRT((L356^2)+(L357^2)+(L358^2))","v":4},{"$f":"M356+M357+M358","v":0},{"$f":"SQRT((N356^2)+(N357^2)+(N358^2))","v":11},{"$f":"O356+O357+O358","v":30},{"$f":"SQRT((P356^2)+(P357^2)+(P358^2))","v":48},{"$f":"Q356+Q357+Q358","v":25},{"$f":"SQRT((R356^2)+(R357^2)+(R358^2))","v":30},{"$f":"S356+S357+S358","v":291},{"$f":"SQRT((T356^2)+(T357^2)+(T358^2))","v":115},{"$f":"U356+U357+U358","v":0},{"$f":"SQRT((V356^2)+(V357^2)+(V358^2))","v":11},{"$f":"W356+W357+W358","v":0},{"$f":"SQRT((X356^2)+(X357^2)+(X358^2))","v":11},{"$f":"Y356+Y357+Y358","v":0},{"$f":"SQRT((Z356^2)+(Z357^2)+(Z358^2))","v":11},{"$f":"AA356+AA357+AA358","v":4},{"$f":"SQRT((AB356^2)+(AB357^2)+(AB358^2))","v":6},{"$f":"AC356+AC357+AC358","v":31},{"$f":"SQRT((AD356^2)+(AD357^2)+(AD358^2))","v":23},{"$f":"AE356+AE357+AE358","v":0},{"$f":"SQRT((AF356^2)+(AF357^2)+(AF358^2))","v":11},{"$f":"AG356+AG357+AG358","v":0},{"$f":"SQRT((AH356^2)+(AH357^2)+(AH358^2))","v":11},{"$f":"AI356+AI357+AI358","v":0},{"$f":"SQRT((AJ356^2)+(AJ357^2)+(AJ358^2))","v":11},{"$f":"AK356+AK357+AK358","v":0},{"$f":"SQRT((AL356^2)+(AL357^2)+(AL358^2))","v":11},{"$f":"AM356+AM357+AM358","v":5},{"$f":"SQRT((AN356^2)+(AN357^2)+(AN358^2))","v":10}]
[null,"50.0 percent or more",{"$f":"C358","v":0},{"$f":"D358","v":0},0,{"$f":"F358","v":0},0,0,0,0,0,0,0,0,0,0,0,0,0,0,0,0,0,0,0,0,0,0,0,0,0,0,0,0,0,0,0,0,0,0]
[null,"Not Computed",{"$f":"C359","v":0},11,{"$f":"E359","v":0},11,7,5,0,11,7,10,0,11,0,11,0,16,81,54,0,11,0,11,0,11,0,11,47,29,0,11,9,10,0,11,0,11,12,19]
[null,"$10,000 to $19,999:",34,21,{"$f":"E360","v":12},17,5,7,35,32,2,3,0,11,113,75,133,73,680,167,25,28,0,11,8,9,6,9,98,46,0,11,0,11,22,21,0,11,150,81]
[null,"Less than 30.0 percent",{"$f":"C361+C362+C363","v":9},{"$f":"SQRT((D361^2)+(D362^2)+(D363^2))","v":20.273134932713294},{"$f":"E361+E362+E363","v":0},{"$f":"SQRT((F361^2)+(F362^2)+(F363^2))","v":19.05255888325765},{"$f":"G361+G362+G363","v":0},{"$f":"SQRT((H361^2)+(H362^2)+(H363^2))","v":19.05255888325765},{"$f":"I361+I362+I363","v":0},{"$f":"SQRT((J361^2)+(J362^2)+(J363^2))","v":19.05255888325765},{"$f":"K361+K362+K363","v":0},{"$f":"SQRT((L361^2)+(L362^2)+(L363^2))","v":19.05255888325765},{"$f":"M361+M362+M363","v":0},{"$f":"SQRT((N361^2)+(N362^2)+(N363^2))","v":19.05255888325765},{"$f":"O361+O362+O363","v":38},{"$f":"SQRT((P361^2)+(P362^2)+(P363^2))","v":39.217343102255157},{"$f":"Q361+Q362+Q363","v":13},{"$f":"SQRT((R361^2)+(R362^2)+(R363^2))","v":31.559467676118999},{"$f":"S361+S362+S363","v":122},{"$f":"SQRT((T361^2)+(T362^2)+(T363^2))","v":63.796551630946325},{"$f":"U361+U362+U363","v":0},{"$f":"SQRT((V361^2)+(V362^2)+(V363^2))","v":19.05255888325765},{"$f":"W361+W362+W363","v":0},{"$f":"SQRT((X361^2)+(X362^2)+(X363^2))","v":19.05255888325765},{"$f":"Y361+Y362+Y363","v":0},{"$f":"SQRT((Z361^2)+(Z362^2)+(Z363^2))","v":19.05255888325765},{"$f":"AA361+AA362+AA363","v":0},{"$f":"SQRT((AB361^2)+(AB362^2)+(AB363^2))","v":19.05255888325765},{"$f":"AC361+AC362+AC363","v":0},{"$f":"SQRT((AD361^2)+(AD362^2)+(AD363^2))","v":27.712812921102035},{"$f":"AE361+AE362+AE363","v":0},{"$f":"SQRT((AF361^2)+(AF362^2)+(AF363^2))","v":19.05255888325765},{"$f":"AG361+AG362+AG363","v":0},{"$f":"SQRT((AH361^2)+(AH362^2)+(AH363^2))","v":19.05255888325765},{"$f":"AI361+AI362+AI363","v":2},{"$f":"SQRT((AJ361^2)+(AJ362^2)+(AJ363^2))","v":15.842979517754859},{"$f":"AK361+AK362+AK363","v":0},{"$f":"SQRT((AL361^2)+(AL362^2)+(AL363^2))","v":19.05255888325765},{"$f":"AM361+AM362+AM363","v":25},{"$f":"SQRT((AN361^2)+(AN362^2)+(AN363^2))","v":32.619012860600179}]
[null,"More than 30.0 percent",{"$f":"C364+C365+C366+C367","v":22},{"$f":"SQRT((D364^2)+(D365^2)+(D366^2)+(D367^2))","v":18.601075237738275},{"$f":"E364+E365+E366+E367","v":12},{"$f":"SQRT((F364^2)+(F365^2)+(F366^2)+(F367^2))","v":20.248456731316587},{"$f":"G364+G365+G366+G367","v":0},{"$f":"SQRT((H364^2)+(H365^2)+(H366^2)+(H367^2))","v":15.556349186104045},{"$f":"I364+I365+I366+I367","v":35},{"$f":"SQRT((J364^2)+(J365^2)+(J366^2)+(J367^2))","v":33.837848631377263},{"$f":"K364+K365+K366+K367","v":2},{"$f":"SQRT((L364^2)+(L365^2)+(L366^2)+(L367^2))","v":11.401754250991379},{"$f":"M364+M365+M366+M367","v":0},{"$f":"SQRT((N364^2)+(N365^2)+(N366^2)+(N367^2))","v":15.556349186104045},{"$f":"O364+O365+O366+O367","v":75},{"$f":"SQRT((P364^2)+(P365^2)+(P366^2)+(P367^2))","v":73.054773971315527},{"$f":"Q364+Q365+Q366+Q367","v":106},{"$f":"SQRT((R364^2)+(R365^2)+(R366^2)+(R367^2))","v":70.604532432415411},{"$f":"S364+S365+S366+S367","v":517},{"$f":"SQRT((T364^2)+(T365^2)+(T366^2)+(T367^2))","v":150.47923444781344},{"$f":"U364+U365+U366+U367","v":8},{"$f":"SQRT((V364^2)+(V365^2)+(V366^2)+(V367^2))","v":15.556349186104045},{"$f":"W364+W365+W366+W367","v":0},{"$f":"SQRT((X364^2)+(X365^2)+(X366^2)+(X367^2))","v":15.556349186104045},{"$f":"Y364+Y365+Y366+Y367","v":8},{"$f":"SQRT((Z364^2)+(Z365^2)+(Z366^2)+(Z367^2))","v":14.212670403551895},{"$f":"AA364+AA365+AA366+AA367","v":4},{"$f":"SQRT((AB364^2)+(AB365^2)+(AB366^2)+(AB367^2))","v":13.038404810405298},{"$f":"AC364+AC365+AC366+AC367","v":76},{"$f":"SQRT((AD364^2)+(AD365^2)+(AD366^2)+(AD367^2))","v":47.75981574503821},{"$f":"AE364+AE365+AE366+AE367","v":0},{"$f":"SQRT((AF364^2)+(AF365^2)+(AF366^2)+(AF367^2))","v":15.556349186104045},{"$f":"AG364+AG365+AG366+AG367","v":0},{"$f":"SQRT((AH364^2)+(AH365^2)+(AH366^2)+(AH367^2))","v":15.556349186104045},{"$f":"AI364+AI365+AI366+AI367","v":9},{"$f":"SQRT((AJ364^2)+(AJ365^2)+(AJ366^2)+(AJ367^2))","v":16.278820596099706},{"$f":"AK364+AK365+AK366+AK367","v":0},{"$f":"SQRT((AL364^2)+(AL365^2)+(AL366^2)+(AL367^2))","v":15.556349186104045},{"$f":"AM364+AM365+AM366+AM367","v":110},{"$f":"SQRT((AN364^2)+(AN365^2)+(AN366^2)+(AN367^2))","v":68.029405406779802}]
[null,"Less Than 35% of HH Income",{"$f":"C361+C362+C363+C367","v":9},{"$f":"SQRT((D361^2)+(D362^2)+(D363^2)+(D367^2))","v":20.273134932713294},{"$f":"E361+E362+E363+E367","v":0},{"$f":"SQRT((F361^2)+(F362^2)+(F363^2)+(F367^2))","v":19.05255888325765},{"$f":"G361+G362+G363+G367","v":0},{"$f":"SQRT((H361^2)+(H362^2)+(H363^2)+(H367^2))","v":19.05255888325765},{"$f":"I361+I362+I363+I367","v":0},{"$f":"SQRT((J361^2)+(J362^2)+(J363^2)+(J367^2))","v":19.05255888325765},{"$f":"K361+K362+K363+K367","v":0},{"$f":"SQRT((L361^2)+(L362^2)+(L363^2)+(L367^2))","v":19.05255888325765},{"$f":"M361+M362+M363+M367","v":0},{"$f":"SQRT((N361^2)+(N362^2)+(N363^2)+(N367^2))","v":19.05255888325765},{"$f":"O361+O362+O363+O367","v":38},{"$f":"SQRT((P361^2)+(P362^2)+(P363^2)+(P367^2))","v":39.217343102255157},{"$f":"Q361+Q362+Q363+Q367","v":13},{"$f":"SQRT((R361^2)+(R362^2)+(R363^2)+(R367^2))","v":31.559467676118999},{"$f":"S361+S362+S363+S367","v":122},{"$f":"SQRT((T361^2)+(T362^2)+(T363^2)+(T367^2))","v":63.796551630946325},{"$f":"U361+U362+U363+U367","v":0},{"$f":"SQRT((V361^2)+(V362^2)+(V363^2)+(V367^2))","v":19.05255888325765},{"$f":"W361+W362+W363+W367","v":0},{"$f":"SQRT((X361^2)+(X362^2)+(X363^2)+(X367^2))","v":19.05255888325765},{"$f":"Y361+Y362+Y363+Y367","v":0},{"$f":"SQRT((Z361^2)+(Z362^2)+(Z363^2)+(Z367^2))","v":19.05255888325765},{"$f":"AA361+AA362+AA363+AA367","v":0},{"$f":"SQRT((AB361^2)+(AB362^2)+(AB363^2)+(AB367^2))","v":19.05255888325765},{"$f":"AC361+AC362+AC363+AC367","v":0},{"$f":"SQRT((AD361^2)+(AD362^2)+(AD363^2)+(AD367^2))","v":27.712812921102035},{"$f":"AE361+AE362+AE363+AE367","v":0},{"$f":"SQRT((AF361^2)+(AF362^2)+(AF363^2)+(AF367^2))","v":19.05255888325765},{"$f":"AG361+AG362+AG363+AG367","v":0},{"$f":"SQRT((AH361^2)+(AH362^2)+(AH363^2)+(AH367^2))","v":19.05255888325765},{"$f":"AI361+AI362+AI363+AI367","v":2},{"$f":"SQRT((AJ361^2)+(AJ362^2)+(AJ363^2)+(AJ367^2))","v":15.842979517754859},{"$f":"AK361+AK362+AK363+AK367","v":0},{"$f":"SQRT((AL361^2)+(AL362^2)+(AL363^2)+(AL367^2))","v":19.05255888325765},{"$f":"AM361+AM362+AM363+AM367","v":25},{"$f":"SQRT((AN361^2)+(AN362^2)+(AN363^2)+(AN367^2))","v":32.619012860600179}]
[null,"35.0 percent or more",{"$f":"C365+C366+C367","v":22},{"$f":"SQRT((D365^2)+(D366^2)+(D367^2))","v":15},{"$f":"E365+E366+E367","v":12},{"$f":"SQRT((F365^2)+(F366^2)+(F367^2))","v":17},{"$f":"G365+G366+G367","v":0},{"$f":"SQRT((H365^2)+(H366^2)+(H367^2))","v":11},{"$f":"I365+I366+I367","v":35},{"$f":"SQRT((J365^2)+(J366^2)+(J367^2))","v":32},{"$f":"K365+K366+K367","v":2},{"$f":"SQRT((L365^2)+(L366^2)+(L367^2))","v":3},{"$f":"M365+M366+M367","v":0},{"$f":"SQRT((N365^2)+(N366^2)+(N367^2))","v":11},{"$f":"O365+O366+O367","v":54},{"$f":"SQRT((P365^2)+(P366^2)+(P367^2))","v":69},{"$f":"Q365+Q366+Q367","v":94},{"$f":"SQRT((R365^2)+(R366^2)+(R367^2))","v":68},{"$f":"S365+S366+S367","v":509},{"$f":"SQRT((T365^2)+(T366^2)+(T367^2))","v":150},{"$f":"U365+U366+U367","v":0},{"$f":"SQRT((V365^2)+(V366^2)+(V367^2))","v":11},{"$f":"W365+W366+W367","v":0},{"$f":"SQRT((X365^2)+(X366^2)+(X367^2))","v":11},{"$f":"Y365+Y366+Y367","v":8},{"$f":"SQRT((Z365^2)+(Z366^2)+(Z367^2))","v":9},{"$f":"AA365+AA366+AA367","v":4},{"$f":"SQRT((AB365^2)+(AB366^2)+(AB367^2))","v":7},{"$f":"AC365+AC366+AC367","v":76},{"$f":"SQRT((AD365^2)+(AD366^2)+(AD367^2))","v":45},{"$f":"AE365+AE366+AE367","v":0},{"$f":"SQRT((AF365^2)+(AF366^2)+(AF367^2))","v":11},{"$f":"AG365+AG366+AG367","v":0},{"$f":"SQRT((AH365^2)+(AH366^2)+(AH367^2))","v":11},{"$f":"AI365+AI366+AI367","v":9},{"$f":"SQRT((AJ365^2)+(AJ366^2)+(AJ367^2))","v":12},{"$f":"AK365+AK366+AK367","v":0},{"$f":"SQRT((AL365^2)+(AL366^2)+(AL367^2))","v":11},{"$f":"AM365+AM366+AM367","v":85},{"$f":"SQRT((AN365^2)+(AN366^2)+(AN367^2))","v":62}]
[null,"50.0 percent or more",{"$f":"C367","v":0},0,{"$f":"E367","v":0},0,0,0,0,0,0,0,0,0,0,0,0,0,0,0,0,0,0,0,0,0,0,0,0,0,0,0,0,0,0,0,0,0,0,0]
[null,"Not Computed",3,5,{"$f":"E368","v":0},11,5,7,0,11,0,11,0,11,0,11,14,21,41,51,17,26,0,11,0,11,2,5,22,19,0,11,0,11,11,16,0,11,15,24]
[null,"$20,000 to $34,999:",{"$f":"C369","v":69},{"$f":"D369","v":36},{"$f":"E369","v":0},11,61,33,52,56,4,5,41,37,141,75,240,93,1010,198,75,61,9,15,17,11,2,5,40,37,6,7,13,11,7,9,4,6,145,117]
[null,"Less than 30.0 percent",{"$f":"C370+C371+C372","v":15},{"$f":"SQRT((D370^2)+(D371^2)+(D372^2))","v":18.814887722226779},{"$f":"E370+E371+E372","v":0},{"$f":"SQRT((F370^2)+(F371^2)+(F372^2))","v":19.05255888325765},{"$f":"G370+G371+G372","v":13},{"$f":"SQRT((H370^2)+(H371^2)+(H372^2))","v":19.261360284258224},{"$f":"I370+I371+I372","v":3},{"$f":"SQRT((J370^2)+(J371^2)+(J372^2))","v":17.058722109231979},{"$f":"K370+K371+K372","v":4},{"$f":"SQRT((L370^2)+(L371^2)+(L372^2))","v":16.340134638368191},{"$f":"M370+M371+M372","v":10},{"$f":"SQRT((N370^2)+(N371^2)+(N372^2))","v":21.61018278497431},{"$f":"O370+O371+O372","v":53},{"$f":"SQRT((P370^2)+(P371^2)+(P372^2))","v":46.054315758677816},{"$f":"Q370+Q371+Q372","v":63},{"$f":"SQRT((R370^2)+(R371^2)+(R372^2))","v":67.660919296149089},{"$f":"S370+S371+S372","v":326},{"$f":"SQRT((T370^2)+(T371^2)+(T372^2))","v":119.5867885679685},{"$f":"U370+U371+U372","v":18},{"$f":"SQRT((V370^2)+(V371^2)+(V372^2))","v":33.793490497431605},{"$f":"W370+W371+W372","v":0},{"$f":"SQRT((X370^2)+(X371^2)+(X372^2))","v":19.05255888325765},{"$f":"Y370+Y371+Y372","v":3},{"$f":"SQRT((Z370^2)+(Z371^2)+(Z372^2))","v":16.06237840420901},{"$f":"AA370+AA371+AA372","v":2},{"$f":"SQRT((AB370^2)+(AB371^2)+(AB372^2))","v":16.340134638368191},{"$f":"AC370+AC371+AC372","v":0},{"$f":"SQRT((AD370^2)+(AD371^2)+(AD372^2))","v":27.712812921102035},{"$f":"AE370+AE371+AE372","v":0},{"$f":"SQRT((AF370^2)+(AF371^2)+(AF372^2))","v":19.05255888325765},{"$f":"AG370+AG371+AG372","v":5},{"$f":"SQRT((AH370^2)+(AH371^2)+(AH372^2))","v":17.058722109231979},{"$f":"AI370+AI371+AI372","v":5},{"$f":"SQRT((AJ370^2)+(AJ371^2)+(AJ372^2))","v":17.4928556845359},{"$f":"AK370+AK371+AK372","v":0},{"$f":"SQRT((AL370^2)+(AL371^2)+(AL372^2))","v":19.05255888325765},{"$f":"AM370+AM371+AM372","v":28},{"$f":"SQRT((AN370^2)+(AN371^2)+(AN372^2))","v":40.841155713324277}]
[null,"More than 30.0 percent",{"$f":"C373+C374+C375+C376","v":54},{"$f":"SQRT((D373^2)+(D374^2)+(D375^2)+(D376^2))","v":32.695565448543633},{"$f":"E373+E374+E375+E376","v":0},{"$f":"SQRT((F373^2)+(F374^2)+(F375^2)+(F376^2))","v":15.556349186104045},{"$f":"G373+G374+G375+G376","v":48},{"$f":"SQRT((H373^2)+(H374^2)+(H375^2)+(H376^2))","v":31.953090617340916},{"$f":"I373+I374+I375+I376","v":49},{"$f":"SQRT((J373^2)+(J374^2)+(J375^2)+(J376^2))","v":56.089214649520635},{"$f":"K373+K374+K375+K376","v":0},{"$f":"SQRT((L373^2)+(L374^2)+(L375^2)+(L376^2))","v":15.556349186104045},{"$f":"M373+M374+M375+M376","v":31},{"$f":"SQRT((N373^2)+(N374^2)+(N375^2)+(N376^2))","v":36.687872655688281},{"$f":"O373+O374+O375+O376","v":88},{"$f":"SQRT((P373^2)+(P374^2)+(P375^2)+(P376^2))","v":77.781745930520231},{"$f":"Q373+Q374+Q375+Q376","v":177},{"$f":"SQRT((R373^2)+(R374^2)+(R375^2)+(R376^2))","v":83.21658488546619},{"$f":"S373+S374+S375+S376","v":662},{"$f":"SQRT((T373^2)+(T374^2)+(T375^2)+(T376^2))","v":172.70205557549104},{"$f":"U373+U374+U375+U376","v":51},{"$f":"SQRT((V373^2)+(V374^2)+(V375^2)+(V376^2))","v":51.195702944680818},{"$f":"W373+W374+W375+W376","v":9},{"$f":"SQRT((X373^2)+(X374^2)+(X375^2)+(X376^2))","v":18.601075237738275},{"$f":"Y373+Y374+Y375+Y376","v":9},{"$f":"SQRT((Z373^2)+(Z374^2)+(Z375^2)+(Z376^2))","v":7.6157731058639087},{"$f":"AA373+AA374+AA375+AA376","v":0},{"$f":"SQRT((AB373^2)+(AB374^2)+(AB375^2)+(AB376^2))","v":15.556349186104045},{"$f":"AC373+AC374+AC375+AC376","v":29},{"$f":"SQRT((AD373^2)+(AD374^2)+(AD375^2)+(AD376^2))","v":34},{"$f":"AE373+AE374+AE375+AE376","v":2},{"$f":"SQRT((AF373^2)+(AF374^2)+(AF375^2)+(AF376^2))","v":11.401754250991379},{"$f":"AG373+AG374+AG375+AG376","v":8},{"$f":"SQRT((AH373^2)+(AH374^2)+(AH375^2)+(AH376^2))","v":14.212670403551895},{"$f":"AI373+AI374+AI375+AI376","v":0},{"$f":"SQRT((AJ373^2)+(AJ374^2)+(AJ375^2)+(AJ376^2))","v":15.556349186104045},{"$f":"AK373+AK374+AK375+AK376","v":0},{"$f":"SQRT((AL373^2)+(AL374^2)+(AL375^2)+(AL376^2))","v":15.556349186104045},{"$f":"AM373+AM374+AM375+AM376","v":117},{"$f":"SQRT((AN373^2)+(AN374^2)+(AN375^2)+(AN376^2))","v":103.57605900979242}]
[null,"Less Than 35% of HH Income",{"$f":"C370+C371+C372+C373","v":26},{"$f":"SQRT((D370^2)+(D371^2)+(D372^2)+(D373^2))","v":22.869193252058544},{"$f":"E370+E371+E372+E373","v":0},{"$f":"SQRT((F370^2)+(F371^2)+(F372^2)+(F373^2))","v":22},{"$f":"G370+G371+G372+G373","v":13},{"$f":"SQRT((H370^2)+(H371^2)+(H372^2)+(H373^2))","v":22.181073012818835},{"$f":"I370+I371+I372+I373","v":3},{"$f":"SQRT((J370^2)+(J371^2)+(J372^2)+(J373^2))","v":20.297783130184438},{"$f":"K370+K371+K372+K373","v":4},{"$f":"SQRT((L370^2)+(L371^2)+(L372^2)+(L373^2))","v":19.697715603592208},{"$f":"M370+M371+M372+M373","v":10},{"$f":"SQRT((N370^2)+(N371^2)+(N372^2)+(N373^2))","v":24.248711305964282},{"$f":"O370+O371+O372+O373","v":53},{"$f":"SQRT((P370^2)+(P371^2)+(P372^2)+(P373^2))","v":47.349762407006857},{"$f":"Q370+Q371+Q372+Q373","v":90},{"$f":"SQRT((R370^2)+(R371^2)+(R372^2)+(R373^2))","v":73.61385739111897},{"$f":"S370+S371+S372+S373","v":405},{"$f":"SQRT((T370^2)+(T371^2)+(T372^2)+(T373^2))","v":130.00769208012269},{"$f":"U370+U371+U372+U373","v":18},{"$f":"SQRT((V370^2)+(V371^2)+(V372^2)+(V373^2))","v":35.538711287833721},{"$f":"W370+W371+W372+W373","v":0},{"$f":"SQRT((X370^2)+(X371^2)+(X372^2)+(X373^2))","v":22},{"$f":"Y370+Y371+Y372+Y373","v":10},{"$f":"SQRT((Z370^2)+(Z371^2)+(Z372^2)+(Z373^2))","v":17.521415467935231},{"$f":"AA370+AA371+AA372+AA373","v":2},{"$f":"SQRT((AB370^2)+(AB371^2)+(AB372^2)+(AB373^2))","v":19.697715603592208},{"$f":"AC370+AC371+AC372+AC373","v":0},{"$f":"SQRT((AD370^2)+(AD371^2)+(AD372^2)+(AD373^2))","v":32},{"$f":"AE370+AE371+AE372+AE373","v":0},{"$f":"SQRT((AF370^2)+(AF371^2)+(AF372^2)+(AF373^2))","v":22},{"$f":"AG370+AG371+AG372+AG373","v":5},{"$f":"SQRT((AH370^2)+(AH371^2)+(AH372^2)+(AH373^2))","v":20.297783130184438},{"$f":"AI370+AI371+AI372+AI373","v":5},{"$f":"SQRT((AJ370^2)+(AJ371^2)+(AJ372^2)+(AJ373^2))","v":20.663978319771825},{"$f":"AK370+AK371+AK372+AK373","v":0},{"$f":"SQRT((AL370^2)+(AL371^2)+(AL372^2)+(AL373^2))","v":22},{"$f":"AM370+AM371+AM372+AM373","v":40},{"$f":"SQRT((AN370^2)+(AN371^2)+(AN372^2)+(AN373^2))","v":44.631827208842793}]
[null,"35.0 percent or more",{"$f":"C374+C375+C376","v":43},{"$f":"SQRT((D374^2)+(D375^2)+(D376^2))","v":30},{"$f":"E374+E375+E376","v":0},{"$f":"SQRT((F374^2)+(F375^2)+(F376^2))","v":11},{"$f":"G374+G375+G376","v":48},{"$f":"SQRT((H374^2)+(H375^2)+(H376^2))","v":30},{"$f":"I374+I375+I376","v":49},{"$f":"SQRT((J374^2)+(J375^2)+(J376^2))","v":55},{"$f":"K374+K375+K376","v":0},{"$f":"SQRT((L374^2)+(L375^2)+(L376^2))","v":11},{"$f":"M374+M375+M376","v":31},{"$f":"SQRT((N374^2)+(N375^2)+(N376^2))","v":35},{"$f":"O374+O375+O376","v":88},{"$f":"SQRT((P374^2)+(P375^2)+(P376^2))","v":77},{"$f":"Q374+Q375+Q376","v":150},{"$f":"SQRT((R374^2)+(R375^2)+(R376^2))","v":78},{"$f":"S374+S375+S376","v":583},{"$f":"SQRT((T374^2)+(T375^2)+(T376^2))","v":165},{"$f":"U374+U375+U376","v":51},{"$f":"SQRT((V374^2)+(V375^2)+(V376^2))","v":50},{"$f":"W374+W375+W376","v":9},{"$f":"SQRT((X374^2)+(X375^2)+(X376^2))","v":15},{"$f":"Y374+Y375+Y376","v":2},{"$f":"SQRT((Z374^2)+(Z375^2)+(Z376^2))","v":3},{"$f":"AA374+AA375+AA376","v":0},{"$f":"SQRT((AB374^2)+(AB375^2)+(AB376^2))","v":11},{"$f":"AC374+AC375+AC376","v":29},{"$f":"SQRT((AD374^2)+(AD375^2)+(AD376^2))","v":30},{"$f":"AE374+AE375+AE376","v":2},{"$f":"SQRT((AF374^2)+(AF375^2)+(AF376^2))","v":3},{"$f":"AG374+AG375+AG376","v":8},{"$f":"SQRT((AH374^2)+(AH375^2)+(AH376^2))","v":9},{"$f":"AI374+AI375+AI376","v":0},{"$f":"SQRT((AJ374^2)+(AJ375^2)+(AJ376^2))","v":11},{"$f":"AK374+AK375+AK376","v":0},{"$f":"SQRT((AL374^2)+(AL375^2)+(AL376^2))","v":11},{"$f":"AM374+AM375+AM376","v":105},{"$f":"SQRT((AN374^2)+(AN375^2)+(AN376^2))","v":102}]
[null,"50.0 percent or more",{"$f":"C376","v":0},0,{"$f":"E376","v":0},0,0,0,0,0,0,0,0,0,0,0,0,0,0,0,0,0,0,0,0,0,0,0,0,0,0,0,0,0,0,0,0,0,0,0]
[null,"Not Computed",0,11,{"$f":"E377","v":0},11,0,11,0,11,0,11,0,11,0,11,0,16,22,25,6,9,0,11,5,5,0,11,11,17,4,6,0,11,2,3,4,6,0,16]
[null,"$35,000 to $49,999:",4,5,{"$f":"E378","v":0},11,27,20,53,49,6,11,9,14,157,96,32,37,611,177,44,37,7,10,29,36,13,21,72,52,6,8,0,11,6,7,8,10,76,57]
[null,"Less than 30.0 percent",{"$f":"C379+C380+C381","v":0},{"$f":"SQRT((D379^2)+(D380^2)+(D381^2))","v":19.05255888325765},{"$f":"E379+E380+E381","v":0},{"$f":"SQRT((F379^2)+(F380^2)+(F381^2))","v":19.05255888325765},{"$f":"G379+G380+G381","v":15},{"$f":"SQRT((H379^2)+(H380^2)+(H381^2))","v":21},{"$f":"I379+I380+I381","v":31},{"$f":"SQRT((J379^2)+(J380^2)+(J381^2))","v":40.137264480778953},{"$f":"K379+K380+K381","v":6},{"$f":"SQRT((L379^2)+(L380^2)+(L381^2))","v":19.05255888325765},{"$f":"M379+M380+M381","v":9},{"$f":"SQRT((N379^2)+(N380^2)+(N381^2))","v":20.928449536456348},{"$f":"O379+O380+O381","v":147},{"$f":"SQRT((P379^2)+(P380^2)+(P381^2))","v":99.61425600786265},{"$f":"Q379+Q380+Q381","v":0},{"$f":"SQRT((R379^2)+(R380^2)+(R381^2))","v":27.712812921102035},{"$f":"S379+S380+S381","v":345},{"$f":"SQRT((T379^2)+(T380^2)+(T381^2))","v":142.7935572776307},{"$f":"U379+U380+U381","v":24},{"$f":"SQRT((V379^2)+(V380^2)+(V381^2))","v":34.365680554879162},{"$f":"W379+W380+W381","v":0},{"$f":"SQRT((X379^2)+(X380^2)+(X381^2))","v":19.05255888325765},{"$f":"Y379+Y380+Y381","v":3},{"$f":"SQRT((Z379^2)+(Z380^2)+(Z381^2))","v":16.340134638368191},{"$f":"AA379+AA380+AA381","v":0},{"$f":"SQRT((AB379^2)+(AB380^2)+(AB381^2))","v":19.05255888325765},{"$f":"AC379+AC380+AC381","v":20},{"$f":"SQRT((AD379^2)+(AD380^2)+(AD381^2))","v":20.639767440550294},{"$f":"AE379+AE380+AE381","v":0},{"$f":"SQRT((AF379^2)+(AF380^2)+(AF381^2))","v":19.05255888325765},{"$f":"AG379+AG380+AG381","v":0},{"$f":"SQRT((AH379^2)+(AH380^2)+(AH381^2))","v":19.05255888325765},{"$f":"AI379+AI380+AI381","v":0},{"$f":"SQRT((AJ379^2)+(AJ380^2)+(AJ381^2))","v":19.05255888325765},{"$f":"AK379+AK380+AK381","v":0},{"$f":"SQRT((AL379^2)+(AL380^2)+(AL381^2))","v":19.05255888325765},{"$f":"AM379+AM380+AM381","v":46},{"$f":"SQRT((AN379^2)+(AN380^2)+(AN381^2))","v":47.497368348151667}]
[null,"More than 30.0 percent",{"$f":"C382+C383+C384+C385","v":4},{"$f":"SQRT((D382^2)+(D383^2)+(D384^2)+(D385^2))","v":12.083045973594572},{"$f":"E382+E383+E384+E385","v":0},{"$f":"SQRT((F382^2)+(F383^2)+(F384^2)+(F385^2))","v":15.556349186104045},{"$f":"G382+G383+G384+G385","v":5},{"$f":"SQRT((H382^2)+(H383^2)+(H384^2)+(H385^2))","v":13.601470508735444},{"$f":"I382+I383+I384+I385","v":22},{"$f":"SQRT((J382^2)+(J383^2)+(J384^2)+(J385^2))","v":34.785054261852174},{"$f":"K382+K383+K384+K385","v":0},{"$f":"SQRT((L382^2)+(L383^2)+(L384^2)+(L385^2))","v":15.556349186104045},{"$f":"M382+M383+M384+M385","v":0},{"$f":"SQRT((N382^2)+(N383^2)+(N384^2)+(N385^2))","v":15.556349186104045},{"$f":"O382+O383+O384+O385","v":10},{"$f":"SQRT((P382^2)+(P383^2)+(P384^2)+(P385^2))","v":20.248456731316587},{"$f":"Q382+Q383+Q384+Q385","v":32},{"$f":"SQRT((R382^2)+(R383^2)+(R384^2)+(R385^2))","v":36.359317925395686},{"$f":"S382+S383+S384+S385","v":259},{"$f":"SQRT((T382^2)+(T383^2)+(T384^2)+(T385^2))","v":115.43396380615195},{"$f":"U382+U383+U384+U385","v":20},{"$f":"SQRT((V382^2)+(V383^2)+(V384^2)+(V385^2))","v":17.691806012954132},{"$f":"W382+W383+W384+W385","v":0},{"$f":"SQRT((X382^2)+(X383^2)+(X384^2)+(X385^2))","v":15.556349186104045},{"$f":"Y382+Y383+Y384+Y385","v":26},{"$f":"SQRT((Z382^2)+(Z383^2)+(Z384^2)+(Z385^2))","v":37.643060449437421},{"$f":"AA382+AA383+AA384+AA385","v":13},{"$f":"SQRT((AB382^2)+(AB383^2)+(AB384^2)+(AB385^2))","v":23.706539182259394},{"$f":"AC382+AC383+AC384+AC385","v":52},{"$f":"SQRT((AD382^2)+(AD383^2)+(AD384^2)+(AD385^2))","v":53.450912059571067},{"$f":"AE382+AE383+AE384+AE385","v":6},{"$f":"SQRT((AF382^2)+(AF383^2)+(AF384^2)+(AF385^2))","v":7.6157731058639087},{"$f":"AG382+AG383+AG384+AG385","v":0},{"$f":"SQRT((AH382^2)+(AH383^2)+(AH384^2)+(AH385^2))","v":15.556349186104045},{"$f":"AI382+AI383+AI384+AI385","v":3},{"$f":"SQRT((AJ382^2)+(AJ383^2)+(AJ384^2)+(AJ385^2))","v":11.704699910719626},{"$f":"AK382+AK383+AK384+AK385","v":5},{"$f":"SQRT((AL382^2)+(AL383^2)+(AL384^2)+(AL385^2))","v":13.601470508735444},{"$f":"AM382+AM383+AM384+AM385","v":30},{"$f":"SQRT((AN382^2)+(AN383^2)+(AN384^2)+(AN385^2))","v":37.576588456111871}]
[null,"Less Than 35% of HH Income",{"$f":"C379+C380+C381+C382","v":0},{"$f":"SQRT((D379^2)+(D380^2)+(D381^2)+(D382^2))","v":22},{"$f":"E379+E380+E381+E382","v":0},{"$f":"SQRT((F379^2)+(F380^2)+(F381^2)+(F382^2))","v":22},{"$f":"G379+G380+G381+G382","v":15},{"$f":"SQRT((H379^2)+(H380^2)+(H381^2)+(H382^2))","v":23.706539182259394},{"$f":"I379+I380+I381+I382","v":31},{"$f":"SQRT((J379^2)+(J380^2)+(J381^2)+(J382^2))","v":41.617304093369626},{"$f":"K379+K380+K381+K382","v":6},{"$f":"SQRT((L379^2)+(L380^2)+(L381^2)+(L382^2))","v":22},{"$f":"M379+M380+M381+M382","v":9},{"$f":"SQRT((N379^2)+(N380^2)+(N381^2)+(N382^2))","v":23.643180835073778},{"$f":"O379+O380+O381+O382","v":147},{"$f":"SQRT((P379^2)+(P380^2)+(P381^2)+(P382^2))","v":100.2197585309404},{"$f":"Q379+Q380+Q381+Q382","v":20},{"$f":"SQRT((R379^2)+(R380^2)+(R381^2)+(R382^2))","v":41.581245772583578},{"$f":"S379+S380+S381+S382","v":457},{"$f":"SQRT((T379^2)+(T380^2)+(T381^2)+(T382^2))","v":166.69133150827011},{"$f":"U379+U380+U381+U382","v":32},{"$f":"SQRT((V379^2)+(V380^2)+(V381^2)+(V382^2))","v":36.400549446402593},{"$f":"W379+W380+W381+W382","v":0},{"$f":"SQRT((X379^2)+(X380^2)+(X381^2)+(X382^2))","v":22},{"$f":"Y379+Y380+Y381+Y382","v":29},{"$f":"SQRT((Z379^2)+(Z380^2)+(Z381^2)+(Z382^2))","v":39.534794801541594},{"$f":"AA379+AA380+AA381+AA382","v":13},{"$f":"SQRT((AB379^2)+(AB380^2)+(AB381^2)+(AB382^2))","v":28.354893757515651},{"$f":"AC379+AC380+AC381+AC382","v":20},{"$f":"SQRT((AD379^2)+(AD380^2)+(AD381^2)+(AD382^2))","v":26.115129714401192},{"$f":"AE379+AE380+AE381+AE382","v":2},{"$f":"SQRT((AF379^2)+(AF380^2)+(AF381^2)+(AF382^2))","v":19.28730152198591},{"$f":"AG379+AG380+AG381+AG382","v":0},{"$f":"SQRT((AH379^2)+(AH380^2)+(AH381^2)+(AH382^2))","v":22},{"$f":"AI379+AI380+AI381+AI382","v":0},{"$f":"SQRT((AJ379^2)+(AJ380^2)+(AJ381^2)+(AJ382^2))","v":22},{"$f":"AK379+AK380+AK381+AK382","v":5},{"$f":"SQRT((AL379^2)+(AL380^2)+(AL381^2)+(AL382^2))","v":20.663978319771825},{"$f":"AM379+AM380+AM381+AM382","v":76},{"$f":"SQRT((AN379^2)+(AN380^2)+(AN381^2)+(AN382^2))","v":58.412327466040935}]
[null,"35.0 percent or more",{"$f":"C383+C384+C385","v":4},{"$f":"SQRT((D383^2)+(D384^2)+(D385^2))","v":5},{"$f":"E383+E384+E385","v":0},{"$f":"SQRT((F383^2)+(F384^2)+(F385^2))","v":11},{"$f":"G383+G384+G385","v":5},{"$f":"SQRT((H383^2)+(H384^2)+(H385^2))","v":8},{"$f":"I383+I384+I385","v":22},{"$f":"SQRT((J383^2)+(J384^2)+(J385^2))","v":33},{"$f":"K383+K384+K385","v":0},{"$f":"SQRT((L383^2)+(L384^2)+(L385^2))","v":11},{"$f":"M383+M384+M385","v":0},{"$f":"SQRT((N383^2)+(N384^2)+(N385^2))","v":11},{"$f":"O383+O384+O385","v":10},{"$f":"SQRT((P383^2)+(P384^2)+(P385^2))","v":17},{"$f":"Q383+Q384+Q385","v":12},{"$f":"SQRT((R383^2)+(R384^2)+(R385^2))","v":19},{"$f":"S383+S384+S385","v":147},{"$f":"SQRT((T383^2)+(T384^2)+(T385^2))","v":77},{"$f":"U383+U384+U385","v":12},{"$f":"SQRT((V383^2)+(V384^2)+(V385^2))","v":13},{"$f":"W383+W384+W385","v":0},{"$f":"SQRT((X383^2)+(X384^2)+(X385^2))","v":11},{"$f":"Y383+Y384+Y385","v":0},{"$f":"SQRT((Z383^2)+(Z384^2)+(Z385^2))","v":11},{"$f":"AA383+AA384+AA385","v":0},{"$f":"SQRT((AB383^2)+(AB384^2)+(AB385^2))","v":11},{"$f":"AC383+AC384+AC385","v":52},{"$f":"SQRT((AD383^2)+(AD384^2)+(AD385^2))","v":51},{"$f":"AE383+AE384+AE385","v":4},{"$f":"SQRT((AF383^2)+(AF384^2)+(AF385^2))","v":7},{"$f":"AG383+AG384+AG385","v":0},{"$f":"SQRT((AH383^2)+(AH384^2)+(AH385^2))","v":11},{"$f":"AI383+AI384+AI385","v":3},{"$f":"SQRT((AJ383^2)+(AJ384^2)+(AJ385^2))","v":4},{"$f":"AK383+AK384+AK385","v":0},{"$f":"SQRT((AL383^2)+(AL384^2)+(AL385^2))","v":11},{"$f":"AM383+AM384+AM385","v":0},{"$f":"SQRT((AN383^2)+(AN384^2)+(AN385^2))","v":16}]
[null,"50.0 percent or more",{"$f":"C385","v":0},0,{"$f":"E385","v":0},0,0,0,0,0,0,0,0,0,0,0,0,0,0,0,0,0,0,0,0,0,0,0,0,0,0,0,0,0,0,0,0,0,0,0]
[null,"Not Computed",0,11,{"$f":"E386","v":0},11,7,8,0,11,0,11,0,11,0,11,0,16,7,12,0,11,7,10,0,11,0,11,0,16,0,11,0,11,3,4,3,4,0,16]
[null,"$50,000 to $74,999:",8,8,{"$f":"E387","v":83},106,16,15,7,10,6,8,8,9,49,41,100,57,611,155,70,53,20,18,8,12,4,6,67,59,0,11,22,23,0,11,3,4,127,72]
[null,"Less than 30.0 percent",{"$f":"C388+C389+C390","v":4},{"$f":"SQRT((D388^2)+(D389^2)+(D390^2))","v":16.340134638368191},{"$f":"E388+E389+E390","v":83},{"$f":"SQRT((F388^2)+(F389^2)+(F390^2))","v":105.38500842150178},{"$f":"G388+G389+G390","v":0},{"$f":"SQRT((H388^2)+(H389^2)+(H390^2))","v":19.05255888325765},{"$f":"I388+I389+I390","v":7},{"$f":"SQRT((J388^2)+(J389^2)+(J390^2))","v":18.493242008906929},{"$f":"K388+K389+K390","v":6},{"$f":"SQRT((L388^2)+(L389^2)+(L390^2))","v":17.4928556845359},{"$f":"M388+M389+M390","v":8},{"$f":"SQRT((N388^2)+(N389^2)+(N390^2))","v":17.972200755611428},{"$f":"O388+O389+O390","v":23},{"$f":"SQRT((P388^2)+(P389^2)+(P390^2))","v":26.134268690743959},{"$f":"Q388+Q389+Q390","v":64},{"$f":"SQRT((R388^2)+(R389^2)+(R390^2))","v":52.649786324352732},{"$f":"S388+S389+S390","v":402},{"$f":"SQRT((T388^2)+(T389^2)+(T390^2))","v":125.48306658669129},{"$f":"U388+U389+U390","v":70},{"$f":"SQRT((V388^2)+(V389^2)+(V390^2))","v":53.469617541179403},{"$f":"W388+W389+W390","v":14},{"$f":"SQRT((X388^2)+(X389^2)+(X390^2))","v":18.814887722226779},{"$f":"Y388+Y389+Y390","v":8},{"$f":"SQRT((Z388^2)+(Z389^2)+(Z390^2))","v":19.646882704388499},{"$f":"AA388+AA389+AA390","v":0},{"$f":"SQRT((AB388^2)+(AB389^2)+(AB390^2))","v":19.05255888325765},{"$f":"AC388+AC389+AC390","v":59},{"$f":"SQRT((AD388^2)+(AD389^2)+(AD390^2))","v":56.356011214421486},{"$f":"AE388+AE389+AE390","v":0},{"$f":"SQRT((AF388^2)+(AF389^2)+(AF390^2))","v":19.05255888325765},{"$f":"AG388+AG389+AG390","v":22},{"$f":"SQRT((AH388^2)+(AH389^2)+(AH390^2))","v":25.317977802344327},{"$f":"AI388+AI389+AI390","v":0},{"$f":"SQRT((AJ388^2)+(AJ389^2)+(AJ390^2))","v":19.05255888325765},{"$f":"AK388+AK389+AK390","v":3},{"$f":"SQRT((AL388^2)+(AL389^2)+(AL390^2))","v":11.789826122551595},{"$f":"AM388+AM389+AM390","v":85},{"$f":"SQRT((AN388^2)+(AN389^2)+(AN390^2))","v":66.790717917986186}]
[null,"More than 30.0 percent",{"$f":"C391+C392+C393+C394","v":0},{"$f":"SQRT((D391^2)+(D392^2)+(D393^2)+(D394^2))","v":15.556349186104045},{"$f":"E391+E392+E393+E394","v":0},{"$f":"SQRT((F391^2)+(F392^2)+(F393^2)+(F394^2))","v":15.556349186104045},{"$f":"G391+G392+G393+G394","v":0},{"$f":"SQRT((H391^2)+(H392^2)+(H393^2)+(H394^2))","v":15.556349186104045},{"$f":"I391+I392+I393+I394","v":0},{"$f":"SQRT((J391^2)+(J392^2)+(J393^2)+(J394^2))","v":15.556349186104045},{"$f":"K391+K392+K393+K394","v":0},{"$f":"SQRT((L391^2)+(L392^2)+(L393^2)+(L394^2))","v":15.556349186104045},{"$f":"M391+M392+M393+M394","v":0},{"$f":"SQRT((N391^2)+(N392^2)+(N393^2)+(N394^2))","v":15.556349186104045},{"$f":"O391+O392+O393+O394","v":26},{"$f":"SQRT((P391^2)+(P392^2)+(P393^2)+(P394^2))","v":32.893768406797051},{"$f":"Q391+Q392+Q393+Q394","v":36},{"$f":"SQRT((R391^2)+(R392^2)+(R393^2)+(R394^2))","v":41.677331968349414},{"$f":"S391+S392+S393+S394","v":209},{"$f":"SQRT((T391^2)+(T392^2)+(T393^2)+(T394^2))","v":115.6027681329474},{"$f":"U391+U392+U393+U394","v":0},{"$f":"SQRT((V391^2)+(V392^2)+(V393^2)+(V394^2))","v":15.556349186104045},{"$f":"W391+W392+W393+W394","v":6},{"$f":"SQRT((X391^2)+(X392^2)+(X393^2)+(X394^2))","v":14.212670403551895},{"$f":"Y391+Y392+Y393+Y394","v":0},{"$f":"SQRT((Z391^2)+(Z392^2)+(Z393^2)+(Z394^2))","v":15.556349186104045},{"$f":"AA391+AA392+AA393+AA394","v":4},{"$f":"SQRT((AB391^2)+(AB392^2)+(AB393^2)+(AB394^2))","v":12.529964086141668},{"$f":"AC391+AC392+AC393+AC394","v":0},{"$f":"SQRT((AD391^2)+(AD392^2)+(AD393^2)+(AD394^2))","v":22.627416997969522},{"$f":"AE391+AE392+AE393+AE394","v":0},{"$f":"SQRT((AF391^2)+(AF392^2)+(AF393^2)+(AF394^2))","v":15.556349186104045},{"$f":"AG391+AG392+AG393+AG394","v":0},{"$f":"SQRT((AH391^2)+(AH392^2)+(AH393^2)+(AH394^2))","v":15.556349186104045},{"$f":"AI391+AI392+AI393+AI394","v":0},{"$f":"SQRT((AJ391^2)+(AJ392^2)+(AJ393^2)+(AJ394^2))","v":15.556349186104045},{"$f":"AK391+AK392+AK393+AK394","v":0},{"$f":"SQRT((AL391^2)+(AL392^2)+(AL393^2)+(AL394^2))","v":15.556349186104045},{"$f":"AM391+AM392+AM393+AM394","v":19},{"$f":"SQRT((AN391^2)+(AN392^2)+(AN393^2)+(AN394^2))","v":35.777087639996637}]
[null,"Less Than 35% of HH Income",{"$f":"C388+C389+C390+C391","v":4},{"$f":"SQRT((D388^2)+(D389^2)+(D390^2)+(D391^2))","v":19.697715603592208},{"$f":"E388+E389+E390+E391","v":83},{"$f":"SQRT((F388^2)+(F389^2)+(F390^2)+(F391^2))","v":105.95753866525968},{"$f":"G388+G389+G390+G391","v":0},{"$f":"SQRT((H388^2)+(H389^2)+(H390^2)+(H391^2))","v":22},{"$f":"I388+I389+I390+I391","v":7},{"$f":"SQRT((J388^2)+(J389^2)+(J390^2)+(J391^2))","v":21.517434791350013},{"$f":"K388+K389+K390+K391","v":6},{"$f":"SQRT((L388^2)+(L389^2)+(L390^2)+(L391^2))","v":20.663978319771825},{"$f":"M388+M389+M390+M391","v":8},{"$f":"SQRT((N388^2)+(N389^2)+(N390^2)+(N391^2))","v":21.071307505705477},{"$f":"O388+O389+O390+O391","v":23},{"$f":"SQRT((P388^2)+(P389^2)+(P390^2)+(P391^2))","v":28.354893757515651},{"$f":"Q388+Q389+Q390+Q391","v":78},{"$f":"SQRT((R388^2)+(R389^2)+(R390^2)+(R391^2))","v":56.683330883073552},{"$f":"S388+S389+S390+S391","v":555},{"$f":"SQRT((T388^2)+(T389^2)+(T390^2)+(T391^2))","v":155.59562975867928},{"$f":"U388+U389+U390+U391","v":70},{"$f":"SQRT((V388^2)+(V389^2)+(V390^2)+(V391^2))","v":54.589376255824725},{"$f":"W388+W389+W390+W391","v":20},{"$f":"SQRT((X388^2)+(X389^2)+(X390^2)+(X391^2))","v":20.85665361461421},{"$f":"Y388+Y389+Y390+Y391","v":8},{"$f":"SQRT((Z388^2)+(Z389^2)+(Z390^2)+(Z391^2))","v":22.516660498395403},{"$f":"AA388+AA389+AA390+AA391","v":4},{"$f":"SQRT((AB388^2)+(AB389^2)+(AB390^2)+(AB391^2))","v":19.974984355438178},{"$f":"AC388+AC389+AC390+AC391","v":59},{"$f":"SQRT((AD388^2)+(AD389^2)+(AD390^2)+(AD391^2))","v":58.58327406350724},{"$f":"AE388+AE389+AE390+AE391","v":0},{"$f":"SQRT((AF388^2)+(AF389^2)+(AF390^2)+(AF391^2))","v":22},{"$f":"AG388+AG389+AG390+AG391","v":22},{"$f":"SQRT((AH388^2)+(AH389^2)+(AH390^2)+(AH391^2))","v":27.604347483684521},{"$f":"AI388+AI389+AI390+AI391","v":0},{"$f":"SQRT((AJ388^2)+(AJ389^2)+(AJ390^2)+(AJ391^2))","v":22},{"$f":"AK388+AK389+AK390+AK391","v":3},{"$f":"SQRT((AL388^2)+(AL389^2)+(AL390^2)+(AL391^2))","v":16.124515496597098},{"$f":"AM388+AM389+AM390+AM391","v":104},{"$f":"SQRT((AN388^2)+(AN389^2)+(AN390^2)+(AN391^2))","v":74.060785845142092}]
[null,"35.0 percent or more",{"$f":"C392+C393+C394","v":0},{"$f":"SQRT((D392^2)+(D393^2)+(D394^2))","v":11},{"$f":"E392+E393+E394","v":0},{"$f":"SQRT((F392^2)+(F393^2)+(F394^2))","v":11},{"$f":"G392+G393+G394","v":0},{"$f":"SQRT((H392^2)+(H393^2)+(H394^2))","v":11},{"$f":"I392+I393+I394","v":0},{"$f":"SQRT((J392^2)+(J393^2)+(J394^2))","v":11},{"$f":"K392+K393+K394","v":0},{"$f":"SQRT((L392^2)+(L393^2)+(L394^2))","v":11},{"$f":"M392+M393+M394","v":0},{"$f":"SQRT((N392^2)+(N393^2)+(N394^2))","v":11},{"$f":"O392+O393+O394","v":26},{"$f":"SQRT((P392^2)+(P393^2)+(P394^2))","v":31},{"$f":"Q392+Q393+Q394","v":22},{"$f":"SQRT((R392^2)+(R393^2)+(R394^2))","v":36},{"$f":"S392+S393+S394","v":56},{"$f":"SQRT((T392^2)+(T393^2)+(T394^2))","v":70},{"$f":"U392+U393+U394","v":0},{"$f":"SQRT((V392^2)+(V393^2)+(V394^2))","v":11},{"$f":"W392+W393+W394","v":0},{"$f":"SQRT((X392^2)+(X393^2)+(X394^2))","v":11},{"$f":"Y392+Y393+Y394","v":0},{"$f":"SQRT((Z392^2)+(Z393^2)+(Z394^2))","v":11},{"$f":"AA392+AA393+AA394","v":0},{"$f":"SQRT((AB392^2)+(AB393^2)+(AB394^2))","v":11},{"$f":"AC392+AC393+AC394","v":0},{"$f":"SQRT((AD392^2)+(AD393^2)+(AD394^2))","v":16},{"$f":"AE392+AE393+AE394","v":0},{"$f":"SQRT((AF392^2)+(AF393^2)+(AF394^2))","v":11},{"$f":"AG392+AG393+AG394","v":0},{"$f":"SQRT((AH392^2)+(AH393^2)+(AH394^2))","v":11},{"$f":"AI392+AI393+AI394","v":0},{"$f":"SQRT((AJ392^2)+(AJ393^2)+(AJ394^2))","v":11},{"$f":"AK392+AK393+AK394","v":0},{"$f":"SQRT((AL392^2)+(AL393^2)+(AL394^2))","v":11},{"$f":"AM392+AM393+AM394","v":0},{"$f":"SQRT((AN392^2)+(AN393^2)+(AN394^2))","v":16}]
[null,"50.0 percent or more",{"$f":"C394","v":0},0,{"$f":"E394","v":0},0,0,0,0,0,0,0,0,0,0,0,0,0,0,0,0,0,0,0,0,0,0,0,0,0,0,0,0,0,0,0,0,0,0,0]
[null,"Not Computed",4,5,{"$f":"E395","v":0},11,16,15,0,11,0,11,0,11,0,11,0,16,0,21,0,11,0,11,0,11,0,11,8,13,0,11,0,11,0,11,0,11,23,26]
[null,"$75,000 to $99,999:",0,11,{"$f":"E396","v":45},70,12,11,21,24,3,4,5,7,13,20,18,30,305,173,12,14,0,11,5,8,0,11,40,30,0,11,0,11,0,11,8,6,43,44]
[null,"Less than 30.0 percent",{"$f":"C397+C398+C399","v":0},{"$f":"SQRT((D397^2)+(D398^2)+(D399^2))","v":19.05255888325765},{"$f":"E397+E398+E399","v":45},{"$f":"SQRT((F397^2)+(F398^2)+(F399^2))","v":71.707740167990238},{"$f":"G397+G398+G399","v":9},{"$f":"SQRT((H397^2)+(H398^2)+(H399^2))","v":19.05255888325765},{"$f":"I397+I398+I399","v":5},{"$f":"SQRT((J397^2)+(J398^2)+(J399^2))","v":17.058722109231979},{"$f":"K397+K398+K399","v":3},{"$f":"SQRT((L397^2)+(L398^2)+(L399^2))","v":16.06237840420901},{"$f":"M397+M398+M399","v":5},{"$f":"SQRT((N397^2)+(N398^2)+(N399^2))","v":17.058722109231979},{"$f":"O397+O398+O399","v":13},{"$f":"SQRT((P397^2)+(P398^2)+(P399^2))","v":25.337718918639855},{"$f":"Q397+Q398+Q399","v":0},{"$f":"SQRT((R397^2)+(R398^2)+(R399^2))","v":27.712812921102035},{"$f":"S397+S398+S399","v":292},{"$f":"SQRT((T397^2)+(T398^2)+(T399^2))","v":169.22765731404544},{"$f":"U397+U398+U399","v":12},{"$f":"SQRT((V397^2)+(V398^2)+(V399^2))","v":17.916472867168917},{"$f":"W397+W398+W399","v":0},{"$f":"SQRT((X397^2)+(X398^2)+(X399^2))","v":19.05255888325765},{"$f":"Y397+Y398+Y399","v":5},{"$f":"SQRT((Z397^2)+(Z398^2)+(Z399^2))","v":17.4928556845359},{"$f":"AA397+AA398+AA399","v":0},{"$f":"SQRT((AB397^2)+(AB398^2)+(AB399^2))","v":19.05255888325765},{"$f":"AC397+AC398+AC399","v":40},{"$f":"SQRT((AD397^2)+(AD398^2)+(AD399^2))","v":38.483762809787713},{"$f":"AE397+AE398+AE399","v":0},{"$f":"SQRT((AF397^2)+(AF398^2)+(AF399^2))","v":19.05255888325765},{"$f":"AG397+AG398+AG399","v":0},{"$f":"SQRT((AH397^2)+(AH398^2)+(AH399^2))","v":19.05255888325765},{"$f":"AI397+AI398+AI399","v":0},{"$f":"SQRT((AJ397^2)+(AJ398^2)+(AJ399^2))","v":19.05255888325765},{"$f":"AK397+AK398+AK399","v":8},{"$f":"SQRT((AL397^2)+(AL398^2)+(AL399^2))","v":13.379088160259652},{"$f":"AM397+AM398+AM399","v":43},{"$f":"SQRT((AN397^2)+(AN398^2)+(AN399^2))","v":49.477267507411923}]
[null,"More than 30.0 percent",{"$f":"C400+C401+C402+C403","v":0},{"$f":"SQRT((D400^2)+(D401^2)+(D402^2)+(D403^2))","v":15.556349186104045},{"$f":"E400+E401+E402+E403","v":0},{"$f":"SQRT((F400^2)+(F401^2)+(F402^2)+(F403^2))","v":15.556349186104045},{"$f":"G400+G401+G402+G403","v":3},{"$f":"SQRT((H400^2)+(H401^2)+(H402^2)+(H403^2))","v":11.704699910719626},{"$f":"I400+I401+I402+I403","v":16},{"$f":"SQRT((J400^2)+(J401^2)+(J402^2)+(J403^2))","v":25.495097567963924},{"$f":"K400+K401+K402+K403","v":0},{"$f":"SQRT((L400^2)+(L401^2)+(L402^2)+(L403^2))","v":15.556349186104045},{"$f":"M400+M401+M402+M403","v":0},{"$f":"SQRT((N400^2)+(N401^2)+(N402^2)+(N403^2))","v":15.556349186104045},{"$f":"O400+O401+O402+O403","v":0},{"$f":"SQRT((P400^2)+(P401^2)+(P402^2)+(P403^2))","v":15.556349186104045},{"$f":"Q400+Q401+Q402+Q403","v":0},{"$f":"SQRT((R400^2)+(R401^2)+(R402^2)+(R403^2))","v":22.627416997969522},{"$f":"S400+S401+S402+S403","v":13},{"$f":"SQRT((T400^2)+(T401^2)+(T402^2)+(T403^2))","v":30.413812651491099},{"$f":"U400+U401+U402+U403","v":0},{"$f":"SQRT((V400^2)+(V401^2)+(V402^2)+(V403^2))","v":15.556349186104045},{"$f":"W400+W401+W402+W403","v":0},{"$f":"SQRT((X400^2)+(X401^2)+(X402^2)+(X403^2))","v":15.556349186104045},{"$f":"Y400+Y401+Y402+Y403","v":0},{"$f":"SQRT((Z400^2)+(Z401^2)+(Z402^2)+(Z403^2))","v":15.556349186104045},{"$f":"AA400+AA401+AA402+AA403","v":0},{"$f":"SQRT((AB400^2)+(AB401^2)+(AB402^2)+(AB403^2))","v":15.556349186104045},{"$f":"AC400+AC401+AC402+AC403","v":0},{"$f":"SQRT((AD400^2)+(AD401^2)+(AD402^2)+(AD403^2))","v":22.627416997969522},{"$f":"AE400+AE401+AE402+AE403","v":0},{"$f":"SQRT((AF400^2)+(AF401^2)+(AF402^2)+(AF403^2))","v":15.556349186104045},{"$f":"AG400+AG401+AG402+AG403","v":0},{"$f":"SQRT((AH400^2)+(AH401^2)+(AH402^2)+(AH403^2))","v":15.556349186104045},{"$f":"AI400+AI401+AI402+AI403","v":0},{"$f":"SQRT((AJ400^2)+(AJ401^2)+(AJ402^2)+(AJ403^2))","v":15.556349186104045},{"$f":"AK400+AK401+AK402+AK403","v":0},{"$f":"SQRT((AL400^2)+(AL401^2)+(AL402^2)+(AL403^2))","v":15.556349186104045},{"$f":"AM400+AM401+AM402+AM403","v":0},{"$f":"SQRT((AN400^2)+(AN401^2)+(AN402^2)+(AN403^2))","v":22.627416997969522}]
[null,"Less Than 35% of HH Income",{"$f":"C397+C398+C399+C400","v":0},{"$f":"SQRT((D397^2)+(D398^2)+(D399^2)+(D400^2))","v":22},{"$f":"E397+E398+E399+E400","v":45},{"$f":"SQRT((F397^2)+(F398^2)+(F399^2)+(F400^2))","v":72.546536788464266},{"$f":"G397+G398+G399+G400","v":9},{"$f":"SQRT((H397^2)+(H398^2)+(H399^2)+(H400^2))","v":22},{"$f":"I397+I398+I399+I400","v":5},{"$f":"SQRT((J397^2)+(J398^2)+(J399^2)+(J400^2))","v":20.297783130184438},{"$f":"K397+K398+K399+K400","v":3},{"$f":"SQRT((L397^2)+(L398^2)+(L399^2)+(L400^2))","v":19.467922333931785},{"$f":"M397+M398+M399+M400","v":5},{"$f":"SQRT((N397^2)+(N398^2)+(N399^2)+(N400^2))","v":20.297783130184438},{"$f":"O397+O398+O399+O400","v":13},{"$f":"SQRT((P397^2)+(P398^2)+(P399^2)+(P400^2))","v":27.622454633866266},{"$f":"Q397+Q398+Q399+Q400","v":0},{"$f":"SQRT((R397^2)+(R398^2)+(R399^2)+(R400^2))","v":32},{"$f":"S397+S398+S399+S400","v":292},{"$f":"SQRT((T397^2)+(T398^2)+(T399^2)+(T400^2))","v":170.52565789346775},{"$f":"U397+U398+U399+U400","v":12},{"$f":"SQRT((V397^2)+(V398^2)+(V399^2)+(V400^2))","v":21.023796041628639},{"$f":"W397+W398+W399+W400","v":0},{"$f":"SQRT((X397^2)+(X398^2)+(X399^2)+(X400^2))","v":22},{"$f":"Y397+Y398+Y399+Y400","v":5},{"$f":"SQRT((Z397^2)+(Z398^2)+(Z399^2)+(Z400^2))","v":20.663978319771825},{"$f":"AA397+AA398+AA399+AA400","v":0},{"$f":"SQRT((AB397^2)+(AB398^2)+(AB399^2)+(AB400^2))","v":22},{"$f":"AC397+AC398+AC399+AC400","v":40},{"$f":"SQRT((AD397^2)+(AD398^2)+(AD399^2)+(AD400^2))","v":41.677331968349414},{"$f":"AE397+AE398+AE399+AE400","v":0},{"$f":"SQRT((AF397^2)+(AF398^2)+(AF399^2)+(AF400^2))","v":22},{"$f":"AG397+AG398+AG399+AG400","v":0},{"$f":"SQRT((AH397^2)+(AH398^2)+(AH399^2)+(AH400^2))","v":22},{"$f":"AI397+AI398+AI399+AI400","v":0},{"$f":"SQRT((AJ397^2)+(AJ398^2)+(AJ399^2)+(AJ400^2))","v":22},{"$f":"AK397+AK398+AK399+AK400","v":8},{"$f":"SQRT((AL397^2)+(AL398^2)+(AL399^2)+(AL400^2))","v":17.320508075688775},{"$f":"AM397+AM398+AM399+AM400","v":43},{"$f":"SQRT((AN397^2)+(AN398^2)+(AN399^2)+(AN400^2))","v":52}]
[null,"35.0 percent or more",{"$f":"C401+C402+C403","v":0},{"$f":"SQRT((D401^2)+(D402^2)+(D403^2))","v":11},{"$f":"E401+E402+E403","v":0},{"$f":"SQRT((F401^2)+(F402^2)+(F403^2))","v":11},{"$f":"G401+G402+G403","v":3},{"$f":"SQRT((H401^2)+(H402^2)+(H403^2))","v":4},{"$f":"I401+I402+I403","v":16},{"$f":"SQRT((J401^2)+(J402^2)+(J403^2))","v":23},{"$f":"K401+K402+K403","v":0},{"$f":"SQRT((L401^2)+(L402^2)+(L403^2))","v":11},{"$f":"M401+M402+M403","v":0},{"$f":"SQRT((N401^2)+(N402^2)+(N403^2))","v":11},{"$f":"O401+O402+O403","v":0},{"$f":"SQRT((P401^2)+(P402^2)+(P403^2))","v":11},{"$f":"Q401+Q402+Q403","v":0},{"$f":"SQRT((R401^2)+(R402^2)+(R403^2))","v":16},{"$f":"S401+S402+S403","v":13},{"$f":"SQRT((T401^2)+(T402^2)+(T403^2))","v":22},{"$f":"U401+U402+U403","v":0},{"$f":"SQRT((V401^2)+(V402^2)+(V403^2))","v":11},{"$f":"W401+W402+W403","v":0},{"$f":"SQRT((X401^2)+(X402^2)+(X403^2))","v":11},{"$f":"Y401+Y402+Y403","v":0},{"$f":"SQRT((Z401^2)+(Z402^2)+(Z403^2))","v":11},{"$f":"AA401+AA402+AA403","v":0},{"$f":"SQRT((AB401^2)+(AB402^2)+(AB403^2))","v":11},{"$f":"AC401+AC402+AC403","v":0},{"$f":"SQRT((AD401^2)+(AD402^2)+(AD403^2))","v":16},{"$f":"AE401+AE402+AE403","v":0},{"$f":"SQRT((AF401^2)+(AF402^2)+(AF403^2))","v":11},{"$f":"AG401+AG402+AG403","v":0},{"$f":"SQRT((AH401^2)+(AH402^2)+(AH403^2))","v":11},{"$f":"AI401+AI402+AI403","v":0},{"$f":"SQRT((AJ401^2)+(AJ402^2)+(AJ403^2))","v":11},{"$f":"AK401+AK402+AK403","v":0},{"$f":"SQRT((AL401^2)+(AL402^2)+(AL403^2))","v":11},{"$f":"AM401+AM402+AM403","v":0},{"$f":"SQRT((AN401^2)+(AN402^2)+(AN403^2))","v":16}]
[null,"50.0 percent or more",{"$f":"C403","v":0},0,{"$f":"E403","v":0},0,0,0,0,0,0,0,0,0,0,0,0,0,0,0,0,0,0,0,0,0,0,0,0,0,0,0,0,0,0,0,0,0,0,0]
[null,"Not Computed",0,11,{"$f":"E404","v":0},11,0,11,0,11,0,11,0,11,0,11,18,30,0,21,0,11,0,11,0,11,0,11,0,16,0,11,0,11,0,11,0,11,0,16]
[null,"$100,000 or more:",8,10,{"$f":"E405","v":25},28,9,13,9,14,0,11,5,9,0,11,0,16,204,106,0,11,5,5,16,13,4,6,36,42,0,11,9,13,5,5,0,11,99,75]
[null,"Less than 30.0 percent",{"$f":"C406+C407+C408","v":8},{"$f":"SQRT((D406^2)+(D407^2)+(D408^2))","v":18.493242008906929},{"$f":"E406+E407+E408","v":25},{"$f":"SQRT((F406^2)+(F407^2)+(F408^2))","v":32.03123475609393},{"$f":"G406+G407+G408","v":9},{"$f":"SQRT((H406^2)+(H407^2)+(H408^2))","v":20.273134932713294},{"$f":"I406+I407+I408","v":9},{"$f":"SQRT((J406^2)+(J407^2)+(J408^2))","v":20.928449536456348},{"$f":"K406+K407+K408","v":0},{"$f":"SQRT((L406^2)+(L407^2)+(L408^2))","v":19.05255888325765},{"$f":"M406+M407+M408","v":5},{"$f":"SQRT((N406^2)+(N407^2)+(N408^2))","v":17.972200755611428},{"$f":"O406+O407+O408","v":0},{"$f":"SQRT((P406^2)+(P407^2)+(P408^2))","v":19.05255888325765},{"$f":"Q406+Q407+Q408","v":0},{"$f":"SQRT((R406^2)+(R407^2)+(R408^2))","v":27.712812921102035},{"$f":"S406+S407+S408","v":204},{"$f":"SQRT((T406^2)+(T407^2)+(T408^2))","v":108.42047777057617},{"$f":"U406+U407+U408","v":0},{"$f":"SQRT((V406^2)+(V407^2)+(V408^2))","v":19.05255888325765},{"$f":"W406+W407+W408","v":5},{"$f":"SQRT((X406^2)+(X407^2)+(X408^2))","v":16.340134638368191},{"$f":"Y406+Y407+Y408","v":16},{"$f":"SQRT((Z406^2)+(Z407^2)+(Z408^2))","v":20.273134932713294},{"$f":"AA406+AA407+AA408","v":4},{"$f":"SQRT((AB406^2)+(AB407^2)+(AB408^2))","v":16.673332000533065},{"$f":"AC406+AC407+AC408","v":36},{"$f":"SQRT((AD406^2)+(AD407^2)+(AD408^2))","v":47.707441767506253},{"$f":"AE406+AE407+AE408","v":0},{"$f":"SQRT((AF406^2)+(AF407^2)+(AF408^2))","v":19.05255888325765},{"$f":"AG406+AG407+AG408","v":9},{"$f":"SQRT((AH406^2)+(AH407^2)+(AH408^2))","v":20.273134932713294},{"$f":"AI406+AI407+AI408","v":5},{"$f":"SQRT((AJ406^2)+(AJ407^2)+(AJ408^2))","v":16.340134638368191},{"$f":"AK406+AK407+AK408","v":0},{"$f":"SQRT((AL406^2)+(AL407^2)+(AL408^2))","v":19.05255888325765},{"$f":"AM406+AM407+AM408","v":99},{"$f":"SQRT((AN406^2)+(AN407^2)+(AN408^2))","v":78.339006886735547}]
[null,"More than 30.0 percent",{"$f":"C409+C410+C411+C469","v":0},{"$f":"SQRT((D409^2)+(D410^2)+(D411^2)+(D469^2))","v":15.556349186104045},{"$f":"E409+E410+E411+E469","v":0},{"$f":"SQRT((F409^2)+(F410^2)+(F411^2)+(F469^2))","v":15.556349186104045},{"$f":"G409+G410+G411+G469","v":0},{"$f":"SQRT((H409^2)+(H410^2)+(H411^2)+(H469^2))","v":15.556349186104045},{"$f":"I409+I410+I411+I469","v":0},{"$f":"SQRT((J409^2)+(J410^2)+(J411^2)+(J469^2))","v":15.556349186104045},{"$f":"K409+K410+K411+K469","v":0},{"$f":"SQRT((L409^2)+(L410^2)+(L411^2)+(L469^2))","v":15.556349186104045},{"$f":"M409+M410+M411+M469","v":0},{"$f":"SQRT((N409^2)+(N410^2)+(N411^2)+(N469^2))","v":15.556349186104045},{"$f":"O409+O410+O411+O469","v":0},{"$f":"SQRT((P409^2)+(P410^2)+(P411^2)+(P469^2))","v":15.556349186104045},{"$f":"Q409+Q410+Q411+Q469","v":0},{"$f":"SQRT((R409^2)+(R410^2)+(R411^2)+(R469^2))","v":22.627416997969522},{"$f":"S409+S410+S411+S469","v":0},{"$f":"SQRT((T409^2)+(T410^2)+(T411^2)+(T469^2))","v":29.698484809834994},{"$f":"U409+U410+U411+U469","v":0},{"$f":"SQRT((V409^2)+(V410^2)+(V411^2)+(V469^2))","v":15.556349186104045},{"$f":"W409+W410+W411+W469","v":0},{"$f":"SQRT((X409^2)+(X410^2)+(X411^2)+(X469^2))","v":15.556349186104045},{"$f":"Y409+Y410+Y411+Y469","v":0},{"$f":"SQRT((Z409^2)+(Z410^2)+(Z411^2)+(Z469^2))","v":15.556349186104045},{"$f":"AA409+AA410+AA411+AA469","v":0},{"$f":"SQRT((AB409^2)+(AB410^2)+(AB411^2)+(AB469^2))","v":15.556349186104045},{"$f":"AC409+AC410+AC411+AC469","v":0},{"$f":"SQRT((AD409^2)+(AD410^2)+(AD411^2)+(AD469^2))","v":22.627416997969522},{"$f":"AE409+AE410+AE411+AE469","v":0},{"$f":"SQRT((AF409^2)+(AF410^2)+(AF411^2)+(AF469^2))","v":15.556349186104045},{"$f":"AG409+AG410+AG411+AG469","v":0},{"$f":"SQRT((AH409^2)+(AH410^2)+(AH411^2)+(AH469^2))","v":15.556349186104045},{"$f":"AI409+AI410+AI411+AI469","v":0},{"$f":"SQRT((AJ409^2)+(AJ410^2)+(AJ411^2)+(AJ469^2))","v":15.556349186104045},{"$f":"AK409+AK410+AK411+AK469","v":0},{"$f":"SQRT((AL409^2)+(AL410^2)+(AL411^2)+(AL469^2))","v":15.556349186104045},{"$f":"AM409+AM410+AM411+AM469","v":0},{"$f":"SQRT((AN409^2)+(AN410^2)+(AN411^2)+(AN469^2))","v":22.627416997969522}]
[null,"Less Than 35% of HH Income",{"$f":"C406+C407+C408+C409","v":8},{"$f":"SQRT((D406^2)+(D407^2)+(D408^2)+(D409^2))","v":21.517434791350013},{"$f":"E406+E407+E408+E409","v":25},{"$f":"SQRT((F406^2)+(F407^2)+(F408^2)+(F409^2))","v":33.867388443752198},{"$f":"G406+G407+G408+G409","v":9},{"$f":"SQRT((H406^2)+(H407^2)+(H408^2)+(H409^2))","v":23.065125189341593},{"$f":"I406+I407+I408+I409","v":9},{"$f":"SQRT((J406^2)+(J407^2)+(J408^2)+(J409^2))","v":23.643180835073778},{"$f":"K406+K407+K408+K409","v":0},{"$f":"SQRT((L406^2)+(L407^2)+(L408^2)+(L409^2))","v":22},{"$f":"M406+M407+M408+M409","v":5},{"$f":"SQRT((N406^2)+(N407^2)+(N408^2)+(N409^2))","v":21.071307505705477},{"$f":"O406+O407+O408+O409","v":0},{"$f":"SQRT((P406^2)+(P407^2)+(P408^2)+(P409^2))","v":22},{"$f":"Q406+Q407+Q408+Q409","v":0},{"$f":"SQRT((R406^2)+(R407^2)+(R408^2)+(R409^2))","v":32},{"$f":"S406+S407+S408+S409","v":204},{"$f":"SQRT((T406^2)+(T407^2)+(T408^2)+(T409^2))","v":110.43550153822818},{"$f":"U406+U407+U408+U409","v":0},{"$f":"SQRT((V406^2)+(V407^2)+(V408^2)+(V409^2))","v":22},{"$f":"W406+W407+W408+W409","v":5},{"$f":"SQRT((X406^2)+(X407^2)+(X408^2)+(X409^2))","v":19.697715603592208},{"$f":"Y406+Y407+Y408+Y409","v":16},{"$f":"SQRT((Z406^2)+(Z407^2)+(Z408^2)+(Z409^2))","v":23.065125189341593},{"$f":"AA406+AA407+AA408+AA409","v":4},{"$f":"SQRT((AB406^2)+(AB407^2)+(AB408^2)+(AB409^2))","v":19.974984355438178},{"$f":"AC406+AC407+AC408+AC409","v":36},{"$f":"SQRT((AD406^2)+(AD407^2)+(AD408^2)+(AD409^2))","v":50.318982501636498},{"$f":"AE406+AE407+AE408+AE409","v":0},{"$f":"SQRT((AF406^2)+(AF407^2)+(AF408^2)+(AF409^2))","v":22},{"$f":"AG406+AG407+AG408+AG409","v":9},{"$f":"SQRT((AH406^2)+(AH407^2)+(AH408^2)+(AH409^2))","v":23.065125189341593},{"$f":"AI406+AI407+AI408+AI409","v":5},{"$f":"SQRT((AJ406^2)+(AJ407^2)+(AJ408^2)+(AJ409^2))","v":19.697715603592208},{"$f":"AK406+AK407+AK408+AK409","v":0},{"$f":"SQRT((AL406^2)+(AL407^2)+(AL408^2)+(AL409^2))","v":22},{"$f":"AM406+AM407+AM408+AM409","v":99},{"$f":"SQRT((AN406^2)+(AN407^2)+(AN408^2)+(AN409^2))","v":79.956238030562687}]
[null,"35.0 percent or more",{"$f":"C410+C411+C412","v":0},{"$f":"SQRT((D410^2)+(D411^2)+(D412^2))","v":11},{"$f":"E410+E411+E412","v":0},{"$f":"SQRT((F410^2)+(F411^2)+(F412^2))","v":11},{"$f":"G410+G411+G412","v":0},{"$f":"SQRT((H410^2)+(H411^2)+(H412^2))","v":11},{"$f":"I410+I411+I412","v":0},{"$f":"SQRT((J410^2)+(J411^2)+(J412^2))","v":11},{"$f":"K410+K411+K412","v":0},{"$f":"SQRT((L410^2)+(L411^2)+(L412^2))","v":11},{"$f":"M410+M411+M412","v":0},{"$f":"SQRT((N410^2)+(N411^2)+(N412^2))","v":11},{"$f":"O410+O411+O412","v":0},{"$f":"SQRT((P410^2)+(P411^2)+(P412^2))","v":11},{"$f":"Q410+Q411+Q412","v":0},{"$f":"SQRT((R410^2)+(R411^2)+(R412^2))","v":16},{"$f":"S410+S411+S412","v":0},{"$f":"SQRT((T410^2)+(T411^2)+(T412^2))","v":21},{"$f":"U410+U411+U412","v":0},{"$f":"SQRT((V410^2)+(V411^2)+(V412^2))","v":11},{"$f":"W410+W411+W412","v":0},{"$f":"SQRT((X410^2)+(X411^2)+(X412^2))","v":11},{"$f":"Y410+Y411+Y412","v":0},{"$f":"SQRT((Z410^2)+(Z411^2)+(Z412^2))","v":11},{"$f":"AA410+AA411+AA412","v":0},{"$f":"SQRT((AB410^2)+(AB411^2)+(AB412^2))","v":11},{"$f":"AC410+AC411+AC412","v":0},{"$f":"SQRT((AD410^2)+(AD411^2)+(AD412^2))","v":16},{"$f":"AE410+AE411+AE412","v":0},{"$f":"SQRT((AF410^2)+(AF411^2)+(AF412^2))","v":11},{"$f":"AG410+AG411+AG412","v":0},{"$f":"SQRT((AH410^2)+(AH411^2)+(AH412^2))","v":11},{"$f":"AI410+AI411+AI412","v":0},{"$f":"SQRT((AJ410^2)+(AJ411^2)+(AJ412^2))","v":11},{"$f":"AK410+AK411+AK412","v":0},{"$f":"SQRT((AL410^2)+(AL411^2)+(AL412^2))","v":11},{"$f":"AM410+AM411+AM412","v":0},{"$f":"SQRT((AN410^2)+(AN411^2)+(AN412^2))","v":16}]
[null,"50.0 percent or more",{"$f":"C412","v":0},{"$f":"D412","v":0},{"$f":"E412","v":0},0,0,0,0,0,0,0,0,0,0,0,0,0,0,0,0,0,0,0,0,0,0,0,0,0,0,0,0,0,0,0,0,0,0,0]
[null,"Not Computed",{"$f":"C413","v":0},{"$f":"D413","v":11},{"$f":"E413","v":0},11,0,11,0,11,0,11,0,11,0,11,0,16,0,21,0,11,0,11,0,11,0,11,0,16,0,11,0,11,0,11,0,11,0,16]
[]
[]
[null,"Calculated GROSS RENT AS A PERCENTAGE OF HOUSEHOLD INCOME IN THE PAST 12 MONTHS"]
[null,"Universe:  RENTER-OCCUPIED HOUSING UNITS"]
[null,{"$f":"B346","v":"Data Set: 2008-2012 American Community Survey 5-Year Estimates"}]
[]
[null,null,"Albany",null,"Bartlett",null,"Brookfield",null,"Chatham",null,"Conway",null,"Eaton",null,"Effingham",null,"Freedom",null,"Hale's Location",null,"Hart's Location",null,"Jackson",null,"Madison",null,"Moultonborough",null,"Ossipee",null,"Sandwich",null,"Tamworth",null,"Tuftonboro",null,"Wakefield",null,"Wolfeboro"]
[null,null,"Estimate","Margin of Error","Estimate","Margin of Error","Estimate","Margin of Error","Estimate","Margin of Error","Estimate","Margin of Error","Estimate","Margin of Error","Estimate","Margin of Error","Estimate","Margin of Error","Estimate","Margin of Error","Estimate","Margin of Error","Estimate","Margin of Error","Estimate","Margin of Error","Estimate","Margin of Error","Estimate","Margin of Error","Estimate","Margin of Error","Estimate","Margin of Error","Estimate","Margin of Error","Estimate","Margin of Error","Estimate","Margin of Error"]
[null,"Total:",{"$f":"C421","v":132},{"$f":"D421","v":44},193,{"$f":"F421","v":127},140,49,177,79,30,19,68,40,529,121,548,126,3866,378,231,89,41,24,83,43,33,24,431,119,12,9,53,28,40,25,23,14,657,173]
[null,"Less than 30.0 percent",{"$f":"C465+C458+C450+C444+C437+C430+C423","v":40},{"$f":"SQRT((D465^2)+(D458^2)+(D450^2)+(D444^2)+(D437^2)+(D430^2)+(D423^2))","v":47.539457296018853},{"$f":"E465+E458+E450+E444+E437+E430+E423","v":153},{"$f":"SQRT((F465^2)+(F458^2)+(F450^2)+(F444^2)+(F437^2)+(F430^2)+(F423^2))","v":137.31715115017496},{"$f":"G465+G458+G450+G444+G437+G430+G423","v":62},{"$f":"SQRT((H465^2)+(H458^2)+(H450^2)+(H444^2)+(H437^2)+(H430^2)+(H423^2))","v":50.368641037852115},{"$f":"I465+I458+I450+I444+I437+I430+I423","v":55},{"$f":"SQRT((J465^2)+(J458^2)+(J450^2)+(J444^2)+(J437^2)+(J430^2)+(J423^2))","v":58.796258384356392},{"$f":"K465+K458+K450+K444+K437+K430+K423","v":19},{"$f":"SQRT((L465^2)+(L458^2)+(L450^2)+(L444^2)+(L437^2)+(L430^2)+(L423^2))","v":45.177427992306072},{"$f":"M465+M458+M450+M444+M437+M430+M423","v":37},{"$f":"SQRT((N465^2)+(N458^2)+(N450^2)+(N444^2)+(N437^2)+(N430^2)+(N423^2))","v":48.228622207149975},{"$f":"O465+O458+O450+O444+O437+O430+O423","v":326},{"$f":"SQRT((P465^2)+(P458^2)+(P450^2)+(P444^2)+(P437^2)+(P430^2)+(P423^2))","v":133.43912469736904},{"$f":"Q465+Q458+Q450+Q444+Q437+Q430+Q423","v":176},{"$f":"SQRT((R465^2)+(R458^2)+(R450^2)+(R444^2)+(R437^2)+(R430^2)+(R423^2))","v":109.0642012761291},{"$f":"S465+S458+S450+S444+S437+S430+S423","v":1958},{"$f":"SQRT((T465^2)+(T458^2)+(T450^2)+(T444^2)+(T437^2)+(T430^2)+(T423^2))","v":326.28515136303707},{"$f":"U465+U458+U450+U444+U437+U430+U423","v":129},{"$f":"SQRT((V465^2)+(V458^2)+(V450^2)+(V444^2)+(V437^2)+(V430^2)+(V423^2))","v":80.529497701152962},{"$f":"W465+W458+W450+W444+W437+W430+W423","v":25},{"$f":"SQRT((X465^2)+(X458^2)+(X450^2)+(X444^2)+(X437^2)+(X430^2)+(X423^2))","v":49.050993873722888},{"$f":"Y465+Y458+Y450+Y444+Y437+Y430+Y423","v":35},{"$f":"SQRT((Z465^2)+(Z458^2)+(Z450^2)+(Z444^2)+(Z437^2)+(Z430^2)+(Z423^2))","v":45.956501172304229},{"$f":"AA465+AA458+AA450+AA444+AA437+AA430+AA423","v":10},{"$f":"SQRT((AB465^2)+(AB458^2)+(AB450^2)+(AB444^2)+(AB437^2)+(AB430^2)+(AB423^2))","v":45.088801270381985},{"$f":"AC465+AC458+AC450+AC444+AC437+AC430+AC423","v":163},{"$f":"SQRT((AD465^2)+(AD458^2)+(AD450^2)+(AD444^2)+(AD437^2)+(AD430^2)+(AD423^2))","v":99.839871794789474},{"$f":"AE465+AE458+AE450+AE444+AE437+AE430+AE423","v":0},{"$f":"SQRT((AF465^2)+(AF458^2)+(AF450^2)+(AF444^2)+(AF437^2)+(AF430^2)+(AF423^2))","v":47.947888378947411},{"$f":"AG465+AG458+AG450+AG444+AG437+AG430+AG423","v":36},{"$f":"SQRT((AH465^2)+(AH458^2)+(AH450^2)+(AH444^2)+(AH437^2)+(AH430^2)+(AH423^2))","v":51.797683345879477},{"$f":"AI465+AI458+AI450+AI444+AI437+AI430+AI423","v":12},{"$f":"SQRT((AJ465^2)+(AJ458^2)+(AJ450^2)+(AJ444^2)+(AJ437^2)+(AJ430^2)+(AJ423^2))","v":45.099889135118723},{"$f":"AK465+AK458+AK450+AK444+AK437+AK430+AK423","v":11},{"$f":"SQRT((AL465^2)+(AL458^2)+(AL450^2)+(AL444^2)+(AL437^2)+(AL430^2)+(AL423^2))","v":44.83302354291979},{"$f":"AM465+AM458+AM450+AM444+AM437+AM430+AM423","v":368},{"$f":"SQRT((AN465^2)+(AN458^2)+(AN450^2)+(AN444^2)+(AN437^2)+(AN430^2)+(AN423^2))","v":139.73188612482122}]
[null,"More than 30.0 percent",{"$f":"C466+C459+C452+C445+C438+C431+C424","v":89},{"$f":"SQRT((D466^2)+(D459^2)+(D452^2)+(D445^2)+(D438^2)+(D431^2)+(D424^2))","v":51.029403288692293},{"$f":"E466+E459+E452+E445+E438+E431+E424","v":40},{"$f":"SQRT((F466^2)+(F459^2)+(F452^2)+(F445^2)+(F438^2)+(F431^2)+(F424^2))","v":52.583267300539625},{"$f":"G466+G459+G452+G445+G438+G431+G424","v":59},{"$f":"SQRT((H466^2)+(H459^2)+(H452^2)+(H445^2)+(H438^2)+(H431^2)+(H424^2))","v":47.063786503000372},{"$f":"I466+I459+I452+I445+I438+I431+I424","v":122},{"$f":"SQRT((J466^2)+(J459^2)+(J452^2)+(J445^2)+(J438^2)+(J431^2)+(J424^2))","v":82.927679335671755},{"$f":"K466+K459+K452+K445+K438+K431+K424","v":4},{"$f":"SQRT((L466^2)+(L459^2)+(L452^2)+(L445^2)+(L438^2)+(L431^2)+(L424^2))","v":38.43175770115127},{"$f":"M466+M459+M452+M445+M438+M431+M424","v":31},{"$f":"SQRT((N466^2)+(N459^2)+(N452^2)+(N445^2)+(N438^2)+(N431^2)+(N424^2))","v":52.896124621752769},{"$f":"O466+O459+O452+O445+O438+O431+O424","v":229},{"$f":"SQRT((P466^2)+(P459^2)+(P452^2)+(P445^2)+(P438^2)+(P431^2)+(P424^2))","v":125.65030839596058},{"$f":"Q466+Q459+Q452+Q445+Q438+Q431+Q424","v":376},{"$f":"SQRT((R466^2)+(R459^2)+(R452^2)+(R445^2)+(R438^2)+(R431^2)+(R424^2))","v":130.95419046368849},{"$f":"S466+S459+S452+S445+S438+S431+S424","v":1966},{"$f":"SQRT((T466^2)+(T459^2)+(T452^2)+(T445^2)+(T438^2)+(T431^2)+(T424^2))","v":307.92206806268371},{"$f":"U466+U459+U452+U445+U438+U431+U424","v":79},{"$f":"SQRT((V466^2)+(V459^2)+(V452^2)+(V445^2)+(V438^2)+(V431^2)+(V424^2))","v":64.373907757724325},{"$f":"W466+W459+W452+W445+W438+W431+W424","v":15},{"$f":"SQRT((X466^2)+(X459^2)+(X452^2)+(X445^2)+(X438^2)+(X431^2)+(X424^2))","v":41.928510586473259},{"$f":"Y466+Y459+Y452+Y445+Y438+Y431+Y424","v":43},{"$f":"SQRT((Z466^2)+(Z459^2)+(Z452^2)+(Z445^2)+(Z438^2)+(Z431^2)+(Z424^2))","v":51.429563482495162},{"$f":"AA466+AA459+AA452+AA445+AA438+AA431+AA424","v":25},{"$f":"SQRT((AB466^2)+(AB459^2)+(AB452^2)+(AB445^2)+(AB438^2)+(AB431^2)+(AB424^2))","v":42.095130359698373},{"$f":"AC466+AC459+AC452+AC445+AC438+AC431+AC424","v":188},{"$f":"SQRT((AD466^2)+(AD459^2)+(AD452^2)+(AD445^2)+(AD438^2)+(AD431^2)+(AD424^2))","v":92.817024300502112},{"$f":"AE466+AE459+AE452+AE445+AE438+AE431+AE424","v":8},{"$f":"SQRT((AF466^2)+(AF459^2)+(AF452^2)+(AF445^2)+(AF438^2)+(AF431^2)+(AF424^2))","v":37.389838191679829},{"$f":"AG466+AG459+AG452+AG445+AG438+AG431+AG424","v":8},{"$f":"SQRT((AH466^2)+(AH459^2)+(AH452^2)+(AH445^2)+(AH438^2)+(AH431^2)+(AH424^2))","v":40.669398815325508},{"$f":"AI466+AI459+AI452+AI445+AI438+AI431+AI424","v":12},{"$f":"SQRT((AJ466^2)+(AJ459^2)+(AJ452^2)+(AJ445^2)+(AJ438^2)+(AJ431^2)+(AJ424^2))","v":40.149719799769457},{"$f":"AK466+AK459+AK452+AK445+AK438+AK431+AK424","v":5},{"$f":"SQRT((AL466^2)+(AL459^2)+(AL452^2)+(AL445^2)+(AL438^2)+(AL431^2)+(AL424^2))","v":40.459856648287818},{"$f":"AM466+AM459+AM452+AM445+AM438+AM431+AM424","v":281},{"$f":"SQRT((AN466^2)+(AN459^2)+(AN452^2)+(AN445^2)+(AN438^2)+(AN431^2)+(AN424^2))","v":139.38436067220741}]
[null,"Less Than 35% of HH Income",{"$f":"C467+C460+C453+C446+C439+C432+C425","v":47},{"$f":"SQRT((D467^2)+(D460^2)+(D453^2)+(D446^2)+(D439^2)+(D432^2)+(D425^2))","v":56.894639466297704},{"$f":"E467+E460+E453+E446+E439+E432+E425","v":153},{"$f":"SQRT((F467^2)+(F460^2)+(F453^2)+(F446^2)+(F439^2)+(F432^2)+(F425^2))","v":139.47042697288913},{"$f":"G467+G460+G453+G446+G439+G432+G425","v":46},{"$f":"SQRT((H467^2)+(H460^2)+(H453^2)+(H446^2)+(H439^2)+(H432^2)+(H425^2))","v":58.318093247293334},{"$f":"I467+I460+I453+I446+I439+I432+I425","v":55},{"$f":"SQRT((J467^2)+(J460^2)+(J453^2)+(J446^2)+(J439^2)+(J432^2)+(J425^2))","v":66.520673478250359},{"$f":"K467+K460+K453+K446+K439+K432+K425","v":19},{"$f":"SQRT((L467^2)+(L460^2)+(L453^2)+(L446^2)+(L439^2)+(L432^2)+(L425^2))","v":54.854352607609911},{"$f":"M467+M460+M453+M446+M439+M432+M425","v":37},{"$f":"SQRT((N467^2)+(N460^2)+(N453^2)+(N446^2)+(N439^2)+(N432^2)+(N425^2))","v":57.393379409126972},{"$f":"O467+O460+O453+O446+O439+O432+O425","v":300},{"$f":"SQRT((P467^2)+(P460^2)+(P453^2)+(P446^2)+(P439^2)+(P432^2)+(P425^2))","v":132.41601111648092},{"$f":"Q467+Q460+Q453+Q446+Q439+Q432+Q425","v":201},{"$f":"SQRT((R467^2)+(R460^2)+(R453^2)+(R446^2)+(R439^2)+(R432^2)+(R425^2))","v":120.12077255828818},{"$f":"S467+S460+S453+S446+S439+S432+S425","v":2108},{"$f":"SQRT((T467^2)+(T460^2)+(T453^2)+(T446^2)+(T439^2)+(T432^2)+(T425^2))","v":343.73099947488009},{"$f":"U467+U460+U453+U446+U439+U432+U425","v":137},{"$f":"SQRT((V467^2)+(V460^2)+(V453^2)+(V446^2)+(V439^2)+(V432^2)+(V425^2))","v":85.346353173407479},{"$f":"W467+W460+W453+W446+W439+W432+W425","v":25},{"$f":"SQRT((X467^2)+(X460^2)+(X453^2)+(X446^2)+(X439^2)+(X432^2)+(X425^2))","v":55.87486017879597},{"$f":"Y467+Y460+Y453+Y446+Y439+Y432+Y425","v":68},{"$f":"SQRT((Z467^2)+(Z460^2)+(Z453^2)+(Z446^2)+(Z439^2)+(Z432^2)+(Z425^2))","v":64.67611614808051},{"$f":"AA467+AA460+AA453+AA446+AA439+AA432+AA425","v":23},{"$f":"SQRT((AB467^2)+(AB460^2)+(AB453^2)+(AB446^2)+(AB439^2)+(AB432^2)+(AB425^2))","v":57.628118136895637},{"$f":"AC467+AC460+AC453+AC446+AC439+AC432+AC425","v":155},{"$f":"SQRT((AD467^2)+(AD460^2)+(AD453^2)+(AD446^2)+(AD439^2)+(AD432^2)+(AD425^2))","v":105.82532778120746},{"$f":"AE467+AE460+AE453+AE446+AE439+AE432+AE425","v":2},{"$f":"SQRT((AF467^2)+(AF460^2)+(AF453^2)+(AF446^2)+(AF439^2)+(AF432^2)+(AF425^2))","v":56.169386679934469},{"$f":"AG467+AG460+AG453+AG446+AG439+AG432+AG425","v":36},{"$f":"SQRT((AH467^2)+(AH460^2)+(AH453^2)+(AH446^2)+(AH439^2)+(AH432^2)+(AH425^2))","v":59.338014796587188},{"$f":"AI467+AI460+AI453+AI446+AI439+AI432+AI425","v":12},{"$f":"SQRT((AJ467^2)+(AJ460^2)+(AJ453^2)+(AJ446^2)+(AJ439^2)+(AJ432^2)+(AJ425^2))","v":54.790510127210901},{"$f":"AK467+AK460+AK453+AK446+AK439+AK432+AK425","v":16},{"$f":"SQRT((AL467^2)+(AL460^2)+(AL453^2)+(AL446^2)+(AL439^2)+(AL432^2)+(AL425^2))","v":52.933921071464184},{"$f":"AM467+AM460+AM453+AM446+AM439+AM432+AM425","v":387},148.57321427498294]
[null,"35.0 percent or more",{"$f":"C468+C461+C454+C447+C440+C433+C426","v":78},{"$f":"SQRT((D468^2)+(D461^2)+(D454^2)+(D447^2)+(D440^2)+(D433^2)+(D426^2))","v":41.340053217188775},{"$f":"E468+E461+E454+E447+E440+E433+E426","v":40},{"$f":"SQRT((F468^2)+(F461^2)+(F454^2)+(F447^2)+(F440^2)+(F433^2)+(F426^2))","v":43.79497688091638},{"$f":"G468+G461+G454+G447+G440+G433+G426","v":59},{"$f":"SQRT((H468^2)+(H461^2)+(H454^2)+(H447^2)+(H440^2)+(H433^2)+(H426^2))","v":36.986484017813858},{"$f":"I468+I461+I454+I447+I440+I433+I426","v":122},{"$f":"SQRT((J468^2)+(J461^2)+(J454^2)+(J447^2)+(J440^2)+(J433^2)+(J426^2))","v":77.653074633268702},{"$f":"K468+K461+K454+K447+K440+K433+K426","v":4},{"$f":"SQRT((L468^2)+(L461^2)+(L454^2)+(L447^2)+(L440^2)+(L433^2)+(L426^2))","v":25.099800796022265},{"$f":"M468+M461+M454+M447+M440+M433+M426","v":31},{"$f":"SQRT((N468^2)+(N461^2)+(N454^2)+(N447^2)+(N440^2)+(N433^2)+(N426^2))","v":44.170125650715555},{"$f":"O468+O461+O454+O447+O440+O433+O426","v":208},{"$f":"SQRT((P468^2)+(P461^2)+(P454^2)+(P447^2)+(P440^2)+(P433^2)+(P426^2))","v":120.3577999134248},{"$f":"Q468+Q461+Q454+Q447+Q440+Q433+Q426","v":303},{"$f":"SQRT((R468^2)+(R461^2)+(R454^2)+(R447^2)+(R440^2)+(R433^2)+(R426^2))","v":117.37546592026803},{"$f":"S468+S461+S454+S447+S440+S433+S426","v":1599},{"$f":"SQRT((T468^2)+(T461^2)+(T454^2)+(T447^2)+(T440^2)+(T433^2)+(T426^2))","v":273.32032489370414},{"$f":"U468+U461+U454+U447+U440+U433+U426","v":63},{"$f":"SQRT((V468^2)+(V461^2)+(V454^2)+(V447^2)+(V440^2)+(V433^2)+(V426^2))","v":57.218878003679869},{"$f":"W468+W461+W454+W447+W440+W433+W426","v":9},{"$f":"SQRT((X468^2)+(X461^2)+(X454^2)+(X447^2)+(X440^2)+(X433^2)+(X426^2))","v":30.838287890218549},{"$f":"Y468+Y461+Y454+Y447+Y440+Y433+Y426","v":10},{"$f":"SQRT((Z468^2)+(Z461^2)+(Z454^2)+(Z447^2)+(Z440^2)+(Z433^2)+(Z426^2))","v":26.362852652928137},{"$f":"AA468+AA461+AA454+AA447+AA440+AA433+AA426","v":8},{"$f":"SQRT((AB468^2)+(AB461^2)+(AB454^2)+(AB447^2)+(AB440^2)+(AB433^2)+(AB426^2))","v":26.267851073127396},{"$f":"AC468+AC461+AC454+AC447+AC440+AC433+AC426","v":188},{"$f":"SQRT((AD468^2)+(AD461^2)+(AD454^2)+(AD447^2)+(AD440^2)+(AD433^2)+(AD426^2))","v":82.601452771727935},{"$f":"AE468+AE461+AE454+AE447+AE440+AE433+AE426","v":6},{"$f":"SQRT((AF468^2)+(AF461^2)+(AF454^2)+(AF447^2)+(AF440^2)+(AF433^2)+(AF426^2))","v":25.748786379167466},{"$f":"AG468+AG461+AG454+AG447+AG440+AG433+AG426","v":8},{"$f":"SQRT((AH468^2)+(AH461^2)+(AH454^2)+(AH447^2)+(AH440^2)+(AH433^2)+(AH426^2))","v":28.407745422683583},{"$f":"AI468+AI461+AI454+AI447+AI440+AI433+AI426","v":12},{"$f":"SQRT((AJ468^2)+(AJ461^2)+(AJ454^2)+(AJ447^2)+(AJ440^2)+(AJ433^2)+(AJ426^2))","v":27.658633371878661},{"$f":"AK468+AK461+AK454+AK447+AK440+AK433+AK426","v":0},{"$f":"SQRT((AL468^2)+(AL461^2)+(AL454^2)+(AL447^2)+(AL440^2)+(AL433^2)+(AL426^2))","v":29.103264421710495},{"$f":"AM468+AM461+AM454+AM447+AM440+AM433+AM426","v":195},123.98386991863094]
[null,"50.0 percent or more",{"$f":"C469+C462+C455+C448+C441+C434+C427","v":0},{"$f":"SQRT((D469^2)+(D462^2)+(D455^2)+(D448^2)+(D441^2)+(D434^2)+(D427^2))","v":0},{"$f":"E469+E462+E455+E448+E441+E434+E427","v":0},{"$f":"SQRT((F469^2)+(F462^2)+(F455^2)+(F448^2)+(F441^2)+(F434^2)+(F427^2))","v":0},{"$f":"G469+G462+G455+G448+G441+G434+G427","v":0},{"$f":"SQRT((H469^2)+(H462^2)+(H455^2)+(H448^2)+(H441^2)+(H434^2)+(H427^2))","v":0},{"$f":"I469+I462+I455+I448+I441+I434+I427","v":0},{"$f":"SQRT((J469^2)+(J462^2)+(J455^2)+(J448^2)+(J441^2)+(J434^2)+(J427^2))","v":0},{"$f":"K469+K462+K455+K448+K441+K434+K427","v":0},{"$f":"SQRT((L469^2)+(L462^2)+(L455^2)+(L448^2)+(L441^2)+(L434^2)+(L427^2))","v":0},{"$f":"M469+M462+M455+M448+M441+M434+M427","v":0},{"$f":"SQRT((N469^2)+(N462^2)+(N455^2)+(N448^2)+(N441^2)+(N434^2)+(N427^2))","v":0},{"$f":"O469+O462+O455+O448+O441+O434+O427","v":0},{"$f":"SQRT((P469^2)+(P462^2)+(P455^2)+(P448^2)+(P441^2)+(P434^2)+(P427^2))","v":0},{"$f":"Q469+Q462+Q455+Q448+Q441+Q434+Q427","v":0},{"$f":"SQRT((R469^2)+(R462^2)+(R455^2)+(R448^2)+(R441^2)+(R434^2)+(R427^2))","v":0},{"$f":"S469+S462+S455+S448+S441+S434+S427","v":0},{"$f":"SQRT((T469^2)+(T462^2)+(T455^2)+(T448^2)+(T441^2)+(T434^2)+(T427^2))","v":0},{"$f":"U469+U462+U455+U448+U441+U434+U427","v":0},{"$f":"SQRT((V469^2)+(V462^2)+(V455^2)+(V448^2)+(V441^2)+(V434^2)+(V427^2))","v":0},{"$f":"W469+W462+W455+W448+W441+W434+W427","v":0},{"$f":"SQRT((X469^2)+(X462^2)+(X455^2)+(X448^2)+(X441^2)+(X434^2)+(X427^2))","v":0},{"$f":"Y469+Y462+Y455+Y448+Y441+Y434+Y427","v":0},{"$f":"SQRT((Z469^2)+(Z462^2)+(Z455^2)+(Z448^2)+(Z441^2)+(Z434^2)+(Z427^2))","v":0},{"$f":"AA469+AA462+AA455+AA448+AA441+AA434+AA427","v":0},{"$f":"SQRT((AB469^2)+(AB462^2)+(AB455^2)+(AB448^2)+(AB441^2)+(AB434^2)+(AB427^2))","v":0},{"$f":"AC469+AC462+AC455+AC448+AC441+AC434+AC427","v":0},{"$f":"SQRT((AD469^2)+(AD462^2)+(AD455^2)+(AD448^2)+(AD441^2)+(AD434^2)+(AD427^2))","v":0},{"$f":"AE469+AE462+AE455+AE448+AE441+AE434+AE427","v":0},{"$f":"SQRT((AF469^2)+(AF462^2)+(AF455^2)+(AF448^2)+(AF441^2)+(AF434^2)+(AF427^2))","v":0},{"$f":"AG469+AG462+AG455+AG448+AG441+AG434+AG427","v":0},{"$f":"SQRT((AH469^2)+(AH462^2)+(AH455^2)+(AH448^2)+(AH441^2)+(AH434^2)+(AH427^2))","v":0},{"$f":"AI469+AI462+AI455+AI448+AI441+AI434+AI427","v":0},{"$f":"SQRT((AJ469^2)+(AJ462^2)+(AJ455^2)+(AJ448^2)+(AJ441^2)+(AJ434^2)+(AJ427^2))","v":0},{"$f":"AK469+AK462+AK455+AK448+AK441+AK434+AK427","v":0},{"$f":"SQRT((AL469^2)+(AL462^2)+(AL455^2)+(AL448^2)+(AL441^2)+(AL434^2)+(AL427^2))","v":0},{"$f":"AM469+AM462+AM455+AM448+AM441+AM434+AM427","v":0},0]
[null,"Not Computed",{"$f":"C469+C463+C456+C449+C442+C435+C428","v":7},{"$f":"SQRT((D469^2)+(D463^2)+(D456^2)+(D449^2)+(D442^2)+(D435^2)+(D428^2))","v":23.108440016582687},{"$f":"E469+E463+E456+E449+E442+E435+E428","v":0},{"$f":"SQRT((F469^2)+(F463^2)+(F456^2)+(F449^2)+(F442^2)+(F435^2)+(F428^2))","v":26.944387170614959},{"$f":"G469+G463+G456+G449+G442+G435+G428","v":35},{"$f":"SQRT((H469^2)+(H463^2)+(H456^2)+(H449^2)+(H442^2)+(H435^2)+(H428^2))","v":24.596747752497688},{"$f":"I469+I463+I456+I449+I442+I435+I428","v":0},{"$f":"SQRT((J469^2)+(J463^2)+(J456^2)+(J449^2)+(J442^2)+(J435^2)+(J428^2))","v":26.944387170614959},{"$f":"K469+K463+K456+K449+K442+K435+K428","v":7},{"$f":"SQRT((L469^2)+(L463^2)+(L456^2)+(L449^2)+(L442^2)+(L435^2)+(L428^2))","v":26.551836094703507},{"$f":"M469+M463+M456+M449+M442+M435+M428","v":0},{"$f":"SQRT((N469^2)+(N463^2)+(N456^2)+(N449^2)+(N442^2)+(N435^2)+(N428^2))","v":26.944387170614959},{"$f":"O469+O463+O456+O449+O442+O435+O428","v":0},{"$f":"SQRT((P469^2)+(P463^2)+(P456^2)+(P449^2)+(P442^2)+(P435^2)+(P428^2))","v":26.944387170614959},{"$f":"Q469+Q463+Q456+Q449+Q442+Q435+Q428","v":32},{"$f":"SQRT((R469^2)+(R463^2)+(R456^2)+(R449^2)+(R442^2)+(R435^2)+(R428^2))","v":48.631265663151311},{"$f":"S469+S463+S456+S449+S442+S435+S428","v":151},{"$f":"SQRT((T469^2)+(T463^2)+(T456^2)+(T449^2)+(T442^2)+(T435^2)+(T428^2))","v":84.664041954066903},{"$f":"U469+U463+U456+U449+U442+U435+U428","v":23},{"$f":"SQRT((V469^2)+(V463^2)+(V456^2)+(V449^2)+(V442^2)+(V435^2)+(V428^2))","v":35.227829907617071},{"$f":"W469+W463+W456+W449+W442+W435+W428","v":7},{"$f":"SQRT((X469^2)+(X463^2)+(X456^2)+(X449^2)+(X442^2)+(X435^2)+(X428^2))","v":26.551836094703507},{"$f":"Y469+Y463+Y456+Y449+Y442+Y435+Y428","v":5},{"$f":"SQRT((Z469^2)+(Z463^2)+(Z456^2)+(Z449^2)+(Z442^2)+(Z435^2)+(Z428^2))","v":25.099800796022265},{"$f":"AA469+AA463+AA456+AA449+AA442+AA435+AA428","v":2},{"$f":"SQRT((AB469^2)+(AB463^2)+(AB456^2)+(AB449^2)+(AB442^2)+(AB435^2)+(AB428^2))","v":25.099800796022265},{"$f":"AC469+AC463+AC456+AC449+AC442+AC435+AC428","v":88},{"$f":"SQRT((AD469^2)+(AD463^2)+(AD456^2)+(AD449^2)+(AD442^2)+(AD435^2)+(AD428^2))","v":46.604720790924176},{"$f":"AE469+AE463+AE456+AE449+AE442+AE435+AE428","v":4},{"$f":"SQRT((AF469^2)+(AF463^2)+(AF456^2)+(AF449^2)+(AF442^2)+(AF435^2)+(AF428^2))","v":25.317977802344327},{"$f":"AG469+AG463+AG456+AG449+AG442+AG435+AG428","v":9},{"$f":"SQRT((AH469^2)+(AH463^2)+(AH456^2)+(AH449^2)+(AH442^2)+(AH435^2)+(AH428^2))","v":26.551836094703507},{"$f":"AI469+AI463+AI456+AI449+AI442+AI435+AI428","v":16},{"$f":"SQRT((AJ469^2)+(AJ463^2)+(AJ456^2)+(AJ449^2)+(AJ442^2)+(AJ435^2)+(AJ428^2))","v":25.37715508089904},{"$f":"AK469+AK463+AK456+AK449+AK442+AK435+AK428","v":7},{"$f":"SQRT((AL469^2)+(AL463^2)+(AL456^2)+(AL449^2)+(AL442^2)+(AL435^2)+(AL428^2))","v":23.151673805580451},{"$f":"AM469+AM463+AM456+AM449+AM442+AM435+AM428","v":50},{"$f":"SQRT((AN469^2)+(AN463^2)+(AN456^2)+(AN449^2)+(AN442^2)+(AN435^2)+(AN428^2))","v":48.795491595023407}]

{"sheet":"SData_B25001_B25003_B25004","index":84,"n_rows":44,"n_cols":50,"rows_kept":44,"cut":false,"hidden":true,"merged":[]}
["GEO_ID","GEO_ID2","SUMLEVEL","GEO_NAME",{"$f":"[1]ACS_16_5YR_B25001_with_ann!D1","v":"B25001_001E"},{"$f":"[1]ACS_16_5YR_B25001_with_ann!E1","v":"B25001_001M"},{"$f":"[1]ACS_16_5YR_B25003_with_ann!D1","v":"B25003_001E"},{"$f":"[1]ACS_16_5YR_B25003_with_ann!E1","v":"B25003_001M"},{"$f":"[1]ACS_16_5YR_B25003_with_ann!F1","v":"B25003_002E"},{"$f":"[1]ACS_16_5YR_B25003_with_ann!G1","v":"B25003_002M"},{"$f":"[1]ACS_16_5YR_B25003_with_ann!H1","v":"B25003_003E"},{"$f":"[1]ACS_16_5YR_B25003_with_ann!I1","v":"B25003_003M"},{"$f":"[1]ACS_16_5YR_B25004_with_ann!D1","v":"B25004_001E"},{"$f":"[1]ACS_16_5YR_B25004_with_ann!E1","v":"B25004_001M"},{"$f":"[1]ACS_16_5YR_B25004_with_ann!F1","v":"B25004_002E"},{"$f":"[1]ACS_16_5YR_B25004_with_ann!G1","v":"B25004_002M"},{"$f":"[1]ACS_16_5YR_B25004_with_ann!H1","v":"B25004_003E"},{"$f":"[1]ACS_16_5YR_B25004_with_ann!I1","v":"B25004_003M"},{"$f":"[1]ACS_16_5YR_B25004_with_ann!J1","v":"B25004_004E"},{"$f":"[1]ACS_16_5YR_B25004_with_ann!K1","v":"B25004_004M"},{"$f":"[1]ACS_16_5YR_B25004_with_ann!L1","v":"B25004_005E"},{"$f":"[1]ACS_16_5YR_B25004_with_ann!M1","v":"B25004_005M"},{"$f":"[1]ACS_16_5YR_B25004_with_ann!N1","v":"B25004_006E"},{"$f":"[1]ACS_16_5YR_B25004_with_ann!O1","v":"B25004_006M"},{"$f":"[1]ACS_16_5YR_B25004_with_ann!P1","v":"B25004_007E"},{"$f":"[1]ACS_16_5YR_B25004_with_ann!Q1","v":"B25004_007M"},{"$f":"[1]ACS_16_5YR_B25004_with_ann!R1","v":"B25004_008E"},{"$f":"[1]ACS_16_5YR_B25004_with_ann!S1","v":"B25004_008M"}]
["Geography Identifier","Geography Identifier","Geographic Summary Level","Geography",{"$f":"[1]ACS_16_5YR_B25001_with_ann!D2","v":"Estimate!!Total"},{"$f":"[1]ACS_16_5YR_B25001_with_ann!E2","v":"Margin of Error!!Total"},{"$f":"[1]ACS_16_5YR_B25003_with_ann!D2","v":"Estimate!!Total:"},{"$f":"[1]ACS_16_5YR_B25003_with_ann!E2","v":"Margin of Error!!Total:"},{"$f":"[1]ACS_16_5YR_B25003_with_ann!F2","v":"Estimate!!Total:!!Owner occupied"},{"$f":"[1]ACS_16_5YR_B25003_with_ann!G2","v":"Margin of Error!!Total:!!Owner occupied"},{"$f":"[1]ACS_16_5YR_B25003_with_ann!H2","v":"Estimate!!Total:!!Renter occupied"},{"$f":"[1]ACS_16_5YR_B25003_with_ann!I2","v":"Margin of Error!!Total:!!Renter occupied"},{"$f":"[1]ACS_16_5YR_B25004_with_ann!D2","v":"Estimate!!Total:"},{"$f":"[1]ACS_16_5YR_B25004_with_ann!E2","v":"Margin of Error!!Total:"},{"$f":"[1]ACS_16_5YR_B25004_with_ann!F2","v":"Estimate!!Total:!!For rent"},{"$f":"[1]ACS_16_5YR_B25004_with_ann!G2","v":"Margin of Error!!Total:!!For rent"},{"$f":"[1]ACS_16_5YR_B25004_with_ann!H2","v":"Estimate!!Total:!!Rented"},{"$f":"[1]ACS_16_5YR_B25004_with_ann!I2","v":"Margin of Error!!Total:!!Rented"},{"$f":"[1]ACS_16_5YR_B25004_with_ann!J2","v":"Estimate!!Total:!!For sale only"},{"$f":"[1]ACS_16_5YR_B25004_with_ann!K2","v":"Margin of Error!!Total:!!For sale only"},{"$f":"[1]ACS_16_5YR_B25004_with_ann!L2","v":"Estimate!!Total:!!Sold, not occupied"},{"$f":"[1]ACS_16_5YR_B25004_with_ann!M2","v":"Margin of Error!!Total:!!Sold, not occupied"},{"$f":"[1]ACS_16_5YR_B25004_with_ann!N2","v":"Estimate!!Total:!!For seasonal, recreational, or occasional use"},{"$f":"[1]ACS_16_5YR_B25004_with_ann!O2","v":"Margin of Error!!Total:!!For seasonal, recreational, or occasional use"},{"$f":"[1]ACS_16_5YR_B25004_with_ann!P2","v":"Estimate!!Total:!!For migrant workers"},{"$f":"[1]ACS_16_5YR_B25004_with_ann!Q2","v":"Margin of Error!!Total:!!For migrant workers"},{"$f":"[1]ACS_16_5YR_B25004_with_ann!R2","v":"Estimate!!Total:!!Other vacant"},{"$f":"[1]ACS_16_5YR_B25004_with_ann!S2","v":"Margin of Error!!Total:!!Other vacant"}]
["06000US3300500820","0600000US3300512260","060",{"$f":"[1]ACS_16_5YR_B25001_with_ann!C44","v":"Alstead"},{"$f":"[1]ACS_16_5YR_B25001_with_ann!D44","v":986},{"$f":"[1]ACS_16_5YR_B25001_with_ann!E44","v":109},{"$f":"[1]ACS_16_5YR_B25003_with_ann!D44","v":723},{"$f":"[1]ACS_16_5YR_B25003_with_ann!E44","v":97},{"$f":"[1]ACS_16_5YR_B25003_with_ann!F44","v":507},{"$f":"[1]ACS_16_5YR_B25003_with_ann!G44","v":86},{"$f":"[1]ACS_16_5YR_B25003_with_ann!H44","v":216},{"$f":"[1]ACS_16_5YR_B25003_with_ann!I44","v":81},{"$f":"[1]ACS_16_5YR_B25004_with_ann!D44","v":263},{"$f":"[1]ACS_16_5YR_B25004_with_ann!E44","v":77},{"$f":"[1]ACS_16_5YR_B25004_with_ann!F44","v":35},{"$f":"[1]ACS_16_5YR_B25004_with_ann!G44","v":39},{"$f":"[1]ACS_16_5YR_B25004_with_ann!H44","v":0},{"$f":"[1]ACS_16_5YR_B25004_with_ann!I44","v":12},{"$f":"[1]ACS_16_5YR_B25004_with_ann!J44","v":14},{"$f":"[1]ACS_16_5YR_B25004_with_ann!K44","v":23},{"$f":"[1]ACS_16_5YR_B25004_with_ann!L44","v":14},{"$f":"[1]ACS_16_5YR_B25004_with_ann!M44","v":22},{"$f":"[1]ACS_16_5YR_B25004_with_ann!N44","v":187},{"$f":"[1]ACS_16_5YR_B25004_with_ann!O44","v":59},{"$f":"[1]ACS_16_5YR_B25004_with_ann!P44","v":0},{"$f":"[1]ACS_16_5YR_B25004_with_ann!Q44","v":12},{"$f":"[1]ACS_16_5YR_B25004_with_ann!R44","v":13},{"$f":"[1]ACS_16_5YR_B25004_with_ann!S44","v":20},null,{"$f":"D3","v":"Alstead"}]
["06000US3300512260","0600000US3300519140","060",{"$f":"[1]ACS_16_5YR_B25001_with_ann!C45","v":"Chesterfield"},{"$f":"[1]ACS_16_5YR_B25001_with_ann!D45","v":1792},{"$f":"[1]ACS_16_5YR_B25001_with_ann!E45","v":170},{"$f":"[1]ACS_16_5YR_B25003_with_ann!D45","v":1366},{"$f":"[1]ACS_16_5YR_B25003_with_ann!E45","v":158},{"$f":"[1]ACS_16_5YR_B25003_with_ann!F45","v":1227},{"$f":"[1]ACS_16_5YR_B25003_with_ann!G45","v":184},{"$f":"[1]ACS_16_5YR_B25003_with_ann!H45","v":139},{"$f":"[1]ACS_16_5YR_B25003_with_ann!I45","v":90},{"$f":"[1]ACS_16_5YR_B25004_with_ann!D45","v":426},{"$f":"[1]ACS_16_5YR_B25004_with_ann!E45","v":182},{"$f":"[1]ACS_16_5YR_B25004_with_ann!F45","v":0},{"$f":"[1]ACS_16_5YR_B25004_with_ann!G45","v":12},{"$f":"[1]ACS_16_5YR_B25004_with_ann!H45","v":58},{"$f":"[1]ACS_16_5YR_B25004_with_ann!I45","v":93},{"$f":"[1]ACS_16_5YR_B25004_with_ann!J45","v":0},{"$f":"[1]ACS_16_5YR_B25004_with_ann!K45","v":12},{"$f":"[1]ACS_16_5YR_B25004_with_ann!L45","v":0},{"$f":"[1]ACS_16_5YR_B25004_with_ann!M45","v":12},{"$f":"[1]ACS_16_5YR_B25004_with_ann!N45","v":300},{"$f":"[1]ACS_16_5YR_B25004_with_ann!O45","v":169},{"$f":"[1]ACS_16_5YR_B25004_with_ann!P45","v":0},{"$f":"[1]ACS_16_5YR_B25004_with_ann!Q45","v":12},{"$f":"[1]ACS_16_5YR_B25004_with_ann!R45","v":68},{"$f":"[1]ACS_16_5YR_B25004_with_ann!S45","v":106},null,"Chesterfield"]
["06000US3300519140","0600000US3300526500","060",{"$f":"[1]ACS_16_5YR_B25001_with_ann!C46","v":"Dublin"},{"$f":"[1]ACS_16_5YR_B25001_with_ann!D46","v":797},{"$f":"[1]ACS_16_5YR_B25001_with_ann!E46","v":112},{"$f":"[1]ACS_16_5YR_B25003_with_ann!D46","v":635},{"$f":"[1]ACS_16_5YR_B25003_with_ann!E46","v":101},{"$f":"[1]ACS_16_5YR_B25003_with_ann!F46","v":530},{"$f":"[1]ACS_16_5YR_B25003_with_ann!G46","v":99},{"$f":"[1]ACS_16_5YR_B25003_with_ann!H46","v":105},{"$f":"[1]ACS_16_5YR_B25003_with_ann!I46","v":41},{"$f":"[1]ACS_16_5YR_B25004_with_ann!D46","v":162},{"$f":"[1]ACS_16_5YR_B25004_with_ann!E46","v":52},{"$f":"[1]ACS_16_5YR_B25004_with_ann!F46","v":0},{"$f":"[1]ACS_16_5YR_B25004_with_ann!G46","v":12},{"$f":"[1]ACS_16_5YR_B25004_with_ann!H46","v":0},{"$f":"[1]ACS_16_5YR_B25004_with_ann!I46","v":12},{"$f":"[1]ACS_16_5YR_B25004_with_ann!J46","v":0},{"$f":"[1]ACS_16_5YR_B25004_with_ann!K46","v":12},{"$f":"[1]ACS_16_5YR_B25004_with_ann!L46","v":12},{"$f":"[1]ACS_16_5YR_B25004_with_ann!M46","v":17},{"$f":"[1]ACS_16_5YR_B25004_with_ann!N46","v":146},{"$f":"[1]ACS_16_5YR_B25004_with_ann!O46","v":48},{"$f":"[1]ACS_16_5YR_B25004_with_ann!P46","v":0},{"$f":"[1]ACS_16_5YR_B25004_with_ann!Q46","v":12},{"$f":"[1]ACS_16_5YR_B25004_with_ann!R46","v":4},{"$f":"[1]ACS_16_5YR_B25004_with_ann!S46","v":8},null,"Dublin"]
["06000US3300526500","0600000US3300529220","060",{"$f":"[1]ACS_16_5YR_B25001_with_ann!C47","v":"Fitzwilliam"},{"$f":"[1]ACS_16_5YR_B25001_with_ann!D47","v":1317},{"$f":"[1]ACS_16_5YR_B25001_with_ann!E47","v":149},{"$f":"[1]ACS_16_5YR_B25003_with_ann!D47","v":1013},{"$f":"[1]ACS_16_5YR_B25003_with_ann!E47","v":154},{"$f":"[1]ACS_16_5YR_B25003_with_ann!F47","v":957},{"$f":"[1]ACS_16_5YR_B25003_with_ann!G47","v":154},{"$f":"[1]ACS_16_5YR_B25003_with_ann!H47","v":56},{"$f":"[1]ACS_16_5YR_B25003_with_ann!I47","v":29},{"$f":"[1]ACS_16_5YR_B25004_with_ann!D47","v":304},{"$f":"[1]ACS_16_5YR_B25004_with_ann!E47","v":90},{"$f":"[1]ACS_16_5YR_B25004_with_ann!F47","v":18},{"$f":"[1]ACS_16_5YR_B25004_with_ann!G47","v":23},{"$f":"[1]ACS_16_5YR_B25004_with_ann!H47","v":0},{"$f":"[1]ACS_16_5YR_B25004_with_ann!I47","v":12},{"$f":"[1]ACS_16_5YR_B25004_with_ann!J47","v":0},{"$f":"[1]ACS_16_5YR_B25004_with_ann!K47","v":12},{"$f":"[1]ACS_16_5YR_B25004_with_ann!L47","v":33},{"$f":"[1]ACS_16_5YR_B25004_with_ann!M47","v":38},{"$f":"[1]ACS_16_5YR_B25004_with_ann!N47","v":208},{"$f":"[1]ACS_16_5YR_B25004_with_ann!O47","v":73},{"$f":"[1]ACS_16_5YR_B25004_with_ann!P47","v":0},{"$f":"[1]ACS_16_5YR_B25004_with_ann!Q47","v":12},{"$f":"[1]ACS_16_5YR_B25004_with_ann!R47","v":45},{"$f":"[1]ACS_16_5YR_B25004_with_ann!S47","v":41},null,"Fitzwilliam"]
["06000US3300529220","0600000US3300534420","060",{"$f":"[1]ACS_16_5YR_B25001_with_ann!C48","v":"Gilsum"},{"$f":"[1]ACS_16_5YR_B25001_with_ann!D48","v":360},{"$f":"[1]ACS_16_5YR_B25001_with_ann!E48","v":57},{"$f":"[1]ACS_16_5YR_B25003_with_ann!D48","v":310},{"$f":"[1]ACS_16_5YR_B25003_with_ann!E48","v":51},{"$f":"[1]ACS_16_5YR_B25003_with_ann!F48","v":285},{"$f":"[1]ACS_16_5YR_B25003_with_ann!G48","v":50},{"$f":"[1]ACS_16_5YR_B25003_with_ann!H48","v":25},{"$f":"[1]ACS_16_5YR_B25003_with_ann!I48","v":14},{"$f":"[1]ACS_16_5YR_B25004_with_ann!D48","v":50},{"$f":"[1]ACS_16_5YR_B25004_with_ann!E48","v":30},{"$f":"[1]ACS_16_5YR_B25004_with_ann!F48","v":0},{"$f":"[1]ACS_16_5YR_B25004_with_ann!G48","v":12},{"$f":"[1]ACS_16_5YR_B25004_with_ann!H48","v":6},{"$f":"[1]ACS_16_5YR_B25004_with_ann!I48","v":9},{"$f":"[1]ACS_16_5YR_B25004_with_ann!J48","v":5},{"$f":"[1]ACS_16_5YR_B25004_with_ann!K48","v":13},{"$f":"[1]ACS_16_5YR_B25004_with_ann!L48","v":0},{"$f":"[1]ACS_16_5YR_B25004_with_ann!M48","v":12},{"$f":"[1]ACS_16_5YR_B25004_with_ann!N48","v":39},{"$f":"[1]ACS_16_5YR_B25004_with_ann!O48","v":23},{"$f":"[1]ACS_16_5YR_B25004_with_ann!P48","v":0},{"$f":"[1]ACS_16_5YR_B25004_with_ann!Q48","v":12},{"$f":"[1]ACS_16_5YR_B25004_with_ann!R48","v":0},{"$f":"[1]ACS_16_5YR_B25004_with_ann!S48","v":12},null,"Gilsum"]
["06000US3300534420","0600000US3300536660","060",{"$f":"[1]ACS_16_5YR_B25001_with_ann!C49","v":"Harrisville"},{"$f":"[1]ACS_16_5YR_B25001_with_ann!D49","v":690},{"$f":"[1]ACS_16_5YR_B25001_with_ann!E49","v":92},{"$f":"[1]ACS_16_5YR_B25003_with_ann!D49","v":416},{"$f":"[1]ACS_16_5YR_B25003_with_ann!E49","v":75},{"$f":"[1]ACS_16_5YR_B25003_with_ann!F49","v":386},{"$f":"[1]ACS_16_5YR_B25003_with_ann!G49","v":73},{"$f":"[1]ACS_16_5YR_B25003_with_ann!H49","v":30},{"$f":"[1]ACS_16_5YR_B25003_with_ann!I49","v":15},{"$f":"[1]ACS_16_5YR_B25004_with_ann!D49","v":274},{"$f":"[1]ACS_16_5YR_B25004_with_ann!E49","v":68},{"$f":"[1]ACS_16_5YR_B25004_with_ann!F49","v":0},{"$f":"[1]ACS_16_5YR_B25004_with_ann!G49","v":12},{"$f":"[1]ACS_16_5YR_B25004_with_ann!H49","v":8},{"$f":"[1]ACS_16_5YR_B25004_with_ann!I49","v":12},{"$f":"[1]ACS_16_5YR_B25004_with_ann!J49","v":0},{"$f":"[1]ACS_16_5YR_B25004_with_ann!K49","v":12},{"$f":"[1]ACS_16_5YR_B25004_with_ann!L49","v":0},{"$f":"[1]ACS_16_5YR_B25004_with_ann!M49","v":12},{"$f":"[1]ACS_16_5YR_B25004_with_ann!N49","v":258},{"$f":"[1]ACS_16_5YR_B25004_with_ann!O49","v":63},{"$f":"[1]ACS_16_5YR_B25004_with_ann!P49","v":0},{"$f":"[1]ACS_16_5YR_B25004_with_ann!Q49","v":12},{"$f":"[1]ACS_16_5YR_B25004_with_ann!R49","v":8},{"$f":"[1]ACS_16_5YR_B25004_with_ann!S49","v":14},null,"Harrisville"]
["06000US3300536660","0600000US3300538500","060",{"$f":"[1]ACS_16_5YR_B25001_with_ann!C50","v":"Hinsdale"},{"$f":"[1]ACS_16_5YR_B25001_with_ann!D50","v":1789},{"$f":"[1]ACS_16_5YR_B25001_with_ann!E50","v":178},{"$f":"[1]ACS_16_5YR_B25003_with_ann!D50","v":1594},{"$f":"[1]ACS_16_5YR_B25003_with_ann!E50","v":139},{"$f":"[1]ACS_16_5YR_B25003_with_ann!F50","v":1373},{"$f":"[1]ACS_16_5YR_B25003_with_ann!G50","v":192},{"$f":"[1]ACS_16_5YR_B25003_with_ann!H50","v":221},{"$f":"[1]ACS_16_5YR_B25003_with_ann!I50","v":105},{"$f":"[1]ACS_16_5YR_B25004_with_ann!D50","v":195},{"$f":"[1]ACS_16_5YR_B25004_with_ann!E50","v":102},{"$f":"[1]ACS_16_5YR_B25004_with_ann!F50","v":0},{"$f":"[1]ACS_16_5YR_B25004_with_ann!G50","v":12},{"$f":"[1]ACS_16_5YR_B25004_with_ann!H50","v":0},{"$f":"[1]ACS_16_5YR_B25004_with_ann!I50","v":12},{"$f":"[1]ACS_16_5YR_B25004_with_ann!J50","v":0},{"$f":"[1]ACS_16_5YR_B25004_with_ann!K50","v":12},{"$f":"[1]ACS_16_5YR_B25004_with_ann!L50","v":32},{"$f":"[1]ACS_16_5YR_B25004_with_ann!M50","v":52},{"$f":"[1]ACS_16_5YR_B25004_with_ann!N50","v":0},{"$f":"[1]ACS_16_5YR_B25004_with_ann!O50","v":12},{"$f":"[1]ACS_16_5YR_B25004_with_ann!P50","v":0},{"$f":"[1]ACS_16_5YR_B25004_with_ann!Q50","v":12},{"$f":"[1]ACS_16_5YR_B25004_with_ann!R50","v":163},{"$f":"[1]ACS_16_5YR_B25004_with_ann!S50","v":97},null,"Hinsdale"]
["06000US3300538500","0600000US3300539300","060",{"$f":"[1]ACS_16_5YR_B25001_with_ann!C51","v":"Jaffrey"},{"$f":"[1]ACS_16_5YR_B25001_with_ann!D51","v":2474},{"$f":"[1]ACS_16_5YR_B25001_with_ann!E51","v":208},{"$f":"[1]ACS_16_5YR_B25003_with_ann!D51","v":2026},{"$f":"[1]ACS_16_5YR_B25003_with_ann!E51","v":225},{"$f":"[1]ACS_16_5YR_B25003_with_ann!F51","v":1580},{"$f":"[1]ACS_16_5YR_B25003_with_ann!G51","v":229},{"$f":"[1]ACS_16_5YR_B25003_with_ann!H51","v":446},{"$f":"[1]ACS_16_5YR_B25003_with_ann!I51","v":167},{"$f":"[1]ACS_16_5YR_B25004_with_ann!D51","v":448},{"$f":"[1]ACS_16_5YR_B25004_with_ann!E51","v":172},{"$f":"[1]ACS_16_5YR_B25004_with_ann!F51","v":0},{"$f":"[1]ACS_16_5YR_B25004_with_ann!G51","v":17},{"$f":"[1]ACS_16_5YR_B25004_with_ann!H51","v":72},{"$f":"[1]ACS_16_5YR_B25004_with_ann!I51","v":85},{"$f":"[1]ACS_16_5YR_B25004_with_ann!J51","v":0},{"$f":"[1]ACS_16_5YR_B25004_with_ann!K51","v":17},{"$f":"[1]ACS_16_5YR_B25004_with_ann!L51","v":0},{"$f":"[1]ACS_16_5YR_B25004_with_ann!M51","v":17},{"$f":"[1]ACS_16_5YR_B25004_with_ann!N51","v":325},{"$f":"[1]ACS_16_5YR_B25004_with_ann!O51","v":160},{"$f":"[1]ACS_16_5YR_B25004_with_ann!P51","v":0},{"$f":"[1]ACS_16_5YR_B25004_with_ann!Q51","v":17},{"$f":"[1]ACS_16_5YR_B25004_with_ann!R51","v":51},{"$f":"[1]ACS_16_5YR_B25004_with_ann!S51","v":73},null,"Jaffrey"]
["06000US3300539300","0600000US3300545460","060",{"$f":"[1]ACS_16_5YR_B25001_with_ann!C52","v":"Keene"},{"$f":"[1]ACS_16_5YR_B25001_with_ann!D52","v":10313},{"$f":"[1]ACS_16_5YR_B25001_with_ann!E52","v":317},{"$f":"[1]ACS_16_5YR_B25003_with_ann!D52","v":9259},{"$f":"[1]ACS_16_5YR_B25003_with_ann!E52","v":370},{"$f":"[1]ACS_16_5YR_B25003_with_ann!F52","v":4762},{"$f":"[1]ACS_16_5YR_B25003_with_ann!G52","v":346},{"$f":"[1]ACS_16_5YR_B25003_with_ann!H52","v":4497},{"$f":"[1]ACS_16_5YR_B25003_with_ann!I52","v":356},{"$f":"[1]ACS_16_5YR_B25004_with_ann!D52","v":1054},{"$f":"[1]ACS_16_5YR_B25004_with_ann!E52","v":274},{"$f":"[1]ACS_16_5YR_B25004_with_ann!F52","v":164},{"$f":"[1]ACS_16_5YR_B25004_with_ann!G52","v":132},{"$f":"[1]ACS_16_5YR_B25004_with_ann!H52","v":333},{"$f":"[1]ACS_16_5YR_B25004_with_ann!I52","v":164},{"$f":"[1]ACS_16_5YR_B25004_with_ann!J52","v":60},{"$f":"[1]ACS_16_5YR_B25004_with_ann!K52","v":74},{"$f":"[1]ACS_16_5YR_B25004_with_ann!L52","v":176},{"$f":"[1]ACS_16_5YR_B25004_with_ann!M52","v":141},{"$f":"[1]ACS_16_5YR_B25004_with_ann!N52","v":121},{"$f":"[1]ACS_16_5YR_B25004_with_ann!O52","v":105},{"$f":"[1]ACS_16_5YR_B25004_with_ann!P52","v":0},{"$f":"[1]ACS_16_5YR_B25004_with_ann!Q52","v":22},{"$f":"[1]ACS_16_5YR_B25004_with_ann!R52","v":200},{"$f":"[1]ACS_16_5YR_B25004_with_ann!S52","v":128},null,"Keene"]
["06000US3300545460","0600000US3300545700","060",{"$f":"[1]ACS_16_5YR_B25001_with_ann!C53","v":"Marlborough"},{"$f":"[1]ACS_16_5YR_B25001_with_ann!D53","v":1009},{"$f":"[1]ACS_16_5YR_B25001_with_ann!E53","v":129},{"$f":"[1]ACS_16_5YR_B25003_with_ann!D53","v":942},{"$f":"[1]ACS_16_5YR_B25003_with_ann!E53","v":130},{"$f":"[1]ACS_16_5YR_B25003_with_ann!F53","v":608},{"$f":"[1]ACS_16_5YR_B25003_with_ann!G53","v":113},{"$f":"[1]ACS_16_5YR_B25003_with_ann!H53","v":334},{"$f":"[1]ACS_16_5YR_B25003_with_ann!I53","v":92},{"$f":"[1]ACS_16_5YR_B25004_with_ann!D53","v":67},{"$f":"[1]ACS_16_5YR_B25004_with_ann!E53","v":47},{"$f":"[1]ACS_16_5YR_B25004_with_ann!F53","v":0},{"$f":"[1]ACS_16_5YR_B25004_with_ann!G53","v":12},{"$f":"[1]ACS_16_5YR_B25004_with_ann!H53","v":0},{"$f":"[1]ACS_16_5YR_B25004_with_ann!I53","v":12},{"$f":"[1]ACS_16_5YR_B25004_with_ann!J53","v":0},{"$f":"[1]ACS_16_5YR_B25004_with_ann!K53","v":12},{"$f":"[1]ACS_16_5YR_B25004_with_ann!L53","v":0},{"$f":"[1]ACS_16_5YR_B25004_with_ann!M53","v":12},{"$f":"[1]ACS_16_5YR_B25004_with_ann!N53","v":38},{"$f":"[1]ACS_16_5YR_B25004_with_ann!O53","v":31},{"$f":"[1]ACS_16_5YR_B25004_with_ann!P53","v":0},{"$f":"[1]ACS_16_5YR_B25004_with_ann!Q53","v":12},{"$f":"[1]ACS_16_5YR_B25004_with_ann!R53","v":29},{"$f":"[1]ACS_16_5YR_B25004_with_ann!S53","v":30},null,"Marlborough"]
["06000US3300545700","0600000US3300550580","060",{"$f":"[1]ACS_16_5YR_B25001_with_ann!C54","v":"Marlow"},{"$f":"[1]ACS_16_5YR_B25001_with_ann!D54","v":417},{"$f":"[1]ACS_16_5YR_B25001_with_ann!E54","v":72},{"$f":"[1]ACS_16_5YR_B25003_with_ann!D54","v":314},{"$f":"[1]ACS_16_5YR_B25003_with_ann!E54","v":61},{"$f":"[1]ACS_16_5YR_B25003_with_ann!F54","v":279},{"$f":"[1]ACS_16_5YR_B25003_with_ann!G54","v":56},{"$f":"[1]ACS_16_5YR_B25003_with_ann!H54","v":35},{"$f":"[1]ACS_16_5YR_B25003_with_ann!I54","v":29},{"$f":"[1]ACS_16_5YR_B25004_with_ann!D54","v":103},{"$f":"[1]ACS_16_5YR_B25004_with_ann!E54","v":36},{"$f":"[1]ACS_16_5YR_B25004_with_ann!F54","v":0},{"$f":"[1]ACS_16_5YR_B25004_with_ann!G54","v":12},{"$f":"[1]ACS_16_5YR_B25004_with_ann!H54","v":0},{"$f":"[1]ACS_16_5YR_B25004_with_ann!I54","v":12},{"$f":"[1]ACS_16_5YR_B25004_with_ann!J54","v":0},{"$f":"[1]ACS_16_5YR_B25004_with_ann!K54","v":12},{"$f":"[1]ACS_16_5YR_B25004_with_ann!L54","v":0},{"$f":"[1]ACS_16_5YR_B25004_with_ann!M54","v":12},{"$f":"[1]ACS_16_5YR_B25004_with_ann!N54","v":86},{"$f":"[1]ACS_16_5YR_B25004_with_ann!O54","v":34},{"$f":"[1]ACS_16_5YR_B25004_with_ann!P54","v":0},{"$f":"[1]ACS_16_5YR_B25004_with_ann!Q54","v":12},{"$f":"[1]ACS_16_5YR_B25004_with_ann!R54","v":17},{"$f":"[1]ACS_16_5YR_B25004_with_ann!S54","v":17},null,"Marlow"]
["06000US3300550580","0600000US3300564420","060",{"$f":"[1]ACS_16_5YR_B25001_with_ann!C55","v":"Nelson"},{"$f":"[1]ACS_16_5YR_B25001_with_ann!D55","v":429},{"$f":"[1]ACS_16_5YR_B25001_with_ann!E55","v":50},{"$f":"[1]ACS_16_5YR_B25003_with_ann!D55","v":246},{"$f":"[1]ACS_16_5YR_B25003_with_ann!E55","v":41},{"$f":"[1]ACS_16_5YR_B25003_with_ann!F55","v":225},{"$f":"[1]ACS_16_5YR_B25003_with_ann!G55","v":42},{"$f":"[1]ACS_16_5YR_B25003_with_ann!H55","v":21},{"$f":"[1]ACS_16_5YR_B25003_with_ann!I55","v":11},{"$f":"[1]ACS_16_5YR_B25004_with_ann!D55","v":183},{"$f":"[1]ACS_16_5YR_B25004_with_ann!E55","v":44},{"$f":"[1]ACS_16_5YR_B25004_with_ann!F55","v":0},{"$f":"[1]ACS_16_5YR_B25004_with_ann!G55","v":12},{"$f":"[1]ACS_16_5YR_B25004_with_ann!H55","v":8},{"$f":"[1]ACS_16_5YR_B25004_with_ann!I55","v":9},{"$f":"[1]ACS_16_5YR_B25004_with_ann!J55","v":4},{"$f":"[1]ACS_16_5YR_B25004_with_ann!K55","v":14},{"$f":"[1]ACS_16_5YR_B25004_with_ann!L55","v":6},{"$f":"[1]ACS_16_5YR_B25004_with_ann!M55","v":9},{"$f":"[1]ACS_16_5YR_B25004_with_ann!N55","v":156},{"$f":"[1]ACS_16_5YR_B25004_with_ann!O55","v":41},{"$f":"[1]ACS_16_5YR_B25004_with_ann!P55","v":0},{"$f":"[1]ACS_16_5YR_B25004_with_ann!Q55","v":12},{"$f":"[1]ACS_16_5YR_B25004_with_ann!R55","v":9},{"$f":"[1]ACS_16_5YR_B25004_with_ann!S55","v":11},null,"Nelson"]
["06000US3300564420","0600000US3300564580","060",{"$f":"[1]ACS_16_5YR_B25001_with_ann!C56","v":"Richmond"},{"$f":"[1]ACS_16_5YR_B25001_with_ann!D56","v":456},{"$f":"[1]ACS_16_5YR_B25001_with_ann!E56","v":82},{"$f":"[1]ACS_16_5YR_B25003_with_ann!D56","v":393},{"$f":"[1]ACS_16_5YR_B25003_with_ann!E56","v":73},{"$f":"[1]ACS_16_5YR_B25003_with_ann!F56","v":383},{"$f":"[1]ACS_16_5YR_B25003_with_ann!G56","v":72},{"$f":"[1]ACS_16_5YR_B25003_with_ann!H56","v":10},{"$f":"[1]ACS_16_5YR_B25003_with_ann!I56","v":9},{"$f":"[1]ACS_16_5YR_B25004_with_ann!D56","v":63},{"$f":"[1]ACS_16_5YR_B25004_with_ann!E56","v":35},{"$f":"[1]ACS_16_5YR_B25004_with_ann!F56","v":0},{"$f":"[1]ACS_16_5YR_B25004_with_ann!G56","v":12},{"$f":"[1]ACS_16_5YR_B25004_with_ann!H56","v":3},{"$f":"[1]ACS_16_5YR_B25004_with_ann!I56","v":5},{"$f":"[1]ACS_16_5YR_B25004_with_ann!J56","v":0},{"$f":"[1]ACS_16_5YR_B25004_with_ann!K56","v":12},{"$f":"[1]ACS_16_5YR_B25004_with_ann!L56","v":6},{"$f":"[1]ACS_16_5YR_B25004_with_ann!M56","v":9},{"$f":"[1]ACS_16_5YR_B25004_with_ann!N56","v":45},{"$f":"[1]ACS_16_5YR_B25004_with_ann!O56","v":29},{"$f":"[1]ACS_16_5YR_B25004_with_ann!P56","v":0},{"$f":"[1]ACS_16_5YR_B25004_with_ann!Q56","v":12},{"$f":"[1]ACS_16_5YR_B25004_with_ann!R56","v":9},{"$f":"[1]ACS_16_5YR_B25004_with_ann!S56","v":13},null,"Richmond"]
["06000US3300564580","0600000US3300565700","060",{"$f":"[1]ACS_16_5YR_B25001_with_ann!C57","v":"Rindge"},{"$f":"[1]ACS_16_5YR_B25001_with_ann!D57","v":2449},{"$f":"[1]ACS_16_5YR_B25001_with_ann!E57","v":168},{"$f":"[1]ACS_16_5YR_B25003_with_ann!D57","v":1972},{"$f":"[1]ACS_16_5YR_B25003_with_ann!E57","v":144},{"$f":"[1]ACS_16_5YR_B25003_with_ann!F57","v":1711},{"$f":"[1]ACS_16_5YR_B25003_with_ann!G57","v":137},{"$f":"[1]ACS_16_5YR_B25003_with_ann!H57","v":261},{"$f":"[1]ACS_16_5YR_B25003_with_ann!I57","v":119},{"$f":"[1]ACS_16_5YR_B25004_with_ann!D57","v":477},{"$f":"[1]ACS_16_5YR_B25004_with_ann!E57","v":114},{"$f":"[1]ACS_16_5YR_B25004_with_ann!F57","v":0},{"$f":"[1]ACS_16_5YR_B25004_with_ann!G57","v":17},{"$f":"[1]ACS_16_5YR_B25004_with_ann!H57","v":0},{"$f":"[1]ACS_16_5YR_B25004_with_ann!I57","v":17},{"$f":"[1]ACS_16_5YR_B25004_with_ann!J57","v":0},{"$f":"[1]ACS_16_5YR_B25004_with_ann!K57","v":17},{"$f":"[1]ACS_16_5YR_B25004_with_ann!L57","v":23},{"$f":"[1]ACS_16_5YR_B25004_with_ann!M57","v":31},{"$f":"[1]ACS_16_5YR_B25004_with_ann!N57","v":419},{"$f":"[1]ACS_16_5YR_B25004_with_ann!O57","v":108},{"$f":"[1]ACS_16_5YR_B25004_with_ann!P57","v":0},{"$f":"[1]ACS_16_5YR_B25004_with_ann!Q57","v":17},{"$f":"[1]ACS_16_5YR_B25004_with_ann!R57","v":35},{"$f":"[1]ACS_16_5YR_B25004_with_ann!S57","v":39},null,"Rindge"]
["06000US3300565700","0600000US3300573700","060",{"$f":"[1]ACS_16_5YR_B25001_with_ann!C58","v":"Roxbury"},{"$f":"[1]ACS_16_5YR_B25001_with_ann!D58","v":101},{"$f":"[1]ACS_16_5YR_B25001_with_ann!E58","v":38},{"$f":"[1]ACS_16_5YR_B25003_with_ann!D58","v":95},{"$f":"[1]ACS_16_5YR_B25003_with_ann!E58","v":37},{"$f":"[1]ACS_16_5YR_B25003_with_ann!F58","v":94},{"$f":"[1]ACS_16_5YR_B25003_with_ann!G58","v":38},{"$f":"[1]ACS_16_5YR_B25003_with_ann!H58","v":1},{"$f":"[1]ACS_16_5YR_B25003_with_ann!I58","v":3},{"$f":"[1]ACS_16_5YR_B25004_with_ann!D58","v":6},{"$f":"[1]ACS_16_5YR_B25004_with_ann!E58","v":7},{"$f":"[1]ACS_16_5YR_B25004_with_ann!F58","v":0},{"$f":"[1]ACS_16_5YR_B25004_with_ann!G58","v":12},{"$f":"[1]ACS_16_5YR_B25004_with_ann!H58","v":2},{"$f":"[1]ACS_16_5YR_B25004_with_ann!I58","v":3},{"$f":"[1]ACS_16_5YR_B25004_with_ann!J58","v":0},{"$f":"[1]ACS_16_5YR_B25004_with_ann!K58","v":12},{"$f":"[1]ACS_16_5YR_B25004_with_ann!L58","v":0},{"$f":"[1]ACS_16_5YR_B25004_with_ann!M58","v":12},{"$f":"[1]ACS_16_5YR_B25004_with_ann!N58","v":4},{"$f":"[1]ACS_16_5YR_B25004_with_ann!O58","v":8},{"$f":"[1]ACS_16_5YR_B25004_with_ann!P58","v":0},{"$f":"[1]ACS_16_5YR_B25004_with_ann!Q58","v":12},{"$f":"[1]ACS_16_5YR_B25004_with_ann!R58","v":0},{"$f":"[1]ACS_16_5YR_B25004_with_ann!S58","v":12},null,"Roxbury"]
["06000US3300573700","0600000US3300574900","060",{"$f":"[1]ACS_16_5YR_B25001_with_ann!C59","v":"Stoddard"},{"$f":"[1]ACS_16_5YR_B25001_with_ann!D59","v":1020},{"$f":"[1]ACS_16_5YR_B25001_with_ann!E59","v":86},{"$f":"[1]ACS_16_5YR_B25003_with_ann!D59","v":436},{"$f":"[1]ACS_16_5YR_B25003_with_ann!E59","v":52},{"$f":"[1]ACS_16_5YR_B25003_with_ann!F59","v":405},{"$f":"[1]ACS_16_5YR_B25003_with_ann!G59","v":49},{"$f":"[1]ACS_16_5YR_B25003_with_ann!H59","v":31},{"$f":"[1]ACS_16_5YR_B25003_with_ann!I59","v":18},{"$f":"[1]ACS_16_5YR_B25004_with_ann!D59","v":584},{"$f":"[1]ACS_16_5YR_B25004_with_ann!E59","v":78},{"$f":"[1]ACS_16_5YR_B25004_with_ann!F59","v":0},{"$f":"[1]ACS_16_5YR_B25004_with_ann!G59","v":12},{"$f":"[1]ACS_16_5YR_B25004_with_ann!H59","v":0},{"$f":"[1]ACS_16_5YR_B25004_with_ann!I59","v":12},{"$f":"[1]ACS_16_5YR_B25004_with_ann!J59","v":0},{"$f":"[1]ACS_16_5YR_B25004_with_ann!K59","v":12},{"$f":"[1]ACS_16_5YR_B25004_with_ann!L59","v":0},{"$f":"[1]ACS_16_5YR_B25004_with_ann!M59","v":12},{"$f":"[1]ACS_16_5YR_B25004_with_ann!N59","v":563},{"$f":"[1]ACS_16_5YR_B25004_with_ann!O59","v":81},{"$f":"[1]ACS_16_5YR_B25004_with_ann!P59","v":0},{"$f":"[1]ACS_16_5YR_B25004_with_ann!Q59","v":12},{"$f":"[1]ACS_16_5YR_B25004_with_ann!R59","v":21},{"$f":"[1]ACS_16_5YR_B25004_with_ann!S59","v":19},null,"Stoddard"]
["06000US3300574900","0600000US3300575300","060",{"$f":"[1]ACS_16_5YR_B25001_with_ann!C60","v":"Sullivan"},{"$f":"[1]ACS_16_5YR_B25001_with_ann!D60","v":301},{"$f":"[1]ACS_16_5YR_B25001_with_ann!E60","v":55},{"$f":"[1]ACS_16_5YR_B25003_with_ann!D60","v":281},{"$f":"[1]ACS_16_5YR_B25003_with_ann!E60","v":53},{"$f":"[1]ACS_16_5YR_B25003_with_ann!F60","v":240},{"$f":"[1]ACS_16_5YR_B25003_with_ann!G60","v":46},{"$f":"[1]ACS_16_5YR_B25003_with_ann!H60","v":41},{"$f":"[1]ACS_16_5YR_B25003_with_ann!I60","v":21},{"$f":"[1]ACS_16_5YR_B25004_with_ann!D60","v":20},{"$f":"[1]ACS_16_5YR_B25004_with_ann!E60","v":16},{"$f":"[1]ACS_16_5YR_B25004_with_ann!F60","v":0},{"$f":"[1]ACS_16_5YR_B25004_with_ann!G60","v":12},{"$f":"[1]ACS_16_5YR_B25004_with_ann!H60","v":0},{"$f":"[1]ACS_16_5YR_B25004_with_ann!I60","v":12},{"$f":"[1]ACS_16_5YR_B25004_with_ann!J60","v":0},{"$f":"[1]ACS_16_5YR_B25004_with_ann!K60","v":12},{"$f":"[1]ACS_16_5YR_B25004_with_ann!L60","v":0},{"$f":"[1]ACS_16_5YR_B25004_with_ann!M60","v":12},{"$f":"[1]ACS_16_5YR_B25004_with_ann!N60","v":17},{"$f":"[1]ACS_16_5YR_B25004_with_ann!O60","v":15},{"$f":"[1]ACS_16_5YR_B25004_with_ann!P60","v":0},{"$f":"[1]ACS_16_5YR_B25004_with_ann!Q60","v":12},{"$f":"[1]ACS_16_5YR_B25004_with_ann!R60","v":3},{"$f":"[1]ACS_16_5YR_B25004_with_ann!S60","v":5},null,"Sullivan"]
["06000US3300575300","0600000US3300575700","060",{"$f":"[1]ACS_16_5YR_B25001_with_ann!C61","v":"Surry"},{"$f":"[1]ACS_16_5YR_B25001_with_ann!D61","v":364},{"$f":"[1]ACS_16_5YR_B25001_with_ann!E61","v":60},{"$f":"[1]ACS_16_5YR_B25003_with_ann!D61","v":344},{"$f":"[1]ACS_16_5YR_B25003_with_ann!E61","v":58},{"$f":"[1]ACS_16_5YR_B25003_with_ann!F61","v":324},{"$f":"[1]ACS_16_5YR_B25003_with_ann!G61","v":59},{"$f":"[1]ACS_16_5YR_B25003_with_ann!H61","v":20},{"$f":"[1]ACS_16_5YR_B25003_with_ann!I61","v":9},{"$f":"[1]ACS_16_5YR_B25004_with_ann!D61","v":20},{"$f":"[1]ACS_16_5YR_B25004_with_ann!E61","v":17},{"$f":"[1]ACS_16_5YR_B25004_with_ann!F61","v":0},{"$f":"[1]ACS_16_5YR_B25004_with_ann!G61","v":12},{"$f":"[1]ACS_16_5YR_B25004_with_ann!H61","v":0},{"$f":"[1]ACS_16_5YR_B25004_with_ann!I61","v":12},{"$f":"[1]ACS_16_5YR_B25004_with_ann!J61","v":0},{"$f":"[1]ACS_16_5YR_B25004_with_ann!K61","v":12},{"$f":"[1]ACS_16_5YR_B25004_with_ann!L61","v":0},{"$f":"[1]ACS_16_5YR_B25004_with_ann!M61","v":12},{"$f":"[1]ACS_16_5YR_B25004_with_ann!N61","v":13},{"$f":"[1]ACS_16_5YR_B25004_with_ann!O61","v":15},{"$f":"[1]ACS_16_5YR_B25004_with_ann!P61","v":0},{"$f":"[1]ACS_16_5YR_B25004_with_ann!Q61","v":12},{"$f":"[1]ACS_16_5YR_B25004_with_ann!R61","v":7},{"$f":"[1]ACS_16_5YR_B25004_with_ann!S61","v":9},null,"Surry"]
["06000US3300575700","0600000US3300577380","060",{"$f":"[1]ACS_16_5YR_B25001_with_ann!C62","v":"Swanzey"},{"$f":"[1]ACS_16_5YR_B25001_with_ann!D62","v":3388},{"$f":"[1]ACS_16_5YR_B25001_with_ann!E62","v":169},{"$f":"[1]ACS_16_5YR_B25003_with_ann!D62","v":3255},{"$f":"[1]ACS_16_5YR_B25003_with_ann!E62","v":171},{"$f":"[1]ACS_16_5YR_B25003_with_ann!F62","v":2237},{"$f":"[1]ACS_16_5YR_B25003_with_ann!G62","v":250},{"$f":"[1]ACS_16_5YR_B25003_with_ann!H62","v":1018},{"$f":"[1]ACS_16_5YR_B25003_with_ann!I62","v":252},{"$f":"[1]ACS_16_5YR_B25004_with_ann!D62","v":133},{"$f":"[1]ACS_16_5YR_B25004_with_ann!E62","v":111},{"$f":"[1]ACS_16_5YR_B25004_with_ann!F62","v":0},{"$f":"[1]ACS_16_5YR_B25004_with_ann!G62","v":17},{"$f":"[1]ACS_16_5YR_B25004_with_ann!H62","v":0},{"$f":"[1]ACS_16_5YR_B25004_with_ann!I62","v":17},{"$f":"[1]ACS_16_5YR_B25004_with_ann!J62","v":0},{"$f":"[1]ACS_16_5YR_B25004_with_ann!K62","v":17},{"$f":"[1]ACS_16_5YR_B25004_with_ann!L62","v":0},{"$f":"[1]ACS_16_5YR_B25004_with_ann!M62","v":17},{"$f":"[1]ACS_16_5YR_B25004_with_ann!N62","v":31},{"$f":"[1]ACS_16_5YR_B25004_with_ann!O62","v":47},{"$f":"[1]ACS_16_5YR_B25004_with_ann!P62","v":0},{"$f":"[1]ACS_16_5YR_B25004_with_ann!Q62","v":17},{"$f":"[1]ACS_16_5YR_B25004_with_ann!R62","v":102},{"$f":"[1]ACS_16_5YR_B25004_with_ann!S62","v":111},null,"Swanzey"]
["06000US3300577380","0600000US3300578420","060",{"$f":"[1]ACS_16_5YR_B25001_with_ann!C63","v":"Troy"},{"$f":"[1]ACS_16_5YR_B25001_with_ann!D63","v":815},{"$f":"[1]ACS_16_5YR_B25001_with_ann!E63","v":105},{"$f":"[1]ACS_16_5YR_B25003_with_ann!D63","v":758},{"$f":"[1]ACS_16_5YR_B25003_with_ann!E63","v":101},{"$f":"[1]ACS_16_5YR_B25003_with_ann!F63","v":525},{"$f":"[1]ACS_16_5YR_B25003_with_ann!G63","v":81},{"$f":"[1]ACS_16_5YR_B25003_with_ann!H63","v":233},{"$f":"[1]ACS_16_5YR_B25003_with_ann!I63","v":73},{"$f":"[1]ACS_16_5YR_B25004_with_ann!D63","v":57},{"$f":"[1]ACS_16_5YR_B25004_with_ann!E63","v":46},{"$f":"[1]ACS_16_5YR_B25004_with_ann!F63","v":0},{"$f":"[1]ACS_16_5YR_B25004_with_ann!G63","v":12},{"$f":"[1]ACS_16_5YR_B25004_with_ann!H63","v":15},{"$f":"[1]ACS_16_5YR_B25004_with_ann!I63","v":23},{"$f":"[1]ACS_16_5YR_B25004_with_ann!J63","v":0},{"$f":"[1]ACS_16_5YR_B25004_with_ann!K63","v":12},{"$f":"[1]ACS_16_5YR_B25004_with_ann!L63","v":13},{"$f":"[1]ACS_16_5YR_B25004_with_ann!M63","v":21},{"$f":"[1]ACS_16_5YR_B25004_with_ann!N63","v":0},{"$f":"[1]ACS_16_5YR_B25004_with_ann!O63","v":12},{"$f":"[1]ACS_16_5YR_B25004_with_ann!P63","v":0},{"$f":"[1]ACS_16_5YR_B25004_with_ann!Q63","v":12},{"$f":"[1]ACS_16_5YR_B25004_with_ann!R63","v":29},{"$f":"[1]ACS_16_5YR_B25004_with_ann!S63","v":33},null,"Troy"]
["06000US3300578420","0600000US3300582660","060",{"$f":"[1]ACS_16_5YR_B25001_with_ann!C64","v":"Walpole"},{"$f":"[1]ACS_16_5YR_B25001_with_ann!D64","v":1618},{"$f":"[1]ACS_16_5YR_B25001_with_ann!E64","v":160},{"$f":"[1]ACS_16_5YR_B25003_with_ann!D64","v":1427},{"$f":"[1]ACS_16_5YR_B25003_with_ann!E64","v":121},{"$f":"[1]ACS_16_5YR_B25003_with_ann!F64","v":945},{"$f":"[1]ACS_16_5YR_B25003_with_ann!G64","v":130},{"$f":"[1]ACS_16_5YR_B25003_with_ann!H64","v":482},{"$f":"[1]ACS_16_5YR_B25003_with_ann!I64","v":141},{"$f":"[1]ACS_16_5YR_B25004_with_ann!D64","v":191},{"$f":"[1]ACS_16_5YR_B25004_with_ann!E64","v":111},{"$f":"[1]ACS_16_5YR_B25004_with_ann!F64","v":0},{"$f":"[1]ACS_16_5YR_B25004_with_ann!G64","v":12},{"$f":"[1]ACS_16_5YR_B25004_with_ann!H64","v":49},{"$f":"[1]ACS_16_5YR_B25004_with_ann!I64","v":56},{"$f":"[1]ACS_16_5YR_B25004_with_ann!J64","v":0},{"$f":"[1]ACS_16_5YR_B25004_with_ann!K64","v":12},{"$f":"[1]ACS_16_5YR_B25004_with_ann!L64","v":0},{"$f":"[1]ACS_16_5YR_B25004_with_ann!M64","v":12},{"$f":"[1]ACS_16_5YR_B25004_with_ann!N64","v":88},{"$f":"[1]ACS_16_5YR_B25004_with_ann!O64","v":62},{"$f":"[1]ACS_16_5YR_B25004_with_ann!P64","v":0},{"$f":"[1]ACS_16_5YR_B25004_with_ann!Q64","v":12},{"$f":"[1]ACS_16_5YR_B25004_with_ann!R64","v":54},{"$f":"[1]ACS_16_5YR_B25004_with_ann!S64","v":64},null,"Walpole"]
["06000US3300582660","0600000US3300585540","060",{"$f":"[1]ACS_16_5YR_B25001_with_ann!C65","v":"Westmoreland"},{"$f":"[1]ACS_16_5YR_B25001_with_ann!D65","v":936},{"$f":"[1]ACS_16_5YR_B25001_with_ann!E65","v":184},{"$f":"[1]ACS_16_5YR_B25003_with_ann!D65","v":885},{"$f":"[1]ACS_16_5YR_B25003_with_ann!E65","v":182},{"$f":"[1]ACS_16_5YR_B25003_with_ann!F65","v":787},{"$f":"[1]ACS_16_5YR_B25003_with_ann!G65","v":179},{"$f":"[1]ACS_16_5YR_B25003_with_ann!H65","v":98},{"$f":"[1]ACS_16_5YR_B25003_with_ann!I65","v":54},{"$f":"[1]ACS_16_5YR_B25004_with_ann!D65","v":51},{"$f":"[1]ACS_16_5YR_B25004_with_ann!E65","v":34},{"$f":"[1]ACS_16_5YR_B25004_with_ann!F65","v":11},{"$f":"[1]ACS_16_5YR_B25004_with_ann!G65","v":17},{"$f":"[1]ACS_16_5YR_B25004_with_ann!H65","v":9},{"$f":"[1]ACS_16_5YR_B25004_with_ann!I65","v":15},{"$f":"[1]ACS_16_5YR_B25004_with_ann!J65","v":0},{"$f":"[1]ACS_16_5YR_B25004_with_ann!K65","v":12},{"$f":"[1]ACS_16_5YR_B25004_with_ann!L65","v":0},{"$f":"[1]ACS_16_5YR_B25004_with_ann!M65","v":12},{"$f":"[1]ACS_16_5YR_B25004_with_ann!N65","v":28},{"$f":"[1]ACS_16_5YR_B25004_with_ann!O65","v":23},{"$f":"[1]ACS_16_5YR_B25004_with_ann!P65","v":0},{"$f":"[1]ACS_16_5YR_B25004_with_ann!Q65","v":12},{"$f":"[1]ACS_16_5YR_B25004_with_ann!R65","v":3},{"$f":"[1]ACS_16_5YR_B25004_with_ann!S65","v":4},null,"Westmoreland"]
["06000US3300585540","0600000US3300500820","060",{"$f":"[1]ACS_16_5YR_B25001_with_ann!C66","v":"Winchester"},{"$f":"[1]ACS_16_5YR_B25001_with_ann!D66","v":1885},{"$f":"[1]ACS_16_5YR_B25001_with_ann!E66","v":173},{"$f":"[1]ACS_16_5YR_B25003_with_ann!D66","v":1617},{"$f":"[1]ACS_16_5YR_B25003_with_ann!E66","v":146},{"$f":"[1]ACS_16_5YR_B25003_with_ann!F66","v":1052},{"$f":"[1]ACS_16_5YR_B25003_with_ann!G66","v":163},{"$f":"[1]ACS_16_5YR_B25003_with_ann!H66","v":565},{"$f":"[1]ACS_16_5YR_B25003_with_ann!I66","v":145},{"$f":"[1]ACS_16_5YR_B25004_with_ann!D66","v":268},{"$f":"[1]ACS_16_5YR_B25004_with_ann!E66","v":135},{"$f":"[1]ACS_16_5YR_B25004_with_ann!F66","v":0},{"$f":"[1]ACS_16_5YR_B25004_with_ann!G66","v":12},{"$f":"[1]ACS_16_5YR_B25004_with_ann!H66","v":55},{"$f":"[1]ACS_16_5YR_B25004_with_ann!I66","v":62},{"$f":"[1]ACS_16_5YR_B25004_with_ann!J66","v":10},{"$f":"[1]ACS_16_5YR_B25004_with_ann!K66","v":17},{"$f":"[1]ACS_16_5YR_B25004_with_ann!L66","v":0},{"$f":"[1]ACS_16_5YR_B25004_with_ann!M66","v":12},{"$f":"[1]ACS_16_5YR_B25004_with_ann!N66","v":176},{"$f":"[1]ACS_16_5YR_B25004_with_ann!O66","v":110},{"$f":"[1]ACS_16_5YR_B25004_with_ann!P66","v":27},{"$f":"[1]ACS_16_5YR_B25004_with_ann!Q66","v":43},{"$f":"[1]ACS_16_5YR_B25004_with_ann!R66","v":0},{"$f":"[1]ACS_16_5YR_B25004_with_ann!S66","v":12},null,"Winchester"]
[]
[]
[]
[null,null,null,null,{"$f":"$D$3","v":"Alstead"},null,{"$f":"$D$4","v":"Chesterfield"},null,{"$f":"$D$5","v":"Dublin"},null,{"$f":"$D$6","v":"Fitzwilliam"},null,{"$f":"$D$7","v":"Gilsum"},null,{"$f":"$D$8","v":"Harrisville"},null,{"$f":"$D$9","v":"Hinsdale"},null,{"$f":"$D$10","v":"Jaffrey"},null,{"$f":"$D$11","v":"Keene"},null,{"$f":"$D$12","v":"Marlborough"},null,{"$f":"$D$13","v":"Marlow"},null,{"$f":"$D$14","v":"Nelson"},null,{"$f":"$D$15","v":"Richmond"},null,{"$f":"$D$16","v":"Rindge"},null,{"$f":"$D$17","v":"Roxbury"},null,{"$f":"$D$18","v":"Stoddard"},null,{"$f":"$D$19","v":"Sullivan"},null,{"$f":"$D$20","v":"Surry"},null,{"$f":"$D$21","v":"Swanzey"},null,{"$f":"$D$22","v":"Troy"},null,{"$f":"$D$23","v":"Walpole"},null,{"$f":"$D$24","v":"Westmoreland"},null,{"$f":"$D$25","v":"Winchester"}]
["TABLE B25001",null,null,null,"Estimate","Margin of Error","Estimate","Margin of Error","Estimate","Margin of Error","Estimate","Margin of Error","Estimate","Margin of Error","Estimate","Margin of Error","Estimate","Margin of Error","Estimate","Margin of Error","Estimate","Margin of Error","Estimate","Margin of Error","Estimate","Margin of Error","Estimate","Margin of Error","Estimate","Margin of Error","Estimate","Margin of Error","Estimate","Margin of Error","Estimate","Margin of Error","Estimate","Margin of Error","Estimate","Margin of Error","Estimate","Margin of Error","Estimate","Margin of Error","Estimate","Margin of Error","Estimate","Margin of Error","Estimate","Margin of Error"]
[null,null,null,"Estimate!!Total",986,109,1792,170,797,112,1317,149,360,57,690,92,1789,178,2474,208,10313,317,1009,129,417,72,429,50,456,82,2449,168,101,38,1020,86,301,55,364,60,3388,169,815,105,1618,160,936,184,1885,173]
[]
["TABLE 25003",null,null,"Estimate!!Total:",723,97,1366,158,635,101,1013,154,310,51,416,75,1594,139,2026,225,9259,370,942,130,314,61,246,41,393,73,1972,144,95,37,436,52,281,53,344,58,3255,171,758,101,1427,121,885,182,1617,146]
[null,null,null,"Estimate!!Total:!!Owner occupied",507,86,1227,184,530,99,957,154,285,50,386,73,1373,192,1580,229,4762,346,608,113,279,56,225,42,383,72,1711,137,94,38,405,49,240,46,324,59,2237,250,525,81,945,130,787,179,1052,163]
[null,null,null,"Estimate!!Total:!!Renter occupied",216,81,139,90,105,41,56,29,25,14,30,15,221,105,446,167,4497,356,334,92,35,29,21,11,10,9,261,119,1,3,31,18,41,21,20,9,1018,252,233,73,482,141,98,54,565,145]
["TABLE 25004"]
[null,null,null,"Estimate!!Total:",263,77,426,182,162,52,304,90,50,30,274,68,195,102,448,172,1054,274,67,47,103,36,183,44,63,35,477,114,6,7,584,78,20,16,20,17,133,111,57,46,191,111,51,34,268,135]
[null,null,null,"Estimate!!Total:!!For rent",35,39,0,12,0,12,18,23,0,12,0,12,0,12,0,17,164,132,0,12,0,12,0,12,0,12,0,17,0,12,0,12,0,12,0,12,0,17,0,12,0,12,11,17,0,12]
[null,null,null,"Estimate!!Total:!!Rented",0,12,58,93,0,12,0,12,6,9,8,12,0,12,72,85,333,164,0,12,0,12,8,9,3,5,0,17,2,3,0,12,0,12,0,12,0,17,15,23,49,56,9,15,55,62]
[null,null,null,"Estimate!!Total:!!For sale only",14,23,0,12,0,12,0,12,5,13,0,12,0,12,0,17,60,74,0,12,0,12,4,14,0,12,0,17,0,12,0,12,0,12,0,12,0,17,0,12,0,12,0,12,10,17]
[null,null,null,"Estimate!!Total:!!Sold, not occupied",14,22,0,12,12,17,33,38,0,12,0,12,32,52,0,17,176,141,0,12,0,12,6,9,6,9,23,31,0,12,0,12,0,12,0,12,0,17,13,21,0,12,0,12,0,12]
[null,null,null,"Estimate!!Total:!!For seasonal, recreational, or occasional use",187,59,300,169,146,48,208,73,39,23,258,63,0,12,325,160,121,105,38,31,86,34,156,41,45,29,419,108,4,8,563,81,17,15,13,15,31,47,0,12,88,62,28,23,176,110]
[null,null,null,"Estimate!!Total:!!For migrant workers",0,12,0,12,0,12,0,12,0,12,0,12,0,12,0,17,0,22,0,12,0,12,0,12,0,12,0,17,0,12,0,12,0,12,0,12,0,17,0,12,0,12,0,12,27,43]
[null,null,null,"Estimate!!Total:!!Other vacant",13,20,68,106,4,8,45,41,0,12,8,14,163,97,51,73,200,128,29,30,17,17,9,11,9,13,35,39,0,12,21,19,3,5,7,9,102,111,29,33,54,64,3,4,0,12]

{"sheet":"SData_B25008","index":85,"n_rows":33,"n_cols":50,"rows_kept":33,"cut":false,"hidden":true,"merged":[]}
["GEO_ID","GEO_ID2","SUMLEVEL",{"$f":"[1]ACS_16_5YR_B25008_with_ann!C1","v":"NAME"},{"$f":"[1]ACS_16_5YR_B25008_with_ann!D1","v":"B25008_001E"},{"$f":"[1]ACS_16_5YR_B25008_with_ann!E1","v":"B25008_001M"},{"$f":"[1]ACS_16_5YR_B25008_with_ann!F1","v":"B25008_002E"},{"$f":"[1]ACS_16_5YR_B25008_with_ann!G1","v":"B25008_002M"},{"$f":"[1]ACS_16_5YR_B25008_with_ann!H1","v":"B25008_003E"},{"$f":"[1]ACS_16_5YR_B25008_with_ann!I1","v":"B25008_003M"}]
["Geography Identifier","Geography Identifier","Geographic Summary Level",{"$f":"[1]ACS_16_5YR_B25008_with_ann!C2","v":"Geographic Area Name"},{"$f":"[1]ACS_16_5YR_B25008_with_ann!D2","v":"Estimate!!Total:"},{"$f":"[1]ACS_16_5YR_B25008_with_ann!E2","v":"Margin of Error!!Total:"},{"$f":"[1]ACS_16_5YR_B25008_with_ann!F2","v":"Estimate!!Total:!!Owner occupied"},{"$f":"[1]ACS_16_5YR_B25008_with_ann!G2","v":"Margin of Error!!Total:!!Owner occupied"},{"$f":"[1]ACS_16_5YR_B25008_with_ann!H2","v":"Estimate!!Total:!!Renter occupied"},{"$f":"[1]ACS_16_5YR_B25008_with_ann!I2","v":"Margin of Error!!Total:!!Renter occupied"}]
["06000US3300500820","0600000US3300512260","060",{"$f":"[1]ACS_16_5YR_B25008_with_ann!C44","v":"Alstead"},{"$f":"[1]ACS_16_5YR_B25008_with_ann!D44","v":1599},{"$f":"[1]ACS_16_5YR_B25008_with_ann!E44","v":169},{"$f":"[1]ACS_16_5YR_B25008_with_ann!F44","v":1155},{"$f":"[1]ACS_16_5YR_B25008_with_ann!G44","v":163},{"$f":"[1]ACS_16_5YR_B25008_with_ann!H44","v":444},{"$f":"[1]ACS_16_5YR_B25008_with_ann!I44","v":178}]
["06000US3300512260","0600000US3300519140","060",{"$f":"[1]ACS_16_5YR_B25008_with_ann!C45","v":"Chesterfield"},{"$f":"[1]ACS_16_5YR_B25008_with_ann!D45","v":3577},{"$f":"[1]ACS_16_5YR_B25008_with_ann!E45","v":15},{"$f":"[1]ACS_16_5YR_B25008_with_ann!F45","v":3174},{"$f":"[1]ACS_16_5YR_B25008_with_ann!G45","v":273},{"$f":"[1]ACS_16_5YR_B25008_with_ann!H45","v":403},{"$f":"[1]ACS_16_5YR_B25008_with_ann!I45","v":272}]
["06000US3300519140","0600000US3300526500","060",{"$f":"[1]ACS_16_5YR_B25008_with_ann!C46","v":"Dublin"},{"$f":"[1]ACS_16_5YR_B25008_with_ann!D46","v":1617},{"$f":"[1]ACS_16_5YR_B25008_with_ann!E46","v":217},{"$f":"[1]ACS_16_5YR_B25008_with_ann!F46","v":1324},{"$f":"[1]ACS_16_5YR_B25008_with_ann!G46","v":197},{"$f":"[1]ACS_16_5YR_B25008_with_ann!H46","v":293},{"$f":"[1]ACS_16_5YR_B25008_with_ann!I46","v":144}]
["06000US3300526500","0600000US3300529220","060",{"$f":"[1]ACS_16_5YR_B25008_with_ann!C47","v":"Fitzwilliam"},{"$f":"[1]ACS_16_5YR_B25008_with_ann!D47","v":2287},{"$f":"[1]ACS_16_5YR_B25008_with_ann!E47","v":368},{"$f":"[1]ACS_16_5YR_B25008_with_ann!F47","v":2192},{"$f":"[1]ACS_16_5YR_B25008_with_ann!G47","v":365},{"$f":"[1]ACS_16_5YR_B25008_with_ann!H47","v":95},{"$f":"[1]ACS_16_5YR_B25008_with_ann!I47","v":52}]
["06000US3300529220","0600000US3300534420","060",{"$f":"[1]ACS_16_5YR_B25008_with_ann!C48","v":"Gilsum"},{"$f":"[1]ACS_16_5YR_B25008_with_ann!D48","v":863},{"$f":"[1]ACS_16_5YR_B25008_with_ann!E48","v":144},{"$f":"[1]ACS_16_5YR_B25008_with_ann!F48","v":799},{"$f":"[1]ACS_16_5YR_B25008_with_ann!G48","v":140},{"$f":"[1]ACS_16_5YR_B25008_with_ann!H48","v":64},{"$f":"[1]ACS_16_5YR_B25008_with_ann!I48","v":36}]
["06000US3300534420","0600000US3300536660","060",{"$f":"[1]ACS_16_5YR_B25008_with_ann!C49","v":"Harrisville"},{"$f":"[1]ACS_16_5YR_B25008_with_ann!D49","v":977},{"$f":"[1]ACS_16_5YR_B25008_with_ann!E49","v":197},{"$f":"[1]ACS_16_5YR_B25008_with_ann!F49","v":894},{"$f":"[1]ACS_16_5YR_B25008_with_ann!G49","v":191},{"$f":"[1]ACS_16_5YR_B25008_with_ann!H49","v":83},{"$f":"[1]ACS_16_5YR_B25008_with_ann!I49","v":47}]
["06000US3300536660","0600000US3300538500","060",{"$f":"[1]ACS_16_5YR_B25008_with_ann!C50","v":"Hinsdale"},{"$f":"[1]ACS_16_5YR_B25008_with_ann!D50","v":3965},{"$f":"[1]ACS_16_5YR_B25008_with_ann!E50","v":16},{"$f":"[1]ACS_16_5YR_B25008_with_ann!F50","v":3350},{"$f":"[1]ACS_16_5YR_B25008_with_ann!G50","v":376},{"$f":"[1]ACS_16_5YR_B25008_with_ann!H50","v":615},{"$f":"[1]ACS_16_5YR_B25008_with_ann!I50","v":377}]
["06000US3300538500","0600000US3300539300","060",{"$f":"[1]ACS_16_5YR_B25008_with_ann!C51","v":"Jaffrey"},{"$f":"[1]ACS_16_5YR_B25008_with_ann!D51","v":5280},{"$f":"[1]ACS_16_5YR_B25008_with_ann!E51","v":31},{"$f":"[1]ACS_16_5YR_B25008_with_ann!F51","v":4313},{"$f":"[1]ACS_16_5YR_B25008_with_ann!G51","v":457},{"$f":"[1]ACS_16_5YR_B25008_with_ann!H51","v":967},{"$f":"[1]ACS_16_5YR_B25008_with_ann!I51","v":458}]
["06000US3300539300","0600000US3300545460","060",{"$f":"[1]ACS_16_5YR_B25008_with_ann!C52","v":"Keene"},{"$f":"[1]ACS_16_5YR_B25008_with_ann!D52","v":20239},{"$f":"[1]ACS_16_5YR_B25008_with_ann!E52","v":48},{"$f":"[1]ACS_16_5YR_B25008_with_ann!F52","v":11596},{"$f":"[1]ACS_16_5YR_B25008_with_ann!G52","v":704},{"$f":"[1]ACS_16_5YR_B25008_with_ann!H52","v":8643},{"$f":"[1]ACS_16_5YR_B25008_with_ann!I52","v":706}]
["06000US3300545460","0600000US3300545700","060",{"$f":"[1]ACS_16_5YR_B25008_with_ann!C53","v":"Marlborough"},{"$f":"[1]ACS_16_5YR_B25008_with_ann!D53","v":2248},{"$f":"[1]ACS_16_5YR_B25008_with_ann!E53","v":391},{"$f":"[1]ACS_16_5YR_B25008_with_ann!F53","v":1589},{"$f":"[1]ACS_16_5YR_B25008_with_ann!G53","v":362},{"$f":"[1]ACS_16_5YR_B25008_with_ann!H53","v":659},{"$f":"[1]ACS_16_5YR_B25008_with_ann!I53","v":260}]
["06000US3300545700","0600000US3300550580","060",{"$f":"[1]ACS_16_5YR_B25008_with_ann!C54","v":"Marlow"},{"$f":"[1]ACS_16_5YR_B25008_with_ann!D54","v":798},{"$f":"[1]ACS_16_5YR_B25008_with_ann!E54","v":175},{"$f":"[1]ACS_16_5YR_B25008_with_ann!F54","v":668},{"$f":"[1]ACS_16_5YR_B25008_with_ann!G54","v":143},{"$f":"[1]ACS_16_5YR_B25008_with_ann!H54","v":130},{"$f":"[1]ACS_16_5YR_B25008_with_ann!I54","v":108}]
["06000US3300550580","0600000US3300564420","060",{"$f":"[1]ACS_16_5YR_B25008_with_ann!C55","v":"Nelson"},{"$f":"[1]ACS_16_5YR_B25008_with_ann!D55","v":550},{"$f":"[1]ACS_16_5YR_B25008_with_ann!E55","v":106},{"$f":"[1]ACS_16_5YR_B25008_with_ann!F55","v":515},{"$f":"[1]ACS_16_5YR_B25008_with_ann!G55","v":101},{"$f":"[1]ACS_16_5YR_B25008_with_ann!H55","v":35},{"$f":"[1]ACS_16_5YR_B25008_with_ann!I55","v":21}]
["06000US3300564420","0600000US3300564580","060",{"$f":"[1]ACS_16_5YR_B25008_with_ann!C56","v":"Richmond"},{"$f":"[1]ACS_16_5YR_B25008_with_ann!D56","v":1102},{"$f":"[1]ACS_16_5YR_B25008_with_ann!E56","v":251},{"$f":"[1]ACS_16_5YR_B25008_with_ann!F56","v":1072},{"$f":"[1]ACS_16_5YR_B25008_with_ann!G56","v":248},{"$f":"[1]ACS_16_5YR_B25008_with_ann!H56","v":30},{"$f":"[1]ACS_16_5YR_B25008_with_ann!I56","v":25}]
["06000US3300564580","0600000US3300565700","060",{"$f":"[1]ACS_16_5YR_B25008_with_ann!C57","v":"Rindge"},{"$f":"[1]ACS_16_5YR_B25008_with_ann!D57","v":5437},{"$f":"[1]ACS_16_5YR_B25008_with_ann!E57","v":37},{"$f":"[1]ACS_16_5YR_B25008_with_ann!F57","v":4820},{"$f":"[1]ACS_16_5YR_B25008_with_ann!G57","v":275},{"$f":"[1]ACS_16_5YR_B25008_with_ann!H57","v":617},{"$f":"[1]ACS_16_5YR_B25008_with_ann!I57","v":277}]
["06000US3300565700","0600000US3300573700","060",{"$f":"[1]ACS_16_5YR_B25008_with_ann!C58","v":"Roxbury"},{"$f":"[1]ACS_16_5YR_B25008_with_ann!D58","v":295},{"$f":"[1]ACS_16_5YR_B25008_with_ann!E58","v":142},{"$f":"[1]ACS_16_5YR_B25008_with_ann!F58","v":292},{"$f":"[1]ACS_16_5YR_B25008_with_ann!G58","v":143},{"$f":"[1]ACS_16_5YR_B25008_with_ann!H58","v":3},{"$f":"[1]ACS_16_5YR_B25008_with_ann!I58","v":5}]
["06000US3300573700","0600000US3300574900","060",{"$f":"[1]ACS_16_5YR_B25008_with_ann!C59","v":"Stoddard"},{"$f":"[1]ACS_16_5YR_B25008_with_ann!D59","v":1205},{"$f":"[1]ACS_16_5YR_B25008_with_ann!E59","v":162},{"$f":"[1]ACS_16_5YR_B25008_with_ann!F59","v":1081},{"$f":"[1]ACS_16_5YR_B25008_with_ann!G59","v":150},{"$f":"[1]ACS_16_5YR_B25008_with_ann!H59","v":124},{"$f":"[1]ACS_16_5YR_B25008_with_ann!I59","v":72}]
["06000US3300574900","0600000US3300575300","060",{"$f":"[1]ACS_16_5YR_B25008_with_ann!C60","v":"Sullivan"},{"$f":"[1]ACS_16_5YR_B25008_with_ann!D60","v":681},{"$f":"[1]ACS_16_5YR_B25008_with_ann!E60","v":130},{"$f":"[1]ACS_16_5YR_B25008_with_ann!F60","v":585},{"$f":"[1]ACS_16_5YR_B25008_with_ann!G60","v":106},{"$f":"[1]ACS_16_5YR_B25008_with_ann!H60","v":96},{"$f":"[1]ACS_16_5YR_B25008_with_ann!I60","v":62}]
["06000US3300575300","0600000US3300575700","060",{"$f":"[1]ACS_16_5YR_B25008_with_ann!C61","v":"Surry"},{"$f":"[1]ACS_16_5YR_B25008_with_ann!D61","v":950},{"$f":"[1]ACS_16_5YR_B25008_with_ann!E61","v":245},{"$f":"[1]ACS_16_5YR_B25008_with_ann!F61","v":903},{"$f":"[1]ACS_16_5YR_B25008_with_ann!G61","v":243},{"$f":"[1]ACS_16_5YR_B25008_with_ann!H61","v":47},{"$f":"[1]ACS_16_5YR_B25008_with_ann!I61","v":21}]
["06000US3300575700","0600000US3300577380","060",{"$f":"[1]ACS_16_5YR_B25008_with_ann!C62","v":"Swanzey"},{"$f":"[1]ACS_16_5YR_B25008_with_ann!D62","v":7306},{"$f":"[1]ACS_16_5YR_B25008_with_ann!E62","v":22},{"$f":"[1]ACS_16_5YR_B25008_with_ann!F62","v":5317},{"$f":"[1]ACS_16_5YR_B25008_with_ann!G62","v":506},{"$f":"[1]ACS_16_5YR_B25008_with_ann!H62","v":1989},{"$f":"[1]ACS_16_5YR_B25008_with_ann!I62","v":505}]
["06000US3300577380","0600000US3300578420","060",{"$f":"[1]ACS_16_5YR_B25008_with_ann!C63","v":"Troy"},{"$f":"[1]ACS_16_5YR_B25008_with_ann!D63","v":1889},{"$f":"[1]ACS_16_5YR_B25008_with_ann!E63","v":275},{"$f":"[1]ACS_16_5YR_B25008_with_ann!F63","v":1377},{"$f":"[1]ACS_16_5YR_B25008_with_ann!G63","v":211},{"$f":"[1]ACS_16_5YR_B25008_with_ann!H63","v":512},{"$f":"[1]ACS_16_5YR_B25008_with_ann!I63","v":189}]
["06000US3300578420","0600000US3300582660","060",{"$f":"[1]ACS_16_5YR_B25008_with_ann!C64","v":"Walpole"},{"$f":"[1]ACS_16_5YR_B25008_with_ann!D64","v":3651},{"$f":"[1]ACS_16_5YR_B25008_with_ann!E64","v":33},{"$f":"[1]ACS_16_5YR_B25008_with_ann!F64","v":2672},{"$f":"[1]ACS_16_5YR_B25008_with_ann!G64","v":330},{"$f":"[1]ACS_16_5YR_B25008_with_ann!H64","v":979},{"$f":"[1]ACS_16_5YR_B25008_with_ann!I64","v":325}]
["06000US3300582660","0600000US3300585540","060",{"$f":"[1]ACS_16_5YR_B25008_with_ann!C65","v":"Westmoreland"},{"$f":"[1]ACS_16_5YR_B25008_with_ann!D65","v":1971},{"$f":"[1]ACS_16_5YR_B25008_with_ann!E65","v":342},{"$f":"[1]ACS_16_5YR_B25008_with_ann!F65","v":1780},{"$f":"[1]ACS_16_5YR_B25008_with_ann!G65","v":341},{"$f":"[1]ACS_16_5YR_B25008_with_ann!H65","v":191},{"$f":"[1]ACS_16_5YR_B25008_with_ann!I65","v":133}]
["06000US3300585540","0600000US3300500820","060",{"$f":"[1]ACS_16_5YR_B25008_with_ann!C66","v":"Winchester"},{"$f":"[1]ACS_16_5YR_B25008_with_ann!D66","v":4094},{"$f":"[1]ACS_16_5YR_B25008_with_ann!E66","v":24},{"$f":"[1]ACS_16_5YR_B25008_with_ann!F66","v":2743},{"$f":"[1]ACS_16_5YR_B25008_with_ann!G66","v":386},{"$f":"[1]ACS_16_5YR_B25008_with_ann!H66","v":1351},{"$f":"[1]ACS_16_5YR_B25008_with_ann!I66","v":383}]
[]
[]
[]
[null,null,null,null,{"$f":"$D$3","v":"Alstead"},null,{"$f":"$D$4","v":"Chesterfield"},null,{"$f":"$D$5","v":"Dublin"},null,{"$f":"$D$6","v":"Fitzwilliam"},null,{"$f":"$D$7","v":"Gilsum"},null,{"$f":"$D$8","v":"Harrisville"},null,{"$f":"$D$9","v":"Hinsdale"},null,{"$f":"$D$10","v":"Jaffrey"},null,{"$f":"$D$11","v":"Keene"},null,{"$f":"$D$12","v":"Marlborough"},null,{"$f":"$D$13","v":"Marlow"},null,{"$f":"$D$14","v":"Nelson"},null,{"$f":"$D$15","v":"Richmond"},null,{"$f":"$D$16","v":"Rindge"},null,{"$f":"$D$17","v":"Roxbury"},null,{"$f":"$D$18","v":"Stoddard"},null,{"$f":"$D$19","v":"Sullivan"},null,{"$f":"$D$20","v":"Surry"},null,{"$f":"$D$21","v":"Swanzey"},null,{"$f":"$D$22","v":"Troy"},null,{"$f":"$D$23","v":"Walpole"},null,{"$f":"$D$24","v":"Westmoreland"},null,{"$f":"$D$25","v":"Winchester"}]
[null,null,null,null,"Estimate","Margin of Error","Estimate","Margin of Error","Estimate","Margin of Error","Estimate","Margin of Error","Estimate","Margin of Error","Estimate","Margin of Error","Estimate","Margin of Error","Estimate","Margin of Error","Estimate","Margin of Error","Estimate","Margin of Error","Estimate","Margin of Error","Estimate","Margin of Error","Estimate","Margin of Error","Estimate","Margin of Error","Estimate","Margin of Error","Estimate","Margin of Error","Estimate","Margin of Error","Estimate","Margin of Error","Estimate","Margin of Error","Estimate","Margin of Error","Estimate","Margin of Error","Estimate","Margin of Error","Estimate","Margin of Error"]
[null,null,null,"Estimate!!Total:",1599,169,3577,15,1617,217,2287,368,863,144,977,197,3965,16,5280,31,20239,48,2248,391,798,175,550,106,1102,251,5437,37,295,142,1205,162,681,130,950,245,7306,22,1889,275,3651,33,1971,342,4094,24]
[null,null,null,"Estimate!!Total:!!Owner occupied",1155,163,3174,273,1324,197,2192,365,799,140,894,191,3350,376,4313,457,11596,704,1589,362,668,143,515,101,1072,248,4820,275,292,143,1081,150,585,106,903,243,5317,506,1377,211,2672,330,1780,341,2743,386]
[null,null,null,"Estimate!!Total:!!Renter occupied",444,178,403,272,293,144,95,52,64,36,83,47,615,377,967,458,8643,706,659,260,130,108,35,21,30,25,617,277,3,5,124,72,96,62,47,21,1989,505,512,189,979,325,191,133,1351,383]

{"sheet":"SData_B25010AvgHHSizeByTenure","index":86,"n_rows":33,"n_cols":50,"rows_kept":33,"cut":false,"hidden":true,"merged":[]}
["GEO_ID","GEO_ID2","SUMLEVEL","GEO_NAME",{"$f":"[1]ACS_16_5YR_B25010_with_ann!D1","v":"B25010_001E"},{"$f":"[1]ACS_16_5YR_B25010_with_ann!E1","v":"B25010_001M"},{"$f":"[1]ACS_16_5YR_B25010_with_ann!F1","v":"B25010_002E"},{"$f":"[1]ACS_16_5YR_B25010_with_ann!G1","v":"B25010_002M"},{"$f":"[1]ACS_16_5YR_B25010_with_ann!H1","v":"B25010_003E"},{"$f":"[1]ACS_16_5YR_B25010_with_ann!I1","v":"B25010_003M"}]
["Geography Identifier","Geography Identifier","Geographic Summary Level","Geography",{"$f":"[1]ACS_16_5YR_B25010_with_ann!D2","v":"Estimate!!Average household size --!!Total:"},{"$f":"[1]ACS_16_5YR_B25010_with_ann!E2","v":"Margin of Error!!Average household size --!!Total:"},{"$f":"[1]ACS_16_5YR_B25010_with_ann!F2","v":"Estimate!!Average household size --!!Total:!!Owner occupied"},{"$f":"[1]ACS_16_5YR_B25010_with_ann!G2","v":"Margin of Error!!Average household size --!!Total:!!Owner occupied"},{"$f":"[1]ACS_16_5YR_B25010_with_ann!H2","v":"Estimate!!Average household size --!!Total:!!Renter occupied"},{"$f":"[1]ACS_16_5YR_B25010_with_ann!I2","v":"Margin of Error!!Average household size --!!Total:!!Renter occupied"}]
["06000US3300500820","0600000US3300512260","060",{"$f":"[1]ACS_16_5YR_B25010_with_ann!C44","v":"Alstead"},{"$f":"[1]ACS_16_5YR_B25010_with_ann!D44","v":2.21},{"$f":"[1]ACS_16_5YR_B25010_with_ann!E44","v":0.2},{"$f":"[1]ACS_16_5YR_B25010_with_ann!F44","v":2.2799999999999998},{"$f":"[1]ACS_16_5YR_B25010_with_ann!G44","v":0.2},{"$f":"[1]ACS_16_5YR_B25010_with_ann!H44","v":2.06},{"$f":"[1]ACS_16_5YR_B25010_with_ann!I44","v":0.54}]
["06000US3300512260","0600000US3300519140","060",{"$f":"[1]ACS_16_5YR_B25010_with_ann!C45","v":"Chesterfield"},{"$f":"[1]ACS_16_5YR_B25010_with_ann!D45","v":2.62},{"$f":"[1]ACS_16_5YR_B25010_with_ann!E45","v":0.3},{"$f":"[1]ACS_16_5YR_B25010_with_ann!F45","v":2.59},{"$f":"[1]ACS_16_5YR_B25010_with_ann!G45","v":0.3},{"$f":"[1]ACS_16_5YR_B25010_with_ann!H45","v":2.9},{"$f":"[1]ACS_16_5YR_B25010_with_ann!I45","v":1.05}]
["06000US3300519140","0600000US3300526500","060",{"$f":"[1]ACS_16_5YR_B25010_with_ann!C46","v":"Dublin"},{"$f":"[1]ACS_16_5YR_B25010_with_ann!D46","v":2.5499999999999998},{"$f":"[1]ACS_16_5YR_B25010_with_ann!E46","v":0.23},{"$f":"[1]ACS_16_5YR_B25010_with_ann!F46","v":2.5},{"$f":"[1]ACS_16_5YR_B25010_with_ann!G46","v":0.22},{"$f":"[1]ACS_16_5YR_B25010_with_ann!H46","v":2.79},{"$f":"[1]ACS_16_5YR_B25010_with_ann!I46","v":0.69}]
["06000US3300526500","0600000US3300529220","060",{"$f":"[1]ACS_16_5YR_B25010_with_ann!C47","v":"Fitzwilliam"},{"$f":"[1]ACS_16_5YR_B25010_with_ann!D47","v":2.2599999999999998},{"$f":"[1]ACS_16_5YR_B25010_with_ann!E47","v":0.17},{"$f":"[1]ACS_16_5YR_B25010_with_ann!F47","v":2.29},{"$f":"[1]ACS_16_5YR_B25010_with_ann!G47","v":0.18},{"$f":"[1]ACS_16_5YR_B25010_with_ann!H47","v":1.7},{"$f":"[1]ACS_16_5YR_B25010_with_ann!I47","v":0.36}]
["06000US3300529220","0600000US3300534420","060",{"$f":"[1]ACS_16_5YR_B25010_with_ann!C48","v":"Gilsum"},{"$f":"[1]ACS_16_5YR_B25010_with_ann!D48","v":2.78},{"$f":"[1]ACS_16_5YR_B25010_with_ann!E48","v":0.37},{"$f":"[1]ACS_16_5YR_B25010_with_ann!F48","v":2.8},{"$f":"[1]ACS_16_5YR_B25010_with_ann!G48","v":0.41},{"$f":"[1]ACS_16_5YR_B25010_with_ann!H48","v":2.56},{"$f":"[1]ACS_16_5YR_B25010_with_ann!I48","v":0.65}]
["06000US3300534420","0600000US3300536660","060",{"$f":"[1]ACS_16_5YR_B25010_with_ann!C49","v":"Harrisville"},{"$f":"[1]ACS_16_5YR_B25010_with_ann!D49","v":2.35},{"$f":"[1]ACS_16_5YR_B25010_with_ann!E49","v":0.23},{"$f":"[1]ACS_16_5YR_B25010_with_ann!F49","v":2.3199999999999998},{"$f":"[1]ACS_16_5YR_B25010_with_ann!G49","v":0.24},{"$f":"[1]ACS_16_5YR_B25010_with_ann!H49","v":2.77},{"$f":"[1]ACS_16_5YR_B25010_with_ann!I49","v":0.66}]
["06000US3300536660","0600000US3300538500","060",{"$f":"[1]ACS_16_5YR_B25010_with_ann!C50","v":"Hinsdale"},{"$f":"[1]ACS_16_5YR_B25010_with_ann!D50","v":2.4900000000000002},{"$f":"[1]ACS_16_5YR_B25010_with_ann!E50","v":0.22},{"$f":"[1]ACS_16_5YR_B25010_with_ann!F50","v":2.44},{"$f":"[1]ACS_16_5YR_B25010_with_ann!G50","v":0.26},{"$f":"[1]ACS_16_5YR_B25010_with_ann!H50","v":2.78},{"$f":"[1]ACS_16_5YR_B25010_with_ann!I50","v":0.85}]
["06000US3300538500","0600000US3300539300","060",{"$f":"[1]ACS_16_5YR_B25010_with_ann!C51","v":"Jaffrey"},{"$f":"[1]ACS_16_5YR_B25010_with_ann!D51","v":2.61},{"$f":"[1]ACS_16_5YR_B25010_with_ann!E51","v":0.28999999999999998},{"$f":"[1]ACS_16_5YR_B25010_with_ann!F51","v":2.73},{"$f":"[1]ACS_16_5YR_B25010_with_ann!G51","v":0.41},{"$f":"[1]ACS_16_5YR_B25010_with_ann!H51","v":2.17},{"$f":"[1]ACS_16_5YR_B25010_with_ann!I51","v":0.43}]
["06000US3300539300","0600000US3300545460","060",{"$f":"[1]ACS_16_5YR_B25010_with_ann!C52","v":"Keene"},{"$f":"[1]ACS_16_5YR_B25010_with_ann!D52","v":2.19},{"$f":"[1]ACS_16_5YR_B25010_with_ann!E52","v":0.09},{"$f":"[1]ACS_16_5YR_B25010_with_ann!F52","v":2.44},{"$f":"[1]ACS_16_5YR_B25010_with_ann!G52","v":0.12},{"$f":"[1]ACS_16_5YR_B25010_with_ann!H52","v":1.92},{"$f":"[1]ACS_16_5YR_B25010_with_ann!I52","v":0.13}]
["06000US3300545460","0600000US3300545700","060",{"$f":"[1]ACS_16_5YR_B25010_with_ann!C53","v":"Marlborough"},{"$f":"[1]ACS_16_5YR_B25010_with_ann!D53","v":2.39},{"$f":"[1]ACS_16_5YR_B25010_with_ann!E53","v":0.22},{"$f":"[1]ACS_16_5YR_B25010_with_ann!F53","v":2.61},{"$f":"[1]ACS_16_5YR_B25010_with_ann!G53","v":0.31},{"$f":"[1]ACS_16_5YR_B25010_with_ann!H53","v":1.97},{"$f":"[1]ACS_16_5YR_B25010_with_ann!I53","v":0.35}]
["06000US3300545700","0600000US3300550580","060",{"$f":"[1]ACS_16_5YR_B25010_with_ann!C54","v":"Marlow"},{"$f":"[1]ACS_16_5YR_B25010_with_ann!D54","v":2.54},{"$f":"[1]ACS_16_5YR_B25010_with_ann!E54","v":0.31},{"$f":"[1]ACS_16_5YR_B25010_with_ann!F54","v":2.39},{"$f":"[1]ACS_16_5YR_B25010_with_ann!G54","v":0.28000000000000003},{"$f":"[1]ACS_16_5YR_B25010_with_ann!H54","v":3.71},{"$f":"[1]ACS_16_5YR_B25010_with_ann!I54","v":1.43}]
["06000US3300550580","0600000US3300564420","060",{"$f":"[1]ACS_16_5YR_B25010_with_ann!C55","v":"Nelson"},{"$f":"[1]ACS_16_5YR_B25010_with_ann!D55","v":2.2400000000000002},{"$f":"[1]ACS_16_5YR_B25010_with_ann!E55","v":0.31},{"$f":"[1]ACS_16_5YR_B25010_with_ann!F55","v":2.29},{"$f":"[1]ACS_16_5YR_B25010_with_ann!G55","v":0.35},{"$f":"[1]ACS_16_5YR_B25010_with_ann!H55","v":1.67},{"$f":"[1]ACS_16_5YR_B25010_with_ann!I55","v":0.5}]
["06000US3300564420","0600000US3300564580","060",{"$f":"[1]ACS_16_5YR_B25010_with_ann!C56","v":"Richmond"},{"$f":"[1]ACS_16_5YR_B25010_with_ann!D56","v":2.8},{"$f":"[1]ACS_16_5YR_B25010_with_ann!E56","v":0.37},{"$f":"[1]ACS_16_5YR_B25010_with_ann!F56","v":2.8},{"$f":"[1]ACS_16_5YR_B25010_with_ann!G56","v":0.38},{"$f":"[1]ACS_16_5YR_B25010_with_ann!H56","v":3},{"$f":"[1]ACS_16_5YR_B25010_with_ann!I56","v":1.1000000000000001}]
["06000US3300564580","0600000US3300565700","060",{"$f":"[1]ACS_16_5YR_B25010_with_ann!C57","v":"Rindge"},{"$f":"[1]ACS_16_5YR_B25010_with_ann!D57","v":2.76},{"$f":"[1]ACS_16_5YR_B25010_with_ann!E57","v":0.2},{"$f":"[1]ACS_16_5YR_B25010_with_ann!F57","v":2.82},{"$f":"[1]ACS_16_5YR_B25010_with_ann!G57","v":0.23},{"$f":"[1]ACS_16_5YR_B25010_with_ann!H57","v":2.36},{"$f":"[1]ACS_16_5YR_B25010_with_ann!I57","v":0.81}]
["06000US3300565700","0600000US3300573700","060",{"$f":"[1]ACS_16_5YR_B25010_with_ann!C58","v":"Roxbury"},{"$f":"[1]ACS_16_5YR_B25010_with_ann!D58","v":3.11},{"$f":"[1]ACS_16_5YR_B25010_with_ann!E58","v":0.73},{"$f":"[1]ACS_16_5YR_B25010_with_ann!F58","v":3.11},{"$f":"[1]ACS_16_5YR_B25010_with_ann!G58","v":0.76},{"$f":"[1]ACS_16_5YR_B25010_with_ann!H58","v":3},{"$f":"[1]ACS_16_5YR_B25010_with_ann!I58","v":3.34}]
["06000US3300573700","0600000US3300574900","060",{"$f":"[1]ACS_16_5YR_B25010_with_ann!C59","v":"Stoddard"},{"$f":"[1]ACS_16_5YR_B25010_with_ann!D59","v":2.76},{"$f":"[1]ACS_16_5YR_B25010_with_ann!E59","v":0.25},{"$f":"[1]ACS_16_5YR_B25010_with_ann!F59","v":2.67},{"$f":"[1]ACS_16_5YR_B25010_with_ann!G59","v":0.26},{"$f":"[1]ACS_16_5YR_B25010_with_ann!H59","v":4},{"$f":"[1]ACS_16_5YR_B25010_with_ann!I59","v":0.97}]
["06000US3300574900","0600000US3300575300","060",{"$f":"[1]ACS_16_5YR_B25010_with_ann!C60","v":"Sullivan"},{"$f":"[1]ACS_16_5YR_B25010_with_ann!D60","v":2.42},{"$f":"[1]ACS_16_5YR_B25010_with_ann!E60","v":0.2},{"$f":"[1]ACS_16_5YR_B25010_with_ann!F60","v":2.44},{"$f":"[1]ACS_16_5YR_B25010_with_ann!G60","v":0.23},{"$f":"[1]ACS_16_5YR_B25010_with_ann!H60","v":2.34},{"$f":"[1]ACS_16_5YR_B25010_with_ann!I60","v":0.6}]
["06000US3300575300","0600000US3300575700","060",{"$f":"[1]ACS_16_5YR_B25010_with_ann!C61","v":"Surry"},{"$f":"[1]ACS_16_5YR_B25010_with_ann!D61","v":2.76},{"$f":"[1]ACS_16_5YR_B25010_with_ann!E61","v":0.52},{"$f":"[1]ACS_16_5YR_B25010_with_ann!F61","v":2.79},{"$f":"[1]ACS_16_5YR_B25010_with_ann!G61","v":0.54},{"$f":"[1]ACS_16_5YR_B25010_with_ann!H61","v":2.35},{"$f":"[1]ACS_16_5YR_B25010_with_ann!I61","v":0.53}]
["06000US3300575700","0600000US3300577380","060",{"$f":"[1]ACS_16_5YR_B25010_with_ann!C62","v":"Swanzey"},{"$f":"[1]ACS_16_5YR_B25010_with_ann!D62","v":2.2400000000000002},{"$f":"[1]ACS_16_5YR_B25010_with_ann!E62","v":0.12},{"$f":"[1]ACS_16_5YR_B25010_with_ann!F62","v":2.38},{"$f":"[1]ACS_16_5YR_B25010_with_ann!G62","v":0.16},{"$f":"[1]ACS_16_5YR_B25010_with_ann!H62","v":1.95},{"$f":"[1]ACS_16_5YR_B25010_with_ann!I62","v":0.23}]
["06000US3300577380","0600000US3300578420","060",{"$f":"[1]ACS_16_5YR_B25010_with_ann!C63","v":"Troy"},{"$f":"[1]ACS_16_5YR_B25010_with_ann!D63","v":2.4900000000000002},{"$f":"[1]ACS_16_5YR_B25010_with_ann!E63","v":0.21},{"$f":"[1]ACS_16_5YR_B25010_with_ann!F63","v":2.62},{"$f":"[1]ACS_16_5YR_B25010_with_ann!G63","v":0.25},{"$f":"[1]ACS_16_5YR_B25010_with_ann!H63","v":2.2000000000000002},{"$f":"[1]ACS_16_5YR_B25010_with_ann!I63","v":0.36}]
["06000US3300578420","0600000US3300582660","060",{"$f":"[1]ACS_16_5YR_B25010_with_ann!C64","v":"Walpole"},{"$f":"[1]ACS_16_5YR_B25010_with_ann!D64","v":2.56},{"$f":"[1]ACS_16_5YR_B25010_with_ann!E64","v":0.22},{"$f":"[1]ACS_16_5YR_B25010_with_ann!F64","v":2.83},{"$f":"[1]ACS_16_5YR_B25010_with_ann!G64","v":0.32},{"$f":"[1]ACS_16_5YR_B25010_with_ann!H64","v":2.0299999999999998},{"$f":"[1]ACS_16_5YR_B25010_with_ann!I64","v":0.41}]
["06000US3300582660","0600000US3300585540","060",{"$f":"[1]ACS_16_5YR_B25010_with_ann!C65","v":"Westmoreland"},{"$f":"[1]ACS_16_5YR_B25010_with_ann!D65","v":2.23},{"$f":"[1]ACS_16_5YR_B25010_with_ann!E65","v":0.27},{"$f":"[1]ACS_16_5YR_B25010_with_ann!F65","v":2.2599999999999998},{"$f":"[1]ACS_16_5YR_B25010_with_ann!G65","v":0.24},{"$f":"[1]ACS_16_5YR_B25010_with_ann!H65","v":1.95},{"$f":"[1]ACS_16_5YR_B25010_with_ann!I65","v":1.07}]
["06000US3300585540","0600000US3300500820","060",{"$f":"[1]ACS_16_5YR_B25010_with_ann!C66","v":"Winchester"},{"$f":"[1]ACS_16_5YR_B25010_with_ann!D66","v":2.5299999999999998},{"$f":"[1]ACS_16_5YR_B25010_with_ann!E66","v":0.23},{"$f":"[1]ACS_16_5YR_B25010_with_ann!F66","v":2.61},{"$f":"[1]ACS_16_5YR_B25010_with_ann!G66","v":0.31},{"$f":"[1]ACS_16_5YR_B25010_with_ann!H66","v":2.39},{"$f":"[1]ACS_16_5YR_B25010_with_ann!I66","v":0.42}]
[]
[]
[null,null,null,null,null,null,null,null,null,null,null,null,null,null,null,null,null,null,null,null,null,null,null,null,null,null,null,null,null,null,null,null,null,null,null,null,null,null,null,null,null,null,{"$f":"$D$22","v":"Troy"},null,{"$f":"$D$23","v":"Walpole"},null,{"$f":"$D$24","v":"Westmoreland"},null,{"$f":"$D$25","v":"Winchester"}]
[null,null,null,null,{"$f":"$D$3","v":"Alstead"},null,{"$f":"$D$4","v":"Chesterfield"},null,{"$f":"$D$5","v":"Dublin"},null,{"$f":"$D$6","v":"Fitzwilliam"},null,{"$f":"$D$7","v":"Gilsum"},null,{"$f":"$D$8","v":"Harrisville"},null,{"$f":"$D$9","v":"Hinsdale"},null,{"$f":"$D$10","v":"Jaffrey"},null,{"$f":"$D$11","v":"Keene"},null,{"$f":"$D$12","v":"Marlborough"},null,{"$f":"$D$13","v":"Marlow"},null,{"$f":"$D$14","v":"Nelson"},null,{"$f":"$D$15","v":"Richmond"},null,{"$f":"$D$16","v":"Rindge"},null,{"$f":"$D$17","v":"Roxbury"},null,{"$f":"$D$18","v":"Stoddard"},null,{"$f":"$D$19","v":"Sullivan"},null,{"$f":"$D$20","v":"Surry"},null,{"$f":"$D$21","v":"Swanzey"},null,{"$f":"$D$21","v":"Swanzey"},null,{"$f":"$D$21","v":"Swanzey"},null,{"$f":"$D$21","v":"Swanzey"},null,{"$f":"$D$21","v":"Swanzey"}]
[null,null,null,null,"Estimate","Margin of Error","Estimate","Margin of Error","Estimate","Margin of Error","Estimate","Margin of Error","Estimate","Margin of Error","Estimate","Margin of Error","Estimate","Margin of Error","Estimate","Margin of Error","Estimate","Margin of Error","Estimate","Margin of Error","Estimate","Margin of Error","Estimate","Margin of Error","Estimate","Margin of Error","Estimate","Margin of Error","Estimate","Margin of Error","Estimate","Margin of Error","Estimate","Margin of Error","Estimate","Margin of Error","Estimate","Margin of Error"]
[null,null,null,"Estimate!!Average household size --!!Total:",2.21,0.2,2.62,0.3,2.5499999999999998,0.23,2.2599999999999998,0.17,2.78,0.37,2.35,0.23,2.4900000000000002,0.22,2.61,0.28999999999999998,2.19,0.09,2.39,0.22,2.54,0.31,2.2400000000000002,0.31,2.8,0.37,2.76,0.2,3.11,0.73,2.76,0.25,2.42,0.2,2.76,0.52,2.2400000000000002,0.12,2.4900000000000002,0.21,2.56,0.22,2.23,0.27,2.5299999999999998,0.23]
[null,null,null,"Estimate!!Average household size --!!Total:!!Owner occupied",2.2799999999999998,0.2,2.59,0.3,2.5,0.22,2.29,0.18,2.8,0.41,2.3199999999999998,0.24,2.44,0.26,2.73,0.41,2.44,0.12,2.61,0.31,2.39,0.28000000000000003,2.29,0.35,2.8,0.38,2.82,0.23,3.11,0.76,2.67,0.26,2.44,0.23,2.79,0.54,2.38,0.16,2.62,0.25,2.83,0.32,2.2599999999999998,0.24,2.61,0.31]
[null,null,null,"Estimate!!Average household size --!!Total:!!Renter occupied",2.06,0.54,2.9,1.05,2.79,0.69,1.7,0.36,2.56,0.65,2.77,0.66,2.78,0.85,2.17,0.43,1.92,0.13,1.97,0.35,3.71,1.43,1.67,0.5,3,1.1000000000000001,2.36,0.81,3,3.34,4,0.97,2.34,0.6,2.35,0.53,1.95,0.23,2.2000000000000002,0.36,2.0299999999999998,0.41,1.95,1.07,2.39,0.42]

{"sheet":"SData_B25024","index":87,"n_rows":41,"n_cols":50,"rows_kept":41,"cut":false,"hidden":true,"merged":[]}
["GEO_ID","GEO_ID2","SUMLEVEL","GEO_NAME",{"$f":"[1]ACS_16_5YR_B25024_with_ann!D1","v":"B25024_001E"},{"$f":"[1]ACS_16_5YR_B25024_with_ann!E1","v":"B25024_001M"},{"$f":"[1]ACS_16_5YR_B25024_with_ann!F1","v":"B25024_002E"},{"$f":"[1]ACS_16_5YR_B25024_with_ann!G1","v":"B25024_002M"},{"$f":"[1]ACS_16_5YR_B25024_with_ann!H1","v":"B25024_003E"},{"$f":"[1]ACS_16_5YR_B25024_with_ann!I1","v":"B25024_003M"},{"$f":"[1]ACS_16_5YR_B25024_with_ann!J1","v":"B25024_004E"},{"$f":"[1]ACS_16_5YR_B25024_with_ann!K1","v":"B25024_004M"},{"$f":"[1]ACS_16_5YR_B25024_with_ann!L1","v":"B25024_005E"},{"$f":"[1]ACS_16_5YR_B25024_with_ann!M1","v":"B25024_005M"},{"$f":"[1]ACS_16_5YR_B25024_with_ann!N1","v":"B25024_006E"},{"$f":"[1]ACS_16_5YR_B25024_with_ann!O1","v":"B25024_006M"},{"$f":"[1]ACS_16_5YR_B25024_with_ann!P1","v":"B25024_007E"},{"$f":"[1]ACS_16_5YR_B25024_with_ann!Q1","v":"B25024_007M"},{"$f":"[1]ACS_16_5YR_B25024_with_ann!R1","v":"B25024_008E"},{"$f":"[1]ACS_16_5YR_B25024_with_ann!S1","v":"B25024_008M"},{"$f":"[1]ACS_16_5YR_B25024_with_ann!T1","v":"B25024_009E"},{"$f":"[1]ACS_16_5YR_B25024_with_ann!U1","v":"B25024_009M"},{"$f":"[1]ACS_16_5YR_B25024_with_ann!V1","v":"B25024_010E"},{"$f":"[1]ACS_16_5YR_B25024_with_ann!W1","v":"B25024_010M"},{"$f":"[1]ACS_16_5YR_B25024_with_ann!X1","v":"B25024_011E"},{"$f":"[1]ACS_16_5YR_B25024_with_ann!Y1","v":"B25024_011M"}]
["Geography Identifier","Geography Identifier","Geographic Summary Level","Geography",{"$f":"[1]ACS_16_5YR_B25024_with_ann!D2","v":"Estimate!!Total:"},{"$f":"[1]ACS_16_5YR_B25024_with_ann!E2","v":"Margin of Error!!Total:"},{"$f":"[1]ACS_16_5YR_B25024_with_ann!F2","v":"Estimate!!Total:!!1"},{"$f":"[1]ACS_16_5YR_B25024_with_ann!G2","v":"Margin of Error!!Total:!!1"},{"$f":"[1]ACS_16_5YR_B25024_with_ann!H2","v":"Estimate!!Total:!!1"},{"$f":"[1]ACS_16_5YR_B25024_with_ann!I2","v":"Margin of Error!!Total:!!1"},{"$f":"[1]ACS_16_5YR_B25024_with_ann!J2","v":"Estimate!!Total:!!2"},{"$f":"[1]ACS_16_5YR_B25024_with_ann!K2","v":"Margin of Error!!Total:!!2"},{"$f":"[1]ACS_16_5YR_B25024_with_ann!L2","v":"Estimate!!Total:!!3 or 4"},{"$f":"[1]ACS_16_5YR_B25024_with_ann!M2","v":"Margin of Error!!Total:!!3 or 4"},{"$f":"[1]ACS_16_5YR_B25024_with_ann!N2","v":"Estimate!!Total:!!5 to 9"},{"$f":"[1]ACS_16_5YR_B25024_with_ann!O2","v":"Margin of Error!!Total:!!5 to 9"},{"$f":"[1]ACS_16_5YR_B25024_with_ann!P2","v":"Estimate!!Total:!!10 to 19"},{"$f":"[1]ACS_16_5YR_B25024_with_ann!Q2","v":"Margin of Error!!Total:!!10 to 19"},{"$f":"[1]ACS_16_5YR_B25024_with_ann!R2","v":"Estimate!!Total:!!20 to 49"},{"$f":"[1]ACS_16_5YR_B25024_with_ann!S2","v":"Margin of Error!!Total:!!20 to 49"},{"$f":"[1]ACS_16_5YR_B25024_with_ann!T2","v":"Estimate!!Total:!!50 or more"},{"$f":"[1]ACS_16_5YR_B25024_with_ann!U2","v":"Margin of Error!!Total:!!50 or more"},{"$f":"[1]ACS_16_5YR_B25024_with_ann!V2","v":"Estimate!!Total:!!Mobile home"},{"$f":"[1]ACS_16_5YR_B25024_with_ann!W2","v":"Margin of Error!!Total:!!Mobile home"},{"$f":"[1]ACS_16_5YR_B25024_with_ann!X2","v":"Estimate!!Total:!!Boat, RV, van, etc."},{"$f":"[1]ACS_16_5YR_B25024_with_ann!Y2","v":"Margin of Error!!Total:!!Boat, RV, van, etc."}]
["06000US3300500820","0600000US3300512260","060",{"$f":"[1]ACS_16_5YR_B25024_with_ann!C44","v":"Alstead"},{"$f":"[1]ACS_16_5YR_B25024_with_ann!D44","v":986},{"$f":"[1]ACS_16_5YR_B25024_with_ann!E44","v":109},{"$f":"[1]ACS_16_5YR_B25024_with_ann!F44","v":708},{"$f":"[1]ACS_16_5YR_B25024_with_ann!G44","v":110},{"$f":"[1]ACS_16_5YR_B25024_with_ann!H44","v":5},{"$f":"[1]ACS_16_5YR_B25024_with_ann!I44","v":7},{"$f":"[1]ACS_16_5YR_B25024_with_ann!J44","v":53},{"$f":"[1]ACS_16_5YR_B25024_with_ann!K44","v":40},{"$f":"[1]ACS_16_5YR_B25024_with_ann!L44","v":40},{"$f":"[1]ACS_16_5YR_B25024_with_ann!M44","v":38},{"$f":"[1]ACS_16_5YR_B25024_with_ann!N44","v":17},{"$f":"[1]ACS_16_5YR_B25024_with_ann!O44","v":26},{"$f":"[1]ACS_16_5YR_B25024_with_ann!P44","v":0},{"$f":"[1]ACS_16_5YR_B25024_with_ann!Q44","v":12},{"$f":"[1]ACS_16_5YR_B25024_with_ann!R44","v":55},{"$f":"[1]ACS_16_5YR_B25024_with_ann!S44","v":54},{"$f":"[1]ACS_16_5YR_B25024_with_ann!T44","v":0},{"$f":"[1]ACS_16_5YR_B25024_with_ann!U44","v":12},{"$f":"[1]ACS_16_5YR_B25024_with_ann!V44","v":108},{"$f":"[1]ACS_16_5YR_B25024_with_ann!W44","v":46},{"$f":"[1]ACS_16_5YR_B25024_with_ann!X44","v":0},{"$f":"[1]ACS_16_5YR_B25024_with_ann!Y44","v":12}]
["06000US3300512260","0600000US3300519140","060",{"$f":"[1]ACS_16_5YR_B25024_with_ann!C45","v":"Chesterfield"},{"$f":"[1]ACS_16_5YR_B25024_with_ann!D45","v":1792},{"$f":"[1]ACS_16_5YR_B25024_with_ann!E45","v":170},{"$f":"[1]ACS_16_5YR_B25024_with_ann!F45","v":1733},{"$f":"[1]ACS_16_5YR_B25024_with_ann!G45","v":184},{"$f":"[1]ACS_16_5YR_B25024_with_ann!H45","v":0},{"$f":"[1]ACS_16_5YR_B25024_with_ann!I45","v":12},{"$f":"[1]ACS_16_5YR_B25024_with_ann!J45","v":10},{"$f":"[1]ACS_16_5YR_B25024_with_ann!K45","v":16},{"$f":"[1]ACS_16_5YR_B25024_with_ann!L45","v":29},{"$f":"[1]ACS_16_5YR_B25024_with_ann!M45","v":38},{"$f":"[1]ACS_16_5YR_B25024_with_ann!N45","v":0},{"$f":"[1]ACS_16_5YR_B25024_with_ann!O45","v":12},{"$f":"[1]ACS_16_5YR_B25024_with_ann!P45","v":0},{"$f":"[1]ACS_16_5YR_B25024_with_ann!Q45","v":12},{"$f":"[1]ACS_16_5YR_B25024_with_ann!R45","v":0},{"$f":"[1]ACS_16_5YR_B25024_with_ann!S45","v":12},{"$f":"[1]ACS_16_5YR_B25024_with_ann!T45","v":0},{"$f":"[1]ACS_16_5YR_B25024_with_ann!U45","v":12},{"$f":"[1]ACS_16_5YR_B25024_with_ann!V45","v":20},{"$f":"[1]ACS_16_5YR_B25024_with_ann!W45","v":30},{"$f":"[1]ACS_16_5YR_B25024_with_ann!X45","v":0},{"$f":"[1]ACS_16_5YR_B25024_with_ann!Y45","v":12}]
["06000US3300519140","0600000US3300526500","060",{"$f":"[1]ACS_16_5YR_B25024_with_ann!C46","v":"Dublin"},{"$f":"[1]ACS_16_5YR_B25024_with_ann!D46","v":797},{"$f":"[1]ACS_16_5YR_B25024_with_ann!E46","v":112},{"$f":"[1]ACS_16_5YR_B25024_with_ann!F46","v":742},{"$f":"[1]ACS_16_5YR_B25024_with_ann!G46","v":110},{"$f":"[1]ACS_16_5YR_B25024_with_ann!H46","v":13},{"$f":"[1]ACS_16_5YR_B25024_with_ann!I46","v":10},{"$f":"[1]ACS_16_5YR_B25024_with_ann!J46","v":3},{"$f":"[1]ACS_16_5YR_B25024_with_ann!K46","v":4},{"$f":"[1]ACS_16_5YR_B25024_with_ann!L46","v":19},{"$f":"[1]ACS_16_5YR_B25024_with_ann!M46","v":12},{"$f":"[1]ACS_16_5YR_B25024_with_ann!N46","v":0},{"$f":"[1]ACS_16_5YR_B25024_with_ann!O46","v":12},{"$f":"[1]ACS_16_5YR_B25024_with_ann!P46","v":0},{"$f":"[1]ACS_16_5YR_B25024_with_ann!Q46","v":12},{"$f":"[1]ACS_16_5YR_B25024_with_ann!R46","v":8},{"$f":"[1]ACS_16_5YR_B25024_with_ann!S46","v":10},{"$f":"[1]ACS_16_5YR_B25024_with_ann!T46","v":0},{"$f":"[1]ACS_16_5YR_B25024_with_ann!U46","v":12},{"$f":"[1]ACS_16_5YR_B25024_with_ann!V46","v":12},{"$f":"[1]ACS_16_5YR_B25024_with_ann!W46","v":14},{"$f":"[1]ACS_16_5YR_B25024_with_ann!X46","v":0},{"$f":"[1]ACS_16_5YR_B25024_with_ann!Y46","v":12}]
["06000US3300526500","0600000US3300529220","060",{"$f":"[1]ACS_16_5YR_B25024_with_ann!C47","v":"Fitzwilliam"},{"$f":"[1]ACS_16_5YR_B25024_with_ann!D47","v":1317},{"$f":"[1]ACS_16_5YR_B25024_with_ann!E47","v":149},{"$f":"[1]ACS_16_5YR_B25024_with_ann!F47","v":1109},{"$f":"[1]ACS_16_5YR_B25024_with_ann!G47","v":124},{"$f":"[1]ACS_16_5YR_B25024_with_ann!H47","v":0},{"$f":"[1]ACS_16_5YR_B25024_with_ann!I47","v":12},{"$f":"[1]ACS_16_5YR_B25024_with_ann!J47","v":59},{"$f":"[1]ACS_16_5YR_B25024_with_ann!K47","v":42},{"$f":"[1]ACS_16_5YR_B25024_with_ann!L47","v":0},{"$f":"[1]ACS_16_5YR_B25024_with_ann!M47","v":12},{"$f":"[1]ACS_16_5YR_B25024_with_ann!N47","v":0},{"$f":"[1]ACS_16_5YR_B25024_with_ann!O47","v":12},{"$f":"[1]ACS_16_5YR_B25024_with_ann!P47","v":0},{"$f":"[1]ACS_16_5YR_B25024_with_ann!Q47","v":12},{"$f":"[1]ACS_16_5YR_B25024_with_ann!R47","v":0},{"$f":"[1]ACS_16_5YR_B25024_with_ann!S47","v":12},{"$f":"[1]ACS_16_5YR_B25024_with_ann!T47","v":0},{"$f":"[1]ACS_16_5YR_B25024_with_ann!U47","v":12},{"$f":"[1]ACS_16_5YR_B25024_with_ann!V47","v":149},{"$f":"[1]ACS_16_5YR_B25024_with_ann!W47","v":105},{"$f":"[1]ACS_16_5YR_B25024_with_ann!X47","v":0},{"$f":"[1]ACS_16_5YR_B25024_with_ann!Y47","v":12}]
["06000US3300529220","0600000US3300534420","060",{"$f":"[1]ACS_16_5YR_B25024_with_ann!C48","v":"Gilsum"},{"$f":"[1]ACS_16_5YR_B25024_with_ann!D48","v":360},{"$f":"[1]ACS_16_5YR_B25024_with_ann!E48","v":57},{"$f":"[1]ACS_16_5YR_B25024_with_ann!F48","v":319},{"$f":"[1]ACS_16_5YR_B25024_with_ann!G48","v":60},{"$f":"[1]ACS_16_5YR_B25024_with_ann!H48","v":2},{"$f":"[1]ACS_16_5YR_B25024_with_ann!I48","v":5},{"$f":"[1]ACS_16_5YR_B25024_with_ann!J48","v":17},{"$f":"[1]ACS_16_5YR_B25024_with_ann!K48","v":12},{"$f":"[1]ACS_16_5YR_B25024_with_ann!L48","v":0},{"$f":"[1]ACS_16_5YR_B25024_with_ann!M48","v":12},{"$f":"[1]ACS_16_5YR_B25024_with_ann!N48","v":0},{"$f":"[1]ACS_16_5YR_B25024_with_ann!O48","v":12},{"$f":"[1]ACS_16_5YR_B25024_with_ann!P48","v":0},{"$f":"[1]ACS_16_5YR_B25024_with_ann!Q48","v":12},{"$f":"[1]ACS_16_5YR_B25024_with_ann!R48","v":0},{"$f":"[1]ACS_16_5YR_B25024_with_ann!S48","v":12},{"$f":"[1]ACS_16_5YR_B25024_with_ann!T48","v":0},{"$f":"[1]ACS_16_5YR_B25024_with_ann!U48","v":12},{"$f":"[1]ACS_16_5YR_B25024_with_ann!V48","v":22},{"$f":"[1]ACS_16_5YR_B25024_with_ann!W48","v":14},{"$f":"[1]ACS_16_5YR_B25024_with_ann!X48","v":0},{"$f":"[1]ACS_16_5YR_B25024_with_ann!Y48","v":12}]
["06000US3300534420","0600000US3300536660","060",{"$f":"[1]ACS_16_5YR_B25024_with_ann!C49","v":"Harrisville"},{"$f":"[1]ACS_16_5YR_B25024_with_ann!D49","v":690},{"$f":"[1]ACS_16_5YR_B25024_with_ann!E49","v":92},{"$f":"[1]ACS_16_5YR_B25024_with_ann!F49","v":645},{"$f":"[1]ACS_16_5YR_B25024_with_ann!G49","v":96},{"$f":"[1]ACS_16_5YR_B25024_with_ann!H49","v":4},{"$f":"[1]ACS_16_5YR_B25024_with_ann!I49","v":5},{"$f":"[1]ACS_16_5YR_B25024_with_ann!J49","v":3},{"$f":"[1]ACS_16_5YR_B25024_with_ann!K49","v":4},{"$f":"[1]ACS_16_5YR_B25024_with_ann!L49","v":3},{"$f":"[1]ACS_16_5YR_B25024_with_ann!M49","v":4},{"$f":"[1]ACS_16_5YR_B25024_with_ann!N49","v":0},{"$f":"[1]ACS_16_5YR_B25024_with_ann!O49","v":12},{"$f":"[1]ACS_16_5YR_B25024_with_ann!P49","v":0},{"$f":"[1]ACS_16_5YR_B25024_with_ann!Q49","v":12},{"$f":"[1]ACS_16_5YR_B25024_with_ann!R49","v":0},{"$f":"[1]ACS_16_5YR_B25024_with_ann!S49","v":12},{"$f":"[1]ACS_16_5YR_B25024_with_ann!T49","v":0},{"$f":"[1]ACS_16_5YR_B25024_with_ann!U49","v":12},{"$f":"[1]ACS_16_5YR_B25024_with_ann!V49","v":35},{"$f":"[1]ACS_16_5YR_B25024_with_ann!W49","v":23},{"$f":"[1]ACS_16_5YR_B25024_with_ann!X49","v":0},{"$f":"[1]ACS_16_5YR_B25024_with_ann!Y49","v":12}]
["06000US3300536660","0600000US3300538500","060",{"$f":"[1]ACS_16_5YR_B25024_with_ann!C50","v":"Hinsdale"},{"$f":"[1]ACS_16_5YR_B25024_with_ann!D50","v":1789},{"$f":"[1]ACS_16_5YR_B25024_with_ann!E50","v":178},{"$f":"[1]ACS_16_5YR_B25024_with_ann!F50","v":1028},{"$f":"[1]ACS_16_5YR_B25024_with_ann!G50","v":222},{"$f":"[1]ACS_16_5YR_B25024_with_ann!H50","v":28},{"$f":"[1]ACS_16_5YR_B25024_with_ann!I50","v":30},{"$f":"[1]ACS_16_5YR_B25024_with_ann!J50","v":118},{"$f":"[1]ACS_16_5YR_B25024_with_ann!K50","v":148},{"$f":"[1]ACS_16_5YR_B25024_with_ann!L50","v":77},{"$f":"[1]ACS_16_5YR_B25024_with_ann!M50","v":66},{"$f":"[1]ACS_16_5YR_B25024_with_ann!N50","v":29},{"$f":"[1]ACS_16_5YR_B25024_with_ann!O50","v":47},{"$f":"[1]ACS_16_5YR_B25024_with_ann!P50","v":0},{"$f":"[1]ACS_16_5YR_B25024_with_ann!Q50","v":12},{"$f":"[1]ACS_16_5YR_B25024_with_ann!R50","v":14},{"$f":"[1]ACS_16_5YR_B25024_with_ann!S50","v":22},{"$f":"[1]ACS_16_5YR_B25024_with_ann!T50","v":0},{"$f":"[1]ACS_16_5YR_B25024_with_ann!U50","v":12},{"$f":"[1]ACS_16_5YR_B25024_with_ann!V50","v":495},{"$f":"[1]ACS_16_5YR_B25024_with_ann!W50","v":125},{"$f":"[1]ACS_16_5YR_B25024_with_ann!X50","v":0},{"$f":"[1]ACS_16_5YR_B25024_with_ann!Y50","v":12}]
["06000US3300538500","0600000US3300539300","060",{"$f":"[1]ACS_16_5YR_B25024_with_ann!C51","v":"Jaffrey"},{"$f":"[1]ACS_16_5YR_B25024_with_ann!D51","v":2474},{"$f":"[1]ACS_16_5YR_B25024_with_ann!E51","v":208},{"$f":"[1]ACS_16_5YR_B25024_with_ann!F51","v":2084},{"$f":"[1]ACS_16_5YR_B25024_with_ann!G51","v":244},{"$f":"[1]ACS_16_5YR_B25024_with_ann!H51","v":49},{"$f":"[1]ACS_16_5YR_B25024_with_ann!I51","v":74},{"$f":"[1]ACS_16_5YR_B25024_with_ann!J51","v":52},{"$f":"[1]ACS_16_5YR_B25024_with_ann!K51","v":51},{"$f":"[1]ACS_16_5YR_B25024_with_ann!L51","v":46},{"$f":"[1]ACS_16_5YR_B25024_with_ann!M51","v":45},{"$f":"[1]ACS_16_5YR_B25024_with_ann!N51","v":95},{"$f":"[1]ACS_16_5YR_B25024_with_ann!O51","v":70},{"$f":"[1]ACS_16_5YR_B25024_with_ann!P51","v":57},{"$f":"[1]ACS_16_5YR_B25024_with_ann!Q51","v":69},{"$f":"[1]ACS_16_5YR_B25024_with_ann!R51","v":44},{"$f":"[1]ACS_16_5YR_B25024_with_ann!S51","v":42},{"$f":"[1]ACS_16_5YR_B25024_with_ann!T51","v":0},{"$f":"[1]ACS_16_5YR_B25024_with_ann!U51","v":17},{"$f":"[1]ACS_16_5YR_B25024_with_ann!V51","v":47},{"$f":"[1]ACS_16_5YR_B25024_with_ann!W51","v":49},{"$f":"[1]ACS_16_5YR_B25024_with_ann!X51","v":0},{"$f":"[1]ACS_16_5YR_B25024_with_ann!Y51","v":17}]
["06000US3300539300","0600000US3300545460","060",{"$f":"[1]ACS_16_5YR_B25024_with_ann!C52","v":"Keene"},{"$f":"[1]ACS_16_5YR_B25024_with_ann!D52","v":10313},{"$f":"[1]ACS_16_5YR_B25024_with_ann!E52","v":317},{"$f":"[1]ACS_16_5YR_B25024_with_ann!F52","v":4863},{"$f":"[1]ACS_16_5YR_B25024_with_ann!G52","v":322},{"$f":"[1]ACS_16_5YR_B25024_with_ann!H52","v":499},{"$f":"[1]ACS_16_5YR_B25024_with_ann!I52","v":199},{"$f":"[1]ACS_16_5YR_B25024_with_ann!J52","v":1235},{"$f":"[1]ACS_16_5YR_B25024_with_ann!K52","v":290},{"$f":"[1]ACS_16_5YR_B25024_with_ann!L52","v":669},{"$f":"[1]ACS_16_5YR_B25024_with_ann!M52","v":191},{"$f":"[1]ACS_16_5YR_B25024_with_ann!N52","v":891},{"$f":"[1]ACS_16_5YR_B25024_with_ann!O52","v":188},{"$f":"[1]ACS_16_5YR_B25024_with_ann!P52","v":631},{"$f":"[1]ACS_16_5YR_B25024_with_ann!Q52","v":194},{"$f":"[1]ACS_16_5YR_B25024_with_ann!R52","v":629},{"$f":"[1]ACS_16_5YR_B25024_with_ann!S52","v":222},{"$f":"[1]ACS_16_5YR_B25024_with_ann!T52","v":504},{"$f":"[1]ACS_16_5YR_B25024_with_ann!U52","v":181},{"$f":"[1]ACS_16_5YR_B25024_with_ann!V52","v":392},{"$f":"[1]ACS_16_5YR_B25024_with_ann!W52","v":160},{"$f":"[1]ACS_16_5YR_B25024_with_ann!X52","v":0},{"$f":"[1]ACS_16_5YR_B25024_with_ann!Y52","v":22}]
["06000US3300545460","0600000US3300545700","060",{"$f":"[1]ACS_16_5YR_B25024_with_ann!C53","v":"Marlborough"},{"$f":"[1]ACS_16_5YR_B25024_with_ann!D53","v":1009},{"$f":"[1]ACS_16_5YR_B25024_with_ann!E53","v":129},{"$f":"[1]ACS_16_5YR_B25024_with_ann!F53","v":645},{"$f":"[1]ACS_16_5YR_B25024_with_ann!G53","v":110},{"$f":"[1]ACS_16_5YR_B25024_with_ann!H53","v":18},{"$f":"[1]ACS_16_5YR_B25024_with_ann!I53","v":15},{"$f":"[1]ACS_16_5YR_B25024_with_ann!J53","v":85},{"$f":"[1]ACS_16_5YR_B25024_with_ann!K53","v":49},{"$f":"[1]ACS_16_5YR_B25024_with_ann!L53","v":86},{"$f":"[1]ACS_16_5YR_B25024_with_ann!M53","v":52},{"$f":"[1]ACS_16_5YR_B25024_with_ann!N53","v":70},{"$f":"[1]ACS_16_5YR_B25024_with_ann!O53","v":33},{"$f":"[1]ACS_16_5YR_B25024_with_ann!P53","v":5},{"$f":"[1]ACS_16_5YR_B25024_with_ann!Q53","v":8},{"$f":"[1]ACS_16_5YR_B25024_with_ann!R53","v":73},{"$f":"[1]ACS_16_5YR_B25024_with_ann!S53","v":25},{"$f":"[1]ACS_16_5YR_B25024_with_ann!T53","v":0},{"$f":"[1]ACS_16_5YR_B25024_with_ann!U53","v":12},{"$f":"[1]ACS_16_5YR_B25024_with_ann!V53","v":27},{"$f":"[1]ACS_16_5YR_B25024_with_ann!W53","v":17},{"$f":"[1]ACS_16_5YR_B25024_with_ann!X53","v":0},{"$f":"[1]ACS_16_5YR_B25024_with_ann!Y53","v":12}]
["06000US3300545700","0600000US3300550580","060",{"$f":"[1]ACS_16_5YR_B25024_with_ann!C54","v":"Marlow"},{"$f":"[1]ACS_16_5YR_B25024_with_ann!D54","v":417},{"$f":"[1]ACS_16_5YR_B25024_with_ann!E54","v":72},{"$f":"[1]ACS_16_5YR_B25024_with_ann!F54","v":384},{"$f":"[1]ACS_16_5YR_B25024_with_ann!G54","v":65},{"$f":"[1]ACS_16_5YR_B25024_with_ann!H54","v":10},{"$f":"[1]ACS_16_5YR_B25024_with_ann!I54","v":17},{"$f":"[1]ACS_16_5YR_B25024_with_ann!J54","v":0},{"$f":"[1]ACS_16_5YR_B25024_with_ann!K54","v":12},{"$f":"[1]ACS_16_5YR_B25024_with_ann!L54","v":0},{"$f":"[1]ACS_16_5YR_B25024_with_ann!M54","v":12},{"$f":"[1]ACS_16_5YR_B25024_with_ann!N54","v":0},{"$f":"[1]ACS_16_5YR_B25024_with_ann!O54","v":12},{"$f":"[1]ACS_16_5YR_B25024_with_ann!P54","v":0},{"$f":"[1]ACS_16_5YR_B25024_with_ann!Q54","v":12},{"$f":"[1]ACS_16_5YR_B25024_with_ann!R54","v":0},{"$f":"[1]ACS_16_5YR_B25024_with_ann!S54","v":12},{"$f":"[1]ACS_16_5YR_B25024_with_ann!T54","v":0},{"$f":"[1]ACS_16_5YR_B25024_with_ann!U54","v":12},{"$f":"[1]ACS_16_5YR_B25024_with_ann!V54","v":23},{"$f":"[1]ACS_16_5YR_B25024_with_ann!W54","v":17},{"$f":"[1]ACS_16_5YR_B25024_with_ann!X54","v":0},{"$f":"[1]ACS_16_5YR_B25024_with_ann!Y54","v":12}]
["06000US3300550580","0600000US3300564420","060",{"$f":"[1]ACS_16_5YR_B25024_with_ann!C55","v":"Nelson"},{"$f":"[1]ACS_16_5YR_B25024_with_ann!D55","v":429},{"$f":"[1]ACS_16_5YR_B25024_with_ann!E55","v":50},{"$f":"[1]ACS_16_5YR_B25024_with_ann!F55","v":371},{"$f":"[1]ACS_16_5YR_B25024_with_ann!G55","v":49},{"$f":"[1]ACS_16_5YR_B25024_with_ann!H55","v":8},{"$f":"[1]ACS_16_5YR_B25024_with_ann!I55","v":8},{"$f":"[1]ACS_16_5YR_B25024_with_ann!J55","v":14},{"$f":"[1]ACS_16_5YR_B25024_with_ann!K55","v":12},{"$f":"[1]ACS_16_5YR_B25024_with_ann!L55","v":0},{"$f":"[1]ACS_16_5YR_B25024_with_ann!M55","v":12},{"$f":"[1]ACS_16_5YR_B25024_with_ann!N55","v":0},{"$f":"[1]ACS_16_5YR_B25024_with_ann!O55","v":12},{"$f":"[1]ACS_16_5YR_B25024_with_ann!P55","v":0},{"$f":"[1]ACS_16_5YR_B25024_with_ann!Q55","v":12},{"$f":"[1]ACS_16_5YR_B25024_with_ann!R55","v":0},{"$f":"[1]ACS_16_5YR_B25024_with_ann!S55","v":12},{"$f":"[1]ACS_16_5YR_B25024_with_ann!T55","v":0},{"$f":"[1]ACS_16_5YR_B25024_with_ann!U55","v":12},{"$f":"[1]ACS_16_5YR_B25024_with_ann!V55","v":36},{"$f":"[1]ACS_16_5YR_B25024_with_ann!W55","v":23},{"$f":"[1]ACS_16_5YR_B25024_with_ann!X55","v":0},{"$f":"[1]ACS_16_5YR_B25024_with_ann!Y55","v":12}]
["06000US3300564420","0600000US3300564580","060",{"$f":"[1]ACS_16_5YR_B25024_with_ann!C56","v":"Richmond"},{"$f":"[1]ACS_16_5YR_B25024_with_ann!D56","v":456},{"$f":"[1]ACS_16_5YR_B25024_with_ann!E56","v":82},{"$f":"[1]ACS_16_5YR_B25024_with_ann!F56","v":422},{"$f":"[1]ACS_16_5YR_B25024_with_ann!G56","v":73},{"$f":"[1]ACS_16_5YR_B25024_with_ann!H56","v":0},{"$f":"[1]ACS_16_5YR_B25024_with_ann!I56","v":12},{"$f":"[1]ACS_16_5YR_B25024_with_ann!J56","v":19},{"$f":"[1]ACS_16_5YR_B25024_with_ann!K56","v":29},{"$f":"[1]ACS_16_5YR_B25024_with_ann!L56","v":0},{"$f":"[1]ACS_16_5YR_B25024_with_ann!M56","v":12},{"$f":"[1]ACS_16_5YR_B25024_with_ann!N56","v":0},{"$f":"[1]ACS_16_5YR_B25024_with_ann!O56","v":12},{"$f":"[1]ACS_16_5YR_B25024_with_ann!P56","v":0},{"$f":"[1]ACS_16_5YR_B25024_with_ann!Q56","v":12},{"$f":"[1]ACS_16_5YR_B25024_with_ann!R56","v":0},{"$f":"[1]ACS_16_5YR_B25024_with_ann!S56","v":12},{"$f":"[1]ACS_16_5YR_B25024_with_ann!T56","v":0},{"$f":"[1]ACS_16_5YR_B25024_with_ann!U56","v":12},{"$f":"[1]ACS_16_5YR_B25024_with_ann!V56","v":15},{"$f":"[1]ACS_16_5YR_B25024_with_ann!W56","v":12},{"$f":"[1]ACS_16_5YR_B25024_with_ann!X56","v":0},{"$f":"[1]ACS_16_5YR_B25024_with_ann!Y56","v":12}]
["06000US3300564580","0600000US3300565700","060",{"$f":"[1]ACS_16_5YR_B25024_with_ann!C57","v":"Rindge"},{"$f":"[1]ACS_16_5YR_B25024_with_ann!D57","v":2449},{"$f":"[1]ACS_16_5YR_B25024_with_ann!E57","v":168},{"$f":"[1]ACS_16_5YR_B25024_with_ann!F57","v":2120},{"$f":"[1]ACS_16_5YR_B25024_with_ann!G57","v":184},{"$f":"[1]ACS_16_5YR_B25024_with_ann!H57","v":38},{"$f":"[1]ACS_16_5YR_B25024_with_ann!I57","v":33},{"$f":"[1]ACS_16_5YR_B25024_with_ann!J57","v":58},{"$f":"[1]ACS_16_5YR_B25024_with_ann!K57","v":58},{"$f":"[1]ACS_16_5YR_B25024_with_ann!L57","v":0},{"$f":"[1]ACS_16_5YR_B25024_with_ann!M57","v":17},{"$f":"[1]ACS_16_5YR_B25024_with_ann!N57","v":64},{"$f":"[1]ACS_16_5YR_B25024_with_ann!O57","v":49},{"$f":"[1]ACS_16_5YR_B25024_with_ann!P57","v":7},{"$f":"[1]ACS_16_5YR_B25024_with_ann!Q57","v":11},{"$f":"[1]ACS_16_5YR_B25024_with_ann!R57","v":53},{"$f":"[1]ACS_16_5YR_B25024_with_ann!S57","v":60},{"$f":"[1]ACS_16_5YR_B25024_with_ann!T57","v":0},{"$f":"[1]ACS_16_5YR_B25024_with_ann!U57","v":17},{"$f":"[1]ACS_16_5YR_B25024_with_ann!V57","v":109},{"$f":"[1]ACS_16_5YR_B25024_with_ann!W57","v":56},{"$f":"[1]ACS_16_5YR_B25024_with_ann!X57","v":0},{"$f":"[1]ACS_16_5YR_B25024_with_ann!Y57","v":17}]
["06000US3300565700","0600000US3300573700","060",{"$f":"[1]ACS_16_5YR_B25024_with_ann!C58","v":"Roxbury"},{"$f":"[1]ACS_16_5YR_B25024_with_ann!D58","v":101},{"$f":"[1]ACS_16_5YR_B25024_with_ann!E58","v":38},{"$f":"[1]ACS_16_5YR_B25024_with_ann!F58","v":96},{"$f":"[1]ACS_16_5YR_B25024_with_ann!G58","v":38},{"$f":"[1]ACS_16_5YR_B25024_with_ann!H58","v":0},{"$f":"[1]ACS_16_5YR_B25024_with_ann!I58","v":12},{"$f":"[1]ACS_16_5YR_B25024_with_ann!J58","v":0},{"$f":"[1]ACS_16_5YR_B25024_with_ann!K58","v":12},{"$f":"[1]ACS_16_5YR_B25024_with_ann!L58","v":0},{"$f":"[1]ACS_16_5YR_B25024_with_ann!M58","v":12},{"$f":"[1]ACS_16_5YR_B25024_with_ann!N58","v":0},{"$f":"[1]ACS_16_5YR_B25024_with_ann!O58","v":12},{"$f":"[1]ACS_16_5YR_B25024_with_ann!P58","v":0},{"$f":"[1]ACS_16_5YR_B25024_with_ann!Q58","v":12},{"$f":"[1]ACS_16_5YR_B25024_with_ann!R58","v":0},{"$f":"[1]ACS_16_5YR_B25024_with_ann!S58","v":12},{"$f":"[1]ACS_16_5YR_B25024_with_ann!T58","v":0},{"$f":"[1]ACS_16_5YR_B25024_with_ann!U58","v":12},{"$f":"[1]ACS_16_5YR_B25024_with_ann!V58","v":5},{"$f":"[1]ACS_16_5YR_B25024_with_ann!W58","v":5},{"$f":"[1]ACS_16_5YR_B25024_with_ann!X58","v":0},{"$f":"[1]ACS_16_5YR_B25024_with_ann!Y58","v":12}]
["06000US3300573700","0600000US3300574900","060",{"$f":"[1]ACS_16_5YR_B25024_with_ann!C59","v":"Stoddard"},{"$f":"[1]ACS_16_5YR_B25024_with_ann!D59","v":1020},{"$f":"[1]ACS_16_5YR_B25024_with_ann!E59","v":86},{"$f":"[1]ACS_16_5YR_B25024_with_ann!F59","v":980},{"$f":"[1]ACS_16_5YR_B25024_with_ann!G59","v":89},{"$f":"[1]ACS_16_5YR_B25024_with_ann!H59","v":9},{"$f":"[1]ACS_16_5YR_B25024_with_ann!I59","v":7},{"$f":"[1]ACS_16_5YR_B25024_with_ann!J59","v":5},{"$f":"[1]ACS_16_5YR_B25024_with_ann!K59","v":5},{"$f":"[1]ACS_16_5YR_B25024_with_ann!L59","v":0},{"$f":"[1]ACS_16_5YR_B25024_with_ann!M59","v":12},{"$f":"[1]ACS_16_5YR_B25024_with_ann!N59","v":3},{"$f":"[1]ACS_16_5YR_B25024_with_ann!O59","v":4},{"$f":"[1]ACS_16_5YR_B25024_with_ann!P59","v":0},{"$f":"[1]ACS_16_5YR_B25024_with_ann!Q59","v":12},{"$f":"[1]ACS_16_5YR_B25024_with_ann!R59","v":8},{"$f":"[1]ACS_16_5YR_B25024_with_ann!S59","v":13},{"$f":"[1]ACS_16_5YR_B25024_with_ann!T59","v":0},{"$f":"[1]ACS_16_5YR_B25024_with_ann!U59","v":12},{"$f":"[1]ACS_16_5YR_B25024_with_ann!V59","v":15},{"$f":"[1]ACS_16_5YR_B25024_with_ann!W59","v":19},{"$f":"[1]ACS_16_5YR_B25024_with_ann!X59","v":0},{"$f":"[1]ACS_16_5YR_B25024_with_ann!Y59","v":12}]
["06000US3300574900","0600000US3300575300","060",{"$f":"[1]ACS_16_5YR_B25024_with_ann!C60","v":"Sullivan"},{"$f":"[1]ACS_16_5YR_B25024_with_ann!D60","v":301},{"$f":"[1]ACS_16_5YR_B25024_with_ann!E60","v":55},{"$f":"[1]ACS_16_5YR_B25024_with_ann!F60","v":254},{"$f":"[1]ACS_16_5YR_B25024_with_ann!G60","v":52},{"$f":"[1]ACS_16_5YR_B25024_with_ann!H60","v":2},{"$f":"[1]ACS_16_5YR_B25024_with_ann!I60","v":3},{"$f":"[1]ACS_16_5YR_B25024_with_ann!J60","v":10},{"$f":"[1]ACS_16_5YR_B25024_with_ann!K60","v":7},{"$f":"[1]ACS_16_5YR_B25024_with_ann!L60","v":13},{"$f":"[1]ACS_16_5YR_B25024_with_ann!M60","v":8},{"$f":"[1]ACS_16_5YR_B25024_with_ann!N60","v":0},{"$f":"[1]ACS_16_5YR_B25024_with_ann!O60","v":12},{"$f":"[1]ACS_16_5YR_B25024_with_ann!P60","v":0},{"$f":"[1]ACS_16_5YR_B25024_with_ann!Q60","v":12},{"$f":"[1]ACS_16_5YR_B25024_with_ann!R60","v":0},{"$f":"[1]ACS_16_5YR_B25024_with_ann!S60","v":12},{"$f":"[1]ACS_16_5YR_B25024_with_ann!T60","v":0},{"$f":"[1]ACS_16_5YR_B25024_with_ann!U60","v":12},{"$f":"[1]ACS_16_5YR_B25024_with_ann!V60","v":22},{"$f":"[1]ACS_16_5YR_B25024_with_ann!W60","v":10},{"$f":"[1]ACS_16_5YR_B25024_with_ann!X60","v":0},{"$f":"[1]ACS_16_5YR_B25024_with_ann!Y60","v":12}]
["06000US3300575300","0600000US3300575700","060",{"$f":"[1]ACS_16_5YR_B25024_with_ann!C61","v":"Surry"},{"$f":"[1]ACS_16_5YR_B25024_with_ann!D61","v":364},{"$f":"[1]ACS_16_5YR_B25024_with_ann!E61","v":60},{"$f":"[1]ACS_16_5YR_B25024_with_ann!F61","v":356},{"$f":"[1]ACS_16_5YR_B25024_with_ann!G61","v":59},{"$f":"[1]ACS_16_5YR_B25024_with_ann!H61","v":2},{"$f":"[1]ACS_16_5YR_B25024_with_ann!I61","v":3},{"$f":"[1]ACS_16_5YR_B25024_with_ann!J61","v":4},{"$f":"[1]ACS_16_5YR_B25024_with_ann!K61","v":5},{"$f":"[1]ACS_16_5YR_B25024_with_ann!L61","v":0},{"$f":"[1]ACS_16_5YR_B25024_with_ann!M61","v":12},{"$f":"[1]ACS_16_5YR_B25024_with_ann!N61","v":0},{"$f":"[1]ACS_16_5YR_B25024_with_ann!O61","v":12},{"$f":"[1]ACS_16_5YR_B25024_with_ann!P61","v":0},{"$f":"[1]ACS_16_5YR_B25024_with_ann!Q61","v":12},{"$f":"[1]ACS_16_5YR_B25024_with_ann!R61","v":0},{"$f":"[1]ACS_16_5YR_B25024_with_ann!S61","v":12},{"$f":"[1]ACS_16_5YR_B25024_with_ann!T61","v":0},{"$f":"[1]ACS_16_5YR_B25024_with_ann!U61","v":12},{"$f":"[1]ACS_16_5YR_B25024_with_ann!V61","v":2},{"$f":"[1]ACS_16_5YR_B25024_with_ann!W61","v":3},{"$f":"[1]ACS_16_5YR_B25024_with_ann!X61","v":0},{"$f":"[1]ACS_16_5YR_B25024_with_ann!Y61","v":12}]
["06000US3300575700","0600000US3300577380","060",{"$f":"[1]ACS_16_5YR_B25024_with_ann!C62","v":"Swanzey"},{"$f":"[1]ACS_16_5YR_B25024_with_ann!D62","v":3388},{"$f":"[1]ACS_16_5YR_B25024_with_ann!E62","v":169},{"$f":"[1]ACS_16_5YR_B25024_with_ann!F62","v":2139},{"$f":"[1]ACS_16_5YR_B25024_with_ann!G62","v":243},{"$f":"[1]ACS_16_5YR_B25024_with_ann!H62","v":182},{"$f":"[1]ACS_16_5YR_B25024_with_ann!I62","v":100},{"$f":"[1]ACS_16_5YR_B25024_with_ann!J62","v":148},{"$f":"[1]ACS_16_5YR_B25024_with_ann!K62","v":85},{"$f":"[1]ACS_16_5YR_B25024_with_ann!L62","v":45},{"$f":"[1]ACS_16_5YR_B25024_with_ann!M62","v":46},{"$f":"[1]ACS_16_5YR_B25024_with_ann!N62","v":238},{"$f":"[1]ACS_16_5YR_B25024_with_ann!O62","v":155},{"$f":"[1]ACS_16_5YR_B25024_with_ann!P62","v":170},{"$f":"[1]ACS_16_5YR_B25024_with_ann!Q62","v":107},{"$f":"[1]ACS_16_5YR_B25024_with_ann!R62","v":131},{"$f":"[1]ACS_16_5YR_B25024_with_ann!S62","v":97},{"$f":"[1]ACS_16_5YR_B25024_with_ann!T62","v":90},{"$f":"[1]ACS_16_5YR_B25024_with_ann!U62","v":74},{"$f":"[1]ACS_16_5YR_B25024_with_ann!V62","v":245},{"$f":"[1]ACS_16_5YR_B25024_with_ann!W62","v":118},{"$f":"[1]ACS_16_5YR_B25024_with_ann!X62","v":0},{"$f":"[1]ACS_16_5YR_B25024_with_ann!Y62","v":17}]
["06000US3300577380","0600000US3300578420","060",{"$f":"[1]ACS_16_5YR_B25024_with_ann!C63","v":"Troy"},{"$f":"[1]ACS_16_5YR_B25024_with_ann!D63","v":815},{"$f":"[1]ACS_16_5YR_B25024_with_ann!E63","v":105},{"$f":"[1]ACS_16_5YR_B25024_with_ann!F63","v":530},{"$f":"[1]ACS_16_5YR_B25024_with_ann!G63","v":85},{"$f":"[1]ACS_16_5YR_B25024_with_ann!H63","v":0},{"$f":"[1]ACS_16_5YR_B25024_with_ann!I63","v":12},{"$f":"[1]ACS_16_5YR_B25024_with_ann!J63","v":109},{"$f":"[1]ACS_16_5YR_B25024_with_ann!K63","v":59},{"$f":"[1]ACS_16_5YR_B25024_with_ann!L63","v":54},{"$f":"[1]ACS_16_5YR_B25024_with_ann!M63","v":37},{"$f":"[1]ACS_16_5YR_B25024_with_ann!N63","v":28},{"$f":"[1]ACS_16_5YR_B25024_with_ann!O63","v":28},{"$f":"[1]ACS_16_5YR_B25024_with_ann!P63","v":20},{"$f":"[1]ACS_16_5YR_B25024_with_ann!Q63","v":26},{"$f":"[1]ACS_16_5YR_B25024_with_ann!R63","v":0},{"$f":"[1]ACS_16_5YR_B25024_with_ann!S63","v":12},{"$f":"[1]ACS_16_5YR_B25024_with_ann!T63","v":0},{"$f":"[1]ACS_16_5YR_B25024_with_ann!U63","v":12},{"$f":"[1]ACS_16_5YR_B25024_with_ann!V63","v":74},{"$f":"[1]ACS_16_5YR_B25024_with_ann!W63","v":47},{"$f":"[1]ACS_16_5YR_B25024_with_ann!X63","v":0},{"$f":"[1]ACS_16_5YR_B25024_with_ann!Y63","v":12}]
["06000US3300578420","0600000US3300582660","060",{"$f":"[1]ACS_16_5YR_B25024_with_ann!C64","v":"Walpole"},{"$f":"[1]ACS_16_5YR_B25024_with_ann!D64","v":1618},{"$f":"[1]ACS_16_5YR_B25024_with_ann!E64","v":160},{"$f":"[1]ACS_16_5YR_B25024_with_ann!F64","v":1132},{"$f":"[1]ACS_16_5YR_B25024_with_ann!G64","v":163},{"$f":"[1]ACS_16_5YR_B25024_with_ann!H64","v":27},{"$f":"[1]ACS_16_5YR_B25024_with_ann!I64","v":27},{"$f":"[1]ACS_16_5YR_B25024_with_ann!J64","v":158},{"$f":"[1]ACS_16_5YR_B25024_with_ann!K64","v":84},{"$f":"[1]ACS_16_5YR_B25024_with_ann!L64","v":159},{"$f":"[1]ACS_16_5YR_B25024_with_ann!M64","v":95},{"$f":"[1]ACS_16_5YR_B25024_with_ann!N64","v":7},{"$f":"[1]ACS_16_5YR_B25024_with_ann!O64","v":11},{"$f":"[1]ACS_16_5YR_B25024_with_ann!P64","v":57},{"$f":"[1]ACS_16_5YR_B25024_with_ann!Q64","v":78},{"$f":"[1]ACS_16_5YR_B25024_with_ann!R64","v":12},{"$f":"[1]ACS_16_5YR_B25024_with_ann!S64","v":19},{"$f":"[1]ACS_16_5YR_B25024_with_ann!T64","v":0},{"$f":"[1]ACS_16_5YR_B25024_with_ann!U64","v":12},{"$f":"[1]ACS_16_5YR_B25024_with_ann!V64","v":66},{"$f":"[1]ACS_16_5YR_B25024_with_ann!W64","v":50},{"$f":"[1]ACS_16_5YR_B25024_with_ann!X64","v":0},{"$f":"[1]ACS_16_5YR_B25024_with_ann!Y64","v":12}]
["06000US3300582660","0600000US3300585540","060",{"$f":"[1]ACS_16_5YR_B25024_with_ann!C65","v":"Westmoreland"},{"$f":"[1]ACS_16_5YR_B25024_with_ann!D65","v":936},{"$f":"[1]ACS_16_5YR_B25024_with_ann!E65","v":184},{"$f":"[1]ACS_16_5YR_B25024_with_ann!F65","v":891},{"$f":"[1]ACS_16_5YR_B25024_with_ann!G65","v":182},{"$f":"[1]ACS_16_5YR_B25024_with_ann!H65","v":7},{"$f":"[1]ACS_16_5YR_B25024_with_ann!I65","v":8},{"$f":"[1]ACS_16_5YR_B25024_with_ann!J65","v":3},{"$f":"[1]ACS_16_5YR_B25024_with_ann!K65","v":4},{"$f":"[1]ACS_16_5YR_B25024_with_ann!L65","v":8},{"$f":"[1]ACS_16_5YR_B25024_with_ann!M65","v":15},{"$f":"[1]ACS_16_5YR_B25024_with_ann!N65","v":0},{"$f":"[1]ACS_16_5YR_B25024_with_ann!O65","v":12},{"$f":"[1]ACS_16_5YR_B25024_with_ann!P65","v":3},{"$f":"[1]ACS_16_5YR_B25024_with_ann!Q65","v":5},{"$f":"[1]ACS_16_5YR_B25024_with_ann!R65","v":12},{"$f":"[1]ACS_16_5YR_B25024_with_ann!S65","v":16},{"$f":"[1]ACS_16_5YR_B25024_with_ann!T65","v":10},{"$f":"[1]ACS_16_5YR_B25024_with_ann!U65","v":17},{"$f":"[1]ACS_16_5YR_B25024_with_ann!V65","v":2},{"$f":"[1]ACS_16_5YR_B25024_with_ann!W65","v":5},{"$f":"[1]ACS_16_5YR_B25024_with_ann!X65","v":0},{"$f":"[1]ACS_16_5YR_B25024_with_ann!Y65","v":12}]
["06000US3300585540","0600000US3300500820","060",{"$f":"[1]ACS_16_5YR_B25024_with_ann!C66","v":"Winchester"},{"$f":"[1]ACS_16_5YR_B25024_with_ann!D66","v":1885},{"$f":"[1]ACS_16_5YR_B25024_with_ann!E66","v":173},{"$f":"[1]ACS_16_5YR_B25024_with_ann!F66","v":1146},{"$f":"[1]ACS_16_5YR_B25024_with_ann!G66","v":151},{"$f":"[1]ACS_16_5YR_B25024_with_ann!H66","v":19},{"$f":"[1]ACS_16_5YR_B25024_with_ann!I66","v":22},{"$f":"[1]ACS_16_5YR_B25024_with_ann!J66","v":121},{"$f":"[1]ACS_16_5YR_B25024_with_ann!K66","v":72},{"$f":"[1]ACS_16_5YR_B25024_with_ann!L66","v":92},{"$f":"[1]ACS_16_5YR_B25024_with_ann!M66","v":69},{"$f":"[1]ACS_16_5YR_B25024_with_ann!N66","v":165},{"$f":"[1]ACS_16_5YR_B25024_with_ann!O66","v":96},{"$f":"[1]ACS_16_5YR_B25024_with_ann!P66","v":74},{"$f":"[1]ACS_16_5YR_B25024_with_ann!Q66","v":64},{"$f":"[1]ACS_16_5YR_B25024_with_ann!R66","v":29},{"$f":"[1]ACS_16_5YR_B25024_with_ann!S66","v":26},{"$f":"[1]ACS_16_5YR_B25024_with_ann!T66","v":0},{"$f":"[1]ACS_16_5YR_B25024_with_ann!U66","v":12},{"$f":"[1]ACS_16_5YR_B25024_with_ann!V66","v":239},{"$f":"[1]ACS_16_5YR_B25024_with_ann!W66","v":113},{"$f":"[1]ACS_16_5YR_B25024_with_ann!X66","v":0},{"$f":"[1]ACS_16_5YR_B25024_with_ann!Y66","v":12}]
[]
[]
[null,null,null,null,null,null,null,null,null,null,null,null,null,null,null,null,null,null,null,null,null,null,null,null,null,null,null,null,null,null,null,null,null,null,null,null,null,null,null,null,null,null,{"$f":"$D$22","v":"Troy"},null,{"$f":"$D$23","v":"Walpole"},null,{"$f":"$D$24","v":"Westmoreland"},null,{"$f":"$D$25","v":"Winchester"}]
[null,null,null,null,{"$f":"$D$3","v":"Alstead"},null,{"$f":"$D$4","v":"Chesterfield"},null,{"$f":"$D$5","v":"Dublin"},null,{"$f":"$D$6","v":"Fitzwilliam"},null,{"$f":"$D$7","v":"Gilsum"},null,{"$f":"$D$8","v":"Harrisville"},null,{"$f":"$D$9","v":"Hinsdale"},null,{"$f":"$D$10","v":"Jaffrey"},null,{"$f":"$D$11","v":"Keene"},null,{"$f":"$D$12","v":"Marlborough"},null,{"$f":"$D$13","v":"Marlow"},null,{"$f":"$D$14","v":"Nelson"},null,{"$f":"$D$15","v":"Richmond"},null,{"$f":"$D$16","v":"Rindge"},null,{"$f":"$D$17","v":"Roxbury"},null,{"$f":"$D$18","v":"Stoddard"},null,{"$f":"$D$19","v":"Sullivan"},null,{"$f":"$D$20","v":"Surry"},null,{"$f":"$D$21","v":"Swanzey"},null,{"$f":"$D$21","v":"Swanzey"},null,{"$f":"$D$21","v":"Swanzey"},null,{"$f":"$D$21","v":"Swanzey"},null,{"$f":"$D$21","v":"Swanzey"}]
[null,null,null,null,"Estimate","Margin of Error","Estimate","Margin of Error","Estimate","Margin of Error","Estimate","Margin of Error","Estimate","Margin of Error","Estimate","Margin of Error","Estimate","Margin of Error","Estimate","Margin of Error","Estimate","Margin of Error","Estimate","Margin of Error","Estimate","Margin of Error","Estimate","Margin of Error","Estimate","Margin of Error","Estimate","Margin of Error","Estimate","Margin of Error","Estimate","Margin of Error","Estimate","Margin of Error","Estimate","Margin of Error","Estimate","Margin of Error"]
[null,null,null,"Estimate!!Total:",986,109,1792,170,797,112,1317,149,360,57,690,92,1789,178,2474,208,10313,317,1009,129,417,72,429,50,456,82,2449,168,101,38,1020,86,301,55,364,60,3388,169,815,105,1618,160,936,184,1885,173]
[null,null,null,"Estimate!!Total:!!1",708,110,1733,184,742,110,1109,124,319,60,645,96,1028,222,2084,244,4863,322,645,110,384,65,371,49,422,73,2120,184,96,38,980,89,254,52,356,59,2139,243,530,85,1132,163,891,182,1146,151]
[null,null,null,"Estimate!!Total:!!1",5,7,0,12,13,10,0,12,2,5,4,5,28,30,49,74,499,199,18,15,10,17,8,8,0,12,38,33,0,12,9,7,2,3,2,3,182,100,0,12,27,27,7,8,19,22]
[null,null,null,"Estimate!!Total:!!2",53,40,10,16,3,4,59,42,17,12,3,4,118,148,52,51,1235,290,85,49,0,12,14,12,19,29,58,58,0,12,5,5,10,7,4,5,148,85,109,59,158,84,3,4,121,72]
[null,null,null,"Estimate!!Total:!!3 or 4",40,38,29,38,19,12,0,12,0,12,3,4,77,66,46,45,669,191,86,52,0,12,0,12,0,12,0,17,0,12,0,12,13,8,0,12,45,46,54,37,159,95,8,15,92,69]
[null,null,null,"Estimate!!Total:!!5 to 9",17,26,0,12,0,12,0,12,0,12,0,12,29,47,95,70,891,188,70,33,0,12,0,12,0,12,64,49,0,12,3,4,0,12,0,12,238,155,28,28,7,11,0,12,165,96]
[null,null,null,"Estimate!!Total:!!10 to 19",0,12,0,12,0,12,0,12,0,12,0,12,0,12,57,69,631,194,5,8,0,12,0,12,0,12,7,11,0,12,0,12,0,12,0,12,170,107,20,26,57,78,3,5,74,64]
[null,null,null,"Estimate!!Total:!!20 to 49",55,54,0,12,8,10,0,12,0,12,0,12,14,22,44,42,629,222,73,25,0,12,0,12,0,12,53,60,0,12,8,13,0,12,0,12,131,97,0,12,12,19,12,16,29,26]
[null,null,null,"Estimate!!Total:!!50 or more",0,12,0,12,0,12,0,12,0,12,0,12,0,12,0,17,504,181,0,12,0,12,0,12,0,12,0,17,0,12,0,12,0,12,0,12,90,74,0,12,0,12,10,17,0,12]
[null,null,null,"Estimate!!Total:!!Mobile home",108,46,20,30,12,14,149,105,22,14,35,23,495,125,47,49,392,160,27,17,23,17,36,23,15,12,109,56,5,5,15,19,22,10,2,3,245,118,74,47,66,50,2,5,239,113]
[null,null,null,"Estimate!!Total:!!Boat, RV, van, etc.",0,12,0,12,0,12,0,12,0,12,0,12,0,12,0,17,0,22,0,12,0,12,0,12,0,12,0,17,0,12,0,12,0,12,0,12,0,17,0,12,0,12,0,12,0,12]

{"sheet":"SData_B25032","index":88,"n_rows":53,"n_cols":50,"rows_kept":53,"cut":false,"hidden":true,"merged":[]}
["GEO_ID","GEO_ID2","SUMLEVEL","GEO_NAME",{"$f":"[1]ACS_16_5YR_B25032_with_ann!D1","v":"B25032_001E"},{"$f":"[1]ACS_16_5YR_B25032_with_ann!E1","v":"B25032_001M"},{"$f":"[1]ACS_16_5YR_B25032_with_ann!F1","v":"B25032_002E"},{"$f":"[1]ACS_16_5YR_B25032_with_ann!G1","v":"B25032_002M"},{"$f":"[1]ACS_16_5YR_B25032_with_ann!H1","v":"B25032_003E"},{"$f":"[1]ACS_16_5YR_B25032_with_ann!I1","v":"B25032_003M"},{"$f":"[1]ACS_16_5YR_B25032_with_ann!J1","v":"B25032_004E"},{"$f":"[1]ACS_16_5YR_B25032_with_ann!K1","v":"B25032_004M"},{"$f":"[1]ACS_16_5YR_B25032_with_ann!L1","v":"B25032_005E"},{"$f":"[1]ACS_16_5YR_B25032_with_ann!M1","v":"B25032_005M"},{"$f":"[1]ACS_16_5YR_B25032_with_ann!N1","v":"B25032_006E"},{"$f":"[1]ACS_16_5YR_B25032_with_ann!O1","v":"B25032_006M"},{"$f":"[1]ACS_16_5YR_B25032_with_ann!P1","v":"B25032_007E"},{"$f":"[1]ACS_16_5YR_B25032_with_ann!Q1","v":"B25032_007M"},{"$f":"[1]ACS_16_5YR_B25032_with_ann!R1","v":"B25032_008E"},{"$f":"[1]ACS_16_5YR_B25032_with_ann!S1","v":"B25032_008M"},{"$f":"[1]ACS_16_5YR_B25032_with_ann!T1","v":"B25032_009E"},{"$f":"[1]ACS_16_5YR_B25032_with_ann!U1","v":"B25032_009M"},{"$f":"[1]ACS_16_5YR_B25032_with_ann!V1","v":"B25032_010E"},{"$f":"[1]ACS_16_5YR_B25032_with_ann!W1","v":"B25032_010M"},{"$f":"[1]ACS_16_5YR_B25032_with_ann!X1","v":"B25032_011E"},{"$f":"[1]ACS_16_5YR_B25032_with_ann!Y1","v":"B25032_011M"},{"$f":"[1]ACS_16_5YR_B25032_with_ann!Z1","v":"B25032_012E"},{"$f":"[1]ACS_16_5YR_B25032_with_ann!AA1","v":"B25032_012M"},{"$f":"[1]ACS_16_5YR_B25032_with_ann!AB1","v":"B25032_013E"},{"$f":"[1]ACS_16_5YR_B25032_with_ann!AC1","v":"B25032_013M"},{"$f":"[1]ACS_16_5YR_B25032_with_ann!AD1","v":"B25032_014E"},{"$f":"[1]ACS_16_5YR_B25032_with_ann!AE1","v":"B25032_014M"},{"$f":"[1]ACS_16_5YR_B25032_with_ann!AF1","v":"B25032_015E"},{"$f":"[1]ACS_16_5YR_B25032_with_ann!AG1","v":"B25032_015M"},{"$f":"[1]ACS_16_5YR_B25032_with_ann!AH1","v":"B25032_016E"},{"$f":"[1]ACS_16_5YR_B25032_with_ann!AI1","v":"B25032_016M"},{"$f":"[1]ACS_16_5YR_B25032_with_ann!AJ1","v":"B25032_017E"},{"$f":"[1]ACS_16_5YR_B25032_with_ann!AK1","v":"B25032_017M"},{"$f":"[1]ACS_16_5YR_B25032_with_ann!AL1","v":"B25032_018E"},{"$f":"[1]ACS_16_5YR_B25032_with_ann!AM1","v":"B25032_018M"},{"$f":"[1]ACS_16_5YR_B25032_with_ann!AN1","v":"B25032_019E"},{"$f":"[1]ACS_16_5YR_B25032_with_ann!AO1","v":"B25032_019M"},{"$f":"[1]ACS_16_5YR_B25032_with_ann!AP1","v":"B25032_020E"},{"$f":"[1]ACS_16_5YR_B25032_with_ann!AQ1","v":"B25032_020M"},{"$f":"[1]ACS_16_5YR_B25032_with_ann!AR1","v":"B25032_021E"},{"$f":"[1]ACS_16_5YR_B25032_with_ann!AS1","v":"B25032_021M"},{"$f":"[1]ACS_16_5YR_B25032_with_ann!AT1","v":"B25032_022E"},{"$f":"[1]ACS_16_5YR_B25032_with_ann!AU1","v":"B25032_022M"},{"$f":"[1]ACS_16_5YR_B25032_with_ann!AV1","v":"B25032_023E"},{"$f":"[1]ACS_16_5YR_B25032_with_ann!AW1","v":"B25032_023M"}]
["Geography Identifier","Geography Identifier","Geographic Summary Level","Geography",{"$f":"[1]ACS_16_5YR_B25032_with_ann!D2","v":"Estimate!!Total:"},{"$f":"[1]ACS_16_5YR_B25032_with_ann!E2","v":"Margin of Error!!Total:"},{"$f":"[1]ACS_16_5YR_B25032_with_ann!F2","v":"Estimate!!Total:!!Owner-occupied housing units:"},{"$f":"[1]ACS_16_5YR_B25032_with_ann!G2","v":"Margin of Error!!Total:!!Owner-occupied housing units:"},{"$f":"[1]ACS_16_5YR_B25032_with_ann!H2","v":"Estimate!!Total:!!Owner-occupied housing units:!!1"},{"$f":"[1]ACS_16_5YR_B25032_with_ann!I2","v":"Margin of Error!!Total:!!Owner-occupied housing units:!!1"},{"$f":"[1]ACS_16_5YR_B25032_with_ann!J2","v":"Estimate!!Total:!!Owner-occupied housing units:!!1, attached"},{"$f":"[1]ACS_16_5YR_B25032_with_ann!K2","v":"Margin of Error!!Total:!!Owner-occupied housing units:!!1, attached"},{"$f":"[1]ACS_16_5YR_B25032_with_ann!L2","v":"Estimate!!Total:!!Owner-occupied housing units:!!2"},{"$f":"[1]ACS_16_5YR_B25032_with_ann!M2","v":"Margin of Error!!Total:!!Owner-occupied housing units:!!2"},{"$f":"[1]ACS_16_5YR_B25032_with_ann!N2","v":"Estimate!!Total:!!Owner-occupied housing units:!!3 or 4"},{"$f":"[1]ACS_16_5YR_B25032_with_ann!O2","v":"Margin of Error!!Total:!!Owner-occupied housing units:!!3 or 4"},{"$f":"[1]ACS_16_5YR_B25032_with_ann!P2","v":"Estimate!!Total:!!Owner-occupied housing units:!!5 to 9"},{"$f":"[1]ACS_16_5YR_B25032_with_ann!Q2","v":"Margin of Error!!Total:!!Owner-occupied housing units:!!5 to 9"},{"$f":"[1]ACS_16_5YR_B25032_with_ann!R2","v":"Estimate!!Total:!!Owner-occupied housing units:!!10 to 19"},{"$f":"[1]ACS_16_5YR_B25032_with_ann!S2","v":"Margin of Error!!Total:!!Owner-occupied housing units:!!10 to 19"},{"$f":"[1]ACS_16_5YR_B25032_with_ann!T2","v":"Estimate!!Total:!!Owner-occupied housing units:!!20 to 49"},{"$f":"[1]ACS_16_5YR_B25032_with_ann!U2","v":"Margin of Error!!Total:!!Owner-occupied housing units:!!20 to 49"},{"$f":"[1]ACS_16_5YR_B25032_with_ann!V2","v":"Estimate!!Total:!!Owner-occupied housing units:!!50 or more"},{"$f":"[1]ACS_16_5YR_B25032_with_ann!W2","v":"Margin of Error!!Total:!!Owner-occupied housing units:!!50 or more"},{"$f":"[1]ACS_16_5YR_B25032_with_ann!X2","v":"Estimate!!Total:!!Owner-occupied housing units:!!Mobile home"},{"$f":"[1]ACS_16_5YR_B25032_with_ann!Y2","v":"Margin of Error!!Total:!!Owner-occupied housing units:!!Mobile home"},{"$f":"[1]ACS_16_5YR_B25032_with_ann!Z2","v":"Estimate!!Total:!!Owner-occupied housing units:!!Boat, RV, van, etc."},{"$f":"[1]ACS_16_5YR_B25032_with_ann!AA2","v":"Margin of Error!!Total:!!Owner-occupied housing units:!!Boat, RV, van, etc."},{"$f":"[1]ACS_16_5YR_B25032_with_ann!AB2","v":"Estimate!!Total:!!Renter-occupied housing units:"},{"$f":"[1]ACS_16_5YR_B25032_with_ann!AC2","v":"Margin of Error!!Total:!!Renter-occupied housing units:"},{"$f":"[1]ACS_16_5YR_B25032_with_ann!AD2","v":"Estimate!!Total:!!Renter-occupied housing units:!!1, detached"},{"$f":"[1]ACS_16_5YR_B25032_with_ann!AE2","v":"Margin of Error!!Total:!!Renter-occupied housing units:!!1, detached"},{"$f":"[1]ACS_16_5YR_B25032_with_ann!AF2","v":"Estimate!!Total:!!Renter-occupied housing units:!!1, attached"},{"$f":"[1]ACS_16_5YR_B25032_with_ann!AG2","v":"Margin of Error!!Total:!!Renter-occupied housing units:!!1, attached"},{"$f":"[1]ACS_16_5YR_B25032_with_ann!AH2","v":"Estimate!!Total:!!Renter-occupied housing units:!!2"},{"$f":"[1]ACS_16_5YR_B25032_with_ann!AI2","v":"Margin of Error!!Total:!!Renter-occupied housing units:!!2"},{"$f":"[1]ACS_16_5YR_B25032_with_ann!AJ2","v":"Estimate!!Total:!!Renter-occupied housing units:!!3 or 4"},{"$f":"[1]ACS_16_5YR_B25032_with_ann!AK2","v":"Margin of Error!!Total:!!Renter-occupied housing units:!!3 or 4"},{"$f":"[1]ACS_16_5YR_B25032_with_ann!AL2","v":"Estimate!!Total:!!Renter-occupied housing units:!!5 to 9"},{"$f":"[1]ACS_16_5YR_B25032_with_ann!AM2","v":"Margin of Error!!Total:!!Renter-occupied housing units:!!5 to 9"},{"$f":"[1]ACS_16_5YR_B25032_with_ann!AN2","v":"Estimate!!Total:!!Renter-occupied housing units:!!10 to 19"},{"$f":"[1]ACS_16_5YR_B25032_with_ann!AO2","v":"Margin of Error!!Total:!!Renter-occupied housing units:!!10 to 19"},{"$f":"[1]ACS_16_5YR_B25032_with_ann!AP2","v":"Estimate!!Total:!!Renter-occupied housing units:!!20 to 49"},{"$f":"[1]ACS_16_5YR_B25032_with_ann!AQ2","v":"Margin of Error!!Total:!!Renter-occupied housing units:!!20 to 49"},{"$f":"[1]ACS_16_5YR_B25032_with_ann!AR2","v":"Estimate!!Total:!!Renter-occupied housing units:!!50 or more"},{"$f":"[1]ACS_16_5YR_B25032_with_ann!AS2","v":"Margin of Error!!Total:!!Renter-occupied housing units:!!50 or more"},{"$f":"[1]ACS_16_5YR_B25032_with_ann!AT2","v":"Estimate!!Total:!!Renter-occupied housing units:!!Mobile home"},{"$f":"[1]ACS_16_5YR_B25032_with_ann!AU2","v":"Margin of Error!!Total:!!Renter-occupied housing units:!!Mobile home"},{"$f":"[1]ACS_16_5YR_B25032_with_ann!AV2","v":"Estimate!!Total:!!Renter-occupied housing units:!!Boat, RV, van, etc."},{"$f":"[1]ACS_16_5YR_B25032_with_ann!AW2","v":"Margin of Error!!Total:!!Renter-occupied housing units:!!Boat, RV, van, etc."}]
["06000US3300500820","0600000US3300512260","060",{"$f":"[1]ACS_16_5YR_B25032_with_ann!C44","v":"Alstead"},{"$f":"[1]ACS_16_5YR_B25032_with_ann!D44","v":723},{"$f":"[1]ACS_16_5YR_B25032_with_ann!E44","v":97},{"$f":"[1]ACS_16_5YR_B25032_with_ann!F44","v":507},{"$f":"[1]ACS_16_5YR_B25032_with_ann!G44","v":86},{"$f":"[1]ACS_16_5YR_B25032_with_ann!H44","v":418},{"$f":"[1]ACS_16_5YR_B25032_with_ann!I44","v":91},{"$f":"[1]ACS_16_5YR_B25032_with_ann!J44","v":5},{"$f":"[1]ACS_16_5YR_B25032_with_ann!K44","v":7},{"$f":"[1]ACS_16_5YR_B25032_with_ann!L44","v":11},{"$f":"[1]ACS_16_5YR_B25032_with_ann!M44","v":11},{"$f":"[1]ACS_16_5YR_B25032_with_ann!N44","v":0},{"$f":"[1]ACS_16_5YR_B25032_with_ann!O44","v":12},{"$f":"[1]ACS_16_5YR_B25032_with_ann!P44","v":0},{"$f":"[1]ACS_16_5YR_B25032_with_ann!Q44","v":12},{"$f":"[1]ACS_16_5YR_B25032_with_ann!R44","v":0},{"$f":"[1]ACS_16_5YR_B25032_with_ann!S44","v":12},{"$f":"[1]ACS_16_5YR_B25032_with_ann!T44","v":0},{"$f":"[1]ACS_16_5YR_B25032_with_ann!U44","v":12},{"$f":"[1]ACS_16_5YR_B25032_with_ann!V44","v":0},{"$f":"[1]ACS_16_5YR_B25032_with_ann!W44","v":12},{"$f":"[1]ACS_16_5YR_B25032_with_ann!X44","v":73},{"$f":"[1]ACS_16_5YR_B25032_with_ann!Y44","v":38},{"$f":"[1]ACS_16_5YR_B25032_with_ann!Z44","v":0},{"$f":"[1]ACS_16_5YR_B25032_with_ann!AA44","v":12},{"$f":"[1]ACS_16_5YR_B25032_with_ann!AB44","v":216},{"$f":"[1]ACS_16_5YR_B25032_with_ann!AC44","v":81},{"$f":"[1]ACS_16_5YR_B25032_with_ann!AD44","v":104},{"$f":"[1]ACS_16_5YR_B25032_with_ann!AE44","v":55},{"$f":"[1]ACS_16_5YR_B25032_with_ann!AF44","v":0},{"$f":"[1]ACS_16_5YR_B25032_with_ann!AG44","v":12},{"$f":"[1]ACS_16_5YR_B25032_with_ann!AH44","v":11},{"$f":"[1]ACS_16_5YR_B25032_with_ann!AI44","v":14},{"$f":"[1]ACS_16_5YR_B25032_with_ann!AJ44","v":26},{"$f":"[1]ACS_16_5YR_B25032_with_ann!AK44","v":33},{"$f":"[1]ACS_16_5YR_B25032_with_ann!AL44","v":0},{"$f":"[1]ACS_16_5YR_B25032_with_ann!AM44","v":12},{"$f":"[1]ACS_16_5YR_B25032_with_ann!AN44","v":0},{"$f":"[1]ACS_16_5YR_B25032_with_ann!AO44","v":12},{"$f":"[1]ACS_16_5YR_B25032_with_ann!AP44","v":55},{"$f":"[1]ACS_16_5YR_B25032_with_ann!AQ44","v":54},{"$f":"[1]ACS_16_5YR_B25032_with_ann!AR44","v":0},{"$f":"[1]ACS_16_5YR_B25032_with_ann!AS44","v":12},{"$f":"[1]ACS_16_5YR_B25032_with_ann!AT44","v":20},{"$f":"[1]ACS_16_5YR_B25032_with_ann!AU44","v":14},{"$f":"[1]ACS_16_5YR_B25032_with_ann!AV44","v":0},{"$f":"[1]ACS_16_5YR_B25032_with_ann!AW44","v":12}]
["06000US3300512260","0600000US3300519140","060",{"$f":"[1]ACS_16_5YR_B25032_with_ann!C45","v":"Chesterfield"},{"$f":"[1]ACS_16_5YR_B25032_with_ann!D45","v":1366},{"$f":"[1]ACS_16_5YR_B25032_with_ann!E45","v":158},{"$f":"[1]ACS_16_5YR_B25032_with_ann!F45","v":1227},{"$f":"[1]ACS_16_5YR_B25032_with_ann!G45","v":184},{"$f":"[1]ACS_16_5YR_B25032_with_ann!H45","v":1197},{"$f":"[1]ACS_16_5YR_B25032_with_ann!I45","v":196},{"$f":"[1]ACS_16_5YR_B25032_with_ann!J45","v":0},{"$f":"[1]ACS_16_5YR_B25032_with_ann!K45","v":12},{"$f":"[1]ACS_16_5YR_B25032_with_ann!L45","v":10},{"$f":"[1]ACS_16_5YR_B25032_with_ann!M45","v":16},{"$f":"[1]ACS_16_5YR_B25032_with_ann!N45","v":0},{"$f":"[1]ACS_16_5YR_B25032_with_ann!O45","v":12},{"$f":"[1]ACS_16_5YR_B25032_with_ann!P45","v":0},{"$f":"[1]ACS_16_5YR_B25032_with_ann!Q45","v":12},{"$f":"[1]ACS_16_5YR_B25032_with_ann!R45","v":0},{"$f":"[1]ACS_16_5YR_B25032_with_ann!S45","v":12},{"$f":"[1]ACS_16_5YR_B25032_with_ann!T45","v":0},{"$f":"[1]ACS_16_5YR_B25032_with_ann!U45","v":12},{"$f":"[1]ACS_16_5YR_B25032_with_ann!V45","v":0},{"$f":"[1]ACS_16_5YR_B25032_with_ann!W45","v":12},{"$f":"[1]ACS_16_5YR_B25032_with_ann!X45","v":20},{"$f":"[1]ACS_16_5YR_B25032_with_ann!Y45","v":30},{"$f":"[1]ACS_16_5YR_B25032_with_ann!Z45","v":0},{"$f":"[1]ACS_16_5YR_B25032_with_ann!AA45","v":12},{"$f":"[1]ACS_16_5YR_B25032_with_ann!AB45","v":139},{"$f":"[1]ACS_16_5YR_B25032_with_ann!AC45","v":90},{"$f":"[1]ACS_16_5YR_B25032_with_ann!AD45","v":110},{"$f":"[1]ACS_16_5YR_B25032_with_ann!AE45","v":81},{"$f":"[1]ACS_16_5YR_B25032_with_ann!AF45","v":0},{"$f":"[1]ACS_16_5YR_B25032_with_ann!AG45","v":12},{"$f":"[1]ACS_16_5YR_B25032_with_ann!AH45","v":0},{"$f":"[1]ACS_16_5YR_B25032_with_ann!AI45","v":12},{"$f":"[1]ACS_16_5YR_B25032_with_ann!AJ45","v":29},{"$f":"[1]ACS_16_5YR_B25032_with_ann!AK45","v":38},{"$f":"[1]ACS_16_5YR_B25032_with_ann!AL45","v":0},{"$f":"[1]ACS_16_5YR_B25032_with_ann!AM45","v":12},{"$f":"[1]ACS_16_5YR_B25032_with_ann!AN45","v":0},{"$f":"[1]ACS_16_5YR_B25032_with_ann!AO45","v":12},{"$f":"[1]ACS_16_5YR_B25032_with_ann!AP45","v":0},{"$f":"[1]ACS_16_5YR_B25032_with_ann!AQ45","v":12},{"$f":"[1]ACS_16_5YR_B25032_with_ann!AR45","v":0},{"$f":"[1]ACS_16_5YR_B25032_with_ann!AS45","v":12},{"$f":"[1]ACS_16_5YR_B25032_with_ann!AT45","v":0},{"$f":"[1]ACS_16_5YR_B25032_with_ann!AU45","v":12},{"$f":"[1]ACS_16_5YR_B25032_with_ann!AV45","v":0},{"$f":"[1]ACS_16_5YR_B25032_with_ann!AW45","v":12}]
["06000US3300519140","0600000US3300526500","060",{"$f":"[1]ACS_16_5YR_B25032_with_ann!C46","v":"Dublin"},{"$f":"[1]ACS_16_5YR_B25032_with_ann!D46","v":635},{"$f":"[1]ACS_16_5YR_B25032_with_ann!E46","v":101},{"$f":"[1]ACS_16_5YR_B25032_with_ann!F46","v":530},{"$f":"[1]ACS_16_5YR_B25032_with_ann!G46","v":99},{"$f":"[1]ACS_16_5YR_B25032_with_ann!H46","v":516},{"$f":"[1]ACS_16_5YR_B25032_with_ann!I46","v":98},{"$f":"[1]ACS_16_5YR_B25032_with_ann!J46","v":9},{"$f":"[1]ACS_16_5YR_B25032_with_ann!K46","v":10},{"$f":"[1]ACS_16_5YR_B25032_with_ann!L46","v":0},{"$f":"[1]ACS_16_5YR_B25032_with_ann!M46","v":12},{"$f":"[1]ACS_16_5YR_B25032_with_ann!N46","v":0},{"$f":"[1]ACS_16_5YR_B25032_with_ann!O46","v":12},{"$f":"[1]ACS_16_5YR_B25032_with_ann!P46","v":0},{"$f":"[1]ACS_16_5YR_B25032_with_ann!Q46","v":12},{"$f":"[1]ACS_16_5YR_B25032_with_ann!R46","v":0},{"$f":"[1]ACS_16_5YR_B25032_with_ann!S46","v":12},{"$f":"[1]ACS_16_5YR_B25032_with_ann!T46","v":0},{"$f":"[1]ACS_16_5YR_B25032_with_ann!U46","v":12},{"$f":"[1]ACS_16_5YR_B25032_with_ann!V46","v":0},{"$f":"[1]ACS_16_5YR_B25032_with_ann!W46","v":12},{"$f":"[1]ACS_16_5YR_B25032_with_ann!X46","v":5},{"$f":"[1]ACS_16_5YR_B25032_with_ann!Y46","v":6},{"$f":"[1]ACS_16_5YR_B25032_with_ann!Z46","v":0},{"$f":"[1]ACS_16_5YR_B25032_with_ann!AA46","v":12},{"$f":"[1]ACS_16_5YR_B25032_with_ann!AB46","v":105},{"$f":"[1]ACS_16_5YR_B25032_with_ann!AC46","v":41},{"$f":"[1]ACS_16_5YR_B25032_with_ann!AD46","v":78},{"$f":"[1]ACS_16_5YR_B25032_with_ann!AE46","v":38},{"$f":"[1]ACS_16_5YR_B25032_with_ann!AF46","v":4},{"$f":"[1]ACS_16_5YR_B25032_with_ann!AG46","v":5},{"$f":"[1]ACS_16_5YR_B25032_with_ann!AH46","v":3},{"$f":"[1]ACS_16_5YR_B25032_with_ann!AI46","v":4},{"$f":"[1]ACS_16_5YR_B25032_with_ann!AJ46","v":12},{"$f":"[1]ACS_16_5YR_B25032_with_ann!AK46","v":9},{"$f":"[1]ACS_16_5YR_B25032_with_ann!AL46","v":0},{"$f":"[1]ACS_16_5YR_B25032_with_ann!AM46","v":12},{"$f":"[1]ACS_16_5YR_B25032_with_ann!AN46","v":0},{"$f":"[1]ACS_16_5YR_B25032_with_ann!AO46","v":12},{"$f":"[1]ACS_16_5YR_B25032_with_ann!AP46","v":8},{"$f":"[1]ACS_16_5YR_B25032_with_ann!AQ46","v":10},{"$f":"[1]ACS_16_5YR_B25032_with_ann!AR46","v":0},{"$f":"[1]ACS_16_5YR_B25032_with_ann!AS46","v":12},{"$f":"[1]ACS_16_5YR_B25032_with_ann!AT46","v":0},{"$f":"[1]ACS_16_5YR_B25032_with_ann!AU46","v":12},{"$f":"[1]ACS_16_5YR_B25032_with_ann!AV46","v":0},{"$f":"[1]ACS_16_5YR_B25032_with_ann!AW46","v":12}]
["06000US3300526500","0600000US3300529220","060",{"$f":"[1]ACS_16_5YR_B25032_with_ann!C47","v":"Fitzwilliam"},{"$f":"[1]ACS_16_5YR_B25032_with_ann!D47","v":1013},{"$f":"[1]ACS_16_5YR_B25032_with_ann!E47","v":154},{"$f":"[1]ACS_16_5YR_B25032_with_ann!F47","v":957},{"$f":"[1]ACS_16_5YR_B25032_with_ann!G47","v":154},{"$f":"[1]ACS_16_5YR_B25032_with_ann!H47","v":838},{"$f":"[1]ACS_16_5YR_B25032_with_ann!I47","v":110},{"$f":"[1]ACS_16_5YR_B25032_with_ann!J47","v":0},{"$f":"[1]ACS_16_5YR_B25032_with_ann!K47","v":12},{"$f":"[1]ACS_16_5YR_B25032_with_ann!L47","v":30},{"$f":"[1]ACS_16_5YR_B25032_with_ann!M47","v":32},{"$f":"[1]ACS_16_5YR_B25032_with_ann!N47","v":0},{"$f":"[1]ACS_16_5YR_B25032_with_ann!O47","v":12},{"$f":"[1]ACS_16_5YR_B25032_with_ann!P47","v":0},{"$f":"[1]ACS_16_5YR_B25032_with_ann!Q47","v":12},{"$f":"[1]ACS_16_5YR_B25032_with_ann!R47","v":0},{"$f":"[1]ACS_16_5YR_B25032_with_ann!S47","v":12},{"$f":"[1]ACS_16_5YR_B25032_with_ann!T47","v":0},{"$f":"[1]ACS_16_5YR_B25032_with_ann!U47","v":12},{"$f":"[1]ACS_16_5YR_B25032_with_ann!V47","v":0},{"$f":"[1]ACS_16_5YR_B25032_with_ann!W47","v":12},{"$f":"[1]ACS_16_5YR_B25032_with_ann!X47","v":89},{"$f":"[1]ACS_16_5YR_B25032_with_ann!Y47","v":92},{"$f":"[1]ACS_16_5YR_B25032_with_ann!Z47","v":0},{"$f":"[1]ACS_16_5YR_B25032_with_ann!AA47","v":12},{"$f":"[1]ACS_16_5YR_B25032_with_ann!AB47","v":56},{"$f":"[1]ACS_16_5YR_B25032_with_ann!AC47","v":29},{"$f":"[1]ACS_16_5YR_B25032_with_ann!AD47","v":28},{"$f":"[1]ACS_16_5YR_B25032_with_ann!AE47","v":16},{"$f":"[1]ACS_16_5YR_B25032_with_ann!AF47","v":0},{"$f":"[1]ACS_16_5YR_B25032_with_ann!AG47","v":12},{"$f":"[1]ACS_16_5YR_B25032_with_ann!AH47","v":7},{"$f":"[1]ACS_16_5YR_B25032_with_ann!AI47","v":10},{"$f":"[1]ACS_16_5YR_B25032_with_ann!AJ47","v":0},{"$f":"[1]ACS_16_5YR_B25032_with_ann!AK47","v":12},{"$f":"[1]ACS_16_5YR_B25032_with_ann!AL47","v":0},{"$f":"[1]ACS_16_5YR_B25032_with_ann!AM47","v":12},{"$f":"[1]ACS_16_5YR_B25032_with_ann!AN47","v":0},{"$f":"[1]ACS_16_5YR_B25032_with_ann!AO47","v":12},{"$f":"[1]ACS_16_5YR_B25032_with_ann!AP47","v":0},{"$f":"[1]ACS_16_5YR_B25032_with_ann!AQ47","v":12},{"$f":"[1]ACS_16_5YR_B25032_with_ann!AR47","v":0},{"$f":"[1]ACS_16_5YR_B25032_with_ann!AS47","v":12},{"$f":"[1]ACS_16_5YR_B25032_with_ann!AT47","v":21},{"$f":"[1]ACS_16_5YR_B25032_with_ann!AU47","v":26},{"$f":"[1]ACS_16_5YR_B25032_with_ann!AV47","v":0},{"$f":"[1]ACS_16_5YR_B25032_with_ann!AW47","v":12}]
["06000US3300529220","0600000US3300534420","060",{"$f":"[1]ACS_16_5YR_B25032_with_ann!C48","v":"Gilsum"},{"$f":"[1]ACS_16_5YR_B25032_with_ann!D48","v":310},{"$f":"[1]ACS_16_5YR_B25032_with_ann!E48","v":51},{"$f":"[1]ACS_16_5YR_B25032_with_ann!F48","v":285},{"$f":"[1]ACS_16_5YR_B25032_with_ann!G48","v":50},{"$f":"[1]ACS_16_5YR_B25032_with_ann!H48","v":264},{"$f":"[1]ACS_16_5YR_B25032_with_ann!I48","v":52},{"$f":"[1]ACS_16_5YR_B25032_with_ann!J48","v":0},{"$f":"[1]ACS_16_5YR_B25032_with_ann!K48","v":12},{"$f":"[1]ACS_16_5YR_B25032_with_ann!L48","v":2},{"$f":"[1]ACS_16_5YR_B25032_with_ann!M48","v":4},{"$f":"[1]ACS_16_5YR_B25032_with_ann!N48","v":0},{"$f":"[1]ACS_16_5YR_B25032_with_ann!O48","v":12},{"$f":"[1]ACS_16_5YR_B25032_with_ann!P48","v":0},{"$f":"[1]ACS_16_5YR_B25032_with_ann!Q48","v":12},{"$f":"[1]ACS_16_5YR_B25032_with_ann!R48","v":0},{"$f":"[1]ACS_16_5YR_B25032_with_ann!S48","v":12},{"$f":"[1]ACS_16_5YR_B25032_with_ann!T48","v":0},{"$f":"[1]ACS_16_5YR_B25032_with_ann!U48","v":12},{"$f":"[1]ACS_16_5YR_B25032_with_ann!V48","v":0},{"$f":"[1]ACS_16_5YR_B25032_with_ann!W48","v":12},{"$f":"[1]ACS_16_5YR_B25032_with_ann!X48","v":19},{"$f":"[1]ACS_16_5YR_B25032_with_ann!Y48","v":14},{"$f":"[1]ACS_16_5YR_B25032_with_ann!Z48","v":0},{"$f":"[1]ACS_16_5YR_B25032_with_ann!AA48","v":12},{"$f":"[1]ACS_16_5YR_B25032_with_ann!AB48","v":25},{"$f":"[1]ACS_16_5YR_B25032_with_ann!AC48","v":14},{"$f":"[1]ACS_16_5YR_B25032_with_ann!AD48","v":11},{"$f":"[1]ACS_16_5YR_B25032_with_ann!AE48","v":9},{"$f":"[1]ACS_16_5YR_B25032_with_ann!AF48","v":2},{"$f":"[1]ACS_16_5YR_B25032_with_ann!AG48","v":5},{"$f":"[1]ACS_16_5YR_B25032_with_ann!AH48","v":9},{"$f":"[1]ACS_16_5YR_B25032_with_ann!AI48","v":8},{"$f":"[1]ACS_16_5YR_B25032_with_ann!AJ48","v":0},{"$f":"[1]ACS_16_5YR_B25032_with_ann!AK48","v":12},{"$f":"[1]ACS_16_5YR_B25032_with_ann!AL48","v":0},{"$f":"[1]ACS_16_5YR_B25032_with_ann!AM48","v":12},{"$f":"[1]ACS_16_5YR_B25032_with_ann!AN48","v":0},{"$f":"[1]ACS_16_5YR_B25032_with_ann!AO48","v":12},{"$f":"[1]ACS_16_5YR_B25032_with_ann!AP48","v":0},{"$f":"[1]ACS_16_5YR_B25032_with_ann!AQ48","v":12},{"$f":"[1]ACS_16_5YR_B25032_with_ann!AR48","v":0},{"$f":"[1]ACS_16_5YR_B25032_with_ann!AS48","v":12},{"$f":"[1]ACS_16_5YR_B25032_with_ann!AT48","v":3},{"$f":"[1]ACS_16_5YR_B25032_with_ann!AU48","v":4},{"$f":"[1]ACS_16_5YR_B25032_with_ann!AV48","v":0},{"$f":"[1]ACS_16_5YR_B25032_with_ann!AW48","v":12}]
["06000US3300534420","0600000US3300536660","060",{"$f":"[1]ACS_16_5YR_B25032_with_ann!C49","v":"Harrisville"},{"$f":"[1]ACS_16_5YR_B25032_with_ann!D49","v":416},{"$f":"[1]ACS_16_5YR_B25032_with_ann!E49","v":75},{"$f":"[1]ACS_16_5YR_B25032_with_ann!F49","v":386},{"$f":"[1]ACS_16_5YR_B25032_with_ann!G49","v":73},{"$f":"[1]ACS_16_5YR_B25032_with_ann!H49","v":372},{"$f":"[1]ACS_16_5YR_B25032_with_ann!I49","v":73},{"$f":"[1]ACS_16_5YR_B25032_with_ann!J49","v":4},{"$f":"[1]ACS_16_5YR_B25032_with_ann!K49","v":5},{"$f":"[1]ACS_16_5YR_B25032_with_ann!L49","v":0},{"$f":"[1]ACS_16_5YR_B25032_with_ann!M49","v":12},{"$f":"[1]ACS_16_5YR_B25032_with_ann!N49","v":0},{"$f":"[1]ACS_16_5YR_B25032_with_ann!O49","v":12},{"$f":"[1]ACS_16_5YR_B25032_with_ann!P49","v":0},{"$f":"[1]ACS_16_5YR_B25032_with_ann!Q49","v":12},{"$f":"[1]ACS_16_5YR_B25032_with_ann!R49","v":0},{"$f":"[1]ACS_16_5YR_B25032_with_ann!S49","v":12},{"$f":"[1]ACS_16_5YR_B25032_with_ann!T49","v":0},{"$f":"[1]ACS_16_5YR_B25032_with_ann!U49","v":12},{"$f":"[1]ACS_16_5YR_B25032_with_ann!V49","v":0},{"$f":"[1]ACS_16_5YR_B25032_with_ann!W49","v":12},{"$f":"[1]ACS_16_5YR_B25032_with_ann!X49","v":10},{"$f":"[1]ACS_16_5YR_B25032_with_ann!Y49","v":8},{"$f":"[1]ACS_16_5YR_B25032_with_ann!Z49","v":0},{"$f":"[1]ACS_16_5YR_B25032_with_ann!AA49","v":12},{"$f":"[1]ACS_16_5YR_B25032_with_ann!AB49","v":30},{"$f":"[1]ACS_16_5YR_B25032_with_ann!AC49","v":15},{"$f":"[1]ACS_16_5YR_B25032_with_ann!AD49","v":24},{"$f":"[1]ACS_16_5YR_B25032_with_ann!AE49","v":16},{"$f":"[1]ACS_16_5YR_B25032_with_ann!AF49","v":0},{"$f":"[1]ACS_16_5YR_B25032_with_ann!AG49","v":12},{"$f":"[1]ACS_16_5YR_B25032_with_ann!AH49","v":3},{"$f":"[1]ACS_16_5YR_B25032_with_ann!AI49","v":4},{"$f":"[1]ACS_16_5YR_B25032_with_ann!AJ49","v":3},{"$f":"[1]ACS_16_5YR_B25032_with_ann!AK49","v":4},{"$f":"[1]ACS_16_5YR_B25032_with_ann!AL49","v":0},{"$f":"[1]ACS_16_5YR_B25032_with_ann!AM49","v":12},{"$f":"[1]ACS_16_5YR_B25032_with_ann!AN49","v":0},{"$f":"[1]ACS_16_5YR_B25032_with_ann!AO49","v":12},{"$f":"[1]ACS_16_5YR_B25032_with_ann!AP49","v":0},{"$f":"[1]ACS_16_5YR_B25032_with_ann!AQ49","v":12},{"$f":"[1]ACS_16_5YR_B25032_with_ann!AR49","v":0},{"$f":"[1]ACS_16_5YR_B25032_with_ann!AS49","v":12},{"$f":"[1]ACS_16_5YR_B25032_with_ann!AT49","v":0},{"$f":"[1]ACS_16_5YR_B25032_with_ann!AU49","v":12},{"$f":"[1]ACS_16_5YR_B25032_with_ann!AV49","v":0},{"$f":"[1]ACS_16_5YR_B25032_with_ann!AW49","v":12}]
["06000US3300536660","0600000US3300538500","060",{"$f":"[1]ACS_16_5YR_B25032_with_ann!C50","v":"Hinsdale"},{"$f":"[1]ACS_16_5YR_B25032_with_ann!D50","v":1594},{"$f":"[1]ACS_16_5YR_B25032_with_ann!E50","v":139},{"$f":"[1]ACS_16_5YR_B25032_with_ann!F50","v":1373},{"$f":"[1]ACS_16_5YR_B25032_with_ann!G50","v":192},{"$f":"[1]ACS_16_5YR_B25032_with_ann!H50","v":832},{"$f":"[1]ACS_16_5YR_B25032_with_ann!I50","v":182},{"$f":"[1]ACS_16_5YR_B25032_with_ann!J50","v":13},{"$f":"[1]ACS_16_5YR_B25032_with_ann!K50","v":21},{"$f":"[1]ACS_16_5YR_B25032_with_ann!L50","v":118},{"$f":"[1]ACS_16_5YR_B25032_with_ann!M50","v":148},{"$f":"[1]ACS_16_5YR_B25032_with_ann!N50","v":0},{"$f":"[1]ACS_16_5YR_B25032_with_ann!O50","v":12},{"$f":"[1]ACS_16_5YR_B25032_with_ann!P50","v":0},{"$f":"[1]ACS_16_5YR_B25032_with_ann!Q50","v":12},{"$f":"[1]ACS_16_5YR_B25032_with_ann!R50","v":0},{"$f":"[1]ACS_16_5YR_B25032_with_ann!S50","v":12},{"$f":"[1]ACS_16_5YR_B25032_with_ann!T50","v":0},{"$f":"[1]ACS_16_5YR_B25032_with_ann!U50","v":12},{"$f":"[1]ACS_16_5YR_B25032_with_ann!V50","v":0},{"$f":"[1]ACS_16_5YR_B25032_with_ann!W50","v":12},{"$f":"[1]ACS_16_5YR_B25032_with_ann!X50","v":410},{"$f":"[1]ACS_16_5YR_B25032_with_ann!Y50","v":125},{"$f":"[1]ACS_16_5YR_B25032_with_ann!Z50","v":0},{"$f":"[1]ACS_16_5YR_B25032_with_ann!AA50","v":12},{"$f":"[1]ACS_16_5YR_B25032_with_ann!AB50","v":221},{"$f":"[1]ACS_16_5YR_B25032_with_ann!AC50","v":105},{"$f":"[1]ACS_16_5YR_B25032_with_ann!AD50","v":68},{"$f":"[1]ACS_16_5YR_B25032_with_ann!AE50","v":76},{"$f":"[1]ACS_16_5YR_B25032_with_ann!AF50","v":15},{"$f":"[1]ACS_16_5YR_B25032_with_ann!AG50","v":23},{"$f":"[1]ACS_16_5YR_B25032_with_ann!AH50","v":0},{"$f":"[1]ACS_16_5YR_B25032_with_ann!AI50","v":12},{"$f":"[1]ACS_16_5YR_B25032_with_ann!AJ50","v":41},{"$f":"[1]ACS_16_5YR_B25032_with_ann!AK50","v":33},{"$f":"[1]ACS_16_5YR_B25032_with_ann!AL50","v":29},{"$f":"[1]ACS_16_5YR_B25032_with_ann!AM50","v":47},{"$f":"[1]ACS_16_5YR_B25032_with_ann!AN50","v":0},{"$f":"[1]ACS_16_5YR_B25032_with_ann!AO50","v":12},{"$f":"[1]ACS_16_5YR_B25032_with_ann!AP50","v":14},{"$f":"[1]ACS_16_5YR_B25032_with_ann!AQ50","v":22},{"$f":"[1]ACS_16_5YR_B25032_with_ann!AR50","v":0},{"$f":"[1]ACS_16_5YR_B25032_with_ann!AS50","v":12},{"$f":"[1]ACS_16_5YR_B25032_with_ann!AT50","v":54},{"$f":"[1]ACS_16_5YR_B25032_with_ann!AU50","v":50},{"$f":"[1]ACS_16_5YR_B25032_with_ann!AV50","v":0},{"$f":"[1]ACS_16_5YR_B25032_with_ann!AW50","v":12}]
["06000US3300538500","0600000US3300539300","060",{"$f":"[1]ACS_16_5YR_B25032_with_ann!C51","v":"Jaffrey"},{"$f":"[1]ACS_16_5YR_B25032_with_ann!D51","v":2026},{"$f":"[1]ACS_16_5YR_B25032_with_ann!E51","v":225},{"$f":"[1]ACS_16_5YR_B25032_with_ann!F51","v":1580},{"$f":"[1]ACS_16_5YR_B25032_with_ann!G51","v":229},{"$f":"[1]ACS_16_5YR_B25032_with_ann!H51","v":1558},{"$f":"[1]ACS_16_5YR_B25032_with_ann!I51","v":236},{"$f":"[1]ACS_16_5YR_B25032_with_ann!J51","v":0},{"$f":"[1]ACS_16_5YR_B25032_with_ann!K51","v":17},{"$f":"[1]ACS_16_5YR_B25032_with_ann!L51","v":2},{"$f":"[1]ACS_16_5YR_B25032_with_ann!M51","v":5},{"$f":"[1]ACS_16_5YR_B25032_with_ann!N51","v":0},{"$f":"[1]ACS_16_5YR_B25032_with_ann!O51","v":17},{"$f":"[1]ACS_16_5YR_B25032_with_ann!P51","v":0},{"$f":"[1]ACS_16_5YR_B25032_with_ann!Q51","v":17},{"$f":"[1]ACS_16_5YR_B25032_with_ann!R51","v":0},{"$f":"[1]ACS_16_5YR_B25032_with_ann!S51","v":17},{"$f":"[1]ACS_16_5YR_B25032_with_ann!T51","v":0},{"$f":"[1]ACS_16_5YR_B25032_with_ann!U51","v":17},{"$f":"[1]ACS_16_5YR_B25032_with_ann!V51","v":0},{"$f":"[1]ACS_16_5YR_B25032_with_ann!W51","v":17},{"$f":"[1]ACS_16_5YR_B25032_with_ann!X51","v":20},{"$f":"[1]ACS_16_5YR_B25032_with_ann!Y51","v":24},{"$f":"[1]ACS_16_5YR_B25032_with_ann!Z51","v":0},{"$f":"[1]ACS_16_5YR_B25032_with_ann!AA51","v":17},{"$f":"[1]ACS_16_5YR_B25032_with_ann!AB51","v":446},{"$f":"[1]ACS_16_5YR_B25032_with_ann!AC51","v":167},{"$f":"[1]ACS_16_5YR_B25032_with_ann!AD51","v":114},{"$f":"[1]ACS_16_5YR_B25032_with_ann!AE51","v":107},{"$f":"[1]ACS_16_5YR_B25032_with_ann!AF51","v":49},{"$f":"[1]ACS_16_5YR_B25032_with_ann!AG51","v":74},{"$f":"[1]ACS_16_5YR_B25032_with_ann!AH51","v":50},{"$f":"[1]ACS_16_5YR_B25032_with_ann!AI51","v":50},{"$f":"[1]ACS_16_5YR_B25032_with_ann!AJ51","v":46},{"$f":"[1]ACS_16_5YR_B25032_with_ann!AK51","v":45},{"$f":"[1]ACS_16_5YR_B25032_with_ann!AL51","v":95},{"$f":"[1]ACS_16_5YR_B25032_with_ann!AM51","v":70},{"$f":"[1]ACS_16_5YR_B25032_with_ann!AN51","v":21},{"$f":"[1]ACS_16_5YR_B25032_with_ann!AO51","v":33},{"$f":"[1]ACS_16_5YR_B25032_with_ann!AP51","v":44},{"$f":"[1]ACS_16_5YR_B25032_with_ann!AQ51","v":42},{"$f":"[1]ACS_16_5YR_B25032_with_ann!AR51","v":0},{"$f":"[1]ACS_16_5YR_B25032_with_ann!AS51","v":17},{"$f":"[1]ACS_16_5YR_B25032_with_ann!AT51","v":27},{"$f":"[1]ACS_16_5YR_B25032_with_ann!AU51","v":43},{"$f":"[1]ACS_16_5YR_B25032_with_ann!AV51","v":0},{"$f":"[1]ACS_16_5YR_B25032_with_ann!AW51","v":17}]
["06000US3300539300","0600000US3300545460","060",{"$f":"[1]ACS_16_5YR_B25032_with_ann!C52","v":"Keene"},{"$f":"[1]ACS_16_5YR_B25032_with_ann!D52","v":9259},{"$f":"[1]ACS_16_5YR_B25032_with_ann!E52","v":370},{"$f":"[1]ACS_16_5YR_B25032_with_ann!F52","v":4762},{"$f":"[1]ACS_16_5YR_B25032_with_ann!G52","v":346},{"$f":"[1]ACS_16_5YR_B25032_with_ann!H52","v":3755},{"$f":"[1]ACS_16_5YR_B25032_with_ann!I52","v":320},{"$f":"[1]ACS_16_5YR_B25032_with_ann!J52","v":341},{"$f":"[1]ACS_16_5YR_B25032_with_ann!K52","v":165},{"$f":"[1]ACS_16_5YR_B25032_with_ann!L52","v":252},{"$f":"[1]ACS_16_5YR_B25032_with_ann!M52","v":137},{"$f":"[1]ACS_16_5YR_B25032_with_ann!N52","v":0},{"$f":"[1]ACS_16_5YR_B25032_with_ann!O52","v":22},{"$f":"[1]ACS_16_5YR_B25032_with_ann!P52","v":57},{"$f":"[1]ACS_16_5YR_B25032_with_ann!Q52","v":41},{"$f":"[1]ACS_16_5YR_B25032_with_ann!R52","v":27},{"$f":"[1]ACS_16_5YR_B25032_with_ann!S52","v":32},{"$f":"[1]ACS_16_5YR_B25032_with_ann!T52","v":0},{"$f":"[1]ACS_16_5YR_B25032_with_ann!U52","v":22},{"$f":"[1]ACS_16_5YR_B25032_with_ann!V52","v":37},{"$f":"[1]ACS_16_5YR_B25032_with_ann!W52","v":42},{"$f":"[1]ACS_16_5YR_B25032_with_ann!X52","v":293},{"$f":"[1]ACS_16_5YR_B25032_with_ann!Y52","v":149},{"$f":"[1]ACS_16_5YR_B25032_with_ann!Z52","v":0},{"$f":"[1]ACS_16_5YR_B25032_with_ann!AA52","v":22},{"$f":"[1]ACS_16_5YR_B25032_with_ann!AB52","v":4497},{"$f":"[1]ACS_16_5YR_B25032_with_ann!AC52","v":356},{"$f":"[1]ACS_16_5YR_B25032_with_ann!AD52","v":541},{"$f":"[1]ACS_16_5YR_B25032_with_ann!AE52","v":169},{"$f":"[1]ACS_16_5YR_B25032_with_ann!AF52","v":111},{"$f":"[1]ACS_16_5YR_B25032_with_ann!AG52","v":60},{"$f":"[1]ACS_16_5YR_B25032_with_ann!AH52","v":824},{"$f":"[1]ACS_16_5YR_B25032_with_ann!AI52","v":243},{"$f":"[1]ACS_16_5YR_B25032_with_ann!AJ52","v":660},{"$f":"[1]ACS_16_5YR_B25032_with_ann!AK52","v":192},{"$f":"[1]ACS_16_5YR_B25032_with_ann!AL52","v":805},{"$f":"[1]ACS_16_5YR_B25032_with_ann!AM52","v":187},{"$f":"[1]ACS_16_5YR_B25032_with_ann!AN52","v":541},{"$f":"[1]ACS_16_5YR_B25032_with_ann!AO52","v":180},{"$f":"[1]ACS_16_5YR_B25032_with_ann!AP52","v":588},{"$f":"[1]ACS_16_5YR_B25032_with_ann!AQ52","v":216},{"$f":"[1]ACS_16_5YR_B25032_with_ann!AR52","v":427},{"$f":"[1]ACS_16_5YR_B25032_with_ann!AS52","v":168},{"$f":"[1]ACS_16_5YR_B25032_with_ann!AT52","v":0},{"$f":"[1]ACS_16_5YR_B25032_with_ann!AU52","v":22},{"$f":"[1]ACS_16_5YR_B25032_with_ann!AV52","v":0},{"$f":"[1]ACS_16_5YR_B25032_with_ann!AW52","v":22}]
["06000US3300545460","0600000US3300545700","060",{"$f":"[1]ACS_16_5YR_B25032_with_ann!C53","v":"Marlborough"},{"$f":"[1]ACS_16_5YR_B25032_with_ann!D53","v":942},{"$f":"[1]ACS_16_5YR_B25032_with_ann!E53","v":130},{"$f":"[1]ACS_16_5YR_B25032_with_ann!F53","v":608},{"$f":"[1]ACS_16_5YR_B25032_with_ann!G53","v":113},{"$f":"[1]ACS_16_5YR_B25032_with_ann!H53","v":516},{"$f":"[1]ACS_16_5YR_B25032_with_ann!I53","v":106},{"$f":"[1]ACS_16_5YR_B25032_with_ann!J53","v":13},{"$f":"[1]ACS_16_5YR_B25032_with_ann!K53","v":14},{"$f":"[1]ACS_16_5YR_B25032_with_ann!L53","v":25},{"$f":"[1]ACS_16_5YR_B25032_with_ann!M53","v":34},{"$f":"[1]ACS_16_5YR_B25032_with_ann!N53","v":14},{"$f":"[1]ACS_16_5YR_B25032_with_ann!O53","v":19},{"$f":"[1]ACS_16_5YR_B25032_with_ann!P53","v":18},{"$f":"[1]ACS_16_5YR_B25032_with_ann!Q53","v":21},{"$f":"[1]ACS_16_5YR_B25032_with_ann!R53","v":0},{"$f":"[1]ACS_16_5YR_B25032_with_ann!S53","v":12},{"$f":"[1]ACS_16_5YR_B25032_with_ann!T53","v":0},{"$f":"[1]ACS_16_5YR_B25032_with_ann!U53","v":12},{"$f":"[1]ACS_16_5YR_B25032_with_ann!V53","v":0},{"$f":"[1]ACS_16_5YR_B25032_with_ann!W53","v":12},{"$f":"[1]ACS_16_5YR_B25032_with_ann!X53","v":22},{"$f":"[1]ACS_16_5YR_B25032_with_ann!Y53","v":17},{"$f":"[1]ACS_16_5YR_B25032_with_ann!Z53","v":0},{"$f":"[1]ACS_16_5YR_B25032_with_ann!AA53","v":12},{"$f":"[1]ACS_16_5YR_B25032_with_ann!AB53","v":334},{"$f":"[1]ACS_16_5YR_B25032_with_ann!AC53","v":92},{"$f":"[1]ACS_16_5YR_B25032_with_ann!AD53","v":83},{"$f":"[1]ACS_16_5YR_B25032_with_ann!AE53","v":65},{"$f":"[1]ACS_16_5YR_B25032_with_ann!AF53","v":5},{"$f":"[1]ACS_16_5YR_B25032_with_ann!AG53","v":7},{"$f":"[1]ACS_16_5YR_B25032_with_ann!AH53","v":45},{"$f":"[1]ACS_16_5YR_B25032_with_ann!AI53","v":27},{"$f":"[1]ACS_16_5YR_B25032_with_ann!AJ53","v":72},{"$f":"[1]ACS_16_5YR_B25032_with_ann!AK53","v":44},{"$f":"[1]ACS_16_5YR_B25032_with_ann!AL53","v":46},{"$f":"[1]ACS_16_5YR_B25032_with_ann!AM53","v":29},{"$f":"[1]ACS_16_5YR_B25032_with_ann!AN53","v":5},{"$f":"[1]ACS_16_5YR_B25032_with_ann!AO53","v":8},{"$f":"[1]ACS_16_5YR_B25032_with_ann!AP53","v":73},{"$f":"[1]ACS_16_5YR_B25032_with_ann!AQ53","v":25},{"$f":"[1]ACS_16_5YR_B25032_with_ann!AR53","v":0},{"$f":"[1]ACS_16_5YR_B25032_with_ann!AS53","v":12},{"$f":"[1]ACS_16_5YR_B25032_with_ann!AT53","v":5},{"$f":"[1]ACS_16_5YR_B25032_with_ann!AU53","v":8},{"$f":"[1]ACS_16_5YR_B25032_with_ann!AV53","v":0},{"$f":"[1]ACS_16_5YR_B25032_with_ann!AW53","v":12}]
["06000US3300545700","0600000US3300550580","060",{"$f":"[1]ACS_16_5YR_B25032_with_ann!C54","v":"Marlow"},{"$f":"[1]ACS_16_5YR_B25032_with_ann!D54","v":314},{"$f":"[1]ACS_16_5YR_B25032_with_ann!E54","v":61},{"$f":"[1]ACS_16_5YR_B25032_with_ann!F54","v":279},{"$f":"[1]ACS_16_5YR_B25032_with_ann!G54","v":56},{"$f":"[1]ACS_16_5YR_B25032_with_ann!H54","v":246},{"$f":"[1]ACS_16_5YR_B25032_with_ann!I54","v":49},{"$f":"[1]ACS_16_5YR_B25032_with_ann!J54","v":10},{"$f":"[1]ACS_16_5YR_B25032_with_ann!K54","v":17},{"$f":"[1]ACS_16_5YR_B25032_with_ann!L54","v":0},{"$f":"[1]ACS_16_5YR_B25032_with_ann!M54","v":12},{"$f":"[1]ACS_16_5YR_B25032_with_ann!N54","v":0},{"$f":"[1]ACS_16_5YR_B25032_with_ann!O54","v":12},{"$f":"[1]ACS_16_5YR_B25032_with_ann!P54","v":0},{"$f":"[1]ACS_16_5YR_B25032_with_ann!Q54","v":12},{"$f":"[1]ACS_16_5YR_B25032_with_ann!R54","v":0},{"$f":"[1]ACS_16_5YR_B25032_with_ann!S54","v":12},{"$f":"[1]ACS_16_5YR_B25032_with_ann!T54","v":0},{"$f":"[1]ACS_16_5YR_B25032_with_ann!U54","v":12},{"$f":"[1]ACS_16_5YR_B25032_with_ann!V54","v":0},{"$f":"[1]ACS_16_5YR_B25032_with_ann!W54","v":12},{"$f":"[1]ACS_16_5YR_B25032_with_ann!X54","v":23},{"$f":"[1]ACS_16_5YR_B25032_with_ann!Y54","v":17},{"$f":"[1]ACS_16_5YR_B25032_with_ann!Z54","v":0},{"$f":"[1]ACS_16_5YR_B25032_with_ann!AA54","v":12},{"$f":"[1]ACS_16_5YR_B25032_with_ann!AB54","v":35},{"$f":"[1]ACS_16_5YR_B25032_with_ann!AC54","v":29},{"$f":"[1]ACS_16_5YR_B25032_with_ann!AD54","v":35},{"$f":"[1]ACS_16_5YR_B25032_with_ann!AE54","v":29},{"$f":"[1]ACS_16_5YR_B25032_with_ann!AF54","v":0},{"$f":"[1]ACS_16_5YR_B25032_with_ann!AG54","v":12},{"$f":"[1]ACS_16_5YR_B25032_with_ann!AH54","v":0},{"$f":"[1]ACS_16_5YR_B25032_with_ann!AI54","v":12},{"$f":"[1]ACS_16_5YR_B25032_with_ann!AJ54","v":0},{"$f":"[1]ACS_16_5YR_B25032_with_ann!AK54","v":12},{"$f":"[1]ACS_16_5YR_B25032_with_ann!AL54","v":0},{"$f":"[1]ACS_16_5YR_B25032_with_ann!AM54","v":12},{"$f":"[1]ACS_16_5YR_B25032_with_ann!AN54","v":0},{"$f":"[1]ACS_16_5YR_B25032_with_ann!AO54","v":12},{"$f":"[1]ACS_16_5YR_B25032_with_ann!AP54","v":0},{"$f":"[1]ACS_16_5YR_B25032_with_ann!AQ54","v":12},{"$f":"[1]ACS_16_5YR_B25032_with_ann!AR54","v":0},{"$f":"[1]ACS_16_5YR_B25032_with_ann!AS54","v":12},{"$f":"[1]ACS_16_5YR_B25032_with_ann!AT54","v":0},{"$f":"[1]ACS_16_5YR_B25032_with_ann!AU54","v":12},{"$f":"[1]ACS_16_5YR_B25032_with_ann!AV54","v":0},{"$f":"[1]ACS_16_5YR_B25032_with_ann!AW54","v":12}]
["06000US3300550580","0600000US3300564420","060",{"$f":"[1]ACS_16_5YR_B25032_with_ann!C55","v":"Nelson"},{"$f":"[1]ACS_16_5YR_B25032_with_ann!D55","v":246},{"$f":"[1]ACS_16_5YR_B25032_with_ann!E55","v":41},{"$f":"[1]ACS_16_5YR_B25032_with_ann!F55","v":225},{"$f":"[1]ACS_16_5YR_B25032_with_ann!G55","v":42},{"$f":"[1]ACS_16_5YR_B25032_with_ann!H55","v":211},{"$f":"[1]ACS_16_5YR_B25032_with_ann!I55","v":38},{"$f":"[1]ACS_16_5YR_B25032_with_ann!J55","v":8},{"$f":"[1]ACS_16_5YR_B25032_with_ann!K55","v":8},{"$f":"[1]ACS_16_5YR_B25032_with_ann!L55","v":0},{"$f":"[1]ACS_16_5YR_B25032_with_ann!M55","v":12},{"$f":"[1]ACS_16_5YR_B25032_with_ann!N55","v":0},{"$f":"[1]ACS_16_5YR_B25032_with_ann!O55","v":12},{"$f":"[1]ACS_16_5YR_B25032_with_ann!P55","v":0},{"$f":"[1]ACS_16_5YR_B25032_with_ann!Q55","v":12},{"$f":"[1]ACS_16_5YR_B25032_with_ann!R55","v":0},{"$f":"[1]ACS_16_5YR_B25032_with_ann!S55","v":12},{"$f":"[1]ACS_16_5YR_B25032_with_ann!T55","v":0},{"$f":"[1]ACS_16_5YR_B25032_with_ann!U55","v":12},{"$f":"[1]ACS_16_5YR_B25032_with_ann!V55","v":0},{"$f":"[1]ACS_16_5YR_B25032_with_ann!W55","v":12},{"$f":"[1]ACS_16_5YR_B25032_with_ann!X55","v":6},{"$f":"[1]ACS_16_5YR_B25032_with_ann!Y55","v":8},{"$f":"[1]ACS_16_5YR_B25032_with_ann!Z55","v":0},{"$f":"[1]ACS_16_5YR_B25032_with_ann!AA55","v":12},{"$f":"[1]ACS_16_5YR_B25032_with_ann!AB55","v":21},{"$f":"[1]ACS_16_5YR_B25032_with_ann!AC55","v":11},{"$f":"[1]ACS_16_5YR_B25032_with_ann!AD55","v":13},{"$f":"[1]ACS_16_5YR_B25032_with_ann!AE55","v":8},{"$f":"[1]ACS_16_5YR_B25032_with_ann!AF55","v":0},{"$f":"[1]ACS_16_5YR_B25032_with_ann!AG55","v":12},{"$f":"[1]ACS_16_5YR_B25032_with_ann!AH55","v":8},{"$f":"[1]ACS_16_5YR_B25032_with_ann!AI55","v":7},{"$f":"[1]ACS_16_5YR_B25032_with_ann!AJ55","v":0},{"$f":"[1]ACS_16_5YR_B25032_with_ann!AK55","v":12},{"$f":"[1]ACS_16_5YR_B25032_with_ann!AL55","v":0},{"$f":"[1]ACS_16_5YR_B25032_with_ann!AM55","v":12},{"$f":"[1]ACS_16_5YR_B25032_with_ann!AN55","v":0},{"$f":"[1]ACS_16_5YR_B25032_with_ann!AO55","v":12},{"$f":"[1]ACS_16_5YR_B25032_with_ann!AP55","v":0},{"$f":"[1]ACS_16_5YR_B25032_with_ann!AQ55","v":12},{"$f":"[1]ACS_16_5YR_B25032_with_ann!AR55","v":0},{"$f":"[1]ACS_16_5YR_B25032_with_ann!AS55","v":12},{"$f":"[1]ACS_16_5YR_B25032_with_ann!AT55","v":0},{"$f":"[1]ACS_16_5YR_B25032_with_ann!AU55","v":12},{"$f":"[1]ACS_16_5YR_B25032_with_ann!AV55","v":0},{"$f":"[1]ACS_16_5YR_B25032_with_ann!AW55","v":12}]
["06000US3300564420","0600000US3300564580","060",{"$f":"[1]ACS_16_5YR_B25032_with_ann!C56","v":"Richmond"},{"$f":"[1]ACS_16_5YR_B25032_with_ann!D56","v":393},{"$f":"[1]ACS_16_5YR_B25032_with_ann!E56","v":73},{"$f":"[1]ACS_16_5YR_B25032_with_ann!F56","v":383},{"$f":"[1]ACS_16_5YR_B25032_with_ann!G56","v":72},{"$f":"[1]ACS_16_5YR_B25032_with_ann!H56","v":349},{"$f":"[1]ACS_16_5YR_B25032_with_ann!I56","v":67},{"$f":"[1]ACS_16_5YR_B25032_with_ann!J56","v":0},{"$f":"[1]ACS_16_5YR_B25032_with_ann!K56","v":12},{"$f":"[1]ACS_16_5YR_B25032_with_ann!L56","v":19},{"$f":"[1]ACS_16_5YR_B25032_with_ann!M56","v":29},{"$f":"[1]ACS_16_5YR_B25032_with_ann!N56","v":0},{"$f":"[1]ACS_16_5YR_B25032_with_ann!O56","v":12},{"$f":"[1]ACS_16_5YR_B25032_with_ann!P56","v":0},{"$f":"[1]ACS_16_5YR_B25032_with_ann!Q56","v":12},{"$f":"[1]ACS_16_5YR_B25032_with_ann!R56","v":0},{"$f":"[1]ACS_16_5YR_B25032_with_ann!S56","v":12},{"$f":"[1]ACS_16_5YR_B25032_with_ann!T56","v":0},{"$f":"[1]ACS_16_5YR_B25032_with_ann!U56","v":12},{"$f":"[1]ACS_16_5YR_B25032_with_ann!V56","v":0},{"$f":"[1]ACS_16_5YR_B25032_with_ann!W56","v":12},{"$f":"[1]ACS_16_5YR_B25032_with_ann!X56","v":15},{"$f":"[1]ACS_16_5YR_B25032_with_ann!Y56","v":12},{"$f":"[1]ACS_16_5YR_B25032_with_ann!Z56","v":0},{"$f":"[1]ACS_16_5YR_B25032_with_ann!AA56","v":12},{"$f":"[1]ACS_16_5YR_B25032_with_ann!AB56","v":10},{"$f":"[1]ACS_16_5YR_B25032_with_ann!AC56","v":9},{"$f":"[1]ACS_16_5YR_B25032_with_ann!AD56","v":10},{"$f":"[1]ACS_16_5YR_B25032_with_ann!AE56","v":9},{"$f":"[1]ACS_16_5YR_B25032_with_ann!AF56","v":0},{"$f":"[1]ACS_16_5YR_B25032_with_ann!AG56","v":12},{"$f":"[1]ACS_16_5YR_B25032_with_ann!AH56","v":0},{"$f":"[1]ACS_16_5YR_B25032_with_ann!AI56","v":12},{"$f":"[1]ACS_16_5YR_B25032_with_ann!AJ56","v":0},{"$f":"[1]ACS_16_5YR_B25032_with_ann!AK56","v":12},{"$f":"[1]ACS_16_5YR_B25032_with_ann!AL56","v":0},{"$f":"[1]ACS_16_5YR_B25032_with_ann!AM56","v":12},{"$f":"[1]ACS_16_5YR_B25032_with_ann!AN56","v":0},{"$f":"[1]ACS_16_5YR_B25032_with_ann!AO56","v":12},{"$f":"[1]ACS_16_5YR_B25032_with_ann!AP56","v":0},{"$f":"[1]ACS_16_5YR_B25032_with_ann!AQ56","v":12},{"$f":"[1]ACS_16_5YR_B25032_with_ann!AR56","v":0},{"$f":"[1]ACS_16_5YR_B25032_with_ann!AS56","v":12},{"$f":"[1]ACS_16_5YR_B25032_with_ann!AT56","v":0},{"$f":"[1]ACS_16_5YR_B25032_with_ann!AU56","v":12},{"$f":"[1]ACS_16_5YR_B25032_with_ann!AV56","v":0},{"$f":"[1]ACS_16_5YR_B25032_with_ann!AW56","v":12}]
["06000US3300564580","0600000US3300565700","060",{"$f":"[1]ACS_16_5YR_B25032_with_ann!C57","v":"Rindge"},{"$f":"[1]ACS_16_5YR_B25032_with_ann!D57","v":1972},{"$f":"[1]ACS_16_5YR_B25032_with_ann!E57","v":144},{"$f":"[1]ACS_16_5YR_B25032_with_ann!F57","v":1711},{"$f":"[1]ACS_16_5YR_B25032_with_ann!G57","v":137},{"$f":"[1]ACS_16_5YR_B25032_with_ann!H57","v":1598},{"$f":"[1]ACS_16_5YR_B25032_with_ann!I57","v":130},{"$f":"[1]ACS_16_5YR_B25032_with_ann!J57","v":24},{"$f":"[1]ACS_16_5YR_B25032_with_ann!K57","v":26},{"$f":"[1]ACS_16_5YR_B25032_with_ann!L57","v":0},{"$f":"[1]ACS_16_5YR_B25032_with_ann!M57","v":17},{"$f":"[1]ACS_16_5YR_B25032_with_ann!N57","v":0},{"$f":"[1]ACS_16_5YR_B25032_with_ann!O57","v":17},{"$f":"[1]ACS_16_5YR_B25032_with_ann!P57","v":0},{"$f":"[1]ACS_16_5YR_B25032_with_ann!Q57","v":17},{"$f":"[1]ACS_16_5YR_B25032_with_ann!R57","v":0},{"$f":"[1]ACS_16_5YR_B25032_with_ann!S57","v":17},{"$f":"[1]ACS_16_5YR_B25032_with_ann!T57","v":0},{"$f":"[1]ACS_16_5YR_B25032_with_ann!U57","v":17},{"$f":"[1]ACS_16_5YR_B25032_with_ann!V57","v":0},{"$f":"[1]ACS_16_5YR_B25032_with_ann!W57","v":17},{"$f":"[1]ACS_16_5YR_B25032_with_ann!X57","v":89},{"$f":"[1]ACS_16_5YR_B25032_with_ann!Y57","v":46},{"$f":"[1]ACS_16_5YR_B25032_with_ann!Z57","v":0},{"$f":"[1]ACS_16_5YR_B25032_with_ann!AA57","v":17},{"$f":"[1]ACS_16_5YR_B25032_with_ann!AB57","v":261},{"$f":"[1]ACS_16_5YR_B25032_with_ann!AC57","v":119},{"$f":"[1]ACS_16_5YR_B25032_with_ann!AD57","v":65},{"$f":"[1]ACS_16_5YR_B25032_with_ann!AE57","v":43},{"$f":"[1]ACS_16_5YR_B25032_with_ann!AF57","v":14},{"$f":"[1]ACS_16_5YR_B25032_with_ann!AG57","v":22},{"$f":"[1]ACS_16_5YR_B25032_with_ann!AH57","v":58},{"$f":"[1]ACS_16_5YR_B25032_with_ann!AI57","v":58},{"$f":"[1]ACS_16_5YR_B25032_with_ann!AJ57","v":0},{"$f":"[1]ACS_16_5YR_B25032_with_ann!AK57","v":17},{"$f":"[1]ACS_16_5YR_B25032_with_ann!AL57","v":64},{"$f":"[1]ACS_16_5YR_B25032_with_ann!AM57","v":49},{"$f":"[1]ACS_16_5YR_B25032_with_ann!AN57","v":7},{"$f":"[1]ACS_16_5YR_B25032_with_ann!AO57","v":11},{"$f":"[1]ACS_16_5YR_B25032_with_ann!AP57","v":53},{"$f":"[1]ACS_16_5YR_B25032_with_ann!AQ57","v":60},{"$f":"[1]ACS_16_5YR_B25032_with_ann!AR57","v":0},{"$f":"[1]ACS_16_5YR_B25032_with_ann!AS57","v":17},{"$f":"[1]ACS_16_5YR_B25032_with_ann!AT57","v":0},{"$f":"[1]ACS_16_5YR_B25032_with_ann!AU57","v":17},{"$f":"[1]ACS_16_5YR_B25032_with_ann!AV57","v":0},{"$f":"[1]ACS_16_5YR_B25032_with_ann!AW57","v":17}]
["06000US3300565700","0600000US3300573700","060",{"$f":"[1]ACS_16_5YR_B25032_with_ann!C58","v":"Roxbury"},{"$f":"[1]ACS_16_5YR_B25032_with_ann!D58","v":95},{"$f":"[1]ACS_16_5YR_B25032_with_ann!E58","v":37},{"$f":"[1]ACS_16_5YR_B25032_with_ann!F58","v":94},{"$f":"[1]ACS_16_5YR_B25032_with_ann!G58","v":38},{"$f":"[1]ACS_16_5YR_B25032_with_ann!H58","v":89},{"$f":"[1]ACS_16_5YR_B25032_with_ann!I58","v":37},{"$f":"[1]ACS_16_5YR_B25032_with_ann!J58","v":0},{"$f":"[1]ACS_16_5YR_B25032_with_ann!K58","v":12},{"$f":"[1]ACS_16_5YR_B25032_with_ann!L58","v":0},{"$f":"[1]ACS_16_5YR_B25032_with_ann!M58","v":12},{"$f":"[1]ACS_16_5YR_B25032_with_ann!N58","v":0},{"$f":"[1]ACS_16_5YR_B25032_with_ann!O58","v":12},{"$f":"[1]ACS_16_5YR_B25032_with_ann!P58","v":0},{"$f":"[1]ACS_16_5YR_B25032_with_ann!Q58","v":12},{"$f":"[1]ACS_16_5YR_B25032_with_ann!R58","v":0},{"$f":"[1]ACS_16_5YR_B25032_with_ann!S58","v":12},{"$f":"[1]ACS_16_5YR_B25032_with_ann!T58","v":0},{"$f":"[1]ACS_16_5YR_B25032_with_ann!U58","v":12},{"$f":"[1]ACS_16_5YR_B25032_with_ann!V58","v":0},{"$f":"[1]ACS_16_5YR_B25032_with_ann!W58","v":12},{"$f":"[1]ACS_16_5YR_B25032_with_ann!X58","v":5},{"$f":"[1]ACS_16_5YR_B25032_with_ann!Y58","v":5},{"$f":"[1]ACS_16_5YR_B25032_with_ann!Z58","v":0},{"$f":"[1]ACS_16_5YR_B25032_with_ann!AA58","v":12},{"$f":"[1]ACS_16_5YR_B25032_with_ann!AB58","v":1},{"$f":"[1]ACS_16_5YR_B25032_with_ann!AC58","v":3},{"$f":"[1]ACS_16_5YR_B25032_with_ann!AD58","v":1},{"$f":"[1]ACS_16_5YR_B25032_with_ann!AE58","v":3},{"$f":"[1]ACS_16_5YR_B25032_with_ann!AF58","v":0},{"$f":"[1]ACS_16_5YR_B25032_with_ann!AG58","v":12},{"$f":"[1]ACS_16_5YR_B25032_with_ann!AH58","v":0},{"$f":"[1]ACS_16_5YR_B25032_with_ann!AI58","v":12},{"$f":"[1]ACS_16_5YR_B25032_with_ann!AJ58","v":0},{"$f":"[1]ACS_16_5YR_B25032_with_ann!AK58","v":12},{"$f":"[1]ACS_16_5YR_B25032_with_ann!AL58","v":0},{"$f":"[1]ACS_16_5YR_B25032_with_ann!AM58","v":12},{"$f":"[1]ACS_16_5YR_B25032_with_ann!AN58","v":0},{"$f":"[1]ACS_16_5YR_B25032_with_ann!AO58","v":12},{"$f":"[1]ACS_16_5YR_B25032_with_ann!AP58","v":0},{"$f":"[1]ACS_16_5YR_B25032_with_ann!AQ58","v":12},{"$f":"[1]ACS_16_5YR_B25032_with_ann!AR58","v":0},{"$f":"[1]ACS_16_5YR_B25032_with_ann!AS58","v":12},{"$f":"[1]ACS_16_5YR_B25032_with_ann!AT58","v":0},{"$f":"[1]ACS_16_5YR_B25032_with_ann!AU58","v":12},{"$f":"[1]ACS_16_5YR_B25032_with_ann!AV58","v":0},{"$f":"[1]ACS_16_5YR_B25032_with_ann!AW58","v":12}]
["06000US3300573700","0600000US3300574900","060",{"$f":"[1]ACS_16_5YR_B25032_with_ann!C59","v":"Stoddard"},{"$f":"[1]ACS_16_5YR_B25032_with_ann!D59","v":436},{"$f":"[1]ACS_16_5YR_B25032_with_ann!E59","v":52},{"$f":"[1]ACS_16_5YR_B25032_with_ann!F59","v":405},{"$f":"[1]ACS_16_5YR_B25032_with_ann!G59","v":49},{"$f":"[1]ACS_16_5YR_B25032_with_ann!H59","v":391},{"$f":"[1]ACS_16_5YR_B25032_with_ann!I59","v":50},{"$f":"[1]ACS_16_5YR_B25032_with_ann!J59","v":9},{"$f":"[1]ACS_16_5YR_B25032_with_ann!K59","v":7},{"$f":"[1]ACS_16_5YR_B25032_with_ann!L59","v":2},{"$f":"[1]ACS_16_5YR_B25032_with_ann!M59","v":4},{"$f":"[1]ACS_16_5YR_B25032_with_ann!N59","v":0},{"$f":"[1]ACS_16_5YR_B25032_with_ann!O59","v":12},{"$f":"[1]ACS_16_5YR_B25032_with_ann!P59","v":3},{"$f":"[1]ACS_16_5YR_B25032_with_ann!Q59","v":4},{"$f":"[1]ACS_16_5YR_B25032_with_ann!R59","v":0},{"$f":"[1]ACS_16_5YR_B25032_with_ann!S59","v":12},{"$f":"[1]ACS_16_5YR_B25032_with_ann!T59","v":0},{"$f":"[1]ACS_16_5YR_B25032_with_ann!U59","v":12},{"$f":"[1]ACS_16_5YR_B25032_with_ann!V59","v":0},{"$f":"[1]ACS_16_5YR_B25032_with_ann!W59","v":12},{"$f":"[1]ACS_16_5YR_B25032_with_ann!X59","v":0},{"$f":"[1]ACS_16_5YR_B25032_with_ann!Y59","v":12},{"$f":"[1]ACS_16_5YR_B25032_with_ann!Z59","v":0},{"$f":"[1]ACS_16_5YR_B25032_with_ann!AA59","v":12},{"$f":"[1]ACS_16_5YR_B25032_with_ann!AB59","v":31},{"$f":"[1]ACS_16_5YR_B25032_with_ann!AC59","v":18},{"$f":"[1]ACS_16_5YR_B25032_with_ann!AD59","v":28},{"$f":"[1]ACS_16_5YR_B25032_with_ann!AE59","v":18},{"$f":"[1]ACS_16_5YR_B25032_with_ann!AF59","v":0},{"$f":"[1]ACS_16_5YR_B25032_with_ann!AG59","v":12},{"$f":"[1]ACS_16_5YR_B25032_with_ann!AH59","v":3},{"$f":"[1]ACS_16_5YR_B25032_with_ann!AI59","v":4},{"$f":"[1]ACS_16_5YR_B25032_with_ann!AJ59","v":0},{"$f":"[1]ACS_16_5YR_B25032_with_ann!AK59","v":12},{"$f":"[1]ACS_16_5YR_B25032_with_ann!AL59","v":0},{"$f":"[1]ACS_16_5YR_B25032_with_ann!AM59","v":12},{"$f":"[1]ACS_16_5YR_B25032_with_ann!AN59","v":0},{"$f":"[1]ACS_16_5YR_B25032_with_ann!AO59","v":12},{"$f":"[1]ACS_16_5YR_B25032_with_ann!AP59","v":0},{"$f":"[1]ACS_16_5YR_B25032_with_ann!AQ59","v":12},{"$f":"[1]ACS_16_5YR_B25032_with_ann!AR59","v":0},{"$f":"[1]ACS_16_5YR_B25032_with_ann!AS59","v":12},{"$f":"[1]ACS_16_5YR_B25032_with_ann!AT59","v":0},{"$f":"[1]ACS_16_5YR_B25032_with_ann!AU59","v":12},{"$f":"[1]ACS_16_5YR_B25032_with_ann!AV59","v":0},{"$f":"[1]ACS_16_5YR_B25032_with_ann!AW59","v":12}]
["06000US3300574900","0600000US3300575300","060",{"$f":"[1]ACS_16_5YR_B25032_with_ann!C60","v":"Sullivan"},{"$f":"[1]ACS_16_5YR_B25032_with_ann!D60","v":281},{"$f":"[1]ACS_16_5YR_B25032_with_ann!E60","v":53},{"$f":"[1]ACS_16_5YR_B25032_with_ann!F60","v":240},{"$f":"[1]ACS_16_5YR_B25032_with_ann!G60","v":46},{"$f":"[1]ACS_16_5YR_B25032_with_ann!H60","v":210},{"$f":"[1]ACS_16_5YR_B25032_with_ann!I60","v":43},{"$f":"[1]ACS_16_5YR_B25032_with_ann!J60","v":2},{"$f":"[1]ACS_16_5YR_B25032_with_ann!K60","v":3},{"$f":"[1]ACS_16_5YR_B25032_with_ann!L60","v":6},{"$f":"[1]ACS_16_5YR_B25032_with_ann!M60","v":5},{"$f":"[1]ACS_16_5YR_B25032_with_ann!N60","v":0},{"$f":"[1]ACS_16_5YR_B25032_with_ann!O60","v":12},{"$f":"[1]ACS_16_5YR_B25032_with_ann!P60","v":0},{"$f":"[1]ACS_16_5YR_B25032_with_ann!Q60","v":12},{"$f":"[1]ACS_16_5YR_B25032_with_ann!R60","v":0},{"$f":"[1]ACS_16_5YR_B25032_with_ann!S60","v":12},{"$f":"[1]ACS_16_5YR_B25032_with_ann!T60","v":0},{"$f":"[1]ACS_16_5YR_B25032_with_ann!U60","v":12},{"$f":"[1]ACS_16_5YR_B25032_with_ann!V60","v":0},{"$f":"[1]ACS_16_5YR_B25032_with_ann!W60","v":12},{"$f":"[1]ACS_16_5YR_B25032_with_ann!X60","v":22},{"$f":"[1]ACS_16_5YR_B25032_with_ann!Y60","v":10},{"$f":"[1]ACS_16_5YR_B25032_with_ann!Z60","v":0},{"$f":"[1]ACS_16_5YR_B25032_with_ann!AA60","v":12},{"$f":"[1]ACS_16_5YR_B25032_with_ann!AB60","v":41},{"$f":"[1]ACS_16_5YR_B25032_with_ann!AC60","v":21},{"$f":"[1]ACS_16_5YR_B25032_with_ann!AD60","v":24},{"$f":"[1]ACS_16_5YR_B25032_with_ann!AE60","v":20},{"$f":"[1]ACS_16_5YR_B25032_with_ann!AF60","v":0},{"$f":"[1]ACS_16_5YR_B25032_with_ann!AG60","v":12},{"$f":"[1]ACS_16_5YR_B25032_with_ann!AH60","v":4},{"$f":"[1]ACS_16_5YR_B25032_with_ann!AI60","v":5},{"$f":"[1]ACS_16_5YR_B25032_with_ann!AJ60","v":13},{"$f":"[1]ACS_16_5YR_B25032_with_ann!AK60","v":8},{"$f":"[1]ACS_16_5YR_B25032_with_ann!AL60","v":0},{"$f":"[1]ACS_16_5YR_B25032_with_ann!AM60","v":12},{"$f":"[1]ACS_16_5YR_B25032_with_ann!AN60","v":0},{"$f":"[1]ACS_16_5YR_B25032_with_ann!AO60","v":12},{"$f":"[1]ACS_16_5YR_B25032_with_ann!AP60","v":0},{"$f":"[1]ACS_16_5YR_B25032_with_ann!AQ60","v":12},{"$f":"[1]ACS_16_5YR_B25032_with_ann!AR60","v":0},{"$f":"[1]ACS_16_5YR_B25032_with_ann!AS60","v":12},{"$f":"[1]ACS_16_5YR_B25032_with_ann!AT60","v":0},{"$f":"[1]ACS_16_5YR_B25032_with_ann!AU60","v":12},{"$f":"[1]ACS_16_5YR_B25032_with_ann!AV60","v":0},{"$f":"[1]ACS_16_5YR_B25032_with_ann!AW60","v":12}]
["06000US3300575300","0600000US3300575700","060",{"$f":"[1]ACS_16_5YR_B25032_with_ann!C61","v":"Surry"},{"$f":"[1]ACS_16_5YR_B25032_with_ann!D61","v":344},{"$f":"[1]ACS_16_5YR_B25032_with_ann!E61","v":58},{"$f":"[1]ACS_16_5YR_B25032_with_ann!F61","v":324},{"$f":"[1]ACS_16_5YR_B25032_with_ann!G61","v":59},{"$f":"[1]ACS_16_5YR_B25032_with_ann!H61","v":320},{"$f":"[1]ACS_16_5YR_B25032_with_ann!I61","v":58},{"$f":"[1]ACS_16_5YR_B25032_with_ann!J61","v":0},{"$f":"[1]ACS_16_5YR_B25032_with_ann!K61","v":12},{"$f":"[1]ACS_16_5YR_B25032_with_ann!L61","v":2},{"$f":"[1]ACS_16_5YR_B25032_with_ann!M61","v":3},{"$f":"[1]ACS_16_5YR_B25032_with_ann!N61","v":0},{"$f":"[1]ACS_16_5YR_B25032_with_ann!O61","v":12},{"$f":"[1]ACS_16_5YR_B25032_with_ann!P61","v":0},{"$f":"[1]ACS_16_5YR_B25032_with_ann!Q61","v":12},{"$f":"[1]ACS_16_5YR_B25032_with_ann!R61","v":0},{"$f":"[1]ACS_16_5YR_B25032_with_ann!S61","v":12},{"$f":"[1]ACS_16_5YR_B25032_with_ann!T61","v":0},{"$f":"[1]ACS_16_5YR_B25032_with_ann!U61","v":12},{"$f":"[1]ACS_16_5YR_B25032_with_ann!V61","v":0},{"$f":"[1]ACS_16_5YR_B25032_with_ann!W61","v":12},{"$f":"[1]ACS_16_5YR_B25032_with_ann!X61","v":2},{"$f":"[1]ACS_16_5YR_B25032_with_ann!Y61","v":3},{"$f":"[1]ACS_16_5YR_B25032_with_ann!Z61","v":0},{"$f":"[1]ACS_16_5YR_B25032_with_ann!AA61","v":12},{"$f":"[1]ACS_16_5YR_B25032_with_ann!AB61","v":20},{"$f":"[1]ACS_16_5YR_B25032_with_ann!AC61","v":9},{"$f":"[1]ACS_16_5YR_B25032_with_ann!AD61","v":18},{"$f":"[1]ACS_16_5YR_B25032_with_ann!AE61","v":8},{"$f":"[1]ACS_16_5YR_B25032_with_ann!AF61","v":0},{"$f":"[1]ACS_16_5YR_B25032_with_ann!AG61","v":12},{"$f":"[1]ACS_16_5YR_B25032_with_ann!AH61","v":2},{"$f":"[1]ACS_16_5YR_B25032_with_ann!AI61","v":4},{"$f":"[1]ACS_16_5YR_B25032_with_ann!AJ61","v":0},{"$f":"[1]ACS_16_5YR_B25032_with_ann!AK61","v":12},{"$f":"[1]ACS_16_5YR_B25032_with_ann!AL61","v":0},{"$f":"[1]ACS_16_5YR_B25032_with_ann!AM61","v":12},{"$f":"[1]ACS_16_5YR_B25032_with_ann!AN61","v":0},{"$f":"[1]ACS_16_5YR_B25032_with_ann!AO61","v":12},{"$f":"[1]ACS_16_5YR_B25032_with_ann!AP61","v":0},{"$f":"[1]ACS_16_5YR_B25032_with_ann!AQ61","v":12},{"$f":"[1]ACS_16_5YR_B25032_with_ann!AR61","v":0},{"$f":"[1]ACS_16_5YR_B25032_with_ann!AS61","v":12},{"$f":"[1]ACS_16_5YR_B25032_with_ann!AT61","v":0},{"$f":"[1]ACS_16_5YR_B25032_with_ann!AU61","v":12},{"$f":"[1]ACS_16_5YR_B25032_with_ann!AV61","v":0},{"$f":"[1]ACS_16_5YR_B25032_with_ann!AW61","v":12}]
["06000US3300575700","0600000US3300577380","060",{"$f":"[1]ACS_16_5YR_B25032_with_ann!C62","v":"Swanzey"},{"$f":"[1]ACS_16_5YR_B25032_with_ann!D62","v":3255},{"$f":"[1]ACS_16_5YR_B25032_with_ann!E62","v":171},{"$f":"[1]ACS_16_5YR_B25032_with_ann!F62","v":2237},{"$f":"[1]ACS_16_5YR_B25032_with_ann!G62","v":250},{"$f":"[1]ACS_16_5YR_B25032_with_ann!H62","v":1843},{"$f":"[1]ACS_16_5YR_B25032_with_ann!I62","v":256},{"$f":"[1]ACS_16_5YR_B25032_with_ann!J62","v":149},{"$f":"[1]ACS_16_5YR_B25032_with_ann!K62","v":98},{"$f":"[1]ACS_16_5YR_B25032_with_ann!L62","v":0},{"$f":"[1]ACS_16_5YR_B25032_with_ann!M62","v":17},{"$f":"[1]ACS_16_5YR_B25032_with_ann!N62","v":0},{"$f":"[1]ACS_16_5YR_B25032_with_ann!O62","v":17},{"$f":"[1]ACS_16_5YR_B25032_with_ann!P62","v":0},{"$f":"[1]ACS_16_5YR_B25032_with_ann!Q62","v":17},{"$f":"[1]ACS_16_5YR_B25032_with_ann!R62","v":0},{"$f":"[1]ACS_16_5YR_B25032_with_ann!S62","v":17},{"$f":"[1]ACS_16_5YR_B25032_with_ann!T62","v":0},{"$f":"[1]ACS_16_5YR_B25032_with_ann!U62","v":17},{"$f":"[1]ACS_16_5YR_B25032_with_ann!V62","v":0},{"$f":"[1]ACS_16_5YR_B25032_with_ann!W62","v":17},{"$f":"[1]ACS_16_5YR_B25032_with_ann!X62","v":245},{"$f":"[1]ACS_16_5YR_B25032_with_ann!Y62","v":118},{"$f":"[1]ACS_16_5YR_B25032_with_ann!Z62","v":0},{"$f":"[1]ACS_16_5YR_B25032_with_ann!AA62","v":17},{"$f":"[1]ACS_16_5YR_B25032_with_ann!AB62","v":1018},{"$f":"[1]ACS_16_5YR_B25032_with_ann!AC62","v":252},{"$f":"[1]ACS_16_5YR_B25032_with_ann!AD62","v":218},{"$f":"[1]ACS_16_5YR_B25032_with_ann!AE62","v":167},{"$f":"[1]ACS_16_5YR_B25032_with_ann!AF62","v":33},{"$f":"[1]ACS_16_5YR_B25032_with_ann!AG62","v":37},{"$f":"[1]ACS_16_5YR_B25032_with_ann!AH62","v":148},{"$f":"[1]ACS_16_5YR_B25032_with_ann!AI62","v":85},{"$f":"[1]ACS_16_5YR_B25032_with_ann!AJ62","v":45},{"$f":"[1]ACS_16_5YR_B25032_with_ann!AK62","v":46},{"$f":"[1]ACS_16_5YR_B25032_with_ann!AL62","v":238},{"$f":"[1]ACS_16_5YR_B25032_with_ann!AM62","v":155},{"$f":"[1]ACS_16_5YR_B25032_with_ann!AN62","v":115},{"$f":"[1]ACS_16_5YR_B25032_with_ann!AO62","v":79},{"$f":"[1]ACS_16_5YR_B25032_with_ann!AP62","v":131},{"$f":"[1]ACS_16_5YR_B25032_with_ann!AQ62","v":97},{"$f":"[1]ACS_16_5YR_B25032_with_ann!AR62","v":90},{"$f":"[1]ACS_16_5YR_B25032_with_ann!AS62","v":74},{"$f":"[1]ACS_16_5YR_B25032_with_ann!AT62","v":0},{"$f":"[1]ACS_16_5YR_B25032_with_ann!AU62","v":17},{"$f":"[1]ACS_16_5YR_B25032_with_ann!AV62","v":0},{"$f":"[1]ACS_16_5YR_B25032_with_ann!AW62","v":17}]
["06000US3300577380","0600000US3300578420","060",{"$f":"[1]ACS_16_5YR_B25032_with_ann!C63","v":"Troy"},{"$f":"[1]ACS_16_5YR_B25032_with_ann!D63","v":758},{"$f":"[1]ACS_16_5YR_B25032_with_ann!E63","v":101},{"$f":"[1]ACS_16_5YR_B25032_with_ann!F63","v":525},{"$f":"[1]ACS_16_5YR_B25032_with_ann!G63","v":81},{"$f":"[1]ACS_16_5YR_B25032_with_ann!H63","v":495},{"$f":"[1]ACS_16_5YR_B25032_with_ann!I63","v":78},{"$f":"[1]ACS_16_5YR_B25032_with_ann!J63","v":0},{"$f":"[1]ACS_16_5YR_B25032_with_ann!K63","v":12},{"$f":"[1]ACS_16_5YR_B25032_with_ann!L63","v":6},{"$f":"[1]ACS_16_5YR_B25032_with_ann!M63","v":9},{"$f":"[1]ACS_16_5YR_B25032_with_ann!N63","v":0},{"$f":"[1]ACS_16_5YR_B25032_with_ann!O63","v":12},{"$f":"[1]ACS_16_5YR_B25032_with_ann!P63","v":0},{"$f":"[1]ACS_16_5YR_B25032_with_ann!Q63","v":12},{"$f":"[1]ACS_16_5YR_B25032_with_ann!R63","v":0},{"$f":"[1]ACS_16_5YR_B25032_with_ann!S63","v":12},{"$f":"[1]ACS_16_5YR_B25032_with_ann!T63","v":0},{"$f":"[1]ACS_16_5YR_B25032_with_ann!U63","v":12},{"$f":"[1]ACS_16_5YR_B25032_with_ann!V63","v":0},{"$f":"[1]ACS_16_5YR_B25032_with_ann!W63","v":12},{"$f":"[1]ACS_16_5YR_B25032_with_ann!X63","v":24},{"$f":"[1]ACS_16_5YR_B25032_with_ann!Y63","v":26},{"$f":"[1]ACS_16_5YR_B25032_with_ann!Z63","v":0},{"$f":"[1]ACS_16_5YR_B25032_with_ann!AA63","v":12},{"$f":"[1]ACS_16_5YR_B25032_with_ann!AB63","v":233},{"$f":"[1]ACS_16_5YR_B25032_with_ann!AC63","v":73},{"$f":"[1]ACS_16_5YR_B25032_with_ann!AD63","v":19},{"$f":"[1]ACS_16_5YR_B25032_with_ann!AE63","v":16},{"$f":"[1]ACS_16_5YR_B25032_with_ann!AF63","v":0},{"$f":"[1]ACS_16_5YR_B25032_with_ann!AG63","v":12},{"$f":"[1]ACS_16_5YR_B25032_with_ann!AH63","v":90},{"$f":"[1]ACS_16_5YR_B25032_with_ann!AI63","v":54},{"$f":"[1]ACS_16_5YR_B25032_with_ann!AJ63","v":39},{"$f":"[1]ACS_16_5YR_B25032_with_ann!AK63","v":26},{"$f":"[1]ACS_16_5YR_B25032_with_ann!AL63","v":28},{"$f":"[1]ACS_16_5YR_B25032_with_ann!AM63","v":28},{"$f":"[1]ACS_16_5YR_B25032_with_ann!AN63","v":20},{"$f":"[1]ACS_16_5YR_B25032_with_ann!AO63","v":26},{"$f":"[1]ACS_16_5YR_B25032_with_ann!AP63","v":0},{"$f":"[1]ACS_16_5YR_B25032_with_ann!AQ63","v":12},{"$f":"[1]ACS_16_5YR_B25032_with_ann!AR63","v":0},{"$f":"[1]ACS_16_5YR_B25032_with_ann!AS63","v":12},{"$f":"[1]ACS_16_5YR_B25032_with_ann!AT63","v":37},{"$f":"[1]ACS_16_5YR_B25032_with_ann!AU63","v":31},{"$f":"[1]ACS_16_5YR_B25032_with_ann!AV63","v":0},{"$f":"[1]ACS_16_5YR_B25032_with_ann!AW63","v":12}]
["06000US3300578420","0600000US3300582660","060",{"$f":"[1]ACS_16_5YR_B25032_with_ann!C64","v":"Walpole"},{"$f":"[1]ACS_16_5YR_B25032_with_ann!D64","v":1427},{"$f":"[1]ACS_16_5YR_B25032_with_ann!E64","v":121},{"$f":"[1]ACS_16_5YR_B25032_with_ann!F64","v":945},{"$f":"[1]ACS_16_5YR_B25032_with_ann!G64","v":130},{"$f":"[1]ACS_16_5YR_B25032_with_ann!H64","v":843},{"$f":"[1]ACS_16_5YR_B25032_with_ann!I64","v":141},{"$f":"[1]ACS_16_5YR_B25032_with_ann!J64","v":7},{"$f":"[1]ACS_16_5YR_B25032_with_ann!K64","v":13},{"$f":"[1]ACS_16_5YR_B25032_with_ann!L64","v":29},{"$f":"[1]ACS_16_5YR_B25032_with_ann!M64","v":22},{"$f":"[1]ACS_16_5YR_B25032_with_ann!N64","v":0},{"$f":"[1]ACS_16_5YR_B25032_with_ann!O64","v":12},{"$f":"[1]ACS_16_5YR_B25032_with_ann!P64","v":0},{"$f":"[1]ACS_16_5YR_B25032_with_ann!Q64","v":12},{"$f":"[1]ACS_16_5YR_B25032_with_ann!R64","v":0},{"$f":"[1]ACS_16_5YR_B25032_with_ann!S64","v":12},{"$f":"[1]ACS_16_5YR_B25032_with_ann!T64","v":0},{"$f":"[1]ACS_16_5YR_B25032_with_ann!U64","v":12},{"$f":"[1]ACS_16_5YR_B25032_with_ann!V64","v":0},{"$f":"[1]ACS_16_5YR_B25032_with_ann!W64","v":12},{"$f":"[1]ACS_16_5YR_B25032_with_ann!X64","v":66},{"$f":"[1]ACS_16_5YR_B25032_with_ann!Y64","v":50},{"$f":"[1]ACS_16_5YR_B25032_with_ann!Z64","v":0},{"$f":"[1]ACS_16_5YR_B25032_with_ann!AA64","v":12},{"$f":"[1]ACS_16_5YR_B25032_with_ann!AB64","v":482},{"$f":"[1]ACS_16_5YR_B25032_with_ann!AC64","v":141},{"$f":"[1]ACS_16_5YR_B25032_with_ann!AD64","v":156},{"$f":"[1]ACS_16_5YR_B25032_with_ann!AE64","v":85},{"$f":"[1]ACS_16_5YR_B25032_with_ann!AF64","v":20},{"$f":"[1]ACS_16_5YR_B25032_with_ann!AG64","v":23},{"$f":"[1]ACS_16_5YR_B25032_with_ann!AH64","v":91},{"$f":"[1]ACS_16_5YR_B25032_with_ann!AI64","v":68},{"$f":"[1]ACS_16_5YR_B25032_with_ann!AJ64","v":139},{"$f":"[1]ACS_16_5YR_B25032_with_ann!AK64","v":88},{"$f":"[1]ACS_16_5YR_B25032_with_ann!AL64","v":7},{"$f":"[1]ACS_16_5YR_B25032_with_ann!AM64","v":11},{"$f":"[1]ACS_16_5YR_B25032_with_ann!AN64","v":57},{"$f":"[1]ACS_16_5YR_B25032_with_ann!AO64","v":78},{"$f":"[1]ACS_16_5YR_B25032_with_ann!AP64","v":12},{"$f":"[1]ACS_16_5YR_B25032_with_ann!AQ64","v":19},{"$f":"[1]ACS_16_5YR_B25032_with_ann!AR64","v":0},{"$f":"[1]ACS_16_5YR_B25032_with_ann!AS64","v":12},{"$f":"[1]ACS_16_5YR_B25032_with_ann!AT64","v":0},{"$f":"[1]ACS_16_5YR_B25032_with_ann!AU64","v":12},{"$f":"[1]ACS_16_5YR_B25032_with_ann!AV64","v":0},{"$f":"[1]ACS_16_5YR_B25032_with_ann!AW64","v":12}]
["06000US3300582660","0600000US3300585540","060",{"$f":"[1]ACS_16_5YR_B25032_with_ann!C65","v":"Westmoreland"},{"$f":"[1]ACS_16_5YR_B25032_with_ann!D65","v":885},{"$f":"[1]ACS_16_5YR_B25032_with_ann!E65","v":182},{"$f":"[1]ACS_16_5YR_B25032_with_ann!F65","v":787},{"$f":"[1]ACS_16_5YR_B25032_with_ann!G65","v":179},{"$f":"[1]ACS_16_5YR_B25032_with_ann!H65","v":782},{"$f":"[1]ACS_16_5YR_B25032_with_ann!I65","v":178},{"$f":"[1]ACS_16_5YR_B25032_with_ann!J65","v":3},{"$f":"[1]ACS_16_5YR_B25032_with_ann!K65","v":5},{"$f":"[1]ACS_16_5YR_B25032_with_ann!L65","v":0},{"$f":"[1]ACS_16_5YR_B25032_with_ann!M65","v":12},{"$f":"[1]ACS_16_5YR_B25032_with_ann!N65","v":0},{"$f":"[1]ACS_16_5YR_B25032_with_ann!O65","v":12},{"$f":"[1]ACS_16_5YR_B25032_with_ann!P65","v":0},{"$f":"[1]ACS_16_5YR_B25032_with_ann!Q65","v":12},{"$f":"[1]ACS_16_5YR_B25032_with_ann!R65","v":0},{"$f":"[1]ACS_16_5YR_B25032_with_ann!S65","v":12},{"$f":"[1]ACS_16_5YR_B25032_with_ann!T65","v":0},{"$f":"[1]ACS_16_5YR_B25032_with_ann!U65","v":12},{"$f":"[1]ACS_16_5YR_B25032_with_ann!V65","v":0},{"$f":"[1]ACS_16_5YR_B25032_with_ann!W65","v":12},{"$f":"[1]ACS_16_5YR_B25032_with_ann!X65","v":2},{"$f":"[1]ACS_16_5YR_B25032_with_ann!Y65","v":5},{"$f":"[1]ACS_16_5YR_B25032_with_ann!Z65","v":0},{"$f":"[1]ACS_16_5YR_B25032_with_ann!AA65","v":12},{"$f":"[1]ACS_16_5YR_B25032_with_ann!AB65","v":98},{"$f":"[1]ACS_16_5YR_B25032_with_ann!AC65","v":54},{"$f":"[1]ACS_16_5YR_B25032_with_ann!AD65","v":67},{"$f":"[1]ACS_16_5YR_B25032_with_ann!AE65","v":48},{"$f":"[1]ACS_16_5YR_B25032_with_ann!AF65","v":4},{"$f":"[1]ACS_16_5YR_B25032_with_ann!AG65","v":6},{"$f":"[1]ACS_16_5YR_B25032_with_ann!AH65","v":3},{"$f":"[1]ACS_16_5YR_B25032_with_ann!AI65","v":4},{"$f":"[1]ACS_16_5YR_B25032_with_ann!AJ65","v":8},{"$f":"[1]ACS_16_5YR_B25032_with_ann!AK65","v":15},{"$f":"[1]ACS_16_5YR_B25032_with_ann!AL65","v":0},{"$f":"[1]ACS_16_5YR_B25032_with_ann!AM65","v":12},{"$f":"[1]ACS_16_5YR_B25032_with_ann!AN65","v":3},{"$f":"[1]ACS_16_5YR_B25032_with_ann!AO65","v":5},{"$f":"[1]ACS_16_5YR_B25032_with_ann!AP65","v":3},{"$f":"[1]ACS_16_5YR_B25032_with_ann!AQ65","v":5},{"$f":"[1]ACS_16_5YR_B25032_with_ann!AR65","v":10},{"$f":"[1]ACS_16_5YR_B25032_with_ann!AS65","v":17},{"$f":"[1]ACS_16_5YR_B25032_with_ann!AT65","v":0},{"$f":"[1]ACS_16_5YR_B25032_with_ann!AU65","v":12},{"$f":"[1]ACS_16_5YR_B25032_with_ann!AV65","v":0},{"$f":"[1]ACS_16_5YR_B25032_with_ann!AW65","v":12}]
["06000US3300585540","0600000US3300500820","060",{"$f":"[1]ACS_16_5YR_B25032_with_ann!C66","v":"Winchester"},{"$f":"[1]ACS_16_5YR_B25032_with_ann!D66","v":1617},{"$f":"[1]ACS_16_5YR_B25032_with_ann!E66","v":146},{"$f":"[1]ACS_16_5YR_B25032_with_ann!F66","v":1052},{"$f":"[1]ACS_16_5YR_B25032_with_ann!G66","v":163},{"$f":"[1]ACS_16_5YR_B25032_with_ann!H66","v":864},{"$f":"[1]ACS_16_5YR_B25032_with_ann!I66","v":138},{"$f":"[1]ACS_16_5YR_B25032_with_ann!J66","v":0},{"$f":"[1]ACS_16_5YR_B25032_with_ann!K66","v":12},{"$f":"[1]ACS_16_5YR_B25032_with_ann!L66","v":17},{"$f":"[1]ACS_16_5YR_B25032_with_ann!M66","v":19},{"$f":"[1]ACS_16_5YR_B25032_with_ann!N66","v":0},{"$f":"[1]ACS_16_5YR_B25032_with_ann!O66","v":12},{"$f":"[1]ACS_16_5YR_B25032_with_ann!P66","v":0},{"$f":"[1]ACS_16_5YR_B25032_with_ann!Q66","v":12},{"$f":"[1]ACS_16_5YR_B25032_with_ann!R66","v":0},{"$f":"[1]ACS_16_5YR_B25032_with_ann!S66","v":12},{"$f":"[1]ACS_16_5YR_B25032_with_ann!T66","v":0},{"$f":"[1]ACS_16_5YR_B25032_with_ann!U66","v":12},{"$f":"[1]ACS_16_5YR_B25032_with_ann!V66","v":0},{"$f":"[1]ACS_16_5YR_B25032_with_ann!W66","v":12},{"$f":"[1]ACS_16_5YR_B25032_with_ann!X66","v":171},{"$f":"[1]ACS_16_5YR_B25032_with_ann!Y66","v":88},{"$f":"[1]ACS_16_5YR_B25032_with_ann!Z66","v":0},{"$f":"[1]ACS_16_5YR_B25032_with_ann!AA66","v":12},{"$f":"[1]ACS_16_5YR_B25032_with_ann!AB66","v":565},{"$f":"[1]ACS_16_5YR_B25032_with_ann!AC66","v":145},{"$f":"[1]ACS_16_5YR_B25032_with_ann!AD66","v":130},{"$f":"[1]ACS_16_5YR_B25032_with_ann!AE66","v":74},{"$f":"[1]ACS_16_5YR_B25032_with_ann!AF66","v":10},{"$f":"[1]ACS_16_5YR_B25032_with_ann!AG66","v":16},{"$f":"[1]ACS_16_5YR_B25032_with_ann!AH66","v":104},{"$f":"[1]ACS_16_5YR_B25032_with_ann!AI66","v":66},{"$f":"[1]ACS_16_5YR_B25032_with_ann!AJ66","v":92},{"$f":"[1]ACS_16_5YR_B25032_with_ann!AK66","v":69},{"$f":"[1]ACS_16_5YR_B25032_with_ann!AL66","v":165},{"$f":"[1]ACS_16_5YR_B25032_with_ann!AM66","v":96},{"$f":"[1]ACS_16_5YR_B25032_with_ann!AN66","v":19},{"$f":"[1]ACS_16_5YR_B25032_with_ann!AO66","v":21},{"$f":"[1]ACS_16_5YR_B25032_with_ann!AP66","v":29},{"$f":"[1]ACS_16_5YR_B25032_with_ann!AQ66","v":26},{"$f":"[1]ACS_16_5YR_B25032_with_ann!AR66","v":0},{"$f":"[1]ACS_16_5YR_B25032_with_ann!AS66","v":12},{"$f":"[1]ACS_16_5YR_B25032_with_ann!AT66","v":16},{"$f":"[1]ACS_16_5YR_B25032_with_ann!AU66","v":22},{"$f":"[1]ACS_16_5YR_B25032_with_ann!AV66","v":0},{"$f":"[1]ACS_16_5YR_B25032_with_ann!AW66","v":12}]
[]
[]
[null,null,null,null,null,null,null,null,null,null,null,null,null,null,null,null,null,null,null,null,null,null,null,null,null,null,null,null,null,null,null,null,null,null,null,null,null,null,null,null,null,null,{"$f":"$D$22","v":"Troy"},null,{"$f":"$D$23","v":"Walpole"},null,{"$f":"$D$24","v":"Westmoreland"},null,{"$f":"$D$25","v":"Winchester"}]
[null,null,null,null,{"$f":"$D$3","v":"Alstead"},null,{"$f":"$D$4","v":"Chesterfield"},null,{"$f":"$D$5","v":"Dublin"},null,{"$f":"$D$6","v":"Fitzwilliam"},null,{"$f":"$D$7","v":"Gilsum"},null,{"$f":"$D$8","v":"Harrisville"},null,{"$f":"$D$9","v":"Hinsdale"},null,{"$f":"$D$10","v":"Jaffrey"},null,{"$f":"$D$11","v":"Keene"},null,{"$f":"$D$12","v":"Marlborough"},null,{"$f":"$D$13","v":"Marlow"},null,{"$f":"$D$14","v":"Nelson"},null,{"$f":"$D$15","v":"Richmond"},null,{"$f":"$D$16","v":"Rindge"},null,{"$f":"$D$17","v":"Roxbury"},null,{"$f":"$D$18","v":"Stoddard"},null,{"$f":"$D$19","v":"Sullivan"},null,{"$f":"$D$20","v":"Surry"},null,{"$f":"$D$21","v":"Swanzey"},null,{"$f":"$D$21","v":"Swanzey"},null,{"$f":"$D$21","v":"Swanzey"},null,{"$f":"$D$21","v":"Swanzey"},null,{"$f":"$D$21","v":"Swanzey"}]
[null,null,null,null,"Estimate","Margin of Error","Estimate","Margin of Error","Estimate","Margin of Error","Estimate","Margin of Error","Estimate","Margin of Error","Estimate","Margin of Error","Estimate","Margin of Error","Estimate","Margin of Error","Estimate","Margin of Error","Estimate","Margin of Error","Estimate","Margin of Error","Estimate","Margin of Error","Estimate","Margin of Error","Estimate","Margin of Error","Estimate","Margin of Error","Estimate","Margin of Error","Estimate","Margin of Error","Estimate","Margin of Error","Estimate","Margin of Error"]
[null,null,null,"Estimate!!Total:",723,97,1366,158,635,101,1013,154,310,51,416,75,1594,139,2026,225,9259,370,942,130,314,61,246,41,393,73,1972,144,95,37,436,52,281,53,344,58,3255,171,758,101,1427,121,885,182,1617,146]
[null,null,null,"Estimate!!Total:!!Owner-occupied housing units:",507,86,1227,184,530,99,957,154,285,50,386,73,1373,192,1580,229,4762,346,608,113,279,56,225,42,383,72,1711,137,94,38,405,49,240,46,324,59,2237,250,525,81,945,130,787,179,1052,163]
[null,null,null,"Estimate!!Total:!!Owner-occupied housing units:!!1",418,91,1197,196,516,98,838,110,264,52,372,73,832,182,1558,236,3755,320,516,106,246,49,211,38,349,67,1598,130,89,37,391,50,210,43,320,58,1843,256,495,78,843,141,782,178,864,138]
[null,null,null,"Estimate!!Total:!!Owner-occupied housing units:!!1, attached",5,7,0,12,9,10,0,12,0,12,4,5,13,21,0,17,341,165,13,14,10,17,8,8,0,12,24,26,0,12,9,7,2,3,0,12,149,98,0,12,7,13,3,5,0,12]
[null,null,null,"Estimate!!Total:!!Owner-occupied housing units:!!2",11,11,10,16,0,12,30,32,2,4,0,12,118,148,2,5,252,137,25,34,0,12,0,12,19,29,0,17,0,12,2,4,6,5,2,3,0,17,6,9,29,22,0,12,17,19]
[null,null,null,"Estimate!!Total:!!Owner-occupied housing units:!!3 or 4",0,12,0,12,0,12,0,12,0,12,0,12,0,12,0,17,0,22,14,19,0,12,0,12,0,12,0,17,0,12,0,12,0,12,0,12,0,17,0,12,0,12,0,12,0,12]
[null,null,null,"Estimate!!Total:!!Owner-occupied housing units:!!5 to 9",0,12,0,12,0,12,0,12,0,12,0,12,0,12,0,17,57,41,18,21,0,12,0,12,0,12,0,17,0,12,3,4,0,12,0,12,0,17,0,12,0,12,0,12,0,12]
[null,null,null,"Estimate!!Total:!!Owner-occupied housing units:!!10 to 19",0,12,0,12,0,12,0,12,0,12,0,12,0,12,0,17,27,32,0,12,0,12,0,12,0,12,0,17,0,12,0,12,0,12,0,12,0,17,0,12,0,12,0,12,0,12]
[null,null,null,"Estimate!!Total:!!Owner-occupied housing units:!!20 to 49",0,12,0,12,0,12,0,12,0,12,0,12,0,12,0,17,0,22,0,12,0,12,0,12,0,12,0,17,0,12,0,12,0,12,0,12,0,17,0,12,0,12,0,12,0,12]
[null,null,null,"Estimate!!Total:!!Owner-occupied housing units:!!50 or more",0,12,0,12,0,12,0,12,0,12,0,12,0,12,0,17,37,42,0,12,0,12,0,12,0,12,0,17,0,12,0,12,0,12,0,12,0,17,0,12,0,12,0,12,0,12]
[null,null,null,"Estimate!!Total:!!Owner-occupied housing units:!!Mobile home",73,38,20,30,5,6,89,92,19,14,10,8,410,125,20,24,293,149,22,17,23,17,6,8,15,12,89,46,5,5,0,12,22,10,2,3,245,118,24,26,66,50,2,5,171,88]
[null,null,null,"Estimate!!Total:!!Owner-occupied housing units:!!Boat, RV, van, etc.",0,12,0,12,0,12,0,12,0,12,0,12,0,12,0,17,0,22,0,12,0,12,0,12,0,12,0,17,0,12,0,12,0,12,0,12,0,17,0,12,0,12,0,12,0,12]
[null,null,null,"Estimate!!Total:!!Renter-occupied housing units:",216,81,139,90,105,41,56,29,25,14,30,15,221,105,446,167,4497,356,334,92,35,29,21,11,10,9,261,119,1,3,31,18,41,21,20,9,1018,252,233,73,482,141,98,54,565,145]
[null,null,null,"Estimate!!Total:!!Renter-occupied housing units:!!1, detached",104,55,110,81,78,38,28,16,11,9,24,16,68,76,114,107,541,169,83,65,35,29,13,8,10,9,65,43,1,3,28,18,24,20,18,8,218,167,19,16,156,85,67,48,130,74]
[null,null,null,"Estimate!!Total:!!Renter-occupied housing units:!!1, attached",0,12,0,12,4,5,0,12,2,5,0,12,15,23,49,74,111,60,5,7,0,12,0,12,0,12,14,22,0,12,0,12,0,12,0,12,33,37,0,12,20,23,4,6,10,16]
[null,null,null,"Estimate!!Total:!!Renter-occupied housing units:!!2",11,14,0,12,3,4,7,10,9,8,3,4,0,12,50,50,824,243,45,27,0,12,8,7,0,12,58,58,0,12,3,4,4,5,2,4,148,85,90,54,91,68,3,4,104,66]
[null,null,null,"Estimate!!Total:!!Renter-occupied housing units:!!3 or 4",26,33,29,38,12,9,0,12,0,12,3,4,41,33,46,45,660,192,72,44,0,12,0,12,0,12,0,17,0,12,0,12,13,8,0,12,45,46,39,26,139,88,8,15,92,69]
[null,null,null,"Estimate!!Total:!!Renter-occupied housing units:!!5 to 9",0,12,0,12,0,12,0,12,0,12,0,12,29,47,95,70,805,187,46,29,0,12,0,12,0,12,64,49,0,12,0,12,0,12,0,12,238,155,28,28,7,11,0,12,165,96]
[null,null,null,"Estimate!!Total:!!Renter-occupied housing units:!!10 to 19",0,12,0,12,0,12,0,12,0,12,0,12,0,12,21,33,541,180,5,8,0,12,0,12,0,12,7,11,0,12,0,12,0,12,0,12,115,79,20,26,57,78,3,5,19,21]
[null,null,null,"Estimate!!Total:!!Renter-occupied housing units:!!20 to 49",55,54,0,12,8,10,0,12,0,12,0,12,14,22,44,42,588,216,73,25,0,12,0,12,0,12,53,60,0,12,0,12,0,12,0,12,131,97,0,12,12,19,3,5,29,26]
[null,null,null,"Estimate!!Total:!!Renter-occupied housing units:!!50 or more",0,12,0,12,0,12,0,12,0,12,0,12,0,12,0,17,427,168,0,12,0,12,0,12,0,12,0,17,0,12,0,12,0,12,0,12,90,74,0,12,0,12,10,17,0,12]
[null,null,null,"Estimate!!Total:!!Renter-occupied housing units:!!Mobile home",20,14,0,12,0,12,21,26,3,4,0,12,54,50,27,43,0,22,5,8,0,12,0,12,0,12,0,17,0,12,0,12,0,12,0,12,0,17,37,31,0,12,0,12,16,22]
[null,null,null,"Estimate!!Total:!!Renter-occupied housing units:!!Boat, RV, van, etc.",0,12,0,12,0,12,0,12,0,12,0,12,0,12,0,17,0,22,0,12,0,12,0,12,0,12,0,17,0,12,0,12,0,12,0,12,0,17,0,12,0,12,0,12,0,12]

{"sheet":"SData_B25034_B25041_HuAgeTyp","index":89,"n_rows":49,"n_cols":52,"rows_kept":49,"cut":false,"hidden":true,"merged":[]}
["GEO_ID","GEO_ID2","SUMLEVEL","GEO_NAME",{"$f":"[1]ACS_16_5YR_B25034_with_ann!D1","v":"B25034_001E"},{"$f":"[1]ACS_16_5YR_B25034_with_ann!E1","v":"B25034_001M"},{"$f":"[1]ACS_16_5YR_B25034_with_ann!F1","v":"B25034_002E"},{"$f":"[1]ACS_16_5YR_B25034_with_ann!G1","v":"B25034_002M"},{"$f":"[1]ACS_16_5YR_B25034_with_ann!H1","v":"B25034_003E"},{"$f":"[1]ACS_16_5YR_B25034_with_ann!I1","v":"B25034_003M"},{"$f":"[1]ACS_16_5YR_B25034_with_ann!J1","v":"B25034_004E"},{"$f":"[1]ACS_16_5YR_B25034_with_ann!K1","v":"B25034_004M"},{"$f":"[1]ACS_16_5YR_B25034_with_ann!L1","v":"B25034_005E"},{"$f":"[1]ACS_16_5YR_B25034_with_ann!M1","v":"B25034_005M"},{"$f":"[1]ACS_16_5YR_B25034_with_ann!N1","v":"B25034_006E"},{"$f":"[1]ACS_16_5YR_B25034_with_ann!O1","v":"B25034_006M"},{"$f":"[1]ACS_16_5YR_B25034_with_ann!P1","v":"B25034_007E"},{"$f":"[1]ACS_16_5YR_B25034_with_ann!Q1","v":"B25034_007M"},{"$f":"[1]ACS_16_5YR_B25034_with_ann!R1","v":"B25034_008E"},{"$f":"[1]ACS_16_5YR_B25034_with_ann!S1","v":"B25034_008M"},{"$f":"[1]ACS_16_5YR_B25034_with_ann!T1","v":"B25034_009E"},{"$f":"[1]ACS_16_5YR_B25034_with_ann!U1","v":"B25034_009M"},{"$f":"[1]ACS_16_5YR_B25034_with_ann!V1","v":"B25034_010E"},{"$f":"[1]ACS_16_5YR_B25034_with_ann!W1","v":"B25034_010M"},{"$f":"[1]ACS_16_5YR_B25034_with_ann!X1","v":"B25034_011E"},{"$f":"[1]ACS_16_5YR_B25034_with_ann!Y1","v":"B25034_011M"},{"$f":"[1]ACS_16_5YR_B25041_with_ann!D1","v":"B25041_001E"},{"$f":"[1]ACS_16_5YR_B25041_with_ann!E1","v":"B25041_001M"},{"$f":"[1]ACS_16_5YR_B25041_with_ann!F1","v":"B25041_002E"},{"$f":"[1]ACS_16_5YR_B25041_with_ann!G1","v":"B25041_002M"},{"$f":"[1]ACS_16_5YR_B25041_with_ann!H1","v":"B25041_003E"},{"$f":"[1]ACS_16_5YR_B25041_with_ann!I1","v":"B25041_003M"},{"$f":"[1]ACS_16_5YR_B25041_with_ann!J1","v":"B25041_004E"},{"$f":"[1]ACS_16_5YR_B25041_with_ann!K1","v":"B25041_004M"},{"$f":"[1]ACS_16_5YR_B25041_with_ann!L1","v":"B25041_005E"},{"$f":"[1]ACS_16_5YR_B25041_with_ann!M1","v":"B25041_005M"},{"$f":"[1]ACS_16_5YR_B25041_with_ann!N1","v":"B25041_006E"},{"$f":"[1]ACS_16_5YR_B25041_with_ann!O1","v":"B25041_006M"},{"$f":"[1]ACS_16_5YR_B25041_with_ann!P1","v":"B25041_007E"},{"$f":"[1]ACS_16_5YR_B25041_with_ann!Q1","v":"B25041_007M"}]
["Geography Identifier","Geography Identifier","Geographic Summary Level","Geography",{"$f":"[1]ACS_16_5YR_B25034_with_ann!D2","v":"Estimate!!Total:"},{"$f":"[1]ACS_16_5YR_B25034_with_ann!E2","v":"Margin of Error!!Total:"},{"$f":"[1]ACS_16_5YR_B25034_with_ann!F2","v":"Estimate!!Total:!!Built 2020 or later"},{"$f":"[1]ACS_16_5YR_B25034_with_ann!G2","v":"Margin of Error!!Total:!!Built 2020 or later"},{"$f":"[1]ACS_16_5YR_B25034_with_ann!H2","v":"Estimate!!Total:!!Built 2010 to 2019"},{"$f":"[1]ACS_16_5YR_B25034_with_ann!I2","v":"Margin of Error!!Total:!!Built 2010 to 2019"},{"$f":"[1]ACS_16_5YR_B25034_with_ann!J2","v":"Estimate!!Total:!!Built 2000 to 2009"},{"$f":"[1]ACS_16_5YR_B25034_with_ann!K2","v":"Margin of Error!!Total:!!Built 2000 to 2009"},{"$f":"[1]ACS_16_5YR_B25034_with_ann!L2","v":"Estimate!!Total:!!Built 1990 to 1999"},{"$f":"[1]ACS_16_5YR_B25034_with_ann!M2","v":"Margin of Error!!Total:!!Built 1990 to 1999"},{"$f":"[1]ACS_16_5YR_B25034_with_ann!N2","v":"Estimate!!Total:!!Built 1980 to 1989"},{"$f":"[1]ACS_16_5YR_B25034_with_ann!O2","v":"Margin of Error!!Total:!!Built 1980 to 1989"},{"$f":"[1]ACS_16_5YR_B25034_with_ann!P2","v":"Estimate!!Total:!!Built 1970 to 1979"},{"$f":"[1]ACS_16_5YR_B25034_with_ann!Q2","v":"Margin of Error!!Total:!!Built 1970 to 1979"},{"$f":"[1]ACS_16_5YR_B25034_with_ann!R2","v":"Estimate!!Total:!!Built 1960 to 1969"},{"$f":"[1]ACS_16_5YR_B25034_with_ann!S2","v":"Margin of Error!!Total:!!Built 1960 to 1969"},{"$f":"[1]ACS_16_5YR_B25034_with_ann!T2","v":"Estimate!!Total:!!Built 1950 to 1959"},{"$f":"[1]ACS_16_5YR_B25034_with_ann!U2","v":"Margin of Error!!Total:!!Built 1950 to 1959"},{"$f":"[1]ACS_16_5YR_B25034_with_ann!V2","v":"Estimate!!Total:!!Built 1940 to 1949"},{"$f":"[1]ACS_16_5YR_B25034_with_ann!W2","v":"Margin of Error!!Total:!!Built 1940 to 1949"},{"$f":"[1]ACS_16_5YR_B25034_with_ann!X2","v":"Estimate!!Total:!!Built 1939 or earlier"},{"$f":"[1]ACS_16_5YR_B25034_with_ann!Y2","v":"Margin of Error!!Total:!!Built 1939 or earlier"},{"$f":"[1]ACS_16_5YR_B25041_with_ann!D2","v":"Estimate!!Total:"},{"$f":"[1]ACS_16_5YR_B25041_with_ann!E2","v":"Margin of Error!!Total:"},{"$f":"[1]ACS_16_5YR_B25041_with_ann!F2","v":"Estimate!!Total:!!No bedroom"},{"$f":"[1]ACS_16_5YR_B25041_with_ann!G2","v":"Margin of Error!!Total:!!No bedroom"},{"$f":"[1]ACS_16_5YR_B25041_with_ann!H2","v":"Estimate!!Total:!!1 bedroom"},{"$f":"[1]ACS_16_5YR_B25041_with_ann!I2","v":"Margin of Error!!Total:!!1 bedroom"},{"$f":"[1]ACS_16_5YR_B25041_with_ann!J2","v":"Estimate!!Total:!!2 bedrooms"},{"$f":"[1]ACS_16_5YR_B25041_with_ann!K2","v":"Margin of Error!!Total:!!2 bedrooms"},{"$f":"[1]ACS_16_5YR_B25041_with_ann!L2","v":"Estimate!!Total:!!3 bedrooms"},{"$f":"[1]ACS_16_5YR_B25041_with_ann!M2","v":"Margin of Error!!Total:!!3 bedrooms"},{"$f":"[1]ACS_16_5YR_B25041_with_ann!N2","v":"Estimate!!Total:!!4 bedrooms"},{"$f":"[1]ACS_16_5YR_B25041_with_ann!O2","v":"Margin of Error!!Total:!!4 bedrooms"},{"$f":"[1]ACS_16_5YR_B25041_with_ann!P2","v":"Estimate!!Total:!!5 or more bedrooms"},{"$f":"[1]ACS_16_5YR_B25041_with_ann!Q2","v":"Margin of Error!!Total:!!5 or more bedrooms"}]
["06000US3300500820","0600000US3300512260","060",{"$f":"[1]ACS_16_5YR_B25034_with_ann!C44","v":"Alstead"},{"$f":"[1]ACS_16_5YR_B25034_with_ann!D44","v":986},{"$f":"[1]ACS_16_5YR_B25034_with_ann!E44","v":109},{"$f":"[1]ACS_16_5YR_B25034_with_ann!F44","v":0},{"$f":"[1]ACS_16_5YR_B25034_with_ann!G44","v":12},{"$f":"[1]ACS_16_5YR_B25034_with_ann!H44","v":30},{"$f":"[1]ACS_16_5YR_B25034_with_ann!I44","v":17},{"$f":"[1]ACS_16_5YR_B25034_with_ann!J44","v":120},{"$f":"[1]ACS_16_5YR_B25034_with_ann!K44","v":62},{"$f":"[1]ACS_16_5YR_B25034_with_ann!L44","v":107},{"$f":"[1]ACS_16_5YR_B25034_with_ann!M44","v":56},{"$f":"[1]ACS_16_5YR_B25034_with_ann!N44","v":143},{"$f":"[1]ACS_16_5YR_B25034_with_ann!O44","v":40},{"$f":"[1]ACS_16_5YR_B25034_with_ann!P44","v":112},{"$f":"[1]ACS_16_5YR_B25034_with_ann!Q44","v":53},{"$f":"[1]ACS_16_5YR_B25034_with_ann!R44","v":130},{"$f":"[1]ACS_16_5YR_B25034_with_ann!S44","v":61},{"$f":"[1]ACS_16_5YR_B25034_with_ann!T44","v":145},{"$f":"[1]ACS_16_5YR_B25034_with_ann!U44","v":67},{"$f":"[1]ACS_16_5YR_B25034_with_ann!V44","v":68},{"$f":"[1]ACS_16_5YR_B25034_with_ann!W44","v":51},{"$f":"[1]ACS_16_5YR_B25034_with_ann!X44","v":131},{"$f":"[1]ACS_16_5YR_B25034_with_ann!Y44","v":40},{"$f":"[1]ACS_16_5YR_B25041_with_ann!D44","v":986},{"$f":"[1]ACS_16_5YR_B25041_with_ann!E44","v":109},{"$f":"[1]ACS_16_5YR_B25041_with_ann!F44","v":45},{"$f":"[1]ACS_16_5YR_B25041_with_ann!G44","v":35},{"$f":"[1]ACS_16_5YR_B25041_with_ann!H44","v":182},{"$f":"[1]ACS_16_5YR_B25041_with_ann!I44","v":77},{"$f":"[1]ACS_16_5YR_B25041_with_ann!J44","v":274},{"$f":"[1]ACS_16_5YR_B25041_with_ann!K44","v":71},{"$f":"[1]ACS_16_5YR_B25041_with_ann!L44","v":311},{"$f":"[1]ACS_16_5YR_B25041_with_ann!M44","v":68},{"$f":"[1]ACS_16_5YR_B25041_with_ann!N44","v":150},{"$f":"[1]ACS_16_5YR_B25041_with_ann!O44","v":58},{"$f":"[1]ACS_16_5YR_B25041_with_ann!P44","v":24},{"$f":"[1]ACS_16_5YR_B25041_with_ann!Q44","v":26},null,"Alstead"]
["06000US3300512260","0600000US3300519140","060",{"$f":"[1]ACS_16_5YR_B25034_with_ann!C45","v":"Chesterfield"},{"$f":"[1]ACS_16_5YR_B25034_with_ann!D45","v":1792},{"$f":"[1]ACS_16_5YR_B25034_with_ann!E45","v":170},{"$f":"[1]ACS_16_5YR_B25034_with_ann!F45","v":0},{"$f":"[1]ACS_16_5YR_B25034_with_ann!G45","v":12},{"$f":"[1]ACS_16_5YR_B25034_with_ann!H45","v":137},{"$f":"[1]ACS_16_5YR_B25034_with_ann!I45","v":128},{"$f":"[1]ACS_16_5YR_B25034_with_ann!J45","v":225},{"$f":"[1]ACS_16_5YR_B25034_with_ann!K45","v":103},{"$f":"[1]ACS_16_5YR_B25034_with_ann!L45","v":200},{"$f":"[1]ACS_16_5YR_B25034_with_ann!M45","v":123},{"$f":"[1]ACS_16_5YR_B25034_with_ann!N45","v":226},{"$f":"[1]ACS_16_5YR_B25034_with_ann!O45","v":104},{"$f":"[1]ACS_16_5YR_B25034_with_ann!P45","v":344},{"$f":"[1]ACS_16_5YR_B25034_with_ann!Q45","v":162},{"$f":"[1]ACS_16_5YR_B25034_with_ann!R45","v":181},{"$f":"[1]ACS_16_5YR_B25034_with_ann!S45","v":154},{"$f":"[1]ACS_16_5YR_B25034_with_ann!T45","v":65},{"$f":"[1]ACS_16_5YR_B25034_with_ann!U45","v":44},{"$f":"[1]ACS_16_5YR_B25034_with_ann!V45","v":69},{"$f":"[1]ACS_16_5YR_B25034_with_ann!W45","v":58},{"$f":"[1]ACS_16_5YR_B25034_with_ann!X45","v":345},{"$f":"[1]ACS_16_5YR_B25034_with_ann!Y45","v":190},{"$f":"[1]ACS_16_5YR_B25041_with_ann!D45","v":1792},{"$f":"[1]ACS_16_5YR_B25041_with_ann!E45","v":170},{"$f":"[1]ACS_16_5YR_B25041_with_ann!F45","v":13},{"$f":"[1]ACS_16_5YR_B25041_with_ann!G45","v":21},{"$f":"[1]ACS_16_5YR_B25041_with_ann!H45","v":10},{"$f":"[1]ACS_16_5YR_B25041_with_ann!I45","v":16},{"$f":"[1]ACS_16_5YR_B25041_with_ann!J45","v":280},{"$f":"[1]ACS_16_5YR_B25041_with_ann!K45","v":169},{"$f":"[1]ACS_16_5YR_B25041_with_ann!L45","v":991},{"$f":"[1]ACS_16_5YR_B25041_with_ann!M45","v":245},{"$f":"[1]ACS_16_5YR_B25041_with_ann!N45","v":391},{"$f":"[1]ACS_16_5YR_B25041_with_ann!O45","v":159},{"$f":"[1]ACS_16_5YR_B25041_with_ann!P45","v":107},{"$f":"[1]ACS_16_5YR_B25041_with_ann!Q45","v":76},null,"Chesterfield"]
["06000US3300519140","0600000US3300526500","060",{"$f":"[1]ACS_16_5YR_B25034_with_ann!C46","v":"Dublin"},{"$f":"[1]ACS_16_5YR_B25034_with_ann!D46","v":797},{"$f":"[1]ACS_16_5YR_B25034_with_ann!E46","v":112},{"$f":"[1]ACS_16_5YR_B25034_with_ann!F46","v":4},{"$f":"[1]ACS_16_5YR_B25034_with_ann!G46","v":5},{"$f":"[1]ACS_16_5YR_B25034_with_ann!H46","v":34},{"$f":"[1]ACS_16_5YR_B25034_with_ann!I46","v":24},{"$f":"[1]ACS_16_5YR_B25034_with_ann!J46","v":96},{"$f":"[1]ACS_16_5YR_B25034_with_ann!K46","v":40},{"$f":"[1]ACS_16_5YR_B25034_with_ann!L46","v":89},{"$f":"[1]ACS_16_5YR_B25034_with_ann!M46","v":58},{"$f":"[1]ACS_16_5YR_B25034_with_ann!N46","v":105},{"$f":"[1]ACS_16_5YR_B25034_with_ann!O46","v":37},{"$f":"[1]ACS_16_5YR_B25034_with_ann!P46","v":79},{"$f":"[1]ACS_16_5YR_B25034_with_ann!Q46","v":30},{"$f":"[1]ACS_16_5YR_B25034_with_ann!R46","v":96},{"$f":"[1]ACS_16_5YR_B25034_with_ann!S46","v":72},{"$f":"[1]ACS_16_5YR_B25034_with_ann!T46","v":75},{"$f":"[1]ACS_16_5YR_B25034_with_ann!U46","v":32},{"$f":"[1]ACS_16_5YR_B25034_with_ann!V46","v":4},{"$f":"[1]ACS_16_5YR_B25034_with_ann!W46","v":6},{"$f":"[1]ACS_16_5YR_B25034_with_ann!X46","v":215},{"$f":"[1]ACS_16_5YR_B25034_with_ann!Y46","v":51},{"$f":"[1]ACS_16_5YR_B25041_with_ann!D46","v":797},{"$f":"[1]ACS_16_5YR_B25041_with_ann!E46","v":112},{"$f":"[1]ACS_16_5YR_B25041_with_ann!F46","v":0},{"$f":"[1]ACS_16_5YR_B25041_with_ann!G46","v":12},{"$f":"[1]ACS_16_5YR_B25041_with_ann!H46","v":64},{"$f":"[1]ACS_16_5YR_B25041_with_ann!I46","v":28},{"$f":"[1]ACS_16_5YR_B25041_with_ann!J46","v":116},{"$f":"[1]ACS_16_5YR_B25041_with_ann!K46","v":39},{"$f":"[1]ACS_16_5YR_B25041_with_ann!L46","v":378},{"$f":"[1]ACS_16_5YR_B25041_with_ann!M46","v":110},{"$f":"[1]ACS_16_5YR_B25041_with_ann!N46","v":141},{"$f":"[1]ACS_16_5YR_B25041_with_ann!O46","v":38},{"$f":"[1]ACS_16_5YR_B25041_with_ann!P46","v":98},{"$f":"[1]ACS_16_5YR_B25041_with_ann!Q46","v":38},null,"Dublin"]
["06000US3300526500","0600000US3300529220","060",{"$f":"[1]ACS_16_5YR_B25034_with_ann!C47","v":"Fitzwilliam"},{"$f":"[1]ACS_16_5YR_B25034_with_ann!D47","v":1317},{"$f":"[1]ACS_16_5YR_B25034_with_ann!E47","v":149},{"$f":"[1]ACS_16_5YR_B25034_with_ann!F47","v":5},{"$f":"[1]ACS_16_5YR_B25034_with_ann!G47","v":7},{"$f":"[1]ACS_16_5YR_B25034_with_ann!H47","v":66},{"$f":"[1]ACS_16_5YR_B25034_with_ann!I47","v":39},{"$f":"[1]ACS_16_5YR_B25034_with_ann!J47","v":186},{"$f":"[1]ACS_16_5YR_B25034_with_ann!K47","v":101},{"$f":"[1]ACS_16_5YR_B25034_with_ann!L47","v":73},{"$f":"[1]ACS_16_5YR_B25034_with_ann!M47","v":37},{"$f":"[1]ACS_16_5YR_B25034_with_ann!N47","v":206},{"$f":"[1]ACS_16_5YR_B25034_with_ann!O47","v":60},{"$f":"[1]ACS_16_5YR_B25034_with_ann!P47","v":151},{"$f":"[1]ACS_16_5YR_B25034_with_ann!Q47","v":78},{"$f":"[1]ACS_16_5YR_B25034_with_ann!R47","v":103},{"$f":"[1]ACS_16_5YR_B25034_with_ann!S47","v":43},{"$f":"[1]ACS_16_5YR_B25034_with_ann!T47","v":172},{"$f":"[1]ACS_16_5YR_B25034_with_ann!U47","v":75},{"$f":"[1]ACS_16_5YR_B25034_with_ann!V47","v":24},{"$f":"[1]ACS_16_5YR_B25034_with_ann!W47","v":21},{"$f":"[1]ACS_16_5YR_B25034_with_ann!X47","v":331},{"$f":"[1]ACS_16_5YR_B25034_with_ann!Y47","v":81},{"$f":"[1]ACS_16_5YR_B25041_with_ann!D47","v":1317},{"$f":"[1]ACS_16_5YR_B25041_with_ann!E47","v":149},{"$f":"[1]ACS_16_5YR_B25041_with_ann!F47","v":54},{"$f":"[1]ACS_16_5YR_B25041_with_ann!G47","v":45},{"$f":"[1]ACS_16_5YR_B25041_with_ann!H47","v":96},{"$f":"[1]ACS_16_5YR_B25041_with_ann!I47","v":51},{"$f":"[1]ACS_16_5YR_B25041_with_ann!J47","v":425},{"$f":"[1]ACS_16_5YR_B25041_with_ann!K47","v":92},{"$f":"[1]ACS_16_5YR_B25041_with_ann!L47","v":501},{"$f":"[1]ACS_16_5YR_B25041_with_ann!M47","v":129},{"$f":"[1]ACS_16_5YR_B25041_with_ann!N47","v":210},{"$f":"[1]ACS_16_5YR_B25041_with_ann!O47","v":80},{"$f":"[1]ACS_16_5YR_B25041_with_ann!P47","v":31},{"$f":"[1]ACS_16_5YR_B25041_with_ann!Q47","v":30},null,"Fitzwilliam"]
["06000US3300529220","0600000US3300534420","060",{"$f":"[1]ACS_16_5YR_B25034_with_ann!C48","v":"Gilsum"},{"$f":"[1]ACS_16_5YR_B25034_with_ann!D48","v":360},{"$f":"[1]ACS_16_5YR_B25034_with_ann!E48","v":57},{"$f":"[1]ACS_16_5YR_B25034_with_ann!F48","v":0},{"$f":"[1]ACS_16_5YR_B25034_with_ann!G48","v":12},{"$f":"[1]ACS_16_5YR_B25034_with_ann!H48","v":10},{"$f":"[1]ACS_16_5YR_B25034_with_ann!I48","v":8},{"$f":"[1]ACS_16_5YR_B25034_with_ann!J48","v":34},{"$f":"[1]ACS_16_5YR_B25034_with_ann!K48","v":21},{"$f":"[1]ACS_16_5YR_B25034_with_ann!L48","v":30},{"$f":"[1]ACS_16_5YR_B25034_with_ann!M48","v":19},{"$f":"[1]ACS_16_5YR_B25034_with_ann!N48","v":78},{"$f":"[1]ACS_16_5YR_B25034_with_ann!O48","v":28},{"$f":"[1]ACS_16_5YR_B25034_with_ann!P48","v":33},{"$f":"[1]ACS_16_5YR_B25034_with_ann!Q48","v":14},{"$f":"[1]ACS_16_5YR_B25034_with_ann!R48","v":24},{"$f":"[1]ACS_16_5YR_B25034_with_ann!S48","v":16},{"$f":"[1]ACS_16_5YR_B25034_with_ann!T48","v":18},{"$f":"[1]ACS_16_5YR_B25034_with_ann!U48","v":15},{"$f":"[1]ACS_16_5YR_B25034_with_ann!V48","v":8},{"$f":"[1]ACS_16_5YR_B25034_with_ann!W48","v":7},{"$f":"[1]ACS_16_5YR_B25034_with_ann!X48","v":125},{"$f":"[1]ACS_16_5YR_B25034_with_ann!Y48","v":40},{"$f":"[1]ACS_16_5YR_B25041_with_ann!D48","v":360},{"$f":"[1]ACS_16_5YR_B25041_with_ann!E48","v":57},{"$f":"[1]ACS_16_5YR_B25041_with_ann!F48","v":13},{"$f":"[1]ACS_16_5YR_B25041_with_ann!G48","v":11},{"$f":"[1]ACS_16_5YR_B25041_with_ann!H48","v":25},{"$f":"[1]ACS_16_5YR_B25041_with_ann!I48","v":17},{"$f":"[1]ACS_16_5YR_B25041_with_ann!J48","v":108},{"$f":"[1]ACS_16_5YR_B25041_with_ann!K48","v":29},{"$f":"[1]ACS_16_5YR_B25041_with_ann!L48","v":152},{"$f":"[1]ACS_16_5YR_B25041_with_ann!M48","v":34},{"$f":"[1]ACS_16_5YR_B25041_with_ann!N48","v":30},{"$f":"[1]ACS_16_5YR_B25041_with_ann!O48","v":16},{"$f":"[1]ACS_16_5YR_B25041_with_ann!P48","v":32},{"$f":"[1]ACS_16_5YR_B25041_with_ann!Q48","v":26},null,"Gilsum"]
["06000US3300534420","0600000US3300536660","060",{"$f":"[1]ACS_16_5YR_B25034_with_ann!C49","v":"Harrisville"},{"$f":"[1]ACS_16_5YR_B25034_with_ann!D49","v":690},{"$f":"[1]ACS_16_5YR_B25034_with_ann!E49","v":92},{"$f":"[1]ACS_16_5YR_B25034_with_ann!F49","v":0},{"$f":"[1]ACS_16_5YR_B25034_with_ann!G49","v":12},{"$f":"[1]ACS_16_5YR_B25034_with_ann!H49","v":3},{"$f":"[1]ACS_16_5YR_B25034_with_ann!I49","v":4},{"$f":"[1]ACS_16_5YR_B25034_with_ann!J49","v":69},{"$f":"[1]ACS_16_5YR_B25034_with_ann!K49","v":28},{"$f":"[1]ACS_16_5YR_B25034_with_ann!L49","v":34},{"$f":"[1]ACS_16_5YR_B25034_with_ann!M49","v":17},{"$f":"[1]ACS_16_5YR_B25034_with_ann!N49","v":79},{"$f":"[1]ACS_16_5YR_B25034_with_ann!O49","v":32},{"$f":"[1]ACS_16_5YR_B25034_with_ann!P49","v":70},{"$f":"[1]ACS_16_5YR_B25034_with_ann!Q49","v":33},{"$f":"[1]ACS_16_5YR_B25034_with_ann!R49","v":90},{"$f":"[1]ACS_16_5YR_B25034_with_ann!S49","v":45},{"$f":"[1]ACS_16_5YR_B25034_with_ann!T49","v":52},{"$f":"[1]ACS_16_5YR_B25034_with_ann!U49","v":35},{"$f":"[1]ACS_16_5YR_B25034_with_ann!V49","v":71},{"$f":"[1]ACS_16_5YR_B25034_with_ann!W49","v":31},{"$f":"[1]ACS_16_5YR_B25034_with_ann!X49","v":222},{"$f":"[1]ACS_16_5YR_B25034_with_ann!Y49","v":61},{"$f":"[1]ACS_16_5YR_B25041_with_ann!D49","v":690},{"$f":"[1]ACS_16_5YR_B25041_with_ann!E49","v":92},{"$f":"[1]ACS_16_5YR_B25041_with_ann!F49","v":8},{"$f":"[1]ACS_16_5YR_B25041_with_ann!G49","v":8},{"$f":"[1]ACS_16_5YR_B25041_with_ann!H49","v":91},{"$f":"[1]ACS_16_5YR_B25041_with_ann!I49","v":42},{"$f":"[1]ACS_16_5YR_B25041_with_ann!J49","v":176},{"$f":"[1]ACS_16_5YR_B25041_with_ann!K49","v":57},{"$f":"[1]ACS_16_5YR_B25041_with_ann!L49","v":268},{"$f":"[1]ACS_16_5YR_B25041_with_ann!M49","v":64},{"$f":"[1]ACS_16_5YR_B25041_with_ann!N49","v":76},{"$f":"[1]ACS_16_5YR_B25041_with_ann!O49","v":38},{"$f":"[1]ACS_16_5YR_B25041_with_ann!P49","v":71},{"$f":"[1]ACS_16_5YR_B25041_with_ann!Q49","v":33},null,"Harrisville"]
["06000US3300536660","0600000US3300538500","060",{"$f":"[1]ACS_16_5YR_B25034_with_ann!C50","v":"Hinsdale"},{"$f":"[1]ACS_16_5YR_B25034_with_ann!D50","v":1789},{"$f":"[1]ACS_16_5YR_B25034_with_ann!E50","v":178},{"$f":"[1]ACS_16_5YR_B25034_with_ann!F50","v":15},{"$f":"[1]ACS_16_5YR_B25034_with_ann!G50","v":24},{"$f":"[1]ACS_16_5YR_B25034_with_ann!H50","v":14},{"$f":"[1]ACS_16_5YR_B25034_with_ann!I50","v":22},{"$f":"[1]ACS_16_5YR_B25034_with_ann!J50","v":164},{"$f":"[1]ACS_16_5YR_B25034_with_ann!K50","v":69},{"$f":"[1]ACS_16_5YR_B25034_with_ann!L50","v":157},{"$f":"[1]ACS_16_5YR_B25034_with_ann!M50","v":87},{"$f":"[1]ACS_16_5YR_B25034_with_ann!N50","v":226},{"$f":"[1]ACS_16_5YR_B25034_with_ann!O50","v":86},{"$f":"[1]ACS_16_5YR_B25034_with_ann!P50","v":402},{"$f":"[1]ACS_16_5YR_B25034_with_ann!Q50","v":158},{"$f":"[1]ACS_16_5YR_B25034_with_ann!R50","v":238},{"$f":"[1]ACS_16_5YR_B25034_with_ann!S50","v":110},{"$f":"[1]ACS_16_5YR_B25034_with_ann!T50","v":33},{"$f":"[1]ACS_16_5YR_B25034_with_ann!U50","v":32},{"$f":"[1]ACS_16_5YR_B25034_with_ann!V50","v":107},{"$f":"[1]ACS_16_5YR_B25034_with_ann!W50","v":72},{"$f":"[1]ACS_16_5YR_B25034_with_ann!X50","v":433},{"$f":"[1]ACS_16_5YR_B25034_with_ann!Y50","v":183},{"$f":"[1]ACS_16_5YR_B25041_with_ann!D50","v":1789},{"$f":"[1]ACS_16_5YR_B25041_with_ann!E50","v":178},{"$f":"[1]ACS_16_5YR_B25041_with_ann!F50","v":0},{"$f":"[1]ACS_16_5YR_B25041_with_ann!G50","v":12},{"$f":"[1]ACS_16_5YR_B25041_with_ann!H50","v":191},{"$f":"[1]ACS_16_5YR_B25041_with_ann!I50","v":112},{"$f":"[1]ACS_16_5YR_B25041_with_ann!J50","v":502},{"$f":"[1]ACS_16_5YR_B25041_with_ann!K50","v":190},{"$f":"[1]ACS_16_5YR_B25041_with_ann!L50","v":857},{"$f":"[1]ACS_16_5YR_B25041_with_ann!M50","v":161},{"$f":"[1]ACS_16_5YR_B25041_with_ann!N50","v":207},{"$f":"[1]ACS_16_5YR_B25041_with_ann!O50","v":109},{"$f":"[1]ACS_16_5YR_B25041_with_ann!P50","v":32},{"$f":"[1]ACS_16_5YR_B25041_with_ann!Q50","v":31},null,"Hinsdale"]
["06000US3300538500","0600000US3300539300","060",{"$f":"[1]ACS_16_5YR_B25034_with_ann!C51","v":"Jaffrey"},{"$f":"[1]ACS_16_5YR_B25034_with_ann!D51","v":2474},{"$f":"[1]ACS_16_5YR_B25034_with_ann!E51","v":208},{"$f":"[1]ACS_16_5YR_B25034_with_ann!F51","v":0},{"$f":"[1]ACS_16_5YR_B25034_with_ann!G51","v":17},{"$f":"[1]ACS_16_5YR_B25034_with_ann!H51","v":43},{"$f":"[1]ACS_16_5YR_B25034_with_ann!I51","v":57},{"$f":"[1]ACS_16_5YR_B25034_with_ann!J51","v":145},{"$f":"[1]ACS_16_5YR_B25034_with_ann!K51","v":84},{"$f":"[1]ACS_16_5YR_B25034_with_ann!L51","v":81},{"$f":"[1]ACS_16_5YR_B25034_with_ann!M51","v":82},{"$f":"[1]ACS_16_5YR_B25034_with_ann!N51","v":493},{"$f":"[1]ACS_16_5YR_B25034_with_ann!O51","v":243},{"$f":"[1]ACS_16_5YR_B25034_with_ann!P51","v":462},{"$f":"[1]ACS_16_5YR_B25034_with_ann!Q51","v":168},{"$f":"[1]ACS_16_5YR_B25034_with_ann!R51","v":197},{"$f":"[1]ACS_16_5YR_B25034_with_ann!S51","v":135},{"$f":"[1]ACS_16_5YR_B25034_with_ann!T51","v":76},{"$f":"[1]ACS_16_5YR_B25034_with_ann!U51","v":81},{"$f":"[1]ACS_16_5YR_B25034_with_ann!V51","v":82},{"$f":"[1]ACS_16_5YR_B25034_with_ann!W51","v":62},{"$f":"[1]ACS_16_5YR_B25034_with_ann!X51","v":895},{"$f":"[1]ACS_16_5YR_B25034_with_ann!Y51","v":199},{"$f":"[1]ACS_16_5YR_B25041_with_ann!D51","v":2474},{"$f":"[1]ACS_16_5YR_B25041_with_ann!E51","v":208},{"$f":"[1]ACS_16_5YR_B25041_with_ann!F51","v":22},{"$f":"[1]ACS_16_5YR_B25041_with_ann!G51","v":28},{"$f":"[1]ACS_16_5YR_B25041_with_ann!H51","v":381},{"$f":"[1]ACS_16_5YR_B25041_with_ann!I51","v":147},{"$f":"[1]ACS_16_5YR_B25041_with_ann!J51","v":833},{"$f":"[1]ACS_16_5YR_B25041_with_ann!K51","v":282},{"$f":"[1]ACS_16_5YR_B25041_with_ann!L51","v":644},{"$f":"[1]ACS_16_5YR_B25041_with_ann!M51","v":204},{"$f":"[1]ACS_16_5YR_B25041_with_ann!N51","v":536},{"$f":"[1]ACS_16_5YR_B25041_with_ann!O51","v":171},{"$f":"[1]ACS_16_5YR_B25041_with_ann!P51","v":58},{"$f":"[1]ACS_16_5YR_B25041_with_ann!Q51","v":57},null,"Jaffrey"]
["06000US3300539300","0600000US3300545460","060",{"$f":"[1]ACS_16_5YR_B25034_with_ann!C52","v":"Keene"},{"$f":"[1]ACS_16_5YR_B25034_with_ann!D52","v":10313},{"$f":"[1]ACS_16_5YR_B25034_with_ann!E52","v":317},{"$f":"[1]ACS_16_5YR_B25034_with_ann!F52","v":0},{"$f":"[1]ACS_16_5YR_B25034_with_ann!G52","v":22},{"$f":"[1]ACS_16_5YR_B25034_with_ann!H52","v":408},{"$f":"[1]ACS_16_5YR_B25034_with_ann!I52","v":145},{"$f":"[1]ACS_16_5YR_B25034_with_ann!J52","v":412},{"$f":"[1]ACS_16_5YR_B25034_with_ann!K52","v":136},{"$f":"[1]ACS_16_5YR_B25034_with_ann!L52","v":376},{"$f":"[1]ACS_16_5YR_B25034_with_ann!M52","v":132},{"$f":"[1]ACS_16_5YR_B25034_with_ann!N52","v":1585},{"$f":"[1]ACS_16_5YR_B25034_with_ann!O52","v":248},{"$f":"[1]ACS_16_5YR_B25034_with_ann!P52","v":1178},{"$f":"[1]ACS_16_5YR_B25034_with_ann!Q52","v":250},{"$f":"[1]ACS_16_5YR_B25034_with_ann!R52","v":1011},{"$f":"[1]ACS_16_5YR_B25034_with_ann!S52","v":246},{"$f":"[1]ACS_16_5YR_B25034_with_ann!T52","v":1066},{"$f":"[1]ACS_16_5YR_B25034_with_ann!U52","v":240},{"$f":"[1]ACS_16_5YR_B25034_with_ann!V52","v":394},{"$f":"[1]ACS_16_5YR_B25034_with_ann!W52","v":149},{"$f":"[1]ACS_16_5YR_B25034_with_ann!X52","v":3883},{"$f":"[1]ACS_16_5YR_B25034_with_ann!Y52","v":365},{"$f":"[1]ACS_16_5YR_B25041_with_ann!D52","v":10313},{"$f":"[1]ACS_16_5YR_B25041_with_ann!E52","v":317},{"$f":"[1]ACS_16_5YR_B25041_with_ann!F52","v":247},{"$f":"[1]ACS_16_5YR_B25041_with_ann!G52","v":115},{"$f":"[1]ACS_16_5YR_B25041_with_ann!H52","v":1773},{"$f":"[1]ACS_16_5YR_B25041_with_ann!I52","v":281},{"$f":"[1]ACS_16_5YR_B25041_with_ann!J52","v":3156},{"$f":"[1]ACS_16_5YR_B25041_with_ann!K52","v":366},{"$f":"[1]ACS_16_5YR_B25041_with_ann!L52","v":3072},{"$f":"[1]ACS_16_5YR_B25041_with_ann!M52","v":361},{"$f":"[1]ACS_16_5YR_B25041_with_ann!N52","v":1618},{"$f":"[1]ACS_16_5YR_B25041_with_ann!O52","v":330},{"$f":"[1]ACS_16_5YR_B25041_with_ann!P52","v":447},{"$f":"[1]ACS_16_5YR_B25041_with_ann!Q52","v":145},null,"Keene"]
["06000US3300545460","0600000US3300545700","060",{"$f":"[1]ACS_16_5YR_B25034_with_ann!C53","v":"Marlborough"},{"$f":"[1]ACS_16_5YR_B25034_with_ann!D53","v":1009},{"$f":"[1]ACS_16_5YR_B25034_with_ann!E53","v":129},{"$f":"[1]ACS_16_5YR_B25034_with_ann!F53","v":0},{"$f":"[1]ACS_16_5YR_B25034_with_ann!G53","v":12},{"$f":"[1]ACS_16_5YR_B25034_with_ann!H53","v":42},{"$f":"[1]ACS_16_5YR_B25034_with_ann!I53","v":29},{"$f":"[1]ACS_16_5YR_B25034_with_ann!J53","v":57},{"$f":"[1]ACS_16_5YR_B25034_with_ann!K53","v":30},{"$f":"[1]ACS_16_5YR_B25034_with_ann!L53","v":142},{"$f":"[1]ACS_16_5YR_B25034_with_ann!M53","v":73},{"$f":"[1]ACS_16_5YR_B25034_with_ann!N53","v":144},{"$f":"[1]ACS_16_5YR_B25034_with_ann!O53","v":45},{"$f":"[1]ACS_16_5YR_B25034_with_ann!P53","v":187},{"$f":"[1]ACS_16_5YR_B25034_with_ann!Q53","v":85},{"$f":"[1]ACS_16_5YR_B25034_with_ann!R53","v":45},{"$f":"[1]ACS_16_5YR_B25034_with_ann!S53","v":28},{"$f":"[1]ACS_16_5YR_B25034_with_ann!T53","v":11},{"$f":"[1]ACS_16_5YR_B25034_with_ann!U53","v":14},{"$f":"[1]ACS_16_5YR_B25034_with_ann!V53","v":29},{"$f":"[1]ACS_16_5YR_B25034_with_ann!W53","v":20},{"$f":"[1]ACS_16_5YR_B25034_with_ann!X53","v":352},{"$f":"[1]ACS_16_5YR_B25034_with_ann!Y53","v":89},{"$f":"[1]ACS_16_5YR_B25041_with_ann!D53","v":1009},{"$f":"[1]ACS_16_5YR_B25041_with_ann!E53","v":129},{"$f":"[1]ACS_16_5YR_B25041_with_ann!F53","v":28},{"$f":"[1]ACS_16_5YR_B25041_with_ann!G53","v":24},{"$f":"[1]ACS_16_5YR_B25041_with_ann!H53","v":149},{"$f":"[1]ACS_16_5YR_B25041_with_ann!I53","v":48},{"$f":"[1]ACS_16_5YR_B25041_with_ann!J53","v":255},{"$f":"[1]ACS_16_5YR_B25041_with_ann!K53","v":86},{"$f":"[1]ACS_16_5YR_B25041_with_ann!L53","v":437},{"$f":"[1]ACS_16_5YR_B25041_with_ann!M53","v":109},{"$f":"[1]ACS_16_5YR_B25041_with_ann!N53","v":85},{"$f":"[1]ACS_16_5YR_B25041_with_ann!O53","v":36},{"$f":"[1]ACS_16_5YR_B25041_with_ann!P53","v":55},{"$f":"[1]ACS_16_5YR_B25041_with_ann!Q53","v":39},null,"Marlborough"]
["06000US3300545700","0600000US3300550580","060",{"$f":"[1]ACS_16_5YR_B25034_with_ann!C54","v":"Marlow"},{"$f":"[1]ACS_16_5YR_B25034_with_ann!D54","v":417},{"$f":"[1]ACS_16_5YR_B25034_with_ann!E54","v":72},{"$f":"[1]ACS_16_5YR_B25034_with_ann!F54","v":0},{"$f":"[1]ACS_16_5YR_B25034_with_ann!G54","v":12},{"$f":"[1]ACS_16_5YR_B25034_with_ann!H54","v":12},{"$f":"[1]ACS_16_5YR_B25034_with_ann!I54","v":13},{"$f":"[1]ACS_16_5YR_B25034_with_ann!J54","v":81},{"$f":"[1]ACS_16_5YR_B25034_with_ann!K54","v":32},{"$f":"[1]ACS_16_5YR_B25034_with_ann!L54","v":50},{"$f":"[1]ACS_16_5YR_B25034_with_ann!M54","v":20},{"$f":"[1]ACS_16_5YR_B25034_with_ann!N54","v":74},{"$f":"[1]ACS_16_5YR_B25034_with_ann!O54","v":36},{"$f":"[1]ACS_16_5YR_B25034_with_ann!P54","v":39},{"$f":"[1]ACS_16_5YR_B25034_with_ann!Q54","v":19},{"$f":"[1]ACS_16_5YR_B25034_with_ann!R54","v":11},{"$f":"[1]ACS_16_5YR_B25034_with_ann!S54","v":9},{"$f":"[1]ACS_16_5YR_B25034_with_ann!T54","v":47},{"$f":"[1]ACS_16_5YR_B25034_with_ann!U54","v":30},{"$f":"[1]ACS_16_5YR_B25034_with_ann!V54","v":11},{"$f":"[1]ACS_16_5YR_B25034_with_ann!W54","v":7},{"$f":"[1]ACS_16_5YR_B25034_with_ann!X54","v":92},{"$f":"[1]ACS_16_5YR_B25034_with_ann!Y54","v":28},{"$f":"[1]ACS_16_5YR_B25041_with_ann!D54","v":417},{"$f":"[1]ACS_16_5YR_B25041_with_ann!E54","v":72},{"$f":"[1]ACS_16_5YR_B25041_with_ann!F54","v":9},{"$f":"[1]ACS_16_5YR_B25041_with_ann!G54","v":11},{"$f":"[1]ACS_16_5YR_B25041_with_ann!H54","v":32},{"$f":"[1]ACS_16_5YR_B25041_with_ann!I54","v":20},{"$f":"[1]ACS_16_5YR_B25041_with_ann!J54","v":117},{"$f":"[1]ACS_16_5YR_B25041_with_ann!K54","v":40},{"$f":"[1]ACS_16_5YR_B25041_with_ann!L54","v":197},{"$f":"[1]ACS_16_5YR_B25041_with_ann!M54","v":56},{"$f":"[1]ACS_16_5YR_B25041_with_ann!N54","v":58},{"$f":"[1]ACS_16_5YR_B25041_with_ann!O54","v":28},{"$f":"[1]ACS_16_5YR_B25041_with_ann!P54","v":4},{"$f":"[1]ACS_16_5YR_B25041_with_ann!Q54","v":4},null,"Marlow"]
["06000US3300550580","0600000US3300564420","060",{"$f":"[1]ACS_16_5YR_B25034_with_ann!C55","v":"Nelson"},{"$f":"[1]ACS_16_5YR_B25034_with_ann!D55","v":429},{"$f":"[1]ACS_16_5YR_B25034_with_ann!E55","v":50},{"$f":"[1]ACS_16_5YR_B25034_with_ann!F55","v":3},{"$f":"[1]ACS_16_5YR_B25034_with_ann!G55","v":4},{"$f":"[1]ACS_16_5YR_B25034_with_ann!H55","v":7},{"$f":"[1]ACS_16_5YR_B25034_with_ann!I55","v":5},{"$f":"[1]ACS_16_5YR_B25034_with_ann!J55","v":67},{"$f":"[1]ACS_16_5YR_B25034_with_ann!K55","v":27},{"$f":"[1]ACS_16_5YR_B25034_with_ann!L55","v":63},{"$f":"[1]ACS_16_5YR_B25034_with_ann!M55","v":24},{"$f":"[1]ACS_16_5YR_B25034_with_ann!N55","v":25},{"$f":"[1]ACS_16_5YR_B25034_with_ann!O55","v":13},{"$f":"[1]ACS_16_5YR_B25034_with_ann!P55","v":44},{"$f":"[1]ACS_16_5YR_B25034_with_ann!Q55","v":21},{"$f":"[1]ACS_16_5YR_B25034_with_ann!R55","v":31},{"$f":"[1]ACS_16_5YR_B25034_with_ann!S55","v":19},{"$f":"[1]ACS_16_5YR_B25034_with_ann!T55","v":31},{"$f":"[1]ACS_16_5YR_B25034_with_ann!U55","v":18},{"$f":"[1]ACS_16_5YR_B25034_with_ann!V55","v":24},{"$f":"[1]ACS_16_5YR_B25034_with_ann!W55","v":18},{"$f":"[1]ACS_16_5YR_B25034_with_ann!X55","v":134},{"$f":"[1]ACS_16_5YR_B25034_with_ann!Y55","v":39},{"$f":"[1]ACS_16_5YR_B25041_with_ann!D55","v":429},{"$f":"[1]ACS_16_5YR_B25041_with_ann!E55","v":50},{"$f":"[1]ACS_16_5YR_B25041_with_ann!F55","v":2},{"$f":"[1]ACS_16_5YR_B25041_with_ann!G55","v":3},{"$f":"[1]ACS_16_5YR_B25041_with_ann!H55","v":44},{"$f":"[1]ACS_16_5YR_B25041_with_ann!I55","v":19},{"$f":"[1]ACS_16_5YR_B25041_with_ann!J55","v":118},{"$f":"[1]ACS_16_5YR_B25041_with_ann!K55","v":35},{"$f":"[1]ACS_16_5YR_B25041_with_ann!L55","v":144},{"$f":"[1]ACS_16_5YR_B25041_with_ann!M55","v":37},{"$f":"[1]ACS_16_5YR_B25041_with_ann!N55","v":76},{"$f":"[1]ACS_16_5YR_B25041_with_ann!O55","v":28},{"$f":"[1]ACS_16_5YR_B25041_with_ann!P55","v":45},{"$f":"[1]ACS_16_5YR_B25041_with_ann!Q55","v":18},null,"Nelson"]
["06000US3300564420","0600000US3300564580","060",{"$f":"[1]ACS_16_5YR_B25034_with_ann!C56","v":"Richmond"},{"$f":"[1]ACS_16_5YR_B25034_with_ann!D56","v":456},{"$f":"[1]ACS_16_5YR_B25034_with_ann!E56","v":82},{"$f":"[1]ACS_16_5YR_B25034_with_ann!F56","v":3},{"$f":"[1]ACS_16_5YR_B25034_with_ann!G56","v":5},{"$f":"[1]ACS_16_5YR_B25034_with_ann!H56","v":5},{"$f":"[1]ACS_16_5YR_B25034_with_ann!I56","v":6},{"$f":"[1]ACS_16_5YR_B25034_with_ann!J56","v":61},{"$f":"[1]ACS_16_5YR_B25034_with_ann!K56","v":32},{"$f":"[1]ACS_16_5YR_B25034_with_ann!L56","v":78},{"$f":"[1]ACS_16_5YR_B25034_with_ann!M56","v":42},{"$f":"[1]ACS_16_5YR_B25034_with_ann!N56","v":104},{"$f":"[1]ACS_16_5YR_B25034_with_ann!O56","v":39},{"$f":"[1]ACS_16_5YR_B25034_with_ann!P56","v":68},{"$f":"[1]ACS_16_5YR_B25034_with_ann!Q56","v":34},{"$f":"[1]ACS_16_5YR_B25034_with_ann!R56","v":17},{"$f":"[1]ACS_16_5YR_B25034_with_ann!S56","v":15},{"$f":"[1]ACS_16_5YR_B25034_with_ann!T56","v":20},{"$f":"[1]ACS_16_5YR_B25034_with_ann!U56","v":15},{"$f":"[1]ACS_16_5YR_B25034_with_ann!V56","v":6},{"$f":"[1]ACS_16_5YR_B25034_with_ann!W56","v":7},{"$f":"[1]ACS_16_5YR_B25034_with_ann!X56","v":94},{"$f":"[1]ACS_16_5YR_B25034_with_ann!Y56","v":44},{"$f":"[1]ACS_16_5YR_B25041_with_ann!D56","v":456},{"$f":"[1]ACS_16_5YR_B25041_with_ann!E56","v":82},{"$f":"[1]ACS_16_5YR_B25041_with_ann!F56","v":3},{"$f":"[1]ACS_16_5YR_B25041_with_ann!G56","v":5},{"$f":"[1]ACS_16_5YR_B25041_with_ann!H56","v":26},{"$f":"[1]ACS_16_5YR_B25041_with_ann!I56","v":15},{"$f":"[1]ACS_16_5YR_B25041_with_ann!J56","v":109},{"$f":"[1]ACS_16_5YR_B25041_with_ann!K56","v":39},{"$f":"[1]ACS_16_5YR_B25041_with_ann!L56","v":231},{"$f":"[1]ACS_16_5YR_B25041_with_ann!M56","v":59},{"$f":"[1]ACS_16_5YR_B25041_with_ann!N56","v":74},{"$f":"[1]ACS_16_5YR_B25041_with_ann!O56","v":38},{"$f":"[1]ACS_16_5YR_B25041_with_ann!P56","v":13},{"$f":"[1]ACS_16_5YR_B25041_with_ann!Q56","v":17},null,"Richmond"]
["06000US3300564580","0600000US3300565700","060",{"$f":"[1]ACS_16_5YR_B25034_with_ann!C57","v":"Rindge"},{"$f":"[1]ACS_16_5YR_B25034_with_ann!D57","v":2449},{"$f":"[1]ACS_16_5YR_B25034_with_ann!E57","v":168},{"$f":"[1]ACS_16_5YR_B25034_with_ann!F57","v":18},{"$f":"[1]ACS_16_5YR_B25034_with_ann!G57","v":30},{"$f":"[1]ACS_16_5YR_B25034_with_ann!H57","v":183},{"$f":"[1]ACS_16_5YR_B25034_with_ann!I57","v":96},{"$f":"[1]ACS_16_5YR_B25034_with_ann!J57","v":402},{"$f":"[1]ACS_16_5YR_B25034_with_ann!K57","v":120},{"$f":"[1]ACS_16_5YR_B25034_with_ann!L57","v":136},{"$f":"[1]ACS_16_5YR_B25034_with_ann!M57","v":75},{"$f":"[1]ACS_16_5YR_B25034_with_ann!N57","v":571},{"$f":"[1]ACS_16_5YR_B25034_with_ann!O57","v":163},{"$f":"[1]ACS_16_5YR_B25034_with_ann!P57","v":401},{"$f":"[1]ACS_16_5YR_B25034_with_ann!Q57","v":152},{"$f":"[1]ACS_16_5YR_B25034_with_ann!R57","v":134},{"$f":"[1]ACS_16_5YR_B25034_with_ann!S57","v":65},{"$f":"[1]ACS_16_5YR_B25034_with_ann!T57","v":170},{"$f":"[1]ACS_16_5YR_B25034_with_ann!U57","v":94},{"$f":"[1]ACS_16_5YR_B25034_with_ann!V57","v":118},{"$f":"[1]ACS_16_5YR_B25034_with_ann!W57","v":78},{"$f":"[1]ACS_16_5YR_B25034_with_ann!X57","v":316},{"$f":"[1]ACS_16_5YR_B25034_with_ann!Y57","v":112},{"$f":"[1]ACS_16_5YR_B25041_with_ann!D57","v":2449},{"$f":"[1]ACS_16_5YR_B25041_with_ann!E57","v":168},{"$f":"[1]ACS_16_5YR_B25041_with_ann!F57","v":25},{"$f":"[1]ACS_16_5YR_B25041_with_ann!G57","v":25},{"$f":"[1]ACS_16_5YR_B25041_with_ann!H57","v":149},{"$f":"[1]ACS_16_5YR_B25041_with_ann!I57","v":78},{"$f":"[1]ACS_16_5YR_B25041_with_ann!J57","v":558},{"$f":"[1]ACS_16_5YR_B25041_with_ann!K57","v":137},{"$f":"[1]ACS_16_5YR_B25041_with_ann!L57","v":1284},{"$f":"[1]ACS_16_5YR_B25041_with_ann!M57","v":162},{"$f":"[1]ACS_16_5YR_B25041_with_ann!N57","v":356},{"$f":"[1]ACS_16_5YR_B25041_with_ann!O57","v":108},{"$f":"[1]ACS_16_5YR_B25041_with_ann!P57","v":77},{"$f":"[1]ACS_16_5YR_B25041_with_ann!Q57","v":58},null,"Rindge"]
["06000US3300565700","0600000US3300573700","060",{"$f":"[1]ACS_16_5YR_B25034_with_ann!C58","v":"Roxbury"},{"$f":"[1]ACS_16_5YR_B25034_with_ann!D58","v":101},{"$f":"[1]ACS_16_5YR_B25034_with_ann!E58","v":38},{"$f":"[1]ACS_16_5YR_B25034_with_ann!F58","v":0},{"$f":"[1]ACS_16_5YR_B25034_with_ann!G58","v":12},{"$f":"[1]ACS_16_5YR_B25034_with_ann!H58","v":0},{"$f":"[1]ACS_16_5YR_B25034_with_ann!I58","v":12},{"$f":"[1]ACS_16_5YR_B25034_with_ann!J58","v":6},{"$f":"[1]ACS_16_5YR_B25034_with_ann!K58","v":5},{"$f":"[1]ACS_16_5YR_B25034_with_ann!L58","v":25},{"$f":"[1]ACS_16_5YR_B25034_with_ann!M58","v":35},{"$f":"[1]ACS_16_5YR_B25034_with_ann!N58","v":12},{"$f":"[1]ACS_16_5YR_B25034_with_ann!O58","v":8},{"$f":"[1]ACS_16_5YR_B25034_with_ann!P58","v":7},{"$f":"[1]ACS_16_5YR_B25034_with_ann!Q58","v":6},{"$f":"[1]ACS_16_5YR_B25034_with_ann!R58","v":6},{"$f":"[1]ACS_16_5YR_B25034_with_ann!S58","v":5},{"$f":"[1]ACS_16_5YR_B25034_with_ann!T58","v":13},{"$f":"[1]ACS_16_5YR_B25034_with_ann!U58","v":11},{"$f":"[1]ACS_16_5YR_B25034_with_ann!V58","v":6},{"$f":"[1]ACS_16_5YR_B25034_with_ann!W58","v":7},{"$f":"[1]ACS_16_5YR_B25034_with_ann!X58","v":26},{"$f":"[1]ACS_16_5YR_B25034_with_ann!Y58","v":15},{"$f":"[1]ACS_16_5YR_B25041_with_ann!D58","v":101},{"$f":"[1]ACS_16_5YR_B25041_with_ann!E58","v":38},{"$f":"[1]ACS_16_5YR_B25041_with_ann!F58","v":0},{"$f":"[1]ACS_16_5YR_B25041_with_ann!G58","v":12},{"$f":"[1]ACS_16_5YR_B25041_with_ann!H58","v":1},{"$f":"[1]ACS_16_5YR_B25041_with_ann!I58","v":3},{"$f":"[1]ACS_16_5YR_B25041_with_ann!J58","v":22},{"$f":"[1]ACS_16_5YR_B25041_with_ann!K58","v":13},{"$f":"[1]ACS_16_5YR_B25041_with_ann!L58","v":65},{"$f":"[1]ACS_16_5YR_B25041_with_ann!M58","v":40},{"$f":"[1]ACS_16_5YR_B25041_with_ann!N58","v":5},{"$f":"[1]ACS_16_5YR_B25041_with_ann!O58","v":4},{"$f":"[1]ACS_16_5YR_B25041_with_ann!P58","v":8},{"$f":"[1]ACS_16_5YR_B25041_with_ann!Q58","v":6},null,"Roxbury"]
["06000US3300573700","0600000US3300574900","060",{"$f":"[1]ACS_16_5YR_B25034_with_ann!C59","v":"Stoddard"},{"$f":"[1]ACS_16_5YR_B25034_with_ann!D59","v":1020},{"$f":"[1]ACS_16_5YR_B25034_with_ann!E59","v":86},{"$f":"[1]ACS_16_5YR_B25034_with_ann!F59","v":3},{"$f":"[1]ACS_16_5YR_B25034_with_ann!G59","v":4},{"$f":"[1]ACS_16_5YR_B25034_with_ann!H59","v":51},{"$f":"[1]ACS_16_5YR_B25034_with_ann!I59","v":22},{"$f":"[1]ACS_16_5YR_B25034_with_ann!J59","v":210},{"$f":"[1]ACS_16_5YR_B25034_with_ann!K59","v":57},{"$f":"[1]ACS_16_5YR_B25034_with_ann!L59","v":116},{"$f":"[1]ACS_16_5YR_B25034_with_ann!M59","v":43},{"$f":"[1]ACS_16_5YR_B25034_with_ann!N59","v":82},{"$f":"[1]ACS_16_5YR_B25034_with_ann!O59","v":35},{"$f":"[1]ACS_16_5YR_B25034_with_ann!P59","v":186},{"$f":"[1]ACS_16_5YR_B25034_with_ann!Q59","v":47},{"$f":"[1]ACS_16_5YR_B25034_with_ann!R59","v":175},{"$f":"[1]ACS_16_5YR_B25034_with_ann!S59","v":53},{"$f":"[1]ACS_16_5YR_B25034_with_ann!T59","v":106},{"$f":"[1]ACS_16_5YR_B25034_with_ann!U59","v":41},{"$f":"[1]ACS_16_5YR_B25034_with_ann!V59","v":14},{"$f":"[1]ACS_16_5YR_B25034_with_ann!W59","v":14},{"$f":"[1]ACS_16_5YR_B25034_with_ann!X59","v":77},{"$f":"[1]ACS_16_5YR_B25034_with_ann!Y59","v":31},{"$f":"[1]ACS_16_5YR_B25041_with_ann!D59","v":1020},{"$f":"[1]ACS_16_5YR_B25041_with_ann!E59","v":86},{"$f":"[1]ACS_16_5YR_B25041_with_ann!F59","v":0},{"$f":"[1]ACS_16_5YR_B25041_with_ann!G59","v":12},{"$f":"[1]ACS_16_5YR_B25041_with_ann!H59","v":77},{"$f":"[1]ACS_16_5YR_B25041_with_ann!I59","v":35},{"$f":"[1]ACS_16_5YR_B25041_with_ann!J59","v":470},{"$f":"[1]ACS_16_5YR_B25041_with_ann!K59","v":73},{"$f":"[1]ACS_16_5YR_B25041_with_ann!L59","v":388},{"$f":"[1]ACS_16_5YR_B25041_with_ann!M59","v":63},{"$f":"[1]ACS_16_5YR_B25041_with_ann!N59","v":62},{"$f":"[1]ACS_16_5YR_B25041_with_ann!O59","v":29},{"$f":"[1]ACS_16_5YR_B25041_with_ann!P59","v":23},{"$f":"[1]ACS_16_5YR_B25041_with_ann!Q59","v":18},null,"Stoddard"]
["06000US3300574900","0600000US3300575300","060",{"$f":"[1]ACS_16_5YR_B25034_with_ann!C60","v":"Sullivan"},{"$f":"[1]ACS_16_5YR_B25034_with_ann!D60","v":301},{"$f":"[1]ACS_16_5YR_B25034_with_ann!E60","v":55},{"$f":"[1]ACS_16_5YR_B25034_with_ann!F60","v":2},{"$f":"[1]ACS_16_5YR_B25034_with_ann!G60","v":4},{"$f":"[1]ACS_16_5YR_B25034_with_ann!H60","v":13},{"$f":"[1]ACS_16_5YR_B25034_with_ann!I60","v":9},{"$f":"[1]ACS_16_5YR_B25034_with_ann!J60","v":53},{"$f":"[1]ACS_16_5YR_B25034_with_ann!K60","v":33},{"$f":"[1]ACS_16_5YR_B25034_with_ann!L60","v":29},{"$f":"[1]ACS_16_5YR_B25034_with_ann!M60","v":17},{"$f":"[1]ACS_16_5YR_B25034_with_ann!N60","v":41},{"$f":"[1]ACS_16_5YR_B25034_with_ann!O60","v":16},{"$f":"[1]ACS_16_5YR_B25034_with_ann!P60","v":67},{"$f":"[1]ACS_16_5YR_B25034_with_ann!Q60","v":24},{"$f":"[1]ACS_16_5YR_B25034_with_ann!R60","v":23},{"$f":"[1]ACS_16_5YR_B25034_with_ann!S60","v":12},{"$f":"[1]ACS_16_5YR_B25034_with_ann!T60","v":5},{"$f":"[1]ACS_16_5YR_B25034_with_ann!U60","v":5},{"$f":"[1]ACS_16_5YR_B25034_with_ann!V60","v":7},{"$f":"[1]ACS_16_5YR_B25034_with_ann!W60","v":5},{"$f":"[1]ACS_16_5YR_B25034_with_ann!X60","v":61},{"$f":"[1]ACS_16_5YR_B25034_with_ann!Y60","v":23},{"$f":"[1]ACS_16_5YR_B25041_with_ann!D60","v":301},{"$f":"[1]ACS_16_5YR_B25041_with_ann!E60","v":55},{"$f":"[1]ACS_16_5YR_B25041_with_ann!F60","v":5},{"$f":"[1]ACS_16_5YR_B25041_with_ann!G60","v":6},{"$f":"[1]ACS_16_5YR_B25041_with_ann!H60","v":23},{"$f":"[1]ACS_16_5YR_B25041_with_ann!I60","v":12},{"$f":"[1]ACS_16_5YR_B25041_with_ann!J60","v":99},{"$f":"[1]ACS_16_5YR_B25041_with_ann!K60","v":37},{"$f":"[1]ACS_16_5YR_B25041_with_ann!L60","v":123},{"$f":"[1]ACS_16_5YR_B25041_with_ann!M60","v":33},{"$f":"[1]ACS_16_5YR_B25041_with_ann!N60","v":32},{"$f":"[1]ACS_16_5YR_B25041_with_ann!O60","v":17},{"$f":"[1]ACS_16_5YR_B25041_with_ann!P60","v":19},{"$f":"[1]ACS_16_5YR_B25041_with_ann!Q60","v":13},null,"Sullivan"]
["06000US3300575300","0600000US3300575700","060",{"$f":"[1]ACS_16_5YR_B25034_with_ann!C61","v":"Surry"},{"$f":"[1]ACS_16_5YR_B25034_with_ann!D61","v":364},{"$f":"[1]ACS_16_5YR_B25034_with_ann!E61","v":60},{"$f":"[1]ACS_16_5YR_B25034_with_ann!F61","v":5},{"$f":"[1]ACS_16_5YR_B25034_with_ann!G61","v":10},{"$f":"[1]ACS_16_5YR_B25034_with_ann!H61","v":17},{"$f":"[1]ACS_16_5YR_B25034_with_ann!I61","v":11},{"$f":"[1]ACS_16_5YR_B25034_with_ann!J61","v":50},{"$f":"[1]ACS_16_5YR_B25034_with_ann!K61","v":21},{"$f":"[1]ACS_16_5YR_B25034_with_ann!L61","v":56},{"$f":"[1]ACS_16_5YR_B25034_with_ann!M61","v":36},{"$f":"[1]ACS_16_5YR_B25034_with_ann!N61","v":47},{"$f":"[1]ACS_16_5YR_B25034_with_ann!O61","v":22},{"$f":"[1]ACS_16_5YR_B25034_with_ann!P61","v":45},{"$f":"[1]ACS_16_5YR_B25034_with_ann!Q61","v":22},{"$f":"[1]ACS_16_5YR_B25034_with_ann!R61","v":26},{"$f":"[1]ACS_16_5YR_B25034_with_ann!S61","v":15},{"$f":"[1]ACS_16_5YR_B25034_with_ann!T61","v":34},{"$f":"[1]ACS_16_5YR_B25034_with_ann!U61","v":22},{"$f":"[1]ACS_16_5YR_B25034_with_ann!V61","v":11},{"$f":"[1]ACS_16_5YR_B25034_with_ann!W61","v":9},{"$f":"[1]ACS_16_5YR_B25034_with_ann!X61","v":73},{"$f":"[1]ACS_16_5YR_B25034_with_ann!Y61","v":34},{"$f":"[1]ACS_16_5YR_B25041_with_ann!D61","v":364},{"$f":"[1]ACS_16_5YR_B25041_with_ann!E61","v":60},{"$f":"[1]ACS_16_5YR_B25041_with_ann!F61","v":0},{"$f":"[1]ACS_16_5YR_B25041_with_ann!G61","v":12},{"$f":"[1]ACS_16_5YR_B25041_with_ann!H61","v":13},{"$f":"[1]ACS_16_5YR_B25041_with_ann!I61","v":13},{"$f":"[1]ACS_16_5YR_B25041_with_ann!J61","v":60},{"$f":"[1]ACS_16_5YR_B25041_with_ann!K61","v":24},{"$f":"[1]ACS_16_5YR_B25041_with_ann!L61","v":201},{"$f":"[1]ACS_16_5YR_B25041_with_ann!M61","v":50},{"$f":"[1]ACS_16_5YR_B25041_with_ann!N61","v":72},{"$f":"[1]ACS_16_5YR_B25041_with_ann!O61","v":31},{"$f":"[1]ACS_16_5YR_B25041_with_ann!P61","v":18},{"$f":"[1]ACS_16_5YR_B25041_with_ann!Q61","v":16},null,"Surry"]
["06000US3300575700","0600000US3300577380","060",{"$f":"[1]ACS_16_5YR_B25034_with_ann!C62","v":"Swanzey"},{"$f":"[1]ACS_16_5YR_B25034_with_ann!D62","v":3388},{"$f":"[1]ACS_16_5YR_B25034_with_ann!E62","v":169},{"$f":"[1]ACS_16_5YR_B25034_with_ann!F62","v":0},{"$f":"[1]ACS_16_5YR_B25034_with_ann!G62","v":17},{"$f":"[1]ACS_16_5YR_B25034_with_ann!H62","v":180},{"$f":"[1]ACS_16_5YR_B25034_with_ann!I62","v":96},{"$f":"[1]ACS_16_5YR_B25034_with_ann!J62","v":620},{"$f":"[1]ACS_16_5YR_B25034_with_ann!K62","v":195},{"$f":"[1]ACS_16_5YR_B25034_with_ann!L62","v":352},{"$f":"[1]ACS_16_5YR_B25034_with_ann!M62","v":177},{"$f":"[1]ACS_16_5YR_B25034_with_ann!N62","v":462},{"$f":"[1]ACS_16_5YR_B25034_with_ann!O62","v":169},{"$f":"[1]ACS_16_5YR_B25034_with_ann!P62","v":399},{"$f":"[1]ACS_16_5YR_B25034_with_ann!Q62","v":157},{"$f":"[1]ACS_16_5YR_B25034_with_ann!R62","v":283},{"$f":"[1]ACS_16_5YR_B25034_with_ann!S62","v":119},{"$f":"[1]ACS_16_5YR_B25034_with_ann!T62","v":259},{"$f":"[1]ACS_16_5YR_B25034_with_ann!U62","v":93},{"$f":"[1]ACS_16_5YR_B25034_with_ann!V62","v":107},{"$f":"[1]ACS_16_5YR_B25034_with_ann!W62","v":72},{"$f":"[1]ACS_16_5YR_B25034_with_ann!X62","v":726},{"$f":"[1]ACS_16_5YR_B25034_with_ann!Y62","v":224},{"$f":"[1]ACS_16_5YR_B25041_with_ann!D62","v":3388},{"$f":"[1]ACS_16_5YR_B25041_with_ann!E62","v":169},{"$f":"[1]ACS_16_5YR_B25041_with_ann!F62","v":78},{"$f":"[1]ACS_16_5YR_B25041_with_ann!G62","v":84},{"$f":"[1]ACS_16_5YR_B25041_with_ann!H62","v":461},{"$f":"[1]ACS_16_5YR_B25041_with_ann!I62","v":155},{"$f":"[1]ACS_16_5YR_B25041_with_ann!J62","v":900},{"$f":"[1]ACS_16_5YR_B25041_with_ann!K62","v":244},{"$f":"[1]ACS_16_5YR_B25041_with_ann!L62","v":1317},{"$f":"[1]ACS_16_5YR_B25041_with_ann!M62","v":266},{"$f":"[1]ACS_16_5YR_B25041_with_ann!N62","v":438},{"$f":"[1]ACS_16_5YR_B25041_with_ann!O62","v":191},{"$f":"[1]ACS_16_5YR_B25041_with_ann!P62","v":194},{"$f":"[1]ACS_16_5YR_B25041_with_ann!Q62","v":161},null,"Swanzey"]
["06000US3300577380","0600000US3300578420","060",{"$f":"[1]ACS_16_5YR_B25034_with_ann!C63","v":"Troy"},{"$f":"[1]ACS_16_5YR_B25034_with_ann!D63","v":815},{"$f":"[1]ACS_16_5YR_B25034_with_ann!E63","v":105},{"$f":"[1]ACS_16_5YR_B25034_with_ann!F63","v":0},{"$f":"[1]ACS_16_5YR_B25034_with_ann!G63","v":12},{"$f":"[1]ACS_16_5YR_B25034_with_ann!H63","v":23},{"$f":"[1]ACS_16_5YR_B25034_with_ann!I63","v":27},{"$f":"[1]ACS_16_5YR_B25034_with_ann!J63","v":78},{"$f":"[1]ACS_16_5YR_B25034_with_ann!K63","v":38},{"$f":"[1]ACS_16_5YR_B25034_with_ann!L63","v":73},{"$f":"[1]ACS_16_5YR_B25034_with_ann!M63","v":44},{"$f":"[1]ACS_16_5YR_B25034_with_ann!N63","v":128},{"$f":"[1]ACS_16_5YR_B25034_with_ann!O63","v":51},{"$f":"[1]ACS_16_5YR_B25034_with_ann!P63","v":102},{"$f":"[1]ACS_16_5YR_B25034_with_ann!Q63","v":46},{"$f":"[1]ACS_16_5YR_B25034_with_ann!R63","v":37},{"$f":"[1]ACS_16_5YR_B25034_with_ann!S63","v":30},{"$f":"[1]ACS_16_5YR_B25034_with_ann!T63","v":41},{"$f":"[1]ACS_16_5YR_B25034_with_ann!U63","v":32},{"$f":"[1]ACS_16_5YR_B25034_with_ann!V63","v":38},{"$f":"[1]ACS_16_5YR_B25034_with_ann!W63","v":26},{"$f":"[1]ACS_16_5YR_B25034_with_ann!X63","v":295},{"$f":"[1]ACS_16_5YR_B25034_with_ann!Y63","v":65},{"$f":"[1]ACS_16_5YR_B25041_with_ann!D63","v":815},{"$f":"[1]ACS_16_5YR_B25041_with_ann!E63","v":105},{"$f":"[1]ACS_16_5YR_B25041_with_ann!F63","v":0},{"$f":"[1]ACS_16_5YR_B25041_with_ann!G63","v":12},{"$f":"[1]ACS_16_5YR_B25041_with_ann!H63","v":104},{"$f":"[1]ACS_16_5YR_B25041_with_ann!I63","v":41},{"$f":"[1]ACS_16_5YR_B25041_with_ann!J63","v":291},{"$f":"[1]ACS_16_5YR_B25041_with_ann!K63","v":81},{"$f":"[1]ACS_16_5YR_B25041_with_ann!L63","v":315},{"$f":"[1]ACS_16_5YR_B25041_with_ann!M63","v":75},{"$f":"[1]ACS_16_5YR_B25041_with_ann!N63","v":105},{"$f":"[1]ACS_16_5YR_B25041_with_ann!O63","v":43},{"$f":"[1]ACS_16_5YR_B25041_with_ann!P63","v":0},{"$f":"[1]ACS_16_5YR_B25041_with_ann!Q63","v":12},null,"Troy"]
["06000US3300578420","0600000US3300582660","060",{"$f":"[1]ACS_16_5YR_B25034_with_ann!C64","v":"Walpole"},{"$f":"[1]ACS_16_5YR_B25034_with_ann!D64","v":1618},{"$f":"[1]ACS_16_5YR_B25034_with_ann!E64","v":160},{"$f":"[1]ACS_16_5YR_B25034_with_ann!F64","v":0},{"$f":"[1]ACS_16_5YR_B25034_with_ann!G64","v":12},{"$f":"[1]ACS_16_5YR_B25034_with_ann!H64","v":123},{"$f":"[1]ACS_16_5YR_B25034_with_ann!I64","v":93},{"$f":"[1]ACS_16_5YR_B25034_with_ann!J64","v":141},{"$f":"[1]ACS_16_5YR_B25034_with_ann!K64","v":88},{"$f":"[1]ACS_16_5YR_B25034_with_ann!L64","v":138},{"$f":"[1]ACS_16_5YR_B25034_with_ann!M64","v":58},{"$f":"[1]ACS_16_5YR_B25034_with_ann!N64","v":138},{"$f":"[1]ACS_16_5YR_B25034_with_ann!O64","v":69},{"$f":"[1]ACS_16_5YR_B25034_with_ann!P64","v":175},{"$f":"[1]ACS_16_5YR_B25034_with_ann!Q64","v":81},{"$f":"[1]ACS_16_5YR_B25034_with_ann!R64","v":103},{"$f":"[1]ACS_16_5YR_B25034_with_ann!S64","v":63},{"$f":"[1]ACS_16_5YR_B25034_with_ann!T64","v":127},{"$f":"[1]ACS_16_5YR_B25034_with_ann!U64","v":55},{"$f":"[1]ACS_16_5YR_B25034_with_ann!V64","v":119},{"$f":"[1]ACS_16_5YR_B25034_with_ann!W64","v":85},{"$f":"[1]ACS_16_5YR_B25034_with_ann!X64","v":554},{"$f":"[1]ACS_16_5YR_B25034_with_ann!Y64","v":148},{"$f":"[1]ACS_16_5YR_B25041_with_ann!D64","v":1618},{"$f":"[1]ACS_16_5YR_B25041_with_ann!E64","v":160},{"$f":"[1]ACS_16_5YR_B25041_with_ann!F64","v":39},{"$f":"[1]ACS_16_5YR_B25041_with_ann!G64","v":43},{"$f":"[1]ACS_16_5YR_B25041_with_ann!H64","v":250},{"$f":"[1]ACS_16_5YR_B25041_with_ann!I64","v":114},{"$f":"[1]ACS_16_5YR_B25041_with_ann!J64","v":366},{"$f":"[1]ACS_16_5YR_B25041_with_ann!K64","v":142},{"$f":"[1]ACS_16_5YR_B25041_with_ann!L64","v":723},{"$f":"[1]ACS_16_5YR_B25041_with_ann!M64","v":123},{"$f":"[1]ACS_16_5YR_B25041_with_ann!N64","v":160},{"$f":"[1]ACS_16_5YR_B25041_with_ann!O64","v":73},{"$f":"[1]ACS_16_5YR_B25041_with_ann!P64","v":80},{"$f":"[1]ACS_16_5YR_B25041_with_ann!Q64","v":48},null,"Walpole"]
["06000US3300582660","0600000US3300585540","060",{"$f":"[1]ACS_16_5YR_B25034_with_ann!C65","v":"Westmoreland"},{"$f":"[1]ACS_16_5YR_B25034_with_ann!D65","v":936},{"$f":"[1]ACS_16_5YR_B25034_with_ann!E65","v":184},{"$f":"[1]ACS_16_5YR_B25034_with_ann!F65","v":0},{"$f":"[1]ACS_16_5YR_B25034_with_ann!G65","v":12},{"$f":"[1]ACS_16_5YR_B25034_with_ann!H65","v":38},{"$f":"[1]ACS_16_5YR_B25034_with_ann!I65","v":32},{"$f":"[1]ACS_16_5YR_B25034_with_ann!J65","v":100},{"$f":"[1]ACS_16_5YR_B25034_with_ann!K65","v":36},{"$f":"[1]ACS_16_5YR_B25034_with_ann!L65","v":60},{"$f":"[1]ACS_16_5YR_B25034_with_ann!M65","v":53},{"$f":"[1]ACS_16_5YR_B25034_with_ann!N65","v":111},{"$f":"[1]ACS_16_5YR_B25034_with_ann!O65","v":41},{"$f":"[1]ACS_16_5YR_B25034_with_ann!P65","v":207},{"$f":"[1]ACS_16_5YR_B25034_with_ann!Q65","v":108},{"$f":"[1]ACS_16_5YR_B25034_with_ann!R65","v":48},{"$f":"[1]ACS_16_5YR_B25034_with_ann!S65","v":22},{"$f":"[1]ACS_16_5YR_B25034_with_ann!T65","v":68},{"$f":"[1]ACS_16_5YR_B25034_with_ann!U65","v":38},{"$f":"[1]ACS_16_5YR_B25034_with_ann!V65","v":14},{"$f":"[1]ACS_16_5YR_B25034_with_ann!W65","v":11},{"$f":"[1]ACS_16_5YR_B25034_with_ann!X65","v":290},{"$f":"[1]ACS_16_5YR_B25034_with_ann!Y65","v":108},{"$f":"[1]ACS_16_5YR_B25041_with_ann!D65","v":936},{"$f":"[1]ACS_16_5YR_B25041_with_ann!E65","v":184},{"$f":"[1]ACS_16_5YR_B25041_with_ann!F65","v":45},{"$f":"[1]ACS_16_5YR_B25041_with_ann!G65","v":48},{"$f":"[1]ACS_16_5YR_B25041_with_ann!H65","v":76},{"$f":"[1]ACS_16_5YR_B25041_with_ann!I65","v":52},{"$f":"[1]ACS_16_5YR_B25041_with_ann!J65","v":170},{"$f":"[1]ACS_16_5YR_B25041_with_ann!K65","v":52},{"$f":"[1]ACS_16_5YR_B25041_with_ann!L65","v":493},{"$f":"[1]ACS_16_5YR_B25041_with_ann!M65","v":143},{"$f":"[1]ACS_16_5YR_B25041_with_ann!N65","v":119},{"$f":"[1]ACS_16_5YR_B25041_with_ann!O65","v":56},{"$f":"[1]ACS_16_5YR_B25041_with_ann!P65","v":33},{"$f":"[1]ACS_16_5YR_B25041_with_ann!Q65","v":26},null,"Westmoreland"]
["06000US3300585540","0600000US3300500820","060",{"$f":"[1]ACS_16_5YR_B25034_with_ann!C66","v":"Winchester"},{"$f":"[1]ACS_16_5YR_B25034_with_ann!D66","v":1885},{"$f":"[1]ACS_16_5YR_B25034_with_ann!E66","v":173},{"$f":"[1]ACS_16_5YR_B25034_with_ann!F66","v":0},{"$f":"[1]ACS_16_5YR_B25034_with_ann!G66","v":12},{"$f":"[1]ACS_16_5YR_B25034_with_ann!H66","v":10},{"$f":"[1]ACS_16_5YR_B25034_with_ann!I66","v":15},{"$f":"[1]ACS_16_5YR_B25034_with_ann!J66","v":195},{"$f":"[1]ACS_16_5YR_B25034_with_ann!K66","v":92},{"$f":"[1]ACS_16_5YR_B25034_with_ann!L66","v":212},{"$f":"[1]ACS_16_5YR_B25034_with_ann!M66","v":102},{"$f":"[1]ACS_16_5YR_B25034_with_ann!N66","v":463},{"$f":"[1]ACS_16_5YR_B25034_with_ann!O66","v":146},{"$f":"[1]ACS_16_5YR_B25034_with_ann!P66","v":337},{"$f":"[1]ACS_16_5YR_B25034_with_ann!Q66","v":109},{"$f":"[1]ACS_16_5YR_B25034_with_ann!R66","v":70},{"$f":"[1]ACS_16_5YR_B25034_with_ann!S66","v":43},{"$f":"[1]ACS_16_5YR_B25034_with_ann!T66","v":132},{"$f":"[1]ACS_16_5YR_B25034_with_ann!U66","v":52},{"$f":"[1]ACS_16_5YR_B25034_with_ann!V66","v":8},{"$f":"[1]ACS_16_5YR_B25034_with_ann!W66","v":11},{"$f":"[1]ACS_16_5YR_B25034_with_ann!X66","v":458},{"$f":"[1]ACS_16_5YR_B25034_with_ann!Y66","v":133},{"$f":"[1]ACS_16_5YR_B25041_with_ann!D66","v":1885},{"$f":"[1]ACS_16_5YR_B25041_with_ann!E66","v":173},{"$f":"[1]ACS_16_5YR_B25041_with_ann!F66","v":23},{"$f":"[1]ACS_16_5YR_B25041_with_ann!G66","v":37},{"$f":"[1]ACS_16_5YR_B25041_with_ann!H66","v":399},{"$f":"[1]ACS_16_5YR_B25041_with_ann!I66","v":137},{"$f":"[1]ACS_16_5YR_B25041_with_ann!J66","v":595},{"$f":"[1]ACS_16_5YR_B25041_with_ann!K66","v":143},{"$f":"[1]ACS_16_5YR_B25041_with_ann!L66","v":703},{"$f":"[1]ACS_16_5YR_B25041_with_ann!M66","v":140},{"$f":"[1]ACS_16_5YR_B25041_with_ann!N66","v":154},{"$f":"[1]ACS_16_5YR_B25041_with_ann!O66","v":63},{"$f":"[1]ACS_16_5YR_B25041_with_ann!P66","v":11},{"$f":"[1]ACS_16_5YR_B25041_with_ann!Q66","v":18},null,"Winchester"]
[]
[]
[null,null,null,null,null,null,null,null,null,null,null,null,null,null,null,null,null,null,null,null,null,null,null,null,null,null,null,null,null,null,null,null,null,null,null,null,null,null,null,null,null,null,null,null,{"$f":"$D$22","v":"Troy"},null,{"$f":"$D$23","v":"Walpole"},null,{"$f":"$D$24","v":"Westmoreland"},null,{"$f":"$D$25","v":"Winchester"}]
[null,null,null,null,{"$f":"$D$3","v":"Alstead"},null,{"$f":"$D$4","v":"Chesterfield"},null,{"$f":"$D$5","v":"Dublin"},null,{"$f":"$D$6","v":"Fitzwilliam"},null,{"$f":"$D$7","v":"Gilsum"},null,{"$f":"$D$8","v":"Harrisville"},null,{"$f":"$D$9","v":"Hinsdale"},null,{"$f":"$D$10","v":"Jaffrey"},null,{"$f":"$D$11","v":"Keene"},null,{"$f":"$D$12","v":"Marlborough"},null,{"$f":"$D$13","v":"Marlow"},null,null,null,{"$f":"$D$14","v":"Nelson"},null,{"$f":"$D$15","v":"Richmond"},null,{"$f":"$D$16","v":"Rindge"},null,{"$f":"$D$17","v":"Roxbury"},null,{"$f":"$D$18","v":"Stoddard"},null,{"$f":"$D$19","v":"Sullivan"},null,{"$f":"$D$20","v":"Surry"},null,{"$f":"$D$21","v":"Swanzey"},null,{"$f":"$D$21","v":"Swanzey"},null,{"$f":"$D$21","v":"Swanzey"},null,{"$f":"$D$21","v":"Swanzey"},null,{"$f":"$D$21","v":"Swanzey"}]
[null,null,null,null,"Estimate","Margin of Error","Estimate","Margin of Error","Estimate","Margin of Error","Estimate","Margin of Error","Estimate","Margin of Error","Estimate","Margin of Error","Estimate","Margin of Error","Estimate","Margin of Error","Estimate","Margin of Error","Estimate","Margin of Error","Estimate","Margin of Error",null,null,"Estimate","Margin of Error","Estimate","Margin of Error","Estimate","Margin of Error","Estimate","Margin of Error","Estimate","Margin of Error","Estimate","Margin of Error","Estimate","Margin of Error","Estimate","Margin of Error"]
[null,null,null,"Estimate!!Total:",986,109,1792,170,797,112,1317,149,360,57,690,92,1789,178,2474,208,10313,317,1009,129,417,72,429,50,456,82,2449,168,101,38,1020,86,301,55,364,60,3388,169,815,105,1618,160,936,184,1885,173,2059,151]
[null,null,null,"Estimate!!Total:!!Built 2020 or later",0,12,0,12,4,5,5,7,0,12,0,12,15,24,0,17,0,22,0,12,0,12,3,4,3,5,18,30,0,12,3,4,2,4,5,10,0,17,0,12,0,12,0,12,0,12,0,11]
[null,null,null,"Estimate!!Total:!!Built 2010 to 2019",30,17,137,128,34,24,66,39,10,8,3,4,14,22,43,57,408,145,42,29,12,13,7,5,5,6,183,96,0,12,51,22,13,9,17,11,180,96,23,27,123,93,38,32,10,15,176,90]
[null,null,null,"Estimate!!Total:!!Built 2000 to 2009",120,62,225,103,96,40,186,101,34,21,69,28,164,69,145,84,412,136,57,30,81,32,67,27,61,32,402,120,6,5,210,57,53,33,50,21,620,195,78,38,141,88,100,36,195,92,183,92]
[null,null,null,"Estimate!!Total:!!Built 1990 to 1999",107,56,200,123,89,58,73,37,30,19,34,17,157,87,81,82,376,132,142,73,50,20,63,24,78,42,136,75,25,35,116,43,29,17,56,36,352,177,73,44,138,58,60,53,212,102,439,112]
[null,null,null,"Estimate!!Total:!!Built 1980 to 1989",143,40,226,104,105,37,206,60,78,28,79,32,226,86,493,243,1585,248,144,45,74,36,25,13,104,39,571,163,12,8,82,35,41,16,47,22,462,169,128,51,138,69,111,41,463,146,245,98]
[null,null,null,"Estimate!!Total:!!Built 1970 to 1979",112,53,344,162,79,30,151,78,33,14,70,33,402,158,462,168,1178,250,187,85,39,19,44,21,68,34,401,152,7,6,186,47,67,24,45,22,399,157,102,46,175,81,207,108,337,109,200,91]
[null,null,null,"Estimate!!Total:!!Built 1960 to 1969",130,61,181,154,96,72,103,43,24,16,90,45,238,110,197,135,1011,246,45,28,11,9,31,19,17,15,134,65,6,5,175,53,23,12,26,15,283,119,37,30,103,63,48,22,70,43,68,51]
[null,null,null,"Estimate!!Total:!!Built 1950 to 1959",145,67,65,44,75,32,172,75,18,15,52,35,33,32,76,81,1066,240,11,14,47,30,31,18,20,15,170,94,13,11,106,41,5,5,34,22,259,93,41,32,127,55,68,38,132,52,44,35]
[null,null,null,"Estimate!!Total:!!Built 1940 to 1949",68,51,69,58,4,6,24,21,8,7,71,31,107,72,82,62,394,149,29,20,11,7,24,18,6,7,118,78,6,7,14,14,7,5,11,9,107,72,38,26,119,85,14,11,8,11,704,147]
[null,null,null,"Estimate!!Total:!!Built 1939 or earlier",131,40,345,190,215,51,331,81,125,40,222,61,433,183,895,199,3883,365,352,89,92,28,134,39,94,44,316,112,26,15,77,31,61,23,73,34,726,224,295,65,554,148,290,108,458,133]
["B25041. BEDROOMS "]
[null,null,null,"Estimate!!Total:",986,109,1792,170,797,112,1317,149,360,57,690,92,1789,178,2474,208,10313,317,1009,129,417,72,429,50,456,82,2449,168,101,38,1020,86,301,55,364,60,3388,169,815,105,1618,160,936,184,1885,173,2059,151]
[null,null,null,"Estimate!!Total:!!No bedroom",45,35,13,21,0,12,54,45,13,11,8,8,0,12,22,28,247,115,28,24,9,11,2,3,3,5,25,25,0,12,0,12,5,6,0,12,78,84,0,12,39,43,45,48,23,37,12,18]
[null,null,null,"Estimate!!Total:!!1 bedroom",182,77,10,16,64,28,96,51,25,17,91,42,191,112,381,147,1773,281,149,48,32,20,44,19,26,15,149,78,1,3,77,35,23,12,13,13,461,155,104,41,250,114,76,52,399,137,262,111]
[null,null,null,"Estimate!!Total:!!2 bedrooms",274,71,280,169,116,39,425,92,108,29,176,57,502,190,833,282,3156,366,255,86,117,40,118,35,109,39,558,137,22,13,470,73,99,37,60,24,900,244,291,81,366,142,170,52,595,143,673,165]
[null,null,null,"Estimate!!Total:!!3 bedrooms",311,68,991,245,378,110,501,129,152,34,268,64,857,161,644,204,3072,361,437,109,197,56,144,37,231,59,1284,162,65,40,388,63,123,33,201,50,1317,266,315,75,723,123,493,143,703,140,743,138]
[null,null,null,"Estimate!!Total:!!4 bedrooms",150,58,391,159,141,38,210,80,30,16,76,38,207,109,536,171,1618,330,85,36,58,28,76,28,74,38,356,108,5,4,62,29,32,17,72,31,438,191,105,43,160,73,119,56,154,63,272,98]
[null,null,null,"Estimate!!Total:!!5 or more bedrooms",24,26,107,76,98,38,31,30,32,26,71,33,32,31,58,57,447,145,55,39,4,4,45,18,13,17,77,58,8,6,23,18,19,13,18,16,194,161,0,12,80,48,33,26,11,18,97,73]

{"sheet":"SData_B25063_B25064_OccRentGR","index":90,"n_rows":61,"n_cols":62,"rows_kept":61,"cut":false,"hidden":true,"merged":[]}
["GEO_ID","GEO_ID2","SUMLEVEL",{"$f":"[1]ACS_16_5YR_B25063_with_ann!C1","v":"NAME"},{"$f":"[1]ACS_16_5YR_B25063_with_ann!D1","v":"B25063_001E"},{"$f":"[1]ACS_16_5YR_B25063_with_ann!E1","v":"B25063_001M"},{"$f":"[1]ACS_16_5YR_B25063_with_ann!F1","v":"B25063_002E"},{"$f":"[1]ACS_16_5YR_B25063_with_ann!G1","v":"B25063_002M"},{"$f":"[1]ACS_16_5YR_B25063_with_ann!H1","v":"B25063_003E"},{"$f":"[1]ACS_16_5YR_B25063_with_ann!I1","v":"B25063_003M"},{"$f":"[1]ACS_16_5YR_B25063_with_ann!J1","v":"B25063_004E"},{"$f":"[1]ACS_16_5YR_B25063_with_ann!K1","v":"B25063_004M"},{"$f":"[1]ACS_16_5YR_B25063_with_ann!L1","v":"B25063_005E"},{"$f":"[1]ACS_16_5YR_B25063_with_ann!M1","v":"B25063_005M"},{"$f":"[1]ACS_16_5YR_B25063_with_ann!N1","v":"B25063_006E"},{"$f":"[1]ACS_16_5YR_B25063_with_ann!O1","v":"B25063_006M"},{"$f":"[1]ACS_16_5YR_B25063_with_ann!P1","v":"B25063_007E"},{"$f":"[1]ACS_16_5YR_B25063_with_ann!Q1","v":"B25063_007M"},{"$f":"[1]ACS_16_5YR_B25063_with_ann!R1","v":"B25063_008E"},{"$f":"[1]ACS_16_5YR_B25063_with_ann!S1","v":"B25063_008M"},{"$f":"[1]ACS_16_5YR_B25063_with_ann!T1","v":"B25063_009E"},{"$f":"[1]ACS_16_5YR_B25063_with_ann!U1","v":"B25063_009M"},{"$f":"[1]ACS_16_5YR_B25063_with_ann!V1","v":"B25063_010E"},{"$f":"[1]ACS_16_5YR_B25063_with_ann!W1","v":"B25063_010M"},{"$f":"[1]ACS_16_5YR_B25063_with_ann!X1","v":"B25063_011E"},{"$f":"[1]ACS_16_5YR_B25063_with_ann!Y1","v":"B25063_011M"},{"$f":"[1]ACS_16_5YR_B25063_with_ann!Z1","v":"B25063_012E"},{"$f":"[1]ACS_16_5YR_B25063_with_ann!AA1","v":"B25063_012M"},{"$f":"[1]ACS_16_5YR_B25063_with_ann!AB1","v":"B25063_013E"},{"$f":"[1]ACS_16_5YR_B25063_with_ann!AC1","v":"B25063_013M"},{"$f":"[1]ACS_16_5YR_B25063_with_ann!AD1","v":"B25063_014E"},{"$f":"[1]ACS_16_5YR_B25063_with_ann!AE1","v":"B25063_014M"},{"$f":"[1]ACS_16_5YR_B25063_with_ann!AF1","v":"B25063_015E"},{"$f":"[1]ACS_16_5YR_B25063_with_ann!AG1","v":"B25063_015M"},{"$f":"[1]ACS_16_5YR_B25063_with_ann!AH1","v":"B25063_016E"},{"$f":"[1]ACS_16_5YR_B25063_with_ann!AI1","v":"B25063_016M"},{"$f":"[1]ACS_16_5YR_B25063_with_ann!AJ1","v":"B25063_017E"},{"$f":"[1]ACS_16_5YR_B25063_with_ann!AK1","v":"B25063_017M"},{"$f":"[1]ACS_16_5YR_B25063_with_ann!AL1","v":"B25063_018E"},{"$f":"[1]ACS_16_5YR_B25063_with_ann!AM1","v":"B25063_018M"},{"$f":"[1]ACS_16_5YR_B25063_with_ann!AN1","v":"B25063_019E"},{"$f":"[1]ACS_16_5YR_B25063_with_ann!AO1","v":"B25063_019M"},{"$f":"[1]ACS_16_5YR_B25063_with_ann!AP1","v":"B25063_020E"},{"$f":"[1]ACS_16_5YR_B25063_with_ann!AQ1","v":"B25063_020M"},{"$f":"[1]ACS_16_5YR_B25063_with_ann!AR1","v":"B25063_021E"},{"$f":"[1]ACS_16_5YR_B25063_with_ann!AS1","v":"B25063_021M"},{"$f":"[1]ACS_16_5YR_B25063_with_ann!AT1","v":"B25063_022E"},{"$f":"[1]ACS_16_5YR_B25063_with_ann!AU1","v":"B25063_022M"},{"$f":"[1]ACS_16_5YR_B25063_with_ann!AV1","v":"B25063_023E"},{"$f":"[1]ACS_16_5YR_B25063_with_ann!AW1","v":"B25063_023M"},{"$f":"[1]ACS_16_5YR_B25063_with_ann!AX1","v":"B25063_024E"},{"$f":"[1]ACS_16_5YR_B25063_with_ann!AY1","v":"B25063_024M"},{"$f":"[1]ACS_16_5YR_B25063_with_ann!AZ1","v":"B25063_025E"},{"$f":"[1]ACS_16_5YR_B25063_with_ann!BA1","v":"B25063_025M"},{"$f":"[1]ACS_16_5YR_B25063_with_ann!BB1","v":"B25063_026E"},{"$f":"[1]ACS_16_5YR_B25063_with_ann!BC1","v":"B25063_026M"},{"$f":"[1]ACS_16_5YR_B25063_with_ann!BD1","v":"B25063_027E"},{"$f":"[1]ACS_16_5YR_B25063_with_ann!BE1","v":"B25063_027M"},{"$f":"[1]ACS_16_5YR_B25064_with_ann!D1","v":"B25064_001E"},{"$f":"[1]ACS_16_5YR_B25064_with_ann!E1","v":"B25064_001M"}]
["Geography Identifier","Geography Identifier","Geographic Summary Level",{"$f":"[1]ACS_16_5YR_B25063_with_ann!C2","v":"Geographic Area Name"},{"$f":"[1]ACS_16_5YR_B25063_with_ann!D2","v":"Estimate!!Total:"},{"$f":"[1]ACS_16_5YR_B25063_with_ann!E2","v":"Margin of Error!!Total:"},{"$f":"[1]ACS_16_5YR_B25063_with_ann!F2","v":"Estimate!!Total:!!With cash rent:"},{"$f":"[1]ACS_16_5YR_B25063_with_ann!G2","v":"Margin of Error!!Total:!!With cash rent:"},{"$f":"[1]ACS_16_5YR_B25063_with_ann!H2","v":"Estimate!!Total:!!With cash rent:!!Less than $100"},{"$f":"[1]ACS_16_5YR_B25063_with_ann!I2","v":"Margin of Error!!Total:!!With cash rent:!!Less than $100"},{"$f":"[1]ACS_16_5YR_B25063_with_ann!J2","v":"Estimate!!Total:!!With cash rent:!!$100 to $149"},{"$f":"[1]ACS_16_5YR_B25063_with_ann!K2","v":"Margin of Error!!Total:!!With cash rent:!!$100 to $149"},{"$f":"[1]ACS_16_5YR_B25063_with_ann!L2","v":"Estimate!!Total:!!With cash rent:!!$150 to $199"},{"$f":"[1]ACS_16_5YR_B25063_with_ann!M2","v":"Margin of Error!!Total:!!With cash rent:!!$150 to $199"},{"$f":"[1]ACS_16_5YR_B25063_with_ann!N2","v":"Estimate!!Total:!!With cash rent:!!$200 to $249"},{"$f":"[1]ACS_16_5YR_B25063_with_ann!O2","v":"Margin of Error!!Total:!!With cash rent:!!$200 to $249"},{"$f":"[1]ACS_16_5YR_B25063_with_ann!P2","v":"Estimate!!Total:!!With cash rent:!!$250 to $299"},{"$f":"[1]ACS_16_5YR_B25063_with_ann!Q2","v":"Margin of Error!!Total:!!With cash rent:!!$250 to $299"},{"$f":"[1]ACS_16_5YR_B25063_with_ann!R2","v":"Estimate!!Total:!!With cash rent:!!$300 to $349"},{"$f":"[1]ACS_16_5YR_B25063_with_ann!S2","v":"Margin of Error!!Total:!!With cash rent:!!$300 to $349"},{"$f":"[1]ACS_16_5YR_B25063_with_ann!T2","v":"Estimate!!Total:!!With cash rent:!!$350 to $399"},{"$f":"[1]ACS_16_5YR_B25063_with_ann!U2","v":"Margin of Error!!Total:!!With cash rent:!!$350 to $399"},{"$f":"[1]ACS_16_5YR_B25063_with_ann!V2","v":"Estimate!!Total:!!With cash rent:!!$400 to $449"},{"$f":"[1]ACS_16_5YR_B25063_with_ann!W2","v":"Margin of Error!!Total:!!With cash rent:!!$400 to $449"},{"$f":"[1]ACS_16_5YR_B25063_with_ann!X2","v":"Estimate!!Total:!!With cash rent:!!$450 to $499"},{"$f":"[1]ACS_16_5YR_B25063_with_ann!Y2","v":"Margin of Error!!Total:!!With cash rent:!!$450 to $499"},{"$f":"[1]ACS_16_5YR_B25063_with_ann!Z2","v":"Estimate!!Total:!!With cash rent:!!$500 to $549"},{"$f":"[1]ACS_16_5YR_B25063_with_ann!AA2","v":"Margin of Error!!Total:!!With cash rent:!!$500 to $549"},{"$f":"[1]ACS_16_5YR_B25063_with_ann!AB2","v":"Estimate!!Total:!!With cash rent:!!$550 to $599"},{"$f":"[1]ACS_16_5YR_B25063_with_ann!AC2","v":"Margin of Error!!Total:!!With cash rent:!!$550 to $599"},{"$f":"[1]ACS_16_5YR_B25063_with_ann!AD2","v":"Estimate!!Total:!!With cash rent:!!$600 to $649"},{"$f":"[1]ACS_16_5YR_B25063_with_ann!AE2","v":"Margin of Error!!Total:!!With cash rent:!!$600 to $649"},{"$f":"[1]ACS_16_5YR_B25063_with_ann!AF2","v":"Estimate!!Total:!!With cash rent:!!$650 to $699"},{"$f":"[1]ACS_16_5YR_B25063_with_ann!AG2","v":"Margin of Error!!Total:!!With cash rent:!!$650 to $699"},{"$f":"[1]ACS_16_5YR_B25063_with_ann!AH2","v":"Estimate!!Total:!!With cash rent:!!$700 to $749"},{"$f":"[1]ACS_16_5YR_B25063_with_ann!AI2","v":"Margin of Error!!Total:!!With cash rent:!!$700 to $749"},{"$f":"[1]ACS_16_5YR_B25063_with_ann!AJ2","v":"Estimate!!Total:!!With cash rent:!!$750 to $799"},{"$f":"[1]ACS_16_5YR_B25063_with_ann!AK2","v":"Margin of Error!!Total:!!With cash rent:!!$750 to $799"},{"$f":"[1]ACS_16_5YR_B25063_with_ann!AL2","v":"Estimate!!Total:!!With cash rent:!!$800 to $899"},{"$f":"[1]ACS_16_5YR_B25063_with_ann!AM2","v":"Margin of Error!!Total:!!With cash rent:!!$800 to $899"},{"$f":"[1]ACS_16_5YR_B25063_with_ann!AN2","v":"Estimate!!Total:!!With cash rent:!!$900 to $999"},{"$f":"[1]ACS_16_5YR_B25063_with_ann!AO2","v":"Margin of Error!!Total:!!With cash rent:!!$900 to $999"},{"$f":"[1]ACS_16_5YR_B25063_with_ann!AP2","v":"Estimate!!Total:!!With cash rent:!!$1,000 to $1,249"},{"$f":"[1]ACS_16_5YR_B25063_with_ann!AQ2","v":"Margin of Error!!Total:!!With cash rent:!!$1,000 to $1,249"},{"$f":"[1]ACS_16_5YR_B25063_with_ann!AR2","v":"Estimate!!Total:!!With cash rent:!!$1,250 to $1,499"},{"$f":"[1]ACS_16_5YR_B25063_with_ann!AS2","v":"Margin of Error!!Total:!!With cash rent:!!$1,250 to $1,499"},{"$f":"[1]ACS_16_5YR_B25063_with_ann!AT2","v":"Estimate!!Total:!!With cash rent:!!$1,500 to $1,999"},{"$f":"[1]ACS_16_5YR_B25063_with_ann!AU2","v":"Margin of Error!!Total:!!With cash rent:!!$1,500 to $1,999"},{"$f":"[1]ACS_16_5YR_B25063_with_ann!AV2","v":"Estimate!!Total:!!With cash rent:!!$2,000 to $2,499"},{"$f":"[1]ACS_16_5YR_B25063_with_ann!AW2","v":"Margin of Error!!Total:!!With cash rent:!!$2,000 to $2,499"},{"$f":"[1]ACS_16_5YR_B25063_with_ann!AX2","v":"Estimate!!Total:!!With cash rent:!!$2,500 to $2,999"},{"$f":"[1]ACS_16_5YR_B25063_with_ann!AY2","v":"Margin of Error!!Total:!!With cash rent:!!$2,500 to $2,999"},{"$f":"[1]ACS_16_5YR_B25063_with_ann!AZ2","v":"Estimate!!Total:!!With cash rent:!!$3,000 to $3,499"},{"$f":"[1]ACS_16_5YR_B25063_with_ann!BA2","v":"Margin of Error!!Total:!!With cash rent:!!$3,000 to $3,499"},{"$f":"[1]ACS_16_5YR_B25063_with_ann!BB2","v":"Estimate!!Total:!!With cash rent:!!$3,500 or more"},{"$f":"[1]ACS_16_5YR_B25063_with_ann!BC2","v":"Margin of Error!!Total:!!With cash rent:!!$3,500 or more"},{"$f":"[1]ACS_16_5YR_B25063_with_ann!BD2","v":"Estimate!!Total:!!No cash rent"},{"$f":"[1]ACS_16_5YR_B25063_with_ann!BE2","v":"Margin of Error!!Total:!!No cash rent"},{"$f":"[1]ACS_16_5YR_B25064_with_ann!D2","v":"Estimate!!Median gross rent"},{"$f":"[1]ACS_16_5YR_B25064_with_ann!E2","v":"Margin of Error!!Median gross rent"}]
["06000US3300500820","0600000US3300512260","060",{"$f":"[1]ACS_16_5YR_B25063_with_ann!C44","v":"Alstead"},{"$f":"[1]ACS_16_5YR_B25063_with_ann!D44","v":216},{"$f":"[1]ACS_16_5YR_B25063_with_ann!E44","v":81},{"$f":"[1]ACS_16_5YR_B25063_with_ann!F44","v":167},{"$f":"[1]ACS_16_5YR_B25063_with_ann!G44","v":71},{"$f":"[1]ACS_16_5YR_B25063_with_ann!H44","v":0},{"$f":"[1]ACS_16_5YR_B25063_with_ann!I44","v":12},{"$f":"[1]ACS_16_5YR_B25063_with_ann!J44","v":0},{"$f":"[1]ACS_16_5YR_B25063_with_ann!K44","v":12},{"$f":"[1]ACS_16_5YR_B25063_with_ann!L44","v":0},{"$f":"[1]ACS_16_5YR_B25063_with_ann!M44","v":12},{"$f":"[1]ACS_16_5YR_B25063_with_ann!N44","v":0},{"$f":"[1]ACS_16_5YR_B25063_with_ann!O44","v":12},{"$f":"[1]ACS_16_5YR_B25063_with_ann!P44","v":0},{"$f":"[1]ACS_16_5YR_B25063_with_ann!Q44","v":12},{"$f":"[1]ACS_16_5YR_B25063_with_ann!R44","v":35},{"$f":"[1]ACS_16_5YR_B25063_with_ann!S44","v":47},{"$f":"[1]ACS_16_5YR_B25063_with_ann!T44","v":20},{"$f":"[1]ACS_16_5YR_B25063_with_ann!U44","v":29},{"$f":"[1]ACS_16_5YR_B25063_with_ann!V44","v":0},{"$f":"[1]ACS_16_5YR_B25063_with_ann!W44","v":12},{"$f":"[1]ACS_16_5YR_B25063_with_ann!X44","v":0},{"$f":"[1]ACS_16_5YR_B25063_with_ann!Y44","v":12},{"$f":"[1]ACS_16_5YR_B25063_with_ann!Z44","v":0},{"$f":"[1]ACS_16_5YR_B25063_with_ann!AA44","v":12},{"$f":"[1]ACS_16_5YR_B25063_with_ann!AB44","v":0},{"$f":"[1]ACS_16_5YR_B25063_with_ann!AC44","v":12},{"$f":"[1]ACS_16_5YR_B25063_with_ann!AD44","v":0},{"$f":"[1]ACS_16_5YR_B25063_with_ann!AE44","v":12},{"$f":"[1]ACS_16_5YR_B25063_with_ann!AF44","v":0},{"$f":"[1]ACS_16_5YR_B25063_with_ann!AG44","v":12},{"$f":"[1]ACS_16_5YR_B25063_with_ann!AH44","v":0},{"$f":"[1]ACS_16_5YR_B25063_with_ann!AI44","v":12},{"$f":"[1]ACS_16_5YR_B25063_with_ann!AJ44","v":15},{"$f":"[1]ACS_16_5YR_B25063_with_ann!AK44","v":21},{"$f":"[1]ACS_16_5YR_B25063_with_ann!AL44","v":14},{"$f":"[1]ACS_16_5YR_B25063_with_ann!AM44","v":12},{"$f":"[1]ACS_16_5YR_B25063_with_ann!AN44","v":11},{"$f":"[1]ACS_16_5YR_B25063_with_ann!AO44","v":14},{"$f":"[1]ACS_16_5YR_B25063_with_ann!AP44","v":37},{"$f":"[1]ACS_16_5YR_B25063_with_ann!AQ44","v":25},{"$f":"[1]ACS_16_5YR_B25063_with_ann!AR44","v":8},{"$f":"[1]ACS_16_5YR_B25063_with_ann!AS44","v":9},{"$f":"[1]ACS_16_5YR_B25063_with_ann!AT44","v":21},{"$f":"[1]ACS_16_5YR_B25063_with_ann!AU44","v":31},{"$f":"[1]ACS_16_5YR_B25063_with_ann!AV44","v":0},{"$f":"[1]ACS_16_5YR_B25063_with_ann!AW44","v":12},{"$f":"[1]ACS_16_5YR_B25063_with_ann!AX44","v":6},{"$f":"[1]ACS_16_5YR_B25063_with_ann!AY44","v":8},{"$f":"[1]ACS_16_5YR_B25063_with_ann!AZ44","v":0},{"$f":"[1]ACS_16_5YR_B25063_with_ann!BA44","v":12},{"$f":"[1]ACS_16_5YR_B25063_with_ann!BB44","v":0},{"$f":"[1]ACS_16_5YR_B25063_with_ann!BC44","v":12},{"$f":"[1]ACS_16_5YR_B25063_with_ann!BD44","v":49},{"$f":"[1]ACS_16_5YR_B25063_with_ann!BE44","v":40},{"$f":"[1]ACS_16_5YR_B25064_with_ann!D44","v":896},{"$f":"[1]ACS_16_5YR_B25064_with_ann!E44","v":265},null,"Alstead"]
["06000US3300512260","0600000US3300519140","060",{"$f":"[1]ACS_16_5YR_B25063_with_ann!C45","v":"Chesterfield"},{"$f":"[1]ACS_16_5YR_B25063_with_ann!D45","v":139},{"$f":"[1]ACS_16_5YR_B25063_with_ann!E45","v":90},{"$f":"[1]ACS_16_5YR_B25063_with_ann!F45","v":80},{"$f":"[1]ACS_16_5YR_B25063_with_ann!G45","v":62},{"$f":"[1]ACS_16_5YR_B25063_with_ann!H45","v":0},{"$f":"[1]ACS_16_5YR_B25063_with_ann!I45","v":12},{"$f":"[1]ACS_16_5YR_B25063_with_ann!J45","v":0},{"$f":"[1]ACS_16_5YR_B25063_with_ann!K45","v":12},{"$f":"[1]ACS_16_5YR_B25063_with_ann!L45","v":0},{"$f":"[1]ACS_16_5YR_B25063_with_ann!M45","v":12},{"$f":"[1]ACS_16_5YR_B25063_with_ann!N45","v":0},{"$f":"[1]ACS_16_5YR_B25063_with_ann!O45","v":12},{"$f":"[1]ACS_16_5YR_B25063_with_ann!P45","v":0},{"$f":"[1]ACS_16_5YR_B25063_with_ann!Q45","v":12},{"$f":"[1]ACS_16_5YR_B25063_with_ann!R45","v":0},{"$f":"[1]ACS_16_5YR_B25063_with_ann!S45","v":12},{"$f":"[1]ACS_16_5YR_B25063_with_ann!T45","v":0},{"$f":"[1]ACS_16_5YR_B25063_with_ann!U45","v":12},{"$f":"[1]ACS_16_5YR_B25063_with_ann!V45","v":0},{"$f":"[1]ACS_16_5YR_B25063_with_ann!W45","v":12},{"$f":"[1]ACS_16_5YR_B25063_with_ann!X45","v":0},{"$f":"[1]ACS_16_5YR_B25063_with_ann!Y45","v":12},{"$f":"[1]ACS_16_5YR_B25063_with_ann!Z45","v":0},{"$f":"[1]ACS_16_5YR_B25063_with_ann!AA45","v":12},{"$f":"[1]ACS_16_5YR_B25063_with_ann!AB45","v":0},{"$f":"[1]ACS_16_5YR_B25063_with_ann!AC45","v":12},{"$f":"[1]ACS_16_5YR_B25063_with_ann!AD45","v":0},{"$f":"[1]ACS_16_5YR_B25063_with_ann!AE45","v":12},{"$f":"[1]ACS_16_5YR_B25063_with_ann!AF45","v":0},{"$f":"[1]ACS_16_5YR_B25063_with_ann!AG45","v":12},{"$f":"[1]ACS_16_5YR_B25063_with_ann!AH45","v":0},{"$f":"[1]ACS_16_5YR_B25063_with_ann!AI45","v":12},{"$f":"[1]ACS_16_5YR_B25063_with_ann!AJ45","v":0},{"$f":"[1]ACS_16_5YR_B25063_with_ann!AK45","v":12},{"$f":"[1]ACS_16_5YR_B25063_with_ann!AL45","v":29},{"$f":"[1]ACS_16_5YR_B25063_with_ann!AM45","v":38},{"$f":"[1]ACS_16_5YR_B25063_with_ann!AN45","v":0},{"$f":"[1]ACS_16_5YR_B25063_with_ann!AO45","v":12},{"$f":"[1]ACS_16_5YR_B25063_with_ann!AP45","v":0},{"$f":"[1]ACS_16_5YR_B25063_with_ann!AQ45","v":12},{"$f":"[1]ACS_16_5YR_B25063_with_ann!AR45","v":33},{"$f":"[1]ACS_16_5YR_B25063_with_ann!AS45","v":45},{"$f":"[1]ACS_16_5YR_B25063_with_ann!AT45","v":0},{"$f":"[1]ACS_16_5YR_B25063_with_ann!AU45","v":12},{"$f":"[1]ACS_16_5YR_B25063_with_ann!AV45","v":18},{"$f":"[1]ACS_16_5YR_B25063_with_ann!AW45","v":27},{"$f":"[1]ACS_16_5YR_B25063_with_ann!AX45","v":0},{"$f":"[1]ACS_16_5YR_B25063_with_ann!AY45","v":12},{"$f":"[1]ACS_16_5YR_B25063_with_ann!AZ45","v":0},{"$f":"[1]ACS_16_5YR_B25063_with_ann!BA45","v":12},{"$f":"[1]ACS_16_5YR_B25063_with_ann!BB45","v":0},{"$f":"[1]ACS_16_5YR_B25063_with_ann!BC45","v":12},{"$f":"[1]ACS_16_5YR_B25063_with_ann!BD45","v":59},{"$f":"[1]ACS_16_5YR_B25063_with_ann!BE45","v":66},{"$f":"[1]ACS_16_5YR_B25064_with_ann!D45","v":1333},{"$f":"[1]ACS_16_5YR_B25064_with_ann!E45","v":643},null,"Chesterfield"]
["06000US3300519140","0600000US3300526500","060",{"$f":"[1]ACS_16_5YR_B25063_with_ann!C46","v":"Dublin"},{"$f":"[1]ACS_16_5YR_B25063_with_ann!D46","v":105},{"$f":"[1]ACS_16_5YR_B25063_with_ann!E46","v":41},{"$f":"[1]ACS_16_5YR_B25063_with_ann!F46","v":73},{"$f":"[1]ACS_16_5YR_B25063_with_ann!G46","v":34},{"$f":"[1]ACS_16_5YR_B25063_with_ann!H46","v":0},{"$f":"[1]ACS_16_5YR_B25063_with_ann!I46","v":12},{"$f":"[1]ACS_16_5YR_B25063_with_ann!J46","v":0},{"$f":"[1]ACS_16_5YR_B25063_with_ann!K46","v":12},{"$f":"[1]ACS_16_5YR_B25063_with_ann!L46","v":0},{"$f":"[1]ACS_16_5YR_B25063_with_ann!M46","v":12},{"$f":"[1]ACS_16_5YR_B25063_with_ann!N46","v":0},{"$f":"[1]ACS_16_5YR_B25063_with_ann!O46","v":12},{"$f":"[1]ACS_16_5YR_B25063_with_ann!P46","v":0},{"$f":"[1]ACS_16_5YR_B25063_with_ann!Q46","v":12},{"$f":"[1]ACS_16_5YR_B25063_with_ann!R46","v":0},{"$f":"[1]ACS_16_5YR_B25063_with_ann!S46","v":12},{"$f":"[1]ACS_16_5YR_B25063_with_ann!T46","v":0},{"$f":"[1]ACS_16_5YR_B25063_with_ann!U46","v":12},{"$f":"[1]ACS_16_5YR_B25063_with_ann!V46","v":0},{"$f":"[1]ACS_16_5YR_B25063_with_ann!W46","v":12},{"$f":"[1]ACS_16_5YR_B25063_with_ann!X46","v":0},{"$f":"[1]ACS_16_5YR_B25063_with_ann!Y46","v":12},{"$f":"[1]ACS_16_5YR_B25063_with_ann!Z46","v":0},{"$f":"[1]ACS_16_5YR_B25063_with_ann!AA46","v":12},{"$f":"[1]ACS_16_5YR_B25063_with_ann!AB46","v":0},{"$f":"[1]ACS_16_5YR_B25063_with_ann!AC46","v":12},{"$f":"[1]ACS_16_5YR_B25063_with_ann!AD46","v":0},{"$f":"[1]ACS_16_5YR_B25063_with_ann!AE46","v":12},{"$f":"[1]ACS_16_5YR_B25063_with_ann!AF46","v":5},{"$f":"[1]ACS_16_5YR_B25063_with_ann!AG46","v":5},{"$f":"[1]ACS_16_5YR_B25063_with_ann!AH46","v":4},{"$f":"[1]ACS_16_5YR_B25063_with_ann!AI46","v":6},{"$f":"[1]ACS_16_5YR_B25063_with_ann!AJ46","v":3},{"$f":"[1]ACS_16_5YR_B25063_with_ann!AK46","v":6},{"$f":"[1]ACS_16_5YR_B25063_with_ann!AL46","v":0},{"$f":"[1]ACS_16_5YR_B25063_with_ann!AM46","v":12},{"$f":"[1]ACS_16_5YR_B25063_with_ann!AN46","v":4},{"$f":"[1]ACS_16_5YR_B25063_with_ann!AO46","v":5},{"$f":"[1]ACS_16_5YR_B25063_with_ann!AP46","v":22},{"$f":"[1]ACS_16_5YR_B25063_with_ann!AQ46","v":25},{"$f":"[1]ACS_16_5YR_B25063_with_ann!AR46","v":17},{"$f":"[1]ACS_16_5YR_B25063_with_ann!AS46","v":15},{"$f":"[1]ACS_16_5YR_B25063_with_ann!AT46","v":15},{"$f":"[1]ACS_16_5YR_B25063_with_ann!AU46","v":13},{"$f":"[1]ACS_16_5YR_B25063_with_ann!AV46","v":3},{"$f":"[1]ACS_16_5YR_B25063_with_ann!AW46","v":4},{"$f":"[1]ACS_16_5YR_B25063_with_ann!AX46","v":0},{"$f":"[1]ACS_16_5YR_B25063_with_ann!AY46","v":12},{"$f":"[1]ACS_16_5YR_B25063_with_ann!AZ46","v":0},{"$f":"[1]ACS_16_5YR_B25063_with_ann!BA46","v":12},{"$f":"[1]ACS_16_5YR_B25063_with_ann!BB46","v":0},{"$f":"[1]ACS_16_5YR_B25063_with_ann!BC46","v":12},{"$f":"[1]ACS_16_5YR_B25063_with_ann!BD46","v":32},{"$f":"[1]ACS_16_5YR_B25063_with_ann!BE46","v":19},{"$f":"[1]ACS_16_5YR_B25064_with_ann!D46","v":1233},{"$f":"[1]ACS_16_5YR_B25064_with_ann!E46","v":184},null,"Dublin"]
["06000US3300526500","0600000US3300529220","060",{"$f":"[1]ACS_16_5YR_B25063_with_ann!C47","v":"Fitzwilliam"},{"$f":"[1]ACS_16_5YR_B25063_with_ann!D47","v":56},{"$f":"[1]ACS_16_5YR_B25063_with_ann!E47","v":29},{"$f":"[1]ACS_16_5YR_B25063_with_ann!F47","v":41},{"$f":"[1]ACS_16_5YR_B25063_with_ann!G47","v":30},{"$f":"[1]ACS_16_5YR_B25063_with_ann!H47","v":0},{"$f":"[1]ACS_16_5YR_B25063_with_ann!I47","v":12},{"$f":"[1]ACS_16_5YR_B25063_with_ann!J47","v":0},{"$f":"[1]ACS_16_5YR_B25063_with_ann!K47","v":12},{"$f":"[1]ACS_16_5YR_B25063_with_ann!L47","v":0},{"$f":"[1]ACS_16_5YR_B25063_with_ann!M47","v":12},{"$f":"[1]ACS_16_5YR_B25063_with_ann!N47","v":0},{"$f":"[1]ACS_16_5YR_B25063_with_ann!O47","v":12},{"$f":"[1]ACS_16_5YR_B25063_with_ann!P47","v":0},{"$f":"[1]ACS_16_5YR_B25063_with_ann!Q47","v":12},{"$f":"[1]ACS_16_5YR_B25063_with_ann!R47","v":0},{"$f":"[1]ACS_16_5YR_B25063_with_ann!S47","v":12},{"$f":"[1]ACS_16_5YR_B25063_with_ann!T47","v":0},{"$f":"[1]ACS_16_5YR_B25063_with_ann!U47","v":12},{"$f":"[1]ACS_16_5YR_B25063_with_ann!V47","v":0},{"$f":"[1]ACS_16_5YR_B25063_with_ann!W47","v":12},{"$f":"[1]ACS_16_5YR_B25063_with_ann!X47","v":0},{"$f":"[1]ACS_16_5YR_B25063_with_ann!Y47","v":12},{"$f":"[1]ACS_16_5YR_B25063_with_ann!Z47","v":0},{"$f":"[1]ACS_16_5YR_B25063_with_ann!AA47","v":12},{"$f":"[1]ACS_16_5YR_B25063_with_ann!AB47","v":0},{"$f":"[1]ACS_16_5YR_B25063_with_ann!AC47","v":12},{"$f":"[1]ACS_16_5YR_B25063_with_ann!AD47","v":0},{"$f":"[1]ACS_16_5YR_B25063_with_ann!AE47","v":12},{"$f":"[1]ACS_16_5YR_B25063_with_ann!AF47","v":0},{"$f":"[1]ACS_16_5YR_B25063_with_ann!AG47","v":12},{"$f":"[1]ACS_16_5YR_B25063_with_ann!AH47","v":0},{"$f":"[1]ACS_16_5YR_B25063_with_ann!AI47","v":12},{"$f":"[1]ACS_16_5YR_B25063_with_ann!AJ47","v":0},{"$f":"[1]ACS_16_5YR_B25063_with_ann!AK47","v":12},{"$f":"[1]ACS_16_5YR_B25063_with_ann!AL47","v":7},{"$f":"[1]ACS_16_5YR_B25063_with_ann!AM47","v":10},{"$f":"[1]ACS_16_5YR_B25063_with_ann!AN47","v":7},{"$f":"[1]ACS_16_5YR_B25063_with_ann!AO47","v":10},{"$f":"[1]ACS_16_5YR_B25063_with_ann!AP47","v":17},{"$f":"[1]ACS_16_5YR_B25063_with_ann!AQ47","v":25},{"$f":"[1]ACS_16_5YR_B25063_with_ann!AR47","v":0},{"$f":"[1]ACS_16_5YR_B25063_with_ann!AS47","v":12},{"$f":"[1]ACS_16_5YR_B25063_with_ann!AT47","v":10},{"$f":"[1]ACS_16_5YR_B25063_with_ann!AU47","v":9},{"$f":"[1]ACS_16_5YR_B25063_with_ann!AV47","v":0},{"$f":"[1]ACS_16_5YR_B25063_with_ann!AW47","v":12},{"$f":"[1]ACS_16_5YR_B25063_with_ann!AX47","v":0},{"$f":"[1]ACS_16_5YR_B25063_with_ann!AY47","v":12},{"$f":"[1]ACS_16_5YR_B25063_with_ann!AZ47","v":0},{"$f":"[1]ACS_16_5YR_B25063_with_ann!BA47","v":12},{"$f":"[1]ACS_16_5YR_B25063_with_ann!BB47","v":0},{"$f":"[1]ACS_16_5YR_B25063_with_ann!BC47","v":12},{"$f":"[1]ACS_16_5YR_B25063_with_ann!BD47","v":15},{"$f":"[1]ACS_16_5YR_B25063_with_ann!BE47","v":15},{"$f":"[1]ACS_16_5YR_B25064_with_ann!D47","v":1096},{"$f":"[1]ACS_16_5YR_B25064_with_ann!E47","v":201},null,"Fitzwilliam"]
["06000US3300529220","0600000US3300534420","060",{"$f":"[1]ACS_16_5YR_B25063_with_ann!C48","v":"Gilsum"},{"$f":"[1]ACS_16_5YR_B25063_with_ann!D48","v":25},{"$f":"[1]ACS_16_5YR_B25063_with_ann!E48","v":14},{"$f":"[1]ACS_16_5YR_B25063_with_ann!F48","v":25},{"$f":"[1]ACS_16_5YR_B25063_with_ann!G48","v":14},{"$f":"[1]ACS_16_5YR_B25063_with_ann!H48","v":0},{"$f":"[1]ACS_16_5YR_B25063_with_ann!I48","v":12},{"$f":"[1]ACS_16_5YR_B25063_with_ann!J48","v":0},{"$f":"[1]ACS_16_5YR_B25063_with_ann!K48","v":12},{"$f":"[1]ACS_16_5YR_B25063_with_ann!L48","v":0},{"$f":"[1]ACS_16_5YR_B25063_with_ann!M48","v":12},{"$f":"[1]ACS_16_5YR_B25063_with_ann!N48","v":0},{"$f":"[1]ACS_16_5YR_B25063_with_ann!O48","v":12},{"$f":"[1]ACS_16_5YR_B25063_with_ann!P48","v":0},{"$f":"[1]ACS_16_5YR_B25063_with_ann!Q48","v":12},{"$f":"[1]ACS_16_5YR_B25063_with_ann!R48","v":0},{"$f":"[1]ACS_16_5YR_B25063_with_ann!S48","v":12},{"$f":"[1]ACS_16_5YR_B25063_with_ann!T48","v":0},{"$f":"[1]ACS_16_5YR_B25063_with_ann!U48","v":12},{"$f":"[1]ACS_16_5YR_B25063_with_ann!V48","v":0},{"$f":"[1]ACS_16_5YR_B25063_with_ann!W48","v":12},{"$f":"[1]ACS_16_5YR_B25063_with_ann!X48","v":0},{"$f":"[1]ACS_16_5YR_B25063_with_ann!Y48","v":12},{"$f":"[1]ACS_16_5YR_B25063_with_ann!Z48","v":0},{"$f":"[1]ACS_16_5YR_B25063_with_ann!AA48","v":12},{"$f":"[1]ACS_16_5YR_B25063_with_ann!AB48","v":0},{"$f":"[1]ACS_16_5YR_B25063_with_ann!AC48","v":12},{"$f":"[1]ACS_16_5YR_B25063_with_ann!AD48","v":0},{"$f":"[1]ACS_16_5YR_B25063_with_ann!AE48","v":12},{"$f":"[1]ACS_16_5YR_B25063_with_ann!AF48","v":0},{"$f":"[1]ACS_16_5YR_B25063_with_ann!AG48","v":12},{"$f":"[1]ACS_16_5YR_B25063_with_ann!AH48","v":0},{"$f":"[1]ACS_16_5YR_B25063_with_ann!AI48","v":12},{"$f":"[1]ACS_16_5YR_B25063_with_ann!AJ48","v":3},{"$f":"[1]ACS_16_5YR_B25063_with_ann!AK48","v":4},{"$f":"[1]ACS_16_5YR_B25063_with_ann!AL48","v":0},{"$f":"[1]ACS_16_5YR_B25063_with_ann!AM48","v":12},{"$f":"[1]ACS_16_5YR_B25063_with_ann!AN48","v":2},{"$f":"[1]ACS_16_5YR_B25063_with_ann!AO48","v":4},{"$f":"[1]ACS_16_5YR_B25063_with_ann!AP48","v":2},{"$f":"[1]ACS_16_5YR_B25063_with_ann!AQ48","v":5},{"$f":"[1]ACS_16_5YR_B25063_with_ann!AR48","v":10},{"$f":"[1]ACS_16_5YR_B25063_with_ann!AS48","v":9},{"$f":"[1]ACS_16_5YR_B25063_with_ann!AT48","v":8},{"$f":"[1]ACS_16_5YR_B25063_with_ann!AU48","v":8},{"$f":"[1]ACS_16_5YR_B25063_with_ann!AV48","v":0},{"$f":"[1]ACS_16_5YR_B25063_with_ann!AW48","v":12},{"$f":"[1]ACS_16_5YR_B25063_with_ann!AX48","v":0},{"$f":"[1]ACS_16_5YR_B25063_with_ann!AY48","v":12},{"$f":"[1]ACS_16_5YR_B25063_with_ann!AZ48","v":0},{"$f":"[1]ACS_16_5YR_B25063_with_ann!BA48","v":12},{"$f":"[1]ACS_16_5YR_B25063_with_ann!BB48","v":0},{"$f":"[1]ACS_16_5YR_B25063_with_ann!BC48","v":12},{"$f":"[1]ACS_16_5YR_B25063_with_ann!BD48","v":0},{"$f":"[1]ACS_16_5YR_B25063_with_ann!BE48","v":12},{"$f":"[1]ACS_16_5YR_B25064_with_ann!D48","v":1388},{"$f":"[1]ACS_16_5YR_B25064_with_ann!E48","v":142},null,"Gilsum"]
["06000US3300534420","0600000US3300536660","060",{"$f":"[1]ACS_16_5YR_B25063_with_ann!C49","v":"Harrisville"},{"$f":"[1]ACS_16_5YR_B25063_with_ann!D49","v":30},{"$f":"[1]ACS_16_5YR_B25063_with_ann!E49","v":15},{"$f":"[1]ACS_16_5YR_B25063_with_ann!F49","v":28},{"$f":"[1]ACS_16_5YR_B25063_with_ann!G49","v":15},{"$f":"[1]ACS_16_5YR_B25063_with_ann!H49","v":0},{"$f":"[1]ACS_16_5YR_B25063_with_ann!I49","v":12},{"$f":"[1]ACS_16_5YR_B25063_with_ann!J49","v":0},{"$f":"[1]ACS_16_5YR_B25063_with_ann!K49","v":12},{"$f":"[1]ACS_16_5YR_B25063_with_ann!L49","v":0},{"$f":"[1]ACS_16_5YR_B25063_with_ann!M49","v":12},{"$f":"[1]ACS_16_5YR_B25063_with_ann!N49","v":0},{"$f":"[1]ACS_16_5YR_B25063_with_ann!O49","v":12},{"$f":"[1]ACS_16_5YR_B25063_with_ann!P49","v":0},{"$f":"[1]ACS_16_5YR_B25063_with_ann!Q49","v":12},{"$f":"[1]ACS_16_5YR_B25063_with_ann!R49","v":0},{"$f":"[1]ACS_16_5YR_B25063_with_ann!S49","v":12},{"$f":"[1]ACS_16_5YR_B25063_with_ann!T49","v":0},{"$f":"[1]ACS_16_5YR_B25063_with_ann!U49","v":12},{"$f":"[1]ACS_16_5YR_B25063_with_ann!V49","v":0},{"$f":"[1]ACS_16_5YR_B25063_with_ann!W49","v":12},{"$f":"[1]ACS_16_5YR_B25063_with_ann!X49","v":0},{"$f":"[1]ACS_16_5YR_B25063_with_ann!Y49","v":12},{"$f":"[1]ACS_16_5YR_B25063_with_ann!Z49","v":9},{"$f":"[1]ACS_16_5YR_B25063_with_ann!AA49","v":12},{"$f":"[1]ACS_16_5YR_B25063_with_ann!AB49","v":0},{"$f":"[1]ACS_16_5YR_B25063_with_ann!AC49","v":12},{"$f":"[1]ACS_16_5YR_B25063_with_ann!AD49","v":0},{"$f":"[1]ACS_16_5YR_B25063_with_ann!AE49","v":12},{"$f":"[1]ACS_16_5YR_B25063_with_ann!AF49","v":0},{"$f":"[1]ACS_16_5YR_B25063_with_ann!AG49","v":12},{"$f":"[1]ACS_16_5YR_B25063_with_ann!AH49","v":0},{"$f":"[1]ACS_16_5YR_B25063_with_ann!AI49","v":12},{"$f":"[1]ACS_16_5YR_B25063_with_ann!AJ49","v":0},{"$f":"[1]ACS_16_5YR_B25063_with_ann!AK49","v":12},{"$f":"[1]ACS_16_5YR_B25063_with_ann!AL49","v":3},{"$f":"[1]ACS_16_5YR_B25063_with_ann!AM49","v":4},{"$f":"[1]ACS_16_5YR_B25063_with_ann!AN49","v":0},{"$f":"[1]ACS_16_5YR_B25063_with_ann!AO49","v":12},{"$f":"[1]ACS_16_5YR_B25063_with_ann!AP49","v":0},{"$f":"[1]ACS_16_5YR_B25063_with_ann!AQ49","v":12},{"$f":"[1]ACS_16_5YR_B25063_with_ann!AR49","v":9},{"$f":"[1]ACS_16_5YR_B25063_with_ann!AS49","v":8},{"$f":"[1]ACS_16_5YR_B25063_with_ann!AT49","v":7},{"$f":"[1]ACS_16_5YR_B25063_with_ann!AU49","v":6},{"$f":"[1]ACS_16_5YR_B25063_with_ann!AV49","v":0},{"$f":"[1]ACS_16_5YR_B25063_with_ann!AW49","v":12},{"$f":"[1]ACS_16_5YR_B25063_with_ann!AX49","v":0},{"$f":"[1]ACS_16_5YR_B25063_with_ann!AY49","v":12},{"$f":"[1]ACS_16_5YR_B25063_with_ann!AZ49","v":0},{"$f":"[1]ACS_16_5YR_B25063_with_ann!BA49","v":12},{"$f":"[1]ACS_16_5YR_B25063_with_ann!BB49","v":0},{"$f":"[1]ACS_16_5YR_B25063_with_ann!BC49","v":12},{"$f":"[1]ACS_16_5YR_B25063_with_ann!BD49","v":2},{"$f":"[1]ACS_16_5YR_B25063_with_ann!BE49","v":3},{"$f":"[1]ACS_16_5YR_B25064_with_ann!D49","v":1306},{"$f":"[1]ACS_16_5YR_B25064_with_ann!E49","v":659},null,"Harrisville"]
["06000US3300536660","0600000US3300538500","060",{"$f":"[1]ACS_16_5YR_B25063_with_ann!C50","v":"Hinsdale"},{"$f":"[1]ACS_16_5YR_B25063_with_ann!D50","v":221},{"$f":"[1]ACS_16_5YR_B25063_with_ann!E50","v":105},{"$f":"[1]ACS_16_5YR_B25063_with_ann!F50","v":193},{"$f":"[1]ACS_16_5YR_B25063_with_ann!G50","v":98},{"$f":"[1]ACS_16_5YR_B25063_with_ann!H50","v":0},{"$f":"[1]ACS_16_5YR_B25063_with_ann!I50","v":12},{"$f":"[1]ACS_16_5YR_B25063_with_ann!J50","v":0},{"$f":"[1]ACS_16_5YR_B25063_with_ann!K50","v":12},{"$f":"[1]ACS_16_5YR_B25063_with_ann!L50","v":0},{"$f":"[1]ACS_16_5YR_B25063_with_ann!M50","v":12},{"$f":"[1]ACS_16_5YR_B25063_with_ann!N50","v":0},{"$f":"[1]ACS_16_5YR_B25063_with_ann!O50","v":12},{"$f":"[1]ACS_16_5YR_B25063_with_ann!P50","v":0},{"$f":"[1]ACS_16_5YR_B25063_with_ann!Q50","v":12},{"$f":"[1]ACS_16_5YR_B25063_with_ann!R50","v":15},{"$f":"[1]ACS_16_5YR_B25063_with_ann!S50","v":23},{"$f":"[1]ACS_16_5YR_B25063_with_ann!T50","v":0},{"$f":"[1]ACS_16_5YR_B25063_with_ann!U50","v":12},{"$f":"[1]ACS_16_5YR_B25063_with_ann!V50","v":0},{"$f":"[1]ACS_16_5YR_B25063_with_ann!W50","v":12},{"$f":"[1]ACS_16_5YR_B25063_with_ann!X50","v":29},{"$f":"[1]ACS_16_5YR_B25063_with_ann!Y50","v":47},{"$f":"[1]ACS_16_5YR_B25063_with_ann!Z50","v":0},{"$f":"[1]ACS_16_5YR_B25063_with_ann!AA50","v":12},{"$f":"[1]ACS_16_5YR_B25063_with_ann!AB50","v":0},{"$f":"[1]ACS_16_5YR_B25063_with_ann!AC50","v":12},{"$f":"[1]ACS_16_5YR_B25063_with_ann!AD50","v":22},{"$f":"[1]ACS_16_5YR_B25063_with_ann!AE50","v":25},{"$f":"[1]ACS_16_5YR_B25063_with_ann!AF50","v":0},{"$f":"[1]ACS_16_5YR_B25063_with_ann!AG50","v":12},{"$f":"[1]ACS_16_5YR_B25063_with_ann!AH50","v":0},{"$f":"[1]ACS_16_5YR_B25063_with_ann!AI50","v":12},{"$f":"[1]ACS_16_5YR_B25063_with_ann!AJ50","v":0},{"$f":"[1]ACS_16_5YR_B25063_with_ann!AK50","v":12},{"$f":"[1]ACS_16_5YR_B25063_with_ann!AL50","v":9},{"$f":"[1]ACS_16_5YR_B25063_with_ann!AM50","v":14},{"$f":"[1]ACS_16_5YR_B25063_with_ann!AN50","v":14},{"$f":"[1]ACS_16_5YR_B25063_with_ann!AO50","v":22},{"$f":"[1]ACS_16_5YR_B25063_with_ann!AP50","v":72},{"$f":"[1]ACS_16_5YR_B25063_with_ann!AQ50","v":70},{"$f":"[1]ACS_16_5YR_B25063_with_ann!AR50","v":0},{"$f":"[1]ACS_16_5YR_B25063_with_ann!AS50","v":12},{"$f":"[1]ACS_16_5YR_B25063_with_ann!AT50","v":32},{"$f":"[1]ACS_16_5YR_B25063_with_ann!AU50","v":43},{"$f":"[1]ACS_16_5YR_B25063_with_ann!AV50","v":0},{"$f":"[1]ACS_16_5YR_B25063_with_ann!AW50","v":12},{"$f":"[1]ACS_16_5YR_B25063_with_ann!AX50","v":0},{"$f":"[1]ACS_16_5YR_B25063_with_ann!AY50","v":12},{"$f":"[1]ACS_16_5YR_B25063_with_ann!AZ50","v":0},{"$f":"[1]ACS_16_5YR_B25063_with_ann!BA50","v":12},{"$f":"[1]ACS_16_5YR_B25063_with_ann!BB50","v":0},{"$f":"[1]ACS_16_5YR_B25063_with_ann!BC50","v":12},{"$f":"[1]ACS_16_5YR_B25063_with_ann!BD50","v":28},{"$f":"[1]ACS_16_5YR_B25063_with_ann!BE50","v":42},{"$f":"[1]ACS_16_5YR_B25064_with_ann!D50","v":1026},{"$f":"[1]ACS_16_5YR_B25064_with_ann!E50","v":330},null,"Hinsdale"]
["06000US3300538500","0600000US3300539300","060",{"$f":"[1]ACS_16_5YR_B25063_with_ann!C51","v":"Jaffrey"},{"$f":"[1]ACS_16_5YR_B25063_with_ann!D51","v":446},{"$f":"[1]ACS_16_5YR_B25063_with_ann!E51","v":167},{"$f":"[1]ACS_16_5YR_B25063_with_ann!F51","v":429},{"$f":"[1]ACS_16_5YR_B25063_with_ann!G51","v":168},{"$f":"[1]ACS_16_5YR_B25063_with_ann!H51","v":0},{"$f":"[1]ACS_16_5YR_B25063_with_ann!I51","v":17},{"$f":"[1]ACS_16_5YR_B25063_with_ann!J51","v":0},{"$f":"[1]ACS_16_5YR_B25063_with_ann!K51","v":17},{"$f":"[1]ACS_16_5YR_B25063_with_ann!L51","v":28},{"$f":"[1]ACS_16_5YR_B25063_with_ann!M51","v":42},{"$f":"[1]ACS_16_5YR_B25063_with_ann!N51","v":0},{"$f":"[1]ACS_16_5YR_B25063_with_ann!O51","v":17},{"$f":"[1]ACS_16_5YR_B25063_with_ann!P51","v":0},{"$f":"[1]ACS_16_5YR_B25063_with_ann!Q51","v":17},{"$f":"[1]ACS_16_5YR_B25063_with_ann!R51","v":0},{"$f":"[1]ACS_16_5YR_B25063_with_ann!S51","v":17},{"$f":"[1]ACS_16_5YR_B25063_with_ann!T51","v":0},{"$f":"[1]ACS_16_5YR_B25063_with_ann!U51","v":17},{"$f":"[1]ACS_16_5YR_B25063_with_ann!V51","v":0},{"$f":"[1]ACS_16_5YR_B25063_with_ann!W51","v":17},{"$f":"[1]ACS_16_5YR_B25063_with_ann!X51","v":27},{"$f":"[1]ACS_16_5YR_B25063_with_ann!Y51","v":43},{"$f":"[1]ACS_16_5YR_B25063_with_ann!Z51","v":0},{"$f":"[1]ACS_16_5YR_B25063_with_ann!AA51","v":17},{"$f":"[1]ACS_16_5YR_B25063_with_ann!AB51","v":21},{"$f":"[1]ACS_16_5YR_B25063_with_ann!AC51","v":33},{"$f":"[1]ACS_16_5YR_B25063_with_ann!AD51","v":10},{"$f":"[1]ACS_16_5YR_B25063_with_ann!AE51","v":17},{"$f":"[1]ACS_16_5YR_B25063_with_ann!AF51","v":0},{"$f":"[1]ACS_16_5YR_B25063_with_ann!AG51","v":17},{"$f":"[1]ACS_16_5YR_B25063_with_ann!AH51","v":0},{"$f":"[1]ACS_16_5YR_B25063_with_ann!AI51","v":17},{"$f":"[1]ACS_16_5YR_B25063_with_ann!AJ51","v":27},{"$f":"[1]ACS_16_5YR_B25063_with_ann!AK51","v":35},{"$f":"[1]ACS_16_5YR_B25063_with_ann!AL51","v":43},{"$f":"[1]ACS_16_5YR_B25063_with_ann!AM51","v":38},{"$f":"[1]ACS_16_5YR_B25063_with_ann!AN51","v":102},{"$f":"[1]ACS_16_5YR_B25063_with_ann!AO51","v":107},{"$f":"[1]ACS_16_5YR_B25063_with_ann!AP51","v":43},{"$f":"[1]ACS_16_5YR_B25063_with_ann!AQ51","v":40},{"$f":"[1]ACS_16_5YR_B25063_with_ann!AR51","v":21},{"$f":"[1]ACS_16_5YR_B25063_with_ann!AS51","v":27},{"$f":"[1]ACS_16_5YR_B25063_with_ann!AT51","v":33},{"$f":"[1]ACS_16_5YR_B25063_with_ann!AU51","v":36},{"$f":"[1]ACS_16_5YR_B25063_with_ann!AV51","v":74},{"$f":"[1]ACS_16_5YR_B25063_with_ann!AW51","v":91},{"$f":"[1]ACS_16_5YR_B25063_with_ann!AX51","v":0},{"$f":"[1]ACS_16_5YR_B25063_with_ann!AY51","v":17},{"$f":"[1]ACS_16_5YR_B25063_with_ann!AZ51","v":0},{"$f":"[1]ACS_16_5YR_B25063_with_ann!BA51","v":17},{"$f":"[1]ACS_16_5YR_B25063_with_ann!BB51","v":0},{"$f":"[1]ACS_16_5YR_B25063_with_ann!BC51","v":17},{"$f":"[1]ACS_16_5YR_B25063_with_ann!BD51","v":17},{"$f":"[1]ACS_16_5YR_B25063_with_ann!BE51","v":28},{"$f":"[1]ACS_16_5YR_B25064_with_ann!D51","v":957},{"$f":"[1]ACS_16_5YR_B25064_with_ann!E51","v":102},null,"Jaffrey"]
["06000US3300539300","0600000US3300545460","060",{"$f":"[1]ACS_16_5YR_B25063_with_ann!C52","v":"Keene"},{"$f":"[1]ACS_16_5YR_B25063_with_ann!D52","v":4497},{"$f":"[1]ACS_16_5YR_B25063_with_ann!E52","v":356},{"$f":"[1]ACS_16_5YR_B25063_with_ann!F52","v":4444},{"$f":"[1]ACS_16_5YR_B25063_with_ann!G52","v":355},{"$f":"[1]ACS_16_5YR_B25063_with_ann!H52","v":0},{"$f":"[1]ACS_16_5YR_B25063_with_ann!I52","v":22},{"$f":"[1]ACS_16_5YR_B25063_with_ann!J52","v":46},{"$f":"[1]ACS_16_5YR_B25063_with_ann!K52","v":71},{"$f":"[1]ACS_16_5YR_B25063_with_ann!L52","v":14},{"$f":"[1]ACS_16_5YR_B25063_with_ann!M52","v":24},{"$f":"[1]ACS_16_5YR_B25063_with_ann!N52","v":10},{"$f":"[1]ACS_16_5YR_B25063_with_ann!O52","v":16},{"$f":"[1]ACS_16_5YR_B25063_with_ann!P52","v":122},{"$f":"[1]ACS_16_5YR_B25063_with_ann!Q52","v":87},{"$f":"[1]ACS_16_5YR_B25063_with_ann!R52","v":52},{"$f":"[1]ACS_16_5YR_B25063_with_ann!S52","v":42},{"$f":"[1]ACS_16_5YR_B25063_with_ann!T52","v":53},{"$f":"[1]ACS_16_5YR_B25063_with_ann!U52","v":50},{"$f":"[1]ACS_16_5YR_B25063_with_ann!V52","v":37},{"$f":"[1]ACS_16_5YR_B25063_with_ann!W52","v":39},{"$f":"[1]ACS_16_5YR_B25063_with_ann!X52","v":105},{"$f":"[1]ACS_16_5YR_B25063_with_ann!Y52","v":77},{"$f":"[1]ACS_16_5YR_B25063_with_ann!Z52","v":44},{"$f":"[1]ACS_16_5YR_B25063_with_ann!AA52","v":44},{"$f":"[1]ACS_16_5YR_B25063_with_ann!AB52","v":65},{"$f":"[1]ACS_16_5YR_B25063_with_ann!AC52","v":59},{"$f":"[1]ACS_16_5YR_B25063_with_ann!AD52","v":110},{"$f":"[1]ACS_16_5YR_B25063_with_ann!AE52","v":83},{"$f":"[1]ACS_16_5YR_B25063_with_ann!AF52","v":14},{"$f":"[1]ACS_16_5YR_B25063_with_ann!AG52","v":19},{"$f":"[1]ACS_16_5YR_B25063_with_ann!AH52","v":80},{"$f":"[1]ACS_16_5YR_B25063_with_ann!AI52","v":57},{"$f":"[1]ACS_16_5YR_B25063_with_ann!AJ52","v":61},{"$f":"[1]ACS_16_5YR_B25063_with_ann!AK52","v":46},{"$f":"[1]ACS_16_5YR_B25063_with_ann!AL52","v":374},{"$f":"[1]ACS_16_5YR_B25063_with_ann!AM52","v":127},{"$f":"[1]ACS_16_5YR_B25063_with_ann!AN52","v":466},{"$f":"[1]ACS_16_5YR_B25063_with_ann!AO52","v":175},{"$f":"[1]ACS_16_5YR_B25063_with_ann!AP52","v":930},{"$f":"[1]ACS_16_5YR_B25063_with_ann!AQ52","v":201},{"$f":"[1]ACS_16_5YR_B25063_with_ann!AR52","v":585},{"$f":"[1]ACS_16_5YR_B25063_with_ann!AS52","v":149},{"$f":"[1]ACS_16_5YR_B25063_with_ann!AT52","v":1023},{"$f":"[1]ACS_16_5YR_B25063_with_ann!AU52","v":284},{"$f":"[1]ACS_16_5YR_B25063_with_ann!AV52","v":190},{"$f":"[1]ACS_16_5YR_B25063_with_ann!AW52","v":102},{"$f":"[1]ACS_16_5YR_B25063_with_ann!AX52","v":31},{"$f":"[1]ACS_16_5YR_B25063_with_ann!AY52","v":41},{"$f":"[1]ACS_16_5YR_B25063_with_ann!AZ52","v":0},{"$f":"[1]ACS_16_5YR_B25063_with_ann!BA52","v":22},{"$f":"[1]ACS_16_5YR_B25063_with_ann!BB52","v":32},{"$f":"[1]ACS_16_5YR_B25063_with_ann!BC52","v":37},{"$f":"[1]ACS_16_5YR_B25063_with_ann!BD52","v":53},{"$f":"[1]ACS_16_5YR_B25063_with_ann!BE52","v":58},{"$f":"[1]ACS_16_5YR_B25064_with_ann!D52","v":1153},{"$f":"[1]ACS_16_5YR_B25064_with_ann!E52","v":58},null,"Keene"]
["06000US3300545460","0600000US3300545700","060",{"$f":"[1]ACS_16_5YR_B25063_with_ann!C53","v":"Marlborough"},{"$f":"[1]ACS_16_5YR_B25063_with_ann!D53","v":334},{"$f":"[1]ACS_16_5YR_B25063_with_ann!E53","v":92},{"$f":"[1]ACS_16_5YR_B25063_with_ann!F53","v":318},{"$f":"[1]ACS_16_5YR_B25063_with_ann!G53","v":93},{"$f":"[1]ACS_16_5YR_B25063_with_ann!H53","v":0},{"$f":"[1]ACS_16_5YR_B25063_with_ann!I53","v":12},{"$f":"[1]ACS_16_5YR_B25063_with_ann!J53","v":0},{"$f":"[1]ACS_16_5YR_B25063_with_ann!K53","v":12},{"$f":"[1]ACS_16_5YR_B25063_with_ann!L53","v":6},{"$f":"[1]ACS_16_5YR_B25063_with_ann!M53","v":11},{"$f":"[1]ACS_16_5YR_B25063_with_ann!N53","v":8},{"$f":"[1]ACS_16_5YR_B25063_with_ann!O53","v":12},{"$f":"[1]ACS_16_5YR_B25063_with_ann!P53","v":0},{"$f":"[1]ACS_16_5YR_B25063_with_ann!Q53","v":12},{"$f":"[1]ACS_16_5YR_B25063_with_ann!R53","v":11},{"$f":"[1]ACS_16_5YR_B25063_with_ann!S53","v":17},{"$f":"[1]ACS_16_5YR_B25063_with_ann!T53","v":6},{"$f":"[1]ACS_16_5YR_B25063_with_ann!U53","v":9},{"$f":"[1]ACS_16_5YR_B25063_with_ann!V53","v":16},{"$f":"[1]ACS_16_5YR_B25063_with_ann!W53","v":22},{"$f":"[1]ACS_16_5YR_B25063_with_ann!X53","v":0},{"$f":"[1]ACS_16_5YR_B25063_with_ann!Y53","v":12},{"$f":"[1]ACS_16_5YR_B25063_with_ann!Z53","v":5},{"$f":"[1]ACS_16_5YR_B25063_with_ann!AA53","v":8},{"$f":"[1]ACS_16_5YR_B25063_with_ann!AB53","v":17},{"$f":"[1]ACS_16_5YR_B25063_with_ann!AC53","v":21},{"$f":"[1]ACS_16_5YR_B25063_with_ann!AD53","v":0},{"$f":"[1]ACS_16_5YR_B25063_with_ann!AE53","v":12},{"$f":"[1]ACS_16_5YR_B25063_with_ann!AF53","v":5},{"$f":"[1]ACS_16_5YR_B25063_with_ann!AG53","v":8},{"$f":"[1]ACS_16_5YR_B25063_with_ann!AH53","v":17},{"$f":"[1]ACS_16_5YR_B25063_with_ann!AI53","v":14},{"$f":"[1]ACS_16_5YR_B25063_with_ann!AJ53","v":4},{"$f":"[1]ACS_16_5YR_B25063_with_ann!AK53","v":7},{"$f":"[1]ACS_16_5YR_B25063_with_ann!AL53","v":18},{"$f":"[1]ACS_16_5YR_B25063_with_ann!AM53","v":17},{"$f":"[1]ACS_16_5YR_B25063_with_ann!AN53","v":39},{"$f":"[1]ACS_16_5YR_B25063_with_ann!AO53","v":36},{"$f":"[1]ACS_16_5YR_B25063_with_ann!AP53","v":25},{"$f":"[1]ACS_16_5YR_B25063_with_ann!AQ53","v":26},{"$f":"[1]ACS_16_5YR_B25063_with_ann!AR53","v":70},{"$f":"[1]ACS_16_5YR_B25063_with_ann!AS53","v":51},{"$f":"[1]ACS_16_5YR_B25063_with_ann!AT53","v":63},{"$f":"[1]ACS_16_5YR_B25063_with_ann!AU53","v":65},{"$f":"[1]ACS_16_5YR_B25063_with_ann!AV53","v":3},{"$f":"[1]ACS_16_5YR_B25063_with_ann!AW53","v":6},{"$f":"[1]ACS_16_5YR_B25063_with_ann!AX53","v":5},{"$f":"[1]ACS_16_5YR_B25063_with_ann!AY53","v":7},{"$f":"[1]ACS_16_5YR_B25063_with_ann!AZ53","v":0},{"$f":"[1]ACS_16_5YR_B25063_with_ann!BA53","v":12},{"$f":"[1]ACS_16_5YR_B25063_with_ann!BB53","v":0},{"$f":"[1]ACS_16_5YR_B25063_with_ann!BC53","v":12},{"$f":"[1]ACS_16_5YR_B25063_with_ann!BD53","v":16},{"$f":"[1]ACS_16_5YR_B25063_with_ann!BE53","v":13},{"$f":"[1]ACS_16_5YR_B25064_with_ann!D53","v":1070},{"$f":"[1]ACS_16_5YR_B25064_with_ann!E53","v":336},null,"Marlborough"]
["06000US3300545700","0600000US3300550580","060",{"$f":"[1]ACS_16_5YR_B25063_with_ann!C54","v":"Marlow"},{"$f":"[1]ACS_16_5YR_B25063_with_ann!D54","v":35},{"$f":"[1]ACS_16_5YR_B25063_with_ann!E54","v":29},{"$f":"[1]ACS_16_5YR_B25063_with_ann!F54","v":27},{"$f":"[1]ACS_16_5YR_B25063_with_ann!G54","v":26},{"$f":"[1]ACS_16_5YR_B25063_with_ann!H54","v":0},{"$f":"[1]ACS_16_5YR_B25063_with_ann!I54","v":12},{"$f":"[1]ACS_16_5YR_B25063_with_ann!J54","v":0},{"$f":"[1]ACS_16_5YR_B25063_with_ann!K54","v":12},{"$f":"[1]ACS_16_5YR_B25063_with_ann!L54","v":0},{"$f":"[1]ACS_16_5YR_B25063_with_ann!M54","v":12},{"$f":"[1]ACS_16_5YR_B25063_with_ann!N54","v":0},{"$f":"[1]ACS_16_5YR_B25063_with_ann!O54","v":12},{"$f":"[1]ACS_16_5YR_B25063_with_ann!P54","v":2},{"$f":"[1]ACS_16_5YR_B25063_with_ann!Q54","v":3},{"$f":"[1]ACS_16_5YR_B25063_with_ann!R54","v":0},{"$f":"[1]ACS_16_5YR_B25063_with_ann!S54","v":12},{"$f":"[1]ACS_16_5YR_B25063_with_ann!T54","v":0},{"$f":"[1]ACS_16_5YR_B25063_with_ann!U54","v":12},{"$f":"[1]ACS_16_5YR_B25063_with_ann!V54","v":0},{"$f":"[1]ACS_16_5YR_B25063_with_ann!W54","v":12},{"$f":"[1]ACS_16_5YR_B25063_with_ann!X54","v":0},{"$f":"[1]ACS_16_5YR_B25063_with_ann!Y54","v":12},{"$f":"[1]ACS_16_5YR_B25063_with_ann!Z54","v":0},{"$f":"[1]ACS_16_5YR_B25063_with_ann!AA54","v":12},{"$f":"[1]ACS_16_5YR_B25063_with_ann!AB54","v":0},{"$f":"[1]ACS_16_5YR_B25063_with_ann!AC54","v":12},{"$f":"[1]ACS_16_5YR_B25063_with_ann!AD54","v":0},{"$f":"[1]ACS_16_5YR_B25063_with_ann!AE54","v":12},{"$f":"[1]ACS_16_5YR_B25063_with_ann!AF54","v":0},{"$f":"[1]ACS_16_5YR_B25063_with_ann!AG54","v":12},{"$f":"[1]ACS_16_5YR_B25063_with_ann!AH54","v":0},{"$f":"[1]ACS_16_5YR_B25063_with_ann!AI54","v":12},{"$f":"[1]ACS_16_5YR_B25063_with_ann!AJ54","v":0},{"$f":"[1]ACS_16_5YR_B25063_with_ann!AK54","v":12},{"$f":"[1]ACS_16_5YR_B25063_with_ann!AL54","v":0},{"$f":"[1]ACS_16_5YR_B25063_with_ann!AM54","v":12},{"$f":"[1]ACS_16_5YR_B25063_with_ann!AN54","v":0},{"$f":"[1]ACS_16_5YR_B25063_with_ann!AO54","v":12},{"$f":"[1]ACS_16_5YR_B25063_with_ann!AP54","v":21},{"$f":"[1]ACS_16_5YR_B25063_with_ann!AQ54","v":25},{"$f":"[1]ACS_16_5YR_B25063_with_ann!AR54","v":0},{"$f":"[1]ACS_16_5YR_B25063_with_ann!AS54","v":12},{"$f":"[1]ACS_16_5YR_B25063_with_ann!AT54","v":4},{"$f":"[1]ACS_16_5YR_B25063_with_ann!AU54","v":6},{"$f":"[1]ACS_16_5YR_B25063_with_ann!AV54","v":0},{"$f":"[1]ACS_16_5YR_B25063_with_ann!AW54","v":12},{"$f":"[1]ACS_16_5YR_B25063_with_ann!AX54","v":0},{"$f":"[1]ACS_16_5YR_B25063_with_ann!AY54","v":12},{"$f":"[1]ACS_16_5YR_B25063_with_ann!AZ54","v":0},{"$f":"[1]ACS_16_5YR_B25063_with_ann!BA54","v":12},{"$f":"[1]ACS_16_5YR_B25063_with_ann!BB54","v":0},{"$f":"[1]ACS_16_5YR_B25063_with_ann!BC54","v":12},{"$f":"[1]ACS_16_5YR_B25063_with_ann!BD54","v":8},{"$f":"[1]ACS_16_5YR_B25063_with_ann!BE54","v":6},{"$f":"[1]ACS_16_5YR_B25064_with_ann!D54","v":1137},{"$f":"[1]ACS_16_5YR_B25064_with_ann!E54","v":59},null,"Marlow"]
["06000US3300550580","0600000US3300564420","060",{"$f":"[1]ACS_16_5YR_B25063_with_ann!C55","v":"Nelson"},{"$f":"[1]ACS_16_5YR_B25063_with_ann!D55","v":21},{"$f":"[1]ACS_16_5YR_B25063_with_ann!E55","v":11},{"$f":"[1]ACS_16_5YR_B25063_with_ann!F55","v":21},{"$f":"[1]ACS_16_5YR_B25063_with_ann!G55","v":11},{"$f":"[1]ACS_16_5YR_B25063_with_ann!H55","v":0},{"$f":"[1]ACS_16_5YR_B25063_with_ann!I55","v":12},{"$f":"[1]ACS_16_5YR_B25063_with_ann!J55","v":0},{"$f":"[1]ACS_16_5YR_B25063_with_ann!K55","v":12},{"$f":"[1]ACS_16_5YR_B25063_with_ann!L55","v":0},{"$f":"[1]ACS_16_5YR_B25063_with_ann!M55","v":12},{"$f":"[1]ACS_16_5YR_B25063_with_ann!N55","v":0},{"$f":"[1]ACS_16_5YR_B25063_with_ann!O55","v":12},{"$f":"[1]ACS_16_5YR_B25063_with_ann!P55","v":0},{"$f":"[1]ACS_16_5YR_B25063_with_ann!Q55","v":12},{"$f":"[1]ACS_16_5YR_B25063_with_ann!R55","v":0},{"$f":"[1]ACS_16_5YR_B25063_with_ann!S55","v":12},{"$f":"[1]ACS_16_5YR_B25063_with_ann!T55","v":0},{"$f":"[1]ACS_16_5YR_B25063_with_ann!U55","v":12},{"$f":"[1]ACS_16_5YR_B25063_with_ann!V55","v":0},{"$f":"[1]ACS_16_5YR_B25063_with_ann!W55","v":12},{"$f":"[1]ACS_16_5YR_B25063_with_ann!X55","v":0},{"$f":"[1]ACS_16_5YR_B25063_with_ann!Y55","v":12},{"$f":"[1]ACS_16_5YR_B25063_with_ann!Z55","v":0},{"$f":"[1]ACS_16_5YR_B25063_with_ann!AA55","v":12},{"$f":"[1]ACS_16_5YR_B25063_with_ann!AB55","v":0},{"$f":"[1]ACS_16_5YR_B25063_with_ann!AC55","v":12},{"$f":"[1]ACS_16_5YR_B25063_with_ann!AD55","v":0},{"$f":"[1]ACS_16_5YR_B25063_with_ann!AE55","v":12},{"$f":"[1]ACS_16_5YR_B25063_with_ann!AF55","v":3},{"$f":"[1]ACS_16_5YR_B25063_with_ann!AG55","v":6},{"$f":"[1]ACS_16_5YR_B25063_with_ann!AH55","v":0},{"$f":"[1]ACS_16_5YR_B25063_with_ann!AI55","v":12},{"$f":"[1]ACS_16_5YR_B25063_with_ann!AJ55","v":0},{"$f":"[1]ACS_16_5YR_B25063_with_ann!AK55","v":12},{"$f":"[1]ACS_16_5YR_B25063_with_ann!AL55","v":4},{"$f":"[1]ACS_16_5YR_B25063_with_ann!AM55","v":5},{"$f":"[1]ACS_16_5YR_B25063_with_ann!AN55","v":1},{"$f":"[1]ACS_16_5YR_B25063_with_ann!AO55","v":2},{"$f":"[1]ACS_16_5YR_B25063_with_ann!AP55","v":9},{"$f":"[1]ACS_16_5YR_B25063_with_ann!AQ55","v":6},{"$f":"[1]ACS_16_5YR_B25063_with_ann!AR55","v":0},{"$f":"[1]ACS_16_5YR_B25063_with_ann!AS55","v":12},{"$f":"[1]ACS_16_5YR_B25063_with_ann!AT55","v":2},{"$f":"[1]ACS_16_5YR_B25063_with_ann!AU55","v":3},{"$f":"[1]ACS_16_5YR_B25063_with_ann!AV55","v":2},{"$f":"[1]ACS_16_5YR_B25063_with_ann!AW55","v":2},{"$f":"[1]ACS_16_5YR_B25063_with_ann!AX55","v":0},{"$f":"[1]ACS_16_5YR_B25063_with_ann!AY55","v":12},{"$f":"[1]ACS_16_5YR_B25063_with_ann!AZ55","v":0},{"$f":"[1]ACS_16_5YR_B25063_with_ann!BA55","v":12},{"$f":"[1]ACS_16_5YR_B25063_with_ann!BB55","v":0},{"$f":"[1]ACS_16_5YR_B25063_with_ann!BC55","v":12},{"$f":"[1]ACS_16_5YR_B25063_with_ann!BD55","v":0},{"$f":"[1]ACS_16_5YR_B25063_with_ann!BE55","v":12},{"$f":"[1]ACS_16_5YR_B25064_with_ann!D55","v":1069},{"$f":"[1]ACS_16_5YR_B25064_with_ann!E55","v":181},null,"Nelson"]
["06000US3300564420","0600000US3300564580","060",{"$f":"[1]ACS_16_5YR_B25063_with_ann!C56","v":"Richmond"},{"$f":"[1]ACS_16_5YR_B25063_with_ann!D56","v":10},{"$f":"[1]ACS_16_5YR_B25063_with_ann!E56","v":9},{"$f":"[1]ACS_16_5YR_B25063_with_ann!F56","v":7},{"$f":"[1]ACS_16_5YR_B25063_with_ann!G56","v":8},{"$f":"[1]ACS_16_5YR_B25063_with_ann!H56","v":0},{"$f":"[1]ACS_16_5YR_B25063_with_ann!I56","v":12},{"$f":"[1]ACS_16_5YR_B25063_with_ann!J56","v":0},{"$f":"[1]ACS_16_5YR_B25063_with_ann!K56","v":12},{"$f":"[1]ACS_16_5YR_B25063_with_ann!L56","v":0},{"$f":"[1]ACS_16_5YR_B25063_with_ann!M56","v":12},{"$f":"[1]ACS_16_5YR_B25063_with_ann!N56","v":0},{"$f":"[1]ACS_16_5YR_B25063_with_ann!O56","v":12},{"$f":"[1]ACS_16_5YR_B25063_with_ann!P56","v":0},{"$f":"[1]ACS_16_5YR_B25063_with_ann!Q56","v":12},{"$f":"[1]ACS_16_5YR_B25063_with_ann!R56","v":0},{"$f":"[1]ACS_16_5YR_B25063_with_ann!S56","v":12},{"$f":"[1]ACS_16_5YR_B25063_with_ann!T56","v":0},{"$f":"[1]ACS_16_5YR_B25063_with_ann!U56","v":12},{"$f":"[1]ACS_16_5YR_B25063_with_ann!V56","v":0},{"$f":"[1]ACS_16_5YR_B25063_with_ann!W56","v":12},{"$f":"[1]ACS_16_5YR_B25063_with_ann!X56","v":0},{"$f":"[1]ACS_16_5YR_B25063_with_ann!Y56","v":12},{"$f":"[1]ACS_16_5YR_B25063_with_ann!Z56","v":0},{"$f":"[1]ACS_16_5YR_B25063_with_ann!AA56","v":12},{"$f":"[1]ACS_16_5YR_B25063_with_ann!AB56","v":0},{"$f":"[1]ACS_16_5YR_B25063_with_ann!AC56","v":12},{"$f":"[1]ACS_16_5YR_B25063_with_ann!AD56","v":0},{"$f":"[1]ACS_16_5YR_B25063_with_ann!AE56","v":12},{"$f":"[1]ACS_16_5YR_B25063_with_ann!AF56","v":0},{"$f":"[1]ACS_16_5YR_B25063_with_ann!AG56","v":12},{"$f":"[1]ACS_16_5YR_B25063_with_ann!AH56","v":0},{"$f":"[1]ACS_16_5YR_B25063_with_ann!AI56","v":12},{"$f":"[1]ACS_16_5YR_B25063_with_ann!AJ56","v":0},{"$f":"[1]ACS_16_5YR_B25063_with_ann!AK56","v":12},{"$f":"[1]ACS_16_5YR_B25063_with_ann!AL56","v":0},{"$f":"[1]ACS_16_5YR_B25063_with_ann!AM56","v":12},{"$f":"[1]ACS_16_5YR_B25063_with_ann!AN56","v":0},{"$f":"[1]ACS_16_5YR_B25063_with_ann!AO56","v":12},{"$f":"[1]ACS_16_5YR_B25063_with_ann!AP56","v":3},{"$f":"[1]ACS_16_5YR_B25063_with_ann!AQ56","v":4},{"$f":"[1]ACS_16_5YR_B25063_with_ann!AR56","v":4},{"$f":"[1]ACS_16_5YR_B25063_with_ann!AS56","v":6},{"$f":"[1]ACS_16_5YR_B25063_with_ann!AT56","v":0},{"$f":"[1]ACS_16_5YR_B25063_with_ann!AU56","v":12},{"$f":"[1]ACS_16_5YR_B25063_with_ann!AV56","v":0},{"$f":"[1]ACS_16_5YR_B25063_with_ann!AW56","v":12},{"$f":"[1]ACS_16_5YR_B25063_with_ann!AX56","v":0},{"$f":"[1]ACS_16_5YR_B25063_with_ann!AY56","v":12},{"$f":"[1]ACS_16_5YR_B25063_with_ann!AZ56","v":0},{"$f":"[1]ACS_16_5YR_B25063_with_ann!BA56","v":12},{"$f":"[1]ACS_16_5YR_B25063_with_ann!BB56","v":0},{"$f":"[1]ACS_16_5YR_B25063_with_ann!BC56","v":12},{"$f":"[1]ACS_16_5YR_B25063_with_ann!BD56","v":3},{"$f":"[1]ACS_16_5YR_B25063_with_ann!BE56","v":6},{"$f":"[1]ACS_16_5YR_B25064_with_ann!D56","v":"-"},{"$f":"[1]ACS_16_5YR_B25064_with_ann!E56","v":"**"},null,"Richmond"]
["06000US3300564580","0600000US3300565700","060",{"$f":"[1]ACS_16_5YR_B25063_with_ann!C57","v":"Rindge"},{"$f":"[1]ACS_16_5YR_B25063_with_ann!D57","v":261},{"$f":"[1]ACS_16_5YR_B25063_with_ann!E57","v":119},{"$f":"[1]ACS_16_5YR_B25063_with_ann!F57","v":240},{"$f":"[1]ACS_16_5YR_B25063_with_ann!G57","v":109},{"$f":"[1]ACS_16_5YR_B25063_with_ann!H57","v":0},{"$f":"[1]ACS_16_5YR_B25063_with_ann!I57","v":17},{"$f":"[1]ACS_16_5YR_B25063_with_ann!J57","v":0},{"$f":"[1]ACS_16_5YR_B25063_with_ann!K57","v":17},{"$f":"[1]ACS_16_5YR_B25063_with_ann!L57","v":0},{"$f":"[1]ACS_16_5YR_B25063_with_ann!M57","v":17},{"$f":"[1]ACS_16_5YR_B25063_with_ann!N57","v":0},{"$f":"[1]ACS_16_5YR_B25063_with_ann!O57","v":17},{"$f":"[1]ACS_16_5YR_B25063_with_ann!P57","v":0},{"$f":"[1]ACS_16_5YR_B25063_with_ann!Q57","v":17},{"$f":"[1]ACS_16_5YR_B25063_with_ann!R57","v":0},{"$f":"[1]ACS_16_5YR_B25063_with_ann!S57","v":17},{"$f":"[1]ACS_16_5YR_B25063_with_ann!T57","v":0},{"$f":"[1]ACS_16_5YR_B25063_with_ann!U57","v":17},{"$f":"[1]ACS_16_5YR_B25063_with_ann!V57","v":0},{"$f":"[1]ACS_16_5YR_B25063_with_ann!W57","v":17},{"$f":"[1]ACS_16_5YR_B25063_with_ann!X57","v":0},{"$f":"[1]ACS_16_5YR_B25063_with_ann!Y57","v":17},{"$f":"[1]ACS_16_5YR_B25063_with_ann!Z57","v":0},{"$f":"[1]ACS_16_5YR_B25063_with_ann!AA57","v":17},{"$f":"[1]ACS_16_5YR_B25063_with_ann!AB57","v":0},{"$f":"[1]ACS_16_5YR_B25063_with_ann!AC57","v":17},{"$f":"[1]ACS_16_5YR_B25063_with_ann!AD57","v":0},{"$f":"[1]ACS_16_5YR_B25063_with_ann!AE57","v":17},{"$f":"[1]ACS_16_5YR_B25063_with_ann!AF57","v":0},{"$f":"[1]ACS_16_5YR_B25063_with_ann!AG57","v":17},{"$f":"[1]ACS_16_5YR_B25063_with_ann!AH57","v":0},{"$f":"[1]ACS_16_5YR_B25063_with_ann!AI57","v":17},{"$f":"[1]ACS_16_5YR_B25063_with_ann!AJ57","v":7},{"$f":"[1]ACS_16_5YR_B25063_with_ann!AK57","v":10},{"$f":"[1]ACS_16_5YR_B25063_with_ann!AL57","v":46},{"$f":"[1]ACS_16_5YR_B25063_with_ann!AM57","v":58},{"$f":"[1]ACS_16_5YR_B25063_with_ann!AN57","v":46},{"$f":"[1]ACS_16_5YR_B25063_with_ann!AO57","v":44},{"$f":"[1]ACS_16_5YR_B25063_with_ann!AP57","v":71},{"$f":"[1]ACS_16_5YR_B25063_with_ann!AQ57","v":64},{"$f":"[1]ACS_16_5YR_B25063_with_ann!AR57","v":8},{"$f":"[1]ACS_16_5YR_B25063_with_ann!AS57","v":12},{"$f":"[1]ACS_16_5YR_B25063_with_ann!AT57","v":62},{"$f":"[1]ACS_16_5YR_B25063_with_ann!AU57","v":46},{"$f":"[1]ACS_16_5YR_B25063_with_ann!AV57","v":0},{"$f":"[1]ACS_16_5YR_B25063_with_ann!AW57","v":17},{"$f":"[1]ACS_16_5YR_B25063_with_ann!AX57","v":0},{"$f":"[1]ACS_16_5YR_B25063_with_ann!AY57","v":17},{"$f":"[1]ACS_16_5YR_B25063_with_ann!AZ57","v":0},{"$f":"[1]ACS_16_5YR_B25063_with_ann!BA57","v":17},{"$f":"[1]ACS_16_5YR_B25063_with_ann!BB57","v":0},{"$f":"[1]ACS_16_5YR_B25063_with_ann!BC57","v":17},{"$f":"[1]ACS_16_5YR_B25063_with_ann!BD57","v":21},{"$f":"[1]ACS_16_5YR_B25063_with_ann!BE57","v":27},{"$f":"[1]ACS_16_5YR_B25064_with_ann!D57","v":1074},{"$f":"[1]ACS_16_5YR_B25064_with_ann!E57","v":182},null,"Rindge"]
["06000US3300565700","0600000US3300573700","060",{"$f":"[1]ACS_16_5YR_B25063_with_ann!C58","v":"Roxbury"},{"$f":"[1]ACS_16_5YR_B25063_with_ann!D58","v":1},{"$f":"[1]ACS_16_5YR_B25063_with_ann!E58","v":3},{"$f":"[1]ACS_16_5YR_B25063_with_ann!F58","v":0},{"$f":"[1]ACS_16_5YR_B25063_with_ann!G58","v":12},{"$f":"[1]ACS_16_5YR_B25063_with_ann!H58","v":0},{"$f":"[1]ACS_16_5YR_B25063_with_ann!I58","v":12},{"$f":"[1]ACS_16_5YR_B25063_with_ann!J58","v":0},{"$f":"[1]ACS_16_5YR_B25063_with_ann!K58","v":12},{"$f":"[1]ACS_16_5YR_B25063_with_ann!L58","v":0},{"$f":"[1]ACS_16_5YR_B25063_with_ann!M58","v":12},{"$f":"[1]ACS_16_5YR_B25063_with_ann!N58","v":0},{"$f":"[1]ACS_16_5YR_B25063_with_ann!O58","v":12},{"$f":"[1]ACS_16_5YR_B25063_with_ann!P58","v":0},{"$f":"[1]ACS_16_5YR_B25063_with_ann!Q58","v":12},{"$f":"[1]ACS_16_5YR_B25063_with_ann!R58","v":0},{"$f":"[1]ACS_16_5YR_B25063_with_ann!S58","v":12},{"$f":"[1]ACS_16_5YR_B25063_with_ann!T58","v":0},{"$f":"[1]ACS_16_5YR_B25063_with_ann!U58","v":12},{"$f":"[1]ACS_16_5YR_B25063_with_ann!V58","v":0},{"$f":"[1]ACS_16_5YR_B25063_with_ann!W58","v":12},{"$f":"[1]ACS_16_5YR_B25063_with_ann!X58","v":0},{"$f":"[1]ACS_16_5YR_B25063_with_ann!Y58","v":12},{"$f":"[1]ACS_16_5YR_B25063_with_ann!Z58","v":0},{"$f":"[1]ACS_16_5YR_B25063_with_ann!AA58","v":12},{"$f":"[1]ACS_16_5YR_B25063_with_ann!AB58","v":0},{"$f":"[1]ACS_16_5YR_B25063_with_ann!AC58","v":12},{"$f":"[1]ACS_16_5YR_B25063_with_ann!AD58","v":0},{"$f":"[1]ACS_16_5YR_B25063_with_ann!AE58","v":12},{"$f":"[1]ACS_16_5YR_B25063_with_ann!AF58","v":0},{"$f":"[1]ACS_16_5YR_B25063_with_ann!AG58","v":12},{"$f":"[1]ACS_16_5YR_B25063_with_ann!AH58","v":0},{"$f":"[1]ACS_16_5YR_B25063_with_ann!AI58","v":12},{"$f":"[1]ACS_16_5YR_B25063_with_ann!AJ58","v":0},{"$f":"[1]ACS_16_5YR_B25063_with_ann!AK58","v":12},{"$f":"[1]ACS_16_5YR_B25063_with_ann!AL58","v":0},{"$f":"[1]ACS_16_5YR_B25063_with_ann!AM58","v":12},{"$f":"[1]ACS_16_5YR_B25063_with_ann!AN58","v":0},{"$f":"[1]ACS_16_5YR_B25063_with_ann!AO58","v":12},{"$f":"[1]ACS_16_5YR_B25063_with_ann!AP58","v":0},{"$f":"[1]ACS_16_5YR_B25063_with_ann!AQ58","v":12},{"$f":"[1]ACS_16_5YR_B25063_with_ann!AR58","v":0},{"$f":"[1]ACS_16_5YR_B25063_with_ann!AS58","v":12},{"$f":"[1]ACS_16_5YR_B25063_with_ann!AT58","v":0},{"$f":"[1]ACS_16_5YR_B25063_with_ann!AU58","v":12},{"$f":"[1]ACS_16_5YR_B25063_with_ann!AV58","v":0},{"$f":"[1]ACS_16_5YR_B25063_with_ann!AW58","v":12},{"$f":"[1]ACS_16_5YR_B25063_with_ann!AX58","v":0},{"$f":"[1]ACS_16_5YR_B25063_with_ann!AY58","v":12},{"$f":"[1]ACS_16_5YR_B25063_with_ann!AZ58","v":0},{"$f":"[1]ACS_16_5YR_B25063_with_ann!BA58","v":12},{"$f":"[1]ACS_16_5YR_B25063_with_ann!BB58","v":0},{"$f":"[1]ACS_16_5YR_B25063_with_ann!BC58","v":12},{"$f":"[1]ACS_16_5YR_B25063_with_ann!BD58","v":1},{"$f":"[1]ACS_16_5YR_B25063_with_ann!BE58","v":3},{"$f":"[1]ACS_16_5YR_B25064_with_ann!D58","v":"-"},{"$f":"[1]ACS_16_5YR_B25064_with_ann!E58","v":"**"},null,"Roxbury"]
["06000US3300573700","0600000US3300574900","060",{"$f":"[1]ACS_16_5YR_B25063_with_ann!C59","v":"Stoddard"},{"$f":"[1]ACS_16_5YR_B25063_with_ann!D59","v":31},{"$f":"[1]ACS_16_5YR_B25063_with_ann!E59","v":18},{"$f":"[1]ACS_16_5YR_B25063_with_ann!F59","v":23},{"$f":"[1]ACS_16_5YR_B25063_with_ann!G59","v":16},{"$f":"[1]ACS_16_5YR_B25063_with_ann!H59","v":0},{"$f":"[1]ACS_16_5YR_B25063_with_ann!I59","v":12},{"$f":"[1]ACS_16_5YR_B25063_with_ann!J59","v":0},{"$f":"[1]ACS_16_5YR_B25063_with_ann!K59","v":12},{"$f":"[1]ACS_16_5YR_B25063_with_ann!L59","v":0},{"$f":"[1]ACS_16_5YR_B25063_with_ann!M59","v":12},{"$f":"[1]ACS_16_5YR_B25063_with_ann!N59","v":0},{"$f":"[1]ACS_16_5YR_B25063_with_ann!O59","v":12},{"$f":"[1]ACS_16_5YR_B25063_with_ann!P59","v":0},{"$f":"[1]ACS_16_5YR_B25063_with_ann!Q59","v":12},{"$f":"[1]ACS_16_5YR_B25063_with_ann!R59","v":0},{"$f":"[1]ACS_16_5YR_B25063_with_ann!S59","v":12},{"$f":"[1]ACS_16_5YR_B25063_with_ann!T59","v":0},{"$f":"[1]ACS_16_5YR_B25063_with_ann!U59","v":12},{"$f":"[1]ACS_16_5YR_B25063_with_ann!V59","v":0},{"$f":"[1]ACS_16_5YR_B25063_with_ann!W59","v":12},{"$f":"[1]ACS_16_5YR_B25063_with_ann!X59","v":0},{"$f":"[1]ACS_16_5YR_B25063_with_ann!Y59","v":12},{"$f":"[1]ACS_16_5YR_B25063_with_ann!Z59","v":0},{"$f":"[1]ACS_16_5YR_B25063_with_ann!AA59","v":12},{"$f":"[1]ACS_16_5YR_B25063_with_ann!AB59","v":0},{"$f":"[1]ACS_16_5YR_B25063_with_ann!AC59","v":12},{"$f":"[1]ACS_16_5YR_B25063_with_ann!AD59","v":0},{"$f":"[1]ACS_16_5YR_B25063_with_ann!AE59","v":12},{"$f":"[1]ACS_16_5YR_B25063_with_ann!AF59","v":0},{"$f":"[1]ACS_16_5YR_B25063_with_ann!AG59","v":12},{"$f":"[1]ACS_16_5YR_B25063_with_ann!AH59","v":0},{"$f":"[1]ACS_16_5YR_B25063_with_ann!AI59","v":12},{"$f":"[1]ACS_16_5YR_B25063_with_ann!AJ59","v":0},{"$f":"[1]ACS_16_5YR_B25063_with_ann!AK59","v":12},{"$f":"[1]ACS_16_5YR_B25063_with_ann!AL59","v":0},{"$f":"[1]ACS_16_5YR_B25063_with_ann!AM59","v":12},{"$f":"[1]ACS_16_5YR_B25063_with_ann!AN59","v":3},{"$f":"[1]ACS_16_5YR_B25063_with_ann!AO59","v":4},{"$f":"[1]ACS_16_5YR_B25063_with_ann!AP59","v":0},{"$f":"[1]ACS_16_5YR_B25063_with_ann!AQ59","v":12},{"$f":"[1]ACS_16_5YR_B25063_with_ann!AR59","v":3},{"$f":"[1]ACS_16_5YR_B25063_with_ann!AS59","v":4},{"$f":"[1]ACS_16_5YR_B25063_with_ann!AT59","v":6},{"$f":"[1]ACS_16_5YR_B25063_with_ann!AU59","v":9},{"$f":"[1]ACS_16_5YR_B25063_with_ann!AV59","v":11},{"$f":"[1]ACS_16_5YR_B25063_with_ann!AW59","v":14},{"$f":"[1]ACS_16_5YR_B25063_with_ann!AX59","v":0},{"$f":"[1]ACS_16_5YR_B25063_with_ann!AY59","v":12},{"$f":"[1]ACS_16_5YR_B25063_with_ann!AZ59","v":0},{"$f":"[1]ACS_16_5YR_B25063_with_ann!BA59","v":12},{"$f":"[1]ACS_16_5YR_B25063_with_ann!BB59","v":0},{"$f":"[1]ACS_16_5YR_B25063_with_ann!BC59","v":12},{"$f":"[1]ACS_16_5YR_B25063_with_ann!BD59","v":8},{"$f":"[1]ACS_16_5YR_B25063_with_ann!BE59","v":9},{"$f":"[1]ACS_16_5YR_B25064_with_ann!D59","v":1958},{"$f":"[1]ACS_16_5YR_B25064_with_ann!E59","v":558},null,"Stoddard"]
["06000US3300574900","0600000US3300575300","060",{"$f":"[1]ACS_16_5YR_B25063_with_ann!C60","v":"Sullivan"},{"$f":"[1]ACS_16_5YR_B25063_with_ann!D60","v":41},{"$f":"[1]ACS_16_5YR_B25063_with_ann!E60","v":21},{"$f":"[1]ACS_16_5YR_B25063_with_ann!F60","v":40},{"$f":"[1]ACS_16_5YR_B25063_with_ann!G60","v":21},{"$f":"[1]ACS_16_5YR_B25063_with_ann!H60","v":0},{"$f":"[1]ACS_16_5YR_B25063_with_ann!I60","v":12},{"$f":"[1]ACS_16_5YR_B25063_with_ann!J60","v":0},{"$f":"[1]ACS_16_5YR_B25063_with_ann!K60","v":12},{"$f":"[1]ACS_16_5YR_B25063_with_ann!L60","v":0},{"$f":"[1]ACS_16_5YR_B25063_with_ann!M60","v":12},{"$f":"[1]ACS_16_5YR_B25063_with_ann!N60","v":0},{"$f":"[1]ACS_16_5YR_B25063_with_ann!O60","v":12},{"$f":"[1]ACS_16_5YR_B25063_with_ann!P60","v":0},{"$f":"[1]ACS_16_5YR_B25063_with_ann!Q60","v":12},{"$f":"[1]ACS_16_5YR_B25063_with_ann!R60","v":0},{"$f":"[1]ACS_16_5YR_B25063_with_ann!S60","v":12},{"$f":"[1]ACS_16_5YR_B25063_with_ann!T60","v":0},{"$f":"[1]ACS_16_5YR_B25063_with_ann!U60","v":12},{"$f":"[1]ACS_16_5YR_B25063_with_ann!V60","v":0},{"$f":"[1]ACS_16_5YR_B25063_with_ann!W60","v":12},{"$f":"[1]ACS_16_5YR_B25063_with_ann!X60","v":0},{"$f":"[1]ACS_16_5YR_B25063_with_ann!Y60","v":12},{"$f":"[1]ACS_16_5YR_B25063_with_ann!Z60","v":0},{"$f":"[1]ACS_16_5YR_B25063_with_ann!AA60","v":12},{"$f":"[1]ACS_16_5YR_B25063_with_ann!AB60","v":0},{"$f":"[1]ACS_16_5YR_B25063_with_ann!AC60","v":12},{"$f":"[1]ACS_16_5YR_B25063_with_ann!AD60","v":0},{"$f":"[1]ACS_16_5YR_B25063_with_ann!AE60","v":12},{"$f":"[1]ACS_16_5YR_B25063_with_ann!AF60","v":0},{"$f":"[1]ACS_16_5YR_B25063_with_ann!AG60","v":12},{"$f":"[1]ACS_16_5YR_B25063_with_ann!AH60","v":0},{"$f":"[1]ACS_16_5YR_B25063_with_ann!AI60","v":12},{"$f":"[1]ACS_16_5YR_B25063_with_ann!AJ60","v":0},{"$f":"[1]ACS_16_5YR_B25063_with_ann!AK60","v":12},{"$f":"[1]ACS_16_5YR_B25063_with_ann!AL60","v":2},{"$f":"[1]ACS_16_5YR_B25063_with_ann!AM60","v":3},{"$f":"[1]ACS_16_5YR_B25063_with_ann!AN60","v":17},{"$f":"[1]ACS_16_5YR_B25063_with_ann!AO60","v":19},{"$f":"[1]ACS_16_5YR_B25063_with_ann!AP60","v":5},{"$f":"[1]ACS_16_5YR_B25063_with_ann!AQ60","v":5},{"$f":"[1]ACS_16_5YR_B25063_with_ann!AR60","v":4},{"$f":"[1]ACS_16_5YR_B25063_with_ann!AS60","v":5},{"$f":"[1]ACS_16_5YR_B25063_with_ann!AT60","v":5},{"$f":"[1]ACS_16_5YR_B25063_with_ann!AU60","v":6},{"$f":"[1]ACS_16_5YR_B25063_with_ann!AV60","v":7},{"$f":"[1]ACS_16_5YR_B25063_with_ann!AW60","v":7},{"$f":"[1]ACS_16_5YR_B25063_with_ann!AX60","v":0},{"$f":"[1]ACS_16_5YR_B25063_with_ann!AY60","v":12},{"$f":"[1]ACS_16_5YR_B25063_with_ann!AZ60","v":0},{"$f":"[1]ACS_16_5YR_B25063_with_ann!BA60","v":12},{"$f":"[1]ACS_16_5YR_B25063_with_ann!BB60","v":0},{"$f":"[1]ACS_16_5YR_B25063_with_ann!BC60","v":12},{"$f":"[1]ACS_16_5YR_B25063_with_ann!BD60","v":1},{"$f":"[1]ACS_16_5YR_B25063_with_ann!BE60","v":4},{"$f":"[1]ACS_16_5YR_B25064_with_ann!D60","v":1050},{"$f":"[1]ACS_16_5YR_B25064_with_ann!E60","v":519},null,"Sullivan"]
["06000US3300575300","0600000US3300575700","060",{"$f":"[1]ACS_16_5YR_B25063_with_ann!C61","v":"Surry"},{"$f":"[1]ACS_16_5YR_B25063_with_ann!D61","v":20},{"$f":"[1]ACS_16_5YR_B25063_with_ann!E61","v":9},{"$f":"[1]ACS_16_5YR_B25063_with_ann!F61","v":16},{"$f":"[1]ACS_16_5YR_B25063_with_ann!G61","v":8},{"$f":"[1]ACS_16_5YR_B25063_with_ann!H61","v":0},{"$f":"[1]ACS_16_5YR_B25063_with_ann!I61","v":12},{"$f":"[1]ACS_16_5YR_B25063_with_ann!J61","v":0},{"$f":"[1]ACS_16_5YR_B25063_with_ann!K61","v":12},{"$f":"[1]ACS_16_5YR_B25063_with_ann!L61","v":0},{"$f":"[1]ACS_16_5YR_B25063_with_ann!M61","v":12},{"$f":"[1]ACS_16_5YR_B25063_with_ann!N61","v":0},{"$f":"[1]ACS_16_5YR_B25063_with_ann!O61","v":12},{"$f":"[1]ACS_16_5YR_B25063_with_ann!P61","v":0},{"$f":"[1]ACS_16_5YR_B25063_with_ann!Q61","v":12},{"$f":"[1]ACS_16_5YR_B25063_with_ann!R61","v":0},{"$f":"[1]ACS_16_5YR_B25063_with_ann!S61","v":12},{"$f":"[1]ACS_16_5YR_B25063_with_ann!T61","v":0},{"$f":"[1]ACS_16_5YR_B25063_with_ann!U61","v":12},{"$f":"[1]ACS_16_5YR_B25063_with_ann!V61","v":0},{"$f":"[1]ACS_16_5YR_B25063_with_ann!W61","v":12},{"$f":"[1]ACS_16_5YR_B25063_with_ann!X61","v":0},{"$f":"[1]ACS_16_5YR_B25063_with_ann!Y61","v":12},{"$f":"[1]ACS_16_5YR_B25063_with_ann!Z61","v":0},{"$f":"[1]ACS_16_5YR_B25063_with_ann!AA61","v":12},{"$f":"[1]ACS_16_5YR_B25063_with_ann!AB61","v":0},{"$f":"[1]ACS_16_5YR_B25063_with_ann!AC61","v":12},{"$f":"[1]ACS_16_5YR_B25063_with_ann!AD61","v":0},{"$f":"[1]ACS_16_5YR_B25063_with_ann!AE61","v":12},{"$f":"[1]ACS_16_5YR_B25063_with_ann!AF61","v":0},{"$f":"[1]ACS_16_5YR_B25063_with_ann!AG61","v":12},{"$f":"[1]ACS_16_5YR_B25063_with_ann!AH61","v":0},{"$f":"[1]ACS_16_5YR_B25063_with_ann!AI61","v":12},{"$f":"[1]ACS_16_5YR_B25063_with_ann!AJ61","v":0},{"$f":"[1]ACS_16_5YR_B25063_with_ann!AK61","v":12},{"$f":"[1]ACS_16_5YR_B25063_with_ann!AL61","v":3},{"$f":"[1]ACS_16_5YR_B25063_with_ann!AM61","v":4},{"$f":"[1]ACS_16_5YR_B25063_with_ann!AN61","v":0},{"$f":"[1]ACS_16_5YR_B25063_with_ann!AO61","v":12},{"$f":"[1]ACS_16_5YR_B25063_with_ann!AP61","v":0},{"$f":"[1]ACS_16_5YR_B25063_with_ann!AQ61","v":12},{"$f":"[1]ACS_16_5YR_B25063_with_ann!AR61","v":5},{"$f":"[1]ACS_16_5YR_B25063_with_ann!AS61","v":5},{"$f":"[1]ACS_16_5YR_B25063_with_ann!AT61","v":2},{"$f":"[1]ACS_16_5YR_B25063_with_ann!AU61","v":3},{"$f":"[1]ACS_16_5YR_B25063_with_ann!AV61","v":6},{"$f":"[1]ACS_16_5YR_B25063_with_ann!AW61","v":5},{"$f":"[1]ACS_16_5YR_B25063_with_ann!AX61","v":0},{"$f":"[1]ACS_16_5YR_B25063_with_ann!AY61","v":12},{"$f":"[1]ACS_16_5YR_B25063_with_ann!AZ61","v":0},{"$f":"[1]ACS_16_5YR_B25063_with_ann!BA61","v":12},{"$f":"[1]ACS_16_5YR_B25063_with_ann!BB61","v":0},{"$f":"[1]ACS_16_5YR_B25063_with_ann!BC61","v":12},{"$f":"[1]ACS_16_5YR_B25063_with_ann!BD61","v":4},{"$f":"[1]ACS_16_5YR_B25063_with_ann!BE61","v":5},{"$f":"[1]ACS_16_5YR_B25064_with_ann!D61","v":1500},{"$f":"[1]ACS_16_5YR_B25064_with_ann!E61","v":828},null,"Surry"]
["06000US3300575700","0600000US3300577380","060",{"$f":"[1]ACS_16_5YR_B25063_with_ann!C62","v":"Swanzey"},{"$f":"[1]ACS_16_5YR_B25063_with_ann!D62","v":1018},{"$f":"[1]ACS_16_5YR_B25063_with_ann!E62","v":252},{"$f":"[1]ACS_16_5YR_B25063_with_ann!F62","v":983},{"$f":"[1]ACS_16_5YR_B25063_with_ann!G62","v":254},{"$f":"[1]ACS_16_5YR_B25063_with_ann!H62","v":0},{"$f":"[1]ACS_16_5YR_B25063_with_ann!I62","v":17},{"$f":"[1]ACS_16_5YR_B25063_with_ann!J62","v":0},{"$f":"[1]ACS_16_5YR_B25063_with_ann!K62","v":17},{"$f":"[1]ACS_16_5YR_B25063_with_ann!L62","v":0},{"$f":"[1]ACS_16_5YR_B25063_with_ann!M62","v":17},{"$f":"[1]ACS_16_5YR_B25063_with_ann!N62","v":0},{"$f":"[1]ACS_16_5YR_B25063_with_ann!O62","v":17},{"$f":"[1]ACS_16_5YR_B25063_with_ann!P62","v":34},{"$f":"[1]ACS_16_5YR_B25063_with_ann!Q62","v":36},{"$f":"[1]ACS_16_5YR_B25063_with_ann!R62","v":15},{"$f":"[1]ACS_16_5YR_B25063_with_ann!S62","v":25},{"$f":"[1]ACS_16_5YR_B25063_with_ann!T62","v":52},{"$f":"[1]ACS_16_5YR_B25063_with_ann!U62","v":77},{"$f":"[1]ACS_16_5YR_B25063_with_ann!V62","v":32},{"$f":"[1]ACS_16_5YR_B25063_with_ann!W62","v":41},{"$f":"[1]ACS_16_5YR_B25063_with_ann!X62","v":18},{"$f":"[1]ACS_16_5YR_B25063_with_ann!Y62","v":32},{"$f":"[1]ACS_16_5YR_B25063_with_ann!Z62","v":21},{"$f":"[1]ACS_16_5YR_B25063_with_ann!AA62","v":31},{"$f":"[1]ACS_16_5YR_B25063_with_ann!AB62","v":25},{"$f":"[1]ACS_16_5YR_B25063_with_ann!AC62","v":34},{"$f":"[1]ACS_16_5YR_B25063_with_ann!AD62","v":0},{"$f":"[1]ACS_16_5YR_B25063_with_ann!AE62","v":17},{"$f":"[1]ACS_16_5YR_B25063_with_ann!AF62","v":0},{"$f":"[1]ACS_16_5YR_B25063_with_ann!AG62","v":17},{"$f":"[1]ACS_16_5YR_B25063_with_ann!AH62","v":0},{"$f":"[1]ACS_16_5YR_B25063_with_ann!AI62","v":17},{"$f":"[1]ACS_16_5YR_B25063_with_ann!AJ62","v":5},{"$f":"[1]ACS_16_5YR_B25063_with_ann!AK62","v":9},{"$f":"[1]ACS_16_5YR_B25063_with_ann!AL62","v":58},{"$f":"[1]ACS_16_5YR_B25063_with_ann!AM62","v":69},{"$f":"[1]ACS_16_5YR_B25063_with_ann!AN62","v":40},{"$f":"[1]ACS_16_5YR_B25063_with_ann!AO62","v":40},{"$f":"[1]ACS_16_5YR_B25063_with_ann!AP62","v":128},{"$f":"[1]ACS_16_5YR_B25063_with_ann!AQ62","v":94},{"$f":"[1]ACS_16_5YR_B25063_with_ann!AR62","v":184},{"$f":"[1]ACS_16_5YR_B25063_with_ann!AS62","v":110},{"$f":"[1]ACS_16_5YR_B25063_with_ann!AT62","v":353},{"$f":"[1]ACS_16_5YR_B25063_with_ann!AU62","v":183},{"$f":"[1]ACS_16_5YR_B25063_with_ann!AV62","v":18},{"$f":"[1]ACS_16_5YR_B25063_with_ann!AW62","v":30},{"$f":"[1]ACS_16_5YR_B25063_with_ann!AX62","v":0},{"$f":"[1]ACS_16_5YR_B25063_with_ann!AY62","v":17},{"$f":"[1]ACS_16_5YR_B25063_with_ann!AZ62","v":0},{"$f":"[1]ACS_16_5YR_B25063_with_ann!BA62","v":17},{"$f":"[1]ACS_16_5YR_B25063_with_ann!BB62","v":0},{"$f":"[1]ACS_16_5YR_B25063_with_ann!BC62","v":17},{"$f":"[1]ACS_16_5YR_B25063_with_ann!BD62","v":35},{"$f":"[1]ACS_16_5YR_B25063_with_ann!BE62","v":34},{"$f":"[1]ACS_16_5YR_B25064_with_ann!D62","v":1336},{"$f":"[1]ACS_16_5YR_B25064_with_ann!E62","v":191},null,"Swanzey"]
["06000US3300577380","0600000US3300578420","060",{"$f":"[1]ACS_16_5YR_B25063_with_ann!C63","v":"Troy"},{"$f":"[1]ACS_16_5YR_B25063_with_ann!D63","v":233},{"$f":"[1]ACS_16_5YR_B25063_with_ann!E63","v":73},{"$f":"[1]ACS_16_5YR_B25063_with_ann!F63","v":222},{"$f":"[1]ACS_16_5YR_B25063_with_ann!G63","v":72},{"$f":"[1]ACS_16_5YR_B25063_with_ann!H63","v":7},{"$f":"[1]ACS_16_5YR_B25063_with_ann!I63","v":11},{"$f":"[1]ACS_16_5YR_B25063_with_ann!J63","v":0},{"$f":"[1]ACS_16_5YR_B25063_with_ann!K63","v":12},{"$f":"[1]ACS_16_5YR_B25063_with_ann!L63","v":0},{"$f":"[1]ACS_16_5YR_B25063_with_ann!M63","v":12},{"$f":"[1]ACS_16_5YR_B25063_with_ann!N63","v":0},{"$f":"[1]ACS_16_5YR_B25063_with_ann!O63","v":12},{"$f":"[1]ACS_16_5YR_B25063_with_ann!P63","v":0},{"$f":"[1]ACS_16_5YR_B25063_with_ann!Q63","v":12},{"$f":"[1]ACS_16_5YR_B25063_with_ann!R63","v":0},{"$f":"[1]ACS_16_5YR_B25063_with_ann!S63","v":12},{"$f":"[1]ACS_16_5YR_B25063_with_ann!T63","v":0},{"$f":"[1]ACS_16_5YR_B25063_with_ann!U63","v":12},{"$f":"[1]ACS_16_5YR_B25063_with_ann!V63","v":0},{"$f":"[1]ACS_16_5YR_B25063_with_ann!W63","v":12},{"$f":"[1]ACS_16_5YR_B25063_with_ann!X63","v":0},{"$f":"[1]ACS_16_5YR_B25063_with_ann!Y63","v":12},{"$f":"[1]ACS_16_5YR_B25063_with_ann!Z63","v":0},{"$f":"[1]ACS_16_5YR_B25063_with_ann!AA63","v":12},{"$f":"[1]ACS_16_5YR_B25063_with_ann!AB63","v":0},{"$f":"[1]ACS_16_5YR_B25063_with_ann!AC63","v":12},{"$f":"[1]ACS_16_5YR_B25063_with_ann!AD63","v":0},{"$f":"[1]ACS_16_5YR_B25063_with_ann!AE63","v":12},{"$f":"[1]ACS_16_5YR_B25063_with_ann!AF63","v":0},{"$f":"[1]ACS_16_5YR_B25063_with_ann!AG63","v":12},{"$f":"[1]ACS_16_5YR_B25063_with_ann!AH63","v":6},{"$f":"[1]ACS_16_5YR_B25063_with_ann!AI63","v":8},{"$f":"[1]ACS_16_5YR_B25063_with_ann!AJ63","v":19},{"$f":"[1]ACS_16_5YR_B25063_with_ann!AK63","v":21},{"$f":"[1]ACS_16_5YR_B25063_with_ann!AL63","v":35},{"$f":"[1]ACS_16_5YR_B25063_with_ann!AM63","v":34},{"$f":"[1]ACS_16_5YR_B25063_with_ann!AN63","v":15},{"$f":"[1]ACS_16_5YR_B25063_with_ann!AO63","v":25},{"$f":"[1]ACS_16_5YR_B25063_with_ann!AP63","v":75},{"$f":"[1]ACS_16_5YR_B25063_with_ann!AQ63","v":43},{"$f":"[1]ACS_16_5YR_B25063_with_ann!AR63","v":54},{"$f":"[1]ACS_16_5YR_B25063_with_ann!AS63","v":37},{"$f":"[1]ACS_16_5YR_B25063_with_ann!AT63","v":11},{"$f":"[1]ACS_16_5YR_B25063_with_ann!AU63","v":12},{"$f":"[1]ACS_16_5YR_B25063_with_ann!AV63","v":0},{"$f":"[1]ACS_16_5YR_B25063_with_ann!AW63","v":12},{"$f":"[1]ACS_16_5YR_B25063_with_ann!AX63","v":0},{"$f":"[1]ACS_16_5YR_B25063_with_ann!AY63","v":12},{"$f":"[1]ACS_16_5YR_B25063_with_ann!AZ63","v":0},{"$f":"[1]ACS_16_5YR_B25063_with_ann!BA63","v":12},{"$f":"[1]ACS_16_5YR_B25063_with_ann!BB63","v":0},{"$f":"[1]ACS_16_5YR_B25063_with_ann!BC63","v":12},{"$f":"[1]ACS_16_5YR_B25063_with_ann!BD63","v":11},{"$f":"[1]ACS_16_5YR_B25063_with_ann!BE63","v":17},{"$f":"[1]ACS_16_5YR_B25064_with_ann!D63","v":1097},{"$f":"[1]ACS_16_5YR_B25064_with_ann!E63","v":98},null,"Troy"]
["06000US3300578420","0600000US3300582660","060",{"$f":"[1]ACS_16_5YR_B25063_with_ann!C64","v":"Walpole"},{"$f":"[1]ACS_16_5YR_B25063_with_ann!D64","v":482},{"$f":"[1]ACS_16_5YR_B25063_with_ann!E64","v":141},{"$f":"[1]ACS_16_5YR_B25063_with_ann!F64","v":455},{"$f":"[1]ACS_16_5YR_B25063_with_ann!G64","v":133},{"$f":"[1]ACS_16_5YR_B25063_with_ann!H64","v":21},{"$f":"[1]ACS_16_5YR_B25063_with_ann!I64","v":32},{"$f":"[1]ACS_16_5YR_B25063_with_ann!J64","v":0},{"$f":"[1]ACS_16_5YR_B25063_with_ann!K64","v":12},{"$f":"[1]ACS_16_5YR_B25063_with_ann!L64","v":0},{"$f":"[1]ACS_16_5YR_B25063_with_ann!M64","v":12},{"$f":"[1]ACS_16_5YR_B25063_with_ann!N64","v":0},{"$f":"[1]ACS_16_5YR_B25063_with_ann!O64","v":12},{"$f":"[1]ACS_16_5YR_B25063_with_ann!P64","v":0},{"$f":"[1]ACS_16_5YR_B25063_with_ann!Q64","v":12},{"$f":"[1]ACS_16_5YR_B25063_with_ann!R64","v":0},{"$f":"[1]ACS_16_5YR_B25063_with_ann!S64","v":12},{"$f":"[1]ACS_16_5YR_B25063_with_ann!T64","v":0},{"$f":"[1]ACS_16_5YR_B25063_with_ann!U64","v":12},{"$f":"[1]ACS_16_5YR_B25063_with_ann!V64","v":20},{"$f":"[1]ACS_16_5YR_B25063_with_ann!W64","v":31},{"$f":"[1]ACS_16_5YR_B25063_with_ann!X64","v":0},{"$f":"[1]ACS_16_5YR_B25063_with_ann!Y64","v":12},{"$f":"[1]ACS_16_5YR_B25063_with_ann!Z64","v":57},{"$f":"[1]ACS_16_5YR_B25063_with_ann!AA64","v":78},{"$f":"[1]ACS_16_5YR_B25063_with_ann!AB64","v":0},{"$f":"[1]ACS_16_5YR_B25063_with_ann!AC64","v":12},{"$f":"[1]ACS_16_5YR_B25063_with_ann!AD64","v":0},{"$f":"[1]ACS_16_5YR_B25063_with_ann!AE64","v":12},{"$f":"[1]ACS_16_5YR_B25063_with_ann!AF64","v":4},{"$f":"[1]ACS_16_5YR_B25063_with_ann!AG64","v":8},{"$f":"[1]ACS_16_5YR_B25063_with_ann!AH64","v":0},{"$f":"[1]ACS_16_5YR_B25063_with_ann!AI64","v":12},{"$f":"[1]ACS_16_5YR_B25063_with_ann!AJ64","v":7},{"$f":"[1]ACS_16_5YR_B25063_with_ann!AK64","v":11},{"$f":"[1]ACS_16_5YR_B25063_with_ann!AL64","v":42},{"$f":"[1]ACS_16_5YR_B25063_with_ann!AM64","v":40},{"$f":"[1]ACS_16_5YR_B25063_with_ann!AN64","v":32},{"$f":"[1]ACS_16_5YR_B25063_with_ann!AO64","v":38},{"$f":"[1]ACS_16_5YR_B25063_with_ann!AP64","v":80},{"$f":"[1]ACS_16_5YR_B25063_with_ann!AQ64","v":61},{"$f":"[1]ACS_16_5YR_B25063_with_ann!AR64","v":88},{"$f":"[1]ACS_16_5YR_B25063_with_ann!AS64","v":74},{"$f":"[1]ACS_16_5YR_B25063_with_ann!AT64","v":88},{"$f":"[1]ACS_16_5YR_B25063_with_ann!AU64","v":68},{"$f":"[1]ACS_16_5YR_B25063_with_ann!AV64","v":16},{"$f":"[1]ACS_16_5YR_B25063_with_ann!AW64","v":28},{"$f":"[1]ACS_16_5YR_B25063_with_ann!AX64","v":0},{"$f":"[1]ACS_16_5YR_B25063_with_ann!AY64","v":12},{"$f":"[1]ACS_16_5YR_B25063_with_ann!AZ64","v":0},{"$f":"[1]ACS_16_5YR_B25063_with_ann!BA64","v":12},{"$f":"[1]ACS_16_5YR_B25063_with_ann!BB64","v":0},{"$f":"[1]ACS_16_5YR_B25063_with_ann!BC64","v":12},{"$f":"[1]ACS_16_5YR_B25063_with_ann!BD64","v":27},{"$f":"[1]ACS_16_5YR_B25063_with_ann!BE64","v":30},{"$f":"[1]ACS_16_5YR_B25064_with_ann!D64","v":1139},{"$f":"[1]ACS_16_5YR_B25064_with_ann!E64","v":228},null,"Walpole"]
["06000US3300582660","0600000US3300585540","060",{"$f":"[1]ACS_16_5YR_B25063_with_ann!C65","v":"Westmoreland"},{"$f":"[1]ACS_16_5YR_B25063_with_ann!D65","v":98},{"$f":"[1]ACS_16_5YR_B25063_with_ann!E65","v":54},{"$f":"[1]ACS_16_5YR_B25063_with_ann!F65","v":79},{"$f":"[1]ACS_16_5YR_B25063_with_ann!G65","v":51},{"$f":"[1]ACS_16_5YR_B25063_with_ann!H65","v":0},{"$f":"[1]ACS_16_5YR_B25063_with_ann!I65","v":12},{"$f":"[1]ACS_16_5YR_B25063_with_ann!J65","v":0},{"$f":"[1]ACS_16_5YR_B25063_with_ann!K65","v":12},{"$f":"[1]ACS_16_5YR_B25063_with_ann!L65","v":0},{"$f":"[1]ACS_16_5YR_B25063_with_ann!M65","v":12},{"$f":"[1]ACS_16_5YR_B25063_with_ann!N65","v":0},{"$f":"[1]ACS_16_5YR_B25063_with_ann!O65","v":12},{"$f":"[1]ACS_16_5YR_B25063_with_ann!P65","v":0},{"$f":"[1]ACS_16_5YR_B25063_with_ann!Q65","v":12},{"$f":"[1]ACS_16_5YR_B25063_with_ann!R65","v":0},{"$f":"[1]ACS_16_5YR_B25063_with_ann!S65","v":12},{"$f":"[1]ACS_16_5YR_B25063_with_ann!T65","v":0},{"$f":"[1]ACS_16_5YR_B25063_with_ann!U65","v":12},{"$f":"[1]ACS_16_5YR_B25063_with_ann!V65","v":0},{"$f":"[1]ACS_16_5YR_B25063_with_ann!W65","v":12},{"$f":"[1]ACS_16_5YR_B25063_with_ann!X65","v":0},{"$f":"[1]ACS_16_5YR_B25063_with_ann!Y65","v":12},{"$f":"[1]ACS_16_5YR_B25063_with_ann!Z65","v":0},{"$f":"[1]ACS_16_5YR_B25063_with_ann!AA65","v":12},{"$f":"[1]ACS_16_5YR_B25063_with_ann!AB65","v":0},{"$f":"[1]ACS_16_5YR_B25063_with_ann!AC65","v":12},{"$f":"[1]ACS_16_5YR_B25063_with_ann!AD65","v":0},{"$f":"[1]ACS_16_5YR_B25063_with_ann!AE65","v":12},{"$f":"[1]ACS_16_5YR_B25063_with_ann!AF65","v":0},{"$f":"[1]ACS_16_5YR_B25063_with_ann!AG65","v":12},{"$f":"[1]ACS_16_5YR_B25063_with_ann!AH65","v":0},{"$f":"[1]ACS_16_5YR_B25063_with_ann!AI65","v":12},{"$f":"[1]ACS_16_5YR_B25063_with_ann!AJ65","v":10},{"$f":"[1]ACS_16_5YR_B25063_with_ann!AK65","v":17},{"$f":"[1]ACS_16_5YR_B25063_with_ann!AL65","v":0},{"$f":"[1]ACS_16_5YR_B25063_with_ann!AM65","v":12},{"$f":"[1]ACS_16_5YR_B25063_with_ann!AN65","v":0},{"$f":"[1]ACS_16_5YR_B25063_with_ann!AO65","v":12},{"$f":"[1]ACS_16_5YR_B25063_with_ann!AP65","v":48},{"$f":"[1]ACS_16_5YR_B25063_with_ann!AQ65","v":43},{"$f":"[1]ACS_16_5YR_B25063_with_ann!AR65","v":9},{"$f":"[1]ACS_16_5YR_B25063_with_ann!AS65","v":11},{"$f":"[1]ACS_16_5YR_B25063_with_ann!AT65","v":3},{"$f":"[1]ACS_16_5YR_B25063_with_ann!AU65","v":5},{"$f":"[1]ACS_16_5YR_B25063_with_ann!AV65","v":9},{"$f":"[1]ACS_16_5YR_B25063_with_ann!AW65","v":14},{"$f":"[1]ACS_16_5YR_B25063_with_ann!AX65","v":0},{"$f":"[1]ACS_16_5YR_B25063_with_ann!AY65","v":12},{"$f":"[1]ACS_16_5YR_B25063_with_ann!AZ65","v":0},{"$f":"[1]ACS_16_5YR_B25063_with_ann!BA65","v":12},{"$f":"[1]ACS_16_5YR_B25063_with_ann!BB65","v":0},{"$f":"[1]ACS_16_5YR_B25063_with_ann!BC65","v":12},{"$f":"[1]ACS_16_5YR_B25063_with_ann!BD65","v":19},{"$f":"[1]ACS_16_5YR_B25063_with_ann!BE65","v":19},{"$f":"[1]ACS_16_5YR_B25064_with_ann!D65","v":1154},{"$f":"[1]ACS_16_5YR_B25064_with_ann!E65","v":81},null,"Westmoreland"]
["06000US3300585540","0600000US3300500820","060",{"$f":"[1]ACS_16_5YR_B25063_with_ann!C66","v":"Winchester"},{"$f":"[1]ACS_16_5YR_B25063_with_ann!D66","v":565},{"$f":"[1]ACS_16_5YR_B25063_with_ann!E66","v":145},{"$f":"[1]ACS_16_5YR_B25063_with_ann!F66","v":523},{"$f":"[1]ACS_16_5YR_B25063_with_ann!G66","v":136},{"$f":"[1]ACS_16_5YR_B25063_with_ann!H66","v":0},{"$f":"[1]ACS_16_5YR_B25063_with_ann!I66","v":12},{"$f":"[1]ACS_16_5YR_B25063_with_ann!J66","v":0},{"$f":"[1]ACS_16_5YR_B25063_with_ann!K66","v":12},{"$f":"[1]ACS_16_5YR_B25063_with_ann!L66","v":0},{"$f":"[1]ACS_16_5YR_B25063_with_ann!M66","v":12},{"$f":"[1]ACS_16_5YR_B25063_with_ann!N66","v":0},{"$f":"[1]ACS_16_5YR_B25063_with_ann!O66","v":12},{"$f":"[1]ACS_16_5YR_B25063_with_ann!P66","v":0},{"$f":"[1]ACS_16_5YR_B25063_with_ann!Q66","v":12},{"$f":"[1]ACS_16_5YR_B25063_with_ann!R66","v":30},{"$f":"[1]ACS_16_5YR_B25063_with_ann!S66","v":50},{"$f":"[1]ACS_16_5YR_B25063_with_ann!T66","v":0},{"$f":"[1]ACS_16_5YR_B25063_with_ann!U66","v":12},{"$f":"[1]ACS_16_5YR_B25063_with_ann!V66","v":16},{"$f":"[1]ACS_16_5YR_B25063_with_ann!W66","v":26},{"$f":"[1]ACS_16_5YR_B25063_with_ann!X66","v":9},{"$f":"[1]ACS_16_5YR_B25063_with_ann!Y66","v":14},{"$f":"[1]ACS_16_5YR_B25063_with_ann!Z66","v":6},{"$f":"[1]ACS_16_5YR_B25063_with_ann!AA66","v":9},{"$f":"[1]ACS_16_5YR_B25063_with_ann!AB66","v":0},{"$f":"[1]ACS_16_5YR_B25063_with_ann!AC66","v":12},{"$f":"[1]ACS_16_5YR_B25063_with_ann!AD66","v":0},{"$f":"[1]ACS_16_5YR_B25063_with_ann!AE66","v":12},{"$f":"[1]ACS_16_5YR_B25063_with_ann!AF66","v":10},{"$f":"[1]ACS_16_5YR_B25063_with_ann!AG66","v":16},{"$f":"[1]ACS_16_5YR_B25063_with_ann!AH66","v":0},{"$f":"[1]ACS_16_5YR_B25063_with_ann!AI66","v":12},{"$f":"[1]ACS_16_5YR_B25063_with_ann!AJ66","v":0},{"$f":"[1]ACS_16_5YR_B25063_with_ann!AK66","v":12},{"$f":"[1]ACS_16_5YR_B25063_with_ann!AL66","v":11},{"$f":"[1]ACS_16_5YR_B25063_with_ann!AM66","v":19},{"$f":"[1]ACS_16_5YR_B25063_with_ann!AN66","v":123},{"$f":"[1]ACS_16_5YR_B25063_with_ann!AO66","v":70},{"$f":"[1]ACS_16_5YR_B25063_with_ann!AP66","v":177},{"$f":"[1]ACS_16_5YR_B25063_with_ann!AQ66","v":93},{"$f":"[1]ACS_16_5YR_B25063_with_ann!AR66","v":17},{"$f":"[1]ACS_16_5YR_B25063_with_ann!AS66","v":27},{"$f":"[1]ACS_16_5YR_B25063_with_ann!AT66","v":100},{"$f":"[1]ACS_16_5YR_B25063_with_ann!AU66","v":67},{"$f":"[1]ACS_16_5YR_B25063_with_ann!AV66","v":24},{"$f":"[1]ACS_16_5YR_B25063_with_ann!AW66","v":28},{"$f":"[1]ACS_16_5YR_B25063_with_ann!AX66","v":0},{"$f":"[1]ACS_16_5YR_B25063_with_ann!AY66","v":12},{"$f":"[1]ACS_16_5YR_B25063_with_ann!AZ66","v":0},{"$f":"[1]ACS_16_5YR_B25063_with_ann!BA66","v":12},{"$f":"[1]ACS_16_5YR_B25063_with_ann!BB66","v":0},{"$f":"[1]ACS_16_5YR_B25063_with_ann!BC66","v":12},{"$f":"[1]ACS_16_5YR_B25063_with_ann!BD66","v":42},{"$f":"[1]ACS_16_5YR_B25063_with_ann!BE66","v":51},{"$f":"[1]ACS_16_5YR_B25064_with_ann!D66","v":1080},{"$f":"[1]ACS_16_5YR_B25064_with_ann!E66","v":83},null,"Winchester"]
[]
[]
[null,null,null,null,null,null,null,null,null,null,null,null,null,null,null,null,null,null,null,null,null,null,null,null,null,null,null,null,null,null,null,null,null,null,null,null,null,null,null,null,null,null,{"$f":"$D$22","v":"Troy"},null,{"$f":"$D$23","v":"Walpole"},null,{"$f":"$D$24","v":"Westmoreland"},null,{"$f":"$D$25","v":"Winchester"}]
[null,null,null,null,{"$f":"$D$3","v":"Alstead"},null,{"$f":"$D$4","v":"Chesterfield"},null,{"$f":"$D$5","v":"Dublin"},null,{"$f":"$D$6","v":"Fitzwilliam"},null,{"$f":"$D$7","v":"Gilsum"},null,{"$f":"$D$8","v":"Harrisville"},null,{"$f":"$D$9","v":"Hinsdale"},null,{"$f":"$D$10","v":"Jaffrey"},null,{"$f":"$D$11","v":"Keene"},null,{"$f":"$D$12","v":"Marlborough"},null,{"$f":"$D$13","v":"Marlow"},null,{"$f":"$D$14","v":"Nelson"},null,{"$f":"$D$15","v":"Richmond"},null,{"$f":"$D$16","v":"Rindge"},null,{"$f":"$D$17","v":"Roxbury"},null,{"$f":"$D$18","v":"Stoddard"},null,{"$f":"$D$19","v":"Sullivan"},null,{"$f":"$D$20","v":"Surry"},null,{"$f":"$D$21","v":"Swanzey"},null,{"$f":"$D$21","v":"Swanzey"},null,{"$f":"$D$21","v":"Swanzey"},null,{"$f":"$D$21","v":"Swanzey"},null,{"$f":"$D$21","v":"Swanzey"}]
[null,null,null,null,"Estimate","Margin of Error","Estimate","Margin of Error","Estimate","Margin of Error","Estimate","Margin of Error","Estimate","Margin of Error","Estimate","Margin of Error","Estimate","Margin of Error","Estimate","Margin of Error","Estimate","Margin of Error","Estimate","Margin of Error","Estimate","Margin of Error","Estimate","Margin of Error","Estimate","Margin of Error","Estimate","Margin of Error","Estimate","Margin of Error","Estimate","Margin of Error","Estimate","Margin of Error","Estimate","Margin of Error","Estimate","Margin of Error"]
[null,null,null,"Estimate!!Total:",216,81,139,90,105,41,56,29,25,14,30,15,221,105,446,167,4497,356,334,92,35,29,21,11,10,9,261,119,1,3,31,18,41,21,20,9,1018,252,233,73,482,141,98,54,565,145]
[null,null,null,"Estimate!!Total:!!With cash rent:",167,71,80,62,73,34,41,30,25,14,28,15,193,98,429,168,4444,355,318,93,27,26,21,11,7,8,240,109,0,12,23,16,40,21,16,8,983,254,222,72,455,133,79,51,523,136]
[null,null,null,"Estimate!!Total:!!With cash rent:!!Less than $100",0,12,0,12,0,12,0,12,0,12,0,12,0,12,0,17,0,22,0,12,0,12,0,12,0,12,0,17,0,12,0,12,0,12,0,12,0,17,7,11,21,32,0,12,0,12]
[null,null,null,"Estimate!!Total:!!With cash rent:!!$100 to $149",0,12,0,12,0,12,0,12,0,12,0,12,0,12,0,17,46,71,0,12,0,12,0,12,0,12,0,17,0,12,0,12,0,12,0,12,0,17,0,12,0,12,0,12,0,12]
[null,null,null,"Estimate!!Total:!!With cash rent:!!$150 to $199",0,12,0,12,0,12,0,12,0,12,0,12,0,12,28,42,14,24,6,11,0,12,0,12,0,12,0,17,0,12,0,12,0,12,0,12,0,17,0,12,0,12,0,12,0,12]
[null,null,null,"Estimate!!Total:!!With cash rent:!!$200 to $249",0,12,0,12,0,12,0,12,0,12,0,12,0,12,0,17,10,16,8,12,0,12,0,12,0,12,0,17,0,12,0,12,0,12,0,12,0,17,0,12,0,12,0,12,0,12]
[null,null,null,"Estimate!!Total:!!With cash rent:!!$250 to $299",0,12,0,12,0,12,0,12,0,12,0,12,0,12,0,17,122,87,0,12,2,3,0,12,0,12,0,17,0,12,0,12,0,12,0,12,34,36,0,12,0,12,0,12,0,12]
[null,null,null,"Estimate!!Total:!!With cash rent:!!$300 to $349",35,47,0,12,0,12,0,12,0,12,0,12,15,23,0,17,52,42,11,17,0,12,0,12,0,12,0,17,0,12,0,12,0,12,0,12,15,25,0,12,0,12,0,12,30,50]
[null,null,null,"Estimate!!Total:!!With cash rent:!!$350 to $399",20,29,0,12,0,12,0,12,0,12,0,12,0,12,0,17,53,50,6,9,0,12,0,12,0,12,0,17,0,12,0,12,0,12,0,12,52,77,0,12,0,12,0,12,0,12]
[null,null,null,"Estimate!!Total:!!With cash rent:!!$400 to $449",0,12,0,12,0,12,0,12,0,12,0,12,0,12,0,17,37,39,16,22,0,12,0,12,0,12,0,17,0,12,0,12,0,12,0,12,32,41,0,12,20,31,0,12,16,26]
[null,null,null,"Estimate!!Total:!!With cash rent:!!$450 to $499",0,12,0,12,0,12,0,12,0,12,0,12,29,47,27,43,105,77,0,12,0,12,0,12,0,12,0,17,0,12,0,12,0,12,0,12,18,32,0,12,0,12,0,12,9,14]
[null,null,null,"Estimate!!Total:!!With cash rent:!!$500 to $549",0,12,0,12,0,12,0,12,0,12,9,12,0,12,0,17,44,44,5,8,0,12,0,12,0,12,0,17,0,12,0,12,0,12,0,12,21,31,0,12,57,78,0,12,6,9]
[null,null,null,"Estimate!!Total:!!With cash rent:!!$550 to $599",0,12,0,12,0,12,0,12,0,12,0,12,0,12,21,33,65,59,17,21,0,12,0,12,0,12,0,17,0,12,0,12,0,12,0,12,25,34,0,12,0,12,0,12,0,12]
[null,null,null,"Estimate!!Total:!!With cash rent:!!$600 to $649",0,12,0,12,0,12,0,12,0,12,0,12,22,25,10,17,110,83,0,12,0,12,0,12,0,12,0,17,0,12,0,12,0,12,0,12,0,17,0,12,0,12,0,12,0,12]
[null,null,null,"Estimate!!Total:!!With cash rent:!!$650 to $699",0,12,0,12,5,5,0,12,0,12,0,12,0,12,0,17,14,19,5,8,0,12,3,6,0,12,0,17,0,12,0,12,0,12,0,12,0,17,0,12,4,8,0,12,10,16]
[null,null,null,"Estimate!!Total:!!With cash rent:!!$700 to $749",0,12,0,12,4,6,0,12,0,12,0,12,0,12,0,17,80,57,17,14,0,12,0,12,0,12,0,17,0,12,0,12,0,12,0,12,0,17,6,8,0,12,0,12,0,12]
[null,null,null,"Estimate!!Total:!!With cash rent:!!$750 to $799",15,21,0,12,3,6,0,12,3,4,0,12,0,12,27,35,61,46,4,7,0,12,0,12,0,12,7,10,0,12,0,12,0,12,0,12,5,9,19,21,7,11,10,17,0,12]
[null,null,null,"Estimate!!Total:!!With cash rent:!!$800 to $899",14,12,29,38,0,12,7,10,0,12,3,4,9,14,43,38,374,127,18,17,0,12,4,5,0,12,46,58,0,12,0,12,2,3,3,4,58,69,35,34,42,40,0,12,11,19]
[null,null,null,"Estimate!!Total:!!With cash rent:!!$900 to $999",11,14,0,12,4,5,7,10,2,4,0,12,14,22,102,107,466,175,39,36,0,12,1,2,0,12,46,44,0,12,3,4,17,19,0,12,40,40,15,25,32,38,0,12,123,70]
[null,null,null,"Estimate!!Total:!!With cash rent:!!$1,000 to $1,249",37,25,0,12,22,25,17,25,2,5,0,12,72,70,43,40,930,201,25,26,21,25,9,6,3,4,71,64,0,12,0,12,5,5,0,12,128,94,75,43,80,61,48,43,177,93]
[null,null,null,"Estimate!!Total:!!With cash rent:!!$1,250 to $1,499",8,9,33,45,17,15,0,12,10,9,9,8,0,12,21,27,585,149,70,51,0,12,0,12,4,6,8,12,0,12,3,4,4,5,5,5,184,110,54,37,88,74,9,11,17,27]
[null,null,null,"Estimate!!Total:!!With cash rent:!!$1,500 to $1,999",21,31,0,12,15,13,10,9,8,8,7,6,32,43,33,36,1023,284,63,65,4,6,2,3,0,12,62,46,0,12,6,9,5,6,2,3,353,183,11,12,88,68,3,5,100,67]
[null,null,null,"Estimate!!Total:!!With cash rent:!!$2,000 to $2,499",0,12,18,27,3,4,0,12,0,12,0,12,0,12,74,91,190,102,3,6,0,12,2,2,0,12,0,17,0,12,11,14,7,7,6,5,18,30,0,12,16,28,9,14,24,28]
[null,null,null,"Estimate!!Total:!!With cash rent:!!$2,500 to $2,999",6,8,0,12,0,12,0,12,0,12,0,12,0,12,0,17,31,41,5,7,0,12,0,12,0,12,0,17,0,12,0,12,0,12,0,12,0,17,0,12,0,12,0,12,0,12]
[null,null,null,"Estimate!!Total:!!With cash rent:!!$3,000 to $3,499",0,12,0,12,0,12,0,12,0,12,0,12,0,12,0,17,0,22,0,12,0,12,0,12,0,12,0,17,0,12,0,12,0,12,0,12,0,17,0,12,0,12,0,12,0,12]
[null,null,null,"Estimate!!Total:!!With cash rent:!!$3,500 or more",0,12,0,12,0,12,0,12,0,12,0,12,0,12,0,17,32,37,0,12,0,12,0,12,0,12,0,17,0,12,0,12,0,12,0,12,0,17,0,12,0,12,0,12,0,12]
[null,null,null,"Estimate!!Total:!!No cash rent",49,40,59,66,32,19,15,15,0,12,2,3,28,42,17,28,53,58,16,13,8,6,0,12,3,6,21,27,1,3,8,9,1,4,4,5,35,34,11,17,27,30,19,19,42,51]
[]
["Table B25064"]
[]
[null,null,null,"Estimate!!Median gross rent",896,265,1333,643,1233,184,1096,201,1388,142,1306,659,1026,330,957,102,1153,58,1070,336,1137,59,1069,181,"-","**",1074,182,"-","**",1958,558,1050,519,1500,828,1336,191,1097,98,1139,228,1154,81,1080,83]

{"sheet":"SData_B25070_&_B25074GRAsPerInc","index":91,"n_rows":107,"n_cols":156,"rows_kept":107,"cut":false,"hidden":true,"merged":[]}
["GEO_ID","GEO_ID2","SUMLEVEL",{"$f":"[1]ACS_16_5YR_B25070_with_ann!C1","v":"NAME"},{"$f":"[1]ACS_16_5YR_B25070_with_ann!D1","v":"B25070_001E"},{"$f":"[1]ACS_16_5YR_B25070_with_ann!E1","v":"B25070_001M"},{"$f":"[1]ACS_16_5YR_B25070_with_ann!F1","v":"B25070_002E"},{"$f":"[1]ACS_16_5YR_B25070_with_ann!G1","v":"B25070_002M"},{"$f":"[1]ACS_16_5YR_B25070_with_ann!H1","v":"B25070_003E"},{"$f":"[1]ACS_16_5YR_B25070_with_ann!I1","v":"B25070_003M"},{"$f":"[1]ACS_16_5YR_B25070_with_ann!J1","v":"B25070_004E"},{"$f":"[1]ACS_16_5YR_B25070_with_ann!K1","v":"B25070_004M"},{"$f":"[1]ACS_16_5YR_B25070_with_ann!L1","v":"B25070_005E"},{"$f":"[1]ACS_16_5YR_B25070_with_ann!M1","v":"B25070_005M"},{"$f":"[1]ACS_16_5YR_B25070_with_ann!N1","v":"B25070_006E"},{"$f":"[1]ACS_16_5YR_B25070_with_ann!O1","v":"B25070_006M"},{"$f":"[1]ACS_16_5YR_B25070_with_ann!P1","v":"B25070_007E"},{"$f":"[1]ACS_16_5YR_B25070_with_ann!Q1","v":"B25070_007M"},{"$f":"[1]ACS_16_5YR_B25070_with_ann!R1","v":"B25070_008E"},{"$f":"[1]ACS_16_5YR_B25070_with_ann!S1","v":"B25070_008M"},{"$f":"[1]ACS_16_5YR_B25070_with_ann!T1","v":"B25070_009E"},{"$f":"[1]ACS_16_5YR_B25070_with_ann!U1","v":"B25070_009M"},{"$f":"[1]ACS_16_5YR_B25070_with_ann!V1","v":"B25070_010E"},{"$f":"[1]ACS_16_5YR_B25070_with_ann!W1","v":"B25070_010M"},{"$f":"[1]ACS_16_5YR_B25070_with_ann!X1","v":"B25070_011E"},{"$f":"[1]ACS_16_5YR_B25070_with_ann!Y1","v":"B25070_011M"},{"$f":"[1]ACS_16_5YR_B25074_with_ann!D1","v":"B25074_001E"},{"$f":"[1]ACS_16_5YR_B25074_with_ann!E1","v":"B25074_001M"},{"$f":"[1]ACS_16_5YR_B25074_with_ann!F1","v":"B25074_002E"},{"$f":"[1]ACS_16_5YR_B25074_with_ann!G1","v":"B25074_002M"},{"$f":"[1]ACS_16_5YR_B25074_with_ann!H1","v":"B25074_003E"},{"$f":"[1]ACS_16_5YR_B25074_with_ann!I1","v":"B25074_003M"},{"$f":"[1]ACS_16_5YR_B25074_with_ann!J1","v":"B25074_004E"},{"$f":"[1]ACS_16_5YR_B25074_with_ann!K1","v":"B25074_004M"},{"$f":"[1]ACS_16_5YR_B25074_with_ann!L1","v":"B25074_005E"},{"$f":"[1]ACS_16_5YR_B25074_with_ann!M1","v":"B25074_005M"},{"$f":"[1]ACS_16_5YR_B25074_with_ann!N1","v":"B25074_006E"},{"$f":"[1]ACS_16_5YR_B25074_with_ann!O1","v":"B25074_006M"},{"$f":"[1]ACS_16_5YR_B25074_with_ann!P1","v":"B25074_007E"},{"$f":"[1]ACS_16_5YR_B25074_with_ann!Q1","v":"B25074_007M"},{"$f":"[1]ACS_16_5YR_B25074_with_ann!R1","v":"B25074_008E"},{"$f":"[1]ACS_16_5YR_B25074_with_ann!S1","v":"B25074_008M"},{"$f":"[1]ACS_16_5YR_B25074_with_ann!T1","v":"B25074_009E"},{"$f":"[1]ACS_16_5YR_B25074_with_ann!U1","v":"B25074_009M"},{"$f":"[1]ACS_16_5YR_B25074_with_ann!V1","v":"B25074_010E"},{"$f":"[1]ACS_16_5YR_B25074_with_ann!W1","v":"B25074_010M"},{"$f":"[1]ACS_16_5YR_B25074_with_ann!X1","v":"B25074_011E"},{"$f":"[1]ACS_16_5YR_B25074_with_ann!Y1","v":"B25074_011M"},{"$f":"[1]ACS_16_5YR_B25074_with_ann!Z1","v":"B25074_012E"},{"$f":"[1]ACS_16_5YR_B25074_with_ann!AA1","v":"B25074_012M"},{"$f":"[1]ACS_16_5YR_B25074_with_ann!AB1","v":"B25074_013E"},{"$f":"[1]ACS_16_5YR_B25074_with_ann!AC1","v":"B25074_013M"},{"$f":"[1]ACS_16_5YR_B25074_with_ann!AD1","v":"B25074_014E"},{"$f":"[1]ACS_16_5YR_B25074_with_ann!AE1","v":"B25074_014M"},{"$f":"[1]ACS_16_5YR_B25074_with_ann!AF1","v":"B25074_015E"},{"$f":"[1]ACS_16_5YR_B25074_with_ann!AG1","v":"B25074_015M"},{"$f":"[1]ACS_16_5YR_B25074_with_ann!AH1","v":"B25074_016E"},{"$f":"[1]ACS_16_5YR_B25074_with_ann!AI1","v":"B25074_016M"},{"$f":"[1]ACS_16_5YR_B25074_with_ann!AJ1","v":"B25074_017E"},{"$f":"[1]ACS_16_5YR_B25074_with_ann!AK1","v":"B25074_017M"},{"$f":"[1]ACS_16_5YR_B25074_with_ann!AL1","v":"B25074_018E"},{"$f":"[1]ACS_16_5YR_B25074_with_ann!AM1","v":"B25074_018M"},{"$f":"[1]ACS_16_5YR_B25074_with_ann!AN1","v":"B25074_019E"},{"$f":"[1]ACS_16_5YR_B25074_with_ann!AO1","v":"B25074_019M"},{"$f":"[1]ACS_16_5YR_B25074_with_ann!AP1","v":"B25074_020E"},{"$f":"[1]ACS_16_5YR_B25074_with_ann!AQ1","v":"B25074_020M"},{"$f":"[1]ACS_16_5YR_B25074_with_ann!AR1","v":"B25074_021E"},{"$f":"[1]ACS_16_5YR_B25074_with_ann!AS1","v":"B25074_021M"},{"$f":"[1]ACS_16_5YR_B25074_with_ann!AT1","v":"B25074_022E"},{"$f":"[1]ACS_16_5YR_B25074_with_ann!AU1","v":"B25074_022M"},{"$f":"[1]ACS_16_5YR_B25074_with_ann!AV1","v":"B25074_023E"},{"$f":"[1]ACS_16_5YR_B25074_with_ann!AW1","v":"B25074_023M"},{"$f":"[1]ACS_16_5YR_B25074_with_ann!AX1","v":"B25074_024E"},{"$f":"[1]ACS_16_5YR_B25074_with_ann!AY1","v":"B25074_024M"},{"$f":"[1]ACS_16_5YR_B25074_with_ann!AZ1","v":"B25074_025E"},{"$f":"[1]ACS_16_5YR_B25074_with_ann!BA1","v":"B25074_025M"},{"$f":"[1]ACS_16_5YR_B25074_with_ann!BB1","v":"B25074_026E"},{"$f":"[1]ACS_16_5YR_B25074_with_ann!BC1","v":"B25074_026M"},{"$f":"[1]ACS_16_5YR_B25074_with_ann!BD1","v":"B25074_027E"},{"$f":"[1]ACS_16_5YR_B25074_with_ann!BE1","v":"B25074_027M"},{"$f":"[1]ACS_16_5YR_B25074_with_ann!BF1","v":"B25074_028E"},{"$f":"[1]ACS_16_5YR_B25074_with_ann!BG1","v":"B25074_028M"},{"$f":"[1]ACS_16_5YR_B25074_with_ann!BH1","v":"B25074_029E"},{"$f":"[1]ACS_16_5YR_B25074_with_ann!BI1","v":"B25074_029M"},{"$f":"[1]ACS_16_5YR_B25074_with_ann!BJ1","v":"B25074_030E"},{"$f":"[1]ACS_16_5YR_B25074_with_ann!BK1","v":"B25074_030M"},{"$f":"[1]ACS_16_5YR_B25074_with_ann!BL1","v":"B25074_031E"},{"$f":"[1]ACS_16_5YR_B25074_with_ann!BM1","v":"B25074_031M"},{"$f":"[1]ACS_16_5YR_B25074_with_ann!BN1","v":"B25074_032E"},{"$f":"[1]ACS_16_5YR_B25074_with_ann!BO1","v":"B25074_032M"},{"$f":"[1]ACS_16_5YR_B25074_with_ann!BP1","v":"B25074_033E"},{"$f":"[1]ACS_16_5YR_B25074_with_ann!BQ1","v":"B25074_033M"},{"$f":"[1]ACS_16_5YR_B25074_with_ann!BR1","v":"B25074_034E"},{"$f":"[1]ACS_16_5YR_B25074_with_ann!BS1","v":"B25074_034M"},{"$f":"[1]ACS_16_5YR_B25074_with_ann!BT1","v":"B25074_035E"},{"$f":"[1]ACS_16_5YR_B25074_with_ann!BU1","v":"B25074_035M"},{"$f":"[1]ACS_16_5YR_B25074_with_ann!BV1","v":"B25074_036E"},{"$f":"[1]ACS_16_5YR_B25074_with_ann!BW1","v":"B25074_036M"},{"$f":"[1]ACS_16_5YR_B25074_with_ann!BX1","v":"B25074_037E"},{"$f":"[1]ACS_16_5YR_B25074_with_ann!BY1","v":"B25074_037M"},{"$f":"[1]ACS_16_5YR_B25074_with_ann!BZ1","v":"B25074_038E"},{"$f":"[1]ACS_16_5YR_B25074_with_ann!CA1","v":"B25074_038M"},{"$f":"[1]ACS_16_5YR_B25074_with_ann!CB1","v":"B25074_039E"},{"$f":"[1]ACS_16_5YR_B25074_with_ann!CC1","v":"B25074_039M"},{"$f":"[1]ACS_16_5YR_B25074_with_ann!CD1","v":"B25074_040E"},{"$f":"[1]ACS_16_5YR_B25074_with_ann!CE1","v":"B25074_040M"},{"$f":"[1]ACS_16_5YR_B25074_with_ann!CF1","v":"B25074_041E"},{"$f":"[1]ACS_16_5YR_B25074_with_ann!CG1","v":"B25074_041M"},{"$f":"[1]ACS_16_5YR_B25074_with_ann!CH1","v":"B25074_042E"},{"$f":"[1]ACS_16_5YR_B25074_with_ann!CI1","v":"B25074_042M"},{"$f":"[1]ACS_16_5YR_B25074_with_ann!CJ1","v":"B25074_043E"},{"$f":"[1]ACS_16_5YR_B25074_with_ann!CK1","v":"B25074_043M"},{"$f":"[1]ACS_16_5YR_B25074_with_ann!CL1","v":"B25074_044E"},{"$f":"[1]ACS_16_5YR_B25074_with_ann!CM1","v":"B25074_044M"},{"$f":"[1]ACS_16_5YR_B25074_with_ann!CN1","v":"B25074_045E"},{"$f":"[1]ACS_16_5YR_B25074_with_ann!CO1","v":"B25074_045M"},{"$f":"[1]ACS_16_5YR_B25074_with_ann!CP1","v":"B25074_046E"},{"$f":"[1]ACS_16_5YR_B25074_with_ann!CQ1","v":"B25074_046M"},{"$f":"[1]ACS_16_5YR_B25074_with_ann!CR1","v":"B25074_047E"},{"$f":"[1]ACS_16_5YR_B25074_with_ann!CS1","v":"B25074_047M"},{"$f":"[1]ACS_16_5YR_B25074_with_ann!CT1","v":"B25074_048E"},{"$f":"[1]ACS_16_5YR_B25074_with_ann!CU1","v":"B25074_048M"},{"$f":"[1]ACS_16_5YR_B25074_with_ann!CV1","v":"B25074_049E"},{"$f":"[1]ACS_16_5YR_B25074_with_ann!CW1","v":"B25074_049M"},{"$f":"[1]ACS_16_5YR_B25074_with_ann!CX1","v":"B25074_050E"},{"$f":"[1]ACS_16_5YR_B25074_with_ann!CY1","v":"B25074_050M"},{"$f":"[1]ACS_16_5YR_B25074_with_ann!CZ1","v":"B25074_051E"},{"$f":"[1]ACS_16_5YR_B25074_with_ann!DA1","v":"B25074_051M"},{"$f":"[1]ACS_16_5YR_B25074_with_ann!DB1","v":"B25074_052E"},{"$f":"[1]ACS_16_5YR_B25074_with_ann!DC1","v":"B25074_052M"},{"$f":"[1]ACS_16_5YR_B25074_with_ann!DD1","v":"B25074_053E"},{"$f":"[1]ACS_16_5YR_B25074_with_ann!DE1","v":"B25074_053M"},{"$f":"[1]ACS_16_5YR_B25074_with_ann!DF1","v":"B25074_054E"},{"$f":"[1]ACS_16_5YR_B25074_with_ann!DG1","v":"B25074_054M"},{"$f":"[1]ACS_16_5YR_B25074_with_ann!DH1","v":"B25074_055E"},{"$f":"[1]ACS_16_5YR_B25074_with_ann!DI1","v":"B25074_055M"},{"$f":"[1]ACS_16_5YR_B25074_with_ann!DJ1","v":"B25074_056E"},{"$f":"[1]ACS_16_5YR_B25074_with_ann!DK1","v":"B25074_056M"},{"$f":"[1]ACS_16_5YR_B25074_with_ann!DL1","v":"B25074_057E"},{"$f":"[1]ACS_16_5YR_B25074_with_ann!DM1","v":"B25074_057M"},{"$f":"[1]ACS_16_5YR_B25074_with_ann!DN1","v":"B25074_058E"},{"$f":"[1]ACS_16_5YR_B25074_with_ann!DO1","v":"B25074_058M"},{"$f":"[1]ACS_16_5YR_B25074_with_ann!DP1","v":"B25074_059E"},{"$f":"[1]ACS_16_5YR_B25074_with_ann!DQ1","v":"B25074_059M"},{"$f":"[1]ACS_16_5YR_B25074_with_ann!DR1","v":"B25074_060E"},{"$f":"[1]ACS_16_5YR_B25074_with_ann!DS1","v":"B25074_060M"},{"$f":"[1]ACS_16_5YR_B25074_with_ann!DT1","v":"B25074_061E"},{"$f":"[1]ACS_16_5YR_B25074_with_ann!DU1","v":"B25074_061M"},{"$f":"[1]ACS_16_5YR_B25074_with_ann!DV1","v":"B25074_062E"},{"$f":"[1]ACS_16_5YR_B25074_with_ann!DW1","v":"B25074_062M"},{"$f":"[1]ACS_16_5YR_B25074_with_ann!DX1","v":"B25074_063E"},{"$f":"[1]ACS_16_5YR_B25074_with_ann!DY1","v":"B25074_063M"},{"$f":"[1]ACS_16_5YR_B25074_with_ann!DZ1","v":"B25074_064E"},{"$f":"[1]ACS_16_5YR_B25074_with_ann!EA1","v":"B25074_064M"}]
["Geography Identifier","Geography Identifier","Geographic Summary Level",{"$f":"[1]ACS_16_5YR_B25070_with_ann!C2","v":"Geographic Area Name"},{"$f":"[1]ACS_16_5YR_B25070_with_ann!D2","v":"Estimate!!Total:"},{"$f":"[1]ACS_16_5YR_B25070_with_ann!E2","v":"Margin of Error!!Total:"},{"$f":"[1]ACS_16_5YR_B25070_with_ann!F2","v":"Estimate!!Total:!!Less than 10.0 percent"},{"$f":"[1]ACS_16_5YR_B25070_with_ann!G2","v":"Margin of Error!!Total:!!Less than 10.0 percent"},{"$f":"[1]ACS_16_5YR_B25070_with_ann!H2","v":"Estimate!!Total:!!10.0 to 14.9 percent"},{"$f":"[1]ACS_16_5YR_B25070_with_ann!I2","v":"Margin of Error!!Total:!!10.0 to 14.9 percent"},{"$f":"[1]ACS_16_5YR_B25070_with_ann!J2","v":"Estimate!!Total:!!15.0 to 19.9 percent"},{"$f":"[1]ACS_16_5YR_B25070_with_ann!K2","v":"Margin of Error!!Total:!!15.0 to 19.9 percent"},{"$f":"[1]ACS_16_5YR_B25070_with_ann!L2","v":"Estimate!!Total:!!20.0 to 24.9 percent"},{"$f":"[1]ACS_16_5YR_B25070_with_ann!M2","v":"Margin of Error!!Total:!!20.0 to 24.9 percent"},{"$f":"[1]ACS_16_5YR_B25070_with_ann!N2","v":"Estimate!!Total:!!25.0 to 29.9 percent"},{"$f":"[1]ACS_16_5YR_B25070_with_ann!O2","v":"Margin of Error!!Total:!!25.0 to 29.9 percent"},{"$f":"[1]ACS_16_5YR_B25070_with_ann!P2","v":"Estimate!!Total:!!30.0 to 34.9 percent"},{"$f":"[1]ACS_16_5YR_B25070_with_ann!Q2","v":"Margin of Error!!Total:!!30.0 to 34.9 percent"},{"$f":"[1]ACS_16_5YR_B25070_with_ann!R2","v":"Estimate!!Total:!!35.0 to 39.9 percent"},{"$f":"[1]ACS_16_5YR_B25070_with_ann!S2","v":"Margin of Error!!Total:!!35.0 to 39.9 percent"},{"$f":"[1]ACS_16_5YR_B25070_with_ann!T2","v":"Estimate!!Total:!!40.0 to 49.9 percent"},{"$f":"[1]ACS_16_5YR_B25070_with_ann!U2","v":"Margin of Error!!Total:!!40.0 to 49.9 percent"},{"$f":"[1]ACS_16_5YR_B25070_with_ann!V2","v":"Estimate!!Total:!!50.0 percent or more"},{"$f":"[1]ACS_16_5YR_B25070_with_ann!W2","v":"Margin of Error!!Total:!!50.0 percent or more"},{"$f":"[1]ACS_16_5YR_B25070_with_ann!X2","v":"Estimate!!Total:!!Not computed"},{"$f":"[1]ACS_16_5YR_B25070_with_ann!Y2","v":"Margin of Error!!Total:!!Not computed"},{"$f":"[1]ACS_16_5YR_B25074_with_ann!D2","v":"Estimate!!Total:"},{"$f":"[1]ACS_16_5YR_B25074_with_ann!E2","v":"Margin of Error!!Total:"},{"$f":"[1]ACS_16_5YR_B25074_with_ann!F2","v":"Estimate!!Total:!!Less than $10,000"},{"$f":"[1]ACS_16_5YR_B25074_with_ann!G2","v":"Margin of Error!!Total:!!Less than $10,000"},{"$f":"[1]ACS_16_5YR_B25074_with_ann!H2","v":"Estimate!!Total:!!Less than $10,000!!Less than 20.0 percent"},{"$f":"[1]ACS_16_5YR_B25074_with_ann!I2","v":"Margin of Error!!Total:!!Less than $10,000!!Less than 20.0 percent"},{"$f":"[1]ACS_16_5YR_B25074_with_ann!J2","v":"Estimate!!Total:!!Less than $10,000:!!20.0 to 24.9 percent"},{"$f":"[1]ACS_16_5YR_B25074_with_ann!K2","v":"Margin of Error!!Total:!!Less than $10,000:!!20.0 to 24.9 percent"},{"$f":"[1]ACS_16_5YR_B25074_with_ann!L2","v":"Estimate!!Total:!!Less than $10,000:!!25.0 to 29.9 percent"},{"$f":"[1]ACS_16_5YR_B25074_with_ann!M2","v":"Margin of Error!!Total:!!Less than $10,000:!!25.0 to 29.9 percent"},{"$f":"[1]ACS_16_5YR_B25074_with_ann!N2","v":"Estimate!!Total:!!Less than $10,000:!!30.0 to 34.9 percent"},{"$f":"[1]ACS_16_5YR_B25074_with_ann!O2","v":"Margin of Error!!Total:!!Less than $10,000:!!30.0 to 34.9 percent"},{"$f":"[1]ACS_16_5YR_B25074_with_ann!P2","v":"Estimate!!Total:!!Less than $10,000:!!35.0 to 39.9 percent"},{"$f":"[1]ACS_16_5YR_B25074_with_ann!Q2","v":"Margin of Error!!Total:!!Less than $10,000:!!35.0 to 39.9 percent"},{"$f":"[1]ACS_16_5YR_B25074_with_ann!R2","v":"Estimate!!Total:!!Less than $10,000:!!40.0 to 49.9 percent"},{"$f":"[1]ACS_16_5YR_B25074_with_ann!S2","v":"Margin of Error!!Total:!!Less than $10,000:!!40.0 to 49.9 percent"},{"$f":"[1]ACS_16_5YR_B25074_with_ann!T2","v":"Estimate!!Total:!!Less than $10,000:!!50.0 percent or more"},{"$f":"[1]ACS_16_5YR_B25074_with_ann!U2","v":"Margin of Error!!Total:!!Less than $10,000:!!50.0 percent or more"},{"$f":"[1]ACS_16_5YR_B25074_with_ann!V2","v":"Estimate!!Total:!!Less than $10,000:!!Not computed"},{"$f":"[1]ACS_16_5YR_B25074_with_ann!W2","v":"Margin of Error!!Total:!!Less than $10,000:!!Not computed"},{"$f":"[1]ACS_16_5YR_B25074_with_ann!X2","v":"Estimate!!Total:!!$10,000 to $19,999:"},{"$f":"[1]ACS_16_5YR_B25074_with_ann!Y2","v":"Margin of Error!!Total:!!$10,000 to $19,999:"},{"$f":"[1]ACS_16_5YR_B25074_with_ann!Z2","v":"Estimate!!Total:!!$10,000 to $19,999:!!Less than 20.0 percent"},{"$f":"[1]ACS_16_5YR_B25074_with_ann!AA2","v":"Margin of Error!!Total:!!$10,000 to $19,999:!!Less than 20.0 percent"},{"$f":"[1]ACS_16_5YR_B25074_with_ann!AB2","v":"Estimate!!Total:!!$10,000 to $19,999:!!20.0 to 24.9 percent"},{"$f":"[1]ACS_16_5YR_B25074_with_ann!AC2","v":"Margin of Error!!Total:!!$10,000 to $19,999:!!20.0 to 24.9 percent"},{"$f":"[1]ACS_16_5YR_B25074_with_ann!AD2","v":"Estimate!!Total:!!$10,000 to $19,999:!!25.0 to 29.9 percent"},{"$f":"[1]ACS_16_5YR_B25074_with_ann!AE2","v":"Margin of Error!!Total:!!$10,000 to $19,999:!!25.0 to 29.9 percent"},{"$f":"[1]ACS_16_5YR_B25074_with_ann!AF2","v":"Estimate!!Total:!!$10,000 to $19,999:!!30.0 to 34.9 percent"},{"$f":"[1]ACS_16_5YR_B25074_with_ann!AG2","v":"Margin of Error!!Total:!!$10,000 to $19,999:!!30.0 to 34.9 percent"},{"$f":"[1]ACS_16_5YR_B25074_with_ann!AH2","v":"Estimate!!Total:!!$10,000 to $19,999:!!35.0 to 39.9 percent"},{"$f":"[1]ACS_16_5YR_B25074_with_ann!AI2","v":"Margin of Error!!Total:!!$10,000 to $19,999:!!35.0 to 39.9 percent"},{"$f":"[1]ACS_16_5YR_B25074_with_ann!AJ2","v":"Estimate!!Total:!!$10,000 to $19,999:!!40.0 to 49.9 percent"},{"$f":"[1]ACS_16_5YR_B25074_with_ann!AK2","v":"Margin of Error!!Total:!!$10,000 to $19,999:!!40.0 to 49.9 percent"},{"$f":"[1]ACS_16_5YR_B25074_with_ann!AL2","v":"Estimate!!Total:!!$10,000 to $19,999:!!50.0 percent or more"},{"$f":"[1]ACS_16_5YR_B25074_with_ann!AM2","v":"Margin of Error!!Total:!!$10,000 to $19,999:!!50.0 percent or more"},{"$f":"[1]ACS_16_5YR_B25074_with_ann!AN2","v":"Estimate!!Total:!!$10,000 to $19,999:!!Not computed"},{"$f":"[1]ACS_16_5YR_B25074_with_ann!AO2","v":"Margin of Error!!Total:!!$10,000 to $19,999:!!Not computed"},{"$f":"[1]ACS_16_5YR_B25074_with_ann!AP2","v":"Estimate!!Total:!!$20,000 to $34,999:"},{"$f":"[1]ACS_16_5YR_B25074_with_ann!AQ2","v":"Margin of Error!!Total:!!$20,000 to $34,999:"},{"$f":"[1]ACS_16_5YR_B25074_with_ann!AR2","v":"Estimate!!Total:!!$20,000 to $34,999:!!Less than 20.0 percent"},{"$f":"[1]ACS_16_5YR_B25074_with_ann!AS2","v":"Margin of Error!!Total:!!$20,000 to $34,999:!!Less than 20.0 percent"},{"$f":"[1]ACS_16_5YR_B25074_with_ann!AT2","v":"Estimate!!Total:!!$20,000 to $34,999:!!20.0 to 24.9 percent"},{"$f":"[1]ACS_16_5YR_B25074_with_ann!AU2","v":"Margin of Error!!Total:!!$20,000 to $34,999:!!20.0 to 24.9 percent"},{"$f":"[1]ACS_16_5YR_B25074_with_ann!AV2","v":"Estimate!!Total:!!$20,000 to $34,999:!!25.0 to 29.9 percent"},{"$f":"[1]ACS_16_5YR_B25074_with_ann!AW2","v":"Margin of Error!!Total:!!$20,000 to $34,999:!!25.0 to 29.9 percent"},{"$f":"[1]ACS_16_5YR_B25074_with_ann!AX2","v":"Estimate!!Total:!!$20,000 to $34,999:!!30.0 to 34.9 percent"},{"$f":"[1]ACS_16_5YR_B25074_with_ann!AY2","v":"Margin of Error!!Total:!!$20,000 to $34,999:!!30.0 to 34.9 percent"},{"$f":"[1]ACS_16_5YR_B25074_with_ann!AZ2","v":"Estimate!!Total:!!$20,000 to $34,999:!!35.0 to 39.9 percent"},{"$f":"[1]ACS_16_5YR_B25074_with_ann!BA2","v":"Margin of Error!!Total:!!$20,000 to $34,999:!!35.0 to 39.9 percent"},{"$f":"[1]ACS_16_5YR_B25074_with_ann!BB2","v":"Estimate!!Total:!!$20,000 to $34,999:!!40.0 to 49.9 percent"},{"$f":"[1]ACS_16_5YR_B25074_with_ann!BC2","v":"Margin of Error!!Total:!!$20,000 to $34,999:!!40.0 to 49.9 percent"},{"$f":"[1]ACS_16_5YR_B25074_with_ann!BD2","v":"Estimate!!Total:!!$20,000 to $34,999:!!50.0 percent or more"},{"$f":"[1]ACS_16_5YR_B25074_with_ann!BE2","v":"Margin of Error!!Total:!!$20,000 to $34,999:!!50.0 percent or more"},{"$f":"[1]ACS_16_5YR_B25074_with_ann!BF2","v":"Estimate!!Total:!!$20,000 to $34,999:!!Not computed"},{"$f":"[1]ACS_16_5YR_B25074_with_ann!BG2","v":"Margin of Error!!Total:!!$20,000 to $34,999:!!Not computed"},{"$f":"[1]ACS_16_5YR_B25074_with_ann!BH2","v":"Estimate!!Total:!!$35,000 to $49,999:"},{"$f":"[1]ACS_16_5YR_B25074_with_ann!BI2","v":"Margin of Error!!Total:!!$35,000 to $49,999:"},{"$f":"[1]ACS_16_5YR_B25074_with_ann!BJ2","v":"Estimate!!Total:!!$35,000 to $49,999:!!Less than 20.0 percent"},{"$f":"[1]ACS_16_5YR_B25074_with_ann!BK2","v":"Margin of Error!!Total:!!$35,000 to $49,999:!!Less than 20.0 percent"},{"$f":"[1]ACS_16_5YR_B25074_with_ann!BL2","v":"Estimate!!Total:!!$35,000 to $49,999:!!20.0 to 24.9 percent"},{"$f":"[1]ACS_16_5YR_B25074_with_ann!BM2","v":"Margin of Error!!Total:!!$35,000 to $49,999:!!20.0 to 24.9 percent"},{"$f":"[1]ACS_16_5YR_B25074_with_ann!BN2","v":"Estimate!!Total:!!$35,000 to $49,999:!!25.0 to 29.9 percent"},{"$f":"[1]ACS_16_5YR_B25074_with_ann!BO2","v":"Margin of Error!!Total:!!$35,000 to $49,999:!!25.0 to 29.9 percent"},{"$f":"[1]ACS_16_5YR_B25074_with_ann!BP2","v":"Estimate!!Total:!!$35,000 to $49,999:!!30.0 to 34.9 percent"},{"$f":"[1]ACS_16_5YR_B25074_with_ann!BQ2","v":"Margin of Error!!Total:!!$35,000 to $49,999:!!30.0 to 34.9 percent"},{"$f":"[1]ACS_16_5YR_B25074_with_ann!BR2","v":"Estimate!!Total:!!$35,000 to $49,999:!!35.0 to 39.9 percent"},{"$f":"[1]ACS_16_5YR_B25074_with_ann!BS2","v":"Margin of Error!!Total:!!$35,000 to $49,999:!!35.0 to 39.9 percent"},{"$f":"[1]ACS_16_5YR_B25074_with_ann!BT2","v":"Estimate!!Total:!!$35,000 to $49,999:!!40.0 to 49.9 percent"},{"$f":"[1]ACS_16_5YR_B25074_with_ann!BU2","v":"Margin of Error!!Total:!!$35,000 to $49,999:!!40.0 to 49.9 percent"},{"$f":"[1]ACS_16_5YR_B25074_with_ann!BV2","v":"Estimate!!Total:!!$35,000 to $49,999:!!50.0 percent or more"},{"$f":"[1]ACS_16_5YR_B25074_with_ann!BW2","v":"Margin of Error!!Total:!!$35,000 to $49,999:!!50.0 percent or more"},{"$f":"[1]ACS_16_5YR_B25074_with_ann!BX2","v":"Estimate!!Total:!!$35,000 to $49,999:!!Not computed"},{"$f":"[1]ACS_16_5YR_B25074_with_ann!BY2","v":"Margin of Error!!Total:!!$35,000 to $49,999:!!Not computed"},{"$f":"[1]ACS_16_5YR_B25074_with_ann!BZ2","v":"Estimate!!Total:!!$50,000 to $74,999:"},{"$f":"[1]ACS_16_5YR_B25074_with_ann!CA2","v":"Margin of Error!!Total:!!$50,000 to $74,999:"},{"$f":"[1]ACS_16_5YR_B25074_with_ann!CB2","v":"Estimate!!Total:!!$50,000 to $74,999:!!Less than 20.0 percent"},{"$f":"[1]ACS_16_5YR_B25074_with_ann!CC2","v":"Margin of Error!!Total:!!$50,000 to $74,999:!!Less than 20.0 percent"},{"$f":"[1]ACS_16_5YR_B25074_with_ann!CD2","v":"Estimate!!Total:!!$50,000 to $74,999:!!20.0 to 24.9 percent"},{"$f":"[1]ACS_16_5YR_B25074_with_ann!CE2","v":"Margin of Error!!Total:!!$50,000 to $74,999:!!20.0 to 24.9 percent"},{"$f":"[1]ACS_16_5YR_B25074_with_ann!CF2","v":"Estimate!!Total:!!$50,000 to $74,999:!!25.0 to 29.9 percent"},{"$f":"[1]ACS_16_5YR_B25074_with_ann!CG2","v":"Margin of Error!!Total:!!$50,000 to $74,999:!!25.0 to 29.9 percent"},{"$f":"[1]ACS_16_5YR_B25074_with_ann!CH2","v":"Estimate!!Total:!!$50,000 to $74,999:!!30.0 to 34.9 percent"},{"$f":"[1]ACS_16_5YR_B25074_with_ann!CI2","v":"Margin of Error!!Total:!!$50,000 to $74,999:!!30.0 to 34.9 percent"},{"$f":"[1]ACS_16_5YR_B25074_with_ann!CJ2","v":"Estimate!!Total:!!$50,000 to $74,999:!!35.0 to 39.9 percent"},{"$f":"[1]ACS_16_5YR_B25074_with_ann!CK2","v":"Margin of Error!!Total:!!$50,000 to $74,999:!!35.0 to 39.9 percent"},{"$f":"[1]ACS_16_5YR_B25074_with_ann!CL2","v":"Estimate!!Total:!!$50,000 to $74,999:!!40.0 to 49.9 percent"},{"$f":"[1]ACS_16_5YR_B25074_with_ann!CM2","v":"Margin of Error!!Total:!!$50,000 to $74,999:!!40.0 to 49.9 percent"},{"$f":"[1]ACS_16_5YR_B25074_with_ann!CN2","v":"Estimate!!Total:!!$50,000 to $74,999:!!50.0 percent or more"},{"$f":"[1]ACS_16_5YR_B25074_with_ann!CO2","v":"Margin of Error!!Total:!!$50,000 to $74,999:!!50.0 percent or more"},{"$f":"[1]ACS_16_5YR_B25074_with_ann!CP2","v":"Estimate!!Total:!!$50,000 to $74,999:!!Not computed"},{"$f":"[1]ACS_16_5YR_B25074_with_ann!CQ2","v":"Margin of Error!!Total:!!$50,000 to $74,999:!!Not computed"},{"$f":"[1]ACS_16_5YR_B25074_with_ann!CR2","v":"Estimate!!Total:!!$75,000 to $99,999:"},{"$f":"[1]ACS_16_5YR_B25074_with_ann!CS2","v":"Margin of Error!!Total:!!$75,000 to $99,999:"},{"$f":"[1]ACS_16_5YR_B25074_with_ann!CT2","v":"Estimate!!Total:!!$75,000 to $99,999:!!Less than 20.0 percent"},{"$f":"[1]ACS_16_5YR_B25074_with_ann!CU2","v":"Margin of Error!!Total:!!$75,000 to $99,999:!!Less than 20.0 percent"},{"$f":"[1]ACS_16_5YR_B25074_with_ann!CV2","v":"Estimate!!Total:!!$75,000 to $99,999:!!20.0 to 24.9 percent"},{"$f":"[1]ACS_16_5YR_B25074_with_ann!CW2","v":"Margin of Error!!Total:!!$75,000 to $99,999:!!20.0 to 24.9 percent"},{"$f":"[1]ACS_16_5YR_B25074_with_ann!CX2","v":"Estimate!!Total:!!$75,000 to $99,999:!!25.0 to 29.9 percent"},{"$f":"[1]ACS_16_5YR_B25074_with_ann!CY2","v":"Margin of Error!!Total:!!$75,000 to $99,999:!!25.0 to 29.9 percent"},{"$f":"[1]ACS_16_5YR_B25074_with_ann!CZ2","v":"Estimate!!Total:!!$75,000 to $99,999:!!30.0 to 34.9 percent"},{"$f":"[1]ACS_16_5YR_B25074_with_ann!DA2","v":"Margin of Error!!Total:!!$75,000 to $99,999:!!30.0 to 34.9 percent"},{"$f":"[1]ACS_16_5YR_B25074_with_ann!DB2","v":"Estimate!!Total:!!$75,000 to $99,999:!!35.0 to 39.9 percent"},{"$f":"[1]ACS_16_5YR_B25074_with_ann!DC2","v":"Margin of Error!!Total:!!$75,000 to $99,999:!!35.0 to 39.9 percent"},{"$f":"[1]ACS_16_5YR_B25074_with_ann!DD2","v":"Estimate!!Total:!!$75,000 to $99,999:!!40.0 to 49.9 percent"},{"$f":"[1]ACS_16_5YR_B25074_with_ann!DE2","v":"Margin of Error!!Total:!!$75,000 to $99,999:!!40.0 to 49.9 percent"},{"$f":"[1]ACS_16_5YR_B25074_with_ann!DF2","v":"Estimate!!Total:!!$75,000 to $99,999:!!50.0 percent or more"},{"$f":"[1]ACS_16_5YR_B25074_with_ann!DG2","v":"Margin of Error!!Total:!!$75,000 to $99,999:!!50.0 percent or more"},{"$f":"[1]ACS_16_5YR_B25074_with_ann!DH2","v":"Estimate!!Total:!!$75,000 to $99,999:!!Not computed"},{"$f":"[1]ACS_16_5YR_B25074_with_ann!DI2","v":"Margin of Error!!Total:!!$75,000 to $99,999:!!Not computed"},{"$f":"[1]ACS_16_5YR_B25074_with_ann!DJ2","v":"Estimate!!Total:!!$100,000 or more:"},{"$f":"[1]ACS_16_5YR_B25074_with_ann!DK2","v":"Margin of Error!!Total:!!$100,000 or more:"},{"$f":"[1]ACS_16_5YR_B25074_with_ann!DL2","v":"Estimate!!Total:!!$100,000 or more:!!Less than 20.0 percent"},{"$f":"[1]ACS_16_5YR_B25074_with_ann!DM2","v":"Margin of Error!!Total:!!$100,000 or more:!!Less than 20.0 percent"},{"$f":"[1]ACS_16_5YR_B25074_with_ann!DN2","v":"Estimate!!Total:!!$100,000 or more:!!20.0 to 24.9 percent"},{"$f":"[1]ACS_16_5YR_B25074_with_ann!DO2","v":"Margin of Error!!Total:!!$100,000 or more:!!20.0 to 24.9 percent"},{"$f":"[1]ACS_16_5YR_B25074_with_ann!DP2","v":"Estimate!!Total:!!$100,000 or more:!!25.0 to 29.9 percent"},{"$f":"[1]ACS_16_5YR_B25074_with_ann!DQ2","v":"Margin of Error!!Total:!!$100,000 or more:!!25.0 to 29.9 percent"},{"$f":"[1]ACS_16_5YR_B25074_with_ann!DR2","v":"Estimate!!Total:!!$100,000 or more:!!30.0 to 34.9 percent"},{"$f":"[1]ACS_16_5YR_B25074_with_ann!DS2","v":"Margin of Error!!Total:!!$100,000 or more:!!30.0 to 34.9 percent"},{"$f":"[1]ACS_16_5YR_B25074_with_ann!DT2","v":"Estimate!!Total:!!$100,000 or more:!!35.0 to 39.9 percent"},{"$f":"[1]ACS_16_5YR_B25074_with_ann!DU2","v":"Margin of Error!!Total:!!$100,000 or more:!!35.0 to 39.9 percent"},{"$f":"[1]ACS_16_5YR_B25074_with_ann!DV2","v":"Estimate!!Total:!!$100,000 or more:!!40.0 to 49.9 percent"},{"$f":"[1]ACS_16_5YR_B25074_with_ann!DW2","v":"Margin of Error!!Total:!!$100,000 or more:!!40.0 to 49.9 percent"},{"$f":"[1]ACS_16_5YR_B25074_with_ann!DX2","v":"Estimate!!Total:!!$100,000 or more:!!50.0 percent or more"},{"$f":"[1]ACS_16_5YR_B25074_with_ann!DY2","v":"Margin of Error!!Total:!!$100,000 or more:!!50.0 percent or more"},{"$f":"[1]ACS_16_5YR_B25074_with_ann!DZ2","v":"Estimate!!Total:!!$100,000 or more:!!Not computed"},{"$f":"[1]ACS_16_5YR_B25074_with_ann!EA2","v":"Margin of Error!!Total:!!$100,000 or more:!!Not computed"}]
["06000US3300500820","0600000US3300512260","060",null,{"$f":"[1]ACS_16_5YR_B25070_with_ann!D44","v":216},{"$f":"[1]ACS_16_5YR_B25070_with_ann!E44","v":81},{"$f":"[1]ACS_16_5YR_B25070_with_ann!F44","v":10},{"$f":"[1]ACS_16_5YR_B25070_with_ann!G44","v":11},{"$f":"[1]ACS_16_5YR_B25070_with_ann!H44","v":11},{"$f":"[1]ACS_16_5YR_B25070_with_ann!I44","v":14},{"$f":"[1]ACS_16_5YR_B25070_with_ann!J44","v":21},{"$f":"[1]ACS_16_5YR_B25070_with_ann!K44","v":26},{"$f":"[1]ACS_16_5YR_B25070_with_ann!L44","v":28},{"$f":"[1]ACS_16_5YR_B25070_with_ann!M44","v":30},{"$f":"[1]ACS_16_5YR_B25070_with_ann!N44","v":5},{"$f":"[1]ACS_16_5YR_B25070_with_ann!O44","v":7},{"$f":"[1]ACS_16_5YR_B25070_with_ann!P44","v":52},{"$f":"[1]ACS_16_5YR_B25070_with_ann!Q44","v":51},{"$f":"[1]ACS_16_5YR_B25070_with_ann!R44","v":0},{"$f":"[1]ACS_16_5YR_B25070_with_ann!S44","v":12},{"$f":"[1]ACS_16_5YR_B25070_with_ann!T44","v":26},{"$f":"[1]ACS_16_5YR_B25070_with_ann!U44","v":32},{"$f":"[1]ACS_16_5YR_B25070_with_ann!V44","v":14},{"$f":"[1]ACS_16_5YR_B25070_with_ann!W44","v":11},{"$f":"[1]ACS_16_5YR_B25070_with_ann!X44","v":49},{"$f":"[1]ACS_16_5YR_B25070_with_ann!Y44","v":40},{"$f":"[1]ACS_16_5YR_B25074_with_ann!D44","v":216},{"$f":"[1]ACS_16_5YR_B25074_with_ann!E44","v":81},{"$f":"[1]ACS_16_5YR_B25074_with_ann!F44","v":28},{"$f":"[1]ACS_16_5YR_B25074_with_ann!G44","v":38},{"$f":"[1]ACS_16_5YR_B25074_with_ann!H44","v":0},{"$f":"[1]ACS_16_5YR_B25074_with_ann!I44","v":12},{"$f":"[1]ACS_16_5YR_B25074_with_ann!J44","v":0},{"$f":"[1]ACS_16_5YR_B25074_with_ann!K44","v":12},{"$f":"[1]ACS_16_5YR_B25074_with_ann!L44","v":0},{"$f":"[1]ACS_16_5YR_B25074_with_ann!M44","v":12},{"$f":"[1]ACS_16_5YR_B25074_with_ann!N44","v":0},{"$f":"[1]ACS_16_5YR_B25074_with_ann!O44","v":12},{"$f":"[1]ACS_16_5YR_B25074_with_ann!P44","v":0},{"$f":"[1]ACS_16_5YR_B25074_with_ann!Q44","v":12},{"$f":"[1]ACS_16_5YR_B25074_with_ann!R44","v":0},{"$f":"[1]ACS_16_5YR_B25074_with_ann!S44","v":12},{"$f":"[1]ACS_16_5YR_B25074_with_ann!T44","v":0},{"$f":"[1]ACS_16_5YR_B25074_with_ann!U44","v":12},{"$f":"[1]ACS_16_5YR_B25074_with_ann!V44","v":28},{"$f":"[1]ACS_16_5YR_B25074_with_ann!W44","v":38},{"$f":"[1]ACS_16_5YR_B25074_with_ann!X44","v":46},{"$f":"[1]ACS_16_5YR_B25074_with_ann!Y44","v":48},{"$f":"[1]ACS_16_5YR_B25074_with_ann!Z44","v":0},{"$f":"[1]ACS_16_5YR_B25074_with_ann!AA44","v":12},{"$f":"[1]ACS_16_5YR_B25074_with_ann!AB44","v":0},{"$f":"[1]ACS_16_5YR_B25074_with_ann!AC44","v":12},{"$f":"[1]ACS_16_5YR_B25074_with_ann!AD44","v":0},{"$f":"[1]ACS_16_5YR_B25074_with_ann!AE44","v":12},{"$f":"[1]ACS_16_5YR_B25074_with_ann!AF44","v":35},{"$f":"[1]ACS_16_5YR_B25074_with_ann!AG44","v":47},{"$f":"[1]ACS_16_5YR_B25074_with_ann!AH44","v":0},{"$f":"[1]ACS_16_5YR_B25074_with_ann!AI44","v":12},{"$f":"[1]ACS_16_5YR_B25074_with_ann!AJ44","v":0},{"$f":"[1]ACS_16_5YR_B25074_with_ann!AK44","v":12},{"$f":"[1]ACS_16_5YR_B25074_with_ann!AL44","v":6},{"$f":"[1]ACS_16_5YR_B25074_with_ann!AM44","v":8},{"$f":"[1]ACS_16_5YR_B25074_with_ann!AN44","v":5},{"$f":"[1]ACS_16_5YR_B25074_with_ann!AO44","v":6},{"$f":"[1]ACS_16_5YR_B25074_with_ann!AP44","v":33},{"$f":"[1]ACS_16_5YR_B25074_with_ann!AQ44","v":30},{"$f":"[1]ACS_16_5YR_B25074_with_ann!AR44","v":0},{"$f":"[1]ACS_16_5YR_B25074_with_ann!AS44","v":12},{"$f":"[1]ACS_16_5YR_B25074_with_ann!AT44","v":20},{"$f":"[1]ACS_16_5YR_B25074_with_ann!AU44","v":29},{"$f":"[1]ACS_16_5YR_B25074_with_ann!AV44","v":0},{"$f":"[1]ACS_16_5YR_B25074_with_ann!AW44","v":12},{"$f":"[1]ACS_16_5YR_B25074_with_ann!AX44","v":0},{"$f":"[1]ACS_16_5YR_B25074_with_ann!AY44","v":12},{"$f":"[1]ACS_16_5YR_B25074_with_ann!AZ44","v":0},{"$f":"[1]ACS_16_5YR_B25074_with_ann!BA44","v":12},{"$f":"[1]ACS_16_5YR_B25074_with_ann!BB44","v":5},{"$f":"[1]ACS_16_5YR_B25074_with_ann!BC44","v":6},{"$f":"[1]ACS_16_5YR_B25074_with_ann!BD44","v":8},{"$f":"[1]ACS_16_5YR_B25074_with_ann!BE44","v":9},{"$f":"[1]ACS_16_5YR_B25074_with_ann!BF44","v":0},{"$f":"[1]ACS_16_5YR_B25074_with_ann!BG44","v":12},{"$f":"[1]ACS_16_5YR_B25074_with_ann!BH44","v":28},{"$f":"[1]ACS_16_5YR_B25074_with_ann!BI44","v":22},{"$f":"[1]ACS_16_5YR_B25074_with_ann!BJ44","v":0},{"$f":"[1]ACS_16_5YR_B25074_with_ann!BK44","v":12},{"$f":"[1]ACS_16_5YR_B25074_with_ann!BL44","v":0},{"$f":"[1]ACS_16_5YR_B25074_with_ann!BM44","v":12},{"$f":"[1]ACS_16_5YR_B25074_with_ann!BN44","v":5},{"$f":"[1]ACS_16_5YR_B25074_with_ann!BO44","v":7},{"$f":"[1]ACS_16_5YR_B25074_with_ann!BP44","v":17},{"$f":"[1]ACS_16_5YR_B25074_with_ann!BQ44","v":19},{"$f":"[1]ACS_16_5YR_B25074_with_ann!BR44","v":0},{"$f":"[1]ACS_16_5YR_B25074_with_ann!BS44","v":12},{"$f":"[1]ACS_16_5YR_B25074_with_ann!BT44","v":0},{"$f":"[1]ACS_16_5YR_B25074_with_ann!BU44","v":12},{"$f":"[1]ACS_16_5YR_B25074_with_ann!BV44","v":0},{"$f":"[1]ACS_16_5YR_B25074_with_ann!BW44","v":12},{"$f":"[1]ACS_16_5YR_B25074_with_ann!BX44","v":6},{"$f":"[1]ACS_16_5YR_B25074_with_ann!BY44","v":7},{"$f":"[1]ACS_16_5YR_B25074_with_ann!BZ44","v":50},{"$f":"[1]ACS_16_5YR_B25074_with_ann!CA44","v":40},{"$f":"[1]ACS_16_5YR_B25074_with_ann!CB44","v":15},{"$f":"[1]ACS_16_5YR_B25074_with_ann!CC44","v":21},{"$f":"[1]ACS_16_5YR_B25074_with_ann!CD44","v":8},{"$f":"[1]ACS_16_5YR_B25074_with_ann!CE44","v":8},{"$f":"[1]ACS_16_5YR_B25074_with_ann!CF44","v":0},{"$f":"[1]ACS_16_5YR_B25074_with_ann!CG44","v":12},{"$f":"[1]ACS_16_5YR_B25074_with_ann!CH44","v":0},{"$f":"[1]ACS_16_5YR_B25074_with_ann!CI44","v":12},{"$f":"[1]ACS_16_5YR_B25074_with_ann!CJ44","v":0},{"$f":"[1]ACS_16_5YR_B25074_with_ann!CK44","v":12},{"$f":"[1]ACS_16_5YR_B25074_with_ann!CL44","v":21},{"$f":"[1]ACS_16_5YR_B25074_with_ann!CM44","v":31},{"$f":"[1]ACS_16_5YR_B25074_with_ann!CN44","v":0},{"$f":"[1]ACS_16_5YR_B25074_with_ann!CO44","v":12},{"$f":"[1]ACS_16_5YR_B25074_with_ann!CP44","v":6},{"$f":"[1]ACS_16_5YR_B25074_with_ann!CQ44","v":8},{"$f":"[1]ACS_16_5YR_B25074_with_ann!CR44","v":6},{"$f":"[1]ACS_16_5YR_B25074_with_ann!CS44","v":8},{"$f":"[1]ACS_16_5YR_B25074_with_ann!CT44","v":6},{"$f":"[1]ACS_16_5YR_B25074_with_ann!CU44","v":8},{"$f":"[1]ACS_16_5YR_B25074_with_ann!CV44","v":0},{"$f":"[1]ACS_16_5YR_B25074_with_ann!CW44","v":12},{"$f":"[1]ACS_16_5YR_B25074_with_ann!CX44","v":0},{"$f":"[1]ACS_16_5YR_B25074_with_ann!CY44","v":12},{"$f":"[1]ACS_16_5YR_B25074_with_ann!CZ44","v":0},{"$f":"[1]ACS_16_5YR_B25074_with_ann!DA44","v":12},{"$f":"[1]ACS_16_5YR_B25074_with_ann!DB44","v":0},{"$f":"[1]ACS_16_5YR_B25074_with_ann!DC44","v":12},{"$f":"[1]ACS_16_5YR_B25074_with_ann!DD44","v":0},{"$f":"[1]ACS_16_5YR_B25074_with_ann!DE44","v":12},{"$f":"[1]ACS_16_5YR_B25074_with_ann!DF44","v":0},{"$f":"[1]ACS_16_5YR_B25074_with_ann!DG44","v":12},{"$f":"[1]ACS_16_5YR_B25074_with_ann!DH44","v":0},{"$f":"[1]ACS_16_5YR_B25074_with_ann!DI44","v":12},{"$f":"[1]ACS_16_5YR_B25074_with_ann!DJ44","v":25},{"$f":"[1]ACS_16_5YR_B25074_with_ann!DK44","v":19},{"$f":"[1]ACS_16_5YR_B25074_with_ann!DL44","v":21},{"$f":"[1]ACS_16_5YR_B25074_with_ann!DM44","v":18},{"$f":"[1]ACS_16_5YR_B25074_with_ann!DN44","v":0},{"$f":"[1]ACS_16_5YR_B25074_with_ann!DO44","v":12},{"$f":"[1]ACS_16_5YR_B25074_with_ann!DP44","v":0},{"$f":"[1]ACS_16_5YR_B25074_with_ann!DQ44","v":12},{"$f":"[1]ACS_16_5YR_B25074_with_ann!DR44","v":0},{"$f":"[1]ACS_16_5YR_B25074_with_ann!DS44","v":12},{"$f":"[1]ACS_16_5YR_B25074_with_ann!DT44","v":0},{"$f":"[1]ACS_16_5YR_B25074_with_ann!DU44","v":12},{"$f":"[1]ACS_16_5YR_B25074_with_ann!DV44","v":0},{"$f":"[1]ACS_16_5YR_B25074_with_ann!DW44","v":12},{"$f":"[1]ACS_16_5YR_B25074_with_ann!DX44","v":0},{"$f":"[1]ACS_16_5YR_B25074_with_ann!DY44","v":12},{"$f":"[1]ACS_16_5YR_B25074_with_ann!DZ44","v":4},{"$f":"[1]ACS_16_5YR_B25074_with_ann!EA44","v":6},null,{"$f":"[1]ACS_16_5YR_B25070_with_ann!C44","v":"Alstead"}]
["06000US3300512260","0600000US3300519140","060",null,{"$f":"[1]ACS_16_5YR_B25070_with_ann!D45","v":139},{"$f":"[1]ACS_16_5YR_B25070_with_ann!E45","v":90},{"$f":"[1]ACS_16_5YR_B25070_with_ann!F45","v":0},{"$f":"[1]ACS_16_5YR_B25070_with_ann!G45","v":12},{"$f":"[1]ACS_16_5YR_B25070_with_ann!H45","v":9},{"$f":"[1]ACS_16_5YR_B25070_with_ann!I45","v":19},{"$f":"[1]ACS_16_5YR_B25070_with_ann!J45","v":18},{"$f":"[1]ACS_16_5YR_B25070_with_ann!K45","v":27},{"$f":"[1]ACS_16_5YR_B25070_with_ann!L45","v":0},{"$f":"[1]ACS_16_5YR_B25070_with_ann!M45","v":12},{"$f":"[1]ACS_16_5YR_B25070_with_ann!N45","v":20},{"$f":"[1]ACS_16_5YR_B25070_with_ann!O45","v":32},{"$f":"[1]ACS_16_5YR_B25070_with_ann!P45","v":0},{"$f":"[1]ACS_16_5YR_B25070_with_ann!Q45","v":12},{"$f":"[1]ACS_16_5YR_B25070_with_ann!R45","v":0},{"$f":"[1]ACS_16_5YR_B25070_with_ann!S45","v":12},{"$f":"[1]ACS_16_5YR_B25070_with_ann!T45","v":0},{"$f":"[1]ACS_16_5YR_B25070_with_ann!U45","v":12},{"$f":"[1]ACS_16_5YR_B25070_with_ann!V45","v":33},{"$f":"[1]ACS_16_5YR_B25070_with_ann!W45","v":45},{"$f":"[1]ACS_16_5YR_B25070_with_ann!X45","v":59},{"$f":"[1]ACS_16_5YR_B25070_with_ann!Y45","v":66},{"$f":"[1]ACS_16_5YR_B25074_with_ann!D45","v":139},{"$f":"[1]ACS_16_5YR_B25074_with_ann!E45","v":90},{"$f":"[1]ACS_16_5YR_B25074_with_ann!F45","v":0},{"$f":"[1]ACS_16_5YR_B25074_with_ann!G45","v":12},{"$f":"[1]ACS_16_5YR_B25074_with_ann!H45","v":0},{"$f":"[1]ACS_16_5YR_B25074_with_ann!I45","v":12},{"$f":"[1]ACS_16_5YR_B25074_with_ann!J45","v":0},{"$f":"[1]ACS_16_5YR_B25074_with_ann!K45","v":12},{"$f":"[1]ACS_16_5YR_B25074_with_ann!L45","v":0},{"$f":"[1]ACS_16_5YR_B25074_with_ann!M45","v":12},{"$f":"[1]ACS_16_5YR_B25074_with_ann!N45","v":0},{"$f":"[1]ACS_16_5YR_B25074_with_ann!O45","v":12},{"$f":"[1]ACS_16_5YR_B25074_with_ann!P45","v":0},{"$f":"[1]ACS_16_5YR_B25074_with_ann!Q45","v":12},{"$f":"[1]ACS_16_5YR_B25074_with_ann!R45","v":0},{"$f":"[1]ACS_16_5YR_B25074_with_ann!S45","v":12},{"$f":"[1]ACS_16_5YR_B25074_with_ann!T45","v":0},{"$f":"[1]ACS_16_5YR_B25074_with_ann!U45","v":12},{"$f":"[1]ACS_16_5YR_B25074_with_ann!V45","v":0},{"$f":"[1]ACS_16_5YR_B25074_with_ann!W45","v":12},{"$f":"[1]ACS_16_5YR_B25074_with_ann!X45","v":0},{"$f":"[1]ACS_16_5YR_B25074_with_ann!Y45","v":12},{"$f":"[1]ACS_16_5YR_B25074_with_ann!Z45","v":0},{"$f":"[1]ACS_16_5YR_B25074_with_ann!AA45","v":12},{"$f":"[1]ACS_16_5YR_B25074_with_ann!AB45","v":0},{"$f":"[1]ACS_16_5YR_B25074_with_ann!AC45","v":12},{"$f":"[1]ACS_16_5YR_B25074_with_ann!AD45","v":0},{"$f":"[1]ACS_16_5YR_B25074_with_ann!AE45","v":12},{"$f":"[1]ACS_16_5YR_B25074_with_ann!AF45","v":0},{"$f":"[1]ACS_16_5YR_B25074_with_ann!AG45","v":12},{"$f":"[1]ACS_16_5YR_B25074_with_ann!AH45","v":0},{"$f":"[1]ACS_16_5YR_B25074_with_ann!AI45","v":12},{"$f":"[1]ACS_16_5YR_B25074_with_ann!AJ45","v":0},{"$f":"[1]ACS_16_5YR_B25074_with_ann!AK45","v":12},{"$f":"[1]ACS_16_5YR_B25074_with_ann!AL45","v":0},{"$f":"[1]ACS_16_5YR_B25074_with_ann!AM45","v":12},{"$f":"[1]ACS_16_5YR_B25074_with_ann!AN45","v":0},{"$f":"[1]ACS_16_5YR_B25074_with_ann!AO45","v":12},{"$f":"[1]ACS_16_5YR_B25074_with_ann!AP45","v":70},{"$f":"[1]ACS_16_5YR_B25074_with_ann!AQ45","v":71},{"$f":"[1]ACS_16_5YR_B25074_with_ann!AR45","v":0},{"$f":"[1]ACS_16_5YR_B25074_with_ann!AS45","v":12},{"$f":"[1]ACS_16_5YR_B25074_with_ann!AT45","v":0},{"$f":"[1]ACS_16_5YR_B25074_with_ann!AU45","v":12},{"$f":"[1]ACS_16_5YR_B25074_with_ann!AV45","v":0},{"$f":"[1]ACS_16_5YR_B25074_with_ann!AW45","v":12},{"$f":"[1]ACS_16_5YR_B25074_with_ann!AX45","v":0},{"$f":"[1]ACS_16_5YR_B25074_with_ann!AY45","v":12},{"$f":"[1]ACS_16_5YR_B25074_with_ann!AZ45","v":0},{"$f":"[1]ACS_16_5YR_B25074_with_ann!BA45","v":12},{"$f":"[1]ACS_16_5YR_B25074_with_ann!BB45","v":0},{"$f":"[1]ACS_16_5YR_B25074_with_ann!BC45","v":12},{"$f":"[1]ACS_16_5YR_B25074_with_ann!BD45","v":33},{"$f":"[1]ACS_16_5YR_B25074_with_ann!BE45","v":45},{"$f":"[1]ACS_16_5YR_B25074_with_ann!BF45","v":37},{"$f":"[1]ACS_16_5YR_B25074_with_ann!BG45","v":56},{"$f":"[1]ACS_16_5YR_B25074_with_ann!BH45","v":20},{"$f":"[1]ACS_16_5YR_B25074_with_ann!BI45","v":32},{"$f":"[1]ACS_16_5YR_B25074_with_ann!BJ45","v":0},{"$f":"[1]ACS_16_5YR_B25074_with_ann!BK45","v":12},{"$f":"[1]ACS_16_5YR_B25074_with_ann!BL45","v":0},{"$f":"[1]ACS_16_5YR_B25074_with_ann!BM45","v":12},{"$f":"[1]ACS_16_5YR_B25074_with_ann!BN45","v":20},{"$f":"[1]ACS_16_5YR_B25074_with_ann!BO45","v":32},{"$f":"[1]ACS_16_5YR_B25074_with_ann!BP45","v":0},{"$f":"[1]ACS_16_5YR_B25074_with_ann!BQ45","v":12},{"$f":"[1]ACS_16_5YR_B25074_with_ann!BR45","v":0},{"$f":"[1]ACS_16_5YR_B25074_with_ann!BS45","v":12},{"$f":"[1]ACS_16_5YR_B25074_with_ann!BT45","v":0},{"$f":"[1]ACS_16_5YR_B25074_with_ann!BU45","v":12},{"$f":"[1]ACS_16_5YR_B25074_with_ann!BV45","v":0},{"$f":"[1]ACS_16_5YR_B25074_with_ann!BW45","v":12},{"$f":"[1]ACS_16_5YR_B25074_with_ann!BX45","v":0},{"$f":"[1]ACS_16_5YR_B25074_with_ann!BY45","v":12},{"$f":"[1]ACS_16_5YR_B25074_with_ann!BZ45","v":22},{"$f":"[1]ACS_16_5YR_B25074_with_ann!CA45","v":34},{"$f":"[1]ACS_16_5YR_B25074_with_ann!CB45","v":0},{"$f":"[1]ACS_16_5YR_B25074_with_ann!CC45","v":12},{"$f":"[1]ACS_16_5YR_B25074_with_ann!CD45","v":0},{"$f":"[1]ACS_16_5YR_B25074_with_ann!CE45","v":12},{"$f":"[1]ACS_16_5YR_B25074_with_ann!CF45","v":0},{"$f":"[1]ACS_16_5YR_B25074_with_ann!CG45","v":12},{"$f":"[1]ACS_16_5YR_B25074_with_ann!CH45","v":0},{"$f":"[1]ACS_16_5YR_B25074_with_ann!CI45","v":12},{"$f":"[1]ACS_16_5YR_B25074_with_ann!CJ45","v":0},{"$f":"[1]ACS_16_5YR_B25074_with_ann!CK45","v":12},{"$f":"[1]ACS_16_5YR_B25074_with_ann!CL45","v":0},{"$f":"[1]ACS_16_5YR_B25074_with_ann!CM45","v":12},{"$f":"[1]ACS_16_5YR_B25074_with_ann!CN45","v":0},{"$f":"[1]ACS_16_5YR_B25074_with_ann!CO45","v":12},{"$f":"[1]ACS_16_5YR_B25074_with_ann!CP45","v":22},{"$f":"[1]ACS_16_5YR_B25074_with_ann!CQ45","v":34},{"$f":"[1]ACS_16_5YR_B25074_with_ann!CR45","v":9},{"$f":"[1]ACS_16_5YR_B25074_with_ann!CS45","v":19},{"$f":"[1]ACS_16_5YR_B25074_with_ann!CT45","v":9},{"$f":"[1]ACS_16_5YR_B25074_with_ann!CU45","v":19},{"$f":"[1]ACS_16_5YR_B25074_with_ann!CV45","v":0},{"$f":"[1]ACS_16_5YR_B25074_with_ann!CW45","v":12},{"$f":"[1]ACS_16_5YR_B25074_with_ann!CX45","v":0},{"$f":"[1]ACS_16_5YR_B25074_with_ann!CY45","v":12},{"$f":"[1]ACS_16_5YR_B25074_with_ann!CZ45","v":0},{"$f":"[1]ACS_16_5YR_B25074_with_ann!DA45","v":12},{"$f":"[1]ACS_16_5YR_B25074_with_ann!DB45","v":0},{"$f":"[1]ACS_16_5YR_B25074_with_ann!DC45","v":12},{"$f":"[1]ACS_16_5YR_B25074_with_ann!DD45","v":0},{"$f":"[1]ACS_16_5YR_B25074_with_ann!DE45","v":12},{"$f":"[1]ACS_16_5YR_B25074_with_ann!DF45","v":0},{"$f":"[1]ACS_16_5YR_B25074_with_ann!DG45","v":12},{"$f":"[1]ACS_16_5YR_B25074_with_ann!DH45","v":0},{"$f":"[1]ACS_16_5YR_B25074_with_ann!DI45","v":12},{"$f":"[1]ACS_16_5YR_B25074_with_ann!DJ45","v":18},{"$f":"[1]ACS_16_5YR_B25074_with_ann!DK45","v":27},{"$f":"[1]ACS_16_5YR_B25074_with_ann!DL45","v":18},{"$f":"[1]ACS_16_5YR_B25074_with_ann!DM45","v":27},{"$f":"[1]ACS_16_5YR_B25074_with_ann!DN45","v":0},{"$f":"[1]ACS_16_5YR_B25074_with_ann!DO45","v":12},{"$f":"[1]ACS_16_5YR_B25074_with_ann!DP45","v":0},{"$f":"[1]ACS_16_5YR_B25074_with_ann!DQ45","v":12},{"$f":"[1]ACS_16_5YR_B25074_with_ann!DR45","v":0},{"$f":"[1]ACS_16_5YR_B25074_with_ann!DS45","v":12},{"$f":"[1]ACS_16_5YR_B25074_with_ann!DT45","v":0},{"$f":"[1]ACS_16_5YR_B25074_with_ann!DU45","v":12},{"$f":"[1]ACS_16_5YR_B25074_with_ann!DV45","v":0},{"$f":"[1]ACS_16_5YR_B25074_with_ann!DW45","v":12},{"$f":"[1]ACS_16_5YR_B25074_with_ann!DX45","v":0},{"$f":"[1]ACS_16_5YR_B25074_with_ann!DY45","v":12},{"$f":"[1]ACS_16_5YR_B25074_with_ann!DZ45","v":0},{"$f":"[1]ACS_16_5YR_B25074_with_ann!EA45","v":12},null,{"$f":"[1]ACS_16_5YR_B25070_with_ann!C45","v":"Chesterfield"}]
["06000US3300519140","0600000US3300526500","060",null,{"$f":"[1]ACS_16_5YR_B25070_with_ann!D46","v":105},{"$f":"[1]ACS_16_5YR_B25070_with_ann!E46","v":41},{"$f":"[1]ACS_16_5YR_B25070_with_ann!F46","v":3},{"$f":"[1]ACS_16_5YR_B25070_with_ann!G46","v":6},{"$f":"[1]ACS_16_5YR_B25070_with_ann!H46","v":6},{"$f":"[1]ACS_16_5YR_B25070_with_ann!I46","v":10},{"$f":"[1]ACS_16_5YR_B25070_with_ann!J46","v":6},{"$f":"[1]ACS_16_5YR_B25070_with_ann!K46","v":7},{"$f":"[1]ACS_16_5YR_B25070_with_ann!L46","v":19},{"$f":"[1]ACS_16_5YR_B25070_with_ann!M46","v":24},{"$f":"[1]ACS_16_5YR_B25070_with_ann!N46","v":5},{"$f":"[1]ACS_16_5YR_B25070_with_ann!O46","v":6},{"$f":"[1]ACS_16_5YR_B25070_with_ann!P46","v":4},{"$f":"[1]ACS_16_5YR_B25070_with_ann!Q46","v":6},{"$f":"[1]ACS_16_5YR_B25070_with_ann!R46","v":0},{"$f":"[1]ACS_16_5YR_B25070_with_ann!S46","v":12},{"$f":"[1]ACS_16_5YR_B25070_with_ann!T46","v":9},{"$f":"[1]ACS_16_5YR_B25070_with_ann!U46","v":12},{"$f":"[1]ACS_16_5YR_B25070_with_ann!V46","v":12},{"$f":"[1]ACS_16_5YR_B25070_with_ann!W46","v":12},{"$f":"[1]ACS_16_5YR_B25070_with_ann!X46","v":41},{"$f":"[1]ACS_16_5YR_B25070_with_ann!Y46","v":22},{"$f":"[1]ACS_16_5YR_B25074_with_ann!D46","v":105},{"$f":"[1]ACS_16_5YR_B25074_with_ann!E46","v":41},{"$f":"[1]ACS_16_5YR_B25074_with_ann!F46","v":12},{"$f":"[1]ACS_16_5YR_B25074_with_ann!G46","v":13},{"$f":"[1]ACS_16_5YR_B25074_with_ann!H46","v":0},{"$f":"[1]ACS_16_5YR_B25074_with_ann!I46","v":12},{"$f":"[1]ACS_16_5YR_B25074_with_ann!J46","v":0},{"$f":"[1]ACS_16_5YR_B25074_with_ann!K46","v":12},{"$f":"[1]ACS_16_5YR_B25074_with_ann!L46","v":0},{"$f":"[1]ACS_16_5YR_B25074_with_ann!M46","v":12},{"$f":"[1]ACS_16_5YR_B25074_with_ann!N46","v":0},{"$f":"[1]ACS_16_5YR_B25074_with_ann!O46","v":12},{"$f":"[1]ACS_16_5YR_B25074_with_ann!P46","v":0},{"$f":"[1]ACS_16_5YR_B25074_with_ann!Q46","v":12},{"$f":"[1]ACS_16_5YR_B25074_with_ann!R46","v":0},{"$f":"[1]ACS_16_5YR_B25074_with_ann!S46","v":12},{"$f":"[1]ACS_16_5YR_B25074_with_ann!T46","v":0},{"$f":"[1]ACS_16_5YR_B25074_with_ann!U46","v":12},{"$f":"[1]ACS_16_5YR_B25074_with_ann!V46","v":12},{"$f":"[1]ACS_16_5YR_B25074_with_ann!W46","v":13},{"$f":"[1]ACS_16_5YR_B25074_with_ann!X46","v":7},{"$f":"[1]ACS_16_5YR_B25074_with_ann!Y46","v":7},{"$f":"[1]ACS_16_5YR_B25074_with_ann!Z46","v":0},{"$f":"[1]ACS_16_5YR_B25074_with_ann!AA46","v":12},{"$f":"[1]ACS_16_5YR_B25074_with_ann!AB46","v":0},{"$f":"[1]ACS_16_5YR_B25074_with_ann!AC46","v":12},{"$f":"[1]ACS_16_5YR_B25074_with_ann!AD46","v":0},{"$f":"[1]ACS_16_5YR_B25074_with_ann!AE46","v":12},{"$f":"[1]ACS_16_5YR_B25074_with_ann!AF46","v":0},{"$f":"[1]ACS_16_5YR_B25074_with_ann!AG46","v":12},{"$f":"[1]ACS_16_5YR_B25074_with_ann!AH46","v":0},{"$f":"[1]ACS_16_5YR_B25074_with_ann!AI46","v":12},{"$f":"[1]ACS_16_5YR_B25074_with_ann!AJ46","v":0},{"$f":"[1]ACS_16_5YR_B25074_with_ann!AK46","v":12},{"$f":"[1]ACS_16_5YR_B25074_with_ann!AL46","v":4},{"$f":"[1]ACS_16_5YR_B25074_with_ann!AM46","v":5},{"$f":"[1]ACS_16_5YR_B25074_with_ann!AN46","v":3},{"$f":"[1]ACS_16_5YR_B25074_with_ann!AO46","v":4},{"$f":"[1]ACS_16_5YR_B25074_with_ann!AP46","v":26},{"$f":"[1]ACS_16_5YR_B25074_with_ann!AQ46","v":15},{"$f":"[1]ACS_16_5YR_B25074_with_ann!AR46","v":0},{"$f":"[1]ACS_16_5YR_B25074_with_ann!AS46","v":12},{"$f":"[1]ACS_16_5YR_B25074_with_ann!AT46","v":0},{"$f":"[1]ACS_16_5YR_B25074_with_ann!AU46","v":12},{"$f":"[1]ACS_16_5YR_B25074_with_ann!AV46","v":2},{"$f":"[1]ACS_16_5YR_B25074_with_ann!AW46","v":3},{"$f":"[1]ACS_16_5YR_B25074_with_ann!AX46","v":4},{"$f":"[1]ACS_16_5YR_B25074_with_ann!AY46","v":6},{"$f":"[1]ACS_16_5YR_B25074_with_ann!AZ46","v":0},{"$f":"[1]ACS_16_5YR_B25074_with_ann!BA46","v":12},{"$f":"[1]ACS_16_5YR_B25074_with_ann!BB46","v":0},{"$f":"[1]ACS_16_5YR_B25074_with_ann!BC46","v":12},{"$f":"[1]ACS_16_5YR_B25074_with_ann!BD46","v":8},{"$f":"[1]ACS_16_5YR_B25074_with_ann!BE46","v":10},{"$f":"[1]ACS_16_5YR_B25074_with_ann!BF46","v":12},{"$f":"[1]ACS_16_5YR_B25074_with_ann!BG46","v":9},{"$f":"[1]ACS_16_5YR_B25074_with_ann!BH46","v":12},{"$f":"[1]ACS_16_5YR_B25074_with_ann!BI46","v":13},{"$f":"[1]ACS_16_5YR_B25074_with_ann!BJ46","v":0},{"$f":"[1]ACS_16_5YR_B25074_with_ann!BK46","v":12},{"$f":"[1]ACS_16_5YR_B25074_with_ann!BL46","v":3},{"$f":"[1]ACS_16_5YR_B25074_with_ann!BM46","v":4},{"$f":"[1]ACS_16_5YR_B25074_with_ann!BN46","v":0},{"$f":"[1]ACS_16_5YR_B25074_with_ann!BO46","v":12},{"$f":"[1]ACS_16_5YR_B25074_with_ann!BP46","v":0},{"$f":"[1]ACS_16_5YR_B25074_with_ann!BQ46","v":12},{"$f":"[1]ACS_16_5YR_B25074_with_ann!BR46","v":0},{"$f":"[1]ACS_16_5YR_B25074_with_ann!BS46","v":12},{"$f":"[1]ACS_16_5YR_B25074_with_ann!BT46","v":9},{"$f":"[1]ACS_16_5YR_B25074_with_ann!BU46","v":12},{"$f":"[1]ACS_16_5YR_B25074_with_ann!BV46","v":0},{"$f":"[1]ACS_16_5YR_B25074_with_ann!BW46","v":12},{"$f":"[1]ACS_16_5YR_B25074_with_ann!BX46","v":0},{"$f":"[1]ACS_16_5YR_B25074_with_ann!BY46","v":12},{"$f":"[1]ACS_16_5YR_B25074_with_ann!BZ46","v":22},{"$f":"[1]ACS_16_5YR_B25074_with_ann!CA46","v":24},{"$f":"[1]ACS_16_5YR_B25074_with_ann!CB46","v":0},{"$f":"[1]ACS_16_5YR_B25074_with_ann!CC46","v":12},{"$f":"[1]ACS_16_5YR_B25074_with_ann!CD46","v":16},{"$f":"[1]ACS_16_5YR_B25074_with_ann!CE46","v":23},{"$f":"[1]ACS_16_5YR_B25074_with_ann!CF46","v":0},{"$f":"[1]ACS_16_5YR_B25074_with_ann!CG46","v":12},{"$f":"[1]ACS_16_5YR_B25074_with_ann!CH46","v":0},{"$f":"[1]ACS_16_5YR_B25074_with_ann!CI46","v":12},{"$f":"[1]ACS_16_5YR_B25074_with_ann!CJ46","v":0},{"$f":"[1]ACS_16_5YR_B25074_with_ann!CK46","v":12},{"$f":"[1]ACS_16_5YR_B25074_with_ann!CL46","v":0},{"$f":"[1]ACS_16_5YR_B25074_with_ann!CM46","v":12},{"$f":"[1]ACS_16_5YR_B25074_with_ann!CN46","v":0},{"$f":"[1]ACS_16_5YR_B25074_with_ann!CO46","v":12},{"$f":"[1]ACS_16_5YR_B25074_with_ann!CP46","v":6},{"$f":"[1]ACS_16_5YR_B25074_with_ann!CQ46","v":6},{"$f":"[1]ACS_16_5YR_B25074_with_ann!CR46","v":3},{"$f":"[1]ACS_16_5YR_B25074_with_ann!CS46","v":4},{"$f":"[1]ACS_16_5YR_B25074_with_ann!CT46","v":0},{"$f":"[1]ACS_16_5YR_B25074_with_ann!CU46","v":12},{"$f":"[1]ACS_16_5YR_B25074_with_ann!CV46","v":0},{"$f":"[1]ACS_16_5YR_B25074_with_ann!CW46","v":12},{"$f":"[1]ACS_16_5YR_B25074_with_ann!CX46","v":3},{"$f":"[1]ACS_16_5YR_B25074_with_ann!CY46","v":4},{"$f":"[1]ACS_16_5YR_B25074_with_ann!CZ46","v":0},{"$f":"[1]ACS_16_5YR_B25074_with_ann!DA46","v":12},{"$f":"[1]ACS_16_5YR_B25074_with_ann!DB46","v":0},{"$f":"[1]ACS_16_5YR_B25074_with_ann!DC46","v":12},{"$f":"[1]ACS_16_5YR_B25074_with_ann!DD46","v":0},{"$f":"[1]ACS_16_5YR_B25074_with_ann!DE46","v":12},{"$f":"[1]ACS_16_5YR_B25074_with_ann!DF46","v":0},{"$f":"[1]ACS_16_5YR_B25074_with_ann!DG46","v":12},{"$f":"[1]ACS_16_5YR_B25074_with_ann!DH46","v":0},{"$f":"[1]ACS_16_5YR_B25074_with_ann!DI46","v":12},{"$f":"[1]ACS_16_5YR_B25074_with_ann!DJ46","v":23},{"$f":"[1]ACS_16_5YR_B25074_with_ann!DK46","v":21},{"$f":"[1]ACS_16_5YR_B25074_with_ann!DL46","v":15},{"$f":"[1]ACS_16_5YR_B25074_with_ann!DM46","v":15},{"$f":"[1]ACS_16_5YR_B25074_with_ann!DN46","v":0},{"$f":"[1]ACS_16_5YR_B25074_with_ann!DO46","v":12},{"$f":"[1]ACS_16_5YR_B25074_with_ann!DP46","v":0},{"$f":"[1]ACS_16_5YR_B25074_with_ann!DQ46","v":12},{"$f":"[1]ACS_16_5YR_B25074_with_ann!DR46","v":0},{"$f":"[1]ACS_16_5YR_B25074_with_ann!DS46","v":12},{"$f":"[1]ACS_16_5YR_B25074_with_ann!DT46","v":0},{"$f":"[1]ACS_16_5YR_B25074_with_ann!DU46","v":12},{"$f":"[1]ACS_16_5YR_B25074_with_ann!DV46","v":0},{"$f":"[1]ACS_16_5YR_B25074_with_ann!DW46","v":12},{"$f":"[1]ACS_16_5YR_B25074_with_ann!DX46","v":0},{"$f":"[1]ACS_16_5YR_B25074_with_ann!DY46","v":12},{"$f":"[1]ACS_16_5YR_B25074_with_ann!DZ46","v":8},{"$f":"[1]ACS_16_5YR_B25074_with_ann!EA46","v":13},null,{"$f":"[1]ACS_16_5YR_B25070_with_ann!C46","v":"Dublin"}]
["06000US3300526500","0600000US3300529220","060",null,{"$f":"[1]ACS_16_5YR_B25070_with_ann!D47","v":56},{"$f":"[1]ACS_16_5YR_B25070_with_ann!E47","v":29},{"$f":"[1]ACS_16_5YR_B25070_with_ann!F47","v":0},{"$f":"[1]ACS_16_5YR_B25070_with_ann!G47","v":12},{"$f":"[1]ACS_16_5YR_B25070_with_ann!H47","v":16},{"$f":"[1]ACS_16_5YR_B25070_with_ann!I47","v":25},{"$f":"[1]ACS_16_5YR_B25070_with_ann!J47","v":0},{"$f":"[1]ACS_16_5YR_B25070_with_ann!K47","v":12},{"$f":"[1]ACS_16_5YR_B25070_with_ann!L47","v":4},{"$f":"[1]ACS_16_5YR_B25070_with_ann!M47","v":7},{"$f":"[1]ACS_16_5YR_B25070_with_ann!N47","v":3},{"$f":"[1]ACS_16_5YR_B25070_with_ann!O47","v":5},{"$f":"[1]ACS_16_5YR_B25070_with_ann!P47","v":0},{"$f":"[1]ACS_16_5YR_B25070_with_ann!Q47","v":12},{"$f":"[1]ACS_16_5YR_B25070_with_ann!R47","v":0},{"$f":"[1]ACS_16_5YR_B25070_with_ann!S47","v":12},{"$f":"[1]ACS_16_5YR_B25070_with_ann!T47","v":3},{"$f":"[1]ACS_16_5YR_B25070_with_ann!U47","v":5},{"$f":"[1]ACS_16_5YR_B25070_with_ann!V47","v":15},{"$f":"[1]ACS_16_5YR_B25070_with_ann!W47","v":14},{"$f":"[1]ACS_16_5YR_B25070_with_ann!X47","v":15},{"$f":"[1]ACS_16_5YR_B25070_with_ann!Y47","v":15},{"$f":"[1]ACS_16_5YR_B25074_with_ann!D47","v":56},{"$f":"[1]ACS_16_5YR_B25074_with_ann!E47","v":29},{"$f":"[1]ACS_16_5YR_B25074_with_ann!F47","v":13},{"$f":"[1]ACS_16_5YR_B25074_with_ann!G47","v":13},{"$f":"[1]ACS_16_5YR_B25074_with_ann!H47","v":0},{"$f":"[1]ACS_16_5YR_B25074_with_ann!I47","v":12},{"$f":"[1]ACS_16_5YR_B25074_with_ann!J47","v":0},{"$f":"[1]ACS_16_5YR_B25074_with_ann!K47","v":12},{"$f":"[1]ACS_16_5YR_B25074_with_ann!L47","v":0},{"$f":"[1]ACS_16_5YR_B25074_with_ann!M47","v":12},{"$f":"[1]ACS_16_5YR_B25074_with_ann!N47","v":0},{"$f":"[1]ACS_16_5YR_B25074_with_ann!O47","v":12},{"$f":"[1]ACS_16_5YR_B25074_with_ann!P47","v":0},{"$f":"[1]ACS_16_5YR_B25074_with_ann!Q47","v":12},{"$f":"[1]ACS_16_5YR_B25074_with_ann!R47","v":0},{"$f":"[1]ACS_16_5YR_B25074_with_ann!S47","v":12},{"$f":"[1]ACS_16_5YR_B25074_with_ann!T47","v":8},{"$f":"[1]ACS_16_5YR_B25074_with_ann!U47","v":10},{"$f":"[1]ACS_16_5YR_B25074_with_ann!V47","v":5},{"$f":"[1]ACS_16_5YR_B25074_with_ann!W47","v":8},{"$f":"[1]ACS_16_5YR_B25074_with_ann!X47","v":7},{"$f":"[1]ACS_16_5YR_B25074_with_ann!Y47","v":10},{"$f":"[1]ACS_16_5YR_B25074_with_ann!Z47","v":0},{"$f":"[1]ACS_16_5YR_B25074_with_ann!AA47","v":12},{"$f":"[1]ACS_16_5YR_B25074_with_ann!AB47","v":0},{"$f":"[1]ACS_16_5YR_B25074_with_ann!AC47","v":12},{"$f":"[1]ACS_16_5YR_B25074_with_ann!AD47","v":0},{"$f":"[1]ACS_16_5YR_B25074_with_ann!AE47","v":12},{"$f":"[1]ACS_16_5YR_B25074_with_ann!AF47","v":0},{"$f":"[1]ACS_16_5YR_B25074_with_ann!AG47","v":12},{"$f":"[1]ACS_16_5YR_B25074_with_ann!AH47","v":0},{"$f":"[1]ACS_16_5YR_B25074_with_ann!AI47","v":12},{"$f":"[1]ACS_16_5YR_B25074_with_ann!AJ47","v":0},{"$f":"[1]ACS_16_5YR_B25074_with_ann!AK47","v":12},{"$f":"[1]ACS_16_5YR_B25074_with_ann!AL47","v":7},{"$f":"[1]ACS_16_5YR_B25074_with_ann!AM47","v":10},{"$f":"[1]ACS_16_5YR_B25074_with_ann!AN47","v":0},{"$f":"[1]ACS_16_5YR_B25074_with_ann!AO47","v":12},{"$f":"[1]ACS_16_5YR_B25074_with_ann!AP47","v":4},{"$f":"[1]ACS_16_5YR_B25074_with_ann!AQ47","v":6},{"$f":"[1]ACS_16_5YR_B25074_with_ann!AR47","v":0},{"$f":"[1]ACS_16_5YR_B25074_with_ann!AS47","v":12},{"$f":"[1]ACS_16_5YR_B25074_with_ann!AT47","v":0},{"$f":"[1]ACS_16_5YR_B25074_with_ann!AU47","v":12},{"$f":"[1]ACS_16_5YR_B25074_with_ann!AV47","v":0},{"$f":"[1]ACS_16_5YR_B25074_with_ann!AW47","v":12},{"$f":"[1]ACS_16_5YR_B25074_with_ann!AX47","v":0},{"$f":"[1]ACS_16_5YR_B25074_with_ann!AY47","v":12},{"$f":"[1]ACS_16_5YR_B25074_with_ann!AZ47","v":0},{"$f":"[1]ACS_16_5YR_B25074_with_ann!BA47","v":12},{"$f":"[1]ACS_16_5YR_B25074_with_ann!BB47","v":0},{"$f":"[1]ACS_16_5YR_B25074_with_ann!BC47","v":12},{"$f":"[1]ACS_16_5YR_B25074_with_ann!BD47","v":0},{"$f":"[1]ACS_16_5YR_B25074_with_ann!BE47","v":12},{"$f":"[1]ACS_16_5YR_B25074_with_ann!BF47","v":4},{"$f":"[1]ACS_16_5YR_B25074_with_ann!BG47","v":6},{"$f":"[1]ACS_16_5YR_B25074_with_ann!BH47","v":3},{"$f":"[1]ACS_16_5YR_B25074_with_ann!BI47","v":5},{"$f":"[1]ACS_16_5YR_B25074_with_ann!BJ47","v":0},{"$f":"[1]ACS_16_5YR_B25074_with_ann!BK47","v":12},{"$f":"[1]ACS_16_5YR_B25074_with_ann!BL47","v":0},{"$f":"[1]ACS_16_5YR_B25074_with_ann!BM47","v":12},{"$f":"[1]ACS_16_5YR_B25074_with_ann!BN47","v":0},{"$f":"[1]ACS_16_5YR_B25074_with_ann!BO47","v":12},{"$f":"[1]ACS_16_5YR_B25074_with_ann!BP47","v":0},{"$f":"[1]ACS_16_5YR_B25074_with_ann!BQ47","v":12},{"$f":"[1]ACS_16_5YR_B25074_with_ann!BR47","v":0},{"$f":"[1]ACS_16_5YR_B25074_with_ann!BS47","v":12},{"$f":"[1]ACS_16_5YR_B25074_with_ann!BT47","v":3},{"$f":"[1]ACS_16_5YR_B25074_with_ann!BU47","v":5},{"$f":"[1]ACS_16_5YR_B25074_with_ann!BV47","v":0},{"$f":"[1]ACS_16_5YR_B25074_with_ann!BW47","v":12},{"$f":"[1]ACS_16_5YR_B25074_with_ann!BX47","v":0},{"$f":"[1]ACS_16_5YR_B25074_with_ann!BY47","v":12},{"$f":"[1]ACS_16_5YR_B25074_with_ann!BZ47","v":0},{"$f":"[1]ACS_16_5YR_B25074_with_ann!CA47","v":12},{"$f":"[1]ACS_16_5YR_B25074_with_ann!CB47","v":0},{"$f":"[1]ACS_16_5YR_B25074_with_ann!CC47","v":12},{"$f":"[1]ACS_16_5YR_B25074_with_ann!CD47","v":0},{"$f":"[1]ACS_16_5YR_B25074_with_ann!CE47","v":12},{"$f":"[1]ACS_16_5YR_B25074_with_ann!CF47","v":0},{"$f":"[1]ACS_16_5YR_B25074_with_ann!CG47","v":12},{"$f":"[1]ACS_16_5YR_B25074_with_ann!CH47","v":0},{"$f":"[1]ACS_16_5YR_B25074_with_ann!CI47","v":12},{"$f":"[1]ACS_16_5YR_B25074_with_ann!CJ47","v":0},{"$f":"[1]ACS_16_5YR_B25074_with_ann!CK47","v":12},{"$f":"[1]ACS_16_5YR_B25074_with_ann!CL47","v":0},{"$f":"[1]ACS_16_5YR_B25074_with_ann!CM47","v":12},{"$f":"[1]ACS_16_5YR_B25074_with_ann!CN47","v":0},{"$f":"[1]ACS_16_5YR_B25074_with_ann!CO47","v":12},{"$f":"[1]ACS_16_5YR_B25074_with_ann!CP47","v":0},{"$f":"[1]ACS_16_5YR_B25074_with_ann!CQ47","v":12},{"$f":"[1]ACS_16_5YR_B25074_with_ann!CR47","v":7},{"$f":"[1]ACS_16_5YR_B25074_with_ann!CS47","v":7},{"$f":"[1]ACS_16_5YR_B25074_with_ann!CT47","v":0},{"$f":"[1]ACS_16_5YR_B25074_with_ann!CU47","v":12},{"$f":"[1]ACS_16_5YR_B25074_with_ann!CV47","v":4},{"$f":"[1]ACS_16_5YR_B25074_with_ann!CW47","v":7},{"$f":"[1]ACS_16_5YR_B25074_with_ann!CX47","v":3},{"$f":"[1]ACS_16_5YR_B25074_with_ann!CY47","v":5},{"$f":"[1]ACS_16_5YR_B25074_with_ann!CZ47","v":0},{"$f":"[1]ACS_16_5YR_B25074_with_ann!DA47","v":12},{"$f":"[1]ACS_16_5YR_B25074_with_ann!DB47","v":0},{"$f":"[1]ACS_16_5YR_B25074_with_ann!DC47","v":12},{"$f":"[1]ACS_16_5YR_B25074_with_ann!DD47","v":0},{"$f":"[1]ACS_16_5YR_B25074_with_ann!DE47","v":12},{"$f":"[1]ACS_16_5YR_B25074_with_ann!DF47","v":0},{"$f":"[1]ACS_16_5YR_B25074_with_ann!DG47","v":12},{"$f":"[1]ACS_16_5YR_B25074_with_ann!DH47","v":0},{"$f":"[1]ACS_16_5YR_B25074_with_ann!DI47","v":12},{"$f":"[1]ACS_16_5YR_B25074_with_ann!DJ47","v":22},{"$f":"[1]ACS_16_5YR_B25074_with_ann!DK47","v":22},{"$f":"[1]ACS_16_5YR_B25074_with_ann!DL47","v":16},{"$f":"[1]ACS_16_5YR_B25074_with_ann!DM47","v":25},{"$f":"[1]ACS_16_5YR_B25074_with_ann!DN47","v":0},{"$f":"[1]ACS_16_5YR_B25074_with_ann!DO47","v":12},{"$f":"[1]ACS_16_5YR_B25074_with_ann!DP47","v":0},{"$f":"[1]ACS_16_5YR_B25074_with_ann!DQ47","v":12},{"$f":"[1]ACS_16_5YR_B25074_with_ann!DR47","v":0},{"$f":"[1]ACS_16_5YR_B25074_with_ann!DS47","v":12},{"$f":"[1]ACS_16_5YR_B25074_with_ann!DT47","v":0},{"$f":"[1]ACS_16_5YR_B25074_with_ann!DU47","v":12},{"$f":"[1]ACS_16_5YR_B25074_with_ann!DV47","v":0},{"$f":"[1]ACS_16_5YR_B25074_with_ann!DW47","v":12},{"$f":"[1]ACS_16_5YR_B25074_with_ann!DX47","v":0},{"$f":"[1]ACS_16_5YR_B25074_with_ann!DY47","v":12},{"$f":"[1]ACS_16_5YR_B25074_with_ann!DZ47","v":6},{"$f":"[1]ACS_16_5YR_B25074_with_ann!EA47","v":10},null,{"$f":"[1]ACS_16_5YR_B25070_with_ann!C47","v":"Fitzwilliam"}]
["06000US3300529220","0600000US3300534420","060",null,{"$f":"[1]ACS_16_5YR_B25070_with_ann!D48","v":25},{"$f":"[1]ACS_16_5YR_B25070_with_ann!E48","v":14},{"$f":"[1]ACS_16_5YR_B25070_with_ann!F48","v":0},{"$f":"[1]ACS_16_5YR_B25070_with_ann!G48","v":12},{"$f":"[1]ACS_16_5YR_B25070_with_ann!H48","v":0},{"$f":"[1]ACS_16_5YR_B25070_with_ann!I48","v":12},{"$f":"[1]ACS_16_5YR_B25070_with_ann!J48","v":0},{"$f":"[1]ACS_16_5YR_B25070_with_ann!K48","v":12},{"$f":"[1]ACS_16_5YR_B25070_with_ann!L48","v":4},{"$f":"[1]ACS_16_5YR_B25070_with_ann!M48","v":6},{"$f":"[1]ACS_16_5YR_B25070_with_ann!N48","v":10},{"$f":"[1]ACS_16_5YR_B25070_with_ann!O48","v":10},{"$f":"[1]ACS_16_5YR_B25070_with_ann!P48","v":3},{"$f":"[1]ACS_16_5YR_B25070_with_ann!Q48","v":4},{"$f":"[1]ACS_16_5YR_B25070_with_ann!R48","v":2},{"$f":"[1]ACS_16_5YR_B25070_with_ann!S48","v":2},{"$f":"[1]ACS_16_5YR_B25070_with_ann!T48","v":5},{"$f":"[1]ACS_16_5YR_B25070_with_ann!U48","v":7},{"$f":"[1]ACS_16_5YR_B25070_with_ann!V48","v":1},{"$f":"[1]ACS_16_5YR_B25070_with_ann!W48","v":2},{"$f":"[1]ACS_16_5YR_B25070_with_ann!X48","v":0},{"$f":"[1]ACS_16_5YR_B25070_with_ann!Y48","v":12},{"$f":"[1]ACS_16_5YR_B25074_with_ann!D48","v":25},{"$f":"[1]ACS_16_5YR_B25074_with_ann!E48","v":14},{"$f":"[1]ACS_16_5YR_B25074_with_ann!F48","v":0},{"$f":"[1]ACS_16_5YR_B25074_with_ann!G48","v":12},{"$f":"[1]ACS_16_5YR_B25074_with_ann!H48","v":0},{"$f":"[1]ACS_16_5YR_B25074_with_ann!I48","v":12},{"$f":"[1]ACS_16_5YR_B25074_with_ann!J48","v":0},{"$f":"[1]ACS_16_5YR_B25074_with_ann!K48","v":12},{"$f":"[1]ACS_16_5YR_B25074_with_ann!L48","v":0},{"$f":"[1]ACS_16_5YR_B25074_with_ann!M48","v":12},{"$f":"[1]ACS_16_5YR_B25074_with_ann!N48","v":0},{"$f":"[1]ACS_16_5YR_B25074_with_ann!O48","v":12},{"$f":"[1]ACS_16_5YR_B25074_with_ann!P48","v":0},{"$f":"[1]ACS_16_5YR_B25074_with_ann!Q48","v":12},{"$f":"[1]ACS_16_5YR_B25074_with_ann!R48","v":0},{"$f":"[1]ACS_16_5YR_B25074_with_ann!S48","v":12},{"$f":"[1]ACS_16_5YR_B25074_with_ann!T48","v":0},{"$f":"[1]ACS_16_5YR_B25074_with_ann!U48","v":12},{"$f":"[1]ACS_16_5YR_B25074_with_ann!V48","v":0},{"$f":"[1]ACS_16_5YR_B25074_with_ann!W48","v":12},{"$f":"[1]ACS_16_5YR_B25074_with_ann!X48","v":0},{"$f":"[1]ACS_16_5YR_B25074_with_ann!Y48","v":12},{"$f":"[1]ACS_16_5YR_B25074_with_ann!Z48","v":0},{"$f":"[1]ACS_16_5YR_B25074_with_ann!AA48","v":12},{"$f":"[1]ACS_16_5YR_B25074_with_ann!AB48","v":0},{"$f":"[1]ACS_16_5YR_B25074_with_ann!AC48","v":12},{"$f":"[1]ACS_16_5YR_B25074_with_ann!AD48","v":0},{"$f":"[1]ACS_16_5YR_B25074_with_ann!AE48","v":12},{"$f":"[1]ACS_16_5YR_B25074_with_ann!AF48","v":0},{"$f":"[1]ACS_16_5YR_B25074_with_ann!AG48","v":12},{"$f":"[1]ACS_16_5YR_B25074_with_ann!AH48","v":0},{"$f":"[1]ACS_16_5YR_B25074_with_ann!AI48","v":12},{"$f":"[1]ACS_16_5YR_B25074_with_ann!AJ48","v":0},{"$f":"[1]ACS_16_5YR_B25074_with_ann!AK48","v":12},{"$f":"[1]ACS_16_5YR_B25074_with_ann!AL48","v":0},{"$f":"[1]ACS_16_5YR_B25074_with_ann!AM48","v":12},{"$f":"[1]ACS_16_5YR_B25074_with_ann!AN48","v":0},{"$f":"[1]ACS_16_5YR_B25074_with_ann!AO48","v":12},{"$f":"[1]ACS_16_5YR_B25074_with_ann!AP48","v":3},{"$f":"[1]ACS_16_5YR_B25074_with_ann!AQ48","v":4},{"$f":"[1]ACS_16_5YR_B25074_with_ann!AR48","v":0},{"$f":"[1]ACS_16_5YR_B25074_with_ann!AS48","v":12},{"$f":"[1]ACS_16_5YR_B25074_with_ann!AT48","v":0},{"$f":"[1]ACS_16_5YR_B25074_with_ann!AU48","v":12},{"$f":"[1]ACS_16_5YR_B25074_with_ann!AV48","v":0},{"$f":"[1]ACS_16_5YR_B25074_with_ann!AW48","v":12},{"$f":"[1]ACS_16_5YR_B25074_with_ann!AX48","v":3},{"$f":"[1]ACS_16_5YR_B25074_with_ann!AY48","v":4},{"$f":"[1]ACS_16_5YR_B25074_with_ann!AZ48","v":0},{"$f":"[1]ACS_16_5YR_B25074_with_ann!BA48","v":12},{"$f":"[1]ACS_16_5YR_B25074_with_ann!BB48","v":0},{"$f":"[1]ACS_16_5YR_B25074_with_ann!BC48","v":12},{"$f":"[1]ACS_16_5YR_B25074_with_ann!BD48","v":0},{"$f":"[1]ACS_16_5YR_B25074_with_ann!BE48","v":12},{"$f":"[1]ACS_16_5YR_B25074_with_ann!BF48","v":0},{"$f":"[1]ACS_16_5YR_B25074_with_ann!BG48","v":12},{"$f":"[1]ACS_16_5YR_B25074_with_ann!BH48","v":8},{"$f":"[1]ACS_16_5YR_B25074_with_ann!BI48","v":7},{"$f":"[1]ACS_16_5YR_B25074_with_ann!BJ48","v":0},{"$f":"[1]ACS_16_5YR_B25074_with_ann!BK48","v":12},{"$f":"[1]ACS_16_5YR_B25074_with_ann!BL48","v":0},{"$f":"[1]ACS_16_5YR_B25074_with_ann!BM48","v":12},{"$f":"[1]ACS_16_5YR_B25074_with_ann!BN48","v":2},{"$f":"[1]ACS_16_5YR_B25074_with_ann!BO48","v":4},{"$f":"[1]ACS_16_5YR_B25074_with_ann!BP48","v":0},{"$f":"[1]ACS_16_5YR_B25074_with_ann!BQ48","v":12},{"$f":"[1]ACS_16_5YR_B25074_with_ann!BR48","v":0},{"$f":"[1]ACS_16_5YR_B25074_with_ann!BS48","v":12},{"$f":"[1]ACS_16_5YR_B25074_with_ann!BT48","v":5},{"$f":"[1]ACS_16_5YR_B25074_with_ann!BU48","v":7},{"$f":"[1]ACS_16_5YR_B25074_with_ann!BV48","v":1},{"$f":"[1]ACS_16_5YR_B25074_with_ann!BW48","v":2},{"$f":"[1]ACS_16_5YR_B25074_with_ann!BX48","v":0},{"$f":"[1]ACS_16_5YR_B25074_with_ann!BY48","v":12},{"$f":"[1]ACS_16_5YR_B25074_with_ann!BZ48","v":12},{"$f":"[1]ACS_16_5YR_B25074_with_ann!CA48","v":11},{"$f":"[1]ACS_16_5YR_B25074_with_ann!CB48","v":0},{"$f":"[1]ACS_16_5YR_B25074_with_ann!CC48","v":12},{"$f":"[1]ACS_16_5YR_B25074_with_ann!CD48","v":2},{"$f":"[1]ACS_16_5YR_B25074_with_ann!CE48","v":5},{"$f":"[1]ACS_16_5YR_B25074_with_ann!CF48","v":8},{"$f":"[1]ACS_16_5YR_B25074_with_ann!CG48","v":9},{"$f":"[1]ACS_16_5YR_B25074_with_ann!CH48","v":0},{"$f":"[1]ACS_16_5YR_B25074_with_ann!CI48","v":12},{"$f":"[1]ACS_16_5YR_B25074_with_ann!CJ48","v":2},{"$f":"[1]ACS_16_5YR_B25074_with_ann!CK48","v":2},{"$f":"[1]ACS_16_5YR_B25074_with_ann!CL48","v":0},{"$f":"[1]ACS_16_5YR_B25074_with_ann!CM48","v":12},{"$f":"[1]ACS_16_5YR_B25074_with_ann!CN48","v":0},{"$f":"[1]ACS_16_5YR_B25074_with_ann!CO48","v":12},{"$f":"[1]ACS_16_5YR_B25074_with_ann!CP48","v":0},{"$f":"[1]ACS_16_5YR_B25074_with_ann!CQ48","v":12},{"$f":"[1]ACS_16_5YR_B25074_with_ann!CR48","v":2},{"$f":"[1]ACS_16_5YR_B25074_with_ann!CS48","v":3},{"$f":"[1]ACS_16_5YR_B25074_with_ann!CT48","v":0},{"$f":"[1]ACS_16_5YR_B25074_with_ann!CU48","v":12},{"$f":"[1]ACS_16_5YR_B25074_with_ann!CV48","v":2},{"$f":"[1]ACS_16_5YR_B25074_with_ann!CW48","v":3},{"$f":"[1]ACS_16_5YR_B25074_with_ann!CX48","v":0},{"$f":"[1]ACS_16_5YR_B25074_with_ann!CY48","v":12},{"$f":"[1]ACS_16_5YR_B25074_with_ann!CZ48","v":0},{"$f":"[1]ACS_16_5YR_B25074_with_ann!DA48","v":12},{"$f":"[1]ACS_16_5YR_B25074_with_ann!DB48","v":0},{"$f":"[1]ACS_16_5YR_B25074_with_ann!DC48","v":12},{"$f":"[1]ACS_16_5YR_B25074_with_ann!DD48","v":0},{"$f":"[1]ACS_16_5YR_B25074_with_ann!DE48","v":12},{"$f":"[1]ACS_16_5YR_B25074_with_ann!DF48","v":0},{"$f":"[1]ACS_16_5YR_B25074_with_ann!DG48","v":12},{"$f":"[1]ACS_16_5YR_B25074_with_ann!DH48","v":0},{"$f":"[1]ACS_16_5YR_B25074_with_ann!DI48","v":12},{"$f":"[1]ACS_16_5YR_B25074_with_ann!DJ48","v":0},{"$f":"[1]ACS_16_5YR_B25074_with_ann!DK48","v":12},{"$f":"[1]ACS_16_5YR_B25074_with_ann!DL48","v":0},{"$f":"[1]ACS_16_5YR_B25074_with_ann!DM48","v":12},{"$f":"[1]ACS_16_5YR_B25074_with_ann!DN48","v":0},{"$f":"[1]ACS_16_5YR_B25074_with_ann!DO48","v":12},{"$f":"[1]ACS_16_5YR_B25074_with_ann!DP48","v":0},{"$f":"[1]ACS_16_5YR_B25074_with_ann!DQ48","v":12},{"$f":"[1]ACS_16_5YR_B25074_with_ann!DR48","v":0},{"$f":"[1]ACS_16_5YR_B25074_with_ann!DS48","v":12},{"$f":"[1]ACS_16_5YR_B25074_with_ann!DT48","v":0},{"$f":"[1]ACS_16_5YR_B25074_with_ann!DU48","v":12},{"$f":"[1]ACS_16_5YR_B25074_with_ann!DV48","v":0},{"$f":"[1]ACS_16_5YR_B25074_with_ann!DW48","v":12},{"$f":"[1]ACS_16_5YR_B25074_with_ann!DX48","v":0},{"$f":"[1]ACS_16_5YR_B25074_with_ann!DY48","v":12},{"$f":"[1]ACS_16_5YR_B25074_with_ann!DZ48","v":0},{"$f":"[1]ACS_16_5YR_B25074_with_ann!EA48","v":12},null,{"$f":"[1]ACS_16_5YR_B25070_with_ann!C48","v":"Gilsum"}]
["06000US3300534420","0600000US3300536660","060",null,{"$f":"[1]ACS_16_5YR_B25070_with_ann!D49","v":30},{"$f":"[1]ACS_16_5YR_B25070_with_ann!E49","v":15},{"$f":"[1]ACS_16_5YR_B25070_with_ann!F49","v":9},{"$f":"[1]ACS_16_5YR_B25070_with_ann!G49","v":12},{"$f":"[1]ACS_16_5YR_B25070_with_ann!H49","v":3},{"$f":"[1]ACS_16_5YR_B25070_with_ann!I49","v":4},{"$f":"[1]ACS_16_5YR_B25070_with_ann!J49","v":0},{"$f":"[1]ACS_16_5YR_B25070_with_ann!K49","v":12},{"$f":"[1]ACS_16_5YR_B25070_with_ann!L49","v":8},{"$f":"[1]ACS_16_5YR_B25070_with_ann!M49","v":8},{"$f":"[1]ACS_16_5YR_B25070_with_ann!N49","v":0},{"$f":"[1]ACS_16_5YR_B25070_with_ann!O49","v":12},{"$f":"[1]ACS_16_5YR_B25070_with_ann!P49","v":4},{"$f":"[1]ACS_16_5YR_B25070_with_ann!Q49","v":6},{"$f":"[1]ACS_16_5YR_B25070_with_ann!R49","v":0},{"$f":"[1]ACS_16_5YR_B25070_with_ann!S49","v":12},{"$f":"[1]ACS_16_5YR_B25070_with_ann!T49","v":0},{"$f":"[1]ACS_16_5YR_B25070_with_ann!U49","v":12},{"$f":"[1]ACS_16_5YR_B25070_with_ann!V49","v":4},{"$f":"[1]ACS_16_5YR_B25070_with_ann!W49","v":5},{"$f":"[1]ACS_16_5YR_B25070_with_ann!X49","v":2},{"$f":"[1]ACS_16_5YR_B25070_with_ann!Y49","v":3},{"$f":"[1]ACS_16_5YR_B25074_with_ann!D49","v":30},{"$f":"[1]ACS_16_5YR_B25074_with_ann!E49","v":15},{"$f":"[1]ACS_16_5YR_B25074_with_ann!F49","v":0},{"$f":"[1]ACS_16_5YR_B25074_with_ann!G49","v":12},{"$f":"[1]ACS_16_5YR_B25074_with_ann!H49","v":0},{"$f":"[1]ACS_16_5YR_B25074_with_ann!I49","v":12},{"$f":"[1]ACS_16_5YR_B25074_with_ann!J49","v":0},{"$f":"[1]ACS_16_5YR_B25074_with_ann!K49","v":12},{"$f":"[1]ACS_16_5YR_B25074_with_ann!L49","v":0},{"$f":"[1]ACS_16_5YR_B25074_with_ann!M49","v":12},{"$f":"[1]ACS_16_5YR_B25074_with_ann!N49","v":0},{"$f":"[1]ACS_16_5YR_B25074_with_ann!O49","v":12},{"$f":"[1]ACS_16_5YR_B25074_with_ann!P49","v":0},{"$f":"[1]ACS_16_5YR_B25074_with_ann!Q49","v":12},{"$f":"[1]ACS_16_5YR_B25074_with_ann!R49","v":0},{"$f":"[1]ACS_16_5YR_B25074_with_ann!S49","v":12},{"$f":"[1]ACS_16_5YR_B25074_with_ann!T49","v":0},{"$f":"[1]ACS_16_5YR_B25074_with_ann!U49","v":12},{"$f":"[1]ACS_16_5YR_B25074_with_ann!V49","v":0},{"$f":"[1]ACS_16_5YR_B25074_with_ann!W49","v":12},{"$f":"[1]ACS_16_5YR_B25074_with_ann!X49","v":0},{"$f":"[1]ACS_16_5YR_B25074_with_ann!Y49","v":12},{"$f":"[1]ACS_16_5YR_B25074_with_ann!Z49","v":0},{"$f":"[1]ACS_16_5YR_B25074_with_ann!AA49","v":12},{"$f":"[1]ACS_16_5YR_B25074_with_ann!AB49","v":0},{"$f":"[1]ACS_16_5YR_B25074_with_ann!AC49","v":12},{"$f":"[1]ACS_16_5YR_B25074_with_ann!AD49","v":0},{"$f":"[1]ACS_16_5YR_B25074_with_ann!AE49","v":12},{"$f":"[1]ACS_16_5YR_B25074_with_ann!AF49","v":0},{"$f":"[1]ACS_16_5YR_B25074_with_ann!AG49","v":12},{"$f":"[1]ACS_16_5YR_B25074_with_ann!AH49","v":0},{"$f":"[1]ACS_16_5YR_B25074_with_ann!AI49","v":12},{"$f":"[1]ACS_16_5YR_B25074_with_ann!AJ49","v":0},{"$f":"[1]ACS_16_5YR_B25074_with_ann!AK49","v":12},{"$f":"[1]ACS_16_5YR_B25074_with_ann!AL49","v":0},{"$f":"[1]ACS_16_5YR_B25074_with_ann!AM49","v":12},{"$f":"[1]ACS_16_5YR_B25074_with_ann!AN49","v":0},{"$f":"[1]ACS_16_5YR_B25074_with_ann!AO49","v":12},{"$f":"[1]ACS_16_5YR_B25074_with_ann!AP49","v":4},{"$f":"[1]ACS_16_5YR_B25074_with_ann!AQ49","v":5},{"$f":"[1]ACS_16_5YR_B25074_with_ann!AR49","v":0},{"$f":"[1]ACS_16_5YR_B25074_with_ann!AS49","v":12},{"$f":"[1]ACS_16_5YR_B25074_with_ann!AT49","v":0},{"$f":"[1]ACS_16_5YR_B25074_with_ann!AU49","v":12},{"$f":"[1]ACS_16_5YR_B25074_with_ann!AV49","v":0},{"$f":"[1]ACS_16_5YR_B25074_with_ann!AW49","v":12},{"$f":"[1]ACS_16_5YR_B25074_with_ann!AX49","v":0},{"$f":"[1]ACS_16_5YR_B25074_with_ann!AY49","v":12},{"$f":"[1]ACS_16_5YR_B25074_with_ann!AZ49","v":0},{"$f":"[1]ACS_16_5YR_B25074_with_ann!BA49","v":12},{"$f":"[1]ACS_16_5YR_B25074_with_ann!BB49","v":0},{"$f":"[1]ACS_16_5YR_B25074_with_ann!BC49","v":12},{"$f":"[1]ACS_16_5YR_B25074_with_ann!BD49","v":4},{"$f":"[1]ACS_16_5YR_B25074_with_ann!BE49","v":5},{"$f":"[1]ACS_16_5YR_B25074_with_ann!BF49","v":0},{"$f":"[1]ACS_16_5YR_B25074_with_ann!BG49","v":12},{"$f":"[1]ACS_16_5YR_B25074_with_ann!BH49","v":0},{"$f":"[1]ACS_16_5YR_B25074_with_ann!BI49","v":12},{"$f":"[1]ACS_16_5YR_B25074_with_ann!BJ49","v":0},{"$f":"[1]ACS_16_5YR_B25074_with_ann!BK49","v":12},{"$f":"[1]ACS_16_5YR_B25074_with_ann!BL49","v":0},{"$f":"[1]ACS_16_5YR_B25074_with_ann!BM49","v":12},{"$f":"[1]ACS_16_5YR_B25074_with_ann!BN49","v":0},{"$f":"[1]ACS_16_5YR_B25074_with_ann!BO49","v":12},{"$f":"[1]ACS_16_5YR_B25074_with_ann!BP49","v":0},{"$f":"[1]ACS_16_5YR_B25074_with_ann!BQ49","v":12},{"$f":"[1]ACS_16_5YR_B25074_with_ann!BR49","v":0},{"$f":"[1]ACS_16_5YR_B25074_with_ann!BS49","v":12},{"$f":"[1]ACS_16_5YR_B25074_with_ann!BT49","v":0},{"$f":"[1]ACS_16_5YR_B25074_with_ann!BU49","v":12},{"$f":"[1]ACS_16_5YR_B25074_with_ann!BV49","v":0},{"$f":"[1]ACS_16_5YR_B25074_with_ann!BW49","v":12},{"$f":"[1]ACS_16_5YR_B25074_with_ann!BX49","v":0},{"$f":"[1]ACS_16_5YR_B25074_with_ann!BY49","v":12},{"$f":"[1]ACS_16_5YR_B25074_with_ann!BZ49","v":10},{"$f":"[1]ACS_16_5YR_B25074_with_ann!CA49","v":8},{"$f":"[1]ACS_16_5YR_B25074_with_ann!CB49","v":3},{"$f":"[1]ACS_16_5YR_B25074_with_ann!CC49","v":4},{"$f":"[1]ACS_16_5YR_B25074_with_ann!CD49","v":3},{"$f":"[1]ACS_16_5YR_B25074_with_ann!CE49","v":5},{"$f":"[1]ACS_16_5YR_B25074_with_ann!CF49","v":0},{"$f":"[1]ACS_16_5YR_B25074_with_ann!CG49","v":12},{"$f":"[1]ACS_16_5YR_B25074_with_ann!CH49","v":4},{"$f":"[1]ACS_16_5YR_B25074_with_ann!CI49","v":6},{"$f":"[1]ACS_16_5YR_B25074_with_ann!CJ49","v":0},{"$f":"[1]ACS_16_5YR_B25074_with_ann!CK49","v":12},{"$f":"[1]ACS_16_5YR_B25074_with_ann!CL49","v":0},{"$f":"[1]ACS_16_5YR_B25074_with_ann!CM49","v":12},{"$f":"[1]ACS_16_5YR_B25074_with_ann!CN49","v":0},{"$f":"[1]ACS_16_5YR_B25074_with_ann!CO49","v":12},{"$f":"[1]ACS_16_5YR_B25074_with_ann!CP49","v":0},{"$f":"[1]ACS_16_5YR_B25074_with_ann!CQ49","v":12},{"$f":"[1]ACS_16_5YR_B25074_with_ann!CR49","v":5},{"$f":"[1]ACS_16_5YR_B25074_with_ann!CS49","v":6},{"$f":"[1]ACS_16_5YR_B25074_with_ann!CT49","v":0},{"$f":"[1]ACS_16_5YR_B25074_with_ann!CU49","v":12},{"$f":"[1]ACS_16_5YR_B25074_with_ann!CV49","v":5},{"$f":"[1]ACS_16_5YR_B25074_with_ann!CW49","v":6},{"$f":"[1]ACS_16_5YR_B25074_with_ann!CX49","v":0},{"$f":"[1]ACS_16_5YR_B25074_with_ann!CY49","v":12},{"$f":"[1]ACS_16_5YR_B25074_with_ann!CZ49","v":0},{"$f":"[1]ACS_16_5YR_B25074_with_ann!DA49","v":12},{"$f":"[1]ACS_16_5YR_B25074_with_ann!DB49","v":0},{"$f":"[1]ACS_16_5YR_B25074_with_ann!DC49","v":12},{"$f":"[1]ACS_16_5YR_B25074_with_ann!DD49","v":0},{"$f":"[1]ACS_16_5YR_B25074_with_ann!DE49","v":12},{"$f":"[1]ACS_16_5YR_B25074_with_ann!DF49","v":0},{"$f":"[1]ACS_16_5YR_B25074_with_ann!DG49","v":12},{"$f":"[1]ACS_16_5YR_B25074_with_ann!DH49","v":0},{"$f":"[1]ACS_16_5YR_B25074_with_ann!DI49","v":12},{"$f":"[1]ACS_16_5YR_B25074_with_ann!DJ49","v":11},{"$f":"[1]ACS_16_5YR_B25074_with_ann!DK49","v":13},{"$f":"[1]ACS_16_5YR_B25074_with_ann!DL49","v":9},{"$f":"[1]ACS_16_5YR_B25074_with_ann!DM49","v":12},{"$f":"[1]ACS_16_5YR_B25074_with_ann!DN49","v":0},{"$f":"[1]ACS_16_5YR_B25074_with_ann!DO49","v":12},{"$f":"[1]ACS_16_5YR_B25074_with_ann!DP49","v":0},{"$f":"[1]ACS_16_5YR_B25074_with_ann!DQ49","v":12},{"$f":"[1]ACS_16_5YR_B25074_with_ann!DR49","v":0},{"$f":"[1]ACS_16_5YR_B25074_with_ann!DS49","v":12},{"$f":"[1]ACS_16_5YR_B25074_with_ann!DT49","v":0},{"$f":"[1]ACS_16_5YR_B25074_with_ann!DU49","v":12},{"$f":"[1]ACS_16_5YR_B25074_with_ann!DV49","v":0},{"$f":"[1]ACS_16_5YR_B25074_with_ann!DW49","v":12},{"$f":"[1]ACS_16_5YR_B25074_with_ann!DX49","v":0},{"$f":"[1]ACS_16_5YR_B25074_with_ann!DY49","v":12},{"$f":"[1]ACS_16_5YR_B25074_with_ann!DZ49","v":2},{"$f":"[1]ACS_16_5YR_B25074_with_ann!EA49","v":3},null,{"$f":"[1]ACS_16_5YR_B25070_with_ann!C49","v":"Harrisville"}]
["06000US3300536660","0600000US3300538500","060",null,{"$f":"[1]ACS_16_5YR_B25070_with_ann!D50","v":221},{"$f":"[1]ACS_16_5YR_B25070_with_ann!E50","v":105},{"$f":"[1]ACS_16_5YR_B25070_with_ann!F50","v":50},{"$f":"[1]ACS_16_5YR_B25070_with_ann!G50","v":68},{"$f":"[1]ACS_16_5YR_B25070_with_ann!H50","v":23},{"$f":"[1]ACS_16_5YR_B25070_with_ann!I50","v":27},{"$f":"[1]ACS_16_5YR_B25070_with_ann!J50","v":32},{"$f":"[1]ACS_16_5YR_B25070_with_ann!K50","v":43},{"$f":"[1]ACS_16_5YR_B25070_with_ann!L50","v":13},{"$f":"[1]ACS_16_5YR_B25070_with_ann!M50","v":22},{"$f":"[1]ACS_16_5YR_B25070_with_ann!N50","v":9},{"$f":"[1]ACS_16_5YR_B25070_with_ann!O50","v":14},{"$f":"[1]ACS_16_5YR_B25070_with_ann!P50","v":0},{"$f":"[1]ACS_16_5YR_B25070_with_ann!Q50","v":12},{"$f":"[1]ACS_16_5YR_B25070_with_ann!R50","v":9},{"$f":"[1]ACS_16_5YR_B25070_with_ann!S50","v":13},{"$f":"[1]ACS_16_5YR_B25070_with_ann!T50","v":14},{"$f":"[1]ACS_16_5YR_B25070_with_ann!U50","v":22},{"$f":"[1]ACS_16_5YR_B25070_with_ann!V50","v":43},{"$f":"[1]ACS_16_5YR_B25070_with_ann!W50","v":52},{"$f":"[1]ACS_16_5YR_B25070_with_ann!X50","v":28},{"$f":"[1]ACS_16_5YR_B25070_with_ann!Y50","v":42},{"$f":"[1]ACS_16_5YR_B25074_with_ann!D50","v":221},{"$f":"[1]ACS_16_5YR_B25074_with_ann!E50","v":105},{"$f":"[1]ACS_16_5YR_B25074_with_ann!F50","v":29},{"$f":"[1]ACS_16_5YR_B25074_with_ann!G50","v":47},{"$f":"[1]ACS_16_5YR_B25074_with_ann!H50","v":0},{"$f":"[1]ACS_16_5YR_B25074_with_ann!I50","v":12},{"$f":"[1]ACS_16_5YR_B25074_with_ann!J50","v":0},{"$f":"[1]ACS_16_5YR_B25074_with_ann!K50","v":12},{"$f":"[1]ACS_16_5YR_B25074_with_ann!L50","v":0},{"$f":"[1]ACS_16_5YR_B25074_with_ann!M50","v":12},{"$f":"[1]ACS_16_5YR_B25074_with_ann!N50","v":0},{"$f":"[1]ACS_16_5YR_B25074_with_ann!O50","v":12},{"$f":"[1]ACS_16_5YR_B25074_with_ann!P50","v":0},{"$f":"[1]ACS_16_5YR_B25074_with_ann!Q50","v":12},{"$f":"[1]ACS_16_5YR_B25074_with_ann!R50","v":0},{"$f":"[1]ACS_16_5YR_B25074_with_ann!S50","v":12},{"$f":"[1]ACS_16_5YR_B25074_with_ann!T50","v":29},{"$f":"[1]ACS_16_5YR_B25074_with_ann!U50","v":47},{"$f":"[1]ACS_16_5YR_B25074_with_ann!V50","v":0},{"$f":"[1]ACS_16_5YR_B25074_with_ann!W50","v":12},{"$f":"[1]ACS_16_5YR_B25074_with_ann!X50","v":14},{"$f":"[1]ACS_16_5YR_B25074_with_ann!Y50","v":21},{"$f":"[1]ACS_16_5YR_B25074_with_ann!Z50","v":0},{"$f":"[1]ACS_16_5YR_B25074_with_ann!AA50","v":12},{"$f":"[1]ACS_16_5YR_B25074_with_ann!AB50","v":0},{"$f":"[1]ACS_16_5YR_B25074_with_ann!AC50","v":12},{"$f":"[1]ACS_16_5YR_B25074_with_ann!AD50","v":0},{"$f":"[1]ACS_16_5YR_B25074_with_ann!AE50","v":12},{"$f":"[1]ACS_16_5YR_B25074_with_ann!AF50","v":0},{"$f":"[1]ACS_16_5YR_B25074_with_ann!AG50","v":12},{"$f":"[1]ACS_16_5YR_B25074_with_ann!AH50","v":0},{"$f":"[1]ACS_16_5YR_B25074_with_ann!AI50","v":12},{"$f":"[1]ACS_16_5YR_B25074_with_ann!AJ50","v":0},{"$f":"[1]ACS_16_5YR_B25074_with_ann!AK50","v":12},{"$f":"[1]ACS_16_5YR_B25074_with_ann!AL50","v":14},{"$f":"[1]ACS_16_5YR_B25074_with_ann!AM50","v":21},{"$f":"[1]ACS_16_5YR_B25074_with_ann!AN50","v":0},{"$f":"[1]ACS_16_5YR_B25074_with_ann!AO50","v":12},{"$f":"[1]ACS_16_5YR_B25074_with_ann!AP50","v":38},{"$f":"[1]ACS_16_5YR_B25074_with_ann!AQ50","v":33},{"$f":"[1]ACS_16_5YR_B25074_with_ann!AR50","v":15},{"$f":"[1]ACS_16_5YR_B25074_with_ann!AS50","v":23},{"$f":"[1]ACS_16_5YR_B25074_with_ann!AT50","v":0},{"$f":"[1]ACS_16_5YR_B25074_with_ann!AU50","v":12},{"$f":"[1]ACS_16_5YR_B25074_with_ann!AV50","v":0},{"$f":"[1]ACS_16_5YR_B25074_with_ann!AW50","v":12},{"$f":"[1]ACS_16_5YR_B25074_with_ann!AX50","v":0},{"$f":"[1]ACS_16_5YR_B25074_with_ann!AY50","v":12},{"$f":"[1]ACS_16_5YR_B25074_with_ann!AZ50","v":9},{"$f":"[1]ACS_16_5YR_B25074_with_ann!BA50","v":13},{"$f":"[1]ACS_16_5YR_B25074_with_ann!BB50","v":14},{"$f":"[1]ACS_16_5YR_B25074_with_ann!BC50","v":22},{"$f":"[1]ACS_16_5YR_B25074_with_ann!BD50","v":0},{"$f":"[1]ACS_16_5YR_B25074_with_ann!BE50","v":12},{"$f":"[1]ACS_16_5YR_B25074_with_ann!BF50","v":0},{"$f":"[1]ACS_16_5YR_B25074_with_ann!BG50","v":12},{"$f":"[1]ACS_16_5YR_B25074_with_ann!BH50","v":9},{"$f":"[1]ACS_16_5YR_B25074_with_ann!BI50","v":14},{"$f":"[1]ACS_16_5YR_B25074_with_ann!BJ50","v":0},{"$f":"[1]ACS_16_5YR_B25074_with_ann!BK50","v":12},{"$f":"[1]ACS_16_5YR_B25074_with_ann!BL50","v":0},{"$f":"[1]ACS_16_5YR_B25074_with_ann!BM50","v":12},{"$f":"[1]ACS_16_5YR_B25074_with_ann!BN50","v":9},{"$f":"[1]ACS_16_5YR_B25074_with_ann!BO50","v":14},{"$f":"[1]ACS_16_5YR_B25074_with_ann!BP50","v":0},{"$f":"[1]ACS_16_5YR_B25074_with_ann!BQ50","v":12},{"$f":"[1]ACS_16_5YR_B25074_with_ann!BR50","v":0},{"$f":"[1]ACS_16_5YR_B25074_with_ann!BS50","v":12},{"$f":"[1]ACS_16_5YR_B25074_with_ann!BT50","v":0},{"$f":"[1]ACS_16_5YR_B25074_with_ann!BU50","v":12},{"$f":"[1]ACS_16_5YR_B25074_with_ann!BV50","v":0},{"$f":"[1]ACS_16_5YR_B25074_with_ann!BW50","v":12},{"$f":"[1]ACS_16_5YR_B25074_with_ann!BX50","v":0},{"$f":"[1]ACS_16_5YR_B25074_with_ann!BY50","v":12},{"$f":"[1]ACS_16_5YR_B25074_with_ann!BZ50","v":49},{"$f":"[1]ACS_16_5YR_B25074_with_ann!CA50","v":50},{"$f":"[1]ACS_16_5YR_B25074_with_ann!CB50","v":8},{"$f":"[1]ACS_16_5YR_B25074_with_ann!CC50","v":14},{"$f":"[1]ACS_16_5YR_B25074_with_ann!CD50","v":13},{"$f":"[1]ACS_16_5YR_B25074_with_ann!CE50","v":22},{"$f":"[1]ACS_16_5YR_B25074_with_ann!CF50","v":0},{"$f":"[1]ACS_16_5YR_B25074_with_ann!CG50","v":12},{"$f":"[1]ACS_16_5YR_B25074_with_ann!CH50","v":0},{"$f":"[1]ACS_16_5YR_B25074_with_ann!CI50","v":12},{"$f":"[1]ACS_16_5YR_B25074_with_ann!CJ50","v":0},{"$f":"[1]ACS_16_5YR_B25074_with_ann!CK50","v":12},{"$f":"[1]ACS_16_5YR_B25074_with_ann!CL50","v":0},{"$f":"[1]ACS_16_5YR_B25074_with_ann!CM50","v":12},{"$f":"[1]ACS_16_5YR_B25074_with_ann!CN50","v":0},{"$f":"[1]ACS_16_5YR_B25074_with_ann!CO50","v":12},{"$f":"[1]ACS_16_5YR_B25074_with_ann!CP50","v":28},{"$f":"[1]ACS_16_5YR_B25074_with_ann!CQ50","v":42},{"$f":"[1]ACS_16_5YR_B25074_with_ann!CR50","v":0},{"$f":"[1]ACS_16_5YR_B25074_with_ann!CS50","v":12},{"$f":"[1]ACS_16_5YR_B25074_with_ann!CT50","v":0},{"$f":"[1]ACS_16_5YR_B25074_with_ann!CU50","v":12},{"$f":"[1]ACS_16_5YR_B25074_with_ann!CV50","v":0},{"$f":"[1]ACS_16_5YR_B25074_with_ann!CW50","v":12},{"$f":"[1]ACS_16_5YR_B25074_with_ann!CX50","v":0},{"$f":"[1]ACS_16_5YR_B25074_with_ann!CY50","v":12},{"$f":"[1]ACS_16_5YR_B25074_with_ann!CZ50","v":0},{"$f":"[1]ACS_16_5YR_B25074_with_ann!DA50","v":12},{"$f":"[1]ACS_16_5YR_B25074_with_ann!DB50","v":0},{"$f":"[1]ACS_16_5YR_B25074_with_ann!DC50","v":12},{"$f":"[1]ACS_16_5YR_B25074_with_ann!DD50","v":0},{"$f":"[1]ACS_16_5YR_B25074_with_ann!DE50","v":12},{"$f":"[1]ACS_16_5YR_B25074_with_ann!DF50","v":0},{"$f":"[1]ACS_16_5YR_B25074_with_ann!DG50","v":12},{"$f":"[1]ACS_16_5YR_B25074_with_ann!DH50","v":0},{"$f":"[1]ACS_16_5YR_B25074_with_ann!DI50","v":12},{"$f":"[1]ACS_16_5YR_B25074_with_ann!DJ50","v":82},{"$f":"[1]ACS_16_5YR_B25074_with_ann!DK50","v":80},{"$f":"[1]ACS_16_5YR_B25074_with_ann!DL50","v":82},{"$f":"[1]ACS_16_5YR_B25074_with_ann!DM50","v":80},{"$f":"[1]ACS_16_5YR_B25074_with_ann!DN50","v":0},{"$f":"[1]ACS_16_5YR_B25074_with_ann!DO50","v":12},{"$f":"[1]ACS_16_5YR_B25074_with_ann!DP50","v":0},{"$f":"[1]ACS_16_5YR_B25074_with_ann!DQ50","v":12},{"$f":"[1]ACS_16_5YR_B25074_with_ann!DR50","v":0},{"$f":"[1]ACS_16_5YR_B25074_with_ann!DS50","v":12},{"$f":"[1]ACS_16_5YR_B25074_with_ann!DT50","v":0},{"$f":"[1]ACS_16_5YR_B25074_with_ann!DU50","v":12},{"$f":"[1]ACS_16_5YR_B25074_with_ann!DV50","v":0},{"$f":"[1]ACS_16_5YR_B25074_with_ann!DW50","v":12},{"$f":"[1]ACS_16_5YR_B25074_with_ann!DX50","v":0},{"$f":"[1]ACS_16_5YR_B25074_with_ann!DY50","v":12},{"$f":"[1]ACS_16_5YR_B25074_with_ann!DZ50","v":0},{"$f":"[1]ACS_16_5YR_B25074_with_ann!EA50","v":12},null,{"$f":"[1]ACS_16_5YR_B25070_with_ann!C50","v":"Hinsdale"}]
["06000US3300538500","0600000US3300539300","060",null,{"$f":"[1]ACS_16_5YR_B25070_with_ann!D51","v":446},{"$f":"[1]ACS_16_5YR_B25070_with_ann!E51","v":167},{"$f":"[1]ACS_16_5YR_B25070_with_ann!F51","v":38},{"$f":"[1]ACS_16_5YR_B25070_with_ann!G51","v":47},{"$f":"[1]ACS_16_5YR_B25070_with_ann!H51","v":49},{"$f":"[1]ACS_16_5YR_B25070_with_ann!I51","v":74},{"$f":"[1]ACS_16_5YR_B25070_with_ann!J51","v":34},{"$f":"[1]ACS_16_5YR_B25070_with_ann!K51","v":49},{"$f":"[1]ACS_16_5YR_B25070_with_ann!L51","v":73},{"$f":"[1]ACS_16_5YR_B25070_with_ann!M51","v":61},{"$f":"[1]ACS_16_5YR_B25070_with_ann!N51","v":31},{"$f":"[1]ACS_16_5YR_B25070_with_ann!O51","v":37},{"$f":"[1]ACS_16_5YR_B25070_with_ann!P51","v":0},{"$f":"[1]ACS_16_5YR_B25070_with_ann!Q51","v":17},{"$f":"[1]ACS_16_5YR_B25070_with_ann!R51","v":38},{"$f":"[1]ACS_16_5YR_B25070_with_ann!S51","v":47},{"$f":"[1]ACS_16_5YR_B25070_with_ann!T51","v":111},{"$f":"[1]ACS_16_5YR_B25070_with_ann!U51","v":109},{"$f":"[1]ACS_16_5YR_B25070_with_ann!V51","v":55},{"$f":"[1]ACS_16_5YR_B25070_with_ann!W51","v":45},{"$f":"[1]ACS_16_5YR_B25070_with_ann!X51","v":17},{"$f":"[1]ACS_16_5YR_B25070_with_ann!Y51","v":28},{"$f":"[1]ACS_16_5YR_B25074_with_ann!D51","v":446},{"$f":"[1]ACS_16_5YR_B25074_with_ann!E51","v":167},{"$f":"[1]ACS_16_5YR_B25074_with_ann!F51","v":12},{"$f":"[1]ACS_16_5YR_B25074_with_ann!G51","v":21},{"$f":"[1]ACS_16_5YR_B25074_with_ann!H51","v":0},{"$f":"[1]ACS_16_5YR_B25074_with_ann!I51","v":17},{"$f":"[1]ACS_16_5YR_B25074_with_ann!J51","v":0},{"$f":"[1]ACS_16_5YR_B25074_with_ann!K51","v":17},{"$f":"[1]ACS_16_5YR_B25074_with_ann!L51","v":0},{"$f":"[1]ACS_16_5YR_B25074_with_ann!M51","v":17},{"$f":"[1]ACS_16_5YR_B25074_with_ann!N51","v":0},{"$f":"[1]ACS_16_5YR_B25074_with_ann!O51","v":17},{"$f":"[1]ACS_16_5YR_B25074_with_ann!P51","v":0},{"$f":"[1]ACS_16_5YR_B25074_with_ann!Q51","v":17},{"$f":"[1]ACS_16_5YR_B25074_with_ann!R51","v":0},{"$f":"[1]ACS_16_5YR_B25074_with_ann!S51","v":17},{"$f":"[1]ACS_16_5YR_B25074_with_ann!T51","v":12},{"$f":"[1]ACS_16_5YR_B25074_with_ann!U51","v":21},{"$f":"[1]ACS_16_5YR_B25074_with_ann!V51","v":0},{"$f":"[1]ACS_16_5YR_B25074_with_ann!W51","v":17},{"$f":"[1]ACS_16_5YR_B25074_with_ann!X51","v":61},{"$f":"[1]ACS_16_5YR_B25074_with_ann!Y51","v":55},{"$f":"[1]ACS_16_5YR_B25074_with_ann!Z51","v":0},{"$f":"[1]ACS_16_5YR_B25074_with_ann!AA51","v":17},{"$f":"[1]ACS_16_5YR_B25074_with_ann!AB51","v":28},{"$f":"[1]ACS_16_5YR_B25074_with_ann!AC51","v":42},{"$f":"[1]ACS_16_5YR_B25074_with_ann!AD51","v":0},{"$f":"[1]ACS_16_5YR_B25074_with_ann!AE51","v":17},{"$f":"[1]ACS_16_5YR_B25074_with_ann!AF51","v":0},{"$f":"[1]ACS_16_5YR_B25074_with_ann!AG51","v":17},{"$f":"[1]ACS_16_5YR_B25074_with_ann!AH51","v":0},{"$f":"[1]ACS_16_5YR_B25074_with_ann!AI51","v":17},{"$f":"[1]ACS_16_5YR_B25074_with_ann!AJ51","v":0},{"$f":"[1]ACS_16_5YR_B25074_with_ann!AK51","v":17},{"$f":"[1]ACS_16_5YR_B25074_with_ann!AL51","v":33},{"$f":"[1]ACS_16_5YR_B25074_with_ann!AM51","v":34},{"$f":"[1]ACS_16_5YR_B25074_with_ann!AN51","v":0},{"$f":"[1]ACS_16_5YR_B25074_with_ann!AO51","v":17},{"$f":"[1]ACS_16_5YR_B25074_with_ann!AP51","v":95},{"$f":"[1]ACS_16_5YR_B25074_with_ann!AQ51","v":65},{"$f":"[1]ACS_16_5YR_B25074_with_ann!AR51","v":0},{"$f":"[1]ACS_16_5YR_B25074_with_ann!AS51","v":17},{"$f":"[1]ACS_16_5YR_B25074_with_ann!AT51","v":10},{"$f":"[1]ACS_16_5YR_B25074_with_ann!AU51","v":17},{"$f":"[1]ACS_16_5YR_B25074_with_ann!AV51","v":21},{"$f":"[1]ACS_16_5YR_B25074_with_ann!AW51","v":33},{"$f":"[1]ACS_16_5YR_B25074_with_ann!AX51","v":0},{"$f":"[1]ACS_16_5YR_B25074_with_ann!AY51","v":17},{"$f":"[1]ACS_16_5YR_B25074_with_ann!AZ51","v":38},{"$f":"[1]ACS_16_5YR_B25074_with_ann!BA51","v":47},{"$f":"[1]ACS_16_5YR_B25074_with_ann!BB51","v":26},{"$f":"[1]ACS_16_5YR_B25074_with_ann!BC51","v":35},{"$f":"[1]ACS_16_5YR_B25074_with_ann!BD51","v":0},{"$f":"[1]ACS_16_5YR_B25074_with_ann!BE51","v":17},{"$f":"[1]ACS_16_5YR_B25074_with_ann!BF51","v":0},{"$f":"[1]ACS_16_5YR_B25074_with_ann!BG51","v":17},{"$f":"[1]ACS_16_5YR_B25074_with_ann!BH51","v":21},{"$f":"[1]ACS_16_5YR_B25074_with_ann!BI51","v":27},{"$f":"[1]ACS_16_5YR_B25074_with_ann!BJ51","v":0},{"$f":"[1]ACS_16_5YR_B25074_with_ann!BK51","v":17},{"$f":"[1]ACS_16_5YR_B25074_with_ann!BL51","v":0},{"$f":"[1]ACS_16_5YR_B25074_with_ann!BM51","v":17},{"$f":"[1]ACS_16_5YR_B25074_with_ann!BN51","v":0},{"$f":"[1]ACS_16_5YR_B25074_with_ann!BO51","v":17},{"$f":"[1]ACS_16_5YR_B25074_with_ann!BP51","v":0},{"$f":"[1]ACS_16_5YR_B25074_with_ann!BQ51","v":17},{"$f":"[1]ACS_16_5YR_B25074_with_ann!BR51","v":0},{"$f":"[1]ACS_16_5YR_B25074_with_ann!BS51","v":17},{"$f":"[1]ACS_16_5YR_B25074_with_ann!BT51","v":11},{"$f":"[1]ACS_16_5YR_B25074_with_ann!BU51","v":20},{"$f":"[1]ACS_16_5YR_B25074_with_ann!BV51","v":10},{"$f":"[1]ACS_16_5YR_B25074_with_ann!BW51","v":19},{"$f":"[1]ACS_16_5YR_B25074_with_ann!BX51","v":0},{"$f":"[1]ACS_16_5YR_B25074_with_ann!BY51","v":17},{"$f":"[1]ACS_16_5YR_B25074_with_ann!BZ51","v":167},{"$f":"[1]ACS_16_5YR_B25074_with_ann!CA51","v":124},{"$f":"[1]ACS_16_5YR_B25074_with_ann!CB51","v":61},{"$f":"[1]ACS_16_5YR_B25074_with_ann!CC51","v":66},{"$f":"[1]ACS_16_5YR_B25074_with_ann!CD51","v":22},{"$f":"[1]ACS_16_5YR_B25074_with_ann!CE51","v":28},{"$f":"[1]ACS_16_5YR_B25074_with_ann!CF51","v":10},{"$f":"[1]ACS_16_5YR_B25074_with_ann!CG51","v":18},{"$f":"[1]ACS_16_5YR_B25074_with_ann!CH51","v":0},{"$f":"[1]ACS_16_5YR_B25074_with_ann!CI51","v":17},{"$f":"[1]ACS_16_5YR_B25074_with_ann!CJ51","v":0},{"$f":"[1]ACS_16_5YR_B25074_with_ann!CK51","v":17},{"$f":"[1]ACS_16_5YR_B25074_with_ann!CL51","v":74},{"$f":"[1]ACS_16_5YR_B25074_with_ann!CM51","v":91},{"$f":"[1]ACS_16_5YR_B25074_with_ann!CN51","v":0},{"$f":"[1]ACS_16_5YR_B25074_with_ann!CO51","v":17},{"$f":"[1]ACS_16_5YR_B25074_with_ann!CP51","v":0},{"$f":"[1]ACS_16_5YR_B25074_with_ann!CQ51","v":17},{"$f":"[1]ACS_16_5YR_B25074_with_ann!CR51","v":0},{"$f":"[1]ACS_16_5YR_B25074_with_ann!CS51","v":17},{"$f":"[1]ACS_16_5YR_B25074_with_ann!CT51","v":0},{"$f":"[1]ACS_16_5YR_B25074_with_ann!CU51","v":17},{"$f":"[1]ACS_16_5YR_B25074_with_ann!CV51","v":0},{"$f":"[1]ACS_16_5YR_B25074_with_ann!CW51","v":17},{"$f":"[1]ACS_16_5YR_B25074_with_ann!CX51","v":0},{"$f":"[1]ACS_16_5YR_B25074_with_ann!CY51","v":17},{"$f":"[1]ACS_16_5YR_B25074_with_ann!CZ51","v":0},{"$f":"[1]ACS_16_5YR_B25074_with_ann!DA51","v":17},{"$f":"[1]ACS_16_5YR_B25074_with_ann!DB51","v":0},{"$f":"[1]ACS_16_5YR_B25074_with_ann!DC51","v":17},{"$f":"[1]ACS_16_5YR_B25074_with_ann!DD51","v":0},{"$f":"[1]ACS_16_5YR_B25074_with_ann!DE51","v":17},{"$f":"[1]ACS_16_5YR_B25074_with_ann!DF51","v":0},{"$f":"[1]ACS_16_5YR_B25074_with_ann!DG51","v":17},{"$f":"[1]ACS_16_5YR_B25074_with_ann!DH51","v":0},{"$f":"[1]ACS_16_5YR_B25074_with_ann!DI51","v":17},{"$f":"[1]ACS_16_5YR_B25074_with_ann!DJ51","v":90},{"$f":"[1]ACS_16_5YR_B25074_with_ann!DK51","v":81},{"$f":"[1]ACS_16_5YR_B25074_with_ann!DL51","v":60},{"$f":"[1]ACS_16_5YR_B25074_with_ann!DM51","v":78},{"$f":"[1]ACS_16_5YR_B25074_with_ann!DN51","v":13},{"$f":"[1]ACS_16_5YR_B25074_with_ann!DO51","v":21},{"$f":"[1]ACS_16_5YR_B25074_with_ann!DP51","v":0},{"$f":"[1]ACS_16_5YR_B25074_with_ann!DQ51","v":17},{"$f":"[1]ACS_16_5YR_B25074_with_ann!DR51","v":0},{"$f":"[1]ACS_16_5YR_B25074_with_ann!DS51","v":17},{"$f":"[1]ACS_16_5YR_B25074_with_ann!DT51","v":0},{"$f":"[1]ACS_16_5YR_B25074_with_ann!DU51","v":17},{"$f":"[1]ACS_16_5YR_B25074_with_ann!DV51","v":0},{"$f":"[1]ACS_16_5YR_B25074_with_ann!DW51","v":17},{"$f":"[1]ACS_16_5YR_B25074_with_ann!DX51","v":0},{"$f":"[1]ACS_16_5YR_B25074_with_ann!DY51","v":17},{"$f":"[1]ACS_16_5YR_B25074_with_ann!DZ51","v":17},{"$f":"[1]ACS_16_5YR_B25074_with_ann!EA51","v":28},null,{"$f":"[1]ACS_16_5YR_B25070_with_ann!C51","v":"Jaffrey"}]
["06000US3300539300","0600000US3300545460","060",null,{"$f":"[1]ACS_16_5YR_B25070_with_ann!D52","v":4497},{"$f":"[1]ACS_16_5YR_B25070_with_ann!E52","v":356},{"$f":"[1]ACS_16_5YR_B25070_with_ann!F52","v":122},{"$f":"[1]ACS_16_5YR_B25070_with_ann!G52","v":70},{"$f":"[1]ACS_16_5YR_B25070_with_ann!H52","v":373},{"$f":"[1]ACS_16_5YR_B25070_with_ann!I52","v":155},{"$f":"[1]ACS_16_5YR_B25070_with_ann!J52","v":642},{"$f":"[1]ACS_16_5YR_B25070_with_ann!K52","v":231},{"$f":"[1]ACS_16_5YR_B25070_with_ann!L52","v":615},{"$f":"[1]ACS_16_5YR_B25070_with_ann!M52","v":159},{"$f":"[1]ACS_16_5YR_B25070_with_ann!N52","v":720},{"$f":"[1]ACS_16_5YR_B25070_with_ann!O52","v":184},{"$f":"[1]ACS_16_5YR_B25070_with_ann!P52","v":423},{"$f":"[1]ACS_16_5YR_B25070_with_ann!Q52","v":150},{"$f":"[1]ACS_16_5YR_B25070_with_ann!R52","v":309},{"$f":"[1]ACS_16_5YR_B25070_with_ann!S52","v":141},{"$f":"[1]ACS_16_5YR_B25070_with_ann!T52","v":333},{"$f":"[1]ACS_16_5YR_B25070_with_ann!U52","v":119},{"$f":"[1]ACS_16_5YR_B25070_with_ann!V52","v":854},{"$f":"[1]ACS_16_5YR_B25070_with_ann!W52","v":210},{"$f":"[1]ACS_16_5YR_B25070_with_ann!X52","v":106},{"$f":"[1]ACS_16_5YR_B25070_with_ann!Y52","v":103},{"$f":"[1]ACS_16_5YR_B25074_with_ann!D52","v":4497},{"$f":"[1]ACS_16_5YR_B25074_with_ann!E52","v":356},{"$f":"[1]ACS_16_5YR_B25074_with_ann!F52","v":135},{"$f":"[1]ACS_16_5YR_B25074_with_ann!G52","v":100},{"$f":"[1]ACS_16_5YR_B25074_with_ann!H52","v":0},{"$f":"[1]ACS_16_5YR_B25074_with_ann!I52","v":22},{"$f":"[1]ACS_16_5YR_B25074_with_ann!J52","v":0},{"$f":"[1]ACS_16_5YR_B25074_with_ann!K52","v":22},{"$f":"[1]ACS_16_5YR_B25074_with_ann!L52","v":0},{"$f":"[1]ACS_16_5YR_B25074_with_ann!M52","v":22},{"$f":"[1]ACS_16_5YR_B25074_with_ann!N52","v":0},{"$f":"[1]ACS_16_5YR_B25074_with_ann!O52","v":22},{"$f":"[1]ACS_16_5YR_B25074_with_ann!P52","v":0},{"$f":"[1]ACS_16_5YR_B25074_with_ann!Q52","v":22},{"$f":"[1]ACS_16_5YR_B25074_with_ann!R52","v":0},{"$f":"[1]ACS_16_5YR_B25074_with_ann!S52","v":22},{"$f":"[1]ACS_16_5YR_B25074_with_ann!T52","v":82},{"$f":"[1]ACS_16_5YR_B25074_with_ann!U52","v":61},{"$f":"[1]ACS_16_5YR_B25074_with_ann!V52","v":53},{"$f":"[1]ACS_16_5YR_B25074_with_ann!W52","v":80},{"$f":"[1]ACS_16_5YR_B25074_with_ann!X52","v":876},{"$f":"[1]ACS_16_5YR_B25074_with_ann!Y52","v":218},{"$f":"[1]ACS_16_5YR_B25074_with_ann!Z52","v":72},{"$f":"[1]ACS_16_5YR_B25074_with_ann!AA52","v":83},{"$f":"[1]ACS_16_5YR_B25074_with_ann!AB52","v":49},{"$f":"[1]ACS_16_5YR_B25074_with_ann!AC52","v":49},{"$f":"[1]ACS_16_5YR_B25074_with_ann!AD52","v":168},{"$f":"[1]ACS_16_5YR_B25074_with_ann!AE52","v":99},{"$f":"[1]ACS_16_5YR_B25074_with_ann!AF52","v":22},{"$f":"[1]ACS_16_5YR_B25074_with_ann!AG52","v":25},{"$f":"[1]ACS_16_5YR_B25074_with_ann!AH52","v":11},{"$f":"[1]ACS_16_5YR_B25074_with_ann!AI52","v":18},{"$f":"[1]ACS_16_5YR_B25074_with_ann!AJ52","v":58},{"$f":"[1]ACS_16_5YR_B25074_with_ann!AK52","v":51},{"$f":"[1]ACS_16_5YR_B25074_with_ann!AL52","v":496},{"$f":"[1]ACS_16_5YR_B25074_with_ann!AM52","v":186},{"$f":"[1]ACS_16_5YR_B25074_with_ann!AN52","v":0},{"$f":"[1]ACS_16_5YR_B25074_with_ann!AO52","v":22},{"$f":"[1]ACS_16_5YR_B25074_with_ann!AP52","v":653},{"$f":"[1]ACS_16_5YR_B25074_with_ann!AQ52","v":192},{"$f":"[1]ACS_16_5YR_B25074_with_ann!AR52","v":0},{"$f":"[1]ACS_16_5YR_B25074_with_ann!AS52","v":22},{"$f":"[1]ACS_16_5YR_B25074_with_ann!AT52","v":26},{"$f":"[1]ACS_16_5YR_B25074_with_ann!AU52","v":34},{"$f":"[1]ACS_16_5YR_B25074_with_ann!AV52","v":60},{"$f":"[1]ACS_16_5YR_B25074_with_ann!AW52","v":52},{"$f":"[1]ACS_16_5YR_B25074_with_ann!AX52","v":135},{"$f":"[1]ACS_16_5YR_B25074_with_ann!AY52","v":96},{"$f":"[1]ACS_16_5YR_B25074_with_ann!AZ52","v":117},{"$f":"[1]ACS_16_5YR_B25074_with_ann!BA52","v":99},{"$f":"[1]ACS_16_5YR_B25074_with_ann!BB52","v":111},{"$f":"[1]ACS_16_5YR_B25074_with_ann!BC52","v":83},{"$f":"[1]ACS_16_5YR_B25074_with_ann!BD52","v":198},{"$f":"[1]ACS_16_5YR_B25074_with_ann!BE52","v":122},{"$f":"[1]ACS_16_5YR_B25074_with_ann!BF52","v":6},{"$f":"[1]ACS_16_5YR_B25074_with_ann!BG52","v":11},{"$f":"[1]ACS_16_5YR_B25074_with_ann!BH52","v":658},{"$f":"[1]ACS_16_5YR_B25074_with_ann!BI52","v":188},{"$f":"[1]ACS_16_5YR_B25074_with_ann!BJ52","v":35},{"$f":"[1]ACS_16_5YR_B25074_with_ann!BK52","v":44},{"$f":"[1]ACS_16_5YR_B25074_with_ann!BL52","v":79},{"$f":"[1]ACS_16_5YR_B25074_with_ann!BM52","v":76},{"$f":"[1]ACS_16_5YR_B25074_with_ann!BN52","v":119},{"$f":"[1]ACS_16_5YR_B25074_with_ann!BO52","v":72},{"$f":"[1]ACS_16_5YR_B25074_with_ann!BP52","v":117},{"$f":"[1]ACS_16_5YR_B25074_with_ann!BQ52","v":88},{"$f":"[1]ACS_16_5YR_B25074_with_ann!BR52","v":124},{"$f":"[1]ACS_16_5YR_B25074_with_ann!BS52","v":78},{"$f":"[1]ACS_16_5YR_B25074_with_ann!BT52","v":124},{"$f":"[1]ACS_16_5YR_B25074_with_ann!BU52","v":71},{"$f":"[1]ACS_16_5YR_B25074_with_ann!BV52","v":60},{"$f":"[1]ACS_16_5YR_B25074_with_ann!BW52","v":71},{"$f":"[1]ACS_16_5YR_B25074_with_ann!BX52","v":0},{"$f":"[1]ACS_16_5YR_B25074_with_ann!BY52","v":22},{"$f":"[1]ACS_16_5YR_B25074_with_ann!BZ52","v":863},{"$f":"[1]ACS_16_5YR_B25074_with_ann!CA52","v":212},{"$f":"[1]ACS_16_5YR_B25074_with_ann!CB52","v":151},{"$f":"[1]ACS_16_5YR_B25074_with_ann!CC52","v":95},{"$f":"[1]ACS_16_5YR_B25074_with_ann!CD52","v":220},{"$f":"[1]ACS_16_5YR_B25074_with_ann!CE52","v":115},{"$f":"[1]ACS_16_5YR_B25074_with_ann!CF52","v":198},{"$f":"[1]ACS_16_5YR_B25074_with_ann!CG52","v":98},{"$f":"[1]ACS_16_5YR_B25074_with_ann!CH52","v":149},{"$f":"[1]ACS_16_5YR_B25074_with_ann!CI52","v":72},{"$f":"[1]ACS_16_5YR_B25074_with_ann!CJ52","v":57},{"$f":"[1]ACS_16_5YR_B25074_with_ann!CK52","v":67},{"$f":"[1]ACS_16_5YR_B25074_with_ann!CL52","v":40},{"$f":"[1]ACS_16_5YR_B25074_with_ann!CM52","v":39},{"$f":"[1]ACS_16_5YR_B25074_with_ann!CN52","v":1},{"$f":"[1]ACS_16_5YR_B25074_with_ann!CO52","v":3},{"$f":"[1]ACS_16_5YR_B25074_with_ann!CP52","v":47},{"$f":"[1]ACS_16_5YR_B25074_with_ann!CQ52","v":57},{"$f":"[1]ACS_16_5YR_B25074_with_ann!CR52","v":590},{"$f":"[1]ACS_16_5YR_B25074_with_ann!CS52","v":156},{"$f":"[1]ACS_16_5YR_B25074_with_ann!CT52","v":288},{"$f":"[1]ACS_16_5YR_B25074_with_ann!CU52","v":125},{"$f":"[1]ACS_16_5YR_B25074_with_ann!CV52","v":153},{"$f":"[1]ACS_16_5YR_B25074_with_ann!CW52","v":89},{"$f":"[1]ACS_16_5YR_B25074_with_ann!CX52","v":149},{"$f":"[1]ACS_16_5YR_B25074_with_ann!CY52","v":103},{"$f":"[1]ACS_16_5YR_B25074_with_ann!CZ52","v":0},{"$f":"[1]ACS_16_5YR_B25074_with_ann!DA52","v":22},{"$f":"[1]ACS_16_5YR_B25074_with_ann!DB52","v":0},{"$f":"[1]ACS_16_5YR_B25074_with_ann!DC52","v":22},{"$f":"[1]ACS_16_5YR_B25074_with_ann!DD52","v":0},{"$f":"[1]ACS_16_5YR_B25074_with_ann!DE52","v":22},{"$f":"[1]ACS_16_5YR_B25074_with_ann!DF52","v":0},{"$f":"[1]ACS_16_5YR_B25074_with_ann!DG52","v":22},{"$f":"[1]ACS_16_5YR_B25074_with_ann!DH52","v":0},{"$f":"[1]ACS_16_5YR_B25074_with_ann!DI52","v":22},{"$f":"[1]ACS_16_5YR_B25074_with_ann!DJ52","v":722},{"$f":"[1]ACS_16_5YR_B25074_with_ann!DK52","v":223},{"$f":"[1]ACS_16_5YR_B25074_with_ann!DL52","v":591},{"$f":"[1]ACS_16_5YR_B25074_with_ann!DM52","v":233},{"$f":"[1]ACS_16_5YR_B25074_with_ann!DN52","v":88},{"$f":"[1]ACS_16_5YR_B25074_with_ann!DO52","v":73},{"$f":"[1]ACS_16_5YR_B25074_with_ann!DP52","v":26},{"$f":"[1]ACS_16_5YR_B25074_with_ann!DQ52","v":31},{"$f":"[1]ACS_16_5YR_B25074_with_ann!DR52","v":0},{"$f":"[1]ACS_16_5YR_B25074_with_ann!DS52","v":22},{"$f":"[1]ACS_16_5YR_B25074_with_ann!DT52","v":0},{"$f":"[1]ACS_16_5YR_B25074_with_ann!DU52","v":22},{"$f":"[1]ACS_16_5YR_B25074_with_ann!DV52","v":0},{"$f":"[1]ACS_16_5YR_B25074_with_ann!DW52","v":22},{"$f":"[1]ACS_16_5YR_B25074_with_ann!DX52","v":17},{"$f":"[1]ACS_16_5YR_B25074_with_ann!DY52","v":28},{"$f":"[1]ACS_16_5YR_B25074_with_ann!DZ52","v":0},{"$f":"[1]ACS_16_5YR_B25074_with_ann!EA52","v":22},null,{"$f":"[1]ACS_16_5YR_B25070_with_ann!C52","v":"Keene"}]
["06000US3300545460","0600000US3300545700","060",null,{"$f":"[1]ACS_16_5YR_B25070_with_ann!D53","v":334},{"$f":"[1]ACS_16_5YR_B25070_with_ann!E53","v":92},{"$f":"[1]ACS_16_5YR_B25070_with_ann!F53","v":30},{"$f":"[1]ACS_16_5YR_B25070_with_ann!G53","v":35},{"$f":"[1]ACS_16_5YR_B25070_with_ann!H53","v":31},{"$f":"[1]ACS_16_5YR_B25070_with_ann!I53","v":27},{"$f":"[1]ACS_16_5YR_B25070_with_ann!J53","v":14},{"$f":"[1]ACS_16_5YR_B25070_with_ann!K53","v":12},{"$f":"[1]ACS_16_5YR_B25070_with_ann!L53","v":18},{"$f":"[1]ACS_16_5YR_B25070_with_ann!M53","v":14},{"$f":"[1]ACS_16_5YR_B25070_with_ann!N53","v":65},{"$f":"[1]ACS_16_5YR_B25070_with_ann!O53","v":34},{"$f":"[1]ACS_16_5YR_B25070_with_ann!P53","v":16},{"$f":"[1]ACS_16_5YR_B25070_with_ann!Q53","v":21},{"$f":"[1]ACS_16_5YR_B25070_with_ann!R53","v":17},{"$f":"[1]ACS_16_5YR_B25070_with_ann!S53","v":15},{"$f":"[1]ACS_16_5YR_B25070_with_ann!T53","v":16},{"$f":"[1]ACS_16_5YR_B25070_with_ann!U53","v":22},{"$f":"[1]ACS_16_5YR_B25070_with_ann!V53","v":111},{"$f":"[1]ACS_16_5YR_B25070_with_ann!W53","v":73},{"$f":"[1]ACS_16_5YR_B25070_with_ann!X53","v":16},{"$f":"[1]ACS_16_5YR_B25070_with_ann!Y53","v":13},{"$f":"[1]ACS_16_5YR_B25074_with_ann!D53","v":334},{"$f":"[1]ACS_16_5YR_B25074_with_ann!E53","v":92},{"$f":"[1]ACS_16_5YR_B25074_with_ann!F53","v":14},{"$f":"[1]ACS_16_5YR_B25074_with_ann!G53","v":16},{"$f":"[1]ACS_16_5YR_B25074_with_ann!H53","v":0},{"$f":"[1]ACS_16_5YR_B25074_with_ann!I53","v":12},{"$f":"[1]ACS_16_5YR_B25074_with_ann!J53","v":0},{"$f":"[1]ACS_16_5YR_B25074_with_ann!K53","v":12},{"$f":"[1]ACS_16_5YR_B25074_with_ann!L53","v":0},{"$f":"[1]ACS_16_5YR_B25074_with_ann!M53","v":12},{"$f":"[1]ACS_16_5YR_B25074_with_ann!N53","v":0},{"$f":"[1]ACS_16_5YR_B25074_with_ann!O53","v":12},{"$f":"[1]ACS_16_5YR_B25074_with_ann!P53","v":0},{"$f":"[1]ACS_16_5YR_B25074_with_ann!Q53","v":12},{"$f":"[1]ACS_16_5YR_B25074_with_ann!R53","v":0},{"$f":"[1]ACS_16_5YR_B25074_with_ann!S53","v":12},{"$f":"[1]ACS_16_5YR_B25074_with_ann!T53","v":14},{"$f":"[1]ACS_16_5YR_B25074_with_ann!U53","v":16},{"$f":"[1]ACS_16_5YR_B25074_with_ann!V53","v":0},{"$f":"[1]ACS_16_5YR_B25074_with_ann!W53","v":12},{"$f":"[1]ACS_16_5YR_B25074_with_ann!X53","v":39},{"$f":"[1]ACS_16_5YR_B25074_with_ann!Y53","v":36},{"$f":"[1]ACS_16_5YR_B25074_with_ann!Z53","v":0},{"$f":"[1]ACS_16_5YR_B25074_with_ann!AA53","v":12},{"$f":"[1]ACS_16_5YR_B25074_with_ann!AB53","v":0},{"$f":"[1]ACS_16_5YR_B25074_with_ann!AC53","v":12},{"$f":"[1]ACS_16_5YR_B25074_with_ann!AD53","v":19},{"$f":"[1]ACS_16_5YR_B25074_with_ann!AE53","v":21},{"$f":"[1]ACS_16_5YR_B25074_with_ann!AF53","v":0},{"$f":"[1]ACS_16_5YR_B25074_with_ann!AG53","v":12},{"$f":"[1]ACS_16_5YR_B25074_with_ann!AH53","v":0},{"$f":"[1]ACS_16_5YR_B25074_with_ann!AI53","v":12},{"$f":"[1]ACS_16_5YR_B25074_with_ann!AJ53","v":16},{"$f":"[1]ACS_16_5YR_B25074_with_ann!AK53","v":22},{"$f":"[1]ACS_16_5YR_B25074_with_ann!AL53","v":4},{"$f":"[1]ACS_16_5YR_B25074_with_ann!AM53","v":7},{"$f":"[1]ACS_16_5YR_B25074_with_ann!AN53","v":0},{"$f":"[1]ACS_16_5YR_B25074_with_ann!AO53","v":12},{"$f":"[1]ACS_16_5YR_B25074_with_ann!AP53","v":140},{"$f":"[1]ACS_16_5YR_B25074_with_ann!AQ53","v":78},{"$f":"[1]ACS_16_5YR_B25074_with_ann!AR53","v":6},{"$f":"[1]ACS_16_5YR_B25074_with_ann!AS53","v":9},{"$f":"[1]ACS_16_5YR_B25074_with_ann!AT53","v":5},{"$f":"[1]ACS_16_5YR_B25074_with_ann!AU53","v":8},{"$f":"[1]ACS_16_5YR_B25074_with_ann!AV53","v":11},{"$f":"[1]ACS_16_5YR_B25074_with_ann!AW53","v":11},{"$f":"[1]ACS_16_5YR_B25074_with_ann!AX53","v":12},{"$f":"[1]ACS_16_5YR_B25074_with_ann!AY53","v":20},{"$f":"[1]ACS_16_5YR_B25074_with_ann!AZ53","v":7},{"$f":"[1]ACS_16_5YR_B25074_with_ann!BA53","v":10},{"$f":"[1]ACS_16_5YR_B25074_with_ann!BB53","v":0},{"$f":"[1]ACS_16_5YR_B25074_with_ann!BC53","v":12},{"$f":"[1]ACS_16_5YR_B25074_with_ann!BD53","v":93},{"$f":"[1]ACS_16_5YR_B25074_with_ann!BE53","v":73},{"$f":"[1]ACS_16_5YR_B25074_with_ann!BF53","v":6},{"$f":"[1]ACS_16_5YR_B25074_with_ann!BG53","v":8},{"$f":"[1]ACS_16_5YR_B25074_with_ann!BH53","v":31},{"$f":"[1]ACS_16_5YR_B25074_with_ann!BI53","v":20},{"$f":"[1]ACS_16_5YR_B25074_with_ann!BJ53","v":0},{"$f":"[1]ACS_16_5YR_B25074_with_ann!BK53","v":12},{"$f":"[1]ACS_16_5YR_B25074_with_ann!BL53","v":5},{"$f":"[1]ACS_16_5YR_B25074_with_ann!BM53","v":8},{"$f":"[1]ACS_16_5YR_B25074_with_ann!BN53","v":11},{"$f":"[1]ACS_16_5YR_B25074_with_ann!BO53","v":12},{"$f":"[1]ACS_16_5YR_B25074_with_ann!BP53","v":4},{"$f":"[1]ACS_16_5YR_B25074_with_ann!BQ53","v":7},{"$f":"[1]ACS_16_5YR_B25074_with_ann!BR53","v":6},{"$f":"[1]ACS_16_5YR_B25074_with_ann!BS53","v":9},{"$f":"[1]ACS_16_5YR_B25074_with_ann!BT53","v":0},{"$f":"[1]ACS_16_5YR_B25074_with_ann!BU53","v":12},{"$f":"[1]ACS_16_5YR_B25074_with_ann!BV53","v":0},{"$f":"[1]ACS_16_5YR_B25074_with_ann!BW53","v":12},{"$f":"[1]ACS_16_5YR_B25074_with_ann!BX53","v":5},{"$f":"[1]ACS_16_5YR_B25074_with_ann!BY53","v":7},{"$f":"[1]ACS_16_5YR_B25074_with_ann!BZ53","v":45},{"$f":"[1]ACS_16_5YR_B25074_with_ann!CA53","v":29},{"$f":"[1]ACS_16_5YR_B25074_with_ann!CB53","v":12},{"$f":"[1]ACS_16_5YR_B25074_with_ann!CC53","v":15},{"$f":"[1]ACS_16_5YR_B25074_with_ann!CD53","v":3},{"$f":"[1]ACS_16_5YR_B25074_with_ann!CE53","v":7},{"$f":"[1]ACS_16_5YR_B25074_with_ann!CF53","v":21},{"$f":"[1]ACS_16_5YR_B25074_with_ann!CG53","v":24},{"$f":"[1]ACS_16_5YR_B25074_with_ann!CH53","v":0},{"$f":"[1]ACS_16_5YR_B25074_with_ann!CI53","v":12},{"$f":"[1]ACS_16_5YR_B25074_with_ann!CJ53","v":4},{"$f":"[1]ACS_16_5YR_B25074_with_ann!CK53","v":7},{"$f":"[1]ACS_16_5YR_B25074_with_ann!CL53","v":0},{"$f":"[1]ACS_16_5YR_B25074_with_ann!CM53","v":12},{"$f":"[1]ACS_16_5YR_B25074_with_ann!CN53","v":0},{"$f":"[1]ACS_16_5YR_B25074_with_ann!CO53","v":12},{"$f":"[1]ACS_16_5YR_B25074_with_ann!CP53","v":5},{"$f":"[1]ACS_16_5YR_B25074_with_ann!CQ53","v":8},{"$f":"[1]ACS_16_5YR_B25074_with_ann!CR53","v":9},{"$f":"[1]ACS_16_5YR_B25074_with_ann!CS53","v":10},{"$f":"[1]ACS_16_5YR_B25074_with_ann!CT53","v":9},{"$f":"[1]ACS_16_5YR_B25074_with_ann!CU53","v":10},{"$f":"[1]ACS_16_5YR_B25074_with_ann!CV53","v":0},{"$f":"[1]ACS_16_5YR_B25074_with_ann!CW53","v":12},{"$f":"[1]ACS_16_5YR_B25074_with_ann!CX53","v":0},{"$f":"[1]ACS_16_5YR_B25074_with_ann!CY53","v":12},{"$f":"[1]ACS_16_5YR_B25074_with_ann!CZ53","v":0},{"$f":"[1]ACS_16_5YR_B25074_with_ann!DA53","v":12},{"$f":"[1]ACS_16_5YR_B25074_with_ann!DB53","v":0},{"$f":"[1]ACS_16_5YR_B25074_with_ann!DC53","v":12},{"$f":"[1]ACS_16_5YR_B25074_with_ann!DD53","v":0},{"$f":"[1]ACS_16_5YR_B25074_with_ann!DE53","v":12},{"$f":"[1]ACS_16_5YR_B25074_with_ann!DF53","v":0},{"$f":"[1]ACS_16_5YR_B25074_with_ann!DG53","v":12},{"$f":"[1]ACS_16_5YR_B25074_with_ann!DH53","v":0},{"$f":"[1]ACS_16_5YR_B25074_with_ann!DI53","v":12},{"$f":"[1]ACS_16_5YR_B25074_with_ann!DJ53","v":56},{"$f":"[1]ACS_16_5YR_B25074_with_ann!DK53","v":41},{"$f":"[1]ACS_16_5YR_B25074_with_ann!DL53","v":48},{"$f":"[1]ACS_16_5YR_B25074_with_ann!DM53","v":40},{"$f":"[1]ACS_16_5YR_B25074_with_ann!DN53","v":5},{"$f":"[1]ACS_16_5YR_B25074_with_ann!DO53","v":7},{"$f":"[1]ACS_16_5YR_B25074_with_ann!DP53","v":3},{"$f":"[1]ACS_16_5YR_B25074_with_ann!DQ53","v":6},{"$f":"[1]ACS_16_5YR_B25074_with_ann!DR53","v":0},{"$f":"[1]ACS_16_5YR_B25074_with_ann!DS53","v":12},{"$f":"[1]ACS_16_5YR_B25074_with_ann!DT53","v":0},{"$f":"[1]ACS_16_5YR_B25074_with_ann!DU53","v":12},{"$f":"[1]ACS_16_5YR_B25074_with_ann!DV53","v":0},{"$f":"[1]ACS_16_5YR_B25074_with_ann!DW53","v":12},{"$f":"[1]ACS_16_5YR_B25074_with_ann!DX53","v":0},{"$f":"[1]ACS_16_5YR_B25074_with_ann!DY53","v":12},{"$f":"[1]ACS_16_5YR_B25074_with_ann!DZ53","v":0},{"$f":"[1]ACS_16_5YR_B25074_with_ann!EA53","v":12},null,{"$f":"[1]ACS_16_5YR_B25070_with_ann!C53","v":"Marlborough"}]
["06000US3300545700","0600000US3300550580","060",null,{"$f":"[1]ACS_16_5YR_B25070_with_ann!D54","v":35},{"$f":"[1]ACS_16_5YR_B25070_with_ann!E54","v":29},{"$f":"[1]ACS_16_5YR_B25070_with_ann!F54","v":2},{"$f":"[1]ACS_16_5YR_B25070_with_ann!G54","v":3},{"$f":"[1]ACS_16_5YR_B25070_with_ann!H54","v":14},{"$f":"[1]ACS_16_5YR_B25070_with_ann!I54","v":23},{"$f":"[1]ACS_16_5YR_B25070_with_ann!J54","v":0},{"$f":"[1]ACS_16_5YR_B25070_with_ann!K54","v":12},{"$f":"[1]ACS_16_5YR_B25070_with_ann!L54","v":0},{"$f":"[1]ACS_16_5YR_B25070_with_ann!M54","v":12},{"$f":"[1]ACS_16_5YR_B25070_with_ann!N54","v":0},{"$f":"[1]ACS_16_5YR_B25070_with_ann!O54","v":12},{"$f":"[1]ACS_16_5YR_B25070_with_ann!P54","v":0},{"$f":"[1]ACS_16_5YR_B25070_with_ann!Q54","v":12},{"$f":"[1]ACS_16_5YR_B25070_with_ann!R54","v":0},{"$f":"[1]ACS_16_5YR_B25070_with_ann!S54","v":12},{"$f":"[1]ACS_16_5YR_B25070_with_ann!T54","v":7},{"$f":"[1]ACS_16_5YR_B25070_with_ann!U54","v":10},{"$f":"[1]ACS_16_5YR_B25070_with_ann!V54","v":4},{"$f":"[1]ACS_16_5YR_B25070_with_ann!W54","v":6},{"$f":"[1]ACS_16_5YR_B25070_with_ann!X54","v":8},{"$f":"[1]ACS_16_5YR_B25070_with_ann!Y54","v":6},{"$f":"[1]ACS_16_5YR_B25074_with_ann!D54","v":35},{"$f":"[1]ACS_16_5YR_B25074_with_ann!E54","v":29},{"$f":"[1]ACS_16_5YR_B25074_with_ann!F54","v":0},{"$f":"[1]ACS_16_5YR_B25074_with_ann!G54","v":12},{"$f":"[1]ACS_16_5YR_B25074_with_ann!H54","v":0},{"$f":"[1]ACS_16_5YR_B25074_with_ann!I54","v":12},{"$f":"[1]ACS_16_5YR_B25074_with_ann!J54","v":0},{"$f":"[1]ACS_16_5YR_B25074_with_ann!K54","v":12},{"$f":"[1]ACS_16_5YR_B25074_with_ann!L54","v":0},{"$f":"[1]ACS_16_5YR_B25074_with_ann!M54","v":12},{"$f":"[1]ACS_16_5YR_B25074_with_ann!N54","v":0},{"$f":"[1]ACS_16_5YR_B25074_with_ann!O54","v":12},{"$f":"[1]ACS_16_5YR_B25074_with_ann!P54","v":0},{"$f":"[1]ACS_16_5YR_B25074_with_ann!Q54","v":12},{"$f":"[1]ACS_16_5YR_B25074_with_ann!R54","v":0},{"$f":"[1]ACS_16_5YR_B25074_with_ann!S54","v":12},{"$f":"[1]ACS_16_5YR_B25074_with_ann!T54","v":0},{"$f":"[1]ACS_16_5YR_B25074_with_ann!U54","v":12},{"$f":"[1]ACS_16_5YR_B25074_with_ann!V54","v":0},{"$f":"[1]ACS_16_5YR_B25074_with_ann!W54","v":12},{"$f":"[1]ACS_16_5YR_B25074_with_ann!X54","v":2},{"$f":"[1]ACS_16_5YR_B25074_with_ann!Y54","v":3},{"$f":"[1]ACS_16_5YR_B25074_with_ann!Z54","v":0},{"$f":"[1]ACS_16_5YR_B25074_with_ann!AA54","v":12},{"$f":"[1]ACS_16_5YR_B25074_with_ann!AB54","v":0},{"$f":"[1]ACS_16_5YR_B25074_with_ann!AC54","v":12},{"$f":"[1]ACS_16_5YR_B25074_with_ann!AD54","v":0},{"$f":"[1]ACS_16_5YR_B25074_with_ann!AE54","v":12},{"$f":"[1]ACS_16_5YR_B25074_with_ann!AF54","v":0},{"$f":"[1]ACS_16_5YR_B25074_with_ann!AG54","v":12},{"$f":"[1]ACS_16_5YR_B25074_with_ann!AH54","v":0},{"$f":"[1]ACS_16_5YR_B25074_with_ann!AI54","v":12},{"$f":"[1]ACS_16_5YR_B25074_with_ann!AJ54","v":0},{"$f":"[1]ACS_16_5YR_B25074_with_ann!AK54","v":12},{"$f":"[1]ACS_16_5YR_B25074_with_ann!AL54","v":0},{"$f":"[1]ACS_16_5YR_B25074_with_ann!AM54","v":12},{"$f":"[1]ACS_16_5YR_B25074_with_ann!AN54","v":2},{"$f":"[1]ACS_16_5YR_B25074_with_ann!AO54","v":3},{"$f":"[1]ACS_16_5YR_B25074_with_ann!AP54","v":7},{"$f":"[1]ACS_16_5YR_B25074_with_ann!AQ54","v":10},{"$f":"[1]ACS_16_5YR_B25074_with_ann!AR54","v":0},{"$f":"[1]ACS_16_5YR_B25074_with_ann!AS54","v":12},{"$f":"[1]ACS_16_5YR_B25074_with_ann!AT54","v":0},{"$f":"[1]ACS_16_5YR_B25074_with_ann!AU54","v":12},{"$f":"[1]ACS_16_5YR_B25074_with_ann!AV54","v":0},{"$f":"[1]ACS_16_5YR_B25074_with_ann!AW54","v":12},{"$f":"[1]ACS_16_5YR_B25074_with_ann!AX54","v":0},{"$f":"[1]ACS_16_5YR_B25074_with_ann!AY54","v":12},{"$f":"[1]ACS_16_5YR_B25074_with_ann!AZ54","v":0},{"$f":"[1]ACS_16_5YR_B25074_with_ann!BA54","v":12},{"$f":"[1]ACS_16_5YR_B25074_with_ann!BB54","v":7},{"$f":"[1]ACS_16_5YR_B25074_with_ann!BC54","v":10},{"$f":"[1]ACS_16_5YR_B25074_with_ann!BD54","v":0},{"$f":"[1]ACS_16_5YR_B25074_with_ann!BE54","v":12},{"$f":"[1]ACS_16_5YR_B25074_with_ann!BF54","v":0},{"$f":"[1]ACS_16_5YR_B25074_with_ann!BG54","v":12},{"$f":"[1]ACS_16_5YR_B25074_with_ann!BH54","v":6},{"$f":"[1]ACS_16_5YR_B25074_with_ann!BI54","v":7},{"$f":"[1]ACS_16_5YR_B25074_with_ann!BJ54","v":2},{"$f":"[1]ACS_16_5YR_B25074_with_ann!BK54","v":3},{"$f":"[1]ACS_16_5YR_B25074_with_ann!BL54","v":0},{"$f":"[1]ACS_16_5YR_B25074_with_ann!BM54","v":12},{"$f":"[1]ACS_16_5YR_B25074_with_ann!BN54","v":0},{"$f":"[1]ACS_16_5YR_B25074_with_ann!BO54","v":12},{"$f":"[1]ACS_16_5YR_B25074_with_ann!BP54","v":0},{"$f":"[1]ACS_16_5YR_B25074_with_ann!BQ54","v":12},{"$f":"[1]ACS_16_5YR_B25074_with_ann!BR54","v":0},{"$f":"[1]ACS_16_5YR_B25074_with_ann!BS54","v":12},{"$f":"[1]ACS_16_5YR_B25074_with_ann!BT54","v":0},{"$f":"[1]ACS_16_5YR_B25074_with_ann!BU54","v":12},{"$f":"[1]ACS_16_5YR_B25074_with_ann!BV54","v":4},{"$f":"[1]ACS_16_5YR_B25074_with_ann!BW54","v":6},{"$f":"[1]ACS_16_5YR_B25074_with_ann!BX54","v":0},{"$f":"[1]ACS_16_5YR_B25074_with_ann!BY54","v":12},{"$f":"[1]ACS_16_5YR_B25074_with_ann!BZ54","v":0},{"$f":"[1]ACS_16_5YR_B25074_with_ann!CA54","v":12},{"$f":"[1]ACS_16_5YR_B25074_with_ann!CB54","v":0},{"$f":"[1]ACS_16_5YR_B25074_with_ann!CC54","v":12},{"$f":"[1]ACS_16_5YR_B25074_with_ann!CD54","v":0},{"$f":"[1]ACS_16_5YR_B25074_with_ann!CE54","v":12},{"$f":"[1]ACS_16_5YR_B25074_with_ann!CF54","v":0},{"$f":"[1]ACS_16_5YR_B25074_with_ann!CG54","v":12},{"$f":"[1]ACS_16_5YR_B25074_with_ann!CH54","v":0},{"$f":"[1]ACS_16_5YR_B25074_with_ann!CI54","v":12},{"$f":"[1]ACS_16_5YR_B25074_with_ann!CJ54","v":0},{"$f":"[1]ACS_16_5YR_B25074_with_ann!CK54","v":12},{"$f":"[1]ACS_16_5YR_B25074_with_ann!CL54","v":0},{"$f":"[1]ACS_16_5YR_B25074_with_ann!CM54","v":12},{"$f":"[1]ACS_16_5YR_B25074_with_ann!CN54","v":0},{"$f":"[1]ACS_16_5YR_B25074_with_ann!CO54","v":12},{"$f":"[1]ACS_16_5YR_B25074_with_ann!CP54","v":0},{"$f":"[1]ACS_16_5YR_B25074_with_ann!CQ54","v":12},{"$f":"[1]ACS_16_5YR_B25074_with_ann!CR54","v":3},{"$f":"[1]ACS_16_5YR_B25074_with_ann!CS54","v":4},{"$f":"[1]ACS_16_5YR_B25074_with_ann!CT54","v":0},{"$f":"[1]ACS_16_5YR_B25074_with_ann!CU54","v":12},{"$f":"[1]ACS_16_5YR_B25074_with_ann!CV54","v":0},{"$f":"[1]ACS_16_5YR_B25074_with_ann!CW54","v":12},{"$f":"[1]ACS_16_5YR_B25074_with_ann!CX54","v":0},{"$f":"[1]ACS_16_5YR_B25074_with_ann!CY54","v":12},{"$f":"[1]ACS_16_5YR_B25074_with_ann!CZ54","v":0},{"$f":"[1]ACS_16_5YR_B25074_with_ann!DA54","v":12},{"$f":"[1]ACS_16_5YR_B25074_with_ann!DB54","v":0},{"$f":"[1]ACS_16_5YR_B25074_with_ann!DC54","v":12},{"$f":"[1]ACS_16_5YR_B25074_with_ann!DD54","v":0},{"$f":"[1]ACS_16_5YR_B25074_with_ann!DE54","v":12},{"$f":"[1]ACS_16_5YR_B25074_with_ann!DF54","v":0},{"$f":"[1]ACS_16_5YR_B25074_with_ann!DG54","v":12},{"$f":"[1]ACS_16_5YR_B25074_with_ann!DH54","v":3},{"$f":"[1]ACS_16_5YR_B25074_with_ann!DI54","v":4},{"$f":"[1]ACS_16_5YR_B25074_with_ann!DJ54","v":17},{"$f":"[1]ACS_16_5YR_B25074_with_ann!DK54","v":24},{"$f":"[1]ACS_16_5YR_B25074_with_ann!DL54","v":14},{"$f":"[1]ACS_16_5YR_B25074_with_ann!DM54","v":23},{"$f":"[1]ACS_16_5YR_B25074_with_ann!DN54","v":0},{"$f":"[1]ACS_16_5YR_B25074_with_ann!DO54","v":12},{"$f":"[1]ACS_16_5YR_B25074_with_ann!DP54","v":0},{"$f":"[1]ACS_16_5YR_B25074_with_ann!DQ54","v":12},{"$f":"[1]ACS_16_5YR_B25074_with_ann!DR54","v":0},{"$f":"[1]ACS_16_5YR_B25074_with_ann!DS54","v":12},{"$f":"[1]ACS_16_5YR_B25074_with_ann!DT54","v":0},{"$f":"[1]ACS_16_5YR_B25074_with_ann!DU54","v":12},{"$f":"[1]ACS_16_5YR_B25074_with_ann!DV54","v":0},{"$f":"[1]ACS_16_5YR_B25074_with_ann!DW54","v":12},{"$f":"[1]ACS_16_5YR_B25074_with_ann!DX54","v":0},{"$f":"[1]ACS_16_5YR_B25074_with_ann!DY54","v":12},{"$f":"[1]ACS_16_5YR_B25074_with_ann!DZ54","v":3},{"$f":"[1]ACS_16_5YR_B25074_with_ann!EA54","v":4},null,{"$f":"[1]ACS_16_5YR_B25070_with_ann!C54","v":"Marlow"}]
["06000US3300550580","0600000US3300564420","060",null,{"$f":"[1]ACS_16_5YR_B25070_with_ann!D55","v":21},{"$f":"[1]ACS_16_5YR_B25070_with_ann!E55","v":11},{"$f":"[1]ACS_16_5YR_B25070_with_ann!F55","v":0},{"$f":"[1]ACS_16_5YR_B25070_with_ann!G55","v":12},{"$f":"[1]ACS_16_5YR_B25070_with_ann!H55","v":7},{"$f":"[1]ACS_16_5YR_B25070_with_ann!I55","v":8},{"$f":"[1]ACS_16_5YR_B25070_with_ann!J55","v":0},{"$f":"[1]ACS_16_5YR_B25070_with_ann!K55","v":12},{"$f":"[1]ACS_16_5YR_B25070_with_ann!L55","v":6},{"$f":"[1]ACS_16_5YR_B25070_with_ann!M55","v":5},{"$f":"[1]ACS_16_5YR_B25070_with_ann!N55","v":4},{"$f":"[1]ACS_16_5YR_B25070_with_ann!O55","v":4},{"$f":"[1]ACS_16_5YR_B25070_with_ann!P55","v":0},{"$f":"[1]ACS_16_5YR_B25070_with_ann!Q55","v":12},{"$f":"[1]ACS_16_5YR_B25070_with_ann!R55","v":0},{"$f":"[1]ACS_16_5YR_B25070_with_ann!S55","v":12},{"$f":"[1]ACS_16_5YR_B25070_with_ann!T55","v":2},{"$f":"[1]ACS_16_5YR_B25070_with_ann!U55","v":3},{"$f":"[1]ACS_16_5YR_B25070_with_ann!V55","v":2},{"$f":"[1]ACS_16_5YR_B25070_with_ann!W55","v":5},{"$f":"[1]ACS_16_5YR_B25070_with_ann!X55","v":0},{"$f":"[1]ACS_16_5YR_B25070_with_ann!Y55","v":12},{"$f":"[1]ACS_16_5YR_B25074_with_ann!D55","v":21},{"$f":"[1]ACS_16_5YR_B25074_with_ann!E55","v":11},{"$f":"[1]ACS_16_5YR_B25074_with_ann!F55","v":0},{"$f":"[1]ACS_16_5YR_B25074_with_ann!G55","v":12},{"$f":"[1]ACS_16_5YR_B25074_with_ann!H55","v":0},{"$f":"[1]ACS_16_5YR_B25074_with_ann!I55","v":12},{"$f":"[1]ACS_16_5YR_B25074_with_ann!J55","v":0},{"$f":"[1]ACS_16_5YR_B25074_with_ann!K55","v":12},{"$f":"[1]ACS_16_5YR_B25074_with_ann!L55","v":0},{"$f":"[1]ACS_16_5YR_B25074_with_ann!M55","v":12},{"$f":"[1]ACS_16_5YR_B25074_with_ann!N55","v":0},{"$f":"[1]ACS_16_5YR_B25074_with_ann!O55","v":12},{"$f":"[1]ACS_16_5YR_B25074_with_ann!P55","v":0},{"$f":"[1]ACS_16_5YR_B25074_with_ann!Q55","v":12},{"$f":"[1]ACS_16_5YR_B25074_with_ann!R55","v":0},{"$f":"[1]ACS_16_5YR_B25074_with_ann!S55","v":12},{"$f":"[1]ACS_16_5YR_B25074_with_ann!T55","v":0},{"$f":"[1]ACS_16_5YR_B25074_with_ann!U55","v":12},{"$f":"[1]ACS_16_5YR_B25074_with_ann!V55","v":0},{"$f":"[1]ACS_16_5YR_B25074_with_ann!W55","v":12},{"$f":"[1]ACS_16_5YR_B25074_with_ann!X55","v":0},{"$f":"[1]ACS_16_5YR_B25074_with_ann!Y55","v":12},{"$f":"[1]ACS_16_5YR_B25074_with_ann!Z55","v":0},{"$f":"[1]ACS_16_5YR_B25074_with_ann!AA55","v":12},{"$f":"[1]ACS_16_5YR_B25074_with_ann!AB55","v":0},{"$f":"[1]ACS_16_5YR_B25074_with_ann!AC55","v":12},{"$f":"[1]ACS_16_5YR_B25074_with_ann!AD55","v":0},{"$f":"[1]ACS_16_5YR_B25074_with_ann!AE55","v":12},{"$f":"[1]ACS_16_5YR_B25074_with_ann!AF55","v":0},{"$f":"[1]ACS_16_5YR_B25074_with_ann!AG55","v":12},{"$f":"[1]ACS_16_5YR_B25074_with_ann!AH55","v":0},{"$f":"[1]ACS_16_5YR_B25074_with_ann!AI55","v":12},{"$f":"[1]ACS_16_5YR_B25074_with_ann!AJ55","v":0},{"$f":"[1]ACS_16_5YR_B25074_with_ann!AK55","v":12},{"$f":"[1]ACS_16_5YR_B25074_with_ann!AL55","v":0},{"$f":"[1]ACS_16_5YR_B25074_with_ann!AM55","v":12},{"$f":"[1]ACS_16_5YR_B25074_with_ann!AN55","v":0},{"$f":"[1]ACS_16_5YR_B25074_with_ann!AO55","v":12},{"$f":"[1]ACS_16_5YR_B25074_with_ann!AP55","v":4},{"$f":"[1]ACS_16_5YR_B25074_with_ann!AQ55","v":5},{"$f":"[1]ACS_16_5YR_B25074_with_ann!AR55","v":0},{"$f":"[1]ACS_16_5YR_B25074_with_ann!AS55","v":12},{"$f":"[1]ACS_16_5YR_B25074_with_ann!AT55","v":0},{"$f":"[1]ACS_16_5YR_B25074_with_ann!AU55","v":12},{"$f":"[1]ACS_16_5YR_B25074_with_ann!AV55","v":0},{"$f":"[1]ACS_16_5YR_B25074_with_ann!AW55","v":12},{"$f":"[1]ACS_16_5YR_B25074_with_ann!AX55","v":0},{"$f":"[1]ACS_16_5YR_B25074_with_ann!AY55","v":12},{"$f":"[1]ACS_16_5YR_B25074_with_ann!AZ55","v":0},{"$f":"[1]ACS_16_5YR_B25074_with_ann!BA55","v":12},{"$f":"[1]ACS_16_5YR_B25074_with_ann!BB55","v":2},{"$f":"[1]ACS_16_5YR_B25074_with_ann!BC55","v":3},{"$f":"[1]ACS_16_5YR_B25074_with_ann!BD55","v":2},{"$f":"[1]ACS_16_5YR_B25074_with_ann!BE55","v":5},{"$f":"[1]ACS_16_5YR_B25074_with_ann!BF55","v":0},{"$f":"[1]ACS_16_5YR_B25074_with_ann!BG55","v":12},{"$f":"[1]ACS_16_5YR_B25074_with_ann!BH55","v":2},{"$f":"[1]ACS_16_5YR_B25074_with_ann!BI55","v":3},{"$f":"[1]ACS_16_5YR_B25074_with_ann!BJ55","v":0},{"$f":"[1]ACS_16_5YR_B25074_with_ann!BK55","v":12},{"$f":"[1]ACS_16_5YR_B25074_with_ann!BL55","v":0},{"$f":"[1]ACS_16_5YR_B25074_with_ann!BM55","v":12},{"$f":"[1]ACS_16_5YR_B25074_with_ann!BN55","v":2},{"$f":"[1]ACS_16_5YR_B25074_with_ann!BO55","v":3},{"$f":"[1]ACS_16_5YR_B25074_with_ann!BP55","v":0},{"$f":"[1]ACS_16_5YR_B25074_with_ann!BQ55","v":12},{"$f":"[1]ACS_16_5YR_B25074_with_ann!BR55","v":0},{"$f":"[1]ACS_16_5YR_B25074_with_ann!BS55","v":12},{"$f":"[1]ACS_16_5YR_B25074_with_ann!BT55","v":0},{"$f":"[1]ACS_16_5YR_B25074_with_ann!BU55","v":12},{"$f":"[1]ACS_16_5YR_B25074_with_ann!BV55","v":0},{"$f":"[1]ACS_16_5YR_B25074_with_ann!BW55","v":12},{"$f":"[1]ACS_16_5YR_B25074_with_ann!BX55","v":0},{"$f":"[1]ACS_16_5YR_B25074_with_ann!BY55","v":12},{"$f":"[1]ACS_16_5YR_B25074_with_ann!BZ55","v":4},{"$f":"[1]ACS_16_5YR_B25074_with_ann!CA55","v":4},{"$f":"[1]ACS_16_5YR_B25074_with_ann!CB55","v":0},{"$f":"[1]ACS_16_5YR_B25074_with_ann!CC55","v":12},{"$f":"[1]ACS_16_5YR_B25074_with_ann!CD55","v":4},{"$f":"[1]ACS_16_5YR_B25074_with_ann!CE55","v":4},{"$f":"[1]ACS_16_5YR_B25074_with_ann!CF55","v":0},{"$f":"[1]ACS_16_5YR_B25074_with_ann!CG55","v":12},{"$f":"[1]ACS_16_5YR_B25074_with_ann!CH55","v":0},{"$f":"[1]ACS_16_5YR_B25074_with_ann!CI55","v":12},{"$f":"[1]ACS_16_5YR_B25074_with_ann!CJ55","v":0},{"$f":"[1]ACS_16_5YR_B25074_with_ann!CK55","v":12},{"$f":"[1]ACS_16_5YR_B25074_with_ann!CL55","v":0},{"$f":"[1]ACS_16_5YR_B25074_with_ann!CM55","v":12},{"$f":"[1]ACS_16_5YR_B25074_with_ann!CN55","v":0},{"$f":"[1]ACS_16_5YR_B25074_with_ann!CO55","v":12},{"$f":"[1]ACS_16_5YR_B25074_with_ann!CP55","v":0},{"$f":"[1]ACS_16_5YR_B25074_with_ann!CQ55","v":12},{"$f":"[1]ACS_16_5YR_B25074_with_ann!CR55","v":9},{"$f":"[1]ACS_16_5YR_B25074_with_ann!CS55","v":9},{"$f":"[1]ACS_16_5YR_B25074_with_ann!CT55","v":7},{"$f":"[1]ACS_16_5YR_B25074_with_ann!CU55","v":8},{"$f":"[1]ACS_16_5YR_B25074_with_ann!CV55","v":0},{"$f":"[1]ACS_16_5YR_B25074_with_ann!CW55","v":12},{"$f":"[1]ACS_16_5YR_B25074_with_ann!CX55","v":2},{"$f":"[1]ACS_16_5YR_B25074_with_ann!CY55","v":3},{"$f":"[1]ACS_16_5YR_B25074_with_ann!CZ55","v":0},{"$f":"[1]ACS_16_5YR_B25074_with_ann!DA55","v":12},{"$f":"[1]ACS_16_5YR_B25074_with_ann!DB55","v":0},{"$f":"[1]ACS_16_5YR_B25074_with_ann!DC55","v":12},{"$f":"[1]ACS_16_5YR_B25074_with_ann!DD55","v":0},{"$f":"[1]ACS_16_5YR_B25074_with_ann!DE55","v":12},{"$f":"[1]ACS_16_5YR_B25074_with_ann!DF55","v":0},{"$f":"[1]ACS_16_5YR_B25074_with_ann!DG55","v":12},{"$f":"[1]ACS_16_5YR_B25074_with_ann!DH55","v":0},{"$f":"[1]ACS_16_5YR_B25074_with_ann!DI55","v":12},{"$f":"[1]ACS_16_5YR_B25074_with_ann!DJ55","v":2},{"$f":"[1]ACS_16_5YR_B25074_with_ann!DK55","v":2},{"$f":"[1]ACS_16_5YR_B25074_with_ann!DL55","v":0},{"$f":"[1]ACS_16_5YR_B25074_with_ann!DM55","v":12},{"$f":"[1]ACS_16_5YR_B25074_with_ann!DN55","v":2},{"$f":"[1]ACS_16_5YR_B25074_with_ann!DO55","v":2},{"$f":"[1]ACS_16_5YR_B25074_with_ann!DP55","v":0},{"$f":"[1]ACS_16_5YR_B25074_with_ann!DQ55","v":12},{"$f":"[1]ACS_16_5YR_B25074_with_ann!DR55","v":0},{"$f":"[1]ACS_16_5YR_B25074_with_ann!DS55","v":12},{"$f":"[1]ACS_16_5YR_B25074_with_ann!DT55","v":0},{"$f":"[1]ACS_16_5YR_B25074_with_ann!DU55","v":12},{"$f":"[1]ACS_16_5YR_B25074_with_ann!DV55","v":0},{"$f":"[1]ACS_16_5YR_B25074_with_ann!DW55","v":12},{"$f":"[1]ACS_16_5YR_B25074_with_ann!DX55","v":0},{"$f":"[1]ACS_16_5YR_B25074_with_ann!DY55","v":12},{"$f":"[1]ACS_16_5YR_B25074_with_ann!DZ55","v":0},{"$f":"[1]ACS_16_5YR_B25074_with_ann!EA55","v":12},null,{"$f":"[1]ACS_16_5YR_B25070_with_ann!C55","v":"Nelson"}]
["06000US3300564420","0600000US3300564580","060",null,{"$f":"[1]ACS_16_5YR_B25070_with_ann!D56","v":10},{"$f":"[1]ACS_16_5YR_B25070_with_ann!E56","v":9},{"$f":"[1]ACS_16_5YR_B25070_with_ann!F56","v":0},{"$f":"[1]ACS_16_5YR_B25070_with_ann!G56","v":12},{"$f":"[1]ACS_16_5YR_B25070_with_ann!H56","v":4},{"$f":"[1]ACS_16_5YR_B25070_with_ann!I56","v":6},{"$f":"[1]ACS_16_5YR_B25070_with_ann!J56","v":3},{"$f":"[1]ACS_16_5YR_B25070_with_ann!K56","v":4},{"$f":"[1]ACS_16_5YR_B25070_with_ann!L56","v":0},{"$f":"[1]ACS_16_5YR_B25070_with_ann!M56","v":12},{"$f":"[1]ACS_16_5YR_B25070_with_ann!N56","v":0},{"$f":"[1]ACS_16_5YR_B25070_with_ann!O56","v":12},{"$f":"[1]ACS_16_5YR_B25070_with_ann!P56","v":0},{"$f":"[1]ACS_16_5YR_B25070_with_ann!Q56","v":12},{"$f":"[1]ACS_16_5YR_B25070_with_ann!R56","v":0},{"$f":"[1]ACS_16_5YR_B25070_with_ann!S56","v":12},{"$f":"[1]ACS_16_5YR_B25070_with_ann!T56","v":0},{"$f":"[1]ACS_16_5YR_B25070_with_ann!U56","v":12},{"$f":"[1]ACS_16_5YR_B25070_with_ann!V56","v":0},{"$f":"[1]ACS_16_5YR_B25070_with_ann!W56","v":12},{"$f":"[1]ACS_16_5YR_B25070_with_ann!X56","v":3},{"$f":"[1]ACS_16_5YR_B25070_with_ann!Y56","v":6},{"$f":"[1]ACS_16_5YR_B25074_with_ann!D56","v":10},{"$f":"[1]ACS_16_5YR_B25074_with_ann!E56","v":9},{"$f":"[1]ACS_16_5YR_B25074_with_ann!F56","v":0},{"$f":"[1]ACS_16_5YR_B25074_with_ann!G56","v":12},{"$f":"[1]ACS_16_5YR_B25074_with_ann!H56","v":0},{"$f":"[1]ACS_16_5YR_B25074_with_ann!I56","v":12},{"$f":"[1]ACS_16_5YR_B25074_with_ann!J56","v":0},{"$f":"[1]ACS_16_5YR_B25074_with_ann!K56","v":12},{"$f":"[1]ACS_16_5YR_B25074_with_ann!L56","v":0},{"$f":"[1]ACS_16_5YR_B25074_with_ann!M56","v":12},{"$f":"[1]ACS_16_5YR_B25074_with_ann!N56","v":0},{"$f":"[1]ACS_16_5YR_B25074_with_ann!O56","v":12},{"$f":"[1]ACS_16_5YR_B25074_with_ann!P56","v":0},{"$f":"[1]ACS_16_5YR_B25074_with_ann!Q56","v":12},{"$f":"[1]ACS_16_5YR_B25074_with_ann!R56","v":0},{"$f":"[1]ACS_16_5YR_B25074_with_ann!S56","v":12},{"$f":"[1]ACS_16_5YR_B25074_with_ann!T56","v":0},{"$f":"[1]ACS_16_5YR_B25074_with_ann!U56","v":12},{"$f":"[1]ACS_16_5YR_B25074_with_ann!V56","v":0},{"$f":"[1]ACS_16_5YR_B25074_with_ann!W56","v":12},{"$f":"[1]ACS_16_5YR_B25074_with_ann!X56","v":0},{"$f":"[1]ACS_16_5YR_B25074_with_ann!Y56","v":12},{"$f":"[1]ACS_16_5YR_B25074_with_ann!Z56","v":0},{"$f":"[1]ACS_16_5YR_B25074_with_ann!AA56","v":12},{"$f":"[1]ACS_16_5YR_B25074_with_ann!AB56","v":0},{"$f":"[1]ACS_16_5YR_B25074_with_ann!AC56","v":12},{"$f":"[1]ACS_16_5YR_B25074_with_ann!AD56","v":0},{"$f":"[1]ACS_16_5YR_B25074_with_ann!AE56","v":12},{"$f":"[1]ACS_16_5YR_B25074_with_ann!AF56","v":0},{"$f":"[1]ACS_16_5YR_B25074_with_ann!AG56","v":12},{"$f":"[1]ACS_16_5YR_B25074_with_ann!AH56","v":0},{"$f":"[1]ACS_16_5YR_B25074_with_ann!AI56","v":12},{"$f":"[1]ACS_16_5YR_B25074_with_ann!AJ56","v":0},{"$f":"[1]ACS_16_5YR_B25074_with_ann!AK56","v":12},{"$f":"[1]ACS_16_5YR_B25074_with_ann!AL56","v":0},{"$f":"[1]ACS_16_5YR_B25074_with_ann!AM56","v":12},{"$f":"[1]ACS_16_5YR_B25074_with_ann!AN56","v":0},{"$f":"[1]ACS_16_5YR_B25074_with_ann!AO56","v":12},{"$f":"[1]ACS_16_5YR_B25074_with_ann!AP56","v":0},{"$f":"[1]ACS_16_5YR_B25074_with_ann!AQ56","v":12},{"$f":"[1]ACS_16_5YR_B25074_with_ann!AR56","v":0},{"$f":"[1]ACS_16_5YR_B25074_with_ann!AS56","v":12},{"$f":"[1]ACS_16_5YR_B25074_with_ann!AT56","v":0},{"$f":"[1]ACS_16_5YR_B25074_with_ann!AU56","v":12},{"$f":"[1]ACS_16_5YR_B25074_with_ann!AV56","v":0},{"$f":"[1]ACS_16_5YR_B25074_with_ann!AW56","v":12},{"$f":"[1]ACS_16_5YR_B25074_with_ann!AX56","v":0},{"$f":"[1]ACS_16_5YR_B25074_with_ann!AY56","v":12},{"$f":"[1]ACS_16_5YR_B25074_with_ann!AZ56","v":0},{"$f":"[1]ACS_16_5YR_B25074_with_ann!BA56","v":12},{"$f":"[1]ACS_16_5YR_B25074_with_ann!BB56","v":0},{"$f":"[1]ACS_16_5YR_B25074_with_ann!BC56","v":12},{"$f":"[1]ACS_16_5YR_B25074_with_ann!BD56","v":0},{"$f":"[1]ACS_16_5YR_B25074_with_ann!BE56","v":12},{"$f":"[1]ACS_16_5YR_B25074_with_ann!BF56","v":0},{"$f":"[1]ACS_16_5YR_B25074_with_ann!BG56","v":12},{"$f":"[1]ACS_16_5YR_B25074_with_ann!BH56","v":3},{"$f":"[1]ACS_16_5YR_B25074_with_ann!BI56","v":6},{"$f":"[1]ACS_16_5YR_B25074_with_ann!BJ56","v":0},{"$f":"[1]ACS_16_5YR_B25074_with_ann!BK56","v":12},{"$f":"[1]ACS_16_5YR_B25074_with_ann!BL56","v":0},{"$f":"[1]ACS_16_5YR_B25074_with_ann!BM56","v":12},{"$f":"[1]ACS_16_5YR_B25074_with_ann!BN56","v":0},{"$f":"[1]ACS_16_5YR_B25074_with_ann!BO56","v":12},{"$f":"[1]ACS_16_5YR_B25074_with_ann!BP56","v":0},{"$f":"[1]ACS_16_5YR_B25074_with_ann!BQ56","v":12},{"$f":"[1]ACS_16_5YR_B25074_with_ann!BR56","v":0},{"$f":"[1]ACS_16_5YR_B25074_with_ann!BS56","v":12},{"$f":"[1]ACS_16_5YR_B25074_with_ann!BT56","v":0},{"$f":"[1]ACS_16_5YR_B25074_with_ann!BU56","v":12},{"$f":"[1]ACS_16_5YR_B25074_with_ann!BV56","v":0},{"$f":"[1]ACS_16_5YR_B25074_with_ann!BW56","v":12},{"$f":"[1]ACS_16_5YR_B25074_with_ann!BX56","v":3},{"$f":"[1]ACS_16_5YR_B25074_with_ann!BY56","v":6},{"$f":"[1]ACS_16_5YR_B25074_with_ann!BZ56","v":0},{"$f":"[1]ACS_16_5YR_B25074_with_ann!CA56","v":12},{"$f":"[1]ACS_16_5YR_B25074_with_ann!CB56","v":0},{"$f":"[1]ACS_16_5YR_B25074_with_ann!CC56","v":12},{"$f":"[1]ACS_16_5YR_B25074_with_ann!CD56","v":0},{"$f":"[1]ACS_16_5YR_B25074_with_ann!CE56","v":12},{"$f":"[1]ACS_16_5YR_B25074_with_ann!CF56","v":0},{"$f":"[1]ACS_16_5YR_B25074_with_ann!CG56","v":12},{"$f":"[1]ACS_16_5YR_B25074_with_ann!CH56","v":0},{"$f":"[1]ACS_16_5YR_B25074_with_ann!CI56","v":12},{"$f":"[1]ACS_16_5YR_B25074_with_ann!CJ56","v":0},{"$f":"[1]ACS_16_5YR_B25074_with_ann!CK56","v":12},{"$f":"[1]ACS_16_5YR_B25074_with_ann!CL56","v":0},{"$f":"[1]ACS_16_5YR_B25074_with_ann!CM56","v":12},{"$f":"[1]ACS_16_5YR_B25074_with_ann!CN56","v":0},{"$f":"[1]ACS_16_5YR_B25074_with_ann!CO56","v":12},{"$f":"[1]ACS_16_5YR_B25074_with_ann!CP56","v":0},{"$f":"[1]ACS_16_5YR_B25074_with_ann!CQ56","v":12},{"$f":"[1]ACS_16_5YR_B25074_with_ann!CR56","v":3},{"$f":"[1]ACS_16_5YR_B25074_with_ann!CS56","v":4},{"$f":"[1]ACS_16_5YR_B25074_with_ann!CT56","v":3},{"$f":"[1]ACS_16_5YR_B25074_with_ann!CU56","v":4},{"$f":"[1]ACS_16_5YR_B25074_with_ann!CV56","v":0},{"$f":"[1]ACS_16_5YR_B25074_with_ann!CW56","v":12},{"$f":"[1]ACS_16_5YR_B25074_with_ann!CX56","v":0},{"$f":"[1]ACS_16_5YR_B25074_with_ann!CY56","v":12},{"$f":"[1]ACS_16_5YR_B25074_with_ann!CZ56","v":0},{"$f":"[1]ACS_16_5YR_B25074_with_ann!DA56","v":12},{"$f":"[1]ACS_16_5YR_B25074_with_ann!DB56","v":0},{"$f":"[1]ACS_16_5YR_B25074_with_ann!DC56","v":12},{"$f":"[1]ACS_16_5YR_B25074_with_ann!DD56","v":0},{"$f":"[1]ACS_16_5YR_B25074_with_ann!DE56","v":12},{"$f":"[1]ACS_16_5YR_B25074_with_ann!DF56","v":0},{"$f":"[1]ACS_16_5YR_B25074_with_ann!DG56","v":12},{"$f":"[1]ACS_16_5YR_B25074_with_ann!DH56","v":0},{"$f":"[1]ACS_16_5YR_B25074_with_ann!DI56","v":12},{"$f":"[1]ACS_16_5YR_B25074_with_ann!DJ56","v":4},{"$f":"[1]ACS_16_5YR_B25074_with_ann!DK56","v":6},{"$f":"[1]ACS_16_5YR_B25074_with_ann!DL56","v":4},{"$f":"[1]ACS_16_5YR_B25074_with_ann!DM56","v":6},{"$f":"[1]ACS_16_5YR_B25074_with_ann!DN56","v":0},{"$f":"[1]ACS_16_5YR_B25074_with_ann!DO56","v":12},{"$f":"[1]ACS_16_5YR_B25074_with_ann!DP56","v":0},{"$f":"[1]ACS_16_5YR_B25074_with_ann!DQ56","v":12},{"$f":"[1]ACS_16_5YR_B25074_with_ann!DR56","v":0},{"$f":"[1]ACS_16_5YR_B25074_with_ann!DS56","v":12},{"$f":"[1]ACS_16_5YR_B25074_with_ann!DT56","v":0},{"$f":"[1]ACS_16_5YR_B25074_with_ann!DU56","v":12},{"$f":"[1]ACS_16_5YR_B25074_with_ann!DV56","v":0},{"$f":"[1]ACS_16_5YR_B25074_with_ann!DW56","v":12},{"$f":"[1]ACS_16_5YR_B25074_with_ann!DX56","v":0},{"$f":"[1]ACS_16_5YR_B25074_with_ann!DY56","v":12},{"$f":"[1]ACS_16_5YR_B25074_with_ann!DZ56","v":0},{"$f":"[1]ACS_16_5YR_B25074_with_ann!EA56","v":12},null,{"$f":"[1]ACS_16_5YR_B25070_with_ann!C56","v":"Richmond"}]
["06000US3300564580","0600000US3300565700","060",null,{"$f":"[1]ACS_16_5YR_B25070_with_ann!D57","v":261},{"$f":"[1]ACS_16_5YR_B25070_with_ann!E57","v":119},{"$f":"[1]ACS_16_5YR_B25070_with_ann!F57","v":6},{"$f":"[1]ACS_16_5YR_B25070_with_ann!G57","v":8},{"$f":"[1]ACS_16_5YR_B25070_with_ann!H57","v":24},{"$f":"[1]ACS_16_5YR_B25070_with_ann!I57","v":29},{"$f":"[1]ACS_16_5YR_B25070_with_ann!J57","v":47},{"$f":"[1]ACS_16_5YR_B25070_with_ann!K57","v":59},{"$f":"[1]ACS_16_5YR_B25070_with_ann!L57","v":68},{"$f":"[1]ACS_16_5YR_B25070_with_ann!M57","v":63},{"$f":"[1]ACS_16_5YR_B25070_with_ann!N57","v":18},{"$f":"[1]ACS_16_5YR_B25070_with_ann!O57","v":27},{"$f":"[1]ACS_16_5YR_B25070_with_ann!P57","v":0},{"$f":"[1]ACS_16_5YR_B25070_with_ann!Q57","v":17},{"$f":"[1]ACS_16_5YR_B25070_with_ann!R57","v":11},{"$f":"[1]ACS_16_5YR_B25070_with_ann!S57","v":19},{"$f":"[1]ACS_16_5YR_B25070_with_ann!T57","v":25},{"$f":"[1]ACS_16_5YR_B25070_with_ann!U57","v":23},{"$f":"[1]ACS_16_5YR_B25070_with_ann!V57","v":41},{"$f":"[1]ACS_16_5YR_B25070_with_ann!W57","v":40},{"$f":"[1]ACS_16_5YR_B25070_with_ann!X57","v":21},{"$f":"[1]ACS_16_5YR_B25070_with_ann!Y57","v":27},{"$f":"[1]ACS_16_5YR_B25074_with_ann!D57","v":261},{"$f":"[1]ACS_16_5YR_B25074_with_ann!E57","v":119},{"$f":"[1]ACS_16_5YR_B25074_with_ann!F57","v":0},{"$f":"[1]ACS_16_5YR_B25074_with_ann!G57","v":17},{"$f":"[1]ACS_16_5YR_B25074_with_ann!H57","v":0},{"$f":"[1]ACS_16_5YR_B25074_with_ann!I57","v":17},{"$f":"[1]ACS_16_5YR_B25074_with_ann!J57","v":0},{"$f":"[1]ACS_16_5YR_B25074_with_ann!K57","v":17},{"$f":"[1]ACS_16_5YR_B25074_with_ann!L57","v":0},{"$f":"[1]ACS_16_5YR_B25074_with_ann!M57","v":17},{"$f":"[1]ACS_16_5YR_B25074_with_ann!N57","v":0},{"$f":"[1]ACS_16_5YR_B25074_with_ann!O57","v":17},{"$f":"[1]ACS_16_5YR_B25074_with_ann!P57","v":0},{"$f":"[1]ACS_16_5YR_B25074_with_ann!Q57","v":17},{"$f":"[1]ACS_16_5YR_B25074_with_ann!R57","v":0},{"$f":"[1]ACS_16_5YR_B25074_with_ann!S57","v":17},{"$f":"[1]ACS_16_5YR_B25074_with_ann!T57","v":0},{"$f":"[1]ACS_16_5YR_B25074_with_ann!U57","v":17},{"$f":"[1]ACS_16_5YR_B25074_with_ann!V57","v":0},{"$f":"[1]ACS_16_5YR_B25074_with_ann!W57","v":17},{"$f":"[1]ACS_16_5YR_B25074_with_ann!X57","v":27},{"$f":"[1]ACS_16_5YR_B25074_with_ann!Y57","v":33},{"$f":"[1]ACS_16_5YR_B25074_with_ann!Z57","v":0},{"$f":"[1]ACS_16_5YR_B25074_with_ann!AA57","v":17},{"$f":"[1]ACS_16_5YR_B25074_with_ann!AB57","v":0},{"$f":"[1]ACS_16_5YR_B25074_with_ann!AC57","v":17},{"$f":"[1]ACS_16_5YR_B25074_with_ann!AD57","v":0},{"$f":"[1]ACS_16_5YR_B25074_with_ann!AE57","v":17},{"$f":"[1]ACS_16_5YR_B25074_with_ann!AF57","v":0},{"$f":"[1]ACS_16_5YR_B25074_with_ann!AG57","v":17},{"$f":"[1]ACS_16_5YR_B25074_with_ann!AH57","v":0},{"$f":"[1]ACS_16_5YR_B25074_with_ann!AI57","v":17},{"$f":"[1]ACS_16_5YR_B25074_with_ann!AJ57","v":0},{"$f":"[1]ACS_16_5YR_B25074_with_ann!AK57","v":17},{"$f":"[1]ACS_16_5YR_B25074_with_ann!AL57","v":27},{"$f":"[1]ACS_16_5YR_B25074_with_ann!AM57","v":33},{"$f":"[1]ACS_16_5YR_B25074_with_ann!AN57","v":0},{"$f":"[1]ACS_16_5YR_B25074_with_ann!AO57","v":17},{"$f":"[1]ACS_16_5YR_B25074_with_ann!AP57","v":53},{"$f":"[1]ACS_16_5YR_B25074_with_ann!AQ57","v":39},{"$f":"[1]ACS_16_5YR_B25074_with_ann!AR57","v":0},{"$f":"[1]ACS_16_5YR_B25074_with_ann!AS57","v":17},{"$f":"[1]ACS_16_5YR_B25074_with_ann!AT57","v":0},{"$f":"[1]ACS_16_5YR_B25074_with_ann!AU57","v":17},{"$f":"[1]ACS_16_5YR_B25074_with_ann!AV57","v":0},{"$f":"[1]ACS_16_5YR_B25074_with_ann!AW57","v":17},{"$f":"[1]ACS_16_5YR_B25074_with_ann!AX57","v":0},{"$f":"[1]ACS_16_5YR_B25074_with_ann!AY57","v":17},{"$f":"[1]ACS_16_5YR_B25074_with_ann!AZ57","v":11},{"$f":"[1]ACS_16_5YR_B25074_with_ann!BA57","v":19},{"$f":"[1]ACS_16_5YR_B25074_with_ann!BB57","v":14},{"$f":"[1]ACS_16_5YR_B25074_with_ann!BC57","v":16},{"$f":"[1]ACS_16_5YR_B25074_with_ann!BD57","v":14},{"$f":"[1]ACS_16_5YR_B25074_with_ann!BE57","v":22},{"$f":"[1]ACS_16_5YR_B25074_with_ann!BF57","v":14},{"$f":"[1]ACS_16_5YR_B25074_with_ann!BG57","v":24},{"$f":"[1]ACS_16_5YR_B25074_with_ann!BH57","v":0},{"$f":"[1]ACS_16_5YR_B25074_with_ann!BI57","v":17},{"$f":"[1]ACS_16_5YR_B25074_with_ann!BJ57","v":0},{"$f":"[1]ACS_16_5YR_B25074_with_ann!BK57","v":17},{"$f":"[1]ACS_16_5YR_B25074_with_ann!BL57","v":0},{"$f":"[1]ACS_16_5YR_B25074_with_ann!BM57","v":17},{"$f":"[1]ACS_16_5YR_B25074_with_ann!BN57","v":0},{"$f":"[1]ACS_16_5YR_B25074_with_ann!BO57","v":17},{"$f":"[1]ACS_16_5YR_B25074_with_ann!BP57","v":0},{"$f":"[1]ACS_16_5YR_B25074_with_ann!BQ57","v":17},{"$f":"[1]ACS_16_5YR_B25074_with_ann!BR57","v":0},{"$f":"[1]ACS_16_5YR_B25074_with_ann!BS57","v":17},{"$f":"[1]ACS_16_5YR_B25074_with_ann!BT57","v":0},{"$f":"[1]ACS_16_5YR_B25074_with_ann!BU57","v":17},{"$f":"[1]ACS_16_5YR_B25074_with_ann!BV57","v":0},{"$f":"[1]ACS_16_5YR_B25074_with_ann!BW57","v":17},{"$f":"[1]ACS_16_5YR_B25074_with_ann!BX57","v":0},{"$f":"[1]ACS_16_5YR_B25074_with_ann!BY57","v":17},{"$f":"[1]ACS_16_5YR_B25074_with_ann!BZ57","v":99},{"$f":"[1]ACS_16_5YR_B25074_with_ann!CA57","v":82},{"$f":"[1]ACS_16_5YR_B25074_with_ann!CB57","v":39},{"$f":"[1]ACS_16_5YR_B25074_with_ann!CC57","v":58},{"$f":"[1]ACS_16_5YR_B25074_with_ann!CD57","v":49},{"$f":"[1]ACS_16_5YR_B25074_with_ann!CE57","v":57},{"$f":"[1]ACS_16_5YR_B25074_with_ann!CF57","v":0},{"$f":"[1]ACS_16_5YR_B25074_with_ann!CG57","v":17},{"$f":"[1]ACS_16_5YR_B25074_with_ann!CH57","v":0},{"$f":"[1]ACS_16_5YR_B25074_with_ann!CI57","v":17},{"$f":"[1]ACS_16_5YR_B25074_with_ann!CJ57","v":0},{"$f":"[1]ACS_16_5YR_B25074_with_ann!CK57","v":17},{"$f":"[1]ACS_16_5YR_B25074_with_ann!CL57","v":11},{"$f":"[1]ACS_16_5YR_B25074_with_ann!CM57","v":18},{"$f":"[1]ACS_16_5YR_B25074_with_ann!CN57","v":0},{"$f":"[1]ACS_16_5YR_B25074_with_ann!CO57","v":17},{"$f":"[1]ACS_16_5YR_B25074_with_ann!CP57","v":0},{"$f":"[1]ACS_16_5YR_B25074_with_ann!CQ57","v":17},{"$f":"[1]ACS_16_5YR_B25074_with_ann!CR57","v":49},{"$f":"[1]ACS_16_5YR_B25074_with_ann!CS57","v":41},{"$f":"[1]ACS_16_5YR_B25074_with_ann!CT57","v":24},{"$f":"[1]ACS_16_5YR_B25074_with_ann!CU57","v":29},{"$f":"[1]ACS_16_5YR_B25074_with_ann!CV57","v":0},{"$f":"[1]ACS_16_5YR_B25074_with_ann!CW57","v":17},{"$f":"[1]ACS_16_5YR_B25074_with_ann!CX57","v":18},{"$f":"[1]ACS_16_5YR_B25074_with_ann!CY57","v":27},{"$f":"[1]ACS_16_5YR_B25074_with_ann!CZ57","v":0},{"$f":"[1]ACS_16_5YR_B25074_with_ann!DA57","v":17},{"$f":"[1]ACS_16_5YR_B25074_with_ann!DB57","v":0},{"$f":"[1]ACS_16_5YR_B25074_with_ann!DC57","v":17},{"$f":"[1]ACS_16_5YR_B25074_with_ann!DD57","v":0},{"$f":"[1]ACS_16_5YR_B25074_with_ann!DE57","v":17},{"$f":"[1]ACS_16_5YR_B25074_with_ann!DF57","v":0},{"$f":"[1]ACS_16_5YR_B25074_with_ann!DG57","v":17},{"$f":"[1]ACS_16_5YR_B25074_with_ann!DH57","v":7},{"$f":"[1]ACS_16_5YR_B25074_with_ann!DI57","v":13},{"$f":"[1]ACS_16_5YR_B25074_with_ann!DJ57","v":33},{"$f":"[1]ACS_16_5YR_B25074_with_ann!DK57","v":29},{"$f":"[1]ACS_16_5YR_B25074_with_ann!DL57","v":14},{"$f":"[1]ACS_16_5YR_B25074_with_ann!DM57","v":15},{"$f":"[1]ACS_16_5YR_B25074_with_ann!DN57","v":19},{"$f":"[1]ACS_16_5YR_B25074_with_ann!DO57","v":25},{"$f":"[1]ACS_16_5YR_B25074_with_ann!DP57","v":0},{"$f":"[1]ACS_16_5YR_B25074_with_ann!DQ57","v":17},{"$f":"[1]ACS_16_5YR_B25074_with_ann!DR57","v":0},{"$f":"[1]ACS_16_5YR_B25074_with_ann!DS57","v":17},{"$f":"[1]ACS_16_5YR_B25074_with_ann!DT57","v":0},{"$f":"[1]ACS_16_5YR_B25074_with_ann!DU57","v":17},{"$f":"[1]ACS_16_5YR_B25074_with_ann!DV57","v":0},{"$f":"[1]ACS_16_5YR_B25074_with_ann!DW57","v":17},{"$f":"[1]ACS_16_5YR_B25074_with_ann!DX57","v":0},{"$f":"[1]ACS_16_5YR_B25074_with_ann!DY57","v":17},{"$f":"[1]ACS_16_5YR_B25074_with_ann!DZ57","v":0},{"$f":"[1]ACS_16_5YR_B25074_with_ann!EA57","v":17},null,{"$f":"[1]ACS_16_5YR_B25070_with_ann!C57","v":"Rindge"}]
["06000US3300565700","0600000US3300573700","060",null,{"$f":"[1]ACS_16_5YR_B25070_with_ann!D58","v":1},{"$f":"[1]ACS_16_5YR_B25070_with_ann!E58","v":3},{"$f":"[1]ACS_16_5YR_B25070_with_ann!F58","v":0},{"$f":"[1]ACS_16_5YR_B25070_with_ann!G58","v":12},{"$f":"[1]ACS_16_5YR_B25070_with_ann!H58","v":0},{"$f":"[1]ACS_16_5YR_B25070_with_ann!I58","v":12},{"$f":"[1]ACS_16_5YR_B25070_with_ann!J58","v":0},{"$f":"[1]ACS_16_5YR_B25070_with_ann!K58","v":12},{"$f":"[1]ACS_16_5YR_B25070_with_ann!L58","v":0},{"$f":"[1]ACS_16_5YR_B25070_with_ann!M58","v":12},{"$f":"[1]ACS_16_5YR_B25070_with_ann!N58","v":0},{"$f":"[1]ACS_16_5YR_B25070_with_ann!O58","v":12},{"$f":"[1]ACS_16_5YR_B25070_with_ann!P58","v":0},{"$f":"[1]ACS_16_5YR_B25070_with_ann!Q58","v":12},{"$f":"[1]ACS_16_5YR_B25070_with_ann!R58","v":0},{"$f":"[1]ACS_16_5YR_B25070_with_ann!S58","v":12},{"$f":"[1]ACS_16_5YR_B25070_with_ann!T58","v":0},{"$f":"[1]ACS_16_5YR_B25070_with_ann!U58","v":12},{"$f":"[1]ACS_16_5YR_B25070_with_ann!V58","v":0},{"$f":"[1]ACS_16_5YR_B25070_with_ann!W58","v":12},{"$f":"[1]ACS_16_5YR_B25070_with_ann!X58","v":1},{"$f":"[1]ACS_16_5YR_B25070_with_ann!Y58","v":3},{"$f":"[1]ACS_16_5YR_B25074_with_ann!D58","v":1},{"$f":"[1]ACS_16_5YR_B25074_with_ann!E58","v":3},{"$f":"[1]ACS_16_5YR_B25074_with_ann!F58","v":0},{"$f":"[1]ACS_16_5YR_B25074_with_ann!G58","v":12},{"$f":"[1]ACS_16_5YR_B25074_with_ann!H58","v":0},{"$f":"[1]ACS_16_5YR_B25074_with_ann!I58","v":12},{"$f":"[1]ACS_16_5YR_B25074_with_ann!J58","v":0},{"$f":"[1]ACS_16_5YR_B25074_with_ann!K58","v":12},{"$f":"[1]ACS_16_5YR_B25074_with_ann!L58","v":0},{"$f":"[1]ACS_16_5YR_B25074_with_ann!M58","v":12},{"$f":"[1]ACS_16_5YR_B25074_with_ann!N58","v":0},{"$f":"[1]ACS_16_5YR_B25074_with_ann!O58","v":12},{"$f":"[1]ACS_16_5YR_B25074_with_ann!P58","v":0},{"$f":"[1]ACS_16_5YR_B25074_with_ann!Q58","v":12},{"$f":"[1]ACS_16_5YR_B25074_with_ann!R58","v":0},{"$f":"[1]ACS_16_5YR_B25074_with_ann!S58","v":12},{"$f":"[1]ACS_16_5YR_B25074_with_ann!T58","v":0},{"$f":"[1]ACS_16_5YR_B25074_with_ann!U58","v":12},{"$f":"[1]ACS_16_5YR_B25074_with_ann!V58","v":0},{"$f":"[1]ACS_16_5YR_B25074_with_ann!W58","v":12},{"$f":"[1]ACS_16_5YR_B25074_with_ann!X58","v":0},{"$f":"[1]ACS_16_5YR_B25074_with_ann!Y58","v":12},{"$f":"[1]ACS_16_5YR_B25074_with_ann!Z58","v":0},{"$f":"[1]ACS_16_5YR_B25074_with_ann!AA58","v":12},{"$f":"[1]ACS_16_5YR_B25074_with_ann!AB58","v":0},{"$f":"[1]ACS_16_5YR_B25074_with_ann!AC58","v":12},{"$f":"[1]ACS_16_5YR_B25074_with_ann!AD58","v":0},{"$f":"[1]ACS_16_5YR_B25074_with_ann!AE58","v":12},{"$f":"[1]ACS_16_5YR_B25074_with_ann!AF58","v":0},{"$f":"[1]ACS_16_5YR_B25074_with_ann!AG58","v":12},{"$f":"[1]ACS_16_5YR_B25074_with_ann!AH58","v":0},{"$f":"[1]ACS_16_5YR_B25074_with_ann!AI58","v":12},{"$f":"[1]ACS_16_5YR_B25074_with_ann!AJ58","v":0},{"$f":"[1]ACS_16_5YR_B25074_with_ann!AK58","v":12},{"$f":"[1]ACS_16_5YR_B25074_with_ann!AL58","v":0},{"$f":"[1]ACS_16_5YR_B25074_with_ann!AM58","v":12},{"$f":"[1]ACS_16_5YR_B25074_with_ann!AN58","v":0},{"$f":"[1]ACS_16_5YR_B25074_with_ann!AO58","v":12},{"$f":"[1]ACS_16_5YR_B25074_with_ann!AP58","v":0},{"$f":"[1]ACS_16_5YR_B25074_with_ann!AQ58","v":12},{"$f":"[1]ACS_16_5YR_B25074_with_ann!AR58","v":0},{"$f":"[1]ACS_16_5YR_B25074_with_ann!AS58","v":12},{"$f":"[1]ACS_16_5YR_B25074_with_ann!AT58","v":0},{"$f":"[1]ACS_16_5YR_B25074_with_ann!AU58","v":12},{"$f":"[1]ACS_16_5YR_B25074_with_ann!AV58","v":0},{"$f":"[1]ACS_16_5YR_B25074_with_ann!AW58","v":12},{"$f":"[1]ACS_16_5YR_B25074_with_ann!AX58","v":0},{"$f":"[1]ACS_16_5YR_B25074_with_ann!AY58","v":12},{"$f":"[1]ACS_16_5YR_B25074_with_ann!AZ58","v":0},{"$f":"[1]ACS_16_5YR_B25074_with_ann!BA58","v":12},{"$f":"[1]ACS_16_5YR_B25074_with_ann!BB58","v":0},{"$f":"[1]ACS_16_5YR_B25074_with_ann!BC58","v":12},{"$f":"[1]ACS_16_5YR_B25074_with_ann!BD58","v":0},{"$f":"[1]ACS_16_5YR_B25074_with_ann!BE58","v":12},{"$f":"[1]ACS_16_5YR_B25074_with_ann!BF58","v":0},{"$f":"[1]ACS_16_5YR_B25074_with_ann!BG58","v":12},{"$f":"[1]ACS_16_5YR_B25074_with_ann!BH58","v":0},{"$f":"[1]ACS_16_5YR_B25074_with_ann!BI58","v":12},{"$f":"[1]ACS_16_5YR_B25074_with_ann!BJ58","v":0},{"$f":"[1]ACS_16_5YR_B25074_with_ann!BK58","v":12},{"$f":"[1]ACS_16_5YR_B25074_with_ann!BL58","v":0},{"$f":"[1]ACS_16_5YR_B25074_with_ann!BM58","v":12},{"$f":"[1]ACS_16_5YR_B25074_with_ann!BN58","v":0},{"$f":"[1]ACS_16_5YR_B25074_with_ann!BO58","v":12},{"$f":"[1]ACS_16_5YR_B25074_with_ann!BP58","v":0},{"$f":"[1]ACS_16_5YR_B25074_with_ann!BQ58","v":12},{"$f":"[1]ACS_16_5YR_B25074_with_ann!BR58","v":0},{"$f":"[1]ACS_16_5YR_B25074_with_ann!BS58","v":12},{"$f":"[1]ACS_16_5YR_B25074_with_ann!BT58","v":0},{"$f":"[1]ACS_16_5YR_B25074_with_ann!BU58","v":12},{"$f":"[1]ACS_16_5YR_B25074_with_ann!BV58","v":0},{"$f":"[1]ACS_16_5YR_B25074_with_ann!BW58","v":12},{"$f":"[1]ACS_16_5YR_B25074_with_ann!BX58","v":0},{"$f":"[1]ACS_16_5YR_B25074_with_ann!BY58","v":12},{"$f":"[1]ACS_16_5YR_B25074_with_ann!BZ58","v":0},{"$f":"[1]ACS_16_5YR_B25074_with_ann!CA58","v":12},{"$f":"[1]ACS_16_5YR_B25074_with_ann!CB58","v":0},{"$f":"[1]ACS_16_5YR_B25074_with_ann!CC58","v":12},{"$f":"[1]ACS_16_5YR_B25074_with_ann!CD58","v":0},{"$f":"[1]ACS_16_5YR_B25074_with_ann!CE58","v":12},{"$f":"[1]ACS_16_5YR_B25074_with_ann!CF58","v":0},{"$f":"[1]ACS_16_5YR_B25074_with_ann!CG58","v":12},{"$f":"[1]ACS_16_5YR_B25074_with_ann!CH58","v":0},{"$f":"[1]ACS_16_5YR_B25074_with_ann!CI58","v":12},{"$f":"[1]ACS_16_5YR_B25074_with_ann!CJ58","v":0},{"$f":"[1]ACS_16_5YR_B25074_with_ann!CK58","v":12},{"$f":"[1]ACS_16_5YR_B25074_with_ann!CL58","v":0},{"$f":"[1]ACS_16_5YR_B25074_with_ann!CM58","v":12},{"$f":"[1]ACS_16_5YR_B25074_with_ann!CN58","v":0},{"$f":"[1]ACS_16_5YR_B25074_with_ann!CO58","v":12},{"$f":"[1]ACS_16_5YR_B25074_with_ann!CP58","v":0},{"$f":"[1]ACS_16_5YR_B25074_with_ann!CQ58","v":12},{"$f":"[1]ACS_16_5YR_B25074_with_ann!CR58","v":0},{"$f":"[1]ACS_16_5YR_B25074_with_ann!CS58","v":12},{"$f":"[1]ACS_16_5YR_B25074_with_ann!CT58","v":0},{"$f":"[1]ACS_16_5YR_B25074_with_ann!CU58","v":12},{"$f":"[1]ACS_16_5YR_B25074_with_ann!CV58","v":0},{"$f":"[1]ACS_16_5YR_B25074_with_ann!CW58","v":12},{"$f":"[1]ACS_16_5YR_B25074_with_ann!CX58","v":0},{"$f":"[1]ACS_16_5YR_B25074_with_ann!CY58","v":12},{"$f":"[1]ACS_16_5YR_B25074_with_ann!CZ58","v":0},{"$f":"[1]ACS_16_5YR_B25074_with_ann!DA58","v":12},{"$f":"[1]ACS_16_5YR_B25074_with_ann!DB58","v":0},{"$f":"[1]ACS_16_5YR_B25074_with_ann!DC58","v":12},{"$f":"[1]ACS_16_5YR_B25074_with_ann!DD58","v":0},{"$f":"[1]ACS_16_5YR_B25074_with_ann!DE58","v":12},{"$f":"[1]ACS_16_5YR_B25074_with_ann!DF58","v":0},{"$f":"[1]ACS_16_5YR_B25074_with_ann!DG58","v":12},{"$f":"[1]ACS_16_5YR_B25074_with_ann!DH58","v":0},{"$f":"[1]ACS_16_5YR_B25074_with_ann!DI58","v":12},{"$f":"[1]ACS_16_5YR_B25074_with_ann!DJ58","v":1},{"$f":"[1]ACS_16_5YR_B25074_with_ann!DK58","v":3},{"$f":"[1]ACS_16_5YR_B25074_with_ann!DL58","v":0},{"$f":"[1]ACS_16_5YR_B25074_with_ann!DM58","v":12},{"$f":"[1]ACS_16_5YR_B25074_with_ann!DN58","v":0},{"$f":"[1]ACS_16_5YR_B25074_with_ann!DO58","v":12},{"$f":"[1]ACS_16_5YR_B25074_with_ann!DP58","v":0},{"$f":"[1]ACS_16_5YR_B25074_with_ann!DQ58","v":12},{"$f":"[1]ACS_16_5YR_B25074_with_ann!DR58","v":0},{"$f":"[1]ACS_16_5YR_B25074_with_ann!DS58","v":12},{"$f":"[1]ACS_16_5YR_B25074_with_ann!DT58","v":0},{"$f":"[1]ACS_16_5YR_B25074_with_ann!DU58","v":12},{"$f":"[1]ACS_16_5YR_B25074_with_ann!DV58","v":0},{"$f":"[1]ACS_16_5YR_B25074_with_ann!DW58","v":12},{"$f":"[1]ACS_16_5YR_B25074_with_ann!DX58","v":0},{"$f":"[1]ACS_16_5YR_B25074_with_ann!DY58","v":12},{"$f":"[1]ACS_16_5YR_B25074_with_ann!DZ58","v":1},{"$f":"[1]ACS_16_5YR_B25074_with_ann!EA58","v":3},null,{"$f":"[1]ACS_16_5YR_B25070_with_ann!C58","v":"Roxbury"}]
["06000US3300573700","0600000US3300574900","060",null,{"$f":"[1]ACS_16_5YR_B25070_with_ann!D59","v":31},{"$f":"[1]ACS_16_5YR_B25070_with_ann!E59","v":18},{"$f":"[1]ACS_16_5YR_B25070_with_ann!F59","v":0},{"$f":"[1]ACS_16_5YR_B25070_with_ann!G59","v":12},{"$f":"[1]ACS_16_5YR_B25070_with_ann!H59","v":6},{"$f":"[1]ACS_16_5YR_B25070_with_ann!I59","v":6},{"$f":"[1]ACS_16_5YR_B25070_with_ann!J59","v":6},{"$f":"[1]ACS_16_5YR_B25070_with_ann!K59","v":9},{"$f":"[1]ACS_16_5YR_B25070_with_ann!L59","v":2},{"$f":"[1]ACS_16_5YR_B25070_with_ann!M59","v":3},{"$f":"[1]ACS_16_5YR_B25070_with_ann!N59","v":0},{"$f":"[1]ACS_16_5YR_B25070_with_ann!O59","v":12},{"$f":"[1]ACS_16_5YR_B25070_with_ann!P59","v":0},{"$f":"[1]ACS_16_5YR_B25070_with_ann!Q59","v":12},{"$f":"[1]ACS_16_5YR_B25070_with_ann!R59","v":9},{"$f":"[1]ACS_16_5YR_B25070_with_ann!S59","v":14},{"$f":"[1]ACS_16_5YR_B25070_with_ann!T59","v":0},{"$f":"[1]ACS_16_5YR_B25070_with_ann!U59","v":12},{"$f":"[1]ACS_16_5YR_B25070_with_ann!V59","v":0},{"$f":"[1]ACS_16_5YR_B25070_with_ann!W59","v":12},{"$f":"[1]ACS_16_5YR_B25070_with_ann!X59","v":8},{"$f":"[1]ACS_16_5YR_B25070_with_ann!Y59","v":9},{"$f":"[1]ACS_16_5YR_B25074_with_ann!D59","v":31},{"$f":"[1]ACS_16_5YR_B25074_with_ann!E59","v":18},{"$f":"[1]ACS_16_5YR_B25074_with_ann!F59","v":0},{"$f":"[1]ACS_16_5YR_B25074_with_ann!G59","v":12},{"$f":"[1]ACS_16_5YR_B25074_with_ann!H59","v":0},{"$f":"[1]ACS_16_5YR_B25074_with_ann!I59","v":12},{"$f":"[1]ACS_16_5YR_B25074_with_ann!J59","v":0},{"$f":"[1]ACS_16_5YR_B25074_with_ann!K59","v":12},{"$f":"[1]ACS_16_5YR_B25074_with_ann!L59","v":0},{"$f":"[1]ACS_16_5YR_B25074_with_ann!M59","v":12},{"$f":"[1]ACS_16_5YR_B25074_with_ann!N59","v":0},{"$f":"[1]ACS_16_5YR_B25074_with_ann!O59","v":12},{"$f":"[1]ACS_16_5YR_B25074_with_ann!P59","v":0},{"$f":"[1]ACS_16_5YR_B25074_with_ann!Q59","v":12},{"$f":"[1]ACS_16_5YR_B25074_with_ann!R59","v":0},{"$f":"[1]ACS_16_5YR_B25074_with_ann!S59","v":12},{"$f":"[1]ACS_16_5YR_B25074_with_ann!T59","v":0},{"$f":"[1]ACS_16_5YR_B25074_with_ann!U59","v":12},{"$f":"[1]ACS_16_5YR_B25074_with_ann!V59","v":0},{"$f":"[1]ACS_16_5YR_B25074_with_ann!W59","v":12},{"$f":"[1]ACS_16_5YR_B25074_with_ann!X59","v":0},{"$f":"[1]ACS_16_5YR_B25074_with_ann!Y59","v":12},{"$f":"[1]ACS_16_5YR_B25074_with_ann!Z59","v":0},{"$f":"[1]ACS_16_5YR_B25074_with_ann!AA59","v":12},{"$f":"[1]ACS_16_5YR_B25074_with_ann!AB59","v":0},{"$f":"[1]ACS_16_5YR_B25074_with_ann!AC59","v":12},{"$f":"[1]ACS_16_5YR_B25074_with_ann!AD59","v":0},{"$f":"[1]ACS_16_5YR_B25074_with_ann!AE59","v":12},{"$f":"[1]ACS_16_5YR_B25074_with_ann!AF59","v":0},{"$f":"[1]ACS_16_5YR_B25074_with_ann!AG59","v":12},{"$f":"[1]ACS_16_5YR_B25074_with_ann!AH59","v":0},{"$f":"[1]ACS_16_5YR_B25074_with_ann!AI59","v":12},{"$f":"[1]ACS_16_5YR_B25074_with_ann!AJ59","v":0},{"$f":"[1]ACS_16_5YR_B25074_with_ann!AK59","v":12},{"$f":"[1]ACS_16_5YR_B25074_with_ann!AL59","v":0},{"$f":"[1]ACS_16_5YR_B25074_with_ann!AM59","v":12},{"$f":"[1]ACS_16_5YR_B25074_with_ann!AN59","v":0},{"$f":"[1]ACS_16_5YR_B25074_with_ann!AO59","v":12},{"$f":"[1]ACS_16_5YR_B25074_with_ann!AP59","v":0},{"$f":"[1]ACS_16_5YR_B25074_with_ann!AQ59","v":12},{"$f":"[1]ACS_16_5YR_B25074_with_ann!AR59","v":0},{"$f":"[1]ACS_16_5YR_B25074_with_ann!AS59","v":12},{"$f":"[1]ACS_16_5YR_B25074_with_ann!AT59","v":0},{"$f":"[1]ACS_16_5YR_B25074_with_ann!AU59","v":12},{"$f":"[1]ACS_16_5YR_B25074_with_ann!AV59","v":0},{"$f":"[1]ACS_16_5YR_B25074_with_ann!AW59","v":12},{"$f":"[1]ACS_16_5YR_B25074_with_ann!AX59","v":0},{"$f":"[1]ACS_16_5YR_B25074_with_ann!AY59","v":12},{"$f":"[1]ACS_16_5YR_B25074_with_ann!AZ59","v":0},{"$f":"[1]ACS_16_5YR_B25074_with_ann!BA59","v":12},{"$f":"[1]ACS_16_5YR_B25074_with_ann!BB59","v":0},{"$f":"[1]ACS_16_5YR_B25074_with_ann!BC59","v":12},{"$f":"[1]ACS_16_5YR_B25074_with_ann!BD59","v":0},{"$f":"[1]ACS_16_5YR_B25074_with_ann!BE59","v":12},{"$f":"[1]ACS_16_5YR_B25074_with_ann!BF59","v":0},{"$f":"[1]ACS_16_5YR_B25074_with_ann!BG59","v":12},{"$f":"[1]ACS_16_5YR_B25074_with_ann!BH59","v":0},{"$f":"[1]ACS_16_5YR_B25074_with_ann!BI59","v":12},{"$f":"[1]ACS_16_5YR_B25074_with_ann!BJ59","v":0},{"$f":"[1]ACS_16_5YR_B25074_with_ann!BK59","v":12},{"$f":"[1]ACS_16_5YR_B25074_with_ann!BL59","v":0},{"$f":"[1]ACS_16_5YR_B25074_with_ann!BM59","v":12},{"$f":"[1]ACS_16_5YR_B25074_with_ann!BN59","v":0},{"$f":"[1]ACS_16_5YR_B25074_with_ann!BO59","v":12},{"$f":"[1]ACS_16_5YR_B25074_with_ann!BP59","v":0},{"$f":"[1]ACS_16_5YR_B25074_with_ann!BQ59","v":12},{"$f":"[1]ACS_16_5YR_B25074_with_ann!BR59","v":0},{"$f":"[1]ACS_16_5YR_B25074_with_ann!BS59","v":12},{"$f":"[1]ACS_16_5YR_B25074_with_ann!BT59","v":0},{"$f":"[1]ACS_16_5YR_B25074_with_ann!BU59","v":12},{"$f":"[1]ACS_16_5YR_B25074_with_ann!BV59","v":0},{"$f":"[1]ACS_16_5YR_B25074_with_ann!BW59","v":12},{"$f":"[1]ACS_16_5YR_B25074_with_ann!BX59","v":0},{"$f":"[1]ACS_16_5YR_B25074_with_ann!BY59","v":12},{"$f":"[1]ACS_16_5YR_B25074_with_ann!BZ59","v":15},{"$f":"[1]ACS_16_5YR_B25074_with_ann!CA59","v":16},{"$f":"[1]ACS_16_5YR_B25074_with_ann!CB59","v":0},{"$f":"[1]ACS_16_5YR_B25074_with_ann!CC59","v":12},{"$f":"[1]ACS_16_5YR_B25074_with_ann!CD59","v":0},{"$f":"[1]ACS_16_5YR_B25074_with_ann!CE59","v":12},{"$f":"[1]ACS_16_5YR_B25074_with_ann!CF59","v":0},{"$f":"[1]ACS_16_5YR_B25074_with_ann!CG59","v":12},{"$f":"[1]ACS_16_5YR_B25074_with_ann!CH59","v":0},{"$f":"[1]ACS_16_5YR_B25074_with_ann!CI59","v":12},{"$f":"[1]ACS_16_5YR_B25074_with_ann!CJ59","v":9},{"$f":"[1]ACS_16_5YR_B25074_with_ann!CK59","v":14},{"$f":"[1]ACS_16_5YR_B25074_with_ann!CL59","v":0},{"$f":"[1]ACS_16_5YR_B25074_with_ann!CM59","v":12},{"$f":"[1]ACS_16_5YR_B25074_with_ann!CN59","v":0},{"$f":"[1]ACS_16_5YR_B25074_with_ann!CO59","v":12},{"$f":"[1]ACS_16_5YR_B25074_with_ann!CP59","v":6},{"$f":"[1]ACS_16_5YR_B25074_with_ann!CQ59","v":8},{"$f":"[1]ACS_16_5YR_B25074_with_ann!CR59","v":3},{"$f":"[1]ACS_16_5YR_B25074_with_ann!CS59","v":4},{"$f":"[1]ACS_16_5YR_B25074_with_ann!CT59","v":3},{"$f":"[1]ACS_16_5YR_B25074_with_ann!CU59","v":4},{"$f":"[1]ACS_16_5YR_B25074_with_ann!CV59","v":0},{"$f":"[1]ACS_16_5YR_B25074_with_ann!CW59","v":12},{"$f":"[1]ACS_16_5YR_B25074_with_ann!CX59","v":0},{"$f":"[1]ACS_16_5YR_B25074_with_ann!CY59","v":12},{"$f":"[1]ACS_16_5YR_B25074_with_ann!CZ59","v":0},{"$f":"[1]ACS_16_5YR_B25074_with_ann!DA59","v":12},{"$f":"[1]ACS_16_5YR_B25074_with_ann!DB59","v":0},{"$f":"[1]ACS_16_5YR_B25074_with_ann!DC59","v":12},{"$f":"[1]ACS_16_5YR_B25074_with_ann!DD59","v":0},{"$f":"[1]ACS_16_5YR_B25074_with_ann!DE59","v":12},{"$f":"[1]ACS_16_5YR_B25074_with_ann!DF59","v":0},{"$f":"[1]ACS_16_5YR_B25074_with_ann!DG59","v":12},{"$f":"[1]ACS_16_5YR_B25074_with_ann!DH59","v":0},{"$f":"[1]ACS_16_5YR_B25074_with_ann!DI59","v":12},{"$f":"[1]ACS_16_5YR_B25074_with_ann!DJ59","v":13},{"$f":"[1]ACS_16_5YR_B25074_with_ann!DK59","v":10},{"$f":"[1]ACS_16_5YR_B25074_with_ann!DL59","v":9},{"$f":"[1]ACS_16_5YR_B25074_with_ann!DM59","v":8},{"$f":"[1]ACS_16_5YR_B25074_with_ann!DN59","v":2},{"$f":"[1]ACS_16_5YR_B25074_with_ann!DO59","v":3},{"$f":"[1]ACS_16_5YR_B25074_with_ann!DP59","v":0},{"$f":"[1]ACS_16_5YR_B25074_with_ann!DQ59","v":12},{"$f":"[1]ACS_16_5YR_B25074_with_ann!DR59","v":0},{"$f":"[1]ACS_16_5YR_B25074_with_ann!DS59","v":12},{"$f":"[1]ACS_16_5YR_B25074_with_ann!DT59","v":0},{"$f":"[1]ACS_16_5YR_B25074_with_ann!DU59","v":12},{"$f":"[1]ACS_16_5YR_B25074_with_ann!DV59","v":0},{"$f":"[1]ACS_16_5YR_B25074_with_ann!DW59","v":12},{"$f":"[1]ACS_16_5YR_B25074_with_ann!DX59","v":0},{"$f":"[1]ACS_16_5YR_B25074_with_ann!DY59","v":12},{"$f":"[1]ACS_16_5YR_B25074_with_ann!DZ59","v":2},{"$f":"[1]ACS_16_5YR_B25074_with_ann!EA59","v":4},null,{"$f":"[1]ACS_16_5YR_B25070_with_ann!C59","v":"Stoddard"}]
["06000US3300574900","0600000US3300575300","060",null,{"$f":"[1]ACS_16_5YR_B25070_with_ann!D60","v":41},{"$f":"[1]ACS_16_5YR_B25070_with_ann!E60","v":21},{"$f":"[1]ACS_16_5YR_B25070_with_ann!F60","v":0},{"$f":"[1]ACS_16_5YR_B25070_with_ann!G60","v":12},{"$f":"[1]ACS_16_5YR_B25070_with_ann!H60","v":11},{"$f":"[1]ACS_16_5YR_B25070_with_ann!I60","v":8},{"$f":"[1]ACS_16_5YR_B25070_with_ann!J60","v":17},{"$f":"[1]ACS_16_5YR_B25070_with_ann!K60","v":19},{"$f":"[1]ACS_16_5YR_B25070_with_ann!L60","v":0},{"$f":"[1]ACS_16_5YR_B25070_with_ann!M60","v":12},{"$f":"[1]ACS_16_5YR_B25070_with_ann!N60","v":0},{"$f":"[1]ACS_16_5YR_B25070_with_ann!O60","v":12},{"$f":"[1]ACS_16_5YR_B25070_with_ann!P60","v":3},{"$f":"[1]ACS_16_5YR_B25070_with_ann!Q60","v":4},{"$f":"[1]ACS_16_5YR_B25070_with_ann!R60","v":2},{"$f":"[1]ACS_16_5YR_B25070_with_ann!S60","v":3},{"$f":"[1]ACS_16_5YR_B25070_with_ann!T60","v":2},{"$f":"[1]ACS_16_5YR_B25070_with_ann!U60","v":3},{"$f":"[1]ACS_16_5YR_B25070_with_ann!V60","v":5},{"$f":"[1]ACS_16_5YR_B25070_with_ann!W60","v":6},{"$f":"[1]ACS_16_5YR_B25070_with_ann!X60","v":1},{"$f":"[1]ACS_16_5YR_B25070_with_ann!Y60","v":4},{"$f":"[1]ACS_16_5YR_B25074_with_ann!D60","v":41},{"$f":"[1]ACS_16_5YR_B25074_with_ann!E60","v":21},{"$f":"[1]ACS_16_5YR_B25074_with_ann!F60","v":0},{"$f":"[1]ACS_16_5YR_B25074_with_ann!G60","v":12},{"$f":"[1]ACS_16_5YR_B25074_with_ann!H60","v":0},{"$f":"[1]ACS_16_5YR_B25074_with_ann!I60","v":12},{"$f":"[1]ACS_16_5YR_B25074_with_ann!J60","v":0},{"$f":"[1]ACS_16_5YR_B25074_with_ann!K60","v":12},{"$f":"[1]ACS_16_5YR_B25074_with_ann!L60","v":0},{"$f":"[1]ACS_16_5YR_B25074_with_ann!M60","v":12},{"$f":"[1]ACS_16_5YR_B25074_with_ann!N60","v":0},{"$f":"[1]ACS_16_5YR_B25074_with_ann!O60","v":12},{"$f":"[1]ACS_16_5YR_B25074_with_ann!P60","v":0},{"$f":"[1]ACS_16_5YR_B25074_with_ann!Q60","v":12},{"$f":"[1]ACS_16_5YR_B25074_with_ann!R60","v":0},{"$f":"[1]ACS_16_5YR_B25074_with_ann!S60","v":12},{"$f":"[1]ACS_16_5YR_B25074_with_ann!T60","v":0},{"$f":"[1]ACS_16_5YR_B25074_with_ann!U60","v":12},{"$f":"[1]ACS_16_5YR_B25074_with_ann!V60","v":0},{"$f":"[1]ACS_16_5YR_B25074_with_ann!W60","v":12},{"$f":"[1]ACS_16_5YR_B25074_with_ann!X60","v":0},{"$f":"[1]ACS_16_5YR_B25074_with_ann!Y60","v":12},{"$f":"[1]ACS_16_5YR_B25074_with_ann!Z60","v":0},{"$f":"[1]ACS_16_5YR_B25074_with_ann!AA60","v":12},{"$f":"[1]ACS_16_5YR_B25074_with_ann!AB60","v":0},{"$f":"[1]ACS_16_5YR_B25074_with_ann!AC60","v":12},{"$f":"[1]ACS_16_5YR_B25074_with_ann!AD60","v":0},{"$f":"[1]ACS_16_5YR_B25074_with_ann!AE60","v":12},{"$f":"[1]ACS_16_5YR_B25074_with_ann!AF60","v":0},{"$f":"[1]ACS_16_5YR_B25074_with_ann!AG60","v":12},{"$f":"[1]ACS_16_5YR_B25074_with_ann!AH60","v":0},{"$f":"[1]ACS_16_5YR_B25074_with_ann!AI60","v":12},{"$f":"[1]ACS_16_5YR_B25074_with_ann!AJ60","v":0},{"$f":"[1]ACS_16_5YR_B25074_with_ann!AK60","v":12},{"$f":"[1]ACS_16_5YR_B25074_with_ann!AL60","v":0},{"$f":"[1]ACS_16_5YR_B25074_with_ann!AM60","v":12},{"$f":"[1]ACS_16_5YR_B25074_with_ann!AN60","v":0},{"$f":"[1]ACS_16_5YR_B25074_with_ann!AO60","v":12},{"$f":"[1]ACS_16_5YR_B25074_with_ann!AP60","v":7},{"$f":"[1]ACS_16_5YR_B25074_with_ann!AQ60","v":7},{"$f":"[1]ACS_16_5YR_B25074_with_ann!AR60","v":0},{"$f":"[1]ACS_16_5YR_B25074_with_ann!AS60","v":12},{"$f":"[1]ACS_16_5YR_B25074_with_ann!AT60","v":0},{"$f":"[1]ACS_16_5YR_B25074_with_ann!AU60","v":12},{"$f":"[1]ACS_16_5YR_B25074_with_ann!AV60","v":0},{"$f":"[1]ACS_16_5YR_B25074_with_ann!AW60","v":12},{"$f":"[1]ACS_16_5YR_B25074_with_ann!AX60","v":0},{"$f":"[1]ACS_16_5YR_B25074_with_ann!AY60","v":12},{"$f":"[1]ACS_16_5YR_B25074_with_ann!AZ60","v":0},{"$f":"[1]ACS_16_5YR_B25074_with_ann!BA60","v":12},{"$f":"[1]ACS_16_5YR_B25074_with_ann!BB60","v":2},{"$f":"[1]ACS_16_5YR_B25074_with_ann!BC60","v":3},{"$f":"[1]ACS_16_5YR_B25074_with_ann!BD60","v":5},{"$f":"[1]ACS_16_5YR_B25074_with_ann!BE60","v":6},{"$f":"[1]ACS_16_5YR_B25074_with_ann!BF60","v":0},{"$f":"[1]ACS_16_5YR_B25074_with_ann!BG60","v":12},{"$f":"[1]ACS_16_5YR_B25074_with_ann!BH60","v":4},{"$f":"[1]ACS_16_5YR_B25074_with_ann!BI60","v":4},{"$f":"[1]ACS_16_5YR_B25074_with_ann!BJ60","v":0},{"$f":"[1]ACS_16_5YR_B25074_with_ann!BK60","v":12},{"$f":"[1]ACS_16_5YR_B25074_with_ann!BL60","v":0},{"$f":"[1]ACS_16_5YR_B25074_with_ann!BM60","v":12},{"$f":"[1]ACS_16_5YR_B25074_with_ann!BN60","v":0},{"$f":"[1]ACS_16_5YR_B25074_with_ann!BO60","v":12},{"$f":"[1]ACS_16_5YR_B25074_with_ann!BP60","v":3},{"$f":"[1]ACS_16_5YR_B25074_with_ann!BQ60","v":4},{"$f":"[1]ACS_16_5YR_B25074_with_ann!BR60","v":0},{"$f":"[1]ACS_16_5YR_B25074_with_ann!BS60","v":12},{"$f":"[1]ACS_16_5YR_B25074_with_ann!BT60","v":0},{"$f":"[1]ACS_16_5YR_B25074_with_ann!BU60","v":12},{"$f":"[1]ACS_16_5YR_B25074_with_ann!BV60","v":0},{"$f":"[1]ACS_16_5YR_B25074_with_ann!BW60","v":12},{"$f":"[1]ACS_16_5YR_B25074_with_ann!BX60","v":1},{"$f":"[1]ACS_16_5YR_B25074_with_ann!BY60","v":4},{"$f":"[1]ACS_16_5YR_B25074_with_ann!BZ60","v":19},{"$f":"[1]ACS_16_5YR_B25074_with_ann!CA60","v":19},{"$f":"[1]ACS_16_5YR_B25074_with_ann!CB60","v":17},{"$f":"[1]ACS_16_5YR_B25074_with_ann!CC60","v":19},{"$f":"[1]ACS_16_5YR_B25074_with_ann!CD60","v":0},{"$f":"[1]ACS_16_5YR_B25074_with_ann!CE60","v":12},{"$f":"[1]ACS_16_5YR_B25074_with_ann!CF60","v":0},{"$f":"[1]ACS_16_5YR_B25074_with_ann!CG60","v":12},{"$f":"[1]ACS_16_5YR_B25074_with_ann!CH60","v":0},{"$f":"[1]ACS_16_5YR_B25074_with_ann!CI60","v":12},{"$f":"[1]ACS_16_5YR_B25074_with_ann!CJ60","v":2},{"$f":"[1]ACS_16_5YR_B25074_with_ann!CK60","v":3},{"$f":"[1]ACS_16_5YR_B25074_with_ann!CL60","v":0},{"$f":"[1]ACS_16_5YR_B25074_with_ann!CM60","v":12},{"$f":"[1]ACS_16_5YR_B25074_with_ann!CN60","v":0},{"$f":"[1]ACS_16_5YR_B25074_with_ann!CO60","v":12},{"$f":"[1]ACS_16_5YR_B25074_with_ann!CP60","v":0},{"$f":"[1]ACS_16_5YR_B25074_with_ann!CQ60","v":12},{"$f":"[1]ACS_16_5YR_B25074_with_ann!CR60","v":0},{"$f":"[1]ACS_16_5YR_B25074_with_ann!CS60","v":12},{"$f":"[1]ACS_16_5YR_B25074_with_ann!CT60","v":0},{"$f":"[1]ACS_16_5YR_B25074_with_ann!CU60","v":12},{"$f":"[1]ACS_16_5YR_B25074_with_ann!CV60","v":0},{"$f":"[1]ACS_16_5YR_B25074_with_ann!CW60","v":12},{"$f":"[1]ACS_16_5YR_B25074_with_ann!CX60","v":0},{"$f":"[1]ACS_16_5YR_B25074_with_ann!CY60","v":12},{"$f":"[1]ACS_16_5YR_B25074_with_ann!CZ60","v":0},{"$f":"[1]ACS_16_5YR_B25074_with_ann!DA60","v":12},{"$f":"[1]ACS_16_5YR_B25074_with_ann!DB60","v":0},{"$f":"[1]ACS_16_5YR_B25074_with_ann!DC60","v":12},{"$f":"[1]ACS_16_5YR_B25074_with_ann!DD60","v":0},{"$f":"[1]ACS_16_5YR_B25074_with_ann!DE60","v":12},{"$f":"[1]ACS_16_5YR_B25074_with_ann!DF60","v":0},{"$f":"[1]ACS_16_5YR_B25074_with_ann!DG60","v":12},{"$f":"[1]ACS_16_5YR_B25074_with_ann!DH60","v":0},{"$f":"[1]ACS_16_5YR_B25074_with_ann!DI60","v":12},{"$f":"[1]ACS_16_5YR_B25074_with_ann!DJ60","v":11},{"$f":"[1]ACS_16_5YR_B25074_with_ann!DK60","v":8},{"$f":"[1]ACS_16_5YR_B25074_with_ann!DL60","v":11},{"$f":"[1]ACS_16_5YR_B25074_with_ann!DM60","v":8},{"$f":"[1]ACS_16_5YR_B25074_with_ann!DN60","v":0},{"$f":"[1]ACS_16_5YR_B25074_with_ann!DO60","v":12},{"$f":"[1]ACS_16_5YR_B25074_with_ann!DP60","v":0},{"$f":"[1]ACS_16_5YR_B25074_with_ann!DQ60","v":12},{"$f":"[1]ACS_16_5YR_B25074_with_ann!DR60","v":0},{"$f":"[1]ACS_16_5YR_B25074_with_ann!DS60","v":12},{"$f":"[1]ACS_16_5YR_B25074_with_ann!DT60","v":0},{"$f":"[1]ACS_16_5YR_B25074_with_ann!DU60","v":12},{"$f":"[1]ACS_16_5YR_B25074_with_ann!DV60","v":0},{"$f":"[1]ACS_16_5YR_B25074_with_ann!DW60","v":12},{"$f":"[1]ACS_16_5YR_B25074_with_ann!DX60","v":0},{"$f":"[1]ACS_16_5YR_B25074_with_ann!DY60","v":12},{"$f":"[1]ACS_16_5YR_B25074_with_ann!DZ60","v":0},{"$f":"[1]ACS_16_5YR_B25074_with_ann!EA60","v":12},null,{"$f":"[1]ACS_16_5YR_B25070_with_ann!C60","v":"Sullivan"}]
["06000US3300575300","0600000US3300575700","060",null,{"$f":"[1]ACS_16_5YR_B25070_with_ann!D61","v":20},{"$f":"[1]ACS_16_5YR_B25070_with_ann!E61","v":9},{"$f":"[1]ACS_16_5YR_B25070_with_ann!F61","v":5},{"$f":"[1]ACS_16_5YR_B25070_with_ann!G61","v":5},{"$f":"[1]ACS_16_5YR_B25070_with_ann!H61","v":0},{"$f":"[1]ACS_16_5YR_B25070_with_ann!I61","v":12},{"$f":"[1]ACS_16_5YR_B25070_with_ann!J61","v":0},{"$f":"[1]ACS_16_5YR_B25070_with_ann!K61","v":12},{"$f":"[1]ACS_16_5YR_B25070_with_ann!L61","v":4},{"$f":"[1]ACS_16_5YR_B25070_with_ann!M61","v":5},{"$f":"[1]ACS_16_5YR_B25070_with_ann!N61","v":5},{"$f":"[1]ACS_16_5YR_B25070_with_ann!O61","v":5},{"$f":"[1]ACS_16_5YR_B25070_with_ann!P61","v":0},{"$f":"[1]ACS_16_5YR_B25070_with_ann!Q61","v":12},{"$f":"[1]ACS_16_5YR_B25070_with_ann!R61","v":0},{"$f":"[1]ACS_16_5YR_B25070_with_ann!S61","v":12},{"$f":"[1]ACS_16_5YR_B25070_with_ann!T61","v":0},{"$f":"[1]ACS_16_5YR_B25070_with_ann!U61","v":12},{"$f":"[1]ACS_16_5YR_B25070_with_ann!V61","v":2},{"$f":"[1]ACS_16_5YR_B25070_with_ann!W61","v":3},{"$f":"[1]ACS_16_5YR_B25070_with_ann!X61","v":4},{"$f":"[1]ACS_16_5YR_B25070_with_ann!Y61","v":5},{"$f":"[1]ACS_16_5YR_B25074_with_ann!D61","v":20},{"$f":"[1]ACS_16_5YR_B25074_with_ann!E61","v":9},{"$f":"[1]ACS_16_5YR_B25074_with_ann!F61","v":0},{"$f":"[1]ACS_16_5YR_B25074_with_ann!G61","v":12},{"$f":"[1]ACS_16_5YR_B25074_with_ann!H61","v":0},{"$f":"[1]ACS_16_5YR_B25074_with_ann!I61","v":12},{"$f":"[1]ACS_16_5YR_B25074_with_ann!J61","v":0},{"$f":"[1]ACS_16_5YR_B25074_with_ann!K61","v":12},{"$f":"[1]ACS_16_5YR_B25074_with_ann!L61","v":0},{"$f":"[1]ACS_16_5YR_B25074_with_ann!M61","v":12},{"$f":"[1]ACS_16_5YR_B25074_with_ann!N61","v":0},{"$f":"[1]ACS_16_5YR_B25074_with_ann!O61","v":12},{"$f":"[1]ACS_16_5YR_B25074_with_ann!P61","v":0},{"$f":"[1]ACS_16_5YR_B25074_with_ann!Q61","v":12},{"$f":"[1]ACS_16_5YR_B25074_with_ann!R61","v":0},{"$f":"[1]ACS_16_5YR_B25074_with_ann!S61","v":12},{"$f":"[1]ACS_16_5YR_B25074_with_ann!T61","v":0},{"$f":"[1]ACS_16_5YR_B25074_with_ann!U61","v":12},{"$f":"[1]ACS_16_5YR_B25074_with_ann!V61","v":0},{"$f":"[1]ACS_16_5YR_B25074_with_ann!W61","v":12},{"$f":"[1]ACS_16_5YR_B25074_with_ann!X61","v":0},{"$f":"[1]ACS_16_5YR_B25074_with_ann!Y61","v":12},{"$f":"[1]ACS_16_5YR_B25074_with_ann!Z61","v":0},{"$f":"[1]ACS_16_5YR_B25074_with_ann!AA61","v":12},{"$f":"[1]ACS_16_5YR_B25074_with_ann!AB61","v":0},{"$f":"[1]ACS_16_5YR_B25074_with_ann!AC61","v":12},{"$f":"[1]ACS_16_5YR_B25074_with_ann!AD61","v":0},{"$f":"[1]ACS_16_5YR_B25074_with_ann!AE61","v":12},{"$f":"[1]ACS_16_5YR_B25074_with_ann!AF61","v":0},{"$f":"[1]ACS_16_5YR_B25074_with_ann!AG61","v":12},{"$f":"[1]ACS_16_5YR_B25074_with_ann!AH61","v":0},{"$f":"[1]ACS_16_5YR_B25074_with_ann!AI61","v":12},{"$f":"[1]ACS_16_5YR_B25074_with_ann!AJ61","v":0},{"$f":"[1]ACS_16_5YR_B25074_with_ann!AK61","v":12},{"$f":"[1]ACS_16_5YR_B25074_with_ann!AL61","v":0},{"$f":"[1]ACS_16_5YR_B25074_with_ann!AM61","v":12},{"$f":"[1]ACS_16_5YR_B25074_with_ann!AN61","v":0},{"$f":"[1]ACS_16_5YR_B25074_with_ann!AO61","v":12},{"$f":"[1]ACS_16_5YR_B25074_with_ann!AP61","v":2},{"$f":"[1]ACS_16_5YR_B25074_with_ann!AQ61","v":3},{"$f":"[1]ACS_16_5YR_B25074_with_ann!AR61","v":0},{"$f":"[1]ACS_16_5YR_B25074_with_ann!AS61","v":12},{"$f":"[1]ACS_16_5YR_B25074_with_ann!AT61","v":0},{"$f":"[1]ACS_16_5YR_B25074_with_ann!AU61","v":12},{"$f":"[1]ACS_16_5YR_B25074_with_ann!AV61","v":0},{"$f":"[1]ACS_16_5YR_B25074_with_ann!AW61","v":12},{"$f":"[1]ACS_16_5YR_B25074_with_ann!AX61","v":0},{"$f":"[1]ACS_16_5YR_B25074_with_ann!AY61","v":12},{"$f":"[1]ACS_16_5YR_B25074_with_ann!AZ61","v":0},{"$f":"[1]ACS_16_5YR_B25074_with_ann!BA61","v":12},{"$f":"[1]ACS_16_5YR_B25074_with_ann!BB61","v":0},{"$f":"[1]ACS_16_5YR_B25074_with_ann!BC61","v":12},{"$f":"[1]ACS_16_5YR_B25074_with_ann!BD61","v":2},{"$f":"[1]ACS_16_5YR_B25074_with_ann!BE61","v":3},{"$f":"[1]ACS_16_5YR_B25074_with_ann!BF61","v":0},{"$f":"[1]ACS_16_5YR_B25074_with_ann!BG61","v":12},{"$f":"[1]ACS_16_5YR_B25074_with_ann!BH61","v":2},{"$f":"[1]ACS_16_5YR_B25074_with_ann!BI61","v":4},{"$f":"[1]ACS_16_5YR_B25074_with_ann!BJ61","v":0},{"$f":"[1]ACS_16_5YR_B25074_with_ann!BK61","v":12},{"$f":"[1]ACS_16_5YR_B25074_with_ann!BL61","v":0},{"$f":"[1]ACS_16_5YR_B25074_with_ann!BM61","v":12},{"$f":"[1]ACS_16_5YR_B25074_with_ann!BN61","v":0},{"$f":"[1]ACS_16_5YR_B25074_with_ann!BO61","v":12},{"$f":"[1]ACS_16_5YR_B25074_with_ann!BP61","v":0},{"$f":"[1]ACS_16_5YR_B25074_with_ann!BQ61","v":12},{"$f":"[1]ACS_16_5YR_B25074_with_ann!BR61","v":0},{"$f":"[1]ACS_16_5YR_B25074_with_ann!BS61","v":12},{"$f":"[1]ACS_16_5YR_B25074_with_ann!BT61","v":0},{"$f":"[1]ACS_16_5YR_B25074_with_ann!BU61","v":12},{"$f":"[1]ACS_16_5YR_B25074_with_ann!BV61","v":0},{"$f":"[1]ACS_16_5YR_B25074_with_ann!BW61","v":12},{"$f":"[1]ACS_16_5YR_B25074_with_ann!BX61","v":2},{"$f":"[1]ACS_16_5YR_B25074_with_ann!BY61","v":4},{"$f":"[1]ACS_16_5YR_B25074_with_ann!BZ61","v":3},{"$f":"[1]ACS_16_5YR_B25074_with_ann!CA61","v":4},{"$f":"[1]ACS_16_5YR_B25074_with_ann!CB61","v":0},{"$f":"[1]ACS_16_5YR_B25074_with_ann!CC61","v":12},{"$f":"[1]ACS_16_5YR_B25074_with_ann!CD61","v":0},{"$f":"[1]ACS_16_5YR_B25074_with_ann!CE61","v":12},{"$f":"[1]ACS_16_5YR_B25074_with_ann!CF61","v":3},{"$f":"[1]ACS_16_5YR_B25074_with_ann!CG61","v":4},{"$f":"[1]ACS_16_5YR_B25074_with_ann!CH61","v":0},{"$f":"[1]ACS_16_5YR_B25074_with_ann!CI61","v":12},{"$f":"[1]ACS_16_5YR_B25074_with_ann!CJ61","v":0},{"$f":"[1]ACS_16_5YR_B25074_with_ann!CK61","v":12},{"$f":"[1]ACS_16_5YR_B25074_with_ann!CL61","v":0},{"$f":"[1]ACS_16_5YR_B25074_with_ann!CM61","v":12},{"$f":"[1]ACS_16_5YR_B25074_with_ann!CN61","v":0},{"$f":"[1]ACS_16_5YR_B25074_with_ann!CO61","v":12},{"$f":"[1]ACS_16_5YR_B25074_with_ann!CP61","v":0},{"$f":"[1]ACS_16_5YR_B25074_with_ann!CQ61","v":12},{"$f":"[1]ACS_16_5YR_B25074_with_ann!CR61","v":6},{"$f":"[1]ACS_16_5YR_B25074_with_ann!CS61","v":5},{"$f":"[1]ACS_16_5YR_B25074_with_ann!CT61","v":0},{"$f":"[1]ACS_16_5YR_B25074_with_ann!CU61","v":12},{"$f":"[1]ACS_16_5YR_B25074_with_ann!CV61","v":2},{"$f":"[1]ACS_16_5YR_B25074_with_ann!CW61","v":3},{"$f":"[1]ACS_16_5YR_B25074_with_ann!CX61","v":2},{"$f":"[1]ACS_16_5YR_B25074_with_ann!CY61","v":3},{"$f":"[1]ACS_16_5YR_B25074_with_ann!CZ61","v":0},{"$f":"[1]ACS_16_5YR_B25074_with_ann!DA61","v":12},{"$f":"[1]ACS_16_5YR_B25074_with_ann!DB61","v":0},{"$f":"[1]ACS_16_5YR_B25074_with_ann!DC61","v":12},{"$f":"[1]ACS_16_5YR_B25074_with_ann!DD61","v":0},{"$f":"[1]ACS_16_5YR_B25074_with_ann!DE61","v":12},{"$f":"[1]ACS_16_5YR_B25074_with_ann!DF61","v":0},{"$f":"[1]ACS_16_5YR_B25074_with_ann!DG61","v":12},{"$f":"[1]ACS_16_5YR_B25074_with_ann!DH61","v":2},{"$f":"[1]ACS_16_5YR_B25074_with_ann!DI61","v":3},{"$f":"[1]ACS_16_5YR_B25074_with_ann!DJ61","v":7},{"$f":"[1]ACS_16_5YR_B25074_with_ann!DK61","v":6},{"$f":"[1]ACS_16_5YR_B25074_with_ann!DL61","v":5},{"$f":"[1]ACS_16_5YR_B25074_with_ann!DM61","v":5},{"$f":"[1]ACS_16_5YR_B25074_with_ann!DN61","v":2},{"$f":"[1]ACS_16_5YR_B25074_with_ann!DO61","v":3},{"$f":"[1]ACS_16_5YR_B25074_with_ann!DP61","v":0},{"$f":"[1]ACS_16_5YR_B25074_with_ann!DQ61","v":12},{"$f":"[1]ACS_16_5YR_B25074_with_ann!DR61","v":0},{"$f":"[1]ACS_16_5YR_B25074_with_ann!DS61","v":12},{"$f":"[1]ACS_16_5YR_B25074_with_ann!DT61","v":0},{"$f":"[1]ACS_16_5YR_B25074_with_ann!DU61","v":12},{"$f":"[1]ACS_16_5YR_B25074_with_ann!DV61","v":0},{"$f":"[1]ACS_16_5YR_B25074_with_ann!DW61","v":12},{"$f":"[1]ACS_16_5YR_B25074_with_ann!DX61","v":0},{"$f":"[1]ACS_16_5YR_B25074_with_ann!DY61","v":12},{"$f":"[1]ACS_16_5YR_B25074_with_ann!DZ61","v":0},{"$f":"[1]ACS_16_5YR_B25074_with_ann!EA61","v":12},null,{"$f":"[1]ACS_16_5YR_B25070_with_ann!C61","v":"Surry"}]
["06000US3300575700","0600000US3300577380","060",null,{"$f":"[1]ACS_16_5YR_B25070_with_ann!D62","v":1018},{"$f":"[1]ACS_16_5YR_B25070_with_ann!E62","v":252},{"$f":"[1]ACS_16_5YR_B25070_with_ann!F62","v":7},{"$f":"[1]ACS_16_5YR_B25070_with_ann!G62","v":11},{"$f":"[1]ACS_16_5YR_B25070_with_ann!H62","v":41},{"$f":"[1]ACS_16_5YR_B25070_with_ann!I62","v":41},{"$f":"[1]ACS_16_5YR_B25070_with_ann!J62","v":5},{"$f":"[1]ACS_16_5YR_B25070_with_ann!K62","v":9},{"$f":"[1]ACS_16_5YR_B25070_with_ann!L62","v":222},{"$f":"[1]ACS_16_5YR_B25070_with_ann!M62","v":114},{"$f":"[1]ACS_16_5YR_B25070_with_ann!N62","v":178},{"$f":"[1]ACS_16_5YR_B25070_with_ann!O62","v":105},{"$f":"[1]ACS_16_5YR_B25070_with_ann!P62","v":78},{"$f":"[1]ACS_16_5YR_B25070_with_ann!Q62","v":61},{"$f":"[1]ACS_16_5YR_B25070_with_ann!R62","v":62},{"$f":"[1]ACS_16_5YR_B25070_with_ann!S62","v":75},{"$f":"[1]ACS_16_5YR_B25070_with_ann!T62","v":55},{"$f":"[1]ACS_16_5YR_B25070_with_ann!U62","v":56},{"$f":"[1]ACS_16_5YR_B25070_with_ann!V62","v":335},{"$f":"[1]ACS_16_5YR_B25070_with_ann!W62","v":187},{"$f":"[1]ACS_16_5YR_B25070_with_ann!X62","v":35},{"$f":"[1]ACS_16_5YR_B25070_with_ann!Y62","v":34},{"$f":"[1]ACS_16_5YR_B25074_with_ann!D62","v":1018},{"$f":"[1]ACS_16_5YR_B25074_with_ann!E62","v":252},{"$f":"[1]ACS_16_5YR_B25074_with_ann!F62","v":20},{"$f":"[1]ACS_16_5YR_B25074_with_ann!G62","v":28},{"$f":"[1]ACS_16_5YR_B25074_with_ann!H62","v":0},{"$f":"[1]ACS_16_5YR_B25074_with_ann!I62","v":17},{"$f":"[1]ACS_16_5YR_B25074_with_ann!J62","v":0},{"$f":"[1]ACS_16_5YR_B25074_with_ann!K62","v":17},{"$f":"[1]ACS_16_5YR_B25074_with_ann!L62","v":0},{"$f":"[1]ACS_16_5YR_B25074_with_ann!M62","v":17},{"$f":"[1]ACS_16_5YR_B25074_with_ann!N62","v":0},{"$f":"[1]ACS_16_5YR_B25074_with_ann!O62","v":17},{"$f":"[1]ACS_16_5YR_B25074_with_ann!P62","v":20},{"$f":"[1]ACS_16_5YR_B25074_with_ann!Q62","v":28},{"$f":"[1]ACS_16_5YR_B25074_with_ann!R62","v":0},{"$f":"[1]ACS_16_5YR_B25074_with_ann!S62","v":17},{"$f":"[1]ACS_16_5YR_B25074_with_ann!T62","v":0},{"$f":"[1]ACS_16_5YR_B25074_with_ann!U62","v":17},{"$f":"[1]ACS_16_5YR_B25074_with_ann!V62","v":0},{"$f":"[1]ACS_16_5YR_B25074_with_ann!W62","v":17},{"$f":"[1]ACS_16_5YR_B25074_with_ann!X62","v":261},{"$f":"[1]ACS_16_5YR_B25074_with_ann!Y62","v":130},{"$f":"[1]ACS_16_5YR_B25074_with_ann!Z62","v":0},{"$f":"[1]ACS_16_5YR_B25074_with_ann!AA62","v":17},{"$f":"[1]ACS_16_5YR_B25074_with_ann!AB62","v":0},{"$f":"[1]ACS_16_5YR_B25074_with_ann!AC62","v":17},{"$f":"[1]ACS_16_5YR_B25074_with_ann!AD62","v":84},{"$f":"[1]ACS_16_5YR_B25074_with_ann!AE62","v":74},{"$f":"[1]ACS_16_5YR_B25074_with_ann!AF62","v":33},{"$f":"[1]ACS_16_5YR_B25074_with_ann!AG62","v":42},{"$f":"[1]ACS_16_5YR_B25074_with_ann!AH62","v":0},{"$f":"[1]ACS_16_5YR_B25074_with_ann!AI62","v":17},{"$f":"[1]ACS_16_5YR_B25074_with_ann!AJ62","v":21},{"$f":"[1]ACS_16_5YR_B25074_with_ann!AK62","v":31},{"$f":"[1]ACS_16_5YR_B25074_with_ann!AL62","v":123},{"$f":"[1]ACS_16_5YR_B25074_with_ann!AM62","v":90},{"$f":"[1]ACS_16_5YR_B25074_with_ann!AN62","v":0},{"$f":"[1]ACS_16_5YR_B25074_with_ann!AO62","v":17},{"$f":"[1]ACS_16_5YR_B25074_with_ann!AP62","v":262},{"$f":"[1]ACS_16_5YR_B25074_with_ann!AQ62","v":174},{"$f":"[1]ACS_16_5YR_B25074_with_ann!AR62","v":14},{"$f":"[1]ACS_16_5YR_B25074_with_ann!AS62","v":23},{"$f":"[1]ACS_16_5YR_B25074_with_ann!AT62","v":0},{"$f":"[1]ACS_16_5YR_B25074_with_ann!AU62","v":17},{"$f":"[1]ACS_16_5YR_B25074_with_ann!AV62","v":0},{"$f":"[1]ACS_16_5YR_B25074_with_ann!AW62","v":17},{"$f":"[1]ACS_16_5YR_B25074_with_ann!AX62","v":25},{"$f":"[1]ACS_16_5YR_B25074_with_ann!AY62","v":34},{"$f":"[1]ACS_16_5YR_B25074_with_ann!AZ62","v":0},{"$f":"[1]ACS_16_5YR_B25074_with_ann!BA62","v":17},{"$f":"[1]ACS_16_5YR_B25074_with_ann!BB62","v":0},{"$f":"[1]ACS_16_5YR_B25074_with_ann!BC62","v":17},{"$f":"[1]ACS_16_5YR_B25074_with_ann!BD62","v":212},{"$f":"[1]ACS_16_5YR_B25074_with_ann!BE62","v":171},{"$f":"[1]ACS_16_5YR_B25074_with_ann!BF62","v":11},{"$f":"[1]ACS_16_5YR_B25074_with_ann!BG62","v":17},{"$f":"[1]ACS_16_5YR_B25074_with_ann!BH62","v":122},{"$f":"[1]ACS_16_5YR_B25074_with_ann!BI62","v":88},{"$f":"[1]ACS_16_5YR_B25074_with_ann!BJ62","v":0},{"$f":"[1]ACS_16_5YR_B25074_with_ann!BK62","v":17},{"$f":"[1]ACS_16_5YR_B25074_with_ann!BL62","v":15},{"$f":"[1]ACS_16_5YR_B25074_with_ann!BM62","v":22},{"$f":"[1]ACS_16_5YR_B25074_with_ann!BN62","v":5},{"$f":"[1]ACS_16_5YR_B25074_with_ann!BO62","v":9},{"$f":"[1]ACS_16_5YR_B25074_with_ann!BP62","v":20},{"$f":"[1]ACS_16_5YR_B25074_with_ann!BQ62","v":32},{"$f":"[1]ACS_16_5YR_B25074_with_ann!BR62","v":42},{"$f":"[1]ACS_16_5YR_B25074_with_ann!BS62","v":65},{"$f":"[1]ACS_16_5YR_B25074_with_ann!BT62","v":16},{"$f":"[1]ACS_16_5YR_B25074_with_ann!BU62","v":27},{"$f":"[1]ACS_16_5YR_B25074_with_ann!BV62","v":0},{"$f":"[1]ACS_16_5YR_B25074_with_ann!BW62","v":17},{"$f":"[1]ACS_16_5YR_B25074_with_ann!BX62","v":24},{"$f":"[1]ACS_16_5YR_B25074_with_ann!BY62","v":28},{"$f":"[1]ACS_16_5YR_B25074_with_ann!BZ62","v":150},{"$f":"[1]ACS_16_5YR_B25074_with_ann!CA62","v":93},{"$f":"[1]ACS_16_5YR_B25074_with_ann!CB62","v":0},{"$f":"[1]ACS_16_5YR_B25074_with_ann!CC62","v":17},{"$f":"[1]ACS_16_5YR_B25074_with_ann!CD62","v":43},{"$f":"[1]ACS_16_5YR_B25074_with_ann!CE62","v":47},{"$f":"[1]ACS_16_5YR_B25074_with_ann!CF62","v":89},{"$f":"[1]ACS_16_5YR_B25074_with_ann!CG62","v":81},{"$f":"[1]ACS_16_5YR_B25074_with_ann!CH62","v":0},{"$f":"[1]ACS_16_5YR_B25074_with_ann!CI62","v":17},{"$f":"[1]ACS_16_5YR_B25074_with_ann!CJ62","v":0},{"$f":"[1]ACS_16_5YR_B25074_with_ann!CK62","v":17},{"$f":"[1]ACS_16_5YR_B25074_with_ann!CL62","v":18},{"$f":"[1]ACS_16_5YR_B25074_with_ann!CM62","v":30},{"$f":"[1]ACS_16_5YR_B25074_with_ann!CN62","v":0},{"$f":"[1]ACS_16_5YR_B25074_with_ann!CO62","v":17},{"$f":"[1]ACS_16_5YR_B25074_with_ann!CP62","v":0},{"$f":"[1]ACS_16_5YR_B25074_with_ann!CQ62","v":17},{"$f":"[1]ACS_16_5YR_B25074_with_ann!CR62","v":123},{"$f":"[1]ACS_16_5YR_B25074_with_ann!CS62","v":88},{"$f":"[1]ACS_16_5YR_B25074_with_ann!CT62","v":5},{"$f":"[1]ACS_16_5YR_B25074_with_ann!CU62","v":9},{"$f":"[1]ACS_16_5YR_B25074_with_ann!CV62","v":118},{"$f":"[1]ACS_16_5YR_B25074_with_ann!CW62","v":89},{"$f":"[1]ACS_16_5YR_B25074_with_ann!CX62","v":0},{"$f":"[1]ACS_16_5YR_B25074_with_ann!CY62","v":17},{"$f":"[1]ACS_16_5YR_B25074_with_ann!CZ62","v":0},{"$f":"[1]ACS_16_5YR_B25074_with_ann!DA62","v":17},{"$f":"[1]ACS_16_5YR_B25074_with_ann!DB62","v":0},{"$f":"[1]ACS_16_5YR_B25074_with_ann!DC62","v":17},{"$f":"[1]ACS_16_5YR_B25074_with_ann!DD62","v":0},{"$f":"[1]ACS_16_5YR_B25074_with_ann!DE62","v":17},{"$f":"[1]ACS_16_5YR_B25074_with_ann!DF62","v":0},{"$f":"[1]ACS_16_5YR_B25074_with_ann!DG62","v":17},{"$f":"[1]ACS_16_5YR_B25074_with_ann!DH62","v":0},{"$f":"[1]ACS_16_5YR_B25074_with_ann!DI62","v":17},{"$f":"[1]ACS_16_5YR_B25074_with_ann!DJ62","v":80},{"$f":"[1]ACS_16_5YR_B25074_with_ann!DK62","v":80},{"$f":"[1]ACS_16_5YR_B25074_with_ann!DL62","v":34},{"$f":"[1]ACS_16_5YR_B25074_with_ann!DM62","v":34},{"$f":"[1]ACS_16_5YR_B25074_with_ann!DN62","v":46},{"$f":"[1]ACS_16_5YR_B25074_with_ann!DO62","v":74},{"$f":"[1]ACS_16_5YR_B25074_with_ann!DP62","v":0},{"$f":"[1]ACS_16_5YR_B25074_with_ann!DQ62","v":17},{"$f":"[1]ACS_16_5YR_B25074_with_ann!DR62","v":0},{"$f":"[1]ACS_16_5YR_B25074_with_ann!DS62","v":17},{"$f":"[1]ACS_16_5YR_B25074_with_ann!DT62","v":0},{"$f":"[1]ACS_16_5YR_B25074_with_ann!DU62","v":17},{"$f":"[1]ACS_16_5YR_B25074_with_ann!DV62","v":0},{"$f":"[1]ACS_16_5YR_B25074_with_ann!DW62","v":17},{"$f":"[1]ACS_16_5YR_B25074_with_ann!DX62","v":0},{"$f":"[1]ACS_16_5YR_B25074_with_ann!DY62","v":17},{"$f":"[1]ACS_16_5YR_B25074_with_ann!DZ62","v":0},{"$f":"[1]ACS_16_5YR_B25074_with_ann!EA62","v":17},null,{"$f":"[1]ACS_16_5YR_B25070_with_ann!C62","v":"Swanzey"}]
["06000US3300577380","0600000US3300578420","060",null,{"$f":"[1]ACS_16_5YR_B25070_with_ann!D63","v":233},{"$f":"[1]ACS_16_5YR_B25070_with_ann!E63","v":73},{"$f":"[1]ACS_16_5YR_B25070_with_ann!F63","v":7},{"$f":"[1]ACS_16_5YR_B25070_with_ann!G63","v":11},{"$f":"[1]ACS_16_5YR_B25070_with_ann!H63","v":18},{"$f":"[1]ACS_16_5YR_B25070_with_ann!I63","v":21},{"$f":"[1]ACS_16_5YR_B25070_with_ann!J63","v":45},{"$f":"[1]ACS_16_5YR_B25070_with_ann!K63","v":33},{"$f":"[1]ACS_16_5YR_B25070_with_ann!L63","v":35},{"$f":"[1]ACS_16_5YR_B25070_with_ann!M63","v":29},{"$f":"[1]ACS_16_5YR_B25070_with_ann!N63","v":0},{"$f":"[1]ACS_16_5YR_B25070_with_ann!O63","v":12},{"$f":"[1]ACS_16_5YR_B25070_with_ann!P63","v":5},{"$f":"[1]ACS_16_5YR_B25070_with_ann!Q63","v":7},{"$f":"[1]ACS_16_5YR_B25070_with_ann!R63","v":27},{"$f":"[1]ACS_16_5YR_B25070_with_ann!S63","v":23},{"$f":"[1]ACS_16_5YR_B25070_with_ann!T63","v":78},{"$f":"[1]ACS_16_5YR_B25070_with_ann!U63","v":46},{"$f":"[1]ACS_16_5YR_B25070_with_ann!V63","v":7},{"$f":"[1]ACS_16_5YR_B25070_with_ann!W63","v":10},{"$f":"[1]ACS_16_5YR_B25070_with_ann!X63","v":11},{"$f":"[1]ACS_16_5YR_B25070_with_ann!Y63","v":17},{"$f":"[1]ACS_16_5YR_B25074_with_ann!D63","v":233},{"$f":"[1]ACS_16_5YR_B25074_with_ann!E63","v":73},{"$f":"[1]ACS_16_5YR_B25074_with_ann!F63","v":7},{"$f":"[1]ACS_16_5YR_B25074_with_ann!G63","v":10},{"$f":"[1]ACS_16_5YR_B25074_with_ann!H63","v":0},{"$f":"[1]ACS_16_5YR_B25074_with_ann!I63","v":12},{"$f":"[1]ACS_16_5YR_B25074_with_ann!J63","v":0},{"$f":"[1]ACS_16_5YR_B25074_with_ann!K63","v":12},{"$f":"[1]ACS_16_5YR_B25074_with_ann!L63","v":0},{"$f":"[1]ACS_16_5YR_B25074_with_ann!M63","v":12},{"$f":"[1]ACS_16_5YR_B25074_with_ann!N63","v":0},{"$f":"[1]ACS_16_5YR_B25074_with_ann!O63","v":12},{"$f":"[1]ACS_16_5YR_B25074_with_ann!P63","v":0},{"$f":"[1]ACS_16_5YR_B25074_with_ann!Q63","v":12},{"$f":"[1]ACS_16_5YR_B25074_with_ann!R63","v":0},{"$f":"[1]ACS_16_5YR_B25074_with_ann!S63","v":12},{"$f":"[1]ACS_16_5YR_B25074_with_ann!T63","v":7},{"$f":"[1]ACS_16_5YR_B25074_with_ann!U63","v":10},{"$f":"[1]ACS_16_5YR_B25074_with_ann!V63","v":0},{"$f":"[1]ACS_16_5YR_B25074_with_ann!W63","v":12},{"$f":"[1]ACS_16_5YR_B25074_with_ann!X63","v":18},{"$f":"[1]ACS_16_5YR_B25074_with_ann!Y63","v":20},{"$f":"[1]ACS_16_5YR_B25074_with_ann!Z63","v":7},{"$f":"[1]ACS_16_5YR_B25074_with_ann!AA63","v":11},{"$f":"[1]ACS_16_5YR_B25074_with_ann!AB63","v":0},{"$f":"[1]ACS_16_5YR_B25074_with_ann!AC63","v":12},{"$f":"[1]ACS_16_5YR_B25074_with_ann!AD63","v":0},{"$f":"[1]ACS_16_5YR_B25074_with_ann!AE63","v":12},{"$f":"[1]ACS_16_5YR_B25074_with_ann!AF63","v":0},{"$f":"[1]ACS_16_5YR_B25074_with_ann!AG63","v":12},{"$f":"[1]ACS_16_5YR_B25074_with_ann!AH63","v":0},{"$f":"[1]ACS_16_5YR_B25074_with_ann!AI63","v":12},{"$f":"[1]ACS_16_5YR_B25074_with_ann!AJ63","v":0},{"$f":"[1]ACS_16_5YR_B25074_with_ann!AK63","v":12},{"$f":"[1]ACS_16_5YR_B25074_with_ann!AL63","v":0},{"$f":"[1]ACS_16_5YR_B25074_with_ann!AM63","v":12},{"$f":"[1]ACS_16_5YR_B25074_with_ann!AN63","v":11},{"$f":"[1]ACS_16_5YR_B25074_with_ann!AO63","v":17},{"$f":"[1]ACS_16_5YR_B25074_with_ann!AP63","v":99},{"$f":"[1]ACS_16_5YR_B25074_with_ann!AQ63","v":48},{"$f":"[1]ACS_16_5YR_B25074_with_ann!AR63","v":0},{"$f":"[1]ACS_16_5YR_B25074_with_ann!AS63","v":12},{"$f":"[1]ACS_16_5YR_B25074_with_ann!AT63","v":0},{"$f":"[1]ACS_16_5YR_B25074_with_ann!AU63","v":12},{"$f":"[1]ACS_16_5YR_B25074_with_ann!AV63","v":0},{"$f":"[1]ACS_16_5YR_B25074_with_ann!AW63","v":12},{"$f":"[1]ACS_16_5YR_B25074_with_ann!AX63","v":0},{"$f":"[1]ACS_16_5YR_B25074_with_ann!AY63","v":12},{"$f":"[1]ACS_16_5YR_B25074_with_ann!AZ63","v":21},{"$f":"[1]ACS_16_5YR_B25074_with_ann!BA63","v":22},{"$f":"[1]ACS_16_5YR_B25074_with_ann!BB63","v":78},{"$f":"[1]ACS_16_5YR_B25074_with_ann!BC63","v":46},{"$f":"[1]ACS_16_5YR_B25074_with_ann!BD63","v":0},{"$f":"[1]ACS_16_5YR_B25074_with_ann!BE63","v":12},{"$f":"[1]ACS_16_5YR_B25074_with_ann!BF63","v":0},{"$f":"[1]ACS_16_5YR_B25074_with_ann!BG63","v":12},{"$f":"[1]ACS_16_5YR_B25074_with_ann!BH63","v":5},{"$f":"[1]ACS_16_5YR_B25074_with_ann!BI63","v":7},{"$f":"[1]ACS_16_5YR_B25074_with_ann!BJ63","v":0},{"$f":"[1]ACS_16_5YR_B25074_with_ann!BK63","v":12},{"$f":"[1]ACS_16_5YR_B25074_with_ann!BL63","v":5},{"$f":"[1]ACS_16_5YR_B25074_with_ann!BM63","v":7},{"$f":"[1]ACS_16_5YR_B25074_with_ann!BN63","v":0},{"$f":"[1]ACS_16_5YR_B25074_with_ann!BO63","v":12},{"$f":"[1]ACS_16_5YR_B25074_with_ann!BP63","v":0},{"$f":"[1]ACS_16_5YR_B25074_with_ann!BQ63","v":12},{"$f":"[1]ACS_16_5YR_B25074_with_ann!BR63","v":0},{"$f":"[1]ACS_16_5YR_B25074_with_ann!BS63","v":12},{"$f":"[1]ACS_16_5YR_B25074_with_ann!BT63","v":0},{"$f":"[1]ACS_16_5YR_B25074_with_ann!BU63","v":12},{"$f":"[1]ACS_16_5YR_B25074_with_ann!BV63","v":0},{"$f":"[1]ACS_16_5YR_B25074_with_ann!BW63","v":12},{"$f":"[1]ACS_16_5YR_B25074_with_ann!BX63","v":0},{"$f":"[1]ACS_16_5YR_B25074_with_ann!BY63","v":12},{"$f":"[1]ACS_16_5YR_B25074_with_ann!BZ63","v":31},{"$f":"[1]ACS_16_5YR_B25074_with_ann!CA63","v":24},{"$f":"[1]ACS_16_5YR_B25074_with_ann!CB63","v":14},{"$f":"[1]ACS_16_5YR_B25074_with_ann!CC63","v":20},{"$f":"[1]ACS_16_5YR_B25074_with_ann!CD63","v":6},{"$f":"[1]ACS_16_5YR_B25074_with_ann!CE63","v":8},{"$f":"[1]ACS_16_5YR_B25074_with_ann!CF63","v":0},{"$f":"[1]ACS_16_5YR_B25074_with_ann!CG63","v":12},{"$f":"[1]ACS_16_5YR_B25074_with_ann!CH63","v":5},{"$f":"[1]ACS_16_5YR_B25074_with_ann!CI63","v":7},{"$f":"[1]ACS_16_5YR_B25074_with_ann!CJ63","v":6},{"$f":"[1]ACS_16_5YR_B25074_with_ann!CK63","v":9},{"$f":"[1]ACS_16_5YR_B25074_with_ann!CL63","v":0},{"$f":"[1]ACS_16_5YR_B25074_with_ann!CM63","v":12},{"$f":"[1]ACS_16_5YR_B25074_with_ann!CN63","v":0},{"$f":"[1]ACS_16_5YR_B25074_with_ann!CO63","v":12},{"$f":"[1]ACS_16_5YR_B25074_with_ann!CP63","v":0},{"$f":"[1]ACS_16_5YR_B25074_with_ann!CQ63","v":12},{"$f":"[1]ACS_16_5YR_B25074_with_ann!CR63","v":30},{"$f":"[1]ACS_16_5YR_B25074_with_ann!CS63","v":29},{"$f":"[1]ACS_16_5YR_B25074_with_ann!CT63","v":6},{"$f":"[1]ACS_16_5YR_B25074_with_ann!CU63","v":9},{"$f":"[1]ACS_16_5YR_B25074_with_ann!CV63","v":24},{"$f":"[1]ACS_16_5YR_B25074_with_ann!CW63","v":27},{"$f":"[1]ACS_16_5YR_B25074_with_ann!CX63","v":0},{"$f":"[1]ACS_16_5YR_B25074_with_ann!CY63","v":12},{"$f":"[1]ACS_16_5YR_B25074_with_ann!CZ63","v":0},{"$f":"[1]ACS_16_5YR_B25074_with_ann!DA63","v":12},{"$f":"[1]ACS_16_5YR_B25074_with_ann!DB63","v":0},{"$f":"[1]ACS_16_5YR_B25074_with_ann!DC63","v":12},{"$f":"[1]ACS_16_5YR_B25074_with_ann!DD63","v":0},{"$f":"[1]ACS_16_5YR_B25074_with_ann!DE63","v":12},{"$f":"[1]ACS_16_5YR_B25074_with_ann!DF63","v":0},{"$f":"[1]ACS_16_5YR_B25074_with_ann!DG63","v":12},{"$f":"[1]ACS_16_5YR_B25074_with_ann!DH63","v":0},{"$f":"[1]ACS_16_5YR_B25074_with_ann!DI63","v":12},{"$f":"[1]ACS_16_5YR_B25074_with_ann!DJ63","v":43},{"$f":"[1]ACS_16_5YR_B25074_with_ann!DK63","v":33},{"$f":"[1]ACS_16_5YR_B25074_with_ann!DL63","v":43},{"$f":"[1]ACS_16_5YR_B25074_with_ann!DM63","v":33},{"$f":"[1]ACS_16_5YR_B25074_with_ann!DN63","v":0},{"$f":"[1]ACS_16_5YR_B25074_with_ann!DO63","v":12},{"$f":"[1]ACS_16_5YR_B25074_with_ann!DP63","v":0},{"$f":"[1]ACS_16_5YR_B25074_with_ann!DQ63","v":12},{"$f":"[1]ACS_16_5YR_B25074_with_ann!DR63","v":0},{"$f":"[1]ACS_16_5YR_B25074_with_ann!DS63","v":12},{"$f":"[1]ACS_16_5YR_B25074_with_ann!DT63","v":0},{"$f":"[1]ACS_16_5YR_B25074_with_ann!DU63","v":12},{"$f":"[1]ACS_16_5YR_B25074_with_ann!DV63","v":0},{"$f":"[1]ACS_16_5YR_B25074_with_ann!DW63","v":12},{"$f":"[1]ACS_16_5YR_B25074_with_ann!DX63","v":0},{"$f":"[1]ACS_16_5YR_B25074_with_ann!DY63","v":12},{"$f":"[1]ACS_16_5YR_B25074_with_ann!DZ63","v":0},{"$f":"[1]ACS_16_5YR_B25074_with_ann!EA63","v":12},null,{"$f":"[1]ACS_16_5YR_B25070_with_ann!C63","v":"Troy"}]
["06000US3300578420","0600000US3300582660","060",null,{"$f":"[1]ACS_16_5YR_B25070_with_ann!D64","v":482},{"$f":"[1]ACS_16_5YR_B25070_with_ann!E64","v":141},{"$f":"[1]ACS_16_5YR_B25070_with_ann!F64","v":34},{"$f":"[1]ACS_16_5YR_B25070_with_ann!G64","v":40},{"$f":"[1]ACS_16_5YR_B25070_with_ann!H64","v":15},{"$f":"[1]ACS_16_5YR_B25070_with_ann!I64","v":20},{"$f":"[1]ACS_16_5YR_B25070_with_ann!J64","v":137},{"$f":"[1]ACS_16_5YR_B25070_with_ann!K64","v":71},{"$f":"[1]ACS_16_5YR_B25070_with_ann!L64","v":68},{"$f":"[1]ACS_16_5YR_B25070_with_ann!M64","v":57},{"$f":"[1]ACS_16_5YR_B25070_with_ann!N64","v":41},{"$f":"[1]ACS_16_5YR_B25070_with_ann!O64","v":38},{"$f":"[1]ACS_16_5YR_B25070_with_ann!P64","v":39},{"$f":"[1]ACS_16_5YR_B25070_with_ann!Q64","v":37},{"$f":"[1]ACS_16_5YR_B25070_with_ann!R64","v":0},{"$f":"[1]ACS_16_5YR_B25070_with_ann!S64","v":12},{"$f":"[1]ACS_16_5YR_B25070_with_ann!T64","v":7},{"$f":"[1]ACS_16_5YR_B25070_with_ann!U64","v":11},{"$f":"[1]ACS_16_5YR_B25070_with_ann!V64","v":114},{"$f":"[1]ACS_16_5YR_B25070_with_ann!W64","v":115},{"$f":"[1]ACS_16_5YR_B25070_with_ann!X64","v":27},{"$f":"[1]ACS_16_5YR_B25070_with_ann!Y64","v":30},{"$f":"[1]ACS_16_5YR_B25074_with_ann!D64","v":482},{"$f":"[1]ACS_16_5YR_B25074_with_ann!E64","v":141},{"$f":"[1]ACS_16_5YR_B25074_with_ann!F64","v":90},{"$f":"[1]ACS_16_5YR_B25074_with_ann!G64","v":85},{"$f":"[1]ACS_16_5YR_B25074_with_ann!H64","v":0},{"$f":"[1]ACS_16_5YR_B25074_with_ann!I64","v":12},{"$f":"[1]ACS_16_5YR_B25074_with_ann!J64","v":21},{"$f":"[1]ACS_16_5YR_B25074_with_ann!K64","v":32},{"$f":"[1]ACS_16_5YR_B25074_with_ann!L64","v":0},{"$f":"[1]ACS_16_5YR_B25074_with_ann!M64","v":12},{"$f":"[1]ACS_16_5YR_B25074_with_ann!N64","v":0},{"$f":"[1]ACS_16_5YR_B25074_with_ann!O64","v":12},{"$f":"[1]ACS_16_5YR_B25074_with_ann!P64","v":0},{"$f":"[1]ACS_16_5YR_B25074_with_ann!Q64","v":12},{"$f":"[1]ACS_16_5YR_B25074_with_ann!R64","v":0},{"$f":"[1]ACS_16_5YR_B25074_with_ann!S64","v":12},{"$f":"[1]ACS_16_5YR_B25074_with_ann!T64","v":69},{"$f":"[1]ACS_16_5YR_B25074_with_ann!U64","v":80},{"$f":"[1]ACS_16_5YR_B25074_with_ann!V64","v":0},{"$f":"[1]ACS_16_5YR_B25074_with_ann!W64","v":12},{"$f":"[1]ACS_16_5YR_B25074_with_ann!X64","v":20},{"$f":"[1]ACS_16_5YR_B25074_with_ann!Y64","v":31},{"$f":"[1]ACS_16_5YR_B25074_with_ann!Z64","v":0},{"$f":"[1]ACS_16_5YR_B25074_with_ann!AA64","v":12},{"$f":"[1]ACS_16_5YR_B25074_with_ann!AB64","v":0},{"$f":"[1]ACS_16_5YR_B25074_with_ann!AC64","v":12},{"$f":"[1]ACS_16_5YR_B25074_with_ann!AD64","v":0},{"$f":"[1]ACS_16_5YR_B25074_with_ann!AE64","v":12},{"$f":"[1]ACS_16_5YR_B25074_with_ann!AF64","v":20},{"$f":"[1]ACS_16_5YR_B25074_with_ann!AG64","v":31},{"$f":"[1]ACS_16_5YR_B25074_with_ann!AH64","v":0},{"$f":"[1]ACS_16_5YR_B25074_with_ann!AI64","v":12},{"$f":"[1]ACS_16_5YR_B25074_with_ann!AJ64","v":0},{"$f":"[1]ACS_16_5YR_B25074_with_ann!AK64","v":12},{"$f":"[1]ACS_16_5YR_B25074_with_ann!AL64","v":0},{"$f":"[1]ACS_16_5YR_B25074_with_ann!AM64","v":12},{"$f":"[1]ACS_16_5YR_B25074_with_ann!AN64","v":0},{"$f":"[1]ACS_16_5YR_B25074_with_ann!AO64","v":12},{"$f":"[1]ACS_16_5YR_B25074_with_ann!AP64","v":26},{"$f":"[1]ACS_16_5YR_B25074_with_ann!AQ64","v":24},{"$f":"[1]ACS_16_5YR_B25074_with_ann!AR64","v":0},{"$f":"[1]ACS_16_5YR_B25074_with_ann!AS64","v":12},{"$f":"[1]ACS_16_5YR_B25074_with_ann!AT64","v":0},{"$f":"[1]ACS_16_5YR_B25074_with_ann!AU64","v":12},{"$f":"[1]ACS_16_5YR_B25074_with_ann!AV64","v":0},{"$f":"[1]ACS_16_5YR_B25074_with_ann!AW64","v":12},{"$f":"[1]ACS_16_5YR_B25074_with_ann!AX64","v":12},{"$f":"[1]ACS_16_5YR_B25074_with_ann!AY64","v":19},{"$f":"[1]ACS_16_5YR_B25074_with_ann!AZ64","v":0},{"$f":"[1]ACS_16_5YR_B25074_with_ann!BA64","v":12},{"$f":"[1]ACS_16_5YR_B25074_with_ann!BB64","v":7},{"$f":"[1]ACS_16_5YR_B25074_with_ann!BC64","v":11},{"$f":"[1]ACS_16_5YR_B25074_with_ann!BD64","v":0},{"$f":"[1]ACS_16_5YR_B25074_with_ann!BE64","v":12},{"$f":"[1]ACS_16_5YR_B25074_with_ann!BF64","v":7},{"$f":"[1]ACS_16_5YR_B25074_with_ann!BG64","v":10},{"$f":"[1]ACS_16_5YR_B25074_with_ann!BH64","v":67},{"$f":"[1]ACS_16_5YR_B25074_with_ann!BI64","v":64},{"$f":"[1]ACS_16_5YR_B25074_with_ann!BJ64","v":0},{"$f":"[1]ACS_16_5YR_B25074_with_ann!BK64","v":12},{"$f":"[1]ACS_16_5YR_B25074_with_ann!BL64","v":22},{"$f":"[1]ACS_16_5YR_B25074_with_ann!BM64","v":32},{"$f":"[1]ACS_16_5YR_B25074_with_ann!BN64","v":0},{"$f":"[1]ACS_16_5YR_B25074_with_ann!BO64","v":12},{"$f":"[1]ACS_16_5YR_B25074_with_ann!BP64","v":0},{"$f":"[1]ACS_16_5YR_B25074_with_ann!BQ64","v":12},{"$f":"[1]ACS_16_5YR_B25074_with_ann!BR64","v":0},{"$f":"[1]ACS_16_5YR_B25074_with_ann!BS64","v":12},{"$f":"[1]ACS_16_5YR_B25074_with_ann!BT64","v":0},{"$f":"[1]ACS_16_5YR_B25074_with_ann!BU64","v":12},{"$f":"[1]ACS_16_5YR_B25074_with_ann!BV64","v":45},{"$f":"[1]ACS_16_5YR_B25074_with_ann!BW64","v":56},{"$f":"[1]ACS_16_5YR_B25074_with_ann!BX64","v":0},{"$f":"[1]ACS_16_5YR_B25074_with_ann!BY64","v":12},{"$f":"[1]ACS_16_5YR_B25074_with_ann!BZ64","v":105},{"$f":"[1]ACS_16_5YR_B25074_with_ann!CA64","v":68},{"$f":"[1]ACS_16_5YR_B25074_with_ann!CB64","v":12},{"$f":"[1]ACS_16_5YR_B25074_with_ann!CC64","v":16},{"$f":"[1]ACS_16_5YR_B25074_with_ann!CD64","v":25},{"$f":"[1]ACS_16_5YR_B25074_with_ann!CE64","v":33},{"$f":"[1]ACS_16_5YR_B25074_with_ann!CF64","v":41},{"$f":"[1]ACS_16_5YR_B25074_with_ann!CG64","v":38},{"$f":"[1]ACS_16_5YR_B25074_with_ann!CH64","v":7},{"$f":"[1]ACS_16_5YR_B25074_with_ann!CI64","v":10},{"$f":"[1]ACS_16_5YR_B25074_with_ann!CJ64","v":0},{"$f":"[1]ACS_16_5YR_B25074_with_ann!CK64","v":12},{"$f":"[1]ACS_16_5YR_B25074_with_ann!CL64","v":0},{"$f":"[1]ACS_16_5YR_B25074_with_ann!CM64","v":12},{"$f":"[1]ACS_16_5YR_B25074_with_ann!CN64","v":0},{"$f":"[1]ACS_16_5YR_B25074_with_ann!CO64","v":12},{"$f":"[1]ACS_16_5YR_B25074_with_ann!CP64","v":20},{"$f":"[1]ACS_16_5YR_B25074_with_ann!CQ64","v":28},{"$f":"[1]ACS_16_5YR_B25074_with_ann!CR64","v":22},{"$f":"[1]ACS_16_5YR_B25074_with_ann!CS64","v":34},{"$f":"[1]ACS_16_5YR_B25074_with_ann!CT64","v":22},{"$f":"[1]ACS_16_5YR_B25074_with_ann!CU64","v":34},{"$f":"[1]ACS_16_5YR_B25074_with_ann!CV64","v":0},{"$f":"[1]ACS_16_5YR_B25074_with_ann!CW64","v":12},{"$f":"[1]ACS_16_5YR_B25074_with_ann!CX64","v":0},{"$f":"[1]ACS_16_5YR_B25074_with_ann!CY64","v":12},{"$f":"[1]ACS_16_5YR_B25074_with_ann!CZ64","v":0},{"$f":"[1]ACS_16_5YR_B25074_with_ann!DA64","v":12},{"$f":"[1]ACS_16_5YR_B25074_with_ann!DB64","v":0},{"$f":"[1]ACS_16_5YR_B25074_with_ann!DC64","v":12},{"$f":"[1]ACS_16_5YR_B25074_with_ann!DD64","v":0},{"$f":"[1]ACS_16_5YR_B25074_with_ann!DE64","v":12},{"$f":"[1]ACS_16_5YR_B25074_with_ann!DF64","v":0},{"$f":"[1]ACS_16_5YR_B25074_with_ann!DG64","v":12},{"$f":"[1]ACS_16_5YR_B25074_with_ann!DH64","v":0},{"$f":"[1]ACS_16_5YR_B25074_with_ann!DI64","v":12},{"$f":"[1]ACS_16_5YR_B25074_with_ann!DJ64","v":152},{"$f":"[1]ACS_16_5YR_B25074_with_ann!DK64","v":80},{"$f":"[1]ACS_16_5YR_B25074_with_ann!DL64","v":152},{"$f":"[1]ACS_16_5YR_B25074_with_ann!DM64","v":80},{"$f":"[1]ACS_16_5YR_B25074_with_ann!DN64","v":0},{"$f":"[1]ACS_16_5YR_B25074_with_ann!DO64","v":12},{"$f":"[1]ACS_16_5YR_B25074_with_ann!DP64","v":0},{"$f":"[1]ACS_16_5YR_B25074_with_ann!DQ64","v":12},{"$f":"[1]ACS_16_5YR_B25074_with_ann!DR64","v":0},{"$f":"[1]ACS_16_5YR_B25074_with_ann!DS64","v":12},{"$f":"[1]ACS_16_5YR_B25074_with_ann!DT64","v":0},{"$f":"[1]ACS_16_5YR_B25074_with_ann!DU64","v":12},{"$f":"[1]ACS_16_5YR_B25074_with_ann!DV64","v":0},{"$f":"[1]ACS_16_5YR_B25074_with_ann!DW64","v":12},{"$f":"[1]ACS_16_5YR_B25074_with_ann!DX64","v":0},{"$f":"[1]ACS_16_5YR_B25074_with_ann!DY64","v":12},{"$f":"[1]ACS_16_5YR_B25074_with_ann!DZ64","v":0},{"$f":"[1]ACS_16_5YR_B25074_with_ann!EA64","v":12},null,{"$f":"[1]ACS_16_5YR_B25070_with_ann!C64","v":"Walpole"}]
["06000US3300582660","0600000US3300585540","060",null,{"$f":"[1]ACS_16_5YR_B25070_with_ann!D65","v":98},{"$f":"[1]ACS_16_5YR_B25070_with_ann!E65","v":54},{"$f":"[1]ACS_16_5YR_B25070_with_ann!F65","v":19},{"$f":"[1]ACS_16_5YR_B25070_with_ann!G65","v":27},{"$f":"[1]ACS_16_5YR_B25070_with_ann!H65","v":0},{"$f":"[1]ACS_16_5YR_B25070_with_ann!I65","v":12},{"$f":"[1]ACS_16_5YR_B25070_with_ann!J65","v":3},{"$f":"[1]ACS_16_5YR_B25070_with_ann!K65","v":5},{"$f":"[1]ACS_16_5YR_B25070_with_ann!L65","v":17},{"$f":"[1]ACS_16_5YR_B25070_with_ann!M65","v":21},{"$f":"[1]ACS_16_5YR_B25070_with_ann!N65","v":10},{"$f":"[1]ACS_16_5YR_B25070_with_ann!O65","v":17},{"$f":"[1]ACS_16_5YR_B25070_with_ann!P65","v":12},{"$f":"[1]ACS_16_5YR_B25070_with_ann!Q65","v":16},{"$f":"[1]ACS_16_5YR_B25070_with_ann!R65","v":0},{"$f":"[1]ACS_16_5YR_B25070_with_ann!S65","v":12},{"$f":"[1]ACS_16_5YR_B25070_with_ann!T65","v":3},{"$f":"[1]ACS_16_5YR_B25070_with_ann!U65","v":4},{"$f":"[1]ACS_16_5YR_B25070_with_ann!V65","v":15},{"$f":"[1]ACS_16_5YR_B25070_with_ann!W65","v":15},{"$f":"[1]ACS_16_5YR_B25070_with_ann!X65","v":19},{"$f":"[1]ACS_16_5YR_B25070_with_ann!Y65","v":19},{"$f":"[1]ACS_16_5YR_B25074_with_ann!D65","v":98},{"$f":"[1]ACS_16_5YR_B25074_with_ann!E65","v":54},{"$f":"[1]ACS_16_5YR_B25074_with_ann!F65","v":0},{"$f":"[1]ACS_16_5YR_B25074_with_ann!G65","v":12},{"$f":"[1]ACS_16_5YR_B25074_with_ann!H65","v":0},{"$f":"[1]ACS_16_5YR_B25074_with_ann!I65","v":12},{"$f":"[1]ACS_16_5YR_B25074_with_ann!J65","v":0},{"$f":"[1]ACS_16_5YR_B25074_with_ann!K65","v":12},{"$f":"[1]ACS_16_5YR_B25074_with_ann!L65","v":0},{"$f":"[1]ACS_16_5YR_B25074_with_ann!M65","v":12},{"$f":"[1]ACS_16_5YR_B25074_with_ann!N65","v":0},{"$f":"[1]ACS_16_5YR_B25074_with_ann!O65","v":12},{"$f":"[1]ACS_16_5YR_B25074_with_ann!P65","v":0},{"$f":"[1]ACS_16_5YR_B25074_with_ann!Q65","v":12},{"$f":"[1]ACS_16_5YR_B25074_with_ann!R65","v":0},{"$f":"[1]ACS_16_5YR_B25074_with_ann!S65","v":12},{"$f":"[1]ACS_16_5YR_B25074_with_ann!T65","v":0},{"$f":"[1]ACS_16_5YR_B25074_with_ann!U65","v":12},{"$f":"[1]ACS_16_5YR_B25074_with_ann!V65","v":0},{"$f":"[1]ACS_16_5YR_B25074_with_ann!W65","v":12},{"$f":"[1]ACS_16_5YR_B25074_with_ann!X65","v":9},{"$f":"[1]ACS_16_5YR_B25074_with_ann!Y65","v":14},{"$f":"[1]ACS_16_5YR_B25074_with_ann!Z65","v":0},{"$f":"[1]ACS_16_5YR_B25074_with_ann!AA65","v":12},{"$f":"[1]ACS_16_5YR_B25074_with_ann!AB65","v":0},{"$f":"[1]ACS_16_5YR_B25074_with_ann!AC65","v":12},{"$f":"[1]ACS_16_5YR_B25074_with_ann!AD65","v":0},{"$f":"[1]ACS_16_5YR_B25074_with_ann!AE65","v":12},{"$f":"[1]ACS_16_5YR_B25074_with_ann!AF65","v":0},{"$f":"[1]ACS_16_5YR_B25074_with_ann!AG65","v":12},{"$f":"[1]ACS_16_5YR_B25074_with_ann!AH65","v":0},{"$f":"[1]ACS_16_5YR_B25074_with_ann!AI65","v":12},{"$f":"[1]ACS_16_5YR_B25074_with_ann!AJ65","v":0},{"$f":"[1]ACS_16_5YR_B25074_with_ann!AK65","v":12},{"$f":"[1]ACS_16_5YR_B25074_with_ann!AL65","v":9},{"$f":"[1]ACS_16_5YR_B25074_with_ann!AM65","v":14},{"$f":"[1]ACS_16_5YR_B25074_with_ann!AN65","v":0},{"$f":"[1]ACS_16_5YR_B25074_with_ann!AO65","v":12},{"$f":"[1]ACS_16_5YR_B25074_with_ann!AP65","v":23},{"$f":"[1]ACS_16_5YR_B25074_with_ann!AQ65","v":20},{"$f":"[1]ACS_16_5YR_B25074_with_ann!AR65","v":0},{"$f":"[1]ACS_16_5YR_B25074_with_ann!AS65","v":12},{"$f":"[1]ACS_16_5YR_B25074_with_ann!AT65","v":0},{"$f":"[1]ACS_16_5YR_B25074_with_ann!AU65","v":12},{"$f":"[1]ACS_16_5YR_B25074_with_ann!AV65","v":10},{"$f":"[1]ACS_16_5YR_B25074_with_ann!AW65","v":17},{"$f":"[1]ACS_16_5YR_B25074_with_ann!AX65","v":0},{"$f":"[1]ACS_16_5YR_B25074_with_ann!AY65","v":12},{"$f":"[1]ACS_16_5YR_B25074_with_ann!AZ65","v":0},{"$f":"[1]ACS_16_5YR_B25074_with_ann!BA65","v":12},{"$f":"[1]ACS_16_5YR_B25074_with_ann!BB65","v":3},{"$f":"[1]ACS_16_5YR_B25074_with_ann!BC65","v":4},{"$f":"[1]ACS_16_5YR_B25074_with_ann!BD65","v":6},{"$f":"[1]ACS_16_5YR_B25074_with_ann!BE65","v":6},{"$f":"[1]ACS_16_5YR_B25074_with_ann!BF65","v":4},{"$f":"[1]ACS_16_5YR_B25074_with_ann!BG65","v":6},{"$f":"[1]ACS_16_5YR_B25074_with_ann!BH65","v":8},{"$f":"[1]ACS_16_5YR_B25074_with_ann!BI65","v":15},{"$f":"[1]ACS_16_5YR_B25074_with_ann!BJ65","v":0},{"$f":"[1]ACS_16_5YR_B25074_with_ann!BK65","v":12},{"$f":"[1]ACS_16_5YR_B25074_with_ann!BL65","v":0},{"$f":"[1]ACS_16_5YR_B25074_with_ann!BM65","v":12},{"$f":"[1]ACS_16_5YR_B25074_with_ann!BN65","v":0},{"$f":"[1]ACS_16_5YR_B25074_with_ann!BO65","v":12},{"$f":"[1]ACS_16_5YR_B25074_with_ann!BP65","v":8},{"$f":"[1]ACS_16_5YR_B25074_with_ann!BQ65","v":15},{"$f":"[1]ACS_16_5YR_B25074_with_ann!BR65","v":0},{"$f":"[1]ACS_16_5YR_B25074_with_ann!BS65","v":12},{"$f":"[1]ACS_16_5YR_B25074_with_ann!BT65","v":0},{"$f":"[1]ACS_16_5YR_B25074_with_ann!BU65","v":12},{"$f":"[1]ACS_16_5YR_B25074_with_ann!BV65","v":0},{"$f":"[1]ACS_16_5YR_B25074_with_ann!BW65","v":12},{"$f":"[1]ACS_16_5YR_B25074_with_ann!BX65","v":0},{"$f":"[1]ACS_16_5YR_B25074_with_ann!BY65","v":12},{"$f":"[1]ACS_16_5YR_B25074_with_ann!BZ65","v":19},{"$f":"[1]ACS_16_5YR_B25074_with_ann!CA65","v":22},{"$f":"[1]ACS_16_5YR_B25074_with_ann!CB65","v":0},{"$f":"[1]ACS_16_5YR_B25074_with_ann!CC65","v":12},{"$f":"[1]ACS_16_5YR_B25074_with_ann!CD65","v":15},{"$f":"[1]ACS_16_5YR_B25074_with_ann!CE65","v":20},{"$f":"[1]ACS_16_5YR_B25074_with_ann!CF65","v":0},{"$f":"[1]ACS_16_5YR_B25074_with_ann!CG65","v":12},{"$f":"[1]ACS_16_5YR_B25074_with_ann!CH65","v":4},{"$f":"[1]ACS_16_5YR_B25074_with_ann!CI65","v":6},{"$f":"[1]ACS_16_5YR_B25074_with_ann!CJ65","v":0},{"$f":"[1]ACS_16_5YR_B25074_with_ann!CK65","v":12},{"$f":"[1]ACS_16_5YR_B25074_with_ann!CL65","v":0},{"$f":"[1]ACS_16_5YR_B25074_with_ann!CM65","v":12},{"$f":"[1]ACS_16_5YR_B25074_with_ann!CN65","v":0},{"$f":"[1]ACS_16_5YR_B25074_with_ann!CO65","v":12},{"$f":"[1]ACS_16_5YR_B25074_with_ann!CP65","v":0},{"$f":"[1]ACS_16_5YR_B25074_with_ann!CQ65","v":12},{"$f":"[1]ACS_16_5YR_B25074_with_ann!CR65","v":5},{"$f":"[1]ACS_16_5YR_B25074_with_ann!CS65","v":6},{"$f":"[1]ACS_16_5YR_B25074_with_ann!CT65","v":3},{"$f":"[1]ACS_16_5YR_B25074_with_ann!CU65","v":5},{"$f":"[1]ACS_16_5YR_B25074_with_ann!CV65","v":2},{"$f":"[1]ACS_16_5YR_B25074_with_ann!CW65","v":5},{"$f":"[1]ACS_16_5YR_B25074_with_ann!CX65","v":0},{"$f":"[1]ACS_16_5YR_B25074_with_ann!CY65","v":12},{"$f":"[1]ACS_16_5YR_B25074_with_ann!CZ65","v":0},{"$f":"[1]ACS_16_5YR_B25074_with_ann!DA65","v":12},{"$f":"[1]ACS_16_5YR_B25074_with_ann!DB65","v":0},{"$f":"[1]ACS_16_5YR_B25074_with_ann!DC65","v":12},{"$f":"[1]ACS_16_5YR_B25074_with_ann!DD65","v":0},{"$f":"[1]ACS_16_5YR_B25074_with_ann!DE65","v":12},{"$f":"[1]ACS_16_5YR_B25074_with_ann!DF65","v":0},{"$f":"[1]ACS_16_5YR_B25074_with_ann!DG65","v":12},{"$f":"[1]ACS_16_5YR_B25074_with_ann!DH65","v":0},{"$f":"[1]ACS_16_5YR_B25074_with_ann!DI65","v":12},{"$f":"[1]ACS_16_5YR_B25074_with_ann!DJ65","v":34},{"$f":"[1]ACS_16_5YR_B25074_with_ann!DK65","v":33},{"$f":"[1]ACS_16_5YR_B25074_with_ann!DL65","v":19},{"$f":"[1]ACS_16_5YR_B25074_with_ann!DM65","v":27},{"$f":"[1]ACS_16_5YR_B25074_with_ann!DN65","v":0},{"$f":"[1]ACS_16_5YR_B25074_with_ann!DO65","v":12},{"$f":"[1]ACS_16_5YR_B25074_with_ann!DP65","v":0},{"$f":"[1]ACS_16_5YR_B25074_with_ann!DQ65","v":12},{"$f":"[1]ACS_16_5YR_B25074_with_ann!DR65","v":0},{"$f":"[1]ACS_16_5YR_B25074_with_ann!DS65","v":12},{"$f":"[1]ACS_16_5YR_B25074_with_ann!DT65","v":0},{"$f":"[1]ACS_16_5YR_B25074_with_ann!DU65","v":12},{"$f":"[1]ACS_16_5YR_B25074_with_ann!DV65","v":0},{"$f":"[1]ACS_16_5YR_B25074_with_ann!DW65","v":12},{"$f":"[1]ACS_16_5YR_B25074_with_ann!DX65","v":0},{"$f":"[1]ACS_16_5YR_B25074_with_ann!DY65","v":12},{"$f":"[1]ACS_16_5YR_B25074_with_ann!DZ65","v":15},{"$f":"[1]ACS_16_5YR_B25074_with_ann!EA65","v":19},null,{"$f":"[1]ACS_16_5YR_B25070_with_ann!C65","v":"Westmoreland"}]
["06000US3300585540","0600000US3300500820","060",null,{"$f":"[1]ACS_16_5YR_B25070_with_ann!D66","v":565},{"$f":"[1]ACS_16_5YR_B25070_with_ann!E66","v":145},{"$f":"[1]ACS_16_5YR_B25070_with_ann!F66","v":8},{"$f":"[1]ACS_16_5YR_B25070_with_ann!G66","v":14},{"$f":"[1]ACS_16_5YR_B25070_with_ann!H66","v":39},{"$f":"[1]ACS_16_5YR_B25070_with_ann!I66","v":49},{"$f":"[1]ACS_16_5YR_B25070_with_ann!J66","v":33},{"$f":"[1]ACS_16_5YR_B25070_with_ann!K66","v":37},{"$f":"[1]ACS_16_5YR_B25070_with_ann!L66","v":30},{"$f":"[1]ACS_16_5YR_B25070_with_ann!M66","v":50},{"$f":"[1]ACS_16_5YR_B25070_with_ann!N66","v":135},{"$f":"[1]ACS_16_5YR_B25070_with_ann!O66","v":79},{"$f":"[1]ACS_16_5YR_B25070_with_ann!P66","v":37},{"$f":"[1]ACS_16_5YR_B25070_with_ann!Q66","v":36},{"$f":"[1]ACS_16_5YR_B25070_with_ann!R66","v":64},{"$f":"[1]ACS_16_5YR_B25070_with_ann!S66","v":42},{"$f":"[1]ACS_16_5YR_B25070_with_ann!T66","v":29},{"$f":"[1]ACS_16_5YR_B25070_with_ann!U66","v":26},{"$f":"[1]ACS_16_5YR_B25070_with_ann!V66","v":132},{"$f":"[1]ACS_16_5YR_B25070_with_ann!W66","v":87},{"$f":"[1]ACS_16_5YR_B25070_with_ann!X66","v":58},{"$f":"[1]ACS_16_5YR_B25070_with_ann!Y66","v":65},{"$f":"[1]ACS_16_5YR_B25074_with_ann!D66","v":565},{"$f":"[1]ACS_16_5YR_B25074_with_ann!E66","v":145},{"$f":"[1]ACS_16_5YR_B25074_with_ann!F66","v":47},{"$f":"[1]ACS_16_5YR_B25074_with_ann!G66","v":42},{"$f":"[1]ACS_16_5YR_B25074_with_ann!H66","v":0},{"$f":"[1]ACS_16_5YR_B25074_with_ann!I66","v":12},{"$f":"[1]ACS_16_5YR_B25074_with_ann!J66","v":0},{"$f":"[1]ACS_16_5YR_B25074_with_ann!K66","v":12},{"$f":"[1]ACS_16_5YR_B25074_with_ann!L66","v":0},{"$f":"[1]ACS_16_5YR_B25074_with_ann!M66","v":12},{"$f":"[1]ACS_16_5YR_B25074_with_ann!N66","v":0},{"$f":"[1]ACS_16_5YR_B25074_with_ann!O66","v":12},{"$f":"[1]ACS_16_5YR_B25074_with_ann!P66","v":0},{"$f":"[1]ACS_16_5YR_B25074_with_ann!Q66","v":12},{"$f":"[1]ACS_16_5YR_B25074_with_ann!R66","v":0},{"$f":"[1]ACS_16_5YR_B25074_with_ann!S66","v":12},{"$f":"[1]ACS_16_5YR_B25074_with_ann!T66","v":15},{"$f":"[1]ACS_16_5YR_B25074_with_ann!U66","v":18},{"$f":"[1]ACS_16_5YR_B25074_with_ann!V66","v":32},{"$f":"[1]ACS_16_5YR_B25074_with_ann!W66","v":37},{"$f":"[1]ACS_16_5YR_B25074_with_ann!X66","v":124},{"$f":"[1]ACS_16_5YR_B25074_with_ann!Y66","v":67},{"$f":"[1]ACS_16_5YR_B25074_with_ann!Z66","v":0},{"$f":"[1]ACS_16_5YR_B25074_with_ann!AA66","v":12},{"$f":"[1]ACS_16_5YR_B25074_with_ann!AB66","v":30},{"$f":"[1]ACS_16_5YR_B25074_with_ann!AC66","v":50},{"$f":"[1]ACS_16_5YR_B25074_with_ann!AD66","v":16},{"$f":"[1]ACS_16_5YR_B25074_with_ann!AE66","v":26},{"$f":"[1]ACS_16_5YR_B25074_with_ann!AF66","v":0},{"$f":"[1]ACS_16_5YR_B25074_with_ann!AG66","v":12},{"$f":"[1]ACS_16_5YR_B25074_with_ann!AH66","v":9},{"$f":"[1]ACS_16_5YR_B25074_with_ann!AI66","v":14},{"$f":"[1]ACS_16_5YR_B25074_with_ann!AJ66","v":10},{"$f":"[1]ACS_16_5YR_B25074_with_ann!AK66","v":16},{"$f":"[1]ACS_16_5YR_B25074_with_ann!AL66","v":33},{"$f":"[1]ACS_16_5YR_B25074_with_ann!AM66","v":30},{"$f":"[1]ACS_16_5YR_B25074_with_ann!AN66","v":26},{"$f":"[1]ACS_16_5YR_B25074_with_ann!AO66","v":44},{"$f":"[1]ACS_16_5YR_B25074_with_ann!AP66","v":114},{"$f":"[1]ACS_16_5YR_B25074_with_ann!AQ66","v":85},{"$f":"[1]ACS_16_5YR_B25074_with_ann!AR66","v":0},{"$f":"[1]ACS_16_5YR_B25074_with_ann!AS66","v":12},{"$f":"[1]ACS_16_5YR_B25074_with_ann!AT66","v":0},{"$f":"[1]ACS_16_5YR_B25074_with_ann!AU66","v":12},{"$f":"[1]ACS_16_5YR_B25074_with_ann!AV66","v":0},{"$f":"[1]ACS_16_5YR_B25074_with_ann!AW66","v":12},{"$f":"[1]ACS_16_5YR_B25074_with_ann!AX66","v":0},{"$f":"[1]ACS_16_5YR_B25074_with_ann!AY66","v":12},{"$f":"[1]ACS_16_5YR_B25074_with_ann!AZ66","v":11},{"$f":"[1]ACS_16_5YR_B25074_with_ann!BA66","v":19},{"$f":"[1]ACS_16_5YR_B25074_with_ann!BB66","v":19},{"$f":"[1]ACS_16_5YR_B25074_with_ann!BC66","v":21},{"$f":"[1]ACS_16_5YR_B25074_with_ann!BD66","v":84},{"$f":"[1]ACS_16_5YR_B25074_with_ann!BE66","v":80},{"$f":"[1]ACS_16_5YR_B25074_with_ann!BF66","v":0},{"$f":"[1]ACS_16_5YR_B25074_with_ann!BG66","v":12},{"$f":"[1]ACS_16_5YR_B25074_with_ann!BH66","v":132},{"$f":"[1]ACS_16_5YR_B25074_with_ann!BI66","v":72},{"$f":"[1]ACS_16_5YR_B25074_with_ann!BJ66","v":0},{"$f":"[1]ACS_16_5YR_B25074_with_ann!BK66","v":12},{"$f":"[1]ACS_16_5YR_B25074_with_ann!BL66","v":0},{"$f":"[1]ACS_16_5YR_B25074_with_ann!BM66","v":12},{"$f":"[1]ACS_16_5YR_B25074_with_ann!BN66","v":77},{"$f":"[1]ACS_16_5YR_B25074_with_ann!BO66","v":61},{"$f":"[1]ACS_16_5YR_B25074_with_ann!BP66","v":37},{"$f":"[1]ACS_16_5YR_B25074_with_ann!BQ66","v":36},{"$f":"[1]ACS_16_5YR_B25074_with_ann!BR66","v":18},{"$f":"[1]ACS_16_5YR_B25074_with_ann!BS66","v":20},{"$f":"[1]ACS_16_5YR_B25074_with_ann!BT66","v":0},{"$f":"[1]ACS_16_5YR_B25074_with_ann!BU66","v":12},{"$f":"[1]ACS_16_5YR_B25074_with_ann!BV66","v":0},{"$f":"[1]ACS_16_5YR_B25074_with_ann!BW66","v":12},{"$f":"[1]ACS_16_5YR_B25074_with_ann!BX66","v":0},{"$f":"[1]ACS_16_5YR_B25074_with_ann!BY66","v":12},{"$f":"[1]ACS_16_5YR_B25074_with_ann!BZ66","v":101},{"$f":"[1]ACS_16_5YR_B25074_with_ann!CA66","v":78},{"$f":"[1]ACS_16_5YR_B25074_with_ann!CB66","v":33},{"$f":"[1]ACS_16_5YR_B25074_with_ann!CC66","v":37},{"$f":"[1]ACS_16_5YR_B25074_with_ann!CD66","v":0},{"$f":"[1]ACS_16_5YR_B25074_with_ann!CE66","v":12},{"$f":"[1]ACS_16_5YR_B25074_with_ann!CF66","v":42},{"$f":"[1]ACS_16_5YR_B25074_with_ann!CG66","v":48},{"$f":"[1]ACS_16_5YR_B25074_with_ann!CH66","v":0},{"$f":"[1]ACS_16_5YR_B25074_with_ann!CI66","v":12},{"$f":"[1]ACS_16_5YR_B25074_with_ann!CJ66","v":26},{"$f":"[1]ACS_16_5YR_B25074_with_ann!CK66","v":31},{"$f":"[1]ACS_16_5YR_B25074_with_ann!CL66","v":0},{"$f":"[1]ACS_16_5YR_B25074_with_ann!CM66","v":12},{"$f":"[1]ACS_16_5YR_B25074_with_ann!CN66","v":0},{"$f":"[1]ACS_16_5YR_B25074_with_ann!CO66","v":12},{"$f":"[1]ACS_16_5YR_B25074_with_ann!CP66","v":0},{"$f":"[1]ACS_16_5YR_B25074_with_ann!CQ66","v":12},{"$f":"[1]ACS_16_5YR_B25074_with_ann!CR66","v":0},{"$f":"[1]ACS_16_5YR_B25074_with_ann!CS66","v":12},{"$f":"[1]ACS_16_5YR_B25074_with_ann!CT66","v":0},{"$f":"[1]ACS_16_5YR_B25074_with_ann!CU66","v":12},{"$f":"[1]ACS_16_5YR_B25074_with_ann!CV66","v":0},{"$f":"[1]ACS_16_5YR_B25074_with_ann!CW66","v":12},{"$f":"[1]ACS_16_5YR_B25074_with_ann!CX66","v":0},{"$f":"[1]ACS_16_5YR_B25074_with_ann!CY66","v":12},{"$f":"[1]ACS_16_5YR_B25074_with_ann!CZ66","v":0},{"$f":"[1]ACS_16_5YR_B25074_with_ann!DA66","v":12},{"$f":"[1]ACS_16_5YR_B25074_with_ann!DB66","v":0},{"$f":"[1]ACS_16_5YR_B25074_with_ann!DC66","v":12},{"$f":"[1]ACS_16_5YR_B25074_with_ann!DD66","v":0},{"$f":"[1]ACS_16_5YR_B25074_with_ann!DE66","v":12},{"$f":"[1]ACS_16_5YR_B25074_with_ann!DF66","v":0},{"$f":"[1]ACS_16_5YR_B25074_with_ann!DG66","v":12},{"$f":"[1]ACS_16_5YR_B25074_with_ann!DH66","v":0},{"$f":"[1]ACS_16_5YR_B25074_with_ann!DI66","v":12},{"$f":"[1]ACS_16_5YR_B25074_with_ann!DJ66","v":47},{"$f":"[1]ACS_16_5YR_B25074_with_ann!DK66","v":50},{"$f":"[1]ACS_16_5YR_B25074_with_ann!DL66","v":47},{"$f":"[1]ACS_16_5YR_B25074_with_ann!DM66","v":50},{"$f":"[1]ACS_16_5YR_B25074_with_ann!DN66","v":0},{"$f":"[1]ACS_16_5YR_B25074_with_ann!DO66","v":12},{"$f":"[1]ACS_16_5YR_B25074_with_ann!DP66","v":0},{"$f":"[1]ACS_16_5YR_B25074_with_ann!DQ66","v":12},{"$f":"[1]ACS_16_5YR_B25074_with_ann!DR66","v":0},{"$f":"[1]ACS_16_5YR_B25074_with_ann!DS66","v":12},{"$f":"[1]ACS_16_5YR_B25074_with_ann!DT66","v":0},{"$f":"[1]ACS_16_5YR_B25074_with_ann!DU66","v":12},{"$f":"[1]ACS_16_5YR_B25074_with_ann!DV66","v":0},{"$f":"[1]ACS_16_5YR_B25074_with_ann!DW66","v":12},{"$f":"[1]ACS_16_5YR_B25074_with_ann!DX66","v":0},{"$f":"[1]ACS_16_5YR_B25074_with_ann!DY66","v":12},{"$f":"[1]ACS_16_5YR_B25074_with_ann!DZ66","v":0},{"$f":"[1]ACS_16_5YR_B25074_with_ann!EA66","v":12},null,{"$f":"[1]ACS_16_5YR_B25070_with_ann!C66","v":"Winchester"}]
[]
[]
[null,null,null,null,null,null,null,null,null,null,null,null,null,null,null,null,null,null,null,null,null,null,null,null,null,null,null,null,null,null,null,null,null,null,null,null,null,null,null,null,null,null,{"$f":"$EZ$22","v":"Troy"},null,{"$f":"$EZ$23","v":"Walpole"},null,{"$f":"$EZ$24","v":"Westmoreland"},null,{"$f":"$EZ$25","v":"Winchester"}]
[null,null,null,null,{"$f":"$EZ$3","v":"Alstead"},null,{"$f":"$EZ$4","v":"Chesterfield"},null,{"$f":"$EZ$5","v":"Dublin"},null,{"$f":"$EZ$6","v":"Fitzwilliam"},null,{"$f":"$EZ$7","v":"Gilsum"},null,{"$f":"$EZ$8","v":"Harrisville"},null,{"$f":"$EZ$9","v":"Hinsdale"},null,{"$f":"$EZ$10","v":"Jaffrey"},null,{"$f":"$EZ$11","v":"Keene"},null,{"$f":"$EZ$12","v":"Marlborough"},null,{"$f":"$EZ$13","v":"Marlow"},null,{"$f":"$EZ$14","v":"Nelson"},null,{"$f":"$EZ$15","v":"Richmond"},null,{"$f":"$EZ$16","v":"Rindge"},null,{"$f":"$EZ$17","v":"Roxbury"},null,{"$f":"$EZ$18","v":"Stoddard"},null,{"$f":"$EZ$19","v":"Sullivan"},null,{"$f":"$EZ$20","v":"Surry"},null,{"$f":"$EZ$21","v":"Swanzey"},null,{"$f":"$EZ$21","v":"Swanzey"},null,{"$f":"$EZ$21","v":"Swanzey"},null,{"$f":"$EZ$21","v":"Swanzey"},null,{"$f":"$EZ$21","v":"Swanzey"}]
[null,null,null,null,"Estimate","Margin of Error","Estimate","Margin of Error","Estimate","Margin of Error","Estimate","Margin of Error","Estimate","Margin of Error","Estimate","Margin of Error","Estimate","Margin of Error","Estimate","Margin of Error","Estimate","Margin of Error","Estimate","Margin of Error","Estimate","Margin of Error","Estimate","Margin of Error","Estimate","Margin of Error","Estimate","Margin of Error","Estimate","Margin of Error","Estimate","Margin of Error","Estimate","Margin of Error","Estimate","Margin of Error","Estimate","Margin of Error"]
["B25070",null,null,"Estimate!!Total:",216,81,192,114,112,39,81,30,27,15,29,18,241,100,521,169,4173,379,340,92,45,29,25,13,14,12,295,111,2,3,32,20,42,20,31,16,1180,250,197,58,523,152,80,39,568,122]
[null,null,null,"Estimate!!Total:!!Less than 10.0 percent",10,11,0,12,3,6,6,8,0,12,9,12,44,54,33,57,108,76,16,22,8,11,0,12,0,12,5,8,0,12,0,12,0,12,5,5,0,17,6,11,33,37,18,27,8,13]
[null,null,null,"Estimate!!Total:!!10.0 to 14.9 percent",11,14,15,22,6,10,16,23,0,12,2,4,15,24,13,21,334,170,21,25,14,22,8,7,6,7,32,31,0,12,3,4,13,10,0,12,27,33,23,23,22,29,0,12,36,46]
[null,null,null,"Estimate!!Total:!!15.0 to 19.9 percent",21,26,17,25,6,7,0,12,0,12,0,12,21,31,18,29,643,221,22,17,0,12,0,12,1,4,45,55,1,2,5,9,16,16,0,12,6,9,19,20,154,103,6,6,53,46]
[null,null,null,"Estimate!!Total:!!20.0 to 24.9 percent",28,30,0,12,18,23,4,6,6,6,9,7,13,22,90,59,503,166,18,14,0,12,6,6,0,12,73,61,0,12,6,6,0,12,10,12,255,94,39,29,59,47,18,20,7,12]
[null,null,null,"Estimate!!Total:!!25.0 to 29.9 percent",5,7,19,29,8,6,9,10,9,10,0,12,12,19,99,89,667,174,72,34,0,12,8,7,0,12,14,24,0,12,0,12,0,12,10,11,258,134,0,12,57,49,9,16,134,66]
[null,null,null,"Estimate!!Total:!!30.0 to 34.9 percent",52,51,0,12,3,5,0,12,6,6,5,8,0,12,0,17,356,140,17,22,2,3,0,12,0,12,0,17,0,12,0,12,0,12,0,12,56,58,4,7,36,37,0,12,88,64]
[null,null,null,"Estimate!!Total:!!35.0 to 39.9 percent",0,12,48,72,0,12,0,12,3,4,0,12,13,20,76,88,356,136,26,17,0,12,0,12,0,12,15,17,0,12,9,13,5,5,0,12,77,78,22,25,5,8,0,12,84,52]
[null,null,null,"Estimate!!Total:!!40.0 to 49.9 percent",26,32,0,12,17,17,16,22,0,12,0,12,16,27,93,107,317,122,22,29,7,10,0,12,4,7,15,16,0,12,0,12,3,4,0,12,84,84,62,45,7,11,3,4,17,18]
[null,null,null,"Estimate!!Total:!!50.0 percent or more",14,11,34,48,25,20,18,15,3,4,3,5,63,75,81,60,760,202,101,70,4,6,3,5,0,12,81,59,0,12,0,12,5,7,2,3,273,165,11,11,116,94,9,8,98,63]
[null,null,null,"Estimate!!Total:!!Not computed",49,40,59,64,26,15,12,10,0,12,1,3,44,62,18,33,129,104,25,28,10,7,0,12,3,5,15,18,1,3,9,10,0,12,4,4,144,108,11,16,34,39,17,19,43,36]
[]
[]
["B25074",null,null,"Estimate!!Total:",216,81,192,114,112,39,81,30,27,15,29,18,241,100,521,169,4173,379,340,92,45,29,25,13,14,12,295,111,2,3,32,20,42,20,31,16,1180,250,197,58,523,152,80,39,568,122]
[null,null,null,"Estimate!!Total:!!Less than $10,000",28,38,0,12,9,12,16,11,2,2,0,12,55,73,18,28,205,117,6,9,3,5,0,12,0,12,0,17,0,12,0,12,0,12,0,12,92,93,6,9,92,85,0,12,46,40]
[null,null,null,"Estimate!!Total:!!Less than $10,000!!Less than 20.0 percent",0,12,0,12,0,12,0,12,0,12,0,12,0,12,0,17,0,22,0,12,0,12,0,12,0,12,0,17,0,12,0,12,0,12,0,12,0,17,0,12,0,12,0,12,0,12]
[null,null,null,"Estimate!!Total:!!Less than $10,000:!!20.0 to 24.9 percent",0,12,0,12,0,12,0,12,0,12,0,12,0,12,0,17,0,22,0,12,0,12,0,12,0,12,0,17,0,12,0,12,0,12,0,12,0,17,0,12,19,31,0,12,0,12]
[null,null,null,"Estimate!!Total:!!Less than $10,000:!!25.0 to 29.9 percent",0,12,0,12,0,12,0,12,0,12,0,12,0,12,0,17,0,22,0,12,0,12,0,12,0,12,0,17,0,12,0,12,0,12,0,12,0,17,0,12,0,12,0,12,0,12]
[null,null,null,"Estimate!!Total:!!Less than $10,000:!!30.0 to 34.9 percent",0,12,0,12,0,12,0,12,0,12,0,12,0,12,0,17,0,22,0,12,0,12,0,12,0,12,0,17,0,12,0,12,0,12,0,12,0,17,0,12,0,12,0,12,0,12]
[null,null,null,"Estimate!!Total:!!Less than $10,000:!!35.0 to 39.9 percent",0,12,0,12,0,12,0,12,0,12,0,12,0,12,0,17,0,22,0,12,0,12,0,12,0,12,0,17,0,12,0,12,0,12,0,12,13,19,0,12,0,12,0,12,0,12]
[null,null,null,"Estimate!!Total:!!Less than $10,000:!!40.0 to 49.9 percent",0,12,0,12,0,12,0,12,0,12,0,12,0,12,0,17,0,22,0,12,0,12,0,12,0,12,0,17,0,12,0,12,0,12,0,12,0,17,0,12,0,12,0,12,0,12]
[null,null,null,"Estimate!!Total:!!Less than $10,000:!!50.0 percent or more",0,12,0,12,0,12,12,12,2,2,0,12,55,73,18,28,152,91,6,9,0,12,0,12,0,12,0,17,0,12,0,12,0,12,0,12,0,17,6,9,73,80,0,12,14,15]
[null,null,null,"Estimate!!Total:!!Less than $10,000:!!Not computed",28,38,0,12,9,12,4,6,0,12,0,12,0,12,0,17,53,80,0,12,3,5,0,12,0,12,0,17,0,12,0,12,0,12,0,12,79,91,0,12,0,12,0,12,32,37]
[null,null,null,"Estimate!!Total:!!$10,000 to $19,999:",46,48,0,12,0,12,6,9,0,12,0,12,44,62,56,46,732,211,78,39,2,3,0,12,0,12,67,55,0,12,0,12,0,12,2,3,255,134,33,32,28,30,0,12,98,62]
[null,null,null,"Estimate!!Total:!!$10,000 to $19,999:!!Less than 20.0 percent",0,12,0,12,0,12,0,12,0,12,0,12,0,12,0,17,38,47,0,12,0,12,0,12,0,12,0,17,0,12,0,12,0,12,0,12,0,17,6,11,0,12,0,12,0,12]
[null,null,null,"Estimate!!Total:!!$10,000 to $19,999:!!20.0 to 24.9 percent",0,12,0,12,0,12,0,12,0,12,0,12,0,12,0,17,45,44,0,12,0,12,0,12,0,12,0,17,0,12,0,12,0,12,0,12,0,17,0,12,0,12,0,12,0,12]
[null,null,null,"Estimate!!Total:!!$10,000 to $19,999:!!25.0 to 29.9 percent",0,12,0,12,0,12,0,12,0,12,0,12,0,12,0,17,145,82,32,31,0,12,0,12,0,12,0,17,0,12,0,12,0,12,0,12,92,84,0,12,0,12,0,12,22,36]
[null,null,null,"Estimate!!Total:!!$10,000 to $19,999:!!30.0 to 34.9 percent",35,47,0,12,0,12,0,12,0,12,0,12,0,12,0,17,14,16,12,21,0,12,0,12,0,12,0,17,0,12,0,12,0,12,0,12,22,39,0,12,16,25,0,12,0,12]
[null,null,null,"Estimate!!Total:!!$10,000 to $19,999:!!35.0 to 39.9 percent",0,12,0,12,0,12,0,12,0,12,0,12,0,12,0,17,52,57,0,12,0,12,0,12,0,12,0,17,0,12,0,12,0,12,0,12,0,17,0,12,5,8,0,12,11,17]
[null,null,null,"Estimate!!Total:!!$10,000 to $19,999:!!40.0 to 49.9 percent",0,12,0,12,0,12,0,12,0,12,0,12,0,12,0,17,56,52,22,29,0,12,0,12,0,12,0,17,0,12,0,12,0,12,0,12,0,17,16,26,7,11,0,12,9,14]
[null,null,null,"Estimate!!Total:!!$10,000 to $19,999:!!50.0 percent or more",6,8,0,12,0,12,6,9,0,12,0,12,0,12,56,46,382,148,12,12,0,12,0,12,0,12,67,55,0,12,0,12,0,12,2,3,141,90,0,12,0,12,0,12,45,36]
[null,null,null,"Estimate!!Total:!!$10,000 to $19,999:!!Not computed",5,6,0,12,0,12,0,12,0,12,0,12,44,62,0,17,0,22,0,12,2,3,0,12,0,12,0,17,0,12,0,12,0,12,0,12,0,17,11,16,0,12,0,12,11,19]
[null,null,null,"Estimate!!Total:!!$20,000 to $34,999:",33,30,121,99,49,25,19,22,4,5,3,5,64,49,114,95,788,200,125,74,7,10,6,6,0,12,47,31,0,12,0,12,8,8,0,12,245,174,71,45,64,56,24,16,117,61]
[null,null,null,"Estimate!!Total:!!$20,000 to $34,999:!!Less than 20.0 percent",0,12,0,12,0,12,0,12,0,12,0,12,15,24,13,21,12,20,0,12,0,12,0,12,0,12,0,17,0,12,0,12,0,12,0,12,16,27,5,9,0,12,0,12,0,12]
[null,null,null,"Estimate!!Total:!!$20,000 to $34,999:!!20.0 to 24.9 percent",20,29,0,12,0,12,0,12,0,12,0,12,0,12,15,23,28,39,9,11,0,12,0,12,0,12,0,17,0,12,0,12,0,12,0,12,0,17,0,12,0,12,0,12,0,12]
[null,null,null,"Estimate!!Total:!!$20,000 to $34,999:!!25.0 to 29.9 percent",0,12,0,12,5,5,0,12,0,12,0,12,12,19,15,24,72,59,9,11,0,12,3,4,0,12,0,17,0,12,0,12,0,12,0,12,39,62,0,12,0,12,9,16,0,12]
[null,null,null,"Estimate!!Total:!!$20,000 to $34,999:!!30.0 to 34.9 percent",0,12,0,12,0,12,0,12,3,4,0,12,0,12,0,17,146,98,0,12,0,12,0,12,0,12,0,17,0,12,0,12,0,12,0,12,0,17,0,12,15,28,0,12,27,33]
[null,null,null,"Estimate!!Total:!!$20,000 to $34,999:!!35.0 to 39.9 percent",0,12,48,72,0,12,0,12,0,12,0,12,13,20,58,84,192,120,15,16,0,12,0,12,0,12,9,15,0,12,0,12,0,12,0,12,0,17,15,23,0,12,0,12,43,35]
[null,null,null,"Estimate!!Total:!!$20,000 to $34,999:!!40.0 to 49.9 percent",5,6,0,12,10,15,16,22,0,12,0,12,16,27,6,12,164,94,0,12,7,10,0,12,0,12,15,16,0,12,0,12,3,4,0,12,46,71,46,38,0,12,3,4,8,11]
[null,null,null,"Estimate!!Total:!!$20,000 to $34,999:!!50.0 percent or more",8,9,34,48,25,20,0,12,1,3,3,5,8,13,7,14,160,86,83,71,0,12,3,5,0,12,14,22,0,12,0,12,5,7,0,12,132,152,5,7,43,51,9,8,39,45]
[null,null,null,"Estimate!!Total:!!$20,000 to $34,999:!!Not computed",0,12,39,57,9,7,3,4,0,12,0,12,0,12,0,17,14,16,9,10,0,12,0,12,0,12,9,14,0,12,0,12,0,12,0,12,12,21,0,12,6,9,3,5,0,12]
[null,null,null,"Estimate!!Total:!!$35,000 to $49,999:",28,22,19,29,9,10,0,12,6,6,0,12,0,12,116,99,692,232,33,27,14,13,3,4,7,8,25,29,0,12,0,12,2,3,2,3,156,99,8,9,36,44,0,12,150,67]
[null,null,null,"Estimate!!Total:!!$35,000 to $49,999:!!Less than 20.0 percent",0,12,0,12,0,12,0,12,0,12,0,12,0,12,0,17,105,83,0,12,8,11,0,12,0,12,0,17,0,12,0,12,0,12,0,12,0,17,0,12,0,12,0,12,0,12]
[null,null,null,"Estimate!!Total:!!$35,000 to $49,999:!!20.0 to 24.9 percent",0,12,0,12,2,3,0,12,0,12,0,12,0,12,14,23,125,91,0,12,0,12,1,2,0,12,25,29,0,12,0,12,0,12,0,12,24,28,8,9,24,38,0,12,0,12]
[null,null,null,"Estimate!!Total:!!$35,000 to $49,999:!!25.0 to 29.9 percent",5,7,19,29,0,12,0,12,0,12,0,12,0,12,67,85,111,71,22,25,0,12,2,2,0,12,0,17,0,12,0,12,0,12,0,12,9,9,0,12,12,27,0,12,77,53]
[null,null,null,"Estimate!!Total:!!$35,000 to $49,999:!!30.0 to 34.9 percent",17,19,0,12,0,12,0,12,3,4,0,12,0,12,0,17,127,94,5,7,2,3,0,12,0,12,0,17,0,12,0,12,0,12,0,12,16,25,0,12,0,12,0,12,61,57]
[null,null,null,"Estimate!!Total:!!$35,000 to $49,999:!!35.0 to 39.9 percent",0,12,0,12,0,12,0,12,3,4,0,12,0,12,18,28,98,74,6,9,0,12,0,12,0,12,0,17,0,12,0,12,2,3,0,12,64,73,0,12,0,12,0,12,12,18]
[null,null,null,"Estimate!!Total:!!$35,000 to $49,999:!!40.0 to 49.9 percent",0,12,0,12,7,10,0,12,0,12,0,12,0,12,17,26,76,53,0,12,0,12,0,12,4,7,0,17,0,12,0,12,0,12,0,12,21,38,0,12,0,12,0,12,0,12]
[null,null,null,"Estimate!!Total:!!$35,000 to $49,999:!!50.0 percent or more",0,12,0,12,0,12,0,12,0,12,0,12,0,12,0,17,50,77,0,12,4,6,0,12,0,12,0,17,0,12,0,12,0,12,0,12,0,17,0,12,0,12,0,12,0,12]
[null,null,null,"Estimate!!Total:!!$35,000 to $49,999:!!Not computed",6,7,0,12,0,12,0,12,0,12,0,12,0,12,0,17,0,22,0,12,0,12,0,12,3,5,0,17,0,12,0,12,0,12,2,3,22,33,0,12,0,12,0,12,0,12]
[null,null,null,"Estimate!!Total:!!$50,000 to $74,999:",50,40,20,29,19,23,3,5,12,11,11,10,13,22,174,130,797,200,18,15,0,12,7,7,1,4,81,74,1,2,15,15,19,16,8,10,188,101,14,13,127,75,15,20,106,61]
[null,null,null,"Estimate!!Total:!!$50,000 to $74,999:!!Less than 20.0 percent",15,21,0,12,0,12,0,12,0,12,2,4,0,12,40,59,182,92,5,8,0,12,4,5,1,4,38,55,1,2,0,12,16,16,0,12,0,17,0,12,45,47,0,12,53,46]
[null,null,null,"Estimate!!Total:!!$50,000 to $74,999:!!20.0 to 24.9 percent",8,8,0,12,16,23,0,12,3,4,4,5,13,22,47,47,144,82,4,6,0,12,3,5,0,12,31,49,0,12,0,12,0,12,0,12,35,33,3,5,8,10,15,20,0,12]
[null,null,null,"Estimate!!Total:!!$50,000 to $74,999:!!25.0 to 29.9 percent",0,12,0,12,0,12,3,5,9,10,0,12,0,12,17,26,304,120,4,7,0,12,0,12,0,12,0,17,0,12,0,12,0,12,8,10,118,91,0,12,45,43,0,12,35,40]
[null,null,null,"Estimate!!Total:!!$50,000 to $74,999:!!30.0 to 34.9 percent",0,12,0,12,0,12,0,12,0,12,5,8,0,12,0,17,69,69,0,12,0,12,0,12,0,12,0,17,0,12,0,12,0,12,0,12,18,31,4,7,5,9,0,12,0,12]
[null,null,null,"Estimate!!Total:!!$50,000 to $74,999:!!35.0 to 39.9 percent",0,12,0,12,0,12,0,12,0,12,0,12,0,12,0,17,14,19,5,7,0,12,0,12,0,12,6,9,0,12,9,13,3,4,0,12,0,17,7,9,0,12,0,12,18,28]
[null,null,null,"Estimate!!Total:!!$50,000 to $74,999:!!40.0 to 49.9 percent",21,31,0,12,0,12,0,12,0,12,0,12,0,12,70,93,21,32,0,12,0,12,0,12,0,12,0,17,0,12,0,12,0,12,0,12,17,30,0,12,0,12,0,12,0,12]
[null,null,null,"Estimate!!Total:!!$50,000 to $74,999:!!50.0 percent or more",0,12,0,12,0,12,0,12,0,12,0,12,0,12,0,17,1,3,0,12,0,12,0,12,0,12,0,17,0,12,0,12,0,12,0,12,0,17,0,12,0,12,0,12,0,12]
[null,null,null,"Estimate!!Total:!!$50,000 to $74,999:!!Not computed",6,8,20,29,3,4,0,12,0,12,0,12,0,12,0,17,62,61,0,12,0,12,0,12,0,12,6,10,0,12,6,9,0,12,0,12,0,17,0,12,24,37,0,12,0,12]
[null,null,null,"Estimate!!Total:!!$75,000 to $99,999:",6,8,15,22,14,11,10,11,3,4,5,6,0,12,25,31,378,137,28,28,5,5,7,7,0,12,46,37,0,12,12,11,0,12,14,12,202,88,33,27,84,85,9,7,7,12]
[null,null,null,"Estimate!!Total:!!$75,000 to $99,999:!!Less than 20.0 percent",6,8,15,22,3,6,0,12,0,12,0,12,0,12,11,24,218,115,12,13,0,12,4,5,0,12,21,26,0,12,5,9,0,12,0,12,6,9,5,9,72,85,6,6,0,12]
[null,null,null,"Estimate!!Total:!!$75,000 to $99,999:!!20.0 to 24.9 percent",0,12,0,12,0,12,4,6,3,4,5,6,0,12,14,23,129,91,0,12,0,12,0,12,0,12,11,18,0,12,4,6,0,12,10,12,196,88,28,26,8,14,3,4,7,12]
[null,null,null,"Estimate!!Total:!!$75,000 to $99,999:!!25.0 to 29.9 percent",0,12,0,12,3,4,6,8,0,12,0,12,0,12,0,17,31,32,0,12,0,12,3,4,0,12,14,24,0,12,0,12,0,12,2,3,0,17,0,12,0,12,0,12,0,12]
[null,null,null,"Estimate!!Total:!!$75,000 to $99,999:!!30.0 to 34.9 percent",0,12,0,12,3,5,0,12,0,12,0,12,0,12,0,17,0,22,0,12,0,12,0,12,0,12,0,17,0,12,0,12,0,12,0,12,0,17,0,12,0,12,0,12,0,12]
[null,null,null,"Estimate!!Total:!!$75,000 to $99,999:!!35.0 to 39.9 percent",0,12,0,12,0,12,0,12,0,12,0,12,0,12,0,17,0,22,0,12,0,12,0,12,0,12,0,17,0,12,0,12,0,12,0,12,0,17,0,12,0,12,0,12,0,12]
[null,null,null,"Estimate!!Total:!!$75,000 to $99,999:!!40.0 to 49.9 percent",0,12,0,12,0,12,0,12,0,12,0,12,0,12,0,17,0,22,0,12,0,12,0,12,0,12,0,17,0,12,0,12,0,12,0,12,0,17,0,12,0,12,0,12,0,12]
[null,null,null,"Estimate!!Total:!!$75,000 to $99,999:!!50.0 percent or more",0,12,0,12,0,12,0,12,0,12,0,12,0,12,0,17,0,22,0,12,0,12,0,12,0,12,0,17,0,12,0,12,0,12,0,12,0,17,0,12,0,12,0,12,0,12]
[null,null,null,"Estimate!!Total:!!$75,000 to $99,999:!!Not computed",0,12,0,12,5,6,0,12,0,12,0,12,0,12,0,17,0,22,16,25,5,5,0,12,0,12,0,17,0,12,3,4,0,12,2,3,0,17,0,12,4,7,0,12,0,12]
[null,null,null,"Estimate!!Total:!!$100,000 or more:",25,19,17,25,12,12,27,26,0,12,10,12,65,61,18,33,581,259,52,37,14,22,2,3,6,7,29,26,1,3,5,5,13,10,5,5,42,46,32,28,92,76,32,32,44,47]
[null,null,null,"Estimate!!Total:!!$100,000 or more:!!Less than 20.0 percent",21,18,17,25,12,12,22,25,0,12,9,12,65,61,0,17,530,259,42,34,14,22,0,12,6,7,23,21,0,12,3,4,13,10,5,5,11,18,32,28,92,76,18,27,44,47]
[null,null,null,"Estimate!!Total:!!$100,000 or more:!!20.0 to 24.9 percent",0,12,0,12,0,12,0,12,0,12,0,12,0,12,0,17,32,54,5,7,0,12,2,3,0,12,6,13,0,12,2,3,0,12,0,12,0,17,0,12,0,12,0,12,0,12]
[null,null,null,"Estimate!!Total:!!$100,000 or more:!!25.0 to 29.9 percent",0,12,0,12,0,12,0,12,0,12,0,12,0,12,0,17,4,10,5,8,0,12,0,12,0,12,0,17,0,12,0,12,0,12,0,12,0,17,0,12,0,12,0,12,0,12]
[null,null,null,"Estimate!!Total:!!$100,000 or more:!!30.0 to 34.9 percent",0,12,0,12,0,12,0,12,0,12,0,12,0,12,0,17,0,22,0,12,0,12,0,12,0,12,0,17,0,12,0,12,0,12,0,12,0,17,0,12,0,12,0,12,0,12]
[null,null,null,"Estimate!!Total:!!$100,000 or more:!!35.0 to 39.9 percent",0,12,0,12,0,12,0,12,0,12,0,12,0,12,0,17,0,22,0,12,0,12,0,12,0,12,0,17,0,12,0,12,0,12,0,12,0,17,0,12,0,12,0,12,0,12]
[null,null,null,"Estimate!!Total:!!$100,000 or more:!!40.0 to 49.9 percent",0,12,0,12,0,12,0,12,0,12,0,12,0,12,0,17,0,22,0,12,0,12,0,12,0,12,0,17,0,12,0,12,0,12,0,12,0,17,0,12,0,12,0,12,0,12]
[null,null,null,"Estimate!!Total:!!$100,000 or more:!!50.0 percent or more",0,12,0,12,0,12,0,12,0,12,0,12,0,12,0,17,15,25,0,12,0,12,0,12,0,12,0,17,0,12,0,12,0,12,0,12,0,17,0,12,0,12,0,12,0,12]
[null,null,null,"Estimate!!Total:!!$100,000 or more:!!Not computed",4,6,0,12,0,12,5,9,0,12,1,3,0,12,18,33,0,22,0,12,0,12,0,12,0,12,0,17,1,3,0,12,0,12,0,12,31,43,0,12,0,12,14,18,0,12]

{"sheet":"OwnerHousingCost","index":92,"n_rows":112,"n_cols":17,"rows_kept":112,"cut":false,"hidden":true,"merged":[]}
[]
[null,null,"HIDE THIS COLUMN",{"$f":"CntyDataLink!$A35","v":"Dublin"}]
[null,null,null,"OWNER HOUSING COST CHARACTERISTICS"]
[]
[]
[]
[null,null,520251]
[]
[null,null,21873]
[null,null,20790]
[null,null,21085]
[null,null,22540]
[null,null,21427]
[null,null,22521]
[null,null,21134]
[null,null,22535]
[null,null,19756]
[null,null,39447]
[null,null,55520]
[null,null,74640]
[null,null,54965]
[null,null,33938]
[null,null,36420]
[null,null,31660]
[]
[]
[]
[null,null,null,"Universe:  HOUSEHOLDS: $45,000 to $49,999 (Estimate)"]
[null,null,null,"Universe:  HOUSEHOLDS: $50,000 to $59,999 (Estimate)"]
[null,null,null,"Universe:  HOUSEHOLDS: $60,000 to $74,999 (Estimate)"]
[null,null,null,"Universe:  HOUSEHOLDS: $75,000 to $99,999 (Estimate)"]
[null,null,null,"Universe:  HOUSEHOLDS: $100,000 to $124,999 (Estimate)"]
[null,null,null,"Universe:  HOUSEHOLDS: $125,000 to $149,999 (Estimate)"]
[null,null,null,"Universe:  HOUSEHOLDS: $150,000 to $199,999 (Estimate)"]
[null,null,null,"Universe:  HOUSEHOLDS: $200,000 or more (Estimate)"]
[]
[null,null,null,"Income in 2022 Inflation Adjusted Dollars"]
[null,null,null,"Source: 2018-2022 American Community Survey Table B25106"]
[null,null,null,"Data from the American Community Survey are estimates."]
[]
[]
[null,null,null,{"$f":"CntyDataLink!A$35","v":"Dublin"}]
[]
[null,null,null,{"$f":"D3","v":"OWNER HOUSING COST CHARACTERISTICS"}]
[]
[null,null,null,"Owner Households by "]
[null,null,null,"Selected Monthly Housing Costs as a Percent of 2022 Household Income",null,null,null,"By Household Income"]
[null,null,"H73RenterOccHU",null,"Specified Owner Occ Housing Units","Margin of Error Owner Occ Housing Units",null,"Less than $20,000",{"$f":"\"Margin of Error \"&H48","v":"Margin of Error Less than $20,000"},"$20,000 to $34,999",{"$f":"\"Margin of Error \"&J48","v":"Margin of Error $20,000 to $34,999"},"$35,000 to $49,999",{"$f":"\"Margin of Error \"&L48","v":"Margin of Error $35,000 to $49,999"},"$50,000 to $74,999",{"$f":"\"Margin of Error \"&N48","v":"Margin of Error $50,000 to $74,999"},"$75,000 or More",{"$f":"\"Margin of Error \"&P48","v":"Margin of Error $75,000 or More"}]
[]
[null,null,null,"Total Households",{"$f":"CntyDataLink!$BF144","v":1218},{"$f":"CntyDataLink!$BG$144","v":181},null,{"$f":"CntyDataLink!$BZ$144","v":128},{"$f":"CntyDataLink!$CA$144","v":65},{"$f":"CntyDataLink!$CH$144","v":248},{"$f":"CntyDataLink!$CI$144","v":78},{"$f":"CntyDataLink!$CP$144","v":194},{"$f":"CntyDataLink!$CQ$144","v":81},{"$f":"CntyDataLink!$CX$144","v":276},{"$f":"CntyDataLink!$CY$144","v":91},{"$f":"CntyDataLink!$DF$144","v":372},{"$f":"CntyDataLink!$DG$144","v":111}]
[null,null,null,"Monthly Costs Less than 20% of HH Income",{"$f":"CntyDataLink!$BH$144","v":427},{"$f":"CntyDataLink!$BI$144","v":121.7251001231874},null,{"$f":"CntyDataLink!$CB$144","v":9},{"$f":"CntyDataLink!$CC$144","v":16},{"$f":"CntyDataLink!CJ$144","v":8},{"$f":"CntyDataLink!CK$144","v":13},{"$f":"CntyDataLink!CR$144","v":45},{"$f":"CntyDataLink!CS$144","v":32},{"$f":"CntyDataLink!CZ$144","v":115},{"$f":"CntyDataLink!DA$144","v":67},{"$f":"CntyDataLink!DH$144","v":250},{"$f":"CntyDataLink!DI$144","v":91}]
[null,null,null,"Monthly Costs 20% to 29.9% of HH Income",{"$f":"CntyDataLink!$BJ$144","v":284},{"$f":"CntyDataLink!$BK$144","v":86.948260477136628},null,{"$f":"CntyDataLink!$CD$144","v":0},{"$f":"CntyDataLink!$CE$144","v":11},{"$f":"CntyDataLink!CL$144","v":20},{"$f":"CntyDataLink!CM$144","v":24},{"$f":"CntyDataLink!CT$144","v":62},{"$f":"CntyDataLink!CU$144","v":43},{"$f":"CntyDataLink!DB$144","v":106},{"$f":"CntyDataLink!DC$144","v":48},{"$f":"CntyDataLink!DJ$144","v":96},{"$f":"CntyDataLink!DK$144","v":53}]
[null,null,null,"Monthly Costs Less Than 30% of HH Income",{"$f":"CntyDataLink!$BL$144","v":711},{"$f":"CntyDataLink!$BM$144","v":149.58943812983588},null,{"$f":"H52+H51","v":9},{"$f":"SQRT((I52^2)+(I51^2))","v":19.416487838947599},{"$f":"J52+J51","v":28},{"$f":"SQRT((K52^2)+(K51^2))","v":27.294688127912362},{"$f":"L52+L51","v":107},{"$f":"SQRT((M52^2)+(M51^2))","v":53.600373133029585},{"$f":"N52+N51","v":221},{"$f":"SQRT((O52^2)+(O51^2))","v":82.419657849326214},{"$f":"P52+P51","v":346},{"$f":"SQRT((Q52^2)+(Q51^2))","v":105.30906893520614}]
[null,null,null,"Monthly Costs 30% or More of HH Income",{"$f":"CntyDataLink!$BN$144","v":507},{"$f":"CntyDataLink!$BO$144","v":130.36103712382777},null,{"$f":"CntyDataLink!$CF$144","v":119},{"$f":"CntyDataLink!$CG$144","v":61},{"$f":"CntyDataLink!CN$144","v":220},{"$f":"CntyDataLink!CO$144","v":79},{"$f":"CntyDataLink!CV$144","v":87},{"$f":"CntyDataLink!CW$144","v":56},{"$f":"CntyDataLink!DD$144","v":55},{"$f":"CntyDataLink!DE$144","v":39},{"$f":"CntyDataLink!$DL$144","v":26},{"$f":"CntyDataLink!$DM$144","v":28}]
[]
[null,null,null,"Monthly Costs 35% or More of HH Income",{"$f":"CntyDataLink!$BT$144","v":373},{"$f":"CntyDataLink!$BU$144","v":112.96016997154351},null,"NA","NA","NA","NA","NA","NA","NA","NA","NA","NA"]
[null,null,null,"Monthly Costs 50% or More of HH Income",{"$f":"CntyDataLink!$BV$144","v":213},{"$f":"CntyDataLink!$BW$144","v":78.924014089502563},null,"NA","NA","NA","NA","NA","NA","NA","NA","NA","NA"]
[null,null,null,"Percent not computed",{"$f":"CntyDataLink!$BX$144","v":0},{"$f":"CntyDataLink!$BY$144","v":15.556349186104045},null,"NA","NA","NA","NA","NA","NA","NA","NA","NA","NA"]
[]
[null,null,null,"Percent of Owner Households Paying ",null,null,null,"By Household Income"]
[null,null,null,{"$f":"D53","v":"Monthly Costs Less Than 30% of HH Income"},{"$f":"E53/E$50","v":0.58374384236453203},null,null,{"$f":"H53/H$50","v":7.03125E-2},null,{"$f":"J53/J$50","v":0.11290322580645161},null,{"$f":"L53/L$50","v":0.55154639175257736},null,{"$f":"N53/N$50","v":0.80072463768115942},null,{"$f":"P53/P$50","v":0.93010752688172038}]
[null,null,null,{"$f":"D54","v":"Monthly Costs 30% or More of HH Income"},{"$f":"E54/E$50","v":0.41625615763546797},null,null,{"$f":"H54/H50","v":0.9296875},null,{"$f":"J54/J50","v":0.88709677419354838},null,{"$f":"L54/L50","v":0.4484536082474227},null,{"$f":"N54/N50","v":0.19927536231884058},null,{"$f":"P54/P50","v":6.9892473118279563E-2}]
[]
[null,null,null,"Monthly Costs 35% or More of HH Income",{"$f":"E56/E$50","v":0.30623973727422005},null,null,"NA","NA","NA","NA","NA","NA","NA","NA","NA","NA"]
[null,null,null,"Monthly Costs 50% or More of HH Income",{"$f":"E57/E$50","v":0.1748768472906404},null,null,"NA","NA","NA","NA","NA","NA","NA","NA","NA","NA"]
[null,null,null,"Percent not computed",{"$f":"E58/$E$50","v":0},null,null,"NA","NA","NA","NA","NA","NA","NA","NA","NA","NA"]
[]
[null,null,null,{"$f":"D37","v":"Income in 2022 Inflation Adjusted Dollars"}]
[null,null,null,"Source: Source: 2018-2022 American Community Survey Table B25091; B25106",null,null,null,null,"NA indicates that the American Community Survey does not provide that data."]
[null,null,null,"Data from the American Community Survey are estimates."]
[]
[null,null,null,{"$f":"CntyDataLink!$A35","v":"Dublin"}]
[null,null,"H62ROHUGRent250to299",{"$f":"D3","v":"OWNER HOUSING COST CHARACTERISTICS"}]
[null,null,"H62ROHUGRent300to349"]
[null,null,"H62ROHUGRent350to399","Value of Owner Occupied Housing Units"]
[null,null,"H62ROHUGRent400to449"]
[null,null,"H62ROHUGRent450to499","Owner Occupied Housing Units",{"$f":"CntyDataLink!$B$144","v":1011},{"$f":"CntyDataLink!$C$144","v":128}]
[null,null,"H62ROHUGRent500to549"]
[null,null,"H62ROHUGRent550to599","Value","Housing Units","Margin of Error"]
[null,null,"H62ROHUGRent600to649","Less than $10,000",{"$f":"CntyDataLink!$D$144","v":8},{"$f":"CntyDataLink!$E$144","v":13}]
[null,null,"H62ROHUGRent650to699","$10,000 to $14,999",{"$f":"CntyDataLink!$F$144","v":35},{"$f":"CntyDataLink!$G$144","v":35}]
[null,null,"H62ROHUGRent700to749","$15,000 to $19,999",{"$f":"CntyDataLink!$H$144","v":21},{"$f":"CntyDataLink!$I$144","v":26}]
[null,null,"H62ROHUGRent750to799","$20,000 to $24,999",{"$f":"CntyDataLink!$J$144","v":11},{"$f":"CntyDataLink!$K$144","v":14}]
[null,null,"H62ROHUGRent800to899","$25,000 to $29,999",{"$f":"CntyDataLink!$L$144","v":32},{"$f":"CntyDataLink!$M$144","v":34}]
[null,null,"H62ROHUGRent900to999","$30,000 to $34,999",{"$f":"CntyDataLink!$N$144","v":44},{"$f":"CntyDataLink!$O$144","v":39}]
[null,null,"H62ROHUGRent1000to1249","$35,000 to $39,999",{"$f":"CntyDataLink!$P$144","v":0},{"$f":"CntyDataLink!$Q$144","v":12}]
[null,null,"H62ROHUGRent1250to1499","$40,000 to $49,999",{"$f":"CntyDataLink!$R$144","v":12},{"$f":"CntyDataLink!$S$144","v":17}]
[null,null,"H62ROHUGRent1500to1999","$50,000 to $59,999",{"$f":"CntyDataLink!$T$144","v":0},{"$f":"CntyDataLink!$U$144","v":12}]
[null,null,"H62ROHUGRent2000>","$60,000 to $69,999",{"$f":"CntyDataLink!$V$144","v":0},{"$f":"CntyDataLink!$W$144","v":12}]
[null,null,"H62ROHUNoGRent","$70,000 to $79,999",{"$f":"CntyDataLink!$X$144","v":28},{"$f":"CntyDataLink!$Y$144","v":24}]
[null,null,"H63MedianGrossRnt","$80,000 to $89,999",{"$f":"CntyDataLink!$Z$144","v":37},{"$f":"CntyDataLink!$AA$144","v":34}]
[null,null,null,"$90,000 to $99,999",{"$f":"CntyDataLink!$AB$144","v":35},{"$f":"CntyDataLink!$AC$144","v":29}]
[null,null,null,"$100,000 to $124,999",{"$f":"CntyDataLink!$AD$144","v":55},{"$f":"CntyDataLink!$AE$144","v":44}]
[null,null,null,"$125,000 to $149,999",{"$f":"CntyDataLink!$AF$144","v":168},{"$f":"CntyDataLink!$AG$144","v":94}]
[null,null,null,"$150,000 to $174,999",{"$f":"CntyDataLink!$AH$144","v":85},{"$f":"CntyDataLink!$AI$144","v":58}]
[null,null,null,"$175,000 to $199,999",{"$f":"CntyDataLink!$AJ$144","v":91},{"$f":"CntyDataLink!$AK$144","v":52}]
[null,null,null,"$200,000 to $249,999",{"$f":"CntyDataLink!$AL$144","v":240},{"$f":"CntyDataLink!$AM$144","v":107}]
[null,null,null,"$250,000 to $299,999",{"$f":"CntyDataLink!$AN$144","v":58},{"$f":"CntyDataLink!$AO$144","v":45}]
[null,null,null,"$300,000 to $399,999",{"$f":"CntyDataLink!$AP$144","v":28},{"$f":"CntyDataLink!$AQ$144","v":24}]
[null,null,null,"$400,000 to $499,999",{"$f":"CntyDataLink!$AR$144","v":23},{"$f":"CntyDataLink!$AS$144","v":26}]
[null,null,null,"$500,000 to $749,999",{"$f":"CntyDataLink!$AT$144","v":0},{"$f":"CntyDataLink!$AU$144","v":12}]
[null,null,null,"$750,000 to $999,999",{"$f":"CntyDataLink!$AV$144","v":0},{"$f":"CntyDataLink!$AW$144","v":12}]
[null,null,null,"$1,000,000 to $1,499,999",{"$f":"CntyDataLink!$AX$144","v":0},{"$f":"CntyDataLink!$AY$144","v":12}]
[null,null,null,"$1,500,000 to $1,999,999",{"$f":"CntyDataLink!$AZ$144","v":0},{"$f":"CntyDataLink!$BA$144","v":12}]
[null,null,null,"$2,000,000 or more",{"$f":"CntyDataLink!$BB$144","v":0},{"$f":"CntyDataLink!$BC$144","v":12}]
[]
[null,null,null,"Median Value",{"$f":"CntyDataLink!$BD$144","v":155700},{"$f":"CntyDataLink!$BE$144","v":26376}]
[]
[]
[]
[null,null,null,"Source: 2018-2022 American Community Survey Tables B25075 and B25077"]
[null,null,null,"Data from the American Community Survey are estimates."]

{"sheet":"OwnerHousingCostPrior5Year","index":93,"n_rows":112,"n_cols":17,"rows_kept":112,"cut":false,"hidden":true,"merged":[]}
[]
[null,null,"HIDE THIS COLUMN",{"$f":"CntyDataLink!$A35","v":"Dublin"}]
[null,null,null,"OWNER HOUSING COST CHARACTERISTICS"]
[]
[]
[]
[null,null,520251]
[]
[null,null,21873]
[null,null,20790]
[null,null,21085]
[null,null,22540]
[null,null,21427]
[null,null,22521]
[null,null,21134]
[null,null,22535]
[null,null,19756]
[null,null,39447]
[null,null,55520]
[null,null,74640]
[null,null,54965]
[null,null,33938]
[null,null,36420]
[null,null,31660]
[]
[]
[]
[null,null,null,"Universe:  HOUSEHOLDS: $45,000 to $49,999 (Estimate)"]
[null,null,null,"Universe:  HOUSEHOLDS: $50,000 to $59,999 (Estimate)"]
[null,null,null,"Universe:  HOUSEHOLDS: $60,000 to $74,999 (Estimate)"]
[null,null,null,"Universe:  HOUSEHOLDS: $75,000 to $99,999 (Estimate)"]
[null,null,null,"Universe:  HOUSEHOLDS: $100,000 to $124,999 (Estimate)"]
[null,null,null,"Universe:  HOUSEHOLDS: $125,000 to $149,999 (Estimate)"]
[null,null,null,"Universe:  HOUSEHOLDS: $150,000 to $199,999 (Estimate)"]
[null,null,null,"Universe:  HOUSEHOLDS: $200,000 or more (Estimate)"]
[]
[null,null,null,"Income in 2017 Inflation Adjusted Dollars"]
[null,null,null,"Source: 2013-2017 American Community Survey Table B25106"]
[null,null,null,"Data from the American Community Survey are estimates."]
[]
[]
[null,null,null,{"$f":"CntyDataLink!A$35","v":"Dublin"}]
[]
[null,null,null,{"$f":"D3","v":"OWNER HOUSING COST CHARACTERISTICS"}]
[]
[null,null,null,"Owner Households by "]
[null,null,null,"Selected Monthly Housing Costs as a Percent of 2017 Household Income",null,null,null,"By Household Income"]
[null,null,"H73RenterOccHU",null,"Specified Owner Occ Housing Units","Margin of Error Owner Occ Housing Units",null,"Less than $20,000",{"$f":"\"Margin of Error \"&H48","v":"Margin of Error Less than $20,000"},"$20,000 to $34,999",{"$f":"\"Margin of Error \"&J48","v":"Margin of Error $20,000 to $34,999"},"$35,000 to $49,999",{"$f":"\"Margin of Error \"&L48","v":"Margin of Error $35,000 to $49,999"},"$50,000 to $74,999",{"$f":"\"Margin of Error \"&N48","v":"Margin of Error $50,000 to $74,999"},"$75,000 or More",{"$f":"\"Margin of Error \"&P48","v":"Margin of Error $75,000 or More"}]
[]
[null,null,null,"Total Households",{"$f":"CntyDataLinkPrior5YearEstimates!$BF144","v":1225},{"$f":"CntyDataLinkPrior5YearEstimates!$BG$144","v":174},null,{"$f":"CntyDataLinkPrior5YearEstimates!$BZ$144","v":135},{"$f":"CntyDataLinkPrior5YearEstimates!$CA$144","v":77},{"$f":"CntyDataLinkPrior5YearEstimates!$CH$144","v":235},{"$f":"CntyDataLinkPrior5YearEstimates!$CI$144","v":100},{"$f":"CntyDataLinkPrior5YearEstimates!$CP$144","v":208},{"$f":"CntyDataLinkPrior5YearEstimates!$CQ$144","v":88},{"$f":"CntyDataLinkPrior5YearEstimates!$CX$144","v":212},{"$f":"CntyDataLinkPrior5YearEstimates!$CY$144","v":98},{"$f":"CntyDataLinkPrior5YearEstimates!$DF$144","v":426},{"$f":"CntyDataLinkPrior5YearEstimates!$DG$144","v":112}]
[null,null,null,"Monthly Costs Less than 20% of HH Income",{"$f":"CntyDataLinkPrior5YearEstimates!$BH$144","v":442},{"$f":"CntyDataLinkPrior5YearEstimates!$BI$144","v":133.01127771734244},null,{"$f":"CntyDataLinkPrior5YearEstimates!$CB$144","v":0},{"$f":"CntyDataLinkPrior5YearEstimates!$CC$144","v":11},{"$f":"CntyDataLinkPrior5YearEstimates!CJ$144","v":15},{"$f":"CntyDataLinkPrior5YearEstimates!CK$144","v":17},{"$f":"CntyDataLinkPrior5YearEstimates!CR$144","v":41},{"$f":"CntyDataLinkPrior5YearEstimates!CS$144","v":34},{"$f":"CntyDataLinkPrior5YearEstimates!CZ$144","v":107},{"$f":"CntyDataLinkPrior5YearEstimates!DA$144","v":77},{"$f":"CntyDataLinkPrior5YearEstimates!DH$144","v":279},{"$f":"CntyDataLinkPrior5YearEstimates!DI$144","v":101}]
[null,null,null,"Monthly Costs 20% to 29.9% of HH Income",{"$f":"CntyDataLinkPrior5YearEstimates!$BJ$144","v":272},{"$f":"CntyDataLinkPrior5YearEstimates!$BK$144","v":89.504189846062502},null,{"$f":"CntyDataLinkPrior5YearEstimates!$CD$144","v":0},{"$f":"CntyDataLinkPrior5YearEstimates!$CE$144","v":11},{"$f":"CntyDataLinkPrior5YearEstimates!CL$144","v":30},{"$f":"CntyDataLinkPrior5YearEstimates!CM$144","v":29},{"$f":"CntyDataLinkPrior5YearEstimates!CT$144","v":67},{"$f":"CntyDataLinkPrior5YearEstimates!CU$144","v":45},{"$f":"CntyDataLinkPrior5YearEstimates!DB$144","v":91},{"$f":"CntyDataLinkPrior5YearEstimates!DC$144","v":58},{"$f":"CntyDataLinkPrior5YearEstimates!DJ$144","v":84},{"$f":"CntyDataLinkPrior5YearEstimates!DK$144","v":49}]
[null,null,null,"Monthly Costs Less Than 30% of HH Income",{"$f":"CntyDataLinkPrior5YearEstimates!$BL$144","v":714},{"$f":"CntyDataLinkPrior5YearEstimates!$BM$144","v":160.32155188869649},null,{"$f":"H52+H51","v":0},{"$f":"SQRT((I52^2)+(I51^2))","v":15.556349186104045},{"$f":"J52+J51","v":45},{"$f":"SQRT((K52^2)+(K51^2))","v":33.61547262794322},{"$f":"L52+L51","v":108},{"$f":"SQRT((M52^2)+(M51^2))","v":56.400354608814297},{"$f":"N52+N51","v":198},{"$f":"SQRT((O52^2)+(O51^2))","v":96.400207468656419},{"$f":"P52+P51","v":363},{"$f":"SQRT((Q52^2)+(Q51^2))","v":112.25862995778988}]
[null,null,null,"Monthly Costs 30% or More of HH Income",{"$f":"CntyDataLinkPrior5YearEstimates!$BN$144","v":502},{"$f":"CntyDataLinkPrior5YearEstimates!$BO$144","v":148.60349928585129},null,{"$f":"CntyDataLinkPrior5YearEstimates!$CF$144","v":135},{"$f":"CntyDataLinkPrior5YearEstimates!$CG$144","v":77},{"$f":"CntyDataLinkPrior5YearEstimates!CN$144","v":190},{"$f":"CntyDataLinkPrior5YearEstimates!CO$144","v":92},{"$f":"CntyDataLinkPrior5YearEstimates!CV$144","v":100},{"$f":"CntyDataLinkPrior5YearEstimates!CW$144","v":66},{"$f":"CntyDataLinkPrior5YearEstimates!DD$144","v":14},{"$f":"CntyDataLinkPrior5YearEstimates!DE$144","v":23},{"$f":"CntyDataLinkPrior5YearEstimates!$DL$144","v":63},{"$f":"CntyDataLinkPrior5YearEstimates!$DM$144","v":49}]
[]
[null,null,null,"Monthly Costs 35% or More of HH Income",{"$f":"CntyDataLinkPrior5YearEstimates!$BT$144","v":381},{"$f":"CntyDataLinkPrior5YearEstimates!$BU$144","v":127.03542812932147},null,"NA","NA","NA","NA","NA","NA","NA","NA","NA","NA"]
[null,null,null,"Monthly Costs 50% or More of HH Income",{"$f":"CntyDataLinkPrior5YearEstimates!$BV$144","v":170},{"$f":"CntyDataLinkPrior5YearEstimates!$BW$144","v":84.308955633431964},null,"NA","NA","NA","NA","NA","NA","NA","NA","NA","NA"]
[null,null,null,"Percent not computed",{"$f":"CntyDataLinkPrior5YearEstimates!$BX$144","v":9},{"$f":"CntyDataLinkPrior5YearEstimates!$BY$144","v":17.804493814764857},null,"NA","NA","NA","NA","NA","NA","NA","NA","NA","NA"]
[]
[null,null,null,"Percent of Owner Households Paying ",null,null,null,"By Household Income"]
[null,null,null,{"$f":"D53","v":"Monthly Costs Less Than 30% of HH Income"},{"$f":"E53/E$50","v":0.58285714285714285},null,null,{"$f":"H53/H$50","v":0},null,{"$f":"J53/J$50","v":0.19148936170212766},null,{"$f":"L53/L$50","v":0.51923076923076927},null,{"$f":"N53/N$50","v":0.93396226415094341},null,{"$f":"P53/P$50","v":0.852112676056338}]
[null,null,null,{"$f":"D54","v":"Monthly Costs 30% or More of HH Income"},{"$f":"E54/E$50","v":0.40979591836734691},null,null,{"$f":"H54/H50","v":1},null,{"$f":"J54/J50","v":0.80851063829787229},null,{"$f":"L54/L50","v":0.48076923076923078},null,{"$f":"N54/N50","v":6.6037735849056603E-2},null,{"$f":"P54/P50","v":0.14788732394366197}]
[]
[null,null,null,"Monthly Costs 35% or More of HH Income",{"$f":"E56/E$50","v":0.31102040816326532},null,null,"NA","NA","NA","NA","NA","NA","NA","NA","NA","NA"]
[null,null,null,"Monthly Costs 50% or More of HH Income",{"$f":"E57/E$50","v":0.13877551020408163},null,null,"NA","NA","NA","NA","NA","NA","NA","NA","NA","NA"]
[null,null,null,"Percent not computed",{"$f":"E58/$E$50","v":7.3469387755102037E-3},null,null,"NA","NA","NA","NA","NA","NA","NA","NA","NA","NA"]
[]
[null,null,"H62ROHUGRent200to249",{"$f":"D37","v":"Income in 2017 Inflation Adjusted Dollars"}]
[null,null,null,"Source: Source: 2013-2017 American Community Survey Table B25091; B25106",null,null,null,null,"NA indicates that the American Community Survey does not provide that data."]
[null,null,null,"Data from the American Community Survey are estimates."]
[]
[null,null,null,{"$f":"D2","v":"Dublin"}]
[null,null,"H62ROHUGRent250to299",{"$f":"D3","v":"OWNER HOUSING COST CHARACTERISTICS"}]
[null,null,"H62ROHUGRent300to349"]
[null,null,"H62ROHUGRent350to399","Value of Owner Occupied Housing Units"]
[null,null,"H62ROHUGRent400to449"]
[null,null,"H62ROHUGRent450to499","Owner Occupied Housing Units",{"$f":"CntyDataLinkPrior5YearEstimates!$B$144","v":1225},{"$f":"CntyDataLinkPrior5YearEstimates!$C$144","v":174}]
[null,null,"H62ROHUGRent500to549"]
[null,null,"H62ROHUGRent550to599","Value","Housing Units","Margin of Error"]
[null,null,"H62ROHUGRent600to649","Less than $10,000",{"$f":"CntyDataLinkPrior5YearEstimates!$D$144","v":16},{"$f":"CntyDataLinkPrior5YearEstimates!$E$144","v":18}]
[null,null,"H62ROHUGRent650to699","$10,000 to $14,999",{"$f":"CntyDataLinkPrior5YearEstimates!$F$144","v":39},{"$f":"CntyDataLinkPrior5YearEstimates!$G$144","v":32}]
[null,null,"H62ROHUGRent700to749","$15,000 to $19,999",{"$f":"CntyDataLinkPrior5YearEstimates!$H$144","v":64},{"$f":"CntyDataLinkPrior5YearEstimates!$I$144","v":62}]
[null,null,"H62ROHUGRent750to799","$20,000 to $24,999",{"$f":"CntyDataLinkPrior5YearEstimates!$J$144","v":14},{"$f":"CntyDataLinkPrior5YearEstimates!$K$144","v":22}]
[null,null,"H62ROHUGRent800to899","$25,000 to $29,999",{"$f":"CntyDataLinkPrior5YearEstimates!$L$144","v":53},{"$f":"CntyDataLinkPrior5YearEstimates!$M$144","v":73}]
[null,null,"H62ROHUGRent900to999","$30,000 to $34,999",{"$f":"CntyDataLinkPrior5YearEstimates!$N$144","v":62},{"$f":"CntyDataLinkPrior5YearEstimates!$O$144","v":59}]
[null,null,"H62ROHUGRent1000to1249","$35,000 to $39,999",{"$f":"CntyDataLinkPrior5YearEstimates!$P$144","v":11},{"$f":"CntyDataLinkPrior5YearEstimates!$Q$144","v":18}]
[null,null,"H62ROHUGRent1250to1499","$40,000 to $49,999",{"$f":"CntyDataLinkPrior5YearEstimates!$R$144","v":36},{"$f":"CntyDataLinkPrior5YearEstimates!$S$144","v":32}]
[null,null,"H62ROHUGRent1500to1999","$50,000 to $59,999",{"$f":"CntyDataLinkPrior5YearEstimates!$T$144","v":36},{"$f":"CntyDataLinkPrior5YearEstimates!$U$144","v":42}]
[null,null,"H62ROHUGRent2000>","$60,000 to $69,999",{"$f":"CntyDataLinkPrior5YearEstimates!$V$144","v":9},{"$f":"CntyDataLinkPrior5YearEstimates!$W$144","v":14}]
[null,null,"H62ROHUNoGRent","$70,000 to $79,999",{"$f":"CntyDataLinkPrior5YearEstimates!$X$144","v":18},{"$f":"CntyDataLinkPrior5YearEstimates!$Y$144","v":19}]
[null,null,"H63MedianGrossRnt","$80,000 to $89,999",{"$f":"CntyDataLinkPrior5YearEstimates!$Z$144","v":37},{"$f":"CntyDataLinkPrior5YearEstimates!$AA$144","v":37}]
[null,null,null,"$90,000 to $99,999",{"$f":"CntyDataLinkPrior5YearEstimates!$AB$144","v":43},{"$f":"CntyDataLinkPrior5YearEstimates!$AC$144","v":31}]
[null,null,null,"$100,000 to $124,999",{"$f":"CntyDataLinkPrior5YearEstimates!$AD$144","v":170},{"$f":"CntyDataLinkPrior5YearEstimates!$AE$144","v":77}]
[null,null,null,"$125,000 to $149,999",{"$f":"CntyDataLinkPrior5YearEstimates!$AF$144","v":125},{"$f":"CntyDataLinkPrior5YearEstimates!$AG$144","v":66}]
[null,null,null,"$150,000 to $174,999",{"$f":"CntyDataLinkPrior5YearEstimates!$AH$144","v":162},{"$f":"CntyDataLinkPrior5YearEstimates!$AI$144","v":64}]
[null,null,null,"$175,000 to $199,999",{"$f":"CntyDataLinkPrior5YearEstimates!$AJ$144","v":66},{"$f":"CntyDataLinkPrior5YearEstimates!$AK$144","v":61}]
[null,null,null,"$200,000 to $249,999",{"$f":"CntyDataLinkPrior5YearEstimates!$AL$144","v":155},{"$f":"CntyDataLinkPrior5YearEstimates!$AM$144","v":77}]
[null,null,null,"$250,000 to $299,999",{"$f":"CntyDataLinkPrior5YearEstimates!$AN$144","v":57},{"$f":"CntyDataLinkPrior5YearEstimates!$AO$144","v":41}]
[null,null,null,"$300,000 to $399,999",{"$f":"CntyDataLinkPrior5YearEstimates!$AP$144","v":52},{"$f":"CntyDataLinkPrior5YearEstimates!$AQ$144","v":52}]
[null,null,null,"$400,000 to $499,999",{"$f":"CntyDataLinkPrior5YearEstimates!$AR$144","v":0},{"$f":"CntyDataLinkPrior5YearEstimates!$AS$144","v":11}]
[null,null,null,"$500,000 to $749,999",{"$f":"CntyDataLinkPrior5YearEstimates!$AT$144","v":0},{"$f":"CntyDataLinkPrior5YearEstimates!$AU$144","v":11}]
[null,null,null,"$750,000 to $999,999",{"$f":"CntyDataLinkPrior5YearEstimates!$AV$144","v":0},{"$f":"CntyDataLinkPrior5YearEstimates!$AW$144","v":11}]
[null,null,null,"$1,000,000 to $1,499,999",{"$f":"CntyDataLinkPrior5YearEstimates!$AX$144","v":0},{"$f":"CntyDataLinkPrior5YearEstimates!$AY$144","v":11}]
[null,null,null,"$1,500,000 to $1,999,999",{"$f":"CntyDataLinkPrior5YearEstimates!$AZ$144","v":0},{"$f":"CntyDataLinkPrior5YearEstimates!$BA$144","v":11}]
[null,null,null,"$2,000,000 or more",{"$f":"CntyDataLinkPrior5YearEstimates!$BB$144","v":0},{"$f":"CntyDataLinkPrior5YearEstimates!$BC$144","v":11}]
[]
[null,null,null,"Median Value",{"$f":"CntyDataLinkPrior5YearEstimates!$BD$144","v":125900},{"$f":"CntyDataLinkPrior5YearEstimates!$BE$144","v":18248}]
[]
[]
[]
[null,null,null,"Source: 2013-2017 American Community Survey Tables B25075 and B25077"]
[null,null,null,"Data from the American Community Survey are estimates."]

{"sheet":"OwnerHousingCostPrior10Year","index":94,"n_rows":112,"n_cols":17,"rows_kept":112,"cut":false,"hidden":true,"merged":[]}
[]
[null,null,"HIDE THIS COLUMN",{"$f":"CntyDataLink!$A35","v":"Dublin"}]
[null,null,null,"OWNER HOUSING COST CHARACTERISTICS"]
[]
[]
[]
[null,null,520251]
[]
[null,null,21873]
[null,null,20790]
[null,null,21085]
[null,null,22540]
[null,null,21427]
[null,null,22521]
[null,null,21134]
[null,null,22535]
[null,null,19756]
[null,null,39447]
[null,null,55520]
[null,null,74640]
[null,null,54965]
[null,null,33938]
[null,null,36420]
[null,null,31660]
[]
[]
[]
[null,null,null,"Universe:  HOUSEHOLDS: $45,000 to $49,999 (Estimate)"]
[null,null,null,"Universe:  HOUSEHOLDS: $50,000 to $59,999 (Estimate)"]
[null,null,null,"Universe:  HOUSEHOLDS: $60,000 to $74,999 (Estimate)"]
[null,null,null,"Universe:  HOUSEHOLDS: $75,000 to $99,999 (Estimate)"]
[null,null,null,"Universe:  HOUSEHOLDS: $100,000 to $124,999 (Estimate)"]
[null,null,null,"Universe:  HOUSEHOLDS: $125,000 to $149,999 (Estimate)"]
[null,null,null,"Universe:  HOUSEHOLDS: $150,000 to $199,999 (Estimate)"]
[null,null,null,"Universe:  HOUSEHOLDS: $200,000 or more (Estimate)"]
[]
[null,null,null,"Income in 2012 Inflation Adjusted Dollars"]
[null,null,null,"Source: 2008-2012 American Community Survey Table B25106"]
[null,null,null,"Data from the American Community Survey are estimates."]
[]
[]
[null,null,null,{"$f":"CntyDataLink!A$35","v":"Dublin"}]
[]
[null,null,null,{"$f":"D3","v":"OWNER HOUSING COST CHARACTERISTICS"}]
[]
[null,null,null,"Owner Households by "]
[null,null,null,"Selected Monthly Housing Costs as a Percent of 2012 Household Income",null,null,null,"By Household Income"]
[null,null,"H73RenterOccHU",null,"Specified Owner Occ Housing Units","Margin of Error Owner Occ Housing Units",null,"Less than $20,000",{"$f":"\"Margin of Error \"&H48","v":"Margin of Error Less than $20,000"},"$20,000 to $34,999",{"$f":"\"Margin of Error \"&J48","v":"Margin of Error $20,000 to $34,999"},"$35,000 to $49,999",{"$f":"\"Margin of Error \"&L48","v":"Margin of Error $35,000 to $49,999"},"$50,000 to $74,999",{"$f":"\"Margin of Error \"&N48","v":"Margin of Error $50,000 to $74,999"},"$75,000 or More",{"$f":"\"Margin of Error \"&P48","v":"Margin of Error $75,000 or More"}]
[]
[null,null,null,"Total Households",{"$f":"CntyDataLinkPrior10YearEstimate!$BF144","v":1218},{"$f":"CntyDataLinkPrior10YearEstimate!$BG$144","v":181},null,{"$f":"CntyDataLinkPrior10YearEstimate!$BZ$144","v":128},{"$f":"CntyDataLinkPrior10YearEstimate!$CA$144","v":65},{"$f":"CntyDataLinkPrior10YearEstimate!$CH$144","v":248},{"$f":"CntyDataLinkPrior10YearEstimate!$CI$144","v":78},{"$f":"CntyDataLinkPrior10YearEstimate!$CP$144","v":194},{"$f":"CntyDataLinkPrior10YearEstimate!$CQ$144","v":81},{"$f":"CntyDataLinkPrior10YearEstimate!$CX$144","v":276},{"$f":"CntyDataLinkPrior10YearEstimate!$CY$144","v":91},{"$f":"CntyDataLinkPrior10YearEstimate!$DF$144","v":372},{"$f":"CntyDataLinkPrior10YearEstimate!$DG$144","v":111}]
[null,null,null,"Monthly Costs Less than 20% of HH Income",{"$f":"CntyDataLinkPrior10YearEstimate!$BH$144","v":427},{"$f":"CntyDataLinkPrior10YearEstimate!$BI$144","v":121.7251001231874},null,{"$f":"CntyDataLinkPrior10YearEstimate!$CB$144","v":9},{"$f":"CntyDataLinkPrior10YearEstimate!$CC$144","v":16},{"$f":"CntyDataLinkPrior10YearEstimate!CJ$144","v":8},{"$f":"CntyDataLinkPrior10YearEstimate!CK$144","v":13},{"$f":"CntyDataLinkPrior10YearEstimate!CR$144","v":45},{"$f":"CntyDataLinkPrior10YearEstimate!CS$144","v":32},{"$f":"CntyDataLinkPrior10YearEstimate!CZ$144","v":115},{"$f":"CntyDataLinkPrior10YearEstimate!DA$144","v":67},{"$f":"CntyDataLinkPrior10YearEstimate!DH$144","v":250},{"$f":"CntyDataLinkPrior10YearEstimate!DI$144","v":91}]
[null,null,null,"Monthly Costs 20% to 29.9% of HH Income",{"$f":"CntyDataLinkPrior10YearEstimate!$BJ$144","v":284},{"$f":"CntyDataLinkPrior10YearEstimate!$BK$144","v":86.948260477136628},null,{"$f":"CntyDataLinkPrior10YearEstimate!$CD$144","v":0},{"$f":"CntyDataLinkPrior10YearEstimate!$CE$144","v":11},{"$f":"CntyDataLinkPrior10YearEstimate!CL$144","v":20},{"$f":"CntyDataLinkPrior10YearEstimate!CM$144","v":24},{"$f":"CntyDataLinkPrior10YearEstimate!CT$144","v":62},{"$f":"CntyDataLinkPrior10YearEstimate!CU$144","v":43},{"$f":"CntyDataLinkPrior10YearEstimate!DB$144","v":106},{"$f":"CntyDataLinkPrior10YearEstimate!DC$144","v":48},{"$f":"CntyDataLinkPrior10YearEstimate!DJ$144","v":96},{"$f":"CntyDataLinkPrior10YearEstimate!DK$144","v":53}]
[null,null,null,"Monthly Costs Less Than 30% of HH Income",{"$f":"CntyDataLinkPrior10YearEstimate!$BL$144","v":711},{"$f":"CntyDataLinkPrior10YearEstimate!$BM$144","v":149.58943812983588},null,{"$f":"H52+H51","v":9},{"$f":"SQRT((I52^2)+(I51^2))","v":19.416487838947599},{"$f":"J52+J51","v":28},{"$f":"SQRT((K52^2)+(K51^2))","v":27.294688127912362},{"$f":"L52+L51","v":107},{"$f":"SQRT((M52^2)+(M51^2))","v":53.600373133029585},{"$f":"N52+N51","v":221},{"$f":"SQRT((O52^2)+(O51^2))","v":82.419657849326214},{"$f":"P52+P51","v":346},{"$f":"SQRT((Q52^2)+(Q51^2))","v":105.30906893520614}]
[null,null,null,"Monthly Costs 30% or More of HH Income",{"$f":"CntyDataLinkPrior10YearEstimate!$BN$144","v":507},{"$f":"CntyDataLinkPrior10YearEstimate!$BO$144","v":130.36103712382777},null,{"$f":"CntyDataLinkPrior10YearEstimate!$CF$144","v":119},{"$f":"CntyDataLinkPrior10YearEstimate!$CG$144","v":61},{"$f":"CntyDataLinkPrior10YearEstimate!CN$144","v":220},{"$f":"CntyDataLinkPrior10YearEstimate!CO$144","v":79},{"$f":"CntyDataLinkPrior10YearEstimate!CV$144","v":87},{"$f":"CntyDataLinkPrior10YearEstimate!CW$144","v":56},{"$f":"CntyDataLinkPrior10YearEstimate!DD$144","v":55},{"$f":"CntyDataLinkPrior10YearEstimate!DE$144","v":39},{"$f":"CntyDataLinkPrior10YearEstimate!$DL$144","v":26},{"$f":"CntyDataLinkPrior10YearEstimate!$DM$144","v":28}]
[]
[null,null,null,"Monthly Costs 35% or More of HH Income",{"$f":"CntyDataLinkPrior10YearEstimate!$BT$144","v":373},{"$f":"CntyDataLinkPrior10YearEstimate!$BU$144","v":112.96016997154351},null,"NA","NA","NA","NA","NA","NA","NA","NA","NA","NA"]
[null,null,null,"Monthly Costs 50% or More of HH Income",{"$f":"CntyDataLinkPrior10YearEstimate!$BV$144","v":213},{"$f":"CntyDataLinkPrior10YearEstimate!$BW$144","v":78.924014089502563},null,"NA","NA","NA","NA","NA","NA","NA","NA","NA","NA"]
[null,null,null,"Percent not computed",{"$f":"CntyDataLinkPrior10YearEstimate!$BX$144","v":0},{"$f":"CntyDataLinkPrior10YearEstimate!$BY$144","v":15.556349186104045},null,"NA","NA","NA","NA","NA","NA","NA","NA","NA","NA"]
[]
[null,null,null,"Percent of Owner Households Paying ",null,null,null,"By Household Income"]
[null,null,null,{"$f":"D53","v":"Monthly Costs Less Than 30% of HH Income"},{"$f":"E53/E$50","v":0.58374384236453203},null,null,{"$f":"H53/H$50","v":7.03125E-2},null,{"$f":"J53/J$50","v":0.11290322580645161},null,{"$f":"L53/L$50","v":0.55154639175257736},null,{"$f":"N53/N$50","v":0.80072463768115942},null,{"$f":"P53/P$50","v":0.93010752688172038}]
[null,null,null,{"$f":"D54","v":"Monthly Costs 30% or More of HH Income"},{"$f":"E54/E$50","v":0.41625615763546797},null,null,{"$f":"H54/H50","v":0.9296875},null,{"$f":"J54/J50","v":0.88709677419354838},null,{"$f":"L54/L50","v":0.4484536082474227},null,{"$f":"N54/N50","v":0.19927536231884058},null,{"$f":"P54/P50","v":6.9892473118279563E-2}]
[]
[null,null,null,"Monthly Costs 35% or More of HH Income",{"$f":"E56/E$50","v":0.30623973727422005},null,null,"NA","NA","NA","NA","NA","NA","NA","NA","NA","NA"]
[null,null,null,"Monthly Costs 50% or More of HH Income",{"$f":"E57/E$50","v":0.1748768472906404},null,null,"NA","NA","NA","NA","NA","NA","NA","NA","NA","NA"]
[null,null,null,"Percent not computed",{"$f":"E58/$E$50","v":0},null,null,"NA","NA","NA","NA","NA","NA","NA","NA","NA","NA"]
[]
[null,null,"H62ROHUGRent200to249",{"$f":"D37","v":"Income in 2012 Inflation Adjusted Dollars"}]
[null,null,null,"Source: Source: 2008-2012 American Community Survey Table B25091; B25106",null,null,null,null,"NA indicates that the American Community Survey does not provide that data."]
[null,null,null,"Data from the American Community Survey are estimates."]
[]
[null,null,null,{"$f":"D2","v":"Dublin"}]
[null,null,"H62ROHUGRent250to299",{"$f":"D3","v":"OWNER HOUSING COST CHARACTERISTICS"}]
[null,null,"H62ROHUGRent300to349"]
[null,null,"H62ROHUGRent350to399","Value of Owner Occupied Housing Units"]
[null,null,"H62ROHUGRent400to449"]
[null,null,"H62ROHUGRent450to499","Owner Occupied Housing Units",{"$f":"CntyDataLinkPrior10YearEstimate!$B$144","v":1085},{"$f":"CntyDataLinkPrior10YearEstimate!$C$144","v":144}]
[null,null,"H62ROHUGRent500to549"]
[null,null,"H62ROHUGRent550to599","Value","Housing Units","Margin of Error"]
[null,null,"H62ROHUGRent600to649","Less than $10,000",{"$f":"CntyDataLinkPrior10YearEstimate!$D$144","v":9},{"$f":"CntyDataLinkPrior10YearEstimate!$E$144","v":15}]
[null,null,"H62ROHUGRent650to699","$10,000 to $14,999",{"$f":"CntyDataLinkPrior10YearEstimate!$F$144","v":38},{"$f":"CntyDataLinkPrior10YearEstimate!$G$144","v":31}]
[null,null,"H62ROHUGRent700to749","$15,000 to $19,999",{"$f":"CntyDataLinkPrior10YearEstimate!$H$144","v":9},{"$f":"CntyDataLinkPrior10YearEstimate!$I$144","v":14}]
[null,null,"H62ROHUGRent750to799","$20,000 to $24,999",{"$f":"CntyDataLinkPrior10YearEstimate!$J$144","v":58},{"$f":"CntyDataLinkPrior10YearEstimate!$K$144","v":44}]
[null,null,"H62ROHUGRent800to899","$25,000 to $29,999",{"$f":"CntyDataLinkPrior10YearEstimate!$L$144","v":11},{"$f":"CntyDataLinkPrior10YearEstimate!$M$144","v":17}]
[null,null,"H62ROHUGRent900to999","$30,000 to $34,999",{"$f":"CntyDataLinkPrior10YearEstimate!$N$144","v":0},{"$f":"CntyDataLinkPrior10YearEstimate!$O$144","v":85}]
[null,null,"H62ROHUGRent1000to1249","$35,000 to $39,999",{"$f":"CntyDataLinkPrior10YearEstimate!$P$144","v":0},{"$f":"CntyDataLinkPrior10YearEstimate!$Q$144","v":85}]
[null,null,"H62ROHUGRent1250to1499","$40,000 to $49,999",{"$f":"CntyDataLinkPrior10YearEstimate!$R$144","v":16},{"$f":"CntyDataLinkPrior10YearEstimate!$S$144","v":19}]
[null,null,"H62ROHUGRent1500to1999","$50,000 to $59,999",{"$f":"CntyDataLinkPrior10YearEstimate!$T$144","v":0},{"$f":"CntyDataLinkPrior10YearEstimate!$U$144","v":85}]
[null,null,"H62ROHUGRent2000>","$60,000 to $69,999",{"$f":"CntyDataLinkPrior10YearEstimate!$V$144","v":26},{"$f":"CntyDataLinkPrior10YearEstimate!$W$144","v":28}]
[null,null,"H62ROHUNoGRent","$70,000 to $79,999",{"$f":"CntyDataLinkPrior10YearEstimate!$X$144","v":24},{"$f":"CntyDataLinkPrior10YearEstimate!$Y$144","v":27}]
[null,null,"H63MedianGrossRnt","$80,000 to $89,999",{"$f":"CntyDataLinkPrior10YearEstimate!$Z$144","v":36},{"$f":"CntyDataLinkPrior10YearEstimate!$AA$144","v":34}]
[null,null,null,"$90,000 to $99,999",{"$f":"CntyDataLinkPrior10YearEstimate!$AB$144","v":50},{"$f":"CntyDataLinkPrior10YearEstimate!$AC$144","v":32}]
[null,null,null,"$100,000 to $124,999",{"$f":"CntyDataLinkPrior10YearEstimate!$AD$144","v":104},{"$f":"CntyDataLinkPrior10YearEstimate!$AE$144","v":60}]
[null,null,null,"$125,000 to $149,999",{"$f":"CntyDataLinkPrior10YearEstimate!$AF$144","v":217},{"$f":"CntyDataLinkPrior10YearEstimate!$AG$144","v":87}]
[null,null,null,"$150,000 to $174,999",{"$f":"CntyDataLinkPrior10YearEstimate!$AH$144","v":134},{"$f":"CntyDataLinkPrior10YearEstimate!$AI$144","v":52}]
[null,null,null,"$175,000 to $199,999",{"$f":"CntyDataLinkPrior10YearEstimate!$AJ$144","v":76},{"$f":"CntyDataLinkPrior10YearEstimate!$AK$144","v":46}]
[null,null,null,"$200,000 to $249,999",{"$f":"CntyDataLinkPrior10YearEstimate!$AL$144","v":156},{"$f":"CntyDataLinkPrior10YearEstimate!$AM$144","v":65}]
[null,null,null,"$250,000 to $299,999",{"$f":"CntyDataLinkPrior10YearEstimate!$AN$144","v":42},{"$f":"CntyDataLinkPrior10YearEstimate!$AO$144","v":39}]
[null,null,null,"$300,000 to $399,999",{"$f":"CntyDataLinkPrior10YearEstimate!$AP$144","v":29},{"$f":"CntyDataLinkPrior10YearEstimate!$AQ$144","v":28}]
[null,null,null,"$400,000 to $499,999",{"$f":"CntyDataLinkPrior10YearEstimate!$AR$144","v":40},{"$f":"CntyDataLinkPrior10YearEstimate!$AS$144","v":31}]
[null,null,null,"$500,000 to $749,999",{"$f":"CntyDataLinkPrior10YearEstimate!$AT$144","v":0},{"$f":"CntyDataLinkPrior10YearEstimate!$AU$144","v":85}]
[null,null,null,"$750,000 to $999,999",{"$f":"CntyDataLinkPrior10YearEstimate!$AV$144","v":10},{"$f":"CntyDataLinkPrior10YearEstimate!$AW$144","v":15}]
[null,null,null,"$1,000,000 to $1,499,999",{"$f":"CntyDataLinkPrior10YearEstimate!$AX$144","v":0},{"$f":"CntyDataLinkPrior10YearEstimate!$AY$144","v":85}]
[null,null,null,"$1,500,000 to $1,999,999",{"$f":"CntyDataLinkPrior10YearEstimate!$AZ$144","v":0},{"$f":"CntyDataLinkPrior10YearEstimate!$BA$144","v":0}]
[null,null,null,"$2,000,000 or more",{"$f":"CntyDataLinkPrior10YearEstimate!$BB$144","v":0},{"$f":"CntyDataLinkPrior10YearEstimate!$BC$144","v":0}]
[]
[null,null,null,"Median Value",{"$f":"CntyDataLinkPrior10YearEstimate!$BD$144","v":143600},{"$f":"CntyDataLinkPrior10YearEstimate!$BE$144","v":9050}]
[]
[]
[]
[null,null,null,"Source: 2008-2012 American Community Survey Tables B25075 and B25077"]
[null,null,null,"Data from the American Community Survey are estimates."]

{"sheet":"ACS_Table_B25075_&_B25077","index":95,"n_rows":160,"n_cols":48,"rows_kept":160,"cut":false,"hidden":true,"merged":[]}
[null,"B25075. VALUE"]
[null,"Universe:  OWNER-OCCUPIED HOUSING UNITS"]
[null,"Data Set: 2018-2022 American Community Survey 5-Year Estimates"]
[]
[null,null,"Alstead",null,"Chesterfield",null,"Dublin",null,"Fitzwilliam",null,"Gilsum",null,"Harrisville",null,"Hinsdale",null,"Jaffrey",null,"Keene",null,"Marlborough",null,"Marlow",null,"Nelson",null,"Richmond",null,"Rindge",null,"Roxbury",null,"Stoddard",null,"Sullivan",null,"Surry",null,"Swanzey",null,"Troy",null,"Walpole",null,"Westmoreland",null,"Winchester"]
[null," ","Estimate","Margin of Error","Estimate","Margin of Error","Estimate","Margin of Error","Estimate","Margin of Error","Estimate","Margin of Error","Estimate","Margin of Error","Estimate","Margin of Error","Estimate","Margin of Error","Estimate","Margin of Error","Estimate","Margin of Error","Estimate","Margin of Error","Estimate","Margin of Error","Estimate","Margin of Error","Estimate","Margin of Error","Estimate","Margin of Error","Estimate","Margin of Error","Estimate","Margin of Error","Estimate","Margin of Error","Estimate","Margin of Error","Estimate","Margin of Error","Estimate","Margin of Error","Estimate","Margin of Error","Estimate","Margin of Error"]
[null,"Total:",507,86,1212,190,517,86,929,151,275,45,398,62,1309,163,1527,249,4957,360,633,101,270,55,223,40,381,68,1564,145,93,38,383,49,230,39,302,57,2062,206,540,108,926,134,742,151,1011,128]
[null,"Less than $10,000",13,21,0,12,0,12,0,12,0,12,3,5,0,12,0,17,101,106,6,8,0,12,0,12,0,12,11,17,0,12,0,12,0,12,2,3,0,17,29,36,7,11,0,12,8,13]
[null,"$10,000 to $14,999",5,7,0,12,0,12,0,12,0,12,6,8,74,74,0,17,102,94,5,9,0,12,0,12,0,12,0,17,0,12,0,12,0,12,0,12,0,17,0,12,7,13,0,12,35,35]
[null,"$15,000 to $19,999",5,6,0,12,1,2,0,12,2,3,0,12,55,42,0,17,0,22,6,9,0,12,0,12,0,12,0,17,2,3,0,12,3,4,0,12,15,25,0,12,0,12,0,12,21,26]
[null,"$20,000 to $24,999",7,8,0,12,0,12,0,12,0,12,3,4,44,42,0,17,32,32,0,12,0,12,3,4,2,3,0,17,0,12,0,12,1,2,0,12,0,17,0,12,0,12,0,12,11,14]
[null,"$25,000 to $29,999",0,12,15,23,44,67,0,12,0,12,0,12,30,28,0,17,14,20,17,23,0,12,1,2,2,4,0,17,0,12,0,12,9,13,0,12,0,17,0,12,0,12,0,12,32,34]
[null,"$30,000 to $34,999",0,12,0,12,0,12,0,12,0,12,0,12,53,48,25,29,133,123,0,12,0,12,0,12,0,12,0,17,0,12,0,12,0,12,0,12,93,89,0,12,0,12,0,12,44,39]
[null,"$35,000 to $39,999",0,12,0,12,0,12,0,12,0,12,0,12,9,15,0,17,22,39,0,12,0,12,0,12,0,12,0,17,0,12,0,12,0,12,0,12,117,81,0,12,0,12,0,12,0,12]
[null,"$40,000 to $49,999",16,21,0,12,0,12,4,5,0,12,0,12,0,12,0,17,0,22,10,11,0,12,0,12,2,3,34,40,0,12,0,12,4,4,0,12,17,35,6,8,5,9,0,12,12,17]
[null,"$50,000 to $59,999",0,12,15,23,0,12,6,8,2,3,0,12,9,14,0,17,0,22,0,12,0,12,0,12,0,12,9,13,0,12,3,4,10,10,0,12,15,25,0,12,6,10,0,12,0,12]
[null,"$60,000 to $69,999",15,20,18,28,0,12,17,24,5,8,0,12,33,33,0,17,4,8,0,12,0,12,0,12,0,12,15,24,2,4,0,12,3,5,2,3,35,49,7,11,7,10,3,5,0,12]
[null,"$70,000 to $79,999",0,12,0,12,0,12,4,5,16,13,0,12,24,23,0,17,31,26,17,22,0,12,2,3,0,12,16,19,0,12,0,12,0,12,0,12,0,17,0,12,28,33,0,12,28,24]
[null,"$80,000 to $89,999",20,15,0,12,0,12,22,22,8,8,5,9,20,21,14,22,26,32,8,14,1,4,0,12,3,4,5,9,0,12,4,5,4,5,0,12,15,24,33,29,6,9,0,12,37,34]
[null,"$90,000 to $99,999",2,3,60,72,9,8,4,7,11,12,0,12,45,51,10,21,48,38,6,8,4,5,0,12,5,7,7,12,1,2,12,13,0,12,2,3,22,38,29,29,0,12,0,12,35,29]
[null,"$100,000 to $124,999",63,59,18,28,5,6,43,31,12,8,7,12,70,60,59,47,221,109,29,27,24,14,12,13,13,15,36,35,2,4,8,6,15,10,17,14,85,55,47,31,17,16,8,8,55,44]
[null,"$125,000 to $149,999",6,9,51,47,11,13,89,92,20,14,15,14,189,94,54,47,313,127,39,23,18,13,8,8,14,9,24,23,15,10,15,13,23,17,11,8,123,75,81,42,86,52,22,20,168,94]
[null,"$150,000 to $174,999",54,31,94,77,9,7,93,40,27,15,30,17,236,123,489,277,879,267,49,30,40,18,21,11,62,30,107,55,12,8,43,21,28,12,38,21,305,105,95,40,33,27,19,13,85,58]
[null,"$175,000 to $199,999",43,35,119,77,29,21,69,33,46,25,18,15,67,58,239,143,752,233,73,43,28,18,17,15,25,14,96,51,2,6,41,21,34,15,51,32,185,101,76,45,135,74,50,31,91,52]
[null,"$200,000 to $249,999",70,32,228,123,54,25,206,74,53,20,78,31,226,158,277,126,1048,229,120,70,33,21,28,15,88,39,352,96,6,5,56,22,50,28,50,22,482,180,74,39,115,60,131,60,240,107]
[null,"$250,000 to $299,999",73,27,150,114,73,31,212,67,47,21,72,32,85,58,252,127,493,131,86,45,24,17,26,15,96,41,383,95,10,7,72,23,23,10,54,28,320,173,15,13,132,57,185,83,58,45]
[null,"$300,000 to $399,999",85,28,323,158,140,40,81,36,19,8,43,22,24,27,62,49,459,149,100,48,75,42,40,17,52,28,184,87,3,4,88,34,7,5,44,25,233,93,32,21,237,105,220,116,28,24]
[null,"$400,000 to $499,999",21,13,71,87,31,17,61,35,4,6,68,39,0,12,46,55,231,109,46,31,17,13,16,12,15,13,153,86,2,4,26,18,5,8,20,16,0,17,2,5,39,39,41,24,23,26]
[null,"$500,000 to $749,999",0,12,50,48,49,22,15,18,3,4,25,14,16,24,0,17,34,30,11,12,2,3,18,12,2,4,100,48,31,35,9,9,6,7,9,6,0,17,9,13,35,32,34,22,0,12]
[null,"$750,000 to $999,999",9,9,0,12,41,53,3,5,0,12,24,16,0,12,0,17,10,17,5,8,0,12,18,12,0,12,11,16,0,12,3,4,0,12,0,12,0,17,0,12,31,30,29,21,0,12]
[null,"$1,000,000 to $1,499,999",0,12,0,12,21,19,0,12,0,12,1,4,0,12,0,17,0,22,0,12,0,12,11,10,0,12,0,17,2,3,3,4,0,12,0,12,0,17,5,8,0,12,0,12,0,12]
[null,"$1,500,000 to $1,999,999",0,12,0,12,0,12,0,12,0,12,0,12,0,12,0,17,0,22,0,12,0,12,2,4,0,12,11,17,0,12,0,12,0,12,2,4,0,17,0,12,0,12,0,12,0,12]
[null,"$2,000,000 or more",0,12,0,12,0,12,0,12,0,12,0,12,0,12,0,17,4,7,0,12,4,4,0,12,0,12,10,17,3,4,0,12,5,8,0,12,0,17,0,12,0,12,0,12,0,12]
[]
[]
[null,"B25077.MEDIAN VALUE (Dollars)"]
[null,"Universe:  OWNER-OCCUPIED HOUSING UNITS"]
[null,"Data Set: 2018-2022 American Community Survey 5-Year Estimates"]
[]
[null,null,"Alstead",null,"Chesterfield",null,"Dublin",null,"Fitzwilliam",null,"Gilsum",null,"Harrisville",null,"Hinsdale",null,"Jaffrey",null,"Keene",null,"Marlborough",null,"Marlow",null,"Nelson",null,"Richmond",null,"Rindge",null,"Roxbury",null,"Stoddard",null,"Sullivan",null,"Surry",null,"Swanzey",null,"Troy",null,"Walpole",null,"Westmoreland",null,"Winchester"]
[null," ","Estimate","Margin of Error","Estimate","Margin of Error","Estimate","Margin of Error","Estimate","Margin of Error","Estimate","Margin of Error","Estimate","Margin of Error","Estimate","Margin of Error","Estimate","Margin of Error","Estimate","Margin of Error","Estimate","Margin of Error","Estimate","Margin of Error","Estimate","Margin of Error","Estimate","Margin of Error","Estimate","Margin of Error","Estimate","Margin of Error","Estimate","Margin of Error","Estimate","Margin of Error","Estimate","Margin of Error","Estimate","Margin of Error","Estimate","Margin of Error","Estimate","Margin of Error","Estimate","Margin of Error","Estimate","Margin of Error"]
[]
[null,"Median value (dollars)",203200,30561,247400,39006,316800,42520,227500,17369,193800,15353,273600,25406,149900,15993,186800,20134,193400,8484,221500,21036,230300,41355,287500,53368,235500,21424,259100,12497,272500,237632,256600,22963,186000,16421,228000,25902,200400,19507,160000,15245,254200,36839,287300,19320,155700,26376]
[]
[]
[]
[]
[]
[]
[]
[]
[]
[]
[]
[]
[]
[]
[]
[]
[]
[]
[]
[]
[]
[]
[]
[]
[]
[]
[null,"B25075. VALUE"]
[null,"Universe:  OWNER-OCCUPIED HOUSING UNITS"]
[null,"Data Set: 2013-2017 American Community Survey 5-Year Estimates"]
[]
[null,null,"Alstead",null,"Chesterfield",null,"Dublin",null,"Fitzwilliam",null,"Gilsum",null,"Harrisville",null,"Hinsdale",null,"Jaffrey",null,"Keene",null,"Marlborough",null,"Marlow",null,"Nelson",null,"Richmond",null,"Rindge",null,"Roxbury",null,"Stoddard",null,"Sullivan",null,"Surry",null,"Swanzey",null,"Troy",null,"Walpole",null,"Westmoreland",null,"Winchester"]
[null," ","Estimate","Margin of Error","Estimate","Margin of Error","Estimate","Margin of Error","Estimate","Margin of Error","Estimate","Margin of Error","Estimate","Margin of Error","Estimate","Margin of Error","Estimate","Margin of Error","Estimate","Margin of Error","Estimate","Margin of Error","Estimate","Margin of Error","Estimate","Margin of Error","Estimate","Margin of Error","Estimate","Margin of Error","Estimate","Margin of Error","Estimate","Margin of Error","Estimate","Margin of Error","Estimate","Margin of Error","Estimate","Margin of Error","Estimate","Margin of Error","Estimate","Margin of Error","Estimate","Margin of Error","Estimate","Margin of Error"]
[null,"Total:",552,75,1218,141,462,54,873,93,257,35,374,47,1316,134,5072,283,4950,273,610,90,255,40,186,35,391,53,1483,153,72,27,440,57,232,46,341,45,2124,201,663,75,1301,105,602,81,1225,174]
[null,"Less than $10,000",0,11,0,11,7,7,4,6,0,11,0,11,71,51,132,72,134,76,21,26,8,7,5,5,0,11,0,16,1,3,3,4,0,11,0,11,0,16,34,32,19,30,4,6,16,18]
[null,"$10,000 to $14,999",9,9,0,11,10,15,0,11,0,11,3,4,28,25,75,54,86,67,6,9,1,4,0,11,0,11,0,16,0,11,0,11,0,11,0,11,58,65,6,8,0,11,0,11,39,32]
[null,"$15,000 to $19,999",0,11,15,22,0,11,14,22,0,11,0,11,97,65,110,88,102,87,5,8,0,11,0,11,0,11,12,17,0,11,4,5,0,11,0,11,23,27,15,24,0,11,0,11,64,62]
[null,"$20,000 to $24,999",0,11,0,11,0,11,23,27,2,3,0,11,39,33,17,29,24,25,5,7,3,5,0,11,0,11,18,20,0,11,0,11,0,11,0,11,50,42,23,29,0,11,11,10,14,22]
[null,"$25,000 to $29,999",0,11,0,11,3,5,0,11,0,11,3,5,0,11,19,26,30,33,18,30,0,11,0,11,0,11,9,13,0,11,0,11,0,11,0,11,0,16,26,34,0,11,0,11,53,73]
[null,"$30,000 to $34,999",0,11,0,11,0,11,0,11,0,11,0,11,0,11,30,36,73,77,0,11,0,11,0,11,0,11,10,15,0,11,0,11,0,11,0,11,68,79,0,11,0,11,0,11,62,59]
[null,"$35,000 to $39,999",0,11,0,11,0,11,0,11,0,11,0,11,19,20,44,53,8,14,0,11,0,11,0,11,0,11,0,16,0,11,0,11,0,11,0,11,40,35,0,11,0,11,7,9,11,18]
[null,"$40,000 to $49,999",0,11,0,11,0,11,30,25,0,11,0,11,0,11,67,61,57,53,18,28,3,4,0,11,9,13,7,12,0,11,0,11,2,3,0,11,52,41,0,11,0,11,0,11,36,32]
[null,"$50,000 to $59,999",5,6,14,20,3,4,4,7,12,7,0,11,9,13,11,17,12,18,4,6,5,5,5,5,0,11,8,12,0,11,0,11,0,11,2,3,12,19,0,11,0,11,0,11,36,42]
[null,"$60,000 to $69,999",5,8,13,20,0,11,22,30,0,11,0,11,28,21,0,21,0,20,0,11,6,9,0,11,0,11,0,16,1,3,0,11,3,4,5,5,0,16,19,23,11,17,3,4,9,14]
[null,"$70,000 to $79,999",16,12,22,33,0,11,6,9,2,3,0,11,42,33,19,19,21,26,0,11,2,3,1,4,5,7,11,16,1,3,8,13,3,4,6,5,0,16,5,8,0,11,0,11,18,19]
[null,"$80,000 to $89,999",4,6,29,30,0,11,16,13,4,4,3,4,34,47,89,57,60,42,0,11,4,4,2,3,23,18,14,16,2,4,4,5,16,11,10,12,30,33,29,25,41,50,0,11,37,37]
[null,"$90,000 to $99,999",0,11,0,11,0,11,39,35,3,4,6,6,31,29,33,29,35,33,5,8,3,5,0,11,4,6,22,26,1,3,10,8,1,4,0,11,46,55,5,7,33,29,0,11,43,31]
[null,"$100,000 to $124,999",44,19,0,11,12,14,81,37,16,8,11,13,215,91,303,123,301,109,25,18,8,7,15,14,16,13,36,39,2,3,14,10,6,7,7,5,147,82,76,44,130,64,14,11,170,77]
[null,"$125,000 to $149,999",66,34,104,83,14,15,82,29,30,15,32,18,131,60,534,123,458,121,51,19,38,16,10,7,25,16,24,24,14,9,9,8,28,17,22,18,286,114,63,24,12,13,9,13,125,66]
[null,"$150,000 to $174,999",85,40,68,53,11,9,143,49,45,18,22,16,288,96,883,200,864,165,75,32,72,26,6,5,103,42,142,60,14,10,47,28,43,17,58,27,362,143,140,54,146,68,55,27,162,64]
[null,"$175,000 to $199,999",45,18,68,52,17,15,46,21,31,13,28,14,62,51,627,191,635,137,72,39,11,7,7,8,39,20,193,84,12,7,76,36,25,14,39,17,290,110,82,47,189,71,74,26,66,61]
[null,"$200,000 to $249,999",116,46,152,77,134,41,109,43,53,19,70,22,106,50,868,186,765,166,123,47,63,24,38,16,92,34,356,112,3,3,96,39,46,21,77,29,292,100,77,42,264,106,99,28,155,77]
[null,"$250,000 to $299,999",31,15,200,96,75,31,155,48,30,12,46,17,80,68,617,135,715,172,52,29,17,13,26,16,42,15,289,95,9,5,57,23,30,12,45,15,177,85,22,19,158,62,102,40,57,41]
[null,"$300,000 to $399,999",74,37,377,138,63,23,62,30,21,10,76,29,9,14,421,112,453,105,64,38,4,5,26,11,26,14,153,59,4,9,64,30,19,9,45,19,145,92,17,15,234,83,127,38,52,52]
[null,"$400,000 to $499,999",34,24,74,55,49,26,14,14,8,7,37,19,8,13,97,53,43,33,33,22,4,4,7,7,4,6,92,57,2,5,20,11,2,3,21,15,18,28,4,7,11,16,42,20,0,11]
[null,"$500,000 to $749,999",8,9,28,32,49,21,8,8,0,11,28,20,19,29,49,45,45,39,24,29,0,11,24,17,0,11,73,57,3,4,21,13,2,3,2,3,28,42,0,11,25,26,43,22,0,11]
[null,"$750,000 to $999,999",5,6,41,36,7,6,15,24,0,11,6,6,0,11,9,15,10,15,4,7,3,4,4,4,0,11,0,16,1,3,4,5,2,3,0,11,0,16,0,11,28,26,6,9,0,11]
[null,"$1,000,000 or more",5,7,13,22,2,4,0,11,0,11,3,4,0,11,11,17,11,19,0,11,0,11,5,6,3,4,0,16,2,4,3,4,4,4,0,11,0,16,11,11,0,11,3,6,0,11]
[null,null,0,11,0,11,0,11,0,11,0,11,0,11,0,11,0,21,0,20,5,7,0,11,3,4,0,11,0,16,0,11,0,11,0,11,2,3,0,16,0,11,0,11,3,5,0,11]
[null,null,0,11,0,11,6,6,0,11,0,11,0,11,0,11,7,11,8,13,0,11,0,11,2,3,0,11,14,16,0,11,0,11,0,11,0,11,0,16,9,16,0,11,0,11,0,11]
[]
[]
[null,"B25077.MEDIAN VALUE (Dollars)"]
[null,"Universe:  OWNER-OCCUPIED HOUSING UNITS"]
[null,"Data Set: 2013-2017 American Community Survey 5-Year Estimates"]
[]
[null,null,"Alstead",null,"Chesterfield",null,"Dublin",null,"Fitzwilliam",null,"Gilsum",null,"Harrisville",null,"Hinsdale",null,"Jaffrey",null,"Keene",null,"Marlborough",null,"Marlow",null,"Nelson",null,"Richmond",null,"Rindge",null,"Roxbury",null,"Stoddard",null,"Sullivan",null,"Surry",null,"Swanzey",null,"Troy",null,"Walpole",null,"Westmoreland",null,"Winchester"]
[null," ","Estimate","Margin of Error","Estimate","Margin of Error","Estimate","Margin of Error","Estimate","Margin of Error","Estimate","Margin of Error","Estimate","Margin of Error","Estimate","Margin of Error","Estimate","Margin of Error","Estimate","Margin of Error","Estimate","Margin of Error","Estimate","Margin of Error","Estimate","Margin of Error","Estimate","Margin of Error","Estimate","Margin of Error","Estimate","Margin of Error","Estimate","Margin of Error","Estimate","Margin of Error","Estimate","Margin of Error","Estimate","Margin of Error","Estimate","Margin of Error","Estimate","Margin of Error","Estimate","Margin of Error","Estimate","Margin of Error"]
[]
[null,"Median value (dollars)",198300,22231,281000,33167,263300,22775,170200,12105,186700,14214,259800,26355,133600,19949,181800,8193,183300,8033,200000,16980,166100,6485,257700,30684,181700,21394,233100,12426,175000,16168,223400,14856,189000,20823,214000,16986,167300,11226,155400,9968,213200,18788,262300,19029,125900,18248]
[]
[]
[]
[]
[]
[null,"B25075. VALUE"]
[null,"Universe:  OWNER-OCCUPIED HOUSING UNITS"]
[null,"Data Set: 2008-2012 American Community Survey 5-Year Estimates"]
[]
[null,null,"Alstead",null,"Chesterfield",null,"Dublin",null,"Fitzwilliam",null,"Gilsum",null,"Harrisville",null,"Hinsdale",null,"Jaffrey",null,"Keene",null,"Marlborough",null,"Marlow",null,"Nelson",null,"Richmond",null,"Rindge",null,"Roxbury",null,"Stoddard",null,"Sullivan",null,"Surry",null,"Swanzey",null,"Troy",null,"Walpole",null,"Westmoreland",null,"Winchester"]
[null," ","Estimate","Margin of Error","Estimate","Margin of Error","Estimate","Margin of Error","Estimate","Margin of Error","Estimate","Margin of Error","Estimate","Margin of Error","Estimate","Margin of Error","Estimate","Margin of Error","Estimate","Margin of Error","Estimate","Margin of Error","Estimate","Margin of Error","Estimate","Margin of Error","Estimate","Margin of Error","Estimate","Margin of Error","Estimate","Margin of Error","Estimate","Margin of Error","Estimate","Margin of Error","Estimate","Margin of Error","Estimate","Margin of Error","Estimate","Margin of Error","Estimate","Margin of Error","Estimate","Margin of Error","Estimate","Margin of Error"]
[null,"Total:",599,75,1259,129,477,65,918,106,232,41,348,54,1314,168,1628,178,5115,354,586,80,306,59,258,47,378,60,1378,186,83,19,376,60,217,44,294,44,2328,176,540,66,1015,123,607,79,1085,144]
[null,"Less than $10,000",0,85,0,85,9,12,0,85,0,85,8,11,130,77,0,85,14,23,0,85,4,5,0,85,0,85,33,32,0,85,0,85,3,4,0,85,11,17,0,85,4,8,3,6,9,15]
[null,"$10,000 to $14,999",13,14,0,85,0,85,0,85,0,85,0,85,46,38,0,85,49,41,0,85,0,85,0,85,0,85,0,85,0,85,4,6,0,85,0,85,29,32,0,85,8,13,0,85,38,31]
[null,"$15,000 to $19,999",8,9,13,20,0,85,0,85,0,85,0,85,43,40,0,85,16,25,0,85,3,5,0,85,3,4,0,85,0,85,0,85,0,85,0,85,34,32,26,21,0,85,0,85,9,14]
[null,"$20,000 to $24,999",4,5,0,85,0,85,10,11,0,85,0,85,0,85,38,35,104,74,0,85,0,85,0,85,0,85,0,85,0,85,0,85,0,85,0,85,20,25,4,6,0,85,0,85,58,44]
[null,"$25,000 to $29,999",3,5,16,23,0,85,0,85,0,85,0,85,42,30,48,56,59,49,7,10,0,85,0,85,2,4,0,85,0,85,0,85,0,85,0,85,35,32,4,6,0,85,2,5,11,17]
[null,"$30,000 to $34,999",11,11,0,85,0,85,5,8,0,85,3,4,23,26,27,39,23,26,0,85,0,85,0,85,0,85,39,42,0,85,0,85,0,85,0,85,0,85,8,12,0,85,3,4,0,85]
[null,"$35,000 to $39,999",0,85,0,85,0,85,0,85,0,85,0,85,0,85,14,22,31,33,0,85,0,85,0,85,0,85,0,85,0,85,0,85,0,85,0,85,0,85,0,85,0,85,0,85,0,85]
[null,"$40,000 to $49,999",0,85,0,85,0,85,12,13,2,3,3,4,34,32,11,17,26,29,0,85,0,85,0,85,2,4,28,26,0,85,0,85,2,3,0,85,9,16,4,7,0,85,0,85,16,19]
[null,"$50,000 to $59,999",0,85,0,85,3,4,6,10,0,85,3,4,0,85,13,22,29,33,0,85,11,10,0,85,0,85,26,36,0,85,0,85,0,85,0,85,29,33,0,85,0,85,0,85,0,85]
[null,"$60,000 to $69,999",3,4,18,26,0,85,0,85,0,85,0,85,0,85,0,85,0,85,5,8,7,9,0,85,0,85,9,14,0,85,4,5,0,85,0,85,0,85,9,13,0,85,0,85,26,28]
[null,"$70,000 to $79,999",13,9,0,85,0,85,50,48,33,22,3,6,30,35,0,85,0,85,5,8,0,85,0,85,0,85,3,7,2,3,0,85,5,6,0,85,46,40,7,10,15,17,0,85,24,27]
[null,"$80,000 to $89,999",28,20,21,30,0,85,12,11,10,12,0,85,41,31,0,85,42,39,0,85,5,5,0,85,3,4,26,26,0,85,3,6,3,5,3,4,15,25,22,21,4,8,0,85,36,34]
[null,"$90,000 to $99,999",19,13,0,85,0,85,42,35,13,15,0,85,8,13,49,48,29,28,31,38,4,5,6,9,13,10,0,85,1,3,5,6,13,10,0,85,32,50,13,13,16,24,0,85,50,32]
[null,"$100,000 to $124,999",14,10,39,36,4,6,37,23,9,10,3,4,134,77,37,35,206,94,40,23,25,22,2,3,12,14,41,46,6,7,16,15,7,7,8,10,224,113,16,13,46,37,20,13,104,60]
[null,"$125,000 to $149,999",23,14,31,33,14,14,95,48,23,18,7,7,233,93,64,58,453,132,50,30,30,19,13,15,41,22,57,42,1,2,24,21,7,8,18,15,198,102,78,43,35,35,21,19,217,87]
[null,"$150,000 to $174,999",95,39,148,87,34,24,91,42,34,18,13,11,173,59,198,103,698,175,94,38,44,24,16,11,60,28,103,56,13,8,34,19,44,18,41,25,231,88,142,47,110,46,36,19,134,52]
[null,"$175,000 to $199,999",75,31,148,77,21,19,118,62,22,11,25,12,197,86,205,102,856,163,71,37,55,31,29,21,25,13,118,54,3,4,30,20,19,11,21,13,327,123,74,36,105,58,59,25,76,46]
[null,"$200,000 to $249,999",90,34,155,70,85,31,122,42,59,24,69,30,88,59,294,119,898,205,106,42,27,12,54,23,92,40,262,90,13,8,82,38,56,29,67,21,578,170,41,20,210,79,146,43,156,65]
[null,"$250,000 to $299,999",108,42,202,84,112,36,192,72,15,11,73,25,36,28,241,101,540,119,86,49,71,47,37,24,69,29,240,88,16,11,43,22,8,9,76,26,299,105,23,26,205,103,71,30,42,39]
[null,"$300,000 to $399,999",70,30,254,108,116,43,59,31,4,7,81,33,44,44,166,77,678,186,59,29,15,11,33,17,37,26,198,89,7,7,67,29,26,17,41,21,179,102,29,20,106,56,144,39,29,28]
[null,"$400,000 to $499,999",4,5,147,65,41,22,8,11,5,8,9,7,12,19,117,76,154,68,0,85,3,4,18,16,13,15,71,41,15,12,29,19,15,13,7,6,12,19,17,16,60,39,47,27,40,31]
[null,"$500,000 to $749,999",0,85,0,85,29,22,28,21,3,4,34,22,0,85,78,43,91,50,32,25,0,85,28,20,6,7,87,45,4,7,35,18,6,6,10,9,20,31,9,13,34,29,55,22,0,85]
[null,"$750,000 to $999,999",18,19,42,47,0,85,8,11,0,85,6,6,0,85,13,20,36,31,0,85,0,85,18,12,0,85,29,28,0,85,0,85,0,85,2,5,0,85,14,15,35,29,0,85,10,15]
[null,"$1,000,000 or more",0,85,25,29,9,13,23,30,0,85,8,11,0,85,15,24,83,68,0,85,2,3,4,6,0,85,8,13,2,4,0,85,3,4,0,85,0,85,0,85,22,27,0,85,0,85]
[]
[]
[]
[]
[null,"B25077.MEDIAN VALUE (Dollars)"]
[null,"Universe:  OWNER-OCCUPIED HOUSING UNITS"]
[null,"Data Set: 2008-2012 American Community Survey 5-Year Estimates"]
[]
[null,null,"Alstead",null,"Chesterfield",null,"Dublin",null,"Fitzwilliam",null,"Gilsum",null,"Harrisville",null,"Hinsdale",null,"Jaffrey",null,"Keene",null,"Marlborough",null,"Marlow",null,"Nelson",null,"Richmond",null,"Rindge",null,"Roxbury",null,"Stoddard",null,"Sullivan",null,"Surry",null,"Swanzey",null,"Troy",null,"Walpole",null,"Westmoreland",null,"Winchester"]
[null," ","Estimate","Margin of Error","Estimate","Margin of Error","Estimate","Margin of Error","Estimate","Margin of Error","Estimate","Margin of Error","Estimate","Margin of Error","Estimate","Margin of Error","Estimate","Margin of Error","Estimate","Margin of Error","Estimate","Margin of Error","Estimate","Margin of Error","Estimate","Margin of Error","Estimate","Margin of Error","Estimate","Margin of Error","Estimate","Margin of Error","Estimate","Margin of Error","Estimate","Margin of Error","Estimate","Margin of Error","Estimate","Margin of Error","Estimate","Margin of Error","Estimate","Margin of Error","Estimate","Margin of Error","Estimate","Margin of Error"]
[]
[null,"Median value (dollars)",196800,14816,260000,25883,280600,17602,196000,18746,169100,19575,275300,21978,138500,10903,218700,19901,197700,7816,196500,18673,184100,16318,262200,36963,215200,18169,239300,21372,257800,39077,241500,19154,204900,19415,241800,19378,194200,13031,163900,8219,239200,19846,259500,26727,143600,9050]

{"sheet":"ACS_Table_B25088","index":96,"n_rows":62,"n_cols":48,"rows_kept":62,"cut":false,"hidden":true,"merged":[]}
[null,"B25088. MEDIAN SELECTED MONTHLY OWNER COSTS  BY MORTGAGE STATUS"]
[null,"Universe:  OWNER-OCCUPIED HOUSING UNITS"]
[null,"Data Set: 2018-2022 American Community Survey 5-Year Estimates"]
[]
[null,null,"Alstead",null,"Chesterfield",null,"Dublin",null,"Fitzwilliam",null,"Gilsum",null,"Harrisville",null,"Hinsdale",null,"Jaffrey",null,"Keene",null,"Marlborough",null,"Marlow",null,"Nelson",null,"Richmond",null,"Rindge",null,"Roxbury",null,"Stoddard",null,"Sullivan",null,"Surry",null,"Swanzey",null,"Troy",null,"Walpole",null,"Westmoreland",null,"Winchester"]
[null," ","Estimate","Margin of Error","Estimate","Margin of Error","Estimate","Margin of Error","Estimate","Margin of Error","Estimate","Margin of Error","Estimate","Margin of Error","Estimate","Margin of Error","Estimate","Margin of Error","Estimate","Margin of Error","Estimate","Margin of Error","Estimate","Margin of Error","Estimate","Margin of Error","Estimate","Margin of Error","Estimate","Margin of Error","Estimate","Margin of Error","Estimate","Margin of Error","Estimate","Margin of Error","Estimate","Margin of Error","Estimate","Margin of Error","Estimate","Margin of Error","Estimate","Margin of Error","Estimate","Margin of Error","Estimate","Margin of Error"]
[null,"Median selected monthly owner costs (dollars)"]
[null,"Total:",1059,265,1701,263,1348,243,1361,82,1348,376,1314,233,954,223,1452,232,1492,143,1436,333,1298,145,1457,159,1497,230,1817,167,1472,642,1373,129,1122,138,1571,246,1524,147,1394,230,1307,296,1591,364,1402,201]
[null,"Housing units with a mortgage (dollars)",1812,100,1900,115,1948,345,1622,349,1747,225,1862,225,1608,104,1767,208,1925,93,1842,64,1772,176,1852,154,1982,265,2103,152,1661,294,1610,112,1613,213,2073,155,1784,107,1764,149,1709,157,2131,219,1731,130]
[null,"Housing units without a mortgage (dollars)",737,47,839,215,1039,97,796,88,722,44,834,93,751,25,813,129,929,54,881,158,713,223,969,266,679,145,895,81,1150,922,547,90,707,85,747,126,861,118,700,152,949,56,931,38,714,133]
[]
[]
[]
[]
[]
[]
[]
[]
[]
[]
[]
[]
[]
[]
[]
[]
[]
[]
[]
[]
[]
[]
[]
[]
[]
[]
[]
[]
[]
[null,"B25088. MEDIAN SELECTED MONTHLY OWNER COSTS BY MORTGAGE STATUS"]
[null,"Universe:  OWNER-OCCUPIED HOUSING UNITS"]
[null,"Data Set: 2013-2017 American Community Survey 5-Year Estimates"]
[]
[null,null,"Alstead",null,"Chesterfield",null,"Dublin",null,"Fitzwilliam",null,"Gilsum",null,"Harrisville",null,"Hinsdale",null,"Jaffrey",null,"Keene",null,"Marlborough",null,"Marlow",null,"Nelson",null,"Richmond",null,"Rindge",null,"Roxbury",null,"Stoddard",null,"Sullivan",null,"Surry",null,"Swanzey",null,"Troy",null,"Walpole",null,"Westmoreland",null,"Winchester"]
[null," ","Estimate","Margin of Error","Estimate","Margin of Error","Estimate","Margin of Error","Estimate","Margin of Error","Estimate","Margin of Error","Estimate","Margin of Error","Estimate","Margin of Error","Estimate","Margin of Error","Estimate","Margin of Error","Estimate","Margin of Error","Estimate","Margin of Error","Estimate","Margin of Error","Estimate","Margin of Error","Estimate","Margin of Error","Estimate","Margin of Error","Estimate","Margin of Error","Estimate","Margin of Error","Estimate","Margin of Error","Estimate","Margin of Error","Estimate","Margin of Error","Estimate","Margin of Error","Estimate","Margin of Error","Estimate","Margin of Error"]
[null,"Median selected monthly owner costs (dollars)"]
[null,"Total:",1270,113,1674,230,1311,161,1143,153,1303,120,1121,191,1060,115,1391,77,1344,95,1250,229,1232,206,1483,223,1247,223,1443,106,1125,208,1207,155,1147,154,1311,119,1228,170,952,215,1196,187,1439,193,962,132]
[null,"Housing units with a mortgage (dollars)",1500,121,1908,120,1737,205,1516,105,1555,89,1614,89,1316,63,1716,52,1733,76,1703,149,1468,84,1700,188,1648,79,1750,126,1411,238,1524,112,1646,147,1567,131,1455,76,1486,180,1643,115,1808,111,1470,144]
[null,"Housing units without a mortgage (dollars)",708,90,729,69,867,165,705,125,629,76,671,76,639,66,865,56,872,48,724,139,582,101,780,213,608,54,773,65,735,52,597,74,723,106,680,87,735,56,653,48,717,131,830,45,640,51]
[]
[]
[]
[null,"B25088. MEDIAN SELECTED MONTHLY OWNER COSTS BY MORTGAGE STATUS"]
[null,"Universe:  OWNER-OCCUPIED HOUSING UNITS"]
[null,"Data Set: 2008-2012 American Community Survey 5-Year Estimates"]
[]
[null,null,"Alstead",null,"Chesterfield",null,"Dublin",null,"Fitzwilliam",null,"Gilsum",null,"Harrisville",null,"Hinsdale",null,"Jaffrey",null,"Keene",null,"Marlborough",null,"Marlow",null,"Nelson",null,"Richmond",null,"Rindge",null,"Roxbury",null,"Stoddard",null,"Sullivan",null,"Surry",null,"Swanzey",null,"Troy",null,"Walpole",null,"Westmoreland",null,"Winchester"]
[null," ","Estimate","Margin of Error","Estimate","Margin of Error","Estimate","Margin of Error","Estimate","Margin of Error","Estimate","Margin of Error","Estimate","Margin of Error","Estimate","Margin of Error","Estimate","Margin of Error","Estimate","Margin of Error","Estimate","Margin of Error","Estimate","Margin of Error","Estimate","Margin of Error","Estimate","Margin of Error","Estimate","Margin of Error","Estimate","Margin of Error","Estimate","Margin of Error","Estimate","Margin of Error","Estimate","Margin of Error","Estimate","Margin of Error","Estimate","Margin of Error","Estimate","Margin of Error","Estimate","Margin of Error","Estimate","Margin of Error"]
[null,"Median selected monthly owner costs (dollars)"]
[null,"Total:",1141,113,1381,177,1408,187,1320,96,992,205,1117,217,1029,144,1459,151,1398,75,1186,185,1156,159,1366,202,1385,194,1464,114,1354,242,1135,107,1235,183,1387,226,1326,146,1371,287,1417,227,1554,212,1190,146]
[null,"Housing units with a mortgage (dollars)",1439,156,2179,188,1740,195,1514,113,1460,136,1456,76,1430,102,1719,124,1785,121,1602,238,1711,512,1917,213,1625,120,1765,152,1578,250,1531,175,1488,290,1904,146,1681,163,1682,114,1728,274,1888,144,1438,101]
[null,"Housing units without a mortgage (dollars)",571,40,805,167,"1,000+","***",635,50,713,52,620,46,665,30,821,168,870,40,714,89,538,41,593,69,638,112,700,250,781,98,539,40,663,79,709,50,704,78,585,123,648,134,664,58,719,66]

{"sheet":"ACS_Table_B25091","index":97,"n_rows":219,"n_cols":48,"rows_kept":219,"cut":false,"hidden":true,"merged":[]}
[null,"B25091. MORTGAGE STATUS BY SELECTED MONTHLY OWNER COSTS AS A PERCENTAGE OF HOUSEHOLD INCOME IN THE PAST 12 MONTHS "]
[null,"Universe:  OWNER-OCCUPIED HOUSING UNITS"]
[null,"Data Set: 2018-2022 American Community Survey 5-Year Estimates"]
[]
[null,null,"Alstead",null,"Chesterfield",null,"Dublin",null,"Fitzwilliam",null,"Gilsum",null,"Harrisville",null,"Hinsdale",null,"Jaffrey",null,"Keene",null,"Marlborough",null,"Marlow",null,"Nelson",null,"Richmond",null,"Rindge",null,"Roxbury",null,"Stoddard",null,"Sullivan",null,"Surry",null,"Swanzey",null,"Troy",null,"Walpole",null,"Westmoreland",null,"Winchester"]
[null," ","Estimate","Margin of Error","Estimate","Margin of Error","Estimate","Margin of Error","Estimate","Margin of Error","Estimate","Margin of Error","Estimate","Margin of Error","Estimate","Margin of Error","Estimate","Margin of Error","Estimate","Margin of Error","Estimate","Margin of Error","Estimate","Margin of Error","Estimate","Margin of Error","Estimate","Margin of Error","Estimate","Margin of Error","Estimate","Margin of Error","Estimate","Margin of Error","Estimate","Margin of Error","Estimate","Margin of Error","Estimate","Margin of Error","Estimate","Margin of Error","Estimate","Margin of Error","Estimate","Margin of Error","Estimate","Margin of Error"]
[null,"Total:",507,86,1227,184,530,99,957,154,285,50,386,73,1373,192,1580,229,4762,346,608,113,279,56,225,42,383,72,1711,137,94,38,405,49,240,46,324,59,2237,250,525,81,945,130,787,179,1052,163]
[null,"Housing units with a mortgage:",256,71,865,189,271,82,601,148,171,44,199,60,606,128,1160,264,2504,324,361,98,127,37,108,25,252,63,1190,143,39,18,294,44,142,40,196,52,1465,251,329,77,517,106,474,118,651,120]
[null,"Less than 10.0 percent",10,9,41,41,7,7,19,25,11,9,9,9,74,75,83,96,115,76,15,16,5,5,15,10,4,5,36,43,11,11,30,20,14,13,11,11,77,85,8,12,18,19,31,23,73,68]
[null,"10.0 to 14.9 percent",33,21,168,110,74,71,64,37,10,8,37,34,83,60,203,114,285,134,38,27,17,13,5,5,19,12,225,94,4,4,43,17,35,22,48,34,207,130,51,31,120,58,47,29,48,36]
[null,"15.0 to 19.9 percent",44,20,162,84,68,27,112,94,47,22,29,16,130,72,142,116,671,210,124,48,33,18,16,12,66,36,248,97,7,5,57,26,14,9,50,27,364,169,58,38,63,36,55,30,178,86]
[null,"20.0 to 24.9 percent",38,24,190,123,26,19,55,26,32,17,48,27,51,52,463,223,432,129,43,33,28,19,17,10,32,22,146,72,7,8,41,18,44,23,23,13,276,112,24,17,125,67,117,64,64,67]
[null,"25.0 to 29.9 percent",26,16,33,35,19,9,43,31,6,6,20,18,109,69,132,95,277,103,80,68,5,5,11,8,15,10,131,79,3,5,34,19,7,6,16,10,220,132,34,22,21,23,77,64,55,55]
[null,"30.0 to 34.9 percent",4,6,118,89,17,17,37,30,18,13,7,8,26,42,43,38,279,165,9,13,15,15,15,11,44,37,141,76,1,2,34,18,11,7,9,7,130,102,40,33,38,27,15,11,21,24]
[null,"35.0 to 39.9 percent",13,11,0,12,17,20,73,43,16,17,4,5,58,39,30,29,88,57,10,17,2,3,4,4,24,17,17,19,1,2,16,15,2,3,3,4,30,35,34,29,10,15,19,18,52,39]
[null,"40.0 to 49.9 percent",6,8,33,40,17,15,83,47,2,4,19,21,0,12,15,24,134,63,7,10,3,4,14,9,17,14,171,117,1,3,15,9,8,6,3,4,57,45,21,20,54,55,43,57,69,45]
[null,"50.0 percent or more",82,60,120,100,26,16,115,64,29,26,26,15,75,47,49,63,223,112,29,20,17,14,11,10,31,18,75,38,4,5,24,13,7,5,33,28,92,54,59,38,68,72,67,43,91,61]
[null,"Not computed",0,12,0,12,0,12,0,12,0,12,0,12,0,12,0,17,0,22,6,9,2,3,0,12,0,12,0,17,0,12,0,12,0,12,0,12,12,21,0,12,0,12,3,4,0,12]
[null,"Housing units without a mortgage:",251,67,362,143,259,79,356,81,114,27,187,40,767,205,420,141,2258,362,247,66,152,51,117,29,131,38,521,131,55,38,111,32,98,25,128,35,772,193,196,56,428,106,313,119,401,119]
[null,"Less than 10.0 percent",71,31,178,107,102,45,138,52,31,19,68,21,169,91,146,118,652,187,56,42,57,31,40,17,45,25,127,60,7,5,58,27,33,12,42,18,215,108,41,32,148,69,79,31,71,50]
[null,"10.0 to 14.9 percent",38,19,15,24,41,18,62,37,20,11,35,19,267,184,86,77,451,186,46,26,41,36,30,18,21,12,146,73,9,6,18,12,28,17,29,23,188,124,38,23,106,54,56,27,98,56]
[null,"15.0 to 19.9 percent",69,37,52,48,22,14,44,19,24,10,53,28,135,104,0,17,294,128,21,16,17,11,18,13,20,11,33,25,4,5,18,9,6,5,16,8,113,73,41,28,28,24,27,20,61,42]
[null,"20.0 to 24.9 percent",31,35,87,90,38,19,21,16,10,7,12,8,94,78,59,47,206,96,68,48,15,12,7,5,7,8,69,49,5,5,6,5,11,7,13,11,52,45,26,18,40,38,20,14,73,53]
[null,"25.0 to 29.9 percent",12,10,16,24,8,7,11,10,7,6,4,5,25,23,18,31,196,99,5,7,0,12,10,12,7,11,44,44,1,3,0,12,5,5,5,5,42,41,20,26,22,20,11,10,38,32]
[null,"30.0 to 34.9 percent",0,12,0,12,9,11,0,12,5,5,5,7,47,40,31,38,72,49,23,18,5,9,2,3,9,8,20,25,2,3,4,6,0,12,2,4,39,41,0,12,0,12,4,6,16,26]
[null,"35.0 to 39.9 percent",5,7,14,22,0,12,0,12,2,4,7,7,7,12,44,40,40,38,7,10,0,12,0,12,3,5,0,17,21,36,0,12,1,4,2,3,84,79,13,12,7,11,13,12,0,12]
[null,"40.0 to 49.9 percent",12,11,0,12,3,4,34,31,6,8,0,12,11,17,8,16,140,90,10,16,5,5,2,3,19,21,24,29,5,6,0,12,0,12,8,8,12,19,0,12,29,35,25,26,0,12]
[null,"50.0 percent or more",13,12,0,12,36,53,46,32,9,12,3,4,12,15,16,26,207,96,11,17,12,12,6,5,0,12,58,38,1,2,5,8,14,12,11,13,27,29,17,20,28,29,9,15,44,31]
[null,"Not computed",0,12,0,12,0,12,0,12,0,12,0,12,0,12,12,19,0,22,0,12,0,12,2,3,0,12,0,17,0,12,2,4,0,12,0,12,0,17,0,12,20,32,69,99,0,12]
[]
[]
[]
[null,"Calculated B25091. MORTGAGE STATUS BY SELECTED MONTHLY OWNER COSTS AS A PERCENTAGE OF HOUSEHOLD INCOME IN THE PAST 12 MONTHS "]
[null,"Universe:  OWNER-OCCUPIED HOUSING UNITS"]
[null,"Data Set: 2018-2022 American Community Survey 5-Year Estimates"]
[]
[null,null,"Alstead",null,"Chesterfield",null,"Dublin",null,"Fitzwilliam",null,"Gilsum",null,"Harrisville",null,"Hinsdale",null,"Jaffrey",null,"Keene",null,"Marlborough",null,"Marlow",null,"Nelson",null,"Richmond",null,"Rindge",null,"Roxbury",null,"Stoddard",null,"Sullivan",null,"Surry",null,"Swanzey",null,"Troy",null,"Walpole",null,"Westmoreland",null,"Winchester"]
[null," ","Estimate","Margin of Error","Estimate","Margin of Error","Estimate","Margin of Error","Estimate","Margin of Error","Estimate","Margin of Error","Estimate","Margin of Error","Estimate","Margin of Error","Estimate","Margin of Error","Estimate","Margin of Error","Estimate","Margin of Error","Estimate","Margin of Error","Estimate","Margin of Error","Estimate","Margin of Error","Estimate","Margin of Error","Estimate","Margin of Error","Estimate","Margin of Error","Estimate","Margin of Error","Estimate","Margin of Error","Estimate","Margin of Error","Estimate","Margin of Error","Estimate","Margin of Error","Estimate","Margin of Error","Estimate","Margin of Error"]
[null,"Total:",{"$f":"C7","v":507},{"$f":"D7","v":86},{"$f":"E7","v":1227},184,530,99,957,154,285,50,386,73,1373,192,1580,229,4762,346,608,113,279,56,{"$f":"Y7","v":225},42,383,72,1711,137,94,38,405,49,240,46,324,59,2237,250,{"$f":"AO7","v":525},81,945,130,787,179,1052,163]
[null,"Less than 10.0 percent",{"$f":"C9+C20","v":81},{"$f":"SQRT((D9^2)+(D20^2))","v":32.280024783137947},{"$f":"E9+E20","v":219},{"$f":"SQRT((F9^2)+(F20^2))","v":114.58621208504974},{"$f":"G9+G20","v":109},{"$f":"SQRT((H9^2)+(H20^2))","v":45.541190146942803},{"$f":"I9+I20","v":157},{"$f":"SQRT((J9^2)+(J20^2))","v":57.697486947006624},{"$f":"K9+K20","v":42},{"$f":"SQRT((L9^2)+(L20^2))","v":21.023796041628639},{"$f":"M9+M20","v":77},{"$f":"SQRT((N9^2)+(N20^2))","v":22.847319317591726},{"$f":"O9+O20","v":243},{"$f":"SQRT((P9^2)+(P20^2))","v":117.92370414806346},{"$f":"Q9+Q20","v":229},{"$f":"SQRT((R9^2)+(R20^2))","v":152.11837495845134},{"$f":"S9+S20","v":767},{"$f":"SQRT((T9^2)+(T20^2))","v":201.8539075668341},{"$f":"U9+U20","v":71},{"$f":"SQRT((V9^2)+(V20^2))","v":44.944410108488462},{"$f":"W9+W20","v":62},{"$f":"SQRT((X9^2)+(X20^2))","v":31.400636936215164},55,{"$f":"SQRT((Z9^2)+(Z20^2))","v":19.723082923316021},{"$f":"AA9+AA20","v":49},{"$f":"SQRT((AB9^2)+(AB20^2))","v":25.495097567963924},{"$f":"AC9+AC20","v":163},{"$f":"SQRT((AD9^2)+(AD20^2))","v":73.81734213584231},{"$f":"AE9+AE20","v":18},{"$f":"SQRT((AF9^2)+(AF20^2))","v":12.083045973594572},{"$f":"AG9+AG20","v":88},{"$f":"SQRT((AH9^2)+(AH20^2))","v":33.600595232822883},{"$f":"AI9+AI20","v":47},{"$f":"SQRT((AJ9^2)+(AJ20^2))","v":17.691806012954132},{"$f":"AK9+AK20","v":53},{"$f":"SQRT((AL9^2)+(AL20^2))","v":21.095023109728988},{"$f":"AM9+AM20","v":292},{"$f":"SQRT((AN9^2)+(AN20^2))","v":137.43725841270262},49,34.176014981270121,166,71.568149340331559,110,38.600518131237564,144,84.403791384036765]
[null,"10.0 to 14.9 percent",71,28.319604517012593,183,112.58774356030055,115,73.246160308919954,126,52.32590180780452,30,13.601470508735444,72,38.948684188300895,350,193.53552645444711,289,137.56816492197603,736,229.24222996647018,84,37.483329627982627,58,{"$f":"SQRT((X10^2)+(X21^2))","v":38.275318418009277},35,18.681541692269406,40,16.970562748477139,371,119.01680553602503,13,7.2111025509279782,61,20.808652046684813,63,27.802877548915689,77,41.048751503547585,395,179.655225362359,89,38.600518131237564,226,79.246451024635803,103,39.623225512317902,146,66.573267908372955]
[null,"15.0 to 19.9 percent",113,42.059481689626182,214,96.74709297958259,90,30.413812651491099,156,95.900990610107883,71,24.166091947189145,82,32.249030993194197,265,126.49110640673517,142,117.23907198540937,965,245.93495074917675,145,50.596442562694072,50,21.095023109728988,34,17.691806012954132,86,37.643060449437421,281,100.16985574512923,11,7.0710678118654755,75,27.513632984395208,20,10.295630140987001,66,28.160255680657446,477,184.09236811991963,99,47.201694884823787,91,43.266615305567875,82,36.055512754639892,239,95.707888912043188]
[null,"20.0 to 24.9 percent",69,42.43819034784589,277,152.41062955056645,64,26.870057685088806,76,30.528675044947494,42,18.384776310850235,60,28.160255680657446,145,93.744333162063725,522,227.89910048089263,638,160.80111939908875,111,58.249463516842795,43,22.472205054244231,24,11.180339887498949,39,23.409399821439251,215,87.091905479212016,12,9.4339811320566032,47,18.681541692269406,55,24.041630560342615,36,17.029386365926403,328,120.70211265756701,50,24.758836806279895,165,77.025969646606853,137,65.513357416636794,137,85.428332536694171]
[null,"25.0 to 29.9 percent",38,18.867962264113206,49,42.43819034784589,27,11.401754250991379,54,32.572994949804659,13,8.4852813742385695,24,18.681541692269406,134,72.73238618387272,150,99.929975482834976,473,142.86357128393507,85,68.359344642850402,5,13,21,14.422205101855956,22,14.866068747318506,175,90.426765949026404,4,5.8309518948453007,34,22.472205054244231,12,7.810249675906654,21,11.180339887498949,262,138.2208377922808,54,34.058772731852805,43,30.479501308256342,88,64.776538962806583,93,63.631753079732135]
[null,"30.0 to 34.9 percent",4,13.416407864998739,118,89.805345052507874,26,20.248456731316587,37,32.310988842807021,23,13.928388277184119,12,10.63014581273465,73,58,74,53.740115370177612,351,172.12204972053988,32,22.203603311174518,20,17.4928556845359,17,11.401754250991379,53,37.8549864614954,161,80.006249755878443,3,3.6055512754639891,38,18.973665961010276,11,13.892443989449804,11,8.0622577482985491,169,109.9317970379817,40,35.114099732158877,38,29.546573405388315,19,12.529964086141668,37,35.383612025908263]
[null,"35.0 to 39.9 percent",18,13.038404810405298,14,25.059928172283335,17,23.323807579381203,73,44.643028571099428,18,17.464249196572979,11,8.6023252670426267,65,40.80441152620633,74,49.406477308142499,128,68.505474233815804,17,19.723082923316021,2,12.369316876852981,4,12.649110640673518,27,17.720045146669349,17,25.495097567963924,22,36.055512754639892,16,19.209372712298546,3,5,5,5,114,86.406018308911797,47,31.384709652950431,17,18.601075237738275,32,21.633307652783937,52,40.80441152620633]
[null,"40.0 to 49.9 percent",18,13.601470508735444,33,41.761226035642203,20,15.524174696260024,117,56.302753041036986,8,8.9442719099991592,19,24.186773244895647,11,20.808652046684813,23,28.844410203711913,274,109.85900054160332,17,18.867962264113206,8,6.4031242374328485,16,9.4868329805051381,36,25.238858928247925,195,120.5404496424333,6,6.7082039324993694,15,15,8,13.416407864998739,11,8.9442719099991592,69,48.846698967279252,21,23.323807579381203,83,65.192024052026483,68,62.649820430708338,69,46.572524088780071]
[null,"50.0 percent or more",95,61.188234163113421,120,100.71742649611338,62,55.362442142665635,161,71.554175279993274,38,28.635642126552707,29,15.524174696260024,87,49.33558553417604,65,68.154236845554948,430,147.51271131668619,40,26.248809496813376,29,18.439088914585774,17,11.180339887498949,31,21.633307652783937,133,53.740115370177612,5,5.3851648071345037,29,15.264337522473747,21,13,44,30.870698080866262,119,61.294371682887821,76,42.941821107167776,96,77.620873481300123,76,45.541190146942803,135,68.425141578224014]
[null,"Not computed",0,16.970562748477139,0,16.970562748477139,0,16.970562748477139,0,16.970562748477139,0,16.970562748477139,0,16.970562748477139,0,16.970562748477139,12,25.495097567963924,0,31.11269837220809,6,15,2,12.369316876852981,2,12.369316876852981,0,16.970562748477139,0,24.041630560342615,0,16.970562748477139,2,12.649110640673518,0,16.970562748477139,0,16.970562748477139,12,27.018512172212592,0,16.970562748477139,20,34.176014981270121,72,99.080775128175091,0,16.970562748477139]
[]
[]
[]
[]
[null,"Calculated MONTHLY OWNER COSTS AS A PERCENTAGE OF HOUSEHOLD INCOME IN THE PAST 12 MONTHS "]
[null,"Universe:  OWNER-OCCUPIED HOUSING UNITS"]
[null,"Data Set: 2018-2022 American Community Survey 5-Year Estimates"]
[null,null,"Alstead",null,"Chesterfield",null,"Dublin",null,"Fitzwilliam",null,"Gilsum",null,"Harrisville",null,"Hinsdale",null,"Jaffrey",null,"Keene",null,"Marlborough",null,"Marlow",null,"Nelson",null,"Richmond",null,"Rindge",null,"Roxbury",null,"Stoddard",null,"Sullivan",null,"Surry",null,"Swanzey",null,"Troy",null,"Walpole",null,"Westmoreland",null,"Winchester"]
[null," ","Estimate","Margin of Error","Estimate","Margin of Error","Estimate","Margin of Error","Estimate","Margin of Error","Estimate","Margin of Error","Estimate","Margin of Error","Estimate","Margin of Error","Estimate","Margin of Error","Estimate","Margin of Error","Estimate","Margin of Error","Estimate","Margin of Error","Estimate","Margin of Error","Estimate","Margin of Error","Estimate","Margin of Error","Estimate","Margin of Error","Estimate","Margin of Error","Estimate","Margin of Error","Estimate","Margin of Error","Estimate","Margin of Error","Estimate","Margin of Error","Estimate","Margin of Error","Estimate","Margin of Error","Estimate","Margin of Error"]
[null,"Total:",{"$f":"C39","v":507},86,1227,184,530,99,957,154,285,50,386,73,1373,192,1580,229,4762,346,608,113,279,56,{"$f":"Y39","v":225},42,383,72,1711,137,94,38,405,49,240,46,324,59,2237,250,{"$f":"AO39","v":525},81,945,130,787,179,1052,163]
[null,"Less than 20% of HH Income",{"$f":"C40+C41+C42","v":265},{"$f":"SQRT((D40^2)+(D41^2)+(D42^2))","v":60.108235708594876},{"$f":"E40+E41+E42","v":616},{"$f":"SQRT((F40^2)+(F41^2)+(F42^2))","v":187.52599819758325},{"$f":"G40+G41+G42","v":314},{"$f":"SQRT((H40^2)+(H41^2)+(H42^2))","v":91.454906921389423},{"$f":"I40+I41+I42","v":439},{"$f":"SQRT((J40^2)+(J41^2)+(J42^2))","v":123.54756169184401},{"$f":"K40+K41+K42","v":143},{"$f":"SQRT((L40^2)+(L41^2)+(L42^2))","v":34.799425282610628},{"$f":"M40+M41+M42","v":231},{"$f":"SQRT((N40^2)+(N41^2)+(N42^2))","v":55.488737596020329},{"$f":"O40+O41+O42","v":858},{"$f":"SQRT((P40^2)+(P41^2)+(P42^2))","v":259.54190413110558},{"$f":"Q40+Q41+Q42","v":660},{"$f":"SQRT((R40^2)+(R41^2)+(R42^2))","v":236.24140195994434},{"$f":"S40+S41+S42","v":2468},{"$f":"SQRT((T40^2)+(T41^2)+(T42^2))","v":392.14920629780698},{"$f":"U40+U41+U42","v":300},{"$f":"SQRT((V40^2)+(V41^2)+(V42^2))","v":77.362781749365766},{"$f":"W40+W41+W42","v":170},{"$f":"SQRT((X40^2)+(X41^2)+(X42^2))","v":53.814496188294846},{"$f":"Y40+Y41+Y42","v":124},{"$f":"SQRT((Z40^2)+(Z41^2)+(Z42^2))","v":32.419130154894653},{"$f":"AA40+AA41+AA42","v":175},{"$f":"SQRT((AB40^2)+(AB41^2)+(AB42^2))","v":48.528342234203713},{"$f":"AC40+AC41+AC42","v":815},{"$f":"SQRT((AD40^2)+(AD41^2)+(AD42^2))","v":172.18594600024707},{"$f":"AE40+AE41+AE42","v":42},{"$f":"SQRT((AF40^2)+(AF41^2)+(AF42^2))","v":15.748015748023622},{"$f":"AG40+AG41+AG42","v":224},{"$f":"SQRT((AH40^2)+(AH41^2)+(AH42^2))","v":48.155996511338024},{"$f":"AI40+AI41+AI42","v":130},{"$f":"SQRT((AJ40^2)+(AJ41^2)+(AJ42^2))","v":34.525353003264136},{"$f":"AK40+AK41+AK42","v":196},{"$f":"SQRT((AL40^2)+(AL41^2)+(AL42^2))","v":54.064775963653084},{"$f":"AM40+AM41+AM42","v":1164},{"$f":"SQRT((AN40^2)+(AN41^2)+(AN42^2))","v":291.64190371069793},{"$f":"AO40+AO41+AO42","v":237},{"$f":"SQRT((AP40^2)+(AP41^2)+(AP42^2))","v":69.899928469205179},{"$f":"AQ40+AQ41+AQ42","v":483},{"$f":"SQRT((AR40^2)+(AR41^2)+(AR42^2))","v":115.21284650593441},{"$f":"AS40+AS41+AS42","v":295},{"$f":"SQRT((AT40^2)+(AT41^2)+(AT42^2))","v":66.030296076876709},{"$f":"AU40+AU41+AU42","v":529},{"$f":"SQRT((AV40^2)+(AV41^2)+(AV42^2))","v":143.93053880257656}]
[null," 20% to 29.9% of HH Income",{"$f":"C43+C44","v":107},{"$f":"SQRT((D43^2)+(D44^2))","v":46.443514078932488},{"$f":"E43+E44","v":326},{"$f":"SQRT((F43^2)+(F44^2))","v":158.20872289478859},{"$f":"G43+G44","v":91},{"$f":"SQRT((H43^2)+(H44^2))","v":29.189039038652847},{"$f":"I43+I44","v":130},{"$f":"SQRT((J43^2)+(J44^2))","v":44.643028571099421},{"$f":"K43+K44","v":55},{"$f":"SQRT((L43^2)+(L44^2))","v":20.248456731316587},{"$f":"M43+M44","v":84},{"$f":"SQRT((N43^2)+(N44^2))","v":33.793490497431605},{"$f":"O43+O44","v":279},{"$f":"SQRT((P43^2)+(P44^2))","v":118.65074799595661},{"$f":"Q43+Q44","v":672},{"$f":"SQRT((R43^2)+(R44^2))","v":248.84533349050369},{"$f":"S43+S44","v":1111},{"$f":"SQRT((T43^2)+(T44^2))","v":215.09765224195263},{"$f":"U43+U44","v":196},{"$f":"SQRT((V43^2)+(V44^2))","v":89.810912477270818},{"$f":"W43+W44","v":48},{"$f":"SQRT((X43^2)+(X44^2))","v":25.96150997149434},{"$f":"Y43+Y44","v":45},{"$f":"SQRT((Z43^2)+(Z44^2))","v":18.248287590894659},{"$f":"AA43+AA44","v":61},{"$f":"SQRT((AB43^2)+(AB44^2))","v":27.730849247724095},{"$f":"AC43+AC44","v":390},{"$f":"SQRT((AD43^2)+(AD44^2))","v":125.54680402144851},{"$f":"AE43+AE44","v":16},{"$f":"SQRT((AF43^2)+(AF44^2))","v":11.090536506409416},{"$f":"AG43+AG44","v":81},{"$f":"SQRT((AH43^2)+(AH44^2))","v":29.223278392404914},{"$f":"AI43+AI44","v":67},{"$f":"SQRT((AJ43^2)+(AJ44^2))","v":25.278449319529074},{"$f":"AK43+AK44","v":57},{"$f":"SQRT((AL43^2)+(AL44^2))","v":20.371548787463365},{"$f":"AM43+AM44","v":590},{"$f":"SQRT((AN43^2)+(AN44^2))","v":183.50476833041697},{"$f":"AO43+AO44","v":104},{"$f":"SQRT((AP43^2)+(AP44^2))","v":42.107006542854599},{"$f":"AQ43+AQ44","v":208},{"$f":"SQRT((AR43^2)+(AR44^2))","v":82.837189715730943},{"$f":"AS43+AS44","v":225},{"$f":"SQRT((AT43^2)+(AT44^2))","v":92.130342450248165},{"$f":"AU43+AU44","v":230},{"$f":"SQRT((AV43^2)+(AV44^2))","v":106.52229813517918}]
[null," Less Than 30% of HH Income",{"$f":"C40+C41+C42+C43+C44","v":372},{"$f":"SQRT((D40^2)+(D41^2)+(D42^2)+(D43^2)+(D44^2))","v":75.960516059331766},{"$f":"E40+E41+E42+E43+E44","v":942},{"$f":"SQRT((F40^2)+(F41^2)+(F42^2)+(F43^2)+(F44^2))","v":245.34873140083687},{"$f":"G40+G41+G42+G43+G44","v":405},{"$f":"SQRT((H40^2)+(H41^2)+(H42^2)+(H43^2)+(H44^2))","v":96.000000000000014},{"$f":"I40+I41+I42+I43+I44","v":569},{"$f":"SQRT((J40^2)+(J41^2)+(J42^2)+(J43^2)+(J44^2))","v":131.36590120727678},{"$f":"K40+K41+K42+K43+K44","v":198},{"$f":"SQRT((L40^2)+(L41^2)+(L42^2)+(L43^2)+(L44^2))","v":40.26164427839479},{"$f":"M40+M41+M42+M43+M44","v":315},{"$f":"SQRT((N40^2)+(N41^2)+(N42^2)+(N43^2)+(N44^2))","v":64.969223483123145},{"$f":"O40+O41+O42+O43+O44","v":1137},{"$f":"SQRT((P40^2)+(P41^2)+(P42^2)+(P43^2)+(P44^2))","v":285.3769437077915},{"$f":"Q40+Q41+Q42+Q43+Q44","v":1332},{"$f":"SQRT((R40^2)+(R41^2)+(R42^2)+(R43^2)+(R44^2))","v":343.12388433334104},{"$f":"S40+S41+S42+S43+S44","v":3579},{"$f":"SQRT((T40^2)+(T41^2)+(T42^2)+(T43^2)+(T44^2))","v":447.26725791186641},{"$f":"U40+U41+U42+U43+U44","v":496},{"$f":"SQRT((V40^2)+(V41^2)+(V42^2)+(V43^2)+(V44^2))","v":118.53691408164801},{"$f":"W40+W41+W42+W43+W44","v":218},{"$f":"SQRT((X40^2)+(X41^2)+(X42^2)+(X43^2)+(X44^2))","v":59.74947698515863},{"$f":"Y40+Y41+Y42+Y43+Y44","v":169},{"$f":"SQRT((Z40^2)+(Z41^2)+(Z42^2)+(Z43^2)+(Z44^2))","v":37.20215047547655},{"$f":"AA40+AA41+AA42+AA43+AA44","v":236},{"$f":"SQRT((AB40^2)+(AB41^2)+(AB42^2)+(AB43^2)+(AB44^2))","v":55.892754449928482},{"$f":"AC40+AC41+AC42+AC43+AC44","v":1205},{"$f":"SQRT((AD40^2)+(AD41^2)+(AD42^2)+(AD43^2)+(AD44^2))","v":213.09622239730106},{"$f":"AE40+AE41+AE42+AE43+AE44","v":58},{"$f":"SQRT((AF40^2)+(AF41^2)+(AF42^2)+(AF43^2)+(AF44^2))","v":19.261360284258224},{"$f":"AG40+AG41+AG42+AG43+AG44","v":305},{"$f":"SQRT((AH40^2)+(AH41^2)+(AH42^2)+(AH43^2)+(AH44^2))","v":56.329388422030647},{"$f":"AI40+AI41+AI42+AI43+AI44","v":197},{"$f":"SQRT((AJ40^2)+(AJ41^2)+(AJ42^2)+(AJ43^2)+(AJ44^2))","v":42.790185790669334},{"$f":"AK40+AK41+AK42+AK43+AK44","v":253},{"$f":"SQRT((AL40^2)+(AL41^2)+(AL42^2)+(AL43^2)+(AL44^2))","v":57.77542730261716},{"$f":"AM40+AM41+AM42+AM43+AM44","v":1754},{"$f":"SQRT((AN40^2)+(AN41^2)+(AN42^2)+(AN43^2)+(AN44^2))","v":344.57074745253698},{"$f":"AO40+AO41+AO42+AO43+AO44","v":341},{"$f":"SQRT((AP40^2)+(AP41^2)+(AP42^2)+(AP43^2)+(AP44^2))","v":81.602696033893395},{"$f":"AQ40+AQ41+AQ42+AQ43+AQ44","v":691},{"$f":"SQRT((AR40^2)+(AR41^2)+(AR42^2)+(AR43^2)+(AR44^2))","v":141.90137420053409},{"$f":"AS40+AS41+AS42+AS43+AS44","v":520},{"$f":"SQRT((AT40^2)+(AT41^2)+(AT42^2)+(AT43^2)+(AT44^2))","v":113.34901852243803},{"$f":"AU40+AU41+AU42+AU43+AU44","v":759},{"$f":"SQRT((AV40^2)+(AV41^2)+(AV42^2)+(AV43^2)+(AV44^2))","v":179.06144196895099}]
[null," 30% or More of HH Income",{"$f":"C45+C46+C47+C48","v":135},{"$f":"SQRT((D45^2)+(D46^2)+(D47^2)+(D48^2))","v":65.414065765705175},{"$f":"E45+E46+E47+E48","v":285},{"$f":"SQRT((F45^2)+(F46^2)+(F47^2)+(F48^2))","v":143.46079603849967},{"$f":"G45+G46+G47+G48","v":125},{"$f":"SQRT((H45^2)+(H46^2)+(H47^2)+(H48^2))","v":65.268675488322884},{"$f":"I45+I46+I47+I48","v":388},{"$f":"SQRT((J45^2)+(J46^2)+(J47^2)+(J48^2))","v":106.42837967384452},{"$f":"K45+K46+K47+K48","v":87},{"$f":"SQRT((L45^2)+(L46^2)+(L47^2)+(L48^2))","v":37.403208418530085},{"$f":"M45+M46+M47+M48","v":71},{"$f":"SQRT((N45^2)+(N46^2)+(N47^2)+(N48^2))","v":31.827660925679094},{"$f":"O45+O46+O47+O48","v":236},{"$f":"SQRT((P45^2)+(P46^2)+(P47^2)+(P48^2))","v":88.859439566092249},{"$f":"Q45+Q46+Q47+Q48","v":236},{"$f":"SQRT((R45^2)+(R46^2)+(R47^2)+(R48^2))","v":103.95191195932858},{"$f":"S45+S46+S47+S48","v":1183},{"$f":"SQRT((T45^2)+(T46^2)+(T47^2)+(T48^2))","v":261.0517190136851},{"$f":"U45+U46+U47+U48","v":106},{"$f":"SQRT((V45^2)+(V46^2)+(V47^2)+(V48^2))","v":43.89760813529594},{"$f":"W45+W46+W47+W48","v":59},{"$f":"SQRT((X45^2)+(X46^2)+(X47^2)+(X48^2))","v":28.982753492378876},{"$f":"Y45+Y46+Y47+Y48","v":54},{"$f":"SQRT((Z45^2)+(Z46^2)+(Z47^2)+(Z48^2))","v":22.472205054244231},{"$f":"AA45+AA46+AA47+AA48","v":147},{"$f":"SQRT((AB45^2)+(AB46^2)+(AB47^2)+(AB48^2))","v":53.404119691274758},{"$f":"AC45+AC46+AC47+AC48","v":506},{"$f":"SQRT((AD45^2)+(AD46^2)+(AD47^2)+(AD48^2))","v":156.42570121306792},{"$f":"AE45+AE46+AE47+AE48","v":36},{"$f":"SQRT((AF45^2)+(AF46^2)+(AF47^2)+(AF48^2))","v":37.242448899072144},{"$f":"AG45+AG46+AG47+AG48","v":98},{"$f":"SQRT((AH45^2)+(AH46^2)+(AH47^2)+(AH48^2))","v":34.452866353904433},{"$f":"AI45+AI46+AI47+AI48","v":43},{"$f":"SQRT((AJ45^2)+(AJ46^2)+(AJ47^2)+(AJ48^2))","v":23.811761799581316},{"$f":"AK45+AK46+AK47+AK48","v":71},{"$f":"SQRT((AL45^2)+(AL46^2)+(AL47^2)+(AL48^2))","v":33.511192160232078},{"$f":"AM45+AM46+AM47+AM48","v":471},{"$f":"SQRT((AN45^2)+(AN46^2)+(AN47^2)+(AN48^2))","v":160.29348084061311},{"$f":"AO45+AO46+AO47+AO48","v":184},{"$f":"SQRT((AP45^2)+(AP46^2)+(AP47^2)+(AP48^2))","v":67.867518003828607},{"$f":"AQ45+AQ46+AQ47+AQ48","v":234},{"$f":"SQRT((AR45^2)+(AR46^2)+(AR47^2)+(AR48^2))","v":107.21007415350481},{"$f":"AS45+AS46+AS47+AS48","v":195},{"$f":"SQRT((AT45^2)+(AT46^2)+(AT47^2)+(AT48^2))","v":81.387959797503214},{"$f":"AU45+AU46+AU47+AU48","v":293},{"$f":"SQRT((AV45^2)+(AV46^2)+(AV47^2)+(AV48^2))","v":98.833192804846689}]
[null," 30% to 34.9% of HH Income",{"$f":"C45","v":4},{"$f":"D45","v":13.416407864998739},{"$f":"E45","v":118},89.805345052507874,26,20.248456731316587,37,32.310988842807021,23,13.928388277184119,12,10.63014581273465,73,58,74,53.740115370177612,351,172.12204972053988,32,22.203603311174518,20,17.4928556845359,{"$f":"Y45","v":17},11.401754250991379,53,37.8549864614954,161,80.006249755878443,3,3.6055512754639891,38,18.973665961010276,11,13.892443989449804,11,8.0622577482985491,169,109.9317970379817,{"$f":"AO45","v":40},35.114099732158877,38,29.546573405388315,19,12.529964086141668,37,35.383612025908263]
[null," Less Than 35% of HH Income",{"$f":"C40+C41+C42+C43+C44+C45","v":376},{"$f":"SQRT((D40^2)+(D41^2)+(D42^2)+(D43^2)+(D44^2)+(D45^2))","v":77.136243102707567},{"$f":"E40+E41+E42+E43+E44+E45","v":1060},{"$f":"SQRT((F40^2)+(F41^2)+(F42^2)+(F43^2)+(F44^2)+(F45^2))","v":261.26806157661139},{"$f":"G40+G41+G42+G43+G44+G45","v":431},{"$f":"SQRT((H40^2)+(H41^2)+(H42^2)+(H43^2)+(H44^2)+(H45^2))","v":98.112180691288287},{"$f":"I40+I41+I42+I43+I44+I45","v":606},{"$f":"SQRT((J40^2)+(J41^2)+(J42^2)+(J43^2)+(J44^2)+(J45^2))","v":135.28118864054971},{"$f":"K40+K41+K42+K43+K44+K45","v":221},{"$f":"SQRT((L40^2)+(L41^2)+(L42^2)+(L43^2)+(L44^2)+(L45^2))","v":42.602816808281588},{"$f":"M40+M41+M42+M43+M44+M45","v":327},{"$f":"SQRT((N40^2)+(N41^2)+(N42^2)+(N43^2)+(N44^2)+(N45^2))","v":65.833122362531157},{"$f":"O40+O41+O42+O43+O44+O45","v":1210},{"$f":"SQRT((P40^2)+(P41^2)+(P42^2)+(P43^2)+(P44^2)+(P45^2))","v":291.21126351842918},{"$f":"Q40+Q41+Q42+Q43+Q44+Q45","v":1406},{"$f":"SQRT((R40^2)+(R41^2)+(R42^2)+(R43^2)+(R44^2)+(R45^2))","v":347.30678081488702},{"$f":"S40+S41+S42+S43+S44+S45","v":3930},{"$f":"SQRT((T40^2)+(T41^2)+(T42^2)+(T43^2)+(T44^2)+(T45^2))","v":479.24315331572552},{"$f":"U40+U41+U42+U43+U44+U45","v":528},{"$f":"SQRT((V40^2)+(V41^2)+(V42^2)+(V43^2)+(V44^2)+(V45^2))","v":120.59850745345068},{"$f":"W40+W41+W42+W43+W44+W45","v":238},{"$f":"SQRT((X40^2)+(X41^2)+(X42^2)+(X43^2)+(X44^2)+(X45^2))","v":62.257529665093529},{"$f":"Y40+Y41+Y42+Y43+Y44+Y45","v":186},{"$f":"SQRT((Z40^2)+(Z41^2)+(Z42^2)+(Z43^2)+(Z44^2)+(Z45^2))","v":38.910152916687437},{"$f":"AA40+AA41+AA42+AA43+AA44+AA45","v":289},{"$f":"SQRT((AB40^2)+(AB41^2)+(AB42^2)+(AB43^2)+(AB44^2)+(AB45^2))","v":67.505555326950685},{"$f":"AC40+AC41+AC42+AC43+AC44+AC45","v":1366},{"$f":"SQRT((AD40^2)+(AD41^2)+(AD42^2)+(AD43^2)+(AD44^2)+(AD45^2))","v":227.62029786466761},{"$f":"AE40+AE41+AE42+AE43+AE44+AE45","v":61},{"$f":"SQRT((AF40^2)+(AF41^2)+(AF42^2)+(AF43^2)+(AF44^2)+(AF45^2))","v":19.595917942265423},{"$f":"AG40+AG41+AG42+AG43+AG44+AG45","v":343},{"$f":"SQRT((AH40^2)+(AH41^2)+(AH42^2)+(AH43^2)+(AH44^2)+(AH45^2))","v":59.439044406854322},{"$f":"AI40+AI41+AI42+AI43+AI44+AI45","v":208},{"$f":"SQRT((AJ40^2)+(AJ41^2)+(AJ42^2)+(AJ43^2)+(AJ44^2)+(AJ45^2))","v":44.988887516807971},{"$f":"AK40+AK41+AK42+AK43+AK44+AK45","v":264},{"$f":"SQRT((AL40^2)+(AL41^2)+(AL42^2)+(AL43^2)+(AL44^2)+(AL45^2))","v":58.33523806414096},{"$f":"AM40+AM41+AM42+AM43+AM44+AM45","v":1923},{"$f":"SQRT((AN40^2)+(AN41^2)+(AN42^2)+(AN43^2)+(AN44^2)+(AN45^2))","v":361.68218092684634},{"$f":"AO40+AO41+AO42+AO43+AO44+AO45","v":381},{"$f":"SQRT((AP40^2)+(AP41^2)+(AP42^2)+(AP43^2)+(AP44^2)+(AP45^2))","v":88.836929258051242},{"$f":"AQ40+AQ41+AQ42+AQ43+AQ44+AQ45","v":729},{"$f":"SQRT((AR40^2)+(AR41^2)+(AR42^2)+(AR43^2)+(AR44^2)+(AR45^2))","v":144.94481708567574},{"$f":"AS40+AS41+AS42+AS43+AS44+AS45","v":539},{"$f":"SQRT((AT40^2)+(AT41^2)+(AT42^2)+(AT43^2)+(AT44^2)+(AT45^2))","v":114.03946685248927},{"$f":"AU40+AU41+AU42+AU43+AU44+AU45","v":796},{"$f":"SQRT((AV40^2)+(AV41^2)+(AV42^2)+(AV43^2)+(AV44^2)+(AV45^2))","v":182.52397102846518}]
[null," 35% or More of HH Income",{"$f":"C46+C47+C48","v":131},{"$f":"SQRT((D46^2)+(D47^2)+(D48^2))","v":64.023433210036472},{"$f":"E46+E47+E48","v":167},{"$f":"SQRT((F46^2)+(F47^2)+(F48^2))","v":111.87493016757597},{"$f":"G46+G47+G48","v":99},{"$f":"SQRT((H46^2)+(H47^2)+(H48^2))","v":62.048368229954285},{"$f":"I46+I47+I48","v":351},{"$f":"SQRT((J46^2)+(J47^2)+(J48^2))","v":101.4051280754578},{"$f":"K46+K47+K48","v":64},{"$f":"SQRT((L46^2)+(L47^2)+(L48^2))","v":34.713109915419565},{"$f":"M46+M47+M48","v":59},{"$f":"SQRT((N46^2)+(N47^2)+(N48^2))","v":29.999999999999996},{"$f":"O46+O47+O48","v":163},{"$f":"SQRT((P46^2)+(P47^2)+(P48^2))","v":67.320130718827343},{"$f":"Q46+Q47+Q48","v":162},{"$f":"SQRT((R46^2)+(R47^2)+(R48^2))","v":88.983144471298601},{"$f":"S46+S47+S48","v":832},{"$f":"SQRT((T46^2)+(T47^2)+(T48^2))","v":196.27022188808979},{"$f":"U46+U47+U48","v":74},{"$f":"SQRT((V46^2)+(V47^2)+(V48^2))","v":37.868192457522973},{"$f":"W46+W47+W48","v":39},{"$f":"SQRT((X46^2)+(X47^2)+(X48^2))","v":23.108440016582687},{"$f":"Y46+Y47+Y48","v":37},{"$f":"SQRT((Z46^2)+(Z47^2)+(Z48^2))","v":19.364916731037084},{"$f":"AA46+AA47+AA48","v":94},{"$f":"SQRT((AB46^2)+(AB47^2)+(AB48^2))","v":37.669616403674723},{"$f":"AC46+AC47+AC48","v":345},{"$f":"SQRT((AD46^2)+(AD47^2)+(AD48^2))","v":134.41726079637243},{"$f":"AE46+AE47+AE48","v":33},{"$f":"SQRT((AF46^2)+(AF47^2)+(AF48^2))","v":37.067505985701274},{"$f":"AG46+AG47+AG48","v":60},{"$f":"SQRT((AH46^2)+(AH47^2)+(AH48^2))","v":28.757607689096812},{"$f":"AI46+AI47+AI48","v":32},{"$f":"SQRT((AJ46^2)+(AJ47^2)+(AJ48^2))","v":19.339079605813716},{"$f":"AK46+AK47+AK48","v":60},{"$f":"SQRT((AL46^2)+(AL47^2)+(AL48^2))","v":32.526911934581186},{"$f":"AM46+AM47+AM48","v":302},{"$f":"SQRT((AN46^2)+(AN47^2)+(AN48^2))","v":116.65761869676579},{"$f":"AO46+AO47+AO48","v":144},{"$f":"SQRT((AP46^2)+(AP47^2)+(AP48^2))","v":58.077534382926416},{"$f":"AQ46+AQ47+AQ48","v":196},{"$f":"SQRT((AR46^2)+(AR47^2)+(AR48^2))","v":103.05823596394418},{"$f":"AS46+AS47+AS48","v":176},{"$f":"SQRT((AT46^2)+(AT47^2)+(AT48^2))","v":80.41765975207187},{"$f":"AU46+AU47+AU48","v":256},{"$f":"SQRT((AV46^2)+(AV47^2)+(AV48^2))","v":92.282175960474618}]
[null," 50% or More of HH Income",{"$f":"C48","v":95},{"$f":"D48","v":61.188234163113421},{"$f":"E48","v":120},100.71742649611338,62,55.362442142665635,161,71.554175279993274,38,28.635642126552707,29,15.524174696260024,87,49.33558553417604,65,68.154236845554948,430,147.51271131668619,40,26.248809496813376,29,18.439088914585774,{"$f":"Y48","v":17},11.180339887498949,31,21.633307652783937,133,53.740115370177612,5,5.3851648071345037,29,15.264337522473747,21,13,44,30.870698080866262,119,61.294371682887821,{"$f":"AO48","v":76},42.941821107167776,96,77.620873481300123,76,45.541190146942803,135,68.425141578224014]
[null,"Not computed",{"$f":"C49","v":0},{"$f":"D49","v":16.970562748477139},{"$f":"E49","v":0},16.970562748477139,0,16.970562748477139,0,16.970562748477139,0,16.970562748477139,0,16.970562748477139,0,16.970562748477139,12,25.495097567963924,0,31.11269837220809,6,15,2,12.369316876852981,{"$f":"Y49","v":2},12.369316876852981,0,16.970562748477139,0,24.041630560342615,0,16.970562748477139,2,12.649110640673518,0,16.970562748477139,0,16.970562748477139,12,27.018512172212592,{"$f":"AO49","v":0},16.970562748477139,20,34.176014981270121,72,99.080775128175091,0,16.970562748477139]
[]
[]
[]
[]
[]
[]
[]
[]
[]
[]
[]
[]
[]
[null,"B25091. MORTGAGE STATUS BY SELECTED MONTHLY OWNER COSTS AS A PERCENTAGE OF HOUSEHOLD INCOME IN THE PAST 12 MONTHS "]
[null,"Universe:  OWNER-OCCUPIED HOUSING UNITS"]
[null,"Data Set: 2013-2017 American Community Survey 5-Year Estimates"]
[]
[null,null,"Alstead",null,"Chesterfield",null,"Dublin",null,"Fitzwilliam",null,"Gilsum",null,"Harrisville",null,"Hinsdale",null,"Jaffrey",null,"Keene",null,"Marlborough",null,"Marlow",null,"Nelson",null,"Richmond",null,"Rindge",null,"Roxbury",null,"Stoddard",null,"Sullivan",null,"Surry",null,"Swanzey",null,"Troy",null,"Walpole",null,"Westmoreland",null,"Winchester"]
[null," ","Estimate","Margin of Error","Estimate","Margin of Error","Estimate","Margin of Error","Estimate","Margin of Error","Estimate","Margin of Error","Estimate","Margin of Error","Estimate","Margin of Error","Estimate","Margin of Error","Estimate","Margin of Error","Estimate","Margin of Error","Estimate","Margin of Error","Estimate","Margin of Error","Estimate","Margin of Error","Estimate","Margin of Error","Estimate","Margin of Error","Estimate","Margin of Error","Estimate","Margin of Error","Estimate","Margin of Error","Estimate","Margin of Error","Estimate","Margin of Error","Estimate","Margin of Error","Estimate","Margin of Error","Estimate","Margin of Error"]
[null,"Total:",552,75,1218,141,462,54,873,93,257,35,374,47,1316,134,5072,283,4950,273,610,90,255,40,186,35,391,53,1483,153,72,27,440,57,232,46,341,45,2124,201,663,75,1301,105,602,81,1225,174]
[null,"Housing units with a mortgage:",362,70,835,129,262,48,515,72,169,33,200,43,813,117,3092,267,2884,287,370,75,145,30,118,25,229,48,1070,150,47,17,306,47,126,30,235,42,1431,220,376,74,738,118,354,59,631,137]
[null,"Less than 10.0 percent",0,11,48,47,19,15,61,41,6,6,4,6,67,46,222,95,203,86,23,30,6,6,5,5,13,10,76,50,4,6,33,24,3,4,12,11,108,65,71,45,54,52,17,14,6,10]
[null,"10.0 to 14.9 percent",52,31,200,86,27,20,49,32,14,8,26,11,92,64,273,93,296,108,44,22,21,10,30,19,20,14,115,62,12,7,36,21,15,8,18,14,126,78,18,16,170,87,43,20,72,42]
[null,"15.0 to 19.9 percent",88,40,58,43,59,30,76,39,26,12,36,20,177,76,606,143,519,122,70,43,35,15,29,14,46,28,212,89,9,8,93,38,30,17,67,23,239,98,67,35,147,70,76,25,19,21]
[null,"20.0 to 24.9 percent",70,31,150,90,60,31,67,30,34,12,56,24,189,86,658,158,594,147,76,33,16,12,14,11,24,14,158,67,7,6,29,15,23,13,68,28,258,123,60,38,138,69,46,23,107,52]
[null,"25.0 to 29.9 percent",38,32,133,72,29,20,90,39,26,11,25,18,90,48,443,169,278,89,34,26,25,12,13,8,26,24,139,58,0,11,41,20,9,7,27,16,174,103,44,33,50,35,72,30,104,61]
[null,"30.0 to 34.9 percent",49,32,14,23,20,16,42,26,13,12,15,8,52,37,268,95,274,102,31,21,12,12,5,5,32,20,112,50,2,3,21,15,14,7,9,7,258,149,36,29,43,30,20,14,87,56]
[null,"35.0 to 39.9 percent",20,14,50,46,4,5,13,11,12,8,7,7,26,23,155,70,162,81,49,34,15,13,3,4,12,7,38,25,6,9,17,11,4,4,4,5,33,40,21,18,13,20,35,24,80,60]
[null,"40.0 to 49.9 percent",37,19,109,72,22,23,57,32,9,11,11,13,18,19,116,52,128,59,14,15,2,3,10,6,25,20,128,77,2,3,27,12,2,3,14,15,96,71,28,27,65,42,9,8,23,25]
[null,"50.0 percent or more",8,9,73,60,22,18,60,33,19,9,20,16,102,77,351,119,430,137,29,16,13,10,7,8,31,20,92,54,5,10,9,8,24,15,16,12,139,99,31,17,58,34,32,18,133,78]
[null,"Not computed",0,11,0,11,0,11,0,11,10,12,0,11,0,11,0,21,0,20,0,11,0,11,2,3,0,11,0,16,0,11,0,11,2,4,0,11,0,16,0,11,0,11,4,7,0,11]
[null,"Housing units without a mortgage:",190,49,383,128,200,37,358,90,88,20,174,31,503,113,1980,236,2066,251,240,65,110,27,68,25,162,32,413,98,25,16,134,41,106,29,106,27,693,144,287,65,563,107,248,57,594,132]
[null,"Less than 10.0 percent",47,24,77,54,49,23,65,35,14,8,72,25,99,40,267,88,322,130,82,45,19,10,15,8,34,17,102,52,7,8,47,20,31,15,37,16,227,101,46,31,150,74,102,29,128,79]
[null,"10.0 to 14.9 percent",5,6,89,59,21,11,57,32,18,12,34,17,88,42,485,179,423,160,48,32,30,16,9,7,52,23,107,52,6,4,24,19,15,12,22,15,206,94,72,42,139,57,67,30,171,89]
[null,"15.0 to 19.9 percent",28,17,55,62,24,15,29,25,18,8,34,18,74,52,364,111,402,121,11,12,23,15,17,15,27,16,18,20,7,7,14,10,10,6,10,7,55,45,31,29,36,37,44,21,46,35]
[null,"20.0 to 24.9 percent",9,9,100,83,39,22,37,31,10,7,12,9,58,38,166,61,220,100,9,10,16,11,6,5,6,7,24,23,2,4,13,13,15,8,7,6,71,50,51,37,16,18,16,13,39,31]
[null,"25.0 to 29.9 percent",22,22,16,25,11,13,65,43,2,3,12,8,68,51,103,69,58,44,13,14,2,3,4,4,16,13,19,21,2,3,6,6,14,12,4,4,43,43,17,15,29,43,0,11,22,25]
[null,"30.0 to 34.9 percent",19,22,15,22,5,5,17,13,8,6,0,11,21,23,111,63,143,74,21,25,8,12,0,11,3,5,32,22,0,11,16,13,7,10,11,8,28,31,4,7,18,20,2,4,34,53]
[null,"35.0 to 39.9 percent",0,11,0,11,10,7,32,32,4,4,0,11,9,14,105,67,99,66,15,13,2,3,0,11,4,6,30,35,0,11,11,13,4,4,7,10,0,16,4,7,54,46,9,8,73,62]
[null,"40.0 to 49.9 percent",32,26,0,11,11,13,21,21,6,6,3,4,9,16,88,61,108,60,15,14,4,7,4,4,7,6,33,38,0,11,3,4,3,4,2,3,12,20,17,14,78,61,6,6,35,31]
[null,"50.0 percent or more",10,9,31,25,30,19,24,22,8,7,7,6,77,42,286,110,287,100,26,27,6,5,13,13,13,14,48,43,1,3,0,11,5,5,4,4,51,42,45,41,43,31,2,4,37,32]
[null,"Not computed",18,18,0,11,0,11,11,9,0,11,0,11,0,11,5,12,4,9,0,11,0,11,0,11,0,11,0,16,0,11,0,11,2,3,2,3,0,16,0,11,0,11,0,11,9,14]
[]
[]
[null,"Calculated B25091. MORTGAGE STATUS BY SELECTED MONTHLY OWNER COSTS AS A PERCENTAGE OF HOUSEHOLD INCOME IN THE PAST 12 MONTHS "]
[null,"Universe:  OWNER-OCCUPIED HOUSING UNITS"]
[null,"Data Set: 2013-2017 American Community Survey 5-Year Estimates"]
[]
[null,null,"Alstead",null,"Chesterfield",null,"Dublin",null,"Fitzwilliam",null,"Gilsum",null,"Harrisville",null,"Hinsdale",null,"Jaffrey",null,"Keene",null,"Marlborough",null,"Marlow",null,"Nelson",null,"Richmond",null,"Rindge",null,"Roxbury",null,"Stoddard",null,"Sullivan",null,"Surry",null,"Swanzey",null,"Troy",null,"Walpole",null,"Westmoreland",null,"Winchester"]
[null," ","Estimate","Margin of Error","Estimate","Margin of Error","Estimate","Margin of Error","Estimate","Margin of Error","Estimate","Margin of Error","Estimate","Margin of Error","Estimate","Margin of Error","Estimate","Margin of Error","Estimate","Margin of Error","Estimate","Margin of Error","Estimate","Margin of Error","Estimate","Margin of Error","Estimate","Margin of Error","Estimate","Margin of Error","Estimate","Margin of Error","Estimate","Margin of Error","Estimate","Margin of Error","Estimate","Margin of Error","Estimate","Margin of Error","Estimate","Margin of Error","Estimate","Margin of Error","Estimate","Margin of Error","Estimate","Margin of Error"]
[null,"Total:",{"$f":"C88","v":552},75,1218,141,462,54,873,93,257,35,374,47,1316,134,5072,283,4950,273,610,90,255,40,186,35,391,53,1483,153,72,27,440,57,232,46,341,45,2124,201,663,75,1301,105,602,81,1225,174]
[null,"Less than 10.0 percent",{"$f":"C90+C101","v":47},{"$f":"SQRT((D90^2)+(D101^2))","v":26.40075756488817},{"$f":"E90+E101","v":125},{"$f":"SQRT((F90^2)+(F101^2))","v":71.589105316381762},{"$f":"G90+G101","v":68},{"$f":"SQRT((H90^2)+(H101^2))","v":27.459060435491963},{"$f":"I90+I101","v":126},{"$f":"SQRT((J90^2)+(J101^2))","v":53.907327887774215},{"$f":"K90+K101","v":20},{"$f":"SQRT((L90^2)+(L101^2))","v":10},{"$f":"M90+M101","v":76},{"$f":"SQRT((N90^2)+(N101^2))","v":25.709920264364882},{"$f":"O90+O101","v":166},{"$f":"SQRT((P90^2)+(P101^2))","v":60.959002616512684},{"$f":"Q90+Q101","v":489},{"$f":"SQRT((R90^2)+(R101^2))","v":129.49517365523704},{"$f":"S90+S101","v":525},{"$f":"SQRT((T90^2)+(T101^2))","v":155.87174214718971},{"$f":"U90+U101","v":105},{"$f":"SQRT((V90^2)+(V101^2))","v":54.083269131959838},{"$f":"W90+W101","v":25},{"$f":"SQRT((X90^2)+(X101^2))","v":11.661903789690601},{"$f":"Y90+Y101","v":20},{"$f":"SQRT((Z90^2)+(Z101^2))","v":9.4339811320566032},{"$f":"AA90+AA101","v":47},{"$f":"SQRT((AB90^2)+(AB101^2))","v":19.723082923316021},{"$f":"AC90+AC101","v":178},{"$f":"SQRT((AD90^2)+(AD101^2))","v":72.138755187485728},{"$f":"AE90+AE101","v":11},{"$f":"SQRT((AF90^2)+(AF101^2))","v":10},{"$f":"AG90+AG101","v":80},{"$f":"SQRT((AH90^2)+(AH101^2))","v":31.240998703626616},{"$f":"AI90+AI101","v":34},{"$f":"SQRT((AJ90^2)+(AJ101^2))","v":15.524174696260024},{"$f":"AK90+AK101","v":49},{"$f":"SQRT((AL90^2)+(AL101^2))","v":19.416487838947599},{"$f":"AM90+AM101","v":335},{"$f":"SQRT((AN90^2)+(AN101^2))","v":120.10828447696687},{"$f":"AO90+AO101","v":117},{"$f":"SQRT((AP90^2)+(AP101^2))","v":54.644304369257},{"$f":"AQ90+AQ101","v":204},{"$f":"SQRT((AR90^2)+(AR101^2))","v":90.443352436760108},{"$f":"AS90+AS101","v":119},{"$f":"SQRT((AT90^2)+(AT101^2))","v":32.202484376209235},{"$f":"AU90+AU101","v":134},{"$f":"SQRT((AV90^2)+(AV101^2))","v":79.630396206473819}]
[null,"10.0 to 14.9 percent",57,31.575306807693888,289,104.29285689825551,48,22.825424421026653,106,45.254833995939045,32,14.422205101855956,60,20.248456731316587,180,76.550636836018555,758,201.71762441591463,719,193.03885619221847,92,38.832975677895199,51,18.867962264113206,39,20.248456731316587,72,26.92582403567252,222,80.919713296575637,18,8.0622577482985491,60,28.319604517012593,30,14.422205101855956,40,20.518284528683193,332,122.14745187681976,90,44.944410108488462,309,104.0096149401583,110,36.055512754639892,243,98.412397592986224]
[null,"15.0 to 19.9 percent",116,43.46262762420146,113,75.451971478550519,83,33.541019662496844,105,46.324939287601879,44,14.422205101855956,70,26.90724809414742,251,92.086915465770701,970,181.02486017119307,921,171.82840277439584,81,44.643028571099428,58,21.213203435596427,46,20.518284528683193,73,32.249030993194197,230,91.219515455849688,16,10.63014581273465,107,39.293765408776999,40,18.027756377319946,77,24.041630560342615,294,107.83784122468327,98,45.453272709454048,183,79.177016867270268,120,32.649655434629018,65,40.8166632639171]
[null,"20.0 to 24.9 percent",79,32.280024783137947,250,122.42957159118053,99,38.013155617496423,104,43.139309220245984,44,13.892443989449804,68,25.632011235952593,247,94.021274188345274,824,169.36646657470303,814,177.78920102188434,85,34.481879299133332,32,16.278820596099706,20,12.083045973594572,30,15.652475842498529,182,70.837842993699354,9,7.2111025509279782,42,19.849433241279208,38,15.264337522473747,75,28.635642126552707,329,132.77424449041311,111,53.037722424704477,154,71.309185944028272,62,26.419689627245813,146,60.539243470661241]
[null,"25.0 to 29.9 percent",60,38.832975677895199,149,76.216796049164913,40,23.853720883753127,155,58.051701094799967,28,11.401754250991379,37,19.697715603592208,158,70.035705179572517,546,182.54314558481784,336,99.282425433709065,47,29.529646120466801,27,12.369316876852981,17,8.9442719099991592,42,27.294688127912362,158,61.684682053164543,2,11.401754250991379,47,20.880613017821101,23,13.892443989449804,31,16.492422502470642,217,111.61541112229978,61,36.249137920783717,79,55.443665102516448,72,31.953090617340916,126,65.924198895398035]
[null,"30.0 to 34.9 percent",68,38.832975677895199,29,31.827660925679098,25,16.763054614240211,59,29.068883707497267,21,13.416407864998739,15,13.601470508735444,73,43.56604182158393,379,113.99122773266372,417,126.01587201618692,52,32.649655434629018,20,16.970562748477139,5,12.083045973594572,35,20.615528128088304,144,54.626001134990652,2,11.401754250991379,37,19.849433241279208,21,12.206555615733702,20,10.63014581273465,286,152.19066988485201,40,29.832867780352597,61,36.055512754639892,22,14.560219778561036,121,77.103826104804938]
[null,"35.0 to 39.9 percent",20,17.804493814764857,50,47.296934361541872,14,8.6023252670426267,45,33.837848631377263,16,8.9442719099991592,7,13.038404810405298,35,26.92582403567252,260,96.896852374058057,261,104.48444860360799,64,36.400549446402593,17,13.341664064126334,3,11.704699910719626,16,9.2195444572928871,68,43.011626335213137,6,14.212670403551895,28,17.029386365926403,8,5.6568542494923806,11,11.180339887498949,33,43.08131845707603,25,19.313207915827967,67,50.159744815937813,44,25.298221281347036,153,86.278618440491968]
[null,"40.0 to 49.9 percent",69,32.202484376209235,109,72.835430938520574,33,26.419689627245813,78,38.275318418009277,15,12.529964086141668,14,13.601470508735444,27,24.839484696748443,204,80.156097709406993,236,84.148677945645701,29,20.518284528683193,6,7.6157731058639087,14,7.2111025509279782,32,20.880613017821101,161,85.866174946832231,2,11.401754250991379,30,12.649110640673518,5,5,16,15.297058540778355,108,73.763134423640111,45,30.413812651491099,143,74.060785845142092,15,10,58,39.824615503479755]
[null,"50.0 percent or more",18,12.727922061357855,104,65,52,26.172504656604801,84,39.66106403010388,27,11.401754250991379,27,17.088007490635061,179,87.709748602991681,637,162.05246064160829,717,169.61426826773743,55,31.384709652950431,19,11.180339887498949,20,15.264337522473747,44,24.413111231467404,140,69.028979421689272,6,10.440306508910551,9,13.601470508735444,29,15.811388300841896,20,12.649110640673518,190,107.54068997360952,76,44.384682042344295,101,46.010868281309364,34,18.439088914585774,170,84.308955633431964]
[null,"Not computed",18,21.095023109728988,0,15.556349186104045,0,15.556349186104045,11,14.212670403551895,10,16.278820596099706,0,15.556349186104045,0,15.556349186104045,5,24.186773244895647,4,21.931712199461309,0,15.556349186104045,0,15.556349186104045,2,11.401754250991379,0,15.556349186104045,0,22.627416997969522,0,15.556349186104045,0,15.556349186104045,4,5,2,11.401754250991379,0,22.627416997969522,0,15.556349186104045,0,15.556349186104045,4,13.038404810405298,9,17.804493814764857]
[]
[]
[]
[]
[null,"Calculated MONTHLY OWNER COSTS AS A PERCENTAGE OF HOUSEHOLD INCOME IN THE PAST 12 MONTHS "]
[null,"Universe:  OWNER-OCCUPIED HOUSING UNITS"]
[null,"Data Set: 2013-2017 American Community Survey 5-Year Estimates"]
[null,null,"Alstead",null,"Chesterfield",null,"Dublin",null,"Fitzwilliam",null,"Gilsum",null,"Harrisville",null,"Hinsdale",null,"Jaffrey",null,"Keene",null,"Marlborough",null,"Marlow",null,"Nelson",null,"Richmond",null,"Rindge",null,"Roxbury",null,"Stoddard",null,"Sullivan",null,"Surry",null,"Swanzey",null,"Troy",null,"Walpole",null,"Westmoreland",null,"Winchester"]
[null," ","Estimate","Margin of Error","Estimate","Margin of Error","Estimate","Margin of Error","Estimate","Margin of Error","Estimate","Margin of Error","Estimate","Margin of Error","Estimate","Margin of Error","Estimate","Margin of Error","Estimate","Margin of Error","Estimate","Margin of Error","Estimate","Margin of Error","Estimate","Margin of Error","Estimate","Margin of Error","Estimate","Margin of Error","Estimate","Margin of Error","Estimate","Margin of Error","Estimate","Margin of Error","Estimate","Margin of Error","Estimate","Margin of Error","Estimate","Margin of Error","Estimate","Margin of Error","Estimate","Margin of Error","Estimate","Margin of Error"]
[null,"Total:",{"$f":"C119","v":552},75,1218,141,462,54,873,93,257,35,374,47,1316,134,5072,283,4950,273,610,90,255,40,186,35,391,53,1483,153,72,27,440,57,232,46,341,45,2124,201,663,75,1301,105,602,81,1225,174]
[null,"Less than 20% of HH Income",{"$f":"C120+C121+C122","v":220},{"$f":"SQRT((D120^2)+(D121^2)+(D122^2))","v":59.858165691908738},{"$f":"E120+E121+E122","v":527},{"$f":"SQRT((F120^2)+(F121^2)+(F122^2))","v":147.2922265430189},{"$f":"G120+G121+G122","v":199},{"$f":"SQRT((H120^2)+(H121^2)+(H122^2))","v":48.989794855663561},{"$f":"I120+I121+I122","v":337},{"$f":"SQRT((J120^2)+(J121^2)+(J122^2))","v":84.261497731763583},{"$f":"K120+K121+K122","v":96},{"$f":"SQRT((L120^2)+(L121^2)+(L122^2))","v":22.715633383201094},{"$f":"M120+M121+M122","v":206},{"$f":"SQRT((N120^2)+(N121^2)+(N122^2))","v":42.367440328629719},{"$f":"O120+O121+O122","v":597},{"$f":"SQRT((P120^2)+(P121^2)+(P122^2))","v":134.37261625792661},{"$f":"Q120+Q121+Q122","v":2217},{"$f":"SQRT((R120^2)+(R121^2)+(R122^2))","v":300.3814241926421},{"$f":"S120+S121+S122","v":2165},{"$f":"SQRT((T120^2)+(T121^2)+(T122^2))","v":301.80291582421796},{"$f":"U120+U121+U122","v":278},{"$f":"SQRT((V120^2)+(V121^2)+(V122^2))","v":80.162335295324326},{"$f":"W120+W121+W122","v":134},{"$f":"SQRT((X120^2)+(X121^2)+(X122^2))","v":30.692018506445613},{"$f":"Y120+Y121+Y122","v":105},{"$f":"SQRT((Z120^2)+(Z121^2)+(Z122^2))","v":30.331501776206203},{"$f":"AA120+AA121+AA122","v":192},{"$f":"SQRT((AB120^2)+(AB121^2)+(AB122^2))","v":46.411205543489174},{"$f":"AC120+AC121+AC122","v":630},{"$f":"SQRT((AD120^2)+(AD121^2)+(AD122^2))","v":141.6792151305194},{"$f":"AE120+AE121+AE122","v":45},{"$f":"SQRT((AF120^2)+(AF121^2)+(AF122^2))","v":16.673332000533065},{"$f":"AG120+AG121+AG122","v":247},{"$f":"SQRT((AH120^2)+(AH121^2)+(AH122^2))","v":57.636793803958248},{"$f":"AI120+AI121+AI122","v":104},{"$f":"SQRT((AJ120^2)+(AJ121^2)+(AJ122^2))","v":27.820855486487112},{"$f":"AK120+AK121+AK122","v":166},{"$f":"SQRT((AL120^2)+(AL121^2)+(AL122^2))","v":37.094473981982816},{"$f":"AM120+AM121+AM122","v":961},{"$f":"SQRT((AN120^2)+(AN121^2)+(AN122^2))","v":202.42282479997161},{"$f":"AO120+AO121+AO122","v":305},{"$f":"SQRT((AP120^2)+(AP121^2)+(AP122^2))","v":84.095184166514542},{"$f":"AQ120+AQ121+AQ122","v":696},{"$f":"SQRT((AR120^2)+(AR121^2)+(AR122^2))","v":158.95596874606503},{"$f":"AS120+AS121+AS122","v":349},{"$f":"SQRT((AT120^2)+(AT121^2)+(AT122^2))","v":58.33523806414096},{"$f":"AU120+AU121+AU122","v":442},{"$f":"SQRT((AV120^2)+(AV121^2)+(AV122^2))","v":133.01127771734244}]
[null," 20% to 29.9% of HH Income",{"$f":"C123+C124","v":139},{"$f":"SQRT((D123^2)+(D124^2))","v":50.497524691810391},{"$f":"E123+E124","v":399},{"$f":"SQRT((F123^2)+(F124^2))","v":144.215117099422},{"$f":"G123+G124","v":139},{"$f":"SQRT((H123^2)+(H124^2))","v":44.877611344633749},{"$f":"I123+I124","v":259},{"$f":"SQRT((J123^2)+(J124^2))","v":72.325652433973943},{"$f":"K123+K124","v":72},{"$f":"SQRT((L123^2)+(L124^2))","v":17.972200755611428},{"$f":"M123+M124","v":105},{"$f":"SQRT((N123^2)+(N124^2))","v":32.326459750489228},{"$f":"O123+O124","v":405},{"$f":"SQRT((P123^2)+(P124^2))","v":117.23907198540938},{"$f":"Q123+Q124","v":1370},{"$f":"SQRT((R123^2)+(R124^2))","v":249.01204790130134},{"$f":"S123+S124","v":1150},{"$f":"SQRT((T123^2)+(T124^2))","v":203.63202105759299},{"$f":"U123+U124","v":132},{"$f":"SQRT((V123^2)+(V124^2))","v":45.398237851264668},{"$f":"W123+W124","v":59},{"$f":"SQRT((X123^2)+(X124^2))","v":20.445048300260872},{"$f":"Y123+Y124","v":37},{"$f":"SQRT((Z123^2)+(Z124^2))","v":15.033296378372908},{"$f":"AA123+AA124","v":72},{"$f":"SQRT((AB123^2)+(AB124^2))","v":31.464265445104548},{"$f":"AC123+AC124","v":340},{"$f":"SQRT((AD123^2)+(AD124^2))","v":93.930825611191139},{"$f":"AE123+AE124","v":11},{"$f":"SQRT((AF123^2)+(AF124^2))","v":13.490737563232042},{"$f":"AG123+AG124","v":89},{"$f":"SQRT((AH123^2)+(AH124^2))","v":28.809720581775867},{"$f":"AI123+AI124","v":61},{"$f":"SQRT((AJ123^2)+(AJ124^2))","v":20.63976744055029},{"$f":"AK123+AK124","v":106},{"$f":"SQRT((AL123^2)+(AL124^2))","v":33.045423283716609},{"$f":"AM123+AM124","v":546},{"$f":"SQRT((AN123^2)+(AN124^2))","v":173.45604630568516},{"$f":"AO123+AO124","v":172},{"$f":"SQRT((AP123^2)+(AP124^2))","v":64.241730985396089},{"$f":"AQ123+AQ124","v":233},{"$f":"SQRT((AR123^2)+(AR124^2))","v":90.327183062464641},{"$f":"AS123+AS124","v":134},{"$f":"SQRT((AT123^2)+(AT124^2))","v":41.460824883255761},{"$f":"AU123+AU124","v":272},{"$f":"SQRT((AV123^2)+(AV124^2))","v":89.504189846062502}]
[null," Less Than 30% of HH Income",{"$f":"C120+C121+C122+C123+C124","v":359},{"$f":"SQRT((D120^2)+(D121^2)+(D122^2)+(D123^2)+(D124^2))","v":78.313472659562223},{"$f":"E120+E121+E122+E123+E124","v":926},{"$f":"SQRT((F120^2)+(F121^2)+(F122^2)+(F123^2)+(F124^2))","v":206.13830308799965},{"$f":"G120+G121+G122+G123+G124","v":338},{"$f":"SQRT((H120^2)+(H121^2)+(H122^2)+(H123^2)+(H124^2))","v":66.437940967492366},{"$f":"I120+I121+I122+I123+I124","v":596},{"$f":"SQRT((J120^2)+(J121^2)+(J122^2)+(J123^2)+(J124^2))","v":111.04503590885997},{"$f":"K120+K121+K122+K123+K124","v":168},{"$f":"SQRT((L120^2)+(L121^2)+(L122^2)+(L123^2)+(L124^2))","v":28.965496715920477},{"$f":"M120+M121+M122+M123+M124","v":311},{"$f":"SQRT((N120^2)+(N121^2)+(N122^2)+(N123^2)+(N124^2))","v":53.291650377896914},{"$f":"O120+O121+O122+O123+O124","v":1002},{"$f":"SQRT((P120^2)+(P121^2)+(P122^2)+(P123^2)+(P124^2))","v":178.32834883999794},{"$f":"Q120+Q121+Q122+Q123+Q124","v":3587},{"$f":"SQRT((R120^2)+(R121^2)+(R122^2)+(R123^2)+(R124^2))","v":390.17432001606664},{"$f":"S120+S121+S122+S123+S124","v":3315},{"$f":"SQRT((T120^2)+(T121^2)+(T122^2)+(T123^2)+(T124^2))","v":364.07554161190228},{"$f":"U120+U121+U122+U123+U124","v":410},{"$f":"SQRT((V120^2)+(V121^2)+(V122^2)+(V123^2)+(V124^2))","v":92.124915196704521},{"$f":"W120+W121+W122+W123+W124","v":193},{"$f":"SQRT((X120^2)+(X121^2)+(X122^2)+(X123^2)+(X124^2))","v":36.878177829171548},{"$f":"Y120+Y121+Y122+Y123+Y124","v":142},{"$f":"SQRT((Z120^2)+(Z121^2)+(Z122^2)+(Z123^2)+(Z124^2))","v":33.852621759621513},{"$f":"AA120+AA121+AA122+AA123+AA124","v":264},{"$f":"SQRT((AB120^2)+(AB121^2)+(AB122^2)+(AB123^2)+(AB124^2))","v":56.071383075504748},{"$f":"AC120+AC121+AC122+AC123+AC124","v":970},{"$f":"SQRT((AD120^2)+(AD121^2)+(AD122^2)+(AD123^2)+(AD124^2))","v":169.98823488700623},{"$f":"AE120+AE121+AE122+AE123+AE124","v":56},{"$f":"SQRT((AF120^2)+(AF121^2)+(AF122^2)+(AF123^2)+(AF124^2))","v":21.447610589527216},{"$f":"AG120+AG121+AG122+AG123+AG124","v":336},{"$f":"SQRT((AH120^2)+(AH121^2)+(AH122^2)+(AH123^2)+(AH124^2))","v":64.436014774348052},{"$f":"AI120+AI121+AI122+AI123+AI124","v":165},{"$f":"SQRT((AJ120^2)+(AJ121^2)+(AJ122^2)+(AJ123^2)+(AJ124^2))","v":34.641016151377549},{"$f":"AK120+AK121+AK122+AK123+AK124","v":272},{"$f":"SQRT((AL120^2)+(AL121^2)+(AL122^2)+(AL123^2)+(AL124^2))","v":49.678969393496885},{"$f":"AM120+AM121+AM122+AM123+AM124","v":1507},{"$f":"SQRT((AN120^2)+(AN121^2)+(AN122^2)+(AN123^2)+(AN124^2))","v":266.57456742907789},{"$f":"AO120+AO121+AO122+AO123+AO124","v":477},{"$f":"SQRT((AP120^2)+(AP121^2)+(AP122^2)+(AP123^2)+(AP124^2))","v":105.82532778120746},{"$f":"AQ120+AQ121+AQ122+AQ123+AQ124","v":929},{"$f":"SQRT((AR120^2)+(AR121^2)+(AR122^2)+(AR123^2)+(AR124^2))","v":182.82778782231108},{"$f":"AS120+AS121+AS122+AS123+AS124","v":483},{"$f":"SQRT((AT120^2)+(AT121^2)+(AT122^2)+(AT123^2)+(AT124^2))","v":71.568149340331559},{"$f":"AU120+AU121+AU122+AU123+AU124","v":714},{"$f":"SQRT((AV120^2)+(AV121^2)+(AV122^2)+(AV123^2)+(AV124^2))","v":160.32155188869649}]
[null," 30% or More of HH Income",{"$f":"C125+C126+C127+C128","v":175},{"$f":"SQRT((D125^2)+(D126^2)+(D127^2)+(D128^2))","v":54.990908339470082},{"$f":"E125+E126+E127+E128","v":292},{"$f":"SQRT((F125^2)+(F126^2)+(F127^2)+(F128^2))","v":113.04866208850063},{"$f":"G125+G126+G127+G128","v":124},{"$f":"SQRT((H125^2)+(H126^2)+(H127^2)+(H128^2))","v":41.689327171351664},{"$f":"I125+I126+I127+I128","v":266},{"$f":"SQRT((J125^2)+(J126^2)+(J127^2)+(J128^2))","v":70.908391604943347},{"$f":"K125+K126+K127+K128","v":79},{"$f":"SQRT((L125^2)+(L126^2)+(L127^2)+(L128^2))","v":23.388031127053001},{"$f":"M125+M126+M127+M128","v":63},{"$f":"SQRT((N125^2)+(N126^2)+(N127^2)+(N128^2))","v":28.844410203711913},{"$f":"O125+O126+O127+O128","v":314},{"$f":"SQRT((P125^2)+(P126^2)+(P127^2)+(P128^2))","v":104.5609869884557},{"$f":"Q125+Q126+Q127+Q128","v":1480},{"$f":"SQRT((R125^2)+(R126^2)+(R127^2)+(R128^2))","v":234.66785037580243},{"$f":"S125+S126+S127+S128","v":1631},{"$f":"SQRT((T125^2)+(T126^2)+(T127^2)+(T128^2))","v":250.29382733099911},{"$f":"U125+U126+U127+U128","v":200},{"$f":"SQRT((V125^2)+(V126^2)+(V127^2)+(V128^2))","v":61.61980201201559},{"$f":"W125+W126+W127+W128","v":62},{"$f":"SQRT((X125^2)+(X126^2)+(X127^2)+(X128^2))","v":25.475478405713993},{"$f":"Y125+Y126+Y127+Y128","v":42},{"$f":"SQRT((Z125^2)+(Z126^2)+(Z127^2)+(Z128^2))","v":23.832750575625969},{"$f":"AA125+AA126+AA127+AA128","v":127},{"$f":"SQRT((AB125^2)+(AB126^2)+(AB127^2)+(AB128^2))","v":39.268307832143719},{"$f":"AC125+AC126+AC127+AC128","v":513},{"$f":"SQRT((AD125^2)+(AD126^2)+(AD127^2)+(AD128^2))","v":130.27662875589004},{"$f":"AE125+AE126+AE127+AE128","v":16},{"$f":"SQRT((AF125^2)+(AF126^2)+(AF127^2)+(AF128^2))","v":23.895606290697042},{"$f":"AG125+AG126+AG127+AG128","v":104},{"$f":"SQRT((AH125^2)+(AH126^2)+(AH127^2)+(AH128^2))","v":32.078029864690883},{"$f":"AI125+AI126+AI127+AI128","v":63},{"$f":"SQRT((AJ125^2)+(AJ126^2)+(AJ127^2)+(AJ128^2))","v":21.354156504062622},{"$f":"AK125+AK126+AK127+AK128","v":67},{"$f":"SQRT((AL125^2)+(AL126^2)+(AL127^2)+(AL128^2))","v":25.13961017995307},{"$f":"AM125+AM126+AM127+AM128","v":617},{"$f":"SQRT((AN125^2)+(AN126^2)+(AN127^2)+(AN128^2))","v":204.99756096110022},{"$f":"AO125+AO126+AO127+AO128","v":186},{"$f":"SQRT((AP125^2)+(AP126^2)+(AP127^2)+(AP128^2))","v":64.482555780614035},{"$f":"AQ125+AQ126+AQ127+AQ128","v":372},{"$f":"SQRT((AR125^2)+(AR126^2)+(AR127^2)+(AR128^2))","v":106.85504199615477},{"$f":"AS125+AS126+AS127+AS128","v":115},{"$f":"SQRT((AT125^2)+(AT126^2)+(AT127^2)+(AT128^2))","v":35.944401511222857},{"$f":"AU125+AU126+AU127+AU128","v":502},{"$f":"SQRT((AV125^2)+(AV126^2)+(AV127^2)+(AV128^2))","v":148.60349928585129}]
[null," 30% to 34.9% of HH Income",{"$f":"C125","v":68},{"$f":"D125","v":38.832975677895199},{"$f":"E125","v":29},31.827660925679098,25,16.763054614240211,59,29.068883707497267,21,13.416407864998739,15,13.601470508735444,73,43.56604182158393,379,113.99122773266372,417,126.01587201618692,52,32.649655434629018,20,16.970562748477139,5,12.083045973594572,35,20.615528128088304,144,54.626001134990652,2,11.401754250991379,37,19.849433241279208,21,12.206555615733702,20,10.63014581273465,286,152.19066988485201,40,29.832867780352597,61,36.055512754639892,22,14.560219778561036,121,77.103826104804938]
[null," Less Than 35% of HH Income",{"$f":"C120+C121+C122+C123+C124+C125","v":427},{"$f":"SQRT((D120^2)+(D121^2)+(D122^2)+(D123^2)+(D124^2)+(D125^2))","v":87.41281370600079},{"$f":"E120+E121+E122+E123+E124+E125","v":955},{"$f":"SQRT((F120^2)+(F121^2)+(F122^2)+(F123^2)+(F124^2)+(F125^2))","v":208.58091954922435},{"$f":"G120+G121+G122+G123+G124+G125","v":363},{"$f":"SQRT((H120^2)+(H121^2)+(H122^2)+(H123^2)+(H124^2)+(H125^2))","v":68.520070052503598},{"$f":"I120+I121+I122+I123+I124+I125","v":655},{"$f":"SQRT((J120^2)+(J121^2)+(J122^2)+(J123^2)+(J124^2)+(J125^2))","v":114.78675881825394},{"$f":"K120+K121+K122+K123+K124+K125","v":189},{"$f":"SQRT((L120^2)+(L121^2)+(L122^2)+(L123^2)+(L124^2)+(L125^2))","v":31.921779399024736},{"$f":"M120+M121+M122+M123+M124+M125","v":326},{"$f":"SQRT((N120^2)+(N121^2)+(N122^2)+(N123^2)+(N124^2)+(N125^2))","v":55},{"$f":"O120+O121+O122+O123+O124+O125","v":1075},{"$f":"SQRT((P120^2)+(P121^2)+(P122^2)+(P123^2)+(P124^2)+(P125^2))","v":183.57287381309908},{"$f":"Q120+Q121+Q122+Q123+Q124+Q125","v":3966},{"$f":"SQRT((R120^2)+(R121^2)+(R122^2)+(R123^2)+(R124^2)+(R125^2))","v":406.48493207005839},{"$f":"S120+S121+S122+S123+S124+S125","v":3732},{"$f":"SQRT((T120^2)+(T121^2)+(T122^2)+(T123^2)+(T124^2)+(T125^2))","v":385.26743957931353},{"$f":"U120+U121+U122+U123+U124+U125","v":462},{"$f":"SQRT((V120^2)+(V121^2)+(V122^2)+(V123^2)+(V124^2)+(V125^2))","v":97.739449558507332},{"$f":"W120+W121+W122+W123+W124+W125","v":213},{"$f":"SQRT((X120^2)+(X121^2)+(X122^2)+(X123^2)+(X124^2)+(X125^2))","v":40.595566260368876},{"$f":"Y120+Y121+Y122+Y123+Y124+Y125","v":147},{"$f":"SQRT((Z120^2)+(Z121^2)+(Z122^2)+(Z123^2)+(Z124^2)+(Z125^2))","v":35.944401511222857},{"$f":"AA120+AA121+AA122+AA123+AA124+AA125","v":299},{"$f":"SQRT((AB120^2)+(AB121^2)+(AB122^2)+(AB123^2)+(AB124^2)+(AB125^2))","v":59.741108124975383},{"$f":"AC120+AC121+AC122+AC123+AC124+AC125","v":1114},{"$f":"SQRT((AD120^2)+(AD121^2)+(AD122^2)+(AD123^2)+(AD124^2)+(AD125^2))","v":178.54971296532514},{"$f":"AE120+AE121+AE122+AE123+AE124+AE125","v":58},{"$f":"SQRT((AF120^2)+(AF121^2)+(AF122^2)+(AF123^2)+(AF124^2)+(AF125^2))","v":24.289915602982237},{"$f":"AG120+AG121+AG122+AG123+AG124+AG125","v":373},{"$f":"SQRT((AH120^2)+(AH121^2)+(AH122^2)+(AH123^2)+(AH124^2)+(AH125^2))","v":67.424031324150292},{"$f":"AI120+AI121+AI122+AI123+AI124+AI125","v":186},{"$f":"SQRT((AJ120^2)+(AJ121^2)+(AJ122^2)+(AJ123^2)+(AJ124^2)+(AJ125^2))","v":36.728735344413913},{"$f":"AK120+AK121+AK122+AK123+AK124+AK125","v":292},{"$f":"SQRT((AL120^2)+(AL121^2)+(AL122^2)+(AL123^2)+(AL124^2)+(AL125^2))","v":50.803543183522152},{"$f":"AM120+AM121+AM122+AM123+AM124+AM125","v":1793},{"$f":"SQRT((AN120^2)+(AN121^2)+(AN122^2)+(AN123^2)+(AN124^2)+(AN125^2))","v":306.95928068719473},{"$f":"AO120+AO121+AO122+AO123+AO124+AO125","v":517},{"$f":"SQRT((AP120^2)+(AP121^2)+(AP122^2)+(AP123^2)+(AP124^2)+(AP125^2))","v":109.94998863119541},{"$f":"AQ120+AQ121+AQ122+AQ123+AQ124+AQ125","v":990},{"$f":"SQRT((AR120^2)+(AR121^2)+(AR122^2)+(AR123^2)+(AR124^2)+(AR125^2))","v":186.34913469077338},{"$f":"AS120+AS121+AS122+AS123+AS124+AS125","v":505},{"$f":"SQRT((AT120^2)+(AT121^2)+(AT122^2)+(AT123^2)+(AT124^2)+(AT125^2))","v":73.034238546040854},{"$f":"AU120+AU121+AU122+AU123+AU124+AU125","v":835},{"$f":"SQRT((AV120^2)+(AV121^2)+(AV122^2)+(AV123^2)+(AV124^2)+(AV125^2))","v":177.8988476634967}]
[null," 35% or More of HH Income",{"$f":"C126+C127+C128","v":107},{"$f":"SQRT((D126^2)+(D127^2)+(D128^2))","v":38.93584466786357},{"$f":"E126+E127+E128","v":263},{"$f":"SQRT((F126^2)+(F127^2)+(F128^2))","v":108.47580375364821},{"$f":"G126+G127+G128","v":99},{"$f":"SQRT((H126^2)+(H127^2)+(H128^2))","v":38.17066936798463},{"$f":"I126+I127+I128","v":207},{"$f":"SQRT((J126^2)+(J127^2)+(J128^2))","v":64.67611614808051},{"$f":"K126+K127+K128","v":58},{"$f":"SQRT((L126^2)+(L127^2)+(L128^2))","v":19.157244060668017},{"$f":"M126+M127+M128","v":48},{"$f":"SQRT((N126^2)+(N127^2)+(N128^2))","v":25.436194683953808},{"$f":"O126+O127+O128","v":241},{"$f":"SQRT((P126^2)+(P127^2)+(P128^2))","v":95.052617007634254},{"$f":"Q126+Q127+Q128","v":1101},{"$f":"SQRT((R126^2)+(R127^2)+(R128^2))","v":205.12191496766016},{"$f":"S126+S127+S128","v":1214},{"$f":"SQRT((T126^2)+(T127^2)+(T128^2))","v":216.25679180085882},{"$f":"U126+U127+U128","v":148},{"$f":"SQRT((V126^2)+(V127^2)+(V128^2))","v":52.258970521815677},{"$f":"W126+W127+W128","v":42},{"$f":"SQRT((X126^2)+(X127^2)+(X128^2))","v":19},{"$f":"Y126+Y127+Y128","v":37},{"$f":"SQRT((Z126^2)+(Z127^2)+(Z128^2))","v":20.542638584174139},{"$f":"AA126+AA127+AA128","v":92},{"$f":"SQRT((AB126^2)+(AB127^2)+(AB128^2))","v":33.421549934136806},{"$f":"AC126+AC127+AC128","v":369},{"$f":"SQRT((AD126^2)+(AD127^2)+(AD128^2))","v":118.27087553578015},{"$f":"AE126+AE127+AE128","v":14},{"$f":"SQRT((AF126^2)+(AF127^2)+(AF128^2))","v":21},{"$f":"AG126+AG127+AG128","v":67},{"$f":"SQRT((AH126^2)+(AH127^2)+(AH128^2))","v":25.199206336708308},{"$f":"AI126+AI127+AI128","v":42},{"$f":"SQRT((AJ126^2)+(AJ127^2)+(AJ128^2))","v":17.521415467935231},{"$f":"AK126+AK127+AK128","v":47},{"$f":"SQRT((AL126^2)+(AL127^2)+(AL128^2))","v":22.781571499789038},{"$f":"AM126+AM127+AM128","v":331},{"$f":"SQRT((AN126^2)+(AN127^2)+(AN128^2))","v":137.33899664698296},{"$f":"AO126+AO127+AO128","v":146},{"$f":"SQRT((AP126^2)+(AP127^2)+(AP128^2))","v":57.166423711825807},{"$f":"AQ126+AQ127+AQ128","v":311},{"$f":"SQRT((AR126^2)+(AR127^2)+(AR128^2))","v":100.58826969383657},{"$f":"AS126+AS127+AS128","v":93},{"$f":"SQRT((AT126^2)+(AT127^2)+(AT128^2))","v":32.863353450309965},{"$f":"AU126+AU127+AU128","v":381},{"$f":"SQRT((AV126^2)+(AV127^2)+(AV128^2))","v":127.03542812932147}]
[null," 50% or More of HH Income",{"$f":"C128","v":18},{"$f":"D128","v":12.727922061357855},{"$f":"E128","v":104},65,52,26.172504656604801,84,39.66106403010388,27,11.401754250991379,27,17.088007490635061,179,87.709748602991681,637,162.05246064160829,717,169.61426826773743,55,31.384709652950431,19,11.180339887498949,20,15.264337522473747,44,24.413111231467404,140,69.028979421689272,6,10.440306508910551,9,13.601470508735444,29,15.811388300841896,20,12.649110640673518,190,107.54068997360952,76,44.384682042344295,101,46.010868281309364,34,18.439088914585774,170,84.308955633431964]
[null,"Not computed",{"$f":"C129","v":18},{"$f":"D129","v":21.095023109728988},0,15.556349186104045,0,15.556349186104045,11,14.212670403551895,10,16.278820596099706,0,15.556349186104045,0,15.556349186104045,5,24.186773244895647,4,21.931712199461309,0,15.556349186104045,0,15.556349186104045,2,11.401754250991379,0,15.556349186104045,0,22.627416997969522,0,15.556349186104045,0,15.556349186104045,4,5,2,11.401754250991379,0,22.627416997969522,0,15.556349186104045,0,15.556349186104045,4,13.038404810405298,9,17.804493814764857]
[]
[]
[]
[null,"B25091. MORTGAGE STATUS BY SELECTED MONTHLY OWNER COSTS AS A PERCENTAGE OF HOUSEHOLD INCOME IN THE PAST 12 MONTHS "]
[null,"Universe:  OWNER-OCCUPIED HOUSING UNITS"]
[null,"Data Set: 2008-2012 American Community Survey 5-Year Estimates"]
[]
[null,null,"Alstead",null,"Chesterfield",null,"Dublin",null,"Fitzwilliam",null,"Gilsum",null,"Harrisville",null,"Hinsdale",null,"Jaffrey",null,"Keene",null,"Marlborough",null,"Marlow",null,"Nelson",null,"Richmond",null,"Rindge",null,"Roxbury",null,"Stoddard",null,"Sullivan",null,"Surry",null,"Swanzey",null,"Troy",null,"Walpole",null,"Westmoreland",null,"Winchester"]
[null," ","Estimate","Margin of Error","Estimate","Margin of Error","Estimate","Margin of Error","Estimate","Margin of Error","Estimate","Margin of Error","Estimate","Margin of Error","Estimate","Margin of Error","Estimate","Margin of Error","Estimate","Margin of Error","Estimate","Margin of Error","Estimate","Margin of Error","Estimate","Margin of Error","Estimate","Margin of Error","Estimate","Margin of Error","Estimate","Margin of Error","Estimate","Margin of Error","Estimate","Margin of Error","Estimate","Margin of Error","Estimate","Margin of Error","Estimate","Margin of Error","Estimate","Margin of Error","Estimate","Margin of Error","Estimate","Margin of Error"]
[null,"Total:",621,69,1263,141,480,54,944,104,217,33,360,55,1308,157,5098,324,null,null,597,70,297,64,236,42,342,48,1354,134,76,15,408,64,218,35,322,44,2256,207,577,81,1049,110,601,73,1218,181]
[null,"Housing units with a mortgage:",403,68,739,172,333,59,637,94,101,26,194,42,711,133,3088,274,null,null,345,68,183,56,138,36,253,49,996,124,49,13,271,62,149,36,203,41,1543,192,363,80,651,121,449,72,815,153]
[null,"Less than 10.0 percent",12,10,22,35,7,8,30,21,0,11,8,7,7,11,124,63,null,null,6,10,0,11,7,12,0,11,40,25,1,2,11,14,2,3,5,6,50,53,13,14,0,11,24,16,16,24]
[null,"10.0 to 14.9 percent",53,32,17,24,34,20,42,29,4,4,19,9,41,44,244,89,null,null,12,14,25,21,52,31,17,11,90,49,2,4,24,15,10,7,12,7,188,104,23,20,75,54,27,12,75,41]
[null,"15.0 to 19.9 percent",107,48,155,78,56,25,99,46,16,10,43,21,130,64,422,135,null,null,95,41,46,25,9,6,27,17,188,71,17,9,47,24,53,24,40,27,153,86,39,23,154,59,88,32,141,82]
[null,"20.0 to 24.9 percent",46,23,174,91,69,33,122,62,13,10,29,16,129,73,611,144,null,null,64,29,22,16,9,7,27,14,154,55,3,3,56,33,21,12,18,10,329,133,59,40,48,35,76,34,76,46]
[null,"25.0 to 29.9 percent",65,38,103,59,48,24,107,39,11,8,27,14,158,80,390,100,null,null,55,30,22,14,13,14,33,23,140,56,8,6,17,12,12,10,52,27,143,74,46,26,82,43,62,29,148,60]
[null,"30.0 to 34.9 percent",40,21,46,45,16,13,69,42,27,18,15,15,130,74,300,89,null,null,21,19,16,10,10,8,49,32,35,25,2,3,10,9,10,9,14,10,149,78,73,34,59,40,53,25,61,45]
[null,"35.0 to 39.9 percent",18,12,85,53,16,16,47,35,12,9,3,4,17,20,292,134,null,null,25,27,3,4,0,11,25,13,87,45,0,11,26,19,7,8,11,10,47,42,9,13,16,15,20,18,98,67]
[null,"40.0 to 49.9 percent",14,12,72,60,36,25,59,37,4,5,35,20,10,18,271,120,null,null,37,22,4,4,17,10,34,22,89,46,5,6,22,12,16,15,30,17,228,123,37,23,92,63,52,27,26,25]
[null,"50.0 percent or more",45,26,54,50,51,26,62,48,14,14,15,14,89,50,415,112,null,null,30,22,45,45,21,13,41,21,173,65,6,5,58,30,18,11,21,14,256,101,64,41,125,64,44,23,174,73]
[null,"Not computed",3,4,11,18,0,11,0,11,0,11,0,11,0,11,19,33,null,null,0,11,0,11,0,11,0,11,0,16,5,7,0,11,0,11,0,11,0,16,0,11,0,11,3,4,0,11]
[null,"Housing units without a mortgage:",218,45,524,133,147,44,307,74,116,26,166,44,597,115,2010,231,null,null,252,59,114,36,98,26,89,24,358,86,27,11,137,39,69,23,119,33,713,157,214,70,398,104,152,42,403,96]
[null,"Less than 10.0 percent",25,13,139,98,32,24,63,38,16,12,45,21,81,68,266,96,null,null,55,34,31,22,27,17,36,17,82,40,4,5,42,23,13,11,38,19,112,73,31,21,88,50,43,23,41,34]
[null,"10.0 to 14.9 percent",79,31,137,85,36,18,62,44,28,12,16,11,52,39,331,124,null,null,80,37,8,7,32,14,16,10,50,35,4,4,31,19,6,6,24,14,153,76,57,36,88,44,44,17,83,54]
[null,"15.0 to 19.9 percent",31,18,157,88,15,12,48,23,14,9,35,25,140,79,302,119,null,null,14,14,8,9,10,9,11,9,39,29,8,8,28,21,13,11,16,11,201,92,58,31,65,41,7,8,71,42]
[null,"20.0 to 24.9 percent",32,17,26,28,15,16,41,38,29,16,30,27,103,83,354,126,null,null,28,26,21,12,7,8,5,6,13,16,2,3,11,9,4,4,14,12,44,38,24,30,28,26,29,16,48,38]
[null,"25.0 to 29.9 percent",9,10,0,11,7,7,51,27,0,11,3,4,55,36,118,57,null,null,17,16,5,6,5,7,6,7,34,32,0,11,13,15,8,11,16,13,13,19,7,11,37,46,8,9,12,20]
[null,"30.0 to 34.9 percent",19,18,0,11,13,13,15,11,20,19,9,13,0,11,72,43,null,null,12,13,3,4,3,4,2,3,11,17,0,11,3,5,4,7,0,11,20,23,2,3,31,29,0,11,73,47]
[null,"35.0 to 39.9 percent",18,14,24,33,0,11,4,7,0,11,3,5,0,11,57,44,null,null,31,31,17,16,8,14,2,4,45,43,3,4,0,11,2,3,0,11,9,15,6,9,8,12,0,11,0,11]
[null,"40.0 to 49.9 percent",0,11,0,11,21,17,9,11,0,11,0,11,78,73,168,86,null,null,0,11,4,4,2,4,0,11,23,36,6,5,0,11,0,11,0,11,48,35,6,10,15,17,8,8,36,36]
[null,"50.0 percent or more",5,7,41,37,8,12,14,15,9,8,19,16,88,50,342,114,null,null,15,13,17,17,4,5,11,14,50,41,0,11,9,8,19,15,11,9,113,80,23,24,30,33,13,17,39,30]
[null,"Not computed",0,11,0,11,0,11,0,11,0,11,6,6,0,11,0,21,null,null,0,11,0,11,0,11,0,11,11,17,0,11,0,11,0,11,0,11,0,16,0,11,8,12,0,11,0,11]
[]
[]
[]
[null,"Calculated B25091. MORTGAGE STATUS BY SELECTED MONTHLY OWNER COSTS AS A PERCENTAGE OF HOUSEHOLD INCOME IN THE PAST 12 MONTHS "]
[null,"Universe:  OWNER-OCCUPIED HOUSING UNITS"]
[null,"Data Set: 2008-2012 American Community Survey 5-Year Estimates"]
[]
[null,null,"Alstead",null,"Chesterfield",null,"Dublin",null,"Fitzwilliam",null,"Gilsum",null,"Harrisville",null,"Hinsdale",null,"Jaffrey",null,"Keene",null,"Marlborough",null,"Marlow",null,"Nelson",null,"Richmond",null,"Rindge",null,"Roxbury",null,"Stoddard",null,"Sullivan",null,"Surry",null,"Swanzey",null,"Troy",null,"Walpole",null,"Westmoreland",null,"Winchester"]
[null," ","Estimate","Margin of Error","Estimate","Margin of Error","Estimate","Margin of Error","Estimate","Margin of Error","Estimate","Margin of Error","Estimate","Margin of Error","Estimate","Margin of Error","Estimate","Margin of Error","Estimate","Margin of Error","Estimate","Margin of Error","Estimate","Margin of Error","Estimate","Margin of Error","Estimate","Margin of Error","Estimate","Margin of Error","Estimate","Margin of Error","Estimate","Margin of Error","Estimate","Margin of Error","Estimate","Margin of Error","Estimate","Margin of Error","Estimate","Margin of Error","Estimate","Margin of Error","Estimate","Margin of Error","Estimate","Margin of Error"]
[null,"Total:",{"$f":"C158","v":621},{"$f":"D158","v":69},{"$f":"E158","v":1263},141,480,54,944,104,217,33,360,55,1308,157,5098,324,0,0,597,70,297,64,{"$f":"Y158","v":236},42,342,48,1354,134,76,15,408,64,218,35,322,44,2256,207,577,81,1049,110,601,73,1218,181]
[null,"Less than 10.0 percent",{"$f":"C160+C171","v":37},{"$f":"SQRT((D160^2)+(D171^2))","v":16.401219466856727},{"$f":"E160+E171","v":161},{"$f":"SQRT((F160^2)+(F171^2))","v":104.06248123122954},{"$f":"G160+G171","v":39},{"$f":"SQRT((H160^2)+(H171^2))","v":25.298221281347036},{"$f":"I160+I171","v":93},{"$f":"SQRT((J160^2)+(J171^2))","v":43.416586692184822},{"$f":"K160+K171","v":16},{"$f":"SQRT((L160^2)+(L171^2))","v":16.278820596099706},{"$f":"M160+M171","v":53},{"$f":"SQRT((N160^2)+(N171^2))","v":22.135943621178654},{"$f":"O160+O171","v":88},{"$f":"SQRT((P160^2)+(P171^2))","v":68.8839603971781},{"$f":"Q160+Q171","v":390},{"$f":"SQRT((R160^2)+(R171^2))","v":114.82595525402782},{"$f":"S160+S171","v":0},{"$f":"SQRT((T160^2)+(T171^2))","v":0},{"$f":"U160+U171","v":61},{"$f":"SQRT((V160^2)+(V171^2))","v":35.440090293338699},{"$f":"W160+W171","v":31},{"$f":"SQRT((X160^2)+(X171^2))","v":24.596747752497688},34,{"$f":"SQRT((Z160^2)+(Z171^2))","v":20.808652046684813},36,{"$f":"SQRT((AB160^2)+(AB171^2))","v":20.248456731316587},122,{"$f":"SQRT((AD160^2)+(AD171^2))","v":47.169905660283021},5,{"$f":"SQRT((AF160^2)+(AF171^2))","v":5.3851648071345037},53,{"$f":"SQRT((AH160^2)+(AH171^2))","v":26.92582403567252},15,{"$f":"SQRT((AJ160^2)+(AJ171^2))","v":11.401754250991379},43,{"$f":"SQRT((AL160^2)+(AL171^2))","v":19.924858845171276},{"$f":"AM160+AM171","v":162},{"$f":"SQRT((AN160^2)+(AN171^2))","v":90.210864090751286},44,{"$f":"SQRT((AP160^2)+(AP171^2))","v":25.238858928247925},88,{"$f":"SQRT((AR160^2)+(AR171^2))","v":51.195702944680818},67,{"$f":"SQRT((AT160^2)+(AT171^2))","v":28.0178514522438},57,{"$f":"SQRT((AV160^2)+(AV171^2))","v":41.617304093369626}]
[null,"10.0 to 14.9 percent",132,44.553338819890925,154,88.323269867006175,70,26.90724809414742,104,52.697248505021591,32,12.649110640673518,35,14.212670403551895,93,58.796258384356399,575,152.63354808167173,0,0,92,39.560080889704963,33,{"$f":"SQRT((X161^2)+(X172^2))","v":22.135943621178654},84,34.014702703389901,33,14.866068747318506,140,60.21627686929839,6,5.6568542494923806,55,24.207436873820409,16,9.2195444572928871,36,15.652475842498529,341,128.80993750483694,80,41.182520563948003,163,69.656299069071991,71,20.808652046684813,158,67.801179930735714]
[null,"15.0 to 19.9 percent",138,51.264022471905186,312,117.5925167687128,71,27.730849247724095,147,51.429563482495162,30,13.45362404707371,78,32.649655434629018,270,101.67103815738285,724,179.96110690924303,0,0,109,43.324358044868937,54,26.570660511172846,19,{"$f":"SQRT((Z162^2)+(Z173^2))","v":10.816653826391969},38,19.235384061671343,227,76.694197955256044,25,12.041594578792296,75,31.89043743820395,66,26.40075756488817,56,29.154759474226502,354,125.93649193144932,97,38.600518131237564,219,71.847059786744225,95,32.984845004941285,212,92.130342450248165]
[null,"20.0 to 24.9 percent",78,28.600699292150182,200,95.210293561148106,84,36.674241641784498,163,72.718635850791372,42,18.867962264113206,59,31.384709652950431,232,110.53506231056279,965,191.34262462922368,0,0,92,38.948684188300895,43,20,16,10.63014581273465,32,15.231546211727817,167,57.280013966478741,5,4.2426406871192848,67,34.205262752974143,25,12.649110640673518,32,15.620499351813308,373,138.32208789632983,83,50,76,43.600458713183279,105,37.576588456111871,124,59.665735560705194]
[null,"25.0 to 29.9 percent",74,39.293765408776999,103,60.016664352494629,55,25,158,47.434164902525687,11,13.601470508735444,30,14.560219778561036,213,87.726848797845236,508,115.10430052782563,0,0,72,34,27,15.231546211727817,18,15.652475842498529,39,24.041630560342615,174,64.498061986388393,8,12.529964086141668,30,19.209372712298546,20,14.866068747318506,68,29.966648127543394,156,76.400261779656233,53,28.231188426986208,119,62.968245965724662,70,30.364452901377952,160,63.245553203367585]
[null,"30.0 to 34.9 percent",59,27.658633371878661,46,46.324939287601879,29,18.384776310850235,84,43.416586692184822,47,26.172504656604801,24,19.849433241279208,130,74.813100457072352,372,98.843310345212544,0,0,33,23.021728866442675,19,10.770329614269007,13,8.9442719099991592,51,32.140317359976393,46,30.232432915661949,2,11.401754250991379,13,10.295630140987001,14,11.401754250991379,14,14.866068747318506,169,81.320354155647891,75,34.132096331752024,90,49.406477308142499,53,27.313000567495326,134,65.069193939989759]
[null,"35.0 to 39.9 percent",36,18.439088914585774,109,62.433965115151864,16,19.416487838947599,51,35.693136595149497,12,14.212670403551895,6,6.4031242374328485,17,22.825424421026653,349,141.03900169811186,0,0,56,41.109609582188931,20,16.492422502470642,8,17.804493814764857,27,13.601470508735444,132,62.241465278381739,3,11.704699910719626,26,21.95449840010015,9,8.5440037453175304,11,14.866068747318506,56,44.598206241955516,15,15.811388300841896,24,19.209372712298546,20,21.095023109728988,98,67.896980787071826]
[null,"40.0 to 49.9 percent",14,16.278820596099706,72,61,57,30.232432915661949,68,38.600518131237564,4,12.083045973594572,35,22.825424421026653,88,75.186434946737563,439,147.63468427168462,0,0,37,24.596747752497688,8,5.6568542494923806,19,10.770329614269007,34,24.596747752497688,112,58.412327466040935,11,7.810249675906654,22,16.278820596099706,16,18.601075237738275,30,20.248456731316587,276,127.88275880665071,43,25.079872407968907,107,65.253352404301808,60,28.160255680657446,62,43.829214001622255]
[null,"50.0 percent or more",{"$f":"C168+C179","v":50},26.92582403567252,95,62.201286160335947,59,28.635642126552707,76,50.289163842720633,23,16.124515496597098,34,21.2602916254693,177,70.710678118654755,757,159.81239000778382,0,0,45,25.553864678361276,62,48.104053883222775,25,13.928388277184119,52,25.238858928247925,223,76.850504227363402,6,12.083045973594572,67,31.048349392520048,37,18.601075237738275,32,16.643316977093239,369,128.84486796143648,87,47.507894080878813,155,72.006944109578768,57,28.600699292150182,213,78.924014089502563]
[null,"Not computed",3,11.704699910719626,11,21.095023109728988,0,15.556349186104045,0,15.556349186104045,0,15.556349186104045,6,12.529964086141668,0,15.556349186104045,19,39.11521443121589,0,0,0,15.556349186104045,0,15.556349186104045,0,15.556349186104045,0,15.556349186104045,11,23.345235059857504,5,13.038404810405298,0,15.556349186104045,0,15.556349186104045,0,15.556349186104045,0,22.627416997969522,0,15.556349186104045,8,16.278820596099706,3,11.704699910719626,0,15.556349186104045]
[]
[]
[]
[]
[null,"Calculated MONTHLY OWNER COSTS AS A PERCENTAGE OF HOUSEHOLD INCOME IN THE PAST 12 MONTHS "]
[null,"Universe:  OWNER-OCCUPIED HOUSING UNITS"]
[null,"Data Set: 2008-2012 American Community Survey 5-Year Estimates"]
[null,null,"Alstead",null,"Chesterfield",null,"Dublin",null,"Fitzwilliam",null,"Gilsum",null,"Harrisville",null,"Hinsdale",null,"Jaffrey",null,"Keene",null,"Marlborough",null,"Marlow",null,"Nelson",null,"Richmond",null,"Rindge",null,"Roxbury",null,"Stoddard",null,"Sullivan",null,"Surry",null,"Swanzey",null,"Troy",null,"Walpole",null,"Westmoreland",null,"Winchester"]
[null," ","Estimate","Margin of Error","Estimate","Margin of Error","Estimate","Margin of Error","Estimate","Margin of Error","Estimate","Margin of Error","Estimate","Margin of Error","Estimate","Margin of Error","Estimate","Margin of Error","Estimate","Margin of Error","Estimate","Margin of Error","Estimate","Margin of Error","Estimate","Margin of Error","Estimate","Margin of Error","Estimate","Margin of Error","Estimate","Margin of Error","Estimate","Margin of Error","Estimate","Margin of Error","Estimate","Margin of Error","Estimate","Margin of Error","Estimate","Margin of Error","Estimate","Margin of Error","Estimate","Margin of Error","Estimate","Margin of Error"]
[null,"Total:",{"$f":"C190","v":621},69,1263,141,480,54,944,104,217,33,360,55,1308,157,5098,324,0,0,597,70,297,64,{"$f":"Y190","v":236},42,342,48,1354,134,76,15,408,64,218,35,322,44,2256,207,577,81,1049,110,601,73,1218,181]
[null,"Less than 20% of HH Income",{"$f":"C191+C192+C193","v":307},{"$f":"SQRT((D191^2)+(D192^2)+(D193^2))","v":69.871310278253688},{"$f":"E191+E192+E193","v":627},{"$f":"SQRT((F191^2)+(F192^2)+(F193^2))","v":180.16103907338012},{"$f":"G191+G192+G193","v":180},{"$f":"SQRT((H191^2)+(H192^2)+(H193^2))","v":46.184412955021955},{"$f":"I191+I192+I193","v":344},{"$f":"SQRT((J191^2)+(J192^2)+(J193^2))","v":85.480992039166239},{"$f":"K191+K192+K193","v":78},{"$f":"SQRT((L191^2)+(L192^2)+(L193^2))","v":24.617067250182341},{"$f":"M191+M192+M193","v":166},{"$f":"SQRT((N191^2)+(N192^2)+(N193^2))","v":41.928510586473259},{"$f":"O191+O192+O193","v":451},{"$f":"SQRT((P191^2)+(P192^2)+(P193^2))","v":136.15799645999496},{"$f":"Q191+Q192+Q193","v":1689},{"$f":"SQRT((R191^2)+(R192^2)+(R193^2))","v":262.42713274354844},{"$f":"S191+S192+S193","v":0},{"$f":"SQRT((T191^2)+(T192^2)+(T193^2))","v":0},{"$f":"U191+U192+U193","v":262},{"$f":"SQRT((V191^2)+(V192^2)+(V193^2))","v":68.541957952775164},{"$f":"W191+W192+W193","v":118},{"$f":"SQRT((X191^2)+(X192^2)+(X193^2))","v":42.43819034784589},{"$f":"Y191+Y192+Y193","v":137},{"$f":"SQRT((Z191^2)+(Z192^2)+(Z193^2))","v":41.3158565202272},{"$f":"AA191+AA192+AA193","v":107},{"$f":"SQRT((AB191^2)+(AB192^2)+(AB193^2))","v":31.63858403911275},{"$f":"AC191+AC192+AC193","v":489},{"$f":"SQRT((AD191^2)+(AD192^2)+(AD193^2))","v":108.31897340724754},{"$f":"AE191+AE192+AE193","v":36},{"$f":"SQRT((AF191^2)+(AF192^2)+(AF193^2))","v":14.352700094407323},{"$f":"AG191+AG192+AG193","v":183},{"$f":"SQRT((AH191^2)+(AH192^2)+(AH193^2))","v":48.249352327259274},{"$f":"AI191+AI192+AI193","v":97},{"$f":"SQRT((AJ191^2)+(AJ192^2)+(AJ193^2))","v":30.199337741082999},{"$f":"AK191+AK192+AK193","v":135},{"$f":"SQRT((AL191^2)+(AL192^2)+(AL193^2))","v":38.626415831655933},{"$f":"AM191+AM192+AM193","v":857},{"$f":"SQRT((AN191^2)+(AN192^2)+(AN193^2))","v":201.46960068456977},{"$f":"AO191+AO192+AO193","v":221},{"$f":"SQRT((AP191^2)+(AP192^2)+(AP193^2))","v":61.830413228442843},{"$f":"AQ191+AQ192+AQ193","v":470},{"$f":"SQRT((AR191^2)+(AR192^2)+(AR193^2))","v":112.4055158788927},{"$f":"AS191+AS192+AS193","v":233},{"$f":"SQRT((AT191^2)+(AT192^2)+(AT193^2))","v":48.020828814171878},{"$f":"AU191+AU192+AU193","v":427},{"$f":"SQRT((AV191^2)+(AV192^2)+(AV193^2))","v":121.7251001231874}]
[null," 20% to 29.9% of HH Income",{"$f":"C194+C195","v":152},{"$f":"SQRT((D194^2)+(D195^2))","v":48.600411520891463},{"$f":"E194+E195","v":303},{"$f":"SQRT((F194^2)+(F195^2))","v":112.5477676366795},{"$f":"G194+G195","v":139},{"$f":"SQRT((H194^2)+(H195^2))","v":44.384682042344295},{"$f":"I194+I195","v":321},{"$f":"SQRT((J194^2)+(J195^2))","v":86.821656284592962},{"$f":"K194+K195","v":53},{"$f":"SQRT((L194^2)+(L195^2))","v":23.259406699226016},{"$f":"M194+M195","v":89},{"$f":"SQRT((N194^2)+(N195^2))","v":34.597687784012386},{"$f":"O194+O195","v":445},{"$f":"SQRT((P194^2)+(P195^2))","v":141.11697275664611},{"$f":"Q194+Q195","v":1473},{"$f":"SQRT((R194^2)+(R195^2))","v":223.29576798497547},{"$f":"S194+S195","v":0},{"$f":"SQRT((T194^2)+(T195^2))","v":0},{"$f":"U194+U195","v":164},{"$f":"SQRT((V194^2)+(V195^2))","v":51.701063818842258},{"$f":"W194+W195","v":70},{"$f":"SQRT((X194^2)+(X195^2))","v":25.13961017995307},{"$f":"Y194+Y195","v":34},{"$f":"SQRT((Z194^2)+(Z195^2))","v":18.920887928424502},{"$f":"AA194+AA195","v":71},{"$f":"SQRT((AB194^2)+(AB195^2))","v":28.460498941515411},{"$f":"AC194+AC195","v":341},{"$f":"SQRT((AD194^2)+(AD195^2))","v":86.261231152818581},{"$f":"AE194+AE195","v":13},{"$f":"SQRT((AF194^2)+(AF195^2))","v":13.228756555322953},{"$f":"AG194+AG195","v":97},{"$f":"SQRT((AH194^2)+(AH195^2))","v":39.230090491866065},{"$f":"AI194+AI195","v":45},{"$f":"SQRT((AJ194^2)+(AJ195^2))","v":19.519221295943137},{"$f":"AK194+AK195","v":100},{"$f":"SQRT((AL194^2)+(AL195^2))","v":33.793490497431605},{"$f":"AM194+AM195","v":529},{"$f":"SQRT((AN194^2)+(AN195^2))","v":158.01898620102585},{"$f":"AO194+AO195","v":136},{"$f":"SQRT((AP194^2)+(AP195^2))","v":57.419508879822367},{"$f":"AQ194+AQ195","v":195},{"$f":"SQRT((AR194^2)+(AR195^2))","v":76.589816555466427},{"$f":"AS194+AS195","v":175},{"$f":"SQRT((AT194^2)+(AT195^2))","v":48.311489316724654},{"$f":"AU194+AU195","v":284},{"$f":"SQRT((AV194^2)+(AV195^2))","v":86.948260477136628}]
[null," Less Than 30% of HH Income",{"$f":"C191+C192+C193+C194+C195","v":459},{"$f":"SQRT((D191^2)+(D192^2)+(D193^2)+(D194^2)+(D195^2))","v":85.111691323812849},{"$f":"E191+E192+E193+E194+E195","v":930},{"$f":"SQRT((F191^2)+(F192^2)+(F193^2)+(F194^2)+(F195^2))","v":212.42645786248002},{"$f":"G191+G192+G193+G194+G195","v":319},{"$f":"SQRT((H191^2)+(H192^2)+(H193^2)+(H194^2)+(H195^2))","v":64.054664154923174},{"$f":"I191+I192+I193+I194+I195","v":665},{"$f":"SQRT((J191^2)+(J192^2)+(J193^2)+(J194^2)+(J195^2))","v":121.8400590938793},{"$f":"K191+K192+K193+K194+K195","v":131},{"$f":"SQRT((L191^2)+(L192^2)+(L193^2)+(L194^2)+(L195^2))","v":33.867388443752198},{"$f":"M191+M192+M193+M194+M195","v":255},{"$f":"SQRT((N191^2)+(N192^2)+(N193^2)+(N194^2)+(N195^2))","v":54.359911699707531},{"$f":"O191+O192+O193+O194+O195","v":896},{"$f":"SQRT((P191^2)+(P192^2)+(P193^2)+(P194^2)+(P195^2))","v":196.09436503887611},{"$f":"Q191+Q192+Q193+Q194+Q195","v":3162},{"$f":"SQRT((R191^2)+(R192^2)+(R193^2)+(R194^2)+(R195^2))","v":344.57074745253698},{"$f":"S191+S192+S193+S194+S195","v":0},{"$f":"SQRT((T191^2)+(T192^2)+(T193^2)+(T194^2)+(T195^2))","v":0},{"$f":"U191+U192+U193+U194+U195","v":426},{"$f":"SQRT((V191^2)+(V192^2)+(V193^2)+(V194^2)+(V195^2))","v":85.8545281275251},{"$f":"W191+W192+W193+W194+W195","v":188},{"$f":"SQRT((X191^2)+(X192^2)+(X193^2)+(X194^2)+(X195^2))","v":49.325449820554098},{"$f":"Y191+Y192+Y193+Y194+Y195","v":171},{"$f":"SQRT((Z191^2)+(Z192^2)+(Z193^2)+(Z194^2)+(Z195^2))","v":45.44227107000706},{"$f":"AA191+AA192+AA193+AA194+AA195","v":178},{"$f":"SQRT((AB191^2)+(AB192^2)+(AB193^2)+(AB194^2)+(AB195^2))","v":42.555845661906424},{"$f":"AC191+AC192+AC193+AC194+AC195","v":830},{"$f":"SQRT((AD191^2)+(AD192^2)+(AD193^2)+(AD194^2)+(AD195^2))","v":138.47021340346089},{"$f":"AE191+AE192+AE193+AE194+AE195","v":49},{"$f":"SQRT((AF191^2)+(AF192^2)+(AF193^2)+(AF194^2)+(AF195^2))","v":19.519221295943137},{"$f":"AG191+AG192+AG193+AG194+AG195","v":280},{"$f":"SQRT((AH191^2)+(AH192^2)+(AH193^2)+(AH194^2)+(AH195^2))","v":62.185207244167003},{"$f":"AI191+AI192+AI193+AI194+AI195","v":142},{"$f":"SQRT((AJ191^2)+(AJ192^2)+(AJ193^2)+(AJ194^2)+(AJ195^2))","v":35.958309192730404},{"$f":"AK191+AK192+AK193+AK194+AK195","v":235},{"$f":"SQRT((AL191^2)+(AL192^2)+(AL193^2)+(AL194^2)+(AL195^2))","v":51.322509681425359},{"$f":"AM191+AM192+AM193+AM194+AM195","v":1386},{"$f":"SQRT((AN191^2)+(AN192^2)+(AN193^2)+(AN194^2)+(AN195^2))","v":256.04687070925121},{"$f":"AO191+AO192+AO193+AO194+AO195","v":357},{"$f":"SQRT((AP191^2)+(AP192^2)+(AP193^2)+(AP194^2)+(AP195^2))","v":84.380092438915952},{"$f":"AQ191+AQ192+AQ193+AQ194+AQ195","v":665},{"$f":"SQRT((AR191^2)+(AR192^2)+(AR193^2)+(AR194^2)+(AR195^2))","v":136.01838111078959},{"$f":"AS191+AS192+AS193+AS194+AS195","v":408},{"$f":"SQRT((AT191^2)+(AT192^2)+(AT193^2)+(AT194^2)+(AT195^2))","v":68.117545463705611},{"$f":"AU191+AU192+AU193+AU194+AU195","v":711},{"$f":"SQRT((AV191^2)+(AV192^2)+(AV193^2)+(AV194^2)+(AV195^2))","v":149.58943812983588}]
[null," 30% or More of HH Income",{"$f":"C196+C197+C198+C199","v":159},{"$f":"SQRT((D196^2)+(D197^2)+(D198^2)+(D199^2))","v":45.77116996538323},{"$f":"E196+E197+E198+E199","v":322},{"$f":"SQRT((F196^2)+(F197^2)+(F198^2)+(F199^2))","v":116.76472069936193},{"$f":"G196+G197+G198+G199","v":161},{"$f":"SQRT((H196^2)+(H197^2)+(H198^2)+(H199^2))","v":49.48737212663449},{"$f":"I196+I197+I198+I199","v":279},{"$f":"SQRT((J196^2)+(J197^2)+(J198^2)+(J199^2))","v":84.723078319900537},{"$f":"K196+K197+K198+K199","v":86},{"$f":"SQRT((L196^2)+(L197^2)+(L198^2)+(L199^2))","v":35.958309192730404},{"$f":"M196+M197+M198+M199","v":99},{"$f":"SQRT((N196^2)+(N197^2)+(N198^2)+(N199^2))","v":37.523326078587438},{"$f":"O196+O197+O198+O199","v":412},{"$f":"SQRT((P196^2)+(P197^2)+(P198^2)+(P199^2))","v":129.50289572052048},{"$f":"Q196+Q197+Q198+Q199","v":1917},{"$f":"SQRT((R196^2)+(R197^2)+(R198^2)+(R199^2))","v":277.48513473698011},{"$f":"S196+S197+S198+S199","v":0},{"$f":"SQRT((T196^2)+(T197^2)+(T198^2)+(T199^2))","v":0},{"$f":"U196+U197+U198+U199","v":171},{"$f":"SQRT((V196^2)+(V197^2)+(V198^2)+(V199^2))","v":58.974570791146924},{"$f":"W196+W197+W198+W199","v":109},{"$f":"SQRT((X196^2)+(X197^2)+(X198^2)+(X199^2))","v":52.287665849605489},{"$f":"Y196+Y197+Y198+Y199","v":65},{"$f":"SQRT((Z196^2)+(Z197^2)+(Z198^2)+(Z199^2))","v":26.589471600616662},{"$f":"AA196+AA197+AA198+AA199","v":164},{"$f":"SQRT((AB196^2)+(AB197^2)+(AB198^2)+(AB199^2))","v":49.598387070548981},{"$f":"AC196+AC197+AC198+AC199","v":513},{"$f":"SQRT((AD196^2)+(AD197^2)+(AD198^2)+(AD199^2))","v":118.76868274086398},{"$f":"AE196+AE197+AE198+AE199","v":22},{"$f":"SQRT((AF196^2)+(AF197^2)+(AF198^2)+(AF199^2))","v":21.77154105707724},{"$f":"AG196+AG197+AG198+AG199","v":128},{"$f":"SQRT((AH196^2)+(AH197^2)+(AH198^2)+(AH199^2))","v":42.626282971894227},{"$f":"AI196+AI197+AI198+AI199","v":76},{"$f":"SQRT((AJ196^2)+(AJ197^2)+(AJ198^2)+(AJ199^2))","v":29.916550603303182},{"$f":"AK196+AK197+AK198+AK199","v":87},{"$f":"SQRT((AL196^2)+(AL197^2)+(AL198^2)+(AL199^2))","v":33.600595232822883},{"$f":"AM196+AM197+AM198+AM199","v":870},{"$f":"SQRT((AN196^2)+(AN197^2)+(AN198^2)+(AN199^2))","v":203.85534086699815},{"$f":"AO196+AO197+AO198+AO199","v":220},{"$f":"SQRT((AP196^2)+(AP197^2)+(AP198^2)+(AP199^2))","v":65.582009728278379},{"$f":"AQ196+AQ197+AQ198+AQ199","v":376},{"$f":"SQRT((AR196^2)+(AR197^2)+(AR198^2)+(AR199^2))","v":110.69326989478628},{"$f":"AS196+AS197+AS198+AS199","v":190},{"$f":"SQRT((AT196^2)+(AT197^2)+(AT198^2)+(AT199^2))","v":52.933921071464184},{"$f":"AU196+AU197+AU198+AU199","v":507},{"$f":"SQRT((AV196^2)+(AV197^2)+(AV198^2)+(AV199^2))","v":130.36103712382777}]
[null," 30% to 34.9% of HH Income",{"$f":"C196","v":59},{"$f":"D196","v":27.658633371878661},{"$f":"E196","v":46},46.324939287601879,29,18.384776310850235,84,43.416586692184822,47,26.172504656604801,24,19.849433241279208,130,74.813100457072352,372,98.843310345212544,0,0,33,23.021728866442675,19,10.770329614269007,{"$f":"Y196","v":13},8.9442719099991592,51,32.140317359976393,46,30.232432915661949,2,11.401754250991379,13,10.295630140987001,14,11.401754250991379,14,14.866068747318506,169,81.320354155647891,75,34.132096331752024,90,49.406477308142499,53,27.313000567495326,134,65.069193939989759]
[null," Less Than 35% of HH Income",{"$f":"C191+C192+C193+C194+C195+C196","v":518},{"$f":"SQRT((D191^2)+(D192^2)+(D193^2)+(D194^2)+(D195^2)+(D196^2))","v":89.493016487321512},{"$f":"E191+E192+E193+E194+E195+E196","v":976},{"$f":"SQRT((F191^2)+(F192^2)+(F193^2)+(F194^2)+(F195^2)+(F196^2))","v":217.41895041601134},{"$f":"G191+G192+G193+G194+G195+G196","v":348},{"$f":"SQRT((H191^2)+(H192^2)+(H193^2)+(H194^2)+(H195^2)+(H196^2))","v":66.640828326184547},{"$f":"I191+I192+I193+I194+I195+I196","v":749},{"$f":"SQRT((J191^2)+(J192^2)+(J193^2)+(J194^2)+(J195^2)+(J196^2))","v":129.34450123604017},{"$f":"K191+K192+K193+K194+K195+K196","v":178},{"$f":"SQRT((L191^2)+(L192^2)+(L193^2)+(L194^2)+(L195^2)+(L196^2))","v":42.80186911806539},{"$f":"M191+M192+M193+M194+M195+M196","v":279},{"$f":"SQRT((N191^2)+(N192^2)+(N193^2)+(N194^2)+(N195^2)+(N196^2))","v":57.870545184921149},{"$f":"O191+O192+O193+O194+O195+O196","v":1026},{"$f":"SQRT((P191^2)+(P192^2)+(P193^2)+(P194^2)+(P195^2)+(P196^2))","v":209.88091861815357},{"$f":"Q191+Q192+Q193+Q194+Q195+Q196","v":3534},{"$f":"SQRT((R191^2)+(R192^2)+(R193^2)+(R194^2)+(R195^2)+(R196^2))","v":358.46757175510311},{"$f":"S191+S192+S193+S194+S195+S196","v":0},{"$f":"SQRT((T191^2)+(T192^2)+(T193^2)+(T194^2)+(T195^2)+(T196^2))","v":0},{"$f":"U191+U192+U193+U194+U195+U196","v":459},{"$f":"SQRT((V191^2)+(V192^2)+(V193^2)+(V194^2)+(V195^2)+(V196^2))","v":88.887569434651539},{"$f":"W191+W192+W193+W194+W195+W196","v":207},{"$f":"SQRT((X191^2)+(X192^2)+(X193^2)+(X194^2)+(X195^2)+(X196^2))","v":50.487622245457352},{"$f":"Y191+Y192+Y193+Y194+Y195+Y196","v":184},{"$f":"SQRT((Z191^2)+(Z192^2)+(Z193^2)+(Z194^2)+(Z195^2)+(Z196^2))","v":46.314144707637652},{"$f":"AA191+AA192+AA193+AA194+AA195+AA196","v":229},{"$f":"SQRT((AB191^2)+(AB192^2)+(AB193^2)+(AB194^2)+(AB195^2)+(AB196^2))","v":53.329166503893532},{"$f":"AC191+AC192+AC193+AC194+AC195+AC196","v":876},{"$f":"SQRT((AD191^2)+(AD192^2)+(AD193^2)+(AD194^2)+(AD195^2)+(AD196^2))","v":141.7321417322126},{"$f":"AE191+AE192+AE193+AE194+AE195+AE196","v":51},{"$f":"SQRT((AF191^2)+(AF192^2)+(AF193^2)+(AF194^2)+(AF195^2)+(AF196^2))","v":22.605309110914629},{"$f":"AG191+AG192+AG193+AG194+AG195+AG196","v":293},{"$f":"SQRT((AH191^2)+(AH192^2)+(AH193^2)+(AH194^2)+(AH195^2)+(AH196^2))","v":63.031738037277698},{"$f":"AI191+AI192+AI193+AI194+AI195+AI196","v":156},{"$f":"SQRT((AJ191^2)+(AJ192^2)+(AJ193^2)+(AJ194^2)+(AJ195^2)+(AJ196^2))","v":37.722672227720032},{"$f":"AK191+AK192+AK193+AK194+AK195+AK196","v":249},{"$f":"SQRT((AL191^2)+(AL192^2)+(AL193^2)+(AL194^2)+(AL195^2)+(AL196^2))","v":53.432200029570183},{"$f":"AM191+AM192+AM193+AM194+AM195+AM196","v":1555},{"$f":"SQRT((AN191^2)+(AN192^2)+(AN193^2)+(AN194^2)+(AN195^2)+(AN196^2))","v":268.65033035527802},{"$f":"AO191+AO192+AO193+AO194+AO195+AO196","v":432},{"$f":"SQRT((AP191^2)+(AP192^2)+(AP193^2)+(AP194^2)+(AP195^2)+(AP196^2))","v":91.021975368588869},{"$f":"AQ191+AQ192+AQ193+AQ194+AQ195+AQ196","v":755},{"$f":"SQRT((AR191^2)+(AR192^2)+(AR193^2)+(AR194^2)+(AR195^2)+(AR196^2))","v":144.71351008112546},{"$f":"AS191+AS192+AS193+AS194+AS195+AS196","v":461},{"$f":"SQRT((AT191^2)+(AT192^2)+(AT193^2)+(AT194^2)+(AT195^2)+(AT196^2))","v":73.389372527635089},{"$f":"AU191+AU192+AU193+AU194+AU195+AU196","v":845},{"$f":"SQRT((AV191^2)+(AV192^2)+(AV193^2)+(AV194^2)+(AV195^2)+(AV196^2))","v":163.12878348102765}]
[null," 35% or More of HH Income",{"$f":"C197+C198+C199","v":100},{"$f":"SQRT((D197^2)+(D198^2)+(D199^2))","v":36.469165057620941},{"$f":"E197+E198+E199","v":276},{"$f":"SQRT((F197^2)+(F198^2)+(F199^2))","v":107.1820880557941},{"$f":"G197+G198+G199","v":132},{"$f":"SQRT((H197^2)+(H198^2)+(H199^2))","v":45.945620030640569},{"$f":"I197+I198+I199","v":195},{"$f":"SQRT((J197^2)+(J198^2)+(J199^2))","v":72.753006810715391},{"$f":"K197+K198+K199","v":39},{"$f":"SQRT((L197^2)+(L198^2)+(L199^2))","v":24.657656011875904},{"$f":"M197+M198+M199","v":75},{"$f":"SQRT((N197^2)+(N198^2)+(N199^2))","v":31.843366656181317},{"$f":"O197+O198+O199","v":282},{"$f":"SQRT((P197^2)+(P198^2)+(P199^2))","v":105.70714261581381},{"$f":"Q197+Q198+Q199","v":1545},{"$f":"SQRT((R197^2)+(R198^2)+(R199^2))","v":259.28362848432988},{"$f":"S197+S198+S199","v":0},{"$f":"SQRT((T197^2)+(T198^2)+(T199^2))","v":0},{"$f":"U197+U198+U199","v":138},{"$f":"SQRT((V197^2)+(V198^2)+(V199^2))","v":54.295487841992909},{"$f":"W197+W198+W199","v":90},{"$f":"SQRT((X197^2)+(X198^2)+(X199^2))","v":51.166395221864128},{"$f":"Y197+Y198+Y199","v":52},{"$f":"SQRT((Z197^2)+(Z198^2)+(Z199^2))","v":25.03996805109783},{"$f":"AA197+AA198+AA199","v":113},{"$f":"SQRT((AB197^2)+(AB198^2)+(AB199^2))","v":37.775653535048207},{"$f":"AC197+AC198+AC199","v":467},{"$f":"SQRT((AD197^2)+(AD198^2)+(AD199^2))","v":114.85643212288984},{"$f":"AE197+AE198+AE199","v":20},{"$f":"SQRT((AF197^2)+(AF198^2)+(AF199^2))","v":18.547236990991408},{"$f":"AG197+AG198+AG199","v":115},{"$f":"SQRT((AH197^2)+(AH198^2)+(AH199^2))","v":41.364235759892871},{"$f":"AI197+AI198+AI199","v":62},{"$f":"SQRT((AJ197^2)+(AJ198^2)+(AJ199^2))","v":27.658633371878661},{"$f":"AK197+AK198+AK199","v":73},{"$f":"SQRT((AL197^2)+(AL198^2)+(AL199^2))","v":30.133038346638727},{"$f":"AM197+AM198+AM199","v":701},{"$f":"SQRT((AN197^2)+(AN198^2)+(AN199^2))","v":186.93314312876677},{"$f":"AO197+AO198+AO199","v":145},{"$f":"SQRT((AP197^2)+(AP198^2)+(AP199^2))","v":56},{"$f":"AQ197+AQ198+AQ199","v":286},{"$f":"SQRT((AR197^2)+(AR198^2)+(AR199^2))","v":99.055539976318343},{"$f":"AS197+AS198+AS199","v":137},{"$f":"SQRT((AT197^2)+(AT198^2)+(AT199^2))","v":45.343136195018538},{"$f":"AU197+AU198+AU199","v":373},{"$f":"SQRT((AV197^2)+(AV198^2)+(AV199^2))","v":112.96016997154351}]
[null," 50% or More of HH Income",{"$f":"C199","v":50},{"$f":"D199","v":26.92582403567252},{"$f":"E199","v":95},62.201286160335947,59,28.635642126552707,76,50.289163842720633,23,16.124515496597098,34,21.2602916254693,177,70.710678118654755,757,159.81239000778382,0,0,45,25.553864678361276,62,48.104053883222775,{"$f":"Y199","v":25},13.928388277184119,52,25.238858928247925,223,76.850504227363402,6,12.083045973594572,67,31.048349392520048,37,18.601075237738275,32,16.643316977093239,369,128.84486796143648,87,47.507894080878813,155,72.006944109578768,57,28.600699292150182,213,78.924014089502563]
[null,"Not computed",{"$f":"C200","v":3},{"$f":"D200","v":11.704699910719626},11,21.095023109728988,0,15.556349186104045,0,15.556349186104045,0,15.556349186104045,6,12.529964086141668,0,15.556349186104045,19,39.11521443121589,0,0,0,15.556349186104045,0,15.556349186104045,{"$f":"Y200","v":0},15.556349186104045,0,15.556349186104045,11,23.345235059857504,5,13.038404810405298,0,15.556349186104045,0,15.556349186104045,0,15.556349186104045,0,22.627416997969522,0,15.556349186104045,8,16.278820596099706,3,11.704699910719626,0,15.556349186104045]

{"sheet":"ACS_Table_B25106","index":98,"n_rows":255,"n_cols":48,"rows_kept":255,"cut":false,"hidden":true,"merged":[]}
[null,"B25106. TENURE BY HOUSING COSTS AS A PERCENTAGE OF HOUSEHOLD INCOME IN THE PAST 12 MONTHS"]
[null,"Universe:  OCCUPIED HOUSING UNITS"]
[null,"Data Set: 2018-2022 American Community Survey 5-Year Estimates"]
[]
[null,null,"Alstead",null,"Chesterfield",null,"Dublin",null,"Fitzwilliam",null,"Gilsum",null,"Harrisville",null,"Hinsdale",null,"Jaffrey",null,"Keene",null,"Marlborough",null,"Marlow",null,"Nelson",null,"Richmond",null,"Rindge",null,"Roxbury",null,"Stoddard",null,"Sullivan",null,"Surry",null,"Swanzey",null,"Troy",null,"Walpole",null,"Westmoreland",null,"Winchester"]
[null,null,"Estimate","Margin of Error","Estimate","Margin of Error","Estimate","Margin of Error","Estimate","Margin of Error","Estimate","Margin of Error","Estimate","Margin of Error","Estimate","Margin of Error","Estimate","Margin of Error","Estimate","Margin of Error","Estimate","Margin of Error","Estimate","Margin of Error","Estimate","Margin of Error","Estimate","Margin of Error","Estimate","Margin of Error","Estimate","Margin of Error","Estimate","Margin of Error","Estimate","Margin of Error","Estimate","Margin of Error","Estimate","Margin of Error","Estimate","Margin of Error","Estimate","Margin of Error","Estimate","Margin of Error","Estimate","Margin of Error"]
[null,"Total:",723,97,1366,158,635,101,1013,154,310,51,416,75,1594,139,2026,225,9259,370,942,130,314,61,246,41,393,73,1972,144,95,37,436,52,281,53,344,58,3255,171,758,101,1427,121,885,182,1617,146]
[null,"Owner occupied housing units:",507,86,1227,184,530,99,957,154,285,50,386,73,1373,192,1580,229,4762,346,608,113,279,56,225,42,383,72,1711,137,94,38,405,49,240,46,324,59,2237,250,525,81,945,130,787,179,1052,163]
[null,"Less than $20,000:",50,31,57,56,49,54,112,55,22,14,13,11,3,5,17,26,339,125,28,26,21,16,6,5,34,26,64,43,1,2,10,13,17,12,8,8,74,77,41,31,87,80,38,45,64,39]
[null,"Less than 20 percent",0,12,0,12,0,12,0,12,0,12,3,4,0,12,0,17,0,22,0,12,0,12,0,12,0,12,0,17,0,12,0,12,0,12,0,12,0,17,0,12,0,12,0,12,0,12]
[null,"20 to 29 percent",0,12,0,12,1,2,6,9,6,7,0,12,0,12,0,17,15,26,0,12,0,12,0,12,4,6,0,17,0,12,0,12,0,12,0,12,13,21,0,12,0,12,0,12,15,24]
[null,"30 percent or more",50,31,57,56,48,54,106,54,16,13,10,10,3,5,17,26,324,122,28,26,21,16,6,5,30,25,64,43,1,2,10,13,17,12,8,8,61,72,41,31,87,80,38,45,49,32]
[null,"$20,000 to $34,999:",75,55,86,91,8,8,80,47,14,10,18,12,138,55,132,98,362,142,51,27,22,13,18,14,25,15,78,53,12,9,32,14,8,7,19,15,95,58,81,45,37,30,47,33,116,60]
[null,"Less than 20 percent",16,21,0,12,0,12,4,7,0,12,0,12,11,16,0,17,29,33,3,7,0,12,0,12,0,12,0,17,2,3,6,5,2,3,0,12,8,16,19,25,0,12,0,12,21,25]
[null,"20 to 29 percent",12,10,0,12,2,3,6,7,2,3,0,12,17,21,64,76,59,73,14,14,6,6,7,11,0,12,14,22,2,4,0,12,0,12,7,6,0,17,13,13,7,11,3,5,39,37]
[null,"30 percent or more",47,55,86,91,6,7,70,47,12,9,18,12,110,52,68,58,274,111,34,22,16,12,11,10,25,15,64,50,8,8,26,14,6,7,12,14,87,54,49,35,30,28,44,33,56,42]
[null,"$35,000 to $49,999:",42,22,115,101,26,23,93,43,48,30,51,23,159,100,39,35,362,155,33,29,16,13,11,7,34,19,184,115,9,7,26,15,18,9,45,32,230,98,39,29,74,59,42,24,156,76]
[null,"Less than 20 percent",26,20,20,30,7,11,22,15,18,14,30,21,59,92,0,17,91,105,0,12,6,6,4,4,7,8,6,9,2,3,7,6,3,4,14,14,36,41,11,11,12,15,6,8,15,20]
[null,"20 to 29 percent",6,7,85,89,3,4,9,9,5,6,9,7,22,22,13,20,155,95,25,26,8,11,3,4,10,12,46,46,2,3,3,3,11,7,3,4,40,36,18,24,7,13,4,6,27,25]
[null,"30 percent or more",10,10,10,19,16,20,62,38,25,27,12,8,78,54,26,30,116,66,8,11,2,4,4,4,17,11,132,102,5,4,16,13,4,4,28,28,154,86,10,8,55,56,32,21,114,68]
[null,"$50,000 to $74,999:",94,49,119,97,69,28,158,59,64,23,66,34,458,212,379,232,620,170,109,50,36,18,41,17,69,32,269,98,27,35,87,28,34,14,44,21,445,162,130,48,130,61,110,57,182,84]
[null,"Less than 20 percent",35,27,33,45,7,8,44,25,23,13,26,22,275,181,9,15,237,146,29,18,23,12,17,11,18,13,52,40,3,4,21,12,8,7,17,16,186,111,29,21,51,34,15,11,61,49]
[null,"20 to 29 percent",39,40,18,27,18,13,14,13,15,13,15,10,138,88,297,222,170,74,44,39,4,4,7,5,14,10,46,34,2,3,36,19,15,11,13,11,132,91,29,19,58,40,34,22,58,60]
[null,"30 percent or more",20,14,68,76,44,28,100,52,26,15,25,24,45,47,73,63,213,95,36,26,9,12,17,11,37,27,171,89,22,35,30,16,11,8,14,11,127,90,72,36,21,19,61,58,63,43]
[null,"$75,000 or more:",246,46,850,145,378,83,514,128,137,36,238,61,615,143,1001,196,3079,316,381,101,182,49,147,36,221,61,1116,157,45,15,248,48,163,36,208,50,1381,272,234,71,597,101,478,102,534,98]
[null,"Less than 20 percent",188,40,563,152,300,85,369,111,102,30,172,48,513,127,651,184,2111,296,268,77,141,44,103,28,150,46,757,154,35,13,190,45,117,32,165,49,934,249,178,61,420,99,274,62,432,100]
[null,"20 to 29 percent",50,18,223,127,67,23,95,40,27,15,60,32,102,68,298,100,712,133,113,74,30,19,28,12,33,22,284,106,10,10,42,18,41,22,34,15,405,144,44,23,136,67,184,83,91,66]
[null,"30 percent or more",8,10,64,67,11,9,50,33,8,10,6,6,0,12,52,46,256,158,0,12,11,12,16,10,38,31,75,56,0,12,16,14,5,5,9,6,42,39,12,12,41,29,20,13,11,16]
[null,"Zero or negative income",0,12,0,12,0,12,0,12,0,12,0,12,0,12,12,19,0,22,6,9,2,3,2,3,0,12,0,17,0,12,2,4,0,12,0,12,12,21,0,12,20,32,72,99,0,12]
[null,"Renter occupied housing units:",216,81,139,90,105,41,56,29,25,14,30,15,221,105,446,167,4497,356,334,92,35,29,21,11,10,9,261,119,1,3,31,18,41,21,20,9,1018,252,233,73,482,141,98,54,565,145]
[null,"Less than $20,000:",41,47,0,12,4,5,15,14,0,12,0,12,43,52,73,58,958,220,53,38,0,12,0,12,0,12,27,33,0,12,0,12,0,12,0,12,281,132,14,16,110,90,9,14,113,54]
[null,"Less than 20 percent",0,12,0,12,0,12,0,12,0,12,0,12,0,12,0,17,72,83,0,12,0,12,0,12,0,12,0,17,0,12,0,12,0,12,0,12,0,17,7,11,0,12,0,12,0,12]
[null,"20 to 29 percent",0,12,0,12,0,12,0,12,0,12,0,12,0,12,28,42,217,109,19,21,0,12,0,12,0,12,0,17,0,12,0,12,0,12,0,12,84,74,0,12,21,32,0,12,46,56]
[null,"30 percent or more",41,47,0,12,4,5,15,14,0,12,0,12,43,52,45,41,669,188,34,29,0,12,0,12,0,12,27,33,0,12,0,12,0,12,0,12,197,106,7,10,89,84,9,14,67,39]
[null,"$20,000 to $34,999:",33,30,33,45,14,12,0,12,3,4,4,5,38,33,95,65,647,191,134,78,7,10,4,5,0,12,39,31,0,12,0,12,7,7,2,3,251,173,99,48,19,21,19,19,114,85]
[null,"Less than 20 percent",0,12,0,12,0,12,0,12,0,12,0,12,15,23,0,17,0,22,6,9,0,12,0,12,0,12,0,17,0,12,0,12,0,12,0,12,14,23,0,12,0,12,0,12,0,12]
[null,"20 to 29 percent",20,29,0,12,2,3,0,12,0,12,0,12,0,12,31,39,86,61,16,12,0,12,0,12,0,12,0,17,0,12,0,12,0,12,0,12,0,17,0,12,0,12,10,17,0,12]
[null,"30 percent or more",13,11,33,45,12,12,0,12,3,4,4,5,23,26,64,57,561,192,112,77,7,10,4,5,0,12,39,31,0,12,0,12,7,7,2,3,237,175,99,48,19,21,9,7,114,85]
[null,"$35,000 to $49,999:",22,20,20,32,12,13,3,5,8,7,0,12,9,14,21,27,658,188,26,19,6,7,2,3,0,12,0,17,0,12,0,12,3,4,0,12,98,80,5,7,67,64,8,15,132,72]
[null,"Less than 20 percent",0,12,0,12,0,12,0,12,0,12,0,12,0,12,0,17,35,44,0,12,2,3,0,12,0,12,0,17,0,12,0,12,0,12,0,12,0,17,0,12,0,12,0,12,0,12]
[null,"20 to 29 percent",5,7,20,32,3,4,0,12,2,4,0,12,9,14,0,17,198,117,16,14,0,12,2,3,0,12,0,17,0,12,0,12,0,12,0,12,20,24,5,7,22,32,0,12,77,61]
[null,"30 percent or more",17,19,0,12,9,12,3,5,6,7,0,12,0,12,21,27,425,150,10,12,4,6,0,12,0,12,0,17,0,12,0,12,3,4,0,12,78,74,0,12,45,56,8,15,55,40]
[null,"$50,000 to $74,999:",44,38,0,12,16,23,0,12,12,11,10,8,21,26,167,124,816,203,40,31,0,12,4,4,0,12,99,82,0,12,9,14,19,19,3,4,150,93,31,24,85,57,19,22,101,78]
[null,"Less than 20 percent",15,21,0,12,0,12,0,12,0,12,3,4,8,14,61,66,151,95,12,15,0,12,0,12,0,12,39,58,0,12,0,12,17,19,0,12,0,17,14,20,12,16,0,12,33,37]
[null,"20 to 29 percent",8,8,0,12,16,23,0,12,10,11,3,5,13,22,32,33,418,152,24,25,0,12,4,4,0,12,49,57,0,12,0,12,0,12,3,4,132,90,6,8,66,51,15,20,42,48]
[null,"30 percent or more",21,31,0,12,0,12,0,12,2,2,4,6,0,12,74,91,247,101,4,7,0,12,0,12,0,12,11,18,0,12,9,14,2,3,0,12,18,30,11,12,7,10,4,6,26,31]
[null,"$75,000 or more:",27,19,27,33,18,15,23,27,2,3,14,13,82,80,73,80,1312,261,65,41,14,23,11,10,7,8,75,51,0,12,14,9,11,8,11,6,203,112,73,44,174,81,24,27,47,50]
[null,"Less than 20 percent",27,19,27,33,15,15,16,25,0,12,9,12,82,80,60,78,879,257,57,40,14,23,7,8,7,8,38,33,0,12,12,9,11,8,5,5,39,36,49,33,174,81,22,27,47,50]
[null,"20 to 29 percent",0,12,0,12,3,4,7,7,2,3,5,6,0,12,13,21,416,145,8,9,0,12,4,4,0,12,37,37,0,12,2,3,0,12,6,5,164,112,24,27,0,12,2,5,0,12]
[null,"30 percent or more",0,12,0,12,0,12,0,12,0,12,0,12,0,12,0,17,17,28,0,12,0,12,0,12,0,12,0,17,0,12,0,12,0,12,0,12,0,17,0,12,0,12,0,12,0,12]
[null,"Zero or negative income",0,12,0,12,9,12,0,12,0,12,0,12,0,12,0,17,53,80,0,12,0,12,0,12,0,12,0,17,0,12,0,12,0,12,0,12,0,17,0,12,0,12,0,12,16,26]
[null,"No cash rent",49,40,59,66,32,19,15,15,0,12,2,3,28,42,17,28,53,58,16,13,8,6,0,12,3,6,21,27,1,3,8,9,1,4,4,5,35,34,11,17,27,30,19,19,42,51]
[]
[]
[]
[]
[]
[]
[null,"Calculated B25106. TENURE BY HOUSING COSTS AS A PERCENTAGE OF HOUSEHOLD INCOME IN THE PAST 12 MONTHS"]
[null,"Universe:  OCCUPIED HOUSING UNITS"]
[null,"Data Set: 2018-2022 American Community Survey 5-Year Estimates"]
[]
[null,null,"Alstead",null,"Chesterfield",null,"Dublin",null,"Fitzwilliam",null,"Gilsum",null,"Harrisville",null,"Hinsdale",null,"Jaffrey",null,"Keene",null,"Marlborough",null,"Marlow",null,"Nelson",null,"Richmond",null,"Rindge",null,"Roxbury",null,"Stoddard",null,"Sullivan",null,"Surry",null,"Swanzey",null,"Troy",null,"Walpole",null,"Westmoreland",null,"Winchester"]
[null,null,"Estimate","Margin of Error","Estimate","Margin of Error","Estimate","Margin of Error","Estimate","Margin of Error","Estimate","Margin of Error","Estimate","Margin of Error","Estimate","Margin of Error","Estimate","Margin of Error","Estimate","Margin of Error","Estimate","Margin of Error","Estimate","Margin of Error","Estimate","Margin of Error","Estimate","Margin of Error","Estimate","Margin of Error","Estimate","Margin of Error","Estimate","Margin of Error","Estimate","Margin of Error","Estimate","Margin of Error","Estimate","Margin of Error","Estimate","Margin of Error","Estimate","Margin of Error","Estimate","Margin of Error","Estimate","Margin of Error"]
[null,{"$f":"B7","v":"Total:"},723,97,1366,158,635,101,1013,154,310,51,416,75,1594,139,2026,225,9259,370,942,130,314,61,{"$f":"Y7","v":246},41,393,73,1972,144,95,37,436,52,281,53,344,58,3255,171,758,101,1427,121,885,182,1617,146]
[null,"Owner occupied housing units:",507,86,1227,184,530,99,957,154,285,50,386,73,1373,192,1580,229,4762,346,608,113,279,56,{"$f":"Y8","v":225},42,383,72,1711,137,94,38,405,49,240,46,324,59,2237,250,525,81,945,130,787,179,1052,163]
[null,"Less than 20 percent",{"$f":"C10+C14+C18+C22+C26","v":265},{"$f":"SQRT((D10^2)+(D14^2)+(D18^2)+(D22^2)+(D26^2))","v":57.56735185849702},{"$f":"SQRT((E10^2)+(E14^2)+(E18^2)+(E22^2)+(E26^2))","v":564.32083073372371},162.22515218054195,300.1632888945615,87.738247076175398,372.28618024310276,115.6027681329474,106.09901036296239,39.408120990476064,176.54744404833505,58.215118311311535,585.14613559349425,240.32061917363646,651.06220900924666,186.9438418349211,2126.4082392616897,348.6115316509194,269.58115661151095,81.178814970409618,142.98951010476259,49.03060268852505,{"$f":"SQRT((Y10^2)+(Y14^2)+(Y18^2)+(Y22^2)+(Y26^2))","v":104.47009141376301},34.770677301427419,151.23822268196622,51.35172830587107,758.80761725222555,161.16761461286197,35.242020373412188,18.627936010197157,191.3792047219342,48.723710860319329,117.32859838931002,35.242020373412188,166.46320914844819,56.044625076808217,953.05403834200297,276.67309229485977,181.67828709011982,71.077422575667441,423.25524214119309,107.09808588392231,274.47586414838008,65.703881163900817,437.0480522780075,116.4903429473877]
[null,"20 to 29 percent",{"$f":"C11+C15+C19+C23+C27","v":107},{"$f":"SQRT((D11^2)+(D15^2)+(D19^2)+(D23^2)+(D27^2))","v":47.085029467974216},239.32822650076193,158.32561384690729,69.476614770726997,26.962937525425527,96.819419539677057,44.497190922573978,31.921779399024736,22.090722034374522,62.497999967998979,38.223029707232783,173.84188218033074,115.91807451816995,425.76754221053534,256.41567814780751,750.71632458605825,195.43541132558346,124.60337074092338,89.515361810138486,31.874754901018456,26.038433132583073,{"$f":"SQRT((Y11^2)+(Y15^2)+(Y19^2)+(Y23^2)+(Y27^2))","v":29.8496231131986},21.213203435596427,37.429934544425805,30.133038346638727,291.69161798035952,123.61634196173254,10.583005244258363,16.673332000533065,55.398555937858163,31.336879231984796,45.022216737961713,30.692018506445613,37.188707963574103,23.280893453645632,428.03971778329168,176.19023809507723,57.18391382198319,42.178193417926281,148.18232013300371,80.765091469025151,187.18172987767795,87.051708771281454,118.82760622010359,102.59629622944485]
[null,"30 percent or more",{"$f":"C12+C16+C20+C24+C28","v":135},{"$f":"SQRT((D12^2)+(D16^2)+(D20^2)+(D24^2)+(D28^2))","v":66.196676653741463},139.51702405083043,148.46885195218559,68.212902005412431,65.038450166036398,180.22208521710095,101.79390944452423,42.01190307520001,36.110940170535578,35.057096285916209,30.331501776206203,142.19001371404391,89.43153806124549,116.71332400373147,105,551.73635008036217,256.02734228984218,57.445626465380286,45.836666545463359,30.04995840263344,26.532998322843198,{"$f":"SQRT((Y12^2)+(Y16^2)+(Y20^2)+(Y24^2)+(Y28^2))","v":26.795522013948524},19.026297590440446,68.022055246809472,51.584881506115721,245.93088459971838,160.65490966665163,23.958297101421877,38.118237105091836,46.776062254106002,31.400636936215164,22.06807649071391,17.262676501632068,35.62302626111375,34.655446902326915,229.99782607668274,158.48343762046557,97.519228873079186,60.745370193949761,116.68761716651858,107.34057946554975,92.330926563096938,84.190260719396747,150.40944119303148,97.5551126287085]
[null,"Zero or negative income",{"$f":"C29","v":0},{"$f":"D29","v":12},{"$f":"E29","v":0},12,0,12,0,12,0,12,0,12,0,12,12,19,0,22,6,9,2,3,{"$f":"Y29","v":2},3,0,12,0,17,0,12,2,4,0,12,0,12,12,21,0,12,20,32,72,99,0,12]
[null,"Renter occupied housing units:",{"$f":"C30","v":216},{"$f":"D30","v":81},139,90,105,41,56,29,25,14,30,15,221,105,446,167,4497,356,334,92,35,29,{"$f":"Y30","v":21},11,10,9,261,119,1,3,31,18,41,21,20,9,1018,252,233,73,482,141,98,54,565,145]
[null,"Less than 20 percent",{"$f":"C32+C36+C40+C44+C48","v":42},{"$f":"SQRT((D32^2)+(D36^2)+(D40^2)+(D44^2)+(D48^2))","v":35.128336140500593},{"$f":"SQRT((E32^2)+(E36^2)+(E40^2)+(E44^2)+(E48^2))","v":27},40.80441152620633,15,28.301943396169811,16,34.655446902326915,0,26.832815729997478,9.4868329805051381,24.331050121192877,83.74365647617735,86.098780479168227,85.562842402528915,106.33437826027856,895.4613336152488,290.48752124661053,58.557663887829406,46.840153714521477,14.142135623730951,31.144823004794873,{"$f":"SQRT((Y32^2)+(Y36^2)+(Y40^2)+(Y44^2)+(Y48^2))","v":7},25.298221281347036,7,25.298221281347036,54.451813560247928,72.938330115241882,0,26.832815729997478,12,25.632011235952593,20.248456731316587,29.274562336608895,5,24.515301344262525,41.43669871020132,51.884487084291386,51.43928459844674,43.56604182158393,174.41330224498358,85.141059424933161,22,36.124783736376884,57.428216061444921,65.582009728278379]
[null,"20 to 29 percent",{"$f":"C33+C37+C41+C45+C49","v":33},{"$f":"SQRT((D33^2)+(D37^2)+(D41^2)+(D45^2)+(D49^2))","v":35.242020373412188},20,40,16.673332000533065,26.720778431774775,7,25,10.392304845413264,20.83266665599966,5.8309518948453007,22.203603311174518,15.811388300841896,33.346664001066131,54.203320931470607,71.442284397967001,664.43133580528843,270.96125184239907,38.897300677553446,38.561638969317684,0,26.832815729997478,{"$f":"SQRT((Y33^2)+(Y37^2)+(Y41^2)+(Y45^2)+(Y49^2))","v":6},18.138357147217054,0,26.832815729997478,61.400325732035007,74.060785845142092,0,26.832815729997478,2,24.186773244895647,0,26.832815729997478,6.7082039324993694,21.748563170931547,227.54340245324627,164.27111736394806,25.238858928247925,33.61547262794322,72.670489196096653,70.263788682364691,18.138357147217054,31.654383582688826,99.040395798886024,97.205966895041996]
[null,"30 percent or more",{"$f":"C34+C38+C42+C46+C50","v":92},{"$f":"SQRT((D34^2)+(D38^2)+(D42^2)+(D46^2)+(D50^2))","v":61.611687202997452},33,51,15.524174696260024,24.515301344262525,15.297058540778355,25.553864678361276,7,18.894443627691185,5.6568542494923806,22.203603311174518,48.764741360946438,61.741396161732524,109.71781988355401,119.28537211242626,1002.100294381755,325.10459855252742,117.54148203932091,84.303024856763003,8.0622577482985491,23.832750575625969,{"$f":"SQRT((Y34^2)+(Y38^2)+(Y42^2)+(Y46^2)+(Y50^2))","v":4},24.515301344262525,0,26.832815729997478,48.692915295759406,54.332310828824497,0,26.832815729997478,9,27.784887978899608,7.8740078740118111,19.026297590440446,2,24.186773244895647,318.41168320273675,220.28617750553482,99.854894722291903,53.254107822777392,101.76443386566841,104.29285689825551,15.556349186104045,25.495097567963924,145.55411364849843,107.00934538627924]
[null,"Zero or negative income",{"$f":"C51","v":0},{"$f":"D51","v":12},{"$f":"E51","v":0},12,9,12,0,12,0,12,0,12,0,12,0,17,53,80,0,12,0,12,{"$f":"Y51","v":0},12,0,12,0,17,0,12,0,12,0,12,0,12,0,17,0,12,0,12,0,12,16,26]
[null,"No cash rent",{"$f":"C52","v":49},{"$f":"D52","v":40},59,66,32,19,15,15,0,12,2,3,28,42,17,28,53,58,16,13,8,6,{"$f":"Y52","v":0},12,3,6,21,27,1,3,8,9,1,4,4,5,35,34,11,17,27,30,19,19,42,51]
[]
[]
[]
[]
[]
[]
[]
[]
[]
[]
[]
[]
[]
[]
[]
[]
[]
[]
[]
[]
[]
[]
[]
[null,"B25106. TENURE BY HOUSING COSTS AS A PERCENTAGE OF HOUSEHOLD INCOME IN THE PAST 12 MONTHS"]
[null,"Universe:  OCCUPIED HOUSING UNITS"]
[null,"Data Set: 2013-2017 American Community Survey 5-Year Estimates"]
[]
[null,null,"Alstead",null,"Chesterfield",null,"Dublin",null,"Fitzwilliam",null,"Gilsum",null,"Harrisville",null,"Hinsdale",null,"Jaffrey",null,"Keene",null,"Marlborough",null,"Marlow",null,"Nelson",null,"Richmond",null,"Rindge",null,"Roxbury",null,"Stoddard",null,"Sullivan",null,"Surry",null,"Swanzey",null,"Troy",null,"Walpole",null,"Westmoreland",null,"Winchester"]
[null,null,"Estimate","Margin of Error","Estimate","Margin of Error","Estimate","Margin of Error","Estimate","Margin of Error","Estimate","Margin of Error","Estimate","Margin of Error","Estimate","Margin of Error","Estimate","Margin of Error","Estimate","Margin of Error","Estimate","Margin of Error","Estimate","Margin of Error","Estimate","Margin of Error","Estimate","Margin of Error","Estimate","Margin of Error","Estimate","Margin of Error","Estimate","Margin of Error","Estimate","Margin of Error","Estimate","Margin of Error","Estimate","Margin of Error","Estimate","Margin of Error","Estimate","Margin of Error","Estimate","Margin of Error","Estimate","Margin of Error"]
[null,"Total:",776,79,1443,147,584,63,1002,92,283,34,437,53,1749,117,2175,152,9391,370,906,99,282,42,226,33,439,50,1883,144,84,27,484,60,293,50,371,45,2828,180,888,87,1631,93,656,77,1718,160]
[null,"Owner occupied housing units:",552,75,1218,141,462,54,873,93,257,35,374,47,1316,134,1404,150,5072,283,610,90,255,40,186,35,391,53,1483,153,72,27,440,57,232,46,341,45,2124,201,663,75,1301,105,602,81,1225,174]
[null,"Less than $20,000:",29,23,40,34,28,13,112,52,20,9,7,6,239,98,77,67,360,112,31,29,25,14,14,14,31,23,107,66,4,8,6,6,25,14,23,15,177,114,86,48,104,58,11,9,135,77]
[null,"Less than 20 percent",0,11,0,11,0,11,21,24,2,3,0,11,24,39,0,16,11,20,0,11,0,11,0,11,0,11,0,16,0,11,0,11,7,8,0,11,0,16,14,22,0,11,0,11,0,11]
[null,"20 to 29 percent",0,11,12,18,0,11,10,11,0,11,0,11,26,42,38,59,0,21,0,11,5,6,0,11,0,11,0,16,1,3,0,11,1,4,2,3,0,16,0,11,0,11,0,11,0,11]
[null,"30 percent or more",29,23,28,29,28,13,81,48,18,9,7,6,189,81,39,36,349,111,31,29,20,12,14,14,31,23,107,66,3,6,6,6,17,12,21,15,177,114,72,45,104,58,11,9,135,77]
[null,"$20,000 to $34,999:",38,17,73,57,81,40,163,60,31,15,33,19,90,45,255,110,508,172,95,37,18,14,11,7,44,21,144,68,4,4,73,29,30,16,19,10,176,81,78,40,131,58,33,16,235,100]
[null,"Less than 20 percent",6,8,0,11,0,11,23,28,2,3,6,5,18,19,31,37,48,52,0,11,4,4,0,11,9,13,10,15,1,2,11,14,0,11,0,11,12,20,0,11,8,11,3,5,15,17]
[null,"20 to 29 percent",8,9,13,19,32,23,47,30,6,5,7,7,25,24,0,16,51,49,14,12,6,6,3,4,14,12,9,13,3,3,20,16,7,8,5,5,52,41,38,26,8,13,3,5,30,29]
[null,"30 percent or more",24,13,60,54,49,30,93,41,23,14,20,17,47,34,224,108,409,146,81,35,8,12,8,6,21,13,125,71,0,11,42,22,23,15,14,9,112,61,40,30,115,57,27,15,190,92]
[null,"$35,000 to $49,999:",84,40,246,108,44,29,116,53,39,13,64,22,178,64,147,64,486,157,44,34,41,18,19,11,61,24,145,68,7,5,55,21,38,16,17,13,293,109,83,43,189,70,33,16,208,88]
[null,"Less than 20 percent",13,11,55,62,13,16,23,28,19,12,28,17,67,38,0,16,136,102,23,30,13,9,10,7,31,22,0,16,1,2,17,13,10,6,5,5,94,56,20,18,70,53,10,9,41,34]
[null,"20 to 29 percent",22,22,91,67,10,12,64,41,8,6,22,11,63,33,58,46,78,44,5,8,9,10,5,6,8,8,41,30,2,3,6,5,23,12,0,11,75,49,24,30,51,48,6,7,67,45]
[null,"30 percent or more",49,33,100,66,21,19,29,18,12,7,14,13,48,33,89,51,272,105,16,12,19,13,4,4,22,14,104,65,4,5,32,15,5,5,12,12,124,82,39,22,68,38,17,14,100,66]
[null,"$50,000 to $74,999:",135,45,166,94,48,25,121,42,66,20,96,30,316,104,126,65,1091,215,99,44,66,27,35,13,117,42,268,84,20,11,61,22,24,12,89,31,456,145,110,50,168,79,120,37,212,98]
[null,"Less than 20 percent",45,27,69,50,26,21,48,30,11,9,52,26,86,43,48,41,393,144,40,31,39,22,18,14,38,19,88,55,10,8,20,13,15,10,37,20,138,72,54,40,102,62,43,20,107,77]
[null,"20 to 29 percent",46,30,45,41,19,12,38,21,31,15,25,19,200,83,66,48,381,111,45,27,15,8,9,6,31,25,55,38,2,3,20,16,3,6,36,22,212,109,26,17,22,22,33,18,91,58]
[null,"30 percent or more",44,27,52,63,3,4,35,20,24,14,19,11,30,27,12,20,317,118,14,13,12,12,8,7,48,27,125,52,8,9,21,11,6,5,16,12,106,79,30,27,44,32,44,25,14,23]
[null,"$75,000 or more:",248,58,693,115,261,50,350,65,91,19,174,39,493,102,799,152,2622,240,341,80,105,26,105,28,138,39,819,121,37,17,245,48,111,33,191,38,1022,194,306,69,709,121,401,66,426,112]
[null,"Less than 20 percent",156,46,403,108,160,40,222,55,62,16,120,28,402,97,380,113,1629,218,215,69,78,24,77,25,114,36,532,110,33,15,199,48,72,26,124,33,717,195,217,68,516,122,293,49,279,101]
[null,"20 to 29 percent",63,36,238,110,78,34,100,42,27,13,51,24,91,55,383,124,860,167,68,34,24,14,20,13,19,13,235,77,3,4,43,26,27,13,63,26,207,103,84,48,152,70,92,36,84,49]
[null,"30 percent or more",29,18,52,45,23,17,28,19,2,3,3,4,0,11,36,33,133,61,58,34,3,4,8,7,5,8,52,35,1,3,3,4,12,6,4,4,98,78,5,9,41,29,16,11,63,49]
[null,"Zero or negative income",18,18,0,11,0,11,11,9,10,12,0,11,0,11,0,16,5,12,0,11,0,11,2,3,0,11,0,16,0,11,0,11,4,3,2,3,0,16,0,11,0,11,4,7,9,14]
[null,"Renter occupied housing units:",224,62,225,122,122,41,129,48,26,15,63,29,433,127,771,174,4319,404,296,85,27,13,40,15,48,30,400,99,12,9,44,26,61,23,30,18,704,165,225,63,330,108,54,28,493,124]
[null,"Less than $20,000:",56,37,49,80,23,21,6,8,6,6,19,19,73,60,264,123,1217,227,47,30,2,3,5,5,0,11,137,82,0,11,0,11,5,8,5,7,219,108,32,35,76,74,17,19,112,84]
[null,"Less than 20 percent",0,11,0,11,0,11,0,11,0,11,0,11,0,11,0,16,55,44,0,11,0,11,0,11,0,11,0,16,0,11,0,11,0,11,0,11,15,26,17,27,0,11,0,11,0,11]
[null,"20 to 29 percent",5,8,0,11,0,11,0,11,0,11,0,11,51,55,0,16,197,97,18,30,0,11,0,11,0,11,0,16,0,11,0,11,0,11,0,11,82,83,15,23,0,11,0,11,0,11]
[null,"30 percent or more",51,39,49,80,23,21,6,8,6,6,19,19,22,25,264,123,965,202,29,22,2,3,5,5,0,11,137,82,0,11,0,11,5,8,5,7,122,80,0,11,76,74,17,19,112,84]
[null,"$20,000 to $34,999:",44,34,57,68,18,17,35,31,3,6,0,11,149,75,65,60,1086,262,119,64,2,4,18,9,9,14,83,35,4,7,9,14,4,3,0,11,136,86,31,27,18,20,5,6,144,81]
[null,"Less than 20 percent",21,30,0,11,0,11,0,11,0,11,0,11,0,11,33,37,86,85,6,9,0,11,2,4,0,11,0,16,0,11,0,11,0,11,0,11,0,16,5,7,0,11,0,11,18,17]
[null,"20 to 29 percent",0,11,0,11,2,4,0,11,0,11,0,11,67,64,0,16,92,55,27,24,0,11,3,4,0,11,15,18,0,11,0,11,0,11,0,11,0,16,0,11,9,13,3,5,34,50]
[null,"30 percent or more",23,19,57,68,16,16,35,31,3,6,0,11,82,70,32,46,908,247,86,61,2,4,13,8,9,14,68,35,4,7,9,14,4,3,0,11,136,86,26,24,9,15,2,4,92,65]
[null,"$35,000 to $49,999:",30,18,28,32,5,7,25,22,2,3,8,6,0,11,148,92,480,144,77,56,9,11,5,5,6,11,47,36,1,3,11,13,22,13,2,2,139,110,33,31,120,69,0,11,10,16]
[null,"Less than 20 percent",5,6,12,20,2,4,0,11,0,11,0,11,0,11,0,16,46,41,0,11,7,11,5,5,0,11,0,16,0,11,0,11,0,11,0,11,44,68,6,9,8,12,0,11,0,11]
[null,"20 to 29 percent",9,10,0,11,0,11,20,25,0,11,3,4,0,11,106,85,231,111,61,51,0,11,0,11,0,11,23,24,0,11,0,11,12,14,2,2,57,69,27,30,112,69,0,11,10,16]
[null,"30 percent or more",16,13,16,23,3,5,5,7,2,3,5,4,0,11,42,39,203,83,16,24,2,3,0,11,6,11,24,28,1,3,11,13,10,10,0,11,38,58,0,11,0,11,0,11,0,11]
[null,"$50,000 to $74,999:",40,31,31,49,34,23,27,25,6,6,6,5,100,85,150,89,1004,224,30,27,4,4,4,4,6,8,49,41,5,4,15,15,12,10,13,9,85,54,94,46,44,44,19,16,129,71]
[null,"Less than 20 percent",26,24,31,49,20,20,0,11,3,4,0,11,40,46,76,75,290,162,18,23,0,11,0,11,0,11,19,29,2,3,4,5,0,11,2,4,0,16,74,44,26,41,9,11,23,25]
[null,"20 to 29 percent",0,11,0,11,11,11,20,23,3,6,6,5,50,69,74,51,571,172,12,14,2,3,2,3,6,8,0,16,1,3,11,15,12,10,9,8,63,40,14,14,18,20,6,7,87,65]
[null,"30 percent or more",14,21,0,11,3,4,7,9,0,11,0,11,10,15,0,16,143,100,0,11,2,3,2,4,0,11,30,28,2,3,0,11,0,11,2,3,22,35,6,9,0,11,4,6,19,30]
[null,"$75,000 or more:",9,14,47,48,6,6,22,17,0,11,23,21,38,33,97,70,444,166,10,11,2,4,6,6,19,19,61,55,0,11,7,7,12,13,7,12,28,31,29,22,46,36,10,9,63,69]
[null,"Less than 20 percent",9,14,47,48,0,11,18,15,0,11,20,20,14,22,83,66,302,122,10,11,2,4,6,6,19,19,35,39,0,11,7,7,12,13,1,3,28,31,19,20,41,35,0,11,52,66]
[null,"20 to 29 percent",0,11,0,11,3,5,4,7,0,11,3,6,24,26,14,21,135,101,0,11,0,11,0,11,0,11,26,25,0,11,0,11,0,11,6,10,0,16,10,10,5,10,10,9,11,17]
[null,"30 percent or more",0,11,0,11,3,4,0,11,0,11,0,11,0,11,0,16,7,12,0,11,0,11,0,11,0,11,0,16,0,11,0,11,0,11,0,11,0,16,0,11,0,11,0,11,0,11]
[null,"Zero or negative income",0,11,0,11,0,11,0,11,0,11,0,11,0,11,21,35,24,33,0,11,0,11,2,3,0,11,0,16,0,11,0,11,0,11,0,11,13,20,0,11,0,11,0,11,0,11]
[null,"No cash rent",45,22,13,20,36,19,14,21,9,7,7,8,73,65,26,31,64,46,13,22,8,9,0,11,8,7,23,23,2,3,2,5,6,11,3,5,84,54,6,9,26,22,3,5,35,28]
[]
[]
[]
[]
[]
[]
[null,"Calculated B25106. TENURE BY HOUSING COSTS AS A PERCENTAGE OF HOUSEHOLD INCOME IN THE PAST 12 MONTHS"]
[null,"Universe:  OCCUPIED HOUSING UNITS"]
[null,"Data Set: 2013-2017 American Community Survey 5-Year Estimates"]
[]
[null,null,"Alstead",null,"Chesterfield",null,"Dublin",null,"Fitzwilliam",null,"Gilsum",null,"Harrisville",null,"Hinsdale",null,"Jaffrey",null,"Keene",null,"Marlborough",null,"Marlow",null,"Nelson",null,"Richmond",null,"Rindge",null,"Roxbury",null,"Stoddard",null,"Sullivan",null,"Surry",null,"Swanzey",null,"Troy",null,"Walpole",null,"Westmoreland",null,"Winchester"]
[null,null,"Estimate","Margin of Error","Estimate","Margin of Error","Estimate","Margin of Error","Estimate","Margin of Error","Estimate","Margin of Error","Estimate","Margin of Error","Estimate","Margin of Error","Estimate","Margin of Error","Estimate","Margin of Error","Estimate","Margin of Error","Estimate","Margin of Error","Estimate","Margin of Error","Estimate","Margin of Error","Estimate","Margin of Error","Estimate","Margin of Error","Estimate","Margin of Error","Estimate","Margin of Error","Estimate","Margin of Error","Estimate","Margin of Error","Estimate","Margin of Error","Estimate","Margin of Error","Estimate","Margin of Error","Estimate","Margin of Error"]
[null,{"$f":"B106","v":"Total:"},776,79,1443,147,584,63,1002,92,283,34,437,53,1749,117,2175,152,9391,370,906,99,282,42,226,33,439,50,1883,144,84,27,484,60,293,50,371,45,2828,180,888,87,1631,93,656,77,1718,160]
[null,"Owner occupied housing units:",552,75,1218,141,462,54,873,93,257,35,374,47,1316,134,1404,150,5072,283,610,90,255,40,186,35,391,53,1483,153,72,27,440,57,232,46,341,45,2124,201,663,75,1301,105,602,81,1225,174]
[null,"Less than 20 percent",{"$f":"C109+C113+C117+C121+C125","v":220},{"$f":"SQRT((D109^2)+(D113^2)+(D117^2)+(D121^2)+(D125^2))","v":56.133768802744754},{"$f":"SQRT((E109^2)+(E113^2)+(E117^2)+(E121^2)+(E125^2))","v":412.54696702314999},135.09256086106296,162.61918705983007,50.388490749376487,230.40616311201399,77.903786814249287,65.833122362531157,22.338307903688676,133.88054376943649,43.531597719357833,417.59909003732275,120.76423311560423,384.27203905566694,127.79280104919839,1681.9664087014341,285.95104476116188,219.89542969329761,82.84926070883192,88.260976654464912,35.749125863438955,79.705708703956702,33.346664001066131,124.42668524074729,49.305172142484203,539.32179633313547,125.94443219134381,34.510867853474792,20.445048300260872,201.02487408278608,54.396691075836586,74.55199527846321,31.575306807693888,129.4990347454374,41.904653679513928,736.28323354535246,216.7971402025405,224.94666034418026,84.575410137935478,530.68257932590927,147.57709849431245,296.32245949303268,55.027265968790417,301.98675467642619,133.02631318652712]
[null,"20 to 29 percent",{"$f":"C110+C114+C118+C122+C126","v":139},{"$f":"SQRT((D110^2)+(D114^2)+(D118^2)+(D122^2)+(D126^2))","v":53.684262125878192},259.35111335793414,137.67715859938423,87,45.760244754590204,133.60014970051492,70.049982155600873,42.30839160261236,24,61.310684223877324,35.042830935870462,231.4108899771141,115.51190414844697,394.78221844454953,153.40469353966978,945.22272507594732,212.10374819884726,82.885463140408405,47.053161424074368,30.708305065568176,20.784609690826528,22.693611435820433,19.442222095223581,39.774363602702685,33.511192160232078,244.97346795112324,93.263068789312314,5.196152422706632,7.2111025509279782,51.81698563212646,36.523964735499348,36.290494623248108,20.71231517720798,72.759879054324983,36.262928728937489,310.0354818403855,163.7925517232087,98.752215165028076,65.498091575251266,162.02777539668932,89.319650693450427,97.969382972436847,42.602816808281588,143.96527359054335,93.552124508212003]
[null,"30 percent or more",{"$f":"C111+C115+C119+C123+C127","v":175},{"$f":"SQRT((D111^2)+(D115^2)+(D119^2)+(D123^2)+(D127^2))","v":53.291650377896914},140.68404316055179,118.77289253024026,64.529063219606712,41.653331199317059,134.38749941865873,71.203932475671593,39.711459303329562,23.043437243605826,31.859064644147981,25.119713374160941,202.8151868080889,98.264947972305976,247.09917037497314,130.57564857200595,693.7175217622804,249.61370154701044,106.48004507887852,59.455865984778995,31.272991542223778,24.839484696748443,20.09975124224178,18.601075237738275,64.923031352517725,41.073105555825698,237.10546176754343,132.48018719793538,9.4868329805051381,16.492422502470642,57.218878003679869,29.698484809834994,31.984371183438952,21.330729007701542,32.449961479175904,24.698178070456937,283,189.11901014969385,96.072888995803595,64.953829756219918,179.67192323788379,99.609236519511583,57.714816122032303,35.327043465311391,261.70594185077266,147.23790272888297]
[null,"Zero or negative income",{"$f":"C128","v":18},{"$f":"D128","v":18},{"$f":"E128","v":0},11,0,11,11,9,10,12,0,11,0,11,0,16,5,12,0,11,0,11,2,3,0,11,0,16,0,11,0,11,4,3,2,3,0,16,0,11,0,11,4,7,9,14]
[null,"Renter occupied housing units:",{"$f":"C129","v":224},{"$f":"D129","v":62},225,122,122,41,129,48,26,15,63,29,433,127,771,174,4319,404,296,85,27,13,40,15,48,30,400,99,12,9,44,26,61,23,30,18,704,165,225,63,330,108,54,28,493,124]
[null,"Less than 20 percent",{"$f":"C131+C135+C139+C143+C147","v":61},{"$f":"SQRT((D131^2)+(D135^2)+(D139^2)+(D143^2)+(D147^2))","v":42.766809560686191},{"$f":"SQRT((E131^2)+(E135^2)+(E139^2)+(E143^2)+(E147^2))","v":57.56735185849702},73.123183738127821,20.09975124224178,27.910571473905726,18,26.627053911388696,3,22.360679774997898,20,29.732137494637012,42.379240200834182,54.433445601027316,117.27744881263405,108.91280916402809,433.40627591210534,227.96929617823537,21.447610589527216,31.192947920964443,7.2801098892805181,22.360679774997898,8.0622577482985491,17.86057109949175,19,29.068883707497267,39.824615503479755,55.946402922797461,2,22.203603311174518,8.0622577482985491,20.904544960366874,12,25.553864678361276,2.2360679774997898,19.697715603592208,54.267854204860541,82.29823813423954,78.65748533992172,56.524331044250317,49.203658400570177,57.375953151124207,9,24.596747752497688,59.640590204993778,74.242844773082339]
[null,"20 to 29 percent",{"$f":"C132+C136+C140+C144+C148","v":14},{"$f":"SQRT((D132^2)+(D136^2)+(D140^2)+(D144^2)+(D148^2))","v":22.956480566497994},0,24.596747752497688,11.575836902790225,20.09975124224178,28.565713714171402,38.013155617496423,3,22.803508501982758,7.3484692283495345,17.86057109949175,100.8265837961398,112.60106571431729,130.03076559030174,103.82196299434914,667.00824582609175,254.04723970159566,70.128453569146956,66.2872536767062,2,22.203603311174518,3.6055512754639891,19.697715603592208,6,23.409399821439251,37.815340802378074,45.133136385587029,1,22.203603311174518,11,26.627053911388696,16.970562748477139,25.670995305986871,11,20.248456731316587,118.0762465528101,117.31155100841519,35.355339059327378,42.965102117881671,113.9034679015525,74.505033387013526,12.041594578792296,19.924858845171276,94.583296622606682,85.9709253178073]
[null,"30 percent or more",{"$f":"C133+C137+C141+C145+C149","v":104},{"$f":"SQRT((D133^2)+(D137^2)+(D141^2)+(D145^2)+(D149^2))","v":51.117511676528231},76.850504227363402,108.60478810807561,28.495613697550013,27.459060435491963,36.537651812890218,35.7211421989835,7,17.972200755611428,19.646882704388499,27.202941017470888,85.486841092650039,77.408009921454507,269.22852746319438,138.84523758487362,1348.108304254521,344.74048210211691,92.157473923713866,70.873126077519686,4,12.806248474865697,14.071247279470288,18.627936010197157,10.816653826391969,26.076809620810597,157.69908052997647,98.858484714262133,4.5825756949558398,17.578395831246947,14.212670403551895,26.981475126464083,11.874342087037917,20.371548787463361,5.3851648071345037,20.518284528683193,187.90423092628862,136.53204751998703,26.683328128252668,31.937438845342623,76.53103945458993,77.87168933572714,17.578395831246947,25.592967784139454,146.18139416492099,111.45851246091524]
[null,"Zero or negative income",{"$f":"C150","v":0},{"$f":"D150","v":11},{"$f":"E150","v":0},11,0,11,0,11,0,11,0,11,0,11,21,35,24,33,0,11,0,11,2,3,0,11,0,16,0,11,0,11,0,11,0,11,13,20,0,11,0,11,0,11,0,11]
[null,"No cash rent",{"$f":"C151","v":45},{"$f":"D151","v":22},13,20,36,19,14,21,9,7,7,8,73,65,26,31,64,46,13,22,8,9,0,11,8,7,23,23,2,3,2,5,6,11,3,5,84,54,6,9,26,22,3,5,35,28]
[]
[]
[]
[]
[null,"B25106. TENURE BY HOUSING COSTS AS A PERCENTAGE OF HOUSEHOLD INCOME IN THE PAST 12 MONTHS"]
[null,"Universe:  OCCUPIED HOUSING UNITS"]
[null,"Data Set: 2008-2012 American Community Survey 5-Year Estimates"]
[]
[null,null,"Alstead",null,"Chesterfield",null,"Dublin",null,"Fitzwilliam",null,"Gilsum",null,"Harrisville",null,"Hinsdale",null,"Jaffrey",null,"Keene",null,"Marlborough",null,"Marlow",null,"Nelson",null,"Richmond",null,"Rindge",null,"Roxbury",null,"Stoddard",null,"Sullivan",null,"Surry",null,"Swanzey",null,"Troy",null,"Walpole",null,"Westmoreland",null,"Winchester"]
[null,null,"Estimate","Margin of Error","Estimate","Margin of Error","Estimate","Margin of Error","Estimate","Margin of Error","Estimate","Margin of Error","Estimate","Margin of Error","Estimate","Margin of Error","Estimate","Margin of Error","Estimate","Margin of Error","Estimate","Margin of Error","Estimate","Margin of Error","Estimate","Margin of Error","Estimate","Margin of Error","Estimate","Margin of Error","Estimate","Margin of Error","Estimate","Margin of Error","Estimate","Margin of Error","Estimate","Margin of Error","Estimate","Margin of Error","Estimate","Margin of Error","Estimate","Margin of Error","Estimate","Margin of Error","Estimate","Margin of Error"]
[null,"Total:",753,73,1456,99,620,67,1121,88,247,34,428,65,1837,141,2209,134,8964,376,828,90,338,62,319,58,375,50,1785,129,88,16,461,67,258,36,345,43,2913,162,837,103,1515,123,687,79,1789,148]
[null,"Owner occupied housing units:",621,69,1263,141,480,54,944,104,217,33,360,55,1308,157,1661,123,5098,324,597,70,297,64,236,42,342,48,1354,134,76,15,408,64,218,35,322,44,2256,207,577,81,1049,110,601,73,1218,181]
[null,"Less than $20,000:",52,24,57,43,26,19,38,24,24,18,26,20,172,57,139,71,486,125,53,31,40,21,14,15,25,18,136,66,6,5,21,16,23,16,13,10,235,110,47,30,80,46,28,19,128,65]
[null,"Less than 20 percent",3,4,0,11,0,11,0,11,0,11,0,11,24,27,0,16,0,21,0,11,3,5,0,11,0,11,0,16,0,11,9,14,0,11,0,11,11,17,5,8,0,11,0,11,9,16]
[null,"20 to 29 percent",11,11,0,11,4,5,14,13,0,11,0,11,13,21,0,16,46,38,14,15,3,4,0,11,0,11,10,16,0,11,0,11,2,3,0,11,0,16,0,11,7,10,0,11,0,11]
[null,"30 percent or more",38,21,57,43,22,19,24,19,24,18,26,20,135,54,139,71,440,122,39,29,34,20,14,15,25,18,126,64,6,5,12,9,21,16,13,10,224,108,42,30,73,45,28,19,119,61]
[null,"$20,000 to $34,999:",52,25,68,51,56,30,169,64,23,18,43,23,188,102,189,71,540,135,36,21,14,8,41,15,34,20,155,74,11,7,82,33,30,17,41,21,220,99,89,49,137,70,23,14,248,78]
[null,"Less than 20 percent",4,7,31,32,0,11,20,16,9,11,18,17,14,24,0,16,8,13,0,11,0,11,9,7,0,11,5,9,0,11,13,15,3,5,6,9,30,33,32,30,38,34,0,11,8,13]
[null,"20 to 29 percent",13,10,0,11,14,17,48,40,2,3,9,9,44,33,10,18,70,49,4,5,11,7,10,9,7,7,17,20,0,11,21,18,8,11,23,16,10,16,0,11,8,12,7,7,20,24]
[null,"30 percent or more",35,24,37,42,42,26,101,53,12,15,16,15,130,93,179,74,462,128,32,21,3,4,22,12,27,17,133,71,11,7,48,24,19,10,12,9,180,98,57,39,91,62,16,12,220,79]
[null,"$35,000 to $49,999:",71,25,216,116,56,26,147,54,62,25,70,31,187,112,113,57,649,168,84,39,63,48,17,11,83,36,112,46,5,6,64,31,25,13,34,17,371,147,81,40,137,58,88,33,194,81]
[null,"Less than 20 percent",47,20,80,80,17,16,42,33,3,4,14,12,15,18,12,20,142,90,17,16,5,7,5,7,14,10,0,16,2,4,10,15,10,8,5,5,104,78,41,29,47,28,16,12,45,32]
[null,"20 to 29 percent",5,8,21,24,3,4,34,24,21,13,24,22,110,85,0,16,183,80,24,25,12,9,0,11,13,18,40,38,2,3,6,6,6,6,15,13,63,41,12,16,50,51,19,14,62,43]
[null,"30 percent or more",19,15,115,74,36,23,71,31,38,20,32,19,62,57,101,56,324,111,43,23,46,48,12,8,56,29,72,40,1,3,48,28,9,8,14,9,204,108,28,22,40,35,53,28,87,56]
[null,"$50,000 to $74,999:",222,58,209,94,131,39,165,57,42,15,53,25,368,104,437,141,946,207,116,46,76,29,21,12,55,20,243,68,15,7,106,35,40,19,66,22,538,125,127,49,256,90,105,36,276,91]
[null,"Less than 20 percent",99,38,104,67,27,16,65,50,26,13,14,13,180,84,82,44,155,68,48,29,31,23,16,11,12,10,81,46,7,6,46,18,8,7,19,12,209,99,46,31,92,49,37,22,115,67]
[null,"20 to 29 percent",69,37,50,45,57,29,49,27,9,6,18,13,142,72,162,89,350,134,34,24,30,17,2,4,24,14,51,30,6,6,49,31,11,8,17,12,107,71,39,33,51,42,32,19,106,48]
[null,"30 percent or more",54,26,55,50,47,25,51,29,7,7,21,15,46,31,193,99,441,166,34,28,15,10,3,4,19,11,111,47,2,4,11,9,21,17,30,17,222,97,42,29,113,63,36,22,55,39]
[null,"$75,000 or more:",221,53,702,134,211,34,425,87,66,18,162,32,393,105,777,137,2458,249,308,59,104,34,143,37,145,35,697,105,34,12,135,39,100,27,168,37,892,167,233,57,431,92,354,55,372,111]
[null,"Less than 20 percent",154,52,412,132,136,39,217,55,40,16,120,32,218,84,488,150,1384,205,197,57,79,32,107,32,81,23,403,96,27,12,105,34,76,25,105,32,503,146,97,37,293,85,180,46,250,91]
[null,"20 to 29 percent",54,23,232,96,61,30,176,68,21,12,38,17,136,73,221,108,824,154,88,38,14,12,22,17,27,17,223,67,5,5,21,15,18,12,45,23,349,127,85,47,79,33,117,37,96,53]
[null,"30 percent or more",13,11,58,49,14,12,32,34,5,5,4,6,39,33,68,57,250,84,23,19,11,8,14,10,37,29,71,40,2,3,9,7,6,6,18,11,40,38,51,29,59,41,57,30,26,28]
[null,"Zero or negative income",3,4,11,18,0,11,0,11,0,11,6,6,0,11,6,10,19,33,0,11,0,11,0,11,0,11,11,17,5,7,0,11,0,11,0,11,0,16,0,11,8,12,3,4,0,11]
[null,"Renter occupied housing units:",132,44,193,127,140,49,177,79,30,19,68,40,529,121,548,126,3866,378,231,89,41,24,83,43,33,24,431,119,12,9,53,28,40,25,23,14,657,173,260,77,466,132,86,32,571,128]
[null,"Less than $20,000:",40,23,40,31,3,5,35,32,4,4,0,11,169,94,144,78,1003,202,13,10,0,11,8,9,8,9,107,57,0,11,0,11,11,14,0,11,140,77,56,41,78,59,2,5,120,75]
[null,"Less than 20 percent",0,11,0,11,0,11,0,11,0,11,0,11,0,11,13,22,56,45,0,11,0,11,0,11,0,11,0,16,0,11,0,11,0,11,0,11,14,22,0,11,0,11,0,11,0,11]
[null,"20 to 29 percent",9,13,0,11,0,11,0,11,0,11,0,11,64,48,0,16,124,69,5,8,0,11,0,11,0,11,0,16,0,11,0,11,2,3,0,11,11,18,0,11,12,20,0,11,0,11]
[null,"30 percent or more",31,20,40,31,3,5,35,32,4,4,0,11,105,86,131,76,823,194,8,11,0,11,8,9,8,9,107,57,0,11,0,11,9,12,0,11,115,71,56,41,66,53,2,5,120,75]
[null,"$20,000 to $34,999:",69,36,0,11,61,33,52,56,4,5,41,37,141,75,240,93,988,198,69,61,9,15,12,9,2,5,29,30,2,3,13,11,5,8,0,11,145,117,72,48,84,48,10,16,238,98]
[null,"Less than 20 percent",10,13,0,11,10,15,0,11,0,11,0,11,13,20,25,29,53,37,18,30,0,11,0,11,0,11,0,16,0,11,0,11,0,11,0,11,0,16,0,11,0,11,0,11,17,19]
[null,"20 to 29 percent",5,8,0,11,3,5,3,7,4,5,10,15,40,40,38,59,273,112,0,11,0,11,3,4,2,5,0,16,0,11,5,7,5,8,0,11,28,34,19,22,18,22,10,16,9,15]
[null,"30 percent or more",54,33,0,11,48,30,49,55,0,11,31,35,88,77,177,78,662,175,51,50,9,15,9,8,0,11,29,30,2,3,8,9,0,11,0,11,117,111,53,44,66,42,0,11,212,96]
[null,"$35,000 to $49,999:",4,5,0,11,20,20,53,49,6,11,9,14,157,96,32,37,604,176,44,37,0,11,29,36,13,21,72,52,6,8,0,11,3,4,5,8,76,57,67,55,106,64,31,24,33,31]
[null,"Less than 20 percent",0,11,0,11,10,16,0,11,6,11,0,11,0,11,0,16,43,58,0,11,0,11,0,11,0,11,0,16,0,11,0,11,0,11,0,11,0,16,23,37,22,35,0,11,10,17]
[null,"20 to 29 percent",0,11,0,11,5,8,31,38,0,11,9,14,147,95,0,16,302,130,24,33,0,11,3,5,0,11,20,13,0,11,0,11,0,11,0,11,46,45,29,37,49,42,11,16,13,20]
[null,"30 percent or more",4,5,0,11,5,8,22,33,0,11,0,11,10,17,32,37,259,115,20,18,0,11,26,36,13,21,52,51,6,8,0,11,3,4,5,8,30,34,15,19,35,37,20,16,10,17]
[null,"$50,000 to $74,999:",4,5,83,106,0,11,7,10,6,8,8,9,49,41,100,57,611,155,70,53,20,18,8,12,4,6,59,58,0,11,22,23,0,11,3,4,104,68,23,18,84,50,16,12,128,83]
[null,"Less than 20 percent",0,11,65,101,0,11,0,11,0,11,8,9,17,21,52,46,196,89,28,37,5,8,8,12,0,11,22,34,0,11,12,18,0,11,1,3,12,19,4,6,84,50,2,4,27,36]
[null,"20 to 29 percent",4,5,18,28,0,11,7,10,6,8,0,11,6,11,12,20,206,75,42,37,9,13,0,11,0,11,37,42,0,11,10,14,0,11,2,3,73,62,19,17,0,11,10,10,101,77]
[null,"30 percent or more",0,11,0,11,0,11,0,11,0,11,0,11,26,31,36,43,209,116,0,11,6,9,0,11,4,6,0,16,0,11,0,11,0,11,0,11,19,32,0,11,0,11,4,7,0,11]
[null,"$75,000 or more:",8,10,70,73,21,14,30,28,3,4,10,12,13,20,0,16,509,184,12,14,5,5,21,15,4,6,76,49,0,11,9,13,5,5,8,6,142,73,36,36,29,35,8,11,24,27]
[null,"Less than 20 percent",8,10,70,73,18,14,9,14,3,4,5,9,13,20,0,16,373,150,6,10,5,5,21,15,4,6,58,47,0,11,9,13,5,5,7,7,142,73,31,35,29,35,5,9,15,23]
[null,"20 to 29 percent",0,11,0,11,0,11,5,7,0,11,5,7,0,11,0,16,123,112,6,10,0,11,0,11,0,11,18,28,0,11,0,11,0,11,1,3,0,16,0,11,0,11,3,5,9,13]
[null,"30 percent or more",0,11,0,11,3,4,16,23,0,11,0,11,0,11,0,16,13,22,0,11,0,11,0,11,0,11,0,16,0,11,0,11,0,11,0,11,0,16,5,8,0,11,0,11,0,11]
[null,"Zero or negative income",0,11,0,11,0,11,0,11,7,10,0,11,0,11,0,16,20,24,0,11,0,11,0,11,0,11,13,16,0,11,0,11,0,11,0,11,0,16,0,11,0,11,0,11,23,38]
[null,"No cash rent",7,7,0,11,35,18,0,11,0,11,0,11,0,11,32,36,131,79,23,28,7,10,5,5,2,5,75,39,4,6,9,10,16,17,7,7,50,40,6,10,85,54,19,14,5,9]
[]
[]
[]
[]
[]
[]
[null,"Calculated B25106. TENURE BY HOUSING COSTS AS A PERCENTAGE OF HOUSEHOLD INCOME IN THE PAST 12 MONTHS"]
[null,"Universe:  OCCUPIED HOUSING UNITS"]
[null,"Data Set: 2008-2012 American Community Survey 5-Year Estimates"]
[]
[null,null,"Alstead",null,"Chesterfield",null,"Dublin",null,"Fitzwilliam",null,"Gilsum",null,"Harrisville",null,"Hinsdale",null,"Jaffrey",null,"Keene",null,"Marlborough",null,"Marlow",null,"Nelson",null,"Richmond",null,"Rindge",null,"Roxbury",null,"Stoddard",null,"Sullivan",null,"Surry",null,"Swanzey",null,"Troy",null,"Walpole",null,"Westmoreland",null,"Winchester"]
[null,null,"Estimate","Margin of Error","Estimate","Margin of Error","Estimate","Margin of Error","Estimate","Margin of Error","Estimate","Margin of Error","Estimate","Margin of Error","Estimate","Margin of Error","Estimate","Margin of Error","Estimate","Margin of Error","Estimate","Margin of Error","Estimate","Margin of Error","Estimate","Margin of Error","Estimate","Margin of Error","Estimate","Margin of Error","Estimate","Margin of Error","Estimate","Margin of Error","Estimate","Margin of Error","Estimate","Margin of Error","Estimate","Margin of Error","Estimate","Margin of Error","Estimate","Margin of Error","Estimate","Margin of Error","Estimate","Margin of Error"]
[null,"Total:",{"$f":"C186","v":753},73,1456,99,620,67,1121,88,247,34,428,65,1837,141,2209,134,8964,376,828,90,338,62,319,58,375,50,1785,129,88,16,461,67,258,36,345,43,2913,162,837,103,1515,123,687,79,1789,148]
[null,"Owner occupied housing units:",{"$f":"C187","v":621},69,1263,141,480,54,944,104,217,33,360,55,1308,157,1661,123,5098,324,597,70,297,64,236,42,342,48,1354,134,76,15,408,64,218,35,322,44,2256,207,577,81,1049,110,601,73,1218,181]
[null,"Less than 20 percent",{"$f":"C189+C193+C197+C201+C205","v":307},{"$f":"SQRT((D189^2)+(D193^2)+(D197^2)+(D201^2)+(D205^2))","v":67.919069487147723},{"$f":"SQRT((E189^2)+(E193^2)+(E197^2)+(E201^2)+(E205^2))","v":433.49855824443063},171.63333009645882,139.6925194847598,47.696960070847283,231.25310808722116,83.612200066736676,48.641546028061235,26.134268690743959,122.94714311442947,41.797129088012731,284.46616670528675,125.4631419979589,494.98686851269093,159.21055241409096,1399.8960675707322,235.28493364429437,203.47481416627465,67.734776887504395,85.064681272546949,41.809089920733747,108.67842472174502,36.932370625238775,83.072257703760528,31.160872901765767,411.09001447371594,109.20164833920778,27.964262908219126,20.928449536456348,116.15076409563564,46.108567533594012,77.129760793094647,29.732137494637012,106.99065379742288,37.349698793966198,555.45206813909692,196.41537618017588,119.39430472179149,64.303965663091105,312.99520763104346,108.10642904101495,184.45866745696716,54.644304369257,279.09675741577507,119.24344845734713]
[null,"20 to 29 percent",{"$f":"C190+C194+C198+C202+C206","v":152},{"$f":"SQRT((D190^2)+(D194^2)+(D198^2)+(D202^2)+(D206^2))","v":46.722585544894663},{"$f":"SQRT((E190^2)+(E194^2)+(E198^2)+(E202^2)+(E206^2))","v":238.25406607233381},109.81347822558031,84.799764150615417,45.508241011931013,192.43960091415696,87.738247076175398,31.096623610932426,21.88606862823929,49.244289008980523,33.823069050575526,229.92390045404153,138.80922159568507,274.19883296615251,142.90206436577463,917.59522666587577,227.85302280198084,98.427638394914254,53.80520420925842,37.013511046643494,24.06241883103193,24.248711305964282,25.059928172283335,39.025632602175712,31.28897569432403,233.06436879111317,86.539008545279742,8.0622577482985491,17.663521732655695,57.610762883336307,40.828911325187207,23.430749027719962,19.339079605813716,55.389529696504916,34.914180500192181,370.56578363362155,152.84959927981492,94.286796530585335,61.611687202997452,107.02803371079933,75.485097867062478,122.97560733739029,45.78209256903839,157.14961024450554,87.515712874888933]
[null,"30 percent or more",{"$f":"C191+C195+C199+C203+C207","v":159},{"$f":"SQRT((D191^2)+(D195^2)+(D199^2)+(D203^2)+(D207^2))","v":45.155287619502545},{"$f":"SQRT((E191^2)+(E195^2)+(E199^2)+(E203^2)+(E207^2))","v":155.66630977832037},118.27933040053955,77.129760793094647,48.321837713398274,139.43815833551446,78.2815431631237,47.307504690059481,31.984371183438952,49.122296363260546,35.312887166019152,206.41220894123487,129.8614646459834,321.61467628203786,163.41052597675585,876.92702090880971,279.64441707282481,77.967942130083188,54.369108876272747,60.224579699654193,53.702886328390207,32.078029864690883,23.430749027719962,78.866976612521412,49.152822909778031,236.87760552656724,120.60679914499016,12.884098726725126,10.392304845413264,70.384657419071104,39.635842365212831,36.878177829171548,27.294688127912362,41.629316592997299,25.922962793631442,418.42084078114465,209.24865590966169,100.80674580602232,67.727394752788186,177.36967046256808,112.88932633336067,91.618775368370862,51.701063818842258,271.71860444216918,124.1088232157569]
[null,"Zero or negative income",{"$f":"C208","v":3},{"$f":"D208","v":4},{"$f":"E208","v":11},18,0,11,0,11,0,11,6,6,0,11,6,10,19,33,0,11,0,11,0,11,0,11,11,17,5,7,0,11,0,11,0,11,0,16,0,11,8,12,3,4,0,11]
[null,"Renter occupied housing units:",{"$f":"C209","v":132},{"$f":"D209","v":44},{"$f":"E209","v":193},127,140,49,177,79,30,19,68,40,529,121,548,126,3866,378,231,89,41,24,83,43,33,24,431,119,12,9,53,28,40,25,23,14,657,173,260,77,466,132,86,32,571,128]
[null,"Less than 20 percent",{"$f":"C211+C215+C219+C223+C227","v":18},{"$f":"SQRT((D211^2)+(D215^2)+(D219^2)+(D223^2)+(D227^2))","v":25.13961017995307},{"$f":"SQRT((E211^2)+(E215^2)+(E219^2)+(E223^2)+(E227^2))","v":95.524865872714003},126.0674422680178,22.891046284519195,30.315012782448235,9,26.076809620810597,6.7082039324993694,22.360679774997898,9.4339811320566032,22.912878474779198,25.03996805109783,38.509739027939411,59.143892330484981,62.872887638472598,430.51016248167707,192.81856757065694,33.823069050575526,51.097945164164869,7.0710678118654755,21.2602916254693,22.472205054244231,27.055498516937366,4,22.803508501982758,62.032249677083293,64.288412641781719,0,24.596747752497688,15,29.257477676655586,5,22.561028345356956,7.0710678118654755,20.518284528683193,143.19217855734999,81.767964387038518,38.80721582386451,53.591044027897048,91.547801721286575,72.055534138607285,5.3851648071345037,21.447610589527216,36.646964403617389,50.950956811427986]
[null,"20 to 29 percent",{"$f":"C212+C216+C220+C224+C228","v":18},{"$f":"SQRT((D212^2)+(D216^2)+(D220^2)+(D224^2)+(D228^2))","v":22.360679774997898},{"$f":"SQRT((E212^2)+(E216^2)+(E220^2)+(E224^2)+(E228^2))","v":18},35.608987629529715,5.8309518948453007,21.2602916254693,32.310988842807021,41.98809355043403,7.2111025509279782,21.2602916254693,14.352700094407323,26.683328128252668,165.35114151405185,114.76497723608888,39.849717690342551,68.183575734923139,488.54273098675822,228.85366503510491,49,52.373657500693994,9,25.553864678361276,4.2426406871192848,20.09975124224178,2,22.561028345356956,45.749316934791494,56.824290580701486,0,24.596747752497688,11.180339887498949,24.657656011875904,5.3851648071345037,20.880613017821101,2.2360679774997898,19.519221295943137,91.37833441248533,87.206651122491792,39.534794801541594,48.826222462934808,53.563046963368315,53.758720222862451,18.165902124584949,27.531799795872409,102.62553288533999,82.728471519785742]
[null,"30 percent or more",{"$f":"C213+C217+C221+C225+C229","v":89},{"$f":"SQRT((D213^2)+(D217^2)+(D221^2)+(D225^2)+(D229^2))","v":41.904653679513928},{"$f":"SQRT((E213^2)+(E217^2)+(E221^2)+(E225^2)+(E229^2))","v":40},38.013155617496423,48.445846055157297,33.555923471125034,66.075714146727165,76.078906406440936,4,22.360679774997898,31,41.340053217188775,139.80343343423294,121.2270596855339,225.41073621280776,123.8305293536291,1107.4764105839906,308.91099041633333,55.362442142665635,56.453520705089772,10.816653826391969,25.865034312755125,28.653097563788805,41.024382993532029,15.779733838059499,28.284271247461902,122.44998979175131,85.217369121558775,6.324555320336759,20.880613017821101,8,23.769728648009426,9.4868329805051381,22.869193252058544,5,23.409399821439251,167.8541033159452,140.70536592468676,78.708322304569549,64.521314307754153,99.684502306025479,78.638413005350003,20.493901531919196,23.916521486202797,243.81140252252354,123.98386991863094]
[null,"Zero or negative income",{"$f":"C230","v":0},{"$f":"D230","v":11},{"$f":"E230","v":0},11,0,11,0,11,7,10,0,11,0,11,0,16,20,24,0,11,0,11,0,11,0,11,13,16,0,11,0,11,0,11,0,11,0,16,0,11,0,11,0,11,23,38]
[null,"No cash rent",{"$f":"C231","v":7},{"$f":"D231","v":7},{"$f":"E231","v":0},11,35,18,0,11,0,11,0,11,0,11,32,36,131,79,23,28,7,10,5,5,2,5,75,39,4,6,9,10,16,17,7,7,50,40,6,10,85,54,19,14,5,9]

{"sheet":"SData_B25075&_B25077_OOccHsgVal","index":99,"n_rows":63,"n_cols":62,"rows_kept":63,"cut":false,"hidden":true,"merged":[]}
["GEO_ID","GEO_ID2","SUMLEVEL",{"$f":"[1]ACS_16_5YR_B25075_with_ann!C1","v":"NAME"},{"$f":"[1]ACS_16_5YR_B25075_with_ann!D1","v":"B25075_001E"},{"$f":"[1]ACS_16_5YR_B25075_with_ann!E1","v":"B25075_001M"},{"$f":"[1]ACS_16_5YR_B25075_with_ann!F1","v":"B25075_002E"},{"$f":"[1]ACS_16_5YR_B25075_with_ann!G1","v":"B25075_002M"},{"$f":"[1]ACS_16_5YR_B25075_with_ann!H1","v":"B25075_003E"},{"$f":"[1]ACS_16_5YR_B25075_with_ann!I1","v":"B25075_003M"},{"$f":"[1]ACS_16_5YR_B25075_with_ann!J1","v":"B25075_004E"},{"$f":"[1]ACS_16_5YR_B25075_with_ann!K1","v":"B25075_004M"},{"$f":"[1]ACS_16_5YR_B25075_with_ann!L1","v":"B25075_005E"},{"$f":"[1]ACS_16_5YR_B25075_with_ann!M1","v":"B25075_005M"},{"$f":"[1]ACS_16_5YR_B25075_with_ann!N1","v":"B25075_006E"},{"$f":"[1]ACS_16_5YR_B25075_with_ann!O1","v":"B25075_006M"},{"$f":"[1]ACS_16_5YR_B25075_with_ann!P1","v":"B25075_007E"},{"$f":"[1]ACS_16_5YR_B25075_with_ann!Q1","v":"B25075_007M"},{"$f":"[1]ACS_16_5YR_B25075_with_ann!R1","v":"B25075_008E"},{"$f":"[1]ACS_16_5YR_B25075_with_ann!S1","v":"B25075_008M"},{"$f":"[1]ACS_16_5YR_B25075_with_ann!T1","v":"B25075_009E"},{"$f":"[1]ACS_16_5YR_B25075_with_ann!U1","v":"B25075_009M"},{"$f":"[1]ACS_16_5YR_B25075_with_ann!V1","v":"B25075_010E"},{"$f":"[1]ACS_16_5YR_B25075_with_ann!W1","v":"B25075_010M"},{"$f":"[1]ACS_16_5YR_B25075_with_ann!X1","v":"B25075_011E"},{"$f":"[1]ACS_16_5YR_B25075_with_ann!Y1","v":"B25075_011M"},{"$f":"[1]ACS_16_5YR_B25075_with_ann!Z1","v":"B25075_012E"},{"$f":"[1]ACS_16_5YR_B25075_with_ann!AA1","v":"B25075_012M"},{"$f":"[1]ACS_16_5YR_B25075_with_ann!AB1","v":"B25075_013E"},{"$f":"[1]ACS_16_5YR_B25075_with_ann!AC1","v":"B25075_013M"},{"$f":"[1]ACS_16_5YR_B25075_with_ann!AD1","v":"B25075_014E"},{"$f":"[1]ACS_16_5YR_B25075_with_ann!AE1","v":"B25075_014M"},{"$f":"[1]ACS_16_5YR_B25075_with_ann!AF1","v":"B25075_015E"},{"$f":"[1]ACS_16_5YR_B25075_with_ann!AG1","v":"B25075_015M"},{"$f":"[1]ACS_16_5YR_B25075_with_ann!AH1","v":"B25075_016E"},{"$f":"[1]ACS_16_5YR_B25075_with_ann!AI1","v":"B25075_016M"},{"$f":"[1]ACS_16_5YR_B25075_with_ann!AJ1","v":"B25075_017E"},{"$f":"[1]ACS_16_5YR_B25075_with_ann!AK1","v":"B25075_017M"},{"$f":"[1]ACS_16_5YR_B25075_with_ann!AL1","v":"B25075_018E"},{"$f":"[1]ACS_16_5YR_B25075_with_ann!AM1","v":"B25075_018M"},{"$f":"[1]ACS_16_5YR_B25075_with_ann!AN1","v":"B25075_019E"},{"$f":"[1]ACS_16_5YR_B25075_with_ann!AO1","v":"B25075_019M"},{"$f":"[1]ACS_16_5YR_B25075_with_ann!AP1","v":"B25075_020E"},{"$f":"[1]ACS_16_5YR_B25075_with_ann!AQ1","v":"B25075_020M"},{"$f":"[1]ACS_16_5YR_B25075_with_ann!AR1","v":"B25075_021E"},{"$f":"[1]ACS_16_5YR_B25075_with_ann!AS1","v":"B25075_021M"},{"$f":"[1]ACS_16_5YR_B25075_with_ann!AT1","v":"B25075_022E"},{"$f":"[1]ACS_16_5YR_B25075_with_ann!AU1","v":"B25075_022M"},{"$f":"[1]ACS_16_5YR_B25075_with_ann!AV1","v":"B25075_023E"},{"$f":"[1]ACS_16_5YR_B25075_with_ann!AW1","v":"B25075_023M"},{"$f":"[1]ACS_16_5YR_B25075_with_ann!AX1","v":"B25075_024E"},{"$f":"[1]ACS_16_5YR_B25075_with_ann!AY1","v":"B25075_024M"},{"$f":"[1]ACS_16_5YR_B25075_with_ann!AZ1","v":"B25075_025E"},{"$f":"[1]ACS_16_5YR_B25075_with_ann!BA1","v":"B25075_025M"},{"$f":"[1]ACS_16_5YR_B25075_with_ann!BB1","v":"B25075_026E"},{"$f":"[1]ACS_16_5YR_B25075_with_ann!BC1","v":"B25075_026M"},{"$f":"[1]ACS_16_5YR_B25075_with_ann!BD1","v":"B25075_027E"},{"$f":"[1]ACS_16_5YR_B25075_with_ann!BE1","v":"B25075_027M"},{"$f":"[1]ACS_16_5YR_B25077_with_ann!D1","v":"B25077_001E"},{"$f":"[1]ACS_16_5YR_B25077_with_ann!E1","v":"B25077_001M"}]
["Geography Identifier","Geography Identifier","Geographic Summary Level",{"$f":"[1]ACS_16_5YR_B25075_with_ann!C2","v":"Geographic Area Name"},{"$f":"[1]ACS_16_5YR_B25075_with_ann!D2","v":"Estimate!!Total:"},{"$f":"[1]ACS_16_5YR_B25075_with_ann!E2","v":"Margin of Error!!Total:"},{"$f":"[1]ACS_16_5YR_B25075_with_ann!F2","v":"Estimate!!Total:!!Less than $10,000"},{"$f":"[1]ACS_16_5YR_B25075_with_ann!G2","v":"Margin of Error!!Total:!!Less than $10,000"},{"$f":"[1]ACS_16_5YR_B25075_with_ann!H2","v":"Estimate!!Total:!!$10,00 to $14,999"},{"$f":"[1]ACS_16_5YR_B25075_with_ann!I2","v":"Margin of Error!!Total:!!$10,00 to $14,999"},{"$f":"[1]ACS_16_5YR_B25075_with_ann!J2","v":"Estimate!!Total:!!$15,000 to $19,999"},{"$f":"[1]ACS_16_5YR_B25075_with_ann!K2","v":"Margin of Error!!Total:!!$15,000 to $19,999"},{"$f":"[1]ACS_16_5YR_B25075_with_ann!L2","v":"Estimate!!Total:!!$20,000 to $24,999"},{"$f":"[1]ACS_16_5YR_B25075_with_ann!M2","v":"Margin of Error!!Total:!!$20,000 to $24,999"},{"$f":"[1]ACS_16_5YR_B25075_with_ann!N2","v":"Estimate!!Total:!!$25,000 to $29,999"},{"$f":"[1]ACS_16_5YR_B25075_with_ann!O2","v":"Margin of Error!!Total:!!$25,000 to $29,999"},{"$f":"[1]ACS_16_5YR_B25075_with_ann!P2","v":"Estimate!!Total:!!$30,000 to $34,999"},{"$f":"[1]ACS_16_5YR_B25075_with_ann!Q2","v":"Margin of Error!!Total:!!$30,000 to $34,999"},{"$f":"[1]ACS_16_5YR_B25075_with_ann!R2","v":"Estimate!!Total:!!$35,000 to $39,999"},{"$f":"[1]ACS_16_5YR_B25075_with_ann!S2","v":"Margin of Error!!Total:!!$35,000 to $39,999"},{"$f":"[1]ACS_16_5YR_B25075_with_ann!T2","v":"Estimate!!Total:!!$40,000 to $49,999"},{"$f":"[1]ACS_16_5YR_B25075_with_ann!U2","v":"Margin of Error!!Total:!!$40,000 to $49,999"},{"$f":"[1]ACS_16_5YR_B25075_with_ann!V2","v":"Estimate!!Total:!!$50,000 to $59,999"},{"$f":"[1]ACS_16_5YR_B25075_with_ann!W2","v":"Margin of Error!!Total:!!$50,000 to $59,999"},{"$f":"[1]ACS_16_5YR_B25075_with_ann!X2","v":"Estimate!!Total:!!$60,000 to $69,999"},{"$f":"[1]ACS_16_5YR_B25075_with_ann!Y2","v":"Margin of Error!!Total:!!$60,000 to $69,999"},{"$f":"[1]ACS_16_5YR_B25075_with_ann!Z2","v":"Estimate!!Total:!!$70,000 to $79,999"},{"$f":"[1]ACS_16_5YR_B25075_with_ann!AA2","v":"Margin of Error!!Total:!!$70,000 to $79,999"},{"$f":"[1]ACS_16_5YR_B25075_with_ann!AB2","v":"Estimate!!Total:!!$80,000 to $89,999"},{"$f":"[1]ACS_16_5YR_B25075_with_ann!AC2","v":"Margin of Error!!Total:!!$80,000 to $89,999"},{"$f":"[1]ACS_16_5YR_B25075_with_ann!AD2","v":"Estimate!!Total:!!$90,000 to $99,999"},{"$f":"[1]ACS_16_5YR_B25075_with_ann!AE2","v":"Margin of Error!!Total:!!$90,000 to $99,999"},{"$f":"[1]ACS_16_5YR_B25075_with_ann!AF2","v":"Estimate!!Total:!!$100,000 to $124,999"},{"$f":"[1]ACS_16_5YR_B25075_with_ann!AG2","v":"Margin of Error!!Total:!!$100,000 to $124,999"},{"$f":"[1]ACS_16_5YR_B25075_with_ann!AH2","v":"Estimate!!Total:!!$125,000 to $149,999"},{"$f":"[1]ACS_16_5YR_B25075_with_ann!AI2","v":"Margin of Error!!Total:!!$125,000 to $149,999"},{"$f":"[1]ACS_16_5YR_B25075_with_ann!AJ2","v":"Estimate!!Total:!!$150,000 to $174,999"},{"$f":"[1]ACS_16_5YR_B25075_with_ann!AK2","v":"Margin of Error!!Total:!!$150,000 to $174,999"},{"$f":"[1]ACS_16_5YR_B25075_with_ann!AL2","v":"Estimate!!Total:!!$175,000 to $199,999"},{"$f":"[1]ACS_16_5YR_B25075_with_ann!AM2","v":"Margin of Error!!Total:!!$175,000 to $199,999"},{"$f":"[1]ACS_16_5YR_B25075_with_ann!AN2","v":"Estimate!!Total:!!$200,000 to $249,999"},{"$f":"[1]ACS_16_5YR_B25075_with_ann!AO2","v":"Margin of Error!!Total:!!$200,000 to $249,999"},{"$f":"[1]ACS_16_5YR_B25075_with_ann!AP2","v":"Estimate!!Total:!!$250,000 to $299,999"},{"$f":"[1]ACS_16_5YR_B25075_with_ann!AQ2","v":"Margin of Error!!Total:!!$250,000 to $299,999"},{"$f":"[1]ACS_16_5YR_B25075_with_ann!AR2","v":"Estimate!!Total:!!$300,000 to $399,999"},{"$f":"[1]ACS_16_5YR_B25075_with_ann!AS2","v":"Margin of Error!!Total:!!$300,000 to $399,999"},{"$f":"[1]ACS_16_5YR_B25075_with_ann!AT2","v":"Estimate!!Total:!!$400,000 to $499,999"},{"$f":"[1]ACS_16_5YR_B25075_with_ann!AU2","v":"Margin of Error!!Total:!!$400,000 to $499,999"},{"$f":"[1]ACS_16_5YR_B25075_with_ann!AV2","v":"Estimate!!Total:!!$500,000 to $749,999"},{"$f":"[1]ACS_16_5YR_B25075_with_ann!AW2","v":"Margin of Error!!Total:!!$500,000 to $749,999"},{"$f":"[1]ACS_16_5YR_B25075_with_ann!AX2","v":"Estimate!!Total:!!$750,000 to $999,999"},{"$f":"[1]ACS_16_5YR_B25075_with_ann!AY2","v":"Margin of Error!!Total:!!$750,000 to $999,999"},{"$f":"[1]ACS_16_5YR_B25075_with_ann!AZ2","v":"Estimate!!Total:!!$1,000,000 to $1,499,999"},{"$f":"[1]ACS_16_5YR_B25075_with_ann!BA2","v":"Margin of Error!!Total:!!$1,000,000 to $1,499,999"},{"$f":"[1]ACS_16_5YR_B25075_with_ann!BB2","v":"Estimate!!Total:!!$1,500,000 to $1,999,999"},{"$f":"[1]ACS_16_5YR_B25075_with_ann!BC2","v":"Margin of Error!!Total:!!$1,500,000 to $1,999,999"},{"$f":"[1]ACS_16_5YR_B25075_with_ann!BD2","v":"Estimate!!Total:!!$2,000,000 or more"},{"$f":"[1]ACS_16_5YR_B25075_with_ann!BE2","v":"Margin of Error!!Total:!!$2,000,000 or more"},{"$f":"[1]ACS_16_5YR_B25077_with_ann!D2","v":"Estimate!!Median value (dollars)"},{"$f":"[1]ACS_16_5YR_B25077_with_ann!E2","v":"Margin of Error!!Median value (dollars)"}]
["06000US3300500820","0600000US3300512260","060",null,{"$f":"[1]ACS_16_5YR_B25075_with_ann!D44","v":507},{"$f":"[1]ACS_16_5YR_B25075_with_ann!E44","v":86},{"$f":"[1]ACS_16_5YR_B25075_with_ann!F44","v":13},{"$f":"[1]ACS_16_5YR_B25075_with_ann!G44","v":21},{"$f":"[1]ACS_16_5YR_B25075_with_ann!H44","v":5},{"$f":"[1]ACS_16_5YR_B25075_with_ann!I44","v":7},{"$f":"[1]ACS_16_5YR_B25075_with_ann!J44","v":5},{"$f":"[1]ACS_16_5YR_B25075_with_ann!K44","v":6},{"$f":"[1]ACS_16_5YR_B25075_with_ann!L44","v":7},{"$f":"[1]ACS_16_5YR_B25075_with_ann!M44","v":8},{"$f":"[1]ACS_16_5YR_B25075_with_ann!N44","v":0},{"$f":"[1]ACS_16_5YR_B25075_with_ann!O44","v":12},{"$f":"[1]ACS_16_5YR_B25075_with_ann!P44","v":0},{"$f":"[1]ACS_16_5YR_B25075_with_ann!Q44","v":12},{"$f":"[1]ACS_16_5YR_B25075_with_ann!R44","v":0},{"$f":"[1]ACS_16_5YR_B25075_with_ann!S44","v":12},{"$f":"[1]ACS_16_5YR_B25075_with_ann!T44","v":16},{"$f":"[1]ACS_16_5YR_B25075_with_ann!U44","v":21},{"$f":"[1]ACS_16_5YR_B25075_with_ann!V44","v":0},{"$f":"[1]ACS_16_5YR_B25075_with_ann!W44","v":12},{"$f":"[1]ACS_16_5YR_B25075_with_ann!X44","v":15},{"$f":"[1]ACS_16_5YR_B25075_with_ann!Y44","v":20},{"$f":"[1]ACS_16_5YR_B25075_with_ann!Z44","v":0},{"$f":"[1]ACS_16_5YR_B25075_with_ann!AA44","v":12},{"$f":"[1]ACS_16_5YR_B25075_with_ann!AB44","v":20},{"$f":"[1]ACS_16_5YR_B25075_with_ann!AC44","v":15},{"$f":"[1]ACS_16_5YR_B25075_with_ann!AD44","v":2},{"$f":"[1]ACS_16_5YR_B25075_with_ann!AE44","v":3},{"$f":"[1]ACS_16_5YR_B25075_with_ann!AF44","v":63},{"$f":"[1]ACS_16_5YR_B25075_with_ann!AG44","v":59},{"$f":"[1]ACS_16_5YR_B25075_with_ann!AH44","v":6},{"$f":"[1]ACS_16_5YR_B25075_with_ann!AI44","v":9},{"$f":"[1]ACS_16_5YR_B25075_with_ann!AJ44","v":54},{"$f":"[1]ACS_16_5YR_B25075_with_ann!AK44","v":31},{"$f":"[1]ACS_16_5YR_B25075_with_ann!AL44","v":43},{"$f":"[1]ACS_16_5YR_B25075_with_ann!AM44","v":35},{"$f":"[1]ACS_16_5YR_B25075_with_ann!AN44","v":70},{"$f":"[1]ACS_16_5YR_B25075_with_ann!AO44","v":32},{"$f":"[1]ACS_16_5YR_B25075_with_ann!AP44","v":73},{"$f":"[1]ACS_16_5YR_B25075_with_ann!AQ44","v":27},{"$f":"[1]ACS_16_5YR_B25075_with_ann!AR44","v":85},{"$f":"[1]ACS_16_5YR_B25075_with_ann!AS44","v":28},{"$f":"[1]ACS_16_5YR_B25075_with_ann!AT44","v":21},{"$f":"[1]ACS_16_5YR_B25075_with_ann!AU44","v":13},{"$f":"[1]ACS_16_5YR_B25075_with_ann!AV44","v":0},{"$f":"[1]ACS_16_5YR_B25075_with_ann!AW44","v":12},{"$f":"[1]ACS_16_5YR_B25075_with_ann!AX44","v":9},{"$f":"[1]ACS_16_5YR_B25075_with_ann!AY44","v":9},{"$f":"[1]ACS_16_5YR_B25075_with_ann!AZ44","v":0},{"$f":"[1]ACS_16_5YR_B25075_with_ann!BA44","v":12},{"$f":"[1]ACS_16_5YR_B25075_with_ann!BB44","v":0},{"$f":"[1]ACS_16_5YR_B25075_with_ann!BC44","v":12},{"$f":"[1]ACS_16_5YR_B25075_with_ann!BD44","v":0},{"$f":"[1]ACS_16_5YR_B25075_with_ann!BE44","v":12},{"$f":"[1]ACS_16_5YR_B25077_with_ann!D44","v":203200},{"$f":"[1]ACS_16_5YR_B25077_with_ann!E44","v":30561},null,{"$f":"[1]ACS_16_5YR_B25075_with_ann!C44","v":"Alstead"}]
["06000US3300512260","0600000US3300519140","060",null,{"$f":"[1]ACS_16_5YR_B25075_with_ann!D45","v":1227},{"$f":"[1]ACS_16_5YR_B25075_with_ann!E45","v":184},{"$f":"[1]ACS_16_5YR_B25075_with_ann!F45","v":0},{"$f":"[1]ACS_16_5YR_B25075_with_ann!G45","v":12},{"$f":"[1]ACS_16_5YR_B25075_with_ann!H45","v":0},{"$f":"[1]ACS_16_5YR_B25075_with_ann!I45","v":12},{"$f":"[1]ACS_16_5YR_B25075_with_ann!J45","v":0},{"$f":"[1]ACS_16_5YR_B25075_with_ann!K45","v":12},{"$f":"[1]ACS_16_5YR_B25075_with_ann!L45","v":0},{"$f":"[1]ACS_16_5YR_B25075_with_ann!M45","v":12},{"$f":"[1]ACS_16_5YR_B25075_with_ann!N45","v":13},{"$f":"[1]ACS_16_5YR_B25075_with_ann!O45","v":20},{"$f":"[1]ACS_16_5YR_B25075_with_ann!P45","v":0},{"$f":"[1]ACS_16_5YR_B25075_with_ann!Q45","v":12},{"$f":"[1]ACS_16_5YR_B25075_with_ann!R45","v":0},{"$f":"[1]ACS_16_5YR_B25075_with_ann!S45","v":12},{"$f":"[1]ACS_16_5YR_B25075_with_ann!T45","v":0},{"$f":"[1]ACS_16_5YR_B25075_with_ann!U45","v":12},{"$f":"[1]ACS_16_5YR_B25075_with_ann!V45","v":0},{"$f":"[1]ACS_16_5YR_B25075_with_ann!W45","v":12},{"$f":"[1]ACS_16_5YR_B25075_with_ann!X45","v":0},{"$f":"[1]ACS_16_5YR_B25075_with_ann!Y45","v":12},{"$f":"[1]ACS_16_5YR_B25075_with_ann!Z45","v":0},{"$f":"[1]ACS_16_5YR_B25075_with_ann!AA45","v":12},{"$f":"[1]ACS_16_5YR_B25075_with_ann!AB45","v":0},{"$f":"[1]ACS_16_5YR_B25075_with_ann!AC45","v":12},{"$f":"[1]ACS_16_5YR_B25075_with_ann!AD45","v":0},{"$f":"[1]ACS_16_5YR_B25075_with_ann!AE45","v":12},{"$f":"[1]ACS_16_5YR_B25075_with_ann!AF45","v":73},{"$f":"[1]ACS_16_5YR_B25075_with_ann!AG45","v":70},{"$f":"[1]ACS_16_5YR_B25075_with_ann!AH45","v":13},{"$f":"[1]ACS_16_5YR_B25075_with_ann!AI45","v":20},{"$f":"[1]ACS_16_5YR_B25075_with_ann!AJ45","v":34},{"$f":"[1]ACS_16_5YR_B25075_with_ann!AK45","v":38},{"$f":"[1]ACS_16_5YR_B25075_with_ann!AL45","v":95},{"$f":"[1]ACS_16_5YR_B25075_with_ann!AM45","v":74},{"$f":"[1]ACS_16_5YR_B25075_with_ann!AN45","v":211},{"$f":"[1]ACS_16_5YR_B25075_with_ann!AO45","v":115},{"$f":"[1]ACS_16_5YR_B25075_with_ann!AP45","v":338},{"$f":"[1]ACS_16_5YR_B25075_with_ann!AQ45","v":145},{"$f":"[1]ACS_16_5YR_B25075_with_ann!AR45","v":236},{"$f":"[1]ACS_16_5YR_B25075_with_ann!AS45","v":135},{"$f":"[1]ACS_16_5YR_B25075_with_ann!AT45","v":149},{"$f":"[1]ACS_16_5YR_B25075_with_ann!AU45","v":104},{"$f":"[1]ACS_16_5YR_B25075_with_ann!AV45","v":65},{"$f":"[1]ACS_16_5YR_B25075_with_ann!AW45","v":54},{"$f":"[1]ACS_16_5YR_B25075_with_ann!AX45","v":0},{"$f":"[1]ACS_16_5YR_B25075_with_ann!AY45","v":12},{"$f":"[1]ACS_16_5YR_B25075_with_ann!AZ45","v":0},{"$f":"[1]ACS_16_5YR_B25075_with_ann!BA45","v":12},{"$f":"[1]ACS_16_5YR_B25075_with_ann!BB45","v":0},{"$f":"[1]ACS_16_5YR_B25075_with_ann!BC45","v":12},{"$f":"[1]ACS_16_5YR_B25075_with_ann!BD45","v":0},{"$f":"[1]ACS_16_5YR_B25075_with_ann!BE45","v":12},{"$f":"[1]ACS_16_5YR_B25077_with_ann!D45","v":275800},{"$f":"[1]ACS_16_5YR_B25077_with_ann!E45","v":18241},null,{"$f":"[1]ACS_16_5YR_B25075_with_ann!C45","v":"Chesterfield"}]
["06000US3300519140","0600000US3300526500","060",null,{"$f":"[1]ACS_16_5YR_B25075_with_ann!D46","v":530},{"$f":"[1]ACS_16_5YR_B25075_with_ann!E46","v":99},{"$f":"[1]ACS_16_5YR_B25075_with_ann!F46","v":0},{"$f":"[1]ACS_16_5YR_B25075_with_ann!G46","v":12},{"$f":"[1]ACS_16_5YR_B25075_with_ann!H46","v":0},{"$f":"[1]ACS_16_5YR_B25075_with_ann!I46","v":12},{"$f":"[1]ACS_16_5YR_B25075_with_ann!J46","v":1},{"$f":"[1]ACS_16_5YR_B25075_with_ann!K46","v":2},{"$f":"[1]ACS_16_5YR_B25075_with_ann!L46","v":0},{"$f":"[1]ACS_16_5YR_B25075_with_ann!M46","v":12},{"$f":"[1]ACS_16_5YR_B25075_with_ann!N46","v":44},{"$f":"[1]ACS_16_5YR_B25075_with_ann!O46","v":67},{"$f":"[1]ACS_16_5YR_B25075_with_ann!P46","v":0},{"$f":"[1]ACS_16_5YR_B25075_with_ann!Q46","v":12},{"$f":"[1]ACS_16_5YR_B25075_with_ann!R46","v":0},{"$f":"[1]ACS_16_5YR_B25075_with_ann!S46","v":12},{"$f":"[1]ACS_16_5YR_B25075_with_ann!T46","v":0},{"$f":"[1]ACS_16_5YR_B25075_with_ann!U46","v":12},{"$f":"[1]ACS_16_5YR_B25075_with_ann!V46","v":0},{"$f":"[1]ACS_16_5YR_B25075_with_ann!W46","v":12},{"$f":"[1]ACS_16_5YR_B25075_with_ann!X46","v":0},{"$f":"[1]ACS_16_5YR_B25075_with_ann!Y46","v":12},{"$f":"[1]ACS_16_5YR_B25075_with_ann!Z46","v":0},{"$f":"[1]ACS_16_5YR_B25075_with_ann!AA46","v":12},{"$f":"[1]ACS_16_5YR_B25075_with_ann!AB46","v":0},{"$f":"[1]ACS_16_5YR_B25075_with_ann!AC46","v":12},{"$f":"[1]ACS_16_5YR_B25075_with_ann!AD46","v":0},{"$f":"[1]ACS_16_5YR_B25075_with_ann!AE46","v":12},{"$f":"[1]ACS_16_5YR_B25075_with_ann!AF46","v":14},{"$f":"[1]ACS_16_5YR_B25075_with_ann!AG46","v":10},{"$f":"[1]ACS_16_5YR_B25075_with_ann!AH46","v":10},{"$f":"[1]ACS_16_5YR_B25075_with_ann!AI46","v":15},{"$f":"[1]ACS_16_5YR_B25075_with_ann!AJ46","v":5},{"$f":"[1]ACS_16_5YR_B25075_with_ann!AK46","v":7},{"$f":"[1]ACS_16_5YR_B25075_with_ann!AL46","v":14},{"$f":"[1]ACS_16_5YR_B25075_with_ann!AM46","v":15},{"$f":"[1]ACS_16_5YR_B25075_with_ann!AN46","v":53},{"$f":"[1]ACS_16_5YR_B25075_with_ann!AO46","v":24},{"$f":"[1]ACS_16_5YR_B25075_with_ann!AP46","v":42},{"$f":"[1]ACS_16_5YR_B25075_with_ann!AQ46","v":21},{"$f":"[1]ACS_16_5YR_B25075_with_ann!AR46","v":141},{"$f":"[1]ACS_16_5YR_B25075_with_ann!AS46","v":41},{"$f":"[1]ACS_16_5YR_B25075_with_ann!AT46","v":70},{"$f":"[1]ACS_16_5YR_B25075_with_ann!AU46","v":28},{"$f":"[1]ACS_16_5YR_B25075_with_ann!AV46","v":64},{"$f":"[1]ACS_16_5YR_B25075_with_ann!AW46","v":25},{"$f":"[1]ACS_16_5YR_B25075_with_ann!AX46","v":3},{"$f":"[1]ACS_16_5YR_B25075_with_ann!AY46","v":4},{"$f":"[1]ACS_16_5YR_B25075_with_ann!AZ46","v":69},{"$f":"[1]ACS_16_5YR_B25075_with_ann!BA46","v":59},{"$f":"[1]ACS_16_5YR_B25075_with_ann!BB46","v":0},{"$f":"[1]ACS_16_5YR_B25075_with_ann!BC46","v":12},{"$f":"[1]ACS_16_5YR_B25075_with_ann!BD46","v":0},{"$f":"[1]ACS_16_5YR_B25075_with_ann!BE46","v":12},{"$f":"[1]ACS_16_5YR_B25077_with_ann!D46","v":358200},{"$f":"[1]ACS_16_5YR_B25077_with_ann!E46","v":39432},null,{"$f":"[1]ACS_16_5YR_B25075_with_ann!C46","v":"Dublin"}]
["06000US3300526500","0600000US3300529220","060",null,{"$f":"[1]ACS_16_5YR_B25075_with_ann!D47","v":957},{"$f":"[1]ACS_16_5YR_B25075_with_ann!E47","v":154},{"$f":"[1]ACS_16_5YR_B25075_with_ann!F47","v":0},{"$f":"[1]ACS_16_5YR_B25075_with_ann!G47","v":12},{"$f":"[1]ACS_16_5YR_B25075_with_ann!H47","v":0},{"$f":"[1]ACS_16_5YR_B25075_with_ann!I47","v":12},{"$f":"[1]ACS_16_5YR_B25075_with_ann!J47","v":6},{"$f":"[1]ACS_16_5YR_B25075_with_ann!K47","v":10},{"$f":"[1]ACS_16_5YR_B25075_with_ann!L47","v":0},{"$f":"[1]ACS_16_5YR_B25075_with_ann!M47","v":12},{"$f":"[1]ACS_16_5YR_B25075_with_ann!N47","v":0},{"$f":"[1]ACS_16_5YR_B25075_with_ann!O47","v":12},{"$f":"[1]ACS_16_5YR_B25075_with_ann!P47","v":0},{"$f":"[1]ACS_16_5YR_B25075_with_ann!Q47","v":12},{"$f":"[1]ACS_16_5YR_B25075_with_ann!R47","v":0},{"$f":"[1]ACS_16_5YR_B25075_with_ann!S47","v":12},{"$f":"[1]ACS_16_5YR_B25075_with_ann!T47","v":3},{"$f":"[1]ACS_16_5YR_B25075_with_ann!U47","v":5},{"$f":"[1]ACS_16_5YR_B25075_with_ann!V47","v":6},{"$f":"[1]ACS_16_5YR_B25075_with_ann!W47","v":9},{"$f":"[1]ACS_16_5YR_B25075_with_ann!X47","v":5},{"$f":"[1]ACS_16_5YR_B25075_with_ann!Y47","v":8},{"$f":"[1]ACS_16_5YR_B25075_with_ann!Z47","v":0},{"$f":"[1]ACS_16_5YR_B25075_with_ann!AA47","v":12},{"$f":"[1]ACS_16_5YR_B25075_with_ann!AB47","v":9},{"$f":"[1]ACS_16_5YR_B25075_with_ann!AC47","v":10},{"$f":"[1]ACS_16_5YR_B25075_with_ann!AD47","v":19},{"$f":"[1]ACS_16_5YR_B25075_with_ann!AE47","v":21},{"$f":"[1]ACS_16_5YR_B25075_with_ann!AF47","v":16},{"$f":"[1]ACS_16_5YR_B25075_with_ann!AG47","v":13},{"$f":"[1]ACS_16_5YR_B25075_with_ann!AH47","v":88},{"$f":"[1]ACS_16_5YR_B25075_with_ann!AI47","v":96},{"$f":"[1]ACS_16_5YR_B25075_with_ann!AJ47","v":76},{"$f":"[1]ACS_16_5YR_B25075_with_ann!AK47","v":35},{"$f":"[1]ACS_16_5YR_B25075_with_ann!AL47","v":93},{"$f":"[1]ACS_16_5YR_B25075_with_ann!AM47","v":48},{"$f":"[1]ACS_16_5YR_B25075_with_ann!AN47","v":172},{"$f":"[1]ACS_16_5YR_B25075_with_ann!AO47","v":64},{"$f":"[1]ACS_16_5YR_B25075_with_ann!AP47","v":205},{"$f":"[1]ACS_16_5YR_B25075_with_ann!AQ47","v":52},{"$f":"[1]ACS_16_5YR_B25075_with_ann!AR47","v":158},{"$f":"[1]ACS_16_5YR_B25075_with_ann!AS47","v":51},{"$f":"[1]ACS_16_5YR_B25075_with_ann!AT47","v":46},{"$f":"[1]ACS_16_5YR_B25075_with_ann!AU47","v":26},{"$f":"[1]ACS_16_5YR_B25075_with_ann!AV47","v":40},{"$f":"[1]ACS_16_5YR_B25075_with_ann!AW47","v":32},{"$f":"[1]ACS_16_5YR_B25075_with_ann!AX47","v":3},{"$f":"[1]ACS_16_5YR_B25075_with_ann!AY47","v":5},{"$f":"[1]ACS_16_5YR_B25075_with_ann!AZ47","v":6},{"$f":"[1]ACS_16_5YR_B25075_with_ann!BA47","v":8},{"$f":"[1]ACS_16_5YR_B25075_with_ann!BB47","v":6},{"$f":"[1]ACS_16_5YR_B25075_with_ann!BC47","v":8},{"$f":"[1]ACS_16_5YR_B25075_with_ann!BD47","v":0},{"$f":"[1]ACS_16_5YR_B25075_with_ann!BE47","v":12},{"$f":"[1]ACS_16_5YR_B25077_with_ann!D47","v":245800},{"$f":"[1]ACS_16_5YR_B25077_with_ann!E47","v":20802},null,{"$f":"[1]ACS_16_5YR_B25075_with_ann!C47","v":"Fitzwilliam"}]
["06000US3300529220","0600000US3300534420","060",null,{"$f":"[1]ACS_16_5YR_B25075_with_ann!D48","v":285},{"$f":"[1]ACS_16_5YR_B25075_with_ann!E48","v":50},{"$f":"[1]ACS_16_5YR_B25075_with_ann!F48","v":2},{"$f":"[1]ACS_16_5YR_B25075_with_ann!G48","v":3},{"$f":"[1]ACS_16_5YR_B25075_with_ann!H48","v":0},{"$f":"[1]ACS_16_5YR_B25075_with_ann!I48","v":12},{"$f":"[1]ACS_16_5YR_B25075_with_ann!J48","v":2},{"$f":"[1]ACS_16_5YR_B25075_with_ann!K48","v":4},{"$f":"[1]ACS_16_5YR_B25075_with_ann!L48","v":0},{"$f":"[1]ACS_16_5YR_B25075_with_ann!M48","v":12},{"$f":"[1]ACS_16_5YR_B25075_with_ann!N48","v":0},{"$f":"[1]ACS_16_5YR_B25075_with_ann!O48","v":12},{"$f":"[1]ACS_16_5YR_B25075_with_ann!P48","v":0},{"$f":"[1]ACS_16_5YR_B25075_with_ann!Q48","v":12},{"$f":"[1]ACS_16_5YR_B25075_with_ann!R48","v":0},{"$f":"[1]ACS_16_5YR_B25075_with_ann!S48","v":12},{"$f":"[1]ACS_16_5YR_B25075_with_ann!T48","v":0},{"$f":"[1]ACS_16_5YR_B25075_with_ann!U48","v":12},{"$f":"[1]ACS_16_5YR_B25075_with_ann!V48","v":0},{"$f":"[1]ACS_16_5YR_B25075_with_ann!W48","v":12},{"$f":"[1]ACS_16_5YR_B25075_with_ann!X48","v":5},{"$f":"[1]ACS_16_5YR_B25075_with_ann!Y48","v":9},{"$f":"[1]ACS_16_5YR_B25075_with_ann!Z48","v":7},{"$f":"[1]ACS_16_5YR_B25075_with_ann!AA48","v":6},{"$f":"[1]ACS_16_5YR_B25075_with_ann!AB48","v":10},{"$f":"[1]ACS_16_5YR_B25075_with_ann!AC48","v":12},{"$f":"[1]ACS_16_5YR_B25075_with_ann!AD48","v":10},{"$f":"[1]ACS_16_5YR_B25075_with_ann!AE48","v":9},{"$f":"[1]ACS_16_5YR_B25075_with_ann!AF48","v":21},{"$f":"[1]ACS_16_5YR_B25075_with_ann!AG48","v":12},{"$f":"[1]ACS_16_5YR_B25075_with_ann!AH48","v":7},{"$f":"[1]ACS_16_5YR_B25075_with_ann!AI48","v":8},{"$f":"[1]ACS_16_5YR_B25075_with_ann!AJ48","v":38},{"$f":"[1]ACS_16_5YR_B25075_with_ann!AK48","v":22},{"$f":"[1]ACS_16_5YR_B25075_with_ann!AL48","v":8},{"$f":"[1]ACS_16_5YR_B25075_with_ann!AM48","v":6},{"$f":"[1]ACS_16_5YR_B25075_with_ann!AN48","v":89},{"$f":"[1]ACS_16_5YR_B25075_with_ann!AO48","v":34},{"$f":"[1]ACS_16_5YR_B25075_with_ann!AP48","v":27},{"$f":"[1]ACS_16_5YR_B25075_with_ann!AQ48","v":14},{"$f":"[1]ACS_16_5YR_B25075_with_ann!AR48","v":34},{"$f":"[1]ACS_16_5YR_B25075_with_ann!AS48","v":19},{"$f":"[1]ACS_16_5YR_B25075_with_ann!AT48","v":15},{"$f":"[1]ACS_16_5YR_B25075_with_ann!AU48","v":10},{"$f":"[1]ACS_16_5YR_B25075_with_ann!AV48","v":10},{"$f":"[1]ACS_16_5YR_B25075_with_ann!AW48","v":7},{"$f":"[1]ACS_16_5YR_B25075_with_ann!AX48","v":0},{"$f":"[1]ACS_16_5YR_B25075_with_ann!AY48","v":12},{"$f":"[1]ACS_16_5YR_B25075_with_ann!AZ48","v":0},{"$f":"[1]ACS_16_5YR_B25075_with_ann!BA48","v":12},{"$f":"[1]ACS_16_5YR_B25075_with_ann!BB48","v":0},{"$f":"[1]ACS_16_5YR_B25075_with_ann!BC48","v":12},{"$f":"[1]ACS_16_5YR_B25075_with_ann!BD48","v":0},{"$f":"[1]ACS_16_5YR_B25075_with_ann!BE48","v":12},{"$f":"[1]ACS_16_5YR_B25077_with_ann!D48","v":218300},{"$f":"[1]ACS_16_5YR_B25077_with_ann!E48","v":13706},null,{"$f":"[1]ACS_16_5YR_B25075_with_ann!C48","v":"Gilsum"}]
["06000US3300534420","0600000US3300536660","060",null,{"$f":"[1]ACS_16_5YR_B25075_with_ann!D49","v":386},{"$f":"[1]ACS_16_5YR_B25075_with_ann!E49","v":73},{"$f":"[1]ACS_16_5YR_B25075_with_ann!F49","v":5},{"$f":"[1]ACS_16_5YR_B25075_with_ann!G49","v":7},{"$f":"[1]ACS_16_5YR_B25075_with_ann!H49","v":7},{"$f":"[1]ACS_16_5YR_B25075_with_ann!I49","v":9},{"$f":"[1]ACS_16_5YR_B25075_with_ann!J49","v":0},{"$f":"[1]ACS_16_5YR_B25075_with_ann!K49","v":12},{"$f":"[1]ACS_16_5YR_B25075_with_ann!L49","v":0},{"$f":"[1]ACS_16_5YR_B25075_with_ann!M49","v":12},{"$f":"[1]ACS_16_5YR_B25075_with_ann!N49","v":3},{"$f":"[1]ACS_16_5YR_B25075_with_ann!O49","v":4},{"$f":"[1]ACS_16_5YR_B25075_with_ann!P49","v":0},{"$f":"[1]ACS_16_5YR_B25075_with_ann!Q49","v":12},{"$f":"[1]ACS_16_5YR_B25075_with_ann!R49","v":0},{"$f":"[1]ACS_16_5YR_B25075_with_ann!S49","v":12},{"$f":"[1]ACS_16_5YR_B25075_with_ann!T49","v":0},{"$f":"[1]ACS_16_5YR_B25075_with_ann!U49","v":12},{"$f":"[1]ACS_16_5YR_B25075_with_ann!V49","v":0},{"$f":"[1]ACS_16_5YR_B25075_with_ann!W49","v":12},{"$f":"[1]ACS_16_5YR_B25075_with_ann!X49","v":0},{"$f":"[1]ACS_16_5YR_B25075_with_ann!Y49","v":12},{"$f":"[1]ACS_16_5YR_B25075_with_ann!Z49","v":0},{"$f":"[1]ACS_16_5YR_B25075_with_ann!AA49","v":12},{"$f":"[1]ACS_16_5YR_B25075_with_ann!AB49","v":0},{"$f":"[1]ACS_16_5YR_B25075_with_ann!AC49","v":12},{"$f":"[1]ACS_16_5YR_B25075_with_ann!AD49","v":3},{"$f":"[1]ACS_16_5YR_B25075_with_ann!AE49","v":4},{"$f":"[1]ACS_16_5YR_B25075_with_ann!AF49","v":0},{"$f":"[1]ACS_16_5YR_B25075_with_ann!AG49","v":12},{"$f":"[1]ACS_16_5YR_B25075_with_ann!AH49","v":4},{"$f":"[1]ACS_16_5YR_B25075_with_ann!AI49","v":6},{"$f":"[1]ACS_16_5YR_B25075_with_ann!AJ49","v":5},{"$f":"[1]ACS_16_5YR_B25075_with_ann!AK49","v":6},{"$f":"[1]ACS_16_5YR_B25075_with_ann!AL49","v":20},{"$f":"[1]ACS_16_5YR_B25075_with_ann!AM49","v":14},{"$f":"[1]ACS_16_5YR_B25075_with_ann!AN49","v":63},{"$f":"[1]ACS_16_5YR_B25075_with_ann!AO49","v":30},{"$f":"[1]ACS_16_5YR_B25075_with_ann!AP49","v":77},{"$f":"[1]ACS_16_5YR_B25075_with_ann!AQ49","v":33},{"$f":"[1]ACS_16_5YR_B25075_with_ann!AR49","v":53},{"$f":"[1]ACS_16_5YR_B25075_with_ann!AS49","v":30},{"$f":"[1]ACS_16_5YR_B25075_with_ann!AT49","v":69},{"$f":"[1]ACS_16_5YR_B25075_with_ann!AU49","v":40},{"$f":"[1]ACS_16_5YR_B25075_with_ann!AV49","v":29},{"$f":"[1]ACS_16_5YR_B25075_with_ann!AW49","v":14},{"$f":"[1]ACS_16_5YR_B25075_with_ann!AX49","v":41},{"$f":"[1]ACS_16_5YR_B25075_with_ann!AY49","v":19},{"$f":"[1]ACS_16_5YR_B25075_with_ann!AZ49","v":7},{"$f":"[1]ACS_16_5YR_B25075_with_ann!BA49","v":7},{"$f":"[1]ACS_16_5YR_B25075_with_ann!BB49","v":0},{"$f":"[1]ACS_16_5YR_B25075_with_ann!BC49","v":12},{"$f":"[1]ACS_16_5YR_B25075_with_ann!BD49","v":0},{"$f":"[1]ACS_16_5YR_B25075_with_ann!BE49","v":12},{"$f":"[1]ACS_16_5YR_B25077_with_ann!D49","v":311300},{"$f":"[1]ACS_16_5YR_B25077_with_ann!E49","v":46055},null,{"$f":"[1]ACS_16_5YR_B25075_with_ann!C49","v":"Harrisville"}]
["06000US3300536660","0600000US3300538500","060",null,{"$f":"[1]ACS_16_5YR_B25075_with_ann!D50","v":1373},{"$f":"[1]ACS_16_5YR_B25075_with_ann!E50","v":192},{"$f":"[1]ACS_16_5YR_B25075_with_ann!F50","v":77},{"$f":"[1]ACS_16_5YR_B25075_with_ann!G50","v":92},{"$f":"[1]ACS_16_5YR_B25075_with_ann!H50","v":66},{"$f":"[1]ACS_16_5YR_B25075_with_ann!I50","v":72},{"$f":"[1]ACS_16_5YR_B25075_with_ann!J50","v":19},{"$f":"[1]ACS_16_5YR_B25075_with_ann!K50","v":29},{"$f":"[1]ACS_16_5YR_B25075_with_ann!L50","v":61},{"$f":"[1]ACS_16_5YR_B25075_with_ann!M50","v":55},{"$f":"[1]ACS_16_5YR_B25075_with_ann!N50","v":26},{"$f":"[1]ACS_16_5YR_B25075_with_ann!O50","v":28},{"$f":"[1]ACS_16_5YR_B25075_with_ann!P50","v":23},{"$f":"[1]ACS_16_5YR_B25075_with_ann!Q50","v":21},{"$f":"[1]ACS_16_5YR_B25075_with_ann!R50","v":57},{"$f":"[1]ACS_16_5YR_B25075_with_ann!S50","v":60},{"$f":"[1]ACS_16_5YR_B25075_with_ann!T50","v":9},{"$f":"[1]ACS_16_5YR_B25075_with_ann!U50","v":14},{"$f":"[1]ACS_16_5YR_B25075_with_ann!V50","v":7},{"$f":"[1]ACS_16_5YR_B25075_with_ann!W50","v":12},{"$f":"[1]ACS_16_5YR_B25075_with_ann!X50","v":20},{"$f":"[1]ACS_16_5YR_B25075_with_ann!Y50","v":26},{"$f":"[1]ACS_16_5YR_B25075_with_ann!Z50","v":0},{"$f":"[1]ACS_16_5YR_B25075_with_ann!AA50","v":12},{"$f":"[1]ACS_16_5YR_B25075_with_ann!AB50","v":8},{"$f":"[1]ACS_16_5YR_B25075_with_ann!AC50","v":14},{"$f":"[1]ACS_16_5YR_B25075_with_ann!AD50","v":28},{"$f":"[1]ACS_16_5YR_B25075_with_ann!AE50","v":30},{"$f":"[1]ACS_16_5YR_B25075_with_ann!AF50","v":94},{"$f":"[1]ACS_16_5YR_B25075_with_ann!AG50","v":86},{"$f":"[1]ACS_16_5YR_B25075_with_ann!AH50","v":167},{"$f":"[1]ACS_16_5YR_B25075_with_ann!AI50","v":83},{"$f":"[1]ACS_16_5YR_B25075_with_ann!AJ50","v":172},{"$f":"[1]ACS_16_5YR_B25075_with_ann!AK50","v":91},{"$f":"[1]ACS_16_5YR_B25075_with_ann!AL50","v":81},{"$f":"[1]ACS_16_5YR_B25075_with_ann!AM50","v":40},{"$f":"[1]ACS_16_5YR_B25075_with_ann!AN50","v":309},{"$f":"[1]ACS_16_5YR_B25075_with_ann!AO50","v":168},{"$f":"[1]ACS_16_5YR_B25075_with_ann!AP50","v":94},{"$f":"[1]ACS_16_5YR_B25075_with_ann!AQ50","v":64},{"$f":"[1]ACS_16_5YR_B25075_with_ann!AR50","v":39},{"$f":"[1]ACS_16_5YR_B25075_with_ann!AS50","v":36},{"$f":"[1]ACS_16_5YR_B25075_with_ann!AT50","v":16},{"$f":"[1]ACS_16_5YR_B25075_with_ann!AU50","v":21},{"$f":"[1]ACS_16_5YR_B25075_with_ann!AV50","v":0},{"$f":"[1]ACS_16_5YR_B25075_with_ann!AW50","v":12},{"$f":"[1]ACS_16_5YR_B25075_with_ann!AX50","v":0},{"$f":"[1]ACS_16_5YR_B25075_with_ann!AY50","v":12},{"$f":"[1]ACS_16_5YR_B25075_with_ann!AZ50","v":0},{"$f":"[1]ACS_16_5YR_B25075_with_ann!BA50","v":12},{"$f":"[1]ACS_16_5YR_B25075_with_ann!BB50","v":0},{"$f":"[1]ACS_16_5YR_B25075_with_ann!BC50","v":12},{"$f":"[1]ACS_16_5YR_B25075_with_ann!BD50","v":0},{"$f":"[1]ACS_16_5YR_B25075_with_ann!BE50","v":12},{"$f":"[1]ACS_16_5YR_B25077_with_ann!D50","v":153600},{"$f":"[1]ACS_16_5YR_B25077_with_ann!E50","v":17568},null,{"$f":"[1]ACS_16_5YR_B25075_with_ann!C50","v":"Hinsdale"}]
["06000US3300538500","0600000US3300539300","060",null,{"$f":"[1]ACS_16_5YR_B25075_with_ann!D51","v":1580},{"$f":"[1]ACS_16_5YR_B25075_with_ann!E51","v":229},{"$f":"[1]ACS_16_5YR_B25075_with_ann!F51","v":0},{"$f":"[1]ACS_16_5YR_B25075_with_ann!G51","v":17},{"$f":"[1]ACS_16_5YR_B25075_with_ann!H51","v":0},{"$f":"[1]ACS_16_5YR_B25075_with_ann!I51","v":17},{"$f":"[1]ACS_16_5YR_B25075_with_ann!J51","v":0},{"$f":"[1]ACS_16_5YR_B25075_with_ann!K51","v":17},{"$f":"[1]ACS_16_5YR_B25075_with_ann!L51","v":0},{"$f":"[1]ACS_16_5YR_B25075_with_ann!M51","v":17},{"$f":"[1]ACS_16_5YR_B25075_with_ann!N51","v":0},{"$f":"[1]ACS_16_5YR_B25075_with_ann!O51","v":17},{"$f":"[1]ACS_16_5YR_B25075_with_ann!P51","v":20},{"$f":"[1]ACS_16_5YR_B25075_with_ann!Q51","v":24},{"$f":"[1]ACS_16_5YR_B25075_with_ann!R51","v":0},{"$f":"[1]ACS_16_5YR_B25075_with_ann!S51","v":17},{"$f":"[1]ACS_16_5YR_B25075_with_ann!T51","v":0},{"$f":"[1]ACS_16_5YR_B25075_with_ann!U51","v":17},{"$f":"[1]ACS_16_5YR_B25075_with_ann!V51","v":0},{"$f":"[1]ACS_16_5YR_B25075_with_ann!W51","v":17},{"$f":"[1]ACS_16_5YR_B25075_with_ann!X51","v":0},{"$f":"[1]ACS_16_5YR_B25075_with_ann!Y51","v":17},{"$f":"[1]ACS_16_5YR_B25075_with_ann!Z51","v":0},{"$f":"[1]ACS_16_5YR_B25075_with_ann!AA51","v":17},{"$f":"[1]ACS_16_5YR_B25075_with_ann!AB51","v":0},{"$f":"[1]ACS_16_5YR_B25075_with_ann!AC51","v":17},{"$f":"[1]ACS_16_5YR_B25075_with_ann!AD51","v":0},{"$f":"[1]ACS_16_5YR_B25075_with_ann!AE51","v":17},{"$f":"[1]ACS_16_5YR_B25075_with_ann!AF51","v":20},{"$f":"[1]ACS_16_5YR_B25075_with_ann!AG51","v":30},{"$f":"[1]ACS_16_5YR_B25075_with_ann!AH51","v":62},{"$f":"[1]ACS_16_5YR_B25075_with_ann!AI51","v":53},{"$f":"[1]ACS_16_5YR_B25075_with_ann!AJ51","v":130},{"$f":"[1]ACS_16_5YR_B25075_with_ann!AK51","v":117},{"$f":"[1]ACS_16_5YR_B25075_with_ann!AL51","v":307},{"$f":"[1]ACS_16_5YR_B25075_with_ann!AM51","v":233},{"$f":"[1]ACS_16_5YR_B25075_with_ann!AN51","v":365},{"$f":"[1]ACS_16_5YR_B25075_with_ann!AO51","v":140},{"$f":"[1]ACS_16_5YR_B25075_with_ann!AP51","v":158},{"$f":"[1]ACS_16_5YR_B25075_with_ann!AQ51","v":88},{"$f":"[1]ACS_16_5YR_B25075_with_ann!AR51","v":326},{"$f":"[1]ACS_16_5YR_B25075_with_ann!AS51","v":157},{"$f":"[1]ACS_16_5YR_B25075_with_ann!AT51","v":41},{"$f":"[1]ACS_16_5YR_B25075_with_ann!AU51","v":43},{"$f":"[1]ACS_16_5YR_B25075_with_ann!AV51","v":151},{"$f":"[1]ACS_16_5YR_B25075_with_ann!AW51","v":74},{"$f":"[1]ACS_16_5YR_B25075_with_ann!AX51","v":0},{"$f":"[1]ACS_16_5YR_B25075_with_ann!AY51","v":17},{"$f":"[1]ACS_16_5YR_B25075_with_ann!AZ51","v":0},{"$f":"[1]ACS_16_5YR_B25075_with_ann!BA51","v":17},{"$f":"[1]ACS_16_5YR_B25075_with_ann!BB51","v":0},{"$f":"[1]ACS_16_5YR_B25075_with_ann!BC51","v":17},{"$f":"[1]ACS_16_5YR_B25075_with_ann!BD51","v":0},{"$f":"[1]ACS_16_5YR_B25075_with_ann!BE51","v":17},{"$f":"[1]ACS_16_5YR_B25077_with_ann!D51","v":234400},{"$f":"[1]ACS_16_5YR_B25077_with_ann!E51","v":22346},null,{"$f":"[1]ACS_16_5YR_B25075_with_ann!C51","v":"Jaffrey"}]
["06000US3300539300","0600000US3300545460","060",null,{"$f":"[1]ACS_16_5YR_B25075_with_ann!D52","v":4762},{"$f":"[1]ACS_16_5YR_B25075_with_ann!E52","v":346},{"$f":"[1]ACS_16_5YR_B25075_with_ann!F52","v":130},{"$f":"[1]ACS_16_5YR_B25075_with_ann!G52","v":109},{"$f":"[1]ACS_16_5YR_B25075_with_ann!H52","v":86},{"$f":"[1]ACS_16_5YR_B25075_with_ann!I52","v":78},{"$f":"[1]ACS_16_5YR_B25075_with_ann!J52","v":16},{"$f":"[1]ACS_16_5YR_B25075_with_ann!K52","v":27},{"$f":"[1]ACS_16_5YR_B25075_with_ann!L52","v":76},{"$f":"[1]ACS_16_5YR_B25075_with_ann!M52","v":51},{"$f":"[1]ACS_16_5YR_B25075_with_ann!N52","v":46},{"$f":"[1]ACS_16_5YR_B25075_with_ann!O52","v":42},{"$f":"[1]ACS_16_5YR_B25075_with_ann!P52","v":96},{"$f":"[1]ACS_16_5YR_B25075_with_ann!Q52","v":116},{"$f":"[1]ACS_16_5YR_B25075_with_ann!R52","v":37},{"$f":"[1]ACS_16_5YR_B25075_with_ann!S52","v":32},{"$f":"[1]ACS_16_5YR_B25075_with_ann!T52","v":0},{"$f":"[1]ACS_16_5YR_B25075_with_ann!U52","v":22},{"$f":"[1]ACS_16_5YR_B25075_with_ann!V52","v":0},{"$f":"[1]ACS_16_5YR_B25075_with_ann!W52","v":22},{"$f":"[1]ACS_16_5YR_B25075_with_ann!X52","v":13},{"$f":"[1]ACS_16_5YR_B25075_with_ann!Y52","v":22},{"$f":"[1]ACS_16_5YR_B25075_with_ann!Z52","v":14},{"$f":"[1]ACS_16_5YR_B25075_with_ann!AA52","v":16},{"$f":"[1]ACS_16_5YR_B25075_with_ann!AB52","v":17},{"$f":"[1]ACS_16_5YR_B25075_with_ann!AC52","v":21},{"$f":"[1]ACS_16_5YR_B25075_with_ann!AD52","v":9},{"$f":"[1]ACS_16_5YR_B25075_with_ann!AE52","v":15},{"$f":"[1]ACS_16_5YR_B25075_with_ann!AF52","v":145},{"$f":"[1]ACS_16_5YR_B25075_with_ann!AG52","v":90},{"$f":"[1]ACS_16_5YR_B25075_with_ann!AH52","v":132},{"$f":"[1]ACS_16_5YR_B25075_with_ann!AI52","v":69},{"$f":"[1]ACS_16_5YR_B25075_with_ann!AJ52","v":460},{"$f":"[1]ACS_16_5YR_B25075_with_ann!AK52","v":206},{"$f":"[1]ACS_16_5YR_B25075_with_ann!AL52","v":633},{"$f":"[1]ACS_16_5YR_B25075_with_ann!AM52","v":217},{"$f":"[1]ACS_16_5YR_B25075_with_ann!AN52","v":1100},{"$f":"[1]ACS_16_5YR_B25075_with_ann!AO52","v":268},{"$f":"[1]ACS_16_5YR_B25075_with_ann!AP52","v":783},{"$f":"[1]ACS_16_5YR_B25075_with_ann!AQ52","v":172},{"$f":"[1]ACS_16_5YR_B25075_with_ann!AR52","v":655},{"$f":"[1]ACS_16_5YR_B25075_with_ann!AS52","v":177},{"$f":"[1]ACS_16_5YR_B25075_with_ann!AT52","v":235},{"$f":"[1]ACS_16_5YR_B25075_with_ann!AU52","v":108},{"$f":"[1]ACS_16_5YR_B25075_with_ann!AV52","v":58},{"$f":"[1]ACS_16_5YR_B25075_with_ann!AW52","v":45},{"$f":"[1]ACS_16_5YR_B25075_with_ann!AX52","v":17},{"$f":"[1]ACS_16_5YR_B25075_with_ann!AY52","v":22},{"$f":"[1]ACS_16_5YR_B25075_with_ann!AZ52","v":0},{"$f":"[1]ACS_16_5YR_B25075_with_ann!BA52","v":22},{"$f":"[1]ACS_16_5YR_B25075_with_ann!BB52","v":0},{"$f":"[1]ACS_16_5YR_B25075_with_ann!BC52","v":22},{"$f":"[1]ACS_16_5YR_B25075_with_ann!BD52","v":4},{"$f":"[1]ACS_16_5YR_B25075_with_ann!BE52","v":7},{"$f":"[1]ACS_16_5YR_B25077_with_ann!D52","v":221400},{"$f":"[1]ACS_16_5YR_B25077_with_ann!E52","v":10551},null,{"$f":"[1]ACS_16_5YR_B25075_with_ann!C52","v":"Keene"}]
["06000US3300545460","0600000US3300545700","060",null,{"$f":"[1]ACS_16_5YR_B25075_with_ann!D53","v":608},{"$f":"[1]ACS_16_5YR_B25075_with_ann!E53","v":113},{"$f":"[1]ACS_16_5YR_B25075_with_ann!F53","v":5},{"$f":"[1]ACS_16_5YR_B25075_with_ann!G53","v":7},{"$f":"[1]ACS_16_5YR_B25075_with_ann!H53","v":4},{"$f":"[1]ACS_16_5YR_B25075_with_ann!I53","v":7},{"$f":"[1]ACS_16_5YR_B25075_with_ann!J53","v":3},{"$f":"[1]ACS_16_5YR_B25075_with_ann!K53","v":5},{"$f":"[1]ACS_16_5YR_B25075_with_ann!L53","v":0},{"$f":"[1]ACS_16_5YR_B25075_with_ann!M53","v":12},{"$f":"[1]ACS_16_5YR_B25075_with_ann!N53","v":12},{"$f":"[1]ACS_16_5YR_B25075_with_ann!O53","v":16},{"$f":"[1]ACS_16_5YR_B25075_with_ann!P53","v":0},{"$f":"[1]ACS_16_5YR_B25075_with_ann!Q53","v":12},{"$f":"[1]ACS_16_5YR_B25075_with_ann!R53","v":0},{"$f":"[1]ACS_16_5YR_B25075_with_ann!S53","v":12},{"$f":"[1]ACS_16_5YR_B25075_with_ann!T53","v":5},{"$f":"[1]ACS_16_5YR_B25075_with_ann!U53","v":7},{"$f":"[1]ACS_16_5YR_B25075_with_ann!V53","v":5},{"$f":"[1]ACS_16_5YR_B25075_with_ann!W53","v":6},{"$f":"[1]ACS_16_5YR_B25075_with_ann!X53","v":0},{"$f":"[1]ACS_16_5YR_B25075_with_ann!Y53","v":12},{"$f":"[1]ACS_16_5YR_B25075_with_ann!Z53","v":0},{"$f":"[1]ACS_16_5YR_B25075_with_ann!AA53","v":12},{"$f":"[1]ACS_16_5YR_B25075_with_ann!AB53","v":17},{"$f":"[1]ACS_16_5YR_B25075_with_ann!AC53","v":18},{"$f":"[1]ACS_16_5YR_B25075_with_ann!AD53","v":0},{"$f":"[1]ACS_16_5YR_B25075_with_ann!AE53","v":12},{"$f":"[1]ACS_16_5YR_B25075_with_ann!AF53","v":10},{"$f":"[1]ACS_16_5YR_B25075_with_ann!AG53","v":17},{"$f":"[1]ACS_16_5YR_B25075_with_ann!AH53","v":24},{"$f":"[1]ACS_16_5YR_B25075_with_ann!AI53","v":20},{"$f":"[1]ACS_16_5YR_B25075_with_ann!AJ53","v":32},{"$f":"[1]ACS_16_5YR_B25075_with_ann!AK53","v":20},{"$f":"[1]ACS_16_5YR_B25075_with_ann!AL53","v":50},{"$f":"[1]ACS_16_5YR_B25075_with_ann!AM53","v":32},{"$f":"[1]ACS_16_5YR_B25075_with_ann!AN53","v":165},{"$f":"[1]ACS_16_5YR_B25075_with_ann!AO53","v":75},{"$f":"[1]ACS_16_5YR_B25075_with_ann!AP53","v":56},{"$f":"[1]ACS_16_5YR_B25075_with_ann!AQ53","v":39},{"$f":"[1]ACS_16_5YR_B25075_with_ann!AR53","v":128},{"$f":"[1]ACS_16_5YR_B25075_with_ann!AS53","v":56},{"$f":"[1]ACS_16_5YR_B25075_with_ann!AT53","v":48},{"$f":"[1]ACS_16_5YR_B25075_with_ann!AU53","v":36},{"$f":"[1]ACS_16_5YR_B25075_with_ann!AV53","v":32},{"$f":"[1]ACS_16_5YR_B25075_with_ann!AW53","v":26},{"$f":"[1]ACS_16_5YR_B25075_with_ann!AX53","v":12},{"$f":"[1]ACS_16_5YR_B25075_with_ann!AY53","v":10},{"$f":"[1]ACS_16_5YR_B25075_with_ann!AZ53","v":0},{"$f":"[1]ACS_16_5YR_B25075_with_ann!BA53","v":12},{"$f":"[1]ACS_16_5YR_B25075_with_ann!BB53","v":0},{"$f":"[1]ACS_16_5YR_B25075_with_ann!BC53","v":12},{"$f":"[1]ACS_16_5YR_B25075_with_ann!BD53","v":0},{"$f":"[1]ACS_16_5YR_B25075_with_ann!BE53","v":12},{"$f":"[1]ACS_16_5YR_B25077_with_ann!D53","v":241500},{"$f":"[1]ACS_16_5YR_B25077_with_ann!E53","v":19005},null,{"$f":"[1]ACS_16_5YR_B25075_with_ann!C53","v":"Marlborough"}]
["06000US3300545700","0600000US3300550580","060",null,{"$f":"[1]ACS_16_5YR_B25075_with_ann!D54","v":279},{"$f":"[1]ACS_16_5YR_B25075_with_ann!E54","v":56},{"$f":"[1]ACS_16_5YR_B25075_with_ann!F54","v":3},{"$f":"[1]ACS_16_5YR_B25075_with_ann!G54","v":4},{"$f":"[1]ACS_16_5YR_B25075_with_ann!H54","v":0},{"$f":"[1]ACS_16_5YR_B25075_with_ann!I54","v":12},{"$f":"[1]ACS_16_5YR_B25075_with_ann!J54","v":0},{"$f":"[1]ACS_16_5YR_B25075_with_ann!K54","v":12},{"$f":"[1]ACS_16_5YR_B25075_with_ann!L54","v":0},{"$f":"[1]ACS_16_5YR_B25075_with_ann!M54","v":12},{"$f":"[1]ACS_16_5YR_B25075_with_ann!N54","v":0},{"$f":"[1]ACS_16_5YR_B25075_with_ann!O54","v":12},{"$f":"[1]ACS_16_5YR_B25075_with_ann!P54","v":0},{"$f":"[1]ACS_16_5YR_B25075_with_ann!Q54","v":12},{"$f":"[1]ACS_16_5YR_B25075_with_ann!R54","v":0},{"$f":"[1]ACS_16_5YR_B25075_with_ann!S54","v":12},{"$f":"[1]ACS_16_5YR_B25075_with_ann!T54","v":0},{"$f":"[1]ACS_16_5YR_B25075_with_ann!U54","v":12},{"$f":"[1]ACS_16_5YR_B25075_with_ann!V54","v":0},{"$f":"[1]ACS_16_5YR_B25075_with_ann!W54","v":12},{"$f":"[1]ACS_16_5YR_B25075_with_ann!X54","v":0},{"$f":"[1]ACS_16_5YR_B25075_with_ann!Y54","v":12},{"$f":"[1]ACS_16_5YR_B25075_with_ann!Z54","v":0},{"$f":"[1]ACS_16_5YR_B25075_with_ann!AA54","v":12},{"$f":"[1]ACS_16_5YR_B25075_with_ann!AB54","v":0},{"$f":"[1]ACS_16_5YR_B25075_with_ann!AC54","v":12},{"$f":"[1]ACS_16_5YR_B25075_with_ann!AD54","v":2},{"$f":"[1]ACS_16_5YR_B25075_with_ann!AE54","v":3},{"$f":"[1]ACS_16_5YR_B25075_with_ann!AF54","v":6},{"$f":"[1]ACS_16_5YR_B25075_with_ann!AG54","v":5},{"$f":"[1]ACS_16_5YR_B25075_with_ann!AH54","v":26},{"$f":"[1]ACS_16_5YR_B25075_with_ann!AI54","v":15},{"$f":"[1]ACS_16_5YR_B25075_with_ann!AJ54","v":31},{"$f":"[1]ACS_16_5YR_B25075_with_ann!AK54","v":16},{"$f":"[1]ACS_16_5YR_B25075_with_ann!AL54","v":21},{"$f":"[1]ACS_16_5YR_B25075_with_ann!AM54","v":15},{"$f":"[1]ACS_16_5YR_B25075_with_ann!AN54","v":49},{"$f":"[1]ACS_16_5YR_B25075_with_ann!AO54","v":26},{"$f":"[1]ACS_16_5YR_B25075_with_ann!AP54","v":27},{"$f":"[1]ACS_16_5YR_B25075_with_ann!AQ54","v":12},{"$f":"[1]ACS_16_5YR_B25075_with_ann!AR54","v":88},{"$f":"[1]ACS_16_5YR_B25075_with_ann!AS54","v":46},{"$f":"[1]ACS_16_5YR_B25075_with_ann!AT54","v":15},{"$f":"[1]ACS_16_5YR_B25075_with_ann!AU54","v":13},{"$f":"[1]ACS_16_5YR_B25075_with_ann!AV54","v":6},{"$f":"[1]ACS_16_5YR_B25075_with_ann!AW54","v":5},{"$f":"[1]ACS_16_5YR_B25075_with_ann!AX54","v":0},{"$f":"[1]ACS_16_5YR_B25075_with_ann!AY54","v":12},{"$f":"[1]ACS_16_5YR_B25075_with_ann!AZ54","v":0},{"$f":"[1]ACS_16_5YR_B25075_with_ann!BA54","v":12},{"$f":"[1]ACS_16_5YR_B25075_with_ann!BB54","v":0},{"$f":"[1]ACS_16_5YR_B25075_with_ann!BC54","v":12},{"$f":"[1]ACS_16_5YR_B25075_with_ann!BD54","v":5},{"$f":"[1]ACS_16_5YR_B25075_with_ann!BE54","v":5},{"$f":"[1]ACS_16_5YR_B25077_with_ann!D54","v":252800},{"$f":"[1]ACS_16_5YR_B25077_with_ann!E54","v":52558},null,{"$f":"[1]ACS_16_5YR_B25075_with_ann!C54","v":"Marlow"}]
["06000US3300550580","0600000US3300564420","060",null,{"$f":"[1]ACS_16_5YR_B25075_with_ann!D55","v":225},{"$f":"[1]ACS_16_5YR_B25075_with_ann!E55","v":42},{"$f":"[1]ACS_16_5YR_B25075_with_ann!F55","v":0},{"$f":"[1]ACS_16_5YR_B25075_with_ann!G55","v":12},{"$f":"[1]ACS_16_5YR_B25075_with_ann!H55","v":0},{"$f":"[1]ACS_16_5YR_B25075_with_ann!I55","v":12},{"$f":"[1]ACS_16_5YR_B25075_with_ann!J55","v":0},{"$f":"[1]ACS_16_5YR_B25075_with_ann!K55","v":12},{"$f":"[1]ACS_16_5YR_B25075_with_ann!L55","v":2},{"$f":"[1]ACS_16_5YR_B25075_with_ann!M55","v":3},{"$f":"[1]ACS_16_5YR_B25075_with_ann!N55","v":1},{"$f":"[1]ACS_16_5YR_B25075_with_ann!O55","v":2},{"$f":"[1]ACS_16_5YR_B25075_with_ann!P55","v":0},{"$f":"[1]ACS_16_5YR_B25075_with_ann!Q55","v":12},{"$f":"[1]ACS_16_5YR_B25075_with_ann!R55","v":0},{"$f":"[1]ACS_16_5YR_B25075_with_ann!S55","v":12},{"$f":"[1]ACS_16_5YR_B25075_with_ann!T55","v":0},{"$f":"[1]ACS_16_5YR_B25075_with_ann!U55","v":12},{"$f":"[1]ACS_16_5YR_B25075_with_ann!V55","v":0},{"$f":"[1]ACS_16_5YR_B25075_with_ann!W55","v":12},{"$f":"[1]ACS_16_5YR_B25075_with_ann!X55","v":0},{"$f":"[1]ACS_16_5YR_B25075_with_ann!Y55","v":12},{"$f":"[1]ACS_16_5YR_B25075_with_ann!Z55","v":0},{"$f":"[1]ACS_16_5YR_B25075_with_ann!AA55","v":12},{"$f":"[1]ACS_16_5YR_B25075_with_ann!AB55","v":0},{"$f":"[1]ACS_16_5YR_B25075_with_ann!AC55","v":12},{"$f":"[1]ACS_16_5YR_B25075_with_ann!AD55","v":0},{"$f":"[1]ACS_16_5YR_B25075_with_ann!AE55","v":12},{"$f":"[1]ACS_16_5YR_B25075_with_ann!AF55","v":6},{"$f":"[1]ACS_16_5YR_B25075_with_ann!AG55","v":9},{"$f":"[1]ACS_16_5YR_B25075_with_ann!AH55","v":2},{"$f":"[1]ACS_16_5YR_B25075_with_ann!AI55","v":3},{"$f":"[1]ACS_16_5YR_B25075_with_ann!AJ55","v":13},{"$f":"[1]ACS_16_5YR_B25075_with_ann!AK55","v":9},{"$f":"[1]ACS_16_5YR_B25075_with_ann!AL55","v":16},{"$f":"[1]ACS_16_5YR_B25075_with_ann!AM55","v":13},{"$f":"[1]ACS_16_5YR_B25075_with_ann!AN55","v":46},{"$f":"[1]ACS_16_5YR_B25075_with_ann!AO55","v":23},{"$f":"[1]ACS_16_5YR_B25075_with_ann!AP55","v":24},{"$f":"[1]ACS_16_5YR_B25075_with_ann!AQ55","v":11},{"$f":"[1]ACS_16_5YR_B25075_with_ann!AR55","v":34},{"$f":"[1]ACS_16_5YR_B25075_with_ann!AS55","v":16},{"$f":"[1]ACS_16_5YR_B25075_with_ann!AT55","v":27},{"$f":"[1]ACS_16_5YR_B25075_with_ann!AU55","v":11},{"$f":"[1]ACS_16_5YR_B25075_with_ann!AV55","v":13},{"$f":"[1]ACS_16_5YR_B25075_with_ann!AW55","v":9},{"$f":"[1]ACS_16_5YR_B25075_with_ann!AX55","v":25},{"$f":"[1]ACS_16_5YR_B25075_with_ann!AY55","v":14},{"$f":"[1]ACS_16_5YR_B25075_with_ann!AZ55","v":16},{"$f":"[1]ACS_16_5YR_B25075_with_ann!BA55","v":11},{"$f":"[1]ACS_16_5YR_B25075_with_ann!BB55","v":0},{"$f":"[1]ACS_16_5YR_B25075_with_ann!BC55","v":12},{"$f":"[1]ACS_16_5YR_B25075_with_ann!BD55","v":0},{"$f":"[1]ACS_16_5YR_B25075_with_ann!BE55","v":12},{"$f":"[1]ACS_16_5YR_B25077_with_ann!D55","v":307400},{"$f":"[1]ACS_16_5YR_B25077_with_ann!E55","v":53660},null,{"$f":"[1]ACS_16_5YR_B25075_with_ann!C55","v":"Nelson"}]
["06000US3300564420","0600000US3300564580","060",null,{"$f":"[1]ACS_16_5YR_B25075_with_ann!D56","v":383},{"$f":"[1]ACS_16_5YR_B25075_with_ann!E56","v":72},{"$f":"[1]ACS_16_5YR_B25075_with_ann!F56","v":0},{"$f":"[1]ACS_16_5YR_B25075_with_ann!G56","v":12},{"$f":"[1]ACS_16_5YR_B25075_with_ann!H56","v":4},{"$f":"[1]ACS_16_5YR_B25075_with_ann!I56","v":6},{"$f":"[1]ACS_16_5YR_B25075_with_ann!J56","v":1},{"$f":"[1]ACS_16_5YR_B25075_with_ann!K56","v":2},{"$f":"[1]ACS_16_5YR_B25075_with_ann!L56","v":2},{"$f":"[1]ACS_16_5YR_B25075_with_ann!M56","v":3},{"$f":"[1]ACS_16_5YR_B25075_with_ann!N56","v":1},{"$f":"[1]ACS_16_5YR_B25075_with_ann!O56","v":5},{"$f":"[1]ACS_16_5YR_B25075_with_ann!P56","v":0},{"$f":"[1]ACS_16_5YR_B25075_with_ann!Q56","v":12},{"$f":"[1]ACS_16_5YR_B25075_with_ann!R56","v":0},{"$f":"[1]ACS_16_5YR_B25075_with_ann!S56","v":12},{"$f":"[1]ACS_16_5YR_B25075_with_ann!T56","v":3},{"$f":"[1]ACS_16_5YR_B25075_with_ann!U56","v":5},{"$f":"[1]ACS_16_5YR_B25075_with_ann!V56","v":0},{"$f":"[1]ACS_16_5YR_B25075_with_ann!W56","v":12},{"$f":"[1]ACS_16_5YR_B25075_with_ann!X56","v":0},{"$f":"[1]ACS_16_5YR_B25075_with_ann!Y56","v":12},{"$f":"[1]ACS_16_5YR_B25075_with_ann!Z56","v":0},{"$f":"[1]ACS_16_5YR_B25075_with_ann!AA56","v":12},{"$f":"[1]ACS_16_5YR_B25075_with_ann!AB56","v":0},{"$f":"[1]ACS_16_5YR_B25075_with_ann!AC56","v":12},{"$f":"[1]ACS_16_5YR_B25075_with_ann!AD56","v":0},{"$f":"[1]ACS_16_5YR_B25075_with_ann!AE56","v":12},{"$f":"[1]ACS_16_5YR_B25075_with_ann!AF56","v":14},{"$f":"[1]ACS_16_5YR_B25075_with_ann!AG56","v":11},{"$f":"[1]ACS_16_5YR_B25075_with_ann!AH56","v":24},{"$f":"[1]ACS_16_5YR_B25075_with_ann!AI56","v":19},{"$f":"[1]ACS_16_5YR_B25075_with_ann!AJ56","v":31},{"$f":"[1]ACS_16_5YR_B25075_with_ann!AK56","v":22},{"$f":"[1]ACS_16_5YR_B25075_with_ann!AL56","v":21},{"$f":"[1]ACS_16_5YR_B25075_with_ann!AM56","v":16},{"$f":"[1]ACS_16_5YR_B25075_with_ann!AN56","v":45},{"$f":"[1]ACS_16_5YR_B25075_with_ann!AO56","v":24},{"$f":"[1]ACS_16_5YR_B25075_with_ann!AP56","v":92},{"$f":"[1]ACS_16_5YR_B25075_with_ann!AQ56","v":36},{"$f":"[1]ACS_16_5YR_B25075_with_ann!AR56","v":81},{"$f":"[1]ACS_16_5YR_B25075_with_ann!AS56","v":36},{"$f":"[1]ACS_16_5YR_B25075_with_ann!AT56","v":38},{"$f":"[1]ACS_16_5YR_B25075_with_ann!AU56","v":27},{"$f":"[1]ACS_16_5YR_B25075_with_ann!AV56","v":23},{"$f":"[1]ACS_16_5YR_B25075_with_ann!AW56","v":17},{"$f":"[1]ACS_16_5YR_B25075_with_ann!AX56","v":3},{"$f":"[1]ACS_16_5YR_B25075_with_ann!AY56","v":5},{"$f":"[1]ACS_16_5YR_B25075_with_ann!AZ56","v":0},{"$f":"[1]ACS_16_5YR_B25075_with_ann!BA56","v":12},{"$f":"[1]ACS_16_5YR_B25075_with_ann!BB56","v":0},{"$f":"[1]ACS_16_5YR_B25075_with_ann!BC56","v":12},{"$f":"[1]ACS_16_5YR_B25075_with_ann!BD56","v":0},{"$f":"[1]ACS_16_5YR_B25075_with_ann!BE56","v":12},{"$f":"[1]ACS_16_5YR_B25077_with_ann!D56","v":274700},{"$f":"[1]ACS_16_5YR_B25077_with_ann!E56","v":19508},null,{"$f":"[1]ACS_16_5YR_B25075_with_ann!C56","v":"Richmond"}]
["06000US3300564580","0600000US3300565700","060",null,{"$f":"[1]ACS_16_5YR_B25075_with_ann!D57","v":1711},{"$f":"[1]ACS_16_5YR_B25075_with_ann!E57","v":137},{"$f":"[1]ACS_16_5YR_B25075_with_ann!F57","v":10},{"$f":"[1]ACS_16_5YR_B25075_with_ann!G57","v":17},{"$f":"[1]ACS_16_5YR_B25075_with_ann!H57","v":0},{"$f":"[1]ACS_16_5YR_B25075_with_ann!I57","v":17},{"$f":"[1]ACS_16_5YR_B25075_with_ann!J57","v":0},{"$f":"[1]ACS_16_5YR_B25075_with_ann!K57","v":17},{"$f":"[1]ACS_16_5YR_B25075_with_ann!L57","v":0},{"$f":"[1]ACS_16_5YR_B25075_with_ann!M57","v":17},{"$f":"[1]ACS_16_5YR_B25075_with_ann!N57","v":0},{"$f":"[1]ACS_16_5YR_B25075_with_ann!O57","v":17},{"$f":"[1]ACS_16_5YR_B25075_with_ann!P57","v":0},{"$f":"[1]ACS_16_5YR_B25075_with_ann!Q57","v":17},{"$f":"[1]ACS_16_5YR_B25075_with_ann!R57","v":0},{"$f":"[1]ACS_16_5YR_B25075_with_ann!S57","v":17},{"$f":"[1]ACS_16_5YR_B25075_with_ann!T57","v":31},{"$f":"[1]ACS_16_5YR_B25075_with_ann!U57","v":38},{"$f":"[1]ACS_16_5YR_B25075_with_ann!V57","v":10},{"$f":"[1]ACS_16_5YR_B25075_with_ann!W57","v":12},{"$f":"[1]ACS_16_5YR_B25075_with_ann!X57","v":0},{"$f":"[1]ACS_16_5YR_B25075_with_ann!Y57","v":17},{"$f":"[1]ACS_16_5YR_B25075_with_ann!Z57","v":21},{"$f":"[1]ACS_16_5YR_B25075_with_ann!AA57","v":33},{"$f":"[1]ACS_16_5YR_B25075_with_ann!AB57","v":15},{"$f":"[1]ACS_16_5YR_B25075_with_ann!AC57","v":19},{"$f":"[1]ACS_16_5YR_B25075_with_ann!AD57","v":6},{"$f":"[1]ACS_16_5YR_B25075_with_ann!AE57","v":9},{"$f":"[1]ACS_16_5YR_B25075_with_ann!AF57","v":6},{"$f":"[1]ACS_16_5YR_B25075_with_ann!AG57","v":10},{"$f":"[1]ACS_16_5YR_B25075_with_ann!AH57","v":36},{"$f":"[1]ACS_16_5YR_B25075_with_ann!AI57","v":33},{"$f":"[1]ACS_16_5YR_B25075_with_ann!AJ57","v":85},{"$f":"[1]ACS_16_5YR_B25075_with_ann!AK57","v":53},{"$f":"[1]ACS_16_5YR_B25075_with_ann!AL57","v":41},{"$f":"[1]ACS_16_5YR_B25075_with_ann!AM57","v":32},{"$f":"[1]ACS_16_5YR_B25075_with_ann!AN57","v":251},{"$f":"[1]ACS_16_5YR_B25075_with_ann!AO57","v":91},{"$f":"[1]ACS_16_5YR_B25075_with_ann!AP57","v":410},{"$f":"[1]ACS_16_5YR_B25075_with_ann!AQ57","v":111},{"$f":"[1]ACS_16_5YR_B25075_with_ann!AR57","v":333},{"$f":"[1]ACS_16_5YR_B25075_with_ann!AS57","v":114},{"$f":"[1]ACS_16_5YR_B25075_with_ann!AT57","v":229},{"$f":"[1]ACS_16_5YR_B25075_with_ann!AU57","v":94},{"$f":"[1]ACS_16_5YR_B25075_with_ann!AV57","v":159},{"$f":"[1]ACS_16_5YR_B25075_with_ann!AW57","v":72},{"$f":"[1]ACS_16_5YR_B25075_with_ann!AX57","v":16},{"$f":"[1]ACS_16_5YR_B25075_with_ann!AY57","v":21},{"$f":"[1]ACS_16_5YR_B25075_with_ann!AZ57","v":40},{"$f":"[1]ACS_16_5YR_B25075_with_ann!BA57","v":51},{"$f":"[1]ACS_16_5YR_B25075_with_ann!BB57","v":12},{"$f":"[1]ACS_16_5YR_B25075_with_ann!BC57","v":19},{"$f":"[1]ACS_16_5YR_B25075_with_ann!BD57","v":0},{"$f":"[1]ACS_16_5YR_B25075_with_ann!BE57","v":17},{"$f":"[1]ACS_16_5YR_B25077_with_ann!D57","v":291900},{"$f":"[1]ACS_16_5YR_B25077_with_ann!E57","v":14086},null,{"$f":"[1]ACS_16_5YR_B25075_with_ann!C57","v":"Rindge"}]
["06000US3300565700","0600000US3300573700","060",null,{"$f":"[1]ACS_16_5YR_B25075_with_ann!D58","v":94},{"$f":"[1]ACS_16_5YR_B25075_with_ann!E58","v":38},{"$f":"[1]ACS_16_5YR_B25075_with_ann!F58","v":0},{"$f":"[1]ACS_16_5YR_B25075_with_ann!G58","v":12},{"$f":"[1]ACS_16_5YR_B25075_with_ann!H58","v":0},{"$f":"[1]ACS_16_5YR_B25075_with_ann!I58","v":12},{"$f":"[1]ACS_16_5YR_B25075_with_ann!J58","v":1},{"$f":"[1]ACS_16_5YR_B25075_with_ann!K58","v":3},{"$f":"[1]ACS_16_5YR_B25075_with_ann!L58","v":0},{"$f":"[1]ACS_16_5YR_B25075_with_ann!M58","v":12},{"$f":"[1]ACS_16_5YR_B25075_with_ann!N58","v":0},{"$f":"[1]ACS_16_5YR_B25075_with_ann!O58","v":12},{"$f":"[1]ACS_16_5YR_B25075_with_ann!P58","v":0},{"$f":"[1]ACS_16_5YR_B25075_with_ann!Q58","v":12},{"$f":"[1]ACS_16_5YR_B25075_with_ann!R58","v":0},{"$f":"[1]ACS_16_5YR_B25075_with_ann!S58","v":12},{"$f":"[1]ACS_16_5YR_B25075_with_ann!T58","v":0},{"$f":"[1]ACS_16_5YR_B25075_with_ann!U58","v":12},{"$f":"[1]ACS_16_5YR_B25075_with_ann!V58","v":0},{"$f":"[1]ACS_16_5YR_B25075_with_ann!W58","v":12},{"$f":"[1]ACS_16_5YR_B25075_with_ann!X58","v":2},{"$f":"[1]ACS_16_5YR_B25075_with_ann!Y58","v":3},{"$f":"[1]ACS_16_5YR_B25075_with_ann!Z58","v":1},{"$f":"[1]ACS_16_5YR_B25075_with_ann!AA58","v":2},{"$f":"[1]ACS_16_5YR_B25075_with_ann!AB58","v":2},{"$f":"[1]ACS_16_5YR_B25075_with_ann!AC58","v":3},{"$f":"[1]ACS_16_5YR_B25075_with_ann!AD58","v":0},{"$f":"[1]ACS_16_5YR_B25075_with_ann!AE58","v":12},{"$f":"[1]ACS_16_5YR_B25075_with_ann!AF58","v":1},{"$f":"[1]ACS_16_5YR_B25075_with_ann!AG58","v":3},{"$f":"[1]ACS_16_5YR_B25075_with_ann!AH58","v":3},{"$f":"[1]ACS_16_5YR_B25075_with_ann!AI58","v":5},{"$f":"[1]ACS_16_5YR_B25075_with_ann!AJ58","v":11},{"$f":"[1]ACS_16_5YR_B25075_with_ann!AK58","v":9},{"$f":"[1]ACS_16_5YR_B25075_with_ann!AL58","v":11},{"$f":"[1]ACS_16_5YR_B25075_with_ann!AM58","v":9},{"$f":"[1]ACS_16_5YR_B25075_with_ann!AN58","v":17},{"$f":"[1]ACS_16_5YR_B25075_with_ann!AO58","v":13},{"$f":"[1]ACS_16_5YR_B25075_with_ann!AP58","v":10},{"$f":"[1]ACS_16_5YR_B25075_with_ann!AQ58","v":6},{"$f":"[1]ACS_16_5YR_B25075_with_ann!AR58","v":2},{"$f":"[1]ACS_16_5YR_B25075_with_ann!AS58","v":3},{"$f":"[1]ACS_16_5YR_B25075_with_ann!AT58","v":3},{"$f":"[1]ACS_16_5YR_B25075_with_ann!AU58","v":3},{"$f":"[1]ACS_16_5YR_B25075_with_ann!AV58","v":26},{"$f":"[1]ACS_16_5YR_B25075_with_ann!AW58","v":36},{"$f":"[1]ACS_16_5YR_B25075_with_ann!AX58","v":0},{"$f":"[1]ACS_16_5YR_B25075_with_ann!AY58","v":12},{"$f":"[1]ACS_16_5YR_B25075_with_ann!AZ58","v":2},{"$f":"[1]ACS_16_5YR_B25075_with_ann!BA58","v":3},{"$f":"[1]ACS_16_5YR_B25075_with_ann!BB58","v":0},{"$f":"[1]ACS_16_5YR_B25075_with_ann!BC58","v":12},{"$f":"[1]ACS_16_5YR_B25075_with_ann!BD58","v":2},{"$f":"[1]ACS_16_5YR_B25075_with_ann!BE58","v":3},{"$f":"[1]ACS_16_5YR_B25077_with_ann!D58","v":244100},{"$f":"[1]ACS_16_5YR_B25077_with_ann!E58","v":179588},null,{"$f":"[1]ACS_16_5YR_B25075_with_ann!C58","v":"Roxbury"}]
["06000US3300573700","0600000US3300574900","060",null,{"$f":"[1]ACS_16_5YR_B25075_with_ann!D59","v":405},{"$f":"[1]ACS_16_5YR_B25075_with_ann!E59","v":49},{"$f":"[1]ACS_16_5YR_B25075_with_ann!F59","v":0},{"$f":"[1]ACS_16_5YR_B25075_with_ann!G59","v":12},{"$f":"[1]ACS_16_5YR_B25075_with_ann!H59","v":0},{"$f":"[1]ACS_16_5YR_B25075_with_ann!I59","v":12},{"$f":"[1]ACS_16_5YR_B25075_with_ann!J59","v":0},{"$f":"[1]ACS_16_5YR_B25075_with_ann!K59","v":12},{"$f":"[1]ACS_16_5YR_B25075_with_ann!L59","v":0},{"$f":"[1]ACS_16_5YR_B25075_with_ann!M59","v":12},{"$f":"[1]ACS_16_5YR_B25075_with_ann!N59","v":0},{"$f":"[1]ACS_16_5YR_B25075_with_ann!O59","v":12},{"$f":"[1]ACS_16_5YR_B25075_with_ann!P59","v":4},{"$f":"[1]ACS_16_5YR_B25075_with_ann!Q59","v":5},{"$f":"[1]ACS_16_5YR_B25075_with_ann!R59","v":0},{"$f":"[1]ACS_16_5YR_B25075_with_ann!S59","v":12},{"$f":"[1]ACS_16_5YR_B25075_with_ann!T59","v":0},{"$f":"[1]ACS_16_5YR_B25075_with_ann!U59","v":12},{"$f":"[1]ACS_16_5YR_B25075_with_ann!V59","v":4},{"$f":"[1]ACS_16_5YR_B25075_with_ann!W59","v":6},{"$f":"[1]ACS_16_5YR_B25075_with_ann!X59","v":0},{"$f":"[1]ACS_16_5YR_B25075_with_ann!Y59","v":12},{"$f":"[1]ACS_16_5YR_B25075_with_ann!Z59","v":0},{"$f":"[1]ACS_16_5YR_B25075_with_ann!AA59","v":12},{"$f":"[1]ACS_16_5YR_B25075_with_ann!AB59","v":0},{"$f":"[1]ACS_16_5YR_B25075_with_ann!AC59","v":12},{"$f":"[1]ACS_16_5YR_B25075_with_ann!AD59","v":0},{"$f":"[1]ACS_16_5YR_B25075_with_ann!AE59","v":12},{"$f":"[1]ACS_16_5YR_B25075_with_ann!AF59","v":9},{"$f":"[1]ACS_16_5YR_B25075_with_ann!AG59","v":13},{"$f":"[1]ACS_16_5YR_B25075_with_ann!AH59","v":15},{"$f":"[1]ACS_16_5YR_B25075_with_ann!AI59","v":7},{"$f":"[1]ACS_16_5YR_B25075_with_ann!AJ59","v":33},{"$f":"[1]ACS_16_5YR_B25075_with_ann!AK59","v":22},{"$f":"[1]ACS_16_5YR_B25075_with_ann!AL59","v":16},{"$f":"[1]ACS_16_5YR_B25075_with_ann!AM59","v":10},{"$f":"[1]ACS_16_5YR_B25075_with_ann!AN59","v":45},{"$f":"[1]ACS_16_5YR_B25075_with_ann!AO59","v":18},{"$f":"[1]ACS_16_5YR_B25075_with_ann!AP59","v":78},{"$f":"[1]ACS_16_5YR_B25075_with_ann!AQ59","v":27},{"$f":"[1]ACS_16_5YR_B25075_with_ann!AR59","v":125},{"$f":"[1]ACS_16_5YR_B25075_with_ann!AS59","v":31},{"$f":"[1]ACS_16_5YR_B25075_with_ann!AT59","v":53},{"$f":"[1]ACS_16_5YR_B25075_with_ann!AU59","v":27},{"$f":"[1]ACS_16_5YR_B25075_with_ann!AV59","v":17},{"$f":"[1]ACS_16_5YR_B25075_with_ann!AW59","v":10},{"$f":"[1]ACS_16_5YR_B25075_with_ann!AX59","v":3},{"$f":"[1]ACS_16_5YR_B25075_with_ann!AY59","v":4},{"$f":"[1]ACS_16_5YR_B25075_with_ann!AZ59","v":3},{"$f":"[1]ACS_16_5YR_B25075_with_ann!BA59","v":4},{"$f":"[1]ACS_16_5YR_B25075_with_ann!BB59","v":0},{"$f":"[1]ACS_16_5YR_B25075_with_ann!BC59","v":12},{"$f":"[1]ACS_16_5YR_B25075_with_ann!BD59","v":0},{"$f":"[1]ACS_16_5YR_B25075_with_ann!BE59","v":12},{"$f":"[1]ACS_16_5YR_B25077_with_ann!D59","v":299000},{"$f":"[1]ACS_16_5YR_B25077_with_ann!E59","v":21390},null,{"$f":"[1]ACS_16_5YR_B25075_with_ann!C59","v":"Stoddard"}]
["06000US3300574900","0600000US3300575300","060",null,{"$f":"[1]ACS_16_5YR_B25075_with_ann!D60","v":240},{"$f":"[1]ACS_16_5YR_B25075_with_ann!E60","v":46},{"$f":"[1]ACS_16_5YR_B25075_with_ann!F60","v":0},{"$f":"[1]ACS_16_5YR_B25075_with_ann!G60","v":12},{"$f":"[1]ACS_16_5YR_B25075_with_ann!H60","v":0},{"$f":"[1]ACS_16_5YR_B25075_with_ann!I60","v":12},{"$f":"[1]ACS_16_5YR_B25075_with_ann!J60","v":3},{"$f":"[1]ACS_16_5YR_B25075_with_ann!K60","v":4},{"$f":"[1]ACS_16_5YR_B25075_with_ann!L60","v":1},{"$f":"[1]ACS_16_5YR_B25075_with_ann!M60","v":2},{"$f":"[1]ACS_16_5YR_B25075_with_ann!N60","v":7},{"$f":"[1]ACS_16_5YR_B25075_with_ann!O60","v":11},{"$f":"[1]ACS_16_5YR_B25075_with_ann!P60","v":0},{"$f":"[1]ACS_16_5YR_B25075_with_ann!Q60","v":12},{"$f":"[1]ACS_16_5YR_B25075_with_ann!R60","v":0},{"$f":"[1]ACS_16_5YR_B25075_with_ann!S60","v":12},{"$f":"[1]ACS_16_5YR_B25075_with_ann!T60","v":7},{"$f":"[1]ACS_16_5YR_B25075_with_ann!U60","v":6},{"$f":"[1]ACS_16_5YR_B25075_with_ann!V60","v":10},{"$f":"[1]ACS_16_5YR_B25075_with_ann!W60","v":10},{"$f":"[1]ACS_16_5YR_B25075_with_ann!X60","v":0},{"$f":"[1]ACS_16_5YR_B25075_with_ann!Y60","v":12},{"$f":"[1]ACS_16_5YR_B25075_with_ann!Z60","v":4},{"$f":"[1]ACS_16_5YR_B25075_with_ann!AA60","v":6},{"$f":"[1]ACS_16_5YR_B25075_with_ann!AB60","v":2},{"$f":"[1]ACS_16_5YR_B25075_with_ann!AC60","v":4},{"$f":"[1]ACS_16_5YR_B25075_with_ann!AD60","v":2},{"$f":"[1]ACS_16_5YR_B25075_with_ann!AE60","v":3},{"$f":"[1]ACS_16_5YR_B25075_with_ann!AF60","v":4},{"$f":"[1]ACS_16_5YR_B25075_with_ann!AG60","v":4},{"$f":"[1]ACS_16_5YR_B25075_with_ann!AH60","v":11},{"$f":"[1]ACS_16_5YR_B25075_with_ann!AI60","v":8},{"$f":"[1]ACS_16_5YR_B25075_with_ann!AJ60","v":29},{"$f":"[1]ACS_16_5YR_B25075_with_ann!AK60","v":19},{"$f":"[1]ACS_16_5YR_B25075_with_ann!AL60","v":15},{"$f":"[1]ACS_16_5YR_B25075_with_ann!AM60","v":10},{"$f":"[1]ACS_16_5YR_B25075_with_ann!AN60","v":65},{"$f":"[1]ACS_16_5YR_B25075_with_ann!AO60","v":25},{"$f":"[1]ACS_16_5YR_B25075_with_ann!AP60","v":18},{"$f":"[1]ACS_16_5YR_B25075_with_ann!AQ60","v":11},{"$f":"[1]ACS_16_5YR_B25075_with_ann!AR60","v":32},{"$f":"[1]ACS_16_5YR_B25075_with_ann!AS60","v":18},{"$f":"[1]ACS_16_5YR_B25075_with_ann!AT60","v":7},{"$f":"[1]ACS_16_5YR_B25075_with_ann!AU60","v":5},{"$f":"[1]ACS_16_5YR_B25075_with_ann!AV60","v":14},{"$f":"[1]ACS_16_5YR_B25075_with_ann!AW60","v":12},{"$f":"[1]ACS_16_5YR_B25075_with_ann!AX60","v":5},{"$f":"[1]ACS_16_5YR_B25075_with_ann!AY60","v":5},{"$f":"[1]ACS_16_5YR_B25075_with_ann!AZ60","v":0},{"$f":"[1]ACS_16_5YR_B25075_with_ann!BA60","v":12},{"$f":"[1]ACS_16_5YR_B25075_with_ann!BB60","v":0},{"$f":"[1]ACS_16_5YR_B25075_with_ann!BC60","v":12},{"$f":"[1]ACS_16_5YR_B25075_with_ann!BD60","v":4},{"$f":"[1]ACS_16_5YR_B25075_with_ann!BE60","v":6},{"$f":"[1]ACS_16_5YR_B25077_with_ann!D60","v":219200},{"$f":"[1]ACS_16_5YR_B25077_with_ann!E60","v":14194},null,{"$f":"[1]ACS_16_5YR_B25075_with_ann!C60","v":"Sullivan"}]
["06000US3300575300","0600000US3300575700","060",null,{"$f":"[1]ACS_16_5YR_B25075_with_ann!D61","v":324},{"$f":"[1]ACS_16_5YR_B25075_with_ann!E61","v":59},{"$f":"[1]ACS_16_5YR_B25075_with_ann!F61","v":2},{"$f":"[1]ACS_16_5YR_B25075_with_ann!G61","v":4},{"$f":"[1]ACS_16_5YR_B25075_with_ann!H61","v":0},{"$f":"[1]ACS_16_5YR_B25075_with_ann!I61","v":12},{"$f":"[1]ACS_16_5YR_B25075_with_ann!J61","v":0},{"$f":"[1]ACS_16_5YR_B25075_with_ann!K61","v":12},{"$f":"[1]ACS_16_5YR_B25075_with_ann!L61","v":0},{"$f":"[1]ACS_16_5YR_B25075_with_ann!M61","v":12},{"$f":"[1]ACS_16_5YR_B25075_with_ann!N61","v":0},{"$f":"[1]ACS_16_5YR_B25075_with_ann!O61","v":12},{"$f":"[1]ACS_16_5YR_B25075_with_ann!P61","v":0},{"$f":"[1]ACS_16_5YR_B25075_with_ann!Q61","v":12},{"$f":"[1]ACS_16_5YR_B25075_with_ann!R61","v":0},{"$f":"[1]ACS_16_5YR_B25075_with_ann!S61","v":12},{"$f":"[1]ACS_16_5YR_B25075_with_ann!T61","v":0},{"$f":"[1]ACS_16_5YR_B25075_with_ann!U61","v":12},{"$f":"[1]ACS_16_5YR_B25075_with_ann!V61","v":0},{"$f":"[1]ACS_16_5YR_B25075_with_ann!W61","v":12},{"$f":"[1]ACS_16_5YR_B25075_with_ann!X61","v":2},{"$f":"[1]ACS_16_5YR_B25075_with_ann!Y61","v":3},{"$f":"[1]ACS_16_5YR_B25075_with_ann!Z61","v":0},{"$f":"[1]ACS_16_5YR_B25075_with_ann!AA61","v":12},{"$f":"[1]ACS_16_5YR_B25075_with_ann!AB61","v":0},{"$f":"[1]ACS_16_5YR_B25075_with_ann!AC61","v":12},{"$f":"[1]ACS_16_5YR_B25075_with_ann!AD61","v":0},{"$f":"[1]ACS_16_5YR_B25075_with_ann!AE61","v":12},{"$f":"[1]ACS_16_5YR_B25075_with_ann!AF61","v":5},{"$f":"[1]ACS_16_5YR_B25075_with_ann!AG61","v":5},{"$f":"[1]ACS_16_5YR_B25075_with_ann!AH61","v":16},{"$f":"[1]ACS_16_5YR_B25075_with_ann!AI61","v":12},{"$f":"[1]ACS_16_5YR_B25075_with_ann!AJ61","v":16},{"$f":"[1]ACS_16_5YR_B25075_with_ann!AK61","v":13},{"$f":"[1]ACS_16_5YR_B25075_with_ann!AL61","v":25},{"$f":"[1]ACS_16_5YR_B25075_with_ann!AM61","v":17},{"$f":"[1]ACS_16_5YR_B25075_with_ann!AN61","v":100},{"$f":"[1]ACS_16_5YR_B25075_with_ann!AO61","v":43},{"$f":"[1]ACS_16_5YR_B25075_with_ann!AP61","v":46},{"$f":"[1]ACS_16_5YR_B25075_with_ann!AQ61","v":28},{"$f":"[1]ACS_16_5YR_B25075_with_ann!AR61","v":60},{"$f":"[1]ACS_16_5YR_B25075_with_ann!AS61","v":28},{"$f":"[1]ACS_16_5YR_B25075_with_ann!AT61","v":30},{"$f":"[1]ACS_16_5YR_B25075_with_ann!AU61","v":14},{"$f":"[1]ACS_16_5YR_B25075_with_ann!AV61","v":20},{"$f":"[1]ACS_16_5YR_B25075_with_ann!AW61","v":13},{"$f":"[1]ACS_16_5YR_B25075_with_ann!AX61","v":2},{"$f":"[1]ACS_16_5YR_B25075_with_ann!AY61","v":3},{"$f":"[1]ACS_16_5YR_B25075_with_ann!AZ61","v":0},{"$f":"[1]ACS_16_5YR_B25075_with_ann!BA61","v":12},{"$f":"[1]ACS_16_5YR_B25075_with_ann!BB61","v":0},{"$f":"[1]ACS_16_5YR_B25075_with_ann!BC61","v":12},{"$f":"[1]ACS_16_5YR_B25075_with_ann!BD61","v":0},{"$f":"[1]ACS_16_5YR_B25075_with_ann!BE61","v":12},{"$f":"[1]ACS_16_5YR_B25077_with_ann!D61","v":248000},{"$f":"[1]ACS_16_5YR_B25077_with_ann!E61","v":21342},null,{"$f":"[1]ACS_16_5YR_B25075_with_ann!C61","v":"Surry"}]
["06000US3300575700","0600000US3300577380","060",null,{"$f":"[1]ACS_16_5YR_B25075_with_ann!D62","v":2237},{"$f":"[1]ACS_16_5YR_B25075_with_ann!E62","v":250},{"$f":"[1]ACS_16_5YR_B25075_with_ann!F62","v":0},{"$f":"[1]ACS_16_5YR_B25075_with_ann!G62","v":17},{"$f":"[1]ACS_16_5YR_B25075_with_ann!H62","v":0},{"$f":"[1]ACS_16_5YR_B25075_with_ann!I62","v":17},{"$f":"[1]ACS_16_5YR_B25075_with_ann!J62","v":41},{"$f":"[1]ACS_16_5YR_B25075_with_ann!K62","v":33},{"$f":"[1]ACS_16_5YR_B25075_with_ann!L62","v":0},{"$f":"[1]ACS_16_5YR_B25075_with_ann!M62","v":17},{"$f":"[1]ACS_16_5YR_B25075_with_ann!N62","v":0},{"$f":"[1]ACS_16_5YR_B25075_with_ann!O62","v":17},{"$f":"[1]ACS_16_5YR_B25075_with_ann!P62","v":83},{"$f":"[1]ACS_16_5YR_B25075_with_ann!Q62","v":89},{"$f":"[1]ACS_16_5YR_B25075_with_ann!R62","v":0},{"$f":"[1]ACS_16_5YR_B25075_with_ann!S62","v":17},{"$f":"[1]ACS_16_5YR_B25075_with_ann!T62","v":60},{"$f":"[1]ACS_16_5YR_B25075_with_ann!U62","v":72},{"$f":"[1]ACS_16_5YR_B25075_with_ann!V62","v":0},{"$f":"[1]ACS_16_5YR_B25075_with_ann!W62","v":17},{"$f":"[1]ACS_16_5YR_B25075_with_ann!X62","v":30},{"$f":"[1]ACS_16_5YR_B25075_with_ann!Y62","v":38},{"$f":"[1]ACS_16_5YR_B25075_with_ann!Z62","v":0},{"$f":"[1]ACS_16_5YR_B25075_with_ann!AA62","v":17},{"$f":"[1]ACS_16_5YR_B25075_with_ann!AB62","v":0},{"$f":"[1]ACS_16_5YR_B25075_with_ann!AC62","v":17},{"$f":"[1]ACS_16_5YR_B25075_with_ann!AD62","v":14},{"$f":"[1]ACS_16_5YR_B25075_with_ann!AE62","v":22},{"$f":"[1]ACS_16_5YR_B25075_with_ann!AF62","v":79},{"$f":"[1]ACS_16_5YR_B25075_with_ann!AG62","v":66},{"$f":"[1]ACS_16_5YR_B25075_with_ann!AH62","v":14},{"$f":"[1]ACS_16_5YR_B25075_with_ann!AI62","v":25},{"$f":"[1]ACS_16_5YR_B25075_with_ann!AJ62","v":231},{"$f":"[1]ACS_16_5YR_B25075_with_ann!AK62","v":110},{"$f":"[1]ACS_16_5YR_B25075_with_ann!AL62","v":175},{"$f":"[1]ACS_16_5YR_B25075_with_ann!AM62","v":96},{"$f":"[1]ACS_16_5YR_B25075_with_ann!AN62","v":553},{"$f":"[1]ACS_16_5YR_B25075_with_ann!AO62","v":189},{"$f":"[1]ACS_16_5YR_B25075_with_ann!AP62","v":572},{"$f":"[1]ACS_16_5YR_B25075_with_ann!AQ62","v":234},{"$f":"[1]ACS_16_5YR_B25075_with_ann!AR62","v":273},{"$f":"[1]ACS_16_5YR_B25075_with_ann!AS62","v":96},{"$f":"[1]ACS_16_5YR_B25075_with_ann!AT62","v":102},{"$f":"[1]ACS_16_5YR_B25075_with_ann!AU62","v":68},{"$f":"[1]ACS_16_5YR_B25075_with_ann!AV62","v":10},{"$f":"[1]ACS_16_5YR_B25075_with_ann!AW62","v":19},{"$f":"[1]ACS_16_5YR_B25075_with_ann!AX62","v":0},{"$f":"[1]ACS_16_5YR_B25075_with_ann!AY62","v":17},{"$f":"[1]ACS_16_5YR_B25075_with_ann!AZ62","v":0},{"$f":"[1]ACS_16_5YR_B25075_with_ann!BA62","v":17},{"$f":"[1]ACS_16_5YR_B25075_with_ann!BB62","v":0},{"$f":"[1]ACS_16_5YR_B25075_with_ann!BC62","v":17},{"$f":"[1]ACS_16_5YR_B25075_with_ann!BD62","v":0},{"$f":"[1]ACS_16_5YR_B25075_with_ann!BE62","v":17},{"$f":"[1]ACS_16_5YR_B25077_with_ann!D62","v":235400},{"$f":"[1]ACS_16_5YR_B25077_with_ann!E62","v":15559},null,{"$f":"[1]ACS_16_5YR_B25075_with_ann!C62","v":"Swanzey"}]
["06000US3300577380","0600000US3300578420","060",null,{"$f":"[1]ACS_16_5YR_B25075_with_ann!D63","v":525},{"$f":"[1]ACS_16_5YR_B25075_with_ann!E63","v":81},{"$f":"[1]ACS_16_5YR_B25075_with_ann!F63","v":0},{"$f":"[1]ACS_16_5YR_B25075_with_ann!G63","v":12},{"$f":"[1]ACS_16_5YR_B25075_with_ann!H63","v":0},{"$f":"[1]ACS_16_5YR_B25075_with_ann!I63","v":12},{"$f":"[1]ACS_16_5YR_B25075_with_ann!J63","v":0},{"$f":"[1]ACS_16_5YR_B25075_with_ann!K63","v":12},{"$f":"[1]ACS_16_5YR_B25075_with_ann!L63","v":0},{"$f":"[1]ACS_16_5YR_B25075_with_ann!M63","v":12},{"$f":"[1]ACS_16_5YR_B25075_with_ann!N63","v":0},{"$f":"[1]ACS_16_5YR_B25075_with_ann!O63","v":12},{"$f":"[1]ACS_16_5YR_B25075_with_ann!P63","v":0},{"$f":"[1]ACS_16_5YR_B25075_with_ann!Q63","v":12},{"$f":"[1]ACS_16_5YR_B25075_with_ann!R63","v":0},{"$f":"[1]ACS_16_5YR_B25075_with_ann!S63","v":12},{"$f":"[1]ACS_16_5YR_B25075_with_ann!T63","v":6},{"$f":"[1]ACS_16_5YR_B25075_with_ann!U63","v":9},{"$f":"[1]ACS_16_5YR_B25075_with_ann!V63","v":0},{"$f":"[1]ACS_16_5YR_B25075_with_ann!W63","v":12},{"$f":"[1]ACS_16_5YR_B25075_with_ann!X63","v":0},{"$f":"[1]ACS_16_5YR_B25075_with_ann!Y63","v":12},{"$f":"[1]ACS_16_5YR_B25075_with_ann!Z63","v":5},{"$f":"[1]ACS_16_5YR_B25075_with_ann!AA63","v":8},{"$f":"[1]ACS_16_5YR_B25075_with_ann!AB63","v":6},{"$f":"[1]ACS_16_5YR_B25075_with_ann!AC63","v":8},{"$f":"[1]ACS_16_5YR_B25075_with_ann!AD63","v":15},{"$f":"[1]ACS_16_5YR_B25075_with_ann!AE63","v":26},{"$f":"[1]ACS_16_5YR_B25075_with_ann!AF63","v":59},{"$f":"[1]ACS_16_5YR_B25075_with_ann!AG63","v":38},{"$f":"[1]ACS_16_5YR_B25075_with_ann!AH63","v":43},{"$f":"[1]ACS_16_5YR_B25075_with_ann!AI63","v":24},{"$f":"[1]ACS_16_5YR_B25075_with_ann!AJ63","v":102},{"$f":"[1]ACS_16_5YR_B25075_with_ann!AK63","v":57},{"$f":"[1]ACS_16_5YR_B25075_with_ann!AL63","v":73},{"$f":"[1]ACS_16_5YR_B25075_with_ann!AM63","v":34},{"$f":"[1]ACS_16_5YR_B25075_with_ann!AN63","v":89},{"$f":"[1]ACS_16_5YR_B25075_with_ann!AO63","v":42},{"$f":"[1]ACS_16_5YR_B25075_with_ann!AP63","v":45},{"$f":"[1]ACS_16_5YR_B25075_with_ann!AQ63","v":26},{"$f":"[1]ACS_16_5YR_B25075_with_ann!AR63","v":38},{"$f":"[1]ACS_16_5YR_B25075_with_ann!AS63","v":24},{"$f":"[1]ACS_16_5YR_B25075_with_ann!AT63","v":28},{"$f":"[1]ACS_16_5YR_B25075_with_ann!AU63","v":22},{"$f":"[1]ACS_16_5YR_B25075_with_ann!AV63","v":16},{"$f":"[1]ACS_16_5YR_B25075_with_ann!AW63","v":17},{"$f":"[1]ACS_16_5YR_B25075_with_ann!AX63","v":0},{"$f":"[1]ACS_16_5YR_B25075_with_ann!AY63","v":12},{"$f":"[1]ACS_16_5YR_B25075_with_ann!AZ63","v":0},{"$f":"[1]ACS_16_5YR_B25075_with_ann!BA63","v":12},{"$f":"[1]ACS_16_5YR_B25075_with_ann!BB63","v":0},{"$f":"[1]ACS_16_5YR_B25075_with_ann!BC63","v":12},{"$f":"[1]ACS_16_5YR_B25075_with_ann!BD63","v":0},{"$f":"[1]ACS_16_5YR_B25075_with_ann!BE63","v":12},{"$f":"[1]ACS_16_5YR_B25077_with_ann!D63","v":184100},{"$f":"[1]ACS_16_5YR_B25077_with_ann!E63","v":16300},null,{"$f":"[1]ACS_16_5YR_B25075_with_ann!C63","v":"Troy"}]
["06000US3300578420","0600000US3300582660","060",null,{"$f":"[1]ACS_16_5YR_B25075_with_ann!D64","v":945},{"$f":"[1]ACS_16_5YR_B25075_with_ann!E64","v":130},{"$f":"[1]ACS_16_5YR_B25075_with_ann!F64","v":6},{"$f":"[1]ACS_16_5YR_B25075_with_ann!G64","v":11},{"$f":"[1]ACS_16_5YR_B25075_with_ann!H64","v":7},{"$f":"[1]ACS_16_5YR_B25075_with_ann!I64","v":11},{"$f":"[1]ACS_16_5YR_B25075_with_ann!J64","v":0},{"$f":"[1]ACS_16_5YR_B25075_with_ann!K64","v":12},{"$f":"[1]ACS_16_5YR_B25075_with_ann!L64","v":0},{"$f":"[1]ACS_16_5YR_B25075_with_ann!M64","v":12},{"$f":"[1]ACS_16_5YR_B25075_with_ann!N64","v":0},{"$f":"[1]ACS_16_5YR_B25075_with_ann!O64","v":12},{"$f":"[1]ACS_16_5YR_B25075_with_ann!P64","v":0},{"$f":"[1]ACS_16_5YR_B25075_with_ann!Q64","v":12},{"$f":"[1]ACS_16_5YR_B25075_with_ann!R64","v":0},{"$f":"[1]ACS_16_5YR_B25075_with_ann!S64","v":12},{"$f":"[1]ACS_16_5YR_B25075_with_ann!T64","v":17},{"$f":"[1]ACS_16_5YR_B25075_with_ann!U64","v":17},{"$f":"[1]ACS_16_5YR_B25075_with_ann!V64","v":6},{"$f":"[1]ACS_16_5YR_B25075_with_ann!W64","v":11},{"$f":"[1]ACS_16_5YR_B25075_with_ann!X64","v":8},{"$f":"[1]ACS_16_5YR_B25075_with_ann!Y64","v":12},{"$f":"[1]ACS_16_5YR_B25075_with_ann!Z64","v":6},{"$f":"[1]ACS_16_5YR_B25075_with_ann!AA64","v":11},{"$f":"[1]ACS_16_5YR_B25075_with_ann!AB64","v":19},{"$f":"[1]ACS_16_5YR_B25075_with_ann!AC64","v":29},{"$f":"[1]ACS_16_5YR_B25075_with_ann!AD64","v":0},{"$f":"[1]ACS_16_5YR_B25075_with_ann!AE64","v":12},{"$f":"[1]ACS_16_5YR_B25075_with_ann!AF64","v":38},{"$f":"[1]ACS_16_5YR_B25075_with_ann!AG64","v":41},{"$f":"[1]ACS_16_5YR_B25075_with_ann!AH64","v":33},{"$f":"[1]ACS_16_5YR_B25075_with_ann!AI64","v":26},{"$f":"[1]ACS_16_5YR_B25075_with_ann!AJ64","v":93},{"$f":"[1]ACS_16_5YR_B25075_with_ann!AK64","v":61},{"$f":"[1]ACS_16_5YR_B25075_with_ann!AL64","v":35},{"$f":"[1]ACS_16_5YR_B25075_with_ann!AM64","v":24},{"$f":"[1]ACS_16_5YR_B25075_with_ann!AN64","v":201},{"$f":"[1]ACS_16_5YR_B25075_with_ann!AO64","v":89},{"$f":"[1]ACS_16_5YR_B25075_with_ann!AP64","v":138},{"$f":"[1]ACS_16_5YR_B25075_with_ann!AQ64","v":61},{"$f":"[1]ACS_16_5YR_B25075_with_ann!AR64","v":186},{"$f":"[1]ACS_16_5YR_B25075_with_ann!AS64","v":93},{"$f":"[1]ACS_16_5YR_B25075_with_ann!AT64","v":63},{"$f":"[1]ACS_16_5YR_B25075_with_ann!AU64","v":46},{"$f":"[1]ACS_16_5YR_B25075_with_ann!AV64","v":34},{"$f":"[1]ACS_16_5YR_B25075_with_ann!AW64","v":28},{"$f":"[1]ACS_16_5YR_B25075_with_ann!AX64","v":55},{"$f":"[1]ACS_16_5YR_B25075_with_ann!AY64","v":39},{"$f":"[1]ACS_16_5YR_B25075_with_ann!AZ64","v":0},{"$f":"[1]ACS_16_5YR_B25075_with_ann!BA64","v":12},{"$f":"[1]ACS_16_5YR_B25075_with_ann!BB64","v":0},{"$f":"[1]ACS_16_5YR_B25075_with_ann!BC64","v":12},{"$f":"[1]ACS_16_5YR_B25075_with_ann!BD64","v":0},{"$f":"[1]ACS_16_5YR_B25075_with_ann!BE64","v":12},{"$f":"[1]ACS_16_5YR_B25077_with_ann!D64","v":251300},{"$f":"[1]ACS_16_5YR_B25077_with_ann!E64","v":28578},null,{"$f":"[1]ACS_16_5YR_B25075_with_ann!C64","v":"Walpole"}]
["06000US3300582660","0600000US3300585540","060",null,{"$f":"[1]ACS_16_5YR_B25075_with_ann!D65","v":787},{"$f":"[1]ACS_16_5YR_B25075_with_ann!E65","v":179},{"$f":"[1]ACS_16_5YR_B25075_with_ann!F65","v":0},{"$f":"[1]ACS_16_5YR_B25075_with_ann!G65","v":12},{"$f":"[1]ACS_16_5YR_B25075_with_ann!H65","v":0},{"$f":"[1]ACS_16_5YR_B25075_with_ann!I65","v":12},{"$f":"[1]ACS_16_5YR_B25075_with_ann!J65","v":0},{"$f":"[1]ACS_16_5YR_B25075_with_ann!K65","v":12},{"$f":"[1]ACS_16_5YR_B25075_with_ann!L65","v":0},{"$f":"[1]ACS_16_5YR_B25075_with_ann!M65","v":12},{"$f":"[1]ACS_16_5YR_B25075_with_ann!N65","v":10},{"$f":"[1]ACS_16_5YR_B25075_with_ann!O65","v":15},{"$f":"[1]ACS_16_5YR_B25075_with_ann!P65","v":0},{"$f":"[1]ACS_16_5YR_B25075_with_ann!Q65","v":12},{"$f":"[1]ACS_16_5YR_B25075_with_ann!R65","v":0},{"$f":"[1]ACS_16_5YR_B25075_with_ann!S65","v":12},{"$f":"[1]ACS_16_5YR_B25075_with_ann!T65","v":3},{"$f":"[1]ACS_16_5YR_B25075_with_ann!U65","v":5},{"$f":"[1]ACS_16_5YR_B25075_with_ann!V65","v":0},{"$f":"[1]ACS_16_5YR_B25075_with_ann!W65","v":12},{"$f":"[1]ACS_16_5YR_B25075_with_ann!X65","v":0},{"$f":"[1]ACS_16_5YR_B25075_with_ann!Y65","v":12},{"$f":"[1]ACS_16_5YR_B25075_with_ann!Z65","v":0},{"$f":"[1]ACS_16_5YR_B25075_with_ann!AA65","v":12},{"$f":"[1]ACS_16_5YR_B25075_with_ann!AB65","v":0},{"$f":"[1]ACS_16_5YR_B25075_with_ann!AC65","v":12},{"$f":"[1]ACS_16_5YR_B25075_with_ann!AD65","v":0},{"$f":"[1]ACS_16_5YR_B25075_with_ann!AE65","v":12},{"$f":"[1]ACS_16_5YR_B25075_with_ann!AF65","v":6},{"$f":"[1]ACS_16_5YR_B25075_with_ann!AG65","v":7},{"$f":"[1]ACS_16_5YR_B25075_with_ann!AH65","v":2},{"$f":"[1]ACS_16_5YR_B25075_with_ann!AI65","v":5},{"$f":"[1]ACS_16_5YR_B25075_with_ann!AJ65","v":22},{"$f":"[1]ACS_16_5YR_B25075_with_ann!AK65","v":22},{"$f":"[1]ACS_16_5YR_B25075_with_ann!AL65","v":9},{"$f":"[1]ACS_16_5YR_B25075_with_ann!AM65","v":9},{"$f":"[1]ACS_16_5YR_B25075_with_ann!AN65","v":172},{"$f":"[1]ACS_16_5YR_B25075_with_ann!AO65","v":63},{"$f":"[1]ACS_16_5YR_B25075_with_ann!AP65","v":151},{"$f":"[1]ACS_16_5YR_B25075_with_ann!AQ65","v":60},{"$f":"[1]ACS_16_5YR_B25075_with_ann!AR65","v":260},{"$f":"[1]ACS_16_5YR_B25075_with_ann!AS65","v":139},{"$f":"[1]ACS_16_5YR_B25075_with_ann!AT65","v":87},{"$f":"[1]ACS_16_5YR_B25075_with_ann!AU65","v":44},{"$f":"[1]ACS_16_5YR_B25075_with_ann!AV65","v":25},{"$f":"[1]ACS_16_5YR_B25075_with_ann!AW65","v":18},{"$f":"[1]ACS_16_5YR_B25075_with_ann!AX65","v":37},{"$f":"[1]ACS_16_5YR_B25075_with_ann!AY65","v":25},{"$f":"[1]ACS_16_5YR_B25075_with_ann!AZ65","v":3},{"$f":"[1]ACS_16_5YR_B25075_with_ann!BA65","v":5},{"$f":"[1]ACS_16_5YR_B25075_with_ann!BB65","v":0},{"$f":"[1]ACS_16_5YR_B25075_with_ann!BC65","v":12},{"$f":"[1]ACS_16_5YR_B25075_with_ann!BD65","v":0},{"$f":"[1]ACS_16_5YR_B25075_with_ann!BE65","v":12},{"$f":"[1]ACS_16_5YR_B25077_with_ann!D65","v":307100},{"$f":"[1]ACS_16_5YR_B25077_with_ann!E65","v":28100},null,{"$f":"[1]ACS_16_5YR_B25075_with_ann!C65","v":"Westmoreland"}]
["06000US3300585540","0600000US3300500820","060",null,{"$f":"[1]ACS_16_5YR_B25075_with_ann!D66","v":1052},{"$f":"[1]ACS_16_5YR_B25075_with_ann!E66","v":163},{"$f":"[1]ACS_16_5YR_B25075_with_ann!F66","v":6},{"$f":"[1]ACS_16_5YR_B25075_with_ann!G66","v":11},{"$f":"[1]ACS_16_5YR_B25075_with_ann!H66","v":17},{"$f":"[1]ACS_16_5YR_B25075_with_ann!I66","v":20},{"$f":"[1]ACS_16_5YR_B25075_with_ann!J66","v":14},{"$f":"[1]ACS_16_5YR_B25075_with_ann!K66","v":22},{"$f":"[1]ACS_16_5YR_B25075_with_ann!L66","v":14},{"$f":"[1]ACS_16_5YR_B25075_with_ann!M66","v":16},{"$f":"[1]ACS_16_5YR_B25075_with_ann!N66","v":0},{"$f":"[1]ACS_16_5YR_B25075_with_ann!O66","v":12},{"$f":"[1]ACS_16_5YR_B25075_with_ann!P66","v":54},{"$f":"[1]ACS_16_5YR_B25075_with_ann!Q66","v":43},{"$f":"[1]ACS_16_5YR_B25075_with_ann!R66","v":26},{"$f":"[1]ACS_16_5YR_B25075_with_ann!S66","v":33},{"$f":"[1]ACS_16_5YR_B25075_with_ann!T66","v":17},{"$f":"[1]ACS_16_5YR_B25075_with_ann!U66","v":20},{"$f":"[1]ACS_16_5YR_B25075_with_ann!V66","v":0},{"$f":"[1]ACS_16_5YR_B25075_with_ann!W66","v":12},{"$f":"[1]ACS_16_5YR_B25075_with_ann!X66","v":0},{"$f":"[1]ACS_16_5YR_B25075_with_ann!Y66","v":12},{"$f":"[1]ACS_16_5YR_B25075_with_ann!Z66","v":24},{"$f":"[1]ACS_16_5YR_B25075_with_ann!AA66","v":28},{"$f":"[1]ACS_16_5YR_B25075_with_ann!AB66","v":23},{"$f":"[1]ACS_16_5YR_B25075_with_ann!AC66","v":28},{"$f":"[1]ACS_16_5YR_B25075_with_ann!AD66","v":26},{"$f":"[1]ACS_16_5YR_B25075_with_ann!AE66","v":26},{"$f":"[1]ACS_16_5YR_B25075_with_ann!AF66","v":64},{"$f":"[1]ACS_16_5YR_B25075_with_ann!AG66","v":41},{"$f":"[1]ACS_16_5YR_B25075_with_ann!AH66","v":71},{"$f":"[1]ACS_16_5YR_B25075_with_ann!AI66","v":54},{"$f":"[1]ACS_16_5YR_B25075_with_ann!AJ66","v":123},{"$f":"[1]ACS_16_5YR_B25075_with_ann!AK66","v":62},{"$f":"[1]ACS_16_5YR_B25075_with_ann!AL66","v":84},{"$f":"[1]ACS_16_5YR_B25075_with_ann!AM66","v":48},{"$f":"[1]ACS_16_5YR_B25075_with_ann!AN66","v":220},{"$f":"[1]ACS_16_5YR_B25075_with_ann!AO66","v":104},{"$f":"[1]ACS_16_5YR_B25075_with_ann!AP66","v":179},{"$f":"[1]ACS_16_5YR_B25075_with_ann!AQ66","v":78},{"$f":"[1]ACS_16_5YR_B25075_with_ann!AR66","v":37},{"$f":"[1]ACS_16_5YR_B25075_with_ann!AS66","v":32},{"$f":"[1]ACS_16_5YR_B25075_with_ann!AT66","v":39},{"$f":"[1]ACS_16_5YR_B25075_with_ann!AU66","v":33},{"$f":"[1]ACS_16_5YR_B25075_with_ann!AV66","v":0},{"$f":"[1]ACS_16_5YR_B25075_with_ann!AW66","v":12},{"$f":"[1]ACS_16_5YR_B25075_with_ann!AX66","v":0},{"$f":"[1]ACS_16_5YR_B25075_with_ann!AY66","v":12},{"$f":"[1]ACS_16_5YR_B25075_with_ann!AZ66","v":0},{"$f":"[1]ACS_16_5YR_B25075_with_ann!BA66","v":12},{"$f":"[1]ACS_16_5YR_B25075_with_ann!BB66","v":0},{"$f":"[1]ACS_16_5YR_B25075_with_ann!BC66","v":12},{"$f":"[1]ACS_16_5YR_B25075_with_ann!BD66","v":14},{"$f":"[1]ACS_16_5YR_B25075_with_ann!BE66","v":17},{"$f":"[1]ACS_16_5YR_B25077_with_ann!D66","v":189000},{"$f":"[1]ACS_16_5YR_B25077_with_ann!E66","v":26817},null,{"$f":"[1]ACS_16_5YR_B25075_with_ann!C66","v":"Winchester"}]
[]
[]
[null,null,null,null,null,null,null,null,null,null,null,null,null,null,null,null,null,null,null,null,null,null,null,null,null,null,null,null,null,null,null,null,null,null,null,null,null,null,null,null,null,null,{"$f":"$BJ$22","v":"Troy"},null,{"$f":"$BJ$23","v":"Walpole"},null,{"$f":"$BJ$24","v":"Westmoreland"},null,{"$f":"$BJ$25","v":"Winchester"}]
[null,null,null,null,{"$f":"$BJ$3","v":"Alstead"},null,{"$f":"$BJ$4","v":"Chesterfield"},null,{"$f":"$BJ$5","v":"Dublin"},null,{"$f":"$BJ$6","v":"Fitzwilliam"},null,{"$f":"$BJ$7","v":"Gilsum"},null,{"$f":"$BJ$8","v":"Harrisville"},null,{"$f":"$BJ$9","v":"Hinsdale"},null,{"$f":"$BJ$10","v":"Jaffrey"},null,{"$f":"$BJ$11","v":"Keene"},null,{"$f":"$BJ$12","v":"Marlborough"},null,{"$f":"$BJ$13","v":"Marlow"},null,{"$f":"$BJ$14","v":"Nelson"},null,{"$f":"$BJ$15","v":"Richmond"},null,{"$f":"$BJ$16","v":"Rindge"},null,{"$f":"$BJ$17","v":"Roxbury"},null,{"$f":"$BJ$18","v":"Stoddard"},null,{"$f":"$BJ$19","v":"Sullivan"},null,{"$f":"$BJ$20","v":"Surry"},null,{"$f":"$BJ$21","v":"Swanzey"},null,{"$f":"$BJ$21","v":"Swanzey"},null,{"$f":"$BJ$21","v":"Swanzey"},null,{"$f":"$BJ$21","v":"Swanzey"},null,{"$f":"$BJ$21","v":"Swanzey"}]
[null,null,null,null,"Estimate","Margin of Error","Estimate","Margin of Error","Estimate","Margin of Error","Estimate","Margin of Error","Estimate","Margin of Error","Estimate","Margin of Error","Estimate","Margin of Error","Estimate","Margin of Error","Estimate","Margin of Error","Estimate","Margin of Error","Estimate","Margin of Error","Estimate","Margin of Error","Estimate","Margin of Error","Estimate","Margin of Error","Estimate","Margin of Error","Estimate","Margin of Error","Estimate","Margin of Error","Estimate","Margin of Error","Estimate","Margin of Error"]
[null,null,null,"Estimate!!Total:",507,86,1212,190,517,86,929,151,275,45,398,62,1309,163,1527,249,4957,360,633,101,270,55,223,40,381,68,1564,145,93,38,383,49,230,39,302,57,2062,206,540,108,926,134,742,151,1011,128]
[null,null,null,"Estimate!!Total:!!Less than $10,000",13,21,0,12,0,12,0,12,0,12,3,5,0,12,0,17,101,106,6,8,0,12,0,12,0,12,11,17,0,12,0,12,0,12,2,3,0,17,29,36,7,11,0,12,8,13]
[null,null,null,"Estimate!!Total:!!$10,00 to $14,999",5,7,0,12,0,12,0,12,0,12,6,8,74,74,0,17,102,94,5,9,0,12,0,12,0,12,0,17,0,12,0,12,0,12,0,12,0,17,0,12,7,13,0,12,35,35]
[null,null,null,"Estimate!!Total:!!$15,000 to $19,999",5,6,0,12,1,2,0,12,2,3,0,12,55,42,0,17,0,22,6,9,0,12,0,12,0,12,0,17,2,3,0,12,3,4,0,12,15,25,0,12,0,12,0,12,21,26]
[null,null,null,"Estimate!!Total:!!$20,000 to $24,999",7,8,0,12,0,12,0,12,0,12,3,4,44,42,0,17,32,32,0,12,0,12,3,4,2,3,0,17,0,12,0,12,1,2,0,12,0,17,0,12,0,12,0,12,11,14]
[null,null,null,"Estimate!!Total:!!$25,000 to $29,999",0,12,15,23,44,67,0,12,0,12,0,12,30,28,0,17,14,20,17,23,0,12,1,2,2,4,0,17,0,12,0,12,9,13,0,12,0,17,0,12,0,12,0,12,32,34]
[null,null,null,"Estimate!!Total:!!$30,000 to $34,999",0,12,0,12,0,12,0,12,0,12,0,12,53,48,25,29,133,123,0,12,0,12,0,12,0,12,0,17,0,12,0,12,0,12,0,12,93,89,0,12,0,12,0,12,44,39]
[null,null,null,"Estimate!!Total:!!$35,000 to $39,999",0,12,0,12,0,12,0,12,0,12,0,12,9,15,0,17,22,39,0,12,0,12,0,12,0,12,0,17,0,12,0,12,0,12,0,12,117,81,0,12,0,12,0,12,0,12]
[null,null,null,"Estimate!!Total:!!$40,000 to $49,999",16,21,0,12,0,12,4,5,0,12,0,12,0,12,0,17,0,22,10,11,0,12,0,12,2,3,34,40,0,12,0,12,4,4,0,12,17,35,6,8,5,9,0,12,12,17]
[null,null,null,"Estimate!!Total:!!$50,000 to $59,999",0,12,15,23,0,12,6,8,2,3,0,12,9,14,0,17,0,22,0,12,0,12,0,12,0,12,9,13,0,12,3,4,10,10,0,12,15,25,0,12,6,10,0,12,0,12]
[null,null,null,"Estimate!!Total:!!$60,000 to $69,999",15,20,18,28,0,12,17,24,5,8,0,12,33,33,0,17,4,8,0,12,0,12,0,12,0,12,15,24,2,4,0,12,3,5,2,3,35,49,7,11,7,10,3,5,0,12]
[null,null,null,"Estimate!!Total:!!$70,000 to $79,999",0,12,0,12,0,12,4,5,16,13,0,12,24,23,0,17,31,26,17,22,0,12,2,3,0,12,16,19,0,12,0,12,0,12,0,12,0,17,0,12,28,33,0,12,28,24]
[null,null,null,"Estimate!!Total:!!$80,000 to $89,999",20,15,0,12,0,12,22,22,8,8,5,9,20,21,14,22,26,32,8,14,1,4,0,12,3,4,5,9,0,12,4,5,4,5,0,12,15,24,33,29,6,9,0,12,37,34]
[null,null,null,"Estimate!!Total:!!$90,000 to $99,999",2,3,60,72,9,8,4,7,11,12,0,12,45,51,10,21,48,38,6,8,4,5,0,12,5,7,7,12,1,2,12,13,0,12,2,3,22,38,29,29,0,12,0,12,35,29]
[null,null,null,"Estimate!!Total:!!$100,000 to $124,999",63,59,18,28,5,6,43,31,12,8,7,12,70,60,59,47,221,109,29,27,24,14,12,13,13,15,36,35,2,4,8,6,15,10,17,14,85,55,47,31,17,16,8,8,55,44]
[null,null,null,"Estimate!!Total:!!$125,000 to $149,999",6,9,51,47,11,13,89,92,20,14,15,14,189,94,54,47,313,127,39,23,18,13,8,8,14,9,24,23,15,10,15,13,23,17,11,8,123,75,81,42,86,52,22,20,168,94]
[null,null,null,"Estimate!!Total:!!$150,000 to $174,999",54,31,94,77,9,7,93,40,27,15,30,17,236,123,489,277,879,267,49,30,40,18,21,11,62,30,107,55,12,8,43,21,28,12,38,21,305,105,95,40,33,27,19,13,85,58]
[null,null,null,"Estimate!!Total:!!$175,000 to $199,999",43,35,119,77,29,21,69,33,46,25,18,15,67,58,239,143,752,233,73,43,28,18,17,15,25,14,96,51,2,6,41,21,34,15,51,32,185,101,76,45,135,74,50,31,91,52]
[null,null,null,"Estimate!!Total:!!$200,000 to $249,999",70,32,228,123,54,25,206,74,53,20,78,31,226,158,277,126,1048,229,120,70,33,21,28,15,88,39,352,96,6,5,56,22,50,28,50,22,482,180,74,39,115,60,131,60,240,107]
[null,null,null,"Estimate!!Total:!!$250,000 to $299,999",73,27,150,114,73,31,212,67,47,21,72,32,85,58,252,127,493,131,86,45,24,17,26,15,96,41,383,95,10,7,72,23,23,10,54,28,320,173,15,13,132,57,185,83,58,45]
[null,null,null,"Estimate!!Total:!!$300,000 to $399,999",85,28,323,158,140,40,81,36,19,8,43,22,24,27,62,49,459,149,100,48,75,42,40,17,52,28,184,87,3,4,88,34,7,5,44,25,233,93,32,21,237,105,220,116,28,24]
[null,null,null,"Estimate!!Total:!!$400,000 to $499,999",21,13,71,87,31,17,61,35,4,6,68,39,0,12,46,55,231,109,46,31,17,13,16,12,15,13,153,86,2,4,26,18,5,8,20,16,0,17,2,5,39,39,41,24,23,26]
[null,null,null,"Estimate!!Total:!!$500,000 to $749,999",0,12,50,48,49,22,15,18,3,4,25,14,16,24,0,17,34,30,11,12,2,3,18,12,2,4,100,48,31,35,9,9,6,7,9,6,0,17,9,13,35,32,34,22,0,12]
[null,null,null,"Estimate!!Total:!!$750,000 to $999,999",9,9,0,12,41,53,3,5,0,12,24,16,0,12,0,17,10,17,5,8,0,12,18,12,0,12,11,16,0,12,3,4,0,12,0,12,0,17,0,12,31,30,29,21,0,12]
[null,null,null,"Estimate!!Total:!!$1,000,000 to $1,499,999",0,12,0,12,21,19,0,12,0,12,1,4,0,12,0,17,0,22,0,12,0,12,11,10,0,12,0,17,2,3,3,4,0,12,0,12,0,17,5,8,0,12,0,12,0,12]
[null,null,null,"Estimate!!Total:!!$1,500,000 to $1,999,999",0,12,0,12,0,12,0,12,0,12,0,12,0,12,0,17,0,22,0,12,0,12,2,4,0,12,11,17,0,12,0,12,0,12,2,4,0,17,0,12,0,12,0,12,0,12]
[null,null,null,"Estimate!!Total:!!$2,000,000 or more",0,12,0,12,0,12,0,12,0,12,0,12,0,12,0,17,4,7,0,12,4,4,0,12,0,12,10,17,3,4,0,12,5,8,0,12,0,17,0,12,0,12,0,12,0,12]
[]
["Table B25077"]
[null,null,null,null,{"$f":"$BJ$3","v":"Alstead"},null,{"$f":"$BJ$4","v":"Chesterfield"},null,{"$f":"$BJ$5","v":"Dublin"},null,{"$f":"$BJ$6","v":"Fitzwilliam"},null,{"$f":"$BJ$7","v":"Gilsum"},null,{"$f":"$BJ$8","v":"Harrisville"},null,{"$f":"$BJ$9","v":"Hinsdale"},null,{"$f":"$BJ$10","v":"Jaffrey"},null,{"$f":"$BJ$11","v":"Keene"},null,{"$f":"$BJ$12","v":"Marlborough"},null,{"$f":"$BJ$13","v":"Marlow"}]
[null,null,null,null,"Estimate","Margin of Error","Estimate","Margin of Error","Estimate","Margin of Error","Estimate","Margin of Error","Estimate","Margin of Error","Estimate","Margin of Error","Estimate","Margin of Error","Estimate","Margin of Error","Estimate","Margin of Error","Estimate","Margin of Error","Estimate","Margin of Error"]
[]
[null,null,null,"Estimate!!Median value (dollars)",203200,30561,247400,39006,316800,42520,227500,17369,193800,15353,273600,25406,149900,15993,186800,20134,193400,8484,221500,21036,230300,41355,287500,53368,235500,21424,259100,12497,272500,237632,256600,22963,186000,16421,228000,25902,200400,19507,160000,15245,254200,36839,287300,19320,155700,26376]

{"sheet":"PlaceOfBirthAndPriorRes","index":100,"n_rows":57,"n_cols":16,"rows_kept":57,"cut":false,"hidden":true,"merged":[[40,11,40,13],[53,2,54,14],[4,3,4,5],[4,7,4,9],[40,3,40,5],[40,7,40,9],[4,11,4,13],[4,14,4,15],[40,14,40,15]]}
[]
[null,null,{"$f":"CntyDataLink!A50","v":"Dublin"}]
[null,null,"SOCIAL CHARACTERISTICS"]
[]
[null,null,"Place of Birth","2008-2012",null,null,null,"2013-2017",null,null,null,"2018-2022",null,null,"Statistically Significant Change "]
[null,null,"Universe: Total Population","Estimate","Margin of Error",null,null,"Estimate","Margin of Error",null,null,"Estimate","Margin of Error",null,"2011-2021","2016-2021"]
[null,null,"  Total:",{"$f":"CntyDataLinkPrior10YearEstimate!$B$136","v":4332},{"$f":"CntyDataLinkPrior10YearEstimate!$C$136","v":18},null,null,{"$f":"CntyDataLinkPrior5YearEstimates!$B$136","v":4221},{"$f":"CntyDataLinkPrior5YearEstimates!$C$136","v":15},null,null,{"$f":"CntyDataLink!$B$136","v":4171},{"$f":"CntyDataLink!$C$136","v":17}]
[null,null,"   United States Native",{"$f":"CntyDataLinkPrior10YearEstimate!$D$136","v":4255},{"$f":"CntyDataLinkPrior10YearEstimate!$E$136","v":72},{"$f":"D8/$D$7","v":0.98222530009233611},null,{"$f":"CntyDataLinkPrior5YearEstimates!$D$136","v":4160},{"$f":"CntyDataLinkPrior5YearEstimates!$E$136","v":72},{"$f":"H8/$H$7","v":0.98554844823501542},null,{"$f":"CntyDataLink!$D$136","v":4116},{"$f":"CntyDataLink!$E$136","v":44},{"$f":"L8/$L$7","v":0.98681371373771276},{"$f":"StatisticallySignificantCalcs!A26","v":"Y"},{"$f":"StatisticallySignificantCalcs!J26","v":"N"}]
[null,null,"      New Hampshire Native",{"$f":"CntyDataLinkPrior10YearEstimate!$F$136","v":1991},{"$f":"CntyDataLinkPrior10YearEstimate!$G$136","v":227},{"$f":"D9/$D$7","v":0.45960295475530932},null,{"$f":"CntyDataLinkPrior5YearEstimates!$F$136","v":2189},{"$f":"CntyDataLinkPrior5YearEstimates!$G$136","v":213},{"$f":"H9/$H$7","v":0.5185974887467425},null,{"$f":"CntyDataLink!$F$136","v":2065},{"$f":"CntyDataLink!$G$136","v":291},{"$f":"L9/$L$7","v":0.49508511148405659},{"$f":"StatisticallySignificantCalcs!A27","v":"N"},{"$f":"StatisticallySignificantCalcs!J27","v":"N"}]
[null,null,"      Born in Different State",{"$f":"CntyDataLinkPrior10YearEstimate!$H$136","v":2203},{"$f":"CntyDataLinkPrior10YearEstimate!$I$136","v":237},0.50854108956602029,null,{"$f":"CntyDataLinkPrior5YearEstimates!$H$136","v":1948},{"$f":"CntyDataLinkPrior5YearEstimates!$I$136","v":196},0.46150201374081973,null,{"$f":"CntyDataLink!$H$136","v":2051},{"$f":"CntyDataLink!$I$136","v":291},0.49172860225365622,{"$f":"StatisticallySignificantCalcs!A28","v":"N"},{"$f":"StatisticallySignificantCalcs!J28","v":"N"}]
[null,null,"          Northeast",{"$f":"CntyDataLinkPrior10YearEstimate!$J$136","v":1860},{"$f":"CntyDataLinkPrior10YearEstimate!$K$136","v":213},0.4293628808864266,null,{"$f":"CntyDataLinkPrior5YearEstimates!$J$136","v":1729},{"$f":"CntyDataLinkPrior5YearEstimates!$K$136","v":206},0.4096185737976783,null,{"$f":"CntyDataLink!$J$136","v":1822},{"$f":"CntyDataLink!$K$136","v":274},0.43682570127067849,{"$f":"StatisticallySignificantCalcs!A29","v":"N"},{"$f":"StatisticallySignificantCalcs!J29","v":"N"}]
[null,null,"          Midwest",{"$f":"CntyDataLinkPrior10YearEstimate!$L$136","v":154},{"$f":"CntyDataLinkPrior10YearEstimate!$M$136","v":78},3.5549399815327794E-2,null,{"$f":"CntyDataLinkPrior5YearEstimates!$L$136","v":55},{"$f":"CntyDataLinkPrior5YearEstimates!$M$136","v":40},1.3030087656953328E-2,null,{"$f":"CntyDataLink!$L$136","v":150},{"$f":"CntyDataLink!$M$136","v":99},3.5962598897146966E-2,{"$f":"StatisticallySignificantCalcs!A30","v":"N"},{"$f":"StatisticallySignificantCalcs!J30","v":"N"}]
[null,null,"          South",{"$f":"CntyDataLinkPrior10YearEstimate!$N$136","v":110},{"$f":"CntyDataLinkPrior10YearEstimate!$O$136","v":75},2.5392428439519853E-2,null,{"$f":"CntyDataLinkPrior5YearEstimates!$N$136","v":99},{"$f":"CntyDataLinkPrior5YearEstimates!$O$136","v":88},2.3454157782515993E-2,null,{"$f":"CntyDataLink!$N$136","v":71},{"$f":"CntyDataLink!$O$136","v":88},1.7022296811316232E-2,{"$f":"StatisticallySignificantCalcs!A31","v":"N"},{"$f":"StatisticallySignificantCalcs!J31","v":"N"}]
[null,null,"          West",{"$f":"CntyDataLinkPrior10YearEstimate!$P$136","v":79},{"$f":"CntyDataLinkPrior10YearEstimate!$Q$136","v":44},1.8236380424746075E-2,null,{"$f":"CntyDataLinkPrior5YearEstimates!$P$136","v":65},{"$f":"CntyDataLinkPrior5YearEstimates!$Q$136","v":81},1.5399194503672116E-2,null,{"$f":"CntyDataLink!$P$136","v":8},{"$f":"CntyDataLink!$Q$136","v":12},1.9180052745145048E-3,{"$f":"StatisticallySignificantCalcs!A32","v":"Y"},{"$f":"StatisticallySignificantCalcs!J32","v":"N"}]
[null,null,"      Native Born Outside US",{"$f":"CntyDataLinkPrior10YearEstimate!$R136","v":61},{"$f":"CntyDataLinkPrior10YearEstimate!$S$136","v":55},1.4081255771006464E-2,null,{"$f":"CntyDataLinkPrior5YearEstimates!$R136","v":23},{"$f":"CntyDataLinkPrior5YearEstimates!$S$136","v":24},5.4489457474532097E-3,null,{"$f":"CntyDataLink!$R136","v":0},{"$f":"CntyDataLink!$S$136","v":12},0,{"$f":"StatisticallySignificantCalcs!A33","v":"Y"},{"$f":"StatisticallySignificantCalcs!J33","v":"N"}]
[null,null,"   Foreign Born",{"$f":"CntyDataLinkPrior10YearEstimate!$Z136","v":77},{"$f":"CntyDataLinkPrior10YearEstimate!$AA$136","v":68},1.7774699907663897E-2,null,{"$f":"CntyDataLinkPrior5YearEstimates!$Z136","v":61},{"$f":"CntyDataLinkPrior5YearEstimates!$AA$136","v":71},1.44515517649846E-2,null,{"$f":"CntyDataLink!$Z136","v":55},{"$f":"CntyDataLink!$AA$136","v":42},1.3186286262287222E-2,{"$f":"StatisticallySignificantCalcs!A34","v":"N"},{"$f":"StatisticallySignificantCalcs!J34","v":"N"}]
[null,null,"      Naturalized Citizen",{"$f":"CntyDataLinkPrior10YearEstimate!$AB136","v":27},{"$f":"CntyDataLinkPrior10YearEstimate!$AC$136","v":30},{"$f":"D17/$L$7","v":6.473267801486454E-3},null,{"$f":"CntyDataLinkPrior5YearEstimates!$AB136","v":42},{"$f":"CntyDataLinkPrior5YearEstimates!$AC$136","v":45},9.9502487562189053E-3,null,{"$f":"CntyDataLink!$AB136","v":55},{"$f":"CntyDataLink!$AC$136","v":42},1.3186286262287222E-2,{"$f":"StatisticallySignificantCalcs!A35","v":"N"},{"$f":"StatisticallySignificantCalcs!J35","v":"N"}]
[null,null,"      Not a Citizen",{"$f":"CntyDataLinkPrior10YearEstimate!$AD$136","v":50},{"$f":"CntyDataLinkPrior10YearEstimate!$AE$136","v":48},{"$f":"D18/$L$7","v":1.1987532965715655E-2},null,{"$f":"CntyDataLinkPrior5YearEstimates!$AD$136","v":19},{"$f":"CntyDataLinkPrior5YearEstimates!$AE$136","v":32},4.5013030087656955E-3,null,{"$f":"CntyDataLink!$AD$136","v":0},{"$f":"CntyDataLink!$AE$136","v":12},0,{"$f":"StatisticallySignificantCalcs!A36","v":"Y"},{"$f":"StatisticallySignificantCalcs!J36","v":"N"}]
[null,null,null,{"$f":"\"Source: \"&D41&\", \"&H41&\" and \"&L41& \" American Community Survey Table B05002.\"","v":"Source: 2008-2012, 2013-2017 and 2018-2022 American Community Survey Table B05002."}]
[]
[]
[]
[]
[]
[]
[]
[]
[]
[]
[]
[]
[]
[]
[]
[]
[]
[]
[]
[]
[null,null,"Place of Residence Prior year for Population"]
[null,null,"Universe: Population",{"$f":"D5","v":"2008-2012"},null,null,null,{"$f":"$H$5","v":"2013-2017"},null,null,null,{"$f":"$L$5","v":"2018-2022"},null,null,"Statistically Significant Change "]
[null,null,null,"Estimate","Margin of Error",null,null,"Estimate","Margin of Error",null,null,"Estimate","Margin of Error",null,{"$f":"O6","v":"2011-2021"},"2016-2021"]
[null,null,"  Total:",{"$f":"CntyDataLinkPrior10YearEstimate!$AF$136","v":4238},{"$f":"CntyDataLinkPrior10YearEstimate!$AG$136","v":77},null,null,{"$f":"CntyDataLinkPrior5YearEstimates!$AF$136","v":4179},{"$f":"CntyDataLinkPrior5YearEstimates!$AG$136","v":40},null,null,{"$f":"CntyDataLink!$AF$136","v":4122},{"$f":"CntyDataLink!$AG$136","v":51},null,{"$f":"StatisticallySignificantCalcs!$A37","v":"N"},{"$f":"StatisticallySignificantCalcs!$J37","v":"N"}]
["Same House",null,"    Same House ",{"$f":"CntyDataLinkPrior10YearEstimate!$AH$136","v":3620},{"$f":"CntyDataLinkPrior10YearEstimate!$AI$136","v":310},{"$f":"IF($D$44=\"-\",\"-\",VALUE(D44/$D$43))","v":0.85417649834827747},null,{"$f":"CntyDataLinkPrior5YearEstimates!$AH$136","v":3590},{"$f":"CntyDataLinkPrior5YearEstimates!$AI$136","v":329},{"$f":"IF($H$44=\"-\",\"-\",VALUE(H44/$H$43))","v":0.85905719071548214},null,{"$f":"CntyDataLink!$AH$136","v":3303},{"$f":"CntyDataLink!$AI$136","v":392},{"$f":"IF($L$44=\"-\",\"-\",VALUE(L44/$L$43))","v":0.80131004366812231},{"$f":"StatisticallySignificantCalcs!$A38","v":"N"},{"$f":"StatisticallySignificantCalcs!$J38","v":"N"}]
["Different House",null,"    Different House 1  ",{"$f":"CntyDataLinkPrior10YearEstimate!$AJ$136","v":618},{"$f":"CntyDataLinkPrior10YearEstimate!$AK$136","v":315.52337472840264},{"$f":"IF($D$44=\"-\",\"-\",VALUE(D45/$D$43))","v":0.1458235016517225},null,{"$f":"CntyDataLinkPrior5YearEstimates!$AJ$136","v":589},{"$f":"CntyDataLinkPrior5YearEstimates!$AK$136","v":311.56219282833405},{"$f":"IF($H$44=\"-\",\"-\",VALUE(H45/$H$43))","v":0.14094280928451783},null,{"$f":"CntyDataLink!$AJ$136","v":819},{"$f":"CntyDataLink!$AK$136","v":389.8640788787805},{"$f":"IF($L$44=\"-\",\"-\",VALUE(L45/$L$43))","v":0.19868995633187772},{"$f":"StatisticallySignificantCalcs!$A39","v":"N"},{"$f":"StatisticallySignificantCalcs!$J39","v":"N"}]
[null,null,"      in New Hampshire",{"$f":"CntyDataLinkPrior10YearEstimate!$AL$136","v":497},{"$f":"CntyDataLinkPrior10YearEstimate!$AM$136","v":307.19700519373555},0.11727229825389335,null,{"$f":"CntyDataLinkPrior5YearEstimates!$AL$136","v":582},{"$f":"CntyDataLinkPrior5YearEstimates!$AM$136","v":311.20732639190874},0.13926776740847094,null,{"$f":"CntyDataLink!$AL$136","v":628},{"$f":"CntyDataLink!$AM$136","v":354.8647629731642},0.15235322658903444,{"$f":"StatisticallySignificantCalcs!$A40","v":"N"},{"$f":"StatisticallySignificantCalcs!$J40","v":"N"}]
[null,null,"          Same county",{"$f":"CntyDataLinkPrior10YearEstimate!$AN$136","v":497},{"$f":"CntyDataLinkPrior10YearEstimate!$AO$136","v":307},0.11727229825389335,null,{"$f":"CntyDataLinkPrior5YearEstimates!$AN$136","v":535},{"$f":"CntyDataLinkPrior5YearEstimates!$AO$136","v":307},0.12802105766929889,null,{"$f":"CntyDataLink!$AN$136","v":575},{"$f":"CntyDataLink!$AO$136","v":352},0.13949539058709365,{"$f":"StatisticallySignificantCalcs!$A41","v":"N"},{"$f":"StatisticallySignificantCalcs!$J41","v":"N"}]
[null,null,"          Different county",{"$f":"CntyDataLinkPrior10YearEstimate!$AP$136","v":0},{"$f":"CntyDataLinkPrior10YearEstimate!$AQ$136","v":11},0,null,{"$f":"CntyDataLinkPrior5YearEstimates!$AP$136","v":47},{"$f":"CntyDataLinkPrior5YearEstimates!$AQ$136","v":51},1.1246709739172051E-2,null,{"$f":"CntyDataLink!$AP$136","v":53},{"$f":"CntyDataLink!$AQ$136","v":45},1.2857836001940806E-2,{"$f":"StatisticallySignificantCalcs!$A42","v":"N"},{"$f":"StatisticallySignificantCalcs!$J42","v":"N"}]
["Different State",null,"      in Different state",{"$f":"CntyDataLinkPrior10YearEstimate!$AR$136","v":113},{"$f":"CntyDataLinkPrior10YearEstimate!$AS$136","v":71},2.6663520528551202E-2,null,{"$f":"CntyDataLinkPrior5YearEstimates!$AR$136","v":7},{"$f":"CntyDataLinkPrior5YearEstimates!$AS$136","v":10},1.6750418760469012E-3,null,{"$f":"CntyDataLink!$AR$136","v":191},{"$f":"CntyDataLink!$AS$136","v":161},4.633672974284328E-2,{"$f":"StatisticallySignificantCalcs!$A43","v":"Y"},{"$f":"StatisticallySignificantCalcs!$J43","v":"N"}]
["Eleswhere",null,"       Elsewhere",{"$f":"CntyDataLinkPrior10YearEstimate!$AT$136","v":8},{"$f":"CntyDataLinkPrior10YearEstimate!$AU$136","v":12},1.8876828692779614E-3,null,{"$f":"CntyDataLinkPrior5YearEstimates!$AT$136","v":0},{"$f":"CntyDataLinkPrior5YearEstimates!$AU$136","v":11},0,null,{"$f":"CntyDataLink!$AT$136","v":0},{"$f":"CntyDataLink!$AU$136","v":12},0,{"$f":"StatisticallySignificantCalcs!$A44","v":"N"},{"$f":"StatisticallySignificantCalcs!$J44","v":"N"}]
[]
[null,null,"Data from the American Community Survey are estimates"]
[]
[null,null,"1   The number for Different House was calculated by adding In New Hampshire, In Different State, and Elsewhere totals. The number is not located in the source Table B07003."]
[]
[]
[null,null,{"$f":"\"Source: \"&D41&\", \"&H41&\" and \"&L41& \" American Community Survey Table B07003.\"","v":"Source: 2008-2012, 2013-2017 and 2018-2022 American Community Survey Table B07003."}]

{"sheet":"ACS_Table_B05002","index":101,"n_rows":84,"n_cols":48,"rows_kept":84,"cut":false,"hidden":true,"merged":[]}
[null,"B05002. PLACE OF BIRTH BY CITIZENSHIP STATUS"]
[null,"Universe: TOTAL POPULATION"]
[null,"Data Set: 2018-2022 American Community Survey 5-Year Estimates"]
[]
[null,null,"Alstead",null,"Chesterfield",null,"Dublin",null,"Fitzwilliam",null,"Gilsum",null,"Harrisville",null,"Hinsdale",null,"Jaffrey",null,"Keene",null,"Marlborough",null,"Marlow",null,"Nelson",null,"Richmond",null,"Rindge",null,"Roxbury",null,"Stoddard",null,"Sullivan",null,"Surry",null,"Swanzey",null,"Troy",null,"Walpole",null,"Westmoreland",null,"Winchester"]
[null," ","Estimate","Margin of Error","Estimate","Margin of Error","Estimate","Margin of Error","Estimate","Margin of Error","Estimate","Margin of Error","Estimate","Margin of Error","Estimate","Margin of Error","Estimate","Margin of Error","Estimate","Margin of Error","Estimate","Margin of Error","Estimate","Margin of Error","Estimate","Margin of Error","Estimate","Margin of Error","Estimate","Margin of Error","Estimate","Margin of Error","Estimate","Margin of Error","Estimate","Margin of Error","Estimate","Margin of Error","Estimate","Margin of Error","Estimate","Margin of Error","Estimate","Margin of Error","Estimate","Margin of Error","Estimate","Margin of Error"]
[null,"Total:",1599,169,3577,15,1711,216,2287,368,871,144,977,197,3965,16,5363,32,22907,27,2253,391,803,175,550,106,1107,251,6446,21,295,142,1205,162,681,130,950,245,7306,22,1889,275,3651,33,2042,341,4175,25]
[null,"Native:",1564,172,3422,106,1653,212,2262,365,862,142,932,195,3948,33,5287,66,21955,241,2246,391,794,175,533,105,1086,253,6312,90,293,143,1182,159,649,124,947,244,7157,102,1864,276,3501,114,1983,340,4112,55]
[null,"Born in state of residence",717,132,1033,344,757,173,578,142,436,116,465,135,802,235,2874,491,10357,588,1483,338,340,116,231,64,460,165,1934,323,144,73,704,120,314,95,492,117,3894,401,997,240,1105,191,919,212,2128,281]
[null,"Born in other state in the United States:",832,116,2378,357,882,157,1684,319,426,74,447,95,2985,309,2355,474,11398,590,750,139,450,130,296,64,609,166,4309,316,149,78,478,79,298,51,448,182,3238,393,840,166,2369,212,1056,222,1984,278]
[null,"Northeast",729,117,1852,308,613,158,1438,306,315,59,301,74,2542,310,1737,459,8652,579,559,123,296,76,223,53,489,157,3612,339,147,78,379,76,234,44,367,180,2739,341,681,153,1862,218,884,213,1818,277]
[null,"Midwest",39,38,237,146,40,21,59,35,33,22,54,29,106,90,114,89,722,200,81,58,26,23,20,14,33,23,264,143,1,2,40,15,6,6,39,19,287,125,95,64,122,60,88,41,109,88]
[null,"South",46,22,203,108,164,69,80,47,33,26,49,28,210,87,214,127,1241,310,83,48,79,45,27,16,52,33,280,139,0,12,24,11,37,20,35,16,183,102,44,37,288,134,60,27,47,61]
[null,"West",18,14,86,74,65,28,107,49,45,23,43,28,127,118,290,181,783,221,27,26,49,40,26,14,35,27,153,70,1,2,35,28,21,15,7,7,29,37,20,16,97,63,24,19,10,15]
[null,"Born outside the United States:",15,23,11,19,14,20,0,12,0,12,20,22,161,167,58,76,200,125,13,17,4,5,6,6,17,17,69,59,0,12,0,12,37,27,7,7,25,48,27,30,27,30,8,8,0,12]
[null,"Puerto Rico",15,23,0,12,0,12,0,12,0,12,13,21,0,12,0,17,21,31,0,12,3,4,0,12,10,14,41,55,0,12,0,12,0,12,0,12,0,17,8,13,0,12,0,12,0,12]
[null,"U.S. Island Areas",0,12,0,12,10,20,0,12,0,12,0,12,0,12,0,17,2,4,0,12,1,2,0,12,3,4,5,11,0,12,0,12,0,12,0,12,0,17,0,12,0,12,0,12,0,12]
[null,"Born abroad of American parent(s)",0,12,11,19,4,5,0,12,0,12,7,7,161,167,58,76,177,120,13,17,0,12,6,6,4,10,23,30,0,12,0,12,37,27,7,7,25,48,19,26,27,30,8,8,0,12]
[null,"Foreign born:",35,23,155,106,58,34,25,41,9,7,45,20,17,28,76,57,952,245,7,10,9,7,17,16,21,15,134,88,2,5,23,17,32,31,3,4,149,101,25,26,150,107,59,57,63,47]
[null,"Naturalized U.S. citizen",20,17,61,45,54,33,20,40,8,7,32,18,17,28,54,48,528,180,1,2,9,7,14,16,18,14,58,62,2,5,10,10,9,9,3,4,117,94,17,29,142,106,18,13,63,47]
[null,"Europe",7,9,37,36,15,11,4,6,8,7,3,4,17,28,13,21,192,111,0,12,5,5,5,9,14,13,8,18,1,3,2,4,0,12,3,4,23,25,17,29,27,34,8,7,39,34]
[null,"Asia",13,15,0,12,25,22,13,39,0,12,3,11,0,12,40,47,223,149,1,2,0,12,0,12,0,12,25,39,0,12,8,8,7,9,0,12,76,86,0,12,0,12,5,9,15,22]
[null,"Africa",0,12,9,20,0,12,0,12,0,12,11,13,0,12,0,17,30,51,0,12,0,12,9,13,0,12,0,17,0,12,0,12,0,12,0,12,0,17,0,12,70,88,0,12,0,12]
[null,"Oceania",0,12,0,12,1,4,0,12,0,12,5,7,0,12,0,17,0,22,0,12,0,12,0,12,0,12,0,17,0,12,0,12,0,12,0,12,0,17,0,12,0,12,0,12,0,12]
[null,"Latin America",0,12,0,12,13,18,3,5,0,12,0,12,0,12,1,2,13,23,0,12,0,12,0,12,4,5,25,39,0,12,0,12,0,12,0,12,0,17,0,12,45,50,0,12,0,12]
[null,"Northern America",0,12,15,24,0,12,0,12,0,12,10,11,0,12,0,17,70,55,0,12,4,4,0,12,0,12,0,17,1,3,0,12,2,4,0,12,18,26,0,12,0,12,5,6,9,14]
[null,"Not a U.S. citizen",15,17,94,90,4,6,5,9,1,2,13,8,0,12,22,34,424,167,6,10,0,12,3,4,3,6,76,65,0,12,13,14,23,28,0,12,32,34,8,12,8,11,41,55,0,12]
[null,"Europe",0,12,67,77,4,6,5,9,0,12,13,8,0,12,22,34,105,69,6,10,0,12,3,4,3,6,10,18,0,12,2,3,0,12,0,12,17,26,0,12,8,11,39,55,0,12]
[null,"Asia",6,11,27,43,0,12,0,12,0,12,0,12,0,12,0,17,59,72,0,12,0,12,0,12,0,12,9,20,0,12,0,12,23,28,0,12,0,17,0,12,0,12,2,4,0,12]
[null,"Africa",0,12,0,12,0,12,0,12,0,12,0,12,0,12,0,17,132,84,0,12,0,12,0,12,0,12,4,7,0,12,0,12,0,12,0,12,15,22,0,12,0,12,0,12,0,12]
[null,"Oceania",0,12,0,12,0,12,0,12,0,12,0,12,0,12,0,17,0,22,0,12,0,12,0,12,0,12,0,17,0,12,0,12,0,12,0,12,0,17,8,12,0,12,0,12,0,12]
[null,"Latin America",0,12,0,12,0,12,0,12,0,12,0,12,0,12,0,17,72,79,0,12,0,12,0,12,0,12,13,22,0,12,0,12,0,12,0,12,0,17,0,12,0,12,0,12,0,12]
[null,"Northern America",9,13,0,12,0,12,0,12,1,2,0,12,0,12,0,17,56,70,0,12,0,12,0,12,0,12,40,53,0,12,11,13,0,12,0,12,0,17,0,12,0,12,0,12,0,12]
[]
[]
[]
[]
[]
[]
[null,"B05002. PLACE OF BIRTH BY CITIZENSHIP STATUS"]
[null,"Universe: TOTAL POPULATION"]
[null,"Data Set: 2013-2017 American Community Survey 5-Year Estimates"]
[]
[null,null,"Alstead",null,"Chesterfield",null,"Dublin",null,"Fitzwilliam",null,"Gilsum",null,"Harrisville",null,"Hinsdale",null,"Jaffrey",null,"Keene",null,"Marlborough",null,"Marlow",null,"Nelson",null,"Richmond",null,"Rindge",null,"Roxbury",null,"Stoddard",null,"Sullivan",null,"Surry",null,"Swanzey",null,"Troy",null,"Walpole",null,"Westmoreland",null,"Winchester"]
[null," ","Estimate","Margin of Error","Estimate","Margin of Error","Estimate","Margin of Error","Estimate","Margin of Error","Estimate","Margin of Error","Estimate","Margin of Error","Estimate","Margin of Error","Estimate","Margin of Error","Estimate","Margin of Error","Estimate","Margin of Error","Estimate","Margin of Error","Estimate","Margin of Error","Estimate","Margin of Error","Estimate","Margin of Error","Estimate","Margin of Error","Estimate","Margin of Error","Estimate","Margin of Error","Estimate","Margin of Error","Estimate","Margin of Error","Estimate","Margin of Error","Estimate","Margin of Error","Estimate","Margin of Error","Estimate","Margin of Error"]
[null,"Total:",1847,227,3566,15,1487,174,2294,213,702,80,913,140,3925,20,5314,26,23204,40,2125,297,708,115,575,94,1243,176,6005,33,216,57,1193,185,725,118,884,130,7169,37,2182,310,3809,18,1802,235,4221,15]
[null,"Native:",1811,221,3476,72,1451,179,2256,215,689,79,889,140,3858,56,5164,82,22144,287,2070,293,693,113,556,93,1221,176,5796,136,213,56,1170,184,715,115,872,128,6943,139,2075,309,3733,48,1751,226,4160,72]
[null,"Born in state of residence",606,126,1035,296,696,143,786,153,372,62,448,99,865,225,2415,311,10190,680,1215,248,273,72,264,77,593,152,1996,341,138,40,572,122,464,108,502,112,3816,441,1193,258,1317,171,766,152,2189,213]
[null,"Born in other state in the United States:",1205,178,2441,299,747,108,1465,166,317,55,431,89,2970,230,2749,303,11663,696,828,150,417,74,284,54,627,112,3771,340,75,28,595,121,237,50,367,71,3077,458,868,151,2348,168,962,139,1948,196]
[null,"Northeast",1020,170,1998,324,488,90,1258,165,227,38,354,87,2644,244,2209,284,9072,574,606,119,352,66,219,47,521,103,3088,341,65,24,414,96,177,35,290,66,2426,404,702,146,1969,200,730,112,1729,206]
[null,"Midwest",72,34,107,70,142,78,84,42,40,19,16,10,100,51,222,115,819,171,65,44,10,9,9,10,41,21,299,131,0,11,74,39,13,11,24,15,178,82,59,41,152,74,74,38,55,40]
[null,"South",82,37,183,109,86,31,61,26,24,15,32,18,169,89,223,107,982,296,81,46,40,20,33,16,43,25,265,111,6,7,64,42,32,17,23,16,275,149,62,39,126,74,135,48,99,88]
[null,"West",31,29,153,131,31,17,62,32,26,15,29,18,57,58,95,63,790,232,76,48,15,10,23,15,22,15,119,48,4,5,43,31,15,20,30,17,198,99,45,37,101,53,23,17,65,81]
[null,"Born outside the United States:",0,11,0,11,8,7,5,7,0,11,10,8,23,25,0,16,291,95,27,27,3,4,8,8,1,3,29,25,0,11,3,5,14,10,3,4,50,76,14,13,68,56,23,15,23,24]
[null,"Puerto Rico",0,11,0,11,0,11,0,11,0,11,3,5,10,16,0,16,23,26,0,11,0,11,0,11,0,11,0,16,0,11,0,11,0,11,0,11,0,16,0,11,0,11,0,11,0,11]
[null,"U.S. Island Areas",0,11,0,11,2,4,0,11,0,11,0,11,0,11,0,16,9,14,0,11,0,11,0,11,0,11,0,16,0,11,0,11,0,11,0,11,0,16,0,11,0,11,0,11,0,11]
[null,"Born abroad of American parent(s)",0,11,0,11,6,6,5,7,0,11,7,7,13,20,0,16,259,90,27,27,3,4,8,8,1,3,29,25,0,11,3,5,14,10,3,4,50,76,14,13,68,56,23,15,23,24]
[null,"Foreign born:",36,26,90,73,36,23,38,22,13,7,24,11,67,51,150,79,1060,288,55,48,15,10,19,12,22,17,209,127,3,5,23,13,10,12,12,13,226,134,107,72,76,47,51,31,61,71]
[null,"Naturalized U.S. citizen",10,9,90,73,29,22,24,16,11,7,21,11,42,32,113,67,640,195,55,48,13,8,15,13,10,9,83,54,3,5,15,10,2,3,10,12,62,51,20,15,41,39,38,31,42,45]
[null,"Not a U.S. citizen",26,24,0,11,7,11,14,14,2,3,3,4,25,39,37,39,420,180,0,11,2,3,4,4,12,12,126,117,0,11,8,7,8,12,2,3,164,126,87,70,35,28,13,12,19,32]
[]
[]
[]
[null,"B05002. PLACE OF BIRTH BY CITIZENSHIP STATUS"]
[null,"Universe: TOTAL POPULATION"]
[null,"Data Set: 2008-2012 American Community Survey 5-Year Estimates"]
[]
[null,null,"Alstead",null,"Chesterfield",null,"Dublin",null,"Fitzwilliam",null,"Gilsum",null,"Harrisville",null,"Hinsdale",null,"Jaffrey",null,"Keene",null,"Marlborough",null,"Marlow",null,"Nelson",null,"Richmond",null,"Rindge",null,"Roxbury",null,"Stoddard",null,"Sullivan",null,"Surry",null,"Swanzey",null,"Troy",null,"Walpole",null,"Westmoreland",null,"Winchester"]
[null," ","Estimate","Margin of Error","Estimate","Margin of Error","Estimate","Margin of Error","Estimate","Margin of Error","Estimate","Margin of Error","Estimate","Margin of Error","Estimate","Margin of Error","Estimate","Margin of Error","Estimate","Margin of Error","Estimate","Margin of Error","Estimate","Margin of Error","Estimate","Margin of Error","Estimate","Margin of Error","Estimate","Margin of Error","Estimate","Margin of Error","Estimate","Margin of Error","Estimate","Margin of Error","Estimate","Margin of Error","Estimate","Margin of Error","Estimate","Margin of Error","Estimate","Margin of Error","Estimate","Margin of Error","Estimate","Margin of Error"]
[null,"Total:",1883,173,3617,22,1709,209,2576,268,542,75,923,139,4046,18,5462,21,23389,22,1977,269,890,185,729,156,992,145,6001,19,219,37,1045,181,691,108,821,110,7236,29,2112,274,3731,19,2183,246,4332,18]
[null,"Native:",1839,172,3504,66,1656,202,2532,260,536,76,882,138,4003,39,5398,72,22562,240,1958,271,867,181,695,150,979,147,5777,96,209,37,1025,180,687,107,810,107,6820,186,2068,274,3565,115,2128,238,4255,72]
[null,"Born in state of residence",859,168,1214,365,818,134,924,208,259,59,396,99,942,222,2987,315,10428,715,1121,219,338,95,322,115,425,105,2067,285,125,32,528,120,430,97,472,92,3834,427,1154,195,1229,209,983,161,1991,227]
[null,"Born in other state in the United States:",970,141,2276,355,827,148,1588,211,277,61,475,83,3050,225,2385,315,11819,674,814,152,528,125,362,86,547,81,3612,311,84,30,497,122,249,62,327,49,2986,405,904,188,2295,214,1130,175,2203,237]
[null,"Northeast",752,106,1788,316,631,125,1265,192,229,53,356,79,2723,256,1804,313,9135,624,613,129,480,117,238,58,418,68,3132,333,59,27,405,101,178,41,257,42,2335,333,779,174,2006,230,843,154,1860,213]
[null,"Midwest",66,37,128,87,75,36,143,55,9,9,31,16,76,62,144,84,793,205,80,45,5,7,28,18,47,27,122,51,14,9,54,29,6,8,19,12,176,116,73,49,53,44,84,34,154,78]
[null,"South",81,75,301,182,76,41,123,42,26,19,59,26,126,82,227,101,1071,241,75,42,31,31,41,24,68,46,191,64,7,9,10,9,65,39,30,17,324,139,44,30,118,53,150,75,110,75]
[null,"West",71,35,59,58,45,26,57,40,13,8,29,16,125,90,210,112,820,234,46,33,12,18,55,40,14,10,167,77,4,7,28,24,0,11,21,12,151,87,8,12,118,55,53,35,79,44]
[null,"Born outside the United States:",10,10,14,20,11,17,20,17,0,11,11,9,11,17,26,30,315,140,23,23,1,2,11,13,7,8,98,77,0,11,0,11,8,7,11,15,0,16,10,16,41,43,15,14,61,55]
[null,"Puerto Rico",0,11,0,11,0,11,0,11,0,11,0,11,0,11,0,16,17,29,0,11,0,11,0,11,0,11,52,72,0,11,0,11,0,11,8,15,0,16,10,16,0,11,0,11,9,15]
[null,"U.S. Island Areas",0,11,0,11,0,11,0,11,0,11,0,11,0,11,0,16,0,21,0,11,1,2,0,11,4,6,0,16,0,11,0,11,0,11,0,11,0,16,0,11,0,11,0,11,0,11]
[null,"Born abroad of American parent(s)",10,10,14,20,11,17,20,17,0,11,11,9,11,17,26,30,298,138,23,23,0,11,11,13,3,4,46,27,0,11,0,11,8,7,3,4,0,16,0,11,41,43,15,14,52,55]
[null,"Foreign born:",44,29,113,64,53,27,44,37,6,6,41,49,43,35,64,65,827,240,19,21,23,20,34,37,13,14,224,96,10,10,20,15,4,4,11,12,416,183,44,29,166,113,55,30,77,68]
[null,"Naturalized U.S. citizen",23,19,85,50,29,20,11,12,3,5,8,7,39,35,26,24,360,160,5,8,16,16,32,38,6,7,101,54,8,7,12,9,4,4,0,11,309,154,30,22,119,85,34,22,27,30]
[null,"Not a U.S. citizen",21,20,28,29,24,17,33,37,3,4,33,49,4,8,38,59,467,169,14,20,7,10,2,3,7,12,123,70,2,3,8,12,0,11,11,12,107,101,14,17,47,40,21,20,50,48]

{"sheet":"ACS_Table_B07003","index":102,"n_rows":89,"n_cols":48,"rows_kept":89,"cut":false,"hidden":true,"merged":[]}
[null,"B07003. GEOGRAPHICAL MOBILITY IN THE PAST YEAR BY SEX FOR CURRENT RESIDENCE IN THE UNITED STATES - Universe:  POPULATION 1 YEAR AND OVER IN THE UNITED STATES"]
[null,"Data Set: 2018-2022 American Community Survey 5-Year Estimates"]
[null,"Survey: American Community Survey"]
[]
[null,null,"Alstead",null,"Chesterfield",null,"Dublin",null,"Fitzwilliam",null,"Gilsum",null,"Harrisville",null,"Hinsdale",null,"Jaffrey",null,"Keene",null,"Marlborough",null,"Marlow",null,"Nelson",null,"Richmond",null,"Rindge",null,"Roxbury",null,"Stoddard",null,"Sullivan",null,"Surry",null,"Swanzey",null,"Troy",null,"Walpole",null,"Westmoreland",null,"Winchester"]
[null," ","Estimate","Margin of Error","Estimate","Margin of Error","Estimate","Margin of Error","Estimate","Margin of Error","Estimate","Margin of Error","Estimate","Margin of Error","Estimate","Margin of Error","Estimate","Margin of Error","Estimate","Margin of Error","Estimate","Margin of Error","Estimate","Margin of Error","Estimate","Margin of Error","Estimate","Margin of Error","Estimate","Margin of Error","Estimate","Margin of Error","Estimate","Margin of Error","Estimate","Margin of Error","Estimate","Margin of Error","Estimate","Margin of Error","Estimate","Margin of Error","Estimate","Margin of Error","Estimate","Margin of Error","Estimate","Margin of Error"]
[null,"Total:",1593,170,3560,22,1695,217,2259,367,860,143,973,197,3965,16,5363,32,22791,67,2220,386,795,172,542,105,1098,247,6416,40,295,142,1198,162,672,127,948,245,7294,31,1889,275,3622,47,2014,333,4119,52]
[null,"Male",770,116,1983,138,789,118,1197,217,446,87,461,95,2090,205,2738,213,11124,412,999,198,356,77,246,49,589,158,3135,186,135,70,588,98,342,79,386,71,3551,206,950,177,1770,156,890,172,1922,182]
[null,"Female",823,95,1577,140,906,135,1062,182,414,74,512,109,1875,204,2625,216,11667,407,1221,234,439,110,296,67,509,121,3281,187,160,78,610,90,330,63,562,203,3743,209,939,136,1852,161,1124,216,2197,177]
[null,"Same house 1 year ago:",1493,171,3058,290,1574,235,2074,358,801,127,884,195,3683,198,5046,122,18275,548,2026,356,658,150,500,107,991,244,5794,187,281,142,1134,159,617,122,763,145,6236,321,1662,284,3336,163,1910,324,3344,336]
[null,"Male",710,112,1751,225,707,126,1112,216,422,78,414,95,1916,236,2568,222,8998,421,916,180,308,72,223,50,542,155,2842,190,130,70,560,96,316,79,358,74,2966,229,858,174,1625,174,860,167,1625,233]
[null,"Female",783,98,1307,175,867,135,962,171,379,70,470,106,1767,217,2478,209,9277,392,1110,221,350,93,277,67,449,116,2952,216,151,78,574,88,301,57,405,79,3270,244,804,143,1711,168,1050,212,1719,233]
[null,"Moved within same county:",9,13,274,188,64,46,7,10,25,29,39,25,136,123,172,122,2629,551,128,79,53,47,17,14,66,58,190,100,10,8,4,6,22,17,44,40,812,309,103,56,166,132,50,54,556,308]
[null,"Male",4,7,153,112,47,37,7,10,11,12,19,15,75,65,79,80,1228,387,43,37,17,19,8,7,23,21,87,55,4,3,4,6,9,10,17,18,440,170,49,38,61,75,5,9,179,87]
[null,"Female",5,7,121,88,17,14,0,12,14,18,20,15,61,65,93,64,1401,284,85,49,36,30,9,8,43,49,103,63,6,6,0,12,13,9,27,22,372,163,54,31,105,74,45,53,377,238]
[null,"Moved from different county within same state:",19,22,86,129,17,25,0,12,14,13,9,11,51,60,49,52,561,188,47,63,39,53,9,8,2,7,103,65,0,12,29,22,17,15,3,5,32,35,5,9,54,44,7,10,33,39]
[null,"Male",4,6,17,26,17,25,0,12,8,8,4,6,39,57,30,40,413,141,32,44,17,24,7,6,0,12,44,34,0,12,18,14,11,11,0,12,32,35,5,9,41,35,4,5,23,36]
[null,"Female",15,17,69,104,0,12,0,12,6,10,5,6,12,20,19,31,148,95,15,20,22,31,2,3,2,7,59,43,0,12,11,10,6,6,3,5,0,17,0,12,13,14,3,5,10,15]
[null,"Moved from different state:",72,43,142,94,35,30,178,152,20,19,41,28,95,86,96,89,1277,275,19,17,45,53,7,7,39,31,319,129,4,7,31,28,16,15,136,163,177,111,119,98,66,55,47,37,186,161]
[null,"Male",52,32,62,56,13,14,78,72,5,4,24,18,60,66,61,66,436,139,8,9,14,13,4,4,24,19,152,83,1,3,6,6,6,6,11,10,98,87,38,28,43,43,21,20,95,74]
[null,"Female",20,17,80,68,22,26,100,84,15,16,17,15,35,40,35,61,841,203,11,12,31,43,3,5,15,13,167,91,3,5,25,23,10,14,125,167,79,55,81,79,23,36,26,28,91,90]
[null,"Moved from abroad:",0,12,0,12,5,7,0,12,0,12,0,12,0,12,0,17,49,36,0,12,0,12,9,13,0,12,10,15,0,12,0,12,0,12,2,4,37,42,0,12,0,12,0,12,0,12]
[null,"Male",0,12,0,12,5,7,0,12,0,12,0,12,0,12,0,17,49,36,0,12,0,12,4,7,0,12,10,15,0,12,0,12,0,12,0,12,15,22,0,12,0,12,0,12,0,12]
[null,"Female",0,12,0,12,0,12,0,12,0,12,0,12,0,12,0,17,0,22,0,12,0,12,5,6,0,12,0,17,0,12,0,12,0,12,2,4,22,39,0,12,0,12,0,12,0,12]
[]
[null,"Calculated B07003. GEOGRAPHICAL MOBILITY IN THE PAST YEAR BY SEX FOR CURRENT RESIDENCE IN THE UNITED STATES "]
[null,null,{"$f":"C5","v":"Alstead"},null,"Chesterfield",null,"Dublin",null,"Fitzwilliam",null,"Gilsum",null,"Harrisville",null,"Hinsdale",null,"Jaffrey",null,"Keene",null,"Marlborough",null,"Marlow",null,{"$f":"Y5","v":"Nelson"},null,{"$f":"AA5","v":"Richmond"},null,{"$f":"AC5","v":"Rindge"},null,{"$f":"AE5","v":"Roxbury"},null,{"$f":"AG5","v":"Stoddard"},null,{"$f":"AI5","v":"Sullivan"},null,{"$f":"AK5","v":"Surry"},null,{"$f":"AM5","v":"Swanzey"},null,{"$f":"AO5","v":"Troy"},null,{"$f":"AQ5","v":"Walpole"},null,{"$f":"AS5","v":"Westmoreland"},null,{"$f":"AU5","v":"Winchester"}]
[null,null,"Estimate","Margin of Error","Estimate","Margin of Error","Estimate","Margin of Error","Estimate","Margin of Error","Estimate","Margin of Error","Estimate","Margin of Error","Estimate","Margin of Error","Estimate","Margin of Error","Estimate","Margin of Error","Estimate","Margin of Error","Estimate",{"$f":"X6","v":"Margin of Error"},{"$f":"Y6","v":"Estimate"},{"$f":"Z6","v":"Margin of Error"},"Estimate","Margin of Error","Estimate","Margin of Error","Estimate","Margin of Error","Estimate","Margin of Error","Estimate","Margin of Error","Estimate","Margin of Error","Estimate","Margin of Error","Estimate","Margin of Error","Estimate","Margin of Error","Estimate","Margin of Error","Estimate","Margin of Error"]
[]
[null,"Total",{"$f":"C7","v":1593},{"$f":"D7","v":170},{"$f":"E7","v":3560},22,1695,217,2259,367,860,143,973,197,3965,16,5363,32,22791,67,2220,386,795,172,{"$f":"Y7","v":542},105,1098,247,6416,40,295,142,1198,162,672,127,948,245,7294,31,1889,275,3622,47,2014,333,4119,52]
[null,"    Same house ",{"$f":"C10","v":1493},{"$f":"D10","v":171},{"$f":"E10","v":3058},290,1574,235,2074,358,801,127,884,195,3683,198,5046,122,18275,548,2026,356,658,150,{"$f":"Y10","v":500},107,991,244,5794,187,281,142,1134,159,617,122,763,145,6236,321,1662,284,3336,163,1910,324,3344,336]
[null,"    Different house ",{"$f":"C13+C16+C19+C22","v":100},{"$f":"SQRT((D13^2)+(D16^2)+(D19^2)+(D22^2))","v":51.43928459844674},{"$f":"E13+E16+E19+E22","v":502},{"$f":"SQRT((F13^2)+(F16^2)+(F19^2)+(F22^2))","v":246.9109151090733},{"$f":"G13+G16+G19+G22","v":121},{"$f":"SQRT((H13^2)+(H16^2)+(H19^2)+(H22^2))","v":60.745370193949761},{"$f":"I13+I16+I19+I22","v":185},{"$f":"SQRT((J13^2)+(J16^2)+(J19^2)+(J22^2))","v":153.27100182356739},{"$f":"K13+K16+K19+K22","v":59},{"$f":"SQRT((L13^2)+(L16^2)+(L19^2)+(L22^2))","v":38.923000912057127},{"$f":"M13+M16+M19+M22","v":89},{"$f":"SQRT((N13^2)+(N16^2)+(N19^2)+(N22^2))","v":40.914545090957567},{"$f":"O13+O16+O19+O22","v":282},{"$f":"SQRT((P13^2)+(P16^2)+(P19^2)+(P22^2))","v":162.07714212682799},{"$f":"Q13+Q16+Q19+Q22","v":317},{"$f":"SQRT((R13^2)+(R16^2)+(R19^2)+(R22^2))","v":160.61755819336813},{"$f":"S13+S16+S19+S22","v":4516},{"$f":"SQRT((T13^2)+(T16^2)+(T19^2)+(T22^2))","v":644.87673240705465},{"$f":"U13+U16+U19+U22","v":194},{"$f":"SQRT((V13^2)+(V16^2)+(V19^2)+(V22^2))","v":103.16491651719591},{"$f":"W13+W16+W19+W22","v":137},{"$f":"SQRT((X13^2)+(X16^2)+(X19^2)+(X22^2))","v":89.280456988077745},{"$f":"Y13+Y16+Y19+Y22","v":42},{"$f":"SQRT((Z13^2)+(Z16^2)+(Z19^2)+(Z22^2))","v":21.863211109075447},{"$f":"AA13+AA16+AA19+AA22","v":107},{"$f":"SQRT((AB13^2)+(AB16^2)+(AB19^2)+(AB22^2))","v":67.216069507224233},{"$f":"AC13+AC16+AC19+AC22","v":622},{"$f":"SQRT((AD13^2)+(AD16^2)+(AD19^2)+(AD22^2))","v":176.32640188014952},{"$f":"AE13+AE16+AE19+AE22","v":14},{"$f":"SQRT((AF13^2)+(AF16^2)+(AF19^2)+(AF22^2))","v":20.024984394500787},{"$f":"AG13+AG16+AG19+AG22","v":64},{"$f":"SQRT((AH13^2)+(AH16^2)+(AH19^2)+(AH22^2))","v":38.052595180880893},{"$f":"AI13+AI16+AI19+AI22","v":55},{"$f":"SQRT((AJ13^2)+(AJ16^2)+(AJ19^2)+(AJ22^2))","v":29.715315916207253},{"$f":"AK13+AK16+AK19+AK22","v":185},{"$f":"SQRT((AL13^2)+(AL16^2)+(AL19^2)+(AL22^2))","v":167.9583281650541},{"$f":"AM13+AM16+AM19+AM22","v":1058},{"$f":"SQRT((AN13^2)+(AN16^2)+(AN19^2)+(AN22^2))","v":332.85282032754355},{"$f":"AO13+AO16+AO19+AO22","v":227},{"$f":"SQRT((AP13^2)+(AP16^2)+(AP19^2)+(AP22^2))","v":113.86395390991831},{"$f":"AQ13+AQ16+AQ19+AQ22","v":286},{"$f":"SQRT((AR13^2)+(AR16^2)+(AR19^2)+(AR22^2))","v":150.09663553857561},{"$f":"AS13+AS16+AS19+AS22","v":104},{"$f":"SQRT((AT13^2)+(AT16^2)+(AT19^2)+(AT22^2))","v":67.297845433564959},{"$f":"AU13+AU16+AU19+AU22","v":775},{"$f":"SQRT((AV13^2)+(AV16^2)+(AV19^2)+(AV22^2))","v":349.92856413845385}]
[null,"      in New Hampshire",{"$f":"C16+C13","v":28},{"$f":"SQRT((D16^2)+(D13^2))","v":25.553864678361276},{"$f":"E16+E13","v":360},{"$f":"SQRT((F16^2)+(F13^2))","v":228.00219297190981},{"$f":"G16+G13","v":81},{"$f":"SQRT((H16^2)+(H13^2))","v":52.354560450833695},{"$f":"I16+I13","v":7},{"$f":"SQRT((J16^2)+(J13^2))","v":15.620499351813308},{"$f":"K16+K13","v":39},{"$f":"SQRT((L16^2)+(L13^2))","v":31.780497164141408},{"$f":"M16+M13","v":48},{"$f":"SQRT((N16^2)+(N13^2))","v":27.313000567495326},{"$f":"O16+O13","v":187},{"$f":"SQRT((P16^2)+(P13^2))","v":136.85393673548452},{"$f":"Q16+Q13","v":221},{"$f":"SQRT((R16^2)+(R13^2))","v":132.61975720080324},{"$f":"S16+S13","v":3190},{"$f":"SQRT((T16^2)+(T13^2))","v":582.18983158416631},{"$f":"U16+U13","v":175},{"$f":"SQRT((V16^2)+(V13^2))","v":101.04454463255303},{"$f":"W16+W13","v":92},{"$f":"SQRT((X16^2)+(X13^2))","v":70.837842993699354},{"$f":"Y16+Y13","v":26},{"$f":"SQRT((Z16^2)+(Z13^2))","v":16.124515496597098},{"$f":"AA16+AA13","v":68},{"$f":"SQRT((AB16^2)+(AB13^2))","v":58.420886675914119},{"$f":"AC16+AC13","v":293},{"$f":"SQRT((AD16^2)+(AD13^2))","v":119.26860441876563},{"$f":"AE16+AE13","v":10},{"$f":"SQRT((AF16^2)+(AF13^2))","v":14.422205101855956},{"$f":"AG16+AG13","v":33},{"$f":"SQRT((AH16^2)+(AH13^2))","v":22.803508501982758},{"$f":"AI16+AI13","v":39},{"$f":"SQRT((AJ16^2)+(AJ13^2))","v":22.671568097509269},{"$f":"AK16+AK13","v":47},{"$f":"SQRT((AL16^2)+(AL13^2))","v":40.311288741492746},{"$f":"AM16+AM13","v":844},{"$f":"SQRT((AN16^2)+(AN13^2))","v":310.97588330930103},{"$f":"AO16+AO13","v":108},{"$f":"SQRT((AP16^2)+(AP13^2))","v":56.718603649948932},{"$f":"AQ16+AQ13","v":220},{"$f":"SQRT((AR16^2)+(AR13^2))","v":139.1402170474087},{"$f":"AS16+AS13","v":57},{"$f":"SQRT((AT16^2)+(AT13^2))","v":54.918120870983927},{"$f":"AU16+AU13","v":589},{"$f":"SQRT((AV16^2)+(AV13^2))","v":310.45933711196381}]
[null,"          Same county",{"$f":"C13","v":9},{"$f":"D13","v":13},{"$f":"E13","v":274},188,64,46,7,10,25,29,39,25,136,123,172,122,2629,551,128,79,53,47,{"$f":"Y13","v":17},14,66,58,190,100,10,8,4,6,22,17,44,40,812,309,103,56,166,132,50,54,556,308]
[null,"          Different county",{"$f":"C16","v":19},{"$f":"D16","v":22},{"$f":"E16","v":86},129,17,25,0,12,14,13,9,11,51,60,49,52,561,188,47,63,39,53,{"$f":"Y16","v":9},8,2,7,103,65,0,12,29,22,17,15,3,5,32,35,5,9,54,44,7,10,33,39]
[null,"      in Different state",{"$f":"C19","v":72},{"$f":"D19","v":43},{"$f":"E19","v":142},94,35,30,178,152,20,19,41,28,95,86,96,89,1277,275,19,17,45,53,{"$f":"Y19","v":7},7,39,31,319,129,4,7,31,28,16,15,136,163,177,111,119,98,66,55,47,37,186,161]
[null,"       Elsewhere",{"$f":"C22","v":0},{"$f":"D22","v":12},{"$f":"E22","v":0},12,5,7,0,12,0,12,0,12,0,12,0,17,49,36,0,12,0,12,{"$f":"Y22","v":9},13,0,12,10,15,0,12,0,12,0,12,2,4,37,42,0,12,0,12,0,12,0,12]
[]
[]
[]
[]
[]
[]
[]
[]
[]
[]
[]
[]
[]
[]
[]
[]
[]
[]
[]
[]
[]
[]
[null,"Calculated GEOGRAPHICAL MOBILITY IN THE PAST YEAR BY SEX FOR CURRENT RESIDENCE IN THE UNITED STATES"]
[null,"Universe:  POPULATION 1 YEAR AND OVER IN THE UNITED STATES"]
[null,"Data Set: 2013-2017 American Community Survey 5-Year Estimates"]
[null,null,"Alstead",null,"Chesterfield",null,"Dublin",null,"Fitzwilliam",null,"Gilsum",null,"Harrisville",null,"Hinsdale",null,"Jaffrey",null,"Keene",null,"Marlborough",null,"Marlow",null,"Nelson",null,"Richmond",null,"Rindge",null,"Roxbury",null,"Stoddard",null,"Sullivan",null,"Surry",null,"Swanzey",null,"Troy",null,"Walpole",null,"Westmoreland",null,"Winchester"]
[null,null,"Estimate","Margin of Error","Estimate","Margin of Error","Estimate","Margin of Error","Estimate","Margin of Error","Estimate","Margin of Error","Estimate","Margin of Error","Estimate","Margin of Error","Estimate","Margin of Error","Estimate","Margin of Error","Estimate","Margin of Error","Estimate","Margin of Error","Estimate","Margin of Error","Estimate","Margin of Error","Estimate","Margin of Error","Estimate","Margin of Error","Estimate","Margin of Error","Estimate","Margin of Error","Estimate","Margin of Error","Estimate","Margin of Error","Estimate","Margin of Error","Estimate","Margin of Error","Estimate","Margin of Error","Estimate","Margin of Error"]
[]
[null,"Total",1821,226,3459,67,1487,174,2294,213,702,80,910,140,3925,20,23070,90,23380,61,2125,297,704,115,562,88,1243,176,5963,43,213,58,1159,170,722,117,872,127,7117,83,2148,303,3788,34,1793,232,4179,40]
[null,"    Same house ",1492,214,2919,320,1391,165,2070,219,623,80,815,143,3465,265,16673,786,16240,658,1912,288,641,111,483,80,1092,149,4809,327,193,54,1076,175,669,111,798,108,6464,268,1826,278,3358,191,1679,217,3590,329]
[null,"    Different house ",329,192.71740969616627,540,322.63136859270207,96,56.471231613981999,224,111.80339887498948,79,32.015621187164243,95,37.986839826445156,460,253.12842590274209,6397,839.53201249267443,7140,766.40328809315531,213,84.941156102327682,63,29.34280150224242,79,37.349698793966198,151,87.584245158590022,1154,295.71608004976667,20,19.026297590440446,83,41.83300132670378,53,34.785054261852174,74,55.964274318532887,653,255.93944596329811,322,191.90622710063371,430,175.55056251689996,114,68.293484315855494,589,311.56219282833405]
[null,"      in New Hampshire",305,191.65072397463047,470,315.19200497474549,85,55.713553108736477,171,106.25441167311595,58,25.45584412271571,86,35.227829907617071,362,241.82018112638985,4546,757.68331115314925,4825,618.99353793072828,192,82.734515167492219,48,24.413111231467404,62,33.241540277189323,89,74.330343736592525,642,228.12277396174193,18,15.231546211727817,71,39.560080889704963,40,32.449961479175904,65,54.12947441089743,477,225.50388023269133,246,174.54512310574592,300,156.04166110369371,98,66.272166103123567,582,311.20732639190874]
[null,"          Same county",110,63,470,315,27,20,94,61,37,18,68,29,310,234,3717,728,4053,583,192,82,25,14,59,33,85,74,425,202,14,14,71,38,27,27,65,53,460,224,216,171,245,150,96,66,535,307]
[null,"          Different county",195,181,0,11,58,52,77,87,21,18,18,20,52,61,829,210,772,208,0,11,23,20,3,4,4,7,217,106,4,6,0,11,13,18,0,11,17,26,30,35,55,43,2,6,47,51]
[null,"      in Different state",24,17,70,68,10,9,53,33,21,16,9,9,98,74,1664,337,2121,430,15,17,15,12,17,13,62,45,508,188,2,3,12,8,7,6,9,9,159,118,68,79,98,63,14,16,7,10]
[null,"       Elsewhere",0,11,0,11,1,2,0,11,0,11,0,11,0,11,187,131,194,139,6,9,0,11,0,11,0,11,4,8,0,11,0,11,6,11,0,11,17,27,8,11,32,50,2,4,0,11]
[]
[]
[]
[null,"Calculated GEOGRAPHICAL MOBILITY IN THE PAST YEAR BY SEX FOR CURRENT RESIDENCE IN THE UNITED STATES"]
[null,"Universe:  POPULATION 1 YEAR AND OVER IN THE UNITED STATES"]
[null,"Data Set: 2008-2012 American Community Survey 5-Year Estimates"]
[null,null,"Alstead",null,"Chesterfield",null,"Dublin",null,"Fitzwilliam",null,"Gilsum",null,"Harrisville",null,"Hinsdale",null,"Jaffrey",null,"Keene",null,"Marlborough",null,"Marlow",null,"Nelson",null,"Richmond",null,"Rindge",null,"Roxbury",null,"Stoddard",null,"Sullivan",null,"Surry",null,"Swanzey",null,"Troy",null,"Walpole",null,"Westmoreland",null,"Winchester"]
[null,null,"Estimate","Margin of Error","Estimate","Margin of Error","Estimate","Margin of Error","Estimate","Margin of Error","Estimate","Margin of Error","Estimate","Margin of Error","Estimate","Margin of Error","Estimate","Margin of Error","Estimate","Margin of Error","Estimate","Margin of Error","Estimate","Margin of Error","Estimate","Margin of Error","Estimate","Margin of Error","Estimate","Margin of Error","Estimate","Margin of Error","Estimate","Margin of Error","Estimate","Margin of Error","Estimate","Margin of Error","Estimate","Margin of Error","Estimate","Margin of Error","Estimate","Margin of Error","Estimate","Margin of Error","Estimate","Margin of Error"]
[null,"Total",1879,173,3565,47,1705,209,2540,259,537,74,918,138,4003,45,5350,94,23256,79,1970,268,890,185,729,156,980,144,5960,36,219,37,1023,174,689,107,811,110,7150,70,2091,273,3660,60,2169,243,4238,77]
[null,"    Same house ",1665,156,3063,291,1553,197,2455,258,499,71,805,135,3513,216,4759,235,17549,777,1644,238,827,175,659,146,907,139,4948,250,204,40,931,160,636,113,758,111,6530,224,1860,258,3063,259,1921,209,3620,310]
[null,"    Different house ",214,128.66623488701299,502,301.02159390980574,152,60.646516800225221,85,58.094750193111253,38,25.199206336708304,113,71.937472849690792,490,218.01834785173472,591,212.62408142070831,5707,724.18644008293882,326,191.38965489283896,63,38.039453203220468,70,51.019604075296392,73,40.963398296528091,1012,276.29332239487803,15,23.2379000772445,92,80.168572395920833,53,45.934736311423407,53,28.390139133156779,620,216.20592036297248,231,138.51353724455961,597,247.1699819961963,248,102.4987804805501,618,315.52337472840264]
[null,"      in New Hampshire",154,117.61377470347595,279,229.05894437895239,58,31.827660925679098,45,38.600518131237564,27,19.235384061671343,78,62.968245965724662,253,170.83910559353791,482,196.54007224991039,3286,478.55302736478433,276,188.0239346466295,44,32.202484376209235,52,46.324939287601879,41,33.526109228480422,623,244.72433471152803,14,20.248456731316587,87,79.101201002260396,35,41.231056256176608,36,26,495,201.64572894063488,179,130.18832512940628,306,157.88920165736477,200,97.739449558507332,497,307.19700519373555]
[null,"          Same county",140,117,188,202,32,23,45,37,25,19,66,62,233,169,441,192,2389,418,275,188,16,14,52,45,35,32,348,153,14,17,84,79,25,38,27,24,435,194,175,130,238,148,160,92,497,307]
[null,"          Different county",14,12,91,108,26,22,0,11,2,3,12,11,20,25,41,42,897,233,1,3,28,29,0,11,6,10,275,191,0,11,3,4,10,16,9,10,60,55,4,7,68,55,40,33,0,11]
[null,"      in Different state",60,51,223,195,57,36,40,42,11,12,35,33,237,135,83,70,2219,523,50,34,19,17,15,21,28,23,385,128,1,3,5,7,18,17,11,7,106,72,52,46,286,190,36,28,113,71]
[null,"       Elsewhere",0,11,0,11,37,37,0,11,0,11,0,11,0,11,26,41,202,148,0,11,0,11,3,4,4,5,4,8,0,11,0,11,0,11,6,9,19,30,0,11,5,8,12,13,8,12]

{"sheet":"ACS_Table_B14001","index":103,"n_rows":98,"n_cols":48,"rows_kept":98,"cut":false,"hidden":true,"merged":[]}
[null,"B14001. SCHOOL ENROLLMENT BY LEVEL OF SCHOOL FOR THE POPULATION 3 YEARS AND OVER"]
[null,"Universe: POPULATION 3 YEARS AND OVER"]
[null,"Data Set: 2018-2022 American Community Survey 5-Year Estimates"]
[]
[null,null,"Alstead",null,"Chesterfield",null,"Dublin",null,"Fitzwilliam",null,"Gilsum",null,"Harrisville",null,"Hinsdale",null,"Jaffrey",null,"Keene",null,"Marlborough",null,"Marlow",null,"Nelson",null,"Richmond",null,"Rindge",null,"Roxbury",null,"Stoddard",null,"Sullivan",null,"Surry",null,"Swanzey",null,"Troy",null,"Walpole",null,"Westmoreland",null,"Winchester"]
[null," ","Estimate","Margin of Error","Estimate","Margin of Error","Estimate","Margin of Error","Estimate","Margin of Error","Estimate","Margin of Error","Estimate","Margin of Error","Estimate","Margin of Error","Estimate","Margin of Error","Estimate","Margin of Error","Estimate","Margin of Error","Estimate","Margin of Error","Estimate","Margin of Error","Estimate","Margin of Error","Estimate","Margin of Error","Estimate","Margin of Error","Estimate","Margin of Error","Estimate","Margin of Error","Estimate","Margin of Error","Estimate","Margin of Error","Estimate","Margin of Error","Estimate","Margin of Error","Estimate","Margin of Error","Estimate","Margin of Error"]
[null,"Total:",1581,172,3522,46,1676,212,2236,360,825,137,958,193,3911,51,5277,96,22399,133,2082,340,788,169,533,105,1076,238,6302,99,263,111,1169,156,644,113,901,210,7177,99,1820,262,3428,115,1998,336,3951,111]
[null,"Enrolled in school:",287,85,719,148,348,88,274,83,128,62,158,67,532,185,1405,220,6535,471,433,152,205,85,75,34,168,66,2000,191,66,54,256,95,93,32,209,131,1284,288,374,120,694,163,323,113,773,236]
[null,"Enrolled in nursery school, preschool",13,13,53,44,4,6,8,9,11,10,16,15,36,39,38,50,298,134,21,26,16,19,2,3,16,15,110,79,7,6,16,11,16,13,6,7,103,51,23,30,25,18,29,30,79,52]
[null,"Enrolled in kindergarten",8,8,17,26,10,9,30,36,14,15,7,7,27,36,152,85,175,60,7,8,3,6,5,7,5,5,58,41,0,12,4,6,0,12,4,4,44,43,26,24,62,36,7,6,37,40]
[null,"Enrolled in grade 1 to grade 4",56,24,212,75,52,29,44,20,31,28,53,38,150,77,219,97,708,182,17,15,32,19,33,22,55,33,244,75,4,4,60,28,25,14,52,56,314,114,91,48,98,54,94,67,163,95]
[null,"Enrolled in grade 5 to grade 8",64,43,242,71,111,39,81,38,2,3,23,22,141,58,495,180,744,197,127,69,89,50,13,12,48,25,238,112,2,3,82,34,11,8,38,22,376,136,70,41,159,79,61,29,159,127]
[null,"Enrolled in grade 9 to grade 12",78,32,125,90,79,36,58,38,48,32,17,13,89,95,305,125,833,234,168,88,50,36,13,14,25,15,245,107,4,6,47,33,18,12,35,27,217,139,62,56,260,147,50,27,254,131]
[null,"Enrolled in college, undergraduate years",51,27,5,12,67,24,42,24,17,17,31,21,89,72,172,115,3322,351,86,48,13,11,3,4,13,11,1086,93,47,56,31,20,13,13,70,75,151,122,78,50,71,78,19,15,75,60]
[null,"Graduate or professional school",17,16,65,71,25,34,11,11,5,9,11,10,0,12,24,39,455,159,7,13,2,4,6,6,6,9,19,25,2,3,16,12,10,13,4,5,79,105,24,22,19,29,63,45,6,11]
[null,"Not enrolled in school",1294,134,2803,162,1328,188,1962,332,697,130,800,156,3379,179,3872,252,15864,456,1649,258,583,113,458,87,908,211,4302,183,197,68,913,110,551,93,692,117,5893,257,1446,221,2734,174,1675,294,3178,213]
[]
[]
[]
[null,"B14001. Calculated  SCHOOL ENROLLMENT BY LEVEL OF SCHOOL FOR THE POPULATION 3 YEARS AND OVER "]
[null,"Universe: POPULATION 3 YEARS AND OVER"]
[null,"Data Set: 2018-2022 American Community Survey 5-Year Estimates"]
[]
[null,null,"Alton",null,"Barnstead",null,"Belmont",null,"Center Harbor",null,"Gilford",null,"Gilmanton",null,"Laconia",null,"Meredith",null,"New Hampton",null,"Sanbornton",null,"Tilton"]
[null,null,"Estimate","Margin Of Error","Estimate","Margin Of Error","Estimate","Margin Of Error","Estimate","Margin Of Error","Estimate","Margin Of Error","Estimate","Margin Of Error","Estimate","Margin Of Error","Estimate","Margin Of Error","Estimate","Margin Of Error","Estimate","Margin Of Error","Estimate","Margin Of Error"]
[null,"Total:",{"$f":"C7","v":1581},{"$f":"D7","v":172},{"$f":"E7","v":3522},46,1676,212,2236,360,825,137,958,193,3911,51,5277,96,22399,133,2082,340,788,169]
[null,"Enrolled in school:",{"$f":"C8","v":287},{"$f":"D8","v":85},719,148,348,88,274,83,128,62,158,67,532,185,1405,220,6535,471,433,152,205,85]
[null,"Enrolled in nursery school, preschool, and Kindergarten",{"$f":"C9+C10","v":21},{"$f":"SQRT((D9^2)+(D10^2))","v":15.264337522473747},{"$f":"E9+E10","v":70},{"$f":"SQRT((F9^2)+(F10^2))","v":51.107729356722551},{"$f":"G9+G10","v":14},{"$f":"SQRT((H9^2)+(H10^2))","v":10.816653826391969},{"$f":"I9+I10","v":38},{"$f":"SQRT((J9^2)+(J10^2))","v":37.107950630558946},{"$f":"K9+K10","v":25},{"$f":"SQRT((L9^2)+(L10^2))","v":18.027756377319946},{"$f":"M9+M10","v":23},{"$f":"SQRT((N9^2)+(N10^2))","v":16.552945357246848},{"$f":"O9+O10","v":63},{"$f":"SQRT((P9^2)+(P10^2))","v":53.075418038862395},{"$f":"Q9+Q10","v":190},{"$f":"SQRT((R9^2)+(R10^2))","v":98.615414616580097},{"$f":"S9+S10","v":473},{"$f":"SQRT((T9^2)+(T10^2))","v":146.81961721786362},{"$f":"U9+U10","v":28},{"$f":"SQRT((V9^2)+(V10^2))","v":27.202941017470888},{"$f":"W9+W10","v":19},{"$f":"SQRT((X9^2)+(X10^2))","v":19.924858845171276}]
[null,"Enrolled in nursery school, preschool",{"$f":"C9","v":13},13,53,44,4,6,8,9,11,10,16,15,36,39,38,50,298,134,21,26,16,19]
[null,"Enrolled in kindergarten",8,8,17,26,10,9,30,36,14,15,7,7,27,36,152,85,175,60,7,8,3,6]
[null,"Enrolled in grade Elementary School (grade 1 to grade 8)",{"$f":"C11+C12","v":120},{"$f":"SQRT((D11^2)+(D12^2))","v":49.244289008980523},{"$f":"E11+E12","v":454},{"$f":"SQRT((F11^2)+(F12^2))","v":103.27632836231156},{"$f":"G11+G12","v":163},{"$f":"SQRT((H11^2)+(H12^2))","v":48.60041152089147},{"$f":"I11+I12","v":125},{"$f":"SQRT((J11^2)+(J12^2))","v":42.941821107167776},{"$f":"K11+K12","v":33},{"$f":"SQRT((L11^2)+(L12^2))","v":28.160255680657446},{"$f":"M11+M12","v":76},{"$f":"SQRT((N11^2)+(N12^2))","v":43.908996800200299},{"$f":"O11+O12","v":291},{"$f":"SQRT((P11^2)+(P12^2))","v":96.400207468656419},{"$f":"Q11+Q12","v":714},{"$f":"SQRT((R11^2)+(R12^2))","v":204.47249203743763},{"$f":"S11+S12","v":1452},{"$f":"SQRT((T11^2)+(T12^2))","v":268.20328111341217},{"$f":"U11+U12","v":144},{"$f":"SQRT((V11^2)+(V12^2))","v":70.611613775638915},{"$f":"W11+W12","v":121},{"$f":"SQRT((X11^2)+(X12^2))","v":53.488316481265329}]
[null,"Enrolled in grade 9 to grade 12",{"$f":"C13","v":78},{"$f":"D13","v":32},{"$f":"E13","v":125},90,79,36,58,38,48,32,17,13,89,95,305,125,833,234,168,88,50,36]
[null,"Enrolled in Elementary and High School",{"$f":"C11+C12+C13","v":198},{"$f":"SQRT((D11^2)+(D12^2)+(D13^2))","v":58.728187440104094},{"$f":"E11+E12+E13","v":579},{"$f":"SQRT((F11^2)+(F12^2)+(F13^2))","v":136.98905065734269},{"$f":"G11+G12+G13","v":242},{"$f":"SQRT((H11^2)+(H12^2)+(H13^2))","v":60.481402100149765},{"$f":"I11+I12+I13","v":183},{"$f":"SQRT((J11^2)+(J12^2)+(J13^2))","v":57.341084747325802},{"$f":"K11+K12+K13","v":81},{"$f":"SQRT((L11^2)+(L12^2)+(L13^2))","v":42.626282971894227},{"$f":"M11+M12+M13","v":93},{"$f":"SQRT((N11^2)+(N12^2)+(N13^2))","v":45.793012567421243},{"$f":"O11+O12+O13","v":380},{"$f":"SQRT((P11^2)+(P12^2)+(P13^2))","v":135.34400614729859},{"$f":"Q11+Q12+Q13","v":1019},{"$f":"SQRT((R11^2)+(R12^2)+(R13^2))","v":239.65391713886089},{"$f":"S11+S12+S13","v":2285},{"$f":"SQRT((T11^2)+(T12^2)+(T13^2))","v":355.93398264284912},{"$f":"U11+U12+U13","v":312},{"$f":"SQRT((V11^2)+(V12^2)+(V13^2))","v":112.82730166054668},{"$f":"W11+W12+W13","v":171},{"$f":"SQRT((X11^2)+(X12^2)+(X13^2))","v":64.474801279259481}]
[null,"Enrolled in College or Graduate School",{"$f":"C14+C15","v":68},{"$f":"SQRT((D14^2)+(D15^2))","v":31.384709652950431},{"$f":"E14+E15","v":70},{"$f":"SQRT((F14^2)+(F15^2))","v":72.006944109578768},{"$f":"G14+G15","v":92},{"$f":"SQRT((H14^2)+(H15^2))","v":41.617304093369626},{"$f":"I14+I15","v":53},{"$f":"SQRT((J14^2)+(J15^2))","v":26.40075756488817},{"$f":"K14+K15","v":22},{"$f":"SQRT((L14^2)+(L15^2))","v":19.235384061671343},{"$f":"M14+M15","v":42},{"$f":"SQRT((N14^2)+(N15^2))","v":23.259406699226016},{"$f":"O14+O15","v":89},{"$f":"SQRT((P14^2)+(P15^2))","v":72.993150363578636},{"$f":"Q14+Q15","v":196},{"$f":"SQRT((R14^2)+(R15^2))","v":121.43310915891102},{"$f":"S14+S15","v":3777},{"$f":"SQRT((T14^2)+(T15^2))","v":385.3336216838598},{"$f":"U14+U15","v":93},{"$f":"SQRT((V14^2)+(V15^2))","v":49.729267036625423},{"$f":"W14+W15","v":15},{"$f":"SQRT((X14^2)+(X15^2))","v":11.704699910719626}]
[null,"Not enrolled in school",{"$f":"C16","v":1294},{"$f":"D16","v":134},{"$f":"E16","v":2803},162,1328,188,1962,332,697,130,800,156,3379,179,3872,252,15864,456,1649,258,583,113]
[]
[]
[null,"B14001.Calculated  SCHOOL ENROLLMENT BY LEVEL OF SCHOOL FOR THE POPULATION 3 YEARS AND OVER "]
[null,"Universe: POPULATION 3 YEARS AND OVER"]
[null,"Data Set: 2013-2017 American Community Survey 5-Year Estimates"]
[]
[null,null,"Alstead",null,"Chesterfield",null,"Dublin",null,"Fitzwilliam",null,"Gilsum",null,"Harrisville",null,"Hinsdale",null,"Jaffrey",null,"Keene",null,"Marlborough",null,"Marlow",null,"Nelson",null,"Richmond",null,"Rindge",null,"Roxbury",null,"Stoddard",null,"Sullivan",null,"Surry",null,"Swanzey",null,"Troy",null,"Walpole",null,"Westmoreland",null,"Winchester"]
[null," ","Estimate","Margin of Error","Estimate","Margin of Error","Estimate","Margin of Error","Estimate","Margin of Error","Estimate","Margin of Error","Estimate","Margin of Error","Estimate","Margin of Error","Estimate","Margin of Error","Estimate","Margin of Error","Estimate","Margin of Error","Estimate","Margin of Error","Estimate","Margin of Error","Estimate","Margin of Error","Estimate","Margin of Error","Estimate","Margin of Error","Estimate","Margin of Error","Estimate","Margin of Error","Estimate","Margin of Error","Estimate","Margin of Error","Estimate","Margin of Error","Estimate","Margin of Error","Estimate","Margin of Error","Estimate","Margin of Error"]
[null,"Total:",1796,225,3279,99,1479,173,2257,204,691,78,906,142,3874,73,22701,148,22986,161,2069,292,667,102,553,88,1200,165,5806,76,202,58,1145,167,685,107,856,122,6940,120,2125,297,3703,84,1773,229,4071,102]
[null,"Enrolled in school:",347,140,669,182,337,84,355,94,121,30,109,62,850,145,7508,477,7566,470,431,132,143,44,121,59,255,66,2166,232,40,23,227,79,140,50,152,51,1328,230,423,137,746,169,344,85,888,176]
[null,"Enrolled in nursery school, preschool, and Kindergarten",16,21.095023109728988,97,87.783825389418979,34,42.426406871192853,60,36.674241641784498,9,7.0710678118654755,2,11.704699910719626,105,86.330759292386631,679,210.80085388821365,641,213.65392577717827,30,30.083217912982647,20,11.180339887498949,13,8.0622577482985491,53,35.735136770411273,214,70.455659815234142,9,10.295630140987001,32,22.803508501982758,35,18.973665961010276,16,14.317821063276353,323,139.46325680981354,33,29.614185789921695,65,40.26164427839479,26,18.867962264113206,137,103.07764064044152]
[null,"Enrolled in nursery school, preschool",16,18,44,65,30,42,38,33,5,5,0,11,82,82,418,174,350,168,30,28,15,10,10,7,46,34,147,58,3,5,6,6,28,18,14,14,169,87,29,29,6,10,10,10,88,89]
[null,"Enrolled in kindergarten",0,11,53,59,4,6,22,16,4,5,2,4,23,27,261,119,291,132,0,11,5,5,3,4,7,11,67,40,6,9,26,22,7,6,2,3,154,109,4,6,59,39,16,16,49,52]
[null,"Enrolled in grade Elementary School (grade 1 to grade 8)",149,62.801273872430329,293,118.10588469674151,157,49.739320461783549,125,44.598206241955516,46,16.970562748477139,47,23.853720883753127,376,110.30865786510141,1538,270.20732780589054,1526,252.43811122728675,190,73.878278269055514,42,19.798989873223331,31,17.464249196572979,110,31.827660925679098,592,137.2443077143821,9,7.2801098892805181,83,37.643060449437421,44,28.178005607210743,82,32.649655434629018,403,142.00352108310554,261,84.64632301523794,359,114.86513831445988,124,53.254107822777392,415,122.80065146407001]
[null,"Enrolled in grade 9 to grade 12",93,39,122,72,55,23,130,61,41,14,14,10,239,87,893,186,877,188,97,68,42,23,43,31,23,16,166,72,4,5,50,25,35,18,42,24,215,94,107,60,161,66,100,38,190,90]
[null,"Enrolled in Elementary and High School",242,73.925638313104884,415,138.32208789632983,212,54.799635035281028,255,75.564541949250241,87,22,61,25.865034312755125,615,140.48843368761715,2431,328.03658332570166,2403,314.75228355009597,287,100.40916292848975,84,30.347981810987037,74,35.580893749314392,133,35.62302626111375,758,154.98387012847499,13,8.8317608663278477,133,45.188494110780013,79,33.436506994600975,124,40.521599178709621,618,170.2967997350508,368,103.75451797391764,520,132.47641299491769,224,65.421708935184498,605,152.24979474534604]
[null,"Enrolled in College or Graduate School",89,61.660360037871982,157,105.94810050208545,91,36.674241641784498,40,22.803508501982758,25,12.806248474865697,46,55.317266743757322,130,86.700634369074834,4398,470.7706447942565,4522,450.30878294787902,114,47.381430961928537,39,20.518284528683193,34,22.825424421026653,69,35.171010790137949,1194,222.52415599210798,18,12.083045973594572,62,40.19950248448356,26,21.095023109728988,12,17.029386365926403,387,163.67040050051813,22,17.691806012954132,161,95.273291115611201,94,42.154477816715982,146,83.198557679805958]
[null,"Not enrolled in school",1449,178,2610,196,1142,130,1902,177,570,72,797,116,3024,144,15193,439,15420,487,1638,195,524,76,432,66,945,122,3640,222,162,43,918,135,545,70,704,90,5612,297,1702,218,2957,167,1429,194,3183,203]
[]
[]
[]
[]
[]
[]
[]
[]
[]
[]
[]
[]
[]
[]
[]
[]
[]
[]
[]
[]
[]
[]
[]
[]
[]
[]
[]
[]
[]
[null,"B14001.Calculated  SCHOOL ENROLLMENT BY LEVEL OF SCHOOL FOR THE POPULATION 3 YEARS AND OVER "]
[null,"Universe: POPULATION 3 YEARS AND OVER"]
[null,"Data Set: 2008-2012 American Community Survey 5-Year Estimates"]
[]
[null,null,"Alstead",null,"Chesterfield",null,"Dublin",null,"Fitzwilliam",null,"Gilsum",null,"Harrisville",null,"Hinsdale",null,"Jaffrey",null,"Keene",null,"Marlborough",null,"Marlow",null,"Nelson",null,"Richmond",null,"Rindge",null,"Roxbury",null,"Stoddard",null,"Sullivan",null,"Surry",null,"Swanzey",null,"Troy",null,"Walpole",null,"Westmoreland",null,"Winchester"]
[null," ","Estimate","Margin of Error","Estimate","Margin of Error","Estimate","Margin of Error","Estimate","Margin of Error","Estimate","Margin of Error","Estimate","Margin of Error","Estimate","Margin of Error","Estimate","Margin of Error","Estimate","Margin of Error","Estimate","Margin of Error","Estimate","Margin of Error","Estimate","Margin of Error","Estimate","Margin of Error","Estimate","Margin of Error","Estimate","Margin of Error","Estimate","Margin of Error","Estimate","Margin of Error","Estimate","Margin of Error","Estimate","Margin of Error","Estimate","Margin of Error","Estimate","Margin of Error","Estimate","Margin of Error","Estimate","Margin of Error"]
[null,"Total:",1840,159,3511,75,1693,208,2486,251,526,71,900,134,3847,96,5279,110,22826,208,1917,253,874,180,727,156,963,141,5764,88,214,37,984,166,676,105,800,109,7033,114,2051,272,3601,72,2149,240,4070,132]
[null,"Enrolled in school:",480,109,625,194,490,136,502,140,56,26,158,48,704,132,1373,196,8385,514,447,143,182,65,172,78,229,83,2545,241,41,19,190,68,167,61,120,44,1510,141,496,125,950,128,460,101,716,137]
[null,"Enrolled in nursery school, preschool, and Kindergarten",48,43,27,27,16,11,42,30,2,5,6,8,10,17,41,47,188,90,26,30,16,16,4,6,20,20,59,40,0,11,28,23,9,12,11,12,130,65,31,21,117,81,27,16,67,65]
[null,"Enrolled in nursery school, preschool",18,16,13,19,12,18,12,14,5,6,7,11,29,26,0,16,255,107,37,28,6,9,7,10,3,6,50,32,0,11,10,10,0,11,0,11,106,66,54,44,2,3,27,18,44,51]
[null,"Enrolled in kindergarten",88,43,154,71,118,59,114,67,5,4,56,34,72,49,302,100,752,160,61,35,40,23,38,29,41,26,276,78,9,7,34,23,38,32,13,10,378,111,128,62,234,118,82,37,283,115]
[null,"Enrolled in grade Elementary School (grade 1 to grade 8)",176,38,95,61,112,47,131,76,15,11,43,26,251,152,317,108,905,192,109,57,55,26,7,7,54,27,331,113,9,7,40,24,48,29,26,16,255,97,105,41,202,67,122,49,130,95]
[null,"Enrolled in grade 9 to grade 12",115,47,179,89,107,45,98,48,14,13,14,8,155,68,353,150,1007,190,85,51,39,37,54,35,67,36,232,75,20,13,46,25,37,19,46,27,461,166,95,51,226,88,115,46,131,69]
[null,"Enrolled in Elementary and High School",22,21,127,83,108,59,67,40,15,13,21,12,153,84,293,122,5052,524,93,78,21,12,53,35,44,23,1550,240,3,4,29,20,35,20,14,12,144,95,83,46,148,72,73,35,61,51]
[null,"Enrolled in College or Graduate School",13,10,30,33,17,16,38,29,0,11,11,9,34,38,67,64,226,112,36,27,5,6,9,8,0,11,47,68,0,11,3,5,0,11,10,11,36,36,0,11,21,23,14,12,0,11]
[null,"Not enrolled in school",1360,134,2886,193,1203,131,1984,186,470,62,742,107,3143,135,3906,201,14441,503,1470,176,692,143,555,100,734,88,3219,212,173,29,794,126,509,75,680,84,5523,155,1555,206,2651,131,1689,201,3354,137]

{"sheet":"ACS_Table_B15002","index":104,"n_rows":115,"n_cols":48,"rows_kept":115,"cut":false,"hidden":true,"merged":[]}
[null,"B15002. SEX BY EDUCATIONAL ATTAINMENT FOR THE POPULATION 25 YEARS AND OVER"]
[null,"Universe: Population 25 years an over"]
[null,"Data Set: 2018-2022 American Community Survey 5-Year Estimates"]
[]
[null,null,"Alstead",null,"Chesterfield",null,"Dublin",null,"Fitzwilliam",null,"Gilsum",null,"Harrisville",null,"Hinsdale",null,"Jaffrey",null,"Keene",null,"Marlborough",null,"Marlow",null,"Nelson",null,"Richmond",null,"Rindge",null,"Roxbury",null,"Stoddard",null,"Sullivan",null,"Surry",null,"Swanzey",null,"Troy",null,"Walpole",null,"Westmoreland",null,"Winchester"]
[null," ","Estimate","Margin of Error","Estimate","Margin of Error","Estimate","Margin of Error","Estimate","Margin of Error","Estimate","Margin of Error","Estimate","Margin of Error","Estimate","Margin of Error","Estimate","Margin of Error","Estimate","Margin of Error","Estimate","Margin of Error","Estimate","Margin of Error","Estimate","Margin of Error","Estimate","Margin of Error","Estimate","Margin of Error","Estimate","Margin of Error","Estimate","Margin of Error","Estimate","Margin of Error","Estimate","Margin of Error","Estimate","Margin of Error","Estimate","Margin of Error","Estimate","Margin of Error","Estimate","Margin of Error","Estimate","Margin of Error"]
[null,"Total:",1281,141,2694,196,1278,183,1897,332,625,101,792,140,3044,195,3844,226,15145,401,1584,244,570,115,448,77,825,176,3998,171,181,63,895,109,543,93,723,150,5750,243,1414,203,2529,131,1624,284,2876,231]
[null,"Male:",610,87,1335,150,606,102,1008,198,311,60,363,66,1653,203,2021,221,7132,379,705,126,287,58,213,38,422,125,2024,134,86,37,423,57,276,58,325,58,2827,210,743,134,1168,130,758,152,1427,186]
[null,"No schooling completed",0,12,0,12,0,12,1,3,0,12,0,12,20,19,11,20,164,116,7,10,0,12,0,12,0,12,0,17,1,2,11,14,3,3,4,5,0,17,0,12,8,14,6,6,47,57]
[null,"Nursery to 4th grade",0,12,0,12,8,12,0,12,3,8,0,12,31,41,2,7,0,22,0,12,0,12,0,12,0,12,0,17,0,12,0,12,0,12,0,12,0,17,0,12,31,36,0,12,0,12]
[null,"5th and 6th grade",0,12,0,12,0,12,0,12,0,12,0,12,0,12,0,17,0,22,0,12,0,12,0,12,0,12,0,17,0,12,0,12,0,12,0,12,0,17,0,12,25,38,0,12,0,12]
[null,"7th and 8th grade",8,11,0,12,0,12,41,27,6,7,0,12,25,28,13,21,85,76,0,12,0,12,0,12,11,15,0,17,0,12,0,12,6,6,0,12,19,28,0,12,0,12,0,12,53,50]
[null,"9th grade",2,3,0,12,5,6,0,12,4,4,3,5,0,12,10,19,46,33,23,32,0,12,0,12,0,12,18,21,0,12,0,12,0,12,0,12,85,138,21,32,0,12,0,12,0,12]
[null,"10th grade",11,10,15,24,6,7,3,5,2,3,3,4,127,101,0,17,67,50,17,15,0,12,0,12,10,14,6,10,2,3,0,12,7,6,2,3,54,51,19,18,32,30,3,4,59,38]
[null,"11th grade",2,3,0,12,6,6,7,7,4,5,4,6,38,48,18,30,143,109,13,13,2,3,8,13,4,6,58,49,0,12,0,12,6,7,0,12,63,84,0,12,0,12,8,15,81,58]
[null,"12th grade, no diploma",19,12,53,69,3,4,45,55,7,5,2,3,0,12,53,58,41,38,23,18,1,2,0,12,0,12,0,17,1,3,2,4,18,20,0,12,20,32,0,12,0,12,4,6,10,19]
[null,"High school graduate, GED, or alternative",259,85,461,152,152,67,266,64,136,50,90,41,884,230,595,261,1864,333,246,84,132,46,39,16,149,53,648,144,31,14,172,43,88,25,75,32,1253,291,361,113,326,105,171,46,753,160]
[null,"Some college, less than 1 year",38,29,48,34,8,8,69,46,3,4,18,13,41,46,140,111,446,174,40,29,34,30,9,6,24,15,83,54,2,3,35,16,17,14,10,10,262,163,63,33,56,38,52,31,56,41]
[null,"Some college, 1 or more years, no degree",51,29,142,132,80,53,114,52,48,21,35,19,143,89,544,252,1028,293,125,59,21,15,7,6,36,18,178,84,3,3,68,24,55,26,49,34,251,122,76,53,213,93,64,49,107,68]
[null,"Associate's degree",62,39,73,71,62,41,183,154,46,22,42,22,123,72,142,121,296,108,29,20,46,29,22,14,23,14,223,89,8,7,49,22,18,9,69,28,144,114,13,14,123,84,81,64,104,60]
[null,"Bachelor's degree",109,40,244,115,156,48,172,58,27,14,110,40,185,122,353,123,1799,293,102,43,25,16,87,25,111,78,429,138,30,36,49,14,25,15,86,24,454,173,139,50,250,65,217,88,97,54]
[null,"Master's degree",36,24,175,107,87,31,95,53,16,14,38,18,21,31,44,38,716,185,80,42,13,8,28,17,43,33,252,110,5,4,31,19,7,5,16,11,202,99,36,29,72,50,105,52,41,42]
[null,"Professional school degree",0,12,107,91,19,12,7,11,5,6,11,9,0,12,85,57,177,81,0,12,10,13,11,8,11,17,48,39,0,12,4,5,15,11,14,12,16,18,0,12,14,16,39,25,0,12]
[null,"Doctorate degree",13,11,17,27,14,11,5,7,4,4,7,11,15,27,11,19,260,121,0,12,3,4,2,3,0,12,81,64,3,4,2,4,11,13,0,12,4,12,15,16,18,18,8,10,19,21]
[null,"Female:",671,89,1359,138,672,111,889,158,314,56,429,82,1391,158,1823,159,8013,307,879,153,283,64,235,50,403,85,1974,142,95,32,472,67,267,51,398,110,2923,191,671,96,1361,126,866,171,1449,148]
[null,"No schooling completed",7,8,0,12,0,12,0,12,0,12,0,12,0,12,0,17,70,46,6,9,0,12,3,4,0,12,0,17,1,2,5,6,0,12,0,12,0,17,0,12,8,12,0,12,14,22]
[null,"Nursery to 4th grade",0,12,0,12,0,12,6,8,0,12,0,12,0,12,0,17,50,72,0,12,0,12,0,12,0,12,8,13,0,12,0,12,0,12,0,12,0,17,0,12,0,12,4,8,0,12]
[null,"5th and 6th grade",0,12,20,30,0,12,0,12,0,12,0,12,0,12,0,17,0,22,0,12,0,12,0,12,0,12,0,17,0,12,0,12,0,12,0,12,0,17,0,12,0,12,0,12,0,12]
[null,"7th and 8th grade",6,8,0,12,0,12,0,12,3,4,0,12,10,15,0,17,65,71,6,8,3,4,0,12,0,12,13,22,0,12,0,12,0,12,0,12,17,25,13,19,102,112,22,24,0,12]
[null,"9th grade",0,12,0,12,0,12,0,12,7,11,0,12,13,22,0,17,33,35,7,10,2,4,0,12,3,4,18,28,0,12,0,12,2,3,0,12,0,17,4,7,0,12,0,12,43,41]
[null,"10th grade",4,7,0,12,3,4,8,10,3,4,9,15,10,17,0,17,29,25,0,12,3,5,0,12,5,6,58,51,0,12,0,12,2,4,0,12,66,82,0,12,0,12,3,5,31,28]
[null,"11th grade",20,29,32,49,0,12,0,12,2,4,0,12,16,23,9,17,62,70,11,12,0,12,0,12,17,28,0,17,0,12,0,12,4,6,2,4,0,17,23,26,6,11,0,12,10,21]
[null,"12th grade, no diploma",0,12,0,12,3,4,11,12,0,12,4,5,9,14,5,7,160,90,0,12,0,12,0,12,0,12,2,6,2,3,0,12,2,3,7,7,11,18,8,12,24,28,3,5,35,38]
[null,"High school graduate, GED, or alternative",285,84,381,153,146,78,241,74,108,38,102,48,515,151,481,148,2013,357,254,84,61,25,53,24,137,54,418,133,28,15,149,37,74,26,105,36,1156,270,238,76,402,117,192,87,542,144]
[null,"Some college, less than 1 year",20,14,103,101,33,25,69,36,21,15,11,11,143,73,201,132,396,119,80,66,11,10,8,7,26,15,172,94,23,23,43,17,16,13,18,9,108,69,16,16,68,44,32,21,188,96]
[null,"Some college, 1 or more years, no degree",61,25,115,75,93,63,117,48,31,16,31,23,189,117,215,120,689,148,106,61,61,30,22,10,46,22,332,115,7,6,60,30,42,28,105,105,372,152,114,43,94,51,126,106,160,78]
[null,"Associate's degree",70,32,93,51,50,22,96,47,75,29,58,39,239,121,206,93,723,215,24,17,40,26,10,7,62,25,398,132,8,8,43,21,38,22,31,19,454,188,65,35,197,122,64,34,161,86]
[null,"Bachelor's degree",132,41,292,129,180,58,213,105,38,18,111,38,187,81,401,150,2466,342,254,111,58,39,88,30,81,30,312,152,13,7,113,32,52,18,82,39,452,167,119,44,283,76,262,80,134,64]
[null,"Master's degree",43,21,271,141,121,51,105,55,22,15,98,29,51,49,251,147,1170,217,100,46,38,26,40,18,26,15,191,99,12,13,59,29,26,11,45,22,225,120,66,38,149,76,129,67,120,99]
[null,"Professional school degree",4,7,32,48,35,27,3,6,0,12,5,5,0,12,40,47,66,53,14,20,6,6,3,4,0,12,31,25,1,2,0,12,9,8,3,4,28,42,0,12,28,26,17,16,11,18]
[null,"Doctorate degree",19,14,20,30,8,8,20,12,4,5,0,12,9,14,14,25,21,27,17,19,0,12,8,7,0,12,21,37,0,12,0,12,0,12,0,12,34,46,5,7,0,12,12,17,0,12]
[]
[]
[]
[]
[]
[]
[]
[]
[null,"Calculated B15002. SEX BY EDUCATIONAL ATTAINMENT FOR THE POPULATION 25 YEARS AND OVER"]
[null,{"$f":"B2","v":"Universe: Population 25 years an over"}]
[null,null,"Alstead",null,"Chesterfield",null,"Dublin",null,"Fitzwilliam",null,"Gilsum",null,"Harrisville",null,"Hinsdale",null,"Jaffrey",null,"Keene",null,"Marlborough",null,"Marlow",null,"Nelson",null,"Richmond",null,"Rindge",null,"Roxbury",null,"Stoddard",null,"Sullivan",null,"Surry",null,"Swanzey",null,"Troy",null,"Walpole",null,"Westmoreland",null,"Winchester"]
[null," ","Estimates","Margin of Error","Estimates","Margin of Error","Estimates","Margin of Error","Estimates","Margin of Error","Estimates","Margin of Error","Estimates","Margin of Error","Estimates","Margin of Error","Estimates","Margin of Error","Estimates","Margin of Error","Estimates","Margin of Error","Estimates","Margin of Error","Estimates","Margin of Error","Estimates","Margin of Error","Estimates","Margin of Error","Estimates","Margin of Error","Estimates","Margin of Error","Estimates","Margin of Error","Estimates","Margin of Error","Estimates","Margin of Error","Estimates","Margin of Error","Estimates","Margin of Error","Estimates","Margin of Error","Estimates","Margin of Error"]
[null,"Total:",{"$f":"C7","v":1281},{"$f":"D7","v":141},{"$f":"E7","v":2694},196,1278,183,1897,332,625,101,792,140,3044,195,3844,226,15145,401,1584,244,570,115,{"$f":"Y7","v":448},77,825,176,3998,171,181,63,895,109,543,93,723,150,5750,243,1414,203,2529,131,1624,284,2876,231]
[null,"Less than 9th grade",{"$f":"(C12+C11+C10)+(C27+C28+C29)","v":14},{"$f":"SQRT((D12^2)+(D11^2)+(D10^2)+(D27^2)+(D28^2)+(D29^2))","v":27.586228448267445},{"$f":"(E12+E11+E10)+(E27+E28+E29)","v":20},{"$f":"SQRT((F12^2)+(F11^2)+(F10^2)+(F27^2)+(F28^2)+(F29^2))","v":40.249223594996216},{"$f":"(G12+G11+G10)+(G27+G28+G29)","v":8},{"$f":"SQRT((H12^2)+(H11^2)+(H10^2)+(H27^2)+(H28^2)+(H29^2))","v":29.393876913398138},{"$f":"(I12+I11+I10)+(I27+I28+I29)","v":47},{"$f":"SQRT((J12^2)+(J11^2)+(J10^2)+(J27^2)+(J28^2)+(J29^2))","v":37},{"$f":"(K12+K11+K10)+(K27+K28+K29)","v":12},{"$f":"SQRT((L12^2)+(L11^2)+(L10^2)+(L27^2)+(L28^2)+(L29^2))","v":23.685438564654021},{"$f":"(M12+M11+M10)+(M27+M28+M29)","v":0},{"$f":"SQRT((N12^2)+(N11^2)+(N10^2)+(N27^2)+(N28^2)+(N29^2))","v":29.393876913398138},{"$f":"(O12+O11+O10)+(O27+O28+O29)","v":66},{"$f":"SQRT((P12^2)+(P11^2)+(P10^2)+(P27^2)+(P28^2)+(P29^2))","v":55.87486017879597},{"$f":"(Q12+Q11+Q10)+(Q27+Q28+Q29)","v":15},{"$f":"SQRT((R12^2)+(R11^2)+(R10^2)+(R27^2)+(R28^2)+(R29^2))","v":40.570925550201586},{"$f":"(S12+S11+S10)+(S27+S28+S29)","v":200},{"$f":"SQRT((T12^2)+(T11^2)+(T10^2)+(T27^2)+(T28^2)+(T29^2))","v":132.10980281568814},{"$f":"(U12+U11+U10)+(U27+U28+U29)","v":6},{"$f":"SQRT((V12^2)+(V11^2)+(V10^2)+(V27^2)+(V28^2)+(V29^2))","v":28},{"$f":"(W12+W11+W10)+(W27+W28+W29)","v":3},{"$f":"SQRT((X12^2)+(X11^2)+(X10^2)+(X27^2)+(X28^2)+(X29^2))","v":27.129319932501073},{"$f":"(Y12+Y11+Y10)+(Y27+Y28+Y29)","v":0},{"$f":"SQRT((Z12^2)+(Z11^2)+(Z10^2)+(Z27^2)+(Z28^2)+(Z29^2))","v":29.393876913398138},{"$f":"(AA12+AA11+AA10)+(AA27+AA28+AA29)","v":11},{"$f":"SQRT((AB12^2)+(AB11^2)+(AB10^2)+(AB27^2)+(AB28^2)+(AB29^2))","v":30.740852297878796},{"$f":"(AC12+AC11+AC10)+(AC27+AC28+AC29)","v":21},{"$f":"SQRT((AD12^2)+(AD11^2)+(AD10^2)+(AD27^2)+(AD28^2)+(AD29^2))","v":42.532340636273474},{"$f":"(AE12+AE11+AE10)+(AE27+AE28+AE29)","v":0},{"$f":"SQRT((AF12^2)+(AF11^2)+(AF10^2)+(AF27^2)+(AF28^2)+(AF29^2))","v":29.393876913398138},{"$f":"(AG12+AG11+AG10)+(AG27+AG28+AG29)","v":0},{"$f":"SQRT((AH12^2)+(AH11^2)+(AH10^2)+(AH27^2)+(AH28^2)+(AH29^2))","v":29.393876913398138},{"$f":"(AI12+AI11+AI10)+(AI27+AI28+AI29)","v":6},{"$f":"SQRT((AJ12^2)+(AJ11^2)+(AJ10^2)+(AJ27^2)+(AJ28^2)+(AJ29^2))","v":27.495454169735041},{"$f":"(AK12+AK11+AK10)+(AK27+AK28+AK29)","v":0},{"$f":"SQRT((AL12^2)+(AL11^2)+(AL10^2)+(AL27^2)+(AL28^2)+(AL29^2))","v":29.393876913398138},{"$f":"(AM12+AM11+AM10)+(AM27+AM28+AM29)","v":36},{"$f":"SQRT((AN12^2)+(AN11^2)+(AN10^2)+(AN27^2)+(AN28^2)+(AN29^2))","v":50.645829048402398},{"$f":"(AO12+AO11+AO10)+(AO27+AO28+AO29)","v":13},{"$f":"SQRT((AP12^2)+(AP11^2)+(AP10^2)+(AP27^2)+(AP28^2)+(AP29^2))","v":32.878564445547191},{"$f":"(AQ12+AQ11+AQ10)+(AQ27+AQ28+AQ29)","v":158},{"$f":"SQRT((AR12^2)+(AR11^2)+(AR10^2)+(AR27^2)+(AR28^2)+(AR29^2))","v":125.36347155371855},{"$f":"(AS12+AS11+AS10)+(AS27+AS28+AS29)","v":26},{"$f":"SQRT((AT12^2)+(AT11^2)+(AT10^2)+(AT27^2)+(AT28^2)+(AT29^2))","v":34.871191548325392},{"$f":"(AU12+AU11+AU10)+(AU27+AU28+AU29)","v":53},{"$f":"SQRT((AV12^2)+(AV11^2)+(AV10^2)+(AV27^2)+(AV28^2)+(AV29^2))","v":56.745043836444431}]
[null,"9th to 12th grade, no diploma",{"$f":"(C13+C14+C15+C16)+(C30+C31+C32+C33)","v":58},{"$f":"SQRT((D13^2)+(D14^2)+(D15^2)+(D16^2)+(D30^2)+(D31^2)+(D32^2)+(D33^2))","v":37.947331922020552},{"$f":"(E13+E14+E15+E16)+(E30+E31+E32+E33)","v":100},{"$f":"SQRT((F13^2)+(F14^2)+(F15^2)+(F16^2)+(F30^2)+(F31^2)+(F32^2)+(F33^2))","v":91.967385523347346},{"$f":"(G13+G14+G15+G16)+(G30+G31+G32+G33)","v":26},{"$f":"SQRT((H13^2)+(H14^2)+(H15^2)+(H16^2)+(H30^2)+(H31^2)+(H32^2)+(H33^2))","v":21.377558326431949},{"$f":"(I13+I14+I15+I16)+(I30+I31+I32+I33)","v":74},{"$f":"SQRT((J13^2)+(J14^2)+(J15^2)+(J16^2)+(J30^2)+(J31^2)+(J32^2)+(J33^2))","v":61.441028637222537},{"$f":"(K13+K14+K15+K16)+(K30+K31+K32+K33)","v":29},{"$f":"SQRT((L13^2)+(L14^2)+(L15^2)+(L16^2)+(L30^2)+(L31^2)+(L32^2)+(L33^2))","v":19.28730152198591},{"$f":"(M13+M14+M15+M16)+(M30+M31+M32+M33)","v":25},{"$f":"SQRT((N13^2)+(N14^2)+(N15^2)+(N16^2)+(N30^2)+(N31^2)+(N32^2)+(N33^2))","v":24.979991993593593},{"$f":"(O13+O14+O15+O16)+(O30+O31+O32+O33)","v":213},{"$f":"SQRT((P13^2)+(P14^2)+(P15^2)+(P16^2)+(P30^2)+(P31^2)+(P32^2)+(P33^2))","v":119.5449706177554},{"$f":"(Q13+Q14+Q15+Q16)+(Q30+Q31+Q32+Q33)","v":95},{"$f":"SQRT((R13^2)+(R14^2)+(R15^2)+(R16^2)+(R30^2)+(R31^2)+(R32^2)+(R33^2))","v":76.354436675284305},{"$f":"(S13+S14+S15+S16)+(S30+S31+S32+S33)","v":581},{"$f":"SQRT((T13^2)+(T14^2)+(T15^2)+(T16^2)+(T30^2)+(T31^2)+(T32^2)+(T33^2))","v":178.22457742971366},{"$f":"(U13+U14+U15+U16)+(U30+U31+U32+U33)","v":94},{"$f":"SQRT((V13^2)+(V14^2)+(V15^2)+(V16^2)+(V30^2)+(V31^2)+(V32^2)+(V33^2))","v":47.686476070265456},{"$f":"(W13+W14+W15+W16)+(W30+W31+W32+W33)","v":8},{"$f":"SQRT((X13^2)+(X14^2)+(X15^2)+(X16^2)+(X30^2)+(X31^2)+(X32^2)+(X33^2))","v":25.099800796022265},{"$f":"(Y13+Y14+Y15+Y16)+(Y30+Y31+Y32+Y33)","v":8},{"$f":"SQRT((Z13^2)+(Z14^2)+(Z15^2)+(Z16^2)+(Z30^2)+(Z31^2)+(Z32^2)+(Z33^2))","v":34.307433596816885},{"$f":"(AA13+AA14+AA15+AA16)+(AA30+AA31+AA32+AA33)","v":39},{"$f":"SQRT((AB13^2)+(AB14^2)+(AB15^2)+(AB16^2)+(AB30^2)+(AB31^2)+(AB32^2)+(AB33^2))","v":38.729833462074168},{"$f":"(AC13+AC14+AC15+AC16)+(AC30+AC31+AC32+AC33)","v":160},{"$f":"SQRT((AD13^2)+(AD14^2)+(AD15^2)+(AD16^2)+(AD30^2)+(AD31^2)+(AD32^2)+(AD33^2))","v":83.312664103364256},{"$f":"(AE13+AE14+AE15+AE16)+(AE30+AE31+AE32+AE33)","v":5},{"$f":"SQRT((AF13^2)+(AF14^2)+(AF15^2)+(AF16^2)+(AF30^2)+(AF31^2)+(AF32^2)+(AF33^2))","v":27.331300737432898},{"$f":"(AG13+AG14+AG15+AG16)+(AG30+AG31+AG32+AG33)","v":2},{"$f":"SQRT((AH13^2)+(AH14^2)+(AH15^2)+(AH16^2)+(AH30^2)+(AH31^2)+(AH32^2)+(AH33^2))","v":32},{"$f":"(AI13+AI14+AI15+AI16)+(AI30+AI31+AI32+AI33)","v":41},{"$f":"SQRT((AJ13^2)+(AJ14^2)+(AJ15^2)+(AJ16^2)+(AJ30^2)+(AJ31^2)+(AJ32^2)+(AJ33^2))","v":26.438608132804571},{"$f":"(AK13+AK14+AK15+AK16)+(AK30+AK31+AK32+AK33)","v":11},{"$f":"SQRT((AL13^2)+(AL14^2)+(AL15^2)+(AL16^2)+(AL30^2)+(AL31^2)+(AL32^2)+(AL33^2))","v":28.178005607210743},{"$f":"(AM13+AM14+AM15+AM16)+(AM30+AM31+AM32+AM33)","v":299},{"$f":"SQRT((AN13^2)+(AN14^2)+(AN15^2)+(AN16^2)+(AN30^2)+(AN31^2)+(AN32^2)+(AN33^2))","v":193.26406805197908},{"$f":"(AO13+AO14+AO15+AO16)+(AO30+AO31+AO32+AO33)","v":75},{"$f":"SQRT((AP13^2)+(AP14^2)+(AP15^2)+(AP16^2)+(AP30^2)+(AP31^2)+(AP32^2)+(AP33^2))","v":51.468436929831086},{"$f":"(AQ13+AQ14+AQ15+AQ16)+(AQ30+AQ31+AQ32+AQ33)","v":62},{"$f":"SQRT((AR13^2)+(AR14^2)+(AR15^2)+(AR16^2)+(AR30^2)+(AR31^2)+(AR32^2)+(AR33^2))","v":50.24937810560445},{"$f":"(AS13+AS14+AS15+AS16)+(AS30+AS31+AS32+AS33)","v":21},{"$f":"SQRT((AT13^2)+(AT14^2)+(AT15^2)+(AT16^2)+(AT30^2)+(AT31^2)+(AT32^2)+(AT33^2))","v":27.54995462791182},{"$f":"(AU13+AU14+AU15+AU16)+(AU30+AU31+AU32+AU33)","v":269},{"$f":"SQRT((AV13^2)+(AV14^2)+(AV15^2)+(AV16^2)+(AV30^2)+(AV31^2)+(AV32^2)+(AV33^2))","v":98.300559510106552}]
[null,"High school graduate (includes equivalency)",{"$f":"C17+C34","v":544},{"$f":"SQRT((D17^2)+(D34^2))","v":119.50313803411188},{"$f":"E17+E34","v":842},{"$f":"SQRT((F17^2)+(F34^2))","v":215.6687274502263},{"$f":"G17+G34","v":298},{"$f":"SQRT((H17^2)+(H34^2))","v":102.82509421342633},{"$f":"I17+I34","v":507},{"$f":"SQRT((J17^2)+(J34^2))","v":97.836598469080073},{"$f":"K17+K34","v":244},{"$f":"SQRT((L17^2)+(L34^2))","v":62.801273872430329},{"$f":"M17+M34","v":192},{"$f":"SQRT((N17^2)+(N34^2))","v":63.126856408346519},{"$f":"O17+O34","v":1399},{"$f":"SQRT((P17^2)+(P34^2))","v":275.13814711886101},{"$f":"Q17+Q34","v":1076},{"$f":"SQRT((R17^2)+(R34^2))","v":300.04166377354994},{"$f":"S17+S34","v":3877},{"$f":"SQRT((T17^2)+(T34^2))","v":488.19873002702496},{"$f":"U17+U34","v":500},{"$f":"SQRT((V17^2)+(V34^2))","v":118.79393923933998},{"$f":"W17+W34","v":193},{"$f":"SQRT((X17^2)+(X34^2))","v":52.354560450833695},{"$f":"Y17+Y34","v":92},{"$f":"SQRT((Z17^2)+(Z34^2))","v":28.844410203711913},{"$f":"AA17+AA34","v":286},{"$f":"SQRT((AB17^2)+(AB34^2))","v":75.663729752107784},{"$f":"AC17+AC34","v":1066},{"$f":"SQRT((AD17^2)+(AD34^2))","v":196.02295783912658},{"$f":"AE17+AE34","v":59},{"$f":"SQRT((AF17^2)+(AF34^2))","v":20.518284528683193},{"$f":"AG17+AG34","v":321},{"$f":"SQRT((AH17^2)+(AH34^2))","v":56.727418414731339},{"$f":"AI17+AI34","v":162},{"$f":"SQRT((AJ17^2)+(AJ34^2))","v":36.069377593742864},{"$f":"AK17+AK34","v":180},{"$f":"SQRT((AL17^2)+(AL34^2))","v":48.166378315169183},{"$f":"AM17+AM34","v":2409},{"$f":"SQRT((AN17^2)+(AN34^2))","v":396.9647339500072},{"$f":"AO17+AO34","v":599},{"$f":"SQRT((AP17^2)+(AP34^2))","v":136.18002790424151},{"$f":"AQ17+AQ34","v":728},{"$f":"SQRT((AR17^2)+(AR34^2))","v":157.20687007888682},{"$f":"AS17+AS34","v":363},{"$f":"SQRT((AT17^2)+(AT34^2))","v":98.412397592986224},{"$f":"AU17+AU34","v":1295},{"$f":"SQRT((AV17^2)+(AV34^2))","v":215.25798475317936}]
[null,"Some college, no degree",{"$f":"(C18+C19)+(C35+C36)","v":170},{"$f":"SQRT((D18^2)+(D19^2)+(D35^2)+(D36^2))","v":50.029991005395956},{"$f":"(E18+E19)+(E35+E36)","v":408},{"$f":"SQRT((F18^2)+(F19^2)+(F35^2)+(F36^2))","v":185.48854412065452},{"$f":"(G18+G19)+(G35+G36)","v":214},{"$f":"SQRT((H18^2)+(H19^2)+(H35^2)+(H36^2))","v":86.411804749119781},{"$f":"(I18+I19)+(I35+I36)","v":369},{"$f":"SQRT((J18^2)+(J19^2)+(J35^2)+(J36^2))","v":91.760557975635692},{"$f":"(K18+K19)+(K35+K36)","v":103},{"$f":"SQRT((L18^2)+(L19^2)+(L35^2)+(L36^2))","v":30.62678566222711},{"$f":"(M18+M19)+(M35+M36)","v":95},{"$f":"SQRT((N18^2)+(N19^2)+(N35^2)+(N36^2))","v":34.351128074635334},{"$f":"(O18+O19)+(O35+O36)","v":516},{"$f":"SQRT((P18^2)+(P19^2)+(P35^2)+(P36^2))","v":170.45527272572122},{"$f":"(Q18+Q19)+(Q35+Q36)","v":1100},{"$f":"SQRT((R18^2)+(R19^2)+(R35^2)+(R36^2))","v":328.09907040404732},{"$f":"(S18+S19)+(S35+S36)","v":2559},{"$f":"SQRT((T18^2)+(T19^2)+(T35^2)+(T36^2))","v":390.1153675517026},{"$f":"(U18+U19)+(U35+U36)","v":351},{"$f":"SQRT((V18^2)+(V19^2)+(V35^2)+(V36^2))","v":111.35079703351926},{"$f":"(W18+W19)+(W35+W36)","v":127},{"$f":"SQRT((X18^2)+(X19^2)+(X35^2)+(X36^2))","v":46.097722286464439},{"$f":"(Y18+Y19)+(Y35+Y36)","v":46},{"$f":"SQRT((Z18^2)+(Z19^2)+(Z35^2)+(Z36^2))","v":14.866068747318506},{"$f":"(AA18+AA19)+(AA35+AA36)","v":132},{"$f":"SQRT((AB18^2)+(AB19^2)+(AB35^2)+(AB36^2))","v":35.468295701936398},{"$f":"(AC18+AC19)+(AC35+AC36)","v":765},{"$f":"SQRT((AD18^2)+(AD19^2)+(AD35^2)+(AD36^2))","v":178.97765223624987},{"$f":"(AE18+AE19)+(AE35+AE36)","v":35},{"$f":"SQRT((AF18^2)+(AF19^2)+(AF35^2)+(AF36^2))","v":24.145392935299274},{"$f":"(AG18+AG19)+(AG35+AG36)","v":206},{"$f":"SQRT((AH18^2)+(AH19^2)+(AH35^2)+(AH36^2))","v":44.955533585978046},{"$f":"(AI18+AI19)+(AI35+AI36)","v":130},{"$f":"SQRT((AJ18^2)+(AJ19^2)+(AJ35^2)+(AJ36^2))","v":42.720018726587654},{"$f":"(AK18+AK19)+(AK35+AK36)","v":182},{"$f":"SQRT((AL18^2)+(AL19^2)+(AL35^2)+(AL36^2))","v":111.18453129819814},{"$f":"(AM18+AM19)+(AM35+AM36)","v":993},{"$f":"SQRT((AN18^2)+(AN19^2)+(AN35^2)+(AN36^2))","v":263.28311757497858},{"$f":"(AO18+AO19)+(AO35+AO36)","v":269},{"$f":"SQRT((AP18^2)+(AP19^2)+(AP35^2)+(AP36^2))","v":77.47902942086975},{"$f":"(AQ18+AQ19)+(AQ35+AQ36)","v":431},{"$f":"SQRT((AR18^2)+(AR19^2)+(AR35^2)+(AR36^2))","v":120.95453691366852},{"$f":"(AS18+AS19)+(AS35+AS36)","v":274},{"$f":"SQRT((AT18^2)+(AT19^2)+(AT35^2)+(AT36^2))","v":122.63360061581818},{"$f":"(AU18+AU19)+(AU35+AU36)","v":511},{"$f":"SQRT((AV18^2)+(AV19^2)+(AV35^2)+(AV36^2))","v":146.98639392814562}]
[null,"Associate's degree",{"$f":"C20+C37","v":132},{"$f":"SQRT((D20^2)+(D37^2))","v":50.447993022517757},{"$f":"E20+E37","v":166},{"$f":"SQRT((F20^2)+(F37^2))","v":87.418533504057365},{"$f":"G20+G37","v":112},{"$f":"SQRT((H20^2)+(H37^2))","v":46.529560496527367},{"$f":"I20+I37","v":279},{"$f":"SQRT((J20^2)+(J37^2))","v":161.01242188104618},{"$f":"K20+K37","v":121},{"$f":"SQRT((L20^2)+(L37^2))","v":36.400549446402593},{"$f":"M20+M37","v":100},{"$f":"SQRT((N20^2)+(N37^2))","v":44.77722635447622},{"$f":"O20+O37","v":362},{"$f":"SQRT((P20^2)+(P37^2))","v":140.80127840328723},{"$f":"Q20+Q37","v":348},{"$f":"SQRT((R20^2)+(R37^2))","v":152.6106156202772},{"$f":"S20+S37","v":1019},{"$f":"SQRT((T20^2)+(T37^2))","v":240.60133000463651},{"$f":"U20+U37","v":53},{"$f":"SQRT((V20^2)+(V37^2))","v":26.248809496813376},{"$f":"W20+W37","v":86},{"$f":"SQRT((X20^2)+(X37^2))","v":38.948684188300895},{"$f":"Y20+Y37","v":32},{"$f":"SQRT((Z20^2)+(Z37^2))","v":15.652475842498529},{"$f":"AA20+AA37","v":85},{"$f":"SQRT((AB20^2)+(AB37^2))","v":28.653097563788805},{"$f":"AC20+AC37","v":621},{"$f":"SQRT((AD20^2)+(AD37^2))","v":159.20113064925135},{"$f":"AE20+AE37","v":16},{"$f":"SQRT((AF20^2)+(AF37^2))","v":10.63014581273465},{"$f":"AG20+AG37","v":92},{"$f":"SQRT((AH20^2)+(AH37^2))","v":30.413812651491099},{"$f":"AI20+AI37","v":56},{"$f":"SQRT((AJ20^2)+(AJ37^2))","v":23.769728648009426},{"$f":"AK20+AK37","v":100},{"$f":"SQRT((AL20^2)+(AL37^2))","v":33.837848631377263},{"$f":"AM20+AM37","v":598},{"$f":"SQRT((AN20^2)+(AN37^2))","v":219.86359407596339},{"$f":"AO20+AO37","v":78},{"$f":"SQRT((AP20^2)+(AP37^2))","v":37.696153649941529},{"$f":"AQ20+AQ37","v":320},{"$f":"SQRT((AR20^2)+(AR37^2))","v":148.12157169028418},{"$f":"AS20+AS37","v":145},{"$f":"SQRT((AT20^2)+(AT37^2))","v":72.47068372797375},{"$f":"AU20+AU37","v":265},{"$f":"SQRT((AV20^2)+(AV37^2))","v":104.86181383134664}]
[null,"Bachelor's degree",{"$f":"C21+C38","v":241},{"$f":"SQRT((D21^2)+(D38^2))","v":57.280013966478741},{"$f":"E21+E38","v":536},{"$f":"SQRT((F21^2)+(F38^2))","v":172.81782315490494},{"$f":"G21+G38","v":336},{"$f":"SQRT((H21^2)+(H38^2))","v":75.286120898874842},{"$f":"I21+I38","v":385},{"$f":"SQRT((J21^2)+(J38^2))","v":119.95415791042844},{"$f":"K21+K38","v":65},{"$f":"SQRT((L21^2)+(L38^2))","v":22.803508501982758},{"$f":"M21+M38","v":221},{"$f":"SQRT((N21^2)+(N38^2))","v":55.172456896534889},{"$f":"O21+O38","v":372},{"$f":"SQRT((P21^2)+(P38^2))","v":146.44111444536333},{"$f":"Q21+Q38","v":754},{"$f":"SQRT((R21^2)+(R38^2))","v":193.98195792392653},{"$f":"S21+S38","v":4265},{"$f":"SQRT((T21^2)+(T38^2))","v":450.34764349333506},{"$f":"U21+U38","v":356},{"$f":"SQRT((V21^2)+(V38^2))","v":119.03780911962384},{"$f":"W21+W38","v":83},{"$f":"SQRT((X21^2)+(X38^2))","v":42.154477816715982},{"$f":"Y21+Y38","v":175},{"$f":"SQRT((Z21^2)+(Z38^2))","v":39.05124837953327},{"$f":"AA21+AA38","v":192},{"$f":"SQRT((AB21^2)+(AB38^2))","v":83.570329663104715},{"$f":"AC21+AC38","v":741},{"$f":"SQRT((AD21^2)+(AD38^2))","v":205.29978080845581},{"$f":"AE21+AE38","v":43},{"$f":"SQRT((AF21^2)+(AF38^2))","v":36.674241641784498},{"$f":"AG21+AG38","v":162},{"$f":"SQRT((AH21^2)+(AH38^2))","v":34.928498393145958},{"$f":"AI21+AI38","v":77},{"$f":"SQRT((AJ21^2)+(AJ38^2))","v":23.430749027719962},{"$f":"AK21+AK38","v":168},{"$f":"SQRT((AL21^2)+(AL38^2))","v":45.793012567421243},{"$f":"AM21+AM38","v":906},{"$f":"SQRT((AN21^2)+(AN38^2))","v":240.45373775427157},{"$f":"AO21+AO38","v":258},{"$f":"SQRT((AP21^2)+(AP38^2))","v":66.603303221386852},{"$f":"AQ21+AQ38","v":533},{"$f":"SQRT((AR21^2)+(AR38^2))","v":100.00499987500625},{"$f":"AS21+AS38","v":479},{"$f":"SQRT((AT21^2)+(AT38^2))","v":118.92854997854805},{"$f":"AU21+AU38","v":231},83.737685661833282]
[null,"Graduate or professional degree",{"$f":"(C22+C23+C24)+(C39+C40+C41)","v":115},{"$f":"SQRT((D22^2)+(D23^2)+(D24^2)+(D39^2)+(D41^2)+(D40^2))","v":39.076847365159843},{"$f":"(E22+E23+E24)+(E39+E40+E41)","v":622},{"$f":"SQRT((F22^2)+(F23^2)+(F24^2)+(F39^2)+(F41^2)+(F40^2))","v":208.67199141235989},{"$f":"(G22+G23+G24)+(G39+G40+G41)","v":284},{"$f":"SQRT((H22^2)+(H23^2)+(H24^2)+(H39^2)+(H41^2)+(H40^2))","v":67.970581871865718},{"$f":"(I22+I23+I24)+(I39+I40+I41)","v":235},{"$f":"SQRT((J22^2)+(J23^2)+(J24^2)+(J39^2)+(J41^2)+(J40^2))","v":78.638413005350003},{"$f":"(K22+K23+K24)+(K39+K40+K41)","v":51},{"$f":"SQRT((L22^2)+(L23^2)+(L24^2)+(L39^2)+(L41^2)+(L40^2))","v":25.337718918639855},{"$f":"(M22+M23+M24)+(M39+M40+M41)","v":159},{"$f":"SQRT((N22^2)+(N23^2)+(N24^2)+(N39^2)+(N41^2)+(N40^2))","v":39.191835884530846},{"$f":"(O22+O23+O24)+(O39+O40+O41)","v":96},{"$f":"SQRT((P22^2)+(P23^2)+(P24^2)+(P39^2)+(P41^2)+(P40^2))","v":67.638746292343413},{"$f":"(Q22+Q23+Q24)+(Q39+Q40+Q41)","v":445},{"$f":"SQRT((R22^2)+(R23^2)+(R24^2)+(R39^2)+(R41^2)+(R40^2))","v":171.74690681348528},{"$f":"(S22+S23+S24)+(S39+S40+S41)","v":2410},{"$f":"SQRT((T22^2)+(T23^2)+(T24^2)+(T39^2)+(T41^2)+(T40^2))","v":325.65933120363678},{"$f":"(U22+U23+U24)+(U39+U40+U41)","v":211},{"$f":"SQRT((V22^2)+(V23^2)+(V24^2)+(V39^2)+(V41^2)+(V40^2))","v":70.206837273872409},{"$f":"(W22+W23+W24)+(W39+W40+W41)","v":70},{"$f":"SQRT((X22^2)+(X23^2)+(X24^2)+(X39^2)+(X41^2)+(X40^2))","v":33.241540277189323},{"$f":"(Y22+Y23+Y24)+(Y39+Y40+Y41)","v":92},{"$f":"SQRT((Z22^2)+(Z23^2)+(Z24^2)+(Z39^2)+(Z41^2)+(Z40^2))","v":27.404379212089442},{"$f":"(AA22+AA23+AA24)+(AA39+AA40+AA41)","v":80},{"$f":"SQRT((AB22^2)+(AB23^2)+(AB24^2)+(AB39^2)+(AB41^2)+(AB40^2))","v":45.110974274559844},{"$f":"(AC22+AC23+AC24)+(AC39+AC40+AC41)","v":624},{"$f":"SQRT((AD22^2)+(AD23^2)+(AD24^2)+(AD39^2)+(AD41^2)+(AD40^2))","v":171.79057017193929},{"$f":"(AE22+AE23+AE24)+(AE39+AE40+AE41)","v":21},{"$f":"SQRT((AF22^2)+(AF23^2)+(AF24^2)+(AF39^2)+(AF41^2)+(AF40^2))","v":22.203603311174518},{"$f":"(AG22+AG23+AG24)+(AG39+AG40+AG41)","v":96},{"$f":"SQRT((AH22^2)+(AH23^2)+(AH24^2)+(AH39^2)+(AH41^2)+(AH40^2))","v":39.1279950930277},{"$f":"(AI22+AI23+AI24)+(AI39+AI40+AI41)","v":68},{"$f":"SQRT((AJ22^2)+(AJ23^2)+(AJ24^2)+(AJ39^2)+(AJ41^2)+(AJ40^2))","v":25.37715508089904},{"$f":"(AK22+AK23+AK24)+(AK39+AK40+AK41)","v":78},{"$f":"SQRT((AL22^2)+(AL23^2)+(AL24^2)+(AL39^2)+(AL41^2)+(AL40^2))","v":32.449961479175904},{"$f":"(AM22+AM23+AM24)+(AM39+AM40+AM41)","v":509},{"$f":"SQRT((AN22^2)+(AN23^2)+(AN24^2)+(AN39^2)+(AN41^2)+(AN40^2))","v":168.96449331146471},{"$f":"(AO22+AO23+AO24)+(AO39+AO40+AO41)","v":122},{"$f":"SQRT((AP22^2)+(AP23^2)+(AP24^2)+(AP39^2)+(AP41^2)+(AP40^2))","v":53.646994324006634},{"$f":"(AQ22+AQ23+AQ24)+(AQ39+AQ40+AQ41)","v":281},{"$f":"SQRT((AR22^2)+(AR23^2)+(AR24^2)+(AR39^2)+(AR41^2)+(AR40^2))","v":98.366661018863496},{"$f":"(AS22+AS23+AS24)+(AS39+AS40+AS41)","v":310},{"$f":"SQRT((AT22^2)+(AT23^2)+(AT24^2)+(AT39^2)+(AT41^2)+(AT40^2))","v":91.994565056855393},{"$f":"(AU22+AU23+AU24)+(AU39+AU40+AU41)","v":191},{"$f":"SQRT((AV22^2)+(AV23^2)+(AV24^2)+(AV39^2)+(AV41^2)+(AV40^2))","v":112.32987136109433}]
[]
[]
[]
[]
[]
[]
[]
[]
[]
[]
[]
[]
[]
[]
[]
[]
[]
[]
[]
[]
[]
[]
[]
[]
[]
[]
[]
[null,"Calculated B15002. SEX BY EDUCATIONAL ATTAINMENT FOR THE POPULATION 25 YEARS AND OVER"]
[null,"Data Set: 2013-2017 American Community Survey 5-Year Estimates"]
[null,null,"Alstead",null,"Chesterfield",null,"Dublin",null,"Fitzwilliam",null,"Gilsum",null,"Harrisville",null,"Hinsdale",null,"Jaffrey",null,"Keene",null,"Marlborough",null,"Marlow",null,"Nelson",null,"Richmond",null,"Rindge",null,"Roxbury",null,"Stoddard",null,"Sullivan",null,"Surry",null,"Swanzey",null,"Troy",null,"Walpole",null,"Westmoreland",null,"Winchester"]
[null," ","Estimate","Margin of Error","Estimate","Margin of Error","Estimate","Margin of Error","Estimate","Margin of Error","Estimate","Margin of Error","Estimate","Margin of Error","Estimate","Margin of Error","Estimate","Margin of Error","Estimate","Margin of Error","Estimate","Margin of Error","Estimate","Margin of Error","Estimate","Margin of Error","Estimate","Margin of Error","Estimate","Margin of Error","Estimate","Margin of Error","Estimate","Margin of Error","Estimate","Margin of Error","Estimate","Margin of Error","Estimate","Margin of Error","Estimate","Margin of Error","Estimate","Margin of Error","Estimate","Margin of Error","Estimate","Margin of Error"]
[null,"Total:",1297,141,2599,177,1093,130,1848,181,449,67,696,92,3083,205,3844,212,14188,484,1548,164,699,125,591,106,787,130,3151,279,190,37,768,132,494,86,608,75,5035,210,1275,153,2495,187,1542,168,3011,192]
[null,"Less than 9th grade",20,170.8127629891865,22,192.90930511512397,8,190.32866310674279,52,174.18381095842403,6,170.12054549642144,0,208.20662813657015,85,130.69047402163633,80,164.79077644091615,410,121.04131526053408,30,172.84964564615109,32,123.40583454602137,0,208.20662813657015,10,170.1910690958841,120,165.98493907580891,5,190.13153341831543,6,190.27874290103978,17,148.20593780277497,3,190.10786411929413,116,186.63600938725625,31,149.3151030539108,35,172.36008818749195,42,122.81286577553672,78,157.98417642283039]
[null,"9th to 12th grade, no diploma",35,149,160,178.02808767158064,36,171.95638982020995,83,101.41005867269774,29,121.2435565298214,30,148.77163708180402,432,166.74231616479364,299,154.77725931156684,947,208.46822299813465,207,115.53354491228943,25,171.11984104714449,3,224.94443758403986,58,26.645825188948457,120,106.17438485811914,7,190.15519977113431,68,90.166512630798806,35,121.84416276539471,29,148.34419435893,404,154.58654533949584,121,48.959166659574592,72,99.257241549420471,98,54.626001134990652,428,141.54857823376398]
[null,"High school graduate (includes equivalency)",427,80.280757345705197,689,163.02760502442524,373,94.339811320566042,646,129.49517365523704,241,51.662365412357957,128,37.643060449437421,1419,199.15069670980316,1169,223.83252668010519,4162,365.48324174987835,400,103.23759005323593,296,73.593477971896391,107,40.853396431630991,256,60.141499815019579,1161,179.06702655709677,68,23.430749027719962,281,70.767224051816527,193,51.088159097779204,149,37.20215047547655,1689,261.19724347703215,497,97.005154502222197,929,164.45364088398895,504,92.763139231054481,1690,182.87974190707948]
[null,"Some college, no degree",235,60.266076693277455,462,165.49924471126749,209,51.234753829797995,340,89.235643102966435,55,19,131,39.66106403010388,572,148.94294209528695,851,205.7984450864486,2714,355.94241107235308,294,83.108362996752618,113,41.267420563926699,114,39.319206502675002,135,39.874804074753769,730,142.77604841148951,47,19.442222095223581,89,30.099833886584822,84,26.038433132583073,156,45.803929962395145,805,180.64883060789515,233,67.660919296149089,459,119,261,59.042357676502043,316,104.45573225055675]
[null,"Associate's degree",152,47.634021455258214,205,84.581321815161999,108,34.058772731852805,163,48.764741360946438,31,15.620499351813308,44,21.633307652783937,224,87.206651122491792,225,98.493654617949886,863,224.4014260204244,134,53.037722424704477,85,32.557641192199412,46,25.298221281347036,82,33.541019662496844,306,102.95630140987001,19,11.661903789690601,65,24.839484696748443,47,21.2602916254693,74,26.90724809414742,354,138.7984149765407,143,49.648766349225639,164,69.028979421689272,118,42.638011210655684,148,79.158069708653201]
[null,"Bachelor's degree",275,55.470712993434653,668,162.53307355735325,198,55.317266743757322,373,81.394102980498531,55,26.248809496813376,230,44.687805943008662,205,78.230428862431779,892,198.07069445023916,3186,367.64248938336817,240,58.600341295934449,87,33.941125496954278,191,48.083261120685229,144,40.459856648287818,420,118.2285921425101,26,11.401754250991379,128,42.720018726587654,76,27.018512172212592,132,33.015148038438355,1068,221.73181999884454,194,62.609903369994115,594,136.18002790424151,300,59.033888572581766,190,82.462112512353215]
[null,"Graduate or professional degree",67,90.697298746985851,360,150.48255712872506,68,124.71968569556292,107,91.880356986681321,24,121.08674576517448,68,27.018512172212592,34,151.09930509436501,195,115.63304026099115,1001,190.01315743916263,101,91.994565056855393,29,121.40840168620952,61,24.269322199023193,36,86.792856848936594,206,116.35720862928949,11,85.434185195388849,63,27.018512172212592,26,85.9709253178073,23,121.33424908079334,276,120.58192235986289,17,86.220647179199489,124,123.85071659057932,125,35.930488446443363,91,102.32790430767162]
[]
[]
[null,"Calculated B15002. SEX BY EDUCATIONAL ATTAINMENT FOR THE POPULATION 25 YEARS AND OVER"]
[null,"Universe:  POPULATION 25 YEARS AND OVER"]
[null,"Data Set: 2008-2012 American Community Survey 5-Year Estimates"]
[null,null,"Alstead",null,"Chesterfield",null,"Dublin",null,"Fitzwilliam",null,"Gilsum",null,"Harrisville",null,"Hinsdale",null,"Jaffrey",null,"Keene",null,"Marlborough",null,"Marlow",null,"Nelson",null,"Richmond",null,"Rindge",null,"Roxbury",null,"Stoddard",null,"Sullivan",null,"Surry",null,"Swanzey",null,"Troy",null,"Walpole",null,"Westmoreland",null,"Winchester"]
[null," ","Estimate","Margin of Error","Estimate","Margin of Error","Estimate","Margin of Error","Estimate","Margin of Error","Estimate","Margin of Error","Estimate","Margin of Error","Estimate","Margin of Error","Estimate","Margin of Error","Estimate","Margin of Error","Estimate","Margin of Error","Estimate","Margin of Error","Estimate","Margin of Error","Estimate","Margin of Error","Estimate","Margin of Error","Estimate","Margin of Error","Estimate","Margin of Error","Estimate","Margin of Error","Estimate","Margin of Error","Estimate","Margin of Error","Estimate","Margin of Error","Estimate","Margin of Error","Estimate","Margin of Error","Estimate","Margin of Error"]
[null,"Total:",1320,129,2691,169,1166,131,1950,168,447,60,729,102,3039,174,3783,173,14009,385,1478,156,666,128,547,94,712,86,3117,177,166,28,776,125,476,64,664,86,5105,208,1423,175,2523,165,1622,183,3102,193]
[null,"Less than 9th grade",26,28.106938645110393,24,42.778499272414876,18,28.809720581775867,32,39.749213828703581,5,22.912878474779198,0,26.944387170614959,85,52.239831546435909,79,73.688533707762161,298,97.401232025062185,15,26.153393661244042,16,24.758836806279895,2,24.919871588754223,5,22.759613353482084,130,86.965510404987569,4,25.099800796022265,6,26.19160170741759,24,26.076809620810597,2,24.779023386727733,129,91.224996574403889,36,33.541019662496844,36,37.20215047547655,31,29.171904291629644,40,36.728735344413913]
[null,"9th to 12th grade, no diploma",53,32.984845004941285,122,86.936758623726021,39,30.413812651491099,104,60.373835392494321,45,22.956480566497994,6,27.531799795872409,327,120.7393887677091,313,134.37261625792661,729,160.60199251565965,145,61.838499334961227,29,28.965496715920477,3,29.529646120466801,49,27.676705006196094,155,64.645185435575939,4,27.404379212089442,30,29.017236257093817,36,25.03996805109783,29,25.787593916455254,359,114.20595431062253,114,45.343136195018538,74,57.262553208881634,89,53.758720222862451,486,159.80300372646317]
[null,"High school graduate (includes equivalency)",418,73,779,192.57466084612483,333,62.801273872430329,696,115.43396380615195,207,42.638011210655684,143,47.434164902525687,1432,202.47468977627796,1093,237.53947040439405,4132,356.38462368626398,374,88.459030064770658,311,79.025312400521386,113,45.880278987817846,209,48.083261120685229,1087,163.46559270990332,57,17.804493814764857,304,65.192024052026483,179,46.043457732885351,187,43.600458713183279,1768,301.65709008740373,583,104.00480758118829,1012,148.51935900750448,556,92.314679222754165,1614,198.01010075246163]
[null,"Some college, no degree",217,53.263495942343098,461,173.34070497145211,181,48.228622207149975,365,90.188691087075881,72,23.895606290697042,153,46.195237849804386,590,162.80356261458164,1005,217.95641766188029,2730,358.5889011110076,328,96.010416101587651,103,32.878564445547191,90,29.086079144497972,139,41.54515615568198,775,146.73104647619741,38,13.114877048604001,119,42.555845661906424,79,25.238858928247925,166,45.912961132995989,881,191.4210019825411,263,81.957305958651418,475,125.81732790041282,283,65.038450166036398,424,142.42892964563063]
[null,"Associate's degree",124,38.183766184073569,206,95.12623192369179,108,40.311288741492746,199,59.059292240933601,27,11.313708498984761,51,21.95449840010015,254,86.821656284592962,230,116.67476162392619,803,162.78820596099706,143,47.434164902525687,75,28.319604517012593,43,22.360679774997898,70,36.400549446402593,256,87.464278422679513,17,12.083045973594572,84,35.777087639996637,49,23.021728866442675,73,24.758836806279895,395,145.49914089093448,153,65.215028942721474,166,63.513778032801667,127,50.219518117958877,163,84.077345343439575]
[null,"Bachelor's degree",307,63.7808748764079,732,194.62014284240982,248,52.497618993626752,326,69.426219830839131,56,22.022715545545239,261,50.911688245431421,187,67.801179930735714,750,188.09572031282372,3237,407.41379456272711,250,63.812224534175265,80,31.240998703626616,188,47.201694884823787,135,33.97057550292606,452,108.37435120913067,28,13.038404810405298,110,39.66106403010388,70,21.2602916254693,142,34.828149534535996,985,202.97044119772713,203,69.814038702828242,522,115.36463929644994,307,61.522353661088097,223,81.21576201698781]
[null,"Graduate or professional degree",76,27.928480087537881,313,145.46477236774544,114,41.243181254602561,116,52.172789842982326,26,21.071307505705477,60,24.535688292770594,53,51.643005334701428,184,74.846509604656916,971,188.77234967017813,92,37.603191353926334,17,18.220867158288598,52,18.814887722226779,42,20.71231517720798,182,70.320693966996657,9,13.076696830622021,56,24.899799195977465,20,15.198684153570664,21,15.459624833740307,279,126.35663813191613,46,34.02939905434711,104,66.580778006869224,127,39.242833740697165,54,41.42463035441596]

{"sheet":"SData_B25088MednMthlyOwnerCost","index":105,"n_rows":33,"n_cols":50,"rows_kept":33,"cut":false,"hidden":true,"merged":[]}
["GEO_ID","GEO_ID2","SUMLEVEL",{"$f":"[1]ACS_16_5YR_B25088_with_ann!C1","v":"NAME"},{"$f":"[1]ACS_16_5YR_B25088_with_ann!D1","v":"B25088_001E"},{"$f":"[1]ACS_16_5YR_B25088_with_ann!E1","v":"B25088_001M"},{"$f":"[1]ACS_16_5YR_B25088_with_ann!F1","v":"B25088_002E"},{"$f":"[1]ACS_16_5YR_B25088_with_ann!G1","v":"B25088_002M"},{"$f":"[1]ACS_16_5YR_B25088_with_ann!H1","v":"B25088_003E"},{"$f":"[1]ACS_16_5YR_B25088_with_ann!I1","v":"B25088_003M"}]
["Geography Identifier","Geography Identifier","Geographic Summary Level",{"$f":"[1]ACS_16_5YR_B25088_with_ann!C2","v":"Geographic Area Name"},{"$f":"[1]ACS_16_5YR_B25088_with_ann!D2","v":"Estimate!!Median selected monthly owner costs (dollars) --!!Total:"},{"$f":"[1]ACS_16_5YR_B25088_with_ann!E2","v":"Margin of Error!!Median selected monthly owner costs (dollars) --!!Total:"},{"$f":"[1]ACS_16_5YR_B25088_with_ann!F2","v":"Estimate!!Median selected monthly owner costs (dollars) --!!Housing units with a mortgage (dollars)"},{"$f":"[1]ACS_16_5YR_B25088_with_ann!G2","v":"Margin of Error!!Median selected monthly owner costs (dollars) --!!Housing units with a mortgage (dollars)"},{"$f":"[1]ACS_16_5YR_B25088_with_ann!H2","v":"Estimate!!Median selected monthly owner costs (dollars) --!!Housing units without a mortgage (dollars)"},{"$f":"[1]ACS_16_5YR_B25088_with_ann!I2","v":"Margin of Error!!Median selected monthly owner costs (dollars) --!!Housing units without a mortgage (dollars)"}]
["06000US3300500820","0600000US3300512260","060",{"$f":"[1]ACS_16_5YR_B25088_with_ann!C44","v":"Alstead"},{"$f":"[1]ACS_16_5YR_B25088_with_ann!D44","v":1059},{"$f":"[1]ACS_16_5YR_B25088_with_ann!E44","v":265},{"$f":"[1]ACS_16_5YR_B25088_with_ann!F44","v":1812},{"$f":"[1]ACS_16_5YR_B25088_with_ann!G44","v":100},{"$f":"[1]ACS_16_5YR_B25088_with_ann!H44","v":737},{"$f":"[1]ACS_16_5YR_B25088_with_ann!I44","v":47}]
["06000US3300512260","0600000US3300519140","060",{"$f":"[1]ACS_16_5YR_B25088_with_ann!C45","v":"Chesterfield"},{"$f":"[1]ACS_16_5YR_B25088_with_ann!D45","v":1701},{"$f":"[1]ACS_16_5YR_B25088_with_ann!E45","v":263},{"$f":"[1]ACS_16_5YR_B25088_with_ann!F45","v":1900},{"$f":"[1]ACS_16_5YR_B25088_with_ann!G45","v":115},{"$f":"[1]ACS_16_5YR_B25088_with_ann!H45","v":839},{"$f":"[1]ACS_16_5YR_B25088_with_ann!I45","v":215}]
["06000US3300519140","0600000US3300526500","060",{"$f":"[1]ACS_16_5YR_B25088_with_ann!C46","v":"Dublin"},{"$f":"[1]ACS_16_5YR_B25088_with_ann!D46","v":1348},{"$f":"[1]ACS_16_5YR_B25088_with_ann!E46","v":243},{"$f":"[1]ACS_16_5YR_B25088_with_ann!F46","v":1948},{"$f":"[1]ACS_16_5YR_B25088_with_ann!G46","v":345},{"$f":"[1]ACS_16_5YR_B25088_with_ann!H46","v":1039},{"$f":"[1]ACS_16_5YR_B25088_with_ann!I46","v":97}]
["06000US3300526500","0600000US3300529220","060",{"$f":"[1]ACS_16_5YR_B25088_with_ann!C47","v":"Fitzwilliam"},{"$f":"[1]ACS_16_5YR_B25088_with_ann!D47","v":1361},{"$f":"[1]ACS_16_5YR_B25088_with_ann!E47","v":82},{"$f":"[1]ACS_16_5YR_B25088_with_ann!F47","v":1622},{"$f":"[1]ACS_16_5YR_B25088_with_ann!G47","v":349},{"$f":"[1]ACS_16_5YR_B25088_with_ann!H47","v":796},{"$f":"[1]ACS_16_5YR_B25088_with_ann!I47","v":88}]
["06000US3300529220","0600000US3300534420","060",{"$f":"[1]ACS_16_5YR_B25088_with_ann!C48","v":"Gilsum"},{"$f":"[1]ACS_16_5YR_B25088_with_ann!D48","v":1348},{"$f":"[1]ACS_16_5YR_B25088_with_ann!E48","v":376},{"$f":"[1]ACS_16_5YR_B25088_with_ann!F48","v":1747},{"$f":"[1]ACS_16_5YR_B25088_with_ann!G48","v":225},{"$f":"[1]ACS_16_5YR_B25088_with_ann!H48","v":722},{"$f":"[1]ACS_16_5YR_B25088_with_ann!I48","v":44}]
["06000US3300534420","0600000US3300536660","060",{"$f":"[1]ACS_16_5YR_B25088_with_ann!C49","v":"Harrisville"},{"$f":"[1]ACS_16_5YR_B25088_with_ann!D49","v":1314},{"$f":"[1]ACS_16_5YR_B25088_with_ann!E49","v":233},{"$f":"[1]ACS_16_5YR_B25088_with_ann!F49","v":1862},{"$f":"[1]ACS_16_5YR_B25088_with_ann!G49","v":225},{"$f":"[1]ACS_16_5YR_B25088_with_ann!H49","v":834},{"$f":"[1]ACS_16_5YR_B25088_with_ann!I49","v":93}]
["06000US3300536660","0600000US3300538500","060",{"$f":"[1]ACS_16_5YR_B25088_with_ann!C50","v":"Hinsdale"},{"$f":"[1]ACS_16_5YR_B25088_with_ann!D50","v":954},{"$f":"[1]ACS_16_5YR_B25088_with_ann!E50","v":223},{"$f":"[1]ACS_16_5YR_B25088_with_ann!F50","v":1608},{"$f":"[1]ACS_16_5YR_B25088_with_ann!G50","v":104},{"$f":"[1]ACS_16_5YR_B25088_with_ann!H50","v":751},{"$f":"[1]ACS_16_5YR_B25088_with_ann!I50","v":25}]
["06000US3300538500","0600000US3300539300","060",{"$f":"[1]ACS_16_5YR_B25088_with_ann!C51","v":"Jaffrey"},{"$f":"[1]ACS_16_5YR_B25088_with_ann!D51","v":1452},{"$f":"[1]ACS_16_5YR_B25088_with_ann!E51","v":232},{"$f":"[1]ACS_16_5YR_B25088_with_ann!F51","v":1767},{"$f":"[1]ACS_16_5YR_B25088_with_ann!G51","v":208},{"$f":"[1]ACS_16_5YR_B25088_with_ann!H51","v":813},{"$f":"[1]ACS_16_5YR_B25088_with_ann!I51","v":129}]
["06000US3300539300","0600000US3300545460","060",{"$f":"[1]ACS_16_5YR_B25088_with_ann!C52","v":"Keene"},{"$f":"[1]ACS_16_5YR_B25088_with_ann!D52","v":1492},{"$f":"[1]ACS_16_5YR_B25088_with_ann!E52","v":143},{"$f":"[1]ACS_16_5YR_B25088_with_ann!F52","v":1925},{"$f":"[1]ACS_16_5YR_B25088_with_ann!G52","v":93},{"$f":"[1]ACS_16_5YR_B25088_with_ann!H52","v":929},{"$f":"[1]ACS_16_5YR_B25088_with_ann!I52","v":54}]
["06000US3300545460","0600000US3300545700","060",{"$f":"[1]ACS_16_5YR_B25088_with_ann!C53","v":"Marlborough"},{"$f":"[1]ACS_16_5YR_B25088_with_ann!D53","v":1436},{"$f":"[1]ACS_16_5YR_B25088_with_ann!E53","v":333},{"$f":"[1]ACS_16_5YR_B25088_with_ann!F53","v":1842},{"$f":"[1]ACS_16_5YR_B25088_with_ann!G53","v":64},{"$f":"[1]ACS_16_5YR_B25088_with_ann!H53","v":881},{"$f":"[1]ACS_16_5YR_B25088_with_ann!I53","v":158}]
["06000US3300545700","0600000US3300550580","060",{"$f":"[1]ACS_16_5YR_B25088_with_ann!C54","v":"Marlow"},{"$f":"[1]ACS_16_5YR_B25088_with_ann!D54","v":1298},{"$f":"[1]ACS_16_5YR_B25088_with_ann!E54","v":145},{"$f":"[1]ACS_16_5YR_B25088_with_ann!F54","v":1772},{"$f":"[1]ACS_16_5YR_B25088_with_ann!G54","v":176},{"$f":"[1]ACS_16_5YR_B25088_with_ann!H54","v":713},{"$f":"[1]ACS_16_5YR_B25088_with_ann!I54","v":223}]
["06000US3300550580","0600000US3300564420","060",{"$f":"[1]ACS_16_5YR_B25088_with_ann!C55","v":"Nelson"},{"$f":"[1]ACS_16_5YR_B25088_with_ann!D55","v":1457},{"$f":"[1]ACS_16_5YR_B25088_with_ann!E55","v":159},{"$f":"[1]ACS_16_5YR_B25088_with_ann!F55","v":1852},{"$f":"[1]ACS_16_5YR_B25088_with_ann!G55","v":154},{"$f":"[1]ACS_16_5YR_B25088_with_ann!H55","v":969},{"$f":"[1]ACS_16_5YR_B25088_with_ann!I55","v":266}]
["06000US3300564420","0600000US3300564580","060",{"$f":"[1]ACS_16_5YR_B25088_with_ann!C56","v":"Richmond"},{"$f":"[1]ACS_16_5YR_B25088_with_ann!D56","v":1497},{"$f":"[1]ACS_16_5YR_B25088_with_ann!E56","v":230},{"$f":"[1]ACS_16_5YR_B25088_with_ann!F56","v":1982},{"$f":"[1]ACS_16_5YR_B25088_with_ann!G56","v":265},{"$f":"[1]ACS_16_5YR_B25088_with_ann!H56","v":679},{"$f":"[1]ACS_16_5YR_B25088_with_ann!I56","v":145}]
["06000US3300564580","0600000US3300565700","060",{"$f":"[1]ACS_16_5YR_B25088_with_ann!C57","v":"Rindge"},{"$f":"[1]ACS_16_5YR_B25088_with_ann!D57","v":1817},{"$f":"[1]ACS_16_5YR_B25088_with_ann!E57","v":167},{"$f":"[1]ACS_16_5YR_B25088_with_ann!F57","v":2103},{"$f":"[1]ACS_16_5YR_B25088_with_ann!G57","v":152},{"$f":"[1]ACS_16_5YR_B25088_with_ann!H57","v":895},{"$f":"[1]ACS_16_5YR_B25088_with_ann!I57","v":81}]
["06000US3300565700","0600000US3300573700","060",{"$f":"[1]ACS_16_5YR_B25088_with_ann!C58","v":"Roxbury"},{"$f":"[1]ACS_16_5YR_B25088_with_ann!D58","v":1472},{"$f":"[1]ACS_16_5YR_B25088_with_ann!E58","v":642},{"$f":"[1]ACS_16_5YR_B25088_with_ann!F58","v":1661},{"$f":"[1]ACS_16_5YR_B25088_with_ann!G58","v":294},{"$f":"[1]ACS_16_5YR_B25088_with_ann!H58","v":1150},{"$f":"[1]ACS_16_5YR_B25088_with_ann!I58","v":922}]
["06000US3300573700","0600000US3300574900","060",{"$f":"[1]ACS_16_5YR_B25088_with_ann!C59","v":"Stoddard"},{"$f":"[1]ACS_16_5YR_B25088_with_ann!D59","v":1373},{"$f":"[1]ACS_16_5YR_B25088_with_ann!E59","v":129},{"$f":"[1]ACS_16_5YR_B25088_with_ann!F59","v":1610},{"$f":"[1]ACS_16_5YR_B25088_with_ann!G59","v":112},{"$f":"[1]ACS_16_5YR_B25088_with_ann!H59","v":547},{"$f":"[1]ACS_16_5YR_B25088_with_ann!I59","v":90}]
["06000US3300574900","0600000US3300575300","060",{"$f":"[1]ACS_16_5YR_B25088_with_ann!C60","v":"Sullivan"},{"$f":"[1]ACS_16_5YR_B25088_with_ann!D60","v":1122},{"$f":"[1]ACS_16_5YR_B25088_with_ann!E60","v":138},{"$f":"[1]ACS_16_5YR_B25088_with_ann!F60","v":1613},{"$f":"[1]ACS_16_5YR_B25088_with_ann!G60","v":213},{"$f":"[1]ACS_16_5YR_B25088_with_ann!H60","v":707},{"$f":"[1]ACS_16_5YR_B25088_with_ann!I60","v":85}]
["06000US3300575300","0600000US3300575700","060",{"$f":"[1]ACS_16_5YR_B25088_with_ann!C61","v":"Surry"},{"$f":"[1]ACS_16_5YR_B25088_with_ann!D61","v":1571},{"$f":"[1]ACS_16_5YR_B25088_with_ann!E61","v":246},{"$f":"[1]ACS_16_5YR_B25088_with_ann!F61","v":2073},{"$f":"[1]ACS_16_5YR_B25088_with_ann!G61","v":155},{"$f":"[1]ACS_16_5YR_B25088_with_ann!H61","v":747},{"$f":"[1]ACS_16_5YR_B25088_with_ann!I61","v":126}]
["06000US3300575700","0600000US3300577380","060",{"$f":"[1]ACS_16_5YR_B25088_with_ann!C62","v":"Swanzey"},{"$f":"[1]ACS_16_5YR_B25088_with_ann!D62","v":1524},{"$f":"[1]ACS_16_5YR_B25088_with_ann!E62","v":147},{"$f":"[1]ACS_16_5YR_B25088_with_ann!F62","v":1784},{"$f":"[1]ACS_16_5YR_B25088_with_ann!G62","v":107},{"$f":"[1]ACS_16_5YR_B25088_with_ann!H62","v":861},{"$f":"[1]ACS_16_5YR_B25088_with_ann!I62","v":118}]
["06000US3300577380","0600000US3300578420","060",{"$f":"[1]ACS_16_5YR_B25088_with_ann!C63","v":"Troy"},{"$f":"[1]ACS_16_5YR_B25088_with_ann!D63","v":1394},{"$f":"[1]ACS_16_5YR_B25088_with_ann!E63","v":230},{"$f":"[1]ACS_16_5YR_B25088_with_ann!F63","v":1764},{"$f":"[1]ACS_16_5YR_B25088_with_ann!G63","v":149},{"$f":"[1]ACS_16_5YR_B25088_with_ann!H63","v":700},{"$f":"[1]ACS_16_5YR_B25088_with_ann!I63","v":152}]
["06000US3300578420","0600000US3300582660","060",{"$f":"[1]ACS_16_5YR_B25088_with_ann!C64","v":"Walpole"},{"$f":"[1]ACS_16_5YR_B25088_with_ann!D64","v":1307},{"$f":"[1]ACS_16_5YR_B25088_with_ann!E64","v":296},{"$f":"[1]ACS_16_5YR_B25088_with_ann!F64","v":1709},{"$f":"[1]ACS_16_5YR_B25088_with_ann!G64","v":157},{"$f":"[1]ACS_16_5YR_B25088_with_ann!H64","v":949},{"$f":"[1]ACS_16_5YR_B25088_with_ann!I64","v":56}]
["06000US3300582660","0600000US3300585540","060",{"$f":"[1]ACS_16_5YR_B25088_with_ann!C65","v":"Westmoreland"},{"$f":"[1]ACS_16_5YR_B25088_with_ann!D65","v":1591},{"$f":"[1]ACS_16_5YR_B25088_with_ann!E65","v":364},{"$f":"[1]ACS_16_5YR_B25088_with_ann!F65","v":2131},{"$f":"[1]ACS_16_5YR_B25088_with_ann!G65","v":219},{"$f":"[1]ACS_16_5YR_B25088_with_ann!H65","v":931},{"$f":"[1]ACS_16_5YR_B25088_with_ann!I65","v":38}]
["06000US3300585540","0600000US3300500820","060",{"$f":"[1]ACS_16_5YR_B25088_with_ann!C66","v":"Winchester"},{"$f":"[1]ACS_16_5YR_B25088_with_ann!D66","v":1402},{"$f":"[1]ACS_16_5YR_B25088_with_ann!E66","v":201},{"$f":"[1]ACS_16_5YR_B25088_with_ann!F66","v":1731},{"$f":"[1]ACS_16_5YR_B25088_with_ann!G66","v":130},{"$f":"[1]ACS_16_5YR_B25088_with_ann!H66","v":714},{"$f":"[1]ACS_16_5YR_B25088_with_ann!I66","v":133}]
[]
[]
[null,null,null,null,null,null,null,null,null,null,null,null,null,null,null,null,null,null,null,null,null,null,null,null,null,null,null,null,null,null,null,null,null,null,null,null,null,null,null,null,null,null,{"$f":"$D$22","v":"Troy"},null,{"$f":"$D$23","v":"Walpole"},null,{"$f":"$D$24","v":"Westmoreland"},null,{"$f":"$D$25","v":"Winchester"}]
[null,null,null,null,{"$f":"$D$3","v":"Alstead"},null,{"$f":"$D$4","v":"Chesterfield"},null,{"$f":"$D$5","v":"Dublin"},null,{"$f":"$D$6","v":"Fitzwilliam"},null,{"$f":"$D$7","v":"Gilsum"},null,{"$f":"$D$8","v":"Harrisville"},null,{"$f":"$D$9","v":"Hinsdale"},null,{"$f":"$D$10","v":"Jaffrey"},null,{"$f":"$D$11","v":"Keene"},null,{"$f":"$D$12","v":"Marlborough"},null,{"$f":"$D$13","v":"Marlow"},null,{"$f":"$D$14","v":"Nelson"},null,{"$f":"$D$15","v":"Richmond"},null,{"$f":"$D$16","v":"Rindge"},null,{"$f":"$D$17","v":"Roxbury"},null,{"$f":"$D$18","v":"Stoddard"},null,{"$f":"$D$19","v":"Sullivan"},null,{"$f":"$D$20","v":"Surry"},null,{"$f":"$D$21","v":"Swanzey"},null,{"$f":"$D$21","v":"Swanzey"},null,{"$f":"$D$21","v":"Swanzey"},null,{"$f":"$D$21","v":"Swanzey"},null,{"$f":"$D$21","v":"Swanzey"}]
[null,null,null,null,"Estimate","Margin of Error","Estimate","Margin of Error","Estimate","Margin of Error","Estimate","Margin of Error","Estimate","Margin of Error","Estimate","Margin of Error","Estimate","Margin of Error","Estimate","Margin of Error","Estimate","Margin of Error","Estimate","Margin of Error","Estimate","Margin of Error","Estimate","Margin of Error","Estimate","Margin of Error","Estimate","Margin of Error","Estimate","Margin of Error","Estimate","Margin of Error","Estimate","Margin of Error","Estimate","Margin of Error","Estimate","Margin of Error"]
[null,null,null,"Estimate!!Median selected monthly owner costs (dollars) --!!Total:",1059,265,1701,263,1348,243,1361,82,1348,376,1314,233,954,223,1452,232,1492,143,1436,333,1298,145,1457,159,1497,230,1817,167,1472,642,1373,129,1122,138,1571,246,1524,147,1394,230,1307,296,1591,364,1402,201]
[null,null,null,"Estimate!!Median selected monthly owner costs (dollars) --!!Housing units with a mortgage (dollars)",1812,100,1900,115,1948,345,1622,349,1747,225,1862,225,1608,104,1767,208,1925,93,1842,64,1772,176,1852,154,1982,265,2103,152,1661,294,1610,112,1613,213,2073,155,1784,107,1764,149,1709,157,2131,219,1731,130]
[null,null,null,"Estimate!!Median selected monthly owner costs (dollars) --!!Housing units without a mortgage (dollars)",737,47,839,215,1039,97,796,88,722,44,834,93,751,25,813,129,929,54,881,158,713,223,969,266,679,145,895,81,1150,922,547,90,707,85,747,126,861,118,700,152,949,56,931,38,714,133]

{"sheet":"SData_B25091OwnOccHsgCostPerInc","index":106,"n_rows":53,"n_cols":50,"rows_kept":53,"cut":false,"hidden":true,"merged":[]}
["GEO_ID","GEO_ID2","SUMLEVEL",{"$f":"[1]ACS_16_5YR_B25091_with_ann!C1","v":"NAME"},{"$f":"[1]ACS_16_5YR_B25091_with_ann!D1","v":"B25091_001E"},{"$f":"[1]ACS_16_5YR_B25091_with_ann!E1","v":"B25091_001M"},{"$f":"[1]ACS_16_5YR_B25091_with_ann!F1","v":"B25091_002E"},{"$f":"[1]ACS_16_5YR_B25091_with_ann!G1","v":"B25091_002M"},{"$f":"[1]ACS_16_5YR_B25091_with_ann!H1","v":"B25091_003E"},{"$f":"[1]ACS_16_5YR_B25091_with_ann!I1","v":"B25091_003M"},{"$f":"[1]ACS_16_5YR_B25091_with_ann!J1","v":"B25091_004E"},{"$f":"[1]ACS_16_5YR_B25091_with_ann!K1","v":"B25091_004M"},{"$f":"[1]ACS_16_5YR_B25091_with_ann!L1","v":"B25091_005E"},{"$f":"[1]ACS_16_5YR_B25091_with_ann!M1","v":"B25091_005M"},{"$f":"[1]ACS_16_5YR_B25091_with_ann!N1","v":"B25091_006E"},{"$f":"[1]ACS_16_5YR_B25091_with_ann!O1","v":"B25091_006M"},{"$f":"[1]ACS_16_5YR_B25091_with_ann!P1","v":"B25091_007E"},{"$f":"[1]ACS_16_5YR_B25091_with_ann!Q1","v":"B25091_007M"},{"$f":"[1]ACS_16_5YR_B25091_with_ann!R1","v":"B25091_008E"},{"$f":"[1]ACS_16_5YR_B25091_with_ann!S1","v":"B25091_008M"},{"$f":"[1]ACS_16_5YR_B25091_with_ann!T1","v":"B25091_009E"},{"$f":"[1]ACS_16_5YR_B25091_with_ann!U1","v":"B25091_009M"},{"$f":"[1]ACS_16_5YR_B25091_with_ann!V1","v":"B25091_010E"},{"$f":"[1]ACS_16_5YR_B25091_with_ann!W1","v":"B25091_010M"},{"$f":"[1]ACS_16_5YR_B25091_with_ann!X1","v":"B25091_011E"},{"$f":"[1]ACS_16_5YR_B25091_with_ann!Y1","v":"B25091_011M"},{"$f":"[1]ACS_16_5YR_B25091_with_ann!Z1","v":"B25091_012E"},{"$f":"[1]ACS_16_5YR_B25091_with_ann!AA1","v":"B25091_012M"},{"$f":"[1]ACS_16_5YR_B25091_with_ann!AB1","v":"B25091_013E"},{"$f":"[1]ACS_16_5YR_B25091_with_ann!AC1","v":"B25091_013M"},{"$f":"[1]ACS_16_5YR_B25091_with_ann!AD1","v":"B25091_014E"},{"$f":"[1]ACS_16_5YR_B25091_with_ann!AE1","v":"B25091_014M"},{"$f":"[1]ACS_16_5YR_B25091_with_ann!AF1","v":"B25091_015E"},{"$f":"[1]ACS_16_5YR_B25091_with_ann!AG1","v":"B25091_015M"},{"$f":"[1]ACS_16_5YR_B25091_with_ann!AH1","v":"B25091_016E"},{"$f":"[1]ACS_16_5YR_B25091_with_ann!AI1","v":"B25091_016M"},{"$f":"[1]ACS_16_5YR_B25091_with_ann!AJ1","v":"B25091_017E"},{"$f":"[1]ACS_16_5YR_B25091_with_ann!AK1","v":"B25091_017M"},{"$f":"[1]ACS_16_5YR_B25091_with_ann!AL1","v":"B25091_018E"},{"$f":"[1]ACS_16_5YR_B25091_with_ann!AM1","v":"B25091_018M"},{"$f":"[1]ACS_16_5YR_B25091_with_ann!AN1","v":"B25091_019E"},{"$f":"[1]ACS_16_5YR_B25091_with_ann!AO1","v":"B25091_019M"},{"$f":"[1]ACS_16_5YR_B25091_with_ann!AP1","v":"B25091_020E"},{"$f":"[1]ACS_16_5YR_B25091_with_ann!AQ1","v":"B25091_020M"},{"$f":"[1]ACS_16_5YR_B25091_with_ann!AR1","v":"B25091_021E"},{"$f":"[1]ACS_16_5YR_B25091_with_ann!AS1","v":"B25091_021M"},{"$f":"[1]ACS_16_5YR_B25091_with_ann!AT1","v":"B25091_022E"},{"$f":"[1]ACS_16_5YR_B25091_with_ann!AU1","v":"B25091_022M"},{"$f":"[1]ACS_16_5YR_B25091_with_ann!AV1","v":"B25091_023E"},{"$f":"[1]ACS_16_5YR_B25091_with_ann!AW1","v":"B25091_023M"}]
["Geography Identifier","Geography Identifier","Geographic Summary Level",{"$f":"[1]ACS_16_5YR_B25091_with_ann!C2","v":"Geographic Area Name"},{"$f":"[1]ACS_16_5YR_B25091_with_ann!D2","v":"Estimate!!Total:"},{"$f":"[1]ACS_16_5YR_B25091_with_ann!E2","v":"Margin of Error!!Total:"},{"$f":"[1]ACS_16_5YR_B25091_with_ann!F2","v":"Estimate!!Total:!!Housing units with a mortgage:"},{"$f":"[1]ACS_16_5YR_B25091_with_ann!G2","v":"Margin of Error!!Total:!!Housing units with a mortgage:"},{"$f":"[1]ACS_16_5YR_B25091_with_ann!H2","v":"Estimate!!Total:!!Housing units with a mortgage:!!Less than 10.0 percent"},{"$f":"[1]ACS_16_5YR_B25091_with_ann!I2","v":"Margin of Error!!Total:!!Housing units with a mortgage:!!Less than 10.0 percent"},{"$f":"[1]ACS_16_5YR_B25091_with_ann!J2","v":"Estimate!!Total:!!Housing units with a mortgage:!!10.0 to 14.9 percent"},{"$f":"[1]ACS_16_5YR_B25091_with_ann!K2","v":"Margin of Error!!Total:!!Housing units with a mortgage:!!10.0 to 14.9 percent"},{"$f":"[1]ACS_16_5YR_B25091_with_ann!L2","v":"Estimate!!Total:!!Housing units with a mortgage:!!15.0 to 19.9 percent"},{"$f":"[1]ACS_16_5YR_B25091_with_ann!M2","v":"Margin of Error!!Total:!!Housing units with a mortgage:!!15.0 to 19.9 percent"},{"$f":"[1]ACS_16_5YR_B25091_with_ann!N2","v":"Estimate!!Total:!!Housing units with a mortgage:!!20.0 to 24.9 percent"},{"$f":"[1]ACS_16_5YR_B25091_with_ann!O2","v":"Margin of Error!!Total:!!Housing units with a mortgage:!!20.0 to 24.9 percent"},{"$f":"[1]ACS_16_5YR_B25091_with_ann!P2","v":"Estimate!!Total:!!Housing units with a mortgage:!!25.0 to 29.9 percent"},{"$f":"[1]ACS_16_5YR_B25091_with_ann!Q2","v":"Margin of Error!!Total:!!Housing units with a mortgage:!!25.0 to 29.9 percent"},{"$f":"[1]ACS_16_5YR_B25091_with_ann!R2","v":"Estimate!!Total:!!Housing units with a mortgage:!!30.0 to 34.9 percent"},{"$f":"[1]ACS_16_5YR_B25091_with_ann!S2","v":"Margin of Error!!Total:!!Housing units with a mortgage:!!30.0 to 34.9 percent"},{"$f":"[1]ACS_16_5YR_B25091_with_ann!T2","v":"Estimate!!Total:!!Housing units with a mortgage:!!35.0 to 39.9 percent"},{"$f":"[1]ACS_16_5YR_B25091_with_ann!U2","v":"Margin of Error!!Total:!!Housing units with a mortgage:!!35.0 to 39.9 percent"},{"$f":"[1]ACS_16_5YR_B25091_with_ann!V2","v":"Estimate!!Total:!!Housing units with a mortgage:!!40.0 to 49.9 percent"},{"$f":"[1]ACS_16_5YR_B25091_with_ann!W2","v":"Margin of Error!!Total:!!Housing units with a mortgage:!!40.0 to 49.9 percent"},{"$f":"[1]ACS_16_5YR_B25091_with_ann!X2","v":"Estimate!!Total:!!Housing units with a mortgage:!!50.0 percent or more"},{"$f":"[1]ACS_16_5YR_B25091_with_ann!Y2","v":"Margin of Error!!Total:!!Housing units with a mortgage:!!50.0 percent or more"},{"$f":"[1]ACS_16_5YR_B25091_with_ann!Z2","v":"Estimate!!Total:!!Housing units with a mortgage:!!Not computed"},{"$f":"[1]ACS_16_5YR_B25091_with_ann!AA2","v":"Margin of Error!!Total:!!Housing units with a mortgage:!!Not computed"},{"$f":"[1]ACS_16_5YR_B25091_with_ann!AB2","v":"Estimate!!Total:!!Housing units without a mortgage:"},{"$f":"[1]ACS_16_5YR_B25091_with_ann!AC2","v":"Margin of Error!!Total:!!Housing units without a mortgage:"},{"$f":"[1]ACS_16_5YR_B25091_with_ann!AD2","v":"Estimate!!Total:!!Housing units without a mortgage:!!Less than 10.0 percent"},{"$f":"[1]ACS_16_5YR_B25091_with_ann!AE2","v":"Margin of Error!!Total:!!Housing units without a mortgage:!!Less than 10.0 percent"},{"$f":"[1]ACS_16_5YR_B25091_with_ann!AF2","v":"Estimate!!Total:!!Housing units without a mortgage:!!10.0 to 14.9 percent"},{"$f":"[1]ACS_16_5YR_B25091_with_ann!AG2","v":"Margin of Error!!Total:!!Housing units without a mortgage:!!10.0 to 14.9 percent"},{"$f":"[1]ACS_16_5YR_B25091_with_ann!AH2","v":"Estimate!!Total:!!Housing units without a mortgage:!!15.0 to 19.9 percent"},{"$f":"[1]ACS_16_5YR_B25091_with_ann!AI2","v":"Margin of Error!!Total:!!Housing units without a mortgage:!!15.0 to 19.9 percent"},{"$f":"[1]ACS_16_5YR_B25091_with_ann!AJ2","v":"Estimate!!Total:!!Housing units without a mortgage:!!20.0 to 24.9 percent"},{"$f":"[1]ACS_16_5YR_B25091_with_ann!AK2","v":"Margin of Error!!Total:!!Housing units without a mortgage:!!20.0 to 24.9 percent"},{"$f":"[1]ACS_16_5YR_B25091_with_ann!AL2","v":"Estimate!!Total:!!Housing units without a mortgage:!!25.0 to 29.9 percent"},{"$f":"[1]ACS_16_5YR_B25091_with_ann!AM2","v":"Margin of Error!!Total:!!Housing units without a mortgage:!!25.0 to 29.9 percent"},{"$f":"[1]ACS_16_5YR_B25091_with_ann!AN2","v":"Estimate!!Total:!!Housing units without a mortgage:!!30.0 to 34.9 percent"},{"$f":"[1]ACS_16_5YR_B25091_with_ann!AO2","v":"Margin of Error!!Total:!!Housing units without a mortgage:!!30.0 to 34.9 percent"},{"$f":"[1]ACS_16_5YR_B25091_with_ann!AP2","v":"Estimate!!Total:!!Housing units without a mortgage:!!35.0 to 39.9 percent"},{"$f":"[1]ACS_16_5YR_B25091_with_ann!AQ2","v":"Margin of Error!!Total:!!Housing units without a mortgage:!!35.0 to 39.9 percent"},{"$f":"[1]ACS_16_5YR_B25091_with_ann!AR2","v":"Estimate!!Total:!!Housing units without a mortgage:!!40.0 to 49.9 percent"},{"$f":"[1]ACS_16_5YR_B25091_with_ann!AS2","v":"Margin of Error!!Total:!!Housing units without a mortgage:!!40.0 to 49.9 percent"},{"$f":"[1]ACS_16_5YR_B25091_with_ann!AT2","v":"Estimate!!Total:!!Housing units without a mortgage:!!50.0 percent or more"},{"$f":"[1]ACS_16_5YR_B25091_with_ann!AU2","v":"Margin of Error!!Total:!!Housing units without a mortgage:!!50.0 percent or more"},{"$f":"[1]ACS_16_5YR_B25091_with_ann!AV2","v":"Estimate!!Total:!!Housing units without a mortgage:!!Not computed"},{"$f":"[1]ACS_16_5YR_B25091_with_ann!AW2","v":"Margin of Error!!Total:!!Housing units without a mortgage:!!Not computed"}]
["06000US3300500820","0600000US3300512260","060",{"$f":"[1]ACS_16_5YR_B25091_with_ann!C44","v":"Alstead"},{"$f":"[1]ACS_16_5YR_B25091_with_ann!D44","v":507},{"$f":"[1]ACS_16_5YR_B25091_with_ann!E44","v":86},{"$f":"[1]ACS_16_5YR_B25091_with_ann!F44","v":256},{"$f":"[1]ACS_16_5YR_B25091_with_ann!G44","v":71},{"$f":"[1]ACS_16_5YR_B25091_with_ann!H44","v":10},{"$f":"[1]ACS_16_5YR_B25091_with_ann!I44","v":9},{"$f":"[1]ACS_16_5YR_B25091_with_ann!J44","v":33},{"$f":"[1]ACS_16_5YR_B25091_with_ann!K44","v":21},{"$f":"[1]ACS_16_5YR_B25091_with_ann!L44","v":44},{"$f":"[1]ACS_16_5YR_B25091_with_ann!M44","v":20},{"$f":"[1]ACS_16_5YR_B25091_with_ann!N44","v":38},{"$f":"[1]ACS_16_5YR_B25091_with_ann!O44","v":24},{"$f":"[1]ACS_16_5YR_B25091_with_ann!P44","v":26},{"$f":"[1]ACS_16_5YR_B25091_with_ann!Q44","v":16},{"$f":"[1]ACS_16_5YR_B25091_with_ann!R44","v":4},{"$f":"[1]ACS_16_5YR_B25091_with_ann!S44","v":6},{"$f":"[1]ACS_16_5YR_B25091_with_ann!T44","v":13},{"$f":"[1]ACS_16_5YR_B25091_with_ann!U44","v":11},{"$f":"[1]ACS_16_5YR_B25091_with_ann!V44","v":6},{"$f":"[1]ACS_16_5YR_B25091_with_ann!W44","v":8},{"$f":"[1]ACS_16_5YR_B25091_with_ann!X44","v":82},{"$f":"[1]ACS_16_5YR_B25091_with_ann!Y44","v":60},{"$f":"[1]ACS_16_5YR_B25091_with_ann!Z44","v":0},{"$f":"[1]ACS_16_5YR_B25091_with_ann!AA44","v":12},{"$f":"[1]ACS_16_5YR_B25091_with_ann!AB44","v":251},{"$f":"[1]ACS_16_5YR_B25091_with_ann!AC44","v":67},{"$f":"[1]ACS_16_5YR_B25091_with_ann!AD44","v":71},{"$f":"[1]ACS_16_5YR_B25091_with_ann!AE44","v":31},{"$f":"[1]ACS_16_5YR_B25091_with_ann!AF44","v":38},{"$f":"[1]ACS_16_5YR_B25091_with_ann!AG44","v":19},{"$f":"[1]ACS_16_5YR_B25091_with_ann!AH44","v":69},{"$f":"[1]ACS_16_5YR_B25091_with_ann!AI44","v":37},{"$f":"[1]ACS_16_5YR_B25091_with_ann!AJ44","v":31},{"$f":"[1]ACS_16_5YR_B25091_with_ann!AK44","v":35},{"$f":"[1]ACS_16_5YR_B25091_with_ann!AL44","v":12},{"$f":"[1]ACS_16_5YR_B25091_with_ann!AM44","v":10},{"$f":"[1]ACS_16_5YR_B25091_with_ann!AN44","v":0},{"$f":"[1]ACS_16_5YR_B25091_with_ann!AO44","v":12},{"$f":"[1]ACS_16_5YR_B25091_with_ann!AP44","v":5},{"$f":"[1]ACS_16_5YR_B25091_with_ann!AQ44","v":7},{"$f":"[1]ACS_16_5YR_B25091_with_ann!AR44","v":12},{"$f":"[1]ACS_16_5YR_B25091_with_ann!AS44","v":11},{"$f":"[1]ACS_16_5YR_B25091_with_ann!AT44","v":13},{"$f":"[1]ACS_16_5YR_B25091_with_ann!AU44","v":12},{"$f":"[1]ACS_16_5YR_B25091_with_ann!AV44","v":0},{"$f":"[1]ACS_16_5YR_B25091_with_ann!AW44","v":12}]
["06000US3300512260","0600000US3300519140","060",{"$f":"[1]ACS_16_5YR_B25091_with_ann!C45","v":"Chesterfield"},{"$f":"[1]ACS_16_5YR_B25091_with_ann!D45","v":1227},{"$f":"[1]ACS_16_5YR_B25091_with_ann!E45","v":184},{"$f":"[1]ACS_16_5YR_B25091_with_ann!F45","v":865},{"$f":"[1]ACS_16_5YR_B25091_with_ann!G45","v":189},{"$f":"[1]ACS_16_5YR_B25091_with_ann!H45","v":41},{"$f":"[1]ACS_16_5YR_B25091_with_ann!I45","v":41},{"$f":"[1]ACS_16_5YR_B25091_with_ann!J45","v":168},{"$f":"[1]ACS_16_5YR_B25091_with_ann!K45","v":110},{"$f":"[1]ACS_16_5YR_B25091_with_ann!L45","v":162},{"$f":"[1]ACS_16_5YR_B25091_with_ann!M45","v":84},{"$f":"[1]ACS_16_5YR_B25091_with_ann!N45","v":190},{"$f":"[1]ACS_16_5YR_B25091_with_ann!O45","v":123},{"$f":"[1]ACS_16_5YR_B25091_with_ann!P45","v":33},{"$f":"[1]ACS_16_5YR_B25091_with_ann!Q45","v":35},{"$f":"[1]ACS_16_5YR_B25091_with_ann!R45","v":118},{"$f":"[1]ACS_16_5YR_B25091_with_ann!S45","v":89},{"$f":"[1]ACS_16_5YR_B25091_with_ann!T45","v":0},{"$f":"[1]ACS_16_5YR_B25091_with_ann!U45","v":12},{"$f":"[1]ACS_16_5YR_B25091_with_ann!V45","v":33},{"$f":"[1]ACS_16_5YR_B25091_with_ann!W45","v":40},{"$f":"[1]ACS_16_5YR_B25091_with_ann!X45","v":120},{"$f":"[1]ACS_16_5YR_B25091_with_ann!Y45","v":100},{"$f":"[1]ACS_16_5YR_B25091_with_ann!Z45","v":0},{"$f":"[1]ACS_16_5YR_B25091_with_ann!AA45","v":12},{"$f":"[1]ACS_16_5YR_B25091_with_ann!AB45","v":362},{"$f":"[1]ACS_16_5YR_B25091_with_ann!AC45","v":143},{"$f":"[1]ACS_16_5YR_B25091_with_ann!AD45","v":178},{"$f":"[1]ACS_16_5YR_B25091_with_ann!AE45","v":107},{"$f":"[1]ACS_16_5YR_B25091_with_ann!AF45","v":15},{"$f":"[1]ACS_16_5YR_B25091_with_ann!AG45","v":24},{"$f":"[1]ACS_16_5YR_B25091_with_ann!AH45","v":52},{"$f":"[1]ACS_16_5YR_B25091_with_ann!AI45","v":48},{"$f":"[1]ACS_16_5YR_B25091_with_ann!AJ45","v":87},{"$f":"[1]ACS_16_5YR_B25091_with_ann!AK45","v":90},{"$f":"[1]ACS_16_5YR_B25091_with_ann!AL45","v":16},{"$f":"[1]ACS_16_5YR_B25091_with_ann!AM45","v":24},{"$f":"[1]ACS_16_5YR_B25091_with_ann!AN45","v":0},{"$f":"[1]ACS_16_5YR_B25091_with_ann!AO45","v":12},{"$f":"[1]ACS_16_5YR_B25091_with_ann!AP45","v":14},{"$f":"[1]ACS_16_5YR_B25091_with_ann!AQ45","v":22},{"$f":"[1]ACS_16_5YR_B25091_with_ann!AR45","v":0},{"$f":"[1]ACS_16_5YR_B25091_with_ann!AS45","v":12},{"$f":"[1]ACS_16_5YR_B25091_with_ann!AT45","v":0},{"$f":"[1]ACS_16_5YR_B25091_with_ann!AU45","v":12},{"$f":"[1]ACS_16_5YR_B25091_with_ann!AV45","v":0},{"$f":"[1]ACS_16_5YR_B25091_with_ann!AW45","v":12}]
["06000US3300519140","0600000US3300526500","060",{"$f":"[1]ACS_16_5YR_B25091_with_ann!C46","v":"Dublin"},{"$f":"[1]ACS_16_5YR_B25091_with_ann!D46","v":530},{"$f":"[1]ACS_16_5YR_B25091_with_ann!E46","v":99},{"$f":"[1]ACS_16_5YR_B25091_with_ann!F46","v":271},{"$f":"[1]ACS_16_5YR_B25091_with_ann!G46","v":82},{"$f":"[1]ACS_16_5YR_B25091_with_ann!H46","v":7},{"$f":"[1]ACS_16_5YR_B25091_with_ann!I46","v":7},{"$f":"[1]ACS_16_5YR_B25091_with_ann!J46","v":74},{"$f":"[1]ACS_16_5YR_B25091_with_ann!K46","v":71},{"$f":"[1]ACS_16_5YR_B25091_with_ann!L46","v":68},{"$f":"[1]ACS_16_5YR_B25091_with_ann!M46","v":27},{"$f":"[1]ACS_16_5YR_B25091_with_ann!N46","v":26},{"$f":"[1]ACS_16_5YR_B25091_with_ann!O46","v":19},{"$f":"[1]ACS_16_5YR_B25091_with_ann!P46","v":19},{"$f":"[1]ACS_16_5YR_B25091_with_ann!Q46","v":9},{"$f":"[1]ACS_16_5YR_B25091_with_ann!R46","v":17},{"$f":"[1]ACS_16_5YR_B25091_with_ann!S46","v":17},{"$f":"[1]ACS_16_5YR_B25091_with_ann!T46","v":17},{"$f":"[1]ACS_16_5YR_B25091_with_ann!U46","v":20},{"$f":"[1]ACS_16_5YR_B25091_with_ann!V46","v":17},{"$f":"[1]ACS_16_5YR_B25091_with_ann!W46","v":15},{"$f":"[1]ACS_16_5YR_B25091_with_ann!X46","v":26},{"$f":"[1]ACS_16_5YR_B25091_with_ann!Y46","v":16},{"$f":"[1]ACS_16_5YR_B25091_with_ann!Z46","v":0},{"$f":"[1]ACS_16_5YR_B25091_with_ann!AA46","v":12},{"$f":"[1]ACS_16_5YR_B25091_with_ann!AB46","v":259},{"$f":"[1]ACS_16_5YR_B25091_with_ann!AC46","v":79},{"$f":"[1]ACS_16_5YR_B25091_with_ann!AD46","v":102},{"$f":"[1]ACS_16_5YR_B25091_with_ann!AE46","v":45},{"$f":"[1]ACS_16_5YR_B25091_with_ann!AF46","v":41},{"$f":"[1]ACS_16_5YR_B25091_with_ann!AG46","v":18},{"$f":"[1]ACS_16_5YR_B25091_with_ann!AH46","v":22},{"$f":"[1]ACS_16_5YR_B25091_with_ann!AI46","v":14},{"$f":"[1]ACS_16_5YR_B25091_with_ann!AJ46","v":38},{"$f":"[1]ACS_16_5YR_B25091_with_ann!AK46","v":19},{"$f":"[1]ACS_16_5YR_B25091_with_ann!AL46","v":8},{"$f":"[1]ACS_16_5YR_B25091_with_ann!AM46","v":7},{"$f":"[1]ACS_16_5YR_B25091_with_ann!AN46","v":9},{"$f":"[1]ACS_16_5YR_B25091_with_ann!AO46","v":11},{"$f":"[1]ACS_16_5YR_B25091_with_ann!AP46","v":0},{"$f":"[1]ACS_16_5YR_B25091_with_ann!AQ46","v":12},{"$f":"[1]ACS_16_5YR_B25091_with_ann!AR46","v":3},{"$f":"[1]ACS_16_5YR_B25091_with_ann!AS46","v":4},{"$f":"[1]ACS_16_5YR_B25091_with_ann!AT46","v":36},{"$f":"[1]ACS_16_5YR_B25091_with_ann!AU46","v":53},{"$f":"[1]ACS_16_5YR_B25091_with_ann!AV46","v":0},{"$f":"[1]ACS_16_5YR_B25091_with_ann!AW46","v":12}]
["06000US3300526500","0600000US3300529220","060",{"$f":"[1]ACS_16_5YR_B25091_with_ann!C47","v":"Fitzwilliam"},{"$f":"[1]ACS_16_5YR_B25091_with_ann!D47","v":957},{"$f":"[1]ACS_16_5YR_B25091_with_ann!E47","v":154},{"$f":"[1]ACS_16_5YR_B25091_with_ann!F47","v":601},{"$f":"[1]ACS_16_5YR_B25091_with_ann!G47","v":148},{"$f":"[1]ACS_16_5YR_B25091_with_ann!H47","v":19},{"$f":"[1]ACS_16_5YR_B25091_with_ann!I47","v":25},{"$f":"[1]ACS_16_5YR_B25091_with_ann!J47","v":64},{"$f":"[1]ACS_16_5YR_B25091_with_ann!K47","v":37},{"$f":"[1]ACS_16_5YR_B25091_with_ann!L47","v":112},{"$f":"[1]ACS_16_5YR_B25091_with_ann!M47","v":94},{"$f":"[1]ACS_16_5YR_B25091_with_ann!N47","v":55},{"$f":"[1]ACS_16_5YR_B25091_with_ann!O47","v":26},{"$f":"[1]ACS_16_5YR_B25091_with_ann!P47","v":43},{"$f":"[1]ACS_16_5YR_B25091_with_ann!Q47","v":31},{"$f":"[1]ACS_16_5YR_B25091_with_ann!R47","v":37},{"$f":"[1]ACS_16_5YR_B25091_with_ann!S47","v":30},{"$f":"[1]ACS_16_5YR_B25091_with_ann!T47","v":73},{"$f":"[1]ACS_16_5YR_B25091_with_ann!U47","v":43},{"$f":"[1]ACS_16_5YR_B25091_with_ann!V47","v":83},{"$f":"[1]ACS_16_5YR_B25091_with_ann!W47","v":47},{"$f":"[1]ACS_16_5YR_B25091_with_ann!X47","v":115},{"$f":"[1]ACS_16_5YR_B25091_with_ann!Y47","v":64},{"$f":"[1]ACS_16_5YR_B25091_with_ann!Z47","v":0},{"$f":"[1]ACS_16_5YR_B25091_with_ann!AA47","v":12},{"$f":"[1]ACS_16_5YR_B25091_with_ann!AB47","v":356},{"$f":"[1]ACS_16_5YR_B25091_with_ann!AC47","v":81},{"$f":"[1]ACS_16_5YR_B25091_with_ann!AD47","v":138},{"$f":"[1]ACS_16_5YR_B25091_with_ann!AE47","v":52},{"$f":"[1]ACS_16_5YR_B25091_with_ann!AF47","v":62},{"$f":"[1]ACS_16_5YR_B25091_with_ann!AG47","v":37},{"$f":"[1]ACS_16_5YR_B25091_with_ann!AH47","v":44},{"$f":"[1]ACS_16_5YR_B25091_with_ann!AI47","v":19},{"$f":"[1]ACS_16_5YR_B25091_with_ann!AJ47","v":21},{"$f":"[1]ACS_16_5YR_B25091_with_ann!AK47","v":16},{"$f":"[1]ACS_16_5YR_B25091_with_ann!AL47","v":11},{"$f":"[1]ACS_16_5YR_B25091_with_ann!AM47","v":10},{"$f":"[1]ACS_16_5YR_B25091_with_ann!AN47","v":0},{"$f":"[1]ACS_16_5YR_B25091_with_ann!AO47","v":12},{"$f":"[1]ACS_16_5YR_B25091_with_ann!AP47","v":0},{"$f":"[1]ACS_16_5YR_B25091_with_ann!AQ47","v":12},{"$f":"[1]ACS_16_5YR_B25091_with_ann!AR47","v":34},{"$f":"[1]ACS_16_5YR_B25091_with_ann!AS47","v":31},{"$f":"[1]ACS_16_5YR_B25091_with_ann!AT47","v":46},{"$f":"[1]ACS_16_5YR_B25091_with_ann!AU47","v":32},{"$f":"[1]ACS_16_5YR_B25091_with_ann!AV47","v":0},{"$f":"[1]ACS_16_5YR_B25091_with_ann!AW47","v":12}]
["06000US3300529220","0600000US3300534420","060",{"$f":"[1]ACS_16_5YR_B25091_with_ann!C48","v":"Gilsum"},{"$f":"[1]ACS_16_5YR_B25091_with_ann!D48","v":285},{"$f":"[1]ACS_16_5YR_B25091_with_ann!E48","v":50},{"$f":"[1]ACS_16_5YR_B25091_with_ann!F48","v":171},{"$f":"[1]ACS_16_5YR_B25091_with_ann!G48","v":44},{"$f":"[1]ACS_16_5YR_B25091_with_ann!H48","v":11},{"$f":"[1]ACS_16_5YR_B25091_with_ann!I48","v":9},{"$f":"[1]ACS_16_5YR_B25091_with_ann!J48","v":10},{"$f":"[1]ACS_16_5YR_B25091_with_ann!K48","v":8},{"$f":"[1]ACS_16_5YR_B25091_with_ann!L48","v":47},{"$f":"[1]ACS_16_5YR_B25091_with_ann!M48","v":22},{"$f":"[1]ACS_16_5YR_B25091_with_ann!N48","v":32},{"$f":"[1]ACS_16_5YR_B25091_with_ann!O48","v":17},{"$f":"[1]ACS_16_5YR_B25091_with_ann!P48","v":6},{"$f":"[1]ACS_16_5YR_B25091_with_ann!Q48","v":6},{"$f":"[1]ACS_16_5YR_B25091_with_ann!R48","v":18},{"$f":"[1]ACS_16_5YR_B25091_with_ann!S48","v":13},{"$f":"[1]ACS_16_5YR_B25091_with_ann!T48","v":16},{"$f":"[1]ACS_16_5YR_B25091_with_ann!U48","v":17},{"$f":"[1]ACS_16_5YR_B25091_with_ann!V48","v":2},{"$f":"[1]ACS_16_5YR_B25091_with_ann!W48","v":4},{"$f":"[1]ACS_16_5YR_B25091_with_ann!X48","v":29},{"$f":"[1]ACS_16_5YR_B25091_with_ann!Y48","v":26},{"$f":"[1]ACS_16_5YR_B25091_with_ann!Z48","v":0},{"$f":"[1]ACS_16_5YR_B25091_with_ann!AA48","v":12},{"$f":"[1]ACS_16_5YR_B25091_with_ann!AB48","v":114},{"$f":"[1]ACS_16_5YR_B25091_with_ann!AC48","v":27},{"$f":"[1]ACS_16_5YR_B25091_with_ann!AD48","v":31},{"$f":"[1]ACS_16_5YR_B25091_with_ann!AE48","v":19},{"$f":"[1]ACS_16_5YR_B25091_with_ann!AF48","v":20},{"$f":"[1]ACS_16_5YR_B25091_with_ann!AG48","v":11},{"$f":"[1]ACS_16_5YR_B25091_with_ann!AH48","v":24},{"$f":"[1]ACS_16_5YR_B25091_with_ann!AI48","v":10},{"$f":"[1]ACS_16_5YR_B25091_with_ann!AJ48","v":10},{"$f":"[1]ACS_16_5YR_B25091_with_ann!AK48","v":7},{"$f":"[1]ACS_16_5YR_B25091_with_ann!AL48","v":7},{"$f":"[1]ACS_16_5YR_B25091_with_ann!AM48","v":6},{"$f":"[1]ACS_16_5YR_B25091_with_ann!AN48","v":5},{"$f":"[1]ACS_16_5YR_B25091_with_ann!AO48","v":5},{"$f":"[1]ACS_16_5YR_B25091_with_ann!AP48","v":2},{"$f":"[1]ACS_16_5YR_B25091_with_ann!AQ48","v":4},{"$f":"[1]ACS_16_5YR_B25091_with_ann!AR48","v":6},{"$f":"[1]ACS_16_5YR_B25091_with_ann!AS48","v":8},{"$f":"[1]ACS_16_5YR_B25091_with_ann!AT48","v":9},{"$f":"[1]ACS_16_5YR_B25091_with_ann!AU48","v":12},{"$f":"[1]ACS_16_5YR_B25091_with_ann!AV48","v":0},{"$f":"[1]ACS_16_5YR_B25091_with_ann!AW48","v":12}]
["06000US3300534420","0600000US3300536660","060",{"$f":"[1]ACS_16_5YR_B25091_with_ann!C49","v":"Harrisville"},{"$f":"[1]ACS_16_5YR_B25091_with_ann!D49","v":386},{"$f":"[1]ACS_16_5YR_B25091_with_ann!E49","v":73},{"$f":"[1]ACS_16_5YR_B25091_with_ann!F49","v":199},{"$f":"[1]ACS_16_5YR_B25091_with_ann!G49","v":60},{"$f":"[1]ACS_16_5YR_B25091_with_ann!H49","v":9},{"$f":"[1]ACS_16_5YR_B25091_with_ann!I49","v":9},{"$f":"[1]ACS_16_5YR_B25091_with_ann!J49","v":37},{"$f":"[1]ACS_16_5YR_B25091_with_ann!K49","v":34},{"$f":"[1]ACS_16_5YR_B25091_with_ann!L49","v":29},{"$f":"[1]ACS_16_5YR_B25091_with_ann!M49","v":16},{"$f":"[1]ACS_16_5YR_B25091_with_ann!N49","v":48},{"$f":"[1]ACS_16_5YR_B25091_with_ann!O49","v":27},{"$f":"[1]ACS_16_5YR_B25091_with_ann!P49","v":20},{"$f":"[1]ACS_16_5YR_B25091_with_ann!Q49","v":18},{"$f":"[1]ACS_16_5YR_B25091_with_ann!R49","v":7},{"$f":"[1]ACS_16_5YR_B25091_with_ann!S49","v":8},{"$f":"[1]ACS_16_5YR_B25091_with_ann!T49","v":4},{"$f":"[1]ACS_16_5YR_B25091_with_ann!U49","v":5},{"$f":"[1]ACS_16_5YR_B25091_with_ann!V49","v":19},{"$f":"[1]ACS_16_5YR_B25091_with_ann!W49","v":21},{"$f":"[1]ACS_16_5YR_B25091_with_ann!X49","v":26},{"$f":"[1]ACS_16_5YR_B25091_with_ann!Y49","v":15},{"$f":"[1]ACS_16_5YR_B25091_with_ann!Z49","v":0},{"$f":"[1]ACS_16_5YR_B25091_with_ann!AA49","v":12},{"$f":"[1]ACS_16_5YR_B25091_with_ann!AB49","v":187},{"$f":"[1]ACS_16_5YR_B25091_with_ann!AC49","v":40},{"$f":"[1]ACS_16_5YR_B25091_with_ann!AD49","v":68},{"$f":"[1]ACS_16_5YR_B25091_with_ann!AE49","v":21},{"$f":"[1]ACS_16_5YR_B25091_with_ann!AF49","v":35},{"$f":"[1]ACS_16_5YR_B25091_with_ann!AG49","v":19},{"$f":"[1]ACS_16_5YR_B25091_with_ann!AH49","v":53},{"$f":"[1]ACS_16_5YR_B25091_with_ann!AI49","v":28},{"$f":"[1]ACS_16_5YR_B25091_with_ann!AJ49","v":12},{"$f":"[1]ACS_16_5YR_B25091_with_ann!AK49","v":8},{"$f":"[1]ACS_16_5YR_B25091_with_ann!AL49","v":4},{"$f":"[1]ACS_16_5YR_B25091_with_ann!AM49","v":5},{"$f":"[1]ACS_16_5YR_B25091_with_ann!AN49","v":5},{"$f":"[1]ACS_16_5YR_B25091_with_ann!AO49","v":7},{"$f":"[1]ACS_16_5YR_B25091_with_ann!AP49","v":7},{"$f":"[1]ACS_16_5YR_B25091_with_ann!AQ49","v":7},{"$f":"[1]ACS_16_5YR_B25091_with_ann!AR49","v":0},{"$f":"[1]ACS_16_5YR_B25091_with_ann!AS49","v":12},{"$f":"[1]ACS_16_5YR_B25091_with_ann!AT49","v":3},{"$f":"[1]ACS_16_5YR_B25091_with_ann!AU49","v":4},{"$f":"[1]ACS_16_5YR_B25091_with_ann!AV49","v":0},{"$f":"[1]ACS_16_5YR_B25091_with_ann!AW49","v":12}]
["06000US3300536660","0600000US3300538500","060",{"$f":"[1]ACS_16_5YR_B25091_with_ann!C50","v":"Hinsdale"},{"$f":"[1]ACS_16_5YR_B25091_with_ann!D50","v":1373},{"$f":"[1]ACS_16_5YR_B25091_with_ann!E50","v":192},{"$f":"[1]ACS_16_5YR_B25091_with_ann!F50","v":606},{"$f":"[1]ACS_16_5YR_B25091_with_ann!G50","v":128},{"$f":"[1]ACS_16_5YR_B25091_with_ann!H50","v":74},{"$f":"[1]ACS_16_5YR_B25091_with_ann!I50","v":75},{"$f":"[1]ACS_16_5YR_B25091_with_ann!J50","v":83},{"$f":"[1]ACS_16_5YR_B25091_with_ann!K50","v":60},{"$f":"[1]ACS_16_5YR_B25091_with_ann!L50","v":130},{"$f":"[1]ACS_16_5YR_B25091_with_ann!M50","v":72},{"$f":"[1]ACS_16_5YR_B25091_with_ann!N50","v":51},{"$f":"[1]ACS_16_5YR_B25091_with_ann!O50","v":52},{"$f":"[1]ACS_16_5YR_B25091_with_ann!P50","v":109},{"$f":"[1]ACS_16_5YR_B25091_with_ann!Q50","v":69},{"$f":"[1]ACS_16_5YR_B25091_with_ann!R50","v":26},{"$f":"[1]ACS_16_5YR_B25091_with_ann!S50","v":42},{"$f":"[1]ACS_16_5YR_B25091_with_ann!T50","v":58},{"$f":"[1]ACS_16_5YR_B25091_with_ann!U50","v":39},{"$f":"[1]ACS_16_5YR_B25091_with_ann!V50","v":0},{"$f":"[1]ACS_16_5YR_B25091_with_ann!W50","v":12},{"$f":"[1]ACS_16_5YR_B25091_with_ann!X50","v":75},{"$f":"[1]ACS_16_5YR_B25091_with_ann!Y50","v":47},{"$f":"[1]ACS_16_5YR_B25091_with_ann!Z50","v":0},{"$f":"[1]ACS_16_5YR_B25091_with_ann!AA50","v":12},{"$f":"[1]ACS_16_5YR_B25091_with_ann!AB50","v":767},{"$f":"[1]ACS_16_5YR_B25091_with_ann!AC50","v":205},{"$f":"[1]ACS_16_5YR_B25091_with_ann!AD50","v":169},{"$f":"[1]ACS_16_5YR_B25091_with_ann!AE50","v":91},{"$f":"[1]ACS_16_5YR_B25091_with_ann!AF50","v":267},{"$f":"[1]ACS_16_5YR_B25091_with_ann!AG50","v":184},{"$f":"[1]ACS_16_5YR_B25091_with_ann!AH50","v":135},{"$f":"[1]ACS_16_5YR_B25091_with_ann!AI50","v":104},{"$f":"[1]ACS_16_5YR_B25091_with_ann!AJ50","v":94},{"$f":"[1]ACS_16_5YR_B25091_with_ann!AK50","v":78},{"$f":"[1]ACS_16_5YR_B25091_with_ann!AL50","v":25},{"$f":"[1]ACS_16_5YR_B25091_with_ann!AM50","v":23},{"$f":"[1]ACS_16_5YR_B25091_with_ann!AN50","v":47},{"$f":"[1]ACS_16_5YR_B25091_with_ann!AO50","v":40},{"$f":"[1]ACS_16_5YR_B25091_with_ann!AP50","v":7},{"$f":"[1]ACS_16_5YR_B25091_with_ann!AQ50","v":12},{"$f":"[1]ACS_16_5YR_B25091_with_ann!AR50","v":11},{"$f":"[1]ACS_16_5YR_B25091_with_ann!AS50","v":17},{"$f":"[1]ACS_16_5YR_B25091_with_ann!AT50","v":12},{"$f":"[1]ACS_16_5YR_B25091_with_ann!AU50","v":15},{"$f":"[1]ACS_16_5YR_B25091_with_ann!AV50","v":0},{"$f":"[1]ACS_16_5YR_B25091_with_ann!AW50","v":12}]
["06000US3300538500","0600000US3300539300","060",{"$f":"[1]ACS_16_5YR_B25091_with_ann!C51","v":"Jaffrey"},{"$f":"[1]ACS_16_5YR_B25091_with_ann!D51","v":1580},{"$f":"[1]ACS_16_5YR_B25091_with_ann!E51","v":229},{"$f":"[1]ACS_16_5YR_B25091_with_ann!F51","v":1160},{"$f":"[1]ACS_16_5YR_B25091_with_ann!G51","v":264},{"$f":"[1]ACS_16_5YR_B25091_with_ann!H51","v":83},{"$f":"[1]ACS_16_5YR_B25091_with_ann!I51","v":96},{"$f":"[1]ACS_16_5YR_B25091_with_ann!J51","v":203},{"$f":"[1]ACS_16_5YR_B25091_with_ann!K51","v":114},{"$f":"[1]ACS_16_5YR_B25091_with_ann!L51","v":142},{"$f":"[1]ACS_16_5YR_B25091_with_ann!M51","v":116},{"$f":"[1]ACS_16_5YR_B25091_with_ann!N51","v":463},{"$f":"[1]ACS_16_5YR_B25091_with_ann!O51","v":223},{"$f":"[1]ACS_16_5YR_B25091_with_ann!P51","v":132},{"$f":"[1]ACS_16_5YR_B25091_with_ann!Q51","v":95},{"$f":"[1]ACS_16_5YR_B25091_with_ann!R51","v":43},{"$f":"[1]ACS_16_5YR_B25091_with_ann!S51","v":38},{"$f":"[1]ACS_16_5YR_B25091_with_ann!T51","v":30},{"$f":"[1]ACS_16_5YR_B25091_with_ann!U51","v":29},{"$f":"[1]ACS_16_5YR_B25091_with_ann!V51","v":15},{"$f":"[1]ACS_16_5YR_B25091_with_ann!W51","v":24},{"$f":"[1]ACS_16_5YR_B25091_with_ann!X51","v":49},{"$f":"[1]ACS_16_5YR_B25091_with_ann!Y51","v":63},{"$f":"[1]ACS_16_5YR_B25091_with_ann!Z51","v":0},{"$f":"[1]ACS_16_5YR_B25091_with_ann!AA51","v":17},{"$f":"[1]ACS_16_5YR_B25091_with_ann!AB51","v":420},{"$f":"[1]ACS_16_5YR_B25091_with_ann!AC51","v":141},{"$f":"[1]ACS_16_5YR_B25091_with_ann!AD51","v":146},{"$f":"[1]ACS_16_5YR_B25091_with_ann!AE51","v":118},{"$f":"[1]ACS_16_5YR_B25091_with_ann!AF51","v":86},{"$f":"[1]ACS_16_5YR_B25091_with_ann!AG51","v":77},{"$f":"[1]ACS_16_5YR_B25091_with_ann!AH51","v":0},{"$f":"[1]ACS_16_5YR_B25091_with_ann!AI51","v":17},{"$f":"[1]ACS_16_5YR_B25091_with_ann!AJ51","v":59},{"$f":"[1]ACS_16_5YR_B25091_with_ann!AK51","v":47},{"$f":"[1]ACS_16_5YR_B25091_with_ann!AL51","v":18},{"$f":"[1]ACS_16_5YR_B25091_with_ann!AM51","v":31},{"$f":"[1]ACS_16_5YR_B25091_with_ann!AN51","v":31},{"$f":"[1]ACS_16_5YR_B25091_with_ann!AO51","v":38},{"$f":"[1]ACS_16_5YR_B25091_with_ann!AP51","v":44},{"$f":"[1]ACS_16_5YR_B25091_with_ann!AQ51","v":40},{"$f":"[1]ACS_16_5YR_B25091_with_ann!AR51","v":8},{"$f":"[1]ACS_16_5YR_B25091_with_ann!AS51","v":16},{"$f":"[1]ACS_16_5YR_B25091_with_ann!AT51","v":16},{"$f":"[1]ACS_16_5YR_B25091_with_ann!AU51","v":26},{"$f":"[1]ACS_16_5YR_B25091_with_ann!AV51","v":12},{"$f":"[1]ACS_16_5YR_B25091_with_ann!AW51","v":19}]
["06000US3300539300","0600000US3300545460","060",{"$f":"[1]ACS_16_5YR_B25091_with_ann!C52","v":"Keene"},{"$f":"[1]ACS_16_5YR_B25091_with_ann!D52","v":4762},{"$f":"[1]ACS_16_5YR_B25091_with_ann!E52","v":346},{"$f":"[1]ACS_16_5YR_B25091_with_ann!F52","v":2504},{"$f":"[1]ACS_16_5YR_B25091_with_ann!G52","v":324},{"$f":"[1]ACS_16_5YR_B25091_with_ann!H52","v":115},{"$f":"[1]ACS_16_5YR_B25091_with_ann!I52","v":76},{"$f":"[1]ACS_16_5YR_B25091_with_ann!J52","v":285},{"$f":"[1]ACS_16_5YR_B25091_with_ann!K52","v":134},{"$f":"[1]ACS_16_5YR_B25091_with_ann!L52","v":671},{"$f":"[1]ACS_16_5YR_B25091_with_ann!M52","v":210},{"$f":"[1]ACS_16_5YR_B25091_with_ann!N52","v":432},{"$f":"[1]ACS_16_5YR_B25091_with_ann!O52","v":129},{"$f":"[1]ACS_16_5YR_B25091_with_ann!P52","v":277},{"$f":"[1]ACS_16_5YR_B25091_with_ann!Q52","v":103},{"$f":"[1]ACS_16_5YR_B25091_with_ann!R52","v":279},{"$f":"[1]ACS_16_5YR_B25091_with_ann!S52","v":165},{"$f":"[1]ACS_16_5YR_B25091_with_ann!T52","v":88},{"$f":"[1]ACS_16_5YR_B25091_with_ann!U52","v":57},{"$f":"[1]ACS_16_5YR_B25091_with_ann!V52","v":134},{"$f":"[1]ACS_16_5YR_B25091_with_ann!W52","v":63},{"$f":"[1]ACS_16_5YR_B25091_with_ann!X52","v":223},{"$f":"[1]ACS_16_5YR_B25091_with_ann!Y52","v":112},{"$f":"[1]ACS_16_5YR_B25091_with_ann!Z52","v":0},{"$f":"[1]ACS_16_5YR_B25091_with_ann!AA52","v":22},{"$f":"[1]ACS_16_5YR_B25091_with_ann!AB52","v":2258},{"$f":"[1]ACS_16_5YR_B25091_with_ann!AC52","v":362},{"$f":"[1]ACS_16_5YR_B25091_with_ann!AD52","v":652},{"$f":"[1]ACS_16_5YR_B25091_with_ann!AE52","v":187},{"$f":"[1]ACS_16_5YR_B25091_with_ann!AF52","v":451},{"$f":"[1]ACS_16_5YR_B25091_with_ann!AG52","v":186},{"$f":"[1]ACS_16_5YR_B25091_with_ann!AH52","v":294},{"$f":"[1]ACS_16_5YR_B25091_with_ann!AI52","v":128},{"$f":"[1]ACS_16_5YR_B25091_with_ann!AJ52","v":206},{"$f":"[1]ACS_16_5YR_B25091_with_ann!AK52","v":96},{"$f":"[1]ACS_16_5YR_B25091_with_ann!AL52","v":196},{"$f":"[1]ACS_16_5YR_B25091_with_ann!AM52","v":99},{"$f":"[1]ACS_16_5YR_B25091_with_ann!AN52","v":72},{"$f":"[1]ACS_16_5YR_B25091_with_ann!AO52","v":49},{"$f":"[1]ACS_16_5YR_B25091_with_ann!AP52","v":40},{"$f":"[1]ACS_16_5YR_B25091_with_ann!AQ52","v":38},{"$f":"[1]ACS_16_5YR_B25091_with_ann!AR52","v":140},{"$f":"[1]ACS_16_5YR_B25091_with_ann!AS52","v":90},{"$f":"[1]ACS_16_5YR_B25091_with_ann!AT52","v":207},{"$f":"[1]ACS_16_5YR_B25091_with_ann!AU52","v":96},{"$f":"[1]ACS_16_5YR_B25091_with_ann!AV52","v":0},{"$f":"[1]ACS_16_5YR_B25091_with_ann!AW52","v":22}]
["06000US3300545460","0600000US3300545700","060",{"$f":"[1]ACS_16_5YR_B25091_with_ann!C53","v":"Marlborough"},{"$f":"[1]ACS_16_5YR_B25091_with_ann!D53","v":608},{"$f":"[1]ACS_16_5YR_B25091_with_ann!E53","v":113},{"$f":"[1]ACS_16_5YR_B25091_with_ann!F53","v":361},{"$f":"[1]ACS_16_5YR_B25091_with_ann!G53","v":98},{"$f":"[1]ACS_16_5YR_B25091_with_ann!H53","v":15},{"$f":"[1]ACS_16_5YR_B25091_with_ann!I53","v":16},{"$f":"[1]ACS_16_5YR_B25091_with_ann!J53","v":38},{"$f":"[1]ACS_16_5YR_B25091_with_ann!K53","v":27},{"$f":"[1]ACS_16_5YR_B25091_with_ann!L53","v":124},{"$f":"[1]ACS_16_5YR_B25091_with_ann!M53","v":48},{"$f":"[1]ACS_16_5YR_B25091_with_ann!N53","v":43},{"$f":"[1]ACS_16_5YR_B25091_with_ann!O53","v":33},{"$f":"[1]ACS_16_5YR_B25091_with_ann!P53","v":80},{"$f":"[1]ACS_16_5YR_B25091_with_ann!Q53","v":68},{"$f":"[1]ACS_16_5YR_B25091_with_ann!R53","v":9},{"$f":"[1]ACS_16_5YR_B25091_with_ann!S53","v":13},{"$f":"[1]ACS_16_5YR_B25091_with_ann!T53","v":10},{"$f":"[1]ACS_16_5YR_B25091_with_ann!U53","v":17},{"$f":"[1]ACS_16_5YR_B25091_with_ann!V53","v":7},{"$f":"[1]ACS_16_5YR_B25091_with_ann!W53","v":10},{"$f":"[1]ACS_16_5YR_B25091_with_ann!X53","v":29},{"$f":"[1]ACS_16_5YR_B25091_with_ann!Y53","v":20},{"$f":"[1]ACS_16_5YR_B25091_with_ann!Z53","v":6},{"$f":"[1]ACS_16_5YR_B25091_with_ann!AA53","v":9},{"$f":"[1]ACS_16_5YR_B25091_with_ann!AB53","v":247},{"$f":"[1]ACS_16_5YR_B25091_with_ann!AC53","v":66},{"$f":"[1]ACS_16_5YR_B25091_with_ann!AD53","v":56},{"$f":"[1]ACS_16_5YR_B25091_with_ann!AE53","v":42},{"$f":"[1]ACS_16_5YR_B25091_with_ann!AF53","v":46},{"$f":"[1]ACS_16_5YR_B25091_with_ann!AG53","v":26},{"$f":"[1]ACS_16_5YR_B25091_with_ann!AH53","v":21},{"$f":"[1]ACS_16_5YR_B25091_with_ann!AI53","v":16},{"$f":"[1]ACS_16_5YR_B25091_with_ann!AJ53","v":68},{"$f":"[1]ACS_16_5YR_B25091_with_ann!AK53","v":48},{"$f":"[1]ACS_16_5YR_B25091_with_ann!AL53","v":5},{"$f":"[1]ACS_16_5YR_B25091_with_ann!AM53","v":7},{"$f":"[1]ACS_16_5YR_B25091_with_ann!AN53","v":23},{"$f":"[1]ACS_16_5YR_B25091_with_ann!AO53","v":18},{"$f":"[1]ACS_16_5YR_B25091_with_ann!AP53","v":7},{"$f":"[1]ACS_16_5YR_B25091_with_ann!AQ53","v":10},{"$f":"[1]ACS_16_5YR_B25091_with_ann!AR53","v":10},{"$f":"[1]ACS_16_5YR_B25091_with_ann!AS53","v":16},{"$f":"[1]ACS_16_5YR_B25091_with_ann!AT53","v":11},{"$f":"[1]ACS_16_5YR_B25091_with_ann!AU53","v":17},{"$f":"[1]ACS_16_5YR_B25091_with_ann!AV53","v":0},{"$f":"[1]ACS_16_5YR_B25091_with_ann!AW53","v":12}]
["06000US3300545700","0600000US3300550580","060",{"$f":"[1]ACS_16_5YR_B25091_with_ann!C54","v":"Marlow"},{"$f":"[1]ACS_16_5YR_B25091_with_ann!D54","v":279},{"$f":"[1]ACS_16_5YR_B25091_with_ann!E54","v":56},{"$f":"[1]ACS_16_5YR_B25091_with_ann!F54","v":127},{"$f":"[1]ACS_16_5YR_B25091_with_ann!G54","v":37},{"$f":"[1]ACS_16_5YR_B25091_with_ann!H54","v":5},{"$f":"[1]ACS_16_5YR_B25091_with_ann!I54","v":5},{"$f":"[1]ACS_16_5YR_B25091_with_ann!J54","v":17},{"$f":"[1]ACS_16_5YR_B25091_with_ann!K54","v":13},{"$f":"[1]ACS_16_5YR_B25091_with_ann!L54","v":33},{"$f":"[1]ACS_16_5YR_B25091_with_ann!M54","v":18},{"$f":"[1]ACS_16_5YR_B25091_with_ann!N54","v":28},{"$f":"[1]ACS_16_5YR_B25091_with_ann!O54","v":19},{"$f":"[1]ACS_16_5YR_B25091_with_ann!P54","v":5},{"$f":"[1]ACS_16_5YR_B25091_with_ann!Q54","v":5},{"$f":"[1]ACS_16_5YR_B25091_with_ann!R54","v":15},{"$f":"[1]ACS_16_5YR_B25091_with_ann!S54","v":15},{"$f":"[1]ACS_16_5YR_B25091_with_ann!T54","v":2},{"$f":"[1]ACS_16_5YR_B25091_with_ann!U54","v":3},{"$f":"[1]ACS_16_5YR_B25091_with_ann!V54","v":3},{"$f":"[1]ACS_16_5YR_B25091_with_ann!W54","v":4},{"$f":"[1]ACS_16_5YR_B25091_with_ann!X54","v":17},{"$f":"[1]ACS_16_5YR_B25091_with_ann!Y54","v":14},{"$f":"[1]ACS_16_5YR_B25091_with_ann!Z54","v":2},{"$f":"[1]ACS_16_5YR_B25091_with_ann!AA54","v":3},{"$f":"[1]ACS_16_5YR_B25091_with_ann!AB54","v":152},{"$f":"[1]ACS_16_5YR_B25091_with_ann!AC54","v":51},{"$f":"[1]ACS_16_5YR_B25091_with_ann!AD54","v":57},{"$f":"[1]ACS_16_5YR_B25091_with_ann!AE54","v":31},{"$f":"[1]ACS_16_5YR_B25091_with_ann!AF54","v":41},{"$f":"[1]ACS_16_5YR_B25091_with_ann!AG54","v":36},{"$f":"[1]ACS_16_5YR_B25091_with_ann!AH54","v":17},{"$f":"[1]ACS_16_5YR_B25091_with_ann!AI54","v":11},{"$f":"[1]ACS_16_5YR_B25091_with_ann!AJ54","v":15},{"$f":"[1]ACS_16_5YR_B25091_with_ann!AK54","v":12},{"$f":"[1]ACS_16_5YR_B25091_with_ann!AL54","v":0},{"$f":"[1]ACS_16_5YR_B25091_with_ann!AM54","v":12},{"$f":"[1]ACS_16_5YR_B25091_with_ann!AN54","v":5},{"$f":"[1]ACS_16_5YR_B25091_with_ann!AO54","v":9},{"$f":"[1]ACS_16_5YR_B25091_with_ann!AP54","v":0},{"$f":"[1]ACS_16_5YR_B25091_with_ann!AQ54","v":12},{"$f":"[1]ACS_16_5YR_B25091_with_ann!AR54","v":5},{"$f":"[1]ACS_16_5YR_B25091_with_ann!AS54","v":5},{"$f":"[1]ACS_16_5YR_B25091_with_ann!AT54","v":12},{"$f":"[1]ACS_16_5YR_B25091_with_ann!AU54","v":12},{"$f":"[1]ACS_16_5YR_B25091_with_ann!AV54","v":0},{"$f":"[1]ACS_16_5YR_B25091_with_ann!AW54","v":12}]
["06000US3300550580","0600000US3300564420","060",{"$f":"[1]ACS_16_5YR_B25091_with_ann!C55","v":"Nelson"},{"$f":"[1]ACS_16_5YR_B25091_with_ann!D55","v":225},{"$f":"[1]ACS_16_5YR_B25091_with_ann!E55","v":42},{"$f":"[1]ACS_16_5YR_B25091_with_ann!F55","v":108},{"$f":"[1]ACS_16_5YR_B25091_with_ann!G55","v":25},{"$f":"[1]ACS_16_5YR_B25091_with_ann!H55","v":15},{"$f":"[1]ACS_16_5YR_B25091_with_ann!I55","v":10},{"$f":"[1]ACS_16_5YR_B25091_with_ann!J55","v":5},{"$f":"[1]ACS_16_5YR_B25091_with_ann!K55","v":5},{"$f":"[1]ACS_16_5YR_B25091_with_ann!L55","v":16},{"$f":"[1]ACS_16_5YR_B25091_with_ann!M55","v":12},{"$f":"[1]ACS_16_5YR_B25091_with_ann!N55","v":17},{"$f":"[1]ACS_16_5YR_B25091_with_ann!O55","v":10},{"$f":"[1]ACS_16_5YR_B25091_with_ann!P55","v":11},{"$f":"[1]ACS_16_5YR_B25091_with_ann!Q55","v":8},{"$f":"[1]ACS_16_5YR_B25091_with_ann!R55","v":15},{"$f":"[1]ACS_16_5YR_B25091_with_ann!S55","v":11},{"$f":"[1]ACS_16_5YR_B25091_with_ann!T55","v":4},{"$f":"[1]ACS_16_5YR_B25091_with_ann!U55","v":4},{"$f":"[1]ACS_16_5YR_B25091_with_ann!V55","v":14},{"$f":"[1]ACS_16_5YR_B25091_with_ann!W55","v":9},{"$f":"[1]ACS_16_5YR_B25091_with_ann!X55","v":11},{"$f":"[1]ACS_16_5YR_B25091_with_ann!Y55","v":10},{"$f":"[1]ACS_16_5YR_B25091_with_ann!Z55","v":0},{"$f":"[1]ACS_16_5YR_B25091_with_ann!AA55","v":12},{"$f":"[1]ACS_16_5YR_B25091_with_ann!AB55","v":117},{"$f":"[1]ACS_16_5YR_B25091_with_ann!AC55","v":29},{"$f":"[1]ACS_16_5YR_B25091_with_ann!AD55","v":40},{"$f":"[1]ACS_16_5YR_B25091_with_ann!AE55","v":17},{"$f":"[1]ACS_16_5YR_B25091_with_ann!AF55","v":30},{"$f":"[1]ACS_16_5YR_B25091_with_ann!AG55","v":18},{"$f":"[1]ACS_16_5YR_B25091_with_ann!AH55","v":18},{"$f":"[1]ACS_16_5YR_B25091_with_ann!AI55","v":13},{"$f":"[1]ACS_16_5YR_B25091_with_ann!AJ55","v":7},{"$f":"[1]ACS_16_5YR_B25091_with_ann!AK55","v":5},{"$f":"[1]ACS_16_5YR_B25091_with_ann!AL55","v":10},{"$f":"[1]ACS_16_5YR_B25091_with_ann!AM55","v":12},{"$f":"[1]ACS_16_5YR_B25091_with_ann!AN55","v":2},{"$f":"[1]ACS_16_5YR_B25091_with_ann!AO55","v":3},{"$f":"[1]ACS_16_5YR_B25091_with_ann!AP55","v":0},{"$f":"[1]ACS_16_5YR_B25091_with_ann!AQ55","v":12},{"$f":"[1]ACS_16_5YR_B25091_with_ann!AR55","v":2},{"$f":"[1]ACS_16_5YR_B25091_with_ann!AS55","v":3},{"$f":"[1]ACS_16_5YR_B25091_with_ann!AT55","v":6},{"$f":"[1]ACS_16_5YR_B25091_with_ann!AU55","v":5},{"$f":"[1]ACS_16_5YR_B25091_with_ann!AV55","v":2},{"$f":"[1]ACS_16_5YR_B25091_with_ann!AW55","v":3}]
["06000US3300564420","0600000US3300564580","060",{"$f":"[1]ACS_16_5YR_B25091_with_ann!C56","v":"Richmond"},{"$f":"[1]ACS_16_5YR_B25091_with_ann!D56","v":383},{"$f":"[1]ACS_16_5YR_B25091_with_ann!E56","v":72},{"$f":"[1]ACS_16_5YR_B25091_with_ann!F56","v":252},{"$f":"[1]ACS_16_5YR_B25091_with_ann!G56","v":63},{"$f":"[1]ACS_16_5YR_B25091_with_ann!H56","v":4},{"$f":"[1]ACS_16_5YR_B25091_with_ann!I56","v":5},{"$f":"[1]ACS_16_5YR_B25091_with_ann!J56","v":19},{"$f":"[1]ACS_16_5YR_B25091_with_ann!K56","v":12},{"$f":"[1]ACS_16_5YR_B25091_with_ann!L56","v":66},{"$f":"[1]ACS_16_5YR_B25091_with_ann!M56","v":36},{"$f":"[1]ACS_16_5YR_B25091_with_ann!N56","v":32},{"$f":"[1]ACS_16_5YR_B25091_with_ann!O56","v":22},{"$f":"[1]ACS_16_5YR_B25091_with_ann!P56","v":15},{"$f":"[1]ACS_16_5YR_B25091_with_ann!Q56","v":10},{"$f":"[1]ACS_16_5YR_B25091_with_ann!R56","v":44},{"$f":"[1]ACS_16_5YR_B25091_with_ann!S56","v":37},{"$f":"[1]ACS_16_5YR_B25091_with_ann!T56","v":24},{"$f":"[1]ACS_16_5YR_B25091_with_ann!U56","v":17},{"$f":"[1]ACS_16_5YR_B25091_with_ann!V56","v":17},{"$f":"[1]ACS_16_5YR_B25091_with_ann!W56","v":14},{"$f":"[1]ACS_16_5YR_B25091_with_ann!X56","v":31},{"$f":"[1]ACS_16_5YR_B25091_with_ann!Y56","v":18},{"$f":"[1]ACS_16_5YR_B25091_with_ann!Z56","v":0},{"$f":"[1]ACS_16_5YR_B25091_with_ann!AA56","v":12},{"$f":"[1]ACS_16_5YR_B25091_with_ann!AB56","v":131},{"$f":"[1]ACS_16_5YR_B25091_with_ann!AC56","v":38},{"$f":"[1]ACS_16_5YR_B25091_with_ann!AD56","v":45},{"$f":"[1]ACS_16_5YR_B25091_with_ann!AE56","v":25},{"$f":"[1]ACS_16_5YR_B25091_with_ann!AF56","v":21},{"$f":"[1]ACS_16_5YR_B25091_with_ann!AG56","v":12},{"$f":"[1]ACS_16_5YR_B25091_with_ann!AH56","v":20},{"$f":"[1]ACS_16_5YR_B25091_with_ann!AI56","v":11},{"$f":"[1]ACS_16_5YR_B25091_with_ann!AJ56","v":7},{"$f":"[1]ACS_16_5YR_B25091_with_ann!AK56","v":8},{"$f":"[1]ACS_16_5YR_B25091_with_ann!AL56","v":7},{"$f":"[1]ACS_16_5YR_B25091_with_ann!AM56","v":11},{"$f":"[1]ACS_16_5YR_B25091_with_ann!AN56","v":9},{"$f":"[1]ACS_16_5YR_B25091_with_ann!AO56","v":8},{"$f":"[1]ACS_16_5YR_B25091_with_ann!AP56","v":3},{"$f":"[1]ACS_16_5YR_B25091_with_ann!AQ56","v":5},{"$f":"[1]ACS_16_5YR_B25091_with_ann!AR56","v":19},{"$f":"[1]ACS_16_5YR_B25091_with_ann!AS56","v":21},{"$f":"[1]ACS_16_5YR_B25091_with_ann!AT56","v":0},{"$f":"[1]ACS_16_5YR_B25091_with_ann!AU56","v":12},{"$f":"[1]ACS_16_5YR_B25091_with_ann!AV56","v":0},{"$f":"[1]ACS_16_5YR_B25091_with_ann!AW56","v":12}]
["06000US3300564580","0600000US3300565700","060",{"$f":"[1]ACS_16_5YR_B25091_with_ann!C57","v":"Rindge"},{"$f":"[1]ACS_16_5YR_B25091_with_ann!D57","v":1711},{"$f":"[1]ACS_16_5YR_B25091_with_ann!E57","v":137},{"$f":"[1]ACS_16_5YR_B25091_with_ann!F57","v":1190},{"$f":"[1]ACS_16_5YR_B25091_with_ann!G57","v":143},{"$f":"[1]ACS_16_5YR_B25091_with_ann!H57","v":36},{"$f":"[1]ACS_16_5YR_B25091_with_ann!I57","v":43},{"$f":"[1]ACS_16_5YR_B25091_with_ann!J57","v":225},{"$f":"[1]ACS_16_5YR_B25091_with_ann!K57","v":94},{"$f":"[1]ACS_16_5YR_B25091_with_ann!L57","v":248},{"$f":"[1]ACS_16_5YR_B25091_with_ann!M57","v":97},{"$f":"[1]ACS_16_5YR_B25091_with_ann!N57","v":146},{"$f":"[1]ACS_16_5YR_B25091_with_ann!O57","v":72},{"$f":"[1]ACS_16_5YR_B25091_with_ann!P57","v":131},{"$f":"[1]ACS_16_5YR_B25091_with_ann!Q57","v":79},{"$f":"[1]ACS_16_5YR_B25091_with_ann!R57","v":141},{"$f":"[1]ACS_16_5YR_B25091_with_ann!S57","v":76},{"$f":"[1]ACS_16_5YR_B25091_with_ann!T57","v":17},{"$f":"[1]ACS_16_5YR_B25091_with_ann!U57","v":19},{"$f":"[1]ACS_16_5YR_B25091_with_ann!V57","v":171},{"$f":"[1]ACS_16_5YR_B25091_with_ann!W57","v":117},{"$f":"[1]ACS_16_5YR_B25091_with_ann!X57","v":75},{"$f":"[1]ACS_16_5YR_B25091_with_ann!Y57","v":38},{"$f":"[1]ACS_16_5YR_B25091_with_ann!Z57","v":0},{"$f":"[1]ACS_16_5YR_B25091_with_ann!AA57","v":17},{"$f":"[1]ACS_16_5YR_B25091_with_ann!AB57","v":521},{"$f":"[1]ACS_16_5YR_B25091_with_ann!AC57","v":131},{"$f":"[1]ACS_16_5YR_B25091_with_ann!AD57","v":127},{"$f":"[1]ACS_16_5YR_B25091_with_ann!AE57","v":60},{"$f":"[1]ACS_16_5YR_B25091_with_ann!AF57","v":146},{"$f":"[1]ACS_16_5YR_B25091_with_ann!AG57","v":73},{"$f":"[1]ACS_16_5YR_B25091_with_ann!AH57","v":33},{"$f":"[1]ACS_16_5YR_B25091_with_ann!AI57","v":25},{"$f":"[1]ACS_16_5YR_B25091_with_ann!AJ57","v":69},{"$f":"[1]ACS_16_5YR_B25091_with_ann!AK57","v":49},{"$f":"[1]ACS_16_5YR_B25091_with_ann!AL57","v":44},{"$f":"[1]ACS_16_5YR_B25091_with_ann!AM57","v":44},{"$f":"[1]ACS_16_5YR_B25091_with_ann!AN57","v":20},{"$f":"[1]ACS_16_5YR_B25091_with_ann!AO57","v":25},{"$f":"[1]ACS_16_5YR_B25091_with_ann!AP57","v":0},{"$f":"[1]ACS_16_5YR_B25091_with_ann!AQ57","v":17},{"$f":"[1]ACS_16_5YR_B25091_with_ann!AR57","v":24},{"$f":"[1]ACS_16_5YR_B25091_with_ann!AS57","v":29},{"$f":"[1]ACS_16_5YR_B25091_with_ann!AT57","v":58},{"$f":"[1]ACS_16_5YR_B25091_with_ann!AU57","v":38},{"$f":"[1]ACS_16_5YR_B25091_with_ann!AV57","v":0},{"$f":"[1]ACS_16_5YR_B25091_with_ann!AW57","v":17}]
["06000US3300565700","0600000US3300573700","060",{"$f":"[1]ACS_16_5YR_B25091_with_ann!C58","v":"Roxbury"},{"$f":"[1]ACS_16_5YR_B25091_with_ann!D58","v":94},{"$f":"[1]ACS_16_5YR_B25091_with_ann!E58","v":38},{"$f":"[1]ACS_16_5YR_B25091_with_ann!F58","v":39},{"$f":"[1]ACS_16_5YR_B25091_with_ann!G58","v":18},{"$f":"[1]ACS_16_5YR_B25091_with_ann!H58","v":11},{"$f":"[1]ACS_16_5YR_B25091_with_ann!I58","v":11},{"$f":"[1]ACS_16_5YR_B25091_with_ann!J58","v":4},{"$f":"[1]ACS_16_5YR_B25091_with_ann!K58","v":4},{"$f":"[1]ACS_16_5YR_B25091_with_ann!L58","v":7},{"$f":"[1]ACS_16_5YR_B25091_with_ann!M58","v":5},{"$f":"[1]ACS_16_5YR_B25091_with_ann!N58","v":7},{"$f":"[1]ACS_16_5YR_B25091_with_ann!O58","v":8},{"$f":"[1]ACS_16_5YR_B25091_with_ann!P58","v":3},{"$f":"[1]ACS_16_5YR_B25091_with_ann!Q58","v":5},{"$f":"[1]ACS_16_5YR_B25091_with_ann!R58","v":1},{"$f":"[1]ACS_16_5YR_B25091_with_ann!S58","v":2},{"$f":"[1]ACS_16_5YR_B25091_with_ann!T58","v":1},{"$f":"[1]ACS_16_5YR_B25091_with_ann!U58","v":2},{"$f":"[1]ACS_16_5YR_B25091_with_ann!V58","v":1},{"$f":"[1]ACS_16_5YR_B25091_with_ann!W58","v":3},{"$f":"[1]ACS_16_5YR_B25091_with_ann!X58","v":4},{"$f":"[1]ACS_16_5YR_B25091_with_ann!Y58","v":5},{"$f":"[1]ACS_16_5YR_B25091_with_ann!Z58","v":0},{"$f":"[1]ACS_16_5YR_B25091_with_ann!AA58","v":12},{"$f":"[1]ACS_16_5YR_B25091_with_ann!AB58","v":55},{"$f":"[1]ACS_16_5YR_B25091_with_ann!AC58","v":38},{"$f":"[1]ACS_16_5YR_B25091_with_ann!AD58","v":7},{"$f":"[1]ACS_16_5YR_B25091_with_ann!AE58","v":5},{"$f":"[1]ACS_16_5YR_B25091_with_ann!AF58","v":9},{"$f":"[1]ACS_16_5YR_B25091_with_ann!AG58","v":6},{"$f":"[1]ACS_16_5YR_B25091_with_ann!AH58","v":4},{"$f":"[1]ACS_16_5YR_B25091_with_ann!AI58","v":5},{"$f":"[1]ACS_16_5YR_B25091_with_ann!AJ58","v":5},{"$f":"[1]ACS_16_5YR_B25091_with_ann!AK58","v":5},{"$f":"[1]ACS_16_5YR_B25091_with_ann!AL58","v":1},{"$f":"[1]ACS_16_5YR_B25091_with_ann!AM58","v":3},{"$f":"[1]ACS_16_5YR_B25091_with_ann!AN58","v":2},{"$f":"[1]ACS_16_5YR_B25091_with_ann!AO58","v":3},{"$f":"[1]ACS_16_5YR_B25091_with_ann!AP58","v":21},{"$f":"[1]ACS_16_5YR_B25091_with_ann!AQ58","v":36},{"$f":"[1]ACS_16_5YR_B25091_with_ann!AR58","v":5},{"$f":"[1]ACS_16_5YR_B25091_with_ann!AS58","v":6},{"$f":"[1]ACS_16_5YR_B25091_with_ann!AT58","v":1},{"$f":"[1]ACS_16_5YR_B25091_with_ann!AU58","v":2},{"$f":"[1]ACS_16_5YR_B25091_with_ann!AV58","v":0},{"$f":"[1]ACS_16_5YR_B25091_with_ann!AW58","v":12}]
["06000US3300573700","0600000US3300574900","060",{"$f":"[1]ACS_16_5YR_B25091_with_ann!C59","v":"Stoddard"},{"$f":"[1]ACS_16_5YR_B25091_with_ann!D59","v":405},{"$f":"[1]ACS_16_5YR_B25091_with_ann!E59","v":49},{"$f":"[1]ACS_16_5YR_B25091_with_ann!F59","v":294},{"$f":"[1]ACS_16_5YR_B25091_with_ann!G59","v":44},{"$f":"[1]ACS_16_5YR_B25091_with_ann!H59","v":30},{"$f":"[1]ACS_16_5YR_B25091_with_ann!I59","v":20},{"$f":"[1]ACS_16_5YR_B25091_with_ann!J59","v":43},{"$f":"[1]ACS_16_5YR_B25091_with_ann!K59","v":17},{"$f":"[1]ACS_16_5YR_B25091_with_ann!L59","v":57},{"$f":"[1]ACS_16_5YR_B25091_with_ann!M59","v":26},{"$f":"[1]ACS_16_5YR_B25091_with_ann!N59","v":41},{"$f":"[1]ACS_16_5YR_B25091_with_ann!O59","v":18},{"$f":"[1]ACS_16_5YR_B25091_with_ann!P59","v":34},{"$f":"[1]ACS_16_5YR_B25091_with_ann!Q59","v":19},{"$f":"[1]ACS_16_5YR_B25091_with_ann!R59","v":34},{"$f":"[1]ACS_16_5YR_B25091_with_ann!S59","v":18},{"$f":"[1]ACS_16_5YR_B25091_with_ann!T59","v":16},{"$f":"[1]ACS_16_5YR_B25091_with_ann!U59","v":15},{"$f":"[1]ACS_16_5YR_B25091_with_ann!V59","v":15},{"$f":"[1]ACS_16_5YR_B25091_with_ann!W59","v":9},{"$f":"[1]ACS_16_5YR_B25091_with_ann!X59","v":24},{"$f":"[1]ACS_16_5YR_B25091_with_ann!Y59","v":13},{"$f":"[1]ACS_16_5YR_B25091_with_ann!Z59","v":0},{"$f":"[1]ACS_16_5YR_B25091_with_ann!AA59","v":12},{"$f":"[1]ACS_16_5YR_B25091_with_ann!AB59","v":111},{"$f":"[1]ACS_16_5YR_B25091_with_ann!AC59","v":32},{"$f":"[1]ACS_16_5YR_B25091_with_ann!AD59","v":58},{"$f":"[1]ACS_16_5YR_B25091_with_ann!AE59","v":27},{"$f":"[1]ACS_16_5YR_B25091_with_ann!AF59","v":18},{"$f":"[1]ACS_16_5YR_B25091_with_ann!AG59","v":12},{"$f":"[1]ACS_16_5YR_B25091_with_ann!AH59","v":18},{"$f":"[1]ACS_16_5YR_B25091_with_ann!AI59","v":9},{"$f":"[1]ACS_16_5YR_B25091_with_ann!AJ59","v":6},{"$f":"[1]ACS_16_5YR_B25091_with_ann!AK59","v":5},{"$f":"[1]ACS_16_5YR_B25091_with_ann!AL59","v":0},{"$f":"[1]ACS_16_5YR_B25091_with_ann!AM59","v":12},{"$f":"[1]ACS_16_5YR_B25091_with_ann!AN59","v":4},{"$f":"[1]ACS_16_5YR_B25091_with_ann!AO59","v":6},{"$f":"[1]ACS_16_5YR_B25091_with_ann!AP59","v":0},{"$f":"[1]ACS_16_5YR_B25091_with_ann!AQ59","v":12},{"$f":"[1]ACS_16_5YR_B25091_with_ann!AR59","v":0},{"$f":"[1]ACS_16_5YR_B25091_with_ann!AS59","v":12},{"$f":"[1]ACS_16_5YR_B25091_with_ann!AT59","v":5},{"$f":"[1]ACS_16_5YR_B25091_with_ann!AU59","v":8},{"$f":"[1]ACS_16_5YR_B25091_with_ann!AV59","v":2},{"$f":"[1]ACS_16_5YR_B25091_with_ann!AW59","v":4}]
["06000US3300574900","0600000US3300575300","060",{"$f":"[1]ACS_16_5YR_B25091_with_ann!C60","v":"Sullivan"},{"$f":"[1]ACS_16_5YR_B25091_with_ann!D60","v":240},{"$f":"[1]ACS_16_5YR_B25091_with_ann!E60","v":46},{"$f":"[1]ACS_16_5YR_B25091_with_ann!F60","v":142},{"$f":"[1]ACS_16_5YR_B25091_with_ann!G60","v":40},{"$f":"[1]ACS_16_5YR_B25091_with_ann!H60","v":14},{"$f":"[1]ACS_16_5YR_B25091_with_ann!I60","v":13},{"$f":"[1]ACS_16_5YR_B25091_with_ann!J60","v":35},{"$f":"[1]ACS_16_5YR_B25091_with_ann!K60","v":22},{"$f":"[1]ACS_16_5YR_B25091_with_ann!L60","v":14},{"$f":"[1]ACS_16_5YR_B25091_with_ann!M60","v":9},{"$f":"[1]ACS_16_5YR_B25091_with_ann!N60","v":44},{"$f":"[1]ACS_16_5YR_B25091_with_ann!O60","v":23},{"$f":"[1]ACS_16_5YR_B25091_with_ann!P60","v":7},{"$f":"[1]ACS_16_5YR_B25091_with_ann!Q60","v":6},{"$f":"[1]ACS_16_5YR_B25091_with_ann!R60","v":11},{"$f":"[1]ACS_16_5YR_B25091_with_ann!S60","v":7},{"$f":"[1]ACS_16_5YR_B25091_with_ann!T60","v":2},{"$f":"[1]ACS_16_5YR_B25091_with_ann!U60","v":3},{"$f":"[1]ACS_16_5YR_B25091_with_ann!V60","v":8},{"$f":"[1]ACS_16_5YR_B25091_with_ann!W60","v":6},{"$f":"[1]ACS_16_5YR_B25091_with_ann!X60","v":7},{"$f":"[1]ACS_16_5YR_B25091_with_ann!Y60","v":5},{"$f":"[1]ACS_16_5YR_B25091_with_ann!Z60","v":0},{"$f":"[1]ACS_16_5YR_B25091_with_ann!AA60","v":12},{"$f":"[1]ACS_16_5YR_B25091_with_ann!AB60","v":98},{"$f":"[1]ACS_16_5YR_B25091_with_ann!AC60","v":25},{"$f":"[1]ACS_16_5YR_B25091_with_ann!AD60","v":33},{"$f":"[1]ACS_16_5YR_B25091_with_ann!AE60","v":12},{"$f":"[1]ACS_16_5YR_B25091_with_ann!AF60","v":28},{"$f":"[1]ACS_16_5YR_B25091_with_ann!AG60","v":17},{"$f":"[1]ACS_16_5YR_B25091_with_ann!AH60","v":6},{"$f":"[1]ACS_16_5YR_B25091_with_ann!AI60","v":5},{"$f":"[1]ACS_16_5YR_B25091_with_ann!AJ60","v":11},{"$f":"[1]ACS_16_5YR_B25091_with_ann!AK60","v":7},{"$f":"[1]ACS_16_5YR_B25091_with_ann!AL60","v":5},{"$f":"[1]ACS_16_5YR_B25091_with_ann!AM60","v":5},{"$f":"[1]ACS_16_5YR_B25091_with_ann!AN60","v":0},{"$f":"[1]ACS_16_5YR_B25091_with_ann!AO60","v":12},{"$f":"[1]ACS_16_5YR_B25091_with_ann!AP60","v":1},{"$f":"[1]ACS_16_5YR_B25091_with_ann!AQ60","v":4},{"$f":"[1]ACS_16_5YR_B25091_with_ann!AR60","v":0},{"$f":"[1]ACS_16_5YR_B25091_with_ann!AS60","v":12},{"$f":"[1]ACS_16_5YR_B25091_with_ann!AT60","v":14},{"$f":"[1]ACS_16_5YR_B25091_with_ann!AU60","v":12},{"$f":"[1]ACS_16_5YR_B25091_with_ann!AV60","v":0},{"$f":"[1]ACS_16_5YR_B25091_with_ann!AW60","v":12}]
["06000US3300575300","0600000US3300575700","060",{"$f":"[1]ACS_16_5YR_B25091_with_ann!C61","v":"Surry"},{"$f":"[1]ACS_16_5YR_B25091_with_ann!D61","v":324},{"$f":"[1]ACS_16_5YR_B25091_with_ann!E61","v":59},{"$f":"[1]ACS_16_5YR_B25091_with_ann!F61","v":196},{"$f":"[1]ACS_16_5YR_B25091_with_ann!G61","v":52},{"$f":"[1]ACS_16_5YR_B25091_with_ann!H61","v":11},{"$f":"[1]ACS_16_5YR_B25091_with_ann!I61","v":11},{"$f":"[1]ACS_16_5YR_B25091_with_ann!J61","v":48},{"$f":"[1]ACS_16_5YR_B25091_with_ann!K61","v":34},{"$f":"[1]ACS_16_5YR_B25091_with_ann!L61","v":50},{"$f":"[1]ACS_16_5YR_B25091_with_ann!M61","v":27},{"$f":"[1]ACS_16_5YR_B25091_with_ann!N61","v":23},{"$f":"[1]ACS_16_5YR_B25091_with_ann!O61","v":13},{"$f":"[1]ACS_16_5YR_B25091_with_ann!P61","v":16},{"$f":"[1]ACS_16_5YR_B25091_with_ann!Q61","v":10},{"$f":"[1]ACS_16_5YR_B25091_with_ann!R61","v":9},{"$f":"[1]ACS_16_5YR_B25091_with_ann!S61","v":7},{"$f":"[1]ACS_16_5YR_B25091_with_ann!T61","v":3},{"$f":"[1]ACS_16_5YR_B25091_with_ann!U61","v":4},{"$f":"[1]ACS_16_5YR_B25091_with_ann!V61","v":3},{"$f":"[1]ACS_16_5YR_B25091_with_ann!W61","v":4},{"$f":"[1]ACS_16_5YR_B25091_with_ann!X61","v":33},{"$f":"[1]ACS_16_5YR_B25091_with_ann!Y61","v":28},{"$f":"[1]ACS_16_5YR_B25091_with_ann!Z61","v":0},{"$f":"[1]ACS_16_5YR_B25091_with_ann!AA61","v":12},{"$f":"[1]ACS_16_5YR_B25091_with_ann!AB61","v":128},{"$f":"[1]ACS_16_5YR_B25091_with_ann!AC61","v":35},{"$f":"[1]ACS_16_5YR_B25091_with_ann!AD61","v":42},{"$f":"[1]ACS_16_5YR_B25091_with_ann!AE61","v":18},{"$f":"[1]ACS_16_5YR_B25091_with_ann!AF61","v":29},{"$f":"[1]ACS_16_5YR_B25091_with_ann!AG61","v":23},{"$f":"[1]ACS_16_5YR_B25091_with_ann!AH61","v":16},{"$f":"[1]ACS_16_5YR_B25091_with_ann!AI61","v":8},{"$f":"[1]ACS_16_5YR_B25091_with_ann!AJ61","v":13},{"$f":"[1]ACS_16_5YR_B25091_with_ann!AK61","v":11},{"$f":"[1]ACS_16_5YR_B25091_with_ann!AL61","v":5},{"$f":"[1]ACS_16_5YR_B25091_with_ann!AM61","v":5},{"$f":"[1]ACS_16_5YR_B25091_with_ann!AN61","v":2},{"$f":"[1]ACS_16_5YR_B25091_with_ann!AO61","v":4},{"$f":"[1]ACS_16_5YR_B25091_with_ann!AP61","v":2},{"$f":"[1]ACS_16_5YR_B25091_with_ann!AQ61","v":3},{"$f":"[1]ACS_16_5YR_B25091_with_ann!AR61","v":8},{"$f":"[1]ACS_16_5YR_B25091_with_ann!AS61","v":8},{"$f":"[1]ACS_16_5YR_B25091_with_ann!AT61","v":11},{"$f":"[1]ACS_16_5YR_B25091_with_ann!AU61","v":13},{"$f":"[1]ACS_16_5YR_B25091_with_ann!AV61","v":0},{"$f":"[1]ACS_16_5YR_B25091_with_ann!AW61","v":12}]
["06000US3300575700","0600000US3300577380","060",{"$f":"[1]ACS_16_5YR_B25091_with_ann!C62","v":"Swanzey"},{"$f":"[1]ACS_16_5YR_B25091_with_ann!D62","v":2237},{"$f":"[1]ACS_16_5YR_B25091_with_ann!E62","v":250},{"$f":"[1]ACS_16_5YR_B25091_with_ann!F62","v":1465},{"$f":"[1]ACS_16_5YR_B25091_with_ann!G62","v":251},{"$f":"[1]ACS_16_5YR_B25091_with_ann!H62","v":77},{"$f":"[1]ACS_16_5YR_B25091_with_ann!I62","v":85},{"$f":"[1]ACS_16_5YR_B25091_with_ann!J62","v":207},{"$f":"[1]ACS_16_5YR_B25091_with_ann!K62","v":130},{"$f":"[1]ACS_16_5YR_B25091_with_ann!L62","v":364},{"$f":"[1]ACS_16_5YR_B25091_with_ann!M62","v":169},{"$f":"[1]ACS_16_5YR_B25091_with_ann!N62","v":276},{"$f":"[1]ACS_16_5YR_B25091_with_ann!O62","v":112},{"$f":"[1]ACS_16_5YR_B25091_with_ann!P62","v":220},{"$f":"[1]ACS_16_5YR_B25091_with_ann!Q62","v":132},{"$f":"[1]ACS_16_5YR_B25091_with_ann!R62","v":130},{"$f":"[1]ACS_16_5YR_B25091_with_ann!S62","v":102},{"$f":"[1]ACS_16_5YR_B25091_with_ann!T62","v":30},{"$f":"[1]ACS_16_5YR_B25091_with_ann!U62","v":35},{"$f":"[1]ACS_16_5YR_B25091_with_ann!V62","v":57},{"$f":"[1]ACS_16_5YR_B25091_with_ann!W62","v":45},{"$f":"[1]ACS_16_5YR_B25091_with_ann!X62","v":92},{"$f":"[1]ACS_16_5YR_B25091_with_ann!Y62","v":54},{"$f":"[1]ACS_16_5YR_B25091_with_ann!Z62","v":12},{"$f":"[1]ACS_16_5YR_B25091_with_ann!AA62","v":21},{"$f":"[1]ACS_16_5YR_B25091_with_ann!AB62","v":772},{"$f":"[1]ACS_16_5YR_B25091_with_ann!AC62","v":193},{"$f":"[1]ACS_16_5YR_B25091_with_ann!AD62","v":215},{"$f":"[1]ACS_16_5YR_B25091_with_ann!AE62","v":108},{"$f":"[1]ACS_16_5YR_B25091_with_ann!AF62","v":188},{"$f":"[1]ACS_16_5YR_B25091_with_ann!AG62","v":124},{"$f":"[1]ACS_16_5YR_B25091_with_ann!AH62","v":113},{"$f":"[1]ACS_16_5YR_B25091_with_ann!AI62","v":73},{"$f":"[1]ACS_16_5YR_B25091_with_ann!AJ62","v":52},{"$f":"[1]ACS_16_5YR_B25091_with_ann!AK62","v":45},{"$f":"[1]ACS_16_5YR_B25091_with_ann!AL62","v":42},{"$f":"[1]ACS_16_5YR_B25091_with_ann!AM62","v":41},{"$f":"[1]ACS_16_5YR_B25091_with_ann!AN62","v":39},{"$f":"[1]ACS_16_5YR_B25091_with_ann!AO62","v":41},{"$f":"[1]ACS_16_5YR_B25091_with_ann!AP62","v":84},{"$f":"[1]ACS_16_5YR_B25091_with_ann!AQ62","v":79},{"$f":"[1]ACS_16_5YR_B25091_with_ann!AR62","v":12},{"$f":"[1]ACS_16_5YR_B25091_with_ann!AS62","v":19},{"$f":"[1]ACS_16_5YR_B25091_with_ann!AT62","v":27},{"$f":"[1]ACS_16_5YR_B25091_with_ann!AU62","v":29},{"$f":"[1]ACS_16_5YR_B25091_with_ann!AV62","v":0},{"$f":"[1]ACS_16_5YR_B25091_with_ann!AW62","v":17}]
["06000US3300577380","0600000US3300578420","060",{"$f":"[1]ACS_16_5YR_B25091_with_ann!C63","v":"Troy"},{"$f":"[1]ACS_16_5YR_B25091_with_ann!D63","v":525},{"$f":"[1]ACS_16_5YR_B25091_with_ann!E63","v":81},{"$f":"[1]ACS_16_5YR_B25091_with_ann!F63","v":329},{"$f":"[1]ACS_16_5YR_B25091_with_ann!G63","v":77},{"$f":"[1]ACS_16_5YR_B25091_with_ann!H63","v":8},{"$f":"[1]ACS_16_5YR_B25091_with_ann!I63","v":12},{"$f":"[1]ACS_16_5YR_B25091_with_ann!J63","v":51},{"$f":"[1]ACS_16_5YR_B25091_with_ann!K63","v":31},{"$f":"[1]ACS_16_5YR_B25091_with_ann!L63","v":58},{"$f":"[1]ACS_16_5YR_B25091_with_ann!M63","v":38},{"$f":"[1]ACS_16_5YR_B25091_with_ann!N63","v":24},{"$f":"[1]ACS_16_5YR_B25091_with_ann!O63","v":17},{"$f":"[1]ACS_16_5YR_B25091_with_ann!P63","v":34},{"$f":"[1]ACS_16_5YR_B25091_with_ann!Q63","v":22},{"$f":"[1]ACS_16_5YR_B25091_with_ann!R63","v":40},{"$f":"[1]ACS_16_5YR_B25091_with_ann!S63","v":33},{"$f":"[1]ACS_16_5YR_B25091_with_ann!T63","v":34},{"$f":"[1]ACS_16_5YR_B25091_with_ann!U63","v":29},{"$f":"[1]ACS_16_5YR_B25091_with_ann!V63","v":21},{"$f":"[1]ACS_16_5YR_B25091_with_ann!W63","v":20},{"$f":"[1]ACS_16_5YR_B25091_with_ann!X63","v":59},{"$f":"[1]ACS_16_5YR_B25091_with_ann!Y63","v":38},{"$f":"[1]ACS_16_5YR_B25091_with_ann!Z63","v":0},{"$f":"[1]ACS_16_5YR_B25091_with_ann!AA63","v":12},{"$f":"[1]ACS_16_5YR_B25091_with_ann!AB63","v":196},{"$f":"[1]ACS_16_5YR_B25091_with_ann!AC63","v":56},{"$f":"[1]ACS_16_5YR_B25091_with_ann!AD63","v":41},{"$f":"[1]ACS_16_5YR_B25091_with_ann!AE63","v":32},{"$f":"[1]ACS_16_5YR_B25091_with_ann!AF63","v":38},{"$f":"[1]ACS_16_5YR_B25091_with_ann!AG63","v":23},{"$f":"[1]ACS_16_5YR_B25091_with_ann!AH63","v":41},{"$f":"[1]ACS_16_5YR_B25091_with_ann!AI63","v":28},{"$f":"[1]ACS_16_5YR_B25091_with_ann!AJ63","v":26},{"$f":"[1]ACS_16_5YR_B25091_with_ann!AK63","v":18},{"$f":"[1]ACS_16_5YR_B25091_with_ann!AL63","v":20},{"$f":"[1]ACS_16_5YR_B25091_with_ann!AM63","v":26},{"$f":"[1]ACS_16_5YR_B25091_with_ann!AN63","v":0},{"$f":"[1]ACS_16_5YR_B25091_with_ann!AO63","v":12},{"$f":"[1]ACS_16_5YR_B25091_with_ann!AP63","v":13},{"$f":"[1]ACS_16_5YR_B25091_with_ann!AQ63","v":12},{"$f":"[1]ACS_16_5YR_B25091_with_ann!AR63","v":0},{"$f":"[1]ACS_16_5YR_B25091_with_ann!AS63","v":12},{"$f":"[1]ACS_16_5YR_B25091_with_ann!AT63","v":17},{"$f":"[1]ACS_16_5YR_B25091_with_ann!AU63","v":20},{"$f":"[1]ACS_16_5YR_B25091_with_ann!AV63","v":0},{"$f":"[1]ACS_16_5YR_B25091_with_ann!AW63","v":12}]
["06000US3300578420","0600000US3300582660","060",{"$f":"[1]ACS_16_5YR_B25091_with_ann!C64","v":"Walpole"},{"$f":"[1]ACS_16_5YR_B25091_with_ann!D64","v":945},{"$f":"[1]ACS_16_5YR_B25091_with_ann!E64","v":130},{"$f":"[1]ACS_16_5YR_B25091_with_ann!F64","v":517},{"$f":"[1]ACS_16_5YR_B25091_with_ann!G64","v":106},{"$f":"[1]ACS_16_5YR_B25091_with_ann!H64","v":18},{"$f":"[1]ACS_16_5YR_B25091_with_ann!I64","v":19},{"$f":"[1]ACS_16_5YR_B25091_with_ann!J64","v":120},{"$f":"[1]ACS_16_5YR_B25091_with_ann!K64","v":58},{"$f":"[1]ACS_16_5YR_B25091_with_ann!L64","v":63},{"$f":"[1]ACS_16_5YR_B25091_with_ann!M64","v":36},{"$f":"[1]ACS_16_5YR_B25091_with_ann!N64","v":125},{"$f":"[1]ACS_16_5YR_B25091_with_ann!O64","v":67},{"$f":"[1]ACS_16_5YR_B25091_with_ann!P64","v":21},{"$f":"[1]ACS_16_5YR_B25091_with_ann!Q64","v":23},{"$f":"[1]ACS_16_5YR_B25091_with_ann!R64","v":38},{"$f":"[1]ACS_16_5YR_B25091_with_ann!S64","v":27},{"$f":"[1]ACS_16_5YR_B25091_with_ann!T64","v":10},{"$f":"[1]ACS_16_5YR_B25091_with_ann!U64","v":15},{"$f":"[1]ACS_16_5YR_B25091_with_ann!V64","v":54},{"$f":"[1]ACS_16_5YR_B25091_with_ann!W64","v":55},{"$f":"[1]ACS_16_5YR_B25091_with_ann!X64","v":68},{"$f":"[1]ACS_16_5YR_B25091_with_ann!Y64","v":72},{"$f":"[1]ACS_16_5YR_B25091_with_ann!Z64","v":0},{"$f":"[1]ACS_16_5YR_B25091_with_ann!AA64","v":12},{"$f":"[1]ACS_16_5YR_B25091_with_ann!AB64","v":428},{"$f":"[1]ACS_16_5YR_B25091_with_ann!AC64","v":106},{"$f":"[1]ACS_16_5YR_B25091_with_ann!AD64","v":148},{"$f":"[1]ACS_16_5YR_B25091_with_ann!AE64","v":69},{"$f":"[1]ACS_16_5YR_B25091_with_ann!AF64","v":106},{"$f":"[1]ACS_16_5YR_B25091_with_ann!AG64","v":54},{"$f":"[1]ACS_16_5YR_B25091_with_ann!AH64","v":28},{"$f":"[1]ACS_16_5YR_B25091_with_ann!AI64","v":24},{"$f":"[1]ACS_16_5YR_B25091_with_ann!AJ64","v":40},{"$f":"[1]ACS_16_5YR_B25091_with_ann!AK64","v":38},{"$f":"[1]ACS_16_5YR_B25091_with_ann!AL64","v":22},{"$f":"[1]ACS_16_5YR_B25091_with_ann!AM64","v":20},{"$f":"[1]ACS_16_5YR_B25091_with_ann!AN64","v":0},{"$f":"[1]ACS_16_5YR_B25091_with_ann!AO64","v":12},{"$f":"[1]ACS_16_5YR_B25091_with_ann!AP64","v":7},{"$f":"[1]ACS_16_5YR_B25091_with_ann!AQ64","v":11},{"$f":"[1]ACS_16_5YR_B25091_with_ann!AR64","v":29},{"$f":"[1]ACS_16_5YR_B25091_with_ann!AS64","v":35},{"$f":"[1]ACS_16_5YR_B25091_with_ann!AT64","v":28},{"$f":"[1]ACS_16_5YR_B25091_with_ann!AU64","v":29},{"$f":"[1]ACS_16_5YR_B25091_with_ann!AV64","v":20},{"$f":"[1]ACS_16_5YR_B25091_with_ann!AW64","v":32}]
["06000US3300582660","0600000US3300585540","060",{"$f":"[1]ACS_16_5YR_B25091_with_ann!C65","v":"Westmoreland"},{"$f":"[1]ACS_16_5YR_B25091_with_ann!D65","v":787},{"$f":"[1]ACS_16_5YR_B25091_with_ann!E65","v":179},{"$f":"[1]ACS_16_5YR_B25091_with_ann!F65","v":474},{"$f":"[1]ACS_16_5YR_B25091_with_ann!G65","v":118},{"$f":"[1]ACS_16_5YR_B25091_with_ann!H65","v":31},{"$f":"[1]ACS_16_5YR_B25091_with_ann!I65","v":23},{"$f":"[1]ACS_16_5YR_B25091_with_ann!J65","v":47},{"$f":"[1]ACS_16_5YR_B25091_with_ann!K65","v":29},{"$f":"[1]ACS_16_5YR_B25091_with_ann!L65","v":55},{"$f":"[1]ACS_16_5YR_B25091_with_ann!M65","v":30},{"$f":"[1]ACS_16_5YR_B25091_with_ann!N65","v":117},{"$f":"[1]ACS_16_5YR_B25091_with_ann!O65","v":64},{"$f":"[1]ACS_16_5YR_B25091_with_ann!P65","v":77},{"$f":"[1]ACS_16_5YR_B25091_with_ann!Q65","v":64},{"$f":"[1]ACS_16_5YR_B25091_with_ann!R65","v":15},{"$f":"[1]ACS_16_5YR_B25091_with_ann!S65","v":11},{"$f":"[1]ACS_16_5YR_B25091_with_ann!T65","v":19},{"$f":"[1]ACS_16_5YR_B25091_with_ann!U65","v":18},{"$f":"[1]ACS_16_5YR_B25091_with_ann!V65","v":43},{"$f":"[1]ACS_16_5YR_B25091_with_ann!W65","v":57},{"$f":"[1]ACS_16_5YR_B25091_with_ann!X65","v":67},{"$f":"[1]ACS_16_5YR_B25091_with_ann!Y65","v":43},{"$f":"[1]ACS_16_5YR_B25091_with_ann!Z65","v":3},{"$f":"[1]ACS_16_5YR_B25091_with_ann!AA65","v":4},{"$f":"[1]ACS_16_5YR_B25091_with_ann!AB65","v":313},{"$f":"[1]ACS_16_5YR_B25091_with_ann!AC65","v":119},{"$f":"[1]ACS_16_5YR_B25091_with_ann!AD65","v":79},{"$f":"[1]ACS_16_5YR_B25091_with_ann!AE65","v":31},{"$f":"[1]ACS_16_5YR_B25091_with_ann!AF65","v":56},{"$f":"[1]ACS_16_5YR_B25091_with_ann!AG65","v":27},{"$f":"[1]ACS_16_5YR_B25091_with_ann!AH65","v":27},{"$f":"[1]ACS_16_5YR_B25091_with_ann!AI65","v":20},{"$f":"[1]ACS_16_5YR_B25091_with_ann!AJ65","v":20},{"$f":"[1]ACS_16_5YR_B25091_with_ann!AK65","v":14},{"$f":"[1]ACS_16_5YR_B25091_with_ann!AL65","v":11},{"$f":"[1]ACS_16_5YR_B25091_with_ann!AM65","v":10},{"$f":"[1]ACS_16_5YR_B25091_with_ann!AN65","v":4},{"$f":"[1]ACS_16_5YR_B25091_with_ann!AO65","v":6},{"$f":"[1]ACS_16_5YR_B25091_with_ann!AP65","v":13},{"$f":"[1]ACS_16_5YR_B25091_with_ann!AQ65","v":12},{"$f":"[1]ACS_16_5YR_B25091_with_ann!AR65","v":25},{"$f":"[1]ACS_16_5YR_B25091_with_ann!AS65","v":26},{"$f":"[1]ACS_16_5YR_B25091_with_ann!AT65","v":9},{"$f":"[1]ACS_16_5YR_B25091_with_ann!AU65","v":15},{"$f":"[1]ACS_16_5YR_B25091_with_ann!AV65","v":69},{"$f":"[1]ACS_16_5YR_B25091_with_ann!AW65","v":99}]
["06000US3300585540","0600000US3300500820","060",{"$f":"[1]ACS_16_5YR_B25091_with_ann!C66","v":"Winchester"},{"$f":"[1]ACS_16_5YR_B25091_with_ann!D66","v":1052},{"$f":"[1]ACS_16_5YR_B25091_with_ann!E66","v":163},{"$f":"[1]ACS_16_5YR_B25091_with_ann!F66","v":651},{"$f":"[1]ACS_16_5YR_B25091_with_ann!G66","v":120},{"$f":"[1]ACS_16_5YR_B25091_with_ann!H66","v":73},{"$f":"[1]ACS_16_5YR_B25091_with_ann!I66","v":68},{"$f":"[1]ACS_16_5YR_B25091_with_ann!J66","v":48},{"$f":"[1]ACS_16_5YR_B25091_with_ann!K66","v":36},{"$f":"[1]ACS_16_5YR_B25091_with_ann!L66","v":178},{"$f":"[1]ACS_16_5YR_B25091_with_ann!M66","v":86},{"$f":"[1]ACS_16_5YR_B25091_with_ann!N66","v":64},{"$f":"[1]ACS_16_5YR_B25091_with_ann!O66","v":67},{"$f":"[1]ACS_16_5YR_B25091_with_ann!P66","v":55},{"$f":"[1]ACS_16_5YR_B25091_with_ann!Q66","v":55},{"$f":"[1]ACS_16_5YR_B25091_with_ann!R66","v":21},{"$f":"[1]ACS_16_5YR_B25091_with_ann!S66","v":24},{"$f":"[1]ACS_16_5YR_B25091_with_ann!T66","v":52},{"$f":"[1]ACS_16_5YR_B25091_with_ann!U66","v":39},{"$f":"[1]ACS_16_5YR_B25091_with_ann!V66","v":69},{"$f":"[1]ACS_16_5YR_B25091_with_ann!W66","v":45},{"$f":"[1]ACS_16_5YR_B25091_with_ann!X66","v":91},{"$f":"[1]ACS_16_5YR_B25091_with_ann!Y66","v":61},{"$f":"[1]ACS_16_5YR_B25091_with_ann!Z66","v":0},{"$f":"[1]ACS_16_5YR_B25091_with_ann!AA66","v":12},{"$f":"[1]ACS_16_5YR_B25091_with_ann!AB66","v":401},{"$f":"[1]ACS_16_5YR_B25091_with_ann!AC66","v":119},{"$f":"[1]ACS_16_5YR_B25091_with_ann!AD66","v":71},{"$f":"[1]ACS_16_5YR_B25091_with_ann!AE66","v":50},{"$f":"[1]ACS_16_5YR_B25091_with_ann!AF66","v":98},{"$f":"[1]ACS_16_5YR_B25091_with_ann!AG66","v":56},{"$f":"[1]ACS_16_5YR_B25091_with_ann!AH66","v":61},{"$f":"[1]ACS_16_5YR_B25091_with_ann!AI66","v":42},{"$f":"[1]ACS_16_5YR_B25091_with_ann!AJ66","v":73},{"$f":"[1]ACS_16_5YR_B25091_with_ann!AK66","v":53},{"$f":"[1]ACS_16_5YR_B25091_with_ann!AL66","v":38},{"$f":"[1]ACS_16_5YR_B25091_with_ann!AM66","v":32},{"$f":"[1]ACS_16_5YR_B25091_with_ann!AN66","v":16},{"$f":"[1]ACS_16_5YR_B25091_with_ann!AO66","v":26},{"$f":"[1]ACS_16_5YR_B25091_with_ann!AP66","v":0},{"$f":"[1]ACS_16_5YR_B25091_with_ann!AQ66","v":12},{"$f":"[1]ACS_16_5YR_B25091_with_ann!AR66","v":0},{"$f":"[1]ACS_16_5YR_B25091_with_ann!AS66","v":12},{"$f":"[1]ACS_16_5YR_B25091_with_ann!AT66","v":44},{"$f":"[1]ACS_16_5YR_B25091_with_ann!AU66","v":31},{"$f":"[1]ACS_16_5YR_B25091_with_ann!AV66","v":0},{"$f":"[1]ACS_16_5YR_B25091_with_ann!AW66","v":12}]
[]
[]
[null,null,null,null,null,null,null,null,null,null,null,null,null,null,null,null,null,null,null,null,null,null,null,null,null,null,null,null,null,null,null,null,null,null,null,null,null,null,null,null,null,null,{"$f":"$D$22","v":"Troy"},null,{"$f":"$D$23","v":"Walpole"},null,{"$f":"$D$24","v":"Westmoreland"},null,{"$f":"$D$25","v":"Winchester"}]
[null,null,null,null,{"$f":"$D$3","v":"Alstead"},null,{"$f":"$D$4","v":"Chesterfield"},null,{"$f":"$D$5","v":"Dublin"},null,{"$f":"$D$6","v":"Fitzwilliam"},null,{"$f":"$D$7","v":"Gilsum"},null,{"$f":"$D$8","v":"Harrisville"},null,{"$f":"$D$9","v":"Hinsdale"},null,{"$f":"$D$10","v":"Jaffrey"},null,{"$f":"$D$11","v":"Keene"},null,{"$f":"$D$12","v":"Marlborough"},null,{"$f":"$D$13","v":"Marlow"},null,{"$f":"$D$14","v":"Nelson"},null,{"$f":"$D$15","v":"Richmond"},null,{"$f":"$D$16","v":"Rindge"},null,{"$f":"$D$17","v":"Roxbury"},null,{"$f":"$D$18","v":"Stoddard"},null,{"$f":"$D$19","v":"Sullivan"},null,{"$f":"$D$20","v":"Surry"},null,{"$f":"$D$21","v":"Swanzey"},null,{"$f":"$D$21","v":"Swanzey"},null,{"$f":"$D$21","v":"Swanzey"},null,{"$f":"$D$21","v":"Swanzey"},null,{"$f":"$D$21","v":"Swanzey"}]
[null,null,null,null,"Estimate","Margin of Error","Estimate","Margin of Error","Estimate","Margin of Error","Estimate","Margin of Error","Estimate","Margin of Error","Estimate","Margin of Error","Estimate","Margin of Error","Estimate","Margin of Error","Estimate","Margin of Error","Estimate","Margin of Error","Estimate","Margin of Error","Estimate","Margin of Error","Estimate","Margin of Error","Estimate","Margin of Error","Estimate","Margin of Error","Estimate","Margin of Error","Estimate","Margin of Error","Estimate","Margin of Error","Estimate","Margin of Error"]
[null,null,null,"Estimate!!Total:",507,86,1227,184,530,99,957,154,285,50,386,73,1373,192,1580,229,4762,346,608,113,279,56,225,42,383,72,1711,137,94,38,405,49,240,46,324,59,2237,250,525,81,945,130,787,179,1052,163]
[null,null,null,"Estimate!!Total:!!Housing units with a mortgage:",256,71,865,189,271,82,601,148,171,44,199,60,606,128,1160,264,2504,324,361,98,127,37,108,25,252,63,1190,143,39,18,294,44,142,40,196,52,1465,251,329,77,517,106,474,118,651,120]
[null,null,null,"Estimate!!Total:!!Housing units with a mortgage:!!Less than 10.0 percent",10,9,41,41,7,7,19,25,11,9,9,9,74,75,83,96,115,76,15,16,5,5,15,10,4,5,36,43,11,11,30,20,14,13,11,11,77,85,8,12,18,19,31,23,73,68]
[null,null,null,"Estimate!!Total:!!Housing units with a mortgage:!!10.0 to 14.9 percent",33,21,168,110,74,71,64,37,10,8,37,34,83,60,203,114,285,134,38,27,17,13,5,5,19,12,225,94,4,4,43,17,35,22,48,34,207,130,51,31,120,58,47,29,48,36]
[null,null,null,"Estimate!!Total:!!Housing units with a mortgage:!!15.0 to 19.9 percent",44,20,162,84,68,27,112,94,47,22,29,16,130,72,142,116,671,210,124,48,33,18,16,12,66,36,248,97,7,5,57,26,14,9,50,27,364,169,58,38,63,36,55,30,178,86]
[null,null,null,"Estimate!!Total:!!Housing units with a mortgage:!!20.0 to 24.9 percent",38,24,190,123,26,19,55,26,32,17,48,27,51,52,463,223,432,129,43,33,28,19,17,10,32,22,146,72,7,8,41,18,44,23,23,13,276,112,24,17,125,67,117,64,64,67]
[null,null,null,"Estimate!!Total:!!Housing units with a mortgage:!!25.0 to 29.9 percent",26,16,33,35,19,9,43,31,6,6,20,18,109,69,132,95,277,103,80,68,5,5,11,8,15,10,131,79,3,5,34,19,7,6,16,10,220,132,34,22,21,23,77,64,55,55]
[null,null,null,"Estimate!!Total:!!Housing units with a mortgage:!!30.0 to 34.9 percent",4,6,118,89,17,17,37,30,18,13,7,8,26,42,43,38,279,165,9,13,15,15,15,11,44,37,141,76,1,2,34,18,11,7,9,7,130,102,40,33,38,27,15,11,21,24]
[null,null,null,"Estimate!!Total:!!Housing units with a mortgage:!!35.0 to 39.9 percent",13,11,0,12,17,20,73,43,16,17,4,5,58,39,30,29,88,57,10,17,2,3,4,4,24,17,17,19,1,2,16,15,2,3,3,4,30,35,34,29,10,15,19,18,52,39]
[null,null,null,"Estimate!!Total:!!Housing units with a mortgage:!!40.0 to 49.9 percent",6,8,33,40,17,15,83,47,2,4,19,21,0,12,15,24,134,63,7,10,3,4,14,9,17,14,171,117,1,3,15,9,8,6,3,4,57,45,21,20,54,55,43,57,69,45]
[null,null,null,"Estimate!!Total:!!Housing units with a mortgage:!!50.0 percent or more",82,60,120,100,26,16,115,64,29,26,26,15,75,47,49,63,223,112,29,20,17,14,11,10,31,18,75,38,4,5,24,13,7,5,33,28,92,54,59,38,68,72,67,43,91,61]
[null,null,null,"Estimate!!Total:!!Housing units with a mortgage:!!Not computed",0,12,0,12,0,12,0,12,0,12,0,12,0,12,0,17,0,22,6,9,2,3,0,12,0,12,0,17,0,12,0,12,0,12,0,12,12,21,0,12,0,12,3,4,0,12]
[null,null,null,"Estimate!!Total:!!Housing units without a mortgage:",251,67,362,143,259,79,356,81,114,27,187,40,767,205,420,141,2258,362,247,66,152,51,117,29,131,38,521,131,55,38,111,32,98,25,128,35,772,193,196,56,428,106,313,119,401,119]
[null,null,null,"Estimate!!Total:!!Housing units without a mortgage:!!Less than 10.0 percent",71,31,178,107,102,45,138,52,31,19,68,21,169,91,146,118,652,187,56,42,57,31,40,17,45,25,127,60,7,5,58,27,33,12,42,18,215,108,41,32,148,69,79,31,71,50]
[null,null,null,"Estimate!!Total:!!Housing units without a mortgage:!!10.0 to 14.9 percent",38,19,15,24,41,18,62,37,20,11,35,19,267,184,86,77,451,186,46,26,41,36,30,18,21,12,146,73,9,6,18,12,28,17,29,23,188,124,38,23,106,54,56,27,98,56]
[null,null,null,"Estimate!!Total:!!Housing units without a mortgage:!!15.0 to 19.9 percent",69,37,52,48,22,14,44,19,24,10,53,28,135,104,0,17,294,128,21,16,17,11,18,13,20,11,33,25,4,5,18,9,6,5,16,8,113,73,41,28,28,24,27,20,61,42]
[null,null,null,"Estimate!!Total:!!Housing units without a mortgage:!!20.0 to 24.9 percent",31,35,87,90,38,19,21,16,10,7,12,8,94,78,59,47,206,96,68,48,15,12,7,5,7,8,69,49,5,5,6,5,11,7,13,11,52,45,26,18,40,38,20,14,73,53]
[null,null,null,"Estimate!!Total:!!Housing units without a mortgage:!!25.0 to 29.9 percent",12,10,16,24,8,7,11,10,7,6,4,5,25,23,18,31,196,99,5,7,0,12,10,12,7,11,44,44,1,3,0,12,5,5,5,5,42,41,20,26,22,20,11,10,38,32]
[null,null,null,"Estimate!!Total:!!Housing units without a mortgage:!!30.0 to 34.9 percent",0,12,0,12,9,11,0,12,5,5,5,7,47,40,31,38,72,49,23,18,5,9,2,3,9,8,20,25,2,3,4,6,0,12,2,4,39,41,0,12,0,12,4,6,16,26]
[null,null,null,"Estimate!!Total:!!Housing units without a mortgage:!!35.0 to 39.9 percent",5,7,14,22,0,12,0,12,2,4,7,7,7,12,44,40,40,38,7,10,0,12,0,12,3,5,0,17,21,36,0,12,1,4,2,3,84,79,13,12,7,11,13,12,0,12]
[null,null,null,"Estimate!!Total:!!Housing units without a mortgage:!!40.0 to 49.9 percent",12,11,0,12,3,4,34,31,6,8,0,12,11,17,8,16,140,90,10,16,5,5,2,3,19,21,24,29,5,6,0,12,0,12,8,8,12,19,0,12,29,35,25,26,0,12]
[null,null,null,"Estimate!!Total:!!Housing units without a mortgage:!!50.0 percent or more",13,12,0,12,36,53,46,32,9,12,3,4,12,15,16,26,207,96,11,17,12,12,6,5,0,12,58,38,1,2,5,8,14,12,11,13,27,29,17,20,28,29,9,15,44,31]
[null,null,null,"Estimate!!Total:!!Housing units without a mortgage:!!Not computed",0,12,0,12,0,12,0,12,0,12,0,12,0,12,12,19,0,22,0,12,0,12,2,3,0,12,0,17,0,12,2,4,0,12,0,12,0,17,0,12,20,32,69,99,0,12]

{"sheet":"SData_B25106HsingCostAsPctOfInc","index":107,"n_rows":76,"n_cols":96,"rows_kept":76,"cut":false,"hidden":true,"merged":[]}
["GEO_ID","GEO_ID2","SUMLEVEL","GEO_NAME",{"$f":"[1]ACS_16_5YR_B25106_with_ann!D1","v":"B25106_001E"},{"$f":"[1]ACS_16_5YR_B25106_with_ann!E1","v":"B25106_001M"},{"$f":"[1]ACS_16_5YR_B25106_with_ann!F1","v":"B25106_002E"},{"$f":"[1]ACS_16_5YR_B25106_with_ann!G1","v":"B25106_002M"},{"$f":"[1]ACS_16_5YR_B25106_with_ann!H1","v":"B25106_003E"},{"$f":"[1]ACS_16_5YR_B25106_with_ann!I1","v":"B25106_003M"},{"$f":"[1]ACS_16_5YR_B25106_with_ann!J1","v":"B25106_004E"},{"$f":"[1]ACS_16_5YR_B25106_with_ann!K1","v":"B25106_004M"},{"$f":"[1]ACS_16_5YR_B25106_with_ann!L1","v":"B25106_005E"},{"$f":"[1]ACS_16_5YR_B25106_with_ann!M1","v":"B25106_005M"},{"$f":"[1]ACS_16_5YR_B25106_with_ann!N1","v":"B25106_006E"},{"$f":"[1]ACS_16_5YR_B25106_with_ann!O1","v":"B25106_006M"},{"$f":"[1]ACS_16_5YR_B25106_with_ann!P1","v":"B25106_007E"},{"$f":"[1]ACS_16_5YR_B25106_with_ann!Q1","v":"B25106_007M"},{"$f":"[1]ACS_16_5YR_B25106_with_ann!R1","v":"B25106_008E"},{"$f":"[1]ACS_16_5YR_B25106_with_ann!S1","v":"B25106_008M"},{"$f":"[1]ACS_16_5YR_B25106_with_ann!T1","v":"B25106_009E"},{"$f":"[1]ACS_16_5YR_B25106_with_ann!U1","v":"B25106_009M"},{"$f":"[1]ACS_16_5YR_B25106_with_ann!V1","v":"B25106_010E"},{"$f":"[1]ACS_16_5YR_B25106_with_ann!W1","v":"B25106_010M"},{"$f":"[1]ACS_16_5YR_B25106_with_ann!X1","v":"B25106_011E"},{"$f":"[1]ACS_16_5YR_B25106_with_ann!Y1","v":"B25106_011M"},{"$f":"[1]ACS_16_5YR_B25106_with_ann!Z1","v":"B25106_012E"},{"$f":"[1]ACS_16_5YR_B25106_with_ann!AA1","v":"B25106_012M"},{"$f":"[1]ACS_16_5YR_B25106_with_ann!AB1","v":"B25106_013E"},{"$f":"[1]ACS_16_5YR_B25106_with_ann!AC1","v":"B25106_013M"},{"$f":"[1]ACS_16_5YR_B25106_with_ann!AD1","v":"B25106_014E"},{"$f":"[1]ACS_16_5YR_B25106_with_ann!AE1","v":"B25106_014M"},{"$f":"[1]ACS_16_5YR_B25106_with_ann!AF1","v":"B25106_015E"},{"$f":"[1]ACS_16_5YR_B25106_with_ann!AG1","v":"B25106_015M"},{"$f":"[1]ACS_16_5YR_B25106_with_ann!AH1","v":"B25106_016E"},{"$f":"[1]ACS_16_5YR_B25106_with_ann!AI1","v":"B25106_016M"},{"$f":"[1]ACS_16_5YR_B25106_with_ann!AJ1","v":"B25106_017E"},{"$f":"[1]ACS_16_5YR_B25106_with_ann!AK1","v":"B25106_017M"},{"$f":"[1]ACS_16_5YR_B25106_with_ann!AL1","v":"B25106_018E"},{"$f":"[1]ACS_16_5YR_B25106_with_ann!AM1","v":"B25106_018M"},{"$f":"[1]ACS_16_5YR_B25106_with_ann!AN1","v":"B25106_019E"},{"$f":"[1]ACS_16_5YR_B25106_with_ann!AO1","v":"B25106_019M"},{"$f":"[1]ACS_16_5YR_B25106_with_ann!AP1","v":"B25106_020E"},{"$f":"[1]ACS_16_5YR_B25106_with_ann!AQ1","v":"B25106_020M"},{"$f":"[1]ACS_16_5YR_B25106_with_ann!AR1","v":"B25106_021E"},{"$f":"[1]ACS_16_5YR_B25106_with_ann!AS1","v":"B25106_021M"},{"$f":"[1]ACS_16_5YR_B25106_with_ann!AT1","v":"B25106_022E"},{"$f":"[1]ACS_16_5YR_B25106_with_ann!AU1","v":"B25106_022M"},{"$f":"[1]ACS_16_5YR_B25106_with_ann!AV1","v":"B25106_023E"},{"$f":"[1]ACS_16_5YR_B25106_with_ann!AW1","v":"B25106_023M"},{"$f":"[1]ACS_16_5YR_B25106_with_ann!AX1","v":"B25106_024E"},{"$f":"[1]ACS_16_5YR_B25106_with_ann!AY1","v":"B25106_024M"},{"$f":"[1]ACS_16_5YR_B25106_with_ann!AZ1","v":"B25106_025E"},{"$f":"[1]ACS_16_5YR_B25106_with_ann!BA1","v":"B25106_025M"},{"$f":"[1]ACS_16_5YR_B25106_with_ann!BB1","v":"B25106_026E"},{"$f":"[1]ACS_16_5YR_B25106_with_ann!BC1","v":"B25106_026M"},{"$f":"[1]ACS_16_5YR_B25106_with_ann!BD1","v":"B25106_027E"},{"$f":"[1]ACS_16_5YR_B25106_with_ann!BE1","v":"B25106_027M"},{"$f":"[1]ACS_16_5YR_B25106_with_ann!BF1","v":"B25106_028E"},{"$f":"[1]ACS_16_5YR_B25106_with_ann!BG1","v":"B25106_028M"},{"$f":"[1]ACS_16_5YR_B25106_with_ann!BH1","v":"B25106_029E"},{"$f":"[1]ACS_16_5YR_B25106_with_ann!BI1","v":"B25106_029M"},{"$f":"[1]ACS_16_5YR_B25106_with_ann!BJ1","v":"B25106_030E"},{"$f":"[1]ACS_16_5YR_B25106_with_ann!BK1","v":"B25106_030M"},{"$f":"[1]ACS_16_5YR_B25106_with_ann!BL1","v":"B25106_031E"},{"$f":"[1]ACS_16_5YR_B25106_with_ann!BM1","v":"B25106_031M"},{"$f":"[1]ACS_16_5YR_B25106_with_ann!BN1","v":"B25106_032E"},{"$f":"[1]ACS_16_5YR_B25106_with_ann!BO1","v":"B25106_032M"},{"$f":"[1]ACS_16_5YR_B25106_with_ann!BP1","v":"B25106_033E"},{"$f":"[1]ACS_16_5YR_B25106_with_ann!BQ1","v":"B25106_033M"},{"$f":"[1]ACS_16_5YR_B25106_with_ann!BR1","v":"B25106_034E"},{"$f":"[1]ACS_16_5YR_B25106_with_ann!BS1","v":"B25106_034M"},{"$f":"[1]ACS_16_5YR_B25106_with_ann!BT1","v":"B25106_035E"},{"$f":"[1]ACS_16_5YR_B25106_with_ann!BU1","v":"B25106_035M"},{"$f":"[1]ACS_16_5YR_B25106_with_ann!BV1","v":"B25106_036E"},{"$f":"[1]ACS_16_5YR_B25106_with_ann!BW1","v":"B25106_036M"},{"$f":"[1]ACS_16_5YR_B25106_with_ann!BX1","v":"B25106_037E"},{"$f":"[1]ACS_16_5YR_B25106_with_ann!BY1","v":"B25106_037M"},{"$f":"[1]ACS_16_5YR_B25106_with_ann!BZ1","v":"B25106_038E"},{"$f":"[1]ACS_16_5YR_B25106_with_ann!CA1","v":"B25106_038M"},{"$f":"[1]ACS_16_5YR_B25106_with_ann!CB1","v":"B25106_039E"},{"$f":"[1]ACS_16_5YR_B25106_with_ann!CC1","v":"B25106_039M"},{"$f":"[1]ACS_16_5YR_B25106_with_ann!CD1","v":"B25106_040E"},{"$f":"[1]ACS_16_5YR_B25106_with_ann!CE1","v":"B25106_040M"},{"$f":"[1]ACS_16_5YR_B25106_with_ann!CF1","v":"B25106_041E"},{"$f":"[1]ACS_16_5YR_B25106_with_ann!CG1","v":"B25106_041M"},{"$f":"[1]ACS_16_5YR_B25106_with_ann!CH1","v":"B25106_042E"},{"$f":"[1]ACS_16_5YR_B25106_with_ann!CI1","v":"B25106_042M"},{"$f":"[1]ACS_16_5YR_B25106_with_ann!CJ1","v":"B25106_043E"},{"$f":"[1]ACS_16_5YR_B25106_with_ann!CK1","v":"B25106_043M"},{"$f":"[1]ACS_16_5YR_B25106_with_ann!CL1","v":"B25106_044E"},{"$f":"[1]ACS_16_5YR_B25106_with_ann!CM1","v":"B25106_044M"},{"$f":"[1]ACS_16_5YR_B25106_with_ann!CN1","v":"B25106_045E"},{"$f":"[1]ACS_16_5YR_B25106_with_ann!CO1","v":"B25106_045M"},{"$f":"[1]ACS_16_5YR_B25106_with_ann!CP1","v":"B25106_046E"},{"$f":"[1]ACS_16_5YR_B25106_with_ann!CQ1","v":"B25106_046M"}]
["Geography Identifier","Geography Identifier","Geographic Summary Level","Geography",{"$f":"[1]ACS_16_5YR_B25106_with_ann!D2","v":"Estimate!!Total:"},{"$f":"[1]ACS_16_5YR_B25106_with_ann!E2","v":"Margin of Error!!Total:"},{"$f":"[1]ACS_16_5YR_B25106_with_ann!F2","v":"Estimate!!Total:!!Owner-occupied housing units:"},{"$f":"[1]ACS_16_5YR_B25106_with_ann!G2","v":"Margin of Error!!Total:!!Owner-occupied housing units:"},{"$f":"[1]ACS_16_5YR_B25106_with_ann!H2","v":"Estimate!!Total:!!Owner-occupied housing units:!!Less than $20"},{"$f":"[1]ACS_16_5YR_B25106_with_ann!I2","v":"Margin of Error!!Total:!!Owner-occupied housing units:!!Less than $20"},{"$f":"[1]ACS_16_5YR_B25106_with_ann!J2","v":"Estimate!!Total:!!Owner-occupied housing units:!!Less than $20,000:!!Less than 20 percent"},{"$f":"[1]ACS_16_5YR_B25106_with_ann!K2","v":"Margin of Error!!Total:!!Owner-occupied housing units:!!Less than $20,000:!!Less than 20 percent"},{"$f":"[1]ACS_16_5YR_B25106_with_ann!L2","v":"Estimate!!Total:!!Owner-occupied housing units:!!Less than $20,000:!!20 to 29 percent"},{"$f":"[1]ACS_16_5YR_B25106_with_ann!M2","v":"Margin of Error!!Total:!!Owner-occupied housing units:!!Less than $20,000:!!20 to 29 percent"},{"$f":"[1]ACS_16_5YR_B25106_with_ann!N2","v":"Estimate!!Total:!!Owner-occupied housing units:!!Less than $20,000:!!30 percent or more"},{"$f":"[1]ACS_16_5YR_B25106_with_ann!O2","v":"Margin of Error!!Total:!!Owner-occupied housing units:!!Less than $20,000:!!30 percent or more"},{"$f":"[1]ACS_16_5YR_B25106_with_ann!P2","v":"Estimate!!Total:!!Owner-occupied housing units:!!$20,000 to $34,999:"},{"$f":"[1]ACS_16_5YR_B25106_with_ann!Q2","v":"Margin of Error!!Total:!!Owner-occupied housing units:!!$20,000 to $34,999:"},{"$f":"[1]ACS_16_5YR_B25106_with_ann!R2","v":"Estimate!!Total:!!Owner-occupied housing units:!!$20,000 to $34,999:!!Less than 20 percent"},{"$f":"[1]ACS_16_5YR_B25106_with_ann!S2","v":"Margin of Error!!Total:!!Owner-occupied housing units:!!$20,000 to $34,999:!!Less than 20 percent"},{"$f":"[1]ACS_16_5YR_B25106_with_ann!T2","v":"Estimate!!Total:!!Owner-occupied housing units:!!$20,000 to $34,999:!!20 to 29 percent"},{"$f":"[1]ACS_16_5YR_B25106_with_ann!U2","v":"Margin of Error!!Total:!!Owner-occupied housing units:!!$20,000 to $34,999:!!20 to 29 percent"},{"$f":"[1]ACS_16_5YR_B25106_with_ann!V2","v":"Estimate!!Total:!!Owner-occupied housing units:!!$20,000 to $34,999:!!30 percent or more"},{"$f":"[1]ACS_16_5YR_B25106_with_ann!W2","v":"Margin of Error!!Total:!!Owner-occupied housing units:!!$20,000 to $34,999:!!30 percent or more"},{"$f":"[1]ACS_16_5YR_B25106_with_ann!X2","v":"Estimate!!Total:!!Owner-occupied housing units:!!$35,000 to $49,999:"},{"$f":"[1]ACS_16_5YR_B25106_with_ann!Y2","v":"Margin of Error!!Total:!!Owner-occupied housing units:!!$35,000 to $49,999:"},{"$f":"[1]ACS_16_5YR_B25106_with_ann!Z2","v":"Estimate!!Total:!!Owner-occupied housing units:!!$35,000 to $49,999:!!Less than 20 percent"},{"$f":"[1]ACS_16_5YR_B25106_with_ann!AA2","v":"Margin of Error!!Total:!!Owner-occupied housing units:!!$35,000 to $49,999:!!Less than 20 percent"},{"$f":"[1]ACS_16_5YR_B25106_with_ann!AB2","v":"Estimate!!Total:!!Owner-occupied housing units:!!$35,000 to $49,999:!!20 to 29 percent"},{"$f":"[1]ACS_16_5YR_B25106_with_ann!AC2","v":"Margin of Error!!Total:!!Owner-occupied housing units:!!$35,000 to $49,999:!!20 to 29 percent"},{"$f":"[1]ACS_16_5YR_B25106_with_ann!AD2","v":"Estimate!!Total:!!Owner-occupied housing units:!!$35,000 to $49,999:!!30 percent or more"},{"$f":"[1]ACS_16_5YR_B25106_with_ann!AE2","v":"Margin of Error!!Total:!!Owner-occupied housing units:!!$35,000 to $49,999:!!30 percent or more"},{"$f":"[1]ACS_16_5YR_B25106_with_ann!AF2","v":"Estimate!!Total:!!Owner-occupied housing units:!!$50,000 to $74,999:"},{"$f":"[1]ACS_16_5YR_B25106_with_ann!AG2","v":"Margin of Error!!Total:!!Owner-occupied housing units:!!$50,000 to $74,999:"},{"$f":"[1]ACS_16_5YR_B25106_with_ann!AH2","v":"Estimate!!Total:!!Owner-occupied housing units:!!$50,000 to $74,999:!!Less than 20 percent"},{"$f":"[1]ACS_16_5YR_B25106_with_ann!AI2","v":"Margin of Error!!Total:!!Owner-occupied housing units:!!$50,000 to $74,999:!!Less than 20 percent"},{"$f":"[1]ACS_16_5YR_B25106_with_ann!AJ2","v":"Estimate!!Total:!!Owner-occupied housing units:!!$50,000 to $74,999:!!20 to 29 percent"},{"$f":"[1]ACS_16_5YR_B25106_with_ann!AK2","v":"Margin of Error!!Total:!!Owner-occupied housing units:!!$50,000 to $74,999:!!20 to 29 percent"},{"$f":"[1]ACS_16_5YR_B25106_with_ann!AL2","v":"Estimate!!Total:!!Owner-occupied housing units:!!$50,000 to $74,999:!!30 percent or more"},{"$f":"[1]ACS_16_5YR_B25106_with_ann!AM2","v":"Margin of Error!!Total:!!Owner-occupied housing units:!!$50,000 to $74,999:!!30 percent or more"},{"$f":"[1]ACS_16_5YR_B25106_with_ann!AN2","v":"Estimate!!Total:!!Owner-occupied housing units:!!$75,000 or more:"},{"$f":"[1]ACS_16_5YR_B25106_with_ann!AO2","v":"Margin of Error!!Total:!!Owner-occupied housing units:!!$75,000 or more:"},{"$f":"[1]ACS_16_5YR_B25106_with_ann!AP2","v":"Estimate!!Total:!!Owner-occupied housing units:!!$75,000 or more:!!Less than 20 percent"},{"$f":"[1]ACS_16_5YR_B25106_with_ann!AQ2","v":"Margin of Error!!Total:!!Owner-occupied housing units:!!$75,000 or more:!!Less than 20 percent"},{"$f":"[1]ACS_16_5YR_B25106_with_ann!AR2","v":"Estimate!!Total:!!Owner-occupied housing units:!!$75,000 or more:!!20 to 29 percent"},{"$f":"[1]ACS_16_5YR_B25106_with_ann!AS2","v":"Margin of Error!!Total:!!Owner-occupied housing units:!!$75,000 or more:!!20 to 29 percent"},{"$f":"[1]ACS_16_5YR_B25106_with_ann!AT2","v":"Estimate!!Total:!!Owner-occupied housing units:!!$75,000 or more:!!30 percent or more"},{"$f":"[1]ACS_16_5YR_B25106_with_ann!AU2","v":"Margin of Error!!Total:!!Owner-occupied housing units:!!$75,000 or more:!!30 percent or more"},{"$f":"[1]ACS_16_5YR_B25106_with_ann!AV2","v":"Estimate!!Total:!!Owner-occupied housing units:!!Zero or negative income"},{"$f":"[1]ACS_16_5YR_B25106_with_ann!AW2","v":"Margin of Error!!Total:!!Owner-occupied housing units:!!Zero or negative income"},{"$f":"[1]ACS_16_5YR_B25106_with_ann!AX2","v":"Estimate!!Total:!!Renter-occupied housing units:"},{"$f":"[1]ACS_16_5YR_B25106_with_ann!AY2","v":"Margin of Error!!Total:!!Renter-occupied housing units:"},{"$f":"[1]ACS_16_5YR_B25106_with_ann!AZ2","v":"Estimate!!Total:!!Renter-occupied housing units:!!Less than $20,000:"},{"$f":"[1]ACS_16_5YR_B25106_with_ann!BA2","v":"Margin of Error!!Total:!!Renter-occupied housing units:!!Less than $20,000:"},{"$f":"[1]ACS_16_5YR_B25106_with_ann!BB2","v":"Estimate!!Total:!!Renter-occupied housing units:!!Less than $20,000:!!Less than 20 percent"},{"$f":"[1]ACS_16_5YR_B25106_with_ann!BC2","v":"Margin of Error!!Total:!!Renter-occupied housing units:!!Less than $20,000:!!Less than 20 percent"},{"$f":"[1]ACS_16_5YR_B25106_with_ann!BD2","v":"Estimate!!Total:!!Renter-occupied housing units:!!Less than $20,000:!!20 to 29 percent"},{"$f":"[1]ACS_16_5YR_B25106_with_ann!BE2","v":"Margin of Error!!Total:!!Renter-occupied housing units:!!Less than $20,000:!!20 to 29 percent"},{"$f":"[1]ACS_16_5YR_B25106_with_ann!BF2","v":"Estimate!!Total:!!Renter-occupied housing units:!!Less than $20,000:!!30 percent or more"},{"$f":"[1]ACS_16_5YR_B25106_with_ann!BG2","v":"Margin of Error!!Total:!!Renter-occupied housing units:!!Less than $20,000:!!30 percent or more"},{"$f":"[1]ACS_16_5YR_B25106_with_ann!BH2","v":"Estimate!!Total:!!Renter-occupied housing units:!!$20,000 to $34,999:"},{"$f":"[1]ACS_16_5YR_B25106_with_ann!BI2","v":"Margin of Error!!Total:!!Renter-occupied housing units:!!$20,000 to $34,999:"},{"$f":"[1]ACS_16_5YR_B25106_with_ann!BJ2","v":"Estimate!!Total:!!Renter-occupied housing units:!!$20,000 to $34,999:!!Less than 20 percent"},{"$f":"[1]ACS_16_5YR_B25106_with_ann!BK2","v":"Margin of Error!!Total:!!Renter-occupied housing units:!!$20,000 to $34,999:!!Less than 20 percent"},{"$f":"[1]ACS_16_5YR_B25106_with_ann!BL2","v":"Estimate!!Total:!!Renter-occupied housing units:!!$20,000 to $34,999:!!20 to 29 percent"},{"$f":"[1]ACS_16_5YR_B25106_with_ann!BM2","v":"Margin of Error!!Total:!!Renter-occupied housing units:!!$20,000 to $34,999:!!20 to 29 percent"},{"$f":"[1]ACS_16_5YR_B25106_with_ann!BN2","v":"Estimate!!Total:!!Renter-occupied housing units:!!$20,000 to $34,999:!!30 percent or more"},{"$f":"[1]ACS_16_5YR_B25106_with_ann!BO2","v":"Margin of Error!!Total:!!Renter-occupied housing units:!!$20,000 to $34,999:!!30 percent or more"},{"$f":"[1]ACS_16_5YR_B25106_with_ann!BP2","v":"Estimate!!Total:!!Renter-occupied housing units:!!$35,000 to $49,999:"},{"$f":"[1]ACS_16_5YR_B25106_with_ann!BQ2","v":"Margin of Error!!Total:!!Renter-occupied housing units:!!$35,000 to $49,999:"},{"$f":"[1]ACS_16_5YR_B25106_with_ann!BR2","v":"Estimate!!Total:!!Renter-occupied housing units:!!$35,000 to $49,999:!!Less than 20 percent"},{"$f":"[1]ACS_16_5YR_B25106_with_ann!BS2","v":"Margin of Error!!Total:!!Renter-occupied housing units:!!$35,000 to $49,999:!!Less than 20 percent"},{"$f":"[1]ACS_16_5YR_B25106_with_ann!BT2","v":"Estimate!!Total:!!Renter-occupied housing units:!!$35,000 to $49,999:!!20 to 29 percent"},{"$f":"[1]ACS_16_5YR_B25106_with_ann!BU2","v":"Margin of Error!!Total:!!Renter-occupied housing units:!!$35,000 to $49,999:!!20 to 29 percent"},{"$f":"[1]ACS_16_5YR_B25106_with_ann!BV2","v":"Estimate!!Total:!!Renter-occupied housing units:!!$35,000 to $49,999:!!30 percent or more"},{"$f":"[1]ACS_16_5YR_B25106_with_ann!BW2","v":"Margin of Error!!Total:!!Renter-occupied housing units:!!$35,000 to $49,999:!!30 percent or more"},{"$f":"[1]ACS_16_5YR_B25106_with_ann!BX2","v":"Estimate!!Total:!!Renter-occupied housing units:!!$50,000 to $74,999:"},{"$f":"[1]ACS_16_5YR_B25106_with_ann!BY2","v":"Margin of Error!!Total:!!Renter-occupied housing units:!!$50,000 to $74,999:"},{"$f":"[1]ACS_16_5YR_B25106_with_ann!BZ2","v":"Estimate!!Total:!!Renter-occupied housing units:!!$50,000 to $74,999:!!Less than 20 percent"},{"$f":"[1]ACS_16_5YR_B25106_with_ann!CA2","v":"Margin of Error!!Total:!!Renter-occupied housing units:!!$50,000 to $74,999:!!Less than 20 percent"},{"$f":"[1]ACS_16_5YR_B25106_with_ann!CB2","v":"Estimate!!Total:!!Renter-occupied housing units:!!$50,000 to $74,999:!!20 to 29 percent"},{"$f":"[1]ACS_16_5YR_B25106_with_ann!CC2","v":"Margin of Error!!Total:!!Renter-occupied housing units:!!$50,000 to $74,999:!!20 to 29 percent"},{"$f":"[1]ACS_16_5YR_B25106_with_ann!CD2","v":"Estimate!!Total:!!Renter-occupied housing units:!!$50,000 to $74,999:!!30 percent or more"},{"$f":"[1]ACS_16_5YR_B25106_with_ann!CE2","v":"Margin of Error!!Total:!!Renter-occupied housing units:!!$50,000 to $74,999:!!30 percent or more"},{"$f":"[1]ACS_16_5YR_B25106_with_ann!CF2","v":"Estimate!!Total:!!Renter-occupied housing units:!!$75,000 or more:"},{"$f":"[1]ACS_16_5YR_B25106_with_ann!CG2","v":"Margin of Error!!Total:!!Renter-occupied housing units:!!$75,000 or more:"},{"$f":"[1]ACS_16_5YR_B25106_with_ann!CH2","v":"Estimate!!Total:!!Renter-occupied housing units:!!$75,000 or more:!!Less than 20 percent"},{"$f":"[1]ACS_16_5YR_B25106_with_ann!CI2","v":"Margin of Error!!Total:!!Renter-occupied housing units:!!$75,000 or more:!!Less than 20 percent"},{"$f":"[1]ACS_16_5YR_B25106_with_ann!CJ2","v":"Estimate!!Total:!!Renter-occupied housing units:!!$75,000 or more:!!20 to 29 percent"},{"$f":"[1]ACS_16_5YR_B25106_with_ann!CK2","v":"Margin of Error!!Total:!!Renter-occupied housing units:!!$75,000 or more:!!20 to 29 percent"},{"$f":"[1]ACS_16_5YR_B25106_with_ann!CL2","v":"Estimate!!Total:!!Renter-occupied housing units:!!$75,000 or more:!!30 percent or more"},{"$f":"[1]ACS_16_5YR_B25106_with_ann!CM2","v":"Margin of Error!!Total:!!Renter-occupied housing units:!!$75,000 or more:!!30 percent or more"},{"$f":"[1]ACS_16_5YR_B25106_with_ann!CN2","v":"Estimate!!Total:!!Renter-occupied housing units:!!Zero or negative income"},{"$f":"[1]ACS_16_5YR_B25106_with_ann!CO2","v":"Margin of Error!!Total:!!Renter-occupied housing units:!!Zero or negative income"},{"$f":"[1]ACS_16_5YR_B25106_with_ann!CP2","v":"Estimate!!Total:!!Renter-occupied housing units:!!No cash rent"},{"$f":"[1]ACS_16_5YR_B25106_with_ann!CQ2","v":"Margin of Error!!Total:!!Renter-occupied housing units:!!No cash rent"}]
["06000US3300500820","0600000US3300512260","060",{"$f":"[1]ACS_16_5YR_B25106_with_ann!C44","v":"Alstead"},{"$f":"[1]ACS_16_5YR_B25106_with_ann!D44","v":723},{"$f":"[1]ACS_16_5YR_B25106_with_ann!E44","v":97},{"$f":"[1]ACS_16_5YR_B25106_with_ann!F44","v":507},{"$f":"[1]ACS_16_5YR_B25106_with_ann!G44","v":86},{"$f":"[1]ACS_16_5YR_B25106_with_ann!H44","v":50},{"$f":"[1]ACS_16_5YR_B25106_with_ann!I44","v":31},{"$f":"[1]ACS_16_5YR_B25106_with_ann!J44","v":0},{"$f":"[1]ACS_16_5YR_B25106_with_ann!K44","v":12},{"$f":"[1]ACS_16_5YR_B25106_with_ann!L44","v":0},{"$f":"[1]ACS_16_5YR_B25106_with_ann!M44","v":12},{"$f":"[1]ACS_16_5YR_B25106_with_ann!N44","v":50},{"$f":"[1]ACS_16_5YR_B25106_with_ann!O44","v":31},{"$f":"[1]ACS_16_5YR_B25106_with_ann!P44","v":75},{"$f":"[1]ACS_16_5YR_B25106_with_ann!Q44","v":55},{"$f":"[1]ACS_16_5YR_B25106_with_ann!R44","v":16},{"$f":"[1]ACS_16_5YR_B25106_with_ann!S44","v":21},{"$f":"[1]ACS_16_5YR_B25106_with_ann!T44","v":12},{"$f":"[1]ACS_16_5YR_B25106_with_ann!U44","v":10},{"$f":"[1]ACS_16_5YR_B25106_with_ann!V44","v":47},{"$f":"[1]ACS_16_5YR_B25106_with_ann!W44","v":55},{"$f":"[1]ACS_16_5YR_B25106_with_ann!X44","v":42},{"$f":"[1]ACS_16_5YR_B25106_with_ann!Y44","v":22},{"$f":"[1]ACS_16_5YR_B25106_with_ann!Z44","v":26},{"$f":"[1]ACS_16_5YR_B25106_with_ann!AA44","v":20},{"$f":"[1]ACS_16_5YR_B25106_with_ann!AB44","v":6},{"$f":"[1]ACS_16_5YR_B25106_with_ann!AC44","v":7},{"$f":"[1]ACS_16_5YR_B25106_with_ann!AD44","v":10},{"$f":"[1]ACS_16_5YR_B25106_with_ann!AE44","v":10},{"$f":"[1]ACS_16_5YR_B25106_with_ann!AF44","v":94},{"$f":"[1]ACS_16_5YR_B25106_with_ann!AG44","v":49},{"$f":"[1]ACS_16_5YR_B25106_with_ann!AH44","v":35},{"$f":"[1]ACS_16_5YR_B25106_with_ann!AI44","v":27},{"$f":"[1]ACS_16_5YR_B25106_with_ann!AJ44","v":39},{"$f":"[1]ACS_16_5YR_B25106_with_ann!AK44","v":40},{"$f":"[1]ACS_16_5YR_B25106_with_ann!AL44","v":20},{"$f":"[1]ACS_16_5YR_B25106_with_ann!AM44","v":14},{"$f":"[1]ACS_16_5YR_B25106_with_ann!AN44","v":246},{"$f":"[1]ACS_16_5YR_B25106_with_ann!AO44","v":46},{"$f":"[1]ACS_16_5YR_B25106_with_ann!AP44","v":188},{"$f":"[1]ACS_16_5YR_B25106_with_ann!AQ44","v":40},{"$f":"[1]ACS_16_5YR_B25106_with_ann!AR44","v":50},{"$f":"[1]ACS_16_5YR_B25106_with_ann!AS44","v":18},{"$f":"[1]ACS_16_5YR_B25106_with_ann!AT44","v":8},{"$f":"[1]ACS_16_5YR_B25106_with_ann!AU44","v":10},{"$f":"[1]ACS_16_5YR_B25106_with_ann!AV44","v":0},{"$f":"[1]ACS_16_5YR_B25106_with_ann!AW44","v":12},{"$f":"[1]ACS_16_5YR_B25106_with_ann!AX44","v":216},{"$f":"[1]ACS_16_5YR_B25106_with_ann!AY44","v":81},{"$f":"[1]ACS_16_5YR_B25106_with_ann!AZ44","v":41},{"$f":"[1]ACS_16_5YR_B25106_with_ann!BA44","v":47},{"$f":"[1]ACS_16_5YR_B25106_with_ann!BB44","v":0},{"$f":"[1]ACS_16_5YR_B25106_with_ann!BC44","v":12},{"$f":"[1]ACS_16_5YR_B25106_with_ann!BD44","v":0},{"$f":"[1]ACS_16_5YR_B25106_with_ann!BE44","v":12},{"$f":"[1]ACS_16_5YR_B25106_with_ann!BF44","v":41},{"$f":"[1]ACS_16_5YR_B25106_with_ann!BG44","v":47},{"$f":"[1]ACS_16_5YR_B25106_with_ann!BH44","v":33},{"$f":"[1]ACS_16_5YR_B25106_with_ann!BI44","v":30},{"$f":"[1]ACS_16_5YR_B25106_with_ann!BJ44","v":0},{"$f":"[1]ACS_16_5YR_B25106_with_ann!BK44","v":12},{"$f":"[1]ACS_16_5YR_B25106_with_ann!BL44","v":20},{"$f":"[1]ACS_16_5YR_B25106_with_ann!BM44","v":29},{"$f":"[1]ACS_16_5YR_B25106_with_ann!BN44","v":13},{"$f":"[1]ACS_16_5YR_B25106_with_ann!BO44","v":11},{"$f":"[1]ACS_16_5YR_B25106_with_ann!BP44","v":22},{"$f":"[1]ACS_16_5YR_B25106_with_ann!BQ44","v":20},{"$f":"[1]ACS_16_5YR_B25106_with_ann!BR44","v":0},{"$f":"[1]ACS_16_5YR_B25106_with_ann!BS44","v":12},{"$f":"[1]ACS_16_5YR_B25106_with_ann!BT44","v":5},{"$f":"[1]ACS_16_5YR_B25106_with_ann!BU44","v":7},{"$f":"[1]ACS_16_5YR_B25106_with_ann!BV44","v":17},{"$f":"[1]ACS_16_5YR_B25106_with_ann!BW44","v":19},{"$f":"[1]ACS_16_5YR_B25106_with_ann!BX44","v":44},{"$f":"[1]ACS_16_5YR_B25106_with_ann!BY44","v":38},{"$f":"[1]ACS_16_5YR_B25106_with_ann!BZ44","v":15},{"$f":"[1]ACS_16_5YR_B25106_with_ann!CA44","v":21},{"$f":"[1]ACS_16_5YR_B25106_with_ann!CB44","v":8},{"$f":"[1]ACS_16_5YR_B25106_with_ann!CC44","v":8},{"$f":"[1]ACS_16_5YR_B25106_with_ann!CD44","v":21},{"$f":"[1]ACS_16_5YR_B25106_with_ann!CE44","v":31},{"$f":"[1]ACS_16_5YR_B25106_with_ann!CF44","v":27},{"$f":"[1]ACS_16_5YR_B25106_with_ann!CG44","v":19},{"$f":"[1]ACS_16_5YR_B25106_with_ann!CH44","v":27},{"$f":"[1]ACS_16_5YR_B25106_with_ann!CI44","v":19},{"$f":"[1]ACS_16_5YR_B25106_with_ann!CJ44","v":0},{"$f":"[1]ACS_16_5YR_B25106_with_ann!CK44","v":12},{"$f":"[1]ACS_16_5YR_B25106_with_ann!CL44","v":0},{"$f":"[1]ACS_16_5YR_B25106_with_ann!CM44","v":12},{"$f":"[1]ACS_16_5YR_B25106_with_ann!CN44","v":0},{"$f":"[1]ACS_16_5YR_B25106_with_ann!CO44","v":12},{"$f":"[1]ACS_16_5YR_B25106_with_ann!CP44","v":49},{"$f":"[1]ACS_16_5YR_B25106_with_ann!CQ44","v":40}]
["06000US3300512260","0600000US3300519140","060",{"$f":"[1]ACS_16_5YR_B25106_with_ann!C45","v":"Chesterfield"},{"$f":"[1]ACS_16_5YR_B25106_with_ann!D45","v":1366},{"$f":"[1]ACS_16_5YR_B25106_with_ann!E45","v":158},{"$f":"[1]ACS_16_5YR_B25106_with_ann!F45","v":1227},{"$f":"[1]ACS_16_5YR_B25106_with_ann!G45","v":184},{"$f":"[1]ACS_16_5YR_B25106_with_ann!H45","v":57},{"$f":"[1]ACS_16_5YR_B25106_with_ann!I45","v":56},{"$f":"[1]ACS_16_5YR_B25106_with_ann!J45","v":0},{"$f":"[1]ACS_16_5YR_B25106_with_ann!K45","v":12},{"$f":"[1]ACS_16_5YR_B25106_with_ann!L45","v":0},{"$f":"[1]ACS_16_5YR_B25106_with_ann!M45","v":12},{"$f":"[1]ACS_16_5YR_B25106_with_ann!N45","v":57},{"$f":"[1]ACS_16_5YR_B25106_with_ann!O45","v":56},{"$f":"[1]ACS_16_5YR_B25106_with_ann!P45","v":86},{"$f":"[1]ACS_16_5YR_B25106_with_ann!Q45","v":91},{"$f":"[1]ACS_16_5YR_B25106_with_ann!R45","v":0},{"$f":"[1]ACS_16_5YR_B25106_with_ann!S45","v":12},{"$f":"[1]ACS_16_5YR_B25106_with_ann!T45","v":0},{"$f":"[1]ACS_16_5YR_B25106_with_ann!U45","v":12},{"$f":"[1]ACS_16_5YR_B25106_with_ann!V45","v":86},{"$f":"[1]ACS_16_5YR_B25106_with_ann!W45","v":91},{"$f":"[1]ACS_16_5YR_B25106_with_ann!X45","v":115},{"$f":"[1]ACS_16_5YR_B25106_with_ann!Y45","v":101},{"$f":"[1]ACS_16_5YR_B25106_with_ann!Z45","v":20},{"$f":"[1]ACS_16_5YR_B25106_with_ann!AA45","v":30},{"$f":"[1]ACS_16_5YR_B25106_with_ann!AB45","v":85},{"$f":"[1]ACS_16_5YR_B25106_with_ann!AC45","v":89},{"$f":"[1]ACS_16_5YR_B25106_with_ann!AD45","v":10},{"$f":"[1]ACS_16_5YR_B25106_with_ann!AE45","v":19},{"$f":"[1]ACS_16_5YR_B25106_with_ann!AF45","v":119},{"$f":"[1]ACS_16_5YR_B25106_with_ann!AG45","v":97},{"$f":"[1]ACS_16_5YR_B25106_with_ann!AH45","v":33},{"$f":"[1]ACS_16_5YR_B25106_with_ann!AI45","v":45},{"$f":"[1]ACS_16_5YR_B25106_with_ann!AJ45","v":18},{"$f":"[1]ACS_16_5YR_B25106_with_ann!AK45","v":27},{"$f":"[1]ACS_16_5YR_B25106_with_ann!AL45","v":68},{"$f":"[1]ACS_16_5YR_B25106_with_ann!AM45","v":76},{"$f":"[1]ACS_16_5YR_B25106_with_ann!AN45","v":850},{"$f":"[1]ACS_16_5YR_B25106_with_ann!AO45","v":145},{"$f":"[1]ACS_16_5YR_B25106_with_ann!AP45","v":563},{"$f":"[1]ACS_16_5YR_B25106_with_ann!AQ45","v":152},{"$f":"[1]ACS_16_5YR_B25106_with_ann!AR45","v":223},{"$f":"[1]ACS_16_5YR_B25106_with_ann!AS45","v":127},{"$f":"[1]ACS_16_5YR_B25106_with_ann!AT45","v":64},{"$f":"[1]ACS_16_5YR_B25106_with_ann!AU45","v":67},{"$f":"[1]ACS_16_5YR_B25106_with_ann!AV45","v":0},{"$f":"[1]ACS_16_5YR_B25106_with_ann!AW45","v":12},{"$f":"[1]ACS_16_5YR_B25106_with_ann!AX45","v":139},{"$f":"[1]ACS_16_5YR_B25106_with_ann!AY45","v":90},{"$f":"[1]ACS_16_5YR_B25106_with_ann!AZ45","v":0},{"$f":"[1]ACS_16_5YR_B25106_with_ann!BA45","v":12},{"$f":"[1]ACS_16_5YR_B25106_with_ann!BB45","v":0},{"$f":"[1]ACS_16_5YR_B25106_with_ann!BC45","v":12},{"$f":"[1]ACS_16_5YR_B25106_with_ann!BD45","v":0},{"$f":"[1]ACS_16_5YR_B25106_with_ann!BE45","v":12},{"$f":"[1]ACS_16_5YR_B25106_with_ann!BF45","v":0},{"$f":"[1]ACS_16_5YR_B25106_with_ann!BG45","v":12},{"$f":"[1]ACS_16_5YR_B25106_with_ann!BH45","v":33},{"$f":"[1]ACS_16_5YR_B25106_with_ann!BI45","v":45},{"$f":"[1]ACS_16_5YR_B25106_with_ann!BJ45","v":0},{"$f":"[1]ACS_16_5YR_B25106_with_ann!BK45","v":12},{"$f":"[1]ACS_16_5YR_B25106_with_ann!BL45","v":0},{"$f":"[1]ACS_16_5YR_B25106_with_ann!BM45","v":12},{"$f":"[1]ACS_16_5YR_B25106_with_ann!BN45","v":33},{"$f":"[1]ACS_16_5YR_B25106_with_ann!BO45","v":45},{"$f":"[1]ACS_16_5YR_B25106_with_ann!BP45","v":20},{"$f":"[1]ACS_16_5YR_B25106_with_ann!BQ45","v":32},{"$f":"[1]ACS_16_5YR_B25106_with_ann!BR45","v":0},{"$f":"[1]ACS_16_5YR_B25106_with_ann!BS45","v":12},{"$f":"[1]ACS_16_5YR_B25106_with_ann!BT45","v":20},{"$f":"[1]ACS_16_5YR_B25106_with_ann!BU45","v":32},{"$f":"[1]ACS_16_5YR_B25106_with_ann!BV45","v":0},{"$f":"[1]ACS_16_5YR_B25106_with_ann!BW45","v":12},{"$f":"[1]ACS_16_5YR_B25106_with_ann!BX45","v":0},{"$f":"[1]ACS_16_5YR_B25106_with_ann!BY45","v":12},{"$f":"[1]ACS_16_5YR_B25106_with_ann!BZ45","v":0},{"$f":"[1]ACS_16_5YR_B25106_with_ann!CA45","v":12},{"$f":"[1]ACS_16_5YR_B25106_with_ann!CB45","v":0},{"$f":"[1]ACS_16_5YR_B25106_with_ann!CC45","v":12},{"$f":"[1]ACS_16_5YR_B25106_with_ann!CD45","v":0},{"$f":"[1]ACS_16_5YR_B25106_with_ann!CE45","v":12},{"$f":"[1]ACS_16_5YR_B25106_with_ann!CF45","v":27},{"$f":"[1]ACS_16_5YR_B25106_with_ann!CG45","v":33},{"$f":"[1]ACS_16_5YR_B25106_with_ann!CH45","v":27},{"$f":"[1]ACS_16_5YR_B25106_with_ann!CI45","v":33},{"$f":"[1]ACS_16_5YR_B25106_with_ann!CJ45","v":0},{"$f":"[1]ACS_16_5YR_B25106_with_ann!CK45","v":12},{"$f":"[1]ACS_16_5YR_B25106_with_ann!CL45","v":0},{"$f":"[1]ACS_16_5YR_B25106_with_ann!CM45","v":12},{"$f":"[1]ACS_16_5YR_B25106_with_ann!CN45","v":0},{"$f":"[1]ACS_16_5YR_B25106_with_ann!CO45","v":12},{"$f":"[1]ACS_16_5YR_B25106_with_ann!CP45","v":59},{"$f":"[1]ACS_16_5YR_B25106_with_ann!CQ45","v":66}]
["06000US3300519140","0600000US3300526500","060",{"$f":"[1]ACS_16_5YR_B25106_with_ann!C46","v":"Dublin"},{"$f":"[1]ACS_16_5YR_B25106_with_ann!D46","v":635},{"$f":"[1]ACS_16_5YR_B25106_with_ann!E46","v":101},{"$f":"[1]ACS_16_5YR_B25106_with_ann!F46","v":530},{"$f":"[1]ACS_16_5YR_B25106_with_ann!G46","v":99},{"$f":"[1]ACS_16_5YR_B25106_with_ann!H46","v":49},{"$f":"[1]ACS_16_5YR_B25106_with_ann!I46","v":54},{"$f":"[1]ACS_16_5YR_B25106_with_ann!J46","v":0},{"$f":"[1]ACS_16_5YR_B25106_with_ann!K46","v":12},{"$f":"[1]ACS_16_5YR_B25106_with_ann!L46","v":1},{"$f":"[1]ACS_16_5YR_B25106_with_ann!M46","v":2},{"$f":"[1]ACS_16_5YR_B25106_with_ann!N46","v":48},{"$f":"[1]ACS_16_5YR_B25106_with_ann!O46","v":54},{"$f":"[1]ACS_16_5YR_B25106_with_ann!P46","v":8},{"$f":"[1]ACS_16_5YR_B25106_with_ann!Q46","v":8},{"$f":"[1]ACS_16_5YR_B25106_with_ann!R46","v":0},{"$f":"[1]ACS_16_5YR_B25106_with_ann!S46","v":12},{"$f":"[1]ACS_16_5YR_B25106_with_ann!T46","v":2},{"$f":"[1]ACS_16_5YR_B25106_with_ann!U46","v":3},{"$f":"[1]ACS_16_5YR_B25106_with_ann!V46","v":6},{"$f":"[1]ACS_16_5YR_B25106_with_ann!W46","v":7},{"$f":"[1]ACS_16_5YR_B25106_with_ann!X46","v":26},{"$f":"[1]ACS_16_5YR_B25106_with_ann!Y46","v":23},{"$f":"[1]ACS_16_5YR_B25106_with_ann!Z46","v":7},{"$f":"[1]ACS_16_5YR_B25106_with_ann!AA46","v":11},{"$f":"[1]ACS_16_5YR_B25106_with_ann!AB46","v":3},{"$f":"[1]ACS_16_5YR_B25106_with_ann!AC46","v":4},{"$f":"[1]ACS_16_5YR_B25106_with_ann!AD46","v":16},{"$f":"[1]ACS_16_5YR_B25106_with_ann!AE46","v":20},{"$f":"[1]ACS_16_5YR_B25106_with_ann!AF46","v":69},{"$f":"[1]ACS_16_5YR_B25106_with_ann!AG46","v":28},{"$f":"[1]ACS_16_5YR_B25106_with_ann!AH46","v":7},{"$f":"[1]ACS_16_5YR_B25106_with_ann!AI46","v":8},{"$f":"[1]ACS_16_5YR_B25106_with_ann!AJ46","v":18},{"$f":"[1]ACS_16_5YR_B25106_with_ann!AK46","v":13},{"$f":"[1]ACS_16_5YR_B25106_with_ann!AL46","v":44},{"$f":"[1]ACS_16_5YR_B25106_with_ann!AM46","v":28},{"$f":"[1]ACS_16_5YR_B25106_with_ann!AN46","v":378},{"$f":"[1]ACS_16_5YR_B25106_with_ann!AO46","v":83},{"$f":"[1]ACS_16_5YR_B25106_with_ann!AP46","v":300},{"$f":"[1]ACS_16_5YR_B25106_with_ann!AQ46","v":85},{"$f":"[1]ACS_16_5YR_B25106_with_ann!AR46","v":67},{"$f":"[1]ACS_16_5YR_B25106_with_ann!AS46","v":23},{"$f":"[1]ACS_16_5YR_B25106_with_ann!AT46","v":11},{"$f":"[1]ACS_16_5YR_B25106_with_ann!AU46","v":9},{"$f":"[1]ACS_16_5YR_B25106_with_ann!AV46","v":0},{"$f":"[1]ACS_16_5YR_B25106_with_ann!AW46","v":12},{"$f":"[1]ACS_16_5YR_B25106_with_ann!AX46","v":105},{"$f":"[1]ACS_16_5YR_B25106_with_ann!AY46","v":41},{"$f":"[1]ACS_16_5YR_B25106_with_ann!AZ46","v":4},{"$f":"[1]ACS_16_5YR_B25106_with_ann!BA46","v":5},{"$f":"[1]ACS_16_5YR_B25106_with_ann!BB46","v":0},{"$f":"[1]ACS_16_5YR_B25106_with_ann!BC46","v":12},{"$f":"[1]ACS_16_5YR_B25106_with_ann!BD46","v":0},{"$f":"[1]ACS_16_5YR_B25106_with_ann!BE46","v":12},{"$f":"[1]ACS_16_5YR_B25106_with_ann!BF46","v":4},{"$f":"[1]ACS_16_5YR_B25106_with_ann!BG46","v":5},{"$f":"[1]ACS_16_5YR_B25106_with_ann!BH46","v":14},{"$f":"[1]ACS_16_5YR_B25106_with_ann!BI46","v":12},{"$f":"[1]ACS_16_5YR_B25106_with_ann!BJ46","v":0},{"$f":"[1]ACS_16_5YR_B25106_with_ann!BK46","v":12},{"$f":"[1]ACS_16_5YR_B25106_with_ann!BL46","v":2},{"$f":"[1]ACS_16_5YR_B25106_with_ann!BM46","v":3},{"$f":"[1]ACS_16_5YR_B25106_with_ann!BN46","v":12},{"$f":"[1]ACS_16_5YR_B25106_with_ann!BO46","v":12},{"$f":"[1]ACS_16_5YR_B25106_with_ann!BP46","v":12},{"$f":"[1]ACS_16_5YR_B25106_with_ann!BQ46","v":13},{"$f":"[1]ACS_16_5YR_B25106_with_ann!BR46","v":0},{"$f":"[1]ACS_16_5YR_B25106_with_ann!BS46","v":12},{"$f":"[1]ACS_16_5YR_B25106_with_ann!BT46","v":3},{"$f":"[1]ACS_16_5YR_B25106_with_ann!BU46","v":4},{"$f":"[1]ACS_16_5YR_B25106_with_ann!BV46","v":9},{"$f":"[1]ACS_16_5YR_B25106_with_ann!BW46","v":12},{"$f":"[1]ACS_16_5YR_B25106_with_ann!BX46","v":16},{"$f":"[1]ACS_16_5YR_B25106_with_ann!BY46","v":23},{"$f":"[1]ACS_16_5YR_B25106_with_ann!BZ46","v":0},{"$f":"[1]ACS_16_5YR_B25106_with_ann!CA46","v":12},{"$f":"[1]ACS_16_5YR_B25106_with_ann!CB46","v":16},{"$f":"[1]ACS_16_5YR_B25106_with_ann!CC46","v":23},{"$f":"[1]ACS_16_5YR_B25106_with_ann!CD46","v":0},{"$f":"[1]ACS_16_5YR_B25106_with_ann!CE46","v":12},{"$f":"[1]ACS_16_5YR_B25106_with_ann!CF46","v":18},{"$f":"[1]ACS_16_5YR_B25106_with_ann!CG46","v":15},{"$f":"[1]ACS_16_5YR_B25106_with_ann!CH46","v":15},{"$f":"[1]ACS_16_5YR_B25106_with_ann!CI46","v":15},{"$f":"[1]ACS_16_5YR_B25106_with_ann!CJ46","v":3},{"$f":"[1]ACS_16_5YR_B25106_with_ann!CK46","v":4},{"$f":"[1]ACS_16_5YR_B25106_with_ann!CL46","v":0},{"$f":"[1]ACS_16_5YR_B25106_with_ann!CM46","v":12},{"$f":"[1]ACS_16_5YR_B25106_with_ann!CN46","v":9},{"$f":"[1]ACS_16_5YR_B25106_with_ann!CO46","v":12},{"$f":"[1]ACS_16_5YR_B25106_with_ann!CP46","v":32},{"$f":"[1]ACS_16_5YR_B25106_with_ann!CQ46","v":19}]
["06000US3300526500","0600000US3300529220","060",{"$f":"[1]ACS_16_5YR_B25106_with_ann!C47","v":"Fitzwilliam"},{"$f":"[1]ACS_16_5YR_B25106_with_ann!D47","v":1013},{"$f":"[1]ACS_16_5YR_B25106_with_ann!E47","v":154},{"$f":"[1]ACS_16_5YR_B25106_with_ann!F47","v":957},{"$f":"[1]ACS_16_5YR_B25106_with_ann!G47","v":154},{"$f":"[1]ACS_16_5YR_B25106_with_ann!H47","v":112},{"$f":"[1]ACS_16_5YR_B25106_with_ann!I47","v":55},{"$f":"[1]ACS_16_5YR_B25106_with_ann!J47","v":0},{"$f":"[1]ACS_16_5YR_B25106_with_ann!K47","v":12},{"$f":"[1]ACS_16_5YR_B25106_with_ann!L47","v":6},{"$f":"[1]ACS_16_5YR_B25106_with_ann!M47","v":9},{"$f":"[1]ACS_16_5YR_B25106_with_ann!N47","v":106},{"$f":"[1]ACS_16_5YR_B25106_with_ann!O47","v":54},{"$f":"[1]ACS_16_5YR_B25106_with_ann!P47","v":80},{"$f":"[1]ACS_16_5YR_B25106_with_ann!Q47","v":47},{"$f":"[1]ACS_16_5YR_B25106_with_ann!R47","v":4},{"$f":"[1]ACS_16_5YR_B25106_with_ann!S47","v":7},{"$f":"[1]ACS_16_5YR_B25106_with_ann!T47","v":6},{"$f":"[1]ACS_16_5YR_B25106_with_ann!U47","v":7},{"$f":"[1]ACS_16_5YR_B25106_with_ann!V47","v":70},{"$f":"[1]ACS_16_5YR_B25106_with_ann!W47","v":47},{"$f":"[1]ACS_16_5YR_B25106_with_ann!X47","v":93},{"$f":"[1]ACS_16_5YR_B25106_with_ann!Y47","v":43},{"$f":"[1]ACS_16_5YR_B25106_with_ann!Z47","v":22},{"$f":"[1]ACS_16_5YR_B25106_with_ann!AA47","v":15},{"$f":"[1]ACS_16_5YR_B25106_with_ann!AB47","v":9},{"$f":"[1]ACS_16_5YR_B25106_with_ann!AC47","v":9},{"$f":"[1]ACS_16_5YR_B25106_with_ann!AD47","v":62},{"$f":"[1]ACS_16_5YR_B25106_with_ann!AE47","v":38},{"$f":"[1]ACS_16_5YR_B25106_with_ann!AF47","v":158},{"$f":"[1]ACS_16_5YR_B25106_with_ann!AG47","v":59},{"$f":"[1]ACS_16_5YR_B25106_with_ann!AH47","v":44},{"$f":"[1]ACS_16_5YR_B25106_with_ann!AI47","v":25},{"$f":"[1]ACS_16_5YR_B25106_with_ann!AJ47","v":14},{"$f":"[1]ACS_16_5YR_B25106_with_ann!AK47","v":13},{"$f":"[1]ACS_16_5YR_B25106_with_ann!AL47","v":100},{"$f":"[1]ACS_16_5YR_B25106_with_ann!AM47","v":52},{"$f":"[1]ACS_16_5YR_B25106_with_ann!AN47","v":514},{"$f":"[1]ACS_16_5YR_B25106_with_ann!AO47","v":128},{"$f":"[1]ACS_16_5YR_B25106_with_ann!AP47","v":369},{"$f":"[1]ACS_16_5YR_B25106_with_ann!AQ47","v":111},{"$f":"[1]ACS_16_5YR_B25106_with_ann!AR47","v":95},{"$f":"[1]ACS_16_5YR_B25106_with_ann!AS47","v":40},{"$f":"[1]ACS_16_5YR_B25106_with_ann!AT47","v":50},{"$f":"[1]ACS_16_5YR_B25106_with_ann!AU47","v":33},{"$f":"[1]ACS_16_5YR_B25106_with_ann!AV47","v":0},{"$f":"[1]ACS_16_5YR_B25106_with_ann!AW47","v":12},{"$f":"[1]ACS_16_5YR_B25106_with_ann!AX47","v":56},{"$f":"[1]ACS_16_5YR_B25106_with_ann!AY47","v":29},{"$f":"[1]ACS_16_5YR_B25106_with_ann!AZ47","v":15},{"$f":"[1]ACS_16_5YR_B25106_with_ann!BA47","v":14},{"$f":"[1]ACS_16_5YR_B25106_with_ann!BB47","v":0},{"$f":"[1]ACS_16_5YR_B25106_with_ann!BC47","v":12},{"$f":"[1]ACS_16_5YR_B25106_with_ann!BD47","v":0},{"$f":"[1]ACS_16_5YR_B25106_with_ann!BE47","v":12},{"$f":"[1]ACS_16_5YR_B25106_with_ann!BF47","v":15},{"$f":"[1]ACS_16_5YR_B25106_with_ann!BG47","v":14},{"$f":"[1]ACS_16_5YR_B25106_with_ann!BH47","v":0},{"$f":"[1]ACS_16_5YR_B25106_with_ann!BI47","v":12},{"$f":"[1]ACS_16_5YR_B25106_with_ann!BJ47","v":0},{"$f":"[1]ACS_16_5YR_B25106_with_ann!BK47","v":12},{"$f":"[1]ACS_16_5YR_B25106_with_ann!BL47","v":0},{"$f":"[1]ACS_16_5YR_B25106_with_ann!BM47","v":12},{"$f":"[1]ACS_16_5YR_B25106_with_ann!BN47","v":0},{"$f":"[1]ACS_16_5YR_B25106_with_ann!BO47","v":12},{"$f":"[1]ACS_16_5YR_B25106_with_ann!BP47","v":3},{"$f":"[1]ACS_16_5YR_B25106_with_ann!BQ47","v":5},{"$f":"[1]ACS_16_5YR_B25106_with_ann!BR47","v":0},{"$f":"[1]ACS_16_5YR_B25106_with_ann!BS47","v":12},{"$f":"[1]ACS_16_5YR_B25106_with_ann!BT47","v":0},{"$f":"[1]ACS_16_5YR_B25106_with_ann!BU47","v":12},{"$f":"[1]ACS_16_5YR_B25106_with_ann!BV47","v":3},{"$f":"[1]ACS_16_5YR_B25106_with_ann!BW47","v":5},{"$f":"[1]ACS_16_5YR_B25106_with_ann!BX47","v":0},{"$f":"[1]ACS_16_5YR_B25106_with_ann!BY47","v":12},{"$f":"[1]ACS_16_5YR_B25106_with_ann!BZ47","v":0},{"$f":"[1]ACS_16_5YR_B25106_with_ann!CA47","v":12},{"$f":"[1]ACS_16_5YR_B25106_with_ann!CB47","v":0},{"$f":"[1]ACS_16_5YR_B25106_with_ann!CC47","v":12},{"$f":"[1]ACS_16_5YR_B25106_with_ann!CD47","v":0},{"$f":"[1]ACS_16_5YR_B25106_with_ann!CE47","v":12},{"$f":"[1]ACS_16_5YR_B25106_with_ann!CF47","v":23},{"$f":"[1]ACS_16_5YR_B25106_with_ann!CG47","v":27},{"$f":"[1]ACS_16_5YR_B25106_with_ann!CH47","v":16},{"$f":"[1]ACS_16_5YR_B25106_with_ann!CI47","v":25},{"$f":"[1]ACS_16_5YR_B25106_with_ann!CJ47","v":7},{"$f":"[1]ACS_16_5YR_B25106_with_ann!CK47","v":7},{"$f":"[1]ACS_16_5YR_B25106_with_ann!CL47","v":0},{"$f":"[1]ACS_16_5YR_B25106_with_ann!CM47","v":12},{"$f":"[1]ACS_16_5YR_B25106_with_ann!CN47","v":0},{"$f":"[1]ACS_16_5YR_B25106_with_ann!CO47","v":12},{"$f":"[1]ACS_16_5YR_B25106_with_ann!CP47","v":15},{"$f":"[1]ACS_16_5YR_B25106_with_ann!CQ47","v":15}]
["06000US3300529220","0600000US3300534420","060",{"$f":"[1]ACS_16_5YR_B25106_with_ann!C48","v":"Gilsum"},{"$f":"[1]ACS_16_5YR_B25106_with_ann!D48","v":310},{"$f":"[1]ACS_16_5YR_B25106_with_ann!E48","v":51},{"$f":"[1]ACS_16_5YR_B25106_with_ann!F48","v":285},{"$f":"[1]ACS_16_5YR_B25106_with_ann!G48","v":50},{"$f":"[1]ACS_16_5YR_B25106_with_ann!H48","v":22},{"$f":"[1]ACS_16_5YR_B25106_with_ann!I48","v":14},{"$f":"[1]ACS_16_5YR_B25106_with_ann!J48","v":0},{"$f":"[1]ACS_16_5YR_B25106_with_ann!K48","v":12},{"$f":"[1]ACS_16_5YR_B25106_with_ann!L48","v":6},{"$f":"[1]ACS_16_5YR_B25106_with_ann!M48","v":7},{"$f":"[1]ACS_16_5YR_B25106_with_ann!N48","v":16},{"$f":"[1]ACS_16_5YR_B25106_with_ann!O48","v":13},{"$f":"[1]ACS_16_5YR_B25106_with_ann!P48","v":14},{"$f":"[1]ACS_16_5YR_B25106_with_ann!Q48","v":10},{"$f":"[1]ACS_16_5YR_B25106_with_ann!R48","v":0},{"$f":"[1]ACS_16_5YR_B25106_with_ann!S48","v":12},{"$f":"[1]ACS_16_5YR_B25106_with_ann!T48","v":2},{"$f":"[1]ACS_16_5YR_B25106_with_ann!U48","v":3},{"$f":"[1]ACS_16_5YR_B25106_with_ann!V48","v":12},{"$f":"[1]ACS_16_5YR_B25106_with_ann!W48","v":9},{"$f":"[1]ACS_16_5YR_B25106_with_ann!X48","v":48},{"$f":"[1]ACS_16_5YR_B25106_with_ann!Y48","v":30},{"$f":"[1]ACS_16_5YR_B25106_with_ann!Z48","v":18},{"$f":"[1]ACS_16_5YR_B25106_with_ann!AA48","v":14},{"$f":"[1]ACS_16_5YR_B25106_with_ann!AB48","v":5},{"$f":"[1]ACS_16_5YR_B25106_with_ann!AC48","v":6},{"$f":"[1]ACS_16_5YR_B25106_with_ann!AD48","v":25},{"$f":"[1]ACS_16_5YR_B25106_with_ann!AE48","v":27},{"$f":"[1]ACS_16_5YR_B25106_with_ann!AF48","v":64},{"$f":"[1]ACS_16_5YR_B25106_with_ann!AG48","v":23},{"$f":"[1]ACS_16_5YR_B25106_with_ann!AH48","v":23},{"$f":"[1]ACS_16_5YR_B25106_with_ann!AI48","v":13},{"$f":"[1]ACS_16_5YR_B25106_with_ann!AJ48","v":15},{"$f":"[1]ACS_16_5YR_B25106_with_ann!AK48","v":13},{"$f":"[1]ACS_16_5YR_B25106_with_ann!AL48","v":26},{"$f":"[1]ACS_16_5YR_B25106_with_ann!AM48","v":15},{"$f":"[1]ACS_16_5YR_B25106_with_ann!AN48","v":137},{"$f":"[1]ACS_16_5YR_B25106_with_ann!AO48","v":36},{"$f":"[1]ACS_16_5YR_B25106_with_ann!AP48","v":102},{"$f":"[1]ACS_16_5YR_B25106_with_ann!AQ48","v":30},{"$f":"[1]ACS_16_5YR_B25106_with_ann!AR48","v":27},{"$f":"[1]ACS_16_5YR_B25106_with_ann!AS48","v":15},{"$f":"[1]ACS_16_5YR_B25106_with_ann!AT48","v":8},{"$f":"[1]ACS_16_5YR_B25106_with_ann!AU48","v":10},{"$f":"[1]ACS_16_5YR_B25106_with_ann!AV48","v":0},{"$f":"[1]ACS_16_5YR_B25106_with_ann!AW48","v":12},{"$f":"[1]ACS_16_5YR_B25106_with_ann!AX48","v":25},{"$f":"[1]ACS_16_5YR_B25106_with_ann!AY48","v":14},{"$f":"[1]ACS_16_5YR_B25106_with_ann!AZ48","v":0},{"$f":"[1]ACS_16_5YR_B25106_with_ann!BA48","v":12},{"$f":"[1]ACS_16_5YR_B25106_with_ann!BB48","v":0},{"$f":"[1]ACS_16_5YR_B25106_with_ann!BC48","v":12},{"$f":"[1]ACS_16_5YR_B25106_with_ann!BD48","v":0},{"$f":"[1]ACS_16_5YR_B25106_with_ann!BE48","v":12},{"$f":"[1]ACS_16_5YR_B25106_with_ann!BF48","v":0},{"$f":"[1]ACS_16_5YR_B25106_with_ann!BG48","v":12},{"$f":"[1]ACS_16_5YR_B25106_with_ann!BH48","v":3},{"$f":"[1]ACS_16_5YR_B25106_with_ann!BI48","v":4},{"$f":"[1]ACS_16_5YR_B25106_with_ann!BJ48","v":0},{"$f":"[1]ACS_16_5YR_B25106_with_ann!BK48","v":12},{"$f":"[1]ACS_16_5YR_B25106_with_ann!BL48","v":0},{"$f":"[1]ACS_16_5YR_B25106_with_ann!BM48","v":12},{"$f":"[1]ACS_16_5YR_B25106_with_ann!BN48","v":3},{"$f":"[1]ACS_16_5YR_B25106_with_ann!BO48","v":4},{"$f":"[1]ACS_16_5YR_B25106_with_ann!BP48","v":8},{"$f":"[1]ACS_16_5YR_B25106_with_ann!BQ48","v":7},{"$f":"[1]ACS_16_5YR_B25106_with_ann!BR48","v":0},{"$f":"[1]ACS_16_5YR_B25106_with_ann!BS48","v":12},{"$f":"[1]ACS_16_5YR_B25106_with_ann!BT48","v":2},{"$f":"[1]ACS_16_5YR_B25106_with_ann!BU48","v":4},{"$f":"[1]ACS_16_5YR_B25106_with_ann!BV48","v":6},{"$f":"[1]ACS_16_5YR_B25106_with_ann!BW48","v":7},{"$f":"[1]ACS_16_5YR_B25106_with_ann!BX48","v":12},{"$f":"[1]ACS_16_5YR_B25106_with_ann!BY48","v":11},{"$f":"[1]ACS_16_5YR_B25106_with_ann!BZ48","v":0},{"$f":"[1]ACS_16_5YR_B25106_with_ann!CA48","v":12},{"$f":"[1]ACS_16_5YR_B25106_with_ann!CB48","v":10},{"$f":"[1]ACS_16_5YR_B25106_with_ann!CC48","v":11},{"$f":"[1]ACS_16_5YR_B25106_with_ann!CD48","v":2},{"$f":"[1]ACS_16_5YR_B25106_with_ann!CE48","v":2},{"$f":"[1]ACS_16_5YR_B25106_with_ann!CF48","v":2},{"$f":"[1]ACS_16_5YR_B25106_with_ann!CG48","v":3},{"$f":"[1]ACS_16_5YR_B25106_with_ann!CH48","v":0},{"$f":"[1]ACS_16_5YR_B25106_with_ann!CI48","v":12},{"$f":"[1]ACS_16_5YR_B25106_with_ann!CJ48","v":2},{"$f":"[1]ACS_16_5YR_B25106_with_ann!CK48","v":3},{"$f":"[1]ACS_16_5YR_B25106_with_ann!CL48","v":0},{"$f":"[1]ACS_16_5YR_B25106_with_ann!CM48","v":12},{"$f":"[1]ACS_16_5YR_B25106_with_ann!CN48","v":0},{"$f":"[1]ACS_16_5YR_B25106_with_ann!CO48","v":12},{"$f":"[1]ACS_16_5YR_B25106_with_ann!CP48","v":0},{"$f":"[1]ACS_16_5YR_B25106_with_ann!CQ48","v":12}]
["06000US3300534420","0600000US3300536660","060",{"$f":"[1]ACS_16_5YR_B25106_with_ann!C49","v":"Harrisville"},{"$f":"[1]ACS_16_5YR_B25106_with_ann!D49","v":416},{"$f":"[1]ACS_16_5YR_B25106_with_ann!E49","v":75},{"$f":"[1]ACS_16_5YR_B25106_with_ann!F49","v":386},{"$f":"[1]ACS_16_5YR_B25106_with_ann!G49","v":73},{"$f":"[1]ACS_16_5YR_B25106_with_ann!H49","v":13},{"$f":"[1]ACS_16_5YR_B25106_with_ann!I49","v":11},{"$f":"[1]ACS_16_5YR_B25106_with_ann!J49","v":3},{"$f":"[1]ACS_16_5YR_B25106_with_ann!K49","v":4},{"$f":"[1]ACS_16_5YR_B25106_with_ann!L49","v":0},{"$f":"[1]ACS_16_5YR_B25106_with_ann!M49","v":12},{"$f":"[1]ACS_16_5YR_B25106_with_ann!N49","v":10},{"$f":"[1]ACS_16_5YR_B25106_with_ann!O49","v":10},{"$f":"[1]ACS_16_5YR_B25106_with_ann!P49","v":18},{"$f":"[1]ACS_16_5YR_B25106_with_ann!Q49","v":12},{"$f":"[1]ACS_16_5YR_B25106_with_ann!R49","v":0},{"$f":"[1]ACS_16_5YR_B25106_with_ann!S49","v":12},{"$f":"[1]ACS_16_5YR_B25106_with_ann!T49","v":0},{"$f":"[1]ACS_16_5YR_B25106_with_ann!U49","v":12},{"$f":"[1]ACS_16_5YR_B25106_with_ann!V49","v":18},{"$f":"[1]ACS_16_5YR_B25106_with_ann!W49","v":12},{"$f":"[1]ACS_16_5YR_B25106_with_ann!X49","v":51},{"$f":"[1]ACS_16_5YR_B25106_with_ann!Y49","v":23},{"$f":"[1]ACS_16_5YR_B25106_with_ann!Z49","v":30},{"$f":"[1]ACS_16_5YR_B25106_with_ann!AA49","v":21},{"$f":"[1]ACS_16_5YR_B25106_with_ann!AB49","v":9},{"$f":"[1]ACS_16_5YR_B25106_with_ann!AC49","v":7},{"$f":"[1]ACS_16_5YR_B25106_with_ann!AD49","v":12},{"$f":"[1]ACS_16_5YR_B25106_with_ann!AE49","v":8},{"$f":"[1]ACS_16_5YR_B25106_with_ann!AF49","v":66},{"$f":"[1]ACS_16_5YR_B25106_with_ann!AG49","v":34},{"$f":"[1]ACS_16_5YR_B25106_with_ann!AH49","v":26},{"$f":"[1]ACS_16_5YR_B25106_with_ann!AI49","v":22},{"$f":"[1]ACS_16_5YR_B25106_with_ann!AJ49","v":15},{"$f":"[1]ACS_16_5YR_B25106_with_ann!AK49","v":10},{"$f":"[1]ACS_16_5YR_B25106_with_ann!AL49","v":25},{"$f":"[1]ACS_16_5YR_B25106_with_ann!AM49","v":24},{"$f":"[1]ACS_16_5YR_B25106_with_ann!AN49","v":238},{"$f":"[1]ACS_16_5YR_B25106_with_ann!AO49","v":61},{"$f":"[1]ACS_16_5YR_B25106_with_ann!AP49","v":172},{"$f":"[1]ACS_16_5YR_B25106_with_ann!AQ49","v":48},{"$f":"[1]ACS_16_5YR_B25106_with_ann!AR49","v":60},{"$f":"[1]ACS_16_5YR_B25106_with_ann!AS49","v":32},{"$f":"[1]ACS_16_5YR_B25106_with_ann!AT49","v":6},{"$f":"[1]ACS_16_5YR_B25106_with_ann!AU49","v":6},{"$f":"[1]ACS_16_5YR_B25106_with_ann!AV49","v":0},{"$f":"[1]ACS_16_5YR_B25106_with_ann!AW49","v":12},{"$f":"[1]ACS_16_5YR_B25106_with_ann!AX49","v":30},{"$f":"[1]ACS_16_5YR_B25106_with_ann!AY49","v":15},{"$f":"[1]ACS_16_5YR_B25106_with_ann!AZ49","v":0},{"$f":"[1]ACS_16_5YR_B25106_with_ann!BA49","v":12},{"$f":"[1]ACS_16_5YR_B25106_with_ann!BB49","v":0},{"$f":"[1]ACS_16_5YR_B25106_with_ann!BC49","v":12},{"$f":"[1]ACS_16_5YR_B25106_with_ann!BD49","v":0},{"$f":"[1]ACS_16_5YR_B25106_with_ann!BE49","v":12},{"$f":"[1]ACS_16_5YR_B25106_with_ann!BF49","v":0},{"$f":"[1]ACS_16_5YR_B25106_with_ann!BG49","v":12},{"$f":"[1]ACS_16_5YR_B25106_with_ann!BH49","v":4},{"$f":"[1]ACS_16_5YR_B25106_with_ann!BI49","v":5},{"$f":"[1]ACS_16_5YR_B25106_with_ann!BJ49","v":0},{"$f":"[1]ACS_16_5YR_B25106_with_ann!BK49","v":12},{"$f":"[1]ACS_16_5YR_B25106_with_ann!BL49","v":0},{"$f":"[1]ACS_16_5YR_B25106_with_ann!BM49","v":12},{"$f":"[1]ACS_16_5YR_B25106_with_ann!BN49","v":4},{"$f":"[1]ACS_16_5YR_B25106_with_ann!BO49","v":5},{"$f":"[1]ACS_16_5YR_B25106_with_ann!BP49","v":0},{"$f":"[1]ACS_16_5YR_B25106_with_ann!BQ49","v":12},{"$f":"[1]ACS_16_5YR_B25106_with_ann!BR49","v":0},{"$f":"[1]ACS_16_5YR_B25106_with_ann!BS49","v":12},{"$f":"[1]ACS_16_5YR_B25106_with_ann!BT49","v":0},{"$f":"[1]ACS_16_5YR_B25106_with_ann!BU49","v":12},{"$f":"[1]ACS_16_5YR_B25106_with_ann!BV49","v":0},{"$f":"[1]ACS_16_5YR_B25106_with_ann!BW49","v":12},{"$f":"[1]ACS_16_5YR_B25106_with_ann!BX49","v":10},{"$f":"[1]ACS_16_5YR_B25106_with_ann!BY49","v":8},{"$f":"[1]ACS_16_5YR_B25106_with_ann!BZ49","v":3},{"$f":"[1]ACS_16_5YR_B25106_with_ann!CA49","v":4},{"$f":"[1]ACS_16_5YR_B25106_with_ann!CB49","v":3},{"$f":"[1]ACS_16_5YR_B25106_with_ann!CC49","v":5},{"$f":"[1]ACS_16_5YR_B25106_with_ann!CD49","v":4},{"$f":"[1]ACS_16_5YR_B25106_with_ann!CE49","v":6},{"$f":"[1]ACS_16_5YR_B25106_with_ann!CF49","v":14},{"$f":"[1]ACS_16_5YR_B25106_with_ann!CG49","v":13},{"$f":"[1]ACS_16_5YR_B25106_with_ann!CH49","v":9},{"$f":"[1]ACS_16_5YR_B25106_with_ann!CI49","v":12},{"$f":"[1]ACS_16_5YR_B25106_with_ann!CJ49","v":5},{"$f":"[1]ACS_16_5YR_B25106_with_ann!CK49","v":6},{"$f":"[1]ACS_16_5YR_B25106_with_ann!CL49","v":0},{"$f":"[1]ACS_16_5YR_B25106_with_ann!CM49","v":12},{"$f":"[1]ACS_16_5YR_B25106_with_ann!CN49","v":0},{"$f":"[1]ACS_16_5YR_B25106_with_ann!CO49","v":12},{"$f":"[1]ACS_16_5YR_B25106_with_ann!CP49","v":2},{"$f":"[1]ACS_16_5YR_B25106_with_ann!CQ49","v":3}]
["06000US3300536660","0600000US3300538500","060",{"$f":"[1]ACS_16_5YR_B25106_with_ann!C50","v":"Hinsdale"},{"$f":"[1]ACS_16_5YR_B25106_with_ann!D50","v":1594},{"$f":"[1]ACS_16_5YR_B25106_with_ann!E50","v":139},{"$f":"[1]ACS_16_5YR_B25106_with_ann!F50","v":1373},{"$f":"[1]ACS_16_5YR_B25106_with_ann!G50","v":192},{"$f":"[1]ACS_16_5YR_B25106_with_ann!H50","v":3},{"$f":"[1]ACS_16_5YR_B25106_with_ann!I50","v":5},{"$f":"[1]ACS_16_5YR_B25106_with_ann!J50","v":0},{"$f":"[1]ACS_16_5YR_B25106_with_ann!K50","v":12},{"$f":"[1]ACS_16_5YR_B25106_with_ann!L50","v":0},{"$f":"[1]ACS_16_5YR_B25106_with_ann!M50","v":12},{"$f":"[1]ACS_16_5YR_B25106_with_ann!N50","v":3},{"$f":"[1]ACS_16_5YR_B25106_with_ann!O50","v":5},{"$f":"[1]ACS_16_5YR_B25106_with_ann!P50","v":138},{"$f":"[1]ACS_16_5YR_B25106_with_ann!Q50","v":55},{"$f":"[1]ACS_16_5YR_B25106_with_ann!R50","v":11},{"$f":"[1]ACS_16_5YR_B25106_with_ann!S50","v":16},{"$f":"[1]ACS_16_5YR_B25106_with_ann!T50","v":17},{"$f":"[1]ACS_16_5YR_B25106_with_ann!U50","v":21},{"$f":"[1]ACS_16_5YR_B25106_with_ann!V50","v":110},{"$f":"[1]ACS_16_5YR_B25106_with_ann!W50","v":52},{"$f":"[1]ACS_16_5YR_B25106_with_ann!X50","v":159},{"$f":"[1]ACS_16_5YR_B25106_with_ann!Y50","v":100},{"$f":"[1]ACS_16_5YR_B25106_with_ann!Z50","v":59},{"$f":"[1]ACS_16_5YR_B25106_with_ann!AA50","v":92},{"$f":"[1]ACS_16_5YR_B25106_with_ann!AB50","v":22},{"$f":"[1]ACS_16_5YR_B25106_with_ann!AC50","v":22},{"$f":"[1]ACS_16_5YR_B25106_with_ann!AD50","v":78},{"$f":"[1]ACS_16_5YR_B25106_with_ann!AE50","v":54},{"$f":"[1]ACS_16_5YR_B25106_with_ann!AF50","v":458},{"$f":"[1]ACS_16_5YR_B25106_with_ann!AG50","v":212},{"$f":"[1]ACS_16_5YR_B25106_with_ann!AH50","v":275},{"$f":"[1]ACS_16_5YR_B25106_with_ann!AI50","v":181},{"$f":"[1]ACS_16_5YR_B25106_with_ann!AJ50","v":138},{"$f":"[1]ACS_16_5YR_B25106_with_ann!AK50","v":88},{"$f":"[1]ACS_16_5YR_B25106_with_ann!AL50","v":45},{"$f":"[1]ACS_16_5YR_B25106_with_ann!AM50","v":47},{"$f":"[1]ACS_16_5YR_B25106_with_ann!AN50","v":615},{"$f":"[1]ACS_16_5YR_B25106_with_ann!AO50","v":143},{"$f":"[1]ACS_16_5YR_B25106_with_ann!AP50","v":513},{"$f":"[1]ACS_16_5YR_B25106_with_ann!AQ50","v":127},{"$f":"[1]ACS_16_5YR_B25106_with_ann!AR50","v":102},{"$f":"[1]ACS_16_5YR_B25106_with_ann!AS50","v":68},{"$f":"[1]ACS_16_5YR_B25106_with_ann!AT50","v":0},{"$f":"[1]ACS_16_5YR_B25106_with_ann!AU50","v":12},{"$f":"[1]ACS_16_5YR_B25106_with_ann!AV50","v":0},{"$f":"[1]ACS_16_5YR_B25106_with_ann!AW50","v":12},{"$f":"[1]ACS_16_5YR_B25106_with_ann!AX50","v":221},{"$f":"[1]ACS_16_5YR_B25106_with_ann!AY50","v":105},{"$f":"[1]ACS_16_5YR_B25106_with_ann!AZ50","v":43},{"$f":"[1]ACS_16_5YR_B25106_with_ann!BA50","v":52},{"$f":"[1]ACS_16_5YR_B25106_with_ann!BB50","v":0},{"$f":"[1]ACS_16_5YR_B25106_with_ann!BC50","v":12},{"$f":"[1]ACS_16_5YR_B25106_with_ann!BD50","v":0},{"$f":"[1]ACS_16_5YR_B25106_with_ann!BE50","v":12},{"$f":"[1]ACS_16_5YR_B25106_with_ann!BF50","v":43},{"$f":"[1]ACS_16_5YR_B25106_with_ann!BG50","v":52},{"$f":"[1]ACS_16_5YR_B25106_with_ann!BH50","v":38},{"$f":"[1]ACS_16_5YR_B25106_with_ann!BI50","v":33},{"$f":"[1]ACS_16_5YR_B25106_with_ann!BJ50","v":15},{"$f":"[1]ACS_16_5YR_B25106_with_ann!BK50","v":23},{"$f":"[1]ACS_16_5YR_B25106_with_ann!BL50","v":0},{"$f":"[1]ACS_16_5YR_B25106_with_ann!BM50","v":12},{"$f":"[1]ACS_16_5YR_B25106_with_ann!BN50","v":23},{"$f":"[1]ACS_16_5YR_B25106_with_ann!BO50","v":26},{"$f":"[1]ACS_16_5YR_B25106_with_ann!BP50","v":9},{"$f":"[1]ACS_16_5YR_B25106_with_ann!BQ50","v":14},{"$f":"[1]ACS_16_5YR_B25106_with_ann!BR50","v":0},{"$f":"[1]ACS_16_5YR_B25106_with_ann!BS50","v":12},{"$f":"[1]ACS_16_5YR_B25106_with_ann!BT50","v":9},{"$f":"[1]ACS_16_5YR_B25106_with_ann!BU50","v":14},{"$f":"[1]ACS_16_5YR_B25106_with_ann!BV50","v":0},{"$f":"[1]ACS_16_5YR_B25106_with_ann!BW50","v":12},{"$f":"[1]ACS_16_5YR_B25106_with_ann!BX50","v":21},{"$f":"[1]ACS_16_5YR_B25106_with_ann!BY50","v":26},{"$f":"[1]ACS_16_5YR_B25106_with_ann!BZ50","v":8},{"$f":"[1]ACS_16_5YR_B25106_with_ann!CA50","v":14},{"$f":"[1]ACS_16_5YR_B25106_with_ann!CB50","v":13},{"$f":"[1]ACS_16_5YR_B25106_with_ann!CC50","v":22},{"$f":"[1]ACS_16_5YR_B25106_with_ann!CD50","v":0},{"$f":"[1]ACS_16_5YR_B25106_with_ann!CE50","v":12},{"$f":"[1]ACS_16_5YR_B25106_with_ann!CF50","v":82},{"$f":"[1]ACS_16_5YR_B25106_with_ann!CG50","v":80},{"$f":"[1]ACS_16_5YR_B25106_with_ann!CH50","v":82},{"$f":"[1]ACS_16_5YR_B25106_with_ann!CI50","v":80},{"$f":"[1]ACS_16_5YR_B25106_with_ann!CJ50","v":0},{"$f":"[1]ACS_16_5YR_B25106_with_ann!CK50","v":12},{"$f":"[1]ACS_16_5YR_B25106_with_ann!CL50","v":0},{"$f":"[1]ACS_16_5YR_B25106_with_ann!CM50","v":12},{"$f":"[1]ACS_16_5YR_B25106_with_ann!CN50","v":0},{"$f":"[1]ACS_16_5YR_B25106_with_ann!CO50","v":12},{"$f":"[1]ACS_16_5YR_B25106_with_ann!CP50","v":28},{"$f":"[1]ACS_16_5YR_B25106_with_ann!CQ50","v":42}]
["06000US3300538500","0600000US3300539300","060",{"$f":"[1]ACS_16_5YR_B25106_with_ann!C51","v":"Jaffrey"},{"$f":"[1]ACS_16_5YR_B25106_with_ann!D51","v":2026},{"$f":"[1]ACS_16_5YR_B25106_with_ann!E51","v":225},{"$f":"[1]ACS_16_5YR_B25106_with_ann!F51","v":1580},{"$f":"[1]ACS_16_5YR_B25106_with_ann!G51","v":229},{"$f":"[1]ACS_16_5YR_B25106_with_ann!H51","v":17},{"$f":"[1]ACS_16_5YR_B25106_with_ann!I51","v":26},{"$f":"[1]ACS_16_5YR_B25106_with_ann!J51","v":0},{"$f":"[1]ACS_16_5YR_B25106_with_ann!K51","v":17},{"$f":"[1]ACS_16_5YR_B25106_with_ann!L51","v":0},{"$f":"[1]ACS_16_5YR_B25106_with_ann!M51","v":17},{"$f":"[1]ACS_16_5YR_B25106_with_ann!N51","v":17},{"$f":"[1]ACS_16_5YR_B25106_with_ann!O51","v":26},{"$f":"[1]ACS_16_5YR_B25106_with_ann!P51","v":132},{"$f":"[1]ACS_16_5YR_B25106_with_ann!Q51","v":98},{"$f":"[1]ACS_16_5YR_B25106_with_ann!R51","v":0},{"$f":"[1]ACS_16_5YR_B25106_with_ann!S51","v":17},{"$f":"[1]ACS_16_5YR_B25106_with_ann!T51","v":64},{"$f":"[1]ACS_16_5YR_B25106_with_ann!U51","v":76},{"$f":"[1]ACS_16_5YR_B25106_with_ann!V51","v":68},{"$f":"[1]ACS_16_5YR_B25106_with_ann!W51","v":58},{"$f":"[1]ACS_16_5YR_B25106_with_ann!X51","v":39},{"$f":"[1]ACS_16_5YR_B25106_with_ann!Y51","v":35},{"$f":"[1]ACS_16_5YR_B25106_with_ann!Z51","v":0},{"$f":"[1]ACS_16_5YR_B25106_with_ann!AA51","v":17},{"$f":"[1]ACS_16_5YR_B25106_with_ann!AB51","v":13},{"$f":"[1]ACS_16_5YR_B25106_with_ann!AC51","v":20},{"$f":"[1]ACS_16_5YR_B25106_with_ann!AD51","v":26},{"$f":"[1]ACS_16_5YR_B25106_with_ann!AE51","v":30},{"$f":"[1]ACS_16_5YR_B25106_with_ann!AF51","v":379},{"$f":"[1]ACS_16_5YR_B25106_with_ann!AG51","v":232},{"$f":"[1]ACS_16_5YR_B25106_with_ann!AH51","v":9},{"$f":"[1]ACS_16_5YR_B25106_with_ann!AI51","v":15},{"$f":"[1]ACS_16_5YR_B25106_with_ann!AJ51","v":297},{"$f":"[1]ACS_16_5YR_B25106_with_ann!AK51","v":222},{"$f":"[1]ACS_16_5YR_B25106_with_ann!AL51","v":73},{"$f":"[1]ACS_16_5YR_B25106_with_ann!AM51","v":63},{"$f":"[1]ACS_16_5YR_B25106_with_ann!AN51","v":1001},{"$f":"[1]ACS_16_5YR_B25106_with_ann!AO51","v":196},{"$f":"[1]ACS_16_5YR_B25106_with_ann!AP51","v":651},{"$f":"[1]ACS_16_5YR_B25106_with_ann!AQ51","v":184},{"$f":"[1]ACS_16_5YR_B25106_with_ann!AR51","v":298},{"$f":"[1]ACS_16_5YR_B25106_with_ann!AS51","v":100},{"$f":"[1]ACS_16_5YR_B25106_with_ann!AT51","v":52},{"$f":"[1]ACS_16_5YR_B25106_with_ann!AU51","v":46},{"$f":"[1]ACS_16_5YR_B25106_with_ann!AV51","v":12},{"$f":"[1]ACS_16_5YR_B25106_with_ann!AW51","v":19},{"$f":"[1]ACS_16_5YR_B25106_with_ann!AX51","v":446},{"$f":"[1]ACS_16_5YR_B25106_with_ann!AY51","v":167},{"$f":"[1]ACS_16_5YR_B25106_with_ann!AZ51","v":73},{"$f":"[1]ACS_16_5YR_B25106_with_ann!BA51","v":58},{"$f":"[1]ACS_16_5YR_B25106_with_ann!BB51","v":0},{"$f":"[1]ACS_16_5YR_B25106_with_ann!BC51","v":17},{"$f":"[1]ACS_16_5YR_B25106_with_ann!BD51","v":28},{"$f":"[1]ACS_16_5YR_B25106_with_ann!BE51","v":42},{"$f":"[1]ACS_16_5YR_B25106_with_ann!BF51","v":45},{"$f":"[1]ACS_16_5YR_B25106_with_ann!BG51","v":41},{"$f":"[1]ACS_16_5YR_B25106_with_ann!BH51","v":95},{"$f":"[1]ACS_16_5YR_B25106_with_ann!BI51","v":65},{"$f":"[1]ACS_16_5YR_B25106_with_ann!BJ51","v":0},{"$f":"[1]ACS_16_5YR_B25106_with_ann!BK51","v":17},{"$f":"[1]ACS_16_5YR_B25106_with_ann!BL51","v":31},{"$f":"[1]ACS_16_5YR_B25106_with_ann!BM51","v":39},{"$f":"[1]ACS_16_5YR_B25106_with_ann!BN51","v":64},{"$f":"[1]ACS_16_5YR_B25106_with_ann!BO51","v":57},{"$f":"[1]ACS_16_5YR_B25106_with_ann!BP51","v":21},{"$f":"[1]ACS_16_5YR_B25106_with_ann!BQ51","v":27},{"$f":"[1]ACS_16_5YR_B25106_with_ann!BR51","v":0},{"$f":"[1]ACS_16_5YR_B25106_with_ann!BS51","v":17},{"$f":"[1]ACS_16_5YR_B25106_with_ann!BT51","v":0},{"$f":"[1]ACS_16_5YR_B25106_with_ann!BU51","v":17},{"$f":"[1]ACS_16_5YR_B25106_with_ann!BV51","v":21},{"$f":"[1]ACS_16_5YR_B25106_with_ann!BW51","v":27},{"$f":"[1]ACS_16_5YR_B25106_with_ann!BX51","v":167},{"$f":"[1]ACS_16_5YR_B25106_with_ann!BY51","v":124},{"$f":"[1]ACS_16_5YR_B25106_with_ann!BZ51","v":61},{"$f":"[1]ACS_16_5YR_B25106_with_ann!CA51","v":66},{"$f":"[1]ACS_16_5YR_B25106_with_ann!CB51","v":32},{"$f":"[1]ACS_16_5YR_B25106_with_ann!CC51","v":33},{"$f":"[1]ACS_16_5YR_B25106_with_ann!CD51","v":74},{"$f":"[1]ACS_16_5YR_B25106_with_ann!CE51","v":91},{"$f":"[1]ACS_16_5YR_B25106_with_ann!CF51","v":73},{"$f":"[1]ACS_16_5YR_B25106_with_ann!CG51","v":80},{"$f":"[1]ACS_16_5YR_B25106_with_ann!CH51","v":60},{"$f":"[1]ACS_16_5YR_B25106_with_ann!CI51","v":78},{"$f":"[1]ACS_16_5YR_B25106_with_ann!CJ51","v":13},{"$f":"[1]ACS_16_5YR_B25106_with_ann!CK51","v":21},{"$f":"[1]ACS_16_5YR_B25106_with_ann!CL51","v":0},{"$f":"[1]ACS_16_5YR_B25106_with_ann!CM51","v":17},{"$f":"[1]ACS_16_5YR_B25106_with_ann!CN51","v":0},{"$f":"[1]ACS_16_5YR_B25106_with_ann!CO51","v":17},{"$f":"[1]ACS_16_5YR_B25106_with_ann!CP51","v":17},{"$f":"[1]ACS_16_5YR_B25106_with_ann!CQ51","v":28}]
["06000US3300539300","0600000US3300545460","060",{"$f":"[1]ACS_16_5YR_B25106_with_ann!C52","v":"Keene"},{"$f":"[1]ACS_16_5YR_B25106_with_ann!D52","v":9259},{"$f":"[1]ACS_16_5YR_B25106_with_ann!E52","v":370},{"$f":"[1]ACS_16_5YR_B25106_with_ann!F52","v":4762},{"$f":"[1]ACS_16_5YR_B25106_with_ann!G52","v":346},{"$f":"[1]ACS_16_5YR_B25106_with_ann!H52","v":339},{"$f":"[1]ACS_16_5YR_B25106_with_ann!I52","v":125},{"$f":"[1]ACS_16_5YR_B25106_with_ann!J52","v":0},{"$f":"[1]ACS_16_5YR_B25106_with_ann!K52","v":22},{"$f":"[1]ACS_16_5YR_B25106_with_ann!L52","v":15},{"$f":"[1]ACS_16_5YR_B25106_with_ann!M52","v":26},{"$f":"[1]ACS_16_5YR_B25106_with_ann!N52","v":324},{"$f":"[1]ACS_16_5YR_B25106_with_ann!O52","v":122},{"$f":"[1]ACS_16_5YR_B25106_with_ann!P52","v":362},{"$f":"[1]ACS_16_5YR_B25106_with_ann!Q52","v":142},{"$f":"[1]ACS_16_5YR_B25106_with_ann!R52","v":29},{"$f":"[1]ACS_16_5YR_B25106_with_ann!S52","v":33},{"$f":"[1]ACS_16_5YR_B25106_with_ann!T52","v":59},{"$f":"[1]ACS_16_5YR_B25106_with_ann!U52","v":73},{"$f":"[1]ACS_16_5YR_B25106_with_ann!V52","v":274},{"$f":"[1]ACS_16_5YR_B25106_with_ann!W52","v":111},{"$f":"[1]ACS_16_5YR_B25106_with_ann!X52","v":362},{"$f":"[1]ACS_16_5YR_B25106_with_ann!Y52","v":155},{"$f":"[1]ACS_16_5YR_B25106_with_ann!Z52","v":91},{"$f":"[1]ACS_16_5YR_B25106_with_ann!AA52","v":105},{"$f":"[1]ACS_16_5YR_B25106_with_ann!AB52","v":155},{"$f":"[1]ACS_16_5YR_B25106_with_ann!AC52","v":95},{"$f":"[1]ACS_16_5YR_B25106_with_ann!AD52","v":116},{"$f":"[1]ACS_16_5YR_B25106_with_ann!AE52","v":66},{"$f":"[1]ACS_16_5YR_B25106_with_ann!AF52","v":620},{"$f":"[1]ACS_16_5YR_B25106_with_ann!AG52","v":170},{"$f":"[1]ACS_16_5YR_B25106_with_ann!AH52","v":237},{"$f":"[1]ACS_16_5YR_B25106_with_ann!AI52","v":146},{"$f":"[1]ACS_16_5YR_B25106_with_ann!AJ52","v":170},{"$f":"[1]ACS_16_5YR_B25106_with_ann!AK52","v":74},{"$f":"[1]ACS_16_5YR_B25106_with_ann!AL52","v":213},{"$f":"[1]ACS_16_5YR_B25106_with_ann!AM52","v":95},{"$f":"[1]ACS_16_5YR_B25106_with_ann!AN52","v":3079},{"$f":"[1]ACS_16_5YR_B25106_with_ann!AO52","v":316},{"$f":"[1]ACS_16_5YR_B25106_with_ann!AP52","v":2111},{"$f":"[1]ACS_16_5YR_B25106_with_ann!AQ52","v":296},{"$f":"[1]ACS_16_5YR_B25106_with_ann!AR52","v":712},{"$f":"[1]ACS_16_5YR_B25106_with_ann!AS52","v":133},{"$f":"[1]ACS_16_5YR_B25106_with_ann!AT52","v":256},{"$f":"[1]ACS_16_5YR_B25106_with_ann!AU52","v":158},{"$f":"[1]ACS_16_5YR_B25106_with_ann!AV52","v":0},{"$f":"[1]ACS_16_5YR_B25106_with_ann!AW52","v":22},{"$f":"[1]ACS_16_5YR_B25106_with_ann!AX52","v":4497},{"$f":"[1]ACS_16_5YR_B25106_with_ann!AY52","v":356},{"$f":"[1]ACS_16_5YR_B25106_with_ann!AZ52","v":958},{"$f":"[1]ACS_16_5YR_B25106_with_ann!BA52","v":220},{"$f":"[1]ACS_16_5YR_B25106_with_ann!BB52","v":72},{"$f":"[1]ACS_16_5YR_B25106_with_ann!BC52","v":83},{"$f":"[1]ACS_16_5YR_B25106_with_ann!BD52","v":217},{"$f":"[1]ACS_16_5YR_B25106_with_ann!BE52","v":109},{"$f":"[1]ACS_16_5YR_B25106_with_ann!BF52","v":669},{"$f":"[1]ACS_16_5YR_B25106_with_ann!BG52","v":188},{"$f":"[1]ACS_16_5YR_B25106_with_ann!BH52","v":647},{"$f":"[1]ACS_16_5YR_B25106_with_ann!BI52","v":191},{"$f":"[1]ACS_16_5YR_B25106_with_ann!BJ52","v":0},{"$f":"[1]ACS_16_5YR_B25106_with_ann!BK52","v":22},{"$f":"[1]ACS_16_5YR_B25106_with_ann!BL52","v":86},{"$f":"[1]ACS_16_5YR_B25106_with_ann!BM52","v":61},{"$f":"[1]ACS_16_5YR_B25106_with_ann!BN52","v":561},{"$f":"[1]ACS_16_5YR_B25106_with_ann!BO52","v":192},{"$f":"[1]ACS_16_5YR_B25106_with_ann!BP52","v":658},{"$f":"[1]ACS_16_5YR_B25106_with_ann!BQ52","v":188},{"$f":"[1]ACS_16_5YR_B25106_with_ann!BR52","v":35},{"$f":"[1]ACS_16_5YR_B25106_with_ann!BS52","v":44},{"$f":"[1]ACS_16_5YR_B25106_with_ann!BT52","v":198},{"$f":"[1]ACS_16_5YR_B25106_with_ann!BU52","v":117},{"$f":"[1]ACS_16_5YR_B25106_with_ann!BV52","v":425},{"$f":"[1]ACS_16_5YR_B25106_with_ann!BW52","v":150},{"$f":"[1]ACS_16_5YR_B25106_with_ann!BX52","v":816},{"$f":"[1]ACS_16_5YR_B25106_with_ann!BY52","v":203},{"$f":"[1]ACS_16_5YR_B25106_with_ann!BZ52","v":151},{"$f":"[1]ACS_16_5YR_B25106_with_ann!CA52","v":95},{"$f":"[1]ACS_16_5YR_B25106_with_ann!CB52","v":418},{"$f":"[1]ACS_16_5YR_B25106_with_ann!CC52","v":152},{"$f":"[1]ACS_16_5YR_B25106_with_ann!CD52","v":247},{"$f":"[1]ACS_16_5YR_B25106_with_ann!CE52","v":101},{"$f":"[1]ACS_16_5YR_B25106_with_ann!CF52","v":1312},{"$f":"[1]ACS_16_5YR_B25106_with_ann!CG52","v":261},{"$f":"[1]ACS_16_5YR_B25106_with_ann!CH52","v":879},{"$f":"[1]ACS_16_5YR_B25106_with_ann!CI52","v":257},{"$f":"[1]ACS_16_5YR_B25106_with_ann!CJ52","v":416},{"$f":"[1]ACS_16_5YR_B25106_with_ann!CK52","v":145},{"$f":"[1]ACS_16_5YR_B25106_with_ann!CL52","v":17},{"$f":"[1]ACS_16_5YR_B25106_with_ann!CM52","v":28},{"$f":"[1]ACS_16_5YR_B25106_with_ann!CN52","v":53},{"$f":"[1]ACS_16_5YR_B25106_with_ann!CO52","v":80},{"$f":"[1]ACS_16_5YR_B25106_with_ann!CP52","v":53},{"$f":"[1]ACS_16_5YR_B25106_with_ann!CQ52","v":58}]
["06000US3300545460","0600000US3300545700","060",{"$f":"[1]ACS_16_5YR_B25106_with_ann!C53","v":"Marlborough"},{"$f":"[1]ACS_16_5YR_B25106_with_ann!D53","v":942},{"$f":"[1]ACS_16_5YR_B25106_with_ann!E53","v":130},{"$f":"[1]ACS_16_5YR_B25106_with_ann!F53","v":608},{"$f":"[1]ACS_16_5YR_B25106_with_ann!G53","v":113},{"$f":"[1]ACS_16_5YR_B25106_with_ann!H53","v":28},{"$f":"[1]ACS_16_5YR_B25106_with_ann!I53","v":26},{"$f":"[1]ACS_16_5YR_B25106_with_ann!J53","v":0},{"$f":"[1]ACS_16_5YR_B25106_with_ann!K53","v":12},{"$f":"[1]ACS_16_5YR_B25106_with_ann!L53","v":0},{"$f":"[1]ACS_16_5YR_B25106_with_ann!M53","v":12},{"$f":"[1]ACS_16_5YR_B25106_with_ann!N53","v":28},{"$f":"[1]ACS_16_5YR_B25106_with_ann!O53","v":26},{"$f":"[1]ACS_16_5YR_B25106_with_ann!P53","v":51},{"$f":"[1]ACS_16_5YR_B25106_with_ann!Q53","v":27},{"$f":"[1]ACS_16_5YR_B25106_with_ann!R53","v":3},{"$f":"[1]ACS_16_5YR_B25106_with_ann!S53","v":7},{"$f":"[1]ACS_16_5YR_B25106_with_ann!T53","v":14},{"$f":"[1]ACS_16_5YR_B25106_with_ann!U53","v":14},{"$f":"[1]ACS_16_5YR_B25106_with_ann!V53","v":34},{"$f":"[1]ACS_16_5YR_B25106_with_ann!W53","v":22},{"$f":"[1]ACS_16_5YR_B25106_with_ann!X53","v":33},{"$f":"[1]ACS_16_5YR_B25106_with_ann!Y53","v":29},{"$f":"[1]ACS_16_5YR_B25106_with_ann!Z53","v":0},{"$f":"[1]ACS_16_5YR_B25106_with_ann!AA53","v":12},{"$f":"[1]ACS_16_5YR_B25106_with_ann!AB53","v":25},{"$f":"[1]ACS_16_5YR_B25106_with_ann!AC53","v":26},{"$f":"[1]ACS_16_5YR_B25106_with_ann!AD53","v":8},{"$f":"[1]ACS_16_5YR_B25106_with_ann!AE53","v":11},{"$f":"[1]ACS_16_5YR_B25106_with_ann!AF53","v":109},{"$f":"[1]ACS_16_5YR_B25106_with_ann!AG53","v":50},{"$f":"[1]ACS_16_5YR_B25106_with_ann!AH53","v":29},{"$f":"[1]ACS_16_5YR_B25106_with_ann!AI53","v":18},{"$f":"[1]ACS_16_5YR_B25106_with_ann!AJ53","v":44},{"$f":"[1]ACS_16_5YR_B25106_with_ann!AK53","v":39},{"$f":"[1]ACS_16_5YR_B25106_with_ann!AL53","v":36},{"$f":"[1]ACS_16_5YR_B25106_with_ann!AM53","v":26},{"$f":"[1]ACS_16_5YR_B25106_with_ann!AN53","v":381},{"$f":"[1]ACS_16_5YR_B25106_with_ann!AO53","v":101},{"$f":"[1]ACS_16_5YR_B25106_with_ann!AP53","v":268},{"$f":"[1]ACS_16_5YR_B25106_with_ann!AQ53","v":77},{"$f":"[1]ACS_16_5YR_B25106_with_ann!AR53","v":113},{"$f":"[1]ACS_16_5YR_B25106_with_ann!AS53","v":74},{"$f":"[1]ACS_16_5YR_B25106_with_ann!AT53","v":0},{"$f":"[1]ACS_16_5YR_B25106_with_ann!AU53","v":12},{"$f":"[1]ACS_16_5YR_B25106_with_ann!AV53","v":6},{"$f":"[1]ACS_16_5YR_B25106_with_ann!AW53","v":9},{"$f":"[1]ACS_16_5YR_B25106_with_ann!AX53","v":334},{"$f":"[1]ACS_16_5YR_B25106_with_ann!AY53","v":92},{"$f":"[1]ACS_16_5YR_B25106_with_ann!AZ53","v":53},{"$f":"[1]ACS_16_5YR_B25106_with_ann!BA53","v":38},{"$f":"[1]ACS_16_5YR_B25106_with_ann!BB53","v":0},{"$f":"[1]ACS_16_5YR_B25106_with_ann!BC53","v":12},{"$f":"[1]ACS_16_5YR_B25106_with_ann!BD53","v":19},{"$f":"[1]ACS_16_5YR_B25106_with_ann!BE53","v":21},{"$f":"[1]ACS_16_5YR_B25106_with_ann!BF53","v":34},{"$f":"[1]ACS_16_5YR_B25106_with_ann!BG53","v":29},{"$f":"[1]ACS_16_5YR_B25106_with_ann!BH53","v":134},{"$f":"[1]ACS_16_5YR_B25106_with_ann!BI53","v":78},{"$f":"[1]ACS_16_5YR_B25106_with_ann!BJ53","v":6},{"$f":"[1]ACS_16_5YR_B25106_with_ann!BK53","v":9},{"$f":"[1]ACS_16_5YR_B25106_with_ann!BL53","v":16},{"$f":"[1]ACS_16_5YR_B25106_with_ann!BM53","v":12},{"$f":"[1]ACS_16_5YR_B25106_with_ann!BN53","v":112},{"$f":"[1]ACS_16_5YR_B25106_with_ann!BO53","v":77},{"$f":"[1]ACS_16_5YR_B25106_with_ann!BP53","v":26},{"$f":"[1]ACS_16_5YR_B25106_with_ann!BQ53","v":19},{"$f":"[1]ACS_16_5YR_B25106_with_ann!BR53","v":0},{"$f":"[1]ACS_16_5YR_B25106_with_ann!BS53","v":12},{"$f":"[1]ACS_16_5YR_B25106_with_ann!BT53","v":16},{"$f":"[1]ACS_16_5YR_B25106_with_ann!BU53","v":14},{"$f":"[1]ACS_16_5YR_B25106_with_ann!BV53","v":10},{"$f":"[1]ACS_16_5YR_B25106_with_ann!BW53","v":12},{"$f":"[1]ACS_16_5YR_B25106_with_ann!BX53","v":40},{"$f":"[1]ACS_16_5YR_B25106_with_ann!BY53","v":31},{"$f":"[1]ACS_16_5YR_B25106_with_ann!BZ53","v":12},{"$f":"[1]ACS_16_5YR_B25106_with_ann!CA53","v":15},{"$f":"[1]ACS_16_5YR_B25106_with_ann!CB53","v":24},{"$f":"[1]ACS_16_5YR_B25106_with_ann!CC53","v":25},{"$f":"[1]ACS_16_5YR_B25106_with_ann!CD53","v":4},{"$f":"[1]ACS_16_5YR_B25106_with_ann!CE53","v":7},{"$f":"[1]ACS_16_5YR_B25106_with_ann!CF53","v":65},{"$f":"[1]ACS_16_5YR_B25106_with_ann!CG53","v":41},{"$f":"[1]ACS_16_5YR_B25106_with_ann!CH53","v":57},{"$f":"[1]ACS_16_5YR_B25106_with_ann!CI53","v":40},{"$f":"[1]ACS_16_5YR_B25106_with_ann!CJ53","v":8},{"$f":"[1]ACS_16_5YR_B25106_with_ann!CK53","v":9},{"$f":"[1]ACS_16_5YR_B25106_with_ann!CL53","v":0},{"$f":"[1]ACS_16_5YR_B25106_with_ann!CM53","v":12},{"$f":"[1]ACS_16_5YR_B25106_with_ann!CN53","v":0},{"$f":"[1]ACS_16_5YR_B25106_with_ann!CO53","v":12},{"$f":"[1]ACS_16_5YR_B25106_with_ann!CP53","v":16},{"$f":"[1]ACS_16_5YR_B25106_with_ann!CQ53","v":13}]
["06000US3300545700","0600000US3300550580","060",{"$f":"[1]ACS_16_5YR_B25106_with_ann!C54","v":"Marlow"},{"$f":"[1]ACS_16_5YR_B25106_with_ann!D54","v":314},{"$f":"[1]ACS_16_5YR_B25106_with_ann!E54","v":61},{"$f":"[1]ACS_16_5YR_B25106_with_ann!F54","v":279},{"$f":"[1]ACS_16_5YR_B25106_with_ann!G54","v":56},{"$f":"[1]ACS_16_5YR_B25106_with_ann!H54","v":21},{"$f":"[1]ACS_16_5YR_B25106_with_ann!I54","v":16},{"$f":"[1]ACS_16_5YR_B25106_with_ann!J54","v":0},{"$f":"[1]ACS_16_5YR_B25106_with_ann!K54","v":12},{"$f":"[1]ACS_16_5YR_B25106_with_ann!L54","v":0},{"$f":"[1]ACS_16_5YR_B25106_with_ann!M54","v":12},{"$f":"[1]ACS_16_5YR_B25106_with_ann!N54","v":21},{"$f":"[1]ACS_16_5YR_B25106_with_ann!O54","v":16},{"$f":"[1]ACS_16_5YR_B25106_with_ann!P54","v":22},{"$f":"[1]ACS_16_5YR_B25106_with_ann!Q54","v":13},{"$f":"[1]ACS_16_5YR_B25106_with_ann!R54","v":0},{"$f":"[1]ACS_16_5YR_B25106_with_ann!S54","v":12},{"$f":"[1]ACS_16_5YR_B25106_with_ann!T54","v":6},{"$f":"[1]ACS_16_5YR_B25106_with_ann!U54","v":6},{"$f":"[1]ACS_16_5YR_B25106_with_ann!V54","v":16},{"$f":"[1]ACS_16_5YR_B25106_with_ann!W54","v":12},{"$f":"[1]ACS_16_5YR_B25106_with_ann!X54","v":16},{"$f":"[1]ACS_16_5YR_B25106_with_ann!Y54","v":13},{"$f":"[1]ACS_16_5YR_B25106_with_ann!Z54","v":6},{"$f":"[1]ACS_16_5YR_B25106_with_ann!AA54","v":6},{"$f":"[1]ACS_16_5YR_B25106_with_ann!AB54","v":8},{"$f":"[1]ACS_16_5YR_B25106_with_ann!AC54","v":11},{"$f":"[1]ACS_16_5YR_B25106_with_ann!AD54","v":2},{"$f":"[1]ACS_16_5YR_B25106_with_ann!AE54","v":4},{"$f":"[1]ACS_16_5YR_B25106_with_ann!AF54","v":36},{"$f":"[1]ACS_16_5YR_B25106_with_ann!AG54","v":18},{"$f":"[1]ACS_16_5YR_B25106_with_ann!AH54","v":23},{"$f":"[1]ACS_16_5YR_B25106_with_ann!AI54","v":12},{"$f":"[1]ACS_16_5YR_B25106_with_ann!AJ54","v":4},{"$f":"[1]ACS_16_5YR_B25106_with_ann!AK54","v":4},{"$f":"[1]ACS_16_5YR_B25106_with_ann!AL54","v":9},{"$f":"[1]ACS_16_5YR_B25106_with_ann!AM54","v":12},{"$f":"[1]ACS_16_5YR_B25106_with_ann!AN54","v":182},{"$f":"[1]ACS_16_5YR_B25106_with_ann!AO54","v":49},{"$f":"[1]ACS_16_5YR_B25106_with_ann!AP54","v":141},{"$f":"[1]ACS_16_5YR_B25106_with_ann!AQ54","v":44},{"$f":"[1]ACS_16_5YR_B25106_with_ann!AR54","v":30},{"$f":"[1]ACS_16_5YR_B25106_with_ann!AS54","v":19},{"$f":"[1]ACS_16_5YR_B25106_with_ann!AT54","v":11},{"$f":"[1]ACS_16_5YR_B25106_with_ann!AU54","v":12},{"$f":"[1]ACS_16_5YR_B25106_with_ann!AV54","v":2},{"$f":"[1]ACS_16_5YR_B25106_with_ann!AW54","v":3},{"$f":"[1]ACS_16_5YR_B25106_with_ann!AX54","v":35},{"$f":"[1]ACS_16_5YR_B25106_with_ann!AY54","v":29},{"$f":"[1]ACS_16_5YR_B25106_with_ann!AZ54","v":0},{"$f":"[1]ACS_16_5YR_B25106_with_ann!BA54","v":12},{"$f":"[1]ACS_16_5YR_B25106_with_ann!BB54","v":0},{"$f":"[1]ACS_16_5YR_B25106_with_ann!BC54","v":12},{"$f":"[1]ACS_16_5YR_B25106_with_ann!BD54","v":0},{"$f":"[1]ACS_16_5YR_B25106_with_ann!BE54","v":12},{"$f":"[1]ACS_16_5YR_B25106_with_ann!BF54","v":0},{"$f":"[1]ACS_16_5YR_B25106_with_ann!BG54","v":12},{"$f":"[1]ACS_16_5YR_B25106_with_ann!BH54","v":7},{"$f":"[1]ACS_16_5YR_B25106_with_ann!BI54","v":10},{"$f":"[1]ACS_16_5YR_B25106_with_ann!BJ54","v":0},{"$f":"[1]ACS_16_5YR_B25106_with_ann!BK54","v":12},{"$f":"[1]ACS_16_5YR_B25106_with_ann!BL54","v":0},{"$f":"[1]ACS_16_5YR_B25106_with_ann!BM54","v":12},{"$f":"[1]ACS_16_5YR_B25106_with_ann!BN54","v":7},{"$f":"[1]ACS_16_5YR_B25106_with_ann!BO54","v":10},{"$f":"[1]ACS_16_5YR_B25106_with_ann!BP54","v":6},{"$f":"[1]ACS_16_5YR_B25106_with_ann!BQ54","v":7},{"$f":"[1]ACS_16_5YR_B25106_with_ann!BR54","v":2},{"$f":"[1]ACS_16_5YR_B25106_with_ann!BS54","v":3},{"$f":"[1]ACS_16_5YR_B25106_with_ann!BT54","v":0},{"$f":"[1]ACS_16_5YR_B25106_with_ann!BU54","v":12},{"$f":"[1]ACS_16_5YR_B25106_with_ann!BV54","v":4},{"$f":"[1]ACS_16_5YR_B25106_with_ann!BW54","v":6},{"$f":"[1]ACS_16_5YR_B25106_with_ann!BX54","v":0},{"$f":"[1]ACS_16_5YR_B25106_with_ann!BY54","v":12},{"$f":"[1]ACS_16_5YR_B25106_with_ann!BZ54","v":0},{"$f":"[1]ACS_16_5YR_B25106_with_ann!CA54","v":12},{"$f":"[1]ACS_16_5YR_B25106_with_ann!CB54","v":0},{"$f":"[1]ACS_16_5YR_B25106_with_ann!CC54","v":12},{"$f":"[1]ACS_16_5YR_B25106_with_ann!CD54","v":0},{"$f":"[1]ACS_16_5YR_B25106_with_ann!CE54","v":12},{"$f":"[1]ACS_16_5YR_B25106_with_ann!CF54","v":14},{"$f":"[1]ACS_16_5YR_B25106_with_ann!CG54","v":23},{"$f":"[1]ACS_16_5YR_B25106_with_ann!CH54","v":14},{"$f":"[1]ACS_16_5YR_B25106_with_ann!CI54","v":23},{"$f":"[1]ACS_16_5YR_B25106_with_ann!CJ54","v":0},{"$f":"[1]ACS_16_5YR_B25106_with_ann!CK54","v":12},{"$f":"[1]ACS_16_5YR_B25106_with_ann!CL54","v":0},{"$f":"[1]ACS_16_5YR_B25106_with_ann!CM54","v":12},{"$f":"[1]ACS_16_5YR_B25106_with_ann!CN54","v":0},{"$f":"[1]ACS_16_5YR_B25106_with_ann!CO54","v":12},{"$f":"[1]ACS_16_5YR_B25106_with_ann!CP54","v":8},{"$f":"[1]ACS_16_5YR_B25106_with_ann!CQ54","v":6}]
["06000US3300550580","0600000US3300564420","060",{"$f":"[1]ACS_16_5YR_B25106_with_ann!C55","v":"Nelson"},{"$f":"[1]ACS_16_5YR_B25106_with_ann!D55","v":246},{"$f":"[1]ACS_16_5YR_B25106_with_ann!E55","v":41},{"$f":"[1]ACS_16_5YR_B25106_with_ann!F55","v":225},{"$f":"[1]ACS_16_5YR_B25106_with_ann!G55","v":42},{"$f":"[1]ACS_16_5YR_B25106_with_ann!H55","v":6},{"$f":"[1]ACS_16_5YR_B25106_with_ann!I55","v":5},{"$f":"[1]ACS_16_5YR_B25106_with_ann!J55","v":0},{"$f":"[1]ACS_16_5YR_B25106_with_ann!K55","v":12},{"$f":"[1]ACS_16_5YR_B25106_with_ann!L55","v":0},{"$f":"[1]ACS_16_5YR_B25106_with_ann!M55","v":12},{"$f":"[1]ACS_16_5YR_B25106_with_ann!N55","v":6},{"$f":"[1]ACS_16_5YR_B25106_with_ann!O55","v":5},{"$f":"[1]ACS_16_5YR_B25106_with_ann!P55","v":18},{"$f":"[1]ACS_16_5YR_B25106_with_ann!Q55","v":14},{"$f":"[1]ACS_16_5YR_B25106_with_ann!R55","v":0},{"$f":"[1]ACS_16_5YR_B25106_with_ann!S55","v":12},{"$f":"[1]ACS_16_5YR_B25106_with_ann!T55","v":7},{"$f":"[1]ACS_16_5YR_B25106_with_ann!U55","v":11},{"$f":"[1]ACS_16_5YR_B25106_with_ann!V55","v":11},{"$f":"[1]ACS_16_5YR_B25106_with_ann!W55","v":10},{"$f":"[1]ACS_16_5YR_B25106_with_ann!X55","v":11},{"$f":"[1]ACS_16_5YR_B25106_with_ann!Y55","v":7},{"$f":"[1]ACS_16_5YR_B25106_with_ann!Z55","v":4},{"$f":"[1]ACS_16_5YR_B25106_with_ann!AA55","v":4},{"$f":"[1]ACS_16_5YR_B25106_with_ann!AB55","v":3},{"$f":"[1]ACS_16_5YR_B25106_with_ann!AC55","v":4},{"$f":"[1]ACS_16_5YR_B25106_with_ann!AD55","v":4},{"$f":"[1]ACS_16_5YR_B25106_with_ann!AE55","v":4},{"$f":"[1]ACS_16_5YR_B25106_with_ann!AF55","v":41},{"$f":"[1]ACS_16_5YR_B25106_with_ann!AG55","v":17},{"$f":"[1]ACS_16_5YR_B25106_with_ann!AH55","v":17},{"$f":"[1]ACS_16_5YR_B25106_with_ann!AI55","v":11},{"$f":"[1]ACS_16_5YR_B25106_with_ann!AJ55","v":7},{"$f":"[1]ACS_16_5YR_B25106_with_ann!AK55","v":5},{"$f":"[1]ACS_16_5YR_B25106_with_ann!AL55","v":17},{"$f":"[1]ACS_16_5YR_B25106_with_ann!AM55","v":11},{"$f":"[1]ACS_16_5YR_B25106_with_ann!AN55","v":147},{"$f":"[1]ACS_16_5YR_B25106_with_ann!AO55","v":36},{"$f":"[1]ACS_16_5YR_B25106_with_ann!AP55","v":103},{"$f":"[1]ACS_16_5YR_B25106_with_ann!AQ55","v":28},{"$f":"[1]ACS_16_5YR_B25106_with_ann!AR55","v":28},{"$f":"[1]ACS_16_5YR_B25106_with_ann!AS55","v":12},{"$f":"[1]ACS_16_5YR_B25106_with_ann!AT55","v":16},{"$f":"[1]ACS_16_5YR_B25106_with_ann!AU55","v":10},{"$f":"[1]ACS_16_5YR_B25106_with_ann!AV55","v":2},{"$f":"[1]ACS_16_5YR_B25106_with_ann!AW55","v":3},{"$f":"[1]ACS_16_5YR_B25106_with_ann!AX55","v":21},{"$f":"[1]ACS_16_5YR_B25106_with_ann!AY55","v":11},{"$f":"[1]ACS_16_5YR_B25106_with_ann!AZ55","v":0},{"$f":"[1]ACS_16_5YR_B25106_with_ann!BA55","v":12},{"$f":"[1]ACS_16_5YR_B25106_with_ann!BB55","v":0},{"$f":"[1]ACS_16_5YR_B25106_with_ann!BC55","v":12},{"$f":"[1]ACS_16_5YR_B25106_with_ann!BD55","v":0},{"$f":"[1]ACS_16_5YR_B25106_with_ann!BE55","v":12},{"$f":"[1]ACS_16_5YR_B25106_with_ann!BF55","v":0},{"$f":"[1]ACS_16_5YR_B25106_with_ann!BG55","v":12},{"$f":"[1]ACS_16_5YR_B25106_with_ann!BH55","v":4},{"$f":"[1]ACS_16_5YR_B25106_with_ann!BI55","v":5},{"$f":"[1]ACS_16_5YR_B25106_with_ann!BJ55","v":0},{"$f":"[1]ACS_16_5YR_B25106_with_ann!BK55","v":12},{"$f":"[1]ACS_16_5YR_B25106_with_ann!BL55","v":0},{"$f":"[1]ACS_16_5YR_B25106_with_ann!BM55","v":12},{"$f":"[1]ACS_16_5YR_B25106_with_ann!BN55","v":4},{"$f":"[1]ACS_16_5YR_B25106_with_ann!BO55","v":5},{"$f":"[1]ACS_16_5YR_B25106_with_ann!BP55","v":2},{"$f":"[1]ACS_16_5YR_B25106_with_ann!BQ55","v":3},{"$f":"[1]ACS_16_5YR_B25106_with_ann!BR55","v":0},{"$f":"[1]ACS_16_5YR_B25106_with_ann!BS55","v":12},{"$f":"[1]ACS_16_5YR_B25106_with_ann!BT55","v":2},{"$f":"[1]ACS_16_5YR_B25106_with_ann!BU55","v":3},{"$f":"[1]ACS_16_5YR_B25106_with_ann!BV55","v":0},{"$f":"[1]ACS_16_5YR_B25106_with_ann!BW55","v":12},{"$f":"[1]ACS_16_5YR_B25106_with_ann!BX55","v":4},{"$f":"[1]ACS_16_5YR_B25106_with_ann!BY55","v":4},{"$f":"[1]ACS_16_5YR_B25106_with_ann!BZ55","v":0},{"$f":"[1]ACS_16_5YR_B25106_with_ann!CA55","v":12},{"$f":"[1]ACS_16_5YR_B25106_with_ann!CB55","v":4},{"$f":"[1]ACS_16_5YR_B25106_with_ann!CC55","v":4},{"$f":"[1]ACS_16_5YR_B25106_with_ann!CD55","v":0},{"$f":"[1]ACS_16_5YR_B25106_with_ann!CE55","v":12},{"$f":"[1]ACS_16_5YR_B25106_with_ann!CF55","v":11},{"$f":"[1]ACS_16_5YR_B25106_with_ann!CG55","v":10},{"$f":"[1]ACS_16_5YR_B25106_with_ann!CH55","v":7},{"$f":"[1]ACS_16_5YR_B25106_with_ann!CI55","v":8},{"$f":"[1]ACS_16_5YR_B25106_with_ann!CJ55","v":4},{"$f":"[1]ACS_16_5YR_B25106_with_ann!CK55","v":4},{"$f":"[1]ACS_16_5YR_B25106_with_ann!CL55","v":0},{"$f":"[1]ACS_16_5YR_B25106_with_ann!CM55","v":12},{"$f":"[1]ACS_16_5YR_B25106_with_ann!CN55","v":0},{"$f":"[1]ACS_16_5YR_B25106_with_ann!CO55","v":12},{"$f":"[1]ACS_16_5YR_B25106_with_ann!CP55","v":0},{"$f":"[1]ACS_16_5YR_B25106_with_ann!CQ55","v":12}]
["06000US3300564420","0600000US3300564580","060",{"$f":"[1]ACS_16_5YR_B25106_with_ann!C56","v":"Richmond"},{"$f":"[1]ACS_16_5YR_B25106_with_ann!D56","v":393},{"$f":"[1]ACS_16_5YR_B25106_with_ann!E56","v":73},{"$f":"[1]ACS_16_5YR_B25106_with_ann!F56","v":383},{"$f":"[1]ACS_16_5YR_B25106_with_ann!G56","v":72},{"$f":"[1]ACS_16_5YR_B25106_with_ann!H56","v":34},{"$f":"[1]ACS_16_5YR_B25106_with_ann!I56","v":26},{"$f":"[1]ACS_16_5YR_B25106_with_ann!J56","v":0},{"$f":"[1]ACS_16_5YR_B25106_with_ann!K56","v":12},{"$f":"[1]ACS_16_5YR_B25106_with_ann!L56","v":4},{"$f":"[1]ACS_16_5YR_B25106_with_ann!M56","v":6},{"$f":"[1]ACS_16_5YR_B25106_with_ann!N56","v":30},{"$f":"[1]ACS_16_5YR_B25106_with_ann!O56","v":25},{"$f":"[1]ACS_16_5YR_B25106_with_ann!P56","v":25},{"$f":"[1]ACS_16_5YR_B25106_with_ann!Q56","v":15},{"$f":"[1]ACS_16_5YR_B25106_with_ann!R56","v":0},{"$f":"[1]ACS_16_5YR_B25106_with_ann!S56","v":12},{"$f":"[1]ACS_16_5YR_B25106_with_ann!T56","v":0},{"$f":"[1]ACS_16_5YR_B25106_with_ann!U56","v":12},{"$f":"[1]ACS_16_5YR_B25106_with_ann!V56","v":25},{"$f":"[1]ACS_16_5YR_B25106_with_ann!W56","v":15},{"$f":"[1]ACS_16_5YR_B25106_with_ann!X56","v":34},{"$f":"[1]ACS_16_5YR_B25106_with_ann!Y56","v":19},{"$f":"[1]ACS_16_5YR_B25106_with_ann!Z56","v":7},{"$f":"[1]ACS_16_5YR_B25106_with_ann!AA56","v":8},{"$f":"[1]ACS_16_5YR_B25106_with_ann!AB56","v":10},{"$f":"[1]ACS_16_5YR_B25106_with_ann!AC56","v":12},{"$f":"[1]ACS_16_5YR_B25106_with_ann!AD56","v":17},{"$f":"[1]ACS_16_5YR_B25106_with_ann!AE56","v":11},{"$f":"[1]ACS_16_5YR_B25106_with_ann!AF56","v":69},{"$f":"[1]ACS_16_5YR_B25106_with_ann!AG56","v":32},{"$f":"[1]ACS_16_5YR_B25106_with_ann!AH56","v":18},{"$f":"[1]ACS_16_5YR_B25106_with_ann!AI56","v":13},{"$f":"[1]ACS_16_5YR_B25106_with_ann!AJ56","v":14},{"$f":"[1]ACS_16_5YR_B25106_with_ann!AK56","v":10},{"$f":"[1]ACS_16_5YR_B25106_with_ann!AL56","v":37},{"$f":"[1]ACS_16_5YR_B25106_with_ann!AM56","v":27},{"$f":"[1]ACS_16_5YR_B25106_with_ann!AN56","v":221},{"$f":"[1]ACS_16_5YR_B25106_with_ann!AO56","v":61},{"$f":"[1]ACS_16_5YR_B25106_with_ann!AP56","v":150},{"$f":"[1]ACS_16_5YR_B25106_with_ann!AQ56","v":46},{"$f":"[1]ACS_16_5YR_B25106_with_ann!AR56","v":33},{"$f":"[1]ACS_16_5YR_B25106_with_ann!AS56","v":22},{"$f":"[1]ACS_16_5YR_B25106_with_ann!AT56","v":38},{"$f":"[1]ACS_16_5YR_B25106_with_ann!AU56","v":31},{"$f":"[1]ACS_16_5YR_B25106_with_ann!AV56","v":0},{"$f":"[1]ACS_16_5YR_B25106_with_ann!AW56","v":12},{"$f":"[1]ACS_16_5YR_B25106_with_ann!AX56","v":10},{"$f":"[1]ACS_16_5YR_B25106_with_ann!AY56","v":9},{"$f":"[1]ACS_16_5YR_B25106_with_ann!AZ56","v":0},{"$f":"[1]ACS_16_5YR_B25106_with_ann!BA56","v":12},{"$f":"[1]ACS_16_5YR_B25106_with_ann!BB56","v":0},{"$f":"[1]ACS_16_5YR_B25106_with_ann!BC56","v":12},{"$f":"[1]ACS_16_5YR_B25106_with_ann!BD56","v":0},{"$f":"[1]ACS_16_5YR_B25106_with_ann!BE56","v":12},{"$f":"[1]ACS_16_5YR_B25106_with_ann!BF56","v":0},{"$f":"[1]ACS_16_5YR_B25106_with_ann!BG56","v":12},{"$f":"[1]ACS_16_5YR_B25106_with_ann!BH56","v":0},{"$f":"[1]ACS_16_5YR_B25106_with_ann!BI56","v":12},{"$f":"[1]ACS_16_5YR_B25106_with_ann!BJ56","v":0},{"$f":"[1]ACS_16_5YR_B25106_with_ann!BK56","v":12},{"$f":"[1]ACS_16_5YR_B25106_with_ann!BL56","v":0},{"$f":"[1]ACS_16_5YR_B25106_with_ann!BM56","v":12},{"$f":"[1]ACS_16_5YR_B25106_with_ann!BN56","v":0},{"$f":"[1]ACS_16_5YR_B25106_with_ann!BO56","v":12},{"$f":"[1]ACS_16_5YR_B25106_with_ann!BP56","v":0},{"$f":"[1]ACS_16_5YR_B25106_with_ann!BQ56","v":12},{"$f":"[1]ACS_16_5YR_B25106_with_ann!BR56","v":0},{"$f":"[1]ACS_16_5YR_B25106_with_ann!BS56","v":12},{"$f":"[1]ACS_16_5YR_B25106_with_ann!BT56","v":0},{"$f":"[1]ACS_16_5YR_B25106_with_ann!BU56","v":12},{"$f":"[1]ACS_16_5YR_B25106_with_ann!BV56","v":0},{"$f":"[1]ACS_16_5YR_B25106_with_ann!BW56","v":12},{"$f":"[1]ACS_16_5YR_B25106_with_ann!BX56","v":0},{"$f":"[1]ACS_16_5YR_B25106_with_ann!BY56","v":12},{"$f":"[1]ACS_16_5YR_B25106_with_ann!BZ56","v":0},{"$f":"[1]ACS_16_5YR_B25106_with_ann!CA56","v":12},{"$f":"[1]ACS_16_5YR_B25106_with_ann!CB56","v":0},{"$f":"[1]ACS_16_5YR_B25106_with_ann!CC56","v":12},{"$f":"[1]ACS_16_5YR_B25106_with_ann!CD56","v":0},{"$f":"[1]ACS_16_5YR_B25106_with_ann!CE56","v":12},{"$f":"[1]ACS_16_5YR_B25106_with_ann!CF56","v":7},{"$f":"[1]ACS_16_5YR_B25106_with_ann!CG56","v":8},{"$f":"[1]ACS_16_5YR_B25106_with_ann!CH56","v":7},{"$f":"[1]ACS_16_5YR_B25106_with_ann!CI56","v":8},{"$f":"[1]ACS_16_5YR_B25106_with_ann!CJ56","v":0},{"$f":"[1]ACS_16_5YR_B25106_with_ann!CK56","v":12},{"$f":"[1]ACS_16_5YR_B25106_with_ann!CL56","v":0},{"$f":"[1]ACS_16_5YR_B25106_with_ann!CM56","v":12},{"$f":"[1]ACS_16_5YR_B25106_with_ann!CN56","v":0},{"$f":"[1]ACS_16_5YR_B25106_with_ann!CO56","v":12},{"$f":"[1]ACS_16_5YR_B25106_with_ann!CP56","v":3},{"$f":"[1]ACS_16_5YR_B25106_with_ann!CQ56","v":6}]
["06000US3300564580","0600000US3300565700","060",{"$f":"[1]ACS_16_5YR_B25106_with_ann!C57","v":"Rindge"},{"$f":"[1]ACS_16_5YR_B25106_with_ann!D57","v":1972},{"$f":"[1]ACS_16_5YR_B25106_with_ann!E57","v":144},{"$f":"[1]ACS_16_5YR_B25106_with_ann!F57","v":1711},{"$f":"[1]ACS_16_5YR_B25106_with_ann!G57","v":137},{"$f":"[1]ACS_16_5YR_B25106_with_ann!H57","v":64},{"$f":"[1]ACS_16_5YR_B25106_with_ann!I57","v":43},{"$f":"[1]ACS_16_5YR_B25106_with_ann!J57","v":0},{"$f":"[1]ACS_16_5YR_B25106_with_ann!K57","v":17},{"$f":"[1]ACS_16_5YR_B25106_with_ann!L57","v":0},{"$f":"[1]ACS_16_5YR_B25106_with_ann!M57","v":17},{"$f":"[1]ACS_16_5YR_B25106_with_ann!N57","v":64},{"$f":"[1]ACS_16_5YR_B25106_with_ann!O57","v":43},{"$f":"[1]ACS_16_5YR_B25106_with_ann!P57","v":78},{"$f":"[1]ACS_16_5YR_B25106_with_ann!Q57","v":53},{"$f":"[1]ACS_16_5YR_B25106_with_ann!R57","v":0},{"$f":"[1]ACS_16_5YR_B25106_with_ann!S57","v":17},{"$f":"[1]ACS_16_5YR_B25106_with_ann!T57","v":14},{"$f":"[1]ACS_16_5YR_B25106_with_ann!U57","v":22},{"$f":"[1]ACS_16_5YR_B25106_with_ann!V57","v":64},{"$f":"[1]ACS_16_5YR_B25106_with_ann!W57","v":50},{"$f":"[1]ACS_16_5YR_B25106_with_ann!X57","v":184},{"$f":"[1]ACS_16_5YR_B25106_with_ann!Y57","v":115},{"$f":"[1]ACS_16_5YR_B25106_with_ann!Z57","v":6},{"$f":"[1]ACS_16_5YR_B25106_with_ann!AA57","v":9},{"$f":"[1]ACS_16_5YR_B25106_with_ann!AB57","v":46},{"$f":"[1]ACS_16_5YR_B25106_with_ann!AC57","v":46},{"$f":"[1]ACS_16_5YR_B25106_with_ann!AD57","v":132},{"$f":"[1]ACS_16_5YR_B25106_with_ann!AE57","v":102},{"$f":"[1]ACS_16_5YR_B25106_with_ann!AF57","v":269},{"$f":"[1]ACS_16_5YR_B25106_with_ann!AG57","v":98},{"$f":"[1]ACS_16_5YR_B25106_with_ann!AH57","v":52},{"$f":"[1]ACS_16_5YR_B25106_with_ann!AI57","v":40},{"$f":"[1]ACS_16_5YR_B25106_with_ann!AJ57","v":46},{"$f":"[1]ACS_16_5YR_B25106_with_ann!AK57","v":34},{"$f":"[1]ACS_16_5YR_B25106_with_ann!AL57","v":171},{"$f":"[1]ACS_16_5YR_B25106_with_ann!AM57","v":89},{"$f":"[1]ACS_16_5YR_B25106_with_ann!AN57","v":1116},{"$f":"[1]ACS_16_5YR_B25106_with_ann!AO57","v":157},{"$f":"[1]ACS_16_5YR_B25106_with_ann!AP57","v":757},{"$f":"[1]ACS_16_5YR_B25106_with_ann!AQ57","v":154},{"$f":"[1]ACS_16_5YR_B25106_with_ann!AR57","v":284},{"$f":"[1]ACS_16_5YR_B25106_with_ann!AS57","v":106},{"$f":"[1]ACS_16_5YR_B25106_with_ann!AT57","v":75},{"$f":"[1]ACS_16_5YR_B25106_with_ann!AU57","v":56},{"$f":"[1]ACS_16_5YR_B25106_with_ann!AV57","v":0},{"$f":"[1]ACS_16_5YR_B25106_with_ann!AW57","v":17},{"$f":"[1]ACS_16_5YR_B25106_with_ann!AX57","v":261},{"$f":"[1]ACS_16_5YR_B25106_with_ann!AY57","v":119},{"$f":"[1]ACS_16_5YR_B25106_with_ann!AZ57","v":27},{"$f":"[1]ACS_16_5YR_B25106_with_ann!BA57","v":33},{"$f":"[1]ACS_16_5YR_B25106_with_ann!BB57","v":0},{"$f":"[1]ACS_16_5YR_B25106_with_ann!BC57","v":17},{"$f":"[1]ACS_16_5YR_B25106_with_ann!BD57","v":0},{"$f":"[1]ACS_16_5YR_B25106_with_ann!BE57","v":17},{"$f":"[1]ACS_16_5YR_B25106_with_ann!BF57","v":27},{"$f":"[1]ACS_16_5YR_B25106_with_ann!BG57","v":33},{"$f":"[1]ACS_16_5YR_B25106_with_ann!BH57","v":39},{"$f":"[1]ACS_16_5YR_B25106_with_ann!BI57","v":31},{"$f":"[1]ACS_16_5YR_B25106_with_ann!BJ57","v":0},{"$f":"[1]ACS_16_5YR_B25106_with_ann!BK57","v":17},{"$f":"[1]ACS_16_5YR_B25106_with_ann!BL57","v":0},{"$f":"[1]ACS_16_5YR_B25106_with_ann!BM57","v":17},{"$f":"[1]ACS_16_5YR_B25106_with_ann!BN57","v":39},{"$f":"[1]ACS_16_5YR_B25106_with_ann!BO57","v":31},{"$f":"[1]ACS_16_5YR_B25106_with_ann!BP57","v":0},{"$f":"[1]ACS_16_5YR_B25106_with_ann!BQ57","v":17},{"$f":"[1]ACS_16_5YR_B25106_with_ann!BR57","v":0},{"$f":"[1]ACS_16_5YR_B25106_with_ann!BS57","v":17},{"$f":"[1]ACS_16_5YR_B25106_with_ann!BT57","v":0},{"$f":"[1]ACS_16_5YR_B25106_with_ann!BU57","v":17},{"$f":"[1]ACS_16_5YR_B25106_with_ann!BV57","v":0},{"$f":"[1]ACS_16_5YR_B25106_with_ann!BW57","v":17},{"$f":"[1]ACS_16_5YR_B25106_with_ann!BX57","v":99},{"$f":"[1]ACS_16_5YR_B25106_with_ann!BY57","v":82},{"$f":"[1]ACS_16_5YR_B25106_with_ann!BZ57","v":39},{"$f":"[1]ACS_16_5YR_B25106_with_ann!CA57","v":58},{"$f":"[1]ACS_16_5YR_B25106_with_ann!CB57","v":49},{"$f":"[1]ACS_16_5YR_B25106_with_ann!CC57","v":57},{"$f":"[1]ACS_16_5YR_B25106_with_ann!CD57","v":11},{"$f":"[1]ACS_16_5YR_B25106_with_ann!CE57","v":18},{"$f":"[1]ACS_16_5YR_B25106_with_ann!CF57","v":75},{"$f":"[1]ACS_16_5YR_B25106_with_ann!CG57","v":51},{"$f":"[1]ACS_16_5YR_B25106_with_ann!CH57","v":38},{"$f":"[1]ACS_16_5YR_B25106_with_ann!CI57","v":33},{"$f":"[1]ACS_16_5YR_B25106_with_ann!CJ57","v":37},{"$f":"[1]ACS_16_5YR_B25106_with_ann!CK57","v":37},{"$f":"[1]ACS_16_5YR_B25106_with_ann!CL57","v":0},{"$f":"[1]ACS_16_5YR_B25106_with_ann!CM57","v":17},{"$f":"[1]ACS_16_5YR_B25106_with_ann!CN57","v":0},{"$f":"[1]ACS_16_5YR_B25106_with_ann!CO57","v":17},{"$f":"[1]ACS_16_5YR_B25106_with_ann!CP57","v":21},{"$f":"[1]ACS_16_5YR_B25106_with_ann!CQ57","v":27}]
["06000US3300565700","0600000US3300573700","060",{"$f":"[1]ACS_16_5YR_B25106_with_ann!C58","v":"Roxbury"},{"$f":"[1]ACS_16_5YR_B25106_with_ann!D58","v":95},{"$f":"[1]ACS_16_5YR_B25106_with_ann!E58","v":37},{"$f":"[1]ACS_16_5YR_B25106_with_ann!F58","v":94},{"$f":"[1]ACS_16_5YR_B25106_with_ann!G58","v":38},{"$f":"[1]ACS_16_5YR_B25106_with_ann!H58","v":1},{"$f":"[1]ACS_16_5YR_B25106_with_ann!I58","v":2},{"$f":"[1]ACS_16_5YR_B25106_with_ann!J58","v":0},{"$f":"[1]ACS_16_5YR_B25106_with_ann!K58","v":12},{"$f":"[1]ACS_16_5YR_B25106_with_ann!L58","v":0},{"$f":"[1]ACS_16_5YR_B25106_with_ann!M58","v":12},{"$f":"[1]ACS_16_5YR_B25106_with_ann!N58","v":1},{"$f":"[1]ACS_16_5YR_B25106_with_ann!O58","v":2},{"$f":"[1]ACS_16_5YR_B25106_with_ann!P58","v":12},{"$f":"[1]ACS_16_5YR_B25106_with_ann!Q58","v":9},{"$f":"[1]ACS_16_5YR_B25106_with_ann!R58","v":2},{"$f":"[1]ACS_16_5YR_B25106_with_ann!S58","v":3},{"$f":"[1]ACS_16_5YR_B25106_with_ann!T58","v":2},{"$f":"[1]ACS_16_5YR_B25106_with_ann!U58","v":4},{"$f":"[1]ACS_16_5YR_B25106_with_ann!V58","v":8},{"$f":"[1]ACS_16_5YR_B25106_with_ann!W58","v":8},{"$f":"[1]ACS_16_5YR_B25106_with_ann!X58","v":9},{"$f":"[1]ACS_16_5YR_B25106_with_ann!Y58","v":7},{"$f":"[1]ACS_16_5YR_B25106_with_ann!Z58","v":2},{"$f":"[1]ACS_16_5YR_B25106_with_ann!AA58","v":3},{"$f":"[1]ACS_16_5YR_B25106_with_ann!AB58","v":2},{"$f":"[1]ACS_16_5YR_B25106_with_ann!AC58","v":3},{"$f":"[1]ACS_16_5YR_B25106_with_ann!AD58","v":5},{"$f":"[1]ACS_16_5YR_B25106_with_ann!AE58","v":4},{"$f":"[1]ACS_16_5YR_B25106_with_ann!AF58","v":27},{"$f":"[1]ACS_16_5YR_B25106_with_ann!AG58","v":35},{"$f":"[1]ACS_16_5YR_B25106_with_ann!AH58","v":3},{"$f":"[1]ACS_16_5YR_B25106_with_ann!AI58","v":4},{"$f":"[1]ACS_16_5YR_B25106_with_ann!AJ58","v":2},{"$f":"[1]ACS_16_5YR_B25106_with_ann!AK58","v":3},{"$f":"[1]ACS_16_5YR_B25106_with_ann!AL58","v":22},{"$f":"[1]ACS_16_5YR_B25106_with_ann!AM58","v":35},{"$f":"[1]ACS_16_5YR_B25106_with_ann!AN58","v":45},{"$f":"[1]ACS_16_5YR_B25106_with_ann!AO58","v":15},{"$f":"[1]ACS_16_5YR_B25106_with_ann!AP58","v":35},{"$f":"[1]ACS_16_5YR_B25106_with_ann!AQ58","v":13},{"$f":"[1]ACS_16_5YR_B25106_with_ann!AR58","v":10},{"$f":"[1]ACS_16_5YR_B25106_with_ann!AS58","v":10},{"$f":"[1]ACS_16_5YR_B25106_with_ann!AT58","v":0},{"$f":"[1]ACS_16_5YR_B25106_with_ann!AU58","v":12},{"$f":"[1]ACS_16_5YR_B25106_with_ann!AV58","v":0},{"$f":"[1]ACS_16_5YR_B25106_with_ann!AW58","v":12},{"$f":"[1]ACS_16_5YR_B25106_with_ann!AX58","v":1},{"$f":"[1]ACS_16_5YR_B25106_with_ann!AY58","v":3},{"$f":"[1]ACS_16_5YR_B25106_with_ann!AZ58","v":0},{"$f":"[1]ACS_16_5YR_B25106_with_ann!BA58","v":12},{"$f":"[1]ACS_16_5YR_B25106_with_ann!BB58","v":0},{"$f":"[1]ACS_16_5YR_B25106_with_ann!BC58","v":12},{"$f":"[1]ACS_16_5YR_B25106_with_ann!BD58","v":0},{"$f":"[1]ACS_16_5YR_B25106_with_ann!BE58","v":12},{"$f":"[1]ACS_16_5YR_B25106_with_ann!BF58","v":0},{"$f":"[1]ACS_16_5YR_B25106_with_ann!BG58","v":12},{"$f":"[1]ACS_16_5YR_B25106_with_ann!BH58","v":0},{"$f":"[1]ACS_16_5YR_B25106_with_ann!BI58","v":12},{"$f":"[1]ACS_16_5YR_B25106_with_ann!BJ58","v":0},{"$f":"[1]ACS_16_5YR_B25106_with_ann!BK58","v":12},{"$f":"[1]ACS_16_5YR_B25106_with_ann!BL58","v":0},{"$f":"[1]ACS_16_5YR_B25106_with_ann!BM58","v":12},{"$f":"[1]ACS_16_5YR_B25106_with_ann!BN58","v":0},{"$f":"[1]ACS_16_5YR_B25106_with_ann!BO58","v":12},{"$f":"[1]ACS_16_5YR_B25106_with_ann!BP58","v":0},{"$f":"[1]ACS_16_5YR_B25106_with_ann!BQ58","v":12},{"$f":"[1]ACS_16_5YR_B25106_with_ann!BR58","v":0},{"$f":"[1]ACS_16_5YR_B25106_with_ann!BS58","v":12},{"$f":"[1]ACS_16_5YR_B25106_with_ann!BT58","v":0},{"$f":"[1]ACS_16_5YR_B25106_with_ann!BU58","v":12},{"$f":"[1]ACS_16_5YR_B25106_with_ann!BV58","v":0},{"$f":"[1]ACS_16_5YR_B25106_with_ann!BW58","v":12},{"$f":"[1]ACS_16_5YR_B25106_with_ann!BX58","v":0},{"$f":"[1]ACS_16_5YR_B25106_with_ann!BY58","v":12},{"$f":"[1]ACS_16_5YR_B25106_with_ann!BZ58","v":0},{"$f":"[1]ACS_16_5YR_B25106_with_ann!CA58","v":12},{"$f":"[1]ACS_16_5YR_B25106_with_ann!CB58","v":0},{"$f":"[1]ACS_16_5YR_B25106_with_ann!CC58","v":12},{"$f":"[1]ACS_16_5YR_B25106_with_ann!CD58","v":0},{"$f":"[1]ACS_16_5YR_B25106_with_ann!CE58","v":12},{"$f":"[1]ACS_16_5YR_B25106_with_ann!CF58","v":0},{"$f":"[1]ACS_16_5YR_B25106_with_ann!CG58","v":12},{"$f":"[1]ACS_16_5YR_B25106_with_ann!CH58","v":0},{"$f":"[1]ACS_16_5YR_B25106_with_ann!CI58","v":12},{"$f":"[1]ACS_16_5YR_B25106_with_ann!CJ58","v":0},{"$f":"[1]ACS_16_5YR_B25106_with_ann!CK58","v":12},{"$f":"[1]ACS_16_5YR_B25106_with_ann!CL58","v":0},{"$f":"[1]ACS_16_5YR_B25106_with_ann!CM58","v":12},{"$f":"[1]ACS_16_5YR_B25106_with_ann!CN58","v":0},{"$f":"[1]ACS_16_5YR_B25106_with_ann!CO58","v":12},{"$f":"[1]ACS_16_5YR_B25106_with_ann!CP58","v":1},{"$f":"[1]ACS_16_5YR_B25106_with_ann!CQ58","v":3}]
["06000US3300573700","0600000US3300574900","060",{"$f":"[1]ACS_16_5YR_B25106_with_ann!C59","v":"Stoddard"},{"$f":"[1]ACS_16_5YR_B25106_with_ann!D59","v":436},{"$f":"[1]ACS_16_5YR_B25106_with_ann!E59","v":52},{"$f":"[1]ACS_16_5YR_B25106_with_ann!F59","v":405},{"$f":"[1]ACS_16_5YR_B25106_with_ann!G59","v":49},{"$f":"[1]ACS_16_5YR_B25106_with_ann!H59","v":10},{"$f":"[1]ACS_16_5YR_B25106_with_ann!I59","v":13},{"$f":"[1]ACS_16_5YR_B25106_with_ann!J59","v":0},{"$f":"[1]ACS_16_5YR_B25106_with_ann!K59","v":12},{"$f":"[1]ACS_16_5YR_B25106_with_ann!L59","v":0},{"$f":"[1]ACS_16_5YR_B25106_with_ann!M59","v":12},{"$f":"[1]ACS_16_5YR_B25106_with_ann!N59","v":10},{"$f":"[1]ACS_16_5YR_B25106_with_ann!O59","v":13},{"$f":"[1]ACS_16_5YR_B25106_with_ann!P59","v":32},{"$f":"[1]ACS_16_5YR_B25106_with_ann!Q59","v":14},{"$f":"[1]ACS_16_5YR_B25106_with_ann!R59","v":6},{"$f":"[1]ACS_16_5YR_B25106_with_ann!S59","v":5},{"$f":"[1]ACS_16_5YR_B25106_with_ann!T59","v":0},{"$f":"[1]ACS_16_5YR_B25106_with_ann!U59","v":12},{"$f":"[1]ACS_16_5YR_B25106_with_ann!V59","v":26},{"$f":"[1]ACS_16_5YR_B25106_with_ann!W59","v":14},{"$f":"[1]ACS_16_5YR_B25106_with_ann!X59","v":26},{"$f":"[1]ACS_16_5YR_B25106_with_ann!Y59","v":15},{"$f":"[1]ACS_16_5YR_B25106_with_ann!Z59","v":7},{"$f":"[1]ACS_16_5YR_B25106_with_ann!AA59","v":6},{"$f":"[1]ACS_16_5YR_B25106_with_ann!AB59","v":3},{"$f":"[1]ACS_16_5YR_B25106_with_ann!AC59","v":3},{"$f":"[1]ACS_16_5YR_B25106_with_ann!AD59","v":16},{"$f":"[1]ACS_16_5YR_B25106_with_ann!AE59","v":13},{"$f":"[1]ACS_16_5YR_B25106_with_ann!AF59","v":87},{"$f":"[1]ACS_16_5YR_B25106_with_ann!AG59","v":28},{"$f":"[1]ACS_16_5YR_B25106_with_ann!AH59","v":21},{"$f":"[1]ACS_16_5YR_B25106_with_ann!AI59","v":12},{"$f":"[1]ACS_16_5YR_B25106_with_ann!AJ59","v":36},{"$f":"[1]ACS_16_5YR_B25106_with_ann!AK59","v":19},{"$f":"[1]ACS_16_5YR_B25106_with_ann!AL59","v":30},{"$f":"[1]ACS_16_5YR_B25106_with_ann!AM59","v":16},{"$f":"[1]ACS_16_5YR_B25106_with_ann!AN59","v":248},{"$f":"[1]ACS_16_5YR_B25106_with_ann!AO59","v":48},{"$f":"[1]ACS_16_5YR_B25106_with_ann!AP59","v":190},{"$f":"[1]ACS_16_5YR_B25106_with_ann!AQ59","v":45},{"$f":"[1]ACS_16_5YR_B25106_with_ann!AR59","v":42},{"$f":"[1]ACS_16_5YR_B25106_with_ann!AS59","v":18},{"$f":"[1]ACS_16_5YR_B25106_with_ann!AT59","v":16},{"$f":"[1]ACS_16_5YR_B25106_with_ann!AU59","v":14},{"$f":"[1]ACS_16_5YR_B25106_with_ann!AV59","v":2},{"$f":"[1]ACS_16_5YR_B25106_with_ann!AW59","v":4},{"$f":"[1]ACS_16_5YR_B25106_with_ann!AX59","v":31},{"$f":"[1]ACS_16_5YR_B25106_with_ann!AY59","v":18},{"$f":"[1]ACS_16_5YR_B25106_with_ann!AZ59","v":0},{"$f":"[1]ACS_16_5YR_B25106_with_ann!BA59","v":12},{"$f":"[1]ACS_16_5YR_B25106_with_ann!BB59","v":0},{"$f":"[1]ACS_16_5YR_B25106_with_ann!BC59","v":12},{"$f":"[1]ACS_16_5YR_B25106_with_ann!BD59","v":0},{"$f":"[1]ACS_16_5YR_B25106_with_ann!BE59","v":12},{"$f":"[1]ACS_16_5YR_B25106_with_ann!BF59","v":0},{"$f":"[1]ACS_16_5YR_B25106_with_ann!BG59","v":12},{"$f":"[1]ACS_16_5YR_B25106_with_ann!BH59","v":0},{"$f":"[1]ACS_16_5YR_B25106_with_ann!BI59","v":12},{"$f":"[1]ACS_16_5YR_B25106_with_ann!BJ59","v":0},{"$f":"[1]ACS_16_5YR_B25106_with_ann!BK59","v":12},{"$f":"[1]ACS_16_5YR_B25106_with_ann!BL59","v":0},{"$f":"[1]ACS_16_5YR_B25106_with_ann!BM59","v":12},{"$f":"[1]ACS_16_5YR_B25106_with_ann!BN59","v":0},{"$f":"[1]ACS_16_5YR_B25106_with_ann!BO59","v":12},{"$f":"[1]ACS_16_5YR_B25106_with_ann!BP59","v":0},{"$f":"[1]ACS_16_5YR_B25106_with_ann!BQ59","v":12},{"$f":"[1]ACS_16_5YR_B25106_with_ann!BR59","v":0},{"$f":"[1]ACS_16_5YR_B25106_with_ann!BS59","v":12},{"$f":"[1]ACS_16_5YR_B25106_with_ann!BT59","v":0},{"$f":"[1]ACS_16_5YR_B25106_with_ann!BU59","v":12},{"$f":"[1]ACS_16_5YR_B25106_with_ann!BV59","v":0},{"$f":"[1]ACS_16_5YR_B25106_with_ann!BW59","v":12},{"$f":"[1]ACS_16_5YR_B25106_with_ann!BX59","v":9},{"$f":"[1]ACS_16_5YR_B25106_with_ann!BY59","v":14},{"$f":"[1]ACS_16_5YR_B25106_with_ann!BZ59","v":0},{"$f":"[1]ACS_16_5YR_B25106_with_ann!CA59","v":12},{"$f":"[1]ACS_16_5YR_B25106_with_ann!CB59","v":0},{"$f":"[1]ACS_16_5YR_B25106_with_ann!CC59","v":12},{"$f":"[1]ACS_16_5YR_B25106_with_ann!CD59","v":9},{"$f":"[1]ACS_16_5YR_B25106_with_ann!CE59","v":14},{"$f":"[1]ACS_16_5YR_B25106_with_ann!CF59","v":14},{"$f":"[1]ACS_16_5YR_B25106_with_ann!CG59","v":9},{"$f":"[1]ACS_16_5YR_B25106_with_ann!CH59","v":12},{"$f":"[1]ACS_16_5YR_B25106_with_ann!CI59","v":9},{"$f":"[1]ACS_16_5YR_B25106_with_ann!CJ59","v":2},{"$f":"[1]ACS_16_5YR_B25106_with_ann!CK59","v":3},{"$f":"[1]ACS_16_5YR_B25106_with_ann!CL59","v":0},{"$f":"[1]ACS_16_5YR_B25106_with_ann!CM59","v":12},{"$f":"[1]ACS_16_5YR_B25106_with_ann!CN59","v":0},{"$f":"[1]ACS_16_5YR_B25106_with_ann!CO59","v":12},{"$f":"[1]ACS_16_5YR_B25106_with_ann!CP59","v":8},{"$f":"[1]ACS_16_5YR_B25106_with_ann!CQ59","v":9}]
["06000US3300574900","0600000US3300575300","060",{"$f":"[1]ACS_16_5YR_B25106_with_ann!C60","v":"Sullivan"},{"$f":"[1]ACS_16_5YR_B25106_with_ann!D60","v":281},{"$f":"[1]ACS_16_5YR_B25106_with_ann!E60","v":53},{"$f":"[1]ACS_16_5YR_B25106_with_ann!F60","v":240},{"$f":"[1]ACS_16_5YR_B25106_with_ann!G60","v":46},{"$f":"[1]ACS_16_5YR_B25106_with_ann!H60","v":17},{"$f":"[1]ACS_16_5YR_B25106_with_ann!I60","v":12},{"$f":"[1]ACS_16_5YR_B25106_with_ann!J60","v":0},{"$f":"[1]ACS_16_5YR_B25106_with_ann!K60","v":12},{"$f":"[1]ACS_16_5YR_B25106_with_ann!L60","v":0},{"$f":"[1]ACS_16_5YR_B25106_with_ann!M60","v":12},{"$f":"[1]ACS_16_5YR_B25106_with_ann!N60","v":17},{"$f":"[1]ACS_16_5YR_B25106_with_ann!O60","v":12},{"$f":"[1]ACS_16_5YR_B25106_with_ann!P60","v":8},{"$f":"[1]ACS_16_5YR_B25106_with_ann!Q60","v":7},{"$f":"[1]ACS_16_5YR_B25106_with_ann!R60","v":2},{"$f":"[1]ACS_16_5YR_B25106_with_ann!S60","v":3},{"$f":"[1]ACS_16_5YR_B25106_with_ann!T60","v":0},{"$f":"[1]ACS_16_5YR_B25106_with_ann!U60","v":12},{"$f":"[1]ACS_16_5YR_B25106_with_ann!V60","v":6},{"$f":"[1]ACS_16_5YR_B25106_with_ann!W60","v":7},{"$f":"[1]ACS_16_5YR_B25106_with_ann!X60","v":18},{"$f":"[1]ACS_16_5YR_B25106_with_ann!Y60","v":9},{"$f":"[1]ACS_16_5YR_B25106_with_ann!Z60","v":3},{"$f":"[1]ACS_16_5YR_B25106_with_ann!AA60","v":4},{"$f":"[1]ACS_16_5YR_B25106_with_ann!AB60","v":11},{"$f":"[1]ACS_16_5YR_B25106_with_ann!AC60","v":7},{"$f":"[1]ACS_16_5YR_B25106_with_ann!AD60","v":4},{"$f":"[1]ACS_16_5YR_B25106_with_ann!AE60","v":4},{"$f":"[1]ACS_16_5YR_B25106_with_ann!AF60","v":34},{"$f":"[1]ACS_16_5YR_B25106_with_ann!AG60","v":14},{"$f":"[1]ACS_16_5YR_B25106_with_ann!AH60","v":8},{"$f":"[1]ACS_16_5YR_B25106_with_ann!AI60","v":7},{"$f":"[1]ACS_16_5YR_B25106_with_ann!AJ60","v":15},{"$f":"[1]ACS_16_5YR_B25106_with_ann!AK60","v":11},{"$f":"[1]ACS_16_5YR_B25106_with_ann!AL60","v":11},{"$f":"[1]ACS_16_5YR_B25106_with_ann!AM60","v":8},{"$f":"[1]ACS_16_5YR_B25106_with_ann!AN60","v":163},{"$f":"[1]ACS_16_5YR_B25106_with_ann!AO60","v":36},{"$f":"[1]ACS_16_5YR_B25106_with_ann!AP60","v":117},{"$f":"[1]ACS_16_5YR_B25106_with_ann!AQ60","v":32},{"$f":"[1]ACS_16_5YR_B25106_with_ann!AR60","v":41},{"$f":"[1]ACS_16_5YR_B25106_with_ann!AS60","v":22},{"$f":"[1]ACS_16_5YR_B25106_with_ann!AT60","v":5},{"$f":"[1]ACS_16_5YR_B25106_with_ann!AU60","v":5},{"$f":"[1]ACS_16_5YR_B25106_with_ann!AV60","v":0},{"$f":"[1]ACS_16_5YR_B25106_with_ann!AW60","v":12},{"$f":"[1]ACS_16_5YR_B25106_with_ann!AX60","v":41},{"$f":"[1]ACS_16_5YR_B25106_with_ann!AY60","v":21},{"$f":"[1]ACS_16_5YR_B25106_with_ann!AZ60","v":0},{"$f":"[1]ACS_16_5YR_B25106_with_ann!BA60","v":12},{"$f":"[1]ACS_16_5YR_B25106_with_ann!BB60","v":0},{"$f":"[1]ACS_16_5YR_B25106_with_ann!BC60","v":12},{"$f":"[1]ACS_16_5YR_B25106_with_ann!BD60","v":0},{"$f":"[1]ACS_16_5YR_B25106_with_ann!BE60","v":12},{"$f":"[1]ACS_16_5YR_B25106_with_ann!BF60","v":0},{"$f":"[1]ACS_16_5YR_B25106_with_ann!BG60","v":12},{"$f":"[1]ACS_16_5YR_B25106_with_ann!BH60","v":7},{"$f":"[1]ACS_16_5YR_B25106_with_ann!BI60","v":7},{"$f":"[1]ACS_16_5YR_B25106_with_ann!BJ60","v":0},{"$f":"[1]ACS_16_5YR_B25106_with_ann!BK60","v":12},{"$f":"[1]ACS_16_5YR_B25106_with_ann!BL60","v":0},{"$f":"[1]ACS_16_5YR_B25106_with_ann!BM60","v":12},{"$f":"[1]ACS_16_5YR_B25106_with_ann!BN60","v":7},{"$f":"[1]ACS_16_5YR_B25106_with_ann!BO60","v":7},{"$f":"[1]ACS_16_5YR_B25106_with_ann!BP60","v":3},{"$f":"[1]ACS_16_5YR_B25106_with_ann!BQ60","v":4},{"$f":"[1]ACS_16_5YR_B25106_with_ann!BR60","v":0},{"$f":"[1]ACS_16_5YR_B25106_with_ann!BS60","v":12},{"$f":"[1]ACS_16_5YR_B25106_with_ann!BT60","v":0},{"$f":"[1]ACS_16_5YR_B25106_with_ann!BU60","v":12},{"$f":"[1]ACS_16_5YR_B25106_with_ann!BV60","v":3},{"$f":"[1]ACS_16_5YR_B25106_with_ann!BW60","v":4},{"$f":"[1]ACS_16_5YR_B25106_with_ann!BX60","v":19},{"$f":"[1]ACS_16_5YR_B25106_with_ann!BY60","v":19},{"$f":"[1]ACS_16_5YR_B25106_with_ann!BZ60","v":17},{"$f":"[1]ACS_16_5YR_B25106_with_ann!CA60","v":19},{"$f":"[1]ACS_16_5YR_B25106_with_ann!CB60","v":0},{"$f":"[1]ACS_16_5YR_B25106_with_ann!CC60","v":12},{"$f":"[1]ACS_16_5YR_B25106_with_ann!CD60","v":2},{"$f":"[1]ACS_16_5YR_B25106_with_ann!CE60","v":3},{"$f":"[1]ACS_16_5YR_B25106_with_ann!CF60","v":11},{"$f":"[1]ACS_16_5YR_B25106_with_ann!CG60","v":8},{"$f":"[1]ACS_16_5YR_B25106_with_ann!CH60","v":11},{"$f":"[1]ACS_16_5YR_B25106_with_ann!CI60","v":8},{"$f":"[1]ACS_16_5YR_B25106_with_ann!CJ60","v":0},{"$f":"[1]ACS_16_5YR_B25106_with_ann!CK60","v":12},{"$f":"[1]ACS_16_5YR_B25106_with_ann!CL60","v":0},{"$f":"[1]ACS_16_5YR_B25106_with_ann!CM60","v":12},{"$f":"[1]ACS_16_5YR_B25106_with_ann!CN60","v":0},{"$f":"[1]ACS_16_5YR_B25106_with_ann!CO60","v":12},{"$f":"[1]ACS_16_5YR_B25106_with_ann!CP60","v":1},{"$f":"[1]ACS_16_5YR_B25106_with_ann!CQ60","v":4}]
["06000US3300575300","0600000US3300575700","060",{"$f":"[1]ACS_16_5YR_B25106_with_ann!C61","v":"Surry"},{"$f":"[1]ACS_16_5YR_B25106_with_ann!D61","v":344},{"$f":"[1]ACS_16_5YR_B25106_with_ann!E61","v":58},{"$f":"[1]ACS_16_5YR_B25106_with_ann!F61","v":324},{"$f":"[1]ACS_16_5YR_B25106_with_ann!G61","v":59},{"$f":"[1]ACS_16_5YR_B25106_with_ann!H61","v":8},{"$f":"[1]ACS_16_5YR_B25106_with_ann!I61","v":8},{"$f":"[1]ACS_16_5YR_B25106_with_ann!J61","v":0},{"$f":"[1]ACS_16_5YR_B25106_with_ann!K61","v":12},{"$f":"[1]ACS_16_5YR_B25106_with_ann!L61","v":0},{"$f":"[1]ACS_16_5YR_B25106_with_ann!M61","v":12},{"$f":"[1]ACS_16_5YR_B25106_with_ann!N61","v":8},{"$f":"[1]ACS_16_5YR_B25106_with_ann!O61","v":8},{"$f":"[1]ACS_16_5YR_B25106_with_ann!P61","v":19},{"$f":"[1]ACS_16_5YR_B25106_with_ann!Q61","v":15},{"$f":"[1]ACS_16_5YR_B25106_with_ann!R61","v":0},{"$f":"[1]ACS_16_5YR_B25106_with_ann!S61","v":12},{"$f":"[1]ACS_16_5YR_B25106_with_ann!T61","v":7},{"$f":"[1]ACS_16_5YR_B25106_with_ann!U61","v":6},{"$f":"[1]ACS_16_5YR_B25106_with_ann!V61","v":12},{"$f":"[1]ACS_16_5YR_B25106_with_ann!W61","v":14},{"$f":"[1]ACS_16_5YR_B25106_with_ann!X61","v":45},{"$f":"[1]ACS_16_5YR_B25106_with_ann!Y61","v":32},{"$f":"[1]ACS_16_5YR_B25106_with_ann!Z61","v":14},{"$f":"[1]ACS_16_5YR_B25106_with_ann!AA61","v":14},{"$f":"[1]ACS_16_5YR_B25106_with_ann!AB61","v":3},{"$f":"[1]ACS_16_5YR_B25106_with_ann!AC61","v":4},{"$f":"[1]ACS_16_5YR_B25106_with_ann!AD61","v":28},{"$f":"[1]ACS_16_5YR_B25106_with_ann!AE61","v":28},{"$f":"[1]ACS_16_5YR_B25106_with_ann!AF61","v":44},{"$f":"[1]ACS_16_5YR_B25106_with_ann!AG61","v":21},{"$f":"[1]ACS_16_5YR_B25106_with_ann!AH61","v":17},{"$f":"[1]ACS_16_5YR_B25106_with_ann!AI61","v":16},{"$f":"[1]ACS_16_5YR_B25106_with_ann!AJ61","v":13},{"$f":"[1]ACS_16_5YR_B25106_with_ann!AK61","v":11},{"$f":"[1]ACS_16_5YR_B25106_with_ann!AL61","v":14},{"$f":"[1]ACS_16_5YR_B25106_with_ann!AM61","v":11},{"$f":"[1]ACS_16_5YR_B25106_with_ann!AN61","v":208},{"$f":"[1]ACS_16_5YR_B25106_with_ann!AO61","v":50},{"$f":"[1]ACS_16_5YR_B25106_with_ann!AP61","v":165},{"$f":"[1]ACS_16_5YR_B25106_with_ann!AQ61","v":49},{"$f":"[1]ACS_16_5YR_B25106_with_ann!AR61","v":34},{"$f":"[1]ACS_16_5YR_B25106_with_ann!AS61","v":15},{"$f":"[1]ACS_16_5YR_B25106_with_ann!AT61","v":9},{"$f":"[1]ACS_16_5YR_B25106_with_ann!AU61","v":6},{"$f":"[1]ACS_16_5YR_B25106_with_ann!AV61","v":0},{"$f":"[1]ACS_16_5YR_B25106_with_ann!AW61","v":12},{"$f":"[1]ACS_16_5YR_B25106_with_ann!AX61","v":20},{"$f":"[1]ACS_16_5YR_B25106_with_ann!AY61","v":9},{"$f":"[1]ACS_16_5YR_B25106_with_ann!AZ61","v":0},{"$f":"[1]ACS_16_5YR_B25106_with_ann!BA61","v":12},{"$f":"[1]ACS_16_5YR_B25106_with_ann!BB61","v":0},{"$f":"[1]ACS_16_5YR_B25106_with_ann!BC61","v":12},{"$f":"[1]ACS_16_5YR_B25106_with_ann!BD61","v":0},{"$f":"[1]ACS_16_5YR_B25106_with_ann!BE61","v":12},{"$f":"[1]ACS_16_5YR_B25106_with_ann!BF61","v":0},{"$f":"[1]ACS_16_5YR_B25106_with_ann!BG61","v":12},{"$f":"[1]ACS_16_5YR_B25106_with_ann!BH61","v":2},{"$f":"[1]ACS_16_5YR_B25106_with_ann!BI61","v":3},{"$f":"[1]ACS_16_5YR_B25106_with_ann!BJ61","v":0},{"$f":"[1]ACS_16_5YR_B25106_with_ann!BK61","v":12},{"$f":"[1]ACS_16_5YR_B25106_with_ann!BL61","v":0},{"$f":"[1]ACS_16_5YR_B25106_with_ann!BM61","v":12},{"$f":"[1]ACS_16_5YR_B25106_with_ann!BN61","v":2},{"$f":"[1]ACS_16_5YR_B25106_with_ann!BO61","v":3},{"$f":"[1]ACS_16_5YR_B25106_with_ann!BP61","v":0},{"$f":"[1]ACS_16_5YR_B25106_with_ann!BQ61","v":12},{"$f":"[1]ACS_16_5YR_B25106_with_ann!BR61","v":0},{"$f":"[1]ACS_16_5YR_B25106_with_ann!BS61","v":12},{"$f":"[1]ACS_16_5YR_B25106_with_ann!BT61","v":0},{"$f":"[1]ACS_16_5YR_B25106_with_ann!BU61","v":12},{"$f":"[1]ACS_16_5YR_B25106_with_ann!BV61","v":0},{"$f":"[1]ACS_16_5YR_B25106_with_ann!BW61","v":12},{"$f":"[1]ACS_16_5YR_B25106_with_ann!BX61","v":3},{"$f":"[1]ACS_16_5YR_B25106_with_ann!BY61","v":4},{"$f":"[1]ACS_16_5YR_B25106_with_ann!BZ61","v":0},{"$f":"[1]ACS_16_5YR_B25106_with_ann!CA61","v":12},{"$f":"[1]ACS_16_5YR_B25106_with_ann!CB61","v":3},{"$f":"[1]ACS_16_5YR_B25106_with_ann!CC61","v":4},{"$f":"[1]ACS_16_5YR_B25106_with_ann!CD61","v":0},{"$f":"[1]ACS_16_5YR_B25106_with_ann!CE61","v":12},{"$f":"[1]ACS_16_5YR_B25106_with_ann!CF61","v":11},{"$f":"[1]ACS_16_5YR_B25106_with_ann!CG61","v":6},{"$f":"[1]ACS_16_5YR_B25106_with_ann!CH61","v":5},{"$f":"[1]ACS_16_5YR_B25106_with_ann!CI61","v":5},{"$f":"[1]ACS_16_5YR_B25106_with_ann!CJ61","v":6},{"$f":"[1]ACS_16_5YR_B25106_with_ann!CK61","v":5},{"$f":"[1]ACS_16_5YR_B25106_with_ann!CL61","v":0},{"$f":"[1]ACS_16_5YR_B25106_with_ann!CM61","v":12},{"$f":"[1]ACS_16_5YR_B25106_with_ann!CN61","v":0},{"$f":"[1]ACS_16_5YR_B25106_with_ann!CO61","v":12},{"$f":"[1]ACS_16_5YR_B25106_with_ann!CP61","v":4},{"$f":"[1]ACS_16_5YR_B25106_with_ann!CQ61","v":5}]
["06000US3300575700","0600000US3300577380","060",{"$f":"[1]ACS_16_5YR_B25106_with_ann!C62","v":"Swanzey"},{"$f":"[1]ACS_16_5YR_B25106_with_ann!D62","v":3255},{"$f":"[1]ACS_16_5YR_B25106_with_ann!E62","v":171},{"$f":"[1]ACS_16_5YR_B25106_with_ann!F62","v":2237},{"$f":"[1]ACS_16_5YR_B25106_with_ann!G62","v":250},{"$f":"[1]ACS_16_5YR_B25106_with_ann!H62","v":74},{"$f":"[1]ACS_16_5YR_B25106_with_ann!I62","v":77},{"$f":"[1]ACS_16_5YR_B25106_with_ann!J62","v":0},{"$f":"[1]ACS_16_5YR_B25106_with_ann!K62","v":17},{"$f":"[1]ACS_16_5YR_B25106_with_ann!L62","v":13},{"$f":"[1]ACS_16_5YR_B25106_with_ann!M62","v":21},{"$f":"[1]ACS_16_5YR_B25106_with_ann!N62","v":61},{"$f":"[1]ACS_16_5YR_B25106_with_ann!O62","v":72},{"$f":"[1]ACS_16_5YR_B25106_with_ann!P62","v":95},{"$f":"[1]ACS_16_5YR_B25106_with_ann!Q62","v":58},{"$f":"[1]ACS_16_5YR_B25106_with_ann!R62","v":8},{"$f":"[1]ACS_16_5YR_B25106_with_ann!S62","v":16},{"$f":"[1]ACS_16_5YR_B25106_with_ann!T62","v":0},{"$f":"[1]ACS_16_5YR_B25106_with_ann!U62","v":17},{"$f":"[1]ACS_16_5YR_B25106_with_ann!V62","v":87},{"$f":"[1]ACS_16_5YR_B25106_with_ann!W62","v":54},{"$f":"[1]ACS_16_5YR_B25106_with_ann!X62","v":230},{"$f":"[1]ACS_16_5YR_B25106_with_ann!Y62","v":98},{"$f":"[1]ACS_16_5YR_B25106_with_ann!Z62","v":36},{"$f":"[1]ACS_16_5YR_B25106_with_ann!AA62","v":41},{"$f":"[1]ACS_16_5YR_B25106_with_ann!AB62","v":40},{"$f":"[1]ACS_16_5YR_B25106_with_ann!AC62","v":36},{"$f":"[1]ACS_16_5YR_B25106_with_ann!AD62","v":154},{"$f":"[1]ACS_16_5YR_B25106_with_ann!AE62","v":86},{"$f":"[1]ACS_16_5YR_B25106_with_ann!AF62","v":445},{"$f":"[1]ACS_16_5YR_B25106_with_ann!AG62","v":162},{"$f":"[1]ACS_16_5YR_B25106_with_ann!AH62","v":186},{"$f":"[1]ACS_16_5YR_B25106_with_ann!AI62","v":111},{"$f":"[1]ACS_16_5YR_B25106_with_ann!AJ62","v":132},{"$f":"[1]ACS_16_5YR_B25106_with_ann!AK62","v":91},{"$f":"[1]ACS_16_5YR_B25106_with_ann!AL62","v":127},{"$f":"[1]ACS_16_5YR_B25106_with_ann!AM62","v":90},{"$f":"[1]ACS_16_5YR_B25106_with_ann!AN62","v":1381},{"$f":"[1]ACS_16_5YR_B25106_with_ann!AO62","v":272},{"$f":"[1]ACS_16_5YR_B25106_with_ann!AP62","v":934},{"$f":"[1]ACS_16_5YR_B25106_with_ann!AQ62","v":249},{"$f":"[1]ACS_16_5YR_B25106_with_ann!AR62","v":405},{"$f":"[1]ACS_16_5YR_B25106_with_ann!AS62","v":144},{"$f":"[1]ACS_16_5YR_B25106_with_ann!AT62","v":42},{"$f":"[1]ACS_16_5YR_B25106_with_ann!AU62","v":39},{"$f":"[1]ACS_16_5YR_B25106_with_ann!AV62","v":12},{"$f":"[1]ACS_16_5YR_B25106_with_ann!AW62","v":21},{"$f":"[1]ACS_16_5YR_B25106_with_ann!AX62","v":1018},{"$f":"[1]ACS_16_5YR_B25106_with_ann!AY62","v":252},{"$f":"[1]ACS_16_5YR_B25106_with_ann!AZ62","v":281},{"$f":"[1]ACS_16_5YR_B25106_with_ann!BA62","v":132},{"$f":"[1]ACS_16_5YR_B25106_with_ann!BB62","v":0},{"$f":"[1]ACS_16_5YR_B25106_with_ann!BC62","v":17},{"$f":"[1]ACS_16_5YR_B25106_with_ann!BD62","v":84},{"$f":"[1]ACS_16_5YR_B25106_with_ann!BE62","v":74},{"$f":"[1]ACS_16_5YR_B25106_with_ann!BF62","v":197},{"$f":"[1]ACS_16_5YR_B25106_with_ann!BG62","v":106},{"$f":"[1]ACS_16_5YR_B25106_with_ann!BH62","v":251},{"$f":"[1]ACS_16_5YR_B25106_with_ann!BI62","v":173},{"$f":"[1]ACS_16_5YR_B25106_with_ann!BJ62","v":14},{"$f":"[1]ACS_16_5YR_B25106_with_ann!BK62","v":23},{"$f":"[1]ACS_16_5YR_B25106_with_ann!BL62","v":0},{"$f":"[1]ACS_16_5YR_B25106_with_ann!BM62","v":17},{"$f":"[1]ACS_16_5YR_B25106_with_ann!BN62","v":237},{"$f":"[1]ACS_16_5YR_B25106_with_ann!BO62","v":175},{"$f":"[1]ACS_16_5YR_B25106_with_ann!BP62","v":98},{"$f":"[1]ACS_16_5YR_B25106_with_ann!BQ62","v":80},{"$f":"[1]ACS_16_5YR_B25106_with_ann!BR62","v":0},{"$f":"[1]ACS_16_5YR_B25106_with_ann!BS62","v":17},{"$f":"[1]ACS_16_5YR_B25106_with_ann!BT62","v":20},{"$f":"[1]ACS_16_5YR_B25106_with_ann!BU62","v":24},{"$f":"[1]ACS_16_5YR_B25106_with_ann!BV62","v":78},{"$f":"[1]ACS_16_5YR_B25106_with_ann!BW62","v":74},{"$f":"[1]ACS_16_5YR_B25106_with_ann!BX62","v":150},{"$f":"[1]ACS_16_5YR_B25106_with_ann!BY62","v":93},{"$f":"[1]ACS_16_5YR_B25106_with_ann!BZ62","v":0},{"$f":"[1]ACS_16_5YR_B25106_with_ann!CA62","v":17},{"$f":"[1]ACS_16_5YR_B25106_with_ann!CB62","v":132},{"$f":"[1]ACS_16_5YR_B25106_with_ann!CC62","v":90},{"$f":"[1]ACS_16_5YR_B25106_with_ann!CD62","v":18},{"$f":"[1]ACS_16_5YR_B25106_with_ann!CE62","v":30},{"$f":"[1]ACS_16_5YR_B25106_with_ann!CF62","v":203},{"$f":"[1]ACS_16_5YR_B25106_with_ann!CG62","v":112},{"$f":"[1]ACS_16_5YR_B25106_with_ann!CH62","v":39},{"$f":"[1]ACS_16_5YR_B25106_with_ann!CI62","v":36},{"$f":"[1]ACS_16_5YR_B25106_with_ann!CJ62","v":164},{"$f":"[1]ACS_16_5YR_B25106_with_ann!CK62","v":112},{"$f":"[1]ACS_16_5YR_B25106_with_ann!CL62","v":0},{"$f":"[1]ACS_16_5YR_B25106_with_ann!CM62","v":17},{"$f":"[1]ACS_16_5YR_B25106_with_ann!CN62","v":0},{"$f":"[1]ACS_16_5YR_B25106_with_ann!CO62","v":17},{"$f":"[1]ACS_16_5YR_B25106_with_ann!CP62","v":35},{"$f":"[1]ACS_16_5YR_B25106_with_ann!CQ62","v":34}]
["06000US3300577380","0600000US3300578420","060",{"$f":"[1]ACS_16_5YR_B25106_with_ann!C63","v":"Troy"},{"$f":"[1]ACS_16_5YR_B25106_with_ann!D63","v":758},{"$f":"[1]ACS_16_5YR_B25106_with_ann!E63","v":101},{"$f":"[1]ACS_16_5YR_B25106_with_ann!F63","v":525},{"$f":"[1]ACS_16_5YR_B25106_with_ann!G63","v":81},{"$f":"[1]ACS_16_5YR_B25106_with_ann!H63","v":41},{"$f":"[1]ACS_16_5YR_B25106_with_ann!I63","v":31},{"$f":"[1]ACS_16_5YR_B25106_with_ann!J63","v":0},{"$f":"[1]ACS_16_5YR_B25106_with_ann!K63","v":12},{"$f":"[1]ACS_16_5YR_B25106_with_ann!L63","v":0},{"$f":"[1]ACS_16_5YR_B25106_with_ann!M63","v":12},{"$f":"[1]ACS_16_5YR_B25106_with_ann!N63","v":41},{"$f":"[1]ACS_16_5YR_B25106_with_ann!O63","v":31},{"$f":"[1]ACS_16_5YR_B25106_with_ann!P63","v":81},{"$f":"[1]ACS_16_5YR_B25106_with_ann!Q63","v":45},{"$f":"[1]ACS_16_5YR_B25106_with_ann!R63","v":19},{"$f":"[1]ACS_16_5YR_B25106_with_ann!S63","v":25},{"$f":"[1]ACS_16_5YR_B25106_with_ann!T63","v":13},{"$f":"[1]ACS_16_5YR_B25106_with_ann!U63","v":13},{"$f":"[1]ACS_16_5YR_B25106_with_ann!V63","v":49},{"$f":"[1]ACS_16_5YR_B25106_with_ann!W63","v":35},{"$f":"[1]ACS_16_5YR_B25106_with_ann!X63","v":39},{"$f":"[1]ACS_16_5YR_B25106_with_ann!Y63","v":29},{"$f":"[1]ACS_16_5YR_B25106_with_ann!Z63","v":11},{"$f":"[1]ACS_16_5YR_B25106_with_ann!AA63","v":11},{"$f":"[1]ACS_16_5YR_B25106_with_ann!AB63","v":18},{"$f":"[1]ACS_16_5YR_B25106_with_ann!AC63","v":24},{"$f":"[1]ACS_16_5YR_B25106_with_ann!AD63","v":10},{"$f":"[1]ACS_16_5YR_B25106_with_ann!AE63","v":8},{"$f":"[1]ACS_16_5YR_B25106_with_ann!AF63","v":130},{"$f":"[1]ACS_16_5YR_B25106_with_ann!AG63","v":48},{"$f":"[1]ACS_16_5YR_B25106_with_ann!AH63","v":29},{"$f":"[1]ACS_16_5YR_B25106_with_ann!AI63","v":21},{"$f":"[1]ACS_16_5YR_B25106_with_ann!AJ63","v":29},{"$f":"[1]ACS_16_5YR_B25106_with_ann!AK63","v":19},{"$f":"[1]ACS_16_5YR_B25106_with_ann!AL63","v":72},{"$f":"[1]ACS_16_5YR_B25106_with_ann!AM63","v":36},{"$f":"[1]ACS_16_5YR_B25106_with_ann!AN63","v":234},{"$f":"[1]ACS_16_5YR_B25106_with_ann!AO63","v":71},{"$f":"[1]ACS_16_5YR_B25106_with_ann!AP63","v":178},{"$f":"[1]ACS_16_5YR_B25106_with_ann!AQ63","v":61},{"$f":"[1]ACS_16_5YR_B25106_with_ann!AR63","v":44},{"$f":"[1]ACS_16_5YR_B25106_with_ann!AS63","v":23},{"$f":"[1]ACS_16_5YR_B25106_with_ann!AT63","v":12},{"$f":"[1]ACS_16_5YR_B25106_with_ann!AU63","v":12},{"$f":"[1]ACS_16_5YR_B25106_with_ann!AV63","v":0},{"$f":"[1]ACS_16_5YR_B25106_with_ann!AW63","v":12},{"$f":"[1]ACS_16_5YR_B25106_with_ann!AX63","v":233},{"$f":"[1]ACS_16_5YR_B25106_with_ann!AY63","v":73},{"$f":"[1]ACS_16_5YR_B25106_with_ann!AZ63","v":14},{"$f":"[1]ACS_16_5YR_B25106_with_ann!BA63","v":16},{"$f":"[1]ACS_16_5YR_B25106_with_ann!BB63","v":7},{"$f":"[1]ACS_16_5YR_B25106_with_ann!BC63","v":11},{"$f":"[1]ACS_16_5YR_B25106_with_ann!BD63","v":0},{"$f":"[1]ACS_16_5YR_B25106_with_ann!BE63","v":12},{"$f":"[1]ACS_16_5YR_B25106_with_ann!BF63","v":7},{"$f":"[1]ACS_16_5YR_B25106_with_ann!BG63","v":10},{"$f":"[1]ACS_16_5YR_B25106_with_ann!BH63","v":99},{"$f":"[1]ACS_16_5YR_B25106_with_ann!BI63","v":48},{"$f":"[1]ACS_16_5YR_B25106_with_ann!BJ63","v":0},{"$f":"[1]ACS_16_5YR_B25106_with_ann!BK63","v":12},{"$f":"[1]ACS_16_5YR_B25106_with_ann!BL63","v":0},{"$f":"[1]ACS_16_5YR_B25106_with_ann!BM63","v":12},{"$f":"[1]ACS_16_5YR_B25106_with_ann!BN63","v":99},{"$f":"[1]ACS_16_5YR_B25106_with_ann!BO63","v":48},{"$f":"[1]ACS_16_5YR_B25106_with_ann!BP63","v":5},{"$f":"[1]ACS_16_5YR_B25106_with_ann!BQ63","v":7},{"$f":"[1]ACS_16_5YR_B25106_with_ann!BR63","v":0},{"$f":"[1]ACS_16_5YR_B25106_with_ann!BS63","v":12},{"$f":"[1]ACS_16_5YR_B25106_with_ann!BT63","v":5},{"$f":"[1]ACS_16_5YR_B25106_with_ann!BU63","v":7},{"$f":"[1]ACS_16_5YR_B25106_with_ann!BV63","v":0},{"$f":"[1]ACS_16_5YR_B25106_with_ann!BW63","v":12},{"$f":"[1]ACS_16_5YR_B25106_with_ann!BX63","v":31},{"$f":"[1]ACS_16_5YR_B25106_with_ann!BY63","v":24},{"$f":"[1]ACS_16_5YR_B25106_with_ann!BZ63","v":14},{"$f":"[1]ACS_16_5YR_B25106_with_ann!CA63","v":20},{"$f":"[1]ACS_16_5YR_B25106_with_ann!CB63","v":6},{"$f":"[1]ACS_16_5YR_B25106_with_ann!CC63","v":8},{"$f":"[1]ACS_16_5YR_B25106_with_ann!CD63","v":11},{"$f":"[1]ACS_16_5YR_B25106_with_ann!CE63","v":12},{"$f":"[1]ACS_16_5YR_B25106_with_ann!CF63","v":73},{"$f":"[1]ACS_16_5YR_B25106_with_ann!CG63","v":44},{"$f":"[1]ACS_16_5YR_B25106_with_ann!CH63","v":49},{"$f":"[1]ACS_16_5YR_B25106_with_ann!CI63","v":33},{"$f":"[1]ACS_16_5YR_B25106_with_ann!CJ63","v":24},{"$f":"[1]ACS_16_5YR_B25106_with_ann!CK63","v":27},{"$f":"[1]ACS_16_5YR_B25106_with_ann!CL63","v":0},{"$f":"[1]ACS_16_5YR_B25106_with_ann!CM63","v":12},{"$f":"[1]ACS_16_5YR_B25106_with_ann!CN63","v":0},{"$f":"[1]ACS_16_5YR_B25106_with_ann!CO63","v":12},{"$f":"[1]ACS_16_5YR_B25106_with_ann!CP63","v":11},{"$f":"[1]ACS_16_5YR_B25106_with_ann!CQ63","v":17}]
["06000US3300578420","0600000US3300582660","060",{"$f":"[1]ACS_16_5YR_B25106_with_ann!C64","v":"Walpole"},{"$f":"[1]ACS_16_5YR_B25106_with_ann!D64","v":1427},{"$f":"[1]ACS_16_5YR_B25106_with_ann!E64","v":121},{"$f":"[1]ACS_16_5YR_B25106_with_ann!F64","v":945},{"$f":"[1]ACS_16_5YR_B25106_with_ann!G64","v":130},{"$f":"[1]ACS_16_5YR_B25106_with_ann!H64","v":87},{"$f":"[1]ACS_16_5YR_B25106_with_ann!I64","v":80},{"$f":"[1]ACS_16_5YR_B25106_with_ann!J64","v":0},{"$f":"[1]ACS_16_5YR_B25106_with_ann!K64","v":12},{"$f":"[1]ACS_16_5YR_B25106_with_ann!L64","v":0},{"$f":"[1]ACS_16_5YR_B25106_with_ann!M64","v":12},{"$f":"[1]ACS_16_5YR_B25106_with_ann!N64","v":87},{"$f":"[1]ACS_16_5YR_B25106_with_ann!O64","v":80},{"$f":"[1]ACS_16_5YR_B25106_with_ann!P64","v":37},{"$f":"[1]ACS_16_5YR_B25106_with_ann!Q64","v":30},{"$f":"[1]ACS_16_5YR_B25106_with_ann!R64","v":0},{"$f":"[1]ACS_16_5YR_B25106_with_ann!S64","v":12},{"$f":"[1]ACS_16_5YR_B25106_with_ann!T64","v":7},{"$f":"[1]ACS_16_5YR_B25106_with_ann!U64","v":11},{"$f":"[1]ACS_16_5YR_B25106_with_ann!V64","v":30},{"$f":"[1]ACS_16_5YR_B25106_with_ann!W64","v":28},{"$f":"[1]ACS_16_5YR_B25106_with_ann!X64","v":74},{"$f":"[1]ACS_16_5YR_B25106_with_ann!Y64","v":59},{"$f":"[1]ACS_16_5YR_B25106_with_ann!Z64","v":12},{"$f":"[1]ACS_16_5YR_B25106_with_ann!AA64","v":15},{"$f":"[1]ACS_16_5YR_B25106_with_ann!AB64","v":7},{"$f":"[1]ACS_16_5YR_B25106_with_ann!AC64","v":13},{"$f":"[1]ACS_16_5YR_B25106_with_ann!AD64","v":55},{"$f":"[1]ACS_16_5YR_B25106_with_ann!AE64","v":56},{"$f":"[1]ACS_16_5YR_B25106_with_ann!AF64","v":130},{"$f":"[1]ACS_16_5YR_B25106_with_ann!AG64","v":61},{"$f":"[1]ACS_16_5YR_B25106_with_ann!AH64","v":51},{"$f":"[1]ACS_16_5YR_B25106_with_ann!AI64","v":34},{"$f":"[1]ACS_16_5YR_B25106_with_ann!AJ64","v":58},{"$f":"[1]ACS_16_5YR_B25106_with_ann!AK64","v":40},{"$f":"[1]ACS_16_5YR_B25106_with_ann!AL64","v":21},{"$f":"[1]ACS_16_5YR_B25106_with_ann!AM64","v":19},{"$f":"[1]ACS_16_5YR_B25106_with_ann!AN64","v":597},{"$f":"[1]ACS_16_5YR_B25106_with_ann!AO64","v":101},{"$f":"[1]ACS_16_5YR_B25106_with_ann!AP64","v":420},{"$f":"[1]ACS_16_5YR_B25106_with_ann!AQ64","v":99},{"$f":"[1]ACS_16_5YR_B25106_with_ann!AR64","v":136},{"$f":"[1]ACS_16_5YR_B25106_with_ann!AS64","v":67},{"$f":"[1]ACS_16_5YR_B25106_with_ann!AT64","v":41},{"$f":"[1]ACS_16_5YR_B25106_with_ann!AU64","v":29},{"$f":"[1]ACS_16_5YR_B25106_with_ann!AV64","v":20},{"$f":"[1]ACS_16_5YR_B25106_with_ann!AW64","v":32},{"$f":"[1]ACS_16_5YR_B25106_with_ann!AX64","v":482},{"$f":"[1]ACS_16_5YR_B25106_with_ann!AY64","v":141},{"$f":"[1]ACS_16_5YR_B25106_with_ann!AZ64","v":110},{"$f":"[1]ACS_16_5YR_B25106_with_ann!BA64","v":90},{"$f":"[1]ACS_16_5YR_B25106_with_ann!BB64","v":0},{"$f":"[1]ACS_16_5YR_B25106_with_ann!BC64","v":12},{"$f":"[1]ACS_16_5YR_B25106_with_ann!BD64","v":21},{"$f":"[1]ACS_16_5YR_B25106_with_ann!BE64","v":32},{"$f":"[1]ACS_16_5YR_B25106_with_ann!BF64","v":89},{"$f":"[1]ACS_16_5YR_B25106_with_ann!BG64","v":84},{"$f":"[1]ACS_16_5YR_B25106_with_ann!BH64","v":19},{"$f":"[1]ACS_16_5YR_B25106_with_ann!BI64","v":21},{"$f":"[1]ACS_16_5YR_B25106_with_ann!BJ64","v":0},{"$f":"[1]ACS_16_5YR_B25106_with_ann!BK64","v":12},{"$f":"[1]ACS_16_5YR_B25106_with_ann!BL64","v":0},{"$f":"[1]ACS_16_5YR_B25106_with_ann!BM64","v":12},{"$f":"[1]ACS_16_5YR_B25106_with_ann!BN64","v":19},{"$f":"[1]ACS_16_5YR_B25106_with_ann!BO64","v":21},{"$f":"[1]ACS_16_5YR_B25106_with_ann!BP64","v":67},{"$f":"[1]ACS_16_5YR_B25106_with_ann!BQ64","v":64},{"$f":"[1]ACS_16_5YR_B25106_with_ann!BR64","v":0},{"$f":"[1]ACS_16_5YR_B25106_with_ann!BS64","v":12},{"$f":"[1]ACS_16_5YR_B25106_with_ann!BT64","v":22},{"$f":"[1]ACS_16_5YR_B25106_with_ann!BU64","v":32},{"$f":"[1]ACS_16_5YR_B25106_with_ann!BV64","v":45},{"$f":"[1]ACS_16_5YR_B25106_with_ann!BW64","v":56},{"$f":"[1]ACS_16_5YR_B25106_with_ann!BX64","v":85},{"$f":"[1]ACS_16_5YR_B25106_with_ann!BY64","v":57},{"$f":"[1]ACS_16_5YR_B25106_with_ann!BZ64","v":12},{"$f":"[1]ACS_16_5YR_B25106_with_ann!CA64","v":16},{"$f":"[1]ACS_16_5YR_B25106_with_ann!CB64","v":66},{"$f":"[1]ACS_16_5YR_B25106_with_ann!CC64","v":51},{"$f":"[1]ACS_16_5YR_B25106_with_ann!CD64","v":7},{"$f":"[1]ACS_16_5YR_B25106_with_ann!CE64","v":10},{"$f":"[1]ACS_16_5YR_B25106_with_ann!CF64","v":174},{"$f":"[1]ACS_16_5YR_B25106_with_ann!CG64","v":81},{"$f":"[1]ACS_16_5YR_B25106_with_ann!CH64","v":174},{"$f":"[1]ACS_16_5YR_B25106_with_ann!CI64","v":81},{"$f":"[1]ACS_16_5YR_B25106_with_ann!CJ64","v":0},{"$f":"[1]ACS_16_5YR_B25106_with_ann!CK64","v":12},{"$f":"[1]ACS_16_5YR_B25106_with_ann!CL64","v":0},{"$f":"[1]ACS_16_5YR_B25106_with_ann!CM64","v":12},{"$f":"[1]ACS_16_5YR_B25106_with_ann!CN64","v":0},{"$f":"[1]ACS_16_5YR_B25106_with_ann!CO64","v":12},{"$f":"[1]ACS_16_5YR_B25106_with_ann!CP64","v":27},{"$f":"[1]ACS_16_5YR_B25106_with_ann!CQ64","v":30}]
["06000US3300582660","0600000US3300585540","060",{"$f":"[1]ACS_16_5YR_B25106_with_ann!C65","v":"Westmoreland"},{"$f":"[1]ACS_16_5YR_B25106_with_ann!D65","v":885},{"$f":"[1]ACS_16_5YR_B25106_with_ann!E65","v":182},{"$f":"[1]ACS_16_5YR_B25106_with_ann!F65","v":787},{"$f":"[1]ACS_16_5YR_B25106_with_ann!G65","v":179},{"$f":"[1]ACS_16_5YR_B25106_with_ann!H65","v":38},{"$f":"[1]ACS_16_5YR_B25106_with_ann!I65","v":45},{"$f":"[1]ACS_16_5YR_B25106_with_ann!J65","v":0},{"$f":"[1]ACS_16_5YR_B25106_with_ann!K65","v":12},{"$f":"[1]ACS_16_5YR_B25106_with_ann!L65","v":0},{"$f":"[1]ACS_16_5YR_B25106_with_ann!M65","v":12},{"$f":"[1]ACS_16_5YR_B25106_with_ann!N65","v":38},{"$f":"[1]ACS_16_5YR_B25106_with_ann!O65","v":45},{"$f":"[1]ACS_16_5YR_B25106_with_ann!P65","v":47},{"$f":"[1]ACS_16_5YR_B25106_with_ann!Q65","v":33},{"$f":"[1]ACS_16_5YR_B25106_with_ann!R65","v":0},{"$f":"[1]ACS_16_5YR_B25106_with_ann!S65","v":12},{"$f":"[1]ACS_16_5YR_B25106_with_ann!T65","v":3},{"$f":"[1]ACS_16_5YR_B25106_with_ann!U65","v":5},{"$f":"[1]ACS_16_5YR_B25106_with_ann!V65","v":44},{"$f":"[1]ACS_16_5YR_B25106_with_ann!W65","v":33},{"$f":"[1]ACS_16_5YR_B25106_with_ann!X65","v":42},{"$f":"[1]ACS_16_5YR_B25106_with_ann!Y65","v":24},{"$f":"[1]ACS_16_5YR_B25106_with_ann!Z65","v":6},{"$f":"[1]ACS_16_5YR_B25106_with_ann!AA65","v":8},{"$f":"[1]ACS_16_5YR_B25106_with_ann!AB65","v":4},{"$f":"[1]ACS_16_5YR_B25106_with_ann!AC65","v":6},{"$f":"[1]ACS_16_5YR_B25106_with_ann!AD65","v":32},{"$f":"[1]ACS_16_5YR_B25106_with_ann!AE65","v":21},{"$f":"[1]ACS_16_5YR_B25106_with_ann!AF65","v":110},{"$f":"[1]ACS_16_5YR_B25106_with_ann!AG65","v":57},{"$f":"[1]ACS_16_5YR_B25106_with_ann!AH65","v":15},{"$f":"[1]ACS_16_5YR_B25106_with_ann!AI65","v":11},{"$f":"[1]ACS_16_5YR_B25106_with_ann!AJ65","v":34},{"$f":"[1]ACS_16_5YR_B25106_with_ann!AK65","v":22},{"$f":"[1]ACS_16_5YR_B25106_with_ann!AL65","v":61},{"$f":"[1]ACS_16_5YR_B25106_with_ann!AM65","v":58},{"$f":"[1]ACS_16_5YR_B25106_with_ann!AN65","v":478},{"$f":"[1]ACS_16_5YR_B25106_with_ann!AO65","v":102},{"$f":"[1]ACS_16_5YR_B25106_with_ann!AP65","v":274},{"$f":"[1]ACS_16_5YR_B25106_with_ann!AQ65","v":62},{"$f":"[1]ACS_16_5YR_B25106_with_ann!AR65","v":184},{"$f":"[1]ACS_16_5YR_B25106_with_ann!AS65","v":83},{"$f":"[1]ACS_16_5YR_B25106_with_ann!AT65","v":20},{"$f":"[1]ACS_16_5YR_B25106_with_ann!AU65","v":13},{"$f":"[1]ACS_16_5YR_B25106_with_ann!AV65","v":72},{"$f":"[1]ACS_16_5YR_B25106_with_ann!AW65","v":99},{"$f":"[1]ACS_16_5YR_B25106_with_ann!AX65","v":98},{"$f":"[1]ACS_16_5YR_B25106_with_ann!AY65","v":54},{"$f":"[1]ACS_16_5YR_B25106_with_ann!AZ65","v":9},{"$f":"[1]ACS_16_5YR_B25106_with_ann!BA65","v":14},{"$f":"[1]ACS_16_5YR_B25106_with_ann!BB65","v":0},{"$f":"[1]ACS_16_5YR_B25106_with_ann!BC65","v":12},{"$f":"[1]ACS_16_5YR_B25106_with_ann!BD65","v":0},{"$f":"[1]ACS_16_5YR_B25106_with_ann!BE65","v":12},{"$f":"[1]ACS_16_5YR_B25106_with_ann!BF65","v":9},{"$f":"[1]ACS_16_5YR_B25106_with_ann!BG65","v":14},{"$f":"[1]ACS_16_5YR_B25106_with_ann!BH65","v":19},{"$f":"[1]ACS_16_5YR_B25106_with_ann!BI65","v":19},{"$f":"[1]ACS_16_5YR_B25106_with_ann!BJ65","v":0},{"$f":"[1]ACS_16_5YR_B25106_with_ann!BK65","v":12},{"$f":"[1]ACS_16_5YR_B25106_with_ann!BL65","v":10},{"$f":"[1]ACS_16_5YR_B25106_with_ann!BM65","v":17},{"$f":"[1]ACS_16_5YR_B25106_with_ann!BN65","v":9},{"$f":"[1]ACS_16_5YR_B25106_with_ann!BO65","v":7},{"$f":"[1]ACS_16_5YR_B25106_with_ann!BP65","v":8},{"$f":"[1]ACS_16_5YR_B25106_with_ann!BQ65","v":15},{"$f":"[1]ACS_16_5YR_B25106_with_ann!BR65","v":0},{"$f":"[1]ACS_16_5YR_B25106_with_ann!BS65","v":12},{"$f":"[1]ACS_16_5YR_B25106_with_ann!BT65","v":0},{"$f":"[1]ACS_16_5YR_B25106_with_ann!BU65","v":12},{"$f":"[1]ACS_16_5YR_B25106_with_ann!BV65","v":8},{"$f":"[1]ACS_16_5YR_B25106_with_ann!BW65","v":15},{"$f":"[1]ACS_16_5YR_B25106_with_ann!BX65","v":19},{"$f":"[1]ACS_16_5YR_B25106_with_ann!BY65","v":22},{"$f":"[1]ACS_16_5YR_B25106_with_ann!BZ65","v":0},{"$f":"[1]ACS_16_5YR_B25106_with_ann!CA65","v":12},{"$f":"[1]ACS_16_5YR_B25106_with_ann!CB65","v":15},{"$f":"[1]ACS_16_5YR_B25106_with_ann!CC65","v":20},{"$f":"[1]ACS_16_5YR_B25106_with_ann!CD65","v":4},{"$f":"[1]ACS_16_5YR_B25106_with_ann!CE65","v":6},{"$f":"[1]ACS_16_5YR_B25106_with_ann!CF65","v":24},{"$f":"[1]ACS_16_5YR_B25106_with_ann!CG65","v":27},{"$f":"[1]ACS_16_5YR_B25106_with_ann!CH65","v":22},{"$f":"[1]ACS_16_5YR_B25106_with_ann!CI65","v":27},{"$f":"[1]ACS_16_5YR_B25106_with_ann!CJ65","v":2},{"$f":"[1]ACS_16_5YR_B25106_with_ann!CK65","v":5},{"$f":"[1]ACS_16_5YR_B25106_with_ann!CL65","v":0},{"$f":"[1]ACS_16_5YR_B25106_with_ann!CM65","v":12},{"$f":"[1]ACS_16_5YR_B25106_with_ann!CN65","v":0},{"$f":"[1]ACS_16_5YR_B25106_with_ann!CO65","v":12},{"$f":"[1]ACS_16_5YR_B25106_with_ann!CP65","v":19},{"$f":"[1]ACS_16_5YR_B25106_with_ann!CQ65","v":19}]
["06000US3300585540","0600000US3300500820","060",{"$f":"[1]ACS_16_5YR_B25106_with_ann!C66","v":"Winchester"},{"$f":"[1]ACS_16_5YR_B25106_with_ann!D66","v":1617},{"$f":"[1]ACS_16_5YR_B25106_with_ann!E66","v":146},{"$f":"[1]ACS_16_5YR_B25106_with_ann!F66","v":1052},{"$f":"[1]ACS_16_5YR_B25106_with_ann!G66","v":163},{"$f":"[1]ACS_16_5YR_B25106_with_ann!H66","v":64},{"$f":"[1]ACS_16_5YR_B25106_with_ann!I66","v":39},{"$f":"[1]ACS_16_5YR_B25106_with_ann!J66","v":0},{"$f":"[1]ACS_16_5YR_B25106_with_ann!K66","v":12},{"$f":"[1]ACS_16_5YR_B25106_with_ann!L66","v":15},{"$f":"[1]ACS_16_5YR_B25106_with_ann!M66","v":24},{"$f":"[1]ACS_16_5YR_B25106_with_ann!N66","v":49},{"$f":"[1]ACS_16_5YR_B25106_with_ann!O66","v":32},{"$f":"[1]ACS_16_5YR_B25106_with_ann!P66","v":116},{"$f":"[1]ACS_16_5YR_B25106_with_ann!Q66","v":60},{"$f":"[1]ACS_16_5YR_B25106_with_ann!R66","v":21},{"$f":"[1]ACS_16_5YR_B25106_with_ann!S66","v":25},{"$f":"[1]ACS_16_5YR_B25106_with_ann!T66","v":39},{"$f":"[1]ACS_16_5YR_B25106_with_ann!U66","v":37},{"$f":"[1]ACS_16_5YR_B25106_with_ann!V66","v":56},{"$f":"[1]ACS_16_5YR_B25106_with_ann!W66","v":42},{"$f":"[1]ACS_16_5YR_B25106_with_ann!X66","v":156},{"$f":"[1]ACS_16_5YR_B25106_with_ann!Y66","v":76},{"$f":"[1]ACS_16_5YR_B25106_with_ann!Z66","v":15},{"$f":"[1]ACS_16_5YR_B25106_with_ann!AA66","v":20},{"$f":"[1]ACS_16_5YR_B25106_with_ann!AB66","v":27},{"$f":"[1]ACS_16_5YR_B25106_with_ann!AC66","v":25},{"$f":"[1]ACS_16_5YR_B25106_with_ann!AD66","v":114},{"$f":"[1]ACS_16_5YR_B25106_with_ann!AE66","v":68},{"$f":"[1]ACS_16_5YR_B25106_with_ann!AF66","v":182},{"$f":"[1]ACS_16_5YR_B25106_with_ann!AG66","v":84},{"$f":"[1]ACS_16_5YR_B25106_with_ann!AH66","v":61},{"$f":"[1]ACS_16_5YR_B25106_with_ann!AI66","v":49},{"$f":"[1]ACS_16_5YR_B25106_with_ann!AJ66","v":58},{"$f":"[1]ACS_16_5YR_B25106_with_ann!AK66","v":60},{"$f":"[1]ACS_16_5YR_B25106_with_ann!AL66","v":63},{"$f":"[1]ACS_16_5YR_B25106_with_ann!AM66","v":43},{"$f":"[1]ACS_16_5YR_B25106_with_ann!AN66","v":534},{"$f":"[1]ACS_16_5YR_B25106_with_ann!AO66","v":98},{"$f":"[1]ACS_16_5YR_B25106_with_ann!AP66","v":432},{"$f":"[1]ACS_16_5YR_B25106_with_ann!AQ66","v":100},{"$f":"[1]ACS_16_5YR_B25106_with_ann!AR66","v":91},{"$f":"[1]ACS_16_5YR_B25106_with_ann!AS66","v":66},{"$f":"[1]ACS_16_5YR_B25106_with_ann!AT66","v":11},{"$f":"[1]ACS_16_5YR_B25106_with_ann!AU66","v":16},{"$f":"[1]ACS_16_5YR_B25106_with_ann!AV66","v":0},{"$f":"[1]ACS_16_5YR_B25106_with_ann!AW66","v":12},{"$f":"[1]ACS_16_5YR_B25106_with_ann!AX66","v":565},{"$f":"[1]ACS_16_5YR_B25106_with_ann!AY66","v":145},{"$f":"[1]ACS_16_5YR_B25106_with_ann!AZ66","v":113},{"$f":"[1]ACS_16_5YR_B25106_with_ann!BA66","v":54},{"$f":"[1]ACS_16_5YR_B25106_with_ann!BB66","v":0},{"$f":"[1]ACS_16_5YR_B25106_with_ann!BC66","v":12},{"$f":"[1]ACS_16_5YR_B25106_with_ann!BD66","v":46},{"$f":"[1]ACS_16_5YR_B25106_with_ann!BE66","v":56},{"$f":"[1]ACS_16_5YR_B25106_with_ann!BF66","v":67},{"$f":"[1]ACS_16_5YR_B25106_with_ann!BG66","v":39},{"$f":"[1]ACS_16_5YR_B25106_with_ann!BH66","v":114},{"$f":"[1]ACS_16_5YR_B25106_with_ann!BI66","v":85},{"$f":"[1]ACS_16_5YR_B25106_with_ann!BJ66","v":0},{"$f":"[1]ACS_16_5YR_B25106_with_ann!BK66","v":12},{"$f":"[1]ACS_16_5YR_B25106_with_ann!BL66","v":0},{"$f":"[1]ACS_16_5YR_B25106_with_ann!BM66","v":12},{"$f":"[1]ACS_16_5YR_B25106_with_ann!BN66","v":114},{"$f":"[1]ACS_16_5YR_B25106_with_ann!BO66","v":85},{"$f":"[1]ACS_16_5YR_B25106_with_ann!BP66","v":132},{"$f":"[1]ACS_16_5YR_B25106_with_ann!BQ66","v":72},{"$f":"[1]ACS_16_5YR_B25106_with_ann!BR66","v":0},{"$f":"[1]ACS_16_5YR_B25106_with_ann!BS66","v":12},{"$f":"[1]ACS_16_5YR_B25106_with_ann!BT66","v":77},{"$f":"[1]ACS_16_5YR_B25106_with_ann!BU66","v":61},{"$f":"[1]ACS_16_5YR_B25106_with_ann!BV66","v":55},{"$f":"[1]ACS_16_5YR_B25106_with_ann!BW66","v":40},{"$f":"[1]ACS_16_5YR_B25106_with_ann!BX66","v":101},{"$f":"[1]ACS_16_5YR_B25106_with_ann!BY66","v":78},{"$f":"[1]ACS_16_5YR_B25106_with_ann!BZ66","v":33},{"$f":"[1]ACS_16_5YR_B25106_with_ann!CA66","v":37},{"$f":"[1]ACS_16_5YR_B25106_with_ann!CB66","v":42},{"$f":"[1]ACS_16_5YR_B25106_with_ann!CC66","v":48},{"$f":"[1]ACS_16_5YR_B25106_with_ann!CD66","v":26},{"$f":"[1]ACS_16_5YR_B25106_with_ann!CE66","v":31},{"$f":"[1]ACS_16_5YR_B25106_with_ann!CF66","v":47},{"$f":"[1]ACS_16_5YR_B25106_with_ann!CG66","v":50},{"$f":"[1]ACS_16_5YR_B25106_with_ann!CH66","v":47},{"$f":"[1]ACS_16_5YR_B25106_with_ann!CI66","v":50},{"$f":"[1]ACS_16_5YR_B25106_with_ann!CJ66","v":0},{"$f":"[1]ACS_16_5YR_B25106_with_ann!CK66","v":12},{"$f":"[1]ACS_16_5YR_B25106_with_ann!CL66","v":0},{"$f":"[1]ACS_16_5YR_B25106_with_ann!CM66","v":12},{"$f":"[1]ACS_16_5YR_B25106_with_ann!CN66","v":16},{"$f":"[1]ACS_16_5YR_B25106_with_ann!CO66","v":26},{"$f":"[1]ACS_16_5YR_B25106_with_ann!CP66","v":42},{"$f":"[1]ACS_16_5YR_B25106_with_ann!CQ66","v":51}]
[]
[]
[]
[null,null,null,null,{"$f":"$D$3","v":"Alstead"},null,{"$f":"$D$4","v":"Chesterfield"},null,{"$f":"$D$5","v":"Dublin"},null,{"$f":"$D$6","v":"Fitzwilliam"},null,{"$f":"$D$7","v":"Gilsum"},null,{"$f":"$D$8","v":"Harrisville"},null,{"$f":"$D$9","v":"Hinsdale"},null,{"$f":"$D$10","v":"Jaffrey"},null,{"$f":"$D$11","v":"Keene"},null,{"$f":"$D$12","v":"Marlborough"},null,{"$f":"$D$13","v":"Marlow"},null,{"$f":"$D$14","v":"Nelson"},null,{"$f":"$D$15","v":"Richmond"},null,{"$f":"$D$16","v":"Rindge"},null,{"$f":"$D$17","v":"Roxbury"},null,{"$f":"$D$18","v":"Stoddard"},null,{"$f":"$D$19","v":"Sullivan"},null,{"$f":"$D$20","v":"Surry"},null,{"$f":"$D$21","v":"Swanzey"},null,{"$f":"$D$22","v":"Troy"},null,{"$f":"$D$23","v":"Walpole"},null,{"$f":"$D$24","v":"Westmoreland"},null,{"$f":"$D$25","v":"Winchester"}]
[null,null,null,null,"Alstead","Margin of Error","Chesterfield","Margin of Error","Dublin","Margin of Error","Fitzwilliam","Margin of Error","Gilsum","Margin of Error","Harrisville","Margin of Error","Hinsdale","Margin of Error","Jaffrey","Margin of Error","Keene","Margin of Error","Marlborough","Margin of Error","Marlow","Margin of Error","Nelson","Margin of Error","Richmond","Margin of Error","Rindge","Margin of Error","Roxbury","Margin of Error","Stoddard","Margin of Error","Sullivan","Margin of Error","Surry","Margin of Error","Swanzey","Margin of Error","Troy","Margin of Error","Walpole","Margin of Error","Westmoreland","Margin of Error","Winchester","Margin of Error"]
[null,null,null,"Estimate!!Total:",723,97,1366,158,635,101,1013,154,310,51,416,75,1594,139,2026,225,9259,370,942,130,314,61,246,41,393,73,1972,144,95,37,436,52,281,53,344,58,3255,171,758,101,1427,121,885,182,1617,146]
[null,null,null,"Estimate!!Total:!!Owner-occupied housing units:",507,86,1227,184,530,99,957,154,285,50,386,73,1373,192,1580,229,4762,346,608,113,279,56,225,42,383,72,1711,137,94,38,405,49,240,46,324,59,2237,250,525,81,945,130,787,179,1052,163]
[null,null,null,"Estimate!!Total:!!Owner-occupied housing units:!!Less than $20",50,31,57,56,49,54,112,55,22,14,13,11,3,5,17,26,339,125,28,26,21,16,6,5,34,26,64,43,1,2,10,13,17,12,8,8,74,77,41,31,87,80,38,45,64,39]
[null,null,null,"Estimate!!Total:!!Owner-occupied housing units:!!Less than $20,000:!!Less than 20 percent",0,12,0,12,0,12,0,12,0,12,3,4,0,12,0,17,0,22,0,12,0,12,0,12,0,12,0,17,0,12,0,12,0,12,0,12,0,17,0,12,0,12,0,12,0,12]
[null,null,null,"Estimate!!Total:!!Owner-occupied housing units:!!Less than $20,000:!!20 to 29 percent",0,12,0,12,1,2,6,9,6,7,0,12,0,12,0,17,15,26,0,12,0,12,0,12,4,6,0,17,0,12,0,12,0,12,0,12,13,21,0,12,0,12,0,12,15,24]
[null,null,null,"Estimate!!Total:!!Owner-occupied housing units:!!Less than $20,000:!!30 percent or more",50,31,57,56,48,54,106,54,16,13,10,10,3,5,17,26,324,122,28,26,21,16,6,5,30,25,64,43,1,2,10,13,17,12,8,8,61,72,41,31,87,80,38,45,49,32]
[null,null,null,"Estimate!!Total:!!Owner-occupied housing units:!!$20,000 to $34,999:",75,55,86,91,8,8,80,47,14,10,18,12,138,55,132,98,362,142,51,27,22,13,18,14,25,15,78,53,12,9,32,14,8,7,19,15,95,58,81,45,37,30,47,33,116,60]
[null,null,null,"Estimate!!Total:!!Owner-occupied housing units:!!$20,000 to $34,999:!!Less than 20 percent",16,21,0,12,0,12,4,7,0,12,0,12,11,16,0,17,29,33,3,7,0,12,0,12,0,12,0,17,2,3,6,5,2,3,0,12,8,16,19,25,0,12,0,12,21,25]
[null,null,null,"Estimate!!Total:!!Owner-occupied housing units:!!$20,000 to $34,999:!!20 to 29 percent",12,10,0,12,2,3,6,7,2,3,0,12,17,21,64,76,59,73,14,14,6,6,7,11,0,12,14,22,2,4,0,12,0,12,7,6,0,17,13,13,7,11,3,5,39,37]
[null,null,null,"Estimate!!Total:!!Owner-occupied housing units:!!$20,000 to $34,999:!!30 percent or more",47,55,86,91,6,7,70,47,12,9,18,12,110,52,68,58,274,111,34,22,16,12,11,10,25,15,64,50,8,8,26,14,6,7,12,14,87,54,49,35,30,28,44,33,56,42]
[null,null,null,"Estimate!!Total:!!Owner-occupied housing units:!!$35,000 to $49,999:",42,22,115,101,26,23,93,43,48,30,51,23,159,100,39,35,362,155,33,29,16,13,11,7,34,19,184,115,9,7,26,15,18,9,45,32,230,98,39,29,74,59,42,24,156,76]
[null,null,null,"Estimate!!Total:!!Owner-occupied housing units:!!$35,000 to $49,999:!!Less than 20 percent",26,20,20,30,7,11,22,15,18,14,30,21,59,92,0,17,91,105,0,12,6,6,4,4,7,8,6,9,2,3,7,6,3,4,14,14,36,41,11,11,12,15,6,8,15,20]
[null,null,null,"Estimate!!Total:!!Owner-occupied housing units:!!$35,000 to $49,999:!!20 to 29 percent",6,7,85,89,3,4,9,9,5,6,9,7,22,22,13,20,155,95,25,26,8,11,3,4,10,12,46,46,2,3,3,3,11,7,3,4,40,36,18,24,7,13,4,6,27,25]
[null,null,null,"Estimate!!Total:!!Owner-occupied housing units:!!$35,000 to $49,999:!!30 percent or more",10,10,10,19,16,20,62,38,25,27,12,8,78,54,26,30,116,66,8,11,2,4,4,4,17,11,132,102,5,4,16,13,4,4,28,28,154,86,10,8,55,56,32,21,114,68]
[null,null,null,"Estimate!!Total:!!Owner-occupied housing units:!!$50,000 to $74,999:",94,49,119,97,69,28,158,59,64,23,66,34,458,212,379,232,620,170,109,50,36,18,41,17,69,32,269,98,27,35,87,28,34,14,44,21,445,162,130,48,130,61,110,57,182,84]
[null,null,null,"Estimate!!Total:!!Owner-occupied housing units:!!$50,000 to $74,999:!!Less than 20 percent",35,27,33,45,7,8,44,25,23,13,26,22,275,181,9,15,237,146,29,18,23,12,17,11,18,13,52,40,3,4,21,12,8,7,17,16,186,111,29,21,51,34,15,11,61,49]
[null,null,null,"Estimate!!Total:!!Owner-occupied housing units:!!$50,000 to $74,999:!!20 to 29 percent",39,40,18,27,18,13,14,13,15,13,15,10,138,88,297,222,170,74,44,39,4,4,7,5,14,10,46,34,2,3,36,19,15,11,13,11,132,91,29,19,58,40,34,22,58,60]
[null,null,null,"Estimate!!Total:!!Owner-occupied housing units:!!$50,000 to $74,999:!!30 percent or more",20,14,68,76,44,28,100,52,26,15,25,24,45,47,73,63,213,95,36,26,9,12,17,11,37,27,171,89,22,35,30,16,11,8,14,11,127,90,72,36,21,19,61,58,63,43]
[null,null,null,"Estimate!!Total:!!Owner-occupied housing units:!!$75,000 or more:",246,46,850,145,378,83,514,128,137,36,238,61,615,143,1001,196,3079,316,381,101,182,49,147,36,221,61,1116,157,45,15,248,48,163,36,208,50,1381,272,234,71,597,101,478,102,534,98]
[null,null,null,"Estimate!!Total:!!Owner-occupied housing units:!!$75,000 or more:!!Less than 20 percent",188,40,563,152,300,85,369,111,102,30,172,48,513,127,651,184,2111,296,268,77,141,44,103,28,150,46,757,154,35,13,190,45,117,32,165,49,934,249,178,61,420,99,274,62,432,100]
[null,null,null,"Estimate!!Total:!!Owner-occupied housing units:!!$75,000 or more:!!20 to 29 percent",50,18,223,127,67,23,95,40,27,15,60,32,102,68,298,100,712,133,113,74,30,19,28,12,33,22,284,106,10,10,42,18,41,22,34,15,405,144,44,23,136,67,184,83,91,66]
[null,null,null,"Estimate!!Total:!!Owner-occupied housing units:!!$75,000 or more:!!30 percent or more",8,10,64,67,11,9,50,33,8,10,6,6,0,12,52,46,256,158,0,12,11,12,16,10,38,31,75,56,0,12,16,14,5,5,9,6,42,39,12,12,41,29,20,13,11,16]
[null,null,null,"Estimate!!Total:!!Owner-occupied housing units:!!Zero or negative income",0,12,0,12,0,12,0,12,0,12,0,12,0,12,12,19,0,22,6,9,2,3,2,3,0,12,0,17,0,12,2,4,0,12,0,12,12,21,0,12,20,32,72,99,0,12]
[null,null,null,"Estimate!!Total:!!Renter-occupied housing units:",216,81,139,90,105,41,56,29,25,14,30,15,221,105,446,167,4497,356,334,92,35,29,21,11,10,9,261,119,1,3,31,18,41,21,20,9,1018,252,233,73,482,141,98,54,565,145]
[null,null,null,"Estimate!!Total:!!Renter-occupied housing units:!!Less than $20,000:",41,47,0,12,4,5,15,14,0,12,0,12,43,52,73,58,958,220,53,38,0,12,0,12,0,12,27,33,0,12,0,12,0,12,0,12,281,132,14,16,110,90,9,14,113,54]
[null,null,null,"Estimate!!Total:!!Renter-occupied housing units:!!Less than $20,000:!!Less than 20 percent",0,12,0,12,0,12,0,12,0,12,0,12,0,12,0,17,72,83,0,12,0,12,0,12,0,12,0,17,0,12,0,12,0,12,0,12,0,17,7,11,0,12,0,12,0,12]
[null,null,null,"Estimate!!Total:!!Renter-occupied housing units:!!Less than $20,000:!!20 to 29 percent",0,12,0,12,0,12,0,12,0,12,0,12,0,12,28,42,217,109,19,21,0,12,0,12,0,12,0,17,0,12,0,12,0,12,0,12,84,74,0,12,21,32,0,12,46,56]
[null,null,null,"Estimate!!Total:!!Renter-occupied housing units:!!Less than $20,000:!!30 percent or more",41,47,0,12,4,5,15,14,0,12,0,12,43,52,45,41,669,188,34,29,0,12,0,12,0,12,27,33,0,12,0,12,0,12,0,12,197,106,7,10,89,84,9,14,67,39]
[null,null,null,"Estimate!!Total:!!Renter-occupied housing units:!!$20,000 to $34,999:",33,30,33,45,14,12,0,12,3,4,4,5,38,33,95,65,647,191,134,78,7,10,4,5,0,12,39,31,0,12,0,12,7,7,2,3,251,173,99,48,19,21,19,19,114,85]
[null,null,null,"Estimate!!Total:!!Renter-occupied housing units:!!$20,000 to $34,999:!!Less than 20 percent",0,12,0,12,0,12,0,12,0,12,0,12,15,23,0,17,0,22,6,9,0,12,0,12,0,12,0,17,0,12,0,12,0,12,0,12,14,23,0,12,0,12,0,12,0,12]
[null,null,null,"Estimate!!Total:!!Renter-occupied housing units:!!$20,000 to $34,999:!!20 to 29 percent",20,29,0,12,2,3,0,12,0,12,0,12,0,12,31,39,86,61,16,12,0,12,0,12,0,12,0,17,0,12,0,12,0,12,0,12,0,17,0,12,0,12,10,17,0,12]
[null,null,null,"Estimate!!Total:!!Renter-occupied housing units:!!$20,000 to $34,999:!!30 percent or more",13,11,33,45,12,12,0,12,3,4,4,5,23,26,64,57,561,192,112,77,7,10,4,5,0,12,39,31,0,12,0,12,7,7,2,3,237,175,99,48,19,21,9,7,114,85]
[null,null,null,"Estimate!!Total:!!Renter-occupied housing units:!!$35,000 to $49,999:",22,20,20,32,12,13,3,5,8,7,0,12,9,14,21,27,658,188,26,19,6,7,2,3,0,12,0,17,0,12,0,12,3,4,0,12,98,80,5,7,67,64,8,15,132,72]
[null,null,null,"Estimate!!Total:!!Renter-occupied housing units:!!$35,000 to $49,999:!!Less than 20 percent",0,12,0,12,0,12,0,12,0,12,0,12,0,12,0,17,35,44,0,12,2,3,0,12,0,12,0,17,0,12,0,12,0,12,0,12,0,17,0,12,0,12,0,12,0,12]
[null,null,null,"Estimate!!Total:!!Renter-occupied housing units:!!$35,000 to $49,999:!!20 to 29 percent",5,7,20,32,3,4,0,12,2,4,0,12,9,14,0,17,198,117,16,14,0,12,2,3,0,12,0,17,0,12,0,12,0,12,0,12,20,24,5,7,22,32,0,12,77,61]
[null,null,null,"Estimate!!Total:!!Renter-occupied housing units:!!$35,000 to $49,999:!!30 percent or more",17,19,0,12,9,12,3,5,6,7,0,12,0,12,21,27,425,150,10,12,4,6,0,12,0,12,0,17,0,12,0,12,3,4,0,12,78,74,0,12,45,56,8,15,55,40]
[null,null,null,"Estimate!!Total:!!Renter-occupied housing units:!!$50,000 to $74,999:",44,38,0,12,16,23,0,12,12,11,10,8,21,26,167,124,816,203,40,31,0,12,4,4,0,12,99,82,0,12,9,14,19,19,3,4,150,93,31,24,85,57,19,22,101,78]
[null,null,null,"Estimate!!Total:!!Renter-occupied housing units:!!$50,000 to $74,999:!!Less than 20 percent",15,21,0,12,0,12,0,12,0,12,3,4,8,14,61,66,151,95,12,15,0,12,0,12,0,12,39,58,0,12,0,12,17,19,0,12,0,17,14,20,12,16,0,12,33,37]
[null,null,null,"Estimate!!Total:!!Renter-occupied housing units:!!$50,000 to $74,999:!!20 to 29 percent",8,8,0,12,16,23,0,12,10,11,3,5,13,22,32,33,418,152,24,25,0,12,4,4,0,12,49,57,0,12,0,12,0,12,3,4,132,90,6,8,66,51,15,20,42,48]
[null,null,null,"Estimate!!Total:!!Renter-occupied housing units:!!$50,000 to $74,999:!!30 percent or more",21,31,0,12,0,12,0,12,2,2,4,6,0,12,74,91,247,101,4,7,0,12,0,12,0,12,11,18,0,12,9,14,2,3,0,12,18,30,11,12,7,10,4,6,26,31]
[null,null,null,"Estimate!!Total:!!Renter-occupied housing units:!!$75,000 or more:",27,19,27,33,18,15,23,27,2,3,14,13,82,80,73,80,1312,261,65,41,14,23,11,10,7,8,75,51,0,12,14,9,11,8,11,6,203,112,73,44,174,81,24,27,47,50]
[null,null,null,"Estimate!!Total:!!Renter-occupied housing units:!!$75,000 or more:!!Less than 20 percent",27,19,27,33,15,15,16,25,0,12,9,12,82,80,60,78,879,257,57,40,14,23,7,8,7,8,38,33,0,12,12,9,11,8,5,5,39,36,49,33,174,81,22,27,47,50]
[null,null,null,"Estimate!!Total:!!Renter-occupied housing units:!!$75,000 or more:!!20 to 29 percent",0,12,0,12,3,4,7,7,2,3,5,6,0,12,13,21,416,145,8,9,0,12,4,4,0,12,37,37,0,12,2,3,0,12,6,5,164,112,24,27,0,12,2,5,0,12]
[null,null,null,"Estimate!!Total:!!Renter-occupied housing units:!!$75,000 or more:!!30 percent or more",0,12,0,12,0,12,0,12,0,12,0,12,0,12,0,17,17,28,0,12,0,12,0,12,0,12,0,17,0,12,0,12,0,12,0,12,0,17,0,12,0,12,0,12,0,12]
[null,null,null,"Estimate!!Total:!!Renter-occupied housing units:!!Zero or negative income",0,12,0,12,9,12,0,12,0,12,0,12,0,12,0,17,53,80,0,12,0,12,0,12,0,12,0,17,0,12,0,12,0,12,0,12,0,17,0,12,0,12,0,12,16,26]
[null,null,null,"Estimate!!Total:!!Renter-occupied housing units:!!No cash rent",49,40,59,66,32,19,15,15,0,12,2,3,28,42,17,28,53,58,16,13,8,6,0,12,3,6,21,27,1,3,8,9,1,4,4,5,35,34,11,17,27,30,19,19,42,51]

{"sheet":"SData_B25118_B25119HHIncByTen","index":108,"n_rows":59,"n_cols":60,"rows_kept":59,"cut":false,"hidden":true,"merged":[]}
["GEO_ID","GEO_ID2","SUMLEVEL","GEO_NAME",{"$f":"[1]ACS_16_5YR_B25118_with_ann!D1","v":"B25118_001E"},{"$f":"[1]ACS_16_5YR_B25118_with_ann!E1","v":"B25118_001M"},{"$f":"[1]ACS_16_5YR_B25118_with_ann!F1","v":"B25118_002E"},{"$f":"[1]ACS_16_5YR_B25118_with_ann!G1","v":"B25118_002M"},{"$f":"[1]ACS_16_5YR_B25118_with_ann!H1","v":"B25118_003E"},{"$f":"[1]ACS_16_5YR_B25118_with_ann!I1","v":"B25118_003M"},{"$f":"[1]ACS_16_5YR_B25118_with_ann!J1","v":"B25118_004E"},{"$f":"[1]ACS_16_5YR_B25118_with_ann!K1","v":"B25118_004M"},{"$f":"[1]ACS_16_5YR_B25118_with_ann!L1","v":"B25118_005E"},{"$f":"[1]ACS_16_5YR_B25118_with_ann!M1","v":"B25118_005M"},{"$f":"[1]ACS_16_5YR_B25118_with_ann!N1","v":"B25118_006E"},{"$f":"[1]ACS_16_5YR_B25118_with_ann!O1","v":"B25118_006M"},{"$f":"[1]ACS_16_5YR_B25118_with_ann!P1","v":"B25118_007E"},{"$f":"[1]ACS_16_5YR_B25118_with_ann!Q1","v":"B25118_007M"},{"$f":"[1]ACS_16_5YR_B25118_with_ann!R1","v":"B25118_008E"},{"$f":"[1]ACS_16_5YR_B25118_with_ann!S1","v":"B25118_008M"},{"$f":"[1]ACS_16_5YR_B25118_with_ann!T1","v":"B25118_009E"},{"$f":"[1]ACS_16_5YR_B25118_with_ann!U1","v":"B25118_009M"},{"$f":"[1]ACS_16_5YR_B25118_with_ann!V1","v":"B25118_010E"},{"$f":"[1]ACS_16_5YR_B25118_with_ann!W1","v":"B25118_010M"},{"$f":"[1]ACS_16_5YR_B25118_with_ann!X1","v":"B25118_011E"},{"$f":"[1]ACS_16_5YR_B25118_with_ann!Y1","v":"B25118_011M"},{"$f":"[1]ACS_16_5YR_B25118_with_ann!Z1","v":"B25118_012E"},{"$f":"[1]ACS_16_5YR_B25118_with_ann!AA1","v":"B25118_012M"},{"$f":"[1]ACS_16_5YR_B25118_with_ann!AB1","v":"B25118_013E"},{"$f":"[1]ACS_16_5YR_B25118_with_ann!AC1","v":"B25118_013M"},{"$f":"[1]ACS_16_5YR_B25118_with_ann!AD1","v":"B25118_014E"},{"$f":"[1]ACS_16_5YR_B25118_with_ann!AE1","v":"B25118_014M"},{"$f":"[1]ACS_16_5YR_B25118_with_ann!AF1","v":"B25118_015E"},{"$f":"[1]ACS_16_5YR_B25118_with_ann!AG1","v":"B25118_015M"},{"$f":"[1]ACS_16_5YR_B25118_with_ann!AH1","v":"B25118_016E"},{"$f":"[1]ACS_16_5YR_B25118_with_ann!AI1","v":"B25118_016M"},{"$f":"[1]ACS_16_5YR_B25118_with_ann!AJ1","v":"B25118_017E"},{"$f":"[1]ACS_16_5YR_B25118_with_ann!AK1","v":"B25118_017M"},{"$f":"[1]ACS_16_5YR_B25118_with_ann!AL1","v":"B25118_018E"},{"$f":"[1]ACS_16_5YR_B25118_with_ann!AM1","v":"B25118_018M"},{"$f":"[1]ACS_16_5YR_B25118_with_ann!AN1","v":"B25118_019E"},{"$f":"[1]ACS_16_5YR_B25118_with_ann!AO1","v":"B25118_019M"},{"$f":"[1]ACS_16_5YR_B25118_with_ann!AP1","v":"B25118_020E"},{"$f":"[1]ACS_16_5YR_B25118_with_ann!AQ1","v":"B25118_020M"},{"$f":"[1]ACS_16_5YR_B25118_with_ann!AR1","v":"B25118_021E"},{"$f":"[1]ACS_16_5YR_B25118_with_ann!AS1","v":"B25118_021M"},{"$f":"[1]ACS_16_5YR_B25118_with_ann!AT1","v":"B25118_022E"},{"$f":"[1]ACS_16_5YR_B25118_with_ann!AU1","v":"B25118_022M"},{"$f":"[1]ACS_16_5YR_B25118_with_ann!AV1","v":"B25118_023E"},{"$f":"[1]ACS_16_5YR_B25118_with_ann!AW1","v":"B25118_023M"},{"$f":"[1]ACS_16_5YR_B25118_with_ann!AX1","v":"B25118_024E"},{"$f":"[1]ACS_16_5YR_B25118_with_ann!AY1","v":"B25118_024M"},{"$f":"[1]ACS_16_5YR_B25118_with_ann!AZ1","v":"B25118_025E"},{"$f":"[1]ACS_16_5YR_B25118_with_ann!BA1","v":"B25118_025M"},{"$f":"[1]ACS_16_5YR_B25119_with_ann!D1","v":"B25119_001E"},{"$f":"[1]ACS_16_5YR_B25119_with_ann!E1","v":"B25119_001M"},{"$f":"[1]ACS_16_5YR_B25119_with_ann!F1","v":"B25119_002E"},{"$f":"[1]ACS_16_5YR_B25119_with_ann!G1","v":"B25119_002M"},{"$f":"[1]ACS_16_5YR_B25119_with_ann!H1","v":"B25119_003E"},{"$f":"[1]ACS_16_5YR_B25119_with_ann!I1","v":"B25119_003M"}]
["Geography Identifier","Geography Identifier","Geographic Summary Level","Geography",{"$f":"[1]ACS_16_5YR_B25118_with_ann!D2","v":"Estimate!!Total:"},{"$f":"[1]ACS_16_5YR_B25118_with_ann!E2","v":"Margin of Error!!Total:"},{"$f":"[1]ACS_16_5YR_B25118_with_ann!F2","v":"Estimate!!Total:!!Owner occupied:"},{"$f":"[1]ACS_16_5YR_B25118_with_ann!G2","v":"Margin of Error!!Total:!!Owner occupied:"},{"$f":"[1]ACS_16_5YR_B25118_with_ann!H2","v":"Estimate!!Total:!!Owner occupied:!!Less than $5,000"},{"$f":"[1]ACS_16_5YR_B25118_with_ann!I2","v":"Margin of Error!!Total:!!Owner occupied:!!Less than $5,000"},{"$f":"[1]ACS_16_5YR_B25118_with_ann!J2","v":"Estimate!!Total:!!Owner occupied:!!$5,000 to $9,999"},{"$f":"[1]ACS_16_5YR_B25118_with_ann!K2","v":"Margin of Error!!Total:!!Owner occupied:!!$5,000 to $9,999"},{"$f":"[1]ACS_16_5YR_B25118_with_ann!L2","v":"Estimate!!Total:!!Owner occupied:!!$10,000 to $14,999"},{"$f":"[1]ACS_16_5YR_B25118_with_ann!M2","v":"Margin of Error!!Total:!!Owner occupied:!!$10,000 to $14,999"},{"$f":"[1]ACS_16_5YR_B25118_with_ann!N2","v":"Estimate!!Total:!!Owner occupied:!!$15,000 to $19,999"},{"$f":"[1]ACS_16_5YR_B25118_with_ann!O2","v":"Margin of Error!!Total:!!Owner occupied:!!$15,000 to $19,999"},{"$f":"[1]ACS_16_5YR_B25118_with_ann!P2","v":"Estimate!!Total:!!Owner occupied:!!$20,000 to $24,999"},{"$f":"[1]ACS_16_5YR_B25118_with_ann!Q2","v":"Margin of Error!!Total:!!Owner occupied:!!$20,000 to $24,999"},{"$f":"[1]ACS_16_5YR_B25118_with_ann!R2","v":"Estimate!!Total:!!Owner occupied:!!$25,000 to $34,999"},{"$f":"[1]ACS_16_5YR_B25118_with_ann!S2","v":"Margin of Error!!Total:!!Owner occupied:!!$25,000 to $34,999"},{"$f":"[1]ACS_16_5YR_B25118_with_ann!T2","v":"Estimate!!Total:!!Owner occupied:!!$35,000 to $49,999"},{"$f":"[1]ACS_16_5YR_B25118_with_ann!U2","v":"Margin of Error!!Total:!!Owner occupied:!!$35,000 to $49,999"},{"$f":"[1]ACS_16_5YR_B25118_with_ann!V2","v":"Estimate!!Total:!!Owner occupied:!!$50,000 to $74,999"},{"$f":"[1]ACS_16_5YR_B25118_with_ann!W2","v":"Margin of Error!!Total:!!Owner occupied:!!$50,000 to $74,999"},{"$f":"[1]ACS_16_5YR_B25118_with_ann!X2","v":"Estimate!!Total:!!Owner occupied:!!$75,000 to $99,999"},{"$f":"[1]ACS_16_5YR_B25118_with_ann!Y2","v":"Margin of Error!!Total:!!Owner occupied:!!$75,000 to $99,999"},{"$f":"[1]ACS_16_5YR_B25118_with_ann!Z2","v":"Estimate!!Total:!!Owner occupied:!!$100,000 to $149,999"},{"$f":"[1]ACS_16_5YR_B25118_with_ann!AA2","v":"Margin of Error!!Total:!!Owner occupied:!!$100,000 to $149,999"},{"$f":"[1]ACS_16_5YR_B25118_with_ann!AB2","v":"Estimate!!Total:!!Owner occupied:!!$150,000 or more"},{"$f":"[1]ACS_16_5YR_B25118_with_ann!AC2","v":"Margin of Error!!Total:!!Owner occupied:!!$150,000 or more"},{"$f":"[1]ACS_16_5YR_B25118_with_ann!AD2","v":"Estimate!!Total:!!Renter occupied:"},{"$f":"[1]ACS_16_5YR_B25118_with_ann!AE2","v":"Margin of Error!!Total:!!Renter occupied:"},{"$f":"[1]ACS_16_5YR_B25118_with_ann!AF2","v":"Estimate!!Total:!!Renter occupied:!!Less than $5,000"},{"$f":"[1]ACS_16_5YR_B25118_with_ann!AG2","v":"Margin of Error!!Total:!!Renter occupied:!!Less than $5,000"},{"$f":"[1]ACS_16_5YR_B25118_with_ann!AH2","v":"Estimate!!Total:!!Renter occupied:!!$5,000 to $9,999"},{"$f":"[1]ACS_16_5YR_B25118_with_ann!AI2","v":"Margin of Error!!Total:!!Renter occupied:!!$5,000 to $9,999"},{"$f":"[1]ACS_16_5YR_B25118_with_ann!AJ2","v":"Estimate!!Total:!!Renter occupied:!!$10,000 to $14,999"},{"$f":"[1]ACS_16_5YR_B25118_with_ann!AK2","v":"Margin of Error!!Total:!!Renter occupied:!!$10,000 to $14,999"},{"$f":"[1]ACS_16_5YR_B25118_with_ann!AL2","v":"Estimate!!Total:!!Renter occupied:!!$15,000 to $19,999"},{"$f":"[1]ACS_16_5YR_B25118_with_ann!AM2","v":"Margin of Error!!Total:!!Renter occupied:!!$15,000 to $19,999"},{"$f":"[1]ACS_16_5YR_B25118_with_ann!AN2","v":"Estimate!!Total:!!Renter occupied:!!$20,000 to $24,999"},{"$f":"[1]ACS_16_5YR_B25118_with_ann!AO2","v":"Margin of Error!!Total:!!Renter occupied:!!$20,000 to $24,999"},{"$f":"[1]ACS_16_5YR_B25118_with_ann!AP2","v":"Estimate!!Total:!!Renter occupied:!!$25,000 to $34,999"},{"$f":"[1]ACS_16_5YR_B25118_with_ann!AQ2","v":"Margin of Error!!Total:!!Renter occupied:!!$25,000 to $34,999"},{"$f":"[1]ACS_16_5YR_B25118_with_ann!AR2","v":"Estimate!!Total:!!Renter occupied:!!$35,000 to $49,999"},{"$f":"[1]ACS_16_5YR_B25118_with_ann!AS2","v":"Margin of Error!!Total:!!Renter occupied:!!$35,000 to $49,999"},{"$f":"[1]ACS_16_5YR_B25118_with_ann!AT2","v":"Estimate!!Total:!!Renter occupied:!!$50,000 to $74,999"},{"$f":"[1]ACS_16_5YR_B25118_with_ann!AU2","v":"Margin of Error!!Total:!!Renter occupied:!!$50,000 to $74,999"},{"$f":"[1]ACS_16_5YR_B25118_with_ann!AV2","v":"Estimate!!Total:!!Renter occupied:!!$75,000 to $99,999"},{"$f":"[1]ACS_16_5YR_B25118_with_ann!AW2","v":"Margin of Error!!Total:!!Renter occupied:!!$75,000 to $99,999"},{"$f":"[1]ACS_16_5YR_B25118_with_ann!AX2","v":"Estimate!!Total:!!Renter occupied:!!$100,000 to $149,999"},{"$f":"[1]ACS_16_5YR_B25118_with_ann!AY2","v":"Margin of Error!!Total:!!Renter occupied:!!$100,000 to $149,999"},{"$f":"[1]ACS_16_5YR_B25118_with_ann!AZ2","v":"Estimate!!Total:!!Renter occupied:!!$150,000 or more"},{"$f":"[1]ACS_16_5YR_B25118_with_ann!BA2","v":"Margin of Error!!Total:!!Renter occupied:!!$150,000 or more"},{"$f":"[1]ACS_16_5YR_B25119_with_ann!D2","v":"Estimate!!Median household income in the past 12 months (in 2022 inflation-adjusted dollars) --!!Total:"},{"$f":"[1]ACS_16_5YR_B25119_with_ann!E2","v":"Margin of Error!!Median household income in the past 12 months (in 2022 inflation-adjusted dollars) --!!Total:"},{"$f":"[1]ACS_16_5YR_B25119_with_ann!F2","v":"Estimate!!Median household income in the past 12 months (in 2022 inflation-adjusted dollars) --!!Total:!!Owner occupied (dollars)"},{"$f":"[1]ACS_16_5YR_B25119_with_ann!G2","v":"Margin of Error!!Median household income in the past 12 months (in 2022 inflation-adjusted dollars) --!!Total:!!Owner occupied (dollars)"},{"$f":"[1]ACS_16_5YR_B25119_with_ann!H2","v":"Estimate!!Median household income in the past 12 months (in 2022 inflation-adjusted dollars) --!!Total:!!Renter occupied (dollars)"},{"$f":"[1]ACS_16_5YR_B25119_with_ann!I2","v":"Margin of Error!!Median household income in the past 12 months (in 2022 inflation-adjusted dollars) --!!Total:!!Renter occupied (dollars)"}]
["06000US3300500820","0600000US3300512260","060",{"$f":"[1]ACS_16_5YR_B25118_with_ann!C44","v":"Alstead"},{"$f":"[1]ACS_16_5YR_B25118_with_ann!D44","v":723},{"$f":"[1]ACS_16_5YR_B25118_with_ann!E44","v":97},{"$f":"[1]ACS_16_5YR_B25118_with_ann!F44","v":507},{"$f":"[1]ACS_16_5YR_B25118_with_ann!G44","v":86},{"$f":"[1]ACS_16_5YR_B25118_with_ann!H44","v":6},{"$f":"[1]ACS_16_5YR_B25118_with_ann!I44","v":8},{"$f":"[1]ACS_16_5YR_B25118_with_ann!J44","v":20},{"$f":"[1]ACS_16_5YR_B25118_with_ann!K44","v":26},{"$f":"[1]ACS_16_5YR_B25118_with_ann!L44","v":7},{"$f":"[1]ACS_16_5YR_B25118_with_ann!M44","v":9},{"$f":"[1]ACS_16_5YR_B25118_with_ann!N44","v":17},{"$f":"[1]ACS_16_5YR_B25118_with_ann!O44","v":13},{"$f":"[1]ACS_16_5YR_B25118_with_ann!P44","v":49},{"$f":"[1]ACS_16_5YR_B25118_with_ann!Q44","v":52},{"$f":"[1]ACS_16_5YR_B25118_with_ann!R44","v":26},{"$f":"[1]ACS_16_5YR_B25118_with_ann!S44","v":23},{"$f":"[1]ACS_16_5YR_B25118_with_ann!T44","v":42},{"$f":"[1]ACS_16_5YR_B25118_with_ann!U44","v":22},{"$f":"[1]ACS_16_5YR_B25118_with_ann!V44","v":94},{"$f":"[1]ACS_16_5YR_B25118_with_ann!W44","v":49},{"$f":"[1]ACS_16_5YR_B25118_with_ann!X44","v":68},{"$f":"[1]ACS_16_5YR_B25118_with_ann!Y44","v":30},{"$f":"[1]ACS_16_5YR_B25118_with_ann!Z44","v":84},{"$f":"[1]ACS_16_5YR_B25118_with_ann!AA44","v":29},{"$f":"[1]ACS_16_5YR_B25118_with_ann!AB44","v":94},{"$f":"[1]ACS_16_5YR_B25118_with_ann!AC44","v":30},{"$f":"[1]ACS_16_5YR_B25118_with_ann!AD44","v":216},{"$f":"[1]ACS_16_5YR_B25118_with_ann!AE44","v":81},{"$f":"[1]ACS_16_5YR_B25118_with_ann!AF44","v":28},{"$f":"[1]ACS_16_5YR_B25118_with_ann!AG44","v":38},{"$f":"[1]ACS_16_5YR_B25118_with_ann!AH44","v":0},{"$f":"[1]ACS_16_5YR_B25118_with_ann!AI44","v":12},{"$f":"[1]ACS_16_5YR_B25118_with_ann!AJ44","v":40},{"$f":"[1]ACS_16_5YR_B25118_with_ann!AK44","v":48},{"$f":"[1]ACS_16_5YR_B25118_with_ann!AL44","v":6},{"$f":"[1]ACS_16_5YR_B25118_with_ann!AM44","v":8},{"$f":"[1]ACS_16_5YR_B25118_with_ann!AN44","v":24},{"$f":"[1]ACS_16_5YR_B25118_with_ann!AO44","v":30},{"$f":"[1]ACS_16_5YR_B25118_with_ann!AP44","v":9},{"$f":"[1]ACS_16_5YR_B25118_with_ann!AQ44","v":9},{"$f":"[1]ACS_16_5YR_B25118_with_ann!AR44","v":28},{"$f":"[1]ACS_16_5YR_B25118_with_ann!AS44","v":22},{"$f":"[1]ACS_16_5YR_B25118_with_ann!AT44","v":50},{"$f":"[1]ACS_16_5YR_B25118_with_ann!AU44","v":40},{"$f":"[1]ACS_16_5YR_B25118_with_ann!AV44","v":6},{"$f":"[1]ACS_16_5YR_B25118_with_ann!AW44","v":8},{"$f":"[1]ACS_16_5YR_B25118_with_ann!AX44","v":20},{"$f":"[1]ACS_16_5YR_B25118_with_ann!AY44","v":18},{"$f":"[1]ACS_16_5YR_B25118_with_ann!AZ44","v":5},{"$f":"[1]ACS_16_5YR_B25118_with_ann!BA44","v":8},{"$f":"[1]ACS_16_5YR_B25119_with_ann!D44","v":52957},{"$f":"[1]ACS_16_5YR_B25119_with_ann!E44","v":3261},{"$f":"[1]ACS_16_5YR_B25119_with_ann!F44","v":70750},{"$f":"[1]ACS_16_5YR_B25119_with_ann!G44","v":30611},{"$f":"[1]ACS_16_5YR_B25119_with_ann!H44","v":37727},{"$f":"[1]ACS_16_5YR_B25119_with_ann!I44","v":31230}]
["06000US3300512260","0600000US3300519140","060",{"$f":"[1]ACS_16_5YR_B25118_with_ann!C45","v":"Chesterfield"},{"$f":"[1]ACS_16_5YR_B25118_with_ann!D45","v":1366},{"$f":"[1]ACS_16_5YR_B25118_with_ann!E45","v":158},{"$f":"[1]ACS_16_5YR_B25118_with_ann!F45","v":1227},{"$f":"[1]ACS_16_5YR_B25118_with_ann!G45","v":184},{"$f":"[1]ACS_16_5YR_B25118_with_ann!H45","v":0},{"$f":"[1]ACS_16_5YR_B25118_with_ann!I45","v":12},{"$f":"[1]ACS_16_5YR_B25118_with_ann!J45","v":0},{"$f":"[1]ACS_16_5YR_B25118_with_ann!K45","v":12},{"$f":"[1]ACS_16_5YR_B25118_with_ann!L45","v":18},{"$f":"[1]ACS_16_5YR_B25118_with_ann!M45","v":29},{"$f":"[1]ACS_16_5YR_B25118_with_ann!N45","v":39},{"$f":"[1]ACS_16_5YR_B25118_with_ann!O45","v":39},{"$f":"[1]ACS_16_5YR_B25118_with_ann!P45","v":33},{"$f":"[1]ACS_16_5YR_B25118_with_ann!Q45","v":38},{"$f":"[1]ACS_16_5YR_B25118_with_ann!R45","v":53},{"$f":"[1]ACS_16_5YR_B25118_with_ann!S45","v":80},{"$f":"[1]ACS_16_5YR_B25118_with_ann!T45","v":115},{"$f":"[1]ACS_16_5YR_B25118_with_ann!U45","v":101},{"$f":"[1]ACS_16_5YR_B25118_with_ann!V45","v":119},{"$f":"[1]ACS_16_5YR_B25118_with_ann!W45","v":97},{"$f":"[1]ACS_16_5YR_B25118_with_ann!X45","v":99},{"$f":"[1]ACS_16_5YR_B25118_with_ann!Y45","v":78},{"$f":"[1]ACS_16_5YR_B25118_with_ann!Z45","v":390},{"$f":"[1]ACS_16_5YR_B25118_with_ann!AA45","v":151},{"$f":"[1]ACS_16_5YR_B25118_with_ann!AB45","v":361},{"$f":"[1]ACS_16_5YR_B25118_with_ann!AC45","v":143},{"$f":"[1]ACS_16_5YR_B25118_with_ann!AD45","v":139},{"$f":"[1]ACS_16_5YR_B25118_with_ann!AE45","v":90},{"$f":"[1]ACS_16_5YR_B25118_with_ann!AF45","v":0},{"$f":"[1]ACS_16_5YR_B25118_with_ann!AG45","v":12},{"$f":"[1]ACS_16_5YR_B25118_with_ann!AH45","v":0},{"$f":"[1]ACS_16_5YR_B25118_with_ann!AI45","v":12},{"$f":"[1]ACS_16_5YR_B25118_with_ann!AJ45","v":0},{"$f":"[1]ACS_16_5YR_B25118_with_ann!AK45","v":12},{"$f":"[1]ACS_16_5YR_B25118_with_ann!AL45","v":0},{"$f":"[1]ACS_16_5YR_B25118_with_ann!AM45","v":12},{"$f":"[1]ACS_16_5YR_B25118_with_ann!AN45","v":0},{"$f":"[1]ACS_16_5YR_B25118_with_ann!AO45","v":12},{"$f":"[1]ACS_16_5YR_B25118_with_ann!AP45","v":70},{"$f":"[1]ACS_16_5YR_B25118_with_ann!AQ45","v":71},{"$f":"[1]ACS_16_5YR_B25118_with_ann!AR45","v":20},{"$f":"[1]ACS_16_5YR_B25118_with_ann!AS45","v":32},{"$f":"[1]ACS_16_5YR_B25118_with_ann!AT45","v":22},{"$f":"[1]ACS_16_5YR_B25118_with_ann!AU45","v":34},{"$f":"[1]ACS_16_5YR_B25118_with_ann!AV45","v":9},{"$f":"[1]ACS_16_5YR_B25118_with_ann!AW45","v":19},{"$f":"[1]ACS_16_5YR_B25118_with_ann!AX45","v":0},{"$f":"[1]ACS_16_5YR_B25118_with_ann!AY45","v":12},{"$f":"[1]ACS_16_5YR_B25118_with_ann!AZ45","v":18},{"$f":"[1]ACS_16_5YR_B25118_with_ann!BA45","v":27},{"$f":"[1]ACS_16_5YR_B25119_with_ann!D45","v":109500},{"$f":"[1]ACS_16_5YR_B25119_with_ann!E45","v":14674},{"$f":"[1]ACS_16_5YR_B25119_with_ann!F45","v":111607},{"$f":"[1]ACS_16_5YR_B25119_with_ann!G45","v":21913},{"$f":"[1]ACS_16_5YR_B25119_with_ann!H45","v":34966},{"$f":"[1]ACS_16_5YR_B25119_with_ann!I45","v":31691}]
["06000US3300519140","0600000US3300526500","060",{"$f":"[1]ACS_16_5YR_B25118_with_ann!C46","v":"Dublin"},{"$f":"[1]ACS_16_5YR_B25118_with_ann!D46","v":635},{"$f":"[1]ACS_16_5YR_B25118_with_ann!E46","v":101},{"$f":"[1]ACS_16_5YR_B25118_with_ann!F46","v":530},{"$f":"[1]ACS_16_5YR_B25118_with_ann!G46","v":99},{"$f":"[1]ACS_16_5YR_B25118_with_ann!H46","v":12},{"$f":"[1]ACS_16_5YR_B25118_with_ann!I46","v":10},{"$f":"[1]ACS_16_5YR_B25118_with_ann!J46","v":0},{"$f":"[1]ACS_16_5YR_B25118_with_ann!K46","v":12},{"$f":"[1]ACS_16_5YR_B25118_with_ann!L46","v":34},{"$f":"[1]ACS_16_5YR_B25118_with_ann!M46","v":53},{"$f":"[1]ACS_16_5YR_B25118_with_ann!N46","v":3},{"$f":"[1]ACS_16_5YR_B25118_with_ann!O46","v":3},{"$f":"[1]ACS_16_5YR_B25118_with_ann!P46","v":0},{"$f":"[1]ACS_16_5YR_B25118_with_ann!Q46","v":12},{"$f":"[1]ACS_16_5YR_B25118_with_ann!R46","v":8},{"$f":"[1]ACS_16_5YR_B25118_with_ann!S46","v":8},{"$f":"[1]ACS_16_5YR_B25118_with_ann!T46","v":26},{"$f":"[1]ACS_16_5YR_B25118_with_ann!U46","v":23},{"$f":"[1]ACS_16_5YR_B25118_with_ann!V46","v":69},{"$f":"[1]ACS_16_5YR_B25118_with_ann!W46","v":28},{"$f":"[1]ACS_16_5YR_B25118_with_ann!X46","v":106},{"$f":"[1]ACS_16_5YR_B25118_with_ann!Y46","v":65},{"$f":"[1]ACS_16_5YR_B25118_with_ann!Z46","v":92},{"$f":"[1]ACS_16_5YR_B25118_with_ann!AA46","v":29},{"$f":"[1]ACS_16_5YR_B25118_with_ann!AB46","v":180},{"$f":"[1]ACS_16_5YR_B25118_with_ann!AC46","v":47},{"$f":"[1]ACS_16_5YR_B25118_with_ann!AD46","v":105},{"$f":"[1]ACS_16_5YR_B25118_with_ann!AE46","v":41},{"$f":"[1]ACS_16_5YR_B25118_with_ann!AF46","v":12},{"$f":"[1]ACS_16_5YR_B25118_with_ann!AG46","v":13},{"$f":"[1]ACS_16_5YR_B25118_with_ann!AH46","v":0},{"$f":"[1]ACS_16_5YR_B25118_with_ann!AI46","v":12},{"$f":"[1]ACS_16_5YR_B25118_with_ann!AJ46","v":7},{"$f":"[1]ACS_16_5YR_B25118_with_ann!AK46","v":7},{"$f":"[1]ACS_16_5YR_B25118_with_ann!AL46","v":0},{"$f":"[1]ACS_16_5YR_B25118_with_ann!AM46","v":12},{"$f":"[1]ACS_16_5YR_B25118_with_ann!AN46","v":9},{"$f":"[1]ACS_16_5YR_B25118_with_ann!AO46","v":8},{"$f":"[1]ACS_16_5YR_B25118_with_ann!AP46","v":17},{"$f":"[1]ACS_16_5YR_B25118_with_ann!AQ46","v":13},{"$f":"[1]ACS_16_5YR_B25118_with_ann!AR46","v":12},{"$f":"[1]ACS_16_5YR_B25118_with_ann!AS46","v":13},{"$f":"[1]ACS_16_5YR_B25118_with_ann!AT46","v":22},{"$f":"[1]ACS_16_5YR_B25118_with_ann!AU46","v":24},{"$f":"[1]ACS_16_5YR_B25118_with_ann!AV46","v":3},{"$f":"[1]ACS_16_5YR_B25118_with_ann!AW46","v":4},{"$f":"[1]ACS_16_5YR_B25118_with_ann!AX46","v":23},{"$f":"[1]ACS_16_5YR_B25118_with_ann!AY46","v":21},{"$f":"[1]ACS_16_5YR_B25118_with_ann!AZ46","v":0},{"$f":"[1]ACS_16_5YR_B25118_with_ann!BA46","v":12},{"$f":"[1]ACS_16_5YR_B25119_with_ann!D46","v":96463},{"$f":"[1]ACS_16_5YR_B25119_with_ann!E46","v":5718},{"$f":"[1]ACS_16_5YR_B25119_with_ann!F46","v":101250},{"$f":"[1]ACS_16_5YR_B25119_with_ann!G46","v":15206},{"$f":"[1]ACS_16_5YR_B25119_with_ann!H46","v":48750},{"$f":"[1]ACS_16_5YR_B25119_with_ann!I46","v":34676}]
["06000US3300526500","0600000US3300529220","060",{"$f":"[1]ACS_16_5YR_B25118_with_ann!C47","v":"Fitzwilliam"},{"$f":"[1]ACS_16_5YR_B25118_with_ann!D47","v":1013},{"$f":"[1]ACS_16_5YR_B25118_with_ann!E47","v":154},{"$f":"[1]ACS_16_5YR_B25118_with_ann!F47","v":957},{"$f":"[1]ACS_16_5YR_B25118_with_ann!G47","v":154},{"$f":"[1]ACS_16_5YR_B25118_with_ann!H47","v":37},{"$f":"[1]ACS_16_5YR_B25118_with_ann!I47","v":33},{"$f":"[1]ACS_16_5YR_B25118_with_ann!J47","v":9},{"$f":"[1]ACS_16_5YR_B25118_with_ann!K47","v":10},{"$f":"[1]ACS_16_5YR_B25118_with_ann!L47","v":37},{"$f":"[1]ACS_16_5YR_B25118_with_ann!M47","v":32},{"$f":"[1]ACS_16_5YR_B25118_with_ann!N47","v":29},{"$f":"[1]ACS_16_5YR_B25118_with_ann!O47","v":29},{"$f":"[1]ACS_16_5YR_B25118_with_ann!P47","v":19},{"$f":"[1]ACS_16_5YR_B25118_with_ann!Q47","v":21},{"$f":"[1]ACS_16_5YR_B25118_with_ann!R47","v":61},{"$f":"[1]ACS_16_5YR_B25118_with_ann!S47","v":37},{"$f":"[1]ACS_16_5YR_B25118_with_ann!T47","v":93},{"$f":"[1]ACS_16_5YR_B25118_with_ann!U47","v":43},{"$f":"[1]ACS_16_5YR_B25118_with_ann!V47","v":158},{"$f":"[1]ACS_16_5YR_B25118_with_ann!W47","v":59},{"$f":"[1]ACS_16_5YR_B25118_with_ann!X47","v":179},{"$f":"[1]ACS_16_5YR_B25118_with_ann!Y47","v":103},{"$f":"[1]ACS_16_5YR_B25118_with_ann!Z47","v":154},{"$f":"[1]ACS_16_5YR_B25118_with_ann!AA47","v":51},{"$f":"[1]ACS_16_5YR_B25118_with_ann!AB47","v":181},{"$f":"[1]ACS_16_5YR_B25118_with_ann!AC47","v":53},{"$f":"[1]ACS_16_5YR_B25118_with_ann!AD47","v":56},{"$f":"[1]ACS_16_5YR_B25118_with_ann!AE47","v":29},{"$f":"[1]ACS_16_5YR_B25118_with_ann!AF47","v":13},{"$f":"[1]ACS_16_5YR_B25118_with_ann!AG47","v":13},{"$f":"[1]ACS_16_5YR_B25118_with_ann!AH47","v":0},{"$f":"[1]ACS_16_5YR_B25118_with_ann!AI47","v":12},{"$f":"[1]ACS_16_5YR_B25118_with_ann!AJ47","v":7},{"$f":"[1]ACS_16_5YR_B25118_with_ann!AK47","v":10},{"$f":"[1]ACS_16_5YR_B25118_with_ann!AL47","v":0},{"$f":"[1]ACS_16_5YR_B25118_with_ann!AM47","v":12},{"$f":"[1]ACS_16_5YR_B25118_with_ann!AN47","v":0},{"$f":"[1]ACS_16_5YR_B25118_with_ann!AO47","v":12},{"$f":"[1]ACS_16_5YR_B25118_with_ann!AP47","v":4},{"$f":"[1]ACS_16_5YR_B25118_with_ann!AQ47","v":6},{"$f":"[1]ACS_16_5YR_B25118_with_ann!AR47","v":3},{"$f":"[1]ACS_16_5YR_B25118_with_ann!AS47","v":5},{"$f":"[1]ACS_16_5YR_B25118_with_ann!AT47","v":0},{"$f":"[1]ACS_16_5YR_B25118_with_ann!AU47","v":12},{"$f":"[1]ACS_16_5YR_B25118_with_ann!AV47","v":7},{"$f":"[1]ACS_16_5YR_B25118_with_ann!AW47","v":7},{"$f":"[1]ACS_16_5YR_B25118_with_ann!AX47","v":22},{"$f":"[1]ACS_16_5YR_B25118_with_ann!AY47","v":22},{"$f":"[1]ACS_16_5YR_B25118_with_ann!AZ47","v":0},{"$f":"[1]ACS_16_5YR_B25118_with_ann!BA47","v":12},{"$f":"[1]ACS_16_5YR_B25119_with_ann!D47","v":85733},{"$f":"[1]ACS_16_5YR_B25119_with_ann!E47","v":19127},{"$f":"[1]ACS_16_5YR_B25119_with_ann!F47","v":85905},{"$f":"[1]ACS_16_5YR_B25119_with_ann!G47","v":19580},{"$f":"[1]ACS_16_5YR_B25119_with_ann!H47","v":"-"},{"$f":"[1]ACS_16_5YR_B25119_with_ann!I47","v":"**"}]
["06000US3300529220","0600000US3300534420","060",{"$f":"[1]ACS_16_5YR_B25118_with_ann!C48","v":"Gilsum"},{"$f":"[1]ACS_16_5YR_B25118_with_ann!D48","v":310},{"$f":"[1]ACS_16_5YR_B25118_with_ann!E48","v":51},{"$f":"[1]ACS_16_5YR_B25118_with_ann!F48","v":285},{"$f":"[1]ACS_16_5YR_B25118_with_ann!G48","v":50},{"$f":"[1]ACS_16_5YR_B25118_with_ann!H48","v":0},{"$f":"[1]ACS_16_5YR_B25118_with_ann!I48","v":12},{"$f":"[1]ACS_16_5YR_B25118_with_ann!J48","v":2},{"$f":"[1]ACS_16_5YR_B25118_with_ann!K48","v":4},{"$f":"[1]ACS_16_5YR_B25118_with_ann!L48","v":12},{"$f":"[1]ACS_16_5YR_B25118_with_ann!M48","v":12},{"$f":"[1]ACS_16_5YR_B25118_with_ann!N48","v":8},{"$f":"[1]ACS_16_5YR_B25118_with_ann!O48","v":6},{"$f":"[1]ACS_16_5YR_B25118_with_ann!P48","v":4},{"$f":"[1]ACS_16_5YR_B25118_with_ann!Q48","v":5},{"$f":"[1]ACS_16_5YR_B25118_with_ann!R48","v":10},{"$f":"[1]ACS_16_5YR_B25118_with_ann!S48","v":7},{"$f":"[1]ACS_16_5YR_B25118_with_ann!T48","v":48},{"$f":"[1]ACS_16_5YR_B25118_with_ann!U48","v":30},{"$f":"[1]ACS_16_5YR_B25118_with_ann!V48","v":64},{"$f":"[1]ACS_16_5YR_B25118_with_ann!W48","v":23},{"$f":"[1]ACS_16_5YR_B25118_with_ann!X48","v":36},{"$f":"[1]ACS_16_5YR_B25118_with_ann!Y48","v":17},{"$f":"[1]ACS_16_5YR_B25118_with_ann!Z48","v":42},{"$f":"[1]ACS_16_5YR_B25118_with_ann!AA48","v":19},{"$f":"[1]ACS_16_5YR_B25118_with_ann!AB48","v":59},{"$f":"[1]ACS_16_5YR_B25118_with_ann!AC48","v":23},{"$f":"[1]ACS_16_5YR_B25118_with_ann!AD48","v":25},{"$f":"[1]ACS_16_5YR_B25118_with_ann!AE48","v":14},{"$f":"[1]ACS_16_5YR_B25118_with_ann!AF48","v":0},{"$f":"[1]ACS_16_5YR_B25118_with_ann!AG48","v":12},{"$f":"[1]ACS_16_5YR_B25118_with_ann!AH48","v":0},{"$f":"[1]ACS_16_5YR_B25118_with_ann!AI48","v":12},{"$f":"[1]ACS_16_5YR_B25118_with_ann!AJ48","v":0},{"$f":"[1]ACS_16_5YR_B25118_with_ann!AK48","v":12},{"$f":"[1]ACS_16_5YR_B25118_with_ann!AL48","v":0},{"$f":"[1]ACS_16_5YR_B25118_with_ann!AM48","v":12},{"$f":"[1]ACS_16_5YR_B25118_with_ann!AN48","v":0},{"$f":"[1]ACS_16_5YR_B25118_with_ann!AO48","v":12},{"$f":"[1]ACS_16_5YR_B25118_with_ann!AP48","v":3},{"$f":"[1]ACS_16_5YR_B25118_with_ann!AQ48","v":4},{"$f":"[1]ACS_16_5YR_B25118_with_ann!AR48","v":8},{"$f":"[1]ACS_16_5YR_B25118_with_ann!AS48","v":7},{"$f":"[1]ACS_16_5YR_B25118_with_ann!AT48","v":12},{"$f":"[1]ACS_16_5YR_B25118_with_ann!AU48","v":11},{"$f":"[1]ACS_16_5YR_B25118_with_ann!AV48","v":2},{"$f":"[1]ACS_16_5YR_B25118_with_ann!AW48","v":3},{"$f":"[1]ACS_16_5YR_B25118_with_ann!AX48","v":0},{"$f":"[1]ACS_16_5YR_B25118_with_ann!AY48","v":12},{"$f":"[1]ACS_16_5YR_B25118_with_ann!AZ48","v":0},{"$f":"[1]ACS_16_5YR_B25118_with_ann!BA48","v":12},{"$f":"[1]ACS_16_5YR_B25119_with_ann!D48","v":70000},{"$f":"[1]ACS_16_5YR_B25119_with_ann!E48","v":10396},{"$f":"[1]ACS_16_5YR_B25119_with_ann!F48","v":73854},{"$f":"[1]ACS_16_5YR_B25119_with_ann!G48","v":10906},{"$f":"[1]ACS_16_5YR_B25119_with_ann!H48","v":51875},{"$f":"[1]ACS_16_5YR_B25119_with_ann!I48","v":10280}]
["06000US3300534420","0600000US3300536660","060",{"$f":"[1]ACS_16_5YR_B25118_with_ann!C49","v":"Harrisville"},{"$f":"[1]ACS_16_5YR_B25118_with_ann!D49","v":416},{"$f":"[1]ACS_16_5YR_B25118_with_ann!E49","v":75},{"$f":"[1]ACS_16_5YR_B25118_with_ann!F49","v":386},{"$f":"[1]ACS_16_5YR_B25118_with_ann!G49","v":73},{"$f":"[1]ACS_16_5YR_B25118_with_ann!H49","v":7},{"$f":"[1]ACS_16_5YR_B25118_with_ann!I49","v":9},{"$f":"[1]ACS_16_5YR_B25118_with_ann!J49","v":0},{"$f":"[1]ACS_16_5YR_B25118_with_ann!K49","v":12},{"$f":"[1]ACS_16_5YR_B25118_with_ann!L49","v":3},{"$f":"[1]ACS_16_5YR_B25118_with_ann!M49","v":4},{"$f":"[1]ACS_16_5YR_B25118_with_ann!N49","v":3},{"$f":"[1]ACS_16_5YR_B25118_with_ann!O49","v":4},{"$f":"[1]ACS_16_5YR_B25118_with_ann!P49","v":3},{"$f":"[1]ACS_16_5YR_B25118_with_ann!Q49","v":4},{"$f":"[1]ACS_16_5YR_B25118_with_ann!R49","v":15},{"$f":"[1]ACS_16_5YR_B25118_with_ann!S49","v":11},{"$f":"[1]ACS_16_5YR_B25118_with_ann!T49","v":51},{"$f":"[1]ACS_16_5YR_B25118_with_ann!U49","v":23},{"$f":"[1]ACS_16_5YR_B25118_with_ann!V49","v":66},{"$f":"[1]ACS_16_5YR_B25118_with_ann!W49","v":34},{"$f":"[1]ACS_16_5YR_B25118_with_ann!X49","v":76},{"$f":"[1]ACS_16_5YR_B25118_with_ann!Y49","v":32},{"$f":"[1]ACS_16_5YR_B25118_with_ann!Z49","v":61},{"$f":"[1]ACS_16_5YR_B25118_with_ann!AA49","v":26},{"$f":"[1]ACS_16_5YR_B25118_with_ann!AB49","v":101},{"$f":"[1]ACS_16_5YR_B25118_with_ann!AC49","v":44},{"$f":"[1]ACS_16_5YR_B25118_with_ann!AD49","v":30},{"$f":"[1]ACS_16_5YR_B25118_with_ann!AE49","v":15},{"$f":"[1]ACS_16_5YR_B25118_with_ann!AF49","v":0},{"$f":"[1]ACS_16_5YR_B25118_with_ann!AG49","v":12},{"$f":"[1]ACS_16_5YR_B25118_with_ann!AH49","v":0},{"$f":"[1]ACS_16_5YR_B25118_with_ann!AI49","v":12},{"$f":"[1]ACS_16_5YR_B25118_with_ann!AJ49","v":0},{"$f":"[1]ACS_16_5YR_B25118_with_ann!AK49","v":12},{"$f":"[1]ACS_16_5YR_B25118_with_ann!AL49","v":0},{"$f":"[1]ACS_16_5YR_B25118_with_ann!AM49","v":12},{"$f":"[1]ACS_16_5YR_B25118_with_ann!AN49","v":4},{"$f":"[1]ACS_16_5YR_B25118_with_ann!AO49","v":5},{"$f":"[1]ACS_16_5YR_B25118_with_ann!AP49","v":0},{"$f":"[1]ACS_16_5YR_B25118_with_ann!AQ49","v":12},{"$f":"[1]ACS_16_5YR_B25118_with_ann!AR49","v":0},{"$f":"[1]ACS_16_5YR_B25118_with_ann!AS49","v":12},{"$f":"[1]ACS_16_5YR_B25118_with_ann!AT49","v":10},{"$f":"[1]ACS_16_5YR_B25118_with_ann!AU49","v":8},{"$f":"[1]ACS_16_5YR_B25118_with_ann!AV49","v":5},{"$f":"[1]ACS_16_5YR_B25118_with_ann!AW49","v":6},{"$f":"[1]ACS_16_5YR_B25118_with_ann!AX49","v":2},{"$f":"[1]ACS_16_5YR_B25118_with_ann!AY49","v":3},{"$f":"[1]ACS_16_5YR_B25118_with_ann!AZ49","v":9},{"$f":"[1]ACS_16_5YR_B25118_with_ann!BA49","v":12},{"$f":"[1]ACS_16_5YR_B25119_with_ann!D49","v":89737},{"$f":"[1]ACS_16_5YR_B25119_with_ann!E49","v":9021},{"$f":"[1]ACS_16_5YR_B25119_with_ann!F49","v":89868},{"$f":"[1]ACS_16_5YR_B25119_with_ann!G49","v":9808},{"$f":"[1]ACS_16_5YR_B25119_with_ann!H49","v":86250},{"$f":"[1]ACS_16_5YR_B25119_with_ann!I49","v":38850}]
["06000US3300536660","0600000US3300538500","060",{"$f":"[1]ACS_16_5YR_B25118_with_ann!C50","v":"Hinsdale"},{"$f":"[1]ACS_16_5YR_B25118_with_ann!D50","v":1594},{"$f":"[1]ACS_16_5YR_B25118_with_ann!E50","v":139},{"$f":"[1]ACS_16_5YR_B25118_with_ann!F50","v":1373},{"$f":"[1]ACS_16_5YR_B25118_with_ann!G50","v":192},{"$f":"[1]ACS_16_5YR_B25118_with_ann!H50","v":0},{"$f":"[1]ACS_16_5YR_B25118_with_ann!I50","v":12},{"$f":"[1]ACS_16_5YR_B25118_with_ann!J50","v":0},{"$f":"[1]ACS_16_5YR_B25118_with_ann!K50","v":12},{"$f":"[1]ACS_16_5YR_B25118_with_ann!L50","v":0},{"$f":"[1]ACS_16_5YR_B25118_with_ann!M50","v":12},{"$f":"[1]ACS_16_5YR_B25118_with_ann!N50","v":3},{"$f":"[1]ACS_16_5YR_B25118_with_ann!O50","v":5},{"$f":"[1]ACS_16_5YR_B25118_with_ann!P50","v":67},{"$f":"[1]ACS_16_5YR_B25118_with_ann!Q50","v":50},{"$f":"[1]ACS_16_5YR_B25118_with_ann!R50","v":71},{"$f":"[1]ACS_16_5YR_B25118_with_ann!S50","v":45},{"$f":"[1]ACS_16_5YR_B25118_with_ann!T50","v":159},{"$f":"[1]ACS_16_5YR_B25118_with_ann!U50","v":100},{"$f":"[1]ACS_16_5YR_B25118_with_ann!V50","v":458},{"$f":"[1]ACS_16_5YR_B25118_with_ann!W50","v":212},{"$f":"[1]ACS_16_5YR_B25118_with_ann!X50","v":185},{"$f":"[1]ACS_16_5YR_B25118_with_ann!Y50","v":84},{"$f":"[1]ACS_16_5YR_B25118_with_ann!Z50","v":254},{"$f":"[1]ACS_16_5YR_B25118_with_ann!AA50","v":93},{"$f":"[1]ACS_16_5YR_B25118_with_ann!AB50","v":176},{"$f":"[1]ACS_16_5YR_B25118_with_ann!AC50","v":97},{"$f":"[1]ACS_16_5YR_B25118_with_ann!AD50","v":221},{"$f":"[1]ACS_16_5YR_B25118_with_ann!AE50","v":105},{"$f":"[1]ACS_16_5YR_B25118_with_ann!AF50","v":29},{"$f":"[1]ACS_16_5YR_B25118_with_ann!AG50","v":47},{"$f":"[1]ACS_16_5YR_B25118_with_ann!AH50","v":0},{"$f":"[1]ACS_16_5YR_B25118_with_ann!AI50","v":12},{"$f":"[1]ACS_16_5YR_B25118_with_ann!AJ50","v":14},{"$f":"[1]ACS_16_5YR_B25118_with_ann!AK50","v":21},{"$f":"[1]ACS_16_5YR_B25118_with_ann!AL50","v":0},{"$f":"[1]ACS_16_5YR_B25118_with_ann!AM50","v":12},{"$f":"[1]ACS_16_5YR_B25118_with_ann!AN50","v":0},{"$f":"[1]ACS_16_5YR_B25118_with_ann!AO50","v":12},{"$f":"[1]ACS_16_5YR_B25118_with_ann!AP50","v":38},{"$f":"[1]ACS_16_5YR_B25118_with_ann!AQ50","v":33},{"$f":"[1]ACS_16_5YR_B25118_with_ann!AR50","v":9},{"$f":"[1]ACS_16_5YR_B25118_with_ann!AS50","v":14},{"$f":"[1]ACS_16_5YR_B25118_with_ann!AT50","v":49},{"$f":"[1]ACS_16_5YR_B25118_with_ann!AU50","v":50},{"$f":"[1]ACS_16_5YR_B25118_with_ann!AV50","v":0},{"$f":"[1]ACS_16_5YR_B25118_with_ann!AW50","v":12},{"$f":"[1]ACS_16_5YR_B25118_with_ann!AX50","v":0},{"$f":"[1]ACS_16_5YR_B25118_with_ann!AY50","v":12},{"$f":"[1]ACS_16_5YR_B25118_with_ann!AZ50","v":82},{"$f":"[1]ACS_16_5YR_B25118_with_ann!BA50","v":80},{"$f":"[1]ACS_16_5YR_B25119_with_ann!D50","v":67054},{"$f":"[1]ACS_16_5YR_B25119_with_ann!E50","v":11035},{"$f":"[1]ACS_16_5YR_B25119_with_ann!F50","v":68563},{"$f":"[1]ACS_16_5YR_B25119_with_ann!G50","v":12877},{"$f":"[1]ACS_16_5YR_B25119_with_ann!H50","v":"-"},{"$f":"[1]ACS_16_5YR_B25119_with_ann!I50","v":"**"}]
["06000US3300538500","0600000US3300539300","060",{"$f":"[1]ACS_16_5YR_B25118_with_ann!C51","v":"Jaffrey"},{"$f":"[1]ACS_16_5YR_B25118_with_ann!D51","v":2026},{"$f":"[1]ACS_16_5YR_B25118_with_ann!E51","v":225},{"$f":"[1]ACS_16_5YR_B25118_with_ann!F51","v":1580},{"$f":"[1]ACS_16_5YR_B25118_with_ann!G51","v":229},{"$f":"[1]ACS_16_5YR_B25118_with_ann!H51","v":12},{"$f":"[1]ACS_16_5YR_B25118_with_ann!I51","v":19},{"$f":"[1]ACS_16_5YR_B25118_with_ann!J51","v":16},{"$f":"[1]ACS_16_5YR_B25118_with_ann!K51","v":26},{"$f":"[1]ACS_16_5YR_B25118_with_ann!L51","v":0},{"$f":"[1]ACS_16_5YR_B25118_with_ann!M51","v":17},{"$f":"[1]ACS_16_5YR_B25118_with_ann!N51","v":1},{"$f":"[1]ACS_16_5YR_B25118_with_ann!O51","v":4},{"$f":"[1]ACS_16_5YR_B25118_with_ann!P51","v":39},{"$f":"[1]ACS_16_5YR_B25118_with_ann!Q51","v":39},{"$f":"[1]ACS_16_5YR_B25118_with_ann!R51","v":93},{"$f":"[1]ACS_16_5YR_B25118_with_ann!S51","v":84},{"$f":"[1]ACS_16_5YR_B25118_with_ann!T51","v":39},{"$f":"[1]ACS_16_5YR_B25118_with_ann!U51","v":35},{"$f":"[1]ACS_16_5YR_B25118_with_ann!V51","v":379},{"$f":"[1]ACS_16_5YR_B25118_with_ann!W51","v":232},{"$f":"[1]ACS_16_5YR_B25118_with_ann!X51","v":183},{"$f":"[1]ACS_16_5YR_B25118_with_ann!Y51","v":107},{"$f":"[1]ACS_16_5YR_B25118_with_ann!Z51","v":510},{"$f":"[1]ACS_16_5YR_B25118_with_ann!AA51","v":183},{"$f":"[1]ACS_16_5YR_B25118_with_ann!AB51","v":308},{"$f":"[1]ACS_16_5YR_B25118_with_ann!AC51","v":125},{"$f":"[1]ACS_16_5YR_B25118_with_ann!AD51","v":446},{"$f":"[1]ACS_16_5YR_B25118_with_ann!AE51","v":167},{"$f":"[1]ACS_16_5YR_B25118_with_ann!AF51","v":12},{"$f":"[1]ACS_16_5YR_B25118_with_ann!AG51","v":21},{"$f":"[1]ACS_16_5YR_B25118_with_ann!AH51","v":0},{"$f":"[1]ACS_16_5YR_B25118_with_ann!AI51","v":17},{"$f":"[1]ACS_16_5YR_B25118_with_ann!AJ51","v":28},{"$f":"[1]ACS_16_5YR_B25118_with_ann!AK51","v":42},{"$f":"[1]ACS_16_5YR_B25118_with_ann!AL51","v":33},{"$f":"[1]ACS_16_5YR_B25118_with_ann!AM51","v":34},{"$f":"[1]ACS_16_5YR_B25118_with_ann!AN51","v":15},{"$f":"[1]ACS_16_5YR_B25118_with_ann!AO51","v":27},{"$f":"[1]ACS_16_5YR_B25118_with_ann!AP51","v":80},{"$f":"[1]ACS_16_5YR_B25118_with_ann!AQ51","v":61},{"$f":"[1]ACS_16_5YR_B25118_with_ann!AR51","v":21},{"$f":"[1]ACS_16_5YR_B25118_with_ann!AS51","v":27},{"$f":"[1]ACS_16_5YR_B25118_with_ann!AT51","v":167},{"$f":"[1]ACS_16_5YR_B25118_with_ann!AU51","v":124},{"$f":"[1]ACS_16_5YR_B25118_with_ann!AV51","v":0},{"$f":"[1]ACS_16_5YR_B25118_with_ann!AW51","v":17},{"$f":"[1]ACS_16_5YR_B25118_with_ann!AX51","v":73},{"$f":"[1]ACS_16_5YR_B25118_with_ann!AY51","v":80},{"$f":"[1]ACS_16_5YR_B25118_with_ann!AZ51","v":17},{"$f":"[1]ACS_16_5YR_B25118_with_ann!BA51","v":28},{"$f":"[1]ACS_16_5YR_B25119_with_ann!D51","v":82167},{"$f":"[1]ACS_16_5YR_B25119_with_ann!E51","v":25777},{"$f":"[1]ACS_16_5YR_B25119_with_ann!F51","v":101458},{"$f":"[1]ACS_16_5YR_B25119_with_ann!G51","v":32070},{"$f":"[1]ACS_16_5YR_B25119_with_ann!H51","v":65278},{"$f":"[1]ACS_16_5YR_B25119_with_ann!I51","v":28183}]
["06000US3300539300","0600000US3300545460","060",{"$f":"[1]ACS_16_5YR_B25118_with_ann!C52","v":"Keene"},{"$f":"[1]ACS_16_5YR_B25118_with_ann!D52","v":9259},{"$f":"[1]ACS_16_5YR_B25118_with_ann!E52","v":370},{"$f":"[1]ACS_16_5YR_B25118_with_ann!F52","v":4762},{"$f":"[1]ACS_16_5YR_B25118_with_ann!G52","v":346},{"$f":"[1]ACS_16_5YR_B25118_with_ann!H52","v":53},{"$f":"[1]ACS_16_5YR_B25118_with_ann!I52","v":46},{"$f":"[1]ACS_16_5YR_B25118_with_ann!J52","v":36},{"$f":"[1]ACS_16_5YR_B25118_with_ann!K52","v":37},{"$f":"[1]ACS_16_5YR_B25118_with_ann!L52","v":55},{"$f":"[1]ACS_16_5YR_B25118_with_ann!M52","v":44},{"$f":"[1]ACS_16_5YR_B25118_with_ann!N52","v":195},{"$f":"[1]ACS_16_5YR_B25118_with_ann!O52","v":95},{"$f":"[1]ACS_16_5YR_B25118_with_ann!P52","v":88},{"$f":"[1]ACS_16_5YR_B25118_with_ann!Q52","v":60},{"$f":"[1]ACS_16_5YR_B25118_with_ann!R52","v":274},{"$f":"[1]ACS_16_5YR_B25118_with_ann!S52","v":128},{"$f":"[1]ACS_16_5YR_B25118_with_ann!T52","v":362},{"$f":"[1]ACS_16_5YR_B25118_with_ann!U52","v":155},{"$f":"[1]ACS_16_5YR_B25118_with_ann!V52","v":620},{"$f":"[1]ACS_16_5YR_B25118_with_ann!W52","v":170},{"$f":"[1]ACS_16_5YR_B25118_with_ann!X52","v":866},{"$f":"[1]ACS_16_5YR_B25118_with_ann!Y52","v":228},{"$f":"[1]ACS_16_5YR_B25118_with_ann!Z52","v":1264},{"$f":"[1]ACS_16_5YR_B25118_with_ann!AA52","v":216},{"$f":"[1]ACS_16_5YR_B25118_with_ann!AB52","v":949},{"$f":"[1]ACS_16_5YR_B25118_with_ann!AC52","v":196},{"$f":"[1]ACS_16_5YR_B25118_with_ann!AD52","v":4497},{"$f":"[1]ACS_16_5YR_B25118_with_ann!AE52","v":356},{"$f":"[1]ACS_16_5YR_B25118_with_ann!AF52","v":62},{"$f":"[1]ACS_16_5YR_B25118_with_ann!AG52","v":81},{"$f":"[1]ACS_16_5YR_B25118_with_ann!AH52","v":73},{"$f":"[1]ACS_16_5YR_B25118_with_ann!AI52","v":59},{"$f":"[1]ACS_16_5YR_B25118_with_ann!AJ52","v":437},{"$f":"[1]ACS_16_5YR_B25118_with_ann!AK52","v":158},{"$f":"[1]ACS_16_5YR_B25118_with_ann!AL52","v":439},{"$f":"[1]ACS_16_5YR_B25118_with_ann!AM52","v":167},{"$f":"[1]ACS_16_5YR_B25118_with_ann!AN52","v":103},{"$f":"[1]ACS_16_5YR_B25118_with_ann!AO52","v":63},{"$f":"[1]ACS_16_5YR_B25118_with_ann!AP52","v":550},{"$f":"[1]ACS_16_5YR_B25118_with_ann!AQ52","v":182},{"$f":"[1]ACS_16_5YR_B25118_with_ann!AR52","v":658},{"$f":"[1]ACS_16_5YR_B25118_with_ann!AS52","v":188},{"$f":"[1]ACS_16_5YR_B25118_with_ann!AT52","v":863},{"$f":"[1]ACS_16_5YR_B25118_with_ann!AU52","v":212},{"$f":"[1]ACS_16_5YR_B25118_with_ann!AV52","v":590},{"$f":"[1]ACS_16_5YR_B25118_with_ann!AW52","v":156},{"$f":"[1]ACS_16_5YR_B25118_with_ann!AX52","v":423},{"$f":"[1]ACS_16_5YR_B25118_with_ann!AY52","v":183},{"$f":"[1]ACS_16_5YR_B25118_with_ann!AZ52","v":299},{"$f":"[1]ACS_16_5YR_B25118_with_ann!BA52","v":140},{"$f":"[1]ACS_16_5YR_B25119_with_ann!D52","v":69381},{"$f":"[1]ACS_16_5YR_B25119_with_ann!E52","v":8852},{"$f":"[1]ACS_16_5YR_B25119_with_ann!F52","v":93214},{"$f":"[1]ACS_16_5YR_B25119_with_ann!G52","v":7298},{"$f":"[1]ACS_16_5YR_B25119_with_ann!H52","v":48250},{"$f":"[1]ACS_16_5YR_B25119_with_ann!I52","v":4581}]
["06000US3300545460","0600000US3300545700","060",{"$f":"[1]ACS_16_5YR_B25118_with_ann!C53","v":"Marlborough"},{"$f":"[1]ACS_16_5YR_B25118_with_ann!D53","v":942},{"$f":"[1]ACS_16_5YR_B25118_with_ann!E53","v":130},{"$f":"[1]ACS_16_5YR_B25118_with_ann!F53","v":608},{"$f":"[1]ACS_16_5YR_B25118_with_ann!G53","v":113},{"$f":"[1]ACS_16_5YR_B25118_with_ann!H53","v":6},{"$f":"[1]ACS_16_5YR_B25118_with_ann!I53","v":9},{"$f":"[1]ACS_16_5YR_B25118_with_ann!J53","v":0},{"$f":"[1]ACS_16_5YR_B25118_with_ann!K53","v":12},{"$f":"[1]ACS_16_5YR_B25118_with_ann!L53","v":10},{"$f":"[1]ACS_16_5YR_B25118_with_ann!M53","v":16},{"$f":"[1]ACS_16_5YR_B25118_with_ann!N53","v":18},{"$f":"[1]ACS_16_5YR_B25118_with_ann!O53","v":19},{"$f":"[1]ACS_16_5YR_B25118_with_ann!P53","v":13},{"$f":"[1]ACS_16_5YR_B25118_with_ann!Q53","v":14},{"$f":"[1]ACS_16_5YR_B25118_with_ann!R53","v":38},{"$f":"[1]ACS_16_5YR_B25118_with_ann!S53","v":22},{"$f":"[1]ACS_16_5YR_B25118_with_ann!T53","v":33},{"$f":"[1]ACS_16_5YR_B25118_with_ann!U53","v":29},{"$f":"[1]ACS_16_5YR_B25118_with_ann!V53","v":109},{"$f":"[1]ACS_16_5YR_B25118_with_ann!W53","v":50},{"$f":"[1]ACS_16_5YR_B25118_with_ann!X53","v":97},{"$f":"[1]ACS_16_5YR_B25118_with_ann!Y53","v":65},{"$f":"[1]ACS_16_5YR_B25118_with_ann!Z53","v":148},{"$f":"[1]ACS_16_5YR_B25118_with_ann!AA53","v":55},{"$f":"[1]ACS_16_5YR_B25118_with_ann!AB53","v":136},{"$f":"[1]ACS_16_5YR_B25118_with_ann!AC53","v":64},{"$f":"[1]ACS_16_5YR_B25118_with_ann!AD53","v":334},{"$f":"[1]ACS_16_5YR_B25118_with_ann!AE53","v":92},{"$f":"[1]ACS_16_5YR_B25118_with_ann!AF53","v":5},{"$f":"[1]ACS_16_5YR_B25118_with_ann!AG53","v":8},{"$f":"[1]ACS_16_5YR_B25118_with_ann!AH53","v":9},{"$f":"[1]ACS_16_5YR_B25118_with_ann!AI53","v":13},{"$f":"[1]ACS_16_5YR_B25118_with_ann!AJ53","v":28},{"$f":"[1]ACS_16_5YR_B25118_with_ann!AK53","v":25},{"$f":"[1]ACS_16_5YR_B25118_with_ann!AL53","v":11},{"$f":"[1]ACS_16_5YR_B25118_with_ann!AM53","v":17},{"$f":"[1]ACS_16_5YR_B25118_with_ann!AN53","v":96},{"$f":"[1]ACS_16_5YR_B25118_with_ann!AO53","v":74},{"$f":"[1]ACS_16_5YR_B25118_with_ann!AP53","v":44},{"$f":"[1]ACS_16_5YR_B25118_with_ann!AQ53","v":30},{"$f":"[1]ACS_16_5YR_B25118_with_ann!AR53","v":31},{"$f":"[1]ACS_16_5YR_B25118_with_ann!AS53","v":20},{"$f":"[1]ACS_16_5YR_B25118_with_ann!AT53","v":45},{"$f":"[1]ACS_16_5YR_B25118_with_ann!AU53","v":29},{"$f":"[1]ACS_16_5YR_B25118_with_ann!AV53","v":9},{"$f":"[1]ACS_16_5YR_B25118_with_ann!AW53","v":10},{"$f":"[1]ACS_16_5YR_B25118_with_ann!AX53","v":46},{"$f":"[1]ACS_16_5YR_B25118_with_ann!AY53","v":39},{"$f":"[1]ACS_16_5YR_B25118_with_ann!AZ53","v":10},{"$f":"[1]ACS_16_5YR_B25118_with_ann!BA53","v":11},{"$f":"[1]ACS_16_5YR_B25119_with_ann!D53","v":70800},{"$f":"[1]ACS_16_5YR_B25119_with_ann!E53","v":15162},{"$f":"[1]ACS_16_5YR_B25119_with_ann!F53","v":95962},{"$f":"[1]ACS_16_5YR_B25119_with_ann!G53","v":18162},{"$f":"[1]ACS_16_5YR_B25119_with_ann!H53","v":30625},{"$f":"[1]ACS_16_5YR_B25119_with_ann!I53","v":11516}]
["06000US3300545700","0600000US3300550580","060",{"$f":"[1]ACS_16_5YR_B25118_with_ann!C54","v":"Marlow"},{"$f":"[1]ACS_16_5YR_B25118_with_ann!D54","v":314},{"$f":"[1]ACS_16_5YR_B25118_with_ann!E54","v":61},{"$f":"[1]ACS_16_5YR_B25118_with_ann!F54","v":279},{"$f":"[1]ACS_16_5YR_B25118_with_ann!G54","v":56},{"$f":"[1]ACS_16_5YR_B25118_with_ann!H54","v":2},{"$f":"[1]ACS_16_5YR_B25118_with_ann!I54","v":3},{"$f":"[1]ACS_16_5YR_B25118_with_ann!J54","v":0},{"$f":"[1]ACS_16_5YR_B25118_with_ann!K54","v":12},{"$f":"[1]ACS_16_5YR_B25118_with_ann!L54","v":12},{"$f":"[1]ACS_16_5YR_B25118_with_ann!M54","v":12},{"$f":"[1]ACS_16_5YR_B25118_with_ann!N54","v":9},{"$f":"[1]ACS_16_5YR_B25118_with_ann!O54","v":10},{"$f":"[1]ACS_16_5YR_B25118_with_ann!P54","v":7},{"$f":"[1]ACS_16_5YR_B25118_with_ann!Q54","v":6},{"$f":"[1]ACS_16_5YR_B25118_with_ann!R54","v":15},{"$f":"[1]ACS_16_5YR_B25118_with_ann!S54","v":12},{"$f":"[1]ACS_16_5YR_B25118_with_ann!T54","v":16},{"$f":"[1]ACS_16_5YR_B25118_with_ann!U54","v":13},{"$f":"[1]ACS_16_5YR_B25118_with_ann!V54","v":36},{"$f":"[1]ACS_16_5YR_B25118_with_ann!W54","v":18},{"$f":"[1]ACS_16_5YR_B25118_with_ann!X54","v":39},{"$f":"[1]ACS_16_5YR_B25118_with_ann!Y54","v":22},{"$f":"[1]ACS_16_5YR_B25118_with_ann!Z54","v":92},{"$f":"[1]ACS_16_5YR_B25118_with_ann!AA54","v":43},{"$f":"[1]ACS_16_5YR_B25118_with_ann!AB54","v":51},{"$f":"[1]ACS_16_5YR_B25118_with_ann!AC54","v":22},{"$f":"[1]ACS_16_5YR_B25118_with_ann!AD54","v":35},{"$f":"[1]ACS_16_5YR_B25118_with_ann!AE54","v":29},{"$f":"[1]ACS_16_5YR_B25118_with_ann!AF54","v":0},{"$f":"[1]ACS_16_5YR_B25118_with_ann!AG54","v":12},{"$f":"[1]ACS_16_5YR_B25118_with_ann!AH54","v":0},{"$f":"[1]ACS_16_5YR_B25118_with_ann!AI54","v":12},{"$f":"[1]ACS_16_5YR_B25118_with_ann!AJ54","v":0},{"$f":"[1]ACS_16_5YR_B25118_with_ann!AK54","v":12},{"$f":"[1]ACS_16_5YR_B25118_with_ann!AL54","v":2},{"$f":"[1]ACS_16_5YR_B25118_with_ann!AM54","v":3},{"$f":"[1]ACS_16_5YR_B25118_with_ann!AN54","v":0},{"$f":"[1]ACS_16_5YR_B25118_with_ann!AO54","v":12},{"$f":"[1]ACS_16_5YR_B25118_with_ann!AP54","v":7},{"$f":"[1]ACS_16_5YR_B25118_with_ann!AQ54","v":10},{"$f":"[1]ACS_16_5YR_B25118_with_ann!AR54","v":6},{"$f":"[1]ACS_16_5YR_B25118_with_ann!AS54","v":7},{"$f":"[1]ACS_16_5YR_B25118_with_ann!AT54","v":0},{"$f":"[1]ACS_16_5YR_B25118_with_ann!AU54","v":12},{"$f":"[1]ACS_16_5YR_B25118_with_ann!AV54","v":3},{"$f":"[1]ACS_16_5YR_B25118_with_ann!AW54","v":4},{"$f":"[1]ACS_16_5YR_B25118_with_ann!AX54","v":17},{"$f":"[1]ACS_16_5YR_B25118_with_ann!AY54","v":24},{"$f":"[1]ACS_16_5YR_B25118_with_ann!AZ54","v":0},{"$f":"[1]ACS_16_5YR_B25118_with_ann!BA54","v":12},{"$f":"[1]ACS_16_5YR_B25119_with_ann!D54","v":103333},{"$f":"[1]ACS_16_5YR_B25119_with_ann!E54","v":19217},{"$f":"[1]ACS_16_5YR_B25119_with_ann!F54","v":105375},{"$f":"[1]ACS_16_5YR_B25119_with_ann!G54","v":17857},{"$f":"[1]ACS_16_5YR_B25119_with_ann!H54","v":"-"},{"$f":"[1]ACS_16_5YR_B25119_with_ann!I54","v":"**"}]
["06000US3300550580","0600000US3300564420","060",{"$f":"[1]ACS_16_5YR_B25118_with_ann!C55","v":"Nelson"},{"$f":"[1]ACS_16_5YR_B25118_with_ann!D55","v":246},{"$f":"[1]ACS_16_5YR_B25118_with_ann!E55","v":41},{"$f":"[1]ACS_16_5YR_B25118_with_ann!F55","v":225},{"$f":"[1]ACS_16_5YR_B25118_with_ann!G55","v":42},{"$f":"[1]ACS_16_5YR_B25118_with_ann!H55","v":2},{"$f":"[1]ACS_16_5YR_B25118_with_ann!I55","v":3},{"$f":"[1]ACS_16_5YR_B25118_with_ann!J55","v":1},{"$f":"[1]ACS_16_5YR_B25118_with_ann!K55","v":4},{"$f":"[1]ACS_16_5YR_B25118_with_ann!L55","v":2},{"$f":"[1]ACS_16_5YR_B25118_with_ann!M55","v":2},{"$f":"[1]ACS_16_5YR_B25118_with_ann!N55","v":3},{"$f":"[1]ACS_16_5YR_B25118_with_ann!O55","v":3},{"$f":"[1]ACS_16_5YR_B25118_with_ann!P55","v":2},{"$f":"[1]ACS_16_5YR_B25118_with_ann!Q55","v":3},{"$f":"[1]ACS_16_5YR_B25118_with_ann!R55","v":16},{"$f":"[1]ACS_16_5YR_B25118_with_ann!S55","v":15},{"$f":"[1]ACS_16_5YR_B25118_with_ann!T55","v":11},{"$f":"[1]ACS_16_5YR_B25118_with_ann!U55","v":7},{"$f":"[1]ACS_16_5YR_B25118_with_ann!V55","v":41},{"$f":"[1]ACS_16_5YR_B25118_with_ann!W55","v":17},{"$f":"[1]ACS_16_5YR_B25118_with_ann!X55","v":33},{"$f":"[1]ACS_16_5YR_B25118_with_ann!Y55","v":16},{"$f":"[1]ACS_16_5YR_B25118_with_ann!Z55","v":60},{"$f":"[1]ACS_16_5YR_B25118_with_ann!AA55","v":23},{"$f":"[1]ACS_16_5YR_B25118_with_ann!AB55","v":54},{"$f":"[1]ACS_16_5YR_B25118_with_ann!AC55","v":21},{"$f":"[1]ACS_16_5YR_B25118_with_ann!AD55","v":21},{"$f":"[1]ACS_16_5YR_B25118_with_ann!AE55","v":11},{"$f":"[1]ACS_16_5YR_B25118_with_ann!AF55","v":0},{"$f":"[1]ACS_16_5YR_B25118_with_ann!AG55","v":12},{"$f":"[1]ACS_16_5YR_B25118_with_ann!AH55","v":0},{"$f":"[1]ACS_16_5YR_B25118_with_ann!AI55","v":12},{"$f":"[1]ACS_16_5YR_B25118_with_ann!AJ55","v":0},{"$f":"[1]ACS_16_5YR_B25118_with_ann!AK55","v":12},{"$f":"[1]ACS_16_5YR_B25118_with_ann!AL55","v":0},{"$f":"[1]ACS_16_5YR_B25118_with_ann!AM55","v":12},{"$f":"[1]ACS_16_5YR_B25118_with_ann!AN55","v":0},{"$f":"[1]ACS_16_5YR_B25118_with_ann!AO55","v":12},{"$f":"[1]ACS_16_5YR_B25118_with_ann!AP55","v":4},{"$f":"[1]ACS_16_5YR_B25118_with_ann!AQ55","v":5},{"$f":"[1]ACS_16_5YR_B25118_with_ann!AR55","v":2},{"$f":"[1]ACS_16_5YR_B25118_with_ann!AS55","v":3},{"$f":"[1]ACS_16_5YR_B25118_with_ann!AT55","v":4},{"$f":"[1]ACS_16_5YR_B25118_with_ann!AU55","v":4},{"$f":"[1]ACS_16_5YR_B25118_with_ann!AV55","v":9},{"$f":"[1]ACS_16_5YR_B25118_with_ann!AW55","v":9},{"$f":"[1]ACS_16_5YR_B25118_with_ann!AX55","v":2},{"$f":"[1]ACS_16_5YR_B25118_with_ann!AY55","v":2},{"$f":"[1]ACS_16_5YR_B25118_with_ann!AZ55","v":0},{"$f":"[1]ACS_16_5YR_B25118_with_ann!BA55","v":12},{"$f":"[1]ACS_16_5YR_B25119_with_ann!D55","v":91786},{"$f":"[1]ACS_16_5YR_B25119_with_ann!E55","v":15185},{"$f":"[1]ACS_16_5YR_B25119_with_ann!F55","v":105536},{"$f":"[1]ACS_16_5YR_B25119_with_ann!G55","v":32806},{"$f":"[1]ACS_16_5YR_B25119_with_ann!H55","v":75417},{"$f":"[1]ACS_16_5YR_B25119_with_ann!I55","v":23451}]
["06000US3300564420","0600000US3300564580","060",{"$f":"[1]ACS_16_5YR_B25118_with_ann!C56","v":"Richmond"},{"$f":"[1]ACS_16_5YR_B25118_with_ann!D56","v":393},{"$f":"[1]ACS_16_5YR_B25118_with_ann!E56","v":73},{"$f":"[1]ACS_16_5YR_B25118_with_ann!F56","v":383},{"$f":"[1]ACS_16_5YR_B25118_with_ann!G56","v":72},{"$f":"[1]ACS_16_5YR_B25118_with_ann!H56","v":0},{"$f":"[1]ACS_16_5YR_B25118_with_ann!I56","v":12},{"$f":"[1]ACS_16_5YR_B25118_with_ann!J56","v":0},{"$f":"[1]ACS_16_5YR_B25118_with_ann!K56","v":12},{"$f":"[1]ACS_16_5YR_B25118_with_ann!L56","v":3},{"$f":"[1]ACS_16_5YR_B25118_with_ann!M56","v":5},{"$f":"[1]ACS_16_5YR_B25118_with_ann!N56","v":31},{"$f":"[1]ACS_16_5YR_B25118_with_ann!O56","v":25},{"$f":"[1]ACS_16_5YR_B25118_with_ann!P56","v":0},{"$f":"[1]ACS_16_5YR_B25118_with_ann!Q56","v":12},{"$f":"[1]ACS_16_5YR_B25118_with_ann!R56","v":25},{"$f":"[1]ACS_16_5YR_B25118_with_ann!S56","v":15},{"$f":"[1]ACS_16_5YR_B25118_with_ann!T56","v":34},{"$f":"[1]ACS_16_5YR_B25118_with_ann!U56","v":19},{"$f":"[1]ACS_16_5YR_B25118_with_ann!V56","v":69},{"$f":"[1]ACS_16_5YR_B25118_with_ann!W56","v":32},{"$f":"[1]ACS_16_5YR_B25118_with_ann!X56","v":64},{"$f":"[1]ACS_16_5YR_B25118_with_ann!Y56","v":28},{"$f":"[1]ACS_16_5YR_B25118_with_ann!Z56","v":86},{"$f":"[1]ACS_16_5YR_B25118_with_ann!AA56","v":43},{"$f":"[1]ACS_16_5YR_B25118_with_ann!AB56","v":71},{"$f":"[1]ACS_16_5YR_B25118_with_ann!AC56","v":35},{"$f":"[1]ACS_16_5YR_B25118_with_ann!AD56","v":10},{"$f":"[1]ACS_16_5YR_B25118_with_ann!AE56","v":9},{"$f":"[1]ACS_16_5YR_B25118_with_ann!AF56","v":0},{"$f":"[1]ACS_16_5YR_B25118_with_ann!AG56","v":12},{"$f":"[1]ACS_16_5YR_B25118_with_ann!AH56","v":0},{"$f":"[1]ACS_16_5YR_B25118_with_ann!AI56","v":12},{"$f":"[1]ACS_16_5YR_B25118_with_ann!AJ56","v":0},{"$f":"[1]ACS_16_5YR_B25118_with_ann!AK56","v":12},{"$f":"[1]ACS_16_5YR_B25118_with_ann!AL56","v":0},{"$f":"[1]ACS_16_5YR_B25118_with_ann!AM56","v":12},{"$f":"[1]ACS_16_5YR_B25118_with_ann!AN56","v":0},{"$f":"[1]ACS_16_5YR_B25118_with_ann!AO56","v":12},{"$f":"[1]ACS_16_5YR_B25118_with_ann!AP56","v":0},{"$f":"[1]ACS_16_5YR_B25118_with_ann!AQ56","v":12},{"$f":"[1]ACS_16_5YR_B25118_with_ann!AR56","v":3},{"$f":"[1]ACS_16_5YR_B25118_with_ann!AS56","v":6},{"$f":"[1]ACS_16_5YR_B25118_with_ann!AT56","v":0},{"$f":"[1]ACS_16_5YR_B25118_with_ann!AU56","v":12},{"$f":"[1]ACS_16_5YR_B25118_with_ann!AV56","v":3},{"$f":"[1]ACS_16_5YR_B25118_with_ann!AW56","v":4},{"$f":"[1]ACS_16_5YR_B25118_with_ann!AX56","v":4},{"$f":"[1]ACS_16_5YR_B25118_with_ann!AY56","v":6},{"$f":"[1]ACS_16_5YR_B25118_with_ann!AZ56","v":0},{"$f":"[1]ACS_16_5YR_B25118_with_ann!BA56","v":12},{"$f":"[1]ACS_16_5YR_B25119_with_ann!D56","v":88125},{"$f":"[1]ACS_16_5YR_B25119_with_ann!E56","v":15891},{"$f":"[1]ACS_16_5YR_B25119_with_ann!F56","v":89375},{"$f":"[1]ACS_16_5YR_B25119_with_ann!G56","v":16454},{"$f":"[1]ACS_16_5YR_B25119_with_ann!H56","v":79167},{"$f":"[1]ACS_16_5YR_B25119_with_ann!I56","v":57992}]
["06000US3300564580","0600000US3300565700","060",{"$f":"[1]ACS_16_5YR_B25118_with_ann!C57","v":"Rindge"},{"$f":"[1]ACS_16_5YR_B25118_with_ann!D57","v":1972},{"$f":"[1]ACS_16_5YR_B25118_with_ann!E57","v":144},{"$f":"[1]ACS_16_5YR_B25118_with_ann!F57","v":1711},{"$f":"[1]ACS_16_5YR_B25118_with_ann!G57","v":137},{"$f":"[1]ACS_16_5YR_B25118_with_ann!H57","v":0},{"$f":"[1]ACS_16_5YR_B25118_with_ann!I57","v":17},{"$f":"[1]ACS_16_5YR_B25118_with_ann!J57","v":0},{"$f":"[1]ACS_16_5YR_B25118_with_ann!K57","v":17},{"$f":"[1]ACS_16_5YR_B25118_with_ann!L57","v":43},{"$f":"[1]ACS_16_5YR_B25118_with_ann!M57","v":40},{"$f":"[1]ACS_16_5YR_B25118_with_ann!N57","v":21},{"$f":"[1]ACS_16_5YR_B25118_with_ann!O57","v":20},{"$f":"[1]ACS_16_5YR_B25118_with_ann!P57","v":53},{"$f":"[1]ACS_16_5YR_B25118_with_ann!Q57","v":47},{"$f":"[1]ACS_16_5YR_B25118_with_ann!R57","v":25},{"$f":"[1]ACS_16_5YR_B25118_with_ann!S57","v":28},{"$f":"[1]ACS_16_5YR_B25118_with_ann!T57","v":184},{"$f":"[1]ACS_16_5YR_B25118_with_ann!U57","v":115},{"$f":"[1]ACS_16_5YR_B25118_with_ann!V57","v":269},{"$f":"[1]ACS_16_5YR_B25118_with_ann!W57","v":98},{"$f":"[1]ACS_16_5YR_B25118_with_ann!X57","v":193},{"$f":"[1]ACS_16_5YR_B25118_with_ann!Y57","v":84},{"$f":"[1]ACS_16_5YR_B25118_with_ann!Z57","v":516},{"$f":"[1]ACS_16_5YR_B25118_with_ann!AA57","v":143},{"$f":"[1]ACS_16_5YR_B25118_with_ann!AB57","v":407},{"$f":"[1]ACS_16_5YR_B25118_with_ann!AC57","v":115},{"$f":"[1]ACS_16_5YR_B25118_with_ann!AD57","v":261},{"$f":"[1]ACS_16_5YR_B25118_with_ann!AE57","v":119},{"$f":"[1]ACS_16_5YR_B25118_with_ann!AF57","v":0},{"$f":"[1]ACS_16_5YR_B25118_with_ann!AG57","v":17},{"$f":"[1]ACS_16_5YR_B25118_with_ann!AH57","v":0},{"$f":"[1]ACS_16_5YR_B25118_with_ann!AI57","v":17},{"$f":"[1]ACS_16_5YR_B25118_with_ann!AJ57","v":0},{"$f":"[1]ACS_16_5YR_B25118_with_ann!AK57","v":17},{"$f":"[1]ACS_16_5YR_B25118_with_ann!AL57","v":27},{"$f":"[1]ACS_16_5YR_B25118_with_ann!AM57","v":33},{"$f":"[1]ACS_16_5YR_B25118_with_ann!AN57","v":14},{"$f":"[1]ACS_16_5YR_B25118_with_ann!AO57","v":22},{"$f":"[1]ACS_16_5YR_B25118_with_ann!AP57","v":39},{"$f":"[1]ACS_16_5YR_B25118_with_ann!AQ57","v":35},{"$f":"[1]ACS_16_5YR_B25118_with_ann!AR57","v":0},{"$f":"[1]ACS_16_5YR_B25118_with_ann!AS57","v":17},{"$f":"[1]ACS_16_5YR_B25118_with_ann!AT57","v":99},{"$f":"[1]ACS_16_5YR_B25118_with_ann!AU57","v":82},{"$f":"[1]ACS_16_5YR_B25118_with_ann!AV57","v":49},{"$f":"[1]ACS_16_5YR_B25118_with_ann!AW57","v":41},{"$f":"[1]ACS_16_5YR_B25118_with_ann!AX57","v":27},{"$f":"[1]ACS_16_5YR_B25118_with_ann!AY57","v":27},{"$f":"[1]ACS_16_5YR_B25118_with_ann!AZ57","v":6},{"$f":"[1]ACS_16_5YR_B25118_with_ann!BA57","v":8},{"$f":"[1]ACS_16_5YR_B25119_with_ann!D57","v":97794},{"$f":"[1]ACS_16_5YR_B25119_with_ann!E57","v":12003},{"$f":"[1]ACS_16_5YR_B25119_with_ann!F57","v":104875},{"$f":"[1]ACS_16_5YR_B25119_with_ann!G57","v":17820},{"$f":"[1]ACS_16_5YR_B25119_with_ann!H57","v":56161},{"$f":"[1]ACS_16_5YR_B25119_with_ann!I57","v":2312}]
["06000US3300565700","0600000US3300573700","060",{"$f":"[1]ACS_16_5YR_B25118_with_ann!C58","v":"Roxbury"},{"$f":"[1]ACS_16_5YR_B25118_with_ann!D58","v":95},{"$f":"[1]ACS_16_5YR_B25118_with_ann!E58","v":37},{"$f":"[1]ACS_16_5YR_B25118_with_ann!F58","v":94},{"$f":"[1]ACS_16_5YR_B25118_with_ann!G58","v":38},{"$f":"[1]ACS_16_5YR_B25118_with_ann!H58","v":0},{"$f":"[1]ACS_16_5YR_B25118_with_ann!I58","v":12},{"$f":"[1]ACS_16_5YR_B25118_with_ann!J58","v":0},{"$f":"[1]ACS_16_5YR_B25118_with_ann!K58","v":12},{"$f":"[1]ACS_16_5YR_B25118_with_ann!L58","v":1},{"$f":"[1]ACS_16_5YR_B25118_with_ann!M58","v":2},{"$f":"[1]ACS_16_5YR_B25118_with_ann!N58","v":0},{"$f":"[1]ACS_16_5YR_B25118_with_ann!O58","v":12},{"$f":"[1]ACS_16_5YR_B25118_with_ann!P58","v":4},{"$f":"[1]ACS_16_5YR_B25118_with_ann!Q58","v":6},{"$f":"[1]ACS_16_5YR_B25118_with_ann!R58","v":8},{"$f":"[1]ACS_16_5YR_B25118_with_ann!S58","v":6},{"$f":"[1]ACS_16_5YR_B25118_with_ann!T58","v":9},{"$f":"[1]ACS_16_5YR_B25118_with_ann!U58","v":7},{"$f":"[1]ACS_16_5YR_B25118_with_ann!V58","v":27},{"$f":"[1]ACS_16_5YR_B25118_with_ann!W58","v":35},{"$f":"[1]ACS_16_5YR_B25118_with_ann!X58","v":10},{"$f":"[1]ACS_16_5YR_B25118_with_ann!Y58","v":8},{"$f":"[1]ACS_16_5YR_B25118_with_ann!Z58","v":15},{"$f":"[1]ACS_16_5YR_B25118_with_ann!AA58","v":11},{"$f":"[1]ACS_16_5YR_B25118_with_ann!AB58","v":20},{"$f":"[1]ACS_16_5YR_B25118_with_ann!AC58","v":12},{"$f":"[1]ACS_16_5YR_B25118_with_ann!AD58","v":1},{"$f":"[1]ACS_16_5YR_B25118_with_ann!AE58","v":3},{"$f":"[1]ACS_16_5YR_B25118_with_ann!AF58","v":0},{"$f":"[1]ACS_16_5YR_B25118_with_ann!AG58","v":12},{"$f":"[1]ACS_16_5YR_B25118_with_ann!AH58","v":0},{"$f":"[1]ACS_16_5YR_B25118_with_ann!AI58","v":12},{"$f":"[1]ACS_16_5YR_B25118_with_ann!AJ58","v":0},{"$f":"[1]ACS_16_5YR_B25118_with_ann!AK58","v":12},{"$f":"[1]ACS_16_5YR_B25118_with_ann!AL58","v":0},{"$f":"[1]ACS_16_5YR_B25118_with_ann!AM58","v":12},{"$f":"[1]ACS_16_5YR_B25118_with_ann!AN58","v":0},{"$f":"[1]ACS_16_5YR_B25118_with_ann!AO58","v":12},{"$f":"[1]ACS_16_5YR_B25118_with_ann!AP58","v":0},{"$f":"[1]ACS_16_5YR_B25118_with_ann!AQ58","v":12},{"$f":"[1]ACS_16_5YR_B25118_with_ann!AR58","v":0},{"$f":"[1]ACS_16_5YR_B25118_with_ann!AS58","v":12},{"$f":"[1]ACS_16_5YR_B25118_with_ann!AT58","v":0},{"$f":"[1]ACS_16_5YR_B25118_with_ann!AU58","v":12},{"$f":"[1]ACS_16_5YR_B25118_with_ann!AV58","v":0},{"$f":"[1]ACS_16_5YR_B25118_with_ann!AW58","v":12},{"$f":"[1]ACS_16_5YR_B25118_with_ann!AX58","v":0},{"$f":"[1]ACS_16_5YR_B25118_with_ann!AY58","v":12},{"$f":"[1]ACS_16_5YR_B25118_with_ann!AZ58","v":1},{"$f":"[1]ACS_16_5YR_B25118_with_ann!BA58","v":3},{"$f":"[1]ACS_16_5YR_B25119_with_ann!D58","v":67440},{"$f":"[1]ACS_16_5YR_B25119_with_ann!E58","v":41668},{"$f":"[1]ACS_16_5YR_B25119_with_ann!F58","v":67381},{"$f":"[1]ACS_16_5YR_B25119_with_ann!G58","v":35722},{"$f":"[1]ACS_16_5YR_B25119_with_ann!H58","v":"-"},{"$f":"[1]ACS_16_5YR_B25119_with_ann!I58","v":"**"}]
["06000US3300573700","0600000US3300574900","060",{"$f":"[1]ACS_16_5YR_B25118_with_ann!C59","v":"Stoddard"},{"$f":"[1]ACS_16_5YR_B25118_with_ann!D59","v":436},{"$f":"[1]ACS_16_5YR_B25118_with_ann!E59","v":52},{"$f":"[1]ACS_16_5YR_B25118_with_ann!F59","v":405},{"$f":"[1]ACS_16_5YR_B25118_with_ann!G59","v":49},{"$f":"[1]ACS_16_5YR_B25118_with_ann!H59","v":2},{"$f":"[1]ACS_16_5YR_B25118_with_ann!I59","v":4},{"$f":"[1]ACS_16_5YR_B25118_with_ann!J59","v":8},{"$f":"[1]ACS_16_5YR_B25118_with_ann!K59","v":12},{"$f":"[1]ACS_16_5YR_B25118_with_ann!L59","v":2},{"$f":"[1]ACS_16_5YR_B25118_with_ann!M59","v":4},{"$f":"[1]ACS_16_5YR_B25118_with_ann!N59","v":0},{"$f":"[1]ACS_16_5YR_B25118_with_ann!O59","v":12},{"$f":"[1]ACS_16_5YR_B25118_with_ann!P59","v":8},{"$f":"[1]ACS_16_5YR_B25118_with_ann!Q59","v":9},{"$f":"[1]ACS_16_5YR_B25118_with_ann!R59","v":24},{"$f":"[1]ACS_16_5YR_B25118_with_ann!S59","v":10},{"$f":"[1]ACS_16_5YR_B25118_with_ann!T59","v":26},{"$f":"[1]ACS_16_5YR_B25118_with_ann!U59","v":15},{"$f":"[1]ACS_16_5YR_B25118_with_ann!V59","v":87},{"$f":"[1]ACS_16_5YR_B25118_with_ann!W59","v":28},{"$f":"[1]ACS_16_5YR_B25118_with_ann!X59","v":62},{"$f":"[1]ACS_16_5YR_B25118_with_ann!Y59","v":24},{"$f":"[1]ACS_16_5YR_B25118_with_ann!Z59","v":100},{"$f":"[1]ACS_16_5YR_B25118_with_ann!AA59","v":33},{"$f":"[1]ACS_16_5YR_B25118_with_ann!AB59","v":86},{"$f":"[1]ACS_16_5YR_B25118_with_ann!AC59","v":27},{"$f":"[1]ACS_16_5YR_B25118_with_ann!AD59","v":31},{"$f":"[1]ACS_16_5YR_B25118_with_ann!AE59","v":18},{"$f":"[1]ACS_16_5YR_B25118_with_ann!AF59","v":0},{"$f":"[1]ACS_16_5YR_B25118_with_ann!AG59","v":12},{"$f":"[1]ACS_16_5YR_B25118_with_ann!AH59","v":0},{"$f":"[1]ACS_16_5YR_B25118_with_ann!AI59","v":12},{"$f":"[1]ACS_16_5YR_B25118_with_ann!AJ59","v":0},{"$f":"[1]ACS_16_5YR_B25118_with_ann!AK59","v":12},{"$f":"[1]ACS_16_5YR_B25118_with_ann!AL59","v":0},{"$f":"[1]ACS_16_5YR_B25118_with_ann!AM59","v":12},{"$f":"[1]ACS_16_5YR_B25118_with_ann!AN59","v":0},{"$f":"[1]ACS_16_5YR_B25118_with_ann!AO59","v":12},{"$f":"[1]ACS_16_5YR_B25118_with_ann!AP59","v":0},{"$f":"[1]ACS_16_5YR_B25118_with_ann!AQ59","v":12},{"$f":"[1]ACS_16_5YR_B25118_with_ann!AR59","v":0},{"$f":"[1]ACS_16_5YR_B25118_with_ann!AS59","v":12},{"$f":"[1]ACS_16_5YR_B25118_with_ann!AT59","v":15},{"$f":"[1]ACS_16_5YR_B25118_with_ann!AU59","v":16},{"$f":"[1]ACS_16_5YR_B25118_with_ann!AV59","v":3},{"$f":"[1]ACS_16_5YR_B25118_with_ann!AW59","v":4},{"$f":"[1]ACS_16_5YR_B25118_with_ann!AX59","v":13},{"$f":"[1]ACS_16_5YR_B25118_with_ann!AY59","v":10},{"$f":"[1]ACS_16_5YR_B25118_with_ann!AZ59","v":0},{"$f":"[1]ACS_16_5YR_B25118_with_ann!BA59","v":12},{"$f":"[1]ACS_16_5YR_B25119_with_ann!D59","v":88750},{"$f":"[1]ACS_16_5YR_B25119_with_ann!E59","v":13242},{"$f":"[1]ACS_16_5YR_B25119_with_ann!F59","v":89028},{"$f":"[1]ACS_16_5YR_B25119_with_ann!G59","v":14293},{"$f":"[1]ACS_16_5YR_B25119_with_ann!H59","v":87917},{"$f":"[1]ACS_16_5YR_B25119_with_ann!I59","v":53953}]
["06000US3300574900","0600000US3300575300","060",{"$f":"[1]ACS_16_5YR_B25118_with_ann!C60","v":"Sullivan"},{"$f":"[1]ACS_16_5YR_B25118_with_ann!D60","v":281},{"$f":"[1]ACS_16_5YR_B25118_with_ann!E60","v":53},{"$f":"[1]ACS_16_5YR_B25118_with_ann!F60","v":240},{"$f":"[1]ACS_16_5YR_B25118_with_ann!G60","v":46},{"$f":"[1]ACS_16_5YR_B25118_with_ann!H60","v":0},{"$f":"[1]ACS_16_5YR_B25118_with_ann!I60","v":12},{"$f":"[1]ACS_16_5YR_B25118_with_ann!J60","v":0},{"$f":"[1]ACS_16_5YR_B25118_with_ann!K60","v":12},{"$f":"[1]ACS_16_5YR_B25118_with_ann!L60","v":8},{"$f":"[1]ACS_16_5YR_B25118_with_ann!M60","v":9},{"$f":"[1]ACS_16_5YR_B25118_with_ann!N60","v":9},{"$f":"[1]ACS_16_5YR_B25118_with_ann!O60","v":9},{"$f":"[1]ACS_16_5YR_B25118_with_ann!P60","v":4},{"$f":"[1]ACS_16_5YR_B25118_with_ann!Q60","v":7},{"$f":"[1]ACS_16_5YR_B25118_with_ann!R60","v":4},{"$f":"[1]ACS_16_5YR_B25118_with_ann!S60","v":4},{"$f":"[1]ACS_16_5YR_B25118_with_ann!T60","v":18},{"$f":"[1]ACS_16_5YR_B25118_with_ann!U60","v":9},{"$f":"[1]ACS_16_5YR_B25118_with_ann!V60","v":34},{"$f":"[1]ACS_16_5YR_B25118_with_ann!W60","v":14},{"$f":"[1]ACS_16_5YR_B25118_with_ann!X60","v":36},{"$f":"[1]ACS_16_5YR_B25118_with_ann!Y60","v":16},{"$f":"[1]ACS_16_5YR_B25118_with_ann!Z60","v":74},{"$f":"[1]ACS_16_5YR_B25118_with_ann!AA60","v":30},{"$f":"[1]ACS_16_5YR_B25118_with_ann!AB60","v":53},{"$f":"[1]ACS_16_5YR_B25118_with_ann!AC60","v":26},{"$f":"[1]ACS_16_5YR_B25118_with_ann!AD60","v":41},{"$f":"[1]ACS_16_5YR_B25118_with_ann!AE60","v":21},{"$f":"[1]ACS_16_5YR_B25118_with_ann!AF60","v":0},{"$f":"[1]ACS_16_5YR_B25118_with_ann!AG60","v":12},{"$f":"[1]ACS_16_5YR_B25118_with_ann!AH60","v":0},{"$f":"[1]ACS_16_5YR_B25118_with_ann!AI60","v":12},{"$f":"[1]ACS_16_5YR_B25118_with_ann!AJ60","v":0},{"$f":"[1]ACS_16_5YR_B25118_with_ann!AK60","v":12},{"$f":"[1]ACS_16_5YR_B25118_with_ann!AL60","v":0},{"$f":"[1]ACS_16_5YR_B25118_with_ann!AM60","v":12},{"$f":"[1]ACS_16_5YR_B25118_with_ann!AN60","v":5},{"$f":"[1]ACS_16_5YR_B25118_with_ann!AO60","v":6},{"$f":"[1]ACS_16_5YR_B25118_with_ann!AP60","v":2},{"$f":"[1]ACS_16_5YR_B25118_with_ann!AQ60","v":3},{"$f":"[1]ACS_16_5YR_B25118_with_ann!AR60","v":4},{"$f":"[1]ACS_16_5YR_B25118_with_ann!AS60","v":4},{"$f":"[1]ACS_16_5YR_B25118_with_ann!AT60","v":19},{"$f":"[1]ACS_16_5YR_B25118_with_ann!AU60","v":19},{"$f":"[1]ACS_16_5YR_B25118_with_ann!AV60","v":0},{"$f":"[1]ACS_16_5YR_B25118_with_ann!AW60","v":12},{"$f":"[1]ACS_16_5YR_B25118_with_ann!AX60","v":6},{"$f":"[1]ACS_16_5YR_B25118_with_ann!AY60","v":5},{"$f":"[1]ACS_16_5YR_B25118_with_ann!AZ60","v":5},{"$f":"[1]ACS_16_5YR_B25118_with_ann!BA60","v":7},{"$f":"[1]ACS_16_5YR_B25119_with_ann!D60","v":97250},{"$f":"[1]ACS_16_5YR_B25119_with_ann!E60","v":12400},{"$f":"[1]ACS_16_5YR_B25119_with_ann!F60","v":100833},{"$f":"[1]ACS_16_5YR_B25119_with_ann!G60","v":6467},{"$f":"[1]ACS_16_5YR_B25119_with_ann!H60","v":66397},{"$f":"[1]ACS_16_5YR_B25119_with_ann!I60","v":11980}]
["06000US3300575300","0600000US3300575700","060",{"$f":"[1]ACS_16_5YR_B25118_with_ann!C61","v":"Surry"},{"$f":"[1]ACS_16_5YR_B25118_with_ann!D61","v":344},{"$f":"[1]ACS_16_5YR_B25118_with_ann!E61","v":58},{"$f":"[1]ACS_16_5YR_B25118_with_ann!F61","v":324},{"$f":"[1]ACS_16_5YR_B25118_with_ann!G61","v":59},{"$f":"[1]ACS_16_5YR_B25118_with_ann!H61","v":0},{"$f":"[1]ACS_16_5YR_B25118_with_ann!I61","v":12},{"$f":"[1]ACS_16_5YR_B25118_with_ann!J61","v":0},{"$f":"[1]ACS_16_5YR_B25118_with_ann!K61","v":12},{"$f":"[1]ACS_16_5YR_B25118_with_ann!L61","v":4},{"$f":"[1]ACS_16_5YR_B25118_with_ann!M61","v":5},{"$f":"[1]ACS_16_5YR_B25118_with_ann!N61","v":4},{"$f":"[1]ACS_16_5YR_B25118_with_ann!O61","v":5},{"$f":"[1]ACS_16_5YR_B25118_with_ann!P61","v":14},{"$f":"[1]ACS_16_5YR_B25118_with_ann!Q61","v":13},{"$f":"[1]ACS_16_5YR_B25118_with_ann!R61","v":5},{"$f":"[1]ACS_16_5YR_B25118_with_ann!S61","v":7},{"$f":"[1]ACS_16_5YR_B25118_with_ann!T61","v":45},{"$f":"[1]ACS_16_5YR_B25118_with_ann!U61","v":32},{"$f":"[1]ACS_16_5YR_B25118_with_ann!V61","v":44},{"$f":"[1]ACS_16_5YR_B25118_with_ann!W61","v":21},{"$f":"[1]ACS_16_5YR_B25118_with_ann!X61","v":46},{"$f":"[1]ACS_16_5YR_B25118_with_ann!Y61","v":19},{"$f":"[1]ACS_16_5YR_B25118_with_ann!Z61","v":71},{"$f":"[1]ACS_16_5YR_B25118_with_ann!AA61","v":24},{"$f":"[1]ACS_16_5YR_B25118_with_ann!AB61","v":91},{"$f":"[1]ACS_16_5YR_B25118_with_ann!AC61","v":44},{"$f":"[1]ACS_16_5YR_B25118_with_ann!AD61","v":20},{"$f":"[1]ACS_16_5YR_B25118_with_ann!AE61","v":9},{"$f":"[1]ACS_16_5YR_B25118_with_ann!AF61","v":0},{"$f":"[1]ACS_16_5YR_B25118_with_ann!AG61","v":12},{"$f":"[1]ACS_16_5YR_B25118_with_ann!AH61","v":0},{"$f":"[1]ACS_16_5YR_B25118_with_ann!AI61","v":12},{"$f":"[1]ACS_16_5YR_B25118_with_ann!AJ61","v":0},{"$f":"[1]ACS_16_5YR_B25118_with_ann!AK61","v":12},{"$f":"[1]ACS_16_5YR_B25118_with_ann!AL61","v":0},{"$f":"[1]ACS_16_5YR_B25118_with_ann!AM61","v":12},{"$f":"[1]ACS_16_5YR_B25118_with_ann!AN61","v":0},{"$f":"[1]ACS_16_5YR_B25118_with_ann!AO61","v":12},{"$f":"[1]ACS_16_5YR_B25118_with_ann!AP61","v":2},{"$f":"[1]ACS_16_5YR_B25118_with_ann!AQ61","v":3},{"$f":"[1]ACS_16_5YR_B25118_with_ann!AR61","v":2},{"$f":"[1]ACS_16_5YR_B25118_with_ann!AS61","v":4},{"$f":"[1]ACS_16_5YR_B25118_with_ann!AT61","v":3},{"$f":"[1]ACS_16_5YR_B25118_with_ann!AU61","v":4},{"$f":"[1]ACS_16_5YR_B25118_with_ann!AV61","v":6},{"$f":"[1]ACS_16_5YR_B25118_with_ann!AW61","v":5},{"$f":"[1]ACS_16_5YR_B25118_with_ann!AX61","v":2},{"$f":"[1]ACS_16_5YR_B25118_with_ann!AY61","v":3},{"$f":"[1]ACS_16_5YR_B25118_with_ann!AZ61","v":5},{"$f":"[1]ACS_16_5YR_B25118_with_ann!BA61","v":5},{"$f":"[1]ACS_16_5YR_B25119_with_ann!D61","v":93750},{"$f":"[1]ACS_16_5YR_B25119_with_ann!E61","v":26737},{"$f":"[1]ACS_16_5YR_B25119_with_ann!F61","v":98750},{"$f":"[1]ACS_16_5YR_B25119_with_ann!G61","v":24968},{"$f":"[1]ACS_16_5YR_B25119_with_ann!H61","v":84375},{"$f":"[1]ACS_16_5YR_B25119_with_ann!I61","v":27858}]
["06000US3300575700","0600000US3300577380","060",{"$f":"[1]ACS_16_5YR_B25118_with_ann!C62","v":"Swanzey"},{"$f":"[1]ACS_16_5YR_B25118_with_ann!D62","v":3255},{"$f":"[1]ACS_16_5YR_B25118_with_ann!E62","v":171},{"$f":"[1]ACS_16_5YR_B25118_with_ann!F62","v":2237},{"$f":"[1]ACS_16_5YR_B25118_with_ann!G62","v":250},{"$f":"[1]ACS_16_5YR_B25118_with_ann!H62","v":12},{"$f":"[1]ACS_16_5YR_B25118_with_ann!I62","v":21},{"$f":"[1]ACS_16_5YR_B25118_with_ann!J62","v":0},{"$f":"[1]ACS_16_5YR_B25118_with_ann!K62","v":17},{"$f":"[1]ACS_16_5YR_B25118_with_ann!L62","v":13},{"$f":"[1]ACS_16_5YR_B25118_with_ann!M62","v":21},{"$f":"[1]ACS_16_5YR_B25118_with_ann!N62","v":61},{"$f":"[1]ACS_16_5YR_B25118_with_ann!O62","v":72},{"$f":"[1]ACS_16_5YR_B25118_with_ann!P62","v":31},{"$f":"[1]ACS_16_5YR_B25118_with_ann!Q62","v":31},{"$f":"[1]ACS_16_5YR_B25118_with_ann!R62","v":64},{"$f":"[1]ACS_16_5YR_B25118_with_ann!S62","v":52},{"$f":"[1]ACS_16_5YR_B25118_with_ann!T62","v":230},{"$f":"[1]ACS_16_5YR_B25118_with_ann!U62","v":98},{"$f":"[1]ACS_16_5YR_B25118_with_ann!V62","v":445},{"$f":"[1]ACS_16_5YR_B25118_with_ann!W62","v":162},{"$f":"[1]ACS_16_5YR_B25118_with_ann!X62","v":277},{"$f":"[1]ACS_16_5YR_B25118_with_ann!Y62","v":107},{"$f":"[1]ACS_16_5YR_B25118_with_ann!Z62","v":755},{"$f":"[1]ACS_16_5YR_B25118_with_ann!AA62","v":225},{"$f":"[1]ACS_16_5YR_B25118_with_ann!AB62","v":349},{"$f":"[1]ACS_16_5YR_B25118_with_ann!AC62","v":149},{"$f":"[1]ACS_16_5YR_B25118_with_ann!AD62","v":1018},{"$f":"[1]ACS_16_5YR_B25118_with_ann!AE62","v":252},{"$f":"[1]ACS_16_5YR_B25118_with_ann!AF62","v":0},{"$f":"[1]ACS_16_5YR_B25118_with_ann!AG62","v":17},{"$f":"[1]ACS_16_5YR_B25118_with_ann!AH62","v":20},{"$f":"[1]ACS_16_5YR_B25118_with_ann!AI62","v":28},{"$f":"[1]ACS_16_5YR_B25118_with_ann!AJ62","v":114},{"$f":"[1]ACS_16_5YR_B25118_with_ann!AK62","v":84},{"$f":"[1]ACS_16_5YR_B25118_with_ann!AL62","v":147},{"$f":"[1]ACS_16_5YR_B25118_with_ann!AM62","v":96},{"$f":"[1]ACS_16_5YR_B25118_with_ann!AN62","v":67},{"$f":"[1]ACS_16_5YR_B25118_with_ann!AO62","v":62},{"$f":"[1]ACS_16_5YR_B25118_with_ann!AP62","v":195},{"$f":"[1]ACS_16_5YR_B25118_with_ann!AQ62","v":171},{"$f":"[1]ACS_16_5YR_B25118_with_ann!AR62","v":122},{"$f":"[1]ACS_16_5YR_B25118_with_ann!AS62","v":88},{"$f":"[1]ACS_16_5YR_B25118_with_ann!AT62","v":150},{"$f":"[1]ACS_16_5YR_B25118_with_ann!AU62","v":93},{"$f":"[1]ACS_16_5YR_B25118_with_ann!AV62","v":123},{"$f":"[1]ACS_16_5YR_B25118_with_ann!AW62","v":88},{"$f":"[1]ACS_16_5YR_B25118_with_ann!AX62","v":63},{"$f":"[1]ACS_16_5YR_B25118_with_ann!AY62","v":79},{"$f":"[1]ACS_16_5YR_B25118_with_ann!AZ62","v":17},{"$f":"[1]ACS_16_5YR_B25118_with_ann!BA62","v":20},{"$f":"[1]ACS_16_5YR_B25119_with_ann!D62","v":71875},{"$f":"[1]ACS_16_5YR_B25119_with_ann!E62","v":14009},{"$f":"[1]ACS_16_5YR_B25119_with_ann!F62","v":98831},{"$f":"[1]ACS_16_5YR_B25119_with_ann!G62","v":18563},{"$f":"[1]ACS_16_5YR_B25119_with_ann!H62","v":31866},{"$f":"[1]ACS_16_5YR_B25119_with_ann!I62","v":11877}]
["06000US3300577380","0600000US3300578420","060",{"$f":"[1]ACS_16_5YR_B25118_with_ann!C63","v":"Troy"},{"$f":"[1]ACS_16_5YR_B25118_with_ann!D63","v":758},{"$f":"[1]ACS_16_5YR_B25118_with_ann!E63","v":101},{"$f":"[1]ACS_16_5YR_B25118_with_ann!F63","v":525},{"$f":"[1]ACS_16_5YR_B25118_with_ann!G63","v":81},{"$f":"[1]ACS_16_5YR_B25118_with_ann!H63","v":26},{"$f":"[1]ACS_16_5YR_B25118_with_ann!I63","v":29},{"$f":"[1]ACS_16_5YR_B25118_with_ann!J63","v":0},{"$f":"[1]ACS_16_5YR_B25118_with_ann!K63","v":12},{"$f":"[1]ACS_16_5YR_B25118_with_ann!L63","v":15},{"$f":"[1]ACS_16_5YR_B25118_with_ann!M63","v":14},{"$f":"[1]ACS_16_5YR_B25118_with_ann!N63","v":0},{"$f":"[1]ACS_16_5YR_B25118_with_ann!O63","v":12},{"$f":"[1]ACS_16_5YR_B25118_with_ann!P63","v":11},{"$f":"[1]ACS_16_5YR_B25118_with_ann!Q63","v":13},{"$f":"[1]ACS_16_5YR_B25118_with_ann!R63","v":70},{"$f":"[1]ACS_16_5YR_B25118_with_ann!S63","v":44},{"$f":"[1]ACS_16_5YR_B25118_with_ann!T63","v":39},{"$f":"[1]ACS_16_5YR_B25118_with_ann!U63","v":29},{"$f":"[1]ACS_16_5YR_B25118_with_ann!V63","v":130},{"$f":"[1]ACS_16_5YR_B25118_with_ann!W63","v":48},{"$f":"[1]ACS_16_5YR_B25118_with_ann!X63","v":59},{"$f":"[1]ACS_16_5YR_B25118_with_ann!Y63","v":24},{"$f":"[1]ACS_16_5YR_B25118_with_ann!Z63","v":76},{"$f":"[1]ACS_16_5YR_B25118_with_ann!AA63","v":35},{"$f":"[1]ACS_16_5YR_B25118_with_ann!AB63","v":99},{"$f":"[1]ACS_16_5YR_B25118_with_ann!AC63","v":49},{"$f":"[1]ACS_16_5YR_B25118_with_ann!AD63","v":233},{"$f":"[1]ACS_16_5YR_B25118_with_ann!AE63","v":73},{"$f":"[1]ACS_16_5YR_B25118_with_ann!AF63","v":0},{"$f":"[1]ACS_16_5YR_B25118_with_ann!AG63","v":12},{"$f":"[1]ACS_16_5YR_B25118_with_ann!AH63","v":7},{"$f":"[1]ACS_16_5YR_B25118_with_ann!AI63","v":10},{"$f":"[1]ACS_16_5YR_B25118_with_ann!AJ63","v":7},{"$f":"[1]ACS_16_5YR_B25118_with_ann!AK63","v":11},{"$f":"[1]ACS_16_5YR_B25118_with_ann!AL63","v":11},{"$f":"[1]ACS_16_5YR_B25118_with_ann!AM63","v":17},{"$f":"[1]ACS_16_5YR_B25118_with_ann!AN63","v":38},{"$f":"[1]ACS_16_5YR_B25118_with_ann!AO63","v":35},{"$f":"[1]ACS_16_5YR_B25118_with_ann!AP63","v":61},{"$f":"[1]ACS_16_5YR_B25118_with_ann!AQ63","v":48},{"$f":"[1]ACS_16_5YR_B25118_with_ann!AR63","v":5},{"$f":"[1]ACS_16_5YR_B25118_with_ann!AS63","v":7},{"$f":"[1]ACS_16_5YR_B25118_with_ann!AT63","v":31},{"$f":"[1]ACS_16_5YR_B25118_with_ann!AU63","v":24},{"$f":"[1]ACS_16_5YR_B25118_with_ann!AV63","v":30},{"$f":"[1]ACS_16_5YR_B25118_with_ann!AW63","v":29},{"$f":"[1]ACS_16_5YR_B25118_with_ann!AX63","v":38},{"$f":"[1]ACS_16_5YR_B25118_with_ann!AY63","v":31},{"$f":"[1]ACS_16_5YR_B25118_with_ann!AZ63","v":5},{"$f":"[1]ACS_16_5YR_B25118_with_ann!BA63","v":9},{"$f":"[1]ACS_16_5YR_B25119_with_ann!D63","v":57500},{"$f":"[1]ACS_16_5YR_B25119_with_ann!E63","v":10628},{"$f":"[1]ACS_16_5YR_B25119_with_ann!F63","v":64063},{"$f":"[1]ACS_16_5YR_B25119_with_ann!G63","v":19188},{"$f":"[1]ACS_16_5YR_B25119_with_ann!H63","v":31806},{"$f":"[1]ACS_16_5YR_B25119_with_ann!I63","v":27222}]
["06000US3300578420","0600000US3300582660","060",{"$f":"[1]ACS_16_5YR_B25118_with_ann!C64","v":"Walpole"},{"$f":"[1]ACS_16_5YR_B25118_with_ann!D64","v":1427},{"$f":"[1]ACS_16_5YR_B25118_with_ann!E64","v":121},{"$f":"[1]ACS_16_5YR_B25118_with_ann!F64","v":945},{"$f":"[1]ACS_16_5YR_B25118_with_ann!G64","v":130},{"$f":"[1]ACS_16_5YR_B25118_with_ann!H64","v":27},{"$f":"[1]ACS_16_5YR_B25118_with_ann!I64","v":40},{"$f":"[1]ACS_16_5YR_B25118_with_ann!J64","v":65},{"$f":"[1]ACS_16_5YR_B25118_with_ann!K64","v":77},{"$f":"[1]ACS_16_5YR_B25118_with_ann!L64","v":0},{"$f":"[1]ACS_16_5YR_B25118_with_ann!M64","v":12},{"$f":"[1]ACS_16_5YR_B25118_with_ann!N64","v":15},{"$f":"[1]ACS_16_5YR_B25118_with_ann!O64","v":15},{"$f":"[1]ACS_16_5YR_B25118_with_ann!P64","v":0},{"$f":"[1]ACS_16_5YR_B25118_with_ann!Q64","v":12},{"$f":"[1]ACS_16_5YR_B25118_with_ann!R64","v":37},{"$f":"[1]ACS_16_5YR_B25118_with_ann!S64","v":30},{"$f":"[1]ACS_16_5YR_B25118_with_ann!T64","v":74},{"$f":"[1]ACS_16_5YR_B25118_with_ann!U64","v":59},{"$f":"[1]ACS_16_5YR_B25118_with_ann!V64","v":130},{"$f":"[1]ACS_16_5YR_B25118_with_ann!W64","v":61},{"$f":"[1]ACS_16_5YR_B25118_with_ann!X64","v":111},{"$f":"[1]ACS_16_5YR_B25118_with_ann!Y64","v":52},{"$f":"[1]ACS_16_5YR_B25118_with_ann!Z64","v":207},{"$f":"[1]ACS_16_5YR_B25118_with_ann!AA64","v":68},{"$f":"[1]ACS_16_5YR_B25118_with_ann!AB64","v":279},{"$f":"[1]ACS_16_5YR_B25118_with_ann!AC64","v":81},{"$f":"[1]ACS_16_5YR_B25118_with_ann!AD64","v":482},{"$f":"[1]ACS_16_5YR_B25118_with_ann!AE64","v":141},{"$f":"[1]ACS_16_5YR_B25118_with_ann!AF64","v":21},{"$f":"[1]ACS_16_5YR_B25118_with_ann!AG64","v":32},{"$f":"[1]ACS_16_5YR_B25118_with_ann!AH64","v":69},{"$f":"[1]ACS_16_5YR_B25118_with_ann!AI64","v":80},{"$f":"[1]ACS_16_5YR_B25118_with_ann!AJ64","v":0},{"$f":"[1]ACS_16_5YR_B25118_with_ann!AK64","v":12},{"$f":"[1]ACS_16_5YR_B25118_with_ann!AL64","v":20},{"$f":"[1]ACS_16_5YR_B25118_with_ann!AM64","v":31},{"$f":"[1]ACS_16_5YR_B25118_with_ann!AN64","v":7},{"$f":"[1]ACS_16_5YR_B25118_with_ann!AO64","v":11},{"$f":"[1]ACS_16_5YR_B25118_with_ann!AP64","v":19},{"$f":"[1]ACS_16_5YR_B25118_with_ann!AQ64","v":21},{"$f":"[1]ACS_16_5YR_B25118_with_ann!AR64","v":67},{"$f":"[1]ACS_16_5YR_B25118_with_ann!AS64","v":64},{"$f":"[1]ACS_16_5YR_B25118_with_ann!AT64","v":105},{"$f":"[1]ACS_16_5YR_B25118_with_ann!AU64","v":68},{"$f":"[1]ACS_16_5YR_B25118_with_ann!AV64","v":22},{"$f":"[1]ACS_16_5YR_B25118_with_ann!AW64","v":34},{"$f":"[1]ACS_16_5YR_B25118_with_ann!AX64","v":107},{"$f":"[1]ACS_16_5YR_B25118_with_ann!AY64","v":67},{"$f":"[1]ACS_16_5YR_B25118_with_ann!AZ64","v":45},{"$f":"[1]ACS_16_5YR_B25118_with_ann!BA64","v":43},{"$f":"[1]ACS_16_5YR_B25119_with_ann!D64","v":83750},{"$f":"[1]ACS_16_5YR_B25119_with_ann!E64","v":25480},{"$f":"[1]ACS_16_5YR_B25119_with_ann!F64","v":102411},{"$f":"[1]ACS_16_5YR_B25119_with_ann!G64","v":23198},{"$f":"[1]ACS_16_5YR_B25119_with_ann!H64","v":58380},{"$f":"[1]ACS_16_5YR_B25119_with_ann!I64","v":12321}]
["06000US3300582660","0600000US3300585540","060",{"$f":"[1]ACS_16_5YR_B25118_with_ann!C65","v":"Westmoreland"},{"$f":"[1]ACS_16_5YR_B25118_with_ann!D65","v":885},{"$f":"[1]ACS_16_5YR_B25118_with_ann!E65","v":182},{"$f":"[1]ACS_16_5YR_B25118_with_ann!F65","v":787},{"$f":"[1]ACS_16_5YR_B25118_with_ann!G65","v":179},{"$f":"[1]ACS_16_5YR_B25118_with_ann!H65","v":72},{"$f":"[1]ACS_16_5YR_B25118_with_ann!I65","v":99},{"$f":"[1]ACS_16_5YR_B25118_with_ann!J65","v":0},{"$f":"[1]ACS_16_5YR_B25118_with_ann!K65","v":12},{"$f":"[1]ACS_16_5YR_B25118_with_ann!L65","v":0},{"$f":"[1]ACS_16_5YR_B25118_with_ann!M65","v":12},{"$f":"[1]ACS_16_5YR_B25118_with_ann!N65","v":38},{"$f":"[1]ACS_16_5YR_B25118_with_ann!O65","v":45},{"$f":"[1]ACS_16_5YR_B25118_with_ann!P65","v":24},{"$f":"[1]ACS_16_5YR_B25118_with_ann!Q65","v":29},{"$f":"[1]ACS_16_5YR_B25118_with_ann!R65","v":23},{"$f":"[1]ACS_16_5YR_B25118_with_ann!S65","v":16},{"$f":"[1]ACS_16_5YR_B25118_with_ann!T65","v":42},{"$f":"[1]ACS_16_5YR_B25118_with_ann!U65","v":24},{"$f":"[1]ACS_16_5YR_B25118_with_ann!V65","v":110},{"$f":"[1]ACS_16_5YR_B25118_with_ann!W65","v":57},{"$f":"[1]ACS_16_5YR_B25118_with_ann!X65","v":84},{"$f":"[1]ACS_16_5YR_B25118_with_ann!Y65","v":31},{"$f":"[1]ACS_16_5YR_B25118_with_ann!Z65","v":180},{"$f":"[1]ACS_16_5YR_B25118_with_ann!AA65","v":86},{"$f":"[1]ACS_16_5YR_B25118_with_ann!AB65","v":214},{"$f":"[1]ACS_16_5YR_B25118_with_ann!AC65","v":56},{"$f":"[1]ACS_16_5YR_B25118_with_ann!AD65","v":98},{"$f":"[1]ACS_16_5YR_B25118_with_ann!AE65","v":54},{"$f":"[1]ACS_16_5YR_B25118_with_ann!AF65","v":0},{"$f":"[1]ACS_16_5YR_B25118_with_ann!AG65","v":12},{"$f":"[1]ACS_16_5YR_B25118_with_ann!AH65","v":0},{"$f":"[1]ACS_16_5YR_B25118_with_ann!AI65","v":12},{"$f":"[1]ACS_16_5YR_B25118_with_ann!AJ65","v":0},{"$f":"[1]ACS_16_5YR_B25118_with_ann!AK65","v":12},{"$f":"[1]ACS_16_5YR_B25118_with_ann!AL65","v":9},{"$f":"[1]ACS_16_5YR_B25118_with_ann!AM65","v":14},{"$f":"[1]ACS_16_5YR_B25118_with_ann!AN65","v":3},{"$f":"[1]ACS_16_5YR_B25118_with_ann!AO65","v":5},{"$f":"[1]ACS_16_5YR_B25118_with_ann!AP65","v":20},{"$f":"[1]ACS_16_5YR_B25118_with_ann!AQ65","v":20},{"$f":"[1]ACS_16_5YR_B25118_with_ann!AR65","v":8},{"$f":"[1]ACS_16_5YR_B25118_with_ann!AS65","v":15},{"$f":"[1]ACS_16_5YR_B25118_with_ann!AT65","v":19},{"$f":"[1]ACS_16_5YR_B25118_with_ann!AU65","v":22},{"$f":"[1]ACS_16_5YR_B25118_with_ann!AV65","v":5},{"$f":"[1]ACS_16_5YR_B25118_with_ann!AW65","v":6},{"$f":"[1]ACS_16_5YR_B25118_with_ann!AX65","v":3},{"$f":"[1]ACS_16_5YR_B25118_with_ann!AY65","v":5},{"$f":"[1]ACS_16_5YR_B25118_with_ann!AZ65","v":31},{"$f":"[1]ACS_16_5YR_B25118_with_ann!BA65","v":33},{"$f":"[1]ACS_16_5YR_B25119_with_ann!D65","v":94609},{"$f":"[1]ACS_16_5YR_B25119_with_ann!E65","v":21805},{"$f":"[1]ACS_16_5YR_B25119_with_ann!F65","v":100104},{"$f":"[1]ACS_16_5YR_B25119_with_ann!G65","v":21980},{"$f":"[1]ACS_16_5YR_B25119_with_ann!H65","v":58542},{"$f":"[1]ACS_16_5YR_B25119_with_ann!I65","v":43213}]
["06000US3300585540","0600000US3300500820","060",{"$f":"[1]ACS_16_5YR_B25118_with_ann!C66","v":"Winchester"},{"$f":"[1]ACS_16_5YR_B25118_with_ann!D66","v":1617},{"$f":"[1]ACS_16_5YR_B25118_with_ann!E66","v":146},{"$f":"[1]ACS_16_5YR_B25118_with_ann!F66","v":1052},{"$f":"[1]ACS_16_5YR_B25118_with_ann!G66","v":163},{"$f":"[1]ACS_16_5YR_B25118_with_ann!H66","v":18},{"$f":"[1]ACS_16_5YR_B25118_with_ann!I66","v":20},{"$f":"[1]ACS_16_5YR_B25118_with_ann!J66","v":0},{"$f":"[1]ACS_16_5YR_B25118_with_ann!K66","v":12},{"$f":"[1]ACS_16_5YR_B25118_with_ann!L66","v":5},{"$f":"[1]ACS_16_5YR_B25118_with_ann!M66","v":9},{"$f":"[1]ACS_16_5YR_B25118_with_ann!N66","v":41},{"$f":"[1]ACS_16_5YR_B25118_with_ann!O66","v":34},{"$f":"[1]ACS_16_5YR_B25118_with_ann!P66","v":43},{"$f":"[1]ACS_16_5YR_B25118_with_ann!Q66","v":32},{"$f":"[1]ACS_16_5YR_B25118_with_ann!R66","v":73},{"$f":"[1]ACS_16_5YR_B25118_with_ann!S66","v":51},{"$f":"[1]ACS_16_5YR_B25118_with_ann!T66","v":156},{"$f":"[1]ACS_16_5YR_B25118_with_ann!U66","v":76},{"$f":"[1]ACS_16_5YR_B25118_with_ann!V66","v":182},{"$f":"[1]ACS_16_5YR_B25118_with_ann!W66","v":84},{"$f":"[1]ACS_16_5YR_B25118_with_ann!X66","v":155},{"$f":"[1]ACS_16_5YR_B25118_with_ann!Y66","v":87},{"$f":"[1]ACS_16_5YR_B25118_with_ann!Z66","v":214},{"$f":"[1]ACS_16_5YR_B25118_with_ann!AA66","v":74},{"$f":"[1]ACS_16_5YR_B25118_with_ann!AB66","v":165},{"$f":"[1]ACS_16_5YR_B25118_with_ann!AC66","v":81},{"$f":"[1]ACS_16_5YR_B25118_with_ann!AD66","v":565},{"$f":"[1]ACS_16_5YR_B25118_with_ann!AE66","v":145},{"$f":"[1]ACS_16_5YR_B25118_with_ann!AF66","v":16},{"$f":"[1]ACS_16_5YR_B25118_with_ann!AG66","v":26},{"$f":"[1]ACS_16_5YR_B25118_with_ann!AH66","v":31},{"$f":"[1]ACS_16_5YR_B25118_with_ann!AI66","v":30},{"$f":"[1]ACS_16_5YR_B25118_with_ann!AJ66","v":20},{"$f":"[1]ACS_16_5YR_B25118_with_ann!AK66","v":15},{"$f":"[1]ACS_16_5YR_B25118_with_ann!AL66","v":104},{"$f":"[1]ACS_16_5YR_B25118_with_ann!AM66","v":67},{"$f":"[1]ACS_16_5YR_B25118_with_ann!AN66","v":58},{"$f":"[1]ACS_16_5YR_B25118_with_ann!AO66","v":74},{"$f":"[1]ACS_16_5YR_B25118_with_ann!AP66","v":56},{"$f":"[1]ACS_16_5YR_B25118_with_ann!AQ66","v":40},{"$f":"[1]ACS_16_5YR_B25118_with_ann!AR66","v":132},{"$f":"[1]ACS_16_5YR_B25118_with_ann!AS66","v":72},{"$f":"[1]ACS_16_5YR_B25118_with_ann!AT66","v":101},{"$f":"[1]ACS_16_5YR_B25118_with_ann!AU66","v":78},{"$f":"[1]ACS_16_5YR_B25118_with_ann!AV66","v":0},{"$f":"[1]ACS_16_5YR_B25118_with_ann!AW66","v":12},{"$f":"[1]ACS_16_5YR_B25118_with_ann!AX66","v":39},{"$f":"[1]ACS_16_5YR_B25118_with_ann!AY66","v":49},{"$f":"[1]ACS_16_5YR_B25118_with_ann!AZ66","v":8},{"$f":"[1]ACS_16_5YR_B25118_with_ann!BA66","v":14},{"$f":"[1]ACS_16_5YR_B25119_with_ann!D66","v":56645},{"$f":"[1]ACS_16_5YR_B25119_with_ann!E66","v":12560},{"$f":"[1]ACS_16_5YR_B25119_with_ann!F66","v":76250},{"$f":"[1]ACS_16_5YR_B25119_with_ann!G66","v":19094},{"$f":"[1]ACS_16_5YR_B25119_with_ann!H66","v":34740},{"$f":"[1]ACS_16_5YR_B25119_with_ann!I66","v":13783}]
[]
[]
[]
[null,null,null,null,{"$f":"$D$3","v":"Alstead"},null,{"$f":"$D$4","v":"Chesterfield"},null,{"$f":"$D$5","v":"Dublin"},null,{"$f":"$D$6","v":"Fitzwilliam"},null,{"$f":"$D$7","v":"Gilsum"},null,{"$f":"$D$8","v":"Harrisville"},null,{"$f":"$D$9","v":"Hinsdale"},null,{"$f":"$D$10","v":"Jaffrey"},null,{"$f":"$D$11","v":"Keene"},null,{"$f":"$D$12","v":"Marlborough"},null,{"$f":"$D$13","v":"Marlow"},null,{"$f":"$D$14","v":"Nelson"},null,{"$f":"$D$15","v":"Richmond"},null,{"$f":"$D$16","v":"Rindge"},null,{"$f":"$D$17","v":"Roxbury"},null,{"$f":"$D$18","v":"Stoddard"},null,{"$f":"$D$19","v":"Sullivan"},null,{"$f":"$D$20","v":"Surry"},null,{"$f":"$D$21","v":"Swanzey"},null,{"$f":"$D$22","v":"Troy"},null,{"$f":"$D$23","v":"Walpole"},null,{"$f":"$D$24","v":"Westmoreland"},null,{"$f":"$D$25","v":"Winchester"}]
["TABLE B25118",null,null,null,"Estimate","Margin of Error","Estimate","Margin of Error","Estimate","Margin of Error","Estimate","Margin of Error","Estimate","Margin of Error","Estimate","Margin of Error","Estimate","Margin of Error","Estimate","Margin of Error","Estimate","Margin of Error","Estimate","Margin of Error","Estimate","Margin of Error","Estimate","Margin of Error","Estimate","Margin of Error","Estimate","Margin of Error","Estimate","Margin of Error","Estimate","Margin of Error","Estimate","Margin of Error","Estimate","Margin of Error","Estimate","Margin of Error","Estimate","Margin of Error","Estimate","Margin of Error","Estimate","Margin of Error","Estimate","Margin of Error"]
[null,null,null,"Estimate!!Total:",723,97,1366,158,635,101,1013,154,310,51,416,75,1594,139,2026,225,9259,370,942,130,314,61,246,41,393,73,1972,144,95,37,436,52,281,53,344,58,3255,171,758,101,1427,121,885,182,1617,146]
[null,null,null,"Estimate!!Total:!!Owner occupied:",507,86,1227,184,530,99,957,154,285,50,386,73,1373,192,1580,229,4762,346,608,113,279,56,225,42,383,72,1711,137,94,38,405,49,240,46,324,59,2237,250,525,81,945,130,787,179,1052,163]
[null,null,null,"Estimate!!Total:!!Owner occupied:!!Less than $5,000",6,8,0,12,12,10,37,33,0,12,7,9,0,12,12,19,53,46,6,9,2,3,2,3,0,12,0,17,0,12,2,4,0,12,0,12,12,21,26,29,27,40,72,99,18,20]
[null,null,null,"Estimate!!Total:!!Owner occupied:!!$5,000 to $9,999",20,26,0,12,0,12,9,10,2,4,0,12,0,12,16,26,36,37,0,12,0,12,1,4,0,12,0,17,0,12,8,12,0,12,0,12,0,17,0,12,65,77,0,12,0,12]
[null,null,null,"Estimate!!Total:!!Owner occupied:!!$10,000 to $14,999",7,9,18,29,34,53,37,32,12,12,3,4,0,12,0,17,55,44,10,16,12,12,2,2,3,5,43,40,1,2,2,4,8,9,4,5,13,21,15,14,0,12,0,12,5,9]
[null,null,null,"Estimate!!Total:!!Owner occupied:!!$15,000 to $19,999",17,13,39,39,3,3,29,29,8,6,3,4,3,5,1,4,195,95,18,19,9,10,3,3,31,25,21,20,0,12,0,12,9,9,4,5,61,72,0,12,15,15,38,45,41,34]
[null,null,null,"Estimate!!Total:!!Owner occupied:!!$20,000 to $24,999",49,52,33,38,0,12,19,21,4,5,3,4,67,50,39,39,88,60,13,14,7,6,2,3,0,12,53,47,4,6,8,9,4,7,14,13,31,31,11,13,0,12,24,29,43,32]
[null,null,null,"Estimate!!Total:!!Owner occupied:!!$25,000 to $34,999",26,23,53,80,8,8,61,37,10,7,15,11,71,45,93,84,274,128,38,22,15,12,16,15,25,15,25,28,8,6,24,10,4,4,5,7,64,52,70,44,37,30,23,16,73,51]
[null,null,null,"Estimate!!Total:!!Owner occupied:!!$35,000 to $49,999",42,22,115,101,26,23,93,43,48,30,51,23,159,100,39,35,362,155,33,29,16,13,11,7,34,19,184,115,9,7,26,15,18,9,45,32,230,98,39,29,74,59,42,24,156,76]
[null,null,null,"Estimate!!Total:!!Owner occupied:!!$50,000 to $74,999",94,49,119,97,69,28,158,59,64,23,66,34,458,212,379,232,620,170,109,50,36,18,41,17,69,32,269,98,27,35,87,28,34,14,44,21,445,162,130,48,130,61,110,57,182,84]
[null,null,null,"Estimate!!Total:!!Owner occupied:!!$75,000 to $99,999",68,30,99,78,106,65,179,103,36,17,76,32,185,84,183,107,866,228,97,65,39,22,33,16,64,28,193,84,10,8,62,24,36,16,46,19,277,107,59,24,111,52,84,31,155,87]
[null,null,null,"Estimate!!Total:!!Owner occupied:!!$100,000 to $149,999",84,29,390,151,92,29,154,51,42,19,61,26,254,93,510,183,1264,216,148,55,92,43,60,23,86,43,516,143,15,11,100,33,74,30,71,24,755,225,76,35,207,68,180,86,214,74]
[null,null,null,"Estimate!!Total:!!Owner occupied:!!$150,000 or more",94,30,361,143,180,47,181,53,59,23,101,44,176,97,308,125,949,196,136,64,51,22,54,21,71,35,407,115,20,12,86,27,53,26,91,44,349,149,99,49,279,81,214,56,165,81]
[null,null,null,"Estimate!!Total:!!Renter occupied:",216,81,139,90,105,41,56,29,25,14,30,15,221,105,446,167,4497,356,334,92,35,29,21,11,10,9,261,119,1,3,31,18,41,21,20,9,1018,252,233,73,482,141,98,54,565,145]
[null,null,null,"Estimate!!Total:!!Renter occupied:!!Less than $5,000",28,38,0,12,12,13,13,13,0,12,0,12,29,47,12,21,62,81,5,8,0,12,0,12,0,12,0,17,0,12,0,12,0,12,0,12,0,17,0,12,21,32,0,12,16,26]
[null,null,null,"Estimate!!Total:!!Renter occupied:!!$5,000 to $9,999",0,12,0,12,0,12,0,12,0,12,0,12,0,12,0,17,73,59,9,13,0,12,0,12,0,12,0,17,0,12,0,12,0,12,0,12,20,28,7,10,69,80,0,12,31,30]
[null,null,null,"Estimate!!Total:!!Renter occupied:!!$10,000 to $14,999",40,48,0,12,7,7,7,10,0,12,0,12,14,21,28,42,437,158,28,25,0,12,0,12,0,12,0,17,0,12,0,12,0,12,0,12,114,84,7,11,0,12,0,12,20,15]
[null,null,null,"Estimate!!Total:!!Renter occupied:!!$15,000 to $19,999",6,8,0,12,0,12,0,12,0,12,0,12,0,12,33,34,439,167,11,17,2,3,0,12,0,12,27,33,0,12,0,12,0,12,0,12,147,96,11,17,20,31,9,14,104,67]
[null,null,null,"Estimate!!Total:!!Renter occupied:!!$20,000 to $24,999",24,30,0,12,9,8,0,12,0,12,4,5,0,12,15,27,103,63,96,74,0,12,0,12,0,12,14,22,0,12,0,12,5,6,0,12,67,62,38,35,7,11,3,5,58,74]
[null,null,null,"Estimate!!Total:!!Renter occupied:!!$25,000 to $34,999",9,9,70,71,17,13,4,6,3,4,0,12,38,33,80,61,550,182,44,30,7,10,4,5,0,12,39,35,0,12,0,12,2,3,2,3,195,171,61,48,19,21,20,20,56,40]
[null,null,null,"Estimate!!Total:!!Renter occupied:!!$35,000 to $49,999",28,22,20,32,12,13,3,5,8,7,0,12,9,14,21,27,658,188,31,20,6,7,2,3,3,6,0,17,0,12,0,12,4,4,2,4,122,88,5,7,67,64,8,15,132,72]
[null,null,null,"Estimate!!Total:!!Renter occupied:!!$50,000 to $74,999",50,40,22,34,22,24,0,12,12,11,10,8,49,50,167,124,863,212,45,29,0,12,4,4,0,12,99,82,0,12,15,16,19,19,3,4,150,93,31,24,105,68,19,22,101,78]
[null,null,null,"Estimate!!Total:!!Renter occupied:!!$75,000 to $99,999",6,8,9,19,3,4,7,7,2,3,5,6,0,12,0,17,590,156,9,10,3,4,9,9,3,4,49,41,0,12,3,4,0,12,6,5,123,88,30,29,22,34,5,6,0,12]
[null,null,null,"Estimate!!Total:!!Renter occupied:!!$100,000 to $149,999",20,18,0,12,23,21,22,22,0,12,2,3,0,12,73,80,423,183,46,39,17,24,2,2,4,6,27,27,0,12,13,10,6,5,2,3,63,79,38,31,107,67,3,5,39,49]
[null,null,null,"Estimate!!Total:!!Renter occupied:!!$150,000 or more",5,8,18,27,0,12,0,12,0,12,9,12,82,80,17,28,299,140,10,11,0,12,0,12,0,12,6,8,1,3,0,12,5,7,5,5,17,20,5,9,45,43,31,33,8,14]
[]
[null,null,null,"Estimate!!Median household income in the past 12 months (in 2022 inflation-adjusted dollars) --!!Total:",52957,3261,109500,14674,96463,5718,85733,19127,70000,10396,89737,9021,67054,11035,82167,25777,69381,8852,70800,15162,103333,19217,91786,15185,88125,15891,97794,12003,67440,41668,88750,13242,97250,12400,93750,26737,71875,14009,57500,10628,83750,25480,94609,21805,56645,12560]
[null,null,null,"Estimate!!Median household income in the past 12 months (in 2022 inflation-adjusted dollars) --!!Total:!!Owner occupied (dollars)",70750,30611,111607,21913,101250,15206,85905,19580,73854,10906,89868,9808,68563,12877,101458,32070,93214,7298,95962,18162,105375,17857,105536,32806,89375,16454,104875,17820,67381,35722,89028,14293,100833,6467,98750,24968,98831,18563,64063,19188,102411,23198,100104,21980,76250,19094]
[null,null,null,"Estimate!!Median household income in the past 12 months (in 2022 inflation-adjusted dollars) --!!Total:!!Renter occupied (dollars)",37727,31230,34966,31691,48750,34676,"-","**",51875,10280,86250,38850,"-","**",65278,28183,48250,4581,30625,11516,"-","**",75417,23451,79167,57992,56161,2312,"-","**",87917,53953,66397,11980,84375,27858,31866,11877,31806,27222,58380,12321,58542,43213,34740,13783]

{"sheet":"PopComparison","index":109,"n_rows":56,"n_cols":14,"rows_kept":56,"cut":false,"hidden":true,"merged":[[35,1,35,2],[26,13,26,14],[27,3,27,4],[27,5,27,6],[27,7,27,8],[27,9,27,10],[29,1,29,2],[30,1,30,2],[31,1,31,2],[32,1,32,2],[33,1,33,2],[34,1,34,2],[47,1,47,2],[36,1,36,2],[37,1,37,2],[38,1,38,2],[39,1,39,2],[40,1,40,2],[41,1,41,2],[42,1,42,2],[43,1,43,2],[44,1,44,2],[45,1,45,2],[46,1,46,2],[48,1,48,2],[49,1,49,2],[50,1,50,2],[51,1,51,2],[53,1,53,2]]}
[]
[]
[]
[]
[]
[]
[]
[]
[]
[]
[]
[]
[]
[]
[]
[]
[]
[]
[]
[]
[]
[]
[]
[]
[]
[]
[]
[null,null,null,2000,null,2010,null,2020,null,2030,null,null,"2000-2010","2010-2020"]
[null,null,null,"#","%","#","%","#","%","#","%",null,"% Change","% Change"]
[null,"Alstead",null,{"$f":"CntyQuery!$G77","v":1944},{"$f":"D30/$D$54","v":2.6332543176430748E-2},{"$f":"CntyQuery!$H77","v":1937},{"$f":"F30/$F$54","v":2.5117678332922701E-2},{"$f":"CntyQuery!$I77","v":1864},{"$f":"H30/$H$54","v":2.4379397839336629E-2},{"$f":"CntyQuery!$J77","v":1892},{"$f":"J30/$J$54","v":2.4342858613280498E-2},null,{"$f":"(F30-D30)/D30","v":-3.6008230452674898E-3},{"$f":"(H30-F30)/F30","v":-3.7687145069695407E-2}]
[null,"Chesterfield",null,{"$f":"CntyQuery!$G78","v":3542},4.797832712495767E-2,{"$f":"CntyQuery!$H78","v":3604},4.6734183124343527E-2,{"$f":"CntyQuery!$I78","v":3552},{"$f":"H31/$H$54","v":4.6456878286117866E-2},{"$f":"CntyQuery!$J78","v":3609},{"$f":"J31/$J$54","v":4.6434131466875958E-2},null,{"$f":"(F31-D31)/D31","v":1.7504234895539244E-2},{"$f":"(H31-F31)/F31","v":-1.4428412874583796E-2}]
[null,"Dublin",null,{"$f":"CntyQuery!$G79","v":1476},1.9993227226549271E-2,{"$f":"CntyQuery!$H79","v":1597},2.0708793132512934E-2,{"$f":"CntyQuery!$I79","v":1532},2.0037144576107144E-2,{"$f":"CntyQuery!$J79","v":1557},2.0032680159026286E-2,null,8.1978319783197834E-2,-4.0701314965560426E-2]
[null,"Fitzwilliam",null,{"$f":"CntyQuery!$G80","v":2141},2.9001015916017611E-2,{"$f":"CntyQuery!$H80","v":2396},3.1069673353475886E-2,{"$f":"CntyQuery!$I80","v":2351},3.0748907897146145E-2,{"$f":"CntyQuery!$J80","v":2390},{"$f":"J33/$J$54","v":3.0750228375127055E-2},null,0.11910322279308734,-1.8781302170283808E-2]
[null,"Gilsum",null,{"$f":"CntyQuery!$G81","v":777},1.0524889942431425E-2,{"$f":"CntyQuery!$H81","v":813},1.0542422552744532E-2,{"$f":"CntyQuery!$I81","v":752},9.8354652227366657E-3,{"$f":"CntyQuery!$J81","v":764},9.8297801165678107E-3,null,4.633204633204633E-2,-7.5030750307503072E-2]
[null,"Harrisville",null,{"$f":"CntyQuery!$G82","v":1075},1.4561462919065358E-2,{"$f":"CntyQuery!$H82","v":961},1.2461584345864076E-2,{"$f":"CntyQuery!$I82","v":984},1.286981087655968E-2,{"$f":"CntyQuery!$J82","v":999},1.2853338136716286E-2,null,-0.10604651162790697,2.3933402705515087E-2]
[null,"Hinsdale",null,{"$f":"CntyQuery!$G83","v":4082},5.5292922451743991E-2,{"$f":"CntyQuery!$H83","v":4046},5.2465733884876228E-2,{"$f":"CntyQuery!$I83","v":3948},5.1636192419367496E-2,{"$f":"CntyQuery!$J83","v":4009},5.1580613203298896E-2,null,-8.8192062714355715E-3,-2.4221453287197232E-2]
[null,"Jaffrey",null,{"$f":"CntyQuery!$G84","v":5476},7.4175414832373859E-2,{"$f":"CntyQuery!$H84","v":5457},7.0762607466576755E-2,{"$f":"CntyQuery!$I84","v":5320},6.9580684820424288E-2,{"$f":"CntyQuery!$J84","v":5404},6.9528968259073884E-2,null,-3.4696859021183346E-3,-2.5105369250503939E-2]
[null,"Keene",null,{"$f":"CntyQuery!$G85","v":22563},0.30562817473755505,{"$f":"CntyQuery!$H85","v":23409},0.30355174604821245,{"$f":"CntyQuery!$I85","v":23047},0.30143346673990951,{"$f":"CntyQuery!$J85","v":23424},{"$f":"J38/$J$54","v":0.30137797048492726},null,3.7495013960909457E-2,-1.5464137724806698E-2]
[null,"Marlborough",null,{"$f":"CntyQuery!$G86","v":2009},2.7213003725025397E-2,{"$f":"CntyQuery!$H86","v":2063},2.6751559318956911E-2,{"$f":"CntyQuery!$I86","v":2096},2.7413743493159642E-2,{"$f":"CntyQuery!$J86","v":2131},{"$f":"J39/$J$54","v":2.7417881450793203E-2},null,2.6879044300647088E-2,1.5996122152205527E-2]
[null,"Marlow",null,{"$f":"CntyQuery!$G87","v":747},1.0118523535387742E-2,{"$f":"CntyQuery!$H87","v":742},9.6217435844236678E-3,{"$f":"CntyQuery!$I87","v":749},9.7962279944544713E-3,{"$f":"CntyQuery!$J87","v":761},9.7911815035446395E-3,null,-6.6934404283801874E-3,9.433962264150943E-3]
[null,"Nelson",null,{"$f":"CntyQuery!$G88","v":634},8.5878767355231974E-3,{"$f":"CntyQuery!$H88","v":729},9.4531685620550584E-3,{"$f":"CntyQuery!$I88","v":629},8.2267388631667056E-3,{"$f":"CntyQuery!$J88","v":639},8.2215045739356431E-3,null,0.14984227129337541,-0.13717421124828533]
[null,"Richmond",null,{"$f":"CntyQuery!$G89","v":1077},1.4588554012868269E-2,{"$f":"CntyQuery!$H89","v":1155},1.4977242371980238E-2,{"$f":"CntyQuery!$I89","v":1197},1.5655654084595464E-2,{"$f":"CntyQuery!$J89","v":1217},1.565817068306679E-2,null,{"$f":"(F42-D42)/D42","v":7.2423398328690811E-2},3.6363636363636362E-2]
[null,"Rindge",null,{"$f":"CntyQuery!$G90","v":5451},7.3836776159837456E-2,{"$f":"CntyQuery!$H90","v":6014},7.7985398809600995E-2,{"$f":"CntyQuery!$I90","v":6476},8.470009678516309E-2,{"$f":"CntyQuery!$J90","v":6589},8.4775420403226845E-2,null,{"$f":"(F43-D43)/D43","v":0.10328380113740598},7.6820751579647489E-2]
[null,"Roxbury",null,{"$f":"CntyQuery!$G91","v":237},3.2102946156451068E-3,{"$f":"CntyQuery!$H91","v":229},2.9695138555701078E-3,{"$f":"CntyQuery!$I91","v":220},2.8773967406942372E-3,{"$f":"CntyQuery!$J91","v":224},2.8820297723968452E-3,null,-3.3755274261603373E-2,-3.9301310043668124E-2]
[null,"Stoddard",null,{"$f":"CntyQuery!$G92","v":928},1.2570267524551303E-2,{"$f":"CntyQuery!$H92","v":1232},1.5975725196778919E-2,{"$f":"CntyQuery!$I92","v":1374},1.797065055324492E-2,{"$f":"CntyQuery!$J92","v":1397},1.7974087464457111E-2,null,0.32758620689655171,0.11525974025974026]
[null,"Sullivan",null,{"$f":"CntyQuery!$G93","v":746},1.0104977988486285E-2,{"$f":"CntyQuery!$H93","v":677},8.7788684725806244E-3,{"$f":"CntyQuery!$I93","v":658},8.6060320698945827E-3,{"$f":"CntyQuery!$J93","v":668},8.5946244998263057E-3,null,-9.2493297587131373E-2,-2.8064992614475627E-2]
[null,"Surry",null,{"$f":"CntyQuery!$G94","v":673},9.1161530646799872E-3,{"$f":"CntyQuery!$H94","v":732},9.4920704902939686E-3,{"$f":"CntyQuery!$I94","v":820},1.0724842397133066E-2,{"$f":"CntyQuery!$J94","v":834},1.0730414420441826E-2,null,{"$f":"(F47-D47)/D47","v":8.7667161961367007E-2},0.12021857923497267]
[null,"Swanzey",null,{"$f":"CntyQuery!$G95","v":6800},9.2109718929901802E-2,{"$f":"CntyQuery!$H95","v":7230},9.3753647055772396E-2,{"$f":"CntyQuery!$I95","v":7270},9.5084883203850473E-2,{"$f":"CntyQuery!$J95","v":7409},9.5325707962893871E-2,null,6.3235294117647056E-2,5.5325034578146614E-3]
[null,"Troy",null,{"$f":"CntyQuery!$G96","v":1962},2.6576363020656957E-2,{"$f":"CntyQuery!$H96","v":2145},2.781487869082044E-2,{"$f":"CntyQuery!$I96","v":2130},2.7858432080357844E-2,{"$f":"CntyQuery!$J96","v":2165},2.7855332398389152E-2,null,9.3272171253822631E-2,-6.993006993006993E-3]
[null,"Walpole",null,{"$f":"CntyQuery!$G97","v":3594},4.8682695563833388E-2,{"$f":"CntyQuery!$H97","v":3734},4.8419933348029617E-2,{"$f":"CntyQuery!$I97","v":3633},4.7516283449737108E-2,{"$f":"CntyQuery!$J97","v":3692},4.7502026427183715E-2,null,3.8953811908736785E-2,-2.7048741296197106E-2]
[null,"Westmoreland",null,{"$f":"CntyQuery!$G98","v":1747},2.3664070436843886E-2,{"$f":"CntyQuery!$H98","v":1874},2.4300737839905599E-2,{"$f":"CntyQuery!$I98","v":1706},2.2312903816474404E-2,{"$f":"CntyQuery!$J98","v":1732},2.228426591871132E-2,null,7.2696050372066404E-2,-8.9647812166488788E-2]
[null,"Winchester",null,{"$f":"CntyQuery!$G99","v":4144},5.6132746359634271E-2,{"$f":"CntyQuery!$H99","v":4341},5.6291090161702348E-2,{"$f":"CntyQuery!$I99","v":4150},5.4278165790368565E-2,{"$f":"CntyQuery!$J99","v":4217},5.425678370623882E-2,null,4.7538610038610041E-2,-4.3999078553328727E-2]
[]
[null,"Cheshire County",null,{"$f":"SUM(D30:D53)","v":73825},null,{"$f":"SUM(F30:F53)","v":77117},null,{"$f":"SUM(H30:H53)","v":76458},null,{"$f":"SUM(J30:J53)","v":77723},null,null,4.4591940399593633E-2,{"$f":"(H54-F54)/F54","v":-8.5454569031471663E-3}]
[]
[null,"Source: US Census and  Office of Planning and Development, NH BEA"]

{"sheet":"HousingComparison","index":110,"n_rows":61,"n_cols":15,"rows_kept":61,"cut":false,"hidden":true,"merged":[[52,1,52,2],[53,1,53,2],[54,1,54,2],[47,1,47,2],[48,1,48,2],[49,1,49,2],[50,1,50,2],[51,1,51,2],[42,1,42,2],[43,1,43,2],[44,1,44,2],[45,1,45,2],[46,1,46,2],[37,1,37,2],[38,1,38,2],[39,1,39,2],[40,1,40,2],[41,1,41,2],[32,1,32,2],[33,1,33,2],[34,1,34,2],[35,1,35,2],[36,1,36,2],[28,3,28,4],[28,5,28,8],[28,9,28,14],[29,5,29,6],[29,7,29,8],[29,9,29,10],[29,11,29,12],[29,13,29,14]]}
[]
[]
[]
[]
[]
[]
[]
[]
[]
[]
[]
[]
[]
[]
[]
[]
[]
[]
[]
[]
[]
[]
[]
[]
[]
[]
[]
[null,"Housing Units",null,"In 2022"]
[null,null,null,"Total Units",null,"Occupied Units",null,null,null,"Vacant Units"]
[null,null,null,null,null,"Owner",null,"Renter",null,"For Sale",null,"For Rent",null,"Seasonal"]
[null,null,null,"#","%","#","%","#","%","#","%","#","%","#","%"]
[]
[null,"Alstead",null,{"$f":"ACS_Table_B25001!$C$7","v":986},{"$f":"D33/D$57","v":2.7614406542317817E-2},{"$f":"ACS_Table_B25003!$C$8","v":507},{"$f":"F33/$F$57","v":2.3667257959107461E-2},{"$f":"ACS_Table_B25003!$C$9","v":216},{"$f":"H33/$H$57","v":2.4310635903207655E-2},{"$f":"ACS_Table_B25004!$C$10","v":14},{"$f":"J33/$J$57","v":0.15053763440860216},{"$f":"ACS_Table_B25004!$C$8","v":35},{"$f":"L33/$L$57","v":0.15350877192982457},{"$f":"ACS_Table_B25004!$C$12","v":187},{"$f":"N33/$N$57","v":5.7573891625615763E-2}]
[null,"Chesterfield",null,{"$f":"ACS_Table_B25001!$E$7","v":1792},5.0187643533299728E-2,{"$f":"ACS_Table_B25003!$E$8","v":1227},{"$f":"F34/$F$57","v":5.7277565119970127E-2},{"$f":"ACS_Table_B25003!$E$9","v":139},{"$f":"H34/$H$57","v":1.5644344400675296E-2},{"$f":"ACS_Table_B25004!$E$10","v":0},{"$f":"J34/$J$57","v":0},{"$f":"ACS_Table_B25004!$E$8","v":0},{"$f":"L34/$L$57","v":0},{"$f":"ACS_Table_B25004!$E$12","v":300},{"$f":"N34/$N$57","v":9.2364532019704432E-2}]
[null,"Dublin",null,{"$f":"ACS_Table_B25001!$G$7","v":797},2.2321178513415113E-2,{"$f":"ACS_Table_B25003!$G$8","v":530},2.474092054896835E-2,{"$f":"ACS_Table_B25003!$G$9","v":105},1.1817670230725942E-2,{"$f":"ACS_Table_B25004!$G$10","v":0},0,{"$f":"ACS_Table_B25004!$G$8","v":0},0,{"$f":"ACS_Table_B25004!$G$12","v":146},4.4950738916256158E-2]
[null,"Fitzwilliam",null,{"$f":"ACS_Table_B25001!$I$7","v":1317},3.6884557217274405E-2,{"$f":"ACS_Table_B25003!$I$8","v":957},4.4673699934646628E-2,{"$f":"ACS_Table_B25003!$I$9","v":56},6.3027574563871694E-3,{"$f":"ACS_Table_B25004!$I$10","v":0},0,{"$f":"ACS_Table_B25004!$I$8","v":18},7.8947368421052627E-2,{"$f":"ACS_Table_B25004!$I$12","v":208},6.4039408866995079E-2]
[null,"Gilsum",null,{"$f":"ACS_Table_B25001!$K$7","v":360},1.008233910267182E-2,{"$f":"ACS_Table_B25003!$K$8","v":285},1.3304079917841471E-2,{"$f":"ACS_Table_B25003!$K$9","v":25},2.8137310073157004E-3,{"$f":"ACS_Table_B25004!$K$10","v":5},5.3763440860215055E-2,{"$f":"ACS_Table_B25004!$K$8","v":0},0,{"$f":"ACS_Table_B25004!$K$12","v":39},1.2007389162561576E-2]
[null,"Harrisville",null,{"$f":"ACS_Table_B25001!$M$7","v":690},1.9324483280120989E-2,{"$f":"ACS_Table_B25003!$M$8","v":386},1.8018859116795818E-2,{"$f":"ACS_Table_B25003!$M$9","v":30},3.3764772087788407E-3,{"$f":"ACS_Table_B25004!$M$10","v":0},0,{"$f":"ACS_Table_B25004!$M$8","v":0},0,{"$f":"ACS_Table_B25004!$M$12","v":258},7.9433497536945813E-2]
[null,"Hinsdale",null,{"$f":"ACS_Table_B25001!$O$7","v":1789},5.0103624040777457E-2,{"$f":"ACS_Table_B25003!$O$8","v":1373},6.4092988516478391E-2,{"$f":"ACS_Table_B25003!$O$9","v":221},2.4873382104670792E-2,{"$f":"ACS_Table_B25004!$O$10","v":0},0,{"$f":"ACS_Table_B25004!$O$8","v":0},0,{"$f":"ACS_Table_B25004!$O$12","v":0},0]
[null,"Jaffrey",null,{"$f":"ACS_Table_B25001!$Q$7","v":2474},6.9288074833361343E-2,{"$f":"ACS_Table_B25003!$Q$8","v":1580},7.3755951825226401E-2,{"$f":"ACS_Table_B25003!$Q$9","v":446},5.0196961170512096E-2,{"$f":"ACS_Table_B25004!$Q$10","v":0},0,{"$f":"ACS_Table_B25004!$Q$8","v":0},0,{"$f":"ACS_Table_B25004!$Q$12","v":325},0.1000615763546798]
[null,"Keene",null,{"$f":"ACS_Table_B25001!$S$7","v":10313},0.28883100879404022,{"$f":"ACS_Table_B25003!$S$8","v":4762},0.22229483708337222,{"$f":"ACS_Table_B25003!$S$9","v":4497},0.50613393359594827,{"$f":"ACS_Table_B25004!$S$10","v":60},0.64516129032258063,{"$f":"ACS_Table_B25004!$S$8","v":164},0.7192982456140351,{"$f":"ACS_Table_B25004!$S$12","v":121},3.7253694581280791E-2]
[null,"Marlborough",null,{"$f":"ACS_Table_B25001!$U$7","v":1009},2.8258555984988519E-2,{"$f":"ACS_Table_B25003!$U$8","v":608},2.8382037158061806E-2,{"$f":"ACS_Table_B25003!$U$9","v":334},3.7591446257737762E-2,{"$f":"ACS_Table_B25004!$U$10","v":0},0,{"$f":"ACS_Table_B25004!$U$8","v":0},0,{"$f":"ACS_Table_B25004!$U$12","v":38},1.1699507389162561E-2]
[null,"Marlow",null,{"$f":"ACS_Table_B25001!$W$7","v":417},1.1678709460594858E-2,{"$f":"ACS_Table_B25003!$W$8","v":279},1.3023994024834283E-2,{"$f":"ACS_Table_B25003!$W$9","v":35},3.9392234102419805E-3,{"$f":"ACS_Table_B25004!$W$10","v":0},0,{"$f":"ACS_Table_B25004!$W$8","v":0},0,{"$f":"ACS_Table_B25004!$W$12","v":86},2.647783251231527E-2]
[null,"Nelson",null,{"$f":"ACS_Table_B25001!$Y$7","v":429},1.2014787430683918E-2,{"$f":"ACS_Table_B25003!$Y$8","v":225},1.0503220987769582E-2,{"$f":"ACS_Table_B25003!$Y$9","v":21},2.3635340461451884E-3,{"$f":"ACS_Table_B25004!$Y$10","v":4},4.3010752688172046E-2,{"$f":"ACS_Table_B25004!$Y$8","v":0},0,{"$f":"ACS_Table_B25004!$Y$12","v":156},4.8029556650246302E-2]
[null,"Richmond",null,{"$f":"ACS_Table_B25001!$AA$7","v":456},1.2770962863384305E-2,{"$f":"ACS_Table_B25003!$AA$8","v":383},1.7878816170292224E-2,{"$f":"ACS_Table_B25003!$AA$9","v":10},1.1254924029262803E-3,{"$f":"ACS_Table_B25004!$AA$10","v":0},0,{"$f":"ACS_Table_B25004!$AA$8","v":0},0,{"$f":"ACS_Table_B25004!$AA$12","v":45},1.3854679802955665E-2]
[null,"Rindge",null,{"$f":"ACS_Table_B25001!$AC$7","v":2449},6.8587912395675799E-2,{"$f":"ACS_Table_B25003!$AC$8","v":1711},7.9871160489216692E-2,{"$f":"ACS_Table_B25003!$AC$9","v":261},2.9375351716375914E-2,{"$f":"ACS_Table_B25004!$AC$10","v":0},0,{"$f":"ACS_Table_B25004!$AC$8","v":0},0,{"$f":"ACS_Table_B25004!$AC$12","v":419},0.12900246305418719]
[null,"Roxbury",null,{"$f":"ACS_Table_B25001!$AE$7","v":101},2.8286562482495938E-3,{"$f":"ACS_Table_B25003!$AE$8","v":94},4.3880123237792926E-3,{"$f":"ACS_Table_B25003!$AE$9","v":1},1.1254924029262802E-4,{"$f":"ACS_Table_B25004!$AE$10","v":0},0,{"$f":"ACS_Table_B25004!$AE$8","v":0},0,{"$f":"ACS_Table_B25004!$AE$12","v":4},1.2315270935960591E-3]
[null,"Stoddard",null,{"$f":"ACS_Table_B25001!$AG$7","v":1020},2.8566627457570156E-2,{"$f":"ACS_Table_B25003!$AG$8","v":405},1.8905797777985248E-2,{"$f":"ACS_Table_B25003!$AG$9","v":31},3.4890264490714689E-3,{"$f":"ACS_Table_B25004!$AG$10","v":0},0,{"$f":"ACS_Table_B25004!$AG$8","v":0},0,{"$f":"ACS_Table_B25004!$AG$12","v":563},0.17333743842364532]
[null,"Sullivan",null,{"$f":"ACS_Table_B25001!$AI$7","v":301},8.4299557497339375E-3,{"$f":"ACS_Table_B25003!$AI$8","v":240},1.1203435720287555E-2,{"$f":"ACS_Table_B25003!$AI$9","v":41},4.614518851997749E-3,{"$f":"ACS_Table_B25004!$AI$10","v":0},0,{"$f":"ACS_Table_B25004!$AI$8","v":0},0,{"$f":"ACS_Table_B25004!$AI$12","v":17},5.2339901477832509E-3]
[null,"Surry",null,{"$f":"ACS_Table_B25001!$AK$7","v":364},1.0194365092701507E-2,{"$f":"ACS_Table_B25003!$AK$8","v":324},1.5124638222388199E-2,{"$f":"ACS_Table_B25003!$AK$9","v":20},2.2509848058525606E-3,{"$f":"ACS_Table_B25004!$AK$10","v":0},0,{"$f":"ACS_Table_B25004!$AK$8","v":0},0,{"$f":"ACS_Table_B25004!$AK$12","v":13},4.0024630541871924E-3]
[null,"Swanzey",null,{"$f":"ACS_Table_B25001!$AM$7","v":3388},9.4886013555144796E-2,{"$f":"ACS_Table_B25003!$AM$8","v":2237},0.10442535710951359,{"$f":"ACS_Table_B25003!$AM$9","v":1018},0.11457512661789533,{"$f":"ACS_Table_B25004!$AM$10","v":0},0,{"$f":"ACS_Table_B25004!$AM$8","v":0},0,{"$f":"ACS_Table_B25004!$AM$12","v":31},9.5443349753694586E-3]
[null,"Troy",null,{"$f":"ACS_Table_B25001!$AO$7","v":815},2.2825295468548702E-2,{"$f":"ACS_Table_B25003!$AO$8","v":525},2.4507515638129026E-2,{"$f":"ACS_Table_B25003!$AO$9","v":233},2.6223972988182329E-2,{"$f":"ACS_Table_B25004!$AO$10","v":0},0,{"$f":"ACS_Table_B25004!$AO$8","v":0},0,{"$f":"ACS_Table_B25004!$AO$12","v":0},0]
[null,"Walpole",null,{"$f":"ACS_Table_B25001!$AQ$7","v":1618},4.5314512967008343E-2,{"$f":"ACS_Table_B25003!$AQ$8","v":945},4.4113528148632244E-2,{"$f":"ACS_Table_B25003!$AQ$9","v":482},5.424873382104671E-2,{"$f":"ACS_Table_B25004!$AQ$10","v":0},0,{"$f":"ACS_Table_B25004!$AQ$8","v":0},0,{"$f":"ACS_Table_B25004!$AQ$12","v":88},2.7093596059113302E-2]
[null,"Westmoreland",null,{"$f":"ACS_Table_B25001!$AS$7","v":936},2.6214081666946731E-2,{"$f":"ACS_Table_B25003!$AS$8","v":787},3.673793296610961E-2,{"$f":"ACS_Table_B25003!$AS$9","v":98},1.1029825548677546E-2,{"$f":"ACS_Table_B25004!$AS$10","v":0},0,{"$f":"ACS_Table_B25004!$AS$8","v":11},4.8245614035087717E-2,{"$f":"ACS_Table_B25004!$AS$12","v":28},8.6206896551724137E-3]
[null,"Winchester",null,{"$f":"ACS_Table_B25001!$AU$7","v":1885},5.2792247801489944E-2,{"$f":"ACS_Table_B25003!$AU$8","v":1052},4.9108393240593781E-2,{"$f":"ACS_Table_B25003!$AU$9","v":565},6.3590320765334829E-2,{"$f":"ACS_Table_B25004!$AU$10","v":10},0.10752688172043011,{"$f":"ACS_Table_B25004!$AU$8","v":0},0,{"$f":"ACS_Table_B25004!$AU$12","v":176},5.4187192118226604E-2]
[]
[null,"Cheshire County",null,{"$f":"SUM(D33:D56)","v":35706},null,{"$f":"SUM(F33:F56)","v":21422},null,{"$f":"SUM(H33:H56)","v":8885},null,{"$f":"SUM(J33:J56)","v":93},null,{"$f":"SUM(L33:L56)","v":228},null,{"$f":"SUM(N33:N56)","v":3248}]
[]
[]
[null,"Source: 2018-2022 American Community Survey Tables B25001; B25003; and B25004"]
[null,"Margin of error is not displayed.  The American Community Survey data are estimates only."]

{"sheet":"Housing_EmploymentComparison","index":111,"n_rows":62,"n_cols":11,"rows_kept":62,"cut":false,"hidden":true,"merged":[[54,1,54,2],[49,1,49,2],[50,1,50,2],[51,1,51,2],[52,1,52,2],[53,1,53,2],[44,1,44,2],[45,1,45,2],[46,1,46,2],[47,1,47,2],[48,1,48,2],[39,1,39,2],[40,1,40,2],[41,1,41,2],[42,1,42,2],[43,1,43,2],[59,2,59,13],[60,2,60,13],[61,2,61,13],[28,3,28,4],[28,5,28,10],[29,3,29,4],[29,5,29,6],[29,7,29,8],[29,9,29,10],[32,1,32,2],[33,1,33,2],[34,1,34,2],[35,1,35,2],[36,1,36,2],[37,1,37,2],[38,1,38,2]]}
[]
[]
[]
[]
[]
[]
[]
[]
[]
[]
[]
[]
[]
[]
[]
[]
[]
[]
[]
[]
[]
[]
[]
[]
[]
[]
[]
[null,null,null,"In 2022"]
[null,null,null,"Housing",null,"Employment"]
[null,null,null,"Total Units",null,"Total Private",null,"Goods Producing",null,"Service Providing"]
[null,null,null,"#","%","#","%","#","%","#","%"]
[]
[null,"Alstead",null,{"$f":"ACS_Table_B25001!$C$7","v":986},{"$f":"D33/D$57","v":2.7614406542317817E-2},{"$f":"CntyQuery!$FB$106","v":163},{"$f":"IF(F33=\"n\",\"n\",F33/F$57)","v":6.4615872512487115E-3},{"$f":"CntyQuery!$FD$106","v":74},{"$f":"IF(H33=\"n\",\"n\",H33/H$57)","v":1.1544461778471139E-2},{"$f":"CntyQuery!$FE$106","v":90},{"$f":"IF(J33=\"n\",\"n\",J33/J$57)","v":4.7831632653061226E-3}]
[null,"Chesterfield",null,{"$f":"ACS_Table_B25001!$E$7","v":1792},5.0187643533299728E-2,{"$f":"CntyQuery!$FB$107","v":1205},4.7768175691746607E-2,{"$f":"CntyQuery!$FD$107","v":100},1.5600624024960999E-2,{"$f":"CntyQuery!$FE$107","v":1104},{"$f":"IF(J34=\"n\",\"n\",J34/J$57)","v":5.8673469387755105E-2}]
[null,"Dublin",null,{"$f":"ACS_Table_B25001!$G$7","v":797},2.2321178513415113E-2,{"$f":"CntyQuery!$FB$108","v":325},1.288353286291921E-2,{"$f":"CntyQuery!$FD$108","v":61},9.5163806552262097E-3,{"$f":"CntyQuery!$FE$108","v":264},1.4030612244897959E-2]
[null,"Fitzwilliam",null,{"$f":"ACS_Table_B25001!$I$7","v":1317},3.6884557217274405E-2,{"$f":"CntyQuery!$FB$109","v":202},8.0076111947990167E-3,{"$f":"CntyQuery!$FD$109","v":86},1.3416536661466459E-2,{"$f":"CntyQuery!$FE$109","v":116},6.1649659863945577E-3]
[null,"Gilsum",null,{"$f":"ACS_Table_B25001!$K$7","v":360},1.008233910267182E-2,{"$f":"CntyQuery!$FB$110","v":124},4.9155633076984062E-3,{"$f":"CntyQuery!$FD$110","v":109},1.7004680187207487E-2,"n","n"]
[null,"Harrisville",null,{"$f":"ACS_Table_B25001!$M$7","v":690},1.9324483280120989E-2,{"$f":"CntyQuery!$FB$111","v":120},4.7569967493855548E-3,{"$f":"CntyQuery!$FD$111","v":48},7.4882995319812797E-3,{"$f":"CntyQuery!$FE$111","v":73},3.8796768707482993E-3]
[null,"Hinsdale",null,{"$f":"ACS_Table_B25001!$O$7","v":1789},5.0103624040777457E-2,{"$f":"CntyQuery!$FB$112","v":636},2.521208277174344E-2,{"$f":"CntyQuery!$FD$112","v":226},3.5257410296411856E-2,{"$f":"CntyQuery!$FE$112","v":410},2.1789965986394558E-2]
[null,"Jaffrey",null,{"$f":"ACS_Table_B25001!$Q$7","v":2474},6.9288074833361343E-2,{"$f":"CntyQuery!$FB$113","v":2550},0.10108618092444303,{"$f":"CntyQuery!$FD$113","v":1660},0.2589703588143526,{"$f":"CntyQuery!$FE$113","v":890},4.7300170068027211E-2]
[null,"Keene",null,{"$f":"ACS_Table_B25001!$S$7","v":10313},0.28883100879404022,{"$f":"CntyQuery!$FB$114","v":13910},0.55141520653294218,{"$f":"CntyQuery!$FD$114","v":2124},0.3313572542901716,{"$f":"CntyQuery!$FE$114","v":11786},0.62638180272108845]
[null,"Marlborough",null,{"$f":"ACS_Table_B25001!$U$7","v":1009},2.8258555984988519E-2,{"$f":"CntyQuery!$FB$115","v":253},1.0029334813287877E-2,{"$f":"CntyQuery!$FD$115","v":114},1.7784711388455537E-2,{"$f":"CntyQuery!$FE$115","v":138},7.3341836734693881E-3]
[null,"Marlow",null,{"$f":"ACS_Table_B25001!$W$7","v":417},1.1678709460594858E-2,{"$f":"CntyQuery!$FB$116","v":48},1.9027986997542218E-3,{"$f":"CntyQuery!$FD$116","v":15},2.3400936037441498E-3,{"$f":"CntyQuery!$FE$116","v":33},1.7538265306122449E-3]
[null,"Nelson",null,{"$f":"ACS_Table_B25001!$Y$7","v":429},1.2014787430683918E-2,{"$f":"CntyQuery!$FB$117","v":23},9.1175771029889795E-4,{"$f":"CntyQuery!$FD$117","v":8},1.2480499219968799E-3,{"$f":"CntyQuery!$FE$117","v":15},7.9719387755102043E-4]
[null,"Richmond",null,{"$f":"ACS_Table_B25001!$AA$7","v":456},1.2770962863384305E-2,{"$f":"CntyQuery!$FB$118","v":"n"},"n",{"$f":"CntyQuery!$FD$118","v":"n"},"n",{"$f":"CntyQuery!$FE$118","v":"n"},"n"]
[null,"Rindge",null,{"$f":"ACS_Table_B25001!$AC$7","v":2449},6.8587912395675799E-2,{"$f":"CntyQuery!$FB$119","v":1607},6.3704114802188225E-2,{"$f":"CntyQuery!$FD$119","v":291},4.5397815912636502E-2,{"$f":"CntyQuery!$FE$119","v":1316},6.9940476190476192E-2]
[null,"Roxbury",null,{"$f":"ACS_Table_B25001!$AE$7","v":101},2.8286562482495938E-3,{"$f":"CntyQuery!$FB$120","v":"n"},"n",{"$f":"CntyQuery!$FD$120","v":"n"},"n",{"$f":"CntyQuery!$FE$120","v":"n"},"n"]
[null,"Stoddard",null,{"$f":"ACS_Table_B25001!$AG$7","v":1020},2.8566627457570156E-2,{"$f":"CntyQuery!$FB$121","v":"n"},"n",{"$f":"CntyQuery!$FD$121","v":"n"},"n",{"$f":"CntyQuery!$FE$121","v":"n"},"n"]
[null,"Sullivan",null,{"$f":"ACS_Table_B25001!$AI$7","v":301},8.4299557497339375E-3,{"$f":"CntyQuery!$FB$122","v":39},1.5460239435503053E-3,{"$f":"CntyQuery!$FD$122","v":"n"},"n",{"$f":"CntyQuery!$FE$122","v":"n"},"n"]
[null,"Surry",null,{"$f":"ACS_Table_B25001!$AK$7","v":364},1.0194365092701507E-2,{"$f":"CntyQuery!$FB$123","v":68},2.6956314913184811E-3,{"$f":"CntyQuery!$FD$123","v":34},5.3042121684867393E-3,{"$f":"CntyQuery!$FE$123","v":34},1.8069727891156463E-3]
[null,"Swanzey",null,{"$f":"ACS_Table_B25001!$AM$7","v":3388},9.4886013555144796E-2,{"$f":"CntyQuery!$FB$124","v":1543},6.1167049869182588E-2,{"$f":"CntyQuery!$FD$124","v":424},6.614664586583463E-2,{"$f":"CntyQuery!$FE$124","v":1119},5.9470663265306124E-2]
[null,"Troy",null,{"$f":"ACS_Table_B25001!$AO$7","v":815},2.2825295468548702E-2,{"$f":"CntyQuery!$FB$125","v":174},6.8976452866090542E-3,{"$f":"CntyQuery!$FD$125","v":40},6.2402496099843996E-3,{"$f":"CntyQuery!$FE$125","v":134},7.1215986394557824E-3]
[null,"Walpole",null,{"$f":"ACS_Table_B25001!$AQ$7","v":1618},4.5314512967008343E-2,{"$f":"CntyQuery!$FB$126","v":1322},5.2406247522397524E-2,{"$f":"CntyQuery!$FD$126","v":599},9.3447737909516382E-2,{"$f":"CntyQuery!$FE$126","v":723},3.8424744897959183E-2]
[null,"Westmoreland",null,{"$f":"ACS_Table_B25001!$AS$7","v":936},2.6214081666946731E-2,{"$f":"CntyQuery!$FB$127","v":160},6.3426623325140725E-3,{"$f":"CntyQuery!$FD$127","v":95},1.4820592823712949E-2,{"$f":"CntyQuery!$FE$127","v":65},3.4545068027210884E-3]
[null,"Winchester",null,{"$f":"ACS_Table_B25001!$AU$7","v":1885},5.2792247801489944E-2,{"$f":"CntyQuery!$FB$128","v":679},2.6916673273606598E-2,{"$f":"CntyQuery!$FD$128","v":273},4.2589703588143527E-2,{"$f":"CntyQuery!$FE$128","v":406},2.1577380952380952E-2]
[]
[null,"Cheshire County",null,{"$f":"SUM(D33:D56)","v":35706},null,{"$f":"CntyQuery!$FB$137","v":25226},null,{"$f":"CntyQuery!$FD$137","v":6410},null,{"$f":"CntyQuery!$FE$137","v":18816}]
[]
[null,"Source: ","2018-2022 American Community Survey Table B25001"]
[null,null,"Employment data provided by NH Department of Employment Security 2022 Covered Private Employment."]
[null,null,"Margin of error is not displayed.  The American Community Survey data are estimates only. Total Employment "]
[null,null,"at the county level is the number provided by NH Department of Employment Security."]

{"sheet":"DropDownList","index":112,"n_rows":27,"n_cols":6,"rows_kept":27,"cut":false,"hidden":true,"merged":[]}
["List Range for Combo Box on Start Page"]
["Alstead",null,null,null,null,"Alstead"]
["Chesterfield",null,null,null,null,"Chesterfield"]
["Dublin",null,null,null,null,"Dublin"]
["Fitzwilliam",null,null,null,null,"Fitzwilliam"]
["Gilsum",null,null,null,null,"Gilsum"]
["Harrisville",null,null,null,null,"Harrisville"]
["Hinsdale",null,null,null,null,"Hinsdale"]
["Jaffrey",null,null,null,null,"Jaffrey"]
["Keene",null,null,null,null,"Keene"]
["Marlborough",null,null,null,null,"Marlborough"]
["Marlow",null,null,null,null,"Marlow"]
["Nelson",null,null,null,null,"Nelson"]
["Richmond",null,null,null,null,"Richmond"]
["Rindge",null,null,null,null,"Rindge"]
["Roxbury",null,null,null,null,"Roxbury"]
["Stoddard",null,null,null,null,"Stoddard"]
["Sullivan",null,null,null,null,"Sullivan"]
["Surry",null,null,null,null,"Surry"]
["Swanzey",null,null,null,null,"Swanzey"]
["Troy",null,null,null,null,"Troy"]
["Walpole",null,null,null,null,"Walpole"]
["Westmoreland",null,null,null,null,"Westmoreland"]
["Winchester",null,null,null,null,"Winchester"]
[]
[]
[{"$f":"B27","v":"Dublin"},"Dublin"]

{"sheet":"CntyQryCensus","index":113,"n_rows":355,"n_cols":216,"rows_kept":355,"cut":false,"hidden":true,"merged":[]}
[]
["Census 2000 SF1   -           Query Name:  TownAllQuery3"]
["NAME","COUNTY","LOGRECNO","COUSUB","TRACT","AREALAND","AREAWATR","POP100","HU100","P01TotalPopulation","P03PopOfOneRace","P03PopWhite","P03PopBlack","P03PopAmIndian","P03PopAsian","P03PopHawaiian","P03PopOtherRace","P03Pop2orMoreRaces","P04PopHispanicLatino","P04PopNotHispanicLatino","P12PopMale","P12PopMale<15","P12PopMale15to24","P12PopMale25to34","P12PopMale35to44","P12PopMale45to54","P12PopMale55to64","P12PopMale65to74","P12PopMale75to84","P12PopMale85andOver","P12PopFemale","P12PopFemale<15","P12PopFemale15to24","P12PopFemale25to34","P12PopFemale35t44","P12PopFemale45to54","P12PopFemale55to64","P12PopFemale65to74","P12PopFemale75to84","P12PopFemale85andOver","P15Households2000","P16PopInHH","P17AvgHHSize","P18HHs1Person","P18HHs2orMorePerson","P18HHsFamily","P18HHMarriedCoupleFam","P18HHSingleParentFam","P18HHsNonFamily","P31Families","P32PopInFam","P33AvgFamSize","H01TotHsUnits","H04OccHsUnits","H04OwnerOccHU","H04RenterOccHU","H05VctHsUnits","H05VctHUForRent","H05VctHUForSale","H05VctHUSeasonal","H10PopInOccHU","H11PopInOwnOccHU","H11PopInRntOccHU","H12AvgHHSize2","H12AvgHHSizOwnOcc","H12AvgHHSizRntOcc","H14OwnOccWhtHsHldr","H14OwnOccBlkHsHldr","H14OwnOccAmIHsHldr","H14OwnOccAsnHsHldr","H14OwnOccPIsHsHldr","H14OwnOccORHsHldr","H14OwnOcc2RcHsHldr","H14RntOccWhtHsHldr","H14RntOccBlkHsHldr","H14RntOccAmIHsHldr","H14RntOccAsnHsHldr","H14RntOccPIsHsHldr","H14RntOccORHsHldr","H14RntOcc2RcHsHldr","H16OwnOccHH15to24","H16OwnOccHH25to34","H16OwnOccHH35to44","H16OwnOccHH45to54","H16OwnOccHH55to64","H16OwnOccHH65to74","H16OwnOccHH75to84","H16OwnOccHH85Over","H16RntOccHH15to24","H16RntOccHH25to34","H16RntOccHH35to44","H16RntOccHH45to54","H16RntOccHH55to64","H16RntOccHH65to74","H16RntOccHH75to84","H16RntOccHH85Over","P27TotalPop","P27PopInHseHlds","P27PopInGrpQtrs","P13MedianPopTotal","P13MedianPopMale","P13MedianPopFemale"]
["Alstead","005","0004851","00820","","     100759019","       1212506","     1944","      941",1944,1935,1909,4,12,10,0,0,9,10,1934,993,225,114,89,174,185,88,75,34,9,951,179,106,109,182,161,86,70,44,14,771,1932,2.5099999999999998,189,582,534,437,97,48,534,1599,2.99,941,771,611,160,170,9,9,125,1932,1578,354,2.5099999999999998,2.58,2.21,599,0,6,3,0,0,3,157,0,2,0,0,0,1,6,54,153,170,95,77,44,12,16,36,41,33,13,11,7,3,1944,1932,12,39.5,39.200000000000003,39.700000000000003]
["Chesterfield","005","0004989","12260","","     118005718","       5168137","     3542","     1632",3542,3501,3464,8,20,6,0,3,41,20,3522,1804,398,192,174,296,349,216,114,52,13,1738,345,157,196,321,305,206,128,52,28,1366,3542,2.59,279,1087,1005,867,138,82,1005,3025,3.01,1632,1366,1148,218,266,5,16,216,3542,3035,507,2.59,2.64,2.33,1133,2,3,2,0,0,8,210,2,2,0,0,1,3,6,100,247,333,222,148,71,21,11,60,65,39,26,7,6,4,3542,3542,0,40.4,40.299999999999997,40.4]
["Dublin","005","0005130","19140","","      72470860","       2857821","     1476","      686",1476,1469,1436,5,8,14,0,6,7,17,1459,742,135,92,61,124,149,85,56,34,6,734,138,67,66,118,145,101,63,26,10,560,1404,2.5099999999999998,118,442,418,366,52,24,418,1206,2.89,686,560,454,106,126,0,8,94,1404,1134,270,2.5099999999999998,2.5,2.5499999999999998,446,2,2,4,0,0,0,105,0,0,0,0,1,0,1,30,89,125,95,67,38,9,4,15,36,28,14,5,2,2,1476,1404,72,42.8,42.4,43.2]
["Fitzwilliam","005","0005216","26500","","      89660703","       3652665","     2141","     1074",2141,2112,2088,8,7,4,4,1,29,16,2125,1088,211,138,103,198,197,134,65,34,8,1053,211,110,114,188,186,120,68,43,13,836,2140,2.56,187,649,586,491,95,63,586,1772,3.02,1074,836,694,142,238,2,8,208,2140,1816,324,2.56,2.62,2.2799999999999998,679,2,2,0,1,0,10,140,0,1,1,0,0,0,6,63,170,176,133,81,52,13,14,31,34,34,16,5,3,5,2141,2140,1,39.9,39.4,40.4]
["Gilsum","005","0005359","29220","","      43154933","         55764","      777","      343",777,769,765,0,3,1,0,0,8,4,773,385,68,30,56,65,86,42,19,18,1,392,76,38,38,74,77,43,26,17,3,310,770,2.48,74,236,220,182,38,16,220,638,2.9,343,310,270,40,33,1,9,18,770,678,92,2.48,2.5099999999999998,2.2999999999999998,268,0,1,0,0,0,1,39,0,0,0,0,0,1,4,26,59,85,47,24,21,4,1,12,7,10,5,3,2,0,777,770,7,41,41.8,40.700000000000003]
["Harrisville","005","0005420","34420","","      48533517","       3914269","     1075","      698",1075,1061,1051,1,6,3,0,0,14,6,1069,516,113,53,32,93,100,58,34,26,7,559,99,51,42,109,119,45,57,29,8,449,1075,2.39,119,330,306,248,58,24,306,879,2.87,698,449,363,86,249,3,2,221,1075,864,211,2.39,2.38,2.4500000000000002,361,0,0,0,0,0,2,83,0,2,1,0,0,0,2,14,81,111,61,48,35,11,2,21,22,30,4,5,1,1,1075,1075,0,43,42.9,43.1]
["Hinsdale","005","0005525","36660","","      53562570","       5438455","     4082","     1714",4082,4039,3980,17,8,13,12,9,43,19,4063,1986,432,263,241,351,283,204,130,66,16,2096,436,242,272,374,282,204,129,116,41,1622,4082,2.52,402,1220,1088,837,251,132,1088,3265,3,1714,1622,1188,434,92,19,20,24,4082,3202,880,2.52,2.7,2.0299999999999998,1172,1,1,2,1,1,10,421,2,2,2,2,1,4,11,146,303,266,215,140,85,22,54,109,86,61,32,31,38,23,4082,4082,0,37,36.700000000000003,37.299999999999997]
["Jaffrey","005","0005659","38500","","      99197068","       4482192","     5476","     2352",5476,5411,5329,23,19,38,0,2,65,31,5445,2627,620,299,359,424,374,216,196,110,29,2849,554,328,317,474,377,275,218,177,129,2120,5303,2.5,518,1602,1464,1117,347,138,1464,4359,2.98,2352,2120,1422,698,232,41,10,164,5303,3779,1524,2.5,2.66,2.1800000000000002,1396,6,3,9,0,0,8,682,4,4,3,0,0,5,17,160,328,319,221,216,139,22,89,183,152,130,58,48,23,15,5476,5303,173,38.1,35.799999999999997,39.799999999999997]
["Keene","005","0005834","39300","","      96623397","        658200","    22563","     9295",22563,22378,22034,89,45,153,7,50,185,172,22391,10572,1843,2384,1258,1472,1415,904,692,474,130,11991,1724,2733,1243,1601,1565,996,934,809,386,8955,20315,2.27,2819,6136,5083,3920,1163,1053,5083,14541,2.86,9295,8955,5120,3835,340,101,53,67,20315,12863,7452,2.27,2.5099999999999998,1.94,5063,5,6,22,1,2,21,3732,22,7,24,0,13,37,52,439,1090,1250,831,754,548,156,796,838,647,495,332,295,307,125,22563,20315,2248,35.299999999999997,33.4,37]
["Marlborough","005","0006292","45460","","      52850841","        609154","     2009","      896",2009,1991,1979,4,1,7,0,0,18,12,1997,971,180,112,122,163,150,105,79,47,13,1038,198,99,136,173,162,101,75,67,27,829,2009,2.42,215,614,565,467,98,49,565,1627,2.88,896,829,609,220,67,17,5,33,2009,1567,442,2.42,2.57,2.0099999999999998,605,0,1,0,0,0,3,215,1,0,1,0,0,3,6,73,142,130,106,82,50,20,19,60,40,37,16,10,28,10,2009,2009,0,40,39.6,40.200000000000003]
["Marlow","005","0006416","45700","","      67206035","       1211222","      747","      396",747,739,738,0,1,0,0,0,8,8,739,384,89,35,41,57,61,47,39,11,4,363,69,37,47,61,66,39,28,10,6,292,747,2.56,50,242,222,196,26,20,222,642,2.89,396,292,246,46,104,1,5,86,747,642,105,2.56,2.61,2.2799999999999998,243,0,1,0,0,0,2,46,0,0,0,0,0,0,5,25,52,60,46,41,13,4,4,13,9,8,5,2,3,2,747,747,0,39.6,39.299999999999997,39.9]
["Nelson","005","0006487","50580","","      56635885","       3563934","      634","      400",634,625,618,4,2,0,0,1,9,10,624,325,77,36,34,57,55,34,23,8,1,309,67,31,39,58,44,34,22,10,4,247,634,2.57,65,182,162,147,15,20,162,516,3.19,400,247,195,52,153,17,3,128,634,522,112,2.57,2.68,2.15,189,0,0,0,0,1,5,50,1,0,0,0,0,1,1,20,46,48,37,25,15,3,5,20,12,10,3,0,0,2,634,634,0,38.700000000000003,38.200000000000003,38.9]
["Richmond","005","0006551","64420","","      97309156","        513056","     1077","      432",1077,1065,1052,4,5,2,0,2,12,6,1071,553,140,53,56,97,87,56,37,23,4,524,131,49,59,96,79,53,32,21,4,379,1068,2.82,73,306,285,256,29,21,285,919,3.22,432,379,341,38,53,2,2,40,1068,966,102,2.82,2.83,2.68,338,0,1,0,0,0,2,36,0,1,0,0,0,1,5,36,90,87,60,38,21,4,3,11,12,2,4,2,4,0,1077,1068,9,37.9,37.799999999999997,38]
["Rindge","005","0006638","64580","","      96310347","       7181670","     5451","     1863",5451,5411,5299,63,8,18,1,22,40,48,5403,2773,550,888,210,380,335,203,143,55,9,2678,513,799,233,378,356,187,124,69,19,1502,4306,2.87,280,1222,1139,982,157,83,1139,3759,3.3,1863,1502,1259,243,361,10,12,326,4306,3729,577,2.87,2.96,2.37,1244,5,0,3,0,3,4,237,1,2,0,0,0,3,15,131,338,323,210,150,76,16,41,51,60,51,20,14,3,3,5451,4306,1145,24.5,23.2,27]
["Roxbury","005","0006867","65700","","      30820548","        757208","      237","       90",237,235,234,0,0,1,0,0,2,0,237,118,32,6,14,18,24,14,7,3,0,119,22,9,14,22,26,14,5,5,2,89,237,2.66,18,71,66,60,6,5,66,206,3.12,90,89,76,13,1,0,1,0,237,205,32,2.66,2.7,2.46,75,0,0,1,0,0,0,13,0,0,0,0,0,0,0,7,17,25,14,8,4,1,1,4,2,2,2,1,1,0,237,237,0,40.6,40,41.2]
["Stoddard","005","0006896","73700","","     131777141","       5513105","      928","      939",928,921,899,3,12,4,1,2,7,5,923,475,84,45,54,77,84,59,61,10,1,453,77,24,60,83,77,64,38,24,6,400,928,2.3199999999999998,101,299,268,234,34,31,268,741,2.76,939,400,349,51,539,1,8,514,928,812,116,2.3199999999999998,2.33,2.27,341,0,3,1,0,1,3,50,0,0,0,1,0,0,3,35,73,86,61,61,25,5,2,17,14,10,4,2,2,0,928,928,0,42.8,42,43.4]
["Sullivan","005","0007047","74900","","      47940948","        491924","      746","      299",746,744,734,1,7,2,0,0,2,3,743,375,75,44,47,62,74,39,21,13,0,371,75,42,45,74,62,37,24,9,3,282,746,2.65,54,228,209,167,42,19,209,628,3,299,282,232,50,17,0,6,5,746,625,121,2.65,2.69,2.42,228,0,3,0,0,0,1,49,0,1,0,0,0,0,0,28,53,69,41,25,16,0,3,18,12,5,7,3,1,1,746,746,0,38.4,38.799999999999997,38]
["Surry","005","0007081","75300","","      40341852","        817768","      673","      282",673,667,660,0,4,2,0,1,6,10,663,331,53,27,32,57,61,45,32,14,10,342,59,36,29,60,65,42,27,20,4,268,673,2.5099999999999998,50,218,207,187,20,11,207,588,2.84,282,268,238,30,14,0,1,5,673,602,71,2.5099999999999998,2.5299999999999998,2.37,234,0,0,0,0,1,3,29,0,0,1,0,0,0,0,20,47,62,43,38,21,7,2,5,7,9,3,2,1,1,673,673,0,43.6,44.1,43]
["Swanzey","005","0007125","75700","","     116530146","        929304","     6800","     2818",6800,6760,6686,12,16,36,1,9,40,38,6762,3354,756,400,395,586,521,307,242,120,27,3446,663,360,426,638,538,329,280,166,46,2666,6789,2.5499999999999998,599,2067,1873,1520,353,194,1873,5567,2.97,2818,2666,2013,653,152,19,17,78,6789,5430,1359,2.5499999999999998,2.7,2.08,1992,3,4,7,0,0,7,637,4,3,4,0,0,5,17,214,505,504,324,262,148,39,81,159,139,109,44,59,46,16,6800,6789,11,38.4,37.200000000000003,39.4]
["Troy","005","0007309","77380","","      45112592","        408318","     1962","      775",1962,1949,1935,1,5,3,0,5,13,27,1935,946,202,130,125,171,148,90,52,26,2,1016,230,121,130,182,142,91,53,53,14,733,1962,2.68,146,587,528,408,120,59,528,1632,3.09,775,733,533,200,42,12,9,16,1962,1528,434,2.68,2.87,2.17,531,0,0,1,0,0,1,193,0,3,1,0,1,2,7,63,143,131,90,51,41,7,23,54,42,35,16,15,12,3,1962,1962,0,36.299999999999997,35.9,36.5]
["Walpole","005","0007393","78420","","      92119011","       2785860","     3594","     1592",3594,3556,3533,5,9,6,0,3,38,17,3577,1725,360,186,180,279,265,178,158,98,21,1869,370,192,198,291,290,164,190,126,48,1490,3593,2.41,398,1092,1016,816,200,76,1016,2951,2.9,1592,1490,1064,426,102,12,14,44,3593,2672,921,2.41,2.5099999999999998,2.16,1056,1,1,1,0,0,5,413,0,3,0,0,1,9,5,95,214,230,173,194,120,33,39,93,97,87,34,29,32,15,3594,3593,1,40.6,40.299999999999997,41]
["Westmoreland","005","0007564","82660","","      92926319","       2592145","     1747","      618",1747,1740,1709,6,5,14,0,6,7,16,1731,863,135,107,91,168,142,91,71,37,21,884,135,86,68,142,162,83,78,74,56,576,1483,2.57,100,476,445,401,44,31,445,1299,2.92,618,576,497,79,42,1,14,17,1483,1306,177,2.57,2.63,2.2400000000000002,494,0,0,2,0,0,1,77,0,0,1,0,1,0,1,30,123,147,76,80,31,9,8,26,22,8,6,8,1,0,1747,1483,264,43.3,41.7,45.7]
["Winchester","005","0007657","85540","","     142297703","       1516246","     4144","     1741",4144,4093,4035,13,23,13,0,9,51,34,4110,2038,437,250,271,332,285,194,141,103,25,2106,441,243,286,321,296,200,150,119,50,1557,4057,2.61,363,1194,1095,823,272,99,1095,3318,3.03,1741,1557,1127,430,184,29,14,103,4057,3001,1056,2.61,2.66,2.46,1114,2,2,2,0,0,7,420,3,2,0,0,1,4,16,132,246,264,192,147,105,25,56,107,104,60,33,33,27,10,4144,4057,87,37,36.6,37.299999999999997]
[]
[]
[]
["Census 2000 DemoProfile Sample Data Tables 2&3   -  DPTab23TownQry"]
[]
["TOWN_NAME","COUSUB","AREANAME","PopInSchool","Preschool","Kindergarten","Elementary","HighSchool","College","Pop25andOver","HighSchoolGrad","SomeCollege","AssocDegree","BachelDegree","GradDegree","HSGradorHigher","CollegeGradorHigher","Pop5to20yrs","Pop5to20wDis","Pop21to64","Pop21to64wDis","Pop65over","Pop65overwDis","Pop5yrsOver","SameHUin95","DiffHUinUSin95","HUinSameCountyin95","HUinSameStatein95","TotalPop","NativePop","NatPopBornUS","NatPopBornInStatRes","NatPopBornDiffState","NatPopBornOutUS","FornBornPop","FornPopEnt90to00","FornPopNatCit","FornPopNotCit","Households","HHIncLessThn10k","HHInc10to15K","HHInc15to25K","HHInc25to35K","HHInc35to50K","HHInc50to75K","HHInc75to100K","HHInc100to150K","HHInc150to200K","HHIncOver200K","MedianHHInc","HHwithPubAssistInc","MeanPubAssist","FamilyHH","FHHIncLessThn10k","FHHInc10to15K","FHHInc15to25K","FHHInc25to35K","FHHInc35to50K","FHHInc50to75K","FHHInc75to100K","FHHInc100to150K","FHHInc150to200K","FHHIncOver200K","MedianFHHInc","PerCapitaInc","PovStatFamilies","PovStatFHHwChilUnd18","PovStatFHHwChilUnd5","PovStFmalHH","DP3088","DP3089","PovStatIndiv","PovStatIndiv18yrOver","PovStatIndiv65yrOver","DP3093","DP3094","DP3095","CNTY_NAME"]
["Alstead","00820","Alstead town, Cheshire County, New Hampshire",489,41,22,237,126,63,1323,417,257,111,240,122,1147,362,451,58,1163,200,232,88,1846,1173,668,353,315,1964,1922,1913,779,1134,9,42,14,19,23,795,43,32,118,118,173,168,91,35,9,8,43191,21,1548,549,12,2,80,68,127,141,78,29,4,8,47311,20444,19,16,7,14,11,2,153,99,11,54,44,72,"Cheshire"]
["Chesterfield","12260","Chesterfield town, Cheshire County, New Hampshire",960,49,40,471,262,138,2428,641,568,231,497,299,2236,796,863,66,2133,328,376,164,3372,2168,1164,581,583,3542,3430,3410,1161,2249,20,112,35,77,35,1373,75,43,162,141,232,329,188,138,37,28,51351,14,779,1028,32,39,65,98,171,283,176,116,27,21,58516,25051,50,33,12,26,26,8,158,117,24,41,29,39,"Cheshire"]
["Dublin","19140","Dublin town, Cheshire County, New Hampshire",363,22,18,185,97,41,1037,226,186,70,277,186,945,463,319,13,869,150,200,57,1406,828,557,316,241,1476,1428,1405,641,764,23,48,11,41,7,559,30,19,68,62,79,141,76,42,13,29,52150,7,5086,419,14,10,43,36,68,110,67,32,10,29,57578,27028,25,23,7,7,7,2,153,95,10,58,43,49,"Cheshire"]
["Fitzwilliam","26500","Fitzwilliam town, Cheshire County, New Hampshire",589,32,17,278,141,121,1478,520,274,133,235,121,1283,356,493,29,1310,183,229,92,2033,1313,718,378,340,2141,2107,2102,890,1212,5,34,7,16,18,848,47,25,103,103,158,202,125,60,17,8,48125,10,5780,602,13,11,48,65,119,167,101,56,14,8,55476,23127,20,16,9,5,5,4,143,94,10,47,36,60,"Cheshire"]
["Gilsum","29220","Gilsum town, Cheshire County, New Hampshire",151,12,13,72,36,18,543,210,113,23,57,45,448,102,153,11,462,102,95,39,710,421,289,181,108,746,738,736,377,359,2,8,2,6,2,303,25,17,28,33,80,73,23,13,2,9,43359,8,1938,211,4,2,15,25,58,69,17,13,2,6,50469,20956,4,2,0,4,2,0,52,42,13,2,2,40,"Cheshire"]
["Harrisville","34420","Harrisville town, Cheshire County, New Hampshire",247,14,5,140,54,34,762,198,133,36,189,120,676,309,235,20,622,156,160,54,1017,630,387,181,206,1075,1035,1026,452,574,9,40,8,14,26,449,22,19,33,70,86,118,53,27,9,12,48625,5,3920,305,8,4,24,47,52,83,48,27,2,10,55083,25397,13,9,9,7,7,7,61,38,6,21,8,18,"Cheshire"]
["Hinsdale","36660","Hinsdale town, Cheshire County, New Hampshire",982,36,38,598,244,66,2712,1432,395,168,178,66,2239,244,981,69,2382,498,500,236,3863,2540,1294,558,736,4082,4033,4001,788,3213,32,49,6,28,21,1622,118,74,252,318,291,430,92,40,0,7,36124,58,1487,1079,15,11,151,213,228,326,92,36,0,7,43413,16611,34,34,18,25,25,9,259,160,36,94,76,115,"Cheshire"]
["Jaffrey","38500","Jaffrey town, Cheshire County, New Hampshire",1386,41,50,689,350,256,3680,1330,612,253,616,268,3079,884,1264,28,3013,495,720,292,5164,3071,2093,1065,1028,5476,5413,5344,2844,2500,69,63,8,63,0,2113,149,73,302,253,466,503,119,194,19,35,45033,75,1365,1475,36,31,202,156,354,365,94,183,19,35,48703,21412,56,49,23,22,22,16,417,271,72,146,91,154,"Cheshire"]
["Keene","39300","Keene city, New Hampshire",7574,317,298,2009,1126,3824,13950,4212,2714,791,2816,1640,12173,4456,5662,434,12465,2034,3171,1309,21609,10367,10994,5897,5097,22563,21954,21748,10754,10994,206,609,210,280,329,8942,928,590,1322,1322,1528,1676,836,459,159,122,37033,352,2217,5093,176,122,491,759,1002,1265,644,398,149,87,49935,20544,265,205,121,148,130,72,2185,1783,179,361,207,1425,"Cheshire"]
["Marlborough","45460","Marlborough town, Cheshire County, New Hampshire",494,18,31,253,119,73,1384,509,241,87,231,129,1197,360,447,35,1155,193,295,104,1897,1231,655,479,176,2014,1987,1977,1219,758,10,27,0,19,8,800,38,35,99,137,148,227,74,31,4,7,44904,13,2269,553,7,7,57,80,114,184,65,28,4,7,50927,19967,7,7,5,4,4,2,71,62,10,9,2,51,"Cheshire"]
["Marlow","45700","Marlow town, Cheshire County, New Hampshire",172,8,10,91,37,26,516,196,102,36,85,27,446,112,143,10,434,69,103,27,680,452,224,132,92,727,710,710,347,363,0,17,2,8,9,286,11,9,21,46,81,83,28,4,3,0,45000,4,2525,226,2,7,10,41,60,73,26,4,3,0,47813,18810,6,2,2,2,2,2,30,21,5,9,7,11,"Cheshire"]
["Nelson","50580","Nelson town, Cheshire County, New Hampshire",147,8,6,75,32,26,422,87,65,19,130,64,365,194,126,6,379,39,63,18,568,386,175,118,57,615,598,594,297,297,4,17,7,5,12,260,18,19,41,37,31,39,34,21,7,13,41250,0,0,173,9,9,17,19,17,31,34,19,5,13,59464,31624,16,11,11,0,0,0,75,49,2,26,10,18,"Cheshire"]
["Richmond","64420","Richmond town, Cheshire County, New Hampshire",298,16,16,176,56,34,699,210,153,43,136,67,609,203,268,7,622,69,118,44,1008,621,380,215,165,1077,1066,1054,456,598,12,11,0,11,0,371,13,7,27,57,87,80,52,31,9,8,49141,4,350,283,8,6,10,39,64,67,41,31,9,8,54625,21174,13,9,9,2,0,0,80,53,9,25,13,33,"Cheshire"]
["Rindge","64580","Rindge town, Cheshire County, New Hampshire",2270,21,55,648,288,1258,2695,929,539,273,441,231,2413,672,1841,137,2849,417,421,144,5136,2852,2160,656,1504,5451,5297,5263,1536,3727,34,154,53,77,77,1514,49,29,121,270,272,413,177,107,38,38,50494,14,1907,1158,28,11,83,138,257,330,162,73,38,38,52500,18495,50,27,22,15,5,5,323,176,14,142,113,58,"Cheshire"]
["Roxbury","65700","Roxbury town, Cheshire County, New Hampshire",49,5,2,27,7,8,174,70,19,22,19,32,162,51,41,0,149,24,29,7,219,162,51,28,23,233,229,227,154,73,2,4,4,0,4,92,4,0,20,11,12,24,12,9,0,0,49375,2,500,62,0,0,8,4,10,19,12,9,0,0,56875,21124,0,0,0,0,0,0,2,2,0,0,0,2,"Cheshire"]
["Stoddard","73700","Stoddard town, Cheshire County, New Hampshire",209,8,0,108,34,59,684,199,136,39,133,92,599,225,173,19,570,94,139,37,882,590,292,129,163,928,918,914,417,497,4,10,2,6,4,399,35,14,66,62,68,91,36,22,5,0,37639,2,6050,263,8,8,35,50,32,77,34,14,5,0,48125,19617,14,6,4,0,0,0,79,58,15,18,13,38,"Cheshire"]
["Sullivan","74900","Sullivan town, Cheshire County, New Hampshire",214,6,2,114,61,31,508,198,78,30,54,46,406,100,189,20,473,87,68,23,730,560,168,128,40,769,761,750,450,300,11,8,0,6,2,277,9,12,29,42,41,91,30,14,2,7,51058,8,3525,215,2,4,18,29,44,68,27,14,2,7,52386,21143,2,2,2,0,0,0,34,27,0,7,5,22,"Cheshire"]
["Surry","75300","Surry town, Cheshire County, New Hampshire",157,7,8,72,48,22,523,155,125,36,91,67,474,158,143,8,431,49,102,44,676,489,173,134,39,704,691,679,371,308,12,13,5,6,7,280,6,19,5,26,61,94,43,20,2,4,56964,10,1050,222,1,6,2,14,50,90,35,18,2,4,60179,24277,1,1,0,1,1,0,13,10,5,2,2,10,"Cheshire"]
["Swanzey","75700","Swanzey town, Cheshire County, New Hampshire",1662,54,38,945,332,293,4648,1780,854,305,703,253,3895,956,1453,111,4061,815,881,289,6395,4047,2319,1707,612,6800,6642,6606,3797,2809,36,158,22,109,49,2660,169,98,350,419,456,677,289,133,46,23,44819,112,2020,1886,43,38,203,244,355,601,258,85,36,23,51500,20150,57,18,13,21,13,13,363,312,92,40,31,213,"Cheshire"]
["Troy","77380","Troy town, Cheshire County, New Hampshire",487,25,25,229,148,60,1311,564,226,71,144,62,1067,206,464,53,1177,239,216,83,1860,1176,679,487,192,1957,1939,1926,1111,815,13,18,6,5,13,755,63,41,104,93,162,205,56,23,5,3,41875,34,2525,522,15,20,52,81,108,180,40,21,5,0,47500,17323,20,16,7,11,9,2,155,113,16,39,23,89,"Cheshire"]
["Walpole","78420","Walpole town, Cheshire County, New Hampshire",800,70,43,407,167,113,2489,796,478,158,514,267,2213,781,772,8,1959,241,645,287,3376,2035,1337,490,847,3594,3513,3501,1118,2383,12,81,19,53,28,1497,89,125,126,234,249,360,175,67,39,33,44673,26,3846,1019,23,26,61,144,191,293,158,61,33,29,53561,23295,40,40,7,32,32,7,220,126,23,94,80,86,"Cheshire"]
["Westmoreland","82660","Westmoreland town, Cheshire County, New Hampshire",396,28,9,184,93,82,1283,407,250,70,257,177,1161,434,321,38,901,108,205,77,1681,1044,622,369,253,1747,1708,1689,849,840,19,39,10,35,4,579,12,13,48,70,87,165,98,58,9,19,55875,11,3555,448,0,9,25,48,63,135,94,56,4,14,62857,24488,2,0,0,0,0,0,37,37,11,0,0,33,"Cheshire"]
["Winchester","85540","Winchester town, Cheshire County, New Hampshire",977,33,101,516,256,71,2783,1253,407,153,230,129,2172,359,946,210,2349,592,530,233,3890,2084,1806,1044,762,4144,4061,4033,1847,2186,28,83,0,65,18,1547,133,154,192,251,285,392,97,31,12,0,37364,85,3518,1095,72,70,92,150,263,341,76,25,6,0,43393,16012,109,90,49,44,44,23,487,299,31,183,122,126,"Cheshire"]
[]
[]
[]
[]
["Census 2000 DemoProfile Sample Data Table 4   -  DPTab4TownQry"]
[]
["TOWN_NAME","COUSUB","TotHousingUnits","1UnitDet","1UnitAtt","2Units","3to4Units","5to9Units","10to19Units","20orMoreUnits","MobileHomes","BoatRvVan","SingleFamilyUnits","MultiFamUnits","MobileHomeUnits","YearBuilt99to00","YearBuilt95to98","YearBUilt90to94","YearBuilt80to89","YearBuilt70to79","YearBuilt60to69","YearBuilt40to59","YearBuilt39orEarlier","Rooms1","Rooms2","Rooms3","Rooms4","Rooms5","Rooms6","Rooms7","Rooms8","Rooms9orMore","MedianRooms","OccHU1","YrHHMvdIn99to00","YrHHMvdIn95to98","YrHHMvdIn90to94","YrHHMvdIn80to89","YrHHMvdIn70to79","YrHHMvdIn69orBefore","HeatFuelNatGas","HeatFuelBotGas","HeatFuelElectric","HeatFuelOil","HeatFuelCoal","HeatFuelWood","HeatFuelSolar","HeatFuelOther","HeatFuelNone","LackCompPlumb","LackCompKit","NoTelephone","OccHU","OccPerRm1orLess","OccPerRm1to1_5","OccPerRm1_5orMore","SpecOwnOccUnits","Value<50K","Value50to100K","Value100to150K","Value150to200K","Value200to300K","Value300to500K","Value500Kto1mil","Value1MilorMore","MedianValue","WithMortg","MnthOwnCst<300","MnthOwnCst300to500","MnthOwnCst500to700","MnthOwnCst700to1000","MnthOwnCst1000to1500","MnthOwnCst1500to2000","MnthOwnCst2000orMore","MediMnthOwnCst","NotMrtg","NotMrtgMediMnthOwnCst","OwnCst%HHInc<15","OwnCst%HHInc15to20","OwnCst%HHInc20to25","OwnCst%HHInc25to30","OwnCst%HHInc30to35","OwnCst%HHInc35orMor","NotComputed","SpecRntOccUnits","Rnt<200","Rnt200to300","Rnt300to500","Rnt500to750","Rnt750to1000","Rnt1000to1500","Rnt1500orMore","NoRent","MedianRent","Rnt%HHInc<15","Rnt%HHInc15to20","Rnt%HHInc20to25","Rnt%HHInc25to30","Rnt%HHInc30to35","Rnt%HHInc35orMore","Rnt%NotCompute"]
["Alstead","00820",950,750,6,31,30,18,0,0,110,5,750,85,115,6,50,70,198,150,102,117,257,26,28,106,180,180,164,128,72,66,5.3,781,109,180,105,190,100,97,2,74,27,459,13,201,0,0,5,47,24,10,781,763,8,10,330,34,174,90,25,2,2,0,3,87900,209,0,16,36,91,51,15,0,880,121,363,122,60,42,35,16,55,0,142,0,2,31,69,17,5,0,18,617,26,10,23,13,4,43,23,"Cheshire"]
["Chesterfield","12260",1632,1446,26,59,29,16,10,5,35,6,1446,145,41,24,88,97,247,288,217,273,398,10,35,75,235,257,375,261,175,209,6,1366,158,350,230,308,176,144,21,128,56,997,8,156,0,0,0,8,4,4,1366,1343,15,8,892,14,232,329,147,111,51,4,4,129700,612,0,14,46,182,206,112,52,1137,280,410,276,131,124,104,47,197,13,195,5,0,21,103,34,17,4,11,631,53,30,23,32,13,29,15,"Cheshire"]
["Dublin","19140",686,619,17,20,6,0,0,2,22,0,619,45,22,17,22,29,161,106,64,75,212,8,2,51,60,103,125,116,81,140,6.5,560,72,133,111,120,67,57,0,37,13,448,0,62,0,0,0,4,2,0,560,556,4,0,272,2,49,81,79,40,17,4,0,151900,179,0,4,8,41,85,23,18,1212,93,515,69,55,31,30,28,57,2,66,3,2,4,28,4,9,0,16,675,15,12,8,6,2,7,16,"Cheshire"]
["Fitzwilliam","26500",1074,865,12,48,14,15,0,0,116,4,865,89,120,20,52,56,232,144,112,148,310,6,38,64,176,251,192,124,104,119,5.5,836,85,234,94,249,110,64,2,84,8,638,2,98,2,2,0,4,4,8,836,823,11,2,466,7,235,166,44,14,0,0,0,98800,342,0,14,42,118,140,23,5,992,124,374,138,98,75,39,31,85,0,129,0,2,28,50,30,5,0,14,669,23,18,15,12,14,32,15,"Cheshire"]
["Gilsum","29220",323,277,2,17,0,0,0,0,27,0,277,19,27,3,16,12,48,40,49,17,138,1,10,8,56,59,65,47,36,41,5.9,299,33,74,30,75,47,40,3,21,0,188,5,80,2,0,0,7,7,8,299,297,2,0,159,17,77,50,12,3,0,0,0,89100,97,3,6,11,36,36,2,3,906,62,380,54,19,22,14,9,36,5,29,0,4,8,7,10,0,0,0,668,12,4,8,2,0,3,0,"Cheshire"]
["Harrisville","34420",698,625,10,27,8,0,0,0,28,0,625,45,28,9,19,18,76,112,55,82,327,7,19,62,99,166,140,67,60,78,5.5,449,53,111,69,112,65,39,0,62,15,307,0,61,2,0,2,4,0,4,449,444,5,0,260,7,64,109,45,27,6,2,0,124600,174,0,2,22,62,52,28,8,1007,86,377,103,35,45,26,14,37,0,78,0,0,17,16,31,9,0,5,760,19,15,5,15,5,14,5,"Cheshire"]
["Hinsdale","36660",1714,935,18,81,109,110,10,24,427,0,935,352,427,31,80,93,273,377,234,216,410,7,69,154,377,407,228,235,127,110,5.0999999999999996,1622,256,424,298,318,133,193,18,92,56,1312,0,118,0,6,20,6,8,41,1622,1604,18,0,786,11,461,289,12,6,0,0,7,92500,545,0,31,54,193,248,19,0,992,241,378,200,138,149,138,24,137,0,429,40,30,131,134,53,0,0,41,496,65,90,67,49,28,89,41,"Cheshire"]
["Jaffrey","38500",2352,1525,30,100,176,248,64,45,164,0,1525,663,164,52,29,67,373,460,233,294,844,32,57,194,434,529,374,312,176,244,5.4,2120,454,484,404,328,224,226,13,88,146,1706,0,139,0,28,0,0,0,11,2120,2099,21,0,1029,18,459,393,67,31,61,0,0,103900,703,0,0,36,283,320,45,19,1043,326,494,265,181,180,164,79,160,0,666,40,0,209,314,63,18,0,22,542,132,77,136,87,49,163,22,"Cheshire"]
["Keene","39300",9295,4541,267,1069,844,722,620,786,446,0,4541,4308,446,61,200,238,1208,1299,1080,1734,3475,194,427,1084,1672,1698,1689,1007,685,839,5.2,8955,2006,2579,1096,1456,766,1052,659,542,973,6442,41,235,0,49,14,27,55,102,8955,8901,36,18,3979,57,1782,1440,397,259,44,0,0,103800,2566,0,33,161,733,1127,335,177,1118,1413,482,918,940,759,337,321,682,22,3827,236,223,539,1868,629,155,47,130,622,541,492,521,553,374,1169,177,"Cheshire"]
["Marlborough","45460",893,586,48,98,49,19,15,43,35,0,586,272,35,9,23,77,146,68,60,109,401,2,26,51,99,222,194,125,76,98,5.7,826,102,210,131,147,95,141,25,94,16,626,5,56,0,4,0,8,2,2,826,818,8,0,412,14,251,114,17,7,7,2,0,90200,252,0,0,32,106,88,20,6,969,160,417,135,94,47,38,38,60,0,208,9,10,40,73,40,18,2,16,615,33,33,33,32,14,42,21,"Cheshire"]
["Marlow","45700",387,334,3,5,0,0,0,0,39,6,334,8,45,0,24,36,71,61,67,40,88,21,19,39,72,94,59,41,26,16,5,282,30,67,68,75,22,20,0,32,2,179,0,68,0,1,0,6,6,5,282,282,0,0,133,11,78,37,7,0,0,0,0,88100,87,0,2,10,41,30,4,0,932,46,440,38,16,24,28,12,15,0,34,0,0,10,12,2,2,0,8,620,5,5,3,2,0,11,8,"Cheshire"]
["Nelson","50580",404,385,5,8,2,0,0,2,2,0,385,17,2,6,38,12,45,38,22,56,187,14,13,51,79,60,60,53,41,33,5.3,253,35,53,46,53,37,29,0,33,2,126,2,90,0,0,0,21,8,4,253,242,11,0,121,9,47,28,21,12,2,2,0,106600,76,0,0,9,29,26,6,6,1000,45,338,36,18,22,11,2,30,2,39,2,0,11,16,5,0,0,5,550,10,2,9,2,2,9,5,"Cheshire"]
["Richmond","64420",432,396,3,6,2,0,0,0,25,0,396,11,25,18,32,43,127,48,27,40,97,3,0,20,73,91,75,81,43,46,5.9,379,46,109,68,96,38,22,2,26,2,255,2,88,2,2,0,0,2,2,379,368,11,0,201,0,73,101,18,9,0,0,0,113200,172,0,7,18,45,86,12,4,1077,29,442,38,45,37,30,28,23,0,30,0,0,2,11,9,0,0,8,650,4,2,10,4,0,2,8,"Cheshire"]
["Rindge","64580",1863,1597,33,36,34,28,10,43,82,0,1597,184,82,41,43,155,448,383,201,343,249,15,23,121,270,384,551,253,127,119,5.7,1502,249,440,268,350,135,60,0,107,50,1168,0,177,0,0,0,4,12,19,1502,1433,58,11,993,6,340,426,143,64,6,8,0,114400,769,0,25,72,238,323,91,20,1064,224,451,256,179,156,150,94,150,8,224,0,0,48,99,58,10,0,9,676,8,53,27,53,10,64,9,"Cheshire"]
["Roxbury","65700",91,78,2,3,0,0,0,0,8,0,78,5,8,0,0,6,19,8,8,21,29,0,0,2,7,24,17,25,11,5,6.2,90,9,16,10,15,26,14,0,8,3,58,2,19,0,0,0,0,0,0,90,90,0,0,50,2,21,17,6,4,0,0,0,103800,32,0,2,4,20,2,2,2,783,18,375,10,14,9,11,2,4,0,9,0,0,0,3,2,4,0,0,975,7,0,2,0,0,0,0,"Cheshire"]
["Stoddard","73700",939,893,13,7,2,0,0,0,18,6,893,22,24,19,49,75,174,179,140,182,121,11,52,120,202,196,165,101,54,38,4.9000000000000004,400,58,76,98,94,47,27,3,57,9,213,2,116,0,0,0,17,17,10,400,393,5,2,264,7,97,92,29,16,10,13,0,115900,174,3,3,35,78,45,7,3,847,90,321,93,35,38,32,18,48,0,46,0,2,0,22,6,2,0,14,706,2,7,9,2,0,12,14,"Cheshire"]
["Sullivan","74900",294,237,10,13,9,0,0,0,25,0,237,32,25,0,22,14,80,46,22,39,71,0,5,16,55,48,56,52,32,30,5.9,275,15,75,39,89,37,20,0,23,7,170,5,70,0,0,0,5,3,0,275,272,3,0,124,18,64,35,5,2,0,0,0,91700,95,0,5,12,35,41,0,2,959,29,385,48,25,18,13,10,10,0,46,0,0,6,23,11,0,0,6,659,7,5,12,3,6,7,6,"Cheshire"]
["Surry","75300",302,269,3,5,0,0,0,0,20,5,269,8,25,7,5,25,63,77,24,34,67,5,5,14,33,75,62,51,34,23,5.8,279,22,49,40,90,55,23,2,22,20,185,2,46,2,0,0,2,0,2,279,279,0,0,201,4,49,97,43,8,0,0,0,122800,134,0,14,8,43,50,13,6,1021,67,402,80,25,21,31,15,29,0,28,0,0,4,0,10,6,0,8,950,4,2,7,2,2,3,8,"Cheshire"]
["Swanzey","75700",2818,1984,76,116,140,95,98,44,265,0,1984,569,265,39,142,211,596,350,244,393,843,37,152,148,482,604,588,335,280,192,5.5,2666,377,790,421,513,269,296,63,308,65,1979,40,193,0,9,9,20,8,26,2666,2641,25,0,1550,107,560,596,187,91,9,0,0,107000,1131,0,29,183,254,502,109,54,1069,419,398,470,252,277,182,87,274,8,604,44,26,170,316,31,0,0,17,556,85,124,110,74,44,150,17,"Cheshire"]
["Troy","77380",778,505,4,57,66,32,8,6,100,0,505,173,100,9,28,48,92,105,60,99,337,5,24,70,145,177,134,109,65,49,5.3,736,134,166,128,164,62,82,2,84,12,550,6,74,0,3,5,5,2,10,736,727,9,0,360,6,233,108,9,0,4,0,0,89600,274,0,6,28,111,118,9,2,983,86,437,59,81,62,43,25,86,4,205,11,8,60,96,20,2,0,8,541,40,33,28,15,23,58,8,"Cheshire"]
["Walpole","78420",1592,1187,16,100,124,76,7,26,56,0,1187,349,56,17,30,72,202,214,166,232,659,18,26,131,214,200,276,343,211,173,6.3,1490,274,320,281,288,138,189,7,110,106,1131,6,116,0,0,14,6,6,20,1490,1465,16,9,834,26,253,316,99,84,52,4,0,118400,518,0,16,83,200,150,47,22,948,316,384,302,161,94,77,46,148,6,400,7,45,125,130,47,7,0,39,504,96,74,25,61,26,79,39,"Cheshire"]
["Westmoreland","82660",618,583,23,0,0,0,4,0,8,0,583,27,8,0,31,32,94,135,71,61,194,4,11,28,50,106,108,162,93,56,6.5,576,51,151,65,157,92,60,6,53,7,369,0,136,2,3,0,5,5,5,576,574,2,0,341,0,67,180,54,27,13,0,0,128500,239,0,0,19,67,110,31,12,1133,102,422,105,77,57,35,16,51,0,59,0,1,5,20,14,7,0,12,679,5,11,9,4,5,10,15,"Cheshire"]
["Winchester","85540",1741,1106,13,134,112,46,6,12,312,0,1106,323,312,41,48,110,378,277,106,231,550,0,35,133,323,443,272,247,139,149,5.4,1557,292,371,246,321,180,147,13,166,53,1150,6,169,0,0,0,5,5,65,1557,1531,26,0,593,50,386,107,26,17,7,0,0,84300,386,0,24,43,110,179,13,17,1026,207,384,171,121,81,34,51,129,6,422,25,17,87,212,62,12,0,7,567,49,61,65,37,48,149,13,"Cheshire"]
[]
[]
[]
[]
[]
[]
["Census 2000 SummaryFile3 Sample Data  -  SF3TownQry1SocialChar"]
[]
["TOWN_NAME","LOGRECNO","COUSUB","P01TotalPopulation","P02SampleCountOfPop","P03Pop100pctCount","P05UrbanPopulation","P05RuralPopulation","P06WhiteAlone","P06BlackOrAfAm","P06AmIndAlone","P06AsianAlone","P06HawaiianOrPI","P06OtherRace","P06TwoPlusRaces","P07NotHispanicOrLatino","P07HispanicOrLatino","P08MalePop","P08FemalePop","P09PopInHouseholds","P09PopInFamHH","P09PopInNonFamHH","P09PopInGroupQtr","P13TotalHH","P13FamilyHH","P13FamHHolder15to24yrs","P13FamHHolder25to34yrs","P13FamHHolder35to44yrs","P13FamHHolder45to54yrs","P13FamHHolder55to64yrs","P13FamHHolder65to74yrs","P13FamHHolder75to84yrs","P13FamHHolder85yrsOver","P13NonFamilyHH","P13NonFamHHolder15to24yrs","P13NonFamHHolder25to34yrs","P13NonFamHHolder35to44yrs","P13NonFamHHolder45to54yrs","P13NonFamHHolder55to64yrs","P13NonFamHHolder65to74yrs","P13NonFamHHolder75to84yrs","P13NonFamHHolder85yrsOver","P18Pop15yrsOver","P18MaritalStatNeverMarried","P18MaritalStatNowMarried","P18MaritalStatSeparated","P18MaritalStatWidowed","P18MaritalStatWidowFemale","P18MaritalStatDivorced","P18MaritalStatDivorcedFemale","P21NativeBornPop","P21NatPopBornInState","P21NatPopBornOtherState","P021005","P021006","P021007","P021008","P21NatPopBornOutUS","P21ForeignBornPop","P021014","P021015","P24Pop5YrsPlus","P24ResSameHouseIn95","P24ResDiffHouseIn95","P24ResDiffHouseInUSIn95","P24ResDiffHouseSameCountyIn95","P24ResDiffHouseDiffCountyIn95","P24ResDiffHouseDiffCntySamStIn95","P24ResDiffHouseDiffCntyDifStIn95","P24ResDiffHouseDiffCntyNEStIn95","P24ResDiffHouseDiffCntyMWStIn95","P24ResDiffHouseDiffCntySoStIn95","P24ResDiffHouseDiffCntyWstStIn95","P24ResDiffInPR","P24ResDiffElsewhereIn95","P26Workers16yrsOver","P26WorkedInState","P26WorkedInCnty","P26WorkedOutsideCnty","P26WorkedOutsideState","P30Workers16Over","P30TranspToWrkCar","P30TranspToWrkPublic","P30TranspToWrkOther","P30WrkdAtHome","P31WrkrsNotWrkAtHom","P31TravTim<5min","P31TravTim5to9Min","P31TravTim10to14Min","P31TravTim15to19Min","P31TravTim20to24Min","P31TravTim25to29Min","P31TravTim30to34Min","P31TravTim35to39Min","P31TravTim40to44Min","P31TravTim45to59Min","P31TravTim60to89Min","P31TravTim90MinMore","P31WorkAtHome","P36SchEnrlPop3yrOver","P36NurserSchEnrl","P36KinderSchEnrl","P36ElemSchEnrl","P36HighSchEnrl","P36CollGradSchEnrl","P37Pop25yrsOver","P37EduAtain<9grd","P37EduAtainHSnoDip","P37EduAtainHSgrad","P37EduAtainCollNoDeg","P37EduAtainAssocDeg","P37EduAtainBachDeg","P37EduAtainGradProfDeg","P42NIPop5to15","P42NIPop5to15wDisabl","P42NIPop16to20","P42NIPop16to20wDisab","P42NIPop16to20wDisEmp","P42NIPop16to21NoDis","P42NIPop16to21NoDisEmpl","P42NIPop21to64","P42NIPop21to64wDis","P42NIPop21to64wDisEmp","P42NIPop21to64NoDis","P42NIPop21to64NoDisEmp","P42NIPop65to74","P42NIPop65to74wDis","P42NIPop75Over","P42NIPop75OverwDis","P43Pop16YrsOver","P43Pop16OvrInLaborForce","P43Pop16OvrCivlLabFrc","P43Pop16OvrCivlLbrFrcEmp","P48Families","P48MarriedFam","P48MarrFamNoWorkers","P48MarrFam1Worker","P48MarrFam2Worker","P48MarrFamHusbWifeWorked","P48MarrFamOther","P48MarrFam3PlusWorker","P48MarrFam3WorkHsbWif","P48MarrFam3PlsWrkOther","P48OtherFam","P48MaleHHNoWif","P48MaleHHNoWifNoWorker","P48MaleHHNoWif1Worker","P48MaleHHNoWif2Worker","P48MaleHHNoWif3PlusWorker","P48FemaleHHNoHsb","P48FemaleHHNoHsbNoWorker","P48FemaleHHNoHsb1Worker","P48FemaleHHNoHsb2Worker","P48FemaleHHNoHsb3Worker","P49EmpCivPop16YrOver","P49IndustAgricult","P49IndustConst","P49IndustMnftg","P49IndustWhlslTrd","P49IndustRtlTrd","P49IndustTrspWrhsUtlt","P49IndustInfrm","P49IndustFinInsRE","P49IndustPrfsScntfMngmt","P49IndustEduHlthSocSrv","P49IndustArtsEntRec","P49IndustOthrSrvc","P49IndustPubAdm","P50OccupMngmtProfs","P50OccupService","P50OccupSalesOff","P50OccupFarmFishForest","P50OccupConstExtrctMaint","P50OccupPrdctTrnspMatMv"]
["Alstead","0000512","00820",1964,919,1944,0,1964,1936,0,7,10,0,0,11,1958,6,1019,945,1952,1647,305,12,795,549,16,69,154,147,78,48,28,9,246,14,25,56,65,34,21,27,4,1553,363,912,15,65,53,198,108,1922,779,1134,964,60,61,49,9,42,19,23,1846,1173,673,668,353,315,82,233,146,32,37,18,0,5,1044,892,777,115,152,1044,933,4,0,77,967,39,54,82,122,160,112,213,36,14,65,33,37,77,1888,41,22,237,126,63,1323,33,143,417,257,111,240,122,310,35,141,23,12,118,64,1163,200,128,963,830,126,36,106,52,1536,1117,1117,1068,549,450,51,87,245,241,4,67,66,1,99,27,2,18,7,0,72,10,42,15,5,1068,53,123,210,30,105,28,40,41,68,262,42,49,17,366,147,190,21,152,192]
["Chesterfield","0000518","12260",3542,818,3542,0,3542,3458,0,36,4,0,11,33,3511,31,1817,1725,3542,3139,403,0,1373,1028,14,99,271,305,174,110,43,12,345,5,64,51,80,59,33,35,18,2796,572,1819,32,135,112,238,110,3430,1161,2249,1820,169,149,111,20,112,77,35,3372,2168,1204,1164,581,583,91,492,333,78,31,50,0,40,1839,1274,1235,39,565,1839,1705,3,3,117,1722,50,111,302,453,367,103,114,42,27,56,51,46,117,3445,49,40,471,262,138,2428,57,135,641,568,231,497,299,638,23,225,43,21,182,95,2133,328,202,1805,1513,215,72,161,92,2734,1921,1921,1870,1028,893,99,160,479,475,4,155,155,0,135,29,0,26,3,0,106,12,68,24,2,1870,13,125,259,134,261,84,49,128,120,451,112,78,56,777,185,501,8,171,228]
["Dublin","0000525","19140",1476,653,1476,0,1476,1444,6,0,10,0,2,14,1470,6,744,732,1404,1245,159,72,559,419,3,36,92,124,75,55,29,5,140,0,18,25,27,25,24,14,7,1192,257,781,26,42,40,86,45,1428,641,764,615,74,42,33,23,48,41,7,1406,828,578,557,316,241,103,138,112,11,7,8,0,21,730,684,453,231,46,730,614,0,9,72,658,42,81,86,133,83,58,55,22,10,18,21,49,72,1441,22,18,185,97,41,1037,14,78,226,186,70,277,186,238,7,81,6,4,75,22,869,150,119,719,560,120,23,80,34,1168,778,778,747,419,374,49,81,204,197,7,40,38,2,45,14,2,10,2,0,31,2,14,8,7,747,23,53,115,15,76,29,23,35,72,199,31,62,14,318,118,147,11,71,82]
["Fitzwilliam","0000530","26500",2141,993,2141,0,2141,2098,7,0,5,0,2,29,2127,14,1094,1047,2141,1820,321,0,848,602,8,64,170,165,101,55,29,10,246,14,28,39,60,39,32,30,4,1720,376,1025,46,95,79,178,77,2107,890,1212,978,98,87,49,5,34,16,18,2033,1313,720,718,378,340,41,299,213,2,50,34,0,2,1184,976,862,114,208,1184,1103,4,3,50,1134,40,73,113,112,146,138,252,33,36,63,69,59,50,2082,32,17,278,141,121,1478,58,137,520,274,133,235,121,352,20,141,9,7,132,73,1310,183,109,1127,973,128,37,101,55,1681,1241,1240,1213,602,517,46,89,279,262,17,103,103,0,85,28,0,18,7,3,57,3,36,18,0,1213,7,128,280,60,152,46,26,72,75,227,63,34,43,368,167,322,4,134,218]
["Gilsum","0000537","29220",746,337,777,0,746,740,0,4,0,0,2,0,744,2,373,373,739,622,117,7,303,211,0,28,38,72,37,22,14,0,92,3,14,16,23,9,16,8,3,613,139,366,15,38,30,55,25,738,377,359,292,24,27,16,2,8,6,2,710,421,289,289,181,108,22,86,32,15,32,7,0,0,392,362,340,22,30,392,371,0,2,7,385,11,22,28,109,80,17,29,13,14,32,21,9,7,730,12,13,72,36,18,543,26,69,210,113,23,57,45,103,7,50,4,4,46,22,462,102,66,360,290,63,24,32,15,607,416,416,392,211,173,19,32,101,95,6,21,21,0,38,12,0,4,5,3,26,2,11,13,0,392,5,40,93,21,38,21,22,22,21,58,17,27,7,109,37,82,0,69,95]
["Harrisville","0000542","34420",1075,500,1075,0,1075,1040,0,3,7,0,10,15,1060,15,513,562,1075,906,169,0,449,305,1,31,73,100,33,43,24,0,144,2,7,25,50,22,11,12,15,859,146,518,21,38,30,136,86,1035,452,574,446,42,62,24,9,40,14,26,1017,630,387,387,181,206,49,157,102,12,34,9,0,0,582,550,456,94,32,582,523,3,2,35,547,27,29,43,72,135,90,70,13,9,23,20,16,35,1035,14,5,140,54,34,762,28,58,198,133,36,189,120,169,8,66,12,4,54,27,622,156,131,466,413,92,26,68,28,848,604,604,600,305,240,33,33,134,134,0,40,40,0,65,21,1,11,9,0,44,5,21,11,7,600,5,43,109,16,81,21,21,26,47,169,31,17,14,266,63,136,5,59,71]
["Hinsdale","0000547","36660",4082,627,4082,0,4082,3971,23,4,14,0,4,66,4039,43,2023,2059,4082,3375,707,0,1622,1079,34,144,319,256,172,94,60,0,543,24,65,63,91,124,60,63,53,3223,724,1795,74,230,181,400,229,4033,788,3213,2919,63,166,65,32,49,28,21,3863,2540,1323,1294,558,736,19,717,577,66,62,12,0,29,2192,892,867,25,1300,2192,2135,0,4,53,2139,56,209,401,473,415,104,154,44,67,126,64,26,53,3954,36,38,598,244,66,2712,98,375,1432,395,168,178,66,705,34,276,35,12,241,166,2382,498,268,1884,1696,257,104,243,132,3158,2337,2337,2237,1079,855,69,172,432,411,21,182,167,15,224,78,0,59,19,0,146,5,82,51,8,2237,14,91,445,228,279,127,23,98,97,512,166,117,40,467,421,648,0,136,565]
["Jaffrey","0000559","38500",5476,586,5476,2963,2513,5348,33,0,27,0,21,47,5437,39,2622,2854,5304,4536,768,172,2113,1475,49,227,416,318,219,135,75,36,638,40,80,108,114,55,111,130,0,4304,980,2601,95,307,223,321,123,5413,2844,2500,2069,195,53,183,69,63,63,0,5164,3071,2093,2093,1065,1028,492,536,420,25,13,78,0,0,2805,2521,1866,655,284,2805,2518,20,0,153,2652,172,586,579,252,201,119,238,68,33,126,175,103,153,5212,41,50,689,350,256,3680,164,437,1330,612,253,616,268,980,8,284,20,3,264,185,3013,495,356,2518,2135,414,130,306,162,4184,2890,2882,2803,1475,1195,101,200,769,692,77,125,105,20,280,116,0,73,22,21,164,20,88,42,14,2803,48,208,723,66,406,93,107,108,159,502,136,210,37,909,355,629,19,302,589]
["Keene","0000582","39300",22563,2800,22563,19563,3000,21990,46,28,271,0,93,135,22419,144,10621,11942,20283,15023,5260,2280,8942,5093,126,729,1290,1191,717,562,394,84,3849,739,568,372,578,416,538,450,188,19070,6721,8618,316,1418,1143,1997,1279,21954,10754,10994,8886,931,703,474,206,609,280,329,21609,10367,11242,10994,5897,5097,1833,3264,2388,200,277,399,26,222,11109,10274,9791,483,835,11109,9718,70,28,368,10741,816,2951,3049,1219,736,307,617,76,99,350,315,206,368,21999,317,298,2009,1126,3824,13950,601,1176,4212,2714,791,2816,1640,2778,187,2884,247,173,2637,849,12465,2034,1137,10431,8778,1611,520,1560,789,18804,12796,12796,11408,5093,3919,532,736,2119,2053,66,532,512,20,1174,355,20,231,100,4,819,100,389,296,34,11408,29,522,1812,429,1862,320,346,949,635,2743,966,454,341,4043,1508,3436,15,795,1611]
["Marlborough","0000624","45460",2014,944,2009,1142,872,1988,6,3,4,0,0,13,2006,8,998,1016,2014,1732,282,0,800,553,4,84,148,118,86,58,39,16,247,7,39,33,40,39,40,30,19,1598,377,923,18,109,84,171,89,1987,1219,758,589,71,58,40,10,27,19,8,1897,1231,666,655,479,176,55,121,72,4,22,23,0,11,1113,1070,999,71,43,1113,1011,0,2,76,1037,31,117,239,253,201,38,59,17,12,16,30,24,76,1952,18,31,253,119,73,1384,49,138,509,241,87,231,129,312,13,135,22,6,113,64,1155,193,138,962,871,152,37,143,67,1585,1141,1141,1124,553,445,46,69,252,246,6,78,76,2,108,30,2,15,11,2,78,12,46,15,5,1124,23,92,294,20,134,23,18,61,75,254,41,64,25,333,145,286,11,117,232]
["Marlow","0000640","45700",727,358,747,0,727,722,0,0,0,0,2,3,725,2,381,346,727,645,82,0,286,226,1,33,54,53,37,42,5,1,60,5,9,10,13,5,6,7,5,580,108,412,4,29,21,27,18,710,347,363,298,25,34,6,0,17,8,9,680,452,228,224,132,92,31,61,35,3,17,6,0,4,393,366,320,46,27,393,362,0,11,10,383,16,16,11,27,56,35,127,14,12,47,9,13,10,702,8,10,91,37,26,516,19,51,196,102,36,85,27,103,4,40,6,3,34,18,434,69,51,365,317,79,12,24,15,577,419,419,404,226,204,30,38,116,111,5,20,20,0,22,8,0,2,5,1,14,1,8,5,0,404,15,35,91,20,57,17,4,14,25,69,12,19,26,98,48,97,6,51,104]
["Nelson","0000645","50580",615,259,634,0,615,602,5,5,0,0,0,3,613,2,310,305,615,511,104,0,260,173,4,26,37,48,33,17,8,0,87,4,16,14,21,8,4,12,8,484,105,307,3,18,18,51,24,598,297,297,213,31,25,28,4,17,5,12,568,386,182,175,118,57,9,48,30,4,4,10,0,7,331,306,262,44,25,331,303,0,2,24,307,6,26,31,70,77,21,21,4,5,12,19,15,24,598,8,6,75,32,26,422,12,45,87,65,19,130,64,99,6,27,0,0,27,11,379,39,28,340,285,33,8,30,10,469,368,368,349,173,158,2,33,96,93,3,27,27,0,15,8,0,5,3,0,7,0,7,0,0,349,3,27,56,12,47,11,18,26,22,81,22,17,7,117,55,99,3,37,38]
["Richmond","0000650","64420",1077,512,1077,0,1077,1062,0,0,4,0,0,11,1066,11,547,530,1068,963,105,9,371,283,9,28,81,72,48,31,10,4,88,3,11,11,26,18,8,11,0,804,179,527,11,27,21,60,24,1066,456,598,475,55,31,37,12,11,11,0,1008,621,387,380,215,165,35,130,86,16,7,21,0,7,538,455,429,26,83,538,501,0,2,33,505,4,4,16,36,103,52,146,26,19,34,24,41,33,1046,16,16,176,56,34,699,25,65,210,153,43,136,67,222,5,46,2,2,44,22,622,69,36,553,471,75,21,43,23,786,581,581,559,283,258,24,53,147,134,13,34,34,0,25,12,0,8,4,0,13,2,7,2,2,559,8,43,120,31,70,30,5,33,32,104,36,24,23,175,66,155,6,48,109]
["Rindge","0000655","64580",5451,790,5451,132,5319,5302,42,0,9,0,44,54,5396,55,2785,2666,4297,3840,457,1154,1514,1158,21,175,326,290,157,124,60,5,356,47,6,86,83,74,37,7,16,4393,1417,2467,56,152,111,301,166,5297,1536,3727,3169,218,180,160,34,154,77,77,5136,2852,2284,2160,656,1504,438,1066,938,7,78,43,30,94,2459,1862,1452,410,597,2459,2128,9,7,132,2327,99,349,441,238,237,134,234,62,87,157,220,69,132,5269,21,55,648,288,1258,2695,22,260,929,539,273,441,231,818,29,1023,108,76,915,297,2849,417,225,2432,1843,269,67,152,77,4293,3146,3146,2546,1158,1014,77,189,600,530,70,148,131,17,144,39,0,23,16,0,105,4,45,52,4,2546,28,297,548,111,280,67,111,122,201,497,83,132,69,812,251,671,15,313,484]
["Roxbury","0000665","65700",233,98,237,40,193,225,0,5,2,0,0,1,233,0,105,128,233,196,37,0,92,62,0,9,14,17,9,11,2,0,30,0,4,3,9,4,6,2,2,186,31,131,4,4,2,16,9,229,154,73,59,7,5,2,2,4,0,4,219,162,57,51,28,23,3,20,5,6,9,0,0,6,134,129,123,6,5,134,131,0,3,0,134,0,22,29,34,15,11,6,0,0,7,2,8,0,229,5,2,27,7,8,174,3,9,70,19,22,19,32,37,0,4,0,0,4,3,149,24,18,125,107,20,3,9,4,182,138,138,134,62,62,3,8,44,37,7,7,5,2,0,0,0,0,0,0,0,0,0,0,0,134,3,8,27,5,18,5,0,2,5,32,4,15,10,37,21,21,0,23,32]
["Stoddard","0000672","73700",928,403,928,0,928,894,3,12,11,0,0,8,926,2,466,462,928,743,185,0,399,263,2,27,63,60,46,52,13,0,136,10,17,31,30,17,10,20,1,768,179,446,17,38,31,88,45,918,417,497,392,37,44,24,4,10,6,4,882,590,292,292,129,163,42,121,98,2,5,16,0,0,507,468,351,117,39,507,456,0,0,38,469,10,16,16,38,94,48,95,25,29,39,36,23,38,905,8,0,108,34,59,684,21,64,199,136,39,133,92,129,17,44,2,2,42,29,570,94,68,476,386,98,15,41,22,753,519,519,507,263,218,23,57,123,119,4,15,15,0,45,21,5,8,7,1,24,2,17,5,0,507,16,51,106,13,65,9,24,17,36,95,17,40,18,182,52,95,11,81,86]
["Sullivan","0000677","74900",769,318,746,0,769,747,0,10,4,0,0,8,769,0,412,357,769,695,74,0,277,215,2,33,72,52,23,25,8,0,62,0,12,9,15,12,4,10,0,607,138,373,12,19,13,65,27,761,450,300,245,2,40,13,11,8,6,2,730,560,170,168,128,40,8,32,26,0,4,2,0,2,427,406,360,46,21,427,390,0,0,25,402,2,32,41,119,74,16,53,3,0,32,15,15,25,749,6,2,114,61,31,508,39,63,198,78,30,54,46,135,3,54,17,12,37,13,473,87,68,386,335,46,13,22,10,595,451,451,437,215,178,11,22,120,110,10,25,18,7,37,21,0,7,11,3,16,0,8,8,0,437,9,32,100,10,56,15,11,23,14,95,29,32,11,126,64,73,4,49,121]
["Surry","0000682","75300",704,317,673,0,704,675,0,9,7,0,0,13,694,10,359,345,704,640,64,0,280,222,3,20,56,58,41,28,8,8,58,0,3,8,18,6,4,14,5,584,83,417,3,34,30,47,16,691,371,308,257,18,24,9,12,13,6,7,676,489,187,173,134,39,14,25,9,0,14,2,8,6,386,360,350,10,26,386,368,0,0,11,375,2,28,61,109,93,20,29,4,2,16,9,2,11,686,7,8,72,48,22,523,19,30,155,125,36,91,67,100,0,43,8,6,35,12,431,49,28,382,322,46,12,56,32,576,400,400,396,222,202,14,47,112,105,7,29,25,4,20,6,0,4,2,0,14,0,3,6,5,396,5,18,59,17,45,15,4,46,24,107,21,22,13,149,48,83,2,47,67]
["Swanzey","0000687","75700",6800,809,6800,610,6190,6725,0,7,58,0,0,10,6758,42,3363,3437,6789,5828,961,11,2660,1886,53,290,488,474,255,187,109,30,774,24,100,173,125,90,112,131,19,5374,1230,3092,83,349,283,620,329,6642,3797,2809,2385,142,178,104,36,158,109,49,6395,4047,2348,2319,1707,612,94,518,298,83,64,73,0,29,3445,3187,3085,102,258,3445,3215,0,0,119,3326,114,336,730,978,386,102,225,56,111,80,83,125,119,6529,54,38,945,332,293,4648,214,539,1780,854,305,703,253,1107,81,346,30,30,316,128,4061,815,505,3246,2723,513,120,368,169,5288,3677,3677,3516,1886,1504,136,230,1045,927,118,93,93,0,382,125,0,86,16,23,257,29,163,61,4,3516,26,227,650,162,510,204,44,377,209,607,169,261,70,929,419,1082,12,413,661]
["Troy","0000703","77380",1957,882,1962,0,1957,1932,2,0,3,0,3,17,1946,11,925,1032,1957,1639,318,0,755,522,12,67,148,146,73,39,36,1,233,31,43,29,40,32,27,22,9,1562,385,879,22,111,93,165,100,1939,1111,815,693,31,67,24,13,18,5,13,1860,1176,684,679,487,192,85,107,75,10,17,5,0,5,1071,992,903,89,79,1071,993,0,4,40,1031,52,91,52,182,272,112,120,17,14,53,33,33,40,1908,25,25,229,148,60,1311,72,172,564,226,71,144,62,326,28,138,25,16,113,64,1177,239,165,938,809,103,37,113,46,1534,1105,1102,1083,522,420,46,53,263,251,12,58,56,2,102,43,4,22,17,0,59,12,28,16,3,1083,5,53,326,34,121,48,7,60,54,195,88,66,26,267,177,225,2,114,298]
["Walpole","0000709","78420",3594,545,3594,511,3083,3528,1,0,0,0,0,65,3594,0,1724,1870,3593,3018,575,1,1497,1019,14,132,269,218,188,139,53,6,478,23,48,33,79,54,91,113,37,2861,551,1725,61,222,157,302,175,3513,1118,2383,2064,116,140,63,12,81,53,28,3376,2035,1341,1337,490,847,203,644,526,0,52,66,0,4,1766,1372,1217,155,394,1766,1564,0,13,134,1632,139,173,245,189,238,152,225,58,19,58,93,43,134,3445,70,43,407,167,113,2489,105,171,796,478,158,514,267,575,0,197,8,0,189,85,1959,241,139,1718,1492,352,108,293,179,2801,1855,1855,1811,1019,837,156,92,468,459,9,121,119,2,182,83,17,43,23,0,99,8,35,44,12,1811,136,146,218,105,216,133,44,110,123,454,89,10,27,714,205,410,63,172,247]
["Westmoreland","0000718","82660",1747,735,1747,0,1747,1704,6,2,19,0,0,16,1732,15,862,885,1485,1321,164,262,579,448,2,58,120,121,62,57,22,6,131,7,12,31,23,13,30,11,4,1476,277,1055,18,52,27,74,42,1708,849,840,669,66,67,38,19,39,35,4,1681,1044,637,622,369,253,53,200,87,18,65,30,7,8,840,697,658,39,143,840,752,4,8,43,797,57,49,123,184,160,31,71,22,14,41,29,16,43,1719,28,9,184,93,82,1283,44,78,407,250,70,257,177,239,20,82,18,9,64,36,901,108,74,793,686,129,30,76,47,1442,866,861,849,448,404,28,91,233,226,7,52,52,0,44,23,0,13,8,2,21,2,13,4,2,849,43,69,111,46,99,41,14,39,59,217,35,48,28,370,96,197,12,80,94]
["Winchester","0000723","85540",4144,649,4144,0,4144,4085,10,0,17,0,7,25,4138,6,2037,2107,4057,3487,570,87,1547,1095,27,171,299,267,167,94,60,10,452,32,37,65,68,58,82,83,27,3266,722,1824,66,236,161,418,210,4061,1847,2186,1896,84,110,96,28,83,65,18,3890,2084,1806,1806,1044,762,151,611,445,9,110,47,0,0,1948,1516,1455,61,432,1948,1837,15,13,52,1896,44,212,189,153,360,189,446,43,24,106,65,65,52,3981,33,101,516,256,71,2783,200,411,1253,407,153,230,129,665,143,281,67,14,214,111,2349,592,399,1757,1428,287,72,243,161,3225,2160,2160,2012,1095,844,111,156,437,414,23,140,137,3,251,120,0,76,44,0,131,35,56,32,8,2012,34,206,429,125,290,74,22,110,48,373,87,183,31,405,283,482,13,323,506]
[]
[]
[]
[]
["Census 2000 SummaryFile3 Sample Data  -  SF3TownQry2aIncomeChar"]
[]
["TOWN_NAME","LOGRECNO","COUSUB","TotalPop","P52Households1","P52HHInc<10K","P52HHInc10to15K","P52HHInc15to20K","P52HHInc20to25K","P52HHInc25to30K","P52HHInc30to35K","P52HHInc35to40K","P52HHInc40to45K","P52HHInc45to50K","P52HHInc50to60K","P52HHInc60to75K","P52HHInc75to100K","P52HHInc100to125K","P52HHInc125to150K","P52HHInc150to200K","P52HHInc>200K","P53MedianHHInc","P54AggregHHInc","P55Households2","P55HHUnder25yrs","P55HH<25HHInc<10K","P55HH<25HHInc10to15K","P55HH<25HHInc15to20K","P55HH<25HHInc20to25K","P55HH<25HHInc25to30K","P55HH<25HHInc30to35K","P55HH<25HHInc35to40K","P55HH<25HHInc40to45K","P55HH<25HHInc45to50K","P55HH<25HHInc50to60K","P55HH<25HHInc60to75K","P55HH<25HHInc75to100K","P55HH<25HHInc100to125K","P55HH<25HHInc125to150K","P55HH<25HHInc150to200K","P55HH<25HHInc>200K","P55HH25to34yrs","P55HH25to34HHInc<10K","P55HH25to34HHInc10to15K","P55HH25to34HHInc15to20K","P55HH25to34HHInc20to25K","P55HH25to34HHInc25to30K","P55HH25to34HHInc30to35K","P55HH25to34HHInc35to40K","P55HH25to34HHInc40to45K","P55HH25to34HHInc45to50K","P55HH25to34HHInc50to60K","P55HH25to34HHInc60to75K","P55HH25to34HHInc75to100K","P55HH25to34HHInc100to125K","P55HH25to34HHInc125to150K","P55HH25to34HHInc150to200K","P55HH25to34HHInc>200K","P55HH35to44yrs","P55HH35to44HHInc<10K","P55HH35to44HHInc10to15K","P55HH35to44HHInc15to20K","P55HH35to44HHInc20to25K","P55HH35to44HHInc25to30K","P55HH35to44HHInc30to35K","P55HH35to44HHInc35to40K","P55HH35to44HHInc40to45K","P55HH35to44HHInc45to50K","P55HH35to44HHInc50to60K","P55HH35to44HHInc60to75K","P55HH35to44HHInc75to100K","P55HH35to44HHInc100to125K","P55HH35to44HHInc125to150K","P55HH35to44HHInc150to200K","P55HH35to44HHInc>200K","P55HH45to54yrs","P55HH45to55HHInc<10K","P55HH45to55HHInc10to15K","P55HH45to55HHInc15to20K","P55HH45to55HHInc20to25K","P55HH45to55HHInc25to30K","P55HH45to55HHInc30to35K","P55HH45to55HHInc35to40K","P55HH45to55HHInc40to45K","P55HH45to55HHInc45to50K","P55HH45to55HHInc50to60K","P55HH45to55HHInc60to75K","P55HH45to55HHInc75to100K","P55HH45to55HHInc100to125K","P55HH45to55HHInc125to150K","P55HH45to55HHInc150to200K","P55HH45to55HHInc>200K","P55HH55to64yrs","P55HH55to64HHInc<10K","P55HH55to64HHInc10to15K","P55HH55to64HHInc15to20K","P55HH55to64HHInc20to25K","P55HH55to64HHInc25to30K","P55HH55to64HHInc30to35K","P55HH55to64HHInc35to40K","P55HH55to64HHInc40to45K","P55HH55to64HHInc45to50K","P55HH55to64HHInc50to60K","P55HH55to64HHInc60to75K","P55HH55to64HHInc75to100K","P55HH55to64HHInc100to125K","P55HH55to64HHInc125to150K","P55HH55to64HHInc150to200K","P55HH55to64HHInc>200K","P55HH65to74yrs","P55HH65to74HHInc<10K","P55HH65to74HHInc10to15K","P55HH65to74HHInc15to20K","P55HH65to74HHInc20to25K","P55HH65to74HHInc25to30K","P55HH65to74HHInc30to35K","P55HH65to74HHInc35to40K","P55HH65to74HHInc40to45K","P55HH65to74HHInc45to50K","P55HH65to74HHInc50to60K","P55HH65to74HHInc60to75K","P55HH65to74HHInc75to100K","P55HH65to74HHInc100to125K","P55HH65to74HHInc125to150K","P55HH65to74HHInc150to200K","P55HH65to74HHInc>200K","P55HH>75yrs","P55HH>75HHInc<10K","P55HH>75HHInc10to15K","P55HH>75HHInc15to20K","P55HH>75HHInc20to25K","P55HH>75HHInc25to30K","P55HH>75HHInc30to35K","P55HH>75HHInc35to40K","P55HH>75HHInc40to45K","P55HH>75HHInc45to50K","P55HH>75HHInc50to60K","P55HH>75HHInc60to75K","P55HH>75HHInc75to100K","P55HH>75HHInc100to125K","P55HH>75HHInc125to150K","P55HH>75HHInc150to200K","P55HH>75HHInc>200K","P56MedHHInc","P56MedHHIncHH<25y","P56MedHHIncHH25to34y","P56MedHHIncHH35to44y","P56MedHHIncHH45to54y","P56MedHHIncHH55to64y","P56MedHHIncHH65to74y","P56MedHHIncHH>75y","P58Households3","P58HHwithEarnings","P58HHNoEarnings","P59HHwWageSalInc","P59HHNoWageSalInc","P60HHwSelfEmpInc","P60HHNoSelfEmpInc","P61HHwIndDivInc","P61HHNoIndDivInc","P62HHwSocSecInc","P62HHNoSocSecInc","P63HHwSSI","P63HHNoSSI","P64HHwPubAssInc","P64HHNoPubAssInc","P65HHwRetInc","P65HHNoRetInc","P66HHwOtherTypInc","P66HHNoOtherTypInc","P67AggregEarnings","P68AggregWageSalInc","P69AggregSelfEmpInc","P70AggregIntDivInc","P71AggregSocSecInc","P72AggregSSIInc","P73AggregPublicAssInc","P74AggregRetireInc","P76Families1","P76FamInc<10K","P76FamInc10to15K","P76FamInc15to20K","P76FamInc20to25K","P76FamInc25to30K","P76FamInc30to35K","P76FamInc35to40K","P76FamInc40to45K","P76FamInc45to50K","P76FamInc50to60K","P76FamInc60to75K","P76FamInc75to100K","P76FamInc100to125K","P76FamInc125to150K","P76FamInc150to200K","P76FamInc>200K","P77MedFamInc","P78AggregFamInc","P79NonFamHH","P79NonFamHHwInc<10K","P79NonFamHHwInc10to15K","P79NonFamHHwInc15to20K","P79NonFamHHwInc20to25K","P79NonFamHHwInc25to30K","P79NonFamHHwInc30to35K","P79NonFamHHwInc35to40K","P79NonFamHHwInc40to45K","P79NonFamHHwInc45to50K","P79NonFamHHwInc50to60K","P79NonFamHHwInc60to75K","P79NonFamHHwInc75to100K","P79NonFamHHwInc100to125K","P79NonFamHHwInc125to150K","P79NonFamHHwInc150to200K","P79NonFamHHwInc200KorMore","P80MedNonFamInc","P82PerCapitaInc"]
["Alstead","0000512","00820",1944,795,43,32,51,67,47,71,46,68,59,76,92,91,29,6,9,8,43191,39732700,795,30,4,8,6,2,3,0,5,2,0,0,0,0,0,0,0,0,94,6,0,3,9,5,4,2,5,16,12,15,14,1,0,0,2,210,6,5,10,21,12,17,11,18,5,28,26,34,11,2,2,2,212,14,4,13,16,11,15,18,22,15,17,34,15,9,2,5,2,112,4,4,3,4,4,16,4,9,10,9,15,20,8,2,0,0,69,4,3,8,7,7,12,2,9,4,8,0,3,0,0,2,0,68,5,8,8,8,5,7,4,3,9,2,2,5,0,0,0,2,43191,16250,47031,48750,43906,47500,31528,30000,795,662,133,619,176,199,596,330,465,188,607,37,758,21,774,111,684,109,686,31711000,26444300,5266600,2649800,2077300,240100,32500,1770700,549,12,2,27,53,28,40,34,48,45,63,78,78,25,4,4,8,47311,30766500,246,33,28,24,22,21,31,9,22,15,7,17,7,3,2,5,0,29219,20444]
["Chesterfield","0000518","12260",3542,1373,75,43,57,105,61,80,94,90,48,150,179,188,98,40,37,28,51351,89151700,1373,19,0,0,5,4,0,0,0,0,0,10,0,0,0,0,0,0,163,4,0,0,10,7,37,10,18,3,26,19,24,5,0,0,0,322,12,0,9,32,16,5,19,25,13,44,57,56,18,9,0,7,385,22,11,9,8,10,18,17,38,9,34,54,64,39,11,27,14,233,8,8,4,21,16,8,9,4,10,17,30,37,31,16,10,4,143,9,17,17,16,9,9,28,5,5,11,8,4,5,0,0,0,108,20,7,13,14,3,3,11,0,8,8,11,3,0,4,0,3,51351,52625,42411,57500,63194,64531,32188,25000,1373,1160,213,1107,266,260,1113,636,737,298,1075,38,1335,14,1359,207,1166,139,1234,73856400,66744200,7112200,7478700,3553300,279200,10900,2307100,1028,32,39,22,43,50,48,65,67,39,128,155,176,85,31,27,21,58516,73613400,345,47,16,35,58,15,35,24,19,13,22,14,12,13,9,10,3,30188,25051]
["Dublin","0000525","19140",1476,559,30,19,29,39,27,35,27,30,22,70,71,76,29,13,13,29,52150,39756200,559,3,0,2,0,0,0,1,0,0,0,0,0,0,0,0,0,0,54,0,0,1,3,4,4,8,4,7,9,6,4,2,2,0,0,117,4,7,13,4,2,10,8,8,2,16,11,16,6,2,3,5,151,13,2,2,13,2,5,1,6,5,15,35,18,10,4,8,12,100,1,2,4,2,8,5,4,8,6,14,7,24,7,3,0,5,79,8,0,5,13,6,10,2,4,2,6,6,9,2,2,2,2,55,4,6,4,4,5,0,4,0,0,10,6,5,2,0,0,5,52150,14375,48571,50313,66528,58000,31875,50417,559,475,84,423,136,176,383,331,228,146,413,5,554,7,552,79,480,48,511,28564900,23313600,5251400,7528200,1877100,24400,35600,1425700,419,14,10,22,21,15,21,25,29,14,54,56,67,21,11,10,29,57578,33412900,140,16,9,11,18,12,13,4,4,12,16,7,11,4,0,3,0,31667,27028]
["Fitzwilliam","0000530","26500",2141,848,47,25,53,50,56,47,61,55,42,108,94,125,31,29,17,8,48125,50398700,848,22,3,0,5,8,2,0,2,0,0,2,0,0,0,0,0,0,92,3,0,2,10,7,3,8,8,11,9,13,14,2,2,0,0,209,10,5,5,8,16,11,22,20,5,24,28,38,4,5,5,3,225,12,3,9,8,14,7,10,6,13,31,36,39,14,12,6,5,140,8,2,7,7,6,9,6,10,6,30,7,19,9,10,4,0,87,3,7,12,7,3,15,5,5,7,5,6,12,0,0,0,0,73,8,8,13,2,8,2,8,6,0,7,4,3,2,0,2,0,48125,21250,46563,50625,59904,52727,33250,28438,848,739,109,715,133,167,681,324,524,212,636,35,813,10,838,113,735,89,759,42932300,39613000,3319300,2290500,2430300,261100,57800,1418300,602,13,11,28,20,27,38,39,44,36,85,82,101,29,27,14,8,55476,41121900,246,36,16,23,30,31,12,22,11,8,19,17,14,4,0,3,0,27969,23127]
["Gilsum","0000537","29220",777,303,25,17,15,13,16,17,32,27,21,33,40,23,7,6,2,9,43359,15707400,303,3,0,0,3,0,0,0,0,0,0,0,0,0,0,0,0,0,42,0,0,3,0,0,9,5,8,3,5,4,0,5,0,0,0,54,0,0,0,7,3,4,10,4,0,9,4,6,2,0,2,3,95,9,6,0,2,5,0,9,7,14,7,21,11,0,0,0,4,46,3,0,2,2,8,2,0,6,4,6,9,4,0,0,0,0,38,11,5,2,2,0,2,4,2,0,2,0,2,0,4,0,2,25,2,6,5,0,0,0,4,0,0,4,2,0,0,2,0,0,43359,18750,41667,44375,48393,45000,23750,19750,303,252,51,239,64,52,251,131,172,84,219,5,298,8,295,38,265,32,271,12468800,11024700,1444000,1456800,887600,24600,15500,600600,211,4,2,7,8,10,15,24,16,18,29,40,17,7,6,2,6,50469,12616700,92,21,15,11,7,6,2,8,9,3,5,0,2,0,0,0,3,19773,20955]
["Harrisville","0000542","34420",1075,449,22,19,14,19,25,45,15,42,29,55,63,53,18,9,9,12,48625,27433500,449,3,0,0,0,0,2,0,0,0,0,0,1,0,0,0,0,0,38,2,3,0,0,4,1,2,11,2,6,5,0,0,2,0,0,98,5,0,4,4,2,13,2,9,9,20,22,8,0,0,0,0,150,5,3,8,8,5,13,3,10,11,16,15,31,7,5,4,6,55,2,0,0,0,4,8,2,4,0,9,8,6,5,2,3,2,54,0,2,0,2,6,5,4,6,4,4,7,8,4,0,2,0,51,8,11,2,5,2,5,2,2,3,0,5,0,2,0,0,4,48625,26875,43000,50208,56563,54250,46250,24750,449,371,78,351,98,87,362,226,223,112,337,12,437,5,444,73,376,67,382,20126100,18458000,1668100,4307100,1245100,95700,19600,1278600,305,8,4,9,15,18,29,9,24,19,36,47,48,18,9,2,10,55083,20038500,144,18,15,5,8,11,21,4,13,6,16,13,5,0,0,7,2,34211,25397]
["Hinsdale","0000547","36660",4082,1622,118,74,135,117,168,150,147,76,68,223,207,92,40,0,0,7,36124,67489800,1622,58,8,4,5,8,17,9,0,0,0,0,7,0,0,0,0,0,209,15,13,21,7,27,24,21,10,10,20,23,14,4,0,0,0,382,6,0,28,26,0,31,33,38,31,88,74,27,0,0,0,0,347,23,0,9,24,21,0,46,0,13,71,61,47,25,0,0,7,296,19,6,25,16,41,52,28,15,14,27,42,0,11,0,0,0,154,7,0,34,25,38,19,7,7,0,17,0,0,0,0,0,0,176,40,51,13,11,24,15,12,6,0,0,0,4,0,0,0,0,36124,28088,33958,49783,55772,33036,26618,14700,1622,1337,285,1317,305,170,1452,448,1174,435,1187,80,1542,58,1564,300,1322,264,1358,56935000,53344000,3591000,1823800,4585700,355400,86200,2402900,1079,15,11,70,81,95,118,107,59,62,155,171,92,36,0,0,7,43413,51998700,543,103,63,65,49,86,43,29,10,6,62,23,0,4,0,0,0,24213,16611]
["Jaffrey","0000559","38500",5476,2113,149,73,133,169,166,87,112,166,188,212,291,119,100,94,19,35,45033,113473700,2113,89,19,0,7,0,24,12,6,0,16,5,0,0,0,0,0,0,307,24,0,4,27,0,7,35,48,28,43,66,0,25,0,0,0,524,16,0,26,20,34,18,33,79,51,27,107,52,19,35,0,7,432,0,18,0,22,41,31,22,32,22,83,51,29,23,18,19,21,274,6,8,15,35,37,9,16,0,16,49,19,23,18,23,0,0,246,43,23,45,28,6,10,0,7,26,5,21,0,7,18,0,7,241,41,24,36,37,24,0,0,0,29,0,27,15,8,0,0,0,45033,27434,46932,47195,55083,49219,21071,21625,2113,1788,325,1713,400,355,1758,849,1264,578,1535,53,2060,75,2038,326,1787,190,1923,92498900,82115500,10383300,8281600,6706000,429400,102400,4268800,1475,36,31,69,133,90,66,70,102,182,159,206,94,89,94,19,35,48703,91459400,638,113,49,64,47,71,21,42,57,13,53,72,25,11,0,0,0,28106,21412]
["Keene","0000582","39300",22563,8942,928,590,698,624,704,618,573,517,438,718,958,836,298,161,159,122,37033,441262500,8942,865,289,101,139,87,62,14,84,35,9,18,13,6,0,8,0,0,1297,79,71,87,78,113,110,170,99,83,131,168,84,9,7,0,8,1662,86,71,39,90,102,120,89,97,108,188,283,206,81,39,50,13,1769,85,32,54,100,134,135,67,84,77,168,272,261,151,17,81,51,1133,77,58,89,54,78,67,77,73,66,99,126,149,29,46,16,29,1100,156,99,120,101,65,103,40,70,56,77,64,82,9,37,5,16,1116,156,158,170,114,150,69,46,59,39,37,32,48,19,7,7,5,37033,16235,37175,51066,56386,44492,30352,23182,8942,7135,1807,6856,2086,1096,7846,3975,4967,2575,6367,242,8700,352,8590,1750,7192,1076,7866,337473800,316867200,20606600,38667600,30801000,1773500,780300,23740900,5093,176,122,226,265,324,435,339,361,302,527,738,644,245,153,149,87,49935,312565500,3849,758,489,498,358,401,252,202,178,115,145,234,142,24,8,10,35,22266,20544]
["Marlborough","0000624","45460",2009,800,38,35,42,57,66,71,48,44,56,113,114,74,16,15,4,7,44904,39939600,800,11,2,0,2,2,0,0,0,2,0,0,3,0,0,0,0,0,123,8,7,2,9,8,13,4,13,17,20,12,7,3,0,0,0,181,0,3,5,9,9,20,7,7,14,41,40,15,2,7,0,2,158,12,0,2,6,12,14,12,7,7,16,26,30,8,6,0,0,125,2,8,4,7,16,4,11,7,6,16,24,13,2,0,2,3,98,5,5,7,16,8,13,9,2,6,13,7,5,0,2,0,0,104,9,12,20,8,13,7,5,6,6,7,2,4,1,0,2,2,44904,24375,43750,52171,54688,48438,33864,25938,800,652,148,611,189,166,634,360,440,241,559,18,782,13,787,151,649,108,692,31977600,27030300,4947300,2323100,2867200,119700,29500,1940500,553,7,7,20,37,38,42,34,36,44,89,95,65,15,13,4,7,50927,31790900,247,33,32,29,24,32,25,11,8,10,19,16,6,0,2,0,0,25809,19967]
["Marlow","0000640","45700",747,286,11,9,15,6,21,25,35,21,25,42,41,28,3,1,3,0,45000,13844200,286,6,3,0,0,0,0,0,0,0,0,1,2,0,0,0,0,0,42,0,0,0,0,3,4,5,2,5,12,4,4,3,0,0,0,64,0,2,3,0,5,2,11,3,11,11,8,8,0,0,0,0,66,2,0,9,0,1,5,11,6,4,8,14,6,0,0,0,0,42,0,2,0,0,0,7,5,8,3,2,6,6,0,0,3,0,48,3,1,3,3,11,5,2,2,0,6,7,4,0,1,0,0,18,3,4,0,3,1,2,1,0,2,2,0,0,0,0,0,0,45000,28750,53333,48864,42500,44500,31875,21667,286,242,44,234,52,50,236,106,180,75,211,3,283,4,282,63,223,46,240,10973100,10069300,903800,508600,1041800,12700,10100,864900,226,2,7,7,3,20,21,24,16,20,36,37,26,4,0,3,0,47813,11734600,60,9,4,10,3,3,2,7,5,7,6,4,0,0,0,0,0,31250,18810]
["Nelson","0000645","50580",634,260,18,19,22,19,25,12,13,6,12,21,18,34,18,3,7,13,41250,20588500,260,8,2,0,0,2,0,2,2,0,0,0,0,0,0,0,0,0,42,2,3,5,6,4,2,0,2,6,0,3,3,3,0,0,3,51,7,2,5,0,9,0,0,0,2,14,3,6,0,3,0,0,69,3,6,2,5,4,2,4,0,4,1,7,12,13,0,3,3,41,2,2,2,0,2,6,3,2,0,3,3,11,0,0,0,5,21,2,2,2,4,2,0,0,0,0,3,0,0,0,0,4,2,28,0,4,6,2,4,0,4,2,0,0,2,2,2,0,0,0,41250,27500,33750,50625,73250,53750,25625,26250,260,236,24,213,47,87,173,133,127,49,211,7,253,0,260,43,217,25,235,17359500,15186300,2173200,1255600,607200,65300,0,812200,173,9,9,8,9,9,10,5,4,8,17,14,34,16,3,5,13,59464,17687400,87,11,12,14,8,16,0,8,2,4,4,4,0,2,0,2,0,24250,31625]
["Richmond","0000650","64420",1077,371,13,7,11,16,32,25,26,32,29,39,41,52,23,8,9,8,49141,22464200,371,12,0,0,0,4,3,0,0,5,0,0,0,0,0,0,0,0,39,0,0,2,2,4,0,2,0,12,7,5,5,0,0,0,0,92,0,0,5,5,6,5,12,6,4,11,12,17,2,3,2,2,98,4,0,2,0,8,9,4,6,6,13,12,16,12,2,2,2,66,0,5,0,2,7,4,4,5,5,2,8,8,7,3,4,2,39,2,2,0,3,4,7,2,4,2,3,4,3,2,0,1,0,25,7,0,2,0,0,0,2,6,0,3,0,3,0,0,0,2,49141,29167,49107,51250,55000,53750,39375,43125,371,322,49,303,68,90,281,168,203,73,298,11,360,4,367,64,307,40,331,17802900,15198300,2604600,1987200,883400,93000,1400,1476200,283,8,6,6,4,16,23,20,22,22,27,40,41,23,8,9,8,54625,19013200,88,11,3,3,8,18,2,6,10,9,8,3,7,0,0,0,0,33750,21174]
["Rindge","0000655","64580",5451,1514,49,29,55,66,112,158,103,61,108,220,193,177,84,23,38,38,50494,95942700,1514,68,13,11,0,9,6,6,5,0,5,7,6,0,0,0,0,0,181,0,0,0,8,11,14,8,14,19,36,21,10,33,0,0,7,412,6,0,19,10,45,39,18,24,22,78,56,75,8,0,7,5,373,4,5,7,0,6,56,18,15,34,41,58,50,35,7,31,6,231,12,0,13,12,14,18,17,0,12,33,35,37,0,16,0,12,161,0,0,10,19,15,18,17,8,16,25,12,5,8,0,0,8,88,14,13,6,8,15,7,20,0,0,0,5,0,0,0,0,0,50494,27917,52171,51554,62604,54554,40469,25500,1514,1366,148,1314,200,243,1271,631,883,337,1177,64,1450,14,1500,259,1255,245,1269,79924300,72196400,7727900,5616100,4331100,523100,26700,3988800,1158,28,11,32,51,43,95,90,65,102,168,162,162,69,4,38,38,52500,80228900,356,26,13,36,21,69,57,13,9,0,39,31,13,15,14,0,0,31121,18495]
["Roxbury","0000665","65700",237,92,4,0,10,10,0,11,0,6,6,16,8,12,2,7,0,0,49375,4976900,92,0,0,0,0,0,0,0,0,0,0,0,0,0,0,0,0,0,13,0,0,2,5,0,2,0,0,2,2,0,0,0,0,0,0,17,0,0,0,0,0,3,0,2,2,6,2,2,0,0,0,0,26,0,0,2,2,0,2,0,0,2,6,3,6,0,3,0,0,13,0,0,2,0,0,2,0,0,0,2,3,2,0,2,0,0,17,2,0,2,3,0,2,0,4,0,0,0,2,2,0,0,0,6,2,0,2,0,0,0,0,0,0,0,0,0,0,2,0,0,49375,0,24583,51875,52500,67917,31875,18750,92,83,9,79,13,12,80,49,43,23,69,0,92,2,90,17,75,14,78,3934900,3696100,238700,331700,264500,0,1000,195700,62,0,0,2,6,0,4,0,6,4,14,5,12,2,7,0,0,56875,4093400,30,4,0,8,4,0,7,0,0,2,2,3,0,0,0,0,0,21875,21124]
["Stoddard","0000672","73700",928,399,35,14,27,39,24,38,31,19,18,54,37,36,17,5,5,0,37639,18267600,399,12,7,0,0,0,2,0,3,0,0,0,0,0,0,0,0,0,44,3,3,3,7,4,4,2,7,0,7,2,2,0,0,0,0,94,2,0,5,5,2,14,11,3,8,17,16,4,6,1,0,0,90,6,0,3,7,2,6,7,3,8,19,11,16,2,0,0,0,63,6,3,6,2,5,10,4,2,0,4,3,9,7,2,0,0,62,5,3,6,14,6,2,2,2,0,7,5,5,0,0,5,0,34,6,5,4,4,3,2,2,2,2,0,0,0,2,2,0,0,37639,8750,31250,47500,50833,34583,28125,23750,399,334,65,307,92,80,319,204,195,112,287,9,390,2,397,92,307,56,343,13458400,11790400,1668100,1497700,1280800,53900,12100,1508500,263,8,8,14,21,22,28,12,7,13,46,31,34,9,5,5,0,48125,13726700,136,27,8,13,20,5,13,16,12,6,8,0,0,8,0,0,0,26250,19617]
["Sullivan","0000677","74900",746,277,9,12,12,17,6,36,11,19,11,36,55,30,11,3,2,7,51058,16643500,277,2,0,0,0,0,0,0,0,0,2,0,0,0,0,0,0,0,45,2,0,2,2,2,12,2,4,0,8,8,3,0,0,0,0,81,0,0,3,5,0,9,9,7,2,11,18,9,0,3,2,3,67,5,2,0,4,0,3,0,5,3,9,18,10,6,0,0,2,35,2,0,0,2,4,8,0,0,2,6,5,6,0,0,0,0,29,0,0,5,4,0,4,0,3,2,0,4,2,5,0,0,0,18,0,10,2,0,0,0,0,0,0,2,2,0,0,0,0,2,51058,46250,40313,52292,67083,46875,41250,13750,277,248,29,238,39,55,222,98,179,52,225,0,277,8,269,39,238,28,249,13431100,11339000,2092100,1608000,659300,0,28200,847200,215,2,4,6,12,4,25,11,19,14,27,41,27,11,3,2,7,52386,14299900,62,7,8,6,8,2,17,0,0,0,6,8,0,0,0,0,0,28750,21143]
["Surry","0000682","75300",673,280,6,19,0,5,13,13,18,21,22,40,54,43,11,9,2,4,56964,17008300,280,3,0,0,0,0,0,0,0,0,0,0,3,0,0,0,0,0,23,0,0,0,0,3,0,4,2,3,5,6,0,0,0,0,0,64,1,2,0,2,3,3,2,11,4,5,14,11,3,3,0,0,76,0,0,0,3,4,4,1,0,9,19,8,22,2,2,0,2,47,0,3,0,0,0,6,5,0,2,11,10,6,2,0,2,0,32,2,2,0,0,0,0,2,6,4,0,8,2,2,2,0,2,35,3,12,0,0,3,0,4,2,0,0,5,2,2,2,0,0,56964,63750,47083,58750,59500,56250,55000,27083,280,242,38,231,49,50,230,134,146,83,197,9,271,10,270,55,225,35,245,13434000,12320300,1113700,1291200,1005600,47800,10500,981000,222,1,6,2,0,4,10,13,20,17,37,53,35,11,7,2,4,60179,14860300,58,5,13,0,3,9,3,5,3,5,3,3,6,0,0,0,0,27222,24277]
["Swanzey","0000687","75700",6800,2660,169,98,134,216,126,293,162,137,157,332,345,289,112,21,46,23,44819,137131700,2660,77,37,0,0,12,0,19,9,0,0,0,0,0,0,0,0,0,390,0,0,13,52,31,45,0,28,18,81,74,40,0,0,0,8,661,9,12,0,38,20,69,68,24,77,75,105,109,32,8,15,0,599,22,15,8,38,15,62,18,25,27,73,79,116,73,7,14,7,345,8,24,22,8,35,33,51,48,14,39,28,24,0,0,11,0,299,42,20,40,34,18,32,8,12,21,25,35,0,0,6,6,0,289,51,27,51,34,7,33,8,0,0,39,24,0,7,0,0,8,44819,20313,50909,50964,59125,38750,29063,22153,2660,2199,461,2112,548,367,2293,1213,1447,703,1957,78,2582,112,2548,432,2228,405,2255,110787500,101576000,9211500,8595600,8469400,615800,226200,5257700,1886,43,38,74,129,57,187,109,98,148,316,285,258,64,21,36,23,51500,108904500,774,126,66,67,99,84,127,50,14,0,39,36,22,38,0,6,0,27014,20150]
["Troy","0000703","77380",1962,755,63,41,50,54,53,40,54,60,48,115,90,56,18,5,5,3,41875,34081100,755,43,5,5,5,6,9,2,0,7,2,0,0,2,0,0,0,0,110,2,4,17,3,9,8,16,11,4,13,16,7,0,0,0,0,177,4,0,9,8,15,13,9,17,17,42,26,14,0,0,0,3,186,10,5,0,10,12,11,18,5,8,37,31,21,13,5,0,0,105,20,4,6,12,0,2,7,12,8,11,11,6,3,0,3,0,66,13,5,4,5,4,4,2,6,5,12,2,2,2,0,0,0,68,9,18,9,10,4,0,2,2,4,0,4,4,0,0,2,0,41875,25625,38333,49271,51750,40750,31250,18333,755,626,129,604,151,91,664,257,498,185,570,28,727,34,721,126,629,62,693,28008200,26060100,1948100,1516700,2083700,159300,85900,1795000,522,15,20,29,23,45,36,37,37,34,100,80,40,16,5,5,0,47500,25786400,233,51,23,24,35,11,9,17,16,13,9,7,13,2,0,0,3,22313,17323]
["Walpole","0000709","78420",3594,1497,89,125,43,83,111,123,75,105,69,161,199,175,54,13,39,33,44673,83969300,1497,37,0,0,0,0,0,5,11,10,0,0,11,0,0,0,0,0,180,0,10,8,29,16,6,30,7,14,11,22,13,0,0,14,0,302,0,5,4,11,27,15,0,29,26,8,83,63,15,0,6,10,297,27,17,6,16,14,8,5,12,0,61,39,68,17,7,0,0,242,6,17,7,7,26,44,0,23,0,27,26,25,0,6,13,15,230,21,16,18,5,21,37,6,5,13,34,18,6,16,0,6,8,209,35,60,0,15,7,8,23,19,16,20,0,0,6,0,0,0,44673,40625,37955,67647,55917,42188,34688,23036,1497,1105,392,1045,452,257,1240,742,755,516,981,30,1467,26,1471,279,1218,183,1314,62610400,55124300,7486200,10480700,6115700,116400,100000,3421700,1019,23,26,14,47,55,89,49,85,57,135,158,158,48,13,33,29,53561,67628800,478,81,104,29,28,56,34,33,31,12,26,18,10,6,0,6,4,23929,23295]
["Westmoreland","0000718","82660",1747,579,12,13,24,24,37,33,42,26,19,80,85,98,35,23,9,19,55875,40095500,579,9,4,0,0,3,0,2,0,0,0,0,0,0,0,0,0,0,70,0,0,0,0,5,3,9,13,0,9,22,9,0,0,0,0,151,0,0,4,2,10,12,7,9,10,23,16,32,12,9,0,5,144,0,5,4,4,0,2,6,2,9,25,27,34,13,2,2,9,75,2,0,6,0,4,4,6,0,0,5,14,9,8,10,2,5,87,4,0,7,7,8,10,10,2,0,14,4,12,2,2,5,0,43,2,8,3,8,10,0,4,0,0,4,2,2,0,0,0,0,55875,22917,52083,59250,71563,71042,39219,25625,579,505,74,479,100,141,438,292,287,150,429,13,566,11,568,101,478,43,536,31980900,28540300,3440700,3423000,2065200,108900,39100,1996600,448,0,9,10,15,19,29,28,22,13,58,77,94,37,19,4,14,62857,33498500,131,12,5,14,13,14,4,13,6,6,22,8,2,0,4,3,5,37188,24488]
["Winchester","0000723","85540",4144,1547,133,154,120,72,122,129,89,114,82,217,175,97,29,2,12,0,37364,63718100,1547,59,7,11,15,0,7,13,0,0,0,6,0,0,0,0,0,0,208,13,10,9,15,6,16,14,19,16,59,17,12,0,2,0,0,364,37,19,16,8,44,27,11,34,26,59,57,26,0,0,0,0,335,8,9,15,9,36,36,18,33,12,58,58,24,7,0,12,0,225,18,37,12,7,12,11,12,12,15,22,26,35,6,0,0,0,176,15,15,32,11,17,18,17,11,13,0,11,0,16,0,0,0,180,35,53,21,22,0,8,17,5,0,13,6,0,0,0,0,0,37364,18750,46000,41852,46458,40729,29167,17738,1547,1233,314,1181,366,207,1340,473,1074,468,1079,77,1470,85,1462,262,1285,272,1275,49938300,46101500,3836900,3348200,4849400,453300,299000,3261500,1095,72,70,38,54,66,84,75,102,86,174,167,76,19,6,6,0,43393,50335300,452,82,79,71,36,43,56,23,9,0,20,0,21,10,2,0,0,19559,16012]
[]
[]
[]
[]
["Census 2000 SummaryFile3 Sample Data  -  SF3TownQry2bPovertyChar"]
[]
["TOWN_NAME","LOGRECNO","COUSUB","TotalPop","P52Households1","P82PerCapitaInc","P87PopForPovStatus","P87PopWIncBelowPovStatus","P87PopUnder5yrBelowPoverty","P87Pop5yrBelowPoverty","P87Pop5to11yrBelowPoverty","P87Pop12to17yrBelowPoverty","P87Pop18to64yrBelowPoverty","P87Pop65to74yrBelowPoverty","P87PopOver75yrBelowPoverty","P87PopWIncAbovePovStatus","P87PopUnder5yrAbovePoverty","P87Pop5yrAbovePoverty","P87Pop5to11yrAbovePoverty","P87Pop12to17yrAbovePoverty","P87Pop18to64yrAbovePoverty","P87Pop65to74yrAbovePoverty","P87PopOver75yrAbovePoverty","P90Families","P90FamWIncBelowPov","P90MarCupFamWIncBelowPov","P90MCFamWRltdChld<18WIncBelowPov","P90MCFamWRltdChld<5WIncBelowPov","P90MaleHhlrWIncBelowPov","P90MaleHhlrWRltdChld<18yrWIncBelowPov","P90MaleHhlrWRltdChld<5yrWIncBelowPov","P90FemaleHhlrWIncBelowPov","P90FemaleHhlrWRltdChld<18yWIncBelowPov","P90FemaleHhlrWRltdChld<5yWIncBelowPov","P90FamWIncAbovePov","P90MarCupFamWIncAbovePov","P90MCFamWRltdChld<18WIncAbovePov","P90MCFamWRltdChld<5WIncAbovePov","P90MaleHhlrWIncAbovePov","P90MaleHhlrWRltdChld<18yrWIncAbovePov","P90MaleHhlrWRltdChld<5yrWIncAbovePov","P90FemaleHhlrWIncAbovePov","P90FemaleHhlrWRltdChld<18yWIncAbovePov","P90FemaleHhlrWRltdChld<5yWIncAbovePov","P92Households","P92HHwIncBelowPov","P92FamHHwIncBelowPov","P92MCFamHHwIncBelowPov","P92MaleFamHHwIncBelowPov","P92FemaleFamHHwIncBelowPov","P92NonFamHHwIncBelowPov","P92NonFamMaleHHwIncBelowPov","P92NonFamFemaleHHwIncBelowPov","P92HHwIncAbovePov","P92FamHHwIncAbovePov","P92MCFamHHwIncAbovePov","P92MaleFamHHwIncAbovePov","P92FemaleFamHHwIncAbovePov","P92NonFamHHwIncAbovePov","P92NonFamMaleHHwIncAbovePov","P92NonFamFemaleHHwIncAbovePov"]
["Alstead","0000512","00820",1944,795,20444,1948,153,10,3,25,16,88,8,3,1795,106,32,127,176,1133,118,103,549,19,5,5,0,0,0,0,14,11,0,530,445,213,38,27,20,5,58,38,9,795,50,19,5,0,14,31,23,8,745,530,445,27,58,215,131,84]
["Chesterfield","0000518","12260",3542,1373,25051,3542,158,12,10,4,15,93,8,16,3384,158,39,322,347,2166,207,145,1028,50,20,3,0,4,4,0,26,26,4,978,873,388,74,25,21,0,80,42,0,1373,79,50,20,4,26,29,12,17,1294,978,873,25,80,316,174,142]
["Dublin","0000525","19140",1476,559,27028,1440,153,15,0,22,21,85,8,2,1287,55,9,107,116,810,112,78,419,25,16,14,2,2,2,0,7,7,0,394,358,138,18,12,10,5,24,11,1,559,39,25,16,2,7,14,7,7,520,394,358,12,24,126,59,67]
["Fitzwilliam","0000530","26500",2141,848,23127,2134,143,11,2,21,15,84,4,6,1991,97,22,158,188,1307,124,95,602,20,13,9,0,2,2,0,5,5,2,582,504,230,22,26,18,2,52,24,8,848,46,20,13,2,5,26,15,11,802,582,504,26,52,220,125,95]
["Gilsum","0000537","29220",777,303,20955,742,52,0,0,2,8,29,11,2,690,36,7,60,46,459,52,30,211,4,0,0,0,0,0,0,4,2,0,207,173,64,14,12,5,0,22,7,0,303,22,4,0,0,4,18,10,8,281,207,173,12,22,74,44,30]
["Harrisville","0000542","34420",1075,449,25397,1072,61,13,0,8,2,32,4,2,1011,45,12,77,106,617,88,66,305,13,6,2,0,0,0,0,7,7,0,292,234,94,14,21,17,4,37,29,2,449,21,13,6,0,7,8,1,7,428,292,234,21,37,136,63,73]
["Hinsdale","0000547","36660",4082,1622,16611,4064,259,18,0,40,41,124,7,29,3805,201,35,366,332,2407,250,214,1079,34,9,9,0,0,0,0,25,25,5,1045,846,393,72,78,58,20,121,85,14,1622,107,34,9,0,25,73,26,47,1515,1045,846,78,121,470,190,280]
["Jaffrey","0000559","38500",5476,2113,21412,5317,417,55,0,43,48,199,53,19,4900,257,102,436,491,2966,361,287,1475,56,27,20,0,7,7,7,22,22,16,1419,1168,523,92,109,73,0,142,69,11,2113,149,56,27,7,22,93,45,48,1964,1419,1168,109,142,545,252,293]
["Keene","0000582","39300",22563,8942,20544,20379,2185,154,11,133,104,1604,123,56,18194,784,154,1457,1401,11406,1488,1504,5093,265,105,63,9,12,12,0,148,130,29,4828,3814,1571,231,343,210,47,671,416,36,8942,1025,265,105,12,148,760,339,421,7917,4828,3814,343,671,3089,1249,1840]
["Marlborough","0000624","45460",2009,800,19967,2007,71,7,0,0,2,52,5,5,1936,108,18,195,162,1168,147,138,553,7,3,3,3,0,0,0,4,4,2,546,442,189,17,30,17,4,74,43,2,800,38,7,3,0,4,31,11,20,762,546,442,30,74,216,107,109]
["Marlow","0000640","45700",747,286,18810,726,30,2,0,2,5,16,3,2,696,45,5,43,73,432,76,22,226,6,4,0,0,0,0,0,2,2,0,220,200,87,20,8,3,0,12,10,0,286,16,6,4,0,2,10,5,5,270,220,200,8,12,50,28,22]
["Nelson","0000645","50580",634,260,31625,615,75,16,0,10,0,47,2,0,540,31,0,49,54,345,31,30,173,16,14,9,5,2,2,2,0,0,0,157,144,62,9,6,3,0,7,7,4,260,29,16,14,2,0,13,7,6,231,157,144,6,7,74,27,47]
["Richmond","0000650","64420",1077,371,21174,1055,80,12,2,7,6,44,2,7,975,57,14,109,88,598,73,36,283,13,9,7,4,2,2,2,2,0,0,270,249,110,10,10,6,2,11,8,0,371,26,13,9,2,2,13,8,5,345,270,249,10,11,75,45,30]
["Rindge","0000655","64580",5451,1514,18495,4262,323,29,5,58,55,162,0,14,3939,286,45,394,371,2436,269,138,1158,50,30,17,0,5,5,0,15,5,0,1108,984,468,66,34,25,11,90,68,13,1514,92,50,30,5,15,42,9,33,1422,1108,984,34,90,314,208,106]
["Roxbury","0000665","65700",237,92,21124,233,2,0,0,0,0,2,0,0,231,14,6,16,19,147,20,9,62,0,0,0,0,0,0,0,0,0,0,62,62,23,7,0,0,0,0,0,0,92,0,0,0,0,0,0,0,0,92,62,62,0,0,30,11,19]
["Stoddard","0000672","73700",928,399,19617,921,79,5,1,8,7,43,11,4,842,39,7,58,53,561,87,37,263,14,11,3,0,3,3,3,0,0,0,249,207,67,11,18,8,4,24,15,2,399,31,14,11,3,0,17,10,7,368,249,207,18,24,119,60,59]
["Sullivan","0000677","74900",746,277,21143,764,34,2,0,3,2,27,0,0,730,37,4,74,80,467,46,22,215,2,2,2,0,0,0,0,0,0,0,213,176,77,18,21,16,3,16,13,2,277,12,2,2,0,0,10,5,5,265,213,176,21,16,52,30,22]
["Surry","0000682","75300",673,280,24277,704,13,0,0,0,3,5,2,3,691,28,7,66,49,444,44,53,222,1,0,0,0,0,0,0,1,1,0,221,202,84,12,6,4,0,13,6,0,280,6,1,0,0,1,5,2,3,274,221,202,6,13,53,24,29]
["Swanzey","0000687","75700",6800,2660,20150,6768,363,9,0,16,26,220,48,44,6405,386,63,623,551,3993,465,324,1886,57,27,5,0,9,0,0,21,13,13,1829,1477,647,150,116,84,33,236,151,21,2660,181,57,27,9,21,124,39,85,2479,1829,1477,116,236,650,316,334]
["Troy","0000703","77380",1962,755,17323,1950,155,16,0,12,14,97,11,5,1795,80,23,131,210,1151,92,108,522,20,4,2,2,5,5,0,11,9,2,502,416,205,31,38,16,3,48,22,0,755,72,20,4,5,11,52,27,25,683,502,416,38,48,181,74,107]
["Walpole","0000709","78420",3594,1497,23295,3594,220,14,0,36,44,103,16,7,3374,204,64,246,293,1945,336,286,1019,40,0,0,0,8,8,0,32,32,7,979,837,333,68,75,48,7,67,30,0,1497,88,40,0,8,32,48,12,36,1409,979,837,75,67,430,192,238]
["Westmoreland","0000718","82660",1747,579,24488,1494,37,0,0,0,0,26,4,7,1457,66,5,106,160,926,125,69,448,2,2,0,0,0,0,0,0,0,0,446,402,172,32,23,8,1,21,12,2,579,12,2,2,0,0,10,8,2,567,446,402,23,21,121,68,53]
["Winchester","0000723","85540",4144,1547,16012,4061,487,61,11,70,46,268,15,16,3574,187,74,293,300,2221,272,227,1095,109,58,46,12,7,0,0,44,44,14,986,786,365,41,113,55,5,87,48,7,1547,176,109,58,7,44,67,35,32,1371,986,786,113,87,385,167,218]
[]
[]
[]
[]
["Census 2000 SummaryFile3 Sample Data  -  SF3TownQry7HousingA"]
[]
["TOWN_NAME","LOGRECNO","COUSUB","TotalPop","H1HousingUnitsTotal","H2SampleHU","H2SampleOccHU","H2SampleVacHU","H3HU100pctCount","H5HUTotal","H5HUUrban","H5HUUrbanInUrbanAreas","H5HUUrbanInUrbanClusters","H5HURural","H5HURuralFarm","H5HURuralNonFarm","H7HUOcc","H7HUOwnrOcc","H7HURentrOcc","H8HUVacant","H8HUVacantForRent","H8HUVacantForSale","H8HUVacRentedorSold","H8HUVacSeasonal","H8HUVacForMigrantWrkrs","H8HUOtherVacant","H14OccHUa","H14OwnerOccHU","H14OwnOccHuHh15to24","H14OwnOccHuHh25to34","H14OwnOccHuHh35to44","H14OwnOccHuHh45to54","H14OwnOccHuHh55to59","H14OwnOccHuHh60to64","H14OwnOccHuHh65to74","H14OwnOccHuHh75to84","H14OwnOccHuHh85Over","H14RenterOccHU1","H14RntrOccHuHh15to24","H14RntrOccHuHh25to34","H14RntrOccHuHh35to44","H14RntrOccHuHh45to54","H14RntrOccHuHh55to59","H14RntrOccHuHh60to64","H14RntrOccHuHh65to74","H14RntrOccHuHh75to84","H14RntrOccHuHh85Over","H15PopInOccHU","H15PopInOwnOccHU1","H15PopInRentOccHU1","H17OccupHUb","H17OwnOccHU2","H17OwnOccHU1PersonHH","H17OwnOccHU2PersonHH","H17OwnOccHU3PersonHH","H17OwnOccHU4PersonHH","H17OwnOccHU5PersonHH","H17OwnOccHU6PersonHH","H17OwnOccHU7PlusPersonHH","H17RentOccHU2","H17RntOccHU1PersonHH","H17RntOccHU2PersonHH","H17RntOccHU3PersonHH","H17RntOccHU4PersonHH","H17RntOccHU5PersonHH","H17RntOccHU6PersonHH","H17RntOccHU7PlusPersonHH","H18AvgHHSize","H18AvgHHSizeOwnOcc","H18AvgHHSizeRentOcc","H23TotHU","H23HU1Room","H23HU2Room","H23HU3Room","H23HU4Room","H23HU5Room","H23HU6Room","H23HU7Room","H23HU8Room","H23HU9orMoreRoom","H24MedianNumRooms","H25AggregNumRooms","H30TotalHU","H30Det1HU","H30Att1HU","H30Units2","H30Units3or4","H30Units5to9","H30Units10to19","H30Units20to49","H30Units50orMore","H30UnitsMobileHome","H30UnitsBoatRv","H32OccHUcTotal","H32OwnerOccHU3","H32OwnOccHU1Det","H32OwnOccHU1Att","H32OwnOccHU2Unit","H32OwnOccHU3to4Unit","H32OwnOccHU5to9Unit","H32OwnOccHU10to19Unit","H32OwnOccHU20to49Unit","H32OwnOccHU50plusUnit","H32OwnOccHUMobHom","H32OwnOccHUBoatRVOth","H32RentrOccHU3","H32RntrOccHU1Det","H32RntrOccHU1Att","H32RntrOccHU2Unit","H32RntrOccHU3to4Unit","H32RntrOccHU5to9Unit","H32RntrOccHU10to19Unit","H32RntrOccHU20to49Unit","H32RntrOccHU50PlusUnit","H32RntrOccHUMobHom","H32RntrOccHUBoatRVOth","H33TotPopInOccHU","H33PopInOwnOccHU2","H33PopInOOHU1Det","H33PopInOOHU1Att","H33PopInOOHU2unit","H33PopInOOHU3to4Unit","H33PopInOOHU5to9Unit","H33PopInOOHU10to19Unit","H33PopInOOHU20to49Unit","H33PopInOOHU50PlusUnit","H33PopInOOHUMobilHome","H33PopInOOHUOtherUnit","H33PopInRentOccHU2","H33PopInROHU1Det","H33PopInROHU1Att","H33PopInROHU2Unit","H33PopInROHU3to4Unit","H33PopInROHU5to9Unit","H33PopInROHU10to19Unit","H33PopInROHU20to49Unit","H33PopInROHU50PlusUnit","H33PopInROHUMobilHome","H33PopInROHUOtherUnit","H36OccHousingUnitsdTotal","H36OwnerOccHU4","H36OOHUBuilt99to0300","H36OOHUBuilt95to98","H36OOHUBuilt90to94","H36OOHUBuilt80to89","H36OOHUBuilt70to79","H36OOHUBuilt60to69","H36OOHUBuilt50to59","H36OOHUBuilt40to49","H36OOHUBuilt39Earlier","H36RentOccHU4","H36ROHUBuilt99to0300","H36ROHUBuilt95to98","H36ROHUBuilt90to94","H36ROHUBuilt80to89","H36ROHUBuilt70to79","H36ROHUBuilt60to69","H36ROHUBuilt50to59","H36ROHUBuilt40to49","H36ROHUBuilt39Earlier","H40OccupHousUnitse","H40HeatFuelUtilGas","H40HeatFuelBotGas","H40HeatFuelElect","H40HeatFuelOilKero","H40HeatFuelCoal","H40HeatFuelWood","H40HeatFuelSolar","H40HeatFuelOther","H40HeatFuelNone","H41TotalHU","H41HUNoBdrm","H41HU1Bdrm","H41HU2Bdrm","H41HU3Bdrm","H41HU4Bdrm","H41HU5MoreBdrm","H42OccuHousUnitf","H42OwnerOccHU5","H42OOHUNoBdrm","H42OOHU1Bdrm","H42OOHU2Bdrm","H42OOHU3Bdrm","H42OOHU4Bdrm","H42OOHU5PlusBdrm","H42RentOccHU5","H42ROHUNoBdrm","H42ROHU1Bdrm","H42ROHU2Bdrm","H42ROHU3Bdrm","H42ROHU4Bdrm","H42ROHU5PlusBdrm","H48OccupHousUnitsg","H48OwnerOccHU6","H48OOHUwCompltPlumFacil","H48OOHULackCompltPlumFacil","H48RentOccHU6","H48ROHUwCompltPlumFacil","H48ROHULackCompltPlumFacil","H51OccupHousUnitf","H51OwnerOccHU7","H51OOHUwCompleteKitFacil","H51OOHULackCompleteKitFacil","H51RenterOccHU7","H51ROHUwCompleteKitFacil","H51ROHULackCompleteKitFacil"]
["Alstead","0000512","00820",1944,950,447,365,82,941,950,0,0,0,950,14,936,781,617,164,169,8,11,9,128,0,13,781,617,8,55,146,174,46,42,81,55,10,164,17,39,49,30,4,7,9,7,2,1952,1553,399,781,617,130,234,109,89,42,5,8,164,63,43,31,19,2,2,4,2,3,2,950,26,28,106,180,180,164,128,72,66,5,5136,950,750,6,31,30,18,0,0,0,110,5,781,617,529,0,12,6,0,0,0,0,70,0,164,75,4,17,23,18,0,0,0,24,3,1952,1553,1339,0,30,23,0,0,0,0,161,0,399,176,16,34,55,34,0,0,0,81,3,781,617,4,30,51,133,106,56,38,37,162,164,0,11,7,21,19,26,9,7,64,781,2,74,27,459,13,201,0,0,5,950,31,118,329,308,134,30,781,617,6,57,209,223,97,25,164,12,32,55,43,19,3,781,617,575,42,164,159,5,781,617,598,19,164,159,5]
["Chesterfield","0000518","12260",3542,1632,383,315,68,1632,1632,0,0,0,1632,5,1627,1366,1145,221,266,0,23,5,226,0,12,1366,1145,0,96,236,352,138,81,136,81,25,221,14,62,73,24,9,12,9,11,7,3542,2994,548,1366,1145,198,453,169,209,88,25,3,221,81,78,29,24,0,9,0,3,3,2,1632,10,35,75,235,257,375,261,175,209,6,10097,1632,1446,26,59,29,16,10,5,0,35,6,1366,1145,1078,21,18,0,0,0,0,0,28,0,221,116,5,41,24,16,10,5,0,4,0,3542,2994,2838,38,23,0,0,0,0,0,95,0,548,332,4,100,44,22,34,8,0,4,0,1366,1145,16,73,90,225,209,148,67,84,233,221,0,4,7,16,52,47,16,30,49,1366,21,128,56,997,8,156,0,0,0,1632,15,112,395,762,293,55,1366,1145,9,26,225,619,224,42,221,4,67,74,51,22,3,1366,1145,1141,4,221,217,4,1366,1145,1141,4,221,221,0]
["Dublin","0000525","19140",1476,686,305,261,44,686,686,0,0,0,686,0,686,560,454,106,126,0,11,3,92,0,20,560,454,2,31,83,127,58,44,66,32,11,106,2,28,41,10,13,4,6,2,0,1404,1158,246,560,454,82,201,69,73,21,6,2,106,35,29,16,17,4,5,0,3,3,2,686,8,2,51,60,103,125,116,81,140,6,4530,686,619,17,20,6,0,0,2,0,22,0,560,454,426,4,12,0,0,0,0,0,12,0,106,76,10,8,6,0,0,2,0,4,0,1404,1158,1063,11,44,0,0,0,0,0,40,0,246,193,23,11,12,0,0,3,0,4,0,560,454,17,22,27,109,89,30,26,20,114,106,0,0,2,15,9,10,7,5,58,560,0,37,13,448,0,62,0,0,0,686,8,49,156,255,140,78,560,454,2,17,87,191,114,43,106,0,21,33,29,14,9,560,454,452,2,106,104,2,560,454,452,2,106,106,0]
["Fitzwilliam","0000530","26500",2141,1074,503,394,109,1074,1074,0,0,0,1074,3,1071,836,695,141,238,1,9,6,214,0,8,836,695,4,65,180,179,65,49,87,55,11,141,19,26,31,38,12,2,5,4,4,2141,1823,318,836,695,134,261,132,109,42,10,7,141,51,44,19,17,6,2,2,3,3,2,1074,6,38,64,176,251,192,124,104,119,6,6275,1074,865,12,48,14,15,0,0,0,116,4,836,695,593,6,18,0,0,0,0,0,78,0,141,62,4,25,14,15,0,0,0,21,0,2141,1823,1558,16,58,0,0,0,0,0,191,0,318,172,6,51,22,26,0,0,0,41,0,836,695,4,39,38,177,98,66,37,40,196,141,0,9,6,18,13,15,4,10,66,836,2,84,8,638,2,98,2,2,0,1074,10,113,377,390,152,32,836,695,2,34,204,319,108,28,141,2,36,69,20,12,2,836,695,693,2,141,139,2,836,695,693,2,141,139,2]
["Gilsum","0000537","29220",777,323,141,132,9,343,323,0,0,0,323,2,321,299,263,36,24,0,9,0,5,0,10,299,263,0,29,49,85,29,14,32,22,3,36,3,13,4,8,0,2,6,0,0,739,644,95,299,263,66,96,40,41,12,8,0,36,7,16,6,3,2,2,0,2,2,3,323,1,10,8,56,59,65,47,36,41,6,1981,323,277,2,17,0,0,0,0,0,27,0,299,263,229,0,11,0,0,0,0,0,23,0,36,25,2,5,0,0,0,0,0,4,0,739,644,547,0,34,0,0,0,0,0,63,0,95,75,5,5,0,0,0,0,0,10,0,299,263,3,16,12,48,32,33,8,3,108,36,0,0,0,0,6,10,0,0,20,299,3,21,0,188,5,80,2,0,0,323,1,30,94,126,56,16,299,263,0,22,77,112,43,9,36,0,8,11,9,8,0,299,263,256,7,36,36,0,299,263,256,7,36,36,0]
["Harrisville","0000542","34420",1075,698,289,213,76,698,698,0,0,0,698,10,688,449,362,87,249,3,3,3,220,0,20,449,362,2,18,81,122,18,31,43,35,12,87,2,23,19,36,0,0,5,0,2,1075,892,183,449,362,95,152,42,46,20,4,3,87,24,27,10,20,6,0,0,2,2,2,698,7,19,62,99,166,140,67,60,78,6,4026,698,625,10,27,8,0,0,0,0,28,0,449,362,345,2,2,0,0,0,0,0,13,0,87,47,2,18,8,0,0,0,0,12,0,1075,892,854,2,4,0,0,0,0,0,32,0,183,111,8,27,11,0,0,0,0,26,0,449,362,9,14,18,70,55,29,34,12,121,87,0,5,0,6,15,10,8,0,43,449,0,62,15,307,0,61,2,0,2,698,7,67,221,261,121,21,449,362,0,21,96,161,73,11,87,0,17,27,31,5,7,449,362,360,2,87,85,2,449,362,362,0,87,87,0]
["Hinsdale","0000547","36660",4082,1714,266,248,18,1714,1714,0,0,0,1714,0,1714,1622,1186,436,92,19,20,0,43,0,10,1622,1186,12,145,299,283,111,122,110,88,16,436,48,93,61,78,35,19,18,43,41,4082,3327,755,1622,1186,192,445,231,177,93,48,0,436,204,130,34,56,12,0,0,3,3,2,1714,7,69,154,377,407,228,235,127,110,5,9279,1714,935,18,81,109,110,10,24,0,427,0,1622,1186,826,11,24,7,0,0,0,0,318,0,436,64,7,57,98,103,6,24,0,77,0,4082,3327,2440,11,61,22,0,0,0,0,793,0,755,142,23,117,168,144,5,20,0,136,0,1622,1186,31,67,64,237,246,194,67,79,201,436,0,13,29,18,117,27,26,20,186,1622,18,92,56,1312,0,118,0,6,20,1714,13,222,563,651,199,66,1622,1186,0,42,353,569,165,57,436,13,168,163,61,31,0,1622,1186,1186,0,436,430,6,1622,1186,1186,0,436,428,8]
["Jaffrey","0000559","38500",5476,2352,256,229,27,2352,2352,1368,0,1368,984,8,976,2120,1425,695,232,37,14,8,164,0,9,2120,1425,0,171,372,259,117,125,221,152,8,695,109,144,164,115,27,10,66,34,26,5304,4054,1250,2120,1425,248,528,200,263,130,45,11,695,267,245,142,41,0,0,0,2,3,2,2352,32,57,194,434,529,374,312,176,244,5,13385,2352,1525,30,100,176,248,64,34,11,164,0,2120,1425,1229,8,44,12,9,0,0,0,123,0,695,130,22,33,151,217,64,34,11,33,0,5304,4054,3573,52,135,49,16,0,0,0,229,0,1250,307,40,56,253,384,61,63,6,80,0,2120,1425,52,29,67,293,294,116,131,61,382,695,0,0,0,71,166,98,29,37,294,2120,13,88,146,1706,0,139,0,28,0,2352,32,318,715,818,407,62,2120,1425,0,43,359,660,301,62,695,21,250,290,115,19,0,2120,1425,1425,0,695,695,0,2120,1425,1425,0,695,695,0]
["Keene","0000582","39300",22563,9295,1225,1173,52,9295,9295,8196,0,8196,1099,15,1084,8955,5121,3834,340,119,62,38,42,0,79,8955,5121,24,454,1069,1262,335,378,905,555,139,3834,743,943,563,514,162,100,376,289,144,20283,13024,7259,8955,5121,1155,1895,863,827,273,85,23,3834,1673,1292,486,258,75,26,24,2,3,2,9295,194,427,1084,1672,1698,1689,1007,685,839,5,50531,9295,4541,267,1069,844,722,620,589,197,446,0,8955,5121,4049,189,273,107,82,57,0,0,364,0,3834,434,45,750,715,613,522,532,197,26,0,20283,13024,10881,349,629,240,132,83,0,0,710,0,7259,1244,92,1583,1336,1106,834,790,215,59,0,8955,5121,29,51,111,738,656,737,735,331,1733,3834,32,137,102,393,613,332,382,249,1594,8955,659,542,973,6442,41,235,0,49,14,9295,227,1586,2984,2886,1308,304,8955,5121,0,136,1307,2286,1149,243,3834,204,1366,1582,504,129,49,8955,5121,5108,13,3834,3820,14,8955,5121,5117,4,3834,3783,51]
["Marlborough","0000624","45460",2009,893,420,385,35,896,893,523,0,523,370,6,364,826,610,216,67,17,4,2,40,0,4,826,610,4,57,146,125,55,56,87,55,25,216,7,50,49,47,4,8,12,26,13,2014,1601,413,826,610,103,256,91,105,39,14,2,216,109,35,39,15,12,3,3,2,3,2,893,2,26,51,99,222,194,125,76,98,6,5340,893,586,48,98,49,19,15,43,0,35,0,826,610,482,46,44,2,4,0,2,0,30,0,216,59,2,41,45,15,15,39,0,0,0,2014,1601,1276,122,122,4,4,0,4,0,69,0,413,145,3,77,101,21,23,43,0,0,0,826,610,2,19,64,96,63,45,60,19,242,216,0,0,9,44,3,9,11,17,123,826,25,94,16,626,5,56,0,4,0,893,2,99,225,389,115,63,826,610,0,15,137,318,92,48,216,0,78,70,48,15,5,826,610,602,8,216,216,0,826,610,608,2,216,216,0]
["Marlow","0000640","45700",747,387,181,136,45,396,387,0,0,0,387,6,381,282,242,40,105,0,5,0,95,0,5,282,242,2,31,58,56,18,8,50,14,5,40,4,8,6,6,5,0,2,6,3,727,656,71,282,242,29,105,47,44,12,5,0,40,20,14,3,1,2,0,0,3,3,2,387,21,19,39,72,94,59,41,26,16,5,1943,387,334,3,5,0,0,0,0,0,39,6,282,242,216,0,2,0,0,0,0,0,24,0,40,27,0,3,0,0,0,0,0,7,3,727,656,587,0,4,0,0,0,0,0,65,0,71,56,0,2,0,0,0,0,0,10,3,282,242,0,16,25,56,28,22,13,20,62,40,0,3,1,0,17,8,0,0,11,282,0,32,2,179,0,68,0,1,0,387,23,70,110,130,42,12,282,242,0,24,66,102,38,12,40,8,17,8,5,2,0,282,242,236,6,40,40,0,282,242,236,6,40,40,0]
["Nelson","0000645","50580",634,404,151,111,40,400,404,0,0,0,404,7,397,253,199,54,151,17,3,0,127,0,4,253,199,2,19,46,55,18,18,20,17,4,54,8,20,6,12,0,0,0,3,5,615,520,95,253,199,46,68,36,29,11,9,0,54,24,16,6,3,5,0,0,2,3,2,404,14,13,51,79,60,60,53,41,33,5,2198,404,385,5,8,2,0,0,0,2,2,0,253,199,189,5,3,0,0,0,0,0,2,0,54,45,0,5,2,0,0,0,2,0,0,615,520,489,22,7,0,0,0,0,0,2,0,95,84,0,4,2,0,0,0,5,0,0,253,199,4,27,12,29,23,15,15,9,65,54,0,0,0,11,11,2,8,2,20,253,0,33,2,126,2,90,0,0,0,404,19,52,108,137,79,9,253,199,2,23,42,91,36,5,54,8,12,21,10,3,0,253,199,184,15,54,48,6,253,199,193,6,54,52,2]
["Richmond","0000650","64420",1077,432,199,180,19,432,432,0,0,0,432,4,428,379,347,32,53,5,6,0,37,0,5,379,347,4,46,76,95,41,25,40,16,4,32,5,8,8,7,0,0,2,2,0,1068,982,86,379,347,59,129,58,58,22,8,13,32,15,7,4,2,2,0,2,3,3,3,432,3,0,20,73,91,75,81,43,46,6,2631,432,396,3,6,2,0,0,0,0,25,0,379,347,329,0,2,0,0,0,0,0,16,0,32,26,0,4,2,0,0,0,0,0,0,1068,982,924,0,6,0,0,0,0,0,52,0,86,76,0,7,3,0,0,0,0,0,0,379,347,12,32,35,112,42,22,16,3,73,32,0,0,8,10,1,2,0,5,6,379,2,26,2,255,2,88,2,2,0,432,3,26,148,170,64,21,379,347,0,11,117,140,58,21,32,0,7,14,11,0,0,379,347,347,0,32,32,0,379,347,345,2,32,32,0]
["Rindge","0000655","64580",5451,1863,280,229,51,1863,1863,146,0,146,1717,0,1717,1502,1261,241,361,11,11,14,325,0,0,1502,1261,32,143,361,326,145,68,111,58,17,241,53,27,79,57,0,7,18,0,0,4297,3933,364,1502,1261,157,472,213,229,108,32,50,241,118,50,18,30,8,9,8,3,3,2,1863,15,23,121,270,384,551,253,127,119,6,10707,1863,1597,33,36,34,28,10,43,0,82,0,1502,1261,1160,6,13,0,0,0,0,0,82,0,241,87,21,18,34,28,10,43,0,0,0,4297,3933,3690,16,44,0,0,0,0,0,183,0,364,183,40,28,35,19,7,52,0,0,0,1502,1261,41,43,110,375,286,102,121,36,147,241,0,0,28,55,34,34,16,9,65,1502,0,107,50,1168,0,177,0,0,0,1863,15,122,543,902,238,43,1502,1261,6,43,318,650,219,25,241,0,65,87,89,0,0,1502,1261,1257,4,241,241,0,1502,1261,1249,12,241,241,0]
["Roxbury","0000665","65700",237,91,42,41,1,90,91,17,0,17,74,2,72,90,81,9,1,0,1,0,0,0,0,90,81,0,10,18,22,6,6,12,5,2,9,0,5,0,0,0,0,4,0,0,233,209,24,90,81,22,31,14,2,12,0,0,9,0,5,0,0,0,4,0,3,3,3,91,0,0,2,7,24,17,25,11,5,6,569,91,78,2,3,0,0,0,0,0,8,0,90,81,71,2,0,0,0,0,0,0,8,0,9,6,0,3,0,0,0,0,0,0,0,233,209,182,7,0,0,0,0,0,0,20,0,24,20,0,4,0,0,0,0,0,0,0,90,81,0,0,6,17,8,8,12,9,21,9,0,0,0,2,0,0,0,0,7,90,0,8,3,58,2,19,0,0,0,91,0,5,22,44,17,3,90,81,0,2,22,38,16,3,9,0,3,0,6,0,0,90,81,81,0,9,9,0,90,81,81,0,9,9,0]
["Stoddard","0000672","73700",928,939,417,168,249,939,939,0,0,0,939,2,937,400,350,50,539,0,6,6,520,0,7,400,350,5,22,92,71,36,23,61,38,2,50,8,20,8,8,2,0,2,2,0,928,812,116,400,350,80,161,43,51,10,4,1,50,20,16,7,5,1,0,1,2,2,2,939,11,52,120,202,196,165,101,54,38,5,4772,939,893,13,7,2,0,0,0,0,18,6,400,350,334,2,6,0,0,0,0,0,8,0,50,43,2,1,2,0,0,0,0,2,0,928,812,771,7,15,0,0,0,0,0,19,0,116,93,2,9,9,0,0,0,0,3,0,400,350,4,31,40,63,70,32,30,26,54,50,0,4,0,4,13,6,5,2,16,400,3,57,9,213,2,116,0,0,0,939,11,130,347,346,88,17,400,350,3,30,123,142,43,9,50,0,15,16,14,5,0,400,350,336,14,50,47,3,400,350,336,14,50,47,3]
["Sullivan","0000677","74900",746,294,127,118,9,299,294,0,0,0,294,0,294,275,223,52,19,0,6,0,9,0,4,275,223,0,26,62,61,20,9,26,19,0,52,3,20,14,7,2,3,3,0,0,769,653,116,275,223,35,83,36,34,24,2,9,52,10,13,23,6,0,0,0,3,3,2,294,0,5,16,55,48,56,52,32,30,6,1774,294,237,10,13,9,0,0,0,0,25,0,275,223,197,7,3,0,0,0,0,0,16,0,52,21,3,10,9,0,0,0,0,9,0,769,653,592,12,8,0,0,0,0,0,41,0,116,48,3,18,16,0,0,0,0,31,0,275,223,0,13,7,73,37,19,14,10,50,52,0,9,6,7,8,3,0,5,14,275,0,23,7,170,5,70,0,0,0,294,0,24,97,110,53,10,275,223,0,6,64,100,43,10,52,0,14,26,6,6,0,275,223,218,5,52,52,0,275,223,220,3,52,52,0]
["Surry","0000682","75300",673,302,131,125,6,282,302,0,0,0,302,4,298,279,248,31,23,0,2,0,10,0,11,279,248,0,19,59,55,27,19,34,21,14,31,2,3,6,16,4,0,0,0,0,704,630,74,279,248,41,102,49,44,10,2,0,31,9,12,6,2,2,0,0,3,3,2,302,5,5,14,33,75,62,51,34,23,6,1795,302,269,3,5,0,0,0,0,0,20,5,279,248,240,3,0,0,0,0,0,0,5,0,31,23,0,0,0,0,0,0,0,8,0,704,630,610,4,0,0,0,0,0,0,16,0,74,53,0,0,0,0,0,0,0,21,0,279,248,7,5,23,56,55,24,18,10,50,31,0,0,2,5,11,0,3,3,7,279,2,22,20,185,2,46,2,0,0,302,8,23,72,159,38,2,279,248,0,15,52,141,38,2,31,3,2,13,13,0,0,279,248,246,2,31,31,0,279,248,248,0,31,31,0]
["Swanzey","0000687","75700",6800,2818,330,317,13,2818,2818,313,0,313,2505,18,2487,2666,2017,649,152,14,22,17,85,0,14,2666,2017,7,277,418,476,177,134,311,179,38,649,55,145,172,127,0,26,64,51,9,6789,5638,1151,2666,2017,308,750,352,409,140,31,27,649,291,217,87,43,11,0,0,3,3,2,2818,37,152,148,482,604,588,335,280,192,6,15766,2818,1984,76,116,140,95,98,44,0,265,0,2666,2017,1702,48,20,0,0,0,0,0,247,0,649,171,28,96,122,81,98,44,0,9,0,6789,5638,4697,142,53,0,0,0,0,0,746,0,1151,316,51,232,186,139,131,74,0,22,0,2666,2017,39,107,184,441,265,155,196,98,532,649,0,26,19,124,85,89,29,54,223,2666,63,308,65,1979,40,193,0,9,9,2818,46,339,817,1215,355,46,2666,2017,0,38,453,1133,347,46,649,42,226,328,45,8,0,2666,2017,1997,20,649,649,0,2666,2017,2017,0,649,641,8]
["Troy","0000703","77380",1962,778,356,334,22,775,778,0,0,0,778,4,774,736,527,209,42,12,9,2,17,0,2,736,527,9,56,123,148,31,42,57,53,8,209,27,63,30,21,17,13,21,14,3,1957,1559,398,736,527,75,204,101,88,36,15,8,209,79,66,42,16,3,3,0,3,3,2,778,5,24,70,145,177,134,109,65,49,5,4305,778,505,4,57,66,32,8,6,0,100,0,736,527,431,0,17,4,0,0,0,0,75,0,209,52,4,38,54,28,8,6,0,19,0,1957,1559,1328,0,51,5,0,0,0,0,175,0,398,110,9,86,100,47,12,7,0,27,0,736,527,0,21,37,69,82,46,32,34,206,209,9,7,11,19,16,10,13,14,110,736,2,84,12,550,6,74,0,3,5,778,10,93,258,303,77,37,736,527,3,11,146,258,74,35,209,3,78,90,36,0,2,736,527,525,2,209,206,3,736,527,525,2,209,209,0]
["Walpole","0000709","78420",3594,1592,253,233,20,1592,1592,233,0,233,1359,32,1327,1490,1065,425,102,6,20,7,62,0,7,1490,1065,0,81,274,180,124,56,229,97,24,425,40,136,79,60,31,14,13,39,13,3593,2678,915,1490,1065,229,464,141,148,58,9,16,425,171,90,69,68,18,9,0,2,3,2,1592,18,26,131,214,200,276,343,211,173,6,9794,1592,1187,16,100,124,76,7,26,0,56,0,1490,1065,964,16,68,0,0,0,0,0,17,0,425,133,0,26,118,76,7,26,0,39,0,3593,2678,2488,24,134,0,0,0,0,0,32,0,915,312,0,54,245,180,8,29,0,87,0,1490,1065,7,26,72,150,138,128,108,86,350,425,0,0,0,52,70,33,18,20,232,1490,7,110,106,1131,6,116,0,0,14,1592,18,189,424,553,301,107,1490,1065,0,30,241,430,272,92,425,18,153,156,84,14,0,1490,1065,1065,0,425,419,6,1490,1065,1065,0,425,419,6]
["Westmoreland","0000718","82660",1747,618,288,266,22,618,618,0,0,0,618,36,582,576,495,81,42,1,14,0,23,0,4,576,495,0,26,118,136,53,31,82,38,11,81,10,22,25,8,2,3,11,0,0,1485,1281,204,576,495,79,212,89,76,30,7,2,81,24,35,7,13,0,2,0,3,3,3,618,4,11,28,50,106,108,162,93,56,6,3926,618,583,23,0,0,0,4,0,0,8,0,576,495,476,14,0,0,0,0,0,0,5,0,81,70,7,0,0,0,4,0,0,0,0,1485,1281,1237,29,0,0,0,0,0,0,15,0,204,176,20,0,0,0,8,0,0,0,0,576,495,0,26,26,76,115,50,23,25,154,81,0,5,4,11,11,14,9,4,23,576,6,53,7,369,0,136,2,3,0,618,7,44,141,302,104,20,576,495,0,19,102,261,93,20,81,3,19,26,27,6,0,576,495,490,5,81,81,0,576,495,490,5,81,81,0]
["Winchester","0000723","85540",4144,1741,265,249,16,1741,1741,0,0,0,1741,18,1723,1557,1124,433,184,13,30,17,124,0,0,1557,1124,0,114,209,318,91,85,152,120,35,433,51,124,84,67,13,23,29,36,6,4057,3003,1054,1557,1124,235,418,193,151,86,41,0,433,127,104,100,60,31,5,6,3,3,2,1741,0,35,133,323,443,272,247,139,149,5,9939,1741,1106,13,134,112,46,6,12,0,312,0,1557,1124,797,0,43,0,6,0,0,0,278,0,433,144,13,85,105,40,6,12,0,28,0,4057,3003,2200,0,81,0,15,0,0,0,707,0,1054,400,22,250,241,60,20,11,0,50,0,1557,1124,41,48,82,235,196,73,67,50,332,433,0,0,28,91,66,27,39,20,162,1557,13,166,53,1150,6,169,0,0,0,1741,6,175,616,617,216,111,1557,1124,0,46,379,461,184,54,433,6,115,146,115,10,41,1557,1124,1119,5,433,433,0,1557,1124,1119,5,433,433,0]
[]
[]
[]
[]
["Census 2000 SummaryFile3 Sample Data  -  SF3TownQry8HousingCostA"]
[]
["TOWN_NAME","LOGRECNO","COUSUB","TotalPop","H62RntrOccHU","H62RntrOccHUwRent","H62ROHUGRent<100","H62ROHUGRent100to149","H62ROHUGRent150to199","H62ROHUGRent200to249","H62ROHUGRent250to299","H62ROHUGRent300to349","H62ROHUGRent350to399","H62ROHUGRent400to449","H62ROHUGRent450to499","H62ROHUGRent500to549","H62ROHUGRent550to599","H62ROHUGRent600to649","H62ROHUGRent650to699","H62ROHUGRent700to749","H62ROHUGRent750to799","H62ROHUGRent800to899","H62ROHUGRent900to999","H62ROHUGRent1000to1249","H62ROHUGRent1250to1499","H62ROHUGRent1500to1999","H62ROHUGRent2000>","H62ROHUNoGRent","H63MedianGrossRnt","H69RenterOccHsU","H69GRnt<10PctHHInc","H69GRnt10to15PctHHInc","H69GRnt15to20PctHHInc","H69GRnt20to25PctHHInc","H69GRnt25to30PctHHInc","H69GRnt30to35PctHHInc","H69GRnt35to40PctHHInc","H69GRnt40to50PctHHInc","H69GRnt>50PctHHInc","H69GRntPctNotcomputed","H73RenterOccHU","H73ROHUHhInc<10k","H73ROHUHhInc<10kRnt<20pct","H73ROHUHhInc<10kRnt20to25pct","H73ROHUHhInc<10kRnt25to30pct","H73ROHUHhInc<10kRnt30to35pct","H73ROHUHhInc<10kRnt>35pct","H73ROHUHhInc<10kPctNotComput","H73ROHUHhInc10to20k","H73ROHUHhInc10to20kRnt<20pct","H73ROHUHhInc10to20kRnt20to25pct","H73ROHUHhInc10to20kRnt25to30pct","H73ROHUHhInc10to20kRnt30to35pct","H73ROHUHhInc10to20kRnt>35pct","H73ROHUHhInc10to20kRntPctNC","H73ROHUHhInc20to35k","H73ROHUHhInc20to35kRnt<20pct","H73ROHUHhInc20to35kRnt20to25pct","H73ROHUHhInc20to35kRnt25to30pct","H73ROHUHhInc20to35kRnt30to35pct","H73ROHUHhInc20to35kRnt>35pct","H73ROHUHhInc20to35kRntPctNC","H73ROHUHhInc35to40k","H73ROHUHhInc35to40kRnt<20pct","H73ROHUHhInc35to40kRnt20to25pct","H73ROHUHhInc35to40kRnt25to30pct","H73ROHUHhInc35to40kRnt30to35pct","H73ROHUHhInc35to40kRnt>35pct","H73ROHUHhInc35to40kRntPctNC","H73ROHUHhInc50to75k","H73ROHUHhInc50to75kRnt<20pct","H73ROHUHhInc50to75kRnt20to25pct","H73ROHUHhInc50to75kRnt25to30pct","H73ROHUHhInc50to75kRnt30to35pct","H73ROHUHhInc50to75kRnt>35pct","H73ROHUHhInc50to75kRntPctNC","H73ROHUHhInc75to100k","H73ROHUHhInc75to100kRnt<20pct","H73ROHUHhInc75to100kRnt20to25pct","H73ROHUHhInc75to100kRnt25to30pct","H73ROHUHhInc75to100kRnt30to35pct","H73ROHUHhInc75to100kRnt>35pct","H73ROHUHhInc75to100kRntPctNC","H73ROHUHhInc>100k","H73ROHUHhInc>100kRnt<20pct","H73ROHUHhInc>100kRnt20to25pct","H73ROHUHhInc>100kRnt25to30pct","H73ROHUHhInc>100kRnt30to35pct","H73ROHUHhInc>100kRnt>35pct","H73ROHUHhInc>100kRntPctNC"]
["Alstead","0000512","00820",1944,142,124,0,0,0,0,2,2,7,10,12,4,17,23,13,12,7,4,6,5,0,0,0,18,617,142,11,15,10,23,13,4,10,6,27,23,142,26,0,0,0,0,14,12,24,0,0,1,2,21,0,37,2,8,12,2,8,5,25,10,13,0,0,0,2,13,11,2,0,0,0,0,9,6,0,0,0,0,3,8,7,0,0,0,0,1]
["Chesterfield","0000518","12260",3542,195,184,0,5,0,0,0,4,0,3,14,21,32,21,10,19,8,19,7,13,4,4,0,11,631,195,25,28,30,23,32,13,8,6,15,15,195,20,0,0,0,0,12,8,12,0,0,0,5,3,4,52,0,10,21,4,14,3,32,21,4,3,4,0,0,45,28,9,8,0,0,0,16,16,0,0,0,0,0,18,18,0,0,0,0,0]
["Dublin","0000525","19140",1476,66,50,0,0,3,0,2,0,0,2,2,2,4,6,8,8,0,4,0,4,5,0,0,16,675,66,9,6,12,8,6,2,2,0,5,16,66,2,0,0,0,0,0,2,7,0,0,2,0,5,0,21,5,2,4,2,2,6,12,4,4,0,0,0,4,12,10,2,0,0,0,0,4,2,0,0,0,0,2,8,6,0,0,0,0,2]
["Fitzwilliam","0000530","26500",2141,129,115,0,0,0,2,0,0,6,13,9,12,6,5,12,15,0,26,4,5,0,0,0,14,669,129,8,15,18,15,12,14,11,0,21,15,129,20,0,0,0,0,15,5,13,0,0,0,5,6,2,37,6,8,3,9,11,0,23,6,5,9,0,0,3,26,19,2,0,0,0,5,7,7,0,0,0,0,0,3,3,0,0,0,0,0]
["Gilsum","0000537","29220",777,29,29,0,0,0,0,4,2,0,2,4,0,0,0,7,0,3,7,0,0,0,0,0,0,668,29,3,9,4,8,2,0,0,0,3,0,29,3,0,0,0,0,3,0,4,0,2,2,0,0,0,8,4,4,0,0,0,0,4,2,2,0,0,0,0,5,5,0,0,0,0,0,2,2,0,0,0,0,0,3,3,0,0,0,0,0]
["Harrisville","0000542","34420",1075,78,73,0,0,0,0,0,3,0,10,4,0,7,6,3,0,17,10,4,7,2,0,0,5,760,78,5,14,15,5,15,5,0,2,12,5,78,9,0,0,0,0,7,2,10,0,0,0,2,5,3,15,2,0,8,3,2,0,17,12,3,2,0,0,0,25,18,2,5,0,0,0,0,0,0,0,0,0,0,2,2,0,0,0,0,0]
["Hinsdale","0000547","36660",4082,429,388,0,29,11,18,12,20,7,19,85,51,12,48,23,0,23,15,15,0,0,0,0,41,496,429,20,45,90,67,49,28,15,26,48,41,429,88,0,18,22,0,42,6,91,0,13,13,12,33,20,108,44,21,14,8,14,7,72,41,15,0,8,0,8,63,63,0,0,0,0,0,0,0,0,0,0,0,0,7,7,0,0,0,0,0]
["Jaffrey","0000559","38500",5476,666,644,0,30,10,0,0,36,48,72,53,86,101,67,26,34,28,26,9,9,9,0,0,22,542,666,49,83,77,136,87,49,33,25,105,22,666,95,0,20,0,0,75,0,120,0,24,0,36,60,0,184,35,51,57,13,28,0,133,71,32,30,0,0,0,117,86,9,0,0,0,22,8,8,0,0,0,0,0,9,9,0,0,0,0,0]
["Keene","0000582","39300",22563,3827,3697,15,72,149,127,96,87,116,132,204,363,310,409,403,383,229,227,173,104,51,47,0,130,622,3827,131,410,492,521,553,374,248,191,730,177,3827,723,14,26,60,58,483,82,773,76,68,94,62,458,15,1036,143,165,288,229,196,15,614,264,209,81,19,24,17,443,348,53,13,6,8,15,162,141,0,17,0,0,4,76,47,0,0,0,0,29]
["Marlborough","0000624","45460",2009,208,192,0,2,7,6,4,4,11,7,18,16,15,20,8,14,11,19,10,18,0,2,0,16,615,208,8,25,33,33,32,14,10,16,16,21,208,27,0,0,7,2,10,8,41,4,2,8,0,20,7,57,12,12,12,9,12,0,29,10,16,0,3,0,0,41,30,3,5,0,0,3,11,8,0,0,0,0,3,2,2,0,0,0,0,0]
["Marlow","0000640","45700",747,34,26,0,0,0,0,0,0,0,7,3,1,0,5,3,3,0,0,2,2,0,0,0,8,620,34,3,2,5,3,2,0,2,3,6,8,34,9,0,0,0,0,6,3,6,0,0,0,0,3,3,5,0,3,2,0,0,0,4,2,0,0,0,2,0,8,8,0,0,0,0,0,0,0,0,0,0,0,0,2,0,0,0,0,0,2]
["Nelson","0000645","50580",634,39,34,2,0,0,0,0,0,0,3,8,4,7,3,2,0,2,0,3,0,0,0,0,5,550,39,2,8,2,9,2,2,7,0,2,5,39,0,0,0,0,0,0,0,9,0,0,0,0,6,3,20,2,9,2,2,3,2,5,5,0,0,0,0,0,2,2,0,0,0,0,0,0,0,0,0,0,0,0,3,3,0,0,0,0,0]
["Richmond","0000650","64420",1077,30,22,0,0,0,0,0,0,0,2,0,5,0,4,2,0,1,6,2,0,0,0,0,8,650,30,2,2,2,10,4,0,0,0,2,8,30,0,0,0,0,0,0,0,4,0,0,0,0,2,2,11,0,3,2,0,0,6,9,2,5,2,0,0,0,4,2,2,0,0,0,0,2,2,0,0,0,0,0,0,0,0,0,0,0,0]
["Rindge","0000655","64580",5451,224,215,0,0,0,0,0,24,16,8,0,0,18,19,44,18,19,8,31,10,0,0,0,9,676,224,0,8,53,27,53,10,31,0,33,9,224,24,0,0,0,0,24,0,33,0,0,24,0,9,0,83,16,9,8,10,31,9,56,17,18,21,0,0,0,28,28,0,0,0,0,0,0,0,0,0,0,0,0,0,0,0,0,0,0,0]
["Roxbury","0000665","65700",237,9,9,0,0,0,0,0,0,0,0,0,3,0,0,0,0,0,0,2,4,0,0,0,0,975,9,0,7,0,2,0,0,0,0,0,0,9,0,0,0,0,0,0,0,0,0,0,0,0,0,0,0,0,0,0,0,0,0,2,0,2,0,0,0,0,3,3,0,0,0,0,0,0,0,0,0,0,0,0,4,4,0,0,0,0,0]
["Stoddard","0000672","73700",928,46,32,0,0,0,2,0,0,0,0,0,3,4,3,3,9,3,3,0,2,0,0,0,14,706,46,2,0,7,9,2,0,4,2,6,14,46,12,0,0,0,0,6,6,2,0,0,0,0,2,0,9,0,2,0,0,4,3,16,6,7,0,0,0,3,5,3,0,2,0,0,0,0,0,0,0,0,0,0,2,0,0,0,0,0,2]
["Sullivan","0000677","74900",746,46,40,0,0,0,0,0,0,0,0,6,6,6,0,11,0,3,0,8,0,0,0,0,6,659,46,0,7,5,12,3,6,0,0,7,6,46,2,0,0,0,0,2,0,5,0,0,0,0,5,0,24,0,12,3,3,0,6,8,5,0,0,3,0,0,7,7,0,0,0,0,0,0,0,0,0,0,0,0,0,0,0,0,0,0,0]
["Surry","0000682","75300",673,28,20,0,0,0,0,0,0,4,0,0,0,0,0,0,0,0,2,8,5,1,0,0,8,950,28,4,0,2,7,2,2,0,2,1,8,28,1,0,0,0,0,1,0,0,0,0,0,0,0,0,7,2,0,0,0,2,3,10,0,3,2,2,0,3,8,2,4,0,0,0,2,0,0,0,0,0,0,0,2,2,0,0,0,0,0]
["Swanzey","0000687","75700",6800,604,587,18,0,26,0,26,8,46,52,64,48,43,85,67,73,0,16,15,0,0,0,0,17,556,604,47,38,124,110,74,44,26,46,78,17,604,81,0,0,11,9,52,9,108,0,0,17,9,82,0,220,81,59,46,18,16,0,107,47,44,0,8,0,8,56,49,7,0,0,0,0,32,32,0,0,0,0,0,0,0,0,0,0,0,0]
["Troy","0000703","77380",1962,205,197,0,11,0,8,0,8,5,19,28,24,18,23,16,15,4,16,0,0,2,0,0,8,541,205,15,25,33,28,15,23,11,17,30,8,205,29,0,0,6,3,18,2,54,3,3,6,9,27,6,54,13,14,3,11,13,0,39,28,11,0,0,0,0,18,18,0,0,0,0,0,6,6,0,0,0,0,0,5,5,0,0,0,0,0]
["Walpole","0000709","78420",3594,400,361,0,7,0,19,26,19,35,30,41,46,25,33,14,12,13,20,14,7,0,0,0,39,504,400,41,55,74,25,61,26,26,20,33,39,400,59,0,0,0,7,52,0,70,13,0,6,12,27,12,99,19,12,48,7,0,13,84,58,13,7,0,0,6,54,46,0,0,0,0,8,14,14,0,0,0,0,0,20,20,0,0,0,0,0]
["Westmoreland","0000718","82660",1747,59,47,0,0,0,0,1,0,0,0,5,6,6,2,6,0,6,7,1,7,0,0,0,12,679,59,3,2,11,9,4,5,4,0,6,15,59,7,0,0,0,0,2,5,7,0,0,0,0,4,3,23,0,6,4,5,4,4,12,9,2,0,0,0,1,2,1,1,0,0,0,0,4,4,0,0,0,0,0,4,2,0,0,0,0,2]
["Winchester","0000723","85540",4144,422,415,0,13,12,11,6,12,15,28,32,59,58,23,46,26,18,27,17,12,0,0,0,7,567,422,37,12,61,65,37,48,37,47,65,13,422,71,0,12,0,0,53,6,108,6,0,0,30,72,0,94,0,23,22,18,24,7,65,37,13,15,0,0,0,59,42,17,0,0,0,0,12,12,0,0,0,0,0,13,13,0,0,0,0,0]
[]
[]
[]
[]
["Census 2000 SummaryFile3 Sample Data  -  SF3TownQry8HousingCostB"]
[]
["TOWN_NAME","LOGRECNO","COUSUB","TotalPop","H74SpecOwnerOccHU","H74OOHU<10k","H74OOHU10to15k","H74OOHU15to20k","H74OOHU20to25k","H74OOHU25to30k","H74OOHU30to35k","H74OOHU35to40k","H74OOHU40to50k","H74OOHU50to60k","H74OOHU60to70k","H74OOHU70to80k","H74OOHU80to90k","H74OOHU90to100k","H74OOHU100to125k","H74OOHU125to150k","H74OOHU150to175k","H74OOHU175to200k","H74OOHU200to250k","H74OOHU250to300k","H74OOHU300to400k","H74OOHU400to500k","H74OOHU500to750k","H74OOHU750to1000k","H74OOHU1000kmore","H76OOHUMedianVal","H84OwnerOccHU","H84AllOOHU<10k","H84AllOOHU10to15k","H84AllOOHU15to20k","H84AllOOHU20to25k","H84AllOOHU25to30k","H84AllOOHU30to35k","H84AllOOHU35to40k","H84AllOOHU40to50k","H84AllOOHU50to60k","H84AllOOHU60to70k","H84AllOOHU70to80k","H84AllOOHU80to90k","H84AllOOHU90to100k","H84AllOOHU100to125k","H84AllOOHU125to150k","H84AllOOHU150to175k","H84AllOOHU175to200k","H84AllOOHU200to250k","H84AllOOHU250to300k","H84AllOOHU300to400k","H84AllOOHU400to500k","H84AllOOHU500to750k","H84AllOOHU750to1000k","H84AllOOHU1000kmore","H85OOHUMedVal","H90SOOHU","H90HUwMorgt","H90HUwMtgHC<200","H90HUwMtgHC200to300","H90HUwMtgHC300to400","H90HUwMtgHC400to500","H90HUwMtgHC500to600","H90HUwMtgHC600to700","H90HUwMtgHC700to800","H90HUwMtgHC800to900","H90HUwMtgHC900to1000","H90HUwMtgHC1000to1250","H90HUwMtgHC1250to1500","H90HUwMtgHC1500to2000","H90HUwMtgHC2000to2500","H90HUwMtgHC2500to3000","H90HUwMtgHC3000orMore","H90HUwOutMorgt","H90HUwOutMtgHC<100","H90HUwOutMtgHC100to150","H90HUwOutMtgHC150to200","H90HUwOutMtgHC200to250","H90HUwOutMtgHC250to300","H90HUwOutMtgHC300to350","H90HUwOutMtgHC350to400","H90HUwOutMtgHC400to500","H90HUwOutMtgHC500to600","H90HUwOutMtgHC600to700","H90HUwOutMtgHC700to800","H90HUwOutMtgHC800to900","H90HUwOutMtgHC900to1000","H90HUwOutMtgHC1000orMore","H91MedianOCHUwMtg","H91MedianOCHUwOutMtg","H94SpecOOHU","H94HUwMortg","H94HUwMtgHC<10pct","H94HUwMtgHC10to15pct","H94HUwMtgHC15to20pct","H94HUwMtgHC20to25pct","H94HUwMtgHC25to30pct","H94HUwMtgHC30to35pct","H94HUwMtgHC35to40pct","H94HUwMtgHC40to50pct","H94HUwMtgHC50pctOrMore","H94HUwMtgHCpctNotComp","H94HUWOutMortg","H94HUWOutMortgHC<10pct","H94HUWOutMortgHC10to15pct","H94HUWOutMortgHC15to20pct","H94HUWOutMortgHC20to25pct","H94HUWOutMortgHC25to30pct","H94HUWOutMortgHC30to35pct","H94HUWOutMortgHC35to40pct","H94HUWOutMortgHC40to50pct","H94HUWOutMortgHC50pctOrMore","H94HUWOutMortgHCpctNotComp","H97SpecifOwnOccHU","H97SOOHUInc<10k","H97SOOHUInc<10kHC<20pct","H97SOOHUInc<10kHC20to25pct","H97SOOHUInc<10kHC25to30pct","H97SOOHUInc<10kHC30to35pct","H97SOOHUInc<10kHC>35pct","H97SOOHUInc<10kHCpctNotComput","H97SOOHUInc10to20k","H97SOOHUInc10to20kHC<20pct","H97SOOHUInc10to20kHC20to25pct","H97SOOHUInc10to20kHC25to30pct","H97SOOHUInc10to20kHC30to35pct","H97SOOHUInc10to20kHC>35pct","H97SOOHUInc10to20kHCpctNotComput","H97SOOHUInc20to35k","H97SOOHUInc20to35kRC<20pct","H97SOOHUInc20to35kRC20to25pct","H97SOOHUInc20to35kRC25to30pct","H97SOOHUInc20to35kRC30to35pct","H97SOOHUInc20to35kRC>35pct","H97SOOHUInc20to35kRCpctNotComput","H97SOOHUInc35to50k","H97SOOHUInc35to50kRC<20pct","H97SOOHUInc35to50kRC20to25pct","H97SOOHUInc35to50kRC25to30pct","H97SOOHUInc35to50kRC30to35pct","H97SOOHUInc35to50kRC>35pct","H97SOOHUInc35to50kRCpctNotCompute","H97SOOHUInc50to75k","H97SOOHUInc50to75kRC<20pct","H97SOOHUInc50to75kRC20to25pct","H97SOOHUInc50to75kRC25to30pct","H97SOOHUInc50to75kRC30to35pct","H97SOOHUInc50to75kRC>35pct","H97SOOHUInc50to75kRCpctNotComput","H97SOOHUInc75to100k","H97SOOHUInc75to100kRC<20pct","H97SOOHUInc75to100kRC20to25pct","H97SOOHUInc75to100kRC25to30pct","H97SOOHUInc75to100kRC30to35pct","H97SOOHUInc75to100kRC>35pct","H97SOOHUInc75to100kRCpctNotCompute","H97SOOHUInc100to150k","H97SOOHUInc100to150kRC<20pct","H97SOOHUInc100to150kRC20to25pct","H97SOOHUInc100to150kRC25to30pct","H97SOOHUInc100to150kRC30to35pct","H97SOOHUInc100to150kRC>35pct","H97SOOHUInc100to150kRCpctNotCompute","H97SOOHUInc>150k","H97SOOHUInc>150kRC<20pct","H97SOOHUInc>150kRC20to25pct","H97SOOHUInc>150kRC25to30pct","H97SOOHUInc>150kRC30to35pct","H97SOOHUInc>150kRC>35pct","H97SOOHUInc>150kRCpctNotCompute"]
["Alstead","0000512","00820",1944,330,2,0,3,2,2,9,6,10,17,26,39,62,30,49,41,17,8,2,0,2,0,0,0,3,87900,617,10,10,9,4,14,13,16,12,26,43,60,85,57,87,74,30,14,16,10,8,10,2,0,7,91100,330,209,0,0,0,16,16,20,35,22,34,27,24,15,0,0,0,121,2,2,3,11,17,23,10,34,8,4,2,2,0,3,880,363,330,209,11,31,41,38,30,14,12,19,13,0,121,46,34,19,4,5,2,0,7,4,0,330,6,0,0,0,0,6,0,28,6,2,0,2,18,0,79,32,6,13,5,23,0,66,39,8,7,4,8,0,89,55,14,15,5,0,0,48,36,12,0,0,0,0,12,12,0,0,0,0,0,2,2,0,0,0,0,0]
["Chesterfield","0000518","12260",3542,892,0,0,0,0,0,0,0,14,23,27,66,57,59,170,159,96,51,67,44,47,4,4,0,4,129700,1145,4,0,0,0,0,0,9,18,31,27,70,78,59,208,195,138,65,94,61,65,12,4,0,7,133800,892,612,0,0,0,14,18,28,77,31,74,117,89,112,21,19,12,280,0,4,4,4,34,36,52,60,29,33,8,3,8,5,1137,410,892,612,29,64,109,106,88,47,49,26,81,13,280,110,73,22,18,16,0,9,28,4,0,892,47,0,0,4,0,30,13,64,4,8,8,0,44,0,135,27,0,26,5,77,0,171,83,25,22,10,31,0,227,125,50,25,18,9,0,116,63,27,16,4,6,0,91,68,10,3,10,0,0,41,37,4,0,0,0,0]
["Dublin","0000525","19140",1476,272,0,0,0,0,0,0,0,2,4,0,6,15,24,46,35,53,26,23,17,15,2,2,2,0,151900,454,0,2,0,0,0,0,0,2,4,2,10,17,30,58,52,66,44,55,34,32,10,18,7,11,168900,272,179,0,0,0,4,4,4,10,10,21,43,42,23,18,0,0,93,0,2,0,0,4,2,12,21,20,15,3,10,0,4,1212,528,272,179,8,21,40,25,26,24,6,11,18,0,93,23,17,15,6,4,4,2,11,9,2,272,18,0,0,0,0,16,2,24,2,2,2,4,14,0,38,12,4,4,4,14,0,44,10,14,8,4,8,0,70,31,4,14,16,5,0,40,33,5,2,0,0,0,22,20,2,0,0,0,0,16,16,0,0,0,0,0]
["Fitzwilliam","0000530","26500",2141,466,0,0,0,2,0,2,0,3,27,29,27,78,74,102,64,31,13,8,6,0,0,0,0,0,98800,695,0,2,12,9,7,3,6,11,31,39,41,95,99,121,90,55,27,27,11,5,2,2,0,0,99200,466,342,0,0,5,9,19,23,28,52,38,81,59,23,5,0,0,124,0,2,1,4,16,21,38,23,17,0,2,0,0,0,992,374,466,342,21,49,81,64,33,22,19,19,34,0,124,41,27,17,11,6,9,2,2,9,0,466,18,0,0,0,2,16,0,41,5,2,6,7,21,0,78,25,11,6,4,32,0,86,37,12,13,13,11,0,123,65,36,14,3,5,0,85,72,11,0,2,0,0,23,20,3,0,0,0,0,12,12,0,0,0,0,0]
["Gilsum","0000537","29220",777,159,0,0,3,3,2,5,0,4,10,16,21,17,13,41,9,6,6,0,3,0,0,0,0,0,89100,263,0,0,5,5,2,5,0,6,21,18,25,30,23,56,18,14,10,14,8,0,0,3,0,0,96300,159,97,3,0,2,4,5,6,7,21,8,28,8,2,3,0,0,62,0,0,3,7,5,10,10,7,16,2,0,2,0,0,906,380,159,97,9,17,19,13,10,9,7,0,11,2,62,16,12,0,9,4,0,3,3,12,3,159,20,0,0,0,0,15,5,14,3,3,0,0,8,0,20,0,6,2,7,5,0,40,15,9,8,0,8,0,42,32,4,4,2,0,0,11,11,0,0,0,0,0,8,8,0,0,0,0,0,4,4,0,0,0,0,0]
["Harrisville","0000542","34420",1075,260,0,0,0,0,0,3,2,2,4,6,17,19,18,60,49,34,11,10,17,0,6,2,0,0,124600,362,2,0,0,0,0,3,2,9,4,8,19,21,22,73,68,45,23,16,25,10,10,2,0,0,131600,260,174,0,0,0,2,8,14,22,22,18,36,16,28,2,4,2,86,0,3,2,0,8,18,22,17,6,2,4,0,4,0,1007,377,260,174,16,24,31,40,18,10,12,13,10,0,86,37,26,4,5,8,4,0,0,2,0,260,6,0,0,2,0,4,0,10,0,0,2,4,4,0,45,14,11,8,0,12,0,51,16,10,6,10,9,0,75,49,16,2,0,8,0,38,26,6,6,0,0,0,21,21,0,0,0,0,0,14,12,2,0,0,0,0]
["Hinsdale","0000547","36660",4082,786,0,0,0,0,0,0,0,11,54,24,89,188,106,205,84,12,0,6,0,0,0,0,0,7,92500,1186,16,50,6,61,47,18,36,17,87,37,128,209,118,219,96,18,0,6,5,0,5,0,0,7,84300,786,545,0,0,0,31,30,24,63,60,70,153,95,19,0,0,0,241,0,5,0,6,17,42,90,59,22,0,0,0,0,0,992,378,786,545,7,57,109,131,103,24,30,43,41,0,241,93,43,29,18,35,0,0,13,10,0,786,16,0,0,0,0,16,0,90,0,0,35,0,55,0,151,64,28,5,11,43,0,149,52,26,35,13,23,0,270,136,77,57,0,0,0,85,61,18,6,0,0,0,25,25,0,0,0,0,0,0,0,0,0,0,0,0]
["Jaffrey","0000559","38500",5476,1029,0,0,0,0,0,0,9,9,44,46,33,133,203,238,155,38,29,21,10,44,17,0,0,0,103900,1425,7,17,9,14,17,17,33,9,53,55,42,142,227,318,221,50,29,45,10,65,37,8,0,0,105500,1029,703,0,0,0,0,9,27,52,96,135,187,133,45,9,10,0,326,0,0,0,10,35,0,35,88,104,37,9,0,0,8,1043,494,1029,703,29,88,146,131,114,69,43,49,34,0,326,53,95,35,49,50,10,16,0,18,0,1029,36,0,0,0,10,26,0,51,0,17,9,0,25,0,165,37,35,41,15,37,0,253,38,38,87,34,56,0,299,163,83,27,10,16,0,97,87,0,0,10,0,0,110,103,7,0,0,0,0,18,18,0,0,0,0,0]
["Keene","0000582","39300",22563,3979,8,0,0,0,0,27,15,7,126,212,294,541,609,989,451,278,119,141,118,44,0,0,0,0,103800,5121,79,60,118,32,45,27,23,23,158,268,347,647,694,1164,572,314,141,154,155,89,0,0,11,0,100800,3979,2566,0,0,7,26,83,78,135,220,378,756,371,335,96,74,7,1413,0,0,0,14,55,53,200,469,263,164,123,25,15,32,1118,482,3979,2566,97,248,579,590,239,279,209,72,245,8,1413,347,226,361,169,98,42,32,67,57,14,3979,127,0,0,0,0,105,22,345,8,40,40,43,214,0,679,195,112,72,83,217,0,636,271,66,115,76,108,0,1111,495,431,65,89,31,0,539,378,95,29,30,7,0,364,333,15,16,0,0,0,178,178,0,0,0,0,0]
["Marlborough","0000624","45460",2009,412,0,0,0,0,2,2,0,10,12,38,43,98,60,74,40,14,3,3,4,7,0,2,0,0,90200,610,10,4,4,2,5,2,0,14,15,42,60,127,86,106,54,18,12,12,10,20,3,4,0,0,92300,412,252,0,0,0,0,10,22,22,45,39,69,19,20,0,2,4,160,0,0,0,4,13,27,28,47,18,15,6,0,2,0,969,417,412,252,9,45,52,37,26,32,21,16,14,0,160,52,29,42,10,12,6,0,4,5,0,412,6,0,0,0,0,6,0,29,7,2,6,4,10,0,88,35,8,10,11,24,0,80,31,14,12,11,12,0,136,93,20,7,10,6,0,48,40,3,3,0,2,0,18,16,0,0,2,0,0,7,7,0,0,0,0,0]
["Marlow","0000640","45700",747,133,3,2,0,0,0,0,4,2,4,22,15,18,19,27,10,7,0,0,0,0,0,0,0,0,88100,242,9,2,0,0,0,7,9,5,10,26,24,24,31,46,20,10,13,6,0,0,0,0,0,0,91600,133,87,0,0,0,2,4,6,11,16,14,26,4,4,0,0,0,46,0,3,0,1,4,0,9,15,10,2,2,0,0,0,932,440,133,87,0,14,8,22,22,6,2,10,3,0,46,8,16,8,2,6,6,0,0,0,0,133,0,0,0,0,0,0,0,14,3,0,4,3,4,0,29,11,2,8,3,5,0,46,12,12,10,6,6,0,30,14,10,6,0,0,0,12,12,0,0,0,0,0,2,2,0,0,0,0,0,0,0,0,0,0,0,0]
["Nelson","0000645","50580",634,121,0,0,2,0,2,3,2,0,4,9,7,9,18,17,11,11,10,10,2,2,0,2,0,0,106600,199,0,2,2,0,2,3,2,0,4,11,11,16,24,28,15,28,16,20,4,5,0,6,0,0,120100,121,76,0,0,0,0,5,4,11,6,12,21,5,6,2,2,2,45,0,2,3,4,2,15,2,4,7,6,0,0,0,0,1000,338,121,76,9,5,14,15,9,0,5,8,11,0,45,12,10,4,7,2,2,3,0,3,2,121,8,0,0,0,0,6,2,18,5,2,2,2,7,0,28,4,7,4,0,13,0,14,8,2,0,0,4,0,20,9,8,3,0,0,0,18,13,3,2,0,0,0,5,5,0,0,0,0,0,10,10,0,0,0,0,0]
["Richmond","0000650","64420",1077,201,0,0,0,0,0,0,0,0,10,7,4,32,20,52,49,12,6,6,3,0,0,0,0,0,113200,347,3,0,0,0,0,0,0,4,14,9,8,40,30,81,77,30,21,8,11,6,3,2,0,0,120200,201,172,0,0,2,5,4,14,22,7,16,52,34,12,0,2,2,29,0,0,0,0,1,7,4,6,4,2,5,0,0,0,1077,442,201,172,2,24,36,35,30,28,5,6,6,0,29,8,4,9,2,0,0,0,0,6,0,201,3,0,0,0,0,3,0,5,0,0,0,0,5,0,38,11,6,8,6,7,0,44,11,9,6,10,8,0,58,18,16,12,12,0,0,32,24,6,2,0,0,0,15,13,0,2,0,0,0,6,6,0,0,0,0,0]
["Rindge","0000655","64580",5451,993,0,0,0,0,0,0,0,6,25,30,91,70,124,261,165,104,39,31,33,6,0,8,0,0,114400,1261,6,0,18,12,29,0,15,6,37,30,91,87,124,332,172,127,56,55,39,11,0,14,0,0,113200,993,769,0,0,7,18,31,41,48,54,136,193,130,91,0,20,0,224,0,0,8,0,13,27,29,69,35,18,13,6,0,6,1064,451,993,769,47,104,129,139,137,81,21,37,74,0,224,67,38,50,17,13,13,0,5,13,8,993,19,0,0,0,0,19,0,46,5,7,6,6,22,0,164,44,6,12,25,77,0,175,49,29,55,28,14,0,316,120,81,62,35,18,0,137,96,33,8,0,0,0,84,77,0,7,0,0,0,52,44,0,0,0,0,8]
["Roxbury","0000665","65700",237,50,0,0,0,0,0,0,0,2,2,2,6,9,2,13,4,6,0,2,2,0,0,0,0,0,103800,81,0,0,0,0,0,0,0,2,2,2,10,11,2,15,11,13,5,4,2,0,0,2,0,0,119200,50,32,0,0,0,2,0,4,12,4,4,2,0,2,0,2,0,18,0,0,2,0,2,4,2,8,0,0,0,0,0,0,783,375,50,32,0,2,10,9,7,2,0,0,2,0,18,6,2,4,0,4,0,0,2,0,0,50,4,0,0,0,0,4,0,6,2,0,4,0,0,0,13,4,2,5,2,0,0,7,4,3,0,0,0,0,14,10,2,2,0,0,0,4,4,0,0,0,0,0,2,0,2,0,0,0,0,0,0,0,0,0,0,0]
["Stoddard","0000672","73700",928,264,0,0,0,3,0,0,2,2,5,22,16,18,36,44,48,15,14,14,2,10,0,10,3,0,115900,350,0,0,0,3,2,0,2,2,10,30,16,29,47,54,53,26,21,18,4,16,0,12,3,2,115700,264,174,3,0,3,0,21,14,27,40,11,31,14,7,0,0,3,90,2,4,4,11,18,14,12,22,0,0,0,3,0,0,848,321,264,174,14,26,24,34,24,18,5,8,21,0,90,29,24,11,4,8,0,3,3,8,0,264,17,0,0,0,0,17,0,32,7,2,8,0,15,0,69,31,10,7,8,13,0,37,16,8,7,3,3,0,66,36,18,5,7,0,0,26,21,0,5,0,0,0,17,17,0,0,0,0,0,0,0,0,0,0,0,0]
["Sullivan","0000677","74900",746,124,0,0,0,0,0,5,0,13,4,9,12,15,24,18,17,2,3,0,2,0,0,0,0,0,91700,223,0,4,0,0,0,10,2,19,9,12,16,22,32,38,24,9,10,2,12,0,2,0,0,0,95500,124,95,0,0,0,5,4,8,13,11,11,26,15,0,0,0,2,29,0,0,2,2,7,0,5,0,8,3,2,0,0,0,959,385,124,95,12,13,25,16,11,10,4,2,2,0,29,8,15,0,2,2,0,2,0,0,0,124,2,0,0,0,0,2,0,4,0,2,2,0,0,0,10,4,0,0,0,6,0,21,3,5,9,4,0,0,52,35,9,2,6,0,0,19,15,2,0,0,2,0,11,11,0,0,0,0,0,5,5,0,0,0,0,0]
["Surry","0000682","75300",673,201,0,0,0,0,0,0,0,4,0,4,5,18,22,52,45,30,13,5,3,0,0,0,0,0,122800,248,0,0,0,0,0,0,0,4,0,7,5,21,24,54,58,45,16,7,3,2,0,2,0,0,128900,201,134,0,0,2,12,4,4,15,17,11,24,26,13,6,0,0,67,0,0,0,8,5,16,4,20,14,0,0,0,0,0,1021,403,201,134,6,22,23,18,27,13,6,8,11,0,67,36,16,2,3,4,2,2,0,2,0,201,4,0,0,0,2,2,0,17,0,0,4,0,13,0,18,4,5,3,2,4,0,45,24,5,7,5,4,0,72,38,9,15,4,6,0,31,25,2,2,2,0,0,14,14,0,0,0,0,0,0,0,0,0,0,0,0]
["Swanzey","0000687","75700",6800,1550,0,0,0,8,0,51,17,31,53,85,133,135,154,384,212,98,89,46,45,9,0,0,0,0,107000,2017,9,27,18,17,31,74,17,67,87,142,133,154,177,414,262,133,111,72,55,9,8,0,0,0,103400,1550,1131,0,0,11,18,39,144,76,79,99,359,143,109,54,0,0,419,0,0,17,17,78,58,41,109,61,30,8,0,0,0,1069,398,1550,1131,66,133,221,262,145,87,72,69,76,0,419,155,116,31,15,37,0,15,24,18,8,1550,66,0,0,0,0,58,8,79,17,0,23,0,39,0,328,93,39,36,37,123,0,233,53,73,41,28,38,0,456,258,106,62,14,16,0,236,168,40,20,8,0,0,90,71,19,0,0,0,0,62,62,0,0,0,0,0]
["Troy","0000703","77380",1962,360,0,0,0,2,0,0,2,2,21,23,49,84,56,77,31,7,2,0,0,0,4,0,0,0,89600,527,11,8,4,4,8,2,17,6,37,33,51,91,69,97,52,25,6,0,0,2,4,0,0,0,89100,360,274,0,0,2,4,11,17,26,39,46,82,36,9,2,0,0,86,0,0,0,7,2,4,19,30,17,2,3,2,0,0,983,437,360,274,0,24,67,52,39,20,23,16,31,2,86,15,20,14,10,4,5,3,9,4,2,360,17,0,0,0,0,13,4,28,0,2,2,2,22,0,75,11,8,8,10,38,0,79,25,18,15,10,11,0,119,62,34,18,3,2,0,29,29,0,0,0,0,0,11,11,0,0,0,0,0,2,2,0,0,0,0,0]
["Walpole","0000709","78420",3594,834,0,0,6,0,0,13,0,7,19,29,50,54,101,187,129,29,70,35,49,38,14,4,0,0,118400,1065,7,4,6,0,0,13,0,18,26,60,56,74,115,213,151,29,76,48,62,57,40,10,0,0,118000,834,518,0,0,5,11,26,57,31,92,77,69,81,47,0,18,4,316,0,0,0,37,37,54,44,81,26,26,4,7,0,0,948,384,834,518,12,90,118,75,77,46,11,43,46,0,316,175,25,43,19,0,0,18,24,6,6,834,24,0,0,0,0,18,6,58,12,0,0,0,46,0,172,35,25,13,26,73,0,141,78,13,33,6,11,0,234,168,27,25,14,0,0,128,99,29,0,0,0,0,51,45,0,6,0,0,0,26,26,0,0,0,0,0]
["Westmoreland","0000718","82660",1747,341,0,0,0,0,0,0,0,0,2,8,6,22,29,91,89,34,20,9,18,9,4,0,0,0,128500,495,0,0,2,0,0,0,0,0,2,8,12,23,36,106,114,57,35,31,37,23,9,0,0,0,137800,341,239,0,0,0,0,13,6,27,18,22,63,47,31,10,2,0,102,0,0,0,2,6,14,20,41,17,0,2,0,0,0,1133,422,341,239,8,37,56,44,33,16,5,24,16,0,102,38,22,21,13,2,0,2,0,4,0,341,2,0,0,0,0,2,0,22,2,5,2,0,13,0,56,23,11,0,5,17,0,52,12,11,12,4,13,0,101,51,20,21,3,6,0,58,44,10,0,4,0,0,30,30,0,0,0,0,0,20,20,0,0,0,0,0]
["Winchester","0000723","85540",4144,593,0,0,10,0,0,23,12,5,0,84,122,95,85,76,31,15,11,0,17,0,7,0,0,0,84300,1124,22,32,45,6,19,37,46,13,38,117,160,128,140,138,70,31,17,15,37,6,7,0,0,0,82100,593,386,0,0,0,24,6,37,35,46,29,151,28,13,10,0,7,207,0,0,6,11,18,44,36,50,36,0,6,0,0,0,1026,384,593,386,13,60,85,64,29,34,13,32,56,0,207,59,39,36,17,5,17,11,6,11,6,593,31,0,0,0,0,25,6,71,6,5,5,17,38,0,123,53,12,6,12,40,0,98,50,12,2,22,12,0,196,119,42,21,0,14,0,58,58,0,0,0,0,0,16,6,10,0,0,0,0,0,0,0,0,0,0,0]
[]
[]
[]
[]
["Census 2000 SummaryFile3 Sample Data  -  SF3TownQry9HHIncomeByTenure"]
[]
["TOWN_NAME","LOGRECNO","COUSUB","TotalPop","HCT11OccHU","HCT11OwnOccHU","HCT11OOHUInc<5K","HCT11OOHUInc5to10K","HCT11OOHUInc10to15K","HCT11OOHUInc15to20K","HCT11OOHUInc20to25K","HCT11OOHUInc25to35K","HCT11OOHUInc35to50K","HCT11OOHUInc50to75K","HCT11OOHUInc75to100K","HCT11OOHUInc100to150K","HCT11OOHUInc>150K","HCT11RentOccHU","HCT11ROHUInc<5K","HCT11ROHUInc5to10K","HCT11ROHUInc10to15K","HCT11ROHUInc15to20K","HCT11ROHUInc20to25K","HCT11ROHUInc25to35K","HCT11ROHUInc35to50K","HCT11ROHUInc50to75K","HCT11ROHUInc75to100K","HCT11ROHUInc100to150K","HCT11ROHUInc>150K","HCT12MedHHInc","HCT12MedOwnOccHHInc","HCT12MedRentOccHHInc","SummaryLevel"]
["Alstead","0000512","00820",1944,781,617,4,11,21,33,45,101,137,151,73,26,15,164,11,19,12,19,23,20,27,14,11,5,3,42460,45430,24444,"060"]
["Chesterfield","0000518","12260",3542,1366,1145,26,21,43,43,76,110,196,276,179,123,52,221,11,16,0,12,21,34,40,48,16,14,9,51466,53508,37917,"060"]
["Dublin","0000525","19140",1476,560,454,12,12,12,16,29,39,68,122,70,34,40,106,3,4,6,13,8,21,14,21,8,8,0,51983,55938,34545,"060"]
["Fitzwilliam","0000530","26500",2141,836,695,8,18,17,48,31,83,131,171,117,53,18,141,5,15,8,7,17,22,25,32,7,0,3,47200,51369,33750,"060"]
["Gilsum","0000537","29220",777,299,263,8,17,13,10,12,23,70,67,23,12,8,36,3,0,2,5,2,8,6,5,2,2,1,43304,44271,33750,"060"]
["Harrisville","0000542","34420",1075,449,362,0,12,13,10,17,57,67,95,48,23,20,87,0,11,8,2,0,15,22,25,2,2,0,47625,50543,41528,"060"]
["Hinsdale","0000547","36660",4082,1622,1186,11,22,40,81,94,211,228,365,91,38,5,436,12,76,43,48,14,94,72,70,0,7,0,36438,41597,28138,"060"]
["Jaffrey","0000559","38500",5476,2120,1425,24,47,25,70,101,139,295,375,113,184,52,695,32,63,52,77,75,116,146,117,8,9,0,44531,50821,27474,"060"]
["Keene","0000582","39300",22563,8955,5121,44,145,236,296,224,706,899,1253,649,418,251,3834,213,510,371,402,386,650,614,450,162,52,24,37068,50184,25444,"060"]
["Marlborough","0000624","45460",2009,826,610,0,14,12,29,38,100,123,194,59,30,11,216,9,18,23,18,20,43,31,41,11,2,0,44352,49052,28214,"060"]
["Marlow","0000640","45700",747,282,242,0,5,9,10,5,43,70,70,26,4,0,40,0,9,3,3,0,5,4,14,0,0,2,44643,45417,33750,"060"]
["Nelson","0000645","50580",634,253,199,9,7,14,14,10,25,23,34,32,15,16,54,0,3,5,6,10,15,10,2,0,3,0,36518,48750,25938,"060"]
["Richmond","0000650","64420",1077,379,347,7,3,9,8,12,48,77,84,51,30,18,32,2,0,0,4,2,9,9,4,2,0,0,49931,51979,29167,"060"]
["Rindge","0000655","64580",5451,1502,1261,8,21,17,35,59,200,205,375,164,95,82,241,9,15,18,15,11,72,65,28,8,0,0,50030,53555,32366,"060"]
["Roxbury","0000665","65700",237,90,81,0,4,0,10,9,11,10,20,10,7,0,9,0,0,0,0,0,0,2,3,0,4,0,49500,46875,57083,"060"]
["Stoddard","0000672","73700",928,400,350,6,17,12,29,31,57,50,83,38,23,4,50,5,7,0,4,7,4,16,5,0,2,0,37500,40357,30000,"060"]
["Sullivan","0000677","74900",746,275,223,2,4,12,6,11,25,29,81,29,15,9,52,0,2,0,5,6,21,11,7,0,0,0,50547,54861,32083,"060"]
["Surry","0000682","75300",673,279,248,0,4,19,0,2,18,55,87,39,20,4,31,0,1,0,0,3,7,10,8,0,0,2,56771,58846,40417,"060"]
["Swanzey","0000687","75700",6800,2666,2017,8,75,40,100,136,278,317,600,259,127,77,649,47,42,64,44,95,145,117,63,32,0,0,44007,51566,28679,"060"]
["Troy","0000703","77380",1962,736,527,8,23,24,20,34,64,119,164,48,19,4,209,3,26,21,33,26,28,39,22,6,3,2,40484,45368,24063,"060"]
["Walpole","0000709","78420",3594,1490,1065,6,24,57,25,51,178,171,278,158,64,53,425,6,53,45,25,46,64,84,68,14,7,13,43958,51898,29671,"060"]
["Westmoreland","0000718","82660",1747,576,495,0,6,11,19,25,47,69,147,89,52,30,81,7,0,2,5,6,22,14,14,7,4,0,55417,59609,34464,"060"]
["Winchester","0000723","85540",4144,1557,1124,16,48,98,71,56,167,222,328,83,28,7,433,30,41,61,47,18,76,65,70,12,3,10,37908,41250,27625,"060"]
[]
[]
[]
[]
[]
["Census 2000 SummaryFile3 Sample Data - SF3TownQry10aDisabil"]
[]
["TOWN_NAME","LOGRECNO","COUSUB","TotalPop","PCT026001","PCT026002","PCT026003","PCT026004","PCT026005","PCT026006","PCT026007","PCT026008","PCT026009","PCT026010","PCT026011","PCT026012","PCT026013","PCT026014","PCT026015","PCT026016","PCT026017","PCT026018","PCT026019","PCT026020","PCT026021","PCT026022","PCT026023","PCT026024","PCT026025","PCT026026","PCT026027","PCT026028","PCT026029","PCT026030","PCT026031","PCT026032","PCT026033","PCT026034","PCT026035","PCT026036","PCT026037","PCT026038","PCT026039","PCT026040","PCT026041","PCT026042","PCT026043","PCT026044","PCT026045","PCT026046","PCT026047","PCT026048","PCT026049","PCT026050","PCT026051","PCT026052","PCT026053","PCT026054","PCT026055","PCT026056","PCT026057","PCT026058","PCT026059","PCT026060","PCT026061","PCT026062","PCT026063","PCT026064","PCT026065","PCT026066","PCT026067","PCT026068","PCT026069","PCT026070","PCT026071","PCT026072","PCT026073","PCT026074","PCT026075","PCT026076","PCT026077","PCT026078","PCT026079","PCT026080","PCT026081","PCT026082","PCT026083","PCT026084","PCT026085","PCT026086","PCT026087","PCT026088","PCT026089","PCT026090","PCT026091","PCT026092","PCT026093","PCT026094","PCT026095","PCT026096","PCT026097","PCT026098","PCT026099","PCT026100","PCT026101","CNTY_NAME"]
["Alstead","0000512","00820",1944,1846,941,170,22,3,0,19,0,2,0,2,146,79,8,2,4,0,0,2,0,4,0,4,0,4,67,575,62,16,11,10,0,0,25,57,8,49,8,41,456,117,28,8,12,2,0,6,24,6,18,65,905,140,11,2,0,9,0,0,0,0,129,62,8,0,0,2,0,0,6,3,0,3,0,3,51,588,45,0,15,2,0,2,26,36,6,30,4,26,507,115,12,1,10,0,0,1,24,8,16,79,"Cheshire"]
["Chesterfield","0000518","12260",3542,3372,1735,341,13,0,0,13,0,7,7,0,321,140,3,0,0,3,0,0,0,19,0,19,0,19,118,1083,143,16,40,11,0,4,72,60,5,55,0,55,880,171,54,13,29,8,0,4,22,4,18,95,1637,297,3,0,0,3,0,0,0,0,294,85,14,0,4,6,0,0,4,7,4,3,0,3,64,1050,87,4,33,14,0,0,36,38,8,30,0,30,925,205,17,4,7,0,0,6,71,50,21,117,"Cheshire"]
["Dublin","0000525","19140",1476,1388,701,125,7,0,0,7,0,0,0,0,118,42,0,0,0,0,0,0,0,0,0,0,0,0,42,435,70,9,5,8,0,2,46,19,0,19,6,13,346,99,11,4,5,2,0,0,9,2,7,79,687,113,0,0,0,0,0,0,0,0,113,39,6,0,0,0,0,4,2,0,0,0,0,0,33,434,45,0,4,0,0,0,41,16,4,12,7,5,373,101,10,4,4,0,0,2,27,11,16,64,"Cheshire"]
["Fitzwilliam","0000530","26500",2141,2032,1045,188,14,0,4,10,0,4,4,0,170,70,3,0,0,3,0,0,0,1,0,1,1,0,66,676,72,26,7,13,0,0,26,41,14,27,2,25,563,111,22,4,16,0,0,2,14,3,11,75,987,164,2,0,0,2,0,0,0,0,162,71,5,3,0,0,0,0,2,0,0,0,0,0,66,634,36,6,16,7,0,0,7,34,14,20,2,18,564,118,29,4,25,0,0,0,27,9,18,62,"Cheshire"]
["Gilsum","0000537","29220",777,710,351,39,2,0,0,2,0,0,0,0,37,19,2,0,0,0,0,0,2,0,0,0,0,0,17,244,38,8,6,0,0,0,24,19,4,15,0,15,187,49,22,8,4,3,0,7,4,0,4,23,359,64,5,0,0,5,0,0,0,0,59,31,1,0,0,0,0,0,1,1,0,1,0,1,29,218,37,0,6,5,0,0,26,8,0,8,0,8,173,46,11,8,0,0,0,3,2,2,0,33,"Cheshire"]
["Harrisville","0000542","34420",1075,1017,478,78,4,0,0,4,0,2,0,2,72,37,6,0,0,4,0,0,2,2,0,2,0,2,29,295,67,6,14,4,0,0,43,17,4,13,2,11,211,68,7,2,5,0,0,0,14,2,12,47,539,91,2,0,0,2,0,0,0,0,89,29,4,0,0,0,0,0,4,0,0,0,0,0,25,327,51,6,12,3,0,0,30,21,0,21,12,9,255,92,22,2,17,0,0,3,11,7,4,59,"Cheshire"]
["Hinsdale","0000547","36660",4082,3863,1915,384,28,0,6,22,0,0,0,0,356,151,5,0,0,0,0,5,0,4,0,4,4,0,142,1169,167,42,15,13,0,0,97,117,7,110,19,91,885,211,37,9,22,0,0,6,52,19,33,122,1948,321,0,0,0,0,0,6,0,6,315,125,17,10,0,0,0,0,7,9,0,9,4,5,99,1213,131,14,33,0,0,6,78,83,18,65,15,50,999,289,56,15,29,5,0,7,91,22,69,142,"Cheshire"]
["Jaffrey","0000559","38500",5476,4997,2465,502,0,0,0,0,0,0,0,0,502,168,3,0,0,3,0,0,0,0,0,0,0,0,165,1468,209,8,58,23,0,17,103,98,11,87,11,76,1161,327,30,12,9,9,0,0,95,55,40,202,2532,478,8,0,0,8,0,0,0,0,470,116,0,0,0,0,0,0,0,17,0,17,17,0,99,1545,116,0,37,0,0,0,79,72,0,72,16,56,1357,393,108,28,69,0,0,11,59,9,50,226,"Cheshire"]
["Keene","0000582","39300",22563,21298,10054,1441,107,5,10,92,0,17,11,6,1317,1318,126,0,0,37,0,0,89,53,0,53,17,36,1139,6045,670,71,112,107,0,22,358,370,59,311,59,252,5005,1250,328,87,180,9,0,52,214,67,147,708,11244,1337,45,0,0,45,0,18,18,0,1274,1566,50,0,0,19,0,0,31,18,0,18,0,18,1498,6420,560,32,168,82,0,8,270,434,92,342,31,311,5426,1921,389,98,201,21,0,69,378,129,249,1154,"Cheshire"]
["Marlborough","0000624","45460",2009,1897,926,145,13,0,0,13,0,0,0,0,132,79,14,2,0,10,0,0,2,0,0,0,0,0,65,573,59,0,6,2,0,0,51,32,6,26,6,20,482,129,31,16,12,1,0,2,17,11,6,81,971,167,0,0,0,0,0,0,0,0,167,56,6,0,2,2,0,0,2,2,0,2,0,2,48,582,55,2,12,8,0,0,33,47,10,37,9,28,480,166,39,7,28,0,0,4,17,14,3,110,"Cheshire"]
["Marlow","0000640","45700",747,680,356,58,4,0,0,4,0,0,0,0,54,25,1,0,0,0,0,0,1,0,0,0,0,0,24,219,26,3,7,3,0,0,13,13,3,10,3,7,180,54,13,7,6,0,0,0,7,2,5,34,324,45,0,0,0,0,0,0,0,0,45,15,5,0,0,3,0,0,2,0,0,0,0,0,10,215,13,2,3,0,0,0,8,17,2,15,0,15,185,49,2,2,0,0,0,0,5,5,0,42,"Cheshire"]
["Nelson","0000645","50580",634,568,284,54,3,0,0,3,0,0,0,0,51,15,0,0,0,0,0,0,0,0,0,0,0,0,15,192,10,2,4,0,0,0,4,7,0,7,4,3,175,23,6,4,0,0,0,2,0,0,0,17,284,45,3,0,0,3,0,0,0,0,42,12,0,0,0,0,0,0,0,0,0,0,0,0,12,187,16,2,3,2,0,0,9,6,0,6,0,6,165,40,8,0,6,2,0,0,4,4,0,28,"Cheshire"]
["Richmond","0000650","64420",1077,1008,512,114,1,0,0,1,0,2,2,0,111,25,0,0,0,0,0,0,0,0,0,0,0,0,25,310,34,9,15,6,0,0,4,13,0,13,1,12,263,63,22,0,14,0,0,8,6,0,6,35,496,108,0,0,0,0,0,2,0,2,106,21,2,2,0,0,0,0,0,0,0,0,0,0,19,312,14,3,6,3,0,0,2,8,8,0,0,0,290,55,10,4,6,0,0,0,6,2,4,39,"Cheshire"]
["Rindge","0000655","64580",5451,5111,2599,411,9,0,0,9,0,5,5,0,397,511,45,0,0,20,0,0,25,24,0,24,0,24,442,1466,104,12,17,18,0,0,57,120,39,81,18,63,1242,211,30,0,30,0,0,0,13,5,8,168,2512,407,15,0,0,15,0,0,0,0,392,512,30,9,0,14,0,0,7,9,0,9,9,0,473,1383,102,0,21,18,0,4,59,91,6,85,32,53,1190,210,37,9,13,15,0,0,64,33,31,109,"Cheshire"]
["Roxbury","0000665","65700",237,219,102,17,0,0,0,0,0,0,0,0,17,1,0,0,0,0,0,0,0,0,0,0,0,0,1,69,1,1,0,0,0,0,0,3,0,3,3,0,65,15,3,0,0,0,0,3,0,0,0,12,117,20,0,0,0,0,0,0,0,0,20,3,0,0,0,0,0,0,0,0,0,0,0,0,3,80,18,2,5,2,0,0,9,2,0,2,0,2,60,14,0,0,0,0,0,0,4,2,2,10,"Cheshire"]
["Stoddard","0000672","73700",928,882,442,64,8,0,0,8,0,0,0,0,56,21,2,2,0,0,0,0,0,0,0,0,0,0,19,287,44,8,11,7,0,0,18,15,2,13,0,13,228,70,11,0,8,0,0,3,6,2,4,53,440,65,9,0,0,9,0,0,0,0,56,23,0,0,0,0,0,0,0,0,0,0,0,0,23,283,19,0,7,0,0,5,7,16,5,11,2,9,248,69,13,4,7,0,0,2,7,1,6,49,"Cheshire"]
["Sullivan","0000677","74900",746,730,395,78,0,0,0,0,0,0,0,0,78,31,7,0,0,0,0,0,7,0,0,0,0,0,24,246,32,5,2,0,0,0,25,26,8,18,3,15,188,40,9,2,5,2,0,0,7,0,7,24,335,57,3,0,0,3,0,0,0,0,54,23,7,3,0,0,0,0,4,3,0,3,0,3,13,227,23,2,7,0,0,0,14,6,0,6,0,6,198,28,3,0,3,0,0,0,4,0,4,21,"Cheshire"]
["Surry","0000682","75300",673,676,345,54,0,0,0,0,0,0,0,0,54,22,4,2,0,0,0,0,2,0,0,0,0,0,18,219,10,6,2,0,0,0,2,14,2,12,2,10,195,50,16,4,10,0,0,2,6,2,4,28,331,46,0,0,0,0,0,0,0,0,46,21,2,0,0,2,0,0,0,2,2,0,0,0,17,212,12,0,7,0,0,0,5,13,9,4,0,4,187,52,17,5,10,0,0,2,5,0,5,30,"Cheshire"]
["Swanzey","0000687","75700",6800,6395,3166,610,63,0,0,63,0,0,0,0,547,191,8,0,0,0,0,0,8,0,0,0,0,0,183,1978,168,32,10,14,0,7,105,164,32,132,22,110,1646,387,78,43,35,0,0,0,42,19,23,267,3229,497,18,4,0,14,0,0,0,0,479,155,22,0,0,7,0,0,15,0,0,0,0,0,133,2083,234,27,42,23,0,37,105,249,40,209,40,169,1600,494,49,0,33,0,0,16,120,68,52,325,"Cheshire"]
["Troy","0000703","77380",1962,1857,879,157,18,0,1,17,0,0,0,0,139,69,10,0,0,5,0,0,5,2,0,2,0,2,57,565,70,8,5,7,0,0,50,39,5,34,11,23,456,88,25,14,8,2,0,1,13,5,8,50,978,169,9,9,0,0,0,1,0,1,159,69,12,0,0,0,0,0,12,1,0,1,0,1,56,612,60,10,10,0,0,2,38,70,17,53,7,46,482,128,24,6,12,0,0,6,21,5,16,83,"Cheshire"]
["Walpole","0000709","78420",3594,3376,1613,285,0,0,0,0,0,0,0,0,285,87,0,0,0,0,0,0,0,0,0,0,0,0,87,961,51,9,0,22,0,0,20,89,2,87,22,65,821,280,87,13,55,6,0,13,43,0,43,150,1763,290,0,0,0,0,0,0,0,0,290,110,0,0,0,0,0,0,0,8,0,8,0,8,102,998,44,0,8,21,0,0,15,57,6,51,7,44,897,365,79,25,29,9,0,16,78,32,46,208,"Cheshire"]
["Westmoreland","0000718","82660",1747,1427,697,106,10,0,0,10,0,0,0,0,96,43,11,0,0,7,0,2,2,0,0,0,0,0,32,447,31,5,11,0,0,4,11,21,2,19,2,17,395,101,20,8,8,2,0,2,14,2,12,67,730,133,10,1,0,9,0,0,0,0,123,39,5,0,0,3,0,0,2,2,0,2,2,0,32,454,27,1,12,5,2,0,7,29,7,22,7,15,398,104,13,0,5,2,0,6,30,8,22,61,"Cheshire"]
["Winchester","0000723","85540",4144,3825,1900,326,59,0,0,59,0,14,0,14,253,155,38,12,0,26,0,0,0,0,0,0,0,0,117,1163,227,16,72,23,0,0,116,106,20,86,0,86,830,256,40,21,19,0,0,0,77,20,57,139,1925,339,42,0,9,33,0,28,20,8,269,126,15,0,10,5,0,0,0,14,8,6,0,6,97,1186,147,16,22,13,0,0,96,112,23,89,12,77,927,274,52,5,39,0,0,8,64,34,30,158,"Cheshire"]
[]
[]
["2010 Census"]
["TownName","LOGRECNO","COUNTY","TotalPop","TotalPop1Race","TotalPopWhite","TotalPopAfricanAmerican","TotalPopAmericanIndAlaska","TotalPopAsian","TotalPopNativeHawaiianPIsland","TotalPopSomeOtherRace","TotalPopTwoOrMoreRaces","TotalPopHispanicLatino","TotalNonHispanicLatino","TotPopUnder15yrs","TotPop15to24yrs","TotPop25to34yrs","TotPop35to44yrs","TotPop45to54yrs","TotPop55to64yrs","TotPop65to74yrs","TotPopOver74yrs","MedianAge","MedianAgeMale","MedianAgeFemale","TotalHH","TotalPopInHouseholds","TotalPopInFamilyHH","TotalPopInNonFamilyHH","AvgHHSize","TotalFamilyHH","TotalFamilyHHSpouse","TotalSingleParentHH","TotalNonFamilyHH","AvgFamilyHHSize","AvgNonFamilyHHSize","AverageHHSizeOwnerOccupied","AverageHHSizeRentalOccupied","TotalHousingUnits","TotalOccupiedHU","TotalOwnerOccupiedHUs","TotalRentalOccupiedHU","TotalVacantHU","VacantHUForRent","VacantHURentNotOccupied","VacantHUForSale","VacantHUsSoldNotOccupied","VacantHUSeasonalRecreational","VacantHUsAllOtherVacants","HomeOwnerVacancyRate","HomeRentalVacancyRate","TotalHousingUnits2010","SingFamHU2010","MultiFamHU2010","MobileHom2010"]
["Alstead","0000041","005",1937,1910,1890,2,11,6,0,1,27,16,1921,333,211,195,243,317,337,185,116,44.5,44.5,44.4,809,1937,994,943,2.39,529,422,107,280,2.88,3.3678571428571429,2.48,2.1,991,809,622,187,182,13,2,13,1,128,25,2,6.4,991,826,73,92]
["Chesterfield","0000042","005",3604,3566,3517,8,6,20,0,15,38,38,3566,574,376,307,490,664,641,360,192,45.8,46.2,45.5,1459,3604,1948,1656,2.4700000000000002,1073,929,144,386,2.82,4.2901554404145079,2.5299999999999998,2.11,1802,1459,1254,205,343,7,0,32,4,258,42,2.5,3.3,1802,1600,167,35]
["Dublin","0000043","005",1597,1577,1549,4,4,12,1,7,20,28,1569,259,173,142,189,288,295,158,93,46.5,46.5,46.5,620,1525,834,691,2.46,458,395,63,162,2.82,4.2654320987654319,2.4500000000000002,2.4900000000000002,785,620,501,119,165,11,1,7,1,128,17,1.4,8.4,785,714,60,11]
["Fitzwilliam","0000044","005",2396,2345,2315,3,9,15,1,2,51,16,2380,417,229,265,272,469,411,227,106,45.4,46,44.7,973,2396,1264,1132,2.46,648,542,106,325,2.95,3.483076923076923,2.48,2.38,1257,973,827,146,284,5,1,24,4,231,19,2.8,3.3,1257,1020,164,73]
["Gilsum","0000045","005",813,806,796,2,1,6,0,1,7,5,808,126,97,85,100,141,158,58,48,44.8,43.1,45.8,326,805,426,379,2.4700000000000002,239,196,43,87,2.78,4.3563218390804597,2.52,2.1,378,326,284,42,52,5,0,7,1,32,7,2.4,10.6,378,349,4,25]
["Harrisville","0000046","005",961,955,944,5,0,3,0,3,6,6,955,104,89,66,86,193,242,108,73,52.8,52.8,52.9,446,961,453,508,2.15,282,233,49,164,2.61,3.0975609756097562,2.1800000000000002,2.06,695,446,365,81,249,4,1,4,1,223,16,1.1000000000000001,4.7,695,622,47,26]
["Hinsdale","0000047","005",4046,3982,3903,22,10,22,11,14,64,56,3990,683,509,413,557,706,594,358,226,42.7,41.5,43.8,1681,4046,2042,2004,2.41,1093,816,277,588,2.87,3.4081632653061225,2.4900000000000002,2.17,1827,1681,1254,427,146,41,2,39,9,23,32,3,8.6999999999999993,1827,953,415,459]
["Jaffrey","0000048","005",5457,5362,5248,20,9,65,2,18,95,90,5367,1038,698,552,716,865,754,432,402,41.5,40.5,42.7,2234,5379,2826,2553,2.41,1451,1081,370,783,2.95,3.2605363984674329,2.56,2.11,2547,2234,1478,756,313,52,2,45,11,160,43,2.9,6.4,2547,1744,547,256]
["Keene","0000285","005",23409,23084,22314,144,42,474,1,109,325,372,23037,3107,6412,2398,2439,3009,2605,1522,1917,34,32.9,35.1,9052,20442,8839,11603,2.2599999999999998,4843,3539,1304,4209,2.83,2.7567118080304112,2.44,2.04,9719,9052,4926,4126,667,326,31,86,24,71,129,1.7,7.3,9719,4728,4637,354]
["Marlborough","0000049","005",2063,2034,2002,8,1,18,0,5,29,29,2034,325,226,246,271,341,312,185,157,43.9,43.6,44.2,866,2061,1011,1050,2.38,565,436,129,301,2.79,3.4883720930232558,2.4700000000000002,2.17,946,866,607,259,80,21,1,8,0,38,12,1.3,7.5,946,616,312,18]
["Marlow","0000050","005",742,734,727,0,4,0,0,3,8,14,728,102,76,56,89,163,138,76,42,48.1,46.7,48.7,311,742,380,362,2.39,219,184,35,92,2.74,3.9347826086956523,2.42,2.14,408,311,276,35,97,5,1,4,1,77,9,1.4,12.2,408,378,3,27]
["Nelson","0000051","005",729,716,712,0,0,4,0,0,13,10,719,106,99,68,79,124,134,75,44,46.2,43.8,48.5,303,729,373,356,2.41,208,160,48,95,2.79,3.7473684210526317,2.44,2.2999999999999998,460,303,224,79,157,4,1,2,0,144,6,0.9,4.8,460,398,51,11]
["Richmond","0000052","005",1155,1141,1124,3,9,3,0,2,14,27,1128,234,122,105,141,206,199,82,66,43.6,43.5,43.7,417,1154,666,488,2.77,313,272,41,104,3.13,4.6923076923076925,2.74,3.13,492,417,385,32,75,2,0,13,2,39,19,3.3,5.9,492,473,9,10]
["Rindge","0000053","005",6014,5917,5747,80,9,54,0,27,97,77,5937,982,1760,538,619,803,740,381,191,29.7,28.7,31,1805,4854,2776,2078,2.69,1316,1138,178,489,3.11,4.2494887525562373,2.73,2.48,2224,1805,1502,303,419,28,1,26,4,338,22,1.7,8.4,2224,1740,384,101]
["Roxbury","0000054","005",229,223,221,0,0,2,0,0,6,3,226,34,23,28,26,39,46,23,10,46.1,44.8,46.8,90,229,117,112,2.54,71,57,14,19,2.65,5.8947368421052628,2.58,2.2999999999999998,101,90,80,10,11,0,0,1,1,8,1,1.2,0,101,89,7,6]
["Stoddard","0000055","005",1232,1210,1178,9,15,7,0,1,22,20,1212,223,94,110,181,209,172,153,90,45.7,45.5,45.8,502,1232,637,595,2.4500000000000002,355,301,54,147,2.79,4.0476190476190474,2.42,2.69,1044,502,438,64,542,5,0,5,1,517,14,1.1000000000000001,7.2,1044,1005,2,37]
["Sullivan","0000056","005",677,673,668,1,0,4,0,0,4,3,674,107,80,73,92,125,117,56,27,43.6,43.5,43.9,274,677,353,324,2.4700000000000002,191,151,40,83,2.85,3.9036144578313254,2.4700000000000002,2.5,309,274,238,36,35,7,1,2,2,16,7,0.8,15.9,309,262,15,31]
["Surry","0000057","005",732,728,716,1,0,10,0,1,4,4,728,106,55,71,95,131,141,84,49,48.4,48.9,47.5,310,732,386,346,2.36,226,203,23,84,2.71,4.1190476190476186,2.4,2.06,324,310,277,33,14,0,0,0,1,9,4,0,0,324,309,5,10]
["Swanzey","0000058","005",7230,7130,6939,23,12,125,2,29,100,107,7123,1217,833,813,970,1239,1085,588,485,43,42.5,43.5,2957,7230,3724,3506,2.4500000000000002,1978,1507,471,979,2.88,3.5812053115423903,2.58,2.1,3205,2957,2141,816,248,54,3,37,11,105,38,1.7,6.2,3205,2282,641,282]
["Troy","0000059","005",2145,2134,2080,17,16,19,1,1,11,28,2117,413,256,325,285,347,273,155,91,37.799999999999997,36.700000000000003,38.700000000000003,867,2145,1116,1029,2.4700000000000002,568,427,141,299,2.96,3.4414715719063547,2.58,2.2400000000000002,932,867,594,273,65,22,0,8,3,13,19,1.3,7.5,932,542,282,107]
["Walpole","0000060","005",3734,3677,3632,10,7,19,0,9,57,50,3684,646,399,384,473,621,565,345,301,44.5,44.1,44.8,1576,3734,1932,1802,2.37,1036,832,204,540,2.86,3.337037037037037,2.4700000000000002,2.11,1715,1576,1145,431,139,44,2,19,1,45,28,1.6,9.1999999999999993,1715,1291,397,27]
["Westmoreland","0000061","005",1874,1871,1844,7,5,9,0,6,3,13,1861,252,218,151,234,349,301,144,225,47.9,45.7,49.4,637,1593,892,701,2.5,493,438,55,144,2.81,4.8680555555555554,2.54,2.27,680,637,551,86,43,6,0,4,1,19,13,0.7,6.5,680,630,36,14]
["Winchester","0000062","005",4341,4262,4173,21,23,24,0,21,79,78,4263,804,549,481,577,691,603,331,305,41.1,40,42.1,1689,4283,2219,2064,2.54,1129,802,327,560,2.97,3.6857142857142855,2.54,2.52,1932,1689,1179,510,243,41,1,24,12,124,41,2,7.4,1932,1069,445,418]

{"sheet":"SmallTownEmploymentandWages","index":114,"n_rows":77,"n_cols":14,"rows_kept":77,"cut":false,"hidden":true,"merged":[[66,1,67,3],[35,1,35,2],[73,1,73,2]]}
[]
[null,{"$f":"CntyDataLink!A35","v":"Dublin"}]
[]
[null,"EMPLOYMENT CHARACTERISTICS"]
[]
[]
[]
[]
[]
[]
[]
[]
[]
[]
[]
[]
[]
[]
[]
[]
[]
[]
[]
[]
[]
[]
[]
[]
[null,"Annual Average Covered Private Employment "]
[null,null,null,"Source: NH Department of Employment Security, Covered Private Employment by location of employment"]
[null,null,2012,{"$f":"C31+1","v":2013},{"$f":"D31+1","v":2014},2015,2016,2017,2018,2019,2020,2021,2022,"Total Change  "]
[null,"Goods Producing",{"$f":"IF((CntyDataLink!$CO$25)=\"n\",NA(),IF(VALUE(CntyDataLink!$CO$25)=\"\",NA(),VALUE(CntyDataLink!$CO$25)))","v":45},{"$f":"IF((CntyDataLink!$CW$25)=\"n\",NA(),IF(VALUE(CntyDataLink!$CW$25)=\"\",NA(),VALUE(CntyDataLink!$CW$25)))","v":48},{"$f":"IF((CntyDataLink!$DE$25)=\"n\",NA(),IF(VALUE(CntyDataLink!$DE$25)=\"\",NA(),VALUE(CntyDataLink!$DE$25)))","v":48},{"$f":"IF((CntyDataLink!$DM$25)=\"n\",NA(),IF(VALUE(CntyDataLink!$DM$25)=\"\",NA(),VALUE(CntyDataLink!$DM$25)))","v":57},{"$f":"IF((CntyDataLink!$DU$25)=\"n\",NA(),IF(VALUE(CntyDataLink!$DU$25)=\"\",NA(),VALUE(CntyDataLink!$DU$25)))","v":60},{"$f":"IF((CntyDataLink!$EC$25)=\"n\",NA(),IF(VALUE(CntyDataLink!$EC$25)=\"\",NA(),VALUE(CntyDataLink!$EC$25)))","v":63},{"$f":"IF((CntyDataLink!$EK$25)=\"n\",NA(),IF(VALUE(CntyDataLink!$EK$25)=\"\",NA(),VALUE(CntyDataLink!$EK$25)))","v":69},{"$f":"IF((CntyDataLink!$ET$25)=\"n\",NA(),IF(VALUE(CntyDataLink!$ET$25)=\"\",NA(),VALUE(CntyDataLink!$ET$25)))","v":62},{"$f":"IF((CntyDataLink!$FD$25)=\"n\",NA(),IF(VALUE(CntyDataLink!$FD$25)=\"\",NA(),VALUE(CntyDataLink!$FD$25)))","v":61},{"$f":"IF((CntyDataLink!$FN$25)=\"n\",NA(),IF(VALUE(CntyDataLink!$FN$25)=\"\",NA(),VALUE(CntyDataLink!$FN$25)))","v":60},{"$f":"IF((CntyDataLink!$FX$25)=\"n\",NA(),IF(VALUE(CntyDataLink!$FX$25)=\"\",NA(),VALUE(CntyDataLink!$FX$25)))","v":57},{"$f":"$M32-C32","v":12}]
[null,"Service Providing",{"$f":"IF((CntyDataLink!$CP$25)=\"n\",NA(),IF(VALUE(CntyDataLink!$CP$25)=\"\",NA(),VALUE(CntyDataLink!$CP$25)))","v":287},{"$f":"IF((CntyDataLink!$CX$25)=\"n\",NA(),IF(VALUE(CntyDataLink!$CX$25)=\"\",NA(),VALUE(CntyDataLink!$CX$25)))","v":292},{"$f":"IF((CntyDataLink!$DF$25)=\"n\",NA(),IF(VALUE(CntyDataLink!$DF$25)=\"\",NA(),VALUE(CntyDataLink!$DF$25)))","v":315},{"$f":"IF((CntyDataLink!$DN$25)=\"n\",NA(),IF(VALUE(CntyDataLink!$DN$25)=\"\",NA(),VALUE(CntyDataLink!$DN$25)))","v":318},{"$f":"IF((CntyDataLink!$DV$25)=\"n\",NA(),IF(VALUE(CntyDataLink!$DV$25)=\"\",NA(),VALUE(CntyDataLink!$DV$25)))","v":322},{"$f":"IF((CntyDataLink!$ED$25)=\"n\",NA(),IF(VALUE(CntyDataLink!$ED$25)=\"\",NA(),VALUE(CntyDataLink!$ED$25)))","v":322},{"$f":"IF((CntyDataLink!$EL$25)=\"n\",NA(),IF(VALUE(CntyDataLink!$EL$25)=\"\",NA(),VALUE(CntyDataLink!$EL$25)))","v":299},{"$f":"IF((CntyDataLink!$EU$25)=\"n\",NA(),IF(VALUE(CntyDataLink!$EU$25)=\"\",NA(),VALUE(CntyDataLink!$EU$25)))","v":296},{"$f":"IF((CntyDataLink!$FE$25)=\"n\",NA(),IF(VALUE(CntyDataLink!$FE$25)=\"\",NA(),VALUE(CntyDataLink!$FE$25)))","v":264},{"$f":"IF((CntyDataLink!$FO$25)=\"n\",NA(),IF(VALUE(CntyDataLink!$FO$25)=\"\",NA(),VALUE(CntyDataLink!$FO$25)))","v":286},{"$f":"IF((CntyDataLink!$FY$25)=\"n\",NA(),IF(VALUE(CntyDataLink!$FY$25)=\"\",NA(),VALUE(CntyDataLink!$FY$25)))","v":40},{"$f":"$M33-C33","v":-247}]
[null,"Total Private Emp",{"$f":"IF((CntyDataLink!$CN$25)=\"n\",NA(),IF(VALUE(CntyDataLink!$CN$25)=\"\",NA(),VALUE(CntyDataLink!$CN$25)))","v":331},{"$f":"IF((CntyDataLink!$CV$25)=\"n\",NA(),IF(VALUE(CntyDataLink!$CV$25)=\"\",NA(),VALUE(CntyDataLink!$CV$25)))","v":340},{"$f":"IF((CntyDataLink!$DD$25)=\"n\",NA(),IF(VALUE(CntyDataLink!$DD$25)=\"\",NA(),VALUE(CntyDataLink!$DD$25)))","v":363},{"$f":"IF((CntyDataLink!$DL$25)=\"n\",NA(),IF(VALUE(CntyDataLink!$DL$25)=\"\",NA(),VALUE(CntyDataLink!$DL$25)))","v":375},{"$f":"IF((CntyDataLink!$DT$25)=\"n\",NA(),IF(VALUE(CntyDataLink!$DT$25)=\"\",NA(),VALUE(CntyDataLink!$DT$25)))","v":382},{"$f":"IF((CntyDataLink!$EB$25)=\"n\",NA(),IF(VALUE(CntyDataLink!$EB$25)=\"\",NA(),VALUE(CntyDataLink!$EB$25)))","v":385},{"$f":"IF((CntyDataLink!$EJ$25)=\"n\",NA(),IF(VALUE(CntyDataLink!$EJ$25)=\"\",NA(),VALUE(CntyDataLink!$EJ$25)))","v":368},{"$f":"IF((CntyDataLink!$ER$25)=\"n\",NA(),IF(VALUE(CntyDataLink!$ER$25)=\"\",NA(),VALUE(CntyDataLink!$ER$25)))","v":358},{"$f":"IF((CntyDataLink!$FB$25)=\"n\",NA(),IF(VALUE(CntyDataLink!$FB$25)=\"\",NA(),VALUE(CntyDataLink!$FB$25)))","v":325},{"$f":"IF((CntyDataLink!$FL$25)=\"n\",NA(),IF(VALUE(CntyDataLink!$FL$25)=\"\",NA(),VALUE(CntyDataLink!$FL$25)))","v":347},{"$f":"IF((CntyDataLink!$FV$25)=\"n\",NA(),IF(VALUE(CntyDataLink!$FV$25)=\"\",NA(),VALUE(CntyDataLink!$FV$25)))","v":368},{"$f":"$M34-C34","v":37}]
[]
[null,"% Change from prior Year",null,"12-13","13-14","14-15","15-16","16-17","17-18","18-19","19-20","20-21","21-22","Total % Change"]
[null,"Goods Producing",null,{"$f":"(D32-C32)/C32","v":6.6666666666666666E-2},0,0.1875,5.2631578947368418E-2,0.05,9.5238095238095233E-2,-0.10144927536231885,-1.6129032258064516E-2,-1.6393442622950821E-2,-0.05,{"$f":"N32/C32","v":0.26666666666666666}]
[null,"Service Providing",null,1.7421602787456445E-2,7.8767123287671229E-2,9.5238095238095247E-3,1.2578616352201259E-2,0,-7.1428571428571425E-2,-1.0033444816053512E-2,-0.10810810810810811,8.3333333333333329E-2,-0.8601398601398601,{"$f":"N33/C33","v":-0.86062717770034847}]
[null,"Total Private Emp",null,2.7190332326283987E-2,6.7647058823529407E-2,3.3057851239669422E-2,1.8666666666666668E-2,7.8534031413612562E-3,-4.4155844155844157E-2,-2.717391304347826E-2,-9.217877094972067E-2,6.7692307692307691E-2,6.0518731988472622E-2,{"$f":"N34/C34","v":0.11178247734138973}]
[]
[]
[null,"EMPLOYMENT CHARACTERISTICS"]
[]
[]
[]
[]
[]
[]
[]
[]
[]
[]
[]
[]
[]
[]
[]
[]
[]
[]
[]
[]
[]
[]
[]
[]
[null,"Covered Private Employment Average Wages",null,null,"Source: NH Department of Employment Security, Covered Private Employment"]
[]
[null,null,2012,{"$f":"C69+1","v":2013},{"$f":"D69+1","v":2014},{"$f":"E69+1","v":2015},2016,2017,2018,2019,2020,2021,2022,"Total $ Change"]
[null,"Goods Producing",{"$f":"IF((CntyDataLink!$CS$25)=\"n\",NA(),IF(VALUE(CntyDataLink!$CS$25)=\"\",NA(),VALUE(CntyDataLink!$CS$25)))","v":860.91},{"$f":"IF((CntyDataLink!$DA$25)=\"n\",NA(),IF(VALUE(CntyDataLink!$DA$25)=\"\",NA(),VALUE(CntyDataLink!$DA$25)))","v":830.02},{"$f":"IF((CntyDataLink!$DI$25)=\"n\",NA(),IF(VALUE(CntyDataLink!$DI$25)=\"\",NA(),VALUE(CntyDataLink!$DI$25)))","v":890.61},{"$f":"IF((CntyDataLink!$DQ$25)=\"n\",NA(),IF(VALUE(CntyDataLink!$DQ$25)=\"\",NA(),VALUE(CntyDataLink!$DQ$25)))","v":873.61},{"$f":"IF((CntyDataLink!$DY$25)=\"n\",NA(),IF(VALUE(CntyDataLink!$DY$25)=\"\",NA(),VALUE(CntyDataLink!$DY$25)))","v":912.07},{"$f":"IF((CntyDataLink!$EG$25)=\"n\",NA(),IF(VALUE(CntyDataLink!$EG$25)=\"\",NA(),VALUE(CntyDataLink!$EG$25)))","v":935.03},{"$f":"IF((CntyDataLink!$EO$25)=\"n\",NA(),IF(VALUE(CntyDataLink!$EO$25)=\"\",NA(),VALUE(CntyDataLink!$EO$25)))","v":952.09},{"$f":"IF((CntyDataLink!$EY$25)=\"n\",NA(),IF(VALUE(CntyDataLink!$EY$25)=\"\",NA(),VALUE(CntyDataLink!$EY$25)))","v":907.73},{"$f":"IF((CntyDataLink!$FI$25)=\"n\",NA(),IF(VALUE(CntyDataLink!$FI$25)=\"\",NA(),VALUE(CntyDataLink!$FI$25)))","v":892.58},{"$f":"IF((CntyDataLink!$FS$25)=\"n\",NA(),IF(VALUE(CntyDataLink!$FS$25)=\"\",NA(),VALUE(CntyDataLink!$FS$25)))","v":963.52},{"$f":"IF((CntyDataLink!$GC$25)=\"n\",NA(),IF(VALUE(CntyDataLink!$GC$25)=\"\",NA(),VALUE(CntyDataLink!$GC$25)))","v":1047},{"$f":"M70-C70","v":186.09000000000003}]
[null,"Service Providing",{"$f":"IF((CntyDataLink!$CT$25)=\"n\",NA(),IF(VALUE(CntyDataLink!$CT$25)=\"\",NA(),VALUE(CntyDataLink!$CT$25)))","v":1225.6400000000001},{"$f":"IF((CntyDataLink!$DB$25)=\"n\",NA(),IF(VALUE(CntyDataLink!$DB$25)=\"\",NA(),VALUE(CntyDataLink!$DB$25)))","v":762.9},{"$f":"IF((CntyDataLink!$DJ$25)=\"n\",NA(),IF(VALUE(CntyDataLink!$DJ$25)=\"\",NA(),VALUE(CntyDataLink!$DJ$25)))","v":770.97},{"$f":"IF((CntyDataLink!$DR$25)=\"n\",NA(),IF(VALUE(CntyDataLink!$DR$25)=\"\",NA(),VALUE(CntyDataLink!$DR$25)))","v":737.13},{"$f":"IF((CntyDataLink!$DZ$25)=\"n\",NA(),IF(VALUE(CntyDataLink!$DZ$25)=\"\",NA(),VALUE(CntyDataLink!$DZ$25)))","v":752.95},{"$f":"IF((CntyDataLink!EG$25)=\"n\",NA(),IF(VALUE(CntyDataLink!$EH$25)=\"\",NA(),VALUE(CntyDataLink!$EH$25)))","v":749.85},{"$f":"IF((CntyDataLink!EO$25)=\"n\",NA(),IF(VALUE(CntyDataLink!$EP$25)=\"\",NA(),VALUE(CntyDataLink!$EP$25)))","v":788.04},{"$f":"IF((CntyDataLink!EY$25)=\"n\",NA(),IF(VALUE(CntyDataLink!$EZ$25)=\"\",NA(),VALUE(CntyDataLink!$EZ$25)))","v":802.7},{"$f":"IF((CntyDataLink!FI$25)=\"n\",NA(),IF(VALUE(CntyDataLink!$FJ$25)=\"\",NA(),VALUE(CntyDataLink!$FJ$25)))","v":895.05},{"$f":"IF((CntyDataLink!FS$25)=\"n\",NA(),IF(VALUE(CntyDataLink!$FT$25)=\"\",NA(),VALUE(CntyDataLink!$FT$25)))","v":970.31},{"$f":"IF((CntyDataLink!GB$25)=\"n\",NA(),IF(VALUE(CntyDataLink!$GB$25)=\"\",NA(),VALUE(CntyDataLink!$GB$25)))","v":1335},{"$f":"M71-C71","v":109.3599999999999}]
[null,"Total Private Emp",{"$f":"IF((CntyDataLink!$CR$25)=\"n\",NA(),IF(VALUE(CntyDataLink!$CR$25)=\"\",NA(),VALUE(CntyDataLink!$CR$25)))","v":1176.58},{"$f":"IF((CntyDataLink!$CZ$25)=\"n\",NA(),IF(VALUE(CntyDataLink!$CZ$25)=\"\",NA(),VALUE(CntyDataLink!$CZ$25)))","v":772.34},{"$f":"IF((CntyDataLink!$DH$25)=\"n\",NA(),IF(VALUE(CntyDataLink!$DH$25)=\"\",NA(),VALUE(CntyDataLink!$DH$25)))","v":786.75},{"$f":"IF((CntyDataLink!$DP$25)=\"n\",NA(),IF(VALUE(CntyDataLink!$DP$25)=\"\",NA(),VALUE(CntyDataLink!$DP$25)))","v":757.74},{"$f":"IF((CntyDataLink!$DX$25)=\"n\",NA(),IF(VALUE(CntyDataLink!$DX$25)=\"\",NA(),VALUE(CntyDataLink!$DX$25)))","v":778.08},{"$f":"IF((CntyDataLink!$EF$25)=\"n\",NA(),IF(VALUE(CntyDataLink!$EF$25)=\"\",NA(),VALUE(CntyDataLink!$EF$25)))","v":780.34},{"$f":"IF((CntyDataLink!$EN$25)=\"n\",NA(),IF(VALUE(CntyDataLink!$EN$25)=\"\",NA(),VALUE(CntyDataLink!$EN$25)))","v":818.82},{"$f":"IF((CntyDataLink!$EW$25)=\"n\",NA(),IF(VALUE(CntyDataLink!$EW$25)=\"\",NA(),VALUE(CntyDataLink!$EW$25)))","v":820.84},{"$f":"IF((CntyDataLink!$FG$25)=\"n\",NA(),IF(VALUE(CntyDataLink!$FG$25)=\"\",NA(),VALUE(CntyDataLink!$FG$25)))","v":894.59},{"$f":"IF((CntyDataLink!$FQ$25)=\"n\",NA(),IF(VALUE(CntyDataLink!$FQ$25)=\"\",NA(),VALUE(CntyDataLink!$FQ$25)))","v":969.12},{"$f":"IF((CntyDataLink!$GA$25)=\"n\",NA(),IF(VALUE(CntyDataLink!$GA$25)=\"\",NA(),VALUE(CntyDataLink!$GA$25)))","v":1050},{"$f":"M72-C72","v":-126.57999999999993}]
[]
[null,"% Change from prior Year",null,{"$f":"D36","v":"12-13"},"13-14","14-15","15-16","16-17","17-18","18-19","19-20","20-21","21-22","Total % Change"]
[null,"Goods Producing",null,{"$f":"(D70-C70)/C70","v":-3.5880637929632586E-2},{"$f":"(E70-D70)/D70","v":7.2998241006240847E-2},-1.9088040781037714E-2,4.4024221334462786E-2,2.5173506419463334E-2,1.8245403890784318E-2,-4.6592233927464852E-2,-1.6689984907406363E-2,7.9477469806627912E-2,{"$f":"(M70-L70)/L70","v":8.664065094652941E-2},{"$f":"N70/C70","v":0.21615499878036037}]
[null,"Service Providing",null,-0.37754968832609909,1.0578057412504982E-2,-4.3892758473092375E-2,2.1461614640565504E-2,-4.1171392522744172E-3,5.0930186037207364E-2,1.8603116593066446E-2,0.11504920891989523,8.4084688006256625E-2,0.37584895548845221,{"$f":"N71/C71","v":8.9226852909500248E-2}]
[null,"Total Private Emp",null,-0.34357204779955458,1.8657586037237443E-2,-3.6873212583412765E-2,2.6842980441840251E-2,2.9045856467201196E-3,4.9311838429402587E-2,2.4669646564568302E-3,8.984698601432678E-2,8.3311908248471331E-2,8.3457157008420005E-2,{"$f":"N72/C72","v":-0.10758299478148527}]